{"text_format":"1","workbook":"xlsx","n_sheets":68,"sheets":["OutPut","Questionnaire","Transcode","Validation","NotApp","Cover","TOC","Explanatory notes EP","Explanatory notes RM","Reporting instructions","FOOTNOTES LIST","1","2","3","3a","3b","3b_Add_2014","3b_Add_2015","3b_Add_2016","3b_Add_2017","3b_Add_2018","3b_Add_2019","3b_Add_2020","3b_Add_2021","3b_Add_2022","3b_Add_2023","3b_Add_2024","3b_Add_2025","3b_Add_2026","3b_Add_2027","3b_Add_2028","3b_Add_2029","3b_Add_2030","3b_Add_2031","3c","3d","3e (voluntary)","4","5","6","7","7_Add_GG","7_Add_CORP","7_Add_HH","8.1","8.2","8.3","8.3_Add_2014","8.3_Add_2015","8.3_Add_2016","8.3_Add_2017","8.3_Add_2018","8.3_Add_2019","8.3_Add_2020","8.3_Add_2021","8.3_Add_2022","8.3_Add_2023","8.3_Add_2024","8.3_Add_2025","8.3_Add_2026","8.3_Add_2027","8.3_Add_2028","8.3_Add_2029","8.3_Add_2030","8.3_Add_2031","Code of variables","LOG","UpdatesLog"],"not_rendered":{"charts":0,"images":4,"macros":1,"external_links":1,"defined_names":8,"comments":59,"pivot_tables":0},"unopened":[],"bounds":{"document_bytes":16777216,"sheet_cells":100000,"rows_first":2000,"rows_last":500,"rows_between":2000,"halvings":0,"cell_chars":16384,"cell_head_chars":4096},"cells_cut":0,"cells_raw":0,"read":"whole","date_system":"1900"}

{"sheet":"OutPut","index":0,"n_rows":35,"n_cols":19,"rows_kept":35,"cut":false,"hidden":true,"merged":[]}
["Output","FILENAME","FILENAME",null,"Output","Description (information)","EUROBASE","SDMX","QUEST SOURCE","Format","DEFAULT VALUE","MULTIPLE",null,"NBFILE",{"$f":"COUNTA(A:A)-1","v":4},"Reporting Country",null,null,"EUROBASE"]
["EPEA1-5","EPEA_2022_#C","EPEA File Tables 1 to 5",null,null,"Reporting Country","geo","REF_AREA","Reporting Country","BOTH",null,null,null,"NBDIM",{"$f":"COUNTA(F:F)-1","v":19},"Table Unit",null,null,"SDMX"]
["EPEA6","EPEA_2022_#C","EPEA File Tables 6",null,null,"Unit of Measure","unit","UNIT_MEASURE","Table Unit","BOTH",null,null,null,null,null,"Year",null,null,"BOTH"]
["EPEA7","EPEA_2022_#C","EPEA File Tables 7",null,"EPEA1-5","Time Vector","time","TIME_PERIOD","Nested Line 2","BOTH",null,null,null,null,null,"Questionnaire Table "]
["EPEAperYear","EPEA_2022_#C","EPEA File Tables 3b_Add",null,"EPEA1-5","Line Indicator ENV_ECON","env_econ","env_econ","Nested Line 1","BOTH",null,null,null,null,null,"Column"]
[null,null,null,null,"EPEA1-5","Line Indicator NACE/SECTOR","nace_r2#sector","nace_r2#sector","Questionnaire Table ","BOTH",null,2,null,null,null,"Line"]
[null,null,null,null,"EPEA1-5","Column Indicators","ceparema","ceparema","Column","BOTH",null,null,null,null,null,"Nested Line 1"]
[null,null,null,null,"EPEA6","Time Vector","time","TIME_PERIOD","Nested Line 2","BOTH",null,null,null,null,null,"Nested Line 2"]
[null,null,null,null,"EPEA6","Line Indicators","env_econ#nace_r2#sector","env_econ#nace_r2#sector","Nested Line 1","BOTH",null,3,null,null,null,"Nested Column 1"]
[null,null,null,null,"EPEA6","Column Indicators","ceparema","ceparema","Column","BOTH",null,null,null,null,null,"Nested Column 2"]
[null,null,null,null,"EPEA7","Time Vector","time","TIME_PERIOD","Nested Line 2","BOTH",null,null,null,null,null,"Default Value"]
[null,null,null,null,"EPEA7","Line Indicator ENV_ECON","env_econ","env_econ","Nested Line 1","BOTH"]
[null,null,null,null,"EPEA7","Line Indicators NACE","nace_r2","nace_r2","Questionnaire Table ","BOTH"]
[null,null,null,null,"EPEA7","Column Indicators","sector","sector","Column","BOTH"]
[null,null,null,null,"EPEA7","Ceparema Constant","ceparema","ceparema","Default Value","BOTH","TOT_CEPA"]
[null,null,null,null,"EPEAperYear","Time Vector","time","TIME_PERIOD","Questionnaire Table ","BOTH"]
[null,null,null,null,"EPEAperYear","Line Indicator ENV_ECON","env_econ","env_econ","Nested Line 1","BOTH"]
[null,null,null,null,"EPEAperYear","Line Indicator NACE","nace_r2","nace_r2","Nested Line 2","BOTH"]
[null,null,null,null,"EPEAperYear","Line Indicator SECTOR","sector","sector","Default Value","BOTH","S11_S12"]
[null,null,null,null,"EPEAperYear","Column Indicators","ceparema","ceparema","Column","BOTH"]
[]
[]
[]
[]
[null,null,null,null,null,null,"Attention Table 7.1 and 7.2"]
[null,null,null,null,null,null,"Peut-être définir un format ad-hoc pour les indicateurs en ligne"]
[null,null,null,null,null,null,"Ajouter un Type QUEST SOURCE: From Transcode, Value: Separate and independant Transcode Table+Validation of codes at Definition loading phase"]
[]
[]
[]
[null,null,null,null,null,null,"- For all CEPAREMA: Read from Questionnaire can be used if necessary (From Questionnaire Sheet data (-1) line))"]
[null,null,null,null,null,null,"- Default Value with a Formula instead of a Text Constant can be used for Unit (Manage FTE unit directly and not cut the table in 3)"]
[null,null,null,null,null,null,"- No Table Questionnaire Parameter for table 1 to 7.3 to be checked at run time (First case of apearance of this possibility)"]
[null,null,null,null,null,null,"- All Output Format field must be defined in THE SAME ORDER as far as they are merged in the same output file name (A Hash table can solved the issue (VTL Study)"]
[null,null,null,null,null,null,"- Sector and/or Nace can be extract from the transcode for table 1 to 5 and 7.1 (not 6), that could clarify the definition (but not necessary)"]

{"sheet":"Questionnaire","index":1,"n_rows":144,"n_cols":36,"rows_kept":144,"cut":false,"hidden":true,"merged":[[0,29,0,33],[15,1,15,2],[0,1,0,2],[0,4,0,10],[0,12,0,22],[0,23,0,27]]}
[null,"General parameters",null,null,"Code list",null,null,null,null,null,null,null,"Tables in the questionnaire",null,null,null,null,null,null,null,null,null,null,"Row/column classification",null,null,null,null,null,"Parameters for the fixed flags",null,null,null,null,null,"Standard"]
[null,"Current country","Cover!C16",null,"Code list","Label","Start","Number","Nested","Multiple","ReferTO ROW/COL","St","Table","Label","Worksheet","CL-Row","CL-Column","Start Row","Start Column","Start Flag","NA Start Row","NA Start Column","Hidden","Code","Label","Type","Row/Col","Parent",null,"Code","Label","Semantic","EUROBASE","SDMX",null,"Confidentiality"]
[null,"Current year",null,null,1,"CEPAREMA All Codes",0,15,null,null,null,{"$f":"G3+3","v":3},"TAB1.NAC","EPEA Table 1 - Monetary","1",{"$f":"$E$23","v":21},1,7,10,null,3,4,null,"CEPA1","CEPA 1",1,10,32,null,"b","Break in series","Standard","B","B",null,"Non Significant"]
[null,"Number of code lists",{"$f":"COUNTA(E:E)-2","v":34},null,{"$f":"E3+1","v":2},"Sector National Accounts for table 7 GG",{"$f":"G3+H3","v":15},1,null,null,null,{"$f":"G4+3","v":18},"TAB1.EMP","EPEA Table 1 - Employment","1",{"$f":"$E$22","v":20},1,277,10,null,273,4,null,"CEPA112_122","of which CEPA 1.1.2 and 1.2.2 Climate change",1,12,10,null,"c","Confidential","Confidentiality","C","C",null,"Eurostat"]
[null,"Number of tables",{"$f":"COUNTA(M:M)-2","v":80},null,3,"Sector National Accounts for table 7 CORP",{"$f":"G4+H4","v":16},1,null,null,null,19,"TAB2.NAC","EPEA Table 2 - Monetary","2",{"$f":"$E$24","v":22},1,7,10,null,296,4,null,"CEPA2","CEPA 2",1,14,32,null,"d","Secondary confidentiality","Confidentiality","D","D"]
[null,"Number of indicators",{"$f":"COUNTA(X:X)-2","v":127},null,4,"Sector National Accounts for table 7 HH",{"$f":"G5+H5","v":17},1,null,null,null,20,"TAB2.EMP","EPEA Table 2 - Employment","2",{"$f":"$E$22","v":20},1,277,10,null,566,4,null,"CEPA3","CEPA 3",1,16,32,null,"e","Estimated data","Standard","E","E"]
[null,"Number of fixed flags",{"$f":"COUNTA(AD:AD)-2","v":7},null,5,"Sector National Accounts for table 7",18,1,null,null,null,21,"TAB3.NAC","EPEA Table 3 - Monetary","3",{"$f":"$E$25","v":23},1,7,10,null,592,4,null,"CEPA4","CEPA 4",1,18,32,null,"n","Not Publishable","Confidentiality","N","N"]
[null,"Number of footnotes (0 if user defined)",99,null,6,"Nace Codes for Table 3b_Add",19,7,null,null,null,22,"TAB3.EMP","EPEA Table 3 - Employment","3",{"$f":"$E$22","v":20},1,241,10,null,826,4,null,"CEPA5","CEPA 5",1,20,32,null,"p","Provisional","Standard","P","P"]
[null,"Merged footnotes (code and label in same cell)",null,null,7,"Nace Codes for Table 8.3_Add",26,11,null,null,null,29,"TAB3a.NAC","EPEA Table 3a - Monetary","3a",{"$f":"$E$25","v":23},1,7,10,null,592,4,null,"CEPA6","CEPA 6",1,22,32,null,"s","Eurostat estimate","Eurostat","S","S"]
[null,"Not applicable cells - color",null,null,8,"Nace Rev2 (Table constant and parameters)",37,9,null,null,null,40,"TAB3a.EMP","EPEA Table 3a - Employment","3a",{"$f":"$E$22","v":20},1,241,10,null,826,4,null,"CEPA7","CEPA 7",1,24,30]
[null,"Footnotes sheet","FOOTNOTES LIST",null,9,"Indicators Employment Only",46,1,null,null,null,49,"TAB3b.NAC","EPEA Table 3b - Monetary","3b",{"$f":"$E$25","v":23},1,7,10,null,592,4,null,"CEPA8","CEPA 8",1,26,30]
[null,"Flags and footnotes - start row",5,null,10,"Indicators Table 1 - Monetary",47,15,null,null,null,50,"TAB3b.EMP","EPEA Table 3b - Employment","3b",{"$f":"$E$22","v":20},1,241,10,null,826,4,null,"CEPA9","CEPA 9",1,28,30]
[null,"Country Label Update Range (Drop Down List)","Cover!B16",null,11,"Indicators Table 2 - Monetary",62,15,null,null,null,65,"TAB3c.NAC","EPEA Table 3c - Monetary","3c",{"$f":"$E$25","v":23},1,7,10,null,592,4,null,"CEPA7-9","Sum of CEPA 7+8+9",1,30,32]
[null,"Hide years from   ",2022,null,12,"Indicators Table 3* - Monetary",77,13,null,null,null,80,"TAB3c.EMP","EPEA Table 3c - Employment","3c",{"$f":"$E$22","v":20},1,241,10,null,826,4,null,"TOT_CEPA","TOT_CEPA",1,32,0,null,null,"EPEAQ"]
[null,null,null,null,13,"Indicators Table 4 - Monetary",90,9,null,null,null,93,"TAB3d.NAC","EPEA Table 3d - Monetary","3d",{"$f":"$E$25","v":23},1,7,10,null,592,4,null,"CREMA 11B_13C_14","Materials recovery",1,34,0]
[null,"Type of characters accepted",null,null,14,"Indicators Table 5 - Monetary",99,3,null,null,null,102,"TAB3d.EMP","EPEA Table 3d - Employment","3d",{"$f":"$E$22","v":20},1,241,10,null,826,4,null,"CREMA 13A","Production of energy  from renewable sources",1,36,0]
[null,"Positive only",0,null,15,"Indicators Table 6 - Monetary",102,15,null,3,null,105,"TAB3e.NAC","EPEA Table 3e - Monetary","3e (voluntary)",{"$f":"$E$25","v":23},1,7,10,null,592,4,null,"CREMA 13B","Energy efficiency and savings",1,38,0]
[null,"Any value",1,null,16,"Indicators Table 7",117,1,null,null,null,120,"TAB3e.EMP","EPEA Table 3e - Employment","3e (voluntary)",{"$f":"$E$22","v":20},1,241,10,null,826,4,null,"S13_S15","Landscape",0,0,0]
[null,"Year",2,null,17,"Indicators Table 8.1 - Monetary",118,3,null,null,null,121,"TAB4","EPEA Table 4","4",{"$f":"$E$26","v":24},1,7,10,null,846,4,null,"S11_S12","Corporations",0,0,0]
[null,"Frozen",3,null,18,"Indicators Table 8.2 - Monetary",121,3,null,null,null,124,"TAB5","EPEA Table 5","5",{"$f":"$E$27","v":25},1,7,10,null,296,25,null,"S14","Households",0,0,0]
[null,"Percentage",4,null,19,"Indicators Table 8.3* - Monetary",124,3,null,null,null,127,"TAB6","EPEA Table 6","6",{"$f":"$E$28","v":26},1,7,10,null,296,46,null,"S1","TOTAL Economy",0,0,0]
[null,"Of which: total > sum(sub-totals)",5,null,20,"Nested Indicators Employment Only",127,0,{"$f":"E11 & \";\" & $E$36","v":"9;34"},null,null,130,"TAB7","EPEA Table 7","7",{"$f":"$E$29","v":27},1,7,10,null,42,59,null,"C10-C12","Manufacture of food, beverages and tobacco products",0,0,0]
[null,null,null,null,21,"Nested Indicators Table 1 - Monetary",127,0,"10;34",null,null,130,"TAB7.GG","EPEA Table 7.GG","7_Add_GG",{"$f":"$E$29","v":27},1,7,10,null,42,59,null,"C17","Manufacture of paper and paper products",0,1,0]
[null,null,null,null,22,"Nested Indicators Table 2 - Monetary",127,0,"11;34",null,null,130,"TAB7.CORP","EPEA Table 7.CORP","7_Add_CORP",27,1,7,10,null,42,59,null,"C19_C20","Manufacture of coke, chemicals and refined petroleum and chemical products",0,2,0]
[null,"Country label","code",null,23,"Nested Indicators Table 3* - Monetary",127,0,"12;34",null,null,130,"TAB7.HH","EPEA Table 7.HH","7_Add_HH",27,1,7,10,null,42,59,null,"C21-C23","Manufacture of pharmaceuticals, rubber, plastic and other non-metallic products",0,3,0]
[null,"Austria","AT",null,24,"Nested Indicators Table 4 - Monetary",127,0,"13;34",null,null,130,"TAB8.1","EPEA Table 8.1","8.1",{"$f":"$E$30","v":28},1,7,10,null,352,25,null,"C24","Manufacture of basic metals",0,4,0]
[null,"Belgium","BE",null,25,"Nested Indicators Table 5 - Monetary",127,0,"14;34",null,null,130,"TAB8.2","EPEA Table 8.2","8.2",{"$f":"$E$31","v":29},1,7,10,null,472,25,null,"C25-C30","Manufacture of fabricated metal products, including machinery and equipment",0,5,0]
[null,"Bulgaria","BG",null,26,"Nested Indicators Table 6 - Monetary",127,0,"15;34",null,null,130,"TAB8.3","EPEA Table 8.3","8.3",{"$f":"$E$32","v":30},1,7,10,null,412,25,null,"C13-C16_C18_C31-C33","Other manufacturing activities",0,6,0]
[null,"Croatia","HR",null,27,{"$f":"\"Nested \" & F18","v":"Nested Indicators Table 7"},127,0,"16;34",null,null,130,"TAB3b_2014.NAC","EPEA Table 3b_Add 2014 - Monetary","3b_Add_2014",{"$f":"$E$33","v":31},1,7,10,null,3,26,null,"B","Mining and Quarring",0,0,0]
[null,"Cyprus","CY",null,28,{"$f":"\"Nested \" & F19","v":"Nested Indicators Table 8.1 - Monetary"},127,0,"17;34",null,null,130,"TAB3b_2014.EMP","EPEA Table 3b_Add 2014 - Employment","3b_Add_2014",{"$f":"$E$34","v":32},1,98,10,null,250,26,null,"C","Manufacturing",0,1,0]
[null,"Czechia","CZ",null,29,{"$f":"\"Nested \" & F20","v":"Nested Indicators Table 8.2 - Monetary"},127,0,"18;34",null,null,130,"TAB3b_2015.NAC","EPEA Table 3b_Add 2015 - Monetary","3b_Add_2015",{"$f":"$E$33","v":31},1,7,10,null,3,26,null,"D","Electricity, gas, steam and air conditionning supply",0,2,0]
[null,"Denmark","DK",null,30,{"$f":"\"Nested \" & F21","v":"Nested Indicators Table 8.3* - Monetary"},127,0,"19;34",null,null,130,"TAB3b_2015.EMP","EPEA Table 3b_Add 2015 - Employment","3b_Add_2015",{"$f":"$E$34","v":32},1,98,10,null,250,26,null,"E36","Water supply",0,3,0]
[null,"Estonia","EE",null,31,"Nested Indicators Table 3b_Add - Monetary",127,0,{"$f":"$E$14 & \";\" & $E$8","v":"12;6"},null,null,130,"TAB3b_2016.NAC","EPEA Table 3b_Add 2016 - Monetary","3b_Add_2016",{"$f":"$E$33","v":31},1,7,10,null,3,26,null,"A_EP_OTH","OTHER NACE",0,4,0]
[null,"Finland","FI",null,32,"Nested Indicators Table 3b_Add - Employment",127,0,{"$f":"$E$11 & \";\" & $E$8","v":"9;6"},null,null,130,"TAB3b_2016.EMP","EPEA Table 3b_Add 2016 - Employment","3b_Add_2016",{"$f":"$E$34","v":32},1,98,10,null,250,26,null,"OFWHICH","OFWHICH",0,5,0]
[null,"France","FR",null,33,"Nested Indicators Table 8.3_Add -Monetary",127,0,{"$f":"$E$21&\";\"&$E$9","v":"19;7"},null,null,130,"TAB3b_2017.NAC","EPEA Table 3b_Add 2017 - Monetary","3b_Add_2017",{"$f":"$E$33","v":31},1,7,10,null,3,26,null,"A","Agriculture, forestry and fishing",0,6,0]
[null,"Germany","DE",null,34,"Year",127,0,null,null,9,130,"TAB3b_2017.EMP","EPEA Table 3b_Add 2017 - Employment","3b_Add_2017",{"$f":"$E$34","v":32},1,98,10,null,250,26,null,"E3739","Sewerage: waste management and remendiation activities",0,7,0]
[null,"Greece","EL",null,null,null,null,null,null,null,null,null,"TAB3b_2018.NAC","EPEA Table 3b_Add 2018 - Monetary","3b_Add_2018",{"$f":"$E$33","v":31},1,7,10,null,3,26,null,"F","Construction",0,8,0]
[null,"Hungary","HU",null,null,null,null,null,null,null,null,null,"TAB3b_2018.EMP","EPEA Table 3b_Add 2018 - Employment","3b_Add_2018",{"$f":"$E$34","v":32},1,98,10,null,250,26,null,"H","Transportation and storage",0,9,0]
[null,"Ireland","IE",null,null,null,null,null,null,null,null,null,"TAB3b_2019.NAC","EPEA Table 3b_Add 2019 - Monetary","3b_Add_2019",{"$f":"$E$33","v":31},1,7,10,null,3,26,null,"L","Real estate activities",0,10,0]
[null,"Italy","IT",null,null,null,null,null,null,null,null,null,"TAB3b_2019.EMP","EPEA Table 3b_Add 2019 - Employment","3b_Add_2019",{"$f":"$E$34","v":32},1,98,10,null,250,26,null,"TOTAL","General government and NPISH",0,0,0]
[null,"Latvia","LV",null,null,null,null,null,null,null,null,null,"TAB3b_2020.NAC","EPEA Table 3b_Add 2020 - Monetary","3b_Add_2020",{"$f":"$E$33","v":31},1,7,10,null,3,26,null,"TOTAL_HH","Households",0,1,0]
[null,"Lithuania","LT",null,null,null,null,null,null,null,null,null,"TAB3b_2020.EMP","EPEA Table 3b_Add 2020 - Employment","3b_Add_2020",{"$f":"$E$34","v":32},1,98,10,null,250,26,null,"T2/EP_SPE","Corporations as specialist and secondary producers of market EP services",0,2,0]
[null,"Luxembourg","LU",null,null,null,null,null,null,null,null,null,"TAB3b_2021.NAC","EPEA Table 3b_Add 2021 - Monetary","3b_Add_2021",{"$f":"$E$33","v":31},1,7,10,null,3,26,"X","T3/EP_BUS","Corporations: other (also covering producers of ancillary EP services):  total",0,3,0]
[null,"Malta","MT",null,null,null,null,null,null,null,null,null,"TAB3b_2021.EMP","EPEA Table 3b_Add 2021 - Employment","3b_Add_2021",{"$f":"$E$34","v":32},1,98,10,null,250,26,"X","T3a/B","Corporations: other (also covering producers of ancillary EP services):  NACE Rev. 2 B",0,4,0]
[null,"Netherlands","NL",null,null,null,null,null,null,null,null,null,"TAB3b_2022.NAC","EPEA Table 3b_Add 2022 - Monetary","3b_Add_2022",{"$f":"$E$33","v":31},1,7,10,null,3,26,"X","T3b/C","Corporations: other (also covering producers of ancillary EP services):  NACE Rev. 2 C",0,5,0]
[null,"Poland","PL",null,null,null,null,null,null,null,null,null,"TAB3b_2022.EMP","EPEA Table 3b_Add 2022 - Employment","3b_Add_2022",{"$f":"$E$34","v":32},1,98,10,null,250,26,"X","T3c/D","Corporations: other (also covering producers of ancillary EP services):  NACE Rev. 2 D",0,6,0]
[null,"Portugal","PT",null,null,null,null,null,null,null,null,null,"TAB3b_2023.NAC","EPEA Table 3b_Add 2023 - Monetary","3b_Add_2023",{"$f":"$E$33","v":31},1,7,10,null,3,26,"X","T3d/E36","Corporations: other (also covering producers of ancillary EP services):  NACE Rev. E36",0,7,0]
[null,"Romania","RO",null,null,null,null,null,null,null,null,null,"TAB3b_2023.EMP","EPEA Table 3b_Add 2023 - Employment","3b_Add_2023",{"$f":"$E$34","v":32},1,98,10,null,250,26,"X","T3e/A_EP_OTH","Corporations: other (also covering producers of ancillary EP services):  other NACE",0,8,0]
[null,"Slovakia","SK",null,null,null,null,null,null,null,null,null,"TAB3b_2024.NAC","EPEA Table 3b_Add 2024 - Monetary","3b_Add_2024",{"$f":"$E$33","v":31},1,7,10,null,3,26,"X","EMP","Employment (Full time equivalents)",0,0,0]
[null,"Slovenia","SI",null,null,null,null,null,null,null,null,null,"TAB3b_2024.EMP","EPEA Table 3b_Add 2024 - Employment","3b_Add_2024",{"$f":"$E$34","v":32},1,98,10,null,250,26,"X","P51G_NP.1","Gross fixed capital formation and acquisition less disposals of non-financial non-produced assets",0,0,0]
[null,"Spain","ES",null,null,null,null,null,null,null,null,null,"TAB3b_2025.NAC","EPEA Table 3b_Add 2025 - Monetary","3b_Add_2025",{"$f":"$E$33","v":31},1,7,10,null,3,26,"X","P2.1","Total intermediate consumption",0,1,0,null,null,"of which on line 5"]
[null,"Sweden","SE",null,null,null,null,null,null,null,null,null,"TAB3b_2025.EMP","EPEA Table 3b_Add 2025 - Employment","3b_Add_2025",{"$f":"$E$34","v":32},1,98,10,null,250,26,"X","P2_EPS.1","Intermediate consumption of EP services ",0,2,0]
[null,"United Kingdom","UK",null,null,null,null,null,null,null,null,null,"TAB3b_2026.NAC","EPEA Table 3b_Add 2026 - Monetary","3b_Add_2026",{"$f":"$E$33","v":31},1,7,10,null,3,26,"X","P2_NEPS.1","Intermediate consumption (excluding EP services) ",0,3,0]
[null,"Albania","AL",null,null,null,null,null,null,null,null,null,"TAB3b_2026.EMP","EPEA Table 3b_Add 2026 - Employment","3b_Add_2026",{"$f":"$E$34","v":32},1,98,10,null,250,26,"X","D1.1","Compensation of employees",0,4,0]
[null,"Bosnia and Herzegovina","BA",null,null,null,null,null,null,null,null,null,"TAB3b_2027.NAC","EPEA Table 3b_Add 2027 - Monetary","3b_Add_2027",{"$f":"$E$33","v":31},1,7,10,null,3,26,"X","ICE.1","Internal current expenditure ((P2_NEPS.1) + (D1.1))   ",0,5,0]
[null,"Iceland","IS",null,null,null,null,null,null,null,null,null,"TAB3b_2027.EMP","EPEA Table 3b_Add 2027 - Employment","3b_Add_2027",{"$f":"$E$34","v":32},1,98,10,null,250,26,"X","D29-D39.1","Other taxes less subsidies on production",0,6,0]
[null,"Kosovo*","XK",null,null,null,null,null,null,null,null,null,"TAB3b_2028.NAC","EPEA Table 3b_Add 2028 - Monetary","3b_Add_2028",{"$f":"$E$33","v":31},1,7,10,null,3,26,"X","P51C.1","Consumption of fixed capital",0,7,0]
[null,"Liechtenstein","LI",null,null,null,null,null,null,null,null,null,"TAB3b_2028.EMP","EPEA Table 3b_Add 2028 - Employment","3b_Add_2028",{"$f":"$E$34","v":32},1,98,10,null,250,26,"X","B2N.1","Net operating surplus ((P1.1) + (RNO.1) - (P2.1) - (D1.1) - (P51C.1) - (D29-D39.1))",0,8,0]
[null,"Montenegro","ME",null,null,null,null,null,null,null,null,null,"TAB3b_2029.NAC","EPEA Table 3b_Add 2029 - Monetary","3b_Add_2029",{"$f":"$E$33","v":31},1,7,10,null,3,26,"X","P1.1","Total output of EP services ((P13.1) + (P11.1))",0,9,0]
[null,"Norway","NO",null,null,null,null,null,null,null,null,null,"TAB3b_2029.EMP","EPEA Table 3b_Add 2029 - Employment","3b_Add_2029",{"$f":"$E$34","v":32},1,98,10,null,250,26,"X","P11.1","Market output of EP services (Includes P.11 (market output) of general government and NPISH local KAUs that are market producers)",0,10,0]
[null,"Serbia","RS",null,null,null,null,null,null,null,null,null,"TAB3b_2030.NAC","EPEA Table 3b_Add 2030 - Monetary","3b_Add_2030",{"$f":"$E$33","v":31},1,7,10,null,3,26,"X","P13.1","Non-market output of EP services (Includes P.131 (payments for non-market output))",0,11,0]
[null,"Switzerland","CH",null,null,null,null,null,null,null,null,null,"TAB3b_2030.EMP","EPEA Table 3b_Add 2030 - Employment","3b_Add_2030",{"$f":"$E$34","v":32},1,98,10,null,250,26,"X","RNO.1","Related non-EP output",0,12,0]
[null,"North Macedonia","MK",null,null,null,null,null,null,null,null,null,"TAB3b_2031.NAC","EPEA Table 3b_Add 2031 - Monetary","3b_Add_2031",{"$f":"$E$33","v":31},1,7,10,null,3,26,"X","P3_EPS.1","Final consumption of EP services ((P13.1) less P.131 (payments for non-market output))",0,13,0]
[null,"Turkey","TR",null,null,null,null,null,null,null,null,null,"TAB3b_2031.EMP","EPEA Table 3b_Add 2031 - Employment","3b_Add_2031",{"$f":"$E$34","v":32},1,98,10,null,250,26,"X","P2_EPS_EXT.1","Total intermediate consumption of EP services (for production of EP services and for other production)",0,14,0]
[null,null,null,null,null,null,null,null,null,null,null,null,"TAB8.3_2014.NAC","EPEA Table 8.3_Add 2014 - Monetary","8.3_Add_2014",{"$f":"$E$35","v":33},1,7,10,null,3,60,null,"P51G_NP.2","Gross fixed capital formation and acquisition less disposals of non-financial non-produced assets",0,0,0]
[null,null,null,null,null,null,null,null,null,null,null,null,"TAB8.3_2015.NAC","EPEA Table 8.3_Add 2015 - Monetary","8.3_Add_2015",33,1,7,10,null,3,60,null,"P2.2","Total intermediate consumption",0,1,0]
[null,null,null,null,null,null,null,null,null,null,null,null,"TAB8.3_2016.NAC","EPEA Table 8.3_Add 2016 - Monetary","8.3_Add_2016",33,1,7,10,null,3,60,null,"P2_EPS.2","Intermediate consumption of EP services ",0,2,0]
[null,null,null,null,null,null,null,null,null,null,null,null,"TAB8.3_2017.NAC","EPEA Table 8.3_Add 2017 - Monetary","8.3_Add_2017",33,1,7,10,null,3,60,null,"P2_EPS_SP.2","of which: Intermediate consumption of EP services by specialist producers ",0,3,0]
[null,null,null,null,null,null,null,null,null,null,null,null,"TAB8.3_2018.NAC","EPEA Table 8.3_Add 2018 - Monetary","8.3_Add_2018",33,1,7,10,null,3,60,null,"P2_NEPS.2","Intermediate consumption (excluding EP services) ",0,4,0]
[null,null,null,null,null,null,null,null,null,null,null,null,"TAB8.3_2019.NAC","EPEA Table 8.3_Add 2019 - Monetary","8.3_Add_2019",33,1,7,10,null,3,60,null,"D1.2","Compensation of employees",0,5,0]
[null,null,null,null,null,null,null,null,null,null,null,null,"TAB8.3_2020.NAC","EPEA Table 8.3_Add 2020 - Monetary","8.3_Add_2020",33,1,7,10,null,3,60,null,"ICE.2","Internal current expenditure ((P2_NEPS.2) + (D1.2))   \n",0,6,0]
[null,null,null,null,null,null,null,null,null,null,null,null,"TAB8.3_2021.NAC","EPEA Table 8.3_Add 2021 - Monetary","8.3_Add_2021",33,1,7,10,null,3,60,"X","D29-D39.2","Other taxes less subsidies on production",0,7,0]
[null,null,null,null,null,null,null,null,null,null,null,null,"TAB8.3_2022.NAC","EPEA Table 8.3_Add 2022 - Monetary","8.3_Add_2022",33,1,7,10,null,3,60,"X","P51C.2","Consumption of fixed capital",0,8,0]
[null,null,null,null,null,null,null,null,null,null,null,null,"TAB8.3_2023.NAC","EPEA Table 8.3_Add 2023 - Monetary","8.3_Add_2023",33,1,7,10,null,3,60,"X","B2N.2","Net operating surplus ((P11.2) + (RNO.2) - (P2.2) - (D1.2) - (P51C.2) - (D29-D39.2))",0,9,0]
[null,null,null,null,null,null,null,null,null,null,null,null,"TAB8.3_2024.NAC","EPEA Table 8.3_Add 2024 - Monetary","8.3_Add_2024",33,1,7,10,null,3,60,"X","P11.2","Market output of EP services ((P11_MA.2) + (P11_SA.2.))",0,10,0]
[null,null,null,null,null,null,null,null,null,null,null,null,"TAB8.3_2025.NAC","EPEA Table 8.3_Add 2025 - Monetary","8.3_Add_2025",33,1,7,10,null,3,60,"X","P11_MA.2","Market output of EP services (from the main activity)",0,11,0]
[null,null,null,null,null,null,null,null,null,null,null,null,"TAB8.3_2026.NAC","EPEA Table 8.3_Add 2026 - Monetary","8.3_Add_2026",33,1,7,10,null,3,60,"X","P11_SA.2","Market output of EP services (from secondary activities)",0,12,0]
[null,null,null,null,null,null,null,null,null,null,null,null,"TAB8.3_2027.NAC","EPEA Table 8.3_Add 2027 - Monetary","8.3_Add_2027",33,1,7,10,null,3,60,"X","RNO.2","Related non-EP output",0,13,0]
[null,null,null,null,null,null,null,null,null,null,null,null,"TAB8.3_2028.NAC","EPEA Table 8.3_Add 2028 - Monetary","8.3_Add_2028",33,1,7,10,null,3,60,"X","P2_EPS_EXT.2","Total intermediate consumption of EP services (for production of EP services and for other production)",0,14,0]
[null,null,null,null,null,null,null,null,null,null,null,null,"TAB8.3_2029.NAC","EPEA Table 8.3_Add 2029 - Monetary","8.3_Add_2029",33,1,7,10,null,3,60,"X","P51G_NP.3","Gross fixed capital formation and acquisition less disposals of non-financial, non-produced assets",0,0,0]
[null,null,null,null,null,null,null,null,null,null,null,null,"TAB8.3_2030.NAC","EPEA Table 8.3_Add 2030 - Monetary","8.3_Add_2030",33,1,7,10,null,3,60,"X","INV_EOP.3","GFCF on specific EP fixed assets (end-of-pipe technologies)",0,1,0]
[null,null,null,null,null,null,null,null,null,null,null,null,"TAB8.3_2031.NAC","EPEA Table 8.3_Add 2031 - Monetary","8.3_Add_2031",33,1,7,10,null,3,60,"X","INV_IT.3","GFCF on cleaner EP fixed assets (integrated technologies)",0,2,0]
[null,null,null,null,null,null,null,null,null,null,null,null,null,null,null,null,null,null,null,null,null,null,null,"P2.3","Total Intermediate consumption",0,3,0]
[null,null,null,null,null,null,null,null,null,null,null,null,null,null,null,null,null,null,null,null,null,null,null,"P2_EPS.3","Intermediate consumption of EP services",0,4,0]
[null,null,null,null,null,null,null,null,null,null,null,null,null,null,null,null,null,null,null,null,null,null,null,"P2_NEPS.3","Intermediate consumption (excluding EP services)",0,5,0]
[null,null,null,null,null,null,null,null,null,null,null,null,null,"Nom de Sheet avec WildCard…. ===> Year mais tableau générique…. Structure to Upgrade",null,null,null,null,null,null,null,null,null,"D1.3","Compensation of employees",0,6,0]
[null,null,null,null,null,null,null,null,null,null,null,null,null,"Bitmap sur les collones pour gerer les CEPA par Tableaux (Trop de tables ===> Illisible, Nouveau modèle: Sur ce modèle: dupplication)",null,null,null,null,null,null,null,null,null,"P1_ANC.3","Ancillary EP output (simplified valuation legally acceptable) ((P2_NEPS.3) + (D1.3))",0,7,0]
[null,null,null,null,null,null,null,null,null,null,null,null,null,"Ne Pas Oublier: Codelist Nace with an Extra Code (Not Exported) from the the Indicator label)",null,null,null,null,null,null,null,null,null,"D29-D39.3","Other taxes less subsidies on production",0,8,0]
[null,null,null,null,null,null,null,null,null,null,null,null,null,"ToPropose: Explicit Management of Transcode Tables (1 Line => X Codes)",null,null,null,null,null,null,null,null,null,"P51C.3","Consumption of fixed capital",0,9,0]
[null,null,null,null,null,null,null,null,null,null,null,null,null,"Nested definition request to much repetition for that kind of control",null,null,null,null,null,null,null,null,null,"P1_ANC_ESA.3","Ancillary EP output (ESA-compatible output) ((P2_NEPS.3) + (D1.3) + (P51C.3) + (D29-D39.3))",0,10,0]
[null,null,null,null,null,null,null,null,null,null,null,null,null,null,null,null,null,null,null,null,null,null,null,"RNO.3","Related non-EP output",0,11,0]
[null,null,null,null,null,null,null,null,null,null,null,null,null,null,null,null,null,null,null,null,null,null,null,"P2_EPS_EXT.3","Total intermediate consumption of EP services (for production of EP services and for other production)",0,12,0]
[null,null,null,null,null,null,null,null,null,null,null,null,null,null,null,null,null,null,null,null,null,null,null,"P1.4","Total output of EP services (P11.4 + P1_ANC.4 + P13.4)",0,0,0]
[null,null,null,null,null,null,null,null,null,null,null,null,null,null,null,null,null,null,null,null,null,null,null,"P11.4","Market output of EP services (= P11.1 + P11.2)",0,1,0]
[null,null,null,null,null,null,null,null,null,null,null,null,null,null,null,null,null,null,null,null,null,null,null,"P1_ANC.4","Ancillary EP output (= P1_ANC.3)",0,2,0]
[null,null,null,null,null,null,null,null,null,null,null,null,null,null,null,null,null,null,null,null,null,null,null,"P13.4","Non-market output of EP services (=P13.1)",0,3,0]
[null,null,null,null,null,null,null,null,null,null,null,null,null,null,null,null,null,null,null,null,null,null,null,"P2_EPS.4","Intermediate consumption of EP services by specialist producers (Intermediate consumption of EP services of corporations specialist producers and of general government' units as producers of EP services )",0,4,0]
[null,null,null,null,null,null,null,null,null,null,null,null,null,null,null,null,null,null,null,null,null,null,null,"P7.4","Imports of EP services",0,5,0]
[null,null,null,null,null,null,null,null,null,null,null,null,null,null,null,null,null,null,null,null,null,null,null,"P6.4","Exports of EP services",0,6,0]
[null,null,null,null,null,null,null,null,null,null,null,null,null,null,null,null,null,null,null,null,null,null,null,"D21-D31.4","VAT and other taxes less subsidies on EP services",0,7,0]
[null,null,null,null,null,null,null,null,null,null,null,null,null,null,null,null,null,null,null,null,null,null,null,"SUP_NU.4","Environmental protection supply at purchasers' prices available to resident users (= P1.4 - P2_EPS_SP.4 + P7.4 - P6.4 + D21-D31.4)",0,8,0]
[null,null,null,null,null,null,null,null,null,null,null,null,null,null,null,null,null,null,null,null,null,null,null,"P3_EPS.5","Final consumption of EP services",0,0,0]
[null,null,null,null,null,null,null,null,null,null,null,null,null,null,null,null,null,null,null,null,null,null,null,"P3_ACP_ec.5","Final consumption of EP/RM products other than EP services and other than RM characteristic products (cleaner/resource efficient goods) - EXTRA COST",0,1,0]
[null,null,null,null,null,null,null,null,null,null,null,null,null,null,null,null,null,null,null,null,null,null,null,"P3_ACP_fc.5","Final consumption of EP/RM products other than EP services and other than RM characteristic products (cleaner/resource efficient goods) - FULL COST",0,2,0]
[null,null,null,null,null,null,null,null,null,null,null,null,null,null,null,null,null,null,null,null,null,null,null,"D3_D7_D92_D99_PAY_GG.6","General government: transfers paid ",0,0,0]
[null,null,null,null,null,null,null,null,null,null,null,null,null,null,null,null,null,null,null,null,null,null,null,"D3_D7_D92_D99_REC_GG.6","General government: transfers received from the rest of the world",0,1,0]
[null,null,null,null,null,null,null,null,null,null,null,null,null,null,null,null,null,null,null,null,null,null,null,"D3_D7_REC_GG.6","General government: current transfers received from the rest of the world",0,2,0]
[null,null,null,null,null,null,null,null,null,null,null,null,null,null,null,null,null,null,null,null,null,null,null,"D92_D99_REC_GG.6","General Government: investments grants and other capital transfers received from the rest of the world",0,3,0]
[null,null,null,null,null,null,null,null,null,null,null,null,null,null,null,null,null,null,null,null,null,null,null,"D3_D7_D92_D99_REC_CORP.6","Corporations: transfers received from general government and the rest of the world",0,4,0]
[null,null,null,null,null,null,null,null,null,null,null,null,null,null,null,null,null,null,null,null,null,null,null,"D3_D7_REC_CORP.6","Corporations: current transfers received from the general government and rest of the world",0,5,0]
[null,null,null,null,null,null,null,null,null,null,null,null,null,null,null,null,null,null,null,null,null,null,null,"D92_D99_REC_CORP.6","Corporations: investments grants and other capital transfers received from general government and rest of the world",0,6,0]
[null,null,null,null,null,null,null,null,null,null,null,null,null,null,null,null,null,null,null,null,null,null,null,"TAX_EM_PAY_CORP.6","Corporations: earmarked taxes paid",0,7,0]
[null,null,null,null,null,null,null,null,null,null,null,null,null,null,null,null,null,null,null,null,null,null,null,"D3_D7_D92_D99_REC_HH.6","Households: transfers received from general government and rest of the world",0,8,0]
[null,null,null,null,null,null,null,null,null,null,null,null,null,null,null,null,null,null,null,null,null,null,null,"TAX_EM_PAY_HH.6","Households: earmarked taxes paid",0,9,0]
[null,null,null,null,null,null,null,null,null,null,null,null,null,null,null,null,null,null,null,null,null,null,null,"D3_D7_D92_D99_PAY_RW.6","Rest of the World: transfers paid",0,10,0]
[null,null,null,null,null,null,null,null,null,null,null,null,null,null,null,null,null,null,null,null,null,null,null,"D3_D7_D92_D99_REC_RW.6","Rest of the World: transfers received",0,11,0]
[null,null,null,null,null,null,null,null,null,null,null,null,null,null,null,null,null,null,null,null,null,null,null,"D3_D7_REC_RW.6","Rest of the World: current transfers received from general government",0,12,0]
[null,null,null,null,null,null,null,null,null,null,null,null,null,null,null,null,null,null,null,null,null,null,null,"D92_D99_REC_RW.6","Rest of the World: investments grants and other capital transfers received from general government",0,13,0]
[null,null,null,null,null,null,null,null,null,null,null,null,null,null,null,null,null,null,null,null,null,null,null,"NEGB2N_GG.6","Negative net operating surplus of market producers in general government sector (non-consolidated)",0,14,0]
[null,null,null,null,null,null,null,null,null,null,null,null,null,null,null,null,null,null,null,null,null,null,null,"TOT_NEEP.7","National expenditure on environmental protection",0,0,0]
[null,null,null,null,null,null,null,null,null,null,null,null,null,null,null,null,null,null,null,null,null,null,null,"P51G_NP.1","Gross fixed capital formation and acquisition less disposals of non-financial non-produced assets (for characteristic activities)",0,0,0]
[null,null,null,null,null,null,null,null,null,null,null,null,null,null,null,null,null,null,null,null,null,null,null,"P51G_CREP_ec.1","Gross fixed capital formation  in cleaner and resource efficient products for non characteristic activities - EXTRA COST",0,1,0]
[null,null,null,null,null,null,null,null,null,null,null,null,null,null,null,null,null,null,null,null,null,null,null,"P51G_CREP_fc.1","Gross fixed capital formation  in cleaner and resource efficient products for non characteristic activities - FULL COST",0,2,0]
[null,null,null,null,null,null,null,null,null,null,null,null,null,null,null,null,null,null,null,null,null,null,null,"P51G_NP.2 ","Gross fixed capital formation and acquisition less disposals of non-financial non-produced assets (for characteristic activities)",0,0,0]
[null,null,null,null,null,null,null,null,null,null,null,null,null,null,null,null,null,null,null,null,null,null,null,"P51G_CREP_ec.2","Gross fixed capital formation  in cleaner and resource efficient products for non characteristic activities - EXTRA COST",0,1,0]
[null,null,null,null,null,null,null,null,null,null,null,null,null,null,null,null,null,null,null,null,null,null,null,"P51G_CREP_fc.2","Gross fixed capital formation  in cleaner and resource efficient products for non characteristic activities - FULL COST",0,2,0]
[null,null,null,null,null,null,null,null,null,null,null,null,null,null,null,null,null,null,null,null,null,null,null,"P51G_NP.3","Gross fixed capital formation and acquisition less disposals of non-financial non-produced assets (for characteristic activities)",0,0,0]
[null,null,null,null,null,null,null,null,null,null,null,null,null,null,null,null,null,null,null,null,null,null,null,"P51G_CREP_ec.3","Gross fixed capital formation  in cleaner and resource efficient products for non characteristic activities - EXTRA COST",0,1,0]
[null,null,null,null,null,null,null,null,null,null,null,null,null,null,null,null,null,null,null,null,null,null,null,"P51G_CREP_fc.3","Gross fixed capital formation  in cleaner and resource efficient products for non characteristic activities -\nFULL COST",0,2,0]
[]
[]
[]
[]
[]
[]
[]
[]
[]
[]
[]
[]
[]
[null,null,null,null,null,null,null,null,null,null,null,null,null,null,null,null,null,null,null,null,null,null,null,null,null,null,null,null,null,null,null,"<=== Duplicated Table but Transcoded differently"]
[null,null,null,null,null,null,null,null,null,null,null,null,null,null,null,null,null,null,null,null,null,null,null,null,null,null,null,null,null,null,null,"<=== Check if this can be combined "]

{"sheet":"Transcode","index":2,"n_rows":147,"n_cols":28,"rows_kept":147,"cut":false,"hidden":true,"merged":[[104,0,118,0],[120,0,128,0],[39,0,47,0],[49,0,63,0],[64,0,78,0],[79,0,91,0],[92,0,100,0],[101,0,103,0],[28,0,38,0],[0,1,0,4],[0,6,0,14],[2,0,16,0],[17,0,20,0],[21,0,27,0]]}
[null,"Transcodification for MDT/Eurobase and SDMX",null,null,null,null,"Parameters for the tables",null,null,null,null,null,null,null,null,null,null,null,null,null,null,null,null,null,null,null,null,"Number of decimals"]
[null,"Code","Label","EUROBASE","SDMX",null,"Table","Label","FORMAT","TABLE EUROBASE","TABLE SDMX","UNIT EUROBASE","UNIT SDMX","Output (Flatten)","Validation",null,null,null,null,null,null,null,null,null,null,null,null,"0 decimals"]
["Ceparema ",{"$f":"Questionnaire!X3","v":"CEPA1"},{"$f":"Questionnaire!Y3","v":"CEPA 1"},"CEPA1","CEPA1",null,{"$f":"Questionnaire!M3","v":"TAB1.NAC"},{"$f":"Questionnaire!N3","v":"EPEA Table 1 - Monetary"},"EPEA1-5",{"$f":"D$130","v":"TOTAL#S13_S15"},{"$f":"E$130","v":"TOTAL#S13_S15"},"MIO_NAC","MIO_NAC","Full Number","1 decimal",null,null,null,null,null,null,null,null,null,null,null,null,"1 decimal"]
[null,{"$f":"Questionnaire!X4","v":"CEPA112_122"},{"$f":"Questionnaire!Y4","v":"of which CEPA 1.1.2 and 1.2.2 Climate change"},"CEPA112_122","CEPA112_122",null,{"$f":"Questionnaire!M4","v":"TAB1.EMP"},{"$f":"Questionnaire!N4","v":"EPEA Table 1 - Employment"},"EPEA1-5",{"$f":"D$130","v":"TOTAL#S13_S15"},{"$f":"E$130","v":"TOTAL#S13_S15"},"FTE","FTE","Full Number","1 decimal",null,null,null,null,null,null,null,null,null,null,null,null,"2 decimals"]
[null,{"$f":"Questionnaire!X5","v":"CEPA2"},{"$f":"Questionnaire!Y5","v":"CEPA 2"},"CEPA2","CEPA2",null,{"$f":"Questionnaire!M5","v":"TAB2.NAC"},{"$f":"Questionnaire!N5","v":"EPEA Table 2 - Monetary"},"EPEA1-5",{"$f":"D$131","v":"EP_SPE#S11_S12"},{"$f":"E$131","v":"EP_SPE#S11_S12"},"MIO_NAC","MIO_NAC","Full Number","1 decimal",null,null,null,null,null,null,null,null,null,null,null,null,"3 decimals"]
[null,{"$f":"Questionnaire!X6","v":"CEPA3"},{"$f":"Questionnaire!Y6","v":"CEPA 3"},"CEPA3","CEPA3",null,{"$f":"Questionnaire!M6","v":"TAB2.EMP"},{"$f":"Questionnaire!N6","v":"EPEA Table 2 - Employment"},"EPEA1-5",{"$f":"D$131","v":"EP_SPE#S11_S12"},{"$f":"E$131","v":"EP_SPE#S11_S12"},"FTE","FTE","Full Number","1 decimal",null,null,null,null,null,null,null,null,null,null,null,null,"4 decimals"]
[null,{"$f":"Questionnaire!X7","v":"CEPA4"},{"$f":"Questionnaire!Y7","v":"CEPA 4"},"CEPA4","CEPA4",null,{"$f":"Questionnaire!M7","v":"TAB3.NAC"},{"$f":"Questionnaire!N7","v":"EPEA Table 3 - Monetary"},"EPEA1-5",{"$f":"D$132","v":"EP_BSN#S11_S12"},{"$f":"E$132","v":"EP_BSN#S11_S12"},"MIO_NAC","MIO_NAC","Full Number","1 decimal",null,null,null,null,null,null,null,null,null,null,null,null,"5 decimals"]
[null,{"$f":"Questionnaire!X8","v":"CEPA5"},{"$f":"Questionnaire!Y8","v":"CEPA 5"},"CEPA5","CEPA5",null,{"$f":"Questionnaire!M8","v":"TAB3.EMP"},{"$f":"Questionnaire!N8","v":"EPEA Table 3 - Employment"},"EPEA1-5",{"$f":"D$132","v":"EP_BSN#S11_S12"},{"$f":"E$132","v":"EP_BSN#S11_S12"},"FTE","FTE","Full Number","1 decimal",null,null,null,null,null,null,null,null,null,null,null,null,"6 decimals"]
[null,{"$f":"Questionnaire!X9","v":"CEPA6"},{"$f":"Questionnaire!Y9","v":"CEPA 6"},"CEPA6","CEPA6",null,{"$f":"Questionnaire!M9","v":"TAB3a.NAC"},{"$f":"Questionnaire!N9","v":"EPEA Table 3a - Monetary"},"EPEA1-5",{"$f":"D$133","v":"B#S11_S12"},{"$f":"E$133","v":"B#S11_S12"},"MIO_NAC","MIO_NAC","Full Number","1 decimal",null,null,null,null,null,null,null,null,null,null,null,null,"7 decimals"]
[null,{"$f":"Questionnaire!X10","v":"CEPA7"},{"$f":"Questionnaire!Y10","v":"CEPA 7"},"CEPA7","CEPA7",null,{"$f":"Questionnaire!M10","v":"TAB3a.EMP"},{"$f":"Questionnaire!N10","v":"EPEA Table 3a - Employment"},"EPEA1-5",{"$f":"D$133","v":"B#S11_S12"},{"$f":"E$133","v":"B#S11_S12"},"FTE","FTE","Full Number","1 decimal",null,null,null,null,null,null,null,null,null,null,null,null,"Full Number"]
[null,{"$f":"Questionnaire!X11","v":"CEPA8"},{"$f":"Questionnaire!Y11","v":"CEPA 8"},"CEPA8","CEPA8",null,{"$f":"Questionnaire!M11","v":"TAB3b.NAC"},{"$f":"Questionnaire!N11","v":"EPEA Table 3b - Monetary"},"EPEA1-5",{"$f":"D$134","v":"C#S11_S12"},{"$f":"E$134","v":"C#S11_S12"},"MIO_NAC","MIO_NAC","Full Number","0 decimals"]
[null,{"$f":"Questionnaire!X12","v":"CEPA9"},{"$f":"Questionnaire!Y12","v":"CEPA 9"},"CEPA9","CEPA9",null,{"$f":"Questionnaire!M12","v":"TAB3b.EMP"},{"$f":"Questionnaire!N12","v":"EPEA Table 3b - Employment"},"EPEA1-5",{"$f":"D$134","v":"C#S11_S12"},{"$f":"E$134","v":"C#S11_S12"},"FTE","FTE","Full Number","0 decimals"]
[null,{"$f":"Questionnaire!X13","v":"CEPA7-9"},{"$f":"Questionnaire!Y13","v":"Sum of CEPA 7+8+9"},"CEPA7-9","CEPA7-9",null,{"$f":"Questionnaire!M13","v":"TAB3c.NAC"},{"$f":"Questionnaire!N13","v":"EPEA Table 3c - Monetary"},"EPEA1-5",{"$f":"D$135","v":"D#S11_S12"},{"$f":"E$135","v":"D#S11_S12"},"MIO_NAC","MIO_NAC","Full Number","1 decimal"]
[null,{"$f":"Questionnaire!X14","v":"TOT_CEPA"},{"$f":"Questionnaire!Y14","v":"TOT_CEPA"},null,null,null,{"$f":"Questionnaire!M14","v":"TAB3c.EMP"},{"$f":"Questionnaire!N14","v":"EPEA Table 3c - Employment"},"EPEA1-5",{"$f":"D$135","v":"D#S11_S12"},{"$f":"E$135","v":"D#S11_S12"},"FTE","FTE","Full Number","1 decimal"]
[null,{"$f":"Questionnaire!X15","v":"CREMA 11B_13C_14"},{"$f":"Questionnaire!Y15","v":"Materials recovery"},"CREMA11B_13C_14","CREMA11B_13C_14",null,{"$f":"Questionnaire!M15","v":"TAB3d.NAC"},{"$f":"Questionnaire!N15","v":"EPEA Table 3d - Monetary"},"EPEA1-5",{"$f":"D$136","v":"E36#S11_S12"},{"$f":"E$136","v":"E36#S11_S12"},"MIO_NAC","MIO_NAC","Full Number","1 decimal"]
[null,{"$f":"Questionnaire!X16","v":"CREMA 13A"},{"$f":"Questionnaire!Y16","v":"Production of energy  from renewable sources"},"CREMA13A","CREMA13A",null,{"$f":"Questionnaire!M16","v":"TAB3d.EMP"},{"$f":"Questionnaire!N16","v":"EPEA Table 3d - Employment"},"EPEA1-5",{"$f":"D$136","v":"E36#S11_S12"},{"$f":"E$136","v":"E36#S11_S12"},"FTE","FTE","Full Number","1 decimal"]
[null,{"$f":"Questionnaire!X17","v":"CREMA 13B"},{"$f":"Questionnaire!Y17","v":"Energy efficiency and savings"},"CREMA13B","CREMA13B",null,{"$f":"Questionnaire!M17","v":"TAB3e.NAC"},{"$f":"Questionnaire!N17","v":"EPEA Table 3e - Monetary"},"EPEA1-5",{"$f":"D$137","v":"A_EP_OTH#S11_S12"},{"$f":"E$137","v":"A_EP_OTH#S11_S12"},"MIO_NAC","MIO_NAC","Full Number","1 decimal"]
["Sector",{"$f":"Questionnaire!X18","v":"S13_S15"},{"$f":"Questionnaire!Y18","v":"Landscape"},"S13_S15","S13_S15",null,{"$f":"Questionnaire!M18","v":"TAB3e.EMP"},{"$f":"Questionnaire!N18","v":"EPEA Table 3e - Employment"},"EPEA1-5",{"$f":"D$137","v":"A_EP_OTH#S11_S12"},{"$f":"E$137","v":"A_EP_OTH#S11_S12"},"FTE","FTE","Full Number","1 decimal"]
[null,{"$f":"Questionnaire!X19","v":"S11_S12"},{"$f":"Questionnaire!Y19","v":"Corporations"},"S11_S12","S11_S12",null,{"$f":"Questionnaire!M19","v":"TAB4"},{"$f":"Questionnaire!N19","v":"EPEA Table 4"},"EPEA1-5",{"$f":"D$138","v":"TOTAL#S1"},{"$f":"E$138","v":"TOTAL#S1"},"MIO_NAC","MIO_NAC","Full Number","1 decimal"]
[null,{"$f":"Questionnaire!X20","v":"S14"},{"$f":"Questionnaire!Y20","v":"Households"},"S14","S14",null,{"$f":"Questionnaire!M20","v":"TAB5"},{"$f":"Questionnaire!N20","v":"EPEA Table 5"},"EPEA1-5",{"$f":"D$139","v":"TOTAL_HH#S14"},{"$f":"E$139","v":"TOTAL_HH#S14"},"MIO_NAC","MIO_NAC","Full Number","1 decimal"]
[null,{"$f":"Questionnaire!X21","v":"S1"},{"$f":"Questionnaire!Y21","v":"TOTAL Economy"},"S1","S1",null,{"$f":"Questionnaire!M21","v":"TAB6"},{"$f":"Questionnaire!N21","v":"EPEA Table 6"},"EPEA6",null,null,"MIO_NAC","MIO_NAC","Full Number","1 decimal"]
["Nace codes for table 3b_Add_*",{"$f":"Questionnaire!X22","v":"C10-C12"},{"$f":"Questionnaire!Y22","v":"Manufacture of food, beverages and tobacco products"},"C10-C12","C10-C12",null,{"$f":"Questionnaire!M22","v":"TAB7"},{"$f":"Questionnaire!N22","v":"EPEA Table 7"},"EPEA1-5",{"$f":"D141","v":"TOTAL_HH#S1"},"TOTAL_HH#S1","MIO_NAC","MIO_NAC","Full Number","0 decimals"]
[null,{"$f":"Questionnaire!X23","v":"C17"},{"$f":"Questionnaire!Y23","v":"Manufacture of paper and paper products"},"C17","C17",null,{"$f":"Questionnaire!M23","v":"TAB7.GG"},{"$f":"Questionnaire!N23","v":"EPEA Table 7.GG"},"EPEA1-5","TOTAL#S13_S15","TOTAL#S13_S15","MIO_NAC","MIO_NAC","Full Number","0 decimals"]
[null,{"$f":"Questionnaire!X24","v":"C19_C20"},{"$f":"Questionnaire!Y24","v":"Manufacture of coke, chemicals and refined petroleum and chemical products"},"C19_C20","C19_C20",null,{"$f":"Questionnaire!M24","v":"TAB7.CORP"},{"$f":"Questionnaire!N24","v":"EPEA Table 7.CORP"},"EPEA1-5","TOTAL#S11_S12","TOTAL#S11_S12","MIO_NAC","MIO_NAC","Full Number","0 decimals"]
[null,{"$f":"Questionnaire!X25","v":"C21-C23"},{"$f":"Questionnaire!Y25","v":"Manufacture of pharmaceuticals, rubber, plastic and other non-metallic products"},"C21-C23","C21-C23",null,{"$f":"Questionnaire!M25","v":"TAB7.HH"},{"$f":"Questionnaire!N25","v":"EPEA Table 7.HH"},"EPEA1-5","TOTAL#S14","TOTAL#S14","MIO_NAC","MIO_NAC","Full Number","0 decimals"]
[null,{"$f":"Questionnaire!X26","v":"C24"},{"$f":"Questionnaire!Y26","v":"Manufacture of basic metals"},"C24","C24",null,{"$f":"Questionnaire!M26","v":"TAB8.1"},{"$f":"Questionnaire!N26","v":"EPEA Table 8.1"},"EPEA1-5","TOTAL#S13_S15","TOTAL#S13_S15","MIO_NAC","MIO_NAC","Full Number","0 decimals"]
[null,{"$f":"Questionnaire!X27","v":"C25-C30"},{"$f":"Questionnaire!Y27","v":"Manufacture of fabricated metal products, including machinery and equipment"},"C25-C30","C25-C30",null,{"$f":"Questionnaire!M27","v":"TAB8.2"},{"$f":"Questionnaire!N27","v":"EPEA Table 8.2"},"EPEA1-5","EP_SPE#S11_S12","EP_SPE#S11_S12","MIO_NAC","MIO_NAC","Full Number","0 decimals"]
[null,{"$f":"Questionnaire!X28","v":"C13-C16_C18_C31-C33"},{"$f":"Questionnaire!Y28","v":"Other manufacturing activities"},"C13-C16_C18_C31-C33","C13-C16_C18_C31-C33",null,{"$f":"Questionnaire!M28","v":"TAB8.3"},{"$f":"Questionnaire!N28","v":"EPEA Table 8.3"},"EPEA1-5","EP_BSN#S11_S12","EP_BSN#S11_S12","MIO_NAC","MIO_NAC","Full Number","0 decimals"]
["Nace codes for table 8.3_Add_*",{"$f":"Questionnaire!X29","v":"B"},{"$f":"Questionnaire!Y29","v":"Mining and Quarring"},"B","B",null,{"$f":"Questionnaire!M29","v":"TAB3b_2014.NAC"},{"$f":"Questionnaire!N29","v":"EPEA Table 3b_Add 2014 - Monetary"},"EPEAperYear",2014,2014,"MIO_NAC","MIO_NAC","Full Number","0 decimals"]
[null,{"$f":"Questionnaire!X30","v":"C"},{"$f":"Questionnaire!Y30","v":"Manufacturing"},"C","C",null,{"$f":"Questionnaire!M30","v":"TAB3b_2014.EMP"},{"$f":"Questionnaire!N30","v":"EPEA Table 3b_Add 2014 - Employment"},"EPEAperYear",2014,2014,"FTE","FTE","Full Number","0 decimals"]
[null,{"$f":"Questionnaire!X31","v":"D"},{"$f":"Questionnaire!Y31","v":"Electricity, gas, steam and air conditionning supply"},"D","D",null,{"$f":"Questionnaire!M31","v":"TAB3b_2015.NAC"},{"$f":"Questionnaire!N31","v":"EPEA Table 3b_Add 2015 - Monetary"},"EPEAperYear",{"$f":"J29+1","v":2015},2015,"MIO_NAC","MIO_NAC","Full Number","0 decimals"]
[null,{"$f":"Questionnaire!X32","v":"E36"},{"$f":"Questionnaire!Y32","v":"Water supply"},"E36","E36",null,{"$f":"Questionnaire!M32","v":"TAB3b_2015.EMP"},{"$f":"Questionnaire!N32","v":"EPEA Table 3b_Add 2015 - Employment"},"EPEAperYear",2015,2015,"FTE","FTE","Full Number","0 decimals"]
[null,{"$f":"Questionnaire!X33","v":"A_EP_OTH"},{"$f":"Questionnaire!Y33","v":"OTHER NACE"},"A_EP_OTH","A_EP_OTH",null,{"$f":"Questionnaire!M33","v":"TAB3b_2016.NAC"},{"$f":"Questionnaire!N33","v":"EPEA Table 3b_Add 2016 - Monetary"},"EPEAperYear",2016,2016,"MIO_NAC","MIO_NAC","Full Number","0 decimals"]
[null,{"$f":"Questionnaire!X34","v":"OFWHICH"},{"$f":"Questionnaire!Y34","v":"OFWHICH"},null,null,null,{"$f":"Questionnaire!M34","v":"TAB3b_2016.EMP"},{"$f":"Questionnaire!N34","v":"EPEA Table 3b_Add 2016 - Employment"},"EPEAperYear",2016,2016,"FTE","FTE","Full Number","0 decimals"]
[null,{"$f":"Questionnaire!X35","v":"A"},{"$f":"Questionnaire!Y35","v":"Agriculture, forestry and fishing"},"A","A",null,{"$f":"Questionnaire!M35","v":"TAB3b_2017.NAC"},{"$f":"Questionnaire!N35","v":"EPEA Table 3b_Add 2017 - Monetary"},"EPEAperYear",2017,2017,"MIO_NAC","MIO_NAC","Full Number","0 decimals"]
[null,{"$f":"Questionnaire!X36","v":"E3739"},{"$f":"Questionnaire!Y36","v":"Sewerage: waste management and remendiation activities"},"E37-E39","E37-E39",null,{"$f":"Questionnaire!M36","v":"TAB3b_2017.EMP"},{"$f":"Questionnaire!N36","v":"EPEA Table 3b_Add 2017 - Employment"},"EPEAperYear",2017,2017,"FTE","FTE","Full Number","0 decimals"]
[null,{"$f":"Questionnaire!X37","v":"F"},{"$f":"Questionnaire!Y37","v":"Construction"},"F","F",null,{"$f":"Questionnaire!M37","v":"TAB3b_2018.NAC"},{"$f":"Questionnaire!N37","v":"EPEA Table 3b_Add 2018 - Monetary"},"EPEAperYear",2018,2018,"MIO_NAC","MIO_NAC","Full Number","0 decimals"]
[null,{"$f":"Questionnaire!X38","v":"H"},{"$f":"Questionnaire!Y38","v":"Transportation and storage"},"H","H",null,{"$f":"Questionnaire!M38","v":"TAB3b_2018.EMP"},{"$f":"Questionnaire!N38","v":"EPEA Table 3b_Add 2018 - Employment"},"EPEAperYear",2018,2018,"FTE","FTE","Full Number","0 decimals"]
[null,{"$f":"Questionnaire!X39","v":"L"},{"$f":"Questionnaire!Y39","v":"Real estate activities"},"L","L",null,{"$f":"Questionnaire!M39","v":"TAB3b_2019.NAC"},{"$f":"Questionnaire!N39","v":"EPEA Table 3b_Add 2019 - Monetary"},"EPEAperYear",{"$f":"J37+1","v":2019},2019,"MIO_NAC","MIO_NAC","Full Number","0 decimals"]
["Nace codes for table Constants",{"$f":"Questionnaire!X40","v":"TOTAL"},{"$f":"Questionnaire!Y40","v":"General government and NPISH"},"TOTAL","TOTAL",null,{"$f":"Questionnaire!M40","v":"TAB3b_2019.EMP"},{"$f":"Questionnaire!N40","v":"EPEA Table 3b_Add 2019 - Employment"},"EPEAperYear",{"$f":"J38+1","v":2019},2019,"FTE","FTE","Full Number","0 decimals"]
[null,{"$f":"Questionnaire!X41","v":"TOTAL_HH"},{"$f":"Questionnaire!Y41","v":"Households"},"TOTAL_HH","TOTAL_HH",null,{"$f":"Questionnaire!M41","v":"TAB3b_2020.NAC"},{"$f":"Questionnaire!N41","v":"EPEA Table 3b_Add 2020 - Monetary"},"EPEAperYear",2020,2020,"MIO_NAC","MIO_NAC","Full Number","0 decimals"]
[null,{"$f":"Questionnaire!X42","v":"T2/EP_SPE"},{"$f":"Questionnaire!Y42","v":"Corporations as specialist and secondary producers of market EP services"},"EP_SPE","EP_SPE",null,{"$f":"Questionnaire!M42","v":"TAB3b_2020.EMP"},{"$f":"Questionnaire!N42","v":"EPEA Table 3b_Add 2020 - Employment"},"EPEAperYear",2020,2020,"FTE","FTE","Full Number","0 decimals"]
[null,{"$f":"Questionnaire!X43","v":"T3/EP_BUS"},{"$f":"Questionnaire!Y43","v":"Corporations: other (also covering producers of ancillary EP services):  total"},"EP_BSN","EP_BSN",null,{"$f":"Questionnaire!M43","v":"TAB3b_2021.NAC"},{"$f":"Questionnaire!N43","v":"EPEA Table 3b_Add 2021 - Monetary"},"EPEAperYear",2021,2021,"MIO_NAC","MIO_NAC","Full Number","0 decimals"]
[null,{"$f":"Questionnaire!X44","v":"T3a/B"},{"$f":"Questionnaire!Y44","v":"Corporations: other (also covering producers of ancillary EP services):  NACE Rev. 2 B"},"B","B",null,{"$f":"Questionnaire!M44","v":"TAB3b_2021.EMP"},{"$f":"Questionnaire!N44","v":"EPEA Table 3b_Add 2021 - Employment"},"EPEAperYear",2021,2021,"FTE","FTE","Full Number","0 decimals"]
[null,{"$f":"Questionnaire!X45","v":"T3b/C"},{"$f":"Questionnaire!Y45","v":"Corporations: other (also covering producers of ancillary EP services):  NACE Rev. 2 C"},"C","C",null,{"$f":"Questionnaire!M45","v":"TAB3b_2022.NAC"},{"$f":"Questionnaire!N45","v":"EPEA Table 3b_Add 2022 - Monetary"},"EPEAperYear",2022,2022,"MIO_NAC","MIO_NAC","Full Number","0 decimals"]
[null,{"$f":"Questionnaire!X46","v":"T3c/D"},{"$f":"Questionnaire!Y46","v":"Corporations: other (also covering producers of ancillary EP services):  NACE Rev. 2 D"},"D","D",null,{"$f":"Questionnaire!M46","v":"TAB3b_2022.EMP"},{"$f":"Questionnaire!N46","v":"EPEA Table 3b_Add 2022 - Employment"},"EPEAperYear",2022,2022,"FTE","FTE","Full Number","0 decimals"]
[null,{"$f":"Questionnaire!X47","v":"T3d/E36"},{"$f":"Questionnaire!Y47","v":"Corporations: other (also covering producers of ancillary EP services):  NACE Rev. E36"},"E36","E36",null,{"$f":"Questionnaire!M47","v":"TAB3b_2023.NAC"},{"$f":"Questionnaire!N47","v":"EPEA Table 3b_Add 2023 - Monetary"},"EPEAperYear",2023,2023,"MIO_NAC","MIO_NAC","Full Number","0 decimals"]
[null,{"$f":"Questionnaire!X48","v":"T3e/A_EP_OTH"},{"$f":"Questionnaire!Y48","v":"Corporations: other (also covering producers of ancillary EP services):  other NACE"},"A_EP_OTH","A_EP_OTH",null,{"$f":"Questionnaire!M48","v":"TAB3b_2023.EMP"},{"$f":"Questionnaire!N48","v":"EPEA Table 3b_Add 2023 - Employment"},"EPEAperYear",2023,2023,"FTE","FTE","Full Number","0 decimals"]
["Empl.",{"$f":"Questionnaire!X49","v":"EMP"},{"$f":"Questionnaire!Y49","v":"Employment (Full time equivalents)"},"EPS_EMP","EPS_EMP",null,{"$f":"Questionnaire!M49","v":"TAB3b_2024.NAC"},{"$f":"Questionnaire!N49","v":"EPEA Table 3b_Add 2024 - Monetary"},"EPEAperYear",2024,2024,"MIO_NAC","MIO_NAC","Full Number","0 decimals"]
["Indicator Table 1",{"$f":"Questionnaire!X50","v":"P51G_NP.1"},{"$f":"Questionnaire!Y50","v":"Gross fixed capital formation and acquisition less disposals of non-financial non-produced assets"},"EPS_P51G_NP","EPS_P51G_NP",null,{"$f":"Questionnaire!M50","v":"TAB3b_2024.EMP"},{"$f":"Questionnaire!N50","v":"EPEA Table 3b_Add 2024 - Employment"},"EPEAperYear",2024,2024,"FTE","FTE","Full Number","0 decimals"]
[null,{"$f":"Questionnaire!X51","v":"P2.1"},{"$f":"Questionnaire!Y51","v":"Total intermediate consumption"},"EPS_P2","EPS_P2",null,{"$f":"Questionnaire!M51","v":"TAB3b_2025.NAC"},{"$f":"Questionnaire!N51","v":"EPEA Table 3b_Add 2025 - Monetary"},"EPEAperYear",2025,2025,"MIO_NAC","MIO_NAC","Full Number","0 decimals"]
[null,{"$f":"Questionnaire!X52","v":"P2_EPS.1"},{"$f":"Questionnaire!Y52","v":"Intermediate consumption of EP services "},"EPS_P2_EPS","EPS_P2_EPS",null,{"$f":"Questionnaire!M52","v":"TAB3b_2025.EMP"},{"$f":"Questionnaire!N52","v":"EPEA Table 3b_Add 2025 - Employment"},"EPEAperYear",2025,2025,"FTE","FTE","Full Number","0 decimals"]
[null,{"$f":"Questionnaire!X53","v":"P2_NEPS.1"},{"$f":"Questionnaire!Y53","v":"Intermediate consumption (excluding EP services) "},"EPS_P2_NEPS","EPS_P2_NEPS",null,{"$f":"Questionnaire!M53","v":"TAB3b_2026.NAC"},{"$f":"Questionnaire!N53","v":"EPEA Table 3b_Add 2026 - Monetary"},"EPEAperYear",2026,2026,"MIO_NAC","MIO_NAC","Full Number","0 decimals"]
[null,{"$f":"Questionnaire!X54","v":"D1.1"},{"$f":"Questionnaire!Y54","v":"Compensation of employees"},"EPS_D1","EPS_D1",null,{"$f":"Questionnaire!M54","v":"TAB3b_2026.EMP"},{"$f":"Questionnaire!N54","v":"EPEA Table 3b_Add 2026 - Employment"},"EPEAperYear",2026,2026,"FTE","FTE","Full Number","0 decimals"]
[null,{"$f":"Questionnaire!X55","v":"ICE.1"},{"$f":"Questionnaire!Y55","v":"Internal current expenditure ((P2_NEPS.1) + (D1.1))   "},"EPS_CUR_IN","EPS_CUR_IN",null,{"$f":"Questionnaire!M55","v":"TAB3b_2027.NAC"},{"$f":"Questionnaire!N55","v":"EPEA Table 3b_Add 2027 - Monetary"},"EPEAperYear",2027,2027,"MIO_NAC","MIO_NAC","Full Number","0 decimals"]
[null,{"$f":"Questionnaire!X56","v":"D29-D39.1"},{"$f":"Questionnaire!Y56","v":"Other taxes less subsidies on production"},"EPS_D29X39","EPS_D29X39",null,{"$f":"Questionnaire!M56","v":"TAB3b_2027.EMP"},{"$f":"Questionnaire!N56","v":"EPEA Table 3b_Add 2027 - Employment"},"EPEAperYear",{"$f":"J54+1","v":2027},2027,"FTE","FTE","Full Number","0 decimals"]
[null,{"$f":"Questionnaire!X57","v":"P51C.1"},{"$f":"Questionnaire!Y57","v":"Consumption of fixed capital"},"EPS_P51C","EPS_P51C",null,{"$f":"Questionnaire!M57","v":"TAB3b_2028.NAC"},{"$f":"Questionnaire!N57","v":"EPEA Table 3b_Add 2028 - Monetary"},"EPEAperYear",2028,2028,"MIO_NAC","MIO_NAC","Full Number","0 decimals"]
[null,{"$f":"Questionnaire!X58","v":"B2N.1"},{"$f":"Questionnaire!Y58","v":"Net operating surplus ((P1.1) + (RNO.1) - (P2.1) - (D1.1) - (P51C.1) - (D29-D39.1))"},"EPS_B2N","EPS_B2N",null,{"$f":"Questionnaire!M58","v":"TAB3b_2028.EMP"},{"$f":"Questionnaire!N58","v":"EPEA Table 3b_Add 2028 - Employment"},"EPEAperYear",2028,2028,"FTE","FTE","Full Number","0 decimals"]
[null,{"$f":"Questionnaire!X59","v":"P1.1"},{"$f":"Questionnaire!Y59","v":"Total output of EP services ((P13.1) + (P11.1))"},"EPS_P1","EPS_P1",null,{"$f":"Questionnaire!M59","v":"TAB3b_2029.NAC"},{"$f":"Questionnaire!N59","v":"EPEA Table 3b_Add 2029 - Monetary"},"EPEAperYear",2029,2029,"MIO_NAC","MIO_NAC","Full Number","0 decimals"]
[null,{"$f":"Questionnaire!X60","v":"P11.1"},{"$f":"Questionnaire!Y60","v":"Market output of EP services (Includes P.11 (market output) of general government and NPISH local KAUs that are market producers)"},"EPS_P11","EPS_P11",null,{"$f":"Questionnaire!M60","v":"TAB3b_2029.EMP"},{"$f":"Questionnaire!N60","v":"EPEA Table 3b_Add 2029 - Employment"},"EPEAperYear",2029,2029,"FTE","FTE","Full Number","0 decimals"]
[null,{"$f":"Questionnaire!X61","v":"P13.1"},{"$f":"Questionnaire!Y61","v":"Non-market output of EP services (Includes P.131 (payments for non-market output))"},"EPS_P13","EPS_P13",null,{"$f":"Questionnaire!M61","v":"TAB3b_2030.NAC"},{"$f":"Questionnaire!N61","v":"EPEA Table 3b_Add 2030 - Monetary"},"EPEAperYear",2030,2030,"MIO_NAC","MIO_NAC","Full Number","0 decimals"]
[null,{"$f":"Questionnaire!X62","v":"RNO.1"},{"$f":"Questionnaire!Y62","v":"Related non-EP output"},"EPS_REC_BYPR","EPS_REC_BYPR",null,{"$f":"Questionnaire!M62","v":"TAB3b_2030.EMP"},{"$f":"Questionnaire!N62","v":"EPEA Table 3b_Add 2030 - Employment"},"EPEAperYear",2030,2030,"FTE","FTE","Full Number","0 decimals"]
[null,{"$f":"Questionnaire!X63","v":"P3_EPS.1"},{"$f":"Questionnaire!Y63","v":"Final consumption of EP services ((P13.1) less P.131 (payments for non-market output))"},"P3_EPS","P3_EPS",null,{"$f":"Questionnaire!M63","v":"TAB3b_2031.NAC"},{"$f":"Questionnaire!N63","v":"EPEA Table 3b_Add 2031 - Monetary"},"EPEAperYear",2031,2031,"MIO_NAC","MIO_NAC","Full Number","0 decimals"]
[null,{"$f":"Questionnaire!X64","v":"P2_EPS_EXT.1"},{"$f":"Questionnaire!Y64","v":"Total intermediate consumption of EP services (for production of EP services and for other production)"},"TOT_P2_EPS","TOT_P2_EPS",null,{"$f":"Questionnaire!M64","v":"TAB3b_2031.EMP"},{"$f":"Questionnaire!N64","v":"EPEA Table 3b_Add 2031 - Employment"},"EPEAperYear",2031,2031,"FTE","FTE","Full Number","0 decimals"]
["Indicator Table 2",{"$f":"Questionnaire!X65","v":"P51G_NP.2"},{"$f":"Questionnaire!Y65","v":"Gross fixed capital formation and acquisition less disposals of non-financial non-produced assets"},"EPS_P51G_NP","EPS_P51G_NP",null,{"$f":"Questionnaire!M65","v":"TAB8.3_2014.NAC"},{"$f":"Questionnaire!N65","v":"EPEA Table 8.3_Add 2014 - Monetary"},"EPEAperYear",2014,2014,"MIO_NAC","MIO_NAC","Full Number","0 decimals"]
[null,{"$f":"Questionnaire!X66","v":"P2.2"},{"$f":"Questionnaire!Y66","v":"Total intermediate consumption"},"EPS_P2","EPS_P2",null,{"$f":"Questionnaire!M66","v":"TAB8.3_2015.NAC"},{"$f":"Questionnaire!N66","v":"EPEA Table 8.3_Add 2015 - Monetary"},"EPEAperYear",{"$f":"J65+1","v":2015},{"$f":"K65+1","v":2015},"MIO_NAC","MIO_NAC","Full Number","0 decimals"]
[null,{"$f":"Questionnaire!X67","v":"P2_EPS.2"},{"$f":"Questionnaire!Y67","v":"Intermediate consumption of EP services "},"EPS_P2_EPS","EPS_P2_EPS",null,{"$f":"Questionnaire!M67","v":"TAB8.3_2016.NAC"},{"$f":"Questionnaire!N67","v":"EPEA Table 8.3_Add 2016 - Monetary"},"EPEAperYear",{"$f":"J66+1","v":2016},2016,"MIO_NAC","MIO_NAC","Full Number","0 decimals"]
[null,{"$f":"Questionnaire!X68","v":"P2_EPS_SP.2"},{"$f":"Questionnaire!Y68","v":"of which: Intermediate consumption of EP services by specialist producers "},"EPS_P2_EPS_SP","EPS_P2_EPS_SP",null,{"$f":"Questionnaire!M68","v":"TAB8.3_2017.NAC"},{"$f":"Questionnaire!N68","v":"EPEA Table 8.3_Add 2017 - Monetary"},"EPEAperYear",2017,2017,"MIO_NAC","MIO_NAC","Full Number","0 decimals"]
[null,{"$f":"Questionnaire!X69","v":"P2_NEPS.2"},{"$f":"Questionnaire!Y69","v":"Intermediate consumption (excluding EP services) "},"EPS_P2_NEPS","EPS_P2_NEPS",null,{"$f":"Questionnaire!M69","v":"TAB8.3_2018.NAC"},{"$f":"Questionnaire!N69","v":"EPEA Table 8.3_Add 2018 - Monetary"},"EPEAperYear",2018,2018,"MIO_NAC","MIO_NAC","Full Number","0 decimals"]
[null,{"$f":"Questionnaire!X70","v":"D1.2"},{"$f":"Questionnaire!Y70","v":"Compensation of employees"},"EPS_D1","EPS_D1",null,{"$f":"Questionnaire!M70","v":"TAB8.3_2019.NAC"},{"$f":"Questionnaire!N70","v":"EPEA Table 8.3_Add 2019 - Monetary"},"EPEAperYear",2019,2019,"MIO_NAC","MIO_NAC","Full Number","0 decimals"]
[null,{"$f":"Questionnaire!X71","v":"ICE.2"},{"$f":"Questionnaire!Y71","v":"Internal current expenditure ((P2_NEPS.2) + (D1.2))   \n"},"EPS_CUR_IN","EPS_CUR_IN",null,{"$f":"Questionnaire!M71","v":"TAB8.3_2020.NAC"},{"$f":"Questionnaire!N71","v":"EPEA Table 8.3_Add 2020 - Monetary"},"EPEAperYear",2020,2020,"MIO_NAC","MIO_NAC","Full Number","0 decimals"]
[null,{"$f":"Questionnaire!X72","v":"D29-D39.2"},{"$f":"Questionnaire!Y72","v":"Other taxes less subsidies on production"},"EPS_D29X39","EPS_D29X39",null,{"$f":"Questionnaire!M72","v":"TAB8.3_2021.NAC"},{"$f":"Questionnaire!N72","v":"EPEA Table 8.3_Add 2021 - Monetary"},"EPEAperYear",2021,2021,"MIO_NAC","MIO_NAC","Full Number","0 decimals"]
[null,{"$f":"Questionnaire!X73","v":"P51C.2"},{"$f":"Questionnaire!Y73","v":"Consumption of fixed capital"},"EPS_P51C","EPS_P51C",null,{"$f":"Questionnaire!M73","v":"TAB8.3_2022.NAC"},{"$f":"Questionnaire!N73","v":"EPEA Table 8.3_Add 2022 - Monetary"},"EPEAperYear",2022,2022,"MIO_NAC","MIO_NAC","Full Number","0 decimals"]
[null,{"$f":"Questionnaire!X74","v":"B2N.2"},{"$f":"Questionnaire!Y74","v":"Net operating surplus ((P11.2) + (RNO.2) - (P2.2) - (D1.2) - (P51C.2) - (D29-D39.2))"},"EPS_B2N","EPS_B2N",null,{"$f":"Questionnaire!M74","v":"TAB8.3_2023.NAC"},{"$f":"Questionnaire!N74","v":"EPEA Table 8.3_Add 2023 - Monetary"},"EPEAperYear",2023,2023,"MIO_NAC","MIO_NAC","Full Number","0 decimals"]
[null,{"$f":"Questionnaire!X75","v":"P11.2"},{"$f":"Questionnaire!Y75","v":"Market output of EP services ((P11_MA.2) + (P11_SA.2.))"},"EPS_P11","EPS_P11",null,{"$f":"Questionnaire!M75","v":"TAB8.3_2024.NAC"},{"$f":"Questionnaire!N75","v":"EPEA Table 8.3_Add 2024 - Monetary"},"EPEAperYear",2024,2024,"MIO_NAC","MIO_NAC","Full Number","0 decimals"]
[null,{"$f":"Questionnaire!X76","v":"P11_MA.2"},{"$f":"Questionnaire!Y76","v":"Market output of EP services (from the main activity)"},"EPS_P11_MA","EPS_P11_MA",null,{"$f":"Questionnaire!M76","v":"TAB8.3_2025.NAC"},{"$f":"Questionnaire!N76","v":"EPEA Table 8.3_Add 2025 - Monetary"},"EPEAperYear",2025,2025,"MIO_NAC","MIO_NAC","Full Number","0 decimals"]
[null,{"$f":"Questionnaire!X77","v":"P11_SA.2"},{"$f":"Questionnaire!Y77","v":"Market output of EP services (from secondary activities)"},"EPS_P11_SA","EPS_P11_SA",null,{"$f":"Questionnaire!M77","v":"TAB8.3_2026.NAC"},{"$f":"Questionnaire!N77","v":"EPEA Table 8.3_Add 2026 - Monetary"},"EPEAperYear",2026,2026,"MIO_NAC","MIO_NAC","Full Number","0 decimals"]
[null,{"$f":"Questionnaire!X78","v":"RNO.2"},{"$f":"Questionnaire!Y78","v":"Related non-EP output"},"EPS_REC_BYPR","EPS_REC_BYPR",null,{"$f":"Questionnaire!M78","v":"TAB8.3_2027.NAC"},{"$f":"Questionnaire!N78","v":"EPEA Table 8.3_Add 2027 - Monetary"},"EPEAperYear",2027,2027,"MIO_NAC","MIO_NAC","Full Number","0 decimals"]
[null,{"$f":"Questionnaire!X79","v":"P2_EPS_EXT.2"},{"$f":"Questionnaire!Y79","v":"Total intermediate consumption of EP services (for production of EP services and for other production)"},"TOT_P2_EPS","TOT_P2_EPS",null,{"$f":"Questionnaire!M79","v":"TAB8.3_2028.NAC"},{"$f":"Questionnaire!N79","v":"EPEA Table 8.3_Add 2028 - Monetary"},"EPEAperYear",2028,2028,"MIO_NAC","MIO_NAC","Full Number","0 decimals"]
["Indicator Table 3*",{"$f":"Questionnaire!X80","v":"P51G_NP.3"},{"$f":"Questionnaire!Y80","v":"Gross fixed capital formation and acquisition less disposals of non-financial, non-produced assets"},"EPS_P51G_NP","EPS_P51G_NP",null,{"$f":"Questionnaire!M80","v":"TAB8.3_2029.NAC"},{"$f":"Questionnaire!N80","v":"EPEA Table 8.3_Add 2029 - Monetary"},"EPEAperYear",2029,2029,"MIO_NAC","MIO_NAC","Full Number","0 decimals"]
[null,{"$f":"Questionnaire!X81","v":"INV_EOP.3"},{"$f":"Questionnaire!Y81","v":"GFCF on specific EP fixed assets (end-of-pipe technologies)"},"EPS_INV_PT","EPS_INV_PT",null,{"$f":"Questionnaire!M81","v":"TAB8.3_2030.NAC"},{"$f":"Questionnaire!N81","v":"EPEA Table 8.3_Add 2030 - Monetary"},"EPEAperYear",2030,2030,"MIO_NAC","MIO_NAC","Full Number","0 decimals"]
[null,{"$f":"Questionnaire!X82","v":"INV_IT.3"},{"$f":"Questionnaire!Y82","v":"GFCF on cleaner EP fixed assets (integrated technologies)"},"EPS_INV_PP","EPS_INV_PP",null,{"$f":"Questionnaire!M82","v":"TAB8.3_2031.NAC"},{"$f":"Questionnaire!N82","v":"EPEA Table 8.3_Add 2031 - Monetary"},"EPEAperYear",2031,2031,"MIO_NAC","MIO_NAC","Full Number","0 decimals"]
[null,{"$f":"Questionnaire!X83","v":"P2.3"},{"$f":"Questionnaire!Y83","v":"Total Intermediate consumption"},"EPS_P2","EPS_P2"]
[null,{"$f":"Questionnaire!X84","v":"P2_EPS.3"},{"$f":"Questionnaire!Y84","v":"Intermediate consumption of EP services"},"EPS_P2_EPS","EPS_P2_EPS"]
[null,{"$f":"Questionnaire!X85","v":"P2_NEPS.3"},{"$f":"Questionnaire!Y85","v":"Intermediate consumption (excluding EP services)"},"EPS_P2_NEPS","EPS_P2_NEPS"]
[null,{"$f":"Questionnaire!X86","v":"D1.3"},{"$f":"Questionnaire!Y86","v":"Compensation of employees"},"EPS_D1","EPS_D1"]
[null,{"$f":"Questionnaire!X87","v":"P1_ANC.3"},{"$f":"Questionnaire!Y87","v":"Ancillary EP output (simplified valuation legally acceptable) ((P2_NEPS.3) + (D1.3))"},"EPS_P1_ANC","EPS_P1_ANC"]
[null,{"$f":"Questionnaire!X88","v":"D29-D39.3"},{"$f":"Questionnaire!Y88","v":"Other taxes less subsidies on production"},"EPS_D29X39","EPS_D29X39"]
[null,{"$f":"Questionnaire!X89","v":"P51C.3"},{"$f":"Questionnaire!Y89","v":"Consumption of fixed capital"},"EPS_P51C","EPS_P51C"]
[null,{"$f":"Questionnaire!X90","v":"P1_ANC_ESA.3"},{"$f":"Questionnaire!Y90","v":"Ancillary EP output (ESA-compatible output) ((P2_NEPS.3) + (D1.3) + (P51C.3) + (D29-D39.3))"},"EPS_P1_ANCESA","EPS_P1_ANCESA"]
[null,{"$f":"Questionnaire!X91","v":"RNO.3"},{"$f":"Questionnaire!Y91","v":"Related non-EP output"},"EPS_REC_BYPR","EPS_REC_BYPR"]
[null,{"$f":"Questionnaire!X92","v":"P2_EPS_EXT.3"},{"$f":"Questionnaire!Y92","v":"Total intermediate consumption of EP services (for production of EP services and for other production)"},"TOT_P2_EPS","TOT_P2_EPS"]
["Indicator Table 4",{"$f":"Questionnaire!X93","v":"P1.4"},{"$f":"Questionnaire!Y93","v":"Total output of EP services (P11.4 + P1_ANC.4 + P13.4)"},"EPS_P1","EPS_P1"]
[null,{"$f":"Questionnaire!X94","v":"P11.4"},{"$f":"Questionnaire!Y94","v":"Market output of EP services (= P11.1 + P11.2)"},"EPS_P11","EPS_P11"]
[null,{"$f":"Questionnaire!X95","v":"P1_ANC.4"},{"$f":"Questionnaire!Y95","v":"Ancillary EP output (= P1_ANC.3)"},"EPS_P1_ANC","EPS_P1_ANC"]
[null,{"$f":"Questionnaire!X96","v":"P13.4"},{"$f":"Questionnaire!Y96","v":"Non-market output of EP services (=P13.1)"},"EPS_P13","EPS_P13"]
[null,{"$f":"Questionnaire!X97","v":"P2_EPS.4"},{"$f":"Questionnaire!Y97","v":"Intermediate consumption of EP services by specialist producers (Intermediate consumption of EP services of corporations specialist producers and of general government' units as producers of EP services )"},"EPS_P2_EPS","EPS_P2_EPS"]
[null,{"$f":"Questionnaire!X98","v":"P7.4"},{"$f":"Questionnaire!Y98","v":"Imports of EP services"},"P7_EPS","P7_EPS"]
[null,{"$f":"Questionnaire!X99","v":"P6.4"},{"$f":"Questionnaire!Y99","v":"Exports of EP services"},"P6_EPS","P6_EPS"]
[null,{"$f":"Questionnaire!X100","v":"D21-D31.4"},{"$f":"Questionnaire!Y100","v":"VAT and other taxes less subsidies on EP services"},"EPS_D21X31","EPS_D21X31"]
[null,{"$f":"Questionnaire!X101","v":"SUP_NU.4"},{"$f":"Questionnaire!Y101","v":"Environmental protection supply at purchasers' prices available to resident users (= P1.4 - P2_EPS_SP.4 + P7.4 - P6.4 + D21-D31.4)"},"EPS_SUP_NU","EPS_SUP_NU"]
["Ind.\n Tab. 5",{"$f":"Questionnaire!X102","v":"P3_EPS.5"},{"$f":"Questionnaire!Y102","v":"Final consumption of EP services"},"P3_EPS","P3_EPS"]
[null,{"$f":"Questionnaire!X103","v":"P3_ACP_ec.5"},{"$f":"Questionnaire!Y103","v":"Final consumption of EP/RM products other than EP services and other than RM characteristic products (cleaner/resource efficient goods) - EXTRA COST"},"P3_CREP_EC","P3_CREP_EC"]
[null,{"$f":"Questionnaire!X104","v":"P3_ACP_fc.5"},{"$f":"Questionnaire!Y104","v":"Final consumption of EP/RM products other than EP services and other than RM characteristic products (cleaner/resource efficient goods) - FULL COST"},"P3_CREP_FC","P3_CREP_FC"]
["Indicator Table 6",{"$f":"Questionnaire!X105","v":"D3_D7_D92_D99_PAY_GG.6"},{"$f":"Questionnaire!Y105","v":"General government: transfers paid "},"EP_D3_7_92_99_P#TOTAL#S13_S15","EP_D3_7_92_99_P#TOTAL#S13_S15"]
[null,{"$f":"Questionnaire!X106","v":"D3_D7_D92_D99_REC_GG.6"},{"$f":"Questionnaire!Y106","v":"General government: transfers received from the rest of the world"},"EP_D3_7_92_99_R#TOTAL#S13_S15","EP_D3_7_92_99_R#TOTAL#S13_S15"]
[null,{"$f":"Questionnaire!X107","v":"D3_D7_REC_GG.6"},{"$f":"Questionnaire!Y107","v":"General government: current transfers received from the rest of the world"},"EP_D3_7_R#TOTAL#S13_S15","EP_D3_7_R#TOTAL#S13_S15"]
[null,{"$f":"Questionnaire!X108","v":"D92_D99_REC_GG.6"},{"$f":"Questionnaire!Y108","v":"General Government: investments grants and other capital transfers received from the rest of the world"},"EP_D92_99_R#TOTAL#S13_S15","EP_D92_99_R#TOTAL#S13_S15"]
[null,{"$f":"Questionnaire!X109","v":"D3_D7_D92_D99_REC_CORP.6"},{"$f":"Questionnaire!Y109","v":"Corporations: transfers received from general government and the rest of the world"},"EP_D3_7_92_99_R#TOTAL#S11_S12","EP_D3_7_92_99_R#TOTAL#S11_S12"]
[null,{"$f":"Questionnaire!X110","v":"D3_D7_REC_CORP.6"},{"$f":"Questionnaire!Y110","v":"Corporations: current transfers received from the general government and rest of the world"},"EP_D3_7_R#TOTAL#S11_S12","EP_D3_7_R#TOTAL#S11_S12"]
[null,{"$f":"Questionnaire!X111","v":"D92_D99_REC_CORP.6"},{"$f":"Questionnaire!Y111","v":"Corporations: investments grants and other capital transfers received from general government and rest of the world"},"EP_D92_99_R#TOTAL#S11_S12","EP_D92_99_R#TOTAL#S11_S12"]
[null,{"$f":"Questionnaire!X112","v":"TAX_EM_PAY_CORP.6"},{"$f":"Questionnaire!Y112","v":"Corporations: earmarked taxes paid"},"EP_TAXEM_P#TOTAL#S11_S12","EP_TAXEM_P#TOTAL#S11_S12"]
[null,{"$f":"Questionnaire!X113","v":"D3_D7_D92_D99_REC_HH.6"},{"$f":"Questionnaire!Y113","v":"Households: transfers received from general government and rest of the world"},"EP_D3_7_92_99_R#TOTAL_HH#S14","EP_D3_7_92_99_R#TOTAL_HH#S14"]
[null,{"$f":"Questionnaire!X114","v":"TAX_EM_PAY_HH.6"},{"$f":"Questionnaire!Y114","v":"Households: earmarked taxes paid"},"EP_TAXEM_P#TOTAL_HH#S14","EP_TAXEM_P#TOTAL_HH#S14"]
[null,{"$f":"Questionnaire!X115","v":"D3_D7_D92_D99_PAY_RW.6"},{"$f":"Questionnaire!Y115","v":"Rest of the World: transfers paid"},"EP_D3_7_92_99_P#TOTAL_HH#S2","EP_D3_7_92_99_P#TOTAL_HH#S2"]
[null,{"$f":"Questionnaire!X116","v":"D3_D7_D92_D99_REC_RW.6"},{"$f":"Questionnaire!Y116","v":"Rest of the World: transfers received"},"EP_D3_7_92_99_R#TOTAL_HH#S2","EP_D3_7_92_99_R#TOTAL_HH#S2"]
[null,{"$f":"Questionnaire!X117","v":"D3_D7_REC_RW.6"},{"$f":"Questionnaire!Y117","v":"Rest of the World: current transfers received from general government"},"EP_D3_7_R#TOTAL_HH#S2","EP_D3_7_R#TOTAL_HH#S2"]
[null,{"$f":"Questionnaire!X118","v":"D92_D99_REC_RW.6"},{"$f":"Questionnaire!Y118","v":"Rest of the World: investments grants and other capital transfers received from general government"},"EP_D92_99_R#TOTAL_HH#S2","EP_D92_99_R#TOTAL_HH#S2"]
[null,{"$f":"Questionnaire!X119","v":"NEGB2N_GG.6"},{"$f":"Questionnaire!Y119","v":"Negative net operating surplus of market producers in general government sector (non-consolidated)"},"EPS_NEGB2N_MP#TOTAL#S13_S15","EPS_NEGB2N_MP#TOTAL#S13_S15"]
["T7",{"$f":"Questionnaire!X120","v":"TOT_NEEP.7"},{"$f":"Questionnaire!Y120","v":"National expenditure on environmental protection"},"EPS_NEEP","EPS_NEEP"]
["Table 8",{"$f":"Questionnaire!X121","v":"P51G_NP.1"},{"$f":"Questionnaire!Y121","v":"Gross fixed capital formation and acquisition less disposals of non-financial non-produced assets (for characteristic activities)"}]
[null,{"$f":"Questionnaire!X122","v":"P51G_CREP_ec.1"},{"$f":"Questionnaire!Y122","v":"Gross fixed capital formation  in cleaner and resource efficient products for non characteristic activities - EXTRA COST"},"EP_P51G_CREP_EC","EP_P51G_CREP_EC"]
[null,{"$f":"Questionnaire!X123","v":"P51G_CREP_fc.1"},{"$f":"Questionnaire!Y123","v":"Gross fixed capital formation  in cleaner and resource efficient products for non characteristic activities - FULL COST"},"EP_P51G_CREP_FC","EP_P51G_CREP_FC"]
[null,{"$f":"Questionnaire!X124","v":"P51G_NP.2 "},{"$f":"Questionnaire!Y124","v":"Gross fixed capital formation and acquisition less disposals of non-financial non-produced assets (for characteristic activities)"}]
[null,{"$f":"Questionnaire!X125","v":"P51G_CREP_ec.2"},{"$f":"Questionnaire!Y125","v":"Gross fixed capital formation  in cleaner and resource efficient products for non characteristic activities - EXTRA COST"},"EP_P51G_CREP_EC","EP_P51G_CREP_EC"]
[null,{"$f":"Questionnaire!X126","v":"P51G_CREP_fc.2"},{"$f":"Questionnaire!Y126","v":"Gross fixed capital formation  in cleaner and resource efficient products for non characteristic activities - FULL COST"},"EP_P51G_CREP_FC","EP_P51G_CREP_FC"]
[null,{"$f":"Questionnaire!X127","v":"P51G_NP.3"},{"$f":"Questionnaire!Y127","v":"Gross fixed capital formation and acquisition less disposals of non-financial non-produced assets (for characteristic activities)"}]
[null,{"$f":"Questionnaire!X128","v":"P51G_CREP_ec.3"},{"$f":"Questionnaire!Y128","v":"Gross fixed capital formation  in cleaner and resource efficient products for non characteristic activities - EXTRA COST"},"EP_P51G_CREP_EC","EP_P51G_CREP_EC"]
[null,{"$f":"Questionnaire!X129","v":"P51G_CREP_fc.3"},{"$f":"Questionnaire!Y129","v":"Gross fixed capital formation  in cleaner and resource efficient products for non characteristic activities -\nFULL COST"},"EP_P51G_CREP_FC","EP_P51G_CREP_FC"]
["Table Constants","Table 1","Table 1",{"$f":"D40&\"#\"&D18","v":"TOTAL#S13_S15"},{"$f":"E40&\"#\"&E18","v":"TOTAL#S13_S15"}]
[null,"Table 2","Table 2",{"$f":"D42&\"#\"&D19","v":"EP_SPE#S11_S12"},{"$f":"E42&\"#\"&E19","v":"EP_SPE#S11_S12"}]
[null,"Table 3","Table 3",{"$f":"D43&\"#\"&D$19","v":"EP_BSN#S11_S12"},"EP_BSN#S11_S12"]
[null,"Table 3a","Table 3a","B#S11_S12","B#S11_S12"]
[null,"Table 3b","Table 3b","C#S11_S12","C#S11_S12"]
[null,"Table 3c","Table 3c","D#S11_S12","D#S11_S12"]
[null,"Table 3d","Table 3d","E36#S11_S12","E36#S11_S12"]
[null,"Table 3e","Table 3e","A_EP_OTH#S11_S12","A_EP_OTH#S11_S12"]
[null,"Table 4","Table 4",{"$f":"D40&\"#\"&D$21","v":"TOTAL#S1"},{"$f":"E40&\"#\"&E$21","v":"TOTAL#S1"}]
[null,"Table 5","Table 5",{"$f":"D41&\"#\"&D$20","v":"TOTAL_HH#S14"},{"$f":"E41&\"#\"&E$20","v":"TOTAL_HH#S14"}]
[null,"Table 6","Table 6"]
[null,"Table 7","Table 7",{"$f":"D41&\"#\"&D21","v":"TOTAL_HH#S1"},{"$f":"E41&\"#\"&E21","v":"TOTAL_HH#S1"}]
[null,"Table 7_GG","Table 7_GG",{"$f":"D40&\"#\"&D18","v":"TOTAL#S13_S15"},{"$f":"E40&\"#\"&E18","v":"TOTAL#S13_S15"}]
[null,"Table 7_CORP","Table 7_CORP",{"$f":"D40&\"#\"&D19","v":"TOTAL#S11_S12"},{"$f":"E40&\"#\"&E19","v":"TOTAL#S11_S12"}]
[null,"Table 7_HH","Table 7_HH",{"$f":"D40&\"#\"&D20","v":"TOTAL#S14"},{"$f":"E40&\"#\"&E20","v":"TOTAL#S14"}]
[null,"Table 8.1","Table 8.1",{"$f":"D40&\"#\"&D18","v":"TOTAL#S13_S15"},{"$f":"E40&\"#\"&E18","v":"TOTAL#S13_S15"}]
[null,"Table 8.2","Table 8.2",{"$f":"D42&\"#\"&D19","v":"EP_SPE#S11_S12"},{"$f":"E42&\"#\"&E19","v":"EP_SPE#S11_S12"}]
[null,"Table 8.3","Table 8.3",{"$f":"D43&\"#\"&D19","v":"EP_BSN#S11_S12"},{"$f":"E43&\"#\"&E19","v":"EP_BSN#S11_S12"}]

{"sheet":"Validation","index":3,"n_rows":144,"n_cols":77,"rows_kept":144,"cut":false,"hidden":true,"merged":[[143,31,143,32],[98,14,98,15],[138,31,138,33],[139,31,139,32],[140,31,140,32],[141,31,141,32],[142,31,142,32],[97,14,97,15],[27,0,27,2],[39,5,39,6],[50,39,50,41],[51,39,52,39],[53,39,54,39],[55,39,57,39],[92,14,92,16],[93,14,93,15],[94,14,94,15],[95,14,95,15],[96,14,96,15],[26,58,26,61],[15,58,15,61],[16,58,16,61],[17,58,17,61],[18,58,18,61],[19,58,19,61],[20,58,20,61],[21,58,21,61],[22,58,22,61],[23,58,23,61],[24,58,24,61],[25,58,25,61],[0,64,0,70],[0,72,0,76],[1,58,1,61],[2,58,2,61],[14,58,14,61],[4,58,4,61],[5,58,5,61],[6,58,6,61],[7,58,7,61],[8,58,8,61],[9,58,9,61],[9,74,9,75],[10,58,10,61],[11,58,11,61],[12,58,12,61],[13,58,13,61],[3,58,3,61],[0,1,0,2],[0,4,0,10],[0,12,0,21],[0,25,0,35],[0,38,0,44],[0,46,0,50],[0,52,0,61]]}
[null,"General parameters",null,null,"CL-Code list",null,null,null,null,null,null,null,"Parameters for the tables",null,null,null,null,null,null,null,null,null,null,null,null,"Parameters for the row/column classification",null,null,null,null,null,null,null,null,null,null,null,null,"Cross Table and Other Validation Rules",null,null,null,null,null,null,null,"Parameters for the fixed flags",null,null,null,null,null,"Warnings",null,null,null,null,null,null,null,null,null,null,null,"Revision Checks",null,null,null,null,null,null,null,"Source list"]
[null,"Parameter","Value",null,"Code list","Label","Max Evaluation Order Level","Display","UseHi-Consistency Checks","Semantic",null,null,"Table","Label","Logical Table and Order","Row/Col Evaluation Order","Column\nDisplay\nNumber","Row\nDisplay\nNumber","Hierarchy Test Type","Hierarchy","Equations - start","Nb of equations","Design Model Row","Design Model Column",null,"Code","Label","Type","Row","Parent","Evaluation Order","Display Bitmap\nM/V/O/X","Equation/Hi Constraint","Equation","Time Serie Plausibility\n% Threshold","Time Serie Plausibility\nFlat Threshold",null,null,"Table equation","Row","Column","Equation","Operator","Error Message","Dupplicated",null,"Code","Label","Request Value","Disable Plausibility",null,null,"Color","Font Only","Description of the issue","Severity","Text to be displayed","Display message","Description",null,null,null,null,null,"Design","Checks Log","Category","Threshold Pct","Threshold Flat","Message","Severity",null,"Order","Description/Label","Structure","Pattern","Specific"]
[null,"Highlight color 1",null,null,{"$f":"Questionnaire!E3","v":1},{"$f":"Questionnaire!F3","v":"CEPAREMA All Codes"},0,"X","X",null,null,null,{"$f":"Questionnaire!M3","v":"TAB1.NAC"},{"$f":"Questionnaire!N3","v":"EPEA Table 1 - Monetary"},1,null,1,1,null,null,0,2,null,null,null,{"$f":"Questionnaire!X3","v":"CEPA1"},{"$f":"Questionnaire!Y3","v":"CEPA 1"},1,10,-1,0,"MMMMMMM",">=","[CEPA112_122]",1,1,null,0,"Table 1 Total CEPA - P2_EPS","[P2_EPS_EXT.1;?]","[TOT_CEPA]","[P2_EPS.1;?][TOT_CEPA]",">=","P2_EPS_EXT.1>=P2_EPS.1",null,null,"b","Break in series","No","Yes",null,null,123.456,"No","Default Value",null,null,null,"Default display for a data cell.",null,null,null,null,null,"Removed Data","Yes","Removed",null,null,"Data Removed","Error",null,1,"Eurobase Data","MDT-Eurobase","EPEA_MDT_#C.txt"]
[null,"Highlight color 2",null,null,{"$f":"Questionnaire!E4","v":2},{"$f":"Questionnaire!F4","v":"Sector National Accounts for table 7 GG"},0,"X","X",null,null,null,{"$f":"Questionnaire!M4","v":"TAB1.EMP"},{"$f":"Questionnaire!N4","v":"EPEA Table 1 - Employment"},1,null,null,1,null,null,1,1,null,null,null,{"$f":"Questionnaire!X4","v":"CEPA112_122"},{"$f":"Questionnaire!Y4","v":"of which CEPA 1.1.2 and 1.2.2 Climate change"},1,12,-1,0,"VVVVVVX",null,null,1,1,null,{"$f":"AL3+1","v":1},"Table 1 Total CEPA Control",null,"[TOT_CEPA]","IF(COUNT(J@,N@,P@,R@,T@,V@,AD@)=0,\":\",SUM(J@,N@,P@,R@,T@,V@,AD@))","=","TOT_CEPA=CEPA1+CEPA2+CEPA3+CEPA4+CEPA5+CEPA6+CEPA7-9",null,null,"c","Confidential","No","No",null,null,123.456,"No","Illegal Symbol","Error","[@1]",null,"This error occurs when an illegal symbol is reported.",null,null,null,null,null,"New Data","No","New",null,null,"New Data","Information",null,2,"Previous Round","Questionnaire","EPEA_2019PR_#C.xlsm"]
[null,"Item can have many NA sub-items",null,null,{"$f":"Questionnaire!E5","v":3},{"$f":"Questionnaire!F5","v":"Sector National Accounts for table 7 CORP"},0,"X","X",null,null,null,{"$f":"Questionnaire!M5","v":"TAB2.NAC"},{"$f":"Questionnaire!N5","v":"EPEA Table 2 - Monetary"},2,null,2,1,null,null,2,1,null,null,null,{"$f":"Questionnaire!X5","v":"CEPA2"},{"$f":"Questionnaire!Y5","v":"CEPA 2"},1,14,-1,0,"MMMMMMM",null,null,1,1,null,{"$f":"AL4+1","v":2},"Table 2 Total CEPA - P2_EPS","[P2_EPS_EXT.2;?]","[TOT_CEPA]","[P2_EPS.2;?][TOT_CEPA]",">=","P2_EPS_EXT.2>=P2_EPS.2",null,null,"d","Secondary confidentiality","No","No",null,null,123.456,"No","Consistency (Total <> Subtotal)","Error","Reported total and calculated sum of sub-items do not match: @1.","X","This consistency error is highlighted when all sub-items are reported and  the reported total or sub-total does not equal the sum of the sub-items and it calculates the correct total or sub-total based on the reported figures. ",null,null,null,null,null,"Highest change","Yes","Changed",0.5,1000,"Highest change (50%, 1 000)","Error"]
[null,"Number of equations",{"$f":"COUNTA(AM:AM)-2","v":46},null,{"$f":"Questionnaire!E6","v":4},{"$f":"Questionnaire!F6","v":"Sector National Accounts for table 7 HH"},0,"X","X",null,null,null,{"$f":"Questionnaire!M6","v":"TAB2.EMP"},{"$f":"Questionnaire!N6","v":"EPEA Table 2 - Employment"},2,null,null,1,null,null,0,0,null,null,null,{"$f":"Questionnaire!X6","v":"CEPA3"},{"$f":"Questionnaire!Y6","v":"CEPA 3"},1,16,-1,0,"MMMMMMM",null,null,1,1,null,3,"Table 3 Total CEPA - P2_EPS","[P2_EPS_EXT.3;?]","[TOT_CEPA]","[P2_EPS.3;?][TOT_CEPA]",">=","P2_EPS_EXT.3>=P2_EPS.3",null,null,"e","Estimated data","Yes","No",null,null,123.456,"No","Consistency (Total not Calculated)","Error","Reported total is not Calculated while it could be: @1.","X","This consistency error is highlighted when the total or the sub-total is reported and it is equal with the sum of the reported sub-items and one of the sub-items is 'not available'. The message is displayed in the total.",null,null,null,null,null,"Hight change","Yes","Changed",0.25,500,"High change (25%, 500)","Warning"]
[null,"Table Copy Line Offset (Prefilling: Copy Data)",0,null,{"$f":"Questionnaire!E7","v":5},{"$f":"Questionnaire!F7","v":"Sector National Accounts for table 7"},0,"X","X",null,null,null,{"$f":"Questionnaire!M7","v":"TAB3.NAC"},{"$f":"Questionnaire!N7","v":"EPEA Table 3 - Monetary"},3,null,3,1,5,null,3,2,null,null,null,{"$f":"Questionnaire!X7","v":"CEPA4"},{"$f":"Questionnaire!Y7","v":"CEPA 4"},1,18,-1,0,"MMMMMMM",null,null,1,1,null,4,"Table 3* Total CEPA Control",null,"[TOT_CEPA]","IF(COUNT(J@,N@,P@,R@,T@,V@,AD@)=0,\":\",SUM(J@,N@,P@,R@,T@,V@,AD@))","=","TOT_CEPA=CEPA1+CEPA2+CEPA3+CEPA4+CEPA5+CEPA6+CEPA7-9",null,null,"n","Not Publishable","Yes","No",null,null,123.456,"No","Consistency (Sub Sectors)","Warning","SubItem can be calculated: @1.",null,"This consistency error occurs when all figures are reported except one, which is reported as \"not available\". If all figures are correctly reported, the missing figure can be calculated from the remaining figures. The message is displayed in the cell where the symbol \":\" is reported.",null,null,null,null,null,"Medium change","Yes","Changed",0.1,100,"Medium change (10%, 100)","Warning"]
[null,"Table Copy Column Offset (Prefilling: Copy Data)",100,null,{"$f":"Questionnaire!E8","v":6},{"$f":"Questionnaire!F8","v":"Nace Codes for Table 3b_Add"},0,null,null,null,null,null,{"$f":"Questionnaire!M8","v":"TAB3.EMP"},{"$f":"Questionnaire!N8","v":"EPEA Table 3 - Employment"},3,null,null,1,5,null,4,1,null,null,null,{"$f":"Questionnaire!X8","v":"CEPA5"},{"$f":"Questionnaire!Y8","v":"CEPA 5"},1,20,-1,0,"MMMMMMM",null,null,1,1,null,5,"Sum of figures reported in table 3b_Add_2024","[?;2024]",null,"IF(COUNT([?;*][?]{TAB3b_2024.NAC})=0,\":\",SUM([?;*][?]{TAB3b_2024.NAC}))","=","2024: IND.3=Sum(IND.3b_Add)",null,null,"p","Provisional","Yes","No",null,null,123.456,"No","Consistency (Total <= SubTotal)","Error","Calculated sum of sub-items exceeds Reported total: @1.","X","This consistency error is highlighted when the total or the sub-total is reported and it is smaller or equal with the sum of the sub-items and several sub-items are 'not available'. ",null,null,null,null,null,"Low change","No","Changed",0.01,10,"Low change (1%, 10)","Information"]
[null,"Table of Content Range (Global Statistics)","TOC!F7",null,{"$f":"Questionnaire!E9","v":7},{"$f":"Questionnaire!F9","v":"Nace Codes for Table 8.3_Add"},0,null,null,null,null,null,{"$f":"Questionnaire!M9","v":"TAB3a.NAC"},{"$f":"Questionnaire!N9","v":"EPEA Table 3a - Monetary"},4,null,3,1,null,"TAB3.NAC",3,2,null,null,null,{"$f":"Questionnaire!X9","v":"CEPA6"},{"$f":"Questionnaire!Y9","v":"CEPA 6"},1,22,-1,0,"MMMMMMM",null,null,1,1,null,6,"Sum of figures reported in table 3b_Add_2025","[?;2025]",null,"IF(COUNT([?;*][?]{TAB3b_2025.NAC})=0,\":\",SUM([?;*][?]{TAB3b_2025.NAC}))","=","2025: IND.3=Sum(IND.3b_Add)",null,null,"s","Eurostat estimate","Yes","No",null,null,123.456,"No","Consistency (Sub Sectors)","Warning","The reported total is equal to the sum-of the sub-items while some sub-items are 'not available'","X","This consistency error is highlighted when the total or the sub-total is reported and it is equal to the sum of the sub-items, while several sub-items are 'not available'.\nCurrently activated; In order to deactivate this check, add an \"x\" to cell C15 in this parameter sheet.",null,null,null,null,null,"Lowest change","No","Changed",1E-3,1,"Lowest change (0.1%, 1)","Information"]
[null,"Plausibility Comparison Method","Previous Year",null,{"$f":"Questionnaire!E10","v":8},{"$f":"Questionnaire!F10","v":"Nace Rev2 (Table constant and parameters)"},0,null,null,null,null,null,{"$f":"Questionnaire!M10","v":"TAB3a.EMP"},{"$f":"Questionnaire!N10","v":"EPEA Table 3a - Employment"},4,null,null,1,null,"TAB3.EMP",4,1,null,null,null,{"$f":"Questionnaire!X10","v":"CEPA7"},{"$f":"Questionnaire!Y10","v":"CEPA 7"},1,24,-1,0,"VVVVVVX",null,null,1,1,null,7,"Sum of figures reported in table 3b_Add_2026","[?;2026]",null,"IF(COUNT([?;*][?]{TAB3b_2026.NAC})=0,\":\",SUM([?;*][?]{TAB3b_2026.NAC}))","=","2026: IND.3=Sum(IND.3b_Add)",null,null,null,null,null,null,null,null,123.456,"No","Consistency (Equation)","Error","@1","X","This message is displayed when the equations (see column AD in this sheet) are not verified. The message to be displayed is available in column AC.",null,null,null,null,null,"Unchanged","No","Unchanged",null,null,"Unchanged","Information",null,null,null,"Pattern for Filename"]
[null,"Plausibility: Base Year",2010,null,{"$f":"Questionnaire!E11","v":9},{"$f":"Questionnaire!F11","v":"Indicators Employment Only"},0,"X",null,null,null,null,{"$f":"Questionnaire!M11","v":"TAB3b.NAC"},{"$f":"Questionnaire!N11","v":"EPEA Table 3b - Monetary"},5,null,3,1,null,"TAB3.NAC",3,20,null,null,null,{"$f":"Questionnaire!X11","v":"CEPA8"},{"$f":"Questionnaire!Y11","v":"CEPA 8"},1,26,-1,0,"VVVVVVX",null,null,1,1,null,8,"Sum of figures reported in table 3b_Add_2027","[?;2027]",null,"IF(COUNT([?;*][?]{TAB3b_2027.NAC})=0,\":\",SUM([?;*][?]{TAB3b_2027.NAC}))","=","2027: IND.3=Sum(IND.3b_Add)",null,null,null,null,null,null,null,null,123.456,"No","Plausibility","Warning","Year on year = @1 (Threshold +/-@2)","X","Plausibility issue",null,null,null,null,null,null,null,null,null,null,null,null,null,null,null,"Country","#C"]
[null,"Plausibility: Number of Year for Comparison",5,null,{"$f":"Questionnaire!E12","v":10},{"$f":"Questionnaire!F12","v":"Indicators Table 1 - Monetary"},0,"X","X",null,null,null,{"$f":"Questionnaire!M12","v":"TAB3b.EMP"},{"$f":"Questionnaire!N12","v":"EPEA Table 3b - Employment"},5,null,null,1,null,"TAB3.EMP",26,19,null,null,null,{"$f":"Questionnaire!X12","v":"CEPA9"},{"$f":"Questionnaire!Y12","v":"CEPA 9"},1,28,-1,0,"VVVVVVX",null,null,1,1,null,9,"Sum of figures reported in table 3b_Add_2028","[?;2028]",null,"IF(COUNT([?;*][?]{TAB3b_2028.NAC})=0,\":\",SUM([?;*][?]{TAB3b_2028.NAC}))","=","2028: IND.3=Sum(IND.3b_Add)",null,null,null,null,null,null,null,null,123.456,"No","Plausibility and consistency","Error","Year on year = @1 (Threshold +/-@2)","X","Simultaneous plausibility and consistency issue.",null,null,null,null,null,null,null,null,null,null,null,null,null,null,null,"Current Year","#Y"]
[null,"Footnotes Disable Plausibility","Yes",null,{"$f":"Questionnaire!E13","v":11},{"$f":"Questionnaire!F13","v":"Indicators Table 2 - Monetary"},0,"X","X",null,null,null,{"$f":"Questionnaire!M13","v":"TAB3c.NAC"},{"$f":"Questionnaire!N13","v":"EPEA Table 3c - Monetary"},24,null,3,1,null,"TAB3.NAC",3,2,null,null,null,{"$f":"Questionnaire!X13","v":"CEPA7-9"},{"$f":"Questionnaire!Y13","v":"Sum of CEPA 7+8+9"},1,30,-1,0,"MMMMMMM",">=","[CEPA7]+[CEPA8]+[CEPA9]",1,1,null,10,"Sum of figures reported in table 3b_Add_2029","[?;2029]",null,"IF(COUNT([?;*][?]{TAB3b_2029.NAC})=0,\":\",SUM([?;*][?]{TAB3b_2029.NAC}))","=","2029: IND.3=Sum(IND.3b_Add)",null,null,null,null,null,null,null,null,"c)10)","No","Default Footnote",null,null,null,"Default display of the footnotes.",null,null,null,null,null,null,null,null,null,null,null,null,null,null,null,"Previous Year","#P"]
[null,"Number of Revisions Items",{"$f":"COUNTA(BN:BN)-2","v":7},null,{"$f":"Questionnaire!E14","v":12},{"$f":"Questionnaire!F14","v":"Indicators Table 3* - Monetary"},0,"X","X",null,null,null,{"$f":"Questionnaire!M14","v":"TAB3c.EMP"},{"$f":"Questionnaire!N14","v":"EPEA Table 3c - Employment"},24,null,null,1,null,"TAB3.EMP",4,1,null,null,null,{"$f":"Questionnaire!X14","v":"TOT_CEPA"},{"$f":"Questionnaire!Y14","v":"TOT_CEPA"},1,32,-1,0,"VVVVVVV",">=","[CEPA1]+[CEPA2]+[CEPA3]+[CEPA4]+[CEPA5]+[CEPA6]+[CEPA7-9]",1,1,null,11,"Sum of figures reported in table 3b_Add_2030","[?;2030]",null,"IF(COUNT([?;*][?]{TAB3b_2030.NAC})=0,\":\",SUM([?;*][?]{TAB3b_2030.NAC}))","=","2030: IND.3=Sum(IND.3b_Add)",null,null,null,null,null,null,null,null,"a)21)","No","Illegal footnote","Error","No footnote description.",null,"This error occurs when a footnote is included, but there is not text in the footnote area."]
[null,"Activate Mandatory Cells Shading","Yes",null,{"$f":"Questionnaire!E15","v":13},{"$f":"Questionnaire!F15","v":"Indicators Table 4 - Monetary"},0,"X","X",null,null,null,{"$f":"Questionnaire!M15","v":"TAB3d.NAC"},{"$f":"Questionnaire!N15","v":"EPEA Table 3d - Monetary"},25,null,3,1,null,"TAB3.NAC",3,2,null,null,null,{"$f":"Questionnaire!X15","v":"CREMA 11B_13C_14"},{"$f":"Questionnaire!Y15","v":"Materials recovery"},1,34,-1,0,"VVVVVVV",null,null,1,1,null,12,"Sum of figures reported in table 3b_Add_2031","[?;2031]",null,"IF(COUNT([?;*][?]{TAB3b_2031.NAC})=0,\":\",SUM([?;*][?]{TAB3b_2031.NAC}))","=","2031: IND.3=Sum(IND.3b_Add)",null,null,null,null,null,null,null,null,"a)21)","No","Illegal footnote","Error","Wrong footnote number.",null,"This error occurs when the footnote includes a number that does not exist in the footnote area."]
[null,"Mandatory Cells Shading by Default",0,null,{"$f":"Questionnaire!E16","v":14},{"$f":"Questionnaire!F16","v":"Indicators Table 5 - Monetary"},0,"X","X",null,null,null,{"$f":"Questionnaire!M16","v":"TAB3d.EMP"},{"$f":"Questionnaire!N16","v":"EPEA Table 3d - Employment"},25,null,null,1,null,"TAB3.EMP",4,1,null,null,null,{"$f":"Questionnaire!X16","v":"CREMA 13A"},{"$f":"Questionnaire!Y16","v":"Production of energy  from renewable sources"},1,36,-1,0,"VVVVVVV",null,null,1,1,null,13,"Sum of figures reported in table 3b_Add_2014","[?;2014]",null,"IF(COUNT([?;*][?]{TAB3b_2014.NAC})=0,\":\",SUM([?;*][?]{TAB3b_2014.NAC}))","=","2014: IND.3=Sum(IND.3b_Add)",null,null,null,null,null,null,null,null,"a)21)","No","Illegal footnote","Error","Wrong footnote letter.",null,"This error occurs when the footnote includes a letter that does not exist in the footnote area."]
[null,"Mandatory Cells Shading on Validation Error",0,null,{"$f":"Questionnaire!E17","v":15},{"$f":"Questionnaire!F17","v":"Indicators Table 6 - Monetary"},0,"X","X",null,null,null,{"$f":"Questionnaire!M17","v":"TAB3e.NAC"},{"$f":"Questionnaire!N17","v":"EPEA Table 3e - Monetary"},26,null,3,1,null,"TAB3.NAC",3,2,null,null,null,{"$f":"Questionnaire!X17","v":"CREMA 13B"},{"$f":"Questionnaire!Y17","v":"Energy efficiency and savings"},1,38,-1,0,"VVVVVVV",null,null,1,1,null,14,"Sum of figures reported in table 3b_Add_2015","[?;2015]",null,"IF(COUNT([?;*][?]{TAB3b_2015.NAC})=0,\":\",SUM([?;*][?]{TAB3b_2015.NAC}))","=","2015: IND.3=Sum(IND.3b_Add)",null,null,null,null,null,null,null,null,"a)21)","No","Illegal footnote","Error","Wrong footnote ending [@1].",null,"This error occurs when the footnote does not have a parenthesis at the end."]
[null,"Number of Validation Steps",{"$f":"COUNTA(B30:B155)","v":9},null,{"$f":"Questionnaire!E18","v":16},{"$f":"Questionnaire!F18","v":"Indicators Table 7"},0,"X","X",null,null,null,{"$f":"Questionnaire!M18","v":"TAB3e.EMP"},{"$f":"Questionnaire!N18","v":"EPEA Table 3e - Employment"},26,null,null,1,null,"TAB3.EMP",4,1,null,null,null,{"$f":"Questionnaire!X18","v":"S13_S15"},{"$f":"Questionnaire!Y18","v":"Landscape"},0,0,-1,0,"MM",null,null,1,1,null,15,"Sum of figures reported in table 3b_Add_2016","[?;2016]",null,"IF(COUNT([?;*][?]{TAB3b_2016.NAC})=0,\":\",SUM([?;*][?]{TAB3b_2016.NAC}))","=","2016: IND.3=Sum(IND.3b_Add)",null,null,null,null,null,null,null,null,"a)21)","No","Illegal footnote","Error","flag not allowed with value '@1'.",null,"This error occurs when the footnote cannot be used together with what was reported in the data cell."]
[null,"Number of Additional Source",{"$f":"COUNTA(BU:BU)-2","v":2},null,{"$f":"Questionnaire!E19","v":17},{"$f":"Questionnaire!F19","v":"Indicators Table 8.1 - Monetary"},0,"X","X",null,null,null,{"$f":"Questionnaire!M19","v":"TAB4"},{"$f":"Questionnaire!N19","v":"EPEA Table 4"},27,null,4,1,null,null,23,2,null,null,null,{"$f":"Questionnaire!X19","v":"S11_S12"},{"$f":"Questionnaire!Y19","v":"Corporations"},0,0,-1,0,"MM",null,null,1,1,null,16,"Sum of figures reported in table 3b_Add_2017","[?;2017]",null,"IF(COUNT([?;*][?]{TAB3b_2017.NAC})=0,\":\",SUM([?;*][?]{TAB3b_2017.NAC}))","=","2017: IND.3=Sum(IND.3b_Add)",null,null,null,null,null,null,null,null,"a)21)","No","Illegal footnote","Error","@1","X","This check is done for all footnotes and, depending on the error, one of the above five messages (cell I56-I60) will be displayed."]
[null,"Additional Sources WorkSheet","ALLDATA",null,{"$f":"Questionnaire!E20","v":18},{"$f":"Questionnaire!F20","v":"Indicators Table 8.2 - Monetary"},0,"X","X",null,null,null,{"$f":"Questionnaire!M20","v":"TAB5"},{"$f":"Questionnaire!N20","v":"EPEA Table 5"},28,null,5,1,null,null,0,0,null,null,null,{"$f":"Questionnaire!X20","v":"S14"},{"$f":"Questionnaire!Y20","v":"Households"},0,0,-1,0,"MM",null,null,1,1,null,17,"Sum of figures reported in table 3b_Add_2018","[?;2018]",null,"IF(COUNT([?;*][?]{TAB3b_2018.NAC})=0,\":\",SUM([?;*][?]{TAB3b_2018.NAC}))","=","2018: IND.3=Sum(IND.3b_Add)",null,null,null,null,null,null,null,null,"c)","No","Confidentiality error","Error","Secondary confidentiality required under sector @1 (see 'instructions' sheet).","X","This confidentiality error is highlighted when only one sub-item (i.e. this highlighted one) is flagged confidential. In such a case it is recommended to flag additional sub-items (secondary confidentiality flag 'd') on the same hierarchical MF-level in order to enable displaying the total or sub-total. "]
[null,"Current Domain","EPEA",null,{"$f":"Questionnaire!E21","v":19},{"$f":"Questionnaire!F21","v":"Indicators Table 8.3* - Monetary"},0,"X","X",null,null,null,{"$f":"Questionnaire!M21","v":"TAB6"},{"$f":"Questionnaire!N21","v":"EPEA Table 6"},29,null,6,1,null,null,25,1,null,null,null,{"$f":"Questionnaire!X21","v":"S1"},{"$f":"Questionnaire!Y21","v":"TOTAL Economy"},0,0,-1,0,"MM",null,null,1,1,null,18,"Sum of figures reported in table 3b_Add_2019","[?;2019]",null,"IF(COUNT([?;*][?]{TAB3b_2019.NAC})=0,\":\",SUM([?;*][?]{TAB3b_2019.NAC}))","=","2019: IND.3=Sum(IND.3b_Add)",null,null,null,null,null,null,null,null,"c)","No","Confidentiality warning","Error","Confidentiality not correctly applied (see 'instructions' sheet).","X","This confidentiality error is highlighted when a total or sub-total is flagged confidential although it should not because one or two sub-items are flagged confidential. In such cases it is recommended to flag additional sub-items (secondary confidentiality) in order to enable displaying the total or sub-total. Also this confidentiality error is highlighted when the c) flag is used for zero or 'not available' cells.   "]
[null,"Validation Report Naming Convention","S_VR_EPEA_#C",null,{"$f":"Questionnaire!E22","v":20},{"$f":"Questionnaire!F22","v":"Nested Indicators Employment Only"},1,null,null,null,null,null,{"$f":"Questionnaire!M22","v":"TAB7"},{"$f":"Questionnaire!N22","v":"EPEA Table 7"},30,null,1,1,null,null,45,1,null,null,null,{"$f":"Questionnaire!X22","v":"C10-C12"},{"$f":"Questionnaire!Y22","v":"Manufacture of food, beverages and tobacco products"},0,0,-1,0,null,null,null,1,1,null,19,"Sum of figures reported in table 3b_Add_2020","[?;2020]",null,"IF(COUNT([?;*][?]{TAB3b_2020.NAC})=0,\":\",SUM([?;*][?]{TAB3b_2020.NAC}))","=","2020: IND.3=Sum(IND.3b_Add)",null,null,null,null,null,null,null,null,"c)","No","Frozen row",null,null,null,"Not evaluated."]
[null,null,null,null,{"$f":"Questionnaire!E23","v":21},{"$f":"Questionnaire!F23","v":"Nested Indicators Table 1 - Monetary"},2,null,null,null,null,null,{"$f":"Questionnaire!M23","v":"TAB7.GG"},{"$f":"Questionnaire!N23","v":"EPEA Table 7.GG"},31,null,1,1,null,null,0,0,null,null,null,{"$f":"Questionnaire!X23","v":"C17"},{"$f":"Questionnaire!Y23","v":"Manufacture of paper and paper products"},0,1,-1,0,null,null,null,1,1,null,20,"Sum of figures reported in table 3b_Add_2021","[?;2021]",null,"IF(COUNT([?;*][?]{TAB3b_2021.NAC})=0,\":\",SUM([?;*][?]{TAB3b_2021.NAC}))","=","2021: IND.3=Sum(IND.3b_Add)",null,null,null,null,null,null,null,null,123.456,"Yes","Of which","Warning","Value should be smaller or equal to the value (@2) in sheet '@1'.","X","An error is displayed if the \"of which\" value is bigger than the one to be compared with (e.g. if PM2.5>PM10)"]
[null,null,null,null,{"$f":"Questionnaire!E24","v":22},{"$f":"Questionnaire!F24","v":"Nested Indicators Table 2 - Monetary"},3,null,null,null,null,null,{"$f":"Questionnaire!M24","v":"TAB7.CORP"},{"$f":"Questionnaire!N24","v":"EPEA Table 7.CORP"},32,null,1,1,null,null,0,0,null,null,null,{"$f":"Questionnaire!X24","v":"C19_C20"},{"$f":"Questionnaire!Y24","v":"Manufacture of coke, chemicals and refined petroleum and chemical products"},0,2,-1,0,null,null,null,1,1,null,21,"Sum of figures reported in table 3b_Add_2022","[?;2022]",null,"IF(COUNT([?;*][?]{TAB3b_2022.NAC})=0,\":\",SUM([?;*][?]{TAB3b_2022.NAC}))","=","2022: IND.3=Sum(IND.3b_Add)",null,null,null,null,null,null,null,null,123.456,"No","Not Applicable","Warning","This cell is supposed to be 'not applicable'.","X","Cells flagged as Noty Applicable"]
[null,null,null,null,{"$f":"Questionnaire!E25","v":23},{"$f":"Questionnaire!F25","v":"Nested Indicators Table 3* - Monetary"},4,null,null,null,null,null,{"$f":"Questionnaire!M25","v":"TAB7.HH"},{"$f":"Questionnaire!N25","v":"EPEA Table 7.HH"},33,null,1,1,null,null,0,0,null,null,null,{"$f":"Questionnaire!X25","v":"C21-C23"},{"$f":"Questionnaire!Y25","v":"Manufacture of pharmaceuticals, rubber, plastic and other non-metallic products"},0,3,-1,0,null,null,null,1,1,null,22,"Sum of figures reported in table 3b_Add_2023","[?;2023]",null,"IF(COUNT([?;*][?]{TAB3b_2023.NAC})=0,\":\",SUM([?;*][?]{TAB3b_2023.NAC}))","=","2023: IND.3=Sum(IND.3b_Add)",null,null,null,null,null,null,null,null,null,"No","Not Applicable",null,null,null,"For default formating only"]
[null,null,null,null,{"$f":"Questionnaire!E26","v":24},{"$f":"Questionnaire!F26","v":"Nested Indicators Table 4 - Monetary"},5,null,null,null,null,null,{"$f":"Questionnaire!M26","v":"TAB8.1"},{"$f":"Questionnaire!N26","v":"EPEA Table 8.1"},0,null,1,1,null,null,0,0,null,null,null,{"$f":"Questionnaire!X26","v":"C24"},{"$f":"Questionnaire!Y26","v":"Manufacture of basic metals"},0,4,-1,0,null,null,null,1,1,null,23,"Table 4 Total CEPA Control",null,"[TOT_CEPA]","IF(COUNT(N@,P@,R@)=0,\":\",SUM(N@,P@,R@))","=","TOT_CEPA=CEPA2+CEPA3+CEPA4",null,null,null,null,null,null,null,null,123.456,"No","Formula (Derived data)",null,null,null,"Formula (Derived data) formating only"]
[null,null,null,null,{"$f":"Questionnaire!E27","v":25},{"$f":"Questionnaire!F27","v":"Nested Indicators Table 5 - Monetary"},6,null,null,null,null,null,{"$f":"Questionnaire!M27","v":"TAB8.2"},{"$f":"Questionnaire!N27","v":"EPEA Table 8.2"},0,null,1,1,null,null,0,0,null,null,null,{"$f":"Questionnaire!X27","v":"C25-C30"},{"$f":"Questionnaire!Y27","v":"Manufacture of fabricated metal products, including machinery and equipment"},0,5,-1,0,null,null,null,1,1,null,24,"Table 4 P11.4","[P11.4;?]",null,"IFERROR([P11.1;?][?]{TAB1.NAC}+[P11.2;?][?]{TAB2.NAC},\":\")","=","P11.4=P11.1+P11.2",null,null,null,null,null,null,null,null,"c)10)","No","Formula Footnote",null,null,null,"Formula (Derived data) formating only"]
["Validation Steps Table",null,null,null,{"$f":"Questionnaire!E28","v":26},{"$f":"Questionnaire!F28","v":"Nested Indicators Table 6 - Monetary"},7,null,null,null,null,null,{"$f":"Questionnaire!M28","v":"TAB8.3"},{"$f":"Questionnaire!N28","v":"EPEA Table 8.3"},0,null,1,1,null,null,0,0,null,null,null,{"$f":"Questionnaire!X28","v":"C13-C16_C18_C31-C33"},{"$f":"Questionnaire!Y28","v":"Other manufacturing activities"},0,6,-1,0,null,null,null,1,1,null,25,"Table 6 Total CEPA Control",null,"[TOT_CEPA]","IF(COUNT(J@,N@,P@,R@,T@,V@,AD@)=0,\":\",SUM(J@,N@,P@,R@,T@,V@,AD@))","=","TOT_CEPA=CEPA1+CEPA2+CEPA3+CEPA4+CEPA5+CEPA6+CEPA7-9"]
["Used","Description/Label","Sheet",null,{"$f":"Questionnaire!E29","v":27},{"$f":"Questionnaire!F29","v":"Nested Indicators Table 7"},8,null,null,null,null,null,{"$f":"Questionnaire!M29","v":"TAB3b_2014.NAC"},{"$f":"Questionnaire!N29","v":"EPEA Table 3b_Add 2014 - Monetary"},6,null,3,1,null,null,3,2,null,null,null,{"$f":"Questionnaire!X29","v":"B"},{"$f":"Questionnaire!Y29","v":"Mining and Quarring"},0,0,-1,0,null,null,null,1,1,null,26,"Table 3* Total CEPA Control",null,"[TOT_CEPA]","IF(COUNT(J@,N@,P@,R@,T@,V@,AD@)=0,\":\",SUM(J@,N@,P@,R@,T@,V@,AD@))","=","TOT_CEPA=CEPA1+CEPA2+CEPA3+CEPA4+CEPA5+CEPA6+CEPA7-9"]
["Yes","Symbol (Value)","A2.2. LOG_FORMAT",null,{"$f":"Questionnaire!E30","v":28},{"$f":"Questionnaire!F30","v":"Nested Indicators Table 8.1 - Monetary"},9,null,null,null,null,null,{"$f":"Questionnaire!M30","v":"TAB3b_2014.EMP"},{"$f":"Questionnaire!N30","v":"EPEA Table 3b_Add 2014 - Employment"},6,null,null,1,null,null,4,1,null,null,null,{"$f":"Questionnaire!X30","v":"C"},{"$f":"Questionnaire!Y30","v":"Manufacturing"},0,1,-1,0,null,null,null,1,1,null,27,"Sum of figures reported in table 3b_Add_2024","[?;2024]",null,"IF(COUNT([?;*][?]{TAB3b_2024.EMP})=0,\":\",SUM([?;*][?]{TAB3b_2024.EMP}))","=","2024: IND.3=Sum(IND.3b_Add)"]
["Yes","Symbol (Flag and Footnote)","A2.2. LOG_FORMAT",null,{"$f":"Questionnaire!E31","v":29},{"$f":"Questionnaire!F31","v":"Nested Indicators Table 8.2 - Monetary"},10,null,null,null,null,null,{"$f":"Questionnaire!M31","v":"TAB3b_2015.NAC"},{"$f":"Questionnaire!N31","v":"EPEA Table 3b_Add 2015 - Monetary"},7,null,3,1,null,null,3,2,null,null,null,{"$f":"Questionnaire!X31","v":"D"},{"$f":"Questionnaire!Y31","v":"Electricity, gas, steam and air conditionning supply"},0,2,-1,0,null,null,null,1,1,null,28,"Sum of figures reported in table 3b_Add_2025","[?;2025]",null,"IF(COUNT([?;*][?]{TAB3b_2025.EMP})=0,\":\",SUM([?;*][?]{TAB3b_2025.EMP}))","=","2025: IND.3=Sum(IND.3b_Add)"]
["No","Revision","A4b. LOG_REVISIONS",null,{"$f":"Questionnaire!E32","v":30},{"$f":"Questionnaire!F32","v":"Nested Indicators Table 8.3* - Monetary"},11,null,null,null,null,null,{"$f":"Questionnaire!M32","v":"TAB3b_2015.EMP"},{"$f":"Questionnaire!N32","v":"EPEA Table 3b_Add 2015 - Employment"},7,null,null,1,null,null,4,1,null,null,null,{"$f":"Questionnaire!X32","v":"E36"},{"$f":"Questionnaire!Y32","v":"Water supply"},0,3,-1,0,null,null,null,1,1,null,29,"Sum of figures reported in table 3b_Add_2026","[?;2026]",null,"IF(COUNT([?;*][?]{TAB3b_2026.EMP})=0,\":\",SUM([?;*][?]{TAB3b_2026.EMP}))","=","2026: IND.3=Sum(IND.3b_Add)"]
["Yes","Consistancy (Rows)","A5. LOG_CONSISTENCY",null,{"$f":"Questionnaire!E33","v":31},{"$f":"Questionnaire!F33","v":"Nested Indicators Table 3b_Add - Monetary"},12,null,null,null,null,null,{"$f":"Questionnaire!M33","v":"TAB3b_2016.NAC"},{"$f":"Questionnaire!N33","v":"EPEA Table 3b_Add 2016 - Monetary"},8,null,3,1,null,null,3,2,null,null,null,{"$f":"Questionnaire!X33","v":"A_EP_OTH"},{"$f":"Questionnaire!Y33","v":"OTHER NACE"},0,4,-1,0,null,null,null,1,1,null,30,"Sum of figures reported in table 3b_Add_2027","[?;2027]",null,"IF(COUNT([?;*][?]{TAB3b_2027.EMP})=0,\":\",SUM([?;*][?]{TAB3b_2027.EMP}))","=","2027: IND.3=Sum(IND.3b_Add)"]
["Yes","Consistancy (Columns)","A5. LOG_CONSISTENCY",null,{"$f":"Questionnaire!E34","v":32},{"$f":"Questionnaire!F34","v":"Nested Indicators Table 3b_Add - Employment"},13,null,null,null,null,null,{"$f":"Questionnaire!M34","v":"TAB3b_2016.EMP"},{"$f":"Questionnaire!N34","v":"EPEA Table 3b_Add 2016 - Employment"},8,null,null,1,null,null,4,1,null,null,null,{"$f":"Questionnaire!X34","v":"OFWHICH"},{"$f":"Questionnaire!Y34","v":"OFWHICH"},0,5,-1,0,null,null,null,1,1,null,31,"Sum of figures reported in table 3b_Add_2028","[?;2028]",null,"IF(COUNT([?;*][?]{TAB3b_2028.EMP})=0,\":\",SUM([?;*][?]{TAB3b_2028.EMP}))","=","2028: IND.3=Sum(IND.3b_Add)"]
["Yes","Consistancy (Tables)","A5. LOG_CONSISTENCY",null,{"$f":"Questionnaire!E35","v":33},{"$f":"Questionnaire!F35","v":"Nested Indicators Table 8.3_Add -Monetary"},14,null,null,null,null,null,{"$f":"Questionnaire!M35","v":"TAB3b_2017.NAC"},{"$f":"Questionnaire!N35","v":"EPEA Table 3b_Add 2017 - Monetary"},9,null,3,1,null,null,3,2,null,null,null,{"$f":"Questionnaire!X35","v":"A"},{"$f":"Questionnaire!Y35","v":"Agriculture, forestry and fishing"},0,6,-1,0,null,null,null,1,1,null,32,"Sum of figures reported in table 3b_Add_2029","[?;2029]",null,"IF(COUNT([?;*][?]{TAB3b_2029.EMP})=0,\":\",SUM([?;*][?]{TAB3b_2029.EMP}))","=","2029: IND.3=Sum(IND.3b_Add)"]
["Yes","Consistancy (Equation)","A5. LOG_CONSISTENCY",null,{"$f":"Questionnaire!E36","v":34},{"$f":"Questionnaire!F36","v":"Year"},15,null,null,"Year",null,null,{"$f":"Questionnaire!M36","v":"TAB3b_2017.EMP"},{"$f":"Questionnaire!N36","v":"EPEA Table 3b_Add 2017 - Employment"},9,null,null,1,null,null,4,1,null,null,null,{"$f":"Questionnaire!X36","v":"E3739"},{"$f":"Questionnaire!Y36","v":"Sewerage: waste management and remendiation activities"},0,7,-1,0,null,null,null,1,1,null,33,"Sum of figures reported in table 3b_Add_2030","[?;2030]",null,"IF(COUNT([?;*][?]{TAB3b_2030.EMP})=0,\":\",SUM([?;*][?]{TAB3b_2030.EMP}))","=","2030: IND.3=Sum(IND.3b_Add)"]
["Yes","Plausibility","A6.1 LOG_PLAUSIBILITY",null,null,null,null,null,null,null,null,null,{"$f":"Questionnaire!M37","v":"TAB3b_2018.NAC"},{"$f":"Questionnaire!N37","v":"EPEA Table 3b_Add 2018 - Monetary"},10,null,3,1,null,null,3,2,null,null,null,{"$f":"Questionnaire!X37","v":"F"},{"$f":"Questionnaire!Y37","v":"Construction"},0,8,-1,0,null,null,null,1,1,null,34,"Sum of figures reported in table 3b_Add_2031","[?;2031]",null,"IF(COUNT([?;*][?]{TAB3b_2031.EMP})=0,\":\",SUM([?;*][?]{TAB3b_2031.EMP}))","=","2031: IND.3=Sum(IND.3b_Add)"]
["No","Confidentiality",null,null,null,null,null,null,null,null,null,null,{"$f":"Questionnaire!M38","v":"TAB3b_2018.EMP"},{"$f":"Questionnaire!N38","v":"EPEA Table 3b_Add 2018 - Employment"},10,null,null,1,null,null,4,1,null,null,null,{"$f":"Questionnaire!X38","v":"H"},{"$f":"Questionnaire!Y38","v":"Transportation and storage"},0,9,-1,0,null,null,null,1,1,null,35,"Sum of figures reported in table 3b_Add_2014","[?;2014]",null,"IF(COUNT([?;*][?]{TAB3b_2014.EMP})=0,\":\",SUM([?;*][?]{TAB3b_2014.EMP}))","=","2014: IND.3=Sum(IND.3b_Add)"]
[null,null,null,null,null,null,null,null,null,null,null,null,{"$f":"Questionnaire!M39","v":"TAB3b_2019.NAC"},{"$f":"Questionnaire!N39","v":"EPEA Table 3b_Add 2019 - Monetary"},11,null,3,1,null,null,3,2,null,null,null,{"$f":"Questionnaire!X39","v":"L"},{"$f":"Questionnaire!Y39","v":"Real estate activities"},0,10,-1,0,null,null,null,1,1,null,36,"Sum of figures reported in table 3b_Add_2015","[?;2015]",null,"IF(COUNT([?;*][?]{TAB3b_2015.EMP})=0,\":\",SUM([?;*][?]{TAB3b_2015.EMP}))","=","2015: IND.3=Sum(IND.3b_Add)"]
[null,null,null,null,null,"Type of character accepted",null,null,null,null,null,null,{"$f":"Questionnaire!M40","v":"TAB3b_2019.EMP"},{"$f":"Questionnaire!N40","v":"EPEA Table 3b_Add 2019 - Employment"},11,null,null,1,null,null,4,1,null,null,null,{"$f":"Questionnaire!X40","v":"TOTAL"},{"$f":"Questionnaire!Y40","v":"General government and NPISH"},0,0,-1,0,null,null,null,1,1,null,37,"Sum of figures reported in table 3b_Add_2016","[?;2016]",null,"IF(COUNT([?;*][?]{TAB3b_2016.EMP})=0,\":\",SUM([?;*][?]{TAB3b_2016.EMP}))","=","2016: IND.3=Sum(IND.3b_Add)"]
[null,null,null,null,null,"Positive only",0,null,null,null,null,null,{"$f":"Questionnaire!M41","v":"TAB3b_2020.NAC"},{"$f":"Questionnaire!N41","v":"EPEA Table 3b_Add 2020 - Monetary"},12,null,3,1,null,null,3,2,null,null,null,{"$f":"Questionnaire!X41","v":"TOTAL_HH"},{"$f":"Questionnaire!Y41","v":"Households"},0,1,-1,0,null,null,null,1,1,null,38,"Sum of figures reported in table 3b_Add_2017","[?;2017]",null,"IF(COUNT([?;*][?]{TAB3b_2017.EMP})=0,\":\",SUM([?;*][?]{TAB3b_2017.EMP}))","=","2017: IND.3=Sum(IND.3b_Add)"]
[null,null,null,null,null,"Any value",1,null,null,null,null,null,{"$f":"Questionnaire!M42","v":"TAB3b_2020.EMP"},{"$f":"Questionnaire!N42","v":"EPEA Table 3b_Add 2020 - Employment"},12,null,null,1,null,null,4,1,null,null,null,{"$f":"Questionnaire!X42","v":"T2/EP_SPE"},{"$f":"Questionnaire!Y42","v":"Corporations as specialist and secondary producers of market EP services"},0,2,-1,0,null,null,null,1,1,null,39,"Sum of figures reported in table 3b_Add_2018","[?;2018]",null,"IF(COUNT([?;*][?]{TAB3b_2018.EMP})=0,\":\",SUM([?;*][?]{TAB3b_2018.EMP}))","=","2018: IND.3=Sum(IND.3b_Add)"]
[null,null,null,null,null,"Year",2,null,null,null,null,null,{"$f":"Questionnaire!M43","v":"TAB3b_2021.NAC"},{"$f":"Questionnaire!N43","v":"EPEA Table 3b_Add 2021 - Monetary"},13,null,3,1,null,null,3,2,null,null,null,{"$f":"Questionnaire!X43","v":"T3/EP_BUS"},{"$f":"Questionnaire!Y43","v":"Corporations: other (also covering producers of ancillary EP services):  total"},0,3,-1,0,null,null,null,1,1,null,40,"Sum of figures reported in table 3b_Add_2019","[?;2019]",null,"IF(COUNT([?;*][?]{TAB3b_2019.EMP})=0,\":\",SUM([?;*][?]{TAB3b_2019.EMP}))","=","2019: IND.3=Sum(IND.3b_Add)"]
[null,null,null,null,null,"Frozen",3,null,null,null,null,null,{"$f":"Questionnaire!M44","v":"TAB3b_2021.EMP"},{"$f":"Questionnaire!N44","v":"EPEA Table 3b_Add 2021 - Employment"},13,null,null,1,null,null,4,1,null,null,null,{"$f":"Questionnaire!X44","v":"T3a/B"},{"$f":"Questionnaire!Y44","v":"Corporations: other (also covering producers of ancillary EP services):  NACE Rev. 2 B"},0,4,-1,0,null,null,null,1,1,null,41,"Sum of figures reported in table 3b_Add_2020","[?;2020]",null,"IF(COUNT([?;*][?]{TAB3b_2020.EMP})=0,\":\",SUM([?;*][?]{TAB3b_2020.EMP}))","=","2020: IND.3=Sum(IND.3b_Add)"]
[null,null,null,null,null,"Percentage",4,null,null,null,null,null,{"$f":"Questionnaire!M45","v":"TAB3b_2022.NAC"},{"$f":"Questionnaire!N45","v":"EPEA Table 3b_Add 2022 - Monetary"},14,null,3,1,null,null,3,2,null,null,null,{"$f":"Questionnaire!X45","v":"T3b/C"},{"$f":"Questionnaire!Y45","v":"Corporations: other (also covering producers of ancillary EP services):  NACE Rev. 2 C"},0,5,-1,0,null,null,null,1,1,null,42,"Sum of figures reported in table 3b_Add_2021","[?;2021]",null,"IF(COUNT([?;*][?]{TAB3b_2021.EMP})=0,\":\",SUM([?;*][?]{TAB3b_2021.EMP}))","=","2021: IND.3=Sum(IND.3b_Add)"]
[null,null,null,null,null,"Of which: total > sum(sub-totals)",5,null,null,null,null,null,{"$f":"Questionnaire!M46","v":"TAB3b_2022.EMP"},{"$f":"Questionnaire!N46","v":"EPEA Table 3b_Add 2022 - Employment"},14,null,null,1,null,null,4,1,null,null,null,{"$f":"Questionnaire!X46","v":"T3c/D"},{"$f":"Questionnaire!Y46","v":"Corporations: other (also covering producers of ancillary EP services):  NACE Rev. 2 D"},0,6,-1,0,null,null,null,1,1,null,43,"Sum of figures reported in table 3b_Add_2022","[?;2022]",null,"IF(COUNT([?;*][?]{TAB3b_2022.EMP})=0,\":\",SUM([?;*][?]{TAB3b_2022.EMP}))","=","2022: IND.3=Sum(IND.3b_Add)"]
[null,null,null,null,null,null,null,null,null,null,null,null,{"$f":"Questionnaire!M47","v":"TAB3b_2023.NAC"},{"$f":"Questionnaire!N47","v":"EPEA Table 3b_Add 2023 - Monetary"},15,null,3,1,null,null,3,2,null,null,null,{"$f":"Questionnaire!X47","v":"T3d/E36"},{"$f":"Questionnaire!Y47","v":"Corporations: other (also covering producers of ancillary EP services):  NACE Rev. E36"},0,7,-1,0,null,null,null,1,1,null,44,"Sum of figures reported in table 3b_Add_2023","[?;2023]",null,"IF(COUNT([?;*][?]{TAB3b_2023.EMP})=0,\":\",SUM([?;*][?]{TAB3b_2023.EMP}))","=","2023: IND.3=Sum(IND.3b_Add)"]
[null,null,null,null,null,null,null,null,null,null,null,null,{"$f":"Questionnaire!M48","v":"TAB3b_2023.EMP"},{"$f":"Questionnaire!N48","v":"EPEA Table 3b_Add 2023 - Employment"},15,null,null,1,null,null,4,1,null,null,null,{"$f":"Questionnaire!X48","v":"T3e/A_EP_OTH"},{"$f":"Questionnaire!Y48","v":"Corporations: other (also covering producers of ancillary EP services):  other NACE"},0,8,-1,0,null,null,null,1,1,null,45,"Table 7 Total CEPA Control","[TOT_NEEP.7;?]",null,"IFERROR([TOT_NEEP.7;?][?]{TAB7.GG}+[TOT_NEEP.7;?][?]{TAB7.CORP}+[TOT_NEEP.7;?][?]{TAB7.HH},\":\")","=","TAB7=TAB7.GG+TAB7.CORP+TAB7.HH"]
[null,null,null,null,null,null,null,null,null,null,null,null,{"$f":"Questionnaire!M49","v":"TAB3b_2024.NAC"},{"$f":"Questionnaire!N49","v":"EPEA Table 3b_Add 2024 - Monetary"},16,null,3,1,null,null,3,2,null,null,null,{"$f":"Questionnaire!X49","v":"EMP"},{"$f":"Questionnaire!Y49","v":"Employment (Full time equivalents)"},0,0,-1,0,"V",null,null,0.5,100]
[null,null,null,null,null,null,null,null,null,null,null,null,{"$f":"Questionnaire!M50","v":"TAB3b_2024.EMP"},{"$f":"Questionnaire!N50","v":"EPEA Table 3b_Add 2024 - Employment"},16,null,null,1,null,null,4,1,null,null,null,{"$f":"Questionnaire!X50","v":"P51G_NP.1"},{"$f":"Questionnaire!Y50","v":"Gross fixed capital formation and acquisition less disposals of non-financial non-produced assets"},0,0,-1,0,"M",null,null,0.5,100]
[null,null,null,null,null,null,null,null,null,null,null,null,{"$f":"Questionnaire!M51","v":"TAB3b_2025.NAC"},{"$f":"Questionnaire!N51","v":"EPEA Table 3b_Add 2025 - Monetary"},17,null,3,1,null,null,3,2,null,null,null,{"$f":"Questionnaire!X51","v":"P2.1"},{"$f":"Questionnaire!Y51","v":"Total intermediate consumption"},0,1,-1,0,"V","==","[P2_EPS.1]+[P2_NEPS.1]",0.5,100,null,null,null,"Range Management"]
[null,null,null,null,null,null,null,null,null,null,null,null,{"$f":"Questionnaire!M52","v":"TAB3b_2025.EMP"},{"$f":"Questionnaire!N52","v":"EPEA Table 3b_Add 2025 - Employment"},17,null,null,1,null,null,4,1,null,null,null,{"$f":"Questionnaire!X52","v":"P2_EPS.1"},{"$f":"Questionnaire!Y52","v":"Intermediate consumption of EP services "},0,2,-1,0,"M",null,null,0.5,100,null,null,null,"Single Pattern","@","Every single line"]
[null,null,null,null,null,null,null,null,null,null,null,null,{"$f":"Questionnaire!M53","v":"TAB3b_2026.NAC"},{"$f":"Questionnaire!N53","v":"EPEA Table 3b_Add 2026 - Monetary"},18,null,3,1,null,null,3,2,null,null,null,{"$f":"Questionnaire!X53","v":"P2_NEPS.1"},{"$f":"Questionnaire!Y53","v":"Intermediate consumption (excluding EP services) "},0,3,-1,0,"V",null,null,0.5,100,null,null,null,null,"#","Every single column"]
[null,null,null,null,null,null,null,null,null,null,null,null,{"$f":"Questionnaire!M54","v":"TAB3b_2026.EMP"},{"$f":"Questionnaire!N54","v":"EPEA Table 3b_Add 2026 - Employment"},18,null,null,1,null,null,4,1,null,null,null,{"$f":"Questionnaire!X54","v":"D1.1"},{"$f":"Questionnaire!Y54","v":"Compensation of employees"},0,4,-1,0,"V",null,null,0.5,100,null,null,null,"Filtering Pattern","[Token,Token][Token,Token]","Cell address per definition"]
[null,null,null,null,null,null,null,null,null,null,null,null,{"$f":"Questionnaire!M55","v":"TAB3b_2027.NAC"},{"$f":"Questionnaire!N55","v":"EPEA Table 3b_Add 2027 - Monetary"},19,null,3,1,null,null,3,2,null,null,null,{"$f":"Questionnaire!X55","v":"ICE.1"},{"$f":"Questionnaire!Y55","v":"Internal current expenditure ((P2_NEPS.1) + (D1.1))   "},0,5,-1,0,"V","==","[P2_NEPS.1]+[D1.1]",0.5,100,null,null,null,null,"[Address]{Sheet}","Reference to another Sheet/table"]
[null,null,null,null,null,null,null,null,null,null,null,null,{"$f":"Questionnaire!M56","v":"TAB3b_2027.EMP"},{"$f":"Questionnaire!N56","v":"EPEA Table 3b_Add 2027 - Employment"},19,null,null,1,null,null,4,1,null,null,null,{"$f":"Questionnaire!X56","v":"D29-D39.1"},{"$f":"Questionnaire!Y56","v":"Other taxes less subsidies on production"},0,6,-1,0,"V",null,null,0.5,100,null,null,null,"Token Syntax","Constant","A specific code"]
[null,null,null,null,null,null,null,null,null,null,null,null,{"$f":"Questionnaire!M57","v":"TAB3b_2028.NAC"},{"$f":"Questionnaire!N57","v":"EPEA Table 3b_Add 2028 - Monetary"},20,null,3,1,null,null,3,2,null,null,null,{"$f":"Questionnaire!X57","v":"P51C.1"},{"$f":"Questionnaire!Y57","v":"Consumption of fixed capital"},0,7,-1,0,"V",null,null,0.5,100,null,null,null,null,"?","All codes will be tested individualy"]
[null,null,null,null,null,null,null,null,null,null,null,null,{"$f":"Questionnaire!M58","v":"TAB3b_2028.EMP"},{"$f":"Questionnaire!N58","v":"EPEA Table 3b_Add 2028 - Employment"},20,null,null,1,null,null,4,1,null,null,null,{"$f":"Questionnaire!X58","v":"B2N.1"},{"$f":"Questionnaire!Y58","v":"Net operating surplus ((P1.1) + (RNO.1) - (P2.1) - (D1.1) - (P51C.1) - (D29-D39.1))"},0,8,-1,0,"V","==","[P1.1]+[RNO.1]-[P2.1]-[D1.1]-[P51C.1]-[D29-D39.1]",0.5,100,null,null,null,null,"*","All Indicator (Produce a Range Address)"]
[null,null,null,null,null,null,null,null,null,null,null,null,{"$f":"Questionnaire!M59","v":"TAB3b_2029.NAC"},{"$f":"Questionnaire!N59","v":"EPEA Table 3b_Add 2029 - Monetary"},21,null,3,1,null,null,3,2,null,null,null,{"$f":"Questionnaire!X59","v":"P1.1"},{"$f":"Questionnaire!Y59","v":"Total output of EP services ((P13.1) + (P11.1))"},0,9,-1,0,"M","==","[P11.1]+[P13.1]",0.5,100]
[null,null,null,null,null,null,null,null,null,null,null,null,{"$f":"Questionnaire!M60","v":"TAB3b_2029.EMP"},{"$f":"Questionnaire!N60","v":"EPEA Table 3b_Add 2029 - Employment"},21,null,null,1,null,null,4,1,null,null,null,{"$f":"Questionnaire!X60","v":"P11.1"},{"$f":"Questionnaire!Y60","v":"Market output of EP services (Includes P.11 (market output) of general government and NPISH local KAUs that are market producers)"},0,10,-1,0,"M",null,null,0.5,100]
[null,null,null,null,null,null,null,null,null,null,null,null,{"$f":"Questionnaire!M61","v":"TAB3b_2030.NAC"},{"$f":"Questionnaire!N61","v":"EPEA Table 3b_Add 2030 - Monetary"},22,null,3,1,null,null,3,2,null,null,null,{"$f":"Questionnaire!X61","v":"P13.1"},{"$f":"Questionnaire!Y61","v":"Non-market output of EP services (Includes P.131 (payments for non-market output))"},0,11,-1,0,"M",">=","[P3_EPS.1]",0.5,100]
[null,null,null,null,null,null,null,null,null,null,null,null,{"$f":"Questionnaire!M62","v":"TAB3b_2030.EMP"},{"$f":"Questionnaire!N62","v":"EPEA Table 3b_Add 2030 - Employment"},22,null,null,1,null,null,4,1,null,null,null,{"$f":"Questionnaire!X62","v":"RNO.1"},{"$f":"Questionnaire!Y62","v":"Related non-EP output"},0,12,-1,0,"V",null,null,0.5,100]
[null,null,null,null,null,null,null,null,null,null,null,null,{"$f":"Questionnaire!M63","v":"TAB3b_2031.NAC"},{"$f":"Questionnaire!N63","v":"EPEA Table 3b_Add 2031 - Monetary"},23,null,3,1,null,null,3,2,null,null,null,{"$f":"Questionnaire!X63","v":"P3_EPS.1"},{"$f":"Questionnaire!Y63","v":"Final consumption of EP services ((P13.1) less P.131 (payments for non-market output))"},0,13,-1,0,"M",null,null,0.5,100]
[null,null,null,null,null,null,null,null,null,null,null,null,{"$f":"Questionnaire!M64","v":"TAB3b_2031.EMP"},{"$f":"Questionnaire!N64","v":"EPEA Table 3b_Add 2031 - Employment"},24,null,null,1,null,null,4,1,null,null,null,{"$f":"Questionnaire!X64","v":"P2_EPS_EXT.1"},{"$f":"Questionnaire!Y64","v":"Total intermediate consumption of EP services (for production of EP services and for other production)"},0,14,-1,0,"M",null,null,0.5,100]
[null,null,null,null,null,null,null,null,null,null,null,null,{"$f":"Questionnaire!M65","v":"TAB8.3_2014.NAC"},{"$f":"Questionnaire!N65","v":"EPEA Table 8.3_Add 2014 - Monetary"},0,null,1,1,null,null,0,0,null,null,null,{"$f":"Questionnaire!X65","v":"P51G_NP.2"},{"$f":"Questionnaire!Y65","v":"Gross fixed capital formation and acquisition less disposals of non-financial non-produced assets"},0,0,-1,0,"M",null,null,0.5,100]
[null,null,null,null,null,null,null,null,null,null,null,null,{"$f":"Questionnaire!M66","v":"TAB8.3_2015.NAC"},{"$f":"Questionnaire!N66","v":"EPEA Table 8.3_Add 2015 - Monetary"},0,null,1,1,null,null,0,0,null,null,null,{"$f":"Questionnaire!X66","v":"P2.2"},{"$f":"Questionnaire!Y66","v":"Total intermediate consumption"},0,1,-1,0,"V","==","[P2_EPS.2]+[P2_NEPS.2]",0.5,100]
[null,null,null,null,null,null,null,null,null,null,null,null,{"$f":"Questionnaire!M67","v":"TAB8.3_2016.NAC"},{"$f":"Questionnaire!N67","v":"EPEA Table 8.3_Add 2016 - Monetary"},0,null,1,1,null,null,0,0,null,null,null,{"$f":"Questionnaire!X67","v":"P2_EPS.2"},{"$f":"Questionnaire!Y67","v":"Intermediate consumption of EP services "},0,2,-1,0,"M",">=","[P2_EPS_SP.2]",0.5,100]
[null,null,null,null,null,null,null,null,null,null,null,null,{"$f":"Questionnaire!M68","v":"TAB8.3_2017.NAC"},{"$f":"Questionnaire!N68","v":"EPEA Table 8.3_Add 2017 - Monetary"},0,null,1,1,null,null,0,0,null,null,null,{"$f":"Questionnaire!X68","v":"P2_EPS_SP.2"},{"$f":"Questionnaire!Y68","v":"of which: Intermediate consumption of EP services by specialist producers "},0,3,-1,0,"V",null,null,0.5,100]
[null,null,null,null,null,null,null,null,null,null,null,null,{"$f":"Questionnaire!M69","v":"TAB8.3_2018.NAC"},{"$f":"Questionnaire!N69","v":"EPEA Table 8.3_Add 2018 - Monetary"},0,null,1,1,null,null,0,0,null,null,null,{"$f":"Questionnaire!X69","v":"P2_NEPS.2"},{"$f":"Questionnaire!Y69","v":"Intermediate consumption (excluding EP services) "},0,4,-1,0,"V",null,null,0.5,100]
[null,null,null,null,null,null,null,null,null,null,null,null,{"$f":"Questionnaire!M70","v":"TAB8.3_2019.NAC"},{"$f":"Questionnaire!N70","v":"EPEA Table 8.3_Add 2019 - Monetary"},0,null,1,1,null,null,0,0,null,null,null,{"$f":"Questionnaire!X70","v":"D1.2"},{"$f":"Questionnaire!Y70","v":"Compensation of employees"},0,5,-1,0,"V",null,null,0.5,100]
[null,null,null,null,null,null,null,null,null,null,null,null,{"$f":"Questionnaire!M71","v":"TAB8.3_2020.NAC"},{"$f":"Questionnaire!N71","v":"EPEA Table 8.3_Add 2020 - Monetary"},0,null,1,1,null,null,0,0,null,null,null,{"$f":"Questionnaire!X71","v":"ICE.2"},{"$f":"Questionnaire!Y71","v":"Internal current expenditure ((P2_NEPS.2) + (D1.2))   \n"},0,6,-1,0,"V","==","[P2_NEPS.2]+[D1.2]",0.5,100]
[null,null,null,null,null,null,null,null,null,null,null,null,{"$f":"Questionnaire!M72","v":"TAB8.3_2021.NAC"},{"$f":"Questionnaire!N72","v":"EPEA Table 8.3_Add 2021 - Monetary"},0,null,1,1,null,null,0,0,null,null,null,{"$f":"Questionnaire!X72","v":"D29-D39.2"},{"$f":"Questionnaire!Y72","v":"Other taxes less subsidies on production"},0,7,-1,0,"V",null,null,0.5,100]
[null,null,null,null,null,null,null,null,null,null,null,null,{"$f":"Questionnaire!M73","v":"TAB8.3_2022.NAC"},{"$f":"Questionnaire!N73","v":"EPEA Table 8.3_Add 2022 - Monetary"},0,null,1,1,null,null,0,0,null,null,null,{"$f":"Questionnaire!X73","v":"P51C.2"},{"$f":"Questionnaire!Y73","v":"Consumption of fixed capital"},0,8,-1,0,"V",null,null,0.5,100]
[null,null,null,null,null,null,null,null,null,null,null,null,{"$f":"Questionnaire!M74","v":"TAB8.3_2023.NAC"},{"$f":"Questionnaire!N74","v":"EPEA Table 8.3_Add 2023 - Monetary"},0,null,1,1,null,null,0,0,null,null,null,{"$f":"Questionnaire!X74","v":"B2N.2"},{"$f":"Questionnaire!Y74","v":"Net operating surplus ((P11.2) + (RNO.2) - (P2.2) - (D1.2) - (P51C.2) - (D29-D39.2))"},0,9,-1,0,"V","==","[P11.2]+[RNO.2]-[P2.2]-[D1.2]-[P51C.2]-[D29-D39.2]",0.5,100]
[null,null,null,null,null,null,null,null,null,null,null,null,{"$f":"Questionnaire!M75","v":"TAB8.3_2024.NAC"},{"$f":"Questionnaire!N75","v":"EPEA Table 8.3_Add 2024 - Monetary"},0,null,1,1,null,null,0,0,null,null,null,{"$f":"Questionnaire!X75","v":"P11.2"},{"$f":"Questionnaire!Y75","v":"Market output of EP services ((P11_MA.2) + (P11_SA.2.))"},0,10,-1,0,"M","==","[P11_MA.2]+[P11_SA.2]",0.5,100]
[null,null,null,null,null,null,null,null,null,null,null,null,{"$f":"Questionnaire!M76","v":"TAB8.3_2025.NAC"},{"$f":"Questionnaire!N76","v":"EPEA Table 8.3_Add 2025 - Monetary"},0,null,1,1,null,null,0,0,null,null,null,{"$f":"Questionnaire!X76","v":"P11_MA.2"},{"$f":"Questionnaire!Y76","v":"Market output of EP services (from the main activity)"},0,11,-1,0,"V",null,null,0.5,100]
[null,null,null,null,null,null,null,null,null,null,null,null,{"$f":"Questionnaire!M77","v":"TAB8.3_2026.NAC"},{"$f":"Questionnaire!N77","v":"EPEA Table 8.3_Add 2026 - Monetary"},0,null,1,1,null,null,0,0,null,null,null,{"$f":"Questionnaire!X77","v":"P11_SA.2"},{"$f":"Questionnaire!Y77","v":"Market output of EP services (from secondary activities)"},0,12,-1,0,"V",null,null,0.5,100]
[null,null,null,null,null,null,null,null,null,null,null,null,{"$f":"Questionnaire!M78","v":"TAB8.3_2027.NAC"},{"$f":"Questionnaire!N78","v":"EPEA Table 8.3_Add 2027 - Monetary"},0,null,1,1,null,null,0,0,null,null,null,{"$f":"Questionnaire!X78","v":"RNO.2"},{"$f":"Questionnaire!Y78","v":"Related non-EP output"},0,13,-1,0,"V",null,null,0.5,100]
[null,null,null,null,null,null,null,null,null,null,null,null,{"$f":"Questionnaire!M79","v":"TAB8.3_2028.NAC"},{"$f":"Questionnaire!N79","v":"EPEA Table 8.3_Add 2028 - Monetary"},0,null,1,1,null,null,0,0,null,null,null,{"$f":"Questionnaire!X79","v":"P2_EPS_EXT.2"},{"$f":"Questionnaire!Y79","v":"Total intermediate consumption of EP services (for production of EP services and for other production)"},0,14,-1,0,"M",null,null,0.5,100]
[null,null,null,null,null,null,null,null,null,null,null,null,{"$f":"Questionnaire!M80","v":"TAB8.3_2029.NAC"},{"$f":"Questionnaire!N80","v":"EPEA Table 8.3_Add 2029 - Monetary"},0,null,1,1,null,null,0,0,null,null,null,{"$f":"Questionnaire!X80","v":"P51G_NP.3"},{"$f":"Questionnaire!Y80","v":"Gross fixed capital formation and acquisition less disposals of non-financial, non-produced assets"},0,0,-1,0,"M",">=","[INV_EOP.3]+[INV_IT.3]",0.5,100]
[null,null,null,null,null,null,null,null,null,null,null,null,{"$f":"Questionnaire!M81","v":"TAB8.3_2030.NAC"},{"$f":"Questionnaire!N81","v":"EPEA Table 8.3_Add 2030 - Monetary"},0,null,1,1,null,null,0,0,null,null,null,{"$f":"Questionnaire!X81","v":"INV_EOP.3"},{"$f":"Questionnaire!Y81","v":"GFCF on specific EP fixed assets (end-of-pipe technologies)"},0,1,-1,0,"V",null,null,0.5,100]
[null,null,null,null,null,null,null,null,null,null,null,null,{"$f":"Questionnaire!M82","v":"TAB8.3_2031.NAC"},{"$f":"Questionnaire!N82","v":"EPEA Table 8.3_Add 2031 - Monetary"},0,null,1,1,null,null,0,0,null,null,null,{"$f":"Questionnaire!X82","v":"INV_IT.3"},{"$f":"Questionnaire!Y82","v":"GFCF on cleaner EP fixed assets (integrated technologies)"},0,2,-1,0,"V",null,null,0.5,100]
[null,null,null,null,null,null,null,null,null,null,null,null,null,null,null,null,null,null,null,null,null,null,null,null,null,{"$f":"Questionnaire!X83","v":"P2.3"},{"$f":"Questionnaire!Y83","v":"Total Intermediate consumption"},0,3,-1,0,"V","==","[P2_EPS.3]+[P2_NEPS.3]",0.5,100]
[null,null,null,null,null,null,null,null,null,null,null,null,null,null,null,null,null,null,null,null,null,null,null,null,null,{"$f":"Questionnaire!X84","v":"P2_EPS.3"},{"$f":"Questionnaire!Y84","v":"Intermediate consumption of EP services"},0,4,-1,0,"M",null,null,0.5,100]
[null,null,null,null,null,null,null,null,null,null,null,null,null,null,null,null,null,null,null,null,null,null,null,null,null,{"$f":"Questionnaire!X85","v":"P2_NEPS.3"},{"$f":"Questionnaire!Y85","v":"Intermediate consumption (excluding EP services)"},0,5,-1,0,"V",null,null,0.5,100]
[null,null,null,null,null,null,null,null,null,null,null,null,null,null,null,null,null,null,null,null,null,null,null,null,null,{"$f":"Questionnaire!X86","v":"D1.3"},{"$f":"Questionnaire!Y86","v":"Compensation of employees"},0,6,-1,0,"V",null,null,0.5,100]
[null,null,null,null,null,null,null,null,null,null,null,null,null,null,null,null,null,null,null,null,null,null,null,null,null,{"$f":"Questionnaire!X87","v":"P1_ANC.3"},{"$f":"Questionnaire!Y87","v":"Ancillary EP output (simplified valuation legally acceptable) ((P2_NEPS.3) + (D1.3))"},0,7,-1,0,"M","==","[P2_NEPS.3]+[D1.3]",0.5,100]
[null,null,null,null,null,null,null,null,null,null,null,null,null,null,null,null,null,null,null,null,null,null,null,null,null,{"$f":"Questionnaire!X88","v":"D29-D39.3"},{"$f":"Questionnaire!Y88","v":"Other taxes less subsidies on production"},0,8,-1,0,"V",null,null,0.5,100]
[null,null,null,null,null,null,null,null,null,null,null,null,null,null,null,null,null,null,null,null,null,null,null,null,null,{"$f":"Questionnaire!X89","v":"P51C.3"},{"$f":"Questionnaire!Y89","v":"Consumption of fixed capital"},0,9,-1,0,"V",null,null,0.5,100]
[null,null,null,null,null,null,null,null,null,null,null,null,null,null,null,null,null,null,null,null,null,null,null,null,null,{"$f":"Questionnaire!X90","v":"P1_ANC_ESA.3"},{"$f":"Questionnaire!Y90","v":"Ancillary EP output (ESA-compatible output) ((P2_NEPS.3) + (D1.3) + (P51C.3) + (D29-D39.3))"},0,10,-1,0,"V","==","[P2_NEPS.3]+[D1.3]+[P51C.3]+[D29-D39.3]",0.5,100]
[null,null,null,null,null,null,null,null,null,null,null,null,null,null,null,null,null,null,null,null,null,null,null,null,null,{"$f":"Questionnaire!X91","v":"RNO.3"},{"$f":"Questionnaire!Y91","v":"Related non-EP output"},0,11,-1,0,"V",null,null,0.5,100]
[null,null,null,null,null,null,null,null,null,null,null,null,null,null,null,null,null,null,null,null,null,null,null,null,null,{"$f":"Questionnaire!X92","v":"P2_EPS_EXT.3"},{"$f":"Questionnaire!Y92","v":"Total intermediate consumption of EP services (for production of EP services and for other production)"},0,12,-1,0,"M",null,null,0.5,100]
[null,null,null,null,null,null,null,null,null,null,null,null,null,null,"Exemple of Row/Col Evaluation Order",null,null,null,null,null,null,null,null,null,null,{"$f":"Questionnaire!X93","v":"P1.4"},{"$f":"Questionnaire!Y93","v":"Total output of EP services (P11.4 + P1_ANC.4 + P13.4)"},0,0,-1,0,"M","==","[P11.4]+[P1_ANC.4]+[P13.4]",0.5,100]
[null,null,null,null,null,null,null,null,null,null,null,null,null,null,"Description",null,"Parameter",null,null,null,null,null,null,null,null,{"$f":"Questionnaire!X94","v":"P11.4"},{"$f":"Questionnaire!Y94","v":"Market output of EP services (= P11.1 + P11.2)"},0,1,-1,0,"M",null,null,0.5,100]
[null,null,null,null,null,null,null,null,null,null,null,null,null,null,"Table With non Nested Line and Non Nested Column: starting evaluation by Row, then by Column",null,"R1C1",null,null,null,null,null,null,null,null,{"$f":"Questionnaire!X95","v":"P1_ANC.4"},{"$f":"Questionnaire!Y95","v":"Ancillary EP output (= P1_ANC.3)"},0,2,-1,0,"M",null,null,0.5,100]
[null,null,null,null,null,null,null,null,null,null,null,null,null,null,"Table With non Nested Line and Non Nested Column: starting evaluation by Column, then by Row",null,"C1R1",null,null,null,null,null,null,null,null,{"$f":"Questionnaire!X96","v":"P13.4"},{"$f":"Questionnaire!Y96","v":"Non-market output of EP services (=P13.1)"},0,3,-1,0,"M",null,null,0.5,100]
[null,null,null,null,null,null,null,null,null,null,null,null,null,null,"Table With 2 Nested Lines and Non Nested Column: starting evaluation by Nexted Row 2, then Column, then nested Row 1",null,"R2C1R1",null,null,null,null,null,null,null,null,{"$f":"Questionnaire!X97","v":"P2_EPS.4"},{"$f":"Questionnaire!Y97","v":"Intermediate consumption of EP services by specialist producers (Intermediate consumption of EP services of corporations specialist producers and of general government' units as producers of EP services )"},0,4,-1,0,"M",null,null,0.5,100]
[null,null,null,null,null,null,null,null,null,null,null,null,null,null,"Table With 2 Nested Lines and Non Nested Column: starting evaluation by Nexted Row 1, then nested Row 2, then Column",null,"R1R2C1",null,null,null,null,null,null,null,null,{"$f":"Questionnaire!X98","v":"P7.4"},{"$f":"Questionnaire!Y98","v":"Imports of EP services"},0,5,-1,0,"M",null,null,0.5,100]
[null,null,null,null,null,null,null,null,null,null,null,null,null,null,"Table With 2 Nested Lines and 2 Nested Columns: starting evaluation by Nexted Row 2, then Nested Column 2, then Nested Row 1 then Nested Column 1",null,"R2C2R1C1",null,null,null,null,null,null,null,null,{"$f":"Questionnaire!X99","v":"P6.4"},{"$f":"Questionnaire!Y99","v":"Exports of EP services"},0,6,-1,0,"M",null,null,0.5,100]
[null,null,null,null,null,null,null,null,null,null,null,null,null,null,null,null,null,null,null,null,null,null,null,null,null,{"$f":"Questionnaire!X100","v":"D21-D31.4"},{"$f":"Questionnaire!Y100","v":"VAT and other taxes less subsidies on EP services"},0,7,-1,0,"M",null,null,0.5,100]
[null,null,null,null,null,null,null,null,null,null,null,null,null,null,null,null,null,null,null,null,null,null,null,null,null,{"$f":"Questionnaire!X101","v":"SUP_NU.4"},{"$f":"Questionnaire!Y101","v":"Environmental protection supply at purchasers' prices available to resident users (= P1.4 - P2_EPS_SP.4 + P7.4 - P6.4 + D21-D31.4)"},0,8,-1,0,"M","==","[P1.4]-[P2_EPS.4]+[P7.4]-[P6.4]+[D21-D31.4]",0.5,100]
[null,null,null,null,null,null,null,null,null,null,null,null,null,null,null,null,null,null,null,null,null,null,null,null,null,{"$f":"Questionnaire!X102","v":"P3_EPS.5"},{"$f":"Questionnaire!Y102","v":"Final consumption of EP services"},0,0,-1,0,"M",null,null,0.5,100]
[null,null,null,null,null,null,null,null,null,null,null,null,null,null,null,null,null,null,null,null,null,null,null,null,null,{"$f":"Questionnaire!X103","v":"P3_ACP_ec.5"},{"$f":"Questionnaire!Y103","v":"Final consumption of EP/RM products other than EP services and other than RM characteristic products (cleaner/resource efficient goods) - EXTRA COST"},0,1,-1,0,"V",null,null,0.5,100]
[null,null,null,null,null,null,null,null,null,null,null,null,null,null,null,null,null,null,null,null,null,null,null,null,null,{"$f":"Questionnaire!X104","v":"P3_ACP_fc.5"},{"$f":"Questionnaire!Y104","v":"Final consumption of EP/RM products other than EP services and other than RM characteristic products (cleaner/resource efficient goods) - FULL COST"},0,2,-1,0,"V",null,null,0.5,100]
[null,null,null,null,null,null,null,null,null,null,null,null,null,null,null,null,null,null,null,null,null,null,null,null,null,{"$f":"Questionnaire!X105","v":"D3_D7_D92_D99_PAY_GG.6"},{"$f":"Questionnaire!Y105","v":"General government: transfers paid "},0,0,-1,0,"M",null,null,0.5,100]
[null,null,null,null,null,null,null,null,null,null,null,null,null,null,null,null,null,null,null,null,null,null,null,null,null,{"$f":"Questionnaire!X106","v":"D3_D7_D92_D99_REC_GG.6"},{"$f":"Questionnaire!Y106","v":"General government: transfers received from the rest of the world"},0,1,-1,0,"M","==","[D3_D7_REC_GG.6]+[D92_D99_REC_GG.6]",0.5,100]
[null,null,null,null,null,null,null,null,null,null,null,null,null,null,null,null,null,null,null,null,null,null,null,null,null,{"$f":"Questionnaire!X107","v":"D3_D7_REC_GG.6"},{"$f":"Questionnaire!Y107","v":"General government: current transfers received from the rest of the world"},0,2,-1,0,"V",null,null,0.5,100]
[null,null,null,null,null,null,null,null,null,null,null,null,null,null,null,null,null,null,null,null,null,null,null,null,null,{"$f":"Questionnaire!X108","v":"D92_D99_REC_GG.6"},{"$f":"Questionnaire!Y108","v":"General Government: investments grants and other capital transfers received from the rest of the world"},0,3,-1,0,"V",null,null,0.5,100]
[null,null,null,null,null,null,null,null,null,null,null,null,null,null,null,null,null,null,null,null,null,null,null,null,null,{"$f":"Questionnaire!X109","v":"D3_D7_D92_D99_REC_CORP.6"},{"$f":"Questionnaire!Y109","v":"Corporations: transfers received from general government and the rest of the world"},0,4,-1,0,"M","==","[D3_D7_REC_CORP.6]+[D92_D99_REC_CORP.6]",0.5,100]
[null,null,null,null,null,null,null,null,null,null,null,null,null,null,null,null,null,null,null,null,null,null,null,null,null,{"$f":"Questionnaire!X110","v":"D3_D7_REC_CORP.6"},{"$f":"Questionnaire!Y110","v":"Corporations: current transfers received from the general government and rest of the world"},0,5,-1,0,"V",null,null,0.5,100]
[null,null,null,null,null,null,null,null,null,null,null,null,null,null,null,null,null,null,null,null,null,null,null,null,null,{"$f":"Questionnaire!X111","v":"D92_D99_REC_CORP.6"},{"$f":"Questionnaire!Y111","v":"Corporations: investments grants and other capital transfers received from general government and rest of the world"},0,6,-1,0,"V",null,null,0.5,100]
[null,null,null,null,null,null,null,null,null,null,null,null,null,null,null,null,null,null,null,null,null,null,null,null,null,{"$f":"Questionnaire!X112","v":"TAX_EM_PAY_CORP.6"},{"$f":"Questionnaire!Y112","v":"Corporations: earmarked taxes paid"},0,7,-1,0,"V",null,null,0.5,100]
[null,null,null,null,null,null,null,null,null,null,null,null,null,null,null,null,null,null,null,null,null,null,null,null,null,{"$f":"Questionnaire!X113","v":"D3_D7_D92_D99_REC_HH.6"},{"$f":"Questionnaire!Y113","v":"Households: transfers received from general government and rest of the world"},0,8,-1,0,"M",null,null,0.5,100]
[null,null,null,null,null,null,null,null,null,null,null,null,null,null,null,null,null,null,null,null,null,null,null,null,null,{"$f":"Questionnaire!X114","v":"TAX_EM_PAY_HH.6"},{"$f":"Questionnaire!Y114","v":"Households: earmarked taxes paid"},0,9,-1,0,"V",null,null,0.5,100]
[null,null,null,null,null,null,null,null,null,null,null,null,null,null,null,null,null,null,null,null,null,null,null,null,null,{"$f":"Questionnaire!X115","v":"D3_D7_D92_D99_PAY_RW.6"},{"$f":"Questionnaire!Y115","v":"Rest of the World: transfers paid"},0,10,-1,0,"M",null,null,0.5,100]
[null,null,null,null,null,null,null,null,null,null,null,null,null,null,null,null,null,null,null,null,null,null,null,null,null,{"$f":"Questionnaire!X116","v":"D3_D7_D92_D99_REC_RW.6"},{"$f":"Questionnaire!Y116","v":"Rest of the World: transfers received"},0,11,-1,0,"M","==","[D3_D7_REC_RW.6]+[D92_D99_REC_RW.6]",0.5,100]
[null,null,null,null,null,null,null,null,null,null,null,null,null,null,null,null,null,null,null,null,null,null,null,null,null,{"$f":"Questionnaire!X117","v":"D3_D7_REC_RW.6"},{"$f":"Questionnaire!Y117","v":"Rest of the World: current transfers received from general government"},0,12,-1,0,"V",null,null,0.5,100]
[null,null,null,null,null,null,null,null,null,null,null,null,null,null,null,null,null,null,null,null,null,null,null,null,null,{"$f":"Questionnaire!X118","v":"D92_D99_REC_RW.6"},{"$f":"Questionnaire!Y118","v":"Rest of the World: investments grants and other capital transfers received from general government"},0,13,-1,0,"V",null,null,0.5,100]
[null,null,null,null,null,null,null,null,null,null,null,null,null,null,null,null,null,null,null,null,null,null,null,null,null,{"$f":"Questionnaire!X119","v":"NEGB2N_GG.6"},{"$f":"Questionnaire!Y119","v":"Negative net operating surplus of market producers in general government sector (non-consolidated)"},0,14,-1,0,"V",null,null,0.5,100]
[null,null,null,null,null,null,null,null,null,null,null,null,null,null,null,null,null,null,null,null,null,null,null,null,null,{"$f":"Questionnaire!X120","v":"TOT_NEEP.7"},{"$f":"Questionnaire!Y120","v":"National expenditure on environmental protection"},0,0,-1,0,"M",">>",0,0.5,100]
[null,null,null,null,null,null,null,null,null,null,null,null,null,null,null,null,null,null,null,null,null,null,null,null,null,{"$f":"Questionnaire!X121","v":"P51G_NP.1"},{"$f":"Questionnaire!Y121","v":"Gross fixed capital formation and acquisition less disposals of non-financial non-produced assets (for characteristic activities)"},0,0,-1,0,"V",null,null,0.5,100]
[null,null,null,null,null,null,null,null,null,null,null,null,null,null,null,null,null,null,null,null,null,null,null,null,null,{"$f":"Questionnaire!X122","v":"P51G_CREP_ec.1"},{"$f":"Questionnaire!Y122","v":"Gross fixed capital formation  in cleaner and resource efficient products for non characteristic activities - EXTRA COST"},0,1,-1,0,"V",null,null,0.5,100]
[null,null,null,null,null,null,null,null,null,null,null,null,null,null,null,null,null,null,null,null,null,null,null,null,null,{"$f":"Questionnaire!X123","v":"P51G_CREP_fc.1"},{"$f":"Questionnaire!Y123","v":"Gross fixed capital formation  in cleaner and resource efficient products for non characteristic activities - FULL COST"},0,2,-1,0,"V",null,null,0.5,100]
[null,null,null,null,null,null,null,null,null,null,null,null,null,null,null,null,null,null,null,null,null,null,null,null,null,{"$f":"Questionnaire!X124","v":"P51G_NP.2 "},{"$f":"Questionnaire!Y124","v":"Gross fixed capital formation and acquisition less disposals of non-financial non-produced assets (for characteristic activities)"},0,3,-1,0,"V",null,null,0.5,100]
[null,null,null,null,null,null,null,null,null,null,null,null,null,null,null,null,null,null,null,null,null,null,null,null,null,{"$f":"Questionnaire!X125","v":"P51G_CREP_ec.2"},{"$f":"Questionnaire!Y125","v":"Gross fixed capital formation  in cleaner and resource efficient products for non characteristic activities - EXTRA COST"},0,4,-1,0,"V",null,null,0.5,100]
[null,null,null,null,null,null,null,null,null,null,null,null,null,null,null,null,null,null,null,null,null,null,null,null,null,{"$f":"Questionnaire!X126","v":"P51G_CREP_fc.2"},{"$f":"Questionnaire!Y126","v":"Gross fixed capital formation  in cleaner and resource efficient products for non characteristic activities - FULL COST"},0,5,-1,0,"V",null,null,0.5,100]
[null,null,null,null,null,null,null,null,null,null,null,null,null,null,null,null,null,null,null,null,null,null,null,null,null,{"$f":"Questionnaire!X127","v":"P51G_NP.3"},{"$f":"Questionnaire!Y127","v":"Gross fixed capital formation and acquisition less disposals of non-financial non-produced assets (for characteristic activities)"},0,6,-1,0,"V",null,null,0.5,100]
[null,null,null,null,null,null,null,null,null,null,null,null,null,null,null,null,null,null,null,null,null,null,null,null,null,{"$f":"Questionnaire!X128","v":"P51G_CREP_ec.3"},{"$f":"Questionnaire!Y128","v":"Gross fixed capital formation  in cleaner and resource efficient products for non characteristic activities - EXTRA COST"},0,7,-1,0,"V",null,null,0.5,100]
[null,null,null,null,null,null,null,null,null,null,null,null,null,null,null,null,null,null,null,null,null,null,null,null,null,{"$f":"Questionnaire!X129","v":"P51G_CREP_fc.3"},{"$f":"Questionnaire!Y129","v":"Gross fixed capital formation  in cleaner and resource efficient products for non characteristic activities -\nFULL COST"},0,8,-1,0,"V",null,null,0.5,100]
[]
[]
[]
[]
[]
[]
[]
[]
[]
[null,null,null,null,null,null,null,null,null,null,null,null,null,null,null,null,null,null,null,null,null,null,null,null,null,null,null,null,null,null,null,"Equation Coverage temporary definition"]
[null,null,null,null,null,null,null,null,null,null,null,null,null,null,null,null,null,null,null,null,null,null,null,null,null,null,null,null,null,null,null,"Description",null,"Parameter"]
[null,null,null,null,null,null,null,null,null,null,null,null,null,null,null,null,null,null,null,null,null,null,null,null,null,null,null,null,null,null,null,"Equality (equal with missing items)",null,"=="]
[null,null,null,null,null,null,null,null,null,null,null,null,null,null,null,null,null,null,null,null,null,null,null,null,null,null,null,null,null,null,null,"Equality (greater with missing items)",null,"=>"]
[null,null,null,null,null,null,null,null,null,null,null,null,null,null,null,null,null,null,null,null,null,null,null,null,null,null,null,null,null,null,null,"Inequality (could be equal with missing items)",null,">="]
[null,null,null,null,null,null,null,null,null,null,null,null,null,null,null,null,null,null,null,null,null,null,null,null,null,null,null,null,null,null,null,"Inequality (greater with missing items)",null,">>"]

{"sheet":"NotApp","index":4,"n_rows":1008,"n_cols":83,"rows_kept":1008,"cut":false,"hidden":true,"merged":[[1,56,1,57]]}
[null,null,null,{"$f":"COLUMN(D3)","v":4},null,null,null,null,null,null,null,null,null,null,null,null,null,null,null,null,null,null,null,null,null,{"$f":"COLUMN(Z3)","v":26},null,null,null,null,null,null,null,null,null,null,null,null,null,null,null,null,null,null,null,null,{"$f":"COLUMN(AU3)","v":47},null,null,null,null,null,null,null,null,null,null,null,null,{"$f":"COLUMN(BH3)","v":60}]
[null,"T1 ","Year","CEPA 1","of which CEPA 1.1.2 and 1.2.2 Climate change","CEPA 2","CEPA 3","CEPA 4","CEPA 5","CEPA 6","CEPA 7","CEPA 8","CEPA 9","Sum of CEPA 7+8+9","TOTAL","CREMA11B_13C_14","CREMA13A","CREMA13B",null,null,null,null,"T3B_Add",null,null,"CEPA 1","of which CEPA 1.1.2 and 1.2.2 Climate change","CEPA 2","CEPA 3","CEPA 4","CEPA 5","CEPA 6","CEPA 7","CEPA 8","CEPA 9","Sum of CEPA 7+8+9","TOTAL","CREMA11B_13C_14","CREMA13A","CREMA13B",null,null,null,null,null,null,null,null,null,null,null,null,null,null,null,null,"T8.3_Add",null,null,"CEPA 1","of which CEPA 1.1.2 and 1.2.2 Climate change","CEPA 2","CEPA 3","CEPA 4","CEPA 5","CEPA 6","CEPA 7","CEPA 8","CEPA 9","Sum of CEPA 7+8+9","TOTAL","CREMA11B_13C_14","CREMA13A","CREMA13B"]
[null,"( P51G_NP.1 ) Gross fixed capital formation and acquisition less disposals of non-financial non-produced assets",2006,null,null,null,null,null,null,null,null,null,null,null,null,null,null,null,null,null,null,null,"( P51G_NP.3bA ) Gross fixed capital formation and acquisition less disposals of non-financial, non-produced assets","C10-C12","Manufacture of food, beverages and tobacco products",null,null,null,null,null,null,null,null,null,null,null,null,null,null,null,null,null,null,null,null,null,null,null,null,null,null,null,null,null,null,null,"( P3_EPS.5 )","B","Mining and Quarring"]
[null,null,2007,null,null,null,null,null,null,null,null,null,null,null,null,null,null,null,null,null,null,null,null,"C17","Manufacture of paper and paper products",null,null,null,null,null,null,null,null,null,null,null,null,null,null,null,null,null,null,null,null,null,null,null,null,null,null,null,null,null,null,null,null,"C","Manufacturing",null,null,null,null,null,null,null,null,null,null,null,null,null,null,null,null,null,null,null,null,null,null,null,"( P3_EPS.5 )"]
[null,null,2008,null,null,null,null,null,null,null,null,null,null,null,null,null,null,null,null,null,null,null,null,"C19_C20","Manufacture of coke, chemicals and refined petroleum and chemical products",null,null,null,null,null,null,null,null,null,null,null,null,null,null,null,null,null,null,null,null,null,null,null,null,null,null,null,null,null,null,null,null,"D","Electricity, gas, steam and air conditionning supply",null,null,null,null,null,null,null,null,null,null,null,null,null,null,null,null,null,null,null,null,null,null,null,"( P3_ACP_ec.5 )"]
[null,null,2009,null,null,null,null,null,null,null,null,null,null,null,null,null,null,null,null,null,null,null,null,"C21-C23","Manufacture of pharmaceuticals, rubber, plastic and other non-metallic products",null,null,null,null,null,null,null,null,null,null,null,null,null,null,null,null,null,null,null,null,null,null,null,null,null,null,null,null,null,null,null,null,"E36","Water supply",null,null,null,null,null,null,null,null,null,null,null,null,null,null,null,null,null,null,null,null,null,null,null,"( P3_ACP_fc.5 )"]
[null,null,2010,null,null,null,null,null,null,null,null,null,null,null,null,null,null,null,null,null,null,null,null,"C24","Manufacture of basic metals",null,null,null,null,null,null,null,null,null,null,null,null,null,null,null,null,null,null,null,null,null,null,null,null,null,null,null,null,null,null,null,null,"A_EP_OTH","OTHER NACE"]
[null,null,2011,null,null,null,null,null,null,null,null,null,null,null,null,null,null,null,null,null,null,null,null,"C25-C30","Manufacture of fabricated metal products, including machinery and equipment",null,null,null,null,null,null,null,null,null,null,null,null,null,null,null,null,null,null,null,null,null,null,null,null,null,null,null,null,null,null,null,null,"?","of which:"]
[null,null,2012,null,null,null,null,null,null,null,null,null,null,null,null,null,null,null,null,null,null,null,null,"C13-C16_C18_C31-C33","Other manufacturing activities",null,null,null,null,null,null,null,null,null,null,null,null,null,null,null,null,null,null,null,null,null,null,null,null,null,null,null,null,null,null,null,null,"A","Agriculture, forestry and fishing"]
[null,null,2013,null,null,null,null,null,null,null,null,null,null,null,null,null,null,null,null,null,null,null,"( INV_EOP.3bA ) GFCF on specific EP fixed assets (end-of-pipe technologies)","C10-C12","Manufacture of food, beverages and tobacco products",null,null,null,null,null,null,null,null,null,null,null,null,null,null,null,null,null,null,null,null,null,null,null,null,null,null,null,null,null,null,null,null,"E3739","Sewerage: waste management and remendiation activities"]
[null,null,2014,null,null,null,null,null,null,null,null,null,null,null,null,null,null,null,null,null,null,null,null,"C17","Manufacture of paper and paper products",null,null,null,null,null,null,null,null,null,null,null,null,null,null,null,null,null,null,null,null,null,null,null,null,null,null,null,null,null,null,null,null,"F","Construction"]
[null,null,2015,null,null,null,null,null,null,null,null,null,null,null,null,null,null,null,null,null,null,null,null,"C19_C20","Manufacture of coke, chemicals and refined petroleum and chemical products",null,null,null,null,null,null,null,null,null,null,null,null,null,null,null,null,null,null,null,null,null,null,null,null,null,null,null,null,null,null,null,null,"H","Transportation and storage"]
[null,null,2016,null,null,null,null,null,null,null,null,null,null,null,null,null,null,null,null,null,null,null,null,"C21-C23","Manufacture of pharmaceuticals, rubber, plastic and other non-metallic products",null,null,null,null,null,null,null,null,null,null,null,null,null,null,null,null,null,null,null,null,null,null,null,null,null,null,null,null,null,null,null,null,"L","Real estate activities"]
[null,null,2017,null,null,null,null,null,null,null,null,null,null,null,null,null,null,null,null,null,null,null,null,"C24","Manufacture of basic metals",null,null,null,null,null,null,null,null,null,null,null,null,null,null,null,null,null,null,null,null,null,null,null,null,null,null,null,null,null,null,null,"( P3_ACP_ec.5 )","B","Mining and Quarring"]
[null,null,2018,null,null,null,null,null,null,null,null,null,null,null,null,null,null,null,null,null,null,null,null,"C25-C30","Manufacture of fabricated metal products, including machinery and equipment",null,null,null,null,null,null,null,null,null,null,null,null,null,null,null,null,null,null,null,null,null,null,null,null,null,null,null,null,null,null,null,null,"C","Manufacturing"]
[null,null,2019,null,null,null,null,null,null,null,null,null,null,null,null,null,null,null,null,null,null,null,null,"C13-C16_C18_C31-C33","Other manufacturing activities",null,null,null,null,null,null,null,null,null,null,null,null,null,null,null,null,null,null,null,null,null,null,null,null,null,null,null,null,null,null,null,null,"D","Electricity, gas, steam and air conditionning supply"]
[null,null,2020,null,null,null,null,null,null,null,null,null,null,null,null,null,null,null,null,null,null,null,"( INV_IT.3bA ) GFCF on cleaner EP fixed assets (integrated technologies)","C10-C12","Manufacture of food, beverages and tobacco products",null,null,null,null,null,null,null,null,null,null,null,null,null,null,null,null,null,null,null,null,null,null,null,null,null,null,null,null,null,null,null,null,"E36","Water supply"]
[null,null,2021,null,null,null,null,null,null,null,null,null,null,null,null,null,null,null,null,null,null,null,null,"C17","Manufacture of paper and paper products",null,null,null,null,null,null,null,null,null,null,null,null,null,null,null,null,null,null,null,null,null,null,null,null,null,null,null,null,null,null,null,null,"A_EP_OTH","OTHER NACE"]
[null,null,2022,null,null,null,null,null,null,null,null,null,null,null,null,null,null,null,null,null,null,null,null,"C19_C20","Manufacture of coke, chemicals and refined petroleum and chemical products",null,null,null,null,null,null,null,null,null,null,null,null,null,null,null,null,null,null,null,null,null,null,null,null,null,null,null,null,null,null,null,null,"?","of which:"]
[null,null,2023,null,null,null,null,null,null,null,null,null,null,null,null,null,null,null,null,null,null,null,null,"C21-C23","Manufacture of pharmaceuticals, rubber, plastic and other non-metallic products",null,null,null,null,null,null,null,null,null,null,null,null,null,null,null,null,null,null,null,null,null,null,null,null,null,null,null,null,null,null,null,null,"A","Agriculture, forestry and fishing"]
[null,"( P2.1 ) Total intermediate consumption",2006,null,null,null,null,null,null,null,null,null,null,null,null,null,null,null,null,null,null,null,null,"C24","Manufacture of basic metals",null,null,null,null,null,null,null,null,null,null,null,null,null,null,null,null,null,null,null,null,null,null,null,null,null,null,null,null,null,null,null,null,"E3739","Sewerage: waste management and remendiation activities"]
[null,null,2007,null,null,null,null,null,null,null,null,null,null,null,null,null,null,null,null,null,null,null,null,"C25-C30","Manufacture of fabricated metal products, including machinery and equipment",null,null,null,null,null,null,null,null,null,null,null,null,null,null,null,null,null,null,null,null,null,null,null,null,null,null,null,null,null,null,null,null,"F","Construction"]
[null,null,2008,null,null,null,null,null,null,null,null,null,null,null,null,null,null,null,null,null,null,null,null,"C13-C16_C18_C31-C33","Other manufacturing activities",null,null,null,null,null,null,null,null,null,null,null,null,null,null,null,null,null,null,null,null,null,null,null,null,null,null,null,null,null,null,null,null,"H","Transportation and storage"]
[null,null,2009,null,null,null,null,null,null,null,null,null,null,null,null,null,null,null,null,null,null,null,"( P2.3bA ) Total intermediate consumption","C10-C12","Manufacture of food, beverages and tobacco products",null,null,null,null,null,null,null,null,null,null,null,null,null,null,null,null,null,null,null,null,null,null,null,null,null,null,null,null,null,null,null,null,"L","Real estate activities"]
[null,null,2010,null,null,null,null,null,null,null,null,null,null,null,null,null,null,null,null,null,null,null,null,"C17","Manufacture of paper and paper products",null,null,null,null,null,null,null,null,null,null,null,null,null,null,null,null,null,null,null,null,null,null,null,null,null,null,null,null,null,null,null,"( P3_ACP_fc.5 )","B","Mining and Quarring"]
[null,null,2011,null,null,null,null,null,null,null,null,null,null,null,null,null,null,null,null,null,null,null,null,"C19_C20","Manufacture of coke, chemicals and refined petroleum and chemical products",null,null,null,null,null,null,null,null,null,null,null,null,null,null,null,null,null,null,null,null,null,null,null,null,null,null,null,null,null,null,null,null,"C","Manufacturing"]
[null,null,2012,null,null,null,null,null,null,null,null,null,null,null,null,null,null,null,null,null,null,null,null,"C21-C23","Manufacture of pharmaceuticals, rubber, plastic and other non-metallic products",null,null,null,null,null,null,null,null,null,null,null,null,null,null,null,null,null,null,null,null,null,null,null,null,null,null,null,null,null,null,null,null,"D","Electricity, gas, steam and air conditionning supply"]
[null,null,2013,null,null,null,null,null,null,null,null,null,null,null,null,null,null,null,null,null,null,null,null,"C24","Manufacture of basic metals",null,null,null,null,null,null,null,null,null,null,null,null,null,null,null,null,null,null,null,null,null,null,null,null,null,null,null,null,null,null,null,null,"E36","Water supply"]
[null,null,2014,null,null,null,null,null,null,null,null,null,null,null,null,null,null,null,null,null,null,null,null,"C25-C30","Manufacture of fabricated metal products, including machinery and equipment",null,null,null,null,null,null,null,null,null,null,null,null,null,null,null,null,null,null,null,null,null,null,null,null,null,null,null,null,null,null,null,null,"A_EP_OTH","OTHER NACE"]
[null,null,2015,null,null,null,null,null,null,null,null,null,null,null,null,null,null,null,null,null,null,null,null,"C13-C16_C18_C31-C33","Other manufacturing activities",null,null,null,null,null,null,null,null,null,null,null,null,null,null,null,null,null,null,null,null,null,null,null,null,null,null,null,null,null,null,null,null,"?","of which:"]
[null,null,2016,null,null,null,null,null,null,null,null,null,null,null,null,null,null,null,null,null,null,null,"( P2_EPS.3bA ) Intermediate consumption of EP services","C10-C12","Manufacture of food, beverages and tobacco products",null,null,null,null,null,null,null,null,null,null,null,null,null,null,null,null,null,null,null,null,null,null,null,null,null,null,null,null,null,null,null,null,"A","Agriculture, forestry and fishing"]
[null,null,2017,null,null,null,null,null,null,null,null,null,null,null,null,null,null,null,null,null,null,null,null,"C17","Manufacture of paper and paper products",null,null,null,null,null,null,null,null,null,null,null,null,null,null,null,null,null,null,null,null,null,null,null,null,null,null,null,null,null,null,null,null,"E3739","Sewerage: waste management and remendiation activities"]
[null,null,2018,null,null,null,null,null,null,null,null,null,null,null,null,null,null,null,null,null,null,null,null,"C19_C20","Manufacture of coke, chemicals and refined petroleum and chemical products",null,null,null,null,null,null,null,null,null,null,null,null,null,null,null,null,null,null,null,null,null,null,null,null,null,null,null,null,null,null,null,null,"F","Construction"]
[null,null,2019,null,null,null,null,null,null,null,null,null,null,null,null,null,null,null,null,null,null,null,null,"C21-C23","Manufacture of pharmaceuticals, rubber, plastic and other non-metallic products",null,null,null,null,null,null,null,null,null,null,null,null,null,null,null,null,null,null,null,null,null,null,null,null,null,null,null,null,null,null,null,null,"H","Transportation and storage"]
[null,null,2020,null,null,null,null,null,null,null,null,null,null,null,null,null,null,null,null,null,null,null,null,"C24","Manufacture of basic metals",null,null,null,null,null,null,null,null,null,null,null,null,null,null,null,null,null,null,null,null,null,null,null,null,null,null,null,null,null,null,null,null,"L","Real estate activities"]
[null,null,2021,null,null,null,null,null,null,null,null,null,null,null,null,null,null,null,null,null,null,null,null,"C25-C30","Manufacture of fabricated metal products, including machinery and equipment"]
[null,null,2022,null,null,null,null,null,null,null,null,null,null,null,null,null,null,null,null,null,null,null,null,"C13-C16_C18_C31-C33","Other manufacturing activities"]
[null,null,2023,null,null,null,null,null,null,null,null,null,null,null,null,null,null,null,null,null,null,null,"( P2_NEPS.3bA ) Intermediate consumption (excluding EP services)","C10-C12","Manufacture of food, beverages and tobacco products"]
[null,"( P2_EPS.1 ) Intermediate consumption of EP services ",2006,null,null,null,null,null,null,null,null,null,null,null,null,null,null,null,null,null,null,null,null,"C17","Manufacture of paper and paper products"]
[null,null,2007,null,null,null,null,null,null,null,null,null,null,null,null,null,null,null,null,null,null,null,null,"C19_C20","Manufacture of coke, chemicals and refined petroleum and chemical products",null,null,null,null,null,null,null,null,null,null,null,null,null,null,null,null,null,null,null,null,null,null,null,null,null,null,null,null,null,null,null,null,null,{"$f":"COLUMN(BG42)","v":59}]
[null,null,2008,null,null,null,null,null,null,null,null,null,null,null,null,null,null,null,null,null,null,null,null,"C21-C23","Manufacture of pharmaceuticals, rubber, plastic and other non-metallic products",null,null,null,null,null,null,null,null,null,null,null,null,null,null,null,null,null,null,null,null,null,null,null,null,null,null,null,null,null,null,null,"T7","Year","CEPA 1","of which CEPA 1.1.2 and 1.2.2 Climate change","CEPA 2","CEPA 3","CEPA 4","CEPA 5","CEPA 6","CEPA 7","CEPA 8","CEPA 9","Sum of CEPA 7+8+9","TOTAL","CREMA11B_13C_14","CREMA13A","CREMA13B"]
[null,null,2009,null,null,null,null,null,null,null,null,null,null,null,null,null,null,null,null,null,null,null,null,"C24","Manufacture of basic metals",null,null,null,null,null,null,null,null,null,null,null,null,null,null,null,null,null,null,null,null,null,null,null,null,null,null,null,null,null,null,null,"( P51G_NP.1 ) Gross fixed capital formation and acquisition less disposals of non-financial non-produced assets",2014]
[null,null,2010,null,null,null,null,null,null,null,null,null,null,null,null,null,null,null,null,null,null,null,null,"C25-C30","Manufacture of fabricated metal products, including machinery and equipment",null,null,null,null,null,null,null,null,null,null,null,null,null,null,null,null,null,null,null,null,null,null,null,null,null,null,null,null,null,null,null,null,2015]
[null,null,2011,null,null,null,null,null,null,null,null,null,null,null,null,null,null,null,null,null,null,null,null,"C13-C16_C18_C31-C33","Other manufacturing activities",null,null,null,null,null,null,null,null,null,null,null,null,null,null,null,null,null,null,null,null,null,null,null,null,null,null,null,null,null,null,null,null,2016]
[null,null,2012,null,null,null,null,null,null,null,null,null,null,null,null,null,null,null,null,null,null,null,"( D1.3bA ) Compensation of employees","C10-C12","Manufacture of food, beverages and tobacco products",null,null,null,null,null,null,null,null,null,null,null,null,null,null,null,null,null,null,null,null,null,null,null,null,null,null,null,null,null,null,null,null,2017]
[null,null,2013,null,null,null,null,null,null,null,null,null,null,null,null,null,null,null,null,null,null,null,null,"C17","Manufacture of paper and paper products",null,null,null,null,null,null,null,null,null,null,null,null,null,null,null,null,null,null,null,null,null,null,null,null,null,null,null,null,null,null,null,null,2018]
[null,null,2014,null,null,null,null,null,null,null,null,null,null,null,null,null,null,null,null,null,null,null,null,"C19_C20","Manufacture of coke, chemicals and refined petroleum and chemical products",null,null,null,null,null,null,null,null,null,null,null,null,null,null,null,null,null,null,null,null,null,null,null,null,null,null,null,null,null,null,null,null,2019]
[null,null,2015,null,null,null,null,null,null,null,null,null,null,null,null,null,null,null,null,null,null,null,null,"C21-C23","Manufacture of pharmaceuticals, rubber, plastic and other non-metallic products",null,null,null,null,null,null,null,null,null,null,null,null,null,null,null,null,null,null,null,null,null,null,null,null,null,null,null,null,null,null,null,null,2020]
[null,null,2016,null,null,null,null,null,null,null,null,null,null,null,null,null,null,null,null,null,null,null,null,"C24","Manufacture of basic metals",null,null,null,null,null,null,null,null,null,null,null,null,null,null,null,null,null,null,null,null,null,null,null,null,null,null,null,null,null,null,null,null,2021]
[null,null,2017,null,null,null,null,null,null,null,null,null,null,null,null,null,null,null,null,null,null,null,null,"C25-C30","Manufacture of fabricated metal products, including machinery and equipment",null,null,null,null,null,null,null,null,null,null,null,null,null,null,null,null,null,null,null,null,null,null,null,null,null,null,null,null,null,null,null,null,2022]
[null,null,2018,null,null,null,null,null,null,null,null,null,null,null,null,null,null,null,null,null,null,null,null,"C13-C16_C18_C31-C33","Other manufacturing activities",null,null,null,null,null,null,null,null,null,null,null,null,null,null,null,null,null,null,null,null,null,null,null,null,null,null,null,null,null,null,null,null,2023]
[null,null,2019,null,null,null,null,null,null,null,null,null,null,null,null,null,null,null,null,null,null,null,"( P1_ANC.3bA ) Ancillary EP output (simplified valuation legally acceptable) ((P2_NEPS.3bA) + (D1.3bA))","C10-C12","Manufacture of food, beverages and tobacco products",null,null,null,null,null,null,null,null,null,null,null,null,null,null,null,null,null,null,null,null,null,null,null,null,null,null,null,null,null,null,null,null,2024]
[null,null,2020,null,null,null,null,null,null,null,null,null,null,null,null,null,null,null,null,null,null,null,null,"C17","Manufacture of paper and paper products",null,null,null,null,null,null,null,null,null,null,null,null,null,null,null,null,null,null,null,null,null,null,null,null,null,null,null,null,null,null,null,null,2025]
[null,null,2021,null,null,null,null,null,null,null,null,null,null,null,null,null,null,null,null,null,null,null,null,"C19_C20","Manufacture of coke, chemicals and refined petroleum and chemical products",null,null,null,null,null,null,null,null,null,null,null,null,null,null,null,null,null,null,null,null,null,null,null,null,null,null,null,null,null,null,null,null,2026]
[null,null,2022,null,null,null,null,null,null,null,null,null,null,null,null,null,null,null,null,null,null,null,null,"C21-C23","Manufacture of pharmaceuticals, rubber, plastic and other non-metallic products",null,null,null,null,null,null,null,null,null,null,null,null,null,null,null,null,null,null,null,null,null,null,null,null,null,null,null,null,null,null,null,null,2027]
[null,null,2023,null,null,null,null,null,null,null,null,null,null,null,null,null,null,null,null,null,null,null,null,"C24","Manufacture of basic metals",null,null,null,null,null,null,null,null,null,null,null,null,null,null,null,null,null,null,null,null,null,null,null,null,null,null,null,null,null,null,null,null,2028]
[null,"( P2_NEPS.1 ) Intermediate consumption (excluding EP services) ",2006,null,null,null,null,null,null,null,null,null,null,null,null,null,null,null,null,null,null,null,null,"C25-C30","Manufacture of fabricated metal products, including machinery and equipment",null,null,null,null,null,null,null,null,null,null,null,null,null,null,null,null,null,null,null,null,null,null,null,null,null,null,null,null,null,null,null,null,2029]
[null,null,2007,null,null,null,null,null,null,null,null,null,null,null,null,null,null,null,null,null,null,null,null,"C13-C16_C18_C31-C33","Other manufacturing activities",null,null,null,null,null,null,null,null,null,null,null,null,null,null,null,null,null,null,null,null,null,null,null,null,null,null,null,null,null,null,null,null,2030]
[null,null,2008,null,null,null,null,null,null,null,null,null,null,null,null,null,null,null,null,null,null,null,"( D29-D39.3bA ) Other taxes less subsidies on production","C10-C12","Manufacture of food, beverages and tobacco products",null,null,null,null,null,null,null,null,null,null,null,null,null,null,null,null,null,null,null,null,null,null,null,null,null,null,null,null,null,null,null,null,2031]
[null,null,2009,null,null,null,null,null,null,null,null,null,null,null,null,null,null,null,null,null,null,null,null,"C17","Manufacture of paper and paper products"]
[null,null,2010,null,null,null,null,null,null,null,null,null,null,null,null,null,null,null,null,null,null,null,null,"C19_C20","Manufacture of coke, chemicals and refined petroleum and chemical products"]
[null,null,2011,null,null,null,null,null,null,null,null,null,null,null,null,null,null,null,null,null,null,null,null,"C21-C23","Manufacture of pharmaceuticals, rubber, plastic and other non-metallic products"]
[null,null,2012,null,null,null,null,null,null,null,null,null,null,null,null,null,null,null,null,null,null,null,null,"C24","Manufacture of basic metals"]
[null,null,2013,null,null,null,null,null,null,null,null,null,null,null,null,null,null,null,null,null,null,null,null,"C25-C30","Manufacture of fabricated metal products, including machinery and equipment"]
[null,null,2014,null,null,null,null,null,null,null,null,null,null,null,null,null,null,null,null,null,null,null,null,"C13-C16_C18_C31-C33","Other manufacturing activities"]
[null,null,2015,null,null,null,null,null,null,null,null,null,null,null,null,null,null,null,null,null,null,null,"( P51C.3bA ) Consumption of fixed capital","C10-C12","Manufacture of food, beverages and tobacco products"]
[null,null,2016,null,null,null,null,null,null,null,null,null,null,null,null,null,null,null,null,null,null,null,null,"C17","Manufacture of paper and paper products"]
[null,null,2017,null,null,null,null,null,null,null,null,null,null,null,null,null,null,null,null,null,null,null,null,"C19_C20","Manufacture of coke, chemicals and refined petroleum and chemical products"]
[null,null,2018,null,null,null,null,null,null,null,null,null,null,null,null,null,null,null,null,null,null,null,null,"C21-C23","Manufacture of pharmaceuticals, rubber, plastic and other non-metallic products"]
[null,null,2019,null,null,null,null,null,null,null,null,null,null,null,null,null,null,null,null,null,null,null,null,"C24","Manufacture of basic metals"]
[null,null,2020,null,null,null,null,null,null,null,null,null,null,null,null,null,null,null,null,null,null,null,null,"C25-C30","Manufacture of fabricated metal products, including machinery and equipment"]
[null,null,2021,null,null,null,null,null,null,null,null,null,null,null,null,null,null,null,null,null,null,null,null,"C13-C16_C18_C31-C33","Other manufacturing activities"]
[null,null,2022,null,null,null,null,null,null,null,null,null,null,null,null,null,null,null,null,null,null,null,"( P1_ANC_ESA.3bA ) Ancillary EP output (ESA - compatible valuation) ((P2_NEPS.3bA) + (D1.3bA) +(P51C.3bA) + (D29-D39.3bA))","C10-C12","Manufacture of food, beverages and tobacco products"]
[null,null,2023,null,null,null,null,null,null,null,null,null,null,null,null,null,null,null,null,null,null,null,null,"C17","Manufacture of paper and paper products"]
[null,"( D1.1 ) Compensation of employees",2006,null,null,null,null,null,null,null,null,null,null,null,null,null,null,null,null,null,null,null,null,"C19_C20","Manufacture of coke, chemicals and refined petroleum and chemical products"]
[null,null,2007,null,null,null,null,null,null,null,null,null,null,null,null,null,null,null,null,null,null,null,null,"C21-C23","Manufacture of pharmaceuticals, rubber, plastic and other non-metallic products"]
[null,null,2008,null,null,null,null,null,null,null,null,null,null,null,null,null,null,null,null,null,null,null,null,"C24","Manufacture of basic metals"]
[null,null,2009,null,null,null,null,null,null,null,null,null,null,null,null,null,null,null,null,null,null,null,null,"C25-C30","Manufacture of fabricated metal products, including machinery and equipment"]
[null,null,2010,null,null,null,null,null,null,null,null,null,null,null,null,null,null,null,null,null,null,null,null,"C13-C16_C18_C31-C33","Other manufacturing activities"]
[null,null,2011,null,null,null,null,null,null,null,null,null,null,null,null,null,null,null,null,null,null,null," ( RNO.3bA ) Related non-EP output","C10-C12","Manufacture of food, beverages and tobacco products"]
[null,null,2012,null,null,null,null,null,null,null,null,null,null,null,null,null,null,null,null,null,null,null,null,"C17","Manufacture of paper and paper products"]
[null,null,2013,null,null,null,null,null,null,null,null,null,null,null,null,null,null,null,null,null,null,null,null,"C19_C20","Manufacture of coke, chemicals and refined petroleum and chemical products"]
[null,null,2014,null,null,null,null,null,null,null,null,null,null,null,null,null,null,null,null,null,null,null,null,"C21-C23","Manufacture of pharmaceuticals, rubber, plastic and other non-metallic products"]
[null,null,2015,null,null,null,null,null,null,null,null,null,null,null,null,null,null,null,null,null,null,null,null,"C24","Manufacture of basic metals"]
[null,null,2016,null,null,null,null,null,null,null,null,null,null,null,null,null,null,null,null,null,null,null,null,"C25-C30","Manufacture of fabricated metal products, including machinery and equipment"]
[null,null,2017,null,null,null,null,null,null,null,null,null,null,null,null,null,null,null,null,null,null,null,null,"C13-C16_C18_C31-C33","Other manufacturing activities"]
[null,null,2018,null,null,null,null,null,null,null,null,null,null,null,null,null,null,null,null,null,null,null,"( P2_EPS_EXT.3bA ) Total intermediate consumption of EP services (for production of EP services and for other production)","C10-C12","Manufacture of food, beverages and tobacco products"]
[null,null,2019,null,null,null,null,null,null,null,null,null,null,null,null,null,null,null,null,null,null,null,null,"C17","Manufacture of paper and paper products"]
[null,null,2020,null,null,null,null,null,null,null,null,null,null,null,null,null,null,null,null,null,null,null,null,"C19_C20","Manufacture of coke, chemicals and refined petroleum and chemical products"]
[null,null,2021,null,null,null,null,null,null,null,null,null,null,null,null,null,null,null,null,null,null,null,null,"C21-C23","Manufacture of pharmaceuticals, rubber, plastic and other non-metallic products"]
[null,null,2022,null,null,null,null,null,null,null,null,null,null,null,null,null,null,null,null,null,null,null,null,"C24","Manufacture of basic metals"]
[null,null,2023,null,null,null,null,null,null,null,null,null,null,null,null,null,null,null,null,null,null,null,null,"C25-C30","Manufacture of fabricated metal products, including machinery and equipment"]
[null,"( ICE.1 ) Internal current expenditure ((P2_NEPS.1) + (D1.1))   \n",2006,null,null,null,null,null,null,null,null,null,null,null,null,null,null,null,null,null,null,null,null,"C13-C16_C18_C31-C33","Other manufacturing activities"]
[null,null,2007,null,null,null,null,null,null,null,null,null,null,null,null,null,null,null,null,null,null,null,"( EMP.3bA ) Employment (full time equivalent)","C10-C12","Manufacture of food, beverages and tobacco products"]
[null,null,2008,null,null,null,null,null,null,null,null,null,null,null,null,null,null,null,null,null,null,null,null,"C17","Manufacture of paper and paper products"]
[null,null,2009,null,null,null,null,null,null,null,null,null,null,null,null,null,null,null,null,null,null,null,null,"C19_C20","Manufacture of coke, chemicals and refined petroleum and chemical products"]
[null,null,2010,null,null,null,null,null,null,null,null,null,null,null,null,null,null,null,null,null,null,null,null,"C21-C23","Manufacture of pharmaceuticals, rubber, plastic and other non-metallic products"]
[null,null,2011,null,null,null,null,null,null,null,null,null,null,null,null,null,null,null,null,null,null,null,null,"C24","Manufacture of basic metals"]
[null,null,2012,null,null,null,null,null,null,null,null,null,null,null,null,null,null,null,null,null,null,null,null,"C25-C30","Manufacture of fabricated metal products, including machinery and equipment"]
[null,null,2013,null,null,null,null,null,null,null,null,null,null,null,null,null,null,null,null,null,null,null,null,"C13-C16_C18_C31-C33","Other manufacturing activities"]
[null,null,2014]
[null,null,2015]
[null,null,2016]
[null,null,2017]
[null,null,2018]
[null,null,2019]
[null,null,2020]
[null,null,2021]
[null,null,2022]
[null,null,2023]
[null,"( D29-D39.1 ) Other taxes less subsidies on production",2006]
[null,null,2007]
[null,null,2008]
[null,null,2009]
[null,null,2010]
[null,null,2011]
[null,null,2012]
[null,null,2013]
[null,null,2014]
[null,null,2015]
[null,null,2016]
[null,null,2017]
[null,null,2018]
[null,null,2019]
[null,null,2020]
[null,null,2021]
[null,null,2022]
[null,null,2023]
[null,"( P51C.1 ) Consumption of fixed capital",2006]
[null,null,2007]
[null,null,2008]
[null,null,2009]
[null,null,2010]
[null,null,2011]
[null,null,2012]
[null,null,2013]
[null,null,2014]
[null,null,2015]
[null,null,2016]
[null,null,2017]
[null,null,2018]
[null,null,2019]
[null,null,2020]
[null,null,2021]
[null,null,2022]
[null,null,2023]
[null,"( B2N.1 ) Net operating surplus ((P1.1) + (RNO.1) - (P2.1) - (D1.1) - (P51C.1) - (D29-D39.1))",2006]
[null,null,2007]
[null,null,2008]
[null,null,2009]
[null,null,2010]
[null,null,2011]
[null,null,2012]
[null,null,2013]
[null,null,2014]
[null,null,2015]
[null,null,2016]
[null,null,2017]
[null,null,2018]
[null,null,2019]
[null,null,2020]
[null,null,2021]
[null,null,2022]
[null,null,2023]
[null,"( P1.1 ) Total output of EP services ((P13.1) + (P11.1))",2006]
[null,null,2007]
[null,null,2008]
[null,null,2009]
[null,null,2010]
[null,null,2011]
[null,null,2012]
[null,null,2013]
[null,null,2014]
[null,null,2015]
[null,null,2016]
[null,null,2017]
[null,null,2018]
[null,null,2019]
[null,null,2020]
[null,null,2021]
[null,null,2022]
[null,null,2023]
[null,"( P11.1 ) Market output of EP services (Includes P.11 (market output) of general government and NPISH local KAUs that are market producers)",2006]
[null,null,2007]
[null,null,2008]
[null,null,2009]
[null,null,2010]
[null,null,2011]
[null,null,2012]
[null,null,2013]
[null,null,2014]
[null,null,2015]
[null,null,2016]
[null,null,2017]
[null,null,2018]
[null,null,2019]
[null,null,2020]
[null,null,2021]
[null,null,2022]
[null,null,2023]
[null,"( P13.1 ) Non-market output of EP services (Includes P.131 (payments for non-market output))",2006]
[null,null,2007]
[null,null,2008]
[null,null,2009]
[null,null,2010]
[null,null,2011]
[null,null,2012]
[null,null,2013]
[null,null,2014]
[null,null,2015]
[null,null,2016]
[null,null,2017]
[null,null,2018]
[null,null,2019]
[null,null,2020]
[null,null,2021]
[null,null,2022]
[null,null,2023]
[null,"( RNO.1 ) Related non-EP output",2006]
[null,null,2007]
[null,null,2008]
[null,null,2009]
[null,null,2010]
[null,null,2011]
[null,null,2012]
[null,null,2013]
[null,null,2014]
[null,null,2015]
[null,null,2016]
[null,null,2017]
[null,null,2018]
[null,null,2019]
[null,null,2020]
[null,null,2021]
[null,null,2022]
[null,null,2023]
[null,"( P3_EPS.1 ) Final consumption of EP services ((P13.1) less P.131 (payments for non-market output))",2006]
[null,null,2007]
[null,null,2008]
[null,null,2009]
[null,null,2010]
[null,null,2011]
[null,null,2012]
[null,null,2013]
[null,null,2014]
[null,null,2015]
[null,null,2016]
[null,null,2017]
[null,null,2018]
[null,null,2019]
[null,null,2020]
[null,null,2021]
[null,null,2022]
[null,null,2023]
[null,"( P2_EPS_EXT.1 ) Total intermediate consumption of EP services (for production of EP services and for other production)",2006]
[null,null,2007]
[null,null,2008]
[null,null,2009]
[null,null,2010]
[null,null,2011]
[null,null,2012]
[null,null,2013]
[null,null,2014]
[null,null,2015]
[null,null,2016]
[null,null,2017]
[null,null,2018]
[null,null,2019]
[null,null,2020]
[null,null,2021]
[null,null,2022]
[null,null,2023]
[null,"( EMP.1 ) Employment (Full time equivalents)",2006]
[null,null,2007]
[null,null,2008]
[null,null,2009]
[null,null,2010]
[null,null,2011]
[null,null,2012]
[null,null,2013]
[null,null,2014]
[null,null,2015]
[null,null,2016]
[null,null,2017]
[null,null,2018]
[null,null,2019]
[null,null,2020]
[null,null,2021]
[null,null,2022]
[null,null,2023]
[]
[]
[]
[null,null,null,{"$f":"COLUMN(D296)","v":4},null,null,null,null,null,null,null,null,null,null,null,null,null,null,null,null,null,null,null,null,{"$f":"COLUMN(Y296)","v":25},null,null,null,null,null,null,null,null,null,null,null,null,null,null,null,null,null,null,null,null,{"$f":"COLUMN(AT296)","v":46}]
[null,"T2 ","Year","CEPA 1","of which CEPA 1.1.2 and 1.2.2 Climate change","CEPA 2","CEPA 3","CEPA 4","CEPA 5","CEPA 6","CEPA 7","CEPA 8","CEPA 9","Sum of CEPA 7+8+9","TOTAL","CREMA11B_13C_14","CREMA13A","CREMA13B",null,null,null,null,"T5 ","Year","CEPA 1","of which CEPA 1.1.2 and 1.2.2 Climate change","CEPA 2","CEPA 3","CEPA 4","CEPA 5","CEPA 6","CEPA 7","CEPA 8","CEPA 9","Sum of CEPA 7+8+9","TOTAL","CREMA11B_13C_14","CREMA13A","CREMA13B",null,null,null,null,"T6","Year","CEPA 1","of which CEPA 1.1.2 and 1.2.2 Climate change","CEPA 2","CEPA 3","CEPA 4","CEPA 5","CEPA 6","CEPA 7","CEPA 8","CEPA 9","Sum of CEPA 7+8+9","TOTAL","CREMA11B_13C_14","CREMA13A","CREMA13B"]
[null,"( P51G_NP.2 ) Gross fixed capital formation and acquisition less disposals of non-financial non-produced assets",2014,null,null,null,null,null,null,null,null,null,null,null,null,null,null,null,null,null,null,null,"( P3_EPS.5 )",2014,null,null,null,null,null,null,null,null,null,null,null,null,null,null,null,null,null,null,null,"( P51G_NP.1 ) Gross fixed capital formation and acquisition less disposals of non-financial non-produced assets",2014]
[null,null,2015,null,null,null,null,null,null,null,null,null,null,null,null,null,null,null,null,null,null,null,null,2015,null,null,null,null,null,null,null,null,null,null,null,null,null,null,null,null,null,null,null,null,2015]
[null,null,2016,null,null,null,null,null,null,null,null,null,null,null,null,null,null,null,null,null,null,null,null,2016,null,null,null,null,null,null,null,null,null,null,null,null,null,null,null,null,null,null,null,null,2016]
[null,null,2017,null,null,null,null,null,null,null,null,null,null,null,null,null,null,null,null,null,null,null,null,2017,null,null,null,null,null,null,null,null,null,null,null,null,null,null,null,null,null,null,null,null,2017]
[null,null,2018,null,null,null,null,null,null,null,null,null,null,null,null,null,null,null,null,null,null,null,null,2018,null,null,null,null,null,null,null,null,null,null,null,null,null,null,null,null,null,null,null,null,2018]
[null,null,2019,null,null,null,null,null,null,null,null,null,null,null,null,null,null,null,null,null,null,null,null,2019,null,null,null,null,null,null,null,null,null,null,null,null,null,null,null,null,null,null,null,null,2019]
[null,null,2020,null,null,null,null,null,null,null,null,null,null,null,null,null,null,null,null,null,null,null,null,2020,null,null,null,null,null,null,null,null,null,null,null,null,null,null,null,null,null,null,null,null,2020]
[null,null,2021,null,null,null,null,null,null,null,null,null,null,null,null,null,null,null,null,null,null,null,null,2021,null,null,null,null,null,null,null,null,null,null,null,null,null,null,null,null,null,null,null,null,2021]
[null,null,2022,null,null,null,null,null,null,null,null,null,null,null,null,null,null,null,null,null,null,null,null,2022,null,null,null,null,null,null,null,null,null,null,null,null,null,null,null,null,null,null,null,null,2022]
[null,null,2023,null,null,null,null,null,null,null,null,null,null,null,null,null,null,null,null,null,null,null,null,2023,null,null,null,null,null,null,null,null,null,null,null,null,null,null,null,null,null,null,null,null,2023]
[null,null,2024,null,null,null,null,null,null,null,null,null,null,null,null,null,null,null,null,null,null,null,null,2024,null,null,null,null,null,null,null,null,null,null,null,null,null,null,null,null,null,null,null,null,2024]
[null,null,2025,null,null,null,null,null,null,null,null,null,null,null,null,null,null,null,null,null,null,null,null,2025,null,null,null,null,null,null,null,null,null,null,null,null,null,null,null,null,null,null,null,null,2025]
[null,null,2026,null,null,null,null,null,null,null,null,null,null,null,null,null,null,null,null,null,null,null,null,2026,null,null,null,null,null,null,null,null,null,null,null,null,null,null,null,null,null,null,null,null,2026]
[null,null,2027,null,null,null,null,null,null,null,null,null,null,null,null,null,null,null,null,null,null,null,null,2027,null,null,null,null,null,null,null,null,null,null,null,null,null,null,null,null,null,null,null,null,2027]
[null,null,2028,null,null,null,null,null,null,null,null,null,null,null,null,null,null,null,null,null,null,null,null,2028,null,null,null,null,null,null,null,null,null,null,null,null,null,null,null,null,null,null,null,null,2028]
[null,null,2029,null,null,null,null,null,null,null,null,null,null,null,null,null,null,null,null,null,null,null,null,2029,null,null,null,null,null,null,null,null,null,null,null,null,null,null,null,null,null,null,null,null,2029]
[null,null,2030,null,null,null,null,null,null,null,null,null,null,null,null,null,null,null,null,null,null,null,null,2030,null,null,null,null,null,null,null,null,null,null,null,null,null,null,null,null,null,null,null,null,2030]
[null,null,2031,null,null,null,null,null,null,null,null,null,null,null,null,null,null,null,null,null,null,null,null,2031,null,null,null,null,null,null,null,null,null,null,null,null,null,null,null,null,null,null,null,null,2031]
[null,"( P2.2 ) Total intermediate consumption",2014,null,null,null,null,null,null,null,null,null,null,null,null,null,null,null,null,null,null,null,"( P3_ACP_ec.5 )",2014,null,null,null,null,null,null,null,null,null,null,null,null,null,null,null,null,null,null,null,"( P2.1 ) Total intermediate consumption",2014]
[null,null,2015,null,null,null,null,null,null,null,null,null,null,null,null,null,null,null,null,null,null,null,null,2015,null,null,null,null,null,null,null,null,null,null,null,null,null,null,null,null,null,null,null,null,2015]
[null,null,2016,null,null,null,null,null,null,null,null,null,null,null,null,null,null,null,null,null,null,null,null,2016,null,null,null,null,null,null,null,null,null,null,null,null,null,null,null,null,null,null,null,null,2016]
[null,null,2017,null,null,null,null,null,null,null,null,null,null,null,null,null,null,null,null,null,null,null,null,2017,null,null,null,null,null,null,null,null,null,null,null,null,null,null,null,null,null,null,null,null,2017]
[null,null,2018,null,null,null,null,null,null,null,null,null,null,null,null,null,null,null,null,null,null,null,null,2018,null,null,null,null,null,null,null,null,null,null,null,null,null,null,null,null,null,null,null,null,2018]
[null,null,2019,null,null,null,null,null,null,null,null,null,null,null,null,null,null,null,null,null,null,null,null,2019,null,null,null,null,null,null,null,null,null,null,null,null,null,null,null,null,null,null,null,null,2019]
[null,null,2020,null,null,null,null,null,null,null,null,null,null,null,null,null,null,null,null,null,null,null,null,2020,null,null,null,null,null,null,null,null,null,null,null,null,null,null,null,null,null,null,null,null,2020]
[null,null,2021,null,null,null,null,null,null,null,null,null,null,null,null,null,null,null,null,null,null,null,null,2021,null,null,null,null,null,null,null,null,null,null,null,null,null,null,null,null,null,null,null,null,2021]
[null,null,2022,null,null,null,null,null,null,null,null,null,null,null,null,null,null,null,null,null,null,null,null,2022,null,null,null,null,null,null,null,null,null,null,null,null,null,null,null,null,null,null,null,null,2022]
[null,null,2023,null,null,null,null,null,null,null,null,null,null,null,null,null,null,null,null,null,null,null,null,2023,null,null,null,null,null,null,null,null,null,null,null,null,null,null,null,null,null,null,null,null,2023]
[null,null,2024,null,null,null,null,null,null,null,null,null,null,null,null,null,null,null,null,null,null,null,null,2024,null,null,null,null,null,null,null,null,null,null,null,null,null,null,null,null,null,null,null,null,2024]
[null,null,2025,null,null,null,null,null,null,null,null,null,null,null,null,null,null,null,null,null,null,null,null,2025,null,null,null,null,null,null,null,null,null,null,null,null,null,null,null,null,null,null,null,null,2025]
[null,null,2026,null,null,null,null,null,null,null,null,null,null,null,null,null,null,null,null,null,null,null,null,2026,null,null,null,null,null,null,null,null,null,null,null,null,null,null,null,null,null,null,null,null,2026]
[null,null,2027,null,null,null,null,null,null,null,null,null,null,null,null,null,null,null,null,null,null,null,null,2027,null,null,null,null,null,null,null,null,null,null,null,null,null,null,null,null,null,null,null,null,2027]
[null,null,2028,null,null,null,null,null,null,null,null,null,null,null,null,null,null,null,null,null,null,null,null,2028,null,null,null,null,null,null,null,null,null,null,null,null,null,null,null,null,null,null,null,null,2028]
[null,null,2029,null,null,null,null,null,null,null,null,null,null,null,null,null,null,null,null,null,null,null,null,2029,null,null,null,null,null,null,null,null,null,null,null,null,null,null,null,null,null,null,null,null,2029]
[null,null,2030,null,null,null,null,null,null,null,null,null,null,null,null,null,null,null,null,null,null,null,null,2030,null,null,null,null,null,null,null,null,null,null,null,null,null,null,null,null,null,null,null,null,2030]
[null,null,2031,null,null,null,null,null,null,null,null,null,null,null,null,null,null,null,null,null,null,null,null,2031,null,null,null,null,null,null,null,null,null,null,null,null,null,null,null,null,null,null,null,null,2031]
[null,"( P2_EPS.2 ) Intermediate consumption of EP services ",2014,null,null,null,null,null,null,null,null,null,null,null,null,null,null,null,null,null,null,null,"( P3_ACP_fc.5 )",2014,null,null,null,null,null,null,null,null,null,null,null,null,null,null,null,null,null,null,null,"( P2_EPS.1 ) Intermediate consumption of EP services ",2014]
[null,null,2015,null,null,null,null,null,null,null,null,null,null,null,null,null,null,null,null,null,null,null,null,2015,null,null,null,null,null,null,null,null,null,null,null,null,null,null,null,null,null,null,null,null,2015]
[null,null,2016,null,null,null,null,null,null,null,null,null,null,null,null,null,null,null,null,null,null,null,null,2016,null,null,null,null,null,null,null,null,null,null,null,null,null,null,null,null,null,null,null,null,2016]
[null,null,2017,null,null,null,null,null,null,null,null,null,null,null,null,null,null,null,null,null,null,null,null,2017,null,null,null,null,null,null,null,null,null,null,null,null,null,null,null,null,null,null,null,null,2017]
[null,null,2018,null,null,null,null,null,null,null,null,null,null,null,null,null,null,null,null,null,null,null,null,2018,null,null,null,null,null,null,null,null,null,null,null,null,null,null,null,null,null,null,null,null,2018]
[null,null,2019,null,null,null,null,null,null,null,null,null,null,null,null,null,null,null,null,null,null,null,null,2019,null,null,null,null,null,null,null,null,null,null,null,null,null,null,null,null,null,null,null,null,2019]
[null,null,2020,null,null,null,null,null,null,null,null,null,null,null,null,null,null,null,null,null,null,null,null,2020,null,null,null,null,null,null,null,null,null,null,null,null,null,null,null,null,null,null,null,null,2020]
[null,null,2021,null,null,null,null,null,null,null,null,null,null,null,null,null,null,null,null,null,null,null,null,2021,null,null,null,null,null,null,null,null,null,null,null,null,null,null,null,null,null,null,null,null,2021]
[null,null,2022,null,null,null,null,null,null,null,null,null,null,null,null,null,null,null,null,null,null,null,null,2022,null,null,null,null,null,null,null,null,null,null,null,null,null,null,null,null,null,null,null,null,2022]
[null,null,2023,null,null,null,null,null,null,null,null,null,null,null,null,null,null,null,null,null,null,null,null,2023,null,null,null,null,null,null,null,null,null,null,null,null,null,null,null,null,null,null,null,null,2023]
[null,null,2024,null,null,null,null,null,null,null,null,null,null,null,null,null,null,null,null,null,null,null,null,2024,null,null,null,null,null,null,null,null,null,null,null,null,null,null,null,null,null,null,null,null,2024]
[null,null,2025,null,null,null,null,null,null,null,null,null,null,null,null,null,null,null,null,null,null,null,null,2025,null,null,null,null,null,null,null,null,null,null,null,null,null,null,null,null,null,null,null,null,2025]
[null,null,2026,null,null,null,null,null,null,null,null,null,null,null,null,null,null,null,null,null,null,null,null,2026,null,null,null,null,null,null,null,null,null,null,null,null,null,null,null,null,null,null,null,null,2026]
[null,null,2027,null,null,null,null,null,null,null,null,null,null,null,null,null,null,null,null,null,null,null,null,2027,null,null,null,null,null,null,null,null,null,null,null,null,null,null,null,null,null,null,null,null,2027]
[null,null,2028,null,null,null,null,null,null,null,null,null,null,null,null,null,null,null,null,null,null,null,null,2028,null,null,null,null,null,null,null,null,null,null,null,null,null,null,null,null,null,null,null,null,2028]
[null,null,2029,null,null,null,null,null,null,null,null,null,null,null,null,null,null,null,null,null,null,null,null,2029,null,null,null,null,null,null,null,null,null,null,null,null,null,null,null,null,null,null,null,null,2029]
[null,null,2030,null,null,null,null,null,null,null,null,null,null,null,null,null,null,null,null,null,null,null,null,2030,null,null,null,null,null,null,null,null,null,null,null,null,null,null,null,null,null,null,null,null,2030]
[null,null,2031,null,null,null,null,null,null,null,null,null,null,null,null,null,null,null,null,null,null,null,null,2031,null,null,null,null,null,null,null,null,null,null,null,null,null,null,null,null,null,null,null,null,2031]
[null,"of which: ( P2_EPS_SP.2 ) Intermediate consumption of EP services by specialist producers ",2014,null,null,null,null,null,null,null,null,null,null,null,null,null,null,null,null,null,null,null,null,null,{"$f":"COLUMN(Y352)","v":25},null,null,null,null,null,null,null,null,null,null,null,null,null,null,null,null,null,null,"( P2_NEPS.1 ) Intermediate consumption (excluding EP services) ",2014]
[null,null,2015,null,null,null,null,null,null,null,null,null,null,null,null,null,null,null,null,null,null,null,"T8.1","Year","CEPA 1","of which CEPA 1.1.2 and 1.2.2 Climate change","CEPA 2","CEPA 3","CEPA 4","CEPA 5","CEPA 6","CEPA 7","CEPA 8","CEPA 9","Sum of CEPA 7+8+9","TOTAL","CREMA11B_13C_14","CREMA13A","CREMA13B",null,null,null,null,null,2015]
[null,null,2016,null,null,null,null,null,null,null,null,null,null,null,null,null,null,null,null,null,null,null,"( P3_EPS.5 )",2014,null,null,null,null,null,null,null,null,null,null,null,null,null,null,null,null,null,null,null,null,2016]
[null,null,2017,null,null,null,null,null,null,null,null,null,null,null,null,null,null,null,null,null,null,null,null,2015,null,null,null,null,null,null,null,null,null,null,null,null,null,null,null,null,null,null,null,null,2017]
[null,null,2018,null,null,null,null,null,null,null,null,null,null,null,null,null,null,null,null,null,null,null,null,2016,null,null,null,null,null,null,null,null,null,null,null,null,null,null,null,null,null,null,null,null,2018]
[null,null,2019,null,null,null,null,null,null,null,null,null,null,null,null,null,null,null,null,null,null,null,null,2017,null,null,null,null,null,null,null,null,null,null,null,null,null,null,null,null,null,null,null,null,2019]
[null,null,2020,null,null,null,null,null,null,null,null,null,null,null,null,null,null,null,null,null,null,null,null,2018,null,null,null,null,null,null,null,null,null,null,null,null,null,null,null,null,null,null,null,null,2020]
[null,null,2021,null,null,null,null,null,null,null,null,null,null,null,null,null,null,null,null,null,null,null,null,2019,null,null,null,null,null,null,null,null,null,null,null,null,null,null,null,null,null,null,null,null,2021]
[null,null,2022,null,null,null,null,null,null,null,null,null,null,null,null,null,null,null,null,null,null,null,null,2020,null,null,null,null,null,null,null,null,null,null,null,null,null,null,null,null,null,null,null,null,2022]
[null,null,2023,null,null,null,null,null,null,null,null,null,null,null,null,null,null,null,null,null,null,null,null,2021,null,null,null,null,null,null,null,null,null,null,null,null,null,null,null,null,null,null,null,null,2023]
[null,null,2024,null,null,null,null,null,null,null,null,null,null,null,null,null,null,null,null,null,null,null,null,2022,null,null,null,null,null,null,null,null,null,null,null,null,null,null,null,null,null,null,null,null,2024]
[null,null,2025,null,null,null,null,null,null,null,null,null,null,null,null,null,null,null,null,null,null,null,null,2023,null,null,null,null,null,null,null,null,null,null,null,null,null,null,null,null,null,null,null,null,2025]
[null,null,2026,null,null,null,null,null,null,null,null,null,null,null,null,null,null,null,null,null,null,null,null,2024,null,null,null,null,null,null,null,null,null,null,null,null,null,null,null,null,null,null,null,null,2026]
[null,null,2027,null,null,null,null,null,null,null,null,null,null,null,null,null,null,null,null,null,null,null,null,2025,null,null,null,null,null,null,null,null,null,null,null,null,null,null,null,null,null,null,null,null,2027]
[null,null,2028,null,null,null,null,null,null,null,null,null,null,null,null,null,null,null,null,null,null,null,null,2026,null,null,null,null,null,null,null,null,null,null,null,null,null,null,null,null,null,null,null,null,2028]
[null,null,2029,null,null,null,null,null,null,null,null,null,null,null,null,null,null,null,null,null,null,null,null,2027,null,null,null,null,null,null,null,null,null,null,null,null,null,null,null,null,null,null,null,null,2029]
[null,null,2030,null,null,null,null,null,null,null,null,null,null,null,null,null,null,null,null,null,null,null,null,2028,null,null,null,null,null,null,null,null,null,null,null,null,null,null,null,null,null,null,null,null,2030]
[null,null,2031,null,null,null,null,null,null,null,null,null,null,null,null,null,null,null,null,null,null,null,null,2029,null,null,null,null,null,null,null,null,null,null,null,null,null,null,null,null,null,null,null,null,2031]
[null,"( P2_NEPS.2 ) Intermediate consumption (excluding EP services) ",2014,null,null,null,null,null,null,null,null,null,null,null,null,null,null,null,null,null,null,null,null,2030,null,null,null,null,null,null,null,null,null,null,null,null,null,null,null,null,null,null,null,"( D1.1 ) Compensation of employees",2014]
[null,null,2015,null,null,null,null,null,null,null,null,null,null,null,null,null,null,null,null,null,null,null,null,2031,null,null,null,null,null,null,null,null,null,null,null,null,null,null,null,null,null,null,null,null,2015]
[null,null,2016,null,null,null,null,null,null,null,null,null,null,null,null,null,null,null,null,null,null,null,"( P3_ACP_ec.5 )",2014,null,null,null,null,null,null,null,null,null,null,null,null,null,null,null,null,null,null,null,null,2016]
[null,null,2017,null,null,null,null,null,null,null,null,null,null,null,null,null,null,null,null,null,null,null,null,2015,null,null,null,null,null,null,null,null,null,null,null,null,null,null,null,null,null,null,null,null,2017]
[null,null,2018,null,null,null,null,null,null,null,null,null,null,null,null,null,null,null,null,null,null,null,null,2016,null,null,null,null,null,null,null,null,null,null,null,null,null,null,null,null,null,null,null,null,2018]
[null,null,2019,null,null,null,null,null,null,null,null,null,null,null,null,null,null,null,null,null,null,null,null,2017,null,null,null,null,null,null,null,null,null,null,null,null,null,null,null,null,null,null,null,null,2019]
[null,null,2020,null,null,null,null,null,null,null,null,null,null,null,null,null,null,null,null,null,null,null,null,2018,null,null,null,null,null,null,null,null,null,null,null,null,null,null,null,null,null,null,null,null,2020]
[null,null,2021,null,null,null,null,null,null,null,null,null,null,null,null,null,null,null,null,null,null,null,null,2019,null,null,null,null,null,null,null,null,null,null,null,null,null,null,null,null,null,null,null,null,2021]
[null,null,2022,null,null,null,null,null,null,null,null,null,null,null,null,null,null,null,null,null,null,null,null,2020,null,null,null,null,null,null,null,null,null,null,null,null,null,null,null,null,null,null,null,null,2022]
[null,null,2023,null,null,null,null,null,null,null,null,null,null,null,null,null,null,null,null,null,null,null,null,2021,null,null,null,null,null,null,null,null,null,null,null,null,null,null,null,null,null,null,null,null,2023]
[null,null,2024,null,null,null,null,null,null,null,null,null,null,null,null,null,null,null,null,null,null,null,null,2022,null,null,null,null,null,null,null,null,null,null,null,null,null,null,null,null,null,null,null,null,2024]
[null,null,2025,null,null,null,null,null,null,null,null,null,null,null,null,null,null,null,null,null,null,null,null,2023,null,null,null,null,null,null,null,null,null,null,null,null,null,null,null,null,null,null,null,null,2025]
[null,null,2026,null,null,null,null,null,null,null,null,null,null,null,null,null,null,null,null,null,null,null,null,2024,null,null,null,null,null,null,null,null,null,null,null,null,null,null,null,null,null,null,null,null,2026]
[null,null,2027,null,null,null,null,null,null,null,null,null,null,null,null,null,null,null,null,null,null,null,null,2025,null,null,null,null,null,null,null,null,null,null,null,null,null,null,null,null,null,null,null,null,2027]
[null,null,2028,null,null,null,null,null,null,null,null,null,null,null,null,null,null,null,null,null,null,null,null,2026,null,null,null,null,null,null,null,null,null,null,null,null,null,null,null,null,null,null,null,null,2028]
[null,null,2029,null,null,null,null,null,null,null,null,null,null,null,null,null,null,null,null,null,null,null,null,2027,null,null,null,null,null,null,null,null,null,null,null,null,null,null,null,null,null,null,null,null,2029]
[null,null,2030,null,null,null,null,null,null,null,null,null,null,null,null,null,null,null,null,null,null,null,null,2028,null,null,null,null,null,null,null,null,null,null,null,null,null,null,null,null,null,null,null,null,2030]
[null,null,2031,null,null,null,null,null,null,null,null,null,null,null,null,null,null,null,null,null,null,null,null,2029,null,null,null,null,null,null,null,null,null,null,null,null,null,null,null,null,null,null,null,null,2031]
[null,"( D1.2 ) Compensation of employees",2014,null,null,null,null,null,null,null,null,null,null,null,null,null,null,null,null,null,null,null,null,2030,null,null,null,null,null,null,null,null,null,null,null,null,null,null,null,null,null,null,null,"( ICE.1 ) Internal current expenditure ((P2_NEPS.1) + (D1.1))   \n",2014]
[null,null,2015,null,null,null,null,null,null,null,null,null,null,null,null,null,null,null,null,null,null,null,null,2031,null,null,null,null,null,null,null,null,null,null,null,null,null,null,null,null,null,null,null,null,2015]
[null,null,2016,null,null,null,null,null,null,null,null,null,null,null,null,null,null,null,null,null,null,null,"( P3_ACP_fc.5 )",2014,null,null,null,null,null,null,null,null,null,null,null,null,null,null,null,null,null,null,null,null,2016]
[null,null,2017,null,null,null,null,null,null,null,null,null,null,null,null,null,null,null,null,null,null,null,null,2015,null,null,null,null,null,null,null,null,null,null,null,null,null,null,null,null,null,null,null,null,2017]
[null,null,2018,null,null,null,null,null,null,null,null,null,null,null,null,null,null,null,null,null,null,null,null,2016,null,null,null,null,null,null,null,null,null,null,null,null,null,null,null,null,null,null,null,null,2018]
[null,null,2019,null,null,null,null,null,null,null,null,null,null,null,null,null,null,null,null,null,null,null,null,2017,null,null,null,null,null,null,null,null,null,null,null,null,null,null,null,null,null,null,null,null,2019]
[null,null,2020,null,null,null,null,null,null,null,null,null,null,null,null,null,null,null,null,null,null,null,null,2018,null,null,null,null,null,null,null,null,null,null,null,null,null,null,null,null,null,null,null,null,2020]
[null,null,2021,null,null,null,null,null,null,null,null,null,null,null,null,null,null,null,null,null,null,null,null,2019,null,null,null,null,null,null,null,null,null,null,null,null,null,null,null,null,null,null,null,null,2021]
[null,null,2022,null,null,null,null,null,null,null,null,null,null,null,null,null,null,null,null,null,null,null,null,2020,null,null,null,null,null,null,null,null,null,null,null,null,null,null,null,null,null,null,null,null,2022]
[null,null,2023,null,null,null,null,null,null,null,null,null,null,null,null,null,null,null,null,null,null,null,null,2021,null,null,null,null,null,null,null,null,null,null,null,null,null,null,null,null,null,null,null,null,2023]
[null,null,2024,null,null,null,null,null,null,null,null,null,null,null,null,null,null,null,null,null,null,null,null,2022,null,null,null,null,null,null,null,null,null,null,null,null,null,null,null,null,null,null,null,null,2024]
[null,null,2025,null,null,null,null,null,null,null,null,null,null,null,null,null,null,null,null,null,null,null,null,2023,null,null,null,null,null,null,null,null,null,null,null,null,null,null,null,null,null,null,null,null,2025]
[null,null,2026,null,null,null,null,null,null,null,null,null,null,null,null,null,null,null,null,null,null,null,null,2024,null,null,null,null,null,null,null,null,null,null,null,null,null,null,null,null,null,null,null,null,2026]
[null,null,2027,null,null,null,null,null,null,null,null,null,null,null,null,null,null,null,null,null,null,null,null,2025,null,null,null,null,null,null,null,null,null,null,null,null,null,null,null,null,null,null,null,null,2027]
[null,null,2028,null,null,null,null,null,null,null,null,null,null,null,null,null,null,null,null,null,null,null,null,2026,null,null,null,null,null,null,null,null,null,null,null,null,null,null,null,null,null,null,null,null,2028]
[null,null,2029,null,null,null,null,null,null,null,null,null,null,null,null,null,null,null,null,null,null,null,null,2027,null,null,null,null,null,null,null,null,null,null,null,null,null,null,null,null,null,null,null,null,2029]
[null,null,2030,null,null,null,null,null,null,null,null,null,null,null,null,null,null,null,null,null,null,null,null,2028,null,null,null,null,null,null,null,null,null,null,null,null,null,null,null,null,null,null,null,null,2030]
[null,null,2031,null,null,null,null,null,null,null,null,null,null,null,null,null,null,null,null,null,null,null,null,2029,null,null,null,null,null,null,null,null,null,null,null,null,null,null,null,null,null,null,null,null,2031]
[null,"( ICE.2 )  Internal current expenditure ((P2_NEPS.2) + (D1.2))   \n",2014,null,null,null,null,null,null,null,null,null,null,null,null,null,null,null,null,null,null,null,null,2030,null,null,null,null,null,null,null,null,null,null,null,null,null,null,null,null,null,null,null,"( D29-D39.1 ) Other taxes less subsidies on production",2014]
[null,null,2015,null,null,null,null,null,null,null,null,null,null,null,null,null,null,null,null,null,null,null,null,2031,null,null,null,null,null,null,null,null,null,null,null,null,null,null,null,null,null,null,null,null,2015]
[null,null,2016,null,null,null,null,null,null,null,null,null,null,null,null,null,null,null,null,null,null,null,null,null,null,null,null,null,null,null,null,null,null,null,null,null,null,null,null,null,null,null,null,null,2016]
[null,null,2017,null,null,null,null,null,null,null,null,null,null,null,null,null,null,null,null,null,null,null,null,null,null,null,null,null,null,null,null,null,null,null,null,null,null,null,null,null,null,null,null,null,2017]
[null,null,2018,null,null,null,null,null,null,null,null,null,null,null,null,null,null,null,null,null,null,null,null,null,null,null,null,null,null,null,null,null,null,null,null,null,null,null,null,null,null,null,null,null,2018]
[null,null,2019,null,null,null,null,null,null,null,null,null,null,null,null,null,null,null,null,null,null,null,null,null,null,null,null,null,null,null,null,null,null,null,null,null,null,null,null,null,null,null,null,null,2019]
[null,null,2020,null,null,null,null,null,null,null,null,null,null,null,null,null,null,null,null,null,null,null,null,null,{"$f":"COLUMN(Y412)","v":25},null,null,null,null,null,null,null,null,null,null,null,null,null,null,null,null,null,null,null,2020]
[null,null,2021,null,null,null,null,null,null,null,null,null,null,null,null,null,null,null,null,null,null,null,"T8.3","Year","CEPA 1","of which CEPA 1.1.2 and 1.2.2 Climate change","CEPA 2","CEPA 3","CEPA 4","CEPA 5","CEPA 6","CEPA 7","CEPA 8","CEPA 9","Sum of CEPA 7+8+9","TOTAL","CREMA11B_13C_14","CREMA13A","CREMA13B",null,null,null,null,null,2021]
[null,null,2022,null,null,null,null,null,null,null,null,null,null,null,null,null,null,null,null,null,null,null,"( P3_EPS.5 )",2014,null,null,null,null,null,null,null,null,null,null,null,null,null,null,null,null,null,null,null,null,2022]
[null,null,2023,null,null,null,null,null,null,null,null,null,null,null,null,null,null,null,null,null,null,null,null,2015,null,null,null,null,null,null,null,null,null,null,null,null,null,null,null,null,null,null,null,null,2023]
[null,null,2024,null,null,null,null,null,null,null,null,null,null,null,null,null,null,null,null,null,null,null,null,2016,null,null,null,null,null,null,null,null,null,null,null,null,null,null,null,null,null,null,null,null,2024]
[null,null,2025,null,null,null,null,null,null,null,null,null,null,null,null,null,null,null,null,null,null,null,null,2017,null,null,null,null,null,null,null,null,null,null,null,null,null,null,null,null,null,null,null,null,2025]
[null,null,2026,null,null,null,null,null,null,null,null,null,null,null,null,null,null,null,null,null,null,null,null,2018,null,null,null,null,null,null,null,null,null,null,null,null,null,null,null,null,null,null,null,null,2026]
[null,null,2027,null,null,null,null,null,null,null,null,null,null,null,null,null,null,null,null,null,null,null,null,2019,null,null,null,null,null,null,null,null,null,null,null,null,null,null,null,null,null,null,null,null,2027]
[null,null,2028,null,null,null,null,null,null,null,null,null,null,null,null,null,null,null,null,null,null,null,null,2020,null,null,null,null,null,null,null,null,null,null,null,null,null,null,null,null,null,null,null,null,2028]
[null,null,2029,null,null,null,null,null,null,null,null,null,null,null,null,null,null,null,null,null,null,null,null,2021,null,null,null,null,null,null,null,null,null,null,null,null,null,null,null,null,null,null,null,null,2029]
[null,null,2030,null,null,null,null,null,null,null,null,null,null,null,null,null,null,null,null,null,null,null,null,2022,null,null,null,null,null,null,null,null,null,null,null,null,null,null,null,null,null,null,null,null,2030]
[null,null,2031,null,null,null,null,null,null,null,null,null,null,null,null,null,null,null,null,null,null,null,null,2023,null,null,null,null,null,null,null,null,null,null,null,null,null,null,null,null,null,null,null,null,2031]
[null,"( D29-D39.2 ) Other taxes less subsidies on production",2014,null,null,null,null,null,null,null,null,null,null,null,null,null,null,null,null,null,null,null,null,2024,null,null,null,null,null,null,null,null,null,null,null,null,null,null,null,null,null,null,null,"( P51C.1 ) Consumption of fixed capital",2014]
[null,null,2015,null,null,null,null,null,null,null,null,null,null,null,null,null,null,null,null,null,null,null,null,2025,null,null,null,null,null,null,null,null,null,null,null,null,null,null,null,null,null,null,null,null,2015]
[null,null,2016,null,null,null,null,null,null,null,null,null,null,null,null,null,null,null,null,null,null,null,null,2026,null,null,null,null,null,null,null,null,null,null,null,null,null,null,null,null,null,null,null,null,2016]
[null,null,2017,null,null,null,null,null,null,null,null,null,null,null,null,null,null,null,null,null,null,null,null,2027,null,null,null,null,null,null,null,null,null,null,null,null,null,null,null,null,null,null,null,null,2017]
[null,null,2018,null,null,null,null,null,null,null,null,null,null,null,null,null,null,null,null,null,null,null,null,2028,null,null,null,null,null,null,null,null,null,null,null,null,null,null,null,null,null,null,null,null,2018]
[null,null,2019,null,null,null,null,null,null,null,null,null,null,null,null,null,null,null,null,null,null,null,null,2029,null,null,null,null,null,null,null,null,null,null,null,null,null,null,null,null,null,null,null,null,2019]
[null,null,2020,null,null,null,null,null,null,null,null,null,null,null,null,null,null,null,null,null,null,null,null,2030,null,null,null,null,null,null,null,null,null,null,null,null,null,null,null,null,null,null,null,null,2020]
[null,null,2021,null,null,null,null,null,null,null,null,null,null,null,null,null,null,null,null,null,null,null,null,2031,null,null,null,null,null,null,null,null,null,null,null,null,null,null,null,null,null,null,null,null,2021]
[null,null,2022,null,null,null,null,null,null,null,null,null,null,null,null,null,null,null,null,null,null,null,"( P3_ACP_ec.5 )",2014,null,null,null,null,null,null,null,null,null,null,null,null,null,null,null,null,null,null,null,null,2022]
[null,null,2023,null,null,null,null,null,null,null,null,null,null,null,null,null,null,null,null,null,null,null,null,2015,null,null,null,null,null,null,null,null,null,null,null,null,null,null,null,null,null,null,null,null,2023]
[null,null,2024,null,null,null,null,null,null,null,null,null,null,null,null,null,null,null,null,null,null,null,null,2016,null,null,null,null,null,null,null,null,null,null,null,null,null,null,null,null,null,null,null,null,2024]
[null,null,2025,null,null,null,null,null,null,null,null,null,null,null,null,null,null,null,null,null,null,null,null,2017,null,null,null,null,null,null,null,null,null,null,null,null,null,null,null,null,null,null,null,null,2025]
[null,null,2026,null,null,null,null,null,null,null,null,null,null,null,null,null,null,null,null,null,null,null,null,2018,null,null,null,null,null,null,null,null,null,null,null,null,null,null,null,null,null,null,null,null,2026]
[null,null,2027,null,null,null,null,null,null,null,null,null,null,null,null,null,null,null,null,null,null,null,null,2019,null,null,null,null,null,null,null,null,null,null,null,null,null,null,null,null,null,null,null,null,2027]
[null,null,2028,null,null,null,null,null,null,null,null,null,null,null,null,null,null,null,null,null,null,null,null,2020,null,null,null,null,null,null,null,null,null,null,null,null,null,null,null,null,null,null,null,null,2028]
[null,null,2029,null,null,null,null,null,null,null,null,null,null,null,null,null,null,null,null,null,null,null,null,2021,null,null,null,null,null,null,null,null,null,null,null,null,null,null,null,null,null,null,null,null,2029]
[null,null,2030,null,null,null,null,null,null,null,null,null,null,null,null,null,null,null,null,null,null,null,null,2022,null,null,null,null,null,null,null,null,null,null,null,null,null,null,null,null,null,null,null,null,2030]
[null,null,2031,null,null,null,null,null,null,null,null,null,null,null,null,null,null,null,null,null,null,null,null,2023,null,null,null,null,null,null,null,null,null,null,null,null,null,null,null,null,null,null,null,null,2031]
[null,"( P51C.2 ) Consumption of fixed capital",2014,null,null,null,null,null,null,null,null,null,null,null,null,null,null,null,null,null,null,null,null,2024,null,null,null,null,null,null,null,null,null,null,null,null,null,null,null,null,null,null,null,"( B2N.1 ) Net operating surplus ((P1.1) + (RNO.1) - (P2.1) - (D1.1) - (P51C.1) - (D29-D39.1))",2014]
[null,null,2015,null,null,null,null,null,null,null,null,null,null,null,null,null,null,null,null,null,null,null,null,2025,null,null,null,null,null,null,null,null,null,null,null,null,null,null,null,null,null,null,null,null,2015]
[null,null,2016,null,null,null,null,null,null,null,null,null,null,null,null,null,null,null,null,null,null,null,null,2026,null,null,null,null,null,null,null,null,null,null,null,null,null,null,null,null,null,null,null,null,2016]
[null,null,2017,null,null,null,null,null,null,null,null,null,null,null,null,null,null,null,null,null,null,null,null,2027,null,null,null,null,null,null,null,null,null,null,null,null,null,null,null,null,null,null,null,null,2017]
[null,null,2018,null,null,null,null,null,null,null,null,null,null,null,null,null,null,null,null,null,null,null,null,2028,null,null,null,null,null,null,null,null,null,null,null,null,null,null,null,null,null,null,null,null,2018]
[null,null,2019,null,null,null,null,null,null,null,null,null,null,null,null,null,null,null,null,null,null,null,null,2029,null,null,null,null,null,null,null,null,null,null,null,null,null,null,null,null,null,null,null,null,2019]
[null,null,2020,null,null,null,null,null,null,null,null,null,null,null,null,null,null,null,null,null,null,null,null,2030,null,null,null,null,null,null,null,null,null,null,null,null,null,null,null,null,null,null,null,null,2020]
[null,null,2021,null,null,null,null,null,null,null,null,null,null,null,null,null,null,null,null,null,null,null,null,2031,null,null,null,null,null,null,null,null,null,null,null,null,null,null,null,null,null,null,null,null,2021]
[null,null,2022,null,null,null,null,null,null,null,null,null,null,null,null,null,null,null,null,null,null,null,"( P3_ACP_fc.5 )",2014,null,null,null,null,null,null,null,null,null,null,null,null,null,null,null,null,null,null,null,null,2022]
[null,null,2023,null,null,null,null,null,null,null,null,null,null,null,null,null,null,null,null,null,null,null,null,2015,null,null,null,null,null,null,null,null,null,null,null,null,null,null,null,null,null,null,null,null,2023]
[null,null,2024,null,null,null,null,null,null,null,null,null,null,null,null,null,null,null,null,null,null,null,null,2016,null,null,null,null,null,null,null,null,null,null,null,null,null,null,null,null,null,null,null,null,2024]
[null,null,2025,null,null,null,null,null,null,null,null,null,null,null,null,null,null,null,null,null,null,null,null,2017,null,null,null,null,null,null,null,null,null,null,null,null,null,null,null,null,null,null,null,null,2025]
[null,null,2026,null,null,null,null,null,null,null,null,null,null,null,null,null,null,null,null,null,null,null,null,2018,null,null,null,null,null,null,null,null,null,null,null,null,null,null,null,null,null,null,null,null,2026]
[null,null,2027,null,null,null,null,null,null,null,null,null,null,null,null,null,null,null,null,null,null,null,null,2019,null,null,null,null,null,null,null,null,null,null,null,null,null,null,null,null,null,null,null,null,2027]
[null,null,2028,null,null,null,null,null,null,null,null,null,null,null,null,null,null,null,null,null,null,null,null,2020,null,null,null,null,null,null,null,null,null,null,null,null,null,null,null,null,null,null,null,null,2028]
[null,null,2029,null,null,null,null,null,null,null,null,null,null,null,null,null,null,null,null,null,null,null,null,2021,null,null,null,null,null,null,null,null,null,null,null,null,null,null,null,null,null,null,null,null,2029]
[null,null,2030,null,null,null,null,null,null,null,null,null,null,null,null,null,null,null,null,null,null,null,null,2022,null,null,null,null,null,null,null,null,null,null,null,null,null,null,null,null,null,null,null,null,2030]
[null,null,2031,null,null,null,null,null,null,null,null,null,null,null,null,null,null,null,null,null,null,null,null,2023,null,null,null,null,null,null,null,null,null,null,null,null,null,null,null,null,null,null,null,null,2031]
[null,"( B2N.2 ) Net operating surplus ((P11.2) + (RNO.2) - (P2.2) - (D1.2) - (P51C.2) - (D29-D39.2))",2014,null,null,null,null,null,null,null,null,null,null,null,null,null,null,null,null,null,null,null,null,2024,null,null,null,null,null,null,null,null,null,null,null,null,null,null,null,null,null,null,null,"( P1.1 ) Total output of EP services ((P13.1) + (P11.1))",2014]
[null,null,2015,null,null,null,null,null,null,null,null,null,null,null,null,null,null,null,null,null,null,null,null,2025,null,null,null,null,null,null,null,null,null,null,null,null,null,null,null,null,null,null,null,null,2015]
[null,null,2016,null,null,null,null,null,null,null,null,null,null,null,null,null,null,null,null,null,null,null,null,2026,null,null,null,null,null,null,null,null,null,null,null,null,null,null,null,null,null,null,null,null,2016]
[null,null,2017,null,null,null,null,null,null,null,null,null,null,null,null,null,null,null,null,null,null,null,null,2027,null,null,null,null,null,null,null,null,null,null,null,null,null,null,null,null,null,null,null,null,2017]
[null,null,2018,null,null,null,null,null,null,null,null,null,null,null,null,null,null,null,null,null,null,null,null,2028,null,null,null,null,null,null,null,null,null,null,null,null,null,null,null,null,null,null,null,null,2018]
[null,null,2019,null,null,null,null,null,null,null,null,null,null,null,null,null,null,null,null,null,null,null,null,2029,null,null,null,null,null,null,null,null,null,null,null,null,null,null,null,null,null,null,null,null,2019]
[null,null,2020,null,null,null,null,null,null,null,null,null,null,null,null,null,null,null,null,null,null,null,null,2030,null,null,null,null,null,null,null,null,null,null,null,null,null,null,null,null,null,null,null,null,2020]
[null,null,2021,null,null,null,null,null,null,null,null,null,null,null,null,null,null,null,null,null,null,null,null,2031,null,null,null,null,null,null,null,null,null,null,null,null,null,null,null,null,null,null,null,null,2021]
[null,null,2022,null,null,null,null,null,null,null,null,null,null,null,null,null,null,null,null,null,null,null,null,null,null,null,null,null,null,null,null,null,null,null,null,null,null,null,null,null,null,null,null,null,2022]
[null,null,2023,null,null,null,null,null,null,null,null,null,null,null,null,null,null,null,null,null,null,null,null,null,null,null,null,null,null,null,null,null,null,null,null,null,null,null,null,null,null,null,null,null,2023]
[null,null,2024,null,null,null,null,null,null,null,null,null,null,null,null,null,null,null,null,null,null,null,null,null,null,null,null,null,null,null,null,null,null,null,null,null,null,null,null,null,null,null,null,null,2024]
[null,null,2025,null,null,null,null,null,null,null,null,null,null,null,null,null,null,null,null,null,null,null,null,null,null,null,null,null,null,null,null,null,null,null,null,null,null,null,null,null,null,null,null,null,2025]
[null,null,2026,null,null,null,null,null,null,null,null,null,null,null,null,null,null,null,null,null,null,null,null,null,{"$f":"COLUMN(Y472)","v":25},null,null,null,null,null,null,null,null,null,null,null,null,null,null,null,null,null,null,null,2026]
[null,null,2027,null,null,null,null,null,null,null,null,null,null,null,null,null,null,null,null,null,null,null,"T8.2","Year","CEPA 1","of which CEPA 1.1.2 and 1.2.2 Climate change","CEPA 2","CEPA 3","CEPA 4","CEPA 5","CEPA 6","CEPA 7","CEPA 8","CEPA 9","Sum of CEPA 7+8+9","TOTAL","CREMA11B_13C_14","CREMA13A","CREMA13B",null,null,null,null,null,2027]
[null,null,2028,null,null,null,null,null,null,null,null,null,null,null,null,null,null,null,null,null,null,null,"( P3_EPS.5 )",2006,null,null,null,null,null,null,null,null,null,null,null,null,null,null,null,null,null,null,null,null,2028]
[null,null,2029,null,null,null,null,null,null,null,null,null,null,null,null,null,null,null,null,null,null,null,null,2007,null,null,null,null,null,null,null,null,null,null,null,null,null,null,null,null,null,null,null,null,2029]
[null,null,2030,null,null,null,null,null,null,null,null,null,null,null,null,null,null,null,null,null,null,null,null,2008,null,null,null,null,null,null,null,null,null,null,null,null,null,null,null,null,null,null,null,null,2030]
[null,null,2031,null,null,null,null,null,null,null,null,null,null,null,null,null,null,null,null,null,null,null,null,2009,null,null,null,null,null,null,null,null,null,null,null,null,null,null,null,null,null,null,null,null,2031]
[null,"( P11.2 ) Market output of EP services ((P11_MA.2) + (P11_SA.2.))",2014,null,null,null,null,null,null,null,null,null,null,null,null,null,null,null,null,null,null,null,null,2010,null,null,null,null,null,null,null,null,null,null,null,null,null,null,null,null,null,null,null,"( P11.1 ) Market output of EP services (Includes P.11 (market output) of general government and NPISH local KAUs that are market producers)",2014]
[null,null,2015,null,null,null,null,null,null,null,null,null,null,null,null,null,null,null,null,null,null,null,null,2011,null,null,null,null,null,null,null,null,null,null,null,null,null,null,null,null,null,null,null,null,2015]
[null,null,2016,null,null,null,null,null,null,null,null,null,null,null,null,null,null,null,null,null,null,null,null,2012,null,null,null,null,null,null,null,null,null,null,null,null,null,null,null,null,null,null,null,null,2016]
[null,null,2017,null,null,null,null,null,null,null,null,null,null,null,null,null,null,null,null,null,null,null,null,2013,null,null,null,null,null,null,null,null,null,null,null,null,null,null,null,null,null,null,null,null,2017]
[null,null,2018,null,null,null,null,null,null,null,null,null,null,null,null,null,null,null,null,null,null,null,null,2014,null,null,null,null,null,null,null,null,null,null,null,null,null,null,null,null,null,null,null,null,2018]
[null,null,2019,null,null,null,null,null,null,null,null,null,null,null,null,null,null,null,null,null,null,null,null,2015,null,null,null,null,null,null,null,null,null,null,null,null,null,null,null,null,null,null,null,null,2019]
[null,null,2020,null,null,null,null,null,null,null,null,null,null,null,null,null,null,null,null,null,null,null,null,2016,null,null,null,null,null,null,null,null,null,null,null,null,null,null,null,null,null,null,null,null,2020]
[null,null,2021,null,null,null,null,null,null,null,null,null,null,null,null,null,null,null,null,null,null,null,null,2017,null,null,null,null,null,null,null,null,null,null,null,null,null,null,null,null,null,null,null,null,2021]
[null,null,2022,null,null,null,null,null,null,null,null,null,null,null,null,null,null,null,null,null,null,null,null,2018,null,null,null,null,null,null,null,null,null,null,null,null,null,null,null,null,null,null,null,null,2022]
[null,null,2023,null,null,null,null,null,null,null,null,null,null,null,null,null,null,null,null,null,null,null,null,2019,null,null,null,null,null,null,null,null,null,null,null,null,null,null,null,null,null,null,null,null,2023]
[null,null,2024,null,null,null,null,null,null,null,null,null,null,null,null,null,null,null,null,null,null,null,null,2020,null,null,null,null,null,null,null,null,null,null,null,null,null,null,null,null,null,null,null,null,2024]
[null,null,2025,null,null,null,null,null,null,null,null,null,null,null,null,null,null,null,null,null,null,null,null,2021,null,null,null,null,null,null,null,null,null,null,null,null,null,null,null,null,null,null,null,null,2025]
[null,null,2026,null,null,null,null,null,null,null,null,null,null,null,null,null,null,null,null,null,null,null,null,2022,null,null,null,null,null,null,null,null,null,null,null,null,null,null,null,null,null,null,null,null,2026]
[null,null,2027,null,null,null,null,null,null,null,null,null,null,null,null,null,null,null,null,null,null,null,null,2023,null,null,null,null,null,null,null,null,null,null,null,null,null,null,null,null,null,null,null,null,2027]
[null,null,2028,null,null,null,null,null,null,null,null,null,null,null,null,null,null,null,null,null,null,null,"( P3_ACP_ec.5 )",2006,null,null,null,null,null,null,null,null,null,null,null,null,null,null,null,null,null,null,null,null,2028]
[null,null,2029,null,null,null,null,null,null,null,null,null,null,null,null,null,null,null,null,null,null,null,null,2007,null,null,null,null,null,null,null,null,null,null,null,null,null,null,null,null,null,null,null,null,2029]
[null,null,2030,null,null,null,null,null,null,null,null,null,null,null,null,null,null,null,null,null,null,null,null,2008,null,null,null,null,null,null,null,null,null,null,null,null,null,null,null,null,null,null,null,null,2030]
[null,null,2031,null,null,null,null,null,null,null,null,null,null,null,null,null,null,null,null,null,null,null,null,2009,null,null,null,null,null,null,null,null,null,null,null,null,null,null,null,null,null,null,null,null,2031]
[null,"( P11_MA.2 ) Market output of EP services (from the main activity)",2014,null,null,null,null,null,null,null,null,null,null,null,null,null,null,null,null,null,null,null,null,2010,null,null,null,null,null,null,null,null,null,null,null,null,null,null,null,null,null,null,null,"( P13.1 ) Non-market output of EP services (Includes P.131 (payments for non-market output))",2014]
[null,null,2015,null,null,null,null,null,null,null,null,null,null,null,null,null,null,null,null,null,null,null,null,2011,null,null,null,null,null,null,null,null,null,null,null,null,null,null,null,null,null,null,null,null,2015]
[null,null,2016,null,null,null,null,null,null,null,null,null,null,null,null,null,null,null,null,null,null,null,null,2012,null,null,null,null,null,null,null,null,null,null,null,null,null,null,null,null,null,null,null,null,2016]
[null,null,2017,null,null,null,null,null,null,null,null,null,null,null,null,null,null,null,null,null,null,null,null,2013,null,null,null,null,null,null,null,null,null,null,null,null,null,null,null,null,null,null,null,null,2017]
[null,null,2018,null,null,null,null,null,null,null,null,null,null,null,null,null,null,null,null,null,null,null,null,2014,null,null,null,null,null,null,null,null,null,null,null,null,null,null,null,null,null,null,null,null,2018]
[null,null,2019,null,null,null,null,null,null,null,null,null,null,null,null,null,null,null,null,null,null,null,null,2015,null,null,null,null,null,null,null,null,null,null,null,null,null,null,null,null,null,null,null,null,2019]
[null,null,2020,null,null,null,null,null,null,null,null,null,null,null,null,null,null,null,null,null,null,null,null,2016,null,null,null,null,null,null,null,null,null,null,null,null,null,null,null,null,null,null,null,null,2020]
[null,null,2021,null,null,null,null,null,null,null,null,null,null,null,null,null,null,null,null,null,null,null,null,2017,null,null,null,null,null,null,null,null,null,null,null,null,null,null,null,null,null,null,null,null,2021]
[null,null,2022,null,null,null,null,null,null,null,null,null,null,null,null,null,null,null,null,null,null,null,null,2018,null,null,null,null,null,null,null,null,null,null,null,null,null,null,null,null,null,null,null,null,2022]
[null,null,2023,null,null,null,null,null,null,null,null,null,null,null,null,null,null,null,null,null,null,null,null,2019,null,null,null,null,null,null,null,null,null,null,null,null,null,null,null,null,null,null,null,null,2023]
[null,null,2024,null,null,null,null,null,null,null,null,null,null,null,null,null,null,null,null,null,null,null,null,2020,null,null,null,null,null,null,null,null,null,null,null,null,null,null,null,null,null,null,null,null,2024]
[null,null,2025,null,null,null,null,null,null,null,null,null,null,null,null,null,null,null,null,null,null,null,null,2021,null,null,null,null,null,null,null,null,null,null,null,null,null,null,null,null,null,null,null,null,2025]
[null,null,2026,null,null,null,null,null,null,null,null,null,null,null,null,null,null,null,null,null,null,null,null,2022,null,null,null,null,null,null,null,null,null,null,null,null,null,null,null,null,null,null,null,null,2026]
[null,null,2027,null,null,null,null,null,null,null,null,null,null,null,null,null,null,null,null,null,null,null,null,2023,null,null,null,null,null,null,null,null,null,null,null,null,null,null,null,null,null,null,null,null,2027]
[null,null,2028,null,null,null,null,null,null,null,null,null,null,null,null,null,null,null,null,null,null,null,"( P3_ACP_fc.5 )",2006,null,null,null,null,null,null,null,null,null,null,null,null,null,null,null,null,null,null,null,null,2028]
[null,null,2029,null,null,null,null,null,null,null,null,null,null,null,null,null,null,null,null,null,null,null,null,2007,null,null,null,null,null,null,null,null,null,null,null,null,null,null,null,null,null,null,null,null,2029]
[null,null,2030,null,null,null,null,null,null,null,null,null,null,null,null,null,null,null,null,null,null,null,null,2008,null,null,null,null,null,null,null,null,null,null,null,null,null,null,null,null,null,null,null,null,2030]
[null,null,2031,null,null,null,null,null,null,null,null,null,null,null,null,null,null,null,null,null,null,null,null,2009,null,null,null,null,null,null,null,null,null,null,null,null,null,null,null,null,null,null,null,null,2031]
[null,"( P11_SA.2 ) Market output of EP services (from secondary activities)",2014,null,null,null,null,null,null,null,null,null,null,null,null,null,null,null,null,null,null,null,null,2010,null,null,null,null,null,null,null,null,null,null,null,null,null,null,null,null,null,null,null,"( RNO.1 ) Related non-EP output",2014]
[null,null,2015,null,null,null,null,null,null,null,null,null,null,null,null,null,null,null,null,null,null,null,null,2011,null,null,null,null,null,null,null,null,null,null,null,null,null,null,null,null,null,null,null,null,2015]
[null,null,2016,null,null,null,null,null,null,null,null,null,null,null,null,null,null,null,null,null,null,null,null,2012,null,null,null,null,null,null,null,null,null,null,null,null,null,null,null,null,null,null,null,null,2016]
[null,null,2017,null,null,null,null,null,null,null,null,null,null,null,null,null,null,null,null,null,null,null,null,2013,null,null,null,null,null,null,null,null,null,null,null,null,null,null,null,null,null,null,null,null,2017]
[null,null,2018,null,null,null,null,null,null,null,null,null,null,null,null,null,null,null,null,null,null,null,null,2014,null,null,null,null,null,null,null,null,null,null,null,null,null,null,null,null,null,null,null,null,2018]
[null,null,2019,null,null,null,null,null,null,null,null,null,null,null,null,null,null,null,null,null,null,null,null,2015,null,null,null,null,null,null,null,null,null,null,null,null,null,null,null,null,null,null,null,null,2019]
[null,null,2020,null,null,null,null,null,null,null,null,null,null,null,null,null,null,null,null,null,null,null,null,2016,null,null,null,null,null,null,null,null,null,null,null,null,null,null,null,null,null,null,null,null,2020]
[null,null,2021,null,null,null,null,null,null,null,null,null,null,null,null,null,null,null,null,null,null,null,null,2017,null,null,null,null,null,null,null,null,null,null,null,null,null,null,null,null,null,null,null,null,2021]
[null,null,2022,null,null,null,null,null,null,null,null,null,null,null,null,null,null,null,null,null,null,null,null,2018,null,null,null,null,null,null,null,null,null,null,null,null,null,null,null,null,null,null,null,null,2022]
[null,null,2023,null,null,null,null,null,null,null,null,null,null,null,null,null,null,null,null,null,null,null,null,2019,null,null,null,null,null,null,null,null,null,null,null,null,null,null,null,null,null,null,null,null,2023]
[null,null,2024,null,null,null,null,null,null,null,null,null,null,null,null,null,null,null,null,null,null,null,null,2020,null,null,null,null,null,null,null,null,null,null,null,null,null,null,null,null,null,null,null,null,2024]
[null,null,2025,null,null,null,null,null,null,null,null,null,null,null,null,null,null,null,null,null,null,null,null,2021,null,null,null,null,null,null,null,null,null,null,null,null,null,null,null,null,null,null,null,null,2025]
[null,null,2026,null,null,null,null,null,null,null,null,null,null,null,null,null,null,null,null,null,null,null,null,2022,null,null,null,null,null,null,null,null,null,null,null,null,null,null,null,null,null,null,null,null,2026]
[null,null,2027,null,null,null,null,null,null,null,null,null,null,null,null,null,null,null,null,null,null,null,null,2023,null,null,null,null,null,null,null,null,null,null,null,null,null,null,null,null,null,null,null,null,2027]
[null,null,2028,null,null,null,null,null,null,null,null,null,null,null,null,null,null,null,null,null,null,null,null,null,null,null,null,null,null,null,null,null,null,null,null,null,null,null,null,null,null,null,null,null,2028]
[null,null,2029,null,null,null,null,null,null,null,null,null,null,null,null,null,null,null,null,null,null,null,null,null,null,null,null,null,null,null,null,null,null,null,null,null,null,null,null,null,null,null,null,null,2029]
[null,null,2030,null,null,null,null,null,null,null,null,null,null,null,null,null,null,null,null,null,null,null,null,null,null,null,null,null,null,null,null,null,null,null,null,null,null,null,null,null,null,null,null,null,2030]
[null,null,2031,null,null,null,null,null,null,null,null,null,null,null,null,null,null,null,null,null,null,null,null,null,null,null,null,null,null,null,null,null,null,null,null,null,null,null,null,null,null,null,null,null,2031]
[null,"( RNO.2 ) Related non-EP output",2014,null,null,null,null,null,null,null,null,null,null,null,null,null,null,null,null,null,null,null,null,null,null,null,null,null,null,null,null,null,null,null,null,null,null,null,null,null,null,null,null,"( P3_EPS.1 ) Final consumption of EP services ((P13.1) less P.131 (payments for non-market output))",2014]
[null,null,2015,null,null,null,null,null,null,null,null,null,null,null,null,null,null,null,null,null,null,null,null,null,null,null,null,null,null,null,null,null,null,null,null,null,null,null,null,null,null,null,null,null,2015]
[null,null,2016,null,null,null,null,null,null,null,null,null,null,null,null,null,null,null,null,null,null,null,null,null,null,null,null,null,null,null,null,null,null,null,null,null,null,null,null,null,null,null,null,null,2016]
[null,null,2017,null,null,null,null,null,null,null,null,null,null,null,null,null,null,null,null,null,null,null,null,null,null,null,null,null,null,null,null,null,null,null,null,null,null,null,null,null,null,null,null,null,2017]
[null,null,2018,null,null,null,null,null,null,null,null,null,null,null,null,null,null,null,null,null,null,null,null,null,null,null,null,null,null,null,null,null,null,null,null,null,null,null,null,null,null,null,null,null,2018]
[null,null,2019,null,null,null,null,null,null,null,null,null,null,null,null,null,null,null,null,null,null,null,null,null,null,null,null,null,null,null,null,null,null,null,null,null,null,null,null,null,null,null,null,null,2019]
[null,null,2020,null,null,null,null,null,null,null,null,null,null,null,null,null,null,null,null,null,null,null,null,null,null,null,null,null,null,null,null,null,null,null,null,null,null,null,null,null,null,null,null,null,2020]
[null,null,2021,null,null,null,null,null,null,null,null,null,null,null,null,null,null,null,null,null,null,null,null,null,null,null,null,null,null,null,null,null,null,null,null,null,null,null,null,null,null,null,null,null,2021]
[null,null,2022,null,null,null,null,null,null,null,null,null,null,null,null,null,null,null,null,null,null,null,null,null,null,null,null,null,null,null,null,null,null,null,null,null,null,null,null,null,null,null,null,null,2022]
[null,null,2023,null,null,null,null,null,null,null,null,null,null,null,null,null,null,null,null,null,null,null,null,null,null,null,null,null,null,null,null,null,null,null,null,null,null,null,null,null,null,null,null,null,2023]
[null,null,2024,null,null,null,null,null,null,null,null,null,null,null,null,null,null,null,null,null,null,null,null,null,null,null,null,null,null,null,null,null,null,null,null,null,null,null,null,null,null,null,null,null,2024]
[null,null,2025,null,null,null,null,null,null,null,null,null,null,null,null,null,null,null,null,null,null,null,null,null,null,null,null,null,null,null,null,null,null,null,null,null,null,null,null,null,null,null,null,null,2025]
[null,null,2026,null,null,null,null,null,null,null,null,null,null,null,null,null,null,null,null,null,null,null,null,null,null,null,null,null,null,null,null,null,null,null,null,null,null,null,null,null,null,null,null,null,2026]
[null,null,2027,null,null,null,null,null,null,null,null,null,null,null,null,null,null,null,null,null,null,null,null,null,null,null,null,null,null,null,null,null,null,null,null,null,null,null,null,null,null,null,null,null,2027]
[null,null,2028,null,null,null,null,null,null,null,null,null,null,null,null,null,null,null,null,null,null,null,null,null,null,null,null,null,null,null,null,null,null,null,null,null,null,null,null,null,null,null,null,null,2028]
[null,null,2029,null,null,null,null,null,null,null,null,null,null,null,null,null,null,null,null,null,null,null,null,null,null,null,null,null,null,null,null,null,null,null,null,null,null,null,null,null,null,null,null,null,2029]
[null,null,2030,null,null,null,null,null,null,null,null,null,null,null,null,null,null,null,null,null,null,null,null,null,null,null,null,null,null,null,null,null,null,null,null,null,null,null,null,null,null,null,null,null,2030]
[null,null,2031,null,null,null,null,null,null,null,null,null,null,null,null,null,null,null,null,null,null,null,null,null,null,null,null,null,null,null,null,null,null,null,null,null,null,null,null,null,null,null,null,null,2031]
[null,"( P2_EPS_EXT.2 ) Total intermediate consumption of EP services (for production of EP services and for other production)",2014,null,null,null,null,null,null,null,null,null,null,null,null,null,null,null,null,null,null,null,null,null,null,null,null,null,null,null,null,null,null,null,null,null,null,null,null,null,null,null,null,"( P2_EPS_EXT.1 ) Total intermediate consumption of EP services (for production of EP services and for other production)",2014]
[null,null,2015,null,null,null,null,null,null,null,null,null,null,null,null,null,null,null,null,null,null,null,null,null,null,null,null,null,null,null,null,null,null,null,null,null,null,null,null,null,null,null,null,null,2015]
[null,null,2016,null,null,null,null,null,null,null,null,null,null,null,null,null,null,null,null,null,null,null,null,null,null,null,null,null,null,null,null,null,null,null,null,null,null,null,null,null,null,null,null,null,2016]
[null,null,2017,null,null,null,null,null,null,null,null,null,null,null,null,null,null,null,null,null,null,null,null,null,null,null,null,null,null,null,null,null,null,null,null,null,null,null,null,null,null,null,null,null,2017]
[null,null,2018,null,null,null,null,null,null,null,null,null,null,null,null,null,null,null,null,null,null,null,null,null,null,null,null,null,null,null,null,null,null,null,null,null,null,null,null,null,null,null,null,null,2018]
[null,null,2019,null,null,null,null,null,null,null,null,null,null,null,null,null,null,null,null,null,null,null,null,null,null,null,null,null,null,null,null,null,null,null,null,null,null,null,null,null,null,null,null,null,2019]
[null,null,2020,null,null,null,null,null,null,null,null,null,null,null,null,null,null,null,null,null,null,null,null,null,null,null,null,null,null,null,null,null,null,null,null,null,null,null,null,null,null,null,null,null,2020]
[null,null,2021,null,null,null,null,null,null,null,null,null,null,null,null,null,null,null,null,null,null,null,null,null,null,null,null,null,null,null,null,null,null,null,null,null,null,null,null,null,null,null,null,null,2021]
[null,null,2022,null,null,null,null,null,null,null,null,null,null,null,null,null,null,null,null,null,null,null,null,null,null,null,null,null,null,null,null,null,null,null,null,null,null,null,null,null,null,null,null,null,2022]
[null,null,2023,null,null,null,null,null,null,null,null,null,null,null,null,null,null,null,null,null,null,null,null,null,null,null,null,null,null,null,null,null,null,null,null,null,null,null,null,null,null,null,null,null,2023]
[null,null,2024,null,null,null,null,null,null,null,null,null,null,null,null,null,null,null,null,null,null,null,null,null,null,null,null,null,null,null,null,null,null,null,null,null,null,null,null,null,null,null,null,null,2024]
[null,null,2025,null,null,null,null,null,null,null,null,null,null,null,null,null,null,null,null,null,null,null,null,null,null,null,null,null,null,null,null,null,null,null,null,null,null,null,null,null,null,null,null,null,2025]
[null,null,2026,null,null,null,null,null,null,null,null,null,null,null,null,null,null,null,null,null,null,null,null,null,null,null,null,null,null,null,null,null,null,null,null,null,null,null,null,null,null,null,null,null,2026]
[null,null,2027,null,null,null,null,null,null,null,null,null,null,null,null,null,null,null,null,null,null,null,null,null,null,null,null,null,null,null,null,null,null,null,null,null,null,null,null,null,null,null,null,null,2027]
[null,null,2028,null,null,null,null,null,null,null,null,null,null,null,null,null,null,null,null,null,null,null,null,null,null,null,null,null,null,null,null,null,null,null,null,null,null,null,null,null,null,null,null,null,2028]
[null,null,2029,null,null,null,null,null,null,null,null,null,null,null,null,null,null,null,null,null,null,null,null,null,null,null,null,null,null,null,null,null,null,null,null,null,null,null,null,null,null,null,null,null,2029]
[null,null,2030,null,null,null,null,null,null,null,null,null,null,null,null,null,null,null,null,null,null,null,null,null,null,null,null,null,null,null,null,null,null,null,null,null,null,null,null,null,null,null,null,null,2030]
[null,null,2031,null,null,null,null,null,null,null,null,null,null,null,null,null,null,null,null,null,null,null,null,null,null,null,null,null,null,null,null,null,null,null,null,null,null,null,null,null,null,null,null,null,2031]
[null,"( EMP.2 ) Employment (Full time equivalents)",2014,null,null,null,null,null,null,null,null,null,null,null,null,null,null,null,null,null,null,null,null,null,null,null,null,null,null,null,null,null,null,null,null,null,null,null,null,null,null,null,null,"( EMP.1 ) Employment (Full time equivalents)",2014]
[null,null,2015,null,null,null,null,null,null,null,null,null,null,null,null,null,null,null,null,null,null,null,null,null,null,null,null,null,null,null,null,null,null,null,null,null,null,null,null,null,null,null,null,null,2015]
[null,null,2016,null,null,null,null,null,null,null,null,null,null,null,null,null,null,null,null,null,null,null,null,null,null,null,null,null,null,null,null,null,null,null,null,null,null,null,null,null,null,null,null,null,2016]
[null,null,2017,null,null,null,null,null,null,null,null,null,null,null,null,null,null,null,null,null,null,null,null,null,null,null,null,null,null,null,null,null,null,null,null,null,null,null,null,null,null,null,null,null,2017]
[null,null,2018,null,null,null,null,null,null,null,null,null,null,null,null,null,null,null,null,null,null,null,null,null,null,null,null,null,null,null,null,null,null,null,null,null,null,null,null,null,null,null,null,null,2018]
[null,null,2019,null,null,null,null,null,null,null,null,null,null,null,null,null,null,null,null,null,null,null,null,null,null,null,null,null,null,null,null,null,null,null,null,null,null,null,null,null,null,null,null,null,2019]
[null,null,2020,null,null,null,null,null,null,null,null,null,null,null,null,null,null,null,null,null,null,null,null,null,null,null,null,null,null,null,null,null,null,null,null,null,null,null,null,null,null,null,null,null,2020]
[null,null,2021,null,null,null,null,null,null,null,null,null,null,null,null,null,null,null,null,null,null,null,null,null,null,null,null,null,null,null,null,null,null,null,null,null,null,null,null,null,null,null,null,null,2021]
[null,null,2022,null,null,null,null,null,null,null,null,null,null,null,null,null,null,null,null,null,null,null,null,null,null,null,null,null,null,null,null,null,null,null,null,null,null,null,null,null,null,null,null,null,2022]
[null,null,2023,null,null,null,null,null,null,null,null,null,null,null,null,null,null,null,null,null,null,null,null,null,null,null,null,null,null,null,null,null,null,null,null,null,null,null,null,null,null,null,null,null,2023]
[null,null,2024,null,null,null,null,null,null,null,null,null,null,null,null,null,null,null,null,null,null,null,null,null,null,null,null,null,null,null,null,null,null,null,null,null,null,null,null,null,null,null,null,null,2024]
[null,null,2025,null,null,null,null,null,null,null,null,null,null,null,null,null,null,null,null,null,null,null,null,null,null,null,null,null,null,null,null,null,null,null,null,null,null,null,null,null,null,null,null,null,2025]
[null,null,2026,null,null,null,null,null,null,null,null,null,null,null,null,null,null,null,null,null,null,null,null,null,null,null,null,null,null,null,null,null,null,null,null,null,null,null,null,null,null,null,null,null,2026]
[null,null,2027,null,null,null,null,null,null,null,null,null,null,null,null,null,null,null,null,null,null,null,null,null,null,null,null,null,null,null,null,null,null,null,null,null,null,null,null,null,null,null,null,null,2027]
[null,null,2028,null,null,null,null,null,null,null,null,null,null,null,null,null,null,null,null,null,null,null,null,null,null,null,null,null,null,null,null,null,null,null,null,null,null,null,null,null,null,null,null,null,2028]
[null,null,2029,null,null,null,null,null,null,null,null,null,null,null,null,null,null,null,null,null,null,null,null,null,null,null,null,null,null,null,null,null,null,null,null,null,null,null,null,null,null,null,null,null,2029]
[null,null,2030,null,null,null,null,null,null,null,null,null,null,null,null,null,null,null,null,null,null,null,null,null,null,null,null,null,null,null,null,null,null,null,null,null,null,null,null,null,null,null,null,null,2030]
[null,null,2031,null,null,null,null,null,null,null,null,null,null,null,null,null,null,null,null,null,null,null,null,null,null,null,null,null,null,null,null,null,null,null,null,null,null,null,null,null,null,null,null,null,2031]
[]
[]
[]
[]
[]
[]
[null,null,null,{"$f":"COLUMN(D592)","v":4},null,null,null,null,null,null,null,null,null,null,null,null,null,null,null,null,null,null,null,null,{"$f":"COLUMN(Y592)","v":25}]
[null,"T3","Year","CEPA 1","of which CEPA 1.1.2 and 1.2.2 Climate change","CEPA 2","CEPA 3","CEPA 4","CEPA 5","CEPA 6","CEPA 7","CEPA 8","CEPA 9","Sum of CEPA 7+8+9","TOTAL","CREMA11B_13C_14","CREMA13A","CREMA13B"]
[null,"( P51G_NP.3 ) Gross fixed capital formation and acquisition less disposals of non-financial, non-produced assets",2014]
[null,null,2015]
[null,null,2016]
[null,null,2017]
[null,null,2018]
[null,null,2019]
[null,null,2020]
[null,null,2021]
[null,null,2022]
[null,null,2023]
[null,null,2024]
[null,null,2025]
[null,null,2026]
[null,null,2027]
[null,null,2028]
[null,null,2029]
[null,null,2030]
[null,null,2031]
[null,"( INV_EOP.3 ) GFCF on specific EP fixed assets (end-of-pipe technologies)",2014]
[null,null,2015]
[null,null,2016]
[null,null,2017]
[null,null,2018]
[null,null,2019]
[null,null,2020]
[null,null,2021]
[null,null,2022]
[null,null,2023]
[null,null,2024]
[null,null,2025]
[null,null,2026]
[null,null,2027]
[null,null,2028]
[null,null,2029]
[null,null,2030]
[null,null,2031]
[null,"( INV_IT.3 ) GFCF on cleaner EP fixed assets (integrated technologies)",2014]
[null,null,2015]
[null,null,2016]
[null,null,2017]
[null,null,2018]
[null,null,2019]
[null,null,2020]
[null,null,2021]
[null,null,2022]
[null,null,2023]
[null,null,2024]
[null,null,2025]
[null,null,2026]
[null,null,2027]
[null,null,2028]
[null,null,2029]
[null,null,2030]
[null,null,2031]
[null,"( P2.3 ) Total Intermediate consumption",2014]
[null,null,2015]
[null,null,2016]
[null,null,2017]
[null,null,2018]
[null,null,2019]
[null,null,2020]
[null,null,2021]
[null,null,2022]
[null,null,2023]
[null,null,2024]
[null,null,2025]
[null,null,2026]
[null,null,2027]
[null,null,2028]
[null,null,2029]
[null,null,2030]
[null,null,2031]
[null,"( P2_EPS.3 ) Intermediate consumption of EP services",2014]
[null,null,2015]
[null,null,2016]
[null,null,2017]
[null,null,2018]
[null,null,2019]
[null,null,2020]
[null,null,2021]
[null,null,2022]
[null,null,2023]
[null,null,2024]
[null,null,2025]
[null,null,2026]
[null,null,2027]
[null,null,2028]
[null,null,2029]
[null,null,2030]
[null,null,2031]
[null,"( P2_NEPS.3 ) Intermediate consumption (excluding EP services)",2014]
[null,null,2015]
[null,null,2016]
[null,null,2017]
[null,null,2018]
[null,null,2019]
[null,null,2020]
[null,null,2021]
[null,null,2022]
[null,null,2023]
[null,null,2024]
[null,null,2025]
[null,null,2026]
[null,null,2027]
[null,null,2028]
[null,null,2029]
[null,null,2030]
[null,null,2031]
[null,"( D1.3 ) Compensation of employees",2014]
[null,null,2015]
[null,null,2016]
[null,null,2017]
[null,null,2018]
[null,null,2019]
[null,null,2020]
[null,null,2021]
[null,null,2022]
[null,null,2023]
[null,null,2024]
[null,null,2025]
[null,null,2026]
[null,null,2027]
[null,null,2028]
[null,null,2029]
[null,null,2030]
[null,null,2031]
[null,"( P1_ANC.3 ) Ancillary EP output (simplified valuation legally acceptable) ((P2_NEPS.3) + (D1.3))",2014]
[null,null,2015]
[null,null,2016]
[null,null,2017]
[null,null,2018]
[null,null,2019]
[null,null,2020]
[null,null,2021]
[null,null,2022]
[null,null,2023]
[null,null,2024]
[null,null,2025]
[null,null,2026]
[null,null,2027]
[null,null,2028]
[null,null,2029]
[null,null,2030]
[null,null,2031]
[null,"   ( D29-D39.3 ) Other taxes less subsidies on production",2014]
[null,null,2015]
[null,null,2016]
[null,null,2017]
[null,null,2018]
[null,null,2019]
[null,null,2020]
[null,null,2021]
[null,null,2022]
[null,null,2023]
[null,null,2024]
[null,null,2025]
[null,null,2026]
[null,null,2027]
[null,null,2028]
[null,null,2029]
[null,null,2030]
[null,null,2031]
[null,"   ( P51C.3 ) Consumption of fixed capital",2014]
[null,null,2015]
[null,null,2016]
[null,null,2017]
[null,null,2018]
[null,null,2019]
[null,null,2020]
[null,null,2021]
[null,null,2022]
[null,null,2023]
[null,null,2024]
[null,null,2025]
[null,null,2026]
[null,null,2027]
[null,null,2028]
[null,null,2029]
[null,null,2030]
[null,null,2031]
[null,"   ( P1_ANC_ESA.3 ) Ancillary EP output (ESA-compatible output) ((P2_NEPS.3) + (D1.3) + (P51C.3) + (D29-D39.3))",2014]
[null,null,2015]
[null,null,2016]
[null,null,2017]
[null,null,2018]
[null,null,2019]
[null,null,2020]
[null,null,2021]
[null,null,2022]
[null,null,2023]
[null,null,2024]
[null,null,2025]
[null,null,2026]
[null,null,2027]
[null,null,2028]
[null,null,2029]
[null,null,2030]
[null,null,2031]
[null,"   ( RNO.3 ) Related non-EP output",2014]
[null,null,2015]
[null,null,2016]
[null,null,2017]
[null,null,2018]
[null,null,2019]
[null,null,2020]
[null,null,2021]
[null,null,2022]
[null,null,2023]
[null,null,2024]
[null,null,2025]
[null,null,2026]
[null,null,2027]
[null,null,2028]
[null,null,2029]
[null,null,2030]
[null,null,2031]
[null,"( P2_EPS_EXT.3 ) Total intermediate consumption of EP services (for production of EP services and for other production)",2014]
[null,null,2015]
[null,null,2016]
[null,null,2017]
[null,null,2018]
[null,null,2019]
[null,null,2020]
[null,null,2021]
[null,null,2022]
[null,null,2023]
[null,null,2024]
[null,null,2025]
[null,null,2026]
[null,null,2027]
[null,null,2028]
[null,null,2029]
[null,null,2030]
[null,null,2031]
[null,"( EMP.3 ) Employment (Full time equivalents)",2014]
[null,null,2015]
[null,null,2016]
[null,null,2017]
[null,null,2018]
[null,null,2019]
[null,null,2020]
[null,null,2021]
[null,null,2022]
[null,null,2023]
[null,null,2024]
[null,null,2025]
[null,null,2026]
[null,null,2027]
[null,null,2028]
[null,null,2029]
[null,null,2030]
[null,null,2031]
[null,null,null,{"$f":"COLUMN(D846)","v":4}]
[null,"T4","Year","CEPA 1","of which CEPA 1.1.2 and 1.2.2 Climate change","CEPA 2","CEPA 3","CEPA 4","CEPA 5","CEPA 6","CEPA 7","CEPA 8","CEPA 9","Sum of CEPA 7+8+9","TOTAL","CREMA11B_13C_14","CREMA13A","CREMA13B"]
[null,"( P1.4 ) Total output of EP services (P11.4 + P1_ANC.4 + P13.4)",2014]
[null,null,2015]
[null,null,2016]
[null,null,2017]
[null,null,2018]
[null,null,2019]
[null,null,2020]
[null,null,2021]
[null,null,2022]
[null,null,2023]
[null,null,2024]
[null,null,2025]
[null,null,2026]
[null,null,2027]
[null,null,2028]
[null,null,2029]
[null,null,2030]
[null,null,2031]
[null,"( P11.4 ) Market output of EP services (= P11.1 + P11.2)",2014]
[null,null,2015]
[null,null,2016]
[null,null,2017]
[null,null,2018]
[null,null,2019]
[null,null,2020]
[null,null,2021]
[null,null,2022]
[null,null,2023]
[null,null,2024]
[null,null,2025]
[null,null,2026]
[null,null,2027]
[null,null,2028]
[null,null,2029]
[null,null,2030]
[null,null,2031]
[null,"( P1_ANC.4 ) Ancillary EP output (= P1_ANC.3)",2014]
[null,null,2015]
[null,null,2016]
[null,null,2017]
[null,null,2018]
[null,null,2019]
[null,null,2020]
[null,null,2021]
[null,null,2022]
[null,null,2023]
[null,null,2024]
[null,null,2025]
[null,null,2026]
[null,null,2027]
[null,null,2028]
[null,null,2029]
[null,null,2030]
[null,null,2031]
[null,"( P13.4 ) Non-market output of EP services (=P13.1)",2014]
[null,null,2015]
[null,null,2016]
[null,null,2017]
[null,null,2018]
[null,null,2019]
[null,null,2020]
[null,null,2021]
[null,null,2022]
[null,null,2023]
[null,null,2024]
[null,null,2025]
[null,null,2026]
[null,null,2027]
[null,null,2028]
[null,null,2029]
[null,null,2030]
[null,null,2031]
[null," ( P2_EPS_SP.4 ) Intermediate consumption of EP services by specialist producers",2014]
[null,"Intermediate consumption of EP services of corporations specialist producers and of general government' units as producers of EP services ",2015]
[null,null,2016]
[null,null,2017]
[null,null,2018]
[null,null,2019]
[null,null,2020]
[null,null,2021]
[null,null,2022]
[null,null,2023]
[null,null,2024]
[null,null,2025]
[null,null,2026]
[null,null,2027]
[null,null,2028]
[null,null,2029]
[null,null,2030]
[null,null,2031]
[null,"( P7.4 ) Imports of EP services",2014]
[null,null,2015]
[null,null,2016]
[null,null,2017]
[null,null,2018]
[null,null,2019]
[null,null,2020]
[null,null,2021]
[null,null,2022]
[null,null,2023]
[null,null,2024]
[null,null,2025]
[null,null,2026]
[null,null,2027]
[null,null,2028]
[null,null,2029]
[null,null,2030]
[null,null,2031]
[null,"( P6.4 ) Exports of EP services",2014]
[null,null,2015]
[null,null,2016]
[null,null,2017]
[null,null,2018]
[null,null,2019]
[null,null,2020]
[null,null,2021]
[null,null,2022]
[null,null,2023]
[null,null,2024]
[null,null,2025]
[null,null,2026]
[null,null,2027]
[null,null,2028]
[null,null,2029]
[null,null,2030]
[null,null,2031]
[null,"( D21-D31.4 ) VAT and other taxes less subsidies on EP services",2014]
[null,null,2015]
[null,null,2016]
[null,null,2017]
[null,null,2018]
[null,null,2019]
[null,null,2020]
[null,null,2021]
[null,null,2022]
[null,null,2023]
[null,null,2024]
[null,null,2025]
[null,null,2026]
[null,null,2027]
[null,null,2028]
[null,null,2029]
[null,null,2030]
[null,null,2031]
[null,"( SUP_NU.4 ) Environmental protection supply at purchasers' prices available to resident users (= P1.4 - P2_EPS_SP.4 + P7.4 - P6.4 + D21-D31.4)",2014]
[null,null,2015]
[null,null,2016]
[null,null,2017]
[null,null,2018]
[null,null,2019]
[null,null,2020]
[null,null,2021]
[null,null,2022]
[null,null,2023]
[null,null,2024]
[null,null,2025]
[null,null,2026]
[null,null,2027]
[null,null,2028]
[null,null,2029]
[null,null,2030]
[null,null,2031]
[null,null,null,{"$f":"COLUMN(D1010)","v":4}]

{"sheet":"Cover","index":5,"n_rows":22,"n_cols":3,"rows_kept":22,"cut":false,"hidden":false,"merged":[]}
[]
[null,"STATISTICAL OFFICE OF THE"]
[null,"EUROPEAN UNION"]
[]
[]
[]
[]
[]
[]
[]
[null,"Directorate E: Sectoral and Regional Statistics"]
[]
[null,"Unit E-2: Environmental statistics and accounts; sustainable development"]
[]
[]
["Your country:",null,{"$f":"VLOOKUP(B16,COUNTRY,2,FALSE)","v":{"$error":"#N/A"}}]
["Please select your reporting currency:","Million units of national currency"]
[]
[null,"Note: In this questionnaire data on mandatory reporting categories for EPEA, as set out in Annex IV of Regulation 691/2011 and  amended by Commission Delegated Regulation (EU) 2022/125 of 19 November 2021, should be provided. Apart from the mandatory reporting, the questionnaire seeks information on more detailed breakdowns and voluntary variables. "]
[]
[null,"QUESTIONNAIRE ON ENVIRONMENTAL PROTECTION EXPENDITURE ACCOUNTS"]
[null,{"$f":"Questionnaire!C3","v":0}]

{"sheet":"TOC","index":6,"n_rows":38,"n_cols":7,"rows_kept":38,"cut":false,"hidden":false,"merged":[[37,0,37,1],[37,3,37,4],[17,0,17,1],[17,3,17,4],[16,0,16,1],[16,3,16,4],[36,0,36,1],[36,3,36,4],[23,0,23,1],[23,3,23,4],[21,0,21,1],[21,3,21,4],[27,0,27,1],[27,3,27,4],[26,0,26,1],[26,3,26,4],[24,0,24,1],[24,3,24,4],[28,0,28,1],[28,3,28,4],[11,0,11,1],[11,3,11,4],[22,0,22,1],[22,3,22,4],[18,0,18,1],[18,3,18,4],[13,0,13,1],[13,3,13,4],[15,0,15,1],[15,3,15,4],[14,0,14,1],[14,3,14,4],[19,3,19,4],[20,0,20,1],[20,3,20,4],[0,0,0,3],[2,0,2,1],[3,3,3,4],[3,0,3,1],[0,4,0,5],[5,3,5,4],[25,0,25,1],[25,3,25,4],[6,0,6,1],[6,3,6,4],[5,0,5,1],[7,0,7,1],[7,3,7,4],[8,0,8,1],[8,3,8,4],[9,0,9,1],[9,3,9,4],[10,0,10,1],[10,3,10,4],[12,0,12,1],[12,3,12,4],[19,0,19,1],[29,0,29,1],[29,3,29,4],[30,0,30,1],[30,3,30,4],[34,0,34,1],[34,3,34,4],[35,0,35,1],[35,3,35,4],[31,0,31,1],[31,3,31,4],[32,0,32,1],[32,3,32,4],[33,0,33,1],[33,3,33,4]]}
[{"$f":"Cover!B21","v":"QUESTIONNAIRE ON ENVIRONMENTAL PROTECTION EXPENDITURE ACCOUNTS"},null,null,null,"Table of contents"]
["Country",{"$f":"_xlfn.IFNA(Cover!C16,\"\")","v":""},null,{"$f":"\"\"&Cover!B16","v":""},"Unit",{"$f":"Cover!B17","v":"Million units of national currency"}]
["Explanatory notes EP/RM","INT",null,"Explanatory notes and definitions for EP part","Explanatory notes and definitions for RM part","for information"]
["Reporting instructions ",null,null,"Reporting instructions and footnotes to all tables",null,"for information"]
[]
["Data Table",null,null,"Content",null,"Status\r","HIDDEN"]
[1,null,null,"General government and NPISH ",null,"To be filled in"]
[2,null,null,"Corporations as specialist and secondary producers of market EP services ",null,"To be filled in"]
[3,null,null,"Corporations: other (also covering producers of ancillary EP services): total ",null,"To be filled in"]
["3a",null,null,"Corporations: other (also covering producers of ancillary EP services):  NACE Rev. 2 B",null,"To be filled in"]
["3b",null,null,"Corporations: other (also covering producers of ancillary EP services):  NACE Rev. 2 C ",null,"To be filled in"]
["3b_Add_2014",null,null,"Detailed Manufacturing Industries (reporting year 2014)",null,"To be filled in"]
["3b_Add_2015",null,null,"Detailed Manufacturing Industries (reporting year 2015)",null,"To be filled in"]
["3b_Add_2016",null,null,"Detailed Manufacturing Industries (reporting year 2016)",null,"To be filled in"]
["3b_Add_2017",null,null,"Detailed Manufacturing Industries (reporting year 2017)",null,"To be filled in"]
["3b_Add_2018",null,null,"Detailed Manufacturing Industries (reporting year 2018)",null,"To be filled in"]
["3b_Add_2019",null,null,"Detailed Manufacturing Industries (reporting year 2019)",null,"To be filled in"]
["3b_Add_2020",null,null,"Detailed Manufacturing Industries (reporting year 2020)",null,"To be filled in"]
["3c",null,null,"Corporations: other (also covering producers of ancillary EP services):  NACE Rev. 2 D ",null,"To be filled in"]
["3d",null,null,"Corporations: other (also covering producers of ancillary EP services):  NACE Rev. E36 ",null,"To be filled in"]
["3e",null,null,"Corporations: other (also covering producers of ancillary EP services):  other NACE ",null,"To be filled in"]
[4,null,null,"Total supply of environmental protection services ",null,"To be filled in"]
[5,null,null,"Households",null,"To be filled in"]
[6,"T",null,"Transfers ",null,"To be filled in"]
[7,null,null,"NEEP, by CEPA, Total ",null,"To be filled in or automatically calculated"]
["7_ADD_GG",null,null,"NEEP, by CEPA, General Government",null,"To be filled in or automatically calculated"]
["7_ADD_CORP",null,null,"NEEP, by CEPA, Corporations ",null,"To be filled in or automatically calculated"]
["7_ADD_HH",null,null,"NEEP, by CEPA, Households",null,"To be filled in or automatically calculated"]
[8.1,null,null,"GFCF - General government and NPISH",null,"To be filled in"]
[8.1999999999999993,null,null,"GFCF - Corporations as specialist and secondary producers",null,"To be filled in"]
[8.3000000000000007,null,null,"GFCF - Corporations: other (also covering producers of ancillary EP services/RM products)",null,"To be filled in"]
["8,3_Add_2014",null,null,"GFCF - Corporations as ancillary producers detailed by NACE (reporting year 2014)",null,"To be filled in"]
["8,3_Add_2015",null,null,"GFCF - Corporations as ancillary producers detailed by NACE (reporting year 2015)",null,"To be filled in"]
["8,3_Add_2016",null,null,"GFCF - Corporations as ancillary producers detailed by NACE (reporting year 2016)",null,"To be filled in"]
["8,3_Add_2017",null,null,"GFCF - Corporations as ancillary producers detailed by NACE (reporting year 2017)",null,"To be filled in"]
["8,3_Add_2018",null,null,"GFCF - Corporations as ancillary producers detailed by NACE (reporting year 2018)",null,"To be filled in"]
["8,3_Add_2019",null,null,"GFCF - Corporations as ancillary producers detailed by NACE (reporting year 2019)",null,"To be filled in"]
["8,3_Add_2020",null,null,"GFCF - Corporations as ancillary producers detailed by NACE (reporting year 2020)",null,"To be filled in"]

{"sheet":"Explanatory notes EP","index":7,"n_rows":210,"n_cols":4,"rows_kept":210,"cut":false,"hidden":false,"merged":[[92,2,92,3],[91,2,91,3],[87,2,87,3],[98,2,98,3],[102,2,102,3],[99,2,99,3],[137,2,137,3],[138,2,138,3],[136,2,136,3],[118,2,118,3],[119,2,119,3],[121,2,121,3],[124,2,124,3],[125,2,125,3],[127,2,127,3],[126,2,126,3],[120,2,120,3],[132,2,132,3],[135,2,135,3],[131,2,131,3],[123,2,123,3],[128,2,128,3],[129,2,129,3],[130,2,130,3],[133,2,133,3],[134,2,134,3],[115,2,115,3],[116,2,116,3],[117,2,117,3],[106,2,106,3],[109,2,109,3],[107,2,107,3],[108,2,108,3],[114,2,114,3],[112,2,112,3],[113,2,113,3],[111,2,111,3],[122,2,122,3],[110,2,110,3],[209,2,209,3],[210,2,210,3],[202,2,202,3],[203,2,203,3],[205,2,205,3],[206,2,206,3],[207,2,207,3],[208,2,208,3],[196,2,196,3],[197,2,197,3],[198,2,198,3],[199,2,199,3],[200,2,200,3],[201,2,201,3],[190,2,190,3],[191,2,191,3],[192,2,192,3],[193,2,193,3],[194,2,194,3],[160,2,160,3],[161,2,161,3],[195,2,195,3],[25,2,25,3],[104,2,104,3],[184,2,184,3],[185,2,185,3],[186,2,186,3],[187,2,187,3],[188,2,188,3],[189,2,189,3],[178,2,178,3],[179,2,179,3],[180,2,180,3],[181,2,181,3],[182,2,182,3],[183,2,183,3],[172,2,172,3],[173,2,173,3],[174,2,174,3],[175,2,175,3],[176,2,176,3],[177,2,177,3],[166,2,166,3],[167,2,167,3],[168,2,168,3],[169,2,169,3],[170,2,170,3],[171,2,171,3],[139,2,139,3],[141,1,141,2],[142,1,143,1],[147,1,147,2],[148,1,150,1],[162,2,162,3],[163,2,163,3],[164,2,164,3],[165,2,165,3],[152,2,152,3],[154,2,154,3],[155,2,155,3],[156,2,156,3],[157,2,157,3],[158,2,158,3],[159,2,159,3],[153,2,153,3],[96,2,96,3],[100,2,100,3],[95,2,95,3],[101,2,101,3],[105,2,105,3],[71,2,71,3],[72,2,72,3],[74,2,74,3],[75,2,75,3],[76,2,76,3],[73,2,73,3],[81,2,81,3],[84,2,84,3],[79,2,79,3],[80,2,80,3],[82,2,82,3],[78,2,78,3],[77,2,77,3],[83,2,83,3],[85,2,85,3],[93,2,93,3],[94,2,94,3],[97,2,97,3],[103,2,103,3],[86,2,86,3],[88,2,88,3],[89,2,89,3],[90,2,90,3],[62,2,62,3],[65,2,65,3],[67,2,67,3],[68,2,68,3],[69,2,69,3],[70,2,70,3],[57,2,57,3],[58,2,58,3],[60,2,60,3],[61,2,61,3],[59,2,59,3],[66,2,66,3],[64,2,64,3],[63,2,63,3],[55,2,55,3],[56,2,56,3],[24,2,24,3],[18,2,18,3],[49,2,49,3],[50,2,50,3],[53,2,53,3],[26,2,26,3],[21,2,21,3],[22,2,22,3],[23,2,23,3],[20,2,20,3],[35,2,35,3],[43,2,43,3],[42,2,42,3],[44,2,44,3],[45,2,45,3],[46,2,46,3],[47,2,47,3],[39,2,39,3],[41,2,41,3],[54,2,54,3],[33,2,33,3],[36,2,36,3],[37,2,37,3],[38,2,38,3],[32,2,32,3],[27,2,27,3],[30,2,30,3],[28,2,28,3],[29,2,29,3],[31,2,31,3],[34,2,34,3],[48,2,48,3],[51,2,51,3],[52,2,52,3],[40,2,40,3],[4,2,4,3],[5,2,5,3],[6,2,6,3],[7,2,7,3],[0,0,0,2],[1,2,1,3],[2,2,2,3],[3,2,3,3],[19,2,19,3],[8,2,8,3],[9,2,9,3],[10,2,10,3],[11,2,11,3],[12,2,12,3],[13,2,13,3],[14,2,14,3],[15,2,15,3],[16,2,16,3],[17,2,17,3]]}
[{"$f":"Cover!B21","v":"QUESTIONNAIRE ON ENVIRONMENTAL PROTECTION EXPENDITURE ACCOUNTS"},null,null,"EXPLANATORY NOTES FOR THE EP PART"]
[null,null,"1. BACKGROUND","1. BACKGROUND"]
[null,null,"Regulation (EU) No 691/2011 on European environmental economic accounts establishes a common framework for the collection, compilation, transmission and evaluation of European environmental economic accounts, which include an environmental protection expenditure accounts (EPEA) module, described in the Annex IV of the Regulation. This module defines the data to be collected, compiled, transmitted and evaluated for the purposes of environmental protection expenditure accounts by the Member States.","Regulation 691/2011 on European environmental economic accounts was adopted on 6 July 2011. It establishes a common framework for the collection, compilation, transmission and evaluation of European environmental economic accounts to be set up as satellite accounts to ESA. "]
[null,null,"The EPEA is a monetary description of environmental protection activities in accordance with the SEEA central framework. It is coherent with the European System of Accounts (ESA 2010) which applies to national accounts and related satellite accounts. This questionnaire uses the terms and definitions of the ESA 2010.","Introducing an EPE module into Regulaiton 691/2011 on one side allows for information to be fully coherent with ESA and on the other side it gives more detailed information directly usable for statistics on the environmental goods and services sector (EGSS), which is foreseen as well as a module to be added to Regulation 691/2011."]
[null,null,"This questionnaire covers all the mandatory variables to be reported by the Member States according to the Regulation (EU) No 691/2011 as amended by Commission delegated regulation 2022/125. It focuses on the (market, non-market and ancillary) production and on uses of environmental protection services.  \nIt includes also additional variables to be transmitted on a voluntary basis.","The focus of the module is on production and use. No breakdown of costs of production is required for calculating output. For ancillary activities major simplifications apply. The inclusion of consumption of fixed capital and of taxes less subsidies is not obligatory in order to further reduce the response burden . Furthermore for ancillary activity the coverage is reduced to only those NACE sections covered by the SBS Regulation. Compared to the EPEA and JQ-EPER, the proposed module focuses only on EP services. The use of connected and adapted products is left outside of the current proposal. Compared to EPEA the information asked for calculating financing is drastically reduced. Information on connected and adapted products as well as information on employment can be collected through the new module on the environmental goods and services sector (EGSS). Furthermore the module restricts data collection to only some environmental domains (depending on the sector/variables)."]
[null,null,"As far as possible, countries should make use of already existing information from the national accounts: \n- supply and use tables; \n- data based on the classification of functions of government (COFOG); \n- structural business statistics; \n- business register and other sources.","The aim of the EPE module being to have a minimum set of EPE data collected by all countries, Eurostat developed the EPE module questionnaire in order to make possible to countries to transmit also some extra elements that would only be completed on a voluntary basis. "]
[null,null,"2. DEFINITIONS AND PRINCIPLES","2. METHODOLOGICAL REMARKS"]
[null,null,"2.1 Definition of environmental protection (EP)","2.1 Definition of environmental protection (EP)"]
[null,null,"EP includes all activities and actions which have as their main purpose the prevention, reduction and elimination of pollution as well as any other degradation of the environment.","Environmental protection includes all purposeful activities directly aimed at the prevention, reduction and elimination of pollution or any other degradation of the environment resulting from the production or consumption process."]
[null,null,"The scope of EP is defined according to the Classification of Environmental Protection Ativities (CEPA), which distinguishes nine environmental domains.  "]
[null,null,"Activities such as energy and material saving are only included to the extent that they mainly aim at environmental protection. An important example is recycling which is included only to the extent that it constitutes a substitute for waste management. ","Activities such as energy and material saving are only included to the extent that they mainly aim at environmental protection. An important example is recycling which is included only to the extent that it constitutes a substitute for waste management. "]
[null,null,"Activities related to natural resources management fall beyond the scope of environmental protection (see SEEA 2012 Annex I). "]
[null,null,"Excluded are:","Excluded are:"]
[null,null,"– activities that, while beneficial to the environment, primarily satisfy technical needs or health and safety requirements.","- activities that, while beneficial to the environment, primarily satisfy technical needs or health and safety requirements."]
[null,null,"– expenditure linked to mobilisation of natural resources (e.g., water supply).","- expenditure linked to mobilisation of natural resources (e.g., water supply)."]
[null,null,"– payments of interest, fines and penalties for non-compliance with environmental regulations or compensations to third parties, as they are not directly linked with an environmental protection activities.","- payments of interest, fines and penalties for non-compliance with environmental regulations or compensations to third parties etc., as they are not directly linked with an environmental protection activity."]
[null,null,"Please consider the following explanatory notes for a description of environmental protection and resource management domains:"]
[null,null,"Classification of Environmental Protection Activities and Expenditure (CEPA) and Classification of Resource Management Activities (CReMA) - Explanatory notes"]
[null,null,"2.2 Variables (called \"characteristics\" in the Regulation (EU) No 691/2011)","2.2 Framework and general principles"]
[null,null,"Environmental protection expenditure accounts present data, in a way that is compatible with the data reported under ESA, on the expenditure for environmental protection, i.e. the economic resources devoted by resident units to environmental protection. In a national accounts perspective, environmental protection expenditure is defined in the Regulation (EU) No 691/2011 EPEA module as:","Environmental protection expenditure accounts present data, in a way that is compatible with the data reported under ESA, on the expenditure for environmental protection, i.e. the economic resources devoted by resident units to environmental protection. In a national accounts perspective, environmental protection expenditure for the Regulation 691/2011 module includes:"]
[null,null,"- the sum of uses of EP services by resident units. uses are either final uses (final consumption or capital formation) or intermediate consumption. EP expenditure also includes in-house expenditures relating to environmental protection ancillary activities."]
[null,null,"- plus the gross fixed capital formation (GFCF) for environmental protection activities, "]
[null,null,"- plus the transfers for environmental protection which are not a counterpart of previous items,"]
[null,null,"- less financing by the rest of the world"]
[null,null,"For the purpose of the calculation of environmental protection expenditure, the questionnaire collects two types of data: data mandatory under Regulation and data provided on a voluntary basis."]
[]
[null,null,"Mandatory variables (Commission delegated regulation 2022/125):"]
[null,null,"– Output of EP services (P1): Output may be market output (P11), non-market output (P13) or ancillary output (P1_ANC). Ancillary output is output produced in-house for internal use by enterprises. In the questionnaire output for own final use is to be reported jointly with market output.","- Domestic gross capital formation for EP activities (investments for EP)."]
[null,null,"– Intermediate consumption of EP services (for the production of EP services)  (P2_EPS). It corresponds to the value of EP services consumed as inputs for production of EP services."]
[null,null,"– Intermediate consumption of environmental protection services (P2_EPS_EXT). It corresponds to the value of EP services consumed as inputs for production of EP services and for other production."]
[null,null,"– Imports and exports of EP services (P6 and P7)"]
[null,null,"– Value added tax (VAT) and other taxes less subsidies on EP services (D21-D31)"]
[null,null,"– Gross fixed capital formation and acquisitions less disposals of non-financial non-produced assets for the production of EP services (P51G_NP)","- Domestic gross capital formation for EP activities (investments for EP)."]
[null,null,"– Final consumption of EP services by general government and households (P3_EPS)"]
[null,null,"– Transfers payable and receivable for environmental protection (D3_D7_D92_D99)","- Those transfers for EP that are not already reflected in the expenditure recorded under the two previous categories. These are in particular subsidies, which lower the prices paid by the users of EP characteristic products. Ignoring subsidies would result in an underestimation of total expenditure. "]
[null,null,"Variables reported on a voluntary basis:"]
[null,null,"(P2) Total intermediate consumption (for production of EP services). It corresponds to the value of the products consumed as inputs by a process of production of EP services. The products consumed can be EP services and other products than EP services, hence P2 is the sum of P2_EPS (see above) and P2_NEPS (see below)."]
[null,null,"(P2_NEPS) Intermediate consumption (for production of EP services, excluding EP services). It corresponds to the value of products other than EP services consumed as inputs by a process of production of EP services. Together with P2_EPS this category adds to P2."]
[null,null,"(D1) Compensation of employees. It corresponds to the total remuneration, in cash or in kind, payable to employees engaged in the production of EP services; it includes wages and salaries and employers’ social contributions."]
[null,null,"(ICE) Internal current expenditure. It is reported as the sum of compensation of employees and intermediate consumption excluding EP services. This variable is included in EPEA tables 1 and 2 of the questionnaire to ensure a link with data previously collected in the JQ EPER questionnaire."]
[null,null,"(P51C) Consumption of fixed capital. It corresponds to the decline in value of the fixed assets engaged in the production of EP services, as a result of normal wear and tear and obsolescence. "]
[null,null,"(RNO) Related non-EP output. Environmental protection activities can produce by-products which are not EP output and have an economic value. These could either be sold and generate revenues, or be used internally and lead to reductions in costs. Examples include energy generated or material recovered as a result of waste treatment. In some cases, the borderline with secondary non-environmental output of specialist producers may not be clear; the key distinguishing criterion to consider by the data compiler is that the production of the by-product results from the production of the EP service. RNO is the sum of the sales value and the value of the cost-saving (if used internally) related to these by-products. Energy or material savings due to more efficient processes and other productivity gains resulting from environmental protection activities are not to be included as related non-EP output."]
[null,null,"(B2N) Net operating surplus. It is calculated as the sum of output of EPS and related non-EP output, less intermediate consumption, compensation of employees, net taxes on production and consumption of fixed capital."]
[null,null,"(EMP) Employment (in full time equivalents). It corresponds to the full-time equivalent employment engaged in the production of EP  services. The employment is measured as the number of full-time equivalent jobs, defined as total hours worked divided by average annual hours worked in full-time jobs."]
[null,null,"(INV_EOP) GFCF on specific EP fixed assets (formerly called end-of-pipe investments). It includes the investment expenditure to collect and remove pollutants (e.g. air emissions, effluents or solid waste) after their creation, prevent the spread of and measure the level of the pollution, and treat and dispose of pollutants generated by the operating activity of the company."]
[null,null,"(INV_IT) GFCF on cleaner EP fixed assets (formerly called investments in integrated technologies). It include the investment expenditure which leads to a modified or adapted production process. These investments serve to prevent or reduce the amount of pollution generated. When a new production process is introduced, the EP expenditure consists of the outlays over and above what would have been paid for a cheaper, viable, but less environmentally friendly equipment. Where an existing plant is modified, the environmental investment is equal to the total outlays for the environmental adaptation."]
[null,null,"(TAX_EM_PAY) Ear-marked environmental taxes (e.g. pollution taxes). They correspond to the payment of taxes where the revenues are ear-marked for financing environmental protection measures. Payments of general environmental or green taxes (such as energy taxes) where the revenues are not ear-marked for financing environmental protection measures are excluded."]
[null,null,"(P11_MA) Market output of EP services (from the main activity). It corresponds to the value of EP services output produced by specialist producers of the corporations sector, i.e. those units that produce EP services as their principal activity;"]
[null,null,"(P11_SA) Market output of EP services (from secondary activities). It corresponds to the value of EP services output produced as secondary output by non-specialist producers of the corporations sector, i.e. those producers whose principal activity is not the production of EP services."]
[null,null,"2.2 Breakdown by institutional sectors, industries and environmental domains","2.2 Framework and general principles"]
[null,null,"Data should be reported by institutional sector: general government, corporations, households and the rest of the world. NPISH (non-profit institutions serving households) are not separately identified and are included under general government. The corporations sector is divided between: \"corporations as specialist and secondary producers of market EP services\" and \"corporations other, including corporations as producers of ancillary EP output\"; productive activities of households are included under corporations as market producers. "]
[null,null,"Data for \"corporations: other\" must be reported by NACE"]
[null,null,"Data should be reported for the different domains of environmental protection according to the classification of environmental protection activities (CEPA); however the mandatory part of the questionnaire restricts data collection to only some environmental domains (depending on the sector/variables)."]
[null,null,"3. TABLES","3. TABLES"]
[null,null,"The questionnaire consists of the following tables: (1) General government and NPISH, (2) Corporations as secondary and specialist producers of market EP services, (3) Corporations: other (also covering the production of ancillary EP services), (4) Total supply of environmental protection services, (5) Households, (6) Environmental protection transfers, (7) National expenditure on environmental protection, (8.1), (8.2), (8.3) [focused on] Gross Fixed Capital Formation (GFCF) by institutional sector","The questionnaire consists of seven tables: (1) general government, (2) ancillary activities of corporations, (3) specialist producers, (4) total supply of environmental protection services, (5) households, (6) environmental protection transfers and (7) total economy. "]
[null,null,"Double-reporting is to be avoided, in particular between tables 1, 2 and 3a-3e; data corresponding to a transaction reported in one table should not be reported in another table."]
[null,null,"Tables 1 to 6 include mandatory variables as well as voluntary variables by CEPA categories. ","Each table includes two separate areas. The first one is for reporting the mandatory variables and the second one includes a more detailed voluntary table ."]
[null,null,"Tables for general government and corporations sectors also distinguish the transactions as producers of EP services and the transactions as users of EP services."]
[null,null,"Table 1: General government and NPISH","Table 1: General government"]
[null,null,"Mandatory reporting"]
[null,null,"The mandatory variables of Table 1 include:\n- output of EP services, \n- gross fixed capital formation and acquisition less disposals of non-financial, non-produced assets (such as land) for the production of EP services, \n- intermediate consumption of EP services (for production of EP services), \n- intermediate consumption of EP services (for production of EP services and other production)  and \n- final consumption of EP services \nby the units of the general government and NPISH institutional sectors (i.e. the units classified to the government (S.13) and NPISH (S.15) sectors in the national accounts).","Table 1 allows for reporting data on the production of EP services, gross capital formation and acquisition less disposals of non-financial, non-produced assets (such as land) for the production of EP services and final consumption of EP services by the general government. "]
[null,null,"The intermediate consumption of EP services (for production of EP services) (P2_EPS.1) allows reporting intermediate consumption of the EP services by units of the general government engaged in environmental protection activities. As suggested in the EPEA Handbook, 'this characteristic mainly concerns CEPA 2 and 3; as for other CEPAs, the intermediate consumption of EP services for the production of EP services may be assumed to be zero or insignificant. Data can be estimated either on the basis of surveys, whenever they exist, or using ratios from corporations, under the assumption that the general government units engaged in environmental protection activities have the same costs structure as corporations units engaged in environmental protection activities in the same CEPA classes (see EPEA Handbook, 2017 ed.,page 107)"]
[null,null,"The intermediate consumption of EP services (for production of EP services and for other production) (P2_EPS_EXT.1) allows reporting the intermediate consumption of EP services by all general government units either engaged in the EP activities or not. As suggested in the EPEA Handbook 'this characteristic will generally be limited to EP  services in CEPA 2 and 3.  As regards the EP services of other CEPA classes, a credible assumption is that the intermediate  consumption of EP services by general government units would be negligible: either these EP services are mainly ancillary (CEPA 1) or non-market (CEPA 6, 9) and would not be used as \nintermediate consumption of general government units or they are market (CEPA 5, 8) but would \nmost probably be used as GFCF' (see EPEA Handbook, 2017 ed., page 110)"]
[null,null,"The institutional units classified in S.13 are non-market producers. However, they may have some secondary market output of EP services which is also to be reported in table 1. "]
[null,null,"A general government unit may recover part of its cost of production for output provided to other units through fees and charges. If the recovered part is less than 50% of the cost of production, the unit will be classified as a non-market producer. (Non-market production is the production of EP services intended for individual or collective consumption, mainly financed by general taxes which are not linked to the use of the service.) The ESA 2010 transaction ‘Payments for non-market output’ (P.131) consists of those fees and charges that partly recover the production costs for non-market output. In line with ESA 2010 the EPEA Table 1 includes P.131 under the heading “non-market output”. However, P.131 is not part of the final consumption of EP services by the general government."]
[null,null,"All the mandatory variables should be filled in for CEPA 1, 2, 3, 4, 5, 6, and sum of CEPA 7, 8, 9."]
[null,null,"Voluntary reporting"]
[null,null,"Table 1 requests the voluntary reporting of more detailed data for general government units' environmental protection transactions. Data can be reported for the full CEPA classes’ breakdown (including a sub position for climate change under CEPA 1) for variables already reported as mandatory items and supplementary variables. Costs of production (total intermediate consumption, compensation of employees, consumption of fixed capital, other taxes less subsidies on production) can be reported in detail. A specific variable “Internal current expenditure” is defined as the sum of compensation of employees and intermediate consumption excluding EP services. ","Table 1 allows also for the voluntary reporting of more detailed data for general government expenditure. Data can be reported for the full CEPA classes breakdown. Output can be broken down by total costs of production (intermediate consumption, intermediate consumption of EP services, compensation of employees, consumption of fixed capital, other taxes less subsidies on production, net operating surplus). "]
[null,null,"The  \"Net operating surplus\" is a balancing item. It is zero for institutional units that are non-market producers (general government and NPISH, whose output is valued by the sum of production costs). Some establishments (local KAUs) of institutional units classified within the general government or NPISH sector may, however, be market producers, for which positive or negative net operating surplus is possible. For such a local KAU a negative net operating surplus would indicate that the production costs are not covered by sales. The institutional unit being a non-market producer then needs to cover the loss incurred by its market producer establishment, which may be regarded an implicit subsidy from the institutional unit to its market producer establishment. Such implicit subsidies should be accounted for in the Table 6 Transfers under heading NEGB2N_GG \"Negative net operating surplus of market producers in general government sector (non-consolidated)\".","Net operating surplus of market producers belonging to the general government sector could be negative. This indicates that part of the production costs are not covered by sales. One reason for such a result may be that government units, when calculating the prices of EP characteristic products (e.g., the level of fees to be paid for EP services) are legally required to avoid a net profit and to base the depreciation allowances on historic costs. This issue has been submitted to a National Accounts Working Party which recommended to compensate such negative net operating surplus by other subsidies on products in the accounts (i.e. an implicit subsidy by the government).Implicit subsidies when a negative value of net operating surplus is found should be accounted for in the table 6 “Transfers”. "]
[null,null,"The variables \"Related non-EP output\" and \"Employment (expressed in full time equivalents) used in production of EP services\" can be also reported on a voluntary basis.","Labour input used in production of EP services can be also recorded in the voluntary part of the table, expressed in full time equivalents."]
[null,null,"Main data sources "]
[null,null,"The main source of data for Table 1 is national accounts statistics – general government expenditure by function (COFOG) (Table 11 of the ESA transmission program) and in particular items classified in COFOG 5. Analysis of financial budgets and accounts analysis is useful for breaking down EP expenditure activities already recorded in a more aggregated way under COFOG statistics (e.g. to split up COFOG 5.3). The calculation of more detailed data for the voluntary part may require appropriate estimation techniques, for example in the case of consumption of fixed capital which could be estimated from data on investments or from available national accounts data (using appropriate ratios). ","Main source of data for table 1 is national accounts – general government expenditure by function (COFOG) (Table 11 of ESA transmission programme) and in particular items classified in COFOG 5. Analysis of financial budgets and accounts analysis is useful for detailing EP expenditure activities already recorded in a more aggregated way under COFOG statistics (as it is the case of COFOG 05.3)."]
[null,null,"Table 2. Corporations as specialist and secondary producers of market EP services","Table 3. Specialist producers of market EP services"]
[null,null,"Mandatory reporting"]
[null,null,"The mandatory part of Table 2 allows for data reporting on:\n-  EP market output of specialist producers and secondary producers of the corporation sector, \n- gross fixed capital formation and acquisitions less disposals of non-financial, non-produced assets (such as land)\n- intermediate consumption of EP services by corporations as specialist and secondary (if any) producers of EP services for production of EP services\n-  intermediate consumption of EP services by corporations as specialist and secondary (if any) producers of EP services for production of EP services and for other production."]
[null,null,"The intermediate consumption of EP services (for production of EP services) (P2_EPS.2) allows reporting intermediate consumption of the EP services by units of the corporation sector engaged in environmental protection activities as specialist or secondary producers. P2_EPS.2 would be identical to the variable P2_EPS_SP.2 if there were no secondary EP producers in Table 2. In such a case, the values reported for P2_EPS_SP.2 can be identically reported for P2_EPS.2. If there are secondary producers, P2_EPS.2 will be higher than P2_EPS_SP.2 (see EPEA Handbook, 2017 ed.,page 113)."]
[null,null,"The intermediate consumption of EP services (for production of EP services and for other production) (P2_EPS_EXT.2) allows reporting the intermediate consumption of EP services by units of the corporation sector engaged in environmental protection activities as specialist or secondary producers. \nGiven that the variable include the intermediate consumption for production of both EP services and other production, for secondary producers of EP services (if any) it must include also the intermediate consumption of EP services corresponding to their principal non-EP services production (see EPEA Handbook, 2017 ed., page 115)."]
[null,null,"Specialist producers of the corporation sector produce environmental protection services as their main activity. Specialist producers can be found in particular in NACE Rev. 2 divisions 37, 38.1, 38.2 and 39. Specialist producers of the corporation sector include privately and publicly owned corporations and quasi-corporations. Quasi-corporations could for example be waste departments of large municipalities which charge economically significant prices and are considered to have autonomy of decision and where the municipalities' book-keeping systems allow having a full set of accounts for these units.","Most specialist producers including the publicly owned enterprises are in the corporations sector (non-financial corporations - S11 sector). In principle, also some units of the general government (S13) could produce market output. Following the ESA95 (§ 2.97) a unit of the general government producing market output (where it is not a quasi corporation) is to be classified under S13 if it has no autonomy of decision, as it remains an integral part of the units which control them."]
[null,null,"Some care is needed when completing the tables 1 (General government) and 2 (Corporations as secondary and specialist producers) to make sure that the data for all units belonging to the institutional sector general government are recorded in table 1 and the data recorded in table 2 (corporations) are only those for units that belong to the corporations institutional sector. In countries where the national accounts data by industries and the supply and use tables are not based on institutional units but on the more detailed local kind-of-activity units (KAUs), it is possible that some units (local KAUs) belonging to the general government institutional sector engaged in environmental protection activities are classified in NACE Rev. 2 divisions 37, 38.1, 38.2 or 39."]
[null,null,"The secondary output of EP services by corporations is included in Table 2. For example, in some countries an significant part of market wastewater management services are produced as secondary output by units in the NACE Rev. 2 division 36 (water supply companies which e.g. also collect and treat wastewater) or division 35 (electricity, gas and steam supply companies which e.g. also treat waste). ","Specialist producers are producers of environmental protection services sold on the market for the use of other units, mainly financed by the users of these services. According to ESA principles, the output is considered as “market” because it is sold at prices that cover more than 50% of the cost of production."]
[null,null,"All the mandatory variables should be filled in for CEPA 1, 2, 3, 4, 5, 6, and sum of CEPA 7, 8, 9."]
[null,null,"Voluntary reporting"]
[null,null,"Table 2 also allows for the voluntary reporting of more detailed data for market producers of EP services in the corporation sector. Data can be reported for the full CEPA classes’ breakdown (including a sub position for climate change under CEPA 1). As in Table 1, costs of production (total intermediate consumption, compensation of employees, consumption of fixed capital, other taxes less subsidies on production) can be reported in detail. A specific variable “Internal current expenditure” is calculated as the sum of compensation of employees and intermediate consumption excluding EP services. ","Table 1 allows also for the voluntary reporting of more detailed data for general government expenditure. Data can be reported for the full CEPA classes breakdown. Output can be broken down by total costs of production (intermediate consumption, intermediate consumption of EP services, compensation of employees, consumption of fixed capital, other taxes less subsidies on production, net operating surplus). "]
[null,null,"The variables \"Related non-EP output\" and \"Employment (expressed in full time equivalents) used in production of EP services\" can be also recorded under voluntary variables in Table 2.","Labour input used in production of EP services can be also recorded in the voluntary part of the table, expressed in full time equivalents."]
[null,null,"Main data sources "]
[null,null,"Main data sources for Table 2 are national accounts - production and generation of income accounts (Table 3 of the ESA transmission programme) and supply and use tables (Tables 15 and 16 of the ESA transmission programme). When information from supply and use tables is used, care is needed to establish which statistical units are the basis for compiling figures in Table 2. When information on institutional units is available, all the government units should be non-market producers. \nThe calculation of more detailed data for the voluntary part may require appropriate estimation techniques, for example in the case of consumption of fixed capital which could be estimated from data on investments or from available data national accounts using appropriate ratios.  "]
[null,null,"Table 3. Corporations: other (also covering the producers of ancillary EP services)"," Tables 2. Ancillary production of EP services "]
[null,null,"Mandatory reporting"]
[null,null,"The mandatory part of Table 3 allows data reporting on:\n- ancillary output of corporations other than specialist and secondary producers of EP services,\n- gross fixed capital formation and acquisition less disposals of non-financial, non-produced assets for production of ancillary EP services,\n- intermediate consumption of EP services for production of ancillary EP services,\n- intermediate consumption of EP services by corporations other than specialist and secondary producers of EP services for production of EP services and other production"]
[null,null,"The intermediate consumption of EP services (for production of EP services) (P2_EPS.3) allows reporting intermediate consumption of EP services by ancillary producers. \nAs specified in the EPEA Handbook, in many cases surveys cannot distinguish this intermediate consumption from the intermediate consumption of the unit for its principal or secondary activity. Although this characteristic is not always nil (e.g. a waste water ancillary treatment that produce sludge to be eliminated externally), it should be put to zero if this intermediate consumption is accounted for in the intermediate consumption corresponding to the principal or secondary activity, which is generally the case in surveys”"]
[null,null,"The intermediate consumption of EP services (for production of EP services and for other production) (P2_EPS_EXT.3) allows reporting the intermediate comsumption of all EP service  by corporations which are not market producers of EP services (accounted for in Table 2)."]
[null,null,"An ancillary activity is a supporting activity undertaken within an enterprise in order to create the conditions within which the principal or secondary activities can be carried out. The output of an ancillary activity is not intended for use outside the enterprise. Any output produced for environmental protection purposes and internal use (an ancillary environmental protection activity) should be recorded under the industry (NACE) where the unit undertaking the EP ancillary activity is classified.","Any production of environmental protection services for own use (an ancillary environmental protection activity) should be recorded under the industry (NACE) where the unit undertaking the EP ancillary activity is classified."]
[null,null,"The NACE sections to be covered for mandatory data reporting are NACE Rev. 2 B, C, D, and Division 36.\nData for section C shall be presented according to the breakdown as in the Commission delegated regulation 2022/125 ((3), section 5).\nMember States where the total amount of the turnover or the number of persons employed in one or more of the NACE breakdowns represents less than 1 % of the Union total do not need to provide data for those NACE breakdowns."]
[null,null,"Note that output and expenditure relating to secondary environmental protection activities should be reported in Table 2 \"Corporations as secondary and specialist producers of market EP services\". ","Please note that expenditure for secondary environmental protection activities  (only output) should be reported in Table 4, total supply of EP services. "]
[null,null,"Additional sub-tables for ancillary production of EP services (Tables 3a to 3e) allow for detailing the ancillary production of EP services by NACE section and division according to the main activity of the unit. Mandatory sections and divisions are mining and quarrying (3a), total manufacturing (3b), detailed manufacturing industries (3b_Add), electricity, gas and steam supply (3c) and water supply (3d). The rest of NACE divisions are grouped under table 3e “Other NACE divisions”, which is to be filled in only voluntarily. ","Ancillary production of EP services (Tables 2) is to be filled in mandatory for the units of the following sectors: mining and quarrying, manufacturing (total and detailed), electricity, gas and steam supply and water supply. For this reason ancillary production of EP services is divided into five sub-categories (Tables 2a-e). There is an additional table with a more detailed industry breakdown of the manufacturing industry (Table 2C Add). Table 2e is for reporting the ancillary EP activities of the units not classified under the sectors mentioned above . Reporting of table 2e is voluntary."]
[null,null,"Ancillary output is generally calculated summing up the costs of production. In order to reduce the response burden, for the calculation of ancillary output the inclusion of consumption of fixed capital and of taxes less subsidies on production is not mandatory. "]
[null,null,"The value of the output of ancillary activities (variable P1_ANC.3) is approximated by the amount of in-house current expenditure, i.e. compensation of employees plus intermediate consumption for environmental protection but excluding intermediate consumption of EP services.","It is accepted that the output of ancillary activities is approximated by the amount of in-house current expenditure, i.e. compensation of employees plus intermediate consumption for environmental protection other than intermediate consumption of EP services."]
[null,null,"All the mandatory variables should be filled in for CEPA 1, 2, 3, 4, 5, 6, sum of CEPA 7, 8, 9."]
[null,null,"Voluntary reporting"]
[null,null,"Tables 3-3e also allow for the voluntary reporting of more detailed data for ancillary EP expenditure.  A more comprehensive measure of output (denominated “ESA compatible valuation”) can be compiled starting from the detailed costs of production (intermediate consumption, compensation of employees, consumption of fixed capital and other taxes less subsidies on production). ","Table 2 allows also for the voluntary reporting of more detailed data for ancillary EP expenditure. Data are allowed to be reported for the full CEPA classes breakdown. A more comprehensive measure of output can be compiled with in particular includes the consumption of fixed capital. This output can be broken down by total costs of production (intermediate consumption, compensation of employees, consumption of fixed capital, other taxes less subsidies on production). "]
[null,null,"The variables \"Related non-EP output\" and \"Employment (expressed in full time equivalents) used in production of EP services\" can also be reported in the voluntary part of the table.","Labour input used in production of EP services can be also recorded in the voluntary part of the table, expressed in full time equivalents."]
[null,null,"In Table 3 all figures are automatically calculated based on the sum of data reported in Tables 3a-3e. However these calculated totals can be overwritten in case of better estimates available than the sum of reported components in Tables 3a-3e. "]
[null,null,"Main data sources "]
[null,null,"Main data source for Tables 3 are the Structural Business Statistics (SBS) and EP expenditure surveys that several countries have put in place. The mining & quarrying, manufacturing, electricity, gas & water supply industries in their role as ancillary producers were covered under the SBS legal framework. With the adoption and entry into force of the new Framework Regulation for integrating business Statistics (FRIBS), environmental protection expenditures will not be directly covered  anymore by business statistics. \nThe calculation of more detailed data for the voluntary part will require  appropriate estimation techniques, for example in the case of consumption of fixed capital which could be estimated based on data on investments or from national accounts data using appropriate ratios. ","Main data source for tables 2 are the SBS Statistics. The mining & quarrying, manufacturing, electricity, gas & water supply industries are covered by this legal framework in their role as ancillary producers. As the frequency of the reporting depends on the variable, some estimation could be necessary in the intervening years."]
[null,null,"Table 4. Total supply of EP services ","Table 4. Total supply of EP services "]
[null,null,"Table 4 summarises the output of EP services, intermediate consumption of EP services by specialist producers, imports and exports of EP services, VAT and other taxes less subsidies on EP services."]
[null,null,"EP output is calculated automatically for the total and for the different categories of output. "]
[null,null,"The variable P2_EPS.4 \"Intermediate consumption of EP services by producers of EP services\" corresponds to the sum of intermediate consumption of EP services by corporations  and  general government sector as producers of EP services"]
[null,null,"Import, exports and VAT and other taxes less subsidies on EP services should be filled in for CEPA 2, CEPA 3 and CEPA 4. "]
[null,null,"In addition, the variable (SUP_NU.4) in Table 4 is automatically calculated for total CEPA as the algebraic sum of \"output of EPS\" plus\" imports of EPS\" plus \"VAT and other taxes less subsidies on EPS\" less\" exports of EPS\" less \"intermediate consumption of EPS for the production of EP services\". This variable corresponds to the total  supply of EPS available for domestic uses other than intermediate consumption by  producers of EP services"]
[null,null,"Main data sources "]
[null,null,"The main data sources for Table 4 are the national accounts: production and generation of income accounts (Table 3 of ESA transmission programme) and supply and use tables (Tables 15 and 16 of ESA transmission programme). Where no direct data on imports and exports are available from these sources, physical data could be used (e.g. the imports and exports of waste are recorded).","Main data sources for table 3 are national accounts - production and generation of income accounts (Table 3 of ESA transmission programme) and  national accounts - supply and use tables (Tables 15 and 16 of ESA transmission programme)."]
[null,null,"In general, imports and exports of EP services cannot be identified from available data. However, most EP services are not traded internationally and, in such a case, imports and exports can be assumed to be zero. The main EP service traded is waste management (e.g. payments for waste treated in other countries). There are physical data  on dangerous waste available under the Basel convention for all countries. Some countries also have data on cross-border flows of mixed household waste. There are no data for inert wastes but it can be assumed that the monetary values involved are very small given the low prices for the treatment of such waste and the high transport costs."]
[null,null,"Table 5. Households","Table 5. Households"]
[null,null,"Mandatory reporting"]
[null,null,"Table 5 allows for the reporting of the final consumption of EP services by households."]
[null,null,"The household sector consists of the institutional sector of households in the national accounts, but in this data collection households are considered in their capacity as final consumers. Households in their capacity of producers (i.e. their output for own final use) are covered in Table 2 (together with the market producers of EP services).","In principle, the households sector groups together those units that belong to the institutional sector of households in the national accounts, considered in their capacity as final consumers."]
[null,null,"Final consumption of EP services by households is households’ expenditure on EP services that are used for the direct satisfaction of individual needs (individual consumption).","Final consumption of EP services by households is household expenditure on EP services that are used for the direct satisfaction of individual needs (individual consumption)."]
[null,null,"Household expenditure includes all payments and fees for EP services purchased from the general government sector (e.g. municipalities) or corporations as specialist or secondary producers of EP services. These include mainly payments for the collection and treatment of waste and payments for the collection and treatment of wastewater. Payments for non-market output (P.131) are part of household final consumption expenditure for that part paid by households.","Household expenditure include all payments and fees for EP services purchased from the public sector (e.g. municipalities) or public and private specialist producers of EP services. These include mainly: payments for the collection and treatment of waste and payments for the collection and treatment of wastewater."]
[null,null,"The only mandatory variable in Table 5 is households final consumption of EP services and it should be filled in for CEPA 1, 2, 3, 4, 5, 6 and the sum of CEPA 7, 8, 9.","In the mandatory part of table 5 household final consumption of EP services should be filled in for CEPA 2 and 3."]
[null,null,"Voluntary reporting"]
[null,null,"Table 5 also allows for the voluntary reporting of households’ EP expenditure for the full CEPA classes breakdown and of households’ expenditure for environmental protection products other than environmental protection services.","Table 5 allows also for the voluntary reporting of household EP expenditure for the full CEPA classes breakdown."]
[null,null,"CEPA totals are automatically calculated based on figures reported for mandatory and voluntary CEPA classes. However these calculated totals can be overwritten in the case of information available at the level of totals and some of its components but not all of them. "]
[null,null,"Main data sources "]
[null,null,"Main data sources for Table 5 are supply and use tables which may provide final consumption expenditure of households for the most important EP services identified through CPA codes and household expenditure surveys. Depending on the country, items relating to the use of EP services may be separately presented in the source data or may be included in wider expenditure categories. For example, wastewater removal may be included in the water bills. In such a case, to ensure good quality of EPEA data, amounts related to water consumption should be separated from the cost of wastewater treatment services.","Main data sources for table 5 are supply and use tables which may provide final consumption expenditure of households for the most important EP services identified through CPA codes and household expenditure surveys. Depending on the country, items relating to the use of EP services may be separately provided by the source data or may be included in wider expenditure categories. For example, wastewater removal may be included in the water bill."]
[null,null,"Table 6: EP transfers ","Table 6: EP transfers "]
[null,null,"Mandatory reporting"]
[null,null,"Table 6 allows for reporting of transfers by institutional sector. A transfer is a transaction in which one institutional unit provides a good, service or asset to another unit without receiving from the latter any good, service or asset in return as a direct counterpart. Typically the government provides transfers to (or receives transfers from) units in the other sectors."]
[null,null,"Environmental protection transfers are all current or capital transfers that are intended to support activities which protect the environment. They cover transfers in favour of the production and use of environmental protection products (whether EP services or not). Transactions classified as Subsidies (D.3) and Other current transfers (D.7) or capital transfers (D.92 Investment grants and D.99 Other capital transfers) according to the ESA 2010 are included in this table as well as earmarked taxes. Tax abatements, interest reliefs, guarantees are excluded."]
[null,null,"Environmental protection transfers data are important for calculating the national EP expenditure and determining their financing."]
[null,null,"Table 6 asks as mandatory variables transfers paid and received by the general government and the rest of the world sectors. For households and corporations only transfers received are asked for. Transfers should be filled in for  CEPA 1,2, 3, 4, 5, 6 and the sum of CEPA 7, 8, 9."]
[null,null,"The general government transfers are to be reported “consolidated”. This means that EP transfers between general government units, and in particular between units in different levels of the government sector (central, state and local), or between general government and NPISH, are not recorded in EPEA."]
[null,null,"Voluntary reporting"]
[null,null,"Voluntary variables in Table 6 allow for the reporting of data for the transfers paid/received by the different institutional sectors for the full CEPA classes’ breakdown and separately for current and capital transfers received for general government, corporations and rest of the world."]
[null,null,"In order to better understand the financing of environmental expenditure, Table 6 also allows for the voluntary reporting of data on earmarked taxes paid by households and corporations."]
[null,null,"Main data sources "]
[null,null,"Main source of data for transfers are COFOG 05 figures included under national accounts – general government expenditure by function (COFOG) (Table 11 of ESA transmission programme). More detailed data can be used from government budget documents. However, consistency (at a more aggregated level) must be ensured with national accounts data. ","Main source of data for transfers are COFOG 05 figures included under national accounts – general government expenditure by function (COFOG) (Table 11 of ESA transmission programme)."]
[null,null,"Table 7. and 7_Add_XX. NEEP","Table 7. Total economy"]
[null,null,"Tables 7 and 7_Add_xx calculate the national expenditure for environmental protection (NEEP) by CEPA domain on the basis of mandatory data provided in the questionnaire. In particular, Table 7 calculates NEEP for total economy, Tables 7_Add_GG, 7_Add_Corp and 7_Add_HH calculate NEEP by institutional sector, i.e. General Government, Corporation and Household respectively.  \nPlease find below the aggregates included in the automatic calculation of national expenditure by institutional sector (see also EPEA Handobook, ed. 2017, pp 61-62)"]
[null,null,"Countries may confirm the results of the automatic calculation or may also report their own estimation of NEEP in the upper part of the table."]
[]
[]
[]
[]
[]
[]
[]
[]
[]
[]
[]
[]
[null,null,"Tables 8: GFCF"]
[null,null,"Voluntary reporting"]
[null,null,"Tables 8.1, 8.2, 8.3 are organized by institutional sector and type of EPEA producers (following to some extent the structure of the EPEA questionnaire and sequence of its first three tables): "]
[null,null,"- General government and NPSIH (Table 8.1), "]
[null,null,"- corporations as specialist and secondary producers (Table 8.2) and "]
[null,null,"- corporations as ancillary producers (Table 8.3). "]
[null,null,"Table 8.3_AddXX allow data reporting on GFCF of ancillary producers by NACE for a specific year (strongly encouraged: from 2014-onwards – if data are available)."]
[null,null,"In the new Tables 8.1, 8.2, 8.3 (and related subtables by NACE, i.e Tables 8.3_AddXX), data on investments already collected in Tables 1 and 2 and 3 are automatically reported."]
[null,null,"A part from GFCF ( P51G_NP.1 ) for the production of EP services and RM products (by characteristic producers) Tables 8.1, 8.2 and 8.3 allow for reporting the GFCF in cleaner and resource efficient products for non characteristic activities at extra cost and full cost. "]
[null,null,"An example of cleaner good that could be used as GFCF is any transport equipment specifically designed for reducing air (and noise) emissions (as electric and hybrid cars, buses and other cleaner vehicles). Also charging stations and other essential infrastructure for recharging electric road vehicles can be seen as cleaner goods that are used essentially as GFCF."]
[null,null,"4. ENVIRONMENTAL DOMAINS","4. ENVIRONMENTAL DOMAINS"]
[null,null,"In this questionnaire, the scope of environmental protection expenditure is defined according to the Classification of Environmental Protection Activities (CEPA 2000). This classification distinguishes nine environmental domains (classes); More details are available in the full CEPA including explanatory notes, which can be downloaded from Eurostat's repository of classifications (RAMON; see CEPA 2000).","In this questionnaire, the scope of environmental protection expenditure is defined according to the Classification of Environmental Protection Activities (CEPA 2000)."]
[null,null,"1. Protection of ambient air and climate","1. Protection of ambient air and climate"]
[null,null,"Prevention of pollution through in-process modifications for the protection of ambient air, and for the protection of climate and ozone layer.","Prevention of pollution through in-process modifications for the protection of ambient air, and for the protection of climate and ozone layer."]
[null,null,"Treatment of exhaust gases and ventilation air for the protection of ambient air, and for the protection of climate and ozone layer.","Treatment of exhaust gases and ventilation air for the protection of ambient air, and for the protection of climate and ozone layer."]
[null,null,"Measurement, control, laboratories and the like and other activities","Measurement, control, laboratories and the like and other activities"]
[null,null,"2. Wastewater management (includes prevention of emission to surface water)","2. Wastewater management (includes prevention of emission to surface water)"]
[null,null,"Prevention of pollution through in-process modifications","Prevention of pollution through in-process modifications"]
[null,null,"Sewerage networks","Sewerage networks"]
[null,null,"Waste water treatment","Waste water treatment"]
[null,null,"Treatment of cooling water","Treatment of cooling water"]
[null,null,"Measurement, control, laboratories and the like and other activities","Measurement, control, laboratories and the like and other activities"]
[null,null,"3. Waste management (includes treatment of low-level radioactive waste, composting, street cleaning and sweeping, recycling)","3. Waste management (includes treatment of low-level radioactive waste, composting, street cleaning and sweeping, recycling)"]
[null,null,"Prevention of pollution through in-process modifications","Prevention of pollution through in-process modifications"]
[null,null,"Collection and transport","Collection and transport"]
[null,null,"Treatment and disposal of hazardous waste: Thermal treatment, Landfill and Other treatment and disposal","Treatment and disposal of hazardous waste: Thermal treatment, Landfill and Other treatment and disposal"]
[null,null,"Treatment and disposal of non-hazardous waste: Incineration, Landfill and Other treatment and disposal","Treatment and disposal of non-hazardous waste: Incineration, Landfill and Other treatment and disposal"]
[null,null,"Measurement, control, laboratories and the like and other activities","Measurement, control, laboratories and the like and other activities"]
[null,null,"4. Protection and remediation of soil, groundwater and surface water (includes all cleaning-up activities)","4. Protection and remediation of soil, groundwater and surface water (includes all cleaning-up activities)"]
[null,null,"Prevention of pollutant infiltration","Prevention of pollutant infiltration"]
[null,null,"Cleaning up of soil and water bodies","Cleaning up of soil and water bodies"]
[null,null,"Protection of soil from erosion and other physical degradation","Protection of soil from erosion and other physical degradation"]
[null,null,"Prevention and remediation of soil salinity","Prevention and remediation of soil salinity"]
[null,null,"Measurement, control, laboratories and the like and other activities","Measurement, control, laboratories and the like and other activities"]
[null,null,"5. Noise and vibration abatement (excluding workplace protection)","5. Noise and vibration abatement (excluding workplace protection)"]
[null,null,"Preventive in-process modifications at the source from: Road and rail traffic, Air traffic and Industrial and other noise.","Preventive in-process modifications at the source from: Road and rail traffic, Air traffic and Industrial and other noise."]
[null,null,"Construction of anti-noise/vibration facilities for: Road and rail traffic, Air traffic and Industrial and other noise.","Construction of anti-noise/vibration facilities for: Road and rail traffic, Air traffic and Industrial and other noise."]
[null,null,"Measurement, control, laboratories and the like and other activities","Measurement, control, laboratories and the like and other activities"]
[null,null,"6. Protection of biodiversity and landscape","6. Protection of biodiversity and landscape"]
[null,null,"Protection and rehabilitation of species and habitats","Protection and rehabilitation of species and habitats"]
[null,null,"Protection of natural and semi-natural landscapes","Protection of natural and semi-natural landscapes"]
[null,null,"Measurement, control, laboratories and the like and other activities","Measurement, control, laboratories and the like and other activities"]
[null,null,"7. Protection against radiation (excluding external safety)","7. Protection against radiation (excluding external safety)"]
[null,null,"Protection of ambient media","Protection of ambient media"]
[null,null,"Transport and treatment of high level radioactive waste","Transport and treatment of high level radioactive waste"]
[null,null,"Measurement, control, laboratories and the like and other activities","Measurement, control, laboratories and the like and other activities"]
[null,null,"8. Research and Development","8. Research and Development"]
[null,null,"Includes all research and development with an Environmental Protection objective both in the public and business sector.","Includes all research and development with an Environmental Protection objective both in the public and business sector."]
[null,null,"9. Other environmental protection activities","9. Other environmental protection activities"]
[null,null,"General environmental administration and management including: General administration, regulation and the like, Environmental management","General environmental administration and management including: General administration, regulation and the like, Environmental management"]
[null,null,"Education, training and information","Education, training and information"]
[null,null,"Activities leading to indivisible expenditure and Activities not elsewhere classified","Activities leading to indivisible expenditure and Activities not elsewhere classified"]
[]
[null,null,"Remarks"]
[null,null,"CEPA 2000 specifies that expenditure for the prevention of emissions to water is included in the domain 'wastewater' and all expenditure for de-contamination and clean-up of soil, groundwater and surface water should be included in CEPA 4."]
[null,null,"CEPA 2000 specifies that non-divisible expenditure and expenditure that cannot be allocated is included in CEPA 9."]
[null,null,"Indivisible expenditure refers to activities and actions which have at the same time different purposes and which cannot be split or classified according to only one main purpose. "]
[null,null,"Activities not elsewhere classified (9.4. category) refers to activities which cannot be classified in any other position, i.e. activities which do not concern the environmental domains 1-8."]

{"sheet":"Explanatory notes RM","index":8,"n_rows":128,"n_cols":4,"rows_kept":128,"cut":false,"hidden":false,"merged":[[19,2,19,3],[21,2,21,3],[22,2,22,3],[47,2,47,3],[29,2,29,3],[31,2,31,3],[32,2,32,3],[23,2,23,3],[24,2,24,3],[25,2,25,3],[26,2,26,3],[28,2,28,3],[30,2,30,3],[39,2,39,3],[40,2,40,3],[33,2,33,3],[34,2,34,3],[35,2,35,3],[36,2,36,3],[37,2,37,3],[38,2,38,3],[42,2,42,3],[43,2,43,3],[44,2,44,3],[0,0,0,2],[1,2,1,3],[2,2,2,3],[4,2,4,3],[5,2,5,3],[6,2,6,3],[16,2,16,3],[17,2,17,3],[18,2,18,3],[12,2,12,3],[13,2,13,3],[14,2,14,3],[15,2,15,3],[7,2,7,3],[8,2,8,3],[9,2,9,3],[10,2,10,3],[11,2,11,3],[54,2,54,3],[51,2,51,3],[52,2,52,3],[53,2,53,3],[48,2,48,3],[49,2,49,3],[50,2,50,3],[41,2,41,3],[45,2,45,3],[46,2,46,3],[59,2,59,3],[60,2,60,3],[61,2,61,3],[62,2,62,3],[67,2,67,3],[63,2,63,3],[64,2,64,3],[65,2,65,3],[55,2,55,3],[56,2,56,3],[57,2,57,3],[58,2,58,3],[78,2,78,3],[79,2,79,3],[80,2,80,3],[81,2,81,3],[73,2,73,3],[68,2,68,3],[69,2,69,3],[70,2,70,3],[71,2,71,3],[72,2,72,3],[74,2,74,3],[75,2,75,3],[76,2,76,3],[77,2,77,3],[128,2,128,3],[3,2,3,3],[20,2,20,3],[27,2,27,3],[103,2,103,3],[104,2,104,3],[105,2,105,3],[106,2,106,3],[107,2,107,3],[127,2,127,3],[123,2,123,3],[124,2,124,3],[125,2,125,3],[126,2,126,3],[102,2,102,3],[108,2,108,3],[109,2,109,3],[110,2,110,3],[111,2,111,3],[112,2,112,3],[97,2,97,3],[99,2,99,3],[100,2,100,3],[122,2,122,3],[95,2,95,3],[98,2,98,3],[113,2,113,3],[114,2,114,3],[115,2,115,3],[116,2,116,3],[117,2,117,3],[121,2,121,3],[120,2,120,3],[119,2,119,3],[118,2,118,3],[101,2,101,3],[96,2,96,3],[82,2,82,3],[93,2,93,3],[94,2,94,3],[88,2,88,3],[89,2,89,3],[90,2,90,3],[91,2,91,3],[92,2,92,3],[83,2,83,3],[85,2,85,3],[86,2,86,3]]}
[{"$f":"Cover!B21","v":"QUESTIONNAIRE ON ENVIRONMENTAL PROTECTION EXPENDITURE ACCOUNTS"},null,null,"EXPLANATORY NOTES FOR THE RM PART"]
[null,null,"1. BACKGROUND","1. BACKGROUND"]
[null,null,"Further to the MESA working group consultation on extension of EPEA questionnaire to some specific resource management domains (RM), Eurostat updated the questionnaire for the launch of 2020 EPEA data collection.","Regulation 691/2011 on European environmental economic accounts was adopted on 6 July 2011. It establishes a common framework for the collection, compilation, transmission and evaluation of European environmental economic accounts to be set up as satellite accounts to ESA. "]
[null,null,"In particular, following the feedback of MESA WG and further internal discussions at Eurostat, the following CReMA classes have been included:\n- CReMA11B + CReMA13C + CReMA14: Materials recovery \n- CReMA13A: Production of energy from renewable sources\n- CReMA13B: Energy efficiency and saving"]
[null,null,"The RM part of the EPEAQ aims at addressing to the increasing policy demand for data on specific environmental topics related to energy efficiency, circular economy, climate change and renewable energy. ","Introducing an EPE module into Regulaiton 691/2011 on one side allows for information to be fully coherent with ESA and on the other side it gives more detailed information directly usable for statistics on the environmental goods and services sector (EGSS), which is foreseen as well as a module to be added to Regulation 691/2011."]
[null,null,"Data reporting for CReMA classes included in the questionnaire is voluntary. \nIt focuses on production (market, non-market and ancillary)  and uses of resource management products. \nConcepts and definitions of characteristics are coherent with the European System of Accounts (ESA 2010) which applies to national accounts and related satellite accounts. ","The focus of the module is on production and use. No breakdown of costs of production is required for calculating output. For ancillary activities major simplifications apply. The inclusion of consumption of fixed capital and of taxes less subsidies is not obligatory in order to further reduce the response burden . Furthermore for ancillary activity the coverage is reduced to only those NACE sections covered by the SBS Regulation. Compared to the EPEA and JQ-EPER, the proposed module focuses only on EP services. The use of connected and adapted products is left outside of the current proposal. Compared to EPEA the information asked for calculating financing is drastically reduced. Information on connected and adapted products as well as information on employment can be collected through the new module on the environmental goods and services sector (EGSS). Furthermore the module restricts data collection to only some environmental domains (depending on the sector/variables)."]
[null,null,"As far as possible countries should make use of already existing information from the national accounts: \n- supply and use tables (SUTs); \n- data based on the classification of functions of government (COFOG); \n- structural business statistics; \n- business register and other sources.","The aim of the EPE module being to have a minimum set of EPE data collected by all countries, Eurostat developed the EPE module questionnaire in order to make possible to countries to transmit also some extra elements that would only be completed on a voluntary basis. "]
[null,null,"The Environmental goods and services sector (EGSS) could also represent an important source of information."]
[null,null,"2. DEFINITIONS AND PRINCIPLES","2. METHODOLOGICAL REMARKS"]
[null,null,"2.1 Definition of resource management (RM)","2.1 Definition of environmental protection (EP)"]
[null,null,"Resource management activities aim at the preservation, maintenance and enhancement of the stock of natural resources and therefore the safeguarding of those resources against depletion.","Environmental protection includes all purposeful activities directly aimed at the prevention, reduction and elimination of pollution or any other degradation of the environment resulting from the production or consumption process."]
[null,null,"In this questionnaire, the scope of RM is defined according to the Classification of Resource Management Activities (CReMA). CEPA and CReMA are mutually exclusive. \nCEPA is the (European standard statistical) classification used to classify activities, products, expenditure and other transactions whose primary purpose is environmental protection. \nCReMA is as defined in Regulation (EU) No 691/2011 for the mandatory reporting of the EGSS data .","In this questionnaire, the scope of environmental protection is defined according to the Classification of Environmental Protection Activities (CEPA), which distinguishes nine different environmental domains. See section 5 for a more detailed description of each individual environmental domain."]
[null,null,"2.2 Variables (called \"characteristics\" in the Regulation (EU) No 691/2011)","2.2 Framework and general principles"]
[null,null,"The Resource management part of the EPEAQ aims at presenting data, in a way that is compatible with the data reported under ESA, on the expenditure for resource management, i.e. the economic resources devoted by resident units to resource management. In a national accounts perspective, resource management expenditure can be defined as:","Environmental protection expenditure accounts present data, in a way that is compatible with the data reported under ESA, on the expenditure for environmental protection, i.e. the economic resources devoted by resident units to environmental protection. In a national accounts perspective, environmental protection expenditure for the Regulation 691/2011 module includes:"]
[null,null,"- the sum of uses of RM products by resident units. Uses are either final uses (final consumption or capital formation) or intermediate consumption. RM expenditure also includes in-house expenditures relating to resource management ancillary activities."]
[null,null,"- plus the gross fixed capital formation (GFCF) for resource management activities, "]
[null,null,"- plus the transfers for resource management which are not a counterpart of previous items,"]
[null,null,"- less financing by the rest of the world."]
[null,null,"It is important to stress that for RM, both goods and services are important and  also resource efficient products are relevant, as they can represent an important part of the expenditure."]
[null,null,"Data on RM are to be provided on voluntary basis.\nFor data reporting, the following characteristics should be prioritised (given that they both allow in the future for the calculation of a RM national expenditure aggregate and  have great relevance for policy purposes, as e.g. GFCF): "]
[null,null,"– Output of RM products (P1): Output may be market output (P11), non-market output (P13) or ancillary output (P1_ANC). Ancillary output is output produced in-house for internal use by enterprises. In the questionnaire output for own final use is to be reported jointly with market output.","- Domestic gross capital formation for EP activities (investments for EP)."]
[null,null,"– Imports and exports of RM products (P6 and P7)"]
[null,null,"– Value added tax (VAT) and other taxes less subsidies on RM products (D21-D31)"]
[null,null,"– Gross fixed capital formation and acquisitions less disposals of non-financial non-produced assets for the production of RM good and services (P51G_NP)","- Domestic gross capital formation for EP activities (investments for EP)."]
[null,null,"– Gross fixed capital formation  in cleaner and resource efficient products for non characteristic activities (P51G_NSPR)"]
[null,null,"– Transfers payable and receivable for resource management (D3_D7_D92_D99)","- Those transfers for EP that are not already reflected in the expenditure recorded under the two previous categories. These are in particular subsidies, which lower the prices paid by the users of EP characteristic products. Ignoring subsidies would result in an underestimation of total expenditure. "]
[null,null,"– Final consumption of RM products by general government and households (P3_EPS)"]
[null,null,"– Final consumption of RM goods and services other than RM characteristic products (resource efficient goods) (P3_ACP )"]
[null,null,"– Intermediate consumption of RM products by specialist producers of RM products (P2_EPS_SP)"]
[null,null,"2.2 Breakdown by institutional sectors, industries and environmental domains","2.2 Framework and general principles"]
[null,null,"Data should be reported by institutional sector: general government, corporations, households and the rest of the world. NPISH (non-profit institutions serving households) are not separately identified and are included under general government. The corporations sector is divided between: \"corporations as specialist and secondary producers of market RM products\" and \"corporations other, including corporations as producers of ancillary RM output\"; productive activities of households are included under corporations as market producers. "]
[null,null,"Data for \"corporations: other\" should be reported by NACE."]
[null,null,"Data should be reported  for the following domains of resource management according to  CReMA:\nCReMA11B + CReMA13C + CReMA14: Materials recovery, \nCReMA13A: Production of energy from renewable sources, \nCReMA13B: Energy efficiency and saving. "]
[null,null,"3. TABLES","3. TABLES"]
[null,null,"The questionnaire for RM consists of the same tables as for the EP part (including the \"new\"  tables on GFCF). \nIn practice countries can fill in tables 1 to 6 with information related to RM for: (1) General government and NPISH, (2) Corporations as secondary and specialist producers of market RM products, (4) Total supply of RM products (where ancillary output can be reported), (5) Households, (6) Resource management transfers, (8.1), (8.2), (8.3) [focused on] Gross Fixed Capital Formation (GFCF) by institutional sector.\nNo information on RM are to be reported in tables 7 (Total economy). ","The questionnaire consists of seven tables: (1) general government, (2) ancillary activities of corporations, (3) specialist producers, (4) total supply of environmental protection services, (5) households, (6) environmental protection transfers and (7) total economy. "]
[null,null,"The  questionnaire  also includes three new tables: Tables 8.1, 8.2, 8.3 (and related subtables by NACE, i.e Tables 8.3_AddXX) focused on GFCF. They have been introduced and designed in a manner taking into consideration a need to:"]
[null,null,"- collect data on new variables (not covered in EPEA up to now, and not captured in other Tables, i.e., investments in cleaner and resource efficient products - for CEPA and CReMA). These variables can be reported both at full price and at extra cost;"]
[null,null,"- ensure clarity and transparency with regard to what information EPEA questionnaire collects already on investments for environmental purposes and in environmental products and "]
[null,null,"- avoid as much as possible overlaps and double-counting as well as "]
[null,null,"- collect data on ancillary producers for CReMA classes and for investments in cleaner and resource efficient products both for CEPA and CReMA in separate Tables without introducing any changes in Table 3 and related subtables of EPEA questionnaire. We consider that the keeping of EPEA Table 3 in its current structure hepls to avoid confusion (notably with regard to the EPEA-tailored coverage of NACE sections). "]
[null,null,"In general the same rules and comments apply to the RM part of the questionnaire as for its EP part."]
[null,null,"Table 1: General government and NPISH","Table 1: General government"]
[null,null,"Table 1 collects data on materials recovery and production of renewable energy. The following information can be prioritised: \n- output for General Government and NPISH. of RM characteristic producers, \n- gross fixed capital formation and acquisition less disposals of non-financial, non-produced assets of characteristic producers and \n- final consumption of RM products by the units of the general government and NPISH institutional sectors  (i.e. the units classified to the government (S.13) and NPISH (S.15) sectors in the national accounts).","Table 1 allows for reporting data on the production of EP services, gross capital formation and acquisition less disposals of non-financial, non-produced assets (such as land) for the production of EP services and final consumption of EP services by the general government. "]
[null,null,"With regards to CReMA 13B, the questionnaire only records the uses of resource efficient products (as investments into passive buildings and energetic refurbishment of buildings). As the most important use of these products is GFCF, this should be reported in table 8.1 (at full cost and extra cost)."]
[null,null,"Main data sources "]
[null,null,"National accounts statistics – general government expenditure by function (COFOG) (Table 11 of the ESA transmission program) are a possible data source of data for Table 1 even though it  is not straightforward to establish a correspondence between COFOG and CReMA,  with CReMA activities relating to various COFOG divisions and groups.  In this context a more detailed analysis  of financial budgets and accounts will be very relevant. ","Main source of data for table 1 is national accounts – general government expenditure by function (COFOG) (Table 11 of ESA transmission programme) and in particular items classified in COFOG 5. Analysis of financial budgets and accounts analysis is useful for detailing EP expenditure activities already recorded in a more aggregated way under COFOG statistics (as it is the case of COFOG 05.3)."]
[null,null,"Table 2. Corporations as specialist and secondary producers of market EP services","Table 3. Specialist producers of market EP services"]
[null,null,"Table 2 asks for data on materials recovery and production of renewable energy for specialist producers and secondary producers of the corporation sector. \nInformation on market output,  gross fixed capital formation and acquisitions less disposals of non-financial, non-produced assets and  the intermediate consumption of RM products by corporations as specialist producers of RM products can be prioritised."]
[null,null,"Specialist producers of the corporation sector produce RM products as their main activity. Specialist producers can be found in particular in NACE Rev. 2 divisions 38.3 (for material recovery) and NACE D for the production of renewable energy. ","Most specialist producers including the publicly owned enterprises are in the corporations sector (non-financial corporations - S11 sector). In principle, also some units of the general government (S13) could produce market output. Following the ESA95 (§ 2.97) a unit of the general government producing market output (where it is not a quasi corporation) is to be classified under S13 if it has no autonomy of decision, as it remains an integral part of the units which control them."]
[null,null,"The secondary output of RM products by corporations is included in Table 2. For example,  materials recovery services could be produced as secondary output by corporations classified under NACE Rev. 2 division 38.1 and 38.2 and 39. \n\nFollowing the same practice adopted in the EGSS handbook, production of energy from renewable sources  for own use (and related investments) from corporations and households should be recorded as secondary output in Table 2 (if accounted for in National Accounts).\nIf production of energy from renewable sources for own use is not accounted for in National Accounts, Table 4 should be used for data reporting of ancillary output and table 8.3 for GFCF related to this ancillary production.\nOn this specific point, please see also the description of CReMA 13A below for additional information.","Specialist producers are producers of environmental protection services sold on the market for the use of other units, mainly financed by the users of these services. According to ESA principles, the output is considered as “market” because it is sold at prices that cover more than 50% of the cost of production."]
[null,null,"Main data sources "]
[null,null,"Data sources for Table 2 are national accounts - production and generation of income accounts (Table 3 of the ESA transmission programme) and supply and use tables (Tables 15 and 16 of the ESA transmission programme) at least for material recovery (CPA 38.3). \nFor renewable energy production, appropriate estimation technique could be built based on economic information from national accounts on the production of energy and physical statistics on the production of renewable energy (please refer to the EGSS data collection for more information on the way your country estimates the output and exports of renewable energy)."]
[null,null,"Table 3. Corporations: other (also covering the producers of ancillary EP services)"," Tables 2. Ancillary production of EP services "]
[null,null,"No information is to be reported for RM in tables 3. Ancillary output is to be reported in table 4 and GFCF in table 8.3 and 8.3_ADD_xxx."]
[null,null,"Table 4. Total supply of EP services ","Table 4. Total supply of EP services "]
[null,null,"Table 4 summarises the output of RM products, intermediate consumption of RM products by specialist producers, imports and exports of RM products, VAT and other taxes less subsidies on RM products."]
[null,null,"If data are available, ancillary output of RM products should be filled in in Table 4"]
[null,null,"RM market, non-market and total output is calculated automatically."]
[null,null,"Import, exports and VAT and other taxes less subsidies on RM products should be filled in Table 4. "]
[null,null,"Given that exports of Materials recovery and Renewable energy products are to be reported also for EGSS, compilers of EPEAQ should refer to the methods and sources used in the EGSS for reporting trade related figures and ensure consistency between the two modules."]
[null,null,"Main data sources "]
[null,null,"As concerns imports and exports the following sources of data can be considered:\n- for Materials recovery, information on imports and exports of CPA38.3 can be found in the NA SUT tables;\n- for Renewable energy, information on imports and exports of physical quantities of energy can be used to make estimations based on price times quantity methods.\nEnvironmental goods and services sector (EGSS) represent a source of information to be considered for export data."]
[null,null,"Table 5. Households","Table 5. Households"]
[null,null,"Table 5 allows for the reporting of the final consumption of RM products by households including resource efficient products (as for example more efficient domestic appliances for CReMA 13B)"]
[null,null,"The household sector is conceptually identical with the institutional sector of households  in the national accounts, but in this data collection households are considered in their capacity as final consumers. Households in their capacity of producers (i.e. their output for own final use) are covered in Table 2 (together with the market producers of RM products).\n","In principle, the households sector groups together those units that belong to the institutional sector of households in the national accounts, considered in their capacity as final consumers."]
[null,null,"Please consider that, following the same practice adopted in the EGSS handbook, production of energy from renewable sources for own use from households may be recorded either as secondary output (if accounted for in National Accounts) or as ancillary output (if not accounted for in National Accounts). \nIn the first case (accounted for in National Accounts) Table 2 should be used for the reporting of output of the activity and related investments.\nIn the second case (not accounted for in National Accounts) Table 4 should be used for data reporting of ancillary output and table 8.3 for GFCF related to this ancillary production."]
[]
[null,null,"Main data sources "]
[null,null,"Data sources to be considered for Table 5 are supply and use tables which may provide final consumption expenditure of households for the most important RM products identified through CPA codes and household expenditure surveys. ","Main data sources for table 5 are supply and use tables which may provide final consumption expenditure of households for the most important EP services identified through CPA codes and household expenditure surveys. Depending on the country, items relating to the use of EP services may be separately provided by the source data or may be included in wider expenditure categories. For example, wastewater removal may be included in the water bill."]
[null,null,"Table 6: EP transfers ","Table 6: EP transfers "]
[null,null,"Table 6 allows for reporting of transfers by institutional sector. A transfer is a transaction in which one institutional unit provides a good, service or asset to another unit without receiving from the latter any good, service or asset in return as a direct counterpart. Typically the government provides transfers to (or receives transfers from) units in the other sectors."]
[null,null,"RM transfers are all current or capital transfers that are intended to support activities under the scope of resource management. They cover transfers for the production and use of resource management products (including resource efficient products). Transactions classified as Subsidies (D.3) and Other current transfers (D.7) or capital transfers (D.92 Investment grants and D.99 Other capital transfers) according to the ESA 2010 are included in this table as well as earmarked taxes. Tax abatements, interest reliefs, guarantees are excluded."]
[null,null,"Main data sources "]
[null,null,"Main source of data for transfers are COFOG figures included under national accounts – general government expenditure by function (COFOG) (Table 11 of ESA transmission programme). ","Main source of data for transfers are COFOG 05 figures included under national accounts – general government expenditure by function (COFOG) (Table 11 of ESA transmission programme)."]
[null,null,"Tables 8: GFCF"]
[null,null,"Tables 8.1, 8.2, 8.3 are organized by institutional sector and type of EPEA producers (following to some extent the structure of the EPEA questionnaire and sequence of its first three tables): "]
[null,null,"- General government and NPSIH (Table 8.1), "]
[null,null,"- Corporations as specialist and secondary producers (Table 8.2) and "]
[null,null,"- Corporations as ancillary producers (Table 8.3). "]
[null,null,"Table 8.3_AddXX allow data reporting on GFCF of ancillary producers by NACE for a specific year (strongly encouraged: from 2014-onwards – if data are available)."]
[null,null,"In the new Tables 8.1, 8.2, 8.3 (and related subtables by NACE, i.e Tables 8.3_AddXX), data on investments (GFCF - P51G_NP.1) for the production of EP services and RM products already collected in Tables 1 and 2 and 3 are automatically reported."]
[null,null,"A part from GFCF ( P51G_NP.1 ) for the production of EP services and RM products  Table 8.1, 8.2 and 8.3 allows for reporting the GFCF in  in cleaner and resource efficient products for non characteristic activities at extra cost and full cost. "]
[null,null,"These lines are important in particular for the CReMA 13B resource effcient products which are used as GFCF in the different institutional sectors. In particular countries should investigate the following resource efficient products:"]
[null,null,"- resource efficient devices/appliances including equipment for cogeneration using fossil energy,"]
[null,null,"- refurbished (with regards to energy consumption) buildings,"]
[null,null,"- passive or quasi-zero energy buildings."]
[]
[]
[null,null,"4. RESOURCE MANAGEMENT DOMAINS","4. ENVIRONMENTAL DOMAINS"]
[null,null,"CReMA11B + CReMA13C + CReMA14 - Materials recovery","1. Protection of ambient air and climate"]
[null,null,"The characteristic activity is materials recovery, i.e. the production of secondary raw materials. In order to practically delimit the perimeter of these activities, we should trace relevant transactions of CPA 38.3 producers (and in the case the detailed data are not available of producers classified to NACE 38.3s) for the secondary raw materials."]
[null,null,"Transaction related to General government and corporations as specialist and secondary producers have to be reported either in table 1 or 2 according to the sector into which the unit engaging in these activities is classified."]
[null,null,"Ancillary output of material recovery have to be reported in table 4."]
[null,null,"Final consumption of material recovery products (if any) in table 5."]
[null,null,"Imports and exports of and VAT and other taxes less subsidies on materials recovery services and related products to be reported under Table 4."]
[null,null,"Transfers related to materials recovery are collected in Table 6."]
[null,null,"GFCF in resource efficient products associated with materials recovery for non characteristic activities (i.e., other than materials recovery in this case), and GFCF related to ancillary producers are collected under Tables 8.1, 8.2, 8.3 and related subtables."]
[]
[null,null,"CReMA13A – Production of energy from renewable sources","2. Wastewater management (includes prevention of emission to surface water)"]
[null,null,"The production of renewable energy is the characteristic RM activity. Thus, all investments of renewable energy producers, including acquisitions less disposals of the specific equipment (fixed assets as solar panels, windmills etc.) and their installation are included in the value of GFCF for characteristic activity (in this case: Gross fixed capital formation and acquisition less disposals of non-financial non-produced assets for the production of renewable energy) in Tables 1, 2 and 8.3.\nAt this stage, no other fixed assets or non-produced financial assets for production of energy from renewable sources have been identified in Eurostat’s analyses; thus, no further data on investments for CReMA13A are expected. Should you consider that some specific products would be relevant for the reporting, please provide data for specific reporting items in tables 8, and inform about the extra entries in the quality report."]
[null,null,"Transaction related to General government and corporations as specialist and secondary producers have to be reported either in table 1 or 2 according to the sector according to the sector into which the unit engaging in these activities is classified."]
[null,null,"We have to consider however that several units produce energy for their own use (autoproducers): this happens for corporations, households and general governments. "]
[null,null,"Production of energy for own use (interim and final)  is to be recorded even in the cases when National Accounts capture no output given that the activity is considered an ancillary one."]
[null,null,"As also mentioned in EGSS handbook, national accounts practices for recording production of energy for own use (as intermediate consumption) vary across countries: some countries consider it as ancillary activity (which implies no separate recording as output in National Accounts), while other record it as secondary output."]
[null,null,"Consequently production of energy from renewable sources for own use from corporations and households may be recorded either as secondary output (if accounted for in National Accounts) or as ancillary output (if not accounted for in National Accounts). "]
[null,null,"In the first case (accounted for in National Accounts) Table 1 or 2 should be used for the reporting of output of the activity and related investments."]
[null,null,"In the second case (not accounted for in National Accounts) Table 4 should be used for data reporting of ancillary output and table 8.3 for GFCF related to this ancillary production."]
[null,null,"Imports, exports of and VAT and other taxes less subsidies on energy produced from renewable sources are collected in table 4. "]
[null,null,"Final consumption of renewable energy of HH in table 5"]
[null,null,"Transfers related to renewable energy production in table 6"]
[null,null,"For the production of renewable energy no GFCF in resource efficient products for non characteristic activities should be reported. In fact so far no CReMA13A-related resource efficient products have been identified. "]
[null,null,"CReMA13B - Energy efficiency and saving","3. Waste management (includes treatment of low-level radioactive waste, composting, street cleaning and sweeping, recycling)"]
[null,null,"For this domain, it is assumed that no characteristic activity exists. Thus expenditure will be equal to the uses of related resource efficient products (final consumption expenditure and investments in energy efficient appliances, buildings, etc.)."]
[null,null,"For this reason, no reporting under tables 1, 2 and 4 is foreseen for CReMA13B. The only reporting thus refers to the uses of resource efficient goods in table 5 (final consumption of energy efficient appliances by households for example) and in table 8.1 to 8.3 (GFCF in more efficient products – like appliances, low energy buildings, etc. – of GG and corporations’ units). "]
[null,null,"For households, the expenditure related to the buildings is considered to be GFCF of NACE 68 (Real estate activities) for both new buildings and energetic refurbishment (“improvements to existing fixed assets that go well beyond ordinary maintenance and repairs are included in gross fixed capital formation” – ESA2010 paragraph 3.129) and thus to be reported under table 8.3."]
[null,null,"Transfers related to energy efficiency and saving are collected in Table 6."]
[null,null,"In the first case (accounted for in National Accounts) Table 1 or 2 should be used for the reporting of output of the activity and related investments."]
[null,null,"In the second case (not accounted for in National Accounts) Table 4 should be used for data reporting of ancillary output and table 8.3 for GFCF related to this ancillary production."]
[null,null,"Imports, exports of and VAT and other taxes less subsidies on energy produced from renewable sources are collected in table 4. "]
[null,null,"Final consumption of renewable energy of HH in table 5"]
[null,null,"Transfers related to renewable energy production in table 6"]
[null,null,"For the production of renewable energy no GFCF in resource efficient products for non characteristic activities should be reported. In fact so far no CReMA13A-related resource efficient products have been identified. "]
[null,null,"All investments for characteristic activity are by producers of renewable energy and thus their full GFCF (including the specific equipment for producing renewable energy) is already accounted for."]
[null,null,"CReMA13B - Energy efficiency and saving","3. Waste management (includes treatment of low-level radioactive waste, composting, street cleaning and sweeping, recycling)"]
[null,null,"For this domain, it is assumed that no characteristic activity exists. Thus expenditure will be equal to the uses of related resource efficient products (final consumption expenditure and investments in energy efficient appliances, buildings, etc.)."]
[null,null,"For this reason, no reporting under tables 1, 2 and 4 is foreseen for CReMA13B. The only reporting thus refers to the uses of resource efficient goods in table 5 (final consumption of energy efficient appliances by households for example) and in table 8.1 to 8.3 (GFCF in more efficient products – like appliances, low energy buildings, etc. – of GG and corporations’ units). "]
[null,null,"For households, the expenditure related to the buildings is considered to be GFCF of NACE 68 (Real estate activities) for both new buildings and energetic refurbishment (“improvements to existing fixed assets that go well beyond ordinary maintenance and repairs are included in gross fixed capital formation” – ESA2010 paragraph 3.129) and thus to be reported under table 8.3."]
[null,null,"Transfers related to energy efficiency and saving are collected in Table 6."]

{"sheet":"Reporting instructions","index":9,"n_rows":94,"n_cols":5,"rows_kept":94,"cut":false,"hidden":false,"merged":[[24,3,24,4],[20,3,20,4],[26,3,26,4],[25,3,25,4],[21,3,21,4],[0,0,0,3],[1,1,1,4],[2,1,2,3],[3,1,3,4],[6,1,6,4],[4,1,4,4],[5,1,5,4],[9,3,9,4],[10,3,10,4],[11,3,11,4],[19,2,19,4],[23,3,23,4],[22,3,22,4],[14,3,14,4],[93,2,93,4],[32,1,32,3],[33,2,33,4],[34,2,34,4],[87,1,87,3],[88,2,88,4],[89,2,89,4],[90,2,90,4],[91,2,91,4],[92,2,92,4],[42,1,42,4],[54,3,54,4],[51,3,51,4],[52,3,52,4],[53,3,53,4],[62,3,62,4],[28,2,28,4],[29,2,29,4],[30,2,30,4],[59,3,59,4],[60,3,60,4],[50,3,50,4],[45,3,45,4],[48,3,48,4],[49,3,49,4],[58,3,58,4],[40,1,40,4],[47,3,47,4],[61,3,61,4],[63,3,63,4],[57,3,57,4],[7,1,7,4],[8,1,8,4],[13,3,13,4],[16,1,16,3],[17,3,17,4],[12,3,12,4],[36,1,36,4],[37,1,37,4],[38,1,38,4],[39,1,39,4],[43,3,43,4],[44,2,44,4],[46,3,46,4],[64,3,64,4],[65,3,65,4],[83,2,83,4],[86,2,86,4],[69,3,69,4],[70,3,70,4],[71,3,71,4],[78,2,78,4],[79,3,79,4],[80,3,80,4],[85,2,85,4]]}
["QUESTIONNAIRE ON ENVIRONMENTAL PROTECTION EXPENDITURE ACCOUNTS",null,null,null,"REPORTING INSTRUCTIONS AND FOOTNOTES"]
[]
[null,"Reporting instructions"]
[null,"1. Basic information"]
[null,"Years to be reported for mandatory characteristics"]
[null,"Mandatory reporting: data for 2018-2020\nVoluntary reporting: data for 2014-2017 and 2021"]
[null,"Country "]
[null,"Please select your country from the drop down list, in the Cover page, cell B16"]
[null,"Important for data completion:"]
[null,null,"-","Reported data are loaded into a database using a special IT procedure. Therefore, please respect that no rows or columns can be added or deleted."]
[null,null,"-","To indicate that a variable or environmental/resource domain is not available enter the symbol ':' into the relevant cell."]
[null,null,"-","Data cells in the questionnaire are formatted to suit data loading. A space has to be introduced as the thousand separator and the dot is the decimal point. Enter data directly or use “Paste Special” and “Values” command."]
[null,null,"-","Figures should be reported in “Million units of national currency” in current prices. "]
[null,null,"-","Euro area countries should report data for all years in million euro. For the years before your country joined the euro area please report the data converted into euro at the irrevocably fixed conversion rate ('euro-fixed'). "]
[null,null,"-","(NEW) The column Total should not be filled in. Total is only calculated for internal checks and if all mandatory CEPAs are provided."]
[]
[null,"2. Flags and footnotes"]
[null,null,null,"Flags (footnote references) should be entered in the reporting tables in the footnote columns, next to the value cell. There are two types of footnote symbols \n   - letters for standard footnotes (as defined by Eurostat) and \n   - numbers for country-specific footnotes (to be defined by the data compilers). \nThe footnotes reported as numbers or letters must be separated by a right bracket. To complement one of the standard footnotes, use another reference (from 1) onwards) and add it in the footnote column corresponding to the value cell. Please report the footnote text in the worksheet 'FOOTNOTES_LIST'."]
[null,null,"2a. Standard footnotes"]
[null,null,"The following footnote references will be used for the automatic data processing and data dissemination. Hence, they cannot be changed:"]
[null,null,null,"b) Break in series"]
[null,null,null,"c) Confidential data"]
[null,null,null,"d) Secondary confidentiality"]
[null,null,null,"e) Estimated value"]
[null,null,null,"n) Not for publication"]
[null,null,null,"p) Provisional"]
[null,null,null,"s) Eurostat estimate"]
[null,null,"2b. Country-specific footnotes"]
[null,null,"The 'free text' footnotes can be used for specifying any useful information linked to the reported data. Footnotes should not be used for informing of data revision, data sources or estimation methods: this information must be provided in the quality report.\nYou can enter country-specific footnotes starting from number 1). \nYou can enter more than one footnote reference (flag) e.g.:   c) 1) 2). In case of multiple flags for one figure, please do not leave any space between them, since the right bracket serves as a separator."]
[null,null,"For the sector EPEA tables (Tables 1-3e and 5) please also indicate to which sector the information refers (e.g. 1)General government and NPISH:…, 2)Specialised producers: ..., etc.)."]
[null,null,"A footnote should be used whenever a formula is overwritten (to indicate problems with aggregation, e.g. data for the total available but not all sub-components). "]
[]
[null,"3.Standard symbols "]
[null,null,"\":\" should be reported whenever the figure is not available"]
[null,null,"\"0\" should be reported if data equal to zero "]
[]
[null,"4. Mandatory and voluntary parts of data tables"]
[null,"Data tables 1, 2, 3, 3a-3d, 3b_Add_year, 4, 5 and 6 in the questionnaire comprise a mandatory part for characteristics that have to be reported under Regulation EU N° 691/2011 and a voluntary part including other characteristics."]
[null,"For filling in the mandatory variables, please click on button 'Mandatory items' in cell E3 of the concerned table. "]
[null,"For complementing the filling in with additional variables for which reporting is voluntary, please click on button 'Complete table', also in cell E3. You will retrieve all figures already filled in as mandatory items and find all other items (additional CEPA domains or variables) that you may also report."]
[null,"All characteristics for RM part of the tables are voluntary."]
[]
[null,"5. Checking tool"]
[null,null,null,"There is a checking tool added in the questionnaire, please use it. The tool checks data availability (problems with missing observations and their coding), invalid symbols, errors in the use of footnotes, inconsistencies between EPEA variables, plausibility issues and identifies incorrect use of confidentiality flags. \nThe checking tool does not cover the voluntary part of the questionnaire devoted to RM characteristics."]
[null,null,"5a. The different kinds of checks "]
[null,null,null,"Symbols check: it verifies if the symbols used in the questionnaire follow the reporting convention. The problematic cells are highlighted in red."]
[null,null,null,"Footnote check: it verifies if footnotes are used correctly. It also verifies whether a footnote reference (flag) has a footnote text in the  "]
[null,null,null,"footnotes list. If problems are detected, the cell is highlighted in red."]
[null,null,null,"Consistency check: in a case of an additivity problem, the cell corresponding to the total or subtotal is highlighted in blue."]
[null,null,null,"Checks control whether the sum of (selected) components is equal to (or lower than) the corresponding total or subtotal. For example:"]
[null,null,null,"           -  Checks for CEPA total and CEPA sub-categories (in tables 1 to 6):"]
[null,null,null,"                   e.g. for table 1  -  mandatory variables total CEPA= CEPA1+ CEPA2+CEPA3+CEPA4+CEPA5+CEPA7-8-9;"]
[null,null,null,"                   voluntary variables CEPA1>=CEPA112_122"]
[null,null,null,"           - Controls for NACE total (tables 3-3e): Total NACE>= 3a+3b+3c+3d+3e (voluntary)."]
[null,null,null,"                Another check verifies consistency for the manufacturing industries (NACE C): Total C=C10+12 +......+ C33"]
[null,null,null,"          - Controls of consistency between variables:"]
[null,null,null,"               - table 1: P1=P11+P13; P13>= P3_EPS"]
[null,null,null,"               - tables 1-3: P2 >= P2_EPS + P2_NEPS;"]
[null,null,null,"               - tables 1&2: ICE=P2_NEPS+D1; B2N=P1+RNO-P2-D1-P51C-D29-D39"]
[null,null,null,"               - table 2: P2_EPS>=P2_EPS_SP"]
[null,null,null,"               - table 3: P51G_NP=INV_EOP+INV_IT; P1_ANC=P2_NEPS+D1; P1_ANC_ESA=P2_NEPS+D1+P51C+D29-D39"]
[null,null,null,"               - table 7 = Table 7_ADD_GG + Table 7_ADD_CORP + table 7_ADD_HH "]
[null,null,null,"Plausibility check (consistency over time): "]
[null,null,null,"Large year-on-year changes between consecutive years will be highlighted in the event of:"]
[null,null,null,"           - an increase/decrease by  50% or more from one year to the other AND"]
[null,null,null,"           - an increase/decrease by 100 or more units of national currency from one year to the other ;"]
[null,null,null,"The plausibility issues are highlighted in orange."]
[null,null,null,"Confidentiality check:"]
[null,null,null,"Verifies the use of confidentiality flags:"]
[null,null,null,"         - cells with  \"not available\" cannot be confidential;  if this rule is not respected, cells are highlighted in red."]
[null,null,null,"         - ensure that the figure flagged as confidential cannot be derived through calculation; if problems are detected, cells are highlighted in purple."]
[null,null,null,"Revisions: A comparison is done between a value newly entered in an EPEA table and an equivalent value validated in the prior EPEA reporting round (and published in Eurostat's public database). \nDepending on the size of the revision (in percentage and absolute value), the cell will be highlighted in green (different shades) as indicated in the table below:"]
[]
[]
[]
[]
[]
[]
[null,null,"5b. How to use the checking tool?"]
[null,null,null,"The checking tool can be used for:\n   1. checking a specific EPEA table by pressing the 'Apply Checks' button situated left-hand on top of each data sheets (1 to 7);\n   2. checking the entire questionnaire (all data tables at once) by pressing the \"Check questionnaire\" button in the table of contents ('TOC') sheet.\nIf data updates/ revisions or corrections have been made, the control checks have to be run again.\nSimilarly, to hide the results of the checks, there are two options:\n   1. for individual data sheets: use the 'Clear Checks' button which is available in all data sheets (1 to 7);\n   2. for the entire questionnaire, use the \"Clear All Checks\" button in the \"TOC\" sheet.\n!!Attention should be paid to the fact that once the buttons 'Clear Checks' and  \"Clear All Checks\" are used, the \"Undo\" option of Excel is not active. \nThis is because the checks function with VBA macros. \nIf the user would like to review the errors again, the 'Apply Checks' button should be run again.\n"]
[null,null,null,"Problems with specific data entries are pointed out by highlighting the relevant cells. \nThe checking tool also produces an error/warning report which you find in the sheet \"Log\". For each case detected as an error or a warning, a description of the problem is provided and the link pointing to the cell with a dubious entry is included in column C.  \nTwo options are given in case of plausibility warnings (orange cells) caused by very high year-on-year changes (in absolute value and in relative terms [%]). \nIf the implausibility is caused by an error, please correct it; if the value is correct, please add a flag 'b' if relevant and explanations in the quality report (reasons for the year-on-year change, e.g., a new estimation method, source data).\nPlease address each issue detected by the checking tool (in highlighted cells). When corrected, cells previously detected as errors or plausibility issues should not be highlighted after the control checks have been re-run.  "]
[]
[null,"Sheet 3b_Add (data for NACE C - breakdown by manufacturing industry)"]
[null,null,"Mandatory reporting for reference years: 2018-2020. \nOptional reporting for reference years: 2014-2017, 2021. \nImportant to consider: a revision of totals for NACE C in EPEA table 3b for years 2014-2020 will require a corresponding adjustment to the detailed breakdown by NACE C division. In such a case, it is necessary to report table '3b_Add' for all years for which the data have been revised. To delete the data transmitted in the past on a voluntary basis (e.g., because of inconsistency issues), add for the relevant reference years a new sheet '3b_Add' with blank cells for all observations that should not be disseminated."]
[null,"Sheet 8.3b_Add (data for GFCF of Corporations: other (also covering producers of ancillary EP services))"]
[null,null,"Voluntary reporting for reference years: 2014-2020. \nIf any other year (2021) is available, please follow the procedure: \n- To report the data insert a new sheet '8.3b_Add': (1) copy the empty sheet for 20xx, (2) correct the reference year in the name of the sheet (e.g. '8.3b_Add_2021') and (3) enter the reference year in the table. "]
[]
[null,"6. Data submission"]
[null,null,"Please, submit this electronic questionnaire to Eurostat using the eDAMIS reporting system. "]
[null,null,"The eDAMIS system is the standard tool for the transmission of statistical data. The system creates a secure environment for the transmission of data, it records all transmissions and it sends confirmations of delivery."]
[null,null,"Domain name in eDAMIS: ENVMFLAC; dataset: ENVMFLAC_EPEAQ_A"]
[null,null,"The eDAMIS system has been installed in the National Statistical Institutes and your local eDAMIS coordinator will give you a user-id and password. When you enter eDAMIS for the first time you will get a form to specify what datasets you will send. It requests information on your country and your institution. You can send data by selecting 'transmission' in the toolbar (top left) and next 'send data file'. Select the data file from your system with 'browse' and eventually correct further attributes. The xml files generated by the data entry tool comply with the Eurostat's database requirements. "]
[null,null,"eDAMIS Support"]
[null,null,"Should you have any questions regarding data transmission do not hesitate to contact your local eDAMIS coordinator or the Eurostat eDAMIS helpdesk at: estat-support-edamis@ec.europa.eu or (+352) 4301 33213","Should you have any questions regarding data transmission do not hesitate to contact your local eDAMIS coordinator or the Eurostat eDAMIS helpdesk at: estat-support-edamis@ec.europa.eu or (+352) 4301 33213"]

{"sheet":"FOOTNOTES LIST","index":10,"n_rows":110,"n_cols":5,"rows_kept":110,"cut":false,"hidden":false,"merged":[[1,0,1,3]]}
[null,null,"Country:",{"$f":"Cover!B16","v":0}]
["List of footnotes"]
[]
[null,null,"Symbol","Flag","Description"]
[null,null,"b)","Break in series","Observations are characterised as such when different content exists or a different methodology has been applied to this observation as compared with the preceding one (the one given for the previous period)."]
[null,null,"c)","Confidential data","Confidential statistical information"]
[null,null,"d)","Secondary confidentiality","Secondary confidentiality footnotes can be set to hide non-confidential values in order to prevent third parties to indirectly deduce confidential values.\nPlease note that this footnote converts into confidential c) when published in Eurostat’s online database.\n "]
[null,null,"e)","Estimated value","To be used only when a small subset of data points have been calculated using a significantly different methodology and/or sources than the rest of the data points in the questionnaire. Small methodological deviations should be explained in the Quality Report and should not be flagged as estimate."]
[null,null,"n)","Not for publication ","To be used when data is only for internal use by Eurostat and not to be published."]
[null,null,"p)","Provisional ","Only to be used when the data provider plans to revise the data. All p) footnotes of data for references years submitted in an earlier data collection, for which no data is not resubmitted in the current data collection, will be systematically removed by Eurostat."]
[null,null,"s)","Eurostat estimate ","Flag to be used by Eurostat only"]
[null,null,"1)"]
[null,null,"2)"]
[null,null,"3)"]
[null,null,"4)"]
[null,null,"5)"]
[null,null,"6)"]
[null,null,"7)"]
[null,null,"8)"]
[null,null,"9)"]
[null,null,"10)"]
[null,null,"11)"]
[null,null,"12)"]
[null,null,"13)"]
[null,null,"14)"]
[null,null,"15)"]
[null,null,"16)"]
[null,null,"17)"]
[null,null,"18)"]
[null,null,"19)"]
[null,null,"20)"]
[null,null,"21)"]
[null,null,"22)"]
[null,null,"23)"]
[null,null,"24)"]
[null,null,"25)"]
[null,null,"26)"]
[null,null,"27)"]
[null,null,"28)"]
[null,null,"29)"]
[null,null,"30)"]
[null,null,"31)"]
[null,null,"32)"]
[null,null,"33)"]
[null,null,"34)"]
[null,null,"35)"]
[null,null,"36)"]
[null,null,"37)"]
[null,null,"38)"]
[null,null,"39)"]
[null,null,"40)"]
[null,null,"41)"]
[null,null,"42)"]
[null,null,"43)"]
[null,null,"44)"]
[null,null,"45)"]
[null,null,"46)"]
[null,null,"47)"]
[null,null,"48)"]
[null,null,"49)"]
[null,null,"50)"]
[null,null,"51)"]
[null,null,"52)"]
[null,null,"53)"]
[null,null,"54)"]
[null,null,"55)"]
[null,null,"56)"]
[null,null,"57)"]
[null,null,"58)"]
[null,null,"59)"]
[null,null,"60)"]
[null,null,"61)"]
[null,null,"62)"]
[null,null,"63)"]
[null,null,"64)"]
[null,null,"65)"]
[null,null,"66)"]
[null,null,"67)"]
[null,null,"68)"]
[null,null,"69)"]
[null,null,"70)"]
[null,null,"71)"]
[null,null,"72)"]
[null,null,"73)"]
[null,null,"74)"]
[null,null,"75)"]
[null,null,"76)"]
[null,null,"77)"]
[null,null,"78)"]
[null,null,"79)"]
[null,null,"80)"]
[null,null,"81)"]
[null,null,"82)"]
[null,null,"83)"]
[null,null,"84)"]
[null,null,"85)"]
[null,null,"86)"]
[null,null,"87)"]
[null,null,"88)"]
[null,null,"89)"]
[null,null,"90)"]
[null,null,"91)"]
[null,null,"92)"]
[null,null,"93)"]
[null,null,"94)"]
[null,null,"95)"]
[null,null,"96)"]
[null,null,"97)"]
[null,null,"98)"]
[null,null,"99)"]

{"sheet":"1","index":11,"n_rows":294,"n_cols":36,"rows_kept":294,"cut":false,"hidden":false,"merged":[[276,4,276,7],[3,19,4,20],[3,21,4,22],[3,23,4,24],[3,25,4,26],[3,7,3,8],[260,4,260,7],[223,4,223,7],[224,4,224,7],[150,4,150,7],[168,4,168,7],[169,4,169,7],[241,4,241,7],[258,4,258,7],[259,4,259,7],[242,4,242,7],[277,4,277,7],[278,4,278,7],[6,3,239,3],[240,3,275,3],[276,3,293,3],[132,4,132,7],[44,4,44,7],[62,4,62,7],[27,4,27,7],[240,4,240,7],[6,4,6,7],[133,4,133,7],[24,4,24,7],[42,4,42,7],[60,4,60,7],[7,4,7,7],[222,4,222,7],[8,4,8,7],[114,4,114,7],[115,4,115,7],[61,4,61,7],[78,4,78,7],[79,4,79,7],[96,4,96,7],[97,4,97,7],[28,4,28,7],[186,4,186,7],[187,4,187,7],[204,4,204,7],[205,4,205,7],[43,4,43,7],[1,4,1,8],[0,4,0,8],[3,9,4,10],[3,11,4,12],[3,13,4,14],[4,4,4,7],[0,9,0,32],[3,31,4,32],[3,27,4,28],[3,29,4,30],[3,33,4,34],[2,33,2,36],[1,33,1,36],[3,35,4,36],[2,9,2,32],[1,9,1,32],[3,15,4,16],[3,17,4,18]]}
[null,null,null,null,{"$f":"Cover!B21","v":"QUESTIONNAIRE ON ENVIRONMENTAL PROTECTION EXPENDITURE ACCOUNTS"},null,null,null,null,"Table 1. General government and NPISH"]
[null,null,null,null,{"$f":"E1","v":"QUESTIONNAIRE ON ENVIRONMENTAL PROTECTION EXPENDITURE ACCOUNTS"},null,null,null,null,{"$f":"J1","v":"Table 1. General government and NPISH"},null,null,null,null,null,null,null,null,null,null,null,null,null,null,null,null,null,null,null,null,null,null,null,"Table 1. General government and NPISH"]
[null,null,null,null,null,null,null,null,null,"Mandatory and voluntary variables and environmental domains - please fill in as much as possible",null,null,null,null,null,null,null,null,null,null,null,null,null,null,null,null,null,null,null,null,null,null,null,"Voluntary variables and RM domains - please fill in as much as possible"]
[null,null,null,null,"Country/Unit",{"$f":"IFERROR(Cover!C16,\"\")","v":""},{"$f":"\"\"&Cover!B16","v":""},{"$f":"Cover!B17","v":"Million units of national currency"},null,"CEPA 1",null,"of which CEPA 1.1.2 and 1.2.2 Climate change",null,"CEPA 2",null,"CEPA 3",null,"CEPA 4",null,"CEPA 5",null,"CEPA 6",null,"CEPA 7",null,"CEPA 8",null,"CEPA 9",null,"Sum of CEPA 7+8+9",null,"TOTAL",null," CReMA\n11B + 13C + 14 \n(Materials recovery)",null,"CReMA13A (Production of energy  from renewable sources)"]
[null,null,null,null,"Expenditure",null,null,null,"Year",null,null,null,null,null,null,null,null,null,null,null,null,null,null,null,null,null,null,null,null,null,null,"Landscape",null,"Landscape",null,"Landscape"]
[null,null,null,null,null,null,null,null,null,"CEPA1",null,"CEPA112_122",null,"CEPA2",null,"CEPA3",null,"CEPA4",null,"CEPA5",null,"CEPA6",null,"CEPA7",null,"CEPA8",null,"CEPA9",null,"CEPA7-9",null,"TOT_CEPA",null,"CREMA 11B_13C_14",null,"CREMA 13A"]
["S13_S15","TOTAL","EPS_P51G_NP","Transactions as producers of EP services / RM products","( P51G_NP.1 ) Gross fixed capital formation and acquisition less disposals of non-financial non-produced assets",null,null,null,2014,":",null,":",null,":",null,":",null,":",null,":",null,":",null,":",null,":",null,":",null,":",null,{"$f":"IF(COUNT(J7,N7,P7,R7,V7,T7,AD7)=7,SUM(J7,N7,P7,R7,V7,T7,AD7),\":\")","v":":"},null,":",null,":"]
["S13_S15","TOTAL","EPS_P51G_NP",null,null,null,null,null,2015,":",null,":",null,":",null,":",null,":",null,":",null,":",null,":",null,":",null,":",null,":",null,":",null,":",null,":"]
["S13_S15","TOTAL","EPS_P51G_NP",null,null,null,null,null,2016,":",null,":",null,":",null,":",null,":",null,":",null,":",null,":",null,":",null,":",null,":",null,":",null,":",null,":"]
["S13_S15","TOTAL","EPS_P51G_NP",null,null,null,null,null,2017,":",null,":",null,":",null,":",null,":",null,":",null,":",null,":",null,":",null,":",null,":",null,":",null,":",null,":"]
["S13_S15","TOTAL","EPS_P51G_NP",null,null,null,null,null,2018,":",null,":",null,":",null,":",null,":",null,":",null,":",null,":",null,":",null,":",null,":",null,":",null,":",null,":"]
["S13_S15","TOTAL","EPS_P51G_NP",null,null,null,null,null,2019,":",null,":",null,":",null,":",null,":",null,":",null,":",null,":",null,":",null,":",null,":",null,":",null,":",null,":"]
["S13_S15","TOTAL","EPS_P51G_NP",null,null,null,null,null,2020,":",null,":",null,":",null,":",null,":",null,":",null,":",null,":",null,":",null,":",null,":",null,":",null,":",null,":"]
["S13_S15","TOTAL","EPS_P51G_NP",null,null,null,null,null,2021,":",null,":",null,":",null,":",null,":",null,":",null,":",null,":",null,":",null,":",null,":",null,":",null,":",null,":"]
["S13_S15","TOTAL","EPS_P51G_NP",null,null,null,null,null,2022,":",null,":",null,":",null,":",null,":",null,":",null,":",null,":",null,":",null,":",null,":",null,":",null,":",null,":"]
["S13_S15","TOTAL","EPS_P51G_NP",null,null,null,null,null,2023,":",null,":",null,":",null,":",null,":",null,":",null,":",null,":",null,":",null,":",null,":",null,":",null,":",null,":"]
["S13_S15","TOTAL","EPS_P51G_NP",null,null,null,null,null,2024,":",null,":",null,":",null,":",null,":",null,":",null,":",null,":",null,":",null,":",null,":",null,":",null,":",null,":"]
["S13_S15","TOTAL","EPS_P51G_NP",null,null,null,null,null,2025,":",null,":",null,":",null,":",null,":",null,":",null,":",null,":",null,":",null,":",null,":",null,":",null,":",null,":"]
["S13_S15","TOTAL","EPS_P51G_NP",null,null,null,null,null,2026,":",null,":",null,":",null,":",null,":",null,":",null,":",null,":",null,":",null,":",null,":",null,":",null,":",null,":"]
["S13_S15","TOTAL","EPS_P51G_NP",null,null,null,null,null,2027,":",null,":",null,":",null,":",null,":",null,":",null,":",null,":",null,":",null,":",null,":",null,":",null,":",null,":"]
["S13_S15","TOTAL","EPS_P51G_NP",null,null,null,null,null,2028,":",null,":",null,":",null,":",null,":",null,":",null,":",null,":",null,":",null,":",null,":",null,":",null,":",null,":"]
["S13_S15","TOTAL","EPS_P51G_NP",null,null,null,null,null,2029,":",null,":",null,":",null,":",null,":",null,":",null,":",null,":",null,":",null,":",null,":",null,":",null,":",null,":"]
["S13_S15","TOTAL","EPS_P51G_NP",null,null,null,null,null,2030,":",null,":",null,":",null,":",null,":",null,":",null,":",null,":",null,":",null,":",null,":",null,":",null,":",null,":"]
["S13_S15","TOTAL","EPS_P51G_NP",null,null,null,null,null,2031,":",null,":",null,":",null,":",null,":",null,":",null,":",null,":",null,":",null,":",null,":",null,":",null,":",null,":"]
["S13_S15","TOTAL","EPS_P2",null,"    ( P2.1 ) Total intermediate consumption",null,null,null,2014,":",null,":",null,":",null,":",null,":",null,":",null,":",null,":",null,":",null,":",null,":",null,":",null,":",null,":"]
["S13_S15","TOTAL","EPS_P2",null,null,null,null,null,2015,":",null,":",null,":",null,":",null,":",null,":",null,":",null,":",null,":",null,":",null,":",null,":",null,":",null,":"]
["S13_S15","TOTAL","EPS_P2",null,null,null,null,null,2016,":",null,":",null,":",null,":",null,":",null,":",null,":",null,":",null,":",null,":",null,":",null,":",null,":",null,":"]
["S13_S15","TOTAL","EPS_P2",null,null,null,null,null,2017,":",null,":",null,":",null,":",null,":",null,":",null,":",null,":",null,":",null,":",null,":",null,":",null,":",null,":"]
["S13_S15","TOTAL","EPS_P2",null,null,null,null,null,2018,":",null,":",null,":",null,":",null,":",null,":",null,":",null,":",null,":",null,":",null,":",null,":",null,":",null,":"]
["S13_S15","TOTAL","EPS_P2",null,null,null,null,null,2019,":",null,":",null,":",null,":",null,":",null,":",null,":",null,":",null,":",null,":",null,":",null,":",null,":",null,":"]
["S13_S15","TOTAL","EPS_P2",null,null,null,null,null,2020,":",null,":",null,":",null,":",null,":",null,":",null,":",null,":",null,":",null,":",null,":",null,":",null,":",null,":"]
["S13_S15","TOTAL","EPS_P2",null,null,null,null,null,2021,":",null,":",null,":",null,":",null,":",null,":",null,":",null,":",null,":",null,":",null,":",null,":",null,":",null,":"]
["S13_S15","TOTAL","EPS_P2",null,null,null,null,null,2022,":",null,":",null,":",null,":",null,":",null,":",null,":",null,":",null,":",null,":",null,":",null,":",null,":",null,":"]
["S13_S15","TOTAL","EPS_P2",null,null,null,null,null,2023,":",null,":",null,":",null,":",null,":",null,":",null,":",null,":",null,":",null,":",null,":",null,":",null,":",null,":"]
["S13_S15","TOTAL","EPS_P2",null,null,null,null,null,2024,":",null,":",null,":",null,":",null,":",null,":",null,":",null,":",null,":",null,":",null,":",null,":",null,":",null,":"]
["S13_S15","TOTAL","EPS_P2",null,null,null,null,null,2025,":",null,":",null,":",null,":",null,":",null,":",null,":",null,":",null,":",null,":",null,":",null,":",null,":",null,":"]
["S13_S15","TOTAL","EPS_P2",null,null,null,null,null,2026,":",null,":",null,":",null,":",null,":",null,":",null,":",null,":",null,":",null,":",null,":",null,":",null,":",null,":"]
["S13_S15","TOTAL","EPS_P2",null,null,null,null,null,2027,":",null,":",null,":",null,":",null,":",null,":",null,":",null,":",null,":",null,":",null,":",null,":",null,":",null,":"]
["S13_S15","TOTAL","EPS_P2",null,null,null,null,null,2028,":",null,":",null,":",null,":",null,":",null,":",null,":",null,":",null,":",null,":",null,":",null,":",null,":",null,":"]
["S13_S15","TOTAL","EPS_P2",null,null,null,null,null,2029,":",null,":",null,":",null,":",null,":",null,":",null,":",null,":",null,":",null,":",null,":",null,":",null,":",null,":"]
["S13_S15","TOTAL","EPS_P2",null,null,null,null,null,2030,":",null,":",null,":",null,":",null,":",null,":",null,":",null,":",null,":",null,":",null,":",null,":",null,":",null,":"]
["S13_S15","TOTAL","EPS_P2",null,null,null,null,null,2031,":",null,":",null,":",null,":",null,":",null,":",null,":",null,":",null,":",null,":",null,":",null,":",null,":",null,":"]
["S13_S15","TOTAL","EPS_P2_EPS",null,"( P2_EPS.1 ) Intermediate consumption of EP services / RM products (for production of EP services)",null,null,null,2014,":",null,":",null,":",null,":",null,":",null,":",null,":",null,":",null,":",null,":",null,":",null,":",null,":",null,":"]
["S13_S15","TOTAL","EPS_P2_EPS",null,"(P2_EPS.1: please consider the explanatory notes - click here)",null,null,null,2015,":",null,":",null,":",null,":",null,":",null,":",null,":",null,":",null,":",null,":",null,":",null,":",null,":",null,":"]
["S13_S15","TOTAL","EPS_P2_EPS",null,null,null,null,null,2016,":",null,":",null,":",null,":",null,":",null,":",null,":",null,":",null,":",null,":",null,":",null,":",null,":",null,":"]
["S13_S15","TOTAL","EPS_P2_EPS",null,null,null,null,null,2017,":",null,":",null,":",null,":",null,":",null,":",null,":",null,":",null,":",null,":",null,":",null,":",null,":",null,":"]
["S13_S15","TOTAL","EPS_P2_EPS",null,null,null,null,null,2018,":",null,":",null,":",null,":",null,":",null,":",null,":",null,":",null,":",null,":",null,":",null,":",null,":",null,":"]
["S13_S15","TOTAL","EPS_P2_EPS",null,null,null,null,null,2019,":",null,":",null,":",null,":",null,":",null,":",null,":",null,":",null,":",null,":",null,":",null,":",null,":",null,":"]
["S13_S15","TOTAL","EPS_P2_EPS",null,null,null,null,null,2020,":",null,":",null,":",null,":",null,":",null,":",null,":",null,":",null,":",null,":",null,":",null,":",null,":",null,":"]
["S13_S15","TOTAL","EPS_P2_EPS",null,null,null,null,null,2021,":",null,":",null,":",null,":",null,":",null,":",null,":",null,":",null,":",null,":",null,":",null,":",null,":",null,":"]
["S13_S15","TOTAL","EPS_P2_EPS",null,null,null,null,null,2022,":",null,":",null,":",null,":",null,":",null,":",null,":",null,":",null,":",null,":",null,":",null,":",null,":",null,":"]
["S13_S15","TOTAL","EPS_P2_EPS",null,null,null,null,null,2023,":",null,":",null,":",null,":",null,":",null,":",null,":",null,":",null,":",null,":",null,":",null,":",null,":",null,":"]
["S13_S15","TOTAL","EPS_P2_EPS",null,null,null,null,null,2024,":",null,":",null,":",null,":",null,":",null,":",null,":",null,":",null,":",null,":",null,":",null,":",null,":",null,":"]
["S13_S15","TOTAL","EPS_P2_EPS",null,null,null,null,null,2025,":",null,":",null,":",null,":",null,":",null,":",null,":",null,":",null,":",null,":",null,":",null,":",null,":",null,":"]
["S13_S15","TOTAL","EPS_P2_EPS",null,null,null,null,null,2026,":",null,":",null,":",null,":",null,":",null,":",null,":",null,":",null,":",null,":",null,":",null,":",null,":",null,":"]
["S13_S15","TOTAL","EPS_P2_EPS",null,null,null,null,null,2027,":",null,":",null,":",null,":",null,":",null,":",null,":",null,":",null,":",null,":",null,":",null,":",null,":",null,":"]
["S13_S15","TOTAL","EPS_P2_EPS",null,null,null,null,null,2028,":",null,":",null,":",null,":",null,":",null,":",null,":",null,":",null,":",null,":",null,":",null,":",null,":",null,":"]
["S13_S15","TOTAL","EPS_P2_EPS",null,null,null,null,null,2029,":",null,":",null,":",null,":",null,":",null,":",null,":",null,":",null,":",null,":",null,":",null,":",null,":",null,":"]
["S13_S15","TOTAL","EPS_P2_EPS",null,null,null,null,null,2030,":",null,":",null,":",null,":",null,":",null,":",null,":",null,":",null,":",null,":",null,":",null,":",null,":",null,":"]
["S13_S15","TOTAL","EPS_P2_EPS",null,null,null,null,null,2031,":",null,":",null,":",null,":",null,":",null,":",null,":",null,":",null,":",null,":",null,":",null,":",null,":",null,":"]
["S13_S15","TOTAL","EPS_P2_NEPS",null,"( P2_NEPS.1 ) Intermediate consumption (excluding EP services/ RM products) ",null,null,null,2014,":",null,":",null,":",null,":",null,":",null,":",null,":",null,":",null,":",null,":",null,":",null,":",null,":",null,":"]
["S13_S15","TOTAL","EPS_P2_NEPS",null,null,null,null,null,2015,":",null,":",null,":",null,":",null,":",null,":",null,":",null,":",null,":",null,":",null,":",null,":",null,":",null,":"]
["S13_S15","TOTAL","EPS_P2_NEPS",null,null,null,null,null,2016,":",null,":",null,":",null,":",null,":",null,":",null,":",null,":",null,":",null,":",null,":",null,":",null,":",null,":"]
["S13_S15","TOTAL","EPS_P2_NEPS",null,null,null,null,null,2017,":",null,":",null,":",null,":",null,":",null,":",null,":",null,":",null,":",null,":",null,":",null,":",null,":",null,":"]
["S13_S15","TOTAL","EPS_P2_NEPS",null,null,null,null,null,2018,":",null,":",null,":",null,":",null,":",null,":",null,":",null,":",null,":",null,":",null,":",null,":",null,":",null,":"]
["S13_S15","TOTAL","EPS_P2_NEPS",null,null,null,null,null,2019,":",null,":",null,":",null,":",null,":",null,":",null,":",null,":",null,":",null,":",null,":",null,":",null,":",null,":"]
["S13_S15","TOTAL","EPS_P2_NEPS",null,null,null,null,null,2020,":",null,":",null,":",null,":",null,":",null,":",null,":",null,":",null,":",null,":",null,":",null,":",null,":",null,":"]
["S13_S15","TOTAL","EPS_P2_NEPS",null,null,null,null,null,2021,":",null,":",null,":",null,":",null,":",null,":",null,":",null,":",null,":",null,":",null,":",null,":",null,":",null,":"]
["S13_S15","TOTAL","EPS_P2_NEPS",null,null,null,null,null,2022,":",null,":",null,":",null,":",null,":",null,":",null,":",null,":",null,":",null,":",null,":",null,":",null,":",null,":"]
["S13_S15","TOTAL","EPS_P2_NEPS",null,null,null,null,null,2023,":",null,":",null,":",null,":",null,":",null,":",null,":",null,":",null,":",null,":",null,":",null,":",null,":",null,":"]
["S13_S15","TOTAL","EPS_P2_NEPS",null,null,null,null,null,2024,":",null,":",null,":",null,":",null,":",null,":",null,":",null,":",null,":",null,":",null,":",null,{"$f":"IF(COUNT(J71,N71,P71,R71,V71,T71,AD71)=7,SUM(J71,N71,P71,R71,V71,T71,AD71),\":\")","v":":"},null,":",null,":"]
["S13_S15","TOTAL","EPS_P2_NEPS",null,null,null,null,null,2025,":",null,":",null,":",null,":",null,":",null,":",null,":",null,":",null,":",null,":",null,":",null,":",null,":",null,":"]
["S13_S15","TOTAL","EPS_P2_NEPS",null,null,null,null,null,2026,":",null,":",null,":",null,":",null,":",null,":",null,":",null,":",null,":",null,":",null,":",null,":",null,":",null,":"]
["S13_S15","TOTAL","EPS_P2_NEPS",null,null,null,null,null,2027,":",null,":",null,":",null,":",null,":",null,":",null,":",null,":",null,":",null,":",null,":",null,":",null,":",null,":"]
["S13_S15","TOTAL","EPS_P2_NEPS",null,null,null,null,null,2028,":",null,":",null,":",null,":",null,":",null,":",null,":",null,":",null,":",null,":",null,":",null,":",null,":",null,":"]
["S13_S15","TOTAL","EPS_P2_NEPS",null,null,null,null,null,2029,":",null,":",null,":",null,":",null,":",null,":",null,":",null,":",null,":",null,":",null,":",null,":",null,":",null,":"]
["S13_S15","TOTAL","EPS_P2_NEPS",null,null,null,null,null,2030,":",null,":",null,":",null,":",null,":",null,":",null,":",null,":",null,":",null,":",null,":",null,":",null,":",null,":"]
["S13_S15","TOTAL","EPS_P2_NEPS",null,null,null,null,null,2031,":",null,":",null,":",null,":",null,":",null,":",null,":",null,":",null,":",null,":",null,":",null,":",null,":",null,":"]
["S13_S15","TOTAL","EPS_D1",null,"( D1.1 ) Compensation of employees",null,null,null,2014,":",null,":",null,":",null,":",null,":",null,":",null,":",null,":",null,":",null,":",null,":",null,":",null,":",null,":"]
["S13_S15","TOTAL","EPS_D1",null,null,null,null,null,2015,":",null,":",null,":",null,":",null,":",null,":",null,":",null,":",null,":",null,":",null,":",null,":",null,":",null,":"]
["S13_S15","TOTAL","EPS_D1",null,null,null,null,null,2016,":",null,":",null,":",null,":",null,":",null,":",null,":",null,":",null,":",null,":",null,":",null,":",null,":",null,":"]
["S13_S15","TOTAL","EPS_D1",null,null,null,null,null,2017,":",null,":",null,":",null,":",null,":",null,":",null,":",null,":",null,":",null,":",null,":",null,":",null,":",null,":"]
["S13_S15","TOTAL","EPS_D1",null,null,null,null,null,2018,":",null,":",null,":",null,":",null,":",null,":",null,":",null,":",null,":",null,":",null,":",null,":",null,":",null,":"]
["S13_S15","TOTAL","EPS_D1",null,null,null,null,null,2019,":",null,":",null,":",null,":",null,":",null,":",null,":",null,":",null,":",null,":",null,":",null,":",null,":",null,":"]
["S13_S15","TOTAL","EPS_D1",null,null,null,null,null,2020,":",null,":",null,":",null,":",null,":",null,":",null,":",null,":",null,":",null,":",null,":",null,":",null,":",null,":"]
["S13_S15","TOTAL","EPS_D1",null,null,null,null,null,2021,":",null,":",null,":",null,":",null,":",null,":",null,":",null,":",null,":",null,":",null,":",null,":",null,":",null,":"]
["S13_S15","TOTAL","EPS_D1",null,null,null,null,null,2022,":",null,":",null,":",null,":",null,":",null,":",null,":",null,":",null,":",null,":",null,":",null,":",null,":",null,":"]
["S13_S15","TOTAL","EPS_D1",null,null,null,null,null,2023,":",null,":",null,":",null,":",null,":",null,":",null,":",null,":",null,":",null,":",null,":",null,":",null,":",null,":"]
["S13_S15","TOTAL","EPS_D1",null,null,null,null,null,2024,":",null,":",null,":",null,":",null,":",null,":",null,":",null,":",null,":",null,":",null,":",null,":",null,":",null,":"]
["S13_S15","TOTAL","EPS_D1",null,null,null,null,null,2025,":",null,":",null,":",null,":",null,":",null,":",null,":",null,":",null,":",null,":",null,":",null,":",null,":",null,":"]
["S13_S15","TOTAL","EPS_D1",null,null,null,null,null,2026,":",null,":",null,":",null,":",null,":",null,":",null,":",null,":",null,":",null,":",null,":",null,":",null,":",null,":"]
["S13_S15","TOTAL","EPS_D1",null,null,null,null,null,2027,":",null,":",null,":",null,":",null,":",null,":",null,":",null,":",null,":",null,":",null,":",null,":",null,":",null,":"]
["S13_S15","TOTAL","EPS_D1",null,null,null,null,null,2028,":",null,":",null,":",null,":",null,":",null,":",null,":",null,":",null,":",null,":",null,":",null,":",null,":",null,":"]
["S13_S15","TOTAL","EPS_D1",null,null,null,null,null,2029,":",null,":",null,":",null,":",null,":",null,":",null,":",null,":",null,":",null,":",null,":",null,":",null,":",null,":"]
["S13_S15","TOTAL","EPS_D1",null,null,null,null,null,2030,":",null,":",null,":",null,":",null,":",null,":",null,":",null,":",null,":",null,":",null,":",null,":",null,":",null,":"]
["S13_S15","TOTAL","EPS_D1",null,null,null,null,null,2031,":",null,":",null,":",null,":",null,":",null,":",null,":",null,":",null,":",null,":",null,":",null,":",null,":",null,":"]
["S13_S15","TOTAL","EPS_CUR_IN",null,"( ICE.1 ) Internal current expenditure ((P2_NEPS.1) + (D1.1))   \n",null,null,null,2014,":",null,":",null,":",null,":",null,":",null,":",null,":",null,":",null,":",null,":",null,":",null,":",null,":",null,":"]
["S13_S15","TOTAL","EPS_CUR_IN",null,null,null,null,null,2015,":",null,":",null,":",null,":",null,":",null,":",null,":",null,":",null,":",null,":",null,":",null,":",null,":",null,":"]
["S13_S15","TOTAL","EPS_CUR_IN",null,null,null,null,null,2016,":",null,":",null,":",null,":",null,":",null,":",null,":",null,":",null,":",null,":",null,":",null,":",null,":",null,":"]
["S13_S15","TOTAL","EPS_CUR_IN",null,null,null,null,null,2017,":",null,":",null,":",null,":",null,":",null,":",null,":",null,":",null,":",null,":",null,":",null,":",null,":",null,":"]
["S13_S15","TOTAL","EPS_CUR_IN",null,null,null,null,null,2018,":",null,":",null,":",null,":",null,":",null,":",null,":",null,":",null,":",null,":",null,":",null,":",null,":",null,":"]
["S13_S15","TOTAL","EPS_CUR_IN",null,null,null,null,null,2019,":",null,":",null,":",null,":",null,":",null,":",null,":",null,":",null,":",null,":",null,":",null,":",null,":",null,":"]
["S13_S15","TOTAL","EPS_CUR_IN",null,null,null,null,null,2020,":",null,":",null,":",null,":",null,":",null,":",null,":",null,":",null,":",null,":",null,":",null,":",null,":",null,":"]
["S13_S15","TOTAL","EPS_CUR_IN",null,null,null,null,null,2021,":",null,":",null,":",null,":",null,":",null,":",null,":",null,":",null,":",null,":",null,":",null,":",null,":",null,":"]
["S13_S15","TOTAL","EPS_CUR_IN",null,null,null,null,null,2022,":",null,":",null,":",null,":",null,":",null,":",null,":",null,":",null,":",null,":",null,":",null,":",null,":",null,":"]
["S13_S15","TOTAL","EPS_CUR_IN",null,null,null,null,null,2023,":",null,":",null,":",null,":",null,":",null,":",null,":",null,":",null,":",null,":",null,":",null,":",null,":",null,":"]
["S13_S15","TOTAL","EPS_CUR_IN",null,null,null,null,null,2024,":",null,":",null,":",null,":",null,":",null,":",null,":",null,":",null,":",null,":",null,":",null,":",null,":",null,":"]
["S13_S15","TOTAL","EPS_CUR_IN",null,null,null,null,null,2025,":",null,":",null,":",null,":",null,":",null,":",null,":",null,":",null,":",null,":",null,":",null,":",null,":",null,":"]
["S13_S15","TOTAL","EPS_CUR_IN",null,null,null,null,null,2026,":",null,":",null,":",null,":",null,":",null,":",null,":",null,":",null,":",null,":",null,":",null,":",null,":",null,":"]
["S13_S15","TOTAL","EPS_CUR_IN",null,null,null,null,null,2027,":",null,":",null,":",null,":",null,":",null,":",null,":",null,":",null,":",null,":",null,":",null,":",null,":",null,":"]
["S13_S15","TOTAL","EPS_CUR_IN",null,null,null,null,null,2028,":",null,":",null,":",null,":",null,":",null,":",null,":",null,":",null,":",null,":",null,":",null,":",null,":",null,":"]
["S13_S15","TOTAL","EPS_CUR_IN",null,null,null,null,null,2029,":",null,":",null,":",null,":",null,":",null,":",null,":",null,":",null,":",null,":",null,":",null,":",null,":",null,":"]
["S13_S15","TOTAL","EPS_CUR_IN",null,null,null,null,null,2030,":",null,":",null,":",null,":",null,":",null,":",null,":",null,":",null,":",null,":",null,":",null,":",null,":",null,":"]
["S13_S15","TOTAL","EPS_CUR_IN",null,null,null,null,null,2031,":",null,":",null,":",null,":",null,":",null,":",null,":",null,":",null,":",null,":",null,":",null,":",null,":",null,":"]
["S13_S15","TOTAL","EPS_D29X39",null,"( D29-D39.1 ) Other taxes less subsidies on production",null,null,null,2014,":",null,":",null,":",null,":",null,":",null,":",null,":",null,":",null,":",null,":",null,":",null,":",null,":",null,":"]
["S13_S15","TOTAL","EPS_D29X39",null,null,null,null,null,2015,":",null,":",null,":",null,":",null,":",null,":",null,":",null,":",null,":",null,":",null,":",null,":",null,":",null,":"]
["S13_S15","TOTAL","EPS_D29X39",null,null,null,null,null,2016,":",null,":",null,":",null,":",null,":",null,":",null,":",null,":",null,":",null,":",null,":",null,":",null,":",null,":"]
["S13_S15","TOTAL","EPS_D29X39",null,null,null,null,null,2017,":",null,":",null,":",null,":",null,":",null,":",null,":",null,":",null,":",null,":",null,":",null,":",null,":",null,":"]
["S13_S15","TOTAL","EPS_D29X39",null,null,null,null,null,2018,":",null,":",null,":",null,":",null,":",null,":",null,":",null,":",null,":",null,":",null,":",null,":",null,":",null,":"]
["S13_S15","TOTAL","EPS_D29X39",null,null,null,null,null,2019,":",null,":",null,":",null,":",null,":",null,":",null,":",null,":",null,":",null,":",null,":",null,":",null,":",null,":"]
["S13_S15","TOTAL","EPS_D29X39",null,null,null,null,null,2020,":",null,":",null,":",null,":",null,":",null,":",null,":",null,":",null,":",null,":",null,":",null,":",null,":",null,":"]
["S13_S15","TOTAL","EPS_D29X39",null,null,null,null,null,2021,":",null,":",null,":",null,":",null,":",null,":",null,":",null,":",null,":",null,":",null,":",null,":",null,":",null,":"]
["S13_S15","TOTAL","EPS_D29X39",null,null,null,null,null,2022,":",null,":",null,":",null,":",null,":",null,":",null,":",null,":",null,":",null,":",null,":",null,":",null,":",null,":"]
["S13_S15","TOTAL","EPS_D29X39",null,null,null,null,null,2023,":",null,":",null,":",null,":",null,":",null,":",null,":",null,":",null,":",null,":",null,":",null,":",null,":",null,":"]
["S13_S15","TOTAL","EPS_D29X39",null,null,null,null,null,2024,":",null,":",null,":",null,":",null,":",null,":",null,":",null,":",null,":",null,":",null,":",null,":",null,":",null,":"]
["S13_S15","TOTAL","EPS_D29X39",null,null,null,null,null,2025,":",null,":",null,":",null,":",null,":",null,":",null,":",null,":",null,":",null,":",null,":",null,":",null,":",null,":"]
["S13_S15","TOTAL","EPS_D29X39",null,null,null,null,null,2026,":",null,":",null,":",null,":",null,":",null,":",null,":",null,":",null,":",null,":",null,":",null,":",null,":",null,":"]
["S13_S15","TOTAL","EPS_D29X39",null,null,null,null,null,2027,":",null,":",null,":",null,":",null,":",null,":",null,":",null,":",null,":",null,":",null,":",null,":",null,":",null,":"]
["S13_S15","TOTAL","EPS_D29X39",null,null,null,null,null,2028,":",null,":",null,":",null,":",null,":",null,":",null,":",null,":",null,":",null,":",null,":",null,":",null,":",null,":"]
["S13_S15","TOTAL","EPS_D29X39",null,null,null,null,null,2029,":",null,":",null,":",null,":",null,":",null,":",null,":",null,":",null,":",null,":",null,":",null,":",null,":",null,":"]
["S13_S15","TOTAL","EPS_D29X39",null,null,null,null,null,2030,":",null,":",null,":",null,":",null,":",null,":",null,":",null,":",null,":",null,":",null,":",null,":",null,":",null,":"]
["S13_S15","TOTAL","EPS_D29X39",null,null,null,null,null,2031,":",null,":",null,":",null,":",null,":",null,":",null,":",null,":",null,":",null,":",null,":",null,":",null,":",null,":"]
["S13_S15","TOTAL","EPS_P51C",null,"( P51C.1 ) Consumption of fixed capital",null,null,null,2014,":",null,":",null,":",null,":",null,":",null,":",null,":",null,":",null,":",null,":",null,":",null,":",null,":",null,":"]
["S13_S15","TOTAL","EPS_P51C",null,null,null,null,null,2015,":",null,":",null,":",null,":",null,":",null,":",null,":",null,":",null,":",null,":",null,":",null,":",null,":",null,":"]
["S13_S15","TOTAL","EPS_P51C",null,null,null,null,null,2016,":",null,":",null,":",null,":",null,":",null,":",null,":",null,":",null,":",null,":",null,":",null,{"$f":"IF(COUNT(J135,N135,P135,R135,V135,T135,AD135)=7,SUM(J135,N135,P135,R135,V135,T135,AD135),\":\")","v":":"},null,":",null,":"]
["S13_S15","TOTAL","EPS_P51C",null,null,null,null,null,2017,":",null,":",null,":",null,":",null,":",null,":",null,":",null,":",null,":",null,":",null,":",null,":",null,":",null,":"]
["S13_S15","TOTAL","EPS_P51C",null,null,null,null,null,2018,":",null,":",null,":",null,":",null,":",null,":",null,":",null,":",null,":",null,":",null,":",null,":",null,":",null,":"]
["S13_S15","TOTAL","EPS_P51C",null,null,null,null,null,2019,":",null,":",null,":",null,":",null,":",null,":",null,":",null,":",null,":",null,":",null,":",null,":",null,":",null,":"]
["S13_S15","TOTAL","EPS_P51C",null,null,null,null,null,2020,":",null,":",null,":",null,":",null,":",null,":",null,":",null,":",null,":",null,":",null,":",null,":",null,":",null,":"]
["S13_S15","TOTAL","EPS_P51C",null,null,null,null,null,2021,":",null,":",null,":",null,":",null,":",null,":",null,":",null,":",null,":",null,":",null,":",null,":",null,":",null,":"]
["S13_S15","TOTAL","EPS_P51C",null,null,null,null,null,2022,":",null,":",null,":",null,":",null,":",null,":",null,":",null,":",null,":",null,":",null,":",null,":",null,":",null,":"]
["S13_S15","TOTAL","EPS_P51C",null,null,null,null,null,2023,":",null,":",null,":",null,":",null,":",null,":",null,":",null,":",null,":",null,":",null,":",null,":",null,":",null,":"]
["S13_S15","TOTAL","EPS_P51C",null,null,null,null,null,2024,":",null,":",null,":",null,":",null,":",null,":",null,":",null,":",null,":",null,":",null,":",null,":",null,":",null,":"]
["S13_S15","TOTAL","EPS_P51C",null,null,null,null,null,2025,":",null,":",null,":",null,":",null,":",null,":",null,":",null,":",null,":",null,":",null,":",null,":",null,":",null,":"]
["S13_S15","TOTAL","EPS_P51C",null,null,null,null,null,2026,":",null,":",null,":",null,":",null,":",null,":",null,":",null,":",null,":",null,":",null,":",null,":",null,":",null,":"]
["S13_S15","TOTAL","EPS_P51C",null,null,null,null,null,2027,":",null,":",null,":",null,":",null,":",null,":",null,":",null,":",null,":",null,":",null,":",null,":",null,":",null,":"]
["S13_S15","TOTAL","EPS_P51C",null,null,null,null,null,2028,":",null,":",null,":",null,":",null,":",null,":",null,":",null,":",null,":",null,":",null,":",null,":",null,":",null,":"]
["S13_S15","TOTAL","EPS_P51C",null,null,null,null,null,2029,":",null,":",null,":",null,":",null,":",null,":",null,":",null,":",null,":",null,":",null,":",null,":",null,":",null,":"]
["S13_S15","TOTAL","EPS_P51C",null,null,null,null,null,2030,":",null,":",null,":",null,":",null,":",null,":",null,":",null,":",null,":",null,":",null,":",null,":",null,":",null,":"]
["S13_S15","TOTAL","EPS_P51C",null,null,null,null,null,2031,":",null,":",null,":",null,":",null,":",null,":",null,":",null,":",null,":",null,":",null,":",null,":",null,":",null,":"]
["S13_S15","TOTAL","EPS_B2N",null,"( B2N.1 ) Net operating surplus ((P1.1) + (RNO.1) - (P2.1) - (D1.1) - (P51C.1) - (D29-D39.1))",null,null,null,2014,":",null,":",null,":",null,":",null,":",null,":",null,":",null,":",null,":",null,":",null,":",null,":",null,":",null,":"]
["S13_S15","TOTAL","EPS_B2N",null,null,null,null,null,2015,":",null,":",null,":",null,":",null,":",null,":",null,":",null,":",null,":",null,":",null,":",null,":",null,":",null,":"]
["S13_S15","TOTAL","EPS_B2N",null,null,null,null,null,2016,":",null,":",null,":",null,":",null,":",null,":",null,":",null,":",null,":",null,":",null,":",null,":",null,":",null,":"]
["S13_S15","TOTAL","EPS_B2N",null,null,null,null,null,2017,":",null,":",null,":",null,":",null,":",null,":",null,":",null,":",null,":",null,":",null,":",null,":",null,":",null,":"]
["S13_S15","TOTAL","EPS_B2N",null,null,null,null,null,2018,":",null,":",null,":",null,":",null,":",null,":",null,":",null,":",null,":",null,":",null,":",null,":",null,":",null,":"]
["S13_S15","TOTAL","EPS_B2N",null,null,null,null,null,2019,":",null,":",null,":",null,":",null,":",null,":",null,":",null,":",null,":",null,":",null,":",null,":",null,":",null,":"]
["S13_S15","TOTAL","EPS_B2N",null,null,null,null,null,2020,":",null,":",null,":",null,":",null,":",null,":",null,":",null,":",null,":",null,":",null,":",null,":",null,":",null,":"]
["S13_S15","TOTAL","EPS_B2N",null,null,null,null,null,2021,":",null,":",null,":",null,":",null,":",null,":",null,":",null,":",null,":",null,":",null,":",null,":",null,":",null,":"]
["S13_S15","TOTAL","EPS_B2N",null,null,null,null,null,2022,":",null,":",null,":",null,":",null,":",null,":",null,":",null,":",null,":",null,":",null,":",null,":",null,":",null,":"]
["S13_S15","TOTAL","EPS_B2N",null,null,null,null,null,2023,":",null,":",null,":",null,":",null,":",null,":",null,":",null,":",null,":",null,":",null,":",null,":",null,":",null,":"]
["S13_S15","TOTAL","EPS_B2N",null,null,null,null,null,2024,":",null,":",null,":",null,":",null,":",null,":",null,":",null,":",null,":",null,":",null,":",null,":",null,":",null,":"]
["S13_S15","TOTAL","EPS_B2N",null,null,null,null,null,2025,":",null,":",null,":",null,":",null,":",null,":",null,":",null,":",null,":",null,":",null,":",null,":",null,":",null,":"]
["S13_S15","TOTAL","EPS_B2N",null,null,null,null,null,2026,":",null,":",null,":",null,":",null,":",null,":",null,":",null,":",null,":",null,":",null,":",null,":",null,":",null,":"]
["S13_S15","TOTAL","EPS_B2N",null,null,null,null,null,2027,":",null,":",null,":",null,":",null,":",null,":",null,":",null,":",null,":",null,":",null,":",null,":",null,":",null,":"]
["S13_S15","TOTAL","EPS_B2N",null,null,null,null,null,2028,":",null,":",null,":",null,":",null,":",null,":",null,":",null,":",null,":",null,":",null,":",null,":",null,":",null,":"]
["S13_S15","TOTAL","EPS_B2N",null,null,null,null,null,2029,":",null,":",null,":",null,":",null,":",null,":",null,":",null,":",null,":",null,":",null,":",null,":",null,":",null,":"]
["S13_S15","TOTAL","EPS_B2N",null,null,null,null,null,2030,":",null,":",null,":",null,":",null,":",null,":",null,":",null,":",null,":",null,":",null,":",null,":",null,":",null,":"]
["S13_S15","TOTAL","EPS_B2N",null,null,null,null,null,2031,":",null,":",null,":",null,":",null,":",null,":",null,":",null,":",null,":",null,":",null,":",null,":",null,":",null,":"]
["S13_S15","TOTAL","EPS_P1",null,"( P1.1 ) Total output of EP services / RM products ((P13.1) + (P11.1))",null,null,null,2014,":",null,":",null,":",null,":",null,":",null,":",null,":",null,":",null,":",null,":",null,":",null,":",null,":",null,":"]
["S13_S15","TOTAL","EPS_P1",null,null,null,null,null,2015,":",null,":",null,":",null,":",null,":",null,":",null,":",null,":",null,":",null,":",null,":",null,":",null,":",null,":"]
["S13_S15","TOTAL","EPS_P1",null,null,null,null,null,2016,":",null,":",null,":",null,":",null,":",null,":",null,":",null,":",null,":",null,":",null,":",null,":",null,":",null,":"]
["S13_S15","TOTAL","EPS_P1",null,null,null,null,null,2017,":",null,":",null,":",null,":",null,":",null,":",null,":",null,":",null,":",null,":",null,":",null,":",null,":",null,":"]
["S13_S15","TOTAL","EPS_P1",null,null,null,null,null,2018,":",null,":",null,":",null,":",null,":",null,":",null,":",null,":",null,":",null,":",null,":",null,":",null,":",null,":"]
["S13_S15","TOTAL","EPS_P1",null,null,null,null,null,2019,":",null,":",null,":",null,":",null,":",null,":",null,":",null,":",null,":",null,":",null,":",null,":",null,":",null,":"]
["S13_S15","TOTAL","EPS_P1",null,null,null,null,null,2020,":",null,":",null,":",null,":",null,":",null,":",null,":",null,":",null,":",null,":",null,":",null,":",null,":",null,":"]
["S13_S15","TOTAL","EPS_P1",null,null,null,null,null,2021,":",null,":",null,":",null,":",null,":",null,":",null,":",null,":",null,":",null,":",null,":",null,":",null,":",null,":"]
["S13_S15","TOTAL","EPS_P1",null,null,null,null,null,2022,":",null,":",null,":",null,":",null,":",null,":",null,":",null,":",null,":",null,":",null,":",null,":",null,":",null,":"]
["S13_S15","TOTAL","EPS_P1",null,null,null,null,null,2023,":",null,":",null,":",null,":",null,":",null,":",null,":",null,":",null,":",null,":",null,":",null,":",null,":",null,":"]
["S13_S15","TOTAL","EPS_P1",null,null,null,null,null,2024,":",null,":",null,":",null,":",null,":",null,":",null,":",null,":",null,":",null,":",null,":",null,":",null,":",null,":"]
["S13_S15","TOTAL","EPS_P1",null,null,null,null,null,2025,":",null,":",null,":",null,":",null,":",null,":",null,":",null,":",null,":",null,":",null,":",null,":",null,":",null,":"]
["S13_S15","TOTAL","EPS_P1",null,null,null,null,null,2026,":",null,":",null,":",null,":",null,":",null,":",null,":",null,":",null,":",null,":",null,":",null,":",null,":",null,":"]
["S13_S15","TOTAL","EPS_P1",null,null,null,null,null,2027,":",null,":",null,":",null,":",null,":",null,":",null,":",null,":",null,":",null,":",null,":",null,":",null,":",null,":"]
["S13_S15","TOTAL","EPS_P1",null,null,null,null,null,2028,":",null,":",null,":",null,":",null,":",null,":",null,":",null,":",null,":",null,":",null,":",null,":",null,":",null,":"]
["S13_S15","TOTAL","EPS_P1",null,null,null,null,null,2029,":",null,":",null,":",null,":",null,":",null,":",null,":",null,":",null,":",null,":",null,":",null,":",null,":",null,":"]
["S13_S15","TOTAL","EPS_P1",null,null,null,null,null,2030,":",null,":",null,":",null,":",null,":",null,":",null,":",null,":",null,":",null,":",null,":",null,":",null,":",null,":"]
["S13_S15","TOTAL","EPS_P1",null,null,null,null,null,2031,":",null,":",null,":",null,":",null,":",null,":",null,":",null,":",null,":",null,":",null,":",null,":",null,":",null,":"]
["S13_S15","TOTAL","EPS_P11",null,"( P11.1 ) Market output of EP services / RM products (Includes P.11 (market output) of general government and NPISH local KAUs that are market producers)",null,null,null,2014,":",null,":",null,":",null,":",null,":",null,":",null,":",null,":",null,":",null,":",null,":",null,":",null,":",null,":"]
["S13_S15","TOTAL","EPS_P11",null,null,null,null,null,2015,":",null,":",null,":",null,":",null,":",null,":",null,":",null,":",null,":",null,":",null,":",null,":",null,":",null,":"]
["S13_S15","TOTAL","EPS_P11",null,null,null,null,null,2016,":",null,":",null,":",null,":",null,":",null,":",null,":",null,":",null,":",null,":",null,":",null,":",null,":",null,":"]
["S13_S15","TOTAL","EPS_P11",null,null,null,null,null,2017,":",null,":",null,":",null,":",null,":",null,":",null,":",null,":",null,":",null,":",null,":",null,":",null,":",null,":"]
["S13_S15","TOTAL","EPS_P11",null,null,null,null,null,2018,":",null,":",null,":",null,":",null,":",null,":",null,":",null,":",null,":",null,":",null,":",null,":",null,":",null,":"]
["S13_S15","TOTAL","EPS_P11",null,null,null,null,null,2019,":",null,":",null,":",null,":",null,":",null,":",null,":",null,":",null,":",null,":",null,":",null,":",null,":",null,":"]
["S13_S15","TOTAL","EPS_P11",null,null,null,null,null,2020,":",null,":",null,":",null,":",null,":",null,":",null,":",null,":",null,":",null,":",null,":",null,":",null,":",null,":"]
["S13_S15","TOTAL","EPS_P11",null,null,null,null,null,2021,":",null,":",null,":",null,":",null,":",null,":",null,":",null,":",null,":",null,":",null,":",null,":",null,":",null,":"]
["S13_S15","TOTAL","EPS_P11",null,null,null,null,null,2022,":",null,":",null,":",null,":",null,":",null,":",null,":",null,":",null,":",null,":",null,":",null,":",null,":",null,":"]
["S13_S15","TOTAL","EPS_P11",null,null,null,null,null,2023,":",null,":",null,":",null,":",null,":",null,":",null,":",null,":",null,":",null,":",null,":",null,":",null,":",null,":"]
["S13_S15","TOTAL","EPS_P11",null,null,null,null,null,2024,":",null,":",null,":",null,":",null,":",null,":",null,":",null,":",null,":",null,":",null,":",null,":",null,":",null,":"]
["S13_S15","TOTAL","EPS_P11",null,null,null,null,null,2025,":",null,":",null,":",null,":",null,":",null,":",null,":",null,":",null,":",null,":",null,":",null,":",null,":",null,":"]
["S13_S15","TOTAL","EPS_P11",null,null,null,null,null,2026,":",null,":",null,":",null,":",null,":",null,":",null,":",null,":",null,":",null,":",null,":",null,{"$f":"IF(COUNT(J199,N199,P199,R199,V199,T199,AD199)=7,SUM(J199,N199,P199,R199,V199,T199,AD199),\":\")","v":":"},null,":",null,":"]
["S13_S15","TOTAL","EPS_P11",null,null,null,null,null,2027,":",null,":",null,":",null,":",null,":",null,":",null,":",null,":",null,":",null,":",null,":",null,":",null,":",null,":"]
["S13_S15","TOTAL","EPS_P11",null,null,null,null,null,2028,":",null,":",null,":",null,":",null,":",null,":",null,":",null,":",null,":",null,":",null,":",null,":",null,":",null,":"]
["S13_S15","TOTAL","EPS_P11",null,null,null,null,null,2029,":",null,":",null,":",null,":",null,":",null,":",null,":",null,":",null,":",null,":",null,":",null,":",null,":",null,":"]
["S13_S15","TOTAL","EPS_P11",null,null,null,null,null,2030,":",null,":",null,":",null,":",null,":",null,":",null,":",null,":",null,":",null,":",null,":",null,":",null,":",null,":"]
["S13_S15","TOTAL","EPS_P11",null,null,null,null,null,2031,":",null,":",null,":",null,":",null,":",null,":",null,":",null,":",null,":",null,":",null,":",null,":",null,":",null,":"]
["S13_S15","TOTAL","EPS_P13",null,"( P13.1 ) Non-market output of EP services / RM products (Includes P.131 (payments for non-market output))",null,null,null,2014,":",null,":",null,":",null,":",null,":",null,":",null,":",null,":",null,":",null,":",null,":",null,":",null,":",null,":"]
["S13_S15","TOTAL","EPS_P13",null,null,null,null,null,2015,":",null,":",null,":",null,":",null,":",null,":",null,":",null,":",null,":",null,":",null,":",null,":",null,":",null,":"]
["S13_S15","TOTAL","EPS_P13",null,null,null,null,null,2016,":",null,":",null,":",null,":",null,":",null,":",null,":",null,":",null,":",null,":",null,":",null,":",null,":",null,":"]
["S13_S15","TOTAL","EPS_P13",null,null,null,null,null,2017,":",null,":",null,":",null,":",null,":",null,":",null,":",null,":",null,":",null,":",null,":",null,":",null,":",null,":"]
["S13_S15","TOTAL","EPS_P13",null,null,null,null,null,2018,":",null,":",null,":",null,":",null,":",null,":",null,":",null,":",null,":",null,":",null,":",null,":",null,":",null,":"]
["S13_S15","TOTAL","EPS_P13",null,null,null,null,null,2019,":",null,":",null,":",null,":",null,":",null,":",null,":",null,":",null,":",null,":",null,":",null,":",null,":",null,":"]
["S13_S15","TOTAL","EPS_P13",null,null,null,null,null,2020,":",null,":",null,":",null,":",null,":",null,":",null,":",null,":",null,":",null,":",null,":",null,":",null,":",null,":"]
["S13_S15","TOTAL","EPS_P13",null,null,null,null,null,2021,":",null,":",null,":",null,":",null,":",null,":",null,":",null,":",null,":",null,":",null,":",null,":",null,":",null,":"]
["S13_S15","TOTAL","EPS_P13",null,null,null,null,null,2022,":",null,":",null,":",null,":",null,":",null,":",null,":",null,":",null,":",null,":",null,":",null,":",null,":",null,":"]
["S13_S15","TOTAL","EPS_P13",null,null,null,null,null,2023,":",null,":",null,":",null,":",null,":",null,":",null,":",null,":",null,":",null,":",null,":",null,":",null,":",null,":"]
["S13_S15","TOTAL","EPS_P13",null,null,null,null,null,2024,":",null,":",null,":",null,":",null,":",null,":",null,":",null,":",null,":",null,":",null,":",null,":",null,":",null,":"]
["S13_S15","TOTAL","EPS_P13",null,null,null,null,null,2025,":",null,":",null,":",null,":",null,":",null,":",null,":",null,":",null,":",null,":",null,":",null,":",null,":",null,":"]
["S13_S15","TOTAL","EPS_P13",null,null,null,null,null,2026,":",null,":",null,":",null,":",null,":",null,":",null,":",null,":",null,":",null,":",null,":",null,":",null,":",null,":"]
["S13_S15","TOTAL","EPS_P13",null,null,null,null,null,2027,":",null,":",null,":",null,":",null,":",null,":",null,":",null,":",null,":",null,":",null,":",null,":",null,":",null,":"]
["S13_S15","TOTAL","EPS_P13",null,null,null,null,null,2028,":",null,":",null,":",null,":",null,":",null,":",null,":",null,":",null,":",null,":",null,":",null,":",null,":",null,":"]
["S13_S15","TOTAL","EPS_P13",null,null,null,null,null,2029,":",null,":",null,":",null,":",null,":",null,":",null,":",null,":",null,":",null,":",null,":",null,":",null,":",null,":"]
["S13_S15","TOTAL","EPS_P13",null,null,null,null,null,2030,":",null,":",null,":",null,":",null,":",null,":",null,":",null,":",null,":",null,":",null,":",null,":",null,":",null,":"]
["S13_S15","TOTAL","EPS_P13",null,null,null,null,null,2031,":",null,":",null,":",null,":",null,":",null,":",null,":",null,":",null,":",null,":",null,":",null,":",null,":",null,":"]
["S13_S15","TOTAL","EPS_REC_BYPR",null,"( RNO.1 ) Related non-EP/RM output",null,null,null,2014,":",null,":",null,":",null,":",null,":",null,":",null,":",null,":",null,":",null,":",null,":",null,{"$f":"IF(COUNT(J223,N223,P223,R223,V223,T223,AD223)=7,SUM(J223,N223,P223,R223,V223,T223,AD223),\":\")","v":":"},null,":",null,":"]
["S13_S15","TOTAL","EPS_REC_BYPR",null,null,null,null,null,2015,":",null,":",null,":",null,":",null,":",null,":",null,":",null,":",null,":",null,":",null,":",null,{"$f":"IF(COUNT(J224,N224,P224,R224,V224,T224,AD224)=7,SUM(J224,N224,P224,R224,V224,T224,AD224),\":\")","v":":"},null,":",null,":"]
["S13_S15","TOTAL","EPS_REC_BYPR",null,null,null,null,null,2016,":",null,":",null,":",null,":",null,":",null,":",null,":",null,":",null,":",null,":",null,":",null,":",null,":",null,":"]
["S13_S15","TOTAL","EPS_REC_BYPR",null,null,null,null,null,2017,":",null,":",null,":",null,":",null,":",null,":",null,":",null,":",null,":",null,":",null,":",null,":",null,":",null,":"]
["S13_S15","TOTAL","EPS_REC_BYPR",null,null,null,null,null,2018,":",null,":",null,":",null,":",null,":",null,":",null,":",null,":",null,":",null,":",null,":",null,":",null,":",null,":"]
["S13_S15","TOTAL","EPS_REC_BYPR",null,null,null,null,null,2019,":",null,":",null,":",null,":",null,":",null,":",null,":",null,":",null,":",null,":",null,":",null,":",null,":",null,":"]
["S13_S15","TOTAL","EPS_REC_BYPR",null,null,null,null,null,2020,":",null,":",null,":",null,":",null,":",null,":",null,":",null,":",null,":",null,":",null,":",null,":",null,":",null,":"]
["S13_S15","TOTAL","EPS_REC_BYPR",null,null,null,null,null,2021,":",null,":",null,":",null,":",null,":",null,":",null,":",null,":",null,":",null,":",null,":",null,":",null,":",null,":"]
["S13_S15","TOTAL","EPS_REC_BYPR",null,null,null,null,null,2022,":",null,":",null,":",null,":",null,":",null,":",null,":",null,":",null,":",null,":",null,":",null,":",null,":",null,":"]
["S13_S15","TOTAL","EPS_REC_BYPR",null,null,null,null,null,2023,":",null,":",null,":",null,":",null,":",null,":",null,":",null,":",null,":",null,":",null,":",null,":",null,":",null,":"]
["S13_S15","TOTAL","EPS_REC_BYPR",null,null,null,null,null,2024,":",null,":",null,":",null,":",null,":",null,":",null,":",null,":",null,":",null,":",null,":",null,":",null,":",null,":"]
["S13_S15","TOTAL","EPS_REC_BYPR",null,null,null,null,null,2025,":",null,":",null,":",null,":",null,":",null,":",null,":",null,":",null,":",null,":",null,":",null,":",null,":",null,":"]
["S13_S15","TOTAL","EPS_REC_BYPR",null,null,null,null,null,2026,":",null,":",null,":",null,":",null,":",null,":",null,":",null,":",null,":",null,":",null,":",null,":",null,":",null,":"]
["S13_S15","TOTAL","EPS_REC_BYPR",null,null,null,null,null,2027,":",null,":",null,":",null,":",null,":",null,":",null,":",null,":",null,":",null,":",null,":",null,":",null,":",null,":"]
["S13_S15","TOTAL","EPS_REC_BYPR",null,null,null,null,null,2028,":",null,":",null,":",null,":",null,":",null,":",null,":",null,":",null,":",null,":",null,":",null,":",null,":",null,":"]
["S13_S15","TOTAL","EPS_REC_BYPR",null,null,null,null,null,2029,":",null,":",null,":",null,":",null,":",null,":",null,":",null,":",null,":",null,":",null,":",null,":",null,":",null,":"]
["S13_S15","TOTAL","EPS_REC_BYPR",null,null,null,null,null,2030,":",null,":",null,":",null,":",null,":",null,":",null,":",null,":",null,":",null,":",null,":",null,":",null,":",null,":"]
["S13_S15","TOTAL","EPS_REC_BYPR",null,null,null,null,null,2031,":",null,":",null,":",null,":",null,":",null,":",null,":",null,":",null,":",null,":",null,":",null,":",null,":",null,":"]
["S13_S15","TOTAL","P3_EPS","Transactions as users of EP services / RM products","( P3_EPS.1 ) Final consumption of EP services / RM products ((P13.1) less P.131 (payments for non-market output))",null,null,null,2014,":",null,":",null,":",null,":",null,":",null,":",null,":",null,":",null,":",null,":",null,":",null,":",null,":",null,":"]
["S13_S15","TOTAL","P3_EPS",null,null,null,null,null,2015,":",null,":",null,":",null,":",null,":",null,":",null,":",null,":",null,":",null,":",null,":",null,":",null,":",null,":"]
["S13_S15","TOTAL","P3_EPS",null,null,null,null,null,2016,":",null,":",null,":",null,":",null,":",null,":",null,":",null,":",null,":",null,":",null,":",null,":",null,":",null,":"]
["S13_S15","TOTAL","P3_EPS",null,null,null,null,null,2017,":",null,":",null,":",null,":",null,":",null,":",null,":",null,":",null,":",null,":",null,":",null,":",null,":",null,":"]
["S13_S15","TOTAL","P3_EPS",null,null,null,null,null,2018,":",null,":",null,":",null,":",null,":",null,":",null,":",null,":",null,":",null,":",null,":",null,":",null,":",null,":"]
["S13_S15","TOTAL","P3_EPS",null,null,null,null,null,2019,":",null,":",null,":",null,":",null,":",null,":",null,":",null,":",null,":",null,":",null,":",null,":",null,":",null,":"]
["S13_S15","TOTAL","P3_EPS",null,null,null,null,null,2020,":",null,":",null,":",null,":",null,":",null,":",null,":",null,":",null,":",null,":",null,":",null,":",null,":",null,":"]
["S13_S15","TOTAL","P3_EPS",null,null,null,null,null,2021,":",null,":",null,":",null,":",null,":",null,":",null,":",null,":",null,":",null,":",null,":",null,":",null,":",null,":"]
["S13_S15","TOTAL","P3_EPS",null,null,null,null,null,2022,":",null,":",null,":",null,":",null,":",null,":",null,":",null,":",null,":",null,":",null,":",null,":",null,":",null,":"]
["S13_S15","TOTAL","P3_EPS",null,null,null,null,null,2023,":",null,":",null,":",null,":",null,":",null,":",null,":",null,":",null,":",null,":",null,":",null,":",null,":",null,":"]
["S13_S15","TOTAL","P3_EPS",null,null,null,null,null,2024,":",null,":",null,":",null,":",null,":",null,":",null,":",null,":",null,":",null,":",null,":",null,":",null,":",null,":"]
["S13_S15","TOTAL","P3_EPS",null,null,null,null,null,2025,":",null,":",null,":",null,":",null,":",null,":",null,":",null,":",null,":",null,":",null,":",null,":",null,":",null,":"]
["S13_S15","TOTAL","P3_EPS",null,null,null,null,null,2026,":",null,":",null,":",null,":",null,":",null,":",null,":",null,":",null,":",null,":",null,":",null,":",null,":",null,":"]
["S13_S15","TOTAL","P3_EPS",null,null,null,null,null,2027,":",null,":",null,":",null,":",null,":",null,":",null,":",null,":",null,":",null,":",null,":",null,":",null,":",null,":"]
["S13_S15","TOTAL","P3_EPS",null,null,null,null,null,2028,":",null,":",null,":",null,":",null,":",null,":",null,":",null,":",null,":",null,":",null,":",null,":",null,":",null,":"]
["S13_S15","TOTAL","P3_EPS",null,null,null,null,null,2029,":",null,":",null,":",null,":",null,":",null,":",null,":",null,":",null,":",null,":",null,":",null,":",null,":",null,":"]
["S13_S15","TOTAL","P3_EPS",null,null,null,null,null,2030,":",null,":",null,":",null,":",null,":",null,":",null,":",null,":",null,":",null,":",null,":",null,":",null,":",null,":"]
["S13_S15","TOTAL","P3_EPS",null,null,null,null,null,2031,":",null,":",null,":",null,":",null,":",null,":",null,":",null,":",null,":",null,":",null,":",null,":",null,":",null,":"]
["S13_S15","TOTAL","TOT_P2_EPS",null,"( P2_EPS_EXT.1 ) Total intermediate consumption of EP services / RM products (for production of EP services / RM products and for other production)",null,null,null,2014,":",null,":",null,":",null,":",null,":",null,":",null,":",null,":",null,":",null,":",null,":",null,":",null,":",null,":"]
["S13_S15","TOTAL","TOT_P2_EPS",null,"(P2_EPS_EXT.1: please consider the explanatory notes - click here)",null,null,null,2015,":",null,":",null,":",null,":",null,":",null,":",null,":",null,":",null,":",null,":",null,":",null,":",null,":",null,":"]
["S13_S15","TOTAL","TOT_P2_EPS",null,null,null,null,null,2016,":",null,":",null,":",null,":",null,":",null,":",null,":",null,":",null,":",null,":",null,":",null,":",null,":",null,":"]
["S13_S15","TOTAL","TOT_P2_EPS",null,null,null,null,null,2017,":",null,":",null,":",null,":",null,":",null,":",null,":",null,":",null,":",null,":",null,":",null,":",null,":",null,":"]
["S13_S15","TOTAL","TOT_P2_EPS",null,null,null,null,null,2018,":",null,":",null,":",null,":",null,":",null,":",null,":",null,":",null,":",null,":",null,":",null,":",null,":",null,":"]
["S13_S15","TOTAL","TOT_P2_EPS",null,null,null,null,null,2019,":",null,":",null,":",null,":",null,":",null,":",null,":",null,":",null,":",null,":",null,":",null,":",null,":",null,":"]
["S13_S15","TOTAL","TOT_P2_EPS",null,null,null,null,null,2020,":",null,":",null,":",null,":",null,":",null,":",null,":",null,":",null,":",null,":",null,":",null,":",null,":",null,":"]
["S13_S15","TOTAL","TOT_P2_EPS",null,null,null,null,null,2021,":",null,":",null,":",null,":",null,":",null,":",null,":",null,":",null,":",null,":",null,":",null,":",null,":",null,":"]
["S13_S15","TOTAL","TOT_P2_EPS",null,null,null,null,null,2022,":",null,":",null,":",null,":",null,":",null,":",null,":",null,":",null,":",null,":",null,":",null,":",null,":",null,":"]
["S13_S15","TOTAL","TOT_P2_EPS",null,null,null,null,null,2023,":",null,":",null,":",null,":",null,":",null,":",null,":",null,":",null,":",null,":",null,":",null,":",null,":",null,":"]
["S13_S15","TOTAL","TOT_P2_EPS",null,null,null,null,null,2024,":",null,":",null,":",null,":",null,":",null,":",null,":",null,":",null,":",null,":",null,":",null,":",null,":",null,":"]
["S13_S15","TOTAL","TOT_P2_EPS",null,null,null,null,null,2025,":",null,":",null,":",null,":",null,":",null,":",null,":",null,":",null,":",null,":",null,":",null,":",null,":",null,":"]
["S13_S15","TOTAL","TOT_P2_EPS",null,null,null,null,null,2026,":",null,":",null,":",null,":",null,":",null,":",null,":",null,":",null,":",null,":",null,":",null,":",null,":",null,":"]
["S13_S15","TOTAL","TOT_P2_EPS",null,null,null,null,null,2027,":",null,":",null,":",null,":",null,":",null,":",null,":",null,":",null,":",null,":",null,":",null,":",null,":",null,":"]
["S13_S15","TOTAL","TOT_P2_EPS",null,null,null,null,null,2028,":",null,":",null,":",null,":",null,":",null,":",null,":",null,":",null,":",null,":",null,":",null,":",null,":",null,":"]
["S13_S15","TOTAL","TOT_P2_EPS",null,null,null,null,null,2029,":",null,":",null,":",null,":",null,":",null,":",null,":",null,":",null,":",null,":",null,":",null,":",null,":",null,":"]
["S13_S15","TOTAL","TOT_P2_EPS",null,null,null,null,null,2030,":",null,":",null,":",null,":",null,":",null,":",null,":",null,":",null,":",null,":",null,":",null,":",null,":",null,":"]
["S13_S15","TOTAL","TOT_P2_EPS",null,null,null,null,null,2031,":",null,":",null,":",null,":",null,":",null,":",null,":",null,":",null,":",null,":",null,":",null,":",null,":",null,":"]
["S13_S15","TOTAL","EPS_EMP","Transactions as producers of EP services / RM products","( EMP.1 ) Employment (Full time equivalents)",null,null,null,2014,":",null,":",null,":",null,":",null,":",null,":",null,":",null,":",null,":",null,":",null,":",null,":",null,":",null,":"]
["S13_S15","TOTAL","EPS_EMP",null,null,null,null,null,2015,":",null,":",null,":",null,":",null,":",null,":",null,":",null,":",null,":",null,":",null,":",null,":",null,":",null,":"]
["S13_S15","TOTAL","EPS_EMP",null,null,null,null,null,2016,":",null,":",null,":",null,":",null,":",null,":",null,":",null,":",null,":",null,":",null,":",null,":",null,":",null,":"]
["S13_S15","TOTAL","EPS_EMP",null,null,null,null,null,2017,":",null,":",null,":",null,":",null,":",null,":",null,":",null,":",null,":",null,":",null,":",null,":",null,":",null,":"]
["S13_S15","TOTAL","EPS_EMP",null,null,null,null,null,2018,":",null,":",null,":",null,":",null,":",null,":",null,":",null,":",null,":",null,":",null,":",null,":",null,":",null,":"]
["S13_S15","TOTAL","EPS_EMP",null,null,null,null,null,2019,":",null,":",null,":",null,":",null,":",null,":",null,":",null,":",null,":",null,":",null,":",null,":",null,":",null,":"]
["S13_S15","TOTAL","EPS_EMP",null,null,null,null,null,2020,":",null,":",null,":",null,":",null,":",null,":",null,":",null,":",null,":",null,":",null,":",null,":",null,":",null,":"]
["S13_S15","TOTAL","EPS_EMP",null,null,null,null,null,2021,":",null,":",null,":",null,":",null,":",null,":",null,":",null,":",null,":",null,":",null,":",null,":",null,":",null,":"]
["S13_S15","TOTAL","EPS_EMP",null,null,null,null,null,2022,":",null,":",null,":",null,":",null,":",null,":",null,":",null,":",null,":",null,":",null,":",null,":",null,":",null,":"]
["S13_S15","TOTAL","EPS_EMP",null,null,null,null,null,2023,":",null,":",null,":",null,":",null,":",null,":",null,":",null,":",null,":",null,":",null,":",null,":",null,":",null,":"]
["S13_S15","TOTAL","EPS_EMP",null,null,null,null,null,2024,":",null,":",null,":",null,":",null,":",null,":",null,":",null,":",null,":",null,":",null,":",null,":",null,":",null,":"]
["S13_S15","TOTAL","EPS_EMP",null,null,null,null,null,2025,":",null,":",null,":",null,":",null,":",null,":",null,":",null,":",null,":",null,":",null,":",null,{"$f":"IF(COUNT(J288,N288,P288,R288,V288,T288,AD288)=7,SUM(J288,N288,P288,R288,V288,T288,AD288),\":\")","v":":"},null,":",null,":"]
["S13_S15","TOTAL","EPS_EMP",null,null,null,null,null,2026,":",null,":",null,":",null,":",null,":",null,":",null,":",null,":",null,":",null,":",null,":",null,":",null,":",null,":"]
["S13_S15","TOTAL","EPS_EMP",null,null,null,null,null,2027,":",null,":",null,":",null,":",null,":",null,":",null,":",null,":",null,":",null,":",null,":",null,":",null,":",null,":"]
["S13_S15","TOTAL","EPS_EMP",null,null,null,null,null,2028,":",null,":",null,":",null,":",null,":",null,":",null,":",null,":",null,":",null,":",null,":",null,":",null,":",null,":"]
["S13_S15","TOTAL","EPS_EMP",null,null,null,null,null,2029,":",null,":",null,":",null,":",null,":",null,":",null,":",null,":",null,":",null,":",null,":",null,":",null,":",null,":"]
["S13_S15","TOTAL","EPS_EMP",null,null,null,null,null,2030,":",null,":",null,":",null,":",null,":",null,":",null,":",null,":",null,":",null,":",null,":",null,{"$f":"IF(COUNT(N293,P293,V293,#REF!,#REF!)=0,\":\",SUM(N293,P293,V293,#REF!,#REF!))","v":":"},null,":",null,":"]
["S13_S15","TOTAL","EPS_EMP",null,null,null,null,null,2031,":",null,":",null,":",null,":",null,":",null,":",null,":",null,":",null,":",null,":",null,":",null,{"$f":"IF(COUNT(N294,P294,V294,#REF!,#REF!)=0,\":\",SUM(N294,P294,V294,#REF!,#REF!))","v":":"},null,":",null,":"]

{"sheet":"2","index":12,"n_rows":294,"n_cols":36,"rows_kept":294,"cut":false,"hidden":false,"merged":[[277,4,277,7],[43,4,43,7],[45,4,45,7],[46,4,46,7],[60,4,60,7],[62,4,62,7],[78,4,78,7],[96,4,96,7],[151,4,151,7],[168,4,168,7],[169,4,169,7],[186,4,186,7],[114,4,114,7],[259,4,259,7],[189,4,189,7],[276,4,276,7],[6,3,257,3],[258,3,275,3],[276,3,293,3],[240,4,240,7],[241,4,241,7],[258,4,258,7],[204,4,204,7],[205,4,205,7],[207,4,207,7],[222,4,222,7],[223,4,223,7],[232,4,232,7],[188,4,188,7],[97,4,97,7],[187,4,187,7],[115,4,115,7],[0,4,0,8],[0,9,0,14],[3,9,4,10],[3,11,4,12],[3,13,4,14],[4,4,4,7],[1,4,1,8],[1,9,1,32],[2,9,2,32],[3,27,4,28],[3,31,4,32],[3,15,4,16],[3,17,4,18],[3,19,4,20],[3,29,4,30],[3,21,4,22],[133,4,133,7],[3,25,4,26],[3,23,4,24],[150,4,150,7],[26,4,26,7],[27,4,27,7],[6,4,6,7],[3,7,3,8],[7,4,7,7],[24,4,24,7],[25,4,25,7],[28,4,28,7],[42,4,42,7],[9,4,9,7],[1,33,1,36],[2,33,2,36],[3,33,4,34],[3,35,4,36],[132,4,132,7]]}
[null,null,null,null,{"$f":"Cover!B21","v":"QUESTIONNAIRE ON ENVIRONMENTAL PROTECTION EXPENDITURE ACCOUNTS"},null,null,null,null,"Table 2. Corporations as specialist and secondary producers of market EP services"]
[null,null,null,null,{"$f":"E1","v":"QUESTIONNAIRE ON ENVIRONMENTAL PROTECTION EXPENDITURE ACCOUNTS"},null,null,null,null,{"$f":"J1","v":"Table 2. Corporations as specialist and secondary producers of market EP services"},null,null,null,null,null,null,null,null,null,null,null,null,null,null,null,null,null,null,null,null,null,null,null,"Table 2. Corporations as specialist and secondary producers of market RM products"]
[null,null,null,null,null,null,null,null,null,"Mandatory and voluntary variables and environmental domains - please fill in as much as possible",null,null,null,null,null,null,null,null,null,null,null,null,null,null,null,null,null,null,null,null,null,null,null,"Voluntary variables and RM domains - please fill in as much as possible"]
[null,null,null,null,"Country/Unit",{"$f":"IFERROR(Cover!C16,\"\")","v":""},{"$f":"\"\"&Cover!B16","v":""},{"$f":"Cover!B17","v":"Million units of national currency"},null,"CEPA 1",null,"of which CEPA 1.1.2 and 1.2.2 Climate change",null,"CEPA 2",null,"CEPA 3",null,"CEPA 4",null,"CEPA 5",null,"CEPA 6",null,"CEPA 7",null,"CEPA 8",null,"CEPA 9",null,"Sum of CEPA 7+8+9",null,"TOTAL",null," CReMA\n11B + 13C + 14 \n(Materials recovery)",null,"CReMA13A (Production of energy  from renewable sources)"]
[null,null,null,null,"Expenditure",null,null,null,"Year",null,null,null,null,null,null,null,null,null,null,null,null,null,null,null,null,null,null,null,null,null,null,"Landscape",null,"Landscape",null,"Landscape"]
[null,null,null,null,null,null,null,null,null,"CEPA1",null,"CEPA112_122",null,"CEPA2",null,"CEPA3",null,"CEPA4",null,"CEPA5",null,"CEPA6",null,"CEPA7",null,"CEPA8",null,"CEPA9",null,"CEPA7-9",null,"TOT_CEPA",null,"CREMA 11B_13C_14",null,"CREMA 13A"]
["S11_S12","EP_SPE","EPS_P51G_NP","Transactions as producers of EP services / RM products","( P51G_NP.2 ) Gross fixed capital formation and acquisition less disposals of non-financial non-produced assets",null,null,null,2014,":",null,":",null,":",null,":",null,":",null,":",null,":",null,":",null,":",null,":",null,":",null,{"$f":"IF(COUNT(J7,N7,P7,R7,T7,V7,AD7)=7,SUM(J7,N7,P7,R7,T7,V7,AD7),\":\")","v":":"},null,":",null,":"]
["S11_S12","EP_SPE","EPS_P51G_NP",null,null,null,null,null,2015,":",null,":",null,":",null,":",null,":",null,":",null,":",null,":",null,":",null,":",null,":",null,{"$f":"IF(COUNT(J8,N8,P8,R8,T8,V8,AD8)=7,SUM(J8,N8,P8,R8,T8,V8,AD8),\":\")","v":":"},null,":",null,":"]
["S11_S12","EP_SPE","EPS_P51G_NP",null,null,null,null,null,2016,":",null,":",null,":",null,":",null,":",null,":",null,":",null,":",null,":",null,":",null,":",null,":",null,":",null,":"]
["S11_S12","EP_SPE","EPS_P51G_NP",null,null,null,null,null,2017,":",null,":",null,":",null,":",null,":",null,":",null,":",null,":",null,":",null,":",null,":",null,":",null,":",null,":"]
["S11_S12","EP_SPE","EPS_P51G_NP",null,null,null,null,null,2018,":",null,":",null,":",null,":",null,":",null,":",null,":",null,":",null,":",null,":",null,":",null,{"$f":"IF(COUNT(J11,N11,P11,R11,T11,V11,AD11)=7,SUM(J11,N11,P11,R11,T11,V11,AD11),\":\")","v":":"},null,":",null,":"]
["S11_S12","EP_SPE","EPS_P51G_NP",null,null,null,null,null,2019,":",null,":",null,":",null,":",null,":",null,":",null,":",null,":",null,":",null,":",null,":",null,":",null,":",null,":"]
["S11_S12","EP_SPE","EPS_P51G_NP",null,null,null,null,null,2020,":",null,":",null,":",null,":",null,":",null,":",null,":",null,":",null,":",null,":",null,":",null,":",null,":",null,":"]
["S11_S12","EP_SPE","EPS_P51G_NP",null,null,null,null,null,2021,":",null,":",null,":",null,":",null,":",null,":",null,":",null,":",null,":",null,":",null,":",null,":",null,":",null,":"]
["S11_S12","EP_SPE","EPS_P51G_NP",null,null,null,null,null,2022,":",null,":",null,":",null,":",null,":",null,":",null,":",null,":",null,":",null,":",null,":",null,":",null,":",null,":"]
["S11_S12","EP_SPE","EPS_P51G_NP",null,null,null,null,null,2023,":",null,":",null,":",null,":",null,":",null,":",null,":",null,":",null,":",null,":",null,":",null,":",null,":",null,":"]
["S11_S12","EP_SPE","EPS_P51G_NP",null,null,null,null,null,2024,":",null,":",null,":",null,":",null,":",null,":",null,":",null,":",null,":",null,":",null,":",null,":",null,":",null,":"]
["S11_S12","EP_SPE","EPS_P51G_NP",null,null,null,null,null,2025,":",null,":",null,":",null,":",null,":",null,":",null,":",null,":",null,":",null,":",null,":",null,":",null,":",null,":"]
["S11_S12","EP_SPE","EPS_P51G_NP",null,null,null,null,null,2026,":",null,":",null,":",null,":",null,":",null,":",null,":",null,":",null,":",null,":",null,":",null,":",null,":",null,":"]
["S11_S12","EP_SPE","EPS_P51G_NP",null,null,null,null,null,2027,":",null,":",null,":",null,":",null,":",null,":",null,":",null,":",null,":",null,":",null,":",null,":",null,":",null,":"]
["S11_S12","EP_SPE","EPS_P51G_NP",null,null,null,null,null,2028,":",null,":",null,":",null,":",null,":",null,":",null,":",null,":",null,":",null,":",null,":",null,":",null,":",null,":"]
["S11_S12","EP_SPE","EPS_P51G_NP",null,null,null,null,null,2029,":",null,":",null,":",null,":",null,":",null,":",null,":",null,":",null,":",null,":",null,":",null,":",null,":",null,":"]
["S11_S12","EP_SPE","EPS_P51G_NP",null,null,null,null,null,2030,":",null,":",null,":",null,":",null,":",null,":",null,":",null,":",null,":",null,":",null,":",null,":",null,":",null,":"]
["S11_S12","EP_SPE","EPS_P51G_NP",null,null,null,null,null,2031,":",null,":",null,":",null,":",null,":",null,":",null,":",null,":",null,":",null,":",null,":",null,":",null,":",null,":"]
["S11_S12","EP_SPE","EPS_P2",null,"( P2.2 ) Total intermediate consumption",null,null,null,2014,":",null,":",null,":",null,":",null,":",null,":",null,":",null,":",null,":",null,":",null,":",null,":",null,":",null,":"]
["S11_S12","EP_SPE","EPS_P2",null,null,null,null,null,2015,":",null,":",null,":",null,":",null,":",null,":",null,":",null,":",null,":",null,":",null,":",null,":",null,":",null,":"]
["S11_S12","EP_SPE","EPS_P2",null,null,null,null,null,2016,":",null,":",null,":",null,":",null,":",null,":",null,":",null,":",null,":",null,":",null,":",null,":",null,":",null,":"]
["S11_S12","EP_SPE","EPS_P2",null,null,null,null,null,2017,":",null,":",null,":",null,":",null,":",null,":",null,":",null,":",null,":",null,":",null,":",null,":",null,":",null,":"]
["S11_S12","EP_SPE","EPS_P2",null,null,null,null,null,2018,":",null,":",null,":",null,":",null,":",null,":",null,":",null,":",null,":",null,":",null,":",null,":",null,":",null,":"]
["S11_S12","EP_SPE","EPS_P2",null,null,null,null,null,2019,":",null,":",null,":",null,":",null,":",null,":",null,":",null,":",null,":",null,":",null,":",null,":",null,":",null,":"]
["S11_S12","EP_SPE","EPS_P2",null,null,null,null,null,2020,":",null,":",null,":",null,":",null,":",null,":",null,":",null,":",null,":",null,":",null,":",null,":",null,":",null,":"]
["S11_S12","EP_SPE","EPS_P2",null,null,null,null,null,2021,":",null,":",null,":",null,":",null,":",null,":",null,":",null,":",null,":",null,":",null,":",null,":",null,":",null,":"]
["S11_S12","EP_SPE","EPS_P2",null,null,null,null,null,2022,":",null,":",null,":",null,":",null,":",null,":",null,":",null,":",null,":",null,":",null,":",null,":",null,":",null,":"]
["S11_S12","EP_SPE","EPS_P2",null,null,null,null,null,2023,":",null,":",null,":",null,":",null,":",null,":",null,":",null,":",null,":",null,":",null,":",null,":",null,":",null,":"]
["S11_S12","EP_SPE","EPS_P2",null,null,null,null,null,2024,":",null,":",null,":",null,":",null,":",null,":",null,":",null,":",null,":",null,":",null,":",null,":",null,":",null,":"]
["S11_S12","EP_SPE","EPS_P2",null,null,null,null,null,2025,":",null,":",null,":",null,":",null,":",null,":",null,":",null,":",null,":",null,":",null,":",null,":",null,":",null,":"]
["S11_S12","EP_SPE","EPS_P2",null,null,null,null,null,2026,":",null,":",null,":",null,":",null,":",null,":",null,":",null,":",null,":",null,":",null,":",null,":",null,":",null,":"]
["S11_S12","EP_SPE","EPS_P2",null,null,null,null,null,2027,":",null,":",null,":",null,":",null,":",null,":",null,":",null,":",null,":",null,":",null,":",null,":",null,":",null,":"]
["S11_S12","EP_SPE","EPS_P2",null,null,null,null,null,2028,":",null,":",null,":",null,":",null,":",null,":",null,":",null,":",null,":",null,":",null,":",null,":",null,":",null,":"]
["S11_S12","EP_SPE","EPS_P2",null,null,null,null,null,2029,":",null,":",null,":",null,":",null,":",null,":",null,":",null,":",null,":",null,":",null,":",null,":",null,":",null,":"]
["S11_S12","EP_SPE","EPS_P2",null,null,null,null,null,2030,":",null,":",null,":",null,":",null,":",null,":",null,":",null,":",null,":",null,":",null,":",null,":",null,":",null,":"]
["S11_S12","EP_SPE","EPS_P2",null,null,null,null,null,2031,":",null,":",null,":",null,":",null,":",null,":",null,":",null,":",null,":",null,":",null,":",null,":",null,":",null,":"]
["S11_S12","EP_SPE","EPS_P2_EPS",null,"( P2_EPS.2 ) Intermediate consumption of EP services / RM products for production of EP/RM services by specialist and secondary producers ",null,null,null,2014,":",null,":",null,":",null,":",null,":",null,":",null,":",null,":",null,":",null,":",null,":",null,":",null,":",null,":"]
["S11_S12","EP_SPE","EPS_P2_EPS",null,"(P2_EPS.2: please consider the explanatory notes - click here)",null,null,null,2015,":",null,":",null,":",null,":",null,":",null,":",null,":",null,":",null,":",null,":",null,":",null,":",null,":",null,":"]
["S11_S12","EP_SPE","EPS_P2_EPS",null,null,null,null,null,2016,":",null,":",null,":",null,":",null,":",null,":",null,":",null,":",null,":",null,":",null,":",null,":",null,":",null,":"]
["S11_S12","EP_SPE","EPS_P2_EPS",null,null,null,null,null,2017,":",null,":",null,":",null,":",null,":",null,":",null,":",null,":",null,":",null,":",null,":",null,":",null,":",null,":"]
["S11_S12","EP_SPE","EPS_P2_EPS",null,null,null,null,null,2018,":",null,":",null,":",null,":",null,":",null,":",null,":",null,":",null,":",null,":",null,":",null,":",null,":",null,":"]
["S11_S12","EP_SPE","EPS_P2_EPS",null,null,null,null,null,2019,":",null,":",null,":",null,":",null,":",null,":",null,":",null,":",null,":",null,":",null,":",null,":",null,":",null,":"]
["S11_S12","EP_SPE","EPS_P2_EPS",null,null,null,null,null,2020,":",null,":",null,":",null,":",null,":",null,":",null,":",null,":",null,":",null,":",null,":",null,":",null,":",null,":"]
["S11_S12","EP_SPE","EPS_P2_EPS",null,null,null,null,null,2021,":",null,":",null,":",null,":",null,":",null,":",null,":",null,":",null,":",null,":",null,":",null,":",null,":",null,":"]
["S11_S12","EP_SPE","EPS_P2_EPS",null,null,null,null,null,2022,":",null,":",null,":",null,":",null,":",null,":",null,":",null,":",null,":",null,":",null,":",null,":",null,":",null,":"]
["S11_S12","EP_SPE","EPS_P2_EPS",null,null,null,null,null,2023,":",null,":",null,":",null,":",null,":",null,":",null,":",null,":",null,":",null,":",null,":",null,":",null,":",null,":"]
["S11_S12","EP_SPE","EPS_P2_EPS",null,null,null,null,null,2024,":",null,":",null,":",null,":",null,":",null,":",null,":",null,":",null,":",null,":",null,":",null,":",null,":",null,":"]
["S11_S12","EP_SPE","EPS_P2_EPS",null,null,null,null,null,2025,":",null,":",null,":",null,":",null,":",null,":",null,":",null,":",null,":",null,":",null,":",null,":",null,":",null,":"]
["S11_S12","EP_SPE","EPS_P2_EPS",null,null,null,null,null,2026,":",null,":",null,":",null,":",null,":",null,":",null,":",null,":",null,":",null,":",null,":",null,":",null,":",null,":"]
["S11_S12","EP_SPE","EPS_P2_EPS",null,null,null,null,null,2027,":",null,":",null,":",null,":",null,":",null,":",null,":",null,":",null,":",null,":",null,":",null,":",null,":",null,":"]
["S11_S12","EP_SPE","EPS_P2_EPS",null,null,null,null,null,2028,":",null,":",null,":",null,":",null,":",null,":",null,":",null,":",null,":",null,":",null,":",null,":",null,":",null,":"]
["S11_S12","EP_SPE","EPS_P2_EPS",null,null,null,null,null,2029,":",null,":",null,":",null,":",null,":",null,":",null,":",null,":",null,":",null,":",null,":",null,":",null,":",null,":"]
["S11_S12","EP_SPE","EPS_P2_EPS",null,null,null,null,null,2030,":",null,":",null,":",null,":",null,":",null,":",null,":",null,":",null,":",null,":",null,":",null,":",null,":",null,":"]
["S11_S12","EP_SPE","EPS_P2_EPS",null,null,null,null,null,2031,":",null,":",null,":",null,":",null,":",null,":",null,":",null,":",null,":",null,":",null,":",null,":",null,":",null,":"]
["S11_S12","EP_SPE","EPS_P2_EPS_SP",null,"( P2_EPS_SP.2 ) Intermediate consumption of EP services / RM products by specialist producers for production of EP/RM services\n",null,null,null,2014,":",null,":",null,":",null,":",null,":",null,":",null,":",null,":",null,":",null,":",null,":",null,":",null,":",null,":"]
["S11_S12","EP_SPE","EPS_P2_EPS_SP",null,null,null,null,null,2015,":",null,":",null,":",null,":",null,":",null,":",null,":",null,":",null,":",null,":",null,":",null,":",null,":",null,":"]
["S11_S12","EP_SPE","EPS_P2_EPS_SP",null,null,null,null,null,2016,":",null,":",null,":",null,":",null,":",null,":",null,":",null,":",null,":",null,":",null,":",null,":",null,":",null,":"]
["S11_S12","EP_SPE","EPS_P2_EPS_SP",null,null,null,null,null,2017,":",null,":",null,":",null,":",null,":",null,":",null,":",null,":",null,":",null,":",null,":",null,":",null,":",null,":"]
["S11_S12","EP_SPE","EPS_P2_EPS_SP",null,null,null,null,null,2018,":",null,":",null,":",null,":",null,":",null,":",null,":",null,":",null,":",null,":",null,":",null,":",null,":",null,":"]
["S11_S12","EP_SPE","EPS_P2_EPS_SP",null,null,null,null,null,2019,":",null,":",null,":",null,":",null,":",null,":",null,":",null,":",null,":",null,":",null,":",null,":",null,":",null,":"]
["S11_S12","EP_SPE","EPS_P2_EPS_SP",null,null,null,null,null,2020,":",null,":",null,":",null,":",null,":",null,":",null,":",null,":",null,":",null,":",null,":",null,":",null,":",null,":"]
["S11_S12","EP_SPE","EPS_P2_EPS_SP",null,null,null,null,null,2021,":",null,":",null,":",null,":",null,":",null,":",null,":",null,":",null,":",null,":",null,":",null,":",null,":",null,":"]
["S11_S12","EP_SPE","EPS_P2_EPS_SP",null,null,null,null,null,2022,":",null,":",null,":",null,":",null,":",null,":",null,":",null,":",null,":",null,":",null,":",null,":",null,":",null,":"]
["S11_S12","EP_SPE","EPS_P2_EPS_SP",null,null,null,null,null,2023,":",null,":",null,":",null,":",null,":",null,":",null,":",null,":",null,":",null,":",null,":",null,":",null,":",null,":"]
["S11_S12","EP_SPE","EPS_P2_EPS_SP",null,null,null,null,null,2024,":",null,":",null,":",null,":",null,":",null,":",null,":",null,":",null,":",null,":",null,":",null,":",null,":",null,":"]
["S11_S12","EP_SPE","EPS_P2_EPS_SP",null,null,null,null,null,2025,":",null,":",null,":",null,":",null,":",null,":",null,":",null,":",null,":",null,":",null,":",null,{"$f":"IF(COUNT(J72,N72,P72,R72,T72,V72,AD72)=7,SUM(J72,N72,P72,R72,T72,V72,AD72),\":\")","v":":"},null,":",null,":"]
["S11_S12","EP_SPE","EPS_P2_EPS_SP",null,null,null,null,null,2026,":",null,":",null,":",null,":",null,":",null,":",null,":",null,":",null,":",null,":",null,":",null,":",null,":",null,":"]
["S11_S12","EP_SPE","EPS_P2_EPS_SP",null,null,null,null,null,2027,":",null,":",null,":",null,":",null,":",null,":",null,":",null,":",null,":",null,":",null,":",null,":",null,":",null,":"]
["S11_S12","EP_SPE","EPS_P2_EPS_SP",null,null,null,null,null,2028,":",null,":",null,":",null,":",null,":",null,":",null,":",null,":",null,":",null,":",null,":",null,":",null,":",null,":"]
["S11_S12","EP_SPE","EPS_P2_EPS_SP",null,null,null,null,null,2029,":",null,":",null,":",null,":",null,":",null,":",null,":",null,":",null,":",null,":",null,":",null,":",null,":",null,":"]
["S11_S12","EP_SPE","EPS_P2_EPS_SP",null,null,null,null,null,2030,":",null,":",null,":",null,":",null,":",null,":",null,":",null,":",null,":",null,":",null,":",null,":",null,":",null,":"]
["S11_S12","EP_SPE","EPS_P2_EPS_SP",null,null,null,null,null,2031,":",null,":",null,":",null,":",null,":",null,":",null,":",null,":",null,":",null,":",null,":",null,":",null,":",null,":"]
["S11_S12","EP_SPE","EPS_P2_NEPS",null,"( P2_NEPS.2 ) Intermediate consumption (excluding EP services / RM products) ",null,null,null,2014,":",null,":",null,":",null,":",null,":",null,":",null,":",null,":",null,":",null,":",null,":",null,":",null,":",null,":"]
["S11_S12","EP_SPE","EPS_P2_NEPS",null,null,null,null,null,2015,":",null,":",null,":",null,":",null,":",null,":",null,":",null,":",null,":",null,":",null,":",null,":",null,":",null,":"]
["S11_S12","EP_SPE","EPS_P2_NEPS",null,null,null,null,null,2016,":",null,":",null,":",null,":",null,":",null,":",null,":",null,":",null,":",null,":",null,":",null,":",null,":",null,":"]
["S11_S12","EP_SPE","EPS_P2_NEPS",null,null,null,null,null,2017,":",null,":",null,":",null,":",null,":",null,":",null,":",null,":",null,":",null,":",null,":",null,":",null,":",null,":"]
["S11_S12","EP_SPE","EPS_P2_NEPS",null,null,null,null,null,2018,":",null,":",null,":",null,":",null,":",null,":",null,":",null,":",null,":",null,":",null,":",null,":",null,":",null,":"]
["S11_S12","EP_SPE","EPS_P2_NEPS",null,null,null,null,null,2019,":",null,":",null,":",null,":",null,":",null,":",null,":",null,":",null,":",null,":",null,":",null,":",null,":",null,":"]
["S11_S12","EP_SPE","EPS_P2_NEPS",null,null,null,null,null,2020,":",null,":",null,":",null,":",null,":",null,":",null,":",null,":",null,":",null,":",null,":",null,":",null,":",null,":"]
["S11_S12","EP_SPE","EPS_P2_NEPS",null,null,null,null,null,2021,":",null,":",null,":",null,":",null,":",null,":",null,":",null,":",null,":",null,":",null,":",null,":",null,":",null,":"]
["S11_S12","EP_SPE","EPS_P2_NEPS",null,null,null,null,null,2022,":",null,":",null,":",null,":",null,":",null,":",null,":",null,":",null,":",null,":",null,":",null,":",null,":",null,":"]
["S11_S12","EP_SPE","EPS_P2_NEPS",null,null,null,null,null,2023,":",null,":",null,":",null,":",null,":",null,":",null,":",null,":",null,":",null,":",null,":",null,":",null,":",null,":"]
["S11_S12","EP_SPE","EPS_P2_NEPS",null,null,null,null,null,2024,":",null,":",null,":",null,":",null,":",null,":",null,":",null,":",null,":",null,":",null,":",null,":",null,":",null,":"]
["S11_S12","EP_SPE","EPS_P2_NEPS",null,null,null,null,null,2025,":",null,":",null,":",null,":",null,":",null,":",null,":",null,":",null,":",null,":",null,":",null,":",null,":",null,":"]
["S11_S12","EP_SPE","EPS_P2_NEPS",null,null,null,null,null,2026,":",null,":",null,":",null,":",null,":",null,":",null,":",null,":",null,":",null,":",null,":",null,":",null,":",null,":"]
["S11_S12","EP_SPE","EPS_P2_NEPS",null,null,null,null,null,2027,":",null,":",null,":",null,":",null,":",null,":",null,":",null,":",null,":",null,":",null,":",null,":",null,":",null,":"]
["S11_S12","EP_SPE","EPS_P2_NEPS",null,null,null,null,null,2028,":",null,":",null,":",null,":",null,":",null,":",null,":",null,":",null,":",null,":",null,":",null,":",null,":",null,":"]
["S11_S12","EP_SPE","EPS_P2_NEPS",null,null,null,null,null,2029,":",null,":",null,":",null,":",null,":",null,":",null,":",null,":",null,":",null,":",null,":",null,":",null,":",null,":"]
["S11_S12","EP_SPE","EPS_P2_NEPS",null,null,null,null,null,2030,":",null,":",null,":",null,":",null,":",null,":",null,":",null,":",null,":",null,":",null,":",null,":",null,":",null,":"]
["S11_S12","EP_SPE","EPS_P2_NEPS",null,null,null,null,null,2031,":",null,":",null,":",null,":",null,":",null,":",null,":",null,":",null,":",null,":",null,":",null,":",null,":",null,":"]
["S11_S12","EP_SPE","EPS_D1",null,"( D1.2 ) Compensation of employees",null,null,null,2014,":",null,":",null,":",null,":",null,":",null,":",null,":",null,":",null,":",null,":",null,":",null,":",null,":",null,":"]
["S11_S12","EP_SPE","EPS_D1",null,null,null,null,null,2015,":",null,":",null,":",null,":",null,":",null,":",null,":",null,":",null,":",null,":",null,":",null,":",null,":",null,":"]
["S11_S12","EP_SPE","EPS_D1",null,null,null,null,null,2016,":",null,":",null,":",null,":",null,":",null,":",null,":",null,":",null,":",null,":",null,":",null,":",null,":",null,":"]
["S11_S12","EP_SPE","EPS_D1",null,null,null,null,null,2017,":",null,":",null,":",null,":",null,":",null,":",null,":",null,":",null,":",null,":",null,":",null,":",null,":",null,":"]
["S11_S12","EP_SPE","EPS_D1",null,null,null,null,null,2018,":",null,":",null,":",null,":",null,":",null,":",null,":",null,":",null,":",null,":",null,":",null,":",null,":",null,":"]
["S11_S12","EP_SPE","EPS_D1",null,null,null,null,null,2019,":",null,":",null,":",null,":",null,":",null,":",null,":",null,":",null,":",null,":",null,":",null,":",null,":",null,":"]
["S11_S12","EP_SPE","EPS_D1",null,null,null,null,null,2020,":",null,":",null,":",null,":",null,":",null,":",null,":",null,":",null,":",null,":",null,":",null,":",null,":",null,":"]
["S11_S12","EP_SPE","EPS_D1",null,null,null,null,null,2021,":",null,":",null,":",null,":",null,":",null,":",null,":",null,":",null,":",null,":",null,":",null,":",null,":",null,":"]
["S11_S12","EP_SPE","EPS_D1",null,null,null,null,null,2022,":",null,":",null,":",null,":",null,":",null,":",null,":",null,":",null,":",null,":",null,":",null,":",null,":",null,":"]
["S11_S12","EP_SPE","EPS_D1",null,null,null,null,null,2023,":",null,":",null,":",null,":",null,":",null,":",null,":",null,":",null,":",null,":",null,":",null,":",null,":",null,":"]
["S11_S12","EP_SPE","EPS_D1",null,null,null,null,null,2024,":",null,":",null,":",null,":",null,":",null,":",null,":",null,":",null,":",null,":",null,":",null,":",null,":",null,":"]
["S11_S12","EP_SPE","EPS_D1",null,null,null,null,null,2025,":",null,":",null,":",null,":",null,":",null,":",null,":",null,":",null,":",null,":",null,":",null,":",null,":",null,":"]
["S11_S12","EP_SPE","EPS_D1",null,null,null,null,null,2026,":",null,":",null,":",null,":",null,":",null,":",null,":",null,":",null,":",null,":",null,":",null,":",null,":",null,":"]
["S11_S12","EP_SPE","EPS_D1",null,null,null,null,null,2027,":",null,":",null,":",null,":",null,":",null,":",null,":",null,":",null,":",null,":",null,":",null,":",null,":",null,":"]
["S11_S12","EP_SPE","EPS_D1",null,null,null,null,null,2028,":",null,":",null,":",null,":",null,":",null,":",null,":",null,":",null,":",null,":",null,":",null,":",null,":",null,":"]
["S11_S12","EP_SPE","EPS_D1",null,null,null,null,null,2029,":",null,":",null,":",null,":",null,":",null,":",null,":",null,":",null,":",null,":",null,":",null,":",null,":",null,":"]
["S11_S12","EP_SPE","EPS_D1",null,null,null,null,null,2030,":",null,":",null,":",null,":",null,":",null,":",null,":",null,":",null,":",null,":",null,":",null,":",null,":",null,":"]
["S11_S12","EP_SPE","EPS_D1",null,null,null,null,null,2031,":",null,":",null,":",null,":",null,":",null,":",null,":",null,":",null,":",null,":",null,":",null,":",null,":",null,":"]
["S11_S12","EP_SPE","EPS_CUR_IN",null,"( ICE.2 )  Internal current expenditure ((P2_NEPS.2) + (D1.2))   \n",null,null,null,2014,":",null,":",null,":",null,":",null,":",null,":",null,":",null,":",null,":",null,":",null,":",null,":",null,":",null,":"]
["S11_S12","EP_SPE","EPS_CUR_IN",null,null,null,null,null,2015,":",null,":",null,":",null,":",null,":",null,":",null,":",null,":",null,":",null,":",null,":",null,":",null,":",null,":"]
["S11_S12","EP_SPE","EPS_CUR_IN",null,null,null,null,null,2016,":",null,":",null,":",null,":",null,":",null,":",null,":",null,":",null,":",null,":",null,":",null,":",null,":",null,":"]
["S11_S12","EP_SPE","EPS_CUR_IN",null,null,null,null,null,2017,":",null,":",null,":",null,":",null,":",null,":",null,":",null,":",null,":",null,":",null,":",null,":",null,":",null,":"]
["S11_S12","EP_SPE","EPS_CUR_IN",null,null,null,null,null,2018,":",null,":",null,":",null,":",null,":",null,":",null,":",null,":",null,":",null,":",null,":",null,":",null,":",null,":"]
["S11_S12","EP_SPE","EPS_CUR_IN",null,null,null,null,null,2019,":",null,":",null,":",null,":",null,":",null,":",null,":",null,":",null,":",null,":",null,":",null,":",null,":",null,":"]
["S11_S12","EP_SPE","EPS_CUR_IN",null,null,null,null,null,2020,":",null,":",null,":",null,":",null,":",null,":",null,":",null,":",null,":",null,":",null,":",null,":",null,":",null,":"]
["S11_S12","EP_SPE","EPS_CUR_IN",null,null,null,null,null,2021,":",null,":",null,":",null,":",null,":",null,":",null,":",null,":",null,":",null,":",null,":",null,":",null,":",null,":"]
["S11_S12","EP_SPE","EPS_CUR_IN",null,null,null,null,null,2022,":",null,":",null,":",null,":",null,":",null,":",null,":",null,":",null,":",null,":",null,":",null,":",null,":",null,":"]
["S11_S12","EP_SPE","EPS_CUR_IN",null,null,null,null,null,2023,":",null,":",null,":",null,":",null,":",null,":",null,":",null,":",null,":",null,":",null,":",null,":",null,":",null,":"]
["S11_S12","EP_SPE","EPS_CUR_IN",null,null,null,null,null,2024,":",null,":",null,":",null,":",null,":",null,":",null,":",null,":",null,":",null,":",null,":",null,":",null,":",null,":"]
["S11_S12","EP_SPE","EPS_CUR_IN",null,null,null,null,null,2025,":",null,":",null,":",null,":",null,":",null,":",null,":",null,":",null,":",null,":",null,":",null,":",null,":",null,":"]
["S11_S12","EP_SPE","EPS_CUR_IN",null,null,null,null,null,2026,":",null,":",null,":",null,":",null,":",null,":",null,":",null,":",null,":",null,":",null,":",null,":",null,":",null,":"]
["S11_S12","EP_SPE","EPS_CUR_IN",null,null,null,null,null,2027,":",null,":",null,":",null,":",null,":",null,":",null,":",null,":",null,":",null,":",null,":",null,":",null,":",null,":"]
["S11_S12","EP_SPE","EPS_CUR_IN",null,null,null,null,null,2028,":",null,":",null,":",null,":",null,":",null,":",null,":",null,":",null,":",null,":",null,":",null,":",null,":",null,":"]
["S11_S12","EP_SPE","EPS_CUR_IN",null,null,null,null,null,2029,":",null,":",null,":",null,":",null,":",null,":",null,":",null,":",null,":",null,":",null,":",null,":",null,":",null,":"]
["S11_S12","EP_SPE","EPS_CUR_IN",null,null,null,null,null,2030,":",null,":",null,":",null,":",null,":",null,":",null,":",null,":",null,":",null,":",null,":",null,":",null,":",null,":"]
["S11_S12","EP_SPE","EPS_CUR_IN",null,null,null,null,null,2031,":",null,":",null,":",null,":",null,":",null,":",null,":",null,":",null,":",null,":",null,":",null,":",null,":",null,":"]
["S11_S12","EP_SPE","EPS_D29X39",null,"( D29-D39.2 ) Other taxes less subsidies on production",null,null,null,2014,":",null,":",null,":",null,":",null,":",null,":",null,":",null,":",null,":",null,":",null,":",null,":",null,":",null,":"]
["S11_S12","EP_SPE","EPS_D29X39",null,null,null,null,null,2015,":",null,":",null,":",null,":",null,":",null,":",null,":",null,":",null,":",null,":",null,":",null,":",null,":",null,":"]
["S11_S12","EP_SPE","EPS_D29X39",null,null,null,null,null,2016,":",null,":",null,":",null,":",null,":",null,":",null,":",null,":",null,":",null,":",null,":",null,":",null,":",null,":"]
["S11_S12","EP_SPE","EPS_D29X39",null,null,null,null,null,2017,":",null,":",null,":",null,":",null,":",null,":",null,":",null,":",null,":",null,":",null,":",null,{"$f":"IF(COUNT(J136,N136,P136,R136,T136,V136,AD136)=7,SUM(J136,N136,P136,R136,T136,V136,AD136),\":\")","v":":"},null,":",null,":"]
["S11_S12","EP_SPE","EPS_D29X39",null,null,null,null,null,2018,":",null,":",null,":",null,":",null,":",null,":",null,":",null,":",null,":",null,":",null,":",null,":",null,":",null,":"]
["S11_S12","EP_SPE","EPS_D29X39",null,null,null,null,null,2019,":",null,":",null,":",null,":",null,":",null,":",null,":",null,":",null,":",null,":",null,":",null,":",null,":",null,":"]
["S11_S12","EP_SPE","EPS_D29X39",null,null,null,null,null,2020,":",null,":",null,":",null,":",null,":",null,":",null,":",null,":",null,":",null,":",null,":",null,":",null,":",null,":"]
["S11_S12","EP_SPE","EPS_D29X39",null,null,null,null,null,2021,":",null,":",null,":",null,":",null,":",null,":",null,":",null,":",null,":",null,":",null,":",null,":",null,":",null,":"]
["S11_S12","EP_SPE","EPS_D29X39",null,null,null,null,null,2022,":",null,":",null,":",null,":",null,":",null,":",null,":",null,":",null,":",null,":",null,":",null,":",null,":",null,":"]
["S11_S12","EP_SPE","EPS_D29X39",null,null,null,null,null,2023,":",null,":",null,":",null,":",null,":",null,":",null,":",null,":",null,":",null,":",null,":",null,":",null,":",null,":"]
["S11_S12","EP_SPE","EPS_D29X39",null,null,null,null,null,2024,":",null,":",null,":",null,":",null,":",null,":",null,":",null,":",null,":",null,":",null,":",null,":",null,":",null,":"]
["S11_S12","EP_SPE","EPS_D29X39",null,null,null,null,null,2025,":",null,":",null,":",null,":",null,":",null,":",null,":",null,":",null,":",null,":",null,":",null,":",null,":",null,":"]
["S11_S12","EP_SPE","EPS_D29X39",null,null,null,null,null,2026,":",null,":",null,":",null,":",null,":",null,":",null,":",null,":",null,":",null,":",null,":",null,":",null,":",null,":"]
["S11_S12","EP_SPE","EPS_D29X39",null,null,null,null,null,2027,":",null,":",null,":",null,":",null,":",null,":",null,":",null,":",null,":",null,":",null,":",null,":",null,":",null,":"]
["S11_S12","EP_SPE","EPS_D29X39",null,null,null,null,null,2028,":",null,":",null,":",null,":",null,":",null,":",null,":",null,":",null,":",null,":",null,":",null,":",null,":",null,":"]
["S11_S12","EP_SPE","EPS_D29X39",null,null,null,null,null,2029,":",null,":",null,":",null,":",null,":",null,":",null,":",null,":",null,":",null,":",null,":",null,":",null,":",null,":"]
["S11_S12","EP_SPE","EPS_D29X39",null,null,null,null,null,2030,":",null,":",null,":",null,":",null,":",null,":",null,":",null,":",null,":",null,":",null,":",null,":",null,":",null,":"]
["S11_S12","EP_SPE","EPS_D29X39",null,null,null,null,null,2031,":",null,":",null,":",null,":",null,":",null,":",null,":",null,":",null,":",null,":",null,":",null,":",null,":",null,":"]
["S11_S12","EP_SPE","EPS_P51C",null,"( P51C.2 ) Consumption of fixed capital",null,null,null,2014,":",null,":",null,":",null,":",null,":",null,":",null,":",null,":",null,":",null,":",null,":",null,":",null,":",null,":"]
["S11_S12","EP_SPE","EPS_P51C",null,null,null,null,null,2015,":",null,":",null,":",null,":",null,":",null,":",null,":",null,":",null,":",null,":",null,":",null,":",null,":",null,":"]
["S11_S12","EP_SPE","EPS_P51C",null,null,null,null,null,2016,":",null,":",null,":",null,":",null,":",null,":",null,":",null,":",null,":",null,":",null,":",null,":",null,":",null,":"]
["S11_S12","EP_SPE","EPS_P51C",null,null,null,null,null,2017,":",null,":",null,":",null,":",null,":",null,":",null,":",null,":",null,":",null,":",null,":",null,":",null,":",null,":"]
["S11_S12","EP_SPE","EPS_P51C",null,null,null,null,null,2018,":",null,":",null,":",null,":",null,":",null,":",null,":",null,":",null,":",null,":",null,":",null,":",null,":",null,":"]
["S11_S12","EP_SPE","EPS_P51C",null,null,null,null,null,2019,":",null,":",null,":",null,":",null,":",null,":",null,":",null,":",null,":",null,":",null,":",null,":",null,":",null,":"]
["S11_S12","EP_SPE","EPS_P51C",null,null,null,null,null,2020,":",null,":",null,":",null,":",null,":",null,":",null,":",null,":",null,":",null,":",null,":",null,":",null,":",null,":"]
["S11_S12","EP_SPE","EPS_P51C",null,null,null,null,null,2021,":",null,":",null,":",null,":",null,":",null,":",null,":",null,":",null,":",null,":",null,":",null,":",null,":",null,":"]
["S11_S12","EP_SPE","EPS_P51C",null,null,null,null,null,2022,":",null,":",null,":",null,":",null,":",null,":",null,":",null,":",null,":",null,":",null,":",null,":",null,":",null,":"]
["S11_S12","EP_SPE","EPS_P51C",null,null,null,null,null,2023,":",null,":",null,":",null,":",null,":",null,":",null,":",null,":",null,":",null,":",null,":",null,":",null,":",null,":"]
["S11_S12","EP_SPE","EPS_P51C",null,null,null,null,null,2024,":",null,":",null,":",null,":",null,":",null,":",null,":",null,":",null,":",null,":",null,":",null,":",null,":",null,":"]
["S11_S12","EP_SPE","EPS_P51C",null,null,null,null,null,2025,":",null,":",null,":",null,":",null,":",null,":",null,":",null,":",null,":",null,":",null,":",null,":",null,":",null,":"]
["S11_S12","EP_SPE","EPS_P51C",null,null,null,null,null,2026,":",null,":",null,":",null,":",null,":",null,":",null,":",null,":",null,":",null,":",null,":",null,":",null,":",null,":"]
["S11_S12","EP_SPE","EPS_P51C",null,null,null,null,null,2027,":",null,":",null,":",null,":",null,":",null,":",null,":",null,":",null,":",null,":",null,":",null,":",null,":",null,":"]
["S11_S12","EP_SPE","EPS_P51C",null,null,null,null,null,2028,":",null,":",null,":",null,":",null,":",null,":",null,":",null,":",null,":",null,":",null,":",null,":",null,":",null,":"]
["S11_S12","EP_SPE","EPS_P51C",null,null,null,null,null,2029,":",null,":",null,":",null,":",null,":",null,":",null,":",null,":",null,":",null,":",null,":",null,":",null,":",null,":"]
["S11_S12","EP_SPE","EPS_P51C",null,null,null,null,null,2030,":",null,":",null,":",null,":",null,":",null,":",null,":",null,":",null,":",null,":",null,":",null,":",null,":",null,":"]
["S11_S12","EP_SPE","EPS_P51C",null,null,null,null,null,2031,":",null,":",null,":",null,":",null,":",null,":",null,":",null,":",null,":",null,":",null,":",null,":",null,":",null,":"]
["S11_S12","EP_SPE","EPS_B2N",null,"( B2N.2 ) Net operating surplus ((P11.2) + (RNO.2) - (P2.2) - (D1.2) - (P51C.2) - (D29-D39.2))",null,null,null,2014,":",null,":",null,":",null,":",null,":",null,":",null,":",null,":",null,":",null,":",null,":",null,":",null,":",null,":"]
["S11_S12","EP_SPE","EPS_B2N",null,null,null,null,null,2015,":",null,":",null,":",null,":",null,":",null,":",null,":",null,":",null,":",null,":",null,":",null,":",null,":",null,":"]
["S11_S12","EP_SPE","EPS_B2N",null,null,null,null,null,2016,":",null,":",null,":",null,":",null,":",null,":",null,":",null,":",null,":",null,":",null,":",null,":",null,":",null,":"]
["S11_S12","EP_SPE","EPS_B2N",null,null,null,null,null,2017,":",null,":",null,":",null,":",null,":",null,":",null,":",null,":",null,":",null,":",null,":",null,":",null,":",null,":"]
["S11_S12","EP_SPE","EPS_B2N",null,null,null,null,null,2018,":",null,":",null,":",null,":",null,":",null,":",null,":",null,":",null,":",null,":",null,":",null,":",null,":",null,":"]
["S11_S12","EP_SPE","EPS_B2N",null,null,null,null,null,2019,":",null,":",null,":",null,":",null,":",null,":",null,":",null,":",null,":",null,":",null,":",null,":",null,":",null,":"]
["S11_S12","EP_SPE","EPS_B2N",null,null,null,null,null,2020,":",null,":",null,":",null,":",null,":",null,":",null,":",null,":",null,":",null,":",null,":",null,":",null,":",null,":"]
["S11_S12","EP_SPE","EPS_B2N",null,null,null,null,null,2021,":",null,":",null,":",null,":",null,":",null,":",null,":",null,":",null,":",null,":",null,":",null,":",null,":",null,":"]
["S11_S12","EP_SPE","EPS_B2N",null,null,null,null,null,2022,":",null,":",null,":",null,":",null,":",null,":",null,":",null,":",null,":",null,":",null,":",null,":",null,":",null,":"]
["S11_S12","EP_SPE","EPS_B2N",null,null,null,null,null,2023,":",null,":",null,":",null,":",null,":",null,":",null,":",null,":",null,":",null,":",null,":",null,":",null,":",null,":"]
["S11_S12","EP_SPE","EPS_B2N",null,null,null,null,null,2024,":",null,":",null,":",null,":",null,":",null,":",null,":",null,":",null,":",null,":",null,":",null,":",null,":",null,":"]
["S11_S12","EP_SPE","EPS_B2N",null,null,null,null,null,2025,":",null,":",null,":",null,":",null,":",null,":",null,":",null,":",null,":",null,":",null,":",null,":",null,":",null,":"]
["S11_S12","EP_SPE","EPS_B2N",null,null,null,null,null,2026,":",null,":",null,":",null,":",null,":",null,":",null,":",null,":",null,":",null,":",null,":",null,":",null,":",null,":"]
["S11_S12","EP_SPE","EPS_B2N",null,null,null,null,null,2027,":",null,":",null,":",null,":",null,":",null,":",null,":",null,":",null,":",null,":",null,":",null,":",null,":",null,":"]
["S11_S12","EP_SPE","EPS_B2N",null,null,null,null,null,2028,":",null,":",null,":",null,":",null,":",null,":",null,":",null,":",null,":",null,":",null,":",null,":",null,":",null,":"]
["S11_S12","EP_SPE","EPS_B2N",null,null,null,null,null,2029,":",null,":",null,":",null,":",null,":",null,":",null,":",null,":",null,":",null,":",null,":",null,":",null,":",null,":"]
["S11_S12","EP_SPE","EPS_B2N",null,null,null,null,null,2030,":",null,":",null,":",null,":",null,":",null,":",null,":",null,":",null,":",null,":",null,":",null,":",null,":",null,":"]
["S11_S12","EP_SPE","EPS_B2N",null,null,null,null,null,2031,":",null,":",null,":",null,":",null,":",null,":",null,":",null,":",null,":",null,":",null,":",null,":",null,":",null,":"]
["S11_S12","EP_SPE","EPS_P11",null,"( P11.2 ) Market output of EP services / RM products ((P11_MA.2) + (P11_SA.2.))",null,null,null,2014,":",null,":",null,":",null,":",null,":",null,":",null,":",null,":",null,":",null,":",null,":",null,":",null,":",null,":"]
["S11_S12","EP_SPE","EPS_P11",null,null,null,null,null,2015,":",null,":",null,":",null,":",null,":",null,":",null,":",null,":",null,":",null,":",null,":",null,":",null,":",null,":"]
["S11_S12","EP_SPE","EPS_P11",null,null,null,null,null,2016,":",null,":",null,":",null,":",null,":",null,":",null,":",null,":",null,":",null,":",null,":",null,":",null,":",null,":"]
["S11_S12","EP_SPE","EPS_P11",null,null,null,null,null,2017,":",null,":",null,":",null,":",null,":",null,":",null,":",null,":",null,":",null,":",null,":",null,":",null,":",null,":"]
["S11_S12","EP_SPE","EPS_P11",null,null,null,null,null,2018,":",null,":",null,":",null,":",null,":",null,":",null,":",null,":",null,":",null,":",null,":",null,":",null,":",null,":"]
["S11_S12","EP_SPE","EPS_P11",null,null,null,null,null,2019,":",null,":",null,":",null,":",null,":",null,":",null,":",null,":",null,":",null,":",null,":",null,":",null,":",null,":"]
["S11_S12","EP_SPE","EPS_P11",null,null,null,null,null,2020,":",null,":",null,":",null,":",null,":",null,":",null,":",null,":",null,":",null,":",null,":",null,":",null,":",null,":"]
["S11_S12","EP_SPE","EPS_P11",null,null,null,null,null,2021,":",null,":",null,":",null,":",null,":",null,":",null,":",null,":",null,":",null,":",null,":",null,":",null,":",null,":"]
["S11_S12","EP_SPE","EPS_P11",null,null,null,null,null,2022,":",null,":",null,":",null,":",null,":",null,":",null,":",null,":",null,":",null,":",null,":",null,":",null,":",null,":"]
["S11_S12","EP_SPE","EPS_P11",null,null,null,null,null,2023,":",null,":",null,":",null,":",null,":",null,":",null,":",null,":",null,":",null,":",null,":",null,":",null,":",null,":"]
["S11_S12","EP_SPE","EPS_P11",null,null,null,null,null,2024,":",null,":",null,":",null,":",null,":",null,":",null,":",null,":",null,":",null,":",null,":",null,":",null,":",null,":"]
["S11_S12","EP_SPE","EPS_P11",null,null,null,null,null,2025,":",null,":",null,":",null,":",null,":",null,":",null,":",null,":",null,":",null,":",null,":",null,":",null,":",null,":"]
["S11_S12","EP_SPE","EPS_P11",null,null,null,null,null,2026,":",null,":",null,":",null,":",null,":",null,":",null,":",null,":",null,":",null,":",null,":",null,":",null,":",null,":"]
["S11_S12","EP_SPE","EPS_P11",null,null,null,null,null,2027,":",null,":",null,":",null,":",null,":",null,":",null,":",null,":",null,":",null,":",null,":",null,{"$f":"IF(COUNT(J200,N200,P200,R200,T200,V200,AD200)=7,SUM(J200,N200,P200,R200,T200,V200,AD200),\":\")","v":":"},null,":",null,":"]
["S11_S12","EP_SPE","EPS_P11",null,null,null,null,null,2028,":",null,":",null,":",null,":",null,":",null,":",null,":",null,":",null,":",null,":",null,":",null,":",null,":",null,":"]
["S11_S12","EP_SPE","EPS_P11",null,null,null,null,null,2029,":",null,":",null,":",null,":",null,":",null,":",null,":",null,":",null,":",null,":",null,":",null,":",null,":",null,":"]
["S11_S12","EP_SPE","EPS_P11",null,null,null,null,null,2030,":",null,":",null,":",null,":",null,":",null,":",null,":",null,":",null,":",null,":",null,":",null,":",null,":",null,":"]
["S11_S12","EP_SPE","EPS_P11",null,null,null,null,null,2031,":",null,":",null,":",null,":",null,":",null,":",null,":",null,":",null,":",null,":",null,":",null,":",null,":",null,":"]
["S11_S12","EP_SPE","EPS_P11_MA",null,"( P11_MA.2 ) Market output of EP services / RM products (from the main activity)",null,null,null,2014,":",null,":",null,":",null,":",null,":",null,":",null,":",null,":",null,":",null,":",null,":",null,":",null,":",null,":"]
["S11_S12","EP_SPE","EPS_P11_MA",null,null,null,null,null,2015,":",null,":",null,":",null,":",null,":",null,":",null,":",null,":",null,":",null,":",null,":",null,":",null,":",null,":"]
["S11_S12","EP_SPE","EPS_P11_MA",null,null,null,null,null,2016,":",null,":",null,":",null,":",null,":",null,":",null,":",null,":",null,":",null,":",null,":",null,":",null,":",null,":"]
["S11_S12","EP_SPE","EPS_P11_MA",null,null,null,null,null,2017,":",null,":",null,":",null,":",null,":",null,":",null,":",null,":",null,":",null,":",null,":",null,":",null,":",null,":"]
["S11_S12","EP_SPE","EPS_P11_MA",null,null,null,null,null,2018,":",null,":",null,":",null,":",null,":",null,":",null,":",null,":",null,":",null,":",null,":",null,":",null,":",null,":"]
["S11_S12","EP_SPE","EPS_P11_MA",null,null,null,null,null,2019,":",null,":",null,":",null,":",null,":",null,":",null,":",null,":",null,":",null,":",null,":",null,":",null,":",null,":"]
["S11_S12","EP_SPE","EPS_P11_MA",null,null,null,null,null,2020,":",null,":",null,":",null,":",null,":",null,":",null,":",null,":",null,":",null,":",null,":",null,":",null,":",null,":"]
["S11_S12","EP_SPE","EPS_P11_MA",null,null,null,null,null,2021,":",null,":",null,":",null,":",null,":",null,":",null,":",null,":",null,":",null,":",null,":",null,":",null,":",null,":"]
["S11_S12","EP_SPE","EPS_P11_MA",null,null,null,null,null,2022,":",null,":",null,":",null,":",null,":",null,":",null,":",null,":",null,":",null,":",null,":",null,":",null,":",null,":"]
["S11_S12","EP_SPE","EPS_P11_MA",null,null,null,null,null,2023,":",null,":",null,":",null,":",null,":",null,":",null,":",null,":",null,":",null,":",null,":",null,":",null,":",null,":"]
["S11_S12","EP_SPE","EPS_P11_MA",null,null,null,null,null,2024,":",null,":",null,":",null,":",null,":",null,":",null,":",null,":",null,":",null,":",null,":",null,":",null,":",null,":"]
["S11_S12","EP_SPE","EPS_P11_MA",null,null,null,null,null,2025,":",null,":",null,":",null,":",null,":",null,":",null,":",null,":",null,":",null,":",null,":",null,":",null,":",null,":"]
["S11_S12","EP_SPE","EPS_P11_MA",null,null,null,null,null,2026,":",null,":",null,":",null,":",null,":",null,":",null,":",null,":",null,":",null,":",null,":",null,":",null,":",null,":"]
["S11_S12","EP_SPE","EPS_P11_MA",null,null,null,null,null,2027,":",null,":",null,":",null,":",null,":",null,":",null,":",null,":",null,":",null,":",null,":",null,":",null,":",null,":"]
["S11_S12","EP_SPE","EPS_P11_MA",null,null,null,null,null,2028,":",null,":",null,":",null,":",null,":",null,":",null,":",null,":",null,":",null,":",null,":",null,":",null,":",null,":"]
["S11_S12","EP_SPE","EPS_P11_MA",null,null,null,null,null,2029,":",null,":",null,":",null,":",null,":",null,":",null,":",null,":",null,":",null,":",null,":",null,":",null,":",null,":"]
["S11_S12","EP_SPE","EPS_P11_MA",null,null,null,null,null,2030,":",null,":",null,":",null,":",null,":",null,":",null,":",null,":",null,":",null,":",null,":",null,":",null,":",null,":"]
["S11_S12","EP_SPE","EPS_P11_MA",null,null,null,null,null,2031,":",null,":",null,":",null,":",null,":",null,":",null,":",null,":",null,":",null,":",null,":",null,":",null,":",null,":"]
["S11_S12","EP_SPE","EPS_P11_SA",null,"( P11_SA.2 ) Market output of EP services / RM products (from secondary activities)",null,null,null,2014,":",null,":",null,":",null,":",null,":",null,":",null,":",null,":",null,":",null,":",null,":",null,":",null,":",null,":"]
["S11_S12","EP_SPE","EPS_P11_SA",null,null,null,null,null,2015,":",null,":",null,":",null,":",null,":",null,":",null,":",null,":",null,":",null,":",null,":",null,":",null,":",null,":"]
["S11_S12","EP_SPE","EPS_P11_SA",null,null,null,null,null,2016,":",null,":",null,":",null,":",null,":",null,":",null,":",null,":",null,":",null,":",null,":",null,":",null,":",null,":"]
["S11_S12","EP_SPE","EPS_P11_SA",null,null,null,null,null,2017,":",null,":",null,":",null,":",null,":",null,":",null,":",null,":",null,":",null,":",null,":",null,":",null,":",null,":"]
["S11_S12","EP_SPE","EPS_P11_SA",null,null,null,null,null,2018,":",null,":",null,":",null,":",null,":",null,":",null,":",null,":",null,":",null,":",null,":",null,":",null,":",null,":"]
["S11_S12","EP_SPE","EPS_P11_SA",null,null,null,null,null,2019,":",null,":",null,":",null,":",null,":",null,":",null,":",null,":",null,":",null,":",null,":",null,":",null,":",null,":"]
["S11_S12","EP_SPE","EPS_P11_SA",null,null,null,null,null,2020,":",null,":",null,":",null,":",null,":",null,":",null,":",null,":",null,":",null,":",null,":",null,":",null,":",null,":"]
["S11_S12","EP_SPE","EPS_P11_SA",null,null,null,null,null,2021,":",null,":",null,":",null,":",null,":",null,":",null,":",null,":",null,":",null,":",null,":",null,":",null,":",null,":"]
["S11_S12","EP_SPE","EPS_P11_SA",null,null,null,null,null,2022,":",null,":",null,":",null,":",null,":",null,":",null,":",null,":",null,":",null,":",null,":",null,":",null,":",null,":"]
["S11_S12","EP_SPE","EPS_P11_SA",null,null,null,null,null,2023,":",null,":",null,":",null,":",null,":",null,":",null,":",null,":",null,":",null,":",null,":",null,":",null,":",null,":"]
["S11_S12","EP_SPE","EPS_P11_SA",null,null,null,null,null,2024,":",null,":",null,":",null,":",null,":",null,":",null,":",null,":",null,":",null,":",null,":",null,":",null,":",null,":"]
["S11_S12","EP_SPE","EPS_P11_SA",null,null,null,null,null,2025,":",null,":",null,":",null,":",null,":",null,":",null,":",null,":",null,":",null,":",null,":",null,":",null,":",null,":"]
["S11_S12","EP_SPE","EPS_P11_SA",null,null,null,null,null,2026,":",null,":",null,":",null,":",null,":",null,":",null,":",null,":",null,":",null,":",null,":",null,":",null,":",null,":"]
["S11_S12","EP_SPE","EPS_P11_SA",null,null,null,null,null,2027,":",null,":",null,":",null,":",null,":",null,":",null,":",null,":",null,":",null,":",null,":",null,":",null,":",null,":"]
["S11_S12","EP_SPE","EPS_P11_SA",null,null,null,null,null,2028,":",null,":",null,":",null,":",null,":",null,":",null,":",null,":",null,":",null,":",null,":",null,":",null,":",null,":"]
["S11_S12","EP_SPE","EPS_P11_SA",null,null,null,null,null,2029,":",null,":",null,":",null,":",null,":",null,":",null,":",null,":",null,":",null,":",null,":",null,":",null,":",null,":"]
["S11_S12","EP_SPE","EPS_P11_SA",null,null,null,null,null,2030,":",null,":",null,":",null,":",null,":",null,":",null,":",null,":",null,":",null,":",null,":",null,":",null,":",null,":"]
["S11_S12","EP_SPE","EPS_P11_SA",null,null,null,null,null,2031,":",null,":",null,":",null,":",null,":",null,":",null,":",null,":",null,":",null,":",null,":",null,":",null,":",null,":"]
["S11_S12","EP_SPE","EPS_REC_BYPR",null,"( RNO.2 ) Related non-EP/RM output",null,null,null,2014,":",null,":",null,":",null,":",null,":",null,":",null,":",null,":",null,":",null,":",null,":",null,":",null,":",null,":"]
["S11_S12","EP_SPE","EPS_REC_BYPR",null,null,null,null,null,2015,":",null,":",null,":",null,":",null,":",null,":",null,":",null,":",null,":",null,":",null,":",null,":",null,":",null,":"]
["S11_S12","EP_SPE","EPS_REC_BYPR",null,null,null,null,null,2016,":",null,":",null,":",null,":",null,":",null,":",null,":",null,":",null,":",null,":",null,":",null,":",null,":",null,":"]
["S11_S12","EP_SPE","EPS_REC_BYPR",null,null,null,null,null,2017,":",null,":",null,":",null,":",null,":",null,":",null,":",null,":",null,":",null,":",null,":",null,":",null,":",null,":"]
["S11_S12","EP_SPE","EPS_REC_BYPR",null,null,null,null,null,2018,":",null,":",null,":",null,":",null,":",null,":",null,":",null,":",null,":",null,":",null,":",null,":",null,":",null,":"]
["S11_S12","EP_SPE","EPS_REC_BYPR",null,null,null,null,null,2019,":",null,":",null,":",null,":",null,":",null,":",null,":",null,":",null,":",null,":",null,":",null,":",null,":",null,":"]
["S11_S12","EP_SPE","EPS_REC_BYPR",null,null,null,null,null,2020,":",null,":",null,":",null,":",null,":",null,":",null,":",null,":",null,":",null,":",null,":",null,":",null,":",null,":"]
["S11_S12","EP_SPE","EPS_REC_BYPR",null,null,null,null,null,2021,":",null,":",null,":",null,":",null,":",null,":",null,":",null,":",null,":",null,":",null,":",null,":",null,":",null,":"]
["S11_S12","EP_SPE","EPS_REC_BYPR",null,null,null,null,null,2022,":",null,":",null,":",null,":",null,":",null,":",null,":",null,":",null,":",null,":",null,":",null,":",null,":",null,":"]
["S11_S12","EP_SPE","EPS_REC_BYPR",null,null,null,null,null,2023,":",null,":",null,":",null,":",null,":",null,":",null,":",null,":",null,":",null,":",null,":",null,":",null,":",null,":"]
["S11_S12","EP_SPE","EPS_REC_BYPR",null,null,null,null,null,2024,":",null,":",null,":",null,":",null,":",null,":",null,":",null,":",null,":",null,":",null,":",null,":",null,":",null,":"]
["S11_S12","EP_SPE","EPS_REC_BYPR",null,null,null,null,null,2025,":",null,":",null,":",null,":",null,":",null,":",null,":",null,":",null,":",null,":",null,":",null,":",null,":",null,":"]
["S11_S12","EP_SPE","EPS_REC_BYPR",null,null,null,null,null,2026,":",null,":",null,":",null,":",null,":",null,":",null,":",null,":",null,":",null,":",null,":",null,":",null,":",null,":"]
["S11_S12","EP_SPE","EPS_REC_BYPR",null,null,null,null,null,2027,":",null,":",null,":",null,":",null,":",null,":",null,":",null,":",null,":",null,":",null,":",null,":",null,":",null,":"]
["S11_S12","EP_SPE","EPS_REC_BYPR",null,null,null,null,null,2028,":",null,":",null,":",null,":",null,":",null,":",null,":",null,":",null,":",null,":",null,":",null,":",null,":",null,":"]
["S11_S12","EP_SPE","EPS_REC_BYPR",null,null,null,null,null,2029,":",null,":",null,":",null,":",null,":",null,":",null,":",null,":",null,":",null,":",null,":",null,":",null,":",null,":"]
["S11_S12","EP_SPE","EPS_REC_BYPR",null,null,null,null,null,2030,":",null,":",null,":",null,":",null,":",null,":",null,":",null,":",null,":",null,":",null,":",null,":",null,":",null,":"]
["S11_S12","EP_SPE","EPS_REC_BYPR",null,null,null,null,null,2031,":",null,":",null,":",null,":",null,":",null,":",null,":",null,":",null,":",null,":",null,":",null,":",null,":",null,":"]
["S11_S12","EP_SPE","TOT_P2_EPS","Transactions as users \nof EP services / RM products","( P2_EPS_EXT.2 ) Total intermediate consumption of EP services/ RM products (for production of EP services/ RM products and for other production)",null,null,null,2014,":",null,":",null,":",null,":",null,":",null,":",null,":",null,":",null,":",null,":",null,":",null,":",null,":",null,":"]
["S11_S12","EP_SPE","TOT_P2_EPS",null,"(P2_EPS_EXT.2: please consider the explanatory notes - click here)",null,null,null,2015,":",null,":",null,":",null,":",null,":",null,":",null,":",null,":",null,":",null,":",null,":",null,":",null,":",null,":"]
["S11_S12","EP_SPE","TOT_P2_EPS",null,null,null,null,null,2016,":",null,":",null,":",null,":",null,":",null,":",null,":",null,":",null,":",null,":",null,":",null,":",null,":",null,":"]
["S11_S12","EP_SPE","TOT_P2_EPS",null,null,null,null,null,2017,":",null,":",null,":",null,":",null,":",null,":",null,":",null,":",null,":",null,":",null,":",null,":",null,":",null,":"]
["S11_S12","EP_SPE","TOT_P2_EPS",null,null,null,null,null,2018,":",null,":",null,":",null,":",null,":",null,":",null,":",null,":",null,":",null,":",null,":",null,":",null,":",null,":"]
["S11_S12","EP_SPE","TOT_P2_EPS",null,null,null,null,null,2019,":",null,":",null,":",null,":",null,":",null,":",null,":",null,":",null,":",null,":",null,":",null,{"$f":"IF(COUNT(J264,N264,P264,R264,T264,V264,AD264)=7,SUM(J264,N264,P264,R264,T264,V264,AD264),\":\")","v":":"},null,":",null,":"]
["S11_S12","EP_SPE","TOT_P2_EPS",null,null,null,null,null,2020,":",null,":",null,":",null,":",null,":",null,":",null,":",null,":",null,":",null,":",null,":",null,":",null,":",null,":"]
["S11_S12","EP_SPE","TOT_P2_EPS",null,null,null,null,null,2021,":",null,":",null,":",null,":",null,":",null,":",null,":",null,":",null,":",null,":",null,":",null,":",null,":",null,":"]
["S11_S12","EP_SPE","TOT_P2_EPS",null,null,null,null,null,2022,":",null,":",null,":",null,":",null,":",null,":",null,":",null,":",null,":",null,":",null,":",null,":",null,":",null,":"]
["S11_S12","EP_SPE","TOT_P2_EPS",null,null,null,null,null,2023,":",null,":",null,":",null,":",null,":",null,":",null,":",null,":",null,":",null,":",null,":",null,":",null,":",null,":"]
["S11_S12","EP_SPE","TOT_P2_EPS",null,null,null,null,null,2024,":",null,":",null,":",null,":",null,":",null,":",null,":",null,":",null,":",null,":",null,":",null,":",null,":",null,":"]
["S11_S12","EP_SPE","TOT_P2_EPS",null,null,null,null,null,2025,":",null,":",null,":",null,":",null,":",null,":",null,":",null,":",null,":",null,":",null,":",null,":",null,":",null,":"]
["S11_S12","EP_SPE","TOT_P2_EPS",null,null,null,null,null,2026,":",null,":",null,":",null,":",null,":",null,":",null,":",null,":",null,":",null,":",null,":",null,":",null,":",null,":"]
["S11_S12","EP_SPE","TOT_P2_EPS",null,null,null,null,null,2027,":",null,":",null,":",null,":",null,":",null,":",null,":",null,":",null,":",null,":",null,":",null,":",null,":",null,":"]
["S11_S12","EP_SPE","TOT_P2_EPS",null,null,null,null,null,2028,":",null,":",null,":",null,":",null,":",null,":",null,":",null,":",null,":",null,":",null,":",null,":",null,":",null,":"]
["S11_S12","EP_SPE","TOT_P2_EPS",null,null,null,null,null,2029,":",null,":",null,":",null,":",null,":",null,":",null,":",null,":",null,":",null,":",null,":",null,":",null,":",null,":"]
["S11_S12","EP_SPE","TOT_P2_EPS",null,null,null,null,null,2030,":",null,":",null,":",null,":",null,":",null,":",null,":",null,":",null,":",null,":",null,":",null,":",null,":",null,":"]
["S11_S12","EP_SPE","TOT_P2_EPS",null,null,null,null,null,2031,":",null,":",null,":",null,":",null,":",null,":",null,":",null,":",null,":",null,":",null,":",null,":",null,":",null,":"]
["S11_S12","EP_SPE","EPS_EMP","Transactions as producers \nof EP services / RM products","( EMP.2 ) Employment (Full time equivalents)",null,null,null,2014,":",null,":",null,":",null,":",null,":",null,":",null,":",null,":",null,":",null,":",null,":",null,":",null,":",null,":"]
["S11_S12","EP_SPE","EPS_EMP",null,null,null,null,null,2015,":",null,":",null,":",null,":",null,":",null,":",null,":",null,":",null,":",null,":",null,":",null,":",null,":",null,":"]
["S11_S12","EP_SPE","EPS_EMP",null,null,null,null,null,2016,":",null,":",null,":",null,":",null,":",null,":",null,":",null,":",null,":",null,":",null,":",null,":",null,":",null,":"]
["S11_S12","EP_SPE","EPS_EMP",null,null,null,null,null,2017,":",null,":",null,":",null,":",null,":",null,":",null,":",null,":",null,":",null,":",null,":",null,":",null,":",null,":"]
["S11_S12","EP_SPE","EPS_EMP",null,null,null,null,null,2018,":",null,":",null,":",null,":",null,":",null,":",null,":",null,":",null,":",null,":",null,":",null,":",null,":",null,":"]
["S11_S12","EP_SPE","EPS_EMP",null,null,null,null,null,2019,":",null,":",null,":",null,":",null,":",null,":",null,":",null,":",null,":",null,":",null,":",null,":",null,":",null,":"]
["S11_S12","EP_SPE","EPS_EMP",null,null,null,null,null,2020,":",null,":",null,":",null,":",null,":",null,":",null,":",null,":",null,":",null,":",null,":",null,":",null,":",null,":"]
["S11_S12","EP_SPE","EPS_EMP",null,null,null,null,null,2021,":",null,":",null,":",null,":",null,":",null,":",null,":",null,":",null,":",null,":",null,":",null,":",null,":",null,":"]
["S11_S12","EP_SPE","EPS_EMP",null,null,null,null,null,2022,":",null,":",null,":",null,":",null,":",null,":",null,":",null,":",null,":",null,":",null,":",null,":",null,":",null,":"]
["S11_S12","EP_SPE","EPS_EMP",null,null,null,null,null,2023,":",null,":",null,":",null,":",null,":",null,":",null,":",null,":",null,":",null,":",null,":",null,":",null,":",null,":"]
["S11_S12","EP_SPE","EPS_EMP",null,null,null,null,null,2024,":",null,":",null,":",null,":",null,":",null,":",null,":",null,":",null,":",null,":",null,":",null,":",null,":",null,":"]
["S11_S12","EP_SPE","EPS_EMP",null,null,null,null,null,2025,":",null,":",null,":",null,":",null,":",null,":",null,":",null,":",null,":",null,":",null,":",null,":",null,":",null,":"]
["S11_S12","EP_SPE","EPS_EMP",null,null,null,null,null,2026,":",null,":",null,":",null,":",null,":",null,":",null,":",null,":",null,":",null,":",null,":",null,":",null,":",null,":"]
["S11_S12","EP_SPE","EPS_EMP",null,null,null,null,null,2027,":",null,":",null,":",null,":",null,":",null,":",null,":",null,":",null,":",null,":",null,":",null,":",null,":",null,":"]
["S11_S12","EP_SPE","EPS_EMP",null,null,null,null,null,2028,":",null,":",null,":",null,":",null,":",null,":",null,":",null,":",null,":",null,":",null,":",null,":",null,":",null,":"]
["S11_S12","EP_SPE","EPS_EMP",null,null,null,null,null,2029,":",null,":",null,":",null,":",null,":",null,":",null,":",null,":",null,":",null,":",null,":",null,":",null,":",null,":"]
["S11_S12","EP_SPE","EPS_EMP",null,null,null,null,null,2030,":",null,":",null,":",null,":",null,":",null,":",null,":",null,":",null,":",null,":",null,":",null,":",null,":",null,":"]
["S11_S12","EP_SPE","EPS_EMP",null,null,null,null,null,2031,":",null,":",null,":",null,":",null,":",null,":",null,":",null,":",null,":",null,":",null,":",null,":",null,":",null,":"]

{"sheet":"3","index":13,"n_rows":258,"n_cols":32,"rows_kept":258,"cut":false,"hidden":false,"merged":[[9,4,9,7],[24,4,24,7],[186,4,186,7],[115,4,115,7],[116,4,116,7],[132,4,132,7],[133,4,133,7],[99,4,99,7],[151,4,151,7],[153,4,153,7],[168,4,168,7],[25,4,25,7],[26,4,26,7],[27,4,27,7],[42,4,42,7],[43,4,43,7],[223,4,223,7],[169,4,169,7],[170,4,170,7],[240,3,257,3],[240,4,240,7],[241,4,241,7],[242,4,242,7],[222,3,239,3],[6,3,221,3],[6,4,6,7],[7,4,7,7],[79,4,79,7],[187,4,187,7],[189,4,189,7],[204,4,204,7],[205,4,205,7],[222,4,222,7],[207,4,207,7],[45,4,45,7],[60,4,60,7],[78,4,78,7],[96,4,96,7],[97,4,97,7],[134,4,134,7],[150,4,150,7],[114,4,114,7],[3,31,4,32],[4,4,4,7],[3,19,4,20],[3,21,4,22],[3,23,4,24],[3,25,4,26],[3,27,4,28],[3,9,4,10],[3,11,4,12],[3,13,4,14],[3,15,4,16],[3,17,4,18],[3,29,4,30],[0,4,0,8],[0,9,0,15],[1,4,1,8],[1,9,1,32],[2,9,2,32]]}
[null,null,null,null,{"$f":"Cover!B21","v":"QUESTIONNAIRE ON ENVIRONMENTAL PROTECTION EXPENDITURE ACCOUNTS"},null,null,null,null,"Table 3. Corporations: other (also covering producers of ancillary EP services):  total"]
[null,null,null,null,{"$f":"E1","v":"QUESTIONNAIRE ON ENVIRONMENTAL PROTECTION EXPENDITURE ACCOUNTS"},null,null,null,null,{"$f":"J1","v":"Table 3. Corporations: other (also covering producers of ancillary EP services):  total"}]
[null,null,null,null,null,null,null,null,null,"Mandatory and voluntary variables and environmental domains - please fill in as much as possible"]
[null,null,null,null,"Country/Unit",{"$f":"IFERROR(Cover!C16,\"\")","v":""},{"$f":"\"\"&Cover!B16","v":""},null,{"$f":"Cover!B17","v":"Million units of national currency"},"CEPA 1",null,"of which CEPA 1.1.2 and 1.2.2 Climate change",null,"CEPA 2",null,"CEPA 3",null,"CEPA 4",null,"CEPA 5",null,"CEPA 6",null,"CEPA 7",null,"CEPA 8",null,"CEPA 9",null,"Sum of CEPA 7+8+9",null,"TOTAL"]
[null,null,null,null,"Expenditure",null,null,null,"Year",null,null,null,null,null,null,null,null,null,null,null,null,null,null,null,null,null,null,null,null,"Landscape",null,"Landscape"]
[null,null,null,null,null,null,null,null,null,"CEPA1",null,"CEPA112_122",null,"CEPA2",null,"CEPA3",null,"CEPA4",null,"CEPA5",null,"CEPA6",null,"CEPA7",null,"CEPA8",null,"CEPA9",null,"CEPA7-9",null,"TOT_CEPA"]
["S11_S12","EP_BUS","EPS_P51G_NP","Transactions of producers of ancillary EP services","( P51G_NP.3 ) Gross fixed capital formation and acquisition less disposals of non-financial non-produced assets",null,null,null,2014,{"$f":"IF(COUNT('3a'!J7,'3b'!J7,'3c'!J7,'3d'!J7,'3e (voluntary)'!J7)=0,\":\",SUM('3a'!J7,'3b'!J7,'3c'!J7,'3d'!J7,'3e (voluntary)'!J7))","v":":"},null,{"$f":"IF(COUNT('3a'!L7,'3b'!L7,'3c'!L7,'3d'!L7,'3e (voluntary)'!L7)=0,\":\",SUM('3a'!L7,'3b'!L7,'3c'!L7,'3d'!L7,'3e (voluntary)'!L7))","v":":"},null,{"$f":"IF(COUNT('3a'!N7,'3b'!N7,'3c'!N7,'3d'!N7,'3e (voluntary)'!N7)=0,\":\",SUM('3a'!N7,'3b'!N7,'3c'!N7,'3d'!N7,'3e (voluntary)'!N7))","v":":"},null,{"$f":"IF(COUNT('3a'!P7,'3b'!P7,'3c'!P7,'3d'!P7,'3e (voluntary)'!P7)=0,\":\",SUM('3a'!P7,'3b'!P7,'3c'!P7,'3d'!P7,'3e (voluntary)'!P7))","v":":"},null,{"$f":"IF(COUNT('3a'!R7,'3b'!R7,'3c'!R7,'3d'!R7,'3e (voluntary)'!R7)=0,\":\",SUM('3a'!R7,'3b'!R7,'3c'!R7,'3d'!R7,'3e (voluntary)'!R7))","v":":"},null,{"$f":"IF(COUNT('3a'!T7,'3b'!T7,'3c'!T7,'3d'!T7,'3e (voluntary)'!T7)=0,\":\",SUM('3a'!T7,'3b'!T7,'3c'!T7,'3d'!T7,'3e (voluntary)'!T7))","v":":"},null,{"$f":"IF(COUNT('3a'!V7,'3b'!V7,'3c'!V7,'3d'!V7,'3e (voluntary)'!V7)=0,\":\",SUM('3a'!V7,'3b'!V7,'3c'!V7,'3d'!V7,'3e (voluntary)'!V7))","v":":"},null,{"$f":"IF(COUNT('3a'!X7,'3b'!X7,'3c'!X7,'3d'!X7,'3e (voluntary)'!X7)=0,\":\",SUM('3a'!X7,'3b'!X7,'3c'!X7,'3d'!X7,'3e (voluntary)'!X7))","v":":"},null,{"$f":"IF(COUNT('3a'!Z7,'3b'!Z7,'3c'!Z7,'3d'!Z7,'3e (voluntary)'!Z7)=0,\":\",SUM('3a'!Z7,'3b'!Z7,'3c'!Z7,'3d'!Z7,'3e (voluntary)'!Z7))","v":":"},null,{"$f":"IF(COUNT('3a'!AB7,'3b'!AB7,'3c'!AB7,'3d'!AB7,'3e (voluntary)'!AB7)=0,\":\",SUM('3a'!AB7,'3b'!AB7,'3c'!AB7,'3d'!AB7,'3e (voluntary)'!AB7))","v":":"},null,{"$f":"IF(COUNT('3a'!AD7,'3b'!AD7,'3c'!AD7,'3d'!AD7,'3e (voluntary)'!AD7)=0,\":\",SUM('3a'!AD7,'3b'!AD7,'3c'!AD7,'3d'!AD7,'3e (voluntary)'!AD7))","v":":"},null,{"$f":"IF(COUNT('3a'!AF7,'3b'!AF7,'3c'!AF7,'3d'!AF7,'3e (voluntary)'!AF7)=0,\":\",SUM('3a'!AF7,'3b'!AF7,'3c'!AF7,'3d'!AF7,'3e (voluntary)'!AF7))","v":":"}]
["S11_S12","EP_BUS","EPS_P51G_NP",null,null,null,null,null,2015,{"$f":"IF(COUNT('3a'!J8,'3b'!J8,'3c'!J8,'3d'!J8,'3e (voluntary)'!J8)=0,\":\",SUM('3a'!J8,'3b'!J8,'3c'!J8,'3d'!J8,'3e (voluntary)'!J8))","v":":"},null,{"$f":"IF(COUNT('3a'!L8,'3b'!L8,'3c'!L8,'3d'!L8,'3e (voluntary)'!L8)=0,\":\",SUM('3a'!L8,'3b'!L8,'3c'!L8,'3d'!L8,'3e (voluntary)'!L8))","v":":"},null,{"$f":"IF(COUNT('3a'!N8,'3b'!N8,'3c'!N8,'3d'!N8,'3e (voluntary)'!N8)=0,\":\",SUM('3a'!N8,'3b'!N8,'3c'!N8,'3d'!N8,'3e (voluntary)'!N8))","v":":"},null,{"$f":"IF(COUNT('3a'!P8,'3b'!P8,'3c'!P8,'3d'!P8,'3e (voluntary)'!P8)=0,\":\",SUM('3a'!P8,'3b'!P8,'3c'!P8,'3d'!P8,'3e (voluntary)'!P8))","v":":"},null,{"$f":"IF(COUNT('3a'!R8,'3b'!R8,'3c'!R8,'3d'!R8,'3e (voluntary)'!R8)=0,\":\",SUM('3a'!R8,'3b'!R8,'3c'!R8,'3d'!R8,'3e (voluntary)'!R8))","v":":"},null,{"$f":"IF(COUNT('3a'!T8,'3b'!T8,'3c'!T8,'3d'!T8,'3e (voluntary)'!T8)=0,\":\",SUM('3a'!T8,'3b'!T8,'3c'!T8,'3d'!T8,'3e (voluntary)'!T8))","v":":"},null,{"$f":"IF(COUNT('3a'!V8,'3b'!V8,'3c'!V8,'3d'!V8,'3e (voluntary)'!V8)=0,\":\",SUM('3a'!V8,'3b'!V8,'3c'!V8,'3d'!V8,'3e (voluntary)'!V8))","v":":"},null,{"$f":"IF(COUNT('3a'!X8,'3b'!X8,'3c'!X8,'3d'!X8,'3e (voluntary)'!X8)=0,\":\",SUM('3a'!X8,'3b'!X8,'3c'!X8,'3d'!X8,'3e (voluntary)'!X8))","v":":"},null,{"$f":"IF(COUNT('3a'!Z8,'3b'!Z8,'3c'!Z8,'3d'!Z8,'3e (voluntary)'!Z8)=0,\":\",SUM('3a'!Z8,'3b'!Z8,'3c'!Z8,'3d'!Z8,'3e (voluntary)'!Z8))","v":":"},null,{"$f":"IF(COUNT('3a'!AB8,'3b'!AB8,'3c'!AB8,'3d'!AB8,'3e (voluntary)'!AB8)=0,\":\",SUM('3a'!AB8,'3b'!AB8,'3c'!AB8,'3d'!AB8,'3e (voluntary)'!AB8))","v":":"},null,{"$f":"IF(COUNT('3a'!AD8,'3b'!AD8,'3c'!AD8,'3d'!AD8,'3e (voluntary)'!AD8)=0,\":\",SUM('3a'!AD8,'3b'!AD8,'3c'!AD8,'3d'!AD8,'3e (voluntary)'!AD8))","v":":"},null,{"$f":"IF(COUNT('3a'!AF8,'3b'!AF8,'3c'!AF8,'3d'!AF8,'3e (voluntary)'!AF8)=0,\":\",SUM('3a'!AF8,'3b'!AF8,'3c'!AF8,'3d'!AF8,'3e (voluntary)'!AF8))","v":":"}]
["S11_S12","EP_BUS","EPS_P51G_NP",null,null,null,null,null,2016,{"$f":"IF(COUNT('3a'!J9,'3b'!J9,'3c'!J9,'3d'!J9,'3e (voluntary)'!J9)=0,\":\",SUM('3a'!J9,'3b'!J9,'3c'!J9,'3d'!J9,'3e (voluntary)'!J9))","v":":"},null,{"$f":"IF(COUNT('3a'!L9,'3b'!L9,'3c'!L9,'3d'!L9,'3e (voluntary)'!L9)=0,\":\",SUM('3a'!L9,'3b'!L9,'3c'!L9,'3d'!L9,'3e (voluntary)'!L9))","v":":"},null,{"$f":"IF(COUNT('3a'!N9,'3b'!N9,'3c'!N9,'3d'!N9,'3e (voluntary)'!N9)=0,\":\",SUM('3a'!N9,'3b'!N9,'3c'!N9,'3d'!N9,'3e (voluntary)'!N9))","v":":"},null,{"$f":"IF(COUNT('3a'!P9,'3b'!P9,'3c'!P9,'3d'!P9,'3e (voluntary)'!P9)=0,\":\",SUM('3a'!P9,'3b'!P9,'3c'!P9,'3d'!P9,'3e (voluntary)'!P9))","v":":"},null,{"$f":"IF(COUNT('3a'!R9,'3b'!R9,'3c'!R9,'3d'!R9,'3e (voluntary)'!R9)=0,\":\",SUM('3a'!R9,'3b'!R9,'3c'!R9,'3d'!R9,'3e (voluntary)'!R9))","v":":"},null,{"$f":"IF(COUNT('3a'!T9,'3b'!T9,'3c'!T9,'3d'!T9,'3e (voluntary)'!T9)=0,\":\",SUM('3a'!T9,'3b'!T9,'3c'!T9,'3d'!T9,'3e (voluntary)'!T9))","v":":"},null,{"$f":"IF(COUNT('3a'!V9,'3b'!V9,'3c'!V9,'3d'!V9,'3e (voluntary)'!V9)=0,\":\",SUM('3a'!V9,'3b'!V9,'3c'!V9,'3d'!V9,'3e (voluntary)'!V9))","v":":"},null,{"$f":"IF(COUNT('3a'!X9,'3b'!X9,'3c'!X9,'3d'!X9,'3e (voluntary)'!X9)=0,\":\",SUM('3a'!X9,'3b'!X9,'3c'!X9,'3d'!X9,'3e (voluntary)'!X9))","v":":"},null,{"$f":"IF(COUNT('3a'!Z9,'3b'!Z9,'3c'!Z9,'3d'!Z9,'3e (voluntary)'!Z9)=0,\":\",SUM('3a'!Z9,'3b'!Z9,'3c'!Z9,'3d'!Z9,'3e (voluntary)'!Z9))","v":":"},null,{"$f":"IF(COUNT('3a'!AB9,'3b'!AB9,'3c'!AB9,'3d'!AB9,'3e (voluntary)'!AB9)=0,\":\",SUM('3a'!AB9,'3b'!AB9,'3c'!AB9,'3d'!AB9,'3e (voluntary)'!AB9))","v":":"},null,{"$f":"IF(COUNT('3a'!AD9,'3b'!AD9,'3c'!AD9,'3d'!AD9,'3e (voluntary)'!AD9)=0,\":\",SUM('3a'!AD9,'3b'!AD9,'3c'!AD9,'3d'!AD9,'3e (voluntary)'!AD9))","v":":"},null,{"$f":"IF(COUNT('3a'!AF9,'3b'!AF9,'3c'!AF9,'3d'!AF9,'3e (voluntary)'!AF9)=0,\":\",SUM('3a'!AF9,'3b'!AF9,'3c'!AF9,'3d'!AF9,'3e (voluntary)'!AF9))","v":":"}]
["S11_S12","EP_BUS","EPS_P51G_NP",null,null,null,null,null,2017,{"$f":"IF(COUNT('3a'!J10,'3b'!J10,'3c'!J10,'3d'!J10,'3e (voluntary)'!J10)=0,\":\",SUM('3a'!J10,'3b'!J10,'3c'!J10,'3d'!J10,'3e (voluntary)'!J10))","v":":"},null,{"$f":"IF(COUNT('3a'!L10,'3b'!L10,'3c'!L10,'3d'!L10,'3e (voluntary)'!L10)=0,\":\",SUM('3a'!L10,'3b'!L10,'3c'!L10,'3d'!L10,'3e (voluntary)'!L10))","v":":"},null,{"$f":"IF(COUNT('3a'!N10,'3b'!N10,'3c'!N10,'3d'!N10,'3e (voluntary)'!N10)=0,\":\",SUM('3a'!N10,'3b'!N10,'3c'!N10,'3d'!N10,'3e (voluntary)'!N10))","v":":"},null,{"$f":"IF(COUNT('3a'!P10,'3b'!P10,'3c'!P10,'3d'!P10,'3e (voluntary)'!P10)=0,\":\",SUM('3a'!P10,'3b'!P10,'3c'!P10,'3d'!P10,'3e (voluntary)'!P10))","v":":"},null,{"$f":"IF(COUNT('3a'!R10,'3b'!R10,'3c'!R10,'3d'!R10,'3e (voluntary)'!R10)=0,\":\",SUM('3a'!R10,'3b'!R10,'3c'!R10,'3d'!R10,'3e (voluntary)'!R10))","v":":"},null,{"$f":"IF(COUNT('3a'!T10,'3b'!T10,'3c'!T10,'3d'!T10,'3e (voluntary)'!T10)=0,\":\",SUM('3a'!T10,'3b'!T10,'3c'!T10,'3d'!T10,'3e (voluntary)'!T10))","v":":"},null,{"$f":"IF(COUNT('3a'!V10,'3b'!V10,'3c'!V10,'3d'!V10,'3e (voluntary)'!V10)=0,\":\",SUM('3a'!V10,'3b'!V10,'3c'!V10,'3d'!V10,'3e (voluntary)'!V10))","v":":"},null,{"$f":"IF(COUNT('3a'!X10,'3b'!X10,'3c'!X10,'3d'!X10,'3e (voluntary)'!X10)=0,\":\",SUM('3a'!X10,'3b'!X10,'3c'!X10,'3d'!X10,'3e (voluntary)'!X10))","v":":"},null,{"$f":"IF(COUNT('3a'!Z10,'3b'!Z10,'3c'!Z10,'3d'!Z10,'3e (voluntary)'!Z10)=0,\":\",SUM('3a'!Z10,'3b'!Z10,'3c'!Z10,'3d'!Z10,'3e (voluntary)'!Z10))","v":":"},null,{"$f":"IF(COUNT('3a'!AB10,'3b'!AB10,'3c'!AB10,'3d'!AB10,'3e (voluntary)'!AB10)=0,\":\",SUM('3a'!AB10,'3b'!AB10,'3c'!AB10,'3d'!AB10,'3e (voluntary)'!AB10))","v":":"},null,{"$f":"IF(COUNT('3a'!AD10,'3b'!AD10,'3c'!AD10,'3d'!AD10,'3e (voluntary)'!AD10)=0,\":\",SUM('3a'!AD10,'3b'!AD10,'3c'!AD10,'3d'!AD10,'3e (voluntary)'!AD10))","v":":"},null,{"$f":"IF(COUNT('3a'!AF10,'3b'!AF10,'3c'!AF10,'3d'!AF10,'3e (voluntary)'!AF10)=0,\":\",SUM('3a'!AF10,'3b'!AF10,'3c'!AF10,'3d'!AF10,'3e (voluntary)'!AF10))","v":":"}]
["S11_S12","EP_BUS","EPS_P51G_NP",null,null,null,null,null,2018,{"$f":"IF(COUNT('3a'!J11,'3b'!J11,'3c'!J11,'3d'!J11,'3e (voluntary)'!J11)=0,\":\",SUM('3a'!J11,'3b'!J11,'3c'!J11,'3d'!J11,'3e (voluntary)'!J11))","v":":"},null,{"$f":"IF(COUNT('3a'!L11,'3b'!L11,'3c'!L11,'3d'!L11,'3e (voluntary)'!L11)=0,\":\",SUM('3a'!L11,'3b'!L11,'3c'!L11,'3d'!L11,'3e (voluntary)'!L11))","v":":"},null,{"$f":"IF(COUNT('3a'!N11,'3b'!N11,'3c'!N11,'3d'!N11,'3e (voluntary)'!N11)=0,\":\",SUM('3a'!N11,'3b'!N11,'3c'!N11,'3d'!N11,'3e (voluntary)'!N11))","v":":"},null,{"$f":"IF(COUNT('3a'!P11,'3b'!P11,'3c'!P11,'3d'!P11,'3e (voluntary)'!P11)=0,\":\",SUM('3a'!P11,'3b'!P11,'3c'!P11,'3d'!P11,'3e (voluntary)'!P11))","v":":"},null,{"$f":"IF(COUNT('3a'!R11,'3b'!R11,'3c'!R11,'3d'!R11,'3e (voluntary)'!R11)=0,\":\",SUM('3a'!R11,'3b'!R11,'3c'!R11,'3d'!R11,'3e (voluntary)'!R11))","v":":"},null,{"$f":"IF(COUNT('3a'!T11,'3b'!T11,'3c'!T11,'3d'!T11,'3e (voluntary)'!T11)=0,\":\",SUM('3a'!T11,'3b'!T11,'3c'!T11,'3d'!T11,'3e (voluntary)'!T11))","v":":"},null,{"$f":"IF(COUNT('3a'!V11,'3b'!V11,'3c'!V11,'3d'!V11,'3e (voluntary)'!V11)=0,\":\",SUM('3a'!V11,'3b'!V11,'3c'!V11,'3d'!V11,'3e (voluntary)'!V11))","v":":"},null,{"$f":"IF(COUNT('3a'!X11,'3b'!X11,'3c'!X11,'3d'!X11,'3e (voluntary)'!X11)=0,\":\",SUM('3a'!X11,'3b'!X11,'3c'!X11,'3d'!X11,'3e (voluntary)'!X11))","v":":"},null,{"$f":"IF(COUNT('3a'!Z11,'3b'!Z11,'3c'!Z11,'3d'!Z11,'3e (voluntary)'!Z11)=0,\":\",SUM('3a'!Z11,'3b'!Z11,'3c'!Z11,'3d'!Z11,'3e (voluntary)'!Z11))","v":":"},null,{"$f":"IF(COUNT('3a'!AB11,'3b'!AB11,'3c'!AB11,'3d'!AB11,'3e (voluntary)'!AB11)=0,\":\",SUM('3a'!AB11,'3b'!AB11,'3c'!AB11,'3d'!AB11,'3e (voluntary)'!AB11))","v":":"},null,{"$f":"IF(COUNT('3a'!AD11,'3b'!AD11,'3c'!AD11,'3d'!AD11,'3e (voluntary)'!AD11)=0,\":\",SUM('3a'!AD11,'3b'!AD11,'3c'!AD11,'3d'!AD11,'3e (voluntary)'!AD11))","v":":"},null,{"$f":"IF(COUNT('3a'!AF11,'3b'!AF11,'3c'!AF11,'3d'!AF11,'3e (voluntary)'!AF11)=0,\":\",SUM('3a'!AF11,'3b'!AF11,'3c'!AF11,'3d'!AF11,'3e (voluntary)'!AF11))","v":":"}]
["S11_S12","EP_BUS","EPS_P51G_NP",null,null,null,null,null,2019,{"$f":"IF(COUNT('3a'!J12,'3b'!J12,'3c'!J12,'3d'!J12,'3e (voluntary)'!J12)=0,\":\",SUM('3a'!J12,'3b'!J12,'3c'!J12,'3d'!J12,'3e (voluntary)'!J12))","v":":"},null,{"$f":"IF(COUNT('3a'!L12,'3b'!L12,'3c'!L12,'3d'!L12,'3e (voluntary)'!L12)=0,\":\",SUM('3a'!L12,'3b'!L12,'3c'!L12,'3d'!L12,'3e (voluntary)'!L12))","v":":"},null,{"$f":"IF(COUNT('3a'!N12,'3b'!N12,'3c'!N12,'3d'!N12,'3e (voluntary)'!N12)=0,\":\",SUM('3a'!N12,'3b'!N12,'3c'!N12,'3d'!N12,'3e (voluntary)'!N12))","v":":"},null,{"$f":"IF(COUNT('3a'!P12,'3b'!P12,'3c'!P12,'3d'!P12,'3e (voluntary)'!P12)=0,\":\",SUM('3a'!P12,'3b'!P12,'3c'!P12,'3d'!P12,'3e (voluntary)'!P12))","v":":"},null,{"$f":"IF(COUNT('3a'!R12,'3b'!R12,'3c'!R12,'3d'!R12,'3e (voluntary)'!R12)=0,\":\",SUM('3a'!R12,'3b'!R12,'3c'!R12,'3d'!R12,'3e (voluntary)'!R12))","v":":"},null,{"$f":"IF(COUNT('3a'!T12,'3b'!T12,'3c'!T12,'3d'!T12,'3e (voluntary)'!T12)=0,\":\",SUM('3a'!T12,'3b'!T12,'3c'!T12,'3d'!T12,'3e (voluntary)'!T12))","v":":"},null,{"$f":"IF(COUNT('3a'!V12,'3b'!V12,'3c'!V12,'3d'!V12,'3e (voluntary)'!V12)=0,\":\",SUM('3a'!V12,'3b'!V12,'3c'!V12,'3d'!V12,'3e (voluntary)'!V12))","v":":"},null,{"$f":"IF(COUNT('3a'!X12,'3b'!X12,'3c'!X12,'3d'!X12,'3e (voluntary)'!X12)=0,\":\",SUM('3a'!X12,'3b'!X12,'3c'!X12,'3d'!X12,'3e (voluntary)'!X12))","v":":"},null,{"$f":"IF(COUNT('3a'!Z12,'3b'!Z12,'3c'!Z12,'3d'!Z12,'3e (voluntary)'!Z12)=0,\":\",SUM('3a'!Z12,'3b'!Z12,'3c'!Z12,'3d'!Z12,'3e (voluntary)'!Z12))","v":":"},null,{"$f":"IF(COUNT('3a'!AB12,'3b'!AB12,'3c'!AB12,'3d'!AB12,'3e (voluntary)'!AB12)=0,\":\",SUM('3a'!AB12,'3b'!AB12,'3c'!AB12,'3d'!AB12,'3e (voluntary)'!AB12))","v":":"},null,{"$f":"IF(COUNT('3a'!AD12,'3b'!AD12,'3c'!AD12,'3d'!AD12,'3e (voluntary)'!AD12)=0,\":\",SUM('3a'!AD12,'3b'!AD12,'3c'!AD12,'3d'!AD12,'3e (voluntary)'!AD12))","v":":"},null,{"$f":"IF(COUNT('3a'!AF12,'3b'!AF12,'3c'!AF12,'3d'!AF12,'3e (voluntary)'!AF12)=0,\":\",SUM('3a'!AF12,'3b'!AF12,'3c'!AF12,'3d'!AF12,'3e (voluntary)'!AF12))","v":":"}]
["S11_S12","EP_BUS","EPS_P51G_NP",null,null,null,null,null,2020,{"$f":"IF(COUNT('3a'!J13,'3b'!J13,'3c'!J13,'3d'!J13,'3e (voluntary)'!J13)=0,\":\",SUM('3a'!J13,'3b'!J13,'3c'!J13,'3d'!J13,'3e (voluntary)'!J13))","v":":"},null,{"$f":"IF(COUNT('3a'!L13,'3b'!L13,'3c'!L13,'3d'!L13,'3e (voluntary)'!L13)=0,\":\",SUM('3a'!L13,'3b'!L13,'3c'!L13,'3d'!L13,'3e (voluntary)'!L13))","v":":"},null,{"$f":"IF(COUNT('3a'!N13,'3b'!N13,'3c'!N13,'3d'!N13,'3e (voluntary)'!N13)=0,\":\",SUM('3a'!N13,'3b'!N13,'3c'!N13,'3d'!N13,'3e (voluntary)'!N13))","v":":"},null,{"$f":"IF(COUNT('3a'!P13,'3b'!P13,'3c'!P13,'3d'!P13,'3e (voluntary)'!P13)=0,\":\",SUM('3a'!P13,'3b'!P13,'3c'!P13,'3d'!P13,'3e (voluntary)'!P13))","v":":"},null,{"$f":"IF(COUNT('3a'!R13,'3b'!R13,'3c'!R13,'3d'!R13,'3e (voluntary)'!R13)=0,\":\",SUM('3a'!R13,'3b'!R13,'3c'!R13,'3d'!R13,'3e (voluntary)'!R13))","v":":"},null,{"$f":"IF(COUNT('3a'!T13,'3b'!T13,'3c'!T13,'3d'!T13,'3e (voluntary)'!T13)=0,\":\",SUM('3a'!T13,'3b'!T13,'3c'!T13,'3d'!T13,'3e (voluntary)'!T13))","v":":"},null,{"$f":"IF(COUNT('3a'!V13,'3b'!V13,'3c'!V13,'3d'!V13,'3e (voluntary)'!V13)=0,\":\",SUM('3a'!V13,'3b'!V13,'3c'!V13,'3d'!V13,'3e (voluntary)'!V13))","v":":"},null,{"$f":"IF(COUNT('3a'!X13,'3b'!X13,'3c'!X13,'3d'!X13,'3e (voluntary)'!X13)=0,\":\",SUM('3a'!X13,'3b'!X13,'3c'!X13,'3d'!X13,'3e (voluntary)'!X13))","v":":"},null,{"$f":"IF(COUNT('3a'!Z13,'3b'!Z13,'3c'!Z13,'3d'!Z13,'3e (voluntary)'!Z13)=0,\":\",SUM('3a'!Z13,'3b'!Z13,'3c'!Z13,'3d'!Z13,'3e (voluntary)'!Z13))","v":":"},null,{"$f":"IF(COUNT('3a'!AB13,'3b'!AB13,'3c'!AB13,'3d'!AB13,'3e (voluntary)'!AB13)=0,\":\",SUM('3a'!AB13,'3b'!AB13,'3c'!AB13,'3d'!AB13,'3e (voluntary)'!AB13))","v":":"},null,{"$f":"IF(COUNT('3a'!AD13,'3b'!AD13,'3c'!AD13,'3d'!AD13,'3e (voluntary)'!AD13)=0,\":\",SUM('3a'!AD13,'3b'!AD13,'3c'!AD13,'3d'!AD13,'3e (voluntary)'!AD13))","v":":"},null,{"$f":"IF(COUNT('3a'!AF13,'3b'!AF13,'3c'!AF13,'3d'!AF13,'3e (voluntary)'!AF13)=0,\":\",SUM('3a'!AF13,'3b'!AF13,'3c'!AF13,'3d'!AF13,'3e (voluntary)'!AF13))","v":":"}]
["S11_S12","EP_BUS","EPS_P51G_NP",null,null,null,null,null,2021,{"$f":"IF(COUNT('3a'!J14,'3b'!J14,'3c'!J14,'3d'!J14,'3e (voluntary)'!J14)=0,\":\",SUM('3a'!J14,'3b'!J14,'3c'!J14,'3d'!J14,'3e (voluntary)'!J14))","v":":"},null,{"$f":"IF(COUNT('3a'!L14,'3b'!L14,'3c'!L14,'3d'!L14,'3e (voluntary)'!L14)=0,\":\",SUM('3a'!L14,'3b'!L14,'3c'!L14,'3d'!L14,'3e (voluntary)'!L14))","v":":"},null,{"$f":"IF(COUNT('3a'!N14,'3b'!N14,'3c'!N14,'3d'!N14,'3e (voluntary)'!N14)=0,\":\",SUM('3a'!N14,'3b'!N14,'3c'!N14,'3d'!N14,'3e (voluntary)'!N14))","v":":"},null,{"$f":"IF(COUNT('3a'!P14,'3b'!P14,'3c'!P14,'3d'!P14,'3e (voluntary)'!P14)=0,\":\",SUM('3a'!P14,'3b'!P14,'3c'!P14,'3d'!P14,'3e (voluntary)'!P14))","v":":"},null,{"$f":"IF(COUNT('3a'!R14,'3b'!R14,'3c'!R14,'3d'!R14,'3e (voluntary)'!R14)=0,\":\",SUM('3a'!R14,'3b'!R14,'3c'!R14,'3d'!R14,'3e (voluntary)'!R14))","v":":"},null,{"$f":"IF(COUNT('3a'!T14,'3b'!T14,'3c'!T14,'3d'!T14,'3e (voluntary)'!T14)=0,\":\",SUM('3a'!T14,'3b'!T14,'3c'!T14,'3d'!T14,'3e (voluntary)'!T14))","v":":"},null,{"$f":"IF(COUNT('3a'!V14,'3b'!V14,'3c'!V14,'3d'!V14,'3e (voluntary)'!V14)=0,\":\",SUM('3a'!V14,'3b'!V14,'3c'!V14,'3d'!V14,'3e (voluntary)'!V14))","v":":"},null,{"$f":"IF(COUNT('3a'!X14,'3b'!X14,'3c'!X14,'3d'!X14,'3e (voluntary)'!X14)=0,\":\",SUM('3a'!X14,'3b'!X14,'3c'!X14,'3d'!X14,'3e (voluntary)'!X14))","v":":"},null,{"$f":"IF(COUNT('3a'!Z14,'3b'!Z14,'3c'!Z14,'3d'!Z14,'3e (voluntary)'!Z14)=0,\":\",SUM('3a'!Z14,'3b'!Z14,'3c'!Z14,'3d'!Z14,'3e (voluntary)'!Z14))","v":":"},null,{"$f":"IF(COUNT('3a'!AB14,'3b'!AB14,'3c'!AB14,'3d'!AB14,'3e (voluntary)'!AB14)=0,\":\",SUM('3a'!AB14,'3b'!AB14,'3c'!AB14,'3d'!AB14,'3e (voluntary)'!AB14))","v":":"},null,{"$f":"IF(COUNT('3a'!AD14,'3b'!AD14,'3c'!AD14,'3d'!AD14,'3e (voluntary)'!AD14)=0,\":\",SUM('3a'!AD14,'3b'!AD14,'3c'!AD14,'3d'!AD14,'3e (voluntary)'!AD14))","v":":"},null,{"$f":"IF(COUNT('3a'!AF14,'3b'!AF14,'3c'!AF14,'3d'!AF14,'3e (voluntary)'!AF14)=0,\":\",SUM('3a'!AF14,'3b'!AF14,'3c'!AF14,'3d'!AF14,'3e (voluntary)'!AF14))","v":":"}]
["S11_S12","EP_BUS","EPS_P51G_NP",null,null,null,null,null,2022,{"$f":"IF(COUNT('3a'!J15,'3b'!J15,'3c'!J15,'3d'!J15,'3e (voluntary)'!J15)=0,\":\",SUM('3a'!J15,'3b'!J15,'3c'!J15,'3d'!J15,'3e (voluntary)'!J15))","v":":"},null,{"$f":"IF(COUNT('3a'!L15,'3b'!L15,'3c'!L15,'3d'!L15,'3e (voluntary)'!L15)=0,\":\",SUM('3a'!L15,'3b'!L15,'3c'!L15,'3d'!L15,'3e (voluntary)'!L15))","v":":"},null,{"$f":"IF(COUNT('3a'!N15,'3b'!N15,'3c'!N15,'3d'!N15,'3e (voluntary)'!N15)=0,\":\",SUM('3a'!N15,'3b'!N15,'3c'!N15,'3d'!N15,'3e (voluntary)'!N15))","v":":"},null,{"$f":"IF(COUNT('3a'!P15,'3b'!P15,'3c'!P15,'3d'!P15,'3e (voluntary)'!P15)=0,\":\",SUM('3a'!P15,'3b'!P15,'3c'!P15,'3d'!P15,'3e (voluntary)'!P15))","v":":"},null,{"$f":"IF(COUNT('3a'!R15,'3b'!R15,'3c'!R15,'3d'!R15,'3e (voluntary)'!R15)=0,\":\",SUM('3a'!R15,'3b'!R15,'3c'!R15,'3d'!R15,'3e (voluntary)'!R15))","v":":"},null,{"$f":"IF(COUNT('3a'!T15,'3b'!T15,'3c'!T15,'3d'!T15,'3e (voluntary)'!T15)=0,\":\",SUM('3a'!T15,'3b'!T15,'3c'!T15,'3d'!T15,'3e (voluntary)'!T15))","v":":"},null,{"$f":"IF(COUNT('3a'!V15,'3b'!V15,'3c'!V15,'3d'!V15,'3e (voluntary)'!V15)=0,\":\",SUM('3a'!V15,'3b'!V15,'3c'!V15,'3d'!V15,'3e (voluntary)'!V15))","v":":"},null,{"$f":"IF(COUNT('3a'!X15,'3b'!X15,'3c'!X15,'3d'!X15,'3e (voluntary)'!X15)=0,\":\",SUM('3a'!X15,'3b'!X15,'3c'!X15,'3d'!X15,'3e (voluntary)'!X15))","v":":"},null,{"$f":"IF(COUNT('3a'!Z15,'3b'!Z15,'3c'!Z15,'3d'!Z15,'3e (voluntary)'!Z15)=0,\":\",SUM('3a'!Z15,'3b'!Z15,'3c'!Z15,'3d'!Z15,'3e (voluntary)'!Z15))","v":":"},null,{"$f":"IF(COUNT('3a'!AB15,'3b'!AB15,'3c'!AB15,'3d'!AB15,'3e (voluntary)'!AB15)=0,\":\",SUM('3a'!AB15,'3b'!AB15,'3c'!AB15,'3d'!AB15,'3e (voluntary)'!AB15))","v":":"},null,{"$f":"IF(COUNT('3a'!AD15,'3b'!AD15,'3c'!AD15,'3d'!AD15,'3e (voluntary)'!AD15)=0,\":\",SUM('3a'!AD15,'3b'!AD15,'3c'!AD15,'3d'!AD15,'3e (voluntary)'!AD15))","v":":"},null,{"$f":"IF(COUNT('3a'!AF15,'3b'!AF15,'3c'!AF15,'3d'!AF15,'3e (voluntary)'!AF15)=0,\":\",SUM('3a'!AF15,'3b'!AF15,'3c'!AF15,'3d'!AF15,'3e (voluntary)'!AF15))","v":":"}]
["S11_S12","EP_BUS","EPS_P51G_NP",null,null,null,null,null,2023,{"$f":"IF(COUNT('3a'!J16,'3b'!J16,'3c'!J16,'3d'!J16,'3e (voluntary)'!J16)=0,\":\",SUM('3a'!J16,'3b'!J16,'3c'!J16,'3d'!J16,'3e (voluntary)'!J16))","v":":"},null,{"$f":"IF(COUNT('3a'!L16,'3b'!L16,'3c'!L16,'3d'!L16,'3e (voluntary)'!L16)=0,\":\",SUM('3a'!L16,'3b'!L16,'3c'!L16,'3d'!L16,'3e (voluntary)'!L16))","v":":"},null,{"$f":"IF(COUNT('3a'!N16,'3b'!N16,'3c'!N16,'3d'!N16,'3e (voluntary)'!N16)=0,\":\",SUM('3a'!N16,'3b'!N16,'3c'!N16,'3d'!N16,'3e (voluntary)'!N16))","v":":"},null,{"$f":"IF(COUNT('3a'!P16,'3b'!P16,'3c'!P16,'3d'!P16,'3e (voluntary)'!P16)=0,\":\",SUM('3a'!P16,'3b'!P16,'3c'!P16,'3d'!P16,'3e (voluntary)'!P16))","v":":"},null,{"$f":"IF(COUNT('3a'!R16,'3b'!R16,'3c'!R16,'3d'!R16,'3e (voluntary)'!R16)=0,\":\",SUM('3a'!R16,'3b'!R16,'3c'!R16,'3d'!R16,'3e (voluntary)'!R16))","v":":"},null,{"$f":"IF(COUNT('3a'!T16,'3b'!T16,'3c'!T16,'3d'!T16,'3e (voluntary)'!T16)=0,\":\",SUM('3a'!T16,'3b'!T16,'3c'!T16,'3d'!T16,'3e (voluntary)'!T16))","v":":"},null,{"$f":"IF(COUNT('3a'!V16,'3b'!V16,'3c'!V16,'3d'!V16,'3e (voluntary)'!V16)=0,\":\",SUM('3a'!V16,'3b'!V16,'3c'!V16,'3d'!V16,'3e (voluntary)'!V16))","v":":"},null,{"$f":"IF(COUNT('3a'!X16,'3b'!X16,'3c'!X16,'3d'!X16,'3e (voluntary)'!X16)=0,\":\",SUM('3a'!X16,'3b'!X16,'3c'!X16,'3d'!X16,'3e (voluntary)'!X16))","v":":"},null,{"$f":"IF(COUNT('3a'!Z16,'3b'!Z16,'3c'!Z16,'3d'!Z16,'3e (voluntary)'!Z16)=0,\":\",SUM('3a'!Z16,'3b'!Z16,'3c'!Z16,'3d'!Z16,'3e (voluntary)'!Z16))","v":":"},null,{"$f":"IF(COUNT('3a'!AB16,'3b'!AB16,'3c'!AB16,'3d'!AB16,'3e (voluntary)'!AB16)=0,\":\",SUM('3a'!AB16,'3b'!AB16,'3c'!AB16,'3d'!AB16,'3e (voluntary)'!AB16))","v":":"},null,{"$f":"IF(COUNT('3a'!AD16,'3b'!AD16,'3c'!AD16,'3d'!AD16,'3e (voluntary)'!AD16)=0,\":\",SUM('3a'!AD16,'3b'!AD16,'3c'!AD16,'3d'!AD16,'3e (voluntary)'!AD16))","v":":"},null,{"$f":"IF(COUNT('3a'!AF16,'3b'!AF16,'3c'!AF16,'3d'!AF16,'3e (voluntary)'!AF16)=0,\":\",SUM('3a'!AF16,'3b'!AF16,'3c'!AF16,'3d'!AF16,'3e (voluntary)'!AF16))","v":":"}]
["S11_S12","EP_BUS","EPS_P51G_NP",null,null,null,null,null,2024,{"$f":"IF(COUNT('3a'!J17,'3b'!J17,'3c'!J17,'3d'!J17,'3e (voluntary)'!J17)=0,\":\",SUM('3a'!J17,'3b'!J17,'3c'!J17,'3d'!J17,'3e (voluntary)'!J17))","v":":"},null,{"$f":"IF(COUNT('3a'!L17,'3b'!L17,'3c'!L17,'3d'!L17,'3e (voluntary)'!L17)=0,\":\",SUM('3a'!L17,'3b'!L17,'3c'!L17,'3d'!L17,'3e (voluntary)'!L17))","v":":"},null,{"$f":"IF(COUNT('3a'!N17,'3b'!N17,'3c'!N17,'3d'!N17,'3e (voluntary)'!N17)=0,\":\",SUM('3a'!N17,'3b'!N17,'3c'!N17,'3d'!N17,'3e (voluntary)'!N17))","v":":"},null,{"$f":"IF(COUNT('3a'!P17,'3b'!P17,'3c'!P17,'3d'!P17,'3e (voluntary)'!P17)=0,\":\",SUM('3a'!P17,'3b'!P17,'3c'!P17,'3d'!P17,'3e (voluntary)'!P17))","v":":"},null,{"$f":"IF(COUNT('3a'!R17,'3b'!R17,'3c'!R17,'3d'!R17,'3e (voluntary)'!R17)=0,\":\",SUM('3a'!R17,'3b'!R17,'3c'!R17,'3d'!R17,'3e (voluntary)'!R17))","v":":"},null,{"$f":"IF(COUNT('3a'!T17,'3b'!T17,'3c'!T17,'3d'!T17,'3e (voluntary)'!T17)=0,\":\",SUM('3a'!T17,'3b'!T17,'3c'!T17,'3d'!T17,'3e (voluntary)'!T17))","v":":"},null,{"$f":"IF(COUNT('3a'!V17,'3b'!V17,'3c'!V17,'3d'!V17,'3e (voluntary)'!V17)=0,\":\",SUM('3a'!V17,'3b'!V17,'3c'!V17,'3d'!V17,'3e (voluntary)'!V17))","v":":"},null,{"$f":"IF(COUNT('3a'!X17,'3b'!X17,'3c'!X17,'3d'!X17,'3e (voluntary)'!X17)=0,\":\",SUM('3a'!X17,'3b'!X17,'3c'!X17,'3d'!X17,'3e (voluntary)'!X17))","v":":"},null,{"$f":"IF(COUNT('3a'!Z17,'3b'!Z17,'3c'!Z17,'3d'!Z17,'3e (voluntary)'!Z17)=0,\":\",SUM('3a'!Z17,'3b'!Z17,'3c'!Z17,'3d'!Z17,'3e (voluntary)'!Z17))","v":":"},null,{"$f":"IF(COUNT('3a'!AB17,'3b'!AB17,'3c'!AB17,'3d'!AB17,'3e (voluntary)'!AB17)=0,\":\",SUM('3a'!AB17,'3b'!AB17,'3c'!AB17,'3d'!AB17,'3e (voluntary)'!AB17))","v":":"},null,{"$f":"IF(COUNT('3a'!AD17,'3b'!AD17,'3c'!AD17,'3d'!AD17,'3e (voluntary)'!AD17)=0,\":\",SUM('3a'!AD17,'3b'!AD17,'3c'!AD17,'3d'!AD17,'3e (voluntary)'!AD17))","v":":"},null,{"$f":"IF(COUNT('3a'!AF17,'3b'!AF17,'3c'!AF17,'3d'!AF17,'3e (voluntary)'!AF17)=0,\":\",SUM('3a'!AF17,'3b'!AF17,'3c'!AF17,'3d'!AF17,'3e (voluntary)'!AF17))","v":":"}]
["S11_S12","EP_BUS","EPS_P51G_NP",null,null,null,null,null,2025,{"$f":"IF(COUNT('3a'!J18,'3b'!J18,'3c'!J18,'3d'!J18,'3e (voluntary)'!J18)=0,\":\",SUM('3a'!J18,'3b'!J18,'3c'!J18,'3d'!J18,'3e (voluntary)'!J18))","v":":"},null,{"$f":"IF(COUNT('3a'!L18,'3b'!L18,'3c'!L18,'3d'!L18,'3e (voluntary)'!L18)=0,\":\",SUM('3a'!L18,'3b'!L18,'3c'!L18,'3d'!L18,'3e (voluntary)'!L18))","v":":"},null,{"$f":"IF(COUNT('3a'!N18,'3b'!N18,'3c'!N18,'3d'!N18,'3e (voluntary)'!N18)=0,\":\",SUM('3a'!N18,'3b'!N18,'3c'!N18,'3d'!N18,'3e (voluntary)'!N18))","v":":"},null,{"$f":"IF(COUNT('3a'!P18,'3b'!P18,'3c'!P18,'3d'!P18,'3e (voluntary)'!P18)=0,\":\",SUM('3a'!P18,'3b'!P18,'3c'!P18,'3d'!P18,'3e (voluntary)'!P18))","v":":"},null,{"$f":"IF(COUNT('3a'!R18,'3b'!R18,'3c'!R18,'3d'!R18,'3e (voluntary)'!R18)=0,\":\",SUM('3a'!R18,'3b'!R18,'3c'!R18,'3d'!R18,'3e (voluntary)'!R18))","v":":"},null,{"$f":"IF(COUNT('3a'!T18,'3b'!T18,'3c'!T18,'3d'!T18,'3e (voluntary)'!T18)=0,\":\",SUM('3a'!T18,'3b'!T18,'3c'!T18,'3d'!T18,'3e (voluntary)'!T18))","v":":"},null,{"$f":"IF(COUNT('3a'!V18,'3b'!V18,'3c'!V18,'3d'!V18,'3e (voluntary)'!V18)=0,\":\",SUM('3a'!V18,'3b'!V18,'3c'!V18,'3d'!V18,'3e (voluntary)'!V18))","v":":"},null,{"$f":"IF(COUNT('3a'!X18,'3b'!X18,'3c'!X18,'3d'!X18,'3e (voluntary)'!X18)=0,\":\",SUM('3a'!X18,'3b'!X18,'3c'!X18,'3d'!X18,'3e (voluntary)'!X18))","v":":"},null,{"$f":"IF(COUNT('3a'!Z18,'3b'!Z18,'3c'!Z18,'3d'!Z18,'3e (voluntary)'!Z18)=0,\":\",SUM('3a'!Z18,'3b'!Z18,'3c'!Z18,'3d'!Z18,'3e (voluntary)'!Z18))","v":":"},null,{"$f":"IF(COUNT('3a'!AB18,'3b'!AB18,'3c'!AB18,'3d'!AB18,'3e (voluntary)'!AB18)=0,\":\",SUM('3a'!AB18,'3b'!AB18,'3c'!AB18,'3d'!AB18,'3e (voluntary)'!AB18))","v":":"},null,{"$f":"IF(COUNT('3a'!AD18,'3b'!AD18,'3c'!AD18,'3d'!AD18,'3e (voluntary)'!AD18)=0,\":\",SUM('3a'!AD18,'3b'!AD18,'3c'!AD18,'3d'!AD18,'3e (voluntary)'!AD18))","v":":"},null,{"$f":"IF(COUNT('3a'!AF18,'3b'!AF18,'3c'!AF18,'3d'!AF18,'3e (voluntary)'!AF18)=0,\":\",SUM('3a'!AF18,'3b'!AF18,'3c'!AF18,'3d'!AF18,'3e (voluntary)'!AF18))","v":":"}]
["S11_S12","EP_BUS","EPS_P51G_NP",null,null,null,null,null,2026,{"$f":"IF(COUNT('3a'!J19,'3b'!J19,'3c'!J19,'3d'!J19,'3e (voluntary)'!J19)=0,\":\",SUM('3a'!J19,'3b'!J19,'3c'!J19,'3d'!J19,'3e (voluntary)'!J19))","v":":"},null,{"$f":"IF(COUNT('3a'!L19,'3b'!L19,'3c'!L19,'3d'!L19,'3e (voluntary)'!L19)=0,\":\",SUM('3a'!L19,'3b'!L19,'3c'!L19,'3d'!L19,'3e (voluntary)'!L19))","v":":"},null,{"$f":"IF(COUNT('3a'!N19,'3b'!N19,'3c'!N19,'3d'!N19,'3e (voluntary)'!N19)=0,\":\",SUM('3a'!N19,'3b'!N19,'3c'!N19,'3d'!N19,'3e (voluntary)'!N19))","v":":"},null,{"$f":"IF(COUNT('3a'!P19,'3b'!P19,'3c'!P19,'3d'!P19,'3e (voluntary)'!P19)=0,\":\",SUM('3a'!P19,'3b'!P19,'3c'!P19,'3d'!P19,'3e (voluntary)'!P19))","v":":"},null,{"$f":"IF(COUNT('3a'!R19,'3b'!R19,'3c'!R19,'3d'!R19,'3e (voluntary)'!R19)=0,\":\",SUM('3a'!R19,'3b'!R19,'3c'!R19,'3d'!R19,'3e (voluntary)'!R19))","v":":"},null,{"$f":"IF(COUNT('3a'!T19,'3b'!T19,'3c'!T19,'3d'!T19,'3e (voluntary)'!T19)=0,\":\",SUM('3a'!T19,'3b'!T19,'3c'!T19,'3d'!T19,'3e (voluntary)'!T19))","v":":"},null,{"$f":"IF(COUNT('3a'!V19,'3b'!V19,'3c'!V19,'3d'!V19,'3e (voluntary)'!V19)=0,\":\",SUM('3a'!V19,'3b'!V19,'3c'!V19,'3d'!V19,'3e (voluntary)'!V19))","v":":"},null,{"$f":"IF(COUNT('3a'!X19,'3b'!X19,'3c'!X19,'3d'!X19,'3e (voluntary)'!X19)=0,\":\",SUM('3a'!X19,'3b'!X19,'3c'!X19,'3d'!X19,'3e (voluntary)'!X19))","v":":"},null,{"$f":"IF(COUNT('3a'!Z19,'3b'!Z19,'3c'!Z19,'3d'!Z19,'3e (voluntary)'!Z19)=0,\":\",SUM('3a'!Z19,'3b'!Z19,'3c'!Z19,'3d'!Z19,'3e (voluntary)'!Z19))","v":":"},null,{"$f":"IF(COUNT('3a'!AB19,'3b'!AB19,'3c'!AB19,'3d'!AB19,'3e (voluntary)'!AB19)=0,\":\",SUM('3a'!AB19,'3b'!AB19,'3c'!AB19,'3d'!AB19,'3e (voluntary)'!AB19))","v":":"},null,{"$f":"IF(COUNT('3a'!AD19,'3b'!AD19,'3c'!AD19,'3d'!AD19,'3e (voluntary)'!AD19)=0,\":\",SUM('3a'!AD19,'3b'!AD19,'3c'!AD19,'3d'!AD19,'3e (voluntary)'!AD19))","v":":"},null,{"$f":"IF(COUNT('3a'!AF19,'3b'!AF19,'3c'!AF19,'3d'!AF19,'3e (voluntary)'!AF19)=0,\":\",SUM('3a'!AF19,'3b'!AF19,'3c'!AF19,'3d'!AF19,'3e (voluntary)'!AF19))","v":":"}]
["S11_S12","EP_BUS","EPS_P51G_NP",null,null,null,null,null,2027,{"$f":"IF(COUNT('3a'!J20,'3b'!J20,'3c'!J20,'3d'!J20,'3e (voluntary)'!J20)=0,\":\",SUM('3a'!J20,'3b'!J20,'3c'!J20,'3d'!J20,'3e (voluntary)'!J20))","v":":"},null,{"$f":"IF(COUNT('3a'!L20,'3b'!L20,'3c'!L20,'3d'!L20,'3e (voluntary)'!L20)=0,\":\",SUM('3a'!L20,'3b'!L20,'3c'!L20,'3d'!L20,'3e (voluntary)'!L20))","v":":"},null,{"$f":"IF(COUNT('3a'!N20,'3b'!N20,'3c'!N20,'3d'!N20,'3e (voluntary)'!N20)=0,\":\",SUM('3a'!N20,'3b'!N20,'3c'!N20,'3d'!N20,'3e (voluntary)'!N20))","v":":"},null,{"$f":"IF(COUNT('3a'!P20,'3b'!P20,'3c'!P20,'3d'!P20,'3e (voluntary)'!P20)=0,\":\",SUM('3a'!P20,'3b'!P20,'3c'!P20,'3d'!P20,'3e (voluntary)'!P20))","v":":"},null,{"$f":"IF(COUNT('3a'!R20,'3b'!R20,'3c'!R20,'3d'!R20,'3e (voluntary)'!R20)=0,\":\",SUM('3a'!R20,'3b'!R20,'3c'!R20,'3d'!R20,'3e (voluntary)'!R20))","v":":"},null,{"$f":"IF(COUNT('3a'!T20,'3b'!T20,'3c'!T20,'3d'!T20,'3e (voluntary)'!T20)=0,\":\",SUM('3a'!T20,'3b'!T20,'3c'!T20,'3d'!T20,'3e (voluntary)'!T20))","v":":"},null,{"$f":"IF(COUNT('3a'!V20,'3b'!V20,'3c'!V20,'3d'!V20,'3e (voluntary)'!V20)=0,\":\",SUM('3a'!V20,'3b'!V20,'3c'!V20,'3d'!V20,'3e (voluntary)'!V20))","v":":"},null,{"$f":"IF(COUNT('3a'!X20,'3b'!X20,'3c'!X20,'3d'!X20,'3e (voluntary)'!X20)=0,\":\",SUM('3a'!X20,'3b'!X20,'3c'!X20,'3d'!X20,'3e (voluntary)'!X20))","v":":"},null,{"$f":"IF(COUNT('3a'!Z20,'3b'!Z20,'3c'!Z20,'3d'!Z20,'3e (voluntary)'!Z20)=0,\":\",SUM('3a'!Z20,'3b'!Z20,'3c'!Z20,'3d'!Z20,'3e (voluntary)'!Z20))","v":":"},null,{"$f":"IF(COUNT('3a'!AB20,'3b'!AB20,'3c'!AB20,'3d'!AB20,'3e (voluntary)'!AB20)=0,\":\",SUM('3a'!AB20,'3b'!AB20,'3c'!AB20,'3d'!AB20,'3e (voluntary)'!AB20))","v":":"},null,{"$f":"IF(COUNT('3a'!AD20,'3b'!AD20,'3c'!AD20,'3d'!AD20,'3e (voluntary)'!AD20)=0,\":\",SUM('3a'!AD20,'3b'!AD20,'3c'!AD20,'3d'!AD20,'3e (voluntary)'!AD20))","v":":"},null,{"$f":"IF(COUNT('3a'!AF20,'3b'!AF20,'3c'!AF20,'3d'!AF20,'3e (voluntary)'!AF20)=0,\":\",SUM('3a'!AF20,'3b'!AF20,'3c'!AF20,'3d'!AF20,'3e (voluntary)'!AF20))","v":":"}]
["S11_S12","EP_BUS","EPS_P51G_NP",null,null,null,null,null,2028,{"$f":"IF(COUNT('3a'!J21,'3b'!J21,'3c'!J21,'3d'!J21,'3e (voluntary)'!J21)=0,\":\",SUM('3a'!J21,'3b'!J21,'3c'!J21,'3d'!J21,'3e (voluntary)'!J21))","v":":"},null,{"$f":"IF(COUNT('3a'!L21,'3b'!L21,'3c'!L21,'3d'!L21,'3e (voluntary)'!L21)=0,\":\",SUM('3a'!L21,'3b'!L21,'3c'!L21,'3d'!L21,'3e (voluntary)'!L21))","v":":"},null,{"$f":"IF(COUNT('3a'!N21,'3b'!N21,'3c'!N21,'3d'!N21,'3e (voluntary)'!N21)=0,\":\",SUM('3a'!N21,'3b'!N21,'3c'!N21,'3d'!N21,'3e (voluntary)'!N21))","v":":"},null,{"$f":"IF(COUNT('3a'!P21,'3b'!P21,'3c'!P21,'3d'!P21,'3e (voluntary)'!P21)=0,\":\",SUM('3a'!P21,'3b'!P21,'3c'!P21,'3d'!P21,'3e (voluntary)'!P21))","v":":"},null,{"$f":"IF(COUNT('3a'!R21,'3b'!R21,'3c'!R21,'3d'!R21,'3e (voluntary)'!R21)=0,\":\",SUM('3a'!R21,'3b'!R21,'3c'!R21,'3d'!R21,'3e (voluntary)'!R21))","v":":"},null,{"$f":"IF(COUNT('3a'!T21,'3b'!T21,'3c'!T21,'3d'!T21,'3e (voluntary)'!T21)=0,\":\",SUM('3a'!T21,'3b'!T21,'3c'!T21,'3d'!T21,'3e (voluntary)'!T21))","v":":"},null,{"$f":"IF(COUNT('3a'!V21,'3b'!V21,'3c'!V21,'3d'!V21,'3e (voluntary)'!V21)=0,\":\",SUM('3a'!V21,'3b'!V21,'3c'!V21,'3d'!V21,'3e (voluntary)'!V21))","v":":"},null,{"$f":"IF(COUNT('3a'!X21,'3b'!X21,'3c'!X21,'3d'!X21,'3e (voluntary)'!X21)=0,\":\",SUM('3a'!X21,'3b'!X21,'3c'!X21,'3d'!X21,'3e (voluntary)'!X21))","v":":"},null,{"$f":"IF(COUNT('3a'!Z21,'3b'!Z21,'3c'!Z21,'3d'!Z21,'3e (voluntary)'!Z21)=0,\":\",SUM('3a'!Z21,'3b'!Z21,'3c'!Z21,'3d'!Z21,'3e (voluntary)'!Z21))","v":":"},null,{"$f":"IF(COUNT('3a'!AB21,'3b'!AB21,'3c'!AB21,'3d'!AB21,'3e (voluntary)'!AB21)=0,\":\",SUM('3a'!AB21,'3b'!AB21,'3c'!AB21,'3d'!AB21,'3e (voluntary)'!AB21))","v":":"},null,{"$f":"IF(COUNT('3a'!AD21,'3b'!AD21,'3c'!AD21,'3d'!AD21,'3e (voluntary)'!AD21)=0,\":\",SUM('3a'!AD21,'3b'!AD21,'3c'!AD21,'3d'!AD21,'3e (voluntary)'!AD21))","v":":"},null,{"$f":"IF(COUNT('3a'!AF21,'3b'!AF21,'3c'!AF21,'3d'!AF21,'3e (voluntary)'!AF21)=0,\":\",SUM('3a'!AF21,'3b'!AF21,'3c'!AF21,'3d'!AF21,'3e (voluntary)'!AF21))","v":":"}]
["S11_S12","EP_BUS","EPS_P51G_NP",null,null,null,null,null,2029,{"$f":"IF(COUNT('3a'!J22,'3b'!J22,'3c'!J22,'3d'!J22,'3e (voluntary)'!J22)=0,\":\",SUM('3a'!J22,'3b'!J22,'3c'!J22,'3d'!J22,'3e (voluntary)'!J22))","v":":"},null,{"$f":"IF(COUNT('3a'!L22,'3b'!L22,'3c'!L22,'3d'!L22,'3e (voluntary)'!L22)=0,\":\",SUM('3a'!L22,'3b'!L22,'3c'!L22,'3d'!L22,'3e (voluntary)'!L22))","v":":"},null,{"$f":"IF(COUNT('3a'!N22,'3b'!N22,'3c'!N22,'3d'!N22,'3e (voluntary)'!N22)=0,\":\",SUM('3a'!N22,'3b'!N22,'3c'!N22,'3d'!N22,'3e (voluntary)'!N22))","v":":"},null,{"$f":"IF(COUNT('3a'!P22,'3b'!P22,'3c'!P22,'3d'!P22,'3e (voluntary)'!P22)=0,\":\",SUM('3a'!P22,'3b'!P22,'3c'!P22,'3d'!P22,'3e (voluntary)'!P22))","v":":"},null,{"$f":"IF(COUNT('3a'!R22,'3b'!R22,'3c'!R22,'3d'!R22,'3e (voluntary)'!R22)=0,\":\",SUM('3a'!R22,'3b'!R22,'3c'!R22,'3d'!R22,'3e (voluntary)'!R22))","v":":"},null,{"$f":"IF(COUNT('3a'!T22,'3b'!T22,'3c'!T22,'3d'!T22,'3e (voluntary)'!T22)=0,\":\",SUM('3a'!T22,'3b'!T22,'3c'!T22,'3d'!T22,'3e (voluntary)'!T22))","v":":"},null,{"$f":"IF(COUNT('3a'!V22,'3b'!V22,'3c'!V22,'3d'!V22,'3e (voluntary)'!V22)=0,\":\",SUM('3a'!V22,'3b'!V22,'3c'!V22,'3d'!V22,'3e (voluntary)'!V22))","v":":"},null,{"$f":"IF(COUNT('3a'!X22,'3b'!X22,'3c'!X22,'3d'!X22,'3e (voluntary)'!X22)=0,\":\",SUM('3a'!X22,'3b'!X22,'3c'!X22,'3d'!X22,'3e (voluntary)'!X22))","v":":"},null,{"$f":"IF(COUNT('3a'!Z22,'3b'!Z22,'3c'!Z22,'3d'!Z22,'3e (voluntary)'!Z22)=0,\":\",SUM('3a'!Z22,'3b'!Z22,'3c'!Z22,'3d'!Z22,'3e (voluntary)'!Z22))","v":":"},null,{"$f":"IF(COUNT('3a'!AB22,'3b'!AB22,'3c'!AB22,'3d'!AB22,'3e (voluntary)'!AB22)=0,\":\",SUM('3a'!AB22,'3b'!AB22,'3c'!AB22,'3d'!AB22,'3e (voluntary)'!AB22))","v":":"},null,{"$f":"IF(COUNT('3a'!AD22,'3b'!AD22,'3c'!AD22,'3d'!AD22,'3e (voluntary)'!AD22)=0,\":\",SUM('3a'!AD22,'3b'!AD22,'3c'!AD22,'3d'!AD22,'3e (voluntary)'!AD22))","v":":"},null,{"$f":"IF(COUNT('3a'!AF22,'3b'!AF22,'3c'!AF22,'3d'!AF22,'3e (voluntary)'!AF22)=0,\":\",SUM('3a'!AF22,'3b'!AF22,'3c'!AF22,'3d'!AF22,'3e (voluntary)'!AF22))","v":":"}]
["S11_S12","EP_BUS","EPS_P51G_NP",null,null,null,null,null,2030,{"$f":"IF(COUNT('3a'!J23,'3b'!J23,'3c'!J23,'3d'!J23,'3e (voluntary)'!J23)=0,\":\",SUM('3a'!J23,'3b'!J23,'3c'!J23,'3d'!J23,'3e (voluntary)'!J23))","v":":"},null,{"$f":"IF(COUNT('3a'!L23,'3b'!L23,'3c'!L23,'3d'!L23,'3e (voluntary)'!L23)=0,\":\",SUM('3a'!L23,'3b'!L23,'3c'!L23,'3d'!L23,'3e (voluntary)'!L23))","v":":"},null,{"$f":"IF(COUNT('3a'!N23,'3b'!N23,'3c'!N23,'3d'!N23,'3e (voluntary)'!N23)=0,\":\",SUM('3a'!N23,'3b'!N23,'3c'!N23,'3d'!N23,'3e (voluntary)'!N23))","v":":"},null,{"$f":"IF(COUNT('3a'!P23,'3b'!P23,'3c'!P23,'3d'!P23,'3e (voluntary)'!P23)=0,\":\",SUM('3a'!P23,'3b'!P23,'3c'!P23,'3d'!P23,'3e (voluntary)'!P23))","v":":"},null,{"$f":"IF(COUNT('3a'!R23,'3b'!R23,'3c'!R23,'3d'!R23,'3e (voluntary)'!R23)=0,\":\",SUM('3a'!R23,'3b'!R23,'3c'!R23,'3d'!R23,'3e (voluntary)'!R23))","v":":"},null,{"$f":"IF(COUNT('3a'!T23,'3b'!T23,'3c'!T23,'3d'!T23,'3e (voluntary)'!T23)=0,\":\",SUM('3a'!T23,'3b'!T23,'3c'!T23,'3d'!T23,'3e (voluntary)'!T23))","v":":"},null,{"$f":"IF(COUNT('3a'!V23,'3b'!V23,'3c'!V23,'3d'!V23,'3e (voluntary)'!V23)=0,\":\",SUM('3a'!V23,'3b'!V23,'3c'!V23,'3d'!V23,'3e (voluntary)'!V23))","v":":"},null,{"$f":"IF(COUNT('3a'!X23,'3b'!X23,'3c'!X23,'3d'!X23,'3e (voluntary)'!X23)=0,\":\",SUM('3a'!X23,'3b'!X23,'3c'!X23,'3d'!X23,'3e (voluntary)'!X23))","v":":"},null,{"$f":"IF(COUNT('3a'!Z23,'3b'!Z23,'3c'!Z23,'3d'!Z23,'3e (voluntary)'!Z23)=0,\":\",SUM('3a'!Z23,'3b'!Z23,'3c'!Z23,'3d'!Z23,'3e (voluntary)'!Z23))","v":":"},null,{"$f":"IF(COUNT('3a'!AB23,'3b'!AB23,'3c'!AB23,'3d'!AB23,'3e (voluntary)'!AB23)=0,\":\",SUM('3a'!AB23,'3b'!AB23,'3c'!AB23,'3d'!AB23,'3e (voluntary)'!AB23))","v":":"},null,{"$f":"IF(COUNT('3a'!AD23,'3b'!AD23,'3c'!AD23,'3d'!AD23,'3e (voluntary)'!AD23)=0,\":\",SUM('3a'!AD23,'3b'!AD23,'3c'!AD23,'3d'!AD23,'3e (voluntary)'!AD23))","v":":"},null,{"$f":"IF(COUNT('3a'!AF23,'3b'!AF23,'3c'!AF23,'3d'!AF23,'3e (voluntary)'!AF23)=0,\":\",SUM('3a'!AF23,'3b'!AF23,'3c'!AF23,'3d'!AF23,'3e (voluntary)'!AF23))","v":":"}]
["S11_S12","EP_BUS","EPS_P51G_NP",null,null,null,null,null,2031,{"$f":"IF(COUNT('3a'!J24,'3b'!J24,'3c'!J24,'3d'!J24,'3e (voluntary)'!J24)=0,\":\",SUM('3a'!J24,'3b'!J24,'3c'!J24,'3d'!J24,'3e (voluntary)'!J24))","v":":"},null,{"$f":"IF(COUNT('3a'!L24,'3b'!L24,'3c'!L24,'3d'!L24,'3e (voluntary)'!L24)=0,\":\",SUM('3a'!L24,'3b'!L24,'3c'!L24,'3d'!L24,'3e (voluntary)'!L24))","v":":"},null,{"$f":"IF(COUNT('3a'!N24,'3b'!N24,'3c'!N24,'3d'!N24,'3e (voluntary)'!N24)=0,\":\",SUM('3a'!N24,'3b'!N24,'3c'!N24,'3d'!N24,'3e (voluntary)'!N24))","v":":"},null,{"$f":"IF(COUNT('3a'!P24,'3b'!P24,'3c'!P24,'3d'!P24,'3e (voluntary)'!P24)=0,\":\",SUM('3a'!P24,'3b'!P24,'3c'!P24,'3d'!P24,'3e (voluntary)'!P24))","v":":"},null,{"$f":"IF(COUNT('3a'!R24,'3b'!R24,'3c'!R24,'3d'!R24,'3e (voluntary)'!R24)=0,\":\",SUM('3a'!R24,'3b'!R24,'3c'!R24,'3d'!R24,'3e (voluntary)'!R24))","v":":"},null,{"$f":"IF(COUNT('3a'!T24,'3b'!T24,'3c'!T24,'3d'!T24,'3e (voluntary)'!T24)=0,\":\",SUM('3a'!T24,'3b'!T24,'3c'!T24,'3d'!T24,'3e (voluntary)'!T24))","v":":"},null,{"$f":"IF(COUNT('3a'!V24,'3b'!V24,'3c'!V24,'3d'!V24,'3e (voluntary)'!V24)=0,\":\",SUM('3a'!V24,'3b'!V24,'3c'!V24,'3d'!V24,'3e (voluntary)'!V24))","v":":"},null,{"$f":"IF(COUNT('3a'!X24,'3b'!X24,'3c'!X24,'3d'!X24,'3e (voluntary)'!X24)=0,\":\",SUM('3a'!X24,'3b'!X24,'3c'!X24,'3d'!X24,'3e (voluntary)'!X24))","v":":"},null,{"$f":"IF(COUNT('3a'!Z24,'3b'!Z24,'3c'!Z24,'3d'!Z24,'3e (voluntary)'!Z24)=0,\":\",SUM('3a'!Z24,'3b'!Z24,'3c'!Z24,'3d'!Z24,'3e (voluntary)'!Z24))","v":":"},null,{"$f":"IF(COUNT('3a'!AB24,'3b'!AB24,'3c'!AB24,'3d'!AB24,'3e (voluntary)'!AB24)=0,\":\",SUM('3a'!AB24,'3b'!AB24,'3c'!AB24,'3d'!AB24,'3e (voluntary)'!AB24))","v":":"},null,{"$f":"IF(COUNT('3a'!AD24,'3b'!AD24,'3c'!AD24,'3d'!AD24,'3e (voluntary)'!AD24)=0,\":\",SUM('3a'!AD24,'3b'!AD24,'3c'!AD24,'3d'!AD24,'3e (voluntary)'!AD24))","v":":"},null,{"$f":"IF(COUNT('3a'!AF24,'3b'!AF24,'3c'!AF24,'3d'!AF24,'3e (voluntary)'!AF24)=0,\":\",SUM('3a'!AF24,'3b'!AF24,'3c'!AF24,'3d'!AF24,'3e (voluntary)'!AF24))","v":":"}]
["S11_S12","EP_BUS","EPS_INV_PT",null,"( INV_EOP.3 )  GFCF on specific EP fixed assets (end-of-pipe technologies) ",null,null,null,2014,{"$f":"IF(COUNT('3a'!J25,'3b'!J25,'3c'!J25,'3d'!J25,'3e (voluntary)'!J25)=0,\":\",SUM('3a'!J25,'3b'!J25,'3c'!J25,'3d'!J25,'3e (voluntary)'!J25))","v":":"},null,{"$f":"IF(COUNT('3a'!L25,'3b'!L25,'3c'!L25,'3d'!L25,'3e (voluntary)'!L25)=0,\":\",SUM('3a'!L25,'3b'!L25,'3c'!L25,'3d'!L25,'3e (voluntary)'!L25))","v":":"},null,{"$f":"IF(COUNT('3a'!N25,'3b'!N25,'3c'!N25,'3d'!N25,'3e (voluntary)'!N25)=0,\":\",SUM('3a'!N25,'3b'!N25,'3c'!N25,'3d'!N25,'3e (voluntary)'!N25))","v":":"},null,{"$f":"IF(COUNT('3a'!P25,'3b'!P25,'3c'!P25,'3d'!P25,'3e (voluntary)'!P25)=0,\":\",SUM('3a'!P25,'3b'!P25,'3c'!P25,'3d'!P25,'3e (voluntary)'!P25))","v":":"},null,{"$f":"IF(COUNT('3a'!R25,'3b'!R25,'3c'!R25,'3d'!R25,'3e (voluntary)'!R25)=0,\":\",SUM('3a'!R25,'3b'!R25,'3c'!R25,'3d'!R25,'3e (voluntary)'!R25))","v":":"},null,{"$f":"IF(COUNT('3a'!T25,'3b'!T25,'3c'!T25,'3d'!T25,'3e (voluntary)'!T25)=0,\":\",SUM('3a'!T25,'3b'!T25,'3c'!T25,'3d'!T25,'3e (voluntary)'!T25))","v":":"},null,{"$f":"IF(COUNT('3a'!V25,'3b'!V25,'3c'!V25,'3d'!V25,'3e (voluntary)'!V25)=0,\":\",SUM('3a'!V25,'3b'!V25,'3c'!V25,'3d'!V25,'3e (voluntary)'!V25))","v":":"},null,{"$f":"IF(COUNT('3a'!X25,'3b'!X25,'3c'!X25,'3d'!X25,'3e (voluntary)'!X25)=0,\":\",SUM('3a'!X25,'3b'!X25,'3c'!X25,'3d'!X25,'3e (voluntary)'!X25))","v":":"},null,{"$f":"IF(COUNT('3a'!Z25,'3b'!Z25,'3c'!Z25,'3d'!Z25,'3e (voluntary)'!Z25)=0,\":\",SUM('3a'!Z25,'3b'!Z25,'3c'!Z25,'3d'!Z25,'3e (voluntary)'!Z25))","v":":"},null,{"$f":"IF(COUNT('3a'!AB25,'3b'!AB25,'3c'!AB25,'3d'!AB25,'3e (voluntary)'!AB25)=0,\":\",SUM('3a'!AB25,'3b'!AB25,'3c'!AB25,'3d'!AB25,'3e (voluntary)'!AB25))","v":":"},null,{"$f":"IF(COUNT('3a'!AD25,'3b'!AD25,'3c'!AD25,'3d'!AD25,'3e (voluntary)'!AD25)=0,\":\",SUM('3a'!AD25,'3b'!AD25,'3c'!AD25,'3d'!AD25,'3e (voluntary)'!AD25))","v":":"},null,{"$f":"IF(COUNT('3a'!AF25,'3b'!AF25,'3c'!AF25,'3d'!AF25,'3e (voluntary)'!AF25)=0,\":\",SUM('3a'!AF25,'3b'!AF25,'3c'!AF25,'3d'!AF25,'3e (voluntary)'!AF25))","v":":"}]
["S11_S12","EP_BUS","EPS_INV_PT",null,null,null,null,null,2015,{"$f":"IF(COUNT('3a'!J26,'3b'!J26,'3c'!J26,'3d'!J26,'3e (voluntary)'!J26)=0,\":\",SUM('3a'!J26,'3b'!J26,'3c'!J26,'3d'!J26,'3e (voluntary)'!J26))","v":":"},null,{"$f":"IF(COUNT('3a'!L26,'3b'!L26,'3c'!L26,'3d'!L26,'3e (voluntary)'!L26)=0,\":\",SUM('3a'!L26,'3b'!L26,'3c'!L26,'3d'!L26,'3e (voluntary)'!L26))","v":":"},null,{"$f":"IF(COUNT('3a'!N26,'3b'!N26,'3c'!N26,'3d'!N26,'3e (voluntary)'!N26)=0,\":\",SUM('3a'!N26,'3b'!N26,'3c'!N26,'3d'!N26,'3e (voluntary)'!N26))","v":":"},null,{"$f":"IF(COUNT('3a'!P26,'3b'!P26,'3c'!P26,'3d'!P26,'3e (voluntary)'!P26)=0,\":\",SUM('3a'!P26,'3b'!P26,'3c'!P26,'3d'!P26,'3e (voluntary)'!P26))","v":":"},null,{"$f":"IF(COUNT('3a'!R26,'3b'!R26,'3c'!R26,'3d'!R26,'3e (voluntary)'!R26)=0,\":\",SUM('3a'!R26,'3b'!R26,'3c'!R26,'3d'!R26,'3e (voluntary)'!R26))","v":":"},null,{"$f":"IF(COUNT('3a'!T26,'3b'!T26,'3c'!T26,'3d'!T26,'3e (voluntary)'!T26)=0,\":\",SUM('3a'!T26,'3b'!T26,'3c'!T26,'3d'!T26,'3e (voluntary)'!T26))","v":":"},null,{"$f":"IF(COUNT('3a'!V26,'3b'!V26,'3c'!V26,'3d'!V26,'3e (voluntary)'!V26)=0,\":\",SUM('3a'!V26,'3b'!V26,'3c'!V26,'3d'!V26,'3e (voluntary)'!V26))","v":":"},null,{"$f":"IF(COUNT('3a'!X26,'3b'!X26,'3c'!X26,'3d'!X26,'3e (voluntary)'!X26)=0,\":\",SUM('3a'!X26,'3b'!X26,'3c'!X26,'3d'!X26,'3e (voluntary)'!X26))","v":":"},null,{"$f":"IF(COUNT('3a'!Z26,'3b'!Z26,'3c'!Z26,'3d'!Z26,'3e (voluntary)'!Z26)=0,\":\",SUM('3a'!Z26,'3b'!Z26,'3c'!Z26,'3d'!Z26,'3e (voluntary)'!Z26))","v":":"},null,{"$f":"IF(COUNT('3a'!AB26,'3b'!AB26,'3c'!AB26,'3d'!AB26,'3e (voluntary)'!AB26)=0,\":\",SUM('3a'!AB26,'3b'!AB26,'3c'!AB26,'3d'!AB26,'3e (voluntary)'!AB26))","v":":"},null,{"$f":"IF(COUNT('3a'!AD26,'3b'!AD26,'3c'!AD26,'3d'!AD26,'3e (voluntary)'!AD26)=0,\":\",SUM('3a'!AD26,'3b'!AD26,'3c'!AD26,'3d'!AD26,'3e (voluntary)'!AD26))","v":":"},null,{"$f":"IF(COUNT('3a'!AF26,'3b'!AF26,'3c'!AF26,'3d'!AF26,'3e (voluntary)'!AF26)=0,\":\",SUM('3a'!AF26,'3b'!AF26,'3c'!AF26,'3d'!AF26,'3e (voluntary)'!AF26))","v":":"}]
["S11_S12","EP_BUS","EPS_INV_PT",null,null,null,null,null,2016,{"$f":"IF(COUNT('3a'!J27,'3b'!J27,'3c'!J27,'3d'!J27,'3e (voluntary)'!J27)=0,\":\",SUM('3a'!J27,'3b'!J27,'3c'!J27,'3d'!J27,'3e (voluntary)'!J27))","v":":"},null,{"$f":"IF(COUNT('3a'!L27,'3b'!L27,'3c'!L27,'3d'!L27,'3e (voluntary)'!L27)=0,\":\",SUM('3a'!L27,'3b'!L27,'3c'!L27,'3d'!L27,'3e (voluntary)'!L27))","v":":"},null,{"$f":"IF(COUNT('3a'!N27,'3b'!N27,'3c'!N27,'3d'!N27,'3e (voluntary)'!N27)=0,\":\",SUM('3a'!N27,'3b'!N27,'3c'!N27,'3d'!N27,'3e (voluntary)'!N27))","v":":"},null,{"$f":"IF(COUNT('3a'!P27,'3b'!P27,'3c'!P27,'3d'!P27,'3e (voluntary)'!P27)=0,\":\",SUM('3a'!P27,'3b'!P27,'3c'!P27,'3d'!P27,'3e (voluntary)'!P27))","v":":"},null,{"$f":"IF(COUNT('3a'!R27,'3b'!R27,'3c'!R27,'3d'!R27,'3e (voluntary)'!R27)=0,\":\",SUM('3a'!R27,'3b'!R27,'3c'!R27,'3d'!R27,'3e (voluntary)'!R27))","v":":"},null,{"$f":"IF(COUNT('3a'!T27,'3b'!T27,'3c'!T27,'3d'!T27,'3e (voluntary)'!T27)=0,\":\",SUM('3a'!T27,'3b'!T27,'3c'!T27,'3d'!T27,'3e (voluntary)'!T27))","v":":"},null,{"$f":"IF(COUNT('3a'!V27,'3b'!V27,'3c'!V27,'3d'!V27,'3e (voluntary)'!V27)=0,\":\",SUM('3a'!V27,'3b'!V27,'3c'!V27,'3d'!V27,'3e (voluntary)'!V27))","v":":"},null,{"$f":"IF(COUNT('3a'!X27,'3b'!X27,'3c'!X27,'3d'!X27,'3e (voluntary)'!X27)=0,\":\",SUM('3a'!X27,'3b'!X27,'3c'!X27,'3d'!X27,'3e (voluntary)'!X27))","v":":"},null,{"$f":"IF(COUNT('3a'!Z27,'3b'!Z27,'3c'!Z27,'3d'!Z27,'3e (voluntary)'!Z27)=0,\":\",SUM('3a'!Z27,'3b'!Z27,'3c'!Z27,'3d'!Z27,'3e (voluntary)'!Z27))","v":":"},null,{"$f":"IF(COUNT('3a'!AB27,'3b'!AB27,'3c'!AB27,'3d'!AB27,'3e (voluntary)'!AB27)=0,\":\",SUM('3a'!AB27,'3b'!AB27,'3c'!AB27,'3d'!AB27,'3e (voluntary)'!AB27))","v":":"},null,{"$f":"IF(COUNT('3a'!AD27,'3b'!AD27,'3c'!AD27,'3d'!AD27,'3e (voluntary)'!AD27)=0,\":\",SUM('3a'!AD27,'3b'!AD27,'3c'!AD27,'3d'!AD27,'3e (voluntary)'!AD27))","v":":"},null,{"$f":"IF(COUNT('3a'!AF27,'3b'!AF27,'3c'!AF27,'3d'!AF27,'3e (voluntary)'!AF27)=0,\":\",SUM('3a'!AF27,'3b'!AF27,'3c'!AF27,'3d'!AF27,'3e (voluntary)'!AF27))","v":":"}]
["S11_S12","EP_BUS","EPS_INV_PT",null,null,null,null,null,2017,{"$f":"IF(COUNT('3a'!J28,'3b'!J28,'3c'!J28,'3d'!J28,'3e (voluntary)'!J28)=0,\":\",SUM('3a'!J28,'3b'!J28,'3c'!J28,'3d'!J28,'3e (voluntary)'!J28))","v":":"},null,{"$f":"IF(COUNT('3a'!L28,'3b'!L28,'3c'!L28,'3d'!L28,'3e (voluntary)'!L28)=0,\":\",SUM('3a'!L28,'3b'!L28,'3c'!L28,'3d'!L28,'3e (voluntary)'!L28))","v":":"},null,{"$f":"IF(COUNT('3a'!N28,'3b'!N28,'3c'!N28,'3d'!N28,'3e (voluntary)'!N28)=0,\":\",SUM('3a'!N28,'3b'!N28,'3c'!N28,'3d'!N28,'3e (voluntary)'!N28))","v":":"},null,{"$f":"IF(COUNT('3a'!P28,'3b'!P28,'3c'!P28,'3d'!P28,'3e (voluntary)'!P28)=0,\":\",SUM('3a'!P28,'3b'!P28,'3c'!P28,'3d'!P28,'3e (voluntary)'!P28))","v":":"},null,{"$f":"IF(COUNT('3a'!R28,'3b'!R28,'3c'!R28,'3d'!R28,'3e (voluntary)'!R28)=0,\":\",SUM('3a'!R28,'3b'!R28,'3c'!R28,'3d'!R28,'3e (voluntary)'!R28))","v":":"},null,{"$f":"IF(COUNT('3a'!T28,'3b'!T28,'3c'!T28,'3d'!T28,'3e (voluntary)'!T28)=0,\":\",SUM('3a'!T28,'3b'!T28,'3c'!T28,'3d'!T28,'3e (voluntary)'!T28))","v":":"},null,{"$f":"IF(COUNT('3a'!V28,'3b'!V28,'3c'!V28,'3d'!V28,'3e (voluntary)'!V28)=0,\":\",SUM('3a'!V28,'3b'!V28,'3c'!V28,'3d'!V28,'3e (voluntary)'!V28))","v":":"},null,{"$f":"IF(COUNT('3a'!X28,'3b'!X28,'3c'!X28,'3d'!X28,'3e (voluntary)'!X28)=0,\":\",SUM('3a'!X28,'3b'!X28,'3c'!X28,'3d'!X28,'3e (voluntary)'!X28))","v":":"},null,{"$f":"IF(COUNT('3a'!Z28,'3b'!Z28,'3c'!Z28,'3d'!Z28,'3e (voluntary)'!Z28)=0,\":\",SUM('3a'!Z28,'3b'!Z28,'3c'!Z28,'3d'!Z28,'3e (voluntary)'!Z28))","v":":"},null,{"$f":"IF(COUNT('3a'!AB28,'3b'!AB28,'3c'!AB28,'3d'!AB28,'3e (voluntary)'!AB28)=0,\":\",SUM('3a'!AB28,'3b'!AB28,'3c'!AB28,'3d'!AB28,'3e (voluntary)'!AB28))","v":":"},null,{"$f":"IF(COUNT('3a'!AD28,'3b'!AD28,'3c'!AD28,'3d'!AD28,'3e (voluntary)'!AD28)=0,\":\",SUM('3a'!AD28,'3b'!AD28,'3c'!AD28,'3d'!AD28,'3e (voluntary)'!AD28))","v":":"},null,{"$f":"IF(COUNT('3a'!AF28,'3b'!AF28,'3c'!AF28,'3d'!AF28,'3e (voluntary)'!AF28)=0,\":\",SUM('3a'!AF28,'3b'!AF28,'3c'!AF28,'3d'!AF28,'3e (voluntary)'!AF28))","v":":"}]
["S11_S12","EP_BUS","EPS_INV_PT",null,null,null,null,null,2018,{"$f":"IF(COUNT('3a'!J29,'3b'!J29,'3c'!J29,'3d'!J29,'3e (voluntary)'!J29)=0,\":\",SUM('3a'!J29,'3b'!J29,'3c'!J29,'3d'!J29,'3e (voluntary)'!J29))","v":":"},null,{"$f":"IF(COUNT('3a'!L29,'3b'!L29,'3c'!L29,'3d'!L29,'3e (voluntary)'!L29)=0,\":\",SUM('3a'!L29,'3b'!L29,'3c'!L29,'3d'!L29,'3e (voluntary)'!L29))","v":":"},null,{"$f":"IF(COUNT('3a'!N29,'3b'!N29,'3c'!N29,'3d'!N29,'3e (voluntary)'!N29)=0,\":\",SUM('3a'!N29,'3b'!N29,'3c'!N29,'3d'!N29,'3e (voluntary)'!N29))","v":":"},null,{"$f":"IF(COUNT('3a'!P29,'3b'!P29,'3c'!P29,'3d'!P29,'3e (voluntary)'!P29)=0,\":\",SUM('3a'!P29,'3b'!P29,'3c'!P29,'3d'!P29,'3e (voluntary)'!P29))","v":":"},null,{"$f":"IF(COUNT('3a'!R29,'3b'!R29,'3c'!R29,'3d'!R29,'3e (voluntary)'!R29)=0,\":\",SUM('3a'!R29,'3b'!R29,'3c'!R29,'3d'!R29,'3e (voluntary)'!R29))","v":":"},null,{"$f":"IF(COUNT('3a'!T29,'3b'!T29,'3c'!T29,'3d'!T29,'3e (voluntary)'!T29)=0,\":\",SUM('3a'!T29,'3b'!T29,'3c'!T29,'3d'!T29,'3e (voluntary)'!T29))","v":":"},null,{"$f":"IF(COUNT('3a'!V29,'3b'!V29,'3c'!V29,'3d'!V29,'3e (voluntary)'!V29)=0,\":\",SUM('3a'!V29,'3b'!V29,'3c'!V29,'3d'!V29,'3e (voluntary)'!V29))","v":":"},null,{"$f":"IF(COUNT('3a'!X29,'3b'!X29,'3c'!X29,'3d'!X29,'3e (voluntary)'!X29)=0,\":\",SUM('3a'!X29,'3b'!X29,'3c'!X29,'3d'!X29,'3e (voluntary)'!X29))","v":":"},null,{"$f":"IF(COUNT('3a'!Z29,'3b'!Z29,'3c'!Z29,'3d'!Z29,'3e (voluntary)'!Z29)=0,\":\",SUM('3a'!Z29,'3b'!Z29,'3c'!Z29,'3d'!Z29,'3e (voluntary)'!Z29))","v":":"},null,{"$f":"IF(COUNT('3a'!AB29,'3b'!AB29,'3c'!AB29,'3d'!AB29,'3e (voluntary)'!AB29)=0,\":\",SUM('3a'!AB29,'3b'!AB29,'3c'!AB29,'3d'!AB29,'3e (voluntary)'!AB29))","v":":"},null,{"$f":"IF(COUNT('3a'!AD29,'3b'!AD29,'3c'!AD29,'3d'!AD29,'3e (voluntary)'!AD29)=0,\":\",SUM('3a'!AD29,'3b'!AD29,'3c'!AD29,'3d'!AD29,'3e (voluntary)'!AD29))","v":":"},null,{"$f":"IF(COUNT('3a'!AF29,'3b'!AF29,'3c'!AF29,'3d'!AF29,'3e (voluntary)'!AF29)=0,\":\",SUM('3a'!AF29,'3b'!AF29,'3c'!AF29,'3d'!AF29,'3e (voluntary)'!AF29))","v":":"}]
["S11_S12","EP_BUS","EPS_INV_PT",null,null,null,null,null,2019,{"$f":"IF(COUNT('3a'!J30,'3b'!J30,'3c'!J30,'3d'!J30,'3e (voluntary)'!J30)=0,\":\",SUM('3a'!J30,'3b'!J30,'3c'!J30,'3d'!J30,'3e (voluntary)'!J30))","v":":"},null,{"$f":"IF(COUNT('3a'!L30,'3b'!L30,'3c'!L30,'3d'!L30,'3e (voluntary)'!L30)=0,\":\",SUM('3a'!L30,'3b'!L30,'3c'!L30,'3d'!L30,'3e (voluntary)'!L30))","v":":"},null,{"$f":"IF(COUNT('3a'!N30,'3b'!N30,'3c'!N30,'3d'!N30,'3e (voluntary)'!N30)=0,\":\",SUM('3a'!N30,'3b'!N30,'3c'!N30,'3d'!N30,'3e (voluntary)'!N30))","v":":"},null,{"$f":"IF(COUNT('3a'!P30,'3b'!P30,'3c'!P30,'3d'!P30,'3e (voluntary)'!P30)=0,\":\",SUM('3a'!P30,'3b'!P30,'3c'!P30,'3d'!P30,'3e (voluntary)'!P30))","v":":"},null,{"$f":"IF(COUNT('3a'!R30,'3b'!R30,'3c'!R30,'3d'!R30,'3e (voluntary)'!R30)=0,\":\",SUM('3a'!R30,'3b'!R30,'3c'!R30,'3d'!R30,'3e (voluntary)'!R30))","v":":"},null,{"$f":"IF(COUNT('3a'!T30,'3b'!T30,'3c'!T30,'3d'!T30,'3e (voluntary)'!T30)=0,\":\",SUM('3a'!T30,'3b'!T30,'3c'!T30,'3d'!T30,'3e (voluntary)'!T30))","v":":"},null,{"$f":"IF(COUNT('3a'!V30,'3b'!V30,'3c'!V30,'3d'!V30,'3e (voluntary)'!V30)=0,\":\",SUM('3a'!V30,'3b'!V30,'3c'!V30,'3d'!V30,'3e (voluntary)'!V30))","v":":"},null,{"$f":"IF(COUNT('3a'!X30,'3b'!X30,'3c'!X30,'3d'!X30,'3e (voluntary)'!X30)=0,\":\",SUM('3a'!X30,'3b'!X30,'3c'!X30,'3d'!X30,'3e (voluntary)'!X30))","v":":"},null,{"$f":"IF(COUNT('3a'!Z30,'3b'!Z30,'3c'!Z30,'3d'!Z30,'3e (voluntary)'!Z30)=0,\":\",SUM('3a'!Z30,'3b'!Z30,'3c'!Z30,'3d'!Z30,'3e (voluntary)'!Z30))","v":":"},null,{"$f":"IF(COUNT('3a'!AB30,'3b'!AB30,'3c'!AB30,'3d'!AB30,'3e (voluntary)'!AB30)=0,\":\",SUM('3a'!AB30,'3b'!AB30,'3c'!AB30,'3d'!AB30,'3e (voluntary)'!AB30))","v":":"},null,{"$f":"IF(COUNT('3a'!AD30,'3b'!AD30,'3c'!AD30,'3d'!AD30,'3e (voluntary)'!AD30)=0,\":\",SUM('3a'!AD30,'3b'!AD30,'3c'!AD30,'3d'!AD30,'3e (voluntary)'!AD30))","v":":"},null,{"$f":"IF(COUNT('3a'!AF30,'3b'!AF30,'3c'!AF30,'3d'!AF30,'3e (voluntary)'!AF30)=0,\":\",SUM('3a'!AF30,'3b'!AF30,'3c'!AF30,'3d'!AF30,'3e (voluntary)'!AF30))","v":":"}]
["S11_S12","EP_BUS","EPS_INV_PT",null,null,null,null,null,2020,{"$f":"IF(COUNT('3a'!J31,'3b'!J31,'3c'!J31,'3d'!J31,'3e (voluntary)'!J31)=0,\":\",SUM('3a'!J31,'3b'!J31,'3c'!J31,'3d'!J31,'3e (voluntary)'!J31))","v":":"},null,{"$f":"IF(COUNT('3a'!L31,'3b'!L31,'3c'!L31,'3d'!L31,'3e (voluntary)'!L31)=0,\":\",SUM('3a'!L31,'3b'!L31,'3c'!L31,'3d'!L31,'3e (voluntary)'!L31))","v":":"},null,{"$f":"IF(COUNT('3a'!N31,'3b'!N31,'3c'!N31,'3d'!N31,'3e (voluntary)'!N31)=0,\":\",SUM('3a'!N31,'3b'!N31,'3c'!N31,'3d'!N31,'3e (voluntary)'!N31))","v":":"},null,{"$f":"IF(COUNT('3a'!P31,'3b'!P31,'3c'!P31,'3d'!P31,'3e (voluntary)'!P31)=0,\":\",SUM('3a'!P31,'3b'!P31,'3c'!P31,'3d'!P31,'3e (voluntary)'!P31))","v":":"},null,{"$f":"IF(COUNT('3a'!R31,'3b'!R31,'3c'!R31,'3d'!R31,'3e (voluntary)'!R31)=0,\":\",SUM('3a'!R31,'3b'!R31,'3c'!R31,'3d'!R31,'3e (voluntary)'!R31))","v":":"},null,{"$f":"IF(COUNT('3a'!T31,'3b'!T31,'3c'!T31,'3d'!T31,'3e (voluntary)'!T31)=0,\":\",SUM('3a'!T31,'3b'!T31,'3c'!T31,'3d'!T31,'3e (voluntary)'!T31))","v":":"},null,{"$f":"IF(COUNT('3a'!V31,'3b'!V31,'3c'!V31,'3d'!V31,'3e (voluntary)'!V31)=0,\":\",SUM('3a'!V31,'3b'!V31,'3c'!V31,'3d'!V31,'3e (voluntary)'!V31))","v":":"},null,{"$f":"IF(COUNT('3a'!X31,'3b'!X31,'3c'!X31,'3d'!X31,'3e (voluntary)'!X31)=0,\":\",SUM('3a'!X31,'3b'!X31,'3c'!X31,'3d'!X31,'3e (voluntary)'!X31))","v":":"},null,{"$f":"IF(COUNT('3a'!Z31,'3b'!Z31,'3c'!Z31,'3d'!Z31,'3e (voluntary)'!Z31)=0,\":\",SUM('3a'!Z31,'3b'!Z31,'3c'!Z31,'3d'!Z31,'3e (voluntary)'!Z31))","v":":"},null,{"$f":"IF(COUNT('3a'!AB31,'3b'!AB31,'3c'!AB31,'3d'!AB31,'3e (voluntary)'!AB31)=0,\":\",SUM('3a'!AB31,'3b'!AB31,'3c'!AB31,'3d'!AB31,'3e (voluntary)'!AB31))","v":":"},null,{"$f":"IF(COUNT('3a'!AD31,'3b'!AD31,'3c'!AD31,'3d'!AD31,'3e (voluntary)'!AD31)=0,\":\",SUM('3a'!AD31,'3b'!AD31,'3c'!AD31,'3d'!AD31,'3e (voluntary)'!AD31))","v":":"},null,{"$f":"IF(COUNT('3a'!AF31,'3b'!AF31,'3c'!AF31,'3d'!AF31,'3e (voluntary)'!AF31)=0,\":\",SUM('3a'!AF31,'3b'!AF31,'3c'!AF31,'3d'!AF31,'3e (voluntary)'!AF31))","v":":"}]
["S11_S12","EP_BUS","EPS_INV_PT",null,null,null,null,null,2021,{"$f":"IF(COUNT('3a'!J32,'3b'!J32,'3c'!J32,'3d'!J32,'3e (voluntary)'!J32)=0,\":\",SUM('3a'!J32,'3b'!J32,'3c'!J32,'3d'!J32,'3e (voluntary)'!J32))","v":":"},null,{"$f":"IF(COUNT('3a'!L32,'3b'!L32,'3c'!L32,'3d'!L32,'3e (voluntary)'!L32)=0,\":\",SUM('3a'!L32,'3b'!L32,'3c'!L32,'3d'!L32,'3e (voluntary)'!L32))","v":":"},null,{"$f":"IF(COUNT('3a'!N32,'3b'!N32,'3c'!N32,'3d'!N32,'3e (voluntary)'!N32)=0,\":\",SUM('3a'!N32,'3b'!N32,'3c'!N32,'3d'!N32,'3e (voluntary)'!N32))","v":":"},null,{"$f":"IF(COUNT('3a'!P32,'3b'!P32,'3c'!P32,'3d'!P32,'3e (voluntary)'!P32)=0,\":\",SUM('3a'!P32,'3b'!P32,'3c'!P32,'3d'!P32,'3e (voluntary)'!P32))","v":":"},null,{"$f":"IF(COUNT('3a'!R32,'3b'!R32,'3c'!R32,'3d'!R32,'3e (voluntary)'!R32)=0,\":\",SUM('3a'!R32,'3b'!R32,'3c'!R32,'3d'!R32,'3e (voluntary)'!R32))","v":":"},null,{"$f":"IF(COUNT('3a'!T32,'3b'!T32,'3c'!T32,'3d'!T32,'3e (voluntary)'!T32)=0,\":\",SUM('3a'!T32,'3b'!T32,'3c'!T32,'3d'!T32,'3e (voluntary)'!T32))","v":":"},null,{"$f":"IF(COUNT('3a'!V32,'3b'!V32,'3c'!V32,'3d'!V32,'3e (voluntary)'!V32)=0,\":\",SUM('3a'!V32,'3b'!V32,'3c'!V32,'3d'!V32,'3e (voluntary)'!V32))","v":":"},null,{"$f":"IF(COUNT('3a'!X32,'3b'!X32,'3c'!X32,'3d'!X32,'3e (voluntary)'!X32)=0,\":\",SUM('3a'!X32,'3b'!X32,'3c'!X32,'3d'!X32,'3e (voluntary)'!X32))","v":":"},null,{"$f":"IF(COUNT('3a'!Z32,'3b'!Z32,'3c'!Z32,'3d'!Z32,'3e (voluntary)'!Z32)=0,\":\",SUM('3a'!Z32,'3b'!Z32,'3c'!Z32,'3d'!Z32,'3e (voluntary)'!Z32))","v":":"},null,{"$f":"IF(COUNT('3a'!AB32,'3b'!AB32,'3c'!AB32,'3d'!AB32,'3e (voluntary)'!AB32)=0,\":\",SUM('3a'!AB32,'3b'!AB32,'3c'!AB32,'3d'!AB32,'3e (voluntary)'!AB32))","v":":"},null,{"$f":"IF(COUNT('3a'!AD32,'3b'!AD32,'3c'!AD32,'3d'!AD32,'3e (voluntary)'!AD32)=0,\":\",SUM('3a'!AD32,'3b'!AD32,'3c'!AD32,'3d'!AD32,'3e (voluntary)'!AD32))","v":":"},null,{"$f":"IF(COUNT('3a'!AF32,'3b'!AF32,'3c'!AF32,'3d'!AF32,'3e (voluntary)'!AF32)=0,\":\",SUM('3a'!AF32,'3b'!AF32,'3c'!AF32,'3d'!AF32,'3e (voluntary)'!AF32))","v":":"}]
["S11_S12","EP_BUS","EPS_INV_PT",null,null,null,null,null,2022,{"$f":"IF(COUNT('3a'!J33,'3b'!J33,'3c'!J33,'3d'!J33,'3e (voluntary)'!J33)=0,\":\",SUM('3a'!J33,'3b'!J33,'3c'!J33,'3d'!J33,'3e (voluntary)'!J33))","v":":"},null,{"$f":"IF(COUNT('3a'!L33,'3b'!L33,'3c'!L33,'3d'!L33,'3e (voluntary)'!L33)=0,\":\",SUM('3a'!L33,'3b'!L33,'3c'!L33,'3d'!L33,'3e (voluntary)'!L33))","v":":"},null,{"$f":"IF(COUNT('3a'!N33,'3b'!N33,'3c'!N33,'3d'!N33,'3e (voluntary)'!N33)=0,\":\",SUM('3a'!N33,'3b'!N33,'3c'!N33,'3d'!N33,'3e (voluntary)'!N33))","v":":"},null,{"$f":"IF(COUNT('3a'!P33,'3b'!P33,'3c'!P33,'3d'!P33,'3e (voluntary)'!P33)=0,\":\",SUM('3a'!P33,'3b'!P33,'3c'!P33,'3d'!P33,'3e (voluntary)'!P33))","v":":"},null,{"$f":"IF(COUNT('3a'!R33,'3b'!R33,'3c'!R33,'3d'!R33,'3e (voluntary)'!R33)=0,\":\",SUM('3a'!R33,'3b'!R33,'3c'!R33,'3d'!R33,'3e (voluntary)'!R33))","v":":"},null,{"$f":"IF(COUNT('3a'!T33,'3b'!T33,'3c'!T33,'3d'!T33,'3e (voluntary)'!T33)=0,\":\",SUM('3a'!T33,'3b'!T33,'3c'!T33,'3d'!T33,'3e (voluntary)'!T33))","v":":"},null,{"$f":"IF(COUNT('3a'!V33,'3b'!V33,'3c'!V33,'3d'!V33,'3e (voluntary)'!V33)=0,\":\",SUM('3a'!V33,'3b'!V33,'3c'!V33,'3d'!V33,'3e (voluntary)'!V33))","v":":"},null,{"$f":"IF(COUNT('3a'!X33,'3b'!X33,'3c'!X33,'3d'!X33,'3e (voluntary)'!X33)=0,\":\",SUM('3a'!X33,'3b'!X33,'3c'!X33,'3d'!X33,'3e (voluntary)'!X33))","v":":"},null,{"$f":"IF(COUNT('3a'!Z33,'3b'!Z33,'3c'!Z33,'3d'!Z33,'3e (voluntary)'!Z33)=0,\":\",SUM('3a'!Z33,'3b'!Z33,'3c'!Z33,'3d'!Z33,'3e (voluntary)'!Z33))","v":":"},null,{"$f":"IF(COUNT('3a'!AB33,'3b'!AB33,'3c'!AB33,'3d'!AB33,'3e (voluntary)'!AB33)=0,\":\",SUM('3a'!AB33,'3b'!AB33,'3c'!AB33,'3d'!AB33,'3e (voluntary)'!AB33))","v":":"},null,{"$f":"IF(COUNT('3a'!AD33,'3b'!AD33,'3c'!AD33,'3d'!AD33,'3e (voluntary)'!AD33)=0,\":\",SUM('3a'!AD33,'3b'!AD33,'3c'!AD33,'3d'!AD33,'3e (voluntary)'!AD33))","v":":"},null,{"$f":"IF(COUNT('3a'!AF33,'3b'!AF33,'3c'!AF33,'3d'!AF33,'3e (voluntary)'!AF33)=0,\":\",SUM('3a'!AF33,'3b'!AF33,'3c'!AF33,'3d'!AF33,'3e (voluntary)'!AF33))","v":":"}]
["S11_S12","EP_BUS","EPS_INV_PT",null,null,null,null,null,2023,{"$f":"IF(COUNT('3a'!J34,'3b'!J34,'3c'!J34,'3d'!J34,'3e (voluntary)'!J34)=0,\":\",SUM('3a'!J34,'3b'!J34,'3c'!J34,'3d'!J34,'3e (voluntary)'!J34))","v":":"},null,{"$f":"IF(COUNT('3a'!L34,'3b'!L34,'3c'!L34,'3d'!L34,'3e (voluntary)'!L34)=0,\":\",SUM('3a'!L34,'3b'!L34,'3c'!L34,'3d'!L34,'3e (voluntary)'!L34))","v":":"},null,{"$f":"IF(COUNT('3a'!N34,'3b'!N34,'3c'!N34,'3d'!N34,'3e (voluntary)'!N34)=0,\":\",SUM('3a'!N34,'3b'!N34,'3c'!N34,'3d'!N34,'3e (voluntary)'!N34))","v":":"},null,{"$f":"IF(COUNT('3a'!P34,'3b'!P34,'3c'!P34,'3d'!P34,'3e (voluntary)'!P34)=0,\":\",SUM('3a'!P34,'3b'!P34,'3c'!P34,'3d'!P34,'3e (voluntary)'!P34))","v":":"},null,{"$f":"IF(COUNT('3a'!R34,'3b'!R34,'3c'!R34,'3d'!R34,'3e (voluntary)'!R34)=0,\":\",SUM('3a'!R34,'3b'!R34,'3c'!R34,'3d'!R34,'3e (voluntary)'!R34))","v":":"},null,{"$f":"IF(COUNT('3a'!T34,'3b'!T34,'3c'!T34,'3d'!T34,'3e (voluntary)'!T34)=0,\":\",SUM('3a'!T34,'3b'!T34,'3c'!T34,'3d'!T34,'3e (voluntary)'!T34))","v":":"},null,{"$f":"IF(COUNT('3a'!V34,'3b'!V34,'3c'!V34,'3d'!V34,'3e (voluntary)'!V34)=0,\":\",SUM('3a'!V34,'3b'!V34,'3c'!V34,'3d'!V34,'3e (voluntary)'!V34))","v":":"},null,{"$f":"IF(COUNT('3a'!X34,'3b'!X34,'3c'!X34,'3d'!X34,'3e (voluntary)'!X34)=0,\":\",SUM('3a'!X34,'3b'!X34,'3c'!X34,'3d'!X34,'3e (voluntary)'!X34))","v":":"},null,{"$f":"IF(COUNT('3a'!Z34,'3b'!Z34,'3c'!Z34,'3d'!Z34,'3e (voluntary)'!Z34)=0,\":\",SUM('3a'!Z34,'3b'!Z34,'3c'!Z34,'3d'!Z34,'3e (voluntary)'!Z34))","v":":"},null,{"$f":"IF(COUNT('3a'!AB34,'3b'!AB34,'3c'!AB34,'3d'!AB34,'3e (voluntary)'!AB34)=0,\":\",SUM('3a'!AB34,'3b'!AB34,'3c'!AB34,'3d'!AB34,'3e (voluntary)'!AB34))","v":":"},null,{"$f":"IF(COUNT('3a'!AD34,'3b'!AD34,'3c'!AD34,'3d'!AD34,'3e (voluntary)'!AD34)=0,\":\",SUM('3a'!AD34,'3b'!AD34,'3c'!AD34,'3d'!AD34,'3e (voluntary)'!AD34))","v":":"},null,{"$f":"IF(COUNT('3a'!AF34,'3b'!AF34,'3c'!AF34,'3d'!AF34,'3e (voluntary)'!AF34)=0,\":\",SUM('3a'!AF34,'3b'!AF34,'3c'!AF34,'3d'!AF34,'3e (voluntary)'!AF34))","v":":"}]
["S11_S12","EP_BUS","EPS_INV_PT",null,null,null,null,null,2024,{"$f":"IF(COUNT('3a'!J35,'3b'!J35,'3c'!J35,'3d'!J35,'3e (voluntary)'!J35)=0,\":\",SUM('3a'!J35,'3b'!J35,'3c'!J35,'3d'!J35,'3e (voluntary)'!J35))","v":":"},null,{"$f":"IF(COUNT('3a'!L35,'3b'!L35,'3c'!L35,'3d'!L35,'3e (voluntary)'!L35)=0,\":\",SUM('3a'!L35,'3b'!L35,'3c'!L35,'3d'!L35,'3e (voluntary)'!L35))","v":":"},null,{"$f":"IF(COUNT('3a'!N35,'3b'!N35,'3c'!N35,'3d'!N35,'3e (voluntary)'!N35)=0,\":\",SUM('3a'!N35,'3b'!N35,'3c'!N35,'3d'!N35,'3e (voluntary)'!N35))","v":":"},null,{"$f":"IF(COUNT('3a'!P35,'3b'!P35,'3c'!P35,'3d'!P35,'3e (voluntary)'!P35)=0,\":\",SUM('3a'!P35,'3b'!P35,'3c'!P35,'3d'!P35,'3e (voluntary)'!P35))","v":":"},null,{"$f":"IF(COUNT('3a'!R35,'3b'!R35,'3c'!R35,'3d'!R35,'3e (voluntary)'!R35)=0,\":\",SUM('3a'!R35,'3b'!R35,'3c'!R35,'3d'!R35,'3e (voluntary)'!R35))","v":":"},null,{"$f":"IF(COUNT('3a'!T35,'3b'!T35,'3c'!T35,'3d'!T35,'3e (voluntary)'!T35)=0,\":\",SUM('3a'!T35,'3b'!T35,'3c'!T35,'3d'!T35,'3e (voluntary)'!T35))","v":":"},null,{"$f":"IF(COUNT('3a'!V35,'3b'!V35,'3c'!V35,'3d'!V35,'3e (voluntary)'!V35)=0,\":\",SUM('3a'!V35,'3b'!V35,'3c'!V35,'3d'!V35,'3e (voluntary)'!V35))","v":":"},null,{"$f":"IF(COUNT('3a'!X35,'3b'!X35,'3c'!X35,'3d'!X35,'3e (voluntary)'!X35)=0,\":\",SUM('3a'!X35,'3b'!X35,'3c'!X35,'3d'!X35,'3e (voluntary)'!X35))","v":":"},null,{"$f":"IF(COUNT('3a'!Z35,'3b'!Z35,'3c'!Z35,'3d'!Z35,'3e (voluntary)'!Z35)=0,\":\",SUM('3a'!Z35,'3b'!Z35,'3c'!Z35,'3d'!Z35,'3e (voluntary)'!Z35))","v":":"},null,{"$f":"IF(COUNT('3a'!AB35,'3b'!AB35,'3c'!AB35,'3d'!AB35,'3e (voluntary)'!AB35)=0,\":\",SUM('3a'!AB35,'3b'!AB35,'3c'!AB35,'3d'!AB35,'3e (voluntary)'!AB35))","v":":"},null,{"$f":"IF(COUNT('3a'!AD35,'3b'!AD35,'3c'!AD35,'3d'!AD35,'3e (voluntary)'!AD35)=0,\":\",SUM('3a'!AD35,'3b'!AD35,'3c'!AD35,'3d'!AD35,'3e (voluntary)'!AD35))","v":":"},null,{"$f":"IF(COUNT('3a'!AF35,'3b'!AF35,'3c'!AF35,'3d'!AF35,'3e (voluntary)'!AF35)=0,\":\",SUM('3a'!AF35,'3b'!AF35,'3c'!AF35,'3d'!AF35,'3e (voluntary)'!AF35))","v":":"}]
["S11_S12","EP_BUS","EPS_INV_PT",null,null,null,null,null,2025,{"$f":"IF(COUNT('3a'!J36,'3b'!J36,'3c'!J36,'3d'!J36,'3e (voluntary)'!J36)=0,\":\",SUM('3a'!J36,'3b'!J36,'3c'!J36,'3d'!J36,'3e (voluntary)'!J36))","v":":"},null,{"$f":"IF(COUNT('3a'!L36,'3b'!L36,'3c'!L36,'3d'!L36,'3e (voluntary)'!L36)=0,\":\",SUM('3a'!L36,'3b'!L36,'3c'!L36,'3d'!L36,'3e (voluntary)'!L36))","v":":"},null,{"$f":"IF(COUNT('3a'!N36,'3b'!N36,'3c'!N36,'3d'!N36,'3e (voluntary)'!N36)=0,\":\",SUM('3a'!N36,'3b'!N36,'3c'!N36,'3d'!N36,'3e (voluntary)'!N36))","v":":"},null,{"$f":"IF(COUNT('3a'!P36,'3b'!P36,'3c'!P36,'3d'!P36,'3e (voluntary)'!P36)=0,\":\",SUM('3a'!P36,'3b'!P36,'3c'!P36,'3d'!P36,'3e (voluntary)'!P36))","v":":"},null,{"$f":"IF(COUNT('3a'!R36,'3b'!R36,'3c'!R36,'3d'!R36,'3e (voluntary)'!R36)=0,\":\",SUM('3a'!R36,'3b'!R36,'3c'!R36,'3d'!R36,'3e (voluntary)'!R36))","v":":"},null,{"$f":"IF(COUNT('3a'!T36,'3b'!T36,'3c'!T36,'3d'!T36,'3e (voluntary)'!T36)=0,\":\",SUM('3a'!T36,'3b'!T36,'3c'!T36,'3d'!T36,'3e (voluntary)'!T36))","v":":"},null,{"$f":"IF(COUNT('3a'!V36,'3b'!V36,'3c'!V36,'3d'!V36,'3e (voluntary)'!V36)=0,\":\",SUM('3a'!V36,'3b'!V36,'3c'!V36,'3d'!V36,'3e (voluntary)'!V36))","v":":"},null,{"$f":"IF(COUNT('3a'!X36,'3b'!X36,'3c'!X36,'3d'!X36,'3e (voluntary)'!X36)=0,\":\",SUM('3a'!X36,'3b'!X36,'3c'!X36,'3d'!X36,'3e (voluntary)'!X36))","v":":"},null,{"$f":"IF(COUNT('3a'!Z36,'3b'!Z36,'3c'!Z36,'3d'!Z36,'3e (voluntary)'!Z36)=0,\":\",SUM('3a'!Z36,'3b'!Z36,'3c'!Z36,'3d'!Z36,'3e (voluntary)'!Z36))","v":":"},null,{"$f":"IF(COUNT('3a'!AB36,'3b'!AB36,'3c'!AB36,'3d'!AB36,'3e (voluntary)'!AB36)=0,\":\",SUM('3a'!AB36,'3b'!AB36,'3c'!AB36,'3d'!AB36,'3e (voluntary)'!AB36))","v":":"},null,{"$f":"IF(COUNT('3a'!AD36,'3b'!AD36,'3c'!AD36,'3d'!AD36,'3e (voluntary)'!AD36)=0,\":\",SUM('3a'!AD36,'3b'!AD36,'3c'!AD36,'3d'!AD36,'3e (voluntary)'!AD36))","v":":"},null,{"$f":"IF(COUNT('3a'!AF36,'3b'!AF36,'3c'!AF36,'3d'!AF36,'3e (voluntary)'!AF36)=0,\":\",SUM('3a'!AF36,'3b'!AF36,'3c'!AF36,'3d'!AF36,'3e (voluntary)'!AF36))","v":":"}]
["S11_S12","EP_BUS","EPS_INV_PT",null,null,null,null,null,2026,{"$f":"IF(COUNT('3a'!J37,'3b'!J37,'3c'!J37,'3d'!J37,'3e (voluntary)'!J37)=0,\":\",SUM('3a'!J37,'3b'!J37,'3c'!J37,'3d'!J37,'3e (voluntary)'!J37))","v":":"},null,{"$f":"IF(COUNT('3a'!L37,'3b'!L37,'3c'!L37,'3d'!L37,'3e (voluntary)'!L37)=0,\":\",SUM('3a'!L37,'3b'!L37,'3c'!L37,'3d'!L37,'3e (voluntary)'!L37))","v":":"},null,{"$f":"IF(COUNT('3a'!N37,'3b'!N37,'3c'!N37,'3d'!N37,'3e (voluntary)'!N37)=0,\":\",SUM('3a'!N37,'3b'!N37,'3c'!N37,'3d'!N37,'3e (voluntary)'!N37))","v":":"},null,{"$f":"IF(COUNT('3a'!P37,'3b'!P37,'3c'!P37,'3d'!P37,'3e (voluntary)'!P37)=0,\":\",SUM('3a'!P37,'3b'!P37,'3c'!P37,'3d'!P37,'3e (voluntary)'!P37))","v":":"},null,{"$f":"IF(COUNT('3a'!R37,'3b'!R37,'3c'!R37,'3d'!R37,'3e (voluntary)'!R37)=0,\":\",SUM('3a'!R37,'3b'!R37,'3c'!R37,'3d'!R37,'3e (voluntary)'!R37))","v":":"},null,{"$f":"IF(COUNT('3a'!T37,'3b'!T37,'3c'!T37,'3d'!T37,'3e (voluntary)'!T37)=0,\":\",SUM('3a'!T37,'3b'!T37,'3c'!T37,'3d'!T37,'3e (voluntary)'!T37))","v":":"},null,{"$f":"IF(COUNT('3a'!V37,'3b'!V37,'3c'!V37,'3d'!V37,'3e (voluntary)'!V37)=0,\":\",SUM('3a'!V37,'3b'!V37,'3c'!V37,'3d'!V37,'3e (voluntary)'!V37))","v":":"},null,{"$f":"IF(COUNT('3a'!X37,'3b'!X37,'3c'!X37,'3d'!X37,'3e (voluntary)'!X37)=0,\":\",SUM('3a'!X37,'3b'!X37,'3c'!X37,'3d'!X37,'3e (voluntary)'!X37))","v":":"},null,{"$f":"IF(COUNT('3a'!Z37,'3b'!Z37,'3c'!Z37,'3d'!Z37,'3e (voluntary)'!Z37)=0,\":\",SUM('3a'!Z37,'3b'!Z37,'3c'!Z37,'3d'!Z37,'3e (voluntary)'!Z37))","v":":"},null,{"$f":"IF(COUNT('3a'!AB37,'3b'!AB37,'3c'!AB37,'3d'!AB37,'3e (voluntary)'!AB37)=0,\":\",SUM('3a'!AB37,'3b'!AB37,'3c'!AB37,'3d'!AB37,'3e (voluntary)'!AB37))","v":":"},null,{"$f":"IF(COUNT('3a'!AD37,'3b'!AD37,'3c'!AD37,'3d'!AD37,'3e (voluntary)'!AD37)=0,\":\",SUM('3a'!AD37,'3b'!AD37,'3c'!AD37,'3d'!AD37,'3e (voluntary)'!AD37))","v":":"},null,{"$f":"IF(COUNT('3a'!AF37,'3b'!AF37,'3c'!AF37,'3d'!AF37,'3e (voluntary)'!AF37)=0,\":\",SUM('3a'!AF37,'3b'!AF37,'3c'!AF37,'3d'!AF37,'3e (voluntary)'!AF37))","v":":"}]
["S11_S12","EP_BUS","EPS_INV_PT",null,null,null,null,null,2027,{"$f":"IF(COUNT('3a'!J38,'3b'!J38,'3c'!J38,'3d'!J38,'3e (voluntary)'!J38)=0,\":\",SUM('3a'!J38,'3b'!J38,'3c'!J38,'3d'!J38,'3e (voluntary)'!J38))","v":":"},null,{"$f":"IF(COUNT('3a'!L38,'3b'!L38,'3c'!L38,'3d'!L38,'3e (voluntary)'!L38)=0,\":\",SUM('3a'!L38,'3b'!L38,'3c'!L38,'3d'!L38,'3e (voluntary)'!L38))","v":":"},null,{"$f":"IF(COUNT('3a'!N38,'3b'!N38,'3c'!N38,'3d'!N38,'3e (voluntary)'!N38)=0,\":\",SUM('3a'!N38,'3b'!N38,'3c'!N38,'3d'!N38,'3e (voluntary)'!N38))","v":":"},null,{"$f":"IF(COUNT('3a'!P38,'3b'!P38,'3c'!P38,'3d'!P38,'3e (voluntary)'!P38)=0,\":\",SUM('3a'!P38,'3b'!P38,'3c'!P38,'3d'!P38,'3e (voluntary)'!P38))","v":":"},null,{"$f":"IF(COUNT('3a'!R38,'3b'!R38,'3c'!R38,'3d'!R38,'3e (voluntary)'!R38)=0,\":\",SUM('3a'!R38,'3b'!R38,'3c'!R38,'3d'!R38,'3e (voluntary)'!R38))","v":":"},null,{"$f":"IF(COUNT('3a'!T38,'3b'!T38,'3c'!T38,'3d'!T38,'3e (voluntary)'!T38)=0,\":\",SUM('3a'!T38,'3b'!T38,'3c'!T38,'3d'!T38,'3e (voluntary)'!T38))","v":":"},null,{"$f":"IF(COUNT('3a'!V38,'3b'!V38,'3c'!V38,'3d'!V38,'3e (voluntary)'!V38)=0,\":\",SUM('3a'!V38,'3b'!V38,'3c'!V38,'3d'!V38,'3e (voluntary)'!V38))","v":":"},null,{"$f":"IF(COUNT('3a'!X38,'3b'!X38,'3c'!X38,'3d'!X38,'3e (voluntary)'!X38)=0,\":\",SUM('3a'!X38,'3b'!X38,'3c'!X38,'3d'!X38,'3e (voluntary)'!X38))","v":":"},null,{"$f":"IF(COUNT('3a'!Z38,'3b'!Z38,'3c'!Z38,'3d'!Z38,'3e (voluntary)'!Z38)=0,\":\",SUM('3a'!Z38,'3b'!Z38,'3c'!Z38,'3d'!Z38,'3e (voluntary)'!Z38))","v":":"},null,{"$f":"IF(COUNT('3a'!AB38,'3b'!AB38,'3c'!AB38,'3d'!AB38,'3e (voluntary)'!AB38)=0,\":\",SUM('3a'!AB38,'3b'!AB38,'3c'!AB38,'3d'!AB38,'3e (voluntary)'!AB38))","v":":"},null,{"$f":"IF(COUNT('3a'!AD38,'3b'!AD38,'3c'!AD38,'3d'!AD38,'3e (voluntary)'!AD38)=0,\":\",SUM('3a'!AD38,'3b'!AD38,'3c'!AD38,'3d'!AD38,'3e (voluntary)'!AD38))","v":":"},null,{"$f":"IF(COUNT('3a'!AF38,'3b'!AF38,'3c'!AF38,'3d'!AF38,'3e (voluntary)'!AF38)=0,\":\",SUM('3a'!AF38,'3b'!AF38,'3c'!AF38,'3d'!AF38,'3e (voluntary)'!AF38))","v":":"}]
["S11_S12","EP_BUS","EPS_INV_PT",null,null,null,null,null,2028,{"$f":"IF(COUNT('3a'!J39,'3b'!J39,'3c'!J39,'3d'!J39,'3e (voluntary)'!J39)=0,\":\",SUM('3a'!J39,'3b'!J39,'3c'!J39,'3d'!J39,'3e (voluntary)'!J39))","v":":"},null,{"$f":"IF(COUNT('3a'!L39,'3b'!L39,'3c'!L39,'3d'!L39,'3e (voluntary)'!L39)=0,\":\",SUM('3a'!L39,'3b'!L39,'3c'!L39,'3d'!L39,'3e (voluntary)'!L39))","v":":"},null,{"$f":"IF(COUNT('3a'!N39,'3b'!N39,'3c'!N39,'3d'!N39,'3e (voluntary)'!N39)=0,\":\",SUM('3a'!N39,'3b'!N39,'3c'!N39,'3d'!N39,'3e (voluntary)'!N39))","v":":"},null,{"$f":"IF(COUNT('3a'!P39,'3b'!P39,'3c'!P39,'3d'!P39,'3e (voluntary)'!P39)=0,\":\",SUM('3a'!P39,'3b'!P39,'3c'!P39,'3d'!P39,'3e (voluntary)'!P39))","v":":"},null,{"$f":"IF(COUNT('3a'!R39,'3b'!R39,'3c'!R39,'3d'!R39,'3e (voluntary)'!R39)=0,\":\",SUM('3a'!R39,'3b'!R39,'3c'!R39,'3d'!R39,'3e (voluntary)'!R39))","v":":"},null,{"$f":"IF(COUNT('3a'!T39,'3b'!T39,'3c'!T39,'3d'!T39,'3e (voluntary)'!T39)=0,\":\",SUM('3a'!T39,'3b'!T39,'3c'!T39,'3d'!T39,'3e (voluntary)'!T39))","v":":"},null,{"$f":"IF(COUNT('3a'!V39,'3b'!V39,'3c'!V39,'3d'!V39,'3e (voluntary)'!V39)=0,\":\",SUM('3a'!V39,'3b'!V39,'3c'!V39,'3d'!V39,'3e (voluntary)'!V39))","v":":"},null,{"$f":"IF(COUNT('3a'!X39,'3b'!X39,'3c'!X39,'3d'!X39,'3e (voluntary)'!X39)=0,\":\",SUM('3a'!X39,'3b'!X39,'3c'!X39,'3d'!X39,'3e (voluntary)'!X39))","v":":"},null,{"$f":"IF(COUNT('3a'!Z39,'3b'!Z39,'3c'!Z39,'3d'!Z39,'3e (voluntary)'!Z39)=0,\":\",SUM('3a'!Z39,'3b'!Z39,'3c'!Z39,'3d'!Z39,'3e (voluntary)'!Z39))","v":":"},null,{"$f":"IF(COUNT('3a'!AB39,'3b'!AB39,'3c'!AB39,'3d'!AB39,'3e (voluntary)'!AB39)=0,\":\",SUM('3a'!AB39,'3b'!AB39,'3c'!AB39,'3d'!AB39,'3e (voluntary)'!AB39))","v":":"},null,{"$f":"IF(COUNT('3a'!AD39,'3b'!AD39,'3c'!AD39,'3d'!AD39,'3e (voluntary)'!AD39)=0,\":\",SUM('3a'!AD39,'3b'!AD39,'3c'!AD39,'3d'!AD39,'3e (voluntary)'!AD39))","v":":"},null,{"$f":"IF(COUNT('3a'!AF39,'3b'!AF39,'3c'!AF39,'3d'!AF39,'3e (voluntary)'!AF39)=0,\":\",SUM('3a'!AF39,'3b'!AF39,'3c'!AF39,'3d'!AF39,'3e (voluntary)'!AF39))","v":":"}]
["S11_S12","EP_BUS","EPS_INV_PT",null,null,null,null,null,2029,{"$f":"IF(COUNT('3a'!J40,'3b'!J40,'3c'!J40,'3d'!J40,'3e (voluntary)'!J40)=0,\":\",SUM('3a'!J40,'3b'!J40,'3c'!J40,'3d'!J40,'3e (voluntary)'!J40))","v":":"},null,{"$f":"IF(COUNT('3a'!L40,'3b'!L40,'3c'!L40,'3d'!L40,'3e (voluntary)'!L40)=0,\":\",SUM('3a'!L40,'3b'!L40,'3c'!L40,'3d'!L40,'3e (voluntary)'!L40))","v":":"},null,{"$f":"IF(COUNT('3a'!N40,'3b'!N40,'3c'!N40,'3d'!N40,'3e (voluntary)'!N40)=0,\":\",SUM('3a'!N40,'3b'!N40,'3c'!N40,'3d'!N40,'3e (voluntary)'!N40))","v":":"},null,{"$f":"IF(COUNT('3a'!P40,'3b'!P40,'3c'!P40,'3d'!P40,'3e (voluntary)'!P40)=0,\":\",SUM('3a'!P40,'3b'!P40,'3c'!P40,'3d'!P40,'3e (voluntary)'!P40))","v":":"},null,{"$f":"IF(COUNT('3a'!R40,'3b'!R40,'3c'!R40,'3d'!R40,'3e (voluntary)'!R40)=0,\":\",SUM('3a'!R40,'3b'!R40,'3c'!R40,'3d'!R40,'3e (voluntary)'!R40))","v":":"},null,{"$f":"IF(COUNT('3a'!T40,'3b'!T40,'3c'!T40,'3d'!T40,'3e (voluntary)'!T40)=0,\":\",SUM('3a'!T40,'3b'!T40,'3c'!T40,'3d'!T40,'3e (voluntary)'!T40))","v":":"},null,{"$f":"IF(COUNT('3a'!V40,'3b'!V40,'3c'!V40,'3d'!V40,'3e (voluntary)'!V40)=0,\":\",SUM('3a'!V40,'3b'!V40,'3c'!V40,'3d'!V40,'3e (voluntary)'!V40))","v":":"},null,{"$f":"IF(COUNT('3a'!X40,'3b'!X40,'3c'!X40,'3d'!X40,'3e (voluntary)'!X40)=0,\":\",SUM('3a'!X40,'3b'!X40,'3c'!X40,'3d'!X40,'3e (voluntary)'!X40))","v":":"},null,{"$f":"IF(COUNT('3a'!Z40,'3b'!Z40,'3c'!Z40,'3d'!Z40,'3e (voluntary)'!Z40)=0,\":\",SUM('3a'!Z40,'3b'!Z40,'3c'!Z40,'3d'!Z40,'3e (voluntary)'!Z40))","v":":"},null,{"$f":"IF(COUNT('3a'!AB40,'3b'!AB40,'3c'!AB40,'3d'!AB40,'3e (voluntary)'!AB40)=0,\":\",SUM('3a'!AB40,'3b'!AB40,'3c'!AB40,'3d'!AB40,'3e (voluntary)'!AB40))","v":":"},null,{"$f":"IF(COUNT('3a'!AD40,'3b'!AD40,'3c'!AD40,'3d'!AD40,'3e (voluntary)'!AD40)=0,\":\",SUM('3a'!AD40,'3b'!AD40,'3c'!AD40,'3d'!AD40,'3e (voluntary)'!AD40))","v":":"},null,{"$f":"IF(COUNT('3a'!AF40,'3b'!AF40,'3c'!AF40,'3d'!AF40,'3e (voluntary)'!AF40)=0,\":\",SUM('3a'!AF40,'3b'!AF40,'3c'!AF40,'3d'!AF40,'3e (voluntary)'!AF40))","v":":"}]
["S11_S12","EP_BUS","EPS_INV_PT",null,null,null,null,null,2030,{"$f":"IF(COUNT('3a'!J41,'3b'!J41,'3c'!J41,'3d'!J41,'3e (voluntary)'!J41)=0,\":\",SUM('3a'!J41,'3b'!J41,'3c'!J41,'3d'!J41,'3e (voluntary)'!J41))","v":":"},null,{"$f":"IF(COUNT('3a'!L41,'3b'!L41,'3c'!L41,'3d'!L41,'3e (voluntary)'!L41)=0,\":\",SUM('3a'!L41,'3b'!L41,'3c'!L41,'3d'!L41,'3e (voluntary)'!L41))","v":":"},null,{"$f":"IF(COUNT('3a'!N41,'3b'!N41,'3c'!N41,'3d'!N41,'3e (voluntary)'!N41)=0,\":\",SUM('3a'!N41,'3b'!N41,'3c'!N41,'3d'!N41,'3e (voluntary)'!N41))","v":":"},null,{"$f":"IF(COUNT('3a'!P41,'3b'!P41,'3c'!P41,'3d'!P41,'3e (voluntary)'!P41)=0,\":\",SUM('3a'!P41,'3b'!P41,'3c'!P41,'3d'!P41,'3e (voluntary)'!P41))","v":":"},null,{"$f":"IF(COUNT('3a'!R41,'3b'!R41,'3c'!R41,'3d'!R41,'3e (voluntary)'!R41)=0,\":\",SUM('3a'!R41,'3b'!R41,'3c'!R41,'3d'!R41,'3e (voluntary)'!R41))","v":":"},null,{"$f":"IF(COUNT('3a'!T41,'3b'!T41,'3c'!T41,'3d'!T41,'3e (voluntary)'!T41)=0,\":\",SUM('3a'!T41,'3b'!T41,'3c'!T41,'3d'!T41,'3e (voluntary)'!T41))","v":":"},null,{"$f":"IF(COUNT('3a'!V41,'3b'!V41,'3c'!V41,'3d'!V41,'3e (voluntary)'!V41)=0,\":\",SUM('3a'!V41,'3b'!V41,'3c'!V41,'3d'!V41,'3e (voluntary)'!V41))","v":":"},null,{"$f":"IF(COUNT('3a'!X41,'3b'!X41,'3c'!X41,'3d'!X41,'3e (voluntary)'!X41)=0,\":\",SUM('3a'!X41,'3b'!X41,'3c'!X41,'3d'!X41,'3e (voluntary)'!X41))","v":":"},null,{"$f":"IF(COUNT('3a'!Z41,'3b'!Z41,'3c'!Z41,'3d'!Z41,'3e (voluntary)'!Z41)=0,\":\",SUM('3a'!Z41,'3b'!Z41,'3c'!Z41,'3d'!Z41,'3e (voluntary)'!Z41))","v":":"},null,{"$f":"IF(COUNT('3a'!AB41,'3b'!AB41,'3c'!AB41,'3d'!AB41,'3e (voluntary)'!AB41)=0,\":\",SUM('3a'!AB41,'3b'!AB41,'3c'!AB41,'3d'!AB41,'3e (voluntary)'!AB41))","v":":"},null,{"$f":"IF(COUNT('3a'!AD41,'3b'!AD41,'3c'!AD41,'3d'!AD41,'3e (voluntary)'!AD41)=0,\":\",SUM('3a'!AD41,'3b'!AD41,'3c'!AD41,'3d'!AD41,'3e (voluntary)'!AD41))","v":":"},null,{"$f":"IF(COUNT('3a'!AF41,'3b'!AF41,'3c'!AF41,'3d'!AF41,'3e (voluntary)'!AF41)=0,\":\",SUM('3a'!AF41,'3b'!AF41,'3c'!AF41,'3d'!AF41,'3e (voluntary)'!AF41))","v":":"}]
["S11_S12","EP_BUS","EPS_INV_PT",null,null,null,null,null,2031,{"$f":"IF(COUNT('3a'!J42,'3b'!J42,'3c'!J42,'3d'!J42,'3e (voluntary)'!J42)=0,\":\",SUM('3a'!J42,'3b'!J42,'3c'!J42,'3d'!J42,'3e (voluntary)'!J42))","v":":"},null,{"$f":"IF(COUNT('3a'!L42,'3b'!L42,'3c'!L42,'3d'!L42,'3e (voluntary)'!L42)=0,\":\",SUM('3a'!L42,'3b'!L42,'3c'!L42,'3d'!L42,'3e (voluntary)'!L42))","v":":"},null,{"$f":"IF(COUNT('3a'!N42,'3b'!N42,'3c'!N42,'3d'!N42,'3e (voluntary)'!N42)=0,\":\",SUM('3a'!N42,'3b'!N42,'3c'!N42,'3d'!N42,'3e (voluntary)'!N42))","v":":"},null,{"$f":"IF(COUNT('3a'!P42,'3b'!P42,'3c'!P42,'3d'!P42,'3e (voluntary)'!P42)=0,\":\",SUM('3a'!P42,'3b'!P42,'3c'!P42,'3d'!P42,'3e (voluntary)'!P42))","v":":"},null,{"$f":"IF(COUNT('3a'!R42,'3b'!R42,'3c'!R42,'3d'!R42,'3e (voluntary)'!R42)=0,\":\",SUM('3a'!R42,'3b'!R42,'3c'!R42,'3d'!R42,'3e (voluntary)'!R42))","v":":"},null,{"$f":"IF(COUNT('3a'!T42,'3b'!T42,'3c'!T42,'3d'!T42,'3e (voluntary)'!T42)=0,\":\",SUM('3a'!T42,'3b'!T42,'3c'!T42,'3d'!T42,'3e (voluntary)'!T42))","v":":"},null,{"$f":"IF(COUNT('3a'!V42,'3b'!V42,'3c'!V42,'3d'!V42,'3e (voluntary)'!V42)=0,\":\",SUM('3a'!V42,'3b'!V42,'3c'!V42,'3d'!V42,'3e (voluntary)'!V42))","v":":"},null,{"$f":"IF(COUNT('3a'!X42,'3b'!X42,'3c'!X42,'3d'!X42,'3e (voluntary)'!X42)=0,\":\",SUM('3a'!X42,'3b'!X42,'3c'!X42,'3d'!X42,'3e (voluntary)'!X42))","v":":"},null,{"$f":"IF(COUNT('3a'!Z42,'3b'!Z42,'3c'!Z42,'3d'!Z42,'3e (voluntary)'!Z42)=0,\":\",SUM('3a'!Z42,'3b'!Z42,'3c'!Z42,'3d'!Z42,'3e (voluntary)'!Z42))","v":":"},null,{"$f":"IF(COUNT('3a'!AB42,'3b'!AB42,'3c'!AB42,'3d'!AB42,'3e (voluntary)'!AB42)=0,\":\",SUM('3a'!AB42,'3b'!AB42,'3c'!AB42,'3d'!AB42,'3e (voluntary)'!AB42))","v":":"},null,{"$f":"IF(COUNT('3a'!AD42,'3b'!AD42,'3c'!AD42,'3d'!AD42,'3e (voluntary)'!AD42)=0,\":\",SUM('3a'!AD42,'3b'!AD42,'3c'!AD42,'3d'!AD42,'3e (voluntary)'!AD42))","v":":"},null,{"$f":"IF(COUNT('3a'!AF42,'3b'!AF42,'3c'!AF42,'3d'!AF42,'3e (voluntary)'!AF42)=0,\":\",SUM('3a'!AF42,'3b'!AF42,'3c'!AF42,'3d'!AF42,'3e (voluntary)'!AF42))","v":":"}]
["S11_S12","EP_BUS","EPS_INV_PP",null,"( INV_IT.3 ) GFCF on cleaner EP fixed assets (integrated technologies)",null,null,null,2014,{"$f":"IF(COUNT('3a'!J43,'3b'!J43,'3c'!J43,'3d'!J43,'3e (voluntary)'!J43)=0,\":\",SUM('3a'!J43,'3b'!J43,'3c'!J43,'3d'!J43,'3e (voluntary)'!J43))","v":":"},null,{"$f":"IF(COUNT('3a'!L43,'3b'!L43,'3c'!L43,'3d'!L43,'3e (voluntary)'!L43)=0,\":\",SUM('3a'!L43,'3b'!L43,'3c'!L43,'3d'!L43,'3e (voluntary)'!L43))","v":":"},null,{"$f":"IF(COUNT('3a'!N43,'3b'!N43,'3c'!N43,'3d'!N43,'3e (voluntary)'!N43)=0,\":\",SUM('3a'!N43,'3b'!N43,'3c'!N43,'3d'!N43,'3e (voluntary)'!N43))","v":":"},null,{"$f":"IF(COUNT('3a'!P43,'3b'!P43,'3c'!P43,'3d'!P43,'3e (voluntary)'!P43)=0,\":\",SUM('3a'!P43,'3b'!P43,'3c'!P43,'3d'!P43,'3e (voluntary)'!P43))","v":":"},null,{"$f":"IF(COUNT('3a'!R43,'3b'!R43,'3c'!R43,'3d'!R43,'3e (voluntary)'!R43)=0,\":\",SUM('3a'!R43,'3b'!R43,'3c'!R43,'3d'!R43,'3e (voluntary)'!R43))","v":":"},null,{"$f":"IF(COUNT('3a'!T43,'3b'!T43,'3c'!T43,'3d'!T43,'3e (voluntary)'!T43)=0,\":\",SUM('3a'!T43,'3b'!T43,'3c'!T43,'3d'!T43,'3e (voluntary)'!T43))","v":":"},null,{"$f":"IF(COUNT('3a'!V43,'3b'!V43,'3c'!V43,'3d'!V43,'3e (voluntary)'!V43)=0,\":\",SUM('3a'!V43,'3b'!V43,'3c'!V43,'3d'!V43,'3e (voluntary)'!V43))","v":":"},null,{"$f":"IF(COUNT('3a'!X43,'3b'!X43,'3c'!X43,'3d'!X43,'3e (voluntary)'!X43)=0,\":\",SUM('3a'!X43,'3b'!X43,'3c'!X43,'3d'!X43,'3e (voluntary)'!X43))","v":":"},null,{"$f":"IF(COUNT('3a'!Z43,'3b'!Z43,'3c'!Z43,'3d'!Z43,'3e (voluntary)'!Z43)=0,\":\",SUM('3a'!Z43,'3b'!Z43,'3c'!Z43,'3d'!Z43,'3e (voluntary)'!Z43))","v":":"},null,{"$f":"IF(COUNT('3a'!AB43,'3b'!AB43,'3c'!AB43,'3d'!AB43,'3e (voluntary)'!AB43)=0,\":\",SUM('3a'!AB43,'3b'!AB43,'3c'!AB43,'3d'!AB43,'3e (voluntary)'!AB43))","v":":"},null,{"$f":"IF(COUNT('3a'!AD43,'3b'!AD43,'3c'!AD43,'3d'!AD43,'3e (voluntary)'!AD43)=0,\":\",SUM('3a'!AD43,'3b'!AD43,'3c'!AD43,'3d'!AD43,'3e (voluntary)'!AD43))","v":":"},null,{"$f":"IF(COUNT('3a'!AF43,'3b'!AF43,'3c'!AF43,'3d'!AF43,'3e (voluntary)'!AF43)=0,\":\",SUM('3a'!AF43,'3b'!AF43,'3c'!AF43,'3d'!AF43,'3e (voluntary)'!AF43))","v":":"}]
["S11_S12","EP_BUS","EPS_INV_PP",null,null,null,null,null,2015,{"$f":"IF(COUNT('3a'!J44,'3b'!J44,'3c'!J44,'3d'!J44,'3e (voluntary)'!J44)=0,\":\",SUM('3a'!J44,'3b'!J44,'3c'!J44,'3d'!J44,'3e (voluntary)'!J44))","v":":"},null,{"$f":"IF(COUNT('3a'!L44,'3b'!L44,'3c'!L44,'3d'!L44,'3e (voluntary)'!L44)=0,\":\",SUM('3a'!L44,'3b'!L44,'3c'!L44,'3d'!L44,'3e (voluntary)'!L44))","v":":"},null,{"$f":"IF(COUNT('3a'!N44,'3b'!N44,'3c'!N44,'3d'!N44,'3e (voluntary)'!N44)=0,\":\",SUM('3a'!N44,'3b'!N44,'3c'!N44,'3d'!N44,'3e (voluntary)'!N44))","v":":"},null,{"$f":"IF(COUNT('3a'!P44,'3b'!P44,'3c'!P44,'3d'!P44,'3e (voluntary)'!P44)=0,\":\",SUM('3a'!P44,'3b'!P44,'3c'!P44,'3d'!P44,'3e (voluntary)'!P44))","v":":"},null,{"$f":"IF(COUNT('3a'!R44,'3b'!R44,'3c'!R44,'3d'!R44,'3e (voluntary)'!R44)=0,\":\",SUM('3a'!R44,'3b'!R44,'3c'!R44,'3d'!R44,'3e (voluntary)'!R44))","v":":"},null,{"$f":"IF(COUNT('3a'!T44,'3b'!T44,'3c'!T44,'3d'!T44,'3e (voluntary)'!T44)=0,\":\",SUM('3a'!T44,'3b'!T44,'3c'!T44,'3d'!T44,'3e (voluntary)'!T44))","v":":"},null,{"$f":"IF(COUNT('3a'!V44,'3b'!V44,'3c'!V44,'3d'!V44,'3e (voluntary)'!V44)=0,\":\",SUM('3a'!V44,'3b'!V44,'3c'!V44,'3d'!V44,'3e (voluntary)'!V44))","v":":"},null,{"$f":"IF(COUNT('3a'!X44,'3b'!X44,'3c'!X44,'3d'!X44,'3e (voluntary)'!X44)=0,\":\",SUM('3a'!X44,'3b'!X44,'3c'!X44,'3d'!X44,'3e (voluntary)'!X44))","v":":"},null,{"$f":"IF(COUNT('3a'!Z44,'3b'!Z44,'3c'!Z44,'3d'!Z44,'3e (voluntary)'!Z44)=0,\":\",SUM('3a'!Z44,'3b'!Z44,'3c'!Z44,'3d'!Z44,'3e (voluntary)'!Z44))","v":":"},null,{"$f":"IF(COUNT('3a'!AB44,'3b'!AB44,'3c'!AB44,'3d'!AB44,'3e (voluntary)'!AB44)=0,\":\",SUM('3a'!AB44,'3b'!AB44,'3c'!AB44,'3d'!AB44,'3e (voluntary)'!AB44))","v":":"},null,{"$f":"IF(COUNT('3a'!AD44,'3b'!AD44,'3c'!AD44,'3d'!AD44,'3e (voluntary)'!AD44)=0,\":\",SUM('3a'!AD44,'3b'!AD44,'3c'!AD44,'3d'!AD44,'3e (voluntary)'!AD44))","v":":"},null,{"$f":"IF(COUNT('3a'!AF44,'3b'!AF44,'3c'!AF44,'3d'!AF44,'3e (voluntary)'!AF44)=0,\":\",SUM('3a'!AF44,'3b'!AF44,'3c'!AF44,'3d'!AF44,'3e (voluntary)'!AF44))","v":":"}]
["S11_S12","EP_BUS","EPS_INV_PP",null,null,null,null,null,2016,{"$f":"IF(COUNT('3a'!J45,'3b'!J45,'3c'!J45,'3d'!J45,'3e (voluntary)'!J45)=0,\":\",SUM('3a'!J45,'3b'!J45,'3c'!J45,'3d'!J45,'3e (voluntary)'!J45))","v":":"},null,{"$f":"IF(COUNT('3a'!L45,'3b'!L45,'3c'!L45,'3d'!L45,'3e (voluntary)'!L45)=0,\":\",SUM('3a'!L45,'3b'!L45,'3c'!L45,'3d'!L45,'3e (voluntary)'!L45))","v":":"},null,{"$f":"IF(COUNT('3a'!N45,'3b'!N45,'3c'!N45,'3d'!N45,'3e (voluntary)'!N45)=0,\":\",SUM('3a'!N45,'3b'!N45,'3c'!N45,'3d'!N45,'3e (voluntary)'!N45))","v":":"},null,{"$f":"IF(COUNT('3a'!P45,'3b'!P45,'3c'!P45,'3d'!P45,'3e (voluntary)'!P45)=0,\":\",SUM('3a'!P45,'3b'!P45,'3c'!P45,'3d'!P45,'3e (voluntary)'!P45))","v":":"},null,{"$f":"IF(COUNT('3a'!R45,'3b'!R45,'3c'!R45,'3d'!R45,'3e (voluntary)'!R45)=0,\":\",SUM('3a'!R45,'3b'!R45,'3c'!R45,'3d'!R45,'3e (voluntary)'!R45))","v":":"},null,{"$f":"IF(COUNT('3a'!T45,'3b'!T45,'3c'!T45,'3d'!T45,'3e (voluntary)'!T45)=0,\":\",SUM('3a'!T45,'3b'!T45,'3c'!T45,'3d'!T45,'3e (voluntary)'!T45))","v":":"},null,{"$f":"IF(COUNT('3a'!V45,'3b'!V45,'3c'!V45,'3d'!V45,'3e (voluntary)'!V45)=0,\":\",SUM('3a'!V45,'3b'!V45,'3c'!V45,'3d'!V45,'3e (voluntary)'!V45))","v":":"},null,{"$f":"IF(COUNT('3a'!X45,'3b'!X45,'3c'!X45,'3d'!X45,'3e (voluntary)'!X45)=0,\":\",SUM('3a'!X45,'3b'!X45,'3c'!X45,'3d'!X45,'3e (voluntary)'!X45))","v":":"},null,{"$f":"IF(COUNT('3a'!Z45,'3b'!Z45,'3c'!Z45,'3d'!Z45,'3e (voluntary)'!Z45)=0,\":\",SUM('3a'!Z45,'3b'!Z45,'3c'!Z45,'3d'!Z45,'3e (voluntary)'!Z45))","v":":"},null,{"$f":"IF(COUNT('3a'!AB45,'3b'!AB45,'3c'!AB45,'3d'!AB45,'3e (voluntary)'!AB45)=0,\":\",SUM('3a'!AB45,'3b'!AB45,'3c'!AB45,'3d'!AB45,'3e (voluntary)'!AB45))","v":":"},null,{"$f":"IF(COUNT('3a'!AD45,'3b'!AD45,'3c'!AD45,'3d'!AD45,'3e (voluntary)'!AD45)=0,\":\",SUM('3a'!AD45,'3b'!AD45,'3c'!AD45,'3d'!AD45,'3e (voluntary)'!AD45))","v":":"},null,{"$f":"IF(COUNT('3a'!AF45,'3b'!AF45,'3c'!AF45,'3d'!AF45,'3e (voluntary)'!AF45)=0,\":\",SUM('3a'!AF45,'3b'!AF45,'3c'!AF45,'3d'!AF45,'3e (voluntary)'!AF45))","v":":"}]
["S11_S12","EP_BUS","EPS_INV_PP",null,null,null,null,null,2017,{"$f":"IF(COUNT('3a'!J46,'3b'!J46,'3c'!J46,'3d'!J46,'3e (voluntary)'!J46)=0,\":\",SUM('3a'!J46,'3b'!J46,'3c'!J46,'3d'!J46,'3e (voluntary)'!J46))","v":":"},null,{"$f":"IF(COUNT('3a'!L46,'3b'!L46,'3c'!L46,'3d'!L46,'3e (voluntary)'!L46)=0,\":\",SUM('3a'!L46,'3b'!L46,'3c'!L46,'3d'!L46,'3e (voluntary)'!L46))","v":":"},null,{"$f":"IF(COUNT('3a'!N46,'3b'!N46,'3c'!N46,'3d'!N46,'3e (voluntary)'!N46)=0,\":\",SUM('3a'!N46,'3b'!N46,'3c'!N46,'3d'!N46,'3e (voluntary)'!N46))","v":":"},null,{"$f":"IF(COUNT('3a'!P46,'3b'!P46,'3c'!P46,'3d'!P46,'3e (voluntary)'!P46)=0,\":\",SUM('3a'!P46,'3b'!P46,'3c'!P46,'3d'!P46,'3e (voluntary)'!P46))","v":":"},null,{"$f":"IF(COUNT('3a'!R46,'3b'!R46,'3c'!R46,'3d'!R46,'3e (voluntary)'!R46)=0,\":\",SUM('3a'!R46,'3b'!R46,'3c'!R46,'3d'!R46,'3e (voluntary)'!R46))","v":":"},null,{"$f":"IF(COUNT('3a'!T46,'3b'!T46,'3c'!T46,'3d'!T46,'3e (voluntary)'!T46)=0,\":\",SUM('3a'!T46,'3b'!T46,'3c'!T46,'3d'!T46,'3e (voluntary)'!T46))","v":":"},null,{"$f":"IF(COUNT('3a'!V46,'3b'!V46,'3c'!V46,'3d'!V46,'3e (voluntary)'!V46)=0,\":\",SUM('3a'!V46,'3b'!V46,'3c'!V46,'3d'!V46,'3e (voluntary)'!V46))","v":":"},null,{"$f":"IF(COUNT('3a'!X46,'3b'!X46,'3c'!X46,'3d'!X46,'3e (voluntary)'!X46)=0,\":\",SUM('3a'!X46,'3b'!X46,'3c'!X46,'3d'!X46,'3e (voluntary)'!X46))","v":":"},null,{"$f":"IF(COUNT('3a'!Z46,'3b'!Z46,'3c'!Z46,'3d'!Z46,'3e (voluntary)'!Z46)=0,\":\",SUM('3a'!Z46,'3b'!Z46,'3c'!Z46,'3d'!Z46,'3e (voluntary)'!Z46))","v":":"},null,{"$f":"IF(COUNT('3a'!AB46,'3b'!AB46,'3c'!AB46,'3d'!AB46,'3e (voluntary)'!AB46)=0,\":\",SUM('3a'!AB46,'3b'!AB46,'3c'!AB46,'3d'!AB46,'3e (voluntary)'!AB46))","v":":"},null,{"$f":"IF(COUNT('3a'!AD46,'3b'!AD46,'3c'!AD46,'3d'!AD46,'3e (voluntary)'!AD46)=0,\":\",SUM('3a'!AD46,'3b'!AD46,'3c'!AD46,'3d'!AD46,'3e (voluntary)'!AD46))","v":":"},null,{"$f":"IF(COUNT('3a'!AF46,'3b'!AF46,'3c'!AF46,'3d'!AF46,'3e (voluntary)'!AF46)=0,\":\",SUM('3a'!AF46,'3b'!AF46,'3c'!AF46,'3d'!AF46,'3e (voluntary)'!AF46))","v":":"}]
["S11_S12","EP_BUS","EPS_INV_PP",null,null,null,null,null,2018,{"$f":"IF(COUNT('3a'!J47,'3b'!J47,'3c'!J47,'3d'!J47,'3e (voluntary)'!J47)=0,\":\",SUM('3a'!J47,'3b'!J47,'3c'!J47,'3d'!J47,'3e (voluntary)'!J47))","v":":"},null,{"$f":"IF(COUNT('3a'!L47,'3b'!L47,'3c'!L47,'3d'!L47,'3e (voluntary)'!L47)=0,\":\",SUM('3a'!L47,'3b'!L47,'3c'!L47,'3d'!L47,'3e (voluntary)'!L47))","v":":"},null,{"$f":"IF(COUNT('3a'!N47,'3b'!N47,'3c'!N47,'3d'!N47,'3e (voluntary)'!N47)=0,\":\",SUM('3a'!N47,'3b'!N47,'3c'!N47,'3d'!N47,'3e (voluntary)'!N47))","v":":"},null,{"$f":"IF(COUNT('3a'!P47,'3b'!P47,'3c'!P47,'3d'!P47,'3e (voluntary)'!P47)=0,\":\",SUM('3a'!P47,'3b'!P47,'3c'!P47,'3d'!P47,'3e (voluntary)'!P47))","v":":"},null,{"$f":"IF(COUNT('3a'!R47,'3b'!R47,'3c'!R47,'3d'!R47,'3e (voluntary)'!R47)=0,\":\",SUM('3a'!R47,'3b'!R47,'3c'!R47,'3d'!R47,'3e (voluntary)'!R47))","v":":"},null,{"$f":"IF(COUNT('3a'!T47,'3b'!T47,'3c'!T47,'3d'!T47,'3e (voluntary)'!T47)=0,\":\",SUM('3a'!T47,'3b'!T47,'3c'!T47,'3d'!T47,'3e (voluntary)'!T47))","v":":"},null,{"$f":"IF(COUNT('3a'!V47,'3b'!V47,'3c'!V47,'3d'!V47,'3e (voluntary)'!V47)=0,\":\",SUM('3a'!V47,'3b'!V47,'3c'!V47,'3d'!V47,'3e (voluntary)'!V47))","v":":"},null,{"$f":"IF(COUNT('3a'!X47,'3b'!X47,'3c'!X47,'3d'!X47,'3e (voluntary)'!X47)=0,\":\",SUM('3a'!X47,'3b'!X47,'3c'!X47,'3d'!X47,'3e (voluntary)'!X47))","v":":"},null,{"$f":"IF(COUNT('3a'!Z47,'3b'!Z47,'3c'!Z47,'3d'!Z47,'3e (voluntary)'!Z47)=0,\":\",SUM('3a'!Z47,'3b'!Z47,'3c'!Z47,'3d'!Z47,'3e (voluntary)'!Z47))","v":":"},null,{"$f":"IF(COUNT('3a'!AB47,'3b'!AB47,'3c'!AB47,'3d'!AB47,'3e (voluntary)'!AB47)=0,\":\",SUM('3a'!AB47,'3b'!AB47,'3c'!AB47,'3d'!AB47,'3e (voluntary)'!AB47))","v":":"},null,{"$f":"IF(COUNT('3a'!AD47,'3b'!AD47,'3c'!AD47,'3d'!AD47,'3e (voluntary)'!AD47)=0,\":\",SUM('3a'!AD47,'3b'!AD47,'3c'!AD47,'3d'!AD47,'3e (voluntary)'!AD47))","v":":"},null,{"$f":"IF(COUNT('3a'!AF47,'3b'!AF47,'3c'!AF47,'3d'!AF47,'3e (voluntary)'!AF47)=0,\":\",SUM('3a'!AF47,'3b'!AF47,'3c'!AF47,'3d'!AF47,'3e (voluntary)'!AF47))","v":":"}]
["S11_S12","EP_BUS","EPS_INV_PP",null,null,null,null,null,2019,{"$f":"IF(COUNT('3a'!J48,'3b'!J48,'3c'!J48,'3d'!J48,'3e (voluntary)'!J48)=0,\":\",SUM('3a'!J48,'3b'!J48,'3c'!J48,'3d'!J48,'3e (voluntary)'!J48))","v":":"},null,{"$f":"IF(COUNT('3a'!L48,'3b'!L48,'3c'!L48,'3d'!L48,'3e (voluntary)'!L48)=0,\":\",SUM('3a'!L48,'3b'!L48,'3c'!L48,'3d'!L48,'3e (voluntary)'!L48))","v":":"},null,{"$f":"IF(COUNT('3a'!N48,'3b'!N48,'3c'!N48,'3d'!N48,'3e (voluntary)'!N48)=0,\":\",SUM('3a'!N48,'3b'!N48,'3c'!N48,'3d'!N48,'3e (voluntary)'!N48))","v":":"},null,{"$f":"IF(COUNT('3a'!P48,'3b'!P48,'3c'!P48,'3d'!P48,'3e (voluntary)'!P48)=0,\":\",SUM('3a'!P48,'3b'!P48,'3c'!P48,'3d'!P48,'3e (voluntary)'!P48))","v":":"},null,{"$f":"IF(COUNT('3a'!R48,'3b'!R48,'3c'!R48,'3d'!R48,'3e (voluntary)'!R48)=0,\":\",SUM('3a'!R48,'3b'!R48,'3c'!R48,'3d'!R48,'3e (voluntary)'!R48))","v":":"},null,{"$f":"IF(COUNT('3a'!T48,'3b'!T48,'3c'!T48,'3d'!T48,'3e (voluntary)'!T48)=0,\":\",SUM('3a'!T48,'3b'!T48,'3c'!T48,'3d'!T48,'3e (voluntary)'!T48))","v":":"},null,{"$f":"IF(COUNT('3a'!V48,'3b'!V48,'3c'!V48,'3d'!V48,'3e (voluntary)'!V48)=0,\":\",SUM('3a'!V48,'3b'!V48,'3c'!V48,'3d'!V48,'3e (voluntary)'!V48))","v":":"},null,{"$f":"IF(COUNT('3a'!X48,'3b'!X48,'3c'!X48,'3d'!X48,'3e (voluntary)'!X48)=0,\":\",SUM('3a'!X48,'3b'!X48,'3c'!X48,'3d'!X48,'3e (voluntary)'!X48))","v":":"},null,{"$f":"IF(COUNT('3a'!Z48,'3b'!Z48,'3c'!Z48,'3d'!Z48,'3e (voluntary)'!Z48)=0,\":\",SUM('3a'!Z48,'3b'!Z48,'3c'!Z48,'3d'!Z48,'3e (voluntary)'!Z48))","v":":"},null,{"$f":"IF(COUNT('3a'!AB48,'3b'!AB48,'3c'!AB48,'3d'!AB48,'3e (voluntary)'!AB48)=0,\":\",SUM('3a'!AB48,'3b'!AB48,'3c'!AB48,'3d'!AB48,'3e (voluntary)'!AB48))","v":":"},null,{"$f":"IF(COUNT('3a'!AD48,'3b'!AD48,'3c'!AD48,'3d'!AD48,'3e (voluntary)'!AD48)=0,\":\",SUM('3a'!AD48,'3b'!AD48,'3c'!AD48,'3d'!AD48,'3e (voluntary)'!AD48))","v":":"},null,{"$f":"IF(COUNT('3a'!AF48,'3b'!AF48,'3c'!AF48,'3d'!AF48,'3e (voluntary)'!AF48)=0,\":\",SUM('3a'!AF48,'3b'!AF48,'3c'!AF48,'3d'!AF48,'3e (voluntary)'!AF48))","v":":"}]
["S11_S12","EP_BUS","EPS_INV_PP",null,null,null,null,null,2020,{"$f":"IF(COUNT('3a'!J49,'3b'!J49,'3c'!J49,'3d'!J49,'3e (voluntary)'!J49)=0,\":\",SUM('3a'!J49,'3b'!J49,'3c'!J49,'3d'!J49,'3e (voluntary)'!J49))","v":":"},null,{"$f":"IF(COUNT('3a'!L49,'3b'!L49,'3c'!L49,'3d'!L49,'3e (voluntary)'!L49)=0,\":\",SUM('3a'!L49,'3b'!L49,'3c'!L49,'3d'!L49,'3e (voluntary)'!L49))","v":":"},null,{"$f":"IF(COUNT('3a'!N49,'3b'!N49,'3c'!N49,'3d'!N49,'3e (voluntary)'!N49)=0,\":\",SUM('3a'!N49,'3b'!N49,'3c'!N49,'3d'!N49,'3e (voluntary)'!N49))","v":":"},null,{"$f":"IF(COUNT('3a'!P49,'3b'!P49,'3c'!P49,'3d'!P49,'3e (voluntary)'!P49)=0,\":\",SUM('3a'!P49,'3b'!P49,'3c'!P49,'3d'!P49,'3e (voluntary)'!P49))","v":":"},null,{"$f":"IF(COUNT('3a'!R49,'3b'!R49,'3c'!R49,'3d'!R49,'3e (voluntary)'!R49)=0,\":\",SUM('3a'!R49,'3b'!R49,'3c'!R49,'3d'!R49,'3e (voluntary)'!R49))","v":":"},null,{"$f":"IF(COUNT('3a'!T49,'3b'!T49,'3c'!T49,'3d'!T49,'3e (voluntary)'!T49)=0,\":\",SUM('3a'!T49,'3b'!T49,'3c'!T49,'3d'!T49,'3e (voluntary)'!T49))","v":":"},null,{"$f":"IF(COUNT('3a'!V49,'3b'!V49,'3c'!V49,'3d'!V49,'3e (voluntary)'!V49)=0,\":\",SUM('3a'!V49,'3b'!V49,'3c'!V49,'3d'!V49,'3e (voluntary)'!V49))","v":":"},null,{"$f":"IF(COUNT('3a'!X49,'3b'!X49,'3c'!X49,'3d'!X49,'3e (voluntary)'!X49)=0,\":\",SUM('3a'!X49,'3b'!X49,'3c'!X49,'3d'!X49,'3e (voluntary)'!X49))","v":":"},null,{"$f":"IF(COUNT('3a'!Z49,'3b'!Z49,'3c'!Z49,'3d'!Z49,'3e (voluntary)'!Z49)=0,\":\",SUM('3a'!Z49,'3b'!Z49,'3c'!Z49,'3d'!Z49,'3e (voluntary)'!Z49))","v":":"},null,{"$f":"IF(COUNT('3a'!AB49,'3b'!AB49,'3c'!AB49,'3d'!AB49,'3e (voluntary)'!AB49)=0,\":\",SUM('3a'!AB49,'3b'!AB49,'3c'!AB49,'3d'!AB49,'3e (voluntary)'!AB49))","v":":"},null,{"$f":"IF(COUNT('3a'!AD49,'3b'!AD49,'3c'!AD49,'3d'!AD49,'3e (voluntary)'!AD49)=0,\":\",SUM('3a'!AD49,'3b'!AD49,'3c'!AD49,'3d'!AD49,'3e (voluntary)'!AD49))","v":":"},null,{"$f":"IF(COUNT('3a'!AF49,'3b'!AF49,'3c'!AF49,'3d'!AF49,'3e (voluntary)'!AF49)=0,\":\",SUM('3a'!AF49,'3b'!AF49,'3c'!AF49,'3d'!AF49,'3e (voluntary)'!AF49))","v":":"}]
["S11_S12","EP_BUS","EPS_INV_PP",null,null,null,null,null,2021,{"$f":"IF(COUNT('3a'!J50,'3b'!J50,'3c'!J50,'3d'!J50,'3e (voluntary)'!J50)=0,\":\",SUM('3a'!J50,'3b'!J50,'3c'!J50,'3d'!J50,'3e (voluntary)'!J50))","v":":"},null,{"$f":"IF(COUNT('3a'!L50,'3b'!L50,'3c'!L50,'3d'!L50,'3e (voluntary)'!L50)=0,\":\",SUM('3a'!L50,'3b'!L50,'3c'!L50,'3d'!L50,'3e (voluntary)'!L50))","v":":"},null,{"$f":"IF(COUNT('3a'!N50,'3b'!N50,'3c'!N50,'3d'!N50,'3e (voluntary)'!N50)=0,\":\",SUM('3a'!N50,'3b'!N50,'3c'!N50,'3d'!N50,'3e (voluntary)'!N50))","v":":"},null,{"$f":"IF(COUNT('3a'!P50,'3b'!P50,'3c'!P50,'3d'!P50,'3e (voluntary)'!P50)=0,\":\",SUM('3a'!P50,'3b'!P50,'3c'!P50,'3d'!P50,'3e (voluntary)'!P50))","v":":"},null,{"$f":"IF(COUNT('3a'!R50,'3b'!R50,'3c'!R50,'3d'!R50,'3e (voluntary)'!R50)=0,\":\",SUM('3a'!R50,'3b'!R50,'3c'!R50,'3d'!R50,'3e (voluntary)'!R50))","v":":"},null,{"$f":"IF(COUNT('3a'!T50,'3b'!T50,'3c'!T50,'3d'!T50,'3e (voluntary)'!T50)=0,\":\",SUM('3a'!T50,'3b'!T50,'3c'!T50,'3d'!T50,'3e (voluntary)'!T50))","v":":"},null,{"$f":"IF(COUNT('3a'!V50,'3b'!V50,'3c'!V50,'3d'!V50,'3e (voluntary)'!V50)=0,\":\",SUM('3a'!V50,'3b'!V50,'3c'!V50,'3d'!V50,'3e (voluntary)'!V50))","v":":"},null,{"$f":"IF(COUNT('3a'!X50,'3b'!X50,'3c'!X50,'3d'!X50,'3e (voluntary)'!X50)=0,\":\",SUM('3a'!X50,'3b'!X50,'3c'!X50,'3d'!X50,'3e (voluntary)'!X50))","v":":"},null,{"$f":"IF(COUNT('3a'!Z50,'3b'!Z50,'3c'!Z50,'3d'!Z50,'3e (voluntary)'!Z50)=0,\":\",SUM('3a'!Z50,'3b'!Z50,'3c'!Z50,'3d'!Z50,'3e (voluntary)'!Z50))","v":":"},null,{"$f":"IF(COUNT('3a'!AB50,'3b'!AB50,'3c'!AB50,'3d'!AB50,'3e (voluntary)'!AB50)=0,\":\",SUM('3a'!AB50,'3b'!AB50,'3c'!AB50,'3d'!AB50,'3e (voluntary)'!AB50))","v":":"},null,{"$f":"IF(COUNT('3a'!AD50,'3b'!AD50,'3c'!AD50,'3d'!AD50,'3e (voluntary)'!AD50)=0,\":\",SUM('3a'!AD50,'3b'!AD50,'3c'!AD50,'3d'!AD50,'3e (voluntary)'!AD50))","v":":"},null,{"$f":"IF(COUNT('3a'!AF50,'3b'!AF50,'3c'!AF50,'3d'!AF50,'3e (voluntary)'!AF50)=0,\":\",SUM('3a'!AF50,'3b'!AF50,'3c'!AF50,'3d'!AF50,'3e (voluntary)'!AF50))","v":":"}]
["S11_S12","EP_BUS","EPS_INV_PP",null,null,null,null,null,2022,{"$f":"IF(COUNT('3a'!J51,'3b'!J51,'3c'!J51,'3d'!J51,'3e (voluntary)'!J51)=0,\":\",SUM('3a'!J51,'3b'!J51,'3c'!J51,'3d'!J51,'3e (voluntary)'!J51))","v":":"},null,{"$f":"IF(COUNT('3a'!L51,'3b'!L51,'3c'!L51,'3d'!L51,'3e (voluntary)'!L51)=0,\":\",SUM('3a'!L51,'3b'!L51,'3c'!L51,'3d'!L51,'3e (voluntary)'!L51))","v":":"},null,{"$f":"IF(COUNT('3a'!N51,'3b'!N51,'3c'!N51,'3d'!N51,'3e (voluntary)'!N51)=0,\":\",SUM('3a'!N51,'3b'!N51,'3c'!N51,'3d'!N51,'3e (voluntary)'!N51))","v":":"},null,{"$f":"IF(COUNT('3a'!P51,'3b'!P51,'3c'!P51,'3d'!P51,'3e (voluntary)'!P51)=0,\":\",SUM('3a'!P51,'3b'!P51,'3c'!P51,'3d'!P51,'3e (voluntary)'!P51))","v":":"},null,{"$f":"IF(COUNT('3a'!R51,'3b'!R51,'3c'!R51,'3d'!R51,'3e (voluntary)'!R51)=0,\":\",SUM('3a'!R51,'3b'!R51,'3c'!R51,'3d'!R51,'3e (voluntary)'!R51))","v":":"},null,{"$f":"IF(COUNT('3a'!T51,'3b'!T51,'3c'!T51,'3d'!T51,'3e (voluntary)'!T51)=0,\":\",SUM('3a'!T51,'3b'!T51,'3c'!T51,'3d'!T51,'3e (voluntary)'!T51))","v":":"},null,{"$f":"IF(COUNT('3a'!V51,'3b'!V51,'3c'!V51,'3d'!V51,'3e (voluntary)'!V51)=0,\":\",SUM('3a'!V51,'3b'!V51,'3c'!V51,'3d'!V51,'3e (voluntary)'!V51))","v":":"},null,{"$f":"IF(COUNT('3a'!X51,'3b'!X51,'3c'!X51,'3d'!X51,'3e (voluntary)'!X51)=0,\":\",SUM('3a'!X51,'3b'!X51,'3c'!X51,'3d'!X51,'3e (voluntary)'!X51))","v":":"},null,{"$f":"IF(COUNT('3a'!Z51,'3b'!Z51,'3c'!Z51,'3d'!Z51,'3e (voluntary)'!Z51)=0,\":\",SUM('3a'!Z51,'3b'!Z51,'3c'!Z51,'3d'!Z51,'3e (voluntary)'!Z51))","v":":"},null,{"$f":"IF(COUNT('3a'!AB51,'3b'!AB51,'3c'!AB51,'3d'!AB51,'3e (voluntary)'!AB51)=0,\":\",SUM('3a'!AB51,'3b'!AB51,'3c'!AB51,'3d'!AB51,'3e (voluntary)'!AB51))","v":":"},null,{"$f":"IF(COUNT('3a'!AD51,'3b'!AD51,'3c'!AD51,'3d'!AD51,'3e (voluntary)'!AD51)=0,\":\",SUM('3a'!AD51,'3b'!AD51,'3c'!AD51,'3d'!AD51,'3e (voluntary)'!AD51))","v":":"},null,{"$f":"IF(COUNT('3a'!AF51,'3b'!AF51,'3c'!AF51,'3d'!AF51,'3e (voluntary)'!AF51)=0,\":\",SUM('3a'!AF51,'3b'!AF51,'3c'!AF51,'3d'!AF51,'3e (voluntary)'!AF51))","v":":"}]
["S11_S12","EP_BUS","EPS_INV_PP",null,null,null,null,null,2023,{"$f":"IF(COUNT('3a'!J52,'3b'!J52,'3c'!J52,'3d'!J52,'3e (voluntary)'!J52)=0,\":\",SUM('3a'!J52,'3b'!J52,'3c'!J52,'3d'!J52,'3e (voluntary)'!J52))","v":":"},null,{"$f":"IF(COUNT('3a'!L52,'3b'!L52,'3c'!L52,'3d'!L52,'3e (voluntary)'!L52)=0,\":\",SUM('3a'!L52,'3b'!L52,'3c'!L52,'3d'!L52,'3e (voluntary)'!L52))","v":":"},null,{"$f":"IF(COUNT('3a'!N52,'3b'!N52,'3c'!N52,'3d'!N52,'3e (voluntary)'!N52)=0,\":\",SUM('3a'!N52,'3b'!N52,'3c'!N52,'3d'!N52,'3e (voluntary)'!N52))","v":":"},null,{"$f":"IF(COUNT('3a'!P52,'3b'!P52,'3c'!P52,'3d'!P52,'3e (voluntary)'!P52)=0,\":\",SUM('3a'!P52,'3b'!P52,'3c'!P52,'3d'!P52,'3e (voluntary)'!P52))","v":":"},null,{"$f":"IF(COUNT('3a'!R52,'3b'!R52,'3c'!R52,'3d'!R52,'3e (voluntary)'!R52)=0,\":\",SUM('3a'!R52,'3b'!R52,'3c'!R52,'3d'!R52,'3e (voluntary)'!R52))","v":":"},null,{"$f":"IF(COUNT('3a'!T52,'3b'!T52,'3c'!T52,'3d'!T52,'3e (voluntary)'!T52)=0,\":\",SUM('3a'!T52,'3b'!T52,'3c'!T52,'3d'!T52,'3e (voluntary)'!T52))","v":":"},null,{"$f":"IF(COUNT('3a'!V52,'3b'!V52,'3c'!V52,'3d'!V52,'3e (voluntary)'!V52)=0,\":\",SUM('3a'!V52,'3b'!V52,'3c'!V52,'3d'!V52,'3e (voluntary)'!V52))","v":":"},null,{"$f":"IF(COUNT('3a'!X52,'3b'!X52,'3c'!X52,'3d'!X52,'3e (voluntary)'!X52)=0,\":\",SUM('3a'!X52,'3b'!X52,'3c'!X52,'3d'!X52,'3e (voluntary)'!X52))","v":":"},null,{"$f":"IF(COUNT('3a'!Z52,'3b'!Z52,'3c'!Z52,'3d'!Z52,'3e (voluntary)'!Z52)=0,\":\",SUM('3a'!Z52,'3b'!Z52,'3c'!Z52,'3d'!Z52,'3e (voluntary)'!Z52))","v":":"},null,{"$f":"IF(COUNT('3a'!AB52,'3b'!AB52,'3c'!AB52,'3d'!AB52,'3e (voluntary)'!AB52)=0,\":\",SUM('3a'!AB52,'3b'!AB52,'3c'!AB52,'3d'!AB52,'3e (voluntary)'!AB52))","v":":"},null,{"$f":"IF(COUNT('3a'!AD52,'3b'!AD52,'3c'!AD52,'3d'!AD52,'3e (voluntary)'!AD52)=0,\":\",SUM('3a'!AD52,'3b'!AD52,'3c'!AD52,'3d'!AD52,'3e (voluntary)'!AD52))","v":":"},null,{"$f":"IF(COUNT('3a'!AF52,'3b'!AF52,'3c'!AF52,'3d'!AF52,'3e (voluntary)'!AF52)=0,\":\",SUM('3a'!AF52,'3b'!AF52,'3c'!AF52,'3d'!AF52,'3e (voluntary)'!AF52))","v":":"}]
["S11_S12","EP_BUS","EPS_INV_PP",null,null,null,null,null,2024,{"$f":"IF(COUNT('3a'!J53,'3b'!J53,'3c'!J53,'3d'!J53,'3e (voluntary)'!J53)=0,\":\",SUM('3a'!J53,'3b'!J53,'3c'!J53,'3d'!J53,'3e (voluntary)'!J53))","v":":"},null,{"$f":"IF(COUNT('3a'!L53,'3b'!L53,'3c'!L53,'3d'!L53,'3e (voluntary)'!L53)=0,\":\",SUM('3a'!L53,'3b'!L53,'3c'!L53,'3d'!L53,'3e (voluntary)'!L53))","v":":"},null,{"$f":"IF(COUNT('3a'!N53,'3b'!N53,'3c'!N53,'3d'!N53,'3e (voluntary)'!N53)=0,\":\",SUM('3a'!N53,'3b'!N53,'3c'!N53,'3d'!N53,'3e (voluntary)'!N53))","v":":"},null,{"$f":"IF(COUNT('3a'!P53,'3b'!P53,'3c'!P53,'3d'!P53,'3e (voluntary)'!P53)=0,\":\",SUM('3a'!P53,'3b'!P53,'3c'!P53,'3d'!P53,'3e (voluntary)'!P53))","v":":"},null,{"$f":"IF(COUNT('3a'!R53,'3b'!R53,'3c'!R53,'3d'!R53,'3e (voluntary)'!R53)=0,\":\",SUM('3a'!R53,'3b'!R53,'3c'!R53,'3d'!R53,'3e (voluntary)'!R53))","v":":"},null,{"$f":"IF(COUNT('3a'!T53,'3b'!T53,'3c'!T53,'3d'!T53,'3e (voluntary)'!T53)=0,\":\",SUM('3a'!T53,'3b'!T53,'3c'!T53,'3d'!T53,'3e (voluntary)'!T53))","v":":"},null,{"$f":"IF(COUNT('3a'!V53,'3b'!V53,'3c'!V53,'3d'!V53,'3e (voluntary)'!V53)=0,\":\",SUM('3a'!V53,'3b'!V53,'3c'!V53,'3d'!V53,'3e (voluntary)'!V53))","v":":"},null,{"$f":"IF(COUNT('3a'!X53,'3b'!X53,'3c'!X53,'3d'!X53,'3e (voluntary)'!X53)=0,\":\",SUM('3a'!X53,'3b'!X53,'3c'!X53,'3d'!X53,'3e (voluntary)'!X53))","v":":"},null,{"$f":"IF(COUNT('3a'!Z53,'3b'!Z53,'3c'!Z53,'3d'!Z53,'3e (voluntary)'!Z53)=0,\":\",SUM('3a'!Z53,'3b'!Z53,'3c'!Z53,'3d'!Z53,'3e (voluntary)'!Z53))","v":":"},null,{"$f":"IF(COUNT('3a'!AB53,'3b'!AB53,'3c'!AB53,'3d'!AB53,'3e (voluntary)'!AB53)=0,\":\",SUM('3a'!AB53,'3b'!AB53,'3c'!AB53,'3d'!AB53,'3e (voluntary)'!AB53))","v":":"},null,{"$f":"IF(COUNT('3a'!AD53,'3b'!AD53,'3c'!AD53,'3d'!AD53,'3e (voluntary)'!AD53)=0,\":\",SUM('3a'!AD53,'3b'!AD53,'3c'!AD53,'3d'!AD53,'3e (voluntary)'!AD53))","v":":"},null,{"$f":"IF(COUNT('3a'!AF53,'3b'!AF53,'3c'!AF53,'3d'!AF53,'3e (voluntary)'!AF53)=0,\":\",SUM('3a'!AF53,'3b'!AF53,'3c'!AF53,'3d'!AF53,'3e (voluntary)'!AF53))","v":":"}]
["S11_S12","EP_BUS","EPS_INV_PP",null,null,null,null,null,2025,{"$f":"IF(COUNT('3a'!J54,'3b'!J54,'3c'!J54,'3d'!J54,'3e (voluntary)'!J54)=0,\":\",SUM('3a'!J54,'3b'!J54,'3c'!J54,'3d'!J54,'3e (voluntary)'!J54))","v":":"},null,{"$f":"IF(COUNT('3a'!L54,'3b'!L54,'3c'!L54,'3d'!L54,'3e (voluntary)'!L54)=0,\":\",SUM('3a'!L54,'3b'!L54,'3c'!L54,'3d'!L54,'3e (voluntary)'!L54))","v":":"},null,{"$f":"IF(COUNT('3a'!N54,'3b'!N54,'3c'!N54,'3d'!N54,'3e (voluntary)'!N54)=0,\":\",SUM('3a'!N54,'3b'!N54,'3c'!N54,'3d'!N54,'3e (voluntary)'!N54))","v":":"},null,{"$f":"IF(COUNT('3a'!P54,'3b'!P54,'3c'!P54,'3d'!P54,'3e (voluntary)'!P54)=0,\":\",SUM('3a'!P54,'3b'!P54,'3c'!P54,'3d'!P54,'3e (voluntary)'!P54))","v":":"},null,{"$f":"IF(COUNT('3a'!R54,'3b'!R54,'3c'!R54,'3d'!R54,'3e (voluntary)'!R54)=0,\":\",SUM('3a'!R54,'3b'!R54,'3c'!R54,'3d'!R54,'3e (voluntary)'!R54))","v":":"},null,{"$f":"IF(COUNT('3a'!T54,'3b'!T54,'3c'!T54,'3d'!T54,'3e (voluntary)'!T54)=0,\":\",SUM('3a'!T54,'3b'!T54,'3c'!T54,'3d'!T54,'3e (voluntary)'!T54))","v":":"},null,{"$f":"IF(COUNT('3a'!V54,'3b'!V54,'3c'!V54,'3d'!V54,'3e (voluntary)'!V54)=0,\":\",SUM('3a'!V54,'3b'!V54,'3c'!V54,'3d'!V54,'3e (voluntary)'!V54))","v":":"},null,{"$f":"IF(COUNT('3a'!X54,'3b'!X54,'3c'!X54,'3d'!X54,'3e (voluntary)'!X54)=0,\":\",SUM('3a'!X54,'3b'!X54,'3c'!X54,'3d'!X54,'3e (voluntary)'!X54))","v":":"},null,{"$f":"IF(COUNT('3a'!Z54,'3b'!Z54,'3c'!Z54,'3d'!Z54,'3e (voluntary)'!Z54)=0,\":\",SUM('3a'!Z54,'3b'!Z54,'3c'!Z54,'3d'!Z54,'3e (voluntary)'!Z54))","v":":"},null,{"$f":"IF(COUNT('3a'!AB54,'3b'!AB54,'3c'!AB54,'3d'!AB54,'3e (voluntary)'!AB54)=0,\":\",SUM('3a'!AB54,'3b'!AB54,'3c'!AB54,'3d'!AB54,'3e (voluntary)'!AB54))","v":":"},null,{"$f":"IF(COUNT('3a'!AD54,'3b'!AD54,'3c'!AD54,'3d'!AD54,'3e (voluntary)'!AD54)=0,\":\",SUM('3a'!AD54,'3b'!AD54,'3c'!AD54,'3d'!AD54,'3e (voluntary)'!AD54))","v":":"},null,{"$f":"IF(COUNT('3a'!AF54,'3b'!AF54,'3c'!AF54,'3d'!AF54,'3e (voluntary)'!AF54)=0,\":\",SUM('3a'!AF54,'3b'!AF54,'3c'!AF54,'3d'!AF54,'3e (voluntary)'!AF54))","v":":"}]
["S11_S12","EP_BUS","EPS_INV_PP",null,null,null,null,null,2026,{"$f":"IF(COUNT('3a'!J55,'3b'!J55,'3c'!J55,'3d'!J55,'3e (voluntary)'!J55)=0,\":\",SUM('3a'!J55,'3b'!J55,'3c'!J55,'3d'!J55,'3e (voluntary)'!J55))","v":":"},null,{"$f":"IF(COUNT('3a'!L55,'3b'!L55,'3c'!L55,'3d'!L55,'3e (voluntary)'!L55)=0,\":\",SUM('3a'!L55,'3b'!L55,'3c'!L55,'3d'!L55,'3e (voluntary)'!L55))","v":":"},null,{"$f":"IF(COUNT('3a'!N55,'3b'!N55,'3c'!N55,'3d'!N55,'3e (voluntary)'!N55)=0,\":\",SUM('3a'!N55,'3b'!N55,'3c'!N55,'3d'!N55,'3e (voluntary)'!N55))","v":":"},null,{"$f":"IF(COUNT('3a'!P55,'3b'!P55,'3c'!P55,'3d'!P55,'3e (voluntary)'!P55)=0,\":\",SUM('3a'!P55,'3b'!P55,'3c'!P55,'3d'!P55,'3e (voluntary)'!P55))","v":":"},null,{"$f":"IF(COUNT('3a'!R55,'3b'!R55,'3c'!R55,'3d'!R55,'3e (voluntary)'!R55)=0,\":\",SUM('3a'!R55,'3b'!R55,'3c'!R55,'3d'!R55,'3e (voluntary)'!R55))","v":":"},null,{"$f":"IF(COUNT('3a'!T55,'3b'!T55,'3c'!T55,'3d'!T55,'3e (voluntary)'!T55)=0,\":\",SUM('3a'!T55,'3b'!T55,'3c'!T55,'3d'!T55,'3e (voluntary)'!T55))","v":":"},null,{"$f":"IF(COUNT('3a'!V55,'3b'!V55,'3c'!V55,'3d'!V55,'3e (voluntary)'!V55)=0,\":\",SUM('3a'!V55,'3b'!V55,'3c'!V55,'3d'!V55,'3e (voluntary)'!V55))","v":":"},null,{"$f":"IF(COUNT('3a'!X55,'3b'!X55,'3c'!X55,'3d'!X55,'3e (voluntary)'!X55)=0,\":\",SUM('3a'!X55,'3b'!X55,'3c'!X55,'3d'!X55,'3e (voluntary)'!X55))","v":":"},null,{"$f":"IF(COUNT('3a'!Z55,'3b'!Z55,'3c'!Z55,'3d'!Z55,'3e (voluntary)'!Z55)=0,\":\",SUM('3a'!Z55,'3b'!Z55,'3c'!Z55,'3d'!Z55,'3e (voluntary)'!Z55))","v":":"},null,{"$f":"IF(COUNT('3a'!AB55,'3b'!AB55,'3c'!AB55,'3d'!AB55,'3e (voluntary)'!AB55)=0,\":\",SUM('3a'!AB55,'3b'!AB55,'3c'!AB55,'3d'!AB55,'3e (voluntary)'!AB55))","v":":"},null,{"$f":"IF(COUNT('3a'!AD55,'3b'!AD55,'3c'!AD55,'3d'!AD55,'3e (voluntary)'!AD55)=0,\":\",SUM('3a'!AD55,'3b'!AD55,'3c'!AD55,'3d'!AD55,'3e (voluntary)'!AD55))","v":":"},null,{"$f":"IF(COUNT('3a'!AF55,'3b'!AF55,'3c'!AF55,'3d'!AF55,'3e (voluntary)'!AF55)=0,\":\",SUM('3a'!AF55,'3b'!AF55,'3c'!AF55,'3d'!AF55,'3e (voluntary)'!AF55))","v":":"}]
["S11_S12","EP_BUS","EPS_INV_PP",null,null,null,null,null,2027,{"$f":"IF(COUNT('3a'!J56,'3b'!J56,'3c'!J56,'3d'!J56,'3e (voluntary)'!J56)=0,\":\",SUM('3a'!J56,'3b'!J56,'3c'!J56,'3d'!J56,'3e (voluntary)'!J56))","v":":"},null,{"$f":"IF(COUNT('3a'!L56,'3b'!L56,'3c'!L56,'3d'!L56,'3e (voluntary)'!L56)=0,\":\",SUM('3a'!L56,'3b'!L56,'3c'!L56,'3d'!L56,'3e (voluntary)'!L56))","v":":"},null,{"$f":"IF(COUNT('3a'!N56,'3b'!N56,'3c'!N56,'3d'!N56,'3e (voluntary)'!N56)=0,\":\",SUM('3a'!N56,'3b'!N56,'3c'!N56,'3d'!N56,'3e (voluntary)'!N56))","v":":"},null,{"$f":"IF(COUNT('3a'!P56,'3b'!P56,'3c'!P56,'3d'!P56,'3e (voluntary)'!P56)=0,\":\",SUM('3a'!P56,'3b'!P56,'3c'!P56,'3d'!P56,'3e (voluntary)'!P56))","v":":"},null,{"$f":"IF(COUNT('3a'!R56,'3b'!R56,'3c'!R56,'3d'!R56,'3e (voluntary)'!R56)=0,\":\",SUM('3a'!R56,'3b'!R56,'3c'!R56,'3d'!R56,'3e (voluntary)'!R56))","v":":"},null,{"$f":"IF(COUNT('3a'!T56,'3b'!T56,'3c'!T56,'3d'!T56,'3e (voluntary)'!T56)=0,\":\",SUM('3a'!T56,'3b'!T56,'3c'!T56,'3d'!T56,'3e (voluntary)'!T56))","v":":"},null,{"$f":"IF(COUNT('3a'!V56,'3b'!V56,'3c'!V56,'3d'!V56,'3e (voluntary)'!V56)=0,\":\",SUM('3a'!V56,'3b'!V56,'3c'!V56,'3d'!V56,'3e (voluntary)'!V56))","v":":"},null,{"$f":"IF(COUNT('3a'!X56,'3b'!X56,'3c'!X56,'3d'!X56,'3e (voluntary)'!X56)=0,\":\",SUM('3a'!X56,'3b'!X56,'3c'!X56,'3d'!X56,'3e (voluntary)'!X56))","v":":"},null,{"$f":"IF(COUNT('3a'!Z56,'3b'!Z56,'3c'!Z56,'3d'!Z56,'3e (voluntary)'!Z56)=0,\":\",SUM('3a'!Z56,'3b'!Z56,'3c'!Z56,'3d'!Z56,'3e (voluntary)'!Z56))","v":":"},null,{"$f":"IF(COUNT('3a'!AB56,'3b'!AB56,'3c'!AB56,'3d'!AB56,'3e (voluntary)'!AB56)=0,\":\",SUM('3a'!AB56,'3b'!AB56,'3c'!AB56,'3d'!AB56,'3e (voluntary)'!AB56))","v":":"},null,{"$f":"IF(COUNT('3a'!AD56,'3b'!AD56,'3c'!AD56,'3d'!AD56,'3e (voluntary)'!AD56)=0,\":\",SUM('3a'!AD56,'3b'!AD56,'3c'!AD56,'3d'!AD56,'3e (voluntary)'!AD56))","v":":"},null,{"$f":"IF(COUNT('3a'!AF56,'3b'!AF56,'3c'!AF56,'3d'!AF56,'3e (voluntary)'!AF56)=0,\":\",SUM('3a'!AF56,'3b'!AF56,'3c'!AF56,'3d'!AF56,'3e (voluntary)'!AF56))","v":":"}]
["S11_S12","EP_BUS","EPS_INV_PP",null,null,null,null,null,2028,{"$f":"IF(COUNT('3a'!J57,'3b'!J57,'3c'!J57,'3d'!J57,'3e (voluntary)'!J57)=0,\":\",SUM('3a'!J57,'3b'!J57,'3c'!J57,'3d'!J57,'3e (voluntary)'!J57))","v":":"},null,{"$f":"IF(COUNT('3a'!L57,'3b'!L57,'3c'!L57,'3d'!L57,'3e (voluntary)'!L57)=0,\":\",SUM('3a'!L57,'3b'!L57,'3c'!L57,'3d'!L57,'3e (voluntary)'!L57))","v":":"},null,{"$f":"IF(COUNT('3a'!N57,'3b'!N57,'3c'!N57,'3d'!N57,'3e (voluntary)'!N57)=0,\":\",SUM('3a'!N57,'3b'!N57,'3c'!N57,'3d'!N57,'3e (voluntary)'!N57))","v":":"},null,{"$f":"IF(COUNT('3a'!P57,'3b'!P57,'3c'!P57,'3d'!P57,'3e (voluntary)'!P57)=0,\":\",SUM('3a'!P57,'3b'!P57,'3c'!P57,'3d'!P57,'3e (voluntary)'!P57))","v":":"},null,{"$f":"IF(COUNT('3a'!R57,'3b'!R57,'3c'!R57,'3d'!R57,'3e (voluntary)'!R57)=0,\":\",SUM('3a'!R57,'3b'!R57,'3c'!R57,'3d'!R57,'3e (voluntary)'!R57))","v":":"},null,{"$f":"IF(COUNT('3a'!T57,'3b'!T57,'3c'!T57,'3d'!T57,'3e (voluntary)'!T57)=0,\":\",SUM('3a'!T57,'3b'!T57,'3c'!T57,'3d'!T57,'3e (voluntary)'!T57))","v":":"},null,{"$f":"IF(COUNT('3a'!V57,'3b'!V57,'3c'!V57,'3d'!V57,'3e (voluntary)'!V57)=0,\":\",SUM('3a'!V57,'3b'!V57,'3c'!V57,'3d'!V57,'3e (voluntary)'!V57))","v":":"},null,{"$f":"IF(COUNT('3a'!X57,'3b'!X57,'3c'!X57,'3d'!X57,'3e (voluntary)'!X57)=0,\":\",SUM('3a'!X57,'3b'!X57,'3c'!X57,'3d'!X57,'3e (voluntary)'!X57))","v":":"},null,{"$f":"IF(COUNT('3a'!Z57,'3b'!Z57,'3c'!Z57,'3d'!Z57,'3e (voluntary)'!Z57)=0,\":\",SUM('3a'!Z57,'3b'!Z57,'3c'!Z57,'3d'!Z57,'3e (voluntary)'!Z57))","v":":"},null,{"$f":"IF(COUNT('3a'!AB57,'3b'!AB57,'3c'!AB57,'3d'!AB57,'3e (voluntary)'!AB57)=0,\":\",SUM('3a'!AB57,'3b'!AB57,'3c'!AB57,'3d'!AB57,'3e (voluntary)'!AB57))","v":":"},null,{"$f":"IF(COUNT('3a'!AD57,'3b'!AD57,'3c'!AD57,'3d'!AD57,'3e (voluntary)'!AD57)=0,\":\",SUM('3a'!AD57,'3b'!AD57,'3c'!AD57,'3d'!AD57,'3e (voluntary)'!AD57))","v":":"},null,{"$f":"IF(COUNT('3a'!AF57,'3b'!AF57,'3c'!AF57,'3d'!AF57,'3e (voluntary)'!AF57)=0,\":\",SUM('3a'!AF57,'3b'!AF57,'3c'!AF57,'3d'!AF57,'3e (voluntary)'!AF57))","v":":"}]
["S11_S12","EP_BUS","EPS_INV_PP",null,null,null,null,null,2029,{"$f":"IF(COUNT('3a'!J58,'3b'!J58,'3c'!J58,'3d'!J58,'3e (voluntary)'!J58)=0,\":\",SUM('3a'!J58,'3b'!J58,'3c'!J58,'3d'!J58,'3e (voluntary)'!J58))","v":":"},null,{"$f":"IF(COUNT('3a'!L58,'3b'!L58,'3c'!L58,'3d'!L58,'3e (voluntary)'!L58)=0,\":\",SUM('3a'!L58,'3b'!L58,'3c'!L58,'3d'!L58,'3e (voluntary)'!L58))","v":":"},null,{"$f":"IF(COUNT('3a'!N58,'3b'!N58,'3c'!N58,'3d'!N58,'3e (voluntary)'!N58)=0,\":\",SUM('3a'!N58,'3b'!N58,'3c'!N58,'3d'!N58,'3e (voluntary)'!N58))","v":":"},null,{"$f":"IF(COUNT('3a'!P58,'3b'!P58,'3c'!P58,'3d'!P58,'3e (voluntary)'!P58)=0,\":\",SUM('3a'!P58,'3b'!P58,'3c'!P58,'3d'!P58,'3e (voluntary)'!P58))","v":":"},null,{"$f":"IF(COUNT('3a'!R58,'3b'!R58,'3c'!R58,'3d'!R58,'3e (voluntary)'!R58)=0,\":\",SUM('3a'!R58,'3b'!R58,'3c'!R58,'3d'!R58,'3e (voluntary)'!R58))","v":":"},null,{"$f":"IF(COUNT('3a'!T58,'3b'!T58,'3c'!T58,'3d'!T58,'3e (voluntary)'!T58)=0,\":\",SUM('3a'!T58,'3b'!T58,'3c'!T58,'3d'!T58,'3e (voluntary)'!T58))","v":":"},null,{"$f":"IF(COUNT('3a'!V58,'3b'!V58,'3c'!V58,'3d'!V58,'3e (voluntary)'!V58)=0,\":\",SUM('3a'!V58,'3b'!V58,'3c'!V58,'3d'!V58,'3e (voluntary)'!V58))","v":":"},null,{"$f":"IF(COUNT('3a'!X58,'3b'!X58,'3c'!X58,'3d'!X58,'3e (voluntary)'!X58)=0,\":\",SUM('3a'!X58,'3b'!X58,'3c'!X58,'3d'!X58,'3e (voluntary)'!X58))","v":":"},null,{"$f":"IF(COUNT('3a'!Z58,'3b'!Z58,'3c'!Z58,'3d'!Z58,'3e (voluntary)'!Z58)=0,\":\",SUM('3a'!Z58,'3b'!Z58,'3c'!Z58,'3d'!Z58,'3e (voluntary)'!Z58))","v":":"},null,{"$f":"IF(COUNT('3a'!AB58,'3b'!AB58,'3c'!AB58,'3d'!AB58,'3e (voluntary)'!AB58)=0,\":\",SUM('3a'!AB58,'3b'!AB58,'3c'!AB58,'3d'!AB58,'3e (voluntary)'!AB58))","v":":"},null,{"$f":"IF(COUNT('3a'!AD58,'3b'!AD58,'3c'!AD58,'3d'!AD58,'3e (voluntary)'!AD58)=0,\":\",SUM('3a'!AD58,'3b'!AD58,'3c'!AD58,'3d'!AD58,'3e (voluntary)'!AD58))","v":":"},null,{"$f":"IF(COUNT('3a'!AF58,'3b'!AF58,'3c'!AF58,'3d'!AF58,'3e (voluntary)'!AF58)=0,\":\",SUM('3a'!AF58,'3b'!AF58,'3c'!AF58,'3d'!AF58,'3e (voluntary)'!AF58))","v":":"}]
["S11_S12","EP_BUS","EPS_INV_PP",null,null,null,null,null,2030,{"$f":"IF(COUNT('3a'!J59,'3b'!J59,'3c'!J59,'3d'!J59,'3e (voluntary)'!J59)=0,\":\",SUM('3a'!J59,'3b'!J59,'3c'!J59,'3d'!J59,'3e (voluntary)'!J59))","v":":"},null,{"$f":"IF(COUNT('3a'!L59,'3b'!L59,'3c'!L59,'3d'!L59,'3e (voluntary)'!L59)=0,\":\",SUM('3a'!L59,'3b'!L59,'3c'!L59,'3d'!L59,'3e (voluntary)'!L59))","v":":"},null,{"$f":"IF(COUNT('3a'!N59,'3b'!N59,'3c'!N59,'3d'!N59,'3e (voluntary)'!N59)=0,\":\",SUM('3a'!N59,'3b'!N59,'3c'!N59,'3d'!N59,'3e (voluntary)'!N59))","v":":"},null,{"$f":"IF(COUNT('3a'!P59,'3b'!P59,'3c'!P59,'3d'!P59,'3e (voluntary)'!P59)=0,\":\",SUM('3a'!P59,'3b'!P59,'3c'!P59,'3d'!P59,'3e (voluntary)'!P59))","v":":"},null,{"$f":"IF(COUNT('3a'!R59,'3b'!R59,'3c'!R59,'3d'!R59,'3e (voluntary)'!R59)=0,\":\",SUM('3a'!R59,'3b'!R59,'3c'!R59,'3d'!R59,'3e (voluntary)'!R59))","v":":"},null,{"$f":"IF(COUNT('3a'!T59,'3b'!T59,'3c'!T59,'3d'!T59,'3e (voluntary)'!T59)=0,\":\",SUM('3a'!T59,'3b'!T59,'3c'!T59,'3d'!T59,'3e (voluntary)'!T59))","v":":"},null,{"$f":"IF(COUNT('3a'!V59,'3b'!V59,'3c'!V59,'3d'!V59,'3e (voluntary)'!V59)=0,\":\",SUM('3a'!V59,'3b'!V59,'3c'!V59,'3d'!V59,'3e (voluntary)'!V59))","v":":"},null,{"$f":"IF(COUNT('3a'!X59,'3b'!X59,'3c'!X59,'3d'!X59,'3e (voluntary)'!X59)=0,\":\",SUM('3a'!X59,'3b'!X59,'3c'!X59,'3d'!X59,'3e (voluntary)'!X59))","v":":"},null,{"$f":"IF(COUNT('3a'!Z59,'3b'!Z59,'3c'!Z59,'3d'!Z59,'3e (voluntary)'!Z59)=0,\":\",SUM('3a'!Z59,'3b'!Z59,'3c'!Z59,'3d'!Z59,'3e (voluntary)'!Z59))","v":":"},null,{"$f":"IF(COUNT('3a'!AB59,'3b'!AB59,'3c'!AB59,'3d'!AB59,'3e (voluntary)'!AB59)=0,\":\",SUM('3a'!AB59,'3b'!AB59,'3c'!AB59,'3d'!AB59,'3e (voluntary)'!AB59))","v":":"},null,{"$f":"IF(COUNT('3a'!AD59,'3b'!AD59,'3c'!AD59,'3d'!AD59,'3e (voluntary)'!AD59)=0,\":\",SUM('3a'!AD59,'3b'!AD59,'3c'!AD59,'3d'!AD59,'3e (voluntary)'!AD59))","v":":"},null,{"$f":"IF(COUNT('3a'!AF59,'3b'!AF59,'3c'!AF59,'3d'!AF59,'3e (voluntary)'!AF59)=0,\":\",SUM('3a'!AF59,'3b'!AF59,'3c'!AF59,'3d'!AF59,'3e (voluntary)'!AF59))","v":":"}]
["S11_S12","EP_BUS","EPS_INV_PP",null,null,null,null,null,2031,{"$f":"IF(COUNT('3a'!J60,'3b'!J60,'3c'!J60,'3d'!J60,'3e (voluntary)'!J60)=0,\":\",SUM('3a'!J60,'3b'!J60,'3c'!J60,'3d'!J60,'3e (voluntary)'!J60))","v":":"},null,{"$f":"IF(COUNT('3a'!L60,'3b'!L60,'3c'!L60,'3d'!L60,'3e (voluntary)'!L60)=0,\":\",SUM('3a'!L60,'3b'!L60,'3c'!L60,'3d'!L60,'3e (voluntary)'!L60))","v":":"},null,{"$f":"IF(COUNT('3a'!N60,'3b'!N60,'3c'!N60,'3d'!N60,'3e (voluntary)'!N60)=0,\":\",SUM('3a'!N60,'3b'!N60,'3c'!N60,'3d'!N60,'3e (voluntary)'!N60))","v":":"},null,{"$f":"IF(COUNT('3a'!P60,'3b'!P60,'3c'!P60,'3d'!P60,'3e (voluntary)'!P60)=0,\":\",SUM('3a'!P60,'3b'!P60,'3c'!P60,'3d'!P60,'3e (voluntary)'!P60))","v":":"},null,{"$f":"IF(COUNT('3a'!R60,'3b'!R60,'3c'!R60,'3d'!R60,'3e (voluntary)'!R60)=0,\":\",SUM('3a'!R60,'3b'!R60,'3c'!R60,'3d'!R60,'3e (voluntary)'!R60))","v":":"},null,{"$f":"IF(COUNT('3a'!T60,'3b'!T60,'3c'!T60,'3d'!T60,'3e (voluntary)'!T60)=0,\":\",SUM('3a'!T60,'3b'!T60,'3c'!T60,'3d'!T60,'3e (voluntary)'!T60))","v":":"},null,{"$f":"IF(COUNT('3a'!V60,'3b'!V60,'3c'!V60,'3d'!V60,'3e (voluntary)'!V60)=0,\":\",SUM('3a'!V60,'3b'!V60,'3c'!V60,'3d'!V60,'3e (voluntary)'!V60))","v":":"},null,{"$f":"IF(COUNT('3a'!X60,'3b'!X60,'3c'!X60,'3d'!X60,'3e (voluntary)'!X60)=0,\":\",SUM('3a'!X60,'3b'!X60,'3c'!X60,'3d'!X60,'3e (voluntary)'!X60))","v":":"},null,{"$f":"IF(COUNT('3a'!Z60,'3b'!Z60,'3c'!Z60,'3d'!Z60,'3e (voluntary)'!Z60)=0,\":\",SUM('3a'!Z60,'3b'!Z60,'3c'!Z60,'3d'!Z60,'3e (voluntary)'!Z60))","v":":"},null,{"$f":"IF(COUNT('3a'!AB60,'3b'!AB60,'3c'!AB60,'3d'!AB60,'3e (voluntary)'!AB60)=0,\":\",SUM('3a'!AB60,'3b'!AB60,'3c'!AB60,'3d'!AB60,'3e (voluntary)'!AB60))","v":":"},null,{"$f":"IF(COUNT('3a'!AD60,'3b'!AD60,'3c'!AD60,'3d'!AD60,'3e (voluntary)'!AD60)=0,\":\",SUM('3a'!AD60,'3b'!AD60,'3c'!AD60,'3d'!AD60,'3e (voluntary)'!AD60))","v":":"},null,{"$f":"IF(COUNT('3a'!AF60,'3b'!AF60,'3c'!AF60,'3d'!AF60,'3e (voluntary)'!AF60)=0,\":\",SUM('3a'!AF60,'3b'!AF60,'3c'!AF60,'3d'!AF60,'3e (voluntary)'!AF60))","v":":"}]
["S11_S12","EP_BUS","EPS_P2",null,"( P2.3 ) Total intermediate consumption",null,null,null,2014,{"$f":"IF(COUNT('3a'!J61,'3b'!J61,'3c'!J61,'3d'!J61,'3e (voluntary)'!J61)=0,\":\",SUM('3a'!J61,'3b'!J61,'3c'!J61,'3d'!J61,'3e (voluntary)'!J61))","v":":"},null,{"$f":"IF(COUNT('3a'!L61,'3b'!L61,'3c'!L61,'3d'!L61,'3e (voluntary)'!L61)=0,\":\",SUM('3a'!L61,'3b'!L61,'3c'!L61,'3d'!L61,'3e (voluntary)'!L61))","v":":"},null,{"$f":"IF(COUNT('3a'!N61,'3b'!N61,'3c'!N61,'3d'!N61,'3e (voluntary)'!N61)=0,\":\",SUM('3a'!N61,'3b'!N61,'3c'!N61,'3d'!N61,'3e (voluntary)'!N61))","v":":"},null,{"$f":"IF(COUNT('3a'!P61,'3b'!P61,'3c'!P61,'3d'!P61,'3e (voluntary)'!P61)=0,\":\",SUM('3a'!P61,'3b'!P61,'3c'!P61,'3d'!P61,'3e (voluntary)'!P61))","v":":"},null,{"$f":"IF(COUNT('3a'!R61,'3b'!R61,'3c'!R61,'3d'!R61,'3e (voluntary)'!R61)=0,\":\",SUM('3a'!R61,'3b'!R61,'3c'!R61,'3d'!R61,'3e (voluntary)'!R61))","v":":"},null,{"$f":"IF(COUNT('3a'!T61,'3b'!T61,'3c'!T61,'3d'!T61,'3e (voluntary)'!T61)=0,\":\",SUM('3a'!T61,'3b'!T61,'3c'!T61,'3d'!T61,'3e (voluntary)'!T61))","v":":"},null,{"$f":"IF(COUNT('3a'!V61,'3b'!V61,'3c'!V61,'3d'!V61,'3e (voluntary)'!V61)=0,\":\",SUM('3a'!V61,'3b'!V61,'3c'!V61,'3d'!V61,'3e (voluntary)'!V61))","v":":"},null,{"$f":"IF(COUNT('3a'!X61,'3b'!X61,'3c'!X61,'3d'!X61,'3e (voluntary)'!X61)=0,\":\",SUM('3a'!X61,'3b'!X61,'3c'!X61,'3d'!X61,'3e (voluntary)'!X61))","v":":"},null,{"$f":"IF(COUNT('3a'!Z61,'3b'!Z61,'3c'!Z61,'3d'!Z61,'3e (voluntary)'!Z61)=0,\":\",SUM('3a'!Z61,'3b'!Z61,'3c'!Z61,'3d'!Z61,'3e (voluntary)'!Z61))","v":":"},null,{"$f":"IF(COUNT('3a'!AB61,'3b'!AB61,'3c'!AB61,'3d'!AB61,'3e (voluntary)'!AB61)=0,\":\",SUM('3a'!AB61,'3b'!AB61,'3c'!AB61,'3d'!AB61,'3e (voluntary)'!AB61))","v":":"},null,{"$f":"IF(COUNT('3a'!AD61,'3b'!AD61,'3c'!AD61,'3d'!AD61,'3e (voluntary)'!AD61)=0,\":\",SUM('3a'!AD61,'3b'!AD61,'3c'!AD61,'3d'!AD61,'3e (voluntary)'!AD61))","v":":"},null,{"$f":"IF(COUNT('3a'!AF61,'3b'!AF61,'3c'!AF61,'3d'!AF61,'3e (voluntary)'!AF61)=0,\":\",SUM('3a'!AF61,'3b'!AF61,'3c'!AF61,'3d'!AF61,'3e (voluntary)'!AF61))","v":":"}]
["S11_S12","EP_BUS","EPS_P2",null,null,null,null,null,2015,{"$f":"IF(COUNT('3a'!J62,'3b'!J62,'3c'!J62,'3d'!J62,'3e (voluntary)'!J62)=0,\":\",SUM('3a'!J62,'3b'!J62,'3c'!J62,'3d'!J62,'3e (voluntary)'!J62))","v":":"},null,{"$f":"IF(COUNT('3a'!L62,'3b'!L62,'3c'!L62,'3d'!L62,'3e (voluntary)'!L62)=0,\":\",SUM('3a'!L62,'3b'!L62,'3c'!L62,'3d'!L62,'3e (voluntary)'!L62))","v":":"},null,{"$f":"IF(COUNT('3a'!N62,'3b'!N62,'3c'!N62,'3d'!N62,'3e (voluntary)'!N62)=0,\":\",SUM('3a'!N62,'3b'!N62,'3c'!N62,'3d'!N62,'3e (voluntary)'!N62))","v":":"},null,{"$f":"IF(COUNT('3a'!P62,'3b'!P62,'3c'!P62,'3d'!P62,'3e (voluntary)'!P62)=0,\":\",SUM('3a'!P62,'3b'!P62,'3c'!P62,'3d'!P62,'3e (voluntary)'!P62))","v":":"},null,{"$f":"IF(COUNT('3a'!R62,'3b'!R62,'3c'!R62,'3d'!R62,'3e (voluntary)'!R62)=0,\":\",SUM('3a'!R62,'3b'!R62,'3c'!R62,'3d'!R62,'3e (voluntary)'!R62))","v":":"},null,{"$f":"IF(COUNT('3a'!T62,'3b'!T62,'3c'!T62,'3d'!T62,'3e (voluntary)'!T62)=0,\":\",SUM('3a'!T62,'3b'!T62,'3c'!T62,'3d'!T62,'3e (voluntary)'!T62))","v":":"},null,{"$f":"IF(COUNT('3a'!V62,'3b'!V62,'3c'!V62,'3d'!V62,'3e (voluntary)'!V62)=0,\":\",SUM('3a'!V62,'3b'!V62,'3c'!V62,'3d'!V62,'3e (voluntary)'!V62))","v":":"},null,{"$f":"IF(COUNT('3a'!X62,'3b'!X62,'3c'!X62,'3d'!X62,'3e (voluntary)'!X62)=0,\":\",SUM('3a'!X62,'3b'!X62,'3c'!X62,'3d'!X62,'3e (voluntary)'!X62))","v":":"},null,{"$f":"IF(COUNT('3a'!Z62,'3b'!Z62,'3c'!Z62,'3d'!Z62,'3e (voluntary)'!Z62)=0,\":\",SUM('3a'!Z62,'3b'!Z62,'3c'!Z62,'3d'!Z62,'3e (voluntary)'!Z62))","v":":"},null,{"$f":"IF(COUNT('3a'!AB62,'3b'!AB62,'3c'!AB62,'3d'!AB62,'3e (voluntary)'!AB62)=0,\":\",SUM('3a'!AB62,'3b'!AB62,'3c'!AB62,'3d'!AB62,'3e (voluntary)'!AB62))","v":":"},null,{"$f":"IF(COUNT('3a'!AD62,'3b'!AD62,'3c'!AD62,'3d'!AD62,'3e (voluntary)'!AD62)=0,\":\",SUM('3a'!AD62,'3b'!AD62,'3c'!AD62,'3d'!AD62,'3e (voluntary)'!AD62))","v":":"},null,{"$f":"IF(COUNT('3a'!AF62,'3b'!AF62,'3c'!AF62,'3d'!AF62,'3e (voluntary)'!AF62)=0,\":\",SUM('3a'!AF62,'3b'!AF62,'3c'!AF62,'3d'!AF62,'3e (voluntary)'!AF62))","v":":"}]
["S11_S12","EP_BUS","EPS_P2",null,null,null,null,null,2016,{"$f":"IF(COUNT('3a'!J63,'3b'!J63,'3c'!J63,'3d'!J63,'3e (voluntary)'!J63)=0,\":\",SUM('3a'!J63,'3b'!J63,'3c'!J63,'3d'!J63,'3e (voluntary)'!J63))","v":":"},null,{"$f":"IF(COUNT('3a'!L63,'3b'!L63,'3c'!L63,'3d'!L63,'3e (voluntary)'!L63)=0,\":\",SUM('3a'!L63,'3b'!L63,'3c'!L63,'3d'!L63,'3e (voluntary)'!L63))","v":":"},null,{"$f":"IF(COUNT('3a'!N63,'3b'!N63,'3c'!N63,'3d'!N63,'3e (voluntary)'!N63)=0,\":\",SUM('3a'!N63,'3b'!N63,'3c'!N63,'3d'!N63,'3e (voluntary)'!N63))","v":":"},null,{"$f":"IF(COUNT('3a'!P63,'3b'!P63,'3c'!P63,'3d'!P63,'3e (voluntary)'!P63)=0,\":\",SUM('3a'!P63,'3b'!P63,'3c'!P63,'3d'!P63,'3e (voluntary)'!P63))","v":":"},null,{"$f":"IF(COUNT('3a'!R63,'3b'!R63,'3c'!R63,'3d'!R63,'3e (voluntary)'!R63)=0,\":\",SUM('3a'!R63,'3b'!R63,'3c'!R63,'3d'!R63,'3e (voluntary)'!R63))","v":":"},null,{"$f":"IF(COUNT('3a'!T63,'3b'!T63,'3c'!T63,'3d'!T63,'3e (voluntary)'!T63)=0,\":\",SUM('3a'!T63,'3b'!T63,'3c'!T63,'3d'!T63,'3e (voluntary)'!T63))","v":":"},null,{"$f":"IF(COUNT('3a'!V63,'3b'!V63,'3c'!V63,'3d'!V63,'3e (voluntary)'!V63)=0,\":\",SUM('3a'!V63,'3b'!V63,'3c'!V63,'3d'!V63,'3e (voluntary)'!V63))","v":":"},null,{"$f":"IF(COUNT('3a'!X63,'3b'!X63,'3c'!X63,'3d'!X63,'3e (voluntary)'!X63)=0,\":\",SUM('3a'!X63,'3b'!X63,'3c'!X63,'3d'!X63,'3e (voluntary)'!X63))","v":":"},null,{"$f":"IF(COUNT('3a'!Z63,'3b'!Z63,'3c'!Z63,'3d'!Z63,'3e (voluntary)'!Z63)=0,\":\",SUM('3a'!Z63,'3b'!Z63,'3c'!Z63,'3d'!Z63,'3e (voluntary)'!Z63))","v":":"},null,{"$f":"IF(COUNT('3a'!AB63,'3b'!AB63,'3c'!AB63,'3d'!AB63,'3e (voluntary)'!AB63)=0,\":\",SUM('3a'!AB63,'3b'!AB63,'3c'!AB63,'3d'!AB63,'3e (voluntary)'!AB63))","v":":"},null,{"$f":"IF(COUNT('3a'!AD63,'3b'!AD63,'3c'!AD63,'3d'!AD63,'3e (voluntary)'!AD63)=0,\":\",SUM('3a'!AD63,'3b'!AD63,'3c'!AD63,'3d'!AD63,'3e (voluntary)'!AD63))","v":":"},null,{"$f":"IF(COUNT('3a'!AF63,'3b'!AF63,'3c'!AF63,'3d'!AF63,'3e (voluntary)'!AF63)=0,\":\",SUM('3a'!AF63,'3b'!AF63,'3c'!AF63,'3d'!AF63,'3e (voluntary)'!AF63))","v":":"}]
["S11_S12","EP_BUS","EPS_P2",null,null,null,null,null,2017,{"$f":"IF(COUNT('3a'!J64,'3b'!J64,'3c'!J64,'3d'!J64,'3e (voluntary)'!J64)=0,\":\",SUM('3a'!J64,'3b'!J64,'3c'!J64,'3d'!J64,'3e (voluntary)'!J64))","v":":"},null,{"$f":"IF(COUNT('3a'!L64,'3b'!L64,'3c'!L64,'3d'!L64,'3e (voluntary)'!L64)=0,\":\",SUM('3a'!L64,'3b'!L64,'3c'!L64,'3d'!L64,'3e (voluntary)'!L64))","v":":"},null,{"$f":"IF(COUNT('3a'!N64,'3b'!N64,'3c'!N64,'3d'!N64,'3e (voluntary)'!N64)=0,\":\",SUM('3a'!N64,'3b'!N64,'3c'!N64,'3d'!N64,'3e (voluntary)'!N64))","v":":"},null,{"$f":"IF(COUNT('3a'!P64,'3b'!P64,'3c'!P64,'3d'!P64,'3e (voluntary)'!P64)=0,\":\",SUM('3a'!P64,'3b'!P64,'3c'!P64,'3d'!P64,'3e (voluntary)'!P64))","v":":"},null,{"$f":"IF(COUNT('3a'!R64,'3b'!R64,'3c'!R64,'3d'!R64,'3e (voluntary)'!R64)=0,\":\",SUM('3a'!R64,'3b'!R64,'3c'!R64,'3d'!R64,'3e (voluntary)'!R64))","v":":"},null,{"$f":"IF(COUNT('3a'!T64,'3b'!T64,'3c'!T64,'3d'!T64,'3e (voluntary)'!T64)=0,\":\",SUM('3a'!T64,'3b'!T64,'3c'!T64,'3d'!T64,'3e (voluntary)'!T64))","v":":"},null,{"$f":"IF(COUNT('3a'!V64,'3b'!V64,'3c'!V64,'3d'!V64,'3e (voluntary)'!V64)=0,\":\",SUM('3a'!V64,'3b'!V64,'3c'!V64,'3d'!V64,'3e (voluntary)'!V64))","v":":"},null,{"$f":"IF(COUNT('3a'!X64,'3b'!X64,'3c'!X64,'3d'!X64,'3e (voluntary)'!X64)=0,\":\",SUM('3a'!X64,'3b'!X64,'3c'!X64,'3d'!X64,'3e (voluntary)'!X64))","v":":"},null,{"$f":"IF(COUNT('3a'!Z64,'3b'!Z64,'3c'!Z64,'3d'!Z64,'3e (voluntary)'!Z64)=0,\":\",SUM('3a'!Z64,'3b'!Z64,'3c'!Z64,'3d'!Z64,'3e (voluntary)'!Z64))","v":":"},null,{"$f":"IF(COUNT('3a'!AB64,'3b'!AB64,'3c'!AB64,'3d'!AB64,'3e (voluntary)'!AB64)=0,\":\",SUM('3a'!AB64,'3b'!AB64,'3c'!AB64,'3d'!AB64,'3e (voluntary)'!AB64))","v":":"},null,{"$f":"IF(COUNT('3a'!AD64,'3b'!AD64,'3c'!AD64,'3d'!AD64,'3e (voluntary)'!AD64)=0,\":\",SUM('3a'!AD64,'3b'!AD64,'3c'!AD64,'3d'!AD64,'3e (voluntary)'!AD64))","v":":"},null,{"$f":"IF(COUNT('3a'!AF64,'3b'!AF64,'3c'!AF64,'3d'!AF64,'3e (voluntary)'!AF64)=0,\":\",SUM('3a'!AF64,'3b'!AF64,'3c'!AF64,'3d'!AF64,'3e (voluntary)'!AF64))","v":":"}]
["S11_S12","EP_BUS","EPS_P2",null,null,null,null,null,2018,{"$f":"IF(COUNT('3a'!J65,'3b'!J65,'3c'!J65,'3d'!J65,'3e (voluntary)'!J65)=0,\":\",SUM('3a'!J65,'3b'!J65,'3c'!J65,'3d'!J65,'3e (voluntary)'!J65))","v":":"},null,{"$f":"IF(COUNT('3a'!L65,'3b'!L65,'3c'!L65,'3d'!L65,'3e (voluntary)'!L65)=0,\":\",SUM('3a'!L65,'3b'!L65,'3c'!L65,'3d'!L65,'3e (voluntary)'!L65))","v":":"},null,{"$f":"IF(COUNT('3a'!N65,'3b'!N65,'3c'!N65,'3d'!N65,'3e (voluntary)'!N65)=0,\":\",SUM('3a'!N65,'3b'!N65,'3c'!N65,'3d'!N65,'3e (voluntary)'!N65))","v":":"},null,{"$f":"IF(COUNT('3a'!P65,'3b'!P65,'3c'!P65,'3d'!P65,'3e (voluntary)'!P65)=0,\":\",SUM('3a'!P65,'3b'!P65,'3c'!P65,'3d'!P65,'3e (voluntary)'!P65))","v":":"},null,{"$f":"IF(COUNT('3a'!R65,'3b'!R65,'3c'!R65,'3d'!R65,'3e (voluntary)'!R65)=0,\":\",SUM('3a'!R65,'3b'!R65,'3c'!R65,'3d'!R65,'3e (voluntary)'!R65))","v":":"},null,{"$f":"IF(COUNT('3a'!T65,'3b'!T65,'3c'!T65,'3d'!T65,'3e (voluntary)'!T65)=0,\":\",SUM('3a'!T65,'3b'!T65,'3c'!T65,'3d'!T65,'3e (voluntary)'!T65))","v":":"},null,{"$f":"IF(COUNT('3a'!V65,'3b'!V65,'3c'!V65,'3d'!V65,'3e (voluntary)'!V65)=0,\":\",SUM('3a'!V65,'3b'!V65,'3c'!V65,'3d'!V65,'3e (voluntary)'!V65))","v":":"},null,{"$f":"IF(COUNT('3a'!X65,'3b'!X65,'3c'!X65,'3d'!X65,'3e (voluntary)'!X65)=0,\":\",SUM('3a'!X65,'3b'!X65,'3c'!X65,'3d'!X65,'3e (voluntary)'!X65))","v":":"},null,{"$f":"IF(COUNT('3a'!Z65,'3b'!Z65,'3c'!Z65,'3d'!Z65,'3e (voluntary)'!Z65)=0,\":\",SUM('3a'!Z65,'3b'!Z65,'3c'!Z65,'3d'!Z65,'3e (voluntary)'!Z65))","v":":"},null,{"$f":"IF(COUNT('3a'!AB65,'3b'!AB65,'3c'!AB65,'3d'!AB65,'3e (voluntary)'!AB65)=0,\":\",SUM('3a'!AB65,'3b'!AB65,'3c'!AB65,'3d'!AB65,'3e (voluntary)'!AB65))","v":":"},null,{"$f":"IF(COUNT('3a'!AD65,'3b'!AD65,'3c'!AD65,'3d'!AD65,'3e (voluntary)'!AD65)=0,\":\",SUM('3a'!AD65,'3b'!AD65,'3c'!AD65,'3d'!AD65,'3e (voluntary)'!AD65))","v":":"},null,{"$f":"IF(COUNT('3a'!AF65,'3b'!AF65,'3c'!AF65,'3d'!AF65,'3e (voluntary)'!AF65)=0,\":\",SUM('3a'!AF65,'3b'!AF65,'3c'!AF65,'3d'!AF65,'3e (voluntary)'!AF65))","v":":"}]
["S11_S12","EP_BUS","EPS_P2",null,null,null,null,null,2019,{"$f":"IF(COUNT('3a'!J66,'3b'!J66,'3c'!J66,'3d'!J66,'3e (voluntary)'!J66)=0,\":\",SUM('3a'!J66,'3b'!J66,'3c'!J66,'3d'!J66,'3e (voluntary)'!J66))","v":":"},null,{"$f":"IF(COUNT('3a'!L66,'3b'!L66,'3c'!L66,'3d'!L66,'3e (voluntary)'!L66)=0,\":\",SUM('3a'!L66,'3b'!L66,'3c'!L66,'3d'!L66,'3e (voluntary)'!L66))","v":":"},null,{"$f":"IF(COUNT('3a'!N66,'3b'!N66,'3c'!N66,'3d'!N66,'3e (voluntary)'!N66)=0,\":\",SUM('3a'!N66,'3b'!N66,'3c'!N66,'3d'!N66,'3e (voluntary)'!N66))","v":":"},null,{"$f":"IF(COUNT('3a'!P66,'3b'!P66,'3c'!P66,'3d'!P66,'3e (voluntary)'!P66)=0,\":\",SUM('3a'!P66,'3b'!P66,'3c'!P66,'3d'!P66,'3e (voluntary)'!P66))","v":":"},null,{"$f":"IF(COUNT('3a'!R66,'3b'!R66,'3c'!R66,'3d'!R66,'3e (voluntary)'!R66)=0,\":\",SUM('3a'!R66,'3b'!R66,'3c'!R66,'3d'!R66,'3e (voluntary)'!R66))","v":":"},null,{"$f":"IF(COUNT('3a'!T66,'3b'!T66,'3c'!T66,'3d'!T66,'3e (voluntary)'!T66)=0,\":\",SUM('3a'!T66,'3b'!T66,'3c'!T66,'3d'!T66,'3e (voluntary)'!T66))","v":":"},null,{"$f":"IF(COUNT('3a'!V66,'3b'!V66,'3c'!V66,'3d'!V66,'3e (voluntary)'!V66)=0,\":\",SUM('3a'!V66,'3b'!V66,'3c'!V66,'3d'!V66,'3e (voluntary)'!V66))","v":":"},null,{"$f":"IF(COUNT('3a'!X66,'3b'!X66,'3c'!X66,'3d'!X66,'3e (voluntary)'!X66)=0,\":\",SUM('3a'!X66,'3b'!X66,'3c'!X66,'3d'!X66,'3e (voluntary)'!X66))","v":":"},null,{"$f":"IF(COUNT('3a'!Z66,'3b'!Z66,'3c'!Z66,'3d'!Z66,'3e (voluntary)'!Z66)=0,\":\",SUM('3a'!Z66,'3b'!Z66,'3c'!Z66,'3d'!Z66,'3e (voluntary)'!Z66))","v":":"},null,{"$f":"IF(COUNT('3a'!AB66,'3b'!AB66,'3c'!AB66,'3d'!AB66,'3e (voluntary)'!AB66)=0,\":\",SUM('3a'!AB66,'3b'!AB66,'3c'!AB66,'3d'!AB66,'3e (voluntary)'!AB66))","v":":"},null,{"$f":"IF(COUNT('3a'!AD66,'3b'!AD66,'3c'!AD66,'3d'!AD66,'3e (voluntary)'!AD66)=0,\":\",SUM('3a'!AD66,'3b'!AD66,'3c'!AD66,'3d'!AD66,'3e (voluntary)'!AD66))","v":":"},null,{"$f":"IF(COUNT('3a'!AF66,'3b'!AF66,'3c'!AF66,'3d'!AF66,'3e (voluntary)'!AF66)=0,\":\",SUM('3a'!AF66,'3b'!AF66,'3c'!AF66,'3d'!AF66,'3e (voluntary)'!AF66))","v":":"}]
["S11_S12","EP_BUS","EPS_P2",null,null,null,null,null,2020,{"$f":"IF(COUNT('3a'!J67,'3b'!J67,'3c'!J67,'3d'!J67,'3e (voluntary)'!J67)=0,\":\",SUM('3a'!J67,'3b'!J67,'3c'!J67,'3d'!J67,'3e (voluntary)'!J67))","v":":"},null,{"$f":"IF(COUNT('3a'!L67,'3b'!L67,'3c'!L67,'3d'!L67,'3e (voluntary)'!L67)=0,\":\",SUM('3a'!L67,'3b'!L67,'3c'!L67,'3d'!L67,'3e (voluntary)'!L67))","v":":"},null,{"$f":"IF(COUNT('3a'!N67,'3b'!N67,'3c'!N67,'3d'!N67,'3e (voluntary)'!N67)=0,\":\",SUM('3a'!N67,'3b'!N67,'3c'!N67,'3d'!N67,'3e (voluntary)'!N67))","v":":"},null,{"$f":"IF(COUNT('3a'!P67,'3b'!P67,'3c'!P67,'3d'!P67,'3e (voluntary)'!P67)=0,\":\",SUM('3a'!P67,'3b'!P67,'3c'!P67,'3d'!P67,'3e (voluntary)'!P67))","v":":"},null,{"$f":"IF(COUNT('3a'!R67,'3b'!R67,'3c'!R67,'3d'!R67,'3e (voluntary)'!R67)=0,\":\",SUM('3a'!R67,'3b'!R67,'3c'!R67,'3d'!R67,'3e (voluntary)'!R67))","v":":"},null,{"$f":"IF(COUNT('3a'!T67,'3b'!T67,'3c'!T67,'3d'!T67,'3e (voluntary)'!T67)=0,\":\",SUM('3a'!T67,'3b'!T67,'3c'!T67,'3d'!T67,'3e (voluntary)'!T67))","v":":"},null,{"$f":"IF(COUNT('3a'!V67,'3b'!V67,'3c'!V67,'3d'!V67,'3e (voluntary)'!V67)=0,\":\",SUM('3a'!V67,'3b'!V67,'3c'!V67,'3d'!V67,'3e (voluntary)'!V67))","v":":"},null,{"$f":"IF(COUNT('3a'!X67,'3b'!X67,'3c'!X67,'3d'!X67,'3e (voluntary)'!X67)=0,\":\",SUM('3a'!X67,'3b'!X67,'3c'!X67,'3d'!X67,'3e (voluntary)'!X67))","v":":"},null,{"$f":"IF(COUNT('3a'!Z67,'3b'!Z67,'3c'!Z67,'3d'!Z67,'3e (voluntary)'!Z67)=0,\":\",SUM('3a'!Z67,'3b'!Z67,'3c'!Z67,'3d'!Z67,'3e (voluntary)'!Z67))","v":":"},null,{"$f":"IF(COUNT('3a'!AB67,'3b'!AB67,'3c'!AB67,'3d'!AB67,'3e (voluntary)'!AB67)=0,\":\",SUM('3a'!AB67,'3b'!AB67,'3c'!AB67,'3d'!AB67,'3e (voluntary)'!AB67))","v":":"},null,{"$f":"IF(COUNT('3a'!AD67,'3b'!AD67,'3c'!AD67,'3d'!AD67,'3e (voluntary)'!AD67)=0,\":\",SUM('3a'!AD67,'3b'!AD67,'3c'!AD67,'3d'!AD67,'3e (voluntary)'!AD67))","v":":"},null,{"$f":"IF(COUNT('3a'!AF67,'3b'!AF67,'3c'!AF67,'3d'!AF67,'3e (voluntary)'!AF67)=0,\":\",SUM('3a'!AF67,'3b'!AF67,'3c'!AF67,'3d'!AF67,'3e (voluntary)'!AF67))","v":":"}]
["S11_S12","EP_BUS","EPS_P2",null,null,null,null,null,2021,{"$f":"IF(COUNT('3a'!J68,'3b'!J68,'3c'!J68,'3d'!J68,'3e (voluntary)'!J68)=0,\":\",SUM('3a'!J68,'3b'!J68,'3c'!J68,'3d'!J68,'3e (voluntary)'!J68))","v":":"},null,{"$f":"IF(COUNT('3a'!L68,'3b'!L68,'3c'!L68,'3d'!L68,'3e (voluntary)'!L68)=0,\":\",SUM('3a'!L68,'3b'!L68,'3c'!L68,'3d'!L68,'3e (voluntary)'!L68))","v":":"},null,{"$f":"IF(COUNT('3a'!N68,'3b'!N68,'3c'!N68,'3d'!N68,'3e (voluntary)'!N68)=0,\":\",SUM('3a'!N68,'3b'!N68,'3c'!N68,'3d'!N68,'3e (voluntary)'!N68))","v":":"},null,{"$f":"IF(COUNT('3a'!P68,'3b'!P68,'3c'!P68,'3d'!P68,'3e (voluntary)'!P68)=0,\":\",SUM('3a'!P68,'3b'!P68,'3c'!P68,'3d'!P68,'3e (voluntary)'!P68))","v":":"},null,{"$f":"IF(COUNT('3a'!R68,'3b'!R68,'3c'!R68,'3d'!R68,'3e (voluntary)'!R68)=0,\":\",SUM('3a'!R68,'3b'!R68,'3c'!R68,'3d'!R68,'3e (voluntary)'!R68))","v":":"},null,{"$f":"IF(COUNT('3a'!T68,'3b'!T68,'3c'!T68,'3d'!T68,'3e (voluntary)'!T68)=0,\":\",SUM('3a'!T68,'3b'!T68,'3c'!T68,'3d'!T68,'3e (voluntary)'!T68))","v":":"},null,{"$f":"IF(COUNT('3a'!V68,'3b'!V68,'3c'!V68,'3d'!V68,'3e (voluntary)'!V68)=0,\":\",SUM('3a'!V68,'3b'!V68,'3c'!V68,'3d'!V68,'3e (voluntary)'!V68))","v":":"},null,{"$f":"IF(COUNT('3a'!X68,'3b'!X68,'3c'!X68,'3d'!X68,'3e (voluntary)'!X68)=0,\":\",SUM('3a'!X68,'3b'!X68,'3c'!X68,'3d'!X68,'3e (voluntary)'!X68))","v":":"},null,{"$f":"IF(COUNT('3a'!Z68,'3b'!Z68,'3c'!Z68,'3d'!Z68,'3e (voluntary)'!Z68)=0,\":\",SUM('3a'!Z68,'3b'!Z68,'3c'!Z68,'3d'!Z68,'3e (voluntary)'!Z68))","v":":"},null,{"$f":"IF(COUNT('3a'!AB68,'3b'!AB68,'3c'!AB68,'3d'!AB68,'3e (voluntary)'!AB68)=0,\":\",SUM('3a'!AB68,'3b'!AB68,'3c'!AB68,'3d'!AB68,'3e (voluntary)'!AB68))","v":":"},null,{"$f":"IF(COUNT('3a'!AD68,'3b'!AD68,'3c'!AD68,'3d'!AD68,'3e (voluntary)'!AD68)=0,\":\",SUM('3a'!AD68,'3b'!AD68,'3c'!AD68,'3d'!AD68,'3e (voluntary)'!AD68))","v":":"},null,{"$f":"IF(COUNT('3a'!AF68,'3b'!AF68,'3c'!AF68,'3d'!AF68,'3e (voluntary)'!AF68)=0,\":\",SUM('3a'!AF68,'3b'!AF68,'3c'!AF68,'3d'!AF68,'3e (voluntary)'!AF68))","v":":"}]
["S11_S12","EP_BUS","EPS_P2",null,null,null,null,null,2022,{"$f":"IF(COUNT('3a'!J69,'3b'!J69,'3c'!J69,'3d'!J69,'3e (voluntary)'!J69)=0,\":\",SUM('3a'!J69,'3b'!J69,'3c'!J69,'3d'!J69,'3e (voluntary)'!J69))","v":":"},null,{"$f":"IF(COUNT('3a'!L69,'3b'!L69,'3c'!L69,'3d'!L69,'3e (voluntary)'!L69)=0,\":\",SUM('3a'!L69,'3b'!L69,'3c'!L69,'3d'!L69,'3e (voluntary)'!L69))","v":":"},null,{"$f":"IF(COUNT('3a'!N69,'3b'!N69,'3c'!N69,'3d'!N69,'3e (voluntary)'!N69)=0,\":\",SUM('3a'!N69,'3b'!N69,'3c'!N69,'3d'!N69,'3e (voluntary)'!N69))","v":":"},null,{"$f":"IF(COUNT('3a'!P69,'3b'!P69,'3c'!P69,'3d'!P69,'3e (voluntary)'!P69)=0,\":\",SUM('3a'!P69,'3b'!P69,'3c'!P69,'3d'!P69,'3e (voluntary)'!P69))","v":":"},null,{"$f":"IF(COUNT('3a'!R69,'3b'!R69,'3c'!R69,'3d'!R69,'3e (voluntary)'!R69)=0,\":\",SUM('3a'!R69,'3b'!R69,'3c'!R69,'3d'!R69,'3e (voluntary)'!R69))","v":":"},null,{"$f":"IF(COUNT('3a'!T69,'3b'!T69,'3c'!T69,'3d'!T69,'3e (voluntary)'!T69)=0,\":\",SUM('3a'!T69,'3b'!T69,'3c'!T69,'3d'!T69,'3e (voluntary)'!T69))","v":":"},null,{"$f":"IF(COUNT('3a'!V69,'3b'!V69,'3c'!V69,'3d'!V69,'3e (voluntary)'!V69)=0,\":\",SUM('3a'!V69,'3b'!V69,'3c'!V69,'3d'!V69,'3e (voluntary)'!V69))","v":":"},null,{"$f":"IF(COUNT('3a'!X69,'3b'!X69,'3c'!X69,'3d'!X69,'3e (voluntary)'!X69)=0,\":\",SUM('3a'!X69,'3b'!X69,'3c'!X69,'3d'!X69,'3e (voluntary)'!X69))","v":":"},null,{"$f":"IF(COUNT('3a'!Z69,'3b'!Z69,'3c'!Z69,'3d'!Z69,'3e (voluntary)'!Z69)=0,\":\",SUM('3a'!Z69,'3b'!Z69,'3c'!Z69,'3d'!Z69,'3e (voluntary)'!Z69))","v":":"},null,{"$f":"IF(COUNT('3a'!AB69,'3b'!AB69,'3c'!AB69,'3d'!AB69,'3e (voluntary)'!AB69)=0,\":\",SUM('3a'!AB69,'3b'!AB69,'3c'!AB69,'3d'!AB69,'3e (voluntary)'!AB69))","v":":"},null,{"$f":"IF(COUNT('3a'!AD69,'3b'!AD69,'3c'!AD69,'3d'!AD69,'3e (voluntary)'!AD69)=0,\":\",SUM('3a'!AD69,'3b'!AD69,'3c'!AD69,'3d'!AD69,'3e (voluntary)'!AD69))","v":":"},null,{"$f":"IF(COUNT('3a'!AF69,'3b'!AF69,'3c'!AF69,'3d'!AF69,'3e (voluntary)'!AF69)=0,\":\",SUM('3a'!AF69,'3b'!AF69,'3c'!AF69,'3d'!AF69,'3e (voluntary)'!AF69))","v":":"}]
["S11_S12","EP_BUS","EPS_P2",null,null,null,null,null,2023,{"$f":"IF(COUNT('3a'!J70,'3b'!J70,'3c'!J70,'3d'!J70,'3e (voluntary)'!J70)=0,\":\",SUM('3a'!J70,'3b'!J70,'3c'!J70,'3d'!J70,'3e (voluntary)'!J70))","v":":"},null,{"$f":"IF(COUNT('3a'!L70,'3b'!L70,'3c'!L70,'3d'!L70,'3e (voluntary)'!L70)=0,\":\",SUM('3a'!L70,'3b'!L70,'3c'!L70,'3d'!L70,'3e (voluntary)'!L70))","v":":"},null,{"$f":"IF(COUNT('3a'!N70,'3b'!N70,'3c'!N70,'3d'!N70,'3e (voluntary)'!N70)=0,\":\",SUM('3a'!N70,'3b'!N70,'3c'!N70,'3d'!N70,'3e (voluntary)'!N70))","v":":"},null,{"$f":"IF(COUNT('3a'!P70,'3b'!P70,'3c'!P70,'3d'!P70,'3e (voluntary)'!P70)=0,\":\",SUM('3a'!P70,'3b'!P70,'3c'!P70,'3d'!P70,'3e (voluntary)'!P70))","v":":"},null,{"$f":"IF(COUNT('3a'!R70,'3b'!R70,'3c'!R70,'3d'!R70,'3e (voluntary)'!R70)=0,\":\",SUM('3a'!R70,'3b'!R70,'3c'!R70,'3d'!R70,'3e (voluntary)'!R70))","v":":"},null,{"$f":"IF(COUNT('3a'!T70,'3b'!T70,'3c'!T70,'3d'!T70,'3e (voluntary)'!T70)=0,\":\",SUM('3a'!T70,'3b'!T70,'3c'!T70,'3d'!T70,'3e (voluntary)'!T70))","v":":"},null,{"$f":"IF(COUNT('3a'!V70,'3b'!V70,'3c'!V70,'3d'!V70,'3e (voluntary)'!V70)=0,\":\",SUM('3a'!V70,'3b'!V70,'3c'!V70,'3d'!V70,'3e (voluntary)'!V70))","v":":"},null,{"$f":"IF(COUNT('3a'!X70,'3b'!X70,'3c'!X70,'3d'!X70,'3e (voluntary)'!X70)=0,\":\",SUM('3a'!X70,'3b'!X70,'3c'!X70,'3d'!X70,'3e (voluntary)'!X70))","v":":"},null,{"$f":"IF(COUNT('3a'!Z70,'3b'!Z70,'3c'!Z70,'3d'!Z70,'3e (voluntary)'!Z70)=0,\":\",SUM('3a'!Z70,'3b'!Z70,'3c'!Z70,'3d'!Z70,'3e (voluntary)'!Z70))","v":":"},null,{"$f":"IF(COUNT('3a'!AB70,'3b'!AB70,'3c'!AB70,'3d'!AB70,'3e (voluntary)'!AB70)=0,\":\",SUM('3a'!AB70,'3b'!AB70,'3c'!AB70,'3d'!AB70,'3e (voluntary)'!AB70))","v":":"},null,{"$f":"IF(COUNT('3a'!AD70,'3b'!AD70,'3c'!AD70,'3d'!AD70,'3e (voluntary)'!AD70)=0,\":\",SUM('3a'!AD70,'3b'!AD70,'3c'!AD70,'3d'!AD70,'3e (voluntary)'!AD70))","v":":"},null,{"$f":"IF(COUNT('3a'!AF70,'3b'!AF70,'3c'!AF70,'3d'!AF70,'3e (voluntary)'!AF70)=0,\":\",SUM('3a'!AF70,'3b'!AF70,'3c'!AF70,'3d'!AF70,'3e (voluntary)'!AF70))","v":":"}]
["S11_S12","EP_BUS","EPS_P2",null,null,null,null,null,2024,{"$f":"IF(COUNT('3a'!J71,'3b'!J71,'3c'!J71,'3d'!J71,'3e (voluntary)'!J71)=0,\":\",SUM('3a'!J71,'3b'!J71,'3c'!J71,'3d'!J71,'3e (voluntary)'!J71))","v":":"},null,{"$f":"IF(COUNT('3a'!L71,'3b'!L71,'3c'!L71,'3d'!L71,'3e (voluntary)'!L71)=0,\":\",SUM('3a'!L71,'3b'!L71,'3c'!L71,'3d'!L71,'3e (voluntary)'!L71))","v":":"},null,{"$f":"IF(COUNT('3a'!N71,'3b'!N71,'3c'!N71,'3d'!N71,'3e (voluntary)'!N71)=0,\":\",SUM('3a'!N71,'3b'!N71,'3c'!N71,'3d'!N71,'3e (voluntary)'!N71))","v":":"},null,{"$f":"IF(COUNT('3a'!P71,'3b'!P71,'3c'!P71,'3d'!P71,'3e (voluntary)'!P71)=0,\":\",SUM('3a'!P71,'3b'!P71,'3c'!P71,'3d'!P71,'3e (voluntary)'!P71))","v":":"},null,{"$f":"IF(COUNT('3a'!R71,'3b'!R71,'3c'!R71,'3d'!R71,'3e (voluntary)'!R71)=0,\":\",SUM('3a'!R71,'3b'!R71,'3c'!R71,'3d'!R71,'3e (voluntary)'!R71))","v":":"},null,{"$f":"IF(COUNT('3a'!T71,'3b'!T71,'3c'!T71,'3d'!T71,'3e (voluntary)'!T71)=0,\":\",SUM('3a'!T71,'3b'!T71,'3c'!T71,'3d'!T71,'3e (voluntary)'!T71))","v":":"},null,{"$f":"IF(COUNT('3a'!V71,'3b'!V71,'3c'!V71,'3d'!V71,'3e (voluntary)'!V71)=0,\":\",SUM('3a'!V71,'3b'!V71,'3c'!V71,'3d'!V71,'3e (voluntary)'!V71))","v":":"},null,{"$f":"IF(COUNT('3a'!X71,'3b'!X71,'3c'!X71,'3d'!X71,'3e (voluntary)'!X71)=0,\":\",SUM('3a'!X71,'3b'!X71,'3c'!X71,'3d'!X71,'3e (voluntary)'!X71))","v":":"},null,{"$f":"IF(COUNT('3a'!Z71,'3b'!Z71,'3c'!Z71,'3d'!Z71,'3e (voluntary)'!Z71)=0,\":\",SUM('3a'!Z71,'3b'!Z71,'3c'!Z71,'3d'!Z71,'3e (voluntary)'!Z71))","v":":"},null,{"$f":"IF(COUNT('3a'!AB71,'3b'!AB71,'3c'!AB71,'3d'!AB71,'3e (voluntary)'!AB71)=0,\":\",SUM('3a'!AB71,'3b'!AB71,'3c'!AB71,'3d'!AB71,'3e (voluntary)'!AB71))","v":":"},null,{"$f":"IF(COUNT('3a'!AD71,'3b'!AD71,'3c'!AD71,'3d'!AD71,'3e (voluntary)'!AD71)=0,\":\",SUM('3a'!AD71,'3b'!AD71,'3c'!AD71,'3d'!AD71,'3e (voluntary)'!AD71))","v":":"},null,{"$f":"IF(COUNT('3a'!AF71,'3b'!AF71,'3c'!AF71,'3d'!AF71,'3e (voluntary)'!AF71)=0,\":\",SUM('3a'!AF71,'3b'!AF71,'3c'!AF71,'3d'!AF71,'3e (voluntary)'!AF71))","v":":"}]
["S11_S12","EP_BUS","EPS_P2",null,null,null,null,null,2025,{"$f":"IF(COUNT('3a'!J72,'3b'!J72,'3c'!J72,'3d'!J72,'3e (voluntary)'!J72)=0,\":\",SUM('3a'!J72,'3b'!J72,'3c'!J72,'3d'!J72,'3e (voluntary)'!J72))","v":":"},null,{"$f":"IF(COUNT('3a'!L72,'3b'!L72,'3c'!L72,'3d'!L72,'3e (voluntary)'!L72)=0,\":\",SUM('3a'!L72,'3b'!L72,'3c'!L72,'3d'!L72,'3e (voluntary)'!L72))","v":":"},null,{"$f":"IF(COUNT('3a'!N72,'3b'!N72,'3c'!N72,'3d'!N72,'3e (voluntary)'!N72)=0,\":\",SUM('3a'!N72,'3b'!N72,'3c'!N72,'3d'!N72,'3e (voluntary)'!N72))","v":":"},null,{"$f":"IF(COUNT('3a'!P72,'3b'!P72,'3c'!P72,'3d'!P72,'3e (voluntary)'!P72)=0,\":\",SUM('3a'!P72,'3b'!P72,'3c'!P72,'3d'!P72,'3e (voluntary)'!P72))","v":":"},null,{"$f":"IF(COUNT('3a'!R72,'3b'!R72,'3c'!R72,'3d'!R72,'3e (voluntary)'!R72)=0,\":\",SUM('3a'!R72,'3b'!R72,'3c'!R72,'3d'!R72,'3e (voluntary)'!R72))","v":":"},null,{"$f":"IF(COUNT('3a'!T72,'3b'!T72,'3c'!T72,'3d'!T72,'3e (voluntary)'!T72)=0,\":\",SUM('3a'!T72,'3b'!T72,'3c'!T72,'3d'!T72,'3e (voluntary)'!T72))","v":":"},null,{"$f":"IF(COUNT('3a'!V72,'3b'!V72,'3c'!V72,'3d'!V72,'3e (voluntary)'!V72)=0,\":\",SUM('3a'!V72,'3b'!V72,'3c'!V72,'3d'!V72,'3e (voluntary)'!V72))","v":":"},null,{"$f":"IF(COUNT('3a'!X72,'3b'!X72,'3c'!X72,'3d'!X72,'3e (voluntary)'!X72)=0,\":\",SUM('3a'!X72,'3b'!X72,'3c'!X72,'3d'!X72,'3e (voluntary)'!X72))","v":":"},null,{"$f":"IF(COUNT('3a'!Z72,'3b'!Z72,'3c'!Z72,'3d'!Z72,'3e (voluntary)'!Z72)=0,\":\",SUM('3a'!Z72,'3b'!Z72,'3c'!Z72,'3d'!Z72,'3e (voluntary)'!Z72))","v":":"},null,{"$f":"IF(COUNT('3a'!AB72,'3b'!AB72,'3c'!AB72,'3d'!AB72,'3e (voluntary)'!AB72)=0,\":\",SUM('3a'!AB72,'3b'!AB72,'3c'!AB72,'3d'!AB72,'3e (voluntary)'!AB72))","v":":"},null,{"$f":"IF(COUNT('3a'!AD72,'3b'!AD72,'3c'!AD72,'3d'!AD72,'3e (voluntary)'!AD72)=0,\":\",SUM('3a'!AD72,'3b'!AD72,'3c'!AD72,'3d'!AD72,'3e (voluntary)'!AD72))","v":":"},null,{"$f":"IF(COUNT('3a'!AF72,'3b'!AF72,'3c'!AF72,'3d'!AF72,'3e (voluntary)'!AF72)=0,\":\",SUM('3a'!AF72,'3b'!AF72,'3c'!AF72,'3d'!AF72,'3e (voluntary)'!AF72))","v":":"}]
["S11_S12","EP_BUS","EPS_P2",null,null,null,null,null,2026,{"$f":"IF(COUNT('3a'!J73,'3b'!J73,'3c'!J73,'3d'!J73,'3e (voluntary)'!J73)=0,\":\",SUM('3a'!J73,'3b'!J73,'3c'!J73,'3d'!J73,'3e (voluntary)'!J73))","v":":"},null,{"$f":"IF(COUNT('3a'!L73,'3b'!L73,'3c'!L73,'3d'!L73,'3e (voluntary)'!L73)=0,\":\",SUM('3a'!L73,'3b'!L73,'3c'!L73,'3d'!L73,'3e (voluntary)'!L73))","v":":"},null,{"$f":"IF(COUNT('3a'!N73,'3b'!N73,'3c'!N73,'3d'!N73,'3e (voluntary)'!N73)=0,\":\",SUM('3a'!N73,'3b'!N73,'3c'!N73,'3d'!N73,'3e (voluntary)'!N73))","v":":"},null,{"$f":"IF(COUNT('3a'!P73,'3b'!P73,'3c'!P73,'3d'!P73,'3e (voluntary)'!P73)=0,\":\",SUM('3a'!P73,'3b'!P73,'3c'!P73,'3d'!P73,'3e (voluntary)'!P73))","v":":"},null,{"$f":"IF(COUNT('3a'!R73,'3b'!R73,'3c'!R73,'3d'!R73,'3e (voluntary)'!R73)=0,\":\",SUM('3a'!R73,'3b'!R73,'3c'!R73,'3d'!R73,'3e (voluntary)'!R73))","v":":"},null,{"$f":"IF(COUNT('3a'!T73,'3b'!T73,'3c'!T73,'3d'!T73,'3e (voluntary)'!T73)=0,\":\",SUM('3a'!T73,'3b'!T73,'3c'!T73,'3d'!T73,'3e (voluntary)'!T73))","v":":"},null,{"$f":"IF(COUNT('3a'!V73,'3b'!V73,'3c'!V73,'3d'!V73,'3e (voluntary)'!V73)=0,\":\",SUM('3a'!V73,'3b'!V73,'3c'!V73,'3d'!V73,'3e (voluntary)'!V73))","v":":"},null,{"$f":"IF(COUNT('3a'!X73,'3b'!X73,'3c'!X73,'3d'!X73,'3e (voluntary)'!X73)=0,\":\",SUM('3a'!X73,'3b'!X73,'3c'!X73,'3d'!X73,'3e (voluntary)'!X73))","v":":"},null,{"$f":"IF(COUNT('3a'!Z73,'3b'!Z73,'3c'!Z73,'3d'!Z73,'3e (voluntary)'!Z73)=0,\":\",SUM('3a'!Z73,'3b'!Z73,'3c'!Z73,'3d'!Z73,'3e (voluntary)'!Z73))","v":":"},null,{"$f":"IF(COUNT('3a'!AB73,'3b'!AB73,'3c'!AB73,'3d'!AB73,'3e (voluntary)'!AB73)=0,\":\",SUM('3a'!AB73,'3b'!AB73,'3c'!AB73,'3d'!AB73,'3e (voluntary)'!AB73))","v":":"},null,{"$f":"IF(COUNT('3a'!AD73,'3b'!AD73,'3c'!AD73,'3d'!AD73,'3e (voluntary)'!AD73)=0,\":\",SUM('3a'!AD73,'3b'!AD73,'3c'!AD73,'3d'!AD73,'3e (voluntary)'!AD73))","v":":"},null,{"$f":"IF(COUNT('3a'!AF73,'3b'!AF73,'3c'!AF73,'3d'!AF73,'3e (voluntary)'!AF73)=0,\":\",SUM('3a'!AF73,'3b'!AF73,'3c'!AF73,'3d'!AF73,'3e (voluntary)'!AF73))","v":":"}]
["S11_S12","EP_BUS","EPS_P2",null,null,null,null,null,2027,{"$f":"IF(COUNT('3a'!J74,'3b'!J74,'3c'!J74,'3d'!J74,'3e (voluntary)'!J74)=0,\":\",SUM('3a'!J74,'3b'!J74,'3c'!J74,'3d'!J74,'3e (voluntary)'!J74))","v":":"},null,{"$f":"IF(COUNT('3a'!L74,'3b'!L74,'3c'!L74,'3d'!L74,'3e (voluntary)'!L74)=0,\":\",SUM('3a'!L74,'3b'!L74,'3c'!L74,'3d'!L74,'3e (voluntary)'!L74))","v":":"},null,{"$f":"IF(COUNT('3a'!N74,'3b'!N74,'3c'!N74,'3d'!N74,'3e (voluntary)'!N74)=0,\":\",SUM('3a'!N74,'3b'!N74,'3c'!N74,'3d'!N74,'3e (voluntary)'!N74))","v":":"},null,{"$f":"IF(COUNT('3a'!P74,'3b'!P74,'3c'!P74,'3d'!P74,'3e (voluntary)'!P74)=0,\":\",SUM('3a'!P74,'3b'!P74,'3c'!P74,'3d'!P74,'3e (voluntary)'!P74))","v":":"},null,{"$f":"IF(COUNT('3a'!R74,'3b'!R74,'3c'!R74,'3d'!R74,'3e (voluntary)'!R74)=0,\":\",SUM('3a'!R74,'3b'!R74,'3c'!R74,'3d'!R74,'3e (voluntary)'!R74))","v":":"},null,{"$f":"IF(COUNT('3a'!T74,'3b'!T74,'3c'!T74,'3d'!T74,'3e (voluntary)'!T74)=0,\":\",SUM('3a'!T74,'3b'!T74,'3c'!T74,'3d'!T74,'3e (voluntary)'!T74))","v":":"},null,{"$f":"IF(COUNT('3a'!V74,'3b'!V74,'3c'!V74,'3d'!V74,'3e (voluntary)'!V74)=0,\":\",SUM('3a'!V74,'3b'!V74,'3c'!V74,'3d'!V74,'3e (voluntary)'!V74))","v":":"},null,{"$f":"IF(COUNT('3a'!X74,'3b'!X74,'3c'!X74,'3d'!X74,'3e (voluntary)'!X74)=0,\":\",SUM('3a'!X74,'3b'!X74,'3c'!X74,'3d'!X74,'3e (voluntary)'!X74))","v":":"},null,{"$f":"IF(COUNT('3a'!Z74,'3b'!Z74,'3c'!Z74,'3d'!Z74,'3e (voluntary)'!Z74)=0,\":\",SUM('3a'!Z74,'3b'!Z74,'3c'!Z74,'3d'!Z74,'3e (voluntary)'!Z74))","v":":"},null,{"$f":"IF(COUNT('3a'!AB74,'3b'!AB74,'3c'!AB74,'3d'!AB74,'3e (voluntary)'!AB74)=0,\":\",SUM('3a'!AB74,'3b'!AB74,'3c'!AB74,'3d'!AB74,'3e (voluntary)'!AB74))","v":":"},null,{"$f":"IF(COUNT('3a'!AD74,'3b'!AD74,'3c'!AD74,'3d'!AD74,'3e (voluntary)'!AD74)=0,\":\",SUM('3a'!AD74,'3b'!AD74,'3c'!AD74,'3d'!AD74,'3e (voluntary)'!AD74))","v":":"},null,{"$f":"IF(COUNT('3a'!AF74,'3b'!AF74,'3c'!AF74,'3d'!AF74,'3e (voluntary)'!AF74)=0,\":\",SUM('3a'!AF74,'3b'!AF74,'3c'!AF74,'3d'!AF74,'3e (voluntary)'!AF74))","v":":"}]
["S11_S12","EP_BUS","EPS_P2",null,null,null,null,null,2028,{"$f":"IF(COUNT('3a'!J75,'3b'!J75,'3c'!J75,'3d'!J75,'3e (voluntary)'!J75)=0,\":\",SUM('3a'!J75,'3b'!J75,'3c'!J75,'3d'!J75,'3e (voluntary)'!J75))","v":":"},null,{"$f":"IF(COUNT('3a'!L75,'3b'!L75,'3c'!L75,'3d'!L75,'3e (voluntary)'!L75)=0,\":\",SUM('3a'!L75,'3b'!L75,'3c'!L75,'3d'!L75,'3e (voluntary)'!L75))","v":":"},null,{"$f":"IF(COUNT('3a'!N75,'3b'!N75,'3c'!N75,'3d'!N75,'3e (voluntary)'!N75)=0,\":\",SUM('3a'!N75,'3b'!N75,'3c'!N75,'3d'!N75,'3e (voluntary)'!N75))","v":":"},null,{"$f":"IF(COUNT('3a'!P75,'3b'!P75,'3c'!P75,'3d'!P75,'3e (voluntary)'!P75)=0,\":\",SUM('3a'!P75,'3b'!P75,'3c'!P75,'3d'!P75,'3e (voluntary)'!P75))","v":":"},null,{"$f":"IF(COUNT('3a'!R75,'3b'!R75,'3c'!R75,'3d'!R75,'3e (voluntary)'!R75)=0,\":\",SUM('3a'!R75,'3b'!R75,'3c'!R75,'3d'!R75,'3e (voluntary)'!R75))","v":":"},null,{"$f":"IF(COUNT('3a'!T75,'3b'!T75,'3c'!T75,'3d'!T75,'3e (voluntary)'!T75)=0,\":\",SUM('3a'!T75,'3b'!T75,'3c'!T75,'3d'!T75,'3e (voluntary)'!T75))","v":":"},null,{"$f":"IF(COUNT('3a'!V75,'3b'!V75,'3c'!V75,'3d'!V75,'3e (voluntary)'!V75)=0,\":\",SUM('3a'!V75,'3b'!V75,'3c'!V75,'3d'!V75,'3e (voluntary)'!V75))","v":":"},null,{"$f":"IF(COUNT('3a'!X75,'3b'!X75,'3c'!X75,'3d'!X75,'3e (voluntary)'!X75)=0,\":\",SUM('3a'!X75,'3b'!X75,'3c'!X75,'3d'!X75,'3e (voluntary)'!X75))","v":":"},null,{"$f":"IF(COUNT('3a'!Z75,'3b'!Z75,'3c'!Z75,'3d'!Z75,'3e (voluntary)'!Z75)=0,\":\",SUM('3a'!Z75,'3b'!Z75,'3c'!Z75,'3d'!Z75,'3e (voluntary)'!Z75))","v":":"},null,{"$f":"IF(COUNT('3a'!AB75,'3b'!AB75,'3c'!AB75,'3d'!AB75,'3e (voluntary)'!AB75)=0,\":\",SUM('3a'!AB75,'3b'!AB75,'3c'!AB75,'3d'!AB75,'3e (voluntary)'!AB75))","v":":"},null,{"$f":"IF(COUNT('3a'!AD75,'3b'!AD75,'3c'!AD75,'3d'!AD75,'3e (voluntary)'!AD75)=0,\":\",SUM('3a'!AD75,'3b'!AD75,'3c'!AD75,'3d'!AD75,'3e (voluntary)'!AD75))","v":":"},null,{"$f":"IF(COUNT('3a'!AF75,'3b'!AF75,'3c'!AF75,'3d'!AF75,'3e (voluntary)'!AF75)=0,\":\",SUM('3a'!AF75,'3b'!AF75,'3c'!AF75,'3d'!AF75,'3e (voluntary)'!AF75))","v":":"}]
["S11_S12","EP_BUS","EPS_P2",null,null,null,null,null,2029,{"$f":"IF(COUNT('3a'!J76,'3b'!J76,'3c'!J76,'3d'!J76,'3e (voluntary)'!J76)=0,\":\",SUM('3a'!J76,'3b'!J76,'3c'!J76,'3d'!J76,'3e (voluntary)'!J76))","v":":"},null,{"$f":"IF(COUNT('3a'!L76,'3b'!L76,'3c'!L76,'3d'!L76,'3e (voluntary)'!L76)=0,\":\",SUM('3a'!L76,'3b'!L76,'3c'!L76,'3d'!L76,'3e (voluntary)'!L76))","v":":"},null,{"$f":"IF(COUNT('3a'!N76,'3b'!N76,'3c'!N76,'3d'!N76,'3e (voluntary)'!N76)=0,\":\",SUM('3a'!N76,'3b'!N76,'3c'!N76,'3d'!N76,'3e (voluntary)'!N76))","v":":"},null,{"$f":"IF(COUNT('3a'!P76,'3b'!P76,'3c'!P76,'3d'!P76,'3e (voluntary)'!P76)=0,\":\",SUM('3a'!P76,'3b'!P76,'3c'!P76,'3d'!P76,'3e (voluntary)'!P76))","v":":"},null,{"$f":"IF(COUNT('3a'!R76,'3b'!R76,'3c'!R76,'3d'!R76,'3e (voluntary)'!R76)=0,\":\",SUM('3a'!R76,'3b'!R76,'3c'!R76,'3d'!R76,'3e (voluntary)'!R76))","v":":"},null,{"$f":"IF(COUNT('3a'!T76,'3b'!T76,'3c'!T76,'3d'!T76,'3e (voluntary)'!T76)=0,\":\",SUM('3a'!T76,'3b'!T76,'3c'!T76,'3d'!T76,'3e (voluntary)'!T76))","v":":"},null,{"$f":"IF(COUNT('3a'!V76,'3b'!V76,'3c'!V76,'3d'!V76,'3e (voluntary)'!V76)=0,\":\",SUM('3a'!V76,'3b'!V76,'3c'!V76,'3d'!V76,'3e (voluntary)'!V76))","v":":"},null,{"$f":"IF(COUNT('3a'!X76,'3b'!X76,'3c'!X76,'3d'!X76,'3e (voluntary)'!X76)=0,\":\",SUM('3a'!X76,'3b'!X76,'3c'!X76,'3d'!X76,'3e (voluntary)'!X76))","v":":"},null,{"$f":"IF(COUNT('3a'!Z76,'3b'!Z76,'3c'!Z76,'3d'!Z76,'3e (voluntary)'!Z76)=0,\":\",SUM('3a'!Z76,'3b'!Z76,'3c'!Z76,'3d'!Z76,'3e (voluntary)'!Z76))","v":":"},null,{"$f":"IF(COUNT('3a'!AB76,'3b'!AB76,'3c'!AB76,'3d'!AB76,'3e (voluntary)'!AB76)=0,\":\",SUM('3a'!AB76,'3b'!AB76,'3c'!AB76,'3d'!AB76,'3e (voluntary)'!AB76))","v":":"},null,{"$f":"IF(COUNT('3a'!AD76,'3b'!AD76,'3c'!AD76,'3d'!AD76,'3e (voluntary)'!AD76)=0,\":\",SUM('3a'!AD76,'3b'!AD76,'3c'!AD76,'3d'!AD76,'3e (voluntary)'!AD76))","v":":"},null,{"$f":"IF(COUNT('3a'!AF76,'3b'!AF76,'3c'!AF76,'3d'!AF76,'3e (voluntary)'!AF76)=0,\":\",SUM('3a'!AF76,'3b'!AF76,'3c'!AF76,'3d'!AF76,'3e (voluntary)'!AF76))","v":":"}]
["S11_S12","EP_BUS","EPS_P2",null,null,null,null,null,2030,{"$f":"IF(COUNT('3a'!J77,'3b'!J77,'3c'!J77,'3d'!J77,'3e (voluntary)'!J77)=0,\":\",SUM('3a'!J77,'3b'!J77,'3c'!J77,'3d'!J77,'3e (voluntary)'!J77))","v":":"},null,{"$f":"IF(COUNT('3a'!L77,'3b'!L77,'3c'!L77,'3d'!L77,'3e (voluntary)'!L77)=0,\":\",SUM('3a'!L77,'3b'!L77,'3c'!L77,'3d'!L77,'3e (voluntary)'!L77))","v":":"},null,{"$f":"IF(COUNT('3a'!N77,'3b'!N77,'3c'!N77,'3d'!N77,'3e (voluntary)'!N77)=0,\":\",SUM('3a'!N77,'3b'!N77,'3c'!N77,'3d'!N77,'3e (voluntary)'!N77))","v":":"},null,{"$f":"IF(COUNT('3a'!P77,'3b'!P77,'3c'!P77,'3d'!P77,'3e (voluntary)'!P77)=0,\":\",SUM('3a'!P77,'3b'!P77,'3c'!P77,'3d'!P77,'3e (voluntary)'!P77))","v":":"},null,{"$f":"IF(COUNT('3a'!R77,'3b'!R77,'3c'!R77,'3d'!R77,'3e (voluntary)'!R77)=0,\":\",SUM('3a'!R77,'3b'!R77,'3c'!R77,'3d'!R77,'3e (voluntary)'!R77))","v":":"},null,{"$f":"IF(COUNT('3a'!T77,'3b'!T77,'3c'!T77,'3d'!T77,'3e (voluntary)'!T77)=0,\":\",SUM('3a'!T77,'3b'!T77,'3c'!T77,'3d'!T77,'3e (voluntary)'!T77))","v":":"},null,{"$f":"IF(COUNT('3a'!V77,'3b'!V77,'3c'!V77,'3d'!V77,'3e (voluntary)'!V77)=0,\":\",SUM('3a'!V77,'3b'!V77,'3c'!V77,'3d'!V77,'3e (voluntary)'!V77))","v":":"},null,{"$f":"IF(COUNT('3a'!X77,'3b'!X77,'3c'!X77,'3d'!X77,'3e (voluntary)'!X77)=0,\":\",SUM('3a'!X77,'3b'!X77,'3c'!X77,'3d'!X77,'3e (voluntary)'!X77))","v":":"},null,{"$f":"IF(COUNT('3a'!Z77,'3b'!Z77,'3c'!Z77,'3d'!Z77,'3e (voluntary)'!Z77)=0,\":\",SUM('3a'!Z77,'3b'!Z77,'3c'!Z77,'3d'!Z77,'3e (voluntary)'!Z77))","v":":"},null,{"$f":"IF(COUNT('3a'!AB77,'3b'!AB77,'3c'!AB77,'3d'!AB77,'3e (voluntary)'!AB77)=0,\":\",SUM('3a'!AB77,'3b'!AB77,'3c'!AB77,'3d'!AB77,'3e (voluntary)'!AB77))","v":":"},null,{"$f":"IF(COUNT('3a'!AD77,'3b'!AD77,'3c'!AD77,'3d'!AD77,'3e (voluntary)'!AD77)=0,\":\",SUM('3a'!AD77,'3b'!AD77,'3c'!AD77,'3d'!AD77,'3e (voluntary)'!AD77))","v":":"},null,{"$f":"IF(COUNT('3a'!AF77,'3b'!AF77,'3c'!AF77,'3d'!AF77,'3e (voluntary)'!AF77)=0,\":\",SUM('3a'!AF77,'3b'!AF77,'3c'!AF77,'3d'!AF77,'3e (voluntary)'!AF77))","v":":"}]
["S11_S12","EP_BUS","EPS_P2",null,null,null,null,null,2031,{"$f":"IF(COUNT('3a'!J78,'3b'!J78,'3c'!J78,'3d'!J78,'3e (voluntary)'!J78)=0,\":\",SUM('3a'!J78,'3b'!J78,'3c'!J78,'3d'!J78,'3e (voluntary)'!J78))","v":":"},null,{"$f":"IF(COUNT('3a'!L78,'3b'!L78,'3c'!L78,'3d'!L78,'3e (voluntary)'!L78)=0,\":\",SUM('3a'!L78,'3b'!L78,'3c'!L78,'3d'!L78,'3e (voluntary)'!L78))","v":":"},null,{"$f":"IF(COUNT('3a'!N78,'3b'!N78,'3c'!N78,'3d'!N78,'3e (voluntary)'!N78)=0,\":\",SUM('3a'!N78,'3b'!N78,'3c'!N78,'3d'!N78,'3e (voluntary)'!N78))","v":":"},null,{"$f":"IF(COUNT('3a'!P78,'3b'!P78,'3c'!P78,'3d'!P78,'3e (voluntary)'!P78)=0,\":\",SUM('3a'!P78,'3b'!P78,'3c'!P78,'3d'!P78,'3e (voluntary)'!P78))","v":":"},null,{"$f":"IF(COUNT('3a'!R78,'3b'!R78,'3c'!R78,'3d'!R78,'3e (voluntary)'!R78)=0,\":\",SUM('3a'!R78,'3b'!R78,'3c'!R78,'3d'!R78,'3e (voluntary)'!R78))","v":":"},null,{"$f":"IF(COUNT('3a'!T78,'3b'!T78,'3c'!T78,'3d'!T78,'3e (voluntary)'!T78)=0,\":\",SUM('3a'!T78,'3b'!T78,'3c'!T78,'3d'!T78,'3e (voluntary)'!T78))","v":":"},null,{"$f":"IF(COUNT('3a'!V78,'3b'!V78,'3c'!V78,'3d'!V78,'3e (voluntary)'!V78)=0,\":\",SUM('3a'!V78,'3b'!V78,'3c'!V78,'3d'!V78,'3e (voluntary)'!V78))","v":":"},null,{"$f":"IF(COUNT('3a'!X78,'3b'!X78,'3c'!X78,'3d'!X78,'3e (voluntary)'!X78)=0,\":\",SUM('3a'!X78,'3b'!X78,'3c'!X78,'3d'!X78,'3e (voluntary)'!X78))","v":":"},null,{"$f":"IF(COUNT('3a'!Z78,'3b'!Z78,'3c'!Z78,'3d'!Z78,'3e (voluntary)'!Z78)=0,\":\",SUM('3a'!Z78,'3b'!Z78,'3c'!Z78,'3d'!Z78,'3e (voluntary)'!Z78))","v":":"},null,{"$f":"IF(COUNT('3a'!AB78,'3b'!AB78,'3c'!AB78,'3d'!AB78,'3e (voluntary)'!AB78)=0,\":\",SUM('3a'!AB78,'3b'!AB78,'3c'!AB78,'3d'!AB78,'3e (voluntary)'!AB78))","v":":"},null,{"$f":"IF(COUNT('3a'!AD78,'3b'!AD78,'3c'!AD78,'3d'!AD78,'3e (voluntary)'!AD78)=0,\":\",SUM('3a'!AD78,'3b'!AD78,'3c'!AD78,'3d'!AD78,'3e (voluntary)'!AD78))","v":":"},null,{"$f":"IF(COUNT('3a'!AF78,'3b'!AF78,'3c'!AF78,'3d'!AF78,'3e (voluntary)'!AF78)=0,\":\",SUM('3a'!AF78,'3b'!AF78,'3c'!AF78,'3d'!AF78,'3e (voluntary)'!AF78))","v":":"}]
["S11_S12","EP_BUS","EPS_P2_EPS",null,"( P2_EPS.3 ) Intermediate consumption of EP services for ancillary production of EP services ",null,null,null,2014,{"$f":"IF(COUNT('3a'!J79,'3b'!J79,'3c'!J79,'3d'!J79,'3e (voluntary)'!J79)=0,\":\",SUM('3a'!J79,'3b'!J79,'3c'!J79,'3d'!J79,'3e (voluntary)'!J79))","v":":"},null,{"$f":"IF(COUNT('3a'!L79,'3b'!L79,'3c'!L79,'3d'!L79,'3e (voluntary)'!L79)=0,\":\",SUM('3a'!L79,'3b'!L79,'3c'!L79,'3d'!L79,'3e (voluntary)'!L79))","v":":"},null,{"$f":"IF(COUNT('3a'!N79,'3b'!N79,'3c'!N79,'3d'!N79,'3e (voluntary)'!N79)=0,\":\",SUM('3a'!N79,'3b'!N79,'3c'!N79,'3d'!N79,'3e (voluntary)'!N79))","v":":"},null,{"$f":"IF(COUNT('3a'!P79,'3b'!P79,'3c'!P79,'3d'!P79,'3e (voluntary)'!P79)=0,\":\",SUM('3a'!P79,'3b'!P79,'3c'!P79,'3d'!P79,'3e (voluntary)'!P79))","v":":"},null,{"$f":"IF(COUNT('3a'!R79,'3b'!R79,'3c'!R79,'3d'!R79,'3e (voluntary)'!R79)=0,\":\",SUM('3a'!R79,'3b'!R79,'3c'!R79,'3d'!R79,'3e (voluntary)'!R79))","v":":"},null,{"$f":"IF(COUNT('3a'!T79,'3b'!T79,'3c'!T79,'3d'!T79,'3e (voluntary)'!T79)=0,\":\",SUM('3a'!T79,'3b'!T79,'3c'!T79,'3d'!T79,'3e (voluntary)'!T79))","v":":"},null,{"$f":"IF(COUNT('3a'!V79,'3b'!V79,'3c'!V79,'3d'!V79,'3e (voluntary)'!V79)=0,\":\",SUM('3a'!V79,'3b'!V79,'3c'!V79,'3d'!V79,'3e (voluntary)'!V79))","v":":"},null,{"$f":"IF(COUNT('3a'!X79,'3b'!X79,'3c'!X79,'3d'!X79,'3e (voluntary)'!X79)=0,\":\",SUM('3a'!X79,'3b'!X79,'3c'!X79,'3d'!X79,'3e (voluntary)'!X79))","v":":"},null,{"$f":"IF(COUNT('3a'!Z79,'3b'!Z79,'3c'!Z79,'3d'!Z79,'3e (voluntary)'!Z79)=0,\":\",SUM('3a'!Z79,'3b'!Z79,'3c'!Z79,'3d'!Z79,'3e (voluntary)'!Z79))","v":":"},null,{"$f":"IF(COUNT('3a'!AB79,'3b'!AB79,'3c'!AB79,'3d'!AB79,'3e (voluntary)'!AB79)=0,\":\",SUM('3a'!AB79,'3b'!AB79,'3c'!AB79,'3d'!AB79,'3e (voluntary)'!AB79))","v":":"},null,{"$f":"IF(COUNT('3a'!AD79,'3b'!AD79,'3c'!AD79,'3d'!AD79,'3e (voluntary)'!AD79)=0,\":\",SUM('3a'!AD79,'3b'!AD79,'3c'!AD79,'3d'!AD79,'3e (voluntary)'!AD79))","v":":"},null,{"$f":"IF(COUNT('3a'!AF79,'3b'!AF79,'3c'!AF79,'3d'!AF79,'3e (voluntary)'!AF79)=0,\":\",SUM('3a'!AF79,'3b'!AF79,'3c'!AF79,'3d'!AF79,'3e (voluntary)'!AF79))","v":":"}]
["S11_S12","EP_BUS","EPS_P2_EPS",null,"(P2_EPS.3: please consider the explanatory notes - click here)",null,null,null,2015,{"$f":"IF(COUNT('3a'!J80,'3b'!J80,'3c'!J80,'3d'!J80,'3e (voluntary)'!J80)=0,\":\",SUM('3a'!J80,'3b'!J80,'3c'!J80,'3d'!J80,'3e (voluntary)'!J80))","v":":"},null,{"$f":"IF(COUNT('3a'!L80,'3b'!L80,'3c'!L80,'3d'!L80,'3e (voluntary)'!L80)=0,\":\",SUM('3a'!L80,'3b'!L80,'3c'!L80,'3d'!L80,'3e (voluntary)'!L80))","v":":"},null,{"$f":"IF(COUNT('3a'!N80,'3b'!N80,'3c'!N80,'3d'!N80,'3e (voluntary)'!N80)=0,\":\",SUM('3a'!N80,'3b'!N80,'3c'!N80,'3d'!N80,'3e (voluntary)'!N80))","v":":"},null,{"$f":"IF(COUNT('3a'!P80,'3b'!P80,'3c'!P80,'3d'!P80,'3e (voluntary)'!P80)=0,\":\",SUM('3a'!P80,'3b'!P80,'3c'!P80,'3d'!P80,'3e (voluntary)'!P80))","v":":"},null,{"$f":"IF(COUNT('3a'!R80,'3b'!R80,'3c'!R80,'3d'!R80,'3e (voluntary)'!R80)=0,\":\",SUM('3a'!R80,'3b'!R80,'3c'!R80,'3d'!R80,'3e (voluntary)'!R80))","v":":"},null,{"$f":"IF(COUNT('3a'!T80,'3b'!T80,'3c'!T80,'3d'!T80,'3e (voluntary)'!T80)=0,\":\",SUM('3a'!T80,'3b'!T80,'3c'!T80,'3d'!T80,'3e (voluntary)'!T80))","v":":"},null,{"$f":"IF(COUNT('3a'!V80,'3b'!V80,'3c'!V80,'3d'!V80,'3e (voluntary)'!V80)=0,\":\",SUM('3a'!V80,'3b'!V80,'3c'!V80,'3d'!V80,'3e (voluntary)'!V80))","v":":"},null,{"$f":"IF(COUNT('3a'!X80,'3b'!X80,'3c'!X80,'3d'!X80,'3e (voluntary)'!X80)=0,\":\",SUM('3a'!X80,'3b'!X80,'3c'!X80,'3d'!X80,'3e (voluntary)'!X80))","v":":"},null,{"$f":"IF(COUNT('3a'!Z80,'3b'!Z80,'3c'!Z80,'3d'!Z80,'3e (voluntary)'!Z80)=0,\":\",SUM('3a'!Z80,'3b'!Z80,'3c'!Z80,'3d'!Z80,'3e (voluntary)'!Z80))","v":":"},null,{"$f":"IF(COUNT('3a'!AB80,'3b'!AB80,'3c'!AB80,'3d'!AB80,'3e (voluntary)'!AB80)=0,\":\",SUM('3a'!AB80,'3b'!AB80,'3c'!AB80,'3d'!AB80,'3e (voluntary)'!AB80))","v":":"},null,{"$f":"IF(COUNT('3a'!AD80,'3b'!AD80,'3c'!AD80,'3d'!AD80,'3e (voluntary)'!AD80)=0,\":\",SUM('3a'!AD80,'3b'!AD80,'3c'!AD80,'3d'!AD80,'3e (voluntary)'!AD80))","v":":"},null,{"$f":"IF(COUNT('3a'!AF80,'3b'!AF80,'3c'!AF80,'3d'!AF80,'3e (voluntary)'!AF80)=0,\":\",SUM('3a'!AF80,'3b'!AF80,'3c'!AF80,'3d'!AF80,'3e (voluntary)'!AF80))","v":":"}]
["S11_S12","EP_BUS","EPS_P2_EPS",null,null,null,null,null,2016,{"$f":"IF(COUNT('3a'!J81,'3b'!J81,'3c'!J81,'3d'!J81,'3e (voluntary)'!J81)=0,\":\",SUM('3a'!J81,'3b'!J81,'3c'!J81,'3d'!J81,'3e (voluntary)'!J81))","v":":"},null,{"$f":"IF(COUNT('3a'!L81,'3b'!L81,'3c'!L81,'3d'!L81,'3e (voluntary)'!L81)=0,\":\",SUM('3a'!L81,'3b'!L81,'3c'!L81,'3d'!L81,'3e (voluntary)'!L81))","v":":"},null,{"$f":"IF(COUNT('3a'!N81,'3b'!N81,'3c'!N81,'3d'!N81,'3e (voluntary)'!N81)=0,\":\",SUM('3a'!N81,'3b'!N81,'3c'!N81,'3d'!N81,'3e (voluntary)'!N81))","v":":"},null,{"$f":"IF(COUNT('3a'!P81,'3b'!P81,'3c'!P81,'3d'!P81,'3e (voluntary)'!P81)=0,\":\",SUM('3a'!P81,'3b'!P81,'3c'!P81,'3d'!P81,'3e (voluntary)'!P81))","v":":"},null,{"$f":"IF(COUNT('3a'!R81,'3b'!R81,'3c'!R81,'3d'!R81,'3e (voluntary)'!R81)=0,\":\",SUM('3a'!R81,'3b'!R81,'3c'!R81,'3d'!R81,'3e (voluntary)'!R81))","v":":"},null,{"$f":"IF(COUNT('3a'!T81,'3b'!T81,'3c'!T81,'3d'!T81,'3e (voluntary)'!T81)=0,\":\",SUM('3a'!T81,'3b'!T81,'3c'!T81,'3d'!T81,'3e (voluntary)'!T81))","v":":"},null,{"$f":"IF(COUNT('3a'!V81,'3b'!V81,'3c'!V81,'3d'!V81,'3e (voluntary)'!V81)=0,\":\",SUM('3a'!V81,'3b'!V81,'3c'!V81,'3d'!V81,'3e (voluntary)'!V81))","v":":"},null,{"$f":"IF(COUNT('3a'!X81,'3b'!X81,'3c'!X81,'3d'!X81,'3e (voluntary)'!X81)=0,\":\",SUM('3a'!X81,'3b'!X81,'3c'!X81,'3d'!X81,'3e (voluntary)'!X81))","v":":"},null,{"$f":"IF(COUNT('3a'!Z81,'3b'!Z81,'3c'!Z81,'3d'!Z81,'3e (voluntary)'!Z81)=0,\":\",SUM('3a'!Z81,'3b'!Z81,'3c'!Z81,'3d'!Z81,'3e (voluntary)'!Z81))","v":":"},null,{"$f":"IF(COUNT('3a'!AB81,'3b'!AB81,'3c'!AB81,'3d'!AB81,'3e (voluntary)'!AB81)=0,\":\",SUM('3a'!AB81,'3b'!AB81,'3c'!AB81,'3d'!AB81,'3e (voluntary)'!AB81))","v":":"},null,{"$f":"IF(COUNT('3a'!AD81,'3b'!AD81,'3c'!AD81,'3d'!AD81,'3e (voluntary)'!AD81)=0,\":\",SUM('3a'!AD81,'3b'!AD81,'3c'!AD81,'3d'!AD81,'3e (voluntary)'!AD81))","v":":"},null,{"$f":"IF(COUNT('3a'!AF81,'3b'!AF81,'3c'!AF81,'3d'!AF81,'3e (voluntary)'!AF81)=0,\":\",SUM('3a'!AF81,'3b'!AF81,'3c'!AF81,'3d'!AF81,'3e (voluntary)'!AF81))","v":":"}]
["S11_S12","EP_BUS","EPS_P2_EPS",null,null,null,null,null,2017,{"$f":"IF(COUNT('3a'!J82,'3b'!J82,'3c'!J82,'3d'!J82,'3e (voluntary)'!J82)=0,\":\",SUM('3a'!J82,'3b'!J82,'3c'!J82,'3d'!J82,'3e (voluntary)'!J82))","v":":"},null,{"$f":"IF(COUNT('3a'!L82,'3b'!L82,'3c'!L82,'3d'!L82,'3e (voluntary)'!L82)=0,\":\",SUM('3a'!L82,'3b'!L82,'3c'!L82,'3d'!L82,'3e (voluntary)'!L82))","v":":"},null,{"$f":"IF(COUNT('3a'!N82,'3b'!N82,'3c'!N82,'3d'!N82,'3e (voluntary)'!N82)=0,\":\",SUM('3a'!N82,'3b'!N82,'3c'!N82,'3d'!N82,'3e (voluntary)'!N82))","v":":"},null,{"$f":"IF(COUNT('3a'!P82,'3b'!P82,'3c'!P82,'3d'!P82,'3e (voluntary)'!P82)=0,\":\",SUM('3a'!P82,'3b'!P82,'3c'!P82,'3d'!P82,'3e (voluntary)'!P82))","v":":"},null,{"$f":"IF(COUNT('3a'!R82,'3b'!R82,'3c'!R82,'3d'!R82,'3e (voluntary)'!R82)=0,\":\",SUM('3a'!R82,'3b'!R82,'3c'!R82,'3d'!R82,'3e (voluntary)'!R82))","v":":"},null,{"$f":"IF(COUNT('3a'!T82,'3b'!T82,'3c'!T82,'3d'!T82,'3e (voluntary)'!T82)=0,\":\",SUM('3a'!T82,'3b'!T82,'3c'!T82,'3d'!T82,'3e (voluntary)'!T82))","v":":"},null,{"$f":"IF(COUNT('3a'!V82,'3b'!V82,'3c'!V82,'3d'!V82,'3e (voluntary)'!V82)=0,\":\",SUM('3a'!V82,'3b'!V82,'3c'!V82,'3d'!V82,'3e (voluntary)'!V82))","v":":"},null,{"$f":"IF(COUNT('3a'!X82,'3b'!X82,'3c'!X82,'3d'!X82,'3e (voluntary)'!X82)=0,\":\",SUM('3a'!X82,'3b'!X82,'3c'!X82,'3d'!X82,'3e (voluntary)'!X82))","v":":"},null,{"$f":"IF(COUNT('3a'!Z82,'3b'!Z82,'3c'!Z82,'3d'!Z82,'3e (voluntary)'!Z82)=0,\":\",SUM('3a'!Z82,'3b'!Z82,'3c'!Z82,'3d'!Z82,'3e (voluntary)'!Z82))","v":":"},null,{"$f":"IF(COUNT('3a'!AB82,'3b'!AB82,'3c'!AB82,'3d'!AB82,'3e (voluntary)'!AB82)=0,\":\",SUM('3a'!AB82,'3b'!AB82,'3c'!AB82,'3d'!AB82,'3e (voluntary)'!AB82))","v":":"},null,{"$f":"IF(COUNT('3a'!AD82,'3b'!AD82,'3c'!AD82,'3d'!AD82,'3e (voluntary)'!AD82)=0,\":\",SUM('3a'!AD82,'3b'!AD82,'3c'!AD82,'3d'!AD82,'3e (voluntary)'!AD82))","v":":"},null,{"$f":"IF(COUNT('3a'!AF82,'3b'!AF82,'3c'!AF82,'3d'!AF82,'3e (voluntary)'!AF82)=0,\":\",SUM('3a'!AF82,'3b'!AF82,'3c'!AF82,'3d'!AF82,'3e (voluntary)'!AF82))","v":":"}]
["S11_S12","EP_BUS","EPS_P2_EPS",null,null,null,null,null,2018,{"$f":"IF(COUNT('3a'!J83,'3b'!J83,'3c'!J83,'3d'!J83,'3e (voluntary)'!J83)=0,\":\",SUM('3a'!J83,'3b'!J83,'3c'!J83,'3d'!J83,'3e (voluntary)'!J83))","v":":"},null,{"$f":"IF(COUNT('3a'!L83,'3b'!L83,'3c'!L83,'3d'!L83,'3e (voluntary)'!L83)=0,\":\",SUM('3a'!L83,'3b'!L83,'3c'!L83,'3d'!L83,'3e (voluntary)'!L83))","v":":"},null,{"$f":"IF(COUNT('3a'!N83,'3b'!N83,'3c'!N83,'3d'!N83,'3e (voluntary)'!N83)=0,\":\",SUM('3a'!N83,'3b'!N83,'3c'!N83,'3d'!N83,'3e (voluntary)'!N83))","v":":"},null,{"$f":"IF(COUNT('3a'!P83,'3b'!P83,'3c'!P83,'3d'!P83,'3e (voluntary)'!P83)=0,\":\",SUM('3a'!P83,'3b'!P83,'3c'!P83,'3d'!P83,'3e (voluntary)'!P83))","v":":"},null,{"$f":"IF(COUNT('3a'!R83,'3b'!R83,'3c'!R83,'3d'!R83,'3e (voluntary)'!R83)=0,\":\",SUM('3a'!R83,'3b'!R83,'3c'!R83,'3d'!R83,'3e (voluntary)'!R83))","v":":"},null,{"$f":"IF(COUNT('3a'!T83,'3b'!T83,'3c'!T83,'3d'!T83,'3e (voluntary)'!T83)=0,\":\",SUM('3a'!T83,'3b'!T83,'3c'!T83,'3d'!T83,'3e (voluntary)'!T83))","v":":"},null,{"$f":"IF(COUNT('3a'!V83,'3b'!V83,'3c'!V83,'3d'!V83,'3e (voluntary)'!V83)=0,\":\",SUM('3a'!V83,'3b'!V83,'3c'!V83,'3d'!V83,'3e (voluntary)'!V83))","v":":"},null,{"$f":"IF(COUNT('3a'!X83,'3b'!X83,'3c'!X83,'3d'!X83,'3e (voluntary)'!X83)=0,\":\",SUM('3a'!X83,'3b'!X83,'3c'!X83,'3d'!X83,'3e (voluntary)'!X83))","v":":"},null,{"$f":"IF(COUNT('3a'!Z83,'3b'!Z83,'3c'!Z83,'3d'!Z83,'3e (voluntary)'!Z83)=0,\":\",SUM('3a'!Z83,'3b'!Z83,'3c'!Z83,'3d'!Z83,'3e (voluntary)'!Z83))","v":":"},null,{"$f":"IF(COUNT('3a'!AB83,'3b'!AB83,'3c'!AB83,'3d'!AB83,'3e (voluntary)'!AB83)=0,\":\",SUM('3a'!AB83,'3b'!AB83,'3c'!AB83,'3d'!AB83,'3e (voluntary)'!AB83))","v":":"},null,{"$f":"IF(COUNT('3a'!AD83,'3b'!AD83,'3c'!AD83,'3d'!AD83,'3e (voluntary)'!AD83)=0,\":\",SUM('3a'!AD83,'3b'!AD83,'3c'!AD83,'3d'!AD83,'3e (voluntary)'!AD83))","v":":"},null,{"$f":"IF(COUNT('3a'!AF83,'3b'!AF83,'3c'!AF83,'3d'!AF83,'3e (voluntary)'!AF83)=0,\":\",SUM('3a'!AF83,'3b'!AF83,'3c'!AF83,'3d'!AF83,'3e (voluntary)'!AF83))","v":":"}]
["S11_S12","EP_BUS","EPS_P2_EPS",null,null,null,null,null,2019,{"$f":"IF(COUNT('3a'!J84,'3b'!J84,'3c'!J84,'3d'!J84,'3e (voluntary)'!J84)=0,\":\",SUM('3a'!J84,'3b'!J84,'3c'!J84,'3d'!J84,'3e (voluntary)'!J84))","v":":"},null,{"$f":"IF(COUNT('3a'!L84,'3b'!L84,'3c'!L84,'3d'!L84,'3e (voluntary)'!L84)=0,\":\",SUM('3a'!L84,'3b'!L84,'3c'!L84,'3d'!L84,'3e (voluntary)'!L84))","v":":"},null,{"$f":"IF(COUNT('3a'!N84,'3b'!N84,'3c'!N84,'3d'!N84,'3e (voluntary)'!N84)=0,\":\",SUM('3a'!N84,'3b'!N84,'3c'!N84,'3d'!N84,'3e (voluntary)'!N84))","v":":"},null,{"$f":"IF(COUNT('3a'!P84,'3b'!P84,'3c'!P84,'3d'!P84,'3e (voluntary)'!P84)=0,\":\",SUM('3a'!P84,'3b'!P84,'3c'!P84,'3d'!P84,'3e (voluntary)'!P84))","v":":"},null,{"$f":"IF(COUNT('3a'!R84,'3b'!R84,'3c'!R84,'3d'!R84,'3e (voluntary)'!R84)=0,\":\",SUM('3a'!R84,'3b'!R84,'3c'!R84,'3d'!R84,'3e (voluntary)'!R84))","v":":"},null,{"$f":"IF(COUNT('3a'!T84,'3b'!T84,'3c'!T84,'3d'!T84,'3e (voluntary)'!T84)=0,\":\",SUM('3a'!T84,'3b'!T84,'3c'!T84,'3d'!T84,'3e (voluntary)'!T84))","v":":"},null,{"$f":"IF(COUNT('3a'!V84,'3b'!V84,'3c'!V84,'3d'!V84,'3e (voluntary)'!V84)=0,\":\",SUM('3a'!V84,'3b'!V84,'3c'!V84,'3d'!V84,'3e (voluntary)'!V84))","v":":"},null,{"$f":"IF(COUNT('3a'!X84,'3b'!X84,'3c'!X84,'3d'!X84,'3e (voluntary)'!X84)=0,\":\",SUM('3a'!X84,'3b'!X84,'3c'!X84,'3d'!X84,'3e (voluntary)'!X84))","v":":"},null,{"$f":"IF(COUNT('3a'!Z84,'3b'!Z84,'3c'!Z84,'3d'!Z84,'3e (voluntary)'!Z84)=0,\":\",SUM('3a'!Z84,'3b'!Z84,'3c'!Z84,'3d'!Z84,'3e (voluntary)'!Z84))","v":":"},null,{"$f":"IF(COUNT('3a'!AB84,'3b'!AB84,'3c'!AB84,'3d'!AB84,'3e (voluntary)'!AB84)=0,\":\",SUM('3a'!AB84,'3b'!AB84,'3c'!AB84,'3d'!AB84,'3e (voluntary)'!AB84))","v":":"},null,{"$f":"IF(COUNT('3a'!AD84,'3b'!AD84,'3c'!AD84,'3d'!AD84,'3e (voluntary)'!AD84)=0,\":\",SUM('3a'!AD84,'3b'!AD84,'3c'!AD84,'3d'!AD84,'3e (voluntary)'!AD84))","v":":"},null,{"$f":"IF(COUNT('3a'!AF84,'3b'!AF84,'3c'!AF84,'3d'!AF84,'3e (voluntary)'!AF84)=0,\":\",SUM('3a'!AF84,'3b'!AF84,'3c'!AF84,'3d'!AF84,'3e (voluntary)'!AF84))","v":":"}]
["S11_S12","EP_BUS","EPS_P2_EPS",null,null,null,null,null,2020,{"$f":"IF(COUNT('3a'!J85,'3b'!J85,'3c'!J85,'3d'!J85,'3e (voluntary)'!J85)=0,\":\",SUM('3a'!J85,'3b'!J85,'3c'!J85,'3d'!J85,'3e (voluntary)'!J85))","v":":"},null,{"$f":"IF(COUNT('3a'!L85,'3b'!L85,'3c'!L85,'3d'!L85,'3e (voluntary)'!L85)=0,\":\",SUM('3a'!L85,'3b'!L85,'3c'!L85,'3d'!L85,'3e (voluntary)'!L85))","v":":"},null,{"$f":"IF(COUNT('3a'!N85,'3b'!N85,'3c'!N85,'3d'!N85,'3e (voluntary)'!N85)=0,\":\",SUM('3a'!N85,'3b'!N85,'3c'!N85,'3d'!N85,'3e (voluntary)'!N85))","v":":"},null,{"$f":"IF(COUNT('3a'!P85,'3b'!P85,'3c'!P85,'3d'!P85,'3e (voluntary)'!P85)=0,\":\",SUM('3a'!P85,'3b'!P85,'3c'!P85,'3d'!P85,'3e (voluntary)'!P85))","v":":"},null,{"$f":"IF(COUNT('3a'!R85,'3b'!R85,'3c'!R85,'3d'!R85,'3e (voluntary)'!R85)=0,\":\",SUM('3a'!R85,'3b'!R85,'3c'!R85,'3d'!R85,'3e (voluntary)'!R85))","v":":"},null,{"$f":"IF(COUNT('3a'!T85,'3b'!T85,'3c'!T85,'3d'!T85,'3e (voluntary)'!T85)=0,\":\",SUM('3a'!T85,'3b'!T85,'3c'!T85,'3d'!T85,'3e (voluntary)'!T85))","v":":"},null,{"$f":"IF(COUNT('3a'!V85,'3b'!V85,'3c'!V85,'3d'!V85,'3e (voluntary)'!V85)=0,\":\",SUM('3a'!V85,'3b'!V85,'3c'!V85,'3d'!V85,'3e (voluntary)'!V85))","v":":"},null,{"$f":"IF(COUNT('3a'!X85,'3b'!X85,'3c'!X85,'3d'!X85,'3e (voluntary)'!X85)=0,\":\",SUM('3a'!X85,'3b'!X85,'3c'!X85,'3d'!X85,'3e (voluntary)'!X85))","v":":"},null,{"$f":"IF(COUNT('3a'!Z85,'3b'!Z85,'3c'!Z85,'3d'!Z85,'3e (voluntary)'!Z85)=0,\":\",SUM('3a'!Z85,'3b'!Z85,'3c'!Z85,'3d'!Z85,'3e (voluntary)'!Z85))","v":":"},null,{"$f":"IF(COUNT('3a'!AB85,'3b'!AB85,'3c'!AB85,'3d'!AB85,'3e (voluntary)'!AB85)=0,\":\",SUM('3a'!AB85,'3b'!AB85,'3c'!AB85,'3d'!AB85,'3e (voluntary)'!AB85))","v":":"},null,{"$f":"IF(COUNT('3a'!AD85,'3b'!AD85,'3c'!AD85,'3d'!AD85,'3e (voluntary)'!AD85)=0,\":\",SUM('3a'!AD85,'3b'!AD85,'3c'!AD85,'3d'!AD85,'3e (voluntary)'!AD85))","v":":"},null,{"$f":"IF(COUNT('3a'!AF85,'3b'!AF85,'3c'!AF85,'3d'!AF85,'3e (voluntary)'!AF85)=0,\":\",SUM('3a'!AF85,'3b'!AF85,'3c'!AF85,'3d'!AF85,'3e (voluntary)'!AF85))","v":":"}]
["S11_S12","EP_BUS","EPS_P2_EPS",null,null,null,null,null,2021,{"$f":"IF(COUNT('3a'!J86,'3b'!J86,'3c'!J86,'3d'!J86,'3e (voluntary)'!J86)=0,\":\",SUM('3a'!J86,'3b'!J86,'3c'!J86,'3d'!J86,'3e (voluntary)'!J86))","v":":"},null,{"$f":"IF(COUNT('3a'!L86,'3b'!L86,'3c'!L86,'3d'!L86,'3e (voluntary)'!L86)=0,\":\",SUM('3a'!L86,'3b'!L86,'3c'!L86,'3d'!L86,'3e (voluntary)'!L86))","v":":"},null,{"$f":"IF(COUNT('3a'!N86,'3b'!N86,'3c'!N86,'3d'!N86,'3e (voluntary)'!N86)=0,\":\",SUM('3a'!N86,'3b'!N86,'3c'!N86,'3d'!N86,'3e (voluntary)'!N86))","v":":"},null,{"$f":"IF(COUNT('3a'!P86,'3b'!P86,'3c'!P86,'3d'!P86,'3e (voluntary)'!P86)=0,\":\",SUM('3a'!P86,'3b'!P86,'3c'!P86,'3d'!P86,'3e (voluntary)'!P86))","v":":"},null,{"$f":"IF(COUNT('3a'!R86,'3b'!R86,'3c'!R86,'3d'!R86,'3e (voluntary)'!R86)=0,\":\",SUM('3a'!R86,'3b'!R86,'3c'!R86,'3d'!R86,'3e (voluntary)'!R86))","v":":"},null,{"$f":"IF(COUNT('3a'!T86,'3b'!T86,'3c'!T86,'3d'!T86,'3e (voluntary)'!T86)=0,\":\",SUM('3a'!T86,'3b'!T86,'3c'!T86,'3d'!T86,'3e (voluntary)'!T86))","v":":"},null,{"$f":"IF(COUNT('3a'!V86,'3b'!V86,'3c'!V86,'3d'!V86,'3e (voluntary)'!V86)=0,\":\",SUM('3a'!V86,'3b'!V86,'3c'!V86,'3d'!V86,'3e (voluntary)'!V86))","v":":"},null,{"$f":"IF(COUNT('3a'!X86,'3b'!X86,'3c'!X86,'3d'!X86,'3e (voluntary)'!X86)=0,\":\",SUM('3a'!X86,'3b'!X86,'3c'!X86,'3d'!X86,'3e (voluntary)'!X86))","v":":"},null,{"$f":"IF(COUNT('3a'!Z86,'3b'!Z86,'3c'!Z86,'3d'!Z86,'3e (voluntary)'!Z86)=0,\":\",SUM('3a'!Z86,'3b'!Z86,'3c'!Z86,'3d'!Z86,'3e (voluntary)'!Z86))","v":":"},null,{"$f":"IF(COUNT('3a'!AB86,'3b'!AB86,'3c'!AB86,'3d'!AB86,'3e (voluntary)'!AB86)=0,\":\",SUM('3a'!AB86,'3b'!AB86,'3c'!AB86,'3d'!AB86,'3e (voluntary)'!AB86))","v":":"},null,{"$f":"IF(COUNT('3a'!AD86,'3b'!AD86,'3c'!AD86,'3d'!AD86,'3e (voluntary)'!AD86)=0,\":\",SUM('3a'!AD86,'3b'!AD86,'3c'!AD86,'3d'!AD86,'3e (voluntary)'!AD86))","v":":"},null,{"$f":"IF(COUNT('3a'!AF86,'3b'!AF86,'3c'!AF86,'3d'!AF86,'3e (voluntary)'!AF86)=0,\":\",SUM('3a'!AF86,'3b'!AF86,'3c'!AF86,'3d'!AF86,'3e (voluntary)'!AF86))","v":":"}]
["S11_S12","EP_BUS","EPS_P2_EPS",null,null,null,null,null,2022,{"$f":"IF(COUNT('3a'!J87,'3b'!J87,'3c'!J87,'3d'!J87,'3e (voluntary)'!J87)=0,\":\",SUM('3a'!J87,'3b'!J87,'3c'!J87,'3d'!J87,'3e (voluntary)'!J87))","v":":"},null,{"$f":"IF(COUNT('3a'!L87,'3b'!L87,'3c'!L87,'3d'!L87,'3e (voluntary)'!L87)=0,\":\",SUM('3a'!L87,'3b'!L87,'3c'!L87,'3d'!L87,'3e (voluntary)'!L87))","v":":"},null,{"$f":"IF(COUNT('3a'!N87,'3b'!N87,'3c'!N87,'3d'!N87,'3e (voluntary)'!N87)=0,\":\",SUM('3a'!N87,'3b'!N87,'3c'!N87,'3d'!N87,'3e (voluntary)'!N87))","v":":"},null,{"$f":"IF(COUNT('3a'!P87,'3b'!P87,'3c'!P87,'3d'!P87,'3e (voluntary)'!P87)=0,\":\",SUM('3a'!P87,'3b'!P87,'3c'!P87,'3d'!P87,'3e (voluntary)'!P87))","v":":"},null,{"$f":"IF(COUNT('3a'!R87,'3b'!R87,'3c'!R87,'3d'!R87,'3e (voluntary)'!R87)=0,\":\",SUM('3a'!R87,'3b'!R87,'3c'!R87,'3d'!R87,'3e (voluntary)'!R87))","v":":"},null,{"$f":"IF(COUNT('3a'!T87,'3b'!T87,'3c'!T87,'3d'!T87,'3e (voluntary)'!T87)=0,\":\",SUM('3a'!T87,'3b'!T87,'3c'!T87,'3d'!T87,'3e (voluntary)'!T87))","v":":"},null,{"$f":"IF(COUNT('3a'!V87,'3b'!V87,'3c'!V87,'3d'!V87,'3e (voluntary)'!V87)=0,\":\",SUM('3a'!V87,'3b'!V87,'3c'!V87,'3d'!V87,'3e (voluntary)'!V87))","v":":"},null,{"$f":"IF(COUNT('3a'!X87,'3b'!X87,'3c'!X87,'3d'!X87,'3e (voluntary)'!X87)=0,\":\",SUM('3a'!X87,'3b'!X87,'3c'!X87,'3d'!X87,'3e (voluntary)'!X87))","v":":"},null,{"$f":"IF(COUNT('3a'!Z87,'3b'!Z87,'3c'!Z87,'3d'!Z87,'3e (voluntary)'!Z87)=0,\":\",SUM('3a'!Z87,'3b'!Z87,'3c'!Z87,'3d'!Z87,'3e (voluntary)'!Z87))","v":":"},null,{"$f":"IF(COUNT('3a'!AB87,'3b'!AB87,'3c'!AB87,'3d'!AB87,'3e (voluntary)'!AB87)=0,\":\",SUM('3a'!AB87,'3b'!AB87,'3c'!AB87,'3d'!AB87,'3e (voluntary)'!AB87))","v":":"},null,{"$f":"IF(COUNT('3a'!AD87,'3b'!AD87,'3c'!AD87,'3d'!AD87,'3e (voluntary)'!AD87)=0,\":\",SUM('3a'!AD87,'3b'!AD87,'3c'!AD87,'3d'!AD87,'3e (voluntary)'!AD87))","v":":"},null,{"$f":"IF(COUNT('3a'!AF87,'3b'!AF87,'3c'!AF87,'3d'!AF87,'3e (voluntary)'!AF87)=0,\":\",SUM('3a'!AF87,'3b'!AF87,'3c'!AF87,'3d'!AF87,'3e (voluntary)'!AF87))","v":":"}]
["S11_S12","EP_BUS","EPS_P2_EPS",null,null,null,null,null,2023,{"$f":"IF(COUNT('3a'!J88,'3b'!J88,'3c'!J88,'3d'!J88,'3e (voluntary)'!J88)=0,\":\",SUM('3a'!J88,'3b'!J88,'3c'!J88,'3d'!J88,'3e (voluntary)'!J88))","v":":"},null,{"$f":"IF(COUNT('3a'!L88,'3b'!L88,'3c'!L88,'3d'!L88,'3e (voluntary)'!L88)=0,\":\",SUM('3a'!L88,'3b'!L88,'3c'!L88,'3d'!L88,'3e (voluntary)'!L88))","v":":"},null,{"$f":"IF(COUNT('3a'!N88,'3b'!N88,'3c'!N88,'3d'!N88,'3e (voluntary)'!N88)=0,\":\",SUM('3a'!N88,'3b'!N88,'3c'!N88,'3d'!N88,'3e (voluntary)'!N88))","v":":"},null,{"$f":"IF(COUNT('3a'!P88,'3b'!P88,'3c'!P88,'3d'!P88,'3e (voluntary)'!P88)=0,\":\",SUM('3a'!P88,'3b'!P88,'3c'!P88,'3d'!P88,'3e (voluntary)'!P88))","v":":"},null,{"$f":"IF(COUNT('3a'!R88,'3b'!R88,'3c'!R88,'3d'!R88,'3e (voluntary)'!R88)=0,\":\",SUM('3a'!R88,'3b'!R88,'3c'!R88,'3d'!R88,'3e (voluntary)'!R88))","v":":"},null,{"$f":"IF(COUNT('3a'!T88,'3b'!T88,'3c'!T88,'3d'!T88,'3e (voluntary)'!T88)=0,\":\",SUM('3a'!T88,'3b'!T88,'3c'!T88,'3d'!T88,'3e (voluntary)'!T88))","v":":"},null,{"$f":"IF(COUNT('3a'!V88,'3b'!V88,'3c'!V88,'3d'!V88,'3e (voluntary)'!V88)=0,\":\",SUM('3a'!V88,'3b'!V88,'3c'!V88,'3d'!V88,'3e (voluntary)'!V88))","v":":"},null,{"$f":"IF(COUNT('3a'!X88,'3b'!X88,'3c'!X88,'3d'!X88,'3e (voluntary)'!X88)=0,\":\",SUM('3a'!X88,'3b'!X88,'3c'!X88,'3d'!X88,'3e (voluntary)'!X88))","v":":"},null,{"$f":"IF(COUNT('3a'!Z88,'3b'!Z88,'3c'!Z88,'3d'!Z88,'3e (voluntary)'!Z88)=0,\":\",SUM('3a'!Z88,'3b'!Z88,'3c'!Z88,'3d'!Z88,'3e (voluntary)'!Z88))","v":":"},null,{"$f":"IF(COUNT('3a'!AB88,'3b'!AB88,'3c'!AB88,'3d'!AB88,'3e (voluntary)'!AB88)=0,\":\",SUM('3a'!AB88,'3b'!AB88,'3c'!AB88,'3d'!AB88,'3e (voluntary)'!AB88))","v":":"},null,{"$f":"IF(COUNT('3a'!AD88,'3b'!AD88,'3c'!AD88,'3d'!AD88,'3e (voluntary)'!AD88)=0,\":\",SUM('3a'!AD88,'3b'!AD88,'3c'!AD88,'3d'!AD88,'3e (voluntary)'!AD88))","v":":"},null,{"$f":"IF(COUNT('3a'!AF88,'3b'!AF88,'3c'!AF88,'3d'!AF88,'3e (voluntary)'!AF88)=0,\":\",SUM('3a'!AF88,'3b'!AF88,'3c'!AF88,'3d'!AF88,'3e (voluntary)'!AF88))","v":":"}]
["S11_S12","EP_BUS","EPS_P2_EPS",null,null,null,null,null,2024,{"$f":"IF(COUNT('3a'!J89,'3b'!J89,'3c'!J89,'3d'!J89,'3e (voluntary)'!J89)=0,\":\",SUM('3a'!J89,'3b'!J89,'3c'!J89,'3d'!J89,'3e (voluntary)'!J89))","v":":"},null,{"$f":"IF(COUNT('3a'!L89,'3b'!L89,'3c'!L89,'3d'!L89,'3e (voluntary)'!L89)=0,\":\",SUM('3a'!L89,'3b'!L89,'3c'!L89,'3d'!L89,'3e (voluntary)'!L89))","v":":"},null,{"$f":"IF(COUNT('3a'!N89,'3b'!N89,'3c'!N89,'3d'!N89,'3e (voluntary)'!N89)=0,\":\",SUM('3a'!N89,'3b'!N89,'3c'!N89,'3d'!N89,'3e (voluntary)'!N89))","v":":"},null,{"$f":"IF(COUNT('3a'!P89,'3b'!P89,'3c'!P89,'3d'!P89,'3e (voluntary)'!P89)=0,\":\",SUM('3a'!P89,'3b'!P89,'3c'!P89,'3d'!P89,'3e (voluntary)'!P89))","v":":"},null,{"$f":"IF(COUNT('3a'!R89,'3b'!R89,'3c'!R89,'3d'!R89,'3e (voluntary)'!R89)=0,\":\",SUM('3a'!R89,'3b'!R89,'3c'!R89,'3d'!R89,'3e (voluntary)'!R89))","v":":"},null,{"$f":"IF(COUNT('3a'!T89,'3b'!T89,'3c'!T89,'3d'!T89,'3e (voluntary)'!T89)=0,\":\",SUM('3a'!T89,'3b'!T89,'3c'!T89,'3d'!T89,'3e (voluntary)'!T89))","v":":"},null,{"$f":"IF(COUNT('3a'!V89,'3b'!V89,'3c'!V89,'3d'!V89,'3e (voluntary)'!V89)=0,\":\",SUM('3a'!V89,'3b'!V89,'3c'!V89,'3d'!V89,'3e (voluntary)'!V89))","v":":"},null,{"$f":"IF(COUNT('3a'!X89,'3b'!X89,'3c'!X89,'3d'!X89,'3e (voluntary)'!X89)=0,\":\",SUM('3a'!X89,'3b'!X89,'3c'!X89,'3d'!X89,'3e (voluntary)'!X89))","v":":"},null,{"$f":"IF(COUNT('3a'!Z89,'3b'!Z89,'3c'!Z89,'3d'!Z89,'3e (voluntary)'!Z89)=0,\":\",SUM('3a'!Z89,'3b'!Z89,'3c'!Z89,'3d'!Z89,'3e (voluntary)'!Z89))","v":":"},null,{"$f":"IF(COUNT('3a'!AB89,'3b'!AB89,'3c'!AB89,'3d'!AB89,'3e (voluntary)'!AB89)=0,\":\",SUM('3a'!AB89,'3b'!AB89,'3c'!AB89,'3d'!AB89,'3e (voluntary)'!AB89))","v":":"},null,{"$f":"IF(COUNT('3a'!AD89,'3b'!AD89,'3c'!AD89,'3d'!AD89,'3e (voluntary)'!AD89)=0,\":\",SUM('3a'!AD89,'3b'!AD89,'3c'!AD89,'3d'!AD89,'3e (voluntary)'!AD89))","v":":"},null,{"$f":"IF(COUNT('3a'!AF89,'3b'!AF89,'3c'!AF89,'3d'!AF89,'3e (voluntary)'!AF89)=0,\":\",SUM('3a'!AF89,'3b'!AF89,'3c'!AF89,'3d'!AF89,'3e (voluntary)'!AF89))","v":":"}]
["S11_S12","EP_BUS","EPS_P2_EPS",null,null,null,null,null,2025,{"$f":"IF(COUNT('3a'!J90,'3b'!J90,'3c'!J90,'3d'!J90,'3e (voluntary)'!J90)=0,\":\",SUM('3a'!J90,'3b'!J90,'3c'!J90,'3d'!J90,'3e (voluntary)'!J90))","v":":"},null,{"$f":"IF(COUNT('3a'!L90,'3b'!L90,'3c'!L90,'3d'!L90,'3e (voluntary)'!L90)=0,\":\",SUM('3a'!L90,'3b'!L90,'3c'!L90,'3d'!L90,'3e (voluntary)'!L90))","v":":"},null,{"$f":"IF(COUNT('3a'!N90,'3b'!N90,'3c'!N90,'3d'!N90,'3e (voluntary)'!N90)=0,\":\",SUM('3a'!N90,'3b'!N90,'3c'!N90,'3d'!N90,'3e (voluntary)'!N90))","v":":"},null,{"$f":"IF(COUNT('3a'!P90,'3b'!P90,'3c'!P90,'3d'!P90,'3e (voluntary)'!P90)=0,\":\",SUM('3a'!P90,'3b'!P90,'3c'!P90,'3d'!P90,'3e (voluntary)'!P90))","v":":"},null,{"$f":"IF(COUNT('3a'!R90,'3b'!R90,'3c'!R90,'3d'!R90,'3e (voluntary)'!R90)=0,\":\",SUM('3a'!R90,'3b'!R90,'3c'!R90,'3d'!R90,'3e (voluntary)'!R90))","v":":"},null,{"$f":"IF(COUNT('3a'!T90,'3b'!T90,'3c'!T90,'3d'!T90,'3e (voluntary)'!T90)=0,\":\",SUM('3a'!T90,'3b'!T90,'3c'!T90,'3d'!T90,'3e (voluntary)'!T90))","v":":"},null,{"$f":"IF(COUNT('3a'!V90,'3b'!V90,'3c'!V90,'3d'!V90,'3e (voluntary)'!V90)=0,\":\",SUM('3a'!V90,'3b'!V90,'3c'!V90,'3d'!V90,'3e (voluntary)'!V90))","v":":"},null,{"$f":"IF(COUNT('3a'!X90,'3b'!X90,'3c'!X90,'3d'!X90,'3e (voluntary)'!X90)=0,\":\",SUM('3a'!X90,'3b'!X90,'3c'!X90,'3d'!X90,'3e (voluntary)'!X90))","v":":"},null,{"$f":"IF(COUNT('3a'!Z90,'3b'!Z90,'3c'!Z90,'3d'!Z90,'3e (voluntary)'!Z90)=0,\":\",SUM('3a'!Z90,'3b'!Z90,'3c'!Z90,'3d'!Z90,'3e (voluntary)'!Z90))","v":":"},null,{"$f":"IF(COUNT('3a'!AB90,'3b'!AB90,'3c'!AB90,'3d'!AB90,'3e (voluntary)'!AB90)=0,\":\",SUM('3a'!AB90,'3b'!AB90,'3c'!AB90,'3d'!AB90,'3e (voluntary)'!AB90))","v":":"},null,{"$f":"IF(COUNT('3a'!AD90,'3b'!AD90,'3c'!AD90,'3d'!AD90,'3e (voluntary)'!AD90)=0,\":\",SUM('3a'!AD90,'3b'!AD90,'3c'!AD90,'3d'!AD90,'3e (voluntary)'!AD90))","v":":"},null,{"$f":"IF(COUNT('3a'!AF90,'3b'!AF90,'3c'!AF90,'3d'!AF90,'3e (voluntary)'!AF90)=0,\":\",SUM('3a'!AF90,'3b'!AF90,'3c'!AF90,'3d'!AF90,'3e (voluntary)'!AF90))","v":":"}]
["S11_S12","EP_BUS","EPS_P2_EPS",null,null,null,null,null,2026,{"$f":"IF(COUNT('3a'!J91,'3b'!J91,'3c'!J91,'3d'!J91,'3e (voluntary)'!J91)=0,\":\",SUM('3a'!J91,'3b'!J91,'3c'!J91,'3d'!J91,'3e (voluntary)'!J91))","v":":"},null,{"$f":"IF(COUNT('3a'!L91,'3b'!L91,'3c'!L91,'3d'!L91,'3e (voluntary)'!L91)=0,\":\",SUM('3a'!L91,'3b'!L91,'3c'!L91,'3d'!L91,'3e (voluntary)'!L91))","v":":"},null,{"$f":"IF(COUNT('3a'!N91,'3b'!N91,'3c'!N91,'3d'!N91,'3e (voluntary)'!N91)=0,\":\",SUM('3a'!N91,'3b'!N91,'3c'!N91,'3d'!N91,'3e (voluntary)'!N91))","v":":"},null,{"$f":"IF(COUNT('3a'!P91,'3b'!P91,'3c'!P91,'3d'!P91,'3e (voluntary)'!P91)=0,\":\",SUM('3a'!P91,'3b'!P91,'3c'!P91,'3d'!P91,'3e (voluntary)'!P91))","v":":"},null,{"$f":"IF(COUNT('3a'!R91,'3b'!R91,'3c'!R91,'3d'!R91,'3e (voluntary)'!R91)=0,\":\",SUM('3a'!R91,'3b'!R91,'3c'!R91,'3d'!R91,'3e (voluntary)'!R91))","v":":"},null,{"$f":"IF(COUNT('3a'!T91,'3b'!T91,'3c'!T91,'3d'!T91,'3e (voluntary)'!T91)=0,\":\",SUM('3a'!T91,'3b'!T91,'3c'!T91,'3d'!T91,'3e (voluntary)'!T91))","v":":"},null,{"$f":"IF(COUNT('3a'!V91,'3b'!V91,'3c'!V91,'3d'!V91,'3e (voluntary)'!V91)=0,\":\",SUM('3a'!V91,'3b'!V91,'3c'!V91,'3d'!V91,'3e (voluntary)'!V91))","v":":"},null,{"$f":"IF(COUNT('3a'!X91,'3b'!X91,'3c'!X91,'3d'!X91,'3e (voluntary)'!X91)=0,\":\",SUM('3a'!X91,'3b'!X91,'3c'!X91,'3d'!X91,'3e (voluntary)'!X91))","v":":"},null,{"$f":"IF(COUNT('3a'!Z91,'3b'!Z91,'3c'!Z91,'3d'!Z91,'3e (voluntary)'!Z91)=0,\":\",SUM('3a'!Z91,'3b'!Z91,'3c'!Z91,'3d'!Z91,'3e (voluntary)'!Z91))","v":":"},null,{"$f":"IF(COUNT('3a'!AB91,'3b'!AB91,'3c'!AB91,'3d'!AB91,'3e (voluntary)'!AB91)=0,\":\",SUM('3a'!AB91,'3b'!AB91,'3c'!AB91,'3d'!AB91,'3e (voluntary)'!AB91))","v":":"},null,{"$f":"IF(COUNT('3a'!AD91,'3b'!AD91,'3c'!AD91,'3d'!AD91,'3e (voluntary)'!AD91)=0,\":\",SUM('3a'!AD91,'3b'!AD91,'3c'!AD91,'3d'!AD91,'3e (voluntary)'!AD91))","v":":"},null,{"$f":"IF(COUNT('3a'!AF91,'3b'!AF91,'3c'!AF91,'3d'!AF91,'3e (voluntary)'!AF91)=0,\":\",SUM('3a'!AF91,'3b'!AF91,'3c'!AF91,'3d'!AF91,'3e (voluntary)'!AF91))","v":":"}]
["S11_S12","EP_BUS","EPS_P2_EPS",null,null,null,null,null,2027,{"$f":"IF(COUNT('3a'!J92,'3b'!J92,'3c'!J92,'3d'!J92,'3e (voluntary)'!J92)=0,\":\",SUM('3a'!J92,'3b'!J92,'3c'!J92,'3d'!J92,'3e (voluntary)'!J92))","v":":"},null,{"$f":"IF(COUNT('3a'!L92,'3b'!L92,'3c'!L92,'3d'!L92,'3e (voluntary)'!L92)=0,\":\",SUM('3a'!L92,'3b'!L92,'3c'!L92,'3d'!L92,'3e (voluntary)'!L92))","v":":"},null,{"$f":"IF(COUNT('3a'!N92,'3b'!N92,'3c'!N92,'3d'!N92,'3e (voluntary)'!N92)=0,\":\",SUM('3a'!N92,'3b'!N92,'3c'!N92,'3d'!N92,'3e (voluntary)'!N92))","v":":"},null,{"$f":"IF(COUNT('3a'!P92,'3b'!P92,'3c'!P92,'3d'!P92,'3e (voluntary)'!P92)=0,\":\",SUM('3a'!P92,'3b'!P92,'3c'!P92,'3d'!P92,'3e (voluntary)'!P92))","v":":"},null,{"$f":"IF(COUNT('3a'!R92,'3b'!R92,'3c'!R92,'3d'!R92,'3e (voluntary)'!R92)=0,\":\",SUM('3a'!R92,'3b'!R92,'3c'!R92,'3d'!R92,'3e (voluntary)'!R92))","v":":"},null,{"$f":"IF(COUNT('3a'!T92,'3b'!T92,'3c'!T92,'3d'!T92,'3e (voluntary)'!T92)=0,\":\",SUM('3a'!T92,'3b'!T92,'3c'!T92,'3d'!T92,'3e (voluntary)'!T92))","v":":"},null,{"$f":"IF(COUNT('3a'!V92,'3b'!V92,'3c'!V92,'3d'!V92,'3e (voluntary)'!V92)=0,\":\",SUM('3a'!V92,'3b'!V92,'3c'!V92,'3d'!V92,'3e (voluntary)'!V92))","v":":"},null,{"$f":"IF(COUNT('3a'!X92,'3b'!X92,'3c'!X92,'3d'!X92,'3e (voluntary)'!X92)=0,\":\",SUM('3a'!X92,'3b'!X92,'3c'!X92,'3d'!X92,'3e (voluntary)'!X92))","v":":"},null,{"$f":"IF(COUNT('3a'!Z92,'3b'!Z92,'3c'!Z92,'3d'!Z92,'3e (voluntary)'!Z92)=0,\":\",SUM('3a'!Z92,'3b'!Z92,'3c'!Z92,'3d'!Z92,'3e (voluntary)'!Z92))","v":":"},null,{"$f":"IF(COUNT('3a'!AB92,'3b'!AB92,'3c'!AB92,'3d'!AB92,'3e (voluntary)'!AB92)=0,\":\",SUM('3a'!AB92,'3b'!AB92,'3c'!AB92,'3d'!AB92,'3e (voluntary)'!AB92))","v":":"},null,{"$f":"IF(COUNT('3a'!AD92,'3b'!AD92,'3c'!AD92,'3d'!AD92,'3e (voluntary)'!AD92)=0,\":\",SUM('3a'!AD92,'3b'!AD92,'3c'!AD92,'3d'!AD92,'3e (voluntary)'!AD92))","v":":"},null,{"$f":"IF(COUNT('3a'!AF92,'3b'!AF92,'3c'!AF92,'3d'!AF92,'3e (voluntary)'!AF92)=0,\":\",SUM('3a'!AF92,'3b'!AF92,'3c'!AF92,'3d'!AF92,'3e (voluntary)'!AF92))","v":":"}]
["S11_S12","EP_BUS","EPS_P2_EPS",null,null,null,null,null,2028,{"$f":"IF(COUNT('3a'!J93,'3b'!J93,'3c'!J93,'3d'!J93,'3e (voluntary)'!J93)=0,\":\",SUM('3a'!J93,'3b'!J93,'3c'!J93,'3d'!J93,'3e (voluntary)'!J93))","v":":"},null,{"$f":"IF(COUNT('3a'!L93,'3b'!L93,'3c'!L93,'3d'!L93,'3e (voluntary)'!L93)=0,\":\",SUM('3a'!L93,'3b'!L93,'3c'!L93,'3d'!L93,'3e (voluntary)'!L93))","v":":"},null,{"$f":"IF(COUNT('3a'!N93,'3b'!N93,'3c'!N93,'3d'!N93,'3e (voluntary)'!N93)=0,\":\",SUM('3a'!N93,'3b'!N93,'3c'!N93,'3d'!N93,'3e (voluntary)'!N93))","v":":"},null,{"$f":"IF(COUNT('3a'!P93,'3b'!P93,'3c'!P93,'3d'!P93,'3e (voluntary)'!P93)=0,\":\",SUM('3a'!P93,'3b'!P93,'3c'!P93,'3d'!P93,'3e (voluntary)'!P93))","v":":"},null,{"$f":"IF(COUNT('3a'!R93,'3b'!R93,'3c'!R93,'3d'!R93,'3e (voluntary)'!R93)=0,\":\",SUM('3a'!R93,'3b'!R93,'3c'!R93,'3d'!R93,'3e (voluntary)'!R93))","v":":"},null,{"$f":"IF(COUNT('3a'!T93,'3b'!T93,'3c'!T93,'3d'!T93,'3e (voluntary)'!T93)=0,\":\",SUM('3a'!T93,'3b'!T93,'3c'!T93,'3d'!T93,'3e (voluntary)'!T93))","v":":"},null,{"$f":"IF(COUNT('3a'!V93,'3b'!V93,'3c'!V93,'3d'!V93,'3e (voluntary)'!V93)=0,\":\",SUM('3a'!V93,'3b'!V93,'3c'!V93,'3d'!V93,'3e (voluntary)'!V93))","v":":"},null,{"$f":"IF(COUNT('3a'!X93,'3b'!X93,'3c'!X93,'3d'!X93,'3e (voluntary)'!X93)=0,\":\",SUM('3a'!X93,'3b'!X93,'3c'!X93,'3d'!X93,'3e (voluntary)'!X93))","v":":"},null,{"$f":"IF(COUNT('3a'!Z93,'3b'!Z93,'3c'!Z93,'3d'!Z93,'3e (voluntary)'!Z93)=0,\":\",SUM('3a'!Z93,'3b'!Z93,'3c'!Z93,'3d'!Z93,'3e (voluntary)'!Z93))","v":":"},null,{"$f":"IF(COUNT('3a'!AB93,'3b'!AB93,'3c'!AB93,'3d'!AB93,'3e (voluntary)'!AB93)=0,\":\",SUM('3a'!AB93,'3b'!AB93,'3c'!AB93,'3d'!AB93,'3e (voluntary)'!AB93))","v":":"},null,{"$f":"IF(COUNT('3a'!AD93,'3b'!AD93,'3c'!AD93,'3d'!AD93,'3e (voluntary)'!AD93)=0,\":\",SUM('3a'!AD93,'3b'!AD93,'3c'!AD93,'3d'!AD93,'3e (voluntary)'!AD93))","v":":"},null,{"$f":"IF(COUNT('3a'!AF93,'3b'!AF93,'3c'!AF93,'3d'!AF93,'3e (voluntary)'!AF93)=0,\":\",SUM('3a'!AF93,'3b'!AF93,'3c'!AF93,'3d'!AF93,'3e (voluntary)'!AF93))","v":":"}]
["S11_S12","EP_BUS","EPS_P2_EPS",null,null,null,null,null,2029,{"$f":"IF(COUNT('3a'!J94,'3b'!J94,'3c'!J94,'3d'!J94,'3e (voluntary)'!J94)=0,\":\",SUM('3a'!J94,'3b'!J94,'3c'!J94,'3d'!J94,'3e (voluntary)'!J94))","v":":"},null,{"$f":"IF(COUNT('3a'!L94,'3b'!L94,'3c'!L94,'3d'!L94,'3e (voluntary)'!L94)=0,\":\",SUM('3a'!L94,'3b'!L94,'3c'!L94,'3d'!L94,'3e (voluntary)'!L94))","v":":"},null,{"$f":"IF(COUNT('3a'!N94,'3b'!N94,'3c'!N94,'3d'!N94,'3e (voluntary)'!N94)=0,\":\",SUM('3a'!N94,'3b'!N94,'3c'!N94,'3d'!N94,'3e (voluntary)'!N94))","v":":"},null,{"$f":"IF(COUNT('3a'!P94,'3b'!P94,'3c'!P94,'3d'!P94,'3e (voluntary)'!P94)=0,\":\",SUM('3a'!P94,'3b'!P94,'3c'!P94,'3d'!P94,'3e (voluntary)'!P94))","v":":"},null,{"$f":"IF(COUNT('3a'!R94,'3b'!R94,'3c'!R94,'3d'!R94,'3e (voluntary)'!R94)=0,\":\",SUM('3a'!R94,'3b'!R94,'3c'!R94,'3d'!R94,'3e (voluntary)'!R94))","v":":"},null,{"$f":"IF(COUNT('3a'!T94,'3b'!T94,'3c'!T94,'3d'!T94,'3e (voluntary)'!T94)=0,\":\",SUM('3a'!T94,'3b'!T94,'3c'!T94,'3d'!T94,'3e (voluntary)'!T94))","v":":"},null,{"$f":"IF(COUNT('3a'!V94,'3b'!V94,'3c'!V94,'3d'!V94,'3e (voluntary)'!V94)=0,\":\",SUM('3a'!V94,'3b'!V94,'3c'!V94,'3d'!V94,'3e (voluntary)'!V94))","v":":"},null,{"$f":"IF(COUNT('3a'!X94,'3b'!X94,'3c'!X94,'3d'!X94,'3e (voluntary)'!X94)=0,\":\",SUM('3a'!X94,'3b'!X94,'3c'!X94,'3d'!X94,'3e (voluntary)'!X94))","v":":"},null,{"$f":"IF(COUNT('3a'!Z94,'3b'!Z94,'3c'!Z94,'3d'!Z94,'3e (voluntary)'!Z94)=0,\":\",SUM('3a'!Z94,'3b'!Z94,'3c'!Z94,'3d'!Z94,'3e (voluntary)'!Z94))","v":":"},null,{"$f":"IF(COUNT('3a'!AB94,'3b'!AB94,'3c'!AB94,'3d'!AB94,'3e (voluntary)'!AB94)=0,\":\",SUM('3a'!AB94,'3b'!AB94,'3c'!AB94,'3d'!AB94,'3e (voluntary)'!AB94))","v":":"},null,{"$f":"IF(COUNT('3a'!AD94,'3b'!AD94,'3c'!AD94,'3d'!AD94,'3e (voluntary)'!AD94)=0,\":\",SUM('3a'!AD94,'3b'!AD94,'3c'!AD94,'3d'!AD94,'3e (voluntary)'!AD94))","v":":"},null,{"$f":"IF(COUNT('3a'!AF94,'3b'!AF94,'3c'!AF94,'3d'!AF94,'3e (voluntary)'!AF94)=0,\":\",SUM('3a'!AF94,'3b'!AF94,'3c'!AF94,'3d'!AF94,'3e (voluntary)'!AF94))","v":":"}]
["S11_S12","EP_BUS","EPS_P2_EPS",null,null,null,null,null,2030,{"$f":"IF(COUNT('3a'!J95,'3b'!J95,'3c'!J95,'3d'!J95,'3e (voluntary)'!J95)=0,\":\",SUM('3a'!J95,'3b'!J95,'3c'!J95,'3d'!J95,'3e (voluntary)'!J95))","v":":"},null,{"$f":"IF(COUNT('3a'!L95,'3b'!L95,'3c'!L95,'3d'!L95,'3e (voluntary)'!L95)=0,\":\",SUM('3a'!L95,'3b'!L95,'3c'!L95,'3d'!L95,'3e (voluntary)'!L95))","v":":"},null,{"$f":"IF(COUNT('3a'!N95,'3b'!N95,'3c'!N95,'3d'!N95,'3e (voluntary)'!N95)=0,\":\",SUM('3a'!N95,'3b'!N95,'3c'!N95,'3d'!N95,'3e (voluntary)'!N95))","v":":"},null,{"$f":"IF(COUNT('3a'!P95,'3b'!P95,'3c'!P95,'3d'!P95,'3e (voluntary)'!P95)=0,\":\",SUM('3a'!P95,'3b'!P95,'3c'!P95,'3d'!P95,'3e (voluntary)'!P95))","v":":"},null,{"$f":"IF(COUNT('3a'!R95,'3b'!R95,'3c'!R95,'3d'!R95,'3e (voluntary)'!R95)=0,\":\",SUM('3a'!R95,'3b'!R95,'3c'!R95,'3d'!R95,'3e (voluntary)'!R95))","v":":"},null,{"$f":"IF(COUNT('3a'!T95,'3b'!T95,'3c'!T95,'3d'!T95,'3e (voluntary)'!T95)=0,\":\",SUM('3a'!T95,'3b'!T95,'3c'!T95,'3d'!T95,'3e (voluntary)'!T95))","v":":"},null,{"$f":"IF(COUNT('3a'!V95,'3b'!V95,'3c'!V95,'3d'!V95,'3e (voluntary)'!V95)=0,\":\",SUM('3a'!V95,'3b'!V95,'3c'!V95,'3d'!V95,'3e (voluntary)'!V95))","v":":"},null,{"$f":"IF(COUNT('3a'!X95,'3b'!X95,'3c'!X95,'3d'!X95,'3e (voluntary)'!X95)=0,\":\",SUM('3a'!X95,'3b'!X95,'3c'!X95,'3d'!X95,'3e (voluntary)'!X95))","v":":"},null,{"$f":"IF(COUNT('3a'!Z95,'3b'!Z95,'3c'!Z95,'3d'!Z95,'3e (voluntary)'!Z95)=0,\":\",SUM('3a'!Z95,'3b'!Z95,'3c'!Z95,'3d'!Z95,'3e (voluntary)'!Z95))","v":":"},null,{"$f":"IF(COUNT('3a'!AB95,'3b'!AB95,'3c'!AB95,'3d'!AB95,'3e (voluntary)'!AB95)=0,\":\",SUM('3a'!AB95,'3b'!AB95,'3c'!AB95,'3d'!AB95,'3e (voluntary)'!AB95))","v":":"},null,{"$f":"IF(COUNT('3a'!AD95,'3b'!AD95,'3c'!AD95,'3d'!AD95,'3e (voluntary)'!AD95)=0,\":\",SUM('3a'!AD95,'3b'!AD95,'3c'!AD95,'3d'!AD95,'3e (voluntary)'!AD95))","v":":"},null,{"$f":"IF(COUNT('3a'!AF95,'3b'!AF95,'3c'!AF95,'3d'!AF95,'3e (voluntary)'!AF95)=0,\":\",SUM('3a'!AF95,'3b'!AF95,'3c'!AF95,'3d'!AF95,'3e (voluntary)'!AF95))","v":":"}]
["S11_S12","EP_BUS","EPS_P2_EPS",null,null,null,null,null,2031,{"$f":"IF(COUNT('3a'!J96,'3b'!J96,'3c'!J96,'3d'!J96,'3e (voluntary)'!J96)=0,\":\",SUM('3a'!J96,'3b'!J96,'3c'!J96,'3d'!J96,'3e (voluntary)'!J96))","v":":"},null,{"$f":"IF(COUNT('3a'!L96,'3b'!L96,'3c'!L96,'3d'!L96,'3e (voluntary)'!L96)=0,\":\",SUM('3a'!L96,'3b'!L96,'3c'!L96,'3d'!L96,'3e (voluntary)'!L96))","v":":"},null,{"$f":"IF(COUNT('3a'!N96,'3b'!N96,'3c'!N96,'3d'!N96,'3e (voluntary)'!N96)=0,\":\",SUM('3a'!N96,'3b'!N96,'3c'!N96,'3d'!N96,'3e (voluntary)'!N96))","v":":"},null,{"$f":"IF(COUNT('3a'!P96,'3b'!P96,'3c'!P96,'3d'!P96,'3e (voluntary)'!P96)=0,\":\",SUM('3a'!P96,'3b'!P96,'3c'!P96,'3d'!P96,'3e (voluntary)'!P96))","v":":"},null,{"$f":"IF(COUNT('3a'!R96,'3b'!R96,'3c'!R96,'3d'!R96,'3e (voluntary)'!R96)=0,\":\",SUM('3a'!R96,'3b'!R96,'3c'!R96,'3d'!R96,'3e (voluntary)'!R96))","v":":"},null,{"$f":"IF(COUNT('3a'!T96,'3b'!T96,'3c'!T96,'3d'!T96,'3e (voluntary)'!T96)=0,\":\",SUM('3a'!T96,'3b'!T96,'3c'!T96,'3d'!T96,'3e (voluntary)'!T96))","v":":"},null,{"$f":"IF(COUNT('3a'!V96,'3b'!V96,'3c'!V96,'3d'!V96,'3e (voluntary)'!V96)=0,\":\",SUM('3a'!V96,'3b'!V96,'3c'!V96,'3d'!V96,'3e (voluntary)'!V96))","v":":"},null,{"$f":"IF(COUNT('3a'!X96,'3b'!X96,'3c'!X96,'3d'!X96,'3e (voluntary)'!X96)=0,\":\",SUM('3a'!X96,'3b'!X96,'3c'!X96,'3d'!X96,'3e (voluntary)'!X96))","v":":"},null,{"$f":"IF(COUNT('3a'!Z96,'3b'!Z96,'3c'!Z96,'3d'!Z96,'3e (voluntary)'!Z96)=0,\":\",SUM('3a'!Z96,'3b'!Z96,'3c'!Z96,'3d'!Z96,'3e (voluntary)'!Z96))","v":":"},null,{"$f":"IF(COUNT('3a'!AB96,'3b'!AB96,'3c'!AB96,'3d'!AB96,'3e (voluntary)'!AB96)=0,\":\",SUM('3a'!AB96,'3b'!AB96,'3c'!AB96,'3d'!AB96,'3e (voluntary)'!AB96))","v":":"},null,{"$f":"IF(COUNT('3a'!AD96,'3b'!AD96,'3c'!AD96,'3d'!AD96,'3e (voluntary)'!AD96)=0,\":\",SUM('3a'!AD96,'3b'!AD96,'3c'!AD96,'3d'!AD96,'3e (voluntary)'!AD96))","v":":"},null,{"$f":"IF(COUNT('3a'!AF96,'3b'!AF96,'3c'!AF96,'3d'!AF96,'3e (voluntary)'!AF96)=0,\":\",SUM('3a'!AF96,'3b'!AF96,'3c'!AF96,'3d'!AF96,'3e (voluntary)'!AF96))","v":":"}]
["S11_S12","EP_BUS","EPS_P2_NEPS",null,"( P2_NEPS.3 ) Intermediate consumption (excluding EP services)",null,null,null,2014,{"$f":"IF(COUNT('3a'!J97,'3b'!J97,'3c'!J97,'3d'!J97,'3e (voluntary)'!J97)=0,\":\",SUM('3a'!J97,'3b'!J97,'3c'!J97,'3d'!J97,'3e (voluntary)'!J97))","v":":"},null,{"$f":"IF(COUNT('3a'!L97,'3b'!L97,'3c'!L97,'3d'!L97,'3e (voluntary)'!L97)=0,\":\",SUM('3a'!L97,'3b'!L97,'3c'!L97,'3d'!L97,'3e (voluntary)'!L97))","v":":"},null,{"$f":"IF(COUNT('3a'!N97,'3b'!N97,'3c'!N97,'3d'!N97,'3e (voluntary)'!N97)=0,\":\",SUM('3a'!N97,'3b'!N97,'3c'!N97,'3d'!N97,'3e (voluntary)'!N97))","v":":"},null,{"$f":"IF(COUNT('3a'!P97,'3b'!P97,'3c'!P97,'3d'!P97,'3e (voluntary)'!P97)=0,\":\",SUM('3a'!P97,'3b'!P97,'3c'!P97,'3d'!P97,'3e (voluntary)'!P97))","v":":"},null,{"$f":"IF(COUNT('3a'!R97,'3b'!R97,'3c'!R97,'3d'!R97,'3e (voluntary)'!R97)=0,\":\",SUM('3a'!R97,'3b'!R97,'3c'!R97,'3d'!R97,'3e (voluntary)'!R97))","v":":"},null,{"$f":"IF(COUNT('3a'!T97,'3b'!T97,'3c'!T97,'3d'!T97,'3e (voluntary)'!T97)=0,\":\",SUM('3a'!T97,'3b'!T97,'3c'!T97,'3d'!T97,'3e (voluntary)'!T97))","v":":"},null,{"$f":"IF(COUNT('3a'!V97,'3b'!V97,'3c'!V97,'3d'!V97,'3e (voluntary)'!V97)=0,\":\",SUM('3a'!V97,'3b'!V97,'3c'!V97,'3d'!V97,'3e (voluntary)'!V97))","v":":"},null,{"$f":"IF(COUNT('3a'!X97,'3b'!X97,'3c'!X97,'3d'!X97,'3e (voluntary)'!X97)=0,\":\",SUM('3a'!X97,'3b'!X97,'3c'!X97,'3d'!X97,'3e (voluntary)'!X97))","v":":"},null,{"$f":"IF(COUNT('3a'!Z97,'3b'!Z97,'3c'!Z97,'3d'!Z97,'3e (voluntary)'!Z97)=0,\":\",SUM('3a'!Z97,'3b'!Z97,'3c'!Z97,'3d'!Z97,'3e (voluntary)'!Z97))","v":":"},null,{"$f":"IF(COUNT('3a'!AB97,'3b'!AB97,'3c'!AB97,'3d'!AB97,'3e (voluntary)'!AB97)=0,\":\",SUM('3a'!AB97,'3b'!AB97,'3c'!AB97,'3d'!AB97,'3e (voluntary)'!AB97))","v":":"},null,{"$f":"IF(COUNT('3a'!AD97,'3b'!AD97,'3c'!AD97,'3d'!AD97,'3e (voluntary)'!AD97)=0,\":\",SUM('3a'!AD97,'3b'!AD97,'3c'!AD97,'3d'!AD97,'3e (voluntary)'!AD97))","v":":"},null,{"$f":"IF(COUNT('3a'!AF97,'3b'!AF97,'3c'!AF97,'3d'!AF97,'3e (voluntary)'!AF97)=0,\":\",SUM('3a'!AF97,'3b'!AF97,'3c'!AF97,'3d'!AF97,'3e (voluntary)'!AF97))","v":":"}]
["S11_S12","EP_BUS","EPS_P2_NEPS",null,null,null,null,null,2015,{"$f":"IF(COUNT('3a'!J98,'3b'!J98,'3c'!J98,'3d'!J98,'3e (voluntary)'!J98)=0,\":\",SUM('3a'!J98,'3b'!J98,'3c'!J98,'3d'!J98,'3e (voluntary)'!J98))","v":":"},null,{"$f":"IF(COUNT('3a'!L98,'3b'!L98,'3c'!L98,'3d'!L98,'3e (voluntary)'!L98)=0,\":\",SUM('3a'!L98,'3b'!L98,'3c'!L98,'3d'!L98,'3e (voluntary)'!L98))","v":":"},null,{"$f":"IF(COUNT('3a'!N98,'3b'!N98,'3c'!N98,'3d'!N98,'3e (voluntary)'!N98)=0,\":\",SUM('3a'!N98,'3b'!N98,'3c'!N98,'3d'!N98,'3e (voluntary)'!N98))","v":":"},null,{"$f":"IF(COUNT('3a'!P98,'3b'!P98,'3c'!P98,'3d'!P98,'3e (voluntary)'!P98)=0,\":\",SUM('3a'!P98,'3b'!P98,'3c'!P98,'3d'!P98,'3e (voluntary)'!P98))","v":":"},null,{"$f":"IF(COUNT('3a'!R98,'3b'!R98,'3c'!R98,'3d'!R98,'3e (voluntary)'!R98)=0,\":\",SUM('3a'!R98,'3b'!R98,'3c'!R98,'3d'!R98,'3e (voluntary)'!R98))","v":":"},null,{"$f":"IF(COUNT('3a'!T98,'3b'!T98,'3c'!T98,'3d'!T98,'3e (voluntary)'!T98)=0,\":\",SUM('3a'!T98,'3b'!T98,'3c'!T98,'3d'!T98,'3e (voluntary)'!T98))","v":":"},null,{"$f":"IF(COUNT('3a'!V98,'3b'!V98,'3c'!V98,'3d'!V98,'3e (voluntary)'!V98)=0,\":\",SUM('3a'!V98,'3b'!V98,'3c'!V98,'3d'!V98,'3e (voluntary)'!V98))","v":":"},null,{"$f":"IF(COUNT('3a'!X98,'3b'!X98,'3c'!X98,'3d'!X98,'3e (voluntary)'!X98)=0,\":\",SUM('3a'!X98,'3b'!X98,'3c'!X98,'3d'!X98,'3e (voluntary)'!X98))","v":":"},null,{"$f":"IF(COUNT('3a'!Z98,'3b'!Z98,'3c'!Z98,'3d'!Z98,'3e (voluntary)'!Z98)=0,\":\",SUM('3a'!Z98,'3b'!Z98,'3c'!Z98,'3d'!Z98,'3e (voluntary)'!Z98))","v":":"},null,{"$f":"IF(COUNT('3a'!AB98,'3b'!AB98,'3c'!AB98,'3d'!AB98,'3e (voluntary)'!AB98)=0,\":\",SUM('3a'!AB98,'3b'!AB98,'3c'!AB98,'3d'!AB98,'3e (voluntary)'!AB98))","v":":"},null,{"$f":"IF(COUNT('3a'!AD98,'3b'!AD98,'3c'!AD98,'3d'!AD98,'3e (voluntary)'!AD98)=0,\":\",SUM('3a'!AD98,'3b'!AD98,'3c'!AD98,'3d'!AD98,'3e (voluntary)'!AD98))","v":":"},null,{"$f":"IF(COUNT('3a'!AF98,'3b'!AF98,'3c'!AF98,'3d'!AF98,'3e (voluntary)'!AF98)=0,\":\",SUM('3a'!AF98,'3b'!AF98,'3c'!AF98,'3d'!AF98,'3e (voluntary)'!AF98))","v":":"}]
["S11_S12","EP_BUS","EPS_P2_NEPS",null,null,null,null,null,2016,{"$f":"IF(COUNT('3a'!J99,'3b'!J99,'3c'!J99,'3d'!J99,'3e (voluntary)'!J99)=0,\":\",SUM('3a'!J99,'3b'!J99,'3c'!J99,'3d'!J99,'3e (voluntary)'!J99))","v":":"},null,{"$f":"IF(COUNT('3a'!L99,'3b'!L99,'3c'!L99,'3d'!L99,'3e (voluntary)'!L99)=0,\":\",SUM('3a'!L99,'3b'!L99,'3c'!L99,'3d'!L99,'3e (voluntary)'!L99))","v":":"},null,{"$f":"IF(COUNT('3a'!N99,'3b'!N99,'3c'!N99,'3d'!N99,'3e (voluntary)'!N99)=0,\":\",SUM('3a'!N99,'3b'!N99,'3c'!N99,'3d'!N99,'3e (voluntary)'!N99))","v":":"},null,{"$f":"IF(COUNT('3a'!P99,'3b'!P99,'3c'!P99,'3d'!P99,'3e (voluntary)'!P99)=0,\":\",SUM('3a'!P99,'3b'!P99,'3c'!P99,'3d'!P99,'3e (voluntary)'!P99))","v":":"},null,{"$f":"IF(COUNT('3a'!R99,'3b'!R99,'3c'!R99,'3d'!R99,'3e (voluntary)'!R99)=0,\":\",SUM('3a'!R99,'3b'!R99,'3c'!R99,'3d'!R99,'3e (voluntary)'!R99))","v":":"},null,{"$f":"IF(COUNT('3a'!T99,'3b'!T99,'3c'!T99,'3d'!T99,'3e (voluntary)'!T99)=0,\":\",SUM('3a'!T99,'3b'!T99,'3c'!T99,'3d'!T99,'3e (voluntary)'!T99))","v":":"},null,{"$f":"IF(COUNT('3a'!V99,'3b'!V99,'3c'!V99,'3d'!V99,'3e (voluntary)'!V99)=0,\":\",SUM('3a'!V99,'3b'!V99,'3c'!V99,'3d'!V99,'3e (voluntary)'!V99))","v":":"},null,{"$f":"IF(COUNT('3a'!X99,'3b'!X99,'3c'!X99,'3d'!X99,'3e (voluntary)'!X99)=0,\":\",SUM('3a'!X99,'3b'!X99,'3c'!X99,'3d'!X99,'3e (voluntary)'!X99))","v":":"},null,{"$f":"IF(COUNT('3a'!Z99,'3b'!Z99,'3c'!Z99,'3d'!Z99,'3e (voluntary)'!Z99)=0,\":\",SUM('3a'!Z99,'3b'!Z99,'3c'!Z99,'3d'!Z99,'3e (voluntary)'!Z99))","v":":"},null,{"$f":"IF(COUNT('3a'!AB99,'3b'!AB99,'3c'!AB99,'3d'!AB99,'3e (voluntary)'!AB99)=0,\":\",SUM('3a'!AB99,'3b'!AB99,'3c'!AB99,'3d'!AB99,'3e (voluntary)'!AB99))","v":":"},null,{"$f":"IF(COUNT('3a'!AD99,'3b'!AD99,'3c'!AD99,'3d'!AD99,'3e (voluntary)'!AD99)=0,\":\",SUM('3a'!AD99,'3b'!AD99,'3c'!AD99,'3d'!AD99,'3e (voluntary)'!AD99))","v":":"},null,{"$f":"IF(COUNT('3a'!AF99,'3b'!AF99,'3c'!AF99,'3d'!AF99,'3e (voluntary)'!AF99)=0,\":\",SUM('3a'!AF99,'3b'!AF99,'3c'!AF99,'3d'!AF99,'3e (voluntary)'!AF99))","v":":"}]
["S11_S12","EP_BUS","EPS_P2_NEPS",null,null,null,null,null,2017,{"$f":"IF(COUNT('3a'!J100,'3b'!J100,'3c'!J100,'3d'!J100,'3e (voluntary)'!J100)=0,\":\",SUM('3a'!J100,'3b'!J100,'3c'!J100,'3d'!J100,'3e (voluntary)'!J100))","v":":"},null,{"$f":"IF(COUNT('3a'!L100,'3b'!L100,'3c'!L100,'3d'!L100,'3e (voluntary)'!L100)=0,\":\",SUM('3a'!L100,'3b'!L100,'3c'!L100,'3d'!L100,'3e (voluntary)'!L100))","v":":"},null,{"$f":"IF(COUNT('3a'!N100,'3b'!N100,'3c'!N100,'3d'!N100,'3e (voluntary)'!N100)=0,\":\",SUM('3a'!N100,'3b'!N100,'3c'!N100,'3d'!N100,'3e (voluntary)'!N100))","v":":"},null,{"$f":"IF(COUNT('3a'!P100,'3b'!P100,'3c'!P100,'3d'!P100,'3e (voluntary)'!P100)=0,\":\",SUM('3a'!P100,'3b'!P100,'3c'!P100,'3d'!P100,'3e (voluntary)'!P100))","v":":"},null,{"$f":"IF(COUNT('3a'!R100,'3b'!R100,'3c'!R100,'3d'!R100,'3e (voluntary)'!R100)=0,\":\",SUM('3a'!R100,'3b'!R100,'3c'!R100,'3d'!R100,'3e (voluntary)'!R100))","v":":"},null,{"$f":"IF(COUNT('3a'!T100,'3b'!T100,'3c'!T100,'3d'!T100,'3e (voluntary)'!T100)=0,\":\",SUM('3a'!T100,'3b'!T100,'3c'!T100,'3d'!T100,'3e (voluntary)'!T100))","v":":"},null,{"$f":"IF(COUNT('3a'!V100,'3b'!V100,'3c'!V100,'3d'!V100,'3e (voluntary)'!V100)=0,\":\",SUM('3a'!V100,'3b'!V100,'3c'!V100,'3d'!V100,'3e (voluntary)'!V100))","v":":"},null,{"$f":"IF(COUNT('3a'!X100,'3b'!X100,'3c'!X100,'3d'!X100,'3e (voluntary)'!X100)=0,\":\",SUM('3a'!X100,'3b'!X100,'3c'!X100,'3d'!X100,'3e (voluntary)'!X100))","v":":"},null,{"$f":"IF(COUNT('3a'!Z100,'3b'!Z100,'3c'!Z100,'3d'!Z100,'3e (voluntary)'!Z100)=0,\":\",SUM('3a'!Z100,'3b'!Z100,'3c'!Z100,'3d'!Z100,'3e (voluntary)'!Z100))","v":":"},null,{"$f":"IF(COUNT('3a'!AB100,'3b'!AB100,'3c'!AB100,'3d'!AB100,'3e (voluntary)'!AB100)=0,\":\",SUM('3a'!AB100,'3b'!AB100,'3c'!AB100,'3d'!AB100,'3e (voluntary)'!AB100))","v":":"},null,{"$f":"IF(COUNT('3a'!AD100,'3b'!AD100,'3c'!AD100,'3d'!AD100,'3e (voluntary)'!AD100)=0,\":\",SUM('3a'!AD100,'3b'!AD100,'3c'!AD100,'3d'!AD100,'3e (voluntary)'!AD100))","v":":"},null,{"$f":"IF(COUNT('3a'!AF100,'3b'!AF100,'3c'!AF100,'3d'!AF100,'3e (voluntary)'!AF100)=0,\":\",SUM('3a'!AF100,'3b'!AF100,'3c'!AF100,'3d'!AF100,'3e (voluntary)'!AF100))","v":":"}]
["S11_S12","EP_BUS","EPS_P2_NEPS",null,null,null,null,null,2018,{"$f":"IF(COUNT('3a'!J101,'3b'!J101,'3c'!J101,'3d'!J101,'3e (voluntary)'!J101)=0,\":\",SUM('3a'!J101,'3b'!J101,'3c'!J101,'3d'!J101,'3e (voluntary)'!J101))","v":":"},null,{"$f":"IF(COUNT('3a'!L101,'3b'!L101,'3c'!L101,'3d'!L101,'3e (voluntary)'!L101)=0,\":\",SUM('3a'!L101,'3b'!L101,'3c'!L101,'3d'!L101,'3e (voluntary)'!L101))","v":":"},null,{"$f":"IF(COUNT('3a'!N101,'3b'!N101,'3c'!N101,'3d'!N101,'3e (voluntary)'!N101)=0,\":\",SUM('3a'!N101,'3b'!N101,'3c'!N101,'3d'!N101,'3e (voluntary)'!N101))","v":":"},null,{"$f":"IF(COUNT('3a'!P101,'3b'!P101,'3c'!P101,'3d'!P101,'3e (voluntary)'!P101)=0,\":\",SUM('3a'!P101,'3b'!P101,'3c'!P101,'3d'!P101,'3e (voluntary)'!P101))","v":":"},null,{"$f":"IF(COUNT('3a'!R101,'3b'!R101,'3c'!R101,'3d'!R101,'3e (voluntary)'!R101)=0,\":\",SUM('3a'!R101,'3b'!R101,'3c'!R101,'3d'!R101,'3e (voluntary)'!R101))","v":":"},null,{"$f":"IF(COUNT('3a'!T101,'3b'!T101,'3c'!T101,'3d'!T101,'3e (voluntary)'!T101)=0,\":\",SUM('3a'!T101,'3b'!T101,'3c'!T101,'3d'!T101,'3e (voluntary)'!T101))","v":":"},null,{"$f":"IF(COUNT('3a'!V101,'3b'!V101,'3c'!V101,'3d'!V101,'3e (voluntary)'!V101)=0,\":\",SUM('3a'!V101,'3b'!V101,'3c'!V101,'3d'!V101,'3e (voluntary)'!V101))","v":":"},null,{"$f":"IF(COUNT('3a'!X101,'3b'!X101,'3c'!X101,'3d'!X101,'3e (voluntary)'!X101)=0,\":\",SUM('3a'!X101,'3b'!X101,'3c'!X101,'3d'!X101,'3e (voluntary)'!X101))","v":":"},null,{"$f":"IF(COUNT('3a'!Z101,'3b'!Z101,'3c'!Z101,'3d'!Z101,'3e (voluntary)'!Z101)=0,\":\",SUM('3a'!Z101,'3b'!Z101,'3c'!Z101,'3d'!Z101,'3e (voluntary)'!Z101))","v":":"},null,{"$f":"IF(COUNT('3a'!AB101,'3b'!AB101,'3c'!AB101,'3d'!AB101,'3e (voluntary)'!AB101)=0,\":\",SUM('3a'!AB101,'3b'!AB101,'3c'!AB101,'3d'!AB101,'3e (voluntary)'!AB101))","v":":"},null,{"$f":"IF(COUNT('3a'!AD101,'3b'!AD101,'3c'!AD101,'3d'!AD101,'3e (voluntary)'!AD101)=0,\":\",SUM('3a'!AD101,'3b'!AD101,'3c'!AD101,'3d'!AD101,'3e (voluntary)'!AD101))","v":":"},null,{"$f":"IF(COUNT('3a'!AF101,'3b'!AF101,'3c'!AF101,'3d'!AF101,'3e (voluntary)'!AF101)=0,\":\",SUM('3a'!AF101,'3b'!AF101,'3c'!AF101,'3d'!AF101,'3e (voluntary)'!AF101))","v":":"}]
["S11_S12","EP_BUS","EPS_P2_NEPS",null,null,null,null,null,2019,{"$f":"IF(COUNT('3a'!J102,'3b'!J102,'3c'!J102,'3d'!J102,'3e (voluntary)'!J102)=0,\":\",SUM('3a'!J102,'3b'!J102,'3c'!J102,'3d'!J102,'3e (voluntary)'!J102))","v":":"},null,{"$f":"IF(COUNT('3a'!L102,'3b'!L102,'3c'!L102,'3d'!L102,'3e (voluntary)'!L102)=0,\":\",SUM('3a'!L102,'3b'!L102,'3c'!L102,'3d'!L102,'3e (voluntary)'!L102))","v":":"},null,{"$f":"IF(COUNT('3a'!N102,'3b'!N102,'3c'!N102,'3d'!N102,'3e (voluntary)'!N102)=0,\":\",SUM('3a'!N102,'3b'!N102,'3c'!N102,'3d'!N102,'3e (voluntary)'!N102))","v":":"},null,{"$f":"IF(COUNT('3a'!P102,'3b'!P102,'3c'!P102,'3d'!P102,'3e (voluntary)'!P102)=0,\":\",SUM('3a'!P102,'3b'!P102,'3c'!P102,'3d'!P102,'3e (voluntary)'!P102))","v":":"},null,{"$f":"IF(COUNT('3a'!R102,'3b'!R102,'3c'!R102,'3d'!R102,'3e (voluntary)'!R102)=0,\":\",SUM('3a'!R102,'3b'!R102,'3c'!R102,'3d'!R102,'3e (voluntary)'!R102))","v":":"},null,{"$f":"IF(COUNT('3a'!T102,'3b'!T102,'3c'!T102,'3d'!T102,'3e (voluntary)'!T102)=0,\":\",SUM('3a'!T102,'3b'!T102,'3c'!T102,'3d'!T102,'3e (voluntary)'!T102))","v":":"},null,{"$f":"IF(COUNT('3a'!V102,'3b'!V102,'3c'!V102,'3d'!V102,'3e (voluntary)'!V102)=0,\":\",SUM('3a'!V102,'3b'!V102,'3c'!V102,'3d'!V102,'3e (voluntary)'!V102))","v":":"},null,{"$f":"IF(COUNT('3a'!X102,'3b'!X102,'3c'!X102,'3d'!X102,'3e (voluntary)'!X102)=0,\":\",SUM('3a'!X102,'3b'!X102,'3c'!X102,'3d'!X102,'3e (voluntary)'!X102))","v":":"},null,{"$f":"IF(COUNT('3a'!Z102,'3b'!Z102,'3c'!Z102,'3d'!Z102,'3e (voluntary)'!Z102)=0,\":\",SUM('3a'!Z102,'3b'!Z102,'3c'!Z102,'3d'!Z102,'3e (voluntary)'!Z102))","v":":"},null,{"$f":"IF(COUNT('3a'!AB102,'3b'!AB102,'3c'!AB102,'3d'!AB102,'3e (voluntary)'!AB102)=0,\":\",SUM('3a'!AB102,'3b'!AB102,'3c'!AB102,'3d'!AB102,'3e (voluntary)'!AB102))","v":":"},null,{"$f":"IF(COUNT('3a'!AD102,'3b'!AD102,'3c'!AD102,'3d'!AD102,'3e (voluntary)'!AD102)=0,\":\",SUM('3a'!AD102,'3b'!AD102,'3c'!AD102,'3d'!AD102,'3e (voluntary)'!AD102))","v":":"},null,{"$f":"IF(COUNT('3a'!AF102,'3b'!AF102,'3c'!AF102,'3d'!AF102,'3e (voluntary)'!AF102)=0,\":\",SUM('3a'!AF102,'3b'!AF102,'3c'!AF102,'3d'!AF102,'3e (voluntary)'!AF102))","v":":"}]
["S11_S12","EP_BUS","EPS_P2_NEPS",null,null,null,null,null,2020,{"$f":"IF(COUNT('3a'!J103,'3b'!J103,'3c'!J103,'3d'!J103,'3e (voluntary)'!J103)=0,\":\",SUM('3a'!J103,'3b'!J103,'3c'!J103,'3d'!J103,'3e (voluntary)'!J103))","v":":"},null,{"$f":"IF(COUNT('3a'!L103,'3b'!L103,'3c'!L103,'3d'!L103,'3e (voluntary)'!L103)=0,\":\",SUM('3a'!L103,'3b'!L103,'3c'!L103,'3d'!L103,'3e (voluntary)'!L103))","v":":"},null,{"$f":"IF(COUNT('3a'!N103,'3b'!N103,'3c'!N103,'3d'!N103,'3e (voluntary)'!N103)=0,\":\",SUM('3a'!N103,'3b'!N103,'3c'!N103,'3d'!N103,'3e (voluntary)'!N103))","v":":"},null,{"$f":"IF(COUNT('3a'!P103,'3b'!P103,'3c'!P103,'3d'!P103,'3e (voluntary)'!P103)=0,\":\",SUM('3a'!P103,'3b'!P103,'3c'!P103,'3d'!P103,'3e (voluntary)'!P103))","v":":"},null,{"$f":"IF(COUNT('3a'!R103,'3b'!R103,'3c'!R103,'3d'!R103,'3e (voluntary)'!R103)=0,\":\",SUM('3a'!R103,'3b'!R103,'3c'!R103,'3d'!R103,'3e (voluntary)'!R103))","v":":"},null,{"$f":"IF(COUNT('3a'!T103,'3b'!T103,'3c'!T103,'3d'!T103,'3e (voluntary)'!T103)=0,\":\",SUM('3a'!T103,'3b'!T103,'3c'!T103,'3d'!T103,'3e (voluntary)'!T103))","v":":"},null,{"$f":"IF(COUNT('3a'!V103,'3b'!V103,'3c'!V103,'3d'!V103,'3e (voluntary)'!V103)=0,\":\",SUM('3a'!V103,'3b'!V103,'3c'!V103,'3d'!V103,'3e (voluntary)'!V103))","v":":"},null,{"$f":"IF(COUNT('3a'!X103,'3b'!X103,'3c'!X103,'3d'!X103,'3e (voluntary)'!X103)=0,\":\",SUM('3a'!X103,'3b'!X103,'3c'!X103,'3d'!X103,'3e (voluntary)'!X103))","v":":"},null,{"$f":"IF(COUNT('3a'!Z103,'3b'!Z103,'3c'!Z103,'3d'!Z103,'3e (voluntary)'!Z103)=0,\":\",SUM('3a'!Z103,'3b'!Z103,'3c'!Z103,'3d'!Z103,'3e (voluntary)'!Z103))","v":":"},null,{"$f":"IF(COUNT('3a'!AB103,'3b'!AB103,'3c'!AB103,'3d'!AB103,'3e (voluntary)'!AB103)=0,\":\",SUM('3a'!AB103,'3b'!AB103,'3c'!AB103,'3d'!AB103,'3e (voluntary)'!AB103))","v":":"},null,{"$f":"IF(COUNT('3a'!AD103,'3b'!AD103,'3c'!AD103,'3d'!AD103,'3e (voluntary)'!AD103)=0,\":\",SUM('3a'!AD103,'3b'!AD103,'3c'!AD103,'3d'!AD103,'3e (voluntary)'!AD103))","v":":"},null,{"$f":"IF(COUNT('3a'!AF103,'3b'!AF103,'3c'!AF103,'3d'!AF103,'3e (voluntary)'!AF103)=0,\":\",SUM('3a'!AF103,'3b'!AF103,'3c'!AF103,'3d'!AF103,'3e (voluntary)'!AF103))","v":":"}]
["S11_S12","EP_BUS","EPS_P2_NEPS",null,null,null,null,null,2021,{"$f":"IF(COUNT('3a'!J104,'3b'!J104,'3c'!J104,'3d'!J104,'3e (voluntary)'!J104)=0,\":\",SUM('3a'!J104,'3b'!J104,'3c'!J104,'3d'!J104,'3e (voluntary)'!J104))","v":":"},null,{"$f":"IF(COUNT('3a'!L104,'3b'!L104,'3c'!L104,'3d'!L104,'3e (voluntary)'!L104)=0,\":\",SUM('3a'!L104,'3b'!L104,'3c'!L104,'3d'!L104,'3e (voluntary)'!L104))","v":":"},null,{"$f":"IF(COUNT('3a'!N104,'3b'!N104,'3c'!N104,'3d'!N104,'3e (voluntary)'!N104)=0,\":\",SUM('3a'!N104,'3b'!N104,'3c'!N104,'3d'!N104,'3e (voluntary)'!N104))","v":":"},null,{"$f":"IF(COUNT('3a'!P104,'3b'!P104,'3c'!P104,'3d'!P104,'3e (voluntary)'!P104)=0,\":\",SUM('3a'!P104,'3b'!P104,'3c'!P104,'3d'!P104,'3e (voluntary)'!P104))","v":":"},null,{"$f":"IF(COUNT('3a'!R104,'3b'!R104,'3c'!R104,'3d'!R104,'3e (voluntary)'!R104)=0,\":\",SUM('3a'!R104,'3b'!R104,'3c'!R104,'3d'!R104,'3e (voluntary)'!R104))","v":":"},null,{"$f":"IF(COUNT('3a'!T104,'3b'!T104,'3c'!T104,'3d'!T104,'3e (voluntary)'!T104)=0,\":\",SUM('3a'!T104,'3b'!T104,'3c'!T104,'3d'!T104,'3e (voluntary)'!T104))","v":":"},null,{"$f":"IF(COUNT('3a'!V104,'3b'!V104,'3c'!V104,'3d'!V104,'3e (voluntary)'!V104)=0,\":\",SUM('3a'!V104,'3b'!V104,'3c'!V104,'3d'!V104,'3e (voluntary)'!V104))","v":":"},null,{"$f":"IF(COUNT('3a'!X104,'3b'!X104,'3c'!X104,'3d'!X104,'3e (voluntary)'!X104)=0,\":\",SUM('3a'!X104,'3b'!X104,'3c'!X104,'3d'!X104,'3e (voluntary)'!X104))","v":":"},null,{"$f":"IF(COUNT('3a'!Z104,'3b'!Z104,'3c'!Z104,'3d'!Z104,'3e (voluntary)'!Z104)=0,\":\",SUM('3a'!Z104,'3b'!Z104,'3c'!Z104,'3d'!Z104,'3e (voluntary)'!Z104))","v":":"},null,{"$f":"IF(COUNT('3a'!AB104,'3b'!AB104,'3c'!AB104,'3d'!AB104,'3e (voluntary)'!AB104)=0,\":\",SUM('3a'!AB104,'3b'!AB104,'3c'!AB104,'3d'!AB104,'3e (voluntary)'!AB104))","v":":"},null,{"$f":"IF(COUNT('3a'!AD104,'3b'!AD104,'3c'!AD104,'3d'!AD104,'3e (voluntary)'!AD104)=0,\":\",SUM('3a'!AD104,'3b'!AD104,'3c'!AD104,'3d'!AD104,'3e (voluntary)'!AD104))","v":":"},null,{"$f":"IF(COUNT('3a'!AF104,'3b'!AF104,'3c'!AF104,'3d'!AF104,'3e (voluntary)'!AF104)=0,\":\",SUM('3a'!AF104,'3b'!AF104,'3c'!AF104,'3d'!AF104,'3e (voluntary)'!AF104))","v":":"}]
["S11_S12","EP_BUS","EPS_P2_NEPS",null,null,null,null,null,2022,{"$f":"IF(COUNT('3a'!J105,'3b'!J105,'3c'!J105,'3d'!J105,'3e (voluntary)'!J105)=0,\":\",SUM('3a'!J105,'3b'!J105,'3c'!J105,'3d'!J105,'3e (voluntary)'!J105))","v":":"},null,{"$f":"IF(COUNT('3a'!L105,'3b'!L105,'3c'!L105,'3d'!L105,'3e (voluntary)'!L105)=0,\":\",SUM('3a'!L105,'3b'!L105,'3c'!L105,'3d'!L105,'3e (voluntary)'!L105))","v":":"},null,{"$f":"IF(COUNT('3a'!N105,'3b'!N105,'3c'!N105,'3d'!N105,'3e (voluntary)'!N105)=0,\":\",SUM('3a'!N105,'3b'!N105,'3c'!N105,'3d'!N105,'3e (voluntary)'!N105))","v":":"},null,{"$f":"IF(COUNT('3a'!P105,'3b'!P105,'3c'!P105,'3d'!P105,'3e (voluntary)'!P105)=0,\":\",SUM('3a'!P105,'3b'!P105,'3c'!P105,'3d'!P105,'3e (voluntary)'!P105))","v":":"},null,{"$f":"IF(COUNT('3a'!R105,'3b'!R105,'3c'!R105,'3d'!R105,'3e (voluntary)'!R105)=0,\":\",SUM('3a'!R105,'3b'!R105,'3c'!R105,'3d'!R105,'3e (voluntary)'!R105))","v":":"},null,{"$f":"IF(COUNT('3a'!T105,'3b'!T105,'3c'!T105,'3d'!T105,'3e (voluntary)'!T105)=0,\":\",SUM('3a'!T105,'3b'!T105,'3c'!T105,'3d'!T105,'3e (voluntary)'!T105))","v":":"},null,{"$f":"IF(COUNT('3a'!V105,'3b'!V105,'3c'!V105,'3d'!V105,'3e (voluntary)'!V105)=0,\":\",SUM('3a'!V105,'3b'!V105,'3c'!V105,'3d'!V105,'3e (voluntary)'!V105))","v":":"},null,{"$f":"IF(COUNT('3a'!X105,'3b'!X105,'3c'!X105,'3d'!X105,'3e (voluntary)'!X105)=0,\":\",SUM('3a'!X105,'3b'!X105,'3c'!X105,'3d'!X105,'3e (voluntary)'!X105))","v":":"},null,{"$f":"IF(COUNT('3a'!Z105,'3b'!Z105,'3c'!Z105,'3d'!Z105,'3e (voluntary)'!Z105)=0,\":\",SUM('3a'!Z105,'3b'!Z105,'3c'!Z105,'3d'!Z105,'3e (voluntary)'!Z105))","v":":"},null,{"$f":"IF(COUNT('3a'!AB105,'3b'!AB105,'3c'!AB105,'3d'!AB105,'3e (voluntary)'!AB105)=0,\":\",SUM('3a'!AB105,'3b'!AB105,'3c'!AB105,'3d'!AB105,'3e (voluntary)'!AB105))","v":":"},null,{"$f":"IF(COUNT('3a'!AD105,'3b'!AD105,'3c'!AD105,'3d'!AD105,'3e (voluntary)'!AD105)=0,\":\",SUM('3a'!AD105,'3b'!AD105,'3c'!AD105,'3d'!AD105,'3e (voluntary)'!AD105))","v":":"},null,{"$f":"IF(COUNT('3a'!AF105,'3b'!AF105,'3c'!AF105,'3d'!AF105,'3e (voluntary)'!AF105)=0,\":\",SUM('3a'!AF105,'3b'!AF105,'3c'!AF105,'3d'!AF105,'3e (voluntary)'!AF105))","v":":"}]
["S11_S12","EP_BUS","EPS_P2_NEPS",null,null,null,null,null,2023,{"$f":"IF(COUNT('3a'!J106,'3b'!J106,'3c'!J106,'3d'!J106,'3e (voluntary)'!J106)=0,\":\",SUM('3a'!J106,'3b'!J106,'3c'!J106,'3d'!J106,'3e (voluntary)'!J106))","v":":"},null,{"$f":"IF(COUNT('3a'!L106,'3b'!L106,'3c'!L106,'3d'!L106,'3e (voluntary)'!L106)=0,\":\",SUM('3a'!L106,'3b'!L106,'3c'!L106,'3d'!L106,'3e (voluntary)'!L106))","v":":"},null,{"$f":"IF(COUNT('3a'!N106,'3b'!N106,'3c'!N106,'3d'!N106,'3e (voluntary)'!N106)=0,\":\",SUM('3a'!N106,'3b'!N106,'3c'!N106,'3d'!N106,'3e (voluntary)'!N106))","v":":"},null,{"$f":"IF(COUNT('3a'!P106,'3b'!P106,'3c'!P106,'3d'!P106,'3e (voluntary)'!P106)=0,\":\",SUM('3a'!P106,'3b'!P106,'3c'!P106,'3d'!P106,'3e (voluntary)'!P106))","v":":"},null,{"$f":"IF(COUNT('3a'!R106,'3b'!R106,'3c'!R106,'3d'!R106,'3e (voluntary)'!R106)=0,\":\",SUM('3a'!R106,'3b'!R106,'3c'!R106,'3d'!R106,'3e (voluntary)'!R106))","v":":"},null,{"$f":"IF(COUNT('3a'!T106,'3b'!T106,'3c'!T106,'3d'!T106,'3e (voluntary)'!T106)=0,\":\",SUM('3a'!T106,'3b'!T106,'3c'!T106,'3d'!T106,'3e (voluntary)'!T106))","v":":"},null,{"$f":"IF(COUNT('3a'!V106,'3b'!V106,'3c'!V106,'3d'!V106,'3e (voluntary)'!V106)=0,\":\",SUM('3a'!V106,'3b'!V106,'3c'!V106,'3d'!V106,'3e (voluntary)'!V106))","v":":"},null,{"$f":"IF(COUNT('3a'!X106,'3b'!X106,'3c'!X106,'3d'!X106,'3e (voluntary)'!X106)=0,\":\",SUM('3a'!X106,'3b'!X106,'3c'!X106,'3d'!X106,'3e (voluntary)'!X106))","v":":"},null,{"$f":"IF(COUNT('3a'!Z106,'3b'!Z106,'3c'!Z106,'3d'!Z106,'3e (voluntary)'!Z106)=0,\":\",SUM('3a'!Z106,'3b'!Z106,'3c'!Z106,'3d'!Z106,'3e (voluntary)'!Z106))","v":":"},null,{"$f":"IF(COUNT('3a'!AB106,'3b'!AB106,'3c'!AB106,'3d'!AB106,'3e (voluntary)'!AB106)=0,\":\",SUM('3a'!AB106,'3b'!AB106,'3c'!AB106,'3d'!AB106,'3e (voluntary)'!AB106))","v":":"},null,{"$f":"IF(COUNT('3a'!AD106,'3b'!AD106,'3c'!AD106,'3d'!AD106,'3e (voluntary)'!AD106)=0,\":\",SUM('3a'!AD106,'3b'!AD106,'3c'!AD106,'3d'!AD106,'3e (voluntary)'!AD106))","v":":"},null,{"$f":"IF(COUNT('3a'!AF106,'3b'!AF106,'3c'!AF106,'3d'!AF106,'3e (voluntary)'!AF106)=0,\":\",SUM('3a'!AF106,'3b'!AF106,'3c'!AF106,'3d'!AF106,'3e (voluntary)'!AF106))","v":":"}]
["S11_S12","EP_BUS","EPS_P2_NEPS",null,null,null,null,null,2024,{"$f":"IF(COUNT('3a'!J107,'3b'!J107,'3c'!J107,'3d'!J107,'3e (voluntary)'!J107)=0,\":\",SUM('3a'!J107,'3b'!J107,'3c'!J107,'3d'!J107,'3e (voluntary)'!J107))","v":":"},null,{"$f":"IF(COUNT('3a'!L107,'3b'!L107,'3c'!L107,'3d'!L107,'3e (voluntary)'!L107)=0,\":\",SUM('3a'!L107,'3b'!L107,'3c'!L107,'3d'!L107,'3e (voluntary)'!L107))","v":":"},null,{"$f":"IF(COUNT('3a'!N107,'3b'!N107,'3c'!N107,'3d'!N107,'3e (voluntary)'!N107)=0,\":\",SUM('3a'!N107,'3b'!N107,'3c'!N107,'3d'!N107,'3e (voluntary)'!N107))","v":":"},null,{"$f":"IF(COUNT('3a'!P107,'3b'!P107,'3c'!P107,'3d'!P107,'3e (voluntary)'!P107)=0,\":\",SUM('3a'!P107,'3b'!P107,'3c'!P107,'3d'!P107,'3e (voluntary)'!P107))","v":":"},null,{"$f":"IF(COUNT('3a'!R107,'3b'!R107,'3c'!R107,'3d'!R107,'3e (voluntary)'!R107)=0,\":\",SUM('3a'!R107,'3b'!R107,'3c'!R107,'3d'!R107,'3e (voluntary)'!R107))","v":":"},null,{"$f":"IF(COUNT('3a'!T107,'3b'!T107,'3c'!T107,'3d'!T107,'3e (voluntary)'!T107)=0,\":\",SUM('3a'!T107,'3b'!T107,'3c'!T107,'3d'!T107,'3e (voluntary)'!T107))","v":":"},null,{"$f":"IF(COUNT('3a'!V107,'3b'!V107,'3c'!V107,'3d'!V107,'3e (voluntary)'!V107)=0,\":\",SUM('3a'!V107,'3b'!V107,'3c'!V107,'3d'!V107,'3e (voluntary)'!V107))","v":":"},null,{"$f":"IF(COUNT('3a'!X107,'3b'!X107,'3c'!X107,'3d'!X107,'3e (voluntary)'!X107)=0,\":\",SUM('3a'!X107,'3b'!X107,'3c'!X107,'3d'!X107,'3e (voluntary)'!X107))","v":":"},null,{"$f":"IF(COUNT('3a'!Z107,'3b'!Z107,'3c'!Z107,'3d'!Z107,'3e (voluntary)'!Z107)=0,\":\",SUM('3a'!Z107,'3b'!Z107,'3c'!Z107,'3d'!Z107,'3e (voluntary)'!Z107))","v":":"},null,{"$f":"IF(COUNT('3a'!AB107,'3b'!AB107,'3c'!AB107,'3d'!AB107,'3e (voluntary)'!AB107)=0,\":\",SUM('3a'!AB107,'3b'!AB107,'3c'!AB107,'3d'!AB107,'3e (voluntary)'!AB107))","v":":"},null,{"$f":"IF(COUNT('3a'!AD107,'3b'!AD107,'3c'!AD107,'3d'!AD107,'3e (voluntary)'!AD107)=0,\":\",SUM('3a'!AD107,'3b'!AD107,'3c'!AD107,'3d'!AD107,'3e (voluntary)'!AD107))","v":":"},null,{"$f":"IF(COUNT('3a'!AF107,'3b'!AF107,'3c'!AF107,'3d'!AF107,'3e (voluntary)'!AF107)=0,\":\",SUM('3a'!AF107,'3b'!AF107,'3c'!AF107,'3d'!AF107,'3e (voluntary)'!AF107))","v":":"}]
["S11_S12","EP_BUS","EPS_P2_NEPS",null,null,null,null,null,2025,{"$f":"IF(COUNT('3a'!J108,'3b'!J108,'3c'!J108,'3d'!J108,'3e (voluntary)'!J108)=0,\":\",SUM('3a'!J108,'3b'!J108,'3c'!J108,'3d'!J108,'3e (voluntary)'!J108))","v":":"},null,{"$f":"IF(COUNT('3a'!L108,'3b'!L108,'3c'!L108,'3d'!L108,'3e (voluntary)'!L108)=0,\":\",SUM('3a'!L108,'3b'!L108,'3c'!L108,'3d'!L108,'3e (voluntary)'!L108))","v":":"},null,{"$f":"IF(COUNT('3a'!N108,'3b'!N108,'3c'!N108,'3d'!N108,'3e (voluntary)'!N108)=0,\":\",SUM('3a'!N108,'3b'!N108,'3c'!N108,'3d'!N108,'3e (voluntary)'!N108))","v":":"},null,{"$f":"IF(COUNT('3a'!P108,'3b'!P108,'3c'!P108,'3d'!P108,'3e (voluntary)'!P108)=0,\":\",SUM('3a'!P108,'3b'!P108,'3c'!P108,'3d'!P108,'3e (voluntary)'!P108))","v":":"},null,{"$f":"IF(COUNT('3a'!R108,'3b'!R108,'3c'!R108,'3d'!R108,'3e (voluntary)'!R108)=0,\":\",SUM('3a'!R108,'3b'!R108,'3c'!R108,'3d'!R108,'3e (voluntary)'!R108))","v":":"},null,{"$f":"IF(COUNT('3a'!T108,'3b'!T108,'3c'!T108,'3d'!T108,'3e (voluntary)'!T108)=0,\":\",SUM('3a'!T108,'3b'!T108,'3c'!T108,'3d'!T108,'3e (voluntary)'!T108))","v":":"},null,{"$f":"IF(COUNT('3a'!V108,'3b'!V108,'3c'!V108,'3d'!V108,'3e (voluntary)'!V108)=0,\":\",SUM('3a'!V108,'3b'!V108,'3c'!V108,'3d'!V108,'3e (voluntary)'!V108))","v":":"},null,{"$f":"IF(COUNT('3a'!X108,'3b'!X108,'3c'!X108,'3d'!X108,'3e (voluntary)'!X108)=0,\":\",SUM('3a'!X108,'3b'!X108,'3c'!X108,'3d'!X108,'3e (voluntary)'!X108))","v":":"},null,{"$f":"IF(COUNT('3a'!Z108,'3b'!Z108,'3c'!Z108,'3d'!Z108,'3e (voluntary)'!Z108)=0,\":\",SUM('3a'!Z108,'3b'!Z108,'3c'!Z108,'3d'!Z108,'3e (voluntary)'!Z108))","v":":"},null,{"$f":"IF(COUNT('3a'!AB108,'3b'!AB108,'3c'!AB108,'3d'!AB108,'3e (voluntary)'!AB108)=0,\":\",SUM('3a'!AB108,'3b'!AB108,'3c'!AB108,'3d'!AB108,'3e (voluntary)'!AB108))","v":":"},null,{"$f":"IF(COUNT('3a'!AD108,'3b'!AD108,'3c'!AD108,'3d'!AD108,'3e (voluntary)'!AD108)=0,\":\",SUM('3a'!AD108,'3b'!AD108,'3c'!AD108,'3d'!AD108,'3e (voluntary)'!AD108))","v":":"},null,{"$f":"IF(COUNT('3a'!AF108,'3b'!AF108,'3c'!AF108,'3d'!AF108,'3e (voluntary)'!AF108)=0,\":\",SUM('3a'!AF108,'3b'!AF108,'3c'!AF108,'3d'!AF108,'3e (voluntary)'!AF108))","v":":"}]
["S11_S12","EP_BUS","EPS_P2_NEPS",null,null,null,null,null,2026,{"$f":"IF(COUNT('3a'!J109,'3b'!J109,'3c'!J109,'3d'!J109,'3e (voluntary)'!J109)=0,\":\",SUM('3a'!J109,'3b'!J109,'3c'!J109,'3d'!J109,'3e (voluntary)'!J109))","v":":"},null,{"$f":"IF(COUNT('3a'!L109,'3b'!L109,'3c'!L109,'3d'!L109,'3e (voluntary)'!L109)=0,\":\",SUM('3a'!L109,'3b'!L109,'3c'!L109,'3d'!L109,'3e (voluntary)'!L109))","v":":"},null,{"$f":"IF(COUNT('3a'!N109,'3b'!N109,'3c'!N109,'3d'!N109,'3e (voluntary)'!N109)=0,\":\",SUM('3a'!N109,'3b'!N109,'3c'!N109,'3d'!N109,'3e (voluntary)'!N109))","v":":"},null,{"$f":"IF(COUNT('3a'!P109,'3b'!P109,'3c'!P109,'3d'!P109,'3e (voluntary)'!P109)=0,\":\",SUM('3a'!P109,'3b'!P109,'3c'!P109,'3d'!P109,'3e (voluntary)'!P109))","v":":"},null,{"$f":"IF(COUNT('3a'!R109,'3b'!R109,'3c'!R109,'3d'!R109,'3e (voluntary)'!R109)=0,\":\",SUM('3a'!R109,'3b'!R109,'3c'!R109,'3d'!R109,'3e (voluntary)'!R109))","v":":"},null,{"$f":"IF(COUNT('3a'!T109,'3b'!T109,'3c'!T109,'3d'!T109,'3e (voluntary)'!T109)=0,\":\",SUM('3a'!T109,'3b'!T109,'3c'!T109,'3d'!T109,'3e (voluntary)'!T109))","v":":"},null,{"$f":"IF(COUNT('3a'!V109,'3b'!V109,'3c'!V109,'3d'!V109,'3e (voluntary)'!V109)=0,\":\",SUM('3a'!V109,'3b'!V109,'3c'!V109,'3d'!V109,'3e (voluntary)'!V109))","v":":"},null,{"$f":"IF(COUNT('3a'!X109,'3b'!X109,'3c'!X109,'3d'!X109,'3e (voluntary)'!X109)=0,\":\",SUM('3a'!X109,'3b'!X109,'3c'!X109,'3d'!X109,'3e (voluntary)'!X109))","v":":"},null,{"$f":"IF(COUNT('3a'!Z109,'3b'!Z109,'3c'!Z109,'3d'!Z109,'3e (voluntary)'!Z109)=0,\":\",SUM('3a'!Z109,'3b'!Z109,'3c'!Z109,'3d'!Z109,'3e (voluntary)'!Z109))","v":":"},null,{"$f":"IF(COUNT('3a'!AB109,'3b'!AB109,'3c'!AB109,'3d'!AB109,'3e (voluntary)'!AB109)=0,\":\",SUM('3a'!AB109,'3b'!AB109,'3c'!AB109,'3d'!AB109,'3e (voluntary)'!AB109))","v":":"},null,{"$f":"IF(COUNT('3a'!AD109,'3b'!AD109,'3c'!AD109,'3d'!AD109,'3e (voluntary)'!AD109)=0,\":\",SUM('3a'!AD109,'3b'!AD109,'3c'!AD109,'3d'!AD109,'3e (voluntary)'!AD109))","v":":"},null,{"$f":"IF(COUNT('3a'!AF109,'3b'!AF109,'3c'!AF109,'3d'!AF109,'3e (voluntary)'!AF109)=0,\":\",SUM('3a'!AF109,'3b'!AF109,'3c'!AF109,'3d'!AF109,'3e (voluntary)'!AF109))","v":":"}]
["S11_S12","EP_BUS","EPS_P2_NEPS",null,null,null,null,null,2027,{"$f":"IF(COUNT('3a'!J110,'3b'!J110,'3c'!J110,'3d'!J110,'3e (voluntary)'!J110)=0,\":\",SUM('3a'!J110,'3b'!J110,'3c'!J110,'3d'!J110,'3e (voluntary)'!J110))","v":":"},null,{"$f":"IF(COUNT('3a'!L110,'3b'!L110,'3c'!L110,'3d'!L110,'3e (voluntary)'!L110)=0,\":\",SUM('3a'!L110,'3b'!L110,'3c'!L110,'3d'!L110,'3e (voluntary)'!L110))","v":":"},null,{"$f":"IF(COUNT('3a'!N110,'3b'!N110,'3c'!N110,'3d'!N110,'3e (voluntary)'!N110)=0,\":\",SUM('3a'!N110,'3b'!N110,'3c'!N110,'3d'!N110,'3e (voluntary)'!N110))","v":":"},null,{"$f":"IF(COUNT('3a'!P110,'3b'!P110,'3c'!P110,'3d'!P110,'3e (voluntary)'!P110)=0,\":\",SUM('3a'!P110,'3b'!P110,'3c'!P110,'3d'!P110,'3e (voluntary)'!P110))","v":":"},null,{"$f":"IF(COUNT('3a'!R110,'3b'!R110,'3c'!R110,'3d'!R110,'3e (voluntary)'!R110)=0,\":\",SUM('3a'!R110,'3b'!R110,'3c'!R110,'3d'!R110,'3e (voluntary)'!R110))","v":":"},null,{"$f":"IF(COUNT('3a'!T110,'3b'!T110,'3c'!T110,'3d'!T110,'3e (voluntary)'!T110)=0,\":\",SUM('3a'!T110,'3b'!T110,'3c'!T110,'3d'!T110,'3e (voluntary)'!T110))","v":":"},null,{"$f":"IF(COUNT('3a'!V110,'3b'!V110,'3c'!V110,'3d'!V110,'3e (voluntary)'!V110)=0,\":\",SUM('3a'!V110,'3b'!V110,'3c'!V110,'3d'!V110,'3e (voluntary)'!V110))","v":":"},null,{"$f":"IF(COUNT('3a'!X110,'3b'!X110,'3c'!X110,'3d'!X110,'3e (voluntary)'!X110)=0,\":\",SUM('3a'!X110,'3b'!X110,'3c'!X110,'3d'!X110,'3e (voluntary)'!X110))","v":":"},null,{"$f":"IF(COUNT('3a'!Z110,'3b'!Z110,'3c'!Z110,'3d'!Z110,'3e (voluntary)'!Z110)=0,\":\",SUM('3a'!Z110,'3b'!Z110,'3c'!Z110,'3d'!Z110,'3e (voluntary)'!Z110))","v":":"},null,{"$f":"IF(COUNT('3a'!AB110,'3b'!AB110,'3c'!AB110,'3d'!AB110,'3e (voluntary)'!AB110)=0,\":\",SUM('3a'!AB110,'3b'!AB110,'3c'!AB110,'3d'!AB110,'3e (voluntary)'!AB110))","v":":"},null,{"$f":"IF(COUNT('3a'!AD110,'3b'!AD110,'3c'!AD110,'3d'!AD110,'3e (voluntary)'!AD110)=0,\":\",SUM('3a'!AD110,'3b'!AD110,'3c'!AD110,'3d'!AD110,'3e (voluntary)'!AD110))","v":":"},null,{"$f":"IF(COUNT('3a'!AF110,'3b'!AF110,'3c'!AF110,'3d'!AF110,'3e (voluntary)'!AF110)=0,\":\",SUM('3a'!AF110,'3b'!AF110,'3c'!AF110,'3d'!AF110,'3e (voluntary)'!AF110))","v":":"}]
["S11_S12","EP_BUS","EPS_P2_NEPS",null,null,null,null,null,2028,{"$f":"IF(COUNT('3a'!J111,'3b'!J111,'3c'!J111,'3d'!J111,'3e (voluntary)'!J111)=0,\":\",SUM('3a'!J111,'3b'!J111,'3c'!J111,'3d'!J111,'3e (voluntary)'!J111))","v":":"},null,{"$f":"IF(COUNT('3a'!L111,'3b'!L111,'3c'!L111,'3d'!L111,'3e (voluntary)'!L111)=0,\":\",SUM('3a'!L111,'3b'!L111,'3c'!L111,'3d'!L111,'3e (voluntary)'!L111))","v":":"},null,{"$f":"IF(COUNT('3a'!N111,'3b'!N111,'3c'!N111,'3d'!N111,'3e (voluntary)'!N111)=0,\":\",SUM('3a'!N111,'3b'!N111,'3c'!N111,'3d'!N111,'3e (voluntary)'!N111))","v":":"},null,{"$f":"IF(COUNT('3a'!P111,'3b'!P111,'3c'!P111,'3d'!P111,'3e (voluntary)'!P111)=0,\":\",SUM('3a'!P111,'3b'!P111,'3c'!P111,'3d'!P111,'3e (voluntary)'!P111))","v":":"},null,{"$f":"IF(COUNT('3a'!R111,'3b'!R111,'3c'!R111,'3d'!R111,'3e (voluntary)'!R111)=0,\":\",SUM('3a'!R111,'3b'!R111,'3c'!R111,'3d'!R111,'3e (voluntary)'!R111))","v":":"},null,{"$f":"IF(COUNT('3a'!T111,'3b'!T111,'3c'!T111,'3d'!T111,'3e (voluntary)'!T111)=0,\":\",SUM('3a'!T111,'3b'!T111,'3c'!T111,'3d'!T111,'3e (voluntary)'!T111))","v":":"},null,{"$f":"IF(COUNT('3a'!V111,'3b'!V111,'3c'!V111,'3d'!V111,'3e (voluntary)'!V111)=0,\":\",SUM('3a'!V111,'3b'!V111,'3c'!V111,'3d'!V111,'3e (voluntary)'!V111))","v":":"},null,{"$f":"IF(COUNT('3a'!X111,'3b'!X111,'3c'!X111,'3d'!X111,'3e (voluntary)'!X111)=0,\":\",SUM('3a'!X111,'3b'!X111,'3c'!X111,'3d'!X111,'3e (voluntary)'!X111))","v":":"},null,{"$f":"IF(COUNT('3a'!Z111,'3b'!Z111,'3c'!Z111,'3d'!Z111,'3e (voluntary)'!Z111)=0,\":\",SUM('3a'!Z111,'3b'!Z111,'3c'!Z111,'3d'!Z111,'3e (voluntary)'!Z111))","v":":"},null,{"$f":"IF(COUNT('3a'!AB111,'3b'!AB111,'3c'!AB111,'3d'!AB111,'3e (voluntary)'!AB111)=0,\":\",SUM('3a'!AB111,'3b'!AB111,'3c'!AB111,'3d'!AB111,'3e (voluntary)'!AB111))","v":":"},null,{"$f":"IF(COUNT('3a'!AD111,'3b'!AD111,'3c'!AD111,'3d'!AD111,'3e (voluntary)'!AD111)=0,\":\",SUM('3a'!AD111,'3b'!AD111,'3c'!AD111,'3d'!AD111,'3e (voluntary)'!AD111))","v":":"},null,{"$f":"IF(COUNT('3a'!AF111,'3b'!AF111,'3c'!AF111,'3d'!AF111,'3e (voluntary)'!AF111)=0,\":\",SUM('3a'!AF111,'3b'!AF111,'3c'!AF111,'3d'!AF111,'3e (voluntary)'!AF111))","v":":"}]
["S11_S12","EP_BUS","EPS_P2_NEPS",null,null,null,null,null,2029,{"$f":"IF(COUNT('3a'!J112,'3b'!J112,'3c'!J112,'3d'!J112,'3e (voluntary)'!J112)=0,\":\",SUM('3a'!J112,'3b'!J112,'3c'!J112,'3d'!J112,'3e (voluntary)'!J112))","v":":"},null,{"$f":"IF(COUNT('3a'!L112,'3b'!L112,'3c'!L112,'3d'!L112,'3e (voluntary)'!L112)=0,\":\",SUM('3a'!L112,'3b'!L112,'3c'!L112,'3d'!L112,'3e (voluntary)'!L112))","v":":"},null,{"$f":"IF(COUNT('3a'!N112,'3b'!N112,'3c'!N112,'3d'!N112,'3e (voluntary)'!N112)=0,\":\",SUM('3a'!N112,'3b'!N112,'3c'!N112,'3d'!N112,'3e (voluntary)'!N112))","v":":"},null,{"$f":"IF(COUNT('3a'!P112,'3b'!P112,'3c'!P112,'3d'!P112,'3e (voluntary)'!P112)=0,\":\",SUM('3a'!P112,'3b'!P112,'3c'!P112,'3d'!P112,'3e (voluntary)'!P112))","v":":"},null,{"$f":"IF(COUNT('3a'!R112,'3b'!R112,'3c'!R112,'3d'!R112,'3e (voluntary)'!R112)=0,\":\",SUM('3a'!R112,'3b'!R112,'3c'!R112,'3d'!R112,'3e (voluntary)'!R112))","v":":"},null,{"$f":"IF(COUNT('3a'!T112,'3b'!T112,'3c'!T112,'3d'!T112,'3e (voluntary)'!T112)=0,\":\",SUM('3a'!T112,'3b'!T112,'3c'!T112,'3d'!T112,'3e (voluntary)'!T112))","v":":"},null,{"$f":"IF(COUNT('3a'!V112,'3b'!V112,'3c'!V112,'3d'!V112,'3e (voluntary)'!V112)=0,\":\",SUM('3a'!V112,'3b'!V112,'3c'!V112,'3d'!V112,'3e (voluntary)'!V112))","v":":"},null,{"$f":"IF(COUNT('3a'!X112,'3b'!X112,'3c'!X112,'3d'!X112,'3e (voluntary)'!X112)=0,\":\",SUM('3a'!X112,'3b'!X112,'3c'!X112,'3d'!X112,'3e (voluntary)'!X112))","v":":"},null,{"$f":"IF(COUNT('3a'!Z112,'3b'!Z112,'3c'!Z112,'3d'!Z112,'3e (voluntary)'!Z112)=0,\":\",SUM('3a'!Z112,'3b'!Z112,'3c'!Z112,'3d'!Z112,'3e (voluntary)'!Z112))","v":":"},null,{"$f":"IF(COUNT('3a'!AB112,'3b'!AB112,'3c'!AB112,'3d'!AB112,'3e (voluntary)'!AB112)=0,\":\",SUM('3a'!AB112,'3b'!AB112,'3c'!AB112,'3d'!AB112,'3e (voluntary)'!AB112))","v":":"},null,{"$f":"IF(COUNT('3a'!AD112,'3b'!AD112,'3c'!AD112,'3d'!AD112,'3e (voluntary)'!AD112)=0,\":\",SUM('3a'!AD112,'3b'!AD112,'3c'!AD112,'3d'!AD112,'3e (voluntary)'!AD112))","v":":"},null,{"$f":"IF(COUNT('3a'!AF112,'3b'!AF112,'3c'!AF112,'3d'!AF112,'3e (voluntary)'!AF112)=0,\":\",SUM('3a'!AF112,'3b'!AF112,'3c'!AF112,'3d'!AF112,'3e (voluntary)'!AF112))","v":":"}]
["S11_S12","EP_BUS","EPS_P2_NEPS",null,null,null,null,null,2030,{"$f":"IF(COUNT('3a'!J113,'3b'!J113,'3c'!J113,'3d'!J113,'3e (voluntary)'!J113)=0,\":\",SUM('3a'!J113,'3b'!J113,'3c'!J113,'3d'!J113,'3e (voluntary)'!J113))","v":":"},null,{"$f":"IF(COUNT('3a'!L113,'3b'!L113,'3c'!L113,'3d'!L113,'3e (voluntary)'!L113)=0,\":\",SUM('3a'!L113,'3b'!L113,'3c'!L113,'3d'!L113,'3e (voluntary)'!L113))","v":":"},null,{"$f":"IF(COUNT('3a'!N113,'3b'!N113,'3c'!N113,'3d'!N113,'3e (voluntary)'!N113)=0,\":\",SUM('3a'!N113,'3b'!N113,'3c'!N113,'3d'!N113,'3e (voluntary)'!N113))","v":":"},null,{"$f":"IF(COUNT('3a'!P113,'3b'!P113,'3c'!P113,'3d'!P113,'3e (voluntary)'!P113)=0,\":\",SUM('3a'!P113,'3b'!P113,'3c'!P113,'3d'!P113,'3e (voluntary)'!P113))","v":":"},null,{"$f":"IF(COUNT('3a'!R113,'3b'!R113,'3c'!R113,'3d'!R113,'3e (voluntary)'!R113)=0,\":\",SUM('3a'!R113,'3b'!R113,'3c'!R113,'3d'!R113,'3e (voluntary)'!R113))","v":":"},null,{"$f":"IF(COUNT('3a'!T113,'3b'!T113,'3c'!T113,'3d'!T113,'3e (voluntary)'!T113)=0,\":\",SUM('3a'!T113,'3b'!T113,'3c'!T113,'3d'!T113,'3e (voluntary)'!T113))","v":":"},null,{"$f":"IF(COUNT('3a'!V113,'3b'!V113,'3c'!V113,'3d'!V113,'3e (voluntary)'!V113)=0,\":\",SUM('3a'!V113,'3b'!V113,'3c'!V113,'3d'!V113,'3e (voluntary)'!V113))","v":":"},null,{"$f":"IF(COUNT('3a'!X113,'3b'!X113,'3c'!X113,'3d'!X113,'3e (voluntary)'!X113)=0,\":\",SUM('3a'!X113,'3b'!X113,'3c'!X113,'3d'!X113,'3e (voluntary)'!X113))","v":":"},null,{"$f":"IF(COUNT('3a'!Z113,'3b'!Z113,'3c'!Z113,'3d'!Z113,'3e (voluntary)'!Z113)=0,\":\",SUM('3a'!Z113,'3b'!Z113,'3c'!Z113,'3d'!Z113,'3e (voluntary)'!Z113))","v":":"},null,{"$f":"IF(COUNT('3a'!AB113,'3b'!AB113,'3c'!AB113,'3d'!AB113,'3e (voluntary)'!AB113)=0,\":\",SUM('3a'!AB113,'3b'!AB113,'3c'!AB113,'3d'!AB113,'3e (voluntary)'!AB113))","v":":"},null,{"$f":"IF(COUNT('3a'!AD113,'3b'!AD113,'3c'!AD113,'3d'!AD113,'3e (voluntary)'!AD113)=0,\":\",SUM('3a'!AD113,'3b'!AD113,'3c'!AD113,'3d'!AD113,'3e (voluntary)'!AD113))","v":":"},null,{"$f":"IF(COUNT('3a'!AF113,'3b'!AF113,'3c'!AF113,'3d'!AF113,'3e (voluntary)'!AF113)=0,\":\",SUM('3a'!AF113,'3b'!AF113,'3c'!AF113,'3d'!AF113,'3e (voluntary)'!AF113))","v":":"}]
["S11_S12","EP_BUS","EPS_P2_NEPS",null,null,null,null,null,2031,{"$f":"IF(COUNT('3a'!J114,'3b'!J114,'3c'!J114,'3d'!J114,'3e (voluntary)'!J114)=0,\":\",SUM('3a'!J114,'3b'!J114,'3c'!J114,'3d'!J114,'3e (voluntary)'!J114))","v":":"},null,{"$f":"IF(COUNT('3a'!L114,'3b'!L114,'3c'!L114,'3d'!L114,'3e (voluntary)'!L114)=0,\":\",SUM('3a'!L114,'3b'!L114,'3c'!L114,'3d'!L114,'3e (voluntary)'!L114))","v":":"},null,{"$f":"IF(COUNT('3a'!N114,'3b'!N114,'3c'!N114,'3d'!N114,'3e (voluntary)'!N114)=0,\":\",SUM('3a'!N114,'3b'!N114,'3c'!N114,'3d'!N114,'3e (voluntary)'!N114))","v":":"},null,{"$f":"IF(COUNT('3a'!P114,'3b'!P114,'3c'!P114,'3d'!P114,'3e (voluntary)'!P114)=0,\":\",SUM('3a'!P114,'3b'!P114,'3c'!P114,'3d'!P114,'3e (voluntary)'!P114))","v":":"},null,{"$f":"IF(COUNT('3a'!R114,'3b'!R114,'3c'!R114,'3d'!R114,'3e (voluntary)'!R114)=0,\":\",SUM('3a'!R114,'3b'!R114,'3c'!R114,'3d'!R114,'3e (voluntary)'!R114))","v":":"},null,{"$f":"IF(COUNT('3a'!T114,'3b'!T114,'3c'!T114,'3d'!T114,'3e (voluntary)'!T114)=0,\":\",SUM('3a'!T114,'3b'!T114,'3c'!T114,'3d'!T114,'3e (voluntary)'!T114))","v":":"},null,{"$f":"IF(COUNT('3a'!V114,'3b'!V114,'3c'!V114,'3d'!V114,'3e (voluntary)'!V114)=0,\":\",SUM('3a'!V114,'3b'!V114,'3c'!V114,'3d'!V114,'3e (voluntary)'!V114))","v":":"},null,{"$f":"IF(COUNT('3a'!X114,'3b'!X114,'3c'!X114,'3d'!X114,'3e (voluntary)'!X114)=0,\":\",SUM('3a'!X114,'3b'!X114,'3c'!X114,'3d'!X114,'3e (voluntary)'!X114))","v":":"},null,{"$f":"IF(COUNT('3a'!Z114,'3b'!Z114,'3c'!Z114,'3d'!Z114,'3e (voluntary)'!Z114)=0,\":\",SUM('3a'!Z114,'3b'!Z114,'3c'!Z114,'3d'!Z114,'3e (voluntary)'!Z114))","v":":"},null,{"$f":"IF(COUNT('3a'!AB114,'3b'!AB114,'3c'!AB114,'3d'!AB114,'3e (voluntary)'!AB114)=0,\":\",SUM('3a'!AB114,'3b'!AB114,'3c'!AB114,'3d'!AB114,'3e (voluntary)'!AB114))","v":":"},null,{"$f":"IF(COUNT('3a'!AD114,'3b'!AD114,'3c'!AD114,'3d'!AD114,'3e (voluntary)'!AD114)=0,\":\",SUM('3a'!AD114,'3b'!AD114,'3c'!AD114,'3d'!AD114,'3e (voluntary)'!AD114))","v":":"},null,{"$f":"IF(COUNT('3a'!AF114,'3b'!AF114,'3c'!AF114,'3d'!AF114,'3e (voluntary)'!AF114)=0,\":\",SUM('3a'!AF114,'3b'!AF114,'3c'!AF114,'3d'!AF114,'3e (voluntary)'!AF114))","v":":"}]
["S11_S12","EP_BUS","EPS_D1",null,"( D1.3 ) Compensation of employees",null,null,null,2014,{"$f":"IF(COUNT('3a'!J115,'3b'!J115,'3c'!J115,'3d'!J115,'3e (voluntary)'!J115)=0,\":\",SUM('3a'!J115,'3b'!J115,'3c'!J115,'3d'!J115,'3e (voluntary)'!J115))","v":":"},null,{"$f":"IF(COUNT('3a'!L115,'3b'!L115,'3c'!L115,'3d'!L115,'3e (voluntary)'!L115)=0,\":\",SUM('3a'!L115,'3b'!L115,'3c'!L115,'3d'!L115,'3e (voluntary)'!L115))","v":":"},null,{"$f":"IF(COUNT('3a'!N115,'3b'!N115,'3c'!N115,'3d'!N115,'3e (voluntary)'!N115)=0,\":\",SUM('3a'!N115,'3b'!N115,'3c'!N115,'3d'!N115,'3e (voluntary)'!N115))","v":":"},null,{"$f":"IF(COUNT('3a'!P115,'3b'!P115,'3c'!P115,'3d'!P115,'3e (voluntary)'!P115)=0,\":\",SUM('3a'!P115,'3b'!P115,'3c'!P115,'3d'!P115,'3e (voluntary)'!P115))","v":":"},null,{"$f":"IF(COUNT('3a'!R115,'3b'!R115,'3c'!R115,'3d'!R115,'3e (voluntary)'!R115)=0,\":\",SUM('3a'!R115,'3b'!R115,'3c'!R115,'3d'!R115,'3e (voluntary)'!R115))","v":":"},null,{"$f":"IF(COUNT('3a'!T115,'3b'!T115,'3c'!T115,'3d'!T115,'3e (voluntary)'!T115)=0,\":\",SUM('3a'!T115,'3b'!T115,'3c'!T115,'3d'!T115,'3e (voluntary)'!T115))","v":":"},null,{"$f":"IF(COUNT('3a'!V115,'3b'!V115,'3c'!V115,'3d'!V115,'3e (voluntary)'!V115)=0,\":\",SUM('3a'!V115,'3b'!V115,'3c'!V115,'3d'!V115,'3e (voluntary)'!V115))","v":":"},null,{"$f":"IF(COUNT('3a'!X115,'3b'!X115,'3c'!X115,'3d'!X115,'3e (voluntary)'!X115)=0,\":\",SUM('3a'!X115,'3b'!X115,'3c'!X115,'3d'!X115,'3e (voluntary)'!X115))","v":":"},null,{"$f":"IF(COUNT('3a'!Z115,'3b'!Z115,'3c'!Z115,'3d'!Z115,'3e (voluntary)'!Z115)=0,\":\",SUM('3a'!Z115,'3b'!Z115,'3c'!Z115,'3d'!Z115,'3e (voluntary)'!Z115))","v":":"},null,{"$f":"IF(COUNT('3a'!AB115,'3b'!AB115,'3c'!AB115,'3d'!AB115,'3e (voluntary)'!AB115)=0,\":\",SUM('3a'!AB115,'3b'!AB115,'3c'!AB115,'3d'!AB115,'3e (voluntary)'!AB115))","v":":"},null,{"$f":"IF(COUNT('3a'!AD115,'3b'!AD115,'3c'!AD115,'3d'!AD115,'3e (voluntary)'!AD115)=0,\":\",SUM('3a'!AD115,'3b'!AD115,'3c'!AD115,'3d'!AD115,'3e (voluntary)'!AD115))","v":":"},null,{"$f":"IF(COUNT('3a'!AF115,'3b'!AF115,'3c'!AF115,'3d'!AF115,'3e (voluntary)'!AF115)=0,\":\",SUM('3a'!AF115,'3b'!AF115,'3c'!AF115,'3d'!AF115,'3e (voluntary)'!AF115))","v":":"}]
["S11_S12","EP_BUS","EPS_D1",null,null,null,null,null,2015,{"$f":"IF(COUNT('3a'!J116,'3b'!J116,'3c'!J116,'3d'!J116,'3e (voluntary)'!J116)=0,\":\",SUM('3a'!J116,'3b'!J116,'3c'!J116,'3d'!J116,'3e (voluntary)'!J116))","v":":"},null,{"$f":"IF(COUNT('3a'!L116,'3b'!L116,'3c'!L116,'3d'!L116,'3e (voluntary)'!L116)=0,\":\",SUM('3a'!L116,'3b'!L116,'3c'!L116,'3d'!L116,'3e (voluntary)'!L116))","v":":"},null,{"$f":"IF(COUNT('3a'!N116,'3b'!N116,'3c'!N116,'3d'!N116,'3e (voluntary)'!N116)=0,\":\",SUM('3a'!N116,'3b'!N116,'3c'!N116,'3d'!N116,'3e (voluntary)'!N116))","v":":"},null,{"$f":"IF(COUNT('3a'!P116,'3b'!P116,'3c'!P116,'3d'!P116,'3e (voluntary)'!P116)=0,\":\",SUM('3a'!P116,'3b'!P116,'3c'!P116,'3d'!P116,'3e (voluntary)'!P116))","v":":"},null,{"$f":"IF(COUNT('3a'!R116,'3b'!R116,'3c'!R116,'3d'!R116,'3e (voluntary)'!R116)=0,\":\",SUM('3a'!R116,'3b'!R116,'3c'!R116,'3d'!R116,'3e (voluntary)'!R116))","v":":"},null,{"$f":"IF(COUNT('3a'!T116,'3b'!T116,'3c'!T116,'3d'!T116,'3e (voluntary)'!T116)=0,\":\",SUM('3a'!T116,'3b'!T116,'3c'!T116,'3d'!T116,'3e (voluntary)'!T116))","v":":"},null,{"$f":"IF(COUNT('3a'!V116,'3b'!V116,'3c'!V116,'3d'!V116,'3e (voluntary)'!V116)=0,\":\",SUM('3a'!V116,'3b'!V116,'3c'!V116,'3d'!V116,'3e (voluntary)'!V116))","v":":"},null,{"$f":"IF(COUNT('3a'!X116,'3b'!X116,'3c'!X116,'3d'!X116,'3e (voluntary)'!X116)=0,\":\",SUM('3a'!X116,'3b'!X116,'3c'!X116,'3d'!X116,'3e (voluntary)'!X116))","v":":"},null,{"$f":"IF(COUNT('3a'!Z116,'3b'!Z116,'3c'!Z116,'3d'!Z116,'3e (voluntary)'!Z116)=0,\":\",SUM('3a'!Z116,'3b'!Z116,'3c'!Z116,'3d'!Z116,'3e (voluntary)'!Z116))","v":":"},null,{"$f":"IF(COUNT('3a'!AB116,'3b'!AB116,'3c'!AB116,'3d'!AB116,'3e (voluntary)'!AB116)=0,\":\",SUM('3a'!AB116,'3b'!AB116,'3c'!AB116,'3d'!AB116,'3e (voluntary)'!AB116))","v":":"},null,{"$f":"IF(COUNT('3a'!AD116,'3b'!AD116,'3c'!AD116,'3d'!AD116,'3e (voluntary)'!AD116)=0,\":\",SUM('3a'!AD116,'3b'!AD116,'3c'!AD116,'3d'!AD116,'3e (voluntary)'!AD116))","v":":"},null,{"$f":"IF(COUNT('3a'!AF116,'3b'!AF116,'3c'!AF116,'3d'!AF116,'3e (voluntary)'!AF116)=0,\":\",SUM('3a'!AF116,'3b'!AF116,'3c'!AF116,'3d'!AF116,'3e (voluntary)'!AF116))","v":":"}]
["S11_S12","EP_BUS","EPS_D1",null,null,null,null,null,2016,{"$f":"IF(COUNT('3a'!J117,'3b'!J117,'3c'!J117,'3d'!J117,'3e (voluntary)'!J117)=0,\":\",SUM('3a'!J117,'3b'!J117,'3c'!J117,'3d'!J117,'3e (voluntary)'!J117))","v":":"},null,{"$f":"IF(COUNT('3a'!L117,'3b'!L117,'3c'!L117,'3d'!L117,'3e (voluntary)'!L117)=0,\":\",SUM('3a'!L117,'3b'!L117,'3c'!L117,'3d'!L117,'3e (voluntary)'!L117))","v":":"},null,{"$f":"IF(COUNT('3a'!N117,'3b'!N117,'3c'!N117,'3d'!N117,'3e (voluntary)'!N117)=0,\":\",SUM('3a'!N117,'3b'!N117,'3c'!N117,'3d'!N117,'3e (voluntary)'!N117))","v":":"},null,{"$f":"IF(COUNT('3a'!P117,'3b'!P117,'3c'!P117,'3d'!P117,'3e (voluntary)'!P117)=0,\":\",SUM('3a'!P117,'3b'!P117,'3c'!P117,'3d'!P117,'3e (voluntary)'!P117))","v":":"},null,{"$f":"IF(COUNT('3a'!R117,'3b'!R117,'3c'!R117,'3d'!R117,'3e (voluntary)'!R117)=0,\":\",SUM('3a'!R117,'3b'!R117,'3c'!R117,'3d'!R117,'3e (voluntary)'!R117))","v":":"},null,{"$f":"IF(COUNT('3a'!T117,'3b'!T117,'3c'!T117,'3d'!T117,'3e (voluntary)'!T117)=0,\":\",SUM('3a'!T117,'3b'!T117,'3c'!T117,'3d'!T117,'3e (voluntary)'!T117))","v":":"},null,{"$f":"IF(COUNT('3a'!V117,'3b'!V117,'3c'!V117,'3d'!V117,'3e (voluntary)'!V117)=0,\":\",SUM('3a'!V117,'3b'!V117,'3c'!V117,'3d'!V117,'3e (voluntary)'!V117))","v":":"},null,{"$f":"IF(COUNT('3a'!X117,'3b'!X117,'3c'!X117,'3d'!X117,'3e (voluntary)'!X117)=0,\":\",SUM('3a'!X117,'3b'!X117,'3c'!X117,'3d'!X117,'3e (voluntary)'!X117))","v":":"},null,{"$f":"IF(COUNT('3a'!Z117,'3b'!Z117,'3c'!Z117,'3d'!Z117,'3e (voluntary)'!Z117)=0,\":\",SUM('3a'!Z117,'3b'!Z117,'3c'!Z117,'3d'!Z117,'3e (voluntary)'!Z117))","v":":"},null,{"$f":"IF(COUNT('3a'!AB117,'3b'!AB117,'3c'!AB117,'3d'!AB117,'3e (voluntary)'!AB117)=0,\":\",SUM('3a'!AB117,'3b'!AB117,'3c'!AB117,'3d'!AB117,'3e (voluntary)'!AB117))","v":":"},null,{"$f":"IF(COUNT('3a'!AD117,'3b'!AD117,'3c'!AD117,'3d'!AD117,'3e (voluntary)'!AD117)=0,\":\",SUM('3a'!AD117,'3b'!AD117,'3c'!AD117,'3d'!AD117,'3e (voluntary)'!AD117))","v":":"},null,{"$f":"IF(COUNT('3a'!AF117,'3b'!AF117,'3c'!AF117,'3d'!AF117,'3e (voluntary)'!AF117)=0,\":\",SUM('3a'!AF117,'3b'!AF117,'3c'!AF117,'3d'!AF117,'3e (voluntary)'!AF117))","v":":"}]
["S11_S12","EP_BUS","EPS_D1",null,null,null,null,null,2017,{"$f":"IF(COUNT('3a'!J118,'3b'!J118,'3c'!J118,'3d'!J118,'3e (voluntary)'!J118)=0,\":\",SUM('3a'!J118,'3b'!J118,'3c'!J118,'3d'!J118,'3e (voluntary)'!J118))","v":":"},null,{"$f":"IF(COUNT('3a'!L118,'3b'!L118,'3c'!L118,'3d'!L118,'3e (voluntary)'!L118)=0,\":\",SUM('3a'!L118,'3b'!L118,'3c'!L118,'3d'!L118,'3e (voluntary)'!L118))","v":":"},null,{"$f":"IF(COUNT('3a'!N118,'3b'!N118,'3c'!N118,'3d'!N118,'3e (voluntary)'!N118)=0,\":\",SUM('3a'!N118,'3b'!N118,'3c'!N118,'3d'!N118,'3e (voluntary)'!N118))","v":":"},null,{"$f":"IF(COUNT('3a'!P118,'3b'!P118,'3c'!P118,'3d'!P118,'3e (voluntary)'!P118)=0,\":\",SUM('3a'!P118,'3b'!P118,'3c'!P118,'3d'!P118,'3e (voluntary)'!P118))","v":":"},null,{"$f":"IF(COUNT('3a'!R118,'3b'!R118,'3c'!R118,'3d'!R118,'3e (voluntary)'!R118)=0,\":\",SUM('3a'!R118,'3b'!R118,'3c'!R118,'3d'!R118,'3e (voluntary)'!R118))","v":":"},null,{"$f":"IF(COUNT('3a'!T118,'3b'!T118,'3c'!T118,'3d'!T118,'3e (voluntary)'!T118)=0,\":\",SUM('3a'!T118,'3b'!T118,'3c'!T118,'3d'!T118,'3e (voluntary)'!T118))","v":":"},null,{"$f":"IF(COUNT('3a'!V118,'3b'!V118,'3c'!V118,'3d'!V118,'3e (voluntary)'!V118)=0,\":\",SUM('3a'!V118,'3b'!V118,'3c'!V118,'3d'!V118,'3e (voluntary)'!V118))","v":":"},null,{"$f":"IF(COUNT('3a'!X118,'3b'!X118,'3c'!X118,'3d'!X118,'3e (voluntary)'!X118)=0,\":\",SUM('3a'!X118,'3b'!X118,'3c'!X118,'3d'!X118,'3e (voluntary)'!X118))","v":":"},null,{"$f":"IF(COUNT('3a'!Z118,'3b'!Z118,'3c'!Z118,'3d'!Z118,'3e (voluntary)'!Z118)=0,\":\",SUM('3a'!Z118,'3b'!Z118,'3c'!Z118,'3d'!Z118,'3e (voluntary)'!Z118))","v":":"},null,{"$f":"IF(COUNT('3a'!AB118,'3b'!AB118,'3c'!AB118,'3d'!AB118,'3e (voluntary)'!AB118)=0,\":\",SUM('3a'!AB118,'3b'!AB118,'3c'!AB118,'3d'!AB118,'3e (voluntary)'!AB118))","v":":"},null,{"$f":"IF(COUNT('3a'!AD118,'3b'!AD118,'3c'!AD118,'3d'!AD118,'3e (voluntary)'!AD118)=0,\":\",SUM('3a'!AD118,'3b'!AD118,'3c'!AD118,'3d'!AD118,'3e (voluntary)'!AD118))","v":":"},null,{"$f":"IF(COUNT('3a'!AF118,'3b'!AF118,'3c'!AF118,'3d'!AF118,'3e (voluntary)'!AF118)=0,\":\",SUM('3a'!AF118,'3b'!AF118,'3c'!AF118,'3d'!AF118,'3e (voluntary)'!AF118))","v":":"}]
["S11_S12","EP_BUS","EPS_D1",null,null,null,null,null,2018,{"$f":"IF(COUNT('3a'!J119,'3b'!J119,'3c'!J119,'3d'!J119,'3e (voluntary)'!J119)=0,\":\",SUM('3a'!J119,'3b'!J119,'3c'!J119,'3d'!J119,'3e (voluntary)'!J119))","v":":"},null,{"$f":"IF(COUNT('3a'!L119,'3b'!L119,'3c'!L119,'3d'!L119,'3e (voluntary)'!L119)=0,\":\",SUM('3a'!L119,'3b'!L119,'3c'!L119,'3d'!L119,'3e (voluntary)'!L119))","v":":"},null,{"$f":"IF(COUNT('3a'!N119,'3b'!N119,'3c'!N119,'3d'!N119,'3e (voluntary)'!N119)=0,\":\",SUM('3a'!N119,'3b'!N119,'3c'!N119,'3d'!N119,'3e (voluntary)'!N119))","v":":"},null,{"$f":"IF(COUNT('3a'!P119,'3b'!P119,'3c'!P119,'3d'!P119,'3e (voluntary)'!P119)=0,\":\",SUM('3a'!P119,'3b'!P119,'3c'!P119,'3d'!P119,'3e (voluntary)'!P119))","v":":"},null,{"$f":"IF(COUNT('3a'!R119,'3b'!R119,'3c'!R119,'3d'!R119,'3e (voluntary)'!R119)=0,\":\",SUM('3a'!R119,'3b'!R119,'3c'!R119,'3d'!R119,'3e (voluntary)'!R119))","v":":"},null,{"$f":"IF(COUNT('3a'!T119,'3b'!T119,'3c'!T119,'3d'!T119,'3e (voluntary)'!T119)=0,\":\",SUM('3a'!T119,'3b'!T119,'3c'!T119,'3d'!T119,'3e (voluntary)'!T119))","v":":"},null,{"$f":"IF(COUNT('3a'!V119,'3b'!V119,'3c'!V119,'3d'!V119,'3e (voluntary)'!V119)=0,\":\",SUM('3a'!V119,'3b'!V119,'3c'!V119,'3d'!V119,'3e (voluntary)'!V119))","v":":"},null,{"$f":"IF(COUNT('3a'!X119,'3b'!X119,'3c'!X119,'3d'!X119,'3e (voluntary)'!X119)=0,\":\",SUM('3a'!X119,'3b'!X119,'3c'!X119,'3d'!X119,'3e (voluntary)'!X119))","v":":"},null,{"$f":"IF(COUNT('3a'!Z119,'3b'!Z119,'3c'!Z119,'3d'!Z119,'3e (voluntary)'!Z119)=0,\":\",SUM('3a'!Z119,'3b'!Z119,'3c'!Z119,'3d'!Z119,'3e (voluntary)'!Z119))","v":":"},null,{"$f":"IF(COUNT('3a'!AB119,'3b'!AB119,'3c'!AB119,'3d'!AB119,'3e (voluntary)'!AB119)=0,\":\",SUM('3a'!AB119,'3b'!AB119,'3c'!AB119,'3d'!AB119,'3e (voluntary)'!AB119))","v":":"},null,{"$f":"IF(COUNT('3a'!AD119,'3b'!AD119,'3c'!AD119,'3d'!AD119,'3e (voluntary)'!AD119)=0,\":\",SUM('3a'!AD119,'3b'!AD119,'3c'!AD119,'3d'!AD119,'3e (voluntary)'!AD119))","v":":"},null,{"$f":"IF(COUNT('3a'!AF119,'3b'!AF119,'3c'!AF119,'3d'!AF119,'3e (voluntary)'!AF119)=0,\":\",SUM('3a'!AF119,'3b'!AF119,'3c'!AF119,'3d'!AF119,'3e (voluntary)'!AF119))","v":":"}]
["S11_S12","EP_BUS","EPS_D1",null,null,null,null,null,2019,{"$f":"IF(COUNT('3a'!J120,'3b'!J120,'3c'!J120,'3d'!J120,'3e (voluntary)'!J120)=0,\":\",SUM('3a'!J120,'3b'!J120,'3c'!J120,'3d'!J120,'3e (voluntary)'!J120))","v":":"},null,{"$f":"IF(COUNT('3a'!L120,'3b'!L120,'3c'!L120,'3d'!L120,'3e (voluntary)'!L120)=0,\":\",SUM('3a'!L120,'3b'!L120,'3c'!L120,'3d'!L120,'3e (voluntary)'!L120))","v":":"},null,{"$f":"IF(COUNT('3a'!N120,'3b'!N120,'3c'!N120,'3d'!N120,'3e (voluntary)'!N120)=0,\":\",SUM('3a'!N120,'3b'!N120,'3c'!N120,'3d'!N120,'3e (voluntary)'!N120))","v":":"},null,{"$f":"IF(COUNT('3a'!P120,'3b'!P120,'3c'!P120,'3d'!P120,'3e (voluntary)'!P120)=0,\":\",SUM('3a'!P120,'3b'!P120,'3c'!P120,'3d'!P120,'3e (voluntary)'!P120))","v":":"},null,{"$f":"IF(COUNT('3a'!R120,'3b'!R120,'3c'!R120,'3d'!R120,'3e (voluntary)'!R120)=0,\":\",SUM('3a'!R120,'3b'!R120,'3c'!R120,'3d'!R120,'3e (voluntary)'!R120))","v":":"},null,{"$f":"IF(COUNT('3a'!T120,'3b'!T120,'3c'!T120,'3d'!T120,'3e (voluntary)'!T120)=0,\":\",SUM('3a'!T120,'3b'!T120,'3c'!T120,'3d'!T120,'3e (voluntary)'!T120))","v":":"},null,{"$f":"IF(COUNT('3a'!V120,'3b'!V120,'3c'!V120,'3d'!V120,'3e (voluntary)'!V120)=0,\":\",SUM('3a'!V120,'3b'!V120,'3c'!V120,'3d'!V120,'3e (voluntary)'!V120))","v":":"},null,{"$f":"IF(COUNT('3a'!X120,'3b'!X120,'3c'!X120,'3d'!X120,'3e (voluntary)'!X120)=0,\":\",SUM('3a'!X120,'3b'!X120,'3c'!X120,'3d'!X120,'3e (voluntary)'!X120))","v":":"},null,{"$f":"IF(COUNT('3a'!Z120,'3b'!Z120,'3c'!Z120,'3d'!Z120,'3e (voluntary)'!Z120)=0,\":\",SUM('3a'!Z120,'3b'!Z120,'3c'!Z120,'3d'!Z120,'3e (voluntary)'!Z120))","v":":"},null,{"$f":"IF(COUNT('3a'!AB120,'3b'!AB120,'3c'!AB120,'3d'!AB120,'3e (voluntary)'!AB120)=0,\":\",SUM('3a'!AB120,'3b'!AB120,'3c'!AB120,'3d'!AB120,'3e (voluntary)'!AB120))","v":":"},null,{"$f":"IF(COUNT('3a'!AD120,'3b'!AD120,'3c'!AD120,'3d'!AD120,'3e (voluntary)'!AD120)=0,\":\",SUM('3a'!AD120,'3b'!AD120,'3c'!AD120,'3d'!AD120,'3e (voluntary)'!AD120))","v":":"},null,{"$f":"IF(COUNT('3a'!AF120,'3b'!AF120,'3c'!AF120,'3d'!AF120,'3e (voluntary)'!AF120)=0,\":\",SUM('3a'!AF120,'3b'!AF120,'3c'!AF120,'3d'!AF120,'3e (voluntary)'!AF120))","v":":"}]
["S11_S12","EP_BUS","EPS_D1",null,null,null,null,null,2020,{"$f":"IF(COUNT('3a'!J121,'3b'!J121,'3c'!J121,'3d'!J121,'3e (voluntary)'!J121)=0,\":\",SUM('3a'!J121,'3b'!J121,'3c'!J121,'3d'!J121,'3e (voluntary)'!J121))","v":":"},null,{"$f":"IF(COUNT('3a'!L121,'3b'!L121,'3c'!L121,'3d'!L121,'3e (voluntary)'!L121)=0,\":\",SUM('3a'!L121,'3b'!L121,'3c'!L121,'3d'!L121,'3e (voluntary)'!L121))","v":":"},null,{"$f":"IF(COUNT('3a'!N121,'3b'!N121,'3c'!N121,'3d'!N121,'3e (voluntary)'!N121)=0,\":\",SUM('3a'!N121,'3b'!N121,'3c'!N121,'3d'!N121,'3e (voluntary)'!N121))","v":":"},null,{"$f":"IF(COUNT('3a'!P121,'3b'!P121,'3c'!P121,'3d'!P121,'3e (voluntary)'!P121)=0,\":\",SUM('3a'!P121,'3b'!P121,'3c'!P121,'3d'!P121,'3e (voluntary)'!P121))","v":":"},null,{"$f":"IF(COUNT('3a'!R121,'3b'!R121,'3c'!R121,'3d'!R121,'3e (voluntary)'!R121)=0,\":\",SUM('3a'!R121,'3b'!R121,'3c'!R121,'3d'!R121,'3e (voluntary)'!R121))","v":":"},null,{"$f":"IF(COUNT('3a'!T121,'3b'!T121,'3c'!T121,'3d'!T121,'3e (voluntary)'!T121)=0,\":\",SUM('3a'!T121,'3b'!T121,'3c'!T121,'3d'!T121,'3e (voluntary)'!T121))","v":":"},null,{"$f":"IF(COUNT('3a'!V121,'3b'!V121,'3c'!V121,'3d'!V121,'3e (voluntary)'!V121)=0,\":\",SUM('3a'!V121,'3b'!V121,'3c'!V121,'3d'!V121,'3e (voluntary)'!V121))","v":":"},null,{"$f":"IF(COUNT('3a'!X121,'3b'!X121,'3c'!X121,'3d'!X121,'3e (voluntary)'!X121)=0,\":\",SUM('3a'!X121,'3b'!X121,'3c'!X121,'3d'!X121,'3e (voluntary)'!X121))","v":":"},null,{"$f":"IF(COUNT('3a'!Z121,'3b'!Z121,'3c'!Z121,'3d'!Z121,'3e (voluntary)'!Z121)=0,\":\",SUM('3a'!Z121,'3b'!Z121,'3c'!Z121,'3d'!Z121,'3e (voluntary)'!Z121))","v":":"},null,{"$f":"IF(COUNT('3a'!AB121,'3b'!AB121,'3c'!AB121,'3d'!AB121,'3e (voluntary)'!AB121)=0,\":\",SUM('3a'!AB121,'3b'!AB121,'3c'!AB121,'3d'!AB121,'3e (voluntary)'!AB121))","v":":"},null,{"$f":"IF(COUNT('3a'!AD121,'3b'!AD121,'3c'!AD121,'3d'!AD121,'3e (voluntary)'!AD121)=0,\":\",SUM('3a'!AD121,'3b'!AD121,'3c'!AD121,'3d'!AD121,'3e (voluntary)'!AD121))","v":":"},null,{"$f":"IF(COUNT('3a'!AF121,'3b'!AF121,'3c'!AF121,'3d'!AF121,'3e (voluntary)'!AF121)=0,\":\",SUM('3a'!AF121,'3b'!AF121,'3c'!AF121,'3d'!AF121,'3e (voluntary)'!AF121))","v":":"}]
["S11_S12","EP_BUS","EPS_D1",null,null,null,null,null,2021,{"$f":"IF(COUNT('3a'!J122,'3b'!J122,'3c'!J122,'3d'!J122,'3e (voluntary)'!J122)=0,\":\",SUM('3a'!J122,'3b'!J122,'3c'!J122,'3d'!J122,'3e (voluntary)'!J122))","v":":"},null,{"$f":"IF(COUNT('3a'!L122,'3b'!L122,'3c'!L122,'3d'!L122,'3e (voluntary)'!L122)=0,\":\",SUM('3a'!L122,'3b'!L122,'3c'!L122,'3d'!L122,'3e (voluntary)'!L122))","v":":"},null,{"$f":"IF(COUNT('3a'!N122,'3b'!N122,'3c'!N122,'3d'!N122,'3e (voluntary)'!N122)=0,\":\",SUM('3a'!N122,'3b'!N122,'3c'!N122,'3d'!N122,'3e (voluntary)'!N122))","v":":"},null,{"$f":"IF(COUNT('3a'!P122,'3b'!P122,'3c'!P122,'3d'!P122,'3e (voluntary)'!P122)=0,\":\",SUM('3a'!P122,'3b'!P122,'3c'!P122,'3d'!P122,'3e (voluntary)'!P122))","v":":"},null,{"$f":"IF(COUNT('3a'!R122,'3b'!R122,'3c'!R122,'3d'!R122,'3e (voluntary)'!R122)=0,\":\",SUM('3a'!R122,'3b'!R122,'3c'!R122,'3d'!R122,'3e (voluntary)'!R122))","v":":"},null,{"$f":"IF(COUNT('3a'!T122,'3b'!T122,'3c'!T122,'3d'!T122,'3e (voluntary)'!T122)=0,\":\",SUM('3a'!T122,'3b'!T122,'3c'!T122,'3d'!T122,'3e (voluntary)'!T122))","v":":"},null,{"$f":"IF(COUNT('3a'!V122,'3b'!V122,'3c'!V122,'3d'!V122,'3e (voluntary)'!V122)=0,\":\",SUM('3a'!V122,'3b'!V122,'3c'!V122,'3d'!V122,'3e (voluntary)'!V122))","v":":"},null,{"$f":"IF(COUNT('3a'!X122,'3b'!X122,'3c'!X122,'3d'!X122,'3e (voluntary)'!X122)=0,\":\",SUM('3a'!X122,'3b'!X122,'3c'!X122,'3d'!X122,'3e (voluntary)'!X122))","v":":"},null,{"$f":"IF(COUNT('3a'!Z122,'3b'!Z122,'3c'!Z122,'3d'!Z122,'3e (voluntary)'!Z122)=0,\":\",SUM('3a'!Z122,'3b'!Z122,'3c'!Z122,'3d'!Z122,'3e (voluntary)'!Z122))","v":":"},null,{"$f":"IF(COUNT('3a'!AB122,'3b'!AB122,'3c'!AB122,'3d'!AB122,'3e (voluntary)'!AB122)=0,\":\",SUM('3a'!AB122,'3b'!AB122,'3c'!AB122,'3d'!AB122,'3e (voluntary)'!AB122))","v":":"},null,{"$f":"IF(COUNT('3a'!AD122,'3b'!AD122,'3c'!AD122,'3d'!AD122,'3e (voluntary)'!AD122)=0,\":\",SUM('3a'!AD122,'3b'!AD122,'3c'!AD122,'3d'!AD122,'3e (voluntary)'!AD122))","v":":"},null,{"$f":"IF(COUNT('3a'!AF122,'3b'!AF122,'3c'!AF122,'3d'!AF122,'3e (voluntary)'!AF122)=0,\":\",SUM('3a'!AF122,'3b'!AF122,'3c'!AF122,'3d'!AF122,'3e (voluntary)'!AF122))","v":":"}]
["S11_S12","EP_BUS","EPS_D1",null,null,null,null,null,2022,{"$f":"IF(COUNT('3a'!J123,'3b'!J123,'3c'!J123,'3d'!J123,'3e (voluntary)'!J123)=0,\":\",SUM('3a'!J123,'3b'!J123,'3c'!J123,'3d'!J123,'3e (voluntary)'!J123))","v":":"},null,{"$f":"IF(COUNT('3a'!L123,'3b'!L123,'3c'!L123,'3d'!L123,'3e (voluntary)'!L123)=0,\":\",SUM('3a'!L123,'3b'!L123,'3c'!L123,'3d'!L123,'3e (voluntary)'!L123))","v":":"},null,{"$f":"IF(COUNT('3a'!N123,'3b'!N123,'3c'!N123,'3d'!N123,'3e (voluntary)'!N123)=0,\":\",SUM('3a'!N123,'3b'!N123,'3c'!N123,'3d'!N123,'3e (voluntary)'!N123))","v":":"},null,{"$f":"IF(COUNT('3a'!P123,'3b'!P123,'3c'!P123,'3d'!P123,'3e (voluntary)'!P123)=0,\":\",SUM('3a'!P123,'3b'!P123,'3c'!P123,'3d'!P123,'3e (voluntary)'!P123))","v":":"},null,{"$f":"IF(COUNT('3a'!R123,'3b'!R123,'3c'!R123,'3d'!R123,'3e (voluntary)'!R123)=0,\":\",SUM('3a'!R123,'3b'!R123,'3c'!R123,'3d'!R123,'3e (voluntary)'!R123))","v":":"},null,{"$f":"IF(COUNT('3a'!T123,'3b'!T123,'3c'!T123,'3d'!T123,'3e (voluntary)'!T123)=0,\":\",SUM('3a'!T123,'3b'!T123,'3c'!T123,'3d'!T123,'3e (voluntary)'!T123))","v":":"},null,{"$f":"IF(COUNT('3a'!V123,'3b'!V123,'3c'!V123,'3d'!V123,'3e (voluntary)'!V123)=0,\":\",SUM('3a'!V123,'3b'!V123,'3c'!V123,'3d'!V123,'3e (voluntary)'!V123))","v":":"},null,{"$f":"IF(COUNT('3a'!X123,'3b'!X123,'3c'!X123,'3d'!X123,'3e (voluntary)'!X123)=0,\":\",SUM('3a'!X123,'3b'!X123,'3c'!X123,'3d'!X123,'3e (voluntary)'!X123))","v":":"},null,{"$f":"IF(COUNT('3a'!Z123,'3b'!Z123,'3c'!Z123,'3d'!Z123,'3e (voluntary)'!Z123)=0,\":\",SUM('3a'!Z123,'3b'!Z123,'3c'!Z123,'3d'!Z123,'3e (voluntary)'!Z123))","v":":"},null,{"$f":"IF(COUNT('3a'!AB123,'3b'!AB123,'3c'!AB123,'3d'!AB123,'3e (voluntary)'!AB123)=0,\":\",SUM('3a'!AB123,'3b'!AB123,'3c'!AB123,'3d'!AB123,'3e (voluntary)'!AB123))","v":":"},null,{"$f":"IF(COUNT('3a'!AD123,'3b'!AD123,'3c'!AD123,'3d'!AD123,'3e (voluntary)'!AD123)=0,\":\",SUM('3a'!AD123,'3b'!AD123,'3c'!AD123,'3d'!AD123,'3e (voluntary)'!AD123))","v":":"},null,{"$f":"IF(COUNT('3a'!AF123,'3b'!AF123,'3c'!AF123,'3d'!AF123,'3e (voluntary)'!AF123)=0,\":\",SUM('3a'!AF123,'3b'!AF123,'3c'!AF123,'3d'!AF123,'3e (voluntary)'!AF123))","v":":"}]
["S11_S12","EP_BUS","EPS_D1",null,null,null,null,null,2023,{"$f":"IF(COUNT('3a'!J124,'3b'!J124,'3c'!J124,'3d'!J124,'3e (voluntary)'!J124)=0,\":\",SUM('3a'!J124,'3b'!J124,'3c'!J124,'3d'!J124,'3e (voluntary)'!J124))","v":":"},null,{"$f":"IF(COUNT('3a'!L124,'3b'!L124,'3c'!L124,'3d'!L124,'3e (voluntary)'!L124)=0,\":\",SUM('3a'!L124,'3b'!L124,'3c'!L124,'3d'!L124,'3e (voluntary)'!L124))","v":":"},null,{"$f":"IF(COUNT('3a'!N124,'3b'!N124,'3c'!N124,'3d'!N124,'3e (voluntary)'!N124)=0,\":\",SUM('3a'!N124,'3b'!N124,'3c'!N124,'3d'!N124,'3e (voluntary)'!N124))","v":":"},null,{"$f":"IF(COUNT('3a'!P124,'3b'!P124,'3c'!P124,'3d'!P124,'3e (voluntary)'!P124)=0,\":\",SUM('3a'!P124,'3b'!P124,'3c'!P124,'3d'!P124,'3e (voluntary)'!P124))","v":":"},null,{"$f":"IF(COUNT('3a'!R124,'3b'!R124,'3c'!R124,'3d'!R124,'3e (voluntary)'!R124)=0,\":\",SUM('3a'!R124,'3b'!R124,'3c'!R124,'3d'!R124,'3e (voluntary)'!R124))","v":":"},null,{"$f":"IF(COUNT('3a'!T124,'3b'!T124,'3c'!T124,'3d'!T124,'3e (voluntary)'!T124)=0,\":\",SUM('3a'!T124,'3b'!T124,'3c'!T124,'3d'!T124,'3e (voluntary)'!T124))","v":":"},null,{"$f":"IF(COUNT('3a'!V124,'3b'!V124,'3c'!V124,'3d'!V124,'3e (voluntary)'!V124)=0,\":\",SUM('3a'!V124,'3b'!V124,'3c'!V124,'3d'!V124,'3e (voluntary)'!V124))","v":":"},null,{"$f":"IF(COUNT('3a'!X124,'3b'!X124,'3c'!X124,'3d'!X124,'3e (voluntary)'!X124)=0,\":\",SUM('3a'!X124,'3b'!X124,'3c'!X124,'3d'!X124,'3e (voluntary)'!X124))","v":":"},null,{"$f":"IF(COUNT('3a'!Z124,'3b'!Z124,'3c'!Z124,'3d'!Z124,'3e (voluntary)'!Z124)=0,\":\",SUM('3a'!Z124,'3b'!Z124,'3c'!Z124,'3d'!Z124,'3e (voluntary)'!Z124))","v":":"},null,{"$f":"IF(COUNT('3a'!AB124,'3b'!AB124,'3c'!AB124,'3d'!AB124,'3e (voluntary)'!AB124)=0,\":\",SUM('3a'!AB124,'3b'!AB124,'3c'!AB124,'3d'!AB124,'3e (voluntary)'!AB124))","v":":"},null,{"$f":"IF(COUNT('3a'!AD124,'3b'!AD124,'3c'!AD124,'3d'!AD124,'3e (voluntary)'!AD124)=0,\":\",SUM('3a'!AD124,'3b'!AD124,'3c'!AD124,'3d'!AD124,'3e (voluntary)'!AD124))","v":":"},null,{"$f":"IF(COUNT('3a'!AF124,'3b'!AF124,'3c'!AF124,'3d'!AF124,'3e (voluntary)'!AF124)=0,\":\",SUM('3a'!AF124,'3b'!AF124,'3c'!AF124,'3d'!AF124,'3e (voluntary)'!AF124))","v":":"}]
["S11_S12","EP_BUS","EPS_D1",null,null,null,null,null,2024,{"$f":"IF(COUNT('3a'!J125,'3b'!J125,'3c'!J125,'3d'!J125,'3e (voluntary)'!J125)=0,\":\",SUM('3a'!J125,'3b'!J125,'3c'!J125,'3d'!J125,'3e (voluntary)'!J125))","v":":"},null,{"$f":"IF(COUNT('3a'!L125,'3b'!L125,'3c'!L125,'3d'!L125,'3e (voluntary)'!L125)=0,\":\",SUM('3a'!L125,'3b'!L125,'3c'!L125,'3d'!L125,'3e (voluntary)'!L125))","v":":"},null,{"$f":"IF(COUNT('3a'!N125,'3b'!N125,'3c'!N125,'3d'!N125,'3e (voluntary)'!N125)=0,\":\",SUM('3a'!N125,'3b'!N125,'3c'!N125,'3d'!N125,'3e (voluntary)'!N125))","v":":"},null,{"$f":"IF(COUNT('3a'!P125,'3b'!P125,'3c'!P125,'3d'!P125,'3e (voluntary)'!P125)=0,\":\",SUM('3a'!P125,'3b'!P125,'3c'!P125,'3d'!P125,'3e (voluntary)'!P125))","v":":"},null,{"$f":"IF(COUNT('3a'!R125,'3b'!R125,'3c'!R125,'3d'!R125,'3e (voluntary)'!R125)=0,\":\",SUM('3a'!R125,'3b'!R125,'3c'!R125,'3d'!R125,'3e (voluntary)'!R125))","v":":"},null,{"$f":"IF(COUNT('3a'!T125,'3b'!T125,'3c'!T125,'3d'!T125,'3e (voluntary)'!T125)=0,\":\",SUM('3a'!T125,'3b'!T125,'3c'!T125,'3d'!T125,'3e (voluntary)'!T125))","v":":"},null,{"$f":"IF(COUNT('3a'!V125,'3b'!V125,'3c'!V125,'3d'!V125,'3e (voluntary)'!V125)=0,\":\",SUM('3a'!V125,'3b'!V125,'3c'!V125,'3d'!V125,'3e (voluntary)'!V125))","v":":"},null,{"$f":"IF(COUNT('3a'!X125,'3b'!X125,'3c'!X125,'3d'!X125,'3e (voluntary)'!X125)=0,\":\",SUM('3a'!X125,'3b'!X125,'3c'!X125,'3d'!X125,'3e (voluntary)'!X125))","v":":"},null,{"$f":"IF(COUNT('3a'!Z125,'3b'!Z125,'3c'!Z125,'3d'!Z125,'3e (voluntary)'!Z125)=0,\":\",SUM('3a'!Z125,'3b'!Z125,'3c'!Z125,'3d'!Z125,'3e (voluntary)'!Z125))","v":":"},null,{"$f":"IF(COUNT('3a'!AB125,'3b'!AB125,'3c'!AB125,'3d'!AB125,'3e (voluntary)'!AB125)=0,\":\",SUM('3a'!AB125,'3b'!AB125,'3c'!AB125,'3d'!AB125,'3e (voluntary)'!AB125))","v":":"},null,{"$f":"IF(COUNT('3a'!AD125,'3b'!AD125,'3c'!AD125,'3d'!AD125,'3e (voluntary)'!AD125)=0,\":\",SUM('3a'!AD125,'3b'!AD125,'3c'!AD125,'3d'!AD125,'3e (voluntary)'!AD125))","v":":"},null,{"$f":"IF(COUNT('3a'!AF125,'3b'!AF125,'3c'!AF125,'3d'!AF125,'3e (voluntary)'!AF125)=0,\":\",SUM('3a'!AF125,'3b'!AF125,'3c'!AF125,'3d'!AF125,'3e (voluntary)'!AF125))","v":":"}]
["S11_S12","EP_BUS","EPS_D1",null,null,null,null,null,2025,{"$f":"IF(COUNT('3a'!J126,'3b'!J126,'3c'!J126,'3d'!J126,'3e (voluntary)'!J126)=0,\":\",SUM('3a'!J126,'3b'!J126,'3c'!J126,'3d'!J126,'3e (voluntary)'!J126))","v":":"},null,{"$f":"IF(COUNT('3a'!L126,'3b'!L126,'3c'!L126,'3d'!L126,'3e (voluntary)'!L126)=0,\":\",SUM('3a'!L126,'3b'!L126,'3c'!L126,'3d'!L126,'3e (voluntary)'!L126))","v":":"},null,{"$f":"IF(COUNT('3a'!N126,'3b'!N126,'3c'!N126,'3d'!N126,'3e (voluntary)'!N126)=0,\":\",SUM('3a'!N126,'3b'!N126,'3c'!N126,'3d'!N126,'3e (voluntary)'!N126))","v":":"},null,{"$f":"IF(COUNT('3a'!P126,'3b'!P126,'3c'!P126,'3d'!P126,'3e (voluntary)'!P126)=0,\":\",SUM('3a'!P126,'3b'!P126,'3c'!P126,'3d'!P126,'3e (voluntary)'!P126))","v":":"},null,{"$f":"IF(COUNT('3a'!R126,'3b'!R126,'3c'!R126,'3d'!R126,'3e (voluntary)'!R126)=0,\":\",SUM('3a'!R126,'3b'!R126,'3c'!R126,'3d'!R126,'3e (voluntary)'!R126))","v":":"},null,{"$f":"IF(COUNT('3a'!T126,'3b'!T126,'3c'!T126,'3d'!T126,'3e (voluntary)'!T126)=0,\":\",SUM('3a'!T126,'3b'!T126,'3c'!T126,'3d'!T126,'3e (voluntary)'!T126))","v":":"},null,{"$f":"IF(COUNT('3a'!V126,'3b'!V126,'3c'!V126,'3d'!V126,'3e (voluntary)'!V126)=0,\":\",SUM('3a'!V126,'3b'!V126,'3c'!V126,'3d'!V126,'3e (voluntary)'!V126))","v":":"},null,{"$f":"IF(COUNT('3a'!X126,'3b'!X126,'3c'!X126,'3d'!X126,'3e (voluntary)'!X126)=0,\":\",SUM('3a'!X126,'3b'!X126,'3c'!X126,'3d'!X126,'3e (voluntary)'!X126))","v":":"},null,{"$f":"IF(COUNT('3a'!Z126,'3b'!Z126,'3c'!Z126,'3d'!Z126,'3e (voluntary)'!Z126)=0,\":\",SUM('3a'!Z126,'3b'!Z126,'3c'!Z126,'3d'!Z126,'3e (voluntary)'!Z126))","v":":"},null,{"$f":"IF(COUNT('3a'!AB126,'3b'!AB126,'3c'!AB126,'3d'!AB126,'3e (voluntary)'!AB126)=0,\":\",SUM('3a'!AB126,'3b'!AB126,'3c'!AB126,'3d'!AB126,'3e (voluntary)'!AB126))","v":":"},null,{"$f":"IF(COUNT('3a'!AD126,'3b'!AD126,'3c'!AD126,'3d'!AD126,'3e (voluntary)'!AD126)=0,\":\",SUM('3a'!AD126,'3b'!AD126,'3c'!AD126,'3d'!AD126,'3e (voluntary)'!AD126))","v":":"},null,{"$f":"IF(COUNT('3a'!AF126,'3b'!AF126,'3c'!AF126,'3d'!AF126,'3e (voluntary)'!AF126)=0,\":\",SUM('3a'!AF126,'3b'!AF126,'3c'!AF126,'3d'!AF126,'3e (voluntary)'!AF126))","v":":"}]
["S11_S12","EP_BUS","EPS_D1",null,null,null,null,null,2026,{"$f":"IF(COUNT('3a'!J127,'3b'!J127,'3c'!J127,'3d'!J127,'3e (voluntary)'!J127)=0,\":\",SUM('3a'!J127,'3b'!J127,'3c'!J127,'3d'!J127,'3e (voluntary)'!J127))","v":":"},null,{"$f":"IF(COUNT('3a'!L127,'3b'!L127,'3c'!L127,'3d'!L127,'3e (voluntary)'!L127)=0,\":\",SUM('3a'!L127,'3b'!L127,'3c'!L127,'3d'!L127,'3e (voluntary)'!L127))","v":":"},null,{"$f":"IF(COUNT('3a'!N127,'3b'!N127,'3c'!N127,'3d'!N127,'3e (voluntary)'!N127)=0,\":\",SUM('3a'!N127,'3b'!N127,'3c'!N127,'3d'!N127,'3e (voluntary)'!N127))","v":":"},null,{"$f":"IF(COUNT('3a'!P127,'3b'!P127,'3c'!P127,'3d'!P127,'3e (voluntary)'!P127)=0,\":\",SUM('3a'!P127,'3b'!P127,'3c'!P127,'3d'!P127,'3e (voluntary)'!P127))","v":":"},null,{"$f":"IF(COUNT('3a'!R127,'3b'!R127,'3c'!R127,'3d'!R127,'3e (voluntary)'!R127)=0,\":\",SUM('3a'!R127,'3b'!R127,'3c'!R127,'3d'!R127,'3e (voluntary)'!R127))","v":":"},null,{"$f":"IF(COUNT('3a'!T127,'3b'!T127,'3c'!T127,'3d'!T127,'3e (voluntary)'!T127)=0,\":\",SUM('3a'!T127,'3b'!T127,'3c'!T127,'3d'!T127,'3e (voluntary)'!T127))","v":":"},null,{"$f":"IF(COUNT('3a'!V127,'3b'!V127,'3c'!V127,'3d'!V127,'3e (voluntary)'!V127)=0,\":\",SUM('3a'!V127,'3b'!V127,'3c'!V127,'3d'!V127,'3e (voluntary)'!V127))","v":":"},null,{"$f":"IF(COUNT('3a'!X127,'3b'!X127,'3c'!X127,'3d'!X127,'3e (voluntary)'!X127)=0,\":\",SUM('3a'!X127,'3b'!X127,'3c'!X127,'3d'!X127,'3e (voluntary)'!X127))","v":":"},null,{"$f":"IF(COUNT('3a'!Z127,'3b'!Z127,'3c'!Z127,'3d'!Z127,'3e (voluntary)'!Z127)=0,\":\",SUM('3a'!Z127,'3b'!Z127,'3c'!Z127,'3d'!Z127,'3e (voluntary)'!Z127))","v":":"},null,{"$f":"IF(COUNT('3a'!AB127,'3b'!AB127,'3c'!AB127,'3d'!AB127,'3e (voluntary)'!AB127)=0,\":\",SUM('3a'!AB127,'3b'!AB127,'3c'!AB127,'3d'!AB127,'3e (voluntary)'!AB127))","v":":"},null,{"$f":"IF(COUNT('3a'!AD127,'3b'!AD127,'3c'!AD127,'3d'!AD127,'3e (voluntary)'!AD127)=0,\":\",SUM('3a'!AD127,'3b'!AD127,'3c'!AD127,'3d'!AD127,'3e (voluntary)'!AD127))","v":":"},null,{"$f":"IF(COUNT('3a'!AF127,'3b'!AF127,'3c'!AF127,'3d'!AF127,'3e (voluntary)'!AF127)=0,\":\",SUM('3a'!AF127,'3b'!AF127,'3c'!AF127,'3d'!AF127,'3e (voluntary)'!AF127))","v":":"}]
["S11_S12","EP_BUS","EPS_D1",null,null,null,null,null,2027,{"$f":"IF(COUNT('3a'!J128,'3b'!J128,'3c'!J128,'3d'!J128,'3e (voluntary)'!J128)=0,\":\",SUM('3a'!J128,'3b'!J128,'3c'!J128,'3d'!J128,'3e (voluntary)'!J128))","v":":"},null,{"$f":"IF(COUNT('3a'!L128,'3b'!L128,'3c'!L128,'3d'!L128,'3e (voluntary)'!L128)=0,\":\",SUM('3a'!L128,'3b'!L128,'3c'!L128,'3d'!L128,'3e (voluntary)'!L128))","v":":"},null,{"$f":"IF(COUNT('3a'!N128,'3b'!N128,'3c'!N128,'3d'!N128,'3e (voluntary)'!N128)=0,\":\",SUM('3a'!N128,'3b'!N128,'3c'!N128,'3d'!N128,'3e (voluntary)'!N128))","v":":"},null,{"$f":"IF(COUNT('3a'!P128,'3b'!P128,'3c'!P128,'3d'!P128,'3e (voluntary)'!P128)=0,\":\",SUM('3a'!P128,'3b'!P128,'3c'!P128,'3d'!P128,'3e (voluntary)'!P128))","v":":"},null,{"$f":"IF(COUNT('3a'!R128,'3b'!R128,'3c'!R128,'3d'!R128,'3e (voluntary)'!R128)=0,\":\",SUM('3a'!R128,'3b'!R128,'3c'!R128,'3d'!R128,'3e (voluntary)'!R128))","v":":"},null,{"$f":"IF(COUNT('3a'!T128,'3b'!T128,'3c'!T128,'3d'!T128,'3e (voluntary)'!T128)=0,\":\",SUM('3a'!T128,'3b'!T128,'3c'!T128,'3d'!T128,'3e (voluntary)'!T128))","v":":"},null,{"$f":"IF(COUNT('3a'!V128,'3b'!V128,'3c'!V128,'3d'!V128,'3e (voluntary)'!V128)=0,\":\",SUM('3a'!V128,'3b'!V128,'3c'!V128,'3d'!V128,'3e (voluntary)'!V128))","v":":"},null,{"$f":"IF(COUNT('3a'!X128,'3b'!X128,'3c'!X128,'3d'!X128,'3e (voluntary)'!X128)=0,\":\",SUM('3a'!X128,'3b'!X128,'3c'!X128,'3d'!X128,'3e (voluntary)'!X128))","v":":"},null,{"$f":"IF(COUNT('3a'!Z128,'3b'!Z128,'3c'!Z128,'3d'!Z128,'3e (voluntary)'!Z128)=0,\":\",SUM('3a'!Z128,'3b'!Z128,'3c'!Z128,'3d'!Z128,'3e (voluntary)'!Z128))","v":":"},null,{"$f":"IF(COUNT('3a'!AB128,'3b'!AB128,'3c'!AB128,'3d'!AB128,'3e (voluntary)'!AB128)=0,\":\",SUM('3a'!AB128,'3b'!AB128,'3c'!AB128,'3d'!AB128,'3e (voluntary)'!AB128))","v":":"},null,{"$f":"IF(COUNT('3a'!AD128,'3b'!AD128,'3c'!AD128,'3d'!AD128,'3e (voluntary)'!AD128)=0,\":\",SUM('3a'!AD128,'3b'!AD128,'3c'!AD128,'3d'!AD128,'3e (voluntary)'!AD128))","v":":"},null,{"$f":"IF(COUNT('3a'!AF128,'3b'!AF128,'3c'!AF128,'3d'!AF128,'3e (voluntary)'!AF128)=0,\":\",SUM('3a'!AF128,'3b'!AF128,'3c'!AF128,'3d'!AF128,'3e (voluntary)'!AF128))","v":":"}]
["S11_S12","EP_BUS","EPS_D1",null,null,null,null,null,2028,{"$f":"IF(COUNT('3a'!J129,'3b'!J129,'3c'!J129,'3d'!J129,'3e (voluntary)'!J129)=0,\":\",SUM('3a'!J129,'3b'!J129,'3c'!J129,'3d'!J129,'3e (voluntary)'!J129))","v":":"},null,{"$f":"IF(COUNT('3a'!L129,'3b'!L129,'3c'!L129,'3d'!L129,'3e (voluntary)'!L129)=0,\":\",SUM('3a'!L129,'3b'!L129,'3c'!L129,'3d'!L129,'3e (voluntary)'!L129))","v":":"},null,{"$f":"IF(COUNT('3a'!N129,'3b'!N129,'3c'!N129,'3d'!N129,'3e (voluntary)'!N129)=0,\":\",SUM('3a'!N129,'3b'!N129,'3c'!N129,'3d'!N129,'3e (voluntary)'!N129))","v":":"},null,{"$f":"IF(COUNT('3a'!P129,'3b'!P129,'3c'!P129,'3d'!P129,'3e (voluntary)'!P129)=0,\":\",SUM('3a'!P129,'3b'!P129,'3c'!P129,'3d'!P129,'3e (voluntary)'!P129))","v":":"},null,{"$f":"IF(COUNT('3a'!R129,'3b'!R129,'3c'!R129,'3d'!R129,'3e (voluntary)'!R129)=0,\":\",SUM('3a'!R129,'3b'!R129,'3c'!R129,'3d'!R129,'3e (voluntary)'!R129))","v":":"},null,{"$f":"IF(COUNT('3a'!T129,'3b'!T129,'3c'!T129,'3d'!T129,'3e (voluntary)'!T129)=0,\":\",SUM('3a'!T129,'3b'!T129,'3c'!T129,'3d'!T129,'3e (voluntary)'!T129))","v":":"},null,{"$f":"IF(COUNT('3a'!V129,'3b'!V129,'3c'!V129,'3d'!V129,'3e (voluntary)'!V129)=0,\":\",SUM('3a'!V129,'3b'!V129,'3c'!V129,'3d'!V129,'3e (voluntary)'!V129))","v":":"},null,{"$f":"IF(COUNT('3a'!X129,'3b'!X129,'3c'!X129,'3d'!X129,'3e (voluntary)'!X129)=0,\":\",SUM('3a'!X129,'3b'!X129,'3c'!X129,'3d'!X129,'3e (voluntary)'!X129))","v":":"},null,{"$f":"IF(COUNT('3a'!Z129,'3b'!Z129,'3c'!Z129,'3d'!Z129,'3e (voluntary)'!Z129)=0,\":\",SUM('3a'!Z129,'3b'!Z129,'3c'!Z129,'3d'!Z129,'3e (voluntary)'!Z129))","v":":"},null,{"$f":"IF(COUNT('3a'!AB129,'3b'!AB129,'3c'!AB129,'3d'!AB129,'3e (voluntary)'!AB129)=0,\":\",SUM('3a'!AB129,'3b'!AB129,'3c'!AB129,'3d'!AB129,'3e (voluntary)'!AB129))","v":":"},null,{"$f":"IF(COUNT('3a'!AD129,'3b'!AD129,'3c'!AD129,'3d'!AD129,'3e (voluntary)'!AD129)=0,\":\",SUM('3a'!AD129,'3b'!AD129,'3c'!AD129,'3d'!AD129,'3e (voluntary)'!AD129))","v":":"},null,{"$f":"IF(COUNT('3a'!AF129,'3b'!AF129,'3c'!AF129,'3d'!AF129,'3e (voluntary)'!AF129)=0,\":\",SUM('3a'!AF129,'3b'!AF129,'3c'!AF129,'3d'!AF129,'3e (voluntary)'!AF129))","v":":"}]
["S11_S12","EP_BUS","EPS_D1",null,null,null,null,null,2029,{"$f":"IF(COUNT('3a'!J130,'3b'!J130,'3c'!J130,'3d'!J130,'3e (voluntary)'!J130)=0,\":\",SUM('3a'!J130,'3b'!J130,'3c'!J130,'3d'!J130,'3e (voluntary)'!J130))","v":":"},null,{"$f":"IF(COUNT('3a'!L130,'3b'!L130,'3c'!L130,'3d'!L130,'3e (voluntary)'!L130)=0,\":\",SUM('3a'!L130,'3b'!L130,'3c'!L130,'3d'!L130,'3e (voluntary)'!L130))","v":":"},null,{"$f":"IF(COUNT('3a'!N130,'3b'!N130,'3c'!N130,'3d'!N130,'3e (voluntary)'!N130)=0,\":\",SUM('3a'!N130,'3b'!N130,'3c'!N130,'3d'!N130,'3e (voluntary)'!N130))","v":":"},null,{"$f":"IF(COUNT('3a'!P130,'3b'!P130,'3c'!P130,'3d'!P130,'3e (voluntary)'!P130)=0,\":\",SUM('3a'!P130,'3b'!P130,'3c'!P130,'3d'!P130,'3e (voluntary)'!P130))","v":":"},null,{"$f":"IF(COUNT('3a'!R130,'3b'!R130,'3c'!R130,'3d'!R130,'3e (voluntary)'!R130)=0,\":\",SUM('3a'!R130,'3b'!R130,'3c'!R130,'3d'!R130,'3e (voluntary)'!R130))","v":":"},null,{"$f":"IF(COUNT('3a'!T130,'3b'!T130,'3c'!T130,'3d'!T130,'3e (voluntary)'!T130)=0,\":\",SUM('3a'!T130,'3b'!T130,'3c'!T130,'3d'!T130,'3e (voluntary)'!T130))","v":":"},null,{"$f":"IF(COUNT('3a'!V130,'3b'!V130,'3c'!V130,'3d'!V130,'3e (voluntary)'!V130)=0,\":\",SUM('3a'!V130,'3b'!V130,'3c'!V130,'3d'!V130,'3e (voluntary)'!V130))","v":":"},null,{"$f":"IF(COUNT('3a'!X130,'3b'!X130,'3c'!X130,'3d'!X130,'3e (voluntary)'!X130)=0,\":\",SUM('3a'!X130,'3b'!X130,'3c'!X130,'3d'!X130,'3e (voluntary)'!X130))","v":":"},null,{"$f":"IF(COUNT('3a'!Z130,'3b'!Z130,'3c'!Z130,'3d'!Z130,'3e (voluntary)'!Z130)=0,\":\",SUM('3a'!Z130,'3b'!Z130,'3c'!Z130,'3d'!Z130,'3e (voluntary)'!Z130))","v":":"},null,{"$f":"IF(COUNT('3a'!AB130,'3b'!AB130,'3c'!AB130,'3d'!AB130,'3e (voluntary)'!AB130)=0,\":\",SUM('3a'!AB130,'3b'!AB130,'3c'!AB130,'3d'!AB130,'3e (voluntary)'!AB130))","v":":"},null,{"$f":"IF(COUNT('3a'!AD130,'3b'!AD130,'3c'!AD130,'3d'!AD130,'3e (voluntary)'!AD130)=0,\":\",SUM('3a'!AD130,'3b'!AD130,'3c'!AD130,'3d'!AD130,'3e (voluntary)'!AD130))","v":":"},null,{"$f":"IF(COUNT('3a'!AF130,'3b'!AF130,'3c'!AF130,'3d'!AF130,'3e (voluntary)'!AF130)=0,\":\",SUM('3a'!AF130,'3b'!AF130,'3c'!AF130,'3d'!AF130,'3e (voluntary)'!AF130))","v":":"}]
["S11_S12","EP_BUS","EPS_D1",null,null,null,null,null,2030,{"$f":"IF(COUNT('3a'!J131,'3b'!J131,'3c'!J131,'3d'!J131,'3e (voluntary)'!J131)=0,\":\",SUM('3a'!J131,'3b'!J131,'3c'!J131,'3d'!J131,'3e (voluntary)'!J131))","v":":"},null,{"$f":"IF(COUNT('3a'!L131,'3b'!L131,'3c'!L131,'3d'!L131,'3e (voluntary)'!L131)=0,\":\",SUM('3a'!L131,'3b'!L131,'3c'!L131,'3d'!L131,'3e (voluntary)'!L131))","v":":"},null,{"$f":"IF(COUNT('3a'!N131,'3b'!N131,'3c'!N131,'3d'!N131,'3e (voluntary)'!N131)=0,\":\",SUM('3a'!N131,'3b'!N131,'3c'!N131,'3d'!N131,'3e (voluntary)'!N131))","v":":"},null,{"$f":"IF(COUNT('3a'!P131,'3b'!P131,'3c'!P131,'3d'!P131,'3e (voluntary)'!P131)=0,\":\",SUM('3a'!P131,'3b'!P131,'3c'!P131,'3d'!P131,'3e (voluntary)'!P131))","v":":"},null,{"$f":"IF(COUNT('3a'!R131,'3b'!R131,'3c'!R131,'3d'!R131,'3e (voluntary)'!R131)=0,\":\",SUM('3a'!R131,'3b'!R131,'3c'!R131,'3d'!R131,'3e (voluntary)'!R131))","v":":"},null,{"$f":"IF(COUNT('3a'!T131,'3b'!T131,'3c'!T131,'3d'!T131,'3e (voluntary)'!T131)=0,\":\",SUM('3a'!T131,'3b'!T131,'3c'!T131,'3d'!T131,'3e (voluntary)'!T131))","v":":"},null,{"$f":"IF(COUNT('3a'!V131,'3b'!V131,'3c'!V131,'3d'!V131,'3e (voluntary)'!V131)=0,\":\",SUM('3a'!V131,'3b'!V131,'3c'!V131,'3d'!V131,'3e (voluntary)'!V131))","v":":"},null,{"$f":"IF(COUNT('3a'!X131,'3b'!X131,'3c'!X131,'3d'!X131,'3e (voluntary)'!X131)=0,\":\",SUM('3a'!X131,'3b'!X131,'3c'!X131,'3d'!X131,'3e (voluntary)'!X131))","v":":"},null,{"$f":"IF(COUNT('3a'!Z131,'3b'!Z131,'3c'!Z131,'3d'!Z131,'3e (voluntary)'!Z131)=0,\":\",SUM('3a'!Z131,'3b'!Z131,'3c'!Z131,'3d'!Z131,'3e (voluntary)'!Z131))","v":":"},null,{"$f":"IF(COUNT('3a'!AB131,'3b'!AB131,'3c'!AB131,'3d'!AB131,'3e (voluntary)'!AB131)=0,\":\",SUM('3a'!AB131,'3b'!AB131,'3c'!AB131,'3d'!AB131,'3e (voluntary)'!AB131))","v":":"},null,{"$f":"IF(COUNT('3a'!AD131,'3b'!AD131,'3c'!AD131,'3d'!AD131,'3e (voluntary)'!AD131)=0,\":\",SUM('3a'!AD131,'3b'!AD131,'3c'!AD131,'3d'!AD131,'3e (voluntary)'!AD131))","v":":"},null,{"$f":"IF(COUNT('3a'!AF131,'3b'!AF131,'3c'!AF131,'3d'!AF131,'3e (voluntary)'!AF131)=0,\":\",SUM('3a'!AF131,'3b'!AF131,'3c'!AF131,'3d'!AF131,'3e (voluntary)'!AF131))","v":":"}]
["S11_S12","EP_BUS","EPS_D1",null,null,null,null,null,2031,{"$f":"IF(COUNT('3a'!J132,'3b'!J132,'3c'!J132,'3d'!J132,'3e (voluntary)'!J132)=0,\":\",SUM('3a'!J132,'3b'!J132,'3c'!J132,'3d'!J132,'3e (voluntary)'!J132))","v":":"},null,{"$f":"IF(COUNT('3a'!L132,'3b'!L132,'3c'!L132,'3d'!L132,'3e (voluntary)'!L132)=0,\":\",SUM('3a'!L132,'3b'!L132,'3c'!L132,'3d'!L132,'3e (voluntary)'!L132))","v":":"},null,{"$f":"IF(COUNT('3a'!N132,'3b'!N132,'3c'!N132,'3d'!N132,'3e (voluntary)'!N132)=0,\":\",SUM('3a'!N132,'3b'!N132,'3c'!N132,'3d'!N132,'3e (voluntary)'!N132))","v":":"},null,{"$f":"IF(COUNT('3a'!P132,'3b'!P132,'3c'!P132,'3d'!P132,'3e (voluntary)'!P132)=0,\":\",SUM('3a'!P132,'3b'!P132,'3c'!P132,'3d'!P132,'3e (voluntary)'!P132))","v":":"},null,{"$f":"IF(COUNT('3a'!R132,'3b'!R132,'3c'!R132,'3d'!R132,'3e (voluntary)'!R132)=0,\":\",SUM('3a'!R132,'3b'!R132,'3c'!R132,'3d'!R132,'3e (voluntary)'!R132))","v":":"},null,{"$f":"IF(COUNT('3a'!T132,'3b'!T132,'3c'!T132,'3d'!T132,'3e (voluntary)'!T132)=0,\":\",SUM('3a'!T132,'3b'!T132,'3c'!T132,'3d'!T132,'3e (voluntary)'!T132))","v":":"},null,{"$f":"IF(COUNT('3a'!V132,'3b'!V132,'3c'!V132,'3d'!V132,'3e (voluntary)'!V132)=0,\":\",SUM('3a'!V132,'3b'!V132,'3c'!V132,'3d'!V132,'3e (voluntary)'!V132))","v":":"},null,{"$f":"IF(COUNT('3a'!X132,'3b'!X132,'3c'!X132,'3d'!X132,'3e (voluntary)'!X132)=0,\":\",SUM('3a'!X132,'3b'!X132,'3c'!X132,'3d'!X132,'3e (voluntary)'!X132))","v":":"},null,{"$f":"IF(COUNT('3a'!Z132,'3b'!Z132,'3c'!Z132,'3d'!Z132,'3e (voluntary)'!Z132)=0,\":\",SUM('3a'!Z132,'3b'!Z132,'3c'!Z132,'3d'!Z132,'3e (voluntary)'!Z132))","v":":"},null,{"$f":"IF(COUNT('3a'!AB132,'3b'!AB132,'3c'!AB132,'3d'!AB132,'3e (voluntary)'!AB132)=0,\":\",SUM('3a'!AB132,'3b'!AB132,'3c'!AB132,'3d'!AB132,'3e (voluntary)'!AB132))","v":":"},null,{"$f":"IF(COUNT('3a'!AD132,'3b'!AD132,'3c'!AD132,'3d'!AD132,'3e (voluntary)'!AD132)=0,\":\",SUM('3a'!AD132,'3b'!AD132,'3c'!AD132,'3d'!AD132,'3e (voluntary)'!AD132))","v":":"},null,{"$f":"IF(COUNT('3a'!AF132,'3b'!AF132,'3c'!AF132,'3d'!AF132,'3e (voluntary)'!AF132)=0,\":\",SUM('3a'!AF132,'3b'!AF132,'3c'!AF132,'3d'!AF132,'3e (voluntary)'!AF132))","v":":"}]
["S11_S12","EP_BUS","EPS_P1_ANC",null,"( P1_ANC.3 ) Ancillary EP output (simplified valuation legally acceptable) ((P2_NEPS.3) + (D1.3))",null,null,null,2014,{"$f":"IF(COUNT('3a'!J133,'3b'!J133,'3c'!J133,'3d'!J133,'3e (voluntary)'!J133)=0,\":\",SUM('3a'!J133,'3b'!J133,'3c'!J133,'3d'!J133,'3e (voluntary)'!J133))","v":":"},null,{"$f":"IF(COUNT('3a'!L133,'3b'!L133,'3c'!L133,'3d'!L133,'3e (voluntary)'!L133)=0,\":\",SUM('3a'!L133,'3b'!L133,'3c'!L133,'3d'!L133,'3e (voluntary)'!L133))","v":":"},null,{"$f":"IF(COUNT('3a'!N133,'3b'!N133,'3c'!N133,'3d'!N133,'3e (voluntary)'!N133)=0,\":\",SUM('3a'!N133,'3b'!N133,'3c'!N133,'3d'!N133,'3e (voluntary)'!N133))","v":":"},null,{"$f":"IF(COUNT('3a'!P133,'3b'!P133,'3c'!P133,'3d'!P133,'3e (voluntary)'!P133)=0,\":\",SUM('3a'!P133,'3b'!P133,'3c'!P133,'3d'!P133,'3e (voluntary)'!P133))","v":":"},null,{"$f":"IF(COUNT('3a'!R133,'3b'!R133,'3c'!R133,'3d'!R133,'3e (voluntary)'!R133)=0,\":\",SUM('3a'!R133,'3b'!R133,'3c'!R133,'3d'!R133,'3e (voluntary)'!R133))","v":":"},null,{"$f":"IF(COUNT('3a'!T133,'3b'!T133,'3c'!T133,'3d'!T133,'3e (voluntary)'!T133)=0,\":\",SUM('3a'!T133,'3b'!T133,'3c'!T133,'3d'!T133,'3e (voluntary)'!T133))","v":":"},null,{"$f":"IF(COUNT('3a'!V133,'3b'!V133,'3c'!V133,'3d'!V133,'3e (voluntary)'!V133)=0,\":\",SUM('3a'!V133,'3b'!V133,'3c'!V133,'3d'!V133,'3e (voluntary)'!V133))","v":":"},null,{"$f":"IF(COUNT('3a'!X133,'3b'!X133,'3c'!X133,'3d'!X133,'3e (voluntary)'!X133)=0,\":\",SUM('3a'!X133,'3b'!X133,'3c'!X133,'3d'!X133,'3e (voluntary)'!X133))","v":":"},null,{"$f":"IF(COUNT('3a'!Z133,'3b'!Z133,'3c'!Z133,'3d'!Z133,'3e (voluntary)'!Z133)=0,\":\",SUM('3a'!Z133,'3b'!Z133,'3c'!Z133,'3d'!Z133,'3e (voluntary)'!Z133))","v":":"},null,{"$f":"IF(COUNT('3a'!AB133,'3b'!AB133,'3c'!AB133,'3d'!AB133,'3e (voluntary)'!AB133)=0,\":\",SUM('3a'!AB133,'3b'!AB133,'3c'!AB133,'3d'!AB133,'3e (voluntary)'!AB133))","v":":"},null,{"$f":"IF(COUNT('3a'!AD133,'3b'!AD133,'3c'!AD133,'3d'!AD133,'3e (voluntary)'!AD133)=0,\":\",SUM('3a'!AD133,'3b'!AD133,'3c'!AD133,'3d'!AD133,'3e (voluntary)'!AD133))","v":":"},null,{"$f":"IF(COUNT('3a'!AF133,'3b'!AF133,'3c'!AF133,'3d'!AF133,'3e (voluntary)'!AF133)=0,\":\",SUM('3a'!AF133,'3b'!AF133,'3c'!AF133,'3d'!AF133,'3e (voluntary)'!AF133))","v":":"}]
["S11_S12","EP_BUS","EPS_P1_ANC",null,null,null,null,null,2015,{"$f":"IF(COUNT('3a'!J134,'3b'!J134,'3c'!J134,'3d'!J134,'3e (voluntary)'!J134)=0,\":\",SUM('3a'!J134,'3b'!J134,'3c'!J134,'3d'!J134,'3e (voluntary)'!J134))","v":":"},null,{"$f":"IF(COUNT('3a'!L134,'3b'!L134,'3c'!L134,'3d'!L134,'3e (voluntary)'!L134)=0,\":\",SUM('3a'!L134,'3b'!L134,'3c'!L134,'3d'!L134,'3e (voluntary)'!L134))","v":":"},null,{"$f":"IF(COUNT('3a'!N134,'3b'!N134,'3c'!N134,'3d'!N134,'3e (voluntary)'!N134)=0,\":\",SUM('3a'!N134,'3b'!N134,'3c'!N134,'3d'!N134,'3e (voluntary)'!N134))","v":":"},null,{"$f":"IF(COUNT('3a'!P134,'3b'!P134,'3c'!P134,'3d'!P134,'3e (voluntary)'!P134)=0,\":\",SUM('3a'!P134,'3b'!P134,'3c'!P134,'3d'!P134,'3e (voluntary)'!P134))","v":":"},null,{"$f":"IF(COUNT('3a'!R134,'3b'!R134,'3c'!R134,'3d'!R134,'3e (voluntary)'!R134)=0,\":\",SUM('3a'!R134,'3b'!R134,'3c'!R134,'3d'!R134,'3e (voluntary)'!R134))","v":":"},null,{"$f":"IF(COUNT('3a'!T134,'3b'!T134,'3c'!T134,'3d'!T134,'3e (voluntary)'!T134)=0,\":\",SUM('3a'!T134,'3b'!T134,'3c'!T134,'3d'!T134,'3e (voluntary)'!T134))","v":":"},null,{"$f":"IF(COUNT('3a'!V134,'3b'!V134,'3c'!V134,'3d'!V134,'3e (voluntary)'!V134)=0,\":\",SUM('3a'!V134,'3b'!V134,'3c'!V134,'3d'!V134,'3e (voluntary)'!V134))","v":":"},null,{"$f":"IF(COUNT('3a'!X134,'3b'!X134,'3c'!X134,'3d'!X134,'3e (voluntary)'!X134)=0,\":\",SUM('3a'!X134,'3b'!X134,'3c'!X134,'3d'!X134,'3e (voluntary)'!X134))","v":":"},null,{"$f":"IF(COUNT('3a'!Z134,'3b'!Z134,'3c'!Z134,'3d'!Z134,'3e (voluntary)'!Z134)=0,\":\",SUM('3a'!Z134,'3b'!Z134,'3c'!Z134,'3d'!Z134,'3e (voluntary)'!Z134))","v":":"},null,{"$f":"IF(COUNT('3a'!AB134,'3b'!AB134,'3c'!AB134,'3d'!AB134,'3e (voluntary)'!AB134)=0,\":\",SUM('3a'!AB134,'3b'!AB134,'3c'!AB134,'3d'!AB134,'3e (voluntary)'!AB134))","v":":"},null,{"$f":"IF(COUNT('3a'!AD134,'3b'!AD134,'3c'!AD134,'3d'!AD134,'3e (voluntary)'!AD134)=0,\":\",SUM('3a'!AD134,'3b'!AD134,'3c'!AD134,'3d'!AD134,'3e (voluntary)'!AD134))","v":":"},null,{"$f":"IF(COUNT('3a'!AF134,'3b'!AF134,'3c'!AF134,'3d'!AF134,'3e (voluntary)'!AF134)=0,\":\",SUM('3a'!AF134,'3b'!AF134,'3c'!AF134,'3d'!AF134,'3e (voluntary)'!AF134))","v":":"}]
["S11_S12","EP_BUS","EPS_P1_ANC",null,null,null,null,null,2016,{"$f":"IF(COUNT('3a'!J135,'3b'!J135,'3c'!J135,'3d'!J135,'3e (voluntary)'!J135)=0,\":\",SUM('3a'!J135,'3b'!J135,'3c'!J135,'3d'!J135,'3e (voluntary)'!J135))","v":":"},null,{"$f":"IF(COUNT('3a'!L135,'3b'!L135,'3c'!L135,'3d'!L135,'3e (voluntary)'!L135)=0,\":\",SUM('3a'!L135,'3b'!L135,'3c'!L135,'3d'!L135,'3e (voluntary)'!L135))","v":":"},null,{"$f":"IF(COUNT('3a'!N135,'3b'!N135,'3c'!N135,'3d'!N135,'3e (voluntary)'!N135)=0,\":\",SUM('3a'!N135,'3b'!N135,'3c'!N135,'3d'!N135,'3e (voluntary)'!N135))","v":":"},null,{"$f":"IF(COUNT('3a'!P135,'3b'!P135,'3c'!P135,'3d'!P135,'3e (voluntary)'!P135)=0,\":\",SUM('3a'!P135,'3b'!P135,'3c'!P135,'3d'!P135,'3e (voluntary)'!P135))","v":":"},null,{"$f":"IF(COUNT('3a'!R135,'3b'!R135,'3c'!R135,'3d'!R135,'3e (voluntary)'!R135)=0,\":\",SUM('3a'!R135,'3b'!R135,'3c'!R135,'3d'!R135,'3e (voluntary)'!R135))","v":":"},null,{"$f":"IF(COUNT('3a'!T135,'3b'!T135,'3c'!T135,'3d'!T135,'3e (voluntary)'!T135)=0,\":\",SUM('3a'!T135,'3b'!T135,'3c'!T135,'3d'!T135,'3e (voluntary)'!T135))","v":":"},null,{"$f":"IF(COUNT('3a'!V135,'3b'!V135,'3c'!V135,'3d'!V135,'3e (voluntary)'!V135)=0,\":\",SUM('3a'!V135,'3b'!V135,'3c'!V135,'3d'!V135,'3e (voluntary)'!V135))","v":":"},null,{"$f":"IF(COUNT('3a'!X135,'3b'!X135,'3c'!X135,'3d'!X135,'3e (voluntary)'!X135)=0,\":\",SUM('3a'!X135,'3b'!X135,'3c'!X135,'3d'!X135,'3e (voluntary)'!X135))","v":":"},null,{"$f":"IF(COUNT('3a'!Z135,'3b'!Z135,'3c'!Z135,'3d'!Z135,'3e (voluntary)'!Z135)=0,\":\",SUM('3a'!Z135,'3b'!Z135,'3c'!Z135,'3d'!Z135,'3e (voluntary)'!Z135))","v":":"},null,{"$f":"IF(COUNT('3a'!AB135,'3b'!AB135,'3c'!AB135,'3d'!AB135,'3e (voluntary)'!AB135)=0,\":\",SUM('3a'!AB135,'3b'!AB135,'3c'!AB135,'3d'!AB135,'3e (voluntary)'!AB135))","v":":"},null,{"$f":"IF(COUNT('3a'!AD135,'3b'!AD135,'3c'!AD135,'3d'!AD135,'3e (voluntary)'!AD135)=0,\":\",SUM('3a'!AD135,'3b'!AD135,'3c'!AD135,'3d'!AD135,'3e (voluntary)'!AD135))","v":":"},null,{"$f":"IF(COUNT('3a'!AF135,'3b'!AF135,'3c'!AF135,'3d'!AF135,'3e (voluntary)'!AF135)=0,\":\",SUM('3a'!AF135,'3b'!AF135,'3c'!AF135,'3d'!AF135,'3e (voluntary)'!AF135))","v":":"}]
["S11_S12","EP_BUS","EPS_P1_ANC",null,null,null,null,null,2017,{"$f":"IF(COUNT('3a'!J136,'3b'!J136,'3c'!J136,'3d'!J136,'3e (voluntary)'!J136)=0,\":\",SUM('3a'!J136,'3b'!J136,'3c'!J136,'3d'!J136,'3e (voluntary)'!J136))","v":":"},null,{"$f":"IF(COUNT('3a'!L136,'3b'!L136,'3c'!L136,'3d'!L136,'3e (voluntary)'!L136)=0,\":\",SUM('3a'!L136,'3b'!L136,'3c'!L136,'3d'!L136,'3e (voluntary)'!L136))","v":":"},null,{"$f":"IF(COUNT('3a'!N136,'3b'!N136,'3c'!N136,'3d'!N136,'3e (voluntary)'!N136)=0,\":\",SUM('3a'!N136,'3b'!N136,'3c'!N136,'3d'!N136,'3e (voluntary)'!N136))","v":":"},null,{"$f":"IF(COUNT('3a'!P136,'3b'!P136,'3c'!P136,'3d'!P136,'3e (voluntary)'!P136)=0,\":\",SUM('3a'!P136,'3b'!P136,'3c'!P136,'3d'!P136,'3e (voluntary)'!P136))","v":":"},null,{"$f":"IF(COUNT('3a'!R136,'3b'!R136,'3c'!R136,'3d'!R136,'3e (voluntary)'!R136)=0,\":\",SUM('3a'!R136,'3b'!R136,'3c'!R136,'3d'!R136,'3e (voluntary)'!R136))","v":":"},null,{"$f":"IF(COUNT('3a'!T136,'3b'!T136,'3c'!T136,'3d'!T136,'3e (voluntary)'!T136)=0,\":\",SUM('3a'!T136,'3b'!T136,'3c'!T136,'3d'!T136,'3e (voluntary)'!T136))","v":":"},null,{"$f":"IF(COUNT('3a'!V136,'3b'!V136,'3c'!V136,'3d'!V136,'3e (voluntary)'!V136)=0,\":\",SUM('3a'!V136,'3b'!V136,'3c'!V136,'3d'!V136,'3e (voluntary)'!V136))","v":":"},null,{"$f":"IF(COUNT('3a'!X136,'3b'!X136,'3c'!X136,'3d'!X136,'3e (voluntary)'!X136)=0,\":\",SUM('3a'!X136,'3b'!X136,'3c'!X136,'3d'!X136,'3e (voluntary)'!X136))","v":":"},null,{"$f":"IF(COUNT('3a'!Z136,'3b'!Z136,'3c'!Z136,'3d'!Z136,'3e (voluntary)'!Z136)=0,\":\",SUM('3a'!Z136,'3b'!Z136,'3c'!Z136,'3d'!Z136,'3e (voluntary)'!Z136))","v":":"},null,{"$f":"IF(COUNT('3a'!AB136,'3b'!AB136,'3c'!AB136,'3d'!AB136,'3e (voluntary)'!AB136)=0,\":\",SUM('3a'!AB136,'3b'!AB136,'3c'!AB136,'3d'!AB136,'3e (voluntary)'!AB136))","v":":"},null,{"$f":"IF(COUNT('3a'!AD136,'3b'!AD136,'3c'!AD136,'3d'!AD136,'3e (voluntary)'!AD136)=0,\":\",SUM('3a'!AD136,'3b'!AD136,'3c'!AD136,'3d'!AD136,'3e (voluntary)'!AD136))","v":":"},null,{"$f":"IF(COUNT('3a'!AF136,'3b'!AF136,'3c'!AF136,'3d'!AF136,'3e (voluntary)'!AF136)=0,\":\",SUM('3a'!AF136,'3b'!AF136,'3c'!AF136,'3d'!AF136,'3e (voluntary)'!AF136))","v":":"}]
["S11_S12","EP_BUS","EPS_P1_ANC",null,null,null,null,null,2018,{"$f":"IF(COUNT('3a'!J137,'3b'!J137,'3c'!J137,'3d'!J137,'3e (voluntary)'!J137)=0,\":\",SUM('3a'!J137,'3b'!J137,'3c'!J137,'3d'!J137,'3e (voluntary)'!J137))","v":":"},null,{"$f":"IF(COUNT('3a'!L137,'3b'!L137,'3c'!L137,'3d'!L137,'3e (voluntary)'!L137)=0,\":\",SUM('3a'!L137,'3b'!L137,'3c'!L137,'3d'!L137,'3e (voluntary)'!L137))","v":":"},null,{"$f":"IF(COUNT('3a'!N137,'3b'!N137,'3c'!N137,'3d'!N137,'3e (voluntary)'!N137)=0,\":\",SUM('3a'!N137,'3b'!N137,'3c'!N137,'3d'!N137,'3e (voluntary)'!N137))","v":":"},null,{"$f":"IF(COUNT('3a'!P137,'3b'!P137,'3c'!P137,'3d'!P137,'3e (voluntary)'!P137)=0,\":\",SUM('3a'!P137,'3b'!P137,'3c'!P137,'3d'!P137,'3e (voluntary)'!P137))","v":":"},null,{"$f":"IF(COUNT('3a'!R137,'3b'!R137,'3c'!R137,'3d'!R137,'3e (voluntary)'!R137)=0,\":\",SUM('3a'!R137,'3b'!R137,'3c'!R137,'3d'!R137,'3e (voluntary)'!R137))","v":":"},null,{"$f":"IF(COUNT('3a'!T137,'3b'!T137,'3c'!T137,'3d'!T137,'3e (voluntary)'!T137)=0,\":\",SUM('3a'!T137,'3b'!T137,'3c'!T137,'3d'!T137,'3e (voluntary)'!T137))","v":":"},null,{"$f":"IF(COUNT('3a'!V137,'3b'!V137,'3c'!V137,'3d'!V137,'3e (voluntary)'!V137)=0,\":\",SUM('3a'!V137,'3b'!V137,'3c'!V137,'3d'!V137,'3e (voluntary)'!V137))","v":":"},null,{"$f":"IF(COUNT('3a'!X137,'3b'!X137,'3c'!X137,'3d'!X137,'3e (voluntary)'!X137)=0,\":\",SUM('3a'!X137,'3b'!X137,'3c'!X137,'3d'!X137,'3e (voluntary)'!X137))","v":":"},null,{"$f":"IF(COUNT('3a'!Z137,'3b'!Z137,'3c'!Z137,'3d'!Z137,'3e (voluntary)'!Z137)=0,\":\",SUM('3a'!Z137,'3b'!Z137,'3c'!Z137,'3d'!Z137,'3e (voluntary)'!Z137))","v":":"},null,{"$f":"IF(COUNT('3a'!AB137,'3b'!AB137,'3c'!AB137,'3d'!AB137,'3e (voluntary)'!AB137)=0,\":\",SUM('3a'!AB137,'3b'!AB137,'3c'!AB137,'3d'!AB137,'3e (voluntary)'!AB137))","v":":"},null,{"$f":"IF(COUNT('3a'!AD137,'3b'!AD137,'3c'!AD137,'3d'!AD137,'3e (voluntary)'!AD137)=0,\":\",SUM('3a'!AD137,'3b'!AD137,'3c'!AD137,'3d'!AD137,'3e (voluntary)'!AD137))","v":":"},null,{"$f":"IF(COUNT('3a'!AF137,'3b'!AF137,'3c'!AF137,'3d'!AF137,'3e (voluntary)'!AF137)=0,\":\",SUM('3a'!AF137,'3b'!AF137,'3c'!AF137,'3d'!AF137,'3e (voluntary)'!AF137))","v":":"}]
["S11_S12","EP_BUS","EPS_P1_ANC",null,null,null,null,null,2019,{"$f":"IF(COUNT('3a'!J138,'3b'!J138,'3c'!J138,'3d'!J138,'3e (voluntary)'!J138)=0,\":\",SUM('3a'!J138,'3b'!J138,'3c'!J138,'3d'!J138,'3e (voluntary)'!J138))","v":":"},null,{"$f":"IF(COUNT('3a'!L138,'3b'!L138,'3c'!L138,'3d'!L138,'3e (voluntary)'!L138)=0,\":\",SUM('3a'!L138,'3b'!L138,'3c'!L138,'3d'!L138,'3e (voluntary)'!L138))","v":":"},null,{"$f":"IF(COUNT('3a'!N138,'3b'!N138,'3c'!N138,'3d'!N138,'3e (voluntary)'!N138)=0,\":\",SUM('3a'!N138,'3b'!N138,'3c'!N138,'3d'!N138,'3e (voluntary)'!N138))","v":":"},null,{"$f":"IF(COUNT('3a'!P138,'3b'!P138,'3c'!P138,'3d'!P138,'3e (voluntary)'!P138)=0,\":\",SUM('3a'!P138,'3b'!P138,'3c'!P138,'3d'!P138,'3e (voluntary)'!P138))","v":":"},null,{"$f":"IF(COUNT('3a'!R138,'3b'!R138,'3c'!R138,'3d'!R138,'3e (voluntary)'!R138)=0,\":\",SUM('3a'!R138,'3b'!R138,'3c'!R138,'3d'!R138,'3e (voluntary)'!R138))","v":":"},null,{"$f":"IF(COUNT('3a'!T138,'3b'!T138,'3c'!T138,'3d'!T138,'3e (voluntary)'!T138)=0,\":\",SUM('3a'!T138,'3b'!T138,'3c'!T138,'3d'!T138,'3e (voluntary)'!T138))","v":":"},null,{"$f":"IF(COUNT('3a'!V138,'3b'!V138,'3c'!V138,'3d'!V138,'3e (voluntary)'!V138)=0,\":\",SUM('3a'!V138,'3b'!V138,'3c'!V138,'3d'!V138,'3e (voluntary)'!V138))","v":":"},null,{"$f":"IF(COUNT('3a'!X138,'3b'!X138,'3c'!X138,'3d'!X138,'3e (voluntary)'!X138)=0,\":\",SUM('3a'!X138,'3b'!X138,'3c'!X138,'3d'!X138,'3e (voluntary)'!X138))","v":":"},null,{"$f":"IF(COUNT('3a'!Z138,'3b'!Z138,'3c'!Z138,'3d'!Z138,'3e (voluntary)'!Z138)=0,\":\",SUM('3a'!Z138,'3b'!Z138,'3c'!Z138,'3d'!Z138,'3e (voluntary)'!Z138))","v":":"},null,{"$f":"IF(COUNT('3a'!AB138,'3b'!AB138,'3c'!AB138,'3d'!AB138,'3e (voluntary)'!AB138)=0,\":\",SUM('3a'!AB138,'3b'!AB138,'3c'!AB138,'3d'!AB138,'3e (voluntary)'!AB138))","v":":"},null,{"$f":"IF(COUNT('3a'!AD138,'3b'!AD138,'3c'!AD138,'3d'!AD138,'3e (voluntary)'!AD138)=0,\":\",SUM('3a'!AD138,'3b'!AD138,'3c'!AD138,'3d'!AD138,'3e (voluntary)'!AD138))","v":":"},null,{"$f":"IF(COUNT('3a'!AF138,'3b'!AF138,'3c'!AF138,'3d'!AF138,'3e (voluntary)'!AF138)=0,\":\",SUM('3a'!AF138,'3b'!AF138,'3c'!AF138,'3d'!AF138,'3e (voluntary)'!AF138))","v":":"}]
["S11_S12","EP_BUS","EPS_P1_ANC",null,null,null,null,null,2020,{"$f":"IF(COUNT('3a'!J139,'3b'!J139,'3c'!J139,'3d'!J139,'3e (voluntary)'!J139)=0,\":\",SUM('3a'!J139,'3b'!J139,'3c'!J139,'3d'!J139,'3e (voluntary)'!J139))","v":":"},null,{"$f":"IF(COUNT('3a'!L139,'3b'!L139,'3c'!L139,'3d'!L139,'3e (voluntary)'!L139)=0,\":\",SUM('3a'!L139,'3b'!L139,'3c'!L139,'3d'!L139,'3e (voluntary)'!L139))","v":":"},null,{"$f":"IF(COUNT('3a'!N139,'3b'!N139,'3c'!N139,'3d'!N139,'3e (voluntary)'!N139)=0,\":\",SUM('3a'!N139,'3b'!N139,'3c'!N139,'3d'!N139,'3e (voluntary)'!N139))","v":":"},null,{"$f":"IF(COUNT('3a'!P139,'3b'!P139,'3c'!P139,'3d'!P139,'3e (voluntary)'!P139)=0,\":\",SUM('3a'!P139,'3b'!P139,'3c'!P139,'3d'!P139,'3e (voluntary)'!P139))","v":":"},null,{"$f":"IF(COUNT('3a'!R139,'3b'!R139,'3c'!R139,'3d'!R139,'3e (voluntary)'!R139)=0,\":\",SUM('3a'!R139,'3b'!R139,'3c'!R139,'3d'!R139,'3e (voluntary)'!R139))","v":":"},null,{"$f":"IF(COUNT('3a'!T139,'3b'!T139,'3c'!T139,'3d'!T139,'3e (voluntary)'!T139)=0,\":\",SUM('3a'!T139,'3b'!T139,'3c'!T139,'3d'!T139,'3e (voluntary)'!T139))","v":":"},null,{"$f":"IF(COUNT('3a'!V139,'3b'!V139,'3c'!V139,'3d'!V139,'3e (voluntary)'!V139)=0,\":\",SUM('3a'!V139,'3b'!V139,'3c'!V139,'3d'!V139,'3e (voluntary)'!V139))","v":":"},null,{"$f":"IF(COUNT('3a'!X139,'3b'!X139,'3c'!X139,'3d'!X139,'3e (voluntary)'!X139)=0,\":\",SUM('3a'!X139,'3b'!X139,'3c'!X139,'3d'!X139,'3e (voluntary)'!X139))","v":":"},null,{"$f":"IF(COUNT('3a'!Z139,'3b'!Z139,'3c'!Z139,'3d'!Z139,'3e (voluntary)'!Z139)=0,\":\",SUM('3a'!Z139,'3b'!Z139,'3c'!Z139,'3d'!Z139,'3e (voluntary)'!Z139))","v":":"},null,{"$f":"IF(COUNT('3a'!AB139,'3b'!AB139,'3c'!AB139,'3d'!AB139,'3e (voluntary)'!AB139)=0,\":\",SUM('3a'!AB139,'3b'!AB139,'3c'!AB139,'3d'!AB139,'3e (voluntary)'!AB139))","v":":"},null,{"$f":"IF(COUNT('3a'!AD139,'3b'!AD139,'3c'!AD139,'3d'!AD139,'3e (voluntary)'!AD139)=0,\":\",SUM('3a'!AD139,'3b'!AD139,'3c'!AD139,'3d'!AD139,'3e (voluntary)'!AD139))","v":":"},null,{"$f":"IF(COUNT('3a'!AF139,'3b'!AF139,'3c'!AF139,'3d'!AF139,'3e (voluntary)'!AF139)=0,\":\",SUM('3a'!AF139,'3b'!AF139,'3c'!AF139,'3d'!AF139,'3e (voluntary)'!AF139))","v":":"}]
["S11_S12","EP_BUS","EPS_P1_ANC",null,null,null,null,null,2021,{"$f":"IF(COUNT('3a'!J140,'3b'!J140,'3c'!J140,'3d'!J140,'3e (voluntary)'!J140)=0,\":\",SUM('3a'!J140,'3b'!J140,'3c'!J140,'3d'!J140,'3e (voluntary)'!J140))","v":":"},null,{"$f":"IF(COUNT('3a'!L140,'3b'!L140,'3c'!L140,'3d'!L140,'3e (voluntary)'!L140)=0,\":\",SUM('3a'!L140,'3b'!L140,'3c'!L140,'3d'!L140,'3e (voluntary)'!L140))","v":":"},null,{"$f":"IF(COUNT('3a'!N140,'3b'!N140,'3c'!N140,'3d'!N140,'3e (voluntary)'!N140)=0,\":\",SUM('3a'!N140,'3b'!N140,'3c'!N140,'3d'!N140,'3e (voluntary)'!N140))","v":":"},null,{"$f":"IF(COUNT('3a'!P140,'3b'!P140,'3c'!P140,'3d'!P140,'3e (voluntary)'!P140)=0,\":\",SUM('3a'!P140,'3b'!P140,'3c'!P140,'3d'!P140,'3e (voluntary)'!P140))","v":":"},null,{"$f":"IF(COUNT('3a'!R140,'3b'!R140,'3c'!R140,'3d'!R140,'3e (voluntary)'!R140)=0,\":\",SUM('3a'!R140,'3b'!R140,'3c'!R140,'3d'!R140,'3e (voluntary)'!R140))","v":":"},null,{"$f":"IF(COUNT('3a'!T140,'3b'!T140,'3c'!T140,'3d'!T140,'3e (voluntary)'!T140)=0,\":\",SUM('3a'!T140,'3b'!T140,'3c'!T140,'3d'!T140,'3e (voluntary)'!T140))","v":":"},null,{"$f":"IF(COUNT('3a'!V140,'3b'!V140,'3c'!V140,'3d'!V140,'3e (voluntary)'!V140)=0,\":\",SUM('3a'!V140,'3b'!V140,'3c'!V140,'3d'!V140,'3e (voluntary)'!V140))","v":":"},null,{"$f":"IF(COUNT('3a'!X140,'3b'!X140,'3c'!X140,'3d'!X140,'3e (voluntary)'!X140)=0,\":\",SUM('3a'!X140,'3b'!X140,'3c'!X140,'3d'!X140,'3e (voluntary)'!X140))","v":":"},null,{"$f":"IF(COUNT('3a'!Z140,'3b'!Z140,'3c'!Z140,'3d'!Z140,'3e (voluntary)'!Z140)=0,\":\",SUM('3a'!Z140,'3b'!Z140,'3c'!Z140,'3d'!Z140,'3e (voluntary)'!Z140))","v":":"},null,{"$f":"IF(COUNT('3a'!AB140,'3b'!AB140,'3c'!AB140,'3d'!AB140,'3e (voluntary)'!AB140)=0,\":\",SUM('3a'!AB140,'3b'!AB140,'3c'!AB140,'3d'!AB140,'3e (voluntary)'!AB140))","v":":"},null,{"$f":"IF(COUNT('3a'!AD140,'3b'!AD140,'3c'!AD140,'3d'!AD140,'3e (voluntary)'!AD140)=0,\":\",SUM('3a'!AD140,'3b'!AD140,'3c'!AD140,'3d'!AD140,'3e (voluntary)'!AD140))","v":":"},null,{"$f":"IF(COUNT('3a'!AF140,'3b'!AF140,'3c'!AF140,'3d'!AF140,'3e (voluntary)'!AF140)=0,\":\",SUM('3a'!AF140,'3b'!AF140,'3c'!AF140,'3d'!AF140,'3e (voluntary)'!AF140))","v":":"}]
["S11_S12","EP_BUS","EPS_P1_ANC",null,null,null,null,null,2022,{"$f":"IF(COUNT('3a'!J141,'3b'!J141,'3c'!J141,'3d'!J141,'3e (voluntary)'!J141)=0,\":\",SUM('3a'!J141,'3b'!J141,'3c'!J141,'3d'!J141,'3e (voluntary)'!J141))","v":":"},null,{"$f":"IF(COUNT('3a'!L141,'3b'!L141,'3c'!L141,'3d'!L141,'3e (voluntary)'!L141)=0,\":\",SUM('3a'!L141,'3b'!L141,'3c'!L141,'3d'!L141,'3e (voluntary)'!L141))","v":":"},null,{"$f":"IF(COUNT('3a'!N141,'3b'!N141,'3c'!N141,'3d'!N141,'3e (voluntary)'!N141)=0,\":\",SUM('3a'!N141,'3b'!N141,'3c'!N141,'3d'!N141,'3e (voluntary)'!N141))","v":":"},null,{"$f":"IF(COUNT('3a'!P141,'3b'!P141,'3c'!P141,'3d'!P141,'3e (voluntary)'!P141)=0,\":\",SUM('3a'!P141,'3b'!P141,'3c'!P141,'3d'!P141,'3e (voluntary)'!P141))","v":":"},null,{"$f":"IF(COUNT('3a'!R141,'3b'!R141,'3c'!R141,'3d'!R141,'3e (voluntary)'!R141)=0,\":\",SUM('3a'!R141,'3b'!R141,'3c'!R141,'3d'!R141,'3e (voluntary)'!R141))","v":":"},null,{"$f":"IF(COUNT('3a'!T141,'3b'!T141,'3c'!T141,'3d'!T141,'3e (voluntary)'!T141)=0,\":\",SUM('3a'!T141,'3b'!T141,'3c'!T141,'3d'!T141,'3e (voluntary)'!T141))","v":":"},null,{"$f":"IF(COUNT('3a'!V141,'3b'!V141,'3c'!V141,'3d'!V141,'3e (voluntary)'!V141)=0,\":\",SUM('3a'!V141,'3b'!V141,'3c'!V141,'3d'!V141,'3e (voluntary)'!V141))","v":":"},null,{"$f":"IF(COUNT('3a'!X141,'3b'!X141,'3c'!X141,'3d'!X141,'3e (voluntary)'!X141)=0,\":\",SUM('3a'!X141,'3b'!X141,'3c'!X141,'3d'!X141,'3e (voluntary)'!X141))","v":":"},null,{"$f":"IF(COUNT('3a'!Z141,'3b'!Z141,'3c'!Z141,'3d'!Z141,'3e (voluntary)'!Z141)=0,\":\",SUM('3a'!Z141,'3b'!Z141,'3c'!Z141,'3d'!Z141,'3e (voluntary)'!Z141))","v":":"},null,{"$f":"IF(COUNT('3a'!AB141,'3b'!AB141,'3c'!AB141,'3d'!AB141,'3e (voluntary)'!AB141)=0,\":\",SUM('3a'!AB141,'3b'!AB141,'3c'!AB141,'3d'!AB141,'3e (voluntary)'!AB141))","v":":"},null,{"$f":"IF(COUNT('3a'!AD141,'3b'!AD141,'3c'!AD141,'3d'!AD141,'3e (voluntary)'!AD141)=0,\":\",SUM('3a'!AD141,'3b'!AD141,'3c'!AD141,'3d'!AD141,'3e (voluntary)'!AD141))","v":":"},null,{"$f":"IF(COUNT('3a'!AF141,'3b'!AF141,'3c'!AF141,'3d'!AF141,'3e (voluntary)'!AF141)=0,\":\",SUM('3a'!AF141,'3b'!AF141,'3c'!AF141,'3d'!AF141,'3e (voluntary)'!AF141))","v":":"}]
["S11_S12","EP_BUS","EPS_P1_ANC",null,null,null,null,null,2023,{"$f":"IF(COUNT('3a'!J142,'3b'!J142,'3c'!J142,'3d'!J142,'3e (voluntary)'!J142)=0,\":\",SUM('3a'!J142,'3b'!J142,'3c'!J142,'3d'!J142,'3e (voluntary)'!J142))","v":":"},null,{"$f":"IF(COUNT('3a'!L142,'3b'!L142,'3c'!L142,'3d'!L142,'3e (voluntary)'!L142)=0,\":\",SUM('3a'!L142,'3b'!L142,'3c'!L142,'3d'!L142,'3e (voluntary)'!L142))","v":":"},null,{"$f":"IF(COUNT('3a'!N142,'3b'!N142,'3c'!N142,'3d'!N142,'3e (voluntary)'!N142)=0,\":\",SUM('3a'!N142,'3b'!N142,'3c'!N142,'3d'!N142,'3e (voluntary)'!N142))","v":":"},null,{"$f":"IF(COUNT('3a'!P142,'3b'!P142,'3c'!P142,'3d'!P142,'3e (voluntary)'!P142)=0,\":\",SUM('3a'!P142,'3b'!P142,'3c'!P142,'3d'!P142,'3e (voluntary)'!P142))","v":":"},null,{"$f":"IF(COUNT('3a'!R142,'3b'!R142,'3c'!R142,'3d'!R142,'3e (voluntary)'!R142)=0,\":\",SUM('3a'!R142,'3b'!R142,'3c'!R142,'3d'!R142,'3e (voluntary)'!R142))","v":":"},null,{"$f":"IF(COUNT('3a'!T142,'3b'!T142,'3c'!T142,'3d'!T142,'3e (voluntary)'!T142)=0,\":\",SUM('3a'!T142,'3b'!T142,'3c'!T142,'3d'!T142,'3e (voluntary)'!T142))","v":":"},null,{"$f":"IF(COUNT('3a'!V142,'3b'!V142,'3c'!V142,'3d'!V142,'3e (voluntary)'!V142)=0,\":\",SUM('3a'!V142,'3b'!V142,'3c'!V142,'3d'!V142,'3e (voluntary)'!V142))","v":":"},null,{"$f":"IF(COUNT('3a'!X142,'3b'!X142,'3c'!X142,'3d'!X142,'3e (voluntary)'!X142)=0,\":\",SUM('3a'!X142,'3b'!X142,'3c'!X142,'3d'!X142,'3e (voluntary)'!X142))","v":":"},null,{"$f":"IF(COUNT('3a'!Z142,'3b'!Z142,'3c'!Z142,'3d'!Z142,'3e (voluntary)'!Z142)=0,\":\",SUM('3a'!Z142,'3b'!Z142,'3c'!Z142,'3d'!Z142,'3e (voluntary)'!Z142))","v":":"},null,{"$f":"IF(COUNT('3a'!AB142,'3b'!AB142,'3c'!AB142,'3d'!AB142,'3e (voluntary)'!AB142)=0,\":\",SUM('3a'!AB142,'3b'!AB142,'3c'!AB142,'3d'!AB142,'3e (voluntary)'!AB142))","v":":"},null,{"$f":"IF(COUNT('3a'!AD142,'3b'!AD142,'3c'!AD142,'3d'!AD142,'3e (voluntary)'!AD142)=0,\":\",SUM('3a'!AD142,'3b'!AD142,'3c'!AD142,'3d'!AD142,'3e (voluntary)'!AD142))","v":":"},null,{"$f":"IF(COUNT('3a'!AF142,'3b'!AF142,'3c'!AF142,'3d'!AF142,'3e (voluntary)'!AF142)=0,\":\",SUM('3a'!AF142,'3b'!AF142,'3c'!AF142,'3d'!AF142,'3e (voluntary)'!AF142))","v":":"}]
["S11_S12","EP_BUS","EPS_P1_ANC",null,null,null,null,null,2024,{"$f":"IF(COUNT('3a'!J143,'3b'!J143,'3c'!J143,'3d'!J143,'3e (voluntary)'!J143)=0,\":\",SUM('3a'!J143,'3b'!J143,'3c'!J143,'3d'!J143,'3e (voluntary)'!J143))","v":":"},null,{"$f":"IF(COUNT('3a'!L143,'3b'!L143,'3c'!L143,'3d'!L143,'3e (voluntary)'!L143)=0,\":\",SUM('3a'!L143,'3b'!L143,'3c'!L143,'3d'!L143,'3e (voluntary)'!L143))","v":":"},null,{"$f":"IF(COUNT('3a'!N143,'3b'!N143,'3c'!N143,'3d'!N143,'3e (voluntary)'!N143)=0,\":\",SUM('3a'!N143,'3b'!N143,'3c'!N143,'3d'!N143,'3e (voluntary)'!N143))","v":":"},null,{"$f":"IF(COUNT('3a'!P143,'3b'!P143,'3c'!P143,'3d'!P143,'3e (voluntary)'!P143)=0,\":\",SUM('3a'!P143,'3b'!P143,'3c'!P143,'3d'!P143,'3e (voluntary)'!P143))","v":":"},null,{"$f":"IF(COUNT('3a'!R143,'3b'!R143,'3c'!R143,'3d'!R143,'3e (voluntary)'!R143)=0,\":\",SUM('3a'!R143,'3b'!R143,'3c'!R143,'3d'!R143,'3e (voluntary)'!R143))","v":":"},null,{"$f":"IF(COUNT('3a'!T143,'3b'!T143,'3c'!T143,'3d'!T143,'3e (voluntary)'!T143)=0,\":\",SUM('3a'!T143,'3b'!T143,'3c'!T143,'3d'!T143,'3e (voluntary)'!T143))","v":":"},null,{"$f":"IF(COUNT('3a'!V143,'3b'!V143,'3c'!V143,'3d'!V143,'3e (voluntary)'!V143)=0,\":\",SUM('3a'!V143,'3b'!V143,'3c'!V143,'3d'!V143,'3e (voluntary)'!V143))","v":":"},null,{"$f":"IF(COUNT('3a'!X143,'3b'!X143,'3c'!X143,'3d'!X143,'3e (voluntary)'!X143)=0,\":\",SUM('3a'!X143,'3b'!X143,'3c'!X143,'3d'!X143,'3e (voluntary)'!X143))","v":":"},null,{"$f":"IF(COUNT('3a'!Z143,'3b'!Z143,'3c'!Z143,'3d'!Z143,'3e (voluntary)'!Z143)=0,\":\",SUM('3a'!Z143,'3b'!Z143,'3c'!Z143,'3d'!Z143,'3e (voluntary)'!Z143))","v":":"},null,{"$f":"IF(COUNT('3a'!AB143,'3b'!AB143,'3c'!AB143,'3d'!AB143,'3e (voluntary)'!AB143)=0,\":\",SUM('3a'!AB143,'3b'!AB143,'3c'!AB143,'3d'!AB143,'3e (voluntary)'!AB143))","v":":"},null,{"$f":"IF(COUNT('3a'!AD143,'3b'!AD143,'3c'!AD143,'3d'!AD143,'3e (voluntary)'!AD143)=0,\":\",SUM('3a'!AD143,'3b'!AD143,'3c'!AD143,'3d'!AD143,'3e (voluntary)'!AD143))","v":":"},null,{"$f":"IF(COUNT('3a'!AF143,'3b'!AF143,'3c'!AF143,'3d'!AF143,'3e (voluntary)'!AF143)=0,\":\",SUM('3a'!AF143,'3b'!AF143,'3c'!AF143,'3d'!AF143,'3e (voluntary)'!AF143))","v":":"}]
["S11_S12","EP_BUS","EPS_P1_ANC",null,null,null,null,null,2025,{"$f":"IF(COUNT('3a'!J144,'3b'!J144,'3c'!J144,'3d'!J144,'3e (voluntary)'!J144)=0,\":\",SUM('3a'!J144,'3b'!J144,'3c'!J144,'3d'!J144,'3e (voluntary)'!J144))","v":":"},null,{"$f":"IF(COUNT('3a'!L144,'3b'!L144,'3c'!L144,'3d'!L144,'3e (voluntary)'!L144)=0,\":\",SUM('3a'!L144,'3b'!L144,'3c'!L144,'3d'!L144,'3e (voluntary)'!L144))","v":":"},null,{"$f":"IF(COUNT('3a'!N144,'3b'!N144,'3c'!N144,'3d'!N144,'3e (voluntary)'!N144)=0,\":\",SUM('3a'!N144,'3b'!N144,'3c'!N144,'3d'!N144,'3e (voluntary)'!N144))","v":":"},null,{"$f":"IF(COUNT('3a'!P144,'3b'!P144,'3c'!P144,'3d'!P144,'3e (voluntary)'!P144)=0,\":\",SUM('3a'!P144,'3b'!P144,'3c'!P144,'3d'!P144,'3e (voluntary)'!P144))","v":":"},null,{"$f":"IF(COUNT('3a'!R144,'3b'!R144,'3c'!R144,'3d'!R144,'3e (voluntary)'!R144)=0,\":\",SUM('3a'!R144,'3b'!R144,'3c'!R144,'3d'!R144,'3e (voluntary)'!R144))","v":":"},null,{"$f":"IF(COUNT('3a'!T144,'3b'!T144,'3c'!T144,'3d'!T144,'3e (voluntary)'!T144)=0,\":\",SUM('3a'!T144,'3b'!T144,'3c'!T144,'3d'!T144,'3e (voluntary)'!T144))","v":":"},null,{"$f":"IF(COUNT('3a'!V144,'3b'!V144,'3c'!V144,'3d'!V144,'3e (voluntary)'!V144)=0,\":\",SUM('3a'!V144,'3b'!V144,'3c'!V144,'3d'!V144,'3e (voluntary)'!V144))","v":":"},null,{"$f":"IF(COUNT('3a'!X144,'3b'!X144,'3c'!X144,'3d'!X144,'3e (voluntary)'!X144)=0,\":\",SUM('3a'!X144,'3b'!X144,'3c'!X144,'3d'!X144,'3e (voluntary)'!X144))","v":":"},null,{"$f":"IF(COUNT('3a'!Z144,'3b'!Z144,'3c'!Z144,'3d'!Z144,'3e (voluntary)'!Z144)=0,\":\",SUM('3a'!Z144,'3b'!Z144,'3c'!Z144,'3d'!Z144,'3e (voluntary)'!Z144))","v":":"},null,{"$f":"IF(COUNT('3a'!AB144,'3b'!AB144,'3c'!AB144,'3d'!AB144,'3e (voluntary)'!AB144)=0,\":\",SUM('3a'!AB144,'3b'!AB144,'3c'!AB144,'3d'!AB144,'3e (voluntary)'!AB144))","v":":"},null,{"$f":"IF(COUNT('3a'!AD144,'3b'!AD144,'3c'!AD144,'3d'!AD144,'3e (voluntary)'!AD144)=0,\":\",SUM('3a'!AD144,'3b'!AD144,'3c'!AD144,'3d'!AD144,'3e (voluntary)'!AD144))","v":":"},null,{"$f":"IF(COUNT('3a'!AF144,'3b'!AF144,'3c'!AF144,'3d'!AF144,'3e (voluntary)'!AF144)=0,\":\",SUM('3a'!AF144,'3b'!AF144,'3c'!AF144,'3d'!AF144,'3e (voluntary)'!AF144))","v":":"}]
["S11_S12","EP_BUS","EPS_P1_ANC",null,null,null,null,null,2026,{"$f":"IF(COUNT('3a'!J145,'3b'!J145,'3c'!J145,'3d'!J145,'3e (voluntary)'!J145)=0,\":\",SUM('3a'!J145,'3b'!J145,'3c'!J145,'3d'!J145,'3e (voluntary)'!J145))","v":":"},null,{"$f":"IF(COUNT('3a'!L145,'3b'!L145,'3c'!L145,'3d'!L145,'3e (voluntary)'!L145)=0,\":\",SUM('3a'!L145,'3b'!L145,'3c'!L145,'3d'!L145,'3e (voluntary)'!L145))","v":":"},null,{"$f":"IF(COUNT('3a'!N145,'3b'!N145,'3c'!N145,'3d'!N145,'3e (voluntary)'!N145)=0,\":\",SUM('3a'!N145,'3b'!N145,'3c'!N145,'3d'!N145,'3e (voluntary)'!N145))","v":":"},null,{"$f":"IF(COUNT('3a'!P145,'3b'!P145,'3c'!P145,'3d'!P145,'3e (voluntary)'!P145)=0,\":\",SUM('3a'!P145,'3b'!P145,'3c'!P145,'3d'!P145,'3e (voluntary)'!P145))","v":":"},null,{"$f":"IF(COUNT('3a'!R145,'3b'!R145,'3c'!R145,'3d'!R145,'3e (voluntary)'!R145)=0,\":\",SUM('3a'!R145,'3b'!R145,'3c'!R145,'3d'!R145,'3e (voluntary)'!R145))","v":":"},null,{"$f":"IF(COUNT('3a'!T145,'3b'!T145,'3c'!T145,'3d'!T145,'3e (voluntary)'!T145)=0,\":\",SUM('3a'!T145,'3b'!T145,'3c'!T145,'3d'!T145,'3e (voluntary)'!T145))","v":":"},null,{"$f":"IF(COUNT('3a'!V145,'3b'!V145,'3c'!V145,'3d'!V145,'3e (voluntary)'!V145)=0,\":\",SUM('3a'!V145,'3b'!V145,'3c'!V145,'3d'!V145,'3e (voluntary)'!V145))","v":":"},null,{"$f":"IF(COUNT('3a'!X145,'3b'!X145,'3c'!X145,'3d'!X145,'3e (voluntary)'!X145)=0,\":\",SUM('3a'!X145,'3b'!X145,'3c'!X145,'3d'!X145,'3e (voluntary)'!X145))","v":":"},null,{"$f":"IF(COUNT('3a'!Z145,'3b'!Z145,'3c'!Z145,'3d'!Z145,'3e (voluntary)'!Z145)=0,\":\",SUM('3a'!Z145,'3b'!Z145,'3c'!Z145,'3d'!Z145,'3e (voluntary)'!Z145))","v":":"},null,{"$f":"IF(COUNT('3a'!AB145,'3b'!AB145,'3c'!AB145,'3d'!AB145,'3e (voluntary)'!AB145)=0,\":\",SUM('3a'!AB145,'3b'!AB145,'3c'!AB145,'3d'!AB145,'3e (voluntary)'!AB145))","v":":"},null,{"$f":"IF(COUNT('3a'!AD145,'3b'!AD145,'3c'!AD145,'3d'!AD145,'3e (voluntary)'!AD145)=0,\":\",SUM('3a'!AD145,'3b'!AD145,'3c'!AD145,'3d'!AD145,'3e (voluntary)'!AD145))","v":":"},null,{"$f":"IF(COUNT('3a'!AF145,'3b'!AF145,'3c'!AF145,'3d'!AF145,'3e (voluntary)'!AF145)=0,\":\",SUM('3a'!AF145,'3b'!AF145,'3c'!AF145,'3d'!AF145,'3e (voluntary)'!AF145))","v":":"}]
["S11_S12","EP_BUS","EPS_P1_ANC",null,null,null,null,null,2027,{"$f":"IF(COUNT('3a'!J146,'3b'!J146,'3c'!J146,'3d'!J146,'3e (voluntary)'!J146)=0,\":\",SUM('3a'!J146,'3b'!J146,'3c'!J146,'3d'!J146,'3e (voluntary)'!J146))","v":":"},null,{"$f":"IF(COUNT('3a'!L146,'3b'!L146,'3c'!L146,'3d'!L146,'3e (voluntary)'!L146)=0,\":\",SUM('3a'!L146,'3b'!L146,'3c'!L146,'3d'!L146,'3e (voluntary)'!L146))","v":":"},null,{"$f":"IF(COUNT('3a'!N146,'3b'!N146,'3c'!N146,'3d'!N146,'3e (voluntary)'!N146)=0,\":\",SUM('3a'!N146,'3b'!N146,'3c'!N146,'3d'!N146,'3e (voluntary)'!N146))","v":":"},null,{"$f":"IF(COUNT('3a'!P146,'3b'!P146,'3c'!P146,'3d'!P146,'3e (voluntary)'!P146)=0,\":\",SUM('3a'!P146,'3b'!P146,'3c'!P146,'3d'!P146,'3e (voluntary)'!P146))","v":":"},null,{"$f":"IF(COUNT('3a'!R146,'3b'!R146,'3c'!R146,'3d'!R146,'3e (voluntary)'!R146)=0,\":\",SUM('3a'!R146,'3b'!R146,'3c'!R146,'3d'!R146,'3e (voluntary)'!R146))","v":":"},null,{"$f":"IF(COUNT('3a'!T146,'3b'!T146,'3c'!T146,'3d'!T146,'3e (voluntary)'!T146)=0,\":\",SUM('3a'!T146,'3b'!T146,'3c'!T146,'3d'!T146,'3e (voluntary)'!T146))","v":":"},null,{"$f":"IF(COUNT('3a'!V146,'3b'!V146,'3c'!V146,'3d'!V146,'3e (voluntary)'!V146)=0,\":\",SUM('3a'!V146,'3b'!V146,'3c'!V146,'3d'!V146,'3e (voluntary)'!V146))","v":":"},null,{"$f":"IF(COUNT('3a'!X146,'3b'!X146,'3c'!X146,'3d'!X146,'3e (voluntary)'!X146)=0,\":\",SUM('3a'!X146,'3b'!X146,'3c'!X146,'3d'!X146,'3e (voluntary)'!X146))","v":":"},null,{"$f":"IF(COUNT('3a'!Z146,'3b'!Z146,'3c'!Z146,'3d'!Z146,'3e (voluntary)'!Z146)=0,\":\",SUM('3a'!Z146,'3b'!Z146,'3c'!Z146,'3d'!Z146,'3e (voluntary)'!Z146))","v":":"},null,{"$f":"IF(COUNT('3a'!AB146,'3b'!AB146,'3c'!AB146,'3d'!AB146,'3e (voluntary)'!AB146)=0,\":\",SUM('3a'!AB146,'3b'!AB146,'3c'!AB146,'3d'!AB146,'3e (voluntary)'!AB146))","v":":"},null,{"$f":"IF(COUNT('3a'!AD146,'3b'!AD146,'3c'!AD146,'3d'!AD146,'3e (voluntary)'!AD146)=0,\":\",SUM('3a'!AD146,'3b'!AD146,'3c'!AD146,'3d'!AD146,'3e (voluntary)'!AD146))","v":":"},null,{"$f":"IF(COUNT('3a'!AF146,'3b'!AF146,'3c'!AF146,'3d'!AF146,'3e (voluntary)'!AF146)=0,\":\",SUM('3a'!AF146,'3b'!AF146,'3c'!AF146,'3d'!AF146,'3e (voluntary)'!AF146))","v":":"}]
["S11_S12","EP_BUS","EPS_P1_ANC",null,null,null,null,null,2028,{"$f":"IF(COUNT('3a'!J147,'3b'!J147,'3c'!J147,'3d'!J147,'3e (voluntary)'!J147)=0,\":\",SUM('3a'!J147,'3b'!J147,'3c'!J147,'3d'!J147,'3e (voluntary)'!J147))","v":":"},null,{"$f":"IF(COUNT('3a'!L147,'3b'!L147,'3c'!L147,'3d'!L147,'3e (voluntary)'!L147)=0,\":\",SUM('3a'!L147,'3b'!L147,'3c'!L147,'3d'!L147,'3e (voluntary)'!L147))","v":":"},null,{"$f":"IF(COUNT('3a'!N147,'3b'!N147,'3c'!N147,'3d'!N147,'3e (voluntary)'!N147)=0,\":\",SUM('3a'!N147,'3b'!N147,'3c'!N147,'3d'!N147,'3e (voluntary)'!N147))","v":":"},null,{"$f":"IF(COUNT('3a'!P147,'3b'!P147,'3c'!P147,'3d'!P147,'3e (voluntary)'!P147)=0,\":\",SUM('3a'!P147,'3b'!P147,'3c'!P147,'3d'!P147,'3e (voluntary)'!P147))","v":":"},null,{"$f":"IF(COUNT('3a'!R147,'3b'!R147,'3c'!R147,'3d'!R147,'3e (voluntary)'!R147)=0,\":\",SUM('3a'!R147,'3b'!R147,'3c'!R147,'3d'!R147,'3e (voluntary)'!R147))","v":":"},null,{"$f":"IF(COUNT('3a'!T147,'3b'!T147,'3c'!T147,'3d'!T147,'3e (voluntary)'!T147)=0,\":\",SUM('3a'!T147,'3b'!T147,'3c'!T147,'3d'!T147,'3e (voluntary)'!T147))","v":":"},null,{"$f":"IF(COUNT('3a'!V147,'3b'!V147,'3c'!V147,'3d'!V147,'3e (voluntary)'!V147)=0,\":\",SUM('3a'!V147,'3b'!V147,'3c'!V147,'3d'!V147,'3e (voluntary)'!V147))","v":":"},null,{"$f":"IF(COUNT('3a'!X147,'3b'!X147,'3c'!X147,'3d'!X147,'3e (voluntary)'!X147)=0,\":\",SUM('3a'!X147,'3b'!X147,'3c'!X147,'3d'!X147,'3e (voluntary)'!X147))","v":":"},null,{"$f":"IF(COUNT('3a'!Z147,'3b'!Z147,'3c'!Z147,'3d'!Z147,'3e (voluntary)'!Z147)=0,\":\",SUM('3a'!Z147,'3b'!Z147,'3c'!Z147,'3d'!Z147,'3e (voluntary)'!Z147))","v":":"},null,{"$f":"IF(COUNT('3a'!AB147,'3b'!AB147,'3c'!AB147,'3d'!AB147,'3e (voluntary)'!AB147)=0,\":\",SUM('3a'!AB147,'3b'!AB147,'3c'!AB147,'3d'!AB147,'3e (voluntary)'!AB147))","v":":"},null,{"$f":"IF(COUNT('3a'!AD147,'3b'!AD147,'3c'!AD147,'3d'!AD147,'3e (voluntary)'!AD147)=0,\":\",SUM('3a'!AD147,'3b'!AD147,'3c'!AD147,'3d'!AD147,'3e (voluntary)'!AD147))","v":":"},null,{"$f":"IF(COUNT('3a'!AF147,'3b'!AF147,'3c'!AF147,'3d'!AF147,'3e (voluntary)'!AF147)=0,\":\",SUM('3a'!AF147,'3b'!AF147,'3c'!AF147,'3d'!AF147,'3e (voluntary)'!AF147))","v":":"}]
["S11_S12","EP_BUS","EPS_P1_ANC",null,null,null,null,null,2029,{"$f":"IF(COUNT('3a'!J148,'3b'!J148,'3c'!J148,'3d'!J148,'3e (voluntary)'!J148)=0,\":\",SUM('3a'!J148,'3b'!J148,'3c'!J148,'3d'!J148,'3e (voluntary)'!J148))","v":":"},null,{"$f":"IF(COUNT('3a'!L148,'3b'!L148,'3c'!L148,'3d'!L148,'3e (voluntary)'!L148)=0,\":\",SUM('3a'!L148,'3b'!L148,'3c'!L148,'3d'!L148,'3e (voluntary)'!L148))","v":":"},null,{"$f":"IF(COUNT('3a'!N148,'3b'!N148,'3c'!N148,'3d'!N148,'3e (voluntary)'!N148)=0,\":\",SUM('3a'!N148,'3b'!N148,'3c'!N148,'3d'!N148,'3e (voluntary)'!N148))","v":":"},null,{"$f":"IF(COUNT('3a'!P148,'3b'!P148,'3c'!P148,'3d'!P148,'3e (voluntary)'!P148)=0,\":\",SUM('3a'!P148,'3b'!P148,'3c'!P148,'3d'!P148,'3e (voluntary)'!P148))","v":":"},null,{"$f":"IF(COUNT('3a'!R148,'3b'!R148,'3c'!R148,'3d'!R148,'3e (voluntary)'!R148)=0,\":\",SUM('3a'!R148,'3b'!R148,'3c'!R148,'3d'!R148,'3e (voluntary)'!R148))","v":":"},null,{"$f":"IF(COUNT('3a'!T148,'3b'!T148,'3c'!T148,'3d'!T148,'3e (voluntary)'!T148)=0,\":\",SUM('3a'!T148,'3b'!T148,'3c'!T148,'3d'!T148,'3e (voluntary)'!T148))","v":":"},null,{"$f":"IF(COUNT('3a'!V148,'3b'!V148,'3c'!V148,'3d'!V148,'3e (voluntary)'!V148)=0,\":\",SUM('3a'!V148,'3b'!V148,'3c'!V148,'3d'!V148,'3e (voluntary)'!V148))","v":":"},null,{"$f":"IF(COUNT('3a'!X148,'3b'!X148,'3c'!X148,'3d'!X148,'3e (voluntary)'!X148)=0,\":\",SUM('3a'!X148,'3b'!X148,'3c'!X148,'3d'!X148,'3e (voluntary)'!X148))","v":":"},null,{"$f":"IF(COUNT('3a'!Z148,'3b'!Z148,'3c'!Z148,'3d'!Z148,'3e (voluntary)'!Z148)=0,\":\",SUM('3a'!Z148,'3b'!Z148,'3c'!Z148,'3d'!Z148,'3e (voluntary)'!Z148))","v":":"},null,{"$f":"IF(COUNT('3a'!AB148,'3b'!AB148,'3c'!AB148,'3d'!AB148,'3e (voluntary)'!AB148)=0,\":\",SUM('3a'!AB148,'3b'!AB148,'3c'!AB148,'3d'!AB148,'3e (voluntary)'!AB148))","v":":"},null,{"$f":"IF(COUNT('3a'!AD148,'3b'!AD148,'3c'!AD148,'3d'!AD148,'3e (voluntary)'!AD148)=0,\":\",SUM('3a'!AD148,'3b'!AD148,'3c'!AD148,'3d'!AD148,'3e (voluntary)'!AD148))","v":":"},null,{"$f":"IF(COUNT('3a'!AF148,'3b'!AF148,'3c'!AF148,'3d'!AF148,'3e (voluntary)'!AF148)=0,\":\",SUM('3a'!AF148,'3b'!AF148,'3c'!AF148,'3d'!AF148,'3e (voluntary)'!AF148))","v":":"}]
["S11_S12","EP_BUS","EPS_P1_ANC",null,null,null,null,null,2030,{"$f":"IF(COUNT('3a'!J149,'3b'!J149,'3c'!J149,'3d'!J149,'3e (voluntary)'!J149)=0,\":\",SUM('3a'!J149,'3b'!J149,'3c'!J149,'3d'!J149,'3e (voluntary)'!J149))","v":":"},null,{"$f":"IF(COUNT('3a'!L149,'3b'!L149,'3c'!L149,'3d'!L149,'3e (voluntary)'!L149)=0,\":\",SUM('3a'!L149,'3b'!L149,'3c'!L149,'3d'!L149,'3e (voluntary)'!L149))","v":":"},null,{"$f":"IF(COUNT('3a'!N149,'3b'!N149,'3c'!N149,'3d'!N149,'3e (voluntary)'!N149)=0,\":\",SUM('3a'!N149,'3b'!N149,'3c'!N149,'3d'!N149,'3e (voluntary)'!N149))","v":":"},null,{"$f":"IF(COUNT('3a'!P149,'3b'!P149,'3c'!P149,'3d'!P149,'3e (voluntary)'!P149)=0,\":\",SUM('3a'!P149,'3b'!P149,'3c'!P149,'3d'!P149,'3e (voluntary)'!P149))","v":":"},null,{"$f":"IF(COUNT('3a'!R149,'3b'!R149,'3c'!R149,'3d'!R149,'3e (voluntary)'!R149)=0,\":\",SUM('3a'!R149,'3b'!R149,'3c'!R149,'3d'!R149,'3e (voluntary)'!R149))","v":":"},null,{"$f":"IF(COUNT('3a'!T149,'3b'!T149,'3c'!T149,'3d'!T149,'3e (voluntary)'!T149)=0,\":\",SUM('3a'!T149,'3b'!T149,'3c'!T149,'3d'!T149,'3e (voluntary)'!T149))","v":":"},null,{"$f":"IF(COUNT('3a'!V149,'3b'!V149,'3c'!V149,'3d'!V149,'3e (voluntary)'!V149)=0,\":\",SUM('3a'!V149,'3b'!V149,'3c'!V149,'3d'!V149,'3e (voluntary)'!V149))","v":":"},null,{"$f":"IF(COUNT('3a'!X149,'3b'!X149,'3c'!X149,'3d'!X149,'3e (voluntary)'!X149)=0,\":\",SUM('3a'!X149,'3b'!X149,'3c'!X149,'3d'!X149,'3e (voluntary)'!X149))","v":":"},null,{"$f":"IF(COUNT('3a'!Z149,'3b'!Z149,'3c'!Z149,'3d'!Z149,'3e (voluntary)'!Z149)=0,\":\",SUM('3a'!Z149,'3b'!Z149,'3c'!Z149,'3d'!Z149,'3e (voluntary)'!Z149))","v":":"},null,{"$f":"IF(COUNT('3a'!AB149,'3b'!AB149,'3c'!AB149,'3d'!AB149,'3e (voluntary)'!AB149)=0,\":\",SUM('3a'!AB149,'3b'!AB149,'3c'!AB149,'3d'!AB149,'3e (voluntary)'!AB149))","v":":"},null,{"$f":"IF(COUNT('3a'!AD149,'3b'!AD149,'3c'!AD149,'3d'!AD149,'3e (voluntary)'!AD149)=0,\":\",SUM('3a'!AD149,'3b'!AD149,'3c'!AD149,'3d'!AD149,'3e (voluntary)'!AD149))","v":":"},null,{"$f":"IF(COUNT('3a'!AF149,'3b'!AF149,'3c'!AF149,'3d'!AF149,'3e (voluntary)'!AF149)=0,\":\",SUM('3a'!AF149,'3b'!AF149,'3c'!AF149,'3d'!AF149,'3e (voluntary)'!AF149))","v":":"}]
["S11_S12","EP_BUS","EPS_P1_ANC",null,null,null,null,null,2031,{"$f":"IF(COUNT('3a'!J150,'3b'!J150,'3c'!J150,'3d'!J150,'3e (voluntary)'!J150)=0,\":\",SUM('3a'!J150,'3b'!J150,'3c'!J150,'3d'!J150,'3e (voluntary)'!J150))","v":":"},null,{"$f":"IF(COUNT('3a'!L150,'3b'!L150,'3c'!L150,'3d'!L150,'3e (voluntary)'!L150)=0,\":\",SUM('3a'!L150,'3b'!L150,'3c'!L150,'3d'!L150,'3e (voluntary)'!L150))","v":":"},null,{"$f":"IF(COUNT('3a'!N150,'3b'!N150,'3c'!N150,'3d'!N150,'3e (voluntary)'!N150)=0,\":\",SUM('3a'!N150,'3b'!N150,'3c'!N150,'3d'!N150,'3e (voluntary)'!N150))","v":":"},null,{"$f":"IF(COUNT('3a'!P150,'3b'!P150,'3c'!P150,'3d'!P150,'3e (voluntary)'!P150)=0,\":\",SUM('3a'!P150,'3b'!P150,'3c'!P150,'3d'!P150,'3e (voluntary)'!P150))","v":":"},null,{"$f":"IF(COUNT('3a'!R150,'3b'!R150,'3c'!R150,'3d'!R150,'3e (voluntary)'!R150)=0,\":\",SUM('3a'!R150,'3b'!R150,'3c'!R150,'3d'!R150,'3e (voluntary)'!R150))","v":":"},null,{"$f":"IF(COUNT('3a'!T150,'3b'!T150,'3c'!T150,'3d'!T150,'3e (voluntary)'!T150)=0,\":\",SUM('3a'!T150,'3b'!T150,'3c'!T150,'3d'!T150,'3e (voluntary)'!T150))","v":":"},null,{"$f":"IF(COUNT('3a'!V150,'3b'!V150,'3c'!V150,'3d'!V150,'3e (voluntary)'!V150)=0,\":\",SUM('3a'!V150,'3b'!V150,'3c'!V150,'3d'!V150,'3e (voluntary)'!V150))","v":":"},null,{"$f":"IF(COUNT('3a'!X150,'3b'!X150,'3c'!X150,'3d'!X150,'3e (voluntary)'!X150)=0,\":\",SUM('3a'!X150,'3b'!X150,'3c'!X150,'3d'!X150,'3e (voluntary)'!X150))","v":":"},null,{"$f":"IF(COUNT('3a'!Z150,'3b'!Z150,'3c'!Z150,'3d'!Z150,'3e (voluntary)'!Z150)=0,\":\",SUM('3a'!Z150,'3b'!Z150,'3c'!Z150,'3d'!Z150,'3e (voluntary)'!Z150))","v":":"},null,{"$f":"IF(COUNT('3a'!AB150,'3b'!AB150,'3c'!AB150,'3d'!AB150,'3e (voluntary)'!AB150)=0,\":\",SUM('3a'!AB150,'3b'!AB150,'3c'!AB150,'3d'!AB150,'3e (voluntary)'!AB150))","v":":"},null,{"$f":"IF(COUNT('3a'!AD150,'3b'!AD150,'3c'!AD150,'3d'!AD150,'3e (voluntary)'!AD150)=0,\":\",SUM('3a'!AD150,'3b'!AD150,'3c'!AD150,'3d'!AD150,'3e (voluntary)'!AD150))","v":":"},null,{"$f":"IF(COUNT('3a'!AF150,'3b'!AF150,'3c'!AF150,'3d'!AF150,'3e (voluntary)'!AF150)=0,\":\",SUM('3a'!AF150,'3b'!AF150,'3c'!AF150,'3d'!AF150,'3e (voluntary)'!AF150))","v":":"}]
["S11_S12","EP_BUS","EPS_D29X39",null,"   ( D29-D39.3 ) Other taxes less subsidies on production",null,null,null,2014,{"$f":"IF(COUNT('3a'!J151,'3b'!J151,'3c'!J151,'3d'!J151,'3e (voluntary)'!J151)=0,\":\",SUM('3a'!J151,'3b'!J151,'3c'!J151,'3d'!J151,'3e (voluntary)'!J151))","v":":"},null,{"$f":"IF(COUNT('3a'!L151,'3b'!L151,'3c'!L151,'3d'!L151,'3e (voluntary)'!L151)=0,\":\",SUM('3a'!L151,'3b'!L151,'3c'!L151,'3d'!L151,'3e (voluntary)'!L151))","v":":"},null,{"$f":"IF(COUNT('3a'!N151,'3b'!N151,'3c'!N151,'3d'!N151,'3e (voluntary)'!N151)=0,\":\",SUM('3a'!N151,'3b'!N151,'3c'!N151,'3d'!N151,'3e (voluntary)'!N151))","v":":"},null,{"$f":"IF(COUNT('3a'!P151,'3b'!P151,'3c'!P151,'3d'!P151,'3e (voluntary)'!P151)=0,\":\",SUM('3a'!P151,'3b'!P151,'3c'!P151,'3d'!P151,'3e (voluntary)'!P151))","v":":"},null,{"$f":"IF(COUNT('3a'!R151,'3b'!R151,'3c'!R151,'3d'!R151,'3e (voluntary)'!R151)=0,\":\",SUM('3a'!R151,'3b'!R151,'3c'!R151,'3d'!R151,'3e (voluntary)'!R151))","v":":"},null,{"$f":"IF(COUNT('3a'!T151,'3b'!T151,'3c'!T151,'3d'!T151,'3e (voluntary)'!T151)=0,\":\",SUM('3a'!T151,'3b'!T151,'3c'!T151,'3d'!T151,'3e (voluntary)'!T151))","v":":"},null,{"$f":"IF(COUNT('3a'!V151,'3b'!V151,'3c'!V151,'3d'!V151,'3e (voluntary)'!V151)=0,\":\",SUM('3a'!V151,'3b'!V151,'3c'!V151,'3d'!V151,'3e (voluntary)'!V151))","v":":"},null,{"$f":"IF(COUNT('3a'!X151,'3b'!X151,'3c'!X151,'3d'!X151,'3e (voluntary)'!X151)=0,\":\",SUM('3a'!X151,'3b'!X151,'3c'!X151,'3d'!X151,'3e (voluntary)'!X151))","v":":"},null,{"$f":"IF(COUNT('3a'!Z151,'3b'!Z151,'3c'!Z151,'3d'!Z151,'3e (voluntary)'!Z151)=0,\":\",SUM('3a'!Z151,'3b'!Z151,'3c'!Z151,'3d'!Z151,'3e (voluntary)'!Z151))","v":":"},null,{"$f":"IF(COUNT('3a'!AB151,'3b'!AB151,'3c'!AB151,'3d'!AB151,'3e (voluntary)'!AB151)=0,\":\",SUM('3a'!AB151,'3b'!AB151,'3c'!AB151,'3d'!AB151,'3e (voluntary)'!AB151))","v":":"},null,{"$f":"IF(COUNT('3a'!AD151,'3b'!AD151,'3c'!AD151,'3d'!AD151,'3e (voluntary)'!AD151)=0,\":\",SUM('3a'!AD151,'3b'!AD151,'3c'!AD151,'3d'!AD151,'3e (voluntary)'!AD151))","v":":"},null,{"$f":"IF(COUNT('3a'!AF151,'3b'!AF151,'3c'!AF151,'3d'!AF151,'3e (voluntary)'!AF151)=0,\":\",SUM('3a'!AF151,'3b'!AF151,'3c'!AF151,'3d'!AF151,'3e (voluntary)'!AF151))","v":":"}]
["S11_S12","EP_BUS","EPS_D29X39",null,null,null,null,null,2015,{"$f":"IF(COUNT('3a'!J152,'3b'!J152,'3c'!J152,'3d'!J152,'3e (voluntary)'!J152)=0,\":\",SUM('3a'!J152,'3b'!J152,'3c'!J152,'3d'!J152,'3e (voluntary)'!J152))","v":":"},null,{"$f":"IF(COUNT('3a'!L152,'3b'!L152,'3c'!L152,'3d'!L152,'3e (voluntary)'!L152)=0,\":\",SUM('3a'!L152,'3b'!L152,'3c'!L152,'3d'!L152,'3e (voluntary)'!L152))","v":":"},null,{"$f":"IF(COUNT('3a'!N152,'3b'!N152,'3c'!N152,'3d'!N152,'3e (voluntary)'!N152)=0,\":\",SUM('3a'!N152,'3b'!N152,'3c'!N152,'3d'!N152,'3e (voluntary)'!N152))","v":":"},null,{"$f":"IF(COUNT('3a'!P152,'3b'!P152,'3c'!P152,'3d'!P152,'3e (voluntary)'!P152)=0,\":\",SUM('3a'!P152,'3b'!P152,'3c'!P152,'3d'!P152,'3e (voluntary)'!P152))","v":":"},null,{"$f":"IF(COUNT('3a'!R152,'3b'!R152,'3c'!R152,'3d'!R152,'3e (voluntary)'!R152)=0,\":\",SUM('3a'!R152,'3b'!R152,'3c'!R152,'3d'!R152,'3e (voluntary)'!R152))","v":":"},null,{"$f":"IF(COUNT('3a'!T152,'3b'!T152,'3c'!T152,'3d'!T152,'3e (voluntary)'!T152)=0,\":\",SUM('3a'!T152,'3b'!T152,'3c'!T152,'3d'!T152,'3e (voluntary)'!T152))","v":":"},null,{"$f":"IF(COUNT('3a'!V152,'3b'!V152,'3c'!V152,'3d'!V152,'3e (voluntary)'!V152)=0,\":\",SUM('3a'!V152,'3b'!V152,'3c'!V152,'3d'!V152,'3e (voluntary)'!V152))","v":":"},null,{"$f":"IF(COUNT('3a'!X152,'3b'!X152,'3c'!X152,'3d'!X152,'3e (voluntary)'!X152)=0,\":\",SUM('3a'!X152,'3b'!X152,'3c'!X152,'3d'!X152,'3e (voluntary)'!X152))","v":":"},null,{"$f":"IF(COUNT('3a'!Z152,'3b'!Z152,'3c'!Z152,'3d'!Z152,'3e (voluntary)'!Z152)=0,\":\",SUM('3a'!Z152,'3b'!Z152,'3c'!Z152,'3d'!Z152,'3e (voluntary)'!Z152))","v":":"},null,{"$f":"IF(COUNT('3a'!AB152,'3b'!AB152,'3c'!AB152,'3d'!AB152,'3e (voluntary)'!AB152)=0,\":\",SUM('3a'!AB152,'3b'!AB152,'3c'!AB152,'3d'!AB152,'3e (voluntary)'!AB152))","v":":"},null,{"$f":"IF(COUNT('3a'!AD152,'3b'!AD152,'3c'!AD152,'3d'!AD152,'3e (voluntary)'!AD152)=0,\":\",SUM('3a'!AD152,'3b'!AD152,'3c'!AD152,'3d'!AD152,'3e (voluntary)'!AD152))","v":":"},null,{"$f":"IF(COUNT('3a'!AF152,'3b'!AF152,'3c'!AF152,'3d'!AF152,'3e (voluntary)'!AF152)=0,\":\",SUM('3a'!AF152,'3b'!AF152,'3c'!AF152,'3d'!AF152,'3e (voluntary)'!AF152))","v":":"}]
["S11_S12","EP_BUS","EPS_D29X39",null,null,null,null,null,2016,{"$f":"IF(COUNT('3a'!J153,'3b'!J153,'3c'!J153,'3d'!J153,'3e (voluntary)'!J153)=0,\":\",SUM('3a'!J153,'3b'!J153,'3c'!J153,'3d'!J153,'3e (voluntary)'!J153))","v":":"},null,{"$f":"IF(COUNT('3a'!L153,'3b'!L153,'3c'!L153,'3d'!L153,'3e (voluntary)'!L153)=0,\":\",SUM('3a'!L153,'3b'!L153,'3c'!L153,'3d'!L153,'3e (voluntary)'!L153))","v":":"},null,{"$f":"IF(COUNT('3a'!N153,'3b'!N153,'3c'!N153,'3d'!N153,'3e (voluntary)'!N153)=0,\":\",SUM('3a'!N153,'3b'!N153,'3c'!N153,'3d'!N153,'3e (voluntary)'!N153))","v":":"},null,{"$f":"IF(COUNT('3a'!P153,'3b'!P153,'3c'!P153,'3d'!P153,'3e (voluntary)'!P153)=0,\":\",SUM('3a'!P153,'3b'!P153,'3c'!P153,'3d'!P153,'3e (voluntary)'!P153))","v":":"},null,{"$f":"IF(COUNT('3a'!R153,'3b'!R153,'3c'!R153,'3d'!R153,'3e (voluntary)'!R153)=0,\":\",SUM('3a'!R153,'3b'!R153,'3c'!R153,'3d'!R153,'3e (voluntary)'!R153))","v":":"},null,{"$f":"IF(COUNT('3a'!T153,'3b'!T153,'3c'!T153,'3d'!T153,'3e (voluntary)'!T153)=0,\":\",SUM('3a'!T153,'3b'!T153,'3c'!T153,'3d'!T153,'3e (voluntary)'!T153))","v":":"},null,{"$f":"IF(COUNT('3a'!V153,'3b'!V153,'3c'!V153,'3d'!V153,'3e (voluntary)'!V153)=0,\":\",SUM('3a'!V153,'3b'!V153,'3c'!V153,'3d'!V153,'3e (voluntary)'!V153))","v":":"},null,{"$f":"IF(COUNT('3a'!X153,'3b'!X153,'3c'!X153,'3d'!X153,'3e (voluntary)'!X153)=0,\":\",SUM('3a'!X153,'3b'!X153,'3c'!X153,'3d'!X153,'3e (voluntary)'!X153))","v":":"},null,{"$f":"IF(COUNT('3a'!Z153,'3b'!Z153,'3c'!Z153,'3d'!Z153,'3e (voluntary)'!Z153)=0,\":\",SUM('3a'!Z153,'3b'!Z153,'3c'!Z153,'3d'!Z153,'3e (voluntary)'!Z153))","v":":"},null,{"$f":"IF(COUNT('3a'!AB153,'3b'!AB153,'3c'!AB153,'3d'!AB153,'3e (voluntary)'!AB153)=0,\":\",SUM('3a'!AB153,'3b'!AB153,'3c'!AB153,'3d'!AB153,'3e (voluntary)'!AB153))","v":":"},null,{"$f":"IF(COUNT('3a'!AD153,'3b'!AD153,'3c'!AD153,'3d'!AD153,'3e (voluntary)'!AD153)=0,\":\",SUM('3a'!AD153,'3b'!AD153,'3c'!AD153,'3d'!AD153,'3e (voluntary)'!AD153))","v":":"},null,{"$f":"IF(COUNT('3a'!AF153,'3b'!AF153,'3c'!AF153,'3d'!AF153,'3e (voluntary)'!AF153)=0,\":\",SUM('3a'!AF153,'3b'!AF153,'3c'!AF153,'3d'!AF153,'3e (voluntary)'!AF153))","v":":"}]
["S11_S12","EP_BUS","EPS_D29X39",null,null,null,null,null,2017,{"$f":"IF(COUNT('3a'!J154,'3b'!J154,'3c'!J154,'3d'!J154,'3e (voluntary)'!J154)=0,\":\",SUM('3a'!J154,'3b'!J154,'3c'!J154,'3d'!J154,'3e (voluntary)'!J154))","v":":"},null,{"$f":"IF(COUNT('3a'!L154,'3b'!L154,'3c'!L154,'3d'!L154,'3e (voluntary)'!L154)=0,\":\",SUM('3a'!L154,'3b'!L154,'3c'!L154,'3d'!L154,'3e (voluntary)'!L154))","v":":"},null,{"$f":"IF(COUNT('3a'!N154,'3b'!N154,'3c'!N154,'3d'!N154,'3e (voluntary)'!N154)=0,\":\",SUM('3a'!N154,'3b'!N154,'3c'!N154,'3d'!N154,'3e (voluntary)'!N154))","v":":"},null,{"$f":"IF(COUNT('3a'!P154,'3b'!P154,'3c'!P154,'3d'!P154,'3e (voluntary)'!P154)=0,\":\",SUM('3a'!P154,'3b'!P154,'3c'!P154,'3d'!P154,'3e (voluntary)'!P154))","v":":"},null,{"$f":"IF(COUNT('3a'!R154,'3b'!R154,'3c'!R154,'3d'!R154,'3e (voluntary)'!R154)=0,\":\",SUM('3a'!R154,'3b'!R154,'3c'!R154,'3d'!R154,'3e (voluntary)'!R154))","v":":"},null,{"$f":"IF(COUNT('3a'!T154,'3b'!T154,'3c'!T154,'3d'!T154,'3e (voluntary)'!T154)=0,\":\",SUM('3a'!T154,'3b'!T154,'3c'!T154,'3d'!T154,'3e (voluntary)'!T154))","v":":"},null,{"$f":"IF(COUNT('3a'!V154,'3b'!V154,'3c'!V154,'3d'!V154,'3e (voluntary)'!V154)=0,\":\",SUM('3a'!V154,'3b'!V154,'3c'!V154,'3d'!V154,'3e (voluntary)'!V154))","v":":"},null,{"$f":"IF(COUNT('3a'!X154,'3b'!X154,'3c'!X154,'3d'!X154,'3e (voluntary)'!X154)=0,\":\",SUM('3a'!X154,'3b'!X154,'3c'!X154,'3d'!X154,'3e (voluntary)'!X154))","v":":"},null,{"$f":"IF(COUNT('3a'!Z154,'3b'!Z154,'3c'!Z154,'3d'!Z154,'3e (voluntary)'!Z154)=0,\":\",SUM('3a'!Z154,'3b'!Z154,'3c'!Z154,'3d'!Z154,'3e (voluntary)'!Z154))","v":":"},null,{"$f":"IF(COUNT('3a'!AB154,'3b'!AB154,'3c'!AB154,'3d'!AB154,'3e (voluntary)'!AB154)=0,\":\",SUM('3a'!AB154,'3b'!AB154,'3c'!AB154,'3d'!AB154,'3e (voluntary)'!AB154))","v":":"},null,{"$f":"IF(COUNT('3a'!AD154,'3b'!AD154,'3c'!AD154,'3d'!AD154,'3e (voluntary)'!AD154)=0,\":\",SUM('3a'!AD154,'3b'!AD154,'3c'!AD154,'3d'!AD154,'3e (voluntary)'!AD154))","v":":"},null,{"$f":"IF(COUNT('3a'!AF154,'3b'!AF154,'3c'!AF154,'3d'!AF154,'3e (voluntary)'!AF154)=0,\":\",SUM('3a'!AF154,'3b'!AF154,'3c'!AF154,'3d'!AF154,'3e (voluntary)'!AF154))","v":":"}]
["S11_S12","EP_BUS","EPS_D29X39",null,null,null,null,null,2018,{"$f":"IF(COUNT('3a'!J155,'3b'!J155,'3c'!J155,'3d'!J155,'3e (voluntary)'!J155)=0,\":\",SUM('3a'!J155,'3b'!J155,'3c'!J155,'3d'!J155,'3e (voluntary)'!J155))","v":":"},null,{"$f":"IF(COUNT('3a'!L155,'3b'!L155,'3c'!L155,'3d'!L155,'3e (voluntary)'!L155)=0,\":\",SUM('3a'!L155,'3b'!L155,'3c'!L155,'3d'!L155,'3e (voluntary)'!L155))","v":":"},null,{"$f":"IF(COUNT('3a'!N155,'3b'!N155,'3c'!N155,'3d'!N155,'3e (voluntary)'!N155)=0,\":\",SUM('3a'!N155,'3b'!N155,'3c'!N155,'3d'!N155,'3e (voluntary)'!N155))","v":":"},null,{"$f":"IF(COUNT('3a'!P155,'3b'!P155,'3c'!P155,'3d'!P155,'3e (voluntary)'!P155)=0,\":\",SUM('3a'!P155,'3b'!P155,'3c'!P155,'3d'!P155,'3e (voluntary)'!P155))","v":":"},null,{"$f":"IF(COUNT('3a'!R155,'3b'!R155,'3c'!R155,'3d'!R155,'3e (voluntary)'!R155)=0,\":\",SUM('3a'!R155,'3b'!R155,'3c'!R155,'3d'!R155,'3e (voluntary)'!R155))","v":":"},null,{"$f":"IF(COUNT('3a'!T155,'3b'!T155,'3c'!T155,'3d'!T155,'3e (voluntary)'!T155)=0,\":\",SUM('3a'!T155,'3b'!T155,'3c'!T155,'3d'!T155,'3e (voluntary)'!T155))","v":":"},null,{"$f":"IF(COUNT('3a'!V155,'3b'!V155,'3c'!V155,'3d'!V155,'3e (voluntary)'!V155)=0,\":\",SUM('3a'!V155,'3b'!V155,'3c'!V155,'3d'!V155,'3e (voluntary)'!V155))","v":":"},null,{"$f":"IF(COUNT('3a'!X155,'3b'!X155,'3c'!X155,'3d'!X155,'3e (voluntary)'!X155)=0,\":\",SUM('3a'!X155,'3b'!X155,'3c'!X155,'3d'!X155,'3e (voluntary)'!X155))","v":":"},null,{"$f":"IF(COUNT('3a'!Z155,'3b'!Z155,'3c'!Z155,'3d'!Z155,'3e (voluntary)'!Z155)=0,\":\",SUM('3a'!Z155,'3b'!Z155,'3c'!Z155,'3d'!Z155,'3e (voluntary)'!Z155))","v":":"},null,{"$f":"IF(COUNT('3a'!AB155,'3b'!AB155,'3c'!AB155,'3d'!AB155,'3e (voluntary)'!AB155)=0,\":\",SUM('3a'!AB155,'3b'!AB155,'3c'!AB155,'3d'!AB155,'3e (voluntary)'!AB155))","v":":"},null,{"$f":"IF(COUNT('3a'!AD155,'3b'!AD155,'3c'!AD155,'3d'!AD155,'3e (voluntary)'!AD155)=0,\":\",SUM('3a'!AD155,'3b'!AD155,'3c'!AD155,'3d'!AD155,'3e (voluntary)'!AD155))","v":":"},null,{"$f":"IF(COUNT('3a'!AF155,'3b'!AF155,'3c'!AF155,'3d'!AF155,'3e (voluntary)'!AF155)=0,\":\",SUM('3a'!AF155,'3b'!AF155,'3c'!AF155,'3d'!AF155,'3e (voluntary)'!AF155))","v":":"}]
["S11_S12","EP_BUS","EPS_D29X39",null,null,null,null,null,2019,{"$f":"IF(COUNT('3a'!J156,'3b'!J156,'3c'!J156,'3d'!J156,'3e (voluntary)'!J156)=0,\":\",SUM('3a'!J156,'3b'!J156,'3c'!J156,'3d'!J156,'3e (voluntary)'!J156))","v":":"},null,{"$f":"IF(COUNT('3a'!L156,'3b'!L156,'3c'!L156,'3d'!L156,'3e (voluntary)'!L156)=0,\":\",SUM('3a'!L156,'3b'!L156,'3c'!L156,'3d'!L156,'3e (voluntary)'!L156))","v":":"},null,{"$f":"IF(COUNT('3a'!N156,'3b'!N156,'3c'!N156,'3d'!N156,'3e (voluntary)'!N156)=0,\":\",SUM('3a'!N156,'3b'!N156,'3c'!N156,'3d'!N156,'3e (voluntary)'!N156))","v":":"},null,{"$f":"IF(COUNT('3a'!P156,'3b'!P156,'3c'!P156,'3d'!P156,'3e (voluntary)'!P156)=0,\":\",SUM('3a'!P156,'3b'!P156,'3c'!P156,'3d'!P156,'3e (voluntary)'!P156))","v":":"},null,{"$f":"IF(COUNT('3a'!R156,'3b'!R156,'3c'!R156,'3d'!R156,'3e (voluntary)'!R156)=0,\":\",SUM('3a'!R156,'3b'!R156,'3c'!R156,'3d'!R156,'3e (voluntary)'!R156))","v":":"},null,{"$f":"IF(COUNT('3a'!T156,'3b'!T156,'3c'!T156,'3d'!T156,'3e (voluntary)'!T156)=0,\":\",SUM('3a'!T156,'3b'!T156,'3c'!T156,'3d'!T156,'3e (voluntary)'!T156))","v":":"},null,{"$f":"IF(COUNT('3a'!V156,'3b'!V156,'3c'!V156,'3d'!V156,'3e (voluntary)'!V156)=0,\":\",SUM('3a'!V156,'3b'!V156,'3c'!V156,'3d'!V156,'3e (voluntary)'!V156))","v":":"},null,{"$f":"IF(COUNT('3a'!X156,'3b'!X156,'3c'!X156,'3d'!X156,'3e (voluntary)'!X156)=0,\":\",SUM('3a'!X156,'3b'!X156,'3c'!X156,'3d'!X156,'3e (voluntary)'!X156))","v":":"},null,{"$f":"IF(COUNT('3a'!Z156,'3b'!Z156,'3c'!Z156,'3d'!Z156,'3e (voluntary)'!Z156)=0,\":\",SUM('3a'!Z156,'3b'!Z156,'3c'!Z156,'3d'!Z156,'3e (voluntary)'!Z156))","v":":"},null,{"$f":"IF(COUNT('3a'!AB156,'3b'!AB156,'3c'!AB156,'3d'!AB156,'3e (voluntary)'!AB156)=0,\":\",SUM('3a'!AB156,'3b'!AB156,'3c'!AB156,'3d'!AB156,'3e (voluntary)'!AB156))","v":":"},null,{"$f":"IF(COUNT('3a'!AD156,'3b'!AD156,'3c'!AD156,'3d'!AD156,'3e (voluntary)'!AD156)=0,\":\",SUM('3a'!AD156,'3b'!AD156,'3c'!AD156,'3d'!AD156,'3e (voluntary)'!AD156))","v":":"},null,{"$f":"IF(COUNT('3a'!AF156,'3b'!AF156,'3c'!AF156,'3d'!AF156,'3e (voluntary)'!AF156)=0,\":\",SUM('3a'!AF156,'3b'!AF156,'3c'!AF156,'3d'!AF156,'3e (voluntary)'!AF156))","v":":"}]
["S11_S12","EP_BUS","EPS_D29X39",null,null,null,null,null,2020,{"$f":"IF(COUNT('3a'!J157,'3b'!J157,'3c'!J157,'3d'!J157,'3e (voluntary)'!J157)=0,\":\",SUM('3a'!J157,'3b'!J157,'3c'!J157,'3d'!J157,'3e (voluntary)'!J157))","v":":"},null,{"$f":"IF(COUNT('3a'!L157,'3b'!L157,'3c'!L157,'3d'!L157,'3e (voluntary)'!L157)=0,\":\",SUM('3a'!L157,'3b'!L157,'3c'!L157,'3d'!L157,'3e (voluntary)'!L157))","v":":"},null,{"$f":"IF(COUNT('3a'!N157,'3b'!N157,'3c'!N157,'3d'!N157,'3e (voluntary)'!N157)=0,\":\",SUM('3a'!N157,'3b'!N157,'3c'!N157,'3d'!N157,'3e (voluntary)'!N157))","v":":"},null,{"$f":"IF(COUNT('3a'!P157,'3b'!P157,'3c'!P157,'3d'!P157,'3e (voluntary)'!P157)=0,\":\",SUM('3a'!P157,'3b'!P157,'3c'!P157,'3d'!P157,'3e (voluntary)'!P157))","v":":"},null,{"$f":"IF(COUNT('3a'!R157,'3b'!R157,'3c'!R157,'3d'!R157,'3e (voluntary)'!R157)=0,\":\",SUM('3a'!R157,'3b'!R157,'3c'!R157,'3d'!R157,'3e (voluntary)'!R157))","v":":"},null,{"$f":"IF(COUNT('3a'!T157,'3b'!T157,'3c'!T157,'3d'!T157,'3e (voluntary)'!T157)=0,\":\",SUM('3a'!T157,'3b'!T157,'3c'!T157,'3d'!T157,'3e (voluntary)'!T157))","v":":"},null,{"$f":"IF(COUNT('3a'!V157,'3b'!V157,'3c'!V157,'3d'!V157,'3e (voluntary)'!V157)=0,\":\",SUM('3a'!V157,'3b'!V157,'3c'!V157,'3d'!V157,'3e (voluntary)'!V157))","v":":"},null,{"$f":"IF(COUNT('3a'!X157,'3b'!X157,'3c'!X157,'3d'!X157,'3e (voluntary)'!X157)=0,\":\",SUM('3a'!X157,'3b'!X157,'3c'!X157,'3d'!X157,'3e (voluntary)'!X157))","v":":"},null,{"$f":"IF(COUNT('3a'!Z157,'3b'!Z157,'3c'!Z157,'3d'!Z157,'3e (voluntary)'!Z157)=0,\":\",SUM('3a'!Z157,'3b'!Z157,'3c'!Z157,'3d'!Z157,'3e (voluntary)'!Z157))","v":":"},null,{"$f":"IF(COUNT('3a'!AB157,'3b'!AB157,'3c'!AB157,'3d'!AB157,'3e (voluntary)'!AB157)=0,\":\",SUM('3a'!AB157,'3b'!AB157,'3c'!AB157,'3d'!AB157,'3e (voluntary)'!AB157))","v":":"},null,{"$f":"IF(COUNT('3a'!AD157,'3b'!AD157,'3c'!AD157,'3d'!AD157,'3e (voluntary)'!AD157)=0,\":\",SUM('3a'!AD157,'3b'!AD157,'3c'!AD157,'3d'!AD157,'3e (voluntary)'!AD157))","v":":"},null,{"$f":"IF(COUNT('3a'!AF157,'3b'!AF157,'3c'!AF157,'3d'!AF157,'3e (voluntary)'!AF157)=0,\":\",SUM('3a'!AF157,'3b'!AF157,'3c'!AF157,'3d'!AF157,'3e (voluntary)'!AF157))","v":":"}]
["S11_S12","EP_BUS","EPS_D29X39",null,null,null,null,null,2021,{"$f":"IF(COUNT('3a'!J158,'3b'!J158,'3c'!J158,'3d'!J158,'3e (voluntary)'!J158)=0,\":\",SUM('3a'!J158,'3b'!J158,'3c'!J158,'3d'!J158,'3e (voluntary)'!J158))","v":":"},null,{"$f":"IF(COUNT('3a'!L158,'3b'!L158,'3c'!L158,'3d'!L158,'3e (voluntary)'!L158)=0,\":\",SUM('3a'!L158,'3b'!L158,'3c'!L158,'3d'!L158,'3e (voluntary)'!L158))","v":":"},null,{"$f":"IF(COUNT('3a'!N158,'3b'!N158,'3c'!N158,'3d'!N158,'3e (voluntary)'!N158)=0,\":\",SUM('3a'!N158,'3b'!N158,'3c'!N158,'3d'!N158,'3e (voluntary)'!N158))","v":":"},null,{"$f":"IF(COUNT('3a'!P158,'3b'!P158,'3c'!P158,'3d'!P158,'3e (voluntary)'!P158)=0,\":\",SUM('3a'!P158,'3b'!P158,'3c'!P158,'3d'!P158,'3e (voluntary)'!P158))","v":":"},null,{"$f":"IF(COUNT('3a'!R158,'3b'!R158,'3c'!R158,'3d'!R158,'3e (voluntary)'!R158)=0,\":\",SUM('3a'!R158,'3b'!R158,'3c'!R158,'3d'!R158,'3e (voluntary)'!R158))","v":":"},null,{"$f":"IF(COUNT('3a'!T158,'3b'!T158,'3c'!T158,'3d'!T158,'3e (voluntary)'!T158)=0,\":\",SUM('3a'!T158,'3b'!T158,'3c'!T158,'3d'!T158,'3e (voluntary)'!T158))","v":":"},null,{"$f":"IF(COUNT('3a'!V158,'3b'!V158,'3c'!V158,'3d'!V158,'3e (voluntary)'!V158)=0,\":\",SUM('3a'!V158,'3b'!V158,'3c'!V158,'3d'!V158,'3e (voluntary)'!V158))","v":":"},null,{"$f":"IF(COUNT('3a'!X158,'3b'!X158,'3c'!X158,'3d'!X158,'3e (voluntary)'!X158)=0,\":\",SUM('3a'!X158,'3b'!X158,'3c'!X158,'3d'!X158,'3e (voluntary)'!X158))","v":":"},null,{"$f":"IF(COUNT('3a'!Z158,'3b'!Z158,'3c'!Z158,'3d'!Z158,'3e (voluntary)'!Z158)=0,\":\",SUM('3a'!Z158,'3b'!Z158,'3c'!Z158,'3d'!Z158,'3e (voluntary)'!Z158))","v":":"},null,{"$f":"IF(COUNT('3a'!AB158,'3b'!AB158,'3c'!AB158,'3d'!AB158,'3e (voluntary)'!AB158)=0,\":\",SUM('3a'!AB158,'3b'!AB158,'3c'!AB158,'3d'!AB158,'3e (voluntary)'!AB158))","v":":"},null,{"$f":"IF(COUNT('3a'!AD158,'3b'!AD158,'3c'!AD158,'3d'!AD158,'3e (voluntary)'!AD158)=0,\":\",SUM('3a'!AD158,'3b'!AD158,'3c'!AD158,'3d'!AD158,'3e (voluntary)'!AD158))","v":":"},null,{"$f":"IF(COUNT('3a'!AF158,'3b'!AF158,'3c'!AF158,'3d'!AF158,'3e (voluntary)'!AF158)=0,\":\",SUM('3a'!AF158,'3b'!AF158,'3c'!AF158,'3d'!AF158,'3e (voluntary)'!AF158))","v":":"}]
["S11_S12","EP_BUS","EPS_D29X39",null,null,null,null,null,2022,{"$f":"IF(COUNT('3a'!J159,'3b'!J159,'3c'!J159,'3d'!J159,'3e (voluntary)'!J159)=0,\":\",SUM('3a'!J159,'3b'!J159,'3c'!J159,'3d'!J159,'3e (voluntary)'!J159))","v":":"},null,{"$f":"IF(COUNT('3a'!L159,'3b'!L159,'3c'!L159,'3d'!L159,'3e (voluntary)'!L159)=0,\":\",SUM('3a'!L159,'3b'!L159,'3c'!L159,'3d'!L159,'3e (voluntary)'!L159))","v":":"},null,{"$f":"IF(COUNT('3a'!N159,'3b'!N159,'3c'!N159,'3d'!N159,'3e (voluntary)'!N159)=0,\":\",SUM('3a'!N159,'3b'!N159,'3c'!N159,'3d'!N159,'3e (voluntary)'!N159))","v":":"},null,{"$f":"IF(COUNT('3a'!P159,'3b'!P159,'3c'!P159,'3d'!P159,'3e (voluntary)'!P159)=0,\":\",SUM('3a'!P159,'3b'!P159,'3c'!P159,'3d'!P159,'3e (voluntary)'!P159))","v":":"},null,{"$f":"IF(COUNT('3a'!R159,'3b'!R159,'3c'!R159,'3d'!R159,'3e (voluntary)'!R159)=0,\":\",SUM('3a'!R159,'3b'!R159,'3c'!R159,'3d'!R159,'3e (voluntary)'!R159))","v":":"},null,{"$f":"IF(COUNT('3a'!T159,'3b'!T159,'3c'!T159,'3d'!T159,'3e (voluntary)'!T159)=0,\":\",SUM('3a'!T159,'3b'!T159,'3c'!T159,'3d'!T159,'3e (voluntary)'!T159))","v":":"},null,{"$f":"IF(COUNT('3a'!V159,'3b'!V159,'3c'!V159,'3d'!V159,'3e (voluntary)'!V159)=0,\":\",SUM('3a'!V159,'3b'!V159,'3c'!V159,'3d'!V159,'3e (voluntary)'!V159))","v":":"},null,{"$f":"IF(COUNT('3a'!X159,'3b'!X159,'3c'!X159,'3d'!X159,'3e (voluntary)'!X159)=0,\":\",SUM('3a'!X159,'3b'!X159,'3c'!X159,'3d'!X159,'3e (voluntary)'!X159))","v":":"},null,{"$f":"IF(COUNT('3a'!Z159,'3b'!Z159,'3c'!Z159,'3d'!Z159,'3e (voluntary)'!Z159)=0,\":\",SUM('3a'!Z159,'3b'!Z159,'3c'!Z159,'3d'!Z159,'3e (voluntary)'!Z159))","v":":"},null,{"$f":"IF(COUNT('3a'!AB159,'3b'!AB159,'3c'!AB159,'3d'!AB159,'3e (voluntary)'!AB159)=0,\":\",SUM('3a'!AB159,'3b'!AB159,'3c'!AB159,'3d'!AB159,'3e (voluntary)'!AB159))","v":":"},null,{"$f":"IF(COUNT('3a'!AD159,'3b'!AD159,'3c'!AD159,'3d'!AD159,'3e (voluntary)'!AD159)=0,\":\",SUM('3a'!AD159,'3b'!AD159,'3c'!AD159,'3d'!AD159,'3e (voluntary)'!AD159))","v":":"},null,{"$f":"IF(COUNT('3a'!AF159,'3b'!AF159,'3c'!AF159,'3d'!AF159,'3e (voluntary)'!AF159)=0,\":\",SUM('3a'!AF159,'3b'!AF159,'3c'!AF159,'3d'!AF159,'3e (voluntary)'!AF159))","v":":"}]
["S11_S12","EP_BUS","EPS_D29X39",null,null,null,null,null,2023,{"$f":"IF(COUNT('3a'!J160,'3b'!J160,'3c'!J160,'3d'!J160,'3e (voluntary)'!J160)=0,\":\",SUM('3a'!J160,'3b'!J160,'3c'!J160,'3d'!J160,'3e (voluntary)'!J160))","v":":"},null,{"$f":"IF(COUNT('3a'!L160,'3b'!L160,'3c'!L160,'3d'!L160,'3e (voluntary)'!L160)=0,\":\",SUM('3a'!L160,'3b'!L160,'3c'!L160,'3d'!L160,'3e (voluntary)'!L160))","v":":"},null,{"$f":"IF(COUNT('3a'!N160,'3b'!N160,'3c'!N160,'3d'!N160,'3e (voluntary)'!N160)=0,\":\",SUM('3a'!N160,'3b'!N160,'3c'!N160,'3d'!N160,'3e (voluntary)'!N160))","v":":"},null,{"$f":"IF(COUNT('3a'!P160,'3b'!P160,'3c'!P160,'3d'!P160,'3e (voluntary)'!P160)=0,\":\",SUM('3a'!P160,'3b'!P160,'3c'!P160,'3d'!P160,'3e (voluntary)'!P160))","v":":"},null,{"$f":"IF(COUNT('3a'!R160,'3b'!R160,'3c'!R160,'3d'!R160,'3e (voluntary)'!R160)=0,\":\",SUM('3a'!R160,'3b'!R160,'3c'!R160,'3d'!R160,'3e (voluntary)'!R160))","v":":"},null,{"$f":"IF(COUNT('3a'!T160,'3b'!T160,'3c'!T160,'3d'!T160,'3e (voluntary)'!T160)=0,\":\",SUM('3a'!T160,'3b'!T160,'3c'!T160,'3d'!T160,'3e (voluntary)'!T160))","v":":"},null,{"$f":"IF(COUNT('3a'!V160,'3b'!V160,'3c'!V160,'3d'!V160,'3e (voluntary)'!V160)=0,\":\",SUM('3a'!V160,'3b'!V160,'3c'!V160,'3d'!V160,'3e (voluntary)'!V160))","v":":"},null,{"$f":"IF(COUNT('3a'!X160,'3b'!X160,'3c'!X160,'3d'!X160,'3e (voluntary)'!X160)=0,\":\",SUM('3a'!X160,'3b'!X160,'3c'!X160,'3d'!X160,'3e (voluntary)'!X160))","v":":"},null,{"$f":"IF(COUNT('3a'!Z160,'3b'!Z160,'3c'!Z160,'3d'!Z160,'3e (voluntary)'!Z160)=0,\":\",SUM('3a'!Z160,'3b'!Z160,'3c'!Z160,'3d'!Z160,'3e (voluntary)'!Z160))","v":":"},null,{"$f":"IF(COUNT('3a'!AB160,'3b'!AB160,'3c'!AB160,'3d'!AB160,'3e (voluntary)'!AB160)=0,\":\",SUM('3a'!AB160,'3b'!AB160,'3c'!AB160,'3d'!AB160,'3e (voluntary)'!AB160))","v":":"},null,{"$f":"IF(COUNT('3a'!AD160,'3b'!AD160,'3c'!AD160,'3d'!AD160,'3e (voluntary)'!AD160)=0,\":\",SUM('3a'!AD160,'3b'!AD160,'3c'!AD160,'3d'!AD160,'3e (voluntary)'!AD160))","v":":"},null,{"$f":"IF(COUNT('3a'!AF160,'3b'!AF160,'3c'!AF160,'3d'!AF160,'3e (voluntary)'!AF160)=0,\":\",SUM('3a'!AF160,'3b'!AF160,'3c'!AF160,'3d'!AF160,'3e (voluntary)'!AF160))","v":":"}]
["S11_S12","EP_BUS","EPS_D29X39",null,null,null,null,null,2024,{"$f":"IF(COUNT('3a'!J161,'3b'!J161,'3c'!J161,'3d'!J161,'3e (voluntary)'!J161)=0,\":\",SUM('3a'!J161,'3b'!J161,'3c'!J161,'3d'!J161,'3e (voluntary)'!J161))","v":":"},null,{"$f":"IF(COUNT('3a'!L161,'3b'!L161,'3c'!L161,'3d'!L161,'3e (voluntary)'!L161)=0,\":\",SUM('3a'!L161,'3b'!L161,'3c'!L161,'3d'!L161,'3e (voluntary)'!L161))","v":":"},null,{"$f":"IF(COUNT('3a'!N161,'3b'!N161,'3c'!N161,'3d'!N161,'3e (voluntary)'!N161)=0,\":\",SUM('3a'!N161,'3b'!N161,'3c'!N161,'3d'!N161,'3e (voluntary)'!N161))","v":":"},null,{"$f":"IF(COUNT('3a'!P161,'3b'!P161,'3c'!P161,'3d'!P161,'3e (voluntary)'!P161)=0,\":\",SUM('3a'!P161,'3b'!P161,'3c'!P161,'3d'!P161,'3e (voluntary)'!P161))","v":":"},null,{"$f":"IF(COUNT('3a'!R161,'3b'!R161,'3c'!R161,'3d'!R161,'3e (voluntary)'!R161)=0,\":\",SUM('3a'!R161,'3b'!R161,'3c'!R161,'3d'!R161,'3e (voluntary)'!R161))","v":":"},null,{"$f":"IF(COUNT('3a'!T161,'3b'!T161,'3c'!T161,'3d'!T161,'3e (voluntary)'!T161)=0,\":\",SUM('3a'!T161,'3b'!T161,'3c'!T161,'3d'!T161,'3e (voluntary)'!T161))","v":":"},null,{"$f":"IF(COUNT('3a'!V161,'3b'!V161,'3c'!V161,'3d'!V161,'3e (voluntary)'!V161)=0,\":\",SUM('3a'!V161,'3b'!V161,'3c'!V161,'3d'!V161,'3e (voluntary)'!V161))","v":":"},null,{"$f":"IF(COUNT('3a'!X161,'3b'!X161,'3c'!X161,'3d'!X161,'3e (voluntary)'!X161)=0,\":\",SUM('3a'!X161,'3b'!X161,'3c'!X161,'3d'!X161,'3e (voluntary)'!X161))","v":":"},null,{"$f":"IF(COUNT('3a'!Z161,'3b'!Z161,'3c'!Z161,'3d'!Z161,'3e (voluntary)'!Z161)=0,\":\",SUM('3a'!Z161,'3b'!Z161,'3c'!Z161,'3d'!Z161,'3e (voluntary)'!Z161))","v":":"},null,{"$f":"IF(COUNT('3a'!AB161,'3b'!AB161,'3c'!AB161,'3d'!AB161,'3e (voluntary)'!AB161)=0,\":\",SUM('3a'!AB161,'3b'!AB161,'3c'!AB161,'3d'!AB161,'3e (voluntary)'!AB161))","v":":"},null,{"$f":"IF(COUNT('3a'!AD161,'3b'!AD161,'3c'!AD161,'3d'!AD161,'3e (voluntary)'!AD161)=0,\":\",SUM('3a'!AD161,'3b'!AD161,'3c'!AD161,'3d'!AD161,'3e (voluntary)'!AD161))","v":":"},null,{"$f":"IF(COUNT('3a'!AF161,'3b'!AF161,'3c'!AF161,'3d'!AF161,'3e (voluntary)'!AF161)=0,\":\",SUM('3a'!AF161,'3b'!AF161,'3c'!AF161,'3d'!AF161,'3e (voluntary)'!AF161))","v":":"}]
["S11_S12","EP_BUS","EPS_D29X39",null,null,null,null,null,2025,{"$f":"IF(COUNT('3a'!J162,'3b'!J162,'3c'!J162,'3d'!J162,'3e (voluntary)'!J162)=0,\":\",SUM('3a'!J162,'3b'!J162,'3c'!J162,'3d'!J162,'3e (voluntary)'!J162))","v":":"},null,{"$f":"IF(COUNT('3a'!L162,'3b'!L162,'3c'!L162,'3d'!L162,'3e (voluntary)'!L162)=0,\":\",SUM('3a'!L162,'3b'!L162,'3c'!L162,'3d'!L162,'3e (voluntary)'!L162))","v":":"},null,{"$f":"IF(COUNT('3a'!N162,'3b'!N162,'3c'!N162,'3d'!N162,'3e (voluntary)'!N162)=0,\":\",SUM('3a'!N162,'3b'!N162,'3c'!N162,'3d'!N162,'3e (voluntary)'!N162))","v":":"},null,{"$f":"IF(COUNT('3a'!P162,'3b'!P162,'3c'!P162,'3d'!P162,'3e (voluntary)'!P162)=0,\":\",SUM('3a'!P162,'3b'!P162,'3c'!P162,'3d'!P162,'3e (voluntary)'!P162))","v":":"},null,{"$f":"IF(COUNT('3a'!R162,'3b'!R162,'3c'!R162,'3d'!R162,'3e (voluntary)'!R162)=0,\":\",SUM('3a'!R162,'3b'!R162,'3c'!R162,'3d'!R162,'3e (voluntary)'!R162))","v":":"},null,{"$f":"IF(COUNT('3a'!T162,'3b'!T162,'3c'!T162,'3d'!T162,'3e (voluntary)'!T162)=0,\":\",SUM('3a'!T162,'3b'!T162,'3c'!T162,'3d'!T162,'3e (voluntary)'!T162))","v":":"},null,{"$f":"IF(COUNT('3a'!V162,'3b'!V162,'3c'!V162,'3d'!V162,'3e (voluntary)'!V162)=0,\":\",SUM('3a'!V162,'3b'!V162,'3c'!V162,'3d'!V162,'3e (voluntary)'!V162))","v":":"},null,{"$f":"IF(COUNT('3a'!X162,'3b'!X162,'3c'!X162,'3d'!X162,'3e (voluntary)'!X162)=0,\":\",SUM('3a'!X162,'3b'!X162,'3c'!X162,'3d'!X162,'3e (voluntary)'!X162))","v":":"},null,{"$f":"IF(COUNT('3a'!Z162,'3b'!Z162,'3c'!Z162,'3d'!Z162,'3e (voluntary)'!Z162)=0,\":\",SUM('3a'!Z162,'3b'!Z162,'3c'!Z162,'3d'!Z162,'3e (voluntary)'!Z162))","v":":"},null,{"$f":"IF(COUNT('3a'!AB162,'3b'!AB162,'3c'!AB162,'3d'!AB162,'3e (voluntary)'!AB162)=0,\":\",SUM('3a'!AB162,'3b'!AB162,'3c'!AB162,'3d'!AB162,'3e (voluntary)'!AB162))","v":":"},null,{"$f":"IF(COUNT('3a'!AD162,'3b'!AD162,'3c'!AD162,'3d'!AD162,'3e (voluntary)'!AD162)=0,\":\",SUM('3a'!AD162,'3b'!AD162,'3c'!AD162,'3d'!AD162,'3e (voluntary)'!AD162))","v":":"},null,{"$f":"IF(COUNT('3a'!AF162,'3b'!AF162,'3c'!AF162,'3d'!AF162,'3e (voluntary)'!AF162)=0,\":\",SUM('3a'!AF162,'3b'!AF162,'3c'!AF162,'3d'!AF162,'3e (voluntary)'!AF162))","v":":"}]
["S11_S12","EP_BUS","EPS_D29X39",null,null,null,null,null,2026,{"$f":"IF(COUNT('3a'!J163,'3b'!J163,'3c'!J163,'3d'!J163,'3e (voluntary)'!J163)=0,\":\",SUM('3a'!J163,'3b'!J163,'3c'!J163,'3d'!J163,'3e (voluntary)'!J163))","v":":"},null,{"$f":"IF(COUNT('3a'!L163,'3b'!L163,'3c'!L163,'3d'!L163,'3e (voluntary)'!L163)=0,\":\",SUM('3a'!L163,'3b'!L163,'3c'!L163,'3d'!L163,'3e (voluntary)'!L163))","v":":"},null,{"$f":"IF(COUNT('3a'!N163,'3b'!N163,'3c'!N163,'3d'!N163,'3e (voluntary)'!N163)=0,\":\",SUM('3a'!N163,'3b'!N163,'3c'!N163,'3d'!N163,'3e (voluntary)'!N163))","v":":"},null,{"$f":"IF(COUNT('3a'!P163,'3b'!P163,'3c'!P163,'3d'!P163,'3e (voluntary)'!P163)=0,\":\",SUM('3a'!P163,'3b'!P163,'3c'!P163,'3d'!P163,'3e (voluntary)'!P163))","v":":"},null,{"$f":"IF(COUNT('3a'!R163,'3b'!R163,'3c'!R163,'3d'!R163,'3e (voluntary)'!R163)=0,\":\",SUM('3a'!R163,'3b'!R163,'3c'!R163,'3d'!R163,'3e (voluntary)'!R163))","v":":"},null,{"$f":"IF(COUNT('3a'!T163,'3b'!T163,'3c'!T163,'3d'!T163,'3e (voluntary)'!T163)=0,\":\",SUM('3a'!T163,'3b'!T163,'3c'!T163,'3d'!T163,'3e (voluntary)'!T163))","v":":"},null,{"$f":"IF(COUNT('3a'!V163,'3b'!V163,'3c'!V163,'3d'!V163,'3e (voluntary)'!V163)=0,\":\",SUM('3a'!V163,'3b'!V163,'3c'!V163,'3d'!V163,'3e (voluntary)'!V163))","v":":"},null,{"$f":"IF(COUNT('3a'!X163,'3b'!X163,'3c'!X163,'3d'!X163,'3e (voluntary)'!X163)=0,\":\",SUM('3a'!X163,'3b'!X163,'3c'!X163,'3d'!X163,'3e (voluntary)'!X163))","v":":"},null,{"$f":"IF(COUNT('3a'!Z163,'3b'!Z163,'3c'!Z163,'3d'!Z163,'3e (voluntary)'!Z163)=0,\":\",SUM('3a'!Z163,'3b'!Z163,'3c'!Z163,'3d'!Z163,'3e (voluntary)'!Z163))","v":":"},null,{"$f":"IF(COUNT('3a'!AB163,'3b'!AB163,'3c'!AB163,'3d'!AB163,'3e (voluntary)'!AB163)=0,\":\",SUM('3a'!AB163,'3b'!AB163,'3c'!AB163,'3d'!AB163,'3e (voluntary)'!AB163))","v":":"},null,{"$f":"IF(COUNT('3a'!AD163,'3b'!AD163,'3c'!AD163,'3d'!AD163,'3e (voluntary)'!AD163)=0,\":\",SUM('3a'!AD163,'3b'!AD163,'3c'!AD163,'3d'!AD163,'3e (voluntary)'!AD163))","v":":"},null,{"$f":"IF(COUNT('3a'!AF163,'3b'!AF163,'3c'!AF163,'3d'!AF163,'3e (voluntary)'!AF163)=0,\":\",SUM('3a'!AF163,'3b'!AF163,'3c'!AF163,'3d'!AF163,'3e (voluntary)'!AF163))","v":":"}]
["S11_S12","EP_BUS","EPS_D29X39",null,null,null,null,null,2027,{"$f":"IF(COUNT('3a'!J164,'3b'!J164,'3c'!J164,'3d'!J164,'3e (voluntary)'!J164)=0,\":\",SUM('3a'!J164,'3b'!J164,'3c'!J164,'3d'!J164,'3e (voluntary)'!J164))","v":":"},null,{"$f":"IF(COUNT('3a'!L164,'3b'!L164,'3c'!L164,'3d'!L164,'3e (voluntary)'!L164)=0,\":\",SUM('3a'!L164,'3b'!L164,'3c'!L164,'3d'!L164,'3e (voluntary)'!L164))","v":":"},null,{"$f":"IF(COUNT('3a'!N164,'3b'!N164,'3c'!N164,'3d'!N164,'3e (voluntary)'!N164)=0,\":\",SUM('3a'!N164,'3b'!N164,'3c'!N164,'3d'!N164,'3e (voluntary)'!N164))","v":":"},null,{"$f":"IF(COUNT('3a'!P164,'3b'!P164,'3c'!P164,'3d'!P164,'3e (voluntary)'!P164)=0,\":\",SUM('3a'!P164,'3b'!P164,'3c'!P164,'3d'!P164,'3e (voluntary)'!P164))","v":":"},null,{"$f":"IF(COUNT('3a'!R164,'3b'!R164,'3c'!R164,'3d'!R164,'3e (voluntary)'!R164)=0,\":\",SUM('3a'!R164,'3b'!R164,'3c'!R164,'3d'!R164,'3e (voluntary)'!R164))","v":":"},null,{"$f":"IF(COUNT('3a'!T164,'3b'!T164,'3c'!T164,'3d'!T164,'3e (voluntary)'!T164)=0,\":\",SUM('3a'!T164,'3b'!T164,'3c'!T164,'3d'!T164,'3e (voluntary)'!T164))","v":":"},null,{"$f":"IF(COUNT('3a'!V164,'3b'!V164,'3c'!V164,'3d'!V164,'3e (voluntary)'!V164)=0,\":\",SUM('3a'!V164,'3b'!V164,'3c'!V164,'3d'!V164,'3e (voluntary)'!V164))","v":":"},null,{"$f":"IF(COUNT('3a'!X164,'3b'!X164,'3c'!X164,'3d'!X164,'3e (voluntary)'!X164)=0,\":\",SUM('3a'!X164,'3b'!X164,'3c'!X164,'3d'!X164,'3e (voluntary)'!X164))","v":":"},null,{"$f":"IF(COUNT('3a'!Z164,'3b'!Z164,'3c'!Z164,'3d'!Z164,'3e (voluntary)'!Z164)=0,\":\",SUM('3a'!Z164,'3b'!Z164,'3c'!Z164,'3d'!Z164,'3e (voluntary)'!Z164))","v":":"},null,{"$f":"IF(COUNT('3a'!AB164,'3b'!AB164,'3c'!AB164,'3d'!AB164,'3e (voluntary)'!AB164)=0,\":\",SUM('3a'!AB164,'3b'!AB164,'3c'!AB164,'3d'!AB164,'3e (voluntary)'!AB164))","v":":"},null,{"$f":"IF(COUNT('3a'!AD164,'3b'!AD164,'3c'!AD164,'3d'!AD164,'3e (voluntary)'!AD164)=0,\":\",SUM('3a'!AD164,'3b'!AD164,'3c'!AD164,'3d'!AD164,'3e (voluntary)'!AD164))","v":":"},null,{"$f":"IF(COUNT('3a'!AF164,'3b'!AF164,'3c'!AF164,'3d'!AF164,'3e (voluntary)'!AF164)=0,\":\",SUM('3a'!AF164,'3b'!AF164,'3c'!AF164,'3d'!AF164,'3e (voluntary)'!AF164))","v":":"}]
["S11_S12","EP_BUS","EPS_D29X39",null,null,null,null,null,2028,{"$f":"IF(COUNT('3a'!J165,'3b'!J165,'3c'!J165,'3d'!J165,'3e (voluntary)'!J165)=0,\":\",SUM('3a'!J165,'3b'!J165,'3c'!J165,'3d'!J165,'3e (voluntary)'!J165))","v":":"},null,{"$f":"IF(COUNT('3a'!L165,'3b'!L165,'3c'!L165,'3d'!L165,'3e (voluntary)'!L165)=0,\":\",SUM('3a'!L165,'3b'!L165,'3c'!L165,'3d'!L165,'3e (voluntary)'!L165))","v":":"},null,{"$f":"IF(COUNT('3a'!N165,'3b'!N165,'3c'!N165,'3d'!N165,'3e (voluntary)'!N165)=0,\":\",SUM('3a'!N165,'3b'!N165,'3c'!N165,'3d'!N165,'3e (voluntary)'!N165))","v":":"},null,{"$f":"IF(COUNT('3a'!P165,'3b'!P165,'3c'!P165,'3d'!P165,'3e (voluntary)'!P165)=0,\":\",SUM('3a'!P165,'3b'!P165,'3c'!P165,'3d'!P165,'3e (voluntary)'!P165))","v":":"},null,{"$f":"IF(COUNT('3a'!R165,'3b'!R165,'3c'!R165,'3d'!R165,'3e (voluntary)'!R165)=0,\":\",SUM('3a'!R165,'3b'!R165,'3c'!R165,'3d'!R165,'3e (voluntary)'!R165))","v":":"},null,{"$f":"IF(COUNT('3a'!T165,'3b'!T165,'3c'!T165,'3d'!T165,'3e (voluntary)'!T165)=0,\":\",SUM('3a'!T165,'3b'!T165,'3c'!T165,'3d'!T165,'3e (voluntary)'!T165))","v":":"},null,{"$f":"IF(COUNT('3a'!V165,'3b'!V165,'3c'!V165,'3d'!V165,'3e (voluntary)'!V165)=0,\":\",SUM('3a'!V165,'3b'!V165,'3c'!V165,'3d'!V165,'3e (voluntary)'!V165))","v":":"},null,{"$f":"IF(COUNT('3a'!X165,'3b'!X165,'3c'!X165,'3d'!X165,'3e (voluntary)'!X165)=0,\":\",SUM('3a'!X165,'3b'!X165,'3c'!X165,'3d'!X165,'3e (voluntary)'!X165))","v":":"},null,{"$f":"IF(COUNT('3a'!Z165,'3b'!Z165,'3c'!Z165,'3d'!Z165,'3e (voluntary)'!Z165)=0,\":\",SUM('3a'!Z165,'3b'!Z165,'3c'!Z165,'3d'!Z165,'3e (voluntary)'!Z165))","v":":"},null,{"$f":"IF(COUNT('3a'!AB165,'3b'!AB165,'3c'!AB165,'3d'!AB165,'3e (voluntary)'!AB165)=0,\":\",SUM('3a'!AB165,'3b'!AB165,'3c'!AB165,'3d'!AB165,'3e (voluntary)'!AB165))","v":":"},null,{"$f":"IF(COUNT('3a'!AD165,'3b'!AD165,'3c'!AD165,'3d'!AD165,'3e (voluntary)'!AD165)=0,\":\",SUM('3a'!AD165,'3b'!AD165,'3c'!AD165,'3d'!AD165,'3e (voluntary)'!AD165))","v":":"},null,{"$f":"IF(COUNT('3a'!AF165,'3b'!AF165,'3c'!AF165,'3d'!AF165,'3e (voluntary)'!AF165)=0,\":\",SUM('3a'!AF165,'3b'!AF165,'3c'!AF165,'3d'!AF165,'3e (voluntary)'!AF165))","v":":"}]
["S11_S12","EP_BUS","EPS_D29X39",null,null,null,null,null,2029,{"$f":"IF(COUNT('3a'!J166,'3b'!J166,'3c'!J166,'3d'!J166,'3e (voluntary)'!J166)=0,\":\",SUM('3a'!J166,'3b'!J166,'3c'!J166,'3d'!J166,'3e (voluntary)'!J166))","v":":"},null,{"$f":"IF(COUNT('3a'!L166,'3b'!L166,'3c'!L166,'3d'!L166,'3e (voluntary)'!L166)=0,\":\",SUM('3a'!L166,'3b'!L166,'3c'!L166,'3d'!L166,'3e (voluntary)'!L166))","v":":"},null,{"$f":"IF(COUNT('3a'!N166,'3b'!N166,'3c'!N166,'3d'!N166,'3e (voluntary)'!N166)=0,\":\",SUM('3a'!N166,'3b'!N166,'3c'!N166,'3d'!N166,'3e (voluntary)'!N166))","v":":"},null,{"$f":"IF(COUNT('3a'!P166,'3b'!P166,'3c'!P166,'3d'!P166,'3e (voluntary)'!P166)=0,\":\",SUM('3a'!P166,'3b'!P166,'3c'!P166,'3d'!P166,'3e (voluntary)'!P166))","v":":"},null,{"$f":"IF(COUNT('3a'!R166,'3b'!R166,'3c'!R166,'3d'!R166,'3e (voluntary)'!R166)=0,\":\",SUM('3a'!R166,'3b'!R166,'3c'!R166,'3d'!R166,'3e (voluntary)'!R166))","v":":"},null,{"$f":"IF(COUNT('3a'!T166,'3b'!T166,'3c'!T166,'3d'!T166,'3e (voluntary)'!T166)=0,\":\",SUM('3a'!T166,'3b'!T166,'3c'!T166,'3d'!T166,'3e (voluntary)'!T166))","v":":"},null,{"$f":"IF(COUNT('3a'!V166,'3b'!V166,'3c'!V166,'3d'!V166,'3e (voluntary)'!V166)=0,\":\",SUM('3a'!V166,'3b'!V166,'3c'!V166,'3d'!V166,'3e (voluntary)'!V166))","v":":"},null,{"$f":"IF(COUNT('3a'!X166,'3b'!X166,'3c'!X166,'3d'!X166,'3e (voluntary)'!X166)=0,\":\",SUM('3a'!X166,'3b'!X166,'3c'!X166,'3d'!X166,'3e (voluntary)'!X166))","v":":"},null,{"$f":"IF(COUNT('3a'!Z166,'3b'!Z166,'3c'!Z166,'3d'!Z166,'3e (voluntary)'!Z166)=0,\":\",SUM('3a'!Z166,'3b'!Z166,'3c'!Z166,'3d'!Z166,'3e (voluntary)'!Z166))","v":":"},null,{"$f":"IF(COUNT('3a'!AB166,'3b'!AB166,'3c'!AB166,'3d'!AB166,'3e (voluntary)'!AB166)=0,\":\",SUM('3a'!AB166,'3b'!AB166,'3c'!AB166,'3d'!AB166,'3e (voluntary)'!AB166))","v":":"},null,{"$f":"IF(COUNT('3a'!AD166,'3b'!AD166,'3c'!AD166,'3d'!AD166,'3e (voluntary)'!AD166)=0,\":\",SUM('3a'!AD166,'3b'!AD166,'3c'!AD166,'3d'!AD166,'3e (voluntary)'!AD166))","v":":"},null,{"$f":"IF(COUNT('3a'!AF166,'3b'!AF166,'3c'!AF166,'3d'!AF166,'3e (voluntary)'!AF166)=0,\":\",SUM('3a'!AF166,'3b'!AF166,'3c'!AF166,'3d'!AF166,'3e (voluntary)'!AF166))","v":":"}]
["S11_S12","EP_BUS","EPS_D29X39",null,null,null,null,null,2030,{"$f":"IF(COUNT('3a'!J167,'3b'!J167,'3c'!J167,'3d'!J167,'3e (voluntary)'!J167)=0,\":\",SUM('3a'!J167,'3b'!J167,'3c'!J167,'3d'!J167,'3e (voluntary)'!J167))","v":":"},null,{"$f":"IF(COUNT('3a'!L167,'3b'!L167,'3c'!L167,'3d'!L167,'3e (voluntary)'!L167)=0,\":\",SUM('3a'!L167,'3b'!L167,'3c'!L167,'3d'!L167,'3e (voluntary)'!L167))","v":":"},null,{"$f":"IF(COUNT('3a'!N167,'3b'!N167,'3c'!N167,'3d'!N167,'3e (voluntary)'!N167)=0,\":\",SUM('3a'!N167,'3b'!N167,'3c'!N167,'3d'!N167,'3e (voluntary)'!N167))","v":":"},null,{"$f":"IF(COUNT('3a'!P167,'3b'!P167,'3c'!P167,'3d'!P167,'3e (voluntary)'!P167)=0,\":\",SUM('3a'!P167,'3b'!P167,'3c'!P167,'3d'!P167,'3e (voluntary)'!P167))","v":":"},null,{"$f":"IF(COUNT('3a'!R167,'3b'!R167,'3c'!R167,'3d'!R167,'3e (voluntary)'!R167)=0,\":\",SUM('3a'!R167,'3b'!R167,'3c'!R167,'3d'!R167,'3e (voluntary)'!R167))","v":":"},null,{"$f":"IF(COUNT('3a'!T167,'3b'!T167,'3c'!T167,'3d'!T167,'3e (voluntary)'!T167)=0,\":\",SUM('3a'!T167,'3b'!T167,'3c'!T167,'3d'!T167,'3e (voluntary)'!T167))","v":":"},null,{"$f":"IF(COUNT('3a'!V167,'3b'!V167,'3c'!V167,'3d'!V167,'3e (voluntary)'!V167)=0,\":\",SUM('3a'!V167,'3b'!V167,'3c'!V167,'3d'!V167,'3e (voluntary)'!V167))","v":":"},null,{"$f":"IF(COUNT('3a'!X167,'3b'!X167,'3c'!X167,'3d'!X167,'3e (voluntary)'!X167)=0,\":\",SUM('3a'!X167,'3b'!X167,'3c'!X167,'3d'!X167,'3e (voluntary)'!X167))","v":":"},null,{"$f":"IF(COUNT('3a'!Z167,'3b'!Z167,'3c'!Z167,'3d'!Z167,'3e (voluntary)'!Z167)=0,\":\",SUM('3a'!Z167,'3b'!Z167,'3c'!Z167,'3d'!Z167,'3e (voluntary)'!Z167))","v":":"},null,{"$f":"IF(COUNT('3a'!AB167,'3b'!AB167,'3c'!AB167,'3d'!AB167,'3e (voluntary)'!AB167)=0,\":\",SUM('3a'!AB167,'3b'!AB167,'3c'!AB167,'3d'!AB167,'3e (voluntary)'!AB167))","v":":"},null,{"$f":"IF(COUNT('3a'!AD167,'3b'!AD167,'3c'!AD167,'3d'!AD167,'3e (voluntary)'!AD167)=0,\":\",SUM('3a'!AD167,'3b'!AD167,'3c'!AD167,'3d'!AD167,'3e (voluntary)'!AD167))","v":":"},null,{"$f":"IF(COUNT('3a'!AF167,'3b'!AF167,'3c'!AF167,'3d'!AF167,'3e (voluntary)'!AF167)=0,\":\",SUM('3a'!AF167,'3b'!AF167,'3c'!AF167,'3d'!AF167,'3e (voluntary)'!AF167))","v":":"}]
["S11_S12","EP_BUS","EPS_D29X39",null,null,null,null,null,2031,{"$f":"IF(COUNT('3a'!J168,'3b'!J168,'3c'!J168,'3d'!J168,'3e (voluntary)'!J168)=0,\":\",SUM('3a'!J168,'3b'!J168,'3c'!J168,'3d'!J168,'3e (voluntary)'!J168))","v":":"},null,{"$f":"IF(COUNT('3a'!L168,'3b'!L168,'3c'!L168,'3d'!L168,'3e (voluntary)'!L168)=0,\":\",SUM('3a'!L168,'3b'!L168,'3c'!L168,'3d'!L168,'3e (voluntary)'!L168))","v":":"},null,{"$f":"IF(COUNT('3a'!N168,'3b'!N168,'3c'!N168,'3d'!N168,'3e (voluntary)'!N168)=0,\":\",SUM('3a'!N168,'3b'!N168,'3c'!N168,'3d'!N168,'3e (voluntary)'!N168))","v":":"},null,{"$f":"IF(COUNT('3a'!P168,'3b'!P168,'3c'!P168,'3d'!P168,'3e (voluntary)'!P168)=0,\":\",SUM('3a'!P168,'3b'!P168,'3c'!P168,'3d'!P168,'3e (voluntary)'!P168))","v":":"},null,{"$f":"IF(COUNT('3a'!R168,'3b'!R168,'3c'!R168,'3d'!R168,'3e (voluntary)'!R168)=0,\":\",SUM('3a'!R168,'3b'!R168,'3c'!R168,'3d'!R168,'3e (voluntary)'!R168))","v":":"},null,{"$f":"IF(COUNT('3a'!T168,'3b'!T168,'3c'!T168,'3d'!T168,'3e (voluntary)'!T168)=0,\":\",SUM('3a'!T168,'3b'!T168,'3c'!T168,'3d'!T168,'3e (voluntary)'!T168))","v":":"},null,{"$f":"IF(COUNT('3a'!V168,'3b'!V168,'3c'!V168,'3d'!V168,'3e (voluntary)'!V168)=0,\":\",SUM('3a'!V168,'3b'!V168,'3c'!V168,'3d'!V168,'3e (voluntary)'!V168))","v":":"},null,{"$f":"IF(COUNT('3a'!X168,'3b'!X168,'3c'!X168,'3d'!X168,'3e (voluntary)'!X168)=0,\":\",SUM('3a'!X168,'3b'!X168,'3c'!X168,'3d'!X168,'3e (voluntary)'!X168))","v":":"},null,{"$f":"IF(COUNT('3a'!Z168,'3b'!Z168,'3c'!Z168,'3d'!Z168,'3e (voluntary)'!Z168)=0,\":\",SUM('3a'!Z168,'3b'!Z168,'3c'!Z168,'3d'!Z168,'3e (voluntary)'!Z168))","v":":"},null,{"$f":"IF(COUNT('3a'!AB168,'3b'!AB168,'3c'!AB168,'3d'!AB168,'3e (voluntary)'!AB168)=0,\":\",SUM('3a'!AB168,'3b'!AB168,'3c'!AB168,'3d'!AB168,'3e (voluntary)'!AB168))","v":":"},null,{"$f":"IF(COUNT('3a'!AD168,'3b'!AD168,'3c'!AD168,'3d'!AD168,'3e (voluntary)'!AD168)=0,\":\",SUM('3a'!AD168,'3b'!AD168,'3c'!AD168,'3d'!AD168,'3e (voluntary)'!AD168))","v":":"},null,{"$f":"IF(COUNT('3a'!AF168,'3b'!AF168,'3c'!AF168,'3d'!AF168,'3e (voluntary)'!AF168)=0,\":\",SUM('3a'!AF168,'3b'!AF168,'3c'!AF168,'3d'!AF168,'3e (voluntary)'!AF168))","v":":"}]
["S11_S12","EP_BUS","EPS_P51C",null,"   ( P51C.3 ) Consumption of fixed capital",null,null,null,2014,{"$f":"IF(COUNT('3a'!J169,'3b'!J169,'3c'!J169,'3d'!J169,'3e (voluntary)'!J169)=0,\":\",SUM('3a'!J169,'3b'!J169,'3c'!J169,'3d'!J169,'3e (voluntary)'!J169))","v":":"},null,{"$f":"IF(COUNT('3a'!L169,'3b'!L169,'3c'!L169,'3d'!L169,'3e (voluntary)'!L169)=0,\":\",SUM('3a'!L169,'3b'!L169,'3c'!L169,'3d'!L169,'3e (voluntary)'!L169))","v":":"},null,{"$f":"IF(COUNT('3a'!N169,'3b'!N169,'3c'!N169,'3d'!N169,'3e (voluntary)'!N169)=0,\":\",SUM('3a'!N169,'3b'!N169,'3c'!N169,'3d'!N169,'3e (voluntary)'!N169))","v":":"},null,{"$f":"IF(COUNT('3a'!P169,'3b'!P169,'3c'!P169,'3d'!P169,'3e (voluntary)'!P169)=0,\":\",SUM('3a'!P169,'3b'!P169,'3c'!P169,'3d'!P169,'3e (voluntary)'!P169))","v":":"},null,{"$f":"IF(COUNT('3a'!R169,'3b'!R169,'3c'!R169,'3d'!R169,'3e (voluntary)'!R169)=0,\":\",SUM('3a'!R169,'3b'!R169,'3c'!R169,'3d'!R169,'3e (voluntary)'!R169))","v":":"},null,{"$f":"IF(COUNT('3a'!T169,'3b'!T169,'3c'!T169,'3d'!T169,'3e (voluntary)'!T169)=0,\":\",SUM('3a'!T169,'3b'!T169,'3c'!T169,'3d'!T169,'3e (voluntary)'!T169))","v":":"},null,{"$f":"IF(COUNT('3a'!V169,'3b'!V169,'3c'!V169,'3d'!V169,'3e (voluntary)'!V169)=0,\":\",SUM('3a'!V169,'3b'!V169,'3c'!V169,'3d'!V169,'3e (voluntary)'!V169))","v":":"},null,{"$f":"IF(COUNT('3a'!X169,'3b'!X169,'3c'!X169,'3d'!X169,'3e (voluntary)'!X169)=0,\":\",SUM('3a'!X169,'3b'!X169,'3c'!X169,'3d'!X169,'3e (voluntary)'!X169))","v":":"},null,{"$f":"IF(COUNT('3a'!Z169,'3b'!Z169,'3c'!Z169,'3d'!Z169,'3e (voluntary)'!Z169)=0,\":\",SUM('3a'!Z169,'3b'!Z169,'3c'!Z169,'3d'!Z169,'3e (voluntary)'!Z169))","v":":"},null,{"$f":"IF(COUNT('3a'!AB169,'3b'!AB169,'3c'!AB169,'3d'!AB169,'3e (voluntary)'!AB169)=0,\":\",SUM('3a'!AB169,'3b'!AB169,'3c'!AB169,'3d'!AB169,'3e (voluntary)'!AB169))","v":":"},null,{"$f":"IF(COUNT('3a'!AD169,'3b'!AD169,'3c'!AD169,'3d'!AD169,'3e (voluntary)'!AD169)=0,\":\",SUM('3a'!AD169,'3b'!AD169,'3c'!AD169,'3d'!AD169,'3e (voluntary)'!AD169))","v":":"},null,{"$f":"IF(COUNT('3a'!AF169,'3b'!AF169,'3c'!AF169,'3d'!AF169,'3e (voluntary)'!AF169)=0,\":\",SUM('3a'!AF169,'3b'!AF169,'3c'!AF169,'3d'!AF169,'3e (voluntary)'!AF169))","v":":"}]
["S11_S12","EP_BUS","EPS_P51C",null,null,null,null,null,2015,{"$f":"IF(COUNT('3a'!J170,'3b'!J170,'3c'!J170,'3d'!J170,'3e (voluntary)'!J170)=0,\":\",SUM('3a'!J170,'3b'!J170,'3c'!J170,'3d'!J170,'3e (voluntary)'!J170))","v":":"},null,{"$f":"IF(COUNT('3a'!L170,'3b'!L170,'3c'!L170,'3d'!L170,'3e (voluntary)'!L170)=0,\":\",SUM('3a'!L170,'3b'!L170,'3c'!L170,'3d'!L170,'3e (voluntary)'!L170))","v":":"},null,{"$f":"IF(COUNT('3a'!N170,'3b'!N170,'3c'!N170,'3d'!N170,'3e (voluntary)'!N170)=0,\":\",SUM('3a'!N170,'3b'!N170,'3c'!N170,'3d'!N170,'3e (voluntary)'!N170))","v":":"},null,{"$f":"IF(COUNT('3a'!P170,'3b'!P170,'3c'!P170,'3d'!P170,'3e (voluntary)'!P170)=0,\":\",SUM('3a'!P170,'3b'!P170,'3c'!P170,'3d'!P170,'3e (voluntary)'!P170))","v":":"},null,{"$f":"IF(COUNT('3a'!R170,'3b'!R170,'3c'!R170,'3d'!R170,'3e (voluntary)'!R170)=0,\":\",SUM('3a'!R170,'3b'!R170,'3c'!R170,'3d'!R170,'3e (voluntary)'!R170))","v":":"},null,{"$f":"IF(COUNT('3a'!T170,'3b'!T170,'3c'!T170,'3d'!T170,'3e (voluntary)'!T170)=0,\":\",SUM('3a'!T170,'3b'!T170,'3c'!T170,'3d'!T170,'3e (voluntary)'!T170))","v":":"},null,{"$f":"IF(COUNT('3a'!V170,'3b'!V170,'3c'!V170,'3d'!V170,'3e (voluntary)'!V170)=0,\":\",SUM('3a'!V170,'3b'!V170,'3c'!V170,'3d'!V170,'3e (voluntary)'!V170))","v":":"},null,{"$f":"IF(COUNT('3a'!X170,'3b'!X170,'3c'!X170,'3d'!X170,'3e (voluntary)'!X170)=0,\":\",SUM('3a'!X170,'3b'!X170,'3c'!X170,'3d'!X170,'3e (voluntary)'!X170))","v":":"},null,{"$f":"IF(COUNT('3a'!Z170,'3b'!Z170,'3c'!Z170,'3d'!Z170,'3e (voluntary)'!Z170)=0,\":\",SUM('3a'!Z170,'3b'!Z170,'3c'!Z170,'3d'!Z170,'3e (voluntary)'!Z170))","v":":"},null,{"$f":"IF(COUNT('3a'!AB170,'3b'!AB170,'3c'!AB170,'3d'!AB170,'3e (voluntary)'!AB170)=0,\":\",SUM('3a'!AB170,'3b'!AB170,'3c'!AB170,'3d'!AB170,'3e (voluntary)'!AB170))","v":":"},null,{"$f":"IF(COUNT('3a'!AD170,'3b'!AD170,'3c'!AD170,'3d'!AD170,'3e (voluntary)'!AD170)=0,\":\",SUM('3a'!AD170,'3b'!AD170,'3c'!AD170,'3d'!AD170,'3e (voluntary)'!AD170))","v":":"},null,{"$f":"IF(COUNT('3a'!AF170,'3b'!AF170,'3c'!AF170,'3d'!AF170,'3e (voluntary)'!AF170)=0,\":\",SUM('3a'!AF170,'3b'!AF170,'3c'!AF170,'3d'!AF170,'3e (voluntary)'!AF170))","v":":"}]
["S11_S12","EP_BUS","EPS_P51C",null,null,null,null,null,2016,{"$f":"IF(COUNT('3a'!J171,'3b'!J171,'3c'!J171,'3d'!J171,'3e (voluntary)'!J171)=0,\":\",SUM('3a'!J171,'3b'!J171,'3c'!J171,'3d'!J171,'3e (voluntary)'!J171))","v":":"},null,{"$f":"IF(COUNT('3a'!L171,'3b'!L171,'3c'!L171,'3d'!L171,'3e (voluntary)'!L171)=0,\":\",SUM('3a'!L171,'3b'!L171,'3c'!L171,'3d'!L171,'3e (voluntary)'!L171))","v":":"},null,{"$f":"IF(COUNT('3a'!N171,'3b'!N171,'3c'!N171,'3d'!N171,'3e (voluntary)'!N171)=0,\":\",SUM('3a'!N171,'3b'!N171,'3c'!N171,'3d'!N171,'3e (voluntary)'!N171))","v":":"},null,{"$f":"IF(COUNT('3a'!P171,'3b'!P171,'3c'!P171,'3d'!P171,'3e (voluntary)'!P171)=0,\":\",SUM('3a'!P171,'3b'!P171,'3c'!P171,'3d'!P171,'3e (voluntary)'!P171))","v":":"},null,{"$f":"IF(COUNT('3a'!R171,'3b'!R171,'3c'!R171,'3d'!R171,'3e (voluntary)'!R171)=0,\":\",SUM('3a'!R171,'3b'!R171,'3c'!R171,'3d'!R171,'3e (voluntary)'!R171))","v":":"},null,{"$f":"IF(COUNT('3a'!T171,'3b'!T171,'3c'!T171,'3d'!T171,'3e (voluntary)'!T171)=0,\":\",SUM('3a'!T171,'3b'!T171,'3c'!T171,'3d'!T171,'3e (voluntary)'!T171))","v":":"},null,{"$f":"IF(COUNT('3a'!V171,'3b'!V171,'3c'!V171,'3d'!V171,'3e (voluntary)'!V171)=0,\":\",SUM('3a'!V171,'3b'!V171,'3c'!V171,'3d'!V171,'3e (voluntary)'!V171))","v":":"},null,{"$f":"IF(COUNT('3a'!X171,'3b'!X171,'3c'!X171,'3d'!X171,'3e (voluntary)'!X171)=0,\":\",SUM('3a'!X171,'3b'!X171,'3c'!X171,'3d'!X171,'3e (voluntary)'!X171))","v":":"},null,{"$f":"IF(COUNT('3a'!Z171,'3b'!Z171,'3c'!Z171,'3d'!Z171,'3e (voluntary)'!Z171)=0,\":\",SUM('3a'!Z171,'3b'!Z171,'3c'!Z171,'3d'!Z171,'3e (voluntary)'!Z171))","v":":"},null,{"$f":"IF(COUNT('3a'!AB171,'3b'!AB171,'3c'!AB171,'3d'!AB171,'3e (voluntary)'!AB171)=0,\":\",SUM('3a'!AB171,'3b'!AB171,'3c'!AB171,'3d'!AB171,'3e (voluntary)'!AB171))","v":":"},null,{"$f":"IF(COUNT('3a'!AD171,'3b'!AD171,'3c'!AD171,'3d'!AD171,'3e (voluntary)'!AD171)=0,\":\",SUM('3a'!AD171,'3b'!AD171,'3c'!AD171,'3d'!AD171,'3e (voluntary)'!AD171))","v":":"},null,{"$f":"IF(COUNT('3a'!AF171,'3b'!AF171,'3c'!AF171,'3d'!AF171,'3e (voluntary)'!AF171)=0,\":\",SUM('3a'!AF171,'3b'!AF171,'3c'!AF171,'3d'!AF171,'3e (voluntary)'!AF171))","v":":"}]
["S11_S12","EP_BUS","EPS_P51C",null,null,null,null,null,2017,{"$f":"IF(COUNT('3a'!J172,'3b'!J172,'3c'!J172,'3d'!J172,'3e (voluntary)'!J172)=0,\":\",SUM('3a'!J172,'3b'!J172,'3c'!J172,'3d'!J172,'3e (voluntary)'!J172))","v":":"},null,{"$f":"IF(COUNT('3a'!L172,'3b'!L172,'3c'!L172,'3d'!L172,'3e (voluntary)'!L172)=0,\":\",SUM('3a'!L172,'3b'!L172,'3c'!L172,'3d'!L172,'3e (voluntary)'!L172))","v":":"},null,{"$f":"IF(COUNT('3a'!N172,'3b'!N172,'3c'!N172,'3d'!N172,'3e (voluntary)'!N172)=0,\":\",SUM('3a'!N172,'3b'!N172,'3c'!N172,'3d'!N172,'3e (voluntary)'!N172))","v":":"},null,{"$f":"IF(COUNT('3a'!P172,'3b'!P172,'3c'!P172,'3d'!P172,'3e (voluntary)'!P172)=0,\":\",SUM('3a'!P172,'3b'!P172,'3c'!P172,'3d'!P172,'3e (voluntary)'!P172))","v":":"},null,{"$f":"IF(COUNT('3a'!R172,'3b'!R172,'3c'!R172,'3d'!R172,'3e (voluntary)'!R172)=0,\":\",SUM('3a'!R172,'3b'!R172,'3c'!R172,'3d'!R172,'3e (voluntary)'!R172))","v":":"},null,{"$f":"IF(COUNT('3a'!T172,'3b'!T172,'3c'!T172,'3d'!T172,'3e (voluntary)'!T172)=0,\":\",SUM('3a'!T172,'3b'!T172,'3c'!T172,'3d'!T172,'3e (voluntary)'!T172))","v":":"},null,{"$f":"IF(COUNT('3a'!V172,'3b'!V172,'3c'!V172,'3d'!V172,'3e (voluntary)'!V172)=0,\":\",SUM('3a'!V172,'3b'!V172,'3c'!V172,'3d'!V172,'3e (voluntary)'!V172))","v":":"},null,{"$f":"IF(COUNT('3a'!X172,'3b'!X172,'3c'!X172,'3d'!X172,'3e (voluntary)'!X172)=0,\":\",SUM('3a'!X172,'3b'!X172,'3c'!X172,'3d'!X172,'3e (voluntary)'!X172))","v":":"},null,{"$f":"IF(COUNT('3a'!Z172,'3b'!Z172,'3c'!Z172,'3d'!Z172,'3e (voluntary)'!Z172)=0,\":\",SUM('3a'!Z172,'3b'!Z172,'3c'!Z172,'3d'!Z172,'3e (voluntary)'!Z172))","v":":"},null,{"$f":"IF(COUNT('3a'!AB172,'3b'!AB172,'3c'!AB172,'3d'!AB172,'3e (voluntary)'!AB172)=0,\":\",SUM('3a'!AB172,'3b'!AB172,'3c'!AB172,'3d'!AB172,'3e (voluntary)'!AB172))","v":":"},null,{"$f":"IF(COUNT('3a'!AD172,'3b'!AD172,'3c'!AD172,'3d'!AD172,'3e (voluntary)'!AD172)=0,\":\",SUM('3a'!AD172,'3b'!AD172,'3c'!AD172,'3d'!AD172,'3e (voluntary)'!AD172))","v":":"},null,{"$f":"IF(COUNT('3a'!AF172,'3b'!AF172,'3c'!AF172,'3d'!AF172,'3e (voluntary)'!AF172)=0,\":\",SUM('3a'!AF172,'3b'!AF172,'3c'!AF172,'3d'!AF172,'3e (voluntary)'!AF172))","v":":"}]
["S11_S12","EP_BUS","EPS_P51C",null,null,null,null,null,2018,{"$f":"IF(COUNT('3a'!J173,'3b'!J173,'3c'!J173,'3d'!J173,'3e (voluntary)'!J173)=0,\":\",SUM('3a'!J173,'3b'!J173,'3c'!J173,'3d'!J173,'3e (voluntary)'!J173))","v":":"},null,{"$f":"IF(COUNT('3a'!L173,'3b'!L173,'3c'!L173,'3d'!L173,'3e (voluntary)'!L173)=0,\":\",SUM('3a'!L173,'3b'!L173,'3c'!L173,'3d'!L173,'3e (voluntary)'!L173))","v":":"},null,{"$f":"IF(COUNT('3a'!N173,'3b'!N173,'3c'!N173,'3d'!N173,'3e (voluntary)'!N173)=0,\":\",SUM('3a'!N173,'3b'!N173,'3c'!N173,'3d'!N173,'3e (voluntary)'!N173))","v":":"},null,{"$f":"IF(COUNT('3a'!P173,'3b'!P173,'3c'!P173,'3d'!P173,'3e (voluntary)'!P173)=0,\":\",SUM('3a'!P173,'3b'!P173,'3c'!P173,'3d'!P173,'3e (voluntary)'!P173))","v":":"},null,{"$f":"IF(COUNT('3a'!R173,'3b'!R173,'3c'!R173,'3d'!R173,'3e (voluntary)'!R173)=0,\":\",SUM('3a'!R173,'3b'!R173,'3c'!R173,'3d'!R173,'3e (voluntary)'!R173))","v":":"},null,{"$f":"IF(COUNT('3a'!T173,'3b'!T173,'3c'!T173,'3d'!T173,'3e (voluntary)'!T173)=0,\":\",SUM('3a'!T173,'3b'!T173,'3c'!T173,'3d'!T173,'3e (voluntary)'!T173))","v":":"},null,{"$f":"IF(COUNT('3a'!V173,'3b'!V173,'3c'!V173,'3d'!V173,'3e (voluntary)'!V173)=0,\":\",SUM('3a'!V173,'3b'!V173,'3c'!V173,'3d'!V173,'3e (voluntary)'!V173))","v":":"},null,{"$f":"IF(COUNT('3a'!X173,'3b'!X173,'3c'!X173,'3d'!X173,'3e (voluntary)'!X173)=0,\":\",SUM('3a'!X173,'3b'!X173,'3c'!X173,'3d'!X173,'3e (voluntary)'!X173))","v":":"},null,{"$f":"IF(COUNT('3a'!Z173,'3b'!Z173,'3c'!Z173,'3d'!Z173,'3e (voluntary)'!Z173)=0,\":\",SUM('3a'!Z173,'3b'!Z173,'3c'!Z173,'3d'!Z173,'3e (voluntary)'!Z173))","v":":"},null,{"$f":"IF(COUNT('3a'!AB173,'3b'!AB173,'3c'!AB173,'3d'!AB173,'3e (voluntary)'!AB173)=0,\":\",SUM('3a'!AB173,'3b'!AB173,'3c'!AB173,'3d'!AB173,'3e (voluntary)'!AB173))","v":":"},null,{"$f":"IF(COUNT('3a'!AD173,'3b'!AD173,'3c'!AD173,'3d'!AD173,'3e (voluntary)'!AD173)=0,\":\",SUM('3a'!AD173,'3b'!AD173,'3c'!AD173,'3d'!AD173,'3e (voluntary)'!AD173))","v":":"},null,{"$f":"IF(COUNT('3a'!AF173,'3b'!AF173,'3c'!AF173,'3d'!AF173,'3e (voluntary)'!AF173)=0,\":\",SUM('3a'!AF173,'3b'!AF173,'3c'!AF173,'3d'!AF173,'3e (voluntary)'!AF173))","v":":"}]
["S11_S12","EP_BUS","EPS_P51C",null,null,null,null,null,2019,{"$f":"IF(COUNT('3a'!J174,'3b'!J174,'3c'!J174,'3d'!J174,'3e (voluntary)'!J174)=0,\":\",SUM('3a'!J174,'3b'!J174,'3c'!J174,'3d'!J174,'3e (voluntary)'!J174))","v":":"},null,{"$f":"IF(COUNT('3a'!L174,'3b'!L174,'3c'!L174,'3d'!L174,'3e (voluntary)'!L174)=0,\":\",SUM('3a'!L174,'3b'!L174,'3c'!L174,'3d'!L174,'3e (voluntary)'!L174))","v":":"},null,{"$f":"IF(COUNT('3a'!N174,'3b'!N174,'3c'!N174,'3d'!N174,'3e (voluntary)'!N174)=0,\":\",SUM('3a'!N174,'3b'!N174,'3c'!N174,'3d'!N174,'3e (voluntary)'!N174))","v":":"},null,{"$f":"IF(COUNT('3a'!P174,'3b'!P174,'3c'!P174,'3d'!P174,'3e (voluntary)'!P174)=0,\":\",SUM('3a'!P174,'3b'!P174,'3c'!P174,'3d'!P174,'3e (voluntary)'!P174))","v":":"},null,{"$f":"IF(COUNT('3a'!R174,'3b'!R174,'3c'!R174,'3d'!R174,'3e (voluntary)'!R174)=0,\":\",SUM('3a'!R174,'3b'!R174,'3c'!R174,'3d'!R174,'3e (voluntary)'!R174))","v":":"},null,{"$f":"IF(COUNT('3a'!T174,'3b'!T174,'3c'!T174,'3d'!T174,'3e (voluntary)'!T174)=0,\":\",SUM('3a'!T174,'3b'!T174,'3c'!T174,'3d'!T174,'3e (voluntary)'!T174))","v":":"},null,{"$f":"IF(COUNT('3a'!V174,'3b'!V174,'3c'!V174,'3d'!V174,'3e (voluntary)'!V174)=0,\":\",SUM('3a'!V174,'3b'!V174,'3c'!V174,'3d'!V174,'3e (voluntary)'!V174))","v":":"},null,{"$f":"IF(COUNT('3a'!X174,'3b'!X174,'3c'!X174,'3d'!X174,'3e (voluntary)'!X174)=0,\":\",SUM('3a'!X174,'3b'!X174,'3c'!X174,'3d'!X174,'3e (voluntary)'!X174))","v":":"},null,{"$f":"IF(COUNT('3a'!Z174,'3b'!Z174,'3c'!Z174,'3d'!Z174,'3e (voluntary)'!Z174)=0,\":\",SUM('3a'!Z174,'3b'!Z174,'3c'!Z174,'3d'!Z174,'3e (voluntary)'!Z174))","v":":"},null,{"$f":"IF(COUNT('3a'!AB174,'3b'!AB174,'3c'!AB174,'3d'!AB174,'3e (voluntary)'!AB174)=0,\":\",SUM('3a'!AB174,'3b'!AB174,'3c'!AB174,'3d'!AB174,'3e (voluntary)'!AB174))","v":":"},null,{"$f":"IF(COUNT('3a'!AD174,'3b'!AD174,'3c'!AD174,'3d'!AD174,'3e (voluntary)'!AD174)=0,\":\",SUM('3a'!AD174,'3b'!AD174,'3c'!AD174,'3d'!AD174,'3e (voluntary)'!AD174))","v":":"},null,{"$f":"IF(COUNT('3a'!AF174,'3b'!AF174,'3c'!AF174,'3d'!AF174,'3e (voluntary)'!AF174)=0,\":\",SUM('3a'!AF174,'3b'!AF174,'3c'!AF174,'3d'!AF174,'3e (voluntary)'!AF174))","v":":"}]
["S11_S12","EP_BUS","EPS_P51C",null,null,null,null,null,2020,{"$f":"IF(COUNT('3a'!J175,'3b'!J175,'3c'!J175,'3d'!J175,'3e (voluntary)'!J175)=0,\":\",SUM('3a'!J175,'3b'!J175,'3c'!J175,'3d'!J175,'3e (voluntary)'!J175))","v":":"},null,{"$f":"IF(COUNT('3a'!L175,'3b'!L175,'3c'!L175,'3d'!L175,'3e (voluntary)'!L175)=0,\":\",SUM('3a'!L175,'3b'!L175,'3c'!L175,'3d'!L175,'3e (voluntary)'!L175))","v":":"},null,{"$f":"IF(COUNT('3a'!N175,'3b'!N175,'3c'!N175,'3d'!N175,'3e (voluntary)'!N175)=0,\":\",SUM('3a'!N175,'3b'!N175,'3c'!N175,'3d'!N175,'3e (voluntary)'!N175))","v":":"},null,{"$f":"IF(COUNT('3a'!P175,'3b'!P175,'3c'!P175,'3d'!P175,'3e (voluntary)'!P175)=0,\":\",SUM('3a'!P175,'3b'!P175,'3c'!P175,'3d'!P175,'3e (voluntary)'!P175))","v":":"},null,{"$f":"IF(COUNT('3a'!R175,'3b'!R175,'3c'!R175,'3d'!R175,'3e (voluntary)'!R175)=0,\":\",SUM('3a'!R175,'3b'!R175,'3c'!R175,'3d'!R175,'3e (voluntary)'!R175))","v":":"},null,{"$f":"IF(COUNT('3a'!T175,'3b'!T175,'3c'!T175,'3d'!T175,'3e (voluntary)'!T175)=0,\":\",SUM('3a'!T175,'3b'!T175,'3c'!T175,'3d'!T175,'3e (voluntary)'!T175))","v":":"},null,{"$f":"IF(COUNT('3a'!V175,'3b'!V175,'3c'!V175,'3d'!V175,'3e (voluntary)'!V175)=0,\":\",SUM('3a'!V175,'3b'!V175,'3c'!V175,'3d'!V175,'3e (voluntary)'!V175))","v":":"},null,{"$f":"IF(COUNT('3a'!X175,'3b'!X175,'3c'!X175,'3d'!X175,'3e (voluntary)'!X175)=0,\":\",SUM('3a'!X175,'3b'!X175,'3c'!X175,'3d'!X175,'3e (voluntary)'!X175))","v":":"},null,{"$f":"IF(COUNT('3a'!Z175,'3b'!Z175,'3c'!Z175,'3d'!Z175,'3e (voluntary)'!Z175)=0,\":\",SUM('3a'!Z175,'3b'!Z175,'3c'!Z175,'3d'!Z175,'3e (voluntary)'!Z175))","v":":"},null,{"$f":"IF(COUNT('3a'!AB175,'3b'!AB175,'3c'!AB175,'3d'!AB175,'3e (voluntary)'!AB175)=0,\":\",SUM('3a'!AB175,'3b'!AB175,'3c'!AB175,'3d'!AB175,'3e (voluntary)'!AB175))","v":":"},null,{"$f":"IF(COUNT('3a'!AD175,'3b'!AD175,'3c'!AD175,'3d'!AD175,'3e (voluntary)'!AD175)=0,\":\",SUM('3a'!AD175,'3b'!AD175,'3c'!AD175,'3d'!AD175,'3e (voluntary)'!AD175))","v":":"},null,{"$f":"IF(COUNT('3a'!AF175,'3b'!AF175,'3c'!AF175,'3d'!AF175,'3e (voluntary)'!AF175)=0,\":\",SUM('3a'!AF175,'3b'!AF175,'3c'!AF175,'3d'!AF175,'3e (voluntary)'!AF175))","v":":"}]
["S11_S12","EP_BUS","EPS_P51C",null,null,null,null,null,2021,{"$f":"IF(COUNT('3a'!J176,'3b'!J176,'3c'!J176,'3d'!J176,'3e (voluntary)'!J176)=0,\":\",SUM('3a'!J176,'3b'!J176,'3c'!J176,'3d'!J176,'3e (voluntary)'!J176))","v":":"},null,{"$f":"IF(COUNT('3a'!L176,'3b'!L176,'3c'!L176,'3d'!L176,'3e (voluntary)'!L176)=0,\":\",SUM('3a'!L176,'3b'!L176,'3c'!L176,'3d'!L176,'3e (voluntary)'!L176))","v":":"},null,{"$f":"IF(COUNT('3a'!N176,'3b'!N176,'3c'!N176,'3d'!N176,'3e (voluntary)'!N176)=0,\":\",SUM('3a'!N176,'3b'!N176,'3c'!N176,'3d'!N176,'3e (voluntary)'!N176))","v":":"},null,{"$f":"IF(COUNT('3a'!P176,'3b'!P176,'3c'!P176,'3d'!P176,'3e (voluntary)'!P176)=0,\":\",SUM('3a'!P176,'3b'!P176,'3c'!P176,'3d'!P176,'3e (voluntary)'!P176))","v":":"},null,{"$f":"IF(COUNT('3a'!R176,'3b'!R176,'3c'!R176,'3d'!R176,'3e (voluntary)'!R176)=0,\":\",SUM('3a'!R176,'3b'!R176,'3c'!R176,'3d'!R176,'3e (voluntary)'!R176))","v":":"},null,{"$f":"IF(COUNT('3a'!T176,'3b'!T176,'3c'!T176,'3d'!T176,'3e (voluntary)'!T176)=0,\":\",SUM('3a'!T176,'3b'!T176,'3c'!T176,'3d'!T176,'3e (voluntary)'!T176))","v":":"},null,{"$f":"IF(COUNT('3a'!V176,'3b'!V176,'3c'!V176,'3d'!V176,'3e (voluntary)'!V176)=0,\":\",SUM('3a'!V176,'3b'!V176,'3c'!V176,'3d'!V176,'3e (voluntary)'!V176))","v":":"},null,{"$f":"IF(COUNT('3a'!X176,'3b'!X176,'3c'!X176,'3d'!X176,'3e (voluntary)'!X176)=0,\":\",SUM('3a'!X176,'3b'!X176,'3c'!X176,'3d'!X176,'3e (voluntary)'!X176))","v":":"},null,{"$f":"IF(COUNT('3a'!Z176,'3b'!Z176,'3c'!Z176,'3d'!Z176,'3e (voluntary)'!Z176)=0,\":\",SUM('3a'!Z176,'3b'!Z176,'3c'!Z176,'3d'!Z176,'3e (voluntary)'!Z176))","v":":"},null,{"$f":"IF(COUNT('3a'!AB176,'3b'!AB176,'3c'!AB176,'3d'!AB176,'3e (voluntary)'!AB176)=0,\":\",SUM('3a'!AB176,'3b'!AB176,'3c'!AB176,'3d'!AB176,'3e (voluntary)'!AB176))","v":":"},null,{"$f":"IF(COUNT('3a'!AD176,'3b'!AD176,'3c'!AD176,'3d'!AD176,'3e (voluntary)'!AD176)=0,\":\",SUM('3a'!AD176,'3b'!AD176,'3c'!AD176,'3d'!AD176,'3e (voluntary)'!AD176))","v":":"},null,{"$f":"IF(COUNT('3a'!AF176,'3b'!AF176,'3c'!AF176,'3d'!AF176,'3e (voluntary)'!AF176)=0,\":\",SUM('3a'!AF176,'3b'!AF176,'3c'!AF176,'3d'!AF176,'3e (voluntary)'!AF176))","v":":"}]
["S11_S12","EP_BUS","EPS_P51C",null,null,null,null,null,2022,{"$f":"IF(COUNT('3a'!J177,'3b'!J177,'3c'!J177,'3d'!J177,'3e (voluntary)'!J177)=0,\":\",SUM('3a'!J177,'3b'!J177,'3c'!J177,'3d'!J177,'3e (voluntary)'!J177))","v":":"},null,{"$f":"IF(COUNT('3a'!L177,'3b'!L177,'3c'!L177,'3d'!L177,'3e (voluntary)'!L177)=0,\":\",SUM('3a'!L177,'3b'!L177,'3c'!L177,'3d'!L177,'3e (voluntary)'!L177))","v":":"},null,{"$f":"IF(COUNT('3a'!N177,'3b'!N177,'3c'!N177,'3d'!N177,'3e (voluntary)'!N177)=0,\":\",SUM('3a'!N177,'3b'!N177,'3c'!N177,'3d'!N177,'3e (voluntary)'!N177))","v":":"},null,{"$f":"IF(COUNT('3a'!P177,'3b'!P177,'3c'!P177,'3d'!P177,'3e (voluntary)'!P177)=0,\":\",SUM('3a'!P177,'3b'!P177,'3c'!P177,'3d'!P177,'3e (voluntary)'!P177))","v":":"},null,{"$f":"IF(COUNT('3a'!R177,'3b'!R177,'3c'!R177,'3d'!R177,'3e (voluntary)'!R177)=0,\":\",SUM('3a'!R177,'3b'!R177,'3c'!R177,'3d'!R177,'3e (voluntary)'!R177))","v":":"},null,{"$f":"IF(COUNT('3a'!T177,'3b'!T177,'3c'!T177,'3d'!T177,'3e (voluntary)'!T177)=0,\":\",SUM('3a'!T177,'3b'!T177,'3c'!T177,'3d'!T177,'3e (voluntary)'!T177))","v":":"},null,{"$f":"IF(COUNT('3a'!V177,'3b'!V177,'3c'!V177,'3d'!V177,'3e (voluntary)'!V177)=0,\":\",SUM('3a'!V177,'3b'!V177,'3c'!V177,'3d'!V177,'3e (voluntary)'!V177))","v":":"},null,{"$f":"IF(COUNT('3a'!X177,'3b'!X177,'3c'!X177,'3d'!X177,'3e (voluntary)'!X177)=0,\":\",SUM('3a'!X177,'3b'!X177,'3c'!X177,'3d'!X177,'3e (voluntary)'!X177))","v":":"},null,{"$f":"IF(COUNT('3a'!Z177,'3b'!Z177,'3c'!Z177,'3d'!Z177,'3e (voluntary)'!Z177)=0,\":\",SUM('3a'!Z177,'3b'!Z177,'3c'!Z177,'3d'!Z177,'3e (voluntary)'!Z177))","v":":"},null,{"$f":"IF(COUNT('3a'!AB177,'3b'!AB177,'3c'!AB177,'3d'!AB177,'3e (voluntary)'!AB177)=0,\":\",SUM('3a'!AB177,'3b'!AB177,'3c'!AB177,'3d'!AB177,'3e (voluntary)'!AB177))","v":":"},null,{"$f":"IF(COUNT('3a'!AD177,'3b'!AD177,'3c'!AD177,'3d'!AD177,'3e (voluntary)'!AD177)=0,\":\",SUM('3a'!AD177,'3b'!AD177,'3c'!AD177,'3d'!AD177,'3e (voluntary)'!AD177))","v":":"},null,{"$f":"IF(COUNT('3a'!AF177,'3b'!AF177,'3c'!AF177,'3d'!AF177,'3e (voluntary)'!AF177)=0,\":\",SUM('3a'!AF177,'3b'!AF177,'3c'!AF177,'3d'!AF177,'3e (voluntary)'!AF177))","v":":"}]
["S11_S12","EP_BUS","EPS_P51C",null,null,null,null,null,2023,{"$f":"IF(COUNT('3a'!J178,'3b'!J178,'3c'!J178,'3d'!J178,'3e (voluntary)'!J178)=0,\":\",SUM('3a'!J178,'3b'!J178,'3c'!J178,'3d'!J178,'3e (voluntary)'!J178))","v":":"},null,{"$f":"IF(COUNT('3a'!L178,'3b'!L178,'3c'!L178,'3d'!L178,'3e (voluntary)'!L178)=0,\":\",SUM('3a'!L178,'3b'!L178,'3c'!L178,'3d'!L178,'3e (voluntary)'!L178))","v":":"},null,{"$f":"IF(COUNT('3a'!N178,'3b'!N178,'3c'!N178,'3d'!N178,'3e (voluntary)'!N178)=0,\":\",SUM('3a'!N178,'3b'!N178,'3c'!N178,'3d'!N178,'3e (voluntary)'!N178))","v":":"},null,{"$f":"IF(COUNT('3a'!P178,'3b'!P178,'3c'!P178,'3d'!P178,'3e (voluntary)'!P178)=0,\":\",SUM('3a'!P178,'3b'!P178,'3c'!P178,'3d'!P178,'3e (voluntary)'!P178))","v":":"},null,{"$f":"IF(COUNT('3a'!R178,'3b'!R178,'3c'!R178,'3d'!R178,'3e (voluntary)'!R178)=0,\":\",SUM('3a'!R178,'3b'!R178,'3c'!R178,'3d'!R178,'3e (voluntary)'!R178))","v":":"},null,{"$f":"IF(COUNT('3a'!T178,'3b'!T178,'3c'!T178,'3d'!T178,'3e (voluntary)'!T178)=0,\":\",SUM('3a'!T178,'3b'!T178,'3c'!T178,'3d'!T178,'3e (voluntary)'!T178))","v":":"},null,{"$f":"IF(COUNT('3a'!V178,'3b'!V178,'3c'!V178,'3d'!V178,'3e (voluntary)'!V178)=0,\":\",SUM('3a'!V178,'3b'!V178,'3c'!V178,'3d'!V178,'3e (voluntary)'!V178))","v":":"},null,{"$f":"IF(COUNT('3a'!X178,'3b'!X178,'3c'!X178,'3d'!X178,'3e (voluntary)'!X178)=0,\":\",SUM('3a'!X178,'3b'!X178,'3c'!X178,'3d'!X178,'3e (voluntary)'!X178))","v":":"},null,{"$f":"IF(COUNT('3a'!Z178,'3b'!Z178,'3c'!Z178,'3d'!Z178,'3e (voluntary)'!Z178)=0,\":\",SUM('3a'!Z178,'3b'!Z178,'3c'!Z178,'3d'!Z178,'3e (voluntary)'!Z178))","v":":"},null,{"$f":"IF(COUNT('3a'!AB178,'3b'!AB178,'3c'!AB178,'3d'!AB178,'3e (voluntary)'!AB178)=0,\":\",SUM('3a'!AB178,'3b'!AB178,'3c'!AB178,'3d'!AB178,'3e (voluntary)'!AB178))","v":":"},null,{"$f":"IF(COUNT('3a'!AD178,'3b'!AD178,'3c'!AD178,'3d'!AD178,'3e (voluntary)'!AD178)=0,\":\",SUM('3a'!AD178,'3b'!AD178,'3c'!AD178,'3d'!AD178,'3e (voluntary)'!AD178))","v":":"},null,{"$f":"IF(COUNT('3a'!AF178,'3b'!AF178,'3c'!AF178,'3d'!AF178,'3e (voluntary)'!AF178)=0,\":\",SUM('3a'!AF178,'3b'!AF178,'3c'!AF178,'3d'!AF178,'3e (voluntary)'!AF178))","v":":"}]
["S11_S12","EP_BUS","EPS_P51C",null,null,null,null,null,2024,{"$f":"IF(COUNT('3a'!J179,'3b'!J179,'3c'!J179,'3d'!J179,'3e (voluntary)'!J179)=0,\":\",SUM('3a'!J179,'3b'!J179,'3c'!J179,'3d'!J179,'3e (voluntary)'!J179))","v":":"},null,{"$f":"IF(COUNT('3a'!L179,'3b'!L179,'3c'!L179,'3d'!L179,'3e (voluntary)'!L179)=0,\":\",SUM('3a'!L179,'3b'!L179,'3c'!L179,'3d'!L179,'3e (voluntary)'!L179))","v":":"},null,{"$f":"IF(COUNT('3a'!N179,'3b'!N179,'3c'!N179,'3d'!N179,'3e (voluntary)'!N179)=0,\":\",SUM('3a'!N179,'3b'!N179,'3c'!N179,'3d'!N179,'3e (voluntary)'!N179))","v":":"},null,{"$f":"IF(COUNT('3a'!P179,'3b'!P179,'3c'!P179,'3d'!P179,'3e (voluntary)'!P179)=0,\":\",SUM('3a'!P179,'3b'!P179,'3c'!P179,'3d'!P179,'3e (voluntary)'!P179))","v":":"},null,{"$f":"IF(COUNT('3a'!R179,'3b'!R179,'3c'!R179,'3d'!R179,'3e (voluntary)'!R179)=0,\":\",SUM('3a'!R179,'3b'!R179,'3c'!R179,'3d'!R179,'3e (voluntary)'!R179))","v":":"},null,{"$f":"IF(COUNT('3a'!T179,'3b'!T179,'3c'!T179,'3d'!T179,'3e (voluntary)'!T179)=0,\":\",SUM('3a'!T179,'3b'!T179,'3c'!T179,'3d'!T179,'3e (voluntary)'!T179))","v":":"},null,{"$f":"IF(COUNT('3a'!V179,'3b'!V179,'3c'!V179,'3d'!V179,'3e (voluntary)'!V179)=0,\":\",SUM('3a'!V179,'3b'!V179,'3c'!V179,'3d'!V179,'3e (voluntary)'!V179))","v":":"},null,{"$f":"IF(COUNT('3a'!X179,'3b'!X179,'3c'!X179,'3d'!X179,'3e (voluntary)'!X179)=0,\":\",SUM('3a'!X179,'3b'!X179,'3c'!X179,'3d'!X179,'3e (voluntary)'!X179))","v":":"},null,{"$f":"IF(COUNT('3a'!Z179,'3b'!Z179,'3c'!Z179,'3d'!Z179,'3e (voluntary)'!Z179)=0,\":\",SUM('3a'!Z179,'3b'!Z179,'3c'!Z179,'3d'!Z179,'3e (voluntary)'!Z179))","v":":"},null,{"$f":"IF(COUNT('3a'!AB179,'3b'!AB179,'3c'!AB179,'3d'!AB179,'3e (voluntary)'!AB179)=0,\":\",SUM('3a'!AB179,'3b'!AB179,'3c'!AB179,'3d'!AB179,'3e (voluntary)'!AB179))","v":":"},null,{"$f":"IF(COUNT('3a'!AD179,'3b'!AD179,'3c'!AD179,'3d'!AD179,'3e (voluntary)'!AD179)=0,\":\",SUM('3a'!AD179,'3b'!AD179,'3c'!AD179,'3d'!AD179,'3e (voluntary)'!AD179))","v":":"},null,{"$f":"IF(COUNT('3a'!AF179,'3b'!AF179,'3c'!AF179,'3d'!AF179,'3e (voluntary)'!AF179)=0,\":\",SUM('3a'!AF179,'3b'!AF179,'3c'!AF179,'3d'!AF179,'3e (voluntary)'!AF179))","v":":"}]
["S11_S12","EP_BUS","EPS_P51C",null,null,null,null,null,2025,{"$f":"IF(COUNT('3a'!J180,'3b'!J180,'3c'!J180,'3d'!J180,'3e (voluntary)'!J180)=0,\":\",SUM('3a'!J180,'3b'!J180,'3c'!J180,'3d'!J180,'3e (voluntary)'!J180))","v":":"},null,{"$f":"IF(COUNT('3a'!L180,'3b'!L180,'3c'!L180,'3d'!L180,'3e (voluntary)'!L180)=0,\":\",SUM('3a'!L180,'3b'!L180,'3c'!L180,'3d'!L180,'3e (voluntary)'!L180))","v":":"},null,{"$f":"IF(COUNT('3a'!N180,'3b'!N180,'3c'!N180,'3d'!N180,'3e (voluntary)'!N180)=0,\":\",SUM('3a'!N180,'3b'!N180,'3c'!N180,'3d'!N180,'3e (voluntary)'!N180))","v":":"},null,{"$f":"IF(COUNT('3a'!P180,'3b'!P180,'3c'!P180,'3d'!P180,'3e (voluntary)'!P180)=0,\":\",SUM('3a'!P180,'3b'!P180,'3c'!P180,'3d'!P180,'3e (voluntary)'!P180))","v":":"},null,{"$f":"IF(COUNT('3a'!R180,'3b'!R180,'3c'!R180,'3d'!R180,'3e (voluntary)'!R180)=0,\":\",SUM('3a'!R180,'3b'!R180,'3c'!R180,'3d'!R180,'3e (voluntary)'!R180))","v":":"},null,{"$f":"IF(COUNT('3a'!T180,'3b'!T180,'3c'!T180,'3d'!T180,'3e (voluntary)'!T180)=0,\":\",SUM('3a'!T180,'3b'!T180,'3c'!T180,'3d'!T180,'3e (voluntary)'!T180))","v":":"},null,{"$f":"IF(COUNT('3a'!V180,'3b'!V180,'3c'!V180,'3d'!V180,'3e (voluntary)'!V180)=0,\":\",SUM('3a'!V180,'3b'!V180,'3c'!V180,'3d'!V180,'3e (voluntary)'!V180))","v":":"},null,{"$f":"IF(COUNT('3a'!X180,'3b'!X180,'3c'!X180,'3d'!X180,'3e (voluntary)'!X180)=0,\":\",SUM('3a'!X180,'3b'!X180,'3c'!X180,'3d'!X180,'3e (voluntary)'!X180))","v":":"},null,{"$f":"IF(COUNT('3a'!Z180,'3b'!Z180,'3c'!Z180,'3d'!Z180,'3e (voluntary)'!Z180)=0,\":\",SUM('3a'!Z180,'3b'!Z180,'3c'!Z180,'3d'!Z180,'3e (voluntary)'!Z180))","v":":"},null,{"$f":"IF(COUNT('3a'!AB180,'3b'!AB180,'3c'!AB180,'3d'!AB180,'3e (voluntary)'!AB180)=0,\":\",SUM('3a'!AB180,'3b'!AB180,'3c'!AB180,'3d'!AB180,'3e (voluntary)'!AB180))","v":":"},null,{"$f":"IF(COUNT('3a'!AD180,'3b'!AD180,'3c'!AD180,'3d'!AD180,'3e (voluntary)'!AD180)=0,\":\",SUM('3a'!AD180,'3b'!AD180,'3c'!AD180,'3d'!AD180,'3e (voluntary)'!AD180))","v":":"},null,{"$f":"IF(COUNT('3a'!AF180,'3b'!AF180,'3c'!AF180,'3d'!AF180,'3e (voluntary)'!AF180)=0,\":\",SUM('3a'!AF180,'3b'!AF180,'3c'!AF180,'3d'!AF180,'3e (voluntary)'!AF180))","v":":"}]
["S11_S12","EP_BUS","EPS_P51C",null,null,null,null,null,2026,{"$f":"IF(COUNT('3a'!J181,'3b'!J181,'3c'!J181,'3d'!J181,'3e (voluntary)'!J181)=0,\":\",SUM('3a'!J181,'3b'!J181,'3c'!J181,'3d'!J181,'3e (voluntary)'!J181))","v":":"},null,{"$f":"IF(COUNT('3a'!L181,'3b'!L181,'3c'!L181,'3d'!L181,'3e (voluntary)'!L181)=0,\":\",SUM('3a'!L181,'3b'!L181,'3c'!L181,'3d'!L181,'3e (voluntary)'!L181))","v":":"},null,{"$f":"IF(COUNT('3a'!N181,'3b'!N181,'3c'!N181,'3d'!N181,'3e (voluntary)'!N181)=0,\":\",SUM('3a'!N181,'3b'!N181,'3c'!N181,'3d'!N181,'3e (voluntary)'!N181))","v":":"},null,{"$f":"IF(COUNT('3a'!P181,'3b'!P181,'3c'!P181,'3d'!P181,'3e (voluntary)'!P181)=0,\":\",SUM('3a'!P181,'3b'!P181,'3c'!P181,'3d'!P181,'3e (voluntary)'!P181))","v":":"},null,{"$f":"IF(COUNT('3a'!R181,'3b'!R181,'3c'!R181,'3d'!R181,'3e (voluntary)'!R181)=0,\":\",SUM('3a'!R181,'3b'!R181,'3c'!R181,'3d'!R181,'3e (voluntary)'!R181))","v":":"},null,{"$f":"IF(COUNT('3a'!T181,'3b'!T181,'3c'!T181,'3d'!T181,'3e (voluntary)'!T181)=0,\":\",SUM('3a'!T181,'3b'!T181,'3c'!T181,'3d'!T181,'3e (voluntary)'!T181))","v":":"},null,{"$f":"IF(COUNT('3a'!V181,'3b'!V181,'3c'!V181,'3d'!V181,'3e (voluntary)'!V181)=0,\":\",SUM('3a'!V181,'3b'!V181,'3c'!V181,'3d'!V181,'3e (voluntary)'!V181))","v":":"},null,{"$f":"IF(COUNT('3a'!X181,'3b'!X181,'3c'!X181,'3d'!X181,'3e (voluntary)'!X181)=0,\":\",SUM('3a'!X181,'3b'!X181,'3c'!X181,'3d'!X181,'3e (voluntary)'!X181))","v":":"},null,{"$f":"IF(COUNT('3a'!Z181,'3b'!Z181,'3c'!Z181,'3d'!Z181,'3e (voluntary)'!Z181)=0,\":\",SUM('3a'!Z181,'3b'!Z181,'3c'!Z181,'3d'!Z181,'3e (voluntary)'!Z181))","v":":"},null,{"$f":"IF(COUNT('3a'!AB181,'3b'!AB181,'3c'!AB181,'3d'!AB181,'3e (voluntary)'!AB181)=0,\":\",SUM('3a'!AB181,'3b'!AB181,'3c'!AB181,'3d'!AB181,'3e (voluntary)'!AB181))","v":":"},null,{"$f":"IF(COUNT('3a'!AD181,'3b'!AD181,'3c'!AD181,'3d'!AD181,'3e (voluntary)'!AD181)=0,\":\",SUM('3a'!AD181,'3b'!AD181,'3c'!AD181,'3d'!AD181,'3e (voluntary)'!AD181))","v":":"},null,{"$f":"IF(COUNT('3a'!AF181,'3b'!AF181,'3c'!AF181,'3d'!AF181,'3e (voluntary)'!AF181)=0,\":\",SUM('3a'!AF181,'3b'!AF181,'3c'!AF181,'3d'!AF181,'3e (voluntary)'!AF181))","v":":"}]
["S11_S12","EP_BUS","EPS_P51C",null,null,null,null,null,2027,{"$f":"IF(COUNT('3a'!J182,'3b'!J182,'3c'!J182,'3d'!J182,'3e (voluntary)'!J182)=0,\":\",SUM('3a'!J182,'3b'!J182,'3c'!J182,'3d'!J182,'3e (voluntary)'!J182))","v":":"},null,{"$f":"IF(COUNT('3a'!L182,'3b'!L182,'3c'!L182,'3d'!L182,'3e (voluntary)'!L182)=0,\":\",SUM('3a'!L182,'3b'!L182,'3c'!L182,'3d'!L182,'3e (voluntary)'!L182))","v":":"},null,{"$f":"IF(COUNT('3a'!N182,'3b'!N182,'3c'!N182,'3d'!N182,'3e (voluntary)'!N182)=0,\":\",SUM('3a'!N182,'3b'!N182,'3c'!N182,'3d'!N182,'3e (voluntary)'!N182))","v":":"},null,{"$f":"IF(COUNT('3a'!P182,'3b'!P182,'3c'!P182,'3d'!P182,'3e (voluntary)'!P182)=0,\":\",SUM('3a'!P182,'3b'!P182,'3c'!P182,'3d'!P182,'3e (voluntary)'!P182))","v":":"},null,{"$f":"IF(COUNT('3a'!R182,'3b'!R182,'3c'!R182,'3d'!R182,'3e (voluntary)'!R182)=0,\":\",SUM('3a'!R182,'3b'!R182,'3c'!R182,'3d'!R182,'3e (voluntary)'!R182))","v":":"},null,{"$f":"IF(COUNT('3a'!T182,'3b'!T182,'3c'!T182,'3d'!T182,'3e (voluntary)'!T182)=0,\":\",SUM('3a'!T182,'3b'!T182,'3c'!T182,'3d'!T182,'3e (voluntary)'!T182))","v":":"},null,{"$f":"IF(COUNT('3a'!V182,'3b'!V182,'3c'!V182,'3d'!V182,'3e (voluntary)'!V182)=0,\":\",SUM('3a'!V182,'3b'!V182,'3c'!V182,'3d'!V182,'3e (voluntary)'!V182))","v":":"},null,{"$f":"IF(COUNT('3a'!X182,'3b'!X182,'3c'!X182,'3d'!X182,'3e (voluntary)'!X182)=0,\":\",SUM('3a'!X182,'3b'!X182,'3c'!X182,'3d'!X182,'3e (voluntary)'!X182))","v":":"},null,{"$f":"IF(COUNT('3a'!Z182,'3b'!Z182,'3c'!Z182,'3d'!Z182,'3e (voluntary)'!Z182)=0,\":\",SUM('3a'!Z182,'3b'!Z182,'3c'!Z182,'3d'!Z182,'3e (voluntary)'!Z182))","v":":"},null,{"$f":"IF(COUNT('3a'!AB182,'3b'!AB182,'3c'!AB182,'3d'!AB182,'3e (voluntary)'!AB182)=0,\":\",SUM('3a'!AB182,'3b'!AB182,'3c'!AB182,'3d'!AB182,'3e (voluntary)'!AB182))","v":":"},null,{"$f":"IF(COUNT('3a'!AD182,'3b'!AD182,'3c'!AD182,'3d'!AD182,'3e (voluntary)'!AD182)=0,\":\",SUM('3a'!AD182,'3b'!AD182,'3c'!AD182,'3d'!AD182,'3e (voluntary)'!AD182))","v":":"},null,{"$f":"IF(COUNT('3a'!AF182,'3b'!AF182,'3c'!AF182,'3d'!AF182,'3e (voluntary)'!AF182)=0,\":\",SUM('3a'!AF182,'3b'!AF182,'3c'!AF182,'3d'!AF182,'3e (voluntary)'!AF182))","v":":"}]
["S11_S12","EP_BUS","EPS_P51C",null,null,null,null,null,2028,{"$f":"IF(COUNT('3a'!J183,'3b'!J183,'3c'!J183,'3d'!J183,'3e (voluntary)'!J183)=0,\":\",SUM('3a'!J183,'3b'!J183,'3c'!J183,'3d'!J183,'3e (voluntary)'!J183))","v":":"},null,{"$f":"IF(COUNT('3a'!L183,'3b'!L183,'3c'!L183,'3d'!L183,'3e (voluntary)'!L183)=0,\":\",SUM('3a'!L183,'3b'!L183,'3c'!L183,'3d'!L183,'3e (voluntary)'!L183))","v":":"},null,{"$f":"IF(COUNT('3a'!N183,'3b'!N183,'3c'!N183,'3d'!N183,'3e (voluntary)'!N183)=0,\":\",SUM('3a'!N183,'3b'!N183,'3c'!N183,'3d'!N183,'3e (voluntary)'!N183))","v":":"},null,{"$f":"IF(COUNT('3a'!P183,'3b'!P183,'3c'!P183,'3d'!P183,'3e (voluntary)'!P183)=0,\":\",SUM('3a'!P183,'3b'!P183,'3c'!P183,'3d'!P183,'3e (voluntary)'!P183))","v":":"},null,{"$f":"IF(COUNT('3a'!R183,'3b'!R183,'3c'!R183,'3d'!R183,'3e (voluntary)'!R183)=0,\":\",SUM('3a'!R183,'3b'!R183,'3c'!R183,'3d'!R183,'3e (voluntary)'!R183))","v":":"},null,{"$f":"IF(COUNT('3a'!T183,'3b'!T183,'3c'!T183,'3d'!T183,'3e (voluntary)'!T183)=0,\":\",SUM('3a'!T183,'3b'!T183,'3c'!T183,'3d'!T183,'3e (voluntary)'!T183))","v":":"},null,{"$f":"IF(COUNT('3a'!V183,'3b'!V183,'3c'!V183,'3d'!V183,'3e (voluntary)'!V183)=0,\":\",SUM('3a'!V183,'3b'!V183,'3c'!V183,'3d'!V183,'3e (voluntary)'!V183))","v":":"},null,{"$f":"IF(COUNT('3a'!X183,'3b'!X183,'3c'!X183,'3d'!X183,'3e (voluntary)'!X183)=0,\":\",SUM('3a'!X183,'3b'!X183,'3c'!X183,'3d'!X183,'3e (voluntary)'!X183))","v":":"},null,{"$f":"IF(COUNT('3a'!Z183,'3b'!Z183,'3c'!Z183,'3d'!Z183,'3e (voluntary)'!Z183)=0,\":\",SUM('3a'!Z183,'3b'!Z183,'3c'!Z183,'3d'!Z183,'3e (voluntary)'!Z183))","v":":"},null,{"$f":"IF(COUNT('3a'!AB183,'3b'!AB183,'3c'!AB183,'3d'!AB183,'3e (voluntary)'!AB183)=0,\":\",SUM('3a'!AB183,'3b'!AB183,'3c'!AB183,'3d'!AB183,'3e (voluntary)'!AB183))","v":":"},null,{"$f":"IF(COUNT('3a'!AD183,'3b'!AD183,'3c'!AD183,'3d'!AD183,'3e (voluntary)'!AD183)=0,\":\",SUM('3a'!AD183,'3b'!AD183,'3c'!AD183,'3d'!AD183,'3e (voluntary)'!AD183))","v":":"},null,{"$f":"IF(COUNT('3a'!AF183,'3b'!AF183,'3c'!AF183,'3d'!AF183,'3e (voluntary)'!AF183)=0,\":\",SUM('3a'!AF183,'3b'!AF183,'3c'!AF183,'3d'!AF183,'3e (voluntary)'!AF183))","v":":"}]
["S11_S12","EP_BUS","EPS_P51C",null,null,null,null,null,2029,{"$f":"IF(COUNT('3a'!J184,'3b'!J184,'3c'!J184,'3d'!J184,'3e (voluntary)'!J184)=0,\":\",SUM('3a'!J184,'3b'!J184,'3c'!J184,'3d'!J184,'3e (voluntary)'!J184))","v":":"},null,{"$f":"IF(COUNT('3a'!L184,'3b'!L184,'3c'!L184,'3d'!L184,'3e (voluntary)'!L184)=0,\":\",SUM('3a'!L184,'3b'!L184,'3c'!L184,'3d'!L184,'3e (voluntary)'!L184))","v":":"},null,{"$f":"IF(COUNT('3a'!N184,'3b'!N184,'3c'!N184,'3d'!N184,'3e (voluntary)'!N184)=0,\":\",SUM('3a'!N184,'3b'!N184,'3c'!N184,'3d'!N184,'3e (voluntary)'!N184))","v":":"},null,{"$f":"IF(COUNT('3a'!P184,'3b'!P184,'3c'!P184,'3d'!P184,'3e (voluntary)'!P184)=0,\":\",SUM('3a'!P184,'3b'!P184,'3c'!P184,'3d'!P184,'3e (voluntary)'!P184))","v":":"},null,{"$f":"IF(COUNT('3a'!R184,'3b'!R184,'3c'!R184,'3d'!R184,'3e (voluntary)'!R184)=0,\":\",SUM('3a'!R184,'3b'!R184,'3c'!R184,'3d'!R184,'3e (voluntary)'!R184))","v":":"},null,{"$f":"IF(COUNT('3a'!T184,'3b'!T184,'3c'!T184,'3d'!T184,'3e (voluntary)'!T184)=0,\":\",SUM('3a'!T184,'3b'!T184,'3c'!T184,'3d'!T184,'3e (voluntary)'!T184))","v":":"},null,{"$f":"IF(COUNT('3a'!V184,'3b'!V184,'3c'!V184,'3d'!V184,'3e (voluntary)'!V184)=0,\":\",SUM('3a'!V184,'3b'!V184,'3c'!V184,'3d'!V184,'3e (voluntary)'!V184))","v":":"},null,{"$f":"IF(COUNT('3a'!X184,'3b'!X184,'3c'!X184,'3d'!X184,'3e (voluntary)'!X184)=0,\":\",SUM('3a'!X184,'3b'!X184,'3c'!X184,'3d'!X184,'3e (voluntary)'!X184))","v":":"},null,{"$f":"IF(COUNT('3a'!Z184,'3b'!Z184,'3c'!Z184,'3d'!Z184,'3e (voluntary)'!Z184)=0,\":\",SUM('3a'!Z184,'3b'!Z184,'3c'!Z184,'3d'!Z184,'3e (voluntary)'!Z184))","v":":"},null,{"$f":"IF(COUNT('3a'!AB184,'3b'!AB184,'3c'!AB184,'3d'!AB184,'3e (voluntary)'!AB184)=0,\":\",SUM('3a'!AB184,'3b'!AB184,'3c'!AB184,'3d'!AB184,'3e (voluntary)'!AB184))","v":":"},null,{"$f":"IF(COUNT('3a'!AD184,'3b'!AD184,'3c'!AD184,'3d'!AD184,'3e (voluntary)'!AD184)=0,\":\",SUM('3a'!AD184,'3b'!AD184,'3c'!AD184,'3d'!AD184,'3e (voluntary)'!AD184))","v":":"},null,{"$f":"IF(COUNT('3a'!AF184,'3b'!AF184,'3c'!AF184,'3d'!AF184,'3e (voluntary)'!AF184)=0,\":\",SUM('3a'!AF184,'3b'!AF184,'3c'!AF184,'3d'!AF184,'3e (voluntary)'!AF184))","v":":"}]
["S11_S12","EP_BUS","EPS_P51C",null,null,null,null,null,2030,{"$f":"IF(COUNT('3a'!J185,'3b'!J185,'3c'!J185,'3d'!J185,'3e (voluntary)'!J185)=0,\":\",SUM('3a'!J185,'3b'!J185,'3c'!J185,'3d'!J185,'3e (voluntary)'!J185))","v":":"},null,{"$f":"IF(COUNT('3a'!L185,'3b'!L185,'3c'!L185,'3d'!L185,'3e (voluntary)'!L185)=0,\":\",SUM('3a'!L185,'3b'!L185,'3c'!L185,'3d'!L185,'3e (voluntary)'!L185))","v":":"},null,{"$f":"IF(COUNT('3a'!N185,'3b'!N185,'3c'!N185,'3d'!N185,'3e (voluntary)'!N185)=0,\":\",SUM('3a'!N185,'3b'!N185,'3c'!N185,'3d'!N185,'3e (voluntary)'!N185))","v":":"},null,{"$f":"IF(COUNT('3a'!P185,'3b'!P185,'3c'!P185,'3d'!P185,'3e (voluntary)'!P185)=0,\":\",SUM('3a'!P185,'3b'!P185,'3c'!P185,'3d'!P185,'3e (voluntary)'!P185))","v":":"},null,{"$f":"IF(COUNT('3a'!R185,'3b'!R185,'3c'!R185,'3d'!R185,'3e (voluntary)'!R185)=0,\":\",SUM('3a'!R185,'3b'!R185,'3c'!R185,'3d'!R185,'3e (voluntary)'!R185))","v":":"},null,{"$f":"IF(COUNT('3a'!T185,'3b'!T185,'3c'!T185,'3d'!T185,'3e (voluntary)'!T185)=0,\":\",SUM('3a'!T185,'3b'!T185,'3c'!T185,'3d'!T185,'3e (voluntary)'!T185))","v":":"},null,{"$f":"IF(COUNT('3a'!V185,'3b'!V185,'3c'!V185,'3d'!V185,'3e (voluntary)'!V185)=0,\":\",SUM('3a'!V185,'3b'!V185,'3c'!V185,'3d'!V185,'3e (voluntary)'!V185))","v":":"},null,{"$f":"IF(COUNT('3a'!X185,'3b'!X185,'3c'!X185,'3d'!X185,'3e (voluntary)'!X185)=0,\":\",SUM('3a'!X185,'3b'!X185,'3c'!X185,'3d'!X185,'3e (voluntary)'!X185))","v":":"},null,{"$f":"IF(COUNT('3a'!Z185,'3b'!Z185,'3c'!Z185,'3d'!Z185,'3e (voluntary)'!Z185)=0,\":\",SUM('3a'!Z185,'3b'!Z185,'3c'!Z185,'3d'!Z185,'3e (voluntary)'!Z185))","v":":"},null,{"$f":"IF(COUNT('3a'!AB185,'3b'!AB185,'3c'!AB185,'3d'!AB185,'3e (voluntary)'!AB185)=0,\":\",SUM('3a'!AB185,'3b'!AB185,'3c'!AB185,'3d'!AB185,'3e (voluntary)'!AB185))","v":":"},null,{"$f":"IF(COUNT('3a'!AD185,'3b'!AD185,'3c'!AD185,'3d'!AD185,'3e (voluntary)'!AD185)=0,\":\",SUM('3a'!AD185,'3b'!AD185,'3c'!AD185,'3d'!AD185,'3e (voluntary)'!AD185))","v":":"},null,{"$f":"IF(COUNT('3a'!AF185,'3b'!AF185,'3c'!AF185,'3d'!AF185,'3e (voluntary)'!AF185)=0,\":\",SUM('3a'!AF185,'3b'!AF185,'3c'!AF185,'3d'!AF185,'3e (voluntary)'!AF185))","v":":"}]
["S11_S12","EP_BUS","EPS_P51C",null,null,null,null,null,2031,{"$f":"IF(COUNT('3a'!J186,'3b'!J186,'3c'!J186,'3d'!J186,'3e (voluntary)'!J186)=0,\":\",SUM('3a'!J186,'3b'!J186,'3c'!J186,'3d'!J186,'3e (voluntary)'!J186))","v":":"},null,{"$f":"IF(COUNT('3a'!L186,'3b'!L186,'3c'!L186,'3d'!L186,'3e (voluntary)'!L186)=0,\":\",SUM('3a'!L186,'3b'!L186,'3c'!L186,'3d'!L186,'3e (voluntary)'!L186))","v":":"},null,{"$f":"IF(COUNT('3a'!N186,'3b'!N186,'3c'!N186,'3d'!N186,'3e (voluntary)'!N186)=0,\":\",SUM('3a'!N186,'3b'!N186,'3c'!N186,'3d'!N186,'3e (voluntary)'!N186))","v":":"},null,{"$f":"IF(COUNT('3a'!P186,'3b'!P186,'3c'!P186,'3d'!P186,'3e (voluntary)'!P186)=0,\":\",SUM('3a'!P186,'3b'!P186,'3c'!P186,'3d'!P186,'3e (voluntary)'!P186))","v":":"},null,{"$f":"IF(COUNT('3a'!R186,'3b'!R186,'3c'!R186,'3d'!R186,'3e (voluntary)'!R186)=0,\":\",SUM('3a'!R186,'3b'!R186,'3c'!R186,'3d'!R186,'3e (voluntary)'!R186))","v":":"},null,{"$f":"IF(COUNT('3a'!T186,'3b'!T186,'3c'!T186,'3d'!T186,'3e (voluntary)'!T186)=0,\":\",SUM('3a'!T186,'3b'!T186,'3c'!T186,'3d'!T186,'3e (voluntary)'!T186))","v":":"},null,{"$f":"IF(COUNT('3a'!V186,'3b'!V186,'3c'!V186,'3d'!V186,'3e (voluntary)'!V186)=0,\":\",SUM('3a'!V186,'3b'!V186,'3c'!V186,'3d'!V186,'3e (voluntary)'!V186))","v":":"},null,{"$f":"IF(COUNT('3a'!X186,'3b'!X186,'3c'!X186,'3d'!X186,'3e (voluntary)'!X186)=0,\":\",SUM('3a'!X186,'3b'!X186,'3c'!X186,'3d'!X186,'3e (voluntary)'!X186))","v":":"},null,{"$f":"IF(COUNT('3a'!Z186,'3b'!Z186,'3c'!Z186,'3d'!Z186,'3e (voluntary)'!Z186)=0,\":\",SUM('3a'!Z186,'3b'!Z186,'3c'!Z186,'3d'!Z186,'3e (voluntary)'!Z186))","v":":"},null,{"$f":"IF(COUNT('3a'!AB186,'3b'!AB186,'3c'!AB186,'3d'!AB186,'3e (voluntary)'!AB186)=0,\":\",SUM('3a'!AB186,'3b'!AB186,'3c'!AB186,'3d'!AB186,'3e (voluntary)'!AB186))","v":":"},null,{"$f":"IF(COUNT('3a'!AD186,'3b'!AD186,'3c'!AD186,'3d'!AD186,'3e (voluntary)'!AD186)=0,\":\",SUM('3a'!AD186,'3b'!AD186,'3c'!AD186,'3d'!AD186,'3e (voluntary)'!AD186))","v":":"},null,{"$f":"IF(COUNT('3a'!AF186,'3b'!AF186,'3c'!AF186,'3d'!AF186,'3e (voluntary)'!AF186)=0,\":\",SUM('3a'!AF186,'3b'!AF186,'3c'!AF186,'3d'!AF186,'3e (voluntary)'!AF186))","v":":"}]
["S11_S12","EP_BUS","EPS_P1_ANCESA",null,"( P1_ANC_ESA.3 ) Ancillary EP output (ESA-compatible output) ((P2_NEPS.3) + (D1.3) + (P51C.3) + (D29-D39.3))",null,null,null,2014,{"$f":"IF(COUNT('3a'!J187,'3b'!J187,'3c'!J187,'3d'!J187,'3e (voluntary)'!J187)=0,\":\",SUM('3a'!J187,'3b'!J187,'3c'!J187,'3d'!J187,'3e (voluntary)'!J187))","v":":"},null,{"$f":"IF(COUNT('3a'!L187,'3b'!L187,'3c'!L187,'3d'!L187,'3e (voluntary)'!L187)=0,\":\",SUM('3a'!L187,'3b'!L187,'3c'!L187,'3d'!L187,'3e (voluntary)'!L187))","v":":"},null,{"$f":"IF(COUNT('3a'!N187,'3b'!N187,'3c'!N187,'3d'!N187,'3e (voluntary)'!N187)=0,\":\",SUM('3a'!N187,'3b'!N187,'3c'!N187,'3d'!N187,'3e (voluntary)'!N187))","v":":"},null,{"$f":"IF(COUNT('3a'!P187,'3b'!P187,'3c'!P187,'3d'!P187,'3e (voluntary)'!P187)=0,\":\",SUM('3a'!P187,'3b'!P187,'3c'!P187,'3d'!P187,'3e (voluntary)'!P187))","v":":"},null,{"$f":"IF(COUNT('3a'!R187,'3b'!R187,'3c'!R187,'3d'!R187,'3e (voluntary)'!R187)=0,\":\",SUM('3a'!R187,'3b'!R187,'3c'!R187,'3d'!R187,'3e (voluntary)'!R187))","v":":"},null,{"$f":"IF(COUNT('3a'!T187,'3b'!T187,'3c'!T187,'3d'!T187,'3e (voluntary)'!T187)=0,\":\",SUM('3a'!T187,'3b'!T187,'3c'!T187,'3d'!T187,'3e (voluntary)'!T187))","v":":"},null,{"$f":"IF(COUNT('3a'!V187,'3b'!V187,'3c'!V187,'3d'!V187,'3e (voluntary)'!V187)=0,\":\",SUM('3a'!V187,'3b'!V187,'3c'!V187,'3d'!V187,'3e (voluntary)'!V187))","v":":"},null,{"$f":"IF(COUNT('3a'!X187,'3b'!X187,'3c'!X187,'3d'!X187,'3e (voluntary)'!X187)=0,\":\",SUM('3a'!X187,'3b'!X187,'3c'!X187,'3d'!X187,'3e (voluntary)'!X187))","v":":"},null,{"$f":"IF(COUNT('3a'!Z187,'3b'!Z187,'3c'!Z187,'3d'!Z187,'3e (voluntary)'!Z187)=0,\":\",SUM('3a'!Z187,'3b'!Z187,'3c'!Z187,'3d'!Z187,'3e (voluntary)'!Z187))","v":":"},null,{"$f":"IF(COUNT('3a'!AB187,'3b'!AB187,'3c'!AB187,'3d'!AB187,'3e (voluntary)'!AB187)=0,\":\",SUM('3a'!AB187,'3b'!AB187,'3c'!AB187,'3d'!AB187,'3e (voluntary)'!AB187))","v":":"},null,{"$f":"IF(COUNT('3a'!AD187,'3b'!AD187,'3c'!AD187,'3d'!AD187,'3e (voluntary)'!AD187)=0,\":\",SUM('3a'!AD187,'3b'!AD187,'3c'!AD187,'3d'!AD187,'3e (voluntary)'!AD187))","v":":"},null,{"$f":"IF(COUNT('3a'!AF187,'3b'!AF187,'3c'!AF187,'3d'!AF187,'3e (voluntary)'!AF187)=0,\":\",SUM('3a'!AF187,'3b'!AF187,'3c'!AF187,'3d'!AF187,'3e (voluntary)'!AF187))","v":":"}]
["S11_S12","EP_BUS","EPS_P1_ANCESA",null,null,null,null,null,2015,{"$f":"IF(COUNT('3a'!J188,'3b'!J188,'3c'!J188,'3d'!J188,'3e (voluntary)'!J188)=0,\":\",SUM('3a'!J188,'3b'!J188,'3c'!J188,'3d'!J188,'3e (voluntary)'!J188))","v":":"},null,{"$f":"IF(COUNT('3a'!L188,'3b'!L188,'3c'!L188,'3d'!L188,'3e (voluntary)'!L188)=0,\":\",SUM('3a'!L188,'3b'!L188,'3c'!L188,'3d'!L188,'3e (voluntary)'!L188))","v":":"},null,{"$f":"IF(COUNT('3a'!N188,'3b'!N188,'3c'!N188,'3d'!N188,'3e (voluntary)'!N188)=0,\":\",SUM('3a'!N188,'3b'!N188,'3c'!N188,'3d'!N188,'3e (voluntary)'!N188))","v":":"},null,{"$f":"IF(COUNT('3a'!P188,'3b'!P188,'3c'!P188,'3d'!P188,'3e (voluntary)'!P188)=0,\":\",SUM('3a'!P188,'3b'!P188,'3c'!P188,'3d'!P188,'3e (voluntary)'!P188))","v":":"},null,{"$f":"IF(COUNT('3a'!R188,'3b'!R188,'3c'!R188,'3d'!R188,'3e (voluntary)'!R188)=0,\":\",SUM('3a'!R188,'3b'!R188,'3c'!R188,'3d'!R188,'3e (voluntary)'!R188))","v":":"},null,{"$f":"IF(COUNT('3a'!T188,'3b'!T188,'3c'!T188,'3d'!T188,'3e (voluntary)'!T188)=0,\":\",SUM('3a'!T188,'3b'!T188,'3c'!T188,'3d'!T188,'3e (voluntary)'!T188))","v":":"},null,{"$f":"IF(COUNT('3a'!V188,'3b'!V188,'3c'!V188,'3d'!V188,'3e (voluntary)'!V188)=0,\":\",SUM('3a'!V188,'3b'!V188,'3c'!V188,'3d'!V188,'3e (voluntary)'!V188))","v":":"},null,{"$f":"IF(COUNT('3a'!X188,'3b'!X188,'3c'!X188,'3d'!X188,'3e (voluntary)'!X188)=0,\":\",SUM('3a'!X188,'3b'!X188,'3c'!X188,'3d'!X188,'3e (voluntary)'!X188))","v":":"},null,{"$f":"IF(COUNT('3a'!Z188,'3b'!Z188,'3c'!Z188,'3d'!Z188,'3e (voluntary)'!Z188)=0,\":\",SUM('3a'!Z188,'3b'!Z188,'3c'!Z188,'3d'!Z188,'3e (voluntary)'!Z188))","v":":"},null,{"$f":"IF(COUNT('3a'!AB188,'3b'!AB188,'3c'!AB188,'3d'!AB188,'3e (voluntary)'!AB188)=0,\":\",SUM('3a'!AB188,'3b'!AB188,'3c'!AB188,'3d'!AB188,'3e (voluntary)'!AB188))","v":":"},null,{"$f":"IF(COUNT('3a'!AD188,'3b'!AD188,'3c'!AD188,'3d'!AD188,'3e (voluntary)'!AD188)=0,\":\",SUM('3a'!AD188,'3b'!AD188,'3c'!AD188,'3d'!AD188,'3e (voluntary)'!AD188))","v":":"},null,{"$f":"IF(COUNT('3a'!AF188,'3b'!AF188,'3c'!AF188,'3d'!AF188,'3e (voluntary)'!AF188)=0,\":\",SUM('3a'!AF188,'3b'!AF188,'3c'!AF188,'3d'!AF188,'3e (voluntary)'!AF188))","v":":"}]
["S11_S12","EP_BUS","EPS_P1_ANCESA",null,null,null,null,null,2016,{"$f":"IF(COUNT('3a'!J189,'3b'!J189,'3c'!J189,'3d'!J189,'3e (voluntary)'!J189)=0,\":\",SUM('3a'!J189,'3b'!J189,'3c'!J189,'3d'!J189,'3e (voluntary)'!J189))","v":":"},null,{"$f":"IF(COUNT('3a'!L189,'3b'!L189,'3c'!L189,'3d'!L189,'3e (voluntary)'!L189)=0,\":\",SUM('3a'!L189,'3b'!L189,'3c'!L189,'3d'!L189,'3e (voluntary)'!L189))","v":":"},null,{"$f":"IF(COUNT('3a'!N189,'3b'!N189,'3c'!N189,'3d'!N189,'3e (voluntary)'!N189)=0,\":\",SUM('3a'!N189,'3b'!N189,'3c'!N189,'3d'!N189,'3e (voluntary)'!N189))","v":":"},null,{"$f":"IF(COUNT('3a'!P189,'3b'!P189,'3c'!P189,'3d'!P189,'3e (voluntary)'!P189)=0,\":\",SUM('3a'!P189,'3b'!P189,'3c'!P189,'3d'!P189,'3e (voluntary)'!P189))","v":":"},null,{"$f":"IF(COUNT('3a'!R189,'3b'!R189,'3c'!R189,'3d'!R189,'3e (voluntary)'!R189)=0,\":\",SUM('3a'!R189,'3b'!R189,'3c'!R189,'3d'!R189,'3e (voluntary)'!R189))","v":":"},null,{"$f":"IF(COUNT('3a'!T189,'3b'!T189,'3c'!T189,'3d'!T189,'3e (voluntary)'!T189)=0,\":\",SUM('3a'!T189,'3b'!T189,'3c'!T189,'3d'!T189,'3e (voluntary)'!T189))","v":":"},null,{"$f":"IF(COUNT('3a'!V189,'3b'!V189,'3c'!V189,'3d'!V189,'3e (voluntary)'!V189)=0,\":\",SUM('3a'!V189,'3b'!V189,'3c'!V189,'3d'!V189,'3e (voluntary)'!V189))","v":":"},null,{"$f":"IF(COUNT('3a'!X189,'3b'!X189,'3c'!X189,'3d'!X189,'3e (voluntary)'!X189)=0,\":\",SUM('3a'!X189,'3b'!X189,'3c'!X189,'3d'!X189,'3e (voluntary)'!X189))","v":":"},null,{"$f":"IF(COUNT('3a'!Z189,'3b'!Z189,'3c'!Z189,'3d'!Z189,'3e (voluntary)'!Z189)=0,\":\",SUM('3a'!Z189,'3b'!Z189,'3c'!Z189,'3d'!Z189,'3e (voluntary)'!Z189))","v":":"},null,{"$f":"IF(COUNT('3a'!AB189,'3b'!AB189,'3c'!AB189,'3d'!AB189,'3e (voluntary)'!AB189)=0,\":\",SUM('3a'!AB189,'3b'!AB189,'3c'!AB189,'3d'!AB189,'3e (voluntary)'!AB189))","v":":"},null,{"$f":"IF(COUNT('3a'!AD189,'3b'!AD189,'3c'!AD189,'3d'!AD189,'3e (voluntary)'!AD189)=0,\":\",SUM('3a'!AD189,'3b'!AD189,'3c'!AD189,'3d'!AD189,'3e (voluntary)'!AD189))","v":":"},null,{"$f":"IF(COUNT('3a'!AF189,'3b'!AF189,'3c'!AF189,'3d'!AF189,'3e (voluntary)'!AF189)=0,\":\",SUM('3a'!AF189,'3b'!AF189,'3c'!AF189,'3d'!AF189,'3e (voluntary)'!AF189))","v":":"}]
["S11_S12","EP_BUS","EPS_P1_ANCESA",null,null,null,null,null,2017,{"$f":"IF(COUNT('3a'!J190,'3b'!J190,'3c'!J190,'3d'!J190,'3e (voluntary)'!J190)=0,\":\",SUM('3a'!J190,'3b'!J190,'3c'!J190,'3d'!J190,'3e (voluntary)'!J190))","v":":"},null,{"$f":"IF(COUNT('3a'!L190,'3b'!L190,'3c'!L190,'3d'!L190,'3e (voluntary)'!L190)=0,\":\",SUM('3a'!L190,'3b'!L190,'3c'!L190,'3d'!L190,'3e (voluntary)'!L190))","v":":"},null,{"$f":"IF(COUNT('3a'!N190,'3b'!N190,'3c'!N190,'3d'!N190,'3e (voluntary)'!N190)=0,\":\",SUM('3a'!N190,'3b'!N190,'3c'!N190,'3d'!N190,'3e (voluntary)'!N190))","v":":"},null,{"$f":"IF(COUNT('3a'!P190,'3b'!P190,'3c'!P190,'3d'!P190,'3e (voluntary)'!P190)=0,\":\",SUM('3a'!P190,'3b'!P190,'3c'!P190,'3d'!P190,'3e (voluntary)'!P190))","v":":"},null,{"$f":"IF(COUNT('3a'!R190,'3b'!R190,'3c'!R190,'3d'!R190,'3e (voluntary)'!R190)=0,\":\",SUM('3a'!R190,'3b'!R190,'3c'!R190,'3d'!R190,'3e (voluntary)'!R190))","v":":"},null,{"$f":"IF(COUNT('3a'!T190,'3b'!T190,'3c'!T190,'3d'!T190,'3e (voluntary)'!T190)=0,\":\",SUM('3a'!T190,'3b'!T190,'3c'!T190,'3d'!T190,'3e (voluntary)'!T190))","v":":"},null,{"$f":"IF(COUNT('3a'!V190,'3b'!V190,'3c'!V190,'3d'!V190,'3e (voluntary)'!V190)=0,\":\",SUM('3a'!V190,'3b'!V190,'3c'!V190,'3d'!V190,'3e (voluntary)'!V190))","v":":"},null,{"$f":"IF(COUNT('3a'!X190,'3b'!X190,'3c'!X190,'3d'!X190,'3e (voluntary)'!X190)=0,\":\",SUM('3a'!X190,'3b'!X190,'3c'!X190,'3d'!X190,'3e (voluntary)'!X190))","v":":"},null,{"$f":"IF(COUNT('3a'!Z190,'3b'!Z190,'3c'!Z190,'3d'!Z190,'3e (voluntary)'!Z190)=0,\":\",SUM('3a'!Z190,'3b'!Z190,'3c'!Z190,'3d'!Z190,'3e (voluntary)'!Z190))","v":":"},null,{"$f":"IF(COUNT('3a'!AB190,'3b'!AB190,'3c'!AB190,'3d'!AB190,'3e (voluntary)'!AB190)=0,\":\",SUM('3a'!AB190,'3b'!AB190,'3c'!AB190,'3d'!AB190,'3e (voluntary)'!AB190))","v":":"},null,{"$f":"IF(COUNT('3a'!AD190,'3b'!AD190,'3c'!AD190,'3d'!AD190,'3e (voluntary)'!AD190)=0,\":\",SUM('3a'!AD190,'3b'!AD190,'3c'!AD190,'3d'!AD190,'3e (voluntary)'!AD190))","v":":"},null,{"$f":"IF(COUNT('3a'!AF190,'3b'!AF190,'3c'!AF190,'3d'!AF190,'3e (voluntary)'!AF190)=0,\":\",SUM('3a'!AF190,'3b'!AF190,'3c'!AF190,'3d'!AF190,'3e (voluntary)'!AF190))","v":":"}]
["S11_S12","EP_BUS","EPS_P1_ANCESA",null,null,null,null,null,2018,{"$f":"IF(COUNT('3a'!J191,'3b'!J191,'3c'!J191,'3d'!J191,'3e (voluntary)'!J191)=0,\":\",SUM('3a'!J191,'3b'!J191,'3c'!J191,'3d'!J191,'3e (voluntary)'!J191))","v":":"},null,{"$f":"IF(COUNT('3a'!L191,'3b'!L191,'3c'!L191,'3d'!L191,'3e (voluntary)'!L191)=0,\":\",SUM('3a'!L191,'3b'!L191,'3c'!L191,'3d'!L191,'3e (voluntary)'!L191))","v":":"},null,{"$f":"IF(COUNT('3a'!N191,'3b'!N191,'3c'!N191,'3d'!N191,'3e (voluntary)'!N191)=0,\":\",SUM('3a'!N191,'3b'!N191,'3c'!N191,'3d'!N191,'3e (voluntary)'!N191))","v":":"},null,{"$f":"IF(COUNT('3a'!P191,'3b'!P191,'3c'!P191,'3d'!P191,'3e (voluntary)'!P191)=0,\":\",SUM('3a'!P191,'3b'!P191,'3c'!P191,'3d'!P191,'3e (voluntary)'!P191))","v":":"},null,{"$f":"IF(COUNT('3a'!R191,'3b'!R191,'3c'!R191,'3d'!R191,'3e (voluntary)'!R191)=0,\":\",SUM('3a'!R191,'3b'!R191,'3c'!R191,'3d'!R191,'3e (voluntary)'!R191))","v":":"},null,{"$f":"IF(COUNT('3a'!T191,'3b'!T191,'3c'!T191,'3d'!T191,'3e (voluntary)'!T191)=0,\":\",SUM('3a'!T191,'3b'!T191,'3c'!T191,'3d'!T191,'3e (voluntary)'!T191))","v":":"},null,{"$f":"IF(COUNT('3a'!V191,'3b'!V191,'3c'!V191,'3d'!V191,'3e (voluntary)'!V191)=0,\":\",SUM('3a'!V191,'3b'!V191,'3c'!V191,'3d'!V191,'3e (voluntary)'!V191))","v":":"},null,{"$f":"IF(COUNT('3a'!X191,'3b'!X191,'3c'!X191,'3d'!X191,'3e (voluntary)'!X191)=0,\":\",SUM('3a'!X191,'3b'!X191,'3c'!X191,'3d'!X191,'3e (voluntary)'!X191))","v":":"},null,{"$f":"IF(COUNT('3a'!Z191,'3b'!Z191,'3c'!Z191,'3d'!Z191,'3e (voluntary)'!Z191)=0,\":\",SUM('3a'!Z191,'3b'!Z191,'3c'!Z191,'3d'!Z191,'3e (voluntary)'!Z191))","v":":"},null,{"$f":"IF(COUNT('3a'!AB191,'3b'!AB191,'3c'!AB191,'3d'!AB191,'3e (voluntary)'!AB191)=0,\":\",SUM('3a'!AB191,'3b'!AB191,'3c'!AB191,'3d'!AB191,'3e (voluntary)'!AB191))","v":":"},null,{"$f":"IF(COUNT('3a'!AD191,'3b'!AD191,'3c'!AD191,'3d'!AD191,'3e (voluntary)'!AD191)=0,\":\",SUM('3a'!AD191,'3b'!AD191,'3c'!AD191,'3d'!AD191,'3e (voluntary)'!AD191))","v":":"},null,{"$f":"IF(COUNT('3a'!AF191,'3b'!AF191,'3c'!AF191,'3d'!AF191,'3e (voluntary)'!AF191)=0,\":\",SUM('3a'!AF191,'3b'!AF191,'3c'!AF191,'3d'!AF191,'3e (voluntary)'!AF191))","v":":"}]
["S11_S12","EP_BUS","EPS_P1_ANCESA",null,null,null,null,null,2019,{"$f":"IF(COUNT('3a'!J192,'3b'!J192,'3c'!J192,'3d'!J192,'3e (voluntary)'!J192)=0,\":\",SUM('3a'!J192,'3b'!J192,'3c'!J192,'3d'!J192,'3e (voluntary)'!J192))","v":":"},null,{"$f":"IF(COUNT('3a'!L192,'3b'!L192,'3c'!L192,'3d'!L192,'3e (voluntary)'!L192)=0,\":\",SUM('3a'!L192,'3b'!L192,'3c'!L192,'3d'!L192,'3e (voluntary)'!L192))","v":":"},null,{"$f":"IF(COUNT('3a'!N192,'3b'!N192,'3c'!N192,'3d'!N192,'3e (voluntary)'!N192)=0,\":\",SUM('3a'!N192,'3b'!N192,'3c'!N192,'3d'!N192,'3e (voluntary)'!N192))","v":":"},null,{"$f":"IF(COUNT('3a'!P192,'3b'!P192,'3c'!P192,'3d'!P192,'3e (voluntary)'!P192)=0,\":\",SUM('3a'!P192,'3b'!P192,'3c'!P192,'3d'!P192,'3e (voluntary)'!P192))","v":":"},null,{"$f":"IF(COUNT('3a'!R192,'3b'!R192,'3c'!R192,'3d'!R192,'3e (voluntary)'!R192)=0,\":\",SUM('3a'!R192,'3b'!R192,'3c'!R192,'3d'!R192,'3e (voluntary)'!R192))","v":":"},null,{"$f":"IF(COUNT('3a'!T192,'3b'!T192,'3c'!T192,'3d'!T192,'3e (voluntary)'!T192)=0,\":\",SUM('3a'!T192,'3b'!T192,'3c'!T192,'3d'!T192,'3e (voluntary)'!T192))","v":":"},null,{"$f":"IF(COUNT('3a'!V192,'3b'!V192,'3c'!V192,'3d'!V192,'3e (voluntary)'!V192)=0,\":\",SUM('3a'!V192,'3b'!V192,'3c'!V192,'3d'!V192,'3e (voluntary)'!V192))","v":":"},null,{"$f":"IF(COUNT('3a'!X192,'3b'!X192,'3c'!X192,'3d'!X192,'3e (voluntary)'!X192)=0,\":\",SUM('3a'!X192,'3b'!X192,'3c'!X192,'3d'!X192,'3e (voluntary)'!X192))","v":":"},null,{"$f":"IF(COUNT('3a'!Z192,'3b'!Z192,'3c'!Z192,'3d'!Z192,'3e (voluntary)'!Z192)=0,\":\",SUM('3a'!Z192,'3b'!Z192,'3c'!Z192,'3d'!Z192,'3e (voluntary)'!Z192))","v":":"},null,{"$f":"IF(COUNT('3a'!AB192,'3b'!AB192,'3c'!AB192,'3d'!AB192,'3e (voluntary)'!AB192)=0,\":\",SUM('3a'!AB192,'3b'!AB192,'3c'!AB192,'3d'!AB192,'3e (voluntary)'!AB192))","v":":"},null,{"$f":"IF(COUNT('3a'!AD192,'3b'!AD192,'3c'!AD192,'3d'!AD192,'3e (voluntary)'!AD192)=0,\":\",SUM('3a'!AD192,'3b'!AD192,'3c'!AD192,'3d'!AD192,'3e (voluntary)'!AD192))","v":":"},null,{"$f":"IF(COUNT('3a'!AF192,'3b'!AF192,'3c'!AF192,'3d'!AF192,'3e (voluntary)'!AF192)=0,\":\",SUM('3a'!AF192,'3b'!AF192,'3c'!AF192,'3d'!AF192,'3e (voluntary)'!AF192))","v":":"}]
["S11_S12","EP_BUS","EPS_P1_ANCESA",null,null,null,null,null,2020,{"$f":"IF(COUNT('3a'!J193,'3b'!J193,'3c'!J193,'3d'!J193,'3e (voluntary)'!J193)=0,\":\",SUM('3a'!J193,'3b'!J193,'3c'!J193,'3d'!J193,'3e (voluntary)'!J193))","v":":"},null,{"$f":"IF(COUNT('3a'!L193,'3b'!L193,'3c'!L193,'3d'!L193,'3e (voluntary)'!L193)=0,\":\",SUM('3a'!L193,'3b'!L193,'3c'!L193,'3d'!L193,'3e (voluntary)'!L193))","v":":"},null,{"$f":"IF(COUNT('3a'!N193,'3b'!N193,'3c'!N193,'3d'!N193,'3e (voluntary)'!N193)=0,\":\",SUM('3a'!N193,'3b'!N193,'3c'!N193,'3d'!N193,'3e (voluntary)'!N193))","v":":"},null,{"$f":"IF(COUNT('3a'!P193,'3b'!P193,'3c'!P193,'3d'!P193,'3e (voluntary)'!P193)=0,\":\",SUM('3a'!P193,'3b'!P193,'3c'!P193,'3d'!P193,'3e (voluntary)'!P193))","v":":"},null,{"$f":"IF(COUNT('3a'!R193,'3b'!R193,'3c'!R193,'3d'!R193,'3e (voluntary)'!R193)=0,\":\",SUM('3a'!R193,'3b'!R193,'3c'!R193,'3d'!R193,'3e (voluntary)'!R193))","v":":"},null,{"$f":"IF(COUNT('3a'!T193,'3b'!T193,'3c'!T193,'3d'!T193,'3e (voluntary)'!T193)=0,\":\",SUM('3a'!T193,'3b'!T193,'3c'!T193,'3d'!T193,'3e (voluntary)'!T193))","v":":"},null,{"$f":"IF(COUNT('3a'!V193,'3b'!V193,'3c'!V193,'3d'!V193,'3e (voluntary)'!V193)=0,\":\",SUM('3a'!V193,'3b'!V193,'3c'!V193,'3d'!V193,'3e (voluntary)'!V193))","v":":"},null,{"$f":"IF(COUNT('3a'!X193,'3b'!X193,'3c'!X193,'3d'!X193,'3e (voluntary)'!X193)=0,\":\",SUM('3a'!X193,'3b'!X193,'3c'!X193,'3d'!X193,'3e (voluntary)'!X193))","v":":"},null,{"$f":"IF(COUNT('3a'!Z193,'3b'!Z193,'3c'!Z193,'3d'!Z193,'3e (voluntary)'!Z193)=0,\":\",SUM('3a'!Z193,'3b'!Z193,'3c'!Z193,'3d'!Z193,'3e (voluntary)'!Z193))","v":":"},null,{"$f":"IF(COUNT('3a'!AB193,'3b'!AB193,'3c'!AB193,'3d'!AB193,'3e (voluntary)'!AB193)=0,\":\",SUM('3a'!AB193,'3b'!AB193,'3c'!AB193,'3d'!AB193,'3e (voluntary)'!AB193))","v":":"},null,{"$f":"IF(COUNT('3a'!AD193,'3b'!AD193,'3c'!AD193,'3d'!AD193,'3e (voluntary)'!AD193)=0,\":\",SUM('3a'!AD193,'3b'!AD193,'3c'!AD193,'3d'!AD193,'3e (voluntary)'!AD193))","v":":"},null,{"$f":"IF(COUNT('3a'!AF193,'3b'!AF193,'3c'!AF193,'3d'!AF193,'3e (voluntary)'!AF193)=0,\":\",SUM('3a'!AF193,'3b'!AF193,'3c'!AF193,'3d'!AF193,'3e (voluntary)'!AF193))","v":":"}]
["S11_S12","EP_BUS","EPS_P1_ANCESA",null,null,null,null,null,2021,{"$f":"IF(COUNT('3a'!J194,'3b'!J194,'3c'!J194,'3d'!J194,'3e (voluntary)'!J194)=0,\":\",SUM('3a'!J194,'3b'!J194,'3c'!J194,'3d'!J194,'3e (voluntary)'!J194))","v":":"},null,{"$f":"IF(COUNT('3a'!L194,'3b'!L194,'3c'!L194,'3d'!L194,'3e (voluntary)'!L194)=0,\":\",SUM('3a'!L194,'3b'!L194,'3c'!L194,'3d'!L194,'3e (voluntary)'!L194))","v":":"},null,{"$f":"IF(COUNT('3a'!N194,'3b'!N194,'3c'!N194,'3d'!N194,'3e (voluntary)'!N194)=0,\":\",SUM('3a'!N194,'3b'!N194,'3c'!N194,'3d'!N194,'3e (voluntary)'!N194))","v":":"},null,{"$f":"IF(COUNT('3a'!P194,'3b'!P194,'3c'!P194,'3d'!P194,'3e (voluntary)'!P194)=0,\":\",SUM('3a'!P194,'3b'!P194,'3c'!P194,'3d'!P194,'3e (voluntary)'!P194))","v":":"},null,{"$f":"IF(COUNT('3a'!R194,'3b'!R194,'3c'!R194,'3d'!R194,'3e (voluntary)'!R194)=0,\":\",SUM('3a'!R194,'3b'!R194,'3c'!R194,'3d'!R194,'3e (voluntary)'!R194))","v":":"},null,{"$f":"IF(COUNT('3a'!T194,'3b'!T194,'3c'!T194,'3d'!T194,'3e (voluntary)'!T194)=0,\":\",SUM('3a'!T194,'3b'!T194,'3c'!T194,'3d'!T194,'3e (voluntary)'!T194))","v":":"},null,{"$f":"IF(COUNT('3a'!V194,'3b'!V194,'3c'!V194,'3d'!V194,'3e (voluntary)'!V194)=0,\":\",SUM('3a'!V194,'3b'!V194,'3c'!V194,'3d'!V194,'3e (voluntary)'!V194))","v":":"},null,{"$f":"IF(COUNT('3a'!X194,'3b'!X194,'3c'!X194,'3d'!X194,'3e (voluntary)'!X194)=0,\":\",SUM('3a'!X194,'3b'!X194,'3c'!X194,'3d'!X194,'3e (voluntary)'!X194))","v":":"},null,{"$f":"IF(COUNT('3a'!Z194,'3b'!Z194,'3c'!Z194,'3d'!Z194,'3e (voluntary)'!Z194)=0,\":\",SUM('3a'!Z194,'3b'!Z194,'3c'!Z194,'3d'!Z194,'3e (voluntary)'!Z194))","v":":"},null,{"$f":"IF(COUNT('3a'!AB194,'3b'!AB194,'3c'!AB194,'3d'!AB194,'3e (voluntary)'!AB194)=0,\":\",SUM('3a'!AB194,'3b'!AB194,'3c'!AB194,'3d'!AB194,'3e (voluntary)'!AB194))","v":":"},null,{"$f":"IF(COUNT('3a'!AD194,'3b'!AD194,'3c'!AD194,'3d'!AD194,'3e (voluntary)'!AD194)=0,\":\",SUM('3a'!AD194,'3b'!AD194,'3c'!AD194,'3d'!AD194,'3e (voluntary)'!AD194))","v":":"},null,{"$f":"IF(COUNT('3a'!AF194,'3b'!AF194,'3c'!AF194,'3d'!AF194,'3e (voluntary)'!AF194)=0,\":\",SUM('3a'!AF194,'3b'!AF194,'3c'!AF194,'3d'!AF194,'3e (voluntary)'!AF194))","v":":"}]
["S11_S12","EP_BUS","EPS_P1_ANCESA",null,null,null,null,null,2022,{"$f":"IF(COUNT('3a'!J195,'3b'!J195,'3c'!J195,'3d'!J195,'3e (voluntary)'!J195)=0,\":\",SUM('3a'!J195,'3b'!J195,'3c'!J195,'3d'!J195,'3e (voluntary)'!J195))","v":":"},null,{"$f":"IF(COUNT('3a'!L195,'3b'!L195,'3c'!L195,'3d'!L195,'3e (voluntary)'!L195)=0,\":\",SUM('3a'!L195,'3b'!L195,'3c'!L195,'3d'!L195,'3e (voluntary)'!L195))","v":":"},null,{"$f":"IF(COUNT('3a'!N195,'3b'!N195,'3c'!N195,'3d'!N195,'3e (voluntary)'!N195)=0,\":\",SUM('3a'!N195,'3b'!N195,'3c'!N195,'3d'!N195,'3e (voluntary)'!N195))","v":":"},null,{"$f":"IF(COUNT('3a'!P195,'3b'!P195,'3c'!P195,'3d'!P195,'3e (voluntary)'!P195)=0,\":\",SUM('3a'!P195,'3b'!P195,'3c'!P195,'3d'!P195,'3e (voluntary)'!P195))","v":":"},null,{"$f":"IF(COUNT('3a'!R195,'3b'!R195,'3c'!R195,'3d'!R195,'3e (voluntary)'!R195)=0,\":\",SUM('3a'!R195,'3b'!R195,'3c'!R195,'3d'!R195,'3e (voluntary)'!R195))","v":":"},null,{"$f":"IF(COUNT('3a'!T195,'3b'!T195,'3c'!T195,'3d'!T195,'3e (voluntary)'!T195)=0,\":\",SUM('3a'!T195,'3b'!T195,'3c'!T195,'3d'!T195,'3e (voluntary)'!T195))","v":":"},null,{"$f":"IF(COUNT('3a'!V195,'3b'!V195,'3c'!V195,'3d'!V195,'3e (voluntary)'!V195)=0,\":\",SUM('3a'!V195,'3b'!V195,'3c'!V195,'3d'!V195,'3e (voluntary)'!V195))","v":":"},null,{"$f":"IF(COUNT('3a'!X195,'3b'!X195,'3c'!X195,'3d'!X195,'3e (voluntary)'!X195)=0,\":\",SUM('3a'!X195,'3b'!X195,'3c'!X195,'3d'!X195,'3e (voluntary)'!X195))","v":":"},null,{"$f":"IF(COUNT('3a'!Z195,'3b'!Z195,'3c'!Z195,'3d'!Z195,'3e (voluntary)'!Z195)=0,\":\",SUM('3a'!Z195,'3b'!Z195,'3c'!Z195,'3d'!Z195,'3e (voluntary)'!Z195))","v":":"},null,{"$f":"IF(COUNT('3a'!AB195,'3b'!AB195,'3c'!AB195,'3d'!AB195,'3e (voluntary)'!AB195)=0,\":\",SUM('3a'!AB195,'3b'!AB195,'3c'!AB195,'3d'!AB195,'3e (voluntary)'!AB195))","v":":"},null,{"$f":"IF(COUNT('3a'!AD195,'3b'!AD195,'3c'!AD195,'3d'!AD195,'3e (voluntary)'!AD195)=0,\":\",SUM('3a'!AD195,'3b'!AD195,'3c'!AD195,'3d'!AD195,'3e (voluntary)'!AD195))","v":":"},null,{"$f":"IF(COUNT('3a'!AF195,'3b'!AF195,'3c'!AF195,'3d'!AF195,'3e (voluntary)'!AF195)=0,\":\",SUM('3a'!AF195,'3b'!AF195,'3c'!AF195,'3d'!AF195,'3e (voluntary)'!AF195))","v":":"}]
["S11_S12","EP_BUS","EPS_P1_ANCESA",null,null,null,null,null,2023,{"$f":"IF(COUNT('3a'!J196,'3b'!J196,'3c'!J196,'3d'!J196,'3e (voluntary)'!J196)=0,\":\",SUM('3a'!J196,'3b'!J196,'3c'!J196,'3d'!J196,'3e (voluntary)'!J196))","v":":"},null,{"$f":"IF(COUNT('3a'!L196,'3b'!L196,'3c'!L196,'3d'!L196,'3e (voluntary)'!L196)=0,\":\",SUM('3a'!L196,'3b'!L196,'3c'!L196,'3d'!L196,'3e (voluntary)'!L196))","v":":"},null,{"$f":"IF(COUNT('3a'!N196,'3b'!N196,'3c'!N196,'3d'!N196,'3e (voluntary)'!N196)=0,\":\",SUM('3a'!N196,'3b'!N196,'3c'!N196,'3d'!N196,'3e (voluntary)'!N196))","v":":"},null,{"$f":"IF(COUNT('3a'!P196,'3b'!P196,'3c'!P196,'3d'!P196,'3e (voluntary)'!P196)=0,\":\",SUM('3a'!P196,'3b'!P196,'3c'!P196,'3d'!P196,'3e (voluntary)'!P196))","v":":"},null,{"$f":"IF(COUNT('3a'!R196,'3b'!R196,'3c'!R196,'3d'!R196,'3e (voluntary)'!R196)=0,\":\",SUM('3a'!R196,'3b'!R196,'3c'!R196,'3d'!R196,'3e (voluntary)'!R196))","v":":"},null,{"$f":"IF(COUNT('3a'!T196,'3b'!T196,'3c'!T196,'3d'!T196,'3e (voluntary)'!T196)=0,\":\",SUM('3a'!T196,'3b'!T196,'3c'!T196,'3d'!T196,'3e (voluntary)'!T196))","v":":"},null,{"$f":"IF(COUNT('3a'!V196,'3b'!V196,'3c'!V196,'3d'!V196,'3e (voluntary)'!V196)=0,\":\",SUM('3a'!V196,'3b'!V196,'3c'!V196,'3d'!V196,'3e (voluntary)'!V196))","v":":"},null,{"$f":"IF(COUNT('3a'!X196,'3b'!X196,'3c'!X196,'3d'!X196,'3e (voluntary)'!X196)=0,\":\",SUM('3a'!X196,'3b'!X196,'3c'!X196,'3d'!X196,'3e (voluntary)'!X196))","v":":"},null,{"$f":"IF(COUNT('3a'!Z196,'3b'!Z196,'3c'!Z196,'3d'!Z196,'3e (voluntary)'!Z196)=0,\":\",SUM('3a'!Z196,'3b'!Z196,'3c'!Z196,'3d'!Z196,'3e (voluntary)'!Z196))","v":":"},null,{"$f":"IF(COUNT('3a'!AB196,'3b'!AB196,'3c'!AB196,'3d'!AB196,'3e (voluntary)'!AB196)=0,\":\",SUM('3a'!AB196,'3b'!AB196,'3c'!AB196,'3d'!AB196,'3e (voluntary)'!AB196))","v":":"},null,{"$f":"IF(COUNT('3a'!AD196,'3b'!AD196,'3c'!AD196,'3d'!AD196,'3e (voluntary)'!AD196)=0,\":\",SUM('3a'!AD196,'3b'!AD196,'3c'!AD196,'3d'!AD196,'3e (voluntary)'!AD196))","v":":"},null,{"$f":"IF(COUNT('3a'!AF196,'3b'!AF196,'3c'!AF196,'3d'!AF196,'3e (voluntary)'!AF196)=0,\":\",SUM('3a'!AF196,'3b'!AF196,'3c'!AF196,'3d'!AF196,'3e (voluntary)'!AF196))","v":":"}]
["S11_S12","EP_BUS","EPS_P1_ANCESA",null,null,null,null,null,2024,{"$f":"IF(COUNT('3a'!J197,'3b'!J197,'3c'!J197,'3d'!J197,'3e (voluntary)'!J197)=0,\":\",SUM('3a'!J197,'3b'!J197,'3c'!J197,'3d'!J197,'3e (voluntary)'!J197))","v":":"},null,{"$f":"IF(COUNT('3a'!L197,'3b'!L197,'3c'!L197,'3d'!L197,'3e (voluntary)'!L197)=0,\":\",SUM('3a'!L197,'3b'!L197,'3c'!L197,'3d'!L197,'3e (voluntary)'!L197))","v":":"},null,{"$f":"IF(COUNT('3a'!N197,'3b'!N197,'3c'!N197,'3d'!N197,'3e (voluntary)'!N197)=0,\":\",SUM('3a'!N197,'3b'!N197,'3c'!N197,'3d'!N197,'3e (voluntary)'!N197))","v":":"},null,{"$f":"IF(COUNT('3a'!P197,'3b'!P197,'3c'!P197,'3d'!P197,'3e (voluntary)'!P197)=0,\":\",SUM('3a'!P197,'3b'!P197,'3c'!P197,'3d'!P197,'3e (voluntary)'!P197))","v":":"},null,{"$f":"IF(COUNT('3a'!R197,'3b'!R197,'3c'!R197,'3d'!R197,'3e (voluntary)'!R197)=0,\":\",SUM('3a'!R197,'3b'!R197,'3c'!R197,'3d'!R197,'3e (voluntary)'!R197))","v":":"},null,{"$f":"IF(COUNT('3a'!T197,'3b'!T197,'3c'!T197,'3d'!T197,'3e (voluntary)'!T197)=0,\":\",SUM('3a'!T197,'3b'!T197,'3c'!T197,'3d'!T197,'3e (voluntary)'!T197))","v":":"},null,{"$f":"IF(COUNT('3a'!V197,'3b'!V197,'3c'!V197,'3d'!V197,'3e (voluntary)'!V197)=0,\":\",SUM('3a'!V197,'3b'!V197,'3c'!V197,'3d'!V197,'3e (voluntary)'!V197))","v":":"},null,{"$f":"IF(COUNT('3a'!X197,'3b'!X197,'3c'!X197,'3d'!X197,'3e (voluntary)'!X197)=0,\":\",SUM('3a'!X197,'3b'!X197,'3c'!X197,'3d'!X197,'3e (voluntary)'!X197))","v":":"},null,{"$f":"IF(COUNT('3a'!Z197,'3b'!Z197,'3c'!Z197,'3d'!Z197,'3e (voluntary)'!Z197)=0,\":\",SUM('3a'!Z197,'3b'!Z197,'3c'!Z197,'3d'!Z197,'3e (voluntary)'!Z197))","v":":"},null,{"$f":"IF(COUNT('3a'!AB197,'3b'!AB197,'3c'!AB197,'3d'!AB197,'3e (voluntary)'!AB197)=0,\":\",SUM('3a'!AB197,'3b'!AB197,'3c'!AB197,'3d'!AB197,'3e (voluntary)'!AB197))","v":":"},null,{"$f":"IF(COUNT('3a'!AD197,'3b'!AD197,'3c'!AD197,'3d'!AD197,'3e (voluntary)'!AD197)=0,\":\",SUM('3a'!AD197,'3b'!AD197,'3c'!AD197,'3d'!AD197,'3e (voluntary)'!AD197))","v":":"},null,{"$f":"IF(COUNT('3a'!AF197,'3b'!AF197,'3c'!AF197,'3d'!AF197,'3e (voluntary)'!AF197)=0,\":\",SUM('3a'!AF197,'3b'!AF197,'3c'!AF197,'3d'!AF197,'3e (voluntary)'!AF197))","v":":"}]
["S11_S12","EP_BUS","EPS_P1_ANCESA",null,null,null,null,null,2025,{"$f":"IF(COUNT('3a'!J198,'3b'!J198,'3c'!J198,'3d'!J198,'3e (voluntary)'!J198)=0,\":\",SUM('3a'!J198,'3b'!J198,'3c'!J198,'3d'!J198,'3e (voluntary)'!J198))","v":":"},null,{"$f":"IF(COUNT('3a'!L198,'3b'!L198,'3c'!L198,'3d'!L198,'3e (voluntary)'!L198)=0,\":\",SUM('3a'!L198,'3b'!L198,'3c'!L198,'3d'!L198,'3e (voluntary)'!L198))","v":":"},null,{"$f":"IF(COUNT('3a'!N198,'3b'!N198,'3c'!N198,'3d'!N198,'3e (voluntary)'!N198)=0,\":\",SUM('3a'!N198,'3b'!N198,'3c'!N198,'3d'!N198,'3e (voluntary)'!N198))","v":":"},null,{"$f":"IF(COUNT('3a'!P198,'3b'!P198,'3c'!P198,'3d'!P198,'3e (voluntary)'!P198)=0,\":\",SUM('3a'!P198,'3b'!P198,'3c'!P198,'3d'!P198,'3e (voluntary)'!P198))","v":":"},null,{"$f":"IF(COUNT('3a'!R198,'3b'!R198,'3c'!R198,'3d'!R198,'3e (voluntary)'!R198)=0,\":\",SUM('3a'!R198,'3b'!R198,'3c'!R198,'3d'!R198,'3e (voluntary)'!R198))","v":":"},null,{"$f":"IF(COUNT('3a'!T198,'3b'!T198,'3c'!T198,'3d'!T198,'3e (voluntary)'!T198)=0,\":\",SUM('3a'!T198,'3b'!T198,'3c'!T198,'3d'!T198,'3e (voluntary)'!T198))","v":":"},null,{"$f":"IF(COUNT('3a'!V198,'3b'!V198,'3c'!V198,'3d'!V198,'3e (voluntary)'!V198)=0,\":\",SUM('3a'!V198,'3b'!V198,'3c'!V198,'3d'!V198,'3e (voluntary)'!V198))","v":":"},null,{"$f":"IF(COUNT('3a'!X198,'3b'!X198,'3c'!X198,'3d'!X198,'3e (voluntary)'!X198)=0,\":\",SUM('3a'!X198,'3b'!X198,'3c'!X198,'3d'!X198,'3e (voluntary)'!X198))","v":":"},null,{"$f":"IF(COUNT('3a'!Z198,'3b'!Z198,'3c'!Z198,'3d'!Z198,'3e (voluntary)'!Z198)=0,\":\",SUM('3a'!Z198,'3b'!Z198,'3c'!Z198,'3d'!Z198,'3e (voluntary)'!Z198))","v":":"},null,{"$f":"IF(COUNT('3a'!AB198,'3b'!AB198,'3c'!AB198,'3d'!AB198,'3e (voluntary)'!AB198)=0,\":\",SUM('3a'!AB198,'3b'!AB198,'3c'!AB198,'3d'!AB198,'3e (voluntary)'!AB198))","v":":"},null,{"$f":"IF(COUNT('3a'!AD198,'3b'!AD198,'3c'!AD198,'3d'!AD198,'3e (voluntary)'!AD198)=0,\":\",SUM('3a'!AD198,'3b'!AD198,'3c'!AD198,'3d'!AD198,'3e (voluntary)'!AD198))","v":":"},null,{"$f":"IF(COUNT('3a'!AF198,'3b'!AF198,'3c'!AF198,'3d'!AF198,'3e (voluntary)'!AF198)=0,\":\",SUM('3a'!AF198,'3b'!AF198,'3c'!AF198,'3d'!AF198,'3e (voluntary)'!AF198))","v":":"}]
["S11_S12","EP_BUS","EPS_P1_ANCESA",null,null,null,null,null,2026,{"$f":"IF(COUNT('3a'!J199,'3b'!J199,'3c'!J199,'3d'!J199,'3e (voluntary)'!J199)=0,\":\",SUM('3a'!J199,'3b'!J199,'3c'!J199,'3d'!J199,'3e (voluntary)'!J199))","v":":"},null,{"$f":"IF(COUNT('3a'!L199,'3b'!L199,'3c'!L199,'3d'!L199,'3e (voluntary)'!L199)=0,\":\",SUM('3a'!L199,'3b'!L199,'3c'!L199,'3d'!L199,'3e (voluntary)'!L199))","v":":"},null,{"$f":"IF(COUNT('3a'!N199,'3b'!N199,'3c'!N199,'3d'!N199,'3e (voluntary)'!N199)=0,\":\",SUM('3a'!N199,'3b'!N199,'3c'!N199,'3d'!N199,'3e (voluntary)'!N199))","v":":"},null,{"$f":"IF(COUNT('3a'!P199,'3b'!P199,'3c'!P199,'3d'!P199,'3e (voluntary)'!P199)=0,\":\",SUM('3a'!P199,'3b'!P199,'3c'!P199,'3d'!P199,'3e (voluntary)'!P199))","v":":"},null,{"$f":"IF(COUNT('3a'!R199,'3b'!R199,'3c'!R199,'3d'!R199,'3e (voluntary)'!R199)=0,\":\",SUM('3a'!R199,'3b'!R199,'3c'!R199,'3d'!R199,'3e (voluntary)'!R199))","v":":"},null,{"$f":"IF(COUNT('3a'!T199,'3b'!T199,'3c'!T199,'3d'!T199,'3e (voluntary)'!T199)=0,\":\",SUM('3a'!T199,'3b'!T199,'3c'!T199,'3d'!T199,'3e (voluntary)'!T199))","v":":"},null,{"$f":"IF(COUNT('3a'!V199,'3b'!V199,'3c'!V199,'3d'!V199,'3e (voluntary)'!V199)=0,\":\",SUM('3a'!V199,'3b'!V199,'3c'!V199,'3d'!V199,'3e (voluntary)'!V199))","v":":"},null,{"$f":"IF(COUNT('3a'!X199,'3b'!X199,'3c'!X199,'3d'!X199,'3e (voluntary)'!X199)=0,\":\",SUM('3a'!X199,'3b'!X199,'3c'!X199,'3d'!X199,'3e (voluntary)'!X199))","v":":"},null,{"$f":"IF(COUNT('3a'!Z199,'3b'!Z199,'3c'!Z199,'3d'!Z199,'3e (voluntary)'!Z199)=0,\":\",SUM('3a'!Z199,'3b'!Z199,'3c'!Z199,'3d'!Z199,'3e (voluntary)'!Z199))","v":":"},null,{"$f":"IF(COUNT('3a'!AB199,'3b'!AB199,'3c'!AB199,'3d'!AB199,'3e (voluntary)'!AB199)=0,\":\",SUM('3a'!AB199,'3b'!AB199,'3c'!AB199,'3d'!AB199,'3e (voluntary)'!AB199))","v":":"},null,{"$f":"IF(COUNT('3a'!AD199,'3b'!AD199,'3c'!AD199,'3d'!AD199,'3e (voluntary)'!AD199)=0,\":\",SUM('3a'!AD199,'3b'!AD199,'3c'!AD199,'3d'!AD199,'3e (voluntary)'!AD199))","v":":"},null,{"$f":"IF(COUNT('3a'!AF199,'3b'!AF199,'3c'!AF199,'3d'!AF199,'3e (voluntary)'!AF199)=0,\":\",SUM('3a'!AF199,'3b'!AF199,'3c'!AF199,'3d'!AF199,'3e (voluntary)'!AF199))","v":":"}]
["S11_S12","EP_BUS","EPS_P1_ANCESA",null,null,null,null,null,2027,{"$f":"IF(COUNT('3a'!J200,'3b'!J200,'3c'!J200,'3d'!J200,'3e (voluntary)'!J200)=0,\":\",SUM('3a'!J200,'3b'!J200,'3c'!J200,'3d'!J200,'3e (voluntary)'!J200))","v":":"},null,{"$f":"IF(COUNT('3a'!L200,'3b'!L200,'3c'!L200,'3d'!L200,'3e (voluntary)'!L200)=0,\":\",SUM('3a'!L200,'3b'!L200,'3c'!L200,'3d'!L200,'3e (voluntary)'!L200))","v":":"},null,{"$f":"IF(COUNT('3a'!N200,'3b'!N200,'3c'!N200,'3d'!N200,'3e (voluntary)'!N200)=0,\":\",SUM('3a'!N200,'3b'!N200,'3c'!N200,'3d'!N200,'3e (voluntary)'!N200))","v":":"},null,{"$f":"IF(COUNT('3a'!P200,'3b'!P200,'3c'!P200,'3d'!P200,'3e (voluntary)'!P200)=0,\":\",SUM('3a'!P200,'3b'!P200,'3c'!P200,'3d'!P200,'3e (voluntary)'!P200))","v":":"},null,{"$f":"IF(COUNT('3a'!R200,'3b'!R200,'3c'!R200,'3d'!R200,'3e (voluntary)'!R200)=0,\":\",SUM('3a'!R200,'3b'!R200,'3c'!R200,'3d'!R200,'3e (voluntary)'!R200))","v":":"},null,{"$f":"IF(COUNT('3a'!T200,'3b'!T200,'3c'!T200,'3d'!T200,'3e (voluntary)'!T200)=0,\":\",SUM('3a'!T200,'3b'!T200,'3c'!T200,'3d'!T200,'3e (voluntary)'!T200))","v":":"},null,{"$f":"IF(COUNT('3a'!V200,'3b'!V200,'3c'!V200,'3d'!V200,'3e (voluntary)'!V200)=0,\":\",SUM('3a'!V200,'3b'!V200,'3c'!V200,'3d'!V200,'3e (voluntary)'!V200))","v":":"},null,{"$f":"IF(COUNT('3a'!X200,'3b'!X200,'3c'!X200,'3d'!X200,'3e (voluntary)'!X200)=0,\":\",SUM('3a'!X200,'3b'!X200,'3c'!X200,'3d'!X200,'3e (voluntary)'!X200))","v":":"},null,{"$f":"IF(COUNT('3a'!Z200,'3b'!Z200,'3c'!Z200,'3d'!Z200,'3e (voluntary)'!Z200)=0,\":\",SUM('3a'!Z200,'3b'!Z200,'3c'!Z200,'3d'!Z200,'3e (voluntary)'!Z200))","v":":"},null,{"$f":"IF(COUNT('3a'!AB200,'3b'!AB200,'3c'!AB200,'3d'!AB200,'3e (voluntary)'!AB200)=0,\":\",SUM('3a'!AB200,'3b'!AB200,'3c'!AB200,'3d'!AB200,'3e (voluntary)'!AB200))","v":":"},null,{"$f":"IF(COUNT('3a'!AD200,'3b'!AD200,'3c'!AD200,'3d'!AD200,'3e (voluntary)'!AD200)=0,\":\",SUM('3a'!AD200,'3b'!AD200,'3c'!AD200,'3d'!AD200,'3e (voluntary)'!AD200))","v":":"},null,{"$f":"IF(COUNT('3a'!AF200,'3b'!AF200,'3c'!AF200,'3d'!AF200,'3e (voluntary)'!AF200)=0,\":\",SUM('3a'!AF200,'3b'!AF200,'3c'!AF200,'3d'!AF200,'3e (voluntary)'!AF200))","v":":"}]
["S11_S12","EP_BUS","EPS_P1_ANCESA",null,null,null,null,null,2028,{"$f":"IF(COUNT('3a'!J201,'3b'!J201,'3c'!J201,'3d'!J201,'3e (voluntary)'!J201)=0,\":\",SUM('3a'!J201,'3b'!J201,'3c'!J201,'3d'!J201,'3e (voluntary)'!J201))","v":":"},null,{"$f":"IF(COUNT('3a'!L201,'3b'!L201,'3c'!L201,'3d'!L201,'3e (voluntary)'!L201)=0,\":\",SUM('3a'!L201,'3b'!L201,'3c'!L201,'3d'!L201,'3e (voluntary)'!L201))","v":":"},null,{"$f":"IF(COUNT('3a'!N201,'3b'!N201,'3c'!N201,'3d'!N201,'3e (voluntary)'!N201)=0,\":\",SUM('3a'!N201,'3b'!N201,'3c'!N201,'3d'!N201,'3e (voluntary)'!N201))","v":":"},null,{"$f":"IF(COUNT('3a'!P201,'3b'!P201,'3c'!P201,'3d'!P201,'3e (voluntary)'!P201)=0,\":\",SUM('3a'!P201,'3b'!P201,'3c'!P201,'3d'!P201,'3e (voluntary)'!P201))","v":":"},null,{"$f":"IF(COUNT('3a'!R201,'3b'!R201,'3c'!R201,'3d'!R201,'3e (voluntary)'!R201)=0,\":\",SUM('3a'!R201,'3b'!R201,'3c'!R201,'3d'!R201,'3e (voluntary)'!R201))","v":":"},null,{"$f":"IF(COUNT('3a'!T201,'3b'!T201,'3c'!T201,'3d'!T201,'3e (voluntary)'!T201)=0,\":\",SUM('3a'!T201,'3b'!T201,'3c'!T201,'3d'!T201,'3e (voluntary)'!T201))","v":":"},null,{"$f":"IF(COUNT('3a'!V201,'3b'!V201,'3c'!V201,'3d'!V201,'3e (voluntary)'!V201)=0,\":\",SUM('3a'!V201,'3b'!V201,'3c'!V201,'3d'!V201,'3e (voluntary)'!V201))","v":":"},null,{"$f":"IF(COUNT('3a'!X201,'3b'!X201,'3c'!X201,'3d'!X201,'3e (voluntary)'!X201)=0,\":\",SUM('3a'!X201,'3b'!X201,'3c'!X201,'3d'!X201,'3e (voluntary)'!X201))","v":":"},null,{"$f":"IF(COUNT('3a'!Z201,'3b'!Z201,'3c'!Z201,'3d'!Z201,'3e (voluntary)'!Z201)=0,\":\",SUM('3a'!Z201,'3b'!Z201,'3c'!Z201,'3d'!Z201,'3e (voluntary)'!Z201))","v":":"},null,{"$f":"IF(COUNT('3a'!AB201,'3b'!AB201,'3c'!AB201,'3d'!AB201,'3e (voluntary)'!AB201)=0,\":\",SUM('3a'!AB201,'3b'!AB201,'3c'!AB201,'3d'!AB201,'3e (voluntary)'!AB201))","v":":"},null,{"$f":"IF(COUNT('3a'!AD201,'3b'!AD201,'3c'!AD201,'3d'!AD201,'3e (voluntary)'!AD201)=0,\":\",SUM('3a'!AD201,'3b'!AD201,'3c'!AD201,'3d'!AD201,'3e (voluntary)'!AD201))","v":":"},null,{"$f":"IF(COUNT('3a'!AF201,'3b'!AF201,'3c'!AF201,'3d'!AF201,'3e (voluntary)'!AF201)=0,\":\",SUM('3a'!AF201,'3b'!AF201,'3c'!AF201,'3d'!AF201,'3e (voluntary)'!AF201))","v":":"}]
["S11_S12","EP_BUS","EPS_P1_ANCESA",null,null,null,null,null,2029,{"$f":"IF(COUNT('3a'!J202,'3b'!J202,'3c'!J202,'3d'!J202,'3e (voluntary)'!J202)=0,\":\",SUM('3a'!J202,'3b'!J202,'3c'!J202,'3d'!J202,'3e (voluntary)'!J202))","v":":"},null,{"$f":"IF(COUNT('3a'!L202,'3b'!L202,'3c'!L202,'3d'!L202,'3e (voluntary)'!L202)=0,\":\",SUM('3a'!L202,'3b'!L202,'3c'!L202,'3d'!L202,'3e (voluntary)'!L202))","v":":"},null,{"$f":"IF(COUNT('3a'!N202,'3b'!N202,'3c'!N202,'3d'!N202,'3e (voluntary)'!N202)=0,\":\",SUM('3a'!N202,'3b'!N202,'3c'!N202,'3d'!N202,'3e (voluntary)'!N202))","v":":"},null,{"$f":"IF(COUNT('3a'!P202,'3b'!P202,'3c'!P202,'3d'!P202,'3e (voluntary)'!P202)=0,\":\",SUM('3a'!P202,'3b'!P202,'3c'!P202,'3d'!P202,'3e (voluntary)'!P202))","v":":"},null,{"$f":"IF(COUNT('3a'!R202,'3b'!R202,'3c'!R202,'3d'!R202,'3e (voluntary)'!R202)=0,\":\",SUM('3a'!R202,'3b'!R202,'3c'!R202,'3d'!R202,'3e (voluntary)'!R202))","v":":"},null,{"$f":"IF(COUNT('3a'!T202,'3b'!T202,'3c'!T202,'3d'!T202,'3e (voluntary)'!T202)=0,\":\",SUM('3a'!T202,'3b'!T202,'3c'!T202,'3d'!T202,'3e (voluntary)'!T202))","v":":"},null,{"$f":"IF(COUNT('3a'!V202,'3b'!V202,'3c'!V202,'3d'!V202,'3e (voluntary)'!V202)=0,\":\",SUM('3a'!V202,'3b'!V202,'3c'!V202,'3d'!V202,'3e (voluntary)'!V202))","v":":"},null,{"$f":"IF(COUNT('3a'!X202,'3b'!X202,'3c'!X202,'3d'!X202,'3e (voluntary)'!X202)=0,\":\",SUM('3a'!X202,'3b'!X202,'3c'!X202,'3d'!X202,'3e (voluntary)'!X202))","v":":"},null,{"$f":"IF(COUNT('3a'!Z202,'3b'!Z202,'3c'!Z202,'3d'!Z202,'3e (voluntary)'!Z202)=0,\":\",SUM('3a'!Z202,'3b'!Z202,'3c'!Z202,'3d'!Z202,'3e (voluntary)'!Z202))","v":":"},null,{"$f":"IF(COUNT('3a'!AB202,'3b'!AB202,'3c'!AB202,'3d'!AB202,'3e (voluntary)'!AB202)=0,\":\",SUM('3a'!AB202,'3b'!AB202,'3c'!AB202,'3d'!AB202,'3e (voluntary)'!AB202))","v":":"},null,{"$f":"IF(COUNT('3a'!AD202,'3b'!AD202,'3c'!AD202,'3d'!AD202,'3e (voluntary)'!AD202)=0,\":\",SUM('3a'!AD202,'3b'!AD202,'3c'!AD202,'3d'!AD202,'3e (voluntary)'!AD202))","v":":"},null,{"$f":"IF(COUNT('3a'!AF202,'3b'!AF202,'3c'!AF202,'3d'!AF202,'3e (voluntary)'!AF202)=0,\":\",SUM('3a'!AF202,'3b'!AF202,'3c'!AF202,'3d'!AF202,'3e (voluntary)'!AF202))","v":":"}]
["S11_S12","EP_BUS","EPS_P1_ANCESA",null,null,null,null,null,2030,{"$f":"IF(COUNT('3a'!J203,'3b'!J203,'3c'!J203,'3d'!J203,'3e (voluntary)'!J203)=0,\":\",SUM('3a'!J203,'3b'!J203,'3c'!J203,'3d'!J203,'3e (voluntary)'!J203))","v":":"},null,{"$f":"IF(COUNT('3a'!L203,'3b'!L203,'3c'!L203,'3d'!L203,'3e (voluntary)'!L203)=0,\":\",SUM('3a'!L203,'3b'!L203,'3c'!L203,'3d'!L203,'3e (voluntary)'!L203))","v":":"},null,{"$f":"IF(COUNT('3a'!N203,'3b'!N203,'3c'!N203,'3d'!N203,'3e (voluntary)'!N203)=0,\":\",SUM('3a'!N203,'3b'!N203,'3c'!N203,'3d'!N203,'3e (voluntary)'!N203))","v":":"},null,{"$f":"IF(COUNT('3a'!P203,'3b'!P203,'3c'!P203,'3d'!P203,'3e (voluntary)'!P203)=0,\":\",SUM('3a'!P203,'3b'!P203,'3c'!P203,'3d'!P203,'3e (voluntary)'!P203))","v":":"},null,{"$f":"IF(COUNT('3a'!R203,'3b'!R203,'3c'!R203,'3d'!R203,'3e (voluntary)'!R203)=0,\":\",SUM('3a'!R203,'3b'!R203,'3c'!R203,'3d'!R203,'3e (voluntary)'!R203))","v":":"},null,{"$f":"IF(COUNT('3a'!T203,'3b'!T203,'3c'!T203,'3d'!T203,'3e (voluntary)'!T203)=0,\":\",SUM('3a'!T203,'3b'!T203,'3c'!T203,'3d'!T203,'3e (voluntary)'!T203))","v":":"},null,{"$f":"IF(COUNT('3a'!V203,'3b'!V203,'3c'!V203,'3d'!V203,'3e (voluntary)'!V203)=0,\":\",SUM('3a'!V203,'3b'!V203,'3c'!V203,'3d'!V203,'3e (voluntary)'!V203))","v":":"},null,{"$f":"IF(COUNT('3a'!X203,'3b'!X203,'3c'!X203,'3d'!X203,'3e (voluntary)'!X203)=0,\":\",SUM('3a'!X203,'3b'!X203,'3c'!X203,'3d'!X203,'3e (voluntary)'!X203))","v":":"},null,{"$f":"IF(COUNT('3a'!Z203,'3b'!Z203,'3c'!Z203,'3d'!Z203,'3e (voluntary)'!Z203)=0,\":\",SUM('3a'!Z203,'3b'!Z203,'3c'!Z203,'3d'!Z203,'3e (voluntary)'!Z203))","v":":"},null,{"$f":"IF(COUNT('3a'!AB203,'3b'!AB203,'3c'!AB203,'3d'!AB203,'3e (voluntary)'!AB203)=0,\":\",SUM('3a'!AB203,'3b'!AB203,'3c'!AB203,'3d'!AB203,'3e (voluntary)'!AB203))","v":":"},null,{"$f":"IF(COUNT('3a'!AD203,'3b'!AD203,'3c'!AD203,'3d'!AD203,'3e (voluntary)'!AD203)=0,\":\",SUM('3a'!AD203,'3b'!AD203,'3c'!AD203,'3d'!AD203,'3e (voluntary)'!AD203))","v":":"},null,{"$f":"IF(COUNT('3a'!AF203,'3b'!AF203,'3c'!AF203,'3d'!AF203,'3e (voluntary)'!AF203)=0,\":\",SUM('3a'!AF203,'3b'!AF203,'3c'!AF203,'3d'!AF203,'3e (voluntary)'!AF203))","v":":"}]
["S11_S12","EP_BUS","EPS_P1_ANCESA",null,null,null,null,null,2031,{"$f":"IF(COUNT('3a'!J204,'3b'!J204,'3c'!J204,'3d'!J204,'3e (voluntary)'!J204)=0,\":\",SUM('3a'!J204,'3b'!J204,'3c'!J204,'3d'!J204,'3e (voluntary)'!J204))","v":":"},null,{"$f":"IF(COUNT('3a'!L204,'3b'!L204,'3c'!L204,'3d'!L204,'3e (voluntary)'!L204)=0,\":\",SUM('3a'!L204,'3b'!L204,'3c'!L204,'3d'!L204,'3e (voluntary)'!L204))","v":":"},null,{"$f":"IF(COUNT('3a'!N204,'3b'!N204,'3c'!N204,'3d'!N204,'3e (voluntary)'!N204)=0,\":\",SUM('3a'!N204,'3b'!N204,'3c'!N204,'3d'!N204,'3e (voluntary)'!N204))","v":":"},null,{"$f":"IF(COUNT('3a'!P204,'3b'!P204,'3c'!P204,'3d'!P204,'3e (voluntary)'!P204)=0,\":\",SUM('3a'!P204,'3b'!P204,'3c'!P204,'3d'!P204,'3e (voluntary)'!P204))","v":":"},null,{"$f":"IF(COUNT('3a'!R204,'3b'!R204,'3c'!R204,'3d'!R204,'3e (voluntary)'!R204)=0,\":\",SUM('3a'!R204,'3b'!R204,'3c'!R204,'3d'!R204,'3e (voluntary)'!R204))","v":":"},null,{"$f":"IF(COUNT('3a'!T204,'3b'!T204,'3c'!T204,'3d'!T204,'3e (voluntary)'!T204)=0,\":\",SUM('3a'!T204,'3b'!T204,'3c'!T204,'3d'!T204,'3e (voluntary)'!T204))","v":":"},null,{"$f":"IF(COUNT('3a'!V204,'3b'!V204,'3c'!V204,'3d'!V204,'3e (voluntary)'!V204)=0,\":\",SUM('3a'!V204,'3b'!V204,'3c'!V204,'3d'!V204,'3e (voluntary)'!V204))","v":":"},null,{"$f":"IF(COUNT('3a'!X204,'3b'!X204,'3c'!X204,'3d'!X204,'3e (voluntary)'!X204)=0,\":\",SUM('3a'!X204,'3b'!X204,'3c'!X204,'3d'!X204,'3e (voluntary)'!X204))","v":":"},null,{"$f":"IF(COUNT('3a'!Z204,'3b'!Z204,'3c'!Z204,'3d'!Z204,'3e (voluntary)'!Z204)=0,\":\",SUM('3a'!Z204,'3b'!Z204,'3c'!Z204,'3d'!Z204,'3e (voluntary)'!Z204))","v":":"},null,{"$f":"IF(COUNT('3a'!AB204,'3b'!AB204,'3c'!AB204,'3d'!AB204,'3e (voluntary)'!AB204)=0,\":\",SUM('3a'!AB204,'3b'!AB204,'3c'!AB204,'3d'!AB204,'3e (voluntary)'!AB204))","v":":"},null,{"$f":"IF(COUNT('3a'!AD204,'3b'!AD204,'3c'!AD204,'3d'!AD204,'3e (voluntary)'!AD204)=0,\":\",SUM('3a'!AD204,'3b'!AD204,'3c'!AD204,'3d'!AD204,'3e (voluntary)'!AD204))","v":":"},null,{"$f":"IF(COUNT('3a'!AF204,'3b'!AF204,'3c'!AF204,'3d'!AF204,'3e (voluntary)'!AF204)=0,\":\",SUM('3a'!AF204,'3b'!AF204,'3c'!AF204,'3d'!AF204,'3e (voluntary)'!AF204))","v":":"}]
["S11_S12","EP_BUS","EPS_REC_BYPR",null,"   ( RNO.3 ) Related non-EP output",null,null,null,2014,{"$f":"IF(COUNT('3a'!J205,'3b'!J205,'3c'!J205,'3d'!J205,'3e (voluntary)'!J205)=0,\":\",SUM('3a'!J205,'3b'!J205,'3c'!J205,'3d'!J205,'3e (voluntary)'!J205))","v":":"},null,{"$f":"IF(COUNT('3a'!L205,'3b'!L205,'3c'!L205,'3d'!L205,'3e (voluntary)'!L205)=0,\":\",SUM('3a'!L205,'3b'!L205,'3c'!L205,'3d'!L205,'3e (voluntary)'!L205))","v":":"},null,{"$f":"IF(COUNT('3a'!N205,'3b'!N205,'3c'!N205,'3d'!N205,'3e (voluntary)'!N205)=0,\":\",SUM('3a'!N205,'3b'!N205,'3c'!N205,'3d'!N205,'3e (voluntary)'!N205))","v":":"},null,{"$f":"IF(COUNT('3a'!P205,'3b'!P205,'3c'!P205,'3d'!P205,'3e (voluntary)'!P205)=0,\":\",SUM('3a'!P205,'3b'!P205,'3c'!P205,'3d'!P205,'3e (voluntary)'!P205))","v":":"},null,{"$f":"IF(COUNT('3a'!R205,'3b'!R205,'3c'!R205,'3d'!R205,'3e (voluntary)'!R205)=0,\":\",SUM('3a'!R205,'3b'!R205,'3c'!R205,'3d'!R205,'3e (voluntary)'!R205))","v":":"},null,{"$f":"IF(COUNT('3a'!T205,'3b'!T205,'3c'!T205,'3d'!T205,'3e (voluntary)'!T205)=0,\":\",SUM('3a'!T205,'3b'!T205,'3c'!T205,'3d'!T205,'3e (voluntary)'!T205))","v":":"},null,{"$f":"IF(COUNT('3a'!V205,'3b'!V205,'3c'!V205,'3d'!V205,'3e (voluntary)'!V205)=0,\":\",SUM('3a'!V205,'3b'!V205,'3c'!V205,'3d'!V205,'3e (voluntary)'!V205))","v":":"},null,{"$f":"IF(COUNT('3a'!X205,'3b'!X205,'3c'!X205,'3d'!X205,'3e (voluntary)'!X205)=0,\":\",SUM('3a'!X205,'3b'!X205,'3c'!X205,'3d'!X205,'3e (voluntary)'!X205))","v":":"},null,{"$f":"IF(COUNT('3a'!Z205,'3b'!Z205,'3c'!Z205,'3d'!Z205,'3e (voluntary)'!Z205)=0,\":\",SUM('3a'!Z205,'3b'!Z205,'3c'!Z205,'3d'!Z205,'3e (voluntary)'!Z205))","v":":"},null,{"$f":"IF(COUNT('3a'!AB205,'3b'!AB205,'3c'!AB205,'3d'!AB205,'3e (voluntary)'!AB205)=0,\":\",SUM('3a'!AB205,'3b'!AB205,'3c'!AB205,'3d'!AB205,'3e (voluntary)'!AB205))","v":":"},null,{"$f":"IF(COUNT('3a'!AD205,'3b'!AD205,'3c'!AD205,'3d'!AD205,'3e (voluntary)'!AD205)=0,\":\",SUM('3a'!AD205,'3b'!AD205,'3c'!AD205,'3d'!AD205,'3e (voluntary)'!AD205))","v":":"},null,{"$f":"IF(COUNT('3a'!AF205,'3b'!AF205,'3c'!AF205,'3d'!AF205,'3e (voluntary)'!AF205)=0,\":\",SUM('3a'!AF205,'3b'!AF205,'3c'!AF205,'3d'!AF205,'3e (voluntary)'!AF205))","v":":"}]
["S11_S12","EP_BUS","EPS_REC_BYPR",null,null,null,null,null,2015,{"$f":"IF(COUNT('3a'!J206,'3b'!J206,'3c'!J206,'3d'!J206,'3e (voluntary)'!J206)=0,\":\",SUM('3a'!J206,'3b'!J206,'3c'!J206,'3d'!J206,'3e (voluntary)'!J206))","v":":"},null,{"$f":"IF(COUNT('3a'!L206,'3b'!L206,'3c'!L206,'3d'!L206,'3e (voluntary)'!L206)=0,\":\",SUM('3a'!L206,'3b'!L206,'3c'!L206,'3d'!L206,'3e (voluntary)'!L206))","v":":"},null,{"$f":"IF(COUNT('3a'!N206,'3b'!N206,'3c'!N206,'3d'!N206,'3e (voluntary)'!N206)=0,\":\",SUM('3a'!N206,'3b'!N206,'3c'!N206,'3d'!N206,'3e (voluntary)'!N206))","v":":"},null,{"$f":"IF(COUNT('3a'!P206,'3b'!P206,'3c'!P206,'3d'!P206,'3e (voluntary)'!P206)=0,\":\",SUM('3a'!P206,'3b'!P206,'3c'!P206,'3d'!P206,'3e (voluntary)'!P206))","v":":"},null,{"$f":"IF(COUNT('3a'!R206,'3b'!R206,'3c'!R206,'3d'!R206,'3e (voluntary)'!R206)=0,\":\",SUM('3a'!R206,'3b'!R206,'3c'!R206,'3d'!R206,'3e (voluntary)'!R206))","v":":"},null,{"$f":"IF(COUNT('3a'!T206,'3b'!T206,'3c'!T206,'3d'!T206,'3e (voluntary)'!T206)=0,\":\",SUM('3a'!T206,'3b'!T206,'3c'!T206,'3d'!T206,'3e (voluntary)'!T206))","v":":"},null,{"$f":"IF(COUNT('3a'!V206,'3b'!V206,'3c'!V206,'3d'!V206,'3e (voluntary)'!V206)=0,\":\",SUM('3a'!V206,'3b'!V206,'3c'!V206,'3d'!V206,'3e (voluntary)'!V206))","v":":"},null,{"$f":"IF(COUNT('3a'!X206,'3b'!X206,'3c'!X206,'3d'!X206,'3e (voluntary)'!X206)=0,\":\",SUM('3a'!X206,'3b'!X206,'3c'!X206,'3d'!X206,'3e (voluntary)'!X206))","v":":"},null,{"$f":"IF(COUNT('3a'!Z206,'3b'!Z206,'3c'!Z206,'3d'!Z206,'3e (voluntary)'!Z206)=0,\":\",SUM('3a'!Z206,'3b'!Z206,'3c'!Z206,'3d'!Z206,'3e (voluntary)'!Z206))","v":":"},null,{"$f":"IF(COUNT('3a'!AB206,'3b'!AB206,'3c'!AB206,'3d'!AB206,'3e (voluntary)'!AB206)=0,\":\",SUM('3a'!AB206,'3b'!AB206,'3c'!AB206,'3d'!AB206,'3e (voluntary)'!AB206))","v":":"},null,{"$f":"IF(COUNT('3a'!AD206,'3b'!AD206,'3c'!AD206,'3d'!AD206,'3e (voluntary)'!AD206)=0,\":\",SUM('3a'!AD206,'3b'!AD206,'3c'!AD206,'3d'!AD206,'3e (voluntary)'!AD206))","v":":"},null,{"$f":"IF(COUNT('3a'!AF206,'3b'!AF206,'3c'!AF206,'3d'!AF206,'3e (voluntary)'!AF206)=0,\":\",SUM('3a'!AF206,'3b'!AF206,'3c'!AF206,'3d'!AF206,'3e (voluntary)'!AF206))","v":":"}]
["S11_S12","EP_BUS","EPS_REC_BYPR",null,null,null,null,null,2016,{"$f":"IF(COUNT('3a'!J207,'3b'!J207,'3c'!J207,'3d'!J207,'3e (voluntary)'!J207)=0,\":\",SUM('3a'!J207,'3b'!J207,'3c'!J207,'3d'!J207,'3e (voluntary)'!J207))","v":":"},null,{"$f":"IF(COUNT('3a'!L207,'3b'!L207,'3c'!L207,'3d'!L207,'3e (voluntary)'!L207)=0,\":\",SUM('3a'!L207,'3b'!L207,'3c'!L207,'3d'!L207,'3e (voluntary)'!L207))","v":":"},null,{"$f":"IF(COUNT('3a'!N207,'3b'!N207,'3c'!N207,'3d'!N207,'3e (voluntary)'!N207)=0,\":\",SUM('3a'!N207,'3b'!N207,'3c'!N207,'3d'!N207,'3e (voluntary)'!N207))","v":":"},null,{"$f":"IF(COUNT('3a'!P207,'3b'!P207,'3c'!P207,'3d'!P207,'3e (voluntary)'!P207)=0,\":\",SUM('3a'!P207,'3b'!P207,'3c'!P207,'3d'!P207,'3e (voluntary)'!P207))","v":":"},null,{"$f":"IF(COUNT('3a'!R207,'3b'!R207,'3c'!R207,'3d'!R207,'3e (voluntary)'!R207)=0,\":\",SUM('3a'!R207,'3b'!R207,'3c'!R207,'3d'!R207,'3e (voluntary)'!R207))","v":":"},null,{"$f":"IF(COUNT('3a'!T207,'3b'!T207,'3c'!T207,'3d'!T207,'3e (voluntary)'!T207)=0,\":\",SUM('3a'!T207,'3b'!T207,'3c'!T207,'3d'!T207,'3e (voluntary)'!T207))","v":":"},null,{"$f":"IF(COUNT('3a'!V207,'3b'!V207,'3c'!V207,'3d'!V207,'3e (voluntary)'!V207)=0,\":\",SUM('3a'!V207,'3b'!V207,'3c'!V207,'3d'!V207,'3e (voluntary)'!V207))","v":":"},null,{"$f":"IF(COUNT('3a'!X207,'3b'!X207,'3c'!X207,'3d'!X207,'3e (voluntary)'!X207)=0,\":\",SUM('3a'!X207,'3b'!X207,'3c'!X207,'3d'!X207,'3e (voluntary)'!X207))","v":":"},null,{"$f":"IF(COUNT('3a'!Z207,'3b'!Z207,'3c'!Z207,'3d'!Z207,'3e (voluntary)'!Z207)=0,\":\",SUM('3a'!Z207,'3b'!Z207,'3c'!Z207,'3d'!Z207,'3e (voluntary)'!Z207))","v":":"},null,{"$f":"IF(COUNT('3a'!AB207,'3b'!AB207,'3c'!AB207,'3d'!AB207,'3e (voluntary)'!AB207)=0,\":\",SUM('3a'!AB207,'3b'!AB207,'3c'!AB207,'3d'!AB207,'3e (voluntary)'!AB207))","v":":"},null,{"$f":"IF(COUNT('3a'!AD207,'3b'!AD207,'3c'!AD207,'3d'!AD207,'3e (voluntary)'!AD207)=0,\":\",SUM('3a'!AD207,'3b'!AD207,'3c'!AD207,'3d'!AD207,'3e (voluntary)'!AD207))","v":":"},null,{"$f":"IF(COUNT('3a'!AF207,'3b'!AF207,'3c'!AF207,'3d'!AF207,'3e (voluntary)'!AF207)=0,\":\",SUM('3a'!AF207,'3b'!AF207,'3c'!AF207,'3d'!AF207,'3e (voluntary)'!AF207))","v":":"}]
["S11_S12","EP_BUS","EPS_REC_BYPR",null,null,null,null,null,2017,{"$f":"IF(COUNT('3a'!J208,'3b'!J208,'3c'!J208,'3d'!J208,'3e (voluntary)'!J208)=0,\":\",SUM('3a'!J208,'3b'!J208,'3c'!J208,'3d'!J208,'3e (voluntary)'!J208))","v":":"},null,{"$f":"IF(COUNT('3a'!L208,'3b'!L208,'3c'!L208,'3d'!L208,'3e (voluntary)'!L208)=0,\":\",SUM('3a'!L208,'3b'!L208,'3c'!L208,'3d'!L208,'3e (voluntary)'!L208))","v":":"},null,{"$f":"IF(COUNT('3a'!N208,'3b'!N208,'3c'!N208,'3d'!N208,'3e (voluntary)'!N208)=0,\":\",SUM('3a'!N208,'3b'!N208,'3c'!N208,'3d'!N208,'3e (voluntary)'!N208))","v":":"},null,{"$f":"IF(COUNT('3a'!P208,'3b'!P208,'3c'!P208,'3d'!P208,'3e (voluntary)'!P208)=0,\":\",SUM('3a'!P208,'3b'!P208,'3c'!P208,'3d'!P208,'3e (voluntary)'!P208))","v":":"},null,{"$f":"IF(COUNT('3a'!R208,'3b'!R208,'3c'!R208,'3d'!R208,'3e (voluntary)'!R208)=0,\":\",SUM('3a'!R208,'3b'!R208,'3c'!R208,'3d'!R208,'3e (voluntary)'!R208))","v":":"},null,{"$f":"IF(COUNT('3a'!T208,'3b'!T208,'3c'!T208,'3d'!T208,'3e (voluntary)'!T208)=0,\":\",SUM('3a'!T208,'3b'!T208,'3c'!T208,'3d'!T208,'3e (voluntary)'!T208))","v":":"},null,{"$f":"IF(COUNT('3a'!V208,'3b'!V208,'3c'!V208,'3d'!V208,'3e (voluntary)'!V208)=0,\":\",SUM('3a'!V208,'3b'!V208,'3c'!V208,'3d'!V208,'3e (voluntary)'!V208))","v":":"},null,{"$f":"IF(COUNT('3a'!X208,'3b'!X208,'3c'!X208,'3d'!X208,'3e (voluntary)'!X208)=0,\":\",SUM('3a'!X208,'3b'!X208,'3c'!X208,'3d'!X208,'3e (voluntary)'!X208))","v":":"},null,{"$f":"IF(COUNT('3a'!Z208,'3b'!Z208,'3c'!Z208,'3d'!Z208,'3e (voluntary)'!Z208)=0,\":\",SUM('3a'!Z208,'3b'!Z208,'3c'!Z208,'3d'!Z208,'3e (voluntary)'!Z208))","v":":"},null,{"$f":"IF(COUNT('3a'!AB208,'3b'!AB208,'3c'!AB208,'3d'!AB208,'3e (voluntary)'!AB208)=0,\":\",SUM('3a'!AB208,'3b'!AB208,'3c'!AB208,'3d'!AB208,'3e (voluntary)'!AB208))","v":":"},null,{"$f":"IF(COUNT('3a'!AD208,'3b'!AD208,'3c'!AD208,'3d'!AD208,'3e (voluntary)'!AD208)=0,\":\",SUM('3a'!AD208,'3b'!AD208,'3c'!AD208,'3d'!AD208,'3e (voluntary)'!AD208))","v":":"},null,{"$f":"IF(COUNT('3a'!AF208,'3b'!AF208,'3c'!AF208,'3d'!AF208,'3e (voluntary)'!AF208)=0,\":\",SUM('3a'!AF208,'3b'!AF208,'3c'!AF208,'3d'!AF208,'3e (voluntary)'!AF208))","v":":"}]
["S11_S12","EP_BUS","EPS_REC_BYPR",null,null,null,null,null,2018,{"$f":"IF(COUNT('3a'!J209,'3b'!J209,'3c'!J209,'3d'!J209,'3e (voluntary)'!J209)=0,\":\",SUM('3a'!J209,'3b'!J209,'3c'!J209,'3d'!J209,'3e (voluntary)'!J209))","v":":"},null,{"$f":"IF(COUNT('3a'!L209,'3b'!L209,'3c'!L209,'3d'!L209,'3e (voluntary)'!L209)=0,\":\",SUM('3a'!L209,'3b'!L209,'3c'!L209,'3d'!L209,'3e (voluntary)'!L209))","v":":"},null,{"$f":"IF(COUNT('3a'!N209,'3b'!N209,'3c'!N209,'3d'!N209,'3e (voluntary)'!N209)=0,\":\",SUM('3a'!N209,'3b'!N209,'3c'!N209,'3d'!N209,'3e (voluntary)'!N209))","v":":"},null,{"$f":"IF(COUNT('3a'!P209,'3b'!P209,'3c'!P209,'3d'!P209,'3e (voluntary)'!P209)=0,\":\",SUM('3a'!P209,'3b'!P209,'3c'!P209,'3d'!P209,'3e (voluntary)'!P209))","v":":"},null,{"$f":"IF(COUNT('3a'!R209,'3b'!R209,'3c'!R209,'3d'!R209,'3e (voluntary)'!R209)=0,\":\",SUM('3a'!R209,'3b'!R209,'3c'!R209,'3d'!R209,'3e (voluntary)'!R209))","v":":"},null,{"$f":"IF(COUNT('3a'!T209,'3b'!T209,'3c'!T209,'3d'!T209,'3e (voluntary)'!T209)=0,\":\",SUM('3a'!T209,'3b'!T209,'3c'!T209,'3d'!T209,'3e (voluntary)'!T209))","v":":"},null,{"$f":"IF(COUNT('3a'!V209,'3b'!V209,'3c'!V209,'3d'!V209,'3e (voluntary)'!V209)=0,\":\",SUM('3a'!V209,'3b'!V209,'3c'!V209,'3d'!V209,'3e (voluntary)'!V209))","v":":"},null,{"$f":"IF(COUNT('3a'!X209,'3b'!X209,'3c'!X209,'3d'!X209,'3e (voluntary)'!X209)=0,\":\",SUM('3a'!X209,'3b'!X209,'3c'!X209,'3d'!X209,'3e (voluntary)'!X209))","v":":"},null,{"$f":"IF(COUNT('3a'!Z209,'3b'!Z209,'3c'!Z209,'3d'!Z209,'3e (voluntary)'!Z209)=0,\":\",SUM('3a'!Z209,'3b'!Z209,'3c'!Z209,'3d'!Z209,'3e (voluntary)'!Z209))","v":":"},null,{"$f":"IF(COUNT('3a'!AB209,'3b'!AB209,'3c'!AB209,'3d'!AB209,'3e (voluntary)'!AB209)=0,\":\",SUM('3a'!AB209,'3b'!AB209,'3c'!AB209,'3d'!AB209,'3e (voluntary)'!AB209))","v":":"},null,{"$f":"IF(COUNT('3a'!AD209,'3b'!AD209,'3c'!AD209,'3d'!AD209,'3e (voluntary)'!AD209)=0,\":\",SUM('3a'!AD209,'3b'!AD209,'3c'!AD209,'3d'!AD209,'3e (voluntary)'!AD209))","v":":"},null,{"$f":"IF(COUNT('3a'!AF209,'3b'!AF209,'3c'!AF209,'3d'!AF209,'3e (voluntary)'!AF209)=0,\":\",SUM('3a'!AF209,'3b'!AF209,'3c'!AF209,'3d'!AF209,'3e (voluntary)'!AF209))","v":":"}]
["S11_S12","EP_BUS","EPS_REC_BYPR",null,null,null,null,null,2019,{"$f":"IF(COUNT('3a'!J210,'3b'!J210,'3c'!J210,'3d'!J210,'3e (voluntary)'!J210)=0,\":\",SUM('3a'!J210,'3b'!J210,'3c'!J210,'3d'!J210,'3e (voluntary)'!J210))","v":":"},null,{"$f":"IF(COUNT('3a'!L210,'3b'!L210,'3c'!L210,'3d'!L210,'3e (voluntary)'!L210)=0,\":\",SUM('3a'!L210,'3b'!L210,'3c'!L210,'3d'!L210,'3e (voluntary)'!L210))","v":":"},null,{"$f":"IF(COUNT('3a'!N210,'3b'!N210,'3c'!N210,'3d'!N210,'3e (voluntary)'!N210)=0,\":\",SUM('3a'!N210,'3b'!N210,'3c'!N210,'3d'!N210,'3e (voluntary)'!N210))","v":":"},null,{"$f":"IF(COUNT('3a'!P210,'3b'!P210,'3c'!P210,'3d'!P210,'3e (voluntary)'!P210)=0,\":\",SUM('3a'!P210,'3b'!P210,'3c'!P210,'3d'!P210,'3e (voluntary)'!P210))","v":":"},null,{"$f":"IF(COUNT('3a'!R210,'3b'!R210,'3c'!R210,'3d'!R210,'3e (voluntary)'!R210)=0,\":\",SUM('3a'!R210,'3b'!R210,'3c'!R210,'3d'!R210,'3e (voluntary)'!R210))","v":":"},null,{"$f":"IF(COUNT('3a'!T210,'3b'!T210,'3c'!T210,'3d'!T210,'3e (voluntary)'!T210)=0,\":\",SUM('3a'!T210,'3b'!T210,'3c'!T210,'3d'!T210,'3e (voluntary)'!T210))","v":":"},null,{"$f":"IF(COUNT('3a'!V210,'3b'!V210,'3c'!V210,'3d'!V210,'3e (voluntary)'!V210)=0,\":\",SUM('3a'!V210,'3b'!V210,'3c'!V210,'3d'!V210,'3e (voluntary)'!V210))","v":":"},null,{"$f":"IF(COUNT('3a'!X210,'3b'!X210,'3c'!X210,'3d'!X210,'3e (voluntary)'!X210)=0,\":\",SUM('3a'!X210,'3b'!X210,'3c'!X210,'3d'!X210,'3e (voluntary)'!X210))","v":":"},null,{"$f":"IF(COUNT('3a'!Z210,'3b'!Z210,'3c'!Z210,'3d'!Z210,'3e (voluntary)'!Z210)=0,\":\",SUM('3a'!Z210,'3b'!Z210,'3c'!Z210,'3d'!Z210,'3e (voluntary)'!Z210))","v":":"},null,{"$f":"IF(COUNT('3a'!AB210,'3b'!AB210,'3c'!AB210,'3d'!AB210,'3e (voluntary)'!AB210)=0,\":\",SUM('3a'!AB210,'3b'!AB210,'3c'!AB210,'3d'!AB210,'3e (voluntary)'!AB210))","v":":"},null,{"$f":"IF(COUNT('3a'!AD210,'3b'!AD210,'3c'!AD210,'3d'!AD210,'3e (voluntary)'!AD210)=0,\":\",SUM('3a'!AD210,'3b'!AD210,'3c'!AD210,'3d'!AD210,'3e (voluntary)'!AD210))","v":":"},null,{"$f":"IF(COUNT('3a'!AF210,'3b'!AF210,'3c'!AF210,'3d'!AF210,'3e (voluntary)'!AF210)=0,\":\",SUM('3a'!AF210,'3b'!AF210,'3c'!AF210,'3d'!AF210,'3e (voluntary)'!AF210))","v":":"}]
["S11_S12","EP_BUS","EPS_REC_BYPR",null,null,null,null,null,2020,{"$f":"IF(COUNT('3a'!J211,'3b'!J211,'3c'!J211,'3d'!J211,'3e (voluntary)'!J211)=0,\":\",SUM('3a'!J211,'3b'!J211,'3c'!J211,'3d'!J211,'3e (voluntary)'!J211))","v":":"},null,{"$f":"IF(COUNT('3a'!L211,'3b'!L211,'3c'!L211,'3d'!L211,'3e (voluntary)'!L211)=0,\":\",SUM('3a'!L211,'3b'!L211,'3c'!L211,'3d'!L211,'3e (voluntary)'!L211))","v":":"},null,{"$f":"IF(COUNT('3a'!N211,'3b'!N211,'3c'!N211,'3d'!N211,'3e (voluntary)'!N211)=0,\":\",SUM('3a'!N211,'3b'!N211,'3c'!N211,'3d'!N211,'3e (voluntary)'!N211))","v":":"},null,{"$f":"IF(COUNT('3a'!P211,'3b'!P211,'3c'!P211,'3d'!P211,'3e (voluntary)'!P211)=0,\":\",SUM('3a'!P211,'3b'!P211,'3c'!P211,'3d'!P211,'3e (voluntary)'!P211))","v":":"},null,{"$f":"IF(COUNT('3a'!R211,'3b'!R211,'3c'!R211,'3d'!R211,'3e (voluntary)'!R211)=0,\":\",SUM('3a'!R211,'3b'!R211,'3c'!R211,'3d'!R211,'3e (voluntary)'!R211))","v":":"},null,{"$f":"IF(COUNT('3a'!T211,'3b'!T211,'3c'!T211,'3d'!T211,'3e (voluntary)'!T211)=0,\":\",SUM('3a'!T211,'3b'!T211,'3c'!T211,'3d'!T211,'3e (voluntary)'!T211))","v":":"},null,{"$f":"IF(COUNT('3a'!V211,'3b'!V211,'3c'!V211,'3d'!V211,'3e (voluntary)'!V211)=0,\":\",SUM('3a'!V211,'3b'!V211,'3c'!V211,'3d'!V211,'3e (voluntary)'!V211))","v":":"},null,{"$f":"IF(COUNT('3a'!X211,'3b'!X211,'3c'!X211,'3d'!X211,'3e (voluntary)'!X211)=0,\":\",SUM('3a'!X211,'3b'!X211,'3c'!X211,'3d'!X211,'3e (voluntary)'!X211))","v":":"},null,{"$f":"IF(COUNT('3a'!Z211,'3b'!Z211,'3c'!Z211,'3d'!Z211,'3e (voluntary)'!Z211)=0,\":\",SUM('3a'!Z211,'3b'!Z211,'3c'!Z211,'3d'!Z211,'3e (voluntary)'!Z211))","v":":"},null,{"$f":"IF(COUNT('3a'!AB211,'3b'!AB211,'3c'!AB211,'3d'!AB211,'3e (voluntary)'!AB211)=0,\":\",SUM('3a'!AB211,'3b'!AB211,'3c'!AB211,'3d'!AB211,'3e (voluntary)'!AB211))","v":":"},null,{"$f":"IF(COUNT('3a'!AD211,'3b'!AD211,'3c'!AD211,'3d'!AD211,'3e (voluntary)'!AD211)=0,\":\",SUM('3a'!AD211,'3b'!AD211,'3c'!AD211,'3d'!AD211,'3e (voluntary)'!AD211))","v":":"},null,{"$f":"IF(COUNT('3a'!AF211,'3b'!AF211,'3c'!AF211,'3d'!AF211,'3e (voluntary)'!AF211)=0,\":\",SUM('3a'!AF211,'3b'!AF211,'3c'!AF211,'3d'!AF211,'3e (voluntary)'!AF211))","v":":"}]
["S11_S12","EP_BUS","EPS_REC_BYPR",null,null,null,null,null,2021,{"$f":"IF(COUNT('3a'!J212,'3b'!J212,'3c'!J212,'3d'!J212,'3e (voluntary)'!J212)=0,\":\",SUM('3a'!J212,'3b'!J212,'3c'!J212,'3d'!J212,'3e (voluntary)'!J212))","v":":"},null,{"$f":"IF(COUNT('3a'!L212,'3b'!L212,'3c'!L212,'3d'!L212,'3e (voluntary)'!L212)=0,\":\",SUM('3a'!L212,'3b'!L212,'3c'!L212,'3d'!L212,'3e (voluntary)'!L212))","v":":"},null,{"$f":"IF(COUNT('3a'!N212,'3b'!N212,'3c'!N212,'3d'!N212,'3e (voluntary)'!N212)=0,\":\",SUM('3a'!N212,'3b'!N212,'3c'!N212,'3d'!N212,'3e (voluntary)'!N212))","v":":"},null,{"$f":"IF(COUNT('3a'!P212,'3b'!P212,'3c'!P212,'3d'!P212,'3e (voluntary)'!P212)=0,\":\",SUM('3a'!P212,'3b'!P212,'3c'!P212,'3d'!P212,'3e (voluntary)'!P212))","v":":"},null,{"$f":"IF(COUNT('3a'!R212,'3b'!R212,'3c'!R212,'3d'!R212,'3e (voluntary)'!R212)=0,\":\",SUM('3a'!R212,'3b'!R212,'3c'!R212,'3d'!R212,'3e (voluntary)'!R212))","v":":"},null,{"$f":"IF(COUNT('3a'!T212,'3b'!T212,'3c'!T212,'3d'!T212,'3e (voluntary)'!T212)=0,\":\",SUM('3a'!T212,'3b'!T212,'3c'!T212,'3d'!T212,'3e (voluntary)'!T212))","v":":"},null,{"$f":"IF(COUNT('3a'!V212,'3b'!V212,'3c'!V212,'3d'!V212,'3e (voluntary)'!V212)=0,\":\",SUM('3a'!V212,'3b'!V212,'3c'!V212,'3d'!V212,'3e (voluntary)'!V212))","v":":"},null,{"$f":"IF(COUNT('3a'!X212,'3b'!X212,'3c'!X212,'3d'!X212,'3e (voluntary)'!X212)=0,\":\",SUM('3a'!X212,'3b'!X212,'3c'!X212,'3d'!X212,'3e (voluntary)'!X212))","v":":"},null,{"$f":"IF(COUNT('3a'!Z212,'3b'!Z212,'3c'!Z212,'3d'!Z212,'3e (voluntary)'!Z212)=0,\":\",SUM('3a'!Z212,'3b'!Z212,'3c'!Z212,'3d'!Z212,'3e (voluntary)'!Z212))","v":":"},null,{"$f":"IF(COUNT('3a'!AB212,'3b'!AB212,'3c'!AB212,'3d'!AB212,'3e (voluntary)'!AB212)=0,\":\",SUM('3a'!AB212,'3b'!AB212,'3c'!AB212,'3d'!AB212,'3e (voluntary)'!AB212))","v":":"},null,{"$f":"IF(COUNT('3a'!AD212,'3b'!AD212,'3c'!AD212,'3d'!AD212,'3e (voluntary)'!AD212)=0,\":\",SUM('3a'!AD212,'3b'!AD212,'3c'!AD212,'3d'!AD212,'3e (voluntary)'!AD212))","v":":"},null,{"$f":"IF(COUNT('3a'!AF212,'3b'!AF212,'3c'!AF212,'3d'!AF212,'3e (voluntary)'!AF212)=0,\":\",SUM('3a'!AF212,'3b'!AF212,'3c'!AF212,'3d'!AF212,'3e (voluntary)'!AF212))","v":":"}]
["S11_S12","EP_BUS","EPS_REC_BYPR",null,null,null,null,null,2022,{"$f":"IF(COUNT('3a'!J213,'3b'!J213,'3c'!J213,'3d'!J213,'3e (voluntary)'!J213)=0,\":\",SUM('3a'!J213,'3b'!J213,'3c'!J213,'3d'!J213,'3e (voluntary)'!J213))","v":":"},null,{"$f":"IF(COUNT('3a'!L213,'3b'!L213,'3c'!L213,'3d'!L213,'3e (voluntary)'!L213)=0,\":\",SUM('3a'!L213,'3b'!L213,'3c'!L213,'3d'!L213,'3e (voluntary)'!L213))","v":":"},null,{"$f":"IF(COUNT('3a'!N213,'3b'!N213,'3c'!N213,'3d'!N213,'3e (voluntary)'!N213)=0,\":\",SUM('3a'!N213,'3b'!N213,'3c'!N213,'3d'!N213,'3e (voluntary)'!N213))","v":":"},null,{"$f":"IF(COUNT('3a'!P213,'3b'!P213,'3c'!P213,'3d'!P213,'3e (voluntary)'!P213)=0,\":\",SUM('3a'!P213,'3b'!P213,'3c'!P213,'3d'!P213,'3e (voluntary)'!P213))","v":":"},null,{"$f":"IF(COUNT('3a'!R213,'3b'!R213,'3c'!R213,'3d'!R213,'3e (voluntary)'!R213)=0,\":\",SUM('3a'!R213,'3b'!R213,'3c'!R213,'3d'!R213,'3e (voluntary)'!R213))","v":":"},null,{"$f":"IF(COUNT('3a'!T213,'3b'!T213,'3c'!T213,'3d'!T213,'3e (voluntary)'!T213)=0,\":\",SUM('3a'!T213,'3b'!T213,'3c'!T213,'3d'!T213,'3e (voluntary)'!T213))","v":":"},null,{"$f":"IF(COUNT('3a'!V213,'3b'!V213,'3c'!V213,'3d'!V213,'3e (voluntary)'!V213)=0,\":\",SUM('3a'!V213,'3b'!V213,'3c'!V213,'3d'!V213,'3e (voluntary)'!V213))","v":":"},null,{"$f":"IF(COUNT('3a'!X213,'3b'!X213,'3c'!X213,'3d'!X213,'3e (voluntary)'!X213)=0,\":\",SUM('3a'!X213,'3b'!X213,'3c'!X213,'3d'!X213,'3e (voluntary)'!X213))","v":":"},null,{"$f":"IF(COUNT('3a'!Z213,'3b'!Z213,'3c'!Z213,'3d'!Z213,'3e (voluntary)'!Z213)=0,\":\",SUM('3a'!Z213,'3b'!Z213,'3c'!Z213,'3d'!Z213,'3e (voluntary)'!Z213))","v":":"},null,{"$f":"IF(COUNT('3a'!AB213,'3b'!AB213,'3c'!AB213,'3d'!AB213,'3e (voluntary)'!AB213)=0,\":\",SUM('3a'!AB213,'3b'!AB213,'3c'!AB213,'3d'!AB213,'3e (voluntary)'!AB213))","v":":"},null,{"$f":"IF(COUNT('3a'!AD213,'3b'!AD213,'3c'!AD213,'3d'!AD213,'3e (voluntary)'!AD213)=0,\":\",SUM('3a'!AD213,'3b'!AD213,'3c'!AD213,'3d'!AD213,'3e (voluntary)'!AD213))","v":":"},null,{"$f":"IF(COUNT('3a'!AF213,'3b'!AF213,'3c'!AF213,'3d'!AF213,'3e (voluntary)'!AF213)=0,\":\",SUM('3a'!AF213,'3b'!AF213,'3c'!AF213,'3d'!AF213,'3e (voluntary)'!AF213))","v":":"}]
["S11_S12","EP_BUS","EPS_REC_BYPR",null,null,null,null,null,2023,{"$f":"IF(COUNT('3a'!J214,'3b'!J214,'3c'!J214,'3d'!J214,'3e (voluntary)'!J214)=0,\":\",SUM('3a'!J214,'3b'!J214,'3c'!J214,'3d'!J214,'3e (voluntary)'!J214))","v":":"},null,{"$f":"IF(COUNT('3a'!L214,'3b'!L214,'3c'!L214,'3d'!L214,'3e (voluntary)'!L214)=0,\":\",SUM('3a'!L214,'3b'!L214,'3c'!L214,'3d'!L214,'3e (voluntary)'!L214))","v":":"},null,{"$f":"IF(COUNT('3a'!N214,'3b'!N214,'3c'!N214,'3d'!N214,'3e (voluntary)'!N214)=0,\":\",SUM('3a'!N214,'3b'!N214,'3c'!N214,'3d'!N214,'3e (voluntary)'!N214))","v":":"},null,{"$f":"IF(COUNT('3a'!P214,'3b'!P214,'3c'!P214,'3d'!P214,'3e (voluntary)'!P214)=0,\":\",SUM('3a'!P214,'3b'!P214,'3c'!P214,'3d'!P214,'3e (voluntary)'!P214))","v":":"},null,{"$f":"IF(COUNT('3a'!R214,'3b'!R214,'3c'!R214,'3d'!R214,'3e (voluntary)'!R214)=0,\":\",SUM('3a'!R214,'3b'!R214,'3c'!R214,'3d'!R214,'3e (voluntary)'!R214))","v":":"},null,{"$f":"IF(COUNT('3a'!T214,'3b'!T214,'3c'!T214,'3d'!T214,'3e (voluntary)'!T214)=0,\":\",SUM('3a'!T214,'3b'!T214,'3c'!T214,'3d'!T214,'3e (voluntary)'!T214))","v":":"},null,{"$f":"IF(COUNT('3a'!V214,'3b'!V214,'3c'!V214,'3d'!V214,'3e (voluntary)'!V214)=0,\":\",SUM('3a'!V214,'3b'!V214,'3c'!V214,'3d'!V214,'3e (voluntary)'!V214))","v":":"},null,{"$f":"IF(COUNT('3a'!X214,'3b'!X214,'3c'!X214,'3d'!X214,'3e (voluntary)'!X214)=0,\":\",SUM('3a'!X214,'3b'!X214,'3c'!X214,'3d'!X214,'3e (voluntary)'!X214))","v":":"},null,{"$f":"IF(COUNT('3a'!Z214,'3b'!Z214,'3c'!Z214,'3d'!Z214,'3e (voluntary)'!Z214)=0,\":\",SUM('3a'!Z214,'3b'!Z214,'3c'!Z214,'3d'!Z214,'3e (voluntary)'!Z214))","v":":"},null,{"$f":"IF(COUNT('3a'!AB214,'3b'!AB214,'3c'!AB214,'3d'!AB214,'3e (voluntary)'!AB214)=0,\":\",SUM('3a'!AB214,'3b'!AB214,'3c'!AB214,'3d'!AB214,'3e (voluntary)'!AB214))","v":":"},null,{"$f":"IF(COUNT('3a'!AD214,'3b'!AD214,'3c'!AD214,'3d'!AD214,'3e (voluntary)'!AD214)=0,\":\",SUM('3a'!AD214,'3b'!AD214,'3c'!AD214,'3d'!AD214,'3e (voluntary)'!AD214))","v":":"},null,{"$f":"IF(COUNT('3a'!AF214,'3b'!AF214,'3c'!AF214,'3d'!AF214,'3e (voluntary)'!AF214)=0,\":\",SUM('3a'!AF214,'3b'!AF214,'3c'!AF214,'3d'!AF214,'3e (voluntary)'!AF214))","v":":"}]
["S11_S12","EP_BUS","EPS_REC_BYPR",null,null,null,null,null,2024,{"$f":"IF(COUNT('3a'!J215,'3b'!J215,'3c'!J215,'3d'!J215,'3e (voluntary)'!J215)=0,\":\",SUM('3a'!J215,'3b'!J215,'3c'!J215,'3d'!J215,'3e (voluntary)'!J215))","v":":"},null,{"$f":"IF(COUNT('3a'!L215,'3b'!L215,'3c'!L215,'3d'!L215,'3e (voluntary)'!L215)=0,\":\",SUM('3a'!L215,'3b'!L215,'3c'!L215,'3d'!L215,'3e (voluntary)'!L215))","v":":"},null,{"$f":"IF(COUNT('3a'!N215,'3b'!N215,'3c'!N215,'3d'!N215,'3e (voluntary)'!N215)=0,\":\",SUM('3a'!N215,'3b'!N215,'3c'!N215,'3d'!N215,'3e (voluntary)'!N215))","v":":"},null,{"$f":"IF(COUNT('3a'!P215,'3b'!P215,'3c'!P215,'3d'!P215,'3e (voluntary)'!P215)=0,\":\",SUM('3a'!P215,'3b'!P215,'3c'!P215,'3d'!P215,'3e (voluntary)'!P215))","v":":"},null,{"$f":"IF(COUNT('3a'!R215,'3b'!R215,'3c'!R215,'3d'!R215,'3e (voluntary)'!R215)=0,\":\",SUM('3a'!R215,'3b'!R215,'3c'!R215,'3d'!R215,'3e (voluntary)'!R215))","v":":"},null,{"$f":"IF(COUNT('3a'!T215,'3b'!T215,'3c'!T215,'3d'!T215,'3e (voluntary)'!T215)=0,\":\",SUM('3a'!T215,'3b'!T215,'3c'!T215,'3d'!T215,'3e (voluntary)'!T215))","v":":"},null,{"$f":"IF(COUNT('3a'!V215,'3b'!V215,'3c'!V215,'3d'!V215,'3e (voluntary)'!V215)=0,\":\",SUM('3a'!V215,'3b'!V215,'3c'!V215,'3d'!V215,'3e (voluntary)'!V215))","v":":"},null,{"$f":"IF(COUNT('3a'!X215,'3b'!X215,'3c'!X215,'3d'!X215,'3e (voluntary)'!X215)=0,\":\",SUM('3a'!X215,'3b'!X215,'3c'!X215,'3d'!X215,'3e (voluntary)'!X215))","v":":"},null,{"$f":"IF(COUNT('3a'!Z215,'3b'!Z215,'3c'!Z215,'3d'!Z215,'3e (voluntary)'!Z215)=0,\":\",SUM('3a'!Z215,'3b'!Z215,'3c'!Z215,'3d'!Z215,'3e (voluntary)'!Z215))","v":":"},null,{"$f":"IF(COUNT('3a'!AB215,'3b'!AB215,'3c'!AB215,'3d'!AB215,'3e (voluntary)'!AB215)=0,\":\",SUM('3a'!AB215,'3b'!AB215,'3c'!AB215,'3d'!AB215,'3e (voluntary)'!AB215))","v":":"},null,{"$f":"IF(COUNT('3a'!AD215,'3b'!AD215,'3c'!AD215,'3d'!AD215,'3e (voluntary)'!AD215)=0,\":\",SUM('3a'!AD215,'3b'!AD215,'3c'!AD215,'3d'!AD215,'3e (voluntary)'!AD215))","v":":"},null,{"$f":"IF(COUNT('3a'!AF215,'3b'!AF215,'3c'!AF215,'3d'!AF215,'3e (voluntary)'!AF215)=0,\":\",SUM('3a'!AF215,'3b'!AF215,'3c'!AF215,'3d'!AF215,'3e (voluntary)'!AF215))","v":":"}]
["S11_S12","EP_BUS","EPS_REC_BYPR",null,null,null,null,null,2025,{"$f":"IF(COUNT('3a'!J216,'3b'!J216,'3c'!J216,'3d'!J216,'3e (voluntary)'!J216)=0,\":\",SUM('3a'!J216,'3b'!J216,'3c'!J216,'3d'!J216,'3e (voluntary)'!J216))","v":":"},null,{"$f":"IF(COUNT('3a'!L216,'3b'!L216,'3c'!L216,'3d'!L216,'3e (voluntary)'!L216)=0,\":\",SUM('3a'!L216,'3b'!L216,'3c'!L216,'3d'!L216,'3e (voluntary)'!L216))","v":":"},null,{"$f":"IF(COUNT('3a'!N216,'3b'!N216,'3c'!N216,'3d'!N216,'3e (voluntary)'!N216)=0,\":\",SUM('3a'!N216,'3b'!N216,'3c'!N216,'3d'!N216,'3e (voluntary)'!N216))","v":":"},null,{"$f":"IF(COUNT('3a'!P216,'3b'!P216,'3c'!P216,'3d'!P216,'3e (voluntary)'!P216)=0,\":\",SUM('3a'!P216,'3b'!P216,'3c'!P216,'3d'!P216,'3e (voluntary)'!P216))","v":":"},null,{"$f":"IF(COUNT('3a'!R216,'3b'!R216,'3c'!R216,'3d'!R216,'3e (voluntary)'!R216)=0,\":\",SUM('3a'!R216,'3b'!R216,'3c'!R216,'3d'!R216,'3e (voluntary)'!R216))","v":":"},null,{"$f":"IF(COUNT('3a'!T216,'3b'!T216,'3c'!T216,'3d'!T216,'3e (voluntary)'!T216)=0,\":\",SUM('3a'!T216,'3b'!T216,'3c'!T216,'3d'!T216,'3e (voluntary)'!T216))","v":":"},null,{"$f":"IF(COUNT('3a'!V216,'3b'!V216,'3c'!V216,'3d'!V216,'3e (voluntary)'!V216)=0,\":\",SUM('3a'!V216,'3b'!V216,'3c'!V216,'3d'!V216,'3e (voluntary)'!V216))","v":":"},null,{"$f":"IF(COUNT('3a'!X216,'3b'!X216,'3c'!X216,'3d'!X216,'3e (voluntary)'!X216)=0,\":\",SUM('3a'!X216,'3b'!X216,'3c'!X216,'3d'!X216,'3e (voluntary)'!X216))","v":":"},null,{"$f":"IF(COUNT('3a'!Z216,'3b'!Z216,'3c'!Z216,'3d'!Z216,'3e (voluntary)'!Z216)=0,\":\",SUM('3a'!Z216,'3b'!Z216,'3c'!Z216,'3d'!Z216,'3e (voluntary)'!Z216))","v":":"},null,{"$f":"IF(COUNT('3a'!AB216,'3b'!AB216,'3c'!AB216,'3d'!AB216,'3e (voluntary)'!AB216)=0,\":\",SUM('3a'!AB216,'3b'!AB216,'3c'!AB216,'3d'!AB216,'3e (voluntary)'!AB216))","v":":"},null,{"$f":"IF(COUNT('3a'!AD216,'3b'!AD216,'3c'!AD216,'3d'!AD216,'3e (voluntary)'!AD216)=0,\":\",SUM('3a'!AD216,'3b'!AD216,'3c'!AD216,'3d'!AD216,'3e (voluntary)'!AD216))","v":":"},null,{"$f":"IF(COUNT('3a'!AF216,'3b'!AF216,'3c'!AF216,'3d'!AF216,'3e (voluntary)'!AF216)=0,\":\",SUM('3a'!AF216,'3b'!AF216,'3c'!AF216,'3d'!AF216,'3e (voluntary)'!AF216))","v":":"}]
["S11_S12","EP_BUS","EPS_REC_BYPR",null,null,null,null,null,2026,{"$f":"IF(COUNT('3a'!J217,'3b'!J217,'3c'!J217,'3d'!J217,'3e (voluntary)'!J217)=0,\":\",SUM('3a'!J217,'3b'!J217,'3c'!J217,'3d'!J217,'3e (voluntary)'!J217))","v":":"},null,{"$f":"IF(COUNT('3a'!L217,'3b'!L217,'3c'!L217,'3d'!L217,'3e (voluntary)'!L217)=0,\":\",SUM('3a'!L217,'3b'!L217,'3c'!L217,'3d'!L217,'3e (voluntary)'!L217))","v":":"},null,{"$f":"IF(COUNT('3a'!N217,'3b'!N217,'3c'!N217,'3d'!N217,'3e (voluntary)'!N217)=0,\":\",SUM('3a'!N217,'3b'!N217,'3c'!N217,'3d'!N217,'3e (voluntary)'!N217))","v":":"},null,{"$f":"IF(COUNT('3a'!P217,'3b'!P217,'3c'!P217,'3d'!P217,'3e (voluntary)'!P217)=0,\":\",SUM('3a'!P217,'3b'!P217,'3c'!P217,'3d'!P217,'3e (voluntary)'!P217))","v":":"},null,{"$f":"IF(COUNT('3a'!R217,'3b'!R217,'3c'!R217,'3d'!R217,'3e (voluntary)'!R217)=0,\":\",SUM('3a'!R217,'3b'!R217,'3c'!R217,'3d'!R217,'3e (voluntary)'!R217))","v":":"},null,{"$f":"IF(COUNT('3a'!T217,'3b'!T217,'3c'!T217,'3d'!T217,'3e (voluntary)'!T217)=0,\":\",SUM('3a'!T217,'3b'!T217,'3c'!T217,'3d'!T217,'3e (voluntary)'!T217))","v":":"},null,{"$f":"IF(COUNT('3a'!V217,'3b'!V217,'3c'!V217,'3d'!V217,'3e (voluntary)'!V217)=0,\":\",SUM('3a'!V217,'3b'!V217,'3c'!V217,'3d'!V217,'3e (voluntary)'!V217))","v":":"},null,{"$f":"IF(COUNT('3a'!X217,'3b'!X217,'3c'!X217,'3d'!X217,'3e (voluntary)'!X217)=0,\":\",SUM('3a'!X217,'3b'!X217,'3c'!X217,'3d'!X217,'3e (voluntary)'!X217))","v":":"},null,{"$f":"IF(COUNT('3a'!Z217,'3b'!Z217,'3c'!Z217,'3d'!Z217,'3e (voluntary)'!Z217)=0,\":\",SUM('3a'!Z217,'3b'!Z217,'3c'!Z217,'3d'!Z217,'3e (voluntary)'!Z217))","v":":"},null,{"$f":"IF(COUNT('3a'!AB217,'3b'!AB217,'3c'!AB217,'3d'!AB217,'3e (voluntary)'!AB217)=0,\":\",SUM('3a'!AB217,'3b'!AB217,'3c'!AB217,'3d'!AB217,'3e (voluntary)'!AB217))","v":":"},null,{"$f":"IF(COUNT('3a'!AD217,'3b'!AD217,'3c'!AD217,'3d'!AD217,'3e (voluntary)'!AD217)=0,\":\",SUM('3a'!AD217,'3b'!AD217,'3c'!AD217,'3d'!AD217,'3e (voluntary)'!AD217))","v":":"},null,{"$f":"IF(COUNT('3a'!AF217,'3b'!AF217,'3c'!AF217,'3d'!AF217,'3e (voluntary)'!AF217)=0,\":\",SUM('3a'!AF217,'3b'!AF217,'3c'!AF217,'3d'!AF217,'3e (voluntary)'!AF217))","v":":"}]
["S11_S12","EP_BUS","EPS_REC_BYPR",null,null,null,null,null,2027,{"$f":"IF(COUNT('3a'!J218,'3b'!J218,'3c'!J218,'3d'!J218,'3e (voluntary)'!J218)=0,\":\",SUM('3a'!J218,'3b'!J218,'3c'!J218,'3d'!J218,'3e (voluntary)'!J218))","v":":"},null,{"$f":"IF(COUNT('3a'!L218,'3b'!L218,'3c'!L218,'3d'!L218,'3e (voluntary)'!L218)=0,\":\",SUM('3a'!L218,'3b'!L218,'3c'!L218,'3d'!L218,'3e (voluntary)'!L218))","v":":"},null,{"$f":"IF(COUNT('3a'!N218,'3b'!N218,'3c'!N218,'3d'!N218,'3e (voluntary)'!N218)=0,\":\",SUM('3a'!N218,'3b'!N218,'3c'!N218,'3d'!N218,'3e (voluntary)'!N218))","v":":"},null,{"$f":"IF(COUNT('3a'!P218,'3b'!P218,'3c'!P218,'3d'!P218,'3e (voluntary)'!P218)=0,\":\",SUM('3a'!P218,'3b'!P218,'3c'!P218,'3d'!P218,'3e (voluntary)'!P218))","v":":"},null,{"$f":"IF(COUNT('3a'!R218,'3b'!R218,'3c'!R218,'3d'!R218,'3e (voluntary)'!R218)=0,\":\",SUM('3a'!R218,'3b'!R218,'3c'!R218,'3d'!R218,'3e (voluntary)'!R218))","v":":"},null,{"$f":"IF(COUNT('3a'!T218,'3b'!T218,'3c'!T218,'3d'!T218,'3e (voluntary)'!T218)=0,\":\",SUM('3a'!T218,'3b'!T218,'3c'!T218,'3d'!T218,'3e (voluntary)'!T218))","v":":"},null,{"$f":"IF(COUNT('3a'!V218,'3b'!V218,'3c'!V218,'3d'!V218,'3e (voluntary)'!V218)=0,\":\",SUM('3a'!V218,'3b'!V218,'3c'!V218,'3d'!V218,'3e (voluntary)'!V218))","v":":"},null,{"$f":"IF(COUNT('3a'!X218,'3b'!X218,'3c'!X218,'3d'!X218,'3e (voluntary)'!X218)=0,\":\",SUM('3a'!X218,'3b'!X218,'3c'!X218,'3d'!X218,'3e (voluntary)'!X218))","v":":"},null,{"$f":"IF(COUNT('3a'!Z218,'3b'!Z218,'3c'!Z218,'3d'!Z218,'3e (voluntary)'!Z218)=0,\":\",SUM('3a'!Z218,'3b'!Z218,'3c'!Z218,'3d'!Z218,'3e (voluntary)'!Z218))","v":":"},null,{"$f":"IF(COUNT('3a'!AB218,'3b'!AB218,'3c'!AB218,'3d'!AB218,'3e (voluntary)'!AB218)=0,\":\",SUM('3a'!AB218,'3b'!AB218,'3c'!AB218,'3d'!AB218,'3e (voluntary)'!AB218))","v":":"},null,{"$f":"IF(COUNT('3a'!AD218,'3b'!AD218,'3c'!AD218,'3d'!AD218,'3e (voluntary)'!AD218)=0,\":\",SUM('3a'!AD218,'3b'!AD218,'3c'!AD218,'3d'!AD218,'3e (voluntary)'!AD218))","v":":"},null,{"$f":"IF(COUNT('3a'!AF218,'3b'!AF218,'3c'!AF218,'3d'!AF218,'3e (voluntary)'!AF218)=0,\":\",SUM('3a'!AF218,'3b'!AF218,'3c'!AF218,'3d'!AF218,'3e (voluntary)'!AF218))","v":":"}]
["S11_S12","EP_BUS","EPS_REC_BYPR",null,null,null,null,null,2028,{"$f":"IF(COUNT('3a'!J219,'3b'!J219,'3c'!J219,'3d'!J219,'3e (voluntary)'!J219)=0,\":\",SUM('3a'!J219,'3b'!J219,'3c'!J219,'3d'!J219,'3e (voluntary)'!J219))","v":":"},null,{"$f":"IF(COUNT('3a'!L219,'3b'!L219,'3c'!L219,'3d'!L219,'3e (voluntary)'!L219)=0,\":\",SUM('3a'!L219,'3b'!L219,'3c'!L219,'3d'!L219,'3e (voluntary)'!L219))","v":":"},null,{"$f":"IF(COUNT('3a'!N219,'3b'!N219,'3c'!N219,'3d'!N219,'3e (voluntary)'!N219)=0,\":\",SUM('3a'!N219,'3b'!N219,'3c'!N219,'3d'!N219,'3e (voluntary)'!N219))","v":":"},null,{"$f":"IF(COUNT('3a'!P219,'3b'!P219,'3c'!P219,'3d'!P219,'3e (voluntary)'!P219)=0,\":\",SUM('3a'!P219,'3b'!P219,'3c'!P219,'3d'!P219,'3e (voluntary)'!P219))","v":":"},null,{"$f":"IF(COUNT('3a'!R219,'3b'!R219,'3c'!R219,'3d'!R219,'3e (voluntary)'!R219)=0,\":\",SUM('3a'!R219,'3b'!R219,'3c'!R219,'3d'!R219,'3e (voluntary)'!R219))","v":":"},null,{"$f":"IF(COUNT('3a'!T219,'3b'!T219,'3c'!T219,'3d'!T219,'3e (voluntary)'!T219)=0,\":\",SUM('3a'!T219,'3b'!T219,'3c'!T219,'3d'!T219,'3e (voluntary)'!T219))","v":":"},null,{"$f":"IF(COUNT('3a'!V219,'3b'!V219,'3c'!V219,'3d'!V219,'3e (voluntary)'!V219)=0,\":\",SUM('3a'!V219,'3b'!V219,'3c'!V219,'3d'!V219,'3e (voluntary)'!V219))","v":":"},null,{"$f":"IF(COUNT('3a'!X219,'3b'!X219,'3c'!X219,'3d'!X219,'3e (voluntary)'!X219)=0,\":\",SUM('3a'!X219,'3b'!X219,'3c'!X219,'3d'!X219,'3e (voluntary)'!X219))","v":":"},null,{"$f":"IF(COUNT('3a'!Z219,'3b'!Z219,'3c'!Z219,'3d'!Z219,'3e (voluntary)'!Z219)=0,\":\",SUM('3a'!Z219,'3b'!Z219,'3c'!Z219,'3d'!Z219,'3e (voluntary)'!Z219))","v":":"},null,{"$f":"IF(COUNT('3a'!AB219,'3b'!AB219,'3c'!AB219,'3d'!AB219,'3e (voluntary)'!AB219)=0,\":\",SUM('3a'!AB219,'3b'!AB219,'3c'!AB219,'3d'!AB219,'3e (voluntary)'!AB219))","v":":"},null,{"$f":"IF(COUNT('3a'!AD219,'3b'!AD219,'3c'!AD219,'3d'!AD219,'3e (voluntary)'!AD219)=0,\":\",SUM('3a'!AD219,'3b'!AD219,'3c'!AD219,'3d'!AD219,'3e (voluntary)'!AD219))","v":":"},null,{"$f":"IF(COUNT('3a'!AF219,'3b'!AF219,'3c'!AF219,'3d'!AF219,'3e (voluntary)'!AF219)=0,\":\",SUM('3a'!AF219,'3b'!AF219,'3c'!AF219,'3d'!AF219,'3e (voluntary)'!AF219))","v":":"}]
["S11_S12","EP_BUS","EPS_REC_BYPR",null,null,null,null,null,2029,{"$f":"IF(COUNT('3a'!J220,'3b'!J220,'3c'!J220,'3d'!J220,'3e (voluntary)'!J220)=0,\":\",SUM('3a'!J220,'3b'!J220,'3c'!J220,'3d'!J220,'3e (voluntary)'!J220))","v":":"},null,{"$f":"IF(COUNT('3a'!L220,'3b'!L220,'3c'!L220,'3d'!L220,'3e (voluntary)'!L220)=0,\":\",SUM('3a'!L220,'3b'!L220,'3c'!L220,'3d'!L220,'3e (voluntary)'!L220))","v":":"},null,{"$f":"IF(COUNT('3a'!N220,'3b'!N220,'3c'!N220,'3d'!N220,'3e (voluntary)'!N220)=0,\":\",SUM('3a'!N220,'3b'!N220,'3c'!N220,'3d'!N220,'3e (voluntary)'!N220))","v":":"},null,{"$f":"IF(COUNT('3a'!P220,'3b'!P220,'3c'!P220,'3d'!P220,'3e (voluntary)'!P220)=0,\":\",SUM('3a'!P220,'3b'!P220,'3c'!P220,'3d'!P220,'3e (voluntary)'!P220))","v":":"},null,{"$f":"IF(COUNT('3a'!R220,'3b'!R220,'3c'!R220,'3d'!R220,'3e (voluntary)'!R220)=0,\":\",SUM('3a'!R220,'3b'!R220,'3c'!R220,'3d'!R220,'3e (voluntary)'!R220))","v":":"},null,{"$f":"IF(COUNT('3a'!T220,'3b'!T220,'3c'!T220,'3d'!T220,'3e (voluntary)'!T220)=0,\":\",SUM('3a'!T220,'3b'!T220,'3c'!T220,'3d'!T220,'3e (voluntary)'!T220))","v":":"},null,{"$f":"IF(COUNT('3a'!V220,'3b'!V220,'3c'!V220,'3d'!V220,'3e (voluntary)'!V220)=0,\":\",SUM('3a'!V220,'3b'!V220,'3c'!V220,'3d'!V220,'3e (voluntary)'!V220))","v":":"},null,{"$f":"IF(COUNT('3a'!X220,'3b'!X220,'3c'!X220,'3d'!X220,'3e (voluntary)'!X220)=0,\":\",SUM('3a'!X220,'3b'!X220,'3c'!X220,'3d'!X220,'3e (voluntary)'!X220))","v":":"},null,{"$f":"IF(COUNT('3a'!Z220,'3b'!Z220,'3c'!Z220,'3d'!Z220,'3e (voluntary)'!Z220)=0,\":\",SUM('3a'!Z220,'3b'!Z220,'3c'!Z220,'3d'!Z220,'3e (voluntary)'!Z220))","v":":"},null,{"$f":"IF(COUNT('3a'!AB220,'3b'!AB220,'3c'!AB220,'3d'!AB220,'3e (voluntary)'!AB220)=0,\":\",SUM('3a'!AB220,'3b'!AB220,'3c'!AB220,'3d'!AB220,'3e (voluntary)'!AB220))","v":":"},null,{"$f":"IF(COUNT('3a'!AD220,'3b'!AD220,'3c'!AD220,'3d'!AD220,'3e (voluntary)'!AD220)=0,\":\",SUM('3a'!AD220,'3b'!AD220,'3c'!AD220,'3d'!AD220,'3e (voluntary)'!AD220))","v":":"},null,{"$f":"IF(COUNT('3a'!AF220,'3b'!AF220,'3c'!AF220,'3d'!AF220,'3e (voluntary)'!AF220)=0,\":\",SUM('3a'!AF220,'3b'!AF220,'3c'!AF220,'3d'!AF220,'3e (voluntary)'!AF220))","v":":"}]
["S11_S12","EP_BUS","EPS_REC_BYPR",null,null,null,null,null,2030,{"$f":"IF(COUNT('3a'!J221,'3b'!J221,'3c'!J221,'3d'!J221,'3e (voluntary)'!J221)=0,\":\",SUM('3a'!J221,'3b'!J221,'3c'!J221,'3d'!J221,'3e (voluntary)'!J221))","v":":"},null,{"$f":"IF(COUNT('3a'!L221,'3b'!L221,'3c'!L221,'3d'!L221,'3e (voluntary)'!L221)=0,\":\",SUM('3a'!L221,'3b'!L221,'3c'!L221,'3d'!L221,'3e (voluntary)'!L221))","v":":"},null,{"$f":"IF(COUNT('3a'!N221,'3b'!N221,'3c'!N221,'3d'!N221,'3e (voluntary)'!N221)=0,\":\",SUM('3a'!N221,'3b'!N221,'3c'!N221,'3d'!N221,'3e (voluntary)'!N221))","v":":"},null,{"$f":"IF(COUNT('3a'!P221,'3b'!P221,'3c'!P221,'3d'!P221,'3e (voluntary)'!P221)=0,\":\",SUM('3a'!P221,'3b'!P221,'3c'!P221,'3d'!P221,'3e (voluntary)'!P221))","v":":"},null,{"$f":"IF(COUNT('3a'!R221,'3b'!R221,'3c'!R221,'3d'!R221,'3e (voluntary)'!R221)=0,\":\",SUM('3a'!R221,'3b'!R221,'3c'!R221,'3d'!R221,'3e (voluntary)'!R221))","v":":"},null,{"$f":"IF(COUNT('3a'!T221,'3b'!T221,'3c'!T221,'3d'!T221,'3e (voluntary)'!T221)=0,\":\",SUM('3a'!T221,'3b'!T221,'3c'!T221,'3d'!T221,'3e (voluntary)'!T221))","v":":"},null,{"$f":"IF(COUNT('3a'!V221,'3b'!V221,'3c'!V221,'3d'!V221,'3e (voluntary)'!V221)=0,\":\",SUM('3a'!V221,'3b'!V221,'3c'!V221,'3d'!V221,'3e (voluntary)'!V221))","v":":"},null,{"$f":"IF(COUNT('3a'!X221,'3b'!X221,'3c'!X221,'3d'!X221,'3e (voluntary)'!X221)=0,\":\",SUM('3a'!X221,'3b'!X221,'3c'!X221,'3d'!X221,'3e (voluntary)'!X221))","v":":"},null,{"$f":"IF(COUNT('3a'!Z221,'3b'!Z221,'3c'!Z221,'3d'!Z221,'3e (voluntary)'!Z221)=0,\":\",SUM('3a'!Z221,'3b'!Z221,'3c'!Z221,'3d'!Z221,'3e (voluntary)'!Z221))","v":":"},null,{"$f":"IF(COUNT('3a'!AB221,'3b'!AB221,'3c'!AB221,'3d'!AB221,'3e (voluntary)'!AB221)=0,\":\",SUM('3a'!AB221,'3b'!AB221,'3c'!AB221,'3d'!AB221,'3e (voluntary)'!AB221))","v":":"},null,{"$f":"IF(COUNT('3a'!AD221,'3b'!AD221,'3c'!AD221,'3d'!AD221,'3e (voluntary)'!AD221)=0,\":\",SUM('3a'!AD221,'3b'!AD221,'3c'!AD221,'3d'!AD221,'3e (voluntary)'!AD221))","v":":"},null,{"$f":"IF(COUNT('3a'!AF221,'3b'!AF221,'3c'!AF221,'3d'!AF221,'3e (voluntary)'!AF221)=0,\":\",SUM('3a'!AF221,'3b'!AF221,'3c'!AF221,'3d'!AF221,'3e (voluntary)'!AF221))","v":":"}]
["S11_S12","EP_BUS","EPS_REC_BYPR",null,null,null,null,null,2031,{"$f":"IF(COUNT('3a'!J222,'3b'!J222,'3c'!J222,'3d'!J222,'3e (voluntary)'!J222)=0,\":\",SUM('3a'!J222,'3b'!J222,'3c'!J222,'3d'!J222,'3e (voluntary)'!J222))","v":":"},null,{"$f":"IF(COUNT('3a'!L222,'3b'!L222,'3c'!L222,'3d'!L222,'3e (voluntary)'!L222)=0,\":\",SUM('3a'!L222,'3b'!L222,'3c'!L222,'3d'!L222,'3e (voluntary)'!L222))","v":":"},null,{"$f":"IF(COUNT('3a'!N222,'3b'!N222,'3c'!N222,'3d'!N222,'3e (voluntary)'!N222)=0,\":\",SUM('3a'!N222,'3b'!N222,'3c'!N222,'3d'!N222,'3e (voluntary)'!N222))","v":":"},null,{"$f":"IF(COUNT('3a'!P222,'3b'!P222,'3c'!P222,'3d'!P222,'3e (voluntary)'!P222)=0,\":\",SUM('3a'!P222,'3b'!P222,'3c'!P222,'3d'!P222,'3e (voluntary)'!P222))","v":":"},null,{"$f":"IF(COUNT('3a'!R222,'3b'!R222,'3c'!R222,'3d'!R222,'3e (voluntary)'!R222)=0,\":\",SUM('3a'!R222,'3b'!R222,'3c'!R222,'3d'!R222,'3e (voluntary)'!R222))","v":":"},null,{"$f":"IF(COUNT('3a'!T222,'3b'!T222,'3c'!T222,'3d'!T222,'3e (voluntary)'!T222)=0,\":\",SUM('3a'!T222,'3b'!T222,'3c'!T222,'3d'!T222,'3e (voluntary)'!T222))","v":":"},null,{"$f":"IF(COUNT('3a'!V222,'3b'!V222,'3c'!V222,'3d'!V222,'3e (voluntary)'!V222)=0,\":\",SUM('3a'!V222,'3b'!V222,'3c'!V222,'3d'!V222,'3e (voluntary)'!V222))","v":":"},null,{"$f":"IF(COUNT('3a'!X222,'3b'!X222,'3c'!X222,'3d'!X222,'3e (voluntary)'!X222)=0,\":\",SUM('3a'!X222,'3b'!X222,'3c'!X222,'3d'!X222,'3e (voluntary)'!X222))","v":":"},null,{"$f":"IF(COUNT('3a'!Z222,'3b'!Z222,'3c'!Z222,'3d'!Z222,'3e (voluntary)'!Z222)=0,\":\",SUM('3a'!Z222,'3b'!Z222,'3c'!Z222,'3d'!Z222,'3e (voluntary)'!Z222))","v":":"},null,{"$f":"IF(COUNT('3a'!AB222,'3b'!AB222,'3c'!AB222,'3d'!AB222,'3e (voluntary)'!AB222)=0,\":\",SUM('3a'!AB222,'3b'!AB222,'3c'!AB222,'3d'!AB222,'3e (voluntary)'!AB222))","v":":"},null,{"$f":"IF(COUNT('3a'!AD222,'3b'!AD222,'3c'!AD222,'3d'!AD222,'3e (voluntary)'!AD222)=0,\":\",SUM('3a'!AD222,'3b'!AD222,'3c'!AD222,'3d'!AD222,'3e (voluntary)'!AD222))","v":":"},null,{"$f":"IF(COUNT('3a'!AF222,'3b'!AF222,'3c'!AF222,'3d'!AF222,'3e (voluntary)'!AF222)=0,\":\",SUM('3a'!AF222,'3b'!AF222,'3c'!AF222,'3d'!AF222,'3e (voluntary)'!AF222))","v":":"}]
["S11_S12","EP_BUS","TOT_P2_EPS","Transactions as users of EP services (ancillary production of EP services and other production)","( P2_EPS_EXT.3 ) Total intermediate consumption of EP services (for production of EP services and for other production)",null,null,null,2014,{"$f":"IF(COUNT('3a'!J223,'3b'!J223,'3c'!J223,'3d'!J223,'3e (voluntary)'!J223)=0,\":\",SUM('3a'!J223,'3b'!J223,'3c'!J223,'3d'!J223,'3e (voluntary)'!J223))","v":":"},null,{"$f":"IF(COUNT('3a'!L223,'3b'!L223,'3c'!L223,'3d'!L223,'3e (voluntary)'!L223)=0,\":\",SUM('3a'!L223,'3b'!L223,'3c'!L223,'3d'!L223,'3e (voluntary)'!L223))","v":":"},null,{"$f":"IF(COUNT('3a'!N223,'3b'!N223,'3c'!N223,'3d'!N223,'3e (voluntary)'!N223)=0,\":\",SUM('3a'!N223,'3b'!N223,'3c'!N223,'3d'!N223,'3e (voluntary)'!N223))","v":":"},null,{"$f":"IF(COUNT('3a'!P223,'3b'!P223,'3c'!P223,'3d'!P223,'3e (voluntary)'!P223)=0,\":\",SUM('3a'!P223,'3b'!P223,'3c'!P223,'3d'!P223,'3e (voluntary)'!P223))","v":":"},null,{"$f":"IF(COUNT('3a'!R223,'3b'!R223,'3c'!R223,'3d'!R223,'3e (voluntary)'!R223)=0,\":\",SUM('3a'!R223,'3b'!R223,'3c'!R223,'3d'!R223,'3e (voluntary)'!R223))","v":":"},null,{"$f":"IF(COUNT('3a'!T223,'3b'!T223,'3c'!T223,'3d'!T223,'3e (voluntary)'!T223)=0,\":\",SUM('3a'!T223,'3b'!T223,'3c'!T223,'3d'!T223,'3e (voluntary)'!T223))","v":":"},null,{"$f":"IF(COUNT('3a'!V223,'3b'!V223,'3c'!V223,'3d'!V223,'3e (voluntary)'!V223)=0,\":\",SUM('3a'!V223,'3b'!V223,'3c'!V223,'3d'!V223,'3e (voluntary)'!V223))","v":":"},null,{"$f":"IF(COUNT('3a'!X223,'3b'!X223,'3c'!X223,'3d'!X223,'3e (voluntary)'!X223)=0,\":\",SUM('3a'!X223,'3b'!X223,'3c'!X223,'3d'!X223,'3e (voluntary)'!X223))","v":":"},null,{"$f":"IF(COUNT('3a'!Z223,'3b'!Z223,'3c'!Z223,'3d'!Z223,'3e (voluntary)'!Z223)=0,\":\",SUM('3a'!Z223,'3b'!Z223,'3c'!Z223,'3d'!Z223,'3e (voluntary)'!Z223))","v":":"},null,{"$f":"IF(COUNT('3a'!AB223,'3b'!AB223,'3c'!AB223,'3d'!AB223,'3e (voluntary)'!AB223)=0,\":\",SUM('3a'!AB223,'3b'!AB223,'3c'!AB223,'3d'!AB223,'3e (voluntary)'!AB223))","v":":"},null,{"$f":"IF(COUNT('3a'!AD223,'3b'!AD223,'3c'!AD223,'3d'!AD223,'3e (voluntary)'!AD223)=0,\":\",SUM('3a'!AD223,'3b'!AD223,'3c'!AD223,'3d'!AD223,'3e (voluntary)'!AD223))","v":":"},null,{"$f":"IF(COUNT('3a'!AF223,'3b'!AF223,'3c'!AF223,'3d'!AF223,'3e (voluntary)'!AF223)=0,\":\",SUM('3a'!AF223,'3b'!AF223,'3c'!AF223,'3d'!AF223,'3e (voluntary)'!AF223))","v":":"}]
["S11_S12","EP_BUS","TOT_P2_EPS",null,"(P2_EPS_EXT.3: please consider the explanatory notes - click here)",null,null,null,2015,{"$f":"IF(COUNT('3a'!J224,'3b'!J224,'3c'!J224,'3d'!J224,'3e (voluntary)'!J224)=0,\":\",SUM('3a'!J224,'3b'!J224,'3c'!J224,'3d'!J224,'3e (voluntary)'!J224))","v":":"},null,{"$f":"IF(COUNT('3a'!L224,'3b'!L224,'3c'!L224,'3d'!L224,'3e (voluntary)'!L224)=0,\":\",SUM('3a'!L224,'3b'!L224,'3c'!L224,'3d'!L224,'3e (voluntary)'!L224))","v":":"},null,{"$f":"IF(COUNT('3a'!N224,'3b'!N224,'3c'!N224,'3d'!N224,'3e (voluntary)'!N224)=0,\":\",SUM('3a'!N224,'3b'!N224,'3c'!N224,'3d'!N224,'3e (voluntary)'!N224))","v":":"},null,{"$f":"IF(COUNT('3a'!P224,'3b'!P224,'3c'!P224,'3d'!P224,'3e (voluntary)'!P224)=0,\":\",SUM('3a'!P224,'3b'!P224,'3c'!P224,'3d'!P224,'3e (voluntary)'!P224))","v":":"},null,{"$f":"IF(COUNT('3a'!R224,'3b'!R224,'3c'!R224,'3d'!R224,'3e (voluntary)'!R224)=0,\":\",SUM('3a'!R224,'3b'!R224,'3c'!R224,'3d'!R224,'3e (voluntary)'!R224))","v":":"},null,{"$f":"IF(COUNT('3a'!T224,'3b'!T224,'3c'!T224,'3d'!T224,'3e (voluntary)'!T224)=0,\":\",SUM('3a'!T224,'3b'!T224,'3c'!T224,'3d'!T224,'3e (voluntary)'!T224))","v":":"},null,{"$f":"IF(COUNT('3a'!V224,'3b'!V224,'3c'!V224,'3d'!V224,'3e (voluntary)'!V224)=0,\":\",SUM('3a'!V224,'3b'!V224,'3c'!V224,'3d'!V224,'3e (voluntary)'!V224))","v":":"},null,{"$f":"IF(COUNT('3a'!X224,'3b'!X224,'3c'!X224,'3d'!X224,'3e (voluntary)'!X224)=0,\":\",SUM('3a'!X224,'3b'!X224,'3c'!X224,'3d'!X224,'3e (voluntary)'!X224))","v":":"},null,{"$f":"IF(COUNT('3a'!Z224,'3b'!Z224,'3c'!Z224,'3d'!Z224,'3e (voluntary)'!Z224)=0,\":\",SUM('3a'!Z224,'3b'!Z224,'3c'!Z224,'3d'!Z224,'3e (voluntary)'!Z224))","v":":"},null,{"$f":"IF(COUNT('3a'!AB224,'3b'!AB224,'3c'!AB224,'3d'!AB224,'3e (voluntary)'!AB224)=0,\":\",SUM('3a'!AB224,'3b'!AB224,'3c'!AB224,'3d'!AB224,'3e (voluntary)'!AB224))","v":":"},null,{"$f":"IF(COUNT('3a'!AD224,'3b'!AD224,'3c'!AD224,'3d'!AD224,'3e (voluntary)'!AD224)=0,\":\",SUM('3a'!AD224,'3b'!AD224,'3c'!AD224,'3d'!AD224,'3e (voluntary)'!AD224))","v":":"},null,{"$f":"IF(COUNT('3a'!AF224,'3b'!AF224,'3c'!AF224,'3d'!AF224,'3e (voluntary)'!AF224)=0,\":\",SUM('3a'!AF224,'3b'!AF224,'3c'!AF224,'3d'!AF224,'3e (voluntary)'!AF224))","v":":"}]
["S11_S12","EP_BUS","TOT_P2_EPS",null,null,null,null,null,2016,{"$f":"IF(COUNT('3a'!J225,'3b'!J225,'3c'!J225,'3d'!J225,'3e (voluntary)'!J225)=0,\":\",SUM('3a'!J225,'3b'!J225,'3c'!J225,'3d'!J225,'3e (voluntary)'!J225))","v":":"},null,{"$f":"IF(COUNT('3a'!L225,'3b'!L225,'3c'!L225,'3d'!L225,'3e (voluntary)'!L225)=0,\":\",SUM('3a'!L225,'3b'!L225,'3c'!L225,'3d'!L225,'3e (voluntary)'!L225))","v":":"},null,{"$f":"IF(COUNT('3a'!N225,'3b'!N225,'3c'!N225,'3d'!N225,'3e (voluntary)'!N225)=0,\":\",SUM('3a'!N225,'3b'!N225,'3c'!N225,'3d'!N225,'3e (voluntary)'!N225))","v":":"},null,{"$f":"IF(COUNT('3a'!P225,'3b'!P225,'3c'!P225,'3d'!P225,'3e (voluntary)'!P225)=0,\":\",SUM('3a'!P225,'3b'!P225,'3c'!P225,'3d'!P225,'3e (voluntary)'!P225))","v":":"},null,{"$f":"IF(COUNT('3a'!R225,'3b'!R225,'3c'!R225,'3d'!R225,'3e (voluntary)'!R225)=0,\":\",SUM('3a'!R225,'3b'!R225,'3c'!R225,'3d'!R225,'3e (voluntary)'!R225))","v":":"},null,{"$f":"IF(COUNT('3a'!T225,'3b'!T225,'3c'!T225,'3d'!T225,'3e (voluntary)'!T225)=0,\":\",SUM('3a'!T225,'3b'!T225,'3c'!T225,'3d'!T225,'3e (voluntary)'!T225))","v":":"},null,{"$f":"IF(COUNT('3a'!V225,'3b'!V225,'3c'!V225,'3d'!V225,'3e (voluntary)'!V225)=0,\":\",SUM('3a'!V225,'3b'!V225,'3c'!V225,'3d'!V225,'3e (voluntary)'!V225))","v":":"},null,{"$f":"IF(COUNT('3a'!X225,'3b'!X225,'3c'!X225,'3d'!X225,'3e (voluntary)'!X225)=0,\":\",SUM('3a'!X225,'3b'!X225,'3c'!X225,'3d'!X225,'3e (voluntary)'!X225))","v":":"},null,{"$f":"IF(COUNT('3a'!Z225,'3b'!Z225,'3c'!Z225,'3d'!Z225,'3e (voluntary)'!Z225)=0,\":\",SUM('3a'!Z225,'3b'!Z225,'3c'!Z225,'3d'!Z225,'3e (voluntary)'!Z225))","v":":"},null,{"$f":"IF(COUNT('3a'!AB225,'3b'!AB225,'3c'!AB225,'3d'!AB225,'3e (voluntary)'!AB225)=0,\":\",SUM('3a'!AB225,'3b'!AB225,'3c'!AB225,'3d'!AB225,'3e (voluntary)'!AB225))","v":":"},null,{"$f":"IF(COUNT('3a'!AD225,'3b'!AD225,'3c'!AD225,'3d'!AD225,'3e (voluntary)'!AD225)=0,\":\",SUM('3a'!AD225,'3b'!AD225,'3c'!AD225,'3d'!AD225,'3e (voluntary)'!AD225))","v":":"},null,{"$f":"IF(COUNT('3a'!AF225,'3b'!AF225,'3c'!AF225,'3d'!AF225,'3e (voluntary)'!AF225)=0,\":\",SUM('3a'!AF225,'3b'!AF225,'3c'!AF225,'3d'!AF225,'3e (voluntary)'!AF225))","v":":"}]
["S11_S12","EP_BUS","TOT_P2_EPS",null,null,null,null,null,2017,{"$f":"IF(COUNT('3a'!J226,'3b'!J226,'3c'!J226,'3d'!J226,'3e (voluntary)'!J226)=0,\":\",SUM('3a'!J226,'3b'!J226,'3c'!J226,'3d'!J226,'3e (voluntary)'!J226))","v":":"},null,{"$f":"IF(COUNT('3a'!L226,'3b'!L226,'3c'!L226,'3d'!L226,'3e (voluntary)'!L226)=0,\":\",SUM('3a'!L226,'3b'!L226,'3c'!L226,'3d'!L226,'3e (voluntary)'!L226))","v":":"},null,{"$f":"IF(COUNT('3a'!N226,'3b'!N226,'3c'!N226,'3d'!N226,'3e (voluntary)'!N226)=0,\":\",SUM('3a'!N226,'3b'!N226,'3c'!N226,'3d'!N226,'3e (voluntary)'!N226))","v":":"},null,{"$f":"IF(COUNT('3a'!P226,'3b'!P226,'3c'!P226,'3d'!P226,'3e (voluntary)'!P226)=0,\":\",SUM('3a'!P226,'3b'!P226,'3c'!P226,'3d'!P226,'3e (voluntary)'!P226))","v":":"},null,{"$f":"IF(COUNT('3a'!R226,'3b'!R226,'3c'!R226,'3d'!R226,'3e (voluntary)'!R226)=0,\":\",SUM('3a'!R226,'3b'!R226,'3c'!R226,'3d'!R226,'3e (voluntary)'!R226))","v":":"},null,{"$f":"IF(COUNT('3a'!T226,'3b'!T226,'3c'!T226,'3d'!T226,'3e (voluntary)'!T226)=0,\":\",SUM('3a'!T226,'3b'!T226,'3c'!T226,'3d'!T226,'3e (voluntary)'!T226))","v":":"},null,{"$f":"IF(COUNT('3a'!V226,'3b'!V226,'3c'!V226,'3d'!V226,'3e (voluntary)'!V226)=0,\":\",SUM('3a'!V226,'3b'!V226,'3c'!V226,'3d'!V226,'3e (voluntary)'!V226))","v":":"},null,{"$f":"IF(COUNT('3a'!X226,'3b'!X226,'3c'!X226,'3d'!X226,'3e (voluntary)'!X226)=0,\":\",SUM('3a'!X226,'3b'!X226,'3c'!X226,'3d'!X226,'3e (voluntary)'!X226))","v":":"},null,{"$f":"IF(COUNT('3a'!Z226,'3b'!Z226,'3c'!Z226,'3d'!Z226,'3e (voluntary)'!Z226)=0,\":\",SUM('3a'!Z226,'3b'!Z226,'3c'!Z226,'3d'!Z226,'3e (voluntary)'!Z226))","v":":"},null,{"$f":"IF(COUNT('3a'!AB226,'3b'!AB226,'3c'!AB226,'3d'!AB226,'3e (voluntary)'!AB226)=0,\":\",SUM('3a'!AB226,'3b'!AB226,'3c'!AB226,'3d'!AB226,'3e (voluntary)'!AB226))","v":":"},null,{"$f":"IF(COUNT('3a'!AD226,'3b'!AD226,'3c'!AD226,'3d'!AD226,'3e (voluntary)'!AD226)=0,\":\",SUM('3a'!AD226,'3b'!AD226,'3c'!AD226,'3d'!AD226,'3e (voluntary)'!AD226))","v":":"},null,{"$f":"IF(COUNT('3a'!AF226,'3b'!AF226,'3c'!AF226,'3d'!AF226,'3e (voluntary)'!AF226)=0,\":\",SUM('3a'!AF226,'3b'!AF226,'3c'!AF226,'3d'!AF226,'3e (voluntary)'!AF226))","v":":"}]
["S11_S12","EP_BUS","TOT_P2_EPS",null,null,null,null,null,2018,{"$f":"IF(COUNT('3a'!J227,'3b'!J227,'3c'!J227,'3d'!J227,'3e (voluntary)'!J227)=0,\":\",SUM('3a'!J227,'3b'!J227,'3c'!J227,'3d'!J227,'3e (voluntary)'!J227))","v":":"},null,{"$f":"IF(COUNT('3a'!L227,'3b'!L227,'3c'!L227,'3d'!L227,'3e (voluntary)'!L227)=0,\":\",SUM('3a'!L227,'3b'!L227,'3c'!L227,'3d'!L227,'3e (voluntary)'!L227))","v":":"},null,{"$f":"IF(COUNT('3a'!N227,'3b'!N227,'3c'!N227,'3d'!N227,'3e (voluntary)'!N227)=0,\":\",SUM('3a'!N227,'3b'!N227,'3c'!N227,'3d'!N227,'3e (voluntary)'!N227))","v":":"},null,{"$f":"IF(COUNT('3a'!P227,'3b'!P227,'3c'!P227,'3d'!P227,'3e (voluntary)'!P227)=0,\":\",SUM('3a'!P227,'3b'!P227,'3c'!P227,'3d'!P227,'3e (voluntary)'!P227))","v":":"},null,{"$f":"IF(COUNT('3a'!R227,'3b'!R227,'3c'!R227,'3d'!R227,'3e (voluntary)'!R227)=0,\":\",SUM('3a'!R227,'3b'!R227,'3c'!R227,'3d'!R227,'3e (voluntary)'!R227))","v":":"},null,{"$f":"IF(COUNT('3a'!T227,'3b'!T227,'3c'!T227,'3d'!T227,'3e (voluntary)'!T227)=0,\":\",SUM('3a'!T227,'3b'!T227,'3c'!T227,'3d'!T227,'3e (voluntary)'!T227))","v":":"},null,{"$f":"IF(COUNT('3a'!V227,'3b'!V227,'3c'!V227,'3d'!V227,'3e (voluntary)'!V227)=0,\":\",SUM('3a'!V227,'3b'!V227,'3c'!V227,'3d'!V227,'3e (voluntary)'!V227))","v":":"},null,{"$f":"IF(COUNT('3a'!X227,'3b'!X227,'3c'!X227,'3d'!X227,'3e (voluntary)'!X227)=0,\":\",SUM('3a'!X227,'3b'!X227,'3c'!X227,'3d'!X227,'3e (voluntary)'!X227))","v":":"},null,{"$f":"IF(COUNT('3a'!Z227,'3b'!Z227,'3c'!Z227,'3d'!Z227,'3e (voluntary)'!Z227)=0,\":\",SUM('3a'!Z227,'3b'!Z227,'3c'!Z227,'3d'!Z227,'3e (voluntary)'!Z227))","v":":"},null,{"$f":"IF(COUNT('3a'!AB227,'3b'!AB227,'3c'!AB227,'3d'!AB227,'3e (voluntary)'!AB227)=0,\":\",SUM('3a'!AB227,'3b'!AB227,'3c'!AB227,'3d'!AB227,'3e (voluntary)'!AB227))","v":":"},null,{"$f":"IF(COUNT('3a'!AD227,'3b'!AD227,'3c'!AD227,'3d'!AD227,'3e (voluntary)'!AD227)=0,\":\",SUM('3a'!AD227,'3b'!AD227,'3c'!AD227,'3d'!AD227,'3e (voluntary)'!AD227))","v":":"},null,{"$f":"IF(COUNT('3a'!AF227,'3b'!AF227,'3c'!AF227,'3d'!AF227,'3e (voluntary)'!AF227)=0,\":\",SUM('3a'!AF227,'3b'!AF227,'3c'!AF227,'3d'!AF227,'3e (voluntary)'!AF227))","v":":"}]
["S11_S12","EP_BUS","TOT_P2_EPS",null,null,null,null,null,2019,{"$f":"IF(COUNT('3a'!J228,'3b'!J228,'3c'!J228,'3d'!J228,'3e (voluntary)'!J228)=0,\":\",SUM('3a'!J228,'3b'!J228,'3c'!J228,'3d'!J228,'3e (voluntary)'!J228))","v":":"},null,{"$f":"IF(COUNT('3a'!L228,'3b'!L228,'3c'!L228,'3d'!L228,'3e (voluntary)'!L228)=0,\":\",SUM('3a'!L228,'3b'!L228,'3c'!L228,'3d'!L228,'3e (voluntary)'!L228))","v":":"},null,{"$f":"IF(COUNT('3a'!N228,'3b'!N228,'3c'!N228,'3d'!N228,'3e (voluntary)'!N228)=0,\":\",SUM('3a'!N228,'3b'!N228,'3c'!N228,'3d'!N228,'3e (voluntary)'!N228))","v":":"},null,{"$f":"IF(COUNT('3a'!P228,'3b'!P228,'3c'!P228,'3d'!P228,'3e (voluntary)'!P228)=0,\":\",SUM('3a'!P228,'3b'!P228,'3c'!P228,'3d'!P228,'3e (voluntary)'!P228))","v":":"},null,{"$f":"IF(COUNT('3a'!R228,'3b'!R228,'3c'!R228,'3d'!R228,'3e (voluntary)'!R228)=0,\":\",SUM('3a'!R228,'3b'!R228,'3c'!R228,'3d'!R228,'3e (voluntary)'!R228))","v":":"},null,{"$f":"IF(COUNT('3a'!T228,'3b'!T228,'3c'!T228,'3d'!T228,'3e (voluntary)'!T228)=0,\":\",SUM('3a'!T228,'3b'!T228,'3c'!T228,'3d'!T228,'3e (voluntary)'!T228))","v":":"},null,{"$f":"IF(COUNT('3a'!V228,'3b'!V228,'3c'!V228,'3d'!V228,'3e (voluntary)'!V228)=0,\":\",SUM('3a'!V228,'3b'!V228,'3c'!V228,'3d'!V228,'3e (voluntary)'!V228))","v":":"},null,{"$f":"IF(COUNT('3a'!X228,'3b'!X228,'3c'!X228,'3d'!X228,'3e (voluntary)'!X228)=0,\":\",SUM('3a'!X228,'3b'!X228,'3c'!X228,'3d'!X228,'3e (voluntary)'!X228))","v":":"},null,{"$f":"IF(COUNT('3a'!Z228,'3b'!Z228,'3c'!Z228,'3d'!Z228,'3e (voluntary)'!Z228)=0,\":\",SUM('3a'!Z228,'3b'!Z228,'3c'!Z228,'3d'!Z228,'3e (voluntary)'!Z228))","v":":"},null,{"$f":"IF(COUNT('3a'!AB228,'3b'!AB228,'3c'!AB228,'3d'!AB228,'3e (voluntary)'!AB228)=0,\":\",SUM('3a'!AB228,'3b'!AB228,'3c'!AB228,'3d'!AB228,'3e (voluntary)'!AB228))","v":":"},null,{"$f":"IF(COUNT('3a'!AD228,'3b'!AD228,'3c'!AD228,'3d'!AD228,'3e (voluntary)'!AD228)=0,\":\",SUM('3a'!AD228,'3b'!AD228,'3c'!AD228,'3d'!AD228,'3e (voluntary)'!AD228))","v":":"},null,{"$f":"IF(COUNT('3a'!AF228,'3b'!AF228,'3c'!AF228,'3d'!AF228,'3e (voluntary)'!AF228)=0,\":\",SUM('3a'!AF228,'3b'!AF228,'3c'!AF228,'3d'!AF228,'3e (voluntary)'!AF228))","v":":"}]
["S11_S12","EP_BUS","TOT_P2_EPS",null,null,null,null,null,2020,{"$f":"IF(COUNT('3a'!J229,'3b'!J229,'3c'!J229,'3d'!J229,'3e (voluntary)'!J229)=0,\":\",SUM('3a'!J229,'3b'!J229,'3c'!J229,'3d'!J229,'3e (voluntary)'!J229))","v":":"},null,{"$f":"IF(COUNT('3a'!L229,'3b'!L229,'3c'!L229,'3d'!L229,'3e (voluntary)'!L229)=0,\":\",SUM('3a'!L229,'3b'!L229,'3c'!L229,'3d'!L229,'3e (voluntary)'!L229))","v":":"},null,{"$f":"IF(COUNT('3a'!N229,'3b'!N229,'3c'!N229,'3d'!N229,'3e (voluntary)'!N229)=0,\":\",SUM('3a'!N229,'3b'!N229,'3c'!N229,'3d'!N229,'3e (voluntary)'!N229))","v":":"},null,{"$f":"IF(COUNT('3a'!P229,'3b'!P229,'3c'!P229,'3d'!P229,'3e (voluntary)'!P229)=0,\":\",SUM('3a'!P229,'3b'!P229,'3c'!P229,'3d'!P229,'3e (voluntary)'!P229))","v":":"},null,{"$f":"IF(COUNT('3a'!R229,'3b'!R229,'3c'!R229,'3d'!R229,'3e (voluntary)'!R229)=0,\":\",SUM('3a'!R229,'3b'!R229,'3c'!R229,'3d'!R229,'3e (voluntary)'!R229))","v":":"},null,{"$f":"IF(COUNT('3a'!T229,'3b'!T229,'3c'!T229,'3d'!T229,'3e (voluntary)'!T229)=0,\":\",SUM('3a'!T229,'3b'!T229,'3c'!T229,'3d'!T229,'3e (voluntary)'!T229))","v":":"},null,{"$f":"IF(COUNT('3a'!V229,'3b'!V229,'3c'!V229,'3d'!V229,'3e (voluntary)'!V229)=0,\":\",SUM('3a'!V229,'3b'!V229,'3c'!V229,'3d'!V229,'3e (voluntary)'!V229))","v":":"},null,{"$f":"IF(COUNT('3a'!X229,'3b'!X229,'3c'!X229,'3d'!X229,'3e (voluntary)'!X229)=0,\":\",SUM('3a'!X229,'3b'!X229,'3c'!X229,'3d'!X229,'3e (voluntary)'!X229))","v":":"},null,{"$f":"IF(COUNT('3a'!Z229,'3b'!Z229,'3c'!Z229,'3d'!Z229,'3e (voluntary)'!Z229)=0,\":\",SUM('3a'!Z229,'3b'!Z229,'3c'!Z229,'3d'!Z229,'3e (voluntary)'!Z229))","v":":"},null,{"$f":"IF(COUNT('3a'!AB229,'3b'!AB229,'3c'!AB229,'3d'!AB229,'3e (voluntary)'!AB229)=0,\":\",SUM('3a'!AB229,'3b'!AB229,'3c'!AB229,'3d'!AB229,'3e (voluntary)'!AB229))","v":":"},null,{"$f":"IF(COUNT('3a'!AD229,'3b'!AD229,'3c'!AD229,'3d'!AD229,'3e (voluntary)'!AD229)=0,\":\",SUM('3a'!AD229,'3b'!AD229,'3c'!AD229,'3d'!AD229,'3e (voluntary)'!AD229))","v":":"},null,{"$f":"IF(COUNT('3a'!AF229,'3b'!AF229,'3c'!AF229,'3d'!AF229,'3e (voluntary)'!AF229)=0,\":\",SUM('3a'!AF229,'3b'!AF229,'3c'!AF229,'3d'!AF229,'3e (voluntary)'!AF229))","v":":"}]
["S11_S12","EP_BUS","TOT_P2_EPS",null,null,null,null,null,2021,{"$f":"IF(COUNT('3a'!J230,'3b'!J230,'3c'!J230,'3d'!J230,'3e (voluntary)'!J230)=0,\":\",SUM('3a'!J230,'3b'!J230,'3c'!J230,'3d'!J230,'3e (voluntary)'!J230))","v":":"},null,{"$f":"IF(COUNT('3a'!L230,'3b'!L230,'3c'!L230,'3d'!L230,'3e (voluntary)'!L230)=0,\":\",SUM('3a'!L230,'3b'!L230,'3c'!L230,'3d'!L230,'3e (voluntary)'!L230))","v":":"},null,{"$f":"IF(COUNT('3a'!N230,'3b'!N230,'3c'!N230,'3d'!N230,'3e (voluntary)'!N230)=0,\":\",SUM('3a'!N230,'3b'!N230,'3c'!N230,'3d'!N230,'3e (voluntary)'!N230))","v":":"},null,{"$f":"IF(COUNT('3a'!P230,'3b'!P230,'3c'!P230,'3d'!P230,'3e (voluntary)'!P230)=0,\":\",SUM('3a'!P230,'3b'!P230,'3c'!P230,'3d'!P230,'3e (voluntary)'!P230))","v":":"},null,{"$f":"IF(COUNT('3a'!R230,'3b'!R230,'3c'!R230,'3d'!R230,'3e (voluntary)'!R230)=0,\":\",SUM('3a'!R230,'3b'!R230,'3c'!R230,'3d'!R230,'3e (voluntary)'!R230))","v":":"},null,{"$f":"IF(COUNT('3a'!T230,'3b'!T230,'3c'!T230,'3d'!T230,'3e (voluntary)'!T230)=0,\":\",SUM('3a'!T230,'3b'!T230,'3c'!T230,'3d'!T230,'3e (voluntary)'!T230))","v":":"},null,{"$f":"IF(COUNT('3a'!V230,'3b'!V230,'3c'!V230,'3d'!V230,'3e (voluntary)'!V230)=0,\":\",SUM('3a'!V230,'3b'!V230,'3c'!V230,'3d'!V230,'3e (voluntary)'!V230))","v":":"},null,{"$f":"IF(COUNT('3a'!X230,'3b'!X230,'3c'!X230,'3d'!X230,'3e (voluntary)'!X230)=0,\":\",SUM('3a'!X230,'3b'!X230,'3c'!X230,'3d'!X230,'3e (voluntary)'!X230))","v":":"},null,{"$f":"IF(COUNT('3a'!Z230,'3b'!Z230,'3c'!Z230,'3d'!Z230,'3e (voluntary)'!Z230)=0,\":\",SUM('3a'!Z230,'3b'!Z230,'3c'!Z230,'3d'!Z230,'3e (voluntary)'!Z230))","v":":"},null,{"$f":"IF(COUNT('3a'!AB230,'3b'!AB230,'3c'!AB230,'3d'!AB230,'3e (voluntary)'!AB230)=0,\":\",SUM('3a'!AB230,'3b'!AB230,'3c'!AB230,'3d'!AB230,'3e (voluntary)'!AB230))","v":":"},null,{"$f":"IF(COUNT('3a'!AD230,'3b'!AD230,'3c'!AD230,'3d'!AD230,'3e (voluntary)'!AD230)=0,\":\",SUM('3a'!AD230,'3b'!AD230,'3c'!AD230,'3d'!AD230,'3e (voluntary)'!AD230))","v":":"},null,{"$f":"IF(COUNT('3a'!AF230,'3b'!AF230,'3c'!AF230,'3d'!AF230,'3e (voluntary)'!AF230)=0,\":\",SUM('3a'!AF230,'3b'!AF230,'3c'!AF230,'3d'!AF230,'3e (voluntary)'!AF230))","v":":"}]
["S11_S12","EP_BUS","TOT_P2_EPS",null,null,null,null,null,2022,{"$f":"IF(COUNT('3a'!J231,'3b'!J231,'3c'!J231,'3d'!J231,'3e (voluntary)'!J231)=0,\":\",SUM('3a'!J231,'3b'!J231,'3c'!J231,'3d'!J231,'3e (voluntary)'!J231))","v":":"},null,{"$f":"IF(COUNT('3a'!L231,'3b'!L231,'3c'!L231,'3d'!L231,'3e (voluntary)'!L231)=0,\":\",SUM('3a'!L231,'3b'!L231,'3c'!L231,'3d'!L231,'3e (voluntary)'!L231))","v":":"},null,{"$f":"IF(COUNT('3a'!N231,'3b'!N231,'3c'!N231,'3d'!N231,'3e (voluntary)'!N231)=0,\":\",SUM('3a'!N231,'3b'!N231,'3c'!N231,'3d'!N231,'3e (voluntary)'!N231))","v":":"},null,{"$f":"IF(COUNT('3a'!P231,'3b'!P231,'3c'!P231,'3d'!P231,'3e (voluntary)'!P231)=0,\":\",SUM('3a'!P231,'3b'!P231,'3c'!P231,'3d'!P231,'3e (voluntary)'!P231))","v":":"},null,{"$f":"IF(COUNT('3a'!R231,'3b'!R231,'3c'!R231,'3d'!R231,'3e (voluntary)'!R231)=0,\":\",SUM('3a'!R231,'3b'!R231,'3c'!R231,'3d'!R231,'3e (voluntary)'!R231))","v":":"},null,{"$f":"IF(COUNT('3a'!T231,'3b'!T231,'3c'!T231,'3d'!T231,'3e (voluntary)'!T231)=0,\":\",SUM('3a'!T231,'3b'!T231,'3c'!T231,'3d'!T231,'3e (voluntary)'!T231))","v":":"},null,{"$f":"IF(COUNT('3a'!V231,'3b'!V231,'3c'!V231,'3d'!V231,'3e (voluntary)'!V231)=0,\":\",SUM('3a'!V231,'3b'!V231,'3c'!V231,'3d'!V231,'3e (voluntary)'!V231))","v":":"},null,{"$f":"IF(COUNT('3a'!X231,'3b'!X231,'3c'!X231,'3d'!X231,'3e (voluntary)'!X231)=0,\":\",SUM('3a'!X231,'3b'!X231,'3c'!X231,'3d'!X231,'3e (voluntary)'!X231))","v":":"},null,{"$f":"IF(COUNT('3a'!Z231,'3b'!Z231,'3c'!Z231,'3d'!Z231,'3e (voluntary)'!Z231)=0,\":\",SUM('3a'!Z231,'3b'!Z231,'3c'!Z231,'3d'!Z231,'3e (voluntary)'!Z231))","v":":"},null,{"$f":"IF(COUNT('3a'!AB231,'3b'!AB231,'3c'!AB231,'3d'!AB231,'3e (voluntary)'!AB231)=0,\":\",SUM('3a'!AB231,'3b'!AB231,'3c'!AB231,'3d'!AB231,'3e (voluntary)'!AB231))","v":":"},null,{"$f":"IF(COUNT('3a'!AD231,'3b'!AD231,'3c'!AD231,'3d'!AD231,'3e (voluntary)'!AD231)=0,\":\",SUM('3a'!AD231,'3b'!AD231,'3c'!AD231,'3d'!AD231,'3e (voluntary)'!AD231))","v":":"},null,{"$f":"IF(COUNT('3a'!AF231,'3b'!AF231,'3c'!AF231,'3d'!AF231,'3e (voluntary)'!AF231)=0,\":\",SUM('3a'!AF231,'3b'!AF231,'3c'!AF231,'3d'!AF231,'3e (voluntary)'!AF231))","v":":"}]
["S11_S12","EP_BUS","TOT_P2_EPS",null,null,null,null,null,2023,{"$f":"IF(COUNT('3a'!J232,'3b'!J232,'3c'!J232,'3d'!J232,'3e (voluntary)'!J232)=0,\":\",SUM('3a'!J232,'3b'!J232,'3c'!J232,'3d'!J232,'3e (voluntary)'!J232))","v":":"},null,{"$f":"IF(COUNT('3a'!L232,'3b'!L232,'3c'!L232,'3d'!L232,'3e (voluntary)'!L232)=0,\":\",SUM('3a'!L232,'3b'!L232,'3c'!L232,'3d'!L232,'3e (voluntary)'!L232))","v":":"},null,{"$f":"IF(COUNT('3a'!N232,'3b'!N232,'3c'!N232,'3d'!N232,'3e (voluntary)'!N232)=0,\":\",SUM('3a'!N232,'3b'!N232,'3c'!N232,'3d'!N232,'3e (voluntary)'!N232))","v":":"},null,{"$f":"IF(COUNT('3a'!P232,'3b'!P232,'3c'!P232,'3d'!P232,'3e (voluntary)'!P232)=0,\":\",SUM('3a'!P232,'3b'!P232,'3c'!P232,'3d'!P232,'3e (voluntary)'!P232))","v":":"},null,{"$f":"IF(COUNT('3a'!R232,'3b'!R232,'3c'!R232,'3d'!R232,'3e (voluntary)'!R232)=0,\":\",SUM('3a'!R232,'3b'!R232,'3c'!R232,'3d'!R232,'3e (voluntary)'!R232))","v":":"},null,{"$f":"IF(COUNT('3a'!T232,'3b'!T232,'3c'!T232,'3d'!T232,'3e (voluntary)'!T232)=0,\":\",SUM('3a'!T232,'3b'!T232,'3c'!T232,'3d'!T232,'3e (voluntary)'!T232))","v":":"},null,{"$f":"IF(COUNT('3a'!V232,'3b'!V232,'3c'!V232,'3d'!V232,'3e (voluntary)'!V232)=0,\":\",SUM('3a'!V232,'3b'!V232,'3c'!V232,'3d'!V232,'3e (voluntary)'!V232))","v":":"},null,{"$f":"IF(COUNT('3a'!X232,'3b'!X232,'3c'!X232,'3d'!X232,'3e (voluntary)'!X232)=0,\":\",SUM('3a'!X232,'3b'!X232,'3c'!X232,'3d'!X232,'3e (voluntary)'!X232))","v":":"},null,{"$f":"IF(COUNT('3a'!Z232,'3b'!Z232,'3c'!Z232,'3d'!Z232,'3e (voluntary)'!Z232)=0,\":\",SUM('3a'!Z232,'3b'!Z232,'3c'!Z232,'3d'!Z232,'3e (voluntary)'!Z232))","v":":"},null,{"$f":"IF(COUNT('3a'!AB232,'3b'!AB232,'3c'!AB232,'3d'!AB232,'3e (voluntary)'!AB232)=0,\":\",SUM('3a'!AB232,'3b'!AB232,'3c'!AB232,'3d'!AB232,'3e (voluntary)'!AB232))","v":":"},null,{"$f":"IF(COUNT('3a'!AD232,'3b'!AD232,'3c'!AD232,'3d'!AD232,'3e (voluntary)'!AD232)=0,\":\",SUM('3a'!AD232,'3b'!AD232,'3c'!AD232,'3d'!AD232,'3e (voluntary)'!AD232))","v":":"},null,{"$f":"IF(COUNT('3a'!AF232,'3b'!AF232,'3c'!AF232,'3d'!AF232,'3e (voluntary)'!AF232)=0,\":\",SUM('3a'!AF232,'3b'!AF232,'3c'!AF232,'3d'!AF232,'3e (voluntary)'!AF232))","v":":"}]
["S11_S12","EP_BUS","TOT_P2_EPS",null,null,null,null,null,2024,{"$f":"IF(COUNT('3a'!J233,'3b'!J233,'3c'!J233,'3d'!J233,'3e (voluntary)'!J233)=0,\":\",SUM('3a'!J233,'3b'!J233,'3c'!J233,'3d'!J233,'3e (voluntary)'!J233))","v":":"},null,{"$f":"IF(COUNT('3a'!L233,'3b'!L233,'3c'!L233,'3d'!L233,'3e (voluntary)'!L233)=0,\":\",SUM('3a'!L233,'3b'!L233,'3c'!L233,'3d'!L233,'3e (voluntary)'!L233))","v":":"},null,{"$f":"IF(COUNT('3a'!N233,'3b'!N233,'3c'!N233,'3d'!N233,'3e (voluntary)'!N233)=0,\":\",SUM('3a'!N233,'3b'!N233,'3c'!N233,'3d'!N233,'3e (voluntary)'!N233))","v":":"},null,{"$f":"IF(COUNT('3a'!P233,'3b'!P233,'3c'!P233,'3d'!P233,'3e (voluntary)'!P233)=0,\":\",SUM('3a'!P233,'3b'!P233,'3c'!P233,'3d'!P233,'3e (voluntary)'!P233))","v":":"},null,{"$f":"IF(COUNT('3a'!R233,'3b'!R233,'3c'!R233,'3d'!R233,'3e (voluntary)'!R233)=0,\":\",SUM('3a'!R233,'3b'!R233,'3c'!R233,'3d'!R233,'3e (voluntary)'!R233))","v":":"},null,{"$f":"IF(COUNT('3a'!T233,'3b'!T233,'3c'!T233,'3d'!T233,'3e (voluntary)'!T233)=0,\":\",SUM('3a'!T233,'3b'!T233,'3c'!T233,'3d'!T233,'3e (voluntary)'!T233))","v":":"},null,{"$f":"IF(COUNT('3a'!V233,'3b'!V233,'3c'!V233,'3d'!V233,'3e (voluntary)'!V233)=0,\":\",SUM('3a'!V233,'3b'!V233,'3c'!V233,'3d'!V233,'3e (voluntary)'!V233))","v":":"},null,{"$f":"IF(COUNT('3a'!X233,'3b'!X233,'3c'!X233,'3d'!X233,'3e (voluntary)'!X233)=0,\":\",SUM('3a'!X233,'3b'!X233,'3c'!X233,'3d'!X233,'3e (voluntary)'!X233))","v":":"},null,{"$f":"IF(COUNT('3a'!Z233,'3b'!Z233,'3c'!Z233,'3d'!Z233,'3e (voluntary)'!Z233)=0,\":\",SUM('3a'!Z233,'3b'!Z233,'3c'!Z233,'3d'!Z233,'3e (voluntary)'!Z233))","v":":"},null,{"$f":"IF(COUNT('3a'!AB233,'3b'!AB233,'3c'!AB233,'3d'!AB233,'3e (voluntary)'!AB233)=0,\":\",SUM('3a'!AB233,'3b'!AB233,'3c'!AB233,'3d'!AB233,'3e (voluntary)'!AB233))","v":":"},null,{"$f":"IF(COUNT('3a'!AD233,'3b'!AD233,'3c'!AD233,'3d'!AD233,'3e (voluntary)'!AD233)=0,\":\",SUM('3a'!AD233,'3b'!AD233,'3c'!AD233,'3d'!AD233,'3e (voluntary)'!AD233))","v":":"},null,{"$f":"IF(COUNT('3a'!AF233,'3b'!AF233,'3c'!AF233,'3d'!AF233,'3e (voluntary)'!AF233)=0,\":\",SUM('3a'!AF233,'3b'!AF233,'3c'!AF233,'3d'!AF233,'3e (voluntary)'!AF233))","v":":"}]
["S11_S12","EP_BUS","TOT_P2_EPS",null,null,null,null,null,2025,{"$f":"IF(COUNT('3a'!J234,'3b'!J234,'3c'!J234,'3d'!J234,'3e (voluntary)'!J234)=0,\":\",SUM('3a'!J234,'3b'!J234,'3c'!J234,'3d'!J234,'3e (voluntary)'!J234))","v":":"},null,{"$f":"IF(COUNT('3a'!L234,'3b'!L234,'3c'!L234,'3d'!L234,'3e (voluntary)'!L234)=0,\":\",SUM('3a'!L234,'3b'!L234,'3c'!L234,'3d'!L234,'3e (voluntary)'!L234))","v":":"},null,{"$f":"IF(COUNT('3a'!N234,'3b'!N234,'3c'!N234,'3d'!N234,'3e (voluntary)'!N234)=0,\":\",SUM('3a'!N234,'3b'!N234,'3c'!N234,'3d'!N234,'3e (voluntary)'!N234))","v":":"},null,{"$f":"IF(COUNT('3a'!P234,'3b'!P234,'3c'!P234,'3d'!P234,'3e (voluntary)'!P234)=0,\":\",SUM('3a'!P234,'3b'!P234,'3c'!P234,'3d'!P234,'3e (voluntary)'!P234))","v":":"},null,{"$f":"IF(COUNT('3a'!R234,'3b'!R234,'3c'!R234,'3d'!R234,'3e (voluntary)'!R234)=0,\":\",SUM('3a'!R234,'3b'!R234,'3c'!R234,'3d'!R234,'3e (voluntary)'!R234))","v":":"},null,{"$f":"IF(COUNT('3a'!T234,'3b'!T234,'3c'!T234,'3d'!T234,'3e (voluntary)'!T234)=0,\":\",SUM('3a'!T234,'3b'!T234,'3c'!T234,'3d'!T234,'3e (voluntary)'!T234))","v":":"},null,{"$f":"IF(COUNT('3a'!V234,'3b'!V234,'3c'!V234,'3d'!V234,'3e (voluntary)'!V234)=0,\":\",SUM('3a'!V234,'3b'!V234,'3c'!V234,'3d'!V234,'3e (voluntary)'!V234))","v":":"},null,{"$f":"IF(COUNT('3a'!X234,'3b'!X234,'3c'!X234,'3d'!X234,'3e (voluntary)'!X234)=0,\":\",SUM('3a'!X234,'3b'!X234,'3c'!X234,'3d'!X234,'3e (voluntary)'!X234))","v":":"},null,{"$f":"IF(COUNT('3a'!Z234,'3b'!Z234,'3c'!Z234,'3d'!Z234,'3e (voluntary)'!Z234)=0,\":\",SUM('3a'!Z234,'3b'!Z234,'3c'!Z234,'3d'!Z234,'3e (voluntary)'!Z234))","v":":"},null,{"$f":"IF(COUNT('3a'!AB234,'3b'!AB234,'3c'!AB234,'3d'!AB234,'3e (voluntary)'!AB234)=0,\":\",SUM('3a'!AB234,'3b'!AB234,'3c'!AB234,'3d'!AB234,'3e (voluntary)'!AB234))","v":":"},null,{"$f":"IF(COUNT('3a'!AD234,'3b'!AD234,'3c'!AD234,'3d'!AD234,'3e (voluntary)'!AD234)=0,\":\",SUM('3a'!AD234,'3b'!AD234,'3c'!AD234,'3d'!AD234,'3e (voluntary)'!AD234))","v":":"},null,{"$f":"IF(COUNT('3a'!AF234,'3b'!AF234,'3c'!AF234,'3d'!AF234,'3e (voluntary)'!AF234)=0,\":\",SUM('3a'!AF234,'3b'!AF234,'3c'!AF234,'3d'!AF234,'3e (voluntary)'!AF234))","v":":"}]
["S11_S12","EP_BUS","TOT_P2_EPS",null,null,null,null,null,2026,{"$f":"IF(COUNT('3a'!J235,'3b'!J235,'3c'!J235,'3d'!J235,'3e (voluntary)'!J235)=0,\":\",SUM('3a'!J235,'3b'!J235,'3c'!J235,'3d'!J235,'3e (voluntary)'!J235))","v":":"},null,{"$f":"IF(COUNT('3a'!L235,'3b'!L235,'3c'!L235,'3d'!L235,'3e (voluntary)'!L235)=0,\":\",SUM('3a'!L235,'3b'!L235,'3c'!L235,'3d'!L235,'3e (voluntary)'!L235))","v":":"},null,{"$f":"IF(COUNT('3a'!N235,'3b'!N235,'3c'!N235,'3d'!N235,'3e (voluntary)'!N235)=0,\":\",SUM('3a'!N235,'3b'!N235,'3c'!N235,'3d'!N235,'3e (voluntary)'!N235))","v":":"},null,{"$f":"IF(COUNT('3a'!P235,'3b'!P235,'3c'!P235,'3d'!P235,'3e (voluntary)'!P235)=0,\":\",SUM('3a'!P235,'3b'!P235,'3c'!P235,'3d'!P235,'3e (voluntary)'!P235))","v":":"},null,{"$f":"IF(COUNT('3a'!R235,'3b'!R235,'3c'!R235,'3d'!R235,'3e (voluntary)'!R235)=0,\":\",SUM('3a'!R235,'3b'!R235,'3c'!R235,'3d'!R235,'3e (voluntary)'!R235))","v":":"},null,{"$f":"IF(COUNT('3a'!T235,'3b'!T235,'3c'!T235,'3d'!T235,'3e (voluntary)'!T235)=0,\":\",SUM('3a'!T235,'3b'!T235,'3c'!T235,'3d'!T235,'3e (voluntary)'!T235))","v":":"},null,{"$f":"IF(COUNT('3a'!V235,'3b'!V235,'3c'!V235,'3d'!V235,'3e (voluntary)'!V235)=0,\":\",SUM('3a'!V235,'3b'!V235,'3c'!V235,'3d'!V235,'3e (voluntary)'!V235))","v":":"},null,{"$f":"IF(COUNT('3a'!X235,'3b'!X235,'3c'!X235,'3d'!X235,'3e (voluntary)'!X235)=0,\":\",SUM('3a'!X235,'3b'!X235,'3c'!X235,'3d'!X235,'3e (voluntary)'!X235))","v":":"},null,{"$f":"IF(COUNT('3a'!Z235,'3b'!Z235,'3c'!Z235,'3d'!Z235,'3e (voluntary)'!Z235)=0,\":\",SUM('3a'!Z235,'3b'!Z235,'3c'!Z235,'3d'!Z235,'3e (voluntary)'!Z235))","v":":"},null,{"$f":"IF(COUNT('3a'!AB235,'3b'!AB235,'3c'!AB235,'3d'!AB235,'3e (voluntary)'!AB235)=0,\":\",SUM('3a'!AB235,'3b'!AB235,'3c'!AB235,'3d'!AB235,'3e (voluntary)'!AB235))","v":":"},null,{"$f":"IF(COUNT('3a'!AD235,'3b'!AD235,'3c'!AD235,'3d'!AD235,'3e (voluntary)'!AD235)=0,\":\",SUM('3a'!AD235,'3b'!AD235,'3c'!AD235,'3d'!AD235,'3e (voluntary)'!AD235))","v":":"},null,{"$f":"IF(COUNT('3a'!AF235,'3b'!AF235,'3c'!AF235,'3d'!AF235,'3e (voluntary)'!AF235)=0,\":\",SUM('3a'!AF235,'3b'!AF235,'3c'!AF235,'3d'!AF235,'3e (voluntary)'!AF235))","v":":"}]
["S11_S12","EP_BUS","TOT_P2_EPS",null,null,null,null,null,2027,{"$f":"IF(COUNT('3a'!J236,'3b'!J236,'3c'!J236,'3d'!J236,'3e (voluntary)'!J236)=0,\":\",SUM('3a'!J236,'3b'!J236,'3c'!J236,'3d'!J236,'3e (voluntary)'!J236))","v":":"},null,{"$f":"IF(COUNT('3a'!L236,'3b'!L236,'3c'!L236,'3d'!L236,'3e (voluntary)'!L236)=0,\":\",SUM('3a'!L236,'3b'!L236,'3c'!L236,'3d'!L236,'3e (voluntary)'!L236))","v":":"},null,{"$f":"IF(COUNT('3a'!N236,'3b'!N236,'3c'!N236,'3d'!N236,'3e (voluntary)'!N236)=0,\":\",SUM('3a'!N236,'3b'!N236,'3c'!N236,'3d'!N236,'3e (voluntary)'!N236))","v":":"},null,{"$f":"IF(COUNT('3a'!P236,'3b'!P236,'3c'!P236,'3d'!P236,'3e (voluntary)'!P236)=0,\":\",SUM('3a'!P236,'3b'!P236,'3c'!P236,'3d'!P236,'3e (voluntary)'!P236))","v":":"},null,{"$f":"IF(COUNT('3a'!R236,'3b'!R236,'3c'!R236,'3d'!R236,'3e (voluntary)'!R236)=0,\":\",SUM('3a'!R236,'3b'!R236,'3c'!R236,'3d'!R236,'3e (voluntary)'!R236))","v":":"},null,{"$f":"IF(COUNT('3a'!T236,'3b'!T236,'3c'!T236,'3d'!T236,'3e (voluntary)'!T236)=0,\":\",SUM('3a'!T236,'3b'!T236,'3c'!T236,'3d'!T236,'3e (voluntary)'!T236))","v":":"},null,{"$f":"IF(COUNT('3a'!V236,'3b'!V236,'3c'!V236,'3d'!V236,'3e (voluntary)'!V236)=0,\":\",SUM('3a'!V236,'3b'!V236,'3c'!V236,'3d'!V236,'3e (voluntary)'!V236))","v":":"},null,{"$f":"IF(COUNT('3a'!X236,'3b'!X236,'3c'!X236,'3d'!X236,'3e (voluntary)'!X236)=0,\":\",SUM('3a'!X236,'3b'!X236,'3c'!X236,'3d'!X236,'3e (voluntary)'!X236))","v":":"},null,{"$f":"IF(COUNT('3a'!Z236,'3b'!Z236,'3c'!Z236,'3d'!Z236,'3e (voluntary)'!Z236)=0,\":\",SUM('3a'!Z236,'3b'!Z236,'3c'!Z236,'3d'!Z236,'3e (voluntary)'!Z236))","v":":"},null,{"$f":"IF(COUNT('3a'!AB236,'3b'!AB236,'3c'!AB236,'3d'!AB236,'3e (voluntary)'!AB236)=0,\":\",SUM('3a'!AB236,'3b'!AB236,'3c'!AB236,'3d'!AB236,'3e (voluntary)'!AB236))","v":":"},null,{"$f":"IF(COUNT('3a'!AD236,'3b'!AD236,'3c'!AD236,'3d'!AD236,'3e (voluntary)'!AD236)=0,\":\",SUM('3a'!AD236,'3b'!AD236,'3c'!AD236,'3d'!AD236,'3e (voluntary)'!AD236))","v":":"},null,{"$f":"IF(COUNT('3a'!AF236,'3b'!AF236,'3c'!AF236,'3d'!AF236,'3e (voluntary)'!AF236)=0,\":\",SUM('3a'!AF236,'3b'!AF236,'3c'!AF236,'3d'!AF236,'3e (voluntary)'!AF236))","v":":"}]
["S11_S12","EP_BUS","TOT_P2_EPS",null,null,null,null,null,2028,{"$f":"IF(COUNT('3a'!J237,'3b'!J237,'3c'!J237,'3d'!J237,'3e (voluntary)'!J237)=0,\":\",SUM('3a'!J237,'3b'!J237,'3c'!J237,'3d'!J237,'3e (voluntary)'!J237))","v":":"},null,{"$f":"IF(COUNT('3a'!L237,'3b'!L237,'3c'!L237,'3d'!L237,'3e (voluntary)'!L237)=0,\":\",SUM('3a'!L237,'3b'!L237,'3c'!L237,'3d'!L237,'3e (voluntary)'!L237))","v":":"},null,{"$f":"IF(COUNT('3a'!N237,'3b'!N237,'3c'!N237,'3d'!N237,'3e (voluntary)'!N237)=0,\":\",SUM('3a'!N237,'3b'!N237,'3c'!N237,'3d'!N237,'3e (voluntary)'!N237))","v":":"},null,{"$f":"IF(COUNT('3a'!P237,'3b'!P237,'3c'!P237,'3d'!P237,'3e (voluntary)'!P237)=0,\":\",SUM('3a'!P237,'3b'!P237,'3c'!P237,'3d'!P237,'3e (voluntary)'!P237))","v":":"},null,{"$f":"IF(COUNT('3a'!R237,'3b'!R237,'3c'!R237,'3d'!R237,'3e (voluntary)'!R237)=0,\":\",SUM('3a'!R237,'3b'!R237,'3c'!R237,'3d'!R237,'3e (voluntary)'!R237))","v":":"},null,{"$f":"IF(COUNT('3a'!T237,'3b'!T237,'3c'!T237,'3d'!T237,'3e (voluntary)'!T237)=0,\":\",SUM('3a'!T237,'3b'!T237,'3c'!T237,'3d'!T237,'3e (voluntary)'!T237))","v":":"},null,{"$f":"IF(COUNT('3a'!V237,'3b'!V237,'3c'!V237,'3d'!V237,'3e (voluntary)'!V237)=0,\":\",SUM('3a'!V237,'3b'!V237,'3c'!V237,'3d'!V237,'3e (voluntary)'!V237))","v":":"},null,{"$f":"IF(COUNT('3a'!X237,'3b'!X237,'3c'!X237,'3d'!X237,'3e (voluntary)'!X237)=0,\":\",SUM('3a'!X237,'3b'!X237,'3c'!X237,'3d'!X237,'3e (voluntary)'!X237))","v":":"},null,{"$f":"IF(COUNT('3a'!Z237,'3b'!Z237,'3c'!Z237,'3d'!Z237,'3e (voluntary)'!Z237)=0,\":\",SUM('3a'!Z237,'3b'!Z237,'3c'!Z237,'3d'!Z237,'3e (voluntary)'!Z237))","v":":"},null,{"$f":"IF(COUNT('3a'!AB237,'3b'!AB237,'3c'!AB237,'3d'!AB237,'3e (voluntary)'!AB237)=0,\":\",SUM('3a'!AB237,'3b'!AB237,'3c'!AB237,'3d'!AB237,'3e (voluntary)'!AB237))","v":":"},null,{"$f":"IF(COUNT('3a'!AD237,'3b'!AD237,'3c'!AD237,'3d'!AD237,'3e (voluntary)'!AD237)=0,\":\",SUM('3a'!AD237,'3b'!AD237,'3c'!AD237,'3d'!AD237,'3e (voluntary)'!AD237))","v":":"},null,{"$f":"IF(COUNT('3a'!AF237,'3b'!AF237,'3c'!AF237,'3d'!AF237,'3e (voluntary)'!AF237)=0,\":\",SUM('3a'!AF237,'3b'!AF237,'3c'!AF237,'3d'!AF237,'3e (voluntary)'!AF237))","v":":"}]
["S11_S12","EP_BUS","TOT_P2_EPS",null,null,null,null,null,2029,{"$f":"IF(COUNT('3a'!J238,'3b'!J238,'3c'!J238,'3d'!J238,'3e (voluntary)'!J238)=0,\":\",SUM('3a'!J238,'3b'!J238,'3c'!J238,'3d'!J238,'3e (voluntary)'!J238))","v":":"},null,{"$f":"IF(COUNT('3a'!L238,'3b'!L238,'3c'!L238,'3d'!L238,'3e (voluntary)'!L238)=0,\":\",SUM('3a'!L238,'3b'!L238,'3c'!L238,'3d'!L238,'3e (voluntary)'!L238))","v":":"},null,{"$f":"IF(COUNT('3a'!N238,'3b'!N238,'3c'!N238,'3d'!N238,'3e (voluntary)'!N238)=0,\":\",SUM('3a'!N238,'3b'!N238,'3c'!N238,'3d'!N238,'3e (voluntary)'!N238))","v":":"},null,{"$f":"IF(COUNT('3a'!P238,'3b'!P238,'3c'!P238,'3d'!P238,'3e (voluntary)'!P238)=0,\":\",SUM('3a'!P238,'3b'!P238,'3c'!P238,'3d'!P238,'3e (voluntary)'!P238))","v":":"},null,{"$f":"IF(COUNT('3a'!R238,'3b'!R238,'3c'!R238,'3d'!R238,'3e (voluntary)'!R238)=0,\":\",SUM('3a'!R238,'3b'!R238,'3c'!R238,'3d'!R238,'3e (voluntary)'!R238))","v":":"},null,{"$f":"IF(COUNT('3a'!T238,'3b'!T238,'3c'!T238,'3d'!T238,'3e (voluntary)'!T238)=0,\":\",SUM('3a'!T238,'3b'!T238,'3c'!T238,'3d'!T238,'3e (voluntary)'!T238))","v":":"},null,{"$f":"IF(COUNT('3a'!V238,'3b'!V238,'3c'!V238,'3d'!V238,'3e (voluntary)'!V238)=0,\":\",SUM('3a'!V238,'3b'!V238,'3c'!V238,'3d'!V238,'3e (voluntary)'!V238))","v":":"},null,{"$f":"IF(COUNT('3a'!X238,'3b'!X238,'3c'!X238,'3d'!X238,'3e (voluntary)'!X238)=0,\":\",SUM('3a'!X238,'3b'!X238,'3c'!X238,'3d'!X238,'3e (voluntary)'!X238))","v":":"},null,{"$f":"IF(COUNT('3a'!Z238,'3b'!Z238,'3c'!Z238,'3d'!Z238,'3e (voluntary)'!Z238)=0,\":\",SUM('3a'!Z238,'3b'!Z238,'3c'!Z238,'3d'!Z238,'3e (voluntary)'!Z238))","v":":"},null,{"$f":"IF(COUNT('3a'!AB238,'3b'!AB238,'3c'!AB238,'3d'!AB238,'3e (voluntary)'!AB238)=0,\":\",SUM('3a'!AB238,'3b'!AB238,'3c'!AB238,'3d'!AB238,'3e (voluntary)'!AB238))","v":":"},null,{"$f":"IF(COUNT('3a'!AD238,'3b'!AD238,'3c'!AD238,'3d'!AD238,'3e (voluntary)'!AD238)=0,\":\",SUM('3a'!AD238,'3b'!AD238,'3c'!AD238,'3d'!AD238,'3e (voluntary)'!AD238))","v":":"},null,{"$f":"IF(COUNT('3a'!AF238,'3b'!AF238,'3c'!AF238,'3d'!AF238,'3e (voluntary)'!AF238)=0,\":\",SUM('3a'!AF238,'3b'!AF238,'3c'!AF238,'3d'!AF238,'3e (voluntary)'!AF238))","v":":"}]
["S11_S12","EP_BUS","TOT_P2_EPS",null,null,null,null,null,2030,{"$f":"IF(COUNT('3a'!J239,'3b'!J239,'3c'!J239,'3d'!J239,'3e (voluntary)'!J239)=0,\":\",SUM('3a'!J239,'3b'!J239,'3c'!J239,'3d'!J239,'3e (voluntary)'!J239))","v":":"},null,{"$f":"IF(COUNT('3a'!L239,'3b'!L239,'3c'!L239,'3d'!L239,'3e (voluntary)'!L239)=0,\":\",SUM('3a'!L239,'3b'!L239,'3c'!L239,'3d'!L239,'3e (voluntary)'!L239))","v":":"},null,{"$f":"IF(COUNT('3a'!N239,'3b'!N239,'3c'!N239,'3d'!N239,'3e (voluntary)'!N239)=0,\":\",SUM('3a'!N239,'3b'!N239,'3c'!N239,'3d'!N239,'3e (voluntary)'!N239))","v":":"},null,{"$f":"IF(COUNT('3a'!P239,'3b'!P239,'3c'!P239,'3d'!P239,'3e (voluntary)'!P239)=0,\":\",SUM('3a'!P239,'3b'!P239,'3c'!P239,'3d'!P239,'3e (voluntary)'!P239))","v":":"},null,{"$f":"IF(COUNT('3a'!R239,'3b'!R239,'3c'!R239,'3d'!R239,'3e (voluntary)'!R239)=0,\":\",SUM('3a'!R239,'3b'!R239,'3c'!R239,'3d'!R239,'3e (voluntary)'!R239))","v":":"},null,{"$f":"IF(COUNT('3a'!T239,'3b'!T239,'3c'!T239,'3d'!T239,'3e (voluntary)'!T239)=0,\":\",SUM('3a'!T239,'3b'!T239,'3c'!T239,'3d'!T239,'3e (voluntary)'!T239))","v":":"},null,{"$f":"IF(COUNT('3a'!V239,'3b'!V239,'3c'!V239,'3d'!V239,'3e (voluntary)'!V239)=0,\":\",SUM('3a'!V239,'3b'!V239,'3c'!V239,'3d'!V239,'3e (voluntary)'!V239))","v":":"},null,{"$f":"IF(COUNT('3a'!X239,'3b'!X239,'3c'!X239,'3d'!X239,'3e (voluntary)'!X239)=0,\":\",SUM('3a'!X239,'3b'!X239,'3c'!X239,'3d'!X239,'3e (voluntary)'!X239))","v":":"},null,{"$f":"IF(COUNT('3a'!Z239,'3b'!Z239,'3c'!Z239,'3d'!Z239,'3e (voluntary)'!Z239)=0,\":\",SUM('3a'!Z239,'3b'!Z239,'3c'!Z239,'3d'!Z239,'3e (voluntary)'!Z239))","v":":"},null,{"$f":"IF(COUNT('3a'!AB239,'3b'!AB239,'3c'!AB239,'3d'!AB239,'3e (voluntary)'!AB239)=0,\":\",SUM('3a'!AB239,'3b'!AB239,'3c'!AB239,'3d'!AB239,'3e (voluntary)'!AB239))","v":":"},null,{"$f":"IF(COUNT('3a'!AD239,'3b'!AD239,'3c'!AD239,'3d'!AD239,'3e (voluntary)'!AD239)=0,\":\",SUM('3a'!AD239,'3b'!AD239,'3c'!AD239,'3d'!AD239,'3e (voluntary)'!AD239))","v":":"},null,{"$f":"IF(COUNT('3a'!AF239,'3b'!AF239,'3c'!AF239,'3d'!AF239,'3e (voluntary)'!AF239)=0,\":\",SUM('3a'!AF239,'3b'!AF239,'3c'!AF239,'3d'!AF239,'3e (voluntary)'!AF239))","v":":"}]
["S11_S12","EP_BUS","TOT_P2_EPS",null,null,null,null,null,2031,{"$f":"IF(COUNT('3a'!J240,'3b'!J240,'3c'!J240,'3d'!J240,'3e (voluntary)'!J240)=0,\":\",SUM('3a'!J240,'3b'!J240,'3c'!J240,'3d'!J240,'3e (voluntary)'!J240))","v":":"},null,{"$f":"IF(COUNT('3a'!L240,'3b'!L240,'3c'!L240,'3d'!L240,'3e (voluntary)'!L240)=0,\":\",SUM('3a'!L240,'3b'!L240,'3c'!L240,'3d'!L240,'3e (voluntary)'!L240))","v":":"},null,{"$f":"IF(COUNT('3a'!N240,'3b'!N240,'3c'!N240,'3d'!N240,'3e (voluntary)'!N240)=0,\":\",SUM('3a'!N240,'3b'!N240,'3c'!N240,'3d'!N240,'3e (voluntary)'!N240))","v":":"},null,{"$f":"IF(COUNT('3a'!P240,'3b'!P240,'3c'!P240,'3d'!P240,'3e (voluntary)'!P240)=0,\":\",SUM('3a'!P240,'3b'!P240,'3c'!P240,'3d'!P240,'3e (voluntary)'!P240))","v":":"},null,{"$f":"IF(COUNT('3a'!R240,'3b'!R240,'3c'!R240,'3d'!R240,'3e (voluntary)'!R240)=0,\":\",SUM('3a'!R240,'3b'!R240,'3c'!R240,'3d'!R240,'3e (voluntary)'!R240))","v":":"},null,{"$f":"IF(COUNT('3a'!T240,'3b'!T240,'3c'!T240,'3d'!T240,'3e (voluntary)'!T240)=0,\":\",SUM('3a'!T240,'3b'!T240,'3c'!T240,'3d'!T240,'3e (voluntary)'!T240))","v":":"},null,{"$f":"IF(COUNT('3a'!V240,'3b'!V240,'3c'!V240,'3d'!V240,'3e (voluntary)'!V240)=0,\":\",SUM('3a'!V240,'3b'!V240,'3c'!V240,'3d'!V240,'3e (voluntary)'!V240))","v":":"},null,{"$f":"IF(COUNT('3a'!X240,'3b'!X240,'3c'!X240,'3d'!X240,'3e (voluntary)'!X240)=0,\":\",SUM('3a'!X240,'3b'!X240,'3c'!X240,'3d'!X240,'3e (voluntary)'!X240))","v":":"},null,{"$f":"IF(COUNT('3a'!Z240,'3b'!Z240,'3c'!Z240,'3d'!Z240,'3e (voluntary)'!Z240)=0,\":\",SUM('3a'!Z240,'3b'!Z240,'3c'!Z240,'3d'!Z240,'3e (voluntary)'!Z240))","v":":"},null,{"$f":"IF(COUNT('3a'!AB240,'3b'!AB240,'3c'!AB240,'3d'!AB240,'3e (voluntary)'!AB240)=0,\":\",SUM('3a'!AB240,'3b'!AB240,'3c'!AB240,'3d'!AB240,'3e (voluntary)'!AB240))","v":":"},null,{"$f":"IF(COUNT('3a'!AD240,'3b'!AD240,'3c'!AD240,'3d'!AD240,'3e (voluntary)'!AD240)=0,\":\",SUM('3a'!AD240,'3b'!AD240,'3c'!AD240,'3d'!AD240,'3e (voluntary)'!AD240))","v":":"},null,{"$f":"IF(COUNT('3a'!AF240,'3b'!AF240,'3c'!AF240,'3d'!AF240,'3e (voluntary)'!AF240)=0,\":\",SUM('3a'!AF240,'3b'!AF240,'3c'!AF240,'3d'!AF240,'3e (voluntary)'!AF240))","v":":"}]
["S11_S12","EP_BUS","EPS_EMP","Transactions of producers of ancillary EP services","( EMP.3 ) Employment (Full time equivalents)",null,null,null,2014,{"$f":"IF(COUNT('3a'!J241,'3b'!J241,'3c'!J241,'3d'!J241,'3e (voluntary)'!J241)=0,\":\",SUM('3a'!J241,'3b'!J241,'3c'!J241,'3d'!J241,'3e (voluntary)'!J241))","v":":"},null,{"$f":"IF(COUNT('3a'!L241,'3b'!L241,'3c'!L241,'3d'!L241,'3e (voluntary)'!L241)=0,\":\",SUM('3a'!L241,'3b'!L241,'3c'!L241,'3d'!L241,'3e (voluntary)'!L241))","v":":"},null,{"$f":"IF(COUNT('3a'!N241,'3b'!N241,'3c'!N241,'3d'!N241,'3e (voluntary)'!N241)=0,\":\",SUM('3a'!N241,'3b'!N241,'3c'!N241,'3d'!N241,'3e (voluntary)'!N241))","v":":"},null,{"$f":"IF(COUNT('3a'!P241,'3b'!P241,'3c'!P241,'3d'!P241,'3e (voluntary)'!P241)=0,\":\",SUM('3a'!P241,'3b'!P241,'3c'!P241,'3d'!P241,'3e (voluntary)'!P241))","v":":"},null,{"$f":"IF(COUNT('3a'!R241,'3b'!R241,'3c'!R241,'3d'!R241,'3e (voluntary)'!R241)=0,\":\",SUM('3a'!R241,'3b'!R241,'3c'!R241,'3d'!R241,'3e (voluntary)'!R241))","v":":"},null,{"$f":"IF(COUNT('3a'!T241,'3b'!T241,'3c'!T241,'3d'!T241,'3e (voluntary)'!T241)=0,\":\",SUM('3a'!T241,'3b'!T241,'3c'!T241,'3d'!T241,'3e (voluntary)'!T241))","v":":"},null,{"$f":"IF(COUNT('3a'!V241,'3b'!V241,'3c'!V241,'3d'!V241,'3e (voluntary)'!V241)=0,\":\",SUM('3a'!V241,'3b'!V241,'3c'!V241,'3d'!V241,'3e (voluntary)'!V241))","v":":"},null,{"$f":"IF(COUNT('3a'!X241,'3b'!X241,'3c'!X241,'3d'!X241,'3e (voluntary)'!X241)=0,\":\",SUM('3a'!X241,'3b'!X241,'3c'!X241,'3d'!X241,'3e (voluntary)'!X241))","v":":"},null,{"$f":"IF(COUNT('3a'!Z241,'3b'!Z241,'3c'!Z241,'3d'!Z241,'3e (voluntary)'!Z241)=0,\":\",SUM('3a'!Z241,'3b'!Z241,'3c'!Z241,'3d'!Z241,'3e (voluntary)'!Z241))","v":":"},null,{"$f":"IF(COUNT('3a'!AB241,'3b'!AB241,'3c'!AB241,'3d'!AB241,'3e (voluntary)'!AB241)=0,\":\",SUM('3a'!AB241,'3b'!AB241,'3c'!AB241,'3d'!AB241,'3e (voluntary)'!AB241))","v":":"},null,{"$f":"IF(COUNT('3a'!AD241,'3b'!AD241,'3c'!AD241,'3d'!AD241,'3e (voluntary)'!AD241)=0,\":\",SUM('3a'!AD241,'3b'!AD241,'3c'!AD241,'3d'!AD241,'3e (voluntary)'!AD241))","v":":"},null,{"$f":"IF(COUNT('3a'!AF241,'3b'!AF241,'3c'!AF241,'3d'!AF241,'3e (voluntary)'!AF241)=0,\":\",SUM('3a'!AF241,'3b'!AF241,'3c'!AF241,'3d'!AF241,'3e (voluntary)'!AF241))","v":":"}]
["S11_S12","EP_BUS","EPS_EMP",null,null,null,null,null,2015,{"$f":"IF(COUNT('3a'!J242,'3b'!J242,'3c'!J242,'3d'!J242,'3e (voluntary)'!J242)=0,\":\",SUM('3a'!J242,'3b'!J242,'3c'!J242,'3d'!J242,'3e (voluntary)'!J242))","v":":"},null,{"$f":"IF(COUNT('3a'!L242,'3b'!L242,'3c'!L242,'3d'!L242,'3e (voluntary)'!L242)=0,\":\",SUM('3a'!L242,'3b'!L242,'3c'!L242,'3d'!L242,'3e (voluntary)'!L242))","v":":"},null,{"$f":"IF(COUNT('3a'!N242,'3b'!N242,'3c'!N242,'3d'!N242,'3e (voluntary)'!N242)=0,\":\",SUM('3a'!N242,'3b'!N242,'3c'!N242,'3d'!N242,'3e (voluntary)'!N242))","v":":"},null,{"$f":"IF(COUNT('3a'!P242,'3b'!P242,'3c'!P242,'3d'!P242,'3e (voluntary)'!P242)=0,\":\",SUM('3a'!P242,'3b'!P242,'3c'!P242,'3d'!P242,'3e (voluntary)'!P242))","v":":"},null,{"$f":"IF(COUNT('3a'!R242,'3b'!R242,'3c'!R242,'3d'!R242,'3e (voluntary)'!R242)=0,\":\",SUM('3a'!R242,'3b'!R242,'3c'!R242,'3d'!R242,'3e (voluntary)'!R242))","v":":"},null,{"$f":"IF(COUNT('3a'!T242,'3b'!T242,'3c'!T242,'3d'!T242,'3e (voluntary)'!T242)=0,\":\",SUM('3a'!T242,'3b'!T242,'3c'!T242,'3d'!T242,'3e (voluntary)'!T242))","v":":"},null,{"$f":"IF(COUNT('3a'!V242,'3b'!V242,'3c'!V242,'3d'!V242,'3e (voluntary)'!V242)=0,\":\",SUM('3a'!V242,'3b'!V242,'3c'!V242,'3d'!V242,'3e (voluntary)'!V242))","v":":"},null,{"$f":"IF(COUNT('3a'!X242,'3b'!X242,'3c'!X242,'3d'!X242,'3e (voluntary)'!X242)=0,\":\",SUM('3a'!X242,'3b'!X242,'3c'!X242,'3d'!X242,'3e (voluntary)'!X242))","v":":"},null,{"$f":"IF(COUNT('3a'!Z242,'3b'!Z242,'3c'!Z242,'3d'!Z242,'3e (voluntary)'!Z242)=0,\":\",SUM('3a'!Z242,'3b'!Z242,'3c'!Z242,'3d'!Z242,'3e (voluntary)'!Z242))","v":":"},null,{"$f":"IF(COUNT('3a'!AB242,'3b'!AB242,'3c'!AB242,'3d'!AB242,'3e (voluntary)'!AB242)=0,\":\",SUM('3a'!AB242,'3b'!AB242,'3c'!AB242,'3d'!AB242,'3e (voluntary)'!AB242))","v":":"},null,{"$f":"IF(COUNT('3a'!AD242,'3b'!AD242,'3c'!AD242,'3d'!AD242,'3e (voluntary)'!AD242)=0,\":\",SUM('3a'!AD242,'3b'!AD242,'3c'!AD242,'3d'!AD242,'3e (voluntary)'!AD242))","v":":"},null,{"$f":"IF(COUNT('3a'!AF242,'3b'!AF242,'3c'!AF242,'3d'!AF242,'3e (voluntary)'!AF242)=0,\":\",SUM('3a'!AF242,'3b'!AF242,'3c'!AF242,'3d'!AF242,'3e (voluntary)'!AF242))","v":":"}]
["S11_S12","EP_BUS","EPS_EMP",null,null,null,null,null,2016,{"$f":"IF(COUNT('3a'!J243,'3b'!J243,'3c'!J243,'3d'!J243,'3e (voluntary)'!J243)=0,\":\",SUM('3a'!J243,'3b'!J243,'3c'!J243,'3d'!J243,'3e (voluntary)'!J243))","v":":"},null,{"$f":"IF(COUNT('3a'!L243,'3b'!L243,'3c'!L243,'3d'!L243,'3e (voluntary)'!L243)=0,\":\",SUM('3a'!L243,'3b'!L243,'3c'!L243,'3d'!L243,'3e (voluntary)'!L243))","v":":"},null,{"$f":"IF(COUNT('3a'!N243,'3b'!N243,'3c'!N243,'3d'!N243,'3e (voluntary)'!N243)=0,\":\",SUM('3a'!N243,'3b'!N243,'3c'!N243,'3d'!N243,'3e (voluntary)'!N243))","v":":"},null,{"$f":"IF(COUNT('3a'!P243,'3b'!P243,'3c'!P243,'3d'!P243,'3e (voluntary)'!P243)=0,\":\",SUM('3a'!P243,'3b'!P243,'3c'!P243,'3d'!P243,'3e (voluntary)'!P243))","v":":"},null,{"$f":"IF(COUNT('3a'!R243,'3b'!R243,'3c'!R243,'3d'!R243,'3e (voluntary)'!R243)=0,\":\",SUM('3a'!R243,'3b'!R243,'3c'!R243,'3d'!R243,'3e (voluntary)'!R243))","v":":"},null,{"$f":"IF(COUNT('3a'!T243,'3b'!T243,'3c'!T243,'3d'!T243,'3e (voluntary)'!T243)=0,\":\",SUM('3a'!T243,'3b'!T243,'3c'!T243,'3d'!T243,'3e (voluntary)'!T243))","v":":"},null,{"$f":"IF(COUNT('3a'!V243,'3b'!V243,'3c'!V243,'3d'!V243,'3e (voluntary)'!V243)=0,\":\",SUM('3a'!V243,'3b'!V243,'3c'!V243,'3d'!V243,'3e (voluntary)'!V243))","v":":"},null,{"$f":"IF(COUNT('3a'!X243,'3b'!X243,'3c'!X243,'3d'!X243,'3e (voluntary)'!X243)=0,\":\",SUM('3a'!X243,'3b'!X243,'3c'!X243,'3d'!X243,'3e (voluntary)'!X243))","v":":"},null,{"$f":"IF(COUNT('3a'!Z243,'3b'!Z243,'3c'!Z243,'3d'!Z243,'3e (voluntary)'!Z243)=0,\":\",SUM('3a'!Z243,'3b'!Z243,'3c'!Z243,'3d'!Z243,'3e (voluntary)'!Z243))","v":":"},null,{"$f":"IF(COUNT('3a'!AB243,'3b'!AB243,'3c'!AB243,'3d'!AB243,'3e (voluntary)'!AB243)=0,\":\",SUM('3a'!AB243,'3b'!AB243,'3c'!AB243,'3d'!AB243,'3e (voluntary)'!AB243))","v":":"},null,{"$f":"IF(COUNT('3a'!AD243,'3b'!AD243,'3c'!AD243,'3d'!AD243,'3e (voluntary)'!AD243)=0,\":\",SUM('3a'!AD243,'3b'!AD243,'3c'!AD243,'3d'!AD243,'3e (voluntary)'!AD243))","v":":"},null,{"$f":"IF(COUNT('3a'!AF243,'3b'!AF243,'3c'!AF243,'3d'!AF243,'3e (voluntary)'!AF243)=0,\":\",SUM('3a'!AF243,'3b'!AF243,'3c'!AF243,'3d'!AF243,'3e (voluntary)'!AF243))","v":":"}]
["S11_S12","EP_BUS","EPS_EMP",null,null,null,null,null,2017,{"$f":"IF(COUNT('3a'!J244,'3b'!J244,'3c'!J244,'3d'!J244,'3e (voluntary)'!J244)=0,\":\",SUM('3a'!J244,'3b'!J244,'3c'!J244,'3d'!J244,'3e (voluntary)'!J244))","v":":"},null,{"$f":"IF(COUNT('3a'!L244,'3b'!L244,'3c'!L244,'3d'!L244,'3e (voluntary)'!L244)=0,\":\",SUM('3a'!L244,'3b'!L244,'3c'!L244,'3d'!L244,'3e (voluntary)'!L244))","v":":"},null,{"$f":"IF(COUNT('3a'!N244,'3b'!N244,'3c'!N244,'3d'!N244,'3e (voluntary)'!N244)=0,\":\",SUM('3a'!N244,'3b'!N244,'3c'!N244,'3d'!N244,'3e (voluntary)'!N244))","v":":"},null,{"$f":"IF(COUNT('3a'!P244,'3b'!P244,'3c'!P244,'3d'!P244,'3e (voluntary)'!P244)=0,\":\",SUM('3a'!P244,'3b'!P244,'3c'!P244,'3d'!P244,'3e (voluntary)'!P244))","v":":"},null,{"$f":"IF(COUNT('3a'!R244,'3b'!R244,'3c'!R244,'3d'!R244,'3e (voluntary)'!R244)=0,\":\",SUM('3a'!R244,'3b'!R244,'3c'!R244,'3d'!R244,'3e (voluntary)'!R244))","v":":"},null,{"$f":"IF(COUNT('3a'!T244,'3b'!T244,'3c'!T244,'3d'!T244,'3e (voluntary)'!T244)=0,\":\",SUM('3a'!T244,'3b'!T244,'3c'!T244,'3d'!T244,'3e (voluntary)'!T244))","v":":"},null,{"$f":"IF(COUNT('3a'!V244,'3b'!V244,'3c'!V244,'3d'!V244,'3e (voluntary)'!V244)=0,\":\",SUM('3a'!V244,'3b'!V244,'3c'!V244,'3d'!V244,'3e (voluntary)'!V244))","v":":"},null,{"$f":"IF(COUNT('3a'!X244,'3b'!X244,'3c'!X244,'3d'!X244,'3e (voluntary)'!X244)=0,\":\",SUM('3a'!X244,'3b'!X244,'3c'!X244,'3d'!X244,'3e (voluntary)'!X244))","v":":"},null,{"$f":"IF(COUNT('3a'!Z244,'3b'!Z244,'3c'!Z244,'3d'!Z244,'3e (voluntary)'!Z244)=0,\":\",SUM('3a'!Z244,'3b'!Z244,'3c'!Z244,'3d'!Z244,'3e (voluntary)'!Z244))","v":":"},null,{"$f":"IF(COUNT('3a'!AB244,'3b'!AB244,'3c'!AB244,'3d'!AB244,'3e (voluntary)'!AB244)=0,\":\",SUM('3a'!AB244,'3b'!AB244,'3c'!AB244,'3d'!AB244,'3e (voluntary)'!AB244))","v":":"},null,{"$f":"IF(COUNT('3a'!AD244,'3b'!AD244,'3c'!AD244,'3d'!AD244,'3e (voluntary)'!AD244)=0,\":\",SUM('3a'!AD244,'3b'!AD244,'3c'!AD244,'3d'!AD244,'3e (voluntary)'!AD244))","v":":"},null,{"$f":"IF(COUNT('3a'!AF244,'3b'!AF244,'3c'!AF244,'3d'!AF244,'3e (voluntary)'!AF244)=0,\":\",SUM('3a'!AF244,'3b'!AF244,'3c'!AF244,'3d'!AF244,'3e (voluntary)'!AF244))","v":":"}]
["S11_S12","EP_BUS","EPS_EMP",null,null,null,null,null,2018,{"$f":"IF(COUNT('3a'!J245,'3b'!J245,'3c'!J245,'3d'!J245,'3e (voluntary)'!J245)=0,\":\",SUM('3a'!J245,'3b'!J245,'3c'!J245,'3d'!J245,'3e (voluntary)'!J245))","v":":"},null,{"$f":"IF(COUNT('3a'!L245,'3b'!L245,'3c'!L245,'3d'!L245,'3e (voluntary)'!L245)=0,\":\",SUM('3a'!L245,'3b'!L245,'3c'!L245,'3d'!L245,'3e (voluntary)'!L245))","v":":"},null,{"$f":"IF(COUNT('3a'!N245,'3b'!N245,'3c'!N245,'3d'!N245,'3e (voluntary)'!N245)=0,\":\",SUM('3a'!N245,'3b'!N245,'3c'!N245,'3d'!N245,'3e (voluntary)'!N245))","v":":"},null,{"$f":"IF(COUNT('3a'!P245,'3b'!P245,'3c'!P245,'3d'!P245,'3e (voluntary)'!P245)=0,\":\",SUM('3a'!P245,'3b'!P245,'3c'!P245,'3d'!P245,'3e (voluntary)'!P245))","v":":"},null,{"$f":"IF(COUNT('3a'!R245,'3b'!R245,'3c'!R245,'3d'!R245,'3e (voluntary)'!R245)=0,\":\",SUM('3a'!R245,'3b'!R245,'3c'!R245,'3d'!R245,'3e (voluntary)'!R245))","v":":"},null,{"$f":"IF(COUNT('3a'!T245,'3b'!T245,'3c'!T245,'3d'!T245,'3e (voluntary)'!T245)=0,\":\",SUM('3a'!T245,'3b'!T245,'3c'!T245,'3d'!T245,'3e (voluntary)'!T245))","v":":"},null,{"$f":"IF(COUNT('3a'!V245,'3b'!V245,'3c'!V245,'3d'!V245,'3e (voluntary)'!V245)=0,\":\",SUM('3a'!V245,'3b'!V245,'3c'!V245,'3d'!V245,'3e (voluntary)'!V245))","v":":"},null,{"$f":"IF(COUNT('3a'!X245,'3b'!X245,'3c'!X245,'3d'!X245,'3e (voluntary)'!X245)=0,\":\",SUM('3a'!X245,'3b'!X245,'3c'!X245,'3d'!X245,'3e (voluntary)'!X245))","v":":"},null,{"$f":"IF(COUNT('3a'!Z245,'3b'!Z245,'3c'!Z245,'3d'!Z245,'3e (voluntary)'!Z245)=0,\":\",SUM('3a'!Z245,'3b'!Z245,'3c'!Z245,'3d'!Z245,'3e (voluntary)'!Z245))","v":":"},null,{"$f":"IF(COUNT('3a'!AB245,'3b'!AB245,'3c'!AB245,'3d'!AB245,'3e (voluntary)'!AB245)=0,\":\",SUM('3a'!AB245,'3b'!AB245,'3c'!AB245,'3d'!AB245,'3e (voluntary)'!AB245))","v":":"},null,{"$f":"IF(COUNT('3a'!AD245,'3b'!AD245,'3c'!AD245,'3d'!AD245,'3e (voluntary)'!AD245)=0,\":\",SUM('3a'!AD245,'3b'!AD245,'3c'!AD245,'3d'!AD245,'3e (voluntary)'!AD245))","v":":"},null,{"$f":"IF(COUNT('3a'!AF245,'3b'!AF245,'3c'!AF245,'3d'!AF245,'3e (voluntary)'!AF245)=0,\":\",SUM('3a'!AF245,'3b'!AF245,'3c'!AF245,'3d'!AF245,'3e (voluntary)'!AF245))","v":":"}]
["S11_S12","EP_BUS","EPS_EMP",null,null,null,null,null,2019,{"$f":"IF(COUNT('3a'!J246,'3b'!J246,'3c'!J246,'3d'!J246,'3e (voluntary)'!J246)=0,\":\",SUM('3a'!J246,'3b'!J246,'3c'!J246,'3d'!J246,'3e (voluntary)'!J246))","v":":"},null,{"$f":"IF(COUNT('3a'!L246,'3b'!L246,'3c'!L246,'3d'!L246,'3e (voluntary)'!L246)=0,\":\",SUM('3a'!L246,'3b'!L246,'3c'!L246,'3d'!L246,'3e (voluntary)'!L246))","v":":"},null,{"$f":"IF(COUNT('3a'!N246,'3b'!N246,'3c'!N246,'3d'!N246,'3e (voluntary)'!N246)=0,\":\",SUM('3a'!N246,'3b'!N246,'3c'!N246,'3d'!N246,'3e (voluntary)'!N246))","v":":"},null,{"$f":"IF(COUNT('3a'!P246,'3b'!P246,'3c'!P246,'3d'!P246,'3e (voluntary)'!P246)=0,\":\",SUM('3a'!P246,'3b'!P246,'3c'!P246,'3d'!P246,'3e (voluntary)'!P246))","v":":"},null,{"$f":"IF(COUNT('3a'!R246,'3b'!R246,'3c'!R246,'3d'!R246,'3e (voluntary)'!R246)=0,\":\",SUM('3a'!R246,'3b'!R246,'3c'!R246,'3d'!R246,'3e (voluntary)'!R246))","v":":"},null,{"$f":"IF(COUNT('3a'!T246,'3b'!T246,'3c'!T246,'3d'!T246,'3e (voluntary)'!T246)=0,\":\",SUM('3a'!T246,'3b'!T246,'3c'!T246,'3d'!T246,'3e (voluntary)'!T246))","v":":"},null,{"$f":"IF(COUNT('3a'!V246,'3b'!V246,'3c'!V246,'3d'!V246,'3e (voluntary)'!V246)=0,\":\",SUM('3a'!V246,'3b'!V246,'3c'!V246,'3d'!V246,'3e (voluntary)'!V246))","v":":"},null,{"$f":"IF(COUNT('3a'!X246,'3b'!X246,'3c'!X246,'3d'!X246,'3e (voluntary)'!X246)=0,\":\",SUM('3a'!X246,'3b'!X246,'3c'!X246,'3d'!X246,'3e (voluntary)'!X246))","v":":"},null,{"$f":"IF(COUNT('3a'!Z246,'3b'!Z246,'3c'!Z246,'3d'!Z246,'3e (voluntary)'!Z246)=0,\":\",SUM('3a'!Z246,'3b'!Z246,'3c'!Z246,'3d'!Z246,'3e (voluntary)'!Z246))","v":":"},null,{"$f":"IF(COUNT('3a'!AB246,'3b'!AB246,'3c'!AB246,'3d'!AB246,'3e (voluntary)'!AB246)=0,\":\",SUM('3a'!AB246,'3b'!AB246,'3c'!AB246,'3d'!AB246,'3e (voluntary)'!AB246))","v":":"},null,{"$f":"IF(COUNT('3a'!AD246,'3b'!AD246,'3c'!AD246,'3d'!AD246,'3e (voluntary)'!AD246)=0,\":\",SUM('3a'!AD246,'3b'!AD246,'3c'!AD246,'3d'!AD246,'3e (voluntary)'!AD246))","v":":"},null,{"$f":"IF(COUNT('3a'!AF246,'3b'!AF246,'3c'!AF246,'3d'!AF246,'3e (voluntary)'!AF246)=0,\":\",SUM('3a'!AF246,'3b'!AF246,'3c'!AF246,'3d'!AF246,'3e (voluntary)'!AF246))","v":":"}]
["S11_S12","EP_BUS","EPS_EMP",null,null,null,null,null,2020,{"$f":"IF(COUNT('3a'!J247,'3b'!J247,'3c'!J247,'3d'!J247,'3e (voluntary)'!J247)=0,\":\",SUM('3a'!J247,'3b'!J247,'3c'!J247,'3d'!J247,'3e (voluntary)'!J247))","v":":"},null,{"$f":"IF(COUNT('3a'!L247,'3b'!L247,'3c'!L247,'3d'!L247,'3e (voluntary)'!L247)=0,\":\",SUM('3a'!L247,'3b'!L247,'3c'!L247,'3d'!L247,'3e (voluntary)'!L247))","v":":"},null,{"$f":"IF(COUNT('3a'!N247,'3b'!N247,'3c'!N247,'3d'!N247,'3e (voluntary)'!N247)=0,\":\",SUM('3a'!N247,'3b'!N247,'3c'!N247,'3d'!N247,'3e (voluntary)'!N247))","v":":"},null,{"$f":"IF(COUNT('3a'!P247,'3b'!P247,'3c'!P247,'3d'!P247,'3e (voluntary)'!P247)=0,\":\",SUM('3a'!P247,'3b'!P247,'3c'!P247,'3d'!P247,'3e (voluntary)'!P247))","v":":"},null,{"$f":"IF(COUNT('3a'!R247,'3b'!R247,'3c'!R247,'3d'!R247,'3e (voluntary)'!R247)=0,\":\",SUM('3a'!R247,'3b'!R247,'3c'!R247,'3d'!R247,'3e (voluntary)'!R247))","v":":"},null,{"$f":"IF(COUNT('3a'!T247,'3b'!T247,'3c'!T247,'3d'!T247,'3e (voluntary)'!T247)=0,\":\",SUM('3a'!T247,'3b'!T247,'3c'!T247,'3d'!T247,'3e (voluntary)'!T247))","v":":"},null,{"$f":"IF(COUNT('3a'!V247,'3b'!V247,'3c'!V247,'3d'!V247,'3e (voluntary)'!V247)=0,\":\",SUM('3a'!V247,'3b'!V247,'3c'!V247,'3d'!V247,'3e (voluntary)'!V247))","v":":"},null,{"$f":"IF(COUNT('3a'!X247,'3b'!X247,'3c'!X247,'3d'!X247,'3e (voluntary)'!X247)=0,\":\",SUM('3a'!X247,'3b'!X247,'3c'!X247,'3d'!X247,'3e (voluntary)'!X247))","v":":"},null,{"$f":"IF(COUNT('3a'!Z247,'3b'!Z247,'3c'!Z247,'3d'!Z247,'3e (voluntary)'!Z247)=0,\":\",SUM('3a'!Z247,'3b'!Z247,'3c'!Z247,'3d'!Z247,'3e (voluntary)'!Z247))","v":":"},null,{"$f":"IF(COUNT('3a'!AB247,'3b'!AB247,'3c'!AB247,'3d'!AB247,'3e (voluntary)'!AB247)=0,\":\",SUM('3a'!AB247,'3b'!AB247,'3c'!AB247,'3d'!AB247,'3e (voluntary)'!AB247))","v":":"},null,{"$f":"IF(COUNT('3a'!AD247,'3b'!AD247,'3c'!AD247,'3d'!AD247,'3e (voluntary)'!AD247)=0,\":\",SUM('3a'!AD247,'3b'!AD247,'3c'!AD247,'3d'!AD247,'3e (voluntary)'!AD247))","v":":"},null,{"$f":"IF(COUNT('3a'!AF247,'3b'!AF247,'3c'!AF247,'3d'!AF247,'3e (voluntary)'!AF247)=0,\":\",SUM('3a'!AF247,'3b'!AF247,'3c'!AF247,'3d'!AF247,'3e (voluntary)'!AF247))","v":":"}]
["S11_S12","EP_BUS","EPS_EMP",null,null,null,null,null,2021,{"$f":"IF(COUNT('3a'!J248,'3b'!J248,'3c'!J248,'3d'!J248,'3e (voluntary)'!J248)=0,\":\",SUM('3a'!J248,'3b'!J248,'3c'!J248,'3d'!J248,'3e (voluntary)'!J248))","v":":"},null,{"$f":"IF(COUNT('3a'!L248,'3b'!L248,'3c'!L248,'3d'!L248,'3e (voluntary)'!L248)=0,\":\",SUM('3a'!L248,'3b'!L248,'3c'!L248,'3d'!L248,'3e (voluntary)'!L248))","v":":"},null,{"$f":"IF(COUNT('3a'!N248,'3b'!N248,'3c'!N248,'3d'!N248,'3e (voluntary)'!N248)=0,\":\",SUM('3a'!N248,'3b'!N248,'3c'!N248,'3d'!N248,'3e (voluntary)'!N248))","v":":"},null,{"$f":"IF(COUNT('3a'!P248,'3b'!P248,'3c'!P248,'3d'!P248,'3e (voluntary)'!P248)=0,\":\",SUM('3a'!P248,'3b'!P248,'3c'!P248,'3d'!P248,'3e (voluntary)'!P248))","v":":"},null,{"$f":"IF(COUNT('3a'!R248,'3b'!R248,'3c'!R248,'3d'!R248,'3e (voluntary)'!R248)=0,\":\",SUM('3a'!R248,'3b'!R248,'3c'!R248,'3d'!R248,'3e (voluntary)'!R248))","v":":"},null,{"$f":"IF(COUNT('3a'!T248,'3b'!T248,'3c'!T248,'3d'!T248,'3e (voluntary)'!T248)=0,\":\",SUM('3a'!T248,'3b'!T248,'3c'!T248,'3d'!T248,'3e (voluntary)'!T248))","v":":"},null,{"$f":"IF(COUNT('3a'!V248,'3b'!V248,'3c'!V248,'3d'!V248,'3e (voluntary)'!V248)=0,\":\",SUM('3a'!V248,'3b'!V248,'3c'!V248,'3d'!V248,'3e (voluntary)'!V248))","v":":"},null,{"$f":"IF(COUNT('3a'!X248,'3b'!X248,'3c'!X248,'3d'!X248,'3e (voluntary)'!X248)=0,\":\",SUM('3a'!X248,'3b'!X248,'3c'!X248,'3d'!X248,'3e (voluntary)'!X248))","v":":"},null,{"$f":"IF(COUNT('3a'!Z248,'3b'!Z248,'3c'!Z248,'3d'!Z248,'3e (voluntary)'!Z248)=0,\":\",SUM('3a'!Z248,'3b'!Z248,'3c'!Z248,'3d'!Z248,'3e (voluntary)'!Z248))","v":":"},null,{"$f":"IF(COUNT('3a'!AB248,'3b'!AB248,'3c'!AB248,'3d'!AB248,'3e (voluntary)'!AB248)=0,\":\",SUM('3a'!AB248,'3b'!AB248,'3c'!AB248,'3d'!AB248,'3e (voluntary)'!AB248))","v":":"},null,{"$f":"IF(COUNT('3a'!AD248,'3b'!AD248,'3c'!AD248,'3d'!AD248,'3e (voluntary)'!AD248)=0,\":\",SUM('3a'!AD248,'3b'!AD248,'3c'!AD248,'3d'!AD248,'3e (voluntary)'!AD248))","v":":"},null,{"$f":"IF(COUNT('3a'!AF248,'3b'!AF248,'3c'!AF248,'3d'!AF248,'3e (voluntary)'!AF248)=0,\":\",SUM('3a'!AF248,'3b'!AF248,'3c'!AF248,'3d'!AF248,'3e (voluntary)'!AF248))","v":":"}]
["S11_S12","EP_BUS","EPS_EMP",null,null,null,null,null,2022,{"$f":"IF(COUNT('3a'!J249,'3b'!J249,'3c'!J249,'3d'!J249,'3e (voluntary)'!J249)=0,\":\",SUM('3a'!J249,'3b'!J249,'3c'!J249,'3d'!J249,'3e (voluntary)'!J249))","v":":"},null,{"$f":"IF(COUNT('3a'!L249,'3b'!L249,'3c'!L249,'3d'!L249,'3e (voluntary)'!L249)=0,\":\",SUM('3a'!L249,'3b'!L249,'3c'!L249,'3d'!L249,'3e (voluntary)'!L249))","v":":"},null,{"$f":"IF(COUNT('3a'!N249,'3b'!N249,'3c'!N249,'3d'!N249,'3e (voluntary)'!N249)=0,\":\",SUM('3a'!N249,'3b'!N249,'3c'!N249,'3d'!N249,'3e (voluntary)'!N249))","v":":"},null,{"$f":"IF(COUNT('3a'!P249,'3b'!P249,'3c'!P249,'3d'!P249,'3e (voluntary)'!P249)=0,\":\",SUM('3a'!P249,'3b'!P249,'3c'!P249,'3d'!P249,'3e (voluntary)'!P249))","v":":"},null,{"$f":"IF(COUNT('3a'!R249,'3b'!R249,'3c'!R249,'3d'!R249,'3e (voluntary)'!R249)=0,\":\",SUM('3a'!R249,'3b'!R249,'3c'!R249,'3d'!R249,'3e (voluntary)'!R249))","v":":"},null,{"$f":"IF(COUNT('3a'!T249,'3b'!T249,'3c'!T249,'3d'!T249,'3e (voluntary)'!T249)=0,\":\",SUM('3a'!T249,'3b'!T249,'3c'!T249,'3d'!T249,'3e (voluntary)'!T249))","v":":"},null,{"$f":"IF(COUNT('3a'!V249,'3b'!V249,'3c'!V249,'3d'!V249,'3e (voluntary)'!V249)=0,\":\",SUM('3a'!V249,'3b'!V249,'3c'!V249,'3d'!V249,'3e (voluntary)'!V249))","v":":"},null,{"$f":"IF(COUNT('3a'!X249,'3b'!X249,'3c'!X249,'3d'!X249,'3e (voluntary)'!X249)=0,\":\",SUM('3a'!X249,'3b'!X249,'3c'!X249,'3d'!X249,'3e (voluntary)'!X249))","v":":"},null,{"$f":"IF(COUNT('3a'!Z249,'3b'!Z249,'3c'!Z249,'3d'!Z249,'3e (voluntary)'!Z249)=0,\":\",SUM('3a'!Z249,'3b'!Z249,'3c'!Z249,'3d'!Z249,'3e (voluntary)'!Z249))","v":":"},null,{"$f":"IF(COUNT('3a'!AB249,'3b'!AB249,'3c'!AB249,'3d'!AB249,'3e (voluntary)'!AB249)=0,\":\",SUM('3a'!AB249,'3b'!AB249,'3c'!AB249,'3d'!AB249,'3e (voluntary)'!AB249))","v":":"},null,{"$f":"IF(COUNT('3a'!AD249,'3b'!AD249,'3c'!AD249,'3d'!AD249,'3e (voluntary)'!AD249)=0,\":\",SUM('3a'!AD249,'3b'!AD249,'3c'!AD249,'3d'!AD249,'3e (voluntary)'!AD249))","v":":"},null,{"$f":"IF(COUNT('3a'!AF249,'3b'!AF249,'3c'!AF249,'3d'!AF249,'3e (voluntary)'!AF249)=0,\":\",SUM('3a'!AF249,'3b'!AF249,'3c'!AF249,'3d'!AF249,'3e (voluntary)'!AF249))","v":":"}]
["S11_S12","EP_BUS","EPS_EMP",null,null,null,null,null,2023,{"$f":"IF(COUNT('3a'!J250,'3b'!J250,'3c'!J250,'3d'!J250,'3e (voluntary)'!J250)=0,\":\",SUM('3a'!J250,'3b'!J250,'3c'!J250,'3d'!J250,'3e (voluntary)'!J250))","v":":"},null,{"$f":"IF(COUNT('3a'!L250,'3b'!L250,'3c'!L250,'3d'!L250,'3e (voluntary)'!L250)=0,\":\",SUM('3a'!L250,'3b'!L250,'3c'!L250,'3d'!L250,'3e (voluntary)'!L250))","v":":"},null,{"$f":"IF(COUNT('3a'!N250,'3b'!N250,'3c'!N250,'3d'!N250,'3e (voluntary)'!N250)=0,\":\",SUM('3a'!N250,'3b'!N250,'3c'!N250,'3d'!N250,'3e (voluntary)'!N250))","v":":"},null,{"$f":"IF(COUNT('3a'!P250,'3b'!P250,'3c'!P250,'3d'!P250,'3e (voluntary)'!P250)=0,\":\",SUM('3a'!P250,'3b'!P250,'3c'!P250,'3d'!P250,'3e (voluntary)'!P250))","v":":"},null,{"$f":"IF(COUNT('3a'!R250,'3b'!R250,'3c'!R250,'3d'!R250,'3e (voluntary)'!R250)=0,\":\",SUM('3a'!R250,'3b'!R250,'3c'!R250,'3d'!R250,'3e (voluntary)'!R250))","v":":"},null,{"$f":"IF(COUNT('3a'!T250,'3b'!T250,'3c'!T250,'3d'!T250,'3e (voluntary)'!T250)=0,\":\",SUM('3a'!T250,'3b'!T250,'3c'!T250,'3d'!T250,'3e (voluntary)'!T250))","v":":"},null,{"$f":"IF(COUNT('3a'!V250,'3b'!V250,'3c'!V250,'3d'!V250,'3e (voluntary)'!V250)=0,\":\",SUM('3a'!V250,'3b'!V250,'3c'!V250,'3d'!V250,'3e (voluntary)'!V250))","v":":"},null,{"$f":"IF(COUNT('3a'!X250,'3b'!X250,'3c'!X250,'3d'!X250,'3e (voluntary)'!X250)=0,\":\",SUM('3a'!X250,'3b'!X250,'3c'!X250,'3d'!X250,'3e (voluntary)'!X250))","v":":"},null,{"$f":"IF(COUNT('3a'!Z250,'3b'!Z250,'3c'!Z250,'3d'!Z250,'3e (voluntary)'!Z250)=0,\":\",SUM('3a'!Z250,'3b'!Z250,'3c'!Z250,'3d'!Z250,'3e (voluntary)'!Z250))","v":":"},null,{"$f":"IF(COUNT('3a'!AB250,'3b'!AB250,'3c'!AB250,'3d'!AB250,'3e (voluntary)'!AB250)=0,\":\",SUM('3a'!AB250,'3b'!AB250,'3c'!AB250,'3d'!AB250,'3e (voluntary)'!AB250))","v":":"},null,{"$f":"IF(COUNT('3a'!AD250,'3b'!AD250,'3c'!AD250,'3d'!AD250,'3e (voluntary)'!AD250)=0,\":\",SUM('3a'!AD250,'3b'!AD250,'3c'!AD250,'3d'!AD250,'3e (voluntary)'!AD250))","v":":"},null,{"$f":"IF(COUNT('3a'!AF250,'3b'!AF250,'3c'!AF250,'3d'!AF250,'3e (voluntary)'!AF250)=0,\":\",SUM('3a'!AF250,'3b'!AF250,'3c'!AF250,'3d'!AF250,'3e (voluntary)'!AF250))","v":":"}]
["S11_S12","EP_BUS","EPS_EMP",null,null,null,null,null,2024,{"$f":"IF(COUNT('3a'!J251,'3b'!J251,'3c'!J251,'3d'!J251,'3e (voluntary)'!J251)=0,\":\",SUM('3a'!J251,'3b'!J251,'3c'!J251,'3d'!J251,'3e (voluntary)'!J251))","v":":"},null,{"$f":"IF(COUNT('3a'!L251,'3b'!L251,'3c'!L251,'3d'!L251,'3e (voluntary)'!L251)=0,\":\",SUM('3a'!L251,'3b'!L251,'3c'!L251,'3d'!L251,'3e (voluntary)'!L251))","v":":"},null,{"$f":"IF(COUNT('3a'!N251,'3b'!N251,'3c'!N251,'3d'!N251,'3e (voluntary)'!N251)=0,\":\",SUM('3a'!N251,'3b'!N251,'3c'!N251,'3d'!N251,'3e (voluntary)'!N251))","v":":"},null,{"$f":"IF(COUNT('3a'!P251,'3b'!P251,'3c'!P251,'3d'!P251,'3e (voluntary)'!P251)=0,\":\",SUM('3a'!P251,'3b'!P251,'3c'!P251,'3d'!P251,'3e (voluntary)'!P251))","v":":"},null,{"$f":"IF(COUNT('3a'!R251,'3b'!R251,'3c'!R251,'3d'!R251,'3e (voluntary)'!R251)=0,\":\",SUM('3a'!R251,'3b'!R251,'3c'!R251,'3d'!R251,'3e (voluntary)'!R251))","v":":"},null,{"$f":"IF(COUNT('3a'!T251,'3b'!T251,'3c'!T251,'3d'!T251,'3e (voluntary)'!T251)=0,\":\",SUM('3a'!T251,'3b'!T251,'3c'!T251,'3d'!T251,'3e (voluntary)'!T251))","v":":"},null,{"$f":"IF(COUNT('3a'!V251,'3b'!V251,'3c'!V251,'3d'!V251,'3e (voluntary)'!V251)=0,\":\",SUM('3a'!V251,'3b'!V251,'3c'!V251,'3d'!V251,'3e (voluntary)'!V251))","v":":"},null,{"$f":"IF(COUNT('3a'!X251,'3b'!X251,'3c'!X251,'3d'!X251,'3e (voluntary)'!X251)=0,\":\",SUM('3a'!X251,'3b'!X251,'3c'!X251,'3d'!X251,'3e (voluntary)'!X251))","v":":"},null,{"$f":"IF(COUNT('3a'!Z251,'3b'!Z251,'3c'!Z251,'3d'!Z251,'3e (voluntary)'!Z251)=0,\":\",SUM('3a'!Z251,'3b'!Z251,'3c'!Z251,'3d'!Z251,'3e (voluntary)'!Z251))","v":":"},null,{"$f":"IF(COUNT('3a'!AB251,'3b'!AB251,'3c'!AB251,'3d'!AB251,'3e (voluntary)'!AB251)=0,\":\",SUM('3a'!AB251,'3b'!AB251,'3c'!AB251,'3d'!AB251,'3e (voluntary)'!AB251))","v":":"},null,{"$f":"IF(COUNT('3a'!AD251,'3b'!AD251,'3c'!AD251,'3d'!AD251,'3e (voluntary)'!AD251)=0,\":\",SUM('3a'!AD251,'3b'!AD251,'3c'!AD251,'3d'!AD251,'3e (voluntary)'!AD251))","v":":"},null,{"$f":"IF(COUNT('3a'!AF251,'3b'!AF251,'3c'!AF251,'3d'!AF251,'3e (voluntary)'!AF251)=0,\":\",SUM('3a'!AF251,'3b'!AF251,'3c'!AF251,'3d'!AF251,'3e (voluntary)'!AF251))","v":":"}]
["S11_S12","EP_BUS","EPS_EMP",null,null,null,null,null,2025,{"$f":"IF(COUNT('3a'!J252,'3b'!J252,'3c'!J252,'3d'!J252,'3e (voluntary)'!J252)=0,\":\",SUM('3a'!J252,'3b'!J252,'3c'!J252,'3d'!J252,'3e (voluntary)'!J252))","v":":"},null,{"$f":"IF(COUNT('3a'!L252,'3b'!L252,'3c'!L252,'3d'!L252,'3e (voluntary)'!L252)=0,\":\",SUM('3a'!L252,'3b'!L252,'3c'!L252,'3d'!L252,'3e (voluntary)'!L252))","v":":"},null,{"$f":"IF(COUNT('3a'!N252,'3b'!N252,'3c'!N252,'3d'!N252,'3e (voluntary)'!N252)=0,\":\",SUM('3a'!N252,'3b'!N252,'3c'!N252,'3d'!N252,'3e (voluntary)'!N252))","v":":"},null,{"$f":"IF(COUNT('3a'!P252,'3b'!P252,'3c'!P252,'3d'!P252,'3e (voluntary)'!P252)=0,\":\",SUM('3a'!P252,'3b'!P252,'3c'!P252,'3d'!P252,'3e (voluntary)'!P252))","v":":"},null,{"$f":"IF(COUNT('3a'!R252,'3b'!R252,'3c'!R252,'3d'!R252,'3e (voluntary)'!R252)=0,\":\",SUM('3a'!R252,'3b'!R252,'3c'!R252,'3d'!R252,'3e (voluntary)'!R252))","v":":"},null,{"$f":"IF(COUNT('3a'!T252,'3b'!T252,'3c'!T252,'3d'!T252,'3e (voluntary)'!T252)=0,\":\",SUM('3a'!T252,'3b'!T252,'3c'!T252,'3d'!T252,'3e (voluntary)'!T252))","v":":"},null,{"$f":"IF(COUNT('3a'!V252,'3b'!V252,'3c'!V252,'3d'!V252,'3e (voluntary)'!V252)=0,\":\",SUM('3a'!V252,'3b'!V252,'3c'!V252,'3d'!V252,'3e (voluntary)'!V252))","v":":"},null,{"$f":"IF(COUNT('3a'!X252,'3b'!X252,'3c'!X252,'3d'!X252,'3e (voluntary)'!X252)=0,\":\",SUM('3a'!X252,'3b'!X252,'3c'!X252,'3d'!X252,'3e (voluntary)'!X252))","v":":"},null,{"$f":"IF(COUNT('3a'!Z252,'3b'!Z252,'3c'!Z252,'3d'!Z252,'3e (voluntary)'!Z252)=0,\":\",SUM('3a'!Z252,'3b'!Z252,'3c'!Z252,'3d'!Z252,'3e (voluntary)'!Z252))","v":":"},null,{"$f":"IF(COUNT('3a'!AB252,'3b'!AB252,'3c'!AB252,'3d'!AB252,'3e (voluntary)'!AB252)=0,\":\",SUM('3a'!AB252,'3b'!AB252,'3c'!AB252,'3d'!AB252,'3e (voluntary)'!AB252))","v":":"},null,{"$f":"IF(COUNT('3a'!AD252,'3b'!AD252,'3c'!AD252,'3d'!AD252,'3e (voluntary)'!AD252)=0,\":\",SUM('3a'!AD252,'3b'!AD252,'3c'!AD252,'3d'!AD252,'3e (voluntary)'!AD252))","v":":"},null,{"$f":"IF(COUNT('3a'!AF252,'3b'!AF252,'3c'!AF252,'3d'!AF252,'3e (voluntary)'!AF252)=0,\":\",SUM('3a'!AF252,'3b'!AF252,'3c'!AF252,'3d'!AF252,'3e (voluntary)'!AF252))","v":":"}]
["S11_S12","EP_BUS","EPS_EMP",null,null,null,null,null,2026,{"$f":"IF(COUNT('3a'!J253,'3b'!J253,'3c'!J253,'3d'!J253,'3e (voluntary)'!J253)=0,\":\",SUM('3a'!J253,'3b'!J253,'3c'!J253,'3d'!J253,'3e (voluntary)'!J253))","v":":"},null,{"$f":"IF(COUNT('3a'!L253,'3b'!L253,'3c'!L253,'3d'!L253,'3e (voluntary)'!L253)=0,\":\",SUM('3a'!L253,'3b'!L253,'3c'!L253,'3d'!L253,'3e (voluntary)'!L253))","v":":"},null,{"$f":"IF(COUNT('3a'!N253,'3b'!N253,'3c'!N253,'3d'!N253,'3e (voluntary)'!N253)=0,\":\",SUM('3a'!N253,'3b'!N253,'3c'!N253,'3d'!N253,'3e (voluntary)'!N253))","v":":"},null,{"$f":"IF(COUNT('3a'!P253,'3b'!P253,'3c'!P253,'3d'!P253,'3e (voluntary)'!P253)=0,\":\",SUM('3a'!P253,'3b'!P253,'3c'!P253,'3d'!P253,'3e (voluntary)'!P253))","v":":"},null,{"$f":"IF(COUNT('3a'!R253,'3b'!R253,'3c'!R253,'3d'!R253,'3e (voluntary)'!R253)=0,\":\",SUM('3a'!R253,'3b'!R253,'3c'!R253,'3d'!R253,'3e (voluntary)'!R253))","v":":"},null,{"$f":"IF(COUNT('3a'!T253,'3b'!T253,'3c'!T253,'3d'!T253,'3e (voluntary)'!T253)=0,\":\",SUM('3a'!T253,'3b'!T253,'3c'!T253,'3d'!T253,'3e (voluntary)'!T253))","v":":"},null,{"$f":"IF(COUNT('3a'!V253,'3b'!V253,'3c'!V253,'3d'!V253,'3e (voluntary)'!V253)=0,\":\",SUM('3a'!V253,'3b'!V253,'3c'!V253,'3d'!V253,'3e (voluntary)'!V253))","v":":"},null,{"$f":"IF(COUNT('3a'!X253,'3b'!X253,'3c'!X253,'3d'!X253,'3e (voluntary)'!X253)=0,\":\",SUM('3a'!X253,'3b'!X253,'3c'!X253,'3d'!X253,'3e (voluntary)'!X253))","v":":"},null,{"$f":"IF(COUNT('3a'!Z253,'3b'!Z253,'3c'!Z253,'3d'!Z253,'3e (voluntary)'!Z253)=0,\":\",SUM('3a'!Z253,'3b'!Z253,'3c'!Z253,'3d'!Z253,'3e (voluntary)'!Z253))","v":":"},null,{"$f":"IF(COUNT('3a'!AB253,'3b'!AB253,'3c'!AB253,'3d'!AB253,'3e (voluntary)'!AB253)=0,\":\",SUM('3a'!AB253,'3b'!AB253,'3c'!AB253,'3d'!AB253,'3e (voluntary)'!AB253))","v":":"},null,{"$f":"IF(COUNT('3a'!AD253,'3b'!AD253,'3c'!AD253,'3d'!AD253,'3e (voluntary)'!AD253)=0,\":\",SUM('3a'!AD253,'3b'!AD253,'3c'!AD253,'3d'!AD253,'3e (voluntary)'!AD253))","v":":"},null,{"$f":"IF(COUNT('3a'!AF253,'3b'!AF253,'3c'!AF253,'3d'!AF253,'3e (voluntary)'!AF253)=0,\":\",SUM('3a'!AF253,'3b'!AF253,'3c'!AF253,'3d'!AF253,'3e (voluntary)'!AF253))","v":":"}]
["S11_S12","EP_BUS","EPS_EMP",null,null,null,null,null,2027,{"$f":"IF(COUNT('3a'!J254,'3b'!J254,'3c'!J254,'3d'!J254,'3e (voluntary)'!J254)=0,\":\",SUM('3a'!J254,'3b'!J254,'3c'!J254,'3d'!J254,'3e (voluntary)'!J254))","v":":"},null,{"$f":"IF(COUNT('3a'!L254,'3b'!L254,'3c'!L254,'3d'!L254,'3e (voluntary)'!L254)=0,\":\",SUM('3a'!L254,'3b'!L254,'3c'!L254,'3d'!L254,'3e (voluntary)'!L254))","v":":"},null,{"$f":"IF(COUNT('3a'!N254,'3b'!N254,'3c'!N254,'3d'!N254,'3e (voluntary)'!N254)=0,\":\",SUM('3a'!N254,'3b'!N254,'3c'!N254,'3d'!N254,'3e (voluntary)'!N254))","v":":"},null,{"$f":"IF(COUNT('3a'!P254,'3b'!P254,'3c'!P254,'3d'!P254,'3e (voluntary)'!P254)=0,\":\",SUM('3a'!P254,'3b'!P254,'3c'!P254,'3d'!P254,'3e (voluntary)'!P254))","v":":"},null,{"$f":"IF(COUNT('3a'!R254,'3b'!R254,'3c'!R254,'3d'!R254,'3e (voluntary)'!R254)=0,\":\",SUM('3a'!R254,'3b'!R254,'3c'!R254,'3d'!R254,'3e (voluntary)'!R254))","v":":"},null,{"$f":"IF(COUNT('3a'!T254,'3b'!T254,'3c'!T254,'3d'!T254,'3e (voluntary)'!T254)=0,\":\",SUM('3a'!T254,'3b'!T254,'3c'!T254,'3d'!T254,'3e (voluntary)'!T254))","v":":"},null,{"$f":"IF(COUNT('3a'!V254,'3b'!V254,'3c'!V254,'3d'!V254,'3e (voluntary)'!V254)=0,\":\",SUM('3a'!V254,'3b'!V254,'3c'!V254,'3d'!V254,'3e (voluntary)'!V254))","v":":"},null,{"$f":"IF(COUNT('3a'!X254,'3b'!X254,'3c'!X254,'3d'!X254,'3e (voluntary)'!X254)=0,\":\",SUM('3a'!X254,'3b'!X254,'3c'!X254,'3d'!X254,'3e (voluntary)'!X254))","v":":"},null,{"$f":"IF(COUNT('3a'!Z254,'3b'!Z254,'3c'!Z254,'3d'!Z254,'3e (voluntary)'!Z254)=0,\":\",SUM('3a'!Z254,'3b'!Z254,'3c'!Z254,'3d'!Z254,'3e (voluntary)'!Z254))","v":":"},null,{"$f":"IF(COUNT('3a'!AB254,'3b'!AB254,'3c'!AB254,'3d'!AB254,'3e (voluntary)'!AB254)=0,\":\",SUM('3a'!AB254,'3b'!AB254,'3c'!AB254,'3d'!AB254,'3e (voluntary)'!AB254))","v":":"},null,{"$f":"IF(COUNT('3a'!AD254,'3b'!AD254,'3c'!AD254,'3d'!AD254,'3e (voluntary)'!AD254)=0,\":\",SUM('3a'!AD254,'3b'!AD254,'3c'!AD254,'3d'!AD254,'3e (voluntary)'!AD254))","v":":"},null,{"$f":"IF(COUNT('3a'!AF254,'3b'!AF254,'3c'!AF254,'3d'!AF254,'3e (voluntary)'!AF254)=0,\":\",SUM('3a'!AF254,'3b'!AF254,'3c'!AF254,'3d'!AF254,'3e (voluntary)'!AF254))","v":":"}]
["S11_S12","EP_BUS","EPS_EMP",null,null,null,null,null,2028,{"$f":"IF(COUNT('3a'!J255,'3b'!J255,'3c'!J255,'3d'!J255,'3e (voluntary)'!J255)=0,\":\",SUM('3a'!J255,'3b'!J255,'3c'!J255,'3d'!J255,'3e (voluntary)'!J255))","v":":"},null,{"$f":"IF(COUNT('3a'!L255,'3b'!L255,'3c'!L255,'3d'!L255,'3e (voluntary)'!L255)=0,\":\",SUM('3a'!L255,'3b'!L255,'3c'!L255,'3d'!L255,'3e (voluntary)'!L255))","v":":"},null,{"$f":"IF(COUNT('3a'!N255,'3b'!N255,'3c'!N255,'3d'!N255,'3e (voluntary)'!N255)=0,\":\",SUM('3a'!N255,'3b'!N255,'3c'!N255,'3d'!N255,'3e (voluntary)'!N255))","v":":"},null,{"$f":"IF(COUNT('3a'!P255,'3b'!P255,'3c'!P255,'3d'!P255,'3e (voluntary)'!P255)=0,\":\",SUM('3a'!P255,'3b'!P255,'3c'!P255,'3d'!P255,'3e (voluntary)'!P255))","v":":"},null,{"$f":"IF(COUNT('3a'!R255,'3b'!R255,'3c'!R255,'3d'!R255,'3e (voluntary)'!R255)=0,\":\",SUM('3a'!R255,'3b'!R255,'3c'!R255,'3d'!R255,'3e (voluntary)'!R255))","v":":"},null,{"$f":"IF(COUNT('3a'!T255,'3b'!T255,'3c'!T255,'3d'!T255,'3e (voluntary)'!T255)=0,\":\",SUM('3a'!T255,'3b'!T255,'3c'!T255,'3d'!T255,'3e (voluntary)'!T255))","v":":"},null,{"$f":"IF(COUNT('3a'!V255,'3b'!V255,'3c'!V255,'3d'!V255,'3e (voluntary)'!V255)=0,\":\",SUM('3a'!V255,'3b'!V255,'3c'!V255,'3d'!V255,'3e (voluntary)'!V255))","v":":"},null,{"$f":"IF(COUNT('3a'!X255,'3b'!X255,'3c'!X255,'3d'!X255,'3e (voluntary)'!X255)=0,\":\",SUM('3a'!X255,'3b'!X255,'3c'!X255,'3d'!X255,'3e (voluntary)'!X255))","v":":"},null,{"$f":"IF(COUNT('3a'!Z255,'3b'!Z255,'3c'!Z255,'3d'!Z255,'3e (voluntary)'!Z255)=0,\":\",SUM('3a'!Z255,'3b'!Z255,'3c'!Z255,'3d'!Z255,'3e (voluntary)'!Z255))","v":":"},null,{"$f":"IF(COUNT('3a'!AB255,'3b'!AB255,'3c'!AB255,'3d'!AB255,'3e (voluntary)'!AB255)=0,\":\",SUM('3a'!AB255,'3b'!AB255,'3c'!AB255,'3d'!AB255,'3e (voluntary)'!AB255))","v":":"},null,{"$f":"IF(COUNT('3a'!AD255,'3b'!AD255,'3c'!AD255,'3d'!AD255,'3e (voluntary)'!AD255)=0,\":\",SUM('3a'!AD255,'3b'!AD255,'3c'!AD255,'3d'!AD255,'3e (voluntary)'!AD255))","v":":"},null,{"$f":"IF(COUNT('3a'!AF255,'3b'!AF255,'3c'!AF255,'3d'!AF255,'3e (voluntary)'!AF255)=0,\":\",SUM('3a'!AF255,'3b'!AF255,'3c'!AF255,'3d'!AF255,'3e (voluntary)'!AF255))","v":":"}]
["S11_S12","EP_BUS","EPS_EMP",null,null,null,null,null,2029,{"$f":"IF(COUNT('3a'!J256,'3b'!J256,'3c'!J256,'3d'!J256,'3e (voluntary)'!J256)=0,\":\",SUM('3a'!J256,'3b'!J256,'3c'!J256,'3d'!J256,'3e (voluntary)'!J256))","v":":"},null,{"$f":"IF(COUNT('3a'!L256,'3b'!L256,'3c'!L256,'3d'!L256,'3e (voluntary)'!L256)=0,\":\",SUM('3a'!L256,'3b'!L256,'3c'!L256,'3d'!L256,'3e (voluntary)'!L256))","v":":"},null,{"$f":"IF(COUNT('3a'!N256,'3b'!N256,'3c'!N256,'3d'!N256,'3e (voluntary)'!N256)=0,\":\",SUM('3a'!N256,'3b'!N256,'3c'!N256,'3d'!N256,'3e (voluntary)'!N256))","v":":"},null,{"$f":"IF(COUNT('3a'!P256,'3b'!P256,'3c'!P256,'3d'!P256,'3e (voluntary)'!P256)=0,\":\",SUM('3a'!P256,'3b'!P256,'3c'!P256,'3d'!P256,'3e (voluntary)'!P256))","v":":"},null,{"$f":"IF(COUNT('3a'!R256,'3b'!R256,'3c'!R256,'3d'!R256,'3e (voluntary)'!R256)=0,\":\",SUM('3a'!R256,'3b'!R256,'3c'!R256,'3d'!R256,'3e (voluntary)'!R256))","v":":"},null,{"$f":"IF(COUNT('3a'!T256,'3b'!T256,'3c'!T256,'3d'!T256,'3e (voluntary)'!T256)=0,\":\",SUM('3a'!T256,'3b'!T256,'3c'!T256,'3d'!T256,'3e (voluntary)'!T256))","v":":"},null,{"$f":"IF(COUNT('3a'!V256,'3b'!V256,'3c'!V256,'3d'!V256,'3e (voluntary)'!V256)=0,\":\",SUM('3a'!V256,'3b'!V256,'3c'!V256,'3d'!V256,'3e (voluntary)'!V256))","v":":"},null,{"$f":"IF(COUNT('3a'!X256,'3b'!X256,'3c'!X256,'3d'!X256,'3e (voluntary)'!X256)=0,\":\",SUM('3a'!X256,'3b'!X256,'3c'!X256,'3d'!X256,'3e (voluntary)'!X256))","v":":"},null,{"$f":"IF(COUNT('3a'!Z256,'3b'!Z256,'3c'!Z256,'3d'!Z256,'3e (voluntary)'!Z256)=0,\":\",SUM('3a'!Z256,'3b'!Z256,'3c'!Z256,'3d'!Z256,'3e (voluntary)'!Z256))","v":":"},null,{"$f":"IF(COUNT('3a'!AB256,'3b'!AB256,'3c'!AB256,'3d'!AB256,'3e (voluntary)'!AB256)=0,\":\",SUM('3a'!AB256,'3b'!AB256,'3c'!AB256,'3d'!AB256,'3e (voluntary)'!AB256))","v":":"},null,{"$f":"IF(COUNT('3a'!AD256,'3b'!AD256,'3c'!AD256,'3d'!AD256,'3e (voluntary)'!AD256)=0,\":\",SUM('3a'!AD256,'3b'!AD256,'3c'!AD256,'3d'!AD256,'3e (voluntary)'!AD256))","v":":"},null,{"$f":"IF(COUNT('3a'!AF256,'3b'!AF256,'3c'!AF256,'3d'!AF256,'3e (voluntary)'!AF256)=0,\":\",SUM('3a'!AF256,'3b'!AF256,'3c'!AF256,'3d'!AF256,'3e (voluntary)'!AF256))","v":":"}]
["S11_S12","EP_BUS","EPS_EMP",null,null,null,null,null,2030,{"$f":"IF(COUNT('3a'!J257,'3b'!J257,'3c'!J257,'3d'!J257,'3e (voluntary)'!J257)=0,\":\",SUM('3a'!J257,'3b'!J257,'3c'!J257,'3d'!J257,'3e (voluntary)'!J257))","v":":"},null,{"$f":"IF(COUNT('3a'!L257,'3b'!L257,'3c'!L257,'3d'!L257,'3e (voluntary)'!L257)=0,\":\",SUM('3a'!L257,'3b'!L257,'3c'!L257,'3d'!L257,'3e (voluntary)'!L257))","v":":"},null,{"$f":"IF(COUNT('3a'!N257,'3b'!N257,'3c'!N257,'3d'!N257,'3e (voluntary)'!N257)=0,\":\",SUM('3a'!N257,'3b'!N257,'3c'!N257,'3d'!N257,'3e (voluntary)'!N257))","v":":"},null,{"$f":"IF(COUNT('3a'!P257,'3b'!P257,'3c'!P257,'3d'!P257,'3e (voluntary)'!P257)=0,\":\",SUM('3a'!P257,'3b'!P257,'3c'!P257,'3d'!P257,'3e (voluntary)'!P257))","v":":"},null,{"$f":"IF(COUNT('3a'!R257,'3b'!R257,'3c'!R257,'3d'!R257,'3e (voluntary)'!R257)=0,\":\",SUM('3a'!R257,'3b'!R257,'3c'!R257,'3d'!R257,'3e (voluntary)'!R257))","v":":"},null,{"$f":"IF(COUNT('3a'!T257,'3b'!T257,'3c'!T257,'3d'!T257,'3e (voluntary)'!T257)=0,\":\",SUM('3a'!T257,'3b'!T257,'3c'!T257,'3d'!T257,'3e (voluntary)'!T257))","v":":"},null,{"$f":"IF(COUNT('3a'!V257,'3b'!V257,'3c'!V257,'3d'!V257,'3e (voluntary)'!V257)=0,\":\",SUM('3a'!V257,'3b'!V257,'3c'!V257,'3d'!V257,'3e (voluntary)'!V257))","v":":"},null,{"$f":"IF(COUNT('3a'!X257,'3b'!X257,'3c'!X257,'3d'!X257,'3e (voluntary)'!X257)=0,\":\",SUM('3a'!X257,'3b'!X257,'3c'!X257,'3d'!X257,'3e (voluntary)'!X257))","v":":"},null,{"$f":"IF(COUNT('3a'!Z257,'3b'!Z257,'3c'!Z257,'3d'!Z257,'3e (voluntary)'!Z257)=0,\":\",SUM('3a'!Z257,'3b'!Z257,'3c'!Z257,'3d'!Z257,'3e (voluntary)'!Z257))","v":":"},null,{"$f":"IF(COUNT('3a'!AB257,'3b'!AB257,'3c'!AB257,'3d'!AB257,'3e (voluntary)'!AB257)=0,\":\",SUM('3a'!AB257,'3b'!AB257,'3c'!AB257,'3d'!AB257,'3e (voluntary)'!AB257))","v":":"},null,{"$f":"IF(COUNT('3a'!#REF!,'3b'!#REF!,'3c'!#REF!,'3d'!#REF!,'3e (voluntary)'!#REF!)=0,\":\",SUM('3a'!#REF!,'3b'!#REF!,'3c'!#REF!,'3d'!#REF!,'3e (voluntary)'!#REF!))","v":":"},null,{"$f":"IF(COUNT('3a'!AF257,'3b'!AF257,'3c'!AF257,'3d'!AF257,'3e (voluntary)'!AF257)=0,\":\",SUM('3a'!AF257,'3b'!AF257,'3c'!AF257,'3d'!AF257,'3e (voluntary)'!AF257))","v":":"}]
["S11_S12","EP_BUS","EPS_EMP",null,null,null,null,null,2031,{"$f":"IF(COUNT('3a'!J258,'3b'!J258,'3c'!J258,'3d'!J258,'3e (voluntary)'!J258)=0,\":\",SUM('3a'!J258,'3b'!J258,'3c'!J258,'3d'!J258,'3e (voluntary)'!J258))","v":":"},null,{"$f":"IF(COUNT('3a'!L258,'3b'!L258,'3c'!L258,'3d'!L258,'3e (voluntary)'!L258)=0,\":\",SUM('3a'!L258,'3b'!L258,'3c'!L258,'3d'!L258,'3e (voluntary)'!L258))","v":":"},null,{"$f":"IF(COUNT('3a'!N258,'3b'!N258,'3c'!N258,'3d'!N258,'3e (voluntary)'!N258)=0,\":\",SUM('3a'!N258,'3b'!N258,'3c'!N258,'3d'!N258,'3e (voluntary)'!N258))","v":":"},null,{"$f":"IF(COUNT('3a'!P258,'3b'!P258,'3c'!P258,'3d'!P258,'3e (voluntary)'!P258)=0,\":\",SUM('3a'!P258,'3b'!P258,'3c'!P258,'3d'!P258,'3e (voluntary)'!P258))","v":":"},null,{"$f":"IF(COUNT('3a'!R258,'3b'!R258,'3c'!R258,'3d'!R258,'3e (voluntary)'!R258)=0,\":\",SUM('3a'!R258,'3b'!R258,'3c'!R258,'3d'!R258,'3e (voluntary)'!R258))","v":":"},null,{"$f":"IF(COUNT('3a'!T258,'3b'!T258,'3c'!T258,'3d'!T258,'3e (voluntary)'!T258)=0,\":\",SUM('3a'!T258,'3b'!T258,'3c'!T258,'3d'!T258,'3e (voluntary)'!T258))","v":":"},null,{"$f":"IF(COUNT('3a'!V258,'3b'!V258,'3c'!V258,'3d'!V258,'3e (voluntary)'!V258)=0,\":\",SUM('3a'!V258,'3b'!V258,'3c'!V258,'3d'!V258,'3e (voluntary)'!V258))","v":":"},null,{"$f":"IF(COUNT('3a'!X258,'3b'!X258,'3c'!X258,'3d'!X258,'3e (voluntary)'!X258)=0,\":\",SUM('3a'!X258,'3b'!X258,'3c'!X258,'3d'!X258,'3e (voluntary)'!X258))","v":":"},null,{"$f":"IF(COUNT('3a'!Z258,'3b'!Z258,'3c'!Z258,'3d'!Z258,'3e (voluntary)'!Z258)=0,\":\",SUM('3a'!Z258,'3b'!Z258,'3c'!Z258,'3d'!Z258,'3e (voluntary)'!Z258))","v":":"},null,{"$f":"IF(COUNT('3a'!AB258,'3b'!AB258,'3c'!AB258,'3d'!AB258,'3e (voluntary)'!AB258)=0,\":\",SUM('3a'!AB258,'3b'!AB258,'3c'!AB258,'3d'!AB258,'3e (voluntary)'!AB258))","v":":"},null,{"$f":"IF(COUNT('3a'!#REF!,'3b'!#REF!,'3c'!#REF!,'3d'!#REF!,'3e (voluntary)'!#REF!)=0,\":\",SUM('3a'!#REF!,'3b'!#REF!,'3c'!#REF!,'3d'!#REF!,'3e (voluntary)'!#REF!))","v":":"},null,{"$f":"IF(COUNT('3a'!AF258,'3b'!AF258,'3c'!AF258,'3d'!AF258,'3e (voluntary)'!AF258)=0,\":\",SUM('3a'!AF258,'3b'!AF258,'3c'!AF258,'3d'!AF258,'3e (voluntary)'!AF258))","v":":"}]

{"sheet":"3a","index":14,"n_rows":258,"n_cols":32,"rows_kept":258,"cut":false,"hidden":false,"merged":[[222,3,239,3],[3,23,4,24],[134,4,134,7],[43,4,43,7],[115,4,115,7],[114,4,114,7],[132,4,132,7],[6,4,6,7],[7,4,7,7],[60,4,60,7],[78,4,78,7],[96,4,96,7],[27,4,27,7],[3,19,4,20],[97,4,97,7],[45,4,45,7],[3,21,4,22],[240,3,257,3],[240,4,240,7],[169,4,169,7],[241,4,241,7],[242,4,242,7],[186,4,186,7],[170,4,170,7],[204,4,204,7],[205,4,205,7],[189,4,189,7],[207,4,207,7],[187,4,187,7],[222,4,222,7],[223,4,223,7],[6,3,221,3],[4,4,4,7],[1,4,1,8],[150,4,150,7],[99,4,99,7],[133,4,133,7],[116,4,116,7],[24,4,24,7],[42,4,42,7],[9,4,9,7],[26,4,26,7],[25,4,25,7],[79,4,79,7],[168,4,168,7],[0,9,0,15],[3,9,4,10],[3,11,4,12],[3,13,4,14],[3,15,4,16],[1,9,1,32],[2,9,2,32],[3,31,4,32],[3,27,4,28],[3,29,4,30],[3,25,4,26],[3,17,4,18],[153,4,153,7],[151,4,151,7],[0,4,0,8]]}
[null,null,null,null,{"$f":"Cover!B21","v":"QUESTIONNAIRE ON ENVIRONMENTAL PROTECTION EXPENDITURE ACCOUNTS"},null,null,null,null,"Table 3a. Corporations: other (also covering producers of ancillary EP services):  NACE Rev. 2 B"]
[null,null,null,null,{"$f":"E1","v":"QUESTIONNAIRE ON ENVIRONMENTAL PROTECTION EXPENDITURE ACCOUNTS"},null,null,null,null,{"$f":"J1","v":"Table 3a. Corporations: other (also covering producers of ancillary EP services):  NACE Rev. 2 B"}]
[null,null,null,null,null,null,null,null,null,"Mandatory and voluntary variables and environmental domains - please fill in as much as possible"]
[null,null,null,null,"Country/Unit",{"$f":"IFERROR(Cover!C16,\"\")","v":""},{"$f":"\"\"&Cover!B16","v":""},null,{"$f":"Cover!B17","v":"Million units of national currency"},"CEPA 1",null,"of which CEPA 1.1.2 and 1.2.2 Climate change",null,"CEPA 2",null,"CEPA 3",null,"CEPA 4",null,"CEPA 5",null,"CEPA 6",null,"CEPA 7",null,"CEPA 8",null,"CEPA 9",null,"Sum of CEPA 7+8+9",null,"TOTAL"]
[null,null,null,null,"Expenditure",null,null,null,"Year",null,null,null,null,null,null,null,null,null,null,null,null,null,null,null,null,null,null,null,null,"Landscape",null,"Landscape"]
[null,null,null,null,null,null,null,null,null,"CEPA1",null,"CEPA112_122",null,"CEPA2",null,"CEPA3",null,"CEPA4",null,"CEPA5",null,"CEPA6",null,"CEPA7",null,"CEPA8",null,"CEPA9",null,"CEPA7-9",null,"TOT_CEPA"]
["S11_S12","B","EPS_P51G_NP","Transactions of producers of ancillary EP services","( P51G_NP.3a ) Gross fixed capital formation and acquisition less disposals of non-financial non-produced assets",null,null,null,2014,":",null,":",null,":",null,":",null,":",null,":",null,":",null,":",null,":",null,":",null,":",null,{"$f":"IF(COUNT(J7,N7,P7,R7,T7,V7,AD7)=7,SUM(J7,N7,P7,R7,T7,V7,AD7),\":\")","v":":"}]
["S11_S12","B","EPS_P51G_NP",null,null,null,null,null,2015,":",null,":",null,":",null,":",null,":",null,":",null,":",null,":",null,":",null,":",null,":",null,{"$f":"IF(COUNT(J8,N8,P8,R8,T8,V8,AD8)=7,SUM(J8,N8,P8,R8,T8,V8,AD8),\":\")","v":":"}]
["S11_S12","B","EPS_P51G_NP",null,null,null,null,null,2016,":",null,":",null,":",null,":",null,":",null,":",null,":",null,":",null,":",null,":",null,":",null,":"]
["S11_S12","B","EPS_P51G_NP",null,null,null,null,null,2017,":",null,":",null,":",null,":",null,":",null,":",null,":",null,":",null,":",null,":",null,":",null,":"]
["S11_S12","B","EPS_P51G_NP",null,null,null,null,null,2018,":",null,":",null,":",null,":",null,":",null,":",null,":",null,":",null,":",null,":",null,":",null,":"]
["S11_S12","B","EPS_P51G_NP",null,null,null,null,null,2019,":",null,":",null,":",null,":",null,":",null,":",null,":",null,":",null,":",null,":",null,":",null,":"]
["S11_S12","B","EPS_P51G_NP",null,null,null,null,null,2020,":",null,":",null,":",null,":",null,":",null,":",null,":",null,":",null,":",null,":",null,":",null,":"]
["S11_S12","B","EPS_P51G_NP",null,null,null,null,null,2021,":",null,":",null,":",null,":",null,":",null,":",null,":",null,":",null,":",null,":",null,":",null,":"]
["S11_S12","B","EPS_P51G_NP",null,null,null,null,null,2022,":",null,":",null,":",null,":",null,":",null,":",null,":",null,":",null,":",null,":",null,":",null,":"]
["S11_S12","B","EPS_P51G_NP",null,null,null,null,null,2023,":",null,":",null,":",null,":",null,":",null,":",null,":",null,":",null,":",null,":",null,":",null,":"]
["S11_S12","B","EPS_P51G_NP",null,null,null,null,null,2024,":",null,":",null,":",null,":",null,":",null,":",null,":",null,":",null,":",null,":",null,":",null,":"]
["S11_S12","B","EPS_P51G_NP",null,null,null,null,null,2025,":",null,":",null,":",null,":",null,":",null,":",null,":",null,":",null,":",null,":",null,":",null,":"]
["S11_S12","B","EPS_P51G_NP",null,null,null,null,null,2026,":",null,":",null,":",null,":",null,":",null,":",null,":",null,":",null,":",null,":",null,":",null,":"]
["S11_S12","B","EPS_P51G_NP",null,null,null,null,null,2027,":",null,":",null,":",null,":",null,":",null,":",null,":",null,":",null,":",null,":",null,":",null,":"]
["S11_S12","B","EPS_P51G_NP",null,null,null,null,null,2028,":",null,":",null,":",null,":",null,":",null,":",null,":",null,":",null,":",null,":",null,":",null,":"]
["S11_S12","B","EPS_P51G_NP",null,null,null,null,null,2029,":",null,":",null,":",null,":",null,":",null,":",null,":",null,":",null,":",null,":",null,":",null,":"]
["S11_S12","B","EPS_P51G_NP",null,null,null,null,null,2030,":",null,":",null,":",null,":",null,":",null,":",null,":",null,":",null,":",null,":",null,":",null,":"]
["S11_S12","B","EPS_P51G_NP",null,null,null,null,null,2031,":",null,":",null,":",null,":",null,":",null,":",null,":",null,":",null,":",null,":",null,":",null,":"]
["S11_S12","B","EPS_INV_PT",null,"( INV_EOP.3a )  GFCF on specific EP fixed assets (end-of-pipe technologies) ",null,null,null,2014,":",null,":",null,":",null,":",null,":",null,":",null,":",null,":",null,":",null,":",null,":",null,":"]
["S11_S12","B","EPS_INV_PT",null,null,null,null,null,2015,":",null,":",null,":",null,":",null,":",null,":",null,":",null,":",null,":",null,":",null,":",null,":"]
["S11_S12","B","EPS_INV_PT",null,null,null,null,null,2016,":",null,":",null,":",null,":",null,":",null,":",null,":",null,":",null,":",null,":",null,":",null,":"]
["S11_S12","B","EPS_INV_PT",null,null,null,null,null,2017,":",null,":",null,":",null,":",null,":",null,":",null,":",null,":",null,":",null,":",null,":",null,":"]
["S11_S12","B","EPS_INV_PT",null,null,null,null,null,2018,":",null,":",null,":",null,":",null,":",null,":",null,":",null,":",null,":",null,":",null,":",null,":"]
["S11_S12","B","EPS_INV_PT",null,null,null,null,null,2019,":",null,":",null,":",null,":",null,":",null,":",null,":",null,":",null,":",null,":",null,":",null,":"]
["S11_S12","B","EPS_INV_PT",null,null,null,null,null,2020,":",null,":",null,":",null,":",null,":",null,":",null,":",null,":",null,":",null,":",null,":",null,":"]
["S11_S12","B","EPS_INV_PT",null,null,null,null,null,2021,":",null,":",null,":",null,":",null,":",null,":",null,":",null,":",null,":",null,":",null,":",null,":"]
["S11_S12","B","EPS_INV_PT",null,null,null,null,null,2022,":",null,":",null,":",null,":",null,":",null,":",null,":",null,":",null,":",null,":",null,":",null,":"]
["S11_S12","B","EPS_INV_PT",null,null,null,null,null,2023,":",null,":",null,":",null,":",null,":",null,":",null,":",null,":",null,":",null,":",null,":",null,":"]
["S11_S12","B","EPS_INV_PT",null,null,null,null,null,2024,":",null,":",null,":",null,":",null,":",null,":",null,":",null,":",null,":",null,":",null,":",null,":"]
["S11_S12","B","EPS_INV_PT",null,null,null,null,null,2025,":",null,":",null,":",null,":",null,":",null,":",null,":",null,":",null,":",null,":",null,":",null,":"]
["S11_S12","B","EPS_INV_PT",null,null,null,null,null,2026,":",null,":",null,":",null,":",null,":",null,":",null,":",null,":",null,":",null,":",null,":",null,":"]
["S11_S12","B","EPS_INV_PT",null,null,null,null,null,2027,":",null,":",null,":",null,":",null,":",null,":",null,":",null,":",null,":",null,":",null,":",null,":"]
["S11_S12","B","EPS_INV_PT",null,null,null,null,null,2028,":",null,":",null,":",null,":",null,":",null,":",null,":",null,":",null,":",null,":",null,":",null,":"]
["S11_S12","B","EPS_INV_PT",null,null,null,null,null,2029,":",null,":",null,":",null,":",null,":",null,":",null,":",null,":",null,":",null,":",null,":",null,":"]
["S11_S12","B","EPS_INV_PT",null,null,null,null,null,2030,":",null,":",null,":",null,":",null,":",null,":",null,":",null,":",null,":",null,":",null,":",null,":"]
["S11_S12","B","EPS_INV_PT",null,null,null,null,null,2031,":",null,":",null,":",null,":",null,":",null,":",null,":",null,":",null,":",null,":",null,":",null,":"]
["S11_S12","B","EPS_INV_PP",null,"( INV_IT.3a ) GFCF on cleaner EP fixed assets (integrated technologies)",null,null,null,2014,":",null,":",null,":",null,":",null,":",null,":",null,":",null,":",null,":",null,":",null,":",null,":"]
["S11_S12","B","EPS_INV_PP",null,null,null,null,null,2015,":",null,":",null,":",null,":",null,":",null,":",null,":",null,":",null,":",null,":",null,":",null,":"]
["S11_S12","B","EPS_INV_PP",null,null,null,null,null,2016,":",null,":",null,":",null,":",null,":",null,":",null,":",null,":",null,":",null,":",null,":",null,":"]
["S11_S12","B","EPS_INV_PP",null,null,null,null,null,2017,":",null,":",null,":",null,":",null,":",null,":",null,":",null,":",null,":",null,":",null,":",null,":"]
["S11_S12","B","EPS_INV_PP",null,null,null,null,null,2018,":",null,":",null,":",null,":",null,":",null,":",null,":",null,":",null,":",null,":",null,":",null,":"]
["S11_S12","B","EPS_INV_PP",null,null,null,null,null,2019,":",null,":",null,":",null,":",null,":",null,":",null,":",null,":",null,":",null,":",null,":",null,":"]
["S11_S12","B","EPS_INV_PP",null,null,null,null,null,2020,":",null,":",null,":",null,":",null,":",null,":",null,":",null,":",null,":",null,":",null,":",null,":"]
["S11_S12","B","EPS_INV_PP",null,null,null,null,null,2021,":",null,":",null,":",null,":",null,":",null,":",null,":",null,":",null,":",null,":",null,":",null,":"]
["S11_S12","B","EPS_INV_PP",null,null,null,null,null,2022,":",null,":",null,":",null,":",null,":",null,":",null,":",null,":",null,":",null,":",null,":",null,":"]
["S11_S12","B","EPS_INV_PP",null,null,null,null,null,2023,":",null,":",null,":",null,":",null,":",null,":",null,":",null,":",null,":",null,":",null,":",null,":"]
["S11_S12","B","EPS_INV_PP",null,null,null,null,null,2024,":",null,":",null,":",null,":",null,":",null,":",null,":",null,":",null,":",null,":",null,":",null,":"]
["S11_S12","B","EPS_INV_PP",null,null,null,null,null,2025,":",null,":",null,":",null,":",null,":",null,":",null,":",null,":",null,":",null,":",null,":",null,":"]
["S11_S12","B","EPS_INV_PP",null,null,null,null,null,2026,":",null,":",null,":",null,":",null,":",null,":",null,":",null,":",null,":",null,":",null,":",null,":"]
["S11_S12","B","EPS_INV_PP",null,null,null,null,null,2027,":",null,":",null,":",null,":",null,":",null,":",null,":",null,":",null,":",null,":",null,":",null,":"]
["S11_S12","B","EPS_INV_PP",null,null,null,null,null,2028,":",null,":",null,":",null,":",null,":",null,":",null,":",null,":",null,":",null,":",null,":",null,":"]
["S11_S12","B","EPS_INV_PP",null,null,null,null,null,2029,":",null,":",null,":",null,":",null,":",null,":",null,":",null,":",null,":",null,":",null,":",null,":"]
["S11_S12","B","EPS_INV_PP",null,null,null,null,null,2030,":",null,":",null,":",null,":",null,":",null,":",null,":",null,":",null,":",null,":",null,":",null,":"]
["S11_S12","B","EPS_INV_PP",null,null,null,null,null,2031,":",null,":",null,":",null,":",null,":",null,":",null,":",null,":",null,":",null,":",null,":",null,":"]
["S11_S12","B","EPS_P2",null,"( P2.3a ) Total intermediate consumption",null,null,null,2014,":",null,":",null,":",null,":",null,":",null,":",null,":",null,":",null,":",null,":",null,":",null,":"]
["S11_S12","B","EPS_P2",null,null,null,null,null,2015,":",null,":",null,":",null,":",null,":",null,":",null,":",null,":",null,":",null,":",null,":",null,":"]
["S11_S12","B","EPS_P2",null,null,null,null,null,2016,":",null,":",null,":",null,":",null,":",null,":",null,":",null,":",null,":",null,":",null,":",null,":"]
["S11_S12","B","EPS_P2",null,null,null,null,null,2017,":",null,":",null,":",null,":",null,":",null,":",null,":",null,":",null,":",null,":",null,":",null,":"]
["S11_S12","B","EPS_P2",null,null,null,null,null,2018,":",null,":",null,":",null,":",null,":",null,":",null,":",null,":",null,":",null,":",null,":",null,":"]
["S11_S12","B","EPS_P2",null,null,null,null,null,2019,":",null,":",null,":",null,":",null,":",null,":",null,":",null,":",null,":",null,":",null,":",null,":"]
["S11_S12","B","EPS_P2",null,null,null,null,null,2020,":",null,":",null,":",null,":",null,":",null,":",null,":",null,":",null,":",null,":",null,":",null,":"]
["S11_S12","B","EPS_P2",null,null,null,null,null,2021,":",null,":",null,":",null,":",null,":",null,":",null,":",null,":",null,":",null,":",null,":",null,":"]
["S11_S12","B","EPS_P2",null,null,null,null,null,2022,":",null,":",null,":",null,":",null,":",null,":",null,":",null,":",null,":",null,":",null,":",null,":"]
["S11_S12","B","EPS_P2",null,null,null,null,null,2023,":",null,":",null,":",null,":",null,":",null,":",null,":",null,":",null,":",null,":",null,":",null,":"]
["S11_S12","B","EPS_P2",null,null,null,null,null,2024,":",null,":",null,":",null,":",null,":",null,":",null,":",null,":",null,":",null,":",null,":",null,":"]
["S11_S12","B","EPS_P2",null,null,null,null,null,2025,":",null,":",null,":",null,":",null,":",null,":",null,":",null,":",null,":",null,":",null,":",null,{"$f":"IF(COUNT(J72,N72,P72,R72,T72,V72,AD72)=7,SUM(J72,N72,P72,R72,T72,V72,AD72),\":\")","v":":"}]
["S11_S12","B","EPS_P2",null,null,null,null,null,2026,":",null,":",null,":",null,":",null,":",null,":",null,":",null,":",null,":",null,":",null,":",null,":"]
["S11_S12","B","EPS_P2",null,null,null,null,null,2027,":",null,":",null,":",null,":",null,":",null,":",null,":",null,":",null,":",null,":",null,":",null,":"]
["S11_S12","B","EPS_P2",null,null,null,null,null,2028,":",null,":",null,":",null,":",null,":",null,":",null,":",null,":",null,":",null,":",null,":",null,":"]
["S11_S12","B","EPS_P2",null,null,null,null,null,2029,":",null,":",null,":",null,":",null,":",null,":",null,":",null,":",null,":",null,":",null,":",null,":"]
["S11_S12","B","EPS_P2",null,null,null,null,null,2030,":",null,":",null,":",null,":",null,":",null,":",null,":",null,":",null,":",null,":",null,":",null,":"]
["S11_S12","B","EPS_P2",null,null,null,null,null,2031,":",null,":",null,":",null,":",null,":",null,":",null,":",null,":",null,":",null,":",null,":",null,":"]
["S11_S12","B","EPS_P2_EPS",null,"( P2_EPS.3a ) Intermediate consumption of EP services for ancillary production of EP services ",null,null,null,2014,":",null,":",null,":",null,":",null,":",null,":",null,":",null,":",null,":",null,":",null,":",null,":"]
["S11_S12","B","EPS_P2_EPS",null,"(P2_EPS.3: please consider the explanatory notes - click here)",null,null,null,2015,":",null,":",null,":",null,":",null,":",null,":",null,":",null,":",null,":",null,":",null,":",null,":"]
["S11_S12","B","EPS_P2_EPS",null,null,null,null,null,2016,":",null,":",null,":",null,":",null,":",null,":",null,":",null,":",null,":",null,":",null,":",null,":"]
["S11_S12","B","EPS_P2_EPS",null,null,null,null,null,2017,":",null,":",null,":",null,":",null,":",null,":",null,":",null,":",null,":",null,":",null,":",null,":"]
["S11_S12","B","EPS_P2_EPS",null,null,null,null,null,2018,":",null,":",null,":",null,":",null,":",null,":",null,":",null,":",null,":",null,":",null,":",null,":"]
["S11_S12","B","EPS_P2_EPS",null,null,null,null,null,2019,":",null,":",null,":",null,":",null,":",null,":",null,":",null,":",null,":",null,":",null,":",null,":"]
["S11_S12","B","EPS_P2_EPS",null,null,null,null,null,2020,":",null,":",null,":",null,":",null,":",null,":",null,":",null,":",null,":",null,":",null,":",null,":"]
["S11_S12","B","EPS_P2_EPS",null,null,null,null,null,2021,":",null,":",null,":",null,":",null,":",null,":",null,":",null,":",null,":",null,":",null,":",null,":"]
["S11_S12","B","EPS_P2_EPS",null,null,null,null,null,2022,":",null,":",null,":",null,":",null,":",null,":",null,":",null,":",null,":",null,":",null,":",null,":"]
["S11_S12","B","EPS_P2_EPS",null,null,null,null,null,2023,":",null,":",null,":",null,":",null,":",null,":",null,":",null,":",null,":",null,":",null,":",null,":"]
["S11_S12","B","EPS_P2_EPS",null,null,null,null,null,2024,":",null,":",null,":",null,":",null,":",null,":",null,":",null,":",null,":",null,":",null,":",null,":"]
["S11_S12","B","EPS_P2_EPS",null,null,null,null,null,2025,":",null,":",null,":",null,":",null,":",null,":",null,":",null,":",null,":",null,":",null,":",null,":"]
["S11_S12","B","EPS_P2_EPS",null,null,null,null,null,2026,":",null,":",null,":",null,":",null,":",null,":",null,":",null,":",null,":",null,":",null,":",null,":"]
["S11_S12","B","EPS_P2_EPS",null,null,null,null,null,2027,":",null,":",null,":",null,":",null,":",null,":",null,":",null,":",null,":",null,":",null,":",null,":"]
["S11_S12","B","EPS_P2_EPS",null,null,null,null,null,2028,":",null,":",null,":",null,":",null,":",null,":",null,":",null,":",null,":",null,":",null,":",null,":"]
["S11_S12","B","EPS_P2_EPS",null,null,null,null,null,2029,":",null,":",null,":",null,":",null,":",null,":",null,":",null,":",null,":",null,":",null,":",null,":"]
["S11_S12","B","EPS_P2_EPS",null,null,null,null,null,2030,":",null,":",null,":",null,":",null,":",null,":",null,":",null,":",null,":",null,":",null,":",null,":"]
["S11_S12","B","EPS_P2_EPS",null,null,null,null,null,2031,":",null,":",null,":",null,":",null,":",null,":",null,":",null,":",null,":",null,":",null,":",null,":"]
["S11_S12","B","EPS_P2_NEPS",null,"( P2_NEPS.3a ) Intermediate consumption (excluding EP services)",null,null,null,2014,":",null,":",null,":",null,":",null,":",null,":",null,":",null,":",null,":",null,":",null,":",null,":"]
["S11_S12","B","EPS_P2_NEPS",null,null,null,null,null,2015,":",null,":",null,":",null,":",null,":",null,":",null,":",null,":",null,":",null,":",null,":",null,":"]
["S11_S12","B","EPS_P2_NEPS",null,null,null,null,null,2016,":",null,":",null,":",null,":",null,":",null,":",null,":",null,":",null,":",null,":",null,":",null,":"]
["S11_S12","B","EPS_P2_NEPS",null,null,null,null,null,2017,":",null,":",null,":",null,":",null,":",null,":",null,":",null,":",null,":",null,":",null,":",null,":"]
["S11_S12","B","EPS_P2_NEPS",null,null,null,null,null,2018,":",null,":",null,":",null,":",null,":",null,":",null,":",null,":",null,":",null,":",null,":",null,":"]
["S11_S12","B","EPS_P2_NEPS",null,null,null,null,null,2019,":",null,":",null,":",null,":",null,":",null,":",null,":",null,":",null,":",null,":",null,":",null,":"]
["S11_S12","B","EPS_P2_NEPS",null,null,null,null,null,2020,":",null,":",null,":",null,":",null,":",null,":",null,":",null,":",null,":",null,":",null,":",null,":"]
["S11_S12","B","EPS_P2_NEPS",null,null,null,null,null,2021,":",null,":",null,":",null,":",null,":",null,":",null,":",null,":",null,":",null,":",null,":",null,":"]
["S11_S12","B","EPS_P2_NEPS",null,null,null,null,null,2022,":",null,":",null,":",null,":",null,":",null,":",null,":",null,":",null,":",null,":",null,":",null,":"]
["S11_S12","B","EPS_P2_NEPS",null,null,null,null,null,2023,":",null,":",null,":",null,":",null,":",null,":",null,":",null,":",null,":",null,":",null,":",null,":"]
["S11_S12","B","EPS_P2_NEPS",null,null,null,null,null,2024,":",null,":",null,":",null,":",null,":",null,":",null,":",null,":",null,":",null,":",null,":",null,":"]
["S11_S12","B","EPS_P2_NEPS",null,null,null,null,null,2025,":",null,":",null,":",null,":",null,":",null,":",null,":",null,":",null,":",null,":",null,":",null,":"]
["S11_S12","B","EPS_P2_NEPS",null,null,null,null,null,2026,":",null,":",null,":",null,":",null,":",null,":",null,":",null,":",null,":",null,":",null,":",null,":"]
["S11_S12","B","EPS_P2_NEPS",null,null,null,null,null,2027,":",null,":",null,":",null,":",null,":",null,":",null,":",null,":",null,":",null,":",null,":",null,":"]
["S11_S12","B","EPS_P2_NEPS",null,null,null,null,null,2028,":",null,":",null,":",null,":",null,":",null,":",null,":",null,":",null,":",null,":",null,":",null,":"]
["S11_S12","B","EPS_P2_NEPS",null,null,null,null,null,2029,":",null,":",null,":",null,":",null,":",null,":",null,":",null,":",null,":",null,":",null,":",null,":"]
["S11_S12","B","EPS_P2_NEPS",null,null,null,null,null,2030,":",null,":",null,":",null,":",null,":",null,":",null,":",null,":",null,":",null,":",null,":",null,":"]
["S11_S12","B","EPS_P2_NEPS",null,null,null,null,null,2031,":",null,":",null,":",null,":",null,":",null,":",null,":",null,":",null,":",null,":",null,":",null,":"]
["S11_S12","B","EPS_D1",null,"( D1.3a ) Compensation of employees",null,null,null,2014,":",null,":",null,":",null,":",null,":",null,":",null,":",null,":",null,":",null,":",null,":",null,":"]
["S11_S12","B","EPS_D1",null,null,null,null,null,2015,":",null,":",null,":",null,":",null,":",null,":",null,":",null,":",null,":",null,":",null,":",null,":"]
["S11_S12","B","EPS_D1",null,null,null,null,null,2016,":",null,":",null,":",null,":",null,":",null,":",null,":",null,":",null,":",null,":",null,":",null,":"]
["S11_S12","B","EPS_D1",null,null,null,null,null,2017,":",null,":",null,":",null,":",null,":",null,":",null,":",null,":",null,":",null,":",null,":",null,":"]
["S11_S12","B","EPS_D1",null,null,null,null,null,2018,":",null,":",null,":",null,":",null,":",null,":",null,":",null,":",null,":",null,":",null,":",null,":"]
["S11_S12","B","EPS_D1",null,null,null,null,null,2019,":",null,":",null,":",null,":",null,":",null,":",null,":",null,":",null,":",null,":",null,":",null,":"]
["S11_S12","B","EPS_D1",null,null,null,null,null,2020,":",null,":",null,":",null,":",null,":",null,":",null,":",null,":",null,":",null,":",null,":",null,":"]
["S11_S12","B","EPS_D1",null,null,null,null,null,2021,":",null,":",null,":",null,":",null,":",null,":",null,":",null,":",null,":",null,":",null,":",null,":"]
["S11_S12","B","EPS_D1",null,null,null,null,null,2022,":",null,":",null,":",null,":",null,":",null,":",null,":",null,":",null,":",null,":",null,":",null,":"]
["S11_S12","B","EPS_D1",null,null,null,null,null,2023,":",null,":",null,":",null,":",null,":",null,":",null,":",null,":",null,":",null,":",null,":",null,":"]
["S11_S12","B","EPS_D1",null,null,null,null,null,2024,":",null,":",null,":",null,":",null,":",null,":",null,":",null,":",null,":",null,":",null,":",null,":"]
["S11_S12","B","EPS_D1",null,null,null,null,null,2025,":",null,":",null,":",null,":",null,":",null,":",null,":",null,":",null,":",null,":",null,":",null,":"]
["S11_S12","B","EPS_D1",null,null,null,null,null,2026,":",null,":",null,":",null,":",null,":",null,":",null,":",null,":",null,":",null,":",null,":",null,":"]
["S11_S12","B","EPS_D1",null,null,null,null,null,2027,":",null,":",null,":",null,":",null,":",null,":",null,":",null,":",null,":",null,":",null,":",null,":"]
["S11_S12","B","EPS_D1",null,null,null,null,null,2028,":",null,":",null,":",null,":",null,":",null,":",null,":",null,":",null,":",null,":",null,":",null,":"]
["S11_S12","B","EPS_D1",null,null,null,null,null,2029,":",null,":",null,":",null,":",null,":",null,":",null,":",null,":",null,":",null,":",null,":",null,":"]
["S11_S12","B","EPS_D1",null,null,null,null,null,2030,":",null,":",null,":",null,":",null,":",null,":",null,":",null,":",null,":",null,":",null,":",null,":"]
["S11_S12","B","EPS_D1",null,null,null,null,null,2031,":",null,":",null,":",null,":",null,":",null,":",null,":",null,":",null,":",null,":",null,":",null,":"]
["S11_S12","B","EPS_P1_ANC",null,"( P1_ANC.3a ) Ancillary EP output (simplified valuation legally acceptable) ((P2_NEPS.3a) + (D1.3a))",null,null,null,2014,":",null,":",null,":",null,":",null,":",null,":",null,":",null,":",null,":",null,":",null,":",null,":"]
["S11_S12","B","EPS_P1_ANC",null,null,null,null,null,2015,":",null,":",null,":",null,":",null,":",null,":",null,":",null,":",null,":",null,":",null,":",null,":"]
["S11_S12","B","EPS_P1_ANC",null,null,null,null,null,2016,":",null,":",null,":",null,":",null,":",null,":",null,":",null,":",null,":",null,":",null,":",null,":"]
["S11_S12","B","EPS_P1_ANC",null,null,null,null,null,2017,":",null,":",null,":",null,":",null,":",null,":",null,":",null,":",null,":",null,":",null,":",null,{"$f":"IF(COUNT(J136,N136,P136,R136,T136,V136,AD136)=7,SUM(J136,N136,P136,R136,T136,V136,AD136),\":\")","v":":"}]
["S11_S12","B","EPS_P1_ANC",null,null,null,null,null,2018,":",null,":",null,":",null,":",null,":",null,":",null,":",null,":",null,":",null,":",null,":",null,":"]
["S11_S12","B","EPS_P1_ANC",null,null,null,null,null,2019,":",null,":",null,":",null,":",null,":",null,":",null,":",null,":",null,":",null,":",null,":",null,":"]
["S11_S12","B","EPS_P1_ANC",null,null,null,null,null,2020,":",null,":",null,":",null,":",null,":",null,":",null,":",null,":",null,":",null,":",null,":",null,":"]
["S11_S12","B","EPS_P1_ANC",null,null,null,null,null,2021,":",null,":",null,":",null,":",null,":",null,":",null,":",null,":",null,":",null,":",null,":",null,":"]
["S11_S12","B","EPS_P1_ANC",null,null,null,null,null,2022,":",null,":",null,":",null,":",null,":",null,":",null,":",null,":",null,":",null,":",null,":",null,":"]
["S11_S12","B","EPS_P1_ANC",null,null,null,null,null,2023,":",null,":",null,":",null,":",null,":",null,":",null,":",null,":",null,":",null,":",null,":",null,":"]
["S11_S12","B","EPS_P1_ANC",null,null,null,null,null,2024,":",null,":",null,":",null,":",null,":",null,":",null,":",null,":",null,":",null,":",null,":",null,":"]
["S11_S12","B","EPS_P1_ANC",null,null,null,null,null,2025,":",null,":",null,":",null,":",null,":",null,":",null,":",null,":",null,":",null,":",null,":",null,":"]
["S11_S12","B","EPS_P1_ANC",null,null,null,null,null,2026,":",null,":",null,":",null,":",null,":",null,":",null,":",null,":",null,":",null,":",null,":",null,":"]
["S11_S12","B","EPS_P1_ANC",null,null,null,null,null,2027,":",null,":",null,":",null,":",null,":",null,":",null,":",null,":",null,":",null,":",null,":",null,":"]
["S11_S12","B","EPS_P1_ANC",null,null,null,null,null,2028,":",null,":",null,":",null,":",null,":",null,":",null,":",null,":",null,":",null,":",null,":",null,":"]
["S11_S12","B","EPS_P1_ANC",null,null,null,null,null,2029,":",null,":",null,":",null,":",null,":",null,":",null,":",null,":",null,":",null,":",null,":",null,":"]
["S11_S12","B","EPS_P1_ANC",null,null,null,null,null,2030,":",null,":",null,":",null,":",null,":",null,":",null,":",null,":",null,":",null,":",null,":",null,":"]
["S11_S12","B","EPS_P1_ANC",null,null,null,null,null,2031,":",null,":",null,":",null,":",null,":",null,":",null,":",null,":",null,":",null,":",null,":",null,":"]
["S11_S12","B","EPS_D29X39",null,"   ( D29-D39.3a ) Other taxes less subsidies on production",null,null,null,2014,":",null,":",null,":",null,":",null,":",null,":",null,":",null,":",null,":",null,":",null,":",null,":"]
["S11_S12","B","EPS_D29X39",null,null,null,null,null,2015,":",null,":",null,":",null,":",null,":",null,":",null,":",null,":",null,":",null,":",null,":",null,":"]
["S11_S12","B","EPS_D29X39",null,null,null,null,null,2016,":",null,":",null,":",null,":",null,":",null,":",null,":",null,":",null,":",null,":",null,":",null,":"]
["S11_S12","B","EPS_D29X39",null,null,null,null,null,2017,":",null,":",null,":",null,":",null,":",null,":",null,":",null,":",null,":",null,":",null,":",null,":"]
["S11_S12","B","EPS_D29X39",null,null,null,null,null,2018,":",null,":",null,":",null,":",null,":",null,":",null,":",null,":",null,":",null,":",null,":",null,":"]
["S11_S12","B","EPS_D29X39",null,null,null,null,null,2019,":",null,":",null,":",null,":",null,":",null,":",null,":",null,":",null,":",null,":",null,":",null,":"]
["S11_S12","B","EPS_D29X39",null,null,null,null,null,2020,":",null,":",null,":",null,":",null,":",null,":",null,":",null,":",null,":",null,":",null,":",null,":"]
["S11_S12","B","EPS_D29X39",null,null,null,null,null,2021,":",null,":",null,":",null,":",null,":",null,":",null,":",null,":",null,":",null,":",null,":",null,":"]
["S11_S12","B","EPS_D29X39",null,null,null,null,null,2022,":",null,":",null,":",null,":",null,":",null,":",null,":",null,":",null,":",null,":",null,":",null,":"]
["S11_S12","B","EPS_D29X39",null,null,null,null,null,2023,":",null,":",null,":",null,":",null,":",null,":",null,":",null,":",null,":",null,":",null,":",null,":"]
["S11_S12","B","EPS_D29X39",null,null,null,null,null,2024,":",null,":",null,":",null,":",null,":",null,":",null,":",null,":",null,":",null,":",null,":",null,":"]
["S11_S12","B","EPS_D29X39",null,null,null,null,null,2025,":",null,":",null,":",null,":",null,":",null,":",null,":",null,":",null,":",null,":",null,":",null,":"]
["S11_S12","B","EPS_D29X39",null,null,null,null,null,2026,":",null,":",null,":",null,":",null,":",null,":",null,":",null,":",null,":",null,":",null,":",null,":"]
["S11_S12","B","EPS_D29X39",null,null,null,null,null,2027,":",null,":",null,":",null,":",null,":",null,":",null,":",null,":",null,":",null,":",null,":",null,":"]
["S11_S12","B","EPS_D29X39",null,null,null,null,null,2028,":",null,":",null,":",null,":",null,":",null,":",null,":",null,":",null,":",null,":",null,":",null,":"]
["S11_S12","B","EPS_D29X39",null,null,null,null,null,2029,":",null,":",null,":",null,":",null,":",null,":",null,":",null,":",null,":",null,":",null,":",null,":"]
["S11_S12","B","EPS_D29X39",null,null,null,null,null,2030,":",null,":",null,":",null,":",null,":",null,":",null,":",null,":",null,":",null,":",null,":",null,":"]
["S11_S12","B","EPS_D29X39",null,null,null,null,null,2031,":",null,":",null,":",null,":",null,":",null,":",null,":",null,":",null,":",null,":",null,":",null,":"]
["S11_S12","B","EPS_P51C",null,"   ( P51C.3a ) Consumption of fixed capital",null,null,null,2014,":",null,":",null,":",null,":",null,":",null,":",null,":",null,":",null,":",null,":",null,":",null,":"]
["S11_S12","B","EPS_P51C",null,null,null,null,null,2015,":",null,":",null,":",null,":",null,":",null,":",null,":",null,":",null,":",null,":",null,":",null,":"]
["S11_S12","B","EPS_P51C",null,null,null,null,null,2016,":",null,":",null,":",null,":",null,":",null,":",null,":",null,":",null,":",null,":",null,":",null,":"]
["S11_S12","B","EPS_P51C",null,null,null,null,null,2017,":",null,":",null,":",null,":",null,":",null,":",null,":",null,":",null,":",null,":",null,":",null,":"]
["S11_S12","B","EPS_P51C",null,null,null,null,null,2018,":",null,":",null,":",null,":",null,":",null,":",null,":",null,":",null,":",null,":",null,":",null,":"]
["S11_S12","B","EPS_P51C",null,null,null,null,null,2019,":",null,":",null,":",null,":",null,":",null,":",null,":",null,":",null,":",null,":",null,":",null,":"]
["S11_S12","B","EPS_P51C",null,null,null,null,null,2020,":",null,":",null,":",null,":",null,":",null,":",null,":",null,":",null,":",null,":",null,":",null,":"]
["S11_S12","B","EPS_P51C",null,null,null,null,null,2021,":",null,":",null,":",null,":",null,":",null,":",null,":",null,":",null,":",null,":",null,":",null,":"]
["S11_S12","B","EPS_P51C",null,null,null,null,null,2022,":",null,":",null,":",null,":",null,":",null,":",null,":",null,":",null,":",null,":",null,":",null,":"]
["S11_S12","B","EPS_P51C",null,null,null,null,null,2023,":",null,":",null,":",null,":",null,":",null,":",null,":",null,":",null,":",null,":",null,":",null,":"]
["S11_S12","B","EPS_P51C",null,null,null,null,null,2024,":",null,":",null,":",null,":",null,":",null,":",null,":",null,":",null,":",null,":",null,":",null,":"]
["S11_S12","B","EPS_P51C",null,null,null,null,null,2025,":",null,":",null,":",null,":",null,":",null,":",null,":",null,":",null,":",null,":",null,":",null,":"]
["S11_S12","B","EPS_P51C",null,null,null,null,null,2026,":",null,":",null,":",null,":",null,":",null,":",null,":",null,":",null,":",null,":",null,":",null,":"]
["S11_S12","B","EPS_P51C",null,null,null,null,null,2027,":",null,":",null,":",null,":",null,":",null,":",null,":",null,":",null,":",null,":",null,":",null,":"]
["S11_S12","B","EPS_P51C",null,null,null,null,null,2028,":",null,":",null,":",null,":",null,":",null,":",null,":",null,":",null,":",null,":",null,":",null,":"]
["S11_S12","B","EPS_P51C",null,null,null,null,null,2029,":",null,":",null,":",null,":",null,":",null,":",null,":",null,":",null,":",null,":",null,":",null,":"]
["S11_S12","B","EPS_P51C",null,null,null,null,null,2030,":",null,":",null,":",null,":",null,":",null,":",null,":",null,":",null,":",null,":",null,":",null,":"]
["S11_S12","B","EPS_P51C",null,null,null,null,null,2031,":",null,":",null,":",null,":",null,":",null,":",null,":",null,":",null,":",null,":",null,":",null,":"]
["S11_S12","B","EPS_P1_ANCESA",null,"( P1_ANC_ESA.3a ) Ancillary EP output (ESA-compatible output) ((P2_NEPS.3a) + (D1.3a) + (P51C.3a) + (D29-D39.3a))",null,null,null,2014,":",null,":",null,":",null,":",null,":",null,":",null,":",null,":",null,":",null,":",null,":",null,":"]
["S11_S12","B","EPS_P1_ANCESA",null,null,null,null,null,2015,":",null,":",null,":",null,":",null,":",null,":",null,":",null,":",null,":",null,":",null,":",null,":"]
["S11_S12","B","EPS_P1_ANCESA",null,null,null,null,null,2016,":",null,":",null,":",null,":",null,":",null,":",null,":",null,":",null,":",null,":",null,":",null,":"]
["S11_S12","B","EPS_P1_ANCESA",null,null,null,null,null,2017,":",null,":",null,":",null,":",null,":",null,":",null,":",null,":",null,":",null,":",null,":",null,":"]
["S11_S12","B","EPS_P1_ANCESA",null,null,null,null,null,2018,":",null,":",null,":",null,":",null,":",null,":",null,":",null,":",null,":",null,":",null,":",null,":"]
["S11_S12","B","EPS_P1_ANCESA",null,null,null,null,null,2019,":",null,":",null,":",null,":",null,":",null,":",null,":",null,":",null,":",null,":",null,":",null,":"]
["S11_S12","B","EPS_P1_ANCESA",null,null,null,null,null,2020,":",null,":",null,":",null,":",null,":",null,":",null,":",null,":",null,":",null,":",null,":",null,":"]
["S11_S12","B","EPS_P1_ANCESA",null,null,null,null,null,2021,":",null,":",null,":",null,":",null,":",null,":",null,":",null,":",null,":",null,":",null,":",null,":"]
["S11_S12","B","EPS_P1_ANCESA",null,null,null,null,null,2022,":",null,":",null,":",null,":",null,":",null,":",null,":",null,":",null,":",null,":",null,":",null,":"]
["S11_S12","B","EPS_P1_ANCESA",null,null,null,null,null,2023,":",null,":",null,":",null,":",null,":",null,":",null,":",null,":",null,":",null,":",null,":",null,":"]
["S11_S12","B","EPS_P1_ANCESA",null,null,null,null,null,2024,":",null,":",null,":",null,":",null,":",null,":",null,":",null,":",null,":",null,":",null,":",null,":"]
["S11_S12","B","EPS_P1_ANCESA",null,null,null,null,null,2025,":",null,":",null,":",null,":",null,":",null,":",null,":",null,":",null,":",null,":",null,":",null,":"]
["S11_S12","B","EPS_P1_ANCESA",null,null,null,null,null,2026,":",null,":",null,":",null,":",null,":",null,":",null,":",null,":",null,":",null,":",null,":",null,":"]
["S11_S12","B","EPS_P1_ANCESA",null,null,null,null,null,2027,":",null,":",null,":",null,":",null,":",null,":",null,":",null,":",null,":",null,":",null,":",null,{"$f":"IF(COUNT(J200,N200,P200,R200,T200,V200,AD200)=7,SUM(J200,N200,P200,R200,T200,V200,AD200),\":\")","v":":"}]
["S11_S12","B","EPS_P1_ANCESA",null,null,null,null,null,2028,":",null,":",null,":",null,":",null,":",null,":",null,":",null,":",null,":",null,":",null,":",null,":"]
["S11_S12","B","EPS_P1_ANCESA",null,null,null,null,null,2029,":",null,":",null,":",null,":",null,":",null,":",null,":",null,":",null,":",null,":",null,":",null,":"]
["S11_S12","B","EPS_P1_ANCESA",null,null,null,null,null,2030,":",null,":",null,":",null,":",null,":",null,":",null,":",null,":",null,":",null,":",null,":",null,":"]
["S11_S12","B","EPS_P1_ANCESA",null,null,null,null,null,2031,":",null,":",null,":",null,":",null,":",null,":",null,":",null,":",null,":",null,":",null,":",null,":"]
["S11_S12","B","EPS_REC_BYPR",null,"   ( RNO.3a ) Related non-EP output",null,null,null,2014,":",null,":",null,":",null,":",null,":",null,":",null,":",null,":",null,":",null,":",null,":",null,":"]
["S11_S12","B","EPS_REC_BYPR",null,null,null,null,null,2015,":",null,":",null,":",null,":",null,":",null,":",null,":",null,":",null,":",null,":",null,":",null,":"]
["S11_S12","B","EPS_REC_BYPR",null,null,null,null,null,2016,":",null,":",null,":",null,":",null,":",null,":",null,":",null,":",null,":",null,":",null,":",null,":"]
["S11_S12","B","EPS_REC_BYPR",null,null,null,null,null,2017,":",null,":",null,":",null,":",null,":",null,":",null,":",null,":",null,":",null,":",null,":",null,":"]
["S11_S12","B","EPS_REC_BYPR",null,null,null,null,null,2018,":",null,":",null,":",null,":",null,":",null,":",null,":",null,":",null,":",null,":",null,":",null,":"]
["S11_S12","B","EPS_REC_BYPR",null,null,null,null,null,2019,":",null,":",null,":",null,":",null,":",null,":",null,":",null,":",null,":",null,":",null,":",null,":"]
["S11_S12","B","EPS_REC_BYPR",null,null,null,null,null,2020,":",null,":",null,":",null,":",null,":",null,":",null,":",null,":",null,":",null,":",null,":",null,":"]
["S11_S12","B","EPS_REC_BYPR",null,null,null,null,null,2021,":",null,":",null,":",null,":",null,":",null,":",null,":",null,":",null,":",null,":",null,":",null,":"]
["S11_S12","B","EPS_REC_BYPR",null,null,null,null,null,2022,":",null,":",null,":",null,":",null,":",null,":",null,":",null,":",null,":",null,":",null,":",null,":"]
["S11_S12","B","EPS_REC_BYPR",null,null,null,null,null,2023,":",null,":",null,":",null,":",null,":",null,":",null,":",null,":",null,":",null,":",null,":",null,":"]
["S11_S12","B","EPS_REC_BYPR",null,null,null,null,null,2024,":",null,":",null,":",null,":",null,":",null,":",null,":",null,":",null,":",null,":",null,":",null,":"]
["S11_S12","B","EPS_REC_BYPR",null,null,null,null,null,2025,":",null,":",null,":",null,":",null,":",null,":",null,":",null,":",null,":",null,":",null,":",null,":"]
["S11_S12","B","EPS_REC_BYPR",null,null,null,null,null,2026,":",null,":",null,":",null,":",null,":",null,":",null,":",null,":",null,":",null,":",null,":",null,":"]
["S11_S12","B","EPS_REC_BYPR",null,null,null,null,null,2027,":",null,":",null,":",null,":",null,":",null,":",null,":",null,":",null,":",null,":",null,":",null,":"]
["S11_S12","B","EPS_REC_BYPR",null,null,null,null,null,2028,":",null,":",null,":",null,":",null,":",null,":",null,":",null,":",null,":",null,":",null,":",null,":"]
["S11_S12","B","EPS_REC_BYPR",null,null,null,null,null,2029,":",null,":",null,":",null,":",null,":",null,":",null,":",null,":",null,":",null,":",null,":",null,":"]
["S11_S12","B","EPS_REC_BYPR",null,null,null,null,null,2030,":",null,":",null,":",null,":",null,":",null,":",null,":",null,":",null,":",null,":",null,":",null,":"]
["S11_S12","B","EPS_REC_BYPR",null,null,null,null,null,2031,":",null,":",null,":",null,":",null,":",null,":",null,":",null,":",null,":",null,":",null,":",null,":"]
["S11_S12","B","TOT_P2_EPS","Transactions as users of EP services (ancillary production of EP services and other production)","( P2_EPS_EXT.3a ) Total intermediate consumption of EP services (for production of EP services and for other production)",null,null,null,2014,":",null,":",null,":",null,":",null,":",null,":",null,":",null,":",null,":",null,":",null,":",null,":"]
["S11_S12","B","TOT_P2_EPS",null,"(P2_EPS_EXT.3x: please consider the explanatory notes - click here)",null,null,null,2015,":",null,":",null,":",null,":",null,":",null,":",null,":",null,":",null,":",null,":",null,":",null,":"]
["S11_S12","B","TOT_P2_EPS",null,null,null,null,null,2016,":",null,":",null,":",null,":",null,":",null,":",null,":",null,":",null,":",null,":",null,":",null,":"]
["S11_S12","B","TOT_P2_EPS",null,null,null,null,null,2017,":",null,":",null,":",null,":",null,":",null,":",null,":",null,":",null,":",null,":",null,":",null,":"]
["S11_S12","B","TOT_P2_EPS",null,null,null,null,null,2018,":",null,":",null,":",null,":",null,":",null,":",null,":",null,":",null,":",null,":",null,":",null,":"]
["S11_S12","B","TOT_P2_EPS",null,null,null,null,null,2019,":",null,":",null,":",null,":",null,":",null,":",null,":",null,":",null,":",null,":",null,":",null,":"]
["S11_S12","B","TOT_P2_EPS",null,null,null,null,null,2020,":",null,":",null,":",null,":",null,":",null,":",null,":",null,":",null,":",null,":",null,":",null,":"]
["S11_S12","B","TOT_P2_EPS",null,null,null,null,null,2021,":",null,":",null,":",null,":",null,":",null,":",null,":",null,":",null,":",null,":",null,":",null,":"]
["S11_S12","B","TOT_P2_EPS",null,null,null,null,null,2022,":",null,":",null,":",null,":",null,":",null,":",null,":",null,":",null,":",null,":",null,":",null,":"]
["S11_S12","B","TOT_P2_EPS",null,null,null,null,null,2023,":",null,":",null,":",null,":",null,":",null,":",null,":",null,":",null,":",null,":",null,":",null,":"]
["S11_S12","B","TOT_P2_EPS",null,null,null,null,null,2024,":",null,":",null,":",null,":",null,":",null,":",null,":",null,":",null,":",null,":",null,":",null,":"]
["S11_S12","B","TOT_P2_EPS",null,null,null,null,null,2025,":",null,":",null,":",null,":",null,":",null,":",null,":",null,":",null,":",null,":",null,":",null,":"]
["S11_S12","B","TOT_P2_EPS",null,null,null,null,null,2026,":",null,":",null,":",null,":",null,":",null,":",null,":",null,":",null,":",null,":",null,":",null,":"]
["S11_S12","B","TOT_P2_EPS",null,null,null,null,null,2027,":",null,":",null,":",null,":",null,":",null,":",null,":",null,":",null,":",null,":",null,":",null,":"]
["S11_S12","B","TOT_P2_EPS",null,null,null,null,null,2028,":",null,":",null,":",null,":",null,":",null,":",null,":",null,":",null,":",null,":",null,":",null,":"]
["S11_S12","B","TOT_P2_EPS",null,null,null,null,null,2029,":",null,":",null,":",null,":",null,":",null,":",null,":",null,":",null,":",null,":",null,":",null,":"]
["S11_S12","B","TOT_P2_EPS",null,null,null,null,null,2030,":",null,":",null,":",null,":",null,":",null,":",null,":",null,":",null,":",null,":",null,":",null,":"]
["S11_S12","B","TOT_P2_EPS",null,null,null,null,null,2031,":",null,":",null,":",null,":",null,":",null,":",null,":",null,":",null,":",null,":",null,":",null,":"]
["S11_S12","B","EPS_EMP","Transactions of producers of ancillary EP services","( EMP.3a ) Employment (Full time equivalents)",null,null,null,2014,":",null,":",null,":",null,":",null,":",null,":",null,":",null,":",null,":",null,":",null,":",null,":"]
["S11_S12","B","EPS_EMP",null,null,null,null,null,2015,":",null,":",null,":",null,":",null,":",null,":",null,":",null,":",null,":",null,":",null,":",null,":"]
["S11_S12","B","EPS_EMP",null,null,null,null,null,2016,":",null,":",null,":",null,":",null,":",null,":",null,":",null,":",null,":",null,":",null,":",null,":"]
["S11_S12","B","EPS_EMP",null,null,null,null,null,2017,":",null,":",null,":",null,":",null,":",null,":",null,":",null,":",null,":",null,":",null,":",null,":"]
["S11_S12","B","EPS_EMP",null,null,null,null,null,2018,":",null,":",null,":",null,":",null,":",null,":",null,":",null,":",null,":",null,":",null,":",null,":"]
["S11_S12","B","EPS_EMP",null,null,null,null,null,2019,":",null,":",null,":",null,":",null,":",null,":",null,":",null,":",null,":",null,":",null,":",null,":"]
["S11_S12","B","EPS_EMP",null,null,null,null,null,2020,":",null,":",null,":",null,":",null,":",null,":",null,":",null,":",null,":",null,":",null,":",null,":"]
["S11_S12","B","EPS_EMP",null,null,null,null,null,2021,":",null,":",null,":",null,":",null,":",null,":",null,":",null,":",null,":",null,":",null,":",null,":"]
["S11_S12","B","EPS_EMP",null,null,null,null,null,2022,":",null,":",null,":",null,":",null,":",null,":",null,":",null,":",null,":",null,":",null,":",null,":"]
["S11_S12","B","EPS_EMP",null,null,null,null,null,2023,":",null,":",null,":",null,":",null,":",null,":",null,":",null,":",null,":",null,":",null,":",null,":"]
["S11_S12","B","EPS_EMP",null,null,null,null,null,2024,":",null,":",null,":",null,":",null,":",null,":",null,":",null,":",null,":",null,":",null,":",null,":"]
["S11_S12","B","EPS_EMP",null,null,null,null,null,2025,":",null,":",null,":",null,":",null,":",null,":",null,":",null,":",null,":",null,":",null,":",null,":"]
["S11_S12","B","EPS_EMP",null,null,null,null,null,2026,":",null,":",null,":",null,":",null,":",null,":",null,":",null,":",null,":",null,":",null,":",null,":"]
["S11_S12","B","EPS_EMP",null,null,null,null,null,2027,":",null,":",null,":",null,":",null,":",null,":",null,":",null,":",null,":",null,":",null,":",null,":"]
["S11_S12","B","EPS_EMP",null,null,null,null,null,2028,":",null,":",null,":",null,":",null,":",null,":",null,":",null,":",null,":",null,":",null,":",null,":"]
["S11_S12","B","EPS_EMP",null,null,null,null,null,2029,":",null,":",null,":",null,":",null,":",null,":",null,":",null,":",null,":",null,":",null,":",null,":"]
["S11_S12","B","EPS_EMP",null,null,null,null,null,2030,":",null,":",null,":",null,":",null,":",null,":",null,":",null,":",null,":",null,":",null,":",null,":"]
["S11_S12","B","EPS_EMP",null,null,null,null,null,2031,":",null,":",null,":",null,":",null,":",null,":",null,":",null,":",null,":",null,":",null,":",null,":"]

{"sheet":"3b","index":15,"n_rows":258,"n_cols":32,"rows_kept":258,"cut":false,"hidden":false,"merged":[[9,4,9,7],[24,4,24,7],[186,4,186,7],[115,4,115,7],[116,4,116,7],[132,4,132,7],[133,4,133,7],[99,4,99,7],[151,4,151,7],[153,4,153,7],[168,4,168,7],[25,4,25,7],[26,4,26,7],[27,4,27,7],[42,4,42,7],[43,4,43,7],[223,4,223,7],[169,4,169,7],[170,4,170,7],[240,3,257,3],[240,4,240,7],[241,4,241,7],[242,4,242,7],[222,3,239,3],[6,3,221,3],[6,4,6,7],[7,4,7,7],[79,4,79,7],[187,4,187,7],[189,4,189,7],[204,4,204,7],[205,4,205,7],[222,4,222,7],[207,4,207,7],[45,4,45,7],[60,4,60,7],[78,4,78,7],[96,4,96,7],[97,4,97,7],[134,4,134,7],[150,4,150,7],[114,4,114,7],[3,31,4,32],[4,4,4,7],[3,19,4,20],[3,21,4,22],[3,23,4,24],[3,25,4,26],[3,27,4,28],[3,9,4,10],[3,11,4,12],[3,13,4,14],[3,15,4,16],[3,17,4,18],[3,29,4,30],[0,4,0,8],[0,9,0,15],[1,4,1,8],[1,9,1,32],[2,9,2,32]]}
[null,null,null,null,{"$f":"Cover!B21","v":"QUESTIONNAIRE ON ENVIRONMENTAL PROTECTION EXPENDITURE ACCOUNTS"},null,null,null,null,"Table 3b. Corporations: other (also covering producers of ancillary EP services):  NACE Rev. 2 C"]
[null,null,null,null,{"$f":"E1","v":"QUESTIONNAIRE ON ENVIRONMENTAL PROTECTION EXPENDITURE ACCOUNTS"},null,null,null,null,{"$f":"J1","v":"Table 3b. Corporations: other (also covering producers of ancillary EP services):  NACE Rev. 2 C"}]
[null,null,null,null,null,null,null,null,null,"Mandatory and voluntary variables and environmental domains - please fill in as much as possible"]
[null,null,null,null,"Country/Unit",{"$f":"IFERROR(Cover!C16,\"\")","v":""},{"$f":"\"\"&Cover!B16","v":""},null,{"$f":"Cover!B17","v":"Million units of national currency"},"CEPA 1",null,"of which CEPA 1.1.2 and 1.2.2 Climate change",null,"CEPA 2",null,"CEPA 3",null,"CEPA 4",null,"CEPA 5",null,"CEPA 6",null,"CEPA 7",null,"CEPA 8",null,"CEPA 9",null,"Sum of CEPA 7+8+9",null,"TOTAL"]
[null,null,null,null,"Expenditure",null,null,null,"Year",null,null,null,null,null,null,null,null,null,null,null,null,null,null,null,null,null,null,null,null,"Landscape",null,"Landscape"]
[null,null,null,null,null,null,null,null,null,"CEPA1",null,"CEPA112_122",null,"CEPA2",null,"CEPA3",null,"CEPA4",null,"CEPA5",null,"CEPA6",null,"CEPA7",null,"CEPA8",null,"CEPA9",null,"CEPA7-9",null,"TOT_CEPA"]
["S11_S12","C","EPS_P51G_NP","Transactions of producers of ancillary EP services","( P51G_NP.3b ) Gross fixed capital formation and acquisition less disposals of non-financial non-produced assets",null,null,null,2014,":",null,":",null,":",null,":",null,":",null,":",null,":",null,":",null,":",null,":",null,":",null,{"$f":"IF(COUNT(J7,N7,P7,R7,T7,V7,AD7)=7,SUM(J7,N7,P7,R7,T7,V7,AD7),\":\")","v":":"}]
["S11_S12","C","EPS_P51G_NP",null,null,null,null,null,2015,":",null,":",null,":",null,":",null,":",null,":",null,":",null,":",null,":",null,":",null,":",null,{"$f":"IF(COUNT(J8,N8,P8,R8,T8,V8,AD8)=7,SUM(J8,N8,P8,R8,T8,V8,AD8),\":\")","v":":"}]
["S11_S12","C","EPS_P51G_NP",null,null,null,null,null,2016,":",null,":",null,":",null,":",null,":",null,":",null,":",null,":",null,":",null,":",null,":",null,":"]
["S11_S12","C","EPS_P51G_NP",null,null,null,null,null,2017,":",null,":",null,":",null,":",null,":",null,":",null,":",null,":",null,":",null,":",null,":",null,":"]
["S11_S12","C","EPS_P51G_NP",null,null,null,null,null,2018,":",null,":",null,":",null,":",null,":",null,":",null,":",null,":",null,":",null,":",null,":",null,":"]
["S11_S12","C","EPS_P51G_NP",null,null,null,null,null,2019,":",null,":",null,":",null,":",null,":",null,":",null,":",null,":",null,":",null,":",null,":",null,":"]
["S11_S12","C","EPS_P51G_NP",null,null,null,null,null,2020,":",null,":",null,":",null,":",null,":",null,":",null,":",null,":",null,":",null,":",null,":",null,":"]
["S11_S12","C","EPS_P51G_NP",null,null,null,null,null,2021,":",null,":",null,":",null,":",null,":",null,":",null,":",null,":",null,":",null,":",null,":",null,":"]
["S11_S12","C","EPS_P51G_NP",null,null,null,null,null,2022,":",null,":",null,":",null,":",null,":",null,":",null,":",null,":",null,":",null,":",null,":",null,":"]
["S11_S12","C","EPS_P51G_NP",null,null,null,null,null,2023,":",null,":",null,":",null,":",null,":",null,":",null,":",null,":",null,":",null,":",null,":",null,":"]
["S11_S12","C","EPS_P51G_NP",null,null,null,null,null,2024,":",null,":",null,":",null,":",null,":",null,":",null,":",null,":",null,":",null,":",null,":",null,":"]
["S11_S12","C","EPS_P51G_NP",null,null,null,null,null,2025,":",null,":",null,":",null,":",null,":",null,":",null,":",null,":",null,":",null,":",null,":",null,":"]
["S11_S12","C","EPS_P51G_NP",null,null,null,null,null,2026,":",null,":",null,":",null,":",null,":",null,":",null,":",null,":",null,":",null,":",null,":",null,":"]
["S11_S12","C","EPS_P51G_NP",null,null,null,null,null,2027,":",null,":",null,":",null,":",null,":",null,":",null,":",null,":",null,":",null,":",null,":",null,":"]
["S11_S12","C","EPS_P51G_NP",null,null,null,null,null,2028,":",null,":",null,":",null,":",null,":",null,":",null,":",null,":",null,":",null,":",null,":",null,":"]
["S11_S12","C","EPS_P51G_NP",null,null,null,null,null,2029,":",null,":",null,":",null,":",null,":",null,":",null,":",null,":",null,":",null,":",null,":",null,":"]
["S11_S12","C","EPS_P51G_NP",null,null,null,null,null,2030,":",null,":",null,":",null,":",null,":",null,":",null,":",null,":",null,":",null,":",null,":",null,":"]
["S11_S12","C","EPS_P51G_NP",null,null,null,null,null,2031,":",null,":",null,":",null,":",null,":",null,":",null,":",null,":",null,":",null,":",null,":",null,":"]
["S11_S12","C","EPS_INV_PT",null,"( INV_EOP.3b )  GFCF on specific EP fixed assets (end-of-pipe technologies) ",null,null,null,2014,":",null,":",null,":",null,":",null,":",null,":",null,":",null,":",null,":",null,":",null,":",null,":"]
["S11_S12","C","EPS_INV_PT",null,null,null,null,null,2015,":",null,":",null,":",null,":",null,":",null,":",null,":",null,":",null,":",null,":",null,":",null,":"]
["S11_S12","C","EPS_INV_PT",null,null,null,null,null,2016,":",null,":",null,":",null,":",null,":",null,":",null,":",null,":",null,":",null,":",null,":",null,":"]
["S11_S12","C","EPS_INV_PT",null,null,null,null,null,2017,":",null,":",null,":",null,":",null,":",null,":",null,":",null,":",null,":",null,":",null,":",null,":"]
["S11_S12","C","EPS_INV_PT",null,null,null,null,null,2018,":",null,":",null,":",null,":",null,":",null,":",null,":",null,":",null,":",null,":",null,":",null,":"]
["S11_S12","C","EPS_INV_PT",null,null,null,null,null,2019,":",null,":",null,":",null,":",null,":",null,":",null,":",null,":",null,":",null,":",null,":",null,":"]
["S11_S12","C","EPS_INV_PT",null,null,null,null,null,2020,":",null,":",null,":",null,":",null,":",null,":",null,":",null,":",null,":",null,":",null,":",null,":"]
["S11_S12","C","EPS_INV_PT",null,null,null,null,null,2021,":",null,":",null,":",null,":",null,":",null,":",null,":",null,":",null,":",null,":",null,":",null,":"]
["S11_S12","C","EPS_INV_PT",null,null,null,null,null,2022,":",null,":",null,":",null,":",null,":",null,":",null,":",null,":",null,":",null,":",null,":",null,":"]
["S11_S12","C","EPS_INV_PT",null,null,null,null,null,2023,":",null,":",null,":",null,":",null,":",null,":",null,":",null,":",null,":",null,":",null,":",null,":"]
["S11_S12","C","EPS_INV_PT",null,null,null,null,null,2024,":",null,":",null,":",null,":",null,":",null,":",null,":",null,":",null,":",null,":",null,":",null,":"]
["S11_S12","C","EPS_INV_PT",null,null,null,null,null,2025,":",null,":",null,":",null,":",null,":",null,":",null,":",null,":",null,":",null,":",null,":",null,":"]
["S11_S12","C","EPS_INV_PT",null,null,null,null,null,2026,":",null,":",null,":",null,":",null,":",null,":",null,":",null,":",null,":",null,":",null,":",null,":"]
["S11_S12","C","EPS_INV_PT",null,null,null,null,null,2027,":",null,":",null,":",null,":",null,":",null,":",null,":",null,":",null,":",null,":",null,":",null,":"]
["S11_S12","C","EPS_INV_PT",null,null,null,null,null,2028,":",null,":",null,":",null,":",null,":",null,":",null,":",null,":",null,":",null,":",null,":",null,":"]
["S11_S12","C","EPS_INV_PT",null,null,null,null,null,2029,":",null,":",null,":",null,":",null,":",null,":",null,":",null,":",null,":",null,":",null,":",null,":"]
["S11_S12","C","EPS_INV_PT",null,null,null,null,null,2030,":",null,":",null,":",null,":",null,":",null,":",null,":",null,":",null,":",null,":",null,":",null,":"]
["S11_S12","C","EPS_INV_PT",null,null,null,null,null,2031,":",null,":",null,":",null,":",null,":",null,":",null,":",null,":",null,":",null,":",null,":",null,":"]
["S11_S12","C","EPS_INV_PP",null,"( INV_IT.3b ) GFCF on cleaner EP fixed assets (integrated technologies)",null,null,null,2014,":",null,":",null,":",null,":",null,":",null,":",null,":",null,":",null,":",null,":",null,":",null,":"]
["S11_S12","C","EPS_INV_PP",null,null,null,null,null,2015,":",null,":",null,":",null,":",null,":",null,":",null,":",null,":",null,":",null,":",null,":",null,":"]
["S11_S12","C","EPS_INV_PP",null,null,null,null,null,2016,":",null,":",null,":",null,":",null,":",null,":",null,":",null,":",null,":",null,":",null,":",null,":"]
["S11_S12","C","EPS_INV_PP",null,null,null,null,null,2017,":",null,":",null,":",null,":",null,":",null,":",null,":",null,":",null,":",null,":",null,":",null,":"]
["S11_S12","C","EPS_INV_PP",null,null,null,null,null,2018,":",null,":",null,":",null,":",null,":",null,":",null,":",null,":",null,":",null,":",null,":",null,":"]
["S11_S12","C","EPS_INV_PP",null,null,null,null,null,2019,":",null,":",null,":",null,":",null,":",null,":",null,":",null,":",null,":",null,":",null,":",null,":"]
["S11_S12","C","EPS_INV_PP",null,null,null,null,null,2020,":",null,":",null,":",null,":",null,":",null,":",null,":",null,":",null,":",null,":",null,":",null,":"]
["S11_S12","C","EPS_INV_PP",null,null,null,null,null,2021,":",null,":",null,":",null,":",null,":",null,":",null,":",null,":",null,":",null,":",null,":",null,":"]
["S11_S12","C","EPS_INV_PP",null,null,null,null,null,2022,":",null,":",null,":",null,":",null,":",null,":",null,":",null,":",null,":",null,":",null,":",null,":"]
["S11_S12","C","EPS_INV_PP",null,null,null,null,null,2023,":",null,":",null,":",null,":",null,":",null,":",null,":",null,":",null,":",null,":",null,":",null,":"]
["S11_S12","C","EPS_INV_PP",null,null,null,null,null,2024,":",null,":",null,":",null,":",null,":",null,":",null,":",null,":",null,":",null,":",null,":",null,":"]
["S11_S12","C","EPS_INV_PP",null,null,null,null,null,2025,":",null,":",null,":",null,":",null,":",null,":",null,":",null,":",null,":",null,":",null,":",null,":"]
["S11_S12","C","EPS_INV_PP",null,null,null,null,null,2026,":",null,":",null,":",null,":",null,":",null,":",null,":",null,":",null,":",null,":",null,":",null,":"]
["S11_S12","C","EPS_INV_PP",null,null,null,null,null,2027,":",null,":",null,":",null,":",null,":",null,":",null,":",null,":",null,":",null,":",null,":",null,":"]
["S11_S12","C","EPS_INV_PP",null,null,null,null,null,2028,":",null,":",null,":",null,":",null,":",null,":",null,":",null,":",null,":",null,":",null,":",null,":"]
["S11_S12","C","EPS_INV_PP",null,null,null,null,null,2029,":",null,":",null,":",null,":",null,":",null,":",null,":",null,":",null,":",null,":",null,":",null,":"]
["S11_S12","C","EPS_INV_PP",null,null,null,null,null,2030,":",null,":",null,":",null,":",null,":",null,":",null,":",null,":",null,":",null,":",null,":",null,":"]
["S11_S12","C","EPS_INV_PP",null,null,null,null,null,2031,":",null,":",null,":",null,":",null,":",null,":",null,":",null,":",null,":",null,":",null,":",null,":"]
["S11_S12","C","EPS_P2",null,"( P2.3b ) Total intermediate consumption",null,null,null,2014,":",null,":",null,":",null,":",null,":",null,":",null,":",null,":",null,":",null,":",null,":",null,":"]
["S11_S12","C","EPS_P2",null,null,null,null,null,2015,":",null,":",null,":",null,":",null,":",null,":",null,":",null,":",null,":",null,":",null,":",null,":"]
["S11_S12","C","EPS_P2",null,null,null,null,null,2016,":",null,":",null,":",null,":",null,":",null,":",null,":",null,":",null,":",null,":",null,":",null,":"]
["S11_S12","C","EPS_P2",null,null,null,null,null,2017,":",null,":",null,":",null,":",null,":",null,":",null,":",null,":",null,":",null,":",null,":",null,":"]
["S11_S12","C","EPS_P2",null,null,null,null,null,2018,":",null,":",null,":",null,":",null,":",null,":",null,":",null,":",null,":",null,":",null,":",null,":"]
["S11_S12","C","EPS_P2",null,null,null,null,null,2019,":",null,":",null,":",null,":",null,":",null,":",null,":",null,":",null,":",null,":",null,":",null,":"]
["S11_S12","C","EPS_P2",null,null,null,null,null,2020,":",null,":",null,":",null,":",null,":",null,":",null,":",null,":",null,":",null,":",null,":",null,":"]
["S11_S12","C","EPS_P2",null,null,null,null,null,2021,":",null,":",null,":",null,":",null,":",null,":",null,":",null,":",null,":",null,":",null,":",null,":"]
["S11_S12","C","EPS_P2",null,null,null,null,null,2022,":",null,":",null,":",null,":",null,":",null,":",null,":",null,":",null,":",null,":",null,":",null,":"]
["S11_S12","C","EPS_P2",null,null,null,null,null,2023,":",null,":",null,":",null,":",null,":",null,":",null,":",null,":",null,":",null,":",null,":",null,":"]
["S11_S12","C","EPS_P2",null,null,null,null,null,2024,":",null,":",null,":",null,":",null,":",null,":",null,":",null,":",null,":",null,":",null,":",null,":"]
["S11_S12","C","EPS_P2",null,null,null,null,null,2025,":",null,":",null,":",null,":",null,":",null,":",null,":",null,":",null,":",null,":",null,":",null,{"$f":"IF(COUNT(J72,N72,P72,R72,T72,V72,AD72)=7,SUM(J72,N72,P72,R72,T72,V72,AD72),\":\")","v":":"}]
["S11_S12","C","EPS_P2",null,null,null,null,null,2026,":",null,":",null,":",null,":",null,":",null,":",null,":",null,":",null,":",null,":",null,":",null,":"]
["S11_S12","C","EPS_P2",null,null,null,null,null,2027,":",null,":",null,":",null,":",null,":",null,":",null,":",null,":",null,":",null,":",null,":",null,":"]
["S11_S12","C","EPS_P2",null,null,null,null,null,2028,":",null,":",null,":",null,":",null,":",null,":",null,":",null,":",null,":",null,":",null,":",null,":"]
["S11_S12","C","EPS_P2",null,null,null,null,null,2029,":",null,":",null,":",null,":",null,":",null,":",null,":",null,":",null,":",null,":",null,":",null,":"]
["S11_S12","C","EPS_P2",null,null,null,null,null,2030,":",null,":",null,":",null,":",null,":",null,":",null,":",null,":",null,":",null,":",null,":",null,":"]
["S11_S12","C","EPS_P2",null,null,null,null,null,2031,":",null,":",null,":",null,":",null,":",null,":",null,":",null,":",null,":",null,":",null,":",null,":"]
["S11_S12","C","EPS_P2_EPS",null,"( P2_EPS.3b ) Intermediate consumption of EP services for ancillary production of EP services ",null,null,null,2014,":",null,":",null,":",null,":",null,":",null,":",null,":",null,":",null,":",null,":",null,":",null,":"]
["S11_S12","C","EPS_P2_EPS",null,"(P2_EPS.3: please consider the explanatory notes - click here)",null,null,null,2015,":",null,":",null,":",null,":",null,":",null,":",null,":",null,":",null,":",null,":",null,":",null,":"]
["S11_S12","C","EPS_P2_EPS",null,null,null,null,null,2016,":",null,":",null,":",null,":",null,":",null,":",null,":",null,":",null,":",null,":",null,":",null,":"]
["S11_S12","C","EPS_P2_EPS",null,null,null,null,null,2017,":",null,":",null,":",null,":",null,":",null,":",null,":",null,":",null,":",null,":",null,":",null,":"]
["S11_S12","C","EPS_P2_EPS",null,null,null,null,null,2018,":",null,":",null,":",null,":",null,":",null,":",null,":",null,":",null,":",null,":",null,":",null,":"]
["S11_S12","C","EPS_P2_EPS",null,null,null,null,null,2019,":",null,":",null,":",null,":",null,":",null,":",null,":",null,":",null,":",null,":",null,":",null,":"]
["S11_S12","C","EPS_P2_EPS",null,null,null,null,null,2020,":",null,":",null,":",null,":",null,":",null,":",null,":",null,":",null,":",null,":",null,":",null,":"]
["S11_S12","C","EPS_P2_EPS",null,null,null,null,null,2021,":",null,":",null,":",null,":",null,":",null,":",null,":",null,":",null,":",null,":",null,":",null,":"]
["S11_S12","C","EPS_P2_EPS",null,null,null,null,null,2022,":",null,":",null,":",null,":",null,":",null,":",null,":",null,":",null,":",null,":",null,":",null,":"]
["S11_S12","C","EPS_P2_EPS",null,null,null,null,null,2023,":",null,":",null,":",null,":",null,":",null,":",null,":",null,":",null,":",null,":",null,":",null,":"]
["S11_S12","C","EPS_P2_EPS",null,null,null,null,null,2024,":",null,":",null,":",null,":",null,":",null,":",null,":",null,":",null,":",null,":",null,":",null,":"]
["S11_S12","C","EPS_P2_EPS",null,null,null,null,null,2025,":",null,":",null,":",null,":",null,":",null,":",null,":",null,":",null,":",null,":",null,":",null,":"]
["S11_S12","C","EPS_P2_EPS",null,null,null,null,null,2026,":",null,":",null,":",null,":",null,":",null,":",null,":",null,":",null,":",null,":",null,":",null,":"]
["S11_S12","C","EPS_P2_EPS",null,null,null,null,null,2027,":",null,":",null,":",null,":",null,":",null,":",null,":",null,":",null,":",null,":",null,":",null,":"]
["S11_S12","C","EPS_P2_EPS",null,null,null,null,null,2028,":",null,":",null,":",null,":",null,":",null,":",null,":",null,":",null,":",null,":",null,":",null,":"]
["S11_S12","C","EPS_P2_EPS",null,null,null,null,null,2029,":",null,":",null,":",null,":",null,":",null,":",null,":",null,":",null,":",null,":",null,":",null,":"]
["S11_S12","C","EPS_P2_EPS",null,null,null,null,null,2030,":",null,":",null,":",null,":",null,":",null,":",null,":",null,":",null,":",null,":",null,":",null,":"]
["S11_S12","C","EPS_P2_EPS",null,null,null,null,null,2031,":",null,":",null,":",null,":",null,":",null,":",null,":",null,":",null,":",null,":",null,":",null,":"]
["S11_S12","C","EPS_P2_NEPS",null,"( P2_NEPS.3b ) Intermediate consumption (excluding EP services)",null,null,null,2014,":",null,":",null,":",null,":",null,":",null,":",null,":",null,":",null,":",null,":",null,":",null,":"]
["S11_S12","C","EPS_P2_NEPS",null,null,null,null,null,2015,":",null,":",null,":",null,":",null,":",null,":",null,":",null,":",null,":",null,":",null,":",null,":"]
["S11_S12","C","EPS_P2_NEPS",null,null,null,null,null,2016,":",null,":",null,":",null,":",null,":",null,":",null,":",null,":",null,":",null,":",null,":",null,":"]
["S11_S12","C","EPS_P2_NEPS",null,null,null,null,null,2017,":",null,":",null,":",null,":",null,":",null,":",null,":",null,":",null,":",null,":",null,":",null,":"]
["S11_S12","C","EPS_P2_NEPS",null,null,null,null,null,2018,":",null,":",null,":",null,":",null,":",null,":",null,":",null,":",null,":",null,":",null,":",null,":"]
["S11_S12","C","EPS_P2_NEPS",null,null,null,null,null,2019,":",null,":",null,":",null,":",null,":",null,":",null,":",null,":",null,":",null,":",null,":",null,":"]
["S11_S12","C","EPS_P2_NEPS",null,null,null,null,null,2020,":",null,":",null,":",null,":",null,":",null,":",null,":",null,":",null,":",null,":",null,":",null,":"]
["S11_S12","C","EPS_P2_NEPS",null,null,null,null,null,2021,":",null,":",null,":",null,":",null,":",null,":",null,":",null,":",null,":",null,":",null,":",null,":"]
["S11_S12","C","EPS_P2_NEPS",null,null,null,null,null,2022,":",null,":",null,":",null,":",null,":",null,":",null,":",null,":",null,":",null,":",null,":",null,":"]
["S11_S12","C","EPS_P2_NEPS",null,null,null,null,null,2023,":",null,":",null,":",null,":",null,":",null,":",null,":",null,":",null,":",null,":",null,":",null,":"]
["S11_S12","C","EPS_P2_NEPS",null,null,null,null,null,2024,":",null,":",null,":",null,":",null,":",null,":",null,":",null,":",null,":",null,":",null,":",null,":"]
["S11_S12","C","EPS_P2_NEPS",null,null,null,null,null,2025,":",null,":",null,":",null,":",null,":",null,":",null,":",null,":",null,":",null,":",null,":",null,":"]
["S11_S12","C","EPS_P2_NEPS",null,null,null,null,null,2026,":",null,":",null,":",null,":",null,":",null,":",null,":",null,":",null,":",null,":",null,":",null,":"]
["S11_S12","C","EPS_P2_NEPS",null,null,null,null,null,2027,":",null,":",null,":",null,":",null,":",null,":",null,":",null,":",null,":",null,":",null,":",null,":"]
["S11_S12","C","EPS_P2_NEPS",null,null,null,null,null,2028,":",null,":",null,":",null,":",null,":",null,":",null,":",null,":",null,":",null,":",null,":",null,":"]
["S11_S12","C","EPS_P2_NEPS",null,null,null,null,null,2029,":",null,":",null,":",null,":",null,":",null,":",null,":",null,":",null,":",null,":",null,":",null,":"]
["S11_S12","C","EPS_P2_NEPS",null,null,null,null,null,2030,":",null,":",null,":",null,":",null,":",null,":",null,":",null,":",null,":",null,":",null,":",null,":"]
["S11_S12","C","EPS_P2_NEPS",null,null,null,null,null,2031,":",null,":",null,":",null,":",null,":",null,":",null,":",null,":",null,":",null,":",null,":",null,":"]
["S11_S12","C","EPS_D1",null,"( D1.3b ) Compensation of employees",null,null,null,2014,":",null,":",null,":",null,":",null,":",null,":",null,":",null,":",null,":",null,":",null,":",null,":"]
["S11_S12","C","EPS_D1",null,null,null,null,null,2015,":",null,":",null,":",null,":",null,":",null,":",null,":",null,":",null,":",null,":",null,":",null,":"]
["S11_S12","C","EPS_D1",null,null,null,null,null,2016,":",null,":",null,":",null,":",null,":",null,":",null,":",null,":",null,":",null,":",null,":",null,":"]
["S11_S12","C","EPS_D1",null,null,null,null,null,2017,":",null,":",null,":",null,":",null,":",null,":",null,":",null,":",null,":",null,":",null,":",null,":"]
["S11_S12","C","EPS_D1",null,null,null,null,null,2018,":",null,":",null,":",null,":",null,":",null,":",null,":",null,":",null,":",null,":",null,":",null,":"]
["S11_S12","C","EPS_D1",null,null,null,null,null,2019,":",null,":",null,":",null,":",null,":",null,":",null,":",null,":",null,":",null,":",null,":",null,":"]
["S11_S12","C","EPS_D1",null,null,null,null,null,2020,":",null,":",null,":",null,":",null,":",null,":",null,":",null,":",null,":",null,":",null,":",null,":"]
["S11_S12","C","EPS_D1",null,null,null,null,null,2021,":",null,":",null,":",null,":",null,":",null,":",null,":",null,":",null,":",null,":",null,":",null,":"]
["S11_S12","C","EPS_D1",null,null,null,null,null,2022,":",null,":",null,":",null,":",null,":",null,":",null,":",null,":",null,":",null,":",null,":",null,":"]
["S11_S12","C","EPS_D1",null,null,null,null,null,2023,":",null,":",null,":",null,":",null,":",null,":",null,":",null,":",null,":",null,":",null,":",null,":"]
["S11_S12","C","EPS_D1",null,null,null,null,null,2024,":",null,":",null,":",null,":",null,":",null,":",null,":",null,":",null,":",null,":",null,":",null,":"]
["S11_S12","C","EPS_D1",null,null,null,null,null,2025,":",null,":",null,":",null,":",null,":",null,":",null,":",null,":",null,":",null,":",null,":",null,":"]
["S11_S12","C","EPS_D1",null,null,null,null,null,2026,":",null,":",null,":",null,":",null,":",null,":",null,":",null,":",null,":",null,":",null,":",null,":"]
["S11_S12","C","EPS_D1",null,null,null,null,null,2027,":",null,":",null,":",null,":",null,":",null,":",null,":",null,":",null,":",null,":",null,":",null,":"]
["S11_S12","C","EPS_D1",null,null,null,null,null,2028,":",null,":",null,":",null,":",null,":",null,":",null,":",null,":",null,":",null,":",null,":",null,":"]
["S11_S12","C","EPS_D1",null,null,null,null,null,2029,":",null,":",null,":",null,":",null,":",null,":",null,":",null,":",null,":",null,":",null,":",null,":"]
["S11_S12","C","EPS_D1",null,null,null,null,null,2030,":",null,":",null,":",null,":",null,":",null,":",null,":",null,":",null,":",null,":",null,":",null,":"]
["S11_S12","C","EPS_D1",null,null,null,null,null,2031,":",null,":",null,":",null,":",null,":",null,":",null,":",null,":",null,":",null,":",null,":",null,":"]
["S11_S12","C","EPS_P1_ANC",null,"( P1_ANC.3b ) Ancillary EP output (simplified valuation legally acceptable) ((P2_NEPS.3b) + (D1.3b))",null,null,null,2014,":",null,":",null,":",null,":",null,":",null,":",null,":",null,":",null,":",null,":",null,":",null,":"]
["S11_S12","C","EPS_P1_ANC",null,null,null,null,null,2015,":",null,":",null,":",null,":",null,":",null,":",null,":",null,":",null,":",null,":",null,":",null,":"]
["S11_S12","C","EPS_P1_ANC",null,null,null,null,null,2016,":",null,":",null,":",null,":",null,":",null,":",null,":",null,":",null,":",null,":",null,":",null,":"]
["S11_S12","C","EPS_P1_ANC",null,null,null,null,null,2017,":",null,":",null,":",null,":",null,":",null,":",null,":",null,":",null,":",null,":",null,":",null,{"$f":"IF(COUNT(J136,N136,P136,R136,T136,V136,AD136)=7,SUM(J136,N136,P136,R136,T136,V136,AD136),\":\")","v":":"}]
["S11_S12","C","EPS_P1_ANC",null,null,null,null,null,2018,":",null,":",null,":",null,":",null,":",null,":",null,":",null,":",null,":",null,":",null,":",null,":"]
["S11_S12","C","EPS_P1_ANC",null,null,null,null,null,2019,":",null,":",null,":",null,":",null,":",null,":",null,":",null,":",null,":",null,":",null,":",null,":"]
["S11_S12","C","EPS_P1_ANC",null,null,null,null,null,2020,":",null,":",null,":",null,":",null,":",null,":",null,":",null,":",null,":",null,":",null,":",null,":"]
["S11_S12","C","EPS_P1_ANC",null,null,null,null,null,2021,":",null,":",null,":",null,":",null,":",null,":",null,":",null,":",null,":",null,":",null,":",null,":"]
["S11_S12","C","EPS_P1_ANC",null,null,null,null,null,2022,":",null,":",null,":",null,":",null,":",null,":",null,":",null,":",null,":",null,":",null,":",null,":"]
["S11_S12","C","EPS_P1_ANC",null,null,null,null,null,2023,":",null,":",null,":",null,":",null,":",null,":",null,":",null,":",null,":",null,":",null,":",null,":"]
["S11_S12","C","EPS_P1_ANC",null,null,null,null,null,2024,":",null,":",null,":",null,":",null,":",null,":",null,":",null,":",null,":",null,":",null,":",null,":"]
["S11_S12","C","EPS_P1_ANC",null,null,null,null,null,2025,":",null,":",null,":",null,":",null,":",null,":",null,":",null,":",null,":",null,":",null,":",null,":"]
["S11_S12","C","EPS_P1_ANC",null,null,null,null,null,2026,":",null,":",null,":",null,":",null,":",null,":",null,":",null,":",null,":",null,":",null,":",null,":"]
["S11_S12","C","EPS_P1_ANC",null,null,null,null,null,2027,":",null,":",null,":",null,":",null,":",null,":",null,":",null,":",null,":",null,":",null,":",null,":"]
["S11_S12","C","EPS_P1_ANC",null,null,null,null,null,2028,":",null,":",null,":",null,":",null,":",null,":",null,":",null,":",null,":",null,":",null,":",null,":"]
["S11_S12","C","EPS_P1_ANC",null,null,null,null,null,2029,":",null,":",null,":",null,":",null,":",null,":",null,":",null,":",null,":",null,":",null,":",null,":"]
["S11_S12","C","EPS_P1_ANC",null,null,null,null,null,2030,":",null,":",null,":",null,":",null,":",null,":",null,":",null,":",null,":",null,":",null,":",null,":"]
["S11_S12","C","EPS_P1_ANC",null,null,null,null,null,2031,":",null,":",null,":",null,":",null,":",null,":",null,":",null,":",null,":",null,":",null,":",null,":"]
["S11_S12","C","EPS_D29X39",null,"   ( D29-D39.3b ) Other taxes less subsidies on production",null,null,null,2014,":",null,":",null,":",null,":",null,":",null,":",null,":",null,":",null,":",null,":",null,":",null,":"]
["S11_S12","C","EPS_D29X39",null,null,null,null,null,2015,":",null,":",null,":",null,":",null,":",null,":",null,":",null,":",null,":",null,":",null,":",null,":"]
["S11_S12","C","EPS_D29X39",null,null,null,null,null,2016,":",null,":",null,":",null,":",null,":",null,":",null,":",null,":",null,":",null,":",null,":",null,":"]
["S11_S12","C","EPS_D29X39",null,null,null,null,null,2017,":",null,":",null,":",null,":",null,":",null,":",null,":",null,":",null,":",null,":",null,":",null,":"]
["S11_S12","C","EPS_D29X39",null,null,null,null,null,2018,":",null,":",null,":",null,":",null,":",null,":",null,":",null,":",null,":",null,":",null,":",null,":"]
["S11_S12","C","EPS_D29X39",null,null,null,null,null,2019,":",null,":",null,":",null,":",null,":",null,":",null,":",null,":",null,":",null,":",null,":",null,":"]
["S11_S12","C","EPS_D29X39",null,null,null,null,null,2020,":",null,":",null,":",null,":",null,":",null,":",null,":",null,":",null,":",null,":",null,":",null,":"]
["S11_S12","C","EPS_D29X39",null,null,null,null,null,2021,":",null,":",null,":",null,":",null,":",null,":",null,":",null,":",null,":",null,":",null,":",null,":"]
["S11_S12","C","EPS_D29X39",null,null,null,null,null,2022,":",null,":",null,":",null,":",null,":",null,":",null,":",null,":",null,":",null,":",null,":",null,":"]
["S11_S12","C","EPS_D29X39",null,null,null,null,null,2023,":",null,":",null,":",null,":",null,":",null,":",null,":",null,":",null,":",null,":",null,":",null,":"]
["S11_S12","C","EPS_D29X39",null,null,null,null,null,2024,":",null,":",null,":",null,":",null,":",null,":",null,":",null,":",null,":",null,":",null,":",null,":"]
["S11_S12","C","EPS_D29X39",null,null,null,null,null,2025,":",null,":",null,":",null,":",null,":",null,":",null,":",null,":",null,":",null,":",null,":",null,":"]
["S11_S12","C","EPS_D29X39",null,null,null,null,null,2026,":",null,":",null,":",null,":",null,":",null,":",null,":",null,":",null,":",null,":",null,":",null,":"]
["S11_S12","C","EPS_D29X39",null,null,null,null,null,2027,":",null,":",null,":",null,":",null,":",null,":",null,":",null,":",null,":",null,":",null,":",null,":"]
["S11_S12","C","EPS_D29X39",null,null,null,null,null,2028,":",null,":",null,":",null,":",null,":",null,":",null,":",null,":",null,":",null,":",null,":",null,":"]
["S11_S12","C","EPS_D29X39",null,null,null,null,null,2029,":",null,":",null,":",null,":",null,":",null,":",null,":",null,":",null,":",null,":",null,":",null,":"]
["S11_S12","C","EPS_D29X39",null,null,null,null,null,2030,":",null,":",null,":",null,":",null,":",null,":",null,":",null,":",null,":",null,":",null,":",null,":"]
["S11_S12","C","EPS_D29X39",null,null,null,null,null,2031,":",null,":",null,":",null,":",null,":",null,":",null,":",null,":",null,":",null,":",null,":",null,":"]
["S11_S12","C","EPS_P51C",null,"   ( P51C.3b ) Consumption of fixed capital",null,null,null,2014,":",null,":",null,":",null,":",null,":",null,":",null,":",null,":",null,":",null,":",null,":",null,":"]
["S11_S12","C","EPS_P51C",null,null,null,null,null,2015,":",null,":",null,":",null,":",null,":",null,":",null,":",null,":",null,":",null,":",null,":",null,":"]
["S11_S12","C","EPS_P51C",null,null,null,null,null,2016,":",null,":",null,":",null,":",null,":",null,":",null,":",null,":",null,":",null,":",null,":",null,":"]
["S11_S12","C","EPS_P51C",null,null,null,null,null,2017,":",null,":",null,":",null,":",null,":",null,":",null,":",null,":",null,":",null,":",null,":",null,":"]
["S11_S12","C","EPS_P51C",null,null,null,null,null,2018,":",null,":",null,":",null,":",null,":",null,":",null,":",null,":",null,":",null,":",null,":",null,":"]
["S11_S12","C","EPS_P51C",null,null,null,null,null,2019,":",null,":",null,":",null,":",null,":",null,":",null,":",null,":",null,":",null,":",null,":",null,":"]
["S11_S12","C","EPS_P51C",null,null,null,null,null,2020,":",null,":",null,":",null,":",null,":",null,":",null,":",null,":",null,":",null,":",null,":",null,":"]
["S11_S12","C","EPS_P51C",null,null,null,null,null,2021,":",null,":",null,":",null,":",null,":",null,":",null,":",null,":",null,":",null,":",null,":",null,":"]
["S11_S12","C","EPS_P51C",null,null,null,null,null,2022,":",null,":",null,":",null,":",null,":",null,":",null,":",null,":",null,":",null,":",null,":",null,":"]
["S11_S12","C","EPS_P51C",null,null,null,null,null,2023,":",null,":",null,":",null,":",null,":",null,":",null,":",null,":",null,":",null,":",null,":",null,":"]
["S11_S12","C","EPS_P51C",null,null,null,null,null,2024,":",null,":",null,":",null,":",null,":",null,":",null,":",null,":",null,":",null,":",null,":",null,":"]
["S11_S12","C","EPS_P51C",null,null,null,null,null,2025,":",null,":",null,":",null,":",null,":",null,":",null,":",null,":",null,":",null,":",null,":",null,":"]
["S11_S12","C","EPS_P51C",null,null,null,null,null,2026,":",null,":",null,":",null,":",null,":",null,":",null,":",null,":",null,":",null,":",null,":",null,":"]
["S11_S12","C","EPS_P51C",null,null,null,null,null,2027,":",null,":",null,":",null,":",null,":",null,":",null,":",null,":",null,":",null,":",null,":",null,":"]
["S11_S12","C","EPS_P51C",null,null,null,null,null,2028,":",null,":",null,":",null,":",null,":",null,":",null,":",null,":",null,":",null,":",null,":",null,":"]
["S11_S12","C","EPS_P51C",null,null,null,null,null,2029,":",null,":",null,":",null,":",null,":",null,":",null,":",null,":",null,":",null,":",null,":",null,":"]
["S11_S12","C","EPS_P51C",null,null,null,null,null,2030,":",null,":",null,":",null,":",null,":",null,":",null,":",null,":",null,":",null,":",null,":",null,":"]
["S11_S12","C","EPS_P51C",null,null,null,null,null,2031,":",null,":",null,":",null,":",null,":",null,":",null,":",null,":",null,":",null,":",null,":",null,":"]
["S11_S12","C","EPS_P1_ANCESA",null,"( P1_ANC_ESA.3b ) Ancillary EP output (ESA-compatible output) ((P2_NEPS.3b) + (D1.3b) + (P51C.3b) + (D29-D39.3b))",null,null,null,2014,":",null,":",null,":",null,":",null,":",null,":",null,":",null,":",null,":",null,":",null,":",null,":"]
["S11_S12","C","EPS_P1_ANCESA",null,null,null,null,null,2015,":",null,":",null,":",null,":",null,":",null,":",null,":",null,":",null,":",null,":",null,":",null,":"]
["S11_S12","C","EPS_P1_ANCESA",null,null,null,null,null,2016,":",null,":",null,":",null,":",null,":",null,":",null,":",null,":",null,":",null,":",null,":",null,":"]
["S11_S12","C","EPS_P1_ANCESA",null,null,null,null,null,2017,":",null,":",null,":",null,":",null,":",null,":",null,":",null,":",null,":",null,":",null,":",null,":"]
["S11_S12","C","EPS_P1_ANCESA",null,null,null,null,null,2018,":",null,":",null,":",null,":",null,":",null,":",null,":",null,":",null,":",null,":",null,":",null,":"]
["S11_S12","C","EPS_P1_ANCESA",null,null,null,null,null,2019,":",null,":",null,":",null,":",null,":",null,":",null,":",null,":",null,":",null,":",null,":",null,":"]
["S11_S12","C","EPS_P1_ANCESA",null,null,null,null,null,2020,":",null,":",null,":",null,":",null,":",null,":",null,":",null,":",null,":",null,":",null,":",null,":"]
["S11_S12","C","EPS_P1_ANCESA",null,null,null,null,null,2021,":",null,":",null,":",null,":",null,":",null,":",null,":",null,":",null,":",null,":",null,":",null,":"]
["S11_S12","C","EPS_P1_ANCESA",null,null,null,null,null,2022,":",null,":",null,":",null,":",null,":",null,":",null,":",null,":",null,":",null,":",null,":",null,":"]
["S11_S12","C","EPS_P1_ANCESA",null,null,null,null,null,2023,":",null,":",null,":",null,":",null,":",null,":",null,":",null,":",null,":",null,":",null,":",null,":"]
["S11_S12","C","EPS_P1_ANCESA",null,null,null,null,null,2024,":",null,":",null,":",null,":",null,":",null,":",null,":",null,":",null,":",null,":",null,":",null,":"]
["S11_S12","C","EPS_P1_ANCESA",null,null,null,null,null,2025,":",null,":",null,":",null,":",null,":",null,":",null,":",null,":",null,":",null,":",null,":",null,":"]
["S11_S12","C","EPS_P1_ANCESA",null,null,null,null,null,2026,":",null,":",null,":",null,":",null,":",null,":",null,":",null,":",null,":",null,":",null,":",null,":"]
["S11_S12","C","EPS_P1_ANCESA",null,null,null,null,null,2027,":",null,":",null,":",null,":",null,":",null,":",null,":",null,":",null,":",null,":",null,":",null,{"$f":"IF(COUNT(J200,N200,P200,R200,T200,V200,AD200)=7,SUM(J200,N200,P200,R200,T200,V200,AD200),\":\")","v":":"}]
["S11_S12","C","EPS_P1_ANCESA",null,null,null,null,null,2028,":",null,":",null,":",null,":",null,":",null,":",null,":",null,":",null,":",null,":",null,":",null,":"]
["S11_S12","C","EPS_P1_ANCESA",null,null,null,null,null,2029,":",null,":",null,":",null,":",null,":",null,":",null,":",null,":",null,":",null,":",null,":",null,":"]
["S11_S12","C","EPS_P1_ANCESA",null,null,null,null,null,2030,":",null,":",null,":",null,":",null,":",null,":",null,":",null,":",null,":",null,":",null,":",null,":"]
["S11_S12","C","EPS_P1_ANCESA",null,null,null,null,null,2031,":",null,":",null,":",null,":",null,":",null,":",null,":",null,":",null,":",null,":",null,":",null,":"]
["S11_S12","C","EPS_REC_BYPR",null,"   ( RNO.3b ) Related non-EP output",null,null,null,2014,":",null,":",null,":",null,":",null,":",null,":",null,":",null,":",null,":",null,":",null,":",null,":"]
["S11_S12","C","EPS_REC_BYPR",null,null,null,null,null,2015,":",null,":",null,":",null,":",null,":",null,":",null,":",null,":",null,":",null,":",null,":",null,":"]
["S11_S12","C","EPS_REC_BYPR",null,null,null,null,null,2016,":",null,":",null,":",null,":",null,":",null,":",null,":",null,":",null,":",null,":",null,":",null,":"]
["S11_S12","C","EPS_REC_BYPR",null,null,null,null,null,2017,":",null,":",null,":",null,":",null,":",null,":",null,":",null,":",null,":",null,":",null,":",null,":"]
["S11_S12","C","EPS_REC_BYPR",null,null,null,null,null,2018,":",null,":",null,":",null,":",null,":",null,":",null,":",null,":",null,":",null,":",null,":",null,":"]
["S11_S12","C","EPS_REC_BYPR",null,null,null,null,null,2019,":",null,":",null,":",null,":",null,":",null,":",null,":",null,":",null,":",null,":",null,":",null,":"]
["S11_S12","C","EPS_REC_BYPR",null,null,null,null,null,2020,":",null,":",null,":",null,":",null,":",null,":",null,":",null,":",null,":",null,":",null,":",null,":"]
["S11_S12","C","EPS_REC_BYPR",null,null,null,null,null,2021,":",null,":",null,":",null,":",null,":",null,":",null,":",null,":",null,":",null,":",null,":",null,":"]
["S11_S12","C","EPS_REC_BYPR",null,null,null,null,null,2022,":",null,":",null,":",null,":",null,":",null,":",null,":",null,":",null,":",null,":",null,":",null,":"]
["S11_S12","C","EPS_REC_BYPR",null,null,null,null,null,2023,":",null,":",null,":",null,":",null,":",null,":",null,":",null,":",null,":",null,":",null,":",null,":"]
["S11_S12","C","EPS_REC_BYPR",null,null,null,null,null,2024,":",null,":",null,":",null,":",null,":",null,":",null,":",null,":",null,":",null,":",null,":",null,":"]
["S11_S12","C","EPS_REC_BYPR",null,null,null,null,null,2025,":",null,":",null,":",null,":",null,":",null,":",null,":",null,":",null,":",null,":",null,":",null,":"]
["S11_S12","C","EPS_REC_BYPR",null,null,null,null,null,2026,":",null,":",null,":",null,":",null,":",null,":",null,":",null,":",null,":",null,":",null,":",null,":"]
["S11_S12","C","EPS_REC_BYPR",null,null,null,null,null,2027,":",null,":",null,":",null,":",null,":",null,":",null,":",null,":",null,":",null,":",null,":",null,":"]
["S11_S12","C","EPS_REC_BYPR",null,null,null,null,null,2028,":",null,":",null,":",null,":",null,":",null,":",null,":",null,":",null,":",null,":",null,":",null,":"]
["S11_S12","C","EPS_REC_BYPR",null,null,null,null,null,2029,":",null,":",null,":",null,":",null,":",null,":",null,":",null,":",null,":",null,":",null,":",null,":"]
["S11_S12","C","EPS_REC_BYPR",null,null,null,null,null,2030,":",null,":",null,":",null,":",null,":",null,":",null,":",null,":",null,":",null,":",null,":",null,":"]
["S11_S12","C","EPS_REC_BYPR",null,null,null,null,null,2031,":",null,":",null,":",null,":",null,":",null,":",null,":",null,":",null,":",null,":",null,":",null,":"]
["S11_S12","C","TOT_P2_EPS","Transactions as users of EP services (ancillary production of EP services and other production)","( P2_EPS_EXT.3b ) Total intermediate consumption of EP services (for production of EP services and for other production)",null,null,null,2014,":",null,":",null,":",null,":",null,":",null,":",null,":",null,":",null,":",null,":",null,":",null,":"]
["S11_S12","C","TOT_P2_EPS",null,"(P2_EPS_EXT.3x: please consider the explanatory notes - click here)",null,null,null,2015,":",null,":",null,":",null,":",null,":",null,":",null,":",null,":",null,":",null,":",null,":",null,":"]
["S11_S12","C","TOT_P2_EPS",null,null,null,null,null,2016,":",null,":",null,":",null,":",null,":",null,":",null,":",null,":",null,":",null,":",null,":",null,":"]
["S11_S12","C","TOT_P2_EPS",null,null,null,null,null,2017,":",null,":",null,":",null,":",null,":",null,":",null,":",null,":",null,":",null,":",null,":",null,":"]
["S11_S12","C","TOT_P2_EPS",null,null,null,null,null,2018,":",null,":",null,":",null,":",null,":",null,":",null,":",null,":",null,":",null,":",null,":",null,":"]
["S11_S12","C","TOT_P2_EPS",null,null,null,null,null,2019,":",null,":",null,":",null,":",null,":",null,":",null,":",null,":",null,":",null,":",null,":",null,":"]
["S11_S12","C","TOT_P2_EPS",null,null,null,null,null,2020,":",null,":",null,":",null,":",null,":",null,":",null,":",null,":",null,":",null,":",null,":",null,":"]
["S11_S12","C","TOT_P2_EPS",null,null,null,null,null,2021,":",null,":",null,":",null,":",null,":",null,":",null,":",null,":",null,":",null,":",null,":",null,":"]
["S11_S12","C","TOT_P2_EPS",null,null,null,null,null,2022,":",null,":",null,":",null,":",null,":",null,":",null,":",null,":",null,":",null,":",null,":",null,":"]
["S11_S12","C","TOT_P2_EPS",null,null,null,null,null,2023,":",null,":",null,":",null,":",null,":",null,":",null,":",null,":",null,":",null,":",null,":",null,":"]
["S11_S12","C","TOT_P2_EPS",null,null,null,null,null,2024,":",null,":",null,":",null,":",null,":",null,":",null,":",null,":",null,":",null,":",null,":",null,":"]
["S11_S12","C","TOT_P2_EPS",null,null,null,null,null,2025,":",null,":",null,":",null,":",null,":",null,":",null,":",null,":",null,":",null,":",null,":",null,":"]
["S11_S12","C","TOT_P2_EPS",null,null,null,null,null,2026,":",null,":",null,":",null,":",null,":",null,":",null,":",null,":",null,":",null,":",null,":",null,":"]
["S11_S12","C","TOT_P2_EPS",null,null,null,null,null,2027,":",null,":",null,":",null,":",null,":",null,":",null,":",null,":",null,":",null,":",null,":",null,":"]
["S11_S12","C","TOT_P2_EPS",null,null,null,null,null,2028,":",null,":",null,":",null,":",null,":",null,":",null,":",null,":",null,":",null,":",null,":",null,":"]
["S11_S12","C","TOT_P2_EPS",null,null,null,null,null,2029,":",null,":",null,":",null,":",null,":",null,":",null,":",null,":",null,":",null,":",null,":",null,":"]
["S11_S12","C","TOT_P2_EPS",null,null,null,null,null,2030,":",null,":",null,":",null,":",null,":",null,":",null,":",null,":",null,":",null,":",null,":",null,":"]
["S11_S12","C","TOT_P2_EPS",null,null,null,null,null,2031,":",null,":",null,":",null,":",null,":",null,":",null,":",null,":",null,":",null,":",null,":",null,":"]
["S11_S12","C","EPS_EMP","Transactions of producers of ancillary EP services","( EMP.3b ) Employment (Full time equivalents)",null,null,null,2014,":",null,":",null,":",null,":",null,":",null,":",null,":",null,":",null,":",null,":",null,":",null,":"]
["S11_S12","C","EPS_EMP",null,null,null,null,null,2015,":",null,":",null,":",null,":",null,":",null,":",null,":",null,":",null,":",null,":",null,":",null,":"]
["S11_S12","C","EPS_EMP",null,null,null,null,null,2016,":",null,":",null,":",null,":",null,":",null,":",null,":",null,":",null,":",null,":",null,":",null,":"]
["S11_S12","C","EPS_EMP",null,null,null,null,null,2017,":",null,":",null,":",null,":",null,":",null,":",null,":",null,":",null,":",null,":",null,":",null,":"]
["S11_S12","C","EPS_EMP",null,null,null,null,null,2018,":",null,":",null,":",null,":",null,":",null,":",null,":",null,":",null,":",null,":",null,":",null,":"]
["S11_S12","C","EPS_EMP",null,null,null,null,null,2019,":",null,":",null,":",null,":",null,":",null,":",null,":",null,":",null,":",null,":",null,":",null,":"]
["S11_S12","C","EPS_EMP",null,null,null,null,null,2020,":",null,":",null,":",null,":",null,":",null,":",null,":",null,":",null,":",null,":",null,":",null,":"]
["S11_S12","C","EPS_EMP",null,null,null,null,null,2021,":",null,":",null,":",null,":",null,":",null,":",null,":",null,":",null,":",null,":",null,":",null,":"]
["S11_S12","C","EPS_EMP",null,null,null,null,null,2022,":",null,":",null,":",null,":",null,":",null,":",null,":",null,":",null,":",null,":",null,":",null,":"]
["S11_S12","C","EPS_EMP",null,null,null,null,null,2023,":",null,":",null,":",null,":",null,":",null,":",null,":",null,":",null,":",null,":",null,":",null,":"]
["S11_S12","C","EPS_EMP",null,null,null,null,null,2024,":",null,":",null,":",null,":",null,":",null,":",null,":",null,":",null,":",null,":",null,":",null,":"]
["S11_S12","C","EPS_EMP",null,null,null,null,null,2025,":",null,":",null,":",null,":",null,":",null,":",null,":",null,":",null,":",null,":",null,":",null,":"]
["S11_S12","C","EPS_EMP",null,null,null,null,null,2026,":",null,":",null,":",null,":",null,":",null,":",null,":",null,":",null,":",null,":",null,":",null,":"]
["S11_S12","C","EPS_EMP",null,null,null,null,null,2027,":",null,":",null,":",null,":",null,":",null,":",null,":",null,":",null,":",null,":",null,":",null,":"]
["S11_S12","C","EPS_EMP",null,null,null,null,null,2028,":",null,":",null,":",null,":",null,":",null,":",null,":",null,":",null,":",null,":",null,":",null,":"]
["S11_S12","C","EPS_EMP",null,null,null,null,null,2029,":",null,":",null,":",null,":",null,":",null,":",null,":",null,":",null,":",null,":",null,":",null,":"]
["S11_S12","C","EPS_EMP",null,null,null,null,null,2030,":",null,":",null,":",null,":",null,":",null,":",null,":",null,":",null,":",null,":",null,":",null,":"]
["S11_S12","C","EPS_EMP",null,null,null,null,null,2031,":",null,":",null,":",null,":",null,":",null,":",null,":",null,":",null,":",null,":",null,":",null,":"]

{"sheet":"3b_Add_2014","index":16,"n_rows":104,"n_cols":32,"rows_kept":104,"cut":false,"hidden":false,"merged":[[91,4,91,5],[0,4,0,8],[0,9,0,16],[1,4,1,8],[1,9,1,32],[2,9,2,32],[3,9,4,10],[3,11,4,12],[3,13,4,14],[3,15,4,16],[3,17,4,18],[3,29,4,30],[3,31,4,32],[4,4,4,5],[3,19,4,20],[3,21,4,22],[3,23,4,24],[3,25,4,26],[3,27,4,28],[21,7,21,8],[22,7,22,8],[13,4,13,5],[13,7,13,8],[14,7,14,8],[15,7,15,8],[16,7,16,8],[17,7,17,8],[28,7,28,8],[29,7,29,8],[30,7,30,8],[31,7,31,8],[32,7,32,8],[33,7,33,8],[23,7,23,8],[24,7,24,8],[25,7,25,8],[26,7,26,8],[27,7,27,8],[48,4,48,5],[48,7,48,8],[39,7,39,8],[40,7,40,8],[41,4,41,5],[41,7,41,8],[42,7,42,8],[43,7,43,8],[34,4,34,5],[34,7,34,8],[35,7,35,8],[36,7,36,8],[37,7,37,8],[38,7,38,8],[35,4,35,5],[49,7,49,8],[50,7,50,8],[51,7,51,8],[52,7,52,8],[53,7,53,8],[54,7,54,8],[44,7,44,8],[45,7,45,8],[46,7,46,8],[47,7,47,8],[69,4,69,5],[69,7,69,8],[60,7,60,8],[61,7,61,8],[62,4,62,5],[62,7,62,8],[63,7,63,8],[64,7,64,8],[55,4,55,5],[55,7,55,8],[56,7,56,8],[57,7,57,8],[58,7,58,8],[59,7,59,8],[70,7,70,8],[71,7,71,8],[72,7,72,8],[73,7,73,8],[74,7,74,8],[75,7,75,8],[65,7,65,8],[66,7,66,8],[67,7,67,8],[68,7,68,8],[81,7,81,8],[82,7,82,8],[83,4,83,5],[83,7,83,8],[84,7,84,8],[85,7,85,8],[76,4,76,5],[76,7,76,8],[77,7,77,8],[78,7,78,8],[79,7,79,8],[80,7,80,8],[86,7,86,8],[87,7,87,8],[88,7,88,8],[89,7,89,8],[90,3,96,3],[90,4,90,5],[90,7,90,8],[91,7,91,8],[92,7,92,8],[93,7,93,8],[6,3,89,3],[6,4,6,5],[6,7,6,8],[7,7,7,8],[8,7,8,8],[9,7,9,8],[10,7,10,8],[11,7,11,8],[12,7,12,8],[27,4,27,5],[18,7,18,8],[19,7,19,8],[20,4,20,5],[20,7,20,8],[102,7,102,8],[103,7,103,8],[94,7,94,8],[95,7,95,8],[96,7,96,8],[97,3,103,3],[97,4,97,5],[97,7,97,8],[98,7,98,8],[99,7,99,8],[100,7,100,8],[101,7,101,8]]}
[null,null,null,null,{"$f":"Cover!$B$21","v":"QUESTIONNAIRE ON ENVIRONMENTAL PROTECTION EXPENDITURE ACCOUNTS"},null,null,null,null,"Table 3b Add.: Detailed Manufacturing Industries"]
[null,null,null,null,{"$f":"E1","v":"QUESTIONNAIRE ON ENVIRONMENTAL PROTECTION EXPENDITURE ACCOUNTS"},null,null,null,null,{"$f":"J1 & \" - \" & I5","v":"Table 3b Add.: Detailed Manufacturing Industries - 2014"}]
[null,null,null,null,null,null,null,null,null,"Mandatory and voluntary variables and environmental domains - please fill in as much as possible"]
[null,null,null,null,"Country/Unit",{"$f":"IFERROR(Cover!C16,\"\")","v":""},{"$f":"\"\"&Cover!B16","v":""},null,{"$f":"Cover!B17","v":"Million units of national currency"},"CEPA 1",null,"of which CEPA 1.1.2 and 1.2.2 Climate change",null,"CEPA 2",null,"CEPA 3",null,"CEPA 4",null,"CEPA 5",null,"CEPA 6",null,"CEPA 7",null,"CEPA 8",null,"CEPA 9",null,"Sum of CEPA 7+8+9",null,"TOTAL"]
[null,null,null,null,"Expenditure",null,null,"YEAR",2014,null,null,null,null,null,null,null,null,null,null,null,null,null,null,null,null,null,null,null,null,null,null,"Landscape"]
[null,null,null,null,null,null,null,null,null,"CEPA1",null,"CEPA112_122",null,"CEPA2",null,"CEPA3",null,"CEPA4",null,"CEPA5",null,"CEPA6",null,"CEPA7",null,"CEPA8",null,"CEPA9",null,"CEPA7-9",null,"TOT_CEPA"]
["S11_S12","C10-C12","EPS_P51G_NP","Transactions of producers of ancillary EP services","( P51G_NP.3bA ) Gross fixed capital formation and acquisition less disposals of non-financial, non-produced assets",null,"10-12","Manufacture of food, beverages and tobacco products",null,":",null,":",null,":",null,":",null,":",null,":",null,":",null,":",null,":",null,":",null,":",null,{"$f":"IF(COUNT(J7,N7,P7,R7,T7,V7,AD7)=7,SUM(J7,N7,P7,R7,T7,V7,AD7),\":\")","v":":"}]
["S11_S12","C17","EPS_P51G_NP",null,null,null,17,"Manufacture of paper and paper products",null,":",null,":",null,":",null,":",null,":",null,":",null,":",null,":",null,":",null,":",null,":",null,{"$f":"IF(COUNT(J8,N8,P8,R8,T8,V8,AD8)=7,SUM(J8,N8,P8,R8,T8,V8,AD8),\":\")","v":":"}]
["S11_S12","C19_C20","EPS_P51G_NP",null,null,null,"19-20","Manufacture of coke, chemicals and refined petroleum and chemical products",null,":",null,":",null,":",null,":",null,":",null,":",null,":",null,":",null,":",null,":",null,":",null,":"]
["S11_S12","C21-C23","EPS_P51G_NP",null,null,null,"21-23","Manufacture of pharmaceuticals, rubber, plastic and other non-metallic products",null,":",null,":",null,":",null,":",null,":",null,":",null,":",null,":",null,":",null,":",null,":",null,":"]
["S11_S12","C24","EPS_P51G_NP",null,null,null,24,"Manufacture of basic metals",null,":",null,":",null,":",null,":",null,":",null,":",null,":",null,":",null,":",null,":",null,":",null,":"]
["S11_S12","C25-C30","EPS_P51G_NP",null,null,null,"25-30","Manufacture of fabricated metal products, including machinery and equipment",null,":",null,":",null,":",null,":",null,":",null,":",null,":",null,":",null,":",null,":",null,":",null,":"]
["S11_S12","C13-C16_C18_C31-C33","EPS_P51G_NP",null,null,null,"13-16, 18, 31-33","Other manufacturing activities",null,":",null,":",null,":",null,":",null,":",null,":",null,":",null,":",null,":",null,":",null,":",null,":"]
["S11_S12","C10-C12","EPS_INV_PT",null,"( INV_EOP.3bA ) GFCF on specific EP fixed assets (end-of-pipe technologies)",null,"10-12'","Manufacture of food, beverages and tobacco products",null,":",null,":",null,":",null,":",null,":",null,":",null,":",null,":",null,":",null,":",null,":",null,":"]
["S11_S12","C17","EPS_INV_PT",null,null,null,17,"Manufacture of paper and paper products",null,":",null,":",null,":",null,":",null,":",null,":",null,":",null,":",null,":",null,":",null,":",null,":"]
["S11_S12","C19_C20","EPS_INV_PT",null,null,null,"19-20","Manufacture of coke, chemicals and refined petroleum and chemical products",null,":",null,":",null,":",null,":",null,":",null,":",null,":",null,":",null,":",null,":",null,":",null,":"]
["S11_S12","C21-C23","EPS_INV_PT",null,null,null,"21-23","Manufacture of pharmaceuticals, rubber, plastic and other non-metallic products",null,":",null,":",null,":",null,":",null,":",null,":",null,":",null,":",null,":",null,":",null,":",null,":"]
["S11_S12","C24","EPS_INV_PT",null,null,null,24,"Manufacture of basic metals",null,":",null,":",null,":",null,":",null,":",null,":",null,":",null,":",null,":",null,":",null,":",null,":"]
["S11_S12","C25-C30","EPS_INV_PT",null,null,null,"25-30","Manufacture of fabricated metal products, including machinery and equipment",null,":",null,":",null,":",null,":",null,":",null,":",null,":",null,":",null,":",null,":",null,":",null,":"]
["S11_S12","C13-C16_C18_C31-C33","EPS_INV_PT",null,null,null,"13-16, 18, 31-33","Other manufacturing activities",null,":",null,":",null,":",null,":",null,":",null,":",null,":",null,":",null,":",null,":",null,":",null,":"]
["S11_S12","C10-C12","EPS_INV_PP",null,"( INV_IT.3bA ) GFCF on cleaner EP fixed assets (integrated technologies)",null,"10-12'","Manufacture of food, beverages and tobacco products",null,":",null,":",null,":",null,":",null,":",null,":",null,":",null,":",null,":",null,":",null,":",null,":"]
["S11_S12","C17","EPS_INV_PP",null,null,null,17,"Manufacture of paper and paper products",null,":",null,":",null,":",null,":",null,":",null,":",null,":",null,":",null,":",null,":",null,":",null,":"]
["S11_S12","C19_C20","EPS_INV_PP",null,null,null,"19-20","Manufacture of coke, chemicals and refined petroleum and chemical products",null,":",null,":",null,":",null,":",null,":",null,":",null,":",null,":",null,":",null,":",null,":",null,":"]
["S11_S12","C21-C23","EPS_INV_PP",null,null,null,"21-23","Manufacture of pharmaceuticals, rubber, plastic and other non-metallic products",null,":",null,":",null,":",null,":",null,":",null,":",null,":",null,":",null,":",null,":",null,":",null,":"]
["S11_S12","C24","EPS_INV_PP",null,null,null,24,"Manufacture of basic metals",null,":",null,":",null,":",null,":",null,":",null,":",null,":",null,":",null,":",null,":",null,":",null,":"]
["S11_S12","C25-C30","EPS_INV_PP",null,null,null,"25-30","Manufacture of fabricated metal products, including machinery and equipment",null,":",null,":",null,":",null,":",null,":",null,":",null,":",null,":",null,":",null,":",null,":",null,":"]
["S11_S12","C13-C16_C18_C31-C33","EPS_INV_PP",null,null,null,"13-16, 18, 31-33","Other manufacturing activities",null,":",null,":",null,":",null,":",null,":",null,":",null,":",null,":",null,":",null,":",null,":",null,":"]
["S11_S12","C10-C12","EPS_P2",null,"( P2.3bA ) Total intermediate consumption",null,"10-12'","Manufacture of food, beverages and tobacco products",null,":",null,":",null,":",null,":",null,":",null,":",null,":",null,":",null,":",null,":",null,":",null,":"]
["S11_S12","C17","EPS_P2",null,null,null,17,"Manufacture of paper and paper products",null,":",null,":",null,":",null,":",null,":",null,":",null,":",null,":",null,":",null,":",null,":",null,":"]
["S11_S12","C19_C20","EPS_P2",null,null,null,"19-20","Manufacture of coke, chemicals and refined petroleum and chemical products",null,":",null,":",null,":",null,":",null,":",null,":",null,":",null,":",null,":",null,":",null,":",null,":"]
["S11_S12","C21-C23","EPS_P2",null,null,null,"21-23","Manufacture of pharmaceuticals, rubber, plastic and other non-metallic products",null,":",null,":",null,":",null,":",null,":",null,":",null,":",null,":",null,":",null,":",null,":",null,":"]
["S11_S12","C24","EPS_P2",null,null,null,24,"Manufacture of basic metals",null,":",null,":",null,":",null,":",null,":",null,":",null,":",null,":",null,":",null,":",null,":",null,":"]
["S11_S12","C25-C30","EPS_P2",null,null,null,"25-30","Manufacture of fabricated metal products, including machinery and equipment",null,":",null,":",null,":",null,":",null,":",null,":",null,":",null,":",null,":",null,":",null,":",null,":"]
["S11_S12","C13-C16_C18_C31-C33","EPS_P2",null,null,null,"13-16, 18, 31-33","Other manufacturing activities",null,":",null,":",null,":",null,":",null,":",null,":",null,":",null,":",null,":",null,":",null,":",null,":"]
["S11_S12","C10-C12","EPS_P2_EPS",null,"( P2_EPS.3bA ) Intermediate consumption of EP services for ancillary production of EP services ",null,"10-12'","Manufacture of food, beverages and tobacco products",null,":",null,":",null,":",null,":",null,":",null,":",null,":",null,":",null,":",null,":",null,":",null,":"]
["S11_S12","C17","EPS_P2_EPS",null,"(P2_EPS.3x: please consider the explanatory notes - click here)",null,17,"Manufacture of paper and paper products",null,":",null,":",null,":",null,":",null,":",null,":",null,":",null,":",null,":",null,":",null,":",null,":"]
["S11_S12","C19_C20","EPS_P2_EPS",null,null,null,"19-20","Manufacture of coke, chemicals and refined petroleum and chemical products",null,":",null,":",null,":",null,":",null,":",null,":",null,":",null,":",null,":",null,":",null,":",null,":"]
["S11_S12","C21-C23","EPS_P2_EPS",null,null,null,"21-23","Manufacture of pharmaceuticals, rubber, plastic and other non-metallic products",null,":",null,":",null,":",null,":",null,":",null,":",null,":",null,":",null,":",null,":",null,":",null,":"]
["S11_S12","C24","EPS_P2_EPS",null,null,null,24,"Manufacture of basic metals",null,":",null,":",null,":",null,":",null,":",null,":",null,":",null,":",null,":",null,":",null,":",null,":"]
["S11_S12","C25-C30","EPS_P2_EPS",null,null,null,"25-30","Manufacture of fabricated metal products, including machinery and equipment",null,":",null,":",null,":",null,":",null,":",null,":",null,":",null,":",null,":",null,":",null,":",null,":"]
["S11_S12","C13-C16_C18_C31-C33","EPS_P2_EPS",null,null,null,"13-16, 18, 31-33","Other manufacturing activities",null,":",null,":",null,":",null,":",null,":",null,":",null,":",null,":",null,":",null,":",null,":",null,":"]
["S11_S12","C10-C12","EPS_P2_NEPS",null,"( P2_NEPS.3bA ) Intermediate consumption (excluding EP services)",null,"10-12'","Manufacture of food, beverages and tobacco products",null,":",null,":",null,":",null,":",null,":",null,":",null,":",null,":",null,":",null,":",null,":",null,":"]
["S11_S12","C17","EPS_P2_NEPS",null,null,null,17,"Manufacture of paper and paper products",null,":",null,":",null,":",null,":",null,":",null,":",null,":",null,":",null,":",null,":",null,":",null,":"]
["S11_S12","C19_C20","EPS_P2_NEPS",null,null,null,"19-20","Manufacture of coke, chemicals and refined petroleum and chemical products",null,":",null,":",null,":",null,":",null,":",null,":",null,":",null,":",null,":",null,":",null,":",null,":"]
["S11_S12","C21-C23","EPS_P2_NEPS",null,null,null,"21-23","Manufacture of pharmaceuticals, rubber, plastic and other non-metallic products",null,":",null,":",null,":",null,":",null,":",null,":",null,":",null,":",null,":",null,":",null,":",null,":"]
["S11_S12","C24","EPS_P2_NEPS",null,null,null,24,"Manufacture of basic metals",null,":",null,":",null,":",null,":",null,":",null,":",null,":",null,":",null,":",null,":",null,":",null,":"]
["S11_S12","C25-C30","EPS_P2_NEPS",null,null,null,"25-30","Manufacture of fabricated metal products, including machinery and equipment",null,":",null,":",null,":",null,":",null,":",null,":",null,":",null,":",null,":",null,":",null,":",null,":"]
["S11_S12","C13-C16_C18_C31-C33","EPS_P2_NEPS",null,null,null,"13-16, 18, 31-33","Other manufacturing activities",null,":",null,":",null,":",null,":",null,":",null,":",null,":",null,":",null,":",null,":",null,":",null,":"]
["S11_S12","C10-C12","EPS_D1",null,"( D1.3bA ) Compensation of employees",null,"10-12'","Manufacture of food, beverages \nand tobacco products",null,":",null,":",null,":",null,":",null,":",null,":",null,":",null,":",null,":",null,":",null,":",null,":"]
["S11_S12","C17","EPS_D1",null,null,null,17,"Manufacture of paper and paper products",null,":",null,":",null,":",null,":",null,":",null,":",null,":",null,":",null,":",null,":",null,":",null,":"]
["S11_S12","C19_C20","EPS_D1",null,null,null,"19-20","Manufacture of coke, chemicals and refined petroleum and chemical products",null,":",null,":",null,":",null,":",null,":",null,":",null,":",null,":",null,":",null,":",null,":",null,":"]
["S11_S12","C21-C23","EPS_D1",null,null,null,"21-23","Manufacture of pharmaceuticals, rubber, plastic and other non-metallic products",null,":",null,":",null,":",null,":",null,":",null,":",null,":",null,":",null,":",null,":",null,":",null,":"]
["S11_S12","C24","EPS_D1",null,null,null,24,"Manufacture of basic metals",null,":",null,":",null,":",null,":",null,":",null,":",null,":",null,":",null,":",null,":",null,":",null,":"]
["S11_S12","C25-C30","EPS_D1",null,null,null,"25-30","Manufacture of fabricated metal products, including machinery and equipment",null,":",null,":",null,":",null,":",null,":",null,":",null,":",null,":",null,":",null,":",null,":",null,":"]
["S11_S12","C13-C16_C18_C31-C33","EPS_D1",null,null,null,"13-16, 18, 31-33","Other manufacturing activities",null,":",null,":",null,":",null,":",null,":",null,":",null,":",null,":",null,":",null,":",null,":",null,":"]
["S11_S12","C10-C12","EPS_P1_ANC",null,"( P1_ANC.3bA ) Ancillary EP output (simplified valuation legally acceptable) ((P2_NEPS.3bA) + (D1.3bA))",null,"10-12'","Manufacture of food, beverages and tobacco products",null,":",null,":",null,":",null,":",null,":",null,":",null,":",null,":",null,":",null,":",null,":",null,":"]
["S11_S12","C17","EPS_P1_ANC",null,null,null,17,"Manufacture of paper and paper products",null,":",null,":",null,":",null,":",null,":",null,":",null,":",null,":",null,":",null,":",null,":",null,":"]
["S11_S12","C19_C20","EPS_P1_ANC",null,null,null,"19-20","Manufacture of coke, chemicals and refined petroleum and chemical products",null,":",null,":",null,":",null,":",null,":",null,":",null,":",null,":",null,":",null,":",null,":",null,":"]
["S11_S12","C21-C23","EPS_P1_ANC",null,null,null,"21-23","Manufacture of pharmaceuticals, rubber, plastic and other non-metallic products",null,":",null,":",null,":",null,":",null,":",null,":",null,":",null,":",null,":",null,":",null,":",null,":"]
["S11_S12","C24","EPS_P1_ANC",null,null,null,24,"Manufacture of basic metals",null,":",null,":",null,":",null,":",null,":",null,":",null,":",null,":",null,":",null,":",null,":",null,":"]
["S11_S12","C25-C30","EPS_P1_ANC",null,null,null,"25-30","Manufacture of fabricated metal products, including machinery and equipment",null,":",null,":",null,":",null,":",null,":",null,":",null,":",null,":",null,":",null,":",null,":",null,":"]
["S11_S12","C13-C16_C18_C31-C33","EPS_P1_ANC",null,null,null,"13-16, 18, 31-33","Other manufacturing activities",null,":",null,":",null,":",null,":",null,":",null,":",null,":",null,":",null,":",null,":",null,":",null,":"]
["S11_S12","C10-C12","EPS_D29X39",null,"( D29-D39.3bA ) Other taxes less subsidies on production",null,"10-12'","Manufacture of food, beverages and tobacco products",null,":",null,":",null,":",null,":",null,":",null,":",null,":",null,":",null,":",null,":",null,":",null,":"]
["S11_S12","C17","EPS_D29X39",null,null,null,17,"Manufacture of paper and paper products",null,":",null,":",null,":",null,":",null,":",null,":",null,":",null,":",null,":",null,":",null,":",null,":"]
["S11_S12","C19_C20","EPS_D29X39",null,null,null,"19-20","Manufacture of coke, chemicals and refined petroleum and chemical products",null,":",null,":",null,":",null,":",null,":",null,":",null,":",null,":",null,":",null,":",null,":",null,":"]
["S11_S12","C21-C23","EPS_D29X39",null,null,null,"21-23","Manufacture of pharmaceuticals, rubber, plastic and other non-metallic products",null,":",null,":",null,":",null,":",null,":",null,":",null,":",null,":",null,":",null,":",null,":",null,":"]
["S11_S12","C24","EPS_D29X39",null,null,null,24,"Manufacture of basic metals",null,":",null,":",null,":",null,":",null,":",null,":",null,":",null,":",null,":",null,":",null,":",null,":"]
["S11_S12","C25-C30","EPS_D29X39",null,null,null,"25-30","Manufacture of fabricated metal products, including machinery and equipment",null,":",null,":",null,":",null,":",null,":",null,":",null,":",null,":",null,":",null,":",null,":",null,":"]
["S11_S12","C13-C16_C18_C31-C33","EPS_D29X39",null,null,null,"13-16, 18, 31-33","Other manufacturing activities",null,":",null,":",null,":",null,":",null,":",null,":",null,":",null,":",null,":",null,":",null,":",null,":"]
["S11_S12","C10-C12","EPS_P51C",null,"( P51C.3bA ) Consumption of fixed capital",null,"10-12'","Manufacture of food, beverages and tobacco products",null,":",null,":",null,":",null,":",null,":",null,":",null,":",null,":",null,":",null,":",null,":",null,":"]
["S11_S12","C17","EPS_P51C",null,null,null,17,"Manufacture of paper and paper products",null,":",null,":",null,":",null,":",null,":",null,":",null,":",null,":",null,":",null,":",null,":",null,":"]
["S11_S12","C19_C20","EPS_P51C",null,null,null,"19-20","Manufacture of coke, chemicals and refined petroleum and chemical products",null,":",null,":",null,":",null,":",null,":",null,":",null,":",null,":",null,":",null,":",null,":",null,{"$f":"IF(COUNT(J72,N72,P72,R72,T72,V72,AD72)=7,SUM(J72,N72,P72,R72,T72,V72,AD72),\":\")","v":":"}]
["S11_S12","C21-C23","EPS_P51C",null,null,null,"21-23","Manufacture of pharmaceuticals, rubber, plastic and other non-metallic products",null,":",null,":",null,":",null,":",null,":",null,":",null,":",null,":",null,":",null,":",null,":",null,":"]
["S11_S12","C24","EPS_P51C",null,null,null,24,"Manufacture of basic metals",null,":",null,":",null,":",null,":",null,":",null,":",null,":",null,":",null,":",null,":",null,":",null,":"]
["S11_S12","C25-C30","EPS_P51C",null,null,null,"25-30","Manufacture of fabricated metal products, including machinery and equipment",null,":",null,":",null,":",null,":",null,":",null,":",null,":",null,":",null,":",null,":",null,":",null,":"]
["S11_S12","C13-C16_C18_C31-C33","EPS_P51C",null,null,null,"13-16, 18, 31-33","Other manufacturing activities",null,":",null,":",null,":",null,":",null,":",null,":",null,":",null,":",null,":",null,":",null,":",null,":"]
["S11_S12","C10-C12","EPS_P1_ANCESA",null,"( P1_ANC_ESA.3bA ) Ancillary EP output (ESA - compatible valuation) ((P2_NEPS.3bA) + (D1.3bA) +(P51C.3bA) + (D29-D39.3bA))",null,"10-12'","Manufacture of food, beverages and tobacco products",null,":",null,":",null,":",null,":",null,":",null,":",null,":",null,":",null,":",null,":",null,":",null,":"]
["S11_S12","C17","EPS_P1_ANCESA",null,null,null,17,"Manufacture of paper and paper products",null,":",null,":",null,":",null,":",null,":",null,":",null,":",null,":",null,":",null,":",null,":",null,":"]
["S11_S12","C19_C20","EPS_P1_ANCESA",null,null,null,"19-20","Manufacture of coke, chemicals and refined petroleum and chemical products",null,":",null,":",null,":",null,":",null,":",null,":",null,":",null,":",null,":",null,":",null,":",null,":"]
["S11_S12","C21-C23","EPS_P1_ANCESA",null,null,null,"21-23","Manufacture of pharmaceuticals, rubber, plastic and other non-metallic products",null,":",null,":",null,":",null,":",null,":",null,":",null,":",null,":",null,":",null,":",null,":",null,":"]
["S11_S12","C24","EPS_P1_ANCESA",null,null,null,24,"Manufacture of basic metals",null,":",null,":",null,":",null,":",null,":",null,":",null,":",null,":",null,":",null,":",null,":",null,":"]
["S11_S12","C25-C30","EPS_P1_ANCESA",null,null,null,"25-30","Manufacture of fabricated metal products, including machinery and equipment",null,":",null,":",null,":",null,":",null,":",null,":",null,":",null,":",null,":",null,":",null,":",null,":"]
["S11_S12","C13-C16_C18_C31-C33","EPS_P1_ANCESA",null,null,null,"13-16, 18, 31-33","Other manufacturing activities",null,":",null,":",null,":",null,":",null,":",null,":",null,":",null,":",null,":",null,":",null,":",null,":"]
["S11_S12","C10-C12","EPS_REC_BYPR",null,"( RNO.3bA ) Related non-EP output",null,"10-12'","Manufacture of food, beverages and tobacco products",null,":",null,":",null,":",null,":",null,":",null,":",null,":",null,":",null,":",null,":",null,":",null,":"]
["S11_S12","C17","EPS_REC_BYPR",null,null,null,17,"Manufacture of paper and paper products",null,":",null,":",null,":",null,":",null,":",null,":",null,":",null,":",null,":",null,":",null,":",null,":"]
["S11_S12","C19_C20","EPS_REC_BYPR",null,null,null,"19-20","Manufacture of coke, chemicals and refined petroleum and chemical products",null,":",null,":",null,":",null,":",null,":",null,":",null,":",null,":",null,":",null,":",null,":",null,":"]
["S11_S12","C21-C23","EPS_REC_BYPR",null,null,null,"21-23","Manufacture of pharmaceuticals, rubber, plastic and other non-metallic products",null,":",null,":",null,":",null,":",null,":",null,":",null,":",null,":",null,":",null,":",null,":",null,":"]
["S11_S12","C24","EPS_REC_BYPR",null,null,null,24,"Manufacture of basic metals",null,":",null,":",null,":",null,":",null,":",null,":",null,":",null,":",null,":",null,":",null,":",null,":"]
["S11_S12","C25-C30","EPS_REC_BYPR",null,null,null,"25-30","Manufacture of fabricated metal products, including machinery and equipment",null,":",null,":",null,":",null,":",null,":",null,":",null,":",null,":",null,":",null,":",null,":",null,":"]
["S11_S12","C13-C16_C18_C31-C33","EPS_REC_BYPR",null,null,null,"13-16, 18, 31-33","Other manufacturing activities",null,":",null,":",null,":",null,":",null,":",null,":",null,":",null,":",null,":",null,":",null,":",null,":"]
["S11_S12","C10-C12","TOT_P2_EPS","Transactions as users of EP services (ancillary production of EP services and other production)","( P2_EPS_EXT.3bA ) Total intermediate consumption of EP services (for production of EP services and for other production)",null,"10-12'","Manufacture of food, beverages and tobacco products",null,":",null,":",null,":",null,":",null,":",null,":",null,":",null,":",null,":",null,":",null,":",null,":"]
["S11_S12","C17","TOT_P2_EPS",null,"(P2_EPS_EXT.3x: please consider the explanatory notes - click here)",null,17,"Manufacture of paper and paper products",null,":",null,":",null,":",null,":",null,":",null,":",null,":",null,":",null,":",null,":",null,":",null,":"]
["S11_S12","C19_C20","TOT_P2_EPS",null,null,null,"19-20","Manufacture of coke, chemicals and refined petroleum and chemical products",null,":",null,":",null,":",null,":",null,":",null,":",null,":",null,":",null,":",null,":",null,":",null,":"]
["S11_S12","C21-C23","TOT_P2_EPS",null,null,null,"21-23","Manufacture of pharmaceuticals, rubber, plastic and other non-metallic products",null,":",null,":",null,":",null,":",null,":",null,":",null,":",null,":",null,":",null,":",null,":",null,":"]
["S11_S12","C24","TOT_P2_EPS",null,null,null,24,"Manufacture of basic metals",null,":",null,":",null,":",null,":",null,":",null,":",null,":",null,":",null,":",null,":",null,":",null,":"]
["S11_S12","C25-C30","TOT_P2_EPS",null,null,null,"25-30","Manufacture of fabricated metal products, including machinery and equipment",null,":",null,":",null,":",null,":",null,":",null,":",null,":",null,":",null,":",null,":",null,":",null,":"]
["S11_S12","C13-C16_C18_C31-C33","TOT_P2_EPS",null,null,null,"13-16, 18, 31-33","Other manufacturing activities",null,":",null,":",null,":",null,":",null,":",null,":",null,":",null,":",null,":",null,":",null,":",null,":"]
["S11_S12","C10-C12","EPS_EMP","Transactions of producers of ancillary EP services","( EMP.3bA ) Employment (full time equivalent)",null,"10-12'","Manufacture of food, beverages and tobacco products",null,":",null,":",null,":",null,":",null,":",null,":",null,":",null,":",null,":",null,":",null,":",null,":"]
["S11_S12","C17","EPS_EMP",null,null,null,17,"Manufacture of paper and paper products",null,":",null,":",null,":",null,":",null,":",null,":",null,":",null,":",null,":",null,":",null,":",null,":"]
["S11_S12","C19_C20","EPS_EMP",null,null,null,"19-20","Manufacture of coke, chemicals and refined petroleum and chemical products",null,":",null,":",null,":",null,":",null,":",null,":",null,":",null,":",null,":",null,":",null,":",null,":"]
["S11_S12","C21-C23","EPS_EMP",null,null,null,"21-23","Manufacture of pharmaceuticals, rubber, plastic and other non-metallic products",null,":",null,":",null,":",null,":",null,":",null,":",null,":",null,":",null,":",null,":",null,":",null,":"]
["S11_S12","C24","EPS_EMP",null,null,null,24,"Manufacture of basic metals",null,":",null,":",null,":",null,":",null,":",null,":",null,":",null,":",null,":",null,":",null,":",null,":"]
["S11_S12","C25-C30","EPS_EMP",null,null,null,"25-30","Manufacture of fabricated metal products, including machinery and equipment",null,":",null,":",null,":",null,":",null,":",null,":",null,":",null,":",null,":",null,":",null,":",null,":"]
["S11_S12","C13-C16_C18_C31-C33","EPS_EMP",null,null,null,"13-16, 18, 31-33","Other manufacturing activities",null,":",null,":",null,":",null,":",null,":",null,":",null,":",null,":",null,":",null,":",null,":",null,{"$f":"IF(COUNT(J104,N104,P104,R104,T104,V104,AD104)=7,SUM(J104,N104,P104,R104,T104,V104,AD104),\":\")","v":":"}]

{"sheet":"3b_Add_2015","index":17,"n_rows":104,"n_cols":32,"rows_kept":104,"cut":false,"hidden":false,"merged":[[102,7,102,8],[103,7,103,8],[94,7,94,8],[95,7,95,8],[96,7,96,8],[97,3,103,3],[97,4,97,5],[97,7,97,8],[98,7,98,8],[99,7,99,8],[100,7,100,8],[101,7,101,8],[86,7,86,8],[87,7,87,8],[88,7,88,8],[89,7,89,8],[90,3,96,3],[90,4,90,5],[90,7,90,8],[91,7,91,8],[92,7,92,8],[93,7,93,8],[6,3,89,3],[6,4,6,5],[6,7,6,8],[7,7,7,8],[8,7,8,8],[9,7,9,8],[10,7,10,8],[11,7,11,8],[35,4,35,5],[91,4,91,5],[81,7,81,8],[82,7,82,8],[83,4,83,5],[83,7,83,8],[84,7,84,8],[85,7,85,8],[76,4,76,5],[76,7,76,8],[77,7,77,8],[78,7,78,8],[79,7,79,8],[80,7,80,8],[70,7,70,8],[71,7,71,8],[72,7,72,8],[73,7,73,8],[74,7,74,8],[75,7,75,8],[65,7,65,8],[66,7,66,8],[67,7,67,8],[68,7,68,8],[69,4,69,5],[69,7,69,8],[60,7,60,8],[61,7,61,8],[62,4,62,5],[62,7,62,8],[63,7,63,8],[64,7,64,8],[55,4,55,5],[55,7,55,8],[56,7,56,8],[57,7,57,8],[58,7,58,8],[59,7,59,8],[49,7,49,8],[50,7,50,8],[51,7,51,8],[52,7,52,8],[53,7,53,8],[54,7,54,8],[44,7,44,8],[45,7,45,8],[46,7,46,8],[47,7,47,8],[48,4,48,5],[48,7,48,8],[39,7,39,8],[40,7,40,8],[41,4,41,5],[41,7,41,8],[42,7,42,8],[43,7,43,8],[34,4,34,5],[34,7,34,8],[35,7,35,8],[36,7,36,8],[37,7,37,8],[38,7,38,8],[29,7,29,8],[30,7,30,8],[31,7,31,8],[32,7,32,8],[33,7,33,8],[22,7,22,8],[23,7,23,8],[24,7,24,8],[25,7,25,8],[26,7,26,8],[28,7,28,8],[27,4,27,5],[27,7,27,8],[17,7,17,8],[18,7,18,8],[19,7,19,8],[20,4,20,5],[20,7,20,8],[21,7,21,8],[12,7,12,8],[13,4,13,5],[13,7,13,8],[14,7,14,8],[15,7,15,8],[16,7,16,8],[0,4,0,8],[0,9,0,16],[1,4,1,8],[1,9,1,32],[2,9,2,32],[3,9,4,10],[3,11,4,12],[3,13,4,14],[3,15,4,16],[3,17,4,18],[3,31,4,32],[4,4,4,5],[3,21,4,22],[3,23,4,24],[3,25,4,26],[3,27,4,28],[3,29,4,30],[3,19,4,20]]}
[null,null,null,null,{"$f":"Cover!$B$21","v":"QUESTIONNAIRE ON ENVIRONMENTAL PROTECTION EXPENDITURE ACCOUNTS"},null,null,null,null,"Table 3b Add.: Detailed Manufacturing Industries"]
[null,null,null,null,{"$f":"E1","v":"QUESTIONNAIRE ON ENVIRONMENTAL PROTECTION EXPENDITURE ACCOUNTS"},null,null,null,null,{"$f":"J1 & \" - \" & I5","v":"Table 3b Add.: Detailed Manufacturing Industries - 2015"}]
[null,null,null,null,null,null,null,null,null,"Mandatory and voluntary variables and environmental domains - please fill in as much as possible"]
[null,null,null,null,"Country/Unit",{"$f":"IFERROR(Cover!C16,\"\")","v":""},{"$f":"\"\"&Cover!B16","v":""},null,{"$f":"Cover!B17","v":"Million units of national currency"},"CEPA 1",null,"of which CEPA 1.1.2 and 1.2.2 Climate change",null,"CEPA 2",null,"CEPA 3",null,"CEPA 4",null,"CEPA 5",null,"CEPA 6",null,"CEPA 7",null,"CEPA 8",null,"CEPA 9",null,"Sum of CEPA 7+8+9",null,"TOTAL"]
[null,null,null,null,"Expenditure",null,null,"YEAR",2015,null,null,null,null,null,null,null,null,null,null,null,null,null,null,null,null,null,null,null,null,null,null,"Landscape"]
[null,null,null,null,null,null,null,null,null,"CEPA1",null,"CEPA112_122",null,"CEPA2",null,"CEPA3",null,"CEPA4",null,"CEPA5",null,"CEPA6",null,"CEPA7",null,"CEPA8",null,"CEPA9",null,"CEPA7-9",null,"TOT_CEPA"]
["S11_S12","C10-C12","EPS_P51G_NP","Transactions of producers of ancillary EP services","( P51G_NP.3bA ) Gross fixed capital formation and acquisition less disposals of non-financial, non-produced assets",null,"10-12","Manufacture of food, beverages and tobacco products",null,":",null,":",null,":",null,":",null,":",null,":",null,":",null,":",null,":",null,":",null,":",null,{"$f":"IF(COUNT(J7,N7,P7,R7,T7,V7,AD7)=7,SUM(J7,N7,P7,R7,T7,V7,AD7),\":\")","v":":"}]
["S11_S12","C17","EPS_P51G_NP",null,null,null,17,"Manufacture of paper and paper products",null,":",null,":",null,":",null,":",null,":",null,":",null,":",null,":",null,":",null,":",null,":",null,{"$f":"IF(COUNT(J8,N8,P8,R8,T8,V8,AD8)=7,SUM(J8,N8,P8,R8,T8,V8,AD8),\":\")","v":":"}]
["S11_S12","C19_C20","EPS_P51G_NP",null,null,null,"19-20","Manufacture of coke, chemicals and refined petroleum and chemical products",null,":",null,":",null,":",null,":",null,":",null,":",null,":",null,":",null,":",null,":",null,":",null,":"]
["S11_S12","C21-C23","EPS_P51G_NP",null,null,null,"21-23","Manufacture of pharmaceuticals, rubber, plastic and other non-metallic products",null,":",null,":",null,":",null,":",null,":",null,":",null,":",null,":",null,":",null,":",null,":",null,":"]
["S11_S12","C24","EPS_P51G_NP",null,null,null,24,"Manufacture of basic metals",null,":",null,":",null,":",null,":",null,":",null,":",null,":",null,":",null,":",null,":",null,":",null,":"]
["S11_S12","C25-C30","EPS_P51G_NP",null,null,null,"25-30","Manufacture of fabricated metal products, including machinery and equipment",null,":",null,":",null,":",null,":",null,":",null,":",null,":",null,":",null,":",null,":",null,":",null,":"]
["S11_S12","C13-C16_C18_C31-C33","EPS_P51G_NP",null,null,null,"13-16, 18, 31-33","Other manufacturing activities",null,":",null,":",null,":",null,":",null,":",null,":",null,":",null,":",null,":",null,":",null,":",null,":"]
["S11_S12","C10-C12","EPS_INV_PT",null,"( INV_EOP.3bA ) GFCF on specific EP fixed assets (end-of-pipe technologies)",null,"10-12'","Manufacture of food, beverages and tobacco products",null,":",null,":",null,":",null,":",null,":",null,":",null,":",null,":",null,":",null,":",null,":",null,":"]
["S11_S12","C17","EPS_INV_PT",null,null,null,17,"Manufacture of paper and paper products",null,":",null,":",null,":",null,":",null,":",null,":",null,":",null,":",null,":",null,":",null,":",null,":"]
["S11_S12","C19_C20","EPS_INV_PT",null,null,null,"19-20","Manufacture of coke, chemicals and refined petroleum and chemical products",null,":",null,":",null,":",null,":",null,":",null,":",null,":",null,":",null,":",null,":",null,":",null,":"]
["S11_S12","C21-C23","EPS_INV_PT",null,null,null,"21-23","Manufacture of pharmaceuticals, rubber, plastic and other non-metallic products",null,":",null,":",null,":",null,":",null,":",null,":",null,":",null,":",null,":",null,":",null,":",null,":"]
["S11_S12","C24","EPS_INV_PT",null,null,null,24,"Manufacture of basic metals",null,":",null,":",null,":",null,":",null,":",null,":",null,":",null,":",null,":",null,":",null,":",null,":"]
["S11_S12","C25-C30","EPS_INV_PT",null,null,null,"25-30","Manufacture of fabricated metal products, including machinery and equipment",null,":",null,":",null,":",null,":",null,":",null,":",null,":",null,":",null,":",null,":",null,":",null,":"]
["S11_S12","C13-C16_C18_C31-C33","EPS_INV_PT",null,null,null,"13-16, 18, 31-33","Other manufacturing activities",null,":",null,":",null,":",null,":",null,":",null,":",null,":",null,":",null,":",null,":",null,":",null,":"]
["S11_S12","C10-C12","EPS_INV_PP",null,"( INV_IT.3bA ) GFCF on cleaner EP fixed assets (integrated technologies)",null,"10-12'","Manufacture of food, beverages and tobacco products",null,":",null,":",null,":",null,":",null,":",null,":",null,":",null,":",null,":",null,":",null,":",null,":"]
["S11_S12","C17","EPS_INV_PP",null,null,null,17,"Manufacture of paper and paper products",null,":",null,":",null,":",null,":",null,":",null,":",null,":",null,":",null,":",null,":",null,":",null,":"]
["S11_S12","C19_C20","EPS_INV_PP",null,null,null,"19-20","Manufacture of coke, chemicals and refined petroleum and chemical products",null,":",null,":",null,":",null,":",null,":",null,":",null,":",null,":",null,":",null,":",null,":",null,":"]
["S11_S12","C21-C23","EPS_INV_PP",null,null,null,"21-23","Manufacture of pharmaceuticals, rubber, plastic and other non-metallic products",null,":",null,":",null,":",null,":",null,":",null,":",null,":",null,":",null,":",null,":",null,":",null,":"]
["S11_S12","C24","EPS_INV_PP",null,null,null,24,"Manufacture of basic metals",null,":",null,":",null,":",null,":",null,":",null,":",null,":",null,":",null,":",null,":",null,":",null,":"]
["S11_S12","C25-C30","EPS_INV_PP",null,null,null,"25-30","Manufacture of fabricated metal products, including machinery and equipment",null,":",null,":",null,":",null,":",null,":",null,":",null,":",null,":",null,":",null,":",null,":",null,":"]
["S11_S12","C13-C16_C18_C31-C33","EPS_INV_PP",null,null,null,"13-16, 18, 31-33","Other manufacturing activities",null,":",null,":",null,":",null,":",null,":",null,":",null,":",null,":",null,":",null,":",null,":",null,":"]
["S11_S12","C10-C12","EPS_P2",null,"( P2.3bA ) Total intermediate consumption",null,"10-12'","Manufacture of food, beverages and tobacco products",null,":",null,":",null,":",null,":",null,":",null,":",null,":",null,":",null,":",null,":",null,":",null,":"]
["S11_S12","C17","EPS_P2",null,null,null,17,"Manufacture of paper and paper products",null,":",null,":",null,":",null,":",null,":",null,":",null,":",null,":",null,":",null,":",null,":",null,":"]
["S11_S12","C19_C20","EPS_P2",null,null,null,"19-20","Manufacture of coke, chemicals and refined petroleum and chemical products",null,":",null,":",null,":",null,":",null,":",null,":",null,":",null,":",null,":",null,":",null,":",null,":"]
["S11_S12","C21-C23","EPS_P2",null,null,null,"21-23","Manufacture of pharmaceuticals, rubber, plastic and other non-metallic products",null,":",null,":",null,":",null,":",null,":",null,":",null,":",null,":",null,":",null,":",null,":",null,":"]
["S11_S12","C24","EPS_P2",null,null,null,24,"Manufacture of basic metals",null,":",null,":",null,":",null,":",null,":",null,":",null,":",null,":",null,":",null,":",null,":",null,":"]
["S11_S12","C25-C30","EPS_P2",null,null,null,"25-30","Manufacture of fabricated metal products, including machinery and equipment",null,":",null,":",null,":",null,":",null,":",null,":",null,":",null,":",null,":",null,":",null,":",null,":"]
["S11_S12","C13-C16_C18_C31-C33","EPS_P2",null,null,null,"13-16, 18, 31-33","Other manufacturing activities",null,":",null,":",null,":",null,":",null,":",null,":",null,":",null,":",null,":",null,":",null,":",null,":"]
["S11_S12","C10-C12","EPS_P2_EPS",null,"( P2_EPS.3bA ) Intermediate consumption of EP services for ancillary production of EP services ",null,"10-12'","Manufacture of food, beverages and tobacco products",null,":",null,":",null,":",null,":",null,":",null,":",null,":",null,":",null,":",null,":",null,":",null,":"]
["S11_S12","C17","EPS_P2_EPS",null,"(P2_EPS.3x: please consider the explanatory notes - click here)",null,17,"Manufacture of paper and paper products",null,":",null,":",null,":",null,":",null,":",null,":",null,":",null,":",null,":",null,":",null,":",null,":"]
["S11_S12","C19_C20","EPS_P2_EPS",null,null,null,"19-20","Manufacture of coke, chemicals and refined petroleum and chemical products",null,":",null,":",null,":",null,":",null,":",null,":",null,":",null,":",null,":",null,":",null,":",null,":"]
["S11_S12","C21-C23","EPS_P2_EPS",null,null,null,"21-23","Manufacture of pharmaceuticals, rubber, plastic and other non-metallic products",null,":",null,":",null,":",null,":",null,":",null,":",null,":",null,":",null,":",null,":",null,":",null,":"]
["S11_S12","C24","EPS_P2_EPS",null,null,null,24,"Manufacture of basic metals",null,":",null,":",null,":",null,":",null,":",null,":",null,":",null,":",null,":",null,":",null,":",null,":"]
["S11_S12","C25-C30","EPS_P2_EPS",null,null,null,"25-30","Manufacture of fabricated metal products, including machinery and equipment",null,":",null,":",null,":",null,":",null,":",null,":",null,":",null,":",null,":",null,":",null,":",null,":"]
["S11_S12","C13-C16_C18_C31-C33","EPS_P2_EPS",null,null,null,"13-16, 18, 31-33","Other manufacturing activities",null,":",null,":",null,":",null,":",null,":",null,":",null,":",null,":",null,":",null,":",null,":",null,":"]
["S11_S12","C10-C12","EPS_P2_NEPS",null,"( P2_NEPS.3bA ) Intermediate consumption (excluding EP services)",null,"10-12'","Manufacture of food, beverages and tobacco products",null,":",null,":",null,":",null,":",null,":",null,":",null,":",null,":",null,":",null,":",null,":",null,":"]
["S11_S12","C17","EPS_P2_NEPS",null,null,null,17,"Manufacture of paper and paper products",null,":",null,":",null,":",null,":",null,":",null,":",null,":",null,":",null,":",null,":",null,":",null,":"]
["S11_S12","C19_C20","EPS_P2_NEPS",null,null,null,"19-20","Manufacture of coke, chemicals and refined petroleum and chemical products",null,":",null,":",null,":",null,":",null,":",null,":",null,":",null,":",null,":",null,":",null,":",null,":"]
["S11_S12","C21-C23","EPS_P2_NEPS",null,null,null,"21-23","Manufacture of pharmaceuticals, rubber, plastic and other non-metallic products",null,":",null,":",null,":",null,":",null,":",null,":",null,":",null,":",null,":",null,":",null,":",null,":"]
["S11_S12","C24","EPS_P2_NEPS",null,null,null,24,"Manufacture of basic metals",null,":",null,":",null,":",null,":",null,":",null,":",null,":",null,":",null,":",null,":",null,":",null,":"]
["S11_S12","C25-C30","EPS_P2_NEPS",null,null,null,"25-30","Manufacture of fabricated metal products, including machinery and equipment",null,":",null,":",null,":",null,":",null,":",null,":",null,":",null,":",null,":",null,":",null,":",null,":"]
["S11_S12","C13-C16_C18_C31-C33","EPS_P2_NEPS",null,null,null,"13-16, 18, 31-33","Other manufacturing activities",null,":",null,":",null,":",null,":",null,":",null,":",null,":",null,":",null,":",null,":",null,":",null,":"]
["S11_S12","C10-C12","EPS_D1",null,"( D1.3bA ) Compensation of employees",null,"10-12'","Manufacture of food, beverages and tobacco products",null,":",null,":",null,":",null,":",null,":",null,":",null,":",null,":",null,":",null,":",null,":",null,":"]
["S11_S12","C17","EPS_D1",null,null,null,17,"Manufacture of paper and paper products",null,":",null,":",null,":",null,":",null,":",null,":",null,":",null,":",null,":",null,":",null,":",null,":"]
["S11_S12","C19_C20","EPS_D1",null,null,null,"19-20","Manufacture of coke, chemicals and refined petroleum and chemical products",null,":",null,":",null,":",null,":",null,":",null,":",null,":",null,":",null,":",null,":",null,":",null,":"]
["S11_S12","C21-C23","EPS_D1",null,null,null,"21-23","Manufacture of pharmaceuticals, rubber, plastic and other non-metallic products",null,":",null,":",null,":",null,":",null,":",null,":",null,":",null,":",null,":",null,":",null,":",null,":"]
["S11_S12","C24","EPS_D1",null,null,null,24,"Manufacture of basic metals",null,":",null,":",null,":",null,":",null,":",null,":",null,":",null,":",null,":",null,":",null,":",null,":"]
["S11_S12","C25-C30","EPS_D1",null,null,null,"25-30","Manufacture of fabricated metal products, including machinery and equipment",null,":",null,":",null,":",null,":",null,":",null,":",null,":",null,":",null,":",null,":",null,":",null,":"]
["S11_S12","C13-C16_C18_C31-C33","EPS_D1",null,null,null,"13-16, 18, 31-33","Other manufacturing activities",null,":",null,":",null,":",null,":",null,":",null,":",null,":",null,":",null,":",null,":",null,":",null,":"]
["S11_S12","C10-C12","EPS_P1_ANC",null,"( P1_ANC.3bA ) Ancillary EP output (simplified valuation legally acceptable) ((P2_NEPS.3bA) + (D1.3bA))",null,"10-12'","Manufacture of food, beverages and tobacco products",null,":",null,":",null,":",null,":",null,":",null,":",null,":",null,":",null,":",null,":",null,":",null,":"]
["S11_S12","C17","EPS_P1_ANC",null,null,null,17,"Manufacture of paper and paper products",null,":",null,":",null,":",null,":",null,":",null,":",null,":",null,":",null,":",null,":",null,":",null,":"]
["S11_S12","C19_C20","EPS_P1_ANC",null,null,null,"19-20","Manufacture of coke, chemicals and refined petroleum and chemical products",null,":",null,":",null,":",null,":",null,":",null,":",null,":",null,":",null,":",null,":",null,":",null,":"]
["S11_S12","C21-C23","EPS_P1_ANC",null,null,null,"21-23","Manufacture of pharmaceuticals, rubber, plastic and other non-metallic products",null,":",null,":",null,":",null,":",null,":",null,":",null,":",null,":",null,":",null,":",null,":",null,":"]
["S11_S12","C24","EPS_P1_ANC",null,null,null,24,"Manufacture of basic metals",null,":",null,":",null,":",null,":",null,":",null,":",null,":",null,":",null,":",null,":",null,":",null,":"]
["S11_S12","C25-C30","EPS_P1_ANC",null,null,null,"25-30","Manufacture of fabricated metal products, including machinery and equipment",null,":",null,":",null,":",null,":",null,":",null,":",null,":",null,":",null,":",null,":",null,":",null,":"]
["S11_S12","C13-C16_C18_C31-C33","EPS_P1_ANC",null,null,null,"13-16, 18, 31-33","Other manufacturing activities",null,":",null,":",null,":",null,":",null,":",null,":",null,":",null,":",null,":",null,":",null,":",null,":"]
["S11_S12","C10-C12","EPS_D29X39",null,"( D29-D39.3bA ) Other taxes less subsidies on production",null,"10-12'","Manufacture of food, beverages and tobacco products",null,":",null,":",null,":",null,":",null,":",null,":",null,":",null,":",null,":",null,":",null,":",null,":"]
["S11_S12","C17","EPS_D29X39",null,null,null,17,"Manufacture of paper and paper products",null,":",null,":",null,":",null,":",null,":",null,":",null,":",null,":",null,":",null,":",null,":",null,":"]
["S11_S12","C19_C20","EPS_D29X39",null,null,null,"19-20","Manufacture of coke, chemicals and refined petroleum and chemical products",null,":",null,":",null,":",null,":",null,":",null,":",null,":",null,":",null,":",null,":",null,":",null,":"]
["S11_S12","C21-C23","EPS_D29X39",null,null,null,"21-23","Manufacture of pharmaceuticals, rubber, plastic and other non-metallic products",null,":",null,":",null,":",null,":",null,":",null,":",null,":",null,":",null,":",null,":",null,":",null,":"]
["S11_S12","C24","EPS_D29X39",null,null,null,24,"Manufacture of basic metals",null,":",null,":",null,":",null,":",null,":",null,":",null,":",null,":",null,":",null,":",null,":",null,":"]
["S11_S12","C25-C30","EPS_D29X39",null,null,null,"25-30","Manufacture of fabricated metal products, including machinery and equipment",null,":",null,":",null,":",null,":",null,":",null,":",null,":",null,":",null,":",null,":",null,":",null,":"]
["S11_S12","C13-C16_C18_C31-C33","EPS_D29X39",null,null,null,"13-16, 18, 31-33","Other manufacturing activities",null,":",null,":",null,":",null,":",null,":",null,":",null,":",null,":",null,":",null,":",null,":",null,":"]
["S11_S12","C10-C12","EPS_P51C",null,"( P51C.3bA ) Consumption of fixed capital",null,"10-12'","Manufacture of food, beverages and tobacco products",null,":",null,":",null,":",null,":",null,":",null,":",null,":",null,":",null,":",null,":",null,":",null,":"]
["S11_S12","C17","EPS_P51C",null,null,null,17,"Manufacture of paper and paper products",null,":",null,":",null,":",null,":",null,":",null,":",null,":",null,":",null,":",null,":",null,":",null,":"]
["S11_S12","C19_C20","EPS_P51C",null,null,null,"19-20","Manufacture of coke, chemicals and refined petroleum and chemical products",null,":",null,":",null,":",null,":",null,":",null,":",null,":",null,":",null,":",null,":",null,":",null,{"$f":"IF(COUNT(J72,N72,P72,R72,T72,V72,AD72)=7,SUM(J72,N72,P72,R72,T72,V72,AD72),\":\")","v":":"}]
["S11_S12","C21-C23","EPS_P51C",null,null,null,"21-23","Manufacture of pharmaceuticals, rubber, plastic and other non-metallic products",null,":",null,":",null,":",null,":",null,":",null,":",null,":",null,":",null,":",null,":",null,":",null,":"]
["S11_S12","C24","EPS_P51C",null,null,null,24,"Manufacture of basic metals",null,":",null,":",null,":",null,":",null,":",null,":",null,":",null,":",null,":",null,":",null,":",null,":"]
["S11_S12","C25-C30","EPS_P51C",null,null,null,"25-30","Manufacture of fabricated metal products, including machinery and equipment",null,":",null,":",null,":",null,":",null,":",null,":",null,":",null,":",null,":",null,":",null,":",null,":"]
["S11_S12","C13-C16_C18_C31-C33","EPS_P51C",null,null,null,"13-16, 18, 31-33","Other manufacturing activities",null,":",null,":",null,":",null,":",null,":",null,":",null,":",null,":",null,":",null,":",null,":",null,":"]
["S11_S12","C10-C12","EPS_P1_ANCESA",null,"( P1_ANC_ESA.3bA ) Ancillary EP output (ESA - compatible valuation) ((P2_NEPS.3bA) + (D1.3bA) +(P51C.3bA) + (D29-D39.3bA))",null,"10-12'","Manufacture of food, beverages and tobacco products",null,":",null,":",null,":",null,":",null,":",null,":",null,":",null,":",null,":",null,":",null,":",null,":"]
["S11_S12","C17","EPS_P1_ANCESA",null,null,null,17,"Manufacture of paper and paper products",null,":",null,":",null,":",null,":",null,":",null,":",null,":",null,":",null,":",null,":",null,":",null,":"]
["S11_S12","C19_C20","EPS_P1_ANCESA",null,null,null,"19-20","Manufacture of coke, chemicals and refined petroleum and chemical products",null,":",null,":",null,":",null,":",null,":",null,":",null,":",null,":",null,":",null,":",null,":",null,":"]
["S11_S12","C21-C23","EPS_P1_ANCESA",null,null,null,"21-23","Manufacture of pharmaceuticals, rubber, plastic and other non-metallic products",null,":",null,":",null,":",null,":",null,":",null,":",null,":",null,":",null,":",null,":",null,":",null,":"]
["S11_S12","C24","EPS_P1_ANCESA",null,null,null,24,"Manufacture of basic metals",null,":",null,":",null,":",null,":",null,":",null,":",null,":",null,":",null,":",null,":",null,":",null,":"]
["S11_S12","C25-C30","EPS_P1_ANCESA",null,null,null,"25-30","Manufacture of fabricated metal products, including machinery and equipment",null,":",null,":",null,":",null,":",null,":",null,":",null,":",null,":",null,":",null,":",null,":",null,":"]
["S11_S12","C13-C16_C18_C31-C33","EPS_P1_ANCESA",null,null,null,"13-16, 18, 31-33","Other manufacturing activities",null,":",null,":",null,":",null,":",null,":",null,":",null,":",null,":",null,":",null,":",null,":",null,":"]
["S11_S12","C10-C12","EPS_REC_BYPR",null,"( RNO.3bA ) Related non-EP output",null,"10-12'","Manufacture of food, beverages and tobacco products",null,":",null,":",null,":",null,":",null,":",null,":",null,":",null,":",null,":",null,":",null,":",null,":"]
["S11_S12","C17","EPS_REC_BYPR",null,null,null,17,"Manufacture of paper and paper products",null,":",null,":",null,":",null,":",null,":",null,":",null,":",null,":",null,":",null,":",null,":",null,":"]
["S11_S12","C19_C20","EPS_REC_BYPR",null,null,null,"19-20","Manufacture of coke, chemicals and refined petroleum and chemical products",null,":",null,":",null,":",null,":",null,":",null,":",null,":",null,":",null,":",null,":",null,":",null,":"]
["S11_S12","C21-C23","EPS_REC_BYPR",null,null,null,"21-23","Manufacture of pharmaceuticals, rubber, plastic and other non-metallic products",null,":",null,":",null,":",null,":",null,":",null,":",null,":",null,":",null,":",null,":",null,":",null,":"]
["S11_S12","C24","EPS_REC_BYPR",null,null,null,24,"Manufacture of basic metals",null,":",null,":",null,":",null,":",null,":",null,":",null,":",null,":",null,":",null,":",null,":",null,":"]
["S11_S12","C25-C30","EPS_REC_BYPR",null,null,null,"25-30","Manufacture of fabricated metal products, including machinery and equipment",null,":",null,":",null,":",null,":",null,":",null,":",null,":",null,":",null,":",null,":",null,":",null,":"]
["S11_S12","C13-C16_C18_C31-C33","EPS_REC_BYPR",null,null,null,"13-16, 18, 31-33","Other manufacturing activities",null,":",null,":",null,":",null,":",null,":",null,":",null,":",null,":",null,":",null,":",null,":",null,":"]
["S11_S12","C10-C12","TOT_P2_EPS","Transactions as users of EP services (ancillary production of EP services and other production)","( P2_EPS_EXT.3bA ) Total intermediate consumption of EP services (for production of EP services and for other production)",null,"10-12'","Manufacture of food, beverages and tobacco products",null,":",null,":",null,":",null,":",null,":",null,":",null,":",null,":",null,":",null,":",null,":",null,":"]
["S11_S12","C17","TOT_P2_EPS",null,"(P2_EPS_EXT.3x: please consider the explanatory notes - click here)",null,17,"Manufacture of paper and paper products",null,":",null,":",null,":",null,":",null,":",null,":",null,":",null,":",null,":",null,":",null,":",null,":"]
["S11_S12","C19_C20","TOT_P2_EPS",null,null,null,"19-20","Manufacture of coke, chemicals and refined petroleum and chemical products",null,":",null,":",null,":",null,":",null,":",null,":",null,":",null,":",null,":",null,":",null,":",null,":"]
["S11_S12","C21-C23","TOT_P2_EPS",null,null,null,"21-23","Manufacture of pharmaceuticals, rubber, plastic and other non-metallic products",null,":",null,":",null,":",null,":",null,":",null,":",null,":",null,":",null,":",null,":",null,":",null,":"]
["S11_S12","C24","TOT_P2_EPS",null,null,null,24,"Manufacture of basic metals",null,":",null,":",null,":",null,":",null,":",null,":",null,":",null,":",null,":",null,":",null,":",null,":"]
["S11_S12","C25-C30","TOT_P2_EPS",null,null,null,"25-30","Manufacture of fabricated metal products, including machinery and equipment",null,":",null,":",null,":",null,":",null,":",null,":",null,":",null,":",null,":",null,":",null,":",null,":"]
["S11_S12","C13-C16_C18_C31-C33","TOT_P2_EPS",null,null,null,"13-16, 18, 31-33","Other manufacturing activities",null,":",null,":",null,":",null,":",null,":",null,":",null,":",null,":",null,":",null,":",null,":",null,":"]
["S11_S12","C10-C12","EPS_EMP","Transactions of producers of ancillary EP services","( EMP.3bA ) Employment (full time equivalent)",null,"10-12'","Manufacture of food, beverages and tobacco products",null,":",null,":",null,":",null,":",null,":",null,":",null,":",null,":",null,":",null,":",null,":",null,":"]
["S11_S12","C17","EPS_EMP",null,null,null,17,"Manufacture of paper and paper products",null,":",null,":",null,":",null,":",null,":",null,":",null,":",null,":",null,":",null,":",null,":",null,":"]
["S11_S12","C19_C20","EPS_EMP",null,null,null,"19-20","Manufacture of coke, chemicals and refined petroleum and chemical products",null,":",null,":",null,":",null,":",null,":",null,":",null,":",null,":",null,":",null,":",null,":",null,":"]
["S11_S12","C21-C23","EPS_EMP",null,null,null,"21-23","Manufacture of pharmaceuticals, rubber, plastic and other non-metallic products",null,":",null,":",null,":",null,":",null,":",null,":",null,":",null,":",null,":",null,":",null,":",null,":"]
["S11_S12","C24","EPS_EMP",null,null,null,24,"Manufacture of basic metals",null,":",null,":",null,":",null,":",null,":",null,":",null,":",null,":",null,":",null,":",null,":",null,":"]
["S11_S12","C25-C30","EPS_EMP",null,null,null,"25-30","Manufacture of fabricated metal products, including machinery and equipment",null,":",null,":",null,":",null,":",null,":",null,":",null,":",null,":",null,":",null,":",null,":",null,":"]
["S11_S12","C13-C16_C18_C31-C33","EPS_EMP",null,null,null,"13-16, 18, 31-33","Other manufacturing activities",null,":",null,":",null,":",null,":",null,":",null,":",null,":",null,":",null,":",null,":",null,":",null,{"$f":"IF(COUNT(J104,N104,P104,R104,T104,V104,AD104)=7,SUM(J104,N104,P104,R104,T104,V104,AD104),\":\")","v":":"}]

{"sheet":"3b_Add_2016","index":18,"n_rows":104,"n_cols":32,"rows_kept":104,"cut":false,"hidden":false,"merged":[[102,7,102,8],[103,7,103,8],[94,7,94,8],[95,7,95,8],[96,7,96,8],[97,3,103,3],[97,4,97,5],[97,7,97,8],[98,7,98,8],[99,7,99,8],[100,7,100,8],[101,7,101,8],[86,7,86,8],[87,7,87,8],[88,7,88,8],[89,7,89,8],[90,3,96,3],[90,4,90,5],[90,7,90,8],[91,7,91,8],[92,7,92,8],[93,7,93,8],[6,3,89,3],[6,4,6,5],[6,7,6,8],[7,7,7,8],[8,7,8,8],[9,7,9,8],[10,7,10,8],[11,7,11,8],[35,4,35,5],[91,4,91,5],[81,7,81,8],[82,7,82,8],[83,4,83,5],[83,7,83,8],[84,7,84,8],[85,7,85,8],[76,4,76,5],[76,7,76,8],[77,7,77,8],[78,7,78,8],[79,7,79,8],[80,7,80,8],[70,7,70,8],[71,7,71,8],[72,7,72,8],[73,7,73,8],[74,7,74,8],[75,7,75,8],[65,7,65,8],[66,7,66,8],[67,7,67,8],[68,7,68,8],[69,4,69,5],[69,7,69,8],[60,7,60,8],[61,7,61,8],[62,4,62,5],[62,7,62,8],[63,7,63,8],[64,7,64,8],[55,4,55,5],[55,7,55,8],[56,7,56,8],[57,7,57,8],[58,7,58,8],[59,7,59,8],[49,7,49,8],[50,7,50,8],[51,7,51,8],[52,7,52,8],[53,7,53,8],[54,7,54,8],[44,7,44,8],[45,7,45,8],[46,7,46,8],[47,7,47,8],[48,4,48,5],[48,7,48,8],[39,7,39,8],[40,7,40,8],[41,4,41,5],[41,7,41,8],[42,7,42,8],[43,7,43,8],[34,4,34,5],[34,7,34,8],[35,7,35,8],[36,7,36,8],[37,7,37,8],[38,7,38,8],[29,7,29,8],[30,7,30,8],[31,7,31,8],[32,7,32,8],[33,7,33,8],[22,7,22,8],[23,7,23,8],[24,7,24,8],[25,7,25,8],[26,7,26,8],[28,7,28,8],[27,4,27,5],[27,7,27,8],[17,7,17,8],[18,7,18,8],[19,7,19,8],[20,4,20,5],[20,7,20,8],[21,7,21,8],[12,7,12,8],[13,4,13,5],[13,7,13,8],[14,7,14,8],[15,7,15,8],[16,7,16,8],[0,4,0,8],[0,9,0,16],[1,4,1,8],[1,9,1,32],[2,9,2,32],[3,9,4,10],[3,11,4,12],[3,13,4,14],[3,15,4,16],[3,17,4,18],[3,31,4,32],[4,4,4,5],[3,21,4,22],[3,23,4,24],[3,25,4,26],[3,27,4,28],[3,29,4,30],[3,19,4,20]]}
[null,null,null,null,{"$f":"Cover!$B$21","v":"QUESTIONNAIRE ON ENVIRONMENTAL PROTECTION EXPENDITURE ACCOUNTS"},null,null,null,null,"Table 3b Add.: Detailed Manufacturing Industries"]
[null,null,null,null,{"$f":"E1","v":"QUESTIONNAIRE ON ENVIRONMENTAL PROTECTION EXPENDITURE ACCOUNTS"},null,null,null,null,{"$f":"J1 & \" - \" & I5","v":"Table 3b Add.: Detailed Manufacturing Industries - 2016"}]
[null,null,null,null,null,null,null,null,null,"Mandatory and voluntary variables and environmental domains - please fill in as much as possible"]
[null,null,null,null,"Country/Unit",{"$f":"IFERROR(Cover!C16,\"\")","v":""},{"$f":"\"\"&Cover!B16","v":""},null,{"$f":"Cover!B17","v":"Million units of national currency"},"CEPA 1",null,"of which CEPA 1.1.2 and 1.2.2 Climate change",null,"CEPA 2",null,"CEPA 3",null,"CEPA 4",null,"CEPA 5",null,"CEPA 6",null,"CEPA 7",null,"CEPA 8",null,"CEPA 9",null,"Sum of CEPA 7+8+9",null,"TOTAL"]
[null,null,null,null,"Expenditure",null,null,"YEAR",2016,null,null,null,null,null,null,null,null,null,null,null,null,null,null,null,null,null,null,null,null,null,null,"Landscape"]
[null,null,null,null,null,null,null,null,null,"CEPA1",null,"CEPA112_122",null,"CEPA2",null,"CEPA3",null,"CEPA4",null,"CEPA5",null,"CEPA6",null,"CEPA7",null,"CEPA8",null,"CEPA9",null,"CEPA7-9",null,"TOT_CEPA"]
["S11_S12","C10-C12","EPS_P51G_NP","Transactions of producers of ancillary EP services","( P51G_NP.3bA ) Gross fixed capital formation and acquisition less disposals of non-financial, non-produced assets",null,"10-12","Manufacture of food, beverages and tobacco products",null,":",null,":",null,":",null,":",null,":",null,":",null,":",null,":",null,":",null,":",null,":",null,{"$f":"IF(COUNT(J7,N7,P7,R7,T7,V7,AD7)=7,SUM(J7,N7,P7,R7,T7,V7,AD7),\":\")","v":":"}]
["S11_S12","C17","EPS_P51G_NP",null,null,null,17,"Manufacture of paper and paper products",null,":",null,":",null,":",null,":",null,":",null,":",null,":",null,":",null,":",null,":",null,":",null,{"$f":"IF(COUNT(J8,N8,P8,R8,T8,V8,AD8)=7,SUM(J8,N8,P8,R8,T8,V8,AD8),\":\")","v":":"}]
["S11_S12","C19_C20","EPS_P51G_NP",null,null,null,"19-20","Manufacture of coke, chemicals and refined petroleum and chemical products",null,":",null,":",null,":",null,":",null,":",null,":",null,":",null,":",null,":",null,":",null,":",null,":"]
["S11_S12","C21-C23","EPS_P51G_NP",null,null,null,"21-23","Manufacture of pharmaceuticals, rubber, plastic and other non-metallic products",null,":",null,":",null,":",null,":",null,":",null,":",null,":",null,":",null,":",null,":",null,":",null,":"]
["S11_S12","C24","EPS_P51G_NP",null,null,null,24,"Manufacture of basic metals",null,":",null,":",null,":",null,":",null,":",null,":",null,":",null,":",null,":",null,":",null,":",null,":"]
["S11_S12","C25-C30","EPS_P51G_NP",null,null,null,"25-30","Manufacture of fabricated metal products, including machinery and equipment",null,":",null,":",null,":",null,":",null,":",null,":",null,":",null,":",null,":",null,":",null,":",null,":"]
["S11_S12","C13-C16_C18_C31-C33","EPS_P51G_NP",null,null,null,"13-16, 18, 31-33","Other manufacturing activities",null,":",null,":",null,":",null,":",null,":",null,":",null,":",null,":",null,":",null,":",null,":",null,":"]
["S11_S12","C10-C12","EPS_INV_PT",null,"( INV_EOP.3bA ) GFCF on specific EP fixed assets (end-of-pipe technologies)",null,"10-12'","Manufacture of food, beverages and tobacco products",null,":",null,":",null,":",null,":",null,":",null,":",null,":",null,":",null,":",null,":",null,":",null,":"]
["S11_S12","C17","EPS_INV_PT",null,null,null,17,"Manufacture of paper and paper products",null,":",null,":",null,":",null,":",null,":",null,":",null,":",null,":",null,":",null,":",null,":",null,":"]
["S11_S12","C19_C20","EPS_INV_PT",null,null,null,"19-20","Manufacture of coke, chemicals and refined petroleum and chemical products",null,":",null,":",null,":",null,":",null,":",null,":",null,":",null,":",null,":",null,":",null,":",null,":"]
["S11_S12","C21-C23","EPS_INV_PT",null,null,null,"21-23","Manufacture of pharmaceuticals, rubber, plastic and other non-metallic products",null,":",null,":",null,":",null,":",null,":",null,":",null,":",null,":",null,":",null,":",null,":",null,":"]
["S11_S12","C24","EPS_INV_PT",null,null,null,24,"Manufacture of basic metals",null,":",null,":",null,":",null,":",null,":",null,":",null,":",null,":",null,":",null,":",null,":",null,":"]
["S11_S12","C25-C30","EPS_INV_PT",null,null,null,"25-30","Manufacture of fabricated metal products, including machinery and equipment",null,":",null,":",null,":",null,":",null,":",null,":",null,":",null,":",null,":",null,":",null,":",null,":"]
["S11_S12","C13-C16_C18_C31-C33","EPS_INV_PT",null,null,null,"13-16, 18, 31-33","Other manufacturing activities",null,":",null,":",null,":",null,":",null,":",null,":",null,":",null,":",null,":",null,":",null,":",null,":"]
["S11_S12","C10-C12","EPS_INV_PP",null,"( INV_IT.3bA ) GFCF on cleaner EP fixed assets (integrated technologies)",null,"10-12'","Manufacture of food, beverages and tobacco products",null,":",null,":",null,":",null,":",null,":",null,":",null,":",null,":",null,":",null,":",null,":",null,":"]
["S11_S12","C17","EPS_INV_PP",null,null,null,17,"Manufacture of paper and paper products",null,":",null,":",null,":",null,":",null,":",null,":",null,":",null,":",null,":",null,":",null,":",null,":"]
["S11_S12","C19_C20","EPS_INV_PP",null,null,null,"19-20","Manufacture of coke, chemicals and refined petroleum and chemical products",null,":",null,":",null,":",null,":",null,":",null,":",null,":",null,":",null,":",null,":",null,":",null,":"]
["S11_S12","C21-C23","EPS_INV_PP",null,null,null,"21-23","Manufacture of pharmaceuticals, rubber, plastic and other non-metallic products",null,":",null,":",null,":",null,":",null,":",null,":",null,":",null,":",null,":",null,":",null,":",null,":"]
["S11_S12","C24","EPS_INV_PP",null,null,null,24,"Manufacture of basic metals",null,":",null,":",null,":",null,":",null,":",null,":",null,":",null,":",null,":",null,":",null,":",null,":"]
["S11_S12","C25-C30","EPS_INV_PP",null,null,null,"25-30","Manufacture of fabricated metal products, including machinery and equipment",null,":",null,":",null,":",null,":",null,":",null,":",null,":",null,":",null,":",null,":",null,":",null,":"]
["S11_S12","C13-C16_C18_C31-C33","EPS_INV_PP",null,null,null,"13-16, 18, 31-33","Other manufacturing activities",null,":",null,":",null,":",null,":",null,":",null,":",null,":",null,":",null,":",null,":",null,":",null,":"]
["S11_S12","C10-C12","EPS_P2",null,"( P2.3bA ) Total intermediate consumption",null,"10-12'","Manufacture of food, beverages and tobacco products",null,":",null,":",null,":",null,":",null,":",null,":",null,":",null,":",null,":",null,":",null,":",null,":"]
["S11_S12","C17","EPS_P2",null,null,null,17,"Manufacture of paper and paper products",null,":",null,":",null,":",null,":",null,":",null,":",null,":",null,":",null,":",null,":",null,":",null,":"]
["S11_S12","C19_C20","EPS_P2",null,null,null,"19-20","Manufacture of coke, chemicals and refined petroleum and chemical products",null,":",null,":",null,":",null,":",null,":",null,":",null,":",null,":",null,":",null,":",null,":",null,":"]
["S11_S12","C21-C23","EPS_P2",null,null,null,"21-23","Manufacture of pharmaceuticals, rubber, plastic and other non-metallic products",null,":",null,":",null,":",null,":",null,":",null,":",null,":",null,":",null,":",null,":",null,":",null,":"]
["S11_S12","C24","EPS_P2",null,null,null,24,"Manufacture of basic metals",null,":",null,":",null,":",null,":",null,":",null,":",null,":",null,":",null,":",null,":",null,":",null,":"]
["S11_S12","C25-C30","EPS_P2",null,null,null,"25-30","Manufacture of fabricated metal products, including machinery and equipment",null,":",null,":",null,":",null,":",null,":",null,":",null,":",null,":",null,":",null,":",null,":",null,":"]
["S11_S12","C13-C16_C18_C31-C33","EPS_P2",null,null,null,"13-16, 18, 31-33","Other manufacturing activities",null,":",null,":",null,":",null,":",null,":",null,":",null,":",null,":",null,":",null,":",null,":",null,":"]
["S11_S12","C10-C12","EPS_P2_EPS",null,"( P2_EPS.3bA )  Intermediate consumption of EP services for ancillary production of EP services ",null,"10-12'","Manufacture of food, beverages and tobacco products",null,":",null,":",null,":",null,":",null,":",null,":",null,":",null,":",null,":",null,":",null,":",null,":"]
["S11_S12","C17","EPS_P2_EPS",null,"(P2_EPS.3x: please consider the explanatory notes - click here)",null,17,"Manufacture of paper and paper products",null,":",null,":",null,":",null,":",null,":",null,":",null,":",null,":",null,":",null,":",null,":",null,":"]
["S11_S12","C19_C20","EPS_P2_EPS",null,null,null,"19-20","Manufacture of coke, chemicals and refined petroleum and chemical products",null,":",null,":",null,":",null,":",null,":",null,":",null,":",null,":",null,":",null,":",null,":",null,":"]
["S11_S12","C21-C23","EPS_P2_EPS",null,null,null,"21-23","Manufacture of pharmaceuticals, rubber, plastic and other non-metallic products",null,":",null,":",null,":",null,":",null,":",null,":",null,":",null,":",null,":",null,":",null,":",null,":"]
["S11_S12","C24","EPS_P2_EPS",null,null,null,24,"Manufacture of basic metals",null,":",null,":",null,":",null,":",null,":",null,":",null,":",null,":",null,":",null,":",null,":",null,":"]
["S11_S12","C25-C30","EPS_P2_EPS",null,null,null,"25-30","Manufacture of fabricated metal products, including machinery and equipment",null,":",null,":",null,":",null,":",null,":",null,":",null,":",null,":",null,":",null,":",null,":",null,":"]
["S11_S12","C13-C16_C18_C31-C33","EPS_P2_EPS",null,null,null,"13-16, 18, 31-33","Other manufacturing activities",null,":",null,":",null,":",null,":",null,":",null,":",null,":",null,":",null,":",null,":",null,":",null,":"]
["S11_S12","C10-C12","EPS_P2_NEPS",null,"( P2_NEPS.3bA ) Intermediate consumption (excluding EP services)",null,"10-12'","Manufacture of food, beverages and tobacco products",null,":",null,":",null,":",null,":",null,":",null,":",null,":",null,":",null,":",null,":",null,":",null,":"]
["S11_S12","C17","EPS_P2_NEPS",null,null,null,17,"Manufacture of paper and paper products",null,":",null,":",null,":",null,":",null,":",null,":",null,":",null,":",null,":",null,":",null,":",null,":"]
["S11_S12","C19_C20","EPS_P2_NEPS",null,null,null,"19-20","Manufacture of coke, chemicals and refined petroleum and chemical products",null,":",null,":",null,":",null,":",null,":",null,":",null,":",null,":",null,":",null,":",null,":",null,":"]
["S11_S12","C21-C23","EPS_P2_NEPS",null,null,null,"21-23","Manufacture of pharmaceuticals, rubber, plastic and other non-metallic products",null,":",null,":",null,":",null,":",null,":",null,":",null,":",null,":",null,":",null,":",null,":",null,":"]
["S11_S12","C24","EPS_P2_NEPS",null,null,null,24,"Manufacture of basic metals",null,":",null,":",null,":",null,":",null,":",null,":",null,":",null,":",null,":",null,":",null,":",null,":"]
["S11_S12","C25-C30","EPS_P2_NEPS",null,null,null,"25-30","Manufacture of fabricated metal products, including machinery and equipment",null,":",null,":",null,":",null,":",null,":",null,":",null,":",null,":",null,":",null,":",null,":",null,":"]
["S11_S12","C13-C16_C18_C31-C33","EPS_P2_NEPS",null,null,null,"13-16, 18, 31-33","Other manufacturing activities",null,":",null,":",null,":",null,":",null,":",null,":",null,":",null,":",null,":",null,":",null,":",null,":"]
["S11_S12","C10-C12","EPS_D1",null,"( D1.3bA ) Compensation of employees",null,"10-12'","Manufacture of food, beverages and tobacco products",null,":",null,":",null,":",null,":",null,":",null,":",null,":",null,":",null,":",null,":",null,":",null,":"]
["S11_S12","C17","EPS_D1",null,null,null,17,"Manufacture of paper and paper products",null,":",null,":",null,":",null,":",null,":",null,":",null,":",null,":",null,":",null,":",null,":",null,":"]
["S11_S12","C19_C20","EPS_D1",null,null,null,"19-20","Manufacture of coke, chemicals and refined petroleum and chemical products",null,":",null,":",null,":",null,":",null,":",null,":",null,":",null,":",null,":",null,":",null,":",null,":"]
["S11_S12","C21-C23","EPS_D1",null,null,null,"21-23","Manufacture of pharmaceuticals, rubber, plastic and other non-metallic products",null,":",null,":",null,":",null,":",null,":",null,":",null,":",null,":",null,":",null,":",null,":",null,":"]
["S11_S12","C24","EPS_D1",null,null,null,24,"Manufacture of basic metals",null,":",null,":",null,":",null,":",null,":",null,":",null,":",null,":",null,":",null,":",null,":",null,":"]
["S11_S12","C25-C30","EPS_D1",null,null,null,"25-30","Manufacture of fabricated metal products, including machinery and equipment",null,":",null,":",null,":",null,":",null,":",null,":",null,":",null,":",null,":",null,":",null,":",null,":"]
["S11_S12","C13-C16_C18_C31-C33","EPS_D1",null,null,null,"13-16, 18, 31-33","Other manufacturing activities",null,":",null,":",null,":",null,":",null,":",null,":",null,":",null,":",null,":",null,":",null,":",null,":"]
["S11_S12","C10-C12","EPS_P1_ANC",null,"( P1_ANC.3bA ) Ancillary EP output (simplified valuation legally acceptable) ((P2_NEPS.3bA) + (D1.3bA))",null,"10-12'","Manufacture of food, beverages and tobacco products",null,":",null,":",null,":",null,":",null,":",null,":",null,":",null,":",null,":",null,":",null,":",null,":"]
["S11_S12","C17","EPS_P1_ANC",null,null,null,17,"Manufacture of paper and paper products",null,":",null,":",null,":",null,":",null,":",null,":",null,":",null,":",null,":",null,":",null,":",null,":"]
["S11_S12","C19_C20","EPS_P1_ANC",null,null,null,"19-20","Manufacture of coke, chemicals and refined petroleum and chemical products",null,":",null,":",null,":",null,":",null,":",null,":",null,":",null,":",null,":",null,":",null,":",null,":"]
["S11_S12","C21-C23","EPS_P1_ANC",null,null,null,"21-23","Manufacture of pharmaceuticals, rubber, plastic and other non-metallic products",null,":",null,":",null,":",null,":",null,":",null,":",null,":",null,":",null,":",null,":",null,":",null,":"]
["S11_S12","C24","EPS_P1_ANC",null,null,null,24,"Manufacture of basic metals",null,":",null,":",null,":",null,":",null,":",null,":",null,":",null,":",null,":",null,":",null,":",null,":"]
["S11_S12","C25-C30","EPS_P1_ANC",null,null,null,"25-30","Manufacture of fabricated metal products, including machinery and equipment",null,":",null,":",null,":",null,":",null,":",null,":",null,":",null,":",null,":",null,":",null,":",null,":"]
["S11_S12","C13-C16_C18_C31-C33","EPS_P1_ANC",null,null,null,"13-16, 18, 31-33","Other manufacturing activities",null,":",null,":",null,":",null,":",null,":",null,":",null,":",null,":",null,":",null,":",null,":",null,":"]
["S11_S12","C10-C12","EPS_D29X39",null,"( D29-D39.3bA ) Other taxes less subsidies on production",null,"10-12'","Manufacture of food, beverages and tobacco products",null,":",null,":",null,":",null,":",null,":",null,":",null,":",null,":",null,":",null,":",null,":",null,":"]
["S11_S12","C17","EPS_D29X39",null,null,null,17,"Manufacture of paper and paper products",null,":",null,":",null,":",null,":",null,":",null,":",null,":",null,":",null,":",null,":",null,":",null,":"]
["S11_S12","C19_C20","EPS_D29X39",null,null,null,"19-20","Manufacture of coke, chemicals and refined petroleum and chemical products",null,":",null,":",null,":",null,":",null,":",null,":",null,":",null,":",null,":",null,":",null,":",null,":"]
["S11_S12","C21-C23","EPS_D29X39",null,null,null,"21-23","Manufacture of pharmaceuticals, rubber, plastic and other non-metallic products",null,":",null,":",null,":",null,":",null,":",null,":",null,":",null,":",null,":",null,":",null,":",null,":"]
["S11_S12","C24","EPS_D29X39",null,null,null,24,"Manufacture of basic metals",null,":",null,":",null,":",null,":",null,":",null,":",null,":",null,":",null,":",null,":",null,":",null,":"]
["S11_S12","C25-C30","EPS_D29X39",null,null,null,"25-30","Manufacture of fabricated metal products, including machinery and equipment",null,":",null,":",null,":",null,":",null,":",null,":",null,":",null,":",null,":",null,":",null,":",null,":"]
["S11_S12","C13-C16_C18_C31-C33","EPS_D29X39",null,null,null,"13-16, 18, 31-33","Other manufacturing activities",null,":",null,":",null,":",null,":",null,":",null,":",null,":",null,":",null,":",null,":",null,":",null,":"]
["S11_S12","C10-C12","EPS_P51C",null,"( P51C.3bA ) Consumption of fixed capital",null,"10-12'","Manufacture of food, beverages and tobacco products",null,":",null,":",null,":",null,":",null,":",null,":",null,":",null,":",null,":",null,":",null,":",null,":"]
["S11_S12","C17","EPS_P51C",null,null,null,17,"Manufacture of paper and paper products",null,":",null,":",null,":",null,":",null,":",null,":",null,":",null,":",null,":",null,":",null,":",null,":"]
["S11_S12","C19_C20","EPS_P51C",null,null,null,"19-20","Manufacture of coke, chemicals and refined petroleum and chemical products",null,":",null,":",null,":",null,":",null,":",null,":",null,":",null,":",null,":",null,":",null,":",null,{"$f":"IF(COUNT(J72,N72,P72,R72,T72,V72,AD72)=7,SUM(J72,N72,P72,R72,T72,V72,AD72),\":\")","v":":"}]
["S11_S12","C21-C23","EPS_P51C",null,null,null,"21-23","Manufacture of pharmaceuticals, rubber, plastic and other non-metallic products",null,":",null,":",null,":",null,":",null,":",null,":",null,":",null,":",null,":",null,":",null,":",null,":"]
["S11_S12","C24","EPS_P51C",null,null,null,24,"Manufacture of basic metals",null,":",null,":",null,":",null,":",null,":",null,":",null,":",null,":",null,":",null,":",null,":",null,":"]
["S11_S12","C25-C30","EPS_P51C",null,null,null,"25-30","Manufacture of fabricated metal products, including machinery and equipment",null,":",null,":",null,":",null,":",null,":",null,":",null,":",null,":",null,":",null,":",null,":",null,":"]
["S11_S12","C13-C16_C18_C31-C33","EPS_P51C",null,null,null,"13-16, 18, 31-33","Other manufacturing activities",null,":",null,":",null,":",null,":",null,":",null,":",null,":",null,":",null,":",null,":",null,":",null,":"]
["S11_S12","C10-C12","EPS_P1_ANCESA",null,"( P1_ANC_ESA.3bA ) Ancillary EP output (ESA - compatible valuation) ((P2_NEPS.3bA) + (D1.3bA) +(P51C.3bA) + (D29-D39.3bA))",null,"10-12'","Manufacture of food, beverages and tobacco products",null,":",null,":",null,":",null,":",null,":",null,":",null,":",null,":",null,":",null,":",null,":",null,":"]
["S11_S12","C17","EPS_P1_ANCESA",null,null,null,17,"Manufacture of paper and paper products",null,":",null,":",null,":",null,":",null,":",null,":",null,":",null,":",null,":",null,":",null,":",null,":"]
["S11_S12","C19_C20","EPS_P1_ANCESA",null,null,null,"19-20","Manufacture of coke, chemicals and refined petroleum and chemical products",null,":",null,":",null,":",null,":",null,":",null,":",null,":",null,":",null,":",null,":",null,":",null,":"]
["S11_S12","C21-C23","EPS_P1_ANCESA",null,null,null,"21-23","Manufacture of pharmaceuticals, rubber, plastic and other non-metallic products",null,":",null,":",null,":",null,":",null,":",null,":",null,":",null,":",null,":",null,":",null,":",null,":"]
["S11_S12","C24","EPS_P1_ANCESA",null,null,null,24,"Manufacture of basic metals",null,":",null,":",null,":",null,":",null,":",null,":",null,":",null,":",null,":",null,":",null,":",null,":"]
["S11_S12","C25-C30","EPS_P1_ANCESA",null,null,null,"25-30","Manufacture of fabricated metal products, including machinery and equipment",null,":",null,":",null,":",null,":",null,":",null,":",null,":",null,":",null,":",null,":",null,":",null,":"]
["S11_S12","C13-C16_C18_C31-C33","EPS_P1_ANCESA",null,null,null,"13-16, 18, 31-33","Other manufacturing activities",null,":",null,":",null,":",null,":",null,":",null,":",null,":",null,":",null,":",null,":",null,":",null,":"]
["S11_S12","C10-C12","EPS_REC_BYPR",null,"( RNO.3bA ) Related non-EP output",null,"10-12'","Manufacture of food, beverages and tobacco products",null,":",null,":",null,":",null,":",null,":",null,":",null,":",null,":",null,":",null,":",null,":",null,":"]
["S11_S12","C17","EPS_REC_BYPR",null,null,null,17,"Manufacture of paper and paper products",null,":",null,":",null,":",null,":",null,":",null,":",null,":",null,":",null,":",null,":",null,":",null,":"]
["S11_S12","C19_C20","EPS_REC_BYPR",null,null,null,"19-20","Manufacture of coke, chemicals and refined petroleum and chemical products",null,":",null,":",null,":",null,":",null,":",null,":",null,":",null,":",null,":",null,":",null,":",null,":"]
["S11_S12","C21-C23","EPS_REC_BYPR",null,null,null,"21-23","Manufacture of pharmaceuticals, rubber, plastic and other non-metallic products",null,":",null,":",null,":",null,":",null,":",null,":",null,":",null,":",null,":",null,":",null,":",null,":"]
["S11_S12","C24","EPS_REC_BYPR",null,null,null,24,"Manufacture of basic metals",null,":",null,":",null,":",null,":",null,":",null,":",null,":",null,":",null,":",null,":",null,":",null,":"]
["S11_S12","C25-C30","EPS_REC_BYPR",null,null,null,"25-30","Manufacture of fabricated metal products, including machinery and equipment",null,":",null,":",null,":",null,":",null,":",null,":",null,":",null,":",null,":",null,":",null,":",null,":"]
["S11_S12","C13-C16_C18_C31-C33","EPS_REC_BYPR",null,null,null,"13-16, 18, 31-33","Other manufacturing activities",null,":",null,":",null,":",null,":",null,":",null,":",null,":",null,":",null,":",null,":",null,":",null,":"]
["S11_S12","C10-C12","TOT_P2_EPS","Transactions as users of EP services (ancillary production of EP services and other production)","( P2_EPS_EXT.3bA ) Total intermediate consumption of EP services (for production of EP services and for other production)",null,"10-12'","Manufacture of food, beverages and tobacco products",null,":",null,":",null,":",null,":",null,":",null,":",null,":",null,":",null,":",null,":",null,":",null,":"]
["S11_S12","C17","TOT_P2_EPS",null,"(P2_EPS_EXT.3x: please consider the explanatory notes - click here)",null,17,"Manufacture of paper and paper products",null,":",null,":",null,":",null,":",null,":",null,":",null,":",null,":",null,":",null,":",null,":",null,":"]
["S11_S12","C19_C20","TOT_P2_EPS",null,null,null,"19-20","Manufacture of coke, chemicals and refined petroleum and chemical products",null,":",null,":",null,":",null,":",null,":",null,":",null,":",null,":",null,":",null,":",null,":",null,":"]
["S11_S12","C21-C23","TOT_P2_EPS",null,null,null,"21-23","Manufacture of pharmaceuticals, rubber, plastic and other non-metallic products",null,":",null,":",null,":",null,":",null,":",null,":",null,":",null,":",null,":",null,":",null,":",null,":"]
["S11_S12","C24","TOT_P2_EPS",null,null,null,24,"Manufacture of basic metals",null,":",null,":",null,":",null,":",null,":",null,":",null,":",null,":",null,":",null,":",null,":",null,":"]
["S11_S12","C25-C30","TOT_P2_EPS",null,null,null,"25-30","Manufacture of fabricated metal products, including machinery and equipment",null,":",null,":",null,":",null,":",null,":",null,":",null,":",null,":",null,":",null,":",null,":",null,":"]
["S11_S12","C13-C16_C18_C31-C33","TOT_P2_EPS",null,null,null,"13-16, 18, 31-33","Other manufacturing activities",null,":",null,":",null,":",null,":",null,":",null,":",null,":",null,":",null,":",null,":",null,":",null,":"]
["S11_S12","C10-C12","EPS_EMP","Transactions of producers of ancillary EP services","( EMP.3bA ) Employment (full time equivalent)",null,"10-12'","Manufacture of food, beverages and tobacco products",null,":",null,":",null,":",null,":",null,":",null,":",null,":",null,":",null,":",null,":",null,":",null,":"]
["S11_S12","C17","EPS_EMP",null,null,null,17,"Manufacture of paper and paper products",null,":",null,":",null,":",null,":",null,":",null,":",null,":",null,":",null,":",null,":",null,":",null,":"]
["S11_S12","C19_C20","EPS_EMP",null,null,null,"19-20","Manufacture of coke, chemicals and refined petroleum and chemical products",null,":",null,":",null,":",null,":",null,":",null,":",null,":",null,":",null,":",null,":",null,":",null,":"]
["S11_S12","C21-C23","EPS_EMP",null,null,null,"21-23","Manufacture of pharmaceuticals, rubber, plastic and other non-metallic products",null,":",null,":",null,":",null,":",null,":",null,":",null,":",null,":",null,":",null,":",null,":",null,":"]
["S11_S12","C24","EPS_EMP",null,null,null,24,"Manufacture of basic metals",null,":",null,":",null,":",null,":",null,":",null,":",null,":",null,":",null,":",null,":",null,":",null,":"]
["S11_S12","C25-C30","EPS_EMP",null,null,null,"25-30","Manufacture of fabricated metal products, including machinery and equipment",null,":",null,":",null,":",null,":",null,":",null,":",null,":",null,":",null,":",null,":",null,":",null,":"]
["S11_S12","C13-C16_C18_C31-C33","EPS_EMP",null,null,null,"13-16, 18, 31-33","Other manufacturing activities",null,":",null,":",null,":",null,":",null,":",null,":",null,":",null,":",null,":",null,":",null,":",null,{"$f":"IF(COUNT(J104,N104,P104,R104,T104,V104,AD104)=7,SUM(J104,N104,P104,R104,T104,V104,AD104),\":\")","v":":"}]

{"sheet":"3b_Add_2017","index":19,"n_rows":104,"n_cols":32,"rows_kept":104,"cut":false,"hidden":false,"merged":[[102,7,102,8],[103,7,103,8],[94,7,94,8],[95,7,95,8],[96,7,96,8],[97,3,103,3],[97,4,97,5],[97,7,97,8],[98,7,98,8],[99,7,99,8],[100,7,100,8],[101,7,101,8],[86,7,86,8],[87,7,87,8],[88,7,88,8],[89,7,89,8],[90,3,96,3],[90,4,90,5],[90,7,90,8],[91,7,91,8],[92,7,92,8],[93,7,93,8],[6,3,89,3],[6,4,6,5],[6,7,6,8],[7,7,7,8],[8,7,8,8],[9,7,9,8],[10,7,10,8],[11,7,11,8],[35,4,35,5],[91,4,91,5],[81,7,81,8],[82,7,82,8],[83,4,83,5],[83,7,83,8],[84,7,84,8],[85,7,85,8],[76,4,76,5],[76,7,76,8],[77,7,77,8],[78,7,78,8],[79,7,79,8],[80,7,80,8],[70,7,70,8],[71,7,71,8],[72,7,72,8],[73,7,73,8],[74,7,74,8],[75,7,75,8],[65,7,65,8],[66,7,66,8],[67,7,67,8],[68,7,68,8],[69,4,69,5],[69,7,69,8],[60,7,60,8],[61,7,61,8],[62,4,62,5],[62,7,62,8],[63,7,63,8],[64,7,64,8],[55,4,55,5],[55,7,55,8],[56,7,56,8],[57,7,57,8],[58,7,58,8],[59,7,59,8],[49,7,49,8],[50,7,50,8],[51,7,51,8],[52,7,52,8],[53,7,53,8],[54,7,54,8],[44,7,44,8],[45,7,45,8],[46,7,46,8],[47,7,47,8],[48,4,48,5],[48,7,48,8],[39,7,39,8],[40,7,40,8],[41,4,41,5],[41,7,41,8],[42,7,42,8],[43,7,43,8],[34,4,34,5],[34,7,34,8],[35,7,35,8],[36,7,36,8],[37,7,37,8],[38,7,38,8],[29,7,29,8],[30,7,30,8],[31,7,31,8],[32,7,32,8],[33,7,33,8],[22,7,22,8],[23,7,23,8],[24,7,24,8],[25,7,25,8],[26,7,26,8],[28,7,28,8],[27,4,27,5],[27,7,27,8],[17,7,17,8],[18,7,18,8],[19,7,19,8],[20,4,20,5],[20,7,20,8],[21,7,21,8],[12,7,12,8],[13,4,13,5],[13,7,13,8],[14,7,14,8],[15,7,15,8],[16,7,16,8],[0,4,0,8],[0,9,0,16],[1,4,1,8],[1,9,1,32],[2,9,2,32],[3,9,4,10],[3,11,4,12],[3,13,4,14],[3,15,4,16],[3,17,4,18],[3,31,4,32],[4,4,4,5],[3,21,4,22],[3,23,4,24],[3,25,4,26],[3,27,4,28],[3,29,4,30],[3,19,4,20]]}
[null,null,null,null,{"$f":"Cover!$B$21","v":"QUESTIONNAIRE ON ENVIRONMENTAL PROTECTION EXPENDITURE ACCOUNTS"},null,null,null,null,"Table 3b Add.: Detailed Manufacturing Industries"]
[null,null,null,null,{"$f":"E1","v":"QUESTIONNAIRE ON ENVIRONMENTAL PROTECTION EXPENDITURE ACCOUNTS"},null,null,null,null,{"$f":"J1 & \" - \" & I5","v":"Table 3b Add.: Detailed Manufacturing Industries - 2017"}]
[null,null,null,null,null,null,null,null,null,"Mandatory and voluntary variables and environmental domains - please fill in as much as possible"]
[null,null,null,null,"Country/Unit",{"$f":"IFERROR(Cover!C16,\"\")","v":""},{"$f":"\"\"&Cover!B16","v":""},null,{"$f":"Cover!B17","v":"Million units of national currency"},"CEPA 1",null,"of which CEPA 1.1.2 and 1.2.2 Climate change",null,"CEPA 2",null,"CEPA 3",null,"CEPA 4",null,"CEPA 5",null,"CEPA 6",null,"CEPA 7",null,"CEPA 8",null,"CEPA 9",null,"Sum of CEPA 7+8+9",null,"TOTAL"]
[null,null,null,null,"Expenditure",null,null,"YEAR",2017,null,null,null,null,null,null,null,null,null,null,null,null,null,null,null,null,null,null,null,null,null,null,"Landscape"]
[null,null,null,null,null,null,null,null,null,"CEPA1",null,"CEPA112_122",null,"CEPA2",null,"CEPA3",null,"CEPA4",null,"CEPA5",null,"CEPA6",null,"CEPA7",null,"CEPA8",null,"CEPA9",null,"CEPA7-9",null,"TOT_CEPA"]
["S11_S12","C10-C12","EPS_P51G_NP","Transactions of producers of ancillary EP services","( P51G_NP.3bA ) Gross fixed capital formation and acquisition less disposals of non-financial, non-produced assets",null,"10-12","Manufacture of food, beverages and tobacco products",null,":",null,":",null,":",null,":",null,":",null,":",null,":",null,":",null,":",null,":",null,":",null,{"$f":"IF(COUNT(J7,N7,P7,R7,T7,V7,AD7)=7,SUM(J7,N7,P7,R7,T7,V7,AD7),\":\")","v":":"}]
["S11_S12","C17","EPS_P51G_NP",null,null,null,17,"Manufacture of paper and paper products",null,":",null,":",null,":",null,":",null,":",null,":",null,":",null,":",null,":",null,":",null,":",null,{"$f":"IF(COUNT(J8,N8,P8,R8,T8,V8,AD8)=7,SUM(J8,N8,P8,R8,T8,V8,AD8),\":\")","v":":"}]
["S11_S12","C19_C20","EPS_P51G_NP",null,null,null,"19-20","Manufacture of coke, chemicals and refined petroleum and chemical products",null,":",null,":",null,":",null,":",null,":",null,":",null,":",null,":",null,":",null,":",null,":",null,":"]
["S11_S12","C21-C23","EPS_P51G_NP",null,null,null,"21-23","Manufacture of pharmaceuticals, rubber, plastic and other non-metallic products",null,":",null,":",null,":",null,":",null,":",null,":",null,":",null,":",null,":",null,":",null,":",null,":"]
["S11_S12","C24","EPS_P51G_NP",null,null,null,24,"Manufacture of basic metals",null,":",null,":",null,":",null,":",null,":",null,":",null,":",null,":",null,":",null,":",null,":",null,":"]
["S11_S12","C25-C30","EPS_P51G_NP",null,null,null,"25-30","Manufacture of fabricated metal products, including machinery and equipment",null,":",null,":",null,":",null,":",null,":",null,":",null,":",null,":",null,":",null,":",null,":",null,":"]
["S11_S12","C13-C16_C18_C31-C33","EPS_P51G_NP",null,null,null,"13-16, 18, 31-33","Other manufacturing activities",null,":",null,":",null,":",null,":",null,":",null,":",null,":",null,":",null,":",null,":",null,":",null,":"]
["S11_S12","C10-C12","EPS_INV_PT",null,"( INV_EOP.3bA ) GFCF on specific EP fixed assets (end-of-pipe technologies)",null,"10-12'","Manufacture of food, beverages and tobacco products",null,":",null,":",null,":",null,":",null,":",null,":",null,":",null,":",null,":",null,":",null,":",null,":"]
["S11_S12","C17","EPS_INV_PT",null,null,null,17,"Manufacture of paper and paper products",null,":",null,":",null,":",null,":",null,":",null,":",null,":",null,":",null,":",null,":",null,":",null,":"]
["S11_S12","C19_C20","EPS_INV_PT",null,null,null,"19-20","Manufacture of coke, chemicals and refined petroleum and chemical products",null,":",null,":",null,":",null,":",null,":",null,":",null,":",null,":",null,":",null,":",null,":",null,":"]
["S11_S12","C21-C23","EPS_INV_PT",null,null,null,"21-23","Manufacture of pharmaceuticals, rubber, plastic and other non-metallic products",null,":",null,":",null,":",null,":",null,":",null,":",null,":",null,":",null,":",null,":",null,":",null,":"]
["S11_S12","C24","EPS_INV_PT",null,null,null,24,"Manufacture of basic metals",null,":",null,":",null,":",null,":",null,":",null,":",null,":",null,":",null,":",null,":",null,":",null,":"]
["S11_S12","C25-C30","EPS_INV_PT",null,null,null,"25-30","Manufacture of fabricated metal products, including machinery and equipment",null,":",null,":",null,":",null,":",null,":",null,":",null,":",null,":",null,":",null,":",null,":",null,":"]
["S11_S12","C13-C16_C18_C31-C33","EPS_INV_PT",null,null,null,"13-16, 18, 31-33","Other manufacturing activities",null,":",null,":",null,":",null,":",null,":",null,":",null,":",null,":",null,":",null,":",null,":",null,":"]
["S11_S12","C10-C12","EPS_INV_PP",null,"( INV_IT.3bA ) GFCF on cleaner EP fixed assets (integrated technologies)",null,"10-12'","Manufacture of food, beverages and tobacco products",null,":",null,":",null,":",null,":",null,":",null,":",null,":",null,":",null,":",null,":",null,":",null,":"]
["S11_S12","C17","EPS_INV_PP",null,null,null,17,"Manufacture of paper and paper products",null,":",null,":",null,":",null,":",null,":",null,":",null,":",null,":",null,":",null,":",null,":",null,":"]
["S11_S12","C19_C20","EPS_INV_PP",null,null,null,"19-20","Manufacture of coke, chemicals and refined petroleum and chemical products",null,":",null,":",null,":",null,":",null,":",null,":",null,":",null,":",null,":",null,":",null,":",null,":"]
["S11_S12","C21-C23","EPS_INV_PP",null,null,null,"21-23","Manufacture of pharmaceuticals, rubber, plastic and other non-metallic products",null,":",null,":",null,":",null,":",null,":",null,":",null,":",null,":",null,":",null,":",null,":",null,":"]
["S11_S12","C24","EPS_INV_PP",null,null,null,24,"Manufacture of basic metals",null,":",null,":",null,":",null,":",null,":",null,":",null,":",null,":",null,":",null,":",null,":",null,":"]
["S11_S12","C25-C30","EPS_INV_PP",null,null,null,"25-30","Manufacture of fabricated metal products, including machinery and equipment",null,":",null,":",null,":",null,":",null,":",null,":",null,":",null,":",null,":",null,":",null,":",null,":"]
["S11_S12","C13-C16_C18_C31-C33","EPS_INV_PP",null,null,null,"13-16, 18, 31-33","Other manufacturing activities",null,":",null,":",null,":",null,":",null,":",null,":",null,":",null,":",null,":",null,":",null,":",null,":"]
["S11_S12","C10-C12","EPS_P2",null,"( P2.3bA ) Total intermediate consumption",null,"10-12'","Manufacture of food, beverages and tobacco products",null,":",null,":",null,":",null,":",null,":",null,":",null,":",null,":",null,":",null,":",null,":",null,":"]
["S11_S12","C17","EPS_P2",null,null,null,17,"Manufacture of paper and paper products",null,":",null,":",null,":",null,":",null,":",null,":",null,":",null,":",null,":",null,":",null,":",null,":"]
["S11_S12","C19_C20","EPS_P2",null,null,null,"19-20","Manufacture of coke, chemicals and refined petroleum and chemical products",null,":",null,":",null,":",null,":",null,":",null,":",null,":",null,":",null,":",null,":",null,":",null,":"]
["S11_S12","C21-C23","EPS_P2",null,null,null,"21-23","Manufacture of pharmaceuticals, rubber, plastic and other non-metallic products",null,":",null,":",null,":",null,":",null,":",null,":",null,":",null,":",null,":",null,":",null,":",null,":"]
["S11_S12","C24","EPS_P2",null,null,null,24,"Manufacture of basic metals",null,":",null,":",null,":",null,":",null,":",null,":",null,":",null,":",null,":",null,":",null,":",null,":"]
["S11_S12","C25-C30","EPS_P2",null,null,null,"25-30","Manufacture of fabricated metal products, including machinery and equipment",null,":",null,":",null,":",null,":",null,":",null,":",null,":",null,":",null,":",null,":",null,":",null,":"]
["S11_S12","C13-C16_C18_C31-C33","EPS_P2",null,null,null,"13-16, 18, 31-33","Other manufacturing activities",null,":",null,":",null,":",null,":",null,":",null,":",null,":",null,":",null,":",null,":",null,":",null,":"]
["S11_S12","C10-C12","EPS_P2_EPS",null,"( P2_EPS.3bA ) Intermediate consumption of EP services for ancillary production of EP services ",null,"10-12'","Manufacture of food, beverages and tobacco products",null,":",null,":",null,":",null,":",null,":",null,":",null,":",null,":",null,":",null,":",null,":",null,":"]
["S11_S12","C17","EPS_P2_EPS",null,"(P2_EPS.3x: please consider the explanatory notes - click here)",null,17,"Manufacture of paper and paper products",null,":",null,":",null,":",null,":",null,":",null,":",null,":",null,":",null,":",null,":",null,":",null,":"]
["S11_S12","C19_C20","EPS_P2_EPS",null,null,null,"19-20","Manufacture of coke, chemicals and refined petroleum and chemical products",null,":",null,":",null,":",null,":",null,":",null,":",null,":",null,":",null,":",null,":",null,":",null,":"]
["S11_S12","C21-C23","EPS_P2_EPS",null,null,null,"21-23","Manufacture of pharmaceuticals, rubber, plastic and other non-metallic products",null,":",null,":",null,":",null,":",null,":",null,":",null,":",null,":",null,":",null,":",null,":",null,":"]
["S11_S12","C24","EPS_P2_EPS",null,null,null,24,"Manufacture of basic metals",null,":",null,":",null,":",null,":",null,":",null,":",null,":",null,":",null,":",null,":",null,":",null,":"]
["S11_S12","C25-C30","EPS_P2_EPS",null,null,null,"25-30","Manufacture of fabricated metal products, including machinery and equipment",null,":",null,":",null,":",null,":",null,":",null,":",null,":",null,":",null,":",null,":",null,":",null,":"]
["S11_S12","C13-C16_C18_C31-C33","EPS_P2_EPS",null,null,null,"13-16, 18, 31-33","Other manufacturing activities",null,":",null,":",null,":",null,":",null,":",null,":",null,":",null,":",null,":",null,":",null,":",null,":"]
["S11_S12","C10-C12","EPS_P2_NEPS",null,"( P2_NEPS.3bA ) Intermediate consumption (excluding EP services)",null,"10-12'","Manufacture of food, beverages and tobacco products",null,":",null,":",null,":",null,":",null,":",null,":",null,":",null,":",null,":",null,":",null,":",null,":"]
["S11_S12","C17","EPS_P2_NEPS",null,null,null,17,"Manufacture of paper and paper products",null,":",null,":",null,":",null,":",null,":",null,":",null,":",null,":",null,":",null,":",null,":",null,":"]
["S11_S12","C19_C20","EPS_P2_NEPS",null,null,null,"19-20","Manufacture of coke, chemicals and refined petroleum and chemical products",null,":",null,":",null,":",null,":",null,":",null,":",null,":",null,":",null,":",null,":",null,":",null,":"]
["S11_S12","C21-C23","EPS_P2_NEPS",null,null,null,"21-23","Manufacture of pharmaceuticals, rubber, plastic and other non-metallic products",null,":",null,":",null,":",null,":",null,":",null,":",null,":",null,":",null,":",null,":",null,":",null,":"]
["S11_S12","C24","EPS_P2_NEPS",null,null,null,24,"Manufacture of basic metals",null,":",null,":",null,":",null,":",null,":",null,":",null,":",null,":",null,":",null,":",null,":",null,":"]
["S11_S12","C25-C30","EPS_P2_NEPS",null,null,null,"25-30","Manufacture of fabricated metal products, including machinery and equipment",null,":",null,":",null,":",null,":",null,":",null,":",null,":",null,":",null,":",null,":",null,":",null,":"]
["S11_S12","C13-C16_C18_C31-C33","EPS_P2_NEPS",null,null,null,"13-16, 18, 31-33","Other manufacturing activities",null,":",null,":",null,":",null,":",null,":",null,":",null,":",null,":",null,":",null,":",null,":",null,":"]
["S11_S12","C10-C12","EPS_D1",null,"( D1.3bA ) Compensation of employees",null,"10-12'","Manufacture of food, beverages and tobacco products",null,":",null,":",null,":",null,":",null,":",null,":",null,":",null,":",null,":",null,":",null,":",null,":"]
["S11_S12","C17","EPS_D1",null,null,null,17,"Manufacture of paper and paper products",null,":",null,":",null,":",null,":",null,":",null,":",null,":",null,":",null,":",null,":",null,":",null,":"]
["S11_S12","C19_C20","EPS_D1",null,null,null,"19-20","Manufacture of coke, chemicals and refined petroleum and chemical products",null,":",null,":",null,":",null,":",null,":",null,":",null,":",null,":",null,":",null,":",null,":",null,":"]
["S11_S12","C21-C23","EPS_D1",null,null,null,"21-23","Manufacture of pharmaceuticals, rubber, plastic and other non-metallic products",null,":",null,":",null,":",null,":",null,":",null,":",null,":",null,":",null,":",null,":",null,":",null,":"]
["S11_S12","C24","EPS_D1",null,null,null,24,"Manufacture of basic metals",null,":",null,":",null,":",null,":",null,":",null,":",null,":",null,":",null,":",null,":",null,":",null,":"]
["S11_S12","C25-C30","EPS_D1",null,null,null,"25-30","Manufacture of fabricated metal products, including machinery and equipment",null,":",null,":",null,":",null,":",null,":",null,":",null,":",null,":",null,":",null,":",null,":",null,":"]
["S11_S12","C13-C16_C18_C31-C33","EPS_D1",null,null,null,"13-16, 18, 31-33","Other manufacturing activities",null,":",null,":",null,":",null,":",null,":",null,":",null,":",null,":",null,":",null,":",null,":",null,":"]
["S11_S12","C10-C12","EPS_P1_ANC",null,"( P1_ANC.3bA ) Ancillary EP output (simplified valuation legally acceptable) ((P2_NEPS.3bA) + (D1.3bA))",null,"10-12'","Manufacture of food, beverages and tobacco products",null,":",null,":",null,":",null,":",null,":",null,":",null,":",null,":",null,":",null,":",null,":",null,":"]
["S11_S12","C17","EPS_P1_ANC",null,null,null,17,"Manufacture of paper and paper products",null,":",null,":",null,":",null,":",null,":",null,":",null,":",null,":",null,":",null,":",null,":",null,":"]
["S11_S12","C19_C20","EPS_P1_ANC",null,null,null,"19-20","Manufacture of coke, chemicals and refined petroleum and chemical products",null,":",null,":",null,":",null,":",null,":",null,":",null,":",null,":",null,":",null,":",null,":",null,":"]
["S11_S12","C21-C23","EPS_P1_ANC",null,null,null,"21-23","Manufacture of pharmaceuticals, rubber, plastic and other non-metallic products",null,":",null,":",null,":",null,":",null,":",null,":",null,":",null,":",null,":",null,":",null,":",null,":"]
["S11_S12","C24","EPS_P1_ANC",null,null,null,24,"Manufacture of basic metals",null,":",null,":",null,":",null,":",null,":",null,":",null,":",null,":",null,":",null,":",null,":",null,":"]
["S11_S12","C25-C30","EPS_P1_ANC",null,null,null,"25-30","Manufacture of fabricated metal products, including machinery and equipment",null,":",null,":",null,":",null,":",null,":",null,":",null,":",null,":",null,":",null,":",null,":",null,":"]
["S11_S12","C13-C16_C18_C31-C33","EPS_P1_ANC",null,null,null,"13-16, 18, 31-33","Other manufacturing activities",null,":",null,":",null,":",null,":",null,":",null,":",null,":",null,":",null,":",null,":",null,":",null,":"]
["S11_S12","C10-C12","EPS_D29X39",null,"( D29-D39.3bA ) Other taxes less subsidies on production",null,"10-12'","Manufacture of food, beverages and tobacco products",null,":",null,":",null,":",null,":",null,":",null,":",null,":",null,":",null,":",null,":",null,":",null,":"]
["S11_S12","C17","EPS_D29X39",null,null,null,17,"Manufacture of paper and paper products",null,":",null,":",null,":",null,":",null,":",null,":",null,":",null,":",null,":",null,":",null,":",null,":"]
["S11_S12","C19_C20","EPS_D29X39",null,null,null,"19-20","Manufacture of coke, chemicals and refined petroleum and chemical products",null,":",null,":",null,":",null,":",null,":",null,":",null,":",null,":",null,":",null,":",null,":",null,":"]
["S11_S12","C21-C23","EPS_D29X39",null,null,null,"21-23","Manufacture of pharmaceuticals, rubber, plastic and other non-metallic products",null,":",null,":",null,":",null,":",null,":",null,":",null,":",null,":",null,":",null,":",null,":",null,":"]
["S11_S12","C24","EPS_D29X39",null,null,null,24,"Manufacture of basic metals",null,":",null,":",null,":",null,":",null,":",null,":",null,":",null,":",null,":",null,":",null,":",null,":"]
["S11_S12","C25-C30","EPS_D29X39",null,null,null,"25-30","Manufacture of fabricated metal products, including machinery and equipment",null,":",null,":",null,":",null,":",null,":",null,":",null,":",null,":",null,":",null,":",null,":",null,":"]
["S11_S12","C13-C16_C18_C31-C33","EPS_D29X39",null,null,null,"13-16, 18, 31-33","Other manufacturing activities",null,":",null,":",null,":",null,":",null,":",null,":",null,":",null,":",null,":",null,":",null,":",null,":"]
["S11_S12","C10-C12","EPS_P51C",null,"( P51C.3bA ) Consumption of fixed capital",null,"10-12'","Manufacture of food, beverages and tobacco products",null,":",null,":",null,":",null,":",null,":",null,":",null,":",null,":",null,":",null,":",null,":",null,":"]
["S11_S12","C17","EPS_P51C",null,null,null,17,"Manufacture of paper and paper products",null,":",null,":",null,":",null,":",null,":",null,":",null,":",null,":",null,":",null,":",null,":",null,":"]
["S11_S12","C19_C20","EPS_P51C",null,null,null,"19-20","Manufacture of coke, chemicals and refined petroleum and chemical products",null,":",null,":",null,":",null,":",null,":",null,":",null,":",null,":",null,":",null,":",null,":",null,{"$f":"IF(COUNT(J72,N72,P72,R72,T72,V72,AD72)=7,SUM(J72,N72,P72,R72,T72,V72,AD72),\":\")","v":":"}]
["S11_S12","C21-C23","EPS_P51C",null,null,null,"21-23","Manufacture of pharmaceuticals, rubber, plastic and other non-metallic products",null,":",null,":",null,":",null,":",null,":",null,":",null,":",null,":",null,":",null,":",null,":",null,":"]
["S11_S12","C24","EPS_P51C",null,null,null,24,"Manufacture of basic metals",null,":",null,":",null,":",null,":",null,":",null,":",null,":",null,":",null,":",null,":",null,":",null,":"]
["S11_S12","C25-C30","EPS_P51C",null,null,null,"25-30","Manufacture of fabricated metal products, including machinery and equipment",null,":",null,":",null,":",null,":",null,":",null,":",null,":",null,":",null,":",null,":",null,":",null,":"]
["S11_S12","C13-C16_C18_C31-C33","EPS_P51C",null,null,null,"13-16, 18, 31-33","Other manufacturing activities",null,":",null,":",null,":",null,":",null,":",null,":",null,":",null,":",null,":",null,":",null,":",null,":"]
["S11_S12","C10-C12","EPS_P1_ANCESA",null,"( P1_ANC_ESA.3bA ) Ancillary EP output (ESA - compatible valuation) ((P2_NEPS.3bA) + (D1.3bA) +(P51C.3bA) + (D29-D39.3bA))",null,"10-12'","Manufacture of food, beverages and tobacco products",null,":",null,":",null,":",null,":",null,":",null,":",null,":",null,":",null,":",null,":",null,":",null,":"]
["S11_S12","C17","EPS_P1_ANCESA",null,null,null,17,"Manufacture of paper and paper products",null,":",null,":",null,":",null,":",null,":",null,":",null,":",null,":",null,":",null,":",null,":",null,":"]
["S11_S12","C19_C20","EPS_P1_ANCESA",null,null,null,"19-20","Manufacture of coke, chemicals and refined petroleum and chemical products",null,":",null,":",null,":",null,":",null,":",null,":",null,":",null,":",null,":",null,":",null,":",null,":"]
["S11_S12","C21-C23","EPS_P1_ANCESA",null,null,null,"21-23","Manufacture of pharmaceuticals, rubber, plastic and other non-metallic products",null,":",null,":",null,":",null,":",null,":",null,":",null,":",null,":",null,":",null,":",null,":",null,":"]
["S11_S12","C24","EPS_P1_ANCESA",null,null,null,24,"Manufacture of basic metals",null,":",null,":",null,":",null,":",null,":",null,":",null,":",null,":",null,":",null,":",null,":",null,":"]
["S11_S12","C25-C30","EPS_P1_ANCESA",null,null,null,"25-30","Manufacture of fabricated metal products, including machinery and equipment",null,":",null,":",null,":",null,":",null,":",null,":",null,":",null,":",null,":",null,":",null,":",null,":"]
["S11_S12","C13-C16_C18_C31-C33","EPS_P1_ANCESA",null,null,null,"13-16, 18, 31-33","Other manufacturing activities",null,":",null,":",null,":",null,":",null,":",null,":",null,":",null,":",null,":",null,":",null,":",null,":"]
["S11_S12","C10-C12","EPS_REC_BYPR",null,"( RNO.3bA ) Related non-EP output",null,"10-12'","Manufacture of food, beverages and tobacco products",null,":",null,":",null,":",null,":",null,":",null,":",null,":",null,":",null,":",null,":",null,":",null,":"]
["S11_S12","C17","EPS_REC_BYPR",null,null,null,17,"Manufacture of paper and paper products",null,":",null,":",null,":",null,":",null,":",null,":",null,":",null,":",null,":",null,":",null,":",null,":"]
["S11_S12","C19_C20","EPS_REC_BYPR",null,null,null,"19-20","Manufacture of coke, chemicals and refined petroleum and chemical products",null,":",null,":",null,":",null,":",null,":",null,":",null,":",null,":",null,":",null,":",null,":",null,":"]
["S11_S12","C21-C23","EPS_REC_BYPR",null,null,null,"21-23","Manufacture of pharmaceuticals, rubber, plastic and other non-metallic products",null,":",null,":",null,":",null,":",null,":",null,":",null,":",null,":",null,":",null,":",null,":",null,":"]
["S11_S12","C24","EPS_REC_BYPR",null,null,null,24,"Manufacture of basic metals",null,":",null,":",null,":",null,":",null,":",null,":",null,":",null,":",null,":",null,":",null,":",null,":"]
["S11_S12","C25-C30","EPS_REC_BYPR",null,null,null,"25-30","Manufacture of fabricated metal products, including machinery and equipment",null,":",null,":",null,":",null,":",null,":",null,":",null,":",null,":",null,":",null,":",null,":",null,":"]
["S11_S12","C13-C16_C18_C31-C33","EPS_REC_BYPR",null,null,null,"13-16, 18, 31-33","Other manufacturing activities",null,":",null,":",null,":",null,":",null,":",null,":",null,":",null,":",null,":",null,":",null,":",null,":"]
["S11_S12","C10-C12","TOT_P2_EPS","Transactions as users of EP services (ancillary production of EP services and other production)","( P2_EPS_EXT.3bA ) Total intermediate consumption of EP services (for production of EP services and for other production)",null,"10-12'","Manufacture of food, beverages and tobacco products",null,":",null,":",null,":",null,":",null,":",null,":",null,":",null,":",null,":",null,":",null,":",null,":"]
["S11_S12","C17","TOT_P2_EPS",null,"(P2_EPS_EXT.3x: please consider the explanatory notes - click here)",null,17,"Manufacture of paper and paper products",null,":",null,":",null,":",null,":",null,":",null,":",null,":",null,":",null,":",null,":",null,":",null,":"]
["S11_S12","C19_C20","TOT_P2_EPS",null,null,null,"19-20","Manufacture of coke, chemicals and refined petroleum and chemical products",null,":",null,":",null,":",null,":",null,":",null,":",null,":",null,":",null,":",null,":",null,":",null,":"]
["S11_S12","C21-C23","TOT_P2_EPS",null,null,null,"21-23","Manufacture of pharmaceuticals, rubber, plastic and other non-metallic products",null,":",null,":",null,":",null,":",null,":",null,":",null,":",null,":",null,":",null,":",null,":",null,":"]
["S11_S12","C24","TOT_P2_EPS",null,null,null,24,"Manufacture of basic metals",null,":",null,":",null,":",null,":",null,":",null,":",null,":",null,":",null,":",null,":",null,":",null,":"]
["S11_S12","C25-C30","TOT_P2_EPS",null,null,null,"25-30","Manufacture of fabricated metal products, including machinery and equipment",null,":",null,":",null,":",null,":",null,":",null,":",null,":",null,":",null,":",null,":",null,":",null,":"]
["S11_S12","C13-C16_C18_C31-C33","TOT_P2_EPS",null,null,null,"13-16, 18, 31-33","Other manufacturing activities",null,":",null,":",null,":",null,":",null,":",null,":",null,":",null,":",null,":",null,":",null,":",null,":"]
["S11_S12","C10-C12","EPS_EMP","Transactions of producers of ancillary EP services","( EMP.3bA ) Employment (full time equivalent)",null,"10-12'","Manufacture of food, beverages and tobacco products",null,":",null,":",null,":",null,":",null,":",null,":",null,":",null,":",null,":",null,":",null,":",null,":"]
["S11_S12","C17","EPS_EMP",null,null,null,17,"Manufacture of paper and paper products",null,":",null,":",null,":",null,":",null,":",null,":",null,":",null,":",null,":",null,":",null,":",null,":"]
["S11_S12","C19_C20","EPS_EMP",null,null,null,"19-20","Manufacture of coke, chemicals and refined petroleum and chemical products",null,":",null,":",null,":",null,":",null,":",null,":",null,":",null,":",null,":",null,":",null,":",null,":"]
["S11_S12","C21-C23","EPS_EMP",null,null,null,"21-23","Manufacture of pharmaceuticals, rubber, plastic and other non-metallic products",null,":",null,":",null,":",null,":",null,":",null,":",null,":",null,":",null,":",null,":",null,":",null,":"]
["S11_S12","C24","EPS_EMP",null,null,null,24,"Manufacture of basic metals",null,":",null,":",null,":",null,":",null,":",null,":",null,":",null,":",null,":",null,":",null,":",null,":"]
["S11_S12","C25-C30","EPS_EMP",null,null,null,"25-30","Manufacture of fabricated metal products, including machinery and equipment",null,":",null,":",null,":",null,":",null,":",null,":",null,":",null,":",null,":",null,":",null,":",null,":"]
["S11_S12","C13-C16_C18_C31-C33","EPS_EMP",null,null,null,"13-16, 18, 31-33","Other manufacturing activities",null,":",null,":",null,":",null,":",null,":",null,":",null,":",null,":",null,":",null,":",null,":",null,{"$f":"IF(COUNT(J104,N104,P104,R104,T104,V104,AD104)=7,SUM(J104,N104,P104,R104,T104,V104,AD104),\":\")","v":":"}]

{"sheet":"3b_Add_2018","index":20,"n_rows":104,"n_cols":32,"rows_kept":104,"cut":false,"hidden":false,"merged":[[102,7,102,8],[103,7,103,8],[94,7,94,8],[95,7,95,8],[96,7,96,8],[97,3,103,3],[97,4,97,5],[97,7,97,8],[98,7,98,8],[99,7,99,8],[100,7,100,8],[101,7,101,8],[86,7,86,8],[87,7,87,8],[88,7,88,8],[89,7,89,8],[90,3,96,3],[90,4,90,5],[90,7,90,8],[91,7,91,8],[92,7,92,8],[93,7,93,8],[6,3,89,3],[6,4,6,5],[6,7,6,8],[7,7,7,8],[8,7,8,8],[9,7,9,8],[10,7,10,8],[11,7,11,8],[35,4,35,5],[91,4,91,5],[81,7,81,8],[82,7,82,8],[83,4,83,5],[83,7,83,8],[84,7,84,8],[85,7,85,8],[76,4,76,5],[76,7,76,8],[77,7,77,8],[78,7,78,8],[79,7,79,8],[80,7,80,8],[70,7,70,8],[71,7,71,8],[72,7,72,8],[73,7,73,8],[74,7,74,8],[75,7,75,8],[65,7,65,8],[66,7,66,8],[67,7,67,8],[68,7,68,8],[69,4,69,5],[69,7,69,8],[60,7,60,8],[61,7,61,8],[62,4,62,5],[62,7,62,8],[63,7,63,8],[64,7,64,8],[55,4,55,5],[55,7,55,8],[56,7,56,8],[57,7,57,8],[58,7,58,8],[59,7,59,8],[49,7,49,8],[50,7,50,8],[51,7,51,8],[52,7,52,8],[53,7,53,8],[54,7,54,8],[44,7,44,8],[45,7,45,8],[46,7,46,8],[47,7,47,8],[48,4,48,5],[48,7,48,8],[39,7,39,8],[40,7,40,8],[41,4,41,5],[41,7,41,8],[42,7,42,8],[43,7,43,8],[34,4,34,5],[34,7,34,8],[35,7,35,8],[36,7,36,8],[37,7,37,8],[38,7,38,8],[29,7,29,8],[30,7,30,8],[31,7,31,8],[32,7,32,8],[33,7,33,8],[22,7,22,8],[23,7,23,8],[24,7,24,8],[25,7,25,8],[26,7,26,8],[28,7,28,8],[27,4,27,5],[27,7,27,8],[17,7,17,8],[18,7,18,8],[19,7,19,8],[20,4,20,5],[20,7,20,8],[21,7,21,8],[12,7,12,8],[13,4,13,5],[13,7,13,8],[14,7,14,8],[15,7,15,8],[16,7,16,8],[0,4,0,8],[0,9,0,16],[1,4,1,8],[1,9,1,32],[2,9,2,32],[3,9,4,10],[3,11,4,12],[3,13,4,14],[3,15,4,16],[3,17,4,18],[3,31,4,32],[4,4,4,5],[3,21,4,22],[3,23,4,24],[3,25,4,26],[3,27,4,28],[3,29,4,30],[3,19,4,20]]}
[null,null,null,null,{"$f":"Cover!$B$21","v":"QUESTIONNAIRE ON ENVIRONMENTAL PROTECTION EXPENDITURE ACCOUNTS"},null,null,null,null,"Table 3b Add.: Detailed Manufacturing Industries"]
[null,null,null,null,{"$f":"E1","v":"QUESTIONNAIRE ON ENVIRONMENTAL PROTECTION EXPENDITURE ACCOUNTS"},null,null,null,null,{"$f":"J1 & \" - \" & I5","v":"Table 3b Add.: Detailed Manufacturing Industries - 2018"}]
[null,null,null,null,null,null,null,null,null,"Mandatory and voluntary variables and environmental domains - please fill in as much as possible"]
[null,null,null,null,"Country/Unit",{"$f":"IFERROR(Cover!C16,\"\")","v":""},{"$f":"\"\"&Cover!B16","v":""},null,{"$f":"Cover!B17","v":"Million units of national currency"},"CEPA 1",null,"of which CEPA 1.1.2 and 1.2.2 Climate change",null,"CEPA 2",null,"CEPA 3",null,"CEPA 4",null,"CEPA 5",null,"CEPA 6",null,"CEPA 7",null,"CEPA 8",null,"CEPA 9",null,"Sum of CEPA 7+8+9",null,"TOTAL"]
[null,null,null,null,"Expenditure",null,null,"YEAR",2018,null,null,null,null,null,null,null,null,null,null,null,null,null,null,null,null,null,null,null,null,null,null,"Landscape"]
[null,null,null,null,null,null,null,null,null,"CEPA1",null,"CEPA112_122",null,"CEPA2",null,"CEPA3",null,"CEPA4",null,"CEPA5",null,"CEPA6",null,"CEPA7",null,"CEPA8",null,"CEPA9",null,"CEPA7-9",null,"TOT_CEPA"]
["S11_S12","C10-C12","EPS_P51G_NP","Transactions of producers of ancillary EP services","( P51G_NP.3bA ) Gross fixed capital formation and acquisition less disposals of non-financial, non-produced assets",null,"10-12","Manufacture of food, beverages and tobacco products",null,":",null,":",null,":",null,":",null,":",null,":",null,":",null,":",null,":",null,":",null,":",null,{"$f":"IF(COUNT(J7,N7,P7,R7,T7,V7,AD7)=7,SUM(J7,N7,P7,R7,T7,V7,AD7),\":\")","v":":"}]
["S11_S12","C17","EPS_P51G_NP",null,null,null,17,"Manufacture of paper and paper products",null,":",null,":",null,":",null,":",null,":",null,":",null,":",null,":",null,":",null,":",null,":",null,{"$f":"IF(COUNT(J8,N8,P8,R8,T8,V8,AD8)=7,SUM(J8,N8,P8,R8,T8,V8,AD8),\":\")","v":":"}]
["S11_S12","C19_C20","EPS_P51G_NP",null,null,null,"19-20","Manufacture of coke, chemicals and refined petroleum and chemical products",null,":",null,":",null,":",null,":",null,":",null,":",null,":",null,":",null,":",null,":",null,":",null,":"]
["S11_S12","C21-C23","EPS_P51G_NP",null,null,null,"21-23","Manufacture of pharmaceuticals, rubber, plastic and other non-metallic products",null,":",null,":",null,":",null,":",null,":",null,":",null,":",null,":",null,":",null,":",null,":",null,":"]
["S11_S12","C24","EPS_P51G_NP",null,null,null,24,"Manufacture of basic metals",null,":",null,":",null,":",null,":",null,":",null,":",null,":",null,":",null,":",null,":",null,":",null,":"]
["S11_S12","C25-C30","EPS_P51G_NP",null,null,null,"25-30","Manufacture of fabricated metal products, including machinery and equipment",null,":",null,":",null,":",null,":",null,":",null,":",null,":",null,":",null,":",null,":",null,":",null,":"]
["S11_S12","C13-C16_C18_C31-C33","EPS_P51G_NP",null,null,null,"13-16, 18, 31-33","Other manufacturing activities",null,":",null,":",null,":",null,":",null,":",null,":",null,":",null,":",null,":",null,":",null,":",null,":"]
["S11_S12","C10-C12","EPS_INV_PT",null,"( INV_EOP.3bA ) GFCF on specific EP fixed assets (end-of-pipe technologies)",null,"10-12'","Manufacture of food, beverages and \ntobacco products",null,":",null,":",null,":",null,":",null,":",null,":",null,":",null,":",null,":",null,":",null,":",null,":"]
["S11_S12","C17","EPS_INV_PT",null,null,null,17,"Manufacture of paper and paper products",null,":",null,":",null,":",null,":",null,":",null,":",null,":",null,":",null,":",null,":",null,":",null,":"]
["S11_S12","C19_C20","EPS_INV_PT",null,null,null,"19-20","Manufacture of coke, chemicals and refined petroleum and chemical products",null,":",null,":",null,":",null,":",null,":",null,":",null,":",null,":",null,":",null,":",null,":",null,":"]
["S11_S12","C21-C23","EPS_INV_PT",null,null,null,"21-23","Manufacture of pharmaceuticals, rubber, plastic and other non-metallic products",null,":",null,":",null,":",null,":",null,":",null,":",null,":",null,":",null,":",null,":",null,":",null,":"]
["S11_S12","C24","EPS_INV_PT",null,null,null,24,"Manufacture of basic metals",null,":",null,":",null,":",null,":",null,":",null,":",null,":",null,":",null,":",null,":",null,":",null,":"]
["S11_S12","C25-C30","EPS_INV_PT",null,null,null,"25-30","Manufacture of fabricated metal products, including machinery and equipment",null,":",null,":",null,":",null,":",null,":",null,":",null,":",null,":",null,":",null,":",null,":",null,":"]
["S11_S12","C13-C16_C18_C31-C33","EPS_INV_PT",null,null,null,"13-16, 18, 31-33","Other manufacturing activities",null,":",null,":",null,":",null,":",null,":",null,":",null,":",null,":",null,":",null,":",null,":",null,":"]
["S11_S12","C10-C12","EPS_INV_PP",null,"( INV_IT.3bA ) GFCF on cleaner EP fixed assets (integrated technologies)",null,"10-12'","Manufacture of food, beverages and tobacco products",null,":",null,":",null,":",null,":",null,":",null,":",null,":",null,":",null,":",null,":",null,":",null,":"]
["S11_S12","C17","EPS_INV_PP",null,null,null,17,"Manufacture of paper and paper products",null,":",null,":",null,":",null,":",null,":",null,":",null,":",null,":",null,":",null,":",null,":",null,":"]
["S11_S12","C19_C20","EPS_INV_PP",null,null,null,"19-20","Manufacture of coke, chemicals and refined petroleum and chemical products",null,":",null,":",null,":",null,":",null,":",null,":",null,":",null,":",null,":",null,":",null,":",null,":"]
["S11_S12","C21-C23","EPS_INV_PP",null,null,null,"21-23","Manufacture of pharmaceuticals, rubber, plastic and other non-metallic products",null,":",null,":",null,":",null,":",null,":",null,":",null,":",null,":",null,":",null,":",null,":",null,":"]
["S11_S12","C24","EPS_INV_PP",null,null,null,24,"Manufacture of basic metals",null,":",null,":",null,":",null,":",null,":",null,":",null,":",null,":",null,":",null,":",null,":",null,":"]
["S11_S12","C25-C30","EPS_INV_PP",null,null,null,"25-30","Manufacture of fabricated metal products, including machinery and equipment",null,":",null,":",null,":",null,":",null,":",null,":",null,":",null,":",null,":",null,":",null,":",null,":"]
["S11_S12","C13-C16_C18_C31-C33","EPS_INV_PP",null,null,null,"13-16, 18, 31-33","Other manufacturing activities",null,":",null,":",null,":",null,":",null,":",null,":",null,":",null,":",null,":",null,":",null,":",null,":"]
["S11_S12","C10-C12","EPS_P2",null,"( P2.3bA ) Total intermediate consumption",null,"10-12'","Manufacture of food, beverages and tobacco products",null,":",null,":",null,":",null,":",null,":",null,":",null,":",null,":",null,":",null,":",null,":",null,":"]
["S11_S12","C17","EPS_P2",null,null,null,17,"Manufacture of paper and paper products",null,":",null,":",null,":",null,":",null,":",null,":",null,":",null,":",null,":",null,":",null,":",null,":"]
["S11_S12","C19_C20","EPS_P2",null,null,null,"19-20","Manufacture of coke, chemicals and refined petroleum and chemical products",null,":",null,":",null,":",null,":",null,":",null,":",null,":",null,":",null,":",null,":",null,":",null,":"]
["S11_S12","C21-C23","EPS_P2",null,null,null,"21-23","Manufacture of pharmaceuticals, rubber, plastic and other non-metallic products",null,":",null,":",null,":",null,":",null,":",null,":",null,":",null,":",null,":",null,":",null,":",null,":"]
["S11_S12","C24","EPS_P2",null,null,null,24,"Manufacture of basic metals",null,":",null,":",null,":",null,":",null,":",null,":",null,":",null,":",null,":",null,":",null,":",null,":"]
["S11_S12","C25-C30","EPS_P2",null,null,null,"25-30","Manufacture of fabricated metal products, including machinery and equipment",null,":",null,":",null,":",null,":",null,":",null,":",null,":",null,":",null,":",null,":",null,":",null,":"]
["S11_S12","C13-C16_C18_C31-C33","EPS_P2",null,null,null,"13-16, 18, 31-33","Other manufacturing activities",null,":",null,":",null,":",null,":",null,":",null,":",null,":",null,":",null,":",null,":",null,":",null,":"]
["S11_S12","C10-C12","EPS_P2_EPS",null,"( P2_EPS.3bA ) Intermediate consumption of EP services for ancillary production of EP services ",null,"10-12'","Manufacture of food, beverages and tobacco products",null,":",null,":",null,":",null,":",null,":",null,":",null,":",null,":",null,":",null,":",null,":",null,":"]
["S11_S12","C17","EPS_P2_EPS",null,"(P2_EPS.3x: please consider the explanatory notes - click here)",null,17,"Manufacture of paper and paper products",null,":",null,":",null,":",null,":",null,":",null,":",null,":",null,":",null,":",null,":",null,":",null,":"]
["S11_S12","C19_C20","EPS_P2_EPS",null,null,null,"19-20","Manufacture of coke, chemicals and refined petroleum and chemical products",null,":",null,":",null,":",null,":",null,":",null,":",null,":",null,":",null,":",null,":",null,":",null,":"]
["S11_S12","C21-C23","EPS_P2_EPS",null,null,null,"21-23","Manufacture of pharmaceuticals, rubber, plastic and other non-metallic products",null,":",null,":",null,":",null,":",null,":",null,":",null,":",null,":",null,":",null,":",null,":",null,":"]
["S11_S12","C24","EPS_P2_EPS",null,null,null,24,"Manufacture of basic metals",null,":",null,":",null,":",null,":",null,":",null,":",null,":",null,":",null,":",null,":",null,":",null,":"]
["S11_S12","C25-C30","EPS_P2_EPS",null,null,null,"25-30","Manufacture of fabricated metal products, including machinery and equipment",null,":",null,":",null,":",null,":",null,":",null,":",null,":",null,":",null,":",null,":",null,":",null,":"]
["S11_S12","C13-C16_C18_C31-C33","EPS_P2_EPS",null,null,null,"13-16, 18, 31-33","Other manufacturing activities",null,":",null,":",null,":",null,":",null,":",null,":",null,":",null,":",null,":",null,":",null,":",null,":"]
["S11_S12","C10-C12","EPS_P2_NEPS",null,"( P2_NEPS.3bA ) Intermediate consumption (excluding EP services)",null,"10-12'","Manufacture of food, beverages and tobacco products",null,":",null,":",null,":",null,":",null,":",null,":",null,":",null,":",null,":",null,":",null,":",null,":"]
["S11_S12","C17","EPS_P2_NEPS",null,null,null,17,"Manufacture of paper and paper products",null,":",null,":",null,":",null,":",null,":",null,":",null,":",null,":",null,":",null,":",null,":",null,":"]
["S11_S12","C19_C20","EPS_P2_NEPS",null,null,null,"19-20","Manufacture of coke, chemicals and refined petroleum and chemical products",null,":",null,":",null,":",null,":",null,":",null,":",null,":",null,":",null,":",null,":",null,":",null,":"]
["S11_S12","C21-C23","EPS_P2_NEPS",null,null,null,"21-23","Manufacture of pharmaceuticals, rubber, plastic and other non-metallic products",null,":",null,":",null,":",null,":",null,":",null,":",null,":",null,":",null,":",null,":",null,":",null,":"]
["S11_S12","C24","EPS_P2_NEPS",null,null,null,24,"Manufacture of basic metals",null,":",null,":",null,":",null,":",null,":",null,":",null,":",null,":",null,":",null,":",null,":",null,":"]
["S11_S12","C25-C30","EPS_P2_NEPS",null,null,null,"25-30","Manufacture of fabricated metal products, including machinery and equipment",null,":",null,":",null,":",null,":",null,":",null,":",null,":",null,":",null,":",null,":",null,":",null,":"]
["S11_S12","C13-C16_C18_C31-C33","EPS_P2_NEPS",null,null,null,"13-16, 18, 31-33","Other manufacturing activities",null,":",null,":",null,":",null,":",null,":",null,":",null,":",null,":",null,":",null,":",null,":",null,":"]
["S11_S12","C10-C12","EPS_D1",null,"( D1.3bA ) Compensation of employees",null,"10-12'","Manufacture of food, beverages and tobacco products",null,":",null,":",null,":",null,":",null,":",null,":",null,":",null,":",null,":",null,":",null,":",null,":"]
["S11_S12","C17","EPS_D1",null,null,null,17,"Manufacture of paper and paper products",null,":",null,":",null,":",null,":",null,":",null,":",null,":",null,":",null,":",null,":",null,":",null,":"]
["S11_S12","C19_C20","EPS_D1",null,null,null,"19-20","Manufacture of coke, chemicals and refined petroleum and chemical products",null,":",null,":",null,":",null,":",null,":",null,":",null,":",null,":",null,":",null,":",null,":",null,":"]
["S11_S12","C21-C23","EPS_D1",null,null,null,"21-23","Manufacture of pharmaceuticals, rubber, plastic and other non-metallic products",null,":",null,":",null,":",null,":",null,":",null,":",null,":",null,":",null,":",null,":",null,":",null,":"]
["S11_S12","C24","EPS_D1",null,null,null,24,"Manufacture of basic metals",null,":",null,":",null,":",null,":",null,":",null,":",null,":",null,":",null,":",null,":",null,":",null,":"]
["S11_S12","C25-C30","EPS_D1",null,null,null,"25-30","Manufacture of fabricated metal products, including machinery and equipment",null,":",null,":",null,":",null,":",null,":",null,":",null,":",null,":",null,":",null,":",null,":",null,":"]
["S11_S12","C13-C16_C18_C31-C33","EPS_D1",null,null,null,"13-16, 18, 31-33","Other manufacturing activities",null,":",null,":",null,":",null,":",null,":",null,":",null,":",null,":",null,":",null,":",null,":",null,":"]
["S11_S12","C10-C12","EPS_P1_ANC",null,"( P1_ANC.3bA ) Ancillary EP output (simplified valuation legally acceptable) ((P2_NEPS.3bA) + (D1.3bA))",null,"10-12'","Manufacture of food, beverages and tobacco products",null,":",null,":",null,":",null,":",null,":",null,":",null,":",null,":",null,":",null,":",null,":",null,":"]
["S11_S12","C17","EPS_P1_ANC",null,null,null,17,"Manufacture of paper and paper products",null,":",null,":",null,":",null,":",null,":",null,":",null,":",null,":",null,":",null,":",null,":",null,":"]
["S11_S12","C19_C20","EPS_P1_ANC",null,null,null,"19-20","Manufacture of coke, chemicals and refined petroleum and chemical products",null,":",null,":",null,":",null,":",null,":",null,":",null,":",null,":",null,":",null,":",null,":",null,":"]
["S11_S12","C21-C23","EPS_P1_ANC",null,null,null,"21-23","Manufacture of pharmaceuticals, rubber, plastic and other non-metallic products",null,":",null,":",null,":",null,":",null,":",null,":",null,":",null,":",null,":",null,":",null,":",null,":"]
["S11_S12","C24","EPS_P1_ANC",null,null,null,24,"Manufacture of basic metals",null,":",null,":",null,":",null,":",null,":",null,":",null,":",null,":",null,":",null,":",null,":",null,":"]
["S11_S12","C25-C30","EPS_P1_ANC",null,null,null,"25-30","Manufacture of fabricated metal products, including machinery and equipment",null,":",null,":",null,":",null,":",null,":",null,":",null,":",null,":",null,":",null,":",null,":",null,":"]
["S11_S12","C13-C16_C18_C31-C33","EPS_P1_ANC",null,null,null,"13-16, 18, 31-33","Other manufacturing activities",null,":",null,":",null,":",null,":",null,":",null,":",null,":",null,":",null,":",null,":",null,":",null,":"]
["S11_S12","C10-C12","EPS_D29X39",null,"( D29-D39.3bA ) Other taxes less subsidies on production",null,"10-12'","Manufacture of food, beverages and tobacco products",null,":",null,":",null,":",null,":",null,":",null,":",null,":",null,":",null,":",null,":",null,":",null,":"]
["S11_S12","C17","EPS_D29X39",null,null,null,17,"Manufacture of paper and paper products",null,":",null,":",null,":",null,":",null,":",null,":",null,":",null,":",null,":",null,":",null,":",null,":"]
["S11_S12","C19_C20","EPS_D29X39",null,null,null,"19-20","Manufacture of coke, chemicals and refined petroleum and chemical products",null,":",null,":",null,":",null,":",null,":",null,":",null,":",null,":",null,":",null,":",null,":",null,":"]
["S11_S12","C21-C23","EPS_D29X39",null,null,null,"21-23","Manufacture of pharmaceuticals, rubber, plastic and other non-metallic products",null,":",null,":",null,":",null,":",null,":",null,":",null,":",null,":",null,":",null,":",null,":",null,":"]
["S11_S12","C24","EPS_D29X39",null,null,null,24,"Manufacture of basic metals",null,":",null,":",null,":",null,":",null,":",null,":",null,":",null,":",null,":",null,":",null,":",null,":"]
["S11_S12","C25-C30","EPS_D29X39",null,null,null,"25-30","Manufacture of fabricated metal products, including machinery and equipment",null,":",null,":",null,":",null,":",null,":",null,":",null,":",null,":",null,":",null,":",null,":",null,":"]
["S11_S12","C13-C16_C18_C31-C33","EPS_D29X39",null,null,null,"13-16, 18, 31-33","Other manufacturing activities",null,":",null,":",null,":",null,":",null,":",null,":",null,":",null,":",null,":",null,":",null,":",null,":"]
["S11_S12","C10-C12","EPS_P51C",null,"( P51C.3bA ) Consumption of fixed capital",null,"10-12'","Manufacture of food, beverages and tobacco products",null,":",null,":",null,":",null,":",null,":",null,":",null,":",null,":",null,":",null,":",null,":",null,":"]
["S11_S12","C17","EPS_P51C",null,null,null,17,"Manufacture of paper and paper products",null,":",null,":",null,":",null,":",null,":",null,":",null,":",null,":",null,":",null,":",null,":",null,":"]
["S11_S12","C19_C20","EPS_P51C",null,null,null,"19-20","Manufacture of coke, chemicals and refined petroleum and chemical products",null,":",null,":",null,":",null,":",null,":",null,":",null,":",null,":",null,":",null,":",null,":",null,{"$f":"IF(COUNT(J72,N72,P72,R72,T72,V72,AD72)=7,SUM(J72,N72,P72,R72,T72,V72,AD72),\":\")","v":":"}]
["S11_S12","C21-C23","EPS_P51C",null,null,null,"21-23","Manufacture of pharmaceuticals, rubber, plastic and other non-metallic products",null,":",null,":",null,":",null,":",null,":",null,":",null,":",null,":",null,":",null,":",null,":",null,":"]
["S11_S12","C24","EPS_P51C",null,null,null,24,"Manufacture of basic metals",null,":",null,":",null,":",null,":",null,":",null,":",null,":",null,":",null,":",null,":",null,":",null,":"]
["S11_S12","C25-C30","EPS_P51C",null,null,null,"25-30","Manufacture of fabricated metal products, including machinery and equipment",null,":",null,":",null,":",null,":",null,":",null,":",null,":",null,":",null,":",null,":",null,":",null,":"]
["S11_S12","C13-C16_C18_C31-C33","EPS_P51C",null,null,null,"13-16, 18, 31-33","Other manufacturing activities",null,":",null,":",null,":",null,":",null,":",null,":",null,":",null,":",null,":",null,":",null,":",null,":"]
["S11_S12","C10-C12","EPS_P1_ANCESA",null,"( P1_ANC_ESA.3bA ) Ancillary EP output (ESA - compatible valuation) ((P2_NEPS.3bA) + (D1.3bA) +(P51C.3bA) + (D29-D39.3bA))",null,"10-12'","Manufacture of food, beverages and tobacco products",null,":",null,":",null,":",null,":",null,":",null,":",null,":",null,":",null,":",null,":",null,":",null,":"]
["S11_S12","C17","EPS_P1_ANCESA",null,null,null,17,"Manufacture of paper and paper products",null,":",null,":",null,":",null,":",null,":",null,":",null,":",null,":",null,":",null,":",null,":",null,":"]
["S11_S12","C19_C20","EPS_P1_ANCESA",null,null,null,"19-20","Manufacture of coke, chemicals and refined petroleum and chemical products",null,":",null,":",null,":",null,":",null,":",null,":",null,":",null,":",null,":",null,":",null,":",null,":"]
["S11_S12","C21-C23","EPS_P1_ANCESA",null,null,null,"21-23","Manufacture of pharmaceuticals, rubber, plastic and other non-metallic products",null,":",null,":",null,":",null,":",null,":",null,":",null,":",null,":",null,":",null,":",null,":",null,":"]
["S11_S12","C24","EPS_P1_ANCESA",null,null,null,24,"Manufacture of basic metals",null,":",null,":",null,":",null,":",null,":",null,":",null,":",null,":",null,":",null,":",null,":",null,":"]
["S11_S12","C25-C30","EPS_P1_ANCESA",null,null,null,"25-30","Manufacture of fabricated metal products, including machinery and equipment",null,":",null,":",null,":",null,":",null,":",null,":",null,":",null,":",null,":",null,":",null,":",null,":"]
["S11_S12","C13-C16_C18_C31-C33","EPS_P1_ANCESA",null,null,null,"13-16, 18, 31-33","Other manufacturing activities",null,":",null,":",null,":",null,":",null,":",null,":",null,":",null,":",null,":",null,":",null,":",null,":"]
["S11_S12","C10-C12","EPS_REC_BYPR",null,"( RNO.3bA ) Related non-EP output",null,"10-12'","Manufacture of food, beverages and tobacco products",null,":",null,":",null,":",null,":",null,":",null,":",null,":",null,":",null,":",null,":",null,":",null,":"]
["S11_S12","C17","EPS_REC_BYPR",null,null,null,17,"Manufacture of paper and paper products",null,":",null,":",null,":",null,":",null,":",null,":",null,":",null,":",null,":",null,":",null,":",null,":"]
["S11_S12","C19_C20","EPS_REC_BYPR",null,null,null,"19-20","Manufacture of coke, chemicals and refined petroleum and chemical products",null,":",null,":",null,":",null,":",null,":",null,":",null,":",null,":",null,":",null,":",null,":",null,":"]
["S11_S12","C21-C23","EPS_REC_BYPR",null,null,null,"21-23","Manufacture of pharmaceuticals, rubber, plastic and other non-metallic products",null,":",null,":",null,":",null,":",null,":",null,":",null,":",null,":",null,":",null,":",null,":",null,":"]
["S11_S12","C24","EPS_REC_BYPR",null,null,null,24,"Manufacture of basic metals",null,":",null,":",null,":",null,":",null,":",null,":",null,":",null,":",null,":",null,":",null,":",null,":"]
["S11_S12","C25-C30","EPS_REC_BYPR",null,null,null,"25-30","Manufacture of fabricated metal products, including machinery and equipment",null,":",null,":",null,":",null,":",null,":",null,":",null,":",null,":",null,":",null,":",null,":",null,":"]
["S11_S12","C13-C16_C18_C31-C33","EPS_REC_BYPR",null,null,null,"13-16, 18, 31-33","Other manufacturing activities",null,":",null,":",null,":",null,":",null,":",null,":",null,":",null,":",null,":",null,":",null,":",null,":"]
["S11_S12","C10-C12","TOT_P2_EPS","Transactions as users of EP services (ancillary production of EP services and other production)","( P2_EPS_EXT.3bA ) Total intermediate consumption of EP services (for production of EP services and for other production)",null,"10-12'","Manufacture of food, beverages and tobacco products",null,":",null,":",null,":",null,":",null,":",null,":",null,":",null,":",null,":",null,":",null,":",null,":"]
["S11_S12","C17","TOT_P2_EPS",null,"(P2_EPS_EXT.3x: please consider the explanatory notes - click here)",null,17,"Manufacture of paper and paper products",null,":",null,":",null,":",null,":",null,":",null,":",null,":",null,":",null,":",null,":",null,":",null,":"]
["S11_S12","C19_C20","TOT_P2_EPS",null,null,null,"19-20","Manufacture of coke, chemicals and refined petroleum and chemical products",null,":",null,":",null,":",null,":",null,":",null,":",null,":",null,":",null,":",null,":",null,":",null,":"]
["S11_S12","C21-C23","TOT_P2_EPS",null,null,null,"21-23","Manufacture of pharmaceuticals, rubber, plastic and other non-metallic products",null,":",null,":",null,":",null,":",null,":",null,":",null,":",null,":",null,":",null,":",null,":",null,":"]
["S11_S12","C24","TOT_P2_EPS",null,null,null,24,"Manufacture of basic metals",null,":",null,":",null,":",null,":",null,":",null,":",null,":",null,":",null,":",null,":",null,":",null,":"]
["S11_S12","C25-C30","TOT_P2_EPS",null,null,null,"25-30","Manufacture of fabricated metal products, including machinery and equipment",null,":",null,":",null,":",null,":",null,":",null,":",null,":",null,":",null,":",null,":",null,":",null,":"]
["S11_S12","C13-C16_C18_C31-C33","TOT_P2_EPS",null,null,null,"13-16, 18, 31-33","Other manufacturing activities",null,":",null,":",null,":",null,":",null,":",null,":",null,":",null,":",null,":",null,":",null,":",null,":"]
["S11_S12","C10-C12","EPS_EMP","Transactions of producers of ancillary EP services","( EMP.3bA ) Employment (full time equivalent)",null,"10-12'","Manufacture of food, beverages and tobacco products",null,":",null,":",null,":",null,":",null,":",null,":",null,":",null,":",null,":",null,":",null,":",null,":"]
["S11_S12","C17","EPS_EMP",null,null,null,17,"Manufacture of paper and paper products",null,":",null,":",null,":",null,":",null,":",null,":",null,":",null,":",null,":",null,":",null,":",null,":"]
["S11_S12","C19_C20","EPS_EMP",null,null,null,"19-20","Manufacture of coke, chemicals and refined petroleum and chemical products",null,":",null,":",null,":",null,":",null,":",null,":",null,":",null,":",null,":",null,":",null,":",null,":"]
["S11_S12","C21-C23","EPS_EMP",null,null,null,"21-23","Manufacture of pharmaceuticals, rubber, plastic and other non-metallic products",null,":",null,":",null,":",null,":",null,":",null,":",null,":",null,":",null,":",null,":",null,":",null,":"]
["S11_S12","C24","EPS_EMP",null,null,null,24,"Manufacture of basic metals",null,":",null,":",null,":",null,":",null,":",null,":",null,":",null,":",null,":",null,":",null,":",null,":"]
["S11_S12","C25-C30","EPS_EMP",null,null,null,"25-30","Manufacture of fabricated metal products, including machinery and equipment",null,":",null,":",null,":",null,":",null,":",null,":",null,":",null,":",null,":",null,":",null,":",null,":"]
["S11_S12","C13-C16_C18_C31-C33","EPS_EMP",null,null,null,"13-16, 18, 31-33","Other manufacturing activities",null,":",null,":",null,":",null,":",null,":",null,":",null,":",null,":",null,":",null,":",null,":",null,{"$f":"IF(COUNT(J104,N104,P104,R104,T104,V104,AD104)=7,SUM(J104,N104,P104,R104,T104,V104,AD104),\":\")","v":":"}]

{"sheet":"3b_Add_2019","index":21,"n_rows":104,"n_cols":32,"rows_kept":104,"cut":false,"hidden":false,"merged":[[102,7,102,8],[103,7,103,8],[94,7,94,8],[95,7,95,8],[96,7,96,8],[97,3,103,3],[97,4,97,5],[97,7,97,8],[98,7,98,8],[99,7,99,8],[100,7,100,8],[101,7,101,8],[86,7,86,8],[87,7,87,8],[88,7,88,8],[89,7,89,8],[90,3,96,3],[90,4,90,5],[90,7,90,8],[91,7,91,8],[92,7,92,8],[93,7,93,8],[6,3,89,3],[6,4,6,5],[6,7,6,8],[7,7,7,8],[8,7,8,8],[9,7,9,8],[10,7,10,8],[11,7,11,8],[35,4,35,5],[91,4,91,5],[81,7,81,8],[82,7,82,8],[83,4,83,5],[83,7,83,8],[84,7,84,8],[85,7,85,8],[76,4,76,5],[76,7,76,8],[77,7,77,8],[78,7,78,8],[79,7,79,8],[80,7,80,8],[70,7,70,8],[71,7,71,8],[72,7,72,8],[73,7,73,8],[74,7,74,8],[75,7,75,8],[65,7,65,8],[66,7,66,8],[67,7,67,8],[68,7,68,8],[69,4,69,5],[69,7,69,8],[60,7,60,8],[61,7,61,8],[62,4,62,5],[62,7,62,8],[63,7,63,8],[64,7,64,8],[55,4,55,5],[55,7,55,8],[56,7,56,8],[57,7,57,8],[58,7,58,8],[59,7,59,8],[49,7,49,8],[50,7,50,8],[51,7,51,8],[52,7,52,8],[53,7,53,8],[54,7,54,8],[44,7,44,8],[45,7,45,8],[46,7,46,8],[47,7,47,8],[48,4,48,5],[48,7,48,8],[39,7,39,8],[40,7,40,8],[41,4,41,5],[41,7,41,8],[42,7,42,8],[43,7,43,8],[34,4,34,5],[34,7,34,8],[35,7,35,8],[36,7,36,8],[37,7,37,8],[38,7,38,8],[29,7,29,8],[30,7,30,8],[31,7,31,8],[32,7,32,8],[33,7,33,8],[22,7,22,8],[23,7,23,8],[24,7,24,8],[25,7,25,8],[26,7,26,8],[28,7,28,8],[27,4,27,5],[27,7,27,8],[17,7,17,8],[18,7,18,8],[19,7,19,8],[20,4,20,5],[20,7,20,8],[21,7,21,8],[12,7,12,8],[13,4,13,5],[13,7,13,8],[14,7,14,8],[15,7,15,8],[16,7,16,8],[0,4,0,8],[0,9,0,16],[1,4,1,8],[1,9,1,32],[2,9,2,32],[3,9,4,10],[3,11,4,12],[3,13,4,14],[3,15,4,16],[3,17,4,18],[3,31,4,32],[4,4,4,5],[3,21,4,22],[3,23,4,24],[3,25,4,26],[3,27,4,28],[3,29,4,30],[3,19,4,20]]}
[null,null,null,null,{"$f":"Cover!$B$21","v":"QUESTIONNAIRE ON ENVIRONMENTAL PROTECTION EXPENDITURE ACCOUNTS"},null,null,null,null,"Table 3b Add.: Detailed Manufacturing Industries"]
[null,null,null,null,{"$f":"E1","v":"QUESTIONNAIRE ON ENVIRONMENTAL PROTECTION EXPENDITURE ACCOUNTS"},null,null,null,null,{"$f":"J1 & \" - \" & I5","v":"Table 3b Add.: Detailed Manufacturing Industries - 2019"}]
[null,null,null,null,null,null,null,null,null,"Mandatory and voluntary variables and environmental domains - please fill in as much as possible"]
[null,null,null,null,"Country/Unit",{"$f":"IFERROR(Cover!C16,\"\")","v":""},{"$f":"\"\"&Cover!B16","v":""},null,{"$f":"Cover!B17","v":"Million units of national currency"},"CEPA 1",null,"of which CEPA 1.1.2 and 1.2.2 Climate change",null,"CEPA 2",null,"CEPA 3",null,"CEPA 4",null,"CEPA 5",null,"CEPA 6",null,"CEPA 7",null,"CEPA 8",null,"CEPA 9",null,"Sum of CEPA 7+8+9",null,"TOTAL"]
[null,null,null,null,"Expenditure",null,null,"YEAR",2019,null,null,null,null,null,null,null,null,null,null,null,null,null,null,null,null,null,null,null,null,null,null,"Landscape"]
[null,null,null,null,null,null,null,null,null,"CEPA1",null,"CEPA112_122",null,"CEPA2",null,"CEPA3",null,"CEPA4",null,"CEPA5",null,"CEPA6",null,"CEPA7",null,"CEPA8",null,"CEPA9",null,"CEPA7-9",null,"TOT_CEPA"]
["S11_S12","C10-C12","EPS_P51G_NP","Transactions of producers of ancillary EP services","( P51G_NP.3bA ) Gross fixed capital formation and acquisition less disposals of non-financial, non-produced assets",null,"10-12","Manufacture of food, beverages and tobacco products",null,":",null,":",null,":",null,":",null,":",null,":",null,":",null,":",null,":",null,":",null,":",null,{"$f":"IF(COUNT(J7,N7,P7,R7,T7,V7,AD7)=7,SUM(J7,N7,P7,R7,T7,V7,AD7),\":\")","v":":"}]
["S11_S12","C17","EPS_P51G_NP",null,null,null,17,"Manufacture of paper and paper products",null,":",null,":",null,":",null,":",null,":",null,":",null,":",null,":",null,":",null,":",null,":",null,{"$f":"IF(COUNT(J8,N8,P8,R8,T8,V8,AD8)=7,SUM(J8,N8,P8,R8,T8,V8,AD8),\":\")","v":":"}]
["S11_S12","C19_C20","EPS_P51G_NP",null,null,null,"19-20","Manufacture of coke, chemicals and refined petroleum and chemical products",null,":",null,":",null,":",null,":",null,":",null,":",null,":",null,":",null,":",null,":",null,":",null,":"]
["S11_S12","C21-C23","EPS_P51G_NP",null,null,null,"21-23","Manufacture of pharmaceuticals, rubber, plastic and other non-metallic products",null,":",null,":",null,":",null,":",null,":",null,":",null,":",null,":",null,":",null,":",null,":",null,":"]
["S11_S12","C24","EPS_P51G_NP",null,null,null,24,"Manufacture of basic metals",null,":",null,":",null,":",null,":",null,":",null,":",null,":",null,":",null,":",null,":",null,":",null,":"]
["S11_S12","C25-C30","EPS_P51G_NP",null,null,null,"25-30","Manufacture of fabricated metal products, including machinery and equipment",null,":",null,":",null,":",null,":",null,":",null,":",null,":",null,":",null,":",null,":",null,":",null,":"]
["S11_S12","C13-C16_C18_C31-C33","EPS_P51G_NP",null,null,null,"13-16, 18, 31-33","Other manufacturing activities",null,":",null,":",null,":",null,":",null,":",null,":",null,":",null,":",null,":",null,":",null,":",null,":"]
["S11_S12","C10-C12","EPS_INV_PT",null,"( INV_EOP.3bA ) GFCF on specific EP fixed assets (end-of-pipe technologies)",null,"10-12'","Manufacture of food, beverages and tobacco products",null,":",null,":",null,":",null,":",null,":",null,":",null,":",null,":",null,":",null,":",null,":",null,":"]
["S11_S12","C17","EPS_INV_PT",null,null,null,17,"Manufacture of paper and paper products",null,":",null,":",null,":",null,":",null,":",null,":",null,":",null,":",null,":",null,":",null,":",null,":"]
["S11_S12","C19_C20","EPS_INV_PT",null,null,null,"19-20","Manufacture of coke, chemicals and refined petroleum and chemical products",null,":",null,":",null,":",null,":",null,":",null,":",null,":",null,":",null,":",null,":",null,":",null,":"]
["S11_S12","C21-C23","EPS_INV_PT",null,null,null,"21-23","Manufacture of pharmaceuticals, rubber, plastic and other non-metallic products",null,":",null,":",null,":",null,":",null,":",null,":",null,":",null,":",null,":",null,":",null,":",null,":"]
["S11_S12","C24","EPS_INV_PT",null,null,null,24,"Manufacture of basic metals",null,":",null,":",null,":",null,":",null,":",null,":",null,":",null,":",null,":",null,":",null,":",null,":"]
["S11_S12","C25-C30","EPS_INV_PT",null,null,null,"25-30","Manufacture of fabricated metal products, including machinery and equipment",null,":",null,":",null,":",null,":",null,":",null,":",null,":",null,":",null,":",null,":",null,":",null,":"]
["S11_S12","C13-C16_C18_C31-C33","EPS_INV_PT",null,null,null,"13-16, 18, 31-33","Other manufacturing activities",null,":",null,":",null,":",null,":",null,":",null,":",null,":",null,":",null,":",null,":",null,":",null,":"]
["S11_S12","C10-C12","EPS_INV_PP",null,"( INV_IT.3bA ) GFCF on cleaner EP fixed assets (integrated technologies)",null,"10-12'","Manufacture of food, beverages and tobacco products",null,":",null,":",null,":",null,":",null,":",null,":",null,":",null,":",null,":",null,":",null,":",null,":"]
["S11_S12","C17","EPS_INV_PP",null,null,null,17,"Manufacture of paper and paper products",null,":",null,":",null,":",null,":",null,":",null,":",null,":",null,":",null,":",null,":",null,":",null,":"]
["S11_S12","C19_C20","EPS_INV_PP",null,null,null,"19-20","Manufacture of coke, chemicals and refined petroleum and chemical products",null,":",null,":",null,":",null,":",null,":",null,":",null,":",null,":",null,":",null,":",null,":",null,":"]
["S11_S12","C21-C23","EPS_INV_PP",null,null,null,"21-23","Manufacture of pharmaceuticals, rubber, plastic and other non-metallic products",null,":",null,":",null,":",null,":",null,":",null,":",null,":",null,":",null,":",null,":",null,":",null,":"]
["S11_S12","C24","EPS_INV_PP",null,null,null,24,"Manufacture of basic metals",null,":",null,":",null,":",null,":",null,":",null,":",null,":",null,":",null,":",null,":",null,":",null,":"]
["S11_S12","C25-C30","EPS_INV_PP",null,null,null,"25-30","Manufacture of fabricated metal products, including machinery and equipment",null,":",null,":",null,":",null,":",null,":",null,":",null,":",null,":",null,":",null,":",null,":",null,":"]
["S11_S12","C13-C16_C18_C31-C33","EPS_INV_PP",null,null,null,"13-16, 18, 31-33","Other manufacturing activities",null,":",null,":",null,":",null,":",null,":",null,":",null,":",null,":",null,":",null,":",null,":",null,":"]
["S11_S12","C10-C12","EPS_P2",null,"( P2.3bA ) Total intermediate consumption",null,"10-12'","Manufacture of food, beverages and tobacco products",null,":",null,":",null,":",null,":",null,":",null,":",null,":",null,":",null,":",null,":",null,":",null,":"]
["S11_S12","C17","EPS_P2",null,null,null,17,"Manufacture of paper and paper products",null,":",null,":",null,":",null,":",null,":",null,":",null,":",null,":",null,":",null,":",null,":",null,":"]
["S11_S12","C19_C20","EPS_P2",null,null,null,"19-20","Manufacture of coke, chemicals and refined petroleum and chemical products",null,":",null,":",null,":",null,":",null,":",null,":",null,":",null,":",null,":",null,":",null,":",null,":"]
["S11_S12","C21-C23","EPS_P2",null,null,null,"21-23","Manufacture of pharmaceuticals, rubber, plastic and other non-metallic products",null,":",null,":",null,":",null,":",null,":",null,":",null,":",null,":",null,":",null,":",null,":",null,":"]
["S11_S12","C24","EPS_P2",null,null,null,24,"Manufacture of basic metals",null,":",null,":",null,":",null,":",null,":",null,":",null,":",null,":",null,":",null,":",null,":",null,":"]
["S11_S12","C25-C30","EPS_P2",null,null,null,"25-30","Manufacture of fabricated metal products, including machinery and equipment",null,":",null,":",null,":",null,":",null,":",null,":",null,":",null,":",null,":",null,":",null,":",null,":"]
["S11_S12","C13-C16_C18_C31-C33","EPS_P2",null,null,null,"13-16, 18, 31-33","Other manufacturing activities",null,":",null,":",null,":",null,":",null,":",null,":",null,":",null,":",null,":",null,":",null,":",null,":"]
["S11_S12","C10-C12","EPS_P2_EPS",null,"( P2_EPS.3bA )  Intermediate consumption of EP services for ancillary production of EP services ",null,"10-12'","Manufacture of food, beverages and tobacco products",null,":",null,":",null,":",null,":",null,":",null,":",null,":",null,":",null,":",null,":",null,":",null,":"]
["S11_S12","C17","EPS_P2_EPS",null,"(P2_EPS.3x: please consider the explanatory notes - click here)",null,17,"Manufacture of paper and paper products",null,":",null,":",null,":",null,":",null,":",null,":",null,":",null,":",null,":",null,":",null,":",null,":"]
["S11_S12","C19_C20","EPS_P2_EPS",null,null,null,"19-20","Manufacture of coke, chemicals and refined petroleum and chemical products",null,":",null,":",null,":",null,":",null,":",null,":",null,":",null,":",null,":",null,":",null,":",null,":"]
["S11_S12","C21-C23","EPS_P2_EPS",null,null,null,"21-23","Manufacture of pharmaceuticals, rubber, plastic and other non-metallic products",null,":",null,":",null,":",null,":",null,":",null,":",null,":",null,":",null,":",null,":",null,":",null,":"]
["S11_S12","C24","EPS_P2_EPS",null,null,null,24,"Manufacture of basic metals",null,":",null,":",null,":",null,":",null,":",null,":",null,":",null,":",null,":",null,":",null,":",null,":"]
["S11_S12","C25-C30","EPS_P2_EPS",null,null,null,"25-30","Manufacture of fabricated metal products, including machinery and equipment",null,":",null,":",null,":",null,":",null,":",null,":",null,":",null,":",null,":",null,":",null,":",null,":"]
["S11_S12","C13-C16_C18_C31-C33","EPS_P2_EPS",null,null,null,"13-16, 18, 31-33","Other manufacturing activities",null,":",null,":",null,":",null,":",null,":",null,":",null,":",null,":",null,":",null,":",null,":",null,":"]
["S11_S12","C10-C12","EPS_P2_NEPS",null,"( P2_NEPS.3bA ) Intermediate consumption (excluding EP services)",null,"10-12'","Manufacture of food, beverages and tobacco products",null,":",null,":",null,":",null,":",null,":",null,":",null,":",null,":",null,":",null,":",null,":",null,":"]
["S11_S12","C17","EPS_P2_NEPS",null,null,null,17,"Manufacture of paper and paper products",null,":",null,":",null,":",null,":",null,":",null,":",null,":",null,":",null,":",null,":",null,":",null,":"]
["S11_S12","C19_C20","EPS_P2_NEPS",null,null,null,"19-20","Manufacture of coke, chemicals and refined petroleum and chemical products",null,":",null,":",null,":",null,":",null,":",null,":",null,":",null,":",null,":",null,":",null,":",null,":"]
["S11_S12","C21-C23","EPS_P2_NEPS",null,null,null,"21-23","Manufacture of pharmaceuticals, rubber, plastic and other non-metallic products",null,":",null,":",null,":",null,":",null,":",null,":",null,":",null,":",null,":",null,":",null,":",null,":"]
["S11_S12","C24","EPS_P2_NEPS",null,null,null,24,"Manufacture of basic metals",null,":",null,":",null,":",null,":",null,":",null,":",null,":",null,":",null,":",null,":",null,":",null,":"]
["S11_S12","C25-C30","EPS_P2_NEPS",null,null,null,"25-30","Manufacture of fabricated metal products, including machinery and equipment",null,":",null,":",null,":",null,":",null,":",null,":",null,":",null,":",null,":",null,":",null,":",null,":"]
["S11_S12","C13-C16_C18_C31-C33","EPS_P2_NEPS",null,null,null,"13-16, 18, 31-33","Other manufacturing activities",null,":",null,":",null,":",null,":",null,":",null,":",null,":",null,":",null,":",null,":",null,":",null,":"]
["S11_S12","C10-C12","EPS_D1",null,"( D1.3bA ) Compensation of employees",null,"10-12'","Manufacture of food, beverages and tobacco products",null,":",null,":",null,":",null,":",null,":",null,":",null,":",null,":",null,":",null,":",null,":",null,":"]
["S11_S12","C17","EPS_D1",null,null,null,17,"Manufacture of paper and paper products",null,":",null,":",null,":",null,":",null,":",null,":",null,":",null,":",null,":",null,":",null,":",null,":"]
["S11_S12","C19_C20","EPS_D1",null,null,null,"19-20","Manufacture of coke, chemicals and refined petroleum and chemical products",null,":",null,":",null,":",null,":",null,":",null,":",null,":",null,":",null,":",null,":",null,":",null,":"]
["S11_S12","C21-C23","EPS_D1",null,null,null,"21-23","Manufacture of pharmaceuticals, rubber, plastic and other non-metallic products",null,":",null,":",null,":",null,":",null,":",null,":",null,":",null,":",null,":",null,":",null,":",null,":"]
["S11_S12","C24","EPS_D1",null,null,null,24,"Manufacture of basic metals",null,":",null,":",null,":",null,":",null,":",null,":",null,":",null,":",null,":",null,":",null,":",null,":"]
["S11_S12","C25-C30","EPS_D1",null,null,null,"25-30","Manufacture of fabricated metal products, including machinery and equipment",null,":",null,":",null,":",null,":",null,":",null,":",null,":",null,":",null,":",null,":",null,":",null,":"]
["S11_S12","C13-C16_C18_C31-C33","EPS_D1",null,null,null,"13-16, 18, 31-33","Other manufacturing activities",null,":",null,":",null,":",null,":",null,":",null,":",null,":",null,":",null,":",null,":",null,":",null,":"]
["S11_S12","C10-C12","EPS_P1_ANC",null,"( P1_ANC.3bA ) Ancillary EP output (simplified valuation legally acceptable) ((P2_NEPS.3bA) + (D1.3bA))",null,"10-12'","Manufacture of food, beverages and tobacco products",null,":",null,":",null,":",null,":",null,":",null,":",null,":",null,":",null,":",null,":",null,":",null,":"]
["S11_S12","C17","EPS_P1_ANC",null,null,null,17,"Manufacture of paper and paper products",null,":",null,":",null,":",null,":",null,":",null,":",null,":",null,":",null,":",null,":",null,":",null,":"]
["S11_S12","C19_C20","EPS_P1_ANC",null,null,null,"19-20","Manufacture of coke, chemicals and refined petroleum and chemical products",null,":",null,":",null,":",null,":",null,":",null,":",null,":",null,":",null,":",null,":",null,":",null,":"]
["S11_S12","C21-C23","EPS_P1_ANC",null,null,null,"21-23","Manufacture of pharmaceuticals, rubber, plastic and other non-metallic products",null,":",null,":",null,":",null,":",null,":",null,":",null,":",null,":",null,":",null,":",null,":",null,":"]
["S11_S12","C24","EPS_P1_ANC",null,null,null,24,"Manufacture of basic metals",null,":",null,":",null,":",null,":",null,":",null,":",null,":",null,":",null,":",null,":",null,":",null,":"]
["S11_S12","C25-C30","EPS_P1_ANC",null,null,null,"25-30","Manufacture of fabricated metal products, including machinery and equipment",null,":",null,":",null,":",null,":",null,":",null,":",null,":",null,":",null,":",null,":",null,":",null,":"]
["S11_S12","C13-C16_C18_C31-C33","EPS_P1_ANC",null,null,null,"13-16, 18, 31-33","Other manufacturing activities",null,":",null,":",null,":",null,":",null,":",null,":",null,":",null,":",null,":",null,":",null,":",null,":"]
["S11_S12","C10-C12","EPS_D29X39",null,"( D29-D39.3bA ) Other taxes less subsidies on production",null,"10-12'","Manufacture of food, beverages and tobacco products",null,":",null,":",null,":",null,":",null,":",null,":",null,":",null,":",null,":",null,":",null,":",null,":"]
["S11_S12","C17","EPS_D29X39",null,null,null,17,"Manufacture of paper and paper products",null,":",null,":",null,":",null,":",null,":",null,":",null,":",null,":",null,":",null,":",null,":",null,":"]
["S11_S12","C19_C20","EPS_D29X39",null,null,null,"19-20","Manufacture of coke, chemicals and refined petroleum and chemical products",null,":",null,":",null,":",null,":",null,":",null,":",null,":",null,":",null,":",null,":",null,":",null,":"]
["S11_S12","C21-C23","EPS_D29X39",null,null,null,"21-23","Manufacture of pharmaceuticals, rubber, plastic and other non-metallic products",null,":",null,":",null,":",null,":",null,":",null,":",null,":",null,":",null,":",null,":",null,":",null,":"]
["S11_S12","C24","EPS_D29X39",null,null,null,24,"Manufacture of basic metals",null,":",null,":",null,":",null,":",null,":",null,":",null,":",null,":",null,":",null,":",null,":",null,":"]
["S11_S12","C25-C30","EPS_D29X39",null,null,null,"25-30","Manufacture of fabricated metal products, including machinery and equipment",null,":",null,":",null,":",null,":",null,":",null,":",null,":",null,":",null,":",null,":",null,":",null,":"]
["S11_S12","C13-C16_C18_C31-C33","EPS_D29X39",null,null,null,"13-16, 18, 31-33","Other manufacturing activities",null,":",null,":",null,":",null,":",null,":",null,":",null,":",null,":",null,":",null,":",null,":",null,":"]
["S11_S12","C10-C12","EPS_P51C",null,"( P51C.3bA ) Consumption of fixed capital",null,"10-12'","Manufacture of food, beverages and tobacco products",null,":",null,":",null,":",null,":",null,":",null,":",null,":",null,":",null,":",null,":",null,":",null,":"]
["S11_S12","C17","EPS_P51C",null,null,null,17,"Manufacture of paper and paper products",null,":",null,":",null,":",null,":",null,":",null,":",null,":",null,":",null,":",null,":",null,":",null,":"]
["S11_S12","C19_C20","EPS_P51C",null,null,null,"19-20","Manufacture of coke, chemicals and refined petroleum and chemical products",null,":",null,":",null,":",null,":",null,":",null,":",null,":",null,":",null,":",null,":",null,":",null,{"$f":"IF(COUNT(J72,N72,P72,R72,T72,V72,AD72)=7,SUM(J72,N72,P72,R72,T72,V72,AD72),\":\")","v":":"}]
["S11_S12","C21-C23","EPS_P51C",null,null,null,"21-23","Manufacture of pharmaceuticals, rubber, plastic and other non-metallic products",null,":",null,":",null,":",null,":",null,":",null,":",null,":",null,":",null,":",null,":",null,":",null,":"]
["S11_S12","C24","EPS_P51C",null,null,null,24,"Manufacture of basic metals",null,":",null,":",null,":",null,":",null,":",null,":",null,":",null,":",null,":",null,":",null,":",null,":"]
["S11_S12","C25-C30","EPS_P51C",null,null,null,"25-30","Manufacture of fabricated metal products, including machinery and equipment",null,":",null,":",null,":",null,":",null,":",null,":",null,":",null,":",null,":",null,":",null,":",null,":"]
["S11_S12","C13-C16_C18_C31-C33","EPS_P51C",null,null,null,"13-16, 18, 31-33","Other manufacturing activities",null,":",null,":",null,":",null,":",null,":",null,":",null,":",null,":",null,":",null,":",null,":",null,":"]
["S11_S12","C10-C12","EPS_P1_ANCESA",null,"( P1_ANC_ESA.3bA ) Ancillary EP output (ESA - compatible valuation) ((P2_NEPS.3bA) + (D1.3bA) +(P51C.3bA) + (D29-D39.3bA))",null,"10-12'","Manufacture of food, beverages and tobacco products",null,":",null,":",null,":",null,":",null,":",null,":",null,":",null,":",null,":",null,":",null,":",null,":"]
["S11_S12","C17","EPS_P1_ANCESA",null,null,null,17,"Manufacture of paper and paper products",null,":",null,":",null,":",null,":",null,":",null,":",null,":",null,":",null,":",null,":",null,":",null,":"]
["S11_S12","C19_C20","EPS_P1_ANCESA",null,null,null,"19-20","Manufacture of coke, chemicals and refined petroleum and chemical products",null,":",null,":",null,":",null,":",null,":",null,":",null,":",null,":",null,":",null,":",null,":",null,":"]
["S11_S12","C21-C23","EPS_P1_ANCESA",null,null,null,"21-23","Manufacture of pharmaceuticals, rubber, plastic and other non-metallic products",null,":",null,":",null,":",null,":",null,":",null,":",null,":",null,":",null,":",null,":",null,":",null,":"]
["S11_S12","C24","EPS_P1_ANCESA",null,null,null,24,"Manufacture of basic metals",null,":",null,":",null,":",null,":",null,":",null,":",null,":",null,":",null,":",null,":",null,":",null,":"]
["S11_S12","C25-C30","EPS_P1_ANCESA",null,null,null,"25-30","Manufacture of fabricated metal products, including machinery and equipment",null,":",null,":",null,":",null,":",null,":",null,":",null,":",null,":",null,":",null,":",null,":",null,":"]
["S11_S12","C13-C16_C18_C31-C33","EPS_P1_ANCESA",null,null,null,"13-16, 18, 31-33","Other manufacturing activities",null,":",null,":",null,":",null,":",null,":",null,":",null,":",null,":",null,":",null,":",null,":",null,":"]
["S11_S12","C10-C12","EPS_REC_BYPR",null,"( RNO.3bA ) Related non-EP output",null,"10-12'","Manufacture of food, beverages and tobacco products",null,":",null,":",null,":",null,":",null,":",null,":",null,":",null,":",null,":",null,":",null,":",null,":"]
["S11_S12","C17","EPS_REC_BYPR",null,null,null,17,"Manufacture of paper and paper products",null,":",null,":",null,":",null,":",null,":",null,":",null,":",null,":",null,":",null,":",null,":",null,":"]
["S11_S12","C19_C20","EPS_REC_BYPR",null,null,null,"19-20","Manufacture of coke, chemicals and refined petroleum and chemical products",null,":",null,":",null,":",null,":",null,":",null,":",null,":",null,":",null,":",null,":",null,":",null,":"]
["S11_S12","C21-C23","EPS_REC_BYPR",null,null,null,"21-23","Manufacture of pharmaceuticals, rubber, plastic and other non-metallic products",null,":",null,":",null,":",null,":",null,":",null,":",null,":",null,":",null,":",null,":",null,":",null,":"]
["S11_S12","C24","EPS_REC_BYPR",null,null,null,24,"Manufacture of basic metals",null,":",null,":",null,":",null,":",null,":",null,":",null,":",null,":",null,":",null,":",null,":",null,":"]
["S11_S12","C25-C30","EPS_REC_BYPR",null,null,null,"25-30","Manufacture of fabricated metal products, including machinery and equipment",null,":",null,":",null,":",null,":",null,":",null,":",null,":",null,":",null,":",null,":",null,":",null,":"]
["S11_S12","C13-C16_C18_C31-C33","EPS_REC_BYPR",null,null,null,"13-16, 18, 31-33","Other manufacturing activities",null,":",null,":",null,":",null,":",null,":",null,":",null,":",null,":",null,":",null,":",null,":",null,":"]
["S11_S12","C10-C12","TOT_P2_EPS","Transactions as users of EP services (ancillary production of EP services and other production)","( P2_EPS_EXT.3bA ) Total intermediate consumption of EP services (for production of EP services and for other production)",null,"10-12'","Manufacture of food, beverages and tobacco products",null,":",null,":",null,":",null,":",null,":",null,":",null,":",null,":",null,":",null,":",null,":",null,":"]
["S11_S12","C17","TOT_P2_EPS",null,"(P2_EPS_EXT.3x: please consider the explanatory notes - click here)",null,17,"Manufacture of paper and paper products",null,":",null,":",null,":",null,":",null,":",null,":",null,":",null,":",null,":",null,":",null,":",null,":"]
["S11_S12","C19_C20","TOT_P2_EPS",null,null,null,"19-20","Manufacture of coke, chemicals and refined petroleum and chemical products",null,":",null,":",null,":",null,":",null,":",null,":",null,":",null,":",null,":",null,":",null,":",null,":"]
["S11_S12","C21-C23","TOT_P2_EPS",null,null,null,"21-23","Manufacture of pharmaceuticals, rubber, plastic and other non-metallic products",null,":",null,":",null,":",null,":",null,":",null,":",null,":",null,":",null,":",null,":",null,":",null,":"]
["S11_S12","C24","TOT_P2_EPS",null,null,null,24,"Manufacture of basic metals",null,":",null,":",null,":",null,":",null,":",null,":",null,":",null,":",null,":",null,":",null,":",null,":"]
["S11_S12","C25-C30","TOT_P2_EPS",null,null,null,"25-30","Manufacture of fabricated metal products, including machinery and equipment",null,":",null,":",null,":",null,":",null,":",null,":",null,":",null,":",null,":",null,":",null,":",null,":"]
["S11_S12","C13-C16_C18_C31-C33","TOT_P2_EPS",null,null,null,"13-16, 18, 31-33","Other manufacturing activities",null,":",null,":",null,":",null,":",null,":",null,":",null,":",null,":",null,":",null,":",null,":",null,":"]
["S11_S12","C10-C12","EPS_EMP","Transactions of producers of ancillary EP services","( EMP.3bA ) Employment (full time equivalent)",null,"10-12'","Manufacture of food, beverages and tobacco products",null,":",null,":",null,":",null,":",null,":",null,":",null,":",null,":",null,":",null,":",null,":",null,":"]
["S11_S12","C17","EPS_EMP",null,null,null,17,"Manufacture of paper and paper products",null,":",null,":",null,":",null,":",null,":",null,":",null,":",null,":",null,":",null,":",null,":",null,":"]
["S11_S12","C19_C20","EPS_EMP",null,null,null,"19-20","Manufacture of coke, chemicals and refined petroleum and chemical products",null,":",null,":",null,":",null,":",null,":",null,":",null,":",null,":",null,":",null,":",null,":",null,":"]
["S11_S12","C21-C23","EPS_EMP",null,null,null,"21-23","Manufacture of pharmaceuticals, rubber, plastic and other non-metallic products",null,":",null,":",null,":",null,":",null,":",null,":",null,":",null,":",null,":",null,":",null,":",null,":"]
["S11_S12","C24","EPS_EMP",null,null,null,24,"Manufacture of basic metals",null,":",null,":",null,":",null,":",null,":",null,":",null,":",null,":",null,":",null,":",null,":",null,":"]
["S11_S12","C25-C30","EPS_EMP",null,null,null,"25-30","Manufacture of fabricated metal products, including machinery and equipment",null,":",null,":",null,":",null,":",null,":",null,":",null,":",null,":",null,":",null,":",null,":",null,":"]
["S11_S12","C13-C16_C18_C31-C33","EPS_EMP",null,null,null,"13-16, 18, 31-33","Other manufacturing activities",null,":",null,":",null,":",null,":",null,":",null,":",null,":",null,":",null,":",null,":",null,":",null,{"$f":"IF(COUNT(J104,N104,P104,R104,T104,V104,AD104)=7,SUM(J104,N104,P104,R104,T104,V104,AD104),\":\")","v":":"}]

{"sheet":"3b_Add_2020","index":22,"n_rows":104,"n_cols":32,"rows_kept":104,"cut":false,"hidden":false,"merged":[[102,7,102,8],[103,7,103,8],[94,7,94,8],[95,7,95,8],[96,7,96,8],[97,3,103,3],[97,4,97,5],[97,7,97,8],[98,7,98,8],[99,7,99,8],[100,7,100,8],[101,7,101,8],[86,7,86,8],[87,7,87,8],[88,7,88,8],[89,7,89,8],[90,3,96,3],[90,4,90,5],[90,7,90,8],[91,7,91,8],[92,7,92,8],[93,7,93,8],[6,3,89,3],[6,4,6,5],[6,7,6,8],[7,7,7,8],[8,7,8,8],[9,7,9,8],[10,7,10,8],[11,7,11,8],[35,4,35,5],[91,4,91,5],[81,7,81,8],[82,7,82,8],[83,4,83,5],[83,7,83,8],[84,7,84,8],[85,7,85,8],[76,4,76,5],[76,7,76,8],[77,7,77,8],[78,7,78,8],[79,7,79,8],[80,7,80,8],[70,7,70,8],[71,7,71,8],[72,7,72,8],[73,7,73,8],[74,7,74,8],[75,7,75,8],[65,7,65,8],[66,7,66,8],[67,7,67,8],[68,7,68,8],[69,4,69,5],[69,7,69,8],[60,7,60,8],[61,7,61,8],[62,4,62,5],[62,7,62,8],[63,7,63,8],[64,7,64,8],[55,4,55,5],[55,7,55,8],[56,7,56,8],[57,7,57,8],[58,7,58,8],[59,7,59,8],[49,7,49,8],[50,7,50,8],[51,7,51,8],[52,7,52,8],[53,7,53,8],[54,7,54,8],[44,7,44,8],[45,7,45,8],[46,7,46,8],[47,7,47,8],[48,4,48,5],[48,7,48,8],[39,7,39,8],[40,7,40,8],[41,4,41,5],[41,7,41,8],[42,7,42,8],[43,7,43,8],[34,4,34,5],[34,7,34,8],[35,7,35,8],[36,7,36,8],[37,7,37,8],[38,7,38,8],[29,7,29,8],[30,7,30,8],[31,7,31,8],[32,7,32,8],[33,7,33,8],[22,7,22,8],[23,7,23,8],[24,7,24,8],[25,7,25,8],[26,7,26,8],[28,7,28,8],[27,4,27,5],[27,7,27,8],[17,7,17,8],[18,7,18,8],[19,7,19,8],[20,4,20,5],[20,7,20,8],[21,7,21,8],[12,7,12,8],[13,4,13,5],[13,7,13,8],[14,7,14,8],[15,7,15,8],[16,7,16,8],[0,4,0,8],[0,9,0,16],[1,4,1,8],[1,9,1,32],[2,9,2,32],[3,9,4,10],[3,11,4,12],[3,13,4,14],[3,15,4,16],[3,17,4,18],[3,31,4,32],[4,4,4,5],[3,21,4,22],[3,23,4,24],[3,25,4,26],[3,27,4,28],[3,29,4,30],[3,19,4,20]]}
[null,null,null,null,{"$f":"Cover!$B$21","v":"QUESTIONNAIRE ON ENVIRONMENTAL PROTECTION EXPENDITURE ACCOUNTS"},null,null,null,null,"Table 3b Add.: Detailed Manufacturing Industries"]
[null,null,null,null,{"$f":"E1","v":"QUESTIONNAIRE ON ENVIRONMENTAL PROTECTION EXPENDITURE ACCOUNTS"},null,null,null,null,{"$f":"J1 & \" - \" & I5","v":"Table 3b Add.: Detailed Manufacturing Industries - 2020"}]
[null,null,null,null,null,null,null,null,null,"Mandatory and voluntary variables and environmental domains - please fill in as much as possible"]
[null,null,null,null,"Country/Unit",{"$f":"IFERROR(Cover!C16,\"\")","v":""},{"$f":"\"\"&Cover!B16","v":""},null,{"$f":"Cover!B17","v":"Million units of national currency"},"CEPA 1",null,"of which CEPA 1.1.2 and 1.2.2 Climate change",null,"CEPA 2",null,"CEPA 3",null,"CEPA 4",null,"CEPA 5",null,"CEPA 6",null,"CEPA 7",null,"CEPA 8",null,"CEPA 9",null,"Sum of CEPA 7+8+9",null,"TOTAL"]
[null,null,null,null,"Expenditure",null,null,"YEAR",2020,null,null,null,null,null,null,null,null,null,null,null,null,null,null,null,null,null,null,null,null,null,null,"Landscape"]
[null,null,null,null,null,null,null,null,null,"CEPA1",null,"CEPA112_122",null,"CEPA2",null,"CEPA3",null,"CEPA4",null,"CEPA5",null,"CEPA6",null,"CEPA7",null,"CEPA8",null,"CEPA9",null,"CEPA7-9",null,"TOT_CEPA"]
["S11_S12","C10-C12","EPS_P51G_NP","Transactions of producers of ancillary EP services","( P51G_NP.3bA ) Gross fixed capital formation and acquisition less disposals of non-financial, non-produced assets",null,"10-12","Manufacture of food, beverages and tobacco products",null,":",null,":",null,":",null,":",null,":",null,":",null,":",null,":",null,":",null,":",null,":",null,{"$f":"IF(COUNT(J7,N7,P7,R7,T7,V7,AD7)=7,SUM(J7,N7,P7,R7,T7,V7,AD7),\":\")","v":":"}]
["S11_S12","C17","EPS_P51G_NP",null,null,null,17,"Manufacture of paper and paper products",null,":",null,":",null,":",null,":",null,":",null,":",null,":",null,":",null,":",null,":",null,":",null,{"$f":"IF(COUNT(J8,N8,P8,R8,T8,V8,AD8)=7,SUM(J8,N8,P8,R8,T8,V8,AD8),\":\")","v":":"}]
["S11_S12","C19_C20","EPS_P51G_NP",null,null,null,"19-20","Manufacture of coke, chemicals and refined petroleum and chemical products",null,":",null,":",null,":",null,":",null,":",null,":",null,":",null,":",null,":",null,":",null,":",null,":"]
["S11_S12","C21-C23","EPS_P51G_NP",null,null,null,"21-23","Manufacture of pharmaceuticals, rubber, plastic and other non-metallic products",null,":",null,":",null,":",null,":",null,":",null,":",null,":",null,":",null,":",null,":",null,":",null,":"]
["S11_S12","C24","EPS_P51G_NP",null,null,null,24,"Manufacture of basic metals",null,":",null,":",null,":",null,":",null,":",null,":",null,":",null,":",null,":",null,":",null,":",null,":"]
["S11_S12","C25-C30","EPS_P51G_NP",null,null,null,"25-30","Manufacture of fabricated metal products, including machinery and equipment",null,":",null,":",null,":",null,":",null,":",null,":",null,":",null,":",null,":",null,":",null,":",null,":"]
["S11_S12","C13-C16_C18_C31-C33","EPS_P51G_NP",null,null,null,"13-16, 18, 31-33","Other manufacturing activities",null,":",null,":",null,":",null,":",null,":",null,":",null,":",null,":",null,":",null,":",null,":",null,":"]
["S11_S12","C10-C12","EPS_INV_PT",null,"( INV_EOP.3bA ) GFCF on specific EP fixed assets (end-of-pipe technologies)",null,"10-12'","Manufacture of food, beverages and tobacco products",null,":",null,":",null,":",null,":",null,":",null,":",null,":",null,":",null,":",null,":",null,":",null,":"]
["S11_S12","C17","EPS_INV_PT",null,null,null,17,"Manufacture of paper and paper products",null,":",null,":",null,":",null,":",null,":",null,":",null,":",null,":",null,":",null,":",null,":",null,":"]
["S11_S12","C19_C20","EPS_INV_PT",null,null,null,"19-20","Manufacture of coke, chemicals and refined petroleum and chemical products",null,":",null,":",null,":",null,":",null,":",null,":",null,":",null,":",null,":",null,":",null,":",null,":"]
["S11_S12","C21-C23","EPS_INV_PT",null,null,null,"21-23","Manufacture of pharmaceuticals, rubber, plastic and other non-metallic products",null,":",null,":",null,":",null,":",null,":",null,":",null,":",null,":",null,":",null,":",null,":",null,":"]
["S11_S12","C24","EPS_INV_PT",null,null,null,24,"Manufacture of basic metals",null,":",null,":",null,":",null,":",null,":",null,":",null,":",null,":",null,":",null,":",null,":",null,":"]
["S11_S12","C25-C30","EPS_INV_PT",null,null,null,"25-30","Manufacture of fabricated metal products, including machinery and equipment",null,":",null,":",null,":",null,":",null,":",null,":",null,":",null,":",null,":",null,":",null,":",null,":"]
["S11_S12","C13-C16_C18_C31-C33","EPS_INV_PT",null,null,null,"13-16, 18, 31-33","Other manufacturing activities",null,":",null,":",null,":",null,":",null,":",null,":",null,":",null,":",null,":",null,":",null,":",null,":"]
["S11_S12","C10-C12","EPS_INV_PP",null,"( INV_IT.3bA ) GFCF on cleaner EP fixed assets (integrated technologies)",null,"10-12'","Manufacture of food, beverages and tobacco products",null,":",null,":",null,":",null,":",null,":",null,":",null,":",null,":",null,":",null,":",null,":",null,":"]
["S11_S12","C17","EPS_INV_PP",null,null,null,17,"Manufacture of paper and paper products",null,":",null,":",null,":",null,":",null,":",null,":",null,":",null,":",null,":",null,":",null,":",null,":"]
["S11_S12","C19_C20","EPS_INV_PP",null,null,null,"19-20","Manufacture of coke, chemicals and refined petroleum and chemical products",null,":",null,":",null,":",null,":",null,":",null,":",null,":",null,":",null,":",null,":",null,":",null,":"]
["S11_S12","C21-C23","EPS_INV_PP",null,null,null,"21-23","Manufacture of pharmaceuticals, rubber, plastic and other non-metallic products",null,":",null,":",null,":",null,":",null,":",null,":",null,":",null,":",null,":",null,":",null,":",null,":"]
["S11_S12","C24","EPS_INV_PP",null,null,null,24,"Manufacture of basic metals",null,":",null,":",null,":",null,":",null,":",null,":",null,":",null,":",null,":",null,":",null,":",null,":"]
["S11_S12","C25-C30","EPS_INV_PP",null,null,null,"25-30","Manufacture of fabricated metal products, including machinery and equipment",null,":",null,":",null,":",null,":",null,":",null,":",null,":",null,":",null,":",null,":",null,":",null,":"]
["S11_S12","C13-C16_C18_C31-C33","EPS_INV_PP",null,null,null,"13-16, 18, 31-33","Other manufacturing activities",null,":",null,":",null,":",null,":",null,":",null,":",null,":",null,":",null,":",null,":",null,":",null,":"]
["S11_S12","C10-C12","EPS_P2",null,"( P2.3bA ) Total intermediate consumption",null,"10-12'","Manufacture of food, beverages and tobacco products",null,":",null,":",null,":",null,":",null,":",null,":",null,":",null,":",null,":",null,":",null,":",null,":"]
["S11_S12","C17","EPS_P2",null,null,null,17,"Manufacture of paper and paper products",null,":",null,":",null,":",null,":",null,":",null,":",null,":",null,":",null,":",null,":",null,":",null,":"]
["S11_S12","C19_C20","EPS_P2",null,null,null,"19-20","Manufacture of coke, chemicals and refined petroleum and chemical products",null,":",null,":",null,":",null,":",null,":",null,":",null,":",null,":",null,":",null,":",null,":",null,":"]
["S11_S12","C21-C23","EPS_P2",null,null,null,"21-23","Manufacture of pharmaceuticals, rubber, plastic and other non-metallic products",null,":",null,":",null,":",null,":",null,":",null,":",null,":",null,":",null,":",null,":",null,":",null,":"]
["S11_S12","C24","EPS_P2",null,null,null,24,"Manufacture of basic metals",null,":",null,":",null,":",null,":",null,":",null,":",null,":",null,":",null,":",null,":",null,":",null,":"]
["S11_S12","C25-C30","EPS_P2",null,null,null,"25-30","Manufacture of fabricated metal products, including machinery and equipment",null,":",null,":",null,":",null,":",null,":",null,":",null,":",null,":",null,":",null,":",null,":",null,":"]
["S11_S12","C13-C16_C18_C31-C33","EPS_P2",null,null,null,"13-16, 18, 31-33","Other manufacturing activities",null,":",null,":",null,":",null,":",null,":",null,":",null,":",null,":",null,":",null,":",null,":",null,":"]
["S11_S12","C10-C12","EPS_P2_EPS",null,"( P2_EPS.3bA ) Intermediate consumption of EP services for ancillary production of EP services ",null,"10-12'","Manufacture of food, beverages and tobacco products",null,":",null,":",null,":",null,":",null,":",null,":",null,":",null,":",null,":",null,":",null,":",null,":"]
["S11_S12","C17","EPS_P2_EPS",null,"(P2_EPS.3x: please consider the explanatory notes - click here)",null,17,"Manufacture of paper and paper products",null,":",null,":",null,":",null,":",null,":",null,":",null,":",null,":",null,":",null,":",null,":",null,":"]
["S11_S12","C19_C20","EPS_P2_EPS",null,null,null,"19-20","Manufacture of coke, chemicals and refined petroleum and chemical products",null,":",null,":",null,":",null,":",null,":",null,":",null,":",null,":",null,":",null,":",null,":",null,":"]
["S11_S12","C21-C23","EPS_P2_EPS",null,null,null,"21-23","Manufacture of pharmaceuticals, rubber, plastic and other non-metallic products",null,":",null,":",null,":",null,":",null,":",null,":",null,":",null,":",null,":",null,":",null,":",null,":"]
["S11_S12","C24","EPS_P2_EPS",null,null,null,24,"Manufacture of basic metals",null,":",null,":",null,":",null,":",null,":",null,":",null,":",null,":",null,":",null,":",null,":",null,":"]
["S11_S12","C25-C30","EPS_P2_EPS",null,null,null,"25-30","Manufacture of fabricated metal products, including machinery and equipment",null,":",null,":",null,":",null,":",null,":",null,":",null,":",null,":",null,":",null,":",null,":",null,":"]
["S11_S12","C13-C16_C18_C31-C33","EPS_P2_EPS",null,null,null,"13-16, 18, 31-33","Other manufacturing activities",null,":",null,":",null,":",null,":",null,":",null,":",null,":",null,":",null,":",null,":",null,":",null,":"]
["S11_S12","C10-C12","EPS_P2_NEPS",null,"( P2_NEPS.3bA ) Intermediate consumption (excluding EP services)",null,"10-12'","Manufacture of food, beverages and tobacco products",null,":",null,":",null,":",null,":",null,":",null,":",null,":",null,":",null,":",null,":",null,":",null,":"]
["S11_S12","C17","EPS_P2_NEPS",null,null,null,17,"Manufacture of paper and paper products",null,":",null,":",null,":",null,":",null,":",null,":",null,":",null,":",null,":",null,":",null,":",null,":"]
["S11_S12","C19_C20","EPS_P2_NEPS",null,null,null,"19-20","Manufacture of coke, chemicals and refined petroleum and chemical products",null,":",null,":",null,":",null,":",null,":",null,":",null,":",null,":",null,":",null,":",null,":",null,":"]
["S11_S12","C21-C23","EPS_P2_NEPS",null,null,null,"21-23","Manufacture of pharmaceuticals, rubber, plastic and other non-metallic products",null,":",null,":",null,":",null,":",null,":",null,":",null,":",null,":",null,":",null,":",null,":",null,":"]
["S11_S12","C24","EPS_P2_NEPS",null,null,null,24,"Manufacture of basic metals",null,":",null,":",null,":",null,":",null,":",null,":",null,":",null,":",null,":",null,":",null,":",null,":"]
["S11_S12","C25-C30","EPS_P2_NEPS",null,null,null,"25-30","Manufacture of fabricated metal products, including machinery and equipment",null,":",null,":",null,":",null,":",null,":",null,":",null,":",null,":",null,":",null,":",null,":",null,":"]
["S11_S12","C13-C16_C18_C31-C33","EPS_P2_NEPS",null,null,null,"13-16, 18, 31-33","Other manufacturing activities",null,":",null,":",null,":",null,":",null,":",null,":",null,":",null,":",null,":",null,":",null,":",null,":"]
["S11_S12","C10-C12","EPS_D1",null,"( D1.3bA ) Compensation of employees",null,"10-12'","Manufacture of food, beverages and tobacco products",null,":",null,":",null,":",null,":",null,":",null,":",null,":",null,":",null,":",null,":",null,":",null,":"]
["S11_S12","C17","EPS_D1",null,null,null,17,"Manufacture of paper and paper products",null,":",null,":",null,":",null,":",null,":",null,":",null,":",null,":",null,":",null,":",null,":",null,":"]
["S11_S12","C19_C20","EPS_D1",null,null,null,"19-20","Manufacture of coke, chemicals and refined petroleum and chemical products",null,":",null,":",null,":",null,":",null,":",null,":",null,":",null,":",null,":",null,":",null,":",null,":"]
["S11_S12","C21-C23","EPS_D1",null,null,null,"21-23","Manufacture of pharmaceuticals, rubber, plastic and other non-metallic products",null,":",null,":",null,":",null,":",null,":",null,":",null,":",null,":",null,":",null,":",null,":",null,":"]
["S11_S12","C24","EPS_D1",null,null,null,24,"Manufacture of basic metals",null,":",null,":",null,":",null,":",null,":",null,":",null,":",null,":",null,":",null,":",null,":",null,":"]
["S11_S12","C25-C30","EPS_D1",null,null,null,"25-30","Manufacture of fabricated metal products, including machinery and equipment",null,":",null,":",null,":",null,":",null,":",null,":",null,":",null,":",null,":",null,":",null,":",null,":"]
["S11_S12","C13-C16_C18_C31-C33","EPS_D1",null,null,null,"13-16, 18, 31-33","Other manufacturing activities",null,":",null,":",null,":",null,":",null,":",null,":",null,":",null,":",null,":",null,":",null,":",null,":"]
["S11_S12","C10-C12","EPS_P1_ANC",null,"( P1_ANC.3bA ) Ancillary EP output (simplified valuation legally acceptable) ((P2_NEPS.3bA) + (D1.3bA))",null,"10-12'","Manufacture of food, beverages and tobacco products",null,":",null,":",null,":",null,":",null,":",null,":",null,":",null,":",null,":",null,":",null,":",null,":"]
["S11_S12","C17","EPS_P1_ANC",null,null,null,17,"Manufacture of paper and paper products",null,":",null,":",null,":",null,":",null,":",null,":",null,":",null,":",null,":",null,":",null,":",null,":"]
["S11_S12","C19_C20","EPS_P1_ANC",null,null,null,"19-20","Manufacture of coke, chemicals and refined petroleum and chemical products",null,":",null,":",null,":",null,":",null,":",null,":",null,":",null,":",null,":",null,":",null,":",null,":"]
["S11_S12","C21-C23","EPS_P1_ANC",null,null,null,"21-23","Manufacture of pharmaceuticals, rubber, plastic and other non-metallic products",null,":",null,":",null,":",null,":",null,":",null,":",null,":",null,":",null,":",null,":",null,":",null,":"]
["S11_S12","C24","EPS_P1_ANC",null,null,null,24,"Manufacture of basic metals",null,":",null,":",null,":",null,":",null,":",null,":",null,":",null,":",null,":",null,":",null,":",null,":"]
["S11_S12","C25-C30","EPS_P1_ANC",null,null,null,"25-30","Manufacture of fabricated metal products, including machinery and equipment",null,":",null,":",null,":",null,":",null,":",null,":",null,":",null,":",null,":",null,":",null,":",null,":"]
["S11_S12","C13-C16_C18_C31-C33","EPS_P1_ANC",null,null,null,"13-16, 18, 31-33","Other manufacturing activities",null,":",null,":",null,":",null,":",null,":",null,":",null,":",null,":",null,":",null,":",null,":",null,":"]
["S11_S12","C10-C12","EPS_D29X39",null,"( D29-D39.3bA ) Other taxes less subsidies on production",null,"10-12'","Manufacture of food, beverages and tobacco products",null,":",null,":",null,":",null,":",null,":",null,":",null,":",null,":",null,":",null,":",null,":",null,":"]
["S11_S12","C17","EPS_D29X39",null,null,null,17,"Manufacture of paper and paper products",null,":",null,":",null,":",null,":",null,":",null,":",null,":",null,":",null,":",null,":",null,":",null,":"]
["S11_S12","C19_C20","EPS_D29X39",null,null,null,"19-20","Manufacture of coke, chemicals and refined petroleum and chemical products",null,":",null,":",null,":",null,":",null,":",null,":",null,":",null,":",null,":",null,":",null,":",null,":"]
["S11_S12","C21-C23","EPS_D29X39",null,null,null,"21-23","Manufacture of pharmaceuticals, rubber, plastic and other non-metallic products",null,":",null,":",null,":",null,":",null,":",null,":",null,":",null,":",null,":",null,":",null,":",null,":"]
["S11_S12","C24","EPS_D29X39",null,null,null,24,"Manufacture of basic metals",null,":",null,":",null,":",null,":",null,":",null,":",null,":",null,":",null,":",null,":",null,":",null,":"]
["S11_S12","C25-C30","EPS_D29X39",null,null,null,"25-30","Manufacture of fabricated metal products, including machinery and equipment",null,":",null,":",null,":",null,":",null,":",null,":",null,":",null,":",null,":",null,":",null,":",null,":"]
["S11_S12","C13-C16_C18_C31-C33","EPS_D29X39",null,null,null,"13-16, 18, 31-33","Other manufacturing activities",null,":",null,":",null,":",null,":",null,":",null,":",null,":",null,":",null,":",null,":",null,":",null,":"]
["S11_S12","C10-C12","EPS_P51C",null,"( P51C.3bA ) Consumption of fixed capital",null,"10-12'","Manufacture of food, beverages and tobacco products",null,":",null,":",null,":",null,":",null,":",null,":",null,":",null,":",null,":",null,":",null,":",null,":"]
["S11_S12","C17","EPS_P51C",null,null,null,17,"Manufacture of paper and paper products",null,":",null,":",null,":",null,":",null,":",null,":",null,":",null,":",null,":",null,":",null,":",null,":"]
["S11_S12","C19_C20","EPS_P51C",null,null,null,"19-20","Manufacture of coke, chemicals and refined petroleum and chemical products",null,":",null,":",null,":",null,":",null,":",null,":",null,":",null,":",null,":",null,":",null,":",null,{"$f":"IF(COUNT(J72,N72,P72,R72,T72,V72,AD72)=7,SUM(J72,N72,P72,R72,T72,V72,AD72),\":\")","v":":"}]
["S11_S12","C21-C23","EPS_P51C",null,null,null,"21-23","Manufacture of pharmaceuticals, rubber, plastic and other non-metallic products",null,":",null,":",null,":",null,":",null,":",null,":",null,":",null,":",null,":",null,":",null,":",null,":"]
["S11_S12","C24","EPS_P51C",null,null,null,24,"Manufacture of basic metals",null,":",null,":",null,":",null,":",null,":",null,":",null,":",null,":",null,":",null,":",null,":",null,":"]
["S11_S12","C25-C30","EPS_P51C",null,null,null,"25-30","Manufacture of fabricated metal products, including machinery and equipment",null,":",null,":",null,":",null,":",null,":",null,":",null,":",null,":",null,":",null,":",null,":",null,":"]
["S11_S12","C13-C16_C18_C31-C33","EPS_P51C",null,null,null,"13-16, 18, 31-33","Other manufacturing activities",null,":",null,":",null,":",null,":",null,":",null,":",null,":",null,":",null,":",null,":",null,":",null,":"]
["S11_S12","C10-C12","EPS_P1_ANCESA",null,"( P1_ANC_ESA.3bA ) Ancillary EP output (ESA - compatible valuation) ((P2_NEPS.3bA) + (D1.3bA) +(P51C.3bA) + (D29-D39.3bA))",null,"10-12'","Manufacture of food, beverages and tobacco products",null,":",null,":",null,":",null,":",null,":",null,":",null,":",null,":",null,":",null,":",null,":",null,":"]
["S11_S12","C17","EPS_P1_ANCESA",null,null,null,17,"Manufacture of paper and paper products",null,":",null,":",null,":",null,":",null,":",null,":",null,":",null,":",null,":",null,":",null,":",null,":"]
["S11_S12","C19_C20","EPS_P1_ANCESA",null,null,null,"19-20","Manufacture of coke, chemicals and refined petroleum and chemical products",null,":",null,":",null,":",null,":",null,":",null,":",null,":",null,":",null,":",null,":",null,":",null,":"]
["S11_S12","C21-C23","EPS_P1_ANCESA",null,null,null,"21-23","Manufacture of pharmaceuticals, rubber, plastic and other non-metallic products",null,":",null,":",null,":",null,":",null,":",null,":",null,":",null,":",null,":",null,":",null,":",null,":"]
["S11_S12","C24","EPS_P1_ANCESA",null,null,null,24,"Manufacture of basic metals",null,":",null,":",null,":",null,":",null,":",null,":",null,":",null,":",null,":",null,":",null,":",null,":"]
["S11_S12","C25-C30","EPS_P1_ANCESA",null,null,null,"25-30","Manufacture of fabricated metal products, including machinery and equipment",null,":",null,":",null,":",null,":",null,":",null,":",null,":",null,":",null,":",null,":",null,":",null,":"]
["S11_S12","C13-C16_C18_C31-C33","EPS_P1_ANCESA",null,null,null,"13-16, 18, 31-33","Other manufacturing activities",null,":",null,":",null,":",null,":",null,":",null,":",null,":",null,":",null,":",null,":",null,":",null,":"]
["S11_S12","C10-C12","EPS_REC_BYPR",null,"( RNO.3bA ) Related non-EP output",null,"10-12'","Manufacture of food, beverages and tobacco products",null,":",null,":",null,":",null,":",null,":",null,":",null,":",null,":",null,":",null,":",null,":",null,":"]
["S11_S12","C17","EPS_REC_BYPR",null,null,null,17,"Manufacture of paper and paper products",null,":",null,":",null,":",null,":",null,":",null,":",null,":",null,":",null,":",null,":",null,":",null,":"]
["S11_S12","C19_C20","EPS_REC_BYPR",null,null,null,"19-20","Manufacture of coke, chemicals and refined petroleum and chemical products",null,":",null,":",null,":",null,":",null,":",null,":",null,":",null,":",null,":",null,":",null,":",null,":"]
["S11_S12","C21-C23","EPS_REC_BYPR",null,null,null,"21-23","Manufacture of pharmaceuticals, rubber, plastic and other non-metallic products",null,":",null,":",null,":",null,":",null,":",null,":",null,":",null,":",null,":",null,":",null,":",null,":"]
["S11_S12","C24","EPS_REC_BYPR",null,null,null,24,"Manufacture of basic metals",null,":",null,":",null,":",null,":",null,":",null,":",null,":",null,":",null,":",null,":",null,":",null,":"]
["S11_S12","C25-C30","EPS_REC_BYPR",null,null,null,"25-30","Manufacture of fabricated metal products, including machinery and equipment",null,":",null,":",null,":",null,":",null,":",null,":",null,":",null,":",null,":",null,":",null,":",null,":"]
["S11_S12","C13-C16_C18_C31-C33","EPS_REC_BYPR",null,null,null,"13-16, 18, 31-33","Other manufacturing activities",null,":",null,":",null,":",null,":",null,":",null,":",null,":",null,":",null,":",null,":",null,":",null,":"]
["S11_S12","C10-C12","TOT_P2_EPS","Transactions as users of EP services (ancillary production of EP services and other production)","( P2_EPS_EXT.3bA ) Total intermediate consumption of EP services (for production of EP services and for other production)",null,"10-12'","Manufacture of food, beverages and tobacco products",null,":",null,":",null,":",null,":",null,":",null,":",null,":",null,":",null,":",null,":",null,":",null,":"]
["S11_S12","C17","TOT_P2_EPS",null,"(P2_EPS_EXT.3x: please consider the explanatory notes - click here)",null,17,"Manufacture of paper and paper products",null,":",null,":",null,":",null,":",null,":",null,":",null,":",null,":",null,":",null,":",null,":",null,":"]
["S11_S12","C19_C20","TOT_P2_EPS",null,null,null,"19-20","Manufacture of coke, chemicals and refined petroleum and chemical products",null,":",null,":",null,":",null,":",null,":",null,":",null,":",null,":",null,":",null,":",null,":",null,":"]
["S11_S12","C21-C23","TOT_P2_EPS",null,null,null,"21-23","Manufacture of pharmaceuticals, rubber, plastic and other non-metallic products",null,":",null,":",null,":",null,":",null,":",null,":",null,":",null,":",null,":",null,":",null,":",null,":"]
["S11_S12","C24","TOT_P2_EPS",null,null,null,24,"Manufacture of basic metals",null,":",null,":",null,":",null,":",null,":",null,":",null,":",null,":",null,":",null,":",null,":",null,":"]
["S11_S12","C25-C30","TOT_P2_EPS",null,null,null,"25-30","Manufacture of fabricated metal products, including machinery and equipment",null,":",null,":",null,":",null,":",null,":",null,":",null,":",null,":",null,":",null,":",null,":",null,":"]
["S11_S12","C13-C16_C18_C31-C33","TOT_P2_EPS",null,null,null,"13-16, 18, 31-33","Other manufacturing activities",null,":",null,":",null,":",null,":",null,":",null,":",null,":",null,":",null,":",null,":",null,":",null,":"]
["S11_S12","C10-C12","EPS_EMP","Transactions of producers of ancillary EP services","( EMP.3bA ) Employment (full time equivalent)",null,"10-12'","Manufacture of food, beverages and tobacco products",null,":",null,":",null,":",null,":",null,":",null,":",null,":",null,":",null,":",null,":",null,":",null,":"]
["S11_S12","C17","EPS_EMP",null,null,null,17,"Manufacture of paper and paper products",null,":",null,":",null,":",null,":",null,":",null,":",null,":",null,":",null,":",null,":",null,":",null,":"]
["S11_S12","C19_C20","EPS_EMP",null,null,null,"19-20","Manufacture of coke, chemicals and refined petroleum and chemical products",null,":",null,":",null,":",null,":",null,":",null,":",null,":",null,":",null,":",null,":",null,":",null,":"]
["S11_S12","C21-C23","EPS_EMP",null,null,null,"21-23","Manufacture of pharmaceuticals, rubber, plastic and other non-metallic products",null,":",null,":",null,":",null,":",null,":",null,":",null,":",null,":",null,":",null,":",null,":",null,":"]
["S11_S12","C24","EPS_EMP",null,null,null,24,"Manufacture of basic metals",null,":",null,":",null,":",null,":",null,":",null,":",null,":",null,":",null,":",null,":",null,":",null,":"]
["S11_S12","C25-C30","EPS_EMP",null,null,null,"25-30","Manufacture of fabricated metal products, including machinery and equipment",null,":",null,":",null,":",null,":",null,":",null,":",null,":",null,":",null,":",null,":",null,":",null,":"]
["S11_S12","C13-C16_C18_C31-C33","EPS_EMP",null,null,null,"13-16, 18, 31-33","Other manufacturing activities",null,":",null,":",null,":",null,":",null,":",null,":",null,":",null,":",null,":",null,":",null,":",null,{"$f":"IF(COUNT(J104,N104,P104,R104,T104,V104,AD104)=7,SUM(J104,N104,P104,R104,T104,V104,AD104),\":\")","v":":"}]

{"sheet":"3b_Add_2021","index":23,"n_rows":104,"n_cols":32,"rows_kept":104,"cut":false,"hidden":true,"merged":[[102,7,102,8],[103,7,103,8],[94,7,94,8],[95,7,95,8],[96,7,96,8],[97,3,103,3],[97,4,97,5],[97,7,97,8],[98,7,98,8],[99,7,99,8],[100,7,100,8],[101,7,101,8],[86,7,86,8],[87,7,87,8],[88,7,88,8],[89,7,89,8],[90,3,96,3],[90,4,90,5],[90,7,90,8],[91,7,91,8],[92,7,92,8],[93,7,93,8],[6,3,89,3],[6,4,6,5],[6,7,6,8],[7,7,7,8],[8,7,8,8],[9,7,9,8],[10,7,10,8],[11,7,11,8],[35,4,35,5],[91,4,91,5],[81,7,81,8],[82,7,82,8],[83,4,83,5],[83,7,83,8],[84,7,84,8],[85,7,85,8],[76,4,76,5],[76,7,76,8],[77,7,77,8],[78,7,78,8],[79,7,79,8],[80,7,80,8],[70,7,70,8],[71,7,71,8],[72,7,72,8],[73,7,73,8],[74,7,74,8],[75,7,75,8],[65,7,65,8],[66,7,66,8],[67,7,67,8],[68,7,68,8],[69,4,69,5],[69,7,69,8],[60,7,60,8],[61,7,61,8],[62,4,62,5],[62,7,62,8],[63,7,63,8],[64,7,64,8],[55,4,55,5],[55,7,55,8],[56,7,56,8],[57,7,57,8],[58,7,58,8],[59,7,59,8],[49,7,49,8],[50,7,50,8],[51,7,51,8],[52,7,52,8],[53,7,53,8],[54,7,54,8],[44,7,44,8],[45,7,45,8],[46,7,46,8],[47,7,47,8],[48,4,48,5],[48,7,48,8],[39,7,39,8],[40,7,40,8],[41,4,41,5],[41,7,41,8],[42,7,42,8],[43,7,43,8],[34,4,34,5],[34,7,34,8],[35,7,35,8],[36,7,36,8],[37,7,37,8],[38,7,38,8],[29,7,29,8],[30,7,30,8],[31,7,31,8],[32,7,32,8],[33,7,33,8],[22,7,22,8],[23,7,23,8],[24,7,24,8],[25,7,25,8],[26,7,26,8],[28,7,28,8],[27,4,27,5],[27,7,27,8],[17,7,17,8],[18,7,18,8],[19,7,19,8],[20,4,20,5],[20,7,20,8],[21,7,21,8],[12,7,12,8],[13,4,13,5],[13,7,13,8],[14,7,14,8],[15,7,15,8],[16,7,16,8],[0,4,0,8],[0,9,0,16],[1,4,1,8],[1,9,1,32],[2,9,2,32],[3,9,4,10],[3,11,4,12],[3,13,4,14],[3,15,4,16],[3,17,4,18],[3,31,4,32],[4,4,4,5],[3,21,4,22],[3,23,4,24],[3,25,4,26],[3,27,4,28],[3,29,4,30],[3,19,4,20]]}
[null,null,null,null,{"$f":"Cover!$B$21","v":"QUESTIONNAIRE ON ENVIRONMENTAL PROTECTION EXPENDITURE ACCOUNTS"},null,null,null,null,"Table 3b Add.: Detailed Manufacturing Industries"]
[null,null,null,null,{"$f":"E1","v":"QUESTIONNAIRE ON ENVIRONMENTAL PROTECTION EXPENDITURE ACCOUNTS"},null,null,null,null,{"$f":"J1 & \" - \" & I5","v":"Table 3b Add.: Detailed Manufacturing Industries - 2021"}]
[null,null,null,null,null,null,null,null,null,"Mandatory and voluntary variables and environmental domains - please fill in as much as possible"]
[null,null,null,null,"Country/Unit",{"$f":"IFERROR(Cover!C16,\"\")","v":""},{"$f":"\"\"&Cover!B16","v":""},null,{"$f":"Cover!B17","v":"Million units of national currency"},"CEPA 1",null,"of which CEPA 1.1.2 and 1.2.2 Climate change",null,"CEPA 2",null,"CEPA 3",null,"CEPA 4",null,"CEPA 5",null,"CEPA 6",null,"CEPA 7",null,"CEPA 8",null,"CEPA 9",null,"Sum of CEPA 7+8+9",null,"TOTAL"]
[null,null,null,null,"Expenditure",null,null,"YEAR",2021,null,null,null,null,null,null,null,null,null,null,null,null,null,null,null,null,null,null,null,null,null,null,"Landscape"]
[null,null,null,null,null,null,null,null,null,"CEPA1",null,"CEPA112_122",null,"CEPA2",null,"CEPA3",null,"CEPA4",null,"CEPA5",null,"CEPA6",null,"CEPA7",null,"CEPA8",null,"CEPA9",null,"CEPA7-9",null,"TOT_CEPA"]
["S11_S12","C10-C12","EPS_P51G_NP","Transactions of producers of ancillary EP services","( P51G_NP.3bA ) Gross fixed capital formation and acquisition less disposals of non-financial, non-produced assets",null,"10-12","Manufacture of food, beverages and tobacco products",null,":",null,":",null,":",null,":",null,":",null,":",null,":",null,":",null,":",null,":",null,":",null,{"$f":"IF(COUNT(J7,N7,P7,R7,T7,V7,AD7)=7,SUM(J7,N7,P7,R7,T7,V7,AD7),\":\")","v":":"}]
["S11_S12","C17","EPS_P51G_NP",null,null,null,17,"Manufacture of paper and paper products",null,":",null,":",null,":",null,":",null,":",null,":",null,":",null,":",null,":",null,":",null,":",null,{"$f":"IF(COUNT(J8,N8,P8,R8,T8,V8,AD8)=7,SUM(J8,N8,P8,R8,T8,V8,AD8),\":\")","v":":"}]
["S11_S12","C19_C20","EPS_P51G_NP",null,null,null,"19-20","Manufacture of coke, chemicals and refined petroleum and chemical products",null,":",null,":",null,":",null,":",null,":",null,":",null,":",null,":",null,":",null,":",null,":",null,":"]
["S11_S12","C21-C23","EPS_P51G_NP",null,null,null,"21-23","Manufacture of pharmaceuticals, rubber, plastic and other non-metallic products",null,":",null,":",null,":",null,":",null,":",null,":",null,":",null,":",null,":",null,":",null,":",null,":"]
["S11_S12","C24","EPS_P51G_NP",null,null,null,24,"Manufacture of basic metals",null,":",null,":",null,":",null,":",null,":",null,":",null,":",null,":",null,":",null,":",null,":",null,":"]
["S11_S12","C25-C30","EPS_P51G_NP",null,null,null,"25-30","Manufacture of fabricated metal products, including machinery and equipment",null,":",null,":",null,":",null,":",null,":",null,":",null,":",null,":",null,":",null,":",null,":",null,":"]
["S11_S12","C13-C16_C18_C31-C33","EPS_P51G_NP",null,null,null,"13-16, 18, 31-33","Other manufacturing activities",null,":",null,":",null,":",null,":",null,":",null,":",null,":",null,":",null,":",null,":",null,":",null,":"]
["S11_S12","C10-C12","EPS_INV_PT",null,"( INV_EOP.3bA ) GFCF on specific EP fixed assets (end-of-pipe technologies)",null,"10-12'","Manufacture of food, beverages and tobacco products",null,":",null,":",null,":",null,":",null,":",null,":",null,":",null,":",null,":",null,":",null,":",null,":"]
["S11_S12","C17","EPS_INV_PT",null,null,null,17,"Manufacture of paper and paper products",null,":",null,":",null,":",null,":",null,":",null,":",null,":",null,":",null,":",null,":",null,":",null,":"]
["S11_S12","C19_C20","EPS_INV_PT",null,null,null,"19-20","Manufacture of coke, chemicals and refined petroleum and chemical products",null,":",null,":",null,":",null,":",null,":",null,":",null,":",null,":",null,":",null,":",null,":",null,":"]
["S11_S12","C21-C23","EPS_INV_PT",null,null,null,"21-23","Manufacture of pharmaceuticals, rubber, plastic and other non-metallic products",null,":",null,":",null,":",null,":",null,":",null,":",null,":",null,":",null,":",null,":",null,":",null,":"]
["S11_S12","C24","EPS_INV_PT",null,null,null,24,"Manufacture of basic metals",null,":",null,":",null,":",null,":",null,":",null,":",null,":",null,":",null,":",null,":",null,":",null,":"]
["S11_S12","C25-C30","EPS_INV_PT",null,null,null,"25-30","Manufacture of fabricated metal products, including machinery and equipment",null,":",null,":",null,":",null,":",null,":",null,":",null,":",null,":",null,":",null,":",null,":",null,":"]
["S11_S12","C13-C16_C18_C31-C33","EPS_INV_PT",null,null,null,"13-16, 18, 31-33","Other manufacturing activities",null,":",null,":",null,":",null,":",null,":",null,":",null,":",null,":",null,":",null,":",null,":",null,":"]
["S11_S12","C10-C12","EPS_INV_PP",null,"( INV_IT.3bA ) GFCF on cleaner EP fixed assets (integrated technologies)",null,"10-12'","Manufacture of food, beverages and tobacco products",null,":",null,":",null,":",null,":",null,":",null,":",null,":",null,":",null,":",null,":",null,":",null,":"]
["S11_S12","C17","EPS_INV_PP",null,null,null,17,"Manufacture of paper and paper products",null,":",null,":",null,":",null,":",null,":",null,":",null,":",null,":",null,":",null,":",null,":",null,":"]
["S11_S12","C19_C20","EPS_INV_PP",null,null,null,"19-20","Manufacture of coke, chemicals and refined petroleum and chemical products",null,":",null,":",null,":",null,":",null,":",null,":",null,":",null,":",null,":",null,":",null,":",null,":"]
["S11_S12","C21-C23","EPS_INV_PP",null,null,null,"21-23","Manufacture of pharmaceuticals, rubber, plastic and other non-metallic products",null,":",null,":",null,":",null,":",null,":",null,":",null,":",null,":",null,":",null,":",null,":",null,":"]
["S11_S12","C24","EPS_INV_PP",null,null,null,24,"Manufacture of basic metals",null,":",null,":",null,":",null,":",null,":",null,":",null,":",null,":",null,":",null,":",null,":",null,":"]
["S11_S12","C25-C30","EPS_INV_PP",null,null,null,"25-30","Manufacture of fabricated metal products, including machinery and equipment",null,":",null,":",null,":",null,":",null,":",null,":",null,":",null,":",null,":",null,":",null,":",null,":"]
["S11_S12","C13-C16_C18_C31-C33","EPS_INV_PP",null,null,null,"13-16, 18, 31-33","Other manufacturing activities",null,":",null,":",null,":",null,":",null,":",null,":",null,":",null,":",null,":",null,":",null,":",null,":"]
["S11_S12","C10-C12","EPS_P2",null,"( P2.3bA ) Total intermediate consumption",null,"10-12'","Manufacture of food, beverages and tobacco products",null,":",null,":",null,":",null,":",null,":",null,":",null,":",null,":",null,":",null,":",null,":",null,":"]
["S11_S12","C17","EPS_P2",null,null,null,17,"Manufacture of paper and paper products",null,":",null,":",null,":",null,":",null,":",null,":",null,":",null,":",null,":",null,":",null,":",null,":"]
["S11_S12","C19_C20","EPS_P2",null,null,null,"19-20","Manufacture of coke, chemicals and refined petroleum and chemical products",null,":",null,":",null,":",null,":",null,":",null,":",null,":",null,":",null,":",null,":",null,":",null,":"]
["S11_S12","C21-C23","EPS_P2",null,null,null,"21-23","Manufacture of pharmaceuticals, rubber, plastic and other non-metallic products",null,":",null,":",null,":",null,":",null,":",null,":",null,":",null,":",null,":",null,":",null,":",null,":"]
["S11_S12","C24","EPS_P2",null,null,null,24,"Manufacture of basic metals",null,":",null,":",null,":",null,":",null,":",null,":",null,":",null,":",null,":",null,":",null,":",null,":"]
["S11_S12","C25-C30","EPS_P2",null,null,null,"25-30","Manufacture of fabricated metal products, including machinery and equipment",null,":",null,":",null,":",null,":",null,":",null,":",null,":",null,":",null,":",null,":",null,":",null,":"]
["S11_S12","C13-C16_C18_C31-C33","EPS_P2",null,null,null,"13-16, 18, 31-33","Other manufacturing activities",null,":",null,":",null,":",null,":",null,":",null,":",null,":",null,":",null,":",null,":",null,":",null,":"]
["S11_S12","C10-C12","EPS_P2_EPS",null,"( P2_EPS.3bA )  Intermediate consumption of EP services for ancillary production of EP services ",null,"10-12'","Manufacture of food, beverages and tobacco products",null,":",null,":",null,":",null,":",null,":",null,":",null,":",null,":",null,":",null,":",null,":",null,":"]
["S11_S12","C17","EPS_P2_EPS",null,"(P2_EPS.3x: please consider the explanatory notes - click here)",null,17,"Manufacture of paper and paper products",null,":",null,":",null,":",null,":",null,":",null,":",null,":",null,":",null,":",null,":",null,":",null,":"]
["S11_S12","C19_C20","EPS_P2_EPS",null,null,null,"19-20","Manufacture of coke, chemicals and refined petroleum and chemical products",null,":",null,":",null,":",null,":",null,":",null,":",null,":",null,":",null,":",null,":",null,":",null,":"]
["S11_S12","C21-C23","EPS_P2_EPS",null,null,null,"21-23","Manufacture of pharmaceuticals, rubber, plastic and other non-metallic products",null,":",null,":",null,":",null,":",null,":",null,":",null,":",null,":",null,":",null,":",null,":",null,":"]
["S11_S12","C24","EPS_P2_EPS",null,null,null,24,"Manufacture of basic metals",null,":",null,":",null,":",null,":",null,":",null,":",null,":",null,":",null,":",null,":",null,":",null,":"]
["S11_S12","C25-C30","EPS_P2_EPS",null,null,null,"25-30","Manufacture of fabricated metal products, including machinery and equipment",null,":",null,":",null,":",null,":",null,":",null,":",null,":",null,":",null,":",null,":",null,":",null,":"]
["S11_S12","C13-C16_C18_C31-C33","EPS_P2_EPS",null,null,null,"13-16, 18, 31-33","Other manufacturing activities",null,":",null,":",null,":",null,":",null,":",null,":",null,":",null,":",null,":",null,":",null,":",null,":"]
["S11_S12","C10-C12","EPS_P2_NEPS",null,"( P2_NEPS.3bA ) Intermediate consumption (excluding EP services)",null,"10-12'","Manufacture of food, beverages and tobacco products",null,":",null,":",null,":",null,":",null,":",null,":",null,":",null,":",null,":",null,":",null,":",null,":"]
["S11_S12","C17","EPS_P2_NEPS",null,null,null,17,"Manufacture of paper and paper products",null,":",null,":",null,":",null,":",null,":",null,":",null,":",null,":",null,":",null,":",null,":",null,":"]
["S11_S12","C19_C20","EPS_P2_NEPS",null,null,null,"19-20","Manufacture of coke, chemicals and refined petroleum and chemical products",null,":",null,":",null,":",null,":",null,":",null,":",null,":",null,":",null,":",null,":",null,":",null,":"]
["S11_S12","C21-C23","EPS_P2_NEPS",null,null,null,"21-23","Manufacture of pharmaceuticals, rubber, plastic and other non-metallic products",null,":",null,":",null,":",null,":",null,":",null,":",null,":",null,":",null,":",null,":",null,":",null,":"]
["S11_S12","C24","EPS_P2_NEPS",null,null,null,24,"Manufacture of basic metals",null,":",null,":",null,":",null,":",null,":",null,":",null,":",null,":",null,":",null,":",null,":",null,":"]
["S11_S12","C25-C30","EPS_P2_NEPS",null,null,null,"25-30","Manufacture of fabricated metal products, including machinery and equipment",null,":",null,":",null,":",null,":",null,":",null,":",null,":",null,":",null,":",null,":",null,":",null,":"]
["S11_S12","C13-C16_C18_C31-C33","EPS_P2_NEPS",null,null,null,"13-16, 18, 31-33","Other manufacturing activities",null,":",null,":",null,":",null,":",null,":",null,":",null,":",null,":",null,":",null,":",null,":",null,":"]
["S11_S12","C10-C12","EPS_D1",null,"( D1.3bA ) Compensation of employees",null,"10-12'","Manufacture of food, beverages and tobacco products",null,":",null,":",null,":",null,":",null,":",null,":",null,":",null,":",null,":",null,":",null,":",null,":"]
["S11_S12","C17","EPS_D1",null,null,null,17,"Manufacture of paper and paper products",null,":",null,":",null,":",null,":",null,":",null,":",null,":",null,":",null,":",null,":",null,":",null,":"]
["S11_S12","C19_C20","EPS_D1",null,null,null,"19-20","Manufacture of coke, chemicals and refined petroleum and chemical products",null,":",null,":",null,":",null,":",null,":",null,":",null,":",null,":",null,":",null,":",null,":",null,":"]
["S11_S12","C21-C23","EPS_D1",null,null,null,"21-23","Manufacture of pharmaceuticals, rubber, plastic and other non-metallic products",null,":",null,":",null,":",null,":",null,":",null,":",null,":",null,":",null,":",null,":",null,":",null,":"]
["S11_S12","C24","EPS_D1",null,null,null,24,"Manufacture of basic metals",null,":",null,":",null,":",null,":",null,":",null,":",null,":",null,":",null,":",null,":",null,":",null,":"]
["S11_S12","C25-C30","EPS_D1",null,null,null,"25-30","Manufacture of fabricated metal products, including machinery and equipment",null,":",null,":",null,":",null,":",null,":",null,":",null,":",null,":",null,":",null,":",null,":",null,":"]
["S11_S12","C13-C16_C18_C31-C33","EPS_D1",null,null,null,"13-16, 18, 31-33","Other manufacturing activities",null,":",null,":",null,":",null,":",null,":",null,":",null,":",null,":",null,":",null,":",null,":",null,":"]
["S11_S12","C10-C12","EPS_P1_ANC",null,"( P1_ANC.3bA ) Ancillary EP output (simplified valuation legally acceptable) ((P2_NEPS.3bA) + (D1.3bA))",null,"10-12'","Manufacture of food, beverages and tobacco products",null,":",null,":",null,":",null,":",null,":",null,":",null,":",null,":",null,":",null,":",null,":",null,":"]
["S11_S12","C17","EPS_P1_ANC",null,null,null,17,"Manufacture of paper and paper products",null,":",null,":",null,":",null,":",null,":",null,":",null,":",null,":",null,":",null,":",null,":",null,":"]
["S11_S12","C19_C20","EPS_P1_ANC",null,null,null,"19-20","Manufacture of coke, chemicals and refined petroleum and chemical products",null,":",null,":",null,":",null,":",null,":",null,":",null,":",null,":",null,":",null,":",null,":",null,":"]
["S11_S12","C21-C23","EPS_P1_ANC",null,null,null,"21-23","Manufacture of pharmaceuticals, rubber, plastic and other non-metallic products",null,":",null,":",null,":",null,":",null,":",null,":",null,":",null,":",null,":",null,":",null,":",null,":"]
["S11_S12","C24","EPS_P1_ANC",null,null,null,24,"Manufacture of basic metals",null,":",null,":",null,":",null,":",null,":",null,":",null,":",null,":",null,":",null,":",null,":",null,":"]
["S11_S12","C25-C30","EPS_P1_ANC",null,null,null,"25-30","Manufacture of fabricated metal products, including machinery and equipment",null,":",null,":",null,":",null,":",null,":",null,":",null,":",null,":",null,":",null,":",null,":",null,":"]
["S11_S12","C13-C16_C18_C31-C33","EPS_P1_ANC",null,null,null,"13-16, 18, 31-33","Other manufacturing activities",null,":",null,":",null,":",null,":",null,":",null,":",null,":",null,":",null,":",null,":",null,":",null,":"]
["S11_S12","C10-C12","EPS_D29X39",null,"( D29-D39.3bA ) Other taxes less subsidies on production",null,"10-12'","Manufacture of food, beverages and tobacco products",null,":",null,":",null,":",null,":",null,":",null,":",null,":",null,":",null,":",null,":",null,":",null,":"]
["S11_S12","C17","EPS_D29X39",null,null,null,17,"Manufacture of paper and paper products",null,":",null,":",null,":",null,":",null,":",null,":",null,":",null,":",null,":",null,":",null,":",null,":"]
["S11_S12","C19_C20","EPS_D29X39",null,null,null,"19-20","Manufacture of coke, chemicals and refined petroleum and chemical products",null,":",null,":",null,":",null,":",null,":",null,":",null,":",null,":",null,":",null,":",null,":",null,":"]
["S11_S12","C21-C23","EPS_D29X39",null,null,null,"21-23","Manufacture of pharmaceuticals, rubber, plastic and other non-metallic products",null,":",null,":",null,":",null,":",null,":",null,":",null,":",null,":",null,":",null,":",null,":",null,":"]
["S11_S12","C24","EPS_D29X39",null,null,null,24,"Manufacture of basic metals",null,":",null,":",null,":",null,":",null,":",null,":",null,":",null,":",null,":",null,":",null,":",null,":"]
["S11_S12","C25-C30","EPS_D29X39",null,null,null,"25-30","Manufacture of fabricated metal products, including machinery and equipment",null,":",null,":",null,":",null,":",null,":",null,":",null,":",null,":",null,":",null,":",null,":",null,":"]
["S11_S12","C13-C16_C18_C31-C33","EPS_D29X39",null,null,null,"13-16, 18, 31-33","Other manufacturing activities",null,":",null,":",null,":",null,":",null,":",null,":",null,":",null,":",null,":",null,":",null,":",null,":"]
["S11_S12","C10-C12","EPS_P51C",null,"( P51C.3bA ) Consumption of fixed capital",null,"10-12'","Manufacture of food, beverages and tobacco products",null,":",null,":",null,":",null,":",null,":",null,":",null,":",null,":",null,":",null,":",null,":",null,":"]
["S11_S12","C17","EPS_P51C",null,null,null,17,"Manufacture of paper and paper products",null,":",null,":",null,":",null,":",null,":",null,":",null,":",null,":",null,":",null,":",null,":",null,":"]
["S11_S12","C19_C20","EPS_P51C",null,null,null,"19-20","Manufacture of coke, chemicals and refined petroleum and chemical products",null,":",null,":",null,":",null,":",null,":",null,":",null,":",null,":",null,":",null,":",null,":",null,{"$f":"IF(COUNT(J72,N72,P72,R72,T72,V72,AD72)=7,SUM(J72,N72,P72,R72,T72,V72,AD72),\":\")","v":":"}]
["S11_S12","C21-C23","EPS_P51C",null,null,null,"21-23","Manufacture of pharmaceuticals, rubber, plastic and other non-metallic products",null,":",null,":",null,":",null,":",null,":",null,":",null,":",null,":",null,":",null,":",null,":",null,":"]
["S11_S12","C24","EPS_P51C",null,null,null,24,"Manufacture of basic metals",null,":",null,":",null,":",null,":",null,":",null,":",null,":",null,":",null,":",null,":",null,":",null,":"]
["S11_S12","C25-C30","EPS_P51C",null,null,null,"25-30","Manufacture of fabricated metal products, including machinery and equipment",null,":",null,":",null,":",null,":",null,":",null,":",null,":",null,":",null,":",null,":",null,":",null,":"]
["S11_S12","C13-C16_C18_C31-C33","EPS_P51C",null,null,null,"13-16, 18, 31-33","Other manufacturing activities",null,":",null,":",null,":",null,":",null,":",null,":",null,":",null,":",null,":",null,":",null,":",null,":"]
["S11_S12","C10-C12","EPS_P1_ANCESA",null,"( P1_ANC_ESA.3bA ) Ancillary EP output (ESA - compatible valuation) ((P2_NEPS.3bA) + (D1.3bA) +(P51C.3bA) + (D29-D39.3bA))",null,"10-12'","Manufacture of food, beverages and tobacco products",null,":",null,":",null,":",null,":",null,":",null,":",null,":",null,":",null,":",null,":",null,":",null,":"]
["S11_S12","C17","EPS_P1_ANCESA",null,null,null,17,"Manufacture of paper and paper products",null,":",null,":",null,":",null,":",null,":",null,":",null,":",null,":",null,":",null,":",null,":",null,":"]
["S11_S12","C19_C20","EPS_P1_ANCESA",null,null,null,"19-20","Manufacture of coke, chemicals and refined petroleum and chemical products",null,":",null,":",null,":",null,":",null,":",null,":",null,":",null,":",null,":",null,":",null,":",null,":"]
["S11_S12","C21-C23","EPS_P1_ANCESA",null,null,null,"21-23","Manufacture of pharmaceuticals, rubber, plastic and other non-metallic products",null,":",null,":",null,":",null,":",null,":",null,":",null,":",null,":",null,":",null,":",null,":",null,":"]
["S11_S12","C24","EPS_P1_ANCESA",null,null,null,24,"Manufacture of basic metals",null,":",null,":",null,":",null,":",null,":",null,":",null,":",null,":",null,":",null,":",null,":",null,":"]
["S11_S12","C25-C30","EPS_P1_ANCESA",null,null,null,"25-30","Manufacture of fabricated metal products, including machinery and equipment",null,":",null,":",null,":",null,":",null,":",null,":",null,":",null,":",null,":",null,":",null,":",null,":"]
["S11_S12","C13-C16_C18_C31-C33","EPS_P1_ANCESA",null,null,null,"13-16, 18, 31-33","Other manufacturing activities",null,":",null,":",null,":",null,":",null,":",null,":",null,":",null,":",null,":",null,":",null,":",null,":"]
["S11_S12","C10-C12","EPS_REC_BYPR",null,"( RNO.3bA ) Related non-EP output",null,"10-12'","Manufacture of food, beverages and tobacco products",null,":",null,":",null,":",null,":",null,":",null,":",null,":",null,":",null,":",null,":",null,":",null,":"]
["S11_S12","C17","EPS_REC_BYPR",null,null,null,17,"Manufacture of paper and paper products",null,":",null,":",null,":",null,":",null,":",null,":",null,":",null,":",null,":",null,":",null,":",null,":"]
["S11_S12","C19_C20","EPS_REC_BYPR",null,null,null,"19-20","Manufacture of coke, chemicals and refined petroleum and chemical products",null,":",null,":",null,":",null,":",null,":",null,":",null,":",null,":",null,":",null,":",null,":",null,":"]
["S11_S12","C21-C23","EPS_REC_BYPR",null,null,null,"21-23","Manufacture of pharmaceuticals, rubber, plastic and other non-metallic products",null,":",null,":",null,":",null,":",null,":",null,":",null,":",null,":",null,":",null,":",null,":",null,":"]
["S11_S12","C24","EPS_REC_BYPR",null,null,null,24,"Manufacture of basic metals",null,":",null,":",null,":",null,":",null,":",null,":",null,":",null,":",null,":",null,":",null,":",null,":"]
["S11_S12","C25-C30","EPS_REC_BYPR",null,null,null,"25-30","Manufacture of fabricated metal products, including machinery and equipment",null,":",null,":",null,":",null,":",null,":",null,":",null,":",null,":",null,":",null,":",null,":",null,":"]
["S11_S12","C13-C16_C18_C31-C33","EPS_REC_BYPR",null,null,null,"13-16, 18, 31-33","Other manufacturing activities",null,":",null,":",null,":",null,":",null,":",null,":",null,":",null,":",null,":",null,":",null,":",null,":"]
["S11_S12","C10-C12","TOT_P2_EPS","Transactions as users of EP services (ancillary production of EP services and other production)","( P2_EPS_EXT.3bA ) Total intermediate consumption of EP services (for production of EP services and for other production)",null,"10-12'","Manufacture of food, beverages and tobacco products",null,":",null,":",null,":",null,":",null,":",null,":",null,":",null,":",null,":",null,":",null,":",null,":"]
["S11_S12","C17","TOT_P2_EPS",null,"(P2_EPS_EXT.3x: please consider the explanatory notes - click here)",null,17,"Manufacture of paper and paper products",null,":",null,":",null,":",null,":",null,":",null,":",null,":",null,":",null,":",null,":",null,":",null,":"]
["S11_S12","C19_C20","TOT_P2_EPS",null,null,null,"19-20","Manufacture of coke, chemicals and refined petroleum and chemical products",null,":",null,":",null,":",null,":",null,":",null,":",null,":",null,":",null,":",null,":",null,":",null,":"]
["S11_S12","C21-C23","TOT_P2_EPS",null,null,null,"21-23","Manufacture of pharmaceuticals, rubber, plastic and other non-metallic products",null,":",null,":",null,":",null,":",null,":",null,":",null,":",null,":",null,":",null,":",null,":",null,":"]
["S11_S12","C24","TOT_P2_EPS",null,null,null,24,"Manufacture of basic metals",null,":",null,":",null,":",null,":",null,":",null,":",null,":",null,":",null,":",null,":",null,":",null,":"]
["S11_S12","C25-C30","TOT_P2_EPS",null,null,null,"25-30","Manufacture of fabricated metal products, including machinery and equipment",null,":",null,":",null,":",null,":",null,":",null,":",null,":",null,":",null,":",null,":",null,":",null,":"]
["S11_S12","C13-C16_C18_C31-C33","TOT_P2_EPS",null,null,null,"13-16, 18, 31-33","Other manufacturing activities",null,":",null,":",null,":",null,":",null,":",null,":",null,":",null,":",null,":",null,":",null,":",null,":"]
["S11_S12","C10-C12","EPS_EMP","Transactions of producers of ancillary EP services","( EMP.3bA ) Employment (full time equivalent)",null,"10-12'","Manufacture of food, beverages and tobacco products",null,":",null,":",null,":",null,":",null,":",null,":",null,":",null,":",null,":",null,":",null,":",null,":"]
["S11_S12","C17","EPS_EMP",null,null,null,17,"Manufacture of paper and paper products",null,":",null,":",null,":",null,":",null,":",null,":",null,":",null,":",null,":",null,":",null,":",null,":"]
["S11_S12","C19_C20","EPS_EMP",null,null,null,"19-20","Manufacture of coke, chemicals and refined petroleum and chemical products",null,":",null,":",null,":",null,":",null,":",null,":",null,":",null,":",null,":",null,":",null,":",null,":"]
["S11_S12","C21-C23","EPS_EMP",null,null,null,"21-23","Manufacture of pharmaceuticals, rubber, plastic and other non-metallic products",null,":",null,":",null,":",null,":",null,":",null,":",null,":",null,":",null,":",null,":",null,":",null,":"]
["S11_S12","C24","EPS_EMP",null,null,null,24,"Manufacture of basic metals",null,":",null,":",null,":",null,":",null,":",null,":",null,":",null,":",null,":",null,":",null,":",null,":"]
["S11_S12","C25-C30","EPS_EMP",null,null,null,"25-30","Manufacture of fabricated metal products, including machinery and equipment",null,":",null,":",null,":",null,":",null,":",null,":",null,":",null,":",null,":",null,":",null,":",null,":"]
["S11_S12","C13-C16_C18_C31-C33","EPS_EMP",null,null,null,"13-16, 18, 31-33","Other manufacturing activities",null,":",null,":",null,":",null,":",null,":",null,":",null,":",null,":",null,":",null,":",null,":",null,{"$f":"IF(COUNT(J104,N104,P104,R104,T104,V104,AD104)=7,SUM(J104,N104,P104,R104,T104,V104,AD104),\":\")","v":":"}]

{"sheet":"3b_Add_2022","index":24,"n_rows":104,"n_cols":32,"rows_kept":104,"cut":false,"hidden":true,"merged":[[12,7,12,8],[13,4,13,5],[13,7,13,8],[14,7,14,8],[15,7,15,8],[16,7,16,8],[0,4,0,8],[0,9,0,16],[1,4,1,8],[1,9,1,32],[2,9,2,32],[3,9,4,10],[3,11,4,12],[3,13,4,14],[3,15,4,16],[3,17,4,18],[3,31,4,32],[4,4,4,5],[3,21,4,22],[3,23,4,24],[3,25,4,26],[3,27,4,28],[3,29,4,30],[3,19,4,20],[22,7,22,8],[23,7,23,8],[24,7,24,8],[25,7,25,8],[26,7,26,8],[28,7,28,8],[27,4,27,5],[27,7,27,8],[17,7,17,8],[18,7,18,8],[19,7,19,8],[20,4,20,5],[20,7,20,8],[21,7,21,8],[34,4,34,5],[34,7,34,8],[35,4,35,5],[35,7,35,8],[36,7,36,8],[37,7,37,8],[29,7,29,8],[30,7,30,8],[31,7,31,8],[32,7,32,8],[33,7,33,8],[43,7,43,8],[44,7,44,8],[45,7,45,8],[46,7,46,8],[47,7,47,8],[48,4,48,5],[48,7,48,8],[38,7,38,8],[39,7,39,8],[40,7,40,8],[41,4,41,5],[41,7,41,8],[42,7,42,8],[55,4,55,5],[55,7,55,8],[56,7,56,8],[57,7,57,8],[58,7,58,8],[59,7,59,8],[49,7,49,8],[50,7,50,8],[51,7,51,8],[52,7,52,8],[53,7,53,8],[54,7,54,8],[65,7,65,8],[66,7,66,8],[67,7,67,8],[68,7,68,8],[69,4,69,5],[69,7,69,8],[60,7,60,8],[61,7,61,8],[62,4,62,5],[62,7,62,8],[63,7,63,8],[64,7,64,8],[76,4,76,5],[76,7,76,8],[77,7,77,8],[78,7,78,8],[79,7,79,8],[80,7,80,8],[70,7,70,8],[71,7,71,8],[72,7,72,8],[73,7,73,8],[74,7,74,8],[75,7,75,8],[86,7,86,8],[87,7,87,8],[88,7,88,8],[89,7,89,8],[90,3,96,3],[90,4,90,5],[90,7,90,8],[91,4,91,5],[91,7,91,8],[92,7,92,8],[6,3,89,3],[6,4,6,5],[6,7,6,8],[7,7,7,8],[8,7,8,8],[9,7,9,8],[10,7,10,8],[11,7,11,8],[81,7,81,8],[82,7,82,8],[83,4,83,5],[83,7,83,8],[84,7,84,8],[85,7,85,8],[101,7,101,8],[102,7,102,8],[103,7,103,8],[93,7,93,8],[94,7,94,8],[95,7,95,8],[96,7,96,8],[97,3,103,3],[97,4,97,5],[97,7,97,8],[98,7,98,8],[99,7,99,8],[100,7,100,8]]}
[null,null,null,null,{"$f":"Cover!$B$21","v":"QUESTIONNAIRE ON ENVIRONMENTAL PROTECTION EXPENDITURE ACCOUNTS"},null,null,null,null,"Table 3b Add.: Detailed Manufacturing Industries"]
[null,null,null,null,{"$f":"E1","v":"QUESTIONNAIRE ON ENVIRONMENTAL PROTECTION EXPENDITURE ACCOUNTS"},null,null,null,null,{"$f":"J1 & \" - \" & I5","v":"Table 3b Add.: Detailed Manufacturing Industries - 2022"}]
[null,null,null,null,null,null,null,null,null,"Mandatory and voluntary variables and environmental domains - please fill in as much as possible"]
[null,null,null,null,"Country/Unit",{"$f":"IFERROR(Cover!C16,\"\")","v":""},{"$f":"\"\"&Cover!B16","v":""},null,{"$f":"Cover!B17","v":"Million units of national currency"},"CEPA 1",null,"of which CEPA 1.1.2 and 1.2.2 Climate change",null,"CEPA 2",null,"CEPA 3",null,"CEPA 4",null,"CEPA 5",null,"CEPA 6",null,"CEPA 7",null,"CEPA 8",null,"CEPA 9",null,"Sum of CEPA 7+8+9",null,"TOTAL"]
[null,null,null,null,"Expenditure",null,null,"YEAR",2022,null,null,null,null,null,null,null,null,null,null,null,null,null,null,null,null,null,null,null,null,null,null,"Landscape"]
[null,null,null,null,null,null,null,null,null,"CEPA1",null,"CEPA112_122",null,"CEPA2",null,"CEPA3",null,"CEPA4",null,"CEPA5",null,"CEPA6",null,"CEPA7",null,"CEPA8",null,"CEPA9",null,"CEPA7-9",null,"TOT_CEPA"]
["S11_S12","C10-C12","EPS_P51G_NP","Transactions of producers of ancillary EP services","( P51G_NP.3bA ) Gross fixed capital formation and acquisition less disposals of non-financial, non-produced assets",null,"10-12","Manufacture of food, beverages and tobacco products",null,":",null,":",null,":",null,":",null,":",null,":",null,":",null,":",null,":",null,":",null,":",null,{"$f":"IF(COUNT(J7,N7,P7,R7,T7,V7,AD7)=7,SUM(J7,N7,P7,R7,T7,V7,AD7),\":\")","v":":"}]
["S11_S12","C17","EPS_P51G_NP",null,null,null,17,"Manufacture of paper and paper products",null,":",null,":",null,":",null,":",null,":",null,":",null,":",null,":",null,":",null,":",null,":",null,{"$f":"IF(COUNT(J8,N8,P8,R8,T8,V8,AD8)=7,SUM(J8,N8,P8,R8,T8,V8,AD8),\":\")","v":":"}]
["S11_S12","C19_C20","EPS_P51G_NP",null,null,null,"19-20","Manufacture of coke, chemicals and refined petroleum and chemical products",null,":",null,":",null,":",null,":",null,":",null,":",null,":",null,":",null,":",null,":",null,":",null,":"]
["S11_S12","C21-C23","EPS_P51G_NP",null,null,null,"21-23","Manufacture of pharmaceuticals, rubber, plastic and other non-metallic products",null,":",null,":",null,":",null,":",null,":",null,":",null,":",null,":",null,":",null,":",null,":",null,":"]
["S11_S12","C24","EPS_P51G_NP",null,null,null,24,"Manufacture of basic metals",null,":",null,":",null,":",null,":",null,":",null,":",null,":",null,":",null,":",null,":",null,":",null,":"]
["S11_S12","C25-C30","EPS_P51G_NP",null,null,null,"25-30","Manufacture of fabricated metal products, including machinery and equipment",null,":",null,":",null,":",null,":",null,":",null,":",null,":",null,":",null,":",null,":",null,":",null,":"]
["S11_S12","C13-C16_C18_C31-C33","EPS_P51G_NP",null,null,null,"13-16, 18, 31-33","Other manufacturing activities",null,":",null,":",null,":",null,":",null,":",null,":",null,":",null,":",null,":",null,":",null,":",null,":"]
["S11_S12","C10-C12","EPS_INV_PT",null,"( INV_EOP.3bA ) GFCF on specific EP fixed assets (end-of-pipe technologies)",null,"10-12'","Manufacture of food, beverages and tobacco products",null,":",null,":",null,":",null,":",null,":",null,":",null,":",null,":",null,":",null,":",null,":",null,":"]
["S11_S12","C17","EPS_INV_PT",null,null,null,17,"Manufacture of paper and paper products",null,":",null,":",null,":",null,":",null,":",null,":",null,":",null,":",null,":",null,":",null,":",null,":"]
["S11_S12","C19_C20","EPS_INV_PT",null,null,null,"19-20","Manufacture of coke, chemicals and refined petroleum and chemical products",null,":",null,":",null,":",null,":",null,":",null,":",null,":",null,":",null,":",null,":",null,":",null,":"]
["S11_S12","C21-C23","EPS_INV_PT",null,null,null,"21-23","Manufacture of pharmaceuticals, rubber, plastic and other non-metallic products",null,":",null,":",null,":",null,":",null,":",null,":",null,":",null,":",null,":",null,":",null,":",null,":"]
["S11_S12","C24","EPS_INV_PT",null,null,null,24,"Manufacture of basic metals",null,":",null,":",null,":",null,":",null,":",null,":",null,":",null,":",null,":",null,":",null,":",null,":"]
["S11_S12","C25-C30","EPS_INV_PT",null,null,null,"25-30","Manufacture of fabricated metal products, including machinery and equipment",null,":",null,":",null,":",null,":",null,":",null,":",null,":",null,":",null,":",null,":",null,":",null,":"]
["S11_S12","C13-C16_C18_C31-C33","EPS_INV_PT",null,null,null,"13-16, 18, 31-33","Other manufacturing activities",null,":",null,":",null,":",null,":",null,":",null,":",null,":",null,":",null,":",null,":",null,":",null,":"]
["S11_S12","C10-C12","EPS_INV_PP",null,"( INV_IT.3bA ) GFCF on cleaner EP fixed assets (integrated technologies)",null,"10-12'","Manufacture of food, beverages and tobacco products",null,":",null,":",null,":",null,":",null,":",null,":",null,":",null,":",null,":",null,":",null,":",null,":"]
["S11_S12","C17","EPS_INV_PP",null,null,null,17,"Manufacture of paper and paper products",null,":",null,":",null,":",null,":",null,":",null,":",null,":",null,":",null,":",null,":",null,":",null,":"]
["S11_S12","C19_C20","EPS_INV_PP",null,null,null,"19-20","Manufacture of coke, chemicals and refined petroleum and chemical products",null,":",null,":",null,":",null,":",null,":",null,":",null,":",null,":",null,":",null,":",null,":",null,":"]
["S11_S12","C21-C23","EPS_INV_PP",null,null,null,"21-23","Manufacture of pharmaceuticals, rubber, plastic and other non-metallic products",null,":",null,":",null,":",null,":",null,":",null,":",null,":",null,":",null,":",null,":",null,":",null,":"]
["S11_S12","C24","EPS_INV_PP",null,null,null,24,"Manufacture of basic metals",null,":",null,":",null,":",null,":",null,":",null,":",null,":",null,":",null,":",null,":",null,":",null,":"]
["S11_S12","C25-C30","EPS_INV_PP",null,null,null,"25-30","Manufacture of fabricated metal products, including machinery and equipment",null,":",null,":",null,":",null,":",null,":",null,":",null,":",null,":",null,":",null,":",null,":",null,":"]
["S11_S12","C13-C16_C18_C31-C33","EPS_INV_PP",null,null,null,"13-16, 18, 31-33","Other manufacturing activities",null,":",null,":",null,":",null,":",null,":",null,":",null,":",null,":",null,":",null,":",null,":",null,":"]
["S11_S12","C10-C12","EPS_P2",null,"( P2.3bA ) Total intermediate consumption",null,"10-12'","Manufacture of food, beverages and tobacco products",null,":",null,":",null,":",null,":",null,":",null,":",null,":",null,":",null,":",null,":",null,":",null,":"]
["S11_S12","C17","EPS_P2",null,null,null,17,"Manufacture of paper and paper products",null,":",null,":",null,":",null,":",null,":",null,":",null,":",null,":",null,":",null,":",null,":",null,":"]
["S11_S12","C19_C20","EPS_P2",null,null,null,"19-20","Manufacture of coke, chemicals and refined petroleum and chemical products",null,":",null,":",null,":",null,":",null,":",null,":",null,":",null,":",null,":",null,":",null,":",null,":"]
["S11_S12","C21-C23","EPS_P2",null,null,null,"21-23","Manufacture of pharmaceuticals, rubber, plastic and other non-metallic products",null,":",null,":",null,":",null,":",null,":",null,":",null,":",null,":",null,":",null,":",null,":",null,":"]
["S11_S12","C24","EPS_P2",null,null,null,24,"Manufacture of basic metals",null,":",null,":",null,":",null,":",null,":",null,":",null,":",null,":",null,":",null,":",null,":",null,":"]
["S11_S12","C25-C30","EPS_P2",null,null,null,"25-30","Manufacture of fabricated metal products, including machinery and equipment",null,":",null,":",null,":",null,":",null,":",null,":",null,":",null,":",null,":",null,":",null,":",null,":"]
["S11_S12","C13-C16_C18_C31-C33","EPS_P2",null,null,null,"13-16, 18, 31-33","Other manufacturing activities",null,":",null,":",null,":",null,":",null,":",null,":",null,":",null,":",null,":",null,":",null,":",null,":"]
["S11_S12","C10-C12","EPS_P2_EPS",null,"( P2_EPS.3bA )  Intermediate consumption of EP services for ancillary production of EP services ",null,"10-12'","Manufacture of food, beverages and tobacco products",null,":",null,":",null,":",null,":",null,":",null,":",null,":",null,":",null,":",null,":",null,":",null,":"]
["S11_S12","C17","EPS_P2_EPS",null,"(P2_EPS.3x: please consider the explanatory notes - click here)",null,17,"Manufacture of paper and paper products",null,":",null,":",null,":",null,":",null,":",null,":",null,":",null,":",null,":",null,":",null,":",null,":"]
["S11_S12","C19_C20","EPS_P2_EPS",null,null,null,"19-20","Manufacture of coke, chemicals and refined petroleum and chemical products",null,":",null,":",null,":",null,":",null,":",null,":",null,":",null,":",null,":",null,":",null,":",null,":"]
["S11_S12","C21-C23","EPS_P2_EPS",null,null,null,"21-23","Manufacture of pharmaceuticals, rubber, plastic and other non-metallic products",null,":",null,":",null,":",null,":",null,":",null,":",null,":",null,":",null,":",null,":",null,":",null,":"]
["S11_S12","C24","EPS_P2_EPS",null,null,null,24,"Manufacture of basic metals",null,":",null,":",null,":",null,":",null,":",null,":",null,":",null,":",null,":",null,":",null,":",null,":"]
["S11_S12","C25-C30","EPS_P2_EPS",null,null,null,"25-30","Manufacture of fabricated metal products, including machinery and equipment",null,":",null,":",null,":",null,":",null,":",null,":",null,":",null,":",null,":",null,":",null,":",null,":"]
["S11_S12","C13-C16_C18_C31-C33","EPS_P2_EPS",null,null,null,"13-16, 18, 31-33","Other manufacturing activities",null,":",null,":",null,":",null,":",null,":",null,":",null,":",null,":",null,":",null,":",null,":",null,":"]
["S11_S12","C10-C12","EPS_P2_NEPS",null,"( P2_NEPS.3bA ) Intermediate consumption (excluding EP services)",null,"10-12'","Manufacture of food, beverages and tobacco products",null,":",null,":",null,":",null,":",null,":",null,":",null,":",null,":",null,":",null,":",null,":",null,":"]
["S11_S12","C17","EPS_P2_NEPS",null,null,null,17,"Manufacture of paper and paper products",null,":",null,":",null,":",null,":",null,":",null,":",null,":",null,":",null,":",null,":",null,":",null,":"]
["S11_S12","C19_C20","EPS_P2_NEPS",null,null,null,"19-20","Manufacture of coke, chemicals and refined petroleum and chemical products",null,":",null,":",null,":",null,":",null,":",null,":",null,":",null,":",null,":",null,":",null,":",null,":"]
["S11_S12","C21-C23","EPS_P2_NEPS",null,null,null,"21-23","Manufacture of pharmaceuticals, rubber, plastic and other non-metallic products",null,":",null,":",null,":",null,":",null,":",null,":",null,":",null,":",null,":",null,":",null,":",null,":"]
["S11_S12","C24","EPS_P2_NEPS",null,null,null,24,"Manufacture of basic metals",null,":",null,":",null,":",null,":",null,":",null,":",null,":",null,":",null,":",null,":",null,":",null,":"]
["S11_S12","C25-C30","EPS_P2_NEPS",null,null,null,"25-30","Manufacture of fabricated metal products, including machinery and equipment",null,":",null,":",null,":",null,":",null,":",null,":",null,":",null,":",null,":",null,":",null,":",null,":"]
["S11_S12","C13-C16_C18_C31-C33","EPS_P2_NEPS",null,null,null,"13-16, 18, 31-33","Other manufacturing activities",null,":",null,":",null,":",null,":",null,":",null,":",null,":",null,":",null,":",null,":",null,":",null,":"]
["S11_S12","C10-C12","EPS_D1",null,"( D1.3bA ) Compensation of employees",null,"10-12'","Manufacture of food, beverages and tobacco products",null,":",null,":",null,":",null,":",null,":",null,":",null,":",null,":",null,":",null,":",null,":",null,":"]
["S11_S12","C17","EPS_D1",null,null,null,17,"Manufacture of paper and paper products",null,":",null,":",null,":",null,":",null,":",null,":",null,":",null,":",null,":",null,":",null,":",null,":"]
["S11_S12","C19_C20","EPS_D1",null,null,null,"19-20","Manufacture of coke, chemicals and refined petroleum and chemical products",null,":",null,":",null,":",null,":",null,":",null,":",null,":",null,":",null,":",null,":",null,":",null,":"]
["S11_S12","C21-C23","EPS_D1",null,null,null,"21-23","Manufacture of pharmaceuticals, rubber, plastic and other non-metallic products",null,":",null,":",null,":",null,":",null,":",null,":",null,":",null,":",null,":",null,":",null,":",null,":"]
["S11_S12","C24","EPS_D1",null,null,null,24,"Manufacture of basic metals",null,":",null,":",null,":",null,":",null,":",null,":",null,":",null,":",null,":",null,":",null,":",null,":"]
["S11_S12","C25-C30","EPS_D1",null,null,null,"25-30","Manufacture of fabricated metal products, including machinery and equipment",null,":",null,":",null,":",null,":",null,":",null,":",null,":",null,":",null,":",null,":",null,":",null,":"]
["S11_S12","C13-C16_C18_C31-C33","EPS_D1",null,null,null,"13-16, 18, 31-33","Other manufacturing activities",null,":",null,":",null,":",null,":",null,":",null,":",null,":",null,":",null,":",null,":",null,":",null,":"]
["S11_S12","C10-C12","EPS_P1_ANC",null,"( P1_ANC.3bA ) Ancillary EP output (simplified valuation legally acceptable) ((P2_NEPS.3bA) + (D1.3bA))",null,"10-12'","Manufacture of food, beverages and tobacco products",null,":",null,":",null,":",null,":",null,":",null,":",null,":",null,":",null,":",null,":",null,":",null,":"]
["S11_S12","C17","EPS_P1_ANC",null,null,null,17,"Manufacture of paper and paper products",null,":",null,":",null,":",null,":",null,":",null,":",null,":",null,":",null,":",null,":",null,":",null,":"]
["S11_S12","C19_C20","EPS_P1_ANC",null,null,null,"19-20","Manufacture of coke, chemicals and refined petroleum and chemical products",null,":",null,":",null,":",null,":",null,":",null,":",null,":",null,":",null,":",null,":",null,":",null,":"]
["S11_S12","C21-C23","EPS_P1_ANC",null,null,null,"21-23","Manufacture of pharmaceuticals, rubber, plastic and other non-metallic products",null,":",null,":",null,":",null,":",null,":",null,":",null,":",null,":",null,":",null,":",null,":",null,":"]
["S11_S12","C24","EPS_P1_ANC",null,null,null,24,"Manufacture of basic metals",null,":",null,":",null,":",null,":",null,":",null,":",null,":",null,":",null,":",null,":",null,":",null,":"]
["S11_S12","C25-C30","EPS_P1_ANC",null,null,null,"25-30","Manufacture of fabricated metal products, including machinery and equipment",null,":",null,":",null,":",null,":",null,":",null,":",null,":",null,":",null,":",null,":",null,":",null,":"]
["S11_S12","C13-C16_C18_C31-C33","EPS_P1_ANC",null,null,null,"13-16, 18, 31-33","Other manufacturing activities",null,":",null,":",null,":",null,":",null,":",null,":",null,":",null,":",null,":",null,":",null,":",null,":"]
["S11_S12","C10-C12","EPS_D29X39",null,"( D29-D39.3bA ) Other taxes less subsidies on production",null,"10-12'","Manufacture of food, beverages and tobacco products",null,":",null,":",null,":",null,":",null,":",null,":",null,":",null,":",null,":",null,":",null,":",null,":"]
["S11_S12","C17","EPS_D29X39",null,null,null,17,"Manufacture of paper and paper products",null,":",null,":",null,":",null,":",null,":",null,":",null,":",null,":",null,":",null,":",null,":",null,":"]
["S11_S12","C19_C20","EPS_D29X39",null,null,null,"19-20","Manufacture of coke, chemicals and refined petroleum and chemical products",null,":",null,":",null,":",null,":",null,":",null,":",null,":",null,":",null,":",null,":",null,":",null,":"]
["S11_S12","C21-C23","EPS_D29X39",null,null,null,"21-23","Manufacture of pharmaceuticals, rubber, plastic and other non-metallic products",null,":",null,":",null,":",null,":",null,":",null,":",null,":",null,":",null,":",null,":",null,":",null,":"]
["S11_S12","C24","EPS_D29X39",null,null,null,24,"Manufacture of basic metals",null,":",null,":",null,":",null,":",null,":",null,":",null,":",null,":",null,":",null,":",null,":",null,":"]
["S11_S12","C25-C30","EPS_D29X39",null,null,null,"25-30","Manufacture of fabricated metal products, including machinery and equipment",null,":",null,":",null,":",null,":",null,":",null,":",null,":",null,":",null,":",null,":",null,":",null,":"]
["S11_S12","C13-C16_C18_C31-C33","EPS_D29X39",null,null,null,"13-16, 18, 31-33","Other manufacturing activities",null,":",null,":",null,":",null,":",null,":",null,":",null,":",null,":",null,":",null,":",null,":",null,":"]
["S11_S12","C10-C12","EPS_P51C",null,"( P51C.3bA ) Consumption of fixed capital",null,"10-12'","Manufacture of food, beverages and tobacco products",null,":",null,":",null,":",null,":",null,":",null,":",null,":",null,":",null,":",null,":",null,":",null,":"]
["S11_S12","C17","EPS_P51C",null,null,null,17,"Manufacture of paper and paper products",null,":",null,":",null,":",null,":",null,":",null,":",null,":",null,":",null,":",null,":",null,":",null,":"]
["S11_S12","C19_C20","EPS_P51C",null,null,null,"19-20","Manufacture of coke, chemicals and refined petroleum and chemical products",null,":",null,":",null,":",null,":",null,":",null,":",null,":",null,":",null,":",null,":",null,":",null,{"$f":"IF(COUNT(J72,N72,P72,R72,T72,V72,AD72)=7,SUM(J72,N72,P72,R72,T72,V72,AD72),\":\")","v":":"}]
["S11_S12","C21-C23","EPS_P51C",null,null,null,"21-23","Manufacture of pharmaceuticals, rubber, plastic and other non-metallic products",null,":",null,":",null,":",null,":",null,":",null,":",null,":",null,":",null,":",null,":",null,":",null,":"]
["S11_S12","C24","EPS_P51C",null,null,null,24,"Manufacture of basic metals",null,":",null,":",null,":",null,":",null,":",null,":",null,":",null,":",null,":",null,":",null,":",null,":"]
["S11_S12","C25-C30","EPS_P51C",null,null,null,"25-30","Manufacture of fabricated metal products, including machinery and equipment",null,":",null,":",null,":",null,":",null,":",null,":",null,":",null,":",null,":",null,":",null,":",null,":"]
["S11_S12","C13-C16_C18_C31-C33","EPS_P51C",null,null,null,"13-16, 18, 31-33","Other manufacturing activities",null,":",null,":",null,":",null,":",null,":",null,":",null,":",null,":",null,":",null,":",null,":",null,":"]
["S11_S12","C10-C12","EPS_P1_ANCESA",null,"( P1_ANC_ESA.3bA ) Ancillary EP output (ESA - compatible valuation) ((P2_NEPS.3bA) + (D1.3bA) +(P51C.3bA) + (D29-D39.3bA))",null,"10-12'","Manufacture of food, beverages and tobacco products",null,":",null,":",null,":",null,":",null,":",null,":",null,":",null,":",null,":",null,":",null,":",null,":"]
["S11_S12","C17","EPS_P1_ANCESA",null,null,null,17,"Manufacture of paper and paper products",null,":",null,":",null,":",null,":",null,":",null,":",null,":",null,":",null,":",null,":",null,":",null,":"]
["S11_S12","C19_C20","EPS_P1_ANCESA",null,null,null,"19-20","Manufacture of coke, chemicals and refined petroleum and chemical products",null,":",null,":",null,":",null,":",null,":",null,":",null,":",null,":",null,":",null,":",null,":",null,":"]
["S11_S12","C21-C23","EPS_P1_ANCESA",null,null,null,"21-23","Manufacture of pharmaceuticals, rubber, plastic and other non-metallic products",null,":",null,":",null,":",null,":",null,":",null,":",null,":",null,":",null,":",null,":",null,":",null,":"]
["S11_S12","C24","EPS_P1_ANCESA",null,null,null,24,"Manufacture of basic metals",null,":",null,":",null,":",null,":",null,":",null,":",null,":",null,":",null,":",null,":",null,":",null,":"]
["S11_S12","C25-C30","EPS_P1_ANCESA",null,null,null,"25-30","Manufacture of fabricated metal products, including machinery and equipment",null,":",null,":",null,":",null,":",null,":",null,":",null,":",null,":",null,":",null,":",null,":",null,":"]
["S11_S12","C13-C16_C18_C31-C33","EPS_P1_ANCESA",null,null,null,"13-16, 18, 31-33","Other manufacturing activities",null,":",null,":",null,":",null,":",null,":",null,":",null,":",null,":",null,":",null,":",null,":",null,":"]
["S11_S12","C10-C12","EPS_REC_BYPR",null,"( RNO.3bA ) Related non-EP output",null,"10-12'","Manufacture of food, beverages and tobacco products",null,":",null,":",null,":",null,":",null,":",null,":",null,":",null,":",null,":",null,":",null,":",null,":"]
["S11_S12","C17","EPS_REC_BYPR",null,null,null,17,"Manufacture of paper and paper products",null,":",null,":",null,":",null,":",null,":",null,":",null,":",null,":",null,":",null,":",null,":",null,":"]
["S11_S12","C19_C20","EPS_REC_BYPR",null,null,null,"19-20","Manufacture of coke, chemicals and refined petroleum and chemical products",null,":",null,":",null,":",null,":",null,":",null,":",null,":",null,":",null,":",null,":",null,":",null,":"]
["S11_S12","C21-C23","EPS_REC_BYPR",null,null,null,"21-23","Manufacture of pharmaceuticals, rubber, plastic and other non-metallic products",null,":",null,":",null,":",null,":",null,":",null,":",null,":",null,":",null,":",null,":",null,":",null,":"]
["S11_S12","C24","EPS_REC_BYPR",null,null,null,24,"Manufacture of basic metals",null,":",null,":",null,":",null,":",null,":",null,":",null,":",null,":",null,":",null,":",null,":",null,":"]
["S11_S12","C25-C30","EPS_REC_BYPR",null,null,null,"25-30","Manufacture of fabricated metal products, including machinery and equipment",null,":",null,":",null,":",null,":",null,":",null,":",null,":",null,":",null,":",null,":",null,":",null,":"]
["S11_S12","C13-C16_C18_C31-C33","EPS_REC_BYPR",null,null,null,"13-16, 18, 31-33","Other manufacturing activities",null,":",null,":",null,":",null,":",null,":",null,":",null,":",null,":",null,":",null,":",null,":",null,":"]
["S11_S12","C10-C12","TOT_P2_EPS","Transactions as users of EP services (ancillary production of EP services and other production)","( P2_EPS_EXT.3bA ) Total intermediate consumption of EP services (for production of EP services and for other production)",null,"10-12'","Manufacture of food, beverages and tobacco products",null,":",null,":",null,":",null,":",null,":",null,":",null,":",null,":",null,":",null,":",null,":",null,":"]
["S11_S12","C17","TOT_P2_EPS",null,"(P2_EPS_EXT.3x: please consider the explanatory notes - click here)",null,17,"Manufacture of paper and paper products",null,":",null,":",null,":",null,":",null,":",null,":",null,":",null,":",null,":",null,":",null,":",null,":"]
["S11_S12","C19_C20","TOT_P2_EPS",null,null,null,"19-20","Manufacture of coke, chemicals and refined petroleum and chemical products",null,":",null,":",null,":",null,":",null,":",null,":",null,":",null,":",null,":",null,":",null,":",null,":"]
["S11_S12","C21-C23","TOT_P2_EPS",null,null,null,"21-23","Manufacture of pharmaceuticals, rubber, plastic and other non-metallic products",null,":",null,":",null,":",null,":",null,":",null,":",null,":",null,":",null,":",null,":",null,":",null,":"]
["S11_S12","C24","TOT_P2_EPS",null,null,null,24,"Manufacture of basic metals",null,":",null,":",null,":",null,":",null,":",null,":",null,":",null,":",null,":",null,":",null,":",null,":"]
["S11_S12","C25-C30","TOT_P2_EPS",null,null,null,"25-30","Manufacture of fabricated metal products, including machinery and equipment",null,":",null,":",null,":",null,":",null,":",null,":",null,":",null,":",null,":",null,":",null,":",null,":"]
["S11_S12","C13-C16_C18_C31-C33","TOT_P2_EPS",null,null,null,"13-16, 18, 31-33","Other manufacturing activities",null,":",null,":",null,":",null,":",null,":",null,":",null,":",null,":",null,":",null,":",null,":",null,":"]
["S11_S12","C10-C12","EPS_EMP","Transactions of producers of ancillary EP services","( EMP.3bA ) Employment (full time equivalent)",null,"10-12'","Manufacture of food, beverages and tobacco products",null,":",null,":",null,":",null,":",null,":",null,":",null,":",null,":",null,":",null,":",null,":",null,":"]
["S11_S12","C17","EPS_EMP",null,null,null,17,"Manufacture of paper and paper products",null,":",null,":",null,":",null,":",null,":",null,":",null,":",null,":",null,":",null,":",null,":",null,":"]
["S11_S12","C19_C20","EPS_EMP",null,null,null,"19-20","Manufacture of coke, chemicals and refined petroleum and chemical products",null,":",null,":",null,":",null,":",null,":",null,":",null,":",null,":",null,":",null,":",null,":",null,":"]
["S11_S12","C21-C23","EPS_EMP",null,null,null,"21-23","Manufacture of pharmaceuticals, rubber, plastic and other non-metallic products",null,":",null,":",null,":",null,":",null,":",null,":",null,":",null,":",null,":",null,":",null,":",null,":"]
["S11_S12","C24","EPS_EMP",null,null,null,24,"Manufacture of basic metals",null,":",null,":",null,":",null,":",null,":",null,":",null,":",null,":",null,":",null,":",null,":",null,":"]
["S11_S12","C25-C30","EPS_EMP",null,null,null,"25-30","Manufacture of fabricated metal products, including machinery and equipment",null,":",null,":",null,":",null,":",null,":",null,":",null,":",null,":",null,":",null,":",null,":",null,":"]
["S11_S12","C13-C16_C18_C31-C33","EPS_EMP",null,null,null,"13-16, 18, 31-33","Other manufacturing activities",null,":",null,":",null,":",null,":",null,":",null,":",null,":",null,":",null,":",null,":",null,":",null,{"$f":"IF(COUNT(J104,N104,P104,R104,T104,V104,AD104)=7,SUM(J104,N104,P104,R104,T104,V104,AD104),\":\")","v":":"}]

{"sheet":"3b_Add_2023","index":25,"n_rows":104,"n_cols":32,"rows_kept":104,"cut":false,"hidden":true,"merged":[[12,7,12,8],[13,4,13,5],[13,7,13,8],[14,7,14,8],[15,7,15,8],[16,7,16,8],[0,4,0,8],[0,9,0,16],[1,4,1,8],[1,9,1,32],[2,9,2,32],[3,9,4,10],[3,11,4,12],[3,13,4,14],[3,15,4,16],[3,17,4,18],[3,31,4,32],[4,4,4,5],[3,21,4,22],[3,23,4,24],[3,25,4,26],[3,27,4,28],[3,29,4,30],[3,19,4,20],[22,7,22,8],[23,7,23,8],[24,7,24,8],[25,7,25,8],[26,7,26,8],[28,7,28,8],[27,4,27,5],[27,7,27,8],[17,7,17,8],[18,7,18,8],[19,7,19,8],[20,4,20,5],[20,7,20,8],[21,7,21,8],[34,4,34,5],[34,7,34,8],[35,4,35,5],[35,7,35,8],[36,7,36,8],[37,7,37,8],[29,7,29,8],[30,7,30,8],[31,7,31,8],[32,7,32,8],[33,7,33,8],[43,7,43,8],[44,7,44,8],[45,7,45,8],[46,7,46,8],[47,7,47,8],[48,4,48,5],[48,7,48,8],[38,7,38,8],[39,7,39,8],[40,7,40,8],[41,4,41,5],[41,7,41,8],[42,7,42,8],[55,4,55,5],[55,7,55,8],[56,7,56,8],[57,7,57,8],[58,7,58,8],[59,7,59,8],[49,7,49,8],[50,7,50,8],[51,7,51,8],[52,7,52,8],[53,7,53,8],[54,7,54,8],[65,7,65,8],[66,7,66,8],[67,7,67,8],[68,7,68,8],[69,4,69,5],[69,7,69,8],[60,7,60,8],[61,7,61,8],[62,4,62,5],[62,7,62,8],[63,7,63,8],[64,7,64,8],[76,4,76,5],[76,7,76,8],[77,7,77,8],[78,7,78,8],[79,7,79,8],[80,7,80,8],[70,7,70,8],[71,7,71,8],[72,7,72,8],[73,7,73,8],[74,7,74,8],[75,7,75,8],[86,7,86,8],[87,7,87,8],[88,7,88,8],[89,7,89,8],[90,3,96,3],[90,4,90,5],[90,7,90,8],[91,4,91,5],[91,7,91,8],[92,7,92,8],[6,3,89,3],[6,4,6,5],[6,7,6,8],[7,7,7,8],[8,7,8,8],[9,7,9,8],[10,7,10,8],[11,7,11,8],[81,7,81,8],[82,7,82,8],[83,4,83,5],[83,7,83,8],[84,7,84,8],[85,7,85,8],[101,7,101,8],[102,7,102,8],[103,7,103,8],[93,7,93,8],[94,7,94,8],[95,7,95,8],[96,7,96,8],[97,3,103,3],[97,4,97,5],[97,7,97,8],[98,7,98,8],[99,7,99,8],[100,7,100,8]]}
[null,null,null,null,{"$f":"Cover!$B$21","v":"QUESTIONNAIRE ON ENVIRONMENTAL PROTECTION EXPENDITURE ACCOUNTS"},null,null,null,null,"Table 3b Add.: Detailed Manufacturing Industries"]
[null,null,null,null,{"$f":"E1","v":"QUESTIONNAIRE ON ENVIRONMENTAL PROTECTION EXPENDITURE ACCOUNTS"},null,null,null,null,{"$f":"J1 & \" - \" & I5","v":"Table 3b Add.: Detailed Manufacturing Industries - 2023"}]
[null,null,null,null,null,null,null,null,null,"Mandatory and voluntary variables and environmental domains - please fill in as much as possible"]
[null,null,null,null,"Country/Unit",{"$f":"IFERROR(Cover!C16,\"\")","v":""},{"$f":"\"\"&Cover!B16","v":""},null,{"$f":"Cover!B17","v":"Million units of national currency"},"CEPA 1",null,"of which CEPA 1.1.2 and 1.2.2 Climate change",null,"CEPA 2",null,"CEPA 3",null,"CEPA 4",null,"CEPA 5",null,"CEPA 6",null,"CEPA 7",null,"CEPA 8",null,"CEPA 9",null,"Sum of CEPA 7+8+9",null,"TOTAL"]
[null,null,null,null,"Expenditure",null,null,"YEAR",2023,null,null,null,null,null,null,null,null,null,null,null,null,null,null,null,null,null,null,null,null,null,null,"Landscape"]
[null,null,null,null,null,null,null,null,null,"CEPA1",null,"CEPA112_122",null,"CEPA2",null,"CEPA3",null,"CEPA4",null,"CEPA5",null,"CEPA6",null,"CEPA7",null,"CEPA8",null,"CEPA9",null,"CEPA7-9",null,"TOT_CEPA"]
["S11_S12","C10-C12","EPS_P51G_NP","Transactions of producers of ancillary EP services","( P51G_NP.3bA ) Gross fixed capital formation and acquisition less disposals of non-financial, non-produced assets",null,"10-12","Manufacture of food, beverages and tobacco products",null,":",null,":",null,":",null,":",null,":",null,":",null,":",null,":",null,":",null,":",null,":",null,{"$f":"IF(COUNT(J7,N7,P7,R7,T7,V7,AD7)=7,SUM(J7,N7,P7,R7,T7,V7,AD7),\":\")","v":":"}]
["S11_S12","C17","EPS_P51G_NP",null,null,null,17,"Manufacture of paper and paper products",null,":",null,":",null,":",null,":",null,":",null,":",null,":",null,":",null,":",null,":",null,":",null,{"$f":"IF(COUNT(J8,N8,P8,R8,T8,V8,AD8)=7,SUM(J8,N8,P8,R8,T8,V8,AD8),\":\")","v":":"}]
["S11_S12","C19_C20","EPS_P51G_NP",null,null,null,"19-20","Manufacture of coke, chemicals and refined petroleum and chemical products",null,":",null,":",null,":",null,":",null,":",null,":",null,":",null,":",null,":",null,":",null,":",null,":"]
["S11_S12","C21-C23","EPS_P51G_NP",null,null,null,"21-23","Manufacture of pharmaceuticals, rubber, plastic and other non-metallic products",null,":",null,":",null,":",null,":",null,":",null,":",null,":",null,":",null,":",null,":",null,":",null,":"]
["S11_S12","C24","EPS_P51G_NP",null,null,null,24,"Manufacture of basic metals",null,":",null,":",null,":",null,":",null,":",null,":",null,":",null,":",null,":",null,":",null,":",null,":"]
["S11_S12","C25-C30","EPS_P51G_NP",null,null,null,"25-30","Manufacture of fabricated metal products, including machinery and equipment",null,":",null,":",null,":",null,":",null,":",null,":",null,":",null,":",null,":",null,":",null,":",null,":"]
["S11_S12","C13-C16_C18_C31-C33","EPS_P51G_NP",null,null,null,"13-16, 18, 31-33","Other manufacturing activities",null,":",null,":",null,":",null,":",null,":",null,":",null,":",null,":",null,":",null,":",null,":",null,":"]
["S11_S12","C10-C12","EPS_INV_PT",null,"( INV_EOP.3bA ) GFCF on specific EP fixed assets (end-of-pipe technologies)",null,"10-12'","Manufacture of food, beverages and tobacco products",null,":",null,":",null,":",null,":",null,":",null,":",null,":",null,":",null,":",null,":",null,":",null,":"]
["S11_S12","C17","EPS_INV_PT",null,null,null,17,"Manufacture of paper and paper products",null,":",null,":",null,":",null,":",null,":",null,":",null,":",null,":",null,":",null,":",null,":",null,":"]
["S11_S12","C19_C20","EPS_INV_PT",null,null,null,"19-20","Manufacture of coke, chemicals and refined petroleum and chemical products",null,":",null,":",null,":",null,":",null,":",null,":",null,":",null,":",null,":",null,":",null,":",null,":"]
["S11_S12","C21-C23","EPS_INV_PT",null,null,null,"21-23","Manufacture of pharmaceuticals, rubber, plastic and other non-metallic products",null,":",null,":",null,":",null,":",null,":",null,":",null,":",null,":",null,":",null,":",null,":",null,":"]
["S11_S12","C24","EPS_INV_PT",null,null,null,24,"Manufacture of basic metals",null,":",null,":",null,":",null,":",null,":",null,":",null,":",null,":",null,":",null,":",null,":",null,":"]
["S11_S12","C25-C30","EPS_INV_PT",null,null,null,"25-30","Manufacture of fabricated metal products, including machinery and equipment",null,":",null,":",null,":",null,":",null,":",null,":",null,":",null,":",null,":",null,":",null,":",null,":"]
["S11_S12","C13-C16_C18_C31-C33","EPS_INV_PT",null,null,null,"13-16, 18, 31-33","Other manufacturing activities",null,":",null,":",null,":",null,":",null,":",null,":",null,":",null,":",null,":",null,":",null,":",null,":"]
["S11_S12","C10-C12","EPS_INV_PP",null,"( INV_IT.3bA ) GFCF on cleaner EP fixed assets (integrated technologies)",null,"10-12'","Manufacture of food, beverages and tobacco products",null,":",null,":",null,":",null,":",null,":",null,":",null,":",null,":",null,":",null,":",null,":",null,":"]
["S11_S12","C17","EPS_INV_PP",null,null,null,17,"Manufacture of paper and paper products",null,":",null,":",null,":",null,":",null,":",null,":",null,":",null,":",null,":",null,":",null,":",null,":"]
["S11_S12","C19_C20","EPS_INV_PP",null,null,null,"19-20","Manufacture of coke, chemicals and refined petroleum and chemical products",null,":",null,":",null,":",null,":",null,":",null,":",null,":",null,":",null,":",null,":",null,":",null,":"]
["S11_S12","C21-C23","EPS_INV_PP",null,null,null,"21-23","Manufacture of pharmaceuticals, rubber, plastic and other non-metallic products",null,":",null,":",null,":",null,":",null,":",null,":",null,":",null,":",null,":",null,":",null,":",null,":"]
["S11_S12","C24","EPS_INV_PP",null,null,null,24,"Manufacture of basic metals",null,":",null,":",null,":",null,":",null,":",null,":",null,":",null,":",null,":",null,":",null,":",null,":"]
["S11_S12","C25-C30","EPS_INV_PP",null,null,null,"25-30","Manufacture of fabricated metal products, including machinery and equipment",null,":",null,":",null,":",null,":",null,":",null,":",null,":",null,":",null,":",null,":",null,":",null,":"]
["S11_S12","C13-C16_C18_C31-C33","EPS_INV_PP",null,null,null,"13-16, 18, 31-33","Other manufacturing activities",null,":",null,":",null,":",null,":",null,":",null,":",null,":",null,":",null,":",null,":",null,":",null,":"]
["S11_S12","C10-C12","EPS_P2",null,"( P2.3bA ) Total intermediate consumption",null,"10-12'","Manufacture of food, beverages and tobacco products",null,":",null,":",null,":",null,":",null,":",null,":",null,":",null,":",null,":",null,":",null,":",null,":"]
["S11_S12","C17","EPS_P2",null,null,null,17,"Manufacture of paper and paper products",null,":",null,":",null,":",null,":",null,":",null,":",null,":",null,":",null,":",null,":",null,":",null,":"]
["S11_S12","C19_C20","EPS_P2",null,null,null,"19-20","Manufacture of coke, chemicals and refined petroleum and chemical products",null,":",null,":",null,":",null,":",null,":",null,":",null,":",null,":",null,":",null,":",null,":",null,":"]
["S11_S12","C21-C23","EPS_P2",null,null,null,"21-23","Manufacture of pharmaceuticals, rubber, plastic and other non-metallic products",null,":",null,":",null,":",null,":",null,":",null,":",null,":",null,":",null,":",null,":",null,":",null,":"]
["S11_S12","C24","EPS_P2",null,null,null,24,"Manufacture of basic metals",null,":",null,":",null,":",null,":",null,":",null,":",null,":",null,":",null,":",null,":",null,":",null,":"]
["S11_S12","C25-C30","EPS_P2",null,null,null,"25-30","Manufacture of fabricated metal products, including machinery and equipment",null,":",null,":",null,":",null,":",null,":",null,":",null,":",null,":",null,":",null,":",null,":",null,":"]
["S11_S12","C13-C16_C18_C31-C33","EPS_P2",null,null,null,"13-16, 18, 31-33","Other manufacturing activities",null,":",null,":",null,":",null,":",null,":",null,":",null,":",null,":",null,":",null,":",null,":",null,":"]
["S11_S12","C10-C12","EPS_P2_EPS",null,"( P2_EPS.3bA )  Intermediate consumption of EP services for ancillary production of EP services ",null,"10-12'","Manufacture of food, beverages and tobacco products",null,":",null,":",null,":",null,":",null,":",null,":",null,":",null,":",null,":",null,":",null,":",null,":"]
["S11_S12","C17","EPS_P2_EPS",null,"(P2_EPS.3x: please consider the explanatory notes - click here)",null,17,"Manufacture of paper and paper products",null,":",null,":",null,":",null,":",null,":",null,":",null,":",null,":",null,":",null,":",null,":",null,":"]
["S11_S12","C19_C20","EPS_P2_EPS",null,null,null,"19-20","Manufacture of coke, chemicals and refined petroleum and chemical products",null,":",null,":",null,":",null,":",null,":",null,":",null,":",null,":",null,":",null,":",null,":",null,":"]
["S11_S12","C21-C23","EPS_P2_EPS",null,null,null,"21-23","Manufacture of pharmaceuticals, rubber, plastic and other non-metallic products",null,":",null,":",null,":",null,":",null,":",null,":",null,":",null,":",null,":",null,":",null,":",null,":"]
["S11_S12","C24","EPS_P2_EPS",null,null,null,24,"Manufacture of basic metals",null,":",null,":",null,":",null,":",null,":",null,":",null,":",null,":",null,":",null,":",null,":",null,":"]
["S11_S12","C25-C30","EPS_P2_EPS",null,null,null,"25-30","Manufacture of fabricated metal products, including machinery and equipment",null,":",null,":",null,":",null,":",null,":",null,":",null,":",null,":",null,":",null,":",null,":",null,":"]
["S11_S12","C13-C16_C18_C31-C33","EPS_P2_EPS",null,null,null,"13-16, 18, 31-33","Other manufacturing activities",null,":",null,":",null,":",null,":",null,":",null,":",null,":",null,":",null,":",null,":",null,":",null,":"]
["S11_S12","C10-C12","EPS_P2_NEPS",null,"( P2_NEPS.3bA ) Intermediate consumption (excluding EP services)",null,"10-12'","Manufacture of food, beverages and tobacco products",null,":",null,":",null,":",null,":",null,":",null,":",null,":",null,":",null,":",null,":",null,":",null,":"]
["S11_S12","C17","EPS_P2_NEPS",null,null,null,17,"Manufacture of paper and paper products",null,":",null,":",null,":",null,":",null,":",null,":",null,":",null,":",null,":",null,":",null,":",null,":"]
["S11_S12","C19_C20","EPS_P2_NEPS",null,null,null,"19-20","Manufacture of coke, chemicals and refined petroleum and chemical products",null,":",null,":",null,":",null,":",null,":",null,":",null,":",null,":",null,":",null,":",null,":",null,":"]
["S11_S12","C21-C23","EPS_P2_NEPS",null,null,null,"21-23","Manufacture of pharmaceuticals, rubber, plastic and other non-metallic products",null,":",null,":",null,":",null,":",null,":",null,":",null,":",null,":",null,":",null,":",null,":",null,":"]
["S11_S12","C24","EPS_P2_NEPS",null,null,null,24,"Manufacture of basic metals",null,":",null,":",null,":",null,":",null,":",null,":",null,":",null,":",null,":",null,":",null,":",null,":"]
["S11_S12","C25-C30","EPS_P2_NEPS",null,null,null,"25-30","Manufacture of fabricated metal products, including machinery and equipment",null,":",null,":",null,":",null,":",null,":",null,":",null,":",null,":",null,":",null,":",null,":",null,":"]
["S11_S12","C13-C16_C18_C31-C33","EPS_P2_NEPS",null,null,null,"13-16, 18, 31-33","Other manufacturing activities",null,":",null,":",null,":",null,":",null,":",null,":",null,":",null,":",null,":",null,":",null,":",null,":"]
["S11_S12","C10-C12","EPS_D1",null,"( D1.3bA ) Compensation of employees",null,"10-12'","Manufacture of food, beverages and tobacco products",null,":",null,":",null,":",null,":",null,":",null,":",null,":",null,":",null,":",null,":",null,":",null,":"]
["S11_S12","C17","EPS_D1",null,null,null,17,"Manufacture of paper and paper products",null,":",null,":",null,":",null,":",null,":",null,":",null,":",null,":",null,":",null,":",null,":",null,":"]
["S11_S12","C19_C20","EPS_D1",null,null,null,"19-20","Manufacture of coke, chemicals and refined petroleum and chemical products",null,":",null,":",null,":",null,":",null,":",null,":",null,":",null,":",null,":",null,":",null,":",null,":"]
["S11_S12","C21-C23","EPS_D1",null,null,null,"21-23","Manufacture of pharmaceuticals, rubber, plastic and other non-metallic products",null,":",null,":",null,":",null,":",null,":",null,":",null,":",null,":",null,":",null,":",null,":",null,":"]
["S11_S12","C24","EPS_D1",null,null,null,24,"Manufacture of basic metals",null,":",null,":",null,":",null,":",null,":",null,":",null,":",null,":",null,":",null,":",null,":",null,":"]
["S11_S12","C25-C30","EPS_D1",null,null,null,"25-30","Manufacture of fabricated metal products, including machinery and equipment",null,":",null,":",null,":",null,":",null,":",null,":",null,":",null,":",null,":",null,":",null,":",null,":"]
["S11_S12","C13-C16_C18_C31-C33","EPS_D1",null,null,null,"13-16, 18, 31-33","Other manufacturing activities",null,":",null,":",null,":",null,":",null,":",null,":",null,":",null,":",null,":",null,":",null,":",null,":"]
["S11_S12","C10-C12","EPS_P1_ANC",null,"( P1_ANC.3bA ) Ancillary EP output (simplified valuation legally acceptable) ((P2_NEPS.3bA) + (D1.3bA))",null,"10-12'","Manufacture of food, beverages and tobacco products",null,":",null,":",null,":",null,":",null,":",null,":",null,":",null,":",null,":",null,":",null,":",null,":"]
["S11_S12","C17","EPS_P1_ANC",null,null,null,17,"Manufacture of paper and paper products",null,":",null,":",null,":",null,":",null,":",null,":",null,":",null,":",null,":",null,":",null,":",null,":"]
["S11_S12","C19_C20","EPS_P1_ANC",null,null,null,"19-20","Manufacture of coke, chemicals and refined petroleum and chemical products",null,":",null,":",null,":",null,":",null,":",null,":",null,":",null,":",null,":",null,":",null,":",null,":"]
["S11_S12","C21-C23","EPS_P1_ANC",null,null,null,"21-23","Manufacture of pharmaceuticals, rubber, plastic and other non-metallic products",null,":",null,":",null,":",null,":",null,":",null,":",null,":",null,":",null,":",null,":",null,":",null,":"]
["S11_S12","C24","EPS_P1_ANC",null,null,null,24,"Manufacture of basic metals",null,":",null,":",null,":",null,":",null,":",null,":",null,":",null,":",null,":",null,":",null,":",null,":"]
["S11_S12","C25-C30","EPS_P1_ANC",null,null,null,"25-30","Manufacture of fabricated metal products, including machinery and equipment",null,":",null,":",null,":",null,":",null,":",null,":",null,":",null,":",null,":",null,":",null,":",null,":"]
["S11_S12","C13-C16_C18_C31-C33","EPS_P1_ANC",null,null,null,"13-16, 18, 31-33","Other manufacturing activities",null,":",null,":",null,":",null,":",null,":",null,":",null,":",null,":",null,":",null,":",null,":",null,":"]
["S11_S12","C10-C12","EPS_D29X39",null,"( D29-D39.3bA ) Other taxes less subsidies on production",null,"10-12'","Manufacture of food, beverages and tobacco products",null,":",null,":",null,":",null,":",null,":",null,":",null,":",null,":",null,":",null,":",null,":",null,":"]
["S11_S12","C17","EPS_D29X39",null,null,null,17,"Manufacture of paper and paper products",null,":",null,":",null,":",null,":",null,":",null,":",null,":",null,":",null,":",null,":",null,":",null,":"]
["S11_S12","C19_C20","EPS_D29X39",null,null,null,"19-20","Manufacture of coke, chemicals and refined petroleum and chemical products",null,":",null,":",null,":",null,":",null,":",null,":",null,":",null,":",null,":",null,":",null,":",null,":"]
["S11_S12","C21-C23","EPS_D29X39",null,null,null,"21-23","Manufacture of pharmaceuticals, rubber, plastic and other non-metallic products",null,":",null,":",null,":",null,":",null,":",null,":",null,":",null,":",null,":",null,":",null,":",null,":"]
["S11_S12","C24","EPS_D29X39",null,null,null,24,"Manufacture of basic metals",null,":",null,":",null,":",null,":",null,":",null,":",null,":",null,":",null,":",null,":",null,":",null,":"]
["S11_S12","C25-C30","EPS_D29X39",null,null,null,"25-30","Manufacture of fabricated metal products, including machinery and equipment",null,":",null,":",null,":",null,":",null,":",null,":",null,":",null,":",null,":",null,":",null,":",null,":"]
["S11_S12","C13-C16_C18_C31-C33","EPS_D29X39",null,null,null,"13-16, 18, 31-33","Other manufacturing activities",null,":",null,":",null,":",null,":",null,":",null,":",null,":",null,":",null,":",null,":",null,":",null,":"]
["S11_S12","C10-C12","EPS_P51C",null,"( P51C.3bA ) Consumption of fixed capital",null,"10-12'","Manufacture of food, beverages and tobacco products",null,":",null,":",null,":",null,":",null,":",null,":",null,":",null,":",null,":",null,":",null,":",null,":"]
["S11_S12","C17","EPS_P51C",null,null,null,17,"Manufacture of paper and paper products",null,":",null,":",null,":",null,":",null,":",null,":",null,":",null,":",null,":",null,":",null,":",null,":"]
["S11_S12","C19_C20","EPS_P51C",null,null,null,"19-20","Manufacture of coke, chemicals and refined petroleum and chemical products",null,":",null,":",null,":",null,":",null,":",null,":",null,":",null,":",null,":",null,":",null,":",null,{"$f":"IF(COUNT(J72,N72,P72,R72,T72,V72,AD72)=7,SUM(J72,N72,P72,R72,T72,V72,AD72),\":\")","v":":"}]
["S11_S12","C21-C23","EPS_P51C",null,null,null,"21-23","Manufacture of pharmaceuticals, rubber, plastic and other non-metallic products",null,":",null,":",null,":",null,":",null,":",null,":",null,":",null,":",null,":",null,":",null,":",null,":"]
["S11_S12","C24","EPS_P51C",null,null,null,24,"Manufacture of basic metals",null,":",null,":",null,":",null,":",null,":",null,":",null,":",null,":",null,":",null,":",null,":",null,":"]
["S11_S12","C25-C30","EPS_P51C",null,null,null,"25-30","Manufacture of fabricated metal products, including machinery and equipment",null,":",null,":",null,":",null,":",null,":",null,":",null,":",null,":",null,":",null,":",null,":",null,":"]
["S11_S12","C13-C16_C18_C31-C33","EPS_P51C",null,null,null,"13-16, 18, 31-33","Other manufacturing activities",null,":",null,":",null,":",null,":",null,":",null,":",null,":",null,":",null,":",null,":",null,":",null,":"]
["S11_S12","C10-C12","EPS_P1_ANCESA",null,"( P1_ANC_ESA.3bA ) Ancillary EP output (ESA - compatible valuation) ((P2_NEPS.3bA) + (D1.3bA) +(P51C.3bA) + (D29-D39.3bA))",null,"10-12'","Manufacture of food, beverages and tobacco products",null,":",null,":",null,":",null,":",null,":",null,":",null,":",null,":",null,":",null,":",null,":",null,":"]
["S11_S12","C17","EPS_P1_ANCESA",null,null,null,17,"Manufacture of paper and paper products",null,":",null,":",null,":",null,":",null,":",null,":",null,":",null,":",null,":",null,":",null,":",null,":"]
["S11_S12","C19_C20","EPS_P1_ANCESA",null,null,null,"19-20","Manufacture of coke, chemicals and refined petroleum and chemical products",null,":",null,":",null,":",null,":",null,":",null,":",null,":",null,":",null,":",null,":",null,":",null,":"]
["S11_S12","C21-C23","EPS_P1_ANCESA",null,null,null,"21-23","Manufacture of pharmaceuticals, rubber, plastic and other non-metallic products",null,":",null,":",null,":",null,":",null,":",null,":",null,":",null,":",null,":",null,":",null,":",null,":"]
["S11_S12","C24","EPS_P1_ANCESA",null,null,null,24,"Manufacture of basic metals",null,":",null,":",null,":",null,":",null,":",null,":",null,":",null,":",null,":",null,":",null,":",null,":"]
["S11_S12","C25-C30","EPS_P1_ANCESA",null,null,null,"25-30","Manufacture of fabricated metal products, including machinery and equipment",null,":",null,":",null,":",null,":",null,":",null,":",null,":",null,":",null,":",null,":",null,":",null,":"]
["S11_S12","C13-C16_C18_C31-C33","EPS_P1_ANCESA",null,null,null,"13-16, 18, 31-33","Other manufacturing activities",null,":",null,":",null,":",null,":",null,":",null,":",null,":",null,":",null,":",null,":",null,":",null,":"]
["S11_S12","C10-C12","EPS_REC_BYPR",null,"( RNO.3bA ) Related non-EP output",null,"10-12'","Manufacture of food, beverages and tobacco products",null,":",null,":",null,":",null,":",null,":",null,":",null,":",null,":",null,":",null,":",null,":",null,":"]
["S11_S12","C17","EPS_REC_BYPR",null,null,null,17,"Manufacture of paper and paper products",null,":",null,":",null,":",null,":",null,":",null,":",null,":",null,":",null,":",null,":",null,":",null,":"]
["S11_S12","C19_C20","EPS_REC_BYPR",null,null,null,"19-20","Manufacture of coke, chemicals and refined petroleum and chemical products",null,":",null,":",null,":",null,":",null,":",null,":",null,":",null,":",null,":",null,":",null,":",null,":"]
["S11_S12","C21-C23","EPS_REC_BYPR",null,null,null,"21-23","Manufacture of pharmaceuticals, rubber, plastic and other non-metallic products",null,":",null,":",null,":",null,":",null,":",null,":",null,":",null,":",null,":",null,":",null,":",null,":"]
["S11_S12","C24","EPS_REC_BYPR",null,null,null,24,"Manufacture of basic metals",null,":",null,":",null,":",null,":",null,":",null,":",null,":",null,":",null,":",null,":",null,":",null,":"]
["S11_S12","C25-C30","EPS_REC_BYPR",null,null,null,"25-30","Manufacture of fabricated metal products, including machinery and equipment",null,":",null,":",null,":",null,":",null,":",null,":",null,":",null,":",null,":",null,":",null,":",null,":"]
["S11_S12","C13-C16_C18_C31-C33","EPS_REC_BYPR",null,null,null,"13-16, 18, 31-33","Other manufacturing activities",null,":",null,":",null,":",null,":",null,":",null,":",null,":",null,":",null,":",null,":",null,":",null,":"]
["S11_S12","C10-C12","TOT_P2_EPS","Transactions as users of EP services (ancillary production of EP services and other production)","( P2_EPS_EXT.3bA ) Total intermediate consumption of EP services (for production of EP services and for other production)",null,"10-12'","Manufacture of food, beverages and tobacco products",null,":",null,":",null,":",null,":",null,":",null,":",null,":",null,":",null,":",null,":",null,":",null,":"]
["S11_S12","C17","TOT_P2_EPS",null,"(P2_EPS_EXT.3x: please consider the explanatory notes - click here)",null,17,"Manufacture of paper and paper products",null,":",null,":",null,":",null,":",null,":",null,":",null,":",null,":",null,":",null,":",null,":",null,":"]
["S11_S12","C19_C20","TOT_P2_EPS",null,null,null,"19-20","Manufacture of coke, chemicals and refined petroleum and chemical products",null,":",null,":",null,":",null,":",null,":",null,":",null,":",null,":",null,":",null,":",null,":",null,":"]
["S11_S12","C21-C23","TOT_P2_EPS",null,null,null,"21-23","Manufacture of pharmaceuticals, rubber, plastic and other non-metallic products",null,":",null,":",null,":",null,":",null,":",null,":",null,":",null,":",null,":",null,":",null,":",null,":"]
["S11_S12","C24","TOT_P2_EPS",null,null,null,24,"Manufacture of basic metals",null,":",null,":",null,":",null,":",null,":",null,":",null,":",null,":",null,":",null,":",null,":",null,":"]
["S11_S12","C25-C30","TOT_P2_EPS",null,null,null,"25-30","Manufacture of fabricated metal products, including machinery and equipment",null,":",null,":",null,":",null,":",null,":",null,":",null,":",null,":",null,":",null,":",null,":",null,":"]
["S11_S12","C13-C16_C18_C31-C33","TOT_P2_EPS",null,null,null,"13-16, 18, 31-33","Other manufacturing activities",null,":",null,":",null,":",null,":",null,":",null,":",null,":",null,":",null,":",null,":",null,":",null,":"]
["S11_S12","C10-C12","EPS_EMP","Transactions of producers of ancillary EP services","( EMP.3bA ) Employment (full time equivalent)",null,"10-12'","Manufacture of food, beverages and tobacco products",null,":",null,":",null,":",null,":",null,":",null,":",null,":",null,":",null,":",null,":",null,":",null,":"]
["S11_S12","C17","EPS_EMP",null,null,null,17,"Manufacture of paper and paper products",null,":",null,":",null,":",null,":",null,":",null,":",null,":",null,":",null,":",null,":",null,":",null,":"]
["S11_S12","C19_C20","EPS_EMP",null,null,null,"19-20","Manufacture of coke, chemicals and refined petroleum and chemical products",null,":",null,":",null,":",null,":",null,":",null,":",null,":",null,":",null,":",null,":",null,":",null,":"]
["S11_S12","C21-C23","EPS_EMP",null,null,null,"21-23","Manufacture of pharmaceuticals, rubber, plastic and other non-metallic products",null,":",null,":",null,":",null,":",null,":",null,":",null,":",null,":",null,":",null,":",null,":",null,":"]
["S11_S12","C24","EPS_EMP",null,null,null,24,"Manufacture of basic metals",null,":",null,":",null,":",null,":",null,":",null,":",null,":",null,":",null,":",null,":",null,":",null,":"]
["S11_S12","C25-C30","EPS_EMP",null,null,null,"25-30","Manufacture of fabricated metal products, including machinery and equipment",null,":",null,":",null,":",null,":",null,":",null,":",null,":",null,":",null,":",null,":",null,":",null,":"]
["S11_S12","C13-C16_C18_C31-C33","EPS_EMP",null,null,null,"13-16, 18, 31-33","Other manufacturing activities",null,":",null,":",null,":",null,":",null,":",null,":",null,":",null,":",null,":",null,":",null,":",null,{"$f":"IF(COUNT(J104,N104,P104,R104,T104,V104,AD104)=7,SUM(J104,N104,P104,R104,T104,V104,AD104),\":\")","v":":"}]

{"sheet":"3b_Add_2024","index":26,"n_rows":104,"n_cols":32,"rows_kept":104,"cut":false,"hidden":true,"merged":[[12,7,12,8],[13,4,13,5],[13,7,13,8],[14,7,14,8],[15,7,15,8],[16,7,16,8],[0,4,0,8],[0,9,0,16],[1,4,1,8],[1,9,1,32],[2,9,2,32],[3,9,4,10],[3,11,4,12],[3,13,4,14],[3,15,4,16],[3,17,4,18],[3,31,4,32],[4,4,4,5],[3,21,4,22],[3,23,4,24],[3,25,4,26],[3,27,4,28],[3,29,4,30],[3,19,4,20],[22,7,22,8],[23,7,23,8],[24,7,24,8],[25,7,25,8],[26,7,26,8],[28,7,28,8],[27,4,27,5],[27,7,27,8],[17,7,17,8],[18,7,18,8],[19,7,19,8],[20,4,20,5],[20,7,20,8],[21,7,21,8],[34,4,34,5],[34,7,34,8],[35,4,35,5],[35,7,35,8],[36,7,36,8],[37,7,37,8],[29,7,29,8],[30,7,30,8],[31,7,31,8],[32,7,32,8],[33,7,33,8],[43,7,43,8],[44,7,44,8],[45,7,45,8],[46,7,46,8],[47,7,47,8],[48,4,48,5],[48,7,48,8],[38,7,38,8],[39,7,39,8],[40,7,40,8],[41,4,41,5],[41,7,41,8],[42,7,42,8],[55,4,55,5],[55,7,55,8],[56,7,56,8],[57,7,57,8],[58,7,58,8],[59,7,59,8],[49,7,49,8],[50,7,50,8],[51,7,51,8],[52,7,52,8],[53,7,53,8],[54,7,54,8],[65,7,65,8],[66,7,66,8],[67,7,67,8],[68,7,68,8],[69,4,69,5],[69,7,69,8],[60,7,60,8],[61,7,61,8],[62,4,62,5],[62,7,62,8],[63,7,63,8],[64,7,64,8],[76,4,76,5],[76,7,76,8],[77,7,77,8],[78,7,78,8],[79,7,79,8],[80,7,80,8],[70,7,70,8],[71,7,71,8],[72,7,72,8],[73,7,73,8],[74,7,74,8],[75,7,75,8],[86,7,86,8],[87,7,87,8],[88,7,88,8],[89,7,89,8],[90,3,96,3],[90,4,90,5],[90,7,90,8],[91,4,91,5],[91,7,91,8],[92,7,92,8],[6,3,89,3],[6,4,6,5],[6,7,6,8],[7,7,7,8],[8,7,8,8],[9,7,9,8],[10,7,10,8],[11,7,11,8],[81,7,81,8],[82,7,82,8],[83,4,83,5],[83,7,83,8],[84,7,84,8],[85,7,85,8],[101,7,101,8],[102,7,102,8],[103,7,103,8],[93,7,93,8],[94,7,94,8],[95,7,95,8],[96,7,96,8],[97,3,103,3],[97,4,97,5],[97,7,97,8],[98,7,98,8],[99,7,99,8],[100,7,100,8]]}
[null,null,null,null,{"$f":"Cover!$B$21","v":"QUESTIONNAIRE ON ENVIRONMENTAL PROTECTION EXPENDITURE ACCOUNTS"},null,null,null,null,"Table 3b Add.: Detailed Manufacturing Industries"]
[null,null,null,null,{"$f":"E1","v":"QUESTIONNAIRE ON ENVIRONMENTAL PROTECTION EXPENDITURE ACCOUNTS"},null,null,null,null,{"$f":"J1 & \" - \" & I5","v":"Table 3b Add.: Detailed Manufacturing Industries - 2024"}]
[null,null,null,null,null,null,null,null,null,"Mandatory and voluntary variables and environmental domains - please fill in as much as possible"]
[null,null,null,null,"Country/Unit",{"$f":"IFERROR(Cover!C16,\"\")","v":""},{"$f":"\"\"&Cover!B16","v":""},null,{"$f":"Cover!B17","v":"Million units of national currency"},"CEPA 1",null,"of which CEPA 1.1.2 and 1.2.2 Climate change",null,"CEPA 2",null,"CEPA 3",null,"CEPA 4",null,"CEPA 5",null,"CEPA 6",null,"CEPA 7",null,"CEPA 8",null,"CEPA 9",null,"Sum of CEPA 7+8+9",null,"TOTAL"]
[null,null,null,null,"Expenditure",null,null,"YEAR",2024,null,null,null,null,null,null,null,null,null,null,null,null,null,null,null,null,null,null,null,null,null,null,"Landscape"]
[null,null,null,null,null,null,null,null,null,"CEPA1",null,"CEPA112_122",null,"CEPA2",null,"CEPA3",null,"CEPA4",null,"CEPA5",null,"CEPA6",null,"CEPA7",null,"CEPA8",null,"CEPA9",null,"CEPA7-9",null,"TOT_CEPA"]
["S11_S12","C10-C12","EPS_P51G_NP","Transactions of producers of ancillary EP services","( P51G_NP.3bA ) Gross fixed capital formation and acquisition less disposals of non-financial, non-produced assets",null,"10-12","Manufacture of food, beverages and tobacco products",null,":",null,":",null,":",null,":",null,":",null,":",null,":",null,":",null,":",null,":",null,":",null,{"$f":"IF(COUNT(J7,N7,P7,R7,T7,V7,AD7)=7,SUM(J7,N7,P7,R7,T7,V7,AD7),\":\")","v":":"}]
["S11_S12","C17","EPS_P51G_NP",null,null,null,17,"Manufacture of paper and paper products",null,":",null,":",null,":",null,":",null,":",null,":",null,":",null,":",null,":",null,":",null,":",null,{"$f":"IF(COUNT(J8,N8,P8,R8,T8,V8,AD8)=7,SUM(J8,N8,P8,R8,T8,V8,AD8),\":\")","v":":"}]
["S11_S12","C19_C20","EPS_P51G_NP",null,null,null,"19-20","Manufacture of coke, chemicals and refined petroleum and chemical products",null,":",null,":",null,":",null,":",null,":",null,":",null,":",null,":",null,":",null,":",null,":",null,":"]
["S11_S12","C21-C23","EPS_P51G_NP",null,null,null,"21-23","Manufacture of pharmaceuticals, rubber, plastic and other non-metallic products",null,":",null,":",null,":",null,":",null,":",null,":",null,":",null,":",null,":",null,":",null,":",null,":"]
["S11_S12","C24","EPS_P51G_NP",null,null,null,24,"Manufacture of basic metals",null,":",null,":",null,":",null,":",null,":",null,":",null,":",null,":",null,":",null,":",null,":",null,":"]
["S11_S12","C25-C30","EPS_P51G_NP",null,null,null,"25-30","Manufacture of fabricated metal products, including machinery and equipment",null,":",null,":",null,":",null,":",null,":",null,":",null,":",null,":",null,":",null,":",null,":",null,":"]
["S11_S12","C13-C16_C18_C31-C33","EPS_P51G_NP",null,null,null,"13-16, 18, 31-33","Other manufacturing activities",null,":",null,":",null,":",null,":",null,":",null,":",null,":",null,":",null,":",null,":",null,":",null,":"]
["S11_S12","C10-C12","EPS_INV_PT",null,"( INV_EOP.3bA ) GFCF on specific EP fixed assets (end-of-pipe technologies)",null,"10-12'","Manufacture of food, beverages and tobacco products",null,":",null,":",null,":",null,":",null,":",null,":",null,":",null,":",null,":",null,":",null,":",null,":"]
["S11_S12","C17","EPS_INV_PT",null,null,null,17,"Manufacture of paper and paper products",null,":",null,":",null,":",null,":",null,":",null,":",null,":",null,":",null,":",null,":",null,":",null,":"]
["S11_S12","C19_C20","EPS_INV_PT",null,null,null,"19-20","Manufacture of coke, chemicals and refined petroleum and chemical products",null,":",null,":",null,":",null,":",null,":",null,":",null,":",null,":",null,":",null,":",null,":",null,":"]
["S11_S12","C21-C23","EPS_INV_PT",null,null,null,"21-23","Manufacture of pharmaceuticals, rubber, plastic and other non-metallic products",null,":",null,":",null,":",null,":",null,":",null,":",null,":",null,":",null,":",null,":",null,":",null,":"]
["S11_S12","C24","EPS_INV_PT",null,null,null,24,"Manufacture of basic metals",null,":",null,":",null,":",null,":",null,":",null,":",null,":",null,":",null,":",null,":",null,":",null,":"]
["S11_S12","C25-C30","EPS_INV_PT",null,null,null,"25-30","Manufacture of fabricated metal products, including machinery and equipment",null,":",null,":",null,":",null,":",null,":",null,":",null,":",null,":",null,":",null,":",null,":",null,":"]
["S11_S12","C13-C16_C18_C31-C33","EPS_INV_PT",null,null,null,"13-16, 18, 31-33","Other manufacturing activities",null,":",null,":",null,":",null,":",null,":",null,":",null,":",null,":",null,":",null,":",null,":",null,":"]
["S11_S12","C10-C12","EPS_INV_PP",null,"( INV_IT.3bA ) GFCF on cleaner EP fixed assets (integrated technologies)",null,"10-12'","Manufacture of food, beverages and tobacco products",null,":",null,":",null,":",null,":",null,":",null,":",null,":",null,":",null,":",null,":",null,":",null,":"]
["S11_S12","C17","EPS_INV_PP",null,null,null,17,"Manufacture of paper and paper products",null,":",null,":",null,":",null,":",null,":",null,":",null,":",null,":",null,":",null,":",null,":",null,":"]
["S11_S12","C19_C20","EPS_INV_PP",null,null,null,"19-20","Manufacture of coke, chemicals and refined petroleum and chemical products",null,":",null,":",null,":",null,":",null,":",null,":",null,":",null,":",null,":",null,":",null,":",null,":"]
["S11_S12","C21-C23","EPS_INV_PP",null,null,null,"21-23","Manufacture of pharmaceuticals, rubber, plastic and other non-metallic products",null,":",null,":",null,":",null,":",null,":",null,":",null,":",null,":",null,":",null,":",null,":",null,":"]
["S11_S12","C24","EPS_INV_PP",null,null,null,24,"Manufacture of basic metals",null,":",null,":",null,":",null,":",null,":",null,":",null,":",null,":",null,":",null,":",null,":",null,":"]
["S11_S12","C25-C30","EPS_INV_PP",null,null,null,"25-30","Manufacture of fabricated metal products, including machinery and equipment",null,":",null,":",null,":",null,":",null,":",null,":",null,":",null,":",null,":",null,":",null,":",null,":"]
["S11_S12","C13-C16_C18_C31-C33","EPS_INV_PP",null,null,null,"13-16, 18, 31-33","Other manufacturing activities",null,":",null,":",null,":",null,":",null,":",null,":",null,":",null,":",null,":",null,":",null,":",null,":"]
["S11_S12","C10-C12","EPS_P2",null,"( P2.3bA ) Total intermediate consumption",null,"10-12'","Manufacture of food, beverages and tobacco products",null,":",null,":",null,":",null,":",null,":",null,":",null,":",null,":",null,":",null,":",null,":",null,":"]
["S11_S12","C17","EPS_P2",null,null,null,17,"Manufacture of paper and paper products",null,":",null,":",null,":",null,":",null,":",null,":",null,":",null,":",null,":",null,":",null,":",null,":"]
["S11_S12","C19_C20","EPS_P2",null,null,null,"19-20","Manufacture of coke, chemicals and refined petroleum and chemical products",null,":",null,":",null,":",null,":",null,":",null,":",null,":",null,":",null,":",null,":",null,":",null,":"]
["S11_S12","C21-C23","EPS_P2",null,null,null,"21-23","Manufacture of pharmaceuticals, rubber, plastic and other non-metallic products",null,":",null,":",null,":",null,":",null,":",null,":",null,":",null,":",null,":",null,":",null,":",null,":"]
["S11_S12","C24","EPS_P2",null,null,null,24,"Manufacture of basic metals",null,":",null,":",null,":",null,":",null,":",null,":",null,":",null,":",null,":",null,":",null,":",null,":"]
["S11_S12","C25-C30","EPS_P2",null,null,null,"25-30","Manufacture of fabricated metal products, including machinery and equipment",null,":",null,":",null,":",null,":",null,":",null,":",null,":",null,":",null,":",null,":",null,":",null,":"]
["S11_S12","C13-C16_C18_C31-C33","EPS_P2",null,null,null,"13-16, 18, 31-33","Other manufacturing activities",null,":",null,":",null,":",null,":",null,":",null,":",null,":",null,":",null,":",null,":",null,":",null,":"]
["S11_S12","C10-C12","EPS_P2_EPS",null,"( P2_EPS.3bA )  Intermediate consumption of EP services for ancillary production of EP services ",null,"10-12'","Manufacture of food, beverages and tobacco products",null,":",null,":",null,":",null,":",null,":",null,":",null,":",null,":",null,":",null,":",null,":",null,":"]
["S11_S12","C17","EPS_P2_EPS",null,"(P2_EPS.3x: please consider the explanatory notes - click here)",null,17,"Manufacture of paper and paper products",null,":",null,":",null,":",null,":",null,":",null,":",null,":",null,":",null,":",null,":",null,":",null,":"]
["S11_S12","C19_C20","EPS_P2_EPS",null,null,null,"19-20","Manufacture of coke, chemicals and refined petroleum and chemical products",null,":",null,":",null,":",null,":",null,":",null,":",null,":",null,":",null,":",null,":",null,":",null,":"]
["S11_S12","C21-C23","EPS_P2_EPS",null,null,null,"21-23","Manufacture of pharmaceuticals, rubber, plastic and other non-metallic products",null,":",null,":",null,":",null,":",null,":",null,":",null,":",null,":",null,":",null,":",null,":",null,":"]
["S11_S12","C24","EPS_P2_EPS",null,null,null,24,"Manufacture of basic metals",null,":",null,":",null,":",null,":",null,":",null,":",null,":",null,":",null,":",null,":",null,":",null,":"]
["S11_S12","C25-C30","EPS_P2_EPS",null,null,null,"25-30","Manufacture of fabricated metal products, including machinery and equipment",null,":",null,":",null,":",null,":",null,":",null,":",null,":",null,":",null,":",null,":",null,":",null,":"]
["S11_S12","C13-C16_C18_C31-C33","EPS_P2_EPS",null,null,null,"13-16, 18, 31-33","Other manufacturing activities",null,":",null,":",null,":",null,":",null,":",null,":",null,":",null,":",null,":",null,":",null,":",null,":"]
["S11_S12","C10-C12","EPS_P2_NEPS",null,"( P2_NEPS.3bA ) Intermediate consumption (excluding EP services)",null,"10-12'","Manufacture of food, beverages and tobacco products",null,":",null,":",null,":",null,":",null,":",null,":",null,":",null,":",null,":",null,":",null,":",null,":"]
["S11_S12","C17","EPS_P2_NEPS",null,null,null,17,"Manufacture of paper and paper products",null,":",null,":",null,":",null,":",null,":",null,":",null,":",null,":",null,":",null,":",null,":",null,":"]
["S11_S12","C19_C20","EPS_P2_NEPS",null,null,null,"19-20","Manufacture of coke, chemicals and refined petroleum and chemical products",null,":",null,":",null,":",null,":",null,":",null,":",null,":",null,":",null,":",null,":",null,":",null,":"]
["S11_S12","C21-C23","EPS_P2_NEPS",null,null,null,"21-23","Manufacture of pharmaceuticals, rubber, plastic and other non-metallic products",null,":",null,":",null,":",null,":",null,":",null,":",null,":",null,":",null,":",null,":",null,":",null,":"]
["S11_S12","C24","EPS_P2_NEPS",null,null,null,24,"Manufacture of basic metals",null,":",null,":",null,":",null,":",null,":",null,":",null,":",null,":",null,":",null,":",null,":",null,":"]
["S11_S12","C25-C30","EPS_P2_NEPS",null,null,null,"25-30","Manufacture of fabricated metal products, including machinery and equipment",null,":",null,":",null,":",null,":",null,":",null,":",null,":",null,":",null,":",null,":",null,":",null,":"]
["S11_S12","C13-C16_C18_C31-C33","EPS_P2_NEPS",null,null,null,"13-16, 18, 31-33","Other manufacturing activities",null,":",null,":",null,":",null,":",null,":",null,":",null,":",null,":",null,":",null,":",null,":",null,":"]
["S11_S12","C10-C12","EPS_D1",null,"( D1.3bA ) Compensation of employees",null,"10-12'","Manufacture of food, beverages and tobacco products",null,":",null,":",null,":",null,":",null,":",null,":",null,":",null,":",null,":",null,":",null,":",null,":"]
["S11_S12","C17","EPS_D1",null,null,null,17,"Manufacture of paper and paper products",null,":",null,":",null,":",null,":",null,":",null,":",null,":",null,":",null,":",null,":",null,":",null,":"]
["S11_S12","C19_C20","EPS_D1",null,null,null,"19-20","Manufacture of coke, chemicals and refined petroleum and chemical products",null,":",null,":",null,":",null,":",null,":",null,":",null,":",null,":",null,":",null,":",null,":",null,":"]
["S11_S12","C21-C23","EPS_D1",null,null,null,"21-23","Manufacture of pharmaceuticals, rubber, plastic and other non-metallic products",null,":",null,":",null,":",null,":",null,":",null,":",null,":",null,":",null,":",null,":",null,":",null,":"]
["S11_S12","C24","EPS_D1",null,null,null,24,"Manufacture of basic metals",null,":",null,":",null,":",null,":",null,":",null,":",null,":",null,":",null,":",null,":",null,":",null,":"]
["S11_S12","C25-C30","EPS_D1",null,null,null,"25-30","Manufacture of fabricated metal products, including machinery and equipment",null,":",null,":",null,":",null,":",null,":",null,":",null,":",null,":",null,":",null,":",null,":",null,":"]
["S11_S12","C13-C16_C18_C31-C33","EPS_D1",null,null,null,"13-16, 18, 31-33","Other manufacturing activities",null,":",null,":",null,":",null,":",null,":",null,":",null,":",null,":",null,":",null,":",null,":",null,":"]
["S11_S12","C10-C12","EPS_P1_ANC",null,"( P1_ANC.3bA ) Ancillary EP output (simplified valuation legally acceptable) ((P2_NEPS.3bA) + (D1.3bA))",null,"10-12'","Manufacture of food, beverages and tobacco products",null,":",null,":",null,":",null,":",null,":",null,":",null,":",null,":",null,":",null,":",null,":",null,":"]
["S11_S12","C17","EPS_P1_ANC",null,null,null,17,"Manufacture of paper and paper products",null,":",null,":",null,":",null,":",null,":",null,":",null,":",null,":",null,":",null,":",null,":",null,":"]
["S11_S12","C19_C20","EPS_P1_ANC",null,null,null,"19-20","Manufacture of coke, chemicals and refined petroleum and chemical products",null,":",null,":",null,":",null,":",null,":",null,":",null,":",null,":",null,":",null,":",null,":",null,":"]
["S11_S12","C21-C23","EPS_P1_ANC",null,null,null,"21-23","Manufacture of pharmaceuticals, rubber, plastic and other non-metallic products",null,":",null,":",null,":",null,":",null,":",null,":",null,":",null,":",null,":",null,":",null,":",null,":"]
["S11_S12","C24","EPS_P1_ANC",null,null,null,24,"Manufacture of basic metals",null,":",null,":",null,":",null,":",null,":",null,":",null,":",null,":",null,":",null,":",null,":",null,":"]
["S11_S12","C25-C30","EPS_P1_ANC",null,null,null,"25-30","Manufacture of fabricated metal products, including machinery and equipment",null,":",null,":",null,":",null,":",null,":",null,":",null,":",null,":",null,":",null,":",null,":",null,":"]
["S11_S12","C13-C16_C18_C31-C33","EPS_P1_ANC",null,null,null,"13-16, 18, 31-33","Other manufacturing activities",null,":",null,":",null,":",null,":",null,":",null,":",null,":",null,":",null,":",null,":",null,":",null,":"]
["S11_S12","C10-C12","EPS_D29X39",null,"( D29-D39.3bA ) Other taxes less subsidies on production",null,"10-12'","Manufacture of food, beverages and tobacco products",null,":",null,":",null,":",null,":",null,":",null,":",null,":",null,":",null,":",null,":",null,":",null,":"]
["S11_S12","C17","EPS_D29X39",null,null,null,17,"Manufacture of paper and paper products",null,":",null,":",null,":",null,":",null,":",null,":",null,":",null,":",null,":",null,":",null,":",null,":"]
["S11_S12","C19_C20","EPS_D29X39",null,null,null,"19-20","Manufacture of coke, chemicals and refined petroleum and chemical products",null,":",null,":",null,":",null,":",null,":",null,":",null,":",null,":",null,":",null,":",null,":",null,":"]
["S11_S12","C21-C23","EPS_D29X39",null,null,null,"21-23","Manufacture of pharmaceuticals, rubber, plastic and other non-metallic products",null,":",null,":",null,":",null,":",null,":",null,":",null,":",null,":",null,":",null,":",null,":",null,":"]
["S11_S12","C24","EPS_D29X39",null,null,null,24,"Manufacture of basic metals",null,":",null,":",null,":",null,":",null,":",null,":",null,":",null,":",null,":",null,":",null,":",null,":"]
["S11_S12","C25-C30","EPS_D29X39",null,null,null,"25-30","Manufacture of fabricated metal products, including machinery and equipment",null,":",null,":",null,":",null,":",null,":",null,":",null,":",null,":",null,":",null,":",null,":",null,":"]
["S11_S12","C13-C16_C18_C31-C33","EPS_D29X39",null,null,null,"13-16, 18, 31-33","Other manufacturing activities",null,":",null,":",null,":",null,":",null,":",null,":",null,":",null,":",null,":",null,":",null,":",null,":"]
["S11_S12","C10-C12","EPS_P51C",null,"( P51C.3bA ) Consumption of fixed capital",null,"10-12'","Manufacture of food, beverages and tobacco products",null,":",null,":",null,":",null,":",null,":",null,":",null,":",null,":",null,":",null,":",null,":",null,":"]
["S11_S12","C17","EPS_P51C",null,null,null,17,"Manufacture of paper and paper products",null,":",null,":",null,":",null,":",null,":",null,":",null,":",null,":",null,":",null,":",null,":",null,":"]
["S11_S12","C19_C20","EPS_P51C",null,null,null,"19-20","Manufacture of coke, chemicals and refined petroleum and chemical products",null,":",null,":",null,":",null,":",null,":",null,":",null,":",null,":",null,":",null,":",null,":",null,{"$f":"IF(COUNT(J72,N72,P72,R72,T72,V72,AD72)=7,SUM(J72,N72,P72,R72,T72,V72,AD72),\":\")","v":":"}]
["S11_S12","C21-C23","EPS_P51C",null,null,null,"21-23","Manufacture of pharmaceuticals, rubber, plastic and other non-metallic products",null,":",null,":",null,":",null,":",null,":",null,":",null,":",null,":",null,":",null,":",null,":",null,":"]
["S11_S12","C24","EPS_P51C",null,null,null,24,"Manufacture of basic metals",null,":",null,":",null,":",null,":",null,":",null,":",null,":",null,":",null,":",null,":",null,":",null,":"]
["S11_S12","C25-C30","EPS_P51C",null,null,null,"25-30","Manufacture of fabricated metal products, including machinery and equipment",null,":",null,":",null,":",null,":",null,":",null,":",null,":",null,":",null,":",null,":",null,":",null,":"]
["S11_S12","C13-C16_C18_C31-C33","EPS_P51C",null,null,null,"13-16, 18, 31-33","Other manufacturing activities",null,":",null,":",null,":",null,":",null,":",null,":",null,":",null,":",null,":",null,":",null,":",null,":"]
["S11_S12","C10-C12","EPS_P1_ANCESA",null,"( P1_ANC_ESA.3bA ) Ancillary EP output (ESA - compatible valuation) ((P2_NEPS.3bA) + (D1.3bA) +(P51C.3bA) + (D29-D39.3bA))",null,"10-12'","Manufacture of food, beverages and tobacco products",null,":",null,":",null,":",null,":",null,":",null,":",null,":",null,":",null,":",null,":",null,":",null,":"]
["S11_S12","C17","EPS_P1_ANCESA",null,null,null,17,"Manufacture of paper and paper products",null,":",null,":",null,":",null,":",null,":",null,":",null,":",null,":",null,":",null,":",null,":",null,":"]
["S11_S12","C19_C20","EPS_P1_ANCESA",null,null,null,"19-20","Manufacture of coke, chemicals and refined petroleum and chemical products",null,":",null,":",null,":",null,":",null,":",null,":",null,":",null,":",null,":",null,":",null,":",null,":"]
["S11_S12","C21-C23","EPS_P1_ANCESA",null,null,null,"21-23","Manufacture of pharmaceuticals, rubber, plastic and other non-metallic products",null,":",null,":",null,":",null,":",null,":",null,":",null,":",null,":",null,":",null,":",null,":",null,":"]
["S11_S12","C24","EPS_P1_ANCESA",null,null,null,24,"Manufacture of basic metals",null,":",null,":",null,":",null,":",null,":",null,":",null,":",null,":",null,":",null,":",null,":",null,":"]
["S11_S12","C25-C30","EPS_P1_ANCESA",null,null,null,"25-30","Manufacture of fabricated metal products, including machinery and equipment",null,":",null,":",null,":",null,":",null,":",null,":",null,":",null,":",null,":",null,":",null,":",null,":"]
["S11_S12","C13-C16_C18_C31-C33","EPS_P1_ANCESA",null,null,null,"13-16, 18, 31-33","Other manufacturing activities",null,":",null,":",null,":",null,":",null,":",null,":",null,":",null,":",null,":",null,":",null,":",null,":"]
["S11_S12","C10-C12","EPS_REC_BYPR",null,"( RNO.3bA ) Related non-EP output",null,"10-12'","Manufacture of food, beverages and tobacco products",null,":",null,":",null,":",null,":",null,":",null,":",null,":",null,":",null,":",null,":",null,":",null,":"]
["S11_S12","C17","EPS_REC_BYPR",null,null,null,17,"Manufacture of paper and paper products",null,":",null,":",null,":",null,":",null,":",null,":",null,":",null,":",null,":",null,":",null,":",null,":"]
["S11_S12","C19_C20","EPS_REC_BYPR",null,null,null,"19-20","Manufacture of coke, chemicals and refined petroleum and chemical products",null,":",null,":",null,":",null,":",null,":",null,":",null,":",null,":",null,":",null,":",null,":",null,":"]
["S11_S12","C21-C23","EPS_REC_BYPR",null,null,null,"21-23","Manufacture of pharmaceuticals, rubber, plastic and other non-metallic products",null,":",null,":",null,":",null,":",null,":",null,":",null,":",null,":",null,":",null,":",null,":",null,":"]
["S11_S12","C24","EPS_REC_BYPR",null,null,null,24,"Manufacture of basic metals",null,":",null,":",null,":",null,":",null,":",null,":",null,":",null,":",null,":",null,":",null,":",null,":"]
["S11_S12","C25-C30","EPS_REC_BYPR",null,null,null,"25-30","Manufacture of fabricated metal products, including machinery and equipment",null,":",null,":",null,":",null,":",null,":",null,":",null,":",null,":",null,":",null,":",null,":",null,":"]
["S11_S12","C13-C16_C18_C31-C33","EPS_REC_BYPR",null,null,null,"13-16, 18, 31-33","Other manufacturing activities",null,":",null,":",null,":",null,":",null,":",null,":",null,":",null,":",null,":",null,":",null,":",null,":"]
["S11_S12","C10-C12","TOT_P2_EPS","Transactions as users of EP services (ancillary production of EP services and other production)","( P2_EPS_EXT.3bA ) Total intermediate consumption of EP services (for production of EP services and for other production)",null,"10-12'","Manufacture of food, beverages and tobacco products",null,":",null,":",null,":",null,":",null,":",null,":",null,":",null,":",null,":",null,":",null,":",null,":"]
["S11_S12","C17","TOT_P2_EPS",null,"(P2_EPS_EXT.3x: please consider the explanatory notes - click here)",null,17,"Manufacture of paper and paper products",null,":",null,":",null,":",null,":",null,":",null,":",null,":",null,":",null,":",null,":",null,":",null,":"]
["S11_S12","C19_C20","TOT_P2_EPS",null,null,null,"19-20","Manufacture of coke, chemicals and refined petroleum and chemical products",null,":",null,":",null,":",null,":",null,":",null,":",null,":",null,":",null,":",null,":",null,":",null,":"]
["S11_S12","C21-C23","TOT_P2_EPS",null,null,null,"21-23","Manufacture of pharmaceuticals, rubber, plastic and other non-metallic products",null,":",null,":",null,":",null,":",null,":",null,":",null,":",null,":",null,":",null,":",null,":",null,":"]
["S11_S12","C24","TOT_P2_EPS",null,null,null,24,"Manufacture of basic metals",null,":",null,":",null,":",null,":",null,":",null,":",null,":",null,":",null,":",null,":",null,":",null,":"]
["S11_S12","C25-C30","TOT_P2_EPS",null,null,null,"25-30","Manufacture of fabricated metal products, including machinery and equipment",null,":",null,":",null,":",null,":",null,":",null,":",null,":",null,":",null,":",null,":",null,":",null,":"]
["S11_S12","C13-C16_C18_C31-C33","TOT_P2_EPS",null,null,null,"13-16, 18, 31-33","Other manufacturing activities",null,":",null,":",null,":",null,":",null,":",null,":",null,":",null,":",null,":",null,":",null,":",null,":"]
["S11_S12","C10-C12","EPS_EMP","Transactions of producers of ancillary EP services","( EMP.3bA ) Employment (full time equivalent)",null,"10-12'","Manufacture of food, beverages and tobacco products",null,":",null,":",null,":",null,":",null,":",null,":",null,":",null,":",null,":",null,":",null,":",null,":"]
["S11_S12","C17","EPS_EMP",null,null,null,17,"Manufacture of paper and paper products",null,":",null,":",null,":",null,":",null,":",null,":",null,":",null,":",null,":",null,":",null,":",null,":"]
["S11_S12","C19_C20","EPS_EMP",null,null,null,"19-20","Manufacture of coke, chemicals and refined petroleum and chemical products",null,":",null,":",null,":",null,":",null,":",null,":",null,":",null,":",null,":",null,":",null,":",null,":"]
["S11_S12","C21-C23","EPS_EMP",null,null,null,"21-23","Manufacture of pharmaceuticals, rubber, plastic and other non-metallic products",null,":",null,":",null,":",null,":",null,":",null,":",null,":",null,":",null,":",null,":",null,":",null,":"]
["S11_S12","C24","EPS_EMP",null,null,null,24,"Manufacture of basic metals",null,":",null,":",null,":",null,":",null,":",null,":",null,":",null,":",null,":",null,":",null,":",null,":"]
["S11_S12","C25-C30","EPS_EMP",null,null,null,"25-30","Manufacture of fabricated metal products, including machinery and equipment",null,":",null,":",null,":",null,":",null,":",null,":",null,":",null,":",null,":",null,":",null,":",null,":"]
["S11_S12","C13-C16_C18_C31-C33","EPS_EMP",null,null,null,"13-16, 18, 31-33","Other manufacturing activities",null,":",null,":",null,":",null,":",null,":",null,":",null,":",null,":",null,":",null,":",null,":",null,{"$f":"IF(COUNT(J104,N104,P104,R104,T104,V104,AD104)=7,SUM(J104,N104,P104,R104,T104,V104,AD104),\":\")","v":":"}]

{"sheet":"3b_Add_2025","index":27,"n_rows":104,"n_cols":32,"rows_kept":104,"cut":false,"hidden":true,"merged":[[12,7,12,8],[13,4,13,5],[13,7,13,8],[14,7,14,8],[15,7,15,8],[16,7,16,8],[0,4,0,8],[0,9,0,16],[1,4,1,8],[1,9,1,32],[2,9,2,32],[3,9,4,10],[3,11,4,12],[3,13,4,14],[3,15,4,16],[3,17,4,18],[3,31,4,32],[4,4,4,5],[3,21,4,22],[3,23,4,24],[3,25,4,26],[3,27,4,28],[3,29,4,30],[3,19,4,20],[22,7,22,8],[23,7,23,8],[24,7,24,8],[25,7,25,8],[26,7,26,8],[28,7,28,8],[27,4,27,5],[27,7,27,8],[17,7,17,8],[18,7,18,8],[19,7,19,8],[20,4,20,5],[20,7,20,8],[21,7,21,8],[34,4,34,5],[34,7,34,8],[35,4,35,5],[35,7,35,8],[36,7,36,8],[37,7,37,8],[29,7,29,8],[30,7,30,8],[31,7,31,8],[32,7,32,8],[33,7,33,8],[43,7,43,8],[44,7,44,8],[45,7,45,8],[46,7,46,8],[47,7,47,8],[48,4,48,5],[48,7,48,8],[38,7,38,8],[39,7,39,8],[40,7,40,8],[41,4,41,5],[41,7,41,8],[42,7,42,8],[55,4,55,5],[55,7,55,8],[56,7,56,8],[57,7,57,8],[58,7,58,8],[59,7,59,8],[49,7,49,8],[50,7,50,8],[51,7,51,8],[52,7,52,8],[53,7,53,8],[54,7,54,8],[65,7,65,8],[66,7,66,8],[67,7,67,8],[68,7,68,8],[69,4,69,5],[69,7,69,8],[60,7,60,8],[61,7,61,8],[62,4,62,5],[62,7,62,8],[63,7,63,8],[64,7,64,8],[76,4,76,5],[76,7,76,8],[77,7,77,8],[78,7,78,8],[79,7,79,8],[80,7,80,8],[70,7,70,8],[71,7,71,8],[72,7,72,8],[73,7,73,8],[74,7,74,8],[75,7,75,8],[86,7,86,8],[87,7,87,8],[88,7,88,8],[89,7,89,8],[90,3,96,3],[90,4,90,5],[90,7,90,8],[91,4,91,5],[91,7,91,8],[92,7,92,8],[6,3,89,3],[6,4,6,5],[6,7,6,8],[7,7,7,8],[8,7,8,8],[9,7,9,8],[10,7,10,8],[11,7,11,8],[81,7,81,8],[82,7,82,8],[83,4,83,5],[83,7,83,8],[84,7,84,8],[85,7,85,8],[101,7,101,8],[102,7,102,8],[103,7,103,8],[93,7,93,8],[94,7,94,8],[95,7,95,8],[96,7,96,8],[97,3,103,3],[97,4,97,5],[97,7,97,8],[98,7,98,8],[99,7,99,8],[100,7,100,8]]}
[null,null,null,null,{"$f":"Cover!$B$21","v":"QUESTIONNAIRE ON ENVIRONMENTAL PROTECTION EXPENDITURE ACCOUNTS"},null,null,null,null,"Table 3b Add.: Detailed Manufacturing Industries"]
[null,null,null,null,{"$f":"E1","v":"QUESTIONNAIRE ON ENVIRONMENTAL PROTECTION EXPENDITURE ACCOUNTS"},null,null,null,null,{"$f":"J1 & \" - \" & I5","v":"Table 3b Add.: Detailed Manufacturing Industries - 2025"}]
[null,null,null,null,null,null,null,null,null,"Mandatory and voluntary variables and environmental domains - please fill in as much as possible"]
[null,null,null,null,"Country/Unit",{"$f":"IFERROR(Cover!C16,\"\")","v":""},{"$f":"\"\"&Cover!B16","v":""},null,{"$f":"Cover!B17","v":"Million units of national currency"},"CEPA 1",null,"of which CEPA 1.1.2 and 1.2.2 Climate change",null,"CEPA 2",null,"CEPA 3",null,"CEPA 4",null,"CEPA 5",null,"CEPA 6",null,"CEPA 7",null,"CEPA 8",null,"CEPA 9",null,"Sum of CEPA 7+8+9",null,"TOTAL"]
[null,null,null,null,"Expenditure",null,null,"YEAR",2025,null,null,null,null,null,null,null,null,null,null,null,null,null,null,null,null,null,null,null,null,null,null,"Landscape"]
[null,null,null,null,null,null,null,null,null,"CEPA1",null,"CEPA112_122",null,"CEPA2",null,"CEPA3",null,"CEPA4",null,"CEPA5",null,"CEPA6",null,"CEPA7",null,"CEPA8",null,"CEPA9",null,"CEPA7-9",null,"TOT_CEPA"]
["S11_S12","C10-C12","EPS_P51G_NP","Transactions of producers of ancillary EP services","( P51G_NP.3bA ) Gross fixed capital formation and acquisition less disposals of non-financial, non-produced assets",null,"10-12","Manufacture of food, beverages and tobacco products",null,":",null,":",null,":",null,":",null,":",null,":",null,":",null,":",null,":",null,":",null,":",null,{"$f":"IF(COUNT(J7,N7,P7,R7,T7,V7,AD7)=7,SUM(J7,N7,P7,R7,T7,V7,AD7),\":\")","v":":"}]
["S11_S12","C17","EPS_P51G_NP",null,null,null,17,"Manufacture of paper and paper products",null,":",null,":",null,":",null,":",null,":",null,":",null,":",null,":",null,":",null,":",null,":",null,{"$f":"IF(COUNT(J8,N8,P8,R8,T8,V8,AD8)=7,SUM(J8,N8,P8,R8,T8,V8,AD8),\":\")","v":":"}]
["S11_S12","C19_C20","EPS_P51G_NP",null,null,null,"19-20","Manufacture of coke, chemicals and refined petroleum and chemical products",null,":",null,":",null,":",null,":",null,":",null,":",null,":",null,":",null,":",null,":",null,":",null,":"]
["S11_S12","C21-C23","EPS_P51G_NP",null,null,null,"21-23","Manufacture of pharmaceuticals, rubber, plastic and other non-metallic products",null,":",null,":",null,":",null,":",null,":",null,":",null,":",null,":",null,":",null,":",null,":",null,":"]
["S11_S12","C24","EPS_P51G_NP",null,null,null,24,"Manufacture of basic metals",null,":",null,":",null,":",null,":",null,":",null,":",null,":",null,":",null,":",null,":",null,":",null,":"]
["S11_S12","C25-C30","EPS_P51G_NP",null,null,null,"25-30","Manufacture of fabricated metal products, including machinery and equipment",null,":",null,":",null,":",null,":",null,":",null,":",null,":",null,":",null,":",null,":",null,":",null,":"]
["S11_S12","C13-C16_C18_C31-C33","EPS_P51G_NP",null,null,null,"13-16, 18, 31-33","Other manufacturing activities",null,":",null,":",null,":",null,":",null,":",null,":",null,":",null,":",null,":",null,":",null,":",null,":"]
["S11_S12","C10-C12","EPS_INV_PT",null,"( INV_EOP.3bA ) GFCF on specific EP fixed assets (end-of-pipe technologies)",null,"10-12'","Manufacture of food, beverages and tobacco products",null,":",null,":",null,":",null,":",null,":",null,":",null,":",null,":",null,":",null,":",null,":",null,":"]
["S11_S12","C17","EPS_INV_PT",null,null,null,17,"Manufacture of paper and paper products",null,":",null,":",null,":",null,":",null,":",null,":",null,":",null,":",null,":",null,":",null,":",null,":"]
["S11_S12","C19_C20","EPS_INV_PT",null,null,null,"19-20","Manufacture of coke, chemicals and refined petroleum and chemical products",null,":",null,":",null,":",null,":",null,":",null,":",null,":",null,":",null,":",null,":",null,":",null,":"]
["S11_S12","C21-C23","EPS_INV_PT",null,null,null,"21-23","Manufacture of pharmaceuticals, rubber, plastic and other non-metallic products",null,":",null,":",null,":",null,":",null,":",null,":",null,":",null,":",null,":",null,":",null,":",null,":"]
["S11_S12","C24","EPS_INV_PT",null,null,null,24,"Manufacture of basic metals",null,":",null,":",null,":",null,":",null,":",null,":",null,":",null,":",null,":",null,":",null,":",null,":"]
["S11_S12","C25-C30","EPS_INV_PT",null,null,null,"25-30","Manufacture of fabricated metal products, including machinery and equipment",null,":",null,":",null,":",null,":",null,":",null,":",null,":",null,":",null,":",null,":",null,":",null,":"]
["S11_S12","C13-C16_C18_C31-C33","EPS_INV_PT",null,null,null,"13-16, 18, 31-33","Other manufacturing activities",null,":",null,":",null,":",null,":",null,":",null,":",null,":",null,":",null,":",null,":",null,":",null,":"]
["S11_S12","C10-C12","EPS_INV_PP",null,"( INV_IT.3bA ) GFCF on cleaner EP fixed assets (integrated technologies)",null,"10-12'","Manufacture of food, beverages and tobacco products",null,":",null,":",null,":",null,":",null,":",null,":",null,":",null,":",null,":",null,":",null,":",null,":"]
["S11_S12","C17","EPS_INV_PP",null,null,null,17,"Manufacture of paper and paper products",null,":",null,":",null,":",null,":",null,":",null,":",null,":",null,":",null,":",null,":",null,":",null,":"]
["S11_S12","C19_C20","EPS_INV_PP",null,null,null,"19-20","Manufacture of coke, chemicals and refined petroleum and chemical products",null,":",null,":",null,":",null,":",null,":",null,":",null,":",null,":",null,":",null,":",null,":",null,":"]
["S11_S12","C21-C23","EPS_INV_PP",null,null,null,"21-23","Manufacture of pharmaceuticals, rubber, plastic and other non-metallic products",null,":",null,":",null,":",null,":",null,":",null,":",null,":",null,":",null,":",null,":",null,":",null,":"]
["S11_S12","C24","EPS_INV_PP",null,null,null,24,"Manufacture of basic metals",null,":",null,":",null,":",null,":",null,":",null,":",null,":",null,":",null,":",null,":",null,":",null,":"]
["S11_S12","C25-C30","EPS_INV_PP",null,null,null,"25-30","Manufacture of fabricated metal products, including machinery and equipment",null,":",null,":",null,":",null,":",null,":",null,":",null,":",null,":",null,":",null,":",null,":",null,":"]
["S11_S12","C13-C16_C18_C31-C33","EPS_INV_PP",null,null,null,"13-16, 18, 31-33","Other manufacturing activities",null,":",null,":",null,":",null,":",null,":",null,":",null,":",null,":",null,":",null,":",null,":",null,":"]
["S11_S12","C10-C12","EPS_P2",null,"( P2.3bA ) Total intermediate consumption",null,"10-12'","Manufacture of food, beverages and tobacco products",null,":",null,":",null,":",null,":",null,":",null,":",null,":",null,":",null,":",null,":",null,":",null,":"]
["S11_S12","C17","EPS_P2",null,null,null,17,"Manufacture of paper and paper products",null,":",null,":",null,":",null,":",null,":",null,":",null,":",null,":",null,":",null,":",null,":",null,":"]
["S11_S12","C19_C20","EPS_P2",null,null,null,"19-20","Manufacture of coke, chemicals and refined petroleum and chemical products",null,":",null,":",null,":",null,":",null,":",null,":",null,":",null,":",null,":",null,":",null,":",null,":"]
["S11_S12","C21-C23","EPS_P2",null,null,null,"21-23","Manufacture of pharmaceuticals, rubber, plastic and other non-metallic products",null,":",null,":",null,":",null,":",null,":",null,":",null,":",null,":",null,":",null,":",null,":",null,":"]
["S11_S12","C24","EPS_P2",null,null,null,24,"Manufacture of basic metals",null,":",null,":",null,":",null,":",null,":",null,":",null,":",null,":",null,":",null,":",null,":",null,":"]
["S11_S12","C25-C30","EPS_P2",null,null,null,"25-30","Manufacture of fabricated metal products, including machinery and equipment",null,":",null,":",null,":",null,":",null,":",null,":",null,":",null,":",null,":",null,":",null,":",null,":"]
["S11_S12","C13-C16_C18_C31-C33","EPS_P2",null,null,null,"13-16, 18, 31-33","Other manufacturing activities",null,":",null,":",null,":",null,":",null,":",null,":",null,":",null,":",null,":",null,":",null,":",null,":"]
["S11_S12","C10-C12","EPS_P2_EPS",null,"( P2_EPS.3bA )  Intermediate consumption of EP services for ancillary production of EP services ",null,"10-12'","Manufacture of food, beverages and tobacco products",null,":",null,":",null,":",null,":",null,":",null,":",null,":",null,":",null,":",null,":",null,":",null,":"]
["S11_S12","C17","EPS_P2_EPS",null,"(P2_EPS.3x: please consider the explanatory notes - click here)",null,17,"Manufacture of paper and paper products",null,":",null,":",null,":",null,":",null,":",null,":",null,":",null,":",null,":",null,":",null,":",null,":"]
["S11_S12","C19_C20","EPS_P2_EPS",null,null,null,"19-20","Manufacture of coke, chemicals and refined petroleum and chemical products",null,":",null,":",null,":",null,":",null,":",null,":",null,":",null,":",null,":",null,":",null,":",null,":"]
["S11_S12","C21-C23","EPS_P2_EPS",null,null,null,"21-23","Manufacture of pharmaceuticals, rubber, plastic and other non-metallic products",null,":",null,":",null,":",null,":",null,":",null,":",null,":",null,":",null,":",null,":",null,":",null,":"]
["S11_S12","C24","EPS_P2_EPS",null,null,null,24,"Manufacture of basic metals",null,":",null,":",null,":",null,":",null,":",null,":",null,":",null,":",null,":",null,":",null,":",null,":"]
["S11_S12","C25-C30","EPS_P2_EPS",null,null,null,"25-30","Manufacture of fabricated metal products, including machinery and equipment",null,":",null,":",null,":",null,":",null,":",null,":",null,":",null,":",null,":",null,":",null,":",null,":"]
["S11_S12","C13-C16_C18_C31-C33","EPS_P2_EPS",null,null,null,"13-16, 18, 31-33","Other manufacturing activities",null,":",null,":",null,":",null,":",null,":",null,":",null,":",null,":",null,":",null,":",null,":",null,":"]
["S11_S12","C10-C12","EPS_P2_NEPS",null,"( P2_NEPS.3bA ) Intermediate consumption (excluding EP services)",null,"10-12'","Manufacture of food, beverages and tobacco products",null,":",null,":",null,":",null,":",null,":",null,":",null,":",null,":",null,":",null,":",null,":",null,":"]
["S11_S12","C17","EPS_P2_NEPS",null,null,null,17,"Manufacture of paper and paper products",null,":",null,":",null,":",null,":",null,":",null,":",null,":",null,":",null,":",null,":",null,":",null,":"]
["S11_S12","C19_C20","EPS_P2_NEPS",null,null,null,"19-20","Manufacture of coke, chemicals and refined petroleum and chemical products",null,":",null,":",null,":",null,":",null,":",null,":",null,":",null,":",null,":",null,":",null,":",null,":"]
["S11_S12","C21-C23","EPS_P2_NEPS",null,null,null,"21-23","Manufacture of pharmaceuticals, rubber, plastic and other non-metallic products",null,":",null,":",null,":",null,":",null,":",null,":",null,":",null,":",null,":",null,":",null,":",null,":"]
["S11_S12","C24","EPS_P2_NEPS",null,null,null,24,"Manufacture of basic metals",null,":",null,":",null,":",null,":",null,":",null,":",null,":",null,":",null,":",null,":",null,":",null,":"]
["S11_S12","C25-C30","EPS_P2_NEPS",null,null,null,"25-30","Manufacture of fabricated metal products, including machinery and equipment",null,":",null,":",null,":",null,":",null,":",null,":",null,":",null,":",null,":",null,":",null,":",null,":"]
["S11_S12","C13-C16_C18_C31-C33","EPS_P2_NEPS",null,null,null,"13-16, 18, 31-33","Other manufacturing activities",null,":",null,":",null,":",null,":",null,":",null,":",null,":",null,":",null,":",null,":",null,":",null,":"]
["S11_S12","C10-C12","EPS_D1",null,"( D1.3bA ) Compensation of employees",null,"10-12'","Manufacture of food, beverages and tobacco products",null,":",null,":",null,":",null,":",null,":",null,":",null,":",null,":",null,":",null,":",null,":",null,":"]
["S11_S12","C17","EPS_D1",null,null,null,17,"Manufacture of paper and paper products",null,":",null,":",null,":",null,":",null,":",null,":",null,":",null,":",null,":",null,":",null,":",null,":"]
["S11_S12","C19_C20","EPS_D1",null,null,null,"19-20","Manufacture of coke, chemicals and refined petroleum and chemical products",null,":",null,":",null,":",null,":",null,":",null,":",null,":",null,":",null,":",null,":",null,":",null,":"]
["S11_S12","C21-C23","EPS_D1",null,null,null,"21-23","Manufacture of pharmaceuticals, rubber, plastic and other non-metallic products",null,":",null,":",null,":",null,":",null,":",null,":",null,":",null,":",null,":",null,":",null,":",null,":"]
["S11_S12","C24","EPS_D1",null,null,null,24,"Manufacture of basic metals",null,":",null,":",null,":",null,":",null,":",null,":",null,":",null,":",null,":",null,":",null,":",null,":"]
["S11_S12","C25-C30","EPS_D1",null,null,null,"25-30","Manufacture of fabricated metal products, including machinery and equipment",null,":",null,":",null,":",null,":",null,":",null,":",null,":",null,":",null,":",null,":",null,":",null,":"]
["S11_S12","C13-C16_C18_C31-C33","EPS_D1",null,null,null,"13-16, 18, 31-33","Other manufacturing activities",null,":",null,":",null,":",null,":",null,":",null,":",null,":",null,":",null,":",null,":",null,":",null,":"]
["S11_S12","C10-C12","EPS_P1_ANC",null,"( P1_ANC.3bA ) Ancillary EP output (simplified valuation legally acceptable) ((P2_NEPS.3bA) + (D1.3bA))",null,"10-12'","Manufacture of food, beverages and tobacco products",null,":",null,":",null,":",null,":",null,":",null,":",null,":",null,":",null,":",null,":",null,":",null,":"]
["S11_S12","C17","EPS_P1_ANC",null,null,null,17,"Manufacture of paper and paper products",null,":",null,":",null,":",null,":",null,":",null,":",null,":",null,":",null,":",null,":",null,":",null,":"]
["S11_S12","C19_C20","EPS_P1_ANC",null,null,null,"19-20","Manufacture of coke, chemicals and refined petroleum and chemical products",null,":",null,":",null,":",null,":",null,":",null,":",null,":",null,":",null,":",null,":",null,":",null,":"]
["S11_S12","C21-C23","EPS_P1_ANC",null,null,null,"21-23","Manufacture of pharmaceuticals, rubber, plastic and other non-metallic products",null,":",null,":",null,":",null,":",null,":",null,":",null,":",null,":",null,":",null,":",null,":",null,":"]
["S11_S12","C24","EPS_P1_ANC",null,null,null,24,"Manufacture of basic metals",null,":",null,":",null,":",null,":",null,":",null,":",null,":",null,":",null,":",null,":",null,":",null,":"]
["S11_S12","C25-C30","EPS_P1_ANC",null,null,null,"25-30","Manufacture of fabricated metal products, including machinery and equipment",null,":",null,":",null,":",null,":",null,":",null,":",null,":",null,":",null,":",null,":",null,":",null,":"]
["S11_S12","C13-C16_C18_C31-C33","EPS_P1_ANC",null,null,null,"13-16, 18, 31-33","Other manufacturing activities",null,":",null,":",null,":",null,":",null,":",null,":",null,":",null,":",null,":",null,":",null,":",null,":"]
["S11_S12","C10-C12","EPS_D29X39",null,"( D29-D39.3bA ) Other taxes less subsidies on production",null,"10-12'","Manufacture of food, beverages and tobacco products",null,":",null,":",null,":",null,":",null,":",null,":",null,":",null,":",null,":",null,":",null,":",null,":"]
["S11_S12","C17","EPS_D29X39",null,null,null,17,"Manufacture of paper and paper products",null,":",null,":",null,":",null,":",null,":",null,":",null,":",null,":",null,":",null,":",null,":",null,":"]
["S11_S12","C19_C20","EPS_D29X39",null,null,null,"19-20","Manufacture of coke, chemicals and refined petroleum and chemical products",null,":",null,":",null,":",null,":",null,":",null,":",null,":",null,":",null,":",null,":",null,":",null,":"]
["S11_S12","C21-C23","EPS_D29X39",null,null,null,"21-23","Manufacture of pharmaceuticals, rubber, plastic and other non-metallic products",null,":",null,":",null,":",null,":",null,":",null,":",null,":",null,":",null,":",null,":",null,":",null,":"]
["S11_S12","C24","EPS_D29X39",null,null,null,24,"Manufacture of basic metals",null,":",null,":",null,":",null,":",null,":",null,":",null,":",null,":",null,":",null,":",null,":",null,":"]
["S11_S12","C25-C30","EPS_D29X39",null,null,null,"25-30","Manufacture of fabricated metal products, including machinery and equipment",null,":",null,":",null,":",null,":",null,":",null,":",null,":",null,":",null,":",null,":",null,":",null,":"]
["S11_S12","C13-C16_C18_C31-C33","EPS_D29X39",null,null,null,"13-16, 18, 31-33","Other manufacturing activities",null,":",null,":",null,":",null,":",null,":",null,":",null,":",null,":",null,":",null,":",null,":",null,":"]
["S11_S12","C10-C12","EPS_P51C",null,"( P51C.3bA ) Consumption of fixed capital",null,"10-12'","Manufacture of food, beverages and tobacco products",null,":",null,":",null,":",null,":",null,":",null,":",null,":",null,":",null,":",null,":",null,":",null,":"]
["S11_S12","C17","EPS_P51C",null,null,null,17,"Manufacture of paper and paper products",null,":",null,":",null,":",null,":",null,":",null,":",null,":",null,":",null,":",null,":",null,":",null,":"]
["S11_S12","C19_C20","EPS_P51C",null,null,null,"19-20","Manufacture of coke, chemicals and refined petroleum and chemical products",null,":",null,":",null,":",null,":",null,":",null,":",null,":",null,":",null,":",null,":",null,":",null,{"$f":"IF(COUNT(J72,N72,P72,R72,T72,V72,AD72)=7,SUM(J72,N72,P72,R72,T72,V72,AD72),\":\")","v":":"}]
["S11_S12","C21-C23","EPS_P51C",null,null,null,"21-23","Manufacture of pharmaceuticals, rubber, plastic and other non-metallic products",null,":",null,":",null,":",null,":",null,":",null,":",null,":",null,":",null,":",null,":",null,":",null,":"]
["S11_S12","C24","EPS_P51C",null,null,null,24,"Manufacture of basic metals",null,":",null,":",null,":",null,":",null,":",null,":",null,":",null,":",null,":",null,":",null,":",null,":"]
["S11_S12","C25-C30","EPS_P51C",null,null,null,"25-30","Manufacture of fabricated metal products, including machinery and equipment",null,":",null,":",null,":",null,":",null,":",null,":",null,":",null,":",null,":",null,":",null,":",null,":"]
["S11_S12","C13-C16_C18_C31-C33","EPS_P51C",null,null,null,"13-16, 18, 31-33","Other manufacturing activities",null,":",null,":",null,":",null,":",null,":",null,":",null,":",null,":",null,":",null,":",null,":",null,":"]
["S11_S12","C10-C12","EPS_P1_ANCESA",null,"( P1_ANC_ESA.3bA ) Ancillary EP output (ESA - compatible valuation) ((P2_NEPS.3bA) + (D1.3bA) +(P51C.3bA) + (D29-D39.3bA))",null,"10-12'","Manufacture of food, beverages and tobacco products",null,":",null,":",null,":",null,":",null,":",null,":",null,":",null,":",null,":",null,":",null,":",null,":"]
["S11_S12","C17","EPS_P1_ANCESA",null,null,null,17,"Manufacture of paper and paper products",null,":",null,":",null,":",null,":",null,":",null,":",null,":",null,":",null,":",null,":",null,":",null,":"]
["S11_S12","C19_C20","EPS_P1_ANCESA",null,null,null,"19-20","Manufacture of coke, chemicals and refined petroleum and chemical products",null,":",null,":",null,":",null,":",null,":",null,":",null,":",null,":",null,":",null,":",null,":",null,":"]
["S11_S12","C21-C23","EPS_P1_ANCESA",null,null,null,"21-23","Manufacture of pharmaceuticals, rubber, plastic and other non-metallic products",null,":",null,":",null,":",null,":",null,":",null,":",null,":",null,":",null,":",null,":",null,":",null,":"]
["S11_S12","C24","EPS_P1_ANCESA",null,null,null,24,"Manufacture of basic metals",null,":",null,":",null,":",null,":",null,":",null,":",null,":",null,":",null,":",null,":",null,":",null,":"]
["S11_S12","C25-C30","EPS_P1_ANCESA",null,null,null,"25-30","Manufacture of fabricated metal products, including machinery and equipment",null,":",null,":",null,":",null,":",null,":",null,":",null,":",null,":",null,":",null,":",null,":",null,":"]
["S11_S12","C13-C16_C18_C31-C33","EPS_P1_ANCESA",null,null,null,"13-16, 18, 31-33","Other manufacturing activities",null,":",null,":",null,":",null,":",null,":",null,":",null,":",null,":",null,":",null,":",null,":",null,":"]
["S11_S12","C10-C12","EPS_REC_BYPR",null,"( RNO.3bA ) Related non-EP output",null,"10-12'","Manufacture of food, beverages and tobacco products",null,":",null,":",null,":",null,":",null,":",null,":",null,":",null,":",null,":",null,":",null,":",null,":"]
["S11_S12","C17","EPS_REC_BYPR",null,null,null,17,"Manufacture of paper and paper products",null,":",null,":",null,":",null,":",null,":",null,":",null,":",null,":",null,":",null,":",null,":",null,":"]
["S11_S12","C19_C20","EPS_REC_BYPR",null,null,null,"19-20","Manufacture of coke, chemicals and refined petroleum and chemical products",null,":",null,":",null,":",null,":",null,":",null,":",null,":",null,":",null,":",null,":",null,":",null,":"]
["S11_S12","C21-C23","EPS_REC_BYPR",null,null,null,"21-23","Manufacture of pharmaceuticals, rubber, plastic and other non-metallic products",null,":",null,":",null,":",null,":",null,":",null,":",null,":",null,":",null,":",null,":",null,":",null,":"]
["S11_S12","C24","EPS_REC_BYPR",null,null,null,24,"Manufacture of basic metals",null,":",null,":",null,":",null,":",null,":",null,":",null,":",null,":",null,":",null,":",null,":",null,":"]
["S11_S12","C25-C30","EPS_REC_BYPR",null,null,null,"25-30","Manufacture of fabricated metal products, including machinery and equipment",null,":",null,":",null,":",null,":",null,":",null,":",null,":",null,":",null,":",null,":",null,":",null,":"]
["S11_S12","C13-C16_C18_C31-C33","EPS_REC_BYPR",null,null,null,"13-16, 18, 31-33","Other manufacturing activities",null,":",null,":",null,":",null,":",null,":",null,":",null,":",null,":",null,":",null,":",null,":",null,":"]
["S11_S12","C10-C12","TOT_P2_EPS","Transactions as users of EP services (ancillary production of EP services and other production)","( P2_EPS_EXT.3bA ) Total intermediate consumption of EP services (for production of EP services and for other production)",null,"10-12'","Manufacture of food, beverages and tobacco products",null,":",null,":",null,":",null,":",null,":",null,":",null,":",null,":",null,":",null,":",null,":",null,":"]
["S11_S12","C17","TOT_P2_EPS",null,"(P2_EPS_EXT.3x: please consider the explanatory notes - click here)",null,17,"Manufacture of paper and paper products",null,":",null,":",null,":",null,":",null,":",null,":",null,":",null,":",null,":",null,":",null,":",null,":"]
["S11_S12","C19_C20","TOT_P2_EPS",null,null,null,"19-20","Manufacture of coke, chemicals and refined petroleum and chemical products",null,":",null,":",null,":",null,":",null,":",null,":",null,":",null,":",null,":",null,":",null,":",null,":"]
["S11_S12","C21-C23","TOT_P2_EPS",null,null,null,"21-23","Manufacture of pharmaceuticals, rubber, plastic and other non-metallic products",null,":",null,":",null,":",null,":",null,":",null,":",null,":",null,":",null,":",null,":",null,":",null,":"]
["S11_S12","C24","TOT_P2_EPS",null,null,null,24,"Manufacture of basic metals",null,":",null,":",null,":",null,":",null,":",null,":",null,":",null,":",null,":",null,":",null,":",null,":"]
["S11_S12","C25-C30","TOT_P2_EPS",null,null,null,"25-30","Manufacture of fabricated metal products, including machinery and equipment",null,":",null,":",null,":",null,":",null,":",null,":",null,":",null,":",null,":",null,":",null,":",null,":"]
["S11_S12","C13-C16_C18_C31-C33","TOT_P2_EPS",null,null,null,"13-16, 18, 31-33","Other manufacturing activities",null,":",null,":",null,":",null,":",null,":",null,":",null,":",null,":",null,":",null,":",null,":",null,":"]
["S11_S12","C10-C12","EPS_EMP","Transactions of producers of ancillary EP services","( EMP.3bA ) Employment (full time equivalent)",null,"10-12'","Manufacture of food, beverages and tobacco products",null,":",null,":",null,":",null,":",null,":",null,":",null,":",null,":",null,":",null,":",null,":",null,":"]
["S11_S12","C17","EPS_EMP",null,null,null,17,"Manufacture of paper and paper products",null,":",null,":",null,":",null,":",null,":",null,":",null,":",null,":",null,":",null,":",null,":",null,":"]
["S11_S12","C19_C20","EPS_EMP",null,null,null,"19-20","Manufacture of coke, chemicals and refined petroleum and chemical products",null,":",null,":",null,":",null,":",null,":",null,":",null,":",null,":",null,":",null,":",null,":",null,":"]
["S11_S12","C21-C23","EPS_EMP",null,null,null,"21-23","Manufacture of pharmaceuticals, rubber, plastic and other non-metallic products",null,":",null,":",null,":",null,":",null,":",null,":",null,":",null,":",null,":",null,":",null,":",null,":"]
["S11_S12","C24","EPS_EMP",null,null,null,24,"Manufacture of basic metals",null,":",null,":",null,":",null,":",null,":",null,":",null,":",null,":",null,":",null,":",null,":",null,":"]
["S11_S12","C25-C30","EPS_EMP",null,null,null,"25-30","Manufacture of fabricated metal products, including machinery and equipment",null,":",null,":",null,":",null,":",null,":",null,":",null,":",null,":",null,":",null,":",null,":",null,":"]
["S11_S12","C13-C16_C18_C31-C33","EPS_EMP",null,null,null,"13-16, 18, 31-33","Other manufacturing activities",null,":",null,":",null,":",null,":",null,":",null,":",null,":",null,":",null,":",null,":",null,":",null,{"$f":"IF(COUNT(J104,N104,P104,R104,T104,V104,AD104)=7,SUM(J104,N104,P104,R104,T104,V104,AD104),\":\")","v":":"}]

{"sheet":"3b_Add_2026","index":28,"n_rows":104,"n_cols":32,"rows_kept":104,"cut":false,"hidden":true,"merged":[[12,7,12,8],[13,4,13,5],[13,7,13,8],[14,7,14,8],[15,7,15,8],[16,7,16,8],[0,4,0,8],[0,9,0,16],[1,4,1,8],[1,9,1,32],[2,9,2,32],[3,9,4,10],[3,11,4,12],[3,13,4,14],[3,15,4,16],[3,17,4,18],[3,31,4,32],[4,4,4,5],[3,21,4,22],[3,23,4,24],[3,25,4,26],[3,27,4,28],[3,29,4,30],[3,19,4,20],[22,7,22,8],[23,7,23,8],[24,7,24,8],[25,7,25,8],[26,7,26,8],[28,7,28,8],[27,4,27,5],[27,7,27,8],[17,7,17,8],[18,7,18,8],[19,7,19,8],[20,4,20,5],[20,7,20,8],[21,7,21,8],[34,4,34,5],[34,7,34,8],[35,4,35,5],[35,7,35,8],[36,7,36,8],[37,7,37,8],[29,7,29,8],[30,7,30,8],[31,7,31,8],[32,7,32,8],[33,7,33,8],[43,7,43,8],[44,7,44,8],[45,7,45,8],[46,7,46,8],[47,7,47,8],[48,4,48,5],[48,7,48,8],[38,7,38,8],[39,7,39,8],[40,7,40,8],[41,4,41,5],[41,7,41,8],[42,7,42,8],[55,4,55,5],[55,7,55,8],[56,7,56,8],[57,7,57,8],[58,7,58,8],[59,7,59,8],[49,7,49,8],[50,7,50,8],[51,7,51,8],[52,7,52,8],[53,7,53,8],[54,7,54,8],[65,7,65,8],[66,7,66,8],[67,7,67,8],[68,7,68,8],[69,4,69,5],[69,7,69,8],[60,7,60,8],[61,7,61,8],[62,4,62,5],[62,7,62,8],[63,7,63,8],[64,7,64,8],[76,4,76,5],[76,7,76,8],[77,7,77,8],[78,7,78,8],[79,7,79,8],[80,7,80,8],[70,7,70,8],[71,7,71,8],[72,7,72,8],[73,7,73,8],[74,7,74,8],[75,7,75,8],[86,7,86,8],[87,7,87,8],[88,7,88,8],[89,7,89,8],[90,3,96,3],[90,4,90,5],[90,7,90,8],[91,4,91,5],[91,7,91,8],[92,7,92,8],[6,3,89,3],[6,4,6,5],[6,7,6,8],[7,7,7,8],[8,7,8,8],[9,7,9,8],[10,7,10,8],[11,7,11,8],[81,7,81,8],[82,7,82,8],[83,4,83,5],[83,7,83,8],[84,7,84,8],[85,7,85,8],[101,7,101,8],[102,7,102,8],[103,7,103,8],[93,7,93,8],[94,7,94,8],[95,7,95,8],[96,7,96,8],[97,3,103,3],[97,4,97,5],[97,7,97,8],[98,7,98,8],[99,7,99,8],[100,7,100,8]]}
[null,null,null,null,{"$f":"Cover!$B$21","v":"QUESTIONNAIRE ON ENVIRONMENTAL PROTECTION EXPENDITURE ACCOUNTS"},null,null,null,null,"Table 3b Add.: Detailed Manufacturing Industries"]
[null,null,null,null,{"$f":"E1","v":"QUESTIONNAIRE ON ENVIRONMENTAL PROTECTION EXPENDITURE ACCOUNTS"},null,null,null,null,{"$f":"J1 & \" - \" & I5","v":"Table 3b Add.: Detailed Manufacturing Industries - 2026"}]
[null,null,null,null,null,null,null,null,null,"Mandatory and voluntary variables and environmental domains - please fill in as much as possible"]
[null,null,null,null,"Country/Unit",{"$f":"IFERROR(Cover!C16,\"\")","v":""},{"$f":"\"\"&Cover!B16","v":""},null,{"$f":"Cover!B17","v":"Million units of national currency"},"CEPA 1",null,"of which CEPA 1.1.2 and 1.2.2 Climate change",null,"CEPA 2",null,"CEPA 3",null,"CEPA 4",null,"CEPA 5",null,"CEPA 6",null,"CEPA 7",null,"CEPA 8",null,"CEPA 9",null,"Sum of CEPA 7+8+9",null,"TOTAL"]
[null,null,null,null,"Expenditure",null,null,"YEAR",2026,null,null,null,null,null,null,null,null,null,null,null,null,null,null,null,null,null,null,null,null,null,null,"Landscape"]
[null,null,null,null,null,null,null,null,null,"CEPA1",null,"CEPA112_122",null,"CEPA2",null,"CEPA3",null,"CEPA4",null,"CEPA5",null,"CEPA6",null,"CEPA7",null,"CEPA8",null,"CEPA9",null,"CEPA7-9",null,"TOT_CEPA"]
["S11_S12","C10-C12","EPS_P51G_NP","Transactions of producers of ancillary EP services","( P51G_NP.3bA ) Gross fixed capital formation and acquisition less disposals of non-financial, non-produced assets",null,"10-12","Manufacture of food, beverages and tobacco products",null,":",null,":",null,":",null,":",null,":",null,":",null,":",null,":",null,":",null,":",null,":",null,{"$f":"IF(COUNT(J7,N7,P7,R7,T7,V7,AD7)=7,SUM(J7,N7,P7,R7,T7,V7,AD7),\":\")","v":":"}]
["S11_S12","C17","EPS_P51G_NP",null,null,null,17,"Manufacture of paper and paper products",null,":",null,":",null,":",null,":",null,":",null,":",null,":",null,":",null,":",null,":",null,":",null,{"$f":"IF(COUNT(J8,N8,P8,R8,T8,V8,AD8)=7,SUM(J8,N8,P8,R8,T8,V8,AD8),\":\")","v":":"}]
["S11_S12","C19_C20","EPS_P51G_NP",null,null,null,"19-20","Manufacture of coke, chemicals and refined petroleum and chemical products",null,":",null,":",null,":",null,":",null,":",null,":",null,":",null,":",null,":",null,":",null,":",null,":"]
["S11_S12","C21-C23","EPS_P51G_NP",null,null,null,"21-23","Manufacture of pharmaceuticals, rubber, plastic and other non-metallic products",null,":",null,":",null,":",null,":",null,":",null,":",null,":",null,":",null,":",null,":",null,":",null,":"]
["S11_S12","C24","EPS_P51G_NP",null,null,null,24,"Manufacture of basic metals",null,":",null,":",null,":",null,":",null,":",null,":",null,":",null,":",null,":",null,":",null,":",null,":"]
["S11_S12","C25-C30","EPS_P51G_NP",null,null,null,"25-30","Manufacture of fabricated metal products, including machinery and equipment",null,":",null,":",null,":",null,":",null,":",null,":",null,":",null,":",null,":",null,":",null,":",null,":"]
["S11_S12","C13-C16_C18_C31-C33","EPS_P51G_NP",null,null,null,"13-16, 18, 31-33","Other manufacturing activities",null,":",null,":",null,":",null,":",null,":",null,":",null,":",null,":",null,":",null,":",null,":",null,":"]
["S11_S12","C10-C12","EPS_INV_PT",null,"( INV_EOP.3bA ) GFCF on specific EP fixed assets (end-of-pipe technologies)",null,"10-12'","Manufacture of food, beverages and tobacco products",null,":",null,":",null,":",null,":",null,":",null,":",null,":",null,":",null,":",null,":",null,":",null,":"]
["S11_S12","C17","EPS_INV_PT",null,null,null,17,"Manufacture of paper and paper products",null,":",null,":",null,":",null,":",null,":",null,":",null,":",null,":",null,":",null,":",null,":",null,":"]
["S11_S12","C19_C20","EPS_INV_PT",null,null,null,"19-20","Manufacture of coke, chemicals and refined petroleum and chemical products",null,":",null,":",null,":",null,":",null,":",null,":",null,":",null,":",null,":",null,":",null,":",null,":"]
["S11_S12","C21-C23","EPS_INV_PT",null,null,null,"21-23","Manufacture of pharmaceuticals, rubber, plastic and other non-metallic products",null,":",null,":",null,":",null,":",null,":",null,":",null,":",null,":",null,":",null,":",null,":",null,":"]
["S11_S12","C24","EPS_INV_PT",null,null,null,24,"Manufacture of basic metals",null,":",null,":",null,":",null,":",null,":",null,":",null,":",null,":",null,":",null,":",null,":",null,":"]
["S11_S12","C25-C30","EPS_INV_PT",null,null,null,"25-30","Manufacture of fabricated metal products, including machinery and equipment",null,":",null,":",null,":",null,":",null,":",null,":",null,":",null,":",null,":",null,":",null,":",null,":"]
["S11_S12","C13-C16_C18_C31-C33","EPS_INV_PT",null,null,null,"13-16, 18, 31-33","Other manufacturing activities",null,":",null,":",null,":",null,":",null,":",null,":",null,":",null,":",null,":",null,":",null,":",null,":"]
["S11_S12","C10-C12","EPS_INV_PP",null,"( INV_IT.3bA ) GFCF on cleaner EP fixed assets (integrated technologies)",null,"10-12'","Manufacture of food, beverages and tobacco products",null,":",null,":",null,":",null,":",null,":",null,":",null,":",null,":",null,":",null,":",null,":",null,":"]
["S11_S12","C17","EPS_INV_PP",null,null,null,17,"Manufacture of paper and paper products",null,":",null,":",null,":",null,":",null,":",null,":",null,":",null,":",null,":",null,":",null,":",null,":"]
["S11_S12","C19_C20","EPS_INV_PP",null,null,null,"19-20","Manufacture of coke, chemicals and refined petroleum and chemical products",null,":",null,":",null,":",null,":",null,":",null,":",null,":",null,":",null,":",null,":",null,":",null,":"]
["S11_S12","C21-C23","EPS_INV_PP",null,null,null,"21-23","Manufacture of pharmaceuticals, rubber, plastic and other non-metallic products",null,":",null,":",null,":",null,":",null,":",null,":",null,":",null,":",null,":",null,":",null,":",null,":"]
["S11_S12","C24","EPS_INV_PP",null,null,null,24,"Manufacture of basic metals",null,":",null,":",null,":",null,":",null,":",null,":",null,":",null,":",null,":",null,":",null,":",null,":"]
["S11_S12","C25-C30","EPS_INV_PP",null,null,null,"25-30","Manufacture of fabricated metal products, including machinery and equipment",null,":",null,":",null,":",null,":",null,":",null,":",null,":",null,":",null,":",null,":",null,":",null,":"]
["S11_S12","C13-C16_C18_C31-C33","EPS_INV_PP",null,null,null,"13-16, 18, 31-33","Other manufacturing activities",null,":",null,":",null,":",null,":",null,":",null,":",null,":",null,":",null,":",null,":",null,":",null,":"]
["S11_S12","C10-C12","EPS_P2",null,"( P2.3bA ) Total intermediate consumption",null,"10-12'","Manufacture of food, beverages and tobacco products",null,":",null,":",null,":",null,":",null,":",null,":",null,":",null,":",null,":",null,":",null,":",null,":"]
["S11_S12","C17","EPS_P2",null,null,null,17,"Manufacture of paper and paper products",null,":",null,":",null,":",null,":",null,":",null,":",null,":",null,":",null,":",null,":",null,":",null,":"]
["S11_S12","C19_C20","EPS_P2",null,null,null,"19-20","Manufacture of coke, chemicals and refined petroleum and chemical products",null,":",null,":",null,":",null,":",null,":",null,":",null,":",null,":",null,":",null,":",null,":",null,":"]
["S11_S12","C21-C23","EPS_P2",null,null,null,"21-23","Manufacture of pharmaceuticals, rubber, plastic and other non-metallic products",null,":",null,":",null,":",null,":",null,":",null,":",null,":",null,":",null,":",null,":",null,":",null,":"]
["S11_S12","C24","EPS_P2",null,null,null,24,"Manufacture of basic metals",null,":",null,":",null,":",null,":",null,":",null,":",null,":",null,":",null,":",null,":",null,":",null,":"]
["S11_S12","C25-C30","EPS_P2",null,null,null,"25-30","Manufacture of fabricated metal products, including machinery and equipment",null,":",null,":",null,":",null,":",null,":",null,":",null,":",null,":",null,":",null,":",null,":",null,":"]
["S11_S12","C13-C16_C18_C31-C33","EPS_P2",null,null,null,"13-16, 18, 31-33","Other manufacturing activities",null,":",null,":",null,":",null,":",null,":",null,":",null,":",null,":",null,":",null,":",null,":",null,":"]
["S11_S12","C10-C12","EPS_P2_EPS",null,"( P2_EPS.3bA )  Intermediate consumption of EP services for ancillary production of EP services ",null,"10-12'","Manufacture of food, beverages and tobacco products",null,":",null,":",null,":",null,":",null,":",null,":",null,":",null,":",null,":",null,":",null,":",null,":"]
["S11_S12","C17","EPS_P2_EPS",null,"(P2_EPS.3x: please consider the explanatory notes - click here)",null,17,"Manufacture of paper and paper products",null,":",null,":",null,":",null,":",null,":",null,":",null,":",null,":",null,":",null,":",null,":",null,":"]
["S11_S12","C19_C20","EPS_P2_EPS",null,null,null,"19-20","Manufacture of coke, chemicals and refined petroleum and chemical products",null,":",null,":",null,":",null,":",null,":",null,":",null,":",null,":",null,":",null,":",null,":",null,":"]
["S11_S12","C21-C23","EPS_P2_EPS",null,null,null,"21-23","Manufacture of pharmaceuticals, rubber, plastic and other non-metallic products",null,":",null,":",null,":",null,":",null,":",null,":",null,":",null,":",null,":",null,":",null,":",null,":"]
["S11_S12","C24","EPS_P2_EPS",null,null,null,24,"Manufacture of basic metals",null,":",null,":",null,":",null,":",null,":",null,":",null,":",null,":",null,":",null,":",null,":",null,":"]
["S11_S12","C25-C30","EPS_P2_EPS",null,null,null,"25-30","Manufacture of fabricated metal products, including machinery and equipment",null,":",null,":",null,":",null,":",null,":",null,":",null,":",null,":",null,":",null,":",null,":",null,":"]
["S11_S12","C13-C16_C18_C31-C33","EPS_P2_EPS",null,null,null,"13-16, 18, 31-33","Other manufacturing activities",null,":",null,":",null,":",null,":",null,":",null,":",null,":",null,":",null,":",null,":",null,":",null,":"]
["S11_S12","C10-C12","EPS_P2_NEPS",null,"( P2_NEPS.3bA ) Intermediate consumption (excluding EP services)",null,"10-12'","Manufacture of food, beverages and tobacco products",null,":",null,":",null,":",null,":",null,":",null,":",null,":",null,":",null,":",null,":",null,":",null,":"]
["S11_S12","C17","EPS_P2_NEPS",null,null,null,17,"Manufacture of paper and paper products",null,":",null,":",null,":",null,":",null,":",null,":",null,":",null,":",null,":",null,":",null,":",null,":"]
["S11_S12","C19_C20","EPS_P2_NEPS",null,null,null,"19-20","Manufacture of coke, chemicals and refined petroleum and chemical products",null,":",null,":",null,":",null,":",null,":",null,":",null,":",null,":",null,":",null,":",null,":",null,":"]
["S11_S12","C21-C23","EPS_P2_NEPS",null,null,null,"21-23","Manufacture of pharmaceuticals, rubber, plastic and other non-metallic products",null,":",null,":",null,":",null,":",null,":",null,":",null,":",null,":",null,":",null,":",null,":",null,":"]
["S11_S12","C24","EPS_P2_NEPS",null,null,null,24,"Manufacture of basic metals",null,":",null,":",null,":",null,":",null,":",null,":",null,":",null,":",null,":",null,":",null,":",null,":"]
["S11_S12","C25-C30","EPS_P2_NEPS",null,null,null,"25-30","Manufacture of fabricated metal products, including machinery and equipment",null,":",null,":",null,":",null,":",null,":",null,":",null,":",null,":",null,":",null,":",null,":",null,":"]
["S11_S12","C13-C16_C18_C31-C33","EPS_P2_NEPS",null,null,null,"13-16, 18, 31-33","Other manufacturing activities",null,":",null,":",null,":",null,":",null,":",null,":",null,":",null,":",null,":",null,":",null,":",null,":"]
["S11_S12","C10-C12","EPS_D1",null,"( D1.3bA ) Compensation of employees",null,"10-12'","Manufacture of food, beverages and tobacco products",null,":",null,":",null,":",null,":",null,":",null,":",null,":",null,":",null,":",null,":",null,":",null,":"]
["S11_S12","C17","EPS_D1",null,null,null,17,"Manufacture of paper and paper products",null,":",null,":",null,":",null,":",null,":",null,":",null,":",null,":",null,":",null,":",null,":",null,":"]
["S11_S12","C19_C20","EPS_D1",null,null,null,"19-20","Manufacture of coke, chemicals and refined petroleum and chemical products",null,":",null,":",null,":",null,":",null,":",null,":",null,":",null,":",null,":",null,":",null,":",null,":"]
["S11_S12","C21-C23","EPS_D1",null,null,null,"21-23","Manufacture of pharmaceuticals, rubber, plastic and other non-metallic products",null,":",null,":",null,":",null,":",null,":",null,":",null,":",null,":",null,":",null,":",null,":",null,":"]
["S11_S12","C24","EPS_D1",null,null,null,24,"Manufacture of basic metals",null,":",null,":",null,":",null,":",null,":",null,":",null,":",null,":",null,":",null,":",null,":",null,":"]
["S11_S12","C25-C30","EPS_D1",null,null,null,"25-30","Manufacture of fabricated metal products, including machinery and equipment",null,":",null,":",null,":",null,":",null,":",null,":",null,":",null,":",null,":",null,":",null,":",null,":"]
["S11_S12","C13-C16_C18_C31-C33","EPS_D1",null,null,null,"13-16, 18, 31-33","Other manufacturing activities",null,":",null,":",null,":",null,":",null,":",null,":",null,":",null,":",null,":",null,":",null,":",null,":"]
["S11_S12","C10-C12","EPS_P1_ANC",null,"( P1_ANC.3bA ) Ancillary EP output (simplified valuation legally acceptable) ((P2_NEPS.3bA) + (D1.3bA))",null,"10-12'","Manufacture of food, beverages and tobacco products",null,":",null,":",null,":",null,":",null,":",null,":",null,":",null,":",null,":",null,":",null,":",null,":"]
["S11_S12","C17","EPS_P1_ANC",null,null,null,17,"Manufacture of paper and paper products",null,":",null,":",null,":",null,":",null,":",null,":",null,":",null,":",null,":",null,":",null,":",null,":"]
["S11_S12","C19_C20","EPS_P1_ANC",null,null,null,"19-20","Manufacture of coke, chemicals and refined petroleum and chemical products",null,":",null,":",null,":",null,":",null,":",null,":",null,":",null,":",null,":",null,":",null,":",null,":"]
["S11_S12","C21-C23","EPS_P1_ANC",null,null,null,"21-23","Manufacture of pharmaceuticals, rubber, plastic and other non-metallic products",null,":",null,":",null,":",null,":",null,":",null,":",null,":",null,":",null,":",null,":",null,":",null,":"]
["S11_S12","C24","EPS_P1_ANC",null,null,null,24,"Manufacture of basic metals",null,":",null,":",null,":",null,":",null,":",null,":",null,":",null,":",null,":",null,":",null,":",null,":"]
["S11_S12","C25-C30","EPS_P1_ANC",null,null,null,"25-30","Manufacture of fabricated metal products, including machinery and equipment",null,":",null,":",null,":",null,":",null,":",null,":",null,":",null,":",null,":",null,":",null,":",null,":"]
["S11_S12","C13-C16_C18_C31-C33","EPS_P1_ANC",null,null,null,"13-16, 18, 31-33","Other manufacturing activities",null,":",null,":",null,":",null,":",null,":",null,":",null,":",null,":",null,":",null,":",null,":",null,":"]
["S11_S12","C10-C12","EPS_D29X39",null,"( D29-D39.3bA ) Other taxes less subsidies on production",null,"10-12'","Manufacture of food, beverages and tobacco products",null,":",null,":",null,":",null,":",null,":",null,":",null,":",null,":",null,":",null,":",null,":",null,":"]
["S11_S12","C17","EPS_D29X39",null,null,null,17,"Manufacture of paper and paper products",null,":",null,":",null,":",null,":",null,":",null,":",null,":",null,":",null,":",null,":",null,":",null,":"]
["S11_S12","C19_C20","EPS_D29X39",null,null,null,"19-20","Manufacture of coke, chemicals and refined petroleum and chemical products",null,":",null,":",null,":",null,":",null,":",null,":",null,":",null,":",null,":",null,":",null,":",null,":"]
["S11_S12","C21-C23","EPS_D29X39",null,null,null,"21-23","Manufacture of pharmaceuticals, rubber, plastic and other non-metallic products",null,":",null,":",null,":",null,":",null,":",null,":",null,":",null,":",null,":",null,":",null,":",null,":"]
["S11_S12","C24","EPS_D29X39",null,null,null,24,"Manufacture of basic metals",null,":",null,":",null,":",null,":",null,":",null,":",null,":",null,":",null,":",null,":",null,":",null,":"]
["S11_S12","C25-C30","EPS_D29X39",null,null,null,"25-30","Manufacture of fabricated metal products, including machinery and equipment",null,":",null,":",null,":",null,":",null,":",null,":",null,":",null,":",null,":",null,":",null,":",null,":"]
["S11_S12","C13-C16_C18_C31-C33","EPS_D29X39",null,null,null,"13-16, 18, 31-33","Other manufacturing activities",null,":",null,":",null,":",null,":",null,":",null,":",null,":",null,":",null,":",null,":",null,":",null,":"]
["S11_S12","C10-C12","EPS_P51C",null,"( P51C.3bA ) Consumption of fixed capital",null,"10-12'","Manufacture of food, beverages and tobacco products",null,":",null,":",null,":",null,":",null,":",null,":",null,":",null,":",null,":",null,":",null,":",null,":"]
["S11_S12","C17","EPS_P51C",null,null,null,17,"Manufacture of paper and paper products",null,":",null,":",null,":",null,":",null,":",null,":",null,":",null,":",null,":",null,":",null,":",null,":"]
["S11_S12","C19_C20","EPS_P51C",null,null,null,"19-20","Manufacture of coke, chemicals and refined petroleum and chemical products",null,":",null,":",null,":",null,":",null,":",null,":",null,":",null,":",null,":",null,":",null,":",null,{"$f":"IF(COUNT(J72,N72,P72,R72,T72,V72,AD72)=7,SUM(J72,N72,P72,R72,T72,V72,AD72),\":\")","v":":"}]
["S11_S12","C21-C23","EPS_P51C",null,null,null,"21-23","Manufacture of pharmaceuticals, rubber, plastic and other non-metallic products",null,":",null,":",null,":",null,":",null,":",null,":",null,":",null,":",null,":",null,":",null,":",null,":"]
["S11_S12","C24","EPS_P51C",null,null,null,24,"Manufacture of basic metals",null,":",null,":",null,":",null,":",null,":",null,":",null,":",null,":",null,":",null,":",null,":",null,":"]
["S11_S12","C25-C30","EPS_P51C",null,null,null,"25-30","Manufacture of fabricated metal products, including machinery and equipment",null,":",null,":",null,":",null,":",null,":",null,":",null,":",null,":",null,":",null,":",null,":",null,":"]
["S11_S12","C13-C16_C18_C31-C33","EPS_P51C",null,null,null,"13-16, 18, 31-33","Other manufacturing activities",null,":",null,":",null,":",null,":",null,":",null,":",null,":",null,":",null,":",null,":",null,":",null,":"]
["S11_S12","C10-C12","EPS_P1_ANCESA",null,"( P1_ANC_ESA.3bA ) Ancillary EP output (ESA - compatible valuation) ((P2_NEPS.3bA) + (D1.3bA) +(P51C.3bA) + (D29-D39.3bA))",null,"10-12'","Manufacture of food, beverages and tobacco products",null,":",null,":",null,":",null,":",null,":",null,":",null,":",null,":",null,":",null,":",null,":",null,":"]
["S11_S12","C17","EPS_P1_ANCESA",null,null,null,17,"Manufacture of paper and paper products",null,":",null,":",null,":",null,":",null,":",null,":",null,":",null,":",null,":",null,":",null,":",null,":"]
["S11_S12","C19_C20","EPS_P1_ANCESA",null,null,null,"19-20","Manufacture of coke, chemicals and refined petroleum and chemical products",null,":",null,":",null,":",null,":",null,":",null,":",null,":",null,":",null,":",null,":",null,":",null,":"]
["S11_S12","C21-C23","EPS_P1_ANCESA",null,null,null,"21-23","Manufacture of pharmaceuticals, rubber, plastic and other non-metallic products",null,":",null,":",null,":",null,":",null,":",null,":",null,":",null,":",null,":",null,":",null,":",null,":"]
["S11_S12","C24","EPS_P1_ANCESA",null,null,null,24,"Manufacture of basic metals",null,":",null,":",null,":",null,":",null,":",null,":",null,":",null,":",null,":",null,":",null,":",null,":"]
["S11_S12","C25-C30","EPS_P1_ANCESA",null,null,null,"25-30","Manufacture of fabricated metal products, including machinery and equipment",null,":",null,":",null,":",null,":",null,":",null,":",null,":",null,":",null,":",null,":",null,":",null,":"]
["S11_S12","C13-C16_C18_C31-C33","EPS_P1_ANCESA",null,null,null,"13-16, 18, 31-33","Other manufacturing activities",null,":",null,":",null,":",null,":",null,":",null,":",null,":",null,":",null,":",null,":",null,":",null,":"]
["S11_S12","C10-C12","EPS_REC_BYPR",null,"( RNO.3bA ) Related non-EP output",null,"10-12'","Manufacture of food, beverages and tobacco products",null,":",null,":",null,":",null,":",null,":",null,":",null,":",null,":",null,":",null,":",null,":",null,":"]
["S11_S12","C17","EPS_REC_BYPR",null,null,null,17,"Manufacture of paper and paper products",null,":",null,":",null,":",null,":",null,":",null,":",null,":",null,":",null,":",null,":",null,":",null,":"]
["S11_S12","C19_C20","EPS_REC_BYPR",null,null,null,"19-20","Manufacture of coke, chemicals and refined petroleum and chemical products",null,":",null,":",null,":",null,":",null,":",null,":",null,":",null,":",null,":",null,":",null,":",null,":"]
["S11_S12","C21-C23","EPS_REC_BYPR",null,null,null,"21-23","Manufacture of pharmaceuticals, rubber, plastic and other non-metallic products",null,":",null,":",null,":",null,":",null,":",null,":",null,":",null,":",null,":",null,":",null,":",null,":"]
["S11_S12","C24","EPS_REC_BYPR",null,null,null,24,"Manufacture of basic metals",null,":",null,":",null,":",null,":",null,":",null,":",null,":",null,":",null,":",null,":",null,":",null,":"]
["S11_S12","C25-C30","EPS_REC_BYPR",null,null,null,"25-30","Manufacture of fabricated metal products, including machinery and equipment",null,":",null,":",null,":",null,":",null,":",null,":",null,":",null,":",null,":",null,":",null,":",null,":"]
["S11_S12","C13-C16_C18_C31-C33","EPS_REC_BYPR",null,null,null,"13-16, 18, 31-33","Other manufacturing activities",null,":",null,":",null,":",null,":",null,":",null,":",null,":",null,":",null,":",null,":",null,":",null,":"]
["S11_S12","C10-C12","TOT_P2_EPS","Transactions as users of EP services (ancillary production of EP services and other production)","( P2_EPS_EXT.3bA ) Total intermediate consumption of EP services (for production of EP services and for other production)",null,"10-12'","Manufacture of food, beverages and tobacco products",null,":",null,":",null,":",null,":",null,":",null,":",null,":",null,":",null,":",null,":",null,":",null,":"]
["S11_S12","C17","TOT_P2_EPS",null,"(P2_EPS_EXT.3x: please consider the explanatory notes - click here)",null,17,"Manufacture of paper and paper products",null,":",null,":",null,":",null,":",null,":",null,":",null,":",null,":",null,":",null,":",null,":",null,":"]
["S11_S12","C19_C20","TOT_P2_EPS",null,null,null,"19-20","Manufacture of coke, chemicals and refined petroleum and chemical products",null,":",null,":",null,":",null,":",null,":",null,":",null,":",null,":",null,":",null,":",null,":",null,":"]
["S11_S12","C21-C23","TOT_P2_EPS",null,null,null,"21-23","Manufacture of pharmaceuticals, rubber, plastic and other non-metallic products",null,":",null,":",null,":",null,":",null,":",null,":",null,":",null,":",null,":",null,":",null,":",null,":"]
["S11_S12","C24","TOT_P2_EPS",null,null,null,24,"Manufacture of basic metals",null,":",null,":",null,":",null,":",null,":",null,":",null,":",null,":",null,":",null,":",null,":",null,":"]
["S11_S12","C25-C30","TOT_P2_EPS",null,null,null,"25-30","Manufacture of fabricated metal products, including machinery and equipment",null,":",null,":",null,":",null,":",null,":",null,":",null,":",null,":",null,":",null,":",null,":",null,":"]
["S11_S12","C13-C16_C18_C31-C33","TOT_P2_EPS",null,null,null,"13-16, 18, 31-33","Other manufacturing activities",null,":",null,":",null,":",null,":",null,":",null,":",null,":",null,":",null,":",null,":",null,":",null,":"]
["S11_S12","C10-C12","EPS_EMP","Transactions of producers of ancillary EP services","( EMP.3bA ) Employment (full time equivalent)",null,"10-12'","Manufacture of food, beverages and tobacco products",null,":",null,":",null,":",null,":",null,":",null,":",null,":",null,":",null,":",null,":",null,":",null,":"]
["S11_S12","C17","EPS_EMP",null,null,null,17,"Manufacture of paper and paper products",null,":",null,":",null,":",null,":",null,":",null,":",null,":",null,":",null,":",null,":",null,":",null,":"]
["S11_S12","C19_C20","EPS_EMP",null,null,null,"19-20","Manufacture of coke, chemicals and refined petroleum and chemical products",null,":",null,":",null,":",null,":",null,":",null,":",null,":",null,":",null,":",null,":",null,":",null,":"]
["S11_S12","C21-C23","EPS_EMP",null,null,null,"21-23","Manufacture of pharmaceuticals, rubber, plastic and other non-metallic products",null,":",null,":",null,":",null,":",null,":",null,":",null,":",null,":",null,":",null,":",null,":",null,":"]
["S11_S12","C24","EPS_EMP",null,null,null,24,"Manufacture of basic metals",null,":",null,":",null,":",null,":",null,":",null,":",null,":",null,":",null,":",null,":",null,":",null,":"]
["S11_S12","C25-C30","EPS_EMP",null,null,null,"25-30","Manufacture of fabricated metal products, including machinery and equipment",null,":",null,":",null,":",null,":",null,":",null,":",null,":",null,":",null,":",null,":",null,":",null,":"]
["S11_S12","C13-C16_C18_C31-C33","EPS_EMP",null,null,null,"13-16, 18, 31-33","Other manufacturing activities",null,":",null,":",null,":",null,":",null,":",null,":",null,":",null,":",null,":",null,":",null,":",null,{"$f":"IF(COUNT(J104,N104,P104,R104,T104,V104,AD104)=7,SUM(J104,N104,P104,R104,T104,V104,AD104),\":\")","v":":"}]

{"sheet":"3b_Add_2027","index":29,"n_rows":104,"n_cols":32,"rows_kept":104,"cut":false,"hidden":true,"merged":[[12,7,12,8],[13,4,13,5],[13,7,13,8],[14,7,14,8],[15,7,15,8],[16,7,16,8],[0,4,0,8],[0,9,0,16],[1,4,1,8],[1,9,1,32],[2,9,2,32],[3,9,4,10],[3,11,4,12],[3,13,4,14],[3,15,4,16],[3,17,4,18],[3,31,4,32],[4,4,4,5],[3,21,4,22],[3,23,4,24],[3,25,4,26],[3,27,4,28],[3,29,4,30],[3,19,4,20],[22,7,22,8],[23,7,23,8],[24,7,24,8],[25,7,25,8],[26,7,26,8],[28,7,28,8],[27,4,27,5],[27,7,27,8],[17,7,17,8],[18,7,18,8],[19,7,19,8],[20,4,20,5],[20,7,20,8],[21,7,21,8],[34,4,34,5],[34,7,34,8],[35,4,35,5],[35,7,35,8],[36,7,36,8],[37,7,37,8],[29,7,29,8],[30,7,30,8],[31,7,31,8],[32,7,32,8],[33,7,33,8],[43,7,43,8],[44,7,44,8],[45,7,45,8],[46,7,46,8],[47,7,47,8],[48,4,48,5],[48,7,48,8],[38,7,38,8],[39,7,39,8],[40,7,40,8],[41,4,41,5],[41,7,41,8],[42,7,42,8],[55,4,55,5],[55,7,55,8],[56,7,56,8],[57,7,57,8],[58,7,58,8],[59,7,59,8],[49,7,49,8],[50,7,50,8],[51,7,51,8],[52,7,52,8],[53,7,53,8],[54,7,54,8],[65,7,65,8],[66,7,66,8],[67,7,67,8],[68,7,68,8],[69,4,69,5],[69,7,69,8],[60,7,60,8],[61,7,61,8],[62,4,62,5],[62,7,62,8],[63,7,63,8],[64,7,64,8],[76,4,76,5],[76,7,76,8],[77,7,77,8],[78,7,78,8],[79,7,79,8],[80,7,80,8],[70,7,70,8],[71,7,71,8],[72,7,72,8],[73,7,73,8],[74,7,74,8],[75,7,75,8],[86,7,86,8],[87,7,87,8],[88,7,88,8],[89,7,89,8],[90,3,96,3],[90,4,90,5],[90,7,90,8],[91,4,91,5],[91,7,91,8],[92,7,92,8],[6,3,89,3],[6,4,6,5],[6,7,6,8],[7,7,7,8],[8,7,8,8],[9,7,9,8],[10,7,10,8],[11,7,11,8],[81,7,81,8],[82,7,82,8],[83,4,83,5],[83,7,83,8],[84,7,84,8],[85,7,85,8],[101,7,101,8],[102,7,102,8],[103,7,103,8],[93,7,93,8],[94,7,94,8],[95,7,95,8],[96,7,96,8],[97,3,103,3],[97,4,97,5],[97,7,97,8],[98,7,98,8],[99,7,99,8],[100,7,100,8]]}
[null,null,null,null,{"$f":"Cover!$B$21","v":"QUESTIONNAIRE ON ENVIRONMENTAL PROTECTION EXPENDITURE ACCOUNTS"},null,null,null,null,"Table 3b Add.: Detailed Manufacturing Industries"]
[null,null,null,null,{"$f":"E1","v":"QUESTIONNAIRE ON ENVIRONMENTAL PROTECTION EXPENDITURE ACCOUNTS"},null,null,null,null,{"$f":"J1 & \" - \" & I5","v":"Table 3b Add.: Detailed Manufacturing Industries - 2027"}]
[null,null,null,null,null,null,null,null,null,"Mandatory and voluntary variables and environmental domains - please fill in as much as possible"]
[null,null,null,null,"Country/Unit",{"$f":"IFERROR(Cover!C16,\"\")","v":""},{"$f":"\"\"&Cover!B16","v":""},null,{"$f":"Cover!B17","v":"Million units of national currency"},"CEPA 1",null,"of which CEPA 1.1.2 and 1.2.2 Climate change",null,"CEPA 2",null,"CEPA 3",null,"CEPA 4",null,"CEPA 5",null,"CEPA 6",null,"CEPA 7",null,"CEPA 8",null,"CEPA 9",null,"Sum of CEPA 7+8+9",null,"TOTAL"]
[null,null,null,null,"Expenditure",null,null,"YEAR",2027,null,null,null,null,null,null,null,null,null,null,null,null,null,null,null,null,null,null,null,null,null,null,"Landscape"]
[null,null,null,null,null,null,null,null,null,"CEPA1",null,"CEPA112_122",null,"CEPA2",null,"CEPA3",null,"CEPA4",null,"CEPA5",null,"CEPA6",null,"CEPA7",null,"CEPA8",null,"CEPA9",null,"CEPA7-9",null,"TOT_CEPA"]
["S11_S12","C10-C12","EPS_P51G_NP","Transactions of producers of ancillary EP services","( P51G_NP.3bA ) Gross fixed capital formation and acquisition less disposals of non-financial, non-produced assets",null,"10-12","Manufacture of food, beverages and tobacco products",null,":",null,":",null,":",null,":",null,":",null,":",null,":",null,":",null,":",null,":",null,":",null,{"$f":"IF(COUNT(J7,N7,P7,R7,T7,V7,AD7)=7,SUM(J7,N7,P7,R7,T7,V7,AD7),\":\")","v":":"}]
["S11_S12","C17","EPS_P51G_NP",null,null,null,17,"Manufacture of paper and paper products",null,":",null,":",null,":",null,":",null,":",null,":",null,":",null,":",null,":",null,":",null,":",null,{"$f":"IF(COUNT(J8,N8,P8,R8,T8,V8,AD8)=7,SUM(J8,N8,P8,R8,T8,V8,AD8),\":\")","v":":"}]
["S11_S12","C19_C20","EPS_P51G_NP",null,null,null,"19-20","Manufacture of coke, chemicals and refined petroleum and chemical products",null,":",null,":",null,":",null,":",null,":",null,":",null,":",null,":",null,":",null,":",null,":",null,":"]
["S11_S12","C21-C23","EPS_P51G_NP",null,null,null,"21-23","Manufacture of pharmaceuticals, rubber, plastic and other non-metallic products",null,":",null,":",null,":",null,":",null,":",null,":",null,":",null,":",null,":",null,":",null,":",null,":"]
["S11_S12","C24","EPS_P51G_NP",null,null,null,24,"Manufacture of basic metals",null,":",null,":",null,":",null,":",null,":",null,":",null,":",null,":",null,":",null,":",null,":",null,":"]
["S11_S12","C25-C30","EPS_P51G_NP",null,null,null,"25-30","Manufacture of fabricated metal products, including machinery and equipment",null,":",null,":",null,":",null,":",null,":",null,":",null,":",null,":",null,":",null,":",null,":",null,":"]
["S11_S12","C13-C16_C18_C31-C33","EPS_P51G_NP",null,null,null,"13-16, 18, 31-33","Other manufacturing activities",null,":",null,":",null,":",null,":",null,":",null,":",null,":",null,":",null,":",null,":",null,":",null,":"]
["S11_S12","C10-C12","EPS_INV_PT",null,"( INV_EOP.3bA ) GFCF on specific EP fixed assets (end-of-pipe technologies)",null,"10-12'","Manufacture of food, beverages and tobacco products",null,":",null,":",null,":",null,":",null,":",null,":",null,":",null,":",null,":",null,":",null,":",null,":"]
["S11_S12","C17","EPS_INV_PT",null,null,null,17,"Manufacture of paper and paper products",null,":",null,":",null,":",null,":",null,":",null,":",null,":",null,":",null,":",null,":",null,":",null,":"]
["S11_S12","C19_C20","EPS_INV_PT",null,null,null,"19-20","Manufacture of coke, chemicals and refined petroleum and chemical products",null,":",null,":",null,":",null,":",null,":",null,":",null,":",null,":",null,":",null,":",null,":",null,":"]
["S11_S12","C21-C23","EPS_INV_PT",null,null,null,"21-23","Manufacture of pharmaceuticals, rubber, plastic and other non-metallic products",null,":",null,":",null,":",null,":",null,":",null,":",null,":",null,":",null,":",null,":",null,":",null,":"]
["S11_S12","C24","EPS_INV_PT",null,null,null,24,"Manufacture of basic metals",null,":",null,":",null,":",null,":",null,":",null,":",null,":",null,":",null,":",null,":",null,":",null,":"]
["S11_S12","C25-C30","EPS_INV_PT",null,null,null,"25-30","Manufacture of fabricated metal products, including machinery and equipment",null,":",null,":",null,":",null,":",null,":",null,":",null,":",null,":",null,":",null,":",null,":",null,":"]
["S11_S12","C13-C16_C18_C31-C33","EPS_INV_PT",null,null,null,"13-16, 18, 31-33","Other manufacturing activities",null,":",null,":",null,":",null,":",null,":",null,":",null,":",null,":",null,":",null,":",null,":",null,":"]
["S11_S12","C10-C12","EPS_INV_PP",null,"( INV_IT.3bA ) GFCF on cleaner EP fixed assets (integrated technologies)",null,"10-12'","Manufacture of food, beverages and tobacco products",null,":",null,":",null,":",null,":",null,":",null,":",null,":",null,":",null,":",null,":",null,":",null,":"]
["S11_S12","C17","EPS_INV_PP",null,null,null,17,"Manufacture of paper and paper products",null,":",null,":",null,":",null,":",null,":",null,":",null,":",null,":",null,":",null,":",null,":",null,":"]
["S11_S12","C19_C20","EPS_INV_PP",null,null,null,"19-20","Manufacture of coke, chemicals and refined petroleum and chemical products",null,":",null,":",null,":",null,":",null,":",null,":",null,":",null,":",null,":",null,":",null,":",null,":"]
["S11_S12","C21-C23","EPS_INV_PP",null,null,null,"21-23","Manufacture of pharmaceuticals, rubber, plastic and other non-metallic products",null,":",null,":",null,":",null,":",null,":",null,":",null,":",null,":",null,":",null,":",null,":",null,":"]
["S11_S12","C24","EPS_INV_PP",null,null,null,24,"Manufacture of basic metals",null,":",null,":",null,":",null,":",null,":",null,":",null,":",null,":",null,":",null,":",null,":",null,":"]
["S11_S12","C25-C30","EPS_INV_PP",null,null,null,"25-30","Manufacture of fabricated metal products, including machinery and equipment",null,":",null,":",null,":",null,":",null,":",null,":",null,":",null,":",null,":",null,":",null,":",null,":"]
["S11_S12","C13-C16_C18_C31-C33","EPS_INV_PP",null,null,null,"13-16, 18, 31-33","Other manufacturing activities",null,":",null,":",null,":",null,":",null,":",null,":",null,":",null,":",null,":",null,":",null,":",null,":"]
["S11_S12","C10-C12","EPS_P2",null,"( P2.3bA ) Total intermediate consumption",null,"10-12'","Manufacture of food, beverages and tobacco products",null,":",null,":",null,":",null,":",null,":",null,":",null,":",null,":",null,":",null,":",null,":",null,":"]
["S11_S12","C17","EPS_P2",null,null,null,17,"Manufacture of paper and paper products",null,":",null,":",null,":",null,":",null,":",null,":",null,":",null,":",null,":",null,":",null,":",null,":"]
["S11_S12","C19_C20","EPS_P2",null,null,null,"19-20","Manufacture of coke, chemicals and refined petroleum and chemical products",null,":",null,":",null,":",null,":",null,":",null,":",null,":",null,":",null,":",null,":",null,":",null,":"]
["S11_S12","C21-C23","EPS_P2",null,null,null,"21-23","Manufacture of pharmaceuticals, rubber, plastic and other non-metallic products",null,":",null,":",null,":",null,":",null,":",null,":",null,":",null,":",null,":",null,":",null,":",null,":"]
["S11_S12","C24","EPS_P2",null,null,null,24,"Manufacture of basic metals",null,":",null,":",null,":",null,":",null,":",null,":",null,":",null,":",null,":",null,":",null,":",null,":"]
["S11_S12","C25-C30","EPS_P2",null,null,null,"25-30","Manufacture of fabricated metal products, including machinery and equipment",null,":",null,":",null,":",null,":",null,":",null,":",null,":",null,":",null,":",null,":",null,":",null,":"]
["S11_S12","C13-C16_C18_C31-C33","EPS_P2",null,null,null,"13-16, 18, 31-33","Other manufacturing activities",null,":",null,":",null,":",null,":",null,":",null,":",null,":",null,":",null,":",null,":",null,":",null,":"]
["S11_S12","C10-C12","EPS_P2_EPS",null,"( P2_EPS.3bA )  Intermediate consumption of EP services for ancillary production of EP services ",null,"10-12'","Manufacture of food, beverages and tobacco products",null,":",null,":",null,":",null,":",null,":",null,":",null,":",null,":",null,":",null,":",null,":",null,":"]
["S11_S12","C17","EPS_P2_EPS",null,"(P2_EPS.3x: please consider the explanatory notes - click here)",null,17,"Manufacture of paper and paper products",null,":",null,":",null,":",null,":",null,":",null,":",null,":",null,":",null,":",null,":",null,":",null,":"]
["S11_S12","C19_C20","EPS_P2_EPS",null,null,null,"19-20","Manufacture of coke, chemicals and refined petroleum and chemical products",null,":",null,":",null,":",null,":",null,":",null,":",null,":",null,":",null,":",null,":",null,":",null,":"]
["S11_S12","C21-C23","EPS_P2_EPS",null,null,null,"21-23","Manufacture of pharmaceuticals, rubber, plastic and other non-metallic products",null,":",null,":",null,":",null,":",null,":",null,":",null,":",null,":",null,":",null,":",null,":",null,":"]
["S11_S12","C24","EPS_P2_EPS",null,null,null,24,"Manufacture of basic metals",null,":",null,":",null,":",null,":",null,":",null,":",null,":",null,":",null,":",null,":",null,":",null,":"]
["S11_S12","C25-C30","EPS_P2_EPS",null,null,null,"25-30","Manufacture of fabricated metal products, including machinery and equipment",null,":",null,":",null,":",null,":",null,":",null,":",null,":",null,":",null,":",null,":",null,":",null,":"]
["S11_S12","C13-C16_C18_C31-C33","EPS_P2_EPS",null,null,null,"13-16, 18, 31-33","Other manufacturing activities",null,":",null,":",null,":",null,":",null,":",null,":",null,":",null,":",null,":",null,":",null,":",null,":"]
["S11_S12","C10-C12","EPS_P2_NEPS",null,"( P2_NEPS.3bA ) Intermediate consumption (excluding EP services)",null,"10-12'","Manufacture of food, beverages and tobacco products",null,":",null,":",null,":",null,":",null,":",null,":",null,":",null,":",null,":",null,":",null,":",null,":"]
["S11_S12","C17","EPS_P2_NEPS",null,null,null,17,"Manufacture of paper and paper products",null,":",null,":",null,":",null,":",null,":",null,":",null,":",null,":",null,":",null,":",null,":",null,":"]
["S11_S12","C19_C20","EPS_P2_NEPS",null,null,null,"19-20","Manufacture of coke, chemicals and refined petroleum and chemical products",null,":",null,":",null,":",null,":",null,":",null,":",null,":",null,":",null,":",null,":",null,":",null,":"]
["S11_S12","C21-C23","EPS_P2_NEPS",null,null,null,"21-23","Manufacture of pharmaceuticals, rubber, plastic and other non-metallic products",null,":",null,":",null,":",null,":",null,":",null,":",null,":",null,":",null,":",null,":",null,":",null,":"]
["S11_S12","C24","EPS_P2_NEPS",null,null,null,24,"Manufacture of basic metals",null,":",null,":",null,":",null,":",null,":",null,":",null,":",null,":",null,":",null,":",null,":",null,":"]
["S11_S12","C25-C30","EPS_P2_NEPS",null,null,null,"25-30","Manufacture of fabricated metal products, including machinery and equipment",null,":",null,":",null,":",null,":",null,":",null,":",null,":",null,":",null,":",null,":",null,":",null,":"]
["S11_S12","C13-C16_C18_C31-C33","EPS_P2_NEPS",null,null,null,"13-16, 18, 31-33","Other manufacturing activities",null,":",null,":",null,":",null,":",null,":",null,":",null,":",null,":",null,":",null,":",null,":",null,":"]
["S11_S12","C10-C12","EPS_D1",null,"( D1.3bA ) Compensation of employees",null,"10-12'","Manufacture of food, beverages and tobacco products",null,":",null,":",null,":",null,":",null,":",null,":",null,":",null,":",null,":",null,":",null,":",null,":"]
["S11_S12","C17","EPS_D1",null,null,null,17,"Manufacture of paper and paper products",null,":",null,":",null,":",null,":",null,":",null,":",null,":",null,":",null,":",null,":",null,":",null,":"]
["S11_S12","C19_C20","EPS_D1",null,null,null,"19-20","Manufacture of coke, chemicals and refined petroleum and chemical products",null,":",null,":",null,":",null,":",null,":",null,":",null,":",null,":",null,":",null,":",null,":",null,":"]
["S11_S12","C21-C23","EPS_D1",null,null,null,"21-23","Manufacture of pharmaceuticals, rubber, plastic and other non-metallic products",null,":",null,":",null,":",null,":",null,":",null,":",null,":",null,":",null,":",null,":",null,":",null,":"]
["S11_S12","C24","EPS_D1",null,null,null,24,"Manufacture of basic metals",null,":",null,":",null,":",null,":",null,":",null,":",null,":",null,":",null,":",null,":",null,":",null,":"]
["S11_S12","C25-C30","EPS_D1",null,null,null,"25-30","Manufacture of fabricated metal products, including machinery and equipment",null,":",null,":",null,":",null,":",null,":",null,":",null,":",null,":",null,":",null,":",null,":",null,":"]
["S11_S12","C13-C16_C18_C31-C33","EPS_D1",null,null,null,"13-16, 18, 31-33","Other manufacturing activities",null,":",null,":",null,":",null,":",null,":",null,":",null,":",null,":",null,":",null,":",null,":",null,":"]
["S11_S12","C10-C12","EPS_P1_ANC",null,"( P1_ANC.3bA ) Ancillary EP output (simplified valuation legally acceptable) ((P2_NEPS.3bA) + (D1.3bA))",null,"10-12'","Manufacture of food, beverages and tobacco products",null,":",null,":",null,":",null,":",null,":",null,":",null,":",null,":",null,":",null,":",null,":",null,":"]
["S11_S12","C17","EPS_P1_ANC",null,null,null,17,"Manufacture of paper and paper products",null,":",null,":",null,":",null,":",null,":",null,":",null,":",null,":",null,":",null,":",null,":",null,":"]
["S11_S12","C19_C20","EPS_P1_ANC",null,null,null,"19-20","Manufacture of coke, chemicals and refined petroleum and chemical products",null,":",null,":",null,":",null,":",null,":",null,":",null,":",null,":",null,":",null,":",null,":",null,":"]
["S11_S12","C21-C23","EPS_P1_ANC",null,null,null,"21-23","Manufacture of pharmaceuticals, rubber, plastic and other non-metallic products",null,":",null,":",null,":",null,":",null,":",null,":",null,":",null,":",null,":",null,":",null,":",null,":"]
["S11_S12","C24","EPS_P1_ANC",null,null,null,24,"Manufacture of basic metals",null,":",null,":",null,":",null,":",null,":",null,":",null,":",null,":",null,":",null,":",null,":",null,":"]
["S11_S12","C25-C30","EPS_P1_ANC",null,null,null,"25-30","Manufacture of fabricated metal products, including machinery and equipment",null,":",null,":",null,":",null,":",null,":",null,":",null,":",null,":",null,":",null,":",null,":",null,":"]
["S11_S12","C13-C16_C18_C31-C33","EPS_P1_ANC",null,null,null,"13-16, 18, 31-33","Other manufacturing activities",null,":",null,":",null,":",null,":",null,":",null,":",null,":",null,":",null,":",null,":",null,":",null,":"]
["S11_S12","C10-C12","EPS_D29X39",null,"( D29-D39.3bA ) Other taxes less subsidies on production",null,"10-12'","Manufacture of food, beverages and tobacco products",null,":",null,":",null,":",null,":",null,":",null,":",null,":",null,":",null,":",null,":",null,":",null,":"]
["S11_S12","C17","EPS_D29X39",null,null,null,17,"Manufacture of paper and paper products",null,":",null,":",null,":",null,":",null,":",null,":",null,":",null,":",null,":",null,":",null,":",null,":"]
["S11_S12","C19_C20","EPS_D29X39",null,null,null,"19-20","Manufacture of coke, chemicals and refined petroleum and chemical products",null,":",null,":",null,":",null,":",null,":",null,":",null,":",null,":",null,":",null,":",null,":",null,":"]
["S11_S12","C21-C23","EPS_D29X39",null,null,null,"21-23","Manufacture of pharmaceuticals, rubber, plastic and other non-metallic products",null,":",null,":",null,":",null,":",null,":",null,":",null,":",null,":",null,":",null,":",null,":",null,":"]
["S11_S12","C24","EPS_D29X39",null,null,null,24,"Manufacture of basic metals",null,":",null,":",null,":",null,":",null,":",null,":",null,":",null,":",null,":",null,":",null,":",null,":"]
["S11_S12","C25-C30","EPS_D29X39",null,null,null,"25-30","Manufacture of fabricated metal products, including machinery and equipment",null,":",null,":",null,":",null,":",null,":",null,":",null,":",null,":",null,":",null,":",null,":",null,":"]
["S11_S12","C13-C16_C18_C31-C33","EPS_D29X39",null,null,null,"13-16, 18, 31-33","Other manufacturing activities",null,":",null,":",null,":",null,":",null,":",null,":",null,":",null,":",null,":",null,":",null,":",null,":"]
["S11_S12","C10-C12","EPS_P51C",null,"( P51C.3bA ) Consumption of fixed capital",null,"10-12'","Manufacture of food, beverages and tobacco products",null,":",null,":",null,":",null,":",null,":",null,":",null,":",null,":",null,":",null,":",null,":",null,":"]
["S11_S12","C17","EPS_P51C",null,null,null,17,"Manufacture of paper and paper products",null,":",null,":",null,":",null,":",null,":",null,":",null,":",null,":",null,":",null,":",null,":",null,":"]
["S11_S12","C19_C20","EPS_P51C",null,null,null,"19-20","Manufacture of coke, chemicals and refined petroleum and chemical products",null,":",null,":",null,":",null,":",null,":",null,":",null,":",null,":",null,":",null,":",null,":",null,{"$f":"IF(COUNT(J72,N72,P72,R72,T72,V72,AD72)=7,SUM(J72,N72,P72,R72,T72,V72,AD72),\":\")","v":":"}]
["S11_S12","C21-C23","EPS_P51C",null,null,null,"21-23","Manufacture of pharmaceuticals, rubber, plastic and other non-metallic products",null,":",null,":",null,":",null,":",null,":",null,":",null,":",null,":",null,":",null,":",null,":",null,":"]
["S11_S12","C24","EPS_P51C",null,null,null,24,"Manufacture of basic metals",null,":",null,":",null,":",null,":",null,":",null,":",null,":",null,":",null,":",null,":",null,":",null,":"]
["S11_S12","C25-C30","EPS_P51C",null,null,null,"25-30","Manufacture of fabricated metal products, including machinery and equipment",null,":",null,":",null,":",null,":",null,":",null,":",null,":",null,":",null,":",null,":",null,":",null,":"]
["S11_S12","C13-C16_C18_C31-C33","EPS_P51C",null,null,null,"13-16, 18, 31-33","Other manufacturing activities",null,":",null,":",null,":",null,":",null,":",null,":",null,":",null,":",null,":",null,":",null,":",null,":"]
["S11_S12","C10-C12","EPS_P1_ANCESA",null,"( P1_ANC_ESA.3bA ) Ancillary EP output (ESA - compatible valuation) ((P2_NEPS.3bA) + (D1.3bA) +(P51C.3bA) + (D29-D39.3bA))",null,"10-12'","Manufacture of food, beverages and tobacco products",null,":",null,":",null,":",null,":",null,":",null,":",null,":",null,":",null,":",null,":",null,":",null,":"]
["S11_S12","C17","EPS_P1_ANCESA",null,null,null,17,"Manufacture of paper and paper products",null,":",null,":",null,":",null,":",null,":",null,":",null,":",null,":",null,":",null,":",null,":",null,":"]
["S11_S12","C19_C20","EPS_P1_ANCESA",null,null,null,"19-20","Manufacture of coke, chemicals and refined petroleum and chemical products",null,":",null,":",null,":",null,":",null,":",null,":",null,":",null,":",null,":",null,":",null,":",null,":"]
["S11_S12","C21-C23","EPS_P1_ANCESA",null,null,null,"21-23","Manufacture of pharmaceuticals, rubber, plastic and other non-metallic products",null,":",null,":",null,":",null,":",null,":",null,":",null,":",null,":",null,":",null,":",null,":",null,":"]
["S11_S12","C24","EPS_P1_ANCESA",null,null,null,24,"Manufacture of basic metals",null,":",null,":",null,":",null,":",null,":",null,":",null,":",null,":",null,":",null,":",null,":",null,":"]
["S11_S12","C25-C30","EPS_P1_ANCESA",null,null,null,"25-30","Manufacture of fabricated metal products, including machinery and equipment",null,":",null,":",null,":",null,":",null,":",null,":",null,":",null,":",null,":",null,":",null,":",null,":"]
["S11_S12","C13-C16_C18_C31-C33","EPS_P1_ANCESA",null,null,null,"13-16, 18, 31-33","Other manufacturing activities",null,":",null,":",null,":",null,":",null,":",null,":",null,":",null,":",null,":",null,":",null,":",null,":"]
["S11_S12","C10-C12","EPS_REC_BYPR",null,"( RNO.3bA ) Related non-EP output",null,"10-12'","Manufacture of food, beverages and tobacco products",null,":",null,":",null,":",null,":",null,":",null,":",null,":",null,":",null,":",null,":",null,":",null,":"]
["S11_S12","C17","EPS_REC_BYPR",null,null,null,17,"Manufacture of paper and paper products",null,":",null,":",null,":",null,":",null,":",null,":",null,":",null,":",null,":",null,":",null,":",null,":"]
["S11_S12","C19_C20","EPS_REC_BYPR",null,null,null,"19-20","Manufacture of coke, chemicals and refined petroleum and chemical products",null,":",null,":",null,":",null,":",null,":",null,":",null,":",null,":",null,":",null,":",null,":",null,":"]
["S11_S12","C21-C23","EPS_REC_BYPR",null,null,null,"21-23","Manufacture of pharmaceuticals, rubber, plastic and other non-metallic products",null,":",null,":",null,":",null,":",null,":",null,":",null,":",null,":",null,":",null,":",null,":",null,":"]
["S11_S12","C24","EPS_REC_BYPR",null,null,null,24,"Manufacture of basic metals",null,":",null,":",null,":",null,":",null,":",null,":",null,":",null,":",null,":",null,":",null,":",null,":"]
["S11_S12","C25-C30","EPS_REC_BYPR",null,null,null,"25-30","Manufacture of fabricated metal products, including machinery and equipment",null,":",null,":",null,":",null,":",null,":",null,":",null,":",null,":",null,":",null,":",null,":",null,":"]
["S11_S12","C13-C16_C18_C31-C33","EPS_REC_BYPR",null,null,null,"13-16, 18, 31-33","Other manufacturing activities",null,":",null,":",null,":",null,":",null,":",null,":",null,":",null,":",null,":",null,":",null,":",null,":"]
["S11_S12","C10-C12","TOT_P2_EPS","Transactions as users of EP services (ancillary production of EP services and other production)","( P2_EPS_EXT.3bA ) Total intermediate consumption of EP services (for production of EP services and for other production)",null,"10-12'","Manufacture of food, beverages and tobacco products",null,":",null,":",null,":",null,":",null,":",null,":",null,":",null,":",null,":",null,":",null,":",null,":"]
["S11_S12","C17","TOT_P2_EPS",null,"(P2_EPS_EXT.3x: please consider the explanatory notes - click here)",null,17,"Manufacture of paper and paper products",null,":",null,":",null,":",null,":",null,":",null,":",null,":",null,":",null,":",null,":",null,":",null,":"]
["S11_S12","C19_C20","TOT_P2_EPS",null,null,null,"19-20","Manufacture of coke, chemicals and refined petroleum and chemical products",null,":",null,":",null,":",null,":",null,":",null,":",null,":",null,":",null,":",null,":",null,":",null,":"]
["S11_S12","C21-C23","TOT_P2_EPS",null,null,null,"21-23","Manufacture of pharmaceuticals, rubber, plastic and other non-metallic products",null,":",null,":",null,":",null,":",null,":",null,":",null,":",null,":",null,":",null,":",null,":",null,":"]
["S11_S12","C24","TOT_P2_EPS",null,null,null,24,"Manufacture of basic metals",null,":",null,":",null,":",null,":",null,":",null,":",null,":",null,":",null,":",null,":",null,":",null,":"]
["S11_S12","C25-C30","TOT_P2_EPS",null,null,null,"25-30","Manufacture of fabricated metal products, including machinery and equipment",null,":",null,":",null,":",null,":",null,":",null,":",null,":",null,":",null,":",null,":",null,":",null,":"]
["S11_S12","C13-C16_C18_C31-C33","TOT_P2_EPS",null,null,null,"13-16, 18, 31-33","Other manufacturing activities",null,":",null,":",null,":",null,":",null,":",null,":",null,":",null,":",null,":",null,":",null,":",null,":"]
["S11_S12","C10-C12","EPS_EMP","Transactions of producers of ancillary EP services","( EMP.3bA ) Employment (full time equivalent)",null,"10-12'","Manufacture of food, beverages and tobacco products",null,":",null,":",null,":",null,":",null,":",null,":",null,":",null,":",null,":",null,":",null,":",null,":"]
["S11_S12","C17","EPS_EMP",null,null,null,17,"Manufacture of paper and paper products",null,":",null,":",null,":",null,":",null,":",null,":",null,":",null,":",null,":",null,":",null,":",null,":"]
["S11_S12","C19_C20","EPS_EMP",null,null,null,"19-20","Manufacture of coke, chemicals and refined petroleum and chemical products",null,":",null,":",null,":",null,":",null,":",null,":",null,":",null,":",null,":",null,":",null,":",null,":"]
["S11_S12","C21-C23","EPS_EMP",null,null,null,"21-23","Manufacture of pharmaceuticals, rubber, plastic and other non-metallic products",null,":",null,":",null,":",null,":",null,":",null,":",null,":",null,":",null,":",null,":",null,":",null,":"]
["S11_S12","C24","EPS_EMP",null,null,null,24,"Manufacture of basic metals",null,":",null,":",null,":",null,":",null,":",null,":",null,":",null,":",null,":",null,":",null,":",null,":"]
["S11_S12","C25-C30","EPS_EMP",null,null,null,"25-30","Manufacture of fabricated metal products, including machinery and equipment",null,":",null,":",null,":",null,":",null,":",null,":",null,":",null,":",null,":",null,":",null,":",null,":"]
["S11_S12","C13-C16_C18_C31-C33","EPS_EMP",null,null,null,"13-16, 18, 31-33","Other manufacturing activities",null,":",null,":",null,":",null,":",null,":",null,":",null,":",null,":",null,":",null,":",null,":",null,{"$f":"IF(COUNT(J104,N104,P104,R104,T104,V104,AD104)=7,SUM(J104,N104,P104,R104,T104,V104,AD104),\":\")","v":":"}]

{"sheet":"3b_Add_2028","index":30,"n_rows":104,"n_cols":32,"rows_kept":104,"cut":false,"hidden":true,"merged":[[12,7,12,8],[13,4,13,5],[13,7,13,8],[14,7,14,8],[15,7,15,8],[16,7,16,8],[0,4,0,8],[0,9,0,16],[1,4,1,8],[1,9,1,32],[2,9,2,32],[3,9,4,10],[3,11,4,12],[3,13,4,14],[3,15,4,16],[3,17,4,18],[3,31,4,32],[4,4,4,5],[3,21,4,22],[3,23,4,24],[3,25,4,26],[3,27,4,28],[3,29,4,30],[3,19,4,20],[22,7,22,8],[23,7,23,8],[24,7,24,8],[25,7,25,8],[26,7,26,8],[28,7,28,8],[27,4,27,5],[27,7,27,8],[17,7,17,8],[18,7,18,8],[19,7,19,8],[20,4,20,5],[20,7,20,8],[21,7,21,8],[34,4,34,5],[34,7,34,8],[35,4,35,5],[35,7,35,8],[36,7,36,8],[37,7,37,8],[29,7,29,8],[30,7,30,8],[31,7,31,8],[32,7,32,8],[33,7,33,8],[43,7,43,8],[44,7,44,8],[45,7,45,8],[46,7,46,8],[47,7,47,8],[48,4,48,5],[48,7,48,8],[38,7,38,8],[39,7,39,8],[40,7,40,8],[41,4,41,5],[41,7,41,8],[42,7,42,8],[55,4,55,5],[55,7,55,8],[56,7,56,8],[57,7,57,8],[58,7,58,8],[59,7,59,8],[49,7,49,8],[50,7,50,8],[51,7,51,8],[52,7,52,8],[53,7,53,8],[54,7,54,8],[65,7,65,8],[66,7,66,8],[67,7,67,8],[68,7,68,8],[69,4,69,5],[69,7,69,8],[60,7,60,8],[61,7,61,8],[62,4,62,5],[62,7,62,8],[63,7,63,8],[64,7,64,8],[76,4,76,5],[76,7,76,8],[77,7,77,8],[78,7,78,8],[79,7,79,8],[80,7,80,8],[70,7,70,8],[71,7,71,8],[72,7,72,8],[73,7,73,8],[74,7,74,8],[75,7,75,8],[86,7,86,8],[87,7,87,8],[88,7,88,8],[89,7,89,8],[90,3,96,3],[90,4,90,5],[90,7,90,8],[91,4,91,5],[91,7,91,8],[92,7,92,8],[6,3,89,3],[6,4,6,5],[6,7,6,8],[7,7,7,8],[8,7,8,8],[9,7,9,8],[10,7,10,8],[11,7,11,8],[81,7,81,8],[82,7,82,8],[83,4,83,5],[83,7,83,8],[84,7,84,8],[85,7,85,8],[101,7,101,8],[102,7,102,8],[103,7,103,8],[93,7,93,8],[94,7,94,8],[95,7,95,8],[96,7,96,8],[97,3,103,3],[97,4,97,5],[97,7,97,8],[98,7,98,8],[99,7,99,8],[100,7,100,8]]}
[null,null,null,null,{"$f":"Cover!$B$21","v":"QUESTIONNAIRE ON ENVIRONMENTAL PROTECTION EXPENDITURE ACCOUNTS"},null,null,null,null,"Table 3b Add.: Detailed Manufacturing Industries"]
[null,null,null,null,{"$f":"E1","v":"QUESTIONNAIRE ON ENVIRONMENTAL PROTECTION EXPENDITURE ACCOUNTS"},null,null,null,null,{"$f":"J1 & \" - \" & I5","v":"Table 3b Add.: Detailed Manufacturing Industries - 2028"}]
[null,null,null,null,null,null,null,null,null,"Mandatory and voluntary variables and environmental domains - please fill in as much as possible"]
[null,null,null,null,"Country/Unit",{"$f":"IFERROR(Cover!C16,\"\")","v":""},{"$f":"\"\"&Cover!B16","v":""},null,{"$f":"Cover!B17","v":"Million units of national currency"},"CEPA 1",null,"of which CEPA 1.1.2 and 1.2.2 Climate change",null,"CEPA 2",null,"CEPA 3",null,"CEPA 4",null,"CEPA 5",null,"CEPA 6",null,"CEPA 7",null,"CEPA 8",null,"CEPA 9",null,"Sum of CEPA 7+8+9",null,"TOTAL"]
[null,null,null,null,"Expenditure",null,null,"YEAR",2028,null,null,null,null,null,null,null,null,null,null,null,null,null,null,null,null,null,null,null,null,null,null,"Landscape"]
[null,null,null,null,null,null,null,null,null,"CEPA1",null,"CEPA112_122",null,"CEPA2",null,"CEPA3",null,"CEPA4",null,"CEPA5",null,"CEPA6",null,"CEPA7",null,"CEPA8",null,"CEPA9",null,"CEPA7-9",null,"TOT_CEPA"]
["S11_S12","C10-C12","EPS_P51G_NP","Transactions of producers of ancillary EP services","( P51G_NP.3bA ) Gross fixed capital formation and acquisition less disposals of non-financial, non-produced assets",null,"10-12","Manufacture of food, beverages and tobacco products",null,":",null,":",null,":",null,":",null,":",null,":",null,":",null,":",null,":",null,":",null,":",null,{"$f":"IF(COUNT(J7,N7,P7,R7,T7,V7,AD7)=7,SUM(J7,N7,P7,R7,T7,V7,AD7),\":\")","v":":"}]
["S11_S12","C17","EPS_P51G_NP",null,null,null,17,"Manufacture of paper and paper products",null,":",null,":",null,":",null,":",null,":",null,":",null,":",null,":",null,":",null,":",null,":",null,{"$f":"IF(COUNT(J8,N8,P8,R8,T8,V8,AD8)=7,SUM(J8,N8,P8,R8,T8,V8,AD8),\":\")","v":":"}]
["S11_S12","C19_C20","EPS_P51G_NP",null,null,null,"19-20","Manufacture of coke, chemicals and refined petroleum and chemical products",null,":",null,":",null,":",null,":",null,":",null,":",null,":",null,":",null,":",null,":",null,":",null,":"]
["S11_S12","C21-C23","EPS_P51G_NP",null,null,null,"21-23","Manufacture of pharmaceuticals, rubber, plastic and other non-metallic products",null,":",null,":",null,":",null,":",null,":",null,":",null,":",null,":",null,":",null,":",null,":",null,":"]
["S11_S12","C24","EPS_P51G_NP",null,null,null,24,"Manufacture of basic metals",null,":",null,":",null,":",null,":",null,":",null,":",null,":",null,":",null,":",null,":",null,":",null,":"]
["S11_S12","C25-C30","EPS_P51G_NP",null,null,null,"25-30","Manufacture of fabricated metal products, including machinery and equipment",null,":",null,":",null,":",null,":",null,":",null,":",null,":",null,":",null,":",null,":",null,":",null,":"]
["S11_S12","C13-C16_C18_C31-C33","EPS_P51G_NP",null,null,null,"13-16, 18, 31-33","Other manufacturing activities",null,":",null,":",null,":",null,":",null,":",null,":",null,":",null,":",null,":",null,":",null,":",null,":"]
["S11_S12","C10-C12","EPS_INV_PT",null,"( INV_EOP.3bA ) GFCF on specific EP fixed assets (end-of-pipe technologies)",null,"10-12'","Manufacture of food, beverages and tobacco products",null,":",null,":",null,":",null,":",null,":",null,":",null,":",null,":",null,":",null,":",null,":",null,":"]
["S11_S12","C17","EPS_INV_PT",null,null,null,17,"Manufacture of paper and paper products",null,":",null,":",null,":",null,":",null,":",null,":",null,":",null,":",null,":",null,":",null,":",null,":"]
["S11_S12","C19_C20","EPS_INV_PT",null,null,null,"19-20","Manufacture of coke, chemicals and refined petroleum and chemical products",null,":",null,":",null,":",null,":",null,":",null,":",null,":",null,":",null,":",null,":",null,":",null,":"]
["S11_S12","C21-C23","EPS_INV_PT",null,null,null,"21-23","Manufacture of pharmaceuticals, rubber, plastic and other non-metallic products",null,":",null,":",null,":",null,":",null,":",null,":",null,":",null,":",null,":",null,":",null,":",null,":"]
["S11_S12","C24","EPS_INV_PT",null,null,null,24,"Manufacture of basic metals",null,":",null,":",null,":",null,":",null,":",null,":",null,":",null,":",null,":",null,":",null,":",null,":"]
["S11_S12","C25-C30","EPS_INV_PT",null,null,null,"25-30","Manufacture of fabricated metal products, including machinery and equipment",null,":",null,":",null,":",null,":",null,":",null,":",null,":",null,":",null,":",null,":",null,":",null,":"]
["S11_S12","C13-C16_C18_C31-C33","EPS_INV_PT",null,null,null,"13-16, 18, 31-33","Other manufacturing activities",null,":",null,":",null,":",null,":",null,":",null,":",null,":",null,":",null,":",null,":",null,":",null,":"]
["S11_S12","C10-C12","EPS_INV_PP",null,"( INV_IT.3bA ) GFCF on cleaner EP fixed assets (integrated technologies)",null,"10-12'","Manufacture of food, beverages and tobacco products",null,":",null,":",null,":",null,":",null,":",null,":",null,":",null,":",null,":",null,":",null,":",null,":"]
["S11_S12","C17","EPS_INV_PP",null,null,null,17,"Manufacture of paper and paper products",null,":",null,":",null,":",null,":",null,":",null,":",null,":",null,":",null,":",null,":",null,":",null,":"]
["S11_S12","C19_C20","EPS_INV_PP",null,null,null,"19-20","Manufacture of coke, chemicals and refined petroleum and chemical products",null,":",null,":",null,":",null,":",null,":",null,":",null,":",null,":",null,":",null,":",null,":",null,":"]
["S11_S12","C21-C23","EPS_INV_PP",null,null,null,"21-23","Manufacture of pharmaceuticals, rubber, plastic and other non-metallic products",null,":",null,":",null,":",null,":",null,":",null,":",null,":",null,":",null,":",null,":",null,":",null,":"]
["S11_S12","C24","EPS_INV_PP",null,null,null,24,"Manufacture of basic metals",null,":",null,":",null,":",null,":",null,":",null,":",null,":",null,":",null,":",null,":",null,":",null,":"]
["S11_S12","C25-C30","EPS_INV_PP",null,null,null,"25-30","Manufacture of fabricated metal products, including machinery and equipment",null,":",null,":",null,":",null,":",null,":",null,":",null,":",null,":",null,":",null,":",null,":",null,":"]
["S11_S12","C13-C16_C18_C31-C33","EPS_INV_PP",null,null,null,"13-16, 18, 31-33","Other manufacturing activities",null,":",null,":",null,":",null,":",null,":",null,":",null,":",null,":",null,":",null,":",null,":",null,":"]
["S11_S12","C10-C12","EPS_P2",null,"( P2.3bA ) Total intermediate consumption",null,"10-12'","Manufacture of food, beverages and tobacco products",null,":",null,":",null,":",null,":",null,":",null,":",null,":",null,":",null,":",null,":",null,":",null,":"]
["S11_S12","C17","EPS_P2",null,null,null,17,"Manufacture of paper and paper products",null,":",null,":",null,":",null,":",null,":",null,":",null,":",null,":",null,":",null,":",null,":",null,":"]
["S11_S12","C19_C20","EPS_P2",null,null,null,"19-20","Manufacture of coke, chemicals and refined petroleum and chemical products",null,":",null,":",null,":",null,":",null,":",null,":",null,":",null,":",null,":",null,":",null,":",null,":"]
["S11_S12","C21-C23","EPS_P2",null,null,null,"21-23","Manufacture of pharmaceuticals, rubber, plastic and other non-metallic products",null,":",null,":",null,":",null,":",null,":",null,":",null,":",null,":",null,":",null,":",null,":",null,":"]
["S11_S12","C24","EPS_P2",null,null,null,24,"Manufacture of basic metals",null,":",null,":",null,":",null,":",null,":",null,":",null,":",null,":",null,":",null,":",null,":",null,":"]
["S11_S12","C25-C30","EPS_P2",null,null,null,"25-30","Manufacture of fabricated metal products, including machinery and equipment",null,":",null,":",null,":",null,":",null,":",null,":",null,":",null,":",null,":",null,":",null,":",null,":"]
["S11_S12","C13-C16_C18_C31-C33","EPS_P2",null,null,null,"13-16, 18, 31-33","Other manufacturing activities",null,":",null,":",null,":",null,":",null,":",null,":",null,":",null,":",null,":",null,":",null,":",null,":"]
["S11_S12","C10-C12","EPS_P2_EPS",null,"( P2_EPS.3bA )  Intermediate consumption of EP services for ancillary production of EP services ",null,"10-12'","Manufacture of food, beverages and tobacco products",null,":",null,":",null,":",null,":",null,":",null,":",null,":",null,":",null,":",null,":",null,":",null,":"]
["S11_S12","C17","EPS_P2_EPS",null,"(P2_EPS.3x: please consider the explanatory notes - click here)",null,17,"Manufacture of paper and paper products",null,":",null,":",null,":",null,":",null,":",null,":",null,":",null,":",null,":",null,":",null,":",null,":"]
["S11_S12","C19_C20","EPS_P2_EPS",null,null,null,"19-20","Manufacture of coke, chemicals and refined petroleum and chemical products",null,":",null,":",null,":",null,":",null,":",null,":",null,":",null,":",null,":",null,":",null,":",null,":"]
["S11_S12","C21-C23","EPS_P2_EPS",null,null,null,"21-23","Manufacture of pharmaceuticals, rubber, plastic and other non-metallic products",null,":",null,":",null,":",null,":",null,":",null,":",null,":",null,":",null,":",null,":",null,":",null,":"]
["S11_S12","C24","EPS_P2_EPS",null,null,null,24,"Manufacture of basic metals",null,":",null,":",null,":",null,":",null,":",null,":",null,":",null,":",null,":",null,":",null,":",null,":"]
["S11_S12","C25-C30","EPS_P2_EPS",null,null,null,"25-30","Manufacture of fabricated metal products, including machinery and equipment",null,":",null,":",null,":",null,":",null,":",null,":",null,":",null,":",null,":",null,":",null,":",null,":"]
["S11_S12","C13-C16_C18_C31-C33","EPS_P2_EPS",null,null,null,"13-16, 18, 31-33","Other manufacturing activities",null,":",null,":",null,":",null,":",null,":",null,":",null,":",null,":",null,":",null,":",null,":",null,":"]
["S11_S12","C10-C12","EPS_P2_NEPS",null,"( P2_NEPS.3bA ) Intermediate consumption (excluding EP services)",null,"10-12'","Manufacture of food, beverages and tobacco products",null,":",null,":",null,":",null,":",null,":",null,":",null,":",null,":",null,":",null,":",null,":",null,":"]
["S11_S12","C17","EPS_P2_NEPS",null,null,null,17,"Manufacture of paper and paper products",null,":",null,":",null,":",null,":",null,":",null,":",null,":",null,":",null,":",null,":",null,":",null,":"]
["S11_S12","C19_C20","EPS_P2_NEPS",null,null,null,"19-20","Manufacture of coke, chemicals and refined petroleum and chemical products",null,":",null,":",null,":",null,":",null,":",null,":",null,":",null,":",null,":",null,":",null,":",null,":"]
["S11_S12","C21-C23","EPS_P2_NEPS",null,null,null,"21-23","Manufacture of pharmaceuticals, rubber, plastic and other non-metallic products",null,":",null,":",null,":",null,":",null,":",null,":",null,":",null,":",null,":",null,":",null,":",null,":"]
["S11_S12","C24","EPS_P2_NEPS",null,null,null,24,"Manufacture of basic metals",null,":",null,":",null,":",null,":",null,":",null,":",null,":",null,":",null,":",null,":",null,":",null,":"]
["S11_S12","C25-C30","EPS_P2_NEPS",null,null,null,"25-30","Manufacture of fabricated metal products, including machinery and equipment",null,":",null,":",null,":",null,":",null,":",null,":",null,":",null,":",null,":",null,":",null,":",null,":"]
["S11_S12","C13-C16_C18_C31-C33","EPS_P2_NEPS",null,null,null,"13-16, 18, 31-33","Other manufacturing activities",null,":",null,":",null,":",null,":",null,":",null,":",null,":",null,":",null,":",null,":",null,":",null,":"]
["S11_S12","C10-C12","EPS_D1",null,"( D1.3bA ) Compensation of employees",null,"10-12'","Manufacture of food, beverages and tobacco products",null,":",null,":",null,":",null,":",null,":",null,":",null,":",null,":",null,":",null,":",null,":",null,":"]
["S11_S12","C17","EPS_D1",null,null,null,17,"Manufacture of paper and paper products",null,":",null,":",null,":",null,":",null,":",null,":",null,":",null,":",null,":",null,":",null,":",null,":"]
["S11_S12","C19_C20","EPS_D1",null,null,null,"19-20","Manufacture of coke, chemicals and refined petroleum and chemical products",null,":",null,":",null,":",null,":",null,":",null,":",null,":",null,":",null,":",null,":",null,":",null,":"]
["S11_S12","C21-C23","EPS_D1",null,null,null,"21-23","Manufacture of pharmaceuticals, rubber, plastic and other non-metallic products",null,":",null,":",null,":",null,":",null,":",null,":",null,":",null,":",null,":",null,":",null,":",null,":"]
["S11_S12","C24","EPS_D1",null,null,null,24,"Manufacture of basic metals",null,":",null,":",null,":",null,":",null,":",null,":",null,":",null,":",null,":",null,":",null,":",null,":"]
["S11_S12","C25-C30","EPS_D1",null,null,null,"25-30","Manufacture of fabricated metal products, including machinery and equipment",null,":",null,":",null,":",null,":",null,":",null,":",null,":",null,":",null,":",null,":",null,":",null,":"]
["S11_S12","C13-C16_C18_C31-C33","EPS_D1",null,null,null,"13-16, 18, 31-33","Other manufacturing activities",null,":",null,":",null,":",null,":",null,":",null,":",null,":",null,":",null,":",null,":",null,":",null,":"]
["S11_S12","C10-C12","EPS_P1_ANC",null,"( P1_ANC.3bA ) Ancillary EP output (simplified valuation legally acceptable) ((P2_NEPS.3bA) + (D1.3bA))",null,"10-12'","Manufacture of food, beverages and tobacco products",null,":",null,":",null,":",null,":",null,":",null,":",null,":",null,":",null,":",null,":",null,":",null,":"]
["S11_S12","C17","EPS_P1_ANC",null,null,null,17,"Manufacture of paper and paper products",null,":",null,":",null,":",null,":",null,":",null,":",null,":",null,":",null,":",null,":",null,":",null,":"]
["S11_S12","C19_C20","EPS_P1_ANC",null,null,null,"19-20","Manufacture of coke, chemicals and refined petroleum and chemical products",null,":",null,":",null,":",null,":",null,":",null,":",null,":",null,":",null,":",null,":",null,":",null,":"]
["S11_S12","C21-C23","EPS_P1_ANC",null,null,null,"21-23","Manufacture of pharmaceuticals, rubber, plastic and other non-metallic products",null,":",null,":",null,":",null,":",null,":",null,":",null,":",null,":",null,":",null,":",null,":",null,":"]
["S11_S12","C24","EPS_P1_ANC",null,null,null,24,"Manufacture of basic metals",null,":",null,":",null,":",null,":",null,":",null,":",null,":",null,":",null,":",null,":",null,":",null,":"]
["S11_S12","C25-C30","EPS_P1_ANC",null,null,null,"25-30","Manufacture of fabricated metal products, including machinery and equipment",null,":",null,":",null,":",null,":",null,":",null,":",null,":",null,":",null,":",null,":",null,":",null,":"]
["S11_S12","C13-C16_C18_C31-C33","EPS_P1_ANC",null,null,null,"13-16, 18, 31-33","Other manufacturing activities",null,":",null,":",null,":",null,":",null,":",null,":",null,":",null,":",null,":",null,":",null,":",null,":"]
["S11_S12","C10-C12","EPS_D29X39",null,"( D29-D39.3bA ) Other taxes less subsidies on production",null,"10-12'","Manufacture of food, beverages and tobacco products",null,":",null,":",null,":",null,":",null,":",null,":",null,":",null,":",null,":",null,":",null,":",null,":"]
["S11_S12","C17","EPS_D29X39",null,null,null,17,"Manufacture of paper and paper products",null,":",null,":",null,":",null,":",null,":",null,":",null,":",null,":",null,":",null,":",null,":",null,":"]
["S11_S12","C19_C20","EPS_D29X39",null,null,null,"19-20","Manufacture of coke, chemicals and refined petroleum and chemical products",null,":",null,":",null,":",null,":",null,":",null,":",null,":",null,":",null,":",null,":",null,":",null,":"]
["S11_S12","C21-C23","EPS_D29X39",null,null,null,"21-23","Manufacture of pharmaceuticals, rubber, plastic and other non-metallic products",null,":",null,":",null,":",null,":",null,":",null,":",null,":",null,":",null,":",null,":",null,":",null,":"]
["S11_S12","C24","EPS_D29X39",null,null,null,24,"Manufacture of basic metals",null,":",null,":",null,":",null,":",null,":",null,":",null,":",null,":",null,":",null,":",null,":",null,":"]
["S11_S12","C25-C30","EPS_D29X39",null,null,null,"25-30","Manufacture of fabricated metal products, including machinery and equipment",null,":",null,":",null,":",null,":",null,":",null,":",null,":",null,":",null,":",null,":",null,":",null,":"]
["S11_S12","C13-C16_C18_C31-C33","EPS_D29X39",null,null,null,"13-16, 18, 31-33","Other manufacturing activities",null,":",null,":",null,":",null,":",null,":",null,":",null,":",null,":",null,":",null,":",null,":",null,":"]
["S11_S12","C10-C12","EPS_P51C",null,"( P51C.3bA ) Consumption of fixed capital",null,"10-12'","Manufacture of food, beverages and tobacco products",null,":",null,":",null,":",null,":",null,":",null,":",null,":",null,":",null,":",null,":",null,":",null,":"]
["S11_S12","C17","EPS_P51C",null,null,null,17,"Manufacture of paper and paper products",null,":",null,":",null,":",null,":",null,":",null,":",null,":",null,":",null,":",null,":",null,":",null,":"]
["S11_S12","C19_C20","EPS_P51C",null,null,null,"19-20","Manufacture of coke, chemicals and refined petroleum and chemical products",null,":",null,":",null,":",null,":",null,":",null,":",null,":",null,":",null,":",null,":",null,":",null,{"$f":"IF(COUNT(J72,N72,P72,R72,T72,V72,AD72)=7,SUM(J72,N72,P72,R72,T72,V72,AD72),\":\")","v":":"}]
["S11_S12","C21-C23","EPS_P51C",null,null,null,"21-23","Manufacture of pharmaceuticals, rubber, plastic and other non-metallic products",null,":",null,":",null,":",null,":",null,":",null,":",null,":",null,":",null,":",null,":",null,":",null,":"]
["S11_S12","C24","EPS_P51C",null,null,null,24,"Manufacture of basic metals",null,":",null,":",null,":",null,":",null,":",null,":",null,":",null,":",null,":",null,":",null,":",null,":"]
["S11_S12","C25-C30","EPS_P51C",null,null,null,"25-30","Manufacture of fabricated metal products, including machinery and equipment",null,":",null,":",null,":",null,":",null,":",null,":",null,":",null,":",null,":",null,":",null,":",null,":"]
["S11_S12","C13-C16_C18_C31-C33","EPS_P51C",null,null,null,"13-16, 18, 31-33","Other manufacturing activities",null,":",null,":",null,":",null,":",null,":",null,":",null,":",null,":",null,":",null,":",null,":",null,":"]
["S11_S12","C10-C12","EPS_P1_ANCESA",null,"( P1_ANC_ESA.3bA ) Ancillary EP output (ESA - compatible valuation) ((P2_NEPS.3bA) + (D1.3bA) +(P51C.3bA) + (D29-D39.3bA))",null,"10-12'","Manufacture of food, beverages and tobacco products",null,":",null,":",null,":",null,":",null,":",null,":",null,":",null,":",null,":",null,":",null,":",null,":"]
["S11_S12","C17","EPS_P1_ANCESA",null,null,null,17,"Manufacture of paper and paper products",null,":",null,":",null,":",null,":",null,":",null,":",null,":",null,":",null,":",null,":",null,":",null,":"]
["S11_S12","C19_C20","EPS_P1_ANCESA",null,null,null,"19-20","Manufacture of coke, chemicals and refined petroleum and chemical products",null,":",null,":",null,":",null,":",null,":",null,":",null,":",null,":",null,":",null,":",null,":",null,":"]
["S11_S12","C21-C23","EPS_P1_ANCESA",null,null,null,"21-23","Manufacture of pharmaceuticals, rubber, plastic and other non-metallic products",null,":",null,":",null,":",null,":",null,":",null,":",null,":",null,":",null,":",null,":",null,":",null,":"]
["S11_S12","C24","EPS_P1_ANCESA",null,null,null,24,"Manufacture of basic metals",null,":",null,":",null,":",null,":",null,":",null,":",null,":",null,":",null,":",null,":",null,":",null,":"]
["S11_S12","C25-C30","EPS_P1_ANCESA",null,null,null,"25-30","Manufacture of fabricated metal products, including machinery and equipment",null,":",null,":",null,":",null,":",null,":",null,":",null,":",null,":",null,":",null,":",null,":",null,":"]
["S11_S12","C13-C16_C18_C31-C33","EPS_P1_ANCESA",null,null,null,"13-16, 18, 31-33","Other manufacturing activities",null,":",null,":",null,":",null,":",null,":",null,":",null,":",null,":",null,":",null,":",null,":",null,":"]
["S11_S12","C10-C12","EPS_REC_BYPR",null,"( RNO.3bA ) Related non-EP output",null,"10-12'","Manufacture of food, beverages and tobacco products",null,":",null,":",null,":",null,":",null,":",null,":",null,":",null,":",null,":",null,":",null,":",null,":"]
["S11_S12","C17","EPS_REC_BYPR",null,null,null,17,"Manufacture of paper and paper products",null,":",null,":",null,":",null,":",null,":",null,":",null,":",null,":",null,":",null,":",null,":",null,":"]
["S11_S12","C19_C20","EPS_REC_BYPR",null,null,null,"19-20","Manufacture of coke, chemicals and refined petroleum and chemical products",null,":",null,":",null,":",null,":",null,":",null,":",null,":",null,":",null,":",null,":",null,":",null,":"]
["S11_S12","C21-C23","EPS_REC_BYPR",null,null,null,"21-23","Manufacture of pharmaceuticals, rubber, plastic and other non-metallic products",null,":",null,":",null,":",null,":",null,":",null,":",null,":",null,":",null,":",null,":",null,":",null,":"]
["S11_S12","C24","EPS_REC_BYPR",null,null,null,24,"Manufacture of basic metals",null,":",null,":",null,":",null,":",null,":",null,":",null,":",null,":",null,":",null,":",null,":",null,":"]
["S11_S12","C25-C30","EPS_REC_BYPR",null,null,null,"25-30","Manufacture of fabricated metal products, including machinery and equipment",null,":",null,":",null,":",null,":",null,":",null,":",null,":",null,":",null,":",null,":",null,":",null,":"]
["S11_S12","C13-C16_C18_C31-C33","EPS_REC_BYPR",null,null,null,"13-16, 18, 31-33","Other manufacturing activities",null,":",null,":",null,":",null,":",null,":",null,":",null,":",null,":",null,":",null,":",null,":",null,":"]
["S11_S12","C10-C12","TOT_P2_EPS","Transactions as users of EP services (ancillary production of EP services and other production)","( P2_EPS_EXT.3bA ) Total intermediate consumption of EP services (for production of EP services and for other production)",null,"10-12'","Manufacture of food, beverages and tobacco products",null,":",null,":",null,":",null,":",null,":",null,":",null,":",null,":",null,":",null,":",null,":",null,":"]
["S11_S12","C17","TOT_P2_EPS",null,"(P2_EPS_EXT.3x: please consider the explanatory notes - click here)",null,17,"Manufacture of paper and paper products",null,":",null,":",null,":",null,":",null,":",null,":",null,":",null,":",null,":",null,":",null,":",null,":"]
["S11_S12","C19_C20","TOT_P2_EPS",null,null,null,"19-20","Manufacture of coke, chemicals and refined petroleum and chemical products",null,":",null,":",null,":",null,":",null,":",null,":",null,":",null,":",null,":",null,":",null,":",null,":"]
["S11_S12","C21-C23","TOT_P2_EPS",null,null,null,"21-23","Manufacture of pharmaceuticals, rubber, plastic and other non-metallic products",null,":",null,":",null,":",null,":",null,":",null,":",null,":",null,":",null,":",null,":",null,":",null,":"]
["S11_S12","C24","TOT_P2_EPS",null,null,null,24,"Manufacture of basic metals",null,":",null,":",null,":",null,":",null,":",null,":",null,":",null,":",null,":",null,":",null,":",null,":"]
["S11_S12","C25-C30","TOT_P2_EPS",null,null,null,"25-30","Manufacture of fabricated metal products, including machinery and equipment",null,":",null,":",null,":",null,":",null,":",null,":",null,":",null,":",null,":",null,":",null,":",null,":"]
["S11_S12","C13-C16_C18_C31-C33","TOT_P2_EPS",null,null,null,"13-16, 18, 31-33","Other manufacturing activities",null,":",null,":",null,":",null,":",null,":",null,":",null,":",null,":",null,":",null,":",null,":",null,":"]
["S11_S12","C10-C12","EPS_EMP","Transactions of producers of ancillary EP services","( EMP.3bA ) Employment (full time equivalent)",null,"10-12'","Manufacture of food, beverages and tobacco products",null,":",null,":",null,":",null,":",null,":",null,":",null,":",null,":",null,":",null,":",null,":",null,":"]
["S11_S12","C17","EPS_EMP",null,null,null,17,"Manufacture of paper and paper products",null,":",null,":",null,":",null,":",null,":",null,":",null,":",null,":",null,":",null,":",null,":",null,":"]
["S11_S12","C19_C20","EPS_EMP",null,null,null,"19-20","Manufacture of coke, chemicals and refined petroleum and chemical products",null,":",null,":",null,":",null,":",null,":",null,":",null,":",null,":",null,":",null,":",null,":",null,":"]
["S11_S12","C21-C23","EPS_EMP",null,null,null,"21-23","Manufacture of pharmaceuticals, rubber, plastic and other non-metallic products",null,":",null,":",null,":",null,":",null,":",null,":",null,":",null,":",null,":",null,":",null,":",null,":"]
["S11_S12","C24","EPS_EMP",null,null,null,24,"Manufacture of basic metals",null,":",null,":",null,":",null,":",null,":",null,":",null,":",null,":",null,":",null,":",null,":",null,":"]
["S11_S12","C25-C30","EPS_EMP",null,null,null,"25-30","Manufacture of fabricated metal products, including machinery and equipment",null,":",null,":",null,":",null,":",null,":",null,":",null,":",null,":",null,":",null,":",null,":",null,":"]
["S11_S12","C13-C16_C18_C31-C33","EPS_EMP",null,null,null,"13-16, 18, 31-33","Other manufacturing activities",null,":",null,":",null,":",null,":",null,":",null,":",null,":",null,":",null,":",null,":",null,":",null,{"$f":"IF(COUNT(J104,N104,P104,R104,T104,V104,AD104)=7,SUM(J104,N104,P104,R104,T104,V104,AD104),\":\")","v":":"}]

{"sheet":"3b_Add_2029","index":31,"n_rows":104,"n_cols":32,"rows_kept":104,"cut":false,"hidden":true,"merged":[[12,7,12,8],[13,4,13,5],[13,7,13,8],[14,7,14,8],[15,7,15,8],[16,7,16,8],[0,4,0,8],[0,9,0,16],[1,4,1,8],[1,9,1,32],[2,9,2,32],[3,9,4,10],[3,11,4,12],[3,13,4,14],[3,15,4,16],[3,17,4,18],[3,31,4,32],[4,4,4,5],[3,21,4,22],[3,23,4,24],[3,25,4,26],[3,27,4,28],[3,29,4,30],[3,19,4,20],[22,7,22,8],[23,7,23,8],[24,7,24,8],[25,7,25,8],[26,7,26,8],[28,7,28,8],[27,4,27,5],[27,7,27,8],[17,7,17,8],[18,7,18,8],[19,7,19,8],[20,4,20,5],[20,7,20,8],[21,7,21,8],[34,4,34,5],[34,7,34,8],[35,4,35,5],[35,7,35,8],[36,7,36,8],[37,7,37,8],[29,7,29,8],[30,7,30,8],[31,7,31,8],[32,7,32,8],[33,7,33,8],[43,7,43,8],[44,7,44,8],[45,7,45,8],[46,7,46,8],[47,7,47,8],[48,4,48,5],[48,7,48,8],[38,7,38,8],[39,7,39,8],[40,7,40,8],[41,4,41,5],[41,7,41,8],[42,7,42,8],[55,4,55,5],[55,7,55,8],[56,7,56,8],[57,7,57,8],[58,7,58,8],[59,7,59,8],[49,7,49,8],[50,7,50,8],[51,7,51,8],[52,7,52,8],[53,7,53,8],[54,7,54,8],[65,7,65,8],[66,7,66,8],[67,7,67,8],[68,7,68,8],[69,4,69,5],[69,7,69,8],[60,7,60,8],[61,7,61,8],[62,4,62,5],[62,7,62,8],[63,7,63,8],[64,7,64,8],[76,4,76,5],[76,7,76,8],[77,7,77,8],[78,7,78,8],[79,7,79,8],[80,7,80,8],[70,7,70,8],[71,7,71,8],[72,7,72,8],[73,7,73,8],[74,7,74,8],[75,7,75,8],[86,7,86,8],[87,7,87,8],[88,7,88,8],[89,7,89,8],[90,3,96,3],[90,4,90,5],[90,7,90,8],[91,4,91,5],[91,7,91,8],[92,7,92,8],[6,3,89,3],[6,4,6,5],[6,7,6,8],[7,7,7,8],[8,7,8,8],[9,7,9,8],[10,7,10,8],[11,7,11,8],[81,7,81,8],[82,7,82,8],[83,4,83,5],[83,7,83,8],[84,7,84,8],[85,7,85,8],[101,7,101,8],[102,7,102,8],[103,7,103,8],[93,7,93,8],[94,7,94,8],[95,7,95,8],[96,7,96,8],[97,3,103,3],[97,4,97,5],[97,7,97,8],[98,7,98,8],[99,7,99,8],[100,7,100,8]]}
[null,null,null,null,{"$f":"Cover!$B$21","v":"QUESTIONNAIRE ON ENVIRONMENTAL PROTECTION EXPENDITURE ACCOUNTS"},null,null,null,null,"Table 3b Add.: Detailed Manufacturing Industries"]
[null,null,null,null,{"$f":"E1","v":"QUESTIONNAIRE ON ENVIRONMENTAL PROTECTION EXPENDITURE ACCOUNTS"},null,null,null,null,{"$f":"J1 & \" - \" & I5","v":"Table 3b Add.: Detailed Manufacturing Industries - 2029"}]
[null,null,null,null,null,null,null,null,null,"Mandatory and voluntary variables and environmental domains - please fill in as much as possible"]
[null,null,null,null,"Country/Unit",{"$f":"IFERROR(Cover!C16,\"\")","v":""},{"$f":"\"\"&Cover!B16","v":""},null,{"$f":"Cover!B17","v":"Million units of national currency"},"CEPA 1",null,"of which CEPA 1.1.2 and 1.2.2 Climate change",null,"CEPA 2",null,"CEPA 3",null,"CEPA 4",null,"CEPA 5",null,"CEPA 6",null,"CEPA 7",null,"CEPA 8",null,"CEPA 9",null,"Sum of CEPA 7+8+9",null,"TOTAL"]
[null,null,null,null,"Expenditure",null,null,"YEAR",2029,null,null,null,null,null,null,null,null,null,null,null,null,null,null,null,null,null,null,null,null,null,null,"Landscape"]
[null,null,null,null,null,null,null,null,null,"CEPA1",null,"CEPA112_122",null,"CEPA2",null,"CEPA3",null,"CEPA4",null,"CEPA5",null,"CEPA6",null,"CEPA7",null,"CEPA8",null,"CEPA9",null,"CEPA7-9",null,"TOT_CEPA"]
["S11_S12","C10-C12","EPS_P51G_NP","Transactions of producers of ancillary EP services","( P51G_NP.3bA ) Gross fixed capital formation and acquisition less disposals of non-financial, non-produced assets",null,"10-12","Manufacture of food, beverages and tobacco products",null,":",null,":",null,":",null,":",null,":",null,":",null,":",null,":",null,":",null,":",null,":",null,{"$f":"IF(COUNT(J7,N7,P7,R7,T7,V7,AD7)=7,SUM(J7,N7,P7,R7,T7,V7,AD7),\":\")","v":":"}]
["S11_S12","C17","EPS_P51G_NP",null,null,null,17,"Manufacture of paper and paper products",null,":",null,":",null,":",null,":",null,":",null,":",null,":",null,":",null,":",null,":",null,":",null,{"$f":"IF(COUNT(J8,N8,P8,R8,T8,V8,AD8)=7,SUM(J8,N8,P8,R8,T8,V8,AD8),\":\")","v":":"}]
["S11_S12","C19_C20","EPS_P51G_NP",null,null,null,"19-20","Manufacture of coke, chemicals and refined petroleum and chemical products",null,":",null,":",null,":",null,":",null,":",null,":",null,":",null,":",null,":",null,":",null,":",null,":"]
["S11_S12","C21-C23","EPS_P51G_NP",null,null,null,"21-23","Manufacture of pharmaceuticals, rubber, plastic and other non-metallic products",null,":",null,":",null,":",null,":",null,":",null,":",null,":",null,":",null,":",null,":",null,":",null,":"]
["S11_S12","C24","EPS_P51G_NP",null,null,null,24,"Manufacture of basic metals",null,":",null,":",null,":",null,":",null,":",null,":",null,":",null,":",null,":",null,":",null,":",null,":"]
["S11_S12","C25-C30","EPS_P51G_NP",null,null,null,"25-30","Manufacture of fabricated metal products, including machinery and equipment",null,":",null,":",null,":",null,":",null,":",null,":",null,":",null,":",null,":",null,":",null,":",null,":"]
["S11_S12","C13-C16_C18_C31-C33","EPS_P51G_NP",null,null,null,"13-16, 18, 31-33","Other manufacturing activities",null,":",null,":",null,":",null,":",null,":",null,":",null,":",null,":",null,":",null,":",null,":",null,":"]
["S11_S12","C10-C12","EPS_INV_PT",null,"( INV_EOP.3bA ) GFCF on specific EP fixed assets (end-of-pipe technologies)",null,"10-12'","Manufacture of food, beverages and tobacco products",null,":",null,":",null,":",null,":",null,":",null,":",null,":",null,":",null,":",null,":",null,":",null,":"]
["S11_S12","C17","EPS_INV_PT",null,null,null,17,"Manufacture of paper and paper products",null,":",null,":",null,":",null,":",null,":",null,":",null,":",null,":",null,":",null,":",null,":",null,":"]
["S11_S12","C19_C20","EPS_INV_PT",null,null,null,"19-20","Manufacture of coke, chemicals and refined petroleum and chemical products",null,":",null,":",null,":",null,":",null,":",null,":",null,":",null,":",null,":",null,":",null,":",null,":"]
["S11_S12","C21-C23","EPS_INV_PT",null,null,null,"21-23","Manufacture of pharmaceuticals, rubber, plastic and other non-metallic products",null,":",null,":",null,":",null,":",null,":",null,":",null,":",null,":",null,":",null,":",null,":",null,":"]
["S11_S12","C24","EPS_INV_PT",null,null,null,24,"Manufacture of basic metals",null,":",null,":",null,":",null,":",null,":",null,":",null,":",null,":",null,":",null,":",null,":",null,":"]
["S11_S12","C25-C30","EPS_INV_PT",null,null,null,"25-30","Manufacture of fabricated metal products, including machinery and equipment",null,":",null,":",null,":",null,":",null,":",null,":",null,":",null,":",null,":",null,":",null,":",null,":"]
["S11_S12","C13-C16_C18_C31-C33","EPS_INV_PT",null,null,null,"13-16, 18, 31-33","Other manufacturing activities",null,":",null,":",null,":",null,":",null,":",null,":",null,":",null,":",null,":",null,":",null,":",null,":"]
["S11_S12","C10-C12","EPS_INV_PP",null,"( INV_IT.3bA ) GFCF on cleaner EP fixed assets (integrated technologies)",null,"10-12'","Manufacture of food, beverages and tobacco products",null,":",null,":",null,":",null,":",null,":",null,":",null,":",null,":",null,":",null,":",null,":",null,":"]
["S11_S12","C17","EPS_INV_PP",null,null,null,17,"Manufacture of paper and paper products",null,":",null,":",null,":",null,":",null,":",null,":",null,":",null,":",null,":",null,":",null,":",null,":"]
["S11_S12","C19_C20","EPS_INV_PP",null,null,null,"19-20","Manufacture of coke, chemicals and refined petroleum and chemical products",null,":",null,":",null,":",null,":",null,":",null,":",null,":",null,":",null,":",null,":",null,":",null,":"]
["S11_S12","C21-C23","EPS_INV_PP",null,null,null,"21-23","Manufacture of pharmaceuticals, rubber, plastic and other non-metallic products",null,":",null,":",null,":",null,":",null,":",null,":",null,":",null,":",null,":",null,":",null,":",null,":"]
["S11_S12","C24","EPS_INV_PP",null,null,null,24,"Manufacture of basic metals",null,":",null,":",null,":",null,":",null,":",null,":",null,":",null,":",null,":",null,":",null,":",null,":"]
["S11_S12","C25-C30","EPS_INV_PP",null,null,null,"25-30","Manufacture of fabricated metal products, including machinery and equipment",null,":",null,":",null,":",null,":",null,":",null,":",null,":",null,":",null,":",null,":",null,":",null,":"]
["S11_S12","C13-C16_C18_C31-C33","EPS_INV_PP",null,null,null,"13-16, 18, 31-33","Other manufacturing activities",null,":",null,":",null,":",null,":",null,":",null,":",null,":",null,":",null,":",null,":",null,":",null,":"]
["S11_S12","C10-C12","EPS_P2",null,"( P2.3bA ) Total intermediate consumption",null,"10-12'","Manufacture of food, beverages and tobacco products",null,":",null,":",null,":",null,":",null,":",null,":",null,":",null,":",null,":",null,":",null,":",null,":"]
["S11_S12","C17","EPS_P2",null,null,null,17,"Manufacture of paper and paper products",null,":",null,":",null,":",null,":",null,":",null,":",null,":",null,":",null,":",null,":",null,":",null,":"]
["S11_S12","C19_C20","EPS_P2",null,null,null,"19-20","Manufacture of coke, chemicals and refined petroleum and chemical products",null,":",null,":",null,":",null,":",null,":",null,":",null,":",null,":",null,":",null,":",null,":",null,":"]
["S11_S12","C21-C23","EPS_P2",null,null,null,"21-23","Manufacture of pharmaceuticals, rubber, plastic and other non-metallic products",null,":",null,":",null,":",null,":",null,":",null,":",null,":",null,":",null,":",null,":",null,":",null,":"]
["S11_S12","C24","EPS_P2",null,null,null,24,"Manufacture of basic metals",null,":",null,":",null,":",null,":",null,":",null,":",null,":",null,":",null,":",null,":",null,":",null,":"]
["S11_S12","C25-C30","EPS_P2",null,null,null,"25-30","Manufacture of fabricated metal products, including machinery and equipment",null,":",null,":",null,":",null,":",null,":",null,":",null,":",null,":",null,":",null,":",null,":",null,":"]
["S11_S12","C13-C16_C18_C31-C33","EPS_P2",null,null,null,"13-16, 18, 31-33","Other manufacturing activities",null,":",null,":",null,":",null,":",null,":",null,":",null,":",null,":",null,":",null,":",null,":",null,":"]
["S11_S12","C10-C12","EPS_P2_EPS",null,"( P2_EPS.3bA )  Intermediate consumption of EP services for ancillary production of EP services ",null,"10-12'","Manufacture of food, beverages and tobacco products",null,":",null,":",null,":",null,":",null,":",null,":",null,":",null,":",null,":",null,":",null,":",null,":"]
["S11_S12","C17","EPS_P2_EPS",null,"(P2_EPS.3x: please consider the explanatory notes - click here)",null,17,"Manufacture of paper and paper products",null,":",null,":",null,":",null,":",null,":",null,":",null,":",null,":",null,":",null,":",null,":",null,":"]
["S11_S12","C19_C20","EPS_P2_EPS",null,null,null,"19-20","Manufacture of coke, chemicals and refined petroleum and chemical products",null,":",null,":",null,":",null,":",null,":",null,":",null,":",null,":",null,":",null,":",null,":",null,":"]
["S11_S12","C21-C23","EPS_P2_EPS",null,null,null,"21-23","Manufacture of pharmaceuticals, rubber, plastic and other non-metallic products",null,":",null,":",null,":",null,":",null,":",null,":",null,":",null,":",null,":",null,":",null,":",null,":"]
["S11_S12","C24","EPS_P2_EPS",null,null,null,24,"Manufacture of basic metals",null,":",null,":",null,":",null,":",null,":",null,":",null,":",null,":",null,":",null,":",null,":",null,":"]
["S11_S12","C25-C30","EPS_P2_EPS",null,null,null,"25-30","Manufacture of fabricated metal products, including machinery and equipment",null,":",null,":",null,":",null,":",null,":",null,":",null,":",null,":",null,":",null,":",null,":",null,":"]
["S11_S12","C13-C16_C18_C31-C33","EPS_P2_EPS",null,null,null,"13-16, 18, 31-33","Other manufacturing activities",null,":",null,":",null,":",null,":",null,":",null,":",null,":",null,":",null,":",null,":",null,":",null,":"]
["S11_S12","C10-C12","EPS_P2_NEPS",null,"( P2_NEPS.3bA ) Intermediate consumption (excluding EP services)",null,"10-12'","Manufacture of food, beverages and tobacco products",null,":",null,":",null,":",null,":",null,":",null,":",null,":",null,":",null,":",null,":",null,":",null,":"]
["S11_S12","C17","EPS_P2_NEPS",null,null,null,17,"Manufacture of paper and paper products",null,":",null,":",null,":",null,":",null,":",null,":",null,":",null,":",null,":",null,":",null,":",null,":"]
["S11_S12","C19_C20","EPS_P2_NEPS",null,null,null,"19-20","Manufacture of coke, chemicals and refined petroleum and chemical products",null,":",null,":",null,":",null,":",null,":",null,":",null,":",null,":",null,":",null,":",null,":",null,":"]
["S11_S12","C21-C23","EPS_P2_NEPS",null,null,null,"21-23","Manufacture of pharmaceuticals, rubber, plastic and other non-metallic products",null,":",null,":",null,":",null,":",null,":",null,":",null,":",null,":",null,":",null,":",null,":",null,":"]
["S11_S12","C24","EPS_P2_NEPS",null,null,null,24,"Manufacture of basic metals",null,":",null,":",null,":",null,":",null,":",null,":",null,":",null,":",null,":",null,":",null,":",null,":"]
["S11_S12","C25-C30","EPS_P2_NEPS",null,null,null,"25-30","Manufacture of fabricated metal products, including machinery and equipment",null,":",null,":",null,":",null,":",null,":",null,":",null,":",null,":",null,":",null,":",null,":",null,":"]
["S11_S12","C13-C16_C18_C31-C33","EPS_P2_NEPS",null,null,null,"13-16, 18, 31-33","Other manufacturing activities",null,":",null,":",null,":",null,":",null,":",null,":",null,":",null,":",null,":",null,":",null,":",null,":"]
["S11_S12","C10-C12","EPS_D1",null,"( D1.3bA ) Compensation of employees",null,"10-12'","Manufacture of food, beverages and tobacco products",null,":",null,":",null,":",null,":",null,":",null,":",null,":",null,":",null,":",null,":",null,":",null,":"]
["S11_S12","C17","EPS_D1",null,null,null,17,"Manufacture of paper and paper products",null,":",null,":",null,":",null,":",null,":",null,":",null,":",null,":",null,":",null,":",null,":",null,":"]
["S11_S12","C19_C20","EPS_D1",null,null,null,"19-20","Manufacture of coke, chemicals and refined petroleum and chemical products",null,":",null,":",null,":",null,":",null,":",null,":",null,":",null,":",null,":",null,":",null,":",null,":"]
["S11_S12","C21-C23","EPS_D1",null,null,null,"21-23","Manufacture of pharmaceuticals, rubber, plastic and other non-metallic products",null,":",null,":",null,":",null,":",null,":",null,":",null,":",null,":",null,":",null,":",null,":",null,":"]
["S11_S12","C24","EPS_D1",null,null,null,24,"Manufacture of basic metals",null,":",null,":",null,":",null,":",null,":",null,":",null,":",null,":",null,":",null,":",null,":",null,":"]
["S11_S12","C25-C30","EPS_D1",null,null,null,"25-30","Manufacture of fabricated metal products, including machinery and equipment",null,":",null,":",null,":",null,":",null,":",null,":",null,":",null,":",null,":",null,":",null,":",null,":"]
["S11_S12","C13-C16_C18_C31-C33","EPS_D1",null,null,null,"13-16, 18, 31-33","Other manufacturing activities",null,":",null,":",null,":",null,":",null,":",null,":",null,":",null,":",null,":",null,":",null,":",null,":"]
["S11_S12","C10-C12","EPS_P1_ANC",null,"( P1_ANC.3bA ) Ancillary EP output (simplified valuation legally acceptable) ((P2_NEPS.3bA) + (D1.3bA))",null,"10-12'","Manufacture of food, beverages and tobacco products",null,":",null,":",null,":",null,":",null,":",null,":",null,":",null,":",null,":",null,":",null,":",null,":"]
["S11_S12","C17","EPS_P1_ANC",null,null,null,17,"Manufacture of paper and paper products",null,":",null,":",null,":",null,":",null,":",null,":",null,":",null,":",null,":",null,":",null,":",null,":"]
["S11_S12","C19_C20","EPS_P1_ANC",null,null,null,"19-20","Manufacture of coke, chemicals and refined petroleum and chemical products",null,":",null,":",null,":",null,":",null,":",null,":",null,":",null,":",null,":",null,":",null,":",null,":"]
["S11_S12","C21-C23","EPS_P1_ANC",null,null,null,"21-23","Manufacture of pharmaceuticals, rubber, plastic and other non-metallic products",null,":",null,":",null,":",null,":",null,":",null,":",null,":",null,":",null,":",null,":",null,":",null,":"]
["S11_S12","C24","EPS_P1_ANC",null,null,null,24,"Manufacture of basic metals",null,":",null,":",null,":",null,":",null,":",null,":",null,":",null,":",null,":",null,":",null,":",null,":"]
["S11_S12","C25-C30","EPS_P1_ANC",null,null,null,"25-30","Manufacture of fabricated metal products, including machinery and equipment",null,":",null,":",null,":",null,":",null,":",null,":",null,":",null,":",null,":",null,":",null,":",null,":"]
["S11_S12","C13-C16_C18_C31-C33","EPS_P1_ANC",null,null,null,"13-16, 18, 31-33","Other manufacturing activities",null,":",null,":",null,":",null,":",null,":",null,":",null,":",null,":",null,":",null,":",null,":",null,":"]
["S11_S12","C10-C12","EPS_D29X39",null,"( D29-D39.3bA ) Other taxes less subsidies on production",null,"10-12'","Manufacture of food, beverages and tobacco products",null,":",null,":",null,":",null,":",null,":",null,":",null,":",null,":",null,":",null,":",null,":",null,":"]
["S11_S12","C17","EPS_D29X39",null,null,null,17,"Manufacture of paper and paper products",null,":",null,":",null,":",null,":",null,":",null,":",null,":",null,":",null,":",null,":",null,":",null,":"]
["S11_S12","C19_C20","EPS_D29X39",null,null,null,"19-20","Manufacture of coke, chemicals and refined petroleum and chemical products",null,":",null,":",null,":",null,":",null,":",null,":",null,":",null,":",null,":",null,":",null,":",null,":"]
["S11_S12","C21-C23","EPS_D29X39",null,null,null,"21-23","Manufacture of pharmaceuticals, rubber, plastic and other non-metallic products",null,":",null,":",null,":",null,":",null,":",null,":",null,":",null,":",null,":",null,":",null,":",null,":"]
["S11_S12","C24","EPS_D29X39",null,null,null,24,"Manufacture of basic metals",null,":",null,":",null,":",null,":",null,":",null,":",null,":",null,":",null,":",null,":",null,":",null,":"]
["S11_S12","C25-C30","EPS_D29X39",null,null,null,"25-30","Manufacture of fabricated metal products, including machinery and equipment",null,":",null,":",null,":",null,":",null,":",null,":",null,":",null,":",null,":",null,":",null,":",null,":"]
["S11_S12","C13-C16_C18_C31-C33","EPS_D29X39",null,null,null,"13-16, 18, 31-33","Other manufacturing activities",null,":",null,":",null,":",null,":",null,":",null,":",null,":",null,":",null,":",null,":",null,":",null,":"]
["S11_S12","C10-C12","EPS_P51C",null,"( P51C.3bA ) Consumption of fixed capital",null,"10-12'","Manufacture of food, beverages and tobacco products",null,":",null,":",null,":",null,":",null,":",null,":",null,":",null,":",null,":",null,":",null,":",null,":"]
["S11_S12","C17","EPS_P51C",null,null,null,17,"Manufacture of paper and paper products",null,":",null,":",null,":",null,":",null,":",null,":",null,":",null,":",null,":",null,":",null,":",null,":"]
["S11_S12","C19_C20","EPS_P51C",null,null,null,"19-20","Manufacture of coke, chemicals and refined petroleum and chemical products",null,":",null,":",null,":",null,":",null,":",null,":",null,":",null,":",null,":",null,":",null,":",null,{"$f":"IF(COUNT(J72,N72,P72,R72,T72,V72,AD72)=7,SUM(J72,N72,P72,R72,T72,V72,AD72),\":\")","v":":"}]
["S11_S12","C21-C23","EPS_P51C",null,null,null,"21-23","Manufacture of pharmaceuticals, rubber, plastic and other non-metallic products",null,":",null,":",null,":",null,":",null,":",null,":",null,":",null,":",null,":",null,":",null,":",null,":"]
["S11_S12","C24","EPS_P51C",null,null,null,24,"Manufacture of basic metals",null,":",null,":",null,":",null,":",null,":",null,":",null,":",null,":",null,":",null,":",null,":",null,":"]
["S11_S12","C25-C30","EPS_P51C",null,null,null,"25-30","Manufacture of fabricated metal products, including machinery and equipment",null,":",null,":",null,":",null,":",null,":",null,":",null,":",null,":",null,":",null,":",null,":",null,":"]
["S11_S12","C13-C16_C18_C31-C33","EPS_P51C",null,null,null,"13-16, 18, 31-33","Other manufacturing activities",null,":",null,":",null,":",null,":",null,":",null,":",null,":",null,":",null,":",null,":",null,":",null,":"]
["S11_S12","C10-C12","EPS_P1_ANCESA",null,"( P1_ANC_ESA.3bA ) Ancillary EP output (ESA - compatible valuation) ((P2_NEPS.3bA) + (D1.3bA) +(P51C.3bA) + (D29-D39.3bA))",null,"10-12'","Manufacture of food, beverages and tobacco products",null,":",null,":",null,":",null,":",null,":",null,":",null,":",null,":",null,":",null,":",null,":",null,":"]
["S11_S12","C17","EPS_P1_ANCESA",null,null,null,17,"Manufacture of paper and paper products",null,":",null,":",null,":",null,":",null,":",null,":",null,":",null,":",null,":",null,":",null,":",null,":"]
["S11_S12","C19_C20","EPS_P1_ANCESA",null,null,null,"19-20","Manufacture of coke, chemicals and refined petroleum and chemical products",null,":",null,":",null,":",null,":",null,":",null,":",null,":",null,":",null,":",null,":",null,":",null,":"]
["S11_S12","C21-C23","EPS_P1_ANCESA",null,null,null,"21-23","Manufacture of pharmaceuticals, rubber, plastic and other non-metallic products",null,":",null,":",null,":",null,":",null,":",null,":",null,":",null,":",null,":",null,":",null,":",null,":"]
["S11_S12","C24","EPS_P1_ANCESA",null,null,null,24,"Manufacture of basic metals",null,":",null,":",null,":",null,":",null,":",null,":",null,":",null,":",null,":",null,":",null,":",null,":"]
["S11_S12","C25-C30","EPS_P1_ANCESA",null,null,null,"25-30","Manufacture of fabricated metal products, including machinery and equipment",null,":",null,":",null,":",null,":",null,":",null,":",null,":",null,":",null,":",null,":",null,":",null,":"]
["S11_S12","C13-C16_C18_C31-C33","EPS_P1_ANCESA",null,null,null,"13-16, 18, 31-33","Other manufacturing activities",null,":",null,":",null,":",null,":",null,":",null,":",null,":",null,":",null,":",null,":",null,":",null,":"]
["S11_S12","C10-C12","EPS_REC_BYPR",null,"( RNO.3bA ) Related non-EP output",null,"10-12'","Manufacture of food, beverages and tobacco products",null,":",null,":",null,":",null,":",null,":",null,":",null,":",null,":",null,":",null,":",null,":",null,":"]
["S11_S12","C17","EPS_REC_BYPR",null,null,null,17,"Manufacture of paper and paper products",null,":",null,":",null,":",null,":",null,":",null,":",null,":",null,":",null,":",null,":",null,":",null,":"]
["S11_S12","C19_C20","EPS_REC_BYPR",null,null,null,"19-20","Manufacture of coke, chemicals and refined petroleum and chemical products",null,":",null,":",null,":",null,":",null,":",null,":",null,":",null,":",null,":",null,":",null,":",null,":"]
["S11_S12","C21-C23","EPS_REC_BYPR",null,null,null,"21-23","Manufacture of pharmaceuticals, rubber, plastic and other non-metallic products",null,":",null,":",null,":",null,":",null,":",null,":",null,":",null,":",null,":",null,":",null,":",null,":"]
["S11_S12","C24","EPS_REC_BYPR",null,null,null,24,"Manufacture of basic metals",null,":",null,":",null,":",null,":",null,":",null,":",null,":",null,":",null,":",null,":",null,":",null,":"]
["S11_S12","C25-C30","EPS_REC_BYPR",null,null,null,"25-30","Manufacture of fabricated metal products, including machinery and equipment",null,":",null,":",null,":",null,":",null,":",null,":",null,":",null,":",null,":",null,":",null,":",null,":"]
["S11_S12","C13-C16_C18_C31-C33","EPS_REC_BYPR",null,null,null,"13-16, 18, 31-33","Other manufacturing activities",null,":",null,":",null,":",null,":",null,":",null,":",null,":",null,":",null,":",null,":",null,":",null,":"]
["S11_S12","C10-C12","TOT_P2_EPS","Transactions as users of EP services (ancillary production of EP services and other production)","( P2_EPS_EXT.3bA ) Total intermediate consumption of EP services (for production of EP services and for other production)",null,"10-12'","Manufacture of food, beverages and tobacco products",null,":",null,":",null,":",null,":",null,":",null,":",null,":",null,":",null,":",null,":",null,":",null,":"]
["S11_S12","C17","TOT_P2_EPS",null,"(P2_EPS_EXT.3x: please consider the explanatory notes - click here)",null,17,"Manufacture of paper and paper products",null,":",null,":",null,":",null,":",null,":",null,":",null,":",null,":",null,":",null,":",null,":",null,":"]
["S11_S12","C19_C20","TOT_P2_EPS",null,null,null,"19-20","Manufacture of coke, chemicals and refined petroleum and chemical products",null,":",null,":",null,":",null,":",null,":",null,":",null,":",null,":",null,":",null,":",null,":",null,":"]
["S11_S12","C21-C23","TOT_P2_EPS",null,null,null,"21-23","Manufacture of pharmaceuticals, rubber, plastic and other non-metallic products",null,":",null,":",null,":",null,":",null,":",null,":",null,":",null,":",null,":",null,":",null,":",null,":"]
["S11_S12","C24","TOT_P2_EPS",null,null,null,24,"Manufacture of basic metals",null,":",null,":",null,":",null,":",null,":",null,":",null,":",null,":",null,":",null,":",null,":",null,":"]
["S11_S12","C25-C30","TOT_P2_EPS",null,null,null,"25-30","Manufacture of fabricated metal products, including machinery and equipment",null,":",null,":",null,":",null,":",null,":",null,":",null,":",null,":",null,":",null,":",null,":",null,":"]
["S11_S12","C13-C16_C18_C31-C33","TOT_P2_EPS",null,null,null,"13-16, 18, 31-33","Other manufacturing activities",null,":",null,":",null,":",null,":",null,":",null,":",null,":",null,":",null,":",null,":",null,":",null,":"]
["S11_S12","C10-C12","EPS_EMP","Transactions of producers of ancillary EP services","( EMP.3bA ) Employment (full time equivalent)",null,"10-12'","Manufacture of food, beverages and tobacco products",null,":",null,":",null,":",null,":",null,":",null,":",null,":",null,":",null,":",null,":",null,":",null,":"]
["S11_S12","C17","EPS_EMP",null,null,null,17,"Manufacture of paper and paper products",null,":",null,":",null,":",null,":",null,":",null,":",null,":",null,":",null,":",null,":",null,":",null,":"]
["S11_S12","C19_C20","EPS_EMP",null,null,null,"19-20","Manufacture of coke, chemicals and refined petroleum and chemical products",null,":",null,":",null,":",null,":",null,":",null,":",null,":",null,":",null,":",null,":",null,":",null,":"]
["S11_S12","C21-C23","EPS_EMP",null,null,null,"21-23","Manufacture of pharmaceuticals, rubber, plastic and other non-metallic products",null,":",null,":",null,":",null,":",null,":",null,":",null,":",null,":",null,":",null,":",null,":",null,":"]
["S11_S12","C24","EPS_EMP",null,null,null,24,"Manufacture of basic metals",null,":",null,":",null,":",null,":",null,":",null,":",null,":",null,":",null,":",null,":",null,":",null,":"]
["S11_S12","C25-C30","EPS_EMP",null,null,null,"25-30","Manufacture of fabricated metal products, including machinery and equipment",null,":",null,":",null,":",null,":",null,":",null,":",null,":",null,":",null,":",null,":",null,":",null,":"]
["S11_S12","C13-C16_C18_C31-C33","EPS_EMP",null,null,null,"13-16, 18, 31-33","Other manufacturing activities",null,":",null,":",null,":",null,":",null,":",null,":",null,":",null,":",null,":",null,":",null,":",null,{"$f":"IF(COUNT(J104,N104,P104,R104,T104,V104,AD104)=7,SUM(J104,N104,P104,R104,T104,V104,AD104),\":\")","v":":"}]

{"sheet":"3b_Add_2030","index":32,"n_rows":104,"n_cols":32,"rows_kept":104,"cut":false,"hidden":true,"merged":[[12,7,12,8],[13,4,13,5],[13,7,13,8],[14,7,14,8],[15,7,15,8],[16,7,16,8],[0,4,0,8],[0,9,0,16],[1,4,1,8],[1,9,1,32],[2,9,2,32],[3,9,4,10],[3,11,4,12],[3,13,4,14],[3,15,4,16],[3,17,4,18],[3,31,4,32],[4,4,4,5],[3,21,4,22],[3,23,4,24],[3,25,4,26],[3,27,4,28],[3,29,4,30],[3,19,4,20],[22,7,22,8],[23,7,23,8],[24,7,24,8],[25,7,25,8],[26,7,26,8],[28,7,28,8],[27,4,27,5],[27,7,27,8],[17,7,17,8],[18,7,18,8],[19,7,19,8],[20,4,20,5],[20,7,20,8],[21,7,21,8],[34,4,34,5],[34,7,34,8],[35,4,35,5],[35,7,35,8],[36,7,36,8],[37,7,37,8],[29,7,29,8],[30,7,30,8],[31,7,31,8],[32,7,32,8],[33,7,33,8],[43,7,43,8],[44,7,44,8],[45,7,45,8],[46,7,46,8],[47,7,47,8],[48,4,48,5],[48,7,48,8],[38,7,38,8],[39,7,39,8],[40,7,40,8],[41,4,41,5],[41,7,41,8],[42,7,42,8],[55,4,55,5],[55,7,55,8],[56,7,56,8],[57,7,57,8],[58,7,58,8],[59,7,59,8],[49,7,49,8],[50,7,50,8],[51,7,51,8],[52,7,52,8],[53,7,53,8],[54,7,54,8],[65,7,65,8],[66,7,66,8],[67,7,67,8],[68,7,68,8],[69,4,69,5],[69,7,69,8],[60,7,60,8],[61,7,61,8],[62,4,62,5],[62,7,62,8],[63,7,63,8],[64,7,64,8],[76,4,76,5],[76,7,76,8],[77,7,77,8],[78,7,78,8],[79,7,79,8],[80,7,80,8],[70,7,70,8],[71,7,71,8],[72,7,72,8],[73,7,73,8],[74,7,74,8],[75,7,75,8],[86,7,86,8],[87,7,87,8],[88,7,88,8],[89,7,89,8],[90,3,96,3],[90,4,90,5],[90,7,90,8],[91,4,91,5],[91,7,91,8],[92,7,92,8],[6,3,89,3],[6,4,6,5],[6,7,6,8],[7,7,7,8],[8,7,8,8],[9,7,9,8],[10,7,10,8],[11,7,11,8],[81,7,81,8],[82,7,82,8],[83,4,83,5],[83,7,83,8],[84,7,84,8],[85,7,85,8],[101,7,101,8],[102,7,102,8],[103,7,103,8],[93,7,93,8],[94,7,94,8],[95,7,95,8],[96,7,96,8],[97,3,103,3],[97,4,97,5],[97,7,97,8],[98,7,98,8],[99,7,99,8],[100,7,100,8]]}
[null,null,null,null,{"$f":"Cover!$B$21","v":"QUESTIONNAIRE ON ENVIRONMENTAL PROTECTION EXPENDITURE ACCOUNTS"},null,null,null,null,"Table 3b Add.: Detailed Manufacturing Industries"]
[null,null,null,null,{"$f":"E1","v":"QUESTIONNAIRE ON ENVIRONMENTAL PROTECTION EXPENDITURE ACCOUNTS"},null,null,null,null,{"$f":"J1 & \" - \" & I5","v":"Table 3b Add.: Detailed Manufacturing Industries - 2030"}]
[null,null,null,null,null,null,null,null,null,"Mandatory and voluntary variables and environmental domains - please fill in as much as possible"]
[null,null,null,null,"Country/Unit",{"$f":"IFERROR(Cover!C16,\"\")","v":""},{"$f":"\"\"&Cover!B16","v":""},null,{"$f":"Cover!B17","v":"Million units of national currency"},"CEPA 1",null,"of which CEPA 1.1.2 and 1.2.2 Climate change",null,"CEPA 2",null,"CEPA 3",null,"CEPA 4",null,"CEPA 5",null,"CEPA 6",null,"CEPA 7",null,"CEPA 8",null,"CEPA 9",null,"Sum of CEPA 7+8+9",null,"TOTAL"]
[null,null,null,null,"Expenditure",null,null,"YEAR",2030,null,null,null,null,null,null,null,null,null,null,null,null,null,null,null,null,null,null,null,null,null,null,"Landscape"]
[null,null,null,null,null,null,null,null,null,"CEPA1",null,"CEPA112_122",null,"CEPA2",null,"CEPA3",null,"CEPA4",null,"CEPA5",null,"CEPA6",null,"CEPA7",null,"CEPA8",null,"CEPA9",null,"CEPA7-9",null,"TOT_CEPA"]
["S11_S12","C10-C12","EPS_P51G_NP","Transactions of producers of ancillary EP services","( P51G_NP.3bA ) Gross fixed capital formation and acquisition less disposals of non-financial, non-produced assets",null,"10-12","Manufacture of food, beverages and tobacco products",null,":",null,":",null,":",null,":",null,":",null,":",null,":",null,":",null,":",null,":",null,":",null,{"$f":"IF(COUNT(J7,N7,P7,R7,T7,V7,AD7)=7,SUM(J7,N7,P7,R7,T7,V7,AD7),\":\")","v":":"}]
["S11_S12","C17","EPS_P51G_NP",null,null,null,17,"Manufacture of paper and paper products",null,":",null,":",null,":",null,":",null,":",null,":",null,":",null,":",null,":",null,":",null,":",null,{"$f":"IF(COUNT(J8,N8,P8,R8,T8,V8,AD8)=7,SUM(J8,N8,P8,R8,T8,V8,AD8),\":\")","v":":"}]
["S11_S12","C19_C20","EPS_P51G_NP",null,null,null,"19-20","Manufacture of coke, chemicals and refined petroleum and chemical products",null,":",null,":",null,":",null,":",null,":",null,":",null,":",null,":",null,":",null,":",null,":",null,":"]
["S11_S12","C21-C23","EPS_P51G_NP",null,null,null,"21-23","Manufacture of pharmaceuticals, rubber, plastic and other non-metallic products",null,":",null,":",null,":",null,":",null,":",null,":",null,":",null,":",null,":",null,":",null,":",null,":"]
["S11_S12","C24","EPS_P51G_NP",null,null,null,24,"Manufacture of basic metals",null,":",null,":",null,":",null,":",null,":",null,":",null,":",null,":",null,":",null,":",null,":",null,":"]
["S11_S12","C25-C30","EPS_P51G_NP",null,null,null,"25-30","Manufacture of fabricated metal products, including machinery and equipment",null,":",null,":",null,":",null,":",null,":",null,":",null,":",null,":",null,":",null,":",null,":",null,":"]
["S11_S12","C13-C16_C18_C31-C33","EPS_P51G_NP",null,null,null,"13-16, 18, 31-33","Other manufacturing activities",null,":",null,":",null,":",null,":",null,":",null,":",null,":",null,":",null,":",null,":",null,":",null,":"]
["S11_S12","C10-C12","EPS_INV_PT",null,"( INV_EOP.3bA ) GFCF on specific EP fixed assets (end-of-pipe technologies)",null,"10-12'","Manufacture of food, beverages and tobacco products",null,":",null,":",null,":",null,":",null,":",null,":",null,":",null,":",null,":",null,":",null,":",null,":"]
["S11_S12","C17","EPS_INV_PT",null,null,null,17,"Manufacture of paper and paper products",null,":",null,":",null,":",null,":",null,":",null,":",null,":",null,":",null,":",null,":",null,":",null,":"]
["S11_S12","C19_C20","EPS_INV_PT",null,null,null,"19-20","Manufacture of coke, chemicals and refined petroleum and chemical products",null,":",null,":",null,":",null,":",null,":",null,":",null,":",null,":",null,":",null,":",null,":",null,":"]
["S11_S12","C21-C23","EPS_INV_PT",null,null,null,"21-23","Manufacture of pharmaceuticals, rubber, plastic and other non-metallic products",null,":",null,":",null,":",null,":",null,":",null,":",null,":",null,":",null,":",null,":",null,":",null,":"]
["S11_S12","C24","EPS_INV_PT",null,null,null,24,"Manufacture of basic metals",null,":",null,":",null,":",null,":",null,":",null,":",null,":",null,":",null,":",null,":",null,":",null,":"]
["S11_S12","C25-C30","EPS_INV_PT",null,null,null,"25-30","Manufacture of fabricated metal products, including machinery and equipment",null,":",null,":",null,":",null,":",null,":",null,":",null,":",null,":",null,":",null,":",null,":",null,":"]
["S11_S12","C13-C16_C18_C31-C33","EPS_INV_PT",null,null,null,"13-16, 18, 31-33","Other manufacturing activities",null,":",null,":",null,":",null,":",null,":",null,":",null,":",null,":",null,":",null,":",null,":",null,":"]
["S11_S12","C10-C12","EPS_INV_PP",null,"( INV_IT.3bA ) GFCF on cleaner EP fixed assets (integrated technologies)",null,"10-12'","Manufacture of food, beverages and tobacco products",null,":",null,":",null,":",null,":",null,":",null,":",null,":",null,":",null,":",null,":",null,":",null,":"]
["S11_S12","C17","EPS_INV_PP",null,null,null,17,"Manufacture of paper and paper products",null,":",null,":",null,":",null,":",null,":",null,":",null,":",null,":",null,":",null,":",null,":",null,":"]
["S11_S12","C19_C20","EPS_INV_PP",null,null,null,"19-20","Manufacture of coke, chemicals and refined petroleum and chemical products",null,":",null,":",null,":",null,":",null,":",null,":",null,":",null,":",null,":",null,":",null,":",null,":"]
["S11_S12","C21-C23","EPS_INV_PP",null,null,null,"21-23","Manufacture of pharmaceuticals, rubber, plastic and other non-metallic products",null,":",null,":",null,":",null,":",null,":",null,":",null,":",null,":",null,":",null,":",null,":",null,":"]
["S11_S12","C24","EPS_INV_PP",null,null,null,24,"Manufacture of basic metals",null,":",null,":",null,":",null,":",null,":",null,":",null,":",null,":",null,":",null,":",null,":",null,":"]
["S11_S12","C25-C30","EPS_INV_PP",null,null,null,"25-30","Manufacture of fabricated metal products, including machinery and equipment",null,":",null,":",null,":",null,":",null,":",null,":",null,":",null,":",null,":",null,":",null,":",null,":"]
["S11_S12","C13-C16_C18_C31-C33","EPS_INV_PP",null,null,null,"13-16, 18, 31-33","Other manufacturing activities",null,":",null,":",null,":",null,":",null,":",null,":",null,":",null,":",null,":",null,":",null,":",null,":"]
["S11_S12","C10-C12","EPS_P2",null,"( P2.3bA ) Total intermediate consumption",null,"10-12'","Manufacture of food, beverages and tobacco products",null,":",null,":",null,":",null,":",null,":",null,":",null,":",null,":",null,":",null,":",null,":",null,":"]
["S11_S12","C17","EPS_P2",null,null,null,17,"Manufacture of paper and paper products",null,":",null,":",null,":",null,":",null,":",null,":",null,":",null,":",null,":",null,":",null,":",null,":"]
["S11_S12","C19_C20","EPS_P2",null,null,null,"19-20","Manufacture of coke, chemicals and refined petroleum and chemical products",null,":",null,":",null,":",null,":",null,":",null,":",null,":",null,":",null,":",null,":",null,":",null,":"]
["S11_S12","C21-C23","EPS_P2",null,null,null,"21-23","Manufacture of pharmaceuticals, rubber, plastic and other non-metallic products",null,":",null,":",null,":",null,":",null,":",null,":",null,":",null,":",null,":",null,":",null,":",null,":"]
["S11_S12","C24","EPS_P2",null,null,null,24,"Manufacture of basic metals",null,":",null,":",null,":",null,":",null,":",null,":",null,":",null,":",null,":",null,":",null,":",null,":"]
["S11_S12","C25-C30","EPS_P2",null,null,null,"25-30","Manufacture of fabricated metal products, including machinery and equipment",null,":",null,":",null,":",null,":",null,":",null,":",null,":",null,":",null,":",null,":",null,":",null,":"]
["S11_S12","C13-C16_C18_C31-C33","EPS_P2",null,null,null,"13-16, 18, 31-33","Other manufacturing activities",null,":",null,":",null,":",null,":",null,":",null,":",null,":",null,":",null,":",null,":",null,":",null,":"]
["S11_S12","C10-C12","EPS_P2_EPS",null,"( P2_EPS.3bA )  Intermediate consumption of EP services for ancillary production of EP services ",null,"10-12'","Manufacture of food, beverages and tobacco products",null,":",null,":",null,":",null,":",null,":",null,":",null,":",null,":",null,":",null,":",null,":",null,":"]
["S11_S12","C17","EPS_P2_EPS",null,"(P2_EPS.3x: please consider the explanatory notes - click here)",null,17,"Manufacture of paper and paper products",null,":",null,":",null,":",null,":",null,":",null,":",null,":",null,":",null,":",null,":",null,":",null,":"]
["S11_S12","C19_C20","EPS_P2_EPS",null,null,null,"19-20","Manufacture of coke, chemicals and refined petroleum and chemical products",null,":",null,":",null,":",null,":",null,":",null,":",null,":",null,":",null,":",null,":",null,":",null,":"]
["S11_S12","C21-C23","EPS_P2_EPS",null,null,null,"21-23","Manufacture of pharmaceuticals, rubber, plastic and other non-metallic products",null,":",null,":",null,":",null,":",null,":",null,":",null,":",null,":",null,":",null,":",null,":",null,":"]
["S11_S12","C24","EPS_P2_EPS",null,null,null,24,"Manufacture of basic metals",null,":",null,":",null,":",null,":",null,":",null,":",null,":",null,":",null,":",null,":",null,":",null,":"]
["S11_S12","C25-C30","EPS_P2_EPS",null,null,null,"25-30","Manufacture of fabricated metal products, including machinery and equipment",null,":",null,":",null,":",null,":",null,":",null,":",null,":",null,":",null,":",null,":",null,":",null,":"]
["S11_S12","C13-C16_C18_C31-C33","EPS_P2_EPS",null,null,null,"13-16, 18, 31-33","Other manufacturing activities",null,":",null,":",null,":",null,":",null,":",null,":",null,":",null,":",null,":",null,":",null,":",null,":"]
["S11_S12","C10-C12","EPS_P2_NEPS",null,"( P2_NEPS.3bA ) Intermediate consumption (excluding EP services)",null,"10-12'","Manufacture of food, beverages and tobacco products",null,":",null,":",null,":",null,":",null,":",null,":",null,":",null,":",null,":",null,":",null,":",null,":"]
["S11_S12","C17","EPS_P2_NEPS",null,null,null,17,"Manufacture of paper and paper products",null,":",null,":",null,":",null,":",null,":",null,":",null,":",null,":",null,":",null,":",null,":",null,":"]
["S11_S12","C19_C20","EPS_P2_NEPS",null,null,null,"19-20","Manufacture of coke, chemicals and refined petroleum and chemical products",null,":",null,":",null,":",null,":",null,":",null,":",null,":",null,":",null,":",null,":",null,":",null,":"]
["S11_S12","C21-C23","EPS_P2_NEPS",null,null,null,"21-23","Manufacture of pharmaceuticals, rubber, plastic and other non-metallic products",null,":",null,":",null,":",null,":",null,":",null,":",null,":",null,":",null,":",null,":",null,":",null,":"]
["S11_S12","C24","EPS_P2_NEPS",null,null,null,24,"Manufacture of basic metals",null,":",null,":",null,":",null,":",null,":",null,":",null,":",null,":",null,":",null,":",null,":",null,":"]
["S11_S12","C25-C30","EPS_P2_NEPS",null,null,null,"25-30","Manufacture of fabricated metal products, including machinery and equipment",null,":",null,":",null,":",null,":",null,":",null,":",null,":",null,":",null,":",null,":",null,":",null,":"]
["S11_S12","C13-C16_C18_C31-C33","EPS_P2_NEPS",null,null,null,"13-16, 18, 31-33","Other manufacturing activities",null,":",null,":",null,":",null,":",null,":",null,":",null,":",null,":",null,":",null,":",null,":",null,":"]
["S11_S12","C10-C12","EPS_D1",null,"( D1.3bA ) Compensation of employees",null,"10-12'","Manufacture of food, beverages and tobacco products",null,":",null,":",null,":",null,":",null,":",null,":",null,":",null,":",null,":",null,":",null,":",null,":"]
["S11_S12","C17","EPS_D1",null,null,null,17,"Manufacture of paper and paper products",null,":",null,":",null,":",null,":",null,":",null,":",null,":",null,":",null,":",null,":",null,":",null,":"]
["S11_S12","C19_C20","EPS_D1",null,null,null,"19-20","Manufacture of coke, chemicals and refined petroleum and chemical products",null,":",null,":",null,":",null,":",null,":",null,":",null,":",null,":",null,":",null,":",null,":",null,":"]
["S11_S12","C21-C23","EPS_D1",null,null,null,"21-23","Manufacture of pharmaceuticals, rubber, plastic and other non-metallic products",null,":",null,":",null,":",null,":",null,":",null,":",null,":",null,":",null,":",null,":",null,":",null,":"]
["S11_S12","C24","EPS_D1",null,null,null,24,"Manufacture of basic metals",null,":",null,":",null,":",null,":",null,":",null,":",null,":",null,":",null,":",null,":",null,":",null,":"]
["S11_S12","C25-C30","EPS_D1",null,null,null,"25-30","Manufacture of fabricated metal products, including machinery and equipment",null,":",null,":",null,":",null,":",null,":",null,":",null,":",null,":",null,":",null,":",null,":",null,":"]
["S11_S12","C13-C16_C18_C31-C33","EPS_D1",null,null,null,"13-16, 18, 31-33","Other manufacturing activities",null,":",null,":",null,":",null,":",null,":",null,":",null,":",null,":",null,":",null,":",null,":",null,":"]
["S11_S12","C10-C12","EPS_P1_ANC",null,"( P1_ANC.3bA ) Ancillary EP output (simplified valuation legally acceptable) ((P2_NEPS.3bA) + (D1.3bA))",null,"10-12'","Manufacture of food, beverages and tobacco products",null,":",null,":",null,":",null,":",null,":",null,":",null,":",null,":",null,":",null,":",null,":",null,":"]
["S11_S12","C17","EPS_P1_ANC",null,null,null,17,"Manufacture of paper and paper products",null,":",null,":",null,":",null,":",null,":",null,":",null,":",null,":",null,":",null,":",null,":",null,":"]
["S11_S12","C19_C20","EPS_P1_ANC",null,null,null,"19-20","Manufacture of coke, chemicals and refined petroleum and chemical products",null,":",null,":",null,":",null,":",null,":",null,":",null,":",null,":",null,":",null,":",null,":",null,":"]
["S11_S12","C21-C23","EPS_P1_ANC",null,null,null,"21-23","Manufacture of pharmaceuticals, rubber, plastic and other non-metallic products",null,":",null,":",null,":",null,":",null,":",null,":",null,":",null,":",null,":",null,":",null,":",null,":"]
["S11_S12","C24","EPS_P1_ANC",null,null,null,24,"Manufacture of basic metals",null,":",null,":",null,":",null,":",null,":",null,":",null,":",null,":",null,":",null,":",null,":",null,":"]
["S11_S12","C25-C30","EPS_P1_ANC",null,null,null,"25-30","Manufacture of fabricated metal products, including machinery and equipment",null,":",null,":",null,":",null,":",null,":",null,":",null,":",null,":",null,":",null,":",null,":",null,":"]
["S11_S12","C13-C16_C18_C31-C33","EPS_P1_ANC",null,null,null,"13-16, 18, 31-33","Other manufacturing activities",null,":",null,":",null,":",null,":",null,":",null,":",null,":",null,":",null,":",null,":",null,":",null,":"]
["S11_S12","C10-C12","EPS_D29X39",null,"( D29-D39.3bA ) Other taxes less subsidies on production",null,"10-12'","Manufacture of food, beverages and tobacco products",null,":",null,":",null,":",null,":",null,":",null,":",null,":",null,":",null,":",null,":",null,":",null,":"]
["S11_S12","C17","EPS_D29X39",null,null,null,17,"Manufacture of paper and paper products",null,":",null,":",null,":",null,":",null,":",null,":",null,":",null,":",null,":",null,":",null,":",null,":"]
["S11_S12","C19_C20","EPS_D29X39",null,null,null,"19-20","Manufacture of coke, chemicals and refined petroleum and chemical products",null,":",null,":",null,":",null,":",null,":",null,":",null,":",null,":",null,":",null,":",null,":",null,":"]
["S11_S12","C21-C23","EPS_D29X39",null,null,null,"21-23","Manufacture of pharmaceuticals, rubber, plastic and other non-metallic products",null,":",null,":",null,":",null,":",null,":",null,":",null,":",null,":",null,":",null,":",null,":",null,":"]
["S11_S12","C24","EPS_D29X39",null,null,null,24,"Manufacture of basic metals",null,":",null,":",null,":",null,":",null,":",null,":",null,":",null,":",null,":",null,":",null,":",null,":"]
["S11_S12","C25-C30","EPS_D29X39",null,null,null,"25-30","Manufacture of fabricated metal products, including machinery and equipment",null,":",null,":",null,":",null,":",null,":",null,":",null,":",null,":",null,":",null,":",null,":",null,":"]
["S11_S12","C13-C16_C18_C31-C33","EPS_D29X39",null,null,null,"13-16, 18, 31-33","Other manufacturing activities",null,":",null,":",null,":",null,":",null,":",null,":",null,":",null,":",null,":",null,":",null,":",null,":"]
["S11_S12","C10-C12","EPS_P51C",null,"( P51C.3bA ) Consumption of fixed capital",null,"10-12'","Manufacture of food, beverages and tobacco products",null,":",null,":",null,":",null,":",null,":",null,":",null,":",null,":",null,":",null,":",null,":",null,":"]
["S11_S12","C17","EPS_P51C",null,null,null,17,"Manufacture of paper and paper products",null,":",null,":",null,":",null,":",null,":",null,":",null,":",null,":",null,":",null,":",null,":",null,":"]
["S11_S12","C19_C20","EPS_P51C",null,null,null,"19-20","Manufacture of coke, chemicals and refined petroleum and chemical products",null,":",null,":",null,":",null,":",null,":",null,":",null,":",null,":",null,":",null,":",null,":",null,{"$f":"IF(COUNT(J72,N72,P72,R72,T72,V72,AD72)=7,SUM(J72,N72,P72,R72,T72,V72,AD72),\":\")","v":":"}]
["S11_S12","C21-C23","EPS_P51C",null,null,null,"21-23","Manufacture of pharmaceuticals, rubber, plastic and other non-metallic products",null,":",null,":",null,":",null,":",null,":",null,":",null,":",null,":",null,":",null,":",null,":",null,":"]
["S11_S12","C24","EPS_P51C",null,null,null,24,"Manufacture of basic metals",null,":",null,":",null,":",null,":",null,":",null,":",null,":",null,":",null,":",null,":",null,":",null,":"]
["S11_S12","C25-C30","EPS_P51C",null,null,null,"25-30","Manufacture of fabricated metal products, including machinery and equipment",null,":",null,":",null,":",null,":",null,":",null,":",null,":",null,":",null,":",null,":",null,":",null,":"]
["S11_S12","C13-C16_C18_C31-C33","EPS_P51C",null,null,null,"13-16, 18, 31-33","Other manufacturing activities",null,":",null,":",null,":",null,":",null,":",null,":",null,":",null,":",null,":",null,":",null,":",null,":"]
["S11_S12","C10-C12","EPS_P1_ANCESA",null,"( P1_ANC_ESA.3bA ) Ancillary EP output (ESA - compatible valuation) ((P2_NEPS.3bA) + (D1.3bA) +(P51C.3bA) + (D29-D39.3bA))",null,"10-12'","Manufacture of food, beverages and tobacco products",null,":",null,":",null,":",null,":",null,":",null,":",null,":",null,":",null,":",null,":",null,":",null,":"]
["S11_S12","C17","EPS_P1_ANCESA",null,null,null,17,"Manufacture of paper and paper products",null,":",null,":",null,":",null,":",null,":",null,":",null,":",null,":",null,":",null,":",null,":",null,":"]
["S11_S12","C19_C20","EPS_P1_ANCESA",null,null,null,"19-20","Manufacture of coke, chemicals and refined petroleum and chemical products",null,":",null,":",null,":",null,":",null,":",null,":",null,":",null,":",null,":",null,":",null,":",null,":"]
["S11_S12","C21-C23","EPS_P1_ANCESA",null,null,null,"21-23","Manufacture of pharmaceuticals, rubber, plastic and other non-metallic products",null,":",null,":",null,":",null,":",null,":",null,":",null,":",null,":",null,":",null,":",null,":",null,":"]
["S11_S12","C24","EPS_P1_ANCESA",null,null,null,24,"Manufacture of basic metals",null,":",null,":",null,":",null,":",null,":",null,":",null,":",null,":",null,":",null,":",null,":",null,":"]
["S11_S12","C25-C30","EPS_P1_ANCESA",null,null,null,"25-30","Manufacture of fabricated metal products, including machinery and equipment",null,":",null,":",null,":",null,":",null,":",null,":",null,":",null,":",null,":",null,":",null,":",null,":"]
["S11_S12","C13-C16_C18_C31-C33","EPS_P1_ANCESA",null,null,null,"13-16, 18, 31-33","Other manufacturing activities",null,":",null,":",null,":",null,":",null,":",null,":",null,":",null,":",null,":",null,":",null,":",null,":"]
["S11_S12","C10-C12","EPS_REC_BYPR",null,"( RNO.3bA ) Related non-EP output",null,"10-12'","Manufacture of food, beverages and tobacco products",null,":",null,":",null,":",null,":",null,":",null,":",null,":",null,":",null,":",null,":",null,":",null,":"]
["S11_S12","C17","EPS_REC_BYPR",null,null,null,17,"Manufacture of paper and paper products",null,":",null,":",null,":",null,":",null,":",null,":",null,":",null,":",null,":",null,":",null,":",null,":"]
["S11_S12","C19_C20","EPS_REC_BYPR",null,null,null,"19-20","Manufacture of coke, chemicals and refined petroleum and chemical products",null,":",null,":",null,":",null,":",null,":",null,":",null,":",null,":",null,":",null,":",null,":",null,":"]
["S11_S12","C21-C23","EPS_REC_BYPR",null,null,null,"21-23","Manufacture of pharmaceuticals, rubber, plastic and other non-metallic products",null,":",null,":",null,":",null,":",null,":",null,":",null,":",null,":",null,":",null,":",null,":",null,":"]
["S11_S12","C24","EPS_REC_BYPR",null,null,null,24,"Manufacture of basic metals",null,":",null,":",null,":",null,":",null,":",null,":",null,":",null,":",null,":",null,":",null,":",null,":"]
["S11_S12","C25-C30","EPS_REC_BYPR",null,null,null,"25-30","Manufacture of fabricated metal products, including machinery and equipment",null,":",null,":",null,":",null,":",null,":",null,":",null,":",null,":",null,":",null,":",null,":",null,":"]
["S11_S12","C13-C16_C18_C31-C33","EPS_REC_BYPR",null,null,null,"13-16, 18, 31-33","Other manufacturing activities",null,":",null,":",null,":",null,":",null,":",null,":",null,":",null,":",null,":",null,":",null,":",null,":"]
["S11_S12","C10-C12","TOT_P2_EPS","Transactions as users of EP services (ancillary production of EP services and other production)","( P2_EPS_EXT.3bA ) Total intermediate consumption of EP services (for production of EP services and for other production)",null,"10-12'","Manufacture of food, beverages and tobacco products",null,":",null,":",null,":",null,":",null,":",null,":",null,":",null,":",null,":",null,":",null,":",null,":"]
["S11_S12","C17","TOT_P2_EPS",null,"(P2_EPS_EXT.3x: please consider the explanatory notes - click here)",null,17,"Manufacture of paper and paper products",null,":",null,":",null,":",null,":",null,":",null,":",null,":",null,":",null,":",null,":",null,":",null,":"]
["S11_S12","C19_C20","TOT_P2_EPS",null,null,null,"19-20","Manufacture of coke, chemicals and refined petroleum and chemical products",null,":",null,":",null,":",null,":",null,":",null,":",null,":",null,":",null,":",null,":",null,":",null,":"]
["S11_S12","C21-C23","TOT_P2_EPS",null,null,null,"21-23","Manufacture of pharmaceuticals, rubber, plastic and other non-metallic products",null,":",null,":",null,":",null,":",null,":",null,":",null,":",null,":",null,":",null,":",null,":",null,":"]
["S11_S12","C24","TOT_P2_EPS",null,null,null,24,"Manufacture of basic metals",null,":",null,":",null,":",null,":",null,":",null,":",null,":",null,":",null,":",null,":",null,":",null,":"]
["S11_S12","C25-C30","TOT_P2_EPS",null,null,null,"25-30","Manufacture of fabricated metal products, including machinery and equipment",null,":",null,":",null,":",null,":",null,":",null,":",null,":",null,":",null,":",null,":",null,":",null,":"]
["S11_S12","C13-C16_C18_C31-C33","TOT_P2_EPS",null,null,null,"13-16, 18, 31-33","Other manufacturing activities",null,":",null,":",null,":",null,":",null,":",null,":",null,":",null,":",null,":",null,":",null,":",null,":"]
["S11_S12","C10-C12","EPS_EMP","Transactions of producers of ancillary EP services","( EMP.3bA ) Employment (full time equivalent)",null,"10-12'","Manufacture of food, beverages and tobacco products",null,":",null,":",null,":",null,":",null,":",null,":",null,":",null,":",null,":",null,":",null,":",null,":"]
["S11_S12","C17","EPS_EMP",null,null,null,17,"Manufacture of paper and paper products",null,":",null,":",null,":",null,":",null,":",null,":",null,":",null,":",null,":",null,":",null,":",null,":"]
["S11_S12","C19_C20","EPS_EMP",null,null,null,"19-20","Manufacture of coke, chemicals and refined petroleum and chemical products",null,":",null,":",null,":",null,":",null,":",null,":",null,":",null,":",null,":",null,":",null,":",null,":"]
["S11_S12","C21-C23","EPS_EMP",null,null,null,"21-23","Manufacture of pharmaceuticals, rubber, plastic and other non-metallic products",null,":",null,":",null,":",null,":",null,":",null,":",null,":",null,":",null,":",null,":",null,":",null,":"]
["S11_S12","C24","EPS_EMP",null,null,null,24,"Manufacture of basic metals",null,":",null,":",null,":",null,":",null,":",null,":",null,":",null,":",null,":",null,":",null,":",null,":"]
["S11_S12","C25-C30","EPS_EMP",null,null,null,"25-30","Manufacture of fabricated metal products, including machinery and equipment",null,":",null,":",null,":",null,":",null,":",null,":",null,":",null,":",null,":",null,":",null,":",null,":"]
["S11_S12","C13-C16_C18_C31-C33","EPS_EMP",null,null,null,"13-16, 18, 31-33","Other manufacturing activities",null,":",null,":",null,":",null,":",null,":",null,":",null,":",null,":",null,":",null,":",null,":",null,{"$f":"IF(COUNT(J104,N104,P104,R104,T104,V104,AD104)=7,SUM(J104,N104,P104,R104,T104,V104,AD104),\":\")","v":":"}]

{"sheet":"3b_Add_2031","index":33,"n_rows":104,"n_cols":32,"rows_kept":104,"cut":false,"hidden":true,"merged":[[12,7,12,8],[13,4,13,5],[13,7,13,8],[14,7,14,8],[15,7,15,8],[16,7,16,8],[0,4,0,8],[0,9,0,16],[1,4,1,8],[1,9,1,32],[2,9,2,32],[3,9,4,10],[3,11,4,12],[3,13,4,14],[3,15,4,16],[3,17,4,18],[3,31,4,32],[4,4,4,5],[3,21,4,22],[3,23,4,24],[3,25,4,26],[3,27,4,28],[3,29,4,30],[3,19,4,20],[22,7,22,8],[23,7,23,8],[24,7,24,8],[25,7,25,8],[26,7,26,8],[28,7,28,8],[27,4,27,5],[27,7,27,8],[17,7,17,8],[18,7,18,8],[19,7,19,8],[20,4,20,5],[20,7,20,8],[21,7,21,8],[34,4,34,5],[34,7,34,8],[35,4,35,5],[35,7,35,8],[36,7,36,8],[37,7,37,8],[29,7,29,8],[30,7,30,8],[31,7,31,8],[32,7,32,8],[33,7,33,8],[43,7,43,8],[44,7,44,8],[45,7,45,8],[46,7,46,8],[47,7,47,8],[48,4,48,5],[48,7,48,8],[38,7,38,8],[39,7,39,8],[40,7,40,8],[41,4,41,5],[41,7,41,8],[42,7,42,8],[55,4,55,5],[55,7,55,8],[56,7,56,8],[57,7,57,8],[58,7,58,8],[59,7,59,8],[49,7,49,8],[50,7,50,8],[51,7,51,8],[52,7,52,8],[53,7,53,8],[54,7,54,8],[65,7,65,8],[66,7,66,8],[67,7,67,8],[68,7,68,8],[69,4,69,5],[69,7,69,8],[60,7,60,8],[61,7,61,8],[62,4,62,5],[62,7,62,8],[63,7,63,8],[64,7,64,8],[76,4,76,5],[76,7,76,8],[77,7,77,8],[78,7,78,8],[79,7,79,8],[80,7,80,8],[70,7,70,8],[71,7,71,8],[72,7,72,8],[73,7,73,8],[74,7,74,8],[75,7,75,8],[86,7,86,8],[87,7,87,8],[88,7,88,8],[89,7,89,8],[90,3,96,3],[90,4,90,5],[90,7,90,8],[91,4,91,5],[91,7,91,8],[92,7,92,8],[6,3,89,3],[6,4,6,5],[6,7,6,8],[7,7,7,8],[8,7,8,8],[9,7,9,8],[10,7,10,8],[11,7,11,8],[81,7,81,8],[82,7,82,8],[83,4,83,5],[83,7,83,8],[84,7,84,8],[85,7,85,8],[101,7,101,8],[102,7,102,8],[103,7,103,8],[93,7,93,8],[94,7,94,8],[95,7,95,8],[96,7,96,8],[97,3,103,3],[97,4,97,5],[97,7,97,8],[98,7,98,8],[99,7,99,8],[100,7,100,8]]}
[null,null,null,null,{"$f":"Cover!$B$21","v":"QUESTIONNAIRE ON ENVIRONMENTAL PROTECTION EXPENDITURE ACCOUNTS"},null,null,null,null,"Table 3b Add.: Detailed Manufacturing Industries"]
[null,null,null,null,{"$f":"E1","v":"QUESTIONNAIRE ON ENVIRONMENTAL PROTECTION EXPENDITURE ACCOUNTS"},null,null,null,null,{"$f":"J1 & \" - \" & I5","v":"Table 3b Add.: Detailed Manufacturing Industries - 2031"}]
[null,null,null,null,null,null,null,null,null,"Mandatory and voluntary variables and environmental domains - please fill in as much as possible"]
[null,null,null,null,"Country/Unit",{"$f":"IFERROR(Cover!C16,\"\")","v":""},{"$f":"\"\"&Cover!B16","v":""},null,{"$f":"Cover!B17","v":"Million units of national currency"},"CEPA 1",null,"of which CEPA 1.1.2 and 1.2.2 Climate change",null,"CEPA 2",null,"CEPA 3",null,"CEPA 4",null,"CEPA 5",null,"CEPA 6",null,"CEPA 7",null,"CEPA 8",null,"CEPA 9",null,"Sum of CEPA 7+8+9",null,"TOTAL"]
[null,null,null,null,"Expenditure",null,null,"YEAR",2031,null,null,null,null,null,null,null,null,null,null,null,null,null,null,null,null,null,null,null,null,null,null,"Landscape"]
[null,null,null,null,null,null,null,null,null,"CEPA1",null,"CEPA112_122",null,"CEPA2",null,"CEPA3",null,"CEPA4",null,"CEPA5",null,"CEPA6",null,"CEPA7",null,"CEPA8",null,"CEPA9",null,"CEPA7-9",null,"TOT_CEPA"]
["S11_S12","C10-C12","EPS_P51G_NP","Transactions of producers of ancillary EP services","( P51G_NP.3bA ) Gross fixed capital formation and acquisition less disposals of non-financial, non-produced assets",null,"10-12","Manufacture of food, beverages and tobacco products",null,":",null,":",null,":",null,":",null,":",null,":",null,":",null,":",null,":",null,":",null,":",null,{"$f":"IF(COUNT(J7,N7,P7,R7,T7,V7,AD7)=7,SUM(J7,N7,P7,R7,T7,V7,AD7),\":\")","v":":"}]
["S11_S12","C17","EPS_P51G_NP",null,null,null,17,"Manufacture of paper and paper products",null,":",null,":",null,":",null,":",null,":",null,":",null,":",null,":",null,":",null,":",null,":",null,{"$f":"IF(COUNT(J8,N8,P8,R8,T8,V8,AD8)=7,SUM(J8,N8,P8,R8,T8,V8,AD8),\":\")","v":":"}]
["S11_S12","C19_C20","EPS_P51G_NP",null,null,null,"19-20","Manufacture of coke, chemicals and refined petroleum and chemical products",null,":",null,":",null,":",null,":",null,":",null,":",null,":",null,":",null,":",null,":",null,":",null,":"]
["S11_S12","C21-C23","EPS_P51G_NP",null,null,null,"21-23","Manufacture of pharmaceuticals, rubber, plastic and other non-metallic products",null,":",null,":",null,":",null,":",null,":",null,":",null,":",null,":",null,":",null,":",null,":",null,":"]
["S11_S12","C24","EPS_P51G_NP",null,null,null,24,"Manufacture of basic metals",null,":",null,":",null,":",null,":",null,":",null,":",null,":",null,":",null,":",null,":",null,":",null,":"]
["S11_S12","C25-C30","EPS_P51G_NP",null,null,null,"25-30","Manufacture of fabricated metal products, including machinery and equipment",null,":",null,":",null,":",null,":",null,":",null,":",null,":",null,":",null,":",null,":",null,":",null,":"]
["S11_S12","C13-C16_C18_C31-C33","EPS_P51G_NP",null,null,null,"13-16, 18, 31-33","Other manufacturing activities",null,":",null,":",null,":",null,":",null,":",null,":",null,":",null,":",null,":",null,":",null,":",null,":"]
["S11_S12","C10-C12","EPS_INV_PT",null,"( INV_EOP.3bA ) GFCF on specific EP fixed assets (end-of-pipe technologies)",null,"10-12'","Manufacture of food, beverages and tobacco products",null,":",null,":",null,":",null,":",null,":",null,":",null,":",null,":",null,":",null,":",null,":",null,":"]
["S11_S12","C17","EPS_INV_PT",null,null,null,17,"Manufacture of paper and paper products",null,":",null,":",null,":",null,":",null,":",null,":",null,":",null,":",null,":",null,":",null,":",null,":"]
["S11_S12","C19_C20","EPS_INV_PT",null,null,null,"19-20","Manufacture of coke, chemicals and refined petroleum and chemical products",null,":",null,":",null,":",null,":",null,":",null,":",null,":",null,":",null,":",null,":",null,":",null,":"]
["S11_S12","C21-C23","EPS_INV_PT",null,null,null,"21-23","Manufacture of pharmaceuticals, rubber, plastic and other non-metallic products",null,":",null,":",null,":",null,":",null,":",null,":",null,":",null,":",null,":",null,":",null,":",null,":"]
["S11_S12","C24","EPS_INV_PT",null,null,null,24,"Manufacture of basic metals",null,":",null,":",null,":",null,":",null,":",null,":",null,":",null,":",null,":",null,":",null,":",null,":"]
["S11_S12","C25-C30","EPS_INV_PT",null,null,null,"25-30","Manufacture of fabricated metal products, including machinery and equipment",null,":",null,":",null,":",null,":",null,":",null,":",null,":",null,":",null,":",null,":",null,":",null,":"]
["S11_S12","C13-C16_C18_C31-C33","EPS_INV_PT",null,null,null,"13-16, 18, 31-33","Other manufacturing activities",null,":",null,":",null,":",null,":",null,":",null,":",null,":",null,":",null,":",null,":",null,":",null,":"]
["S11_S12","C10-C12","EPS_INV_PP",null,"( INV_IT.3bA ) GFCF on cleaner EP fixed assets (integrated technologies)",null,"10-12'","Manufacture of food, beverages and tobacco products",null,":",null,":",null,":",null,":",null,":",null,":",null,":",null,":",null,":",null,":",null,":",null,":"]
["S11_S12","C17","EPS_INV_PP",null,null,null,17,"Manufacture of paper and paper products",null,":",null,":",null,":",null,":",null,":",null,":",null,":",null,":",null,":",null,":",null,":",null,":"]
["S11_S12","C19_C20","EPS_INV_PP",null,null,null,"19-20","Manufacture of coke, chemicals and refined petroleum and chemical products",null,":",null,":",null,":",null,":",null,":",null,":",null,":",null,":",null,":",null,":",null,":",null,":"]
["S11_S12","C21-C23","EPS_INV_PP",null,null,null,"21-23","Manufacture of pharmaceuticals, rubber, plastic and other non-metallic products",null,":",null,":",null,":",null,":",null,":",null,":",null,":",null,":",null,":",null,":",null,":",null,":"]
["S11_S12","C24","EPS_INV_PP",null,null,null,24,"Manufacture of basic metals",null,":",null,":",null,":",null,":",null,":",null,":",null,":",null,":",null,":",null,":",null,":",null,":"]
["S11_S12","C25-C30","EPS_INV_PP",null,null,null,"25-30","Manufacture of fabricated metal products, including machinery and equipment",null,":",null,":",null,":",null,":",null,":",null,":",null,":",null,":",null,":",null,":",null,":",null,":"]
["S11_S12","C13-C16_C18_C31-C33","EPS_INV_PP",null,null,null,"13-16, 18, 31-33","Other manufacturing activities",null,":",null,":",null,":",null,":",null,":",null,":",null,":",null,":",null,":",null,":",null,":",null,":"]
["S11_S12","C10-C12","EPS_P2",null,"( P2.3bA ) Total intermediate consumption",null,"10-12'","Manufacture of food, beverages and tobacco products",null,":",null,":",null,":",null,":",null,":",null,":",null,":",null,":",null,":",null,":",null,":",null,":"]
["S11_S12","C17","EPS_P2",null,null,null,17,"Manufacture of paper and paper products",null,":",null,":",null,":",null,":",null,":",null,":",null,":",null,":",null,":",null,":",null,":",null,":"]
["S11_S12","C19_C20","EPS_P2",null,null,null,"19-20","Manufacture of coke, chemicals and refined petroleum and chemical products",null,":",null,":",null,":",null,":",null,":",null,":",null,":",null,":",null,":",null,":",null,":",null,":"]
["S11_S12","C21-C23","EPS_P2",null,null,null,"21-23","Manufacture of pharmaceuticals, rubber, plastic and other non-metallic products",null,":",null,":",null,":",null,":",null,":",null,":",null,":",null,":",null,":",null,":",null,":",null,":"]
["S11_S12","C24","EPS_P2",null,null,null,24,"Manufacture of basic metals",null,":",null,":",null,":",null,":",null,":",null,":",null,":",null,":",null,":",null,":",null,":",null,":"]
["S11_S12","C25-C30","EPS_P2",null,null,null,"25-30","Manufacture of fabricated metal products, including machinery and equipment",null,":",null,":",null,":",null,":",null,":",null,":",null,":",null,":",null,":",null,":",null,":",null,":"]
["S11_S12","C13-C16_C18_C31-C33","EPS_P2",null,null,null,"13-16, 18, 31-33","Other manufacturing activities",null,":",null,":",null,":",null,":",null,":",null,":",null,":",null,":",null,":",null,":",null,":",null,":"]
["S11_S12","C10-C12","EPS_P2_EPS",null,"( P2_EPS.3bA )  Intermediate consumption of EP services for ancillary production of EP services ",null,"10-12'","Manufacture of food, beverages and tobacco products",null,":",null,":",null,":",null,":",null,":",null,":",null,":",null,":",null,":",null,":",null,":",null,":"]
["S11_S12","C17","EPS_P2_EPS",null,"(P2_EPS.3x: please consider the explanatory notes - click here)",null,17,"Manufacture of paper and paper products",null,":",null,":",null,":",null,":",null,":",null,":",null,":",null,":",null,":",null,":",null,":",null,":"]
["S11_S12","C19_C20","EPS_P2_EPS",null,null,null,"19-20","Manufacture of coke, chemicals and refined petroleum and chemical products",null,":",null,":",null,":",null,":",null,":",null,":",null,":",null,":",null,":",null,":",null,":",null,":"]
["S11_S12","C21-C23","EPS_P2_EPS",null,null,null,"21-23","Manufacture of pharmaceuticals, rubber, plastic and other non-metallic products",null,":",null,":",null,":",null,":",null,":",null,":",null,":",null,":",null,":",null,":",null,":",null,":"]
["S11_S12","C24","EPS_P2_EPS",null,null,null,24,"Manufacture of basic metals",null,":",null,":",null,":",null,":",null,":",null,":",null,":",null,":",null,":",null,":",null,":",null,":"]
["S11_S12","C25-C30","EPS_P2_EPS",null,null,null,"25-30","Manufacture of fabricated metal products, including machinery and equipment",null,":",null,":",null,":",null,":",null,":",null,":",null,":",null,":",null,":",null,":",null,":",null,":"]
["S11_S12","C13-C16_C18_C31-C33","EPS_P2_EPS",null,null,null,"13-16, 18, 31-33","Other manufacturing activities",null,":",null,":",null,":",null,":",null,":",null,":",null,":",null,":",null,":",null,":",null,":",null,":"]
["S11_S12","C10-C12","EPS_P2_NEPS",null,"( P2_NEPS.3bA ) Intermediate consumption (excluding EP services)",null,"10-12'","Manufacture of food, beverages and tobacco products",null,":",null,":",null,":",null,":",null,":",null,":",null,":",null,":",null,":",null,":",null,":",null,":"]
["S11_S12","C17","EPS_P2_NEPS",null,null,null,17,"Manufacture of paper and paper products",null,":",null,":",null,":",null,":",null,":",null,":",null,":",null,":",null,":",null,":",null,":",null,":"]
["S11_S12","C19_C20","EPS_P2_NEPS",null,null,null,"19-20","Manufacture of coke, chemicals and refined petroleum and chemical products",null,":",null,":",null,":",null,":",null,":",null,":",null,":",null,":",null,":",null,":",null,":",null,":"]
["S11_S12","C21-C23","EPS_P2_NEPS",null,null,null,"21-23","Manufacture of pharmaceuticals, rubber, plastic and other non-metallic products",null,":",null,":",null,":",null,":",null,":",null,":",null,":",null,":",null,":",null,":",null,":",null,":"]
["S11_S12","C24","EPS_P2_NEPS",null,null,null,24,"Manufacture of basic metals",null,":",null,":",null,":",null,":",null,":",null,":",null,":",null,":",null,":",null,":",null,":",null,":"]
["S11_S12","C25-C30","EPS_P2_NEPS",null,null,null,"25-30","Manufacture of fabricated metal products, including machinery and equipment",null,":",null,":",null,":",null,":",null,":",null,":",null,":",null,":",null,":",null,":",null,":",null,":"]
["S11_S12","C13-C16_C18_C31-C33","EPS_P2_NEPS",null,null,null,"13-16, 18, 31-33","Other manufacturing activities",null,":",null,":",null,":",null,":",null,":",null,":",null,":",null,":",null,":",null,":",null,":",null,":"]
["S11_S12","C10-C12","EPS_D1",null,"( D1.3bA ) Compensation of employees",null,"10-12'","Manufacture of food, beverages and tobacco products",null,":",null,":",null,":",null,":",null,":",null,":",null,":",null,":",null,":",null,":",null,":",null,":"]
["S11_S12","C17","EPS_D1",null,null,null,17,"Manufacture of paper and paper products",null,":",null,":",null,":",null,":",null,":",null,":",null,":",null,":",null,":",null,":",null,":",null,":"]
["S11_S12","C19_C20","EPS_D1",null,null,null,"19-20","Manufacture of coke, chemicals and refined petroleum and chemical products",null,":",null,":",null,":",null,":",null,":",null,":",null,":",null,":",null,":",null,":",null,":",null,":"]
["S11_S12","C21-C23","EPS_D1",null,null,null,"21-23","Manufacture of pharmaceuticals, rubber, plastic and other non-metallic products",null,":",null,":",null,":",null,":",null,":",null,":",null,":",null,":",null,":",null,":",null,":",null,":"]
["S11_S12","C24","EPS_D1",null,null,null,24,"Manufacture of basic metals",null,":",null,":",null,":",null,":",null,":",null,":",null,":",null,":",null,":",null,":",null,":",null,":"]
["S11_S12","C25-C30","EPS_D1",null,null,null,"25-30","Manufacture of fabricated metal products, including machinery and equipment",null,":",null,":",null,":",null,":",null,":",null,":",null,":",null,":",null,":",null,":",null,":",null,":"]
["S11_S12","C13-C16_C18_C31-C33","EPS_D1",null,null,null,"13-16, 18, 31-33","Other manufacturing activities",null,":",null,":",null,":",null,":",null,":",null,":",null,":",null,":",null,":",null,":",null,":",null,":"]
["S11_S12","C10-C12","EPS_P1_ANC",null,"( P1_ANC.3bA ) Ancillary EP output (simplified valuation legally acceptable) ((P2_NEPS.3bA) + (D1.3bA))",null,"10-12'","Manufacture of food, beverages and tobacco products",null,":",null,":",null,":",null,":",null,":",null,":",null,":",null,":",null,":",null,":",null,":",null,":"]
["S11_S12","C17","EPS_P1_ANC",null,null,null,17,"Manufacture of paper and paper products",null,":",null,":",null,":",null,":",null,":",null,":",null,":",null,":",null,":",null,":",null,":",null,":"]
["S11_S12","C19_C20","EPS_P1_ANC",null,null,null,"19-20","Manufacture of coke, chemicals and refined petroleum and chemical products",null,":",null,":",null,":",null,":",null,":",null,":",null,":",null,":",null,":",null,":",null,":",null,":"]
["S11_S12","C21-C23","EPS_P1_ANC",null,null,null,"21-23","Manufacture of pharmaceuticals, rubber, plastic and other non-metallic products",null,":",null,":",null,":",null,":",null,":",null,":",null,":",null,":",null,":",null,":",null,":",null,":"]
["S11_S12","C24","EPS_P1_ANC",null,null,null,24,"Manufacture of basic metals",null,":",null,":",null,":",null,":",null,":",null,":",null,":",null,":",null,":",null,":",null,":",null,":"]
["S11_S12","C25-C30","EPS_P1_ANC",null,null,null,"25-30","Manufacture of fabricated metal products, including machinery and equipment",null,":",null,":",null,":",null,":",null,":",null,":",null,":",null,":",null,":",null,":",null,":",null,":"]
["S11_S12","C13-C16_C18_C31-C33","EPS_P1_ANC",null,null,null,"13-16, 18, 31-33","Other manufacturing activities",null,":",null,":",null,":",null,":",null,":",null,":",null,":",null,":",null,":",null,":",null,":",null,":"]
["S11_S12","C10-C12","EPS_D29X39",null,"( D29-D39.3bA ) Other taxes less subsidies on production",null,"10-12'","Manufacture of food, beverages and tobacco products",null,":",null,":",null,":",null,":",null,":",null,":",null,":",null,":",null,":",null,":",null,":",null,":"]
["S11_S12","C17","EPS_D29X39",null,null,null,17,"Manufacture of paper and paper products",null,":",null,":",null,":",null,":",null,":",null,":",null,":",null,":",null,":",null,":",null,":",null,":"]
["S11_S12","C19_C20","EPS_D29X39",null,null,null,"19-20","Manufacture of coke, chemicals and refined petroleum and chemical products",null,":",null,":",null,":",null,":",null,":",null,":",null,":",null,":",null,":",null,":",null,":",null,":"]
["S11_S12","C21-C23","EPS_D29X39",null,null,null,"21-23","Manufacture of pharmaceuticals, rubber, plastic and other non-metallic products",null,":",null,":",null,":",null,":",null,":",null,":",null,":",null,":",null,":",null,":",null,":",null,":"]
["S11_S12","C24","EPS_D29X39",null,null,null,24,"Manufacture of basic metals",null,":",null,":",null,":",null,":",null,":",null,":",null,":",null,":",null,":",null,":",null,":",null,":"]
["S11_S12","C25-C30","EPS_D29X39",null,null,null,"25-30","Manufacture of fabricated metal products, including machinery and equipment",null,":",null,":",null,":",null,":",null,":",null,":",null,":",null,":",null,":",null,":",null,":",null,":"]
["S11_S12","C13-C16_C18_C31-C33","EPS_D29X39",null,null,null,"13-16, 18, 31-33","Other manufacturing activities",null,":",null,":",null,":",null,":",null,":",null,":",null,":",null,":",null,":",null,":",null,":",null,":"]
["S11_S12","C10-C12","EPS_P51C",null,"( P51C.3bA ) Consumption of fixed capital",null,"10-12'","Manufacture of food, beverages and tobacco products",null,":",null,":",null,":",null,":",null,":",null,":",null,":",null,":",null,":",null,":",null,":",null,":"]
["S11_S12","C17","EPS_P51C",null,null,null,17,"Manufacture of paper and paper products",null,":",null,":",null,":",null,":",null,":",null,":",null,":",null,":",null,":",null,":",null,":",null,":"]
["S11_S12","C19_C20","EPS_P51C",null,null,null,"19-20","Manufacture of coke, chemicals and refined petroleum and chemical products",null,":",null,":",null,":",null,":",null,":",null,":",null,":",null,":",null,":",null,":",null,":",null,{"$f":"IF(COUNT(J72,N72,P72,R72,T72,V72,AD72)=7,SUM(J72,N72,P72,R72,T72,V72,AD72),\":\")","v":":"}]
["S11_S12","C21-C23","EPS_P51C",null,null,null,"21-23","Manufacture of pharmaceuticals, rubber, plastic and other non-metallic products",null,":",null,":",null,":",null,":",null,":",null,":",null,":",null,":",null,":",null,":",null,":",null,":"]
["S11_S12","C24","EPS_P51C",null,null,null,24,"Manufacture of basic metals",null,":",null,":",null,":",null,":",null,":",null,":",null,":",null,":",null,":",null,":",null,":",null,":"]
["S11_S12","C25-C30","EPS_P51C",null,null,null,"25-30","Manufacture of fabricated metal products, including machinery and equipment",null,":",null,":",null,":",null,":",null,":",null,":",null,":",null,":",null,":",null,":",null,":",null,":"]
["S11_S12","C13-C16_C18_C31-C33","EPS_P51C",null,null,null,"13-16, 18, 31-33","Other manufacturing activities",null,":",null,":",null,":",null,":",null,":",null,":",null,":",null,":",null,":",null,":",null,":",null,":"]
["S11_S12","C10-C12","EPS_P1_ANCESA",null,"( P1_ANC_ESA.3bA ) Ancillary EP output (ESA - compatible valuation) ((P2_NEPS.3bA) + (D1.3bA) +(P51C.3bA) + (D29-D39.3bA))",null,"10-12'","Manufacture of food, beverages and tobacco products",null,":",null,":",null,":",null,":",null,":",null,":",null,":",null,":",null,":",null,":",null,":",null,":"]
["S11_S12","C17","EPS_P1_ANCESA",null,null,null,17,"Manufacture of paper and paper products",null,":",null,":",null,":",null,":",null,":",null,":",null,":",null,":",null,":",null,":",null,":",null,":"]
["S11_S12","C19_C20","EPS_P1_ANCESA",null,null,null,"19-20","Manufacture of coke, chemicals and refined petroleum and chemical products",null,":",null,":",null,":",null,":",null,":",null,":",null,":",null,":",null,":",null,":",null,":",null,":"]
["S11_S12","C21-C23","EPS_P1_ANCESA",null,null,null,"21-23","Manufacture of pharmaceuticals, rubber, plastic and other non-metallic products",null,":",null,":",null,":",null,":",null,":",null,":",null,":",null,":",null,":",null,":",null,":",null,":"]
["S11_S12","C24","EPS_P1_ANCESA",null,null,null,24,"Manufacture of basic metals",null,":",null,":",null,":",null,":",null,":",null,":",null,":",null,":",null,":",null,":",null,":",null,":"]
["S11_S12","C25-C30","EPS_P1_ANCESA",null,null,null,"25-30","Manufacture of fabricated metal products, including machinery and equipment",null,":",null,":",null,":",null,":",null,":",null,":",null,":",null,":",null,":",null,":",null,":",null,":"]
["S11_S12","C13-C16_C18_C31-C33","EPS_P1_ANCESA",null,null,null,"13-16, 18, 31-33","Other manufacturing activities",null,":",null,":",null,":",null,":",null,":",null,":",null,":",null,":",null,":",null,":",null,":",null,":"]
["S11_S12","C10-C12","EPS_REC_BYPR",null,"( RNO.3bA ) Related non-EP output",null,"10-12'","Manufacture of food, beverages and tobacco products",null,":",null,":",null,":",null,":",null,":",null,":",null,":",null,":",null,":",null,":",null,":",null,":"]
["S11_S12","C17","EPS_REC_BYPR",null,null,null,17,"Manufacture of paper and paper products",null,":",null,":",null,":",null,":",null,":",null,":",null,":",null,":",null,":",null,":",null,":",null,":"]
["S11_S12","C19_C20","EPS_REC_BYPR",null,null,null,"19-20","Manufacture of coke, chemicals and refined petroleum and chemical products",null,":",null,":",null,":",null,":",null,":",null,":",null,":",null,":",null,":",null,":",null,":",null,":"]
["S11_S12","C21-C23","EPS_REC_BYPR",null,null,null,"21-23","Manufacture of pharmaceuticals, rubber, plastic and other non-metallic products",null,":",null,":",null,":",null,":",null,":",null,":",null,":",null,":",null,":",null,":",null,":",null,":"]
["S11_S12","C24","EPS_REC_BYPR",null,null,null,24,"Manufacture of basic metals",null,":",null,":",null,":",null,":",null,":",null,":",null,":",null,":",null,":",null,":",null,":",null,":"]
["S11_S12","C25-C30","EPS_REC_BYPR",null,null,null,"25-30","Manufacture of fabricated metal products, including machinery and equipment",null,":",null,":",null,":",null,":",null,":",null,":",null,":",null,":",null,":",null,":",null,":",null,":"]
["S11_S12","C13-C16_C18_C31-C33","EPS_REC_BYPR",null,null,null,"13-16, 18, 31-33","Other manufacturing activities",null,":",null,":",null,":",null,":",null,":",null,":",null,":",null,":",null,":",null,":",null,":",null,":"]
["S11_S12","C10-C12","TOT_P2_EPS","Transactions as users of EP services (ancillary production of EP services and other production)","( P2_EPS_EXT.3bA ) Total intermediate consumption of EP services (for production of EP services and for other production)",null,"10-12'","Manufacture of food, beverages and tobacco products",null,":",null,":",null,":",null,":",null,":",null,":",null,":",null,":",null,":",null,":",null,":",null,":"]
["S11_S12","C17","TOT_P2_EPS",null,"(P2_EPS_EXT.3x: please consider the explanatory notes - click here)",null,17,"Manufacture of paper and paper products",null,":",null,":",null,":",null,":",null,":",null,":",null,":",null,":",null,":",null,":",null,":",null,":"]
["S11_S12","C19_C20","TOT_P2_EPS",null,null,null,"19-20","Manufacture of coke, chemicals and refined petroleum and chemical products",null,":",null,":",null,":",null,":",null,":",null,":",null,":",null,":",null,":",null,":",null,":",null,":"]
["S11_S12","C21-C23","TOT_P2_EPS",null,null,null,"21-23","Manufacture of pharmaceuticals, rubber, plastic and other non-metallic products",null,":",null,":",null,":",null,":",null,":",null,":",null,":",null,":",null,":",null,":",null,":",null,":"]
["S11_S12","C24","TOT_P2_EPS",null,null,null,24,"Manufacture of basic metals",null,":",null,":",null,":",null,":",null,":",null,":",null,":",null,":",null,":",null,":",null,":",null,":"]
["S11_S12","C25-C30","TOT_P2_EPS",null,null,null,"25-30","Manufacture of fabricated metal products, including machinery and equipment",null,":",null,":",null,":",null,":",null,":",null,":",null,":",null,":",null,":",null,":",null,":",null,":"]
["S11_S12","C13-C16_C18_C31-C33","TOT_P2_EPS",null,null,null,"13-16, 18, 31-33","Other manufacturing activities",null,":",null,":",null,":",null,":",null,":",null,":",null,":",null,":",null,":",null,":",null,":",null,":"]
["S11_S12","C10-C12","EPS_EMP","Transactions of producers of ancillary EP services","( EMP.3bA ) Employment (full time equivalent)",null,"10-12'","Manufacture of food, beverages and tobacco products",null,":",null,":",null,":",null,":",null,":",null,":",null,":",null,":",null,":",null,":",null,":",null,":"]
["S11_S12","C17","EPS_EMP",null,null,null,17,"Manufacture of paper and paper products",null,":",null,":",null,":",null,":",null,":",null,":",null,":",null,":",null,":",null,":",null,":",null,":"]
["S11_S12","C19_C20","EPS_EMP",null,null,null,"19-20","Manufacture of coke, chemicals and refined petroleum and chemical products",null,":",null,":",null,":",null,":",null,":",null,":",null,":",null,":",null,":",null,":",null,":",null,":"]
["S11_S12","C21-C23","EPS_EMP",null,null,null,"21-23","Manufacture of pharmaceuticals, rubber, plastic and other non-metallic products",null,":",null,":",null,":",null,":",null,":",null,":",null,":",null,":",null,":",null,":",null,":",null,":"]
["S11_S12","C24","EPS_EMP",null,null,null,24,"Manufacture of basic metals",null,":",null,":",null,":",null,":",null,":",null,":",null,":",null,":",null,":",null,":",null,":",null,":"]
["S11_S12","C25-C30","EPS_EMP",null,null,null,"25-30","Manufacture of fabricated metal products, including machinery and equipment",null,":",null,":",null,":",null,":",null,":",null,":",null,":",null,":",null,":",null,":",null,":",null,":"]
["S11_S12","C13-C16_C18_C31-C33","EPS_EMP",null,null,null,"13-16, 18, 31-33","Other manufacturing activities",null,":",null,":",null,":",null,":",null,":",null,":",null,":",null,":",null,":",null,":",null,":",null,{"$f":"IF(COUNT(J104,N104,P104,R104,T104,V104,AD104)=7,SUM(J104,N104,P104,R104,T104,V104,AD104),\":\")","v":":"}]

{"sheet":"3c","index":34,"n_rows":258,"n_cols":32,"rows_kept":258,"cut":false,"hidden":false,"merged":[[222,4,222,7],[116,4,116,7],[132,4,132,7],[79,4,79,7],[99,4,99,7],[168,4,168,7],[169,4,169,7],[170,4,170,7],[150,4,150,7],[151,4,151,7],[153,4,153,7],[78,4,78,7],[96,4,96,7],[97,4,97,7],[133,4,133,7],[134,4,134,7],[45,4,45,7],[240,3,257,3],[240,4,240,7],[241,4,241,7],[242,4,242,7],[187,4,187,7],[189,4,189,7],[204,4,204,7],[205,4,205,7],[207,4,207,7],[222,3,239,3],[6,3,221,3],[186,4,186,7],[115,4,115,7],[223,4,223,7],[114,4,114,7],[27,4,27,7],[25,4,25,7],[26,4,26,7],[42,4,42,7],[43,4,43,7],[3,15,4,16],[3,17,4,18],[3,29,4,30],[24,4,24,7],[6,4,6,7],[7,4,7,7],[9,4,9,7],[60,4,60,7],[0,4,0,8],[0,9,0,15],[1,4,1,8],[1,9,1,32],[2,9,2,32],[3,31,4,32],[4,4,4,7],[3,19,4,20],[3,21,4,22],[3,23,4,24],[3,25,4,26],[3,27,4,28],[3,9,4,10],[3,11,4,12],[3,13,4,14]]}
[null,null,null,null,{"$f":"Cover!B21","v":"QUESTIONNAIRE ON ENVIRONMENTAL PROTECTION EXPENDITURE ACCOUNTS"},null,null,null,null,"Table 3c. Corporations: other (also covering producers of ancillary EP services):  NACE Rev. 2 D"]
[null,null,null,null,{"$f":"E1","v":"QUESTIONNAIRE ON ENVIRONMENTAL PROTECTION EXPENDITURE ACCOUNTS"},null,null,null,null,{"$f":"J1","v":"Table 3c. Corporations: other (also covering producers of ancillary EP services):  NACE Rev. 2 D"}]
[null,null,null,null,null,null,null,null,null,"Mandatory and voluntary variables and environmental domains - please fill in as much as possible"]
[null,null,null,null,"Country/Unit",{"$f":"IFERROR(Cover!C16,\"\")","v":""},{"$f":"\"\"&Cover!B16","v":""},{"$f":"Cover!B17","v":"Million units of national currency"},null,"CEPA 1",null,"of which CEPA 1.1.2 and 1.2.2 Climate change",null,"CEPA 2",null,"CEPA 3",null,"CEPA 4",null,"CEPA 5",null,"CEPA 6",null,"CEPA 7",null,"CEPA 8",null,"CEPA 9",null,"Sum of CEPA 7+8+9",null,"TOTAL"]
[null,null,null,null,"Expenditure",null,null,null,"Year",null,null,null,null,null,null,null,null,null,null,null,null,null,null,null,null,null,null,null,null,"Landscape",null,"Landscape"]
[null,null,null,null,null,null,null,null,null,"CEPA1",null,"CEPA112_122",null,"CEPA2",null,"CEPA3",null,"CEPA4",null,"CEPA5",null,"CEPA6",null,"CEPA7",null,"CEPA8",null,"CEPA9",null,"CEPA7-9",null,"TOT_CEPA"]
["S11_S12","D","EPS_P51G_NP","Transactions of producers of ancillary EP services","( P51G_NP.3c ) Gross fixed capital formation and acquisition less disposals of non-financial non-produced assets",null,null,null,2014,":",null,":",null,":",null,":",null,":",null,":",null,":",null,":",null,":",null,":",null,":",null,{"$f":"IF(COUNT(J7,N7,P7,R7,T7,V7,AD7)=7,SUM(J7,N7,P7,R7,T7,V7,AD7),\":\")","v":":"}]
["S11_S12","D","EPS_P51G_NP",null,null,null,null,null,2015,":",null,":",null,":",null,":",null,":",null,":",null,":",null,":",null,":",null,":",null,":",null,{"$f":"IF(COUNT(J8,N8,P8,R8,T8,V8,AD8)=7,SUM(J8,N8,P8,R8,T8,V8,AD8),\":\")","v":":"}]
["S11_S12","D","EPS_P51G_NP",null,null,null,null,null,2016,":",null,":",null,":",null,":",null,":",null,":",null,":",null,":",null,":",null,":",null,":",null,":"]
["S11_S12","D","EPS_P51G_NP",null,null,null,null,null,2017,":",null,":",null,":",null,":",null,":",null,":",null,":",null,":",null,":",null,":",null,":",null,":"]
["S11_S12","D","EPS_P51G_NP",null,null,null,null,null,2018,":",null,":",null,":",null,":",null,":",null,":",null,":",null,":",null,":",null,":",null,":",null,":"]
["S11_S12","D","EPS_P51G_NP",null,null,null,null,null,2019,":",null,":",null,":",null,":",null,":",null,":",null,":",null,":",null,":",null,":",null,":",null,":"]
["S11_S12","D","EPS_P51G_NP",null,null,null,null,null,2020,":",null,":",null,":",null,":",null,":",null,":",null,":",null,":",null,":",null,":",null,":",null,":"]
["S11_S12","D","EPS_P51G_NP",null,null,null,null,null,2021,":",null,":",null,":",null,":",null,":",null,":",null,":",null,":",null,":",null,":",null,":",null,":"]
["S11_S12","D","EPS_P51G_NP",null,null,null,null,null,2022,":",null,":",null,":",null,":",null,":",null,":",null,":",null,":",null,":",null,":",null,":",null,":"]
["S11_S12","D","EPS_P51G_NP",null,null,null,null,null,2023,":",null,":",null,":",null,":",null,":",null,":",null,":",null,":",null,":",null,":",null,":",null,":"]
["S11_S12","D","EPS_P51G_NP",null,null,null,null,null,2024,":",null,":",null,":",null,":",null,":",null,":",null,":",null,":",null,":",null,":",null,":",null,":"]
["S11_S12","D","EPS_P51G_NP",null,null,null,null,null,2025,":",null,":",null,":",null,":",null,":",null,":",null,":",null,":",null,":",null,":",null,":",null,":"]
["S11_S12","D","EPS_P51G_NP",null,null,null,null,null,2026,":",null,":",null,":",null,":",null,":",null,":",null,":",null,":",null,":",null,":",null,":",null,":"]
["S11_S12","D","EPS_P51G_NP",null,null,null,null,null,2027,":",null,":",null,":",null,":",null,":",null,":",null,":",null,":",null,":",null,":",null,":",null,":"]
["S11_S12","D","EPS_P51G_NP",null,null,null,null,null,2028,":",null,":",null,":",null,":",null,":",null,":",null,":",null,":",null,":",null,":",null,":",null,":"]
["S11_S12","D","EPS_P51G_NP",null,null,null,null,null,2029,":",null,":",null,":",null,":",null,":",null,":",null,":",null,":",null,":",null,":",null,":",null,":"]
["S11_S12","D","EPS_P51G_NP",null,null,null,null,null,2030,":",null,":",null,":",null,":",null,":",null,":",null,":",null,":",null,":",null,":",null,":",null,":"]
["S11_S12","D","EPS_P51G_NP",null,null,null,null,null,2031,":",null,":",null,":",null,":",null,":",null,":",null,":",null,":",null,":",null,":",null,":",null,":"]
["S11_S12","D","EPS_INV_PT",null,"( INV_EOP.3c )  GFCF on specific EP fixed assets (end-of-pipe technologies) ",null,null,null,2014,":",null,":",null,":",null,":",null,":",null,":",null,":",null,":",null,":",null,":",null,":",null,":"]
["S11_S12","D","EPS_INV_PT",null,null,null,null,null,2015,":",null,":",null,":",null,":",null,":",null,":",null,":",null,":",null,":",null,":",null,":",null,":"]
["S11_S12","D","EPS_INV_PT",null,null,null,null,null,2016,":",null,":",null,":",null,":",null,":",null,":",null,":",null,":",null,":",null,":",null,":",null,":"]
["S11_S12","D","EPS_INV_PT",null,null,null,null,null,2017,":",null,":",null,":",null,":",null,":",null,":",null,":",null,":",null,":",null,":",null,":",null,":"]
["S11_S12","D","EPS_INV_PT",null,null,null,null,null,2018,":",null,":",null,":",null,":",null,":",null,":",null,":",null,":",null,":",null,":",null,":",null,":"]
["S11_S12","D","EPS_INV_PT",null,null,null,null,null,2019,":",null,":",null,":",null,":",null,":",null,":",null,":",null,":",null,":",null,":",null,":",null,":"]
["S11_S12","D","EPS_INV_PT",null,null,null,null,null,2020,":",null,":",null,":",null,":",null,":",null,":",null,":",null,":",null,":",null,":",null,":",null,":"]
["S11_S12","D","EPS_INV_PT",null,null,null,null,null,2021,":",null,":",null,":",null,":",null,":",null,":",null,":",null,":",null,":",null,":",null,":",null,":"]
["S11_S12","D","EPS_INV_PT",null,null,null,null,null,2022,":",null,":",null,":",null,":",null,":",null,":",null,":",null,":",null,":",null,":",null,":",null,":"]
["S11_S12","D","EPS_INV_PT",null,null,null,null,null,2023,":",null,":",null,":",null,":",null,":",null,":",null,":",null,":",null,":",null,":",null,":",null,":"]
["S11_S12","D","EPS_INV_PT",null,null,null,null,null,2024,":",null,":",null,":",null,":",null,":",null,":",null,":",null,":",null,":",null,":",null,":",null,":"]
["S11_S12","D","EPS_INV_PT",null,null,null,null,null,2025,":",null,":",null,":",null,":",null,":",null,":",null,":",null,":",null,":",null,":",null,":",null,":"]
["S11_S12","D","EPS_INV_PT",null,null,null,null,null,2026,":",null,":",null,":",null,":",null,":",null,":",null,":",null,":",null,":",null,":",null,":",null,":"]
["S11_S12","D","EPS_INV_PT",null,null,null,null,null,2027,":",null,":",null,":",null,":",null,":",null,":",null,":",null,":",null,":",null,":",null,":",null,":"]
["S11_S12","D","EPS_INV_PT",null,null,null,null,null,2028,":",null,":",null,":",null,":",null,":",null,":",null,":",null,":",null,":",null,":",null,":",null,":"]
["S11_S12","D","EPS_INV_PT",null,null,null,null,null,2029,":",null,":",null,":",null,":",null,":",null,":",null,":",null,":",null,":",null,":",null,":",null,":"]
["S11_S12","D","EPS_INV_PT",null,null,null,null,null,2030,":",null,":",null,":",null,":",null,":",null,":",null,":",null,":",null,":",null,":",null,":",null,":"]
["S11_S12","D","EPS_INV_PT",null,null,null,null,null,2031,":",null,":",null,":",null,":",null,":",null,":",null,":",null,":",null,":",null,":",null,":",null,":"]
["S11_S12","D","EPS_INV_PP",null,"( INV_IT.3c ) GFCF on cleaner EP fixed assets (integrated technologies)",null,null,null,2014,":",null,":",null,":",null,":",null,":",null,":",null,":",null,":",null,":",null,":",null,":",null,":"]
["S11_S12","D","EPS_INV_PP",null,null,null,null,null,2015,":",null,":",null,":",null,":",null,":",null,":",null,":",null,":",null,":",null,":",null,":",null,":"]
["S11_S12","D","EPS_INV_PP",null,null,null,null,null,2016,":",null,":",null,":",null,":",null,":",null,":",null,":",null,":",null,":",null,":",null,":",null,":"]
["S11_S12","D","EPS_INV_PP",null,null,null,null,null,2017,":",null,":",null,":",null,":",null,":",null,":",null,":",null,":",null,":",null,":",null,":",null,":"]
["S11_S12","D","EPS_INV_PP",null,null,null,null,null,2018,":",null,":",null,":",null,":",null,":",null,":",null,":",null,":",null,":",null,":",null,":",null,":"]
["S11_S12","D","EPS_INV_PP",null,null,null,null,null,2019,":",null,":",null,":",null,":",null,":",null,":",null,":",null,":",null,":",null,":",null,":",null,":"]
["S11_S12","D","EPS_INV_PP",null,null,null,null,null,2020,":",null,":",null,":",null,":",null,":",null,":",null,":",null,":",null,":",null,":",null,":",null,":"]
["S11_S12","D","EPS_INV_PP",null,null,null,null,null,2021,":",null,":",null,":",null,":",null,":",null,":",null,":",null,":",null,":",null,":",null,":",null,":"]
["S11_S12","D","EPS_INV_PP",null,null,null,null,null,2022,":",null,":",null,":",null,":",null,":",null,":",null,":",null,":",null,":",null,":",null,":",null,":"]
["S11_S12","D","EPS_INV_PP",null,null,null,null,null,2023,":",null,":",null,":",null,":",null,":",null,":",null,":",null,":",null,":",null,":",null,":",null,":"]
["S11_S12","D","EPS_INV_PP",null,null,null,null,null,2024,":",null,":",null,":",null,":",null,":",null,":",null,":",null,":",null,":",null,":",null,":",null,":"]
["S11_S12","D","EPS_INV_PP",null,null,null,null,null,2025,":",null,":",null,":",null,":",null,":",null,":",null,":",null,":",null,":",null,":",null,":",null,":"]
["S11_S12","D","EPS_INV_PP",null,null,null,null,null,2026,":",null,":",null,":",null,":",null,":",null,":",null,":",null,":",null,":",null,":",null,":",null,":"]
["S11_S12","D","EPS_INV_PP",null,null,null,null,null,2027,":",null,":",null,":",null,":",null,":",null,":",null,":",null,":",null,":",null,":",null,":",null,":"]
["S11_S12","D","EPS_INV_PP",null,null,null,null,null,2028,":",null,":",null,":",null,":",null,":",null,":",null,":",null,":",null,":",null,":",null,":",null,":"]
["S11_S12","D","EPS_INV_PP",null,null,null,null,null,2029,":",null,":",null,":",null,":",null,":",null,":",null,":",null,":",null,":",null,":",null,":",null,":"]
["S11_S12","D","EPS_INV_PP",null,null,null,null,null,2030,":",null,":",null,":",null,":",null,":",null,":",null,":",null,":",null,":",null,":",null,":",null,":"]
["S11_S12","D","EPS_INV_PP",null,null,null,null,null,2031,":",null,":",null,":",null,":",null,":",null,":",null,":",null,":",null,":",null,":",null,":",null,":"]
["S11_S12","D","EPS_P2",null,"( P2.3c ) Total intermediate consumption",null,null,null,2014,":",null,":",null,":",null,":",null,":",null,":",null,":",null,":",null,":",null,":",null,":",null,":"]
["S11_S12","D","EPS_P2",null,null,null,null,null,2015,":",null,":",null,":",null,":",null,":",null,":",null,":",null,":",null,":",null,":",null,":",null,":"]
["S11_S12","D","EPS_P2",null,null,null,null,null,2016,":",null,":",null,":",null,":",null,":",null,":",null,":",null,":",null,":",null,":",null,":",null,":"]
["S11_S12","D","EPS_P2",null,null,null,null,null,2017,":",null,":",null,":",null,":",null,":",null,":",null,":",null,":",null,":",null,":",null,":",null,":"]
["S11_S12","D","EPS_P2",null,null,null,null,null,2018,":",null,":",null,":",null,":",null,":",null,":",null,":",null,":",null,":",null,":",null,":",null,":"]
["S11_S12","D","EPS_P2",null,null,null,null,null,2019,":",null,":",null,":",null,":",null,":",null,":",null,":",null,":",null,":",null,":",null,":",null,":"]
["S11_S12","D","EPS_P2",null,null,null,null,null,2020,":",null,":",null,":",null,":",null,":",null,":",null,":",null,":",null,":",null,":",null,":",null,":"]
["S11_S12","D","EPS_P2",null,null,null,null,null,2021,":",null,":",null,":",null,":",null,":",null,":",null,":",null,":",null,":",null,":",null,":",null,":"]
["S11_S12","D","EPS_P2",null,null,null,null,null,2022,":",null,":",null,":",null,":",null,":",null,":",null,":",null,":",null,":",null,":",null,":",null,":"]
["S11_S12","D","EPS_P2",null,null,null,null,null,2023,":",null,":",null,":",null,":",null,":",null,":",null,":",null,":",null,":",null,":",null,":",null,":"]
["S11_S12","D","EPS_P2",null,null,null,null,null,2024,":",null,":",null,":",null,":",null,":",null,":",null,":",null,":",null,":",null,":",null,":",null,":"]
["S11_S12","D","EPS_P2",null,null,null,null,null,2025,":",null,":",null,":",null,":",null,":",null,":",null,":",null,":",null,":",null,":",null,":",null,{"$f":"IF(COUNT(J72,N72,P72,R72,T72,V72,AD72)=7,SUM(J72,N72,P72,R72,T72,V72,AD72),\":\")","v":":"}]
["S11_S12","D","EPS_P2",null,null,null,null,null,2026,":",null,":",null,":",null,":",null,":",null,":",null,":",null,":",null,":",null,":",null,":",null,":"]
["S11_S12","D","EPS_P2",null,null,null,null,null,2027,":",null,":",null,":",null,":",null,":",null,":",null,":",null,":",null,":",null,":",null,":",null,":"]
["S11_S12","D","EPS_P2",null,null,null,null,null,2028,":",null,":",null,":",null,":",null,":",null,":",null,":",null,":",null,":",null,":",null,":",null,":"]
["S11_S12","D","EPS_P2",null,null,null,null,null,2029,":",null,":",null,":",null,":",null,":",null,":",null,":",null,":",null,":",null,":",null,":",null,":"]
["S11_S12","D","EPS_P2",null,null,null,null,null,2030,":",null,":",null,":",null,":",null,":",null,":",null,":",null,":",null,":",null,":",null,":",null,":"]
["S11_S12","D","EPS_P2",null,null,null,null,null,2031,":",null,":",null,":",null,":",null,":",null,":",null,":",null,":",null,":",null,":",null,":",null,":"]
["S11_S12","D","EPS_P2_EPS",null,"( P2_EPS.3c ) Intermediate consumption of EP services for ancillary production of EP services ",null,null,null,2014,":",null,":",null,":",null,":",null,":",null,":",null,":",null,":",null,":",null,":",null,":",null,":"]
["S11_S12","D","EPS_P2_EPS",null,"(P2_EPS.3: please consider the explanatory notes - click here)",null,null,null,2015,":",null,":",null,":",null,":",null,":",null,":",null,":",null,":",null,":",null,":",null,":",null,":"]
["S11_S12","D","EPS_P2_EPS",null,null,null,null,null,2016,":",null,":",null,":",null,":",null,":",null,":",null,":",null,":",null,":",null,":",null,":",null,":"]
["S11_S12","D","EPS_P2_EPS",null,null,null,null,null,2017,":",null,":",null,":",null,":",null,":",null,":",null,":",null,":",null,":",null,":",null,":",null,":"]
["S11_S12","D","EPS_P2_EPS",null,null,null,null,null,2018,":",null,":",null,":",null,":",null,":",null,":",null,":",null,":",null,":",null,":",null,":",null,":"]
["S11_S12","D","EPS_P2_EPS",null,null,null,null,null,2019,":",null,":",null,":",null,":",null,":",null,":",null,":",null,":",null,":",null,":",null,":",null,":"]
["S11_S12","D","EPS_P2_EPS",null,null,null,null,null,2020,":",null,":",null,":",null,":",null,":",null,":",null,":",null,":",null,":",null,":",null,":",null,":"]
["S11_S12","D","EPS_P2_EPS",null,null,null,null,null,2021,":",null,":",null,":",null,":",null,":",null,":",null,":",null,":",null,":",null,":",null,":",null,":"]
["S11_S12","D","EPS_P2_EPS",null,null,null,null,null,2022,":",null,":",null,":",null,":",null,":",null,":",null,":",null,":",null,":",null,":",null,":",null,":"]
["S11_S12","D","EPS_P2_EPS",null,null,null,null,null,2023,":",null,":",null,":",null,":",null,":",null,":",null,":",null,":",null,":",null,":",null,":",null,":"]
["S11_S12","D","EPS_P2_EPS",null,null,null,null,null,2024,":",null,":",null,":",null,":",null,":",null,":",null,":",null,":",null,":",null,":",null,":",null,":"]
["S11_S12","D","EPS_P2_EPS",null,null,null,null,null,2025,":",null,":",null,":",null,":",null,":",null,":",null,":",null,":",null,":",null,":",null,":",null,":"]
["S11_S12","D","EPS_P2_EPS",null,null,null,null,null,2026,":",null,":",null,":",null,":",null,":",null,":",null,":",null,":",null,":",null,":",null,":",null,":"]
["S11_S12","D","EPS_P2_EPS",null,null,null,null,null,2027,":",null,":",null,":",null,":",null,":",null,":",null,":",null,":",null,":",null,":",null,":",null,":"]
["S11_S12","D","EPS_P2_EPS",null,null,null,null,null,2028,":",null,":",null,":",null,":",null,":",null,":",null,":",null,":",null,":",null,":",null,":",null,":"]
["S11_S12","D","EPS_P2_EPS",null,null,null,null,null,2029,":",null,":",null,":",null,":",null,":",null,":",null,":",null,":",null,":",null,":",null,":",null,":"]
["S11_S12","D","EPS_P2_EPS",null,null,null,null,null,2030,":",null,":",null,":",null,":",null,":",null,":",null,":",null,":",null,":",null,":",null,":",null,":"]
["S11_S12","D","EPS_P2_EPS",null,null,null,null,null,2031,":",null,":",null,":",null,":",null,":",null,":",null,":",null,":",null,":",null,":",null,":",null,":"]
["S11_S12","D","EPS_P2_NEPS",null,"( P2_NEPS.3c ) Intermediate consumption (excluding EP services)",null,null,null,2014,":",null,":",null,":",null,":",null,":",null,":",null,":",null,":",null,":",null,":",null,":",null,":"]
["S11_S12","D","EPS_P2_NEPS",null,null,null,null,null,2015,":",null,":",null,":",null,":",null,":",null,":",null,":",null,":",null,":",null,":",null,":",null,":"]
["S11_S12","D","EPS_P2_NEPS",null,null,null,null,null,2016,":",null,":",null,":",null,":",null,":",null,":",null,":",null,":",null,":",null,":",null,":",null,":"]
["S11_S12","D","EPS_P2_NEPS",null,null,null,null,null,2017,":",null,":",null,":",null,":",null,":",null,":",null,":",null,":",null,":",null,":",null,":",null,":"]
["S11_S12","D","EPS_P2_NEPS",null,null,null,null,null,2018,":",null,":",null,":",null,":",null,":",null,":",null,":",null,":",null,":",null,":",null,":",null,":"]
["S11_S12","D","EPS_P2_NEPS",null,null,null,null,null,2019,":",null,":",null,":",null,":",null,":",null,":",null,":",null,":",null,":",null,":",null,":",null,":"]
["S11_S12","D","EPS_P2_NEPS",null,null,null,null,null,2020,":",null,":",null,":",null,":",null,":",null,":",null,":",null,":",null,":",null,":",null,":",null,":"]
["S11_S12","D","EPS_P2_NEPS",null,null,null,null,null,2021,":",null,":",null,":",null,":",null,":",null,":",null,":",null,":",null,":",null,":",null,":",null,":"]
["S11_S12","D","EPS_P2_NEPS",null,null,null,null,null,2022,":",null,":",null,":",null,":",null,":",null,":",null,":",null,":",null,":",null,":",null,":",null,":"]
["S11_S12","D","EPS_P2_NEPS",null,null,null,null,null,2023,":",null,":",null,":",null,":",null,":",null,":",null,":",null,":",null,":",null,":",null,":",null,":"]
["S11_S12","D","EPS_P2_NEPS",null,null,null,null,null,2024,":",null,":",null,":",null,":",null,":",null,":",null,":",null,":",null,":",null,":",null,":",null,":"]
["S11_S12","D","EPS_P2_NEPS",null,null,null,null,null,2025,":",null,":",null,":",null,":",null,":",null,":",null,":",null,":",null,":",null,":",null,":",null,":"]
["S11_S12","D","EPS_P2_NEPS",null,null,null,null,null,2026,":",null,":",null,":",null,":",null,":",null,":",null,":",null,":",null,":",null,":",null,":",null,":"]
["S11_S12","D","EPS_P2_NEPS",null,null,null,null,null,2027,":",null,":",null,":",null,":",null,":",null,":",null,":",null,":",null,":",null,":",null,":",null,":"]
["S11_S12","D","EPS_P2_NEPS",null,null,null,null,null,2028,":",null,":",null,":",null,":",null,":",null,":",null,":",null,":",null,":",null,":",null,":",null,":"]
["S11_S12","D","EPS_P2_NEPS",null,null,null,null,null,2029,":",null,":",null,":",null,":",null,":",null,":",null,":",null,":",null,":",null,":",null,":",null,":"]
["S11_S12","D","EPS_P2_NEPS",null,null,null,null,null,2030,":",null,":",null,":",null,":",null,":",null,":",null,":",null,":",null,":",null,":",null,":",null,":"]
["S11_S12","D","EPS_P2_NEPS",null,null,null,null,null,2031,":",null,":",null,":",null,":",null,":",null,":",null,":",null,":",null,":",null,":",null,":",null,":"]
["S11_S12","D","EPS_D1",null,"( D1.3c ) Compensation of employees",null,null,null,2014,":",null,":",null,":",null,":",null,":",null,":",null,":",null,":",null,":",null,":",null,":",null,":"]
["S11_S12","D","EPS_D1",null,null,null,null,null,2015,":",null,":",null,":",null,":",null,":",null,":",null,":",null,":",null,":",null,":",null,":",null,":"]
["S11_S12","D","EPS_D1",null,null,null,null,null,2016,":",null,":",null,":",null,":",null,":",null,":",null,":",null,":",null,":",null,":",null,":",null,":"]
["S11_S12","D","EPS_D1",null,null,null,null,null,2017,":",null,":",null,":",null,":",null,":",null,":",null,":",null,":",null,":",null,":",null,":",null,":"]
["S11_S12","D","EPS_D1",null,null,null,null,null,2018,":",null,":",null,":",null,":",null,":",null,":",null,":",null,":",null,":",null,":",null,":",null,":"]
["S11_S12","D","EPS_D1",null,null,null,null,null,2019,":",null,":",null,":",null,":",null,":",null,":",null,":",null,":",null,":",null,":",null,":",null,":"]
["S11_S12","D","EPS_D1",null,null,null,null,null,2020,":",null,":",null,":",null,":",null,":",null,":",null,":",null,":",null,":",null,":",null,":",null,":"]
["S11_S12","D","EPS_D1",null,null,null,null,null,2021,":",null,":",null,":",null,":",null,":",null,":",null,":",null,":",null,":",null,":",null,":",null,":"]
["S11_S12","D","EPS_D1",null,null,null,null,null,2022,":",null,":",null,":",null,":",null,":",null,":",null,":",null,":",null,":",null,":",null,":",null,":"]
["S11_S12","D","EPS_D1",null,null,null,null,null,2023,":",null,":",null,":",null,":",null,":",null,":",null,":",null,":",null,":",null,":",null,":",null,":"]
["S11_S12","D","EPS_D1",null,null,null,null,null,2024,":",null,":",null,":",null,":",null,":",null,":",null,":",null,":",null,":",null,":",null,":",null,":"]
["S11_S12","D","EPS_D1",null,null,null,null,null,2025,":",null,":",null,":",null,":",null,":",null,":",null,":",null,":",null,":",null,":",null,":",null,":"]
["S11_S12","D","EPS_D1",null,null,null,null,null,2026,":",null,":",null,":",null,":",null,":",null,":",null,":",null,":",null,":",null,":",null,":",null,":"]
["S11_S12","D","EPS_D1",null,null,null,null,null,2027,":",null,":",null,":",null,":",null,":",null,":",null,":",null,":",null,":",null,":",null,":",null,":"]
["S11_S12","D","EPS_D1",null,null,null,null,null,2028,":",null,":",null,":",null,":",null,":",null,":",null,":",null,":",null,":",null,":",null,":",null,":"]
["S11_S12","D","EPS_D1",null,null,null,null,null,2029,":",null,":",null,":",null,":",null,":",null,":",null,":",null,":",null,":",null,":",null,":",null,":"]
["S11_S12","D","EPS_D1",null,null,null,null,null,2030,":",null,":",null,":",null,":",null,":",null,":",null,":",null,":",null,":",null,":",null,":",null,":"]
["S11_S12","D","EPS_D1",null,null,null,null,null,2031,":",null,":",null,":",null,":",null,":",null,":",null,":",null,":",null,":",null,":",null,":",null,":"]
["S11_S12","D","EPS_P1_ANC",null,"( P1_ANC.3c ) Ancillary EP output (simplified valuation legally acceptable) ((P2_NEPS.3c) + (D1.3c))",null,null,null,2014,":",null,":",null,":",null,":",null,":",null,":",null,":",null,":",null,":",null,":",null,":",null,":"]
["S11_S12","D","EPS_P1_ANC",null,null,null,null,null,2015,":",null,":",null,":",null,":",null,":",null,":",null,":",null,":",null,":",null,":",null,":",null,":"]
["S11_S12","D","EPS_P1_ANC",null,null,null,null,null,2016,":",null,":",null,":",null,":",null,":",null,":",null,":",null,":",null,":",null,":",null,":",null,":"]
["S11_S12","D","EPS_P1_ANC",null,null,null,null,null,2017,":",null,":",null,":",null,":",null,":",null,":",null,":",null,":",null,":",null,":",null,":",null,{"$f":"IF(COUNT(J136,N136,P136,R136,T136,V136,AD136)=7,SUM(J136,N136,P136,R136,T136,V136,AD136),\":\")","v":":"}]
["S11_S12","D","EPS_P1_ANC",null,null,null,null,null,2018,":",null,":",null,":",null,":",null,":",null,":",null,":",null,":",null,":",null,":",null,":",null,":"]
["S11_S12","D","EPS_P1_ANC",null,null,null,null,null,2019,":",null,":",null,":",null,":",null,":",null,":",null,":",null,":",null,":",null,":",null,":",null,":"]
["S11_S12","D","EPS_P1_ANC",null,null,null,null,null,2020,":",null,":",null,":",null,":",null,":",null,":",null,":",null,":",null,":",null,":",null,":",null,":"]
["S11_S12","D","EPS_P1_ANC",null,null,null,null,null,2021,":",null,":",null,":",null,":",null,":",null,":",null,":",null,":",null,":",null,":",null,":",null,":"]
["S11_S12","D","EPS_P1_ANC",null,null,null,null,null,2022,":",null,":",null,":",null,":",null,":",null,":",null,":",null,":",null,":",null,":",null,":",null,":"]
["S11_S12","D","EPS_P1_ANC",null,null,null,null,null,2023,":",null,":",null,":",null,":",null,":",null,":",null,":",null,":",null,":",null,":",null,":",null,":"]
["S11_S12","D","EPS_P1_ANC",null,null,null,null,null,2024,":",null,":",null,":",null,":",null,":",null,":",null,":",null,":",null,":",null,":",null,":",null,":"]
["S11_S12","D","EPS_P1_ANC",null,null,null,null,null,2025,":",null,":",null,":",null,":",null,":",null,":",null,":",null,":",null,":",null,":",null,":",null,":"]
["S11_S12","D","EPS_P1_ANC",null,null,null,null,null,2026,":",null,":",null,":",null,":",null,":",null,":",null,":",null,":",null,":",null,":",null,":",null,":"]
["S11_S12","D","EPS_P1_ANC",null,null,null,null,null,2027,":",null,":",null,":",null,":",null,":",null,":",null,":",null,":",null,":",null,":",null,":",null,":"]
["S11_S12","D","EPS_P1_ANC",null,null,null,null,null,2028,":",null,":",null,":",null,":",null,":",null,":",null,":",null,":",null,":",null,":",null,":",null,":"]
["S11_S12","D","EPS_P1_ANC",null,null,null,null,null,2029,":",null,":",null,":",null,":",null,":",null,":",null,":",null,":",null,":",null,":",null,":",null,":"]
["S11_S12","D","EPS_P1_ANC",null,null,null,null,null,2030,":",null,":",null,":",null,":",null,":",null,":",null,":",null,":",null,":",null,":",null,":",null,":"]
["S11_S12","D","EPS_P1_ANC",null,null,null,null,null,2031,":",null,":",null,":",null,":",null,":",null,":",null,":",null,":",null,":",null,":",null,":",null,":"]
["S11_S12","D","EPS_D29X39",null,"   ( D29-D39.3c ) Other taxes less subsidies on production",null,null,null,2014,":",null,":",null,":",null,":",null,":",null,":",null,":",null,":",null,":",null,":",null,":",null,":"]
["S11_S12","D","EPS_D29X39",null,null,null,null,null,2015,":",null,":",null,":",null,":",null,":",null,":",null,":",null,":",null,":",null,":",null,":",null,":"]
["S11_S12","D","EPS_D29X39",null,null,null,null,null,2016,":",null,":",null,":",null,":",null,":",null,":",null,":",null,":",null,":",null,":",null,":",null,":"]
["S11_S12","D","EPS_D29X39",null,null,null,null,null,2017,":",null,":",null,":",null,":",null,":",null,":",null,":",null,":",null,":",null,":",null,":",null,":"]
["S11_S12","D","EPS_D29X39",null,null,null,null,null,2018,":",null,":",null,":",null,":",null,":",null,":",null,":",null,":",null,":",null,":",null,":",null,":"]
["S11_S12","D","EPS_D29X39",null,null,null,null,null,2019,":",null,":",null,":",null,":",null,":",null,":",null,":",null,":",null,":",null,":",null,":",null,":"]
["S11_S12","D","EPS_D29X39",null,null,null,null,null,2020,":",null,":",null,":",null,":",null,":",null,":",null,":",null,":",null,":",null,":",null,":",null,":"]
["S11_S12","D","EPS_D29X39",null,null,null,null,null,2021,":",null,":",null,":",null,":",null,":",null,":",null,":",null,":",null,":",null,":",null,":",null,":"]
["S11_S12","D","EPS_D29X39",null,null,null,null,null,2022,":",null,":",null,":",null,":",null,":",null,":",null,":",null,":",null,":",null,":",null,":",null,":"]
["S11_S12","D","EPS_D29X39",null,null,null,null,null,2023,":",null,":",null,":",null,":",null,":",null,":",null,":",null,":",null,":",null,":",null,":",null,":"]
["S11_S12","D","EPS_D29X39",null,null,null,null,null,2024,":",null,":",null,":",null,":",null,":",null,":",null,":",null,":",null,":",null,":",null,":",null,":"]
["S11_S12","D","EPS_D29X39",null,null,null,null,null,2025,":",null,":",null,":",null,":",null,":",null,":",null,":",null,":",null,":",null,":",null,":",null,":"]
["S11_S12","D","EPS_D29X39",null,null,null,null,null,2026,":",null,":",null,":",null,":",null,":",null,":",null,":",null,":",null,":",null,":",null,":",null,":"]
["S11_S12","D","EPS_D29X39",null,null,null,null,null,2027,":",null,":",null,":",null,":",null,":",null,":",null,":",null,":",null,":",null,":",null,":",null,":"]
["S11_S12","D","EPS_D29X39",null,null,null,null,null,2028,":",null,":",null,":",null,":",null,":",null,":",null,":",null,":",null,":",null,":",null,":",null,":"]
["S11_S12","D","EPS_D29X39",null,null,null,null,null,2029,":",null,":",null,":",null,":",null,":",null,":",null,":",null,":",null,":",null,":",null,":",null,":"]
["S11_S12","D","EPS_D29X39",null,null,null,null,null,2030,":",null,":",null,":",null,":",null,":",null,":",null,":",null,":",null,":",null,":",null,":",null,":"]
["S11_S12","D","EPS_D29X39",null,null,null,null,null,2031,":",null,":",null,":",null,":",null,":",null,":",null,":",null,":",null,":",null,":",null,":",null,":"]
["S11_S12","D","EPS_P51C",null,"   ( P51C.3c ) Consumption of fixed capital",null,null,null,2014,":",null,":",null,":",null,":",null,":",null,":",null,":",null,":",null,":",null,":",null,":",null,":"]
["S11_S12","D","EPS_P51C",null,null,null,null,null,2015,":",null,":",null,":",null,":",null,":",null,":",null,":",null,":",null,":",null,":",null,":",null,":"]
["S11_S12","D","EPS_P51C",null,null,null,null,null,2016,":",null,":",null,":",null,":",null,":",null,":",null,":",null,":",null,":",null,":",null,":",null,":"]
["S11_S12","D","EPS_P51C",null,null,null,null,null,2017,":",null,":",null,":",null,":",null,":",null,":",null,":",null,":",null,":",null,":",null,":",null,":"]
["S11_S12","D","EPS_P51C",null,null,null,null,null,2018,":",null,":",null,":",null,":",null,":",null,":",null,":",null,":",null,":",null,":",null,":",null,":"]
["S11_S12","D","EPS_P51C",null,null,null,null,null,2019,":",null,":",null,":",null,":",null,":",null,":",null,":",null,":",null,":",null,":",null,":",null,":"]
["S11_S12","D","EPS_P51C",null,null,null,null,null,2020,":",null,":",null,":",null,":",null,":",null,":",null,":",null,":",null,":",null,":",null,":",null,":"]
["S11_S12","D","EPS_P51C",null,null,null,null,null,2021,":",null,":",null,":",null,":",null,":",null,":",null,":",null,":",null,":",null,":",null,":",null,":"]
["S11_S12","D","EPS_P51C",null,null,null,null,null,2022,":",null,":",null,":",null,":",null,":",null,":",null,":",null,":",null,":",null,":",null,":",null,":"]
["S11_S12","D","EPS_P51C",null,null,null,null,null,2023,":",null,":",null,":",null,":",null,":",null,":",null,":",null,":",null,":",null,":",null,":",null,":"]
["S11_S12","D","EPS_P51C",null,null,null,null,null,2024,":",null,":",null,":",null,":",null,":",null,":",null,":",null,":",null,":",null,":",null,":",null,":"]
["S11_S12","D","EPS_P51C",null,null,null,null,null,2025,":",null,":",null,":",null,":",null,":",null,":",null,":",null,":",null,":",null,":",null,":",null,":"]
["S11_S12","D","EPS_P51C",null,null,null,null,null,2026,":",null,":",null,":",null,":",null,":",null,":",null,":",null,":",null,":",null,":",null,":",null,":"]
["S11_S12","D","EPS_P51C",null,null,null,null,null,2027,":",null,":",null,":",null,":",null,":",null,":",null,":",null,":",null,":",null,":",null,":",null,":"]
["S11_S12","D","EPS_P51C",null,null,null,null,null,2028,":",null,":",null,":",null,":",null,":",null,":",null,":",null,":",null,":",null,":",null,":",null,":"]
["S11_S12","D","EPS_P51C",null,null,null,null,null,2029,":",null,":",null,":",null,":",null,":",null,":",null,":",null,":",null,":",null,":",null,":",null,":"]
["S11_S12","D","EPS_P51C",null,null,null,null,null,2030,":",null,":",null,":",null,":",null,":",null,":",null,":",null,":",null,":",null,":",null,":",null,":"]
["S11_S12","D","EPS_P51C",null,null,null,null,null,2031,":",null,":",null,":",null,":",null,":",null,":",null,":",null,":",null,":",null,":",null,":",null,":"]
["S11_S12","D","EPS_P1_ANCESA",null,"( P1_ANC_ESA.3c ) Ancillary EP output (ESA-compatible output) ((P2_NEPS.3c) + (D1.3c) + (P51C.3c) + (D29-D39.3c))",null,null,null,2014,":",null,":",null,":",null,":",null,":",null,":",null,":",null,":",null,":",null,":",null,":",null,":"]
["S11_S12","D","EPS_P1_ANCESA",null,null,null,null,null,2015,":",null,":",null,":",null,":",null,":",null,":",null,":",null,":",null,":",null,":",null,":",null,":"]
["S11_S12","D","EPS_P1_ANCESA",null,null,null,null,null,2016,":",null,":",null,":",null,":",null,":",null,":",null,":",null,":",null,":",null,":",null,":",null,":"]
["S11_S12","D","EPS_P1_ANCESA",null,null,null,null,null,2017,":",null,":",null,":",null,":",null,":",null,":",null,":",null,":",null,":",null,":",null,":",null,":"]
["S11_S12","D","EPS_P1_ANCESA",null,null,null,null,null,2018,":",null,":",null,":",null,":",null,":",null,":",null,":",null,":",null,":",null,":",null,":",null,":"]
["S11_S12","D","EPS_P1_ANCESA",null,null,null,null,null,2019,":",null,":",null,":",null,":",null,":",null,":",null,":",null,":",null,":",null,":",null,":",null,":"]
["S11_S12","D","EPS_P1_ANCESA",null,null,null,null,null,2020,":",null,":",null,":",null,":",null,":",null,":",null,":",null,":",null,":",null,":",null,":",null,":"]
["S11_S12","D","EPS_P1_ANCESA",null,null,null,null,null,2021,":",null,":",null,":",null,":",null,":",null,":",null,":",null,":",null,":",null,":",null,":",null,":"]
["S11_S12","D","EPS_P1_ANCESA",null,null,null,null,null,2022,":",null,":",null,":",null,":",null,":",null,":",null,":",null,":",null,":",null,":",null,":",null,":"]
["S11_S12","D","EPS_P1_ANCESA",null,null,null,null,null,2023,":",null,":",null,":",null,":",null,":",null,":",null,":",null,":",null,":",null,":",null,":",null,":"]
["S11_S12","D","EPS_P1_ANCESA",null,null,null,null,null,2024,":",null,":",null,":",null,":",null,":",null,":",null,":",null,":",null,":",null,":",null,":",null,":"]
["S11_S12","D","EPS_P1_ANCESA",null,null,null,null,null,2025,":",null,":",null,":",null,":",null,":",null,":",null,":",null,":",null,":",null,":",null,":",null,":"]
["S11_S12","D","EPS_P1_ANCESA",null,null,null,null,null,2026,":",null,":",null,":",null,":",null,":",null,":",null,":",null,":",null,":",null,":",null,":",null,":"]
["S11_S12","D","EPS_P1_ANCESA",null,null,null,null,null,2027,":",null,":",null,":",null,":",null,":",null,":",null,":",null,":",null,":",null,":",null,":",null,{"$f":"IF(COUNT(J200,N200,P200,R200,T200,V200,AD200)=7,SUM(J200,N200,P200,R200,T200,V200,AD200),\":\")","v":":"}]
["S11_S12","D","EPS_P1_ANCESA",null,null,null,null,null,2028,":",null,":",null,":",null,":",null,":",null,":",null,":",null,":",null,":",null,":",null,":",null,":"]
["S11_S12","D","EPS_P1_ANCESA",null,null,null,null,null,2029,":",null,":",null,":",null,":",null,":",null,":",null,":",null,":",null,":",null,":",null,":",null,":"]
["S11_S12","D","EPS_P1_ANCESA",null,null,null,null,null,2030,":",null,":",null,":",null,":",null,":",null,":",null,":",null,":",null,":",null,":",null,":",null,":"]
["S11_S12","D","EPS_P1_ANCESA",null,null,null,null,null,2031,":",null,":",null,":",null,":",null,":",null,":",null,":",null,":",null,":",null,":",null,":",null,":"]
["S11_S12","D","EPS_REC_BYPR",null,"   ( RNO.3c ) Related non-EP output",null,null,null,2014,":",null,":",null,":",null,":",null,":",null,":",null,":",null,":",null,":",null,":",null,":",null,":"]
["S11_S12","D","EPS_REC_BYPR",null,null,null,null,null,2015,":",null,":",null,":",null,":",null,":",null,":",null,":",null,":",null,":",null,":",null,":",null,":"]
["S11_S12","D","EPS_REC_BYPR",null,null,null,null,null,2016,":",null,":",null,":",null,":",null,":",null,":",null,":",null,":",null,":",null,":",null,":",null,":"]
["S11_S12","D","EPS_REC_BYPR",null,null,null,null,null,2017,":",null,":",null,":",null,":",null,":",null,":",null,":",null,":",null,":",null,":",null,":",null,":"]
["S11_S12","D","EPS_REC_BYPR",null,null,null,null,null,2018,":",null,":",null,":",null,":",null,":",null,":",null,":",null,":",null,":",null,":",null,":",null,":"]
["S11_S12","D","EPS_REC_BYPR",null,null,null,null,null,2019,":",null,":",null,":",null,":",null,":",null,":",null,":",null,":",null,":",null,":",null,":",null,":"]
["S11_S12","D","EPS_REC_BYPR",null,null,null,null,null,2020,":",null,":",null,":",null,":",null,":",null,":",null,":",null,":",null,":",null,":",null,":",null,":"]
["S11_S12","D","EPS_REC_BYPR",null,null,null,null,null,2021,":",null,":",null,":",null,":",null,":",null,":",null,":",null,":",null,":",null,":",null,":",null,":"]
["S11_S12","D","EPS_REC_BYPR",null,null,null,null,null,2022,":",null,":",null,":",null,":",null,":",null,":",null,":",null,":",null,":",null,":",null,":",null,":"]
["S11_S12","D","EPS_REC_BYPR",null,null,null,null,null,2023,":",null,":",null,":",null,":",null,":",null,":",null,":",null,":",null,":",null,":",null,":",null,":"]
["S11_S12","D","EPS_REC_BYPR",null,null,null,null,null,2024,":",null,":",null,":",null,":",null,":",null,":",null,":",null,":",null,":",null,":",null,":",null,":"]
["S11_S12","D","EPS_REC_BYPR",null,null,null,null,null,2025,":",null,":",null,":",null,":",null,":",null,":",null,":",null,":",null,":",null,":",null,":",null,":"]
["S11_S12","D","EPS_REC_BYPR",null,null,null,null,null,2026,":",null,":",null,":",null,":",null,":",null,":",null,":",null,":",null,":",null,":",null,":",null,":"]
["S11_S12","D","EPS_REC_BYPR",null,null,null,null,null,2027,":",null,":",null,":",null,":",null,":",null,":",null,":",null,":",null,":",null,":",null,":",null,":"]
["S11_S12","D","EPS_REC_BYPR",null,null,null,null,null,2028,":",null,":",null,":",null,":",null,":",null,":",null,":",null,":",null,":",null,":",null,":",null,":"]
["S11_S12","D","EPS_REC_BYPR",null,null,null,null,null,2029,":",null,":",null,":",null,":",null,":",null,":",null,":",null,":",null,":",null,":",null,":",null,":"]
["S11_S12","D","EPS_REC_BYPR",null,null,null,null,null,2030,":",null,":",null,":",null,":",null,":",null,":",null,":",null,":",null,":",null,":",null,":",null,":"]
["S11_S12","D","EPS_REC_BYPR",null,null,null,null,null,2031,":",null,":",null,":",null,":",null,":",null,":",null,":",null,":",null,":",null,":",null,":",null,":"]
["S11_S12","D","TOT_P2_EPS","Transactions as users of EP services (ancillary production of EP services and other production)","( P2_EPS_EXT.3c ) Total intermediate consumption of EP services (for production of EP services and for other production)",null,null,null,2014,":",null,":",null,":",null,":",null,":",null,":",null,":",null,":",null,":",null,":",null,":",null,":"]
["S11_S12","D","TOT_P2_EPS",null,"(P2_EPS_EXT.3x: please consider the explanatory notes - click here)",null,null,null,2015,":",null,":",null,":",null,":",null,":",null,":",null,":",null,":",null,":",null,":",null,":",null,":"]
["S11_S12","D","TOT_P2_EPS",null,null,null,null,null,2016,":",null,":",null,":",null,":",null,":",null,":",null,":",null,":",null,":",null,":",null,":",null,":"]
["S11_S12","D","TOT_P2_EPS",null,null,null,null,null,2017,":",null,":",null,":",null,":",null,":",null,":",null,":",null,":",null,":",null,":",null,":",null,":"]
["S11_S12","D","TOT_P2_EPS",null,null,null,null,null,2018,":",null,":",null,":",null,":",null,":",null,":",null,":",null,":",null,":",null,":",null,":",null,":"]
["S11_S12","D","TOT_P2_EPS",null,null,null,null,null,2019,":",null,":",null,":",null,":",null,":",null,":",null,":",null,":",null,":",null,":",null,":",null,":"]
["S11_S12","D","TOT_P2_EPS",null,null,null,null,null,2020,":",null,":",null,":",null,":",null,":",null,":",null,":",null,":",null,":",null,":",null,":",null,":"]
["S11_S12","D","TOT_P2_EPS",null,null,null,null,null,2021,":",null,":",null,":",null,":",null,":",null,":",null,":",null,":",null,":",null,":",null,":",null,":"]
["S11_S12","D","TOT_P2_EPS",null,null,null,null,null,2022,":",null,":",null,":",null,":",null,":",null,":",null,":",null,":",null,":",null,":",null,":",null,":"]
["S11_S12","D","TOT_P2_EPS",null,null,null,null,null,2023,":",null,":",null,":",null,":",null,":",null,":",null,":",null,":",null,":",null,":",null,":",null,":"]
["S11_S12","D","TOT_P2_EPS",null,null,null,null,null,2024,":",null,":",null,":",null,":",null,":",null,":",null,":",null,":",null,":",null,":",null,":",null,":"]
["S11_S12","D","TOT_P2_EPS",null,null,null,null,null,2025,":",null,":",null,":",null,":",null,":",null,":",null,":",null,":",null,":",null,":",null,":",null,":"]
["S11_S12","D","TOT_P2_EPS",null,null,null,null,null,2026,":",null,":",null,":",null,":",null,":",null,":",null,":",null,":",null,":",null,":",null,":",null,":"]
["S11_S12","D","TOT_P2_EPS",null,null,null,null,null,2027,":",null,":",null,":",null,":",null,":",null,":",null,":",null,":",null,":",null,":",null,":",null,":"]
["S11_S12","D","TOT_P2_EPS",null,null,null,null,null,2028,":",null,":",null,":",null,":",null,":",null,":",null,":",null,":",null,":",null,":",null,":",null,":"]
["S11_S12","D","TOT_P2_EPS",null,null,null,null,null,2029,":",null,":",null,":",null,":",null,":",null,":",null,":",null,":",null,":",null,":",null,":",null,":"]
["S11_S12","D","TOT_P2_EPS",null,null,null,null,null,2030,":",null,":",null,":",null,":",null,":",null,":",null,":",null,":",null,":",null,":",null,":",null,":"]
["S11_S12","D","TOT_P2_EPS",null,null,null,null,null,2031,":",null,":",null,":",null,":",null,":",null,":",null,":",null,":",null,":",null,":",null,":",null,":"]
["S11_S12","D","EPS_EMP","Transactions of producers of ancillary EP services","( EMP.3c ) Employment (Full time equivalents)",null,null,null,2014,":",null,":",null,":",null,":",null,":",null,":",null,":",null,":",null,":",null,":",null,":",null,":"]
["S11_S12","D","EPS_EMP",null,null,null,null,null,2015,":",null,":",null,":",null,":",null,":",null,":",null,":",null,":",null,":",null,":",null,":",null,":"]
["S11_S12","D","EPS_EMP",null,null,null,null,null,2016,":",null,":",null,":",null,":",null,":",null,":",null,":",null,":",null,":",null,":",null,":",null,":"]
["S11_S12","D","EPS_EMP",null,null,null,null,null,2017,":",null,":",null,":",null,":",null,":",null,":",null,":",null,":",null,":",null,":",null,":",null,":"]
["S11_S12","D","EPS_EMP",null,null,null,null,null,2018,":",null,":",null,":",null,":",null,":",null,":",null,":",null,":",null,":",null,":",null,":",null,":"]
["S11_S12","D","EPS_EMP",null,null,null,null,null,2019,":",null,":",null,":",null,":",null,":",null,":",null,":",null,":",null,":",null,":",null,":",null,":"]
["S11_S12","D","EPS_EMP",null,null,null,null,null,2020,":",null,":",null,":",null,":",null,":",null,":",null,":",null,":",null,":",null,":",null,":",null,":"]
["S11_S12","D","EPS_EMP",null,null,null,null,null,2021,":",null,":",null,":",null,":",null,":",null,":",null,":",null,":",null,":",null,":",null,":",null,":"]
["S11_S12","D","EPS_EMP",null,null,null,null,null,2022,":",null,":",null,":",null,":",null,":",null,":",null,":",null,":",null,":",null,":",null,":",null,":"]
["S11_S12","D","EPS_EMP",null,null,null,null,null,2023,":",null,":",null,":",null,":",null,":",null,":",null,":",null,":",null,":",null,":",null,":",null,":"]
["S11_S12","D","EPS_EMP",null,null,null,null,null,2024,":",null,":",null,":",null,":",null,":",null,":",null,":",null,":",null,":",null,":",null,":",null,":"]
["S11_S12","D","EPS_EMP",null,null,null,null,null,2025,":",null,":",null,":",null,":",null,":",null,":",null,":",null,":",null,":",null,":",null,":",null,":"]
["S11_S12","D","EPS_EMP",null,null,null,null,null,2026,":",null,":",null,":",null,":",null,":",null,":",null,":",null,":",null,":",null,":",null,":",null,":"]
["S11_S12","D","EPS_EMP",null,null,null,null,null,2027,":",null,":",null,":",null,":",null,":",null,":",null,":",null,":",null,":",null,":",null,":",null,":"]
["S11_S12","D","EPS_EMP",null,null,null,null,null,2028,":",null,":",null,":",null,":",null,":",null,":",null,":",null,":",null,":",null,":",null,":",null,":"]
["S11_S12","D","EPS_EMP",null,null,null,null,null,2029,":",null,":",null,":",null,":",null,":",null,":",null,":",null,":",null,":",null,":",null,":",null,":"]
["S11_S12","D","EPS_EMP",null,null,null,null,null,2030,":",null,":",null,":",null,":",null,":",null,":",null,":",null,":",null,":",null,":",null,":",null,":"]
["S11_S12","D","EPS_EMP",null,null,null,null,null,2031,":",null,":",null,":",null,":",null,":",null,":",null,":",null,":",null,":",null,":",null,":",null,":"]

{"sheet":"3d","index":35,"n_rows":258,"n_cols":32,"rows_kept":258,"cut":false,"hidden":false,"merged":[[222,4,222,7],[116,4,116,7],[132,4,132,7],[79,4,79,7],[99,4,99,7],[168,4,168,7],[169,4,169,7],[170,4,170,7],[150,4,150,7],[151,4,151,7],[153,4,153,7],[78,4,78,7],[96,4,96,7],[97,4,97,7],[133,4,133,7],[134,4,134,7],[45,4,45,7],[240,3,257,3],[240,4,240,7],[241,4,241,7],[242,4,242,7],[187,4,187,7],[189,4,189,7],[204,4,204,7],[205,4,205,7],[207,4,207,7],[222,3,239,3],[6,3,221,3],[186,4,186,7],[115,4,115,7],[223,4,223,7],[114,4,114,7],[27,4,27,7],[25,4,25,7],[26,4,26,7],[42,4,42,7],[43,4,43,7],[3,15,4,16],[3,17,4,18],[3,29,4,30],[24,4,24,7],[6,4,6,7],[7,4,7,7],[9,4,9,7],[60,4,60,7],[0,4,0,8],[0,9,0,15],[1,4,1,8],[1,9,1,32],[2,9,2,32],[3,31,4,32],[4,4,4,7],[3,19,4,20],[3,21,4,22],[3,23,4,24],[3,25,4,26],[3,27,4,28],[3,9,4,10],[3,11,4,12],[3,13,4,14]]}
[null,null,null,null,{"$f":"Cover!B21","v":"QUESTIONNAIRE ON ENVIRONMENTAL PROTECTION EXPENDITURE ACCOUNTS"},null,null,null,null,"Table 3d. Corporations: other (also covering producers of ancillary EP services):  NACE Rev. E36"]
[null,null,null,null,{"$f":"E1","v":"QUESTIONNAIRE ON ENVIRONMENTAL PROTECTION EXPENDITURE ACCOUNTS"},null,null,null,null,{"$f":"J1","v":"Table 3d. Corporations: other (also covering producers of ancillary EP services):  NACE Rev. E36"}]
[null,null,null,null,null,null,null,null,null,"Mandatory and voluntary variables and environmental domains - please fill in as much as possible"]
[null,null,null,null,"Country/Unit",{"$f":"IFERROR(Cover!C16,\"\")","v":""},{"$f":"\"\"&Cover!B16","v":""},{"$f":"Cover!B17","v":"Million units of national currency"},null,"CEPA 1",null,"of which CEPA 1.1.2 and 1.2.2 Climate change",null,"CEPA 2",null,"CEPA 3",null,"CEPA 4",null,"CEPA 5",null,"CEPA 6",null,"CEPA 7",null,"CEPA 8",null,"CEPA 9",null,"Sum of CEPA 7+8+9",null,"TOTAL"]
[null,null,null,null,"Expenditure",null,null,null,"Year",null,null,null,null,null,null,null,null,null,null,null,null,null,null,null,null,null,null,null,null,"Landscape",null,"Landscape"]
[null,null,null,null,null,null,null,null,null,"CEPA1",null,"CEPA112_122",null,"CEPA2",null,"CEPA3",null,"CEPA4",null,"CEPA5",null,"CEPA6",null,"CEPA7",null,"CEPA8",null,"CEPA9",null,"CEPA7-9",null,"TOT_CEPA"]
["S11_S12","E36","EPS_P51G_NP","Transactions of producers of ancillary EP services","( P51G_NP.3d ) Gross fixed capital formation and acquisition less disposals of non-financial non-produced assets",null,null,null,2014,":",null,":",null,":",null,":",null,":",null,":",null,":",null,":",null,":",null,":",null,":",null,{"$f":"IF(COUNT(J7,N7,P7,R7,T7,V7,AD7)=7,SUM(J7,N7,P7,R7,T7,V7,AD7),\":\")","v":":"}]
["S11_S12","E36","EPS_P51G_NP",null,null,null,null,null,2015,":",null,":",null,":",null,":",null,":",null,":",null,":",null,":",null,":",null,":",null,":",null,{"$f":"IF(COUNT(J8,N8,P8,R8,T8,V8,AD8)=7,SUM(J8,N8,P8,R8,T8,V8,AD8),\":\")","v":":"}]
["S11_S12","E36","EPS_P51G_NP",null,null,null,null,null,2016,":",null,":",null,":",null,":",null,":",null,":",null,":",null,":",null,":",null,":",null,":",null,":"]
["S11_S12","E36","EPS_P51G_NP",null,null,null,null,null,2017,":",null,":",null,":",null,":",null,":",null,":",null,":",null,":",null,":",null,":",null,":",null,":"]
["S11_S12","E36","EPS_P51G_NP",null,null,null,null,null,2018,":",null,":",null,":",null,":",null,":",null,":",null,":",null,":",null,":",null,":",null,":",null,":"]
["S11_S12","E36","EPS_P51G_NP",null,null,null,null,null,2019,":",null,":",null,":",null,":",null,":",null,":",null,":",null,":",null,":",null,":",null,":",null,":"]
["S11_S12","E36","EPS_P51G_NP",null,null,null,null,null,2020,":",null,":",null,":",null,":",null,":",null,":",null,":",null,":",null,":",null,":",null,":",null,":"]
["S11_S12","E36","EPS_P51G_NP",null,null,null,null,null,2021,":",null,":",null,":",null,":",null,":",null,":",null,":",null,":",null,":",null,":",null,":",null,":"]
["S11_S12","E36","EPS_P51G_NP",null,null,null,null,null,2022,":",null,":",null,":",null,":",null,":",null,":",null,":",null,":",null,":",null,":",null,":",null,":"]
["S11_S12","E36","EPS_P51G_NP",null,null,null,null,null,2023,":",null,":",null,":",null,":",null,":",null,":",null,":",null,":",null,":",null,":",null,":",null,":"]
["S11_S12","E36","EPS_P51G_NP",null,null,null,null,null,2024,":",null,":",null,":",null,":",null,":",null,":",null,":",null,":",null,":",null,":",null,":",null,":"]
["S11_S12","E36","EPS_P51G_NP",null,null,null,null,null,2025,":",null,":",null,":",null,":",null,":",null,":",null,":",null,":",null,":",null,":",null,":",null,":"]
["S11_S12","E36","EPS_P51G_NP",null,null,null,null,null,2026,":",null,":",null,":",null,":",null,":",null,":",null,":",null,":",null,":",null,":",null,":",null,":"]
["S11_S12","E36","EPS_P51G_NP",null,null,null,null,null,2027,":",null,":",null,":",null,":",null,":",null,":",null,":",null,":",null,":",null,":",null,":",null,":"]
["S11_S12","E36","EPS_P51G_NP",null,null,null,null,null,2028,":",null,":",null,":",null,":",null,":",null,":",null,":",null,":",null,":",null,":",null,":",null,":"]
["S11_S12","E36","EPS_P51G_NP",null,null,null,null,null,2029,":",null,":",null,":",null,":",null,":",null,":",null,":",null,":",null,":",null,":",null,":",null,":"]
["S11_S12","E36","EPS_P51G_NP",null,null,null,null,null,2030,":",null,":",null,":",null,":",null,":",null,":",null,":",null,":",null,":",null,":",null,":",null,":"]
["S11_S12","E36","EPS_P51G_NP",null,null,null,null,null,2031,":",null,":",null,":",null,":",null,":",null,":",null,":",null,":",null,":",null,":",null,":",null,":"]
["S11_S12","E36","EPS_INV_PT",null,"( INV_EOP.3d )  GFCF on specific EP fixed assets (end-of-pipe technologies) ",null,null,null,2014,":",null,":",null,":",null,":",null,":",null,":",null,":",null,":",null,":",null,":",null,":",null,":"]
["S11_S12","E36","EPS_INV_PT",null,null,null,null,null,2015,":",null,":",null,":",null,":",null,":",null,":",null,":",null,":",null,":",null,":",null,":",null,":"]
["S11_S12","E36","EPS_INV_PT",null,null,null,null,null,2016,":",null,":",null,":",null,":",null,":",null,":",null,":",null,":",null,":",null,":",null,":",null,":"]
["S11_S12","E36","EPS_INV_PT",null,null,null,null,null,2017,":",null,":",null,":",null,":",null,":",null,":",null,":",null,":",null,":",null,":",null,":",null,":"]
["S11_S12","E36","EPS_INV_PT",null,null,null,null,null,2018,":",null,":",null,":",null,":",null,":",null,":",null,":",null,":",null,":",null,":",null,":",null,":"]
["S11_S12","E36","EPS_INV_PT",null,null,null,null,null,2019,":",null,":",null,":",null,":",null,":",null,":",null,":",null,":",null,":",null,":",null,":",null,":"]
["S11_S12","E36","EPS_INV_PT",null,null,null,null,null,2020,":",null,":",null,":",null,":",null,":",null,":",null,":",null,":",null,":",null,":",null,":",null,":"]
["S11_S12","E36","EPS_INV_PT",null,null,null,null,null,2021,":",null,":",null,":",null,":",null,":",null,":",null,":",null,":",null,":",null,":",null,":",null,":"]
["S11_S12","E36","EPS_INV_PT",null,null,null,null,null,2022,":",null,":",null,":",null,":",null,":",null,":",null,":",null,":",null,":",null,":",null,":",null,":"]
["S11_S12","E36","EPS_INV_PT",null,null,null,null,null,2023,":",null,":",null,":",null,":",null,":",null,":",null,":",null,":",null,":",null,":",null,":",null,":"]
["S11_S12","E36","EPS_INV_PT",null,null,null,null,null,2024,":",null,":",null,":",null,":",null,":",null,":",null,":",null,":",null,":",null,":",null,":",null,":"]
["S11_S12","E36","EPS_INV_PT",null,null,null,null,null,2025,":",null,":",null,":",null,":",null,":",null,":",null,":",null,":",null,":",null,":",null,":",null,":"]
["S11_S12","E36","EPS_INV_PT",null,null,null,null,null,2026,":",null,":",null,":",null,":",null,":",null,":",null,":",null,":",null,":",null,":",null,":",null,":"]
["S11_S12","E36","EPS_INV_PT",null,null,null,null,null,2027,":",null,":",null,":",null,":",null,":",null,":",null,":",null,":",null,":",null,":",null,":",null,":"]
["S11_S12","E36","EPS_INV_PT",null,null,null,null,null,2028,":",null,":",null,":",null,":",null,":",null,":",null,":",null,":",null,":",null,":",null,":",null,":"]
["S11_S12","E36","EPS_INV_PT",null,null,null,null,null,2029,":",null,":",null,":",null,":",null,":",null,":",null,":",null,":",null,":",null,":",null,":",null,":"]
["S11_S12","E36","EPS_INV_PT",null,null,null,null,null,2030,":",null,":",null,":",null,":",null,":",null,":",null,":",null,":",null,":",null,":",null,":",null,":"]
["S11_S12","E36","EPS_INV_PT",null,null,null,null,null,2031,":",null,":",null,":",null,":",null,":",null,":",null,":",null,":",null,":",null,":",null,":",null,":"]
["S11_S12","E36","EPS_INV_PP",null,"( INV_IT.3d ) GFCF on cleaner EP fixed assets (integrated technologies)",null,null,null,2014,":",null,":",null,":",null,":",null,":",null,":",null,":",null,":",null,":",null,":",null,":",null,":"]
["S11_S12","E36","EPS_INV_PP",null,null,null,null,null,2015,":",null,":",null,":",null,":",null,":",null,":",null,":",null,":",null,":",null,":",null,":",null,":"]
["S11_S12","E36","EPS_INV_PP",null,null,null,null,null,2016,":",null,":",null,":",null,":",null,":",null,":",null,":",null,":",null,":",null,":",null,":",null,":"]
["S11_S12","E36","EPS_INV_PP",null,null,null,null,null,2017,":",null,":",null,":",null,":",null,":",null,":",null,":",null,":",null,":",null,":",null,":",null,":"]
["S11_S12","E36","EPS_INV_PP",null,null,null,null,null,2018,":",null,":",null,":",null,":",null,":",null,":",null,":",null,":",null,":",null,":",null,":",null,":"]
["S11_S12","E36","EPS_INV_PP",null,null,null,null,null,2019,":",null,":",null,":",null,":",null,":",null,":",null,":",null,":",null,":",null,":",null,":",null,":"]
["S11_S12","E36","EPS_INV_PP",null,null,null,null,null,2020,":",null,":",null,":",null,":",null,":",null,":",null,":",null,":",null,":",null,":",null,":",null,":"]
["S11_S12","E36","EPS_INV_PP",null,null,null,null,null,2021,":",null,":",null,":",null,":",null,":",null,":",null,":",null,":",null,":",null,":",null,":",null,":"]
["S11_S12","E36","EPS_INV_PP",null,null,null,null,null,2022,":",null,":",null,":",null,":",null,":",null,":",null,":",null,":",null,":",null,":",null,":",null,":"]
["S11_S12","E36","EPS_INV_PP",null,null,null,null,null,2023,":",null,":",null,":",null,":",null,":",null,":",null,":",null,":",null,":",null,":",null,":",null,":"]
["S11_S12","E36","EPS_INV_PP",null,null,null,null,null,2024,":",null,":",null,":",null,":",null,":",null,":",null,":",null,":",null,":",null,":",null,":",null,":"]
["S11_S12","E36","EPS_INV_PP",null,null,null,null,null,2025,":",null,":",null,":",null,":",null,":",null,":",null,":",null,":",null,":",null,":",null,":",null,":"]
["S11_S12","E36","EPS_INV_PP",null,null,null,null,null,2026,":",null,":",null,":",null,":",null,":",null,":",null,":",null,":",null,":",null,":",null,":",null,":"]
["S11_S12","E36","EPS_INV_PP",null,null,null,null,null,2027,":",null,":",null,":",null,":",null,":",null,":",null,":",null,":",null,":",null,":",null,":",null,":"]
["S11_S12","E36","EPS_INV_PP",null,null,null,null,null,2028,":",null,":",null,":",null,":",null,":",null,":",null,":",null,":",null,":",null,":",null,":",null,":"]
["S11_S12","E36","EPS_INV_PP",null,null,null,null,null,2029,":",null,":",null,":",null,":",null,":",null,":",null,":",null,":",null,":",null,":",null,":",null,":"]
["S11_S12","E36","EPS_INV_PP",null,null,null,null,null,2030,":",null,":",null,":",null,":",null,":",null,":",null,":",null,":",null,":",null,":",null,":",null,":"]
["S11_S12","E36","EPS_INV_PP",null,null,null,null,null,2031,":",null,":",null,":",null,":",null,":",null,":",null,":",null,":",null,":",null,":",null,":",null,":"]
["S11_S12","E36","EPS_P2",null,"( P2.3d ) Total intermediate consumption",null,null,null,2014,":",null,":",null,":",null,":",null,":",null,":",null,":",null,":",null,":",null,":",null,":",null,":"]
["S11_S12","E36","EPS_P2",null,null,null,null,null,2015,":",null,":",null,":",null,":",null,":",null,":",null,":",null,":",null,":",null,":",null,":",null,":"]
["S11_S12","E36","EPS_P2",null,null,null,null,null,2016,":",null,":",null,":",null,":",null,":",null,":",null,":",null,":",null,":",null,":",null,":",null,":"]
["S11_S12","E36","EPS_P2",null,null,null,null,null,2017,":",null,":",null,":",null,":",null,":",null,":",null,":",null,":",null,":",null,":",null,":",null,":"]
["S11_S12","E36","EPS_P2",null,null,null,null,null,2018,":",null,":",null,":",null,":",null,":",null,":",null,":",null,":",null,":",null,":",null,":",null,":"]
["S11_S12","E36","EPS_P2",null,null,null,null,null,2019,":",null,":",null,":",null,":",null,":",null,":",null,":",null,":",null,":",null,":",null,":",null,":"]
["S11_S12","E36","EPS_P2",null,null,null,null,null,2020,":",null,":",null,":",null,":",null,":",null,":",null,":",null,":",null,":",null,":",null,":",null,":"]
["S11_S12","E36","EPS_P2",null,null,null,null,null,2021,":",null,":",null,":",null,":",null,":",null,":",null,":",null,":",null,":",null,":",null,":",null,":"]
["S11_S12","E36","EPS_P2",null,null,null,null,null,2022,":",null,":",null,":",null,":",null,":",null,":",null,":",null,":",null,":",null,":",null,":",null,":"]
["S11_S12","E36","EPS_P2",null,null,null,null,null,2023,":",null,":",null,":",null,":",null,":",null,":",null,":",null,":",null,":",null,":",null,":",null,":"]
["S11_S12","E36","EPS_P2",null,null,null,null,null,2024,":",null,":",null,":",null,":",null,":",null,":",null,":",null,":",null,":",null,":",null,":",null,":"]
["S11_S12","E36","EPS_P2",null,null,null,null,null,2025,":",null,":",null,":",null,":",null,":",null,":",null,":",null,":",null,":",null,":",null,":",null,{"$f":"IF(COUNT(J72,N72,P72,R72,T72,V72,AD72)=7,SUM(J72,N72,P72,R72,T72,V72,AD72),\":\")","v":":"}]
["S11_S12","E36","EPS_P2",null,null,null,null,null,2026,":",null,":",null,":",null,":",null,":",null,":",null,":",null,":",null,":",null,":",null,":",null,":"]
["S11_S12","E36","EPS_P2",null,null,null,null,null,2027,":",null,":",null,":",null,":",null,":",null,":",null,":",null,":",null,":",null,":",null,":",null,":"]
["S11_S12","E36","EPS_P2",null,null,null,null,null,2028,":",null,":",null,":",null,":",null,":",null,":",null,":",null,":",null,":",null,":",null,":",null,":"]
["S11_S12","E36","EPS_P2",null,null,null,null,null,2029,":",null,":",null,":",null,":",null,":",null,":",null,":",null,":",null,":",null,":",null,":",null,":"]
["S11_S12","E36","EPS_P2",null,null,null,null,null,2030,":",null,":",null,":",null,":",null,":",null,":",null,":",null,":",null,":",null,":",null,":",null,":"]
["S11_S12","E36","EPS_P2",null,null,null,null,null,2031,":",null,":",null,":",null,":",null,":",null,":",null,":",null,":",null,":",null,":",null,":",null,":"]
["S11_S12","E36","EPS_P2_EPS",null,"( P2_EPS.3d ) Intermediate consumption of EP services for ancillary production of EP services ",null,null,null,2014,":",null,":",null,":",null,":",null,":",null,":",null,":",null,":",null,":",null,":",null,":",null,":"]
["S11_S12","E36","EPS_P2_EPS",null,"(P2_EPS.3: please consider the explanatory notes - click here)",null,null,null,2015,":",null,":",null,":",null,":",null,":",null,":",null,":",null,":",null,":",null,":",null,":",null,":"]
["S11_S12","E36","EPS_P2_EPS",null,null,null,null,null,2016,":",null,":",null,":",null,":",null,":",null,":",null,":",null,":",null,":",null,":",null,":",null,":"]
["S11_S12","E36","EPS_P2_EPS",null,null,null,null,null,2017,":",null,":",null,":",null,":",null,":",null,":",null,":",null,":",null,":",null,":",null,":",null,":"]
["S11_S12","E36","EPS_P2_EPS",null,null,null,null,null,2018,":",null,":",null,":",null,":",null,":",null,":",null,":",null,":",null,":",null,":",null,":",null,":"]
["S11_S12","E36","EPS_P2_EPS",null,null,null,null,null,2019,":",null,":",null,":",null,":",null,":",null,":",null,":",null,":",null,":",null,":",null,":",null,":"]
["S11_S12","E36","EPS_P2_EPS",null,null,null,null,null,2020,":",null,":",null,":",null,":",null,":",null,":",null,":",null,":",null,":",null,":",null,":",null,":"]
["S11_S12","E36","EPS_P2_EPS",null,null,null,null,null,2021,":",null,":",null,":",null,":",null,":",null,":",null,":",null,":",null,":",null,":",null,":",null,":"]
["S11_S12","E36","EPS_P2_EPS",null,null,null,null,null,2022,":",null,":",null,":",null,":",null,":",null,":",null,":",null,":",null,":",null,":",null,":",null,":"]
["S11_S12","E36","EPS_P2_EPS",null,null,null,null,null,2023,":",null,":",null,":",null,":",null,":",null,":",null,":",null,":",null,":",null,":",null,":",null,":"]
["S11_S12","E36","EPS_P2_EPS",null,null,null,null,null,2024,":",null,":",null,":",null,":",null,":",null,":",null,":",null,":",null,":",null,":",null,":",null,":"]
["S11_S12","E36","EPS_P2_EPS",null,null,null,null,null,2025,":",null,":",null,":",null,":",null,":",null,":",null,":",null,":",null,":",null,":",null,":",null,":"]
["S11_S12","E36","EPS_P2_EPS",null,null,null,null,null,2026,":",null,":",null,":",null,":",null,":",null,":",null,":",null,":",null,":",null,":",null,":",null,":"]
["S11_S12","E36","EPS_P2_EPS",null,null,null,null,null,2027,":",null,":",null,":",null,":",null,":",null,":",null,":",null,":",null,":",null,":",null,":",null,":"]
["S11_S12","E36","EPS_P2_EPS",null,null,null,null,null,2028,":",null,":",null,":",null,":",null,":",null,":",null,":",null,":",null,":",null,":",null,":",null,":"]
["S11_S12","E36","EPS_P2_EPS",null,null,null,null,null,2029,":",null,":",null,":",null,":",null,":",null,":",null,":",null,":",null,":",null,":",null,":",null,":"]
["S11_S12","E36","EPS_P2_EPS",null,null,null,null,null,2030,":",null,":",null,":",null,":",null,":",null,":",null,":",null,":",null,":",null,":",null,":",null,":"]
["S11_S12","E36","EPS_P2_EPS",null,null,null,null,null,2031,":",null,":",null,":",null,":",null,":",null,":",null,":",null,":",null,":",null,":",null,":",null,":"]
["S11_S12","E36","EPS_P2_NEPS",null,"( P2_NEPS.3d ) Intermediate consumption (excluding EP services)",null,null,null,2014,":",null,":",null,":",null,":",null,":",null,":",null,":",null,":",null,":",null,":",null,":",null,":"]
["S11_S12","E36","EPS_P2_NEPS",null,null,null,null,null,2015,":",null,":",null,":",null,":",null,":",null,":",null,":",null,":",null,":",null,":",null,":",null,":"]
["S11_S12","E36","EPS_P2_NEPS",null,null,null,null,null,2016,":",null,":",null,":",null,":",null,":",null,":",null,":",null,":",null,":",null,":",null,":",null,":"]
["S11_S12","E36","EPS_P2_NEPS",null,null,null,null,null,2017,":",null,":",null,":",null,":",null,":",null,":",null,":",null,":",null,":",null,":",null,":",null,":"]
["S11_S12","E36","EPS_P2_NEPS",null,null,null,null,null,2018,":",null,":",null,":",null,":",null,":",null,":",null,":",null,":",null,":",null,":",null,":",null,":"]
["S11_S12","E36","EPS_P2_NEPS",null,null,null,null,null,2019,":",null,":",null,":",null,":",null,":",null,":",null,":",null,":",null,":",null,":",null,":",null,":"]
["S11_S12","E36","EPS_P2_NEPS",null,null,null,null,null,2020,":",null,":",null,":",null,":",null,":",null,":",null,":",null,":",null,":",null,":",null,":",null,":"]
["S11_S12","E36","EPS_P2_NEPS",null,null,null,null,null,2021,":",null,":",null,":",null,":",null,":",null,":",null,":",null,":",null,":",null,":",null,":",null,":"]
["S11_S12","E36","EPS_P2_NEPS",null,null,null,null,null,2022,":",null,":",null,":",null,":",null,":",null,":",null,":",null,":",null,":",null,":",null,":",null,":"]
["S11_S12","E36","EPS_P2_NEPS",null,null,null,null,null,2023,":",null,":",null,":",null,":",null,":",null,":",null,":",null,":",null,":",null,":",null,":",null,":"]
["S11_S12","E36","EPS_P2_NEPS",null,null,null,null,null,2024,":",null,":",null,":",null,":",null,":",null,":",null,":",null,":",null,":",null,":",null,":",null,":"]
["S11_S12","E36","EPS_P2_NEPS",null,null,null,null,null,2025,":",null,":",null,":",null,":",null,":",null,":",null,":",null,":",null,":",null,":",null,":",null,":"]
["S11_S12","E36","EPS_P2_NEPS",null,null,null,null,null,2026,":",null,":",null,":",null,":",null,":",null,":",null,":",null,":",null,":",null,":",null,":",null,":"]
["S11_S12","E36","EPS_P2_NEPS",null,null,null,null,null,2027,":",null,":",null,":",null,":",null,":",null,":",null,":",null,":",null,":",null,":",null,":",null,":"]
["S11_S12","E36","EPS_P2_NEPS",null,null,null,null,null,2028,":",null,":",null,":",null,":",null,":",null,":",null,":",null,":",null,":",null,":",null,":",null,":"]
["S11_S12","E36","EPS_P2_NEPS",null,null,null,null,null,2029,":",null,":",null,":",null,":",null,":",null,":",null,":",null,":",null,":",null,":",null,":",null,":"]
["S11_S12","E36","EPS_P2_NEPS",null,null,null,null,null,2030,":",null,":",null,":",null,":",null,":",null,":",null,":",null,":",null,":",null,":",null,":",null,":"]
["S11_S12","E36","EPS_P2_NEPS",null,null,null,null,null,2031,":",null,":",null,":",null,":",null,":",null,":",null,":",null,":",null,":",null,":",null,":",null,":"]
["S11_S12","E36","EPS_D1",null,"( D1.3d ) Compensation of employees",null,null,null,2014,":",null,":",null,":",null,":",null,":",null,":",null,":",null,":",null,":",null,":",null,":",null,":"]
["S11_S12","E36","EPS_D1",null,null,null,null,null,2015,":",null,":",null,":",null,":",null,":",null,":",null,":",null,":",null,":",null,":",null,":",null,":"]
["S11_S12","E36","EPS_D1",null,null,null,null,null,2016,":",null,":",null,":",null,":",null,":",null,":",null,":",null,":",null,":",null,":",null,":",null,":"]
["S11_S12","E36","EPS_D1",null,null,null,null,null,2017,":",null,":",null,":",null,":",null,":",null,":",null,":",null,":",null,":",null,":",null,":",null,":"]
["S11_S12","E36","EPS_D1",null,null,null,null,null,2018,":",null,":",null,":",null,":",null,":",null,":",null,":",null,":",null,":",null,":",null,":",null,":"]
["S11_S12","E36","EPS_D1",null,null,null,null,null,2019,":",null,":",null,":",null,":",null,":",null,":",null,":",null,":",null,":",null,":",null,":",null,":"]
["S11_S12","E36","EPS_D1",null,null,null,null,null,2020,":",null,":",null,":",null,":",null,":",null,":",null,":",null,":",null,":",null,":",null,":",null,":"]
["S11_S12","E36","EPS_D1",null,null,null,null,null,2021,":",null,":",null,":",null,":",null,":",null,":",null,":",null,":",null,":",null,":",null,":",null,":"]
["S11_S12","E36","EPS_D1",null,null,null,null,null,2022,":",null,":",null,":",null,":",null,":",null,":",null,":",null,":",null,":",null,":",null,":",null,":"]
["S11_S12","E36","EPS_D1",null,null,null,null,null,2023,":",null,":",null,":",null,":",null,":",null,":",null,":",null,":",null,":",null,":",null,":",null,":"]
["S11_S12","E36","EPS_D1",null,null,null,null,null,2024,":",null,":",null,":",null,":",null,":",null,":",null,":",null,":",null,":",null,":",null,":",null,":"]
["S11_S12","E36","EPS_D1",null,null,null,null,null,2025,":",null,":",null,":",null,":",null,":",null,":",null,":",null,":",null,":",null,":",null,":",null,":"]
["S11_S12","E36","EPS_D1",null,null,null,null,null,2026,":",null,":",null,":",null,":",null,":",null,":",null,":",null,":",null,":",null,":",null,":",null,":"]
["S11_S12","E36","EPS_D1",null,null,null,null,null,2027,":",null,":",null,":",null,":",null,":",null,":",null,":",null,":",null,":",null,":",null,":",null,":"]
["S11_S12","E36","EPS_D1",null,null,null,null,null,2028,":",null,":",null,":",null,":",null,":",null,":",null,":",null,":",null,":",null,":",null,":",null,":"]
["S11_S12","E36","EPS_D1",null,null,null,null,null,2029,":",null,":",null,":",null,":",null,":",null,":",null,":",null,":",null,":",null,":",null,":",null,":"]
["S11_S12","E36","EPS_D1",null,null,null,null,null,2030,":",null,":",null,":",null,":",null,":",null,":",null,":",null,":",null,":",null,":",null,":",null,":"]
["S11_S12","E36","EPS_D1",null,null,null,null,null,2031,":",null,":",null,":",null,":",null,":",null,":",null,":",null,":",null,":",null,":",null,":",null,":"]
["S11_S12","E36","EPS_P1_ANC",null,"( P1_ANC.3d ) Ancillary EP output (simplified valuation legally acceptable) ((P2_NEPS.3d) + (D1.3d))",null,null,null,2014,":",null,":",null,":",null,":",null,":",null,":",null,":",null,":",null,":",null,":",null,":",null,":"]
["S11_S12","E36","EPS_P1_ANC",null,null,null,null,null,2015,":",null,":",null,":",null,":",null,":",null,":",null,":",null,":",null,":",null,":",null,":",null,":"]
["S11_S12","E36","EPS_P1_ANC",null,null,null,null,null,2016,":",null,":",null,":",null,":",null,":",null,":",null,":",null,":",null,":",null,":",null,":",null,":"]
["S11_S12","E36","EPS_P1_ANC",null,null,null,null,null,2017,":",null,":",null,":",null,":",null,":",null,":",null,":",null,":",null,":",null,":",null,":",null,{"$f":"IF(COUNT(J136,N136,P136,R136,T136,V136,AD136)=7,SUM(J136,N136,P136,R136,T136,V136,AD136),\":\")","v":":"}]
["S11_S12","E36","EPS_P1_ANC",null,null,null,null,null,2018,":",null,":",null,":",null,":",null,":",null,":",null,":",null,":",null,":",null,":",null,":",null,":"]
["S11_S12","E36","EPS_P1_ANC",null,null,null,null,null,2019,":",null,":",null,":",null,":",null,":",null,":",null,":",null,":",null,":",null,":",null,":",null,":"]
["S11_S12","E36","EPS_P1_ANC",null,null,null,null,null,2020,":",null,":",null,":",null,":",null,":",null,":",null,":",null,":",null,":",null,":",null,":",null,":"]
["S11_S12","E36","EPS_P1_ANC",null,null,null,null,null,2021,":",null,":",null,":",null,":",null,":",null,":",null,":",null,":",null,":",null,":",null,":",null,":"]
["S11_S12","E36","EPS_P1_ANC",null,null,null,null,null,2022,":",null,":",null,":",null,":",null,":",null,":",null,":",null,":",null,":",null,":",null,":",null,":"]
["S11_S12","E36","EPS_P1_ANC",null,null,null,null,null,2023,":",null,":",null,":",null,":",null,":",null,":",null,":",null,":",null,":",null,":",null,":",null,":"]
["S11_S12","E36","EPS_P1_ANC",null,null,null,null,null,2024,":",null,":",null,":",null,":",null,":",null,":",null,":",null,":",null,":",null,":",null,":",null,":"]
["S11_S12","E36","EPS_P1_ANC",null,null,null,null,null,2025,":",null,":",null,":",null,":",null,":",null,":",null,":",null,":",null,":",null,":",null,":",null,":"]
["S11_S12","E36","EPS_P1_ANC",null,null,null,null,null,2026,":",null,":",null,":",null,":",null,":",null,":",null,":",null,":",null,":",null,":",null,":",null,":"]
["S11_S12","E36","EPS_P1_ANC",null,null,null,null,null,2027,":",null,":",null,":",null,":",null,":",null,":",null,":",null,":",null,":",null,":",null,":",null,":"]
["S11_S12","E36","EPS_P1_ANC",null,null,null,null,null,2028,":",null,":",null,":",null,":",null,":",null,":",null,":",null,":",null,":",null,":",null,":",null,":"]
["S11_S12","E36","EPS_P1_ANC",null,null,null,null,null,2029,":",null,":",null,":",null,":",null,":",null,":",null,":",null,":",null,":",null,":",null,":",null,":"]
["S11_S12","E36","EPS_P1_ANC",null,null,null,null,null,2030,":",null,":",null,":",null,":",null,":",null,":",null,":",null,":",null,":",null,":",null,":",null,":"]
["S11_S12","E36","EPS_P1_ANC",null,null,null,null,null,2031,":",null,":",null,":",null,":",null,":",null,":",null,":",null,":",null,":",null,":",null,":",null,":"]
["S11_S12","E36","EPS_D29X39",null,"   ( D29-D39.3d ) Other taxes less subsidies on production",null,null,null,2014,":",null,":",null,":",null,":",null,":",null,":",null,":",null,":",null,":",null,":",null,":",null,":"]
["S11_S12","E36","EPS_D29X39",null,null,null,null,null,2015,":",null,":",null,":",null,":",null,":",null,":",null,":",null,":",null,":",null,":",null,":",null,":"]
["S11_S12","E36","EPS_D29X39",null,null,null,null,null,2016,":",null,":",null,":",null,":",null,":",null,":",null,":",null,":",null,":",null,":",null,":",null,":"]
["S11_S12","E36","EPS_D29X39",null,null,null,null,null,2017,":",null,":",null,":",null,":",null,":",null,":",null,":",null,":",null,":",null,":",null,":",null,":"]
["S11_S12","E36","EPS_D29X39",null,null,null,null,null,2018,":",null,":",null,":",null,":",null,":",null,":",null,":",null,":",null,":",null,":",null,":",null,":"]
["S11_S12","E36","EPS_D29X39",null,null,null,null,null,2019,":",null,":",null,":",null,":",null,":",null,":",null,":",null,":",null,":",null,":",null,":",null,":"]
["S11_S12","E36","EPS_D29X39",null,null,null,null,null,2020,":",null,":",null,":",null,":",null,":",null,":",null,":",null,":",null,":",null,":",null,":",null,":"]
["S11_S12","E36","EPS_D29X39",null,null,null,null,null,2021,":",null,":",null,":",null,":",null,":",null,":",null,":",null,":",null,":",null,":",null,":",null,":"]
["S11_S12","E36","EPS_D29X39",null,null,null,null,null,2022,":",null,":",null,":",null,":",null,":",null,":",null,":",null,":",null,":",null,":",null,":",null,":"]
["S11_S12","E36","EPS_D29X39",null,null,null,null,null,2023,":",null,":",null,":",null,":",null,":",null,":",null,":",null,":",null,":",null,":",null,":",null,":"]
["S11_S12","E36","EPS_D29X39",null,null,null,null,null,2024,":",null,":",null,":",null,":",null,":",null,":",null,":",null,":",null,":",null,":",null,":",null,":"]
["S11_S12","E36","EPS_D29X39",null,null,null,null,null,2025,":",null,":",null,":",null,":",null,":",null,":",null,":",null,":",null,":",null,":",null,":",null,":"]
["S11_S12","E36","EPS_D29X39",null,null,null,null,null,2026,":",null,":",null,":",null,":",null,":",null,":",null,":",null,":",null,":",null,":",null,":",null,":"]
["S11_S12","E36","EPS_D29X39",null,null,null,null,null,2027,":",null,":",null,":",null,":",null,":",null,":",null,":",null,":",null,":",null,":",null,":",null,":"]
["S11_S12","E36","EPS_D29X39",null,null,null,null,null,2028,":",null,":",null,":",null,":",null,":",null,":",null,":",null,":",null,":",null,":",null,":",null,":"]
["S11_S12","E36","EPS_D29X39",null,null,null,null,null,2029,":",null,":",null,":",null,":",null,":",null,":",null,":",null,":",null,":",null,":",null,":",null,":"]
["S11_S12","E36","EPS_D29X39",null,null,null,null,null,2030,":",null,":",null,":",null,":",null,":",null,":",null,":",null,":",null,":",null,":",null,":",null,":"]
["S11_S12","E36","EPS_D29X39",null,null,null,null,null,2031,":",null,":",null,":",null,":",null,":",null,":",null,":",null,":",null,":",null,":",null,":",null,":"]
["S11_S12","E36","EPS_P51C",null,"   ( P51C.3d ) Consumption of fixed capital",null,null,null,2014,":",null,":",null,":",null,":",null,":",null,":",null,":",null,":",null,":",null,":",null,":",null,":"]
["S11_S12","E36","EPS_P51C",null,null,null,null,null,2015,":",null,":",null,":",null,":",null,":",null,":",null,":",null,":",null,":",null,":",null,":",null,":"]
["S11_S12","E36","EPS_P51C",null,null,null,null,null,2016,":",null,":",null,":",null,":",null,":",null,":",null,":",null,":",null,":",null,":",null,":",null,":"]
["S11_S12","E36","EPS_P51C",null,null,null,null,null,2017,":",null,":",null,":",null,":",null,":",null,":",null,":",null,":",null,":",null,":",null,":",null,":"]
["S11_S12","E36","EPS_P51C",null,null,null,null,null,2018,":",null,":",null,":",null,":",null,":",null,":",null,":",null,":",null,":",null,":",null,":",null,":"]
["S11_S12","E36","EPS_P51C",null,null,null,null,null,2019,":",null,":",null,":",null,":",null,":",null,":",null,":",null,":",null,":",null,":",null,":",null,":"]
["S11_S12","E36","EPS_P51C",null,null,null,null,null,2020,":",null,":",null,":",null,":",null,":",null,":",null,":",null,":",null,":",null,":",null,":",null,":"]
["S11_S12","E36","EPS_P51C",null,null,null,null,null,2021,":",null,":",null,":",null,":",null,":",null,":",null,":",null,":",null,":",null,":",null,":",null,":"]
["S11_S12","E36","EPS_P51C",null,null,null,null,null,2022,":",null,":",null,":",null,":",null,":",null,":",null,":",null,":",null,":",null,":",null,":",null,":"]
["S11_S12","E36","EPS_P51C",null,null,null,null,null,2023,":",null,":",null,":",null,":",null,":",null,":",null,":",null,":",null,":",null,":",null,":",null,":"]
["S11_S12","E36","EPS_P51C",null,null,null,null,null,2024,":",null,":",null,":",null,":",null,":",null,":",null,":",null,":",null,":",null,":",null,":",null,":"]
["S11_S12","E36","EPS_P51C",null,null,null,null,null,2025,":",null,":",null,":",null,":",null,":",null,":",null,":",null,":",null,":",null,":",null,":",null,":"]
["S11_S12","E36","EPS_P51C",null,null,null,null,null,2026,":",null,":",null,":",null,":",null,":",null,":",null,":",null,":",null,":",null,":",null,":",null,":"]
["S11_S12","E36","EPS_P51C",null,null,null,null,null,2027,":",null,":",null,":",null,":",null,":",null,":",null,":",null,":",null,":",null,":",null,":",null,":"]
["S11_S12","E36","EPS_P51C",null,null,null,null,null,2028,":",null,":",null,":",null,":",null,":",null,":",null,":",null,":",null,":",null,":",null,":",null,":"]
["S11_S12","E36","EPS_P51C",null,null,null,null,null,2029,":",null,":",null,":",null,":",null,":",null,":",null,":",null,":",null,":",null,":",null,":",null,":"]
["S11_S12","E36","EPS_P51C",null,null,null,null,null,2030,":",null,":",null,":",null,":",null,":",null,":",null,":",null,":",null,":",null,":",null,":",null,":"]
["S11_S12","E36","EPS_P51C",null,null,null,null,null,2031,":",null,":",null,":",null,":",null,":",null,":",null,":",null,":",null,":",null,":",null,":",null,":"]
["S11_S12","E36","EPS_P1_ANCESA",null,"( P1_ANC_ESA.3d ) Ancillary EP output (ESA-compatible output) ((P2_NEPS.3d) + (D1.3d) + (P51C.3d) + (D29-D39.3d))",null,null,null,2014,":",null,":",null,":",null,":",null,":",null,":",null,":",null,":",null,":",null,":",null,":",null,":"]
["S11_S12","E36","EPS_P1_ANCESA",null,null,null,null,null,2015,":",null,":",null,":",null,":",null,":",null,":",null,":",null,":",null,":",null,":",null,":",null,":"]
["S11_S12","E36","EPS_P1_ANCESA",null,null,null,null,null,2016,":",null,":",null,":",null,":",null,":",null,":",null,":",null,":",null,":",null,":",null,":",null,":"]
["S11_S12","E36","EPS_P1_ANCESA",null,null,null,null,null,2017,":",null,":",null,":",null,":",null,":",null,":",null,":",null,":",null,":",null,":",null,":",null,":"]
["S11_S12","E36","EPS_P1_ANCESA",null,null,null,null,null,2018,":",null,":",null,":",null,":",null,":",null,":",null,":",null,":",null,":",null,":",null,":",null,":"]
["S11_S12","E36","EPS_P1_ANCESA",null,null,null,null,null,2019,":",null,":",null,":",null,":",null,":",null,":",null,":",null,":",null,":",null,":",null,":",null,":"]
["S11_S12","E36","EPS_P1_ANCESA",null,null,null,null,null,2020,":",null,":",null,":",null,":",null,":",null,":",null,":",null,":",null,":",null,":",null,":",null,":"]
["S11_S12","E36","EPS_P1_ANCESA",null,null,null,null,null,2021,":",null,":",null,":",null,":",null,":",null,":",null,":",null,":",null,":",null,":",null,":",null,":"]
["S11_S12","E36","EPS_P1_ANCESA",null,null,null,null,null,2022,":",null,":",null,":",null,":",null,":",null,":",null,":",null,":",null,":",null,":",null,":",null,":"]
["S11_S12","E36","EPS_P1_ANCESA",null,null,null,null,null,2023,":",null,":",null,":",null,":",null,":",null,":",null,":",null,":",null,":",null,":",null,":",null,":"]
["S11_S12","E36","EPS_P1_ANCESA",null,null,null,null,null,2024,":",null,":",null,":",null,":",null,":",null,":",null,":",null,":",null,":",null,":",null,":",null,":"]
["S11_S12","E36","EPS_P1_ANCESA",null,null,null,null,null,2025,":",null,":",null,":",null,":",null,":",null,":",null,":",null,":",null,":",null,":",null,":",null,":"]
["S11_S12","E36","EPS_P1_ANCESA",null,null,null,null,null,2026,":",null,":",null,":",null,":",null,":",null,":",null,":",null,":",null,":",null,":",null,":",null,":"]
["S11_S12","E36","EPS_P1_ANCESA",null,null,null,null,null,2027,":",null,":",null,":",null,":",null,":",null,":",null,":",null,":",null,":",null,":",null,":",null,{"$f":"IF(COUNT(J200,N200,P200,R200,T200,V200,AD200)=7,SUM(J200,N200,P200,R200,T200,V200,AD200),\":\")","v":":"}]
["S11_S12","E36","EPS_P1_ANCESA",null,null,null,null,null,2028,":",null,":",null,":",null,":",null,":",null,":",null,":",null,":",null,":",null,":",null,":",null,":"]
["S11_S12","E36","EPS_P1_ANCESA",null,null,null,null,null,2029,":",null,":",null,":",null,":",null,":",null,":",null,":",null,":",null,":",null,":",null,":",null,":"]
["S11_S12","E36","EPS_P1_ANCESA",null,null,null,null,null,2030,":",null,":",null,":",null,":",null,":",null,":",null,":",null,":",null,":",null,":",null,":",null,":"]
["S11_S12","E36","EPS_P1_ANCESA",null,null,null,null,null,2031,":",null,":",null,":",null,":",null,":",null,":",null,":",null,":",null,":",null,":",null,":",null,":"]
["S11_S12","E36","EPS_REC_BYPR",null,"   ( RNO.3d ) Related non-EP output",null,null,null,2014,":",null,":",null,":",null,":",null,":",null,":",null,":",null,":",null,":",null,":",null,":",null,":"]
["S11_S12","E36","EPS_REC_BYPR",null,null,null,null,null,2015,":",null,":",null,":",null,":",null,":",null,":",null,":",null,":",null,":",null,":",null,":",null,":"]
["S11_S12","E36","EPS_REC_BYPR",null,null,null,null,null,2016,":",null,":",null,":",null,":",null,":",null,":",null,":",null,":",null,":",null,":",null,":",null,":"]
["S11_S12","E36","EPS_REC_BYPR",null,null,null,null,null,2017,":",null,":",null,":",null,":",null,":",null,":",null,":",null,":",null,":",null,":",null,":",null,":"]
["S11_S12","E36","EPS_REC_BYPR",null,null,null,null,null,2018,":",null,":",null,":",null,":",null,":",null,":",null,":",null,":",null,":",null,":",null,":",null,":"]
["S11_S12","E36","EPS_REC_BYPR",null,null,null,null,null,2019,":",null,":",null,":",null,":",null,":",null,":",null,":",null,":",null,":",null,":",null,":",null,":"]
["S11_S12","E36","EPS_REC_BYPR",null,null,null,null,null,2020,":",null,":",null,":",null,":",null,":",null,":",null,":",null,":",null,":",null,":",null,":",null,":"]
["S11_S12","E36","EPS_REC_BYPR",null,null,null,null,null,2021,":",null,":",null,":",null,":",null,":",null,":",null,":",null,":",null,":",null,":",null,":",null,":"]
["S11_S12","E36","EPS_REC_BYPR",null,null,null,null,null,2022,":",null,":",null,":",null,":",null,":",null,":",null,":",null,":",null,":",null,":",null,":",null,":"]
["S11_S12","E36","EPS_REC_BYPR",null,null,null,null,null,2023,":",null,":",null,":",null,":",null,":",null,":",null,":",null,":",null,":",null,":",null,":",null,":"]
["S11_S12","E36","EPS_REC_BYPR",null,null,null,null,null,2024,":",null,":",null,":",null,":",null,":",null,":",null,":",null,":",null,":",null,":",null,":",null,":"]
["S11_S12","E36","EPS_REC_BYPR",null,null,null,null,null,2025,":",null,":",null,":",null,":",null,":",null,":",null,":",null,":",null,":",null,":",null,":",null,":"]
["S11_S12","E36","EPS_REC_BYPR",null,null,null,null,null,2026,":",null,":",null,":",null,":",null,":",null,":",null,":",null,":",null,":",null,":",null,":",null,":"]
["S11_S12","E36","EPS_REC_BYPR",null,null,null,null,null,2027,":",null,":",null,":",null,":",null,":",null,":",null,":",null,":",null,":",null,":",null,":",null,":"]
["S11_S12","E36","EPS_REC_BYPR",null,null,null,null,null,2028,":",null,":",null,":",null,":",null,":",null,":",null,":",null,":",null,":",null,":",null,":",null,":"]
["S11_S12","E36","EPS_REC_BYPR",null,null,null,null,null,2029,":",null,":",null,":",null,":",null,":",null,":",null,":",null,":",null,":",null,":",null,":",null,":"]
["S11_S12","E36","EPS_REC_BYPR",null,null,null,null,null,2030,":",null,":",null,":",null,":",null,":",null,":",null,":",null,":",null,":",null,":",null,":",null,":"]
["S11_S12","E36","EPS_REC_BYPR",null,null,null,null,null,2031,":",null,":",null,":",null,":",null,":",null,":",null,":",null,":",null,":",null,":",null,":",null,":"]
["S11_S12","E36","TOT_P2_EPS","Transactions as users of EP services (ancillary production of EP services and other production)","( P2_EPS_EXT.3d ) Total intermediate consumption of EP services (for production of EP services and for other production)",null,null,null,2014,":",null,":",null,":",null,":",null,":",null,":",null,":",null,":",null,":",null,":",null,":",null,":"]
["S11_S12","E36","TOT_P2_EPS",null,"(P2_EPS_EXT.3x: please consider the explanatory notes - click here)",null,null,null,2015,":",null,":",null,":",null,":",null,":",null,":",null,":",null,":",null,":",null,":",null,":",null,":"]
["S11_S12","E36","TOT_P2_EPS",null,null,null,null,null,2016,":",null,":",null,":",null,":",null,":",null,":",null,":",null,":",null,":",null,":",null,":",null,":"]
["S11_S12","E36","TOT_P2_EPS",null,null,null,null,null,2017,":",null,":",null,":",null,":",null,":",null,":",null,":",null,":",null,":",null,":",null,":",null,":"]
["S11_S12","E36","TOT_P2_EPS",null,null,null,null,null,2018,":",null,":",null,":",null,":",null,":",null,":",null,":",null,":",null,":",null,":",null,":",null,":"]
["S11_S12","E36","TOT_P2_EPS",null,null,null,null,null,2019,":",null,":",null,":",null,":",null,":",null,":",null,":",null,":",null,":",null,":",null,":",null,":"]
["S11_S12","E36","TOT_P2_EPS",null,null,null,null,null,2020,":",null,":",null,":",null,":",null,":",null,":",null,":",null,":",null,":",null,":",null,":",null,":"]
["S11_S12","E36","TOT_P2_EPS",null,null,null,null,null,2021,":",null,":",null,":",null,":",null,":",null,":",null,":",null,":",null,":",null,":",null,":",null,":"]
["S11_S12","E36","TOT_P2_EPS",null,null,null,null,null,2022,":",null,":",null,":",null,":",null,":",null,":",null,":",null,":",null,":",null,":",null,":",null,":"]
["S11_S12","E36","TOT_P2_EPS",null,null,null,null,null,2023,":",null,":",null,":",null,":",null,":",null,":",null,":",null,":",null,":",null,":",null,":",null,":"]
["S11_S12","E36","TOT_P2_EPS",null,null,null,null,null,2024,":",null,":",null,":",null,":",null,":",null,":",null,":",null,":",null,":",null,":",null,":",null,":"]
["S11_S12","E36","TOT_P2_EPS",null,null,null,null,null,2025,":",null,":",null,":",null,":",null,":",null,":",null,":",null,":",null,":",null,":",null,":",null,":"]
["S11_S12","E36","TOT_P2_EPS",null,null,null,null,null,2026,":",null,":",null,":",null,":",null,":",null,":",null,":",null,":",null,":",null,":",null,":",null,":"]
["S11_S12","E36","TOT_P2_EPS",null,null,null,null,null,2027,":",null,":",null,":",null,":",null,":",null,":",null,":",null,":",null,":",null,":",null,":",null,":"]
["S11_S12","E36","TOT_P2_EPS",null,null,null,null,null,2028,":",null,":",null,":",null,":",null,":",null,":",null,":",null,":",null,":",null,":",null,":",null,":"]
["S11_S12","E36","TOT_P2_EPS",null,null,null,null,null,2029,":",null,":",null,":",null,":",null,":",null,":",null,":",null,":",null,":",null,":",null,":",null,":"]
["S11_S12","E36","TOT_P2_EPS",null,null,null,null,null,2030,":",null,":",null,":",null,":",null,":",null,":",null,":",null,":",null,":",null,":",null,":",null,":"]
["S11_S12","E36","TOT_P2_EPS",null,null,null,null,null,2031,":",null,":",null,":",null,":",null,":",null,":",null,":",null,":",null,":",null,":",null,":",null,":"]
["S11_S12","E36","EPS_EMP","Transactions of producers of ancillary EP services","( EMP.3d ) Employment (Full time equivalents)",null,null,null,2014,":",null,":",null,":",null,":",null,":",null,":",null,":",null,":",null,":",null,":",null,":",null,":"]
["S11_S12","E36","EPS_EMP",null,null,null,null,null,2015,":",null,":",null,":",null,":",null,":",null,":",null,":",null,":",null,":",null,":",null,":",null,":"]
["S11_S12","E36","EPS_EMP",null,null,null,null,null,2016,":",null,":",null,":",null,":",null,":",null,":",null,":",null,":",null,":",null,":",null,":",null,":"]
["S11_S12","E36","EPS_EMP",null,null,null,null,null,2017,":",null,":",null,":",null,":",null,":",null,":",null,":",null,":",null,":",null,":",null,":",null,":"]
["S11_S12","E36","EPS_EMP",null,null,null,null,null,2018,":",null,":",null,":",null,":",null,":",null,":",null,":",null,":",null,":",null,":",null,":",null,":"]
["S11_S12","E36","EPS_EMP",null,null,null,null,null,2019,":",null,":",null,":",null,":",null,":",null,":",null,":",null,":",null,":",null,":",null,":",null,":"]
["S11_S12","E36","EPS_EMP",null,null,null,null,null,2020,":",null,":",null,":",null,":",null,":",null,":",null,":",null,":",null,":",null,":",null,":",null,":"]
["S11_S12","E36","EPS_EMP",null,null,null,null,null,2021,":",null,":",null,":",null,":",null,":",null,":",null,":",null,":",null,":",null,":",null,":",null,":"]
["S11_S12","E36","EPS_EMP",null,null,null,null,null,2022,":",null,":",null,":",null,":",null,":",null,":",null,":",null,":",null,":",null,":",null,":",null,":"]
["S11_S12","E36","EPS_EMP",null,null,null,null,null,2023,":",null,":",null,":",null,":",null,":",null,":",null,":",null,":",null,":",null,":",null,":",null,":"]
["S11_S12","E36","EPS_EMP",null,null,null,null,null,2024,":",null,":",null,":",null,":",null,":",null,":",null,":",null,":",null,":",null,":",null,":",null,":"]
["S11_S12","E36","EPS_EMP",null,null,null,null,null,2025,":",null,":",null,":",null,":",null,":",null,":",null,":",null,":",null,":",null,":",null,":",null,":"]
["S11_S12","E36","EPS_EMP",null,null,null,null,null,2026,":",null,":",null,":",null,":",null,":",null,":",null,":",null,":",null,":",null,":",null,":",null,":"]
["S11_S12","E36","EPS_EMP",null,null,null,null,null,2027,":",null,":",null,":",null,":",null,":",null,":",null,":",null,":",null,":",null,":",null,":",null,":"]
["S11_S12","E36","EPS_EMP",null,null,null,null,null,2028,":",null,":",null,":",null,":",null,":",null,":",null,":",null,":",null,":",null,":",null,":",null,":"]
["S11_S12","E36","EPS_EMP",null,null,null,null,null,2029,":",null,":",null,":",null,":",null,":",null,":",null,":",null,":",null,":",null,":",null,":",null,":"]
["S11_S12","E36","EPS_EMP",null,null,null,null,null,2030,":",null,":",null,":",null,":",null,":",null,":",null,":",null,":",null,":",null,":",null,":",null,":"]
["S11_S12","E36","EPS_EMP",null,null,null,null,null,2031,":",null,":",null,":",null,":",null,":",null,":",null,":",null,":",null,":",null,":",null,":",null,":"]

{"sheet":"3e (voluntary)","index":36,"n_rows":258,"n_cols":32,"rows_kept":258,"cut":false,"hidden":false,"merged":[[222,4,222,7],[116,4,116,7],[132,4,132,7],[79,4,79,7],[99,4,99,7],[168,4,168,7],[169,4,169,7],[170,4,170,7],[150,4,150,7],[151,4,151,7],[153,4,153,7],[78,4,78,7],[96,4,96,7],[97,4,97,7],[133,4,133,7],[134,4,134,7],[45,4,45,7],[240,3,257,3],[240,4,240,7],[241,4,241,7],[242,4,242,7],[187,4,187,7],[189,4,189,7],[204,4,204,7],[205,4,205,7],[207,4,207,7],[222,3,239,3],[6,3,221,3],[186,4,186,7],[115,4,115,7],[223,4,223,7],[114,4,114,7],[27,4,27,7],[25,4,25,7],[26,4,26,7],[42,4,42,7],[43,4,43,7],[3,15,4,16],[3,17,4,18],[3,29,4,30],[24,4,24,7],[6,4,6,7],[7,4,7,7],[9,4,9,7],[60,4,60,7],[0,4,0,8],[0,9,0,15],[1,4,1,8],[1,9,1,32],[2,9,2,32],[3,31,4,32],[4,4,4,7],[3,19,4,20],[3,21,4,22],[3,23,4,24],[3,25,4,26],[3,27,4,28],[3,9,4,10],[3,11,4,12],[3,13,4,14]]}
[null,null,null,null,{"$f":"Cover!B21","v":"QUESTIONNAIRE ON ENVIRONMENTAL PROTECTION EXPENDITURE ACCOUNTS"},null,null,null,null,"Table 3e. Corporations: other (also covering producers of ancillary EP services):  other NACE"]
[null,null,null,null,{"$f":"E1","v":"QUESTIONNAIRE ON ENVIRONMENTAL PROTECTION EXPENDITURE ACCOUNTS"},null,null,null,null,{"$f":"J1","v":"Table 3e. Corporations: other (also covering producers of ancillary EP services):  other NACE"}]
[null,null,null,null,null,null,null,null,null,"Mandatory and voluntary variables and environmental domains - please fill in as much as possible"]
[null,null,null,null,"Country/Unit",{"$f":"IFERROR(Cover!C16,\"\")","v":""},{"$f":"\"\"&Cover!B16","v":""},{"$f":"Cover!B17","v":"Million units of national currency"},null,"CEPA 1",null,"of which CEPA 1.1.2 and 1.2.2 Climate change",null,"CEPA 2",null,"CEPA 3",null,"CEPA 4",null,"CEPA 5",null,"CEPA 6",null,"CEPA 7",null,"CEPA 8",null,"CEPA 9",null,"Sum of CEPA 7+8+9",null,"TOTAL"]
[null,null,null,null,"Expenditure",null,null,null,"Year",null,null,null,null,null,null,null,null,null,null,null,null,null,null,null,null,null,null,null,null,"Landscape",null,"Landscape"]
[null,null,null,null,null,null,null,null,null,"CEPA1",null,"CEPA112_122",null,"CEPA2",null,"CEPA3",null,"CEPA4",null,"CEPA5",null,"CEPA6",null,"CEPA7",null,"CEPA8",null,"CEPA9",null,"CEPA7-9",null,"TOT_CEPA"]
["S11_S12","A_EP_OTH","EPS_P51G_NP","Transactions of producers of ancillary EP services","( P51G_NP.3e ) Gross fixed capital formation and acquisition less disposals of non-financial non-produced assets",null,null,null,2014,":",null,":",null,":",null,":",null,":",null,":",null,":",null,":",null,":",null,":",null,":",null,{"$f":"IF(COUNT(J7,N7,P7,R7,T7,V7,AD7)=7,SUM(J7,N7,P7,R7,T7,V7,AD7),\":\")","v":":"}]
["S11_S12","A_EP_OTH","EPS_P51G_NP",null,null,null,null,null,2015,":",null,":",null,":",null,":",null,":",null,":",null,":",null,":",null,":",null,":",null,":",null,{"$f":"IF(COUNT(J8,N8,P8,R8,T8,V8,AD8)=7,SUM(J8,N8,P8,R8,T8,V8,AD8),\":\")","v":":"}]
["S11_S12","A_EP_OTH","EPS_P51G_NP",null,null,null,null,null,2016,":",null,":",null,":",null,":",null,":",null,":",null,":",null,":",null,":",null,":",null,":",null,":"]
["S11_S12","A_EP_OTH","EPS_P51G_NP",null,null,null,null,null,2017,":",null,":",null,":",null,":",null,":",null,":",null,":",null,":",null,":",null,":",null,":",null,":"]
["S11_S12","A_EP_OTH","EPS_P51G_NP",null,null,null,null,null,2018,":",null,":",null,":",null,":",null,":",null,":",null,":",null,":",null,":",null,":",null,":",null,":"]
["S11_S12","A_EP_OTH","EPS_P51G_NP",null,null,null,null,null,2019,":",null,":",null,":",null,":",null,":",null,":",null,":",null,":",null,":",null,":",null,":",null,":"]
["S11_S12","A_EP_OTH","EPS_P51G_NP",null,null,null,null,null,2020,":",null,":",null,":",null,":",null,":",null,":",null,":",null,":",null,":",null,":",null,":",null,":"]
["S11_S12","A_EP_OTH","EPS_P51G_NP",null,null,null,null,null,2021,":",null,":",null,":",null,":",null,":",null,":",null,":",null,":",null,":",null,":",null,":",null,":"]
["S11_S12","A_EP_OTH","EPS_P51G_NP",null,null,null,null,null,2022,":",null,":",null,":",null,":",null,":",null,":",null,":",null,":",null,":",null,":",null,":",null,":"]
["S11_S12","A_EP_OTH","EPS_P51G_NP",null,null,null,null,null,2023,":",null,":",null,":",null,":",null,":",null,":",null,":",null,":",null,":",null,":",null,":",null,":"]
["S11_S12","A_EP_OTH","EPS_P51G_NP",null,null,null,null,null,2024,":",null,":",null,":",null,":",null,":",null,":",null,":",null,":",null,":",null,":",null,":",null,":"]
["S11_S12","A_EP_OTH","EPS_P51G_NP",null,null,null,null,null,2025,":",null,":",null,":",null,":",null,":",null,":",null,":",null,":",null,":",null,":",null,":",null,":"]
["S11_S12","A_EP_OTH","EPS_P51G_NP",null,null,null,null,null,2026,":",null,":",null,":",null,":",null,":",null,":",null,":",null,":",null,":",null,":",null,":",null,":"]
["S11_S12","A_EP_OTH","EPS_P51G_NP",null,null,null,null,null,2027,":",null,":",null,":",null,":",null,":",null,":",null,":",null,":",null,":",null,":",null,":",null,":"]
["S11_S12","A_EP_OTH","EPS_P51G_NP",null,null,null,null,null,2028,":",null,":",null,":",null,":",null,":",null,":",null,":",null,":",null,":",null,":",null,":",null,":"]
["S11_S12","A_EP_OTH","EPS_P51G_NP",null,null,null,null,null,2029,":",null,":",null,":",null,":",null,":",null,":",null,":",null,":",null,":",null,":",null,":",null,":"]
["S11_S12","A_EP_OTH","EPS_P51G_NP",null,null,null,null,null,2030,":",null,":",null,":",null,":",null,":",null,":",null,":",null,":",null,":",null,":",null,":",null,":"]
["S11_S12","A_EP_OTH","EPS_P51G_NP",null,null,null,null,null,2031,":",null,":",null,":",null,":",null,":",null,":",null,":",null,":",null,":",null,":",null,":",null,":"]
["S11_S12","A_EP_OTH","EPS_INV_PT",null,"( INV_EOP.3e )  GFCF on specific EP fixed assets (end-of-pipe technologies) ",null,null,null,2014,":",null,":",null,":",null,":",null,":",null,":",null,":",null,":",null,":",null,":",null,":",null,":"]
["S11_S12","A_EP_OTH","EPS_INV_PT",null,null,null,null,null,2015,":",null,":",null,":",null,":",null,":",null,":",null,":",null,":",null,":",null,":",null,":",null,":"]
["S11_S12","A_EP_OTH","EPS_INV_PT",null,null,null,null,null,2016,":",null,":",null,":",null,":",null,":",null,":",null,":",null,":",null,":",null,":",null,":",null,":"]
["S11_S12","A_EP_OTH","EPS_INV_PT",null,null,null,null,null,2017,":",null,":",null,":",null,":",null,":",null,":",null,":",null,":",null,":",null,":",null,":",null,":"]
["S11_S12","A_EP_OTH","EPS_INV_PT",null,null,null,null,null,2018,":",null,":",null,":",null,":",null,":",null,":",null,":",null,":",null,":",null,":",null,":",null,":"]
["S11_S12","A_EP_OTH","EPS_INV_PT",null,null,null,null,null,2019,":",null,":",null,":",null,":",null,":",null,":",null,":",null,":",null,":",null,":",null,":",null,":"]
["S11_S12","A_EP_OTH","EPS_INV_PT",null,null,null,null,null,2020,":",null,":",null,":",null,":",null,":",null,":",null,":",null,":",null,":",null,":",null,":",null,":"]
["S11_S12","A_EP_OTH","EPS_INV_PT",null,null,null,null,null,2021,":",null,":",null,":",null,":",null,":",null,":",null,":",null,":",null,":",null,":",null,":",null,":"]
["S11_S12","A_EP_OTH","EPS_INV_PT",null,null,null,null,null,2022,":",null,":",null,":",null,":",null,":",null,":",null,":",null,":",null,":",null,":",null,":",null,":"]
["S11_S12","A_EP_OTH","EPS_INV_PT",null,null,null,null,null,2023,":",null,":",null,":",null,":",null,":",null,":",null,":",null,":",null,":",null,":",null,":",null,":"]
["S11_S12","A_EP_OTH","EPS_INV_PT",null,null,null,null,null,2024,":",null,":",null,":",null,":",null,":",null,":",null,":",null,":",null,":",null,":",null,":",null,":"]
["S11_S12","A_EP_OTH","EPS_INV_PT",null,null,null,null,null,2025,":",null,":",null,":",null,":",null,":",null,":",null,":",null,":",null,":",null,":",null,":",null,":"]
["S11_S12","A_EP_OTH","EPS_INV_PT",null,null,null,null,null,2026,":",null,":",null,":",null,":",null,":",null,":",null,":",null,":",null,":",null,":",null,":",null,":"]
["S11_S12","A_EP_OTH","EPS_INV_PT",null,null,null,null,null,2027,":",null,":",null,":",null,":",null,":",null,":",null,":",null,":",null,":",null,":",null,":",null,":"]
["S11_S12","A_EP_OTH","EPS_INV_PT",null,null,null,null,null,2028,":",null,":",null,":",null,":",null,":",null,":",null,":",null,":",null,":",null,":",null,":",null,":"]
["S11_S12","A_EP_OTH","EPS_INV_PT",null,null,null,null,null,2029,":",null,":",null,":",null,":",null,":",null,":",null,":",null,":",null,":",null,":",null,":",null,":"]
["S11_S12","A_EP_OTH","EPS_INV_PT",null,null,null,null,null,2030,":",null,":",null,":",null,":",null,":",null,":",null,":",null,":",null,":",null,":",null,":",null,":"]
["S11_S12","A_EP_OTH","EPS_INV_PT",null,null,null,null,null,2031,":",null,":",null,":",null,":",null,":",null,":",null,":",null,":",null,":",null,":",null,":",null,":"]
["S11_S12","A_EP_OTH","EPS_INV_PP",null,"( INV_IT.3e ) GFCF on cleaner EP fixed assets (integrated technologies)",null,null,null,2014,":",null,":",null,":",null,":",null,":",null,":",null,":",null,":",null,":",null,":",null,":",null,":"]
["S11_S12","A_EP_OTH","EPS_INV_PP",null,null,null,null,null,2015,":",null,":",null,":",null,":",null,":",null,":",null,":",null,":",null,":",null,":",null,":",null,":"]
["S11_S12","A_EP_OTH","EPS_INV_PP",null,null,null,null,null,2016,":",null,":",null,":",null,":",null,":",null,":",null,":",null,":",null,":",null,":",null,":",null,":"]
["S11_S12","A_EP_OTH","EPS_INV_PP",null,null,null,null,null,2017,":",null,":",null,":",null,":",null,":",null,":",null,":",null,":",null,":",null,":",null,":",null,":"]
["S11_S12","A_EP_OTH","EPS_INV_PP",null,null,null,null,null,2018,":",null,":",null,":",null,":",null,":",null,":",null,":",null,":",null,":",null,":",null,":",null,":"]
["S11_S12","A_EP_OTH","EPS_INV_PP",null,null,null,null,null,2019,":",null,":",null,":",null,":",null,":",null,":",null,":",null,":",null,":",null,":",null,":",null,":"]
["S11_S12","A_EP_OTH","EPS_INV_PP",null,null,null,null,null,2020,":",null,":",null,":",null,":",null,":",null,":",null,":",null,":",null,":",null,":",null,":",null,":"]
["S11_S12","A_EP_OTH","EPS_INV_PP",null,null,null,null,null,2021,":",null,":",null,":",null,":",null,":",null,":",null,":",null,":",null,":",null,":",null,":",null,":"]
["S11_S12","A_EP_OTH","EPS_INV_PP",null,null,null,null,null,2022,":",null,":",null,":",null,":",null,":",null,":",null,":",null,":",null,":",null,":",null,":",null,":"]
["S11_S12","A_EP_OTH","EPS_INV_PP",null,null,null,null,null,2023,":",null,":",null,":",null,":",null,":",null,":",null,":",null,":",null,":",null,":",null,":",null,":"]
["S11_S12","A_EP_OTH","EPS_INV_PP",null,null,null,null,null,2024,":",null,":",null,":",null,":",null,":",null,":",null,":",null,":",null,":",null,":",null,":",null,":"]
["S11_S12","A_EP_OTH","EPS_INV_PP",null,null,null,null,null,2025,":",null,":",null,":",null,":",null,":",null,":",null,":",null,":",null,":",null,":",null,":",null,":"]
["S11_S12","A_EP_OTH","EPS_INV_PP",null,null,null,null,null,2026,":",null,":",null,":",null,":",null,":",null,":",null,":",null,":",null,":",null,":",null,":",null,":"]
["S11_S12","A_EP_OTH","EPS_INV_PP",null,null,null,null,null,2027,":",null,":",null,":",null,":",null,":",null,":",null,":",null,":",null,":",null,":",null,":",null,":"]
["S11_S12","A_EP_OTH","EPS_INV_PP",null,null,null,null,null,2028,":",null,":",null,":",null,":",null,":",null,":",null,":",null,":",null,":",null,":",null,":",null,":"]
["S11_S12","A_EP_OTH","EPS_INV_PP",null,null,null,null,null,2029,":",null,":",null,":",null,":",null,":",null,":",null,":",null,":",null,":",null,":",null,":",null,":"]
["S11_S12","A_EP_OTH","EPS_INV_PP",null,null,null,null,null,2030,":",null,":",null,":",null,":",null,":",null,":",null,":",null,":",null,":",null,":",null,":",null,":"]
["S11_S12","A_EP_OTH","EPS_INV_PP",null,null,null,null,null,2031,":",null,":",null,":",null,":",null,":",null,":",null,":",null,":",null,":",null,":",null,":",null,":"]
["S11_S12","A_EP_OTH","EPS_P2",null,"( P2.3e ) Total intermediate consumption",null,null,null,2014,":",null,":",null,":",null,":",null,":",null,":",null,":",null,":",null,":",null,":",null,":",null,":"]
["S11_S12","A_EP_OTH","EPS_P2",null,null,null,null,null,2015,":",null,":",null,":",null,":",null,":",null,":",null,":",null,":",null,":",null,":",null,":",null,":"]
["S11_S12","A_EP_OTH","EPS_P2",null,null,null,null,null,2016,":",null,":",null,":",null,":",null,":",null,":",null,":",null,":",null,":",null,":",null,":",null,":"]
["S11_S12","A_EP_OTH","EPS_P2",null,null,null,null,null,2017,":",null,":",null,":",null,":",null,":",null,":",null,":",null,":",null,":",null,":",null,":",null,":"]
["S11_S12","A_EP_OTH","EPS_P2",null,null,null,null,null,2018,":",null,":",null,":",null,":",null,":",null,":",null,":",null,":",null,":",null,":",null,":",null,":"]
["S11_S12","A_EP_OTH","EPS_P2",null,null,null,null,null,2019,":",null,":",null,":",null,":",null,":",null,":",null,":",null,":",null,":",null,":",null,":",null,":"]
["S11_S12","A_EP_OTH","EPS_P2",null,null,null,null,null,2020,":",null,":",null,":",null,":",null,":",null,":",null,":",null,":",null,":",null,":",null,":",null,":"]
["S11_S12","A_EP_OTH","EPS_P2",null,null,null,null,null,2021,":",null,":",null,":",null,":",null,":",null,":",null,":",null,":",null,":",null,":",null,":",null,":"]
["S11_S12","A_EP_OTH","EPS_P2",null,null,null,null,null,2022,":",null,":",null,":",null,":",null,":",null,":",null,":",null,":",null,":",null,":",null,":",null,":"]
["S11_S12","A_EP_OTH","EPS_P2",null,null,null,null,null,2023,":",null,":",null,":",null,":",null,":",null,":",null,":",null,":",null,":",null,":",null,":",null,":"]
["S11_S12","A_EP_OTH","EPS_P2",null,null,null,null,null,2024,":",null,":",null,":",null,":",null,":",null,":",null,":",null,":",null,":",null,":",null,":",null,":"]
["S11_S12","A_EP_OTH","EPS_P2",null,null,null,null,null,2025,":",null,":",null,":",null,":",null,":",null,":",null,":",null,":",null,":",null,":",null,":",null,{"$f":"IF(COUNT(J72,N72,P72,R72,T72,V72,AD72)=7,SUM(J72,N72,P72,R72,T72,V72,AD72),\":\")","v":":"}]
["S11_S12","A_EP_OTH","EPS_P2",null,null,null,null,null,2026,":",null,":",null,":",null,":",null,":",null,":",null,":",null,":",null,":",null,":",null,":",null,":"]
["S11_S12","A_EP_OTH","EPS_P2",null,null,null,null,null,2027,":",null,":",null,":",null,":",null,":",null,":",null,":",null,":",null,":",null,":",null,":",null,":"]
["S11_S12","A_EP_OTH","EPS_P2",null,null,null,null,null,2028,":",null,":",null,":",null,":",null,":",null,":",null,":",null,":",null,":",null,":",null,":",null,":"]
["S11_S12","A_EP_OTH","EPS_P2",null,null,null,null,null,2029,":",null,":",null,":",null,":",null,":",null,":",null,":",null,":",null,":",null,":",null,":",null,":"]
["S11_S12","A_EP_OTH","EPS_P2",null,null,null,null,null,2030,":",null,":",null,":",null,":",null,":",null,":",null,":",null,":",null,":",null,":",null,":",null,":"]
["S11_S12","A_EP_OTH","EPS_P2",null,null,null,null,null,2031,":",null,":",null,":",null,":",null,":",null,":",null,":",null,":",null,":",null,":",null,":",null,":"]
["S11_S12","A_EP_OTH","EPS_P2_EPS",null,"( P2_EPS.3e ) Intermediate consumption of EP services for ancillary production of EP services ",null,null,null,2014,":",null,":",null,":",null,":",null,":",null,":",null,":",null,":",null,":",null,":",null,":",null,":"]
["S11_S12","A_EP_OTH","EPS_P2_EPS",null,"(P2_EPS.3: please consider the explanatory notes - click here)",null,null,null,2015,":",null,":",null,":",null,":",null,":",null,":",null,":",null,":",null,":",null,":",null,":",null,":"]
["S11_S12","A_EP_OTH","EPS_P2_EPS",null,null,null,null,null,2016,":",null,":",null,":",null,":",null,":",null,":",null,":",null,":",null,":",null,":",null,":",null,":"]
["S11_S12","A_EP_OTH","EPS_P2_EPS",null,null,null,null,null,2017,":",null,":",null,":",null,":",null,":",null,":",null,":",null,":",null,":",null,":",null,":",null,":"]
["S11_S12","A_EP_OTH","EPS_P2_EPS",null,null,null,null,null,2018,":",null,":",null,":",null,":",null,":",null,":",null,":",null,":",null,":",null,":",null,":",null,":"]
["S11_S12","A_EP_OTH","EPS_P2_EPS",null,null,null,null,null,2019,":",null,":",null,":",null,":",null,":",null,":",null,":",null,":",null,":",null,":",null,":",null,":"]
["S11_S12","A_EP_OTH","EPS_P2_EPS",null,null,null,null,null,2020,":",null,":",null,":",null,":",null,":",null,":",null,":",null,":",null,":",null,":",null,":",null,":"]
["S11_S12","A_EP_OTH","EPS_P2_EPS",null,null,null,null,null,2021,":",null,":",null,":",null,":",null,":",null,":",null,":",null,":",null,":",null,":",null,":",null,":"]
["S11_S12","A_EP_OTH","EPS_P2_EPS",null,null,null,null,null,2022,":",null,":",null,":",null,":",null,":",null,":",null,":",null,":",null,":",null,":",null,":",null,":"]
["S11_S12","A_EP_OTH","EPS_P2_EPS",null,null,null,null,null,2023,":",null,":",null,":",null,":",null,":",null,":",null,":",null,":",null,":",null,":",null,":",null,":"]
["S11_S12","A_EP_OTH","EPS_P2_EPS",null,null,null,null,null,2024,":",null,":",null,":",null,":",null,":",null,":",null,":",null,":",null,":",null,":",null,":",null,":"]
["S11_S12","A_EP_OTH","EPS_P2_EPS",null,null,null,null,null,2025,":",null,":",null,":",null,":",null,":",null,":",null,":",null,":",null,":",null,":",null,":",null,":"]
["S11_S12","A_EP_OTH","EPS_P2_EPS",null,null,null,null,null,2026,":",null,":",null,":",null,":",null,":",null,":",null,":",null,":",null,":",null,":",null,":",null,":"]
["S11_S12","A_EP_OTH","EPS_P2_EPS",null,null,null,null,null,2027,":",null,":",null,":",null,":",null,":",null,":",null,":",null,":",null,":",null,":",null,":",null,":"]
["S11_S12","A_EP_OTH","EPS_P2_EPS",null,null,null,null,null,2028,":",null,":",null,":",null,":",null,":",null,":",null,":",null,":",null,":",null,":",null,":",null,":"]
["S11_S12","A_EP_OTH","EPS_P2_EPS",null,null,null,null,null,2029,":",null,":",null,":",null,":",null,":",null,":",null,":",null,":",null,":",null,":",null,":",null,":"]
["S11_S12","A_EP_OTH","EPS_P2_EPS",null,null,null,null,null,2030,":",null,":",null,":",null,":",null,":",null,":",null,":",null,":",null,":",null,":",null,":",null,":"]
["S11_S12","A_EP_OTH","EPS_P2_EPS",null,null,null,null,null,2031,":",null,":",null,":",null,":",null,":",null,":",null,":",null,":",null,":",null,":",null,":",null,":"]
["S11_S12","A_EP_OTH","EPS_P2_NEPS",null,"( P2_NEPS.3e ) Intermediate consumption (excluding EP services)",null,null,null,2014,":",null,":",null,":",null,":",null,":",null,":",null,":",null,":",null,":",null,":",null,":",null,":"]
["S11_S12","A_EP_OTH","EPS_P2_NEPS",null,null,null,null,null,2015,":",null,":",null,":",null,":",null,":",null,":",null,":",null,":",null,":",null,":",null,":",null,":"]
["S11_S12","A_EP_OTH","EPS_P2_NEPS",null,null,null,null,null,2016,":",null,":",null,":",null,":",null,":",null,":",null,":",null,":",null,":",null,":",null,":",null,":"]
["S11_S12","A_EP_OTH","EPS_P2_NEPS",null,null,null,null,null,2017,":",null,":",null,":",null,":",null,":",null,":",null,":",null,":",null,":",null,":",null,":",null,":"]
["S11_S12","A_EP_OTH","EPS_P2_NEPS",null,null,null,null,null,2018,":",null,":",null,":",null,":",null,":",null,":",null,":",null,":",null,":",null,":",null,":",null,":"]
["S11_S12","A_EP_OTH","EPS_P2_NEPS",null,null,null,null,null,2019,":",null,":",null,":",null,":",null,":",null,":",null,":",null,":",null,":",null,":",null,":",null,":"]
["S11_S12","A_EP_OTH","EPS_P2_NEPS",null,null,null,null,null,2020,":",null,":",null,":",null,":",null,":",null,":",null,":",null,":",null,":",null,":",null,":",null,":"]
["S11_S12","A_EP_OTH","EPS_P2_NEPS",null,null,null,null,null,2021,":",null,":",null,":",null,":",null,":",null,":",null,":",null,":",null,":",null,":",null,":",null,":"]
["S11_S12","A_EP_OTH","EPS_P2_NEPS",null,null,null,null,null,2022,":",null,":",null,":",null,":",null,":",null,":",null,":",null,":",null,":",null,":",null,":",null,":"]
["S11_S12","A_EP_OTH","EPS_P2_NEPS",null,null,null,null,null,2023,":",null,":",null,":",null,":",null,":",null,":",null,":",null,":",null,":",null,":",null,":",null,":"]
["S11_S12","A_EP_OTH","EPS_P2_NEPS",null,null,null,null,null,2024,":",null,":",null,":",null,":",null,":",null,":",null,":",null,":",null,":",null,":",null,":",null,":"]
["S11_S12","A_EP_OTH","EPS_P2_NEPS",null,null,null,null,null,2025,":",null,":",null,":",null,":",null,":",null,":",null,":",null,":",null,":",null,":",null,":",null,":"]
["S11_S12","A_EP_OTH","EPS_P2_NEPS",null,null,null,null,null,2026,":",null,":",null,":",null,":",null,":",null,":",null,":",null,":",null,":",null,":",null,":",null,":"]
["S11_S12","A_EP_OTH","EPS_P2_NEPS",null,null,null,null,null,2027,":",null,":",null,":",null,":",null,":",null,":",null,":",null,":",null,":",null,":",null,":",null,":"]
["S11_S12","A_EP_OTH","EPS_P2_NEPS",null,null,null,null,null,2028,":",null,":",null,":",null,":",null,":",null,":",null,":",null,":",null,":",null,":",null,":",null,":"]
["S11_S12","A_EP_OTH","EPS_P2_NEPS",null,null,null,null,null,2029,":",null,":",null,":",null,":",null,":",null,":",null,":",null,":",null,":",null,":",null,":",null,":"]
["S11_S12","A_EP_OTH","EPS_P2_NEPS",null,null,null,null,null,2030,":",null,":",null,":",null,":",null,":",null,":",null,":",null,":",null,":",null,":",null,":",null,":"]
["S11_S12","A_EP_OTH","EPS_P2_NEPS",null,null,null,null,null,2031,":",null,":",null,":",null,":",null,":",null,":",null,":",null,":",null,":",null,":",null,":",null,":"]
["S11_S12","A_EP_OTH","EPS_D1",null,"( D1.3e ) Compensation of employees",null,null,null,2014,":",null,":",null,":",null,":",null,":",null,":",null,":",null,":",null,":",null,":",null,":",null,":"]
["S11_S12","A_EP_OTH","EPS_D1",null,null,null,null,null,2015,":",null,":",null,":",null,":",null,":",null,":",null,":",null,":",null,":",null,":",null,":",null,":"]
["S11_S12","A_EP_OTH","EPS_D1",null,null,null,null,null,2016,":",null,":",null,":",null,":",null,":",null,":",null,":",null,":",null,":",null,":",null,":",null,":"]
["S11_S12","A_EP_OTH","EPS_D1",null,null,null,null,null,2017,":",null,":",null,":",null,":",null,":",null,":",null,":",null,":",null,":",null,":",null,":",null,":"]
["S11_S12","A_EP_OTH","EPS_D1",null,null,null,null,null,2018,":",null,":",null,":",null,":",null,":",null,":",null,":",null,":",null,":",null,":",null,":",null,":"]
["S11_S12","A_EP_OTH","EPS_D1",null,null,null,null,null,2019,":",null,":",null,":",null,":",null,":",null,":",null,":",null,":",null,":",null,":",null,":",null,":"]
["S11_S12","A_EP_OTH","EPS_D1",null,null,null,null,null,2020,":",null,":",null,":",null,":",null,":",null,":",null,":",null,":",null,":",null,":",null,":",null,":"]
["S11_S12","A_EP_OTH","EPS_D1",null,null,null,null,null,2021,":",null,":",null,":",null,":",null,":",null,":",null,":",null,":",null,":",null,":",null,":",null,":"]
["S11_S12","A_EP_OTH","EPS_D1",null,null,null,null,null,2022,":",null,":",null,":",null,":",null,":",null,":",null,":",null,":",null,":",null,":",null,":",null,":"]
["S11_S12","A_EP_OTH","EPS_D1",null,null,null,null,null,2023,":",null,":",null,":",null,":",null,":",null,":",null,":",null,":",null,":",null,":",null,":",null,":"]
["S11_S12","A_EP_OTH","EPS_D1",null,null,null,null,null,2024,":",null,":",null,":",null,":",null,":",null,":",null,":",null,":",null,":",null,":",null,":",null,":"]
["S11_S12","A_EP_OTH","EPS_D1",null,null,null,null,null,2025,":",null,":",null,":",null,":",null,":",null,":",null,":",null,":",null,":",null,":",null,":",null,":"]
["S11_S12","A_EP_OTH","EPS_D1",null,null,null,null,null,2026,":",null,":",null,":",null,":",null,":",null,":",null,":",null,":",null,":",null,":",null,":",null,":"]
["S11_S12","A_EP_OTH","EPS_D1",null,null,null,null,null,2027,":",null,":",null,":",null,":",null,":",null,":",null,":",null,":",null,":",null,":",null,":",null,":"]
["S11_S12","A_EP_OTH","EPS_D1",null,null,null,null,null,2028,":",null,":",null,":",null,":",null,":",null,":",null,":",null,":",null,":",null,":",null,":",null,":"]
["S11_S12","A_EP_OTH","EPS_D1",null,null,null,null,null,2029,":",null,":",null,":",null,":",null,":",null,":",null,":",null,":",null,":",null,":",null,":",null,":"]
["S11_S12","A_EP_OTH","EPS_D1",null,null,null,null,null,2030,":",null,":",null,":",null,":",null,":",null,":",null,":",null,":",null,":",null,":",null,":",null,":"]
["S11_S12","A_EP_OTH","EPS_D1",null,null,null,null,null,2031,":",null,":",null,":",null,":",null,":",null,":",null,":",null,":",null,":",null,":",null,":",null,":"]
["S11_S12","A_EP_OTH","EPS_P1_ANC",null,"( P1_ANC.3e ) Ancillary EP output (simplified valuation legally acceptable) ((P2_NEPS.3e) + (D1.3e))",null,null,null,2014,":",null,":",null,":",null,":",null,":",null,":",null,":",null,":",null,":",null,":",null,":",null,":"]
["S11_S12","A_EP_OTH","EPS_P1_ANC",null,null,null,null,null,2015,":",null,":",null,":",null,":",null,":",null,":",null,":",null,":",null,":",null,":",null,":",null,":"]
["S11_S12","A_EP_OTH","EPS_P1_ANC",null,null,null,null,null,2016,":",null,":",null,":",null,":",null,":",null,":",null,":",null,":",null,":",null,":",null,":",null,":"]
["S11_S12","A_EP_OTH","EPS_P1_ANC",null,null,null,null,null,2017,":",null,":",null,":",null,":",null,":",null,":",null,":",null,":",null,":",null,":",null,":",null,{"$f":"IF(COUNT(J136,N136,P136,R136,T136,V136,AD136)=7,SUM(J136,N136,P136,R136,T136,V136,AD136),\":\")","v":":"}]
["S11_S12","A_EP_OTH","EPS_P1_ANC",null,null,null,null,null,2018,":",null,":",null,":",null,":",null,":",null,":",null,":",null,":",null,":",null,":",null,":",null,":"]
["S11_S12","A_EP_OTH","EPS_P1_ANC",null,null,null,null,null,2019,":",null,":",null,":",null,":",null,":",null,":",null,":",null,":",null,":",null,":",null,":",null,":"]
["S11_S12","A_EP_OTH","EPS_P1_ANC",null,null,null,null,null,2020,":",null,":",null,":",null,":",null,":",null,":",null,":",null,":",null,":",null,":",null,":",null,":"]
["S11_S12","A_EP_OTH","EPS_P1_ANC",null,null,null,null,null,2021,":",null,":",null,":",null,":",null,":",null,":",null,":",null,":",null,":",null,":",null,":",null,":"]
["S11_S12","A_EP_OTH","EPS_P1_ANC",null,null,null,null,null,2022,":",null,":",null,":",null,":",null,":",null,":",null,":",null,":",null,":",null,":",null,":",null,":"]
["S11_S12","A_EP_OTH","EPS_P1_ANC",null,null,null,null,null,2023,":",null,":",null,":",null,":",null,":",null,":",null,":",null,":",null,":",null,":",null,":",null,":"]
["S11_S12","A_EP_OTH","EPS_P1_ANC",null,null,null,null,null,2024,":",null,":",null,":",null,":",null,":",null,":",null,":",null,":",null,":",null,":",null,":",null,":"]
["S11_S12","A_EP_OTH","EPS_P1_ANC",null,null,null,null,null,2025,":",null,":",null,":",null,":",null,":",null,":",null,":",null,":",null,":",null,":",null,":",null,":"]
["S11_S12","A_EP_OTH","EPS_P1_ANC",null,null,null,null,null,2026,":",null,":",null,":",null,":",null,":",null,":",null,":",null,":",null,":",null,":",null,":",null,":"]
["S11_S12","A_EP_OTH","EPS_P1_ANC",null,null,null,null,null,2027,":",null,":",null,":",null,":",null,":",null,":",null,":",null,":",null,":",null,":",null,":",null,":"]
["S11_S12","A_EP_OTH","EPS_P1_ANC",null,null,null,null,null,2028,":",null,":",null,":",null,":",null,":",null,":",null,":",null,":",null,":",null,":",null,":",null,":"]
["S11_S12","A_EP_OTH","EPS_P1_ANC",null,null,null,null,null,2029,":",null,":",null,":",null,":",null,":",null,":",null,":",null,":",null,":",null,":",null,":",null,":"]
["S11_S12","A_EP_OTH","EPS_P1_ANC",null,null,null,null,null,2030,":",null,":",null,":",null,":",null,":",null,":",null,":",null,":",null,":",null,":",null,":",null,":"]
["S11_S12","A_EP_OTH","EPS_P1_ANC",null,null,null,null,null,2031,":",null,":",null,":",null,":",null,":",null,":",null,":",null,":",null,":",null,":",null,":",null,":"]
["S11_S12","A_EP_OTH","EPS_D29X39",null,"   ( D29-D39.3e ) Other taxes less subsidies on production",null,null,null,2014,":",null,":",null,":",null,":",null,":",null,":",null,":",null,":",null,":",null,":",null,":",null,":"]
["S11_S12","A_EP_OTH","EPS_D29X39",null,null,null,null,null,2015,":",null,":",null,":",null,":",null,":",null,":",null,":",null,":",null,":",null,":",null,":",null,":"]
["S11_S12","A_EP_OTH","EPS_D29X39",null,null,null,null,null,2016,":",null,":",null,":",null,":",null,":",null,":",null,":",null,":",null,":",null,":",null,":",null,":"]
["S11_S12","A_EP_OTH","EPS_D29X39",null,null,null,null,null,2017,":",null,":",null,":",null,":",null,":",null,":",null,":",null,":",null,":",null,":",null,":",null,":"]
["S11_S12","A_EP_OTH","EPS_D29X39",null,null,null,null,null,2018,":",null,":",null,":",null,":",null,":",null,":",null,":",null,":",null,":",null,":",null,":",null,":"]
["S11_S12","A_EP_OTH","EPS_D29X39",null,null,null,null,null,2019,":",null,":",null,":",null,":",null,":",null,":",null,":",null,":",null,":",null,":",null,":",null,":"]
["S11_S12","A_EP_OTH","EPS_D29X39",null,null,null,null,null,2020,":",null,":",null,":",null,":",null,":",null,":",null,":",null,":",null,":",null,":",null,":",null,":"]
["S11_S12","A_EP_OTH","EPS_D29X39",null,null,null,null,null,2021,":",null,":",null,":",null,":",null,":",null,":",null,":",null,":",null,":",null,":",null,":",null,":"]
["S11_S12","A_EP_OTH","EPS_D29X39",null,null,null,null,null,2022,":",null,":",null,":",null,":",null,":",null,":",null,":",null,":",null,":",null,":",null,":",null,":"]
["S11_S12","A_EP_OTH","EPS_D29X39",null,null,null,null,null,2023,":",null,":",null,":",null,":",null,":",null,":",null,":",null,":",null,":",null,":",null,":",null,":"]
["S11_S12","A_EP_OTH","EPS_D29X39",null,null,null,null,null,2024,":",null,":",null,":",null,":",null,":",null,":",null,":",null,":",null,":",null,":",null,":",null,":"]
["S11_S12","A_EP_OTH","EPS_D29X39",null,null,null,null,null,2025,":",null,":",null,":",null,":",null,":",null,":",null,":",null,":",null,":",null,":",null,":",null,":"]
["S11_S12","A_EP_OTH","EPS_D29X39",null,null,null,null,null,2026,":",null,":",null,":",null,":",null,":",null,":",null,":",null,":",null,":",null,":",null,":",null,":"]
["S11_S12","A_EP_OTH","EPS_D29X39",null,null,null,null,null,2027,":",null,":",null,":",null,":",null,":",null,":",null,":",null,":",null,":",null,":",null,":",null,":"]
["S11_S12","A_EP_OTH","EPS_D29X39",null,null,null,null,null,2028,":",null,":",null,":",null,":",null,":",null,":",null,":",null,":",null,":",null,":",null,":",null,":"]
["S11_S12","A_EP_OTH","EPS_D29X39",null,null,null,null,null,2029,":",null,":",null,":",null,":",null,":",null,":",null,":",null,":",null,":",null,":",null,":",null,":"]
["S11_S12","A_EP_OTH","EPS_D29X39",null,null,null,null,null,2030,":",null,":",null,":",null,":",null,":",null,":",null,":",null,":",null,":",null,":",null,":",null,":"]
["S11_S12","A_EP_OTH","EPS_D29X39",null,null,null,null,null,2031,":",null,":",null,":",null,":",null,":",null,":",null,":",null,":",null,":",null,":",null,":",null,":"]
["S11_S12","A_EP_OTH","EPS_P51C",null,"   ( P51C.3e ) Consumption of fixed capital",null,null,null,2014,":",null,":",null,":",null,":",null,":",null,":",null,":",null,":",null,":",null,":",null,":",null,":"]
["S11_S12","A_EP_OTH","EPS_P51C",null,null,null,null,null,2015,":",null,":",null,":",null,":",null,":",null,":",null,":",null,":",null,":",null,":",null,":",null,":"]
["S11_S12","A_EP_OTH","EPS_P51C",null,null,null,null,null,2016,":",null,":",null,":",null,":",null,":",null,":",null,":",null,":",null,":",null,":",null,":",null,":"]
["S11_S12","A_EP_OTH","EPS_P51C",null,null,null,null,null,2017,":",null,":",null,":",null,":",null,":",null,":",null,":",null,":",null,":",null,":",null,":",null,":"]
["S11_S12","A_EP_OTH","EPS_P51C",null,null,null,null,null,2018,":",null,":",null,":",null,":",null,":",null,":",null,":",null,":",null,":",null,":",null,":",null,":"]
["S11_S12","A_EP_OTH","EPS_P51C",null,null,null,null,null,2019,":",null,":",null,":",null,":",null,":",null,":",null,":",null,":",null,":",null,":",null,":",null,":"]
["S11_S12","A_EP_OTH","EPS_P51C",null,null,null,null,null,2020,":",null,":",null,":",null,":",null,":",null,":",null,":",null,":",null,":",null,":",null,":",null,":"]
["S11_S12","A_EP_OTH","EPS_P51C",null,null,null,null,null,2021,":",null,":",null,":",null,":",null,":",null,":",null,":",null,":",null,":",null,":",null,":",null,":"]
["S11_S12","A_EP_OTH","EPS_P51C",null,null,null,null,null,2022,":",null,":",null,":",null,":",null,":",null,":",null,":",null,":",null,":",null,":",null,":",null,":"]
["S11_S12","A_EP_OTH","EPS_P51C",null,null,null,null,null,2023,":",null,":",null,":",null,":",null,":",null,":",null,":",null,":",null,":",null,":",null,":",null,":"]
["S11_S12","A_EP_OTH","EPS_P51C",null,null,null,null,null,2024,":",null,":",null,":",null,":",null,":",null,":",null,":",null,":",null,":",null,":",null,":",null,":"]
["S11_S12","A_EP_OTH","EPS_P51C",null,null,null,null,null,2025,":",null,":",null,":",null,":",null,":",null,":",null,":",null,":",null,":",null,":",null,":",null,":"]
["S11_S12","A_EP_OTH","EPS_P51C",null,null,null,null,null,2026,":",null,":",null,":",null,":",null,":",null,":",null,":",null,":",null,":",null,":",null,":",null,":"]
["S11_S12","A_EP_OTH","EPS_P51C",null,null,null,null,null,2027,":",null,":",null,":",null,":",null,":",null,":",null,":",null,":",null,":",null,":",null,":",null,":"]
["S11_S12","A_EP_OTH","EPS_P51C",null,null,null,null,null,2028,":",null,":",null,":",null,":",null,":",null,":",null,":",null,":",null,":",null,":",null,":",null,":"]
["S11_S12","A_EP_OTH","EPS_P51C",null,null,null,null,null,2029,":",null,":",null,":",null,":",null,":",null,":",null,":",null,":",null,":",null,":",null,":",null,":"]
["S11_S12","A_EP_OTH","EPS_P51C",null,null,null,null,null,2030,":",null,":",null,":",null,":",null,":",null,":",null,":",null,":",null,":",null,":",null,":",null,":"]
["S11_S12","A_EP_OTH","EPS_P51C",null,null,null,null,null,2031,":",null,":",null,":",null,":",null,":",null,":",null,":",null,":",null,":",null,":",null,":",null,":"]
["S11_S12","A_EP_OTH","EPS_P1_ANCESA",null,"( P1_ANC_ESA.3e ) Ancillary EP output (ESA-compatible output) ((P2_NEPS.3e) + (D1.3e) + (P51C.3e) + (D29-D39.3e))",null,null,null,2014,":",null,":",null,":",null,":",null,":",null,":",null,":",null,":",null,":",null,":",null,":",null,":"]
["S11_S12","A_EP_OTH","EPS_P1_ANCESA",null,null,null,null,null,2015,":",null,":",null,":",null,":",null,":",null,":",null,":",null,":",null,":",null,":",null,":",null,":"]
["S11_S12","A_EP_OTH","EPS_P1_ANCESA",null,null,null,null,null,2016,":",null,":",null,":",null,":",null,":",null,":",null,":",null,":",null,":",null,":",null,":",null,":"]
["S11_S12","A_EP_OTH","EPS_P1_ANCESA",null,null,null,null,null,2017,":",null,":",null,":",null,":",null,":",null,":",null,":",null,":",null,":",null,":",null,":",null,":"]
["S11_S12","A_EP_OTH","EPS_P1_ANCESA",null,null,null,null,null,2018,":",null,":",null,":",null,":",null,":",null,":",null,":",null,":",null,":",null,":",null,":",null,":"]
["S11_S12","A_EP_OTH","EPS_P1_ANCESA",null,null,null,null,null,2019,":",null,":",null,":",null,":",null,":",null,":",null,":",null,":",null,":",null,":",null,":",null,":"]
["S11_S12","A_EP_OTH","EPS_P1_ANCESA",null,null,null,null,null,2020,":",null,":",null,":",null,":",null,":",null,":",null,":",null,":",null,":",null,":",null,":",null,":"]
["S11_S12","A_EP_OTH","EPS_P1_ANCESA",null,null,null,null,null,2021,":",null,":",null,":",null,":",null,":",null,":",null,":",null,":",null,":",null,":",null,":",null,":"]
["S11_S12","A_EP_OTH","EPS_P1_ANCESA",null,null,null,null,null,2022,":",null,":",null,":",null,":",null,":",null,":",null,":",null,":",null,":",null,":",null,":",null,":"]
["S11_S12","A_EP_OTH","EPS_P1_ANCESA",null,null,null,null,null,2023,":",null,":",null,":",null,":",null,":",null,":",null,":",null,":",null,":",null,":",null,":",null,":"]
["S11_S12","A_EP_OTH","EPS_P1_ANCESA",null,null,null,null,null,2024,":",null,":",null,":",null,":",null,":",null,":",null,":",null,":",null,":",null,":",null,":",null,":"]
["S11_S12","A_EP_OTH","EPS_P1_ANCESA",null,null,null,null,null,2025,":",null,":",null,":",null,":",null,":",null,":",null,":",null,":",null,":",null,":",null,":",null,":"]
["S11_S12","A_EP_OTH","EPS_P1_ANCESA",null,null,null,null,null,2026,":",null,":",null,":",null,":",null,":",null,":",null,":",null,":",null,":",null,":",null,":",null,":"]
["S11_S12","A_EP_OTH","EPS_P1_ANCESA",null,null,null,null,null,2027,":",null,":",null,":",null,":",null,":",null,":",null,":",null,":",null,":",null,":",null,":",null,{"$f":"IF(COUNT(J200,N200,P200,R200,T200,V200,AD200)=7,SUM(J200,N200,P200,R200,T200,V200,AD200),\":\")","v":":"}]
["S11_S12","A_EP_OTH","EPS_P1_ANCESA",null,null,null,null,null,2028,":",null,":",null,":",null,":",null,":",null,":",null,":",null,":",null,":",null,":",null,":",null,":"]
["S11_S12","A_EP_OTH","EPS_P1_ANCESA",null,null,null,null,null,2029,":",null,":",null,":",null,":",null,":",null,":",null,":",null,":",null,":",null,":",null,":",null,":"]
["S11_S12","A_EP_OTH","EPS_P1_ANCESA",null,null,null,null,null,2030,":",null,":",null,":",null,":",null,":",null,":",null,":",null,":",null,":",null,":",null,":",null,":"]
["S11_S12","A_EP_OTH","EPS_P1_ANCESA",null,null,null,null,null,2031,":",null,":",null,":",null,":",null,":",null,":",null,":",null,":",null,":",null,":",null,":",null,":"]
["S11_S12","A_EP_OTH","EPS_REC_BYPR",null,"   ( RNO.3e ) Related non-EP output",null,null,null,2014,":",null,":",null,":",null,":",null,":",null,":",null,":",null,":",null,":",null,":",null,":",null,":"]
["S11_S12","A_EP_OTH","EPS_REC_BYPR",null,null,null,null,null,2015,":",null,":",null,":",null,":",null,":",null,":",null,":",null,":",null,":",null,":",null,":",null,":"]
["S11_S12","A_EP_OTH","EPS_REC_BYPR",null,null,null,null,null,2016,":",null,":",null,":",null,":",null,":",null,":",null,":",null,":",null,":",null,":",null,":",null,":"]
["S11_S12","A_EP_OTH","EPS_REC_BYPR",null,null,null,null,null,2017,":",null,":",null,":",null,":",null,":",null,":",null,":",null,":",null,":",null,":",null,":",null,":"]
["S11_S12","A_EP_OTH","EPS_REC_BYPR",null,null,null,null,null,2018,":",null,":",null,":",null,":",null,":",null,":",null,":",null,":",null,":",null,":",null,":",null,":"]
["S11_S12","A_EP_OTH","EPS_REC_BYPR",null,null,null,null,null,2019,":",null,":",null,":",null,":",null,":",null,":",null,":",null,":",null,":",null,":",null,":",null,":"]
["S11_S12","A_EP_OTH","EPS_REC_BYPR",null,null,null,null,null,2020,":",null,":",null,":",null,":",null,":",null,":",null,":",null,":",null,":",null,":",null,":",null,":"]
["S11_S12","A_EP_OTH","EPS_REC_BYPR",null,null,null,null,null,2021,":",null,":",null,":",null,":",null,":",null,":",null,":",null,":",null,":",null,":",null,":",null,":"]
["S11_S12","A_EP_OTH","EPS_REC_BYPR",null,null,null,null,null,2022,":",null,":",null,":",null,":",null,":",null,":",null,":",null,":",null,":",null,":",null,":",null,":"]
["S11_S12","A_EP_OTH","EPS_REC_BYPR",null,null,null,null,null,2023,":",null,":",null,":",null,":",null,":",null,":",null,":",null,":",null,":",null,":",null,":",null,":"]
["S11_S12","A_EP_OTH","EPS_REC_BYPR",null,null,null,null,null,2024,":",null,":",null,":",null,":",null,":",null,":",null,":",null,":",null,":",null,":",null,":",null,":"]
["S11_S12","A_EP_OTH","EPS_REC_BYPR",null,null,null,null,null,2025,":",null,":",null,":",null,":",null,":",null,":",null,":",null,":",null,":",null,":",null,":",null,":"]
["S11_S12","A_EP_OTH","EPS_REC_BYPR",null,null,null,null,null,2026,":",null,":",null,":",null,":",null,":",null,":",null,":",null,":",null,":",null,":",null,":",null,":"]
["S11_S12","A_EP_OTH","EPS_REC_BYPR",null,null,null,null,null,2027,":",null,":",null,":",null,":",null,":",null,":",null,":",null,":",null,":",null,":",null,":",null,":"]
["S11_S12","A_EP_OTH","EPS_REC_BYPR",null,null,null,null,null,2028,":",null,":",null,":",null,":",null,":",null,":",null,":",null,":",null,":",null,":",null,":",null,":"]
["S11_S12","A_EP_OTH","EPS_REC_BYPR",null,null,null,null,null,2029,":",null,":",null,":",null,":",null,":",null,":",null,":",null,":",null,":",null,":",null,":",null,":"]
["S11_S12","A_EP_OTH","EPS_REC_BYPR",null,null,null,null,null,2030,":",null,":",null,":",null,":",null,":",null,":",null,":",null,":",null,":",null,":",null,":",null,":"]
["S11_S12","A_EP_OTH","EPS_REC_BYPR",null,null,null,null,null,2031,":",null,":",null,":",null,":",null,":",null,":",null,":",null,":",null,":",null,":",null,":",null,":"]
["S11_S12","A_EP_OTH","TOT_P2_EPS","Transactions as users of EP services (ancillary production of EP services and other production)","( P2_EPS_EXT.3e ) Total intermediate consumption of EP services (for production of EP services and for other production)",null,null,null,2014,":",null,":",null,":",null,":",null,":",null,":",null,":",null,":",null,":",null,":",null,":",null,":"]
["S11_S12","A_EP_OTH","TOT_P2_EPS",null,"(P2_EPS_EXT.3x: please consider the explanatory notes - click here)",null,null,null,2015,":",null,":",null,":",null,":",null,":",null,":",null,":",null,":",null,":",null,":",null,":",null,":"]
["S11_S12","A_EP_OTH","TOT_P2_EPS",null,null,null,null,null,2016,":",null,":",null,":",null,":",null,":",null,":",null,":",null,":",null,":",null,":",null,":",null,":"]
["S11_S12","A_EP_OTH","TOT_P2_EPS",null,null,null,null,null,2017,":",null,":",null,":",null,":",null,":",null,":",null,":",null,":",null,":",null,":",null,":",null,":"]
["S11_S12","A_EP_OTH","TOT_P2_EPS",null,null,null,null,null,2018,":",null,":",null,":",null,":",null,":",null,":",null,":",null,":",null,":",null,":",null,":",null,":"]
["S11_S12","A_EP_OTH","TOT_P2_EPS",null,null,null,null,null,2019,":",null,":",null,":",null,":",null,":",null,":",null,":",null,":",null,":",null,":",null,":",null,":"]
["S11_S12","A_EP_OTH","TOT_P2_EPS",null,null,null,null,null,2020,":",null,":",null,":",null,":",null,":",null,":",null,":",null,":",null,":",null,":",null,":",null,":"]
["S11_S12","A_EP_OTH","TOT_P2_EPS",null,null,null,null,null,2021,":",null,":",null,":",null,":",null,":",null,":",null,":",null,":",null,":",null,":",null,":",null,":"]
["S11_S12","A_EP_OTH","TOT_P2_EPS",null,null,null,null,null,2022,":",null,":",null,":",null,":",null,":",null,":",null,":",null,":",null,":",null,":",null,":",null,":"]
["S11_S12","A_EP_OTH","TOT_P2_EPS",null,null,null,null,null,2023,":",null,":",null,":",null,":",null,":",null,":",null,":",null,":",null,":",null,":",null,":",null,":"]
["S11_S12","A_EP_OTH","TOT_P2_EPS",null,null,null,null,null,2024,":",null,":",null,":",null,":",null,":",null,":",null,":",null,":",null,":",null,":",null,":",null,":"]
["S11_S12","A_EP_OTH","TOT_P2_EPS",null,null,null,null,null,2025,":",null,":",null,":",null,":",null,":",null,":",null,":",null,":",null,":",null,":",null,":",null,":"]
["S11_S12","A_EP_OTH","TOT_P2_EPS",null,null,null,null,null,2026,":",null,":",null,":",null,":",null,":",null,":",null,":",null,":",null,":",null,":",null,":",null,":"]
["S11_S12","A_EP_OTH","TOT_P2_EPS",null,null,null,null,null,2027,":",null,":",null,":",null,":",null,":",null,":",null,":",null,":",null,":",null,":",null,":",null,":"]
["S11_S12","A_EP_OTH","TOT_P2_EPS",null,null,null,null,null,2028,":",null,":",null,":",null,":",null,":",null,":",null,":",null,":",null,":",null,":",null,":",null,":"]
["S11_S12","A_EP_OTH","TOT_P2_EPS",null,null,null,null,null,2029,":",null,":",null,":",null,":",null,":",null,":",null,":",null,":",null,":",null,":",null,":",null,":"]
["S11_S12","A_EP_OTH","TOT_P2_EPS",null,null,null,null,null,2030,":",null,":",null,":",null,":",null,":",null,":",null,":",null,":",null,":",null,":",null,":",null,":"]
["S11_S12","A_EP_OTH","TOT_P2_EPS",null,null,null,null,null,2031,":",null,":",null,":",null,":",null,":",null,":",null,":",null,":",null,":",null,":",null,":",null,":"]
["S11_S12","A_EP_OTH","EPS_EMP","Transactions of producers of ancillary EP services","( EMP.3e ) Employment (Full time equivalents)",null,null,null,2014,":",null,":",null,":",null,":",null,":",null,":",null,":",null,":",null,":",null,":",null,":",null,":"]
["S11_S12","A_EP_OTH","EPS_EMP",null,null,null,null,null,2015,":",null,":",null,":",null,":",null,":",null,":",null,":",null,":",null,":",null,":",null,":",null,":"]
["S11_S12","A_EP_OTH","EPS_EMP",null,null,null,null,null,2016,":",null,":",null,":",null,":",null,":",null,":",null,":",null,":",null,":",null,":",null,":",null,":"]
["S11_S12","A_EP_OTH","EPS_EMP",null,null,null,null,null,2017,":",null,":",null,":",null,":",null,":",null,":",null,":",null,":",null,":",null,":",null,":",null,":"]
["S11_S12","A_EP_OTH","EPS_EMP",null,null,null,null,null,2018,":",null,":",null,":",null,":",null,":",null,":",null,":",null,":",null,":",null,":",null,":",null,":"]
["S11_S12","A_EP_OTH","EPS_EMP",null,null,null,null,null,2019,":",null,":",null,":",null,":",null,":",null,":",null,":",null,":",null,":",null,":",null,":",null,":"]
["S11_S12","A_EP_OTH","EPS_EMP",null,null,null,null,null,2020,":",null,":",null,":",null,":",null,":",null,":",null,":",null,":",null,":",null,":",null,":",null,":"]
["S11_S12","A_EP_OTH","EPS_EMP",null,null,null,null,null,2021,":",null,":",null,":",null,":",null,":",null,":",null,":",null,":",null,":",null,":",null,":",null,":"]
["S11_S12","A_EP_OTH","EPS_EMP",null,null,null,null,null,2022,":",null,":",null,":",null,":",null,":",null,":",null,":",null,":",null,":",null,":",null,":",null,":"]
["S11_S12","A_EP_OTH","EPS_EMP",null,null,null,null,null,2023,":",null,":",null,":",null,":",null,":",null,":",null,":",null,":",null,":",null,":",null,":",null,":"]
["S11_S12","A_EP_OTH","EPS_EMP",null,null,null,null,null,2024,":",null,":",null,":",null,":",null,":",null,":",null,":",null,":",null,":",null,":",null,":",null,":"]
["S11_S12","A_EP_OTH","EPS_EMP",null,null,null,null,null,2025,":",null,":",null,":",null,":",null,":",null,":",null,":",null,":",null,":",null,":",null,":",null,":"]
["S11_S12","A_EP_OTH","EPS_EMP",null,null,null,null,null,2026,":",null,":",null,":",null,":",null,":",null,":",null,":",null,":",null,":",null,":",null,":",null,":"]
["S11_S12","A_EP_OTH","EPS_EMP",null,null,null,null,null,2027,":",null,":",null,":",null,":",null,":",null,":",null,":",null,":",null,":",null,":",null,":",null,":"]
["S11_S12","A_EP_OTH","EPS_EMP",null,null,null,null,null,2028,":",null,":",null,":",null,":",null,":",null,":",null,":",null,":",null,":",null,":",null,":",null,":"]
["S11_S12","A_EP_OTH","EPS_EMP",null,null,null,null,null,2029,":",null,":",null,":",null,":",null,":",null,":",null,":",null,":",null,":",null,":",null,":",null,":"]
["S11_S12","A_EP_OTH","EPS_EMP",null,null,null,null,null,2030,":",null,":",null,":",null,":",null,":",null,":",null,":",null,":",null,":",null,":",null,":",null,":"]
["S11_S12","A_EP_OTH","EPS_EMP",null,null,null,null,null,2031,":",null,":",null,":",null,":",null,":",null,":",null,":",null,":",null,":",null,":",null,":",null,":"]

{"sheet":"4","index":37,"n_rows":168,"n_cols":37,"rows_kept":168,"cut":false,"hidden":false,"merged":[[150,4,150,7],[79,4,82,7],[97,4,97,7],[114,4,114,7],[132,4,132,7],[61,4,61,7],[42,4,42,7],[60,4,60,7],[25,4,25,7],[96,4,96,7],[78,4,78,7],[43,4,43,7],[0,4,0,8],[6,4,6,7],[0,9,0,14],[1,9,1,32],[2,9,2,32],[3,31,4,32],[1,4,1,8],[3,25,4,26],[3,27,4,28],[3,29,4,30],[11,4,11,7],[4,4,4,7],[24,4,24,7],[3,23,4,24],[7,4,7,7],[3,13,4,14],[3,9,4,10],[3,11,4,12],[3,15,4,16],[3,17,4,18],[3,19,4,20],[3,21,4,22],[1,33,1,36],[2,33,2,36],[3,33,4,34],[3,35,4,36],[8,4,10,7]]}
[null,null,null,null,{"$f":"Cover!B21","v":"QUESTIONNAIRE ON ENVIRONMENTAL PROTECTION EXPENDITURE ACCOUNTS"},null,null,null,null,"Table 4. Total supply of environmental protection services "]
[null,null,null,null,{"$f":"E1","v":"QUESTIONNAIRE ON ENVIRONMENTAL PROTECTION EXPENDITURE ACCOUNTS"},null,null,null,null,{"$f":"J1","v":"Table 4. Total supply of environmental protection services "},null,null,null,null,null,null,null,null,null,null,null,null,null,null,null,null,null,null,null,null,null,null,null,"Table 4. Total supply of RM products"]
[null,null,null,null,null,null,null,null,null,"Mandatory and voluntary variables and environmental domains - please fill in as much as possible",null,null,null,null,null,null,null,null,null,null,null,null,null,null,null,null,null,null,null,null,null,null,null,"Voluntary variables and RM domains - please fill in as much as possible"]
[null,null,null,null,"Country/Unit",{"$f":"IFERROR(Cover!C16,\"\")","v":""},{"$f":"\"\"&Cover!B16","v":""},null,{"$f":"Cover!B17","v":"Million units of national currency"},"CEPA 1",null,"of which CEPA 1.1.2 and 1.2.2 Climate change",null,"CEPA 2",null,"CEPA 3",null,"CEPA 4",null,"CEPA 5",null,"CEPA 6",null,"CEPA 7",null,"CEPA 8",null,"CEPA 9",null,"Sum of CEPA 7+8+9",null,"TOTAL",null," CReMA\n11B + 13C + 14 \n(Materials recovery)",null,"CReMA13A (Production of energy  from renewable sources)"]
[null,null,null,null,"Expenditure",null,null,null,"Year",null,null,null,null,null,null,null,null,null,null,null,null,null,null,null,null,null,null,null,null,null,null,"Landscape",null,"Landscape",null,"Landscape"]
[null,null,null,null,null,null,null,null,null,"CEPA1",null,"CEPA112_122",null,"CEPA2",null,"CEPA3",null,"CEPA4",null,"CEPA5",null,"CEPA6",null,"CEPA7",null,"CEPA8",null,"CEPA9",null,"CEPA7-9",null,"TOT_CEPA",null,"CREMA 11B_13C_14",null,"CREMA 13A"]
["S1","TOTAL","EPS_P1",null,"( P1.4 ) Total output of EP services  / RM products  (P11.4 + P1_ANC.4 + P13.4)",null,null,null,2014,{"$f":"IF(OR(J25=\":\",J43=\":\",J61=\":\"),\":\",SUM(J25,J43,J61))","v":":"},{"$f":"IF(J7=\":\",\"\",+K25&K43&K61)","v":""},{"$f":"IF(OR(L25=\":\",L43=\":\",L61=\":\"),\":\",SUM(L25,L43,L61))","v":":"},{"$f":"IF(L7=\":\",\"\",+M25&M43&M61)","v":""},{"$f":"IF(OR(N25=\":\",N43=\":\",N61=\":\"),\":\",SUM(N25,N43,N61))","v":":"},{"$f":"IF(N7=\":\",\"\",+O25&O43&O61)","v":""},{"$f":"IF(OR(P25=\":\",P43=\":\",P61=\":\"),\":\",SUM(P25,P43,P61))","v":":"},{"$f":"IF(P7=\":\",\"\",+Q25&Q43&Q61)","v":""},{"$f":"IF(OR(R25=\":\",R43=\":\",R61=\":\"),\":\",SUM(R25,R43,R61))","v":":"},{"$f":"IF(R7=\":\",\"\",+S25&S43&S61)","v":""},{"$f":"IF(OR(T25=\":\",T43=\":\",T61=\":\"),\":\",SUM(T25,T43,T61))","v":":"},{"$f":"IF(T7=\":\",\"\",+U25&U43&U61)","v":""},{"$f":"IF(OR(V25=\":\",V43=\":\",V61=\":\"),\":\",SUM(V25,V43,V61))","v":":"},{"$f":"IF(V7=\":\",\"\",+W25&W43&W61)","v":""},{"$f":"IF(OR(X25=\":\",X43=\":\",X61=\":\"),\":\",SUM(X25,X43,X61))","v":":"},{"$f":"IF(X7=\":\",\"\",+Y25&Y43&Y61)","v":""},{"$f":"IF(OR(Z25=\":\",Z43=\":\",Z61=\":\"),\":\",SUM(Z25,Z43,Z61))","v":":"},{"$f":"IF(Z7=\":\",\"\",+AA25&AA43&AA61)","v":""},{"$f":"IF(OR(AB25=\":\",AB43=\":\",AB61=\":\"),\":\",SUM(AB25,AB43,AB61))","v":":"},{"$f":"IF(AB7=\":\",\"\",+AC25&AC43&AC61)","v":""},{"$f":"IF(OR(AD25=\":\",AD43=\":\",AD61=\":\"),\":\",SUM(AD25,AD43,AD61))","v":":"},{"$f":"IF(AD7=\":\",\"\",+AE25&AE43&AE61)","v":""},{"$f":"IF(OR(AF25=\":\",AF43=\":\",AF61=\":\"),\":\",SUM(AF25,AF43,AF61))","v":":"},{"$f":"IF(AF7=\":\",\"\",+AG25&AG43&AG61)","v":""},{"$f":"IF(OR(AH25=\":\",AH43=\":\",AH61=\":\"),\":\",SUM(AH25,AH43,AH61))","v":":"},null,{"$f":"IF(OR(AJ25=\":\",AJ43=\":\",AJ61=\":\"),\":\",SUM(AJ25,AJ43,AJ61))","v":":"}]
["S1","TOTAL","EPS_P1",null,null,null,null,null,2015,{"$f":"IF(OR(J26=\":\",J44=\":\",J62=\":\"),\":\",SUM(J26,J44,J62))","v":":"},{"$f":"IF(J8=\":\",\"\",+K26&K44&K62)","v":""},":",{"$f":"IF(L8=\":\",\"\",+M26&M44&M62)","v":""},":",{"$f":"IF(N8=\":\",\"\",+O26&O44&O62)","v":""},":",{"$f":"IF(P8=\":\",\"\",+Q26&Q44&Q62)","v":""},":",{"$f":"IF(R8=\":\",\"\",+S26&S44&S62)","v":""},":",{"$f":"IF(T8=\":\",\"\",+U26&U44&U62)","v":""},":",{"$f":"IF(V8=\":\",\"\",+W26&W44&W62)","v":""},":",{"$f":"IF(X8=\":\",\"\",+Y26&Y44&Y62)","v":""},":",{"$f":"IF(Z8=\":\",\"\",+AA26&AA44&AA62)","v":""},":",{"$f":"IF(AB8=\":\",\"\",+AC26&AC44&AC62)","v":""},":","",":",{"$f":"IF(AF8=\":\",\"\",+AG26&AG44&AG62)","v":""},":",null,":"]
["S1","TOTAL","EPS_P1",null,null,null,null,null,2016,":","",":","",":","",":","",":","",":","",":","",":","",":","",":","",":","",":","",":",null,":"]
["S1","TOTAL","EPS_P1",null,null,null,null,null,2017,":","",":","",":","",":","",":","",":","",":","",":","",":","",":","",":","",":","",":",null,":"]
["S1","TOTAL","EPS_P1",null,null,null,null,null,2018,":","",":","",":","",":","",":","",":","",":","",":","",":","",":","",":","",":","",":",null,":"]
["S1","TOTAL","EPS_P1",null,null,null,null,null,2019,":","",":","",":","",":","",":","",":","",":","",":","",":","",":","",":","",":","",":",null,":"]
["S1","TOTAL","EPS_P1",null,null,null,null,null,2020,":","",":","",":","",":","",":","",":","",":","",":","",":","",":","",":","",":","",":",null,":"]
["S1","TOTAL","EPS_P1",null,null,null,null,null,2021,":","",":","",":","",":","",":","",":","",":","",":","",":","",":","",":","",":","",":",null,":"]
["S1","TOTAL","EPS_P1",null,null,null,null,null,2022,":","",":","",":","",":","",":","",":","",":","",":","",":","",":","",":","",":","",":",null,":"]
["S1","TOTAL","EPS_P1",null,null,null,null,null,2023,":","",":","",":","",":","",":","",":","",":","",":","",":","",":","",":","",":","",":",null,":"]
["S1","TOTAL","EPS_P1",null,null,null,null,null,2024,":","",":","",":","",":","",":","",":","",":","",":","",":","",":","",":","",":","",":",null,":"]
["S1","TOTAL","EPS_P1",null,null,null,null,null,2025,{"$f":"IF(OR(J36=\":\",J54=\":\",J72=\":\"),\":\",SUM(J36,J54,J72))","v":":"},{"$f":"IF(J18=\":\",\"\",+K36&K54&K72)","v":""},{"$f":"IF(OR(L36=\":\",L54=\":\",L72=\":\"),\":\",SUM(L36,L54,L72))","v":":"},{"$f":"IF(L18=\":\",\"\",+M36&M54&M72)","v":""},{"$f":"IF(OR(N36=\":\",N54=\":\",N72=\":\"),\":\",SUM(N36,N54,N72))","v":":"},{"$f":"IF(N18=\":\",\"\",+O36&O54&O72)","v":""},{"$f":"IF(OR(P36=\":\",P54=\":\",P72=\":\"),\":\",SUM(P36,P54,P72))","v":":"},{"$f":"IF(P18=\":\",\"\",+Q36&Q54&Q72)","v":""},{"$f":"IF(OR(R36=\":\",R54=\":\",R72=\":\"),\":\",SUM(R36,R54,R72))","v":":"},{"$f":"IF(R18=\":\",\"\",+S36&S54&S72)","v":""},{"$f":"IF(OR(T36=\":\",T54=\":\",T72=\":\"),\":\",SUM(T36,T54,T72))","v":":"},{"$f":"IF(T18=\":\",\"\",+U36&U54&U72)","v":""},{"$f":"IF(OR(V36=\":\",V54=\":\",V72=\":\"),\":\",SUM(V36,V54,V72))","v":":"},{"$f":"IF(V18=\":\",\"\",+W36&W54&W72)","v":""},{"$f":"IF(OR(X36=\":\",X54=\":\",X72=\":\"),\":\",SUM(X36,X54,X72))","v":":"},{"$f":"IF(X18=\":\",\"\",+Y36&Y54&Y72)","v":""},{"$f":"IF(OR(Z36=\":\",Z54=\":\",Z72=\":\"),\":\",SUM(Z36,Z54,Z72))","v":":"},{"$f":"IF(Z18=\":\",\"\",+AA36&AA54&AA72)","v":""},{"$f":"IF(OR(AB36=\":\",AB54=\":\",AB72=\":\"),\":\",SUM(AB36,AB54,AB72))","v":":"},{"$f":"IF(AB18=\":\",\"\",+AC36&AC54&AC72)","v":""},{"$f":"IF(OR(AD36=\":\",AD54=\":\",AD72=\":\"),\":\",SUM(AD36,AD54,AD72))","v":":"},"",{"$f":"IF(OR(AF36=\":\",AF54=\":\",AF72=\":\"),\":\",SUM(AF36,AF54,AF72))","v":":"},{"$f":"IF(AF18=\":\",\"\",+AG36&AG54&AG72)","v":""},":",null,":"]
["S1","TOTAL","EPS_P1",null,null,null,null,null,2026,":","",":","",":","",":","",":","",":","",":","",":","",":","",":","",{"$f":"IF(OR(AD37=\":\",AD55=\":\",AD73=\":\"),\":\",SUM(AD37,AD55,AD73))","v":":"},"",":","",":",null,":"]
["S1","TOTAL","EPS_P1",null,null,null,null,null,2027,":","",":","",":","",":","",":","",":","",":","",":","",":","",":","",":","",":","",":",null,":"]
["S1","TOTAL","EPS_P1",null,null,null,null,null,2028,":","",":","",":","",":","",":","",":","",":","",":","",":","",":","",":","",":","",":",null,":"]
["S1","TOTAL","EPS_P1",null,null,null,null,null,2029,":","",":","",":","",":","",":","",":","",":","",":","",":","",":","",":","",":","",":",null,":"]
["S1","TOTAL","EPS_P1",null,null,null,null,null,2030,":","",":","",":","",":","",":","",":","",":","",":","",":","",":","",":","",":","",":",null,":"]
["S1","TOTAL","EPS_P1",null,null,null,null,null,2031,":","",":","",":","",":","",":","",":","",":","",":","",":","",":","",":","",":","",":",null,":"]
["S1","TOTAL","EPS_P11",null,"( P11.4 ) Market output of EP services / RM products (= P11.1 + P11.2)",null,null,null,2014,{"$f":"IF(COUNT('1'!J187,'2'!J187)=0,\":\",SUM('1'!J187,'2'!J187))","v":":"},{"$f":"+'1'!K187&'2'!K187","v":""},{"$f":"IF(COUNT('1'!L187,'2'!L187)=0,\":\",SUM('1'!L187,'2'!L187))","v":":"},{"$f":"+'1'!M187&'2'!M187","v":""},{"$f":"IF(COUNT('1'!N187,'2'!N187)=0,\":\",SUM('1'!N187,'2'!N187))","v":":"},{"$f":"+'1'!O187&'2'!O187","v":""},{"$f":"IF(COUNT('1'!P187,'2'!P187)=0,\":\",SUM('1'!P187,'2'!P187))","v":":"},{"$f":"+'1'!Q187&'2'!Q187","v":""},{"$f":"IF(COUNT('1'!R187,'2'!R187)=0,\":\",SUM('1'!R187,'2'!R187))","v":":"},{"$f":"+'1'!S187&'2'!S187","v":""},{"$f":"IF(COUNT('1'!T187,'2'!T187)=0,\":\",SUM('1'!T187,'2'!T187))","v":":"},{"$f":"+'1'!U187&'2'!U187","v":""},{"$f":"IF(COUNT('1'!V187,'2'!V187)=0,\":\",SUM('1'!V187,'2'!V187))","v":":"},{"$f":"+'1'!W187&'2'!W187","v":""},{"$f":"IF(COUNT('1'!X187,'2'!X187)=0,\":\",SUM('1'!X187,'2'!X187))","v":":"},{"$f":"+'1'!Y187&'2'!Y187","v":""},{"$f":"IF(COUNT('1'!Z187,'2'!Z187)=0,\":\",SUM('1'!Z187,'2'!Z187))","v":":"},{"$f":"+'1'!AA187&'2'!AA187","v":""},{"$f":"IF(COUNT('1'!AB187,'2'!AB187)=0,\":\",SUM('1'!AB187,'2'!AB187))","v":":"},{"$f":"+'1'!AC187&'2'!AC187","v":""},{"$f":"IF(COUNT('1'!AD187,'2'!AD187)=0,\":\",SUM('1'!AD187,'2'!AD187))","v":":"},null,{"$f":"IF(COUNT('1'!AF187,'2'!AF187)=0,\":\",SUM('1'!AF187,'2'!AF187))","v":":"},{"$f":"+'1'!AG187&'2'!AG187","v":""},{"$f":"IF(COUNT('1'!AH187,'2'!AH187)=0,\":\",SUM('1'!AH187,'2'!AH187))","v":":"},{"$f":"+'1'!AI187&'2'!AI187","v":""},{"$f":"IF(COUNT('1'!AJ187,'2'!AJ187)=0,\":\",SUM('1'!AJ187,'2'!AJ187))","v":":"},{"$f":"+'1'!AK187&'2'!AK187","v":""}]
["S1","TOTAL","EPS_P11",null,null,null,null,null,2015,{"$f":"IF(COUNT('1'!J188,'2'!J188)=0,\":\",SUM('1'!J188,'2'!J188))","v":":"},{"$f":"+'1'!K188&'2'!K188","v":""},{"$f":"IF(COUNT('1'!L188,'2'!L188)=0,\":\",SUM('1'!L188,'2'!L188))","v":":"},{"$f":"+'1'!M188&'2'!M188","v":""},{"$f":"IF(COUNT('1'!N188,'2'!N188)=0,\":\",SUM('1'!N188,'2'!N188))","v":":"},{"$f":"+'1'!O188&'2'!O188","v":""},{"$f":"IF(COUNT('1'!P188,'2'!P188)=0,\":\",SUM('1'!P188,'2'!P188))","v":":"},{"$f":"+'1'!Q188&'2'!Q188","v":""},{"$f":"IF(COUNT('1'!R188,'2'!R188)=0,\":\",SUM('1'!R188,'2'!R188))","v":":"},{"$f":"+'1'!S188&'2'!S188","v":""},{"$f":"IF(COUNT('1'!T188,'2'!T188)=0,\":\",SUM('1'!T188,'2'!T188))","v":":"},{"$f":"+'1'!U188&'2'!U188","v":""},{"$f":"IF(COUNT('1'!V188,'2'!V188)=0,\":\",SUM('1'!V188,'2'!V188))","v":":"},{"$f":"+'1'!W188&'2'!W188","v":""},{"$f":"IF(COUNT('1'!X188,'2'!X188)=0,\":\",SUM('1'!X188,'2'!X188))","v":":"},{"$f":"+'1'!Y188&'2'!Y188","v":""},{"$f":"IF(COUNT('1'!Z188,'2'!Z188)=0,\":\",SUM('1'!Z188,'2'!Z188))","v":":"},{"$f":"+'1'!AA188&'2'!AA188","v":""},{"$f":"IF(COUNT('1'!AB188,'2'!AB188)=0,\":\",SUM('1'!AB188,'2'!AB188))","v":":"},{"$f":"+'1'!AC188&'2'!AC188","v":""},{"$f":"IF(COUNT('1'!AD188,'2'!AD188)=0,\":\",SUM('1'!AD188,'2'!AD188))","v":":"},null,{"$f":"IF(COUNT('1'!AF188,'2'!AF188)=0,\":\",SUM('1'!AF188,'2'!AF188))","v":":"},{"$f":"+'1'!AG188&'2'!AG188","v":""},{"$f":"IF(COUNT('1'!AH188,'2'!AH188)=0,\":\",SUM('1'!AH188,'2'!AH188))","v":":"},{"$f":"+'1'!AI188&'2'!AI188","v":""},{"$f":"IF(COUNT('1'!AJ188,'2'!AJ188)=0,\":\",SUM('1'!AJ188,'2'!AJ188))","v":":"},{"$f":"+'1'!AK188&'2'!AK188","v":""}]
["S1","TOTAL","EPS_P11",null,null,null,null,null,2016,{"$f":"IF(COUNT('1'!J189,'2'!J189)=0,\":\",SUM('1'!J189,'2'!J189))","v":":"},{"$f":"+'1'!K189&'2'!K189","v":""},{"$f":"IF(COUNT('1'!L189,'2'!L189)=0,\":\",SUM('1'!L189,'2'!L189))","v":":"},{"$f":"+'1'!M189&'2'!M189","v":""},{"$f":"IF(COUNT('1'!N189,'2'!N189)=0,\":\",SUM('1'!N189,'2'!N189))","v":":"},{"$f":"+'1'!O189&'2'!O189","v":""},{"$f":"IF(COUNT('1'!P189,'2'!P189)=0,\":\",SUM('1'!P189,'2'!P189))","v":":"},{"$f":"+'1'!Q189&'2'!Q189","v":""},{"$f":"IF(COUNT('1'!R189,'2'!R189)=0,\":\",SUM('1'!R189,'2'!R189))","v":":"},{"$f":"+'1'!S189&'2'!S189","v":""},{"$f":"IF(COUNT('1'!T189,'2'!T189)=0,\":\",SUM('1'!T189,'2'!T189))","v":":"},{"$f":"+'1'!U189&'2'!U189","v":""},{"$f":"IF(COUNT('1'!V189,'2'!V189)=0,\":\",SUM('1'!V189,'2'!V189))","v":":"},{"$f":"+'1'!W189&'2'!W189","v":""},{"$f":"IF(COUNT('1'!X189,'2'!X189)=0,\":\",SUM('1'!X189,'2'!X189))","v":":"},{"$f":"+'1'!Y189&'2'!Y189","v":""},{"$f":"IF(COUNT('1'!Z189,'2'!Z189)=0,\":\",SUM('1'!Z189,'2'!Z189))","v":":"},{"$f":"+'1'!AA189&'2'!AA189","v":""},{"$f":"IF(COUNT('1'!AB189,'2'!AB189)=0,\":\",SUM('1'!AB189,'2'!AB189))","v":":"},{"$f":"+'1'!AC189&'2'!AC189","v":""},{"$f":"IF(COUNT('1'!AD189,'2'!AD189)=0,\":\",SUM('1'!AD189,'2'!AD189))","v":":"},null,{"$f":"IF(COUNT('1'!AF189,'2'!AF189)=0,\":\",SUM('1'!AF189,'2'!AF189))","v":":"},{"$f":"+'1'!AG189&'2'!AG189","v":""},{"$f":"IF(COUNT('1'!AH189,'2'!AH189)=0,\":\",SUM('1'!AH189,'2'!AH189))","v":":"},{"$f":"+'1'!AI189&'2'!AI189","v":""},{"$f":"IF(COUNT('1'!AJ189,'2'!AJ189)=0,\":\",SUM('1'!AJ189,'2'!AJ189))","v":":"},{"$f":"+'1'!AK189&'2'!AK189","v":""}]
["S1","TOTAL","EPS_P11",null,null,null,null,null,2017,{"$f":"IF(COUNT('1'!J190,'2'!J190)=0,\":\",SUM('1'!J190,'2'!J190))","v":":"},{"$f":"+'1'!K190&'2'!K190","v":""},{"$f":"IF(COUNT('1'!L190,'2'!L190)=0,\":\",SUM('1'!L190,'2'!L190))","v":":"},{"$f":"+'1'!M190&'2'!M190","v":""},{"$f":"IF(COUNT('1'!N190,'2'!N190)=0,\":\",SUM('1'!N190,'2'!N190))","v":":"},{"$f":"+'1'!O190&'2'!O190","v":""},{"$f":"IF(COUNT('1'!P190,'2'!P190)=0,\":\",SUM('1'!P190,'2'!P190))","v":":"},{"$f":"+'1'!Q190&'2'!Q190","v":""},{"$f":"IF(COUNT('1'!R190,'2'!R190)=0,\":\",SUM('1'!R190,'2'!R190))","v":":"},{"$f":"+'1'!S190&'2'!S190","v":""},{"$f":"IF(COUNT('1'!T190,'2'!T190)=0,\":\",SUM('1'!T190,'2'!T190))","v":":"},{"$f":"+'1'!U190&'2'!U190","v":""},{"$f":"IF(COUNT('1'!V190,'2'!V190)=0,\":\",SUM('1'!V190,'2'!V190))","v":":"},{"$f":"+'1'!W190&'2'!W190","v":""},{"$f":"IF(COUNT('1'!X190,'2'!X190)=0,\":\",SUM('1'!X190,'2'!X190))","v":":"},{"$f":"+'1'!Y190&'2'!Y190","v":""},{"$f":"IF(COUNT('1'!Z190,'2'!Z190)=0,\":\",SUM('1'!Z190,'2'!Z190))","v":":"},{"$f":"+'1'!AA190&'2'!AA190","v":""},{"$f":"IF(COUNT('1'!AB190,'2'!AB190)=0,\":\",SUM('1'!AB190,'2'!AB190))","v":":"},{"$f":"+'1'!AC190&'2'!AC190","v":""},{"$f":"IF(COUNT('1'!AD190,'2'!AD190)=0,\":\",SUM('1'!AD190,'2'!AD190))","v":":"},null,{"$f":"IF(COUNT('1'!AF190,'2'!AF190)=0,\":\",SUM('1'!AF190,'2'!AF190))","v":":"},{"$f":"+'1'!AG190&'2'!AG190","v":""},{"$f":"IF(COUNT('1'!AH190,'2'!AH190)=0,\":\",SUM('1'!AH190,'2'!AH190))","v":":"},{"$f":"+'1'!AI190&'2'!AI190","v":""},{"$f":"IF(COUNT('1'!AJ190,'2'!AJ190)=0,\":\",SUM('1'!AJ190,'2'!AJ190))","v":":"},{"$f":"+'1'!AK190&'2'!AK190","v":""}]
["S1","TOTAL","EPS_P11",null,null,null,null,null,2018,{"$f":"IF(COUNT('1'!J191,'2'!J191)=0,\":\",SUM('1'!J191,'2'!J191))","v":":"},{"$f":"+'1'!K191&'2'!K191","v":""},{"$f":"IF(COUNT('1'!L191,'2'!L191)=0,\":\",SUM('1'!L191,'2'!L191))","v":":"},{"$f":"+'1'!M191&'2'!M191","v":""},{"$f":"IF(COUNT('1'!N191,'2'!N191)=0,\":\",SUM('1'!N191,'2'!N191))","v":":"},{"$f":"+'1'!O191&'2'!O191","v":""},{"$f":"IF(COUNT('1'!P191,'2'!P191)=0,\":\",SUM('1'!P191,'2'!P191))","v":":"},{"$f":"+'1'!Q191&'2'!Q191","v":""},{"$f":"IF(COUNT('1'!R191,'2'!R191)=0,\":\",SUM('1'!R191,'2'!R191))","v":":"},{"$f":"+'1'!S191&'2'!S191","v":""},{"$f":"IF(COUNT('1'!T191,'2'!T191)=0,\":\",SUM('1'!T191,'2'!T191))","v":":"},{"$f":"+'1'!U191&'2'!U191","v":""},{"$f":"IF(COUNT('1'!V191,'2'!V191)=0,\":\",SUM('1'!V191,'2'!V191))","v":":"},{"$f":"+'1'!W191&'2'!W191","v":""},{"$f":"IF(COUNT('1'!X191,'2'!X191)=0,\":\",SUM('1'!X191,'2'!X191))","v":":"},{"$f":"+'1'!Y191&'2'!Y191","v":""},{"$f":"IF(COUNT('1'!Z191,'2'!Z191)=0,\":\",SUM('1'!Z191,'2'!Z191))","v":":"},{"$f":"+'1'!AA191&'2'!AA191","v":""},{"$f":"IF(COUNT('1'!AB191,'2'!AB191)=0,\":\",SUM('1'!AB191,'2'!AB191))","v":":"},{"$f":"+'1'!AC191&'2'!AC191","v":""},{"$f":"IF(COUNT('1'!AD191,'2'!AD191)=0,\":\",SUM('1'!AD191,'2'!AD191))","v":":"},null,{"$f":"IF(COUNT('1'!AF191,'2'!AF191)=0,\":\",SUM('1'!AF191,'2'!AF191))","v":":"},{"$f":"+'1'!AG191&'2'!AG191","v":""},{"$f":"IF(COUNT('1'!AH191,'2'!AH191)=0,\":\",SUM('1'!AH191,'2'!AH191))","v":":"},{"$f":"+'1'!AI191&'2'!AI191","v":""},{"$f":"IF(COUNT('1'!AJ191,'2'!AJ191)=0,\":\",SUM('1'!AJ191,'2'!AJ191))","v":":"},{"$f":"+'1'!AK191&'2'!AK191","v":""}]
["S1","TOTAL","EPS_P11",null,null,null,null,null,2019,{"$f":"IF(COUNT('1'!J192,'2'!J192)=0,\":\",SUM('1'!J192,'2'!J192))","v":":"},{"$f":"+'1'!K192&'2'!K192","v":""},{"$f":"IF(COUNT('1'!L192,'2'!L192)=0,\":\",SUM('1'!L192,'2'!L192))","v":":"},{"$f":"+'1'!M192&'2'!M192","v":""},{"$f":"IF(COUNT('1'!N192,'2'!N192)=0,\":\",SUM('1'!N192,'2'!N192))","v":":"},{"$f":"+'1'!O192&'2'!O192","v":""},{"$f":"IF(COUNT('1'!P192,'2'!P192)=0,\":\",SUM('1'!P192,'2'!P192))","v":":"},{"$f":"+'1'!Q192&'2'!Q192","v":""},{"$f":"IF(COUNT('1'!R192,'2'!R192)=0,\":\",SUM('1'!R192,'2'!R192))","v":":"},{"$f":"+'1'!S192&'2'!S192","v":""},{"$f":"IF(COUNT('1'!T192,'2'!T192)=0,\":\",SUM('1'!T192,'2'!T192))","v":":"},{"$f":"+'1'!U192&'2'!U192","v":""},{"$f":"IF(COUNT('1'!V192,'2'!V192)=0,\":\",SUM('1'!V192,'2'!V192))","v":":"},{"$f":"+'1'!W192&'2'!W192","v":""},{"$f":"IF(COUNT('1'!X192,'2'!X192)=0,\":\",SUM('1'!X192,'2'!X192))","v":":"},{"$f":"+'1'!Y192&'2'!Y192","v":""},{"$f":"IF(COUNT('1'!Z192,'2'!Z192)=0,\":\",SUM('1'!Z192,'2'!Z192))","v":":"},{"$f":"+'1'!AA192&'2'!AA192","v":""},{"$f":"IF(COUNT('1'!AB192,'2'!AB192)=0,\":\",SUM('1'!AB192,'2'!AB192))","v":":"},{"$f":"+'1'!AC192&'2'!AC192","v":""},{"$f":"IF(COUNT('1'!AD192,'2'!AD192)=0,\":\",SUM('1'!AD192,'2'!AD192))","v":":"},null,{"$f":"IF(COUNT('1'!AF192,'2'!AF192)=0,\":\",SUM('1'!AF192,'2'!AF192))","v":":"},{"$f":"+'1'!AG192&'2'!AG192","v":""},{"$f":"IF(COUNT('1'!AH192,'2'!AH192)=0,\":\",SUM('1'!AH192,'2'!AH192))","v":":"},{"$f":"+'1'!AI192&'2'!AI192","v":""},{"$f":"IF(COUNT('1'!AJ192,'2'!AJ192)=0,\":\",SUM('1'!AJ192,'2'!AJ192))","v":":"},{"$f":"+'1'!AK192&'2'!AK192","v":""}]
["S1","TOTAL","EPS_P11",null,null,null,null,null,2020,{"$f":"IF(COUNT('1'!J193,'2'!J193)=0,\":\",SUM('1'!J193,'2'!J193))","v":":"},{"$f":"+'1'!K193&'2'!K193","v":""},{"$f":"IF(COUNT('1'!L193,'2'!L193)=0,\":\",SUM('1'!L193,'2'!L193))","v":":"},{"$f":"+'1'!M193&'2'!M193","v":""},{"$f":"IF(COUNT('1'!N193,'2'!N193)=0,\":\",SUM('1'!N193,'2'!N193))","v":":"},{"$f":"+'1'!O193&'2'!O193","v":""},{"$f":"IF(COUNT('1'!P193,'2'!P193)=0,\":\",SUM('1'!P193,'2'!P193))","v":":"},{"$f":"+'1'!Q193&'2'!Q193","v":""},{"$f":"IF(COUNT('1'!R193,'2'!R193)=0,\":\",SUM('1'!R193,'2'!R193))","v":":"},{"$f":"+'1'!S193&'2'!S193","v":""},{"$f":"IF(COUNT('1'!T193,'2'!T193)=0,\":\",SUM('1'!T193,'2'!T193))","v":":"},{"$f":"+'1'!U193&'2'!U193","v":""},{"$f":"IF(COUNT('1'!V193,'2'!V193)=0,\":\",SUM('1'!V193,'2'!V193))","v":":"},{"$f":"+'1'!W193&'2'!W193","v":""},{"$f":"IF(COUNT('1'!X193,'2'!X193)=0,\":\",SUM('1'!X193,'2'!X193))","v":":"},{"$f":"+'1'!Y193&'2'!Y193","v":""},{"$f":"IF(COUNT('1'!Z193,'2'!Z193)=0,\":\",SUM('1'!Z193,'2'!Z193))","v":":"},{"$f":"+'1'!AA193&'2'!AA193","v":""},{"$f":"IF(COUNT('1'!AB193,'2'!AB193)=0,\":\",SUM('1'!AB193,'2'!AB193))","v":":"},{"$f":"+'1'!AC193&'2'!AC193","v":""},{"$f":"IF(COUNT('1'!AD193,'2'!AD193)=0,\":\",SUM('1'!AD193,'2'!AD193))","v":":"},null,{"$f":"IF(COUNT('1'!AF193,'2'!AF193)=0,\":\",SUM('1'!AF193,'2'!AF193))","v":":"},{"$f":"+'1'!AG193&'2'!AG193","v":""},{"$f":"IF(COUNT('1'!AH193,'2'!AH193)=0,\":\",SUM('1'!AH193,'2'!AH193))","v":":"},{"$f":"+'1'!AI193&'2'!AI193","v":""},{"$f":"IF(COUNT('1'!AJ193,'2'!AJ193)=0,\":\",SUM('1'!AJ193,'2'!AJ193))","v":":"},{"$f":"+'1'!AK193&'2'!AK193","v":""}]
["S1","TOTAL","EPS_P11",null,null,null,null,null,2021,{"$f":"IF(COUNT('1'!J194,'2'!J194)=0,\":\",SUM('1'!J194,'2'!J194))","v":":"},{"$f":"+'1'!K194&'2'!K194","v":""},{"$f":"IF(COUNT('1'!L194,'2'!L194)=0,\":\",SUM('1'!L194,'2'!L194))","v":":"},{"$f":"+'1'!M194&'2'!M194","v":""},{"$f":"IF(COUNT('1'!N194,'2'!N194)=0,\":\",SUM('1'!N194,'2'!N194))","v":":"},{"$f":"+'1'!O194&'2'!O194","v":""},{"$f":"IF(COUNT('1'!P194,'2'!P194)=0,\":\",SUM('1'!P194,'2'!P194))","v":":"},{"$f":"+'1'!Q194&'2'!Q194","v":""},{"$f":"IF(COUNT('1'!R194,'2'!R194)=0,\":\",SUM('1'!R194,'2'!R194))","v":":"},{"$f":"+'1'!S194&'2'!S194","v":""},{"$f":"IF(COUNT('1'!T194,'2'!T194)=0,\":\",SUM('1'!T194,'2'!T194))","v":":"},{"$f":"+'1'!U194&'2'!U194","v":""},{"$f":"IF(COUNT('1'!V194,'2'!V194)=0,\":\",SUM('1'!V194,'2'!V194))","v":":"},{"$f":"+'1'!W194&'2'!W194","v":""},{"$f":"IF(COUNT('1'!X194,'2'!X194)=0,\":\",SUM('1'!X194,'2'!X194))","v":":"},{"$f":"+'1'!Y194&'2'!Y194","v":""},{"$f":"IF(COUNT('1'!Z194,'2'!Z194)=0,\":\",SUM('1'!Z194,'2'!Z194))","v":":"},{"$f":"+'1'!AA194&'2'!AA194","v":""},{"$f":"IF(COUNT('1'!AB194,'2'!AB194)=0,\":\",SUM('1'!AB194,'2'!AB194))","v":":"},{"$f":"+'1'!AC194&'2'!AC194","v":""},{"$f":"IF(COUNT('1'!AD194,'2'!AD194)=0,\":\",SUM('1'!AD194,'2'!AD194))","v":":"},null,{"$f":"IF(COUNT('1'!AF194,'2'!AF194)=0,\":\",SUM('1'!AF194,'2'!AF194))","v":":"},{"$f":"+'1'!AG194&'2'!AG194","v":""},{"$f":"IF(COUNT('1'!AH194,'2'!AH194)=0,\":\",SUM('1'!AH194,'2'!AH194))","v":":"},{"$f":"+'1'!AI194&'2'!AI194","v":""},{"$f":"IF(COUNT('1'!AJ194,'2'!AJ194)=0,\":\",SUM('1'!AJ194,'2'!AJ194))","v":":"},{"$f":"+'1'!AK194&'2'!AK194","v":""}]
["S1","TOTAL","EPS_P11",null,null,null,null,null,2022,{"$f":"IF(COUNT('1'!J195,'2'!J195)=0,\":\",SUM('1'!J195,'2'!J195))","v":":"},{"$f":"+'1'!K195&'2'!K195","v":""},{"$f":"IF(COUNT('1'!L195,'2'!L195)=0,\":\",SUM('1'!L195,'2'!L195))","v":":"},{"$f":"+'1'!M195&'2'!M195","v":""},{"$f":"IF(COUNT('1'!N195,'2'!N195)=0,\":\",SUM('1'!N195,'2'!N195))","v":":"},{"$f":"+'1'!O195&'2'!O195","v":""},{"$f":"IF(COUNT('1'!P195,'2'!P195)=0,\":\",SUM('1'!P195,'2'!P195))","v":":"},{"$f":"+'1'!Q195&'2'!Q195","v":""},{"$f":"IF(COUNT('1'!R195,'2'!R195)=0,\":\",SUM('1'!R195,'2'!R195))","v":":"},{"$f":"+'1'!S195&'2'!S195","v":""},{"$f":"IF(COUNT('1'!T195,'2'!T195)=0,\":\",SUM('1'!T195,'2'!T195))","v":":"},{"$f":"+'1'!U195&'2'!U195","v":""},{"$f":"IF(COUNT('1'!V195,'2'!V195)=0,\":\",SUM('1'!V195,'2'!V195))","v":":"},{"$f":"+'1'!W195&'2'!W195","v":""},{"$f":"IF(COUNT('1'!X195,'2'!X195)=0,\":\",SUM('1'!X195,'2'!X195))","v":":"},{"$f":"+'1'!Y195&'2'!Y195","v":""},{"$f":"IF(COUNT('1'!Z195,'2'!Z195)=0,\":\",SUM('1'!Z195,'2'!Z195))","v":":"},{"$f":"+'1'!AA195&'2'!AA195","v":""},{"$f":"IF(COUNT('1'!AB195,'2'!AB195)=0,\":\",SUM('1'!AB195,'2'!AB195))","v":":"},{"$f":"+'1'!AC195&'2'!AC195","v":""},{"$f":"IF(COUNT('1'!AD195,'2'!AD195)=0,\":\",SUM('1'!AD195,'2'!AD195))","v":":"},null,{"$f":"IF(COUNT('1'!AF195,'2'!AF195)=0,\":\",SUM('1'!AF195,'2'!AF195))","v":":"},{"$f":"+'1'!AG195&'2'!AG195","v":""},{"$f":"IF(COUNT('1'!AH195,'2'!AH195)=0,\":\",SUM('1'!AH195,'2'!AH195))","v":":"},{"$f":"+'1'!AI195&'2'!AI195","v":""},{"$f":"IF(COUNT('1'!AJ195,'2'!AJ195)=0,\":\",SUM('1'!AJ195,'2'!AJ195))","v":":"},{"$f":"+'1'!AK195&'2'!AK195","v":""}]
["S1","TOTAL","EPS_P11",null,null,null,null,null,2023,{"$f":"IF(COUNT('1'!J196,'2'!J196)=0,\":\",SUM('1'!J196,'2'!J196))","v":":"},{"$f":"+'1'!K196&'2'!K196","v":""},{"$f":"IF(COUNT('1'!L196,'2'!L196)=0,\":\",SUM('1'!L196,'2'!L196))","v":":"},{"$f":"+'1'!M196&'2'!M196","v":""},{"$f":"IF(COUNT('1'!N196,'2'!N196)=0,\":\",SUM('1'!N196,'2'!N196))","v":":"},{"$f":"+'1'!O196&'2'!O196","v":""},{"$f":"IF(COUNT('1'!P196,'2'!P196)=0,\":\",SUM('1'!P196,'2'!P196))","v":":"},{"$f":"+'1'!Q196&'2'!Q196","v":""},{"$f":"IF(COUNT('1'!R196,'2'!R196)=0,\":\",SUM('1'!R196,'2'!R196))","v":":"},{"$f":"+'1'!S196&'2'!S196","v":""},{"$f":"IF(COUNT('1'!T196,'2'!T196)=0,\":\",SUM('1'!T196,'2'!T196))","v":":"},{"$f":"+'1'!U196&'2'!U196","v":""},{"$f":"IF(COUNT('1'!V196,'2'!V196)=0,\":\",SUM('1'!V196,'2'!V196))","v":":"},{"$f":"+'1'!W196&'2'!W196","v":""},{"$f":"IF(COUNT('1'!X196,'2'!X196)=0,\":\",SUM('1'!X196,'2'!X196))","v":":"},{"$f":"+'1'!Y196&'2'!Y196","v":""},{"$f":"IF(COUNT('1'!Z196,'2'!Z196)=0,\":\",SUM('1'!Z196,'2'!Z196))","v":":"},{"$f":"+'1'!AA196&'2'!AA196","v":""},{"$f":"IF(COUNT('1'!AB196,'2'!AB196)=0,\":\",SUM('1'!AB196,'2'!AB196))","v":":"},{"$f":"+'1'!AC196&'2'!AC196","v":""},{"$f":"IF(COUNT('1'!AD196,'2'!AD196)=0,\":\",SUM('1'!AD196,'2'!AD196))","v":":"},null,{"$f":"IF(COUNT('1'!AF196,'2'!AF196)=0,\":\",SUM('1'!AF196,'2'!AF196))","v":":"},{"$f":"+'1'!AG196&'2'!AG196","v":""},{"$f":"IF(COUNT('1'!AH196,'2'!AH196)=0,\":\",SUM('1'!AH196,'2'!AH196))","v":":"},{"$f":"+'1'!AI196&'2'!AI196","v":""},{"$f":"IF(COUNT('1'!AJ196,'2'!AJ196)=0,\":\",SUM('1'!AJ196,'2'!AJ196))","v":":"},{"$f":"+'1'!AK196&'2'!AK196","v":""}]
["S1","TOTAL","EPS_P11",null,null,null,null,null,2024,{"$f":"IF(COUNT('1'!J197,'2'!J197)=0,\":\",SUM('1'!J197,'2'!J197))","v":":"},{"$f":"+'1'!K197&'2'!K197","v":""},{"$f":"IF(COUNT('1'!L197,'2'!L197)=0,\":\",SUM('1'!L197,'2'!L197))","v":":"},{"$f":"+'1'!M197&'2'!M197","v":""},{"$f":"IF(COUNT('1'!N197,'2'!N197)=0,\":\",SUM('1'!N197,'2'!N197))","v":":"},{"$f":"+'1'!O197&'2'!O197","v":""},{"$f":"IF(COUNT('1'!P197,'2'!P197)=0,\":\",SUM('1'!P197,'2'!P197))","v":":"},{"$f":"+'1'!Q197&'2'!Q197","v":""},{"$f":"IF(COUNT('1'!R197,'2'!R197)=0,\":\",SUM('1'!R197,'2'!R197))","v":":"},{"$f":"+'1'!S197&'2'!S197","v":""},{"$f":"IF(COUNT('1'!T197,'2'!T197)=0,\":\",SUM('1'!T197,'2'!T197))","v":":"},{"$f":"+'1'!U197&'2'!U197","v":""},{"$f":"IF(COUNT('1'!V197,'2'!V197)=0,\":\",SUM('1'!V197,'2'!V197))","v":":"},{"$f":"+'1'!W197&'2'!W197","v":""},{"$f":"IF(COUNT('1'!X197,'2'!X197)=0,\":\",SUM('1'!X197,'2'!X197))","v":":"},{"$f":"+'1'!Y197&'2'!Y197","v":""},{"$f":"IF(COUNT('1'!Z197,'2'!Z197)=0,\":\",SUM('1'!Z197,'2'!Z197))","v":":"},{"$f":"+'1'!AA197&'2'!AA197","v":""},{"$f":"IF(COUNT('1'!AB197,'2'!AB197)=0,\":\",SUM('1'!AB197,'2'!AB197))","v":":"},{"$f":"+'1'!AC197&'2'!AC197","v":""},{"$f":"IF(COUNT('1'!AD197,'2'!AD197)=0,\":\",SUM('1'!AD197,'2'!AD197))","v":":"},null,{"$f":"IF(COUNT('1'!AF197,'2'!AF197)=0,\":\",SUM('1'!AF197,'2'!AF197))","v":":"},{"$f":"+'1'!AG197&'2'!AG197","v":""},{"$f":"IF(COUNT('1'!AH197,'2'!AH197)=0,\":\",SUM('1'!AH197,'2'!AH197))","v":":"},{"$f":"+'1'!AI197&'2'!AI197","v":""},{"$f":"IF(COUNT('1'!AJ197,'2'!AJ197)=0,\":\",SUM('1'!AJ197,'2'!AJ197))","v":":"},{"$f":"+'1'!AK197&'2'!AK197","v":""}]
["S1","TOTAL","EPS_P11",null,null,null,null,null,2025,{"$f":"IF(COUNT('1'!J198,'2'!J198)=0,\":\",SUM('1'!J198,'2'!J198))","v":":"},{"$f":"+'1'!K198&'2'!K198","v":""},{"$f":"IF(COUNT('1'!L198,'2'!L198)=0,\":\",SUM('1'!L198,'2'!L198))","v":":"},{"$f":"+'1'!M198&'2'!M198","v":""},{"$f":"IF(COUNT('1'!N198,'2'!N198)=0,\":\",SUM('1'!N198,'2'!N198))","v":":"},{"$f":"+'1'!O198&'2'!O198","v":""},{"$f":"IF(COUNT('1'!P198,'2'!P198)=0,\":\",SUM('1'!P198,'2'!P198))","v":":"},{"$f":"+'1'!Q198&'2'!Q198","v":""},{"$f":"IF(COUNT('1'!R198,'2'!R198)=0,\":\",SUM('1'!R198,'2'!R198))","v":":"},{"$f":"+'1'!S198&'2'!S198","v":""},{"$f":"IF(COUNT('1'!T198,'2'!T198)=0,\":\",SUM('1'!T198,'2'!T198))","v":":"},{"$f":"+'1'!U198&'2'!U198","v":""},{"$f":"IF(COUNT('1'!V198,'2'!V198)=0,\":\",SUM('1'!V198,'2'!V198))","v":":"},{"$f":"+'1'!W198&'2'!W198","v":""},{"$f":"IF(COUNT('1'!X198,'2'!X198)=0,\":\",SUM('1'!X198,'2'!X198))","v":":"},{"$f":"+'1'!Y198&'2'!Y198","v":""},{"$f":"IF(COUNT('1'!Z198,'2'!Z198)=0,\":\",SUM('1'!Z198,'2'!Z198))","v":":"},{"$f":"+'1'!AA198&'2'!AA198","v":""},{"$f":"IF(COUNT('1'!AB198,'2'!AB198)=0,\":\",SUM('1'!AB198,'2'!AB198))","v":":"},{"$f":"+'1'!AC198&'2'!AC198","v":""},{"$f":"IF(COUNT('1'!AD198,'2'!AD198)=0,\":\",SUM('1'!AD198,'2'!AD198))","v":":"},null,{"$f":"IF(COUNT('1'!AF198,'2'!AF198)=0,\":\",SUM('1'!AF198,'2'!AF198))","v":":"},{"$f":"+'1'!AG198&'2'!AG198","v":""},{"$f":"IF(COUNT('1'!AH198,'2'!AH198)=0,\":\",SUM('1'!AH198,'2'!AH198))","v":":"},{"$f":"+'1'!AI198&'2'!AI198","v":""},{"$f":"IF(COUNT('1'!AJ198,'2'!AJ198)=0,\":\",SUM('1'!AJ198,'2'!AJ198))","v":":"},{"$f":"+'1'!AK198&'2'!AK198","v":""}]
["S1","TOTAL","EPS_P11",null,null,null,null,null,2026,{"$f":"IF(COUNT('1'!J199,'2'!J199)=0,\":\",SUM('1'!J199,'2'!J199))","v":":"},{"$f":"+'1'!K199&'2'!K199","v":""},{"$f":"IF(COUNT('1'!L199,'2'!L199)=0,\":\",SUM('1'!L199,'2'!L199))","v":":"},{"$f":"+'1'!M199&'2'!M199","v":""},{"$f":"IF(COUNT('1'!N199,'2'!N199)=0,\":\",SUM('1'!N199,'2'!N199))","v":":"},{"$f":"+'1'!O199&'2'!O199","v":""},{"$f":"IF(COUNT('1'!P199,'2'!P199)=0,\":\",SUM('1'!P199,'2'!P199))","v":":"},{"$f":"+'1'!Q199&'2'!Q199","v":""},{"$f":"IF(COUNT('1'!R199,'2'!R199)=0,\":\",SUM('1'!R199,'2'!R199))","v":":"},{"$f":"+'1'!S199&'2'!S199","v":""},{"$f":"IF(COUNT('1'!T199,'2'!T199)=0,\":\",SUM('1'!T199,'2'!T199))","v":":"},{"$f":"+'1'!U199&'2'!U199","v":""},{"$f":"IF(COUNT('1'!V199,'2'!V199)=0,\":\",SUM('1'!V199,'2'!V199))","v":":"},{"$f":"+'1'!W199&'2'!W199","v":""},{"$f":"IF(COUNT('1'!X199,'2'!X199)=0,\":\",SUM('1'!X199,'2'!X199))","v":":"},{"$f":"+'1'!Y199&'2'!Y199","v":""},{"$f":"IF(COUNT('1'!Z199,'2'!Z199)=0,\":\",SUM('1'!Z199,'2'!Z199))","v":":"},{"$f":"+'1'!AA199&'2'!AA199","v":""},{"$f":"IF(COUNT('1'!AB199,'2'!AB199)=0,\":\",SUM('1'!AB199,'2'!AB199))","v":":"},{"$f":"+'1'!AC199&'2'!AC199","v":""},{"$f":"IF(COUNT('1'!AD199,'2'!AD199)=0,\":\",SUM('1'!AD199,'2'!AD199))","v":":"},null,{"$f":"IF(COUNT('1'!AF199,'2'!AF199)=0,\":\",SUM('1'!AF199,'2'!AF199))","v":":"},{"$f":"+'1'!AG199&'2'!AG199","v":""},{"$f":"IF(COUNT('1'!AH199,'2'!AH199)=0,\":\",SUM('1'!AH199,'2'!AH199))","v":":"},{"$f":"+'1'!AI199&'2'!AI199","v":""},{"$f":"IF(COUNT('1'!AJ199,'2'!AJ199)=0,\":\",SUM('1'!AJ199,'2'!AJ199))","v":":"},{"$f":"+'1'!AK199&'2'!AK199","v":""}]
["S1","TOTAL","EPS_P11",null,null,null,null,null,2027,{"$f":"IF(COUNT('1'!J200,'2'!J200)=0,\":\",SUM('1'!J200,'2'!J200))","v":":"},{"$f":"+'1'!K200&'2'!K200","v":""},{"$f":"IF(COUNT('1'!L200,'2'!L200)=0,\":\",SUM('1'!L200,'2'!L200))","v":":"},{"$f":"+'1'!M200&'2'!M200","v":""},{"$f":"IF(COUNT('1'!N200,'2'!N200)=0,\":\",SUM('1'!N200,'2'!N200))","v":":"},{"$f":"+'1'!O200&'2'!O200","v":""},{"$f":"IF(COUNT('1'!P200,'2'!P200)=0,\":\",SUM('1'!P200,'2'!P200))","v":":"},{"$f":"+'1'!Q200&'2'!Q200","v":""},{"$f":"IF(COUNT('1'!R200,'2'!R200)=0,\":\",SUM('1'!R200,'2'!R200))","v":":"},{"$f":"+'1'!S200&'2'!S200","v":""},{"$f":"IF(COUNT('1'!T200,'2'!T200)=0,\":\",SUM('1'!T200,'2'!T200))","v":":"},{"$f":"+'1'!U200&'2'!U200","v":""},{"$f":"IF(COUNT('1'!V200,'2'!V200)=0,\":\",SUM('1'!V200,'2'!V200))","v":":"},{"$f":"+'1'!W200&'2'!W200","v":""},{"$f":"IF(COUNT('1'!X200,'2'!X200)=0,\":\",SUM('1'!X200,'2'!X200))","v":":"},{"$f":"+'1'!Y200&'2'!Y200","v":""},{"$f":"IF(COUNT('1'!Z200,'2'!Z200)=0,\":\",SUM('1'!Z200,'2'!Z200))","v":":"},{"$f":"+'1'!AA200&'2'!AA200","v":""},{"$f":"IF(COUNT('1'!AB200,'2'!AB200)=0,\":\",SUM('1'!AB200,'2'!AB200))","v":":"},{"$f":"+'1'!AC200&'2'!AC200","v":""},{"$f":"IF(COUNT('1'!AD200,'2'!AD200)=0,\":\",SUM('1'!AD200,'2'!AD200))","v":":"},null,{"$f":"IF(COUNT('1'!AF200,'2'!AF200)=0,\":\",SUM('1'!AF200,'2'!AF200))","v":":"},{"$f":"+'1'!AG200&'2'!AG200","v":""},{"$f":"IF(COUNT('1'!AH200,'2'!AH200)=0,\":\",SUM('1'!AH200,'2'!AH200))","v":":"},{"$f":"+'1'!AI200&'2'!AI200","v":""},{"$f":"IF(COUNT('1'!AJ200,'2'!AJ200)=0,\":\",SUM('1'!AJ200,'2'!AJ200))","v":":"},{"$f":"+'1'!AK200&'2'!AK200","v":""}]
["S1","TOTAL","EPS_P11",null,null,null,null,null,2028,{"$f":"IF(COUNT('1'!J201,'2'!J201)=0,\":\",SUM('1'!J201,'2'!J201))","v":":"},{"$f":"+'1'!K201&'2'!K201","v":""},{"$f":"IF(COUNT('1'!L201,'2'!L201)=0,\":\",SUM('1'!L201,'2'!L201))","v":":"},{"$f":"+'1'!M201&'2'!M201","v":""},{"$f":"IF(COUNT('1'!N201,'2'!N201)=0,\":\",SUM('1'!N201,'2'!N201))","v":":"},{"$f":"+'1'!O201&'2'!O201","v":""},{"$f":"IF(COUNT('1'!P201,'2'!P201)=0,\":\",SUM('1'!P201,'2'!P201))","v":":"},{"$f":"+'1'!Q201&'2'!Q201","v":""},{"$f":"IF(COUNT('1'!R201,'2'!R201)=0,\":\",SUM('1'!R201,'2'!R201))","v":":"},{"$f":"+'1'!S201&'2'!S201","v":""},{"$f":"IF(COUNT('1'!T201,'2'!T201)=0,\":\",SUM('1'!T201,'2'!T201))","v":":"},{"$f":"+'1'!U201&'2'!U201","v":""},{"$f":"IF(COUNT('1'!V201,'2'!V201)=0,\":\",SUM('1'!V201,'2'!V201))","v":":"},{"$f":"+'1'!W201&'2'!W201","v":""},{"$f":"IF(COUNT('1'!X201,'2'!X201)=0,\":\",SUM('1'!X201,'2'!X201))","v":":"},{"$f":"+'1'!Y201&'2'!Y201","v":""},{"$f":"IF(COUNT('1'!Z201,'2'!Z201)=0,\":\",SUM('1'!Z201,'2'!Z201))","v":":"},{"$f":"+'1'!AA201&'2'!AA201","v":""},{"$f":"IF(COUNT('1'!AB201,'2'!AB201)=0,\":\",SUM('1'!AB201,'2'!AB201))","v":":"},{"$f":"+'1'!AC201&'2'!AC201","v":""},{"$f":"IF(COUNT('1'!AD201,'2'!AD201)=0,\":\",SUM('1'!AD201,'2'!AD201))","v":":"},null,{"$f":"IF(COUNT('1'!AF201,'2'!AF201)=0,\":\",SUM('1'!AF201,'2'!AF201))","v":":"},{"$f":"+'1'!AG201&'2'!AG201","v":""},{"$f":"IF(COUNT('1'!AH201,'2'!AH201)=0,\":\",SUM('1'!AH201,'2'!AH201))","v":":"},{"$f":"+'1'!AI201&'2'!AI201","v":""},{"$f":"IF(COUNT('1'!AJ201,'2'!AJ201)=0,\":\",SUM('1'!AJ201,'2'!AJ201))","v":":"},{"$f":"+'1'!AK201&'2'!AK201","v":""}]
["S1","TOTAL","EPS_P11",null,null,null,null,null,2029,{"$f":"IF(COUNT('1'!J202,'2'!J202)=0,\":\",SUM('1'!J202,'2'!J202))","v":":"},{"$f":"+'1'!K202&'2'!K202","v":""},{"$f":"IF(COUNT('1'!L202,'2'!L202)=0,\":\",SUM('1'!L202,'2'!L202))","v":":"},{"$f":"+'1'!M202&'2'!M202","v":""},{"$f":"IF(COUNT('1'!N202,'2'!N202)=0,\":\",SUM('1'!N202,'2'!N202))","v":":"},{"$f":"+'1'!O202&'2'!O202","v":""},{"$f":"IF(COUNT('1'!P202,'2'!P202)=0,\":\",SUM('1'!P202,'2'!P202))","v":":"},{"$f":"+'1'!Q202&'2'!Q202","v":""},{"$f":"IF(COUNT('1'!R202,'2'!R202)=0,\":\",SUM('1'!R202,'2'!R202))","v":":"},{"$f":"+'1'!S202&'2'!S202","v":""},{"$f":"IF(COUNT('1'!T202,'2'!T202)=0,\":\",SUM('1'!T202,'2'!T202))","v":":"},{"$f":"+'1'!U202&'2'!U202","v":""},{"$f":"IF(COUNT('1'!V202,'2'!V202)=0,\":\",SUM('1'!V202,'2'!V202))","v":":"},{"$f":"+'1'!W202&'2'!W202","v":""},{"$f":"IF(COUNT('1'!X202,'2'!X202)=0,\":\",SUM('1'!X202,'2'!X202))","v":":"},{"$f":"+'1'!Y202&'2'!Y202","v":""},{"$f":"IF(COUNT('1'!Z202,'2'!Z202)=0,\":\",SUM('1'!Z202,'2'!Z202))","v":":"},{"$f":"+'1'!AA202&'2'!AA202","v":""},{"$f":"IF(COUNT('1'!AB202,'2'!AB202)=0,\":\",SUM('1'!AB202,'2'!AB202))","v":":"},{"$f":"+'1'!AC202&'2'!AC202","v":""},{"$f":"IF(COUNT('1'!X202,'1'!Z202,'1'!AB202,'1'!AD202,'2'!X202,'2'!Z202,'2'!AB202)=0,\":\",SUM('1'!X202,'1'!Z202,'1'!AB202,'1'!AD202,'2'!X202,'2'!Z202,'2'!AB202))","v":":"},null,{"$f":"IF(COUNT('1'!AF202,'2'!AF202)=0,\":\",SUM('1'!AF202,'2'!AF202))","v":":"},{"$f":"+'1'!AG202&'2'!AG202","v":""},{"$f":"IF(COUNT('1'!AH202,'2'!AH202)=0,\":\",SUM('1'!AH202,'2'!AH202))","v":":"},{"$f":"+'1'!AI202&'2'!AI202","v":""},{"$f":"IF(COUNT('1'!AJ202,'2'!AJ202)=0,\":\",SUM('1'!AJ202,'2'!AJ202))","v":":"},{"$f":"+'1'!AK202&'2'!AK202","v":""}]
["S1","TOTAL","EPS_P11",null,null,null,null,null,2030,{"$f":"IF(COUNT('1'!J203,'2'!J203)=0,\":\",SUM('1'!J203,'2'!J203))","v":":"},{"$f":"+'1'!K203&'2'!K203","v":""},{"$f":"IF(COUNT('1'!L203,'2'!L203)=0,\":\",SUM('1'!L203,'2'!L203))","v":":"},{"$f":"+'1'!M203&'2'!M203","v":""},{"$f":"IF(COUNT('1'!N203,'2'!N203)=0,\":\",SUM('1'!N203,'2'!N203))","v":":"},{"$f":"+'1'!O203&'2'!O203","v":""},{"$f":"IF(COUNT('1'!P203,'2'!P203)=0,\":\",SUM('1'!P203,'2'!P203))","v":":"},{"$f":"+'1'!Q203&'2'!Q203","v":""},{"$f":"IF(COUNT('1'!R203,'2'!R203)=0,\":\",SUM('1'!R203,'2'!R203))","v":":"},{"$f":"+'1'!S203&'2'!S203","v":""},{"$f":"IF(COUNT('1'!T203,'2'!T203)=0,\":\",SUM('1'!T203,'2'!T203))","v":":"},{"$f":"+'1'!U203&'2'!U203","v":""},{"$f":"IF(COUNT('1'!V203,'2'!V203)=0,\":\",SUM('1'!V203,'2'!V203))","v":":"},{"$f":"+'1'!W203&'2'!W203","v":""},{"$f":"IF(COUNT('1'!X203,'2'!X203)=0,\":\",SUM('1'!X203,'2'!X203))","v":":"},{"$f":"+'1'!Y203&'2'!Y203","v":""},{"$f":"IF(COUNT('1'!Z203,'2'!Z203)=0,\":\",SUM('1'!Z203,'2'!Z203))","v":":"},{"$f":"+'1'!AA203&'2'!AA203","v":""},{"$f":"IF(COUNT('1'!AB203,'2'!AB203)=0,\":\",SUM('1'!AB203,'2'!AB203))","v":":"},{"$f":"+'1'!AC203&'2'!AC203","v":""},{"$f":"IF(COUNT('1'!X203,'1'!Z203,'1'!AB203,'1'!AD203,'2'!X203,'2'!Z203,'2'!AB203)=0,\":\",SUM('1'!X203,'1'!Z203,'1'!AB203,'1'!AD203,'2'!X203,'2'!Z203,'2'!AB203))","v":":"},null,{"$f":"IF(COUNT('1'!AF203,'2'!AF203)=0,\":\",SUM('1'!AF203,'2'!AF203))","v":":"},{"$f":"+'1'!AG203&'2'!AG203","v":""},{"$f":"IF(COUNT('1'!AH203,'2'!AH203)=0,\":\",SUM('1'!AH203,'2'!AH203))","v":":"},{"$f":"+'1'!AI203&'2'!AI203","v":""},{"$f":"IF(COUNT('1'!AJ203,'2'!AJ203)=0,\":\",SUM('1'!AJ203,'2'!AJ203))","v":":"},{"$f":"+'1'!AK203&'2'!AK203","v":""}]
["S1","TOTAL","EPS_P11",null,null,null,null,null,2031,{"$f":"IF(COUNT('1'!J204,'2'!J204)=0,\":\",SUM('1'!J204,'2'!J204))","v":":"},{"$f":"+'1'!K204&'2'!K204","v":""},{"$f":"IF(COUNT('1'!L204,'2'!L204)=0,\":\",SUM('1'!L204,'2'!L204))","v":":"},{"$f":"+'1'!M204&'2'!M204","v":""},{"$f":"IF(COUNT('1'!N204,'2'!N204)=0,\":\",SUM('1'!N204,'2'!N204))","v":":"},{"$f":"+'1'!O204&'2'!O204","v":""},{"$f":"IF(COUNT('1'!P204,'2'!P204)=0,\":\",SUM('1'!P204,'2'!P204))","v":":"},{"$f":"+'1'!Q204&'2'!Q204","v":""},{"$f":"IF(COUNT('1'!R204,'2'!R204)=0,\":\",SUM('1'!R204,'2'!R204))","v":":"},{"$f":"+'1'!S204&'2'!S204","v":""},{"$f":"IF(COUNT('1'!T204,'2'!T204)=0,\":\",SUM('1'!T204,'2'!T204))","v":":"},{"$f":"+'1'!U204&'2'!U204","v":""},{"$f":"IF(COUNT('1'!V204,'2'!V204)=0,\":\",SUM('1'!V204,'2'!V204))","v":":"},{"$f":"+'1'!W204&'2'!W204","v":""},{"$f":"IF(COUNT('1'!X204,'2'!X204)=0,\":\",SUM('1'!X204,'2'!X204))","v":":"},{"$f":"+'1'!Y204&'2'!Y204","v":""},{"$f":"IF(COUNT('1'!Z204,'2'!Z204)=0,\":\",SUM('1'!Z204,'2'!Z204))","v":":"},{"$f":"+'1'!AA204&'2'!AA204","v":""},{"$f":"IF(COUNT('1'!AB204,'2'!AB204)=0,\":\",SUM('1'!AB204,'2'!AB204))","v":":"},{"$f":"+'1'!AC204&'2'!AC204","v":""},{"$f":"IF(COUNT('1'!X204,'1'!Z204,'1'!AB204,'1'!AD204,'2'!X204,'2'!Z204,'2'!AB204)=0,\":\",SUM('1'!X204,'1'!Z204,'1'!AB204,'1'!AD204,'2'!X204,'2'!Z204,'2'!AB204))","v":":"},null,{"$f":"IF(COUNT('1'!AF204,'2'!AF204)=0,\":\",SUM('1'!AF204,'2'!AF204))","v":":"},{"$f":"+'1'!AG204&'2'!AG204","v":""},{"$f":"IF(COUNT('1'!AH204,'2'!AH204)=0,\":\",SUM('1'!AH204,'2'!AH204))","v":":"},{"$f":"+'1'!AI204&'2'!AI204","v":""},{"$f":"IF(COUNT('1'!AJ204,'2'!AJ204)=0,\":\",SUM('1'!AJ204,'2'!AJ204))","v":":"},{"$f":"+'1'!AK204&'2'!AK204","v":""}]
["S1","TOTAL","EPS_P1_ANC",null,"( P1_ANC.4 ) Ancillary EP output / RM products (= P1_ANC.3)",null,null,null,2014,{"$f":"IF(COUNT('3'!J133)=0,\":\",SUM('3'!J133))","v":":"},{"$f":"+IF('3'!K133<>\"\",+'3'!K133,\"\")","v":""},{"$f":"IF(COUNT('3'!L133)=0,\":\",SUM('3'!L133))","v":":"},{"$f":"+IF('3'!M133<>\"\",+'3'!M133,\"\")","v":""},{"$f":"IF(COUNT('3'!N133)=0,\":\",SUM('3'!N133))","v":":"},{"$f":"+IF('3'!O133<>\"\",+'3'!O133,\"\")","v":""},{"$f":"IF(COUNT('3'!P133)=0,\":\",SUM('3'!P133))","v":":"},{"$f":"+IF('3'!Q133<>\"\",+'3'!Q133,\"\")","v":""},{"$f":"IF(COUNT('3'!R133)=0,\":\",SUM('3'!R133))","v":":"},{"$f":"+IF('3'!S133<>\"\",+'3'!S133,\"\")","v":""},{"$f":"IF(COUNT('3'!T133)=0,\":\",SUM('3'!T133))","v":":"},{"$f":"+IF('3'!U133<>\"\",+'3'!U133,\"\")","v":""},{"$f":"IF(COUNT('3'!V133)=0,\":\",SUM('3'!V133))","v":":"},{"$f":"+IF('3'!W133<>\"\",+'3'!W133,\"\")","v":""},{"$f":"IF(COUNT('3'!X133)=0,\":\",SUM('3'!X133))","v":":"},{"$f":"+IF('3'!Y133<>\"\",+'3'!Y133,\"\")","v":""},{"$f":"IF(COUNT('3'!Z133)=0,\":\",SUM('3'!Z133))","v":":"},{"$f":"+IF('3'!AA133<>\"\",+'3'!AA133,\"\")","v":""},{"$f":"IF(COUNT('3'!AB133)=0,\":\",SUM('3'!AB133))","v":":"},{"$f":"+IF('3'!AC133<>\"\",+'3'!AC133,\"\")","v":""},{"$f":"IF(COUNT('3'!AD133)=0,\":\",SUM('3'!AD133))","v":":"},null,{"$f":"IF(COUNT('3'!AF133)=0,\":\",SUM('3'!AF133))","v":":"},{"$f":"+IF('3'!AG133<>\"\",+'3'!AG133,\"\")","v":""},null,null,":"]
["S1","TOTAL","EPS_P1_ANC",null,null,null,null,null,2015,{"$f":"IF(COUNT('3'!J134)=0,\":\",SUM('3'!J134))","v":":"},{"$f":"+IF('3'!K134<>\"\",+'3'!K134,\"\")","v":""},{"$f":"IF(COUNT('3'!L134)=0,\":\",SUM('3'!L134))","v":":"},{"$f":"+IF('3'!M134<>\"\",+'3'!M134,\"\")","v":""},{"$f":"IF(COUNT('3'!N134)=0,\":\",SUM('3'!N134))","v":":"},{"$f":"+IF('3'!O134<>\"\",+'3'!O134,\"\")","v":""},{"$f":"IF(COUNT('3'!P134)=0,\":\",SUM('3'!P134))","v":":"},{"$f":"+IF('3'!Q134<>\"\",+'3'!Q134,\"\")","v":""},{"$f":"IF(COUNT('3'!R134)=0,\":\",SUM('3'!R134))","v":":"},{"$f":"+IF('3'!S134<>\"\",+'3'!S134,\"\")","v":""},{"$f":"IF(COUNT('3'!T134)=0,\":\",SUM('3'!T134))","v":":"},{"$f":"+IF('3'!U134<>\"\",+'3'!U134,\"\")","v":""},{"$f":"IF(COUNT('3'!V134)=0,\":\",SUM('3'!V134))","v":":"},{"$f":"+IF('3'!W134<>\"\",+'3'!W134,\"\")","v":""},{"$f":"IF(COUNT('3'!X134)=0,\":\",SUM('3'!X134))","v":":"},{"$f":"+IF('3'!Y134<>\"\",+'3'!Y134,\"\")","v":""},{"$f":"IF(COUNT('3'!Z134)=0,\":\",SUM('3'!Z134))","v":":"},{"$f":"+IF('3'!AA134<>\"\",+'3'!AA134,\"\")","v":""},{"$f":"IF(COUNT('3'!AB134)=0,\":\",SUM('3'!AB134))","v":":"},{"$f":"+IF('3'!AC134<>\"\",+'3'!AC134,\"\")","v":""},{"$f":"IF(COUNT('3'!AD134)=0,\":\",SUM('3'!AD134))","v":":"},null,{"$f":"IF(COUNT('3'!AF134)=0,\":\",SUM('3'!AF134))","v":":"},{"$f":"+IF('3'!AG134<>\"\",+'3'!AG134,\"\")","v":""},":",null,":"]
["S1","TOTAL","EPS_P1_ANC",null,null,null,null,null,2016,{"$f":"IF(COUNT('3'!J135)=0,\":\",SUM('3'!J135))","v":":"},{"$f":"+IF('3'!K135<>\"\",+'3'!K135,\"\")","v":""},{"$f":"IF(COUNT('3'!L135)=0,\":\",SUM('3'!L135))","v":":"},{"$f":"+IF('3'!M135<>\"\",+'3'!M135,\"\")","v":""},{"$f":"IF(COUNT('3'!N135)=0,\":\",SUM('3'!N135))","v":":"},{"$f":"+IF('3'!O135<>\"\",+'3'!O135,\"\")","v":""},{"$f":"IF(COUNT('3'!P135)=0,\":\",SUM('3'!P135))","v":":"},{"$f":"+IF('3'!Q135<>\"\",+'3'!Q135,\"\")","v":""},{"$f":"IF(COUNT('3'!R135)=0,\":\",SUM('3'!R135))","v":":"},{"$f":"+IF('3'!S135<>\"\",+'3'!S135,\"\")","v":""},{"$f":"IF(COUNT('3'!T135)=0,\":\",SUM('3'!T135))","v":":"},{"$f":"+IF('3'!U135<>\"\",+'3'!U135,\"\")","v":""},{"$f":"IF(COUNT('3'!V135)=0,\":\",SUM('3'!V135))","v":":"},{"$f":"+IF('3'!W135<>\"\",+'3'!W135,\"\")","v":""},{"$f":"IF(COUNT('3'!X135)=0,\":\",SUM('3'!X135))","v":":"},{"$f":"+IF('3'!Y135<>\"\",+'3'!Y135,\"\")","v":""},{"$f":"IF(COUNT('3'!Z135)=0,\":\",SUM('3'!Z135))","v":":"},{"$f":"+IF('3'!AA135<>\"\",+'3'!AA135,\"\")","v":""},{"$f":"IF(COUNT('3'!AB135)=0,\":\",SUM('3'!AB135))","v":":"},{"$f":"+IF('3'!AC135<>\"\",+'3'!AC135,\"\")","v":""},{"$f":"IF(COUNT('3'!AD135)=0,\":\",SUM('3'!AD135))","v":":"},null,{"$f":"IF(COUNT('3'!AF135)=0,\":\",SUM('3'!AF135))","v":":"},{"$f":"+IF('3'!AG135<>\"\",+'3'!AG135,\"\")","v":""},":",null,":"]
["S1","TOTAL","EPS_P1_ANC",null,null,null,null,null,2017,{"$f":"IF(COUNT('3'!J136)=0,\":\",SUM('3'!J136))","v":":"},{"$f":"+IF('3'!K136<>\"\",+'3'!K136,\"\")","v":""},{"$f":"IF(COUNT('3'!L136)=0,\":\",SUM('3'!L136))","v":":"},{"$f":"+IF('3'!M136<>\"\",+'3'!M136,\"\")","v":""},{"$f":"IF(COUNT('3'!N136)=0,\":\",SUM('3'!N136))","v":":"},{"$f":"+IF('3'!O136<>\"\",+'3'!O136,\"\")","v":""},{"$f":"IF(COUNT('3'!P136)=0,\":\",SUM('3'!P136))","v":":"},{"$f":"+IF('3'!Q136<>\"\",+'3'!Q136,\"\")","v":""},{"$f":"IF(COUNT('3'!R136)=0,\":\",SUM('3'!R136))","v":":"},{"$f":"+IF('3'!S136<>\"\",+'3'!S136,\"\")","v":""},{"$f":"IF(COUNT('3'!T136)=0,\":\",SUM('3'!T136))","v":":"},{"$f":"+IF('3'!U136<>\"\",+'3'!U136,\"\")","v":""},{"$f":"IF(COUNT('3'!V136)=0,\":\",SUM('3'!V136))","v":":"},{"$f":"+IF('3'!W136<>\"\",+'3'!W136,\"\")","v":""},{"$f":"IF(COUNT('3'!X136)=0,\":\",SUM('3'!X136))","v":":"},{"$f":"+IF('3'!Y136<>\"\",+'3'!Y136,\"\")","v":""},{"$f":"IF(COUNT('3'!Z136)=0,\":\",SUM('3'!Z136))","v":":"},{"$f":"+IF('3'!AA136<>\"\",+'3'!AA136,\"\")","v":""},{"$f":"IF(COUNT('3'!AB136)=0,\":\",SUM('3'!AB136))","v":":"},{"$f":"+IF('3'!AC136<>\"\",+'3'!AC136,\"\")","v":""},{"$f":"IF(COUNT('3'!AD136)=0,\":\",SUM('3'!AD136))","v":":"},null,{"$f":"IF(COUNT('3'!AF136)=0,\":\",SUM('3'!AF136))","v":":"},{"$f":"+IF('3'!AG136<>\"\",+'3'!AG136,\"\")","v":""},":",null,":"]
["S1","TOTAL","EPS_P1_ANC",null,null,null,null,null,2018,{"$f":"IF(COUNT('3'!J137)=0,\":\",SUM('3'!J137))","v":":"},{"$f":"+IF('3'!K137<>\"\",+'3'!K137,\"\")","v":""},{"$f":"IF(COUNT('3'!L137)=0,\":\",SUM('3'!L137))","v":":"},{"$f":"+IF('3'!M137<>\"\",+'3'!M137,\"\")","v":""},{"$f":"IF(COUNT('3'!N137)=0,\":\",SUM('3'!N137))","v":":"},{"$f":"+IF('3'!O137<>\"\",+'3'!O137,\"\")","v":""},{"$f":"IF(COUNT('3'!P137)=0,\":\",SUM('3'!P137))","v":":"},{"$f":"+IF('3'!Q137<>\"\",+'3'!Q137,\"\")","v":""},{"$f":"IF(COUNT('3'!R137)=0,\":\",SUM('3'!R137))","v":":"},{"$f":"+IF('3'!S137<>\"\",+'3'!S137,\"\")","v":""},{"$f":"IF(COUNT('3'!T137)=0,\":\",SUM('3'!T137))","v":":"},{"$f":"+IF('3'!U137<>\"\",+'3'!U137,\"\")","v":""},{"$f":"IF(COUNT('3'!V137)=0,\":\",SUM('3'!V137))","v":":"},{"$f":"+IF('3'!W137<>\"\",+'3'!W137,\"\")","v":""},{"$f":"IF(COUNT('3'!X137)=0,\":\",SUM('3'!X137))","v":":"},{"$f":"+IF('3'!Y137<>\"\",+'3'!Y137,\"\")","v":""},{"$f":"IF(COUNT('3'!Z137)=0,\":\",SUM('3'!Z137))","v":":"},{"$f":"+IF('3'!AA137<>\"\",+'3'!AA137,\"\")","v":""},{"$f":"IF(COUNT('3'!AB137)=0,\":\",SUM('3'!AB137))","v":":"},{"$f":"+IF('3'!AC137<>\"\",+'3'!AC137,\"\")","v":""},{"$f":"IF(COUNT('3'!AD137)=0,\":\",SUM('3'!AD137))","v":":"},null,{"$f":"IF(COUNT('3'!AF137)=0,\":\",SUM('3'!AF137))","v":":"},{"$f":"+IF('3'!AG137<>\"\",+'3'!AG137,\"\")","v":""},":",null,":"]
["S1","TOTAL","EPS_P1_ANC",null,null,null,null,null,2019,{"$f":"IF(COUNT('3'!J138)=0,\":\",SUM('3'!J138))","v":":"},{"$f":"+IF('3'!K138<>\"\",+'3'!K138,\"\")","v":""},{"$f":"IF(COUNT('3'!L138)=0,\":\",SUM('3'!L138))","v":":"},{"$f":"+IF('3'!M138<>\"\",+'3'!M138,\"\")","v":""},{"$f":"IF(COUNT('3'!N138)=0,\":\",SUM('3'!N138))","v":":"},{"$f":"+IF('3'!O138<>\"\",+'3'!O138,\"\")","v":""},{"$f":"IF(COUNT('3'!P138)=0,\":\",SUM('3'!P138))","v":":"},{"$f":"+IF('3'!Q138<>\"\",+'3'!Q138,\"\")","v":""},{"$f":"IF(COUNT('3'!R138)=0,\":\",SUM('3'!R138))","v":":"},{"$f":"+IF('3'!S138<>\"\",+'3'!S138,\"\")","v":""},{"$f":"IF(COUNT('3'!T138)=0,\":\",SUM('3'!T138))","v":":"},{"$f":"+IF('3'!U138<>\"\",+'3'!U138,\"\")","v":""},{"$f":"IF(COUNT('3'!V138)=0,\":\",SUM('3'!V138))","v":":"},{"$f":"+IF('3'!W138<>\"\",+'3'!W138,\"\")","v":""},{"$f":"IF(COUNT('3'!X138)=0,\":\",SUM('3'!X138))","v":":"},{"$f":"+IF('3'!Y138<>\"\",+'3'!Y138,\"\")","v":""},{"$f":"IF(COUNT('3'!Z138)=0,\":\",SUM('3'!Z138))","v":":"},{"$f":"+IF('3'!AA138<>\"\",+'3'!AA138,\"\")","v":""},{"$f":"IF(COUNT('3'!AB138)=0,\":\",SUM('3'!AB138))","v":":"},{"$f":"+IF('3'!AC138<>\"\",+'3'!AC138,\"\")","v":""},{"$f":"IF(COUNT('3'!AD138)=0,\":\",SUM('3'!AD138))","v":":"},null,{"$f":"IF(COUNT('3'!AF138)=0,\":\",SUM('3'!AF138))","v":":"},{"$f":"+IF('3'!AG138<>\"\",+'3'!AG138,\"\")","v":""},":",null,":"]
["S1","TOTAL","EPS_P1_ANC",null,null,null,null,null,2020,{"$f":"IF(COUNT('3'!J139)=0,\":\",SUM('3'!J139))","v":":"},{"$f":"+IF('3'!K139<>\"\",+'3'!K139,\"\")","v":""},{"$f":"IF(COUNT('3'!L139)=0,\":\",SUM('3'!L139))","v":":"},{"$f":"+IF('3'!M139<>\"\",+'3'!M139,\"\")","v":""},{"$f":"IF(COUNT('3'!N139)=0,\":\",SUM('3'!N139))","v":":"},{"$f":"+IF('3'!O139<>\"\",+'3'!O139,\"\")","v":""},{"$f":"IF(COUNT('3'!P139)=0,\":\",SUM('3'!P139))","v":":"},{"$f":"+IF('3'!Q139<>\"\",+'3'!Q139,\"\")","v":""},{"$f":"IF(COUNT('3'!R139)=0,\":\",SUM('3'!R139))","v":":"},{"$f":"+IF('3'!S139<>\"\",+'3'!S139,\"\")","v":""},{"$f":"IF(COUNT('3'!T139)=0,\":\",SUM('3'!T139))","v":":"},{"$f":"+IF('3'!U139<>\"\",+'3'!U139,\"\")","v":""},{"$f":"IF(COUNT('3'!V139)=0,\":\",SUM('3'!V139))","v":":"},{"$f":"+IF('3'!W139<>\"\",+'3'!W139,\"\")","v":""},{"$f":"IF(COUNT('3'!X139)=0,\":\",SUM('3'!X139))","v":":"},{"$f":"+IF('3'!Y139<>\"\",+'3'!Y139,\"\")","v":""},{"$f":"IF(COUNT('3'!Z139)=0,\":\",SUM('3'!Z139))","v":":"},{"$f":"+IF('3'!AA139<>\"\",+'3'!AA139,\"\")","v":""},{"$f":"IF(COUNT('3'!AB139)=0,\":\",SUM('3'!AB139))","v":":"},{"$f":"+IF('3'!AC139<>\"\",+'3'!AC139,\"\")","v":""},{"$f":"IF(COUNT('3'!AD139)=0,\":\",SUM('3'!AD139))","v":":"},null,{"$f":"IF(COUNT('3'!AF139)=0,\":\",SUM('3'!AF139))","v":":"},{"$f":"+IF('3'!AG139<>\"\",+'3'!AG139,\"\")","v":""},":",null,":"]
["S1","TOTAL","EPS_P1_ANC",null,null,null,null,null,2021,{"$f":"IF(COUNT('3'!J140)=0,\":\",SUM('3'!J140))","v":":"},{"$f":"+IF('3'!K140<>\"\",+'3'!K140,\"\")","v":""},{"$f":"IF(COUNT('3'!L140)=0,\":\",SUM('3'!L140))","v":":"},{"$f":"+IF('3'!M140<>\"\",+'3'!M140,\"\")","v":""},{"$f":"IF(COUNT('3'!N140)=0,\":\",SUM('3'!N140))","v":":"},{"$f":"+IF('3'!O140<>\"\",+'3'!O140,\"\")","v":""},{"$f":"IF(COUNT('3'!P140)=0,\":\",SUM('3'!P140))","v":":"},{"$f":"+IF('3'!Q140<>\"\",+'3'!Q140,\"\")","v":""},{"$f":"IF(COUNT('3'!R140)=0,\":\",SUM('3'!R140))","v":":"},{"$f":"+IF('3'!S140<>\"\",+'3'!S140,\"\")","v":""},{"$f":"IF(COUNT('3'!T140)=0,\":\",SUM('3'!T140))","v":":"},{"$f":"+IF('3'!U140<>\"\",+'3'!U140,\"\")","v":""},{"$f":"IF(COUNT('3'!V140)=0,\":\",SUM('3'!V140))","v":":"},{"$f":"+IF('3'!W140<>\"\",+'3'!W140,\"\")","v":""},{"$f":"IF(COUNT('3'!X140)=0,\":\",SUM('3'!X140))","v":":"},{"$f":"+IF('3'!Y140<>\"\",+'3'!Y140,\"\")","v":""},{"$f":"IF(COUNT('3'!Z140)=0,\":\",SUM('3'!Z140))","v":":"},{"$f":"+IF('3'!AA140<>\"\",+'3'!AA140,\"\")","v":""},{"$f":"IF(COUNT('3'!AB140)=0,\":\",SUM('3'!AB140))","v":":"},{"$f":"+IF('3'!AC140<>\"\",+'3'!AC140,\"\")","v":""},{"$f":"IF(COUNT('3'!AD140)=0,\":\",SUM('3'!AD140))","v":":"},null,{"$f":"IF(COUNT('3'!AF140)=0,\":\",SUM('3'!AF140))","v":":"},{"$f":"+IF('3'!AG140<>\"\",+'3'!AG140,\"\")","v":""},":",null,":"]
["S1","TOTAL","EPS_P1_ANC",null,null,null,null,null,2022,{"$f":"IF(COUNT('3'!J141)=0,\":\",SUM('3'!J141))","v":":"},{"$f":"+IF('3'!K141<>\"\",+'3'!K141,\"\")","v":""},{"$f":"IF(COUNT('3'!L141)=0,\":\",SUM('3'!L141))","v":":"},{"$f":"+IF('3'!M141<>\"\",+'3'!M141,\"\")","v":""},{"$f":"IF(COUNT('3'!N141)=0,\":\",SUM('3'!N141))","v":":"},{"$f":"+IF('3'!O141<>\"\",+'3'!O141,\"\")","v":""},{"$f":"IF(COUNT('3'!P141)=0,\":\",SUM('3'!P141))","v":":"},{"$f":"+IF('3'!Q141<>\"\",+'3'!Q141,\"\")","v":""},{"$f":"IF(COUNT('3'!R141)=0,\":\",SUM('3'!R141))","v":":"},{"$f":"+IF('3'!S141<>\"\",+'3'!S141,\"\")","v":""},{"$f":"IF(COUNT('3'!T141)=0,\":\",SUM('3'!T141))","v":":"},{"$f":"+IF('3'!U141<>\"\",+'3'!U141,\"\")","v":""},{"$f":"IF(COUNT('3'!V141)=0,\":\",SUM('3'!V141))","v":":"},{"$f":"+IF('3'!W141<>\"\",+'3'!W141,\"\")","v":""},{"$f":"IF(COUNT('3'!X141)=0,\":\",SUM('3'!X141))","v":":"},{"$f":"+IF('3'!Y141<>\"\",+'3'!Y141,\"\")","v":""},{"$f":"IF(COUNT('3'!Z141)=0,\":\",SUM('3'!Z141))","v":":"},{"$f":"+IF('3'!AA141<>\"\",+'3'!AA141,\"\")","v":""},{"$f":"IF(COUNT('3'!AB141)=0,\":\",SUM('3'!AB141))","v":":"},{"$f":"+IF('3'!AC141<>\"\",+'3'!AC141,\"\")","v":""},{"$f":"IF(COUNT('3'!AD141)=0,\":\",SUM('3'!AD141))","v":":"},null,{"$f":"IF(COUNT('3'!AF141)=0,\":\",SUM('3'!AF141))","v":":"},{"$f":"+IF('3'!AG141<>\"\",+'3'!AG141,\"\")","v":""},":",null,":"]
["S1","TOTAL","EPS_P1_ANC",null,null,null,null,null,2023,{"$f":"IF(COUNT('3'!J142)=0,\":\",SUM('3'!J142))","v":":"},{"$f":"+IF('3'!K142<>\"\",+'3'!K142,\"\")","v":""},{"$f":"IF(COUNT('3'!L142)=0,\":\",SUM('3'!L142))","v":":"},{"$f":"+IF('3'!M142<>\"\",+'3'!M142,\"\")","v":""},{"$f":"IF(COUNT('3'!N142)=0,\":\",SUM('3'!N142))","v":":"},{"$f":"+IF('3'!O142<>\"\",+'3'!O142,\"\")","v":""},{"$f":"IF(COUNT('3'!P142)=0,\":\",SUM('3'!P142))","v":":"},{"$f":"+IF('3'!Q142<>\"\",+'3'!Q142,\"\")","v":""},{"$f":"IF(COUNT('3'!R142)=0,\":\",SUM('3'!R142))","v":":"},{"$f":"+IF('3'!S142<>\"\",+'3'!S142,\"\")","v":""},{"$f":"IF(COUNT('3'!T142)=0,\":\",SUM('3'!T142))","v":":"},{"$f":"+IF('3'!U142<>\"\",+'3'!U142,\"\")","v":""},{"$f":"IF(COUNT('3'!V142)=0,\":\",SUM('3'!V142))","v":":"},{"$f":"+IF('3'!W142<>\"\",+'3'!W142,\"\")","v":""},{"$f":"IF(COUNT('3'!X142)=0,\":\",SUM('3'!X142))","v":":"},{"$f":"+IF('3'!Y142<>\"\",+'3'!Y142,\"\")","v":""},{"$f":"IF(COUNT('3'!Z142)=0,\":\",SUM('3'!Z142))","v":":"},{"$f":"+IF('3'!AA142<>\"\",+'3'!AA142,\"\")","v":""},{"$f":"IF(COUNT('3'!AB142)=0,\":\",SUM('3'!AB142))","v":":"},{"$f":"+IF('3'!AC142<>\"\",+'3'!AC142,\"\")","v":""},{"$f":"IF(COUNT('3'!AD142)=0,\":\",SUM('3'!AD142))","v":":"},null,{"$f":"IF(COUNT('3'!AF142)=0,\":\",SUM('3'!AF142))","v":":"},{"$f":"+IF('3'!AG142<>\"\",+'3'!AG142,\"\")","v":""},":",null,":"]
["S1","TOTAL","EPS_P1_ANC",null,null,null,null,null,2024,{"$f":"IF(COUNT('3'!J143)=0,\":\",SUM('3'!J143))","v":":"},{"$f":"+IF('3'!K143<>\"\",+'3'!K143,\"\")","v":""},{"$f":"IF(COUNT('3'!L143)=0,\":\",SUM('3'!L143))","v":":"},{"$f":"+IF('3'!M143<>\"\",+'3'!M143,\"\")","v":""},{"$f":"IF(COUNT('3'!N143)=0,\":\",SUM('3'!N143))","v":":"},{"$f":"+IF('3'!O143<>\"\",+'3'!O143,\"\")","v":""},{"$f":"IF(COUNT('3'!P143)=0,\":\",SUM('3'!P143))","v":":"},{"$f":"+IF('3'!Q143<>\"\",+'3'!Q143,\"\")","v":""},{"$f":"IF(COUNT('3'!R143)=0,\":\",SUM('3'!R143))","v":":"},{"$f":"+IF('3'!S143<>\"\",+'3'!S143,\"\")","v":""},{"$f":"IF(COUNT('3'!T143)=0,\":\",SUM('3'!T143))","v":":"},{"$f":"+IF('3'!U143<>\"\",+'3'!U143,\"\")","v":""},{"$f":"IF(COUNT('3'!V143)=0,\":\",SUM('3'!V143))","v":":"},{"$f":"+IF('3'!W143<>\"\",+'3'!W143,\"\")","v":""},{"$f":"IF(COUNT('3'!X143)=0,\":\",SUM('3'!X143))","v":":"},{"$f":"+IF('3'!Y143<>\"\",+'3'!Y143,\"\")","v":""},{"$f":"IF(COUNT('3'!Z143)=0,\":\",SUM('3'!Z143))","v":":"},{"$f":"+IF('3'!AA143<>\"\",+'3'!AA143,\"\")","v":""},{"$f":"IF(COUNT('3'!AB143)=0,\":\",SUM('3'!AB143))","v":":"},{"$f":"+IF('3'!AC143<>\"\",+'3'!AC143,\"\")","v":""},{"$f":"IF(COUNT('3'!AD143)=0,\":\",SUM('3'!AD143))","v":":"},null,{"$f":"IF(COUNT('3'!AF143)=0,\":\",SUM('3'!AF143))","v":":"},{"$f":"+IF('3'!AG143<>\"\",+'3'!AG143,\"\")","v":""},":",null,":"]
["S1","TOTAL","EPS_P1_ANC",null,null,null,null,null,2025,{"$f":"IF(COUNT('3'!J144)=0,\":\",SUM('3'!J144))","v":":"},{"$f":"+IF('3'!K144<>\"\",+'3'!K144,\"\")","v":""},{"$f":"IF(COUNT('3'!L144)=0,\":\",SUM('3'!L144))","v":":"},{"$f":"+IF('3'!M144<>\"\",+'3'!M144,\"\")","v":""},{"$f":"IF(COUNT('3'!N144)=0,\":\",SUM('3'!N144))","v":":"},{"$f":"+IF('3'!O144<>\"\",+'3'!O144,\"\")","v":""},{"$f":"IF(COUNT('3'!P144)=0,\":\",SUM('3'!P144))","v":":"},{"$f":"+IF('3'!Q144<>\"\",+'3'!Q144,\"\")","v":""},{"$f":"IF(COUNT('3'!R144)=0,\":\",SUM('3'!R144))","v":":"},{"$f":"+IF('3'!S144<>\"\",+'3'!S144,\"\")","v":""},{"$f":"IF(COUNT('3'!T144)=0,\":\",SUM('3'!T144))","v":":"},{"$f":"+IF('3'!U144<>\"\",+'3'!U144,\"\")","v":""},{"$f":"IF(COUNT('3'!V144)=0,\":\",SUM('3'!V144))","v":":"},{"$f":"+IF('3'!W144<>\"\",+'3'!W144,\"\")","v":""},{"$f":"IF(COUNT('3'!X144)=0,\":\",SUM('3'!X144))","v":":"},{"$f":"+IF('3'!Y144<>\"\",+'3'!Y144,\"\")","v":""},{"$f":"IF(COUNT('3'!Z144)=0,\":\",SUM('3'!Z144))","v":":"},{"$f":"+IF('3'!AA144<>\"\",+'3'!AA144,\"\")","v":""},{"$f":"IF(COUNT('3'!AB144)=0,\":\",SUM('3'!AB144))","v":":"},{"$f":"+IF('3'!AC144<>\"\",+'3'!AC144,\"\")","v":""},{"$f":"IF(COUNT('3'!AD144)=0,\":\",SUM('3'!AD144))","v":":"},null,{"$f":"IF(COUNT('3'!AF144)=0,\":\",SUM('3'!AF144))","v":":"},{"$f":"+IF('3'!AG144<>\"\",+'3'!AG144,\"\")","v":""},":",null,":"]
["S1","TOTAL","EPS_P1_ANC",null,null,null,null,null,2026,{"$f":"IF(COUNT('3'!J145)=0,\":\",SUM('3'!J145))","v":":"},{"$f":"+IF('3'!K145<>\"\",+'3'!K145,\"\")","v":""},{"$f":"IF(COUNT('3'!L145)=0,\":\",SUM('3'!L145))","v":":"},{"$f":"+IF('3'!M145<>\"\",+'3'!M145,\"\")","v":""},{"$f":"IF(COUNT('3'!N145)=0,\":\",SUM('3'!N145))","v":":"},{"$f":"+IF('3'!O145<>\"\",+'3'!O145,\"\")","v":""},{"$f":"IF(COUNT('3'!P145)=0,\":\",SUM('3'!P145))","v":":"},{"$f":"+IF('3'!Q145<>\"\",+'3'!Q145,\"\")","v":""},{"$f":"IF(COUNT('3'!R145)=0,\":\",SUM('3'!R145))","v":":"},{"$f":"+IF('3'!S145<>\"\",+'3'!S145,\"\")","v":""},{"$f":"IF(COUNT('3'!T145)=0,\":\",SUM('3'!T145))","v":":"},{"$f":"+IF('3'!U145<>\"\",+'3'!U145,\"\")","v":""},{"$f":"IF(COUNT('3'!V145)=0,\":\",SUM('3'!V145))","v":":"},{"$f":"+IF('3'!W145<>\"\",+'3'!W145,\"\")","v":""},{"$f":"IF(COUNT('3'!X145)=0,\":\",SUM('3'!X145))","v":":"},{"$f":"+IF('3'!Y145<>\"\",+'3'!Y145,\"\")","v":""},{"$f":"IF(COUNT('3'!Z145)=0,\":\",SUM('3'!Z145))","v":":"},{"$f":"+IF('3'!AA145<>\"\",+'3'!AA145,\"\")","v":""},{"$f":"IF(COUNT('3'!AB145)=0,\":\",SUM('3'!AB145))","v":":"},{"$f":"+IF('3'!AC145<>\"\",+'3'!AC145,\"\")","v":""},{"$f":"IF(COUNT('3'!AD145)=0,\":\",SUM('3'!AD145))","v":":"},null,{"$f":"IF(COUNT('3'!AF145)=0,\":\",SUM('3'!AF145))","v":":"},{"$f":"+IF('3'!AG145<>\"\",+'3'!AG145,\"\")","v":""},":",null,":"]
["S1","TOTAL","EPS_P1_ANC",null,null,null,null,null,2027,{"$f":"IF(COUNT('3'!J146)=0,\":\",SUM('3'!J146))","v":":"},{"$f":"+IF('3'!K146<>\"\",+'3'!K146,\"\")","v":""},{"$f":"IF(COUNT('3'!L146)=0,\":\",SUM('3'!L146))","v":":"},{"$f":"+IF('3'!M146<>\"\",+'3'!M146,\"\")","v":""},{"$f":"IF(COUNT('3'!N146)=0,\":\",SUM('3'!N146))","v":":"},{"$f":"+IF('3'!O146<>\"\",+'3'!O146,\"\")","v":""},{"$f":"IF(COUNT('3'!P146)=0,\":\",SUM('3'!P146))","v":":"},{"$f":"+IF('3'!Q146<>\"\",+'3'!Q146,\"\")","v":""},{"$f":"IF(COUNT('3'!R146)=0,\":\",SUM('3'!R146))","v":":"},{"$f":"+IF('3'!S146<>\"\",+'3'!S146,\"\")","v":""},{"$f":"IF(COUNT('3'!T146)=0,\":\",SUM('3'!T146))","v":":"},{"$f":"+IF('3'!U146<>\"\",+'3'!U146,\"\")","v":""},{"$f":"IF(COUNT('3'!V146)=0,\":\",SUM('3'!V146))","v":":"},{"$f":"+IF('3'!W146<>\"\",+'3'!W146,\"\")","v":""},{"$f":"IF(COUNT('3'!X146)=0,\":\",SUM('3'!X146))","v":":"},{"$f":"+IF('3'!Y146<>\"\",+'3'!Y146,\"\")","v":""},{"$f":"IF(COUNT('3'!Z146)=0,\":\",SUM('3'!Z146))","v":":"},{"$f":"+IF('3'!AA146<>\"\",+'3'!AA146,\"\")","v":""},{"$f":"IF(COUNT('3'!AB146)=0,\":\",SUM('3'!AB146))","v":":"},{"$f":"+IF('3'!AC146<>\"\",+'3'!AC146,\"\")","v":""},{"$f":"IF(COUNT('3'!AD146)=0,\":\",SUM('3'!AD146))","v":":"},null,{"$f":"IF(COUNT('3'!AF146)=0,\":\",SUM('3'!AF146))","v":":"},{"$f":"+IF('3'!AG146<>\"\",+'3'!AG146,\"\")","v":""},":",null,":"]
["S1","TOTAL","EPS_P1_ANC",null,null,null,null,null,2028,{"$f":"IF(COUNT('3'!J147)=0,\":\",SUM('3'!J147))","v":":"},{"$f":"+IF('3'!K147<>\"\",+'3'!K147,\"\")","v":""},{"$f":"IF(COUNT('3'!L147)=0,\":\",SUM('3'!L147))","v":":"},{"$f":"+IF('3'!M147<>\"\",+'3'!M147,\"\")","v":""},{"$f":"IF(COUNT('3'!N147)=0,\":\",SUM('3'!N147))","v":":"},{"$f":"+IF('3'!O147<>\"\",+'3'!O147,\"\")","v":""},{"$f":"IF(COUNT('3'!P147)=0,\":\",SUM('3'!P147))","v":":"},{"$f":"+IF('3'!Q147<>\"\",+'3'!Q147,\"\")","v":""},{"$f":"IF(COUNT('3'!R147)=0,\":\",SUM('3'!R147))","v":":"},{"$f":"+IF('3'!S147<>\"\",+'3'!S147,\"\")","v":""},{"$f":"IF(COUNT('3'!T147)=0,\":\",SUM('3'!T147))","v":":"},{"$f":"+IF('3'!U147<>\"\",+'3'!U147,\"\")","v":""},{"$f":"IF(COUNT('3'!V147)=0,\":\",SUM('3'!V147))","v":":"},{"$f":"+IF('3'!W147<>\"\",+'3'!W147,\"\")","v":""},{"$f":"IF(COUNT('3'!X147)=0,\":\",SUM('3'!X147))","v":":"},{"$f":"+IF('3'!Y147<>\"\",+'3'!Y147,\"\")","v":""},{"$f":"IF(COUNT('3'!Z147)=0,\":\",SUM('3'!Z147))","v":":"},{"$f":"+IF('3'!AA147<>\"\",+'3'!AA147,\"\")","v":""},{"$f":"IF(COUNT('3'!AB147)=0,\":\",SUM('3'!AB147))","v":":"},{"$f":"+IF('3'!AC147<>\"\",+'3'!AC147,\"\")","v":""},{"$f":"IF(COUNT('3'!AD147)=0,\":\",SUM('3'!AD147))","v":":"},null,{"$f":"IF(COUNT('3'!AF147)=0,\":\",SUM('3'!AF147))","v":":"},{"$f":"+IF('3'!AG147<>\"\",+'3'!AG147,\"\")","v":""},":",null,":"]
["S1","TOTAL","EPS_P1_ANC",null,null,null,null,null,2029,{"$f":"IF(COUNT('3'!J148)=0,\":\",SUM('3'!J148))","v":":"},{"$f":"+IF('3'!K148<>\"\",+'3'!K148,\"\")","v":""},{"$f":"IF(COUNT('3'!L148)=0,\":\",SUM('3'!L148))","v":":"},{"$f":"+IF('3'!M148<>\"\",+'3'!M148,\"\")","v":""},{"$f":"IF(COUNT('3'!N148)=0,\":\",SUM('3'!N148))","v":":"},{"$f":"+IF('3'!O148<>\"\",+'3'!O148,\"\")","v":""},{"$f":"IF(COUNT('3'!P148)=0,\":\",SUM('3'!P148))","v":":"},{"$f":"+IF('3'!Q148<>\"\",+'3'!Q148,\"\")","v":""},{"$f":"IF(COUNT('3'!R148)=0,\":\",SUM('3'!R148))","v":":"},{"$f":"+IF('3'!S148<>\"\",+'3'!S148,\"\")","v":""},{"$f":"IF(COUNT('3'!T148)=0,\":\",SUM('3'!T148))","v":":"},{"$f":"+IF('3'!U148<>\"\",+'3'!U148,\"\")","v":""},{"$f":"IF(COUNT('3'!V148)=0,\":\",SUM('3'!V148))","v":":"},{"$f":"+IF('3'!W148<>\"\",+'3'!W148,\"\")","v":""},{"$f":"IF(COUNT('3'!X148)=0,\":\",SUM('3'!X148))","v":":"},{"$f":"+IF('3'!Y148<>\"\",+'3'!Y148,\"\")","v":""},{"$f":"IF(COUNT('3'!Z148)=0,\":\",SUM('3'!Z148))","v":":"},{"$f":"+IF('3'!AA148<>\"\",+'3'!AA148,\"\")","v":""},{"$f":"IF(COUNT('3'!AB148)=0,\":\",SUM('3'!AB148))","v":":"},{"$f":"+IF('3'!AC148<>\"\",+'3'!AC148,\"\")","v":""},{"$f":"IF(COUNT('3'!AD148)=0,\":\",SUM('3'!AD148))","v":":"},null,{"$f":"IF(COUNT('3'!AF148)=0,\":\",SUM('3'!AF148))","v":":"},{"$f":"+IF('3'!AG148<>\"\",+'3'!AG148,\"\")","v":""},":",null,":"]
["S1","TOTAL","EPS_P1_ANC",null,null,null,null,null,2030,{"$f":"IF(COUNT('3'!J149)=0,\":\",SUM('3'!J149))","v":":"},{"$f":"+IF('3'!K149<>\"\",+'3'!K149,\"\")","v":""},{"$f":"IF(COUNT('3'!L149)=0,\":\",SUM('3'!L149))","v":":"},{"$f":"+IF('3'!M149<>\"\",+'3'!M149,\"\")","v":""},{"$f":"IF(COUNT('3'!N149)=0,\":\",SUM('3'!N149))","v":":"},{"$f":"+IF('3'!O149<>\"\",+'3'!O149,\"\")","v":""},{"$f":"IF(COUNT('3'!P149)=0,\":\",SUM('3'!P149))","v":":"},{"$f":"+IF('3'!Q149<>\"\",+'3'!Q149,\"\")","v":""},{"$f":"IF(COUNT('3'!R149)=0,\":\",SUM('3'!R149))","v":":"},{"$f":"+IF('3'!S149<>\"\",+'3'!S149,\"\")","v":""},{"$f":"IF(COUNT('3'!T149)=0,\":\",SUM('3'!T149))","v":":"},{"$f":"+IF('3'!U149<>\"\",+'3'!U149,\"\")","v":""},{"$f":"IF(COUNT('3'!V149)=0,\":\",SUM('3'!V149))","v":":"},{"$f":"+IF('3'!W149<>\"\",+'3'!W149,\"\")","v":""},{"$f":"IF(COUNT('3'!X149)=0,\":\",SUM('3'!X149))","v":":"},{"$f":"+IF('3'!Y149<>\"\",+'3'!Y149,\"\")","v":""},{"$f":"IF(COUNT('3'!Z149)=0,\":\",SUM('3'!Z149))","v":":"},{"$f":"+IF('3'!AA149<>\"\",+'3'!AA149,\"\")","v":""},{"$f":"IF(COUNT('3'!AB149)=0,\":\",SUM('3'!AB149))","v":":"},{"$f":"+IF('3'!AC149<>\"\",+'3'!AC149,\"\")","v":""},{"$f":"IF(COUNT('3'!AD149)=0,\":\",SUM('3'!AD149))","v":":"},null,{"$f":"IF(COUNT('3'!AF149)=0,\":\",SUM('3'!AF149))","v":":"},{"$f":"+IF('3'!AG149<>\"\",+'3'!AG149,\"\")","v":""},":",null,":"]
["S1","TOTAL","EPS_P1_ANC",null,null,null,null,null,2031,{"$f":"IF(COUNT('3'!J150)=0,\":\",SUM('3'!J150))","v":":"},{"$f":"+IF('3'!K150<>\"\",+'3'!K150,\"\")","v":""},{"$f":"IF(COUNT('3'!L150)=0,\":\",SUM('3'!L150))","v":":"},{"$f":"+IF('3'!M150<>\"\",+'3'!M150,\"\")","v":""},{"$f":"IF(COUNT('3'!N150)=0,\":\",SUM('3'!N150))","v":":"},{"$f":"+IF('3'!O150<>\"\",+'3'!O150,\"\")","v":""},{"$f":"IF(COUNT('3'!P150)=0,\":\",SUM('3'!P150))","v":":"},{"$f":"+IF('3'!Q150<>\"\",+'3'!Q150,\"\")","v":""},{"$f":"IF(COUNT('3'!R150)=0,\":\",SUM('3'!R150))","v":":"},{"$f":"+IF('3'!S150<>\"\",+'3'!S150,\"\")","v":""},{"$f":"IF(COUNT('3'!T150)=0,\":\",SUM('3'!T150))","v":":"},{"$f":"+IF('3'!U150<>\"\",+'3'!U150,\"\")","v":""},{"$f":"IF(COUNT('3'!V150)=0,\":\",SUM('3'!V150))","v":":"},{"$f":"+IF('3'!W150<>\"\",+'3'!W150,\"\")","v":""},{"$f":"IF(COUNT('3'!X150)=0,\":\",SUM('3'!X150))","v":":"},{"$f":"+IF('3'!Y150<>\"\",+'3'!Y150,\"\")","v":""},{"$f":"IF(COUNT('3'!Z150)=0,\":\",SUM('3'!Z150))","v":":"},{"$f":"+IF('3'!AA150<>\"\",+'3'!AA150,\"\")","v":""},{"$f":"IF(COUNT('3'!AB150)=0,\":\",SUM('3'!AB150))","v":":"},{"$f":"+IF('3'!AC150<>\"\",+'3'!AC150,\"\")","v":""},{"$f":"IF(COUNT('3'!AD150)=0,\":\",SUM('3'!AD150))","v":":"},null,{"$f":"IF(COUNT('3'!AF150)=0,\":\",SUM('3'!AF150))","v":":"},{"$f":"+IF('3'!AG150<>\"\",+'3'!AG150,\"\")","v":""},":",null,":"]
["S1","TOTAL","EPS_P13",null,"( P13.4 ) Non-market output of EP services / RM products (=P13.1)",null,null,null,2014,{"$f":"IF(COUNT('1'!J205)=0,\":\",SUM('1'!J205))","v":":"},{"$f":"+IF('1'!K205<>\"\",+'1'!K205,\"\")","v":""},{"$f":"IF(COUNT('1'!L205)=0,\":\",SUM('1'!L205))","v":":"},{"$f":"+IF('1'!M205<>\"\",+'1'!M205,\"\")","v":""},{"$f":"IF(COUNT('1'!N205)=0,\":\",SUM('1'!N205))","v":":"},{"$f":"+IF('1'!O205<>\"\",+'1'!O205,\"\")","v":""},{"$f":"IF(COUNT('1'!P205)=0,\":\",SUM('1'!P205))","v":":"},{"$f":"+IF('1'!Q205<>\"\",+'1'!Q205,\"\")","v":""},{"$f":"IF(COUNT('1'!R205)=0,\":\",SUM('1'!R205))","v":":"},{"$f":"+IF('1'!S205<>\"\",+'1'!S205,\"\")","v":""},{"$f":"IF(COUNT('1'!T205)=0,\":\",SUM('1'!T205))","v":":"},{"$f":"+IF('1'!U205<>\"\",+'1'!U205,\"\")","v":""},{"$f":"IF(COUNT('1'!V205)=0,\":\",SUM('1'!V205))","v":":"},{"$f":"+IF('1'!W205<>\"\",+'1'!W205,\"\")","v":""},{"$f":"IF(COUNT('1'!X205)=0,\":\",SUM('1'!X205))","v":":"},{"$f":"+IF('1'!Y205<>\"\",+'1'!Y205,\"\")","v":""},{"$f":"IF(COUNT('1'!Z205)=0,\":\",SUM('1'!Z205))","v":":"},{"$f":"+IF('1'!AA205<>\"\",+'1'!AA205,\"\")","v":""},{"$f":"IF(COUNT('1'!AB205)=0,\":\",SUM('1'!AB205))","v":":"},{"$f":"+IF('1'!AC205<>\"\",+'1'!AC205,\"\")","v":""},{"$f":"IF(COUNT('1'!AD205)=0,\":\",SUM('1'!AD205))","v":":"},null,{"$f":"IF(COUNT('1'!AF205)=0,\":\",SUM('1'!AF205))","v":":"},{"$f":"+IF('1'!AG205<>\"\",+'1'!AG205,\"\")","v":""},{"$f":"IF(COUNT('1'!AH205)=0,\":\",SUM('1'!AH205))","v":":"},{"$f":"+IF('1'!AI205<>\"\",+'1'!AI205,\"\")","v":""},{"$f":"IF(COUNT('1'!AJ205)=0,\":\",SUM('1'!AJ205))","v":":"},{"$f":"+IF('1'!AK205<>\"\",+'1'!AK205,\"\")","v":""}]
["S1","TOTAL","EPS_P13",null,null,null,null,null,2015,{"$f":"IF(COUNT('1'!J206)=0,\":\",SUM('1'!J206))","v":":"},{"$f":"+IF('1'!K206<>\"\",+'1'!K206,\"\")","v":""},{"$f":"IF(COUNT('1'!L206)=0,\":\",SUM('1'!L206))","v":":"},{"$f":"+IF('1'!M206<>\"\",+'1'!M206,\"\")","v":""},{"$f":"IF(COUNT('1'!N206)=0,\":\",SUM('1'!N206))","v":":"},{"$f":"+IF('1'!O206<>\"\",+'1'!O206,\"\")","v":""},{"$f":"IF(COUNT('1'!P206)=0,\":\",SUM('1'!P206))","v":":"},{"$f":"+IF('1'!Q206<>\"\",+'1'!Q206,\"\")","v":""},{"$f":"IF(COUNT('1'!R206)=0,\":\",SUM('1'!R206))","v":":"},{"$f":"+IF('1'!S206<>\"\",+'1'!S206,\"\")","v":""},{"$f":"IF(COUNT('1'!T206)=0,\":\",SUM('1'!T206))","v":":"},{"$f":"+IF('1'!U206<>\"\",+'1'!U206,\"\")","v":""},{"$f":"IF(COUNT('1'!V206)=0,\":\",SUM('1'!V206))","v":":"},{"$f":"+IF('1'!W206<>\"\",+'1'!W206,\"\")","v":""},{"$f":"IF(COUNT('1'!X206)=0,\":\",SUM('1'!X206))","v":":"},{"$f":"+IF('1'!Y206<>\"\",+'1'!Y206,\"\")","v":""},{"$f":"IF(COUNT('1'!Z206)=0,\":\",SUM('1'!Z206))","v":":"},{"$f":"+IF('1'!AA206<>\"\",+'1'!AA206,\"\")","v":""},{"$f":"IF(COUNT('1'!AB206)=0,\":\",SUM('1'!AB206))","v":":"},{"$f":"+IF('1'!AC206<>\"\",+'1'!AC206,\"\")","v":""},{"$f":"IF(COUNT('1'!AD206)=0,\":\",SUM('1'!AD206))","v":":"},null,{"$f":"IF(COUNT('1'!AF206)=0,\":\",SUM('1'!AF206))","v":":"},{"$f":"+IF('1'!AG206<>\"\",+'1'!AG206,\"\")","v":""},{"$f":"IF(COUNT('1'!AH206)=0,\":\",SUM('1'!AH206))","v":":"},{"$f":"+IF('1'!AI206<>\"\",+'1'!AI206,\"\")","v":""},{"$f":"IF(COUNT('1'!AJ206)=0,\":\",SUM('1'!AJ206))","v":":"},{"$f":"+IF('1'!AK206<>\"\",+'1'!AK206,\"\")","v":""}]
["S1","TOTAL","EPS_P13",null,null,null,null,null,2016,{"$f":"IF(COUNT('1'!J207)=0,\":\",SUM('1'!J207))","v":":"},{"$f":"+IF('1'!K207<>\"\",+'1'!K207,\"\")","v":""},{"$f":"IF(COUNT('1'!L207)=0,\":\",SUM('1'!L207))","v":":"},{"$f":"+IF('1'!M207<>\"\",+'1'!M207,\"\")","v":""},{"$f":"IF(COUNT('1'!N207)=0,\":\",SUM('1'!N207))","v":":"},{"$f":"+IF('1'!O207<>\"\",+'1'!O207,\"\")","v":""},{"$f":"IF(COUNT('1'!P207)=0,\":\",SUM('1'!P207))","v":":"},{"$f":"+IF('1'!Q207<>\"\",+'1'!Q207,\"\")","v":""},{"$f":"IF(COUNT('1'!R207)=0,\":\",SUM('1'!R207))","v":":"},{"$f":"+IF('1'!S207<>\"\",+'1'!S207,\"\")","v":""},{"$f":"IF(COUNT('1'!T207)=0,\":\",SUM('1'!T207))","v":":"},{"$f":"+IF('1'!U207<>\"\",+'1'!U207,\"\")","v":""},{"$f":"IF(COUNT('1'!V207)=0,\":\",SUM('1'!V207))","v":":"},{"$f":"+IF('1'!W207<>\"\",+'1'!W207,\"\")","v":""},{"$f":"IF(COUNT('1'!X207)=0,\":\",SUM('1'!X207))","v":":"},{"$f":"+IF('1'!Y207<>\"\",+'1'!Y207,\"\")","v":""},{"$f":"IF(COUNT('1'!Z207)=0,\":\",SUM('1'!Z207))","v":":"},{"$f":"+IF('1'!AA207<>\"\",+'1'!AA207,\"\")","v":""},{"$f":"IF(COUNT('1'!AB207)=0,\":\",SUM('1'!AB207))","v":":"},{"$f":"+IF('1'!AC207<>\"\",+'1'!AC207,\"\")","v":""},{"$f":"IF(COUNT('1'!AD207)=0,\":\",SUM('1'!AD207))","v":":"},null,{"$f":"IF(COUNT('1'!AF207)=0,\":\",SUM('1'!AF207))","v":":"},{"$f":"+IF('1'!AG207<>\"\",+'1'!AG207,\"\")","v":""},{"$f":"IF(COUNT('1'!AH207)=0,\":\",SUM('1'!AH207))","v":":"},{"$f":"+IF('1'!AI207<>\"\",+'1'!AI207,\"\")","v":""},{"$f":"IF(COUNT('1'!AJ207)=0,\":\",SUM('1'!AJ207))","v":":"},{"$f":"+IF('1'!AK207<>\"\",+'1'!AK207,\"\")","v":""}]
["S1","TOTAL","EPS_P13",null,null,null,null,null,2017,{"$f":"IF(COUNT('1'!J208)=0,\":\",SUM('1'!J208))","v":":"},{"$f":"+IF('1'!K208<>\"\",+'1'!K208,\"\")","v":""},{"$f":"IF(COUNT('1'!L208)=0,\":\",SUM('1'!L208))","v":":"},{"$f":"+IF('1'!M208<>\"\",+'1'!M208,\"\")","v":""},{"$f":"IF(COUNT('1'!N208)=0,\":\",SUM('1'!N208))","v":":"},{"$f":"+IF('1'!O208<>\"\",+'1'!O208,\"\")","v":""},{"$f":"IF(COUNT('1'!P208)=0,\":\",SUM('1'!P208))","v":":"},{"$f":"+IF('1'!Q208<>\"\",+'1'!Q208,\"\")","v":""},{"$f":"IF(COUNT('1'!R208)=0,\":\",SUM('1'!R208))","v":":"},{"$f":"+IF('1'!S208<>\"\",+'1'!S208,\"\")","v":""},{"$f":"IF(COUNT('1'!T208)=0,\":\",SUM('1'!T208))","v":":"},{"$f":"+IF('1'!U208<>\"\",+'1'!U208,\"\")","v":""},{"$f":"IF(COUNT('1'!V208)=0,\":\",SUM('1'!V208))","v":":"},{"$f":"+IF('1'!W208<>\"\",+'1'!W208,\"\")","v":""},{"$f":"IF(COUNT('1'!X208)=0,\":\",SUM('1'!X208))","v":":"},{"$f":"+IF('1'!Y208<>\"\",+'1'!Y208,\"\")","v":""},{"$f":"IF(COUNT('1'!Z208)=0,\":\",SUM('1'!Z208))","v":":"},{"$f":"+IF('1'!AA208<>\"\",+'1'!AA208,\"\")","v":""},{"$f":"IF(COUNT('1'!AB208)=0,\":\",SUM('1'!AB208))","v":":"},{"$f":"+IF('1'!AC208<>\"\",+'1'!AC208,\"\")","v":""},{"$f":"IF(COUNT('1'!AD208)=0,\":\",SUM('1'!AD208))","v":":"},null,{"$f":"IF(COUNT('1'!AF208)=0,\":\",SUM('1'!AF208))","v":":"},{"$f":"+IF('1'!AG208<>\"\",+'1'!AG208,\"\")","v":""},{"$f":"IF(COUNT('1'!AH208)=0,\":\",SUM('1'!AH208))","v":":"},{"$f":"+IF('1'!AI208<>\"\",+'1'!AI208,\"\")","v":""},{"$f":"IF(COUNT('1'!AJ208)=0,\":\",SUM('1'!AJ208))","v":":"},{"$f":"+IF('1'!AK208<>\"\",+'1'!AK208,\"\")","v":""}]
["S1","TOTAL","EPS_P13",null,null,null,null,null,2018,{"$f":"IF(COUNT('1'!J209)=0,\":\",SUM('1'!J209))","v":":"},{"$f":"+IF('1'!K209<>\"\",+'1'!K209,\"\")","v":""},{"$f":"IF(COUNT('1'!L209)=0,\":\",SUM('1'!L209))","v":":"},{"$f":"+IF('1'!M209<>\"\",+'1'!M209,\"\")","v":""},{"$f":"IF(COUNT('1'!N209)=0,\":\",SUM('1'!N209))","v":":"},{"$f":"+IF('1'!O209<>\"\",+'1'!O209,\"\")","v":""},{"$f":"IF(COUNT('1'!P209)=0,\":\",SUM('1'!P209))","v":":"},{"$f":"+IF('1'!Q209<>\"\",+'1'!Q209,\"\")","v":""},{"$f":"IF(COUNT('1'!R209)=0,\":\",SUM('1'!R209))","v":":"},{"$f":"+IF('1'!S209<>\"\",+'1'!S209,\"\")","v":""},{"$f":"IF(COUNT('1'!T209)=0,\":\",SUM('1'!T209))","v":":"},{"$f":"+IF('1'!U209<>\"\",+'1'!U209,\"\")","v":""},{"$f":"IF(COUNT('1'!V209)=0,\":\",SUM('1'!V209))","v":":"},{"$f":"+IF('1'!W209<>\"\",+'1'!W209,\"\")","v":""},{"$f":"IF(COUNT('1'!X209)=0,\":\",SUM('1'!X209))","v":":"},{"$f":"+IF('1'!Y209<>\"\",+'1'!Y209,\"\")","v":""},{"$f":"IF(COUNT('1'!Z209)=0,\":\",SUM('1'!Z209))","v":":"},{"$f":"+IF('1'!AA209<>\"\",+'1'!AA209,\"\")","v":""},{"$f":"IF(COUNT('1'!AB209)=0,\":\",SUM('1'!AB209))","v":":"},{"$f":"+IF('1'!AC209<>\"\",+'1'!AC209,\"\")","v":""},{"$f":"IF(COUNT('1'!AD209)=0,\":\",SUM('1'!AD209))","v":":"},null,{"$f":"IF(COUNT('1'!AF209)=0,\":\",SUM('1'!AF209))","v":":"},{"$f":"+IF('1'!AG209<>\"\",+'1'!AG209,\"\")","v":""},{"$f":"IF(COUNT('1'!AH209)=0,\":\",SUM('1'!AH209))","v":":"},{"$f":"+IF('1'!AI209<>\"\",+'1'!AI209,\"\")","v":""},{"$f":"IF(COUNT('1'!AJ209)=0,\":\",SUM('1'!AJ209))","v":":"},{"$f":"+IF('1'!AK209<>\"\",+'1'!AK209,\"\")","v":""}]
["S1","TOTAL","EPS_P13",null,null,null,null,null,2019,{"$f":"IF(COUNT('1'!J210)=0,\":\",SUM('1'!J210))","v":":"},{"$f":"+IF('1'!K210<>\"\",+'1'!K210,\"\")","v":""},{"$f":"IF(COUNT('1'!L210)=0,\":\",SUM('1'!L210))","v":":"},{"$f":"+IF('1'!M210<>\"\",+'1'!M210,\"\")","v":""},{"$f":"IF(COUNT('1'!N210)=0,\":\",SUM('1'!N210))","v":":"},{"$f":"+IF('1'!O210<>\"\",+'1'!O210,\"\")","v":""},{"$f":"IF(COUNT('1'!P210)=0,\":\",SUM('1'!P210))","v":":"},{"$f":"+IF('1'!Q210<>\"\",+'1'!Q210,\"\")","v":""},{"$f":"IF(COUNT('1'!R210)=0,\":\",SUM('1'!R210))","v":":"},{"$f":"+IF('1'!S210<>\"\",+'1'!S210,\"\")","v":""},{"$f":"IF(COUNT('1'!T210)=0,\":\",SUM('1'!T210))","v":":"},{"$f":"+IF('1'!U210<>\"\",+'1'!U210,\"\")","v":""},{"$f":"IF(COUNT('1'!V210)=0,\":\",SUM('1'!V210))","v":":"},{"$f":"+IF('1'!W210<>\"\",+'1'!W210,\"\")","v":""},{"$f":"IF(COUNT('1'!X210)=0,\":\",SUM('1'!X210))","v":":"},{"$f":"+IF('1'!Y210<>\"\",+'1'!Y210,\"\")","v":""},{"$f":"IF(COUNT('1'!Z210)=0,\":\",SUM('1'!Z210))","v":":"},{"$f":"+IF('1'!AA210<>\"\",+'1'!AA210,\"\")","v":""},{"$f":"IF(COUNT('1'!AB210)=0,\":\",SUM('1'!AB210))","v":":"},{"$f":"+IF('1'!AC210<>\"\",+'1'!AC210,\"\")","v":""},{"$f":"IF(COUNT('1'!AD210)=0,\":\",SUM('1'!AD210))","v":":"},null,{"$f":"IF(COUNT('1'!AF210)=0,\":\",SUM('1'!AF210))","v":":"},{"$f":"+IF('1'!AG210<>\"\",+'1'!AG210,\"\")","v":""},{"$f":"IF(COUNT('1'!AH210)=0,\":\",SUM('1'!AH210))","v":":"},{"$f":"+IF('1'!AI210<>\"\",+'1'!AI210,\"\")","v":""},{"$f":"IF(COUNT('1'!AJ210)=0,\":\",SUM('1'!AJ210))","v":":"},{"$f":"+IF('1'!AK210<>\"\",+'1'!AK210,\"\")","v":""}]
["S1","TOTAL","EPS_P13",null,null,null,null,null,2020,{"$f":"IF(COUNT('1'!J211)=0,\":\",SUM('1'!J211))","v":":"},{"$f":"+IF('1'!K211<>\"\",+'1'!K211,\"\")","v":""},{"$f":"IF(COUNT('1'!L211)=0,\":\",SUM('1'!L211))","v":":"},{"$f":"+IF('1'!M211<>\"\",+'1'!M211,\"\")","v":""},{"$f":"IF(COUNT('1'!N211)=0,\":\",SUM('1'!N211))","v":":"},{"$f":"+IF('1'!O211<>\"\",+'1'!O211,\"\")","v":""},{"$f":"IF(COUNT('1'!P211)=0,\":\",SUM('1'!P211))","v":":"},{"$f":"+IF('1'!Q211<>\"\",+'1'!Q211,\"\")","v":""},{"$f":"IF(COUNT('1'!R211)=0,\":\",SUM('1'!R211))","v":":"},{"$f":"+IF('1'!S211<>\"\",+'1'!S211,\"\")","v":""},{"$f":"IF(COUNT('1'!T211)=0,\":\",SUM('1'!T211))","v":":"},{"$f":"+IF('1'!U211<>\"\",+'1'!U211,\"\")","v":""},{"$f":"IF(COUNT('1'!V211)=0,\":\",SUM('1'!V211))","v":":"},{"$f":"+IF('1'!W211<>\"\",+'1'!W211,\"\")","v":""},{"$f":"IF(COUNT('1'!X211)=0,\":\",SUM('1'!X211))","v":":"},{"$f":"+IF('1'!Y211<>\"\",+'1'!Y211,\"\")","v":""},{"$f":"IF(COUNT('1'!Z211)=0,\":\",SUM('1'!Z211))","v":":"},{"$f":"+IF('1'!AA211<>\"\",+'1'!AA211,\"\")","v":""},{"$f":"IF(COUNT('1'!AB211)=0,\":\",SUM('1'!AB211))","v":":"},{"$f":"+IF('1'!AC211<>\"\",+'1'!AC211,\"\")","v":""},{"$f":"IF(COUNT('1'!AD211)=0,\":\",SUM('1'!AD211))","v":":"},null,{"$f":"IF(COUNT('1'!AF211)=0,\":\",SUM('1'!AF211))","v":":"},{"$f":"+IF('1'!AG211<>\"\",+'1'!AG211,\"\")","v":""},{"$f":"IF(COUNT('1'!AH211)=0,\":\",SUM('1'!AH211))","v":":"},{"$f":"+IF('1'!AI211<>\"\",+'1'!AI211,\"\")","v":""},{"$f":"IF(COUNT('1'!AJ211)=0,\":\",SUM('1'!AJ211))","v":":"},{"$f":"+IF('1'!AK211<>\"\",+'1'!AK211,\"\")","v":""}]
["S1","TOTAL","EPS_P13",null,null,null,null,null,2021,{"$f":"IF(COUNT('1'!J212)=0,\":\",SUM('1'!J212))","v":":"},{"$f":"+IF('1'!K212<>\"\",+'1'!K212,\"\")","v":""},{"$f":"IF(COUNT('1'!L212)=0,\":\",SUM('1'!L212))","v":":"},{"$f":"+IF('1'!M212<>\"\",+'1'!M212,\"\")","v":""},{"$f":"IF(COUNT('1'!N212)=0,\":\",SUM('1'!N212))","v":":"},{"$f":"+IF('1'!O212<>\"\",+'1'!O212,\"\")","v":""},{"$f":"IF(COUNT('1'!P212)=0,\":\",SUM('1'!P212))","v":":"},{"$f":"+IF('1'!Q212<>\"\",+'1'!Q212,\"\")","v":""},{"$f":"IF(COUNT('1'!R212)=0,\":\",SUM('1'!R212))","v":":"},{"$f":"+IF('1'!S212<>\"\",+'1'!S212,\"\")","v":""},{"$f":"IF(COUNT('1'!T212)=0,\":\",SUM('1'!T212))","v":":"},{"$f":"+IF('1'!U212<>\"\",+'1'!U212,\"\")","v":""},{"$f":"IF(COUNT('1'!V212)=0,\":\",SUM('1'!V212))","v":":"},{"$f":"+IF('1'!W212<>\"\",+'1'!W212,\"\")","v":""},{"$f":"IF(COUNT('1'!X212)=0,\":\",SUM('1'!X212))","v":":"},{"$f":"+IF('1'!Y212<>\"\",+'1'!Y212,\"\")","v":""},{"$f":"IF(COUNT('1'!Z212)=0,\":\",SUM('1'!Z212))","v":":"},{"$f":"+IF('1'!AA212<>\"\",+'1'!AA212,\"\")","v":""},{"$f":"IF(COUNT('1'!AB212)=0,\":\",SUM('1'!AB212))","v":":"},{"$f":"+IF('1'!AC212<>\"\",+'1'!AC212,\"\")","v":""},{"$f":"IF(COUNT('1'!AD212)=0,\":\",SUM('1'!AD212))","v":":"},null,{"$f":"IF(COUNT('1'!AF212)=0,\":\",SUM('1'!AF212))","v":":"},{"$f":"+IF('1'!AG212<>\"\",+'1'!AG212,\"\")","v":""},{"$f":"IF(COUNT('1'!AH212)=0,\":\",SUM('1'!AH212))","v":":"},{"$f":"+IF('1'!AI212<>\"\",+'1'!AI212,\"\")","v":""},{"$f":"IF(COUNT('1'!AJ212)=0,\":\",SUM('1'!AJ212))","v":":"},{"$f":"+IF('1'!AK212<>\"\",+'1'!AK212,\"\")","v":""}]
["S1","TOTAL","EPS_P13",null,null,null,null,null,2022,{"$f":"IF(COUNT('1'!J213)=0,\":\",SUM('1'!J213))","v":":"},{"$f":"+IF('1'!K213<>\"\",+'1'!K213,\"\")","v":""},{"$f":"IF(COUNT('1'!L213)=0,\":\",SUM('1'!L213))","v":":"},{"$f":"+IF('1'!M213<>\"\",+'1'!M213,\"\")","v":""},{"$f":"IF(COUNT('1'!N213)=0,\":\",SUM('1'!N213))","v":":"},{"$f":"+IF('1'!O213<>\"\",+'1'!O213,\"\")","v":""},{"$f":"IF(COUNT('1'!P213)=0,\":\",SUM('1'!P213))","v":":"},{"$f":"+IF('1'!Q213<>\"\",+'1'!Q213,\"\")","v":""},{"$f":"IF(COUNT('1'!R213)=0,\":\",SUM('1'!R213))","v":":"},{"$f":"+IF('1'!S213<>\"\",+'1'!S213,\"\")","v":""},{"$f":"IF(COUNT('1'!T213)=0,\":\",SUM('1'!T213))","v":":"},{"$f":"+IF('1'!U213<>\"\",+'1'!U213,\"\")","v":""},{"$f":"IF(COUNT('1'!V213)=0,\":\",SUM('1'!V213))","v":":"},{"$f":"+IF('1'!W213<>\"\",+'1'!W213,\"\")","v":""},{"$f":"IF(COUNT('1'!X213)=0,\":\",SUM('1'!X213))","v":":"},{"$f":"+IF('1'!Y213<>\"\",+'1'!Y213,\"\")","v":""},{"$f":"IF(COUNT('1'!Z213)=0,\":\",SUM('1'!Z213))","v":":"},{"$f":"+IF('1'!AA213<>\"\",+'1'!AA213,\"\")","v":""},{"$f":"IF(COUNT('1'!AB213)=0,\":\",SUM('1'!AB213))","v":":"},{"$f":"+IF('1'!AC213<>\"\",+'1'!AC213,\"\")","v":""},{"$f":"IF(COUNT('1'!AD213)=0,\":\",SUM('1'!AD213))","v":":"},null,{"$f":"IF(COUNT('1'!AF213)=0,\":\",SUM('1'!AF213))","v":":"},{"$f":"+IF('1'!AG213<>\"\",+'1'!AG213,\"\")","v":""},{"$f":"IF(COUNT('1'!AH213)=0,\":\",SUM('1'!AH213))","v":":"},{"$f":"+IF('1'!AI213<>\"\",+'1'!AI213,\"\")","v":""},{"$f":"IF(COUNT('1'!AJ213)=0,\":\",SUM('1'!AJ213))","v":":"},{"$f":"+IF('1'!AK213<>\"\",+'1'!AK213,\"\")","v":""}]
["S1","TOTAL","EPS_P13",null,null,null,null,null,2023,{"$f":"IF(COUNT('1'!J214)=0,\":\",SUM('1'!J214))","v":":"},{"$f":"+IF('1'!K214<>\"\",+'1'!K214,\"\")","v":""},{"$f":"IF(COUNT('1'!L214)=0,\":\",SUM('1'!L214))","v":":"},{"$f":"+IF('1'!M214<>\"\",+'1'!M214,\"\")","v":""},{"$f":"IF(COUNT('1'!N214)=0,\":\",SUM('1'!N214))","v":":"},{"$f":"+IF('1'!O214<>\"\",+'1'!O214,\"\")","v":""},{"$f":"IF(COUNT('1'!P214)=0,\":\",SUM('1'!P214))","v":":"},{"$f":"+IF('1'!Q214<>\"\",+'1'!Q214,\"\")","v":""},{"$f":"IF(COUNT('1'!R214)=0,\":\",SUM('1'!R214))","v":":"},{"$f":"+IF('1'!S214<>\"\",+'1'!S214,\"\")","v":""},{"$f":"IF(COUNT('1'!T214)=0,\":\",SUM('1'!T214))","v":":"},{"$f":"+IF('1'!U214<>\"\",+'1'!U214,\"\")","v":""},{"$f":"IF(COUNT('1'!V214)=0,\":\",SUM('1'!V214))","v":":"},{"$f":"+IF('1'!W214<>\"\",+'1'!W214,\"\")","v":""},{"$f":"IF(COUNT('1'!X214)=0,\":\",SUM('1'!X214))","v":":"},{"$f":"+IF('1'!Y214<>\"\",+'1'!Y214,\"\")","v":""},{"$f":"IF(COUNT('1'!Z214)=0,\":\",SUM('1'!Z214))","v":":"},{"$f":"+IF('1'!AA214<>\"\",+'1'!AA214,\"\")","v":""},{"$f":"IF(COUNT('1'!AB214)=0,\":\",SUM('1'!AB214))","v":":"},{"$f":"+IF('1'!AC214<>\"\",+'1'!AC214,\"\")","v":""},{"$f":"IF(COUNT('1'!AD214)=0,\":\",SUM('1'!AD214))","v":":"},null,{"$f":"IF(COUNT('1'!AF214)=0,\":\",SUM('1'!AF214))","v":":"},{"$f":"+IF('1'!AG214<>\"\",+'1'!AG214,\"\")","v":""},{"$f":"IF(COUNT('1'!AH214)=0,\":\",SUM('1'!AH214))","v":":"},{"$f":"+IF('1'!AI214<>\"\",+'1'!AI214,\"\")","v":""},{"$f":"IF(COUNT('1'!AJ214)=0,\":\",SUM('1'!AJ214))","v":":"},{"$f":"+IF('1'!AK214<>\"\",+'1'!AK214,\"\")","v":""}]
["S1","TOTAL","EPS_P13",null,null,null,null,null,2024,{"$f":"IF(COUNT('1'!J215)=0,\":\",SUM('1'!J215))","v":":"},{"$f":"+IF('1'!K215<>\"\",+'1'!K215,\"\")","v":""},{"$f":"IF(COUNT('1'!L215)=0,\":\",SUM('1'!L215))","v":":"},{"$f":"+IF('1'!M215<>\"\",+'1'!M215,\"\")","v":""},{"$f":"IF(COUNT('1'!N215)=0,\":\",SUM('1'!N215))","v":":"},{"$f":"+IF('1'!O215<>\"\",+'1'!O215,\"\")","v":""},{"$f":"IF(COUNT('1'!P215)=0,\":\",SUM('1'!P215))","v":":"},{"$f":"+IF('1'!Q215<>\"\",+'1'!Q215,\"\")","v":""},{"$f":"IF(COUNT('1'!R215)=0,\":\",SUM('1'!R215))","v":":"},{"$f":"+IF('1'!S215<>\"\",+'1'!S215,\"\")","v":""},{"$f":"IF(COUNT('1'!T215)=0,\":\",SUM('1'!T215))","v":":"},{"$f":"+IF('1'!U215<>\"\",+'1'!U215,\"\")","v":""},{"$f":"IF(COUNT('1'!V215)=0,\":\",SUM('1'!V215))","v":":"},{"$f":"+IF('1'!W215<>\"\",+'1'!W215,\"\")","v":""},{"$f":"IF(COUNT('1'!X215)=0,\":\",SUM('1'!X215))","v":":"},{"$f":"+IF('1'!Y215<>\"\",+'1'!Y215,\"\")","v":""},{"$f":"IF(COUNT('1'!Z215)=0,\":\",SUM('1'!Z215))","v":":"},{"$f":"+IF('1'!AA215<>\"\",+'1'!AA215,\"\")","v":""},{"$f":"IF(COUNT('1'!AB215)=0,\":\",SUM('1'!AB215))","v":":"},{"$f":"+IF('1'!AC215<>\"\",+'1'!AC215,\"\")","v":""},{"$f":"IF(COUNT('1'!AD215)=0,\":\",SUM('1'!AD215))","v":":"},null,{"$f":"IF(COUNT('1'!AF215)=0,\":\",SUM('1'!AF215))","v":":"},{"$f":"+IF('1'!AG215<>\"\",+'1'!AG215,\"\")","v":""},{"$f":"IF(COUNT('1'!AH215)=0,\":\",SUM('1'!AH215))","v":":"},{"$f":"+IF('1'!AI215<>\"\",+'1'!AI215,\"\")","v":""},{"$f":"IF(COUNT('1'!AJ215)=0,\":\",SUM('1'!AJ215))","v":":"},{"$f":"+IF('1'!AK215<>\"\",+'1'!AK215,\"\")","v":""}]
["S1","TOTAL","EPS_P13",null,null,null,null,null,2025,{"$f":"IF(COUNT('1'!J216)=0,\":\",SUM('1'!J216))","v":":"},{"$f":"+IF('1'!K216<>\"\",+'1'!K216,\"\")","v":""},{"$f":"IF(COUNT('1'!L216)=0,\":\",SUM('1'!L216))","v":":"},{"$f":"+IF('1'!M216<>\"\",+'1'!M216,\"\")","v":""},{"$f":"IF(COUNT('1'!N216)=0,\":\",SUM('1'!N216))","v":":"},{"$f":"+IF('1'!O216<>\"\",+'1'!O216,\"\")","v":""},{"$f":"IF(COUNT('1'!P216)=0,\":\",SUM('1'!P216))","v":":"},{"$f":"+IF('1'!Q216<>\"\",+'1'!Q216,\"\")","v":""},{"$f":"IF(COUNT('1'!R216)=0,\":\",SUM('1'!R216))","v":":"},{"$f":"+IF('1'!S216<>\"\",+'1'!S216,\"\")","v":""},{"$f":"IF(COUNT('1'!T216)=0,\":\",SUM('1'!T216))","v":":"},{"$f":"+IF('1'!U216<>\"\",+'1'!U216,\"\")","v":""},{"$f":"IF(COUNT('1'!V216)=0,\":\",SUM('1'!V216))","v":":"},{"$f":"+IF('1'!W216<>\"\",+'1'!W216,\"\")","v":""},{"$f":"IF(COUNT('1'!X216)=0,\":\",SUM('1'!X216))","v":":"},{"$f":"+IF('1'!Y216<>\"\",+'1'!Y216,\"\")","v":""},{"$f":"IF(COUNT('1'!Z216)=0,\":\",SUM('1'!Z216))","v":":"},{"$f":"+IF('1'!AA216<>\"\",+'1'!AA216,\"\")","v":""},{"$f":"IF(COUNT('1'!AB216)=0,\":\",SUM('1'!AB216))","v":":"},{"$f":"+IF('1'!AC216<>\"\",+'1'!AC216,\"\")","v":""},{"$f":"IF(COUNT('1'!AD216)=0,\":\",SUM('1'!AD216))","v":":"},null,{"$f":"IF(COUNT('1'!AF216)=0,\":\",SUM('1'!AF216))","v":":"},{"$f":"+IF('1'!AG216<>\"\",+'1'!AG216,\"\")","v":""},{"$f":"IF(COUNT('1'!AH216)=0,\":\",SUM('1'!AH216))","v":":"},{"$f":"+IF('1'!AI216<>\"\",+'1'!AI216,\"\")","v":""},{"$f":"IF(COUNT('1'!AJ216)=0,\":\",SUM('1'!AJ216))","v":":"},{"$f":"+IF('1'!AK216<>\"\",+'1'!AK216,\"\")","v":""}]
["S1","TOTAL","EPS_P13",null,null,null,null,null,2026,{"$f":"IF(COUNT('1'!J217)=0,\":\",SUM('1'!J217))","v":":"},{"$f":"+IF('1'!K217<>\"\",+'1'!K217,\"\")","v":""},{"$f":"IF(COUNT('1'!L217)=0,\":\",SUM('1'!L217))","v":":"},{"$f":"+IF('1'!M217<>\"\",+'1'!M217,\"\")","v":""},{"$f":"IF(COUNT('1'!N217)=0,\":\",SUM('1'!N217))","v":":"},{"$f":"+IF('1'!O217<>\"\",+'1'!O217,\"\")","v":""},{"$f":"IF(COUNT('1'!P217)=0,\":\",SUM('1'!P217))","v":":"},{"$f":"+IF('1'!Q217<>\"\",+'1'!Q217,\"\")","v":""},{"$f":"IF(COUNT('1'!R217)=0,\":\",SUM('1'!R217))","v":":"},{"$f":"+IF('1'!S217<>\"\",+'1'!S217,\"\")","v":""},{"$f":"IF(COUNT('1'!T217)=0,\":\",SUM('1'!T217))","v":":"},{"$f":"+IF('1'!U217<>\"\",+'1'!U217,\"\")","v":""},{"$f":"IF(COUNT('1'!V217)=0,\":\",SUM('1'!V217))","v":":"},{"$f":"+IF('1'!W217<>\"\",+'1'!W217,\"\")","v":""},{"$f":"IF(COUNT('1'!X217)=0,\":\",SUM('1'!X217))","v":":"},{"$f":"+IF('1'!Y217<>\"\",+'1'!Y217,\"\")","v":""},{"$f":"IF(COUNT('1'!Z217)=0,\":\",SUM('1'!Z217))","v":":"},{"$f":"+IF('1'!AA217<>\"\",+'1'!AA217,\"\")","v":""},{"$f":"IF(COUNT('1'!AB217)=0,\":\",SUM('1'!AB217))","v":":"},{"$f":"+IF('1'!AC217<>\"\",+'1'!AC217,\"\")","v":""},{"$f":"IF(COUNT('1'!AD217)=0,\":\",SUM('1'!AD217))","v":":"},null,{"$f":"IF(COUNT('1'!AF217)=0,\":\",SUM('1'!AF217))","v":":"},{"$f":"+IF('1'!AG217<>\"\",+'1'!AG217,\"\")","v":""},{"$f":"IF(COUNT('1'!AH217)=0,\":\",SUM('1'!AH217))","v":":"},{"$f":"+IF('1'!AI217<>\"\",+'1'!AI217,\"\")","v":""},{"$f":"IF(COUNT('1'!AJ217)=0,\":\",SUM('1'!AJ217))","v":":"},{"$f":"+IF('1'!AK217<>\"\",+'1'!AK217,\"\")","v":""}]
["S1","TOTAL","EPS_P13",null,null,null,null,null,2027,{"$f":"IF(COUNT('1'!J218)=0,\":\",SUM('1'!J218))","v":":"},{"$f":"+IF('1'!K218<>\"\",+'1'!K218,\"\")","v":""},{"$f":"IF(COUNT('1'!L218)=0,\":\",SUM('1'!L218))","v":":"},{"$f":"+IF('1'!M218<>\"\",+'1'!M218,\"\")","v":""},{"$f":"IF(COUNT('1'!N218)=0,\":\",SUM('1'!N218))","v":":"},{"$f":"+IF('1'!O218<>\"\",+'1'!O218,\"\")","v":""},{"$f":"IF(COUNT('1'!P218)=0,\":\",SUM('1'!P218))","v":":"},{"$f":"+IF('1'!Q218<>\"\",+'1'!Q218,\"\")","v":""},{"$f":"IF(COUNT('1'!R218)=0,\":\",SUM('1'!R218))","v":":"},{"$f":"+IF('1'!S218<>\"\",+'1'!S218,\"\")","v":""},{"$f":"IF(COUNT('1'!T218)=0,\":\",SUM('1'!T218))","v":":"},{"$f":"+IF('1'!U218<>\"\",+'1'!U218,\"\")","v":""},{"$f":"IF(COUNT('1'!V218)=0,\":\",SUM('1'!V218))","v":":"},{"$f":"+IF('1'!W218<>\"\",+'1'!W218,\"\")","v":""},{"$f":"IF(COUNT('1'!X218)=0,\":\",SUM('1'!X218))","v":":"},{"$f":"+IF('1'!Y218<>\"\",+'1'!Y218,\"\")","v":""},{"$f":"IF(COUNT('1'!Z218)=0,\":\",SUM('1'!Z218))","v":":"},{"$f":"+IF('1'!AA218<>\"\",+'1'!AA218,\"\")","v":""},{"$f":"IF(COUNT('1'!AB218)=0,\":\",SUM('1'!AB218))","v":":"},{"$f":"+IF('1'!AC218<>\"\",+'1'!AC218,\"\")","v":""},{"$f":"IF(COUNT('1'!AD218)=0,\":\",SUM('1'!AD218))","v":":"},null,{"$f":"IF(COUNT('1'!AF218)=0,\":\",SUM('1'!AF218))","v":":"},{"$f":"+IF('1'!AG218<>\"\",+'1'!AG218,\"\")","v":""},{"$f":"IF(COUNT('1'!AH218)=0,\":\",SUM('1'!AH218))","v":":"},{"$f":"+IF('1'!AI218<>\"\",+'1'!AI218,\"\")","v":""},{"$f":"IF(COUNT('1'!AJ218)=0,\":\",SUM('1'!AJ218))","v":":"},{"$f":"+IF('1'!AK218<>\"\",+'1'!AK218,\"\")","v":""}]
["S1","TOTAL","EPS_P13",null,null,null,null,null,2028,{"$f":"IF(COUNT('1'!J219)=0,\":\",SUM('1'!J219))","v":":"},{"$f":"+IF('1'!K219<>\"\",+'1'!K219,\"\")","v":""},{"$f":"IF(COUNT('1'!L219)=0,\":\",SUM('1'!L219))","v":":"},{"$f":"+IF('1'!M219<>\"\",+'1'!M219,\"\")","v":""},{"$f":"IF(COUNT('1'!N219)=0,\":\",SUM('1'!N219))","v":":"},{"$f":"+IF('1'!O219<>\"\",+'1'!O219,\"\")","v":""},{"$f":"IF(COUNT('1'!P219)=0,\":\",SUM('1'!P219))","v":":"},{"$f":"+IF('1'!Q219<>\"\",+'1'!Q219,\"\")","v":""},{"$f":"IF(COUNT('1'!R219)=0,\":\",SUM('1'!R219))","v":":"},{"$f":"+IF('1'!S219<>\"\",+'1'!S219,\"\")","v":""},{"$f":"IF(COUNT('1'!T219)=0,\":\",SUM('1'!T219))","v":":"},{"$f":"+IF('1'!U219<>\"\",+'1'!U219,\"\")","v":""},{"$f":"IF(COUNT('1'!V219)=0,\":\",SUM('1'!V219))","v":":"},{"$f":"+IF('1'!W219<>\"\",+'1'!W219,\"\")","v":""},{"$f":"IF(COUNT('1'!X219)=0,\":\",SUM('1'!X219))","v":":"},{"$f":"+IF('1'!Y219<>\"\",+'1'!Y219,\"\")","v":""},{"$f":"IF(COUNT('1'!Z219)=0,\":\",SUM('1'!Z219))","v":":"},{"$f":"+IF('1'!AA219<>\"\",+'1'!AA219,\"\")","v":""},{"$f":"IF(COUNT('1'!AB219)=0,\":\",SUM('1'!AB219))","v":":"},{"$f":"+IF('1'!AC219<>\"\",+'1'!AC219,\"\")","v":""},{"$f":"IF(COUNT('1'!AD219)=0,\":\",SUM('1'!AD219))","v":":"},null,{"$f":"IF(COUNT('1'!AF219)=0,\":\",SUM('1'!AF219))","v":":"},{"$f":"+IF('1'!AG219<>\"\",+'1'!AG219,\"\")","v":""},{"$f":"IF(COUNT('1'!AH219)=0,\":\",SUM('1'!AH219))","v":":"},{"$f":"+IF('1'!AI219<>\"\",+'1'!AI219,\"\")","v":""},{"$f":"IF(COUNT('1'!AJ219)=0,\":\",SUM('1'!AJ219))","v":":"},{"$f":"+IF('1'!AK219<>\"\",+'1'!AK219,\"\")","v":""}]
["S1","TOTAL","EPS_P13",null,null,null,null,null,2029,{"$f":"IF(COUNT('1'!J220)=0,\":\",SUM('1'!J220))","v":":"},{"$f":"+IF('1'!K220<>\"\",+'1'!K220,\"\")","v":""},{"$f":"IF(COUNT('1'!L220)=0,\":\",SUM('1'!L220))","v":":"},{"$f":"+IF('1'!M220<>\"\",+'1'!M220,\"\")","v":""},{"$f":"IF(COUNT('1'!N220)=0,\":\",SUM('1'!N220))","v":":"},{"$f":"+IF('1'!O220<>\"\",+'1'!O220,\"\")","v":""},{"$f":"IF(COUNT('1'!P220)=0,\":\",SUM('1'!P220))","v":":"},{"$f":"+IF('1'!Q220<>\"\",+'1'!Q220,\"\")","v":""},{"$f":"IF(COUNT('1'!R220)=0,\":\",SUM('1'!R220))","v":":"},{"$f":"+IF('1'!S220<>\"\",+'1'!S220,\"\")","v":""},{"$f":"IF(COUNT('1'!T220)=0,\":\",SUM('1'!T220))","v":":"},{"$f":"+IF('1'!U220<>\"\",+'1'!U220,\"\")","v":""},{"$f":"IF(COUNT('1'!V220)=0,\":\",SUM('1'!V220))","v":":"},{"$f":"+IF('1'!W220<>\"\",+'1'!W220,\"\")","v":""},{"$f":"IF(COUNT('1'!X220)=0,\":\",SUM('1'!X220))","v":":"},{"$f":"+IF('1'!Y220<>\"\",+'1'!Y220,\"\")","v":""},{"$f":"IF(COUNT('1'!Z220)=0,\":\",SUM('1'!Z220))","v":":"},{"$f":"+IF('1'!AA220<>\"\",+'1'!AA220,\"\")","v":""},{"$f":"IF(COUNT('1'!AB220)=0,\":\",SUM('1'!AB220))","v":":"},{"$f":"+IF('1'!AC220<>\"\",+'1'!AC220,\"\")","v":""},{"$f":"IF(COUNT('1'!AD220)=0,\":\",SUM('1'!AD220))","v":":"},null,{"$f":"IF(COUNT('1'!AF220)=0,\":\",SUM('1'!AF220))","v":":"},{"$f":"+IF('1'!AG220<>\"\",+'1'!AG220,\"\")","v":""},{"$f":"IF(COUNT('1'!AH220)=0,\":\",SUM('1'!AH220))","v":":"},{"$f":"+IF('1'!AI220<>\"\",+'1'!AI220,\"\")","v":""},{"$f":"IF(COUNT('1'!AJ220)=0,\":\",SUM('1'!AJ220))","v":":"},{"$f":"+IF('1'!AK220<>\"\",+'1'!AK220,\"\")","v":""}]
["S1","TOTAL","EPS_P13",null,null,null,null,null,2030,{"$f":"IF(COUNT('1'!J221)=0,\":\",SUM('1'!J221))","v":":"},{"$f":"+IF('1'!K221<>\"\",+'1'!K221,\"\")","v":""},{"$f":"IF(COUNT('1'!L221)=0,\":\",SUM('1'!L221))","v":":"},{"$f":"+IF('1'!M221<>\"\",+'1'!M221,\"\")","v":""},{"$f":"IF(COUNT('1'!N221)=0,\":\",SUM('1'!N221))","v":":"},{"$f":"+IF('1'!O221<>\"\",+'1'!O221,\"\")","v":""},{"$f":"IF(COUNT('1'!P221)=0,\":\",SUM('1'!P221))","v":":"},{"$f":"+IF('1'!Q221<>\"\",+'1'!Q221,\"\")","v":""},{"$f":"IF(COUNT('1'!R221)=0,\":\",SUM('1'!R221))","v":":"},{"$f":"+IF('1'!S221<>\"\",+'1'!S221,\"\")","v":""},{"$f":"IF(COUNT('1'!T221)=0,\":\",SUM('1'!T221))","v":":"},{"$f":"+IF('1'!U221<>\"\",+'1'!U221,\"\")","v":""},{"$f":"IF(COUNT('1'!V221)=0,\":\",SUM('1'!V221))","v":":"},{"$f":"+IF('1'!W221<>\"\",+'1'!W221,\"\")","v":""},{"$f":"IF(COUNT('1'!X221)=0,\":\",SUM('1'!X221))","v":":"},{"$f":"+IF('1'!Y221<>\"\",+'1'!Y221,\"\")","v":""},{"$f":"IF(COUNT('1'!Z221)=0,\":\",SUM('1'!Z221))","v":":"},{"$f":"+IF('1'!AA221<>\"\",+'1'!AA221,\"\")","v":""},{"$f":"IF(COUNT('1'!AB221)=0,\":\",SUM('1'!AB221))","v":":"},{"$f":"+IF('1'!AC221<>\"\",+'1'!AC221,\"\")","v":""},{"$f":"IF(COUNT('1'!AD221)=0,\":\",SUM('1'!AD221))","v":":"},null,{"$f":"IF(COUNT('1'!AF221)=0,\":\",SUM('1'!AF221))","v":":"},{"$f":"+IF('1'!AG221<>\"\",+'1'!AG221,\"\")","v":""},{"$f":"IF(COUNT('1'!AH221)=0,\":\",SUM('1'!AH221))","v":":"},{"$f":"+IF('1'!AI221<>\"\",+'1'!AI221,\"\")","v":""},{"$f":"IF(COUNT('1'!AJ221)=0,\":\",SUM('1'!AJ221))","v":":"},{"$f":"+IF('1'!AK221<>\"\",+'1'!AK221,\"\")","v":""}]
["S1","TOTAL","EPS_P13",null,null,null,null,null,2031,{"$f":"IF(COUNT('1'!J222)=0,\":\",SUM('1'!J222))","v":":"},{"$f":"+IF('1'!K222<>\"\",+'1'!K222,\"\")","v":""},{"$f":"IF(COUNT('1'!L222)=0,\":\",SUM('1'!L222))","v":":"},{"$f":"+IF('1'!M222<>\"\",+'1'!M222,\"\")","v":""},{"$f":"IF(COUNT('1'!N222)=0,\":\",SUM('1'!N222))","v":":"},{"$f":"+IF('1'!O222<>\"\",+'1'!O222,\"\")","v":""},{"$f":"IF(COUNT('1'!P222)=0,\":\",SUM('1'!P222))","v":":"},{"$f":"+IF('1'!Q222<>\"\",+'1'!Q222,\"\")","v":""},{"$f":"IF(COUNT('1'!R222)=0,\":\",SUM('1'!R222))","v":":"},{"$f":"+IF('1'!S222<>\"\",+'1'!S222,\"\")","v":""},{"$f":"IF(COUNT('1'!T222)=0,\":\",SUM('1'!T222))","v":":"},{"$f":"+IF('1'!U222<>\"\",+'1'!U222,\"\")","v":""},{"$f":"IF(COUNT('1'!V222)=0,\":\",SUM('1'!V222))","v":":"},{"$f":"+IF('1'!W222<>\"\",+'1'!W222,\"\")","v":""},{"$f":"IF(COUNT('1'!X222)=0,\":\",SUM('1'!X222))","v":":"},{"$f":"+IF('1'!Y222<>\"\",+'1'!Y222,\"\")","v":""},{"$f":"IF(COUNT('1'!Z222)=0,\":\",SUM('1'!Z222))","v":":"},{"$f":"+IF('1'!AA222<>\"\",+'1'!AA222,\"\")","v":""},{"$f":"IF(COUNT('1'!AB222)=0,\":\",SUM('1'!AB222))","v":":"},{"$f":"+IF('1'!AC222<>\"\",+'1'!AC222,\"\")","v":""},{"$f":"IF(COUNT('1'!AD222)=0,\":\",SUM('1'!AD222))","v":":"},null,{"$f":"IF(COUNT('1'!AF222)=0,\":\",SUM('1'!AF222))","v":":"},{"$f":"+IF('1'!AG222<>\"\",+'1'!AG222,\"\")","v":""},{"$f":"IF(COUNT('1'!AH222)=0,\":\",SUM('1'!AH222))","v":":"},{"$f":"+IF('1'!AI222<>\"\",+'1'!AI222,\"\")","v":""},{"$f":"IF(COUNT('1'!AJ222)=0,\":\",SUM('1'!AJ222))","v":":"},{"$f":"+IF('1'!AK222<>\"\",+'1'!AK222,\"\")","v":""}]
["S1","TOTAL","EPS_P2_EPS",null," ( P2_EPS.4 ) Intermediate consumption of EP services / RM products for production of EP/RM services",null,null,null,2014,{"$f":"IF(COUNT('1'!J43,'2'!J43,'3'!J79)=0,\":\",SUM('1'!J43,'2'!J43,'3'!J79))","v":":"},{"$f":"'1'!K43&'2'!K61","v":""},{"$f":"IF(COUNT('1'!L43,'2'!L43,'3'!L79)=0,\":\",SUM('1'!L43,'2'!L43,'3'!L79))","v":":"},{"$f":"'1'!M43&'2'!M61","v":""},{"$f":"IF(COUNT('1'!N43,'2'!N43,'3'!N79)=0,\":\",SUM('1'!N43,'2'!N43,'3'!N79))","v":":"},{"$f":"'1'!O43&'2'!O61","v":""},{"$f":"IF(COUNT('1'!P43,'2'!P43,'3'!P79)=0,\":\",SUM('1'!P43,'2'!P43,'3'!P79))","v":":"},{"$f":"'1'!Q43&'2'!Q61","v":""},{"$f":"IF(COUNT('1'!R43,'2'!R43,'3'!R79)=0,\":\",SUM('1'!R43,'2'!R43,'3'!R79))","v":":"},{"$f":"'1'!S43&'2'!S61","v":""},{"$f":"IF(COUNT('1'!T43,'2'!T43,'3'!T79)=0,\":\",SUM('1'!T43,'2'!T43,'3'!T79))","v":":"},{"$f":"'1'!U43&'2'!U61","v":""},{"$f":"IF(COUNT('1'!V43,'2'!V43,'3'!V79)=0,\":\",SUM('1'!V43,'2'!V43,'3'!V79))","v":":"},{"$f":"'1'!W43&'2'!W61","v":""},{"$f":"IF(COUNT('1'!X43,'2'!X43,'3'!X79)=0,\":\",SUM('1'!X43,'2'!X43,'3'!X79))","v":":"},{"$f":"'1'!Y43&'2'!Y61","v":""},{"$f":"IF(COUNT('1'!Z43,'2'!Z43,'3'!Z79)=0,\":\",SUM('1'!Z43,'2'!Z43,'3'!Z79))","v":":"},{"$f":"'1'!AA43&'2'!AA61","v":""},{"$f":"IF(COUNT('1'!AB43,'2'!AB43,'3'!AB79)=0,\":\",SUM('1'!AB43,'2'!AB43,'3'!AB79))","v":":"},{"$f":"'1'!AC43&'2'!AC61","v":""},{"$f":"IF(COUNT('1'!AD43,'2'!AD43,'3'!AD79)=0,\":\",SUM('1'!AD43,'2'!AD43,'3'!AD79))","v":":"},null,{"$f":"IF(COUNT('1'!AF43,'2'!AF43,'3'!AF79)=0,\":\",SUM('1'!AF43,'2'!AF43,'3'!AF79))","v":":"},{"$f":"'1'!AG43&'2'!AG61","v":""},{"$f":"IF(COUNT('1'!AJ43,'2'!AH43,'3'!AH79)=0,\":\",SUM('1'!AJ43,'2'!AH43,'3'!AH79))","v":":"},{"$f":"'1'!AI43&'2'!AI61","v":""},{"$f":"IF(COUNT('1'!#REF!,'2'!AJ43,'3'!AJ79)=0,\":\",SUM('1'!#REF!,'2'!AJ43,'3'!AJ79))","v":":"},{"$f":"'1'!AK43&'2'!AK61","v":""}]
["S1","TOTAL","EPS_P2_EPS",null,"Intermediate consumption of EP services / RM products of corporations  producers and of general government' units as producers of EP services / RM products ",null,null,null,2015,{"$f":"IF(COUNT('1'!J44,'2'!J44,'3'!J80)=0,\":\",SUM('1'!J44,'2'!J44,'3'!J80))","v":":"},{"$f":"'1'!K44&'2'!K62","v":""},{"$f":"IF(COUNT('1'!L44,'2'!L44,'3'!L80)=0,\":\",SUM('1'!L44,'2'!L44,'3'!L80))","v":":"},{"$f":"'1'!M44&'2'!M62","v":""},{"$f":"IF(COUNT('1'!N44,'2'!N44,'3'!N80)=0,\":\",SUM('1'!N44,'2'!N44,'3'!N80))","v":":"},{"$f":"'1'!O44&'2'!O62","v":""},{"$f":"IF(COUNT('1'!P44,'2'!P44,'3'!P80)=0,\":\",SUM('1'!P44,'2'!P44,'3'!P80))","v":":"},{"$f":"'1'!Q44&'2'!Q62","v":""},{"$f":"IF(COUNT('1'!R44,'2'!R44,'3'!R80)=0,\":\",SUM('1'!R44,'2'!R44,'3'!R80))","v":":"},{"$f":"'1'!S44&'2'!S62","v":""},{"$f":"IF(COUNT('1'!T44,'2'!T44,'3'!T80)=0,\":\",SUM('1'!T44,'2'!T44,'3'!T80))","v":":"},{"$f":"'1'!U44&'2'!U62","v":""},{"$f":"IF(COUNT('1'!V44,'2'!V44,'3'!V80)=0,\":\",SUM('1'!V44,'2'!V44,'3'!V80))","v":":"},{"$f":"'1'!W44&'2'!W62","v":""},{"$f":"IF(COUNT('1'!X44,'2'!X44,'3'!X80)=0,\":\",SUM('1'!X44,'2'!X44,'3'!X80))","v":":"},{"$f":"'1'!Y44&'2'!Y62","v":""},{"$f":"IF(COUNT('1'!Z44,'2'!Z44,'3'!Z80)=0,\":\",SUM('1'!Z44,'2'!Z44,'3'!Z80))","v":":"},{"$f":"'1'!AA44&'2'!AA62","v":""},{"$f":"IF(COUNT('1'!AB44,'2'!AB44,'3'!AB80)=0,\":\",SUM('1'!AB44,'2'!AB44,'3'!AB80))","v":":"},{"$f":"'1'!AC44&'2'!AC62","v":""},{"$f":"IF(COUNT('1'!AD44,'2'!AD44,'3'!AD80)=0,\":\",SUM('1'!AD44,'2'!AD44,'3'!AD80))","v":":"},null,{"$f":"IF(COUNT('1'!AF44,'2'!AF44,'3'!AF80)=0,\":\",SUM('1'!AF44,'2'!AF44,'3'!AF80))","v":":"},{"$f":"'1'!AG44&'2'!AG62","v":""},{"$f":"IF(COUNT('1'!AJ44,'2'!AH44,'3'!AH80)=0,\":\",SUM('1'!AJ44,'2'!AH44,'3'!AH80))","v":":"},{"$f":"'1'!AI44&'2'!AI62","v":""},{"$f":"IF(COUNT('1'!#REF!,'2'!AJ44,'3'!AJ80)=0,\":\",SUM('1'!#REF!,'2'!AJ44,'3'!AJ80))","v":":"},{"$f":"'1'!AK44&'2'!AK62","v":""}]
["S1","TOTAL","EPS_P2_EPS",null,null,null,null,null,2016,{"$f":"IF(COUNT('1'!J45,'2'!J45,'3'!J81)=0,\":\",SUM('1'!J45,'2'!J45,'3'!J81))","v":":"},{"$f":"'1'!K45&'2'!K63","v":""},{"$f":"IF(COUNT('1'!L45,'2'!L45,'3'!L81)=0,\":\",SUM('1'!L45,'2'!L45,'3'!L81))","v":":"},{"$f":"'1'!M45&'2'!M63","v":""},{"$f":"IF(COUNT('1'!N45,'2'!N45,'3'!N81)=0,\":\",SUM('1'!N45,'2'!N45,'3'!N81))","v":":"},{"$f":"'1'!O45&'2'!O63","v":""},{"$f":"IF(COUNT('1'!P45,'2'!P45,'3'!P81)=0,\":\",SUM('1'!P45,'2'!P45,'3'!P81))","v":":"},{"$f":"'1'!Q45&'2'!Q63","v":""},{"$f":"IF(COUNT('1'!R45,'2'!R45,'3'!R81)=0,\":\",SUM('1'!R45,'2'!R45,'3'!R81))","v":":"},{"$f":"'1'!S45&'2'!S63","v":""},{"$f":"IF(COUNT('1'!T45,'2'!T45,'3'!T81)=0,\":\",SUM('1'!T45,'2'!T45,'3'!T81))","v":":"},{"$f":"'1'!U45&'2'!U63","v":""},{"$f":"IF(COUNT('1'!V45,'2'!V45,'3'!V81)=0,\":\",SUM('1'!V45,'2'!V45,'3'!V81))","v":":"},{"$f":"'1'!W45&'2'!W63","v":""},{"$f":"IF(COUNT('1'!X45,'2'!X45,'3'!X81)=0,\":\",SUM('1'!X45,'2'!X45,'3'!X81))","v":":"},{"$f":"'1'!Y45&'2'!Y63","v":""},{"$f":"IF(COUNT('1'!Z45,'2'!Z45,'3'!Z81)=0,\":\",SUM('1'!Z45,'2'!Z45,'3'!Z81))","v":":"},{"$f":"'1'!AA45&'2'!AA63","v":""},{"$f":"IF(COUNT('1'!AB45,'2'!AB45,'3'!AB81)=0,\":\",SUM('1'!AB45,'2'!AB45,'3'!AB81))","v":":"},{"$f":"'1'!AC45&'2'!AC63","v":""},{"$f":"IF(COUNT('1'!AD45,'2'!AD45,'3'!AD81)=0,\":\",SUM('1'!AD45,'2'!AD45,'3'!AD81))","v":":"},null,{"$f":"IF(COUNT('1'!AF45,'2'!AF45,'3'!AF81)=0,\":\",SUM('1'!AF45,'2'!AF45,'3'!AF81))","v":":"},{"$f":"'1'!AG45&'2'!AG63","v":""},{"$f":"IF(COUNT('1'!AJ45,'2'!AH45,'3'!AH81)=0,\":\",SUM('1'!AJ45,'2'!AH45,'3'!AH81))","v":":"},{"$f":"'1'!AI45&'2'!AI63","v":""},{"$f":"IF(COUNT('1'!#REF!,'2'!AJ45,'3'!AJ81)=0,\":\",SUM('1'!#REF!,'2'!AJ45,'3'!AJ81))","v":":"},{"$f":"'1'!AK45&'2'!AK63","v":""}]
["S1","TOTAL","EPS_P2_EPS",null,null,null,null,null,2017,{"$f":"IF(COUNT('1'!J46,'2'!J46,'3'!J82)=0,\":\",SUM('1'!J46,'2'!J46,'3'!J82))","v":":"},{"$f":"'1'!K46&'2'!K64","v":""},{"$f":"IF(COUNT('1'!L46,'2'!L46,'3'!L82)=0,\":\",SUM('1'!L46,'2'!L46,'3'!L82))","v":":"},{"$f":"'1'!M46&'2'!M64","v":""},{"$f":"IF(COUNT('1'!N46,'2'!N46,'3'!N82)=0,\":\",SUM('1'!N46,'2'!N46,'3'!N82))","v":":"},{"$f":"'1'!O46&'2'!O64","v":""},{"$f":"IF(COUNT('1'!P46,'2'!P46,'3'!P82)=0,\":\",SUM('1'!P46,'2'!P46,'3'!P82))","v":":"},{"$f":"'1'!Q46&'2'!Q64","v":""},{"$f":"IF(COUNT('1'!R46,'2'!R46,'3'!R82)=0,\":\",SUM('1'!R46,'2'!R46,'3'!R82))","v":":"},{"$f":"'1'!S46&'2'!S64","v":""},{"$f":"IF(COUNT('1'!T46,'2'!T46,'3'!T82)=0,\":\",SUM('1'!T46,'2'!T46,'3'!T82))","v":":"},{"$f":"'1'!U46&'2'!U64","v":""},{"$f":"IF(COUNT('1'!V46,'2'!V46,'3'!V82)=0,\":\",SUM('1'!V46,'2'!V46,'3'!V82))","v":":"},{"$f":"'1'!W46&'2'!W64","v":""},{"$f":"IF(COUNT('1'!X46,'2'!X46,'3'!X82)=0,\":\",SUM('1'!X46,'2'!X46,'3'!X82))","v":":"},{"$f":"'1'!Y46&'2'!Y64","v":""},{"$f":"IF(COUNT('1'!Z46,'2'!Z46,'3'!Z82)=0,\":\",SUM('1'!Z46,'2'!Z46,'3'!Z82))","v":":"},{"$f":"'1'!AA46&'2'!AA64","v":""},{"$f":"IF(COUNT('1'!AB46,'2'!AB46,'3'!AB82)=0,\":\",SUM('1'!AB46,'2'!AB46,'3'!AB82))","v":":"},{"$f":"'1'!AC46&'2'!AC64","v":""},{"$f":"IF(COUNT('1'!AD46,'2'!AD46,'3'!AD82)=0,\":\",SUM('1'!AD46,'2'!AD46,'3'!AD82))","v":":"},null,{"$f":"IF(COUNT('1'!AF46,'2'!AF46,'3'!AF82)=0,\":\",SUM('1'!AF46,'2'!AF46,'3'!AF82))","v":":"},{"$f":"'1'!AG46&'2'!AG64","v":""},{"$f":"IF(COUNT('1'!AJ46,'2'!AH46,'3'!AH82)=0,\":\",SUM('1'!AJ46,'2'!AH46,'3'!AH82))","v":":"},{"$f":"'1'!AI46&'2'!AI64","v":""},{"$f":"IF(COUNT('1'!#REF!,'2'!AJ46,'3'!AJ82)=0,\":\",SUM('1'!#REF!,'2'!AJ46,'3'!AJ82))","v":":"},{"$f":"'1'!AK46&'2'!AK64","v":""}]
["S1","TOTAL","EPS_P2_EPS",null,null,null,null,null,2018,{"$f":"IF(COUNT('1'!J47,'2'!J47,'3'!J83)=0,\":\",SUM('1'!J47,'2'!J47,'3'!J83))","v":":"},{"$f":"'1'!K47&'2'!K65","v":""},{"$f":"IF(COUNT('1'!L47,'2'!L47,'3'!L83)=0,\":\",SUM('1'!L47,'2'!L47,'3'!L83))","v":":"},{"$f":"'1'!M47&'2'!M65","v":""},{"$f":"IF(COUNT('1'!N47,'2'!N47,'3'!N83)=0,\":\",SUM('1'!N47,'2'!N47,'3'!N83))","v":":"},{"$f":"'1'!O47&'2'!O65","v":""},{"$f":"IF(COUNT('1'!P47,'2'!P47,'3'!P83)=0,\":\",SUM('1'!P47,'2'!P47,'3'!P83))","v":":"},{"$f":"'1'!Q47&'2'!Q65","v":""},{"$f":"IF(COUNT('1'!R47,'2'!R47,'3'!R83)=0,\":\",SUM('1'!R47,'2'!R47,'3'!R83))","v":":"},{"$f":"'1'!S47&'2'!S65","v":""},{"$f":"IF(COUNT('1'!T47,'2'!T47,'3'!T83)=0,\":\",SUM('1'!T47,'2'!T47,'3'!T83))","v":":"},{"$f":"'1'!U47&'2'!U65","v":""},{"$f":"IF(COUNT('1'!V47,'2'!V47,'3'!V83)=0,\":\",SUM('1'!V47,'2'!V47,'3'!V83))","v":":"},{"$f":"'1'!W47&'2'!W65","v":""},{"$f":"IF(COUNT('1'!X47,'2'!X47,'3'!X83)=0,\":\",SUM('1'!X47,'2'!X47,'3'!X83))","v":":"},{"$f":"'1'!Y47&'2'!Y65","v":""},{"$f":"IF(COUNT('1'!Z47,'2'!Z47,'3'!Z83)=0,\":\",SUM('1'!Z47,'2'!Z47,'3'!Z83))","v":":"},{"$f":"'1'!AA47&'2'!AA65","v":""},{"$f":"IF(COUNT('1'!AB47,'2'!AB47,'3'!AB83)=0,\":\",SUM('1'!AB47,'2'!AB47,'3'!AB83))","v":":"},{"$f":"'1'!AC47&'2'!AC65","v":""},{"$f":"IF(COUNT('1'!AD47,'2'!AD47,'3'!AD83)=0,\":\",SUM('1'!AD47,'2'!AD47,'3'!AD83))","v":":"},null,{"$f":"IF(COUNT('1'!AF47,'2'!AF47,'3'!AF83)=0,\":\",SUM('1'!AF47,'2'!AF47,'3'!AF83))","v":":"},{"$f":"'1'!AG47&'2'!AG65","v":""},{"$f":"IF(COUNT('1'!AJ47,'2'!AH47,'3'!AH83)=0,\":\",SUM('1'!AJ47,'2'!AH47,'3'!AH83))","v":":"},{"$f":"'1'!AI47&'2'!AI65","v":""},{"$f":"IF(COUNT('1'!#REF!,'2'!AJ47,'3'!AJ83)=0,\":\",SUM('1'!#REF!,'2'!AJ47,'3'!AJ83))","v":":"},{"$f":"'1'!AK47&'2'!AK65","v":""}]
["S1","TOTAL","EPS_P2_EPS",null,null,null,null,null,2019,{"$f":"IF(COUNT('1'!J48,'2'!J48,'3'!J84)=0,\":\",SUM('1'!J48,'2'!J48,'3'!J84))","v":":"},{"$f":"'1'!K48&'2'!K66","v":""},{"$f":"IF(COUNT('1'!L48,'2'!L48,'3'!L84)=0,\":\",SUM('1'!L48,'2'!L48,'3'!L84))","v":":"},{"$f":"'1'!M48&'2'!M66","v":""},{"$f":"IF(COUNT('1'!N48,'2'!N48,'3'!N84)=0,\":\",SUM('1'!N48,'2'!N48,'3'!N84))","v":":"},{"$f":"'1'!O48&'2'!O66","v":""},{"$f":"IF(COUNT('1'!P48,'2'!P48,'3'!P84)=0,\":\",SUM('1'!P48,'2'!P48,'3'!P84))","v":":"},{"$f":"'1'!Q48&'2'!Q66","v":""},{"$f":"IF(COUNT('1'!R48,'2'!R48,'3'!R84)=0,\":\",SUM('1'!R48,'2'!R48,'3'!R84))","v":":"},{"$f":"'1'!S48&'2'!S66","v":""},{"$f":"IF(COUNT('1'!T48,'2'!T48,'3'!T84)=0,\":\",SUM('1'!T48,'2'!T48,'3'!T84))","v":":"},{"$f":"'1'!U48&'2'!U66","v":""},{"$f":"IF(COUNT('1'!V48,'2'!V48,'3'!V84)=0,\":\",SUM('1'!V48,'2'!V48,'3'!V84))","v":":"},{"$f":"'1'!W48&'2'!W66","v":""},{"$f":"IF(COUNT('1'!X48,'2'!X48,'3'!X84)=0,\":\",SUM('1'!X48,'2'!X48,'3'!X84))","v":":"},{"$f":"'1'!Y48&'2'!Y66","v":""},{"$f":"IF(COUNT('1'!Z48,'2'!Z48,'3'!Z84)=0,\":\",SUM('1'!Z48,'2'!Z48,'3'!Z84))","v":":"},{"$f":"'1'!AA48&'2'!AA66","v":""},{"$f":"IF(COUNT('1'!AB48,'2'!AB48,'3'!AB84)=0,\":\",SUM('1'!AB48,'2'!AB48,'3'!AB84))","v":":"},{"$f":"'1'!AC48&'2'!AC66","v":""},{"$f":"IF(COUNT('1'!AD48,'2'!AD48,'3'!AD84)=0,\":\",SUM('1'!AD48,'2'!AD48,'3'!AD84))","v":":"},null,{"$f":"IF(COUNT('1'!AF48,'2'!AF48,'3'!AF84)=0,\":\",SUM('1'!AF48,'2'!AF48,'3'!AF84))","v":":"},{"$f":"'1'!AG48&'2'!AG66","v":""},{"$f":"IF(COUNT('1'!AJ48,'2'!AH48,'3'!AH84)=0,\":\",SUM('1'!AJ48,'2'!AH48,'3'!AH84))","v":":"},{"$f":"'1'!AI48&'2'!AI66","v":""},{"$f":"IF(COUNT('1'!#REF!,'2'!AJ48,'3'!AJ84)=0,\":\",SUM('1'!#REF!,'2'!AJ48,'3'!AJ84))","v":":"},{"$f":"'1'!AK48&'2'!AK66","v":""}]
["S1","TOTAL","EPS_P2_EPS",null,null,null,null,null,2020,{"$f":"IF(COUNT('1'!J49,'2'!J49,'3'!J85)=0,\":\",SUM('1'!J49,'2'!J49,'3'!J85))","v":":"},{"$f":"'1'!K49&'2'!K67","v":""},{"$f":"IF(COUNT('1'!L49,'2'!L49,'3'!L85)=0,\":\",SUM('1'!L49,'2'!L49,'3'!L85))","v":":"},{"$f":"'1'!M49&'2'!M67","v":""},{"$f":"IF(COUNT('1'!N49,'2'!N49,'3'!N85)=0,\":\",SUM('1'!N49,'2'!N49,'3'!N85))","v":":"},{"$f":"'1'!O49&'2'!O67","v":""},{"$f":"IF(COUNT('1'!P49,'2'!P49,'3'!P85)=0,\":\",SUM('1'!P49,'2'!P49,'3'!P85))","v":":"},{"$f":"'1'!Q49&'2'!Q67","v":""},{"$f":"IF(COUNT('1'!R49,'2'!R49,'3'!R85)=0,\":\",SUM('1'!R49,'2'!R49,'3'!R85))","v":":"},{"$f":"'1'!S49&'2'!S67","v":""},{"$f":"IF(COUNT('1'!T49,'2'!T49,'3'!T85)=0,\":\",SUM('1'!T49,'2'!T49,'3'!T85))","v":":"},{"$f":"'1'!U49&'2'!U67","v":""},{"$f":"IF(COUNT('1'!V49,'2'!V49,'3'!V85)=0,\":\",SUM('1'!V49,'2'!V49,'3'!V85))","v":":"},{"$f":"'1'!W49&'2'!W67","v":""},{"$f":"IF(COUNT('1'!X49,'2'!X49,'3'!X85)=0,\":\",SUM('1'!X49,'2'!X49,'3'!X85))","v":":"},{"$f":"'1'!Y49&'2'!Y67","v":""},{"$f":"IF(COUNT('1'!Z49,'2'!Z49,'3'!Z85)=0,\":\",SUM('1'!Z49,'2'!Z49,'3'!Z85))","v":":"},{"$f":"'1'!AA49&'2'!AA67","v":""},{"$f":"IF(COUNT('1'!AB49,'2'!AB49,'3'!AB85)=0,\":\",SUM('1'!AB49,'2'!AB49,'3'!AB85))","v":":"},{"$f":"'1'!AC49&'2'!AC67","v":""},{"$f":"IF(COUNT('1'!AD49,'2'!AD49,'3'!AD85)=0,\":\",SUM('1'!AD49,'2'!AD49,'3'!AD85))","v":":"},null,{"$f":"IF(COUNT('1'!AF49,'2'!AF49,'3'!AF85)=0,\":\",SUM('1'!AF49,'2'!AF49,'3'!AF85))","v":":"},{"$f":"'1'!AG49&'2'!AG67","v":""},{"$f":"IF(COUNT('1'!AJ49,'2'!AH49,'3'!AH85)=0,\":\",SUM('1'!AJ49,'2'!AH49,'3'!AH85))","v":":"},{"$f":"'1'!AI49&'2'!AI67","v":""},{"$f":"IF(COUNT('1'!#REF!,'2'!AJ49,'3'!AJ85)=0,\":\",SUM('1'!#REF!,'2'!AJ49,'3'!AJ85))","v":":"},{"$f":"'1'!AK49&'2'!AK67","v":""}]
["S1","TOTAL","EPS_P2_EPS",null,null,null,null,null,2021,{"$f":"IF(COUNT('1'!J50,'2'!J50,'3'!J86)=0,\":\",SUM('1'!J50,'2'!J50,'3'!J86))","v":":"},{"$f":"'1'!K50&'2'!K68","v":""},{"$f":"IF(COUNT('1'!L50,'2'!L50,'3'!L86)=0,\":\",SUM('1'!L50,'2'!L50,'3'!L86))","v":":"},{"$f":"'1'!M50&'2'!M68","v":""},{"$f":"IF(COUNT('1'!N50,'2'!N50,'3'!N86)=0,\":\",SUM('1'!N50,'2'!N50,'3'!N86))","v":":"},{"$f":"'1'!O50&'2'!O68","v":""},{"$f":"IF(COUNT('1'!P50,'2'!P50,'3'!P86)=0,\":\",SUM('1'!P50,'2'!P50,'3'!P86))","v":":"},{"$f":"'1'!Q50&'2'!Q68","v":""},{"$f":"IF(COUNT('1'!R50,'2'!R50,'3'!R86)=0,\":\",SUM('1'!R50,'2'!R50,'3'!R86))","v":":"},{"$f":"'1'!S50&'2'!S68","v":""},{"$f":"IF(COUNT('1'!T50,'2'!T50,'3'!T86)=0,\":\",SUM('1'!T50,'2'!T50,'3'!T86))","v":":"},{"$f":"'1'!U50&'2'!U68","v":""},{"$f":"IF(COUNT('1'!V50,'2'!V50,'3'!V86)=0,\":\",SUM('1'!V50,'2'!V50,'3'!V86))","v":":"},{"$f":"'1'!W50&'2'!W68","v":""},{"$f":"IF(COUNT('1'!X50,'2'!X50,'3'!X86)=0,\":\",SUM('1'!X50,'2'!X50,'3'!X86))","v":":"},{"$f":"'1'!Y50&'2'!Y68","v":""},{"$f":"IF(COUNT('1'!Z50,'2'!Z50,'3'!Z86)=0,\":\",SUM('1'!Z50,'2'!Z50,'3'!Z86))","v":":"},{"$f":"'1'!AA50&'2'!AA68","v":""},{"$f":"IF(COUNT('1'!AB50,'2'!AB50,'3'!AB86)=0,\":\",SUM('1'!AB50,'2'!AB50,'3'!AB86))","v":":"},{"$f":"'1'!AC50&'2'!AC68","v":""},{"$f":"IF(COUNT('1'!AD50,'2'!AD50,'3'!AD86)=0,\":\",SUM('1'!AD50,'2'!AD50,'3'!AD86))","v":":"},null,{"$f":"IF(COUNT('1'!AF50,'2'!AF50,'3'!AF86)=0,\":\",SUM('1'!AF50,'2'!AF50,'3'!AF86))","v":":"},{"$f":"'1'!AG50&'2'!AG68","v":""},{"$f":"IF(COUNT('1'!AJ50,'2'!AH50,'3'!AH86)=0,\":\",SUM('1'!AJ50,'2'!AH50,'3'!AH86))","v":":"},{"$f":"'1'!AI50&'2'!AI68","v":""},{"$f":"IF(COUNT('1'!#REF!,'2'!AJ50,'3'!AJ86)=0,\":\",SUM('1'!#REF!,'2'!AJ50,'3'!AJ86))","v":":"},{"$f":"'1'!AK50&'2'!AK68","v":""}]
["S1","TOTAL","EPS_P2_EPS",null,null,null,null,null,2022,{"$f":"IF(COUNT('1'!J51,'2'!J51,'3'!J87)=0,\":\",SUM('1'!J51,'2'!J51,'3'!J87))","v":":"},{"$f":"'1'!K51&'2'!K69","v":""},{"$f":"IF(COUNT('1'!L51,'2'!L51,'3'!L87)=0,\":\",SUM('1'!L51,'2'!L51,'3'!L87))","v":":"},{"$f":"'1'!M51&'2'!M69","v":""},{"$f":"IF(COUNT('1'!N51,'2'!N51,'3'!N87)=0,\":\",SUM('1'!N51,'2'!N51,'3'!N87))","v":":"},{"$f":"'1'!O51&'2'!O69","v":""},{"$f":"IF(COUNT('1'!P51,'2'!P51,'3'!P87)=0,\":\",SUM('1'!P51,'2'!P51,'3'!P87))","v":":"},{"$f":"'1'!Q51&'2'!Q69","v":""},{"$f":"IF(COUNT('1'!R51,'2'!R51,'3'!R87)=0,\":\",SUM('1'!R51,'2'!R51,'3'!R87))","v":":"},{"$f":"'1'!S51&'2'!S69","v":""},{"$f":"IF(COUNT('1'!T51,'2'!T51,'3'!T87)=0,\":\",SUM('1'!T51,'2'!T51,'3'!T87))","v":":"},{"$f":"'1'!U51&'2'!U69","v":""},{"$f":"IF(COUNT('1'!V51,'2'!V51,'3'!V87)=0,\":\",SUM('1'!V51,'2'!V51,'3'!V87))","v":":"},{"$f":"'1'!W51&'2'!W69","v":""},{"$f":"IF(COUNT('1'!X51,'2'!X51,'3'!X87)=0,\":\",SUM('1'!X51,'2'!X51,'3'!X87))","v":":"},{"$f":"'1'!Y51&'2'!Y69","v":""},{"$f":"IF(COUNT('1'!Z51,'2'!Z51,'3'!Z87)=0,\":\",SUM('1'!Z51,'2'!Z51,'3'!Z87))","v":":"},{"$f":"'1'!AA51&'2'!AA69","v":""},{"$f":"IF(COUNT('1'!AB51,'2'!AB51,'3'!AB87)=0,\":\",SUM('1'!AB51,'2'!AB51,'3'!AB87))","v":":"},{"$f":"'1'!AC51&'2'!AC69","v":""},{"$f":"IF(COUNT('1'!AD51,'2'!AD51,'3'!AD87)=0,\":\",SUM('1'!AD51,'2'!AD51,'3'!AD87))","v":":"},null,{"$f":"IF(COUNT('1'!AF51,'2'!AF51,'3'!AF87)=0,\":\",SUM('1'!AF51,'2'!AF51,'3'!AF87))","v":":"},{"$f":"'1'!AG51&'2'!AG69","v":""},{"$f":"IF(COUNT('1'!AJ51,'2'!AH51,'3'!AH87)=0,\":\",SUM('1'!AJ51,'2'!AH51,'3'!AH87))","v":":"},{"$f":"'1'!AI51&'2'!AI69","v":""},{"$f":"IF(COUNT('1'!#REF!,'2'!AJ51,'3'!AJ87)=0,\":\",SUM('1'!#REF!,'2'!AJ51,'3'!AJ87))","v":":"},{"$f":"'1'!AK51&'2'!AK69","v":""}]
["S1","TOTAL","EPS_P2_EPS",null,null,null,null,null,2023,{"$f":"IF(COUNT('1'!J52,'2'!J52,'3'!J88)=0,\":\",SUM('1'!J52,'2'!J52,'3'!J88))","v":":"},{"$f":"'1'!K52&'2'!K70","v":""},{"$f":"IF(COUNT('1'!L52,'2'!L52,'3'!L88)=0,\":\",SUM('1'!L52,'2'!L52,'3'!L88))","v":":"},{"$f":"'1'!M52&'2'!M70","v":""},{"$f":"IF(COUNT('1'!N52,'2'!N52,'3'!N88)=0,\":\",SUM('1'!N52,'2'!N52,'3'!N88))","v":":"},{"$f":"'1'!O52&'2'!O70","v":""},{"$f":"IF(COUNT('1'!P52,'2'!P52,'3'!P88)=0,\":\",SUM('1'!P52,'2'!P52,'3'!P88))","v":":"},{"$f":"'1'!Q52&'2'!Q70","v":""},{"$f":"IF(COUNT('1'!R52,'2'!R52,'3'!R88)=0,\":\",SUM('1'!R52,'2'!R52,'3'!R88))","v":":"},{"$f":"'1'!S52&'2'!S70","v":""},{"$f":"IF(COUNT('1'!T52,'2'!T52,'3'!T88)=0,\":\",SUM('1'!T52,'2'!T52,'3'!T88))","v":":"},{"$f":"'1'!U52&'2'!U70","v":""},{"$f":"IF(COUNT('1'!V52,'2'!V52,'3'!V88)=0,\":\",SUM('1'!V52,'2'!V52,'3'!V88))","v":":"},{"$f":"'1'!W52&'2'!W70","v":""},{"$f":"IF(COUNT('1'!X52,'2'!X52,'3'!X88)=0,\":\",SUM('1'!X52,'2'!X52,'3'!X88))","v":":"},{"$f":"'1'!Y52&'2'!Y70","v":""},{"$f":"IF(COUNT('1'!Z52,'2'!Z52,'3'!Z88)=0,\":\",SUM('1'!Z52,'2'!Z52,'3'!Z88))","v":":"},{"$f":"'1'!AA52&'2'!AA70","v":""},{"$f":"IF(COUNT('1'!AB52,'2'!AB52,'3'!AB88)=0,\":\",SUM('1'!AB52,'2'!AB52,'3'!AB88))","v":":"},{"$f":"'1'!AC52&'2'!AC70","v":""},{"$f":"IF(COUNT('1'!AD52,'2'!AD52,'3'!AD88)=0,\":\",SUM('1'!AD52,'2'!AD52,'3'!AD88))","v":":"},null,{"$f":"IF(COUNT('1'!AF52,'2'!AF52,'3'!AF88)=0,\":\",SUM('1'!AF52,'2'!AF52,'3'!AF88))","v":":"},{"$f":"'1'!AG52&'2'!AG70","v":""},{"$f":"IF(COUNT('1'!AJ52,'2'!AH52,'3'!AH88)=0,\":\",SUM('1'!AJ52,'2'!AH52,'3'!AH88))","v":":"},{"$f":"'1'!AI52&'2'!AI70","v":""},{"$f":"IF(COUNT('1'!#REF!,'2'!AJ52,'3'!AJ88)=0,\":\",SUM('1'!#REF!,'2'!AJ52,'3'!AJ88))","v":":"},{"$f":"'1'!AK52&'2'!AK70","v":""}]
["S1","TOTAL","EPS_P2_EPS",null,null,null,null,null,2024,{"$f":"IF(COUNT('1'!J53,'2'!J53,'3'!J89)=0,\":\",SUM('1'!J53,'2'!J53,'3'!J89))","v":":"},{"$f":"'1'!K53&'2'!K71","v":""},{"$f":"IF(COUNT('1'!L53,'2'!L53,'3'!L89)=0,\":\",SUM('1'!L53,'2'!L53,'3'!L89))","v":":"},{"$f":"'1'!M53&'2'!M71","v":""},{"$f":"IF(COUNT('1'!N53,'2'!N53,'3'!N89)=0,\":\",SUM('1'!N53,'2'!N53,'3'!N89))","v":":"},{"$f":"'1'!O53&'2'!O71","v":""},{"$f":"IF(COUNT('1'!P53,'2'!P53,'3'!P89)=0,\":\",SUM('1'!P53,'2'!P53,'3'!P89))","v":":"},{"$f":"'1'!Q53&'2'!Q71","v":""},{"$f":"IF(COUNT('1'!R53,'2'!R53,'3'!R89)=0,\":\",SUM('1'!R53,'2'!R53,'3'!R89))","v":":"},{"$f":"'1'!S53&'2'!S71","v":""},{"$f":"IF(COUNT('1'!T53,'2'!T53,'3'!T89)=0,\":\",SUM('1'!T53,'2'!T53,'3'!T89))","v":":"},{"$f":"'1'!U53&'2'!U71","v":""},{"$f":"IF(COUNT('1'!V53,'2'!V53,'3'!V89)=0,\":\",SUM('1'!V53,'2'!V53,'3'!V89))","v":":"},{"$f":"'1'!W53&'2'!W71","v":""},{"$f":"IF(COUNT('1'!X53,'2'!X53,'3'!X89)=0,\":\",SUM('1'!X53,'2'!X53,'3'!X89))","v":":"},{"$f":"'1'!Y53&'2'!Y71","v":""},{"$f":"IF(COUNT('1'!Z53,'2'!Z53,'3'!Z89)=0,\":\",SUM('1'!Z53,'2'!Z53,'3'!Z89))","v":":"},{"$f":"'1'!AA53&'2'!AA71","v":""},{"$f":"IF(COUNT('1'!AB53,'2'!AB53,'3'!AB89)=0,\":\",SUM('1'!AB53,'2'!AB53,'3'!AB89))","v":":"},{"$f":"'1'!AC53&'2'!AC71","v":""},{"$f":"IF(COUNT('1'!AD53,'2'!AD53,'3'!AD89)=0,\":\",SUM('1'!AD53,'2'!AD53,'3'!AD89))","v":":"},null,{"$f":"IF(COUNT('1'!AF53,'2'!AF53,'3'!AF89)=0,\":\",SUM('1'!AF53,'2'!AF53,'3'!AF89))","v":":"},{"$f":"'1'!AG53&'2'!AG71","v":""},{"$f":"IF(COUNT('1'!AJ53,'2'!AH53,'3'!AH89)=0,\":\",SUM('1'!AJ53,'2'!AH53,'3'!AH89))","v":":"},{"$f":"'1'!AI53&'2'!AI71","v":""},{"$f":"IF(COUNT('1'!#REF!,'2'!AJ53,'3'!AJ89)=0,\":\",SUM('1'!#REF!,'2'!AJ53,'3'!AJ89))","v":":"},{"$f":"'1'!AK53&'2'!AK71","v":""}]
["S1","TOTAL","EPS_P2_EPS",null,null,null,null,null,2025,{"$f":"IF(COUNT('1'!J54,'2'!J54,'3'!J90)=0,\":\",SUM('1'!J54,'2'!J54,'3'!J90))","v":":"},{"$f":"'1'!K54&'2'!K72","v":""},{"$f":"IF(COUNT('1'!L54,'2'!L54,'3'!L90)=0,\":\",SUM('1'!L54,'2'!L54,'3'!L90))","v":":"},{"$f":"'1'!M54&'2'!M72","v":""},{"$f":"IF(COUNT('1'!N54,'2'!N54,'3'!N90)=0,\":\",SUM('1'!N54,'2'!N54,'3'!N90))","v":":"},{"$f":"'1'!O54&'2'!O72","v":""},{"$f":"IF(COUNT('1'!P54,'2'!P54,'3'!P90)=0,\":\",SUM('1'!P54,'2'!P54,'3'!P90))","v":":"},{"$f":"'1'!Q54&'2'!Q72","v":""},{"$f":"IF(COUNT('1'!R54,'2'!R54,'3'!R90)=0,\":\",SUM('1'!R54,'2'!R54,'3'!R90))","v":":"},{"$f":"'1'!S54&'2'!S72","v":""},{"$f":"IF(COUNT('1'!T54,'2'!T54,'3'!T90)=0,\":\",SUM('1'!T54,'2'!T54,'3'!T90))","v":":"},{"$f":"'1'!U54&'2'!U72","v":""},{"$f":"IF(COUNT('1'!V54,'2'!V54,'3'!V90)=0,\":\",SUM('1'!V54,'2'!V54,'3'!V90))","v":":"},{"$f":"'1'!W54&'2'!W72","v":""},{"$f":"IF(COUNT('1'!X54,'2'!X54,'3'!X90)=0,\":\",SUM('1'!X54,'2'!X54,'3'!X90))","v":":"},{"$f":"'1'!Y54&'2'!Y72","v":""},{"$f":"IF(COUNT('1'!Z54,'2'!Z54,'3'!Z90)=0,\":\",SUM('1'!Z54,'2'!Z54,'3'!Z90))","v":":"},{"$f":"'1'!AA54&'2'!AA72","v":""},{"$f":"IF(COUNT('1'!AB54,'2'!AB54,'3'!AB90)=0,\":\",SUM('1'!AB54,'2'!AB54,'3'!AB90))","v":":"},{"$f":"'1'!AC54&'2'!AC72","v":""},{"$f":"IF(COUNT('1'!AD54,'2'!AD54,'3'!AD90)=0,\":\",SUM('1'!AD54,'2'!AD54,'3'!AD90))","v":":"},null,{"$f":"IF(COUNT('1'!AF54,'2'!AF54,'3'!AF90)=0,\":\",SUM('1'!AF54,'2'!AF54,'3'!AF90))","v":":"},{"$f":"'1'!AG54&'2'!AG72","v":""},{"$f":"IF(COUNT('1'!AJ54,'2'!AH54,'3'!AH90)=0,\":\",SUM('1'!AJ54,'2'!AH54,'3'!AH90))","v":":"},{"$f":"'1'!AI54&'2'!AI72","v":""},{"$f":"IF(COUNT('1'!#REF!,'2'!AJ54,'3'!AJ90)=0,\":\",SUM('1'!#REF!,'2'!AJ54,'3'!AJ90))","v":":"},{"$f":"'1'!AK54&'2'!AK72","v":""}]
["S1","TOTAL","EPS_P2_EPS",null,null,null,null,null,2026,{"$f":"IF(COUNT('1'!J55,'2'!J55,'3'!J91)=0,\":\",SUM('1'!J55,'2'!J55,'3'!J91))","v":":"},{"$f":"'1'!K55&'2'!K73","v":""},{"$f":"IF(COUNT('1'!L55,'2'!L55,'3'!L91)=0,\":\",SUM('1'!L55,'2'!L55,'3'!L91))","v":":"},{"$f":"'1'!M55&'2'!M73","v":""},{"$f":"IF(COUNT('1'!N55,'2'!N55,'3'!N91)=0,\":\",SUM('1'!N55,'2'!N55,'3'!N91))","v":":"},{"$f":"'1'!O55&'2'!O73","v":""},{"$f":"IF(COUNT('1'!P55,'2'!P55,'3'!P91)=0,\":\",SUM('1'!P55,'2'!P55,'3'!P91))","v":":"},{"$f":"'1'!Q55&'2'!Q73","v":""},{"$f":"IF(COUNT('1'!R55,'2'!R55,'3'!R91)=0,\":\",SUM('1'!R55,'2'!R55,'3'!R91))","v":":"},{"$f":"'1'!S55&'2'!S73","v":""},{"$f":"IF(COUNT('1'!T55,'2'!T55,'3'!T91)=0,\":\",SUM('1'!T55,'2'!T55,'3'!T91))","v":":"},{"$f":"'1'!U55&'2'!U73","v":""},{"$f":"IF(COUNT('1'!V55,'2'!V55,'3'!V91)=0,\":\",SUM('1'!V55,'2'!V55,'3'!V91))","v":":"},{"$f":"'1'!W55&'2'!W73","v":""},{"$f":"IF(COUNT('1'!X55,'2'!X55,'3'!X91)=0,\":\",SUM('1'!X55,'2'!X55,'3'!X91))","v":":"},{"$f":"'1'!Y55&'2'!Y73","v":""},{"$f":"IF(COUNT('1'!Z55,'2'!Z55,'3'!Z91)=0,\":\",SUM('1'!Z55,'2'!Z55,'3'!Z91))","v":":"},{"$f":"'1'!AA55&'2'!AA73","v":""},{"$f":"IF(COUNT('1'!AB55,'2'!AB55,'3'!AB91)=0,\":\",SUM('1'!AB55,'2'!AB55,'3'!AB91))","v":":"},{"$f":"'1'!AC55&'2'!AC73","v":""},{"$f":"IF(COUNT('1'!AD55,'2'!AD55,'3'!AD91)=0,\":\",SUM('1'!AD55,'2'!AD55,'3'!AD91))","v":":"},null,{"$f":"IF(COUNT('1'!AF55,'2'!AF55,'3'!AF91)=0,\":\",SUM('1'!AF55,'2'!AF55,'3'!AF91))","v":":"},{"$f":"'1'!AG55&'2'!AG73","v":""},{"$f":"IF(COUNT('1'!AJ55,'2'!AH55,'3'!AH91)=0,\":\",SUM('1'!AJ55,'2'!AH55,'3'!AH91))","v":":"},{"$f":"'1'!AI55&'2'!AI73","v":""},{"$f":"IF(COUNT('1'!#REF!,'2'!AJ55,'3'!AJ91)=0,\":\",SUM('1'!#REF!,'2'!AJ55,'3'!AJ91))","v":":"},{"$f":"'1'!AK55&'2'!AK73","v":""}]
["S1","TOTAL","EPS_P2_EPS",null,null,null,null,null,2027,{"$f":"IF(COUNT('1'!J56,'2'!J56,'3'!J92)=0,\":\",SUM('1'!J56,'2'!J56,'3'!J92))","v":":"},{"$f":"'1'!K56&'2'!K74","v":""},{"$f":"IF(COUNT('1'!L56,'2'!L56,'3'!L92)=0,\":\",SUM('1'!L56,'2'!L56,'3'!L92))","v":":"},{"$f":"'1'!M56&'2'!M74","v":""},{"$f":"IF(COUNT('1'!N56,'2'!N56,'3'!N92)=0,\":\",SUM('1'!N56,'2'!N56,'3'!N92))","v":":"},{"$f":"'1'!O56&'2'!O74","v":""},{"$f":"IF(COUNT('1'!P56,'2'!P56,'3'!P92)=0,\":\",SUM('1'!P56,'2'!P56,'3'!P92))","v":":"},{"$f":"'1'!Q56&'2'!Q74","v":""},{"$f":"IF(COUNT('1'!R56,'2'!R56,'3'!R92)=0,\":\",SUM('1'!R56,'2'!R56,'3'!R92))","v":":"},{"$f":"'1'!S56&'2'!S74","v":""},{"$f":"IF(COUNT('1'!T56,'2'!T56,'3'!T92)=0,\":\",SUM('1'!T56,'2'!T56,'3'!T92))","v":":"},{"$f":"'1'!U56&'2'!U74","v":""},{"$f":"IF(COUNT('1'!V56,'2'!V56,'3'!V92)=0,\":\",SUM('1'!V56,'2'!V56,'3'!V92))","v":":"},{"$f":"'1'!W56&'2'!W74","v":""},{"$f":"IF(COUNT('1'!X56,'2'!X56,'3'!X92)=0,\":\",SUM('1'!X56,'2'!X56,'3'!X92))","v":":"},{"$f":"'1'!Y56&'2'!Y74","v":""},{"$f":"IF(COUNT('1'!Z56,'2'!Z56,'3'!Z92)=0,\":\",SUM('1'!Z56,'2'!Z56,'3'!Z92))","v":":"},{"$f":"'1'!AA56&'2'!AA74","v":""},{"$f":"IF(COUNT('1'!AB56,'2'!AB56,'3'!AB92)=0,\":\",SUM('1'!AB56,'2'!AB56,'3'!AB92))","v":":"},{"$f":"'1'!AC56&'2'!AC74","v":""},{"$f":"IF(COUNT('1'!AD56,'2'!AD56,'3'!AD92)=0,\":\",SUM('1'!AD56,'2'!AD56,'3'!AD92))","v":":"},null,{"$f":"IF(COUNT('1'!AF56,'2'!AF56,'3'!AF92)=0,\":\",SUM('1'!AF56,'2'!AF56,'3'!AF92))","v":":"},{"$f":"'1'!AG56&'2'!AG74","v":""},{"$f":"IF(COUNT('1'!AJ56,'2'!AH56,'3'!AH92)=0,\":\",SUM('1'!AJ56,'2'!AH56,'3'!AH92))","v":":"},{"$f":"'1'!AI56&'2'!AI74","v":""},{"$f":"IF(COUNT('1'!#REF!,'2'!AJ56,'3'!AJ92)=0,\":\",SUM('1'!#REF!,'2'!AJ56,'3'!AJ92))","v":":"},{"$f":"'1'!AK56&'2'!AK74","v":""}]
["S1","TOTAL","EPS_P2_EPS",null,null,null,null,null,2028,{"$f":"IF(COUNT('1'!J57,'2'!J57,'3'!J93)=0,\":\",SUM('1'!J57,'2'!J57,'3'!J93))","v":":"},{"$f":"'1'!K57&'2'!K75","v":""},{"$f":"IF(COUNT('1'!L57,'2'!L57,'3'!L93)=0,\":\",SUM('1'!L57,'2'!L57,'3'!L93))","v":":"},{"$f":"'1'!M57&'2'!M75","v":""},{"$f":"IF(COUNT('1'!N57,'2'!N57,'3'!N93)=0,\":\",SUM('1'!N57,'2'!N57,'3'!N93))","v":":"},{"$f":"'1'!O57&'2'!O75","v":""},{"$f":"IF(COUNT('1'!P57,'2'!P57,'3'!P93)=0,\":\",SUM('1'!P57,'2'!P57,'3'!P93))","v":":"},{"$f":"'1'!Q57&'2'!Q75","v":""},{"$f":"IF(COUNT('1'!R57,'2'!R57,'3'!R93)=0,\":\",SUM('1'!R57,'2'!R57,'3'!R93))","v":":"},{"$f":"'1'!S57&'2'!S75","v":""},{"$f":"IF(COUNT('1'!T57,'2'!T57,'3'!T93)=0,\":\",SUM('1'!T57,'2'!T57,'3'!T93))","v":":"},{"$f":"'1'!U57&'2'!U75","v":""},{"$f":"IF(COUNT('1'!V57,'2'!V57,'3'!V93)=0,\":\",SUM('1'!V57,'2'!V57,'3'!V93))","v":":"},{"$f":"'1'!W57&'2'!W75","v":""},{"$f":"IF(COUNT('1'!X57,'2'!X57,'3'!X93)=0,\":\",SUM('1'!X57,'2'!X57,'3'!X93))","v":":"},{"$f":"'1'!Y57&'2'!Y75","v":""},{"$f":"IF(COUNT('1'!Z57,'2'!Z57,'3'!Z93)=0,\":\",SUM('1'!Z57,'2'!Z57,'3'!Z93))","v":":"},{"$f":"'1'!AA57&'2'!AA75","v":""},{"$f":"IF(COUNT('1'!AB57,'2'!AB57,'3'!AB93)=0,\":\",SUM('1'!AB57,'2'!AB57,'3'!AB93))","v":":"},{"$f":"'1'!AC57&'2'!AC75","v":""},{"$f":"IF(COUNT('1'!AD57,'2'!AD57,'3'!AD93)=0,\":\",SUM('1'!AD57,'2'!AD57,'3'!AD93))","v":":"},null,{"$f":"IF(COUNT('1'!AF57,'2'!AF57,'3'!AF93)=0,\":\",SUM('1'!AF57,'2'!AF57,'3'!AF93))","v":":"},{"$f":"'1'!AG57&'2'!AG75","v":""},{"$f":"IF(COUNT('1'!AJ57,'2'!AH57,'3'!AH93)=0,\":\",SUM('1'!AJ57,'2'!AH57,'3'!AH93))","v":":"},{"$f":"'1'!AI57&'2'!AI75","v":""},{"$f":"IF(COUNT('1'!#REF!,'2'!AJ57,'3'!AJ93)=0,\":\",SUM('1'!#REF!,'2'!AJ57,'3'!AJ93))","v":":"},{"$f":"'1'!AK57&'2'!AK75","v":""}]
["S1","TOTAL","EPS_P2_EPS",null,null,null,null,null,2029,{"$f":"IF(COUNT('1'!J58,'2'!J76)=0,\":\",SUM('1'!J58,'2'!J76))","v":":"},{"$f":"'1'!K58&'2'!K76","v":""},{"$f":"IF(COUNT('1'!L58,'2'!L76)=0,\":\",SUM('1'!L58,'2'!L76))","v":":"},{"$f":"'1'!M58&'2'!M76","v":""},{"$f":"IF(COUNT('1'!N58,'2'!N76)=0,\":\",SUM('1'!N58,'2'!N76))","v":":"},{"$f":"'1'!O58&'2'!O76","v":""},{"$f":"IF(COUNT('1'!P58,'2'!P76)=0,\":\",SUM('1'!P58,'2'!P76))","v":":"},{"$f":"'1'!Q58&'2'!Q76","v":""},{"$f":"IF(COUNT('1'!R58,'2'!R76)=0,\":\",SUM('1'!R58,'2'!R76))","v":":"},{"$f":"'1'!S58&'2'!S76","v":""},{"$f":"IF(COUNT('1'!T58,'2'!T76)=0,\":\",SUM('1'!T58,'2'!T76))","v":":"},{"$f":"'1'!U58&'2'!U76","v":""},{"$f":"IF(COUNT('1'!V58,'2'!V76)=0,\":\",SUM('1'!V58,'2'!V76))","v":":"},{"$f":"'1'!W58&'2'!W76","v":""},{"$f":"IF(COUNT('1'!X58,'2'!X76)=0,\":\",SUM('1'!X58,'2'!X76))","v":":"},{"$f":"'1'!Y58&'2'!Y76","v":""},{"$f":"IF(COUNT('1'!Z58,'2'!Z76)=0,\":\",SUM('1'!Z58,'2'!Z76))","v":":"},{"$f":"'1'!AA58&'2'!AA76","v":""},{"$f":"IF(COUNT('1'!AB58,'2'!AB76)=0,\":\",SUM('1'!AB58,'2'!AB76))","v":":"},{"$f":"'1'!AC58&'2'!AC76","v":""},{"$f":"IF(COUNT('1'!X256,'1'!Z256,'1'!AB256,'1'!AD256,'2'!X256,'2'!Z256,'2'!AB256)=0,\":\",SUM('1'!X256,'1'!Z256,'1'!AB256,'1'!AD256,'2'!X256,'2'!Z256,'2'!AB256))","v":":"},null,{"$f":"IF(COUNT('1'!AF58,'2'!AF76)=0,\":\",SUM('1'!AF58,'2'!AF76))","v":":"},{"$f":"'1'!AG58&'2'!AG76","v":""},{"$f":"IF(COUNT('1'!AH58,'2'!AH76)=0,\":\",SUM('1'!AH58,'2'!AH76))","v":":"},{"$f":"'1'!AI58&'2'!AI76","v":""},{"$f":"IF(COUNT('1'!AJ58,'2'!AJ76)=0,\":\",SUM('1'!AJ58,'2'!AJ76))","v":":"},{"$f":"'1'!AK58&'2'!AK76","v":""}]
["S1","TOTAL","EPS_P2_EPS",null,null,null,null,null,2030,{"$f":"IF(COUNT('1'!J59,'2'!J77)=0,\":\",SUM('1'!J59,'2'!J77))","v":":"},{"$f":"'1'!K59&'2'!K77","v":""},{"$f":"IF(COUNT('1'!L59,'2'!L77)=0,\":\",SUM('1'!L59,'2'!L77))","v":":"},{"$f":"'1'!M59&'2'!M77","v":""},{"$f":"IF(COUNT('1'!N59,'2'!N77)=0,\":\",SUM('1'!N59,'2'!N77))","v":":"},{"$f":"'1'!O59&'2'!O77","v":""},{"$f":"IF(COUNT('1'!P59,'2'!P77)=0,\":\",SUM('1'!P59,'2'!P77))","v":":"},{"$f":"'1'!Q59&'2'!Q77","v":""},{"$f":"IF(COUNT('1'!R59,'2'!R77)=0,\":\",SUM('1'!R59,'2'!R77))","v":":"},{"$f":"'1'!S59&'2'!S77","v":""},{"$f":"IF(COUNT('1'!T59,'2'!T77)=0,\":\",SUM('1'!T59,'2'!T77))","v":":"},{"$f":"'1'!U59&'2'!U77","v":""},{"$f":"IF(COUNT('1'!V59,'2'!V77)=0,\":\",SUM('1'!V59,'2'!V77))","v":":"},{"$f":"'1'!W59&'2'!W77","v":""},{"$f":"IF(COUNT('1'!X59,'2'!X77)=0,\":\",SUM('1'!X59,'2'!X77))","v":":"},{"$f":"'1'!Y59&'2'!Y77","v":""},{"$f":"IF(COUNT('1'!Z59,'2'!Z77)=0,\":\",SUM('1'!Z59,'2'!Z77))","v":":"},{"$f":"'1'!AA59&'2'!AA77","v":""},{"$f":"IF(COUNT('1'!AB59,'2'!AB77)=0,\":\",SUM('1'!AB59,'2'!AB77))","v":":"},{"$f":"'1'!AC59&'2'!AC77","v":""},{"$f":"IF(COUNT('1'!X257,'1'!Z257,'1'!AB257,'1'!AD257,'2'!X257,'2'!Z257,'2'!AB257)=0,\":\",SUM('1'!X257,'1'!Z257,'1'!AB257,'1'!AD257,'2'!X257,'2'!Z257,'2'!AB257))","v":":"},null,{"$f":"IF(COUNT('1'!AF59,'2'!AF77)=0,\":\",SUM('1'!AF59,'2'!AF77))","v":":"},{"$f":"'1'!AG59&'2'!AG77","v":""},{"$f":"IF(COUNT('1'!AH59,'2'!AH77)=0,\":\",SUM('1'!AH59,'2'!AH77))","v":":"},{"$f":"'1'!AI59&'2'!AI77","v":""},{"$f":"IF(COUNT('1'!AJ59,'2'!AJ77)=0,\":\",SUM('1'!AJ59,'2'!AJ77))","v":":"},{"$f":"'1'!AK59&'2'!AK77","v":""}]
["S1","TOTAL","EPS_P2_EPS",null,null,null,null,null,2031,{"$f":"IF(COUNT('1'!J60,'2'!J78)=0,\":\",SUM('1'!J60,'2'!J78))","v":":"},{"$f":"'1'!K60&'2'!K78","v":""},{"$f":"IF(COUNT('1'!L60,'2'!L78)=0,\":\",SUM('1'!L60,'2'!L78))","v":":"},{"$f":"'1'!M60&'2'!M78","v":""},{"$f":"IF(COUNT('1'!N60,'2'!N78)=0,\":\",SUM('1'!N60,'2'!N78))","v":":"},{"$f":"'1'!O60&'2'!O78","v":""},{"$f":"IF(COUNT('1'!P60,'2'!P78)=0,\":\",SUM('1'!P60,'2'!P78))","v":":"},{"$f":"'1'!Q60&'2'!Q78","v":""},{"$f":"IF(COUNT('1'!R60,'2'!R78)=0,\":\",SUM('1'!R60,'2'!R78))","v":":"},{"$f":"'1'!S60&'2'!S78","v":""},{"$f":"IF(COUNT('1'!T60,'2'!T78)=0,\":\",SUM('1'!T60,'2'!T78))","v":":"},{"$f":"'1'!U60&'2'!U78","v":""},{"$f":"IF(COUNT('1'!V60,'2'!V78)=0,\":\",SUM('1'!V60,'2'!V78))","v":":"},{"$f":"'1'!W60&'2'!W78","v":""},{"$f":"IF(COUNT('1'!X60,'2'!X78)=0,\":\",SUM('1'!X60,'2'!X78))","v":":"},{"$f":"'1'!Y60&'2'!Y78","v":""},{"$f":"IF(COUNT('1'!Z60,'2'!Z78)=0,\":\",SUM('1'!Z60,'2'!Z78))","v":":"},{"$f":"'1'!AA60&'2'!AA78","v":""},{"$f":"IF(COUNT('1'!AB60,'2'!AB78)=0,\":\",SUM('1'!AB60,'2'!AB78))","v":":"},{"$f":"'1'!AC60&'2'!AC78","v":""},{"$f":"IF(COUNT('1'!X258,'1'!Z258,'1'!AB258,'1'!AD258,'2'!X258,'2'!Z258,'2'!AB258)=0,\":\",SUM('1'!X258,'1'!Z258,'1'!AB258,'1'!AD258,'2'!X258,'2'!Z258,'2'!AB258))","v":":"},null,{"$f":"IF(COUNT('1'!AF60,'2'!AF78)=0,\":\",SUM('1'!AF60,'2'!AF78))","v":":"},{"$f":"'1'!AG60&'2'!AG78","v":""},{"$f":"IF(COUNT('1'!AH60,'2'!AH78)=0,\":\",SUM('1'!AH60,'2'!AH78))","v":":"},{"$f":"'1'!AI60&'2'!AI78","v":""},{"$f":"IF(COUNT('1'!AJ60,'2'!AJ78)=0,\":\",SUM('1'!AJ60,'2'!AJ78))","v":":"},{"$f":"'1'!AK60&'2'!AK78","v":""}]
["S1","TOTAL","P7_EPS",null,"( P7.4 ) Imports of EP services / RM products",null,null,null,2014,"-",null,"-",null,":",null,":",null,":",null,"-",null,"-",null,":",null,":",null,":",null,"-",null,{"$f":"IF(COUNT(N97,P97,R97)=0,\":\",SUM(N97,P97,R97))","v":":"},null,":",null,":"]
["S1","TOTAL","P7_EPS",null,null,null,null,null,2015,"-",null,"-",null,":",null,":",null,":",null,"-",null,"-",null,":",null,":",null,":",null,"-",null,":",null,":",null,":"]
["S1","TOTAL","P7_EPS",null,null,null,null,null,2016,"-",null,"-",null,":",null,":",null,":",null,"-",null,"-",null,":",null,":",null,":",null,"-",null,":",null,":",null,":"]
["S1","TOTAL","P7_EPS",null,null,null,null,null,2017,"-",null,"-",null,":",null,":",null,":",null,"-",null,"-",null,":",null,":",null,":",null,"-",null,{"$f":"IF(COUNT(N100,P100,R100)=0,\":\",SUM(N100,P100,R100))","v":":"},null,":",null,":"]
["S1","TOTAL","P7_EPS",null,null,null,null,null,2018,"-",null,"-",null,":",null,":",null,":",null,"-",null,"-",null,":",null,":",null,":",null,"-",null,":",null,":",null,":"]
["S1","TOTAL","P7_EPS",null,null,null,null,null,2019,"-",null,"-",null,":",null,null,null,":",null,"-",null,"-",null,null,null,null,null,null,null,"-",null,":",null,":",null,":"]
["S1","TOTAL","P7_EPS",null,null,null,null,null,2020,"-",null,"-",null,":",null,":",null,":",null,"-",null,"-",null,":",null,":",null,":",null,"-",null,":",null,":",null,":"]
["S1","TOTAL","P7_EPS",null,null,null,null,null,2021,"-",null,"-",null,":",null,":",null,":",null,"-",null,"-",null,":",null,":",null,":",null,"-",null,":",null,":",null,":"]
["S1","TOTAL","P7_EPS",null,null,null,null,null,2022,"-",null,"-",null,":",null,":",null,":",null,"-",null,"-",null,":",null,":",null,":",null,"-",null,":",null,":",null,":"]
["S1","TOTAL","P7_EPS",null,null,null,null,null,2023,"-",null,"-",null,":",null,":",null,":",null,"-",null,"-",null,":",null,":",null,":",null,"-",null,":",null,":",null,":"]
["S1","TOTAL","P7_EPS",null,null,null,null,null,2024,"-",null,"-",null,":",null,":",null,":",null,"-",null,"-",null,":",null,":",null,":",null,"-",null,":",null,":",null,":"]
["S1","TOTAL","P7_EPS",null,null,null,null,null,2025,"-",null,"-",null,":",null,":",null,":",null,"-",null,"-",null,":",null,":",null,":",null,"-",null,":",null,":",null,":"]
["S1","TOTAL","P7_EPS",null,null,null,null,null,2026,"-",null,"-",null,":",null,":",null,":",null,"-",null,"-",null,":",null,":",null,":",null,"-",null,":",null,":",null,":"]
["S1","TOTAL","P7_EPS",null,null,null,null,null,2027,"-",null,"-",null,":",null,":",null,":",null,"-",null,"-",null,":",null,":",null,":",null,"-",null,":",null,":",null,":"]
["S1","TOTAL","P7_EPS",null,null,null,null,null,2028,"-",null,"-",null,":",null,":",null,":",null,"-",null,"-",null,":",null,":",null,":",null,"-",null,":",null,":",null,":"]
["S1","TOTAL","P7_EPS",null,null,null,null,null,2029,"-",null,"-",null,":",null,":",null,":",null,"-",null,"-",null,":",null,":",null,":",null,"-",null,":",null,":",null,":"]
["S1","TOTAL","P7_EPS",null,null,null,null,null,2030,"-",null,"-",null,":",null,":",null,":",null,"-",null,"-",null,":",null,":",null,":",null,"-",null,":",null,":",null,":"]
["S1","TOTAL","P7_EPS",null,null,null,null,null,2031,"-",null,"-",null,":",null,":",null,":",null,"-",null,"-",null,":",null,":",null,":",null,"-",null,":",null,":",null,":"]
["S1","TOTAL","P6_EPS",null,"( P6.4 ) Exports of EP services / RM products",null,null,null,2014,"-",null,"-",null,":",null,":",null,":",null,"-",null,"-",null,":",null,":",null,":",null,"-",null,":",null,":",null,":"]
["S1","TOTAL","P6_EPS",null,null,null,null,null,2015,"-",null,"-",null,":",null,":",null,":",null,"-",null,"-",null,":",null,":",null,":",null,"-",null,":",null,":",null,":"]
["S1","TOTAL","P6_EPS",null,null,null,null,null,2016,"-",null,"-",null,":",null,":",null,":",null,"-",null,"-",null,":",null,":",null,":",null,"-",null,":",null,":",null,":"]
["S1","TOTAL","P6_EPS",null,null,null,null,null,2017,"-",null,"-",null,":",null,":",null,":",null,"-",null,"-",null,":",null,":",null,":",null,"-",null,":",null,":",null,":"]
["S1","TOTAL","P6_EPS",null,null,null,null,null,2018,"-",null,"-",null,":",null,":",null,":",null,"-",null,"-",null,":",null,":",null,":",null,"-",null,":",null,":",null,":"]
["S1","TOTAL","P6_EPS",null,null,null,null,null,2019,"-",null,"-",null,":",null,":",null,":",null,"-",null,"-",null,":",null,":",null,":",null,"-",null,":",null,":",null,":"]
["S1","TOTAL","P6_EPS",null,null,null,null,null,2020,"-",null,"-",null,":",null,":",null,":",null,"-",null,"-",null,":",null,":",null,":",null,"-",null,":",null,":",null,":"]
["S1","TOTAL","P6_EPS",null,null,null,null,null,2021,"-",null,"-",null,":",null,":",null,":",null,"-",null,"-",null,":",null,":",null,":",null,"-",null,":",null,":",null,":"]
["S1","TOTAL","P6_EPS",null,null,null,null,null,2022,"-",null,"-",null,":",null,":",null,":",null,"-",null,"-",null,":",null,":",null,":",null,"-",null,":",null,":",null,":"]
["S1","TOTAL","P6_EPS",null,null,null,null,null,2023,"-",null,"-",null,":",null,":",null,":",null,"-",null,"-",null,":",null,":",null,":",null,"-",null,":",null,":",null,":"]
["S1","TOTAL","P6_EPS",null,null,null,null,null,2024,"-",null,"-",null,":",null,":",null,":",null,"-",null,"-",null,":",null,":",null,":",null,"-",null,":",null,":",null,":"]
["S1","TOTAL","P6_EPS",null,null,null,null,null,2025,"-",null,"-",null,":",null,":",null,":",null,"-",null,"-",null,":",null,":",null,":",null,"-",null,":",null,":",null,":"]
["S1","TOTAL","P6_EPS",null,null,null,null,null,2026,"-",null,"-",null,":",null,":",null,":",null,"-",null,"-",null,":",null,":",null,":",null,"-",null,":",null,":",null,":"]
["S1","TOTAL","P6_EPS",null,null,null,null,null,2027,"-",null,"-",null,":",null,":",null,":",null,"-",null,"-",null,":",null,":",null,":",null,"-",null,":",null,":",null,":"]
["S1","TOTAL","P6_EPS",null,null,null,null,null,2028,"-",null,"-",null,":",null,":",null,":",null,"-",null,"-",null,":",null,":",null,":",null,"-",null,":",null,":",null,":"]
["S1","TOTAL","P6_EPS",null,null,null,null,null,2029,"-",null,"-",null,":",null,":",null,":",null,"-",null,"-",null,":",null,":",null,":",null,"-",null,":",null,":",null,":"]
["S1","TOTAL","P6_EPS",null,null,null,null,null,2030,"-",null,"-",null,":",null,":",null,":",null,"-",null,"-",null,":",null,":",null,":",null,"-",null,":",null,":",null,":"]
["S1","TOTAL","P6_EPS",null,null,null,null,null,2031,"-",null,"-",null,":",null,":",null,":",null,"-",null,"-",null,":",null,":",null,":",null,"-",null,{"$f":"IF(COUNT(N132,P132,R132)=0,\":\",SUM(N132,P132,R132))","v":":"},null,":",null,":"]
["S1","TOTAL","EPS_D21X31",null,"( D21-D31.4 ) VAT and other taxes less subsidies on EP services / RM products",null,null,null,2014,"-",null,"-",null,":",null,":",null,":",null,"-",null,"-",null,":",null,":",null,":",null,"-",null,":",null,":",null,":"]
["S1","TOTAL","EPS_D21X31",null,null,null,null,null,2015,"-",null,"-",null,":",null,":",null,":",null,"-",null,"-",null,":",null,":",null,":",null,"-",null,":",null,":",null,":"]
["S1","TOTAL","EPS_D21X31",null,null,null,null,null,2016,"-",null,"-",null,":",null,":",null,":",null,"-",null,"-",null,":",null,":",null,":",null,"-",null,":",null,":",null,":"]
["S1","TOTAL","EPS_D21X31",null,null,null,null,null,2017,"-",null,"-",null,":",null,":",null,":",null,"-",null,"-",null,":",null,":",null,":",null,"-",null,":",null,":",null,":"]
["S1","TOTAL","EPS_D21X31",null,null,null,null,null,2018,"-",null,"-",null,":",null,":",null,":",null,"-",null,"-",null,":",null,":",null,":",null,"-",null,":",null,":",null,":"]
["S1","TOTAL","EPS_D21X31",null,null,null,null,null,2019,"-",null,"-",null,":",null,":",null,":",null,"-",null,"-",null,":",null,":",null,":",null,"-",null,":",null,":",null,":"]
["S1","TOTAL","EPS_D21X31",null,null,null,null,null,2020,"-",null,"-",null,":",null,":",null,":",null,"-",null,"-",null,":",null,":",null,":",null,"-",null,":",null,":",null,":"]
["S1","TOTAL","EPS_D21X31",null,null,null,null,null,2021,"-",null,"-",null,":",null,":",null,":",null,"-",null,"-",null,":",null,":",null,":",null,"-",null,":",null,":",null,":"]
["S1","TOTAL","EPS_D21X31",null,null,null,null,null,2022,"-",null,"-",null,":",null,":",null,":",null,"-",null,"-",null,":",null,":",null,":",null,"-",null,":",null,":",null,":"]
["S1","TOTAL","EPS_D21X31",null,null,null,null,null,2023,"-",null,"-",null,":",null,":",null,":",null,"-",null,"-",null,":",null,":",null,":",null,"-",null,":",null,":",null,":"]
["S1","TOTAL","EPS_D21X31",null,null,null,null,null,2024,"-",null,"-",null,":",null,":",null,":",null,"-",null,"-",null,":",null,":",null,":",null,"-",null,":",null,":",null,":"]
["S1","TOTAL","EPS_D21X31",null,null,null,null,null,2025,"-",null,"-",null,":",null,":",null,":",null,"-",null,"-",null,":",null,":",null,":",null,"-",null,":",null,":",null,":"]
["S1","TOTAL","EPS_D21X31",null,null,null,null,null,2026,"-",null,"-",null,":",null,":",null,":",null,"-",null,"-",null,":",null,":",null,":",null,"-",null,":",null,":",null,":"]
["S1","TOTAL","EPS_D21X31",null,null,null,null,null,2027,"-",null,"-",null,":",null,":",null,":",null,"-",null,"-",null,":",null,":",null,":",null,"-",null,":",null,":",null,":"]
["S1","TOTAL","EPS_D21X31",null,null,null,null,null,2028,"-",null,"-",null,":",null,":",null,":",null,"-",null,"-",null,":",null,":",null,":",null,"-",null,":",null,":",null,":"]
["S1","TOTAL","EPS_D21X31",null,null,null,null,null,2029,"-",null,"-",null,":",null,":",null,":",null,"-",null,"-",null,":",null,":",null,":",null,"-",null,":",null,":",null,":"]
["S1","TOTAL","EPS_D21X31",null,null,null,null,null,2030,"-",null,"-",null,":",null,":",null,":",null,"-",null,"-",null,":",null,":",null,":",null,"-",null,":",null,":",null,":"]
["S1","TOTAL","EPS_D21X31",null,null,null,null,null,2031,"-",null,"-",null,":",null,":",null,":",null,"-",null,"-",null,":",null,":",null,":",null,"-",null,":",null,":",null,":"]
["S1","TOTAL","EPS_SUP_NU",null,"( SUP_NU.4 ) EP/RM supply at purchasers' prices available to resident users (= P1.4 - P2_EPS.4 + P7.4 - P6.4 + D21-D31.4)",null,null,null,2014,{"$f":"+IF(COUNT(J7,J79,J97,J115,J133)<>5,\":\",SUM(J7,-J79,J97,-J115,J133))","v":":"},null,{"$f":"+IF(COUNT(L7,L79,L97,L115,L133)<>5,\":\",SUM(L7,-L79,L97,-L115,L133))","v":":"},null,{"$f":"+IF(COUNT(N7,N79,N97,N115,N133)<>5,\":\",SUM(N7,-N79,N97,-N115,N133))","v":":"},null,{"$f":"+IF(COUNT(P7,P79,P97,P115,P133)<>5,\":\",SUM(P7,-P79,P97,-P115,P133))","v":":"},null,{"$f":"+IF(COUNT(R7,R79,R97,R115,R133)<>5,\":\",SUM(R7,-R79,R97,-R115,R133))","v":":"},null,{"$f":"+IF(COUNT(T7,T79,T97,T115,T133)<>5,\":\",SUM(T7,-T79,T97,-T115,T133))","v":":"},null,{"$f":"+IF(COUNT(V7,V79,V97,V115,V133)<>5,\":\",SUM(V7,-V79,V97,-V115,V133))","v":":"},null,{"$f":"+IF(COUNT(X7,X79,X97,X115,X133)<>5,\":\",SUM(X7,-X79,X97,-X115,X133))","v":":"},null,{"$f":"+IF(COUNT(Z7,Z79,Z97,Z115,Z133)<>5,\":\",SUM(Z7,-Z79,Z97,-Z115,Z133))","v":":"},null,{"$f":"+IF(COUNT(AB7,AB79,AB97,AB115,AB133)<>5,\":\",SUM(AB7,-AB79,AB97,-AB115,AB133))","v":":"},null,{"$f":"+IF(COUNT(AD7,AD79,AD97,AD115,AD133)<>5,\":\",SUM(AD7,-AD79,AD97,-AD115,AD133))","v":":"},null,{"$f":"+IF(COUNT(AF7,AF79,AF97,AF115,AF133)<>5,\":\",SUM(AF7,-AF79,AF97,-AF115,AF133))","v":":"},null,"-",null,"-"]
["S1","TOTAL","EPS_SUP_NU",null,null,null,null,null,2015,":",null,":",null,":",null,":",null,":",null,":",null,":",null,":",null,":",null,":",null,":",null,":",null,"-",null,"-"]
["S1","TOTAL","EPS_SUP_NU",null,null,null,null,null,2016,":",null,":",null,":",null,":",null,":",null,":",null,":",null,":",null,":",null,":",null,":",null,":",null,"-",null,"-"]
["S1","TOTAL","EPS_SUP_NU",null,null,null,null,null,2017,":",null,":",null,":",null,":",null,":",null,":",null,":",null,":",null,":",null,":",null,":",null,":",null,"-",null,"-"]
["S1","TOTAL","EPS_SUP_NU",null,null,null,null,null,2018,":",null,":",null,":",null,":",null,":",null,":",null,":",null,":",null,":",null,":",null,":",null,":",null,"-",null,"-"]
["S1","TOTAL","EPS_SUP_NU",null,null,null,null,null,2019,":",null,":",null,":",null,":",null,":",null,":",null,":",null,":",null,":",null,":",null,":",null,":",null,"-",null,"-"]
["S1","TOTAL","EPS_SUP_NU",null,null,null,null,null,2020,":",null,":",null,":",null,":",null,":",null,":",null,":",null,":",null,":",null,":",null,":",null,":",null,"-",null,"-"]
["S1","TOTAL","EPS_SUP_NU",null,null,null,null,null,2021,":",null,":",null,":",null,":",null,":",null,":",null,":",null,":",null,":",null,":",null,":",null,":",null,"-",null,"-"]
["S1","TOTAL","EPS_SUP_NU",null,null,null,null,null,2022,":",null,":",null,":",null,":",null,":",null,":",null,":",null,":",null,":",null,":",null,":",null,":",null,"-",null,"-"]
["S1","TOTAL","EPS_SUP_NU",null,null,null,null,null,2023,":",null,":",null,":",null,":",null,":",null,":",null,":",null,":",null,":",null,":",null,":",null,":",null,"-",null,"-"]
["S1","TOTAL","EPS_SUP_NU",null,null,null,null,null,2024,":",null,":",null,":",null,":",null,":",null,":",null,":",null,":",null,":",null,":",null,":",null,":",null,"-",null,"-"]
["S1","TOTAL","EPS_SUP_NU",null,null,null,null,null,2025,":",null,":",null,":",null,":",null,":",null,":",null,":",null,":",null,":",null,":",null,":",null,":",null,"-",null,"-"]
["S1","TOTAL","EPS_SUP_NU",null,null,null,null,null,2026,":",null,":",null,":",null,":",null,":",null,":",null,":",null,":",null,":",null,":",null,":",null,":",null,"-",null,"-"]
["S1","TOTAL","EPS_SUP_NU",null,null,null,null,null,2027,":",null,":",null,":",null,":",null,":",null,":",null,":",null,":",null,":",null,":",null,":",null,":",null,"-",null,"-"]
["S1","TOTAL","EPS_SUP_NU",null,null,null,null,null,2028,":",null,":",null,":",null,":",null,":",null,":",null,":",null,":",null,":",null,":",null,":",null,":",null,"-",null,"-"]
["S1","TOTAL","EPS_SUP_NU",null,null,null,null,null,2029,"-",null,"-",null,"-",null,"-",null,"-",null,"-",null,"-",null,"-",null,"-",null,"-",null,"-",null,{"$f":"+IF(COUNT(AF22,AF94,AF112,AF130,AF148)<>5,\":\",SUM(AF22,-AF94,AF112,-AF130,AF148))","v":":"},null,"-",null,"-"]
["S1","TOTAL","EPS_SUP_NU",null,null,null,null,null,2030,"-",null,"-",null,"-",null,"-",null,"-",null,"-",null,"-",null,"-",null,"-",null,"-",null,"-",null,":",null,"-",null,"-"]
["S1","TOTAL","EPS_SUP_NU",null,null,null,null,null,2031,"-",null,"-",null,"-",null,"-",null,"-",null,"-",null,"-",null,"-",null,"-",null,"-",null,"-",null,":",null,"-",null,"-"]

{"sheet":"5","index":38,"n_rows":60,"n_cols":38,"rows_kept":60,"cut":false,"hidden":false,"merged":[[0,4,0,8],[3,9,4,10],[3,11,4,12],[4,4,4,7],[1,4,1,8],[1,9,1,32],[2,9,2,32],[3,25,4,26],[3,27,4,28],[3,31,4,32],[0,9,0,12],[3,29,4,30],[25,4,25,7],[7,4,7,7],[6,4,6,7],[8,4,8,7],[3,7,3,8],[42,4,42,7],[43,4,43,7],[44,4,44,7],[1,33,1,38],[2,33,2,38],[3,33,4,34],[3,35,4,36],[3,37,4,38],[3,23,4,24],[3,13,4,14],[3,15,4,16],[3,17,4,18],[3,19,4,20],[3,21,4,22],[26,4,26,7],[24,4,24,7]]}
[null,null,null,null,{"$f":"Cover!B21","v":"QUESTIONNAIRE ON ENVIRONMENTAL PROTECTION EXPENDITURE ACCOUNTS"},null,null,null,null,"Table 5. Households"]
[null,null,null,null,{"$f":"E1","v":"QUESTIONNAIRE ON ENVIRONMENTAL PROTECTION EXPENDITURE ACCOUNTS"},null,null,null,null,{"$f":"J1","v":"Table 5. Households"},null,null,null,null,null,null,null,null,null,null,null,null,null,null,null,null,null,null,null,null,null,null,null,{"$f":"J1","v":"Table 5. Households"}]
[null,null,null,null,null,null,null,null,null,"Mandatory and voluntary variables and environmental domains - please fill in as much as possible",null,null,null,null,null,null,null,null,null,null,null,null,null,null,null,null,null,null,null,null,null,null,null,"Voluntary variables and RM domains"]
[null,null,null,null,"Country/Unit",{"$f":"IFERROR(Cover!C16,\"\")","v":""},{"$f":"\"\"&Cover!B16","v":""},{"$f":"Cover!B17","v":"Million units of national currency"},null,"CEPA 1",null,"of which CEPA 1.1.2 and 1.2.2 Climate change",null,"CEPA 2",null,"CEPA 3",null,"CEPA 4",null,"CEPA 5",null,"CEPA 6",null,"CEPA 7",null,"CEPA 8",null,"CEPA 9",null,"Sum of CEPA 7+8+9",null,"TOTAL",null," CReMA\n11B + 13C + 14 \n(Materials recovery)",null,"CReMA13A (Production of energy  from renewable sources)",null,"CReMA13B \n(Energy efficiency and savings)"]
[null,null,null,null,"Expenditure",null,null,null,"Year",null,null,null,null,null,null,null,null,null,null,null,null,null,null,null,null,null,null,null,null,null,null,"Landscape",null,"Landscape",null,"Landscape",null,"Landscape"]
[null,null,null,null,null,null,null,null,null,"CEPA1",null,"CEPA112_122",null,"CEPA2",null,"CEPA3",null,"CEPA4",null,"CEPA5",null,"CEPA6",null,"CEPA7",null,"CEPA8",null,"CEPA9",null,"CEPA7-9",null,"TOT_CEPA",null,"CREMA 11B_13C_14",null,"CREMA 13A",null,"CREMA 13B"]
["S14","TOTAL_HH","P3_EPS",null,"( P3_EPS.5 ) Final consumption of EP services / RM characteristic products",null,null,null,2014,":",null,":",null,":",null,":",null,":",null,":",null,":",null,":",null,":",null,":",null,":",null,{"$f":"IF(COUNT(J7,N7,P7,R7,T7,V7,AD7)=7,SUM(J7,N7,P7,R7,T7,V7,AD7),\":\")","v":":"},null,":",null,":",null,":"]
["S14","TOTAL_HH","P3_EPS",null,null,null,null,null,2015,":",null,":",null,":",null,":",null,":",null,":",null,":",null,":",null,":",null,":",null,":",null,":",null,":",null,":",null,":"]
["S14","TOTAL_HH","P3_EPS",null,null,null,null,null,2016,":",null,":",null,":",null,":",null,":",null,":",null,":",null,":",null,":",null,":",null,":",null,":",null,":",null,":",null,":"]
["S14","TOTAL_HH","P3_EPS",null,null,null,null,null,2017,":",null,":",null,":",null,":",null,":",null,":",null,":",null,":",null,":",null,":",null,":",null,":",null,":",null,":",null,":"]
["S14","TOTAL_HH","P3_EPS",null,null,null,null,null,2018,":",null,":",null,":",null,":",null,":",null,":",null,":",null,":",null,":",null,":",null,":",null,":",null,":",null,":",null,":"]
["S14","TOTAL_HH","P3_EPS",null,null,null,null,null,2019,":",null,":",null,":",null,":",null,":",null,":",null,":",null,":",null,":",null,":",null,":",null,":",null,":",null,":",null,":"]
["S14","TOTAL_HH","P3_EPS",null,null,null,null,null,2020,":",null,":",null,":",null,":",null,":",null,":",null,":",null,":",null,":",null,":",null,":",null,":",null,":",null,":",null,":"]
["S14","TOTAL_HH","P3_EPS",null,null,null,null,null,2021,":",null,":",null,":",null,":",null,":",null,":",null,":",null,":",null,":",null,":",null,":",null,":",null,":",null,":",null,":"]
["S14","TOTAL_HH","P3_EPS",null,null,null,null,null,2022,":",null,":",null,":",null,":",null,":",null,":",null,":",null,":",null,":",null,":",null,":",null,{"$f":"IF(COUNT(J15,N15,P15,R15,T15,V15,AD15)=7,SUM(J15,N15,P15,R15,T15,V15,AD15),\":\")","v":":"},null,":",null,":",null,":"]
["S14","TOTAL_HH","P3_EPS",null,null,null,null,null,2023,":",null,":",null,":",null,":",null,":",null,":",null,":",null,":",null,":",null,":",null,":",null,":",null,":",null,":",null,":"]
["S14","TOTAL_HH","P3_EPS",null,null,null,null,null,2024,":",null,":",null,":",null,":",null,":",null,":",null,":",null,":",null,":",null,":",null,":",null,":",null,":",null,":",null,":"]
["S14","TOTAL_HH","P3_EPS",null,null,null,null,null,2025,":",null,":",null,":",null,":",null,":",null,":",null,":",null,":",null,":",null,":",null,":",null,":",null,":",null,":",null,":"]
["S14","TOTAL_HH","P3_EPS",null,null,null,null,null,2026,":",null,":",null,":",null,":",null,":",null,":",null,":",null,":",null,":",null,":",null,":",null,":",null,":",null,":",null,":"]
["S14","TOTAL_HH","P3_EPS",null,null,null,null,null,2027,":",null,":",null,":",null,":",null,":",null,":",null,":",null,":",null,":",null,":",null,":",null,":",null,":",null,":",null,":"]
["S14","TOTAL_HH","P3_EPS",null,null,null,null,null,2028,":",null,":",null,":",null,":",null,":",null,":",null,":",null,":",null,":",null,":",null,":",null,":",null,":",null,":",null,":"]
["S14","TOTAL_HH","P3_EPS",null,null,null,null,null,2029,":",null,":",null,":",null,":",null,":",null,":",null,":",null,":",null,":",null,":",null,":",null,":",null,":",null,":",null,":"]
["S14","TOTAL_HH","P3_EPS",null,null,null,null,null,2030,":",null,":",null,":",null,":",null,":",null,":",null,":",null,":",null,":",null,":",null,":",null,":",null,":",null,":",null,":"]
["S14","TOTAL_HH","P3_EPS",null,null,null,null,null,2031,":",null,":",null,":",null,":",null,":",null,":",null,":",null,":",null,":",null,":",null,":",null,":",null,":",null,":",null,":"]
["S14","TOTAL_HH","P3_ACP_ec",null,"( P3_ACP_ec.5 ) Final consumption of EP/RM products other than EP services and other than RM characteristic products (cleaner/resource efficient goods) - EXTRA COST",null,null,null,2014,":",null,":",null,":",null,":",null,":",null,":",null,":",null,":",null,":",null,":",null,":",null,{"$f":"IF(COUNT(J25,N25,P25,R25,T25,V25,AD25)=7,SUM(J25,N25,P25,R25,T25,V25,AD25),\":\")","v":":"},null,":",null,":",null,":"]
["S14","TOTAL_HH","P3_ACP_ec",null,null,null,null,null,2015,":",null,":",null,":",null,":",null,":",null,":",null,":",null,":",null,":",null,":",null,":",null,":",null,":",null,":",null,":"]
["S14","TOTAL_HH","P3_ACP_ec",null,null,null,null,null,2016,":",null,":",null,":",null,":",null,":",null,":",null,":",null,":",null,":",null,":",null,":",null,":",null,":",null,":",null,":"]
["S14","TOTAL_HH","P3_ACP_ec",null,null,null,null,null,2017,":",null,":",null,":",null,":",null,":",null,":",null,":",null,":",null,":",null,":",null,":",null,":",null,":",null,":",null,":"]
["S14","TOTAL_HH","P3_ACP_ec",null,null,null,null,null,2018,":",null,":",null,":",null,":",null,":",null,":",null,":",null,":",null,":",null,":",null,":",null,":",null,":",null,":",null,":"]
["S14","TOTAL_HH","P3_ACP_ec",null,null,null,null,null,2019,":",null,":",null,":",null,":",null,":",null,":",null,":",null,":",null,":",null,":",null,":",null,":",null,":",null,":",null,":"]
["S14","TOTAL_HH","P3_ACP_ec",null,null,null,null,null,2020,":",null,":",null,":",null,":",null,":",null,":",null,":",null,":",null,":",null,":",null,":",null,":",null,":",null,":",null,":"]
["S14","TOTAL_HH","P3_ACP_ec",null,null,null,null,null,2021,":",null,":",null,":",null,":",null,":",null,":",null,":",null,":",null,":",null,":",null,":",null,":",null,":",null,":",null,":"]
["S14","TOTAL_HH","P3_ACP_ec",null,null,null,null,null,2022,":",null,":",null,":",null,":",null,":",null,":",null,":",null,":",null,":",null,":",null,":",null,":",null,":",null,":",null,":"]
["S14","TOTAL_HH","P3_ACP_ec",null,null,null,null,null,2023,":",null,":",null,":",null,":",null,":",null,":",null,":",null,":",null,":",null,":",null,":",null,":",null,":",null,":",null,":"]
["S14","TOTAL_HH","P3_ACP_ec",null,null,null,null,null,2024,":",null,":",null,":",null,":",null,":",null,":",null,":",null,":",null,":",null,":",null,":",null,":",null,":",null,":",null,":"]
["S14","TOTAL_HH","P3_ACP_ec",null,null,null,null,null,2025,":",null,":",null,":",null,":",null,":",null,":",null,":",null,":",null,":",null,":",null,":",null,":",null,":",null,":",null,":"]
["S14","TOTAL_HH","P3_ACP_ec",null,null,null,null,null,2026,":",null,":",null,":",null,":",null,":",null,":",null,":",null,":",null,":",null,":",null,":",null,":",null,":",null,":",null,":"]
["S14","TOTAL_HH","P3_ACP_ec",null,null,null,null,null,2027,":",null,":",null,":",null,":",null,":",null,":",null,":",null,":",null,":",null,":",null,":",null,":",null,":",null,":",null,":"]
["S14","TOTAL_HH","P3_ACP_ec",null,null,null,null,null,2028,":",null,":",null,":",null,":",null,":",null,":",null,":",null,":",null,":",null,":",null,":",null,":",null,":",null,":",null,":"]
["S14","TOTAL_HH","P3_ACP_ec",null,null,null,null,null,2029,":",null,":",null,":",null,":",null,":",null,":",null,":",null,":",null,":",null,":",null,":",null,":",null,":",null,":",null,":"]
["S14","TOTAL_HH","P3_ACP_ec",null,null,null,null,null,2030,":",null,":",null,":",null,":",null,":",null,":",null,":",null,":",null,":",null,":",null,":",null,":",null,":",null,":",null,":"]
["S14","TOTAL_HH","P3_ACP_ec",null,null,null,null,null,2031,":",null,":",null,":",null,":",null,":",null,":",null,":",null,":",null,":",null,":",null,":",null,":",null,":",null,":",null,":"]
["S14","TOTAL_HH","P3_ACP_fc",null,"( P3_ACP_fc.5 ) Final consumption of EP/RM products other than EP services and  other than RM characteristic products (cleaner/resource efficient goods) - FULL COST",null,null,null,2014,":",null,":",null,":",null,":",null,":",null,":",null,":",null,":",null,":",null,":",null,":",null,{"$f":"IF(COUNT(J43,N43,P43,R43,T43,V43,AD43)=7,SUM(J43,N43,P43,R43,T43,V43,AD43),\":\")","v":":"},null,":",null,":",null,":"]
["S14","TOTAL_HH","P3_ACP_fc",null,null,null,null,null,2015,":",null,":",null,":",null,":",null,":",null,":",null,":",null,":",null,":",null,":",null,":",null,":",null,":",null,":",null,":"]
["S14","TOTAL_HH","P3_ACP_fc",null,null,null,null,null,2016,":",null,":",null,":",null,":",null,":",null,":",null,":",null,":",null,":",null,":",null,":",null,":",null,":",null,":",null,":"]
["S14","TOTAL_HH","P3_ACP_fc",null,null,null,null,null,2017,":",null,":",null,":",null,":",null,":",null,":",null,":",null,":",null,":",null,":",null,":",null,":",null,":",null,":",null,":"]
["S14","TOTAL_HH","P3_ACP_fc",null,null,null,null,null,2018,":",null,":",null,":",null,":",null,":",null,":",null,":",null,":",null,":",null,":",null,":",null,":",null,":",null,":",null,":"]
["S14","TOTAL_HH","P3_ACP_fc",null,null,null,null,null,2019,":",null,":",null,":",null,":",null,":",null,":",null,":",null,":",null,":",null,":",null,":",null,":",null,":",null,":",null,":"]
["S14","TOTAL_HH","P3_ACP_fc",null,null,null,null,null,2020,":",null,":",null,":",null,":",null,":",null,":",null,":",null,":",null,":",null,":",null,":",null,":",null,":",null,":",null,":"]
["S14","TOTAL_HH","P3_ACP_fc",null,null,null,null,null,2021,":",null,":",null,":",null,":",null,":",null,":",null,":",null,":",null,":",null,":",null,":",null,":",null,":",null,":",null,":"]
["S14","TOTAL_HH","P3_ACP_fc",null,null,null,null,null,2022,":",null,":",null,":",null,":",null,":",null,":",null,":",null,":",null,":",null,":",null,":",null,":",null,":",null,":",null,":"]
["S14","TOTAL_HH","P3_ACP_fc",null,null,null,null,null,2023,":",null,":",null,":",null,":",null,":",null,":",null,":",null,":",null,":",null,":",null,":",null,":",null,":",null,":",null,":"]
["S14","TOTAL_HH","P3_ACP_fc",null,null,null,null,null,2024,":",null,":",null,":",null,":",null,":",null,":",null,":",null,":",null,":",null,":",null,":",null,":",null,":",null,":",null,":"]
["S14","TOTAL_HH","P3_ACP_fc",null,null,null,null,null,2025,":",null,":",null,":",null,":",null,":",null,":",null,":",null,":",null,":",null,":",null,":",null,":",null,":",null,":",null,":"]
["S14","TOTAL_HH","P3_ACP_fc",null,null,null,null,null,2026,":",null,":",null,":",null,":",null,":",null,":",null,":",null,":",null,":",null,":",null,":",null,":",null,":",null,":",null,":"]
["S14","TOTAL_HH","P3_ACP_fc",null,null,null,null,null,2027,":",null,":",null,":",null,":",null,":",null,":",null,":",null,":",null,":",null,":",null,":",null,":",null,":",null,":",null,":"]
["S14","TOTAL_HH","P3_ACP_fc",null,null,null,null,null,2028,":",null,":",null,":",null,":",null,":",null,":",null,":",null,":",null,":",null,":",null,":",null,":",null,":",null,":",null,":"]
["S14","TOTAL_HH","P3_ACP_fc",null,null,null,null,null,2029,":",null,":",null,":",null,":",null,":",null,":",null,":",null,":",null,":",null,":",null,":",null,":",null,":",null,":",null,":"]
["S14","TOTAL_HH","P3_ACP_fc",null,null,null,null,null,2030,":",null,":",null,":",null,":",null,":",null,":",null,":",null,":",null,":",null,":",null,":",null,":",null,":",null,":",null,":"]
["S14","TOTAL_HH","P3_ACP_fc",null,null,null,null,null,2031,":",null,":",null,":",null,":",null,":",null,":",null,":",null,":",null,":",null,":",null,":",null,":",null,":",null,":",null,":"]

{"sheet":"6","index":39,"n_rows":276,"n_cols":38,"rows_kept":276,"cut":false,"hidden":false,"merged":[[186,4,186,7],[187,4,187,7],[223,4,223,7],[240,4,240,7],[204,4,204,7],[205,4,205,7],[206,4,206,7],[260,4,260,7],[258,4,258,7],[259,4,259,7],[222,4,222,7],[97,4,97,7],[132,4,132,7],[133,4,133,7],[150,4,150,7],[170,4,170,7],[188,4,188,7],[224,4,224,7],[242,4,242,7],[151,4,151,7],[168,4,168,7],[241,4,241,7],[169,4,169,7],[6,4,6,7],[7,4,7,7],[3,27,4,28],[3,25,4,26],[8,4,8,7],[152,4,152,7],[96,4,96,7],[61,4,61,7],[24,4,24,7],[78,4,78,7],[42,4,42,7],[43,4,43,7],[60,4,60,7],[114,4,115,7],[44,4,44,7],[134,4,134,7],[62,4,62,7],[98,4,98,7],[116,4,116,7],[0,4,0,8],[0,9,0,18],[3,9,4,10],[3,11,4,12],[3,13,4,14],[3,15,4,16],[3,17,4,18],[4,4,4,7],[1,4,1,8],[1,9,1,32],[2,9,2,32],[3,31,4,32],[3,19,4,20],[3,21,4,22],[3,23,4,24],[3,29,4,30],[1,33,1,38],[2,33,2,38],[3,33,4,34],[3,35,4,36],[3,37,4,38]]}
[null,null,null,null,{"$f":"Cover!B21","v":"QUESTIONNAIRE ON ENVIRONMENTAL PROTECTION EXPENDITURE ACCOUNTS"},null,null,null,null,"Table 6. Transfers"]
[null,null,null,null,{"$f":"E1","v":"QUESTIONNAIRE ON ENVIRONMENTAL PROTECTION EXPENDITURE ACCOUNTS"},null,null,null,null,{"$f":"J1","v":"Table 6. Transfers"},null,null,null,null,null,null,null,null,null,null,null,null,null,null,null,null,null,null,null,null,null,null,null,{"$f":"J1","v":"Table 6. Transfers"}]
[null,null,null,null,null,null,null,null,null,"Mandatory and voluntary variables and environmental domains - please fill in as much as possible",null,null,null,null,null,null,null,null,null,null,null,null,null,null,null,null,null,null,null,null,null,null,null,"Voluntary variables and RM domains"]
[null,null,null,null,"Country/Unit",{"$f":"IFERROR(Cover!C16,\"\")","v":""},{"$f":"\"\"&Cover!B16","v":""},null,{"$f":"Cover!B17","v":"Million units of national currency"},"CEPA 1",null,"of which CEPA 1.1.2 and 1.2.2 Climate change",null,"CEPA 2",null,"CEPA 3",null,"CEPA 4",null,"CEPA 5",null,"CEPA 6",null,"CEPA 7",null,"CEPA 8",null,"CEPA 9",null,"Sum of CEPA 7+8+9",null,"TOTAL",null," CReMA\n11B + 13C + 14 \n(Materials recovery)",null,"CReMA13A (Production of energy  from renewable sources)",null,"CReMA13B \n(Energy efficiency and savings)"]
[null,null,null,null,"Expenditure",null,null,null,"Year",null,null,null,null,null,null,null,null,null,null,null,null,null,null,null,null,null,null,null,null,null,null,"Landscape",null,"Landscape",null,"Landscape",null,"Landscape"]
[null,null,null,null,null,null,null,null,null,"CEPA1",null,"CEPA112_122",null,"CEPA2",null,"CEPA3",null,"CEPA4",null,"CEPA5",null,"CEPA6",null,"CEPA7",null,"CEPA8",null,"CEPA9",null,"CEPA7-9",null,"TOT_CEPA",null,"CREMA 11B_13C_14",null,"CREMA 13A",null,"CREMA 13B"]
["S13_S15","TOTAL","EP_D3_7_92_99_P",null,"( D3_D7_D92_D99_PAY_GG.6 ) General government: transfers paid ",null,null,null,2014,":",null,":",null,":",null,":",null,":",null,":",null,":",null,":",null,":",null,":",null,":",null,{"$f":"IF(COUNT(J7,N7,P7,R7,T7,V7,AD7)=7,SUM(J7,N7,P7,R7,T7,V7,AD7),\":\")","v":":"},null,":",null,":",null,":"]
["S13_S15","TOTAL","EP_D3_7_92_99_P",null,null,null,null,null,2015,":",null,":",null,":",null,":",null,":",null,":",null,":",null,":",null,":",null,":",null,":",null,{"$f":"IF(COUNT(J8,N8,P8,R8,T8,V8,AD8)=7,SUM(J8,N8,P8,R8,T8,V8,AD8),\":\")","v":":"},null,":",null,":",null,":"]
["S13_S15","TOTAL","EP_D3_7_92_99_P",null,null,null,null,null,2016,":",null,":",null,":",null,":",null,":",null,":",null,":",null,":",null,":",null,":",null,":",null,":",null,":",null,":",null,":"]
["S13_S15","TOTAL","EP_D3_7_92_99_P",null,null,null,null,null,2017,":",null,":",null,":",null,":",null,":",null,":",null,":",null,":",null,":",null,":",null,":",null,":",null,":",null,":",null,":"]
["S13_S15","TOTAL","EP_D3_7_92_99_P",null,null,null,null,null,2018,":",null,":",null,":",null,":",null,":",null,":",null,":",null,":",null,":",null,":",null,":",null,":",null,":",null,":",null,":"]
["S13_S15","TOTAL","EP_D3_7_92_99_P",null,null,null,null,null,2019,":",null,":",null,":",null,":",null,":",null,":",null,":",null,":",null,":",null,":",null,":",null,":",null,":",null,":",null,":"]
["S13_S15","TOTAL","EP_D3_7_92_99_P",null,null,null,null,null,2020,":",null,":",null,":",null,":",null,":",null,":",null,":",null,":",null,":",null,":",null,":",null,":",null,":",null,":",null,":"]
["S13_S15","TOTAL","EP_D3_7_92_99_P",null,null,null,null,null,2021,":",null,":",null,":",null,":",null,":",null,":",null,":",null,":",null,":",null,":",null,":",null,":",null,":",null,":",null,":"]
["S13_S15","TOTAL","EP_D3_7_92_99_P",null,null,null,null,null,2022,":",null,":",null,":",null,":",null,":",null,":",null,":",null,":",null,":",null,":",null,":",null,":",null,":",null,":",null,":"]
["S13_S15","TOTAL","EP_D3_7_92_99_P",null,null,null,null,null,2023,":",null,":",null,":",null,":",null,":",null,":",null,":",null,":",null,":",null,":",null,":",null,":",null,":",null,":",null,":"]
["S13_S15","TOTAL","EP_D3_7_92_99_P",null,null,null,null,null,2024,":",null,":",null,":",null,":",null,":",null,":",null,":",null,":",null,":",null,":",null,":",null,":",null,":",null,":",null,":"]
["S13_S15","TOTAL","EP_D3_7_92_99_P",null,null,null,null,null,2025,":",null,":",null,":",null,":",null,":",null,":",null,":",null,":",null,":",null,":",null,":",null,":",null,":",null,":",null,":"]
["S13_S15","TOTAL","EP_D3_7_92_99_P",null,null,null,null,null,2026,":",null,":",null,":",null,":",null,":",null,":",null,":",null,":",null,":",null,":",null,":",null,":",null,":",null,":",null,":"]
["S13_S15","TOTAL","EP_D3_7_92_99_P",null,null,null,null,null,2027,":",null,":",null,":",null,":",null,":",null,":",null,":",null,":",null,":",null,":",null,":",null,":",null,":",null,":",null,":"]
["S13_S15","TOTAL","EP_D3_7_92_99_P",null,null,null,null,null,2028,":",null,":",null,":",null,":",null,":",null,":",null,":",null,":",null,":",null,":",null,":",null,":",null,":",null,":",null,":"]
["S13_S15","TOTAL","EP_D3_7_92_99_P",null,null,null,null,null,2029,":",null,":",null,":",null,":",null,":",null,":",null,":",null,":",null,":",null,":",null,":",null,":",null,":",null,":",null,":"]
["S13_S15","TOTAL","EP_D3_7_92_99_P",null,null,null,null,null,2030,":",null,":",null,":",null,":",null,":",null,":",null,":",null,":",null,":",null,":",null,":",null,":",null,":",null,":",null,":"]
["S13_S15","TOTAL","EP_D3_7_92_99_P",null,null,null,null,null,2031,":",null,":",null,":",null,":",null,":",null,":",null,":",null,":",null,":",null,":",null,":",null,":",null,":",null,":",null,":"]
["S13_S15","TOTAL","EP_D3_7_92_99_R",null,"( D3_D7_D92_D99_REC_GG.6 ) General government: transfers received from the rest of the world",null,null,null,2014,":",null,":",null,":",null,":",null,":",null,":",null,":",null,":",null,":",null,":",null,":",null,":",null,":",null,":",null,":"]
["S13_S15","TOTAL","EP_D3_7_92_99_R",null,null,null,null,null,2015,":",null,":",null,":",null,":",null,":",null,":",null,":",null,":",null,":",null,":",null,":",null,":",null,":",null,":",null,":"]
["S13_S15","TOTAL","EP_D3_7_92_99_R",null,null,null,null,null,2016,":",null,":",null,":",null,":",null,":",null,":",null,":",null,":",null,":",null,":",null,":",null,":",null,":",null,":",null,":"]
["S13_S15","TOTAL","EP_D3_7_92_99_R",null,null,null,null,null,2017,":",null,":",null,":",null,":",null,":",null,":",null,":",null,":",null,":",null,":",null,":",null,":",null,":",null,":",null,":"]
["S13_S15","TOTAL","EP_D3_7_92_99_R",null,null,null,null,null,2018,":",null,":",null,":",null,":",null,":",null,":",null,":",null,":",null,":",null,":",null,":",null,":",null,":",null,":",null,":"]
["S13_S15","TOTAL","EP_D3_7_92_99_R",null,null,null,null,null,2019,":",null,":",null,":",null,":",null,":",null,":",null,":",null,":",null,":",null,":",null,":",null,":",null,":",null,":",null,":"]
["S13_S15","TOTAL","EP_D3_7_92_99_R",null,null,null,null,null,2020,":",null,":",null,":",null,":",null,":",null,":",null,":",null,":",null,":",null,":",null,":",null,":",null,":",null,":",null,":"]
["S13_S15","TOTAL","EP_D3_7_92_99_R",null,null,null,null,null,2021,":",null,":",null,":",null,":",null,":",null,":",null,":",null,":",null,":",null,":",null,":",null,":",null,":",null,":",null,":"]
["S13_S15","TOTAL","EP_D3_7_92_99_R",null,null,null,null,null,2022,":",null,":",null,":",null,":",null,":",null,":",null,":",null,":",null,":",null,":",null,":",null,":",null,":",null,":",null,":"]
["S13_S15","TOTAL","EP_D3_7_92_99_R",null,null,null,null,null,2023,":",null,":",null,":",null,":",null,":",null,":",null,":",null,":",null,":",null,":",null,":",null,":",null,":",null,":",null,":"]
["S13_S15","TOTAL","EP_D3_7_92_99_R",null,null,null,null,null,2024,":",null,":",null,":",null,":",null,":",null,":",null,":",null,":",null,":",null,":",null,":",null,":",null,":",null,":",null,":"]
["S13_S15","TOTAL","EP_D3_7_92_99_R",null,null,null,null,null,2025,":",null,":",null,":",null,":",null,":",null,":",null,":",null,":",null,":",null,":",null,":",null,":",null,":",null,":",null,":"]
["S13_S15","TOTAL","EP_D3_7_92_99_R",null,null,null,null,null,2026,":",null,":",null,":",null,":",null,":",null,":",null,":",null,":",null,":",null,":",null,":",null,":",null,":",null,":",null,":"]
["S13_S15","TOTAL","EP_D3_7_92_99_R",null,null,null,null,null,2027,":",null,":",null,":",null,":",null,":",null,":",null,":",null,":",null,":",null,":",null,":",null,":",null,":",null,":",null,":"]
["S13_S15","TOTAL","EP_D3_7_92_99_R",null,null,null,null,null,2028,":",null,":",null,":",null,":",null,":",null,":",null,":",null,":",null,":",null,":",null,":",null,":",null,":",null,":",null,":"]
["S13_S15","TOTAL","EP_D3_7_92_99_R",null,null,null,null,null,2029,":",null,":",null,":",null,":",null,":",null,":",null,":",null,":",null,":",null,":",null,":",null,":",null,":",null,":",null,":"]
["S13_S15","TOTAL","EP_D3_7_92_99_R",null,null,null,null,null,2030,":",null,":",null,":",null,":",null,":",null,":",null,":",null,":",null,":",null,":",null,":",null,":",null,":",null,":",null,":"]
["S13_S15","TOTAL","EP_D3_7_92_99_R",null,null,null,null,null,2031,":",null,":",null,":",null,":",null,":",null,":",null,":",null,":",null,":",null,":",null,":",null,":",null,":",null,":",null,":"]
["S13_S15","TOTAL","EP_D3_7_R",null,"( D3_D7_REC_GG.6 ) General government: current transfers received from the rest of the world",null,null,null,2014,":",null,":",null,":",null,":",null,":",null,":",null,":",null,":",null,":",null,":",null,":",null,":",null,":",null,":",null,":"]
["S13_S15","TOTAL","EP_D3_7_R",null,null,null,null,null,2015,":",null,":",null,":",null,":",null,":",null,":",null,":",null,":",null,":",null,":",null,":",null,":",null,":",null,":",null,":"]
["S13_S15","TOTAL","EP_D3_7_R",null,null,null,null,null,2016,":",null,":",null,":",null,":",null,":",null,":",null,":",null,":",null,":",null,":",null,":",null,":",null,":",null,":",null,":"]
["S13_S15","TOTAL","EP_D3_7_R",null,null,null,null,null,2017,":",null,":",null,":",null,":",null,":",null,":",null,":",null,":",null,":",null,":",null,":",null,":",null,":",null,":",null,":"]
["S13_S15","TOTAL","EP_D3_7_R",null,null,null,null,null,2018,":",null,":",null,":",null,":",null,":",null,":",null,":",null,":",null,":",null,":",null,":",null,":",null,":",null,":",null,":"]
["S13_S15","TOTAL","EP_D3_7_R",null,null,null,null,null,2019,":",null,":",null,":",null,":",null,":",null,":",null,":",null,":",null,":",null,":",null,":",null,":",null,":",null,":",null,":"]
["S13_S15","TOTAL","EP_D3_7_R",null,null,null,null,null,2020,":",null,":",null,":",null,":",null,":",null,":",null,":",null,":",null,":",null,":",null,":",null,":",null,":",null,":",null,":"]
["S13_S15","TOTAL","EP_D3_7_R",null,null,null,null,null,2021,":",null,":",null,":",null,":",null,":",null,":",null,":",null,":",null,":",null,":",null,":",null,":",null,":",null,":",null,":"]
["S13_S15","TOTAL","EP_D3_7_R",null,null,null,null,null,2022,":",null,":",null,":",null,":",null,":",null,":",null,":",null,":",null,":",null,":",null,":",null,":",null,":",null,":",null,":"]
["S13_S15","TOTAL","EP_D3_7_R",null,null,null,null,null,2023,":",null,":",null,":",null,":",null,":",null,":",null,":",null,":",null,":",null,":",null,":",null,":",null,":",null,":",null,":"]
["S13_S15","TOTAL","EP_D3_7_R",null,null,null,null,null,2024,":",null,":",null,":",null,":",null,":",null,":",null,":",null,":",null,":",null,":",null,":",null,":",null,":",null,":",null,":"]
["S13_S15","TOTAL","EP_D3_7_R",null,null,null,null,null,2025,":",null,":",null,":",null,":",null,":",null,":",null,":",null,":",null,":",null,":",null,":",null,":",null,":",null,":",null,":"]
["S13_S15","TOTAL","EP_D3_7_R",null,null,null,null,null,2026,":",null,":",null,":",null,":",null,":",null,":",null,":",null,":",null,":",null,":",null,":",null,":",null,":",null,":",null,":"]
["S13_S15","TOTAL","EP_D3_7_R",null,null,null,null,null,2027,":",null,":",null,":",null,":",null,":",null,":",null,":",null,":",null,":",null,":",null,":",null,":",null,":",null,":",null,":"]
["S13_S15","TOTAL","EP_D3_7_R",null,null,null,null,null,2028,":",null,":",null,":",null,":",null,":",null,":",null,":",null,":",null,":",null,":",null,":",null,":",null,":",null,":",null,":"]
["S13_S15","TOTAL","EP_D3_7_R",null,null,null,null,null,2029,":",null,":",null,":",null,":",null,":",null,":",null,":",null,":",null,":",null,":",null,":",null,":",null,":",null,":",null,":"]
["S13_S15","TOTAL","EP_D3_7_R",null,null,null,null,null,2030,":",null,":",null,":",null,":",null,":",null,":",null,":",null,":",null,":",null,":",null,":",null,":",null,":",null,":",null,":"]
["S13_S15","TOTAL","EP_D3_7_R",null,null,null,null,null,2031,":",null,":",null,":",null,":",null,":",null,":",null,":",null,":",null,":",null,":",null,":",null,":",null,":",null,":",null,":"]
["S13_S15","TOTAL","EP_D92_99_R",null,"( D92_D99_REC_GG.6 ) General Government: investments grants and other capital transfers received from the rest of the world",null,null,null,2014,":",null,":",null,":",null,":",null,":",null,":",null,":",null,":",null,":",null,":",null,":",null,":",null,":",null,":",null,":"]
["S13_S15","TOTAL","EP_D92_99_R",null,null,null,null,null,2015,":",null,":",null,":",null,":",null,":",null,":",null,":",null,":",null,":",null,":",null,":",null,":",null,":",null,":",null,":"]
["S13_S15","TOTAL","EP_D92_99_R",null,null,null,null,null,2016,":",null,":",null,":",null,":",null,":",null,":",null,":",null,":",null,":",null,":",null,":",null,":",null,":",null,":",null,":"]
["S13_S15","TOTAL","EP_D92_99_R",null,null,null,null,null,2017,":",null,":",null,":",null,":",null,":",null,":",null,":",null,":",null,":",null,":",null,":",null,":",null,":",null,":",null,":"]
["S13_S15","TOTAL","EP_D92_99_R",null,null,null,null,null,2018,":",null,":",null,":",null,":",null,":",null,":",null,":",null,":",null,":",null,":",null,":",null,":",null,":",null,":",null,":"]
["S13_S15","TOTAL","EP_D92_99_R",null,null,null,null,null,2019,":",null,":",null,":",null,":",null,":",null,":",null,":",null,":",null,":",null,":",null,":",null,":",null,":",null,":",null,":"]
["S13_S15","TOTAL","EP_D92_99_R",null,null,null,null,null,2020,":",null,":",null,":",null,":",null,":",null,":",null,":",null,":",null,":",null,":",null,":",null,":",null,":",null,":",null,":"]
["S13_S15","TOTAL","EP_D92_99_R",null,null,null,null,null,2021,":",null,":",null,":",null,":",null,":",null,":",null,":",null,":",null,":",null,":",null,":",null,":",null,":",null,":",null,":"]
["S13_S15","TOTAL","EP_D92_99_R",null,null,null,null,null,2022,":",null,":",null,":",null,":",null,":",null,":",null,":",null,":",null,":",null,":",null,":",null,":",null,":",null,":",null,":"]
["S13_S15","TOTAL","EP_D92_99_R",null,null,null,null,null,2023,":",null,":",null,":",null,":",null,":",null,":",null,":",null,":",null,":",null,":",null,":",null,":",null,":",null,":",null,":"]
["S13_S15","TOTAL","EP_D92_99_R",null,null,null,null,null,2024,":",null,":",null,":",null,":",null,":",null,":",null,":",null,":",null,":",null,":",null,":",null,":",null,":",null,":",null,":"]
["S13_S15","TOTAL","EP_D92_99_R",null,null,null,null,null,2025,":",null,":",null,":",null,":",null,":",null,":",null,":",null,":",null,":",null,":",null,":",null,{"$f":"IF(COUNT(J72,N72,P72,R72,T72,V72,AD72)=7,SUM(J72,N72,P72,R72,T72,V72,AD72),\":\")","v":":"},null,":",null,":",null,":"]
["S13_S15","TOTAL","EP_D92_99_R",null,null,null,null,null,2026,":",null,":",null,":",null,":",null,":",null,":",null,":",null,":",null,":",null,":",null,":",null,":",null,":",null,":",null,":"]
["S13_S15","TOTAL","EP_D92_99_R",null,null,null,null,null,2027,":",null,":",null,":",null,":",null,":",null,":",null,":",null,":",null,":",null,":",null,":",null,":",null,":",null,":",null,":"]
["S13_S15","TOTAL","EP_D92_99_R",null,null,null,null,null,2028,":",null,":",null,":",null,":",null,":",null,":",null,":",null,":",null,":",null,":",null,":",null,":",null,":",null,":",null,":"]
["S13_S15","TOTAL","EP_D92_99_R",null,null,null,null,null,2029,":",null,":",null,":",null,":",null,":",null,":",null,":",null,":",null,":",null,":",null,":",null,":",null,":",null,":",null,":"]
["S13_S15","TOTAL","EP_D92_99_R",null,null,null,null,null,2030,":",null,":",null,":",null,":",null,":",null,":",null,":",null,":",null,":",null,":",null,":",null,":",null,":",null,":",null,":"]
["S13_S15","TOTAL","EP_D92_99_R",null,null,null,null,null,2031,":",null,":",null,":",null,":",null,":",null,":",null,":",null,":",null,":",null,":",null,":",null,":",null,":",null,":",null,":"]
["S11_S12","TOTAL","EP_D3_7_92_99_R",null,"( D3_D7_D92_D99_REC_CORP.6 ) Corporations: transfers received from general government and the rest of the world",null,null,null,2014,":",null,":",null,":",null,":",null,":",null,":",null,":",null,":",null,":",null,":",null,":",null,":",null,":",null,":",null,":"]
["S11_S12","TOTAL","EP_D3_7_92_99_R",null,null,null,null,null,2015,":",null,":",null,":",null,":",null,":",null,":",null,":",null,":",null,":",null,":",null,":",null,":",null,":",null,":",null,":"]
["S11_S12","TOTAL","EP_D3_7_92_99_R",null,null,null,null,null,2016,":",null,":",null,":",null,":",null,":",null,":",null,":",null,":",null,":",null,":",null,":",null,":",null,":",null,":",null,":"]
["S11_S12","TOTAL","EP_D3_7_92_99_R",null,null,null,null,null,2017,":",null,":",null,":",null,":",null,":",null,":",null,":",null,":",null,":",null,":",null,":",null,":",null,":",null,":",null,":"]
["S11_S12","TOTAL","EP_D3_7_92_99_R",null,null,null,null,null,2018,":",null,":",null,":",null,":",null,":",null,":",null,":",null,":",null,":",null,":",null,":",null,":",null,":",null,":",null,":"]
["S11_S12","TOTAL","EP_D3_7_92_99_R",null,null,null,null,null,2019,":",null,":",null,":",null,":",null,":",null,":",null,":",null,":",null,":",null,":",null,":",null,":",null,":",null,":",null,":"]
["S11_S12","TOTAL","EP_D3_7_92_99_R",null,null,null,null,null,2020,":",null,":",null,":",null,":",null,":",null,":",null,":",null,":",null,":",null,":",null,":",null,":",null,":",null,":",null,":"]
["S11_S12","TOTAL","EP_D3_7_92_99_R",null,null,null,null,null,2021,":",null,":",null,":",null,":",null,":",null,":",null,":",null,":",null,":",null,":",null,":",null,":",null,":",null,":",null,":"]
["S11_S12","TOTAL","EP_D3_7_92_99_R",null,null,null,null,null,2022,":",null,":",null,":",null,":",null,":",null,":",null,":",null,":",null,":",null,":",null,":",null,":",null,":",null,":",null,":"]
["S11_S12","TOTAL","EP_D3_7_92_99_R",null,null,null,null,null,2023,":",null,":",null,":",null,":",null,":",null,":",null,":",null,":",null,":",null,":",null,":",null,":",null,":",null,":",null,":"]
["S11_S12","TOTAL","EP_D3_7_92_99_R",null,null,null,null,null,2024,":",null,":",null,":",null,":",null,":",null,":",null,":",null,":",null,":",null,":",null,":",null,":",null,":",null,":",null,":"]
["S11_S12","TOTAL","EP_D3_7_92_99_R",null,null,null,null,null,2025,":",null,":",null,":",null,":",null,":",null,":",null,":",null,":",null,":",null,":",null,":",null,":",null,":",null,":",null,":"]
["S11_S12","TOTAL","EP_D3_7_92_99_R",null,null,null,null,null,2026,":",null,":",null,":",null,":",null,":",null,":",null,":",null,":",null,":",null,":",null,":",null,":",null,":",null,":",null,":"]
["S11_S12","TOTAL","EP_D3_7_92_99_R",null,null,null,null,null,2027,":",null,":",null,":",null,":",null,":",null,":",null,":",null,":",null,":",null,":",null,":",null,":",null,":",null,":",null,":"]
["S11_S12","TOTAL","EP_D3_7_92_99_R",null,null,null,null,null,2028,":",null,":",null,":",null,":",null,":",null,":",null,":",null,":",null,":",null,":",null,":",null,":",null,":",null,":",null,":"]
["S11_S12","TOTAL","EP_D3_7_92_99_R",null,null,null,null,null,2029,":",null,":",null,":",null,":",null,":",null,":",null,":",null,":",null,":",null,":",null,":",null,":",null,":",null,":",null,":"]
["S11_S12","TOTAL","EP_D3_7_92_99_R",null,null,null,null,null,2030,":",null,":",null,":",null,":",null,":",null,":",null,":",null,":",null,":",null,":",null,":",null,":",null,":",null,":",null,":"]
["S11_S12","TOTAL","EP_D3_7_92_99_R",null,null,null,null,null,2031,":",null,":",null,":",null,":",null,":",null,":",null,":",null,":",null,":",null,":",null,":",null,":",null,":",null,":",null,":"]
["S11_S12","TOTAL","EP_D3_7_R",null,"( D3_D7_REC_CORP.6 ) Corporations: current transfers received from the general government and rest of the world",null,null,null,2014,":",null,":",null,":",null,":",null,":",null,":",null,":",null,":",null,":",null,":",null,":",null,":",null,":",null,":",null,":"]
["S11_S12","TOTAL","EP_D3_7_R",null,null,null,null,null,2015,":",null,":",null,":",null,":",null,":",null,":",null,":",null,":",null,":",null,":",null,":",null,":",null,":",null,":",null,":"]
["S11_S12","TOTAL","EP_D3_7_R",null,null,null,null,null,2016,":",null,":",null,":",null,":",null,":",null,":",null,":",null,":",null,":",null,":",null,":",null,":",null,":",null,":",null,":"]
["S11_S12","TOTAL","EP_D3_7_R",null,null,null,null,null,2017,":",null,":",null,":",null,":",null,":",null,":",null,":",null,":",null,":",null,":",null,":",null,":",null,":",null,":",null,":"]
["S11_S12","TOTAL","EP_D3_7_R",null,null,null,null,null,2018,":",null,":",null,":",null,":",null,":",null,":",null,":",null,":",null,":",null,":",null,":",null,":",null,":",null,":",null,":"]
["S11_S12","TOTAL","EP_D3_7_R",null,null,null,null,null,2019,":",null,":",null,":",null,":",null,":",null,":",null,":",null,":",null,":",null,":",null,":",null,":",null,":",null,":",null,":"]
["S11_S12","TOTAL","EP_D3_7_R",null,null,null,null,null,2020,":",null,":",null,":",null,":",null,":",null,":",null,":",null,":",null,":",null,":",null,":",null,":",null,":",null,":",null,":"]
["S11_S12","TOTAL","EP_D3_7_R",null,null,null,null,null,2021,":",null,":",null,":",null,":",null,":",null,":",null,":",null,":",null,":",null,":",null,":",null,":",null,":",null,":",null,":"]
["S11_S12","TOTAL","EP_D3_7_R",null,null,null,null,null,2022,":",null,":",null,":",null,":",null,":",null,":",null,":",null,":",null,":",null,":",null,":",null,":",null,":",null,":",null,":"]
["S11_S12","TOTAL","EP_D3_7_R",null,null,null,null,null,2023,":",null,":",null,":",null,":",null,":",null,":",null,":",null,":",null,":",null,":",null,":",null,":",null,":",null,":",null,":"]
["S11_S12","TOTAL","EP_D3_7_R",null,null,null,null,null,2024,":",null,":",null,":",null,":",null,":",null,":",null,":",null,":",null,":",null,":",null,":",null,":",null,":",null,":",null,":"]
["S11_S12","TOTAL","EP_D3_7_R",null,null,null,null,null,2025,":",null,":",null,":",null,":",null,":",null,":",null,":",null,":",null,":",null,":",null,":",null,":",null,":",null,":",null,":"]
["S11_S12","TOTAL","EP_D3_7_R",null,null,null,null,null,2026,":",null,":",null,":",null,":",null,":",null,":",null,":",null,":",null,":",null,":",null,":",null,":",null,":",null,":",null,":"]
["S11_S12","TOTAL","EP_D3_7_R",null,null,null,null,null,2027,":",null,":",null,":",null,":",null,":",null,":",null,":",null,":",null,":",null,":",null,":",null,":",null,":",null,":",null,":"]
["S11_S12","TOTAL","EP_D3_7_R",null,null,null,null,null,2028,":",null,":",null,":",null,":",null,":",null,":",null,":",null,":",null,":",null,":",null,":",null,":",null,":",null,":",null,":"]
["S11_S12","TOTAL","EP_D3_7_R",null,null,null,null,null,2029,":",null,":",null,":",null,":",null,":",null,":",null,":",null,":",null,":",null,":",null,":",null,":",null,":",null,":",null,":"]
["S11_S12","TOTAL","EP_D3_7_R",null,null,null,null,null,2030,":",null,":",null,":",null,":",null,":",null,":",null,":",null,":",null,":",null,":",null,":",null,":",null,":",null,":",null,":"]
["S11_S12","TOTAL","EP_D3_7_R",null,null,null,null,null,2031,":",null,":",null,":",null,":",null,":",null,":",null,":",null,":",null,":",null,":",null,":",null,":",null,":",null,":",null,":"]
["S11_S12","TOTAL","EP_D92_99_R",null,"( D92_D99_REC_CORP.6 ) Corporations: investments grants and other capital transfers received from general government and rest of the world",null,null,null,2014,":",null,":",null,":",null,":",null,":",null,":",null,":",null,":",null,":",null,":",null,":",null,":",null,":",null,":",null,":"]
["S11_S12","TOTAL","EP_D92_99_R",null,null,null,null,null,2015,":",null,":",null,":",null,":",null,":",null,":",null,":",null,":",null,":",null,":",null,":",null,":",null,":",null,":",null,":"]
["S11_S12","TOTAL","EP_D92_99_R",null,null,null,null,null,2016,":",null,":",null,":",null,":",null,":",null,":",null,":",null,":",null,":",null,":",null,":",null,":",null,":",null,":",null,":"]
["S11_S12","TOTAL","EP_D92_99_R",null,null,null,null,null,2017,":",null,":",null,":",null,":",null,":",null,":",null,":",null,":",null,":",null,":",null,":",null,":",null,":",null,":",null,":"]
["S11_S12","TOTAL","EP_D92_99_R",null,null,null,null,null,2018,":",null,":",null,":",null,":",null,":",null,":",null,":",null,":",null,":",null,":",null,":",null,":",null,":",null,":",null,":"]
["S11_S12","TOTAL","EP_D92_99_R",null,null,null,null,null,2019,":",null,":",null,":",null,":",null,":",null,":",null,":",null,":",null,":",null,":",null,":",null,":",null,":",null,":",null,":"]
["S11_S12","TOTAL","EP_D92_99_R",null,null,null,null,null,2020,":",null,":",null,":",null,":",null,":",null,":",null,":",null,":",null,":",null,":",null,":",null,":",null,":",null,":",null,":"]
["S11_S12","TOTAL","EP_D92_99_R",null,null,null,null,null,2021,":",null,":",null,":",null,":",null,":",null,":",null,":",null,":",null,":",null,":",null,":",null,":",null,":",null,":",null,":"]
["S11_S12","TOTAL","EP_D92_99_R",null,null,null,null,null,2022,":",null,":",null,":",null,":",null,":",null,":",null,":",null,":",null,":",null,":",null,":",null,":",null,":",null,":",null,":"]
["S11_S12","TOTAL","EP_D92_99_R",null,null,null,null,null,2023,":",null,":",null,":",null,":",null,":",null,":",null,":",null,":",null,":",null,":",null,":",null,":",null,":",null,":",null,":"]
["S11_S12","TOTAL","EP_D92_99_R",null,null,null,null,null,2024,":",null,":",null,":",null,":",null,":",null,":",null,":",null,":",null,":",null,":",null,":",null,":",null,":",null,":",null,":"]
["S11_S12","TOTAL","EP_D92_99_R",null,null,null,null,null,2025,":",null,":",null,":",null,":",null,":",null,":",null,":",null,":",null,":",null,":",null,":",null,":",null,":",null,":",null,":"]
["S11_S12","TOTAL","EP_D92_99_R",null,null,null,null,null,2026,":",null,":",null,":",null,":",null,":",null,":",null,":",null,":",null,":",null,":",null,":",null,":",null,":",null,":",null,":"]
["S11_S12","TOTAL","EP_D92_99_R",null,null,null,null,null,2027,":",null,":",null,":",null,":",null,":",null,":",null,":",null,":",null,":",null,":",null,":",null,":",null,":",null,":",null,":"]
["S11_S12","TOTAL","EP_D92_99_R",null,null,null,null,null,2028,":",null,":",null,":",null,":",null,":",null,":",null,":",null,":",null,":",null,":",null,":",null,":",null,":",null,":",null,":"]
["S11_S12","TOTAL","EP_D92_99_R",null,null,null,null,null,2029,":",null,":",null,":",null,":",null,":",null,":",null,":",null,":",null,":",null,":",null,":",null,":",null,":",null,":",null,":"]
["S11_S12","TOTAL","EP_D92_99_R",null,null,null,null,null,2030,":",null,":",null,":",null,":",null,":",null,":",null,":",null,":",null,":",null,":",null,":",null,":",null,":",null,":",null,":"]
["S11_S12","TOTAL","EP_D92_99_R",null,null,null,null,null,2031,":",null,":",null,":",null,":",null,":",null,":",null,":",null,":",null,":",null,":",null,":",null,":",null,":",null,":",null,":"]
["S11_S12","TOTAL","EP_TAXEM_P",null,"( TAX_EM_PAY_CORP.6 ) Corporations: earmarked taxes paid",null,null,null,2014,":",null,":",null,":",null,":",null,":",null,":",null,":",null,":",null,":",null,":",null,":",null,":",null,":",null,":",null,":"]
["S11_S12","TOTAL","EP_TAXEM_P",null,null,null,null,null,2015,":",null,":",null,":",null,":",null,":",null,":",null,":",null,":",null,":",null,":",null,":",null,":",null,":",null,":",null,":"]
["S11_S12","TOTAL","EP_TAXEM_P",null,null,null,null,null,2016,":",null,":",null,":",null,":",null,":",null,":",null,":",null,":",null,":",null,":",null,":",null,":",null,":",null,":",null,":"]
["S11_S12","TOTAL","EP_TAXEM_P",null,null,null,null,null,2017,":",null,":",null,":",null,":",null,":",null,":",null,":",null,":",null,":",null,":",null,":",null,{"$f":"IF(COUNT(J136,N136,P136,R136,T136,V136,AD136)=7,SUM(J136,N136,P136,R136,T136,V136,AD136),\":\")","v":":"},null,":",null,":",null,":"]
["S11_S12","TOTAL","EP_TAXEM_P",null,null,null,null,null,2018,":",null,":",null,":",null,":",null,":",null,":",null,":",null,":",null,":",null,":",null,":",null,":",null,":",null,":",null,":"]
["S11_S12","TOTAL","EP_TAXEM_P",null,null,null,null,null,2019,":",null,":",null,":",null,":",null,":",null,":",null,":",null,":",null,":",null,":",null,":",null,":",null,":",null,":",null,":"]
["S11_S12","TOTAL","EP_TAXEM_P",null,null,null,null,null,2020,":",null,":",null,":",null,":",null,":",null,":",null,":",null,":",null,":",null,":",null,":",null,":",null,":",null,":",null,":"]
["S11_S12","TOTAL","EP_TAXEM_P",null,null,null,null,null,2021,":",null,":",null,":",null,":",null,":",null,":",null,":",null,":",null,":",null,":",null,":",null,":",null,":",null,":",null,":"]
["S11_S12","TOTAL","EP_TAXEM_P",null,null,null,null,null,2022,":",null,":",null,":",null,":",null,":",null,":",null,":",null,":",null,":",null,":",null,":",null,":",null,":",null,":",null,":"]
["S11_S12","TOTAL","EP_TAXEM_P",null,null,null,null,null,2023,":",null,":",null,":",null,":",null,":",null,":",null,":",null,":",null,":",null,":",null,":",null,":",null,":",null,":",null,":"]
["S11_S12","TOTAL","EP_TAXEM_P",null,null,null,null,null,2024,":",null,":",null,":",null,":",null,":",null,":",null,":",null,":",null,":",null,":",null,":",null,":",null,":",null,":",null,":"]
["S11_S12","TOTAL","EP_TAXEM_P",null,null,null,null,null,2025,":",null,":",null,":",null,":",null,":",null,":",null,":",null,":",null,":",null,":",null,":",null,":",null,":",null,":",null,":"]
["S11_S12","TOTAL","EP_TAXEM_P",null,null,null,null,null,2026,":",null,":",null,":",null,":",null,":",null,":",null,":",null,":",null,":",null,":",null,":",null,":",null,":",null,":",null,":"]
["S11_S12","TOTAL","EP_TAXEM_P",null,null,null,null,null,2027,":",null,":",null,":",null,":",null,":",null,":",null,":",null,":",null,":",null,":",null,":",null,":",null,":",null,":",null,":"]
["S11_S12","TOTAL","EP_TAXEM_P",null,null,null,null,null,2028,":",null,":",null,":",null,":",null,":",null,":",null,":",null,":",null,":",null,":",null,":",null,":",null,":",null,":",null,":"]
["S11_S12","TOTAL","EP_TAXEM_P",null,null,null,null,null,2029,":",null,":",null,":",null,":",null,":",null,":",null,":",null,":",null,":",null,":",null,":",null,":",null,":",null,":",null,":"]
["S11_S12","TOTAL","EP_TAXEM_P",null,null,null,null,null,2030,":",null,":",null,":",null,":",null,":",null,":",null,":",null,":",null,":",null,":",null,":",null,":",null,":",null,":",null,":"]
["S11_S12","TOTAL","EP_TAXEM_P",null,null,null,null,null,2031,":",null,":",null,":",null,":",null,":",null,":",null,":",null,":",null,":",null,":",null,":",null,":",null,":",null,":",null,":"]
["S14","TOTAL_HH","EP_D3_7_92_99_R",null,"(  D3_D7_D92_D99_REC_HH.6 ) Households: transfers received from general government and rest of the world",null,null,null,2014,":",null,":",null,":",null,":",null,":",null,":",null,":",null,":",null,":",null,":",null,":",null,":",null,":",null,":",null,":"]
["S14","TOTAL_HH","EP_D3_7_92_99_R",null,null,null,null,null,2015,":",null,":",null,":",null,":",null,":",null,":",null,":",null,":",null,":",null,":",null,":",null,":",null,":",null,":",null,":"]
["S14","TOTAL_HH","EP_D3_7_92_99_R",null,null,null,null,null,2016,":",null,":",null,":",null,":",null,":",null,":",null,":",null,":",null,":",null,":",null,":",null,":",null,":",null,":",null,":"]
["S14","TOTAL_HH","EP_D3_7_92_99_R",null,null,null,null,null,2017,":",null,":",null,":",null,":",null,":",null,":",null,":",null,":",null,":",null,":",null,":",null,":",null,":",null,":",null,":"]
["S14","TOTAL_HH","EP_D3_7_92_99_R",null,null,null,null,null,2018,":",null,":",null,":",null,":",null,":",null,":",null,":",null,":",null,":",null,":",null,":",null,":",null,":",null,":",null,":"]
["S14","TOTAL_HH","EP_D3_7_92_99_R",null,null,null,null,null,2019,":",null,":",null,":",null,":",null,":",null,":",null,":",null,":",null,":",null,":",null,":",null,":",null,":",null,":",null,":"]
["S14","TOTAL_HH","EP_D3_7_92_99_R",null,null,null,null,null,2020,":",null,":",null,":",null,":",null,":",null,":",null,":",null,":",null,":",null,":",null,":",null,":",null,":",null,":",null,":"]
["S14","TOTAL_HH","EP_D3_7_92_99_R",null,null,null,null,null,2021,":",null,":",null,":",null,":",null,":",null,":",null,":",null,":",null,":",null,":",null,":",null,":",null,":",null,":",null,":"]
["S14","TOTAL_HH","EP_D3_7_92_99_R",null,null,null,null,null,2022,":",null,":",null,":",null,":",null,":",null,":",null,":",null,":",null,":",null,":",null,":",null,":",null,":",null,":",null,":"]
["S14","TOTAL_HH","EP_D3_7_92_99_R",null,null,null,null,null,2023,":",null,":",null,":",null,":",null,":",null,":",null,":",null,":",null,":",null,":",null,":",null,":",null,":",null,":",null,":"]
["S14","TOTAL_HH","EP_D3_7_92_99_R",null,null,null,null,null,2024,":",null,":",null,":",null,":",null,":",null,":",null,":",null,":",null,":",null,":",null,":",null,":",null,":",null,":",null,":"]
["S14","TOTAL_HH","EP_D3_7_92_99_R",null,null,null,null,null,2025,":",null,":",null,":",null,":",null,":",null,":",null,":",null,":",null,":",null,":",null,":",null,":",null,":",null,":",null,":"]
["S14","TOTAL_HH","EP_D3_7_92_99_R",null,null,null,null,null,2026,":",null,":",null,":",null,":",null,":",null,":",null,":",null,":",null,":",null,":",null,":",null,":",null,":",null,":",null,":"]
["S14","TOTAL_HH","EP_D3_7_92_99_R",null,null,null,null,null,2027,":",null,":",null,":",null,":",null,":",null,":",null,":",null,":",null,":",null,":",null,":",null,":",null,":",null,":",null,":"]
["S14","TOTAL_HH","EP_D3_7_92_99_R",null,null,null,null,null,2028,":",null,":",null,":",null,":",null,":",null,":",null,":",null,":",null,":",null,":",null,":",null,":",null,":",null,":",null,":"]
["S14","TOTAL_HH","EP_D3_7_92_99_R",null,null,null,null,null,2029,":",null,":",null,":",null,":",null,":",null,":",null,":",null,":",null,":",null,":",null,":",null,":",null,":",null,":",null,":"]
["S14","TOTAL_HH","EP_D3_7_92_99_R",null,null,null,null,null,2030,":",null,":",null,":",null,":",null,":",null,":",null,":",null,":",null,":",null,":",null,":",null,":",null,":",null,":",null,":"]
["S14","TOTAL_HH","EP_D3_7_92_99_R",null,null,null,null,null,2031,":",null,":",null,":",null,":",null,":",null,":",null,":",null,":",null,":",null,":",null,":",null,":",null,":",null,":",null,":"]
["S14","TOTAL_HH","EP_TAXEM_P",null,"( TAX_EM_PAY_HH.6 ) Households: earmarked taxes paid",null,null,null,2014,":",null,":",null,":",null,":",null,":",null,":",null,":",null,":",null,":",null,":",null,":",null,":",null,":",null,":",null,":"]
["S14","TOTAL_HH","EP_TAXEM_P",null,null,null,null,null,2015,":",null,":",null,":",null,":",null,":",null,":",null,":",null,":",null,":",null,":",null,":",null,":",null,":",null,":",null,":"]
["S14","TOTAL_HH","EP_TAXEM_P",null,null,null,null,null,2016,":",null,":",null,":",null,":",null,":",null,":",null,":",null,":",null,":",null,":",null,":",null,":",null,":",null,":",null,":"]
["S14","TOTAL_HH","EP_TAXEM_P",null,null,null,null,null,2017,":",null,":",null,":",null,":",null,":",null,":",null,":",null,":",null,":",null,":",null,":",null,":",null,":",null,":",null,":"]
["S14","TOTAL_HH","EP_TAXEM_P",null,null,null,null,null,2018,":",null,":",null,":",null,":",null,":",null,":",null,":",null,":",null,":",null,":",null,":",null,":",null,":",null,":",null,":"]
["S14","TOTAL_HH","EP_TAXEM_P",null,null,null,null,null,2019,":",null,":",null,":",null,":",null,":",null,":",null,":",null,":",null,":",null,":",null,":",null,":",null,":",null,":",null,":"]
["S14","TOTAL_HH","EP_TAXEM_P",null,null,null,null,null,2020,":",null,":",null,":",null,":",null,":",null,":",null,":",null,":",null,":",null,":",null,":",null,":",null,":",null,":",null,":"]
["S14","TOTAL_HH","EP_TAXEM_P",null,null,null,null,null,2021,":",null,":",null,":",null,":",null,":",null,":",null,":",null,":",null,":",null,":",null,":",null,":",null,":",null,":",null,":"]
["S14","TOTAL_HH","EP_TAXEM_P",null,null,null,null,null,2022,":",null,":",null,":",null,":",null,":",null,":",null,":",null,":",null,":",null,":",null,":",null,":",null,":",null,":",null,":"]
["S14","TOTAL_HH","EP_TAXEM_P",null,null,null,null,null,2023,":",null,":",null,":",null,":",null,":",null,":",null,":",null,":",null,":",null,":",null,":",null,":",null,":",null,":",null,":"]
["S14","TOTAL_HH","EP_TAXEM_P",null,null,null,null,null,2024,":",null,":",null,":",null,":",null,":",null,":",null,":",null,":",null,":",null,":",null,":",null,":",null,":",null,":",null,":"]
["S14","TOTAL_HH","EP_TAXEM_P",null,null,null,null,null,2025,":",null,":",null,":",null,":",null,":",null,":",null,":",null,":",null,":",null,":",null,":",null,":",null,":",null,":",null,":"]
["S14","TOTAL_HH","EP_TAXEM_P",null,null,null,null,null,2026,":",null,":",null,":",null,":",null,":",null,":",null,":",null,":",null,":",null,":",null,":",null,":",null,":",null,":",null,":"]
["S14","TOTAL_HH","EP_TAXEM_P",null,null,null,null,null,2027,":",null,":",null,":",null,":",null,":",null,":",null,":",null,":",null,":",null,":",null,":",null,":",null,":",null,":",null,":"]
["S14","TOTAL_HH","EP_TAXEM_P",null,null,null,null,null,2028,":",null,":",null,":",null,":",null,":",null,":",null,":",null,":",null,":",null,":",null,":",null,":",null,":",null,":",null,":"]
["S14","TOTAL_HH","EP_TAXEM_P",null,null,null,null,null,2029,":",null,":",null,":",null,":",null,":",null,":",null,":",null,":",null,":",null,":",null,":",null,":",null,":",null,":",null,":"]
["S14","TOTAL_HH","EP_TAXEM_P",null,null,null,null,null,2030,":",null,":",null,":",null,":",null,":",null,":",null,":",null,":",null,":",null,":",null,":",null,":",null,":",null,":",null,":"]
["S14","TOTAL_HH","EP_TAXEM_P",null,null,null,null,null,2031,":",null,":",null,":",null,":",null,":",null,":",null,":",null,":",null,":",null,":",null,":",null,":",null,":",null,":",null,":"]
["S2","TOTAL_HH","EP_D3_7_92_99_P",null,"( D3_D7_D92_D99_PAY_RW.6 ) Rest of the World: transfers paid",null,null,null,2014,":",null,":",null,":",null,":",null,":",null,":",null,":",null,":",null,":",null,":",null,":",null,":",null,":",null,":",null,":"]
["S2","TOTAL_HH","EP_D3_7_92_99_P",null,null,null,null,null,2015,":",null,":",null,":",null,":",null,":",null,":",null,":",null,":",null,":",null,":",null,":",null,":",null,":",null,":",null,":"]
["S2","TOTAL_HH","EP_D3_7_92_99_P",null,null,null,null,null,2016,":",null,":",null,":",null,":",null,":",null,":",null,":",null,":",null,":",null,":",null,":",null,":",null,":",null,":",null,":"]
["S2","TOTAL_HH","EP_D3_7_92_99_P",null,null,null,null,null,2017,":",null,":",null,":",null,":",null,":",null,":",null,":",null,":",null,":",null,":",null,":",null,":",null,":",null,":",null,":"]
["S2","TOTAL_HH","EP_D3_7_92_99_P",null,null,null,null,null,2018,":",null,":",null,":",null,":",null,":",null,":",null,":",null,":",null,":",null,":",null,":",null,":",null,":",null,":",null,":"]
["S2","TOTAL_HH","EP_D3_7_92_99_P",null,null,null,null,null,2019,":",null,":",null,":",null,":",null,":",null,":",null,":",null,":",null,":",null,":",null,":",null,":",null,":",null,":",null,":"]
["S2","TOTAL_HH","EP_D3_7_92_99_P",null,null,null,null,null,2020,":",null,":",null,":",null,":",null,":",null,":",null,":",null,":",null,":",null,":",null,":",null,":",null,":",null,":",null,":"]
["S2","TOTAL_HH","EP_D3_7_92_99_P",null,null,null,null,null,2021,":",null,":",null,":",null,":",null,":",null,":",null,":",null,":",null,":",null,":",null,":",null,":",null,":",null,":",null,":"]
["S2","TOTAL_HH","EP_D3_7_92_99_P",null,null,null,null,null,2022,":",null,":",null,":",null,":",null,":",null,":",null,":",null,":",null,":",null,":",null,":",null,":",null,":",null,":",null,":"]
["S2","TOTAL_HH","EP_D3_7_92_99_P",null,null,null,null,null,2023,":",null,":",null,":",null,":",null,":",null,":",null,":",null,":",null,":",null,":",null,":",null,":",null,":",null,":",null,":"]
["S2","TOTAL_HH","EP_D3_7_92_99_P",null,null,null,null,null,2024,":",null,":",null,":",null,":",null,":",null,":",null,":",null,":",null,":",null,":",null,":",null,":",null,":",null,":",null,":"]
["S2","TOTAL_HH","EP_D3_7_92_99_P",null,null,null,null,null,2025,":",null,":",null,":",null,":",null,":",null,":",null,":",null,":",null,":",null,":",null,":",null,":",null,":",null,":",null,":"]
["S2","TOTAL_HH","EP_D3_7_92_99_P",null,null,null,null,null,2026,":",null,":",null,":",null,":",null,":",null,":",null,":",null,":",null,":",null,":",null,":",null,":",null,":",null,":",null,":"]
["S2","TOTAL_HH","EP_D3_7_92_99_P",null,null,null,null,null,2027,":",null,":",null,":",null,":",null,":",null,":",null,":",null,":",null,":",null,":",null,":",null,{"$f":"IF(COUNT(J200,N200,P200,R200,T200,V200,AD200)=7,SUM(J200,N200,P200,R200,T200,V200,AD200),\":\")","v":":"},null,":",null,":",null,":"]
["S2","TOTAL_HH","EP_D3_7_92_99_P",null,null,null,null,null,2028,":",null,":",null,":",null,":",null,":",null,":",null,":",null,":",null,":",null,":",null,":",null,":",null,":",null,":",null,":"]
["S2","TOTAL_HH","EP_D3_7_92_99_P",null,null,null,null,null,2029,":",null,":",null,":",null,":",null,":",null,":",null,":",null,":",null,":",null,":",null,":",null,":",null,":",null,":",null,":"]
["S2","TOTAL_HH","EP_D3_7_92_99_P",null,null,null,null,null,2030,":",null,":",null,":",null,":",null,":",null,":",null,":",null,":",null,":",null,":",null,":",null,":",null,":",null,":",null,":"]
["S2","TOTAL_HH","EP_D3_7_92_99_P",null,null,null,null,null,2031,":",null,":",null,":",null,":",null,":",null,":",null,":",null,":",null,":",null,":",null,":",null,":",null,":",null,":",null,":"]
["S2","TOTAL_HH","EP_D3_7_92_99_R",null,"( D3_D7_D92_D99_REC_RW.6 ) Rest of the world: transfers received from general government",null,null,null,2014,":",null,":",null,":",null,":",null,":",null,":",null,":",null,":",null,":",null,":",null,":",null,":",null,":",null,":",null,":"]
["S2","TOTAL_HH","EP_D3_7_92_99_R",null,null,null,null,null,2015,":",null,":",null,":",null,":",null,":",null,":",null,":",null,":",null,":",null,":",null,":",null,":",null,":",null,":",null,":"]
["S2","TOTAL_HH","EP_D3_7_92_99_R",null,null,null,null,null,2016,":",null,":",null,":",null,":",null,":",null,":",null,":",null,":",null,":",null,":",null,":",null,":",null,":",null,":",null,":"]
["S2","TOTAL_HH","EP_D3_7_92_99_R",null,null,null,null,null,2017,":",null,":",null,":",null,":",null,":",null,":",null,":",null,":",null,":",null,":",null,":",null,":",null,":",null,":",null,":"]
["S2","TOTAL_HH","EP_D3_7_92_99_R",null,null,null,null,null,2018,":",null,":",null,":",null,":",null,":",null,":",null,":",null,":",null,":",null,":",null,":",null,":",null,":",null,":",null,":"]
["S2","TOTAL_HH","EP_D3_7_92_99_R",null,null,null,null,null,2019,":",null,":",null,":",null,":",null,":",null,":",null,":",null,":",null,":",null,":",null,":",null,":",null,":",null,":",null,":"]
["S2","TOTAL_HH","EP_D3_7_92_99_R",null,null,null,null,null,2020,":",null,":",null,":",null,":",null,":",null,":",null,":",null,":",null,":",null,":",null,":",null,":",null,":",null,":",null,":"]
["S2","TOTAL_HH","EP_D3_7_92_99_R",null,null,null,null,null,2021,":",null,":",null,":",null,":",null,":",null,":",null,":",null,":",null,":",null,":",null,":",null,":",null,":",null,":",null,":"]
["S2","TOTAL_HH","EP_D3_7_92_99_R",null,null,null,null,null,2022,":",null,":",null,":",null,":",null,":",null,":",null,":",null,":",null,":",null,":",null,":",null,":",null,":",null,":",null,":"]
["S2","TOTAL_HH","EP_D3_7_92_99_R",null,null,null,null,null,2023,":",null,":",null,":",null,":",null,":",null,":",null,":",null,":",null,":",null,":",null,":",null,":",null,":",null,":",null,":"]
["S2","TOTAL_HH","EP_D3_7_92_99_R",null,null,null,null,null,2024,":",null,":",null,":",null,":",null,":",null,":",null,":",null,":",null,":",null,":",null,":",null,":",null,":",null,":",null,":"]
["S2","TOTAL_HH","EP_D3_7_92_99_R",null,null,null,null,null,2025,":",null,":",null,":",null,":",null,":",null,":",null,":",null,":",null,":",null,":",null,":",null,":",null,":",null,":",null,":"]
["S2","TOTAL_HH","EP_D3_7_92_99_R",null,null,null,null,null,2026,":",null,":",null,":",null,":",null,":",null,":",null,":",null,":",null,":",null,":",null,":",null,":",null,":",null,":",null,":"]
["S2","TOTAL_HH","EP_D3_7_92_99_R",null,null,null,null,null,2027,":",null,":",null,":",null,":",null,":",null,":",null,":",null,":",null,":",null,":",null,":",null,":",null,":",null,":",null,":"]
["S2","TOTAL_HH","EP_D3_7_92_99_R",null,null,null,null,null,2028,":",null,":",null,":",null,":",null,":",null,":",null,":",null,":",null,":",null,":",null,":",null,":",null,":",null,":",null,":"]
["S2","TOTAL_HH","EP_D3_7_92_99_R",null,null,null,null,null,2029,":",null,":",null,":",null,":",null,":",null,":",null,":",null,":",null,":",null,":",null,":",null,":",null,":",null,":",null,":"]
["S2","TOTAL_HH","EP_D3_7_92_99_R",null,null,null,null,null,2030,":",null,":",null,":",null,":",null,":",null,":",null,":",null,":",null,":",null,":",null,":",null,":",null,":",null,":",null,":"]
["S2","TOTAL_HH","EP_D3_7_92_99_R",null,null,null,null,null,2031,":",null,":",null,":",null,":",null,":",null,":",null,":",null,":",null,":",null,":",null,":",null,":",null,":",null,":",null,":"]
["S2","TOTAL_HH","EP_D3_7_R",null,"( D3_D7_REC_RW.6 ) Rest of the World: current transfers received from general government",null,null,null,2014,":",null,":",null,":",null,":",null,":",null,":",null,":",null,":",null,":",null,":",null,":",null,":",null,":",null,":",null,":"]
["S2","TOTAL_HH","EP_D3_7_R",null,null,null,null,null,2015,":",null,":",null,":",null,":",null,":",null,":",null,":",null,":",null,":",null,":",null,":",null,":",null,":",null,":",null,":"]
["S2","TOTAL_HH","EP_D3_7_R",null,null,null,null,null,2016,":",null,":",null,":",null,":",null,":",null,":",null,":",null,":",null,":",null,":",null,":",null,":",null,":",null,":",null,":"]
["S2","TOTAL_HH","EP_D3_7_R",null,null,null,null,null,2017,":",null,":",null,":",null,":",null,":",null,":",null,":",null,":",null,":",null,":",null,":",null,":",null,":",null,":",null,":"]
["S2","TOTAL_HH","EP_D3_7_R",null,null,null,null,null,2018,":",null,":",null,":",null,":",null,":",null,":",null,":",null,":",null,":",null,":",null,":",null,":",null,":",null,":",null,":"]
["S2","TOTAL_HH","EP_D3_7_R",null,null,null,null,null,2019,":",null,":",null,":",null,":",null,":",null,":",null,":",null,":",null,":",null,":",null,":",null,":",null,":",null,":",null,":"]
["S2","TOTAL_HH","EP_D3_7_R",null,null,null,null,null,2020,":",null,":",null,":",null,":",null,":",null,":",null,":",null,":",null,":",null,":",null,":",null,":",null,":",null,":",null,":"]
["S2","TOTAL_HH","EP_D3_7_R",null,null,null,null,null,2021,":",null,":",null,":",null,":",null,":",null,":",null,":",null,":",null,":",null,":",null,":",null,":",null,":",null,":",null,":"]
["S2","TOTAL_HH","EP_D3_7_R",null,null,null,null,null,2022,":",null,":",null,":",null,":",null,":",null,":",null,":",null,":",null,":",null,":",null,":",null,":",null,":",null,":",null,":"]
["S2","TOTAL_HH","EP_D3_7_R",null,null,null,null,null,2023,":",null,":",null,":",null,":",null,":",null,":",null,":",null,":",null,":",null,":",null,":",null,":",null,":",null,":",null,":"]
["S2","TOTAL_HH","EP_D3_7_R",null,null,null,null,null,2024,":",null,":",null,":",null,":",null,":",null,":",null,":",null,":",null,":",null,":",null,":",null,":",null,":",null,":",null,":"]
["S2","TOTAL_HH","EP_D3_7_R",null,null,null,null,null,2025,":",null,":",null,":",null,":",null,":",null,":",null,":",null,":",null,":",null,":",null,":",null,":",null,":",null,":",null,":"]
["S2","TOTAL_HH","EP_D3_7_R",null,null,null,null,null,2026,":",null,":",null,":",null,":",null,":",null,":",null,":",null,":",null,":",null,":",null,":",null,":",null,":",null,":",null,":"]
["S2","TOTAL_HH","EP_D3_7_R",null,null,null,null,null,2027,":",null,":",null,":",null,":",null,":",null,":",null,":",null,":",null,":",null,":",null,":",null,":",null,":",null,":",null,":"]
["S2","TOTAL_HH","EP_D3_7_R",null,null,null,null,null,2028,":",null,":",null,":",null,":",null,":",null,":",null,":",null,":",null,":",null,":",null,":",null,":",null,":",null,":",null,":"]
["S2","TOTAL_HH","EP_D3_7_R",null,null,null,null,null,2029,":",null,":",null,":",null,":",null,":",null,":",null,":",null,":",null,":",null,":",null,":",null,":",null,":",null,":",null,":"]
["S2","TOTAL_HH","EP_D3_7_R",null,null,null,null,null,2030,":",null,":",null,":",null,":",null,":",null,":",null,":",null,":",null,":",null,":",null,":",null,":",null,":",null,":",null,":"]
["S2","TOTAL_HH","EP_D3_7_R",null,null,null,null,null,2031,":",null,":",null,":",null,":",null,":",null,":",null,":",null,":",null,":",null,":",null,":",null,":",null,":",null,":",null,":"]
["S2","TOTAL_HH","EP_D92_99_R",null,"( D92_D99_REC_RW.6 ) Rest of the World: investments grants and other capital transfers received from general government",null,null,null,2014,":",null,":",null,":",null,":",null,":",null,":",null,":",null,":",null,":",null,":",null,":",null,":",null,":",null,":",null,":"]
["S2","TOTAL_HH","EP_D92_99_R",null,null,null,null,null,2015,":",null,":",null,":",null,":",null,":",null,":",null,":",null,":",null,":",null,":",null,":",null,":",null,":",null,":",null,":"]
["S2","TOTAL_HH","EP_D92_99_R",null,null,null,null,null,2016,":",null,":",null,":",null,":",null,":",null,":",null,":",null,":",null,":",null,":",null,":",null,":",null,":",null,":",null,":"]
["S2","TOTAL_HH","EP_D92_99_R",null,null,null,null,null,2017,":",null,":",null,":",null,":",null,":",null,":",null,":",null,":",null,":",null,":",null,":",null,":",null,":",null,":",null,":"]
["S2","TOTAL_HH","EP_D92_99_R",null,null,null,null,null,2018,":",null,":",null,":",null,":",null,":",null,":",null,":",null,":",null,":",null,":",null,":",null,":",null,":",null,":",null,":"]
["S2","TOTAL_HH","EP_D92_99_R",null,null,null,null,null,2019,":",null,":",null,":",null,":",null,":",null,":",null,":",null,":",null,":",null,":",null,":",null,":",null,":",null,":",null,":"]
["S2","TOTAL_HH","EP_D92_99_R",null,null,null,null,null,2020,":",null,":",null,":",null,":",null,":",null,":",null,":",null,":",null,":",null,":",null,":",null,":",null,":",null,":",null,":"]
["S2","TOTAL_HH","EP_D92_99_R",null,null,null,null,null,2021,":",null,":",null,":",null,":",null,":",null,":",null,":",null,":",null,":",null,":",null,":",null,":",null,":",null,":",null,":"]
["S2","TOTAL_HH","EP_D92_99_R",null,null,null,null,null,2022,":",null,":",null,":",null,":",null,":",null,":",null,":",null,":",null,":",null,":",null,":",null,":",null,":",null,":",null,":"]
["S2","TOTAL_HH","EP_D92_99_R",null,null,null,null,null,2023,":",null,":",null,":",null,":",null,":",null,":",null,":",null,":",null,":",null,":",null,":",null,":",null,":",null,":",null,":"]
["S2","TOTAL_HH","EP_D92_99_R",null,null,null,null,null,2024,":",null,":",null,":",null,":",null,":",null,":",null,":",null,":",null,":",null,":",null,":",null,":",null,":",null,":",null,":"]
["S2","TOTAL_HH","EP_D92_99_R",null,null,null,null,null,2025,":",null,":",null,":",null,":",null,":",null,":",null,":",null,":",null,":",null,":",null,":",null,":",null,":",null,":",null,":"]
["S2","TOTAL_HH","EP_D92_99_R",null,null,null,null,null,2026,":",null,":",null,":",null,":",null,":",null,":",null,":",null,":",null,":",null,":",null,":",null,":",null,":",null,":",null,":"]
["S2","TOTAL_HH","EP_D92_99_R",null,null,null,null,null,2027,":",null,":",null,":",null,":",null,":",null,":",null,":",null,":",null,":",null,":",null,":",null,":",null,":",null,":",null,":"]
["S2","TOTAL_HH","EP_D92_99_R",null,null,null,null,null,2028,":",null,":",null,":",null,":",null,":",null,":",null,":",null,":",null,":",null,":",null,":",null,":",null,":",null,":",null,":"]
["S2","TOTAL_HH","EP_D92_99_R",null,null,null,null,null,2029,":",null,":",null,":",null,":",null,":",null,":",null,":",null,":",null,":",null,":",null,":",null,":",null,":",null,":",null,":"]
["S2","TOTAL_HH","EP_D92_99_R",null,null,null,null,null,2030,":",null,":",null,":",null,":",null,":",null,":",null,":",null,":",null,":",null,":",null,":",null,":",null,":",null,":",null,":"]
["S2","TOTAL_HH","EP_D92_99_R",null,null,null,null,null,2031,":",null,":",null,":",null,":",null,":",null,":",null,":",null,":",null,":",null,":",null,":",null,":",null,":",null,":",null,":"]
["S13_S15","TOTAL","EPS_NEGB2N_MP",null,"( NEGB2N_GG.6 ) Negative net operating surplus of market producers in general government sector (non-consolidated)",null,null,null,2014,":",null,":",null,":",null,":",null,":",null,":",null,":",null,":",null,":",null,":",null,":",null,":",null,":",null,":",null,":"]
["S13_S15","TOTAL","EPS_NEGB2N_MP",null,null,null,null,null,2015,":",null,":",null,":",null,":",null,":",null,":",null,":",null,":",null,":",null,":",null,":",null,":",null,":",null,":",null,":"]
["S13_S15","TOTAL","EPS_NEGB2N_MP",null,null,null,null,null,2016,":",null,":",null,":",null,":",null,":",null,":",null,":",null,":",null,":",null,":",null,":",null,":",null,":",null,":",null,":"]
["S13_S15","TOTAL","EPS_NEGB2N_MP",null,null,null,null,null,2017,":",null,":",null,":",null,":",null,":",null,":",null,":",null,":",null,":",null,":",null,":",null,":",null,":",null,":",null,":"]
["S13_S15","TOTAL","EPS_NEGB2N_MP",null,null,null,null,null,2018,":",null,":",null,":",null,":",null,":",null,":",null,":",null,":",null,":",null,":",null,":",null,":",null,":",null,":",null,":"]
["S13_S15","TOTAL","EPS_NEGB2N_MP",null,null,null,null,null,2019,":",null,":",null,":",null,":",null,":",null,":",null,":",null,":",null,":",null,":",null,":",null,{"$f":"IF(COUNT(J264,N264,P264,R264,T264,V264,AD264)=7,SUM(J264,N264,P264,R264,T264,V264,AD264),\":\")","v":":"},null,":",null,":",null,":"]
["S13_S15","TOTAL","EPS_NEGB2N_MP",null,null,null,null,null,2020,":",null,":",null,":",null,":",null,":",null,":",null,":",null,":",null,":",null,":",null,":",null,":",null,":",null,":",null,":"]
["S13_S15","TOTAL","EPS_NEGB2N_MP",null,null,null,null,null,2021,":",null,":",null,":",null,":",null,":",null,":",null,":",null,":",null,":",null,":",null,":",null,":",null,":",null,":",null,":"]
["S13_S15","TOTAL","EPS_NEGB2N_MP",null,null,null,null,null,2022,":",null,":",null,":",null,":",null,":",null,":",null,":",null,":",null,":",null,":",null,":",null,":",null,":",null,":",null,":"]
["S13_S15","TOTAL","EPS_NEGB2N_MP",null,null,null,null,null,2023,":",null,":",null,":",null,":",null,":",null,":",null,":",null,":",null,":",null,":",null,":",null,":",null,":",null,":",null,":"]
["S13_S15","TOTAL","EPS_NEGB2N_MP",null,null,null,null,null,2024,":",null,":",null,":",null,":",null,":",null,":",null,":",null,":",null,":",null,":",null,":",null,":",null,":",null,":",null,":"]
["S13_S15","TOTAL","EPS_NEGB2N_MP",null,null,null,null,null,2025,":",null,":",null,":",null,":",null,":",null,":",null,":",null,":",null,":",null,":",null,":",null,":",null,":",null,":",null,":"]
["S13_S15","TOTAL","EPS_NEGB2N_MP",null,null,null,null,null,2026,":",null,":",null,":",null,":",null,":",null,":",null,":",null,":",null,":",null,":",null,":",null,":",null,":",null,":",null,":"]
["S13_S15","TOTAL","EPS_NEGB2N_MP",null,null,null,null,null,2027,":",null,":",null,":",null,":",null,":",null,":",null,":",null,":",null,":",null,":",null,":",null,":",null,":",null,":",null,":"]
["S13_S15","TOTAL","EPS_NEGB2N_MP",null,null,null,null,null,2028,":",null,":",null,":",null,":",null,":",null,":",null,":",null,":",null,":",null,":",null,":",null,":",null,":",null,":",null,":"]
["S13_S15","TOTAL","EPS_NEGB2N_MP",null,null,null,null,null,2029,":",null,":",null,":",null,":",null,":",null,":",null,":",null,":",null,":",null,":",null,":",null,":",null,":",null,":",null,":"]
["S13_S15","TOTAL","EPS_NEGB2N_MP",null,null,null,null,null,2030,":",null,":",null,":",null,":",null,":",null,":",null,":",null,":",null,":",null,":",null,":",null,":",null,":",null,":",null,":"]
["S13_S15","TOTAL","EPS_NEGB2N_MP",null,null,null,null,null,2031,":",null,":",null,":",null,":",null,":",null,":",null,":",null,":",null,":",null,":",null,":",null,":",null,":",null,":",null,":"]

{"sheet":"7","index":40,"n_rows":318,"n_cols":58,"rows_kept":318,"cut":false,"hidden":false,"merged":[[305,6,310,7],[312,6,314,7],[315,6,316,7],[288,4,288,5],[288,6,289,7],[289,4,289,5],[290,6,295,7],[297,6,299,7],[300,6,301,7],[303,4,303,5],[303,6,304,7],[304,4,304,5],[260,6,265,7],[267,6,269,7],[270,6,271,7],[273,4,273,5],[273,6,274,7],[274,4,274,5],[275,6,280,7],[282,6,284,7],[285,6,286,7],[243,4,243,5],[243,6,244,7],[244,4,244,5],[245,6,250,7],[252,6,254,7],[255,6,256,7],[258,4,258,5],[258,6,259,7],[259,4,259,5],[215,6,220,7],[222,6,224,7],[225,6,226,7],[228,4,228,5],[228,6,229,7],[229,4,229,5],[230,6,235,7],[237,6,239,7],[240,6,241,7],[140,6,145,7],[198,4,198,5],[198,6,199,7],[199,4,199,5],[200,6,205,7],[207,6,209,7],[210,6,211,7],[213,4,213,5],[213,6,214,7],[214,4,214,5],[192,6,194,7],[195,6,196,7],[185,6,190,7],[150,6,151,7],[153,4,153,5],[153,6,154,7],[154,4,154,5],[155,6,160,7],[162,6,164,7],[165,6,166,7],[168,4,168,5],[168,6,169,7],[169,4,169,5],[170,6,175,7],[184,4,184,5],[177,6,179,7],[180,6,181,7],[183,4,183,5],[183,6,184,7],[63,4,63,5],[105,6,106,7],[108,4,108,5],[108,6,109,7],[109,4,109,5],[110,6,115,7],[93,6,94,7],[120,6,121,7],[123,4,123,5],[123,6,124,7],[124,4,124,5],[117,6,119,7],[147,6,149,7],[63,6,64,7],[64,4,64,5],[138,4,138,5],[138,6,139,7],[139,4,139,5],[65,6,70,7],[46,9,47,10],[25,21,26,22],[46,21,47,22],[25,19,26,20],[2,47,2,54],[3,47,3,54],[4,4,4,7],[6,4,6,7],[3,19,4,20],[3,31,4,32],[3,7,3,8],[3,9,4,10],[3,29,4,30],[3,17,4,18],[3,11,4,12],[3,21,4,22],[3,23,4,24],[3,25,4,26],[3,27,4,28],[3,15,4,16],[3,13,4,14],[25,15,26,16],[46,15,47,16],[25,13,26,14],[46,13,47,14],[0,4,0,8],[0,9,0,32],[1,4,1,8],[1,9,1,32],[25,9,26,10],[25,29,26,30],[46,19,47,20],[25,17,26,18],[46,17,47,18],[25,11,26,12],[46,31,47,32],[25,31,26,32],[46,12,47,12],[46,23,47,24],[46,25,47,26],[46,27,47,28],[46,29,47,30],[25,23,26,24],[25,25,26,26],[25,27,26,28],[7,4,7,7],[8,4,8,7],[24,4,24,7],[26,4,26,7],[47,4,47,8],[49,4,49,5],[94,4,94,5],[95,6,100,7],[102,6,104,7],[50,6,55,7],[60,6,61,7],[27,4,27,7],[46,4,46,8],[48,4,48,5],[48,6,49,7],[57,6,59,7],[125,6,130,7],[132,6,134,7],[135,6,136,7],[72,6,74,7],[75,6,76,7],[78,4,78,5],[78,6,79,7],[79,4,79,5],[80,6,85,7],[87,6,89,7],[90,6,91,7],[93,4,93,5]]}
[null,null,null,null,{"$f":"Cover!B21","v":"QUESTIONNAIRE ON ENVIRONMENTAL PROTECTION EXPENDITURE ACCOUNTS"},null,null,null,null,"Table 7.4. Total economy by CEPA"]
[null,null,null,null,{"$f":"E1","v":"QUESTIONNAIRE ON ENVIRONMENTAL PROTECTION EXPENDITURE ACCOUNTS"},null,null,null,null,"Table 7 - NEEP by CEPA - Total economy"]
[null,null,null,null,null,null,null,null,null,null,null,null,null,null,null,null,null,null,null,null,null,null,null,null,null,null,null,null,null,null,null," ",null,null,null,null,null,null,null,null,null,null,null,null,null,null,null,"\nCONTROL TABLES"]
[null,null,null,null,"Country/Unit",{"$f":"IFERROR(Cover!C16,\"\")","v":""},{"$f":"\"\"&Cover!B16","v":""},{"$f":"Cover!B17","v":"Million units of national currency"},null,"CEPA 1",null,"of which CEPA 1.1.2 and 1.2.2 Climate change",null,"CEPA2",null,"CEPA 3",null,"CEPA 4",null,"CEPA 5",null,"CEPA 6",null,"CEPA 7",null,"CEPA 8",null,"CEPA 9",null,"CEPA 7+8+9",null,"TOTAL",null,null,null,null,null,null,null,null,null,null,null,null,null,null,null,"Comparison with data automatically calculated"]
[null,null,null,null,null,null,null,null,"Year",null,null,null,null,null,null,null,null,null,null,null,null,null,null,null,null,null,null,null,null,null,null,null,null,null,null,null,null,null,null,null,null,null,null,null,null,null,null,"CEPA 1","CEPA 2","CEPA 3","CEPA 4","CEPA 5","CEPA 6","CEPA 7+8+9","Total",null,"Comparison Threshold"]
[null,null,null,null,null,null,null,null,null,"CEPA1",null,"CEPA112_122","CEPA112_122","CEPA2",null,"CEPA3",null,"CEPA4",null,"CEPA5",null,"CEPA6",null,"CEPA7",null,"CEPA8",null,"CEPA9",null,"CEPA7-9",null,"TOT_CEPA",null,null,null,null,null,null,null,null,null,null,null,null,null,null,null,"S1","S2","S3","S4","S5","S6","S7","S8"]
["S1","TOTAL_HH","EPS_NEEP",null,"National expenditure on environmental protection",null,null,null,2014,":",null,"-",null,":",null,":",null,":",null,":",null,":",null,"-",null,"-",null,"-",null,":",null,{"$f":"IF(COUNT(J7,N7,P7,R7,T7,V7,AD7)=7,SUM(J7,N7,P7,R7,T7,V7,AD7),\":\")","v":":"},null,null,null,null,null,null,null,null,null,null,null,null,null,null,2014,{"$f":"IF($J28=\":\",IF($J7=\":\",\"\",$BF$10),IF($J7=\":\",$BF$11,IF($J28=0,1,ABS($J7-$J28)/ABS($J28))))","v":""},{"$f":"IF($J28=\":\",IF($J7=\":\",\"\",$BF$10),IF($J7=\":\",$BF$11,IF($J28=0,1,ABS($J7-$J28)/ABS($J28))))","v":""},"","","","","","",null,0.1]
["S1","TOTAL_HH","EPS_NEEP",null,"   Please complete the cells with national estimates or confirm the calculation below",null,null,null,2015,":",null,"-",null,":",null,":",null,":",null,":",null,":",null,"-",null,"-",null,"-",null,":",null,{"$f":"IF(COUNT(J8,N8,P8,R8,T8,V8,AD8)=7,SUM(J8,N8,P8,R8,T8,V8,AD8),\":\")","v":":"},null,null,null,null,null,null,null,null,null,null,null,null,null,null,2015,{"$f":"IF($J29=\":\",IF($J8=\":\",\"\",$BF$10),IF($J8=\":\",$BF$11,IF($J29=0,1,ABS($J8-$J29)/ABS($J29))))","v":""},"","","","","","",""]
["S1","TOTAL_HH","EPS_NEEP",null,"   by copying VALUES of calculated data to these cells",null,null,null,2016,":",null,"-",null,":",null,":",null,":",null,":",null,":",null,"-",null,"-",null,"-",null,":",null,{"$f":"IF(COUNT(J9,N9,P9,R9,T9,V9,AD9)=7,SUM(J9,N9,P9,R9,T9,V9,AD9),\":\")","v":":"},null,null,null,null,null,null,null,null,null,null,null,null,null,null,2016,{"$f":"IF($J30=\":\",IF($J9=\":\",\"\",$BF$10),IF($J9=\":\",$BF$11,IF($J30=0,1,ABS($J9-$J30)/ABS($J30))))","v":""},"","","","","","",""]
["S1","TOTAL_HH","EPS_NEEP",null,null,null,null,null,2017,":",null,"-",null,":",null,":",null,":",null,":",null,":",null,"-",null,"-",null,"-",null,":",null,":",null,null,null,null,null,null,null,null,null,null,null,null,null,null,2017,"","","","","","","","",null,null,"No Calculation"]
["S1","TOTAL_HH","EPS_NEEP",null,null,null,null,null,2018,":",null,"-",null,":",null,":",null,":",null,":",null,":",null,"-",null,"-",null,"-",null,":",null,":",null,null,null,null,null,null,null,null,null,null,null,null,null,null,2018,"","","","","","","","",null,null,"No Data"]
["S1","TOTAL_HH","EPS_NEEP",null,null,null,null,null,2019,":",null,"-",null,":",null,":",null,":",null,":",null,":",null,"-",null,"-",null,"-",null,":",null,":",null,null,null,null,null,null,null,null,null,null,null,null,null,null,2019,"","","","","","","",""]
["S1","TOTAL_HH","EPS_NEEP",null,null,null,null,null,2020,":",null,"-",null,":",null,":",null,":",null,":",null,":",null,"-",null,"-",null,"-",null,":",null,":",null,null,null,null,null,null,null,null,null,null,null,null,null,null,2020,"","","","","","","",""]
["S1","TOTAL_HH","EPS_NEEP",null,null,null,null,null,2021,":",null,"-",null,":",null,":",null,":",null,":",null,":",null,"-",null,"-",null,"-",null,":",null,":",null,null,null,null,null,null,null,null,null,null,null,null,null,null,2021,"","","","","","","",""]
["S1","TOTAL_HH","EPS_NEEP",null,null,null,null,null,2022,":",null,"-",null,":",null,":",null,":",null,":",null,":",null,"-",null,"-",null,"-",null,":",null,":",null,null,null,null,null,null,null,null,null,null,null,null,null,null,2022,"","","","","","","",""]
["S1","TOTAL_HH","EPS_NEEP",null,null,null,null,null,2023,":",null,"-",null,":",null,":",null,":",null,":",null,":",null,"-",null,"-",null,"-",null,":",null,":",null,null,null,null,null,null,null,null,null,null,null,null,null,null,2023,"","","","","","","",""]
["S1","TOTAL_HH","EPS_NEEP",null,null,null,null,null,2024,":",null,"-",null,":",null,":",null,":",null,":",null,":",null,"-",null,"-",null,"-",null,":",null,":",null,null,null,null,null,null,null,null,null,null,null,null,null,null,2024,"","","","","","","",""]
["S1","TOTAL_HH","EPS_NEEP",null,null,null,null,null,2025,":",null,"-",null,":",null,":",null,":",null,":",null,":",null,"-",null,"-",null,"-",null,":",null,":",null,null,null,null,null,null,null,null,null,null,null,null,null,null,2025,"","","","","","","",""]
["S1","TOTAL_HH","EPS_NEEP",null,null,null,null,null,2026,":",null,"-",null,":",null,":",null,":",null,":",null,":",null,"-",null,"-",null,"-",null,":",null,":",null,null,null,null,null,null,null,null,null,null,null,null,null,null,2026,"","","","","","","",""]
["S1","TOTAL_HH","EPS_NEEP",null,null,null,null,null,2027,":",null,"-",null,":",null,":",null,":",null,":",null,":",null,"-",null,"-",null,"-",null,":",null,":",null,null,null,null,null,null,null,null,null,null,null,null,null,null,2027,"","","","","","","",""]
["S1","TOTAL_HH","EPS_NEEP",null,null,null,null,null,2028,":",null,"-",null,":",null,":",null,":",null,":",null,":",null,"-",null,"-",null,"-",null,":",null,":",null,null,null,null,null,null,null,null,null,null,null,null,null,null,2028,"","","","","","","",""]
["S1","TOTAL_HH","EPS_NEEP",null,null,null,null,null,2029,":",null,"-",null,":",null,":",null,":",null,":",null,":",null,"-",null,"-",null,"-",null,":",null,":",null,null,null,null,null,null,null,null,null,null,null,null,null,null,2029,"","","","","","","",""]
["S1","TOTAL_HH","EPS_NEEP",null,null,null,null,null,2030,":",null,"-",null,":",null,":",null,":",null,":",null,":",null,"-",null,"-",null,"-",null,":",null,":",null,null,null,null,null,null,null,null,null,null,null,null,null,null,2030,"","","","","","","",""]
["S1","TOTAL_HH","EPS_NEEP",null,null,null,null,null,2031,":",null,"-",null,":",null,":",null,":",null,":",null,":",null,"-",null,"-",null,"-",null,":",null,":",null,null,null,null,null,null,null,null,null,null,null,null,null,null,2031,"","","","","","","",""]
[null,null,null,null,"National expenditure on environmental protection – Summary",null,null,null,null,null,null,null,null,null,null,null,null,null,null,null,null,null,null,"-"]
[null,null,null,null,null,null,null,{"$f":"'1'!H4","v":"Million units of national currency"},null,{"$f":"J4","v":"CEPA 1"},null,"of which CEPA 1.1.2 and 1.2.2 Climate change",null,{"$f":"N4","v":"CEPA2"},null,{"$f":"P4","v":"CEPA 3"},null,{"$f":"R4","v":"CEPA 4"},null,{"$f":"T4","v":"CEPA 5"},null,{"$f":"V4","v":"CEPA 6"},null,"CEPA 7",null,"CEPA 8",null,"CEPA 9",null,{"$f":"AD4","v":"CEPA 7+8+9"},null,"TOTAL"]
[null,null,null,null,null,null,null,null,"Year"]
[null,null,null,null,"Figures calculated from information available in the questionnaire",null,null,null,2014,{"$f":"OFFSET(J$63,($I28-$I$28)*COUNTA($I$49:$I$63),0)","v":":"},null,"-",null,{"$f":"OFFSET(N$63,($I28-$I$28)*COUNTA($I$49:$I$63),0)","v":":"},null,{"$f":"OFFSET(P$63,($I28-$I$28)*COUNTA($I$49:$I$63),0)","v":":"},null,{"$f":"OFFSET(R$63,($I28-$I$28)*COUNTA($I$49:$I$63),0)","v":":"},null,{"$f":"OFFSET(T$63,($I28-$I$28)*COUNTA($I$49:$I$63),0)","v":":"},null,{"$f":"OFFSET(V$63,($I28-$I$28)*COUNTA($I$49:$I$63),0)","v":":"},null,"-",null,"-",null,"-",null,{"$f":"OFFSET(AD$63,($I28-$I$28)*COUNTA($I$49:$I$63),0)","v":":"},null,{"$f":"IF(COUNT(J28,N28,P28,R28,T28,V28,AD28)=7,SUM(J28,N28,P28,R28,T28,V28,AD28),\":\")","v":":"}]
[null,null,null,null,null,null,null,null,2015,{"$f":"OFFSET(J$63,($I29-$I$28)*COUNTA($I$49:$I$63),0)","v":":"},null,"-",null,{"$f":"OFFSET(N$63,($I29-$I$28)*COUNTA($I$49:$I$63),0)","v":":"},null,{"$f":"OFFSET(P$63,($I29-$I$28)*COUNTA($I$49:$I$63),0)","v":":"},null,{"$f":"OFFSET(R$63,($I29-$I$28)*COUNTA($I$49:$I$63),0)","v":":"},null,{"$f":"OFFSET(T$63,($I29-$I$28)*COUNTA($I$49:$I$63),0)","v":":"},null,{"$f":"OFFSET(V$63,($I29-$I$28)*COUNTA($I$49:$I$63),0)","v":":"},null,"-",null,"-",null,"-",null,{"$f":"OFFSET(AD$63,($I29-$I$28)*COUNTA($I$49:$I$63),0)","v":":"},null,{"$f":"IF(COUNT(J29,N29,P29,R29,T29,V29,AD29)=7,SUM(J29,N29,P29,R29,T29,V29,AD29),\":\")","v":":"}]
[null,null,null,null,null,null,null,null,2016,":",null,"-",null,":",null,":",null,":",null,":",null,":",null,"-",null,"-",null,"-",null,":",null,":"]
[null,null,null,null,null,null,null,null,2017,":",null,"-",null,":",null,":",null,":",null,":",null,":",null,"-",null,"-",null,"-",null,":",null,":"]
[null,null,null,null,null,null,null,null,2018,":",null,"-",null,":",null,":",null,":",null,":",null,":",null,"-",null,"-",null,"-",null,":",null,":"]
[null,null,null,null,null,null,null,null,2019,":",null,"-",null,":",null,":",null,":",null,":",null,":",null,"-",null,"-",null,"-",null,":",null,":"]
[null,null,null,null,null,null,null,null,2020,":",null,"-",null,":",null,":",null,":",null,":",null,":",null,"-",null,"-",null,"-",null,":",null,":"]
[null,null,null,null,null,null,null,null,2021,":",null,"-",null,":",null,":",null,":",null,":",null,":",null,"-",null,"-",null,"-",null,":",null,":"]
[null,null,null,null,null,null,null,null,2022,":",null,"-",null,":",null,":",null,":",null,":",null,":",null,"-",null,"-",null,"-",null,":",null,":"]
[null,null,null,null,null,null,null,null,2023,":",null,"-",null,":",null,":",null,":",null,":",null,":",null,"-",null,"-",null,"-",null,":",null,":"]
[null,null,null,null,null,null,null,null,2024,":",null,"-",null,":",null,":",null,":",null,":",null,":",null,"-",null,"-",null,"-",null,":",null,":"]
[null,null,null,null,null,null,null,null,2025,":",null,"-",null,":",null,":",null,":",null,":",null,":",null,"-",null,"-",null,"-",null,":",null,":"]
[null,null,null,null,null,null,null,null,2026,":",null,"-",null,":",null,":",null,":",null,":",null,":",null,"-",null,"-",null,"-",null,":",null,":"]
[null,null,null,null,null,null,null,null,2027,":",null,"-",null,":",null,":",null,":",null,":",null,":",null,"-",null,"-",null,"-",null,":",null,":"]
[null,null,null,null,null,null,null,null,2028,":",null,"-",null,":",null,":",null,":",null,":",null,":",null,"-",null,"-",null,"-",null,":",null,":"]
[null,null,null,null,null,null,null,null,2029,":",null,"-",null,":",null,":",null,":",null,":",null,":",null,"-",null,"-",null,"-",null,":",null,":",null,null,null,null,null,null,null,null,null,null,null,null,null,null,null,null,null,null,null,null,null,null,{"$f":"IF(#REF!=\":\",IF(AF43=\":\",\"\",$BF$29),IF(AF43=\":\",$BF$28,IF(#REF!=0,1,ABS(AF43-#REF!)/ABS(#REF!))))","v":{"$error":"#REF!"}}]
[null,null,null,null,null,null,null,null,2030,":",null,"-",null,":",null,":",null,":",null,":",null,":",null,"-",null,"-",null,"-",null,":",null,":",null,null,null,null,null,null,null,null,null,null,null,null,null,null,null,null,null,null,null,null,null,null,{"$f":"IF(#REF!=\":\",IF(AF44=\":\",\"\",$BF$29),IF(AF44=\":\",$BF$28,IF(#REF!=0,1,ABS(AF44-#REF!)/ABS(#REF!))))","v":{"$error":"#REF!"}}]
[null,null,null,null,null,null,null,null,2031,":",null,"-",null,":",null,":",null,":",null,":",null,":",null,"-",null,"-",null,"-",null,":",null,":",null,null,null,null,null,null,null,null,null,null,null,null,null,null,null,null,null,null,null,null,null,null,{"$f":"IF(#REF!=\":\",IF(AF45=\":\",\"\",$BF$29),IF(AF45=\":\",$BF$28,IF(#REF!=0,1,ABS(AF45-#REF!)/ABS(#REF!))))","v":{"$error":"#REF!"}}]
[]
[null,null,null,null,"Components of national expenditure on environmental protection by CEPA",null,null,null,null,{"$f":"J26","v":"CEPA 1"},null,null,"of which CEPA 1.1.2 and 1.2.2 Climate change",{"$f":"N26","v":"CEPA2"},null,{"$f":"P26","v":"CEPA 3"},null,{"$f":"R26","v":"CEPA 4"},null,{"$f":"T26","v":"CEPA 5"},null,{"$f":"V26","v":"CEPA 6"},null,"CEPA 7",null,"CEPA 8",null,"CEPA 9",null,{"$f":"AD26","v":"CEPA 7+8+9"},null,"TOTAL"]
[null,null,null,null,"Figures calculated from information available in the questionnaire"]
[null,null,null,null,2014,null,"Final consumption expenditure",null,"+ P3_EPS.1",{"$f":"+INDEX('1'!J$241:J$258,$E49-$E$49+1)","v":":"},null,null,null,{"$f":"+INDEX('1'!N$241:N$258,$E49-$E$49+1)","v":":"},null,{"$f":"+INDEX('1'!P$241:P$258,$E49-$E$49+1)","v":":"},null,{"$f":"+INDEX('1'!R$241:R$258,$E49-$E$49+1)","v":":"},null,{"$f":"+INDEX('1'!T$241:T$258,$E49-$E$49+1)","v":":"},null,{"$f":"+INDEX('1'!V$241:V$258,$E49-$E$49+1)","v":":"},null,null,null,null,null,null,null,{"$f":"+INDEX('1'!AD$241:AD$258,$E49-$E$49+1)","v":":"},null,{"$f":"+INDEX('1'!AF$241:AF$258,$E49-$E$49+1)","v":":"}]
[null,null,null,null,null,null,null,null,"+ P3_EPS.5",{"$f":"+INDEX('5'!J$7:J$24,$E49-$E$49+1)","v":":"},null,null,null,{"$f":"+INDEX('5'!N$7:N$24,$E49-$E$49+1)","v":":"},null,{"$f":"+INDEX('5'!P$7:P$24,$E49-$E$49+1)","v":":"},null,{"$f":"+INDEX('5'!R$7:R$24,$E49-$E$49+1)","v":":"},null,{"$f":"+INDEX('5'!T$7:T$24,$E49-$E$49+1)","v":":"},null,{"$f":"+INDEX('5'!V$7:V$24,$E49-$E$49+1)","v":":"},null,null,null,null,null,null,null,{"$f":"+INDEX('5'!AD$7:AD$24,$E49-$E$49+1)","v":":"},null,{"$f":"+INDEX('5'!AF$7:AF$24,$E49-$E$49+1)","v":":"}]
[null,null,null,null,null,null,"Intermediate consumption",null,"+ P1_ANC.3",{"$f":"+INDEX('3'!J$133:J$150,$E49-$E$49+1)","v":":"},null,null,null,{"$f":"+INDEX('3'!N$133:N$150,$E49-$E$49+1)","v":":"},null,{"$f":"+INDEX('3'!P$133:P$150,$E49-$E$49+1)","v":":"},null,{"$f":"+INDEX('3'!R$133:R$150,$E49-$E$49+1)","v":":"},null,{"$f":"+INDEX('3'!T$133:T$150,$E49-$E$49+1)","v":":"},null,{"$f":"+INDEX('3'!V$133:V$150,$E49-$E$49+1)","v":":"},null,null,null,null,null,null,null,{"$f":"+INDEX('3'!AD$133:AD$150,$E49-$E$49+1)","v":":"},null,{"$f":"+INDEX('3'!AF$133:AF$150,$E49-$E$49+1)","v":":"}]
[null,null,null,null,null,null,null,null,"+ P2",{"$f":"+IF(COUNT(J53:J57)=0,\":\",SUM(J53:J55)-SUM(J56:J57))","v":":"},null,null,null,{"$f":"+IF(COUNT(N53:N57)=0,\":\",SUM(N53:N55)-SUM(N56:N57))","v":":"},null,{"$f":"+IF(COUNT(P53:P57)=0,\":\",SUM(P53:P55)-SUM(P56:P57))","v":":"},null,{"$f":"+IF(COUNT(R53:R57)=0,\":\",SUM(R53:R55)-SUM(R56:R57))","v":":"},null,{"$f":"+IF(COUNT(T53:T57)=0,\":\",SUM(T53:T55)-SUM(T56:T57))","v":":"},null,{"$f":"+IF(COUNT(V53:V57)=0,\":\",SUM(V53:V55)-SUM(V56:V57))","v":":"},null,null,null,null,null,null,null,{"$f":"+IF(COUNT(AD53:AD57)=0,\":\",SUM(AD53:AD55)-SUM(AD56:AD57))","v":":"},null,{"$f":"+IF(COUNT(AF53:AF57)=0,\":\",SUM(AF53:AF55)-SUM(AF56:AF57))","v":":"}]
[null,null,null,null,null,null,null,null,"+ P2_EPS_EXT.1",{"$f":"+INDEX('1'!J$259:J$276,$E49-$E$49+1)","v":":"},null,null,null,{"$f":"+INDEX('1'!N$259:N$276,$E49-$E$49+1)","v":":"},null,{"$f":"+INDEX('1'!P$259:P$276,$E49-$E$49+1)","v":":"},null,{"$f":"+INDEX('1'!R$259:R$276,$E49-$E$49+1)","v":":"},null,{"$f":"+INDEX('1'!T$259:T$276,$E49-$E$49+1)","v":":"},null,{"$f":"+INDEX('1'!V$259:V$276,$E49-$E$49+1)","v":":"},null,null,null,null,null,null,null,{"$f":"+INDEX('1'!AD$259:AD$276,$E49-$E$49+1)","v":":"},null,{"$f":"+INDEX('1'!AF$259:AF$276,$E49-$E$49+1)","v":":"}]
[null,null,null,null,null,null,null,null,"+ P2_EPS_EXT.2",{"$f":"+INDEX('2'!J$259:J$276,$E49-$E$49+1)","v":":"},null,null,null,{"$f":"+INDEX('2'!N$259:N$276,$E49-$E$49+1)","v":":"},null,{"$f":"+INDEX('2'!P$259:P$276,$E49-$E$49+1)","v":":"},null,{"$f":"+INDEX('2'!R$259:R$276,$E49-$E$49+1)","v":":"},null,{"$f":"+INDEX('2'!T$259:T$276,$E49-$E$49+1)","v":":"},null,{"$f":"+INDEX('2'!V$259:V$276,$E49-$E$49+1)","v":":"},null,null,null,null,null,null,null,{"$f":"+INDEX('2'!AD$259:AD$276,$E49-$E$49+1)","v":":"},null,{"$f":"+INDEX('2'!AF$259:AF$276,$E49-$E$49+1)","v":":"}]
[null,null,null,null,null,null,null,null,"+ P2_EPS_EXT.3",{"$f":"+INDEX('3'!J$223:J$240,$E49-$E$49+1)","v":":"},null,null,null,{"$f":"+INDEX('3'!N$223:N$240,$E49-$E$49+1)","v":":"},null,{"$f":"+INDEX('3'!P$223:P$240,$E49-$E$49+1)","v":":"},null,{"$f":"+INDEX('3'!R$223:R$240,$E49-$E$49+1)","v":":"},null,{"$f":"+INDEX('3'!T$223:T$240,$E49-$E$49+1)","v":":"},null,{"$f":"+INDEX('3'!V$223:V$240,$E49-$E$49+1)","v":":"},null,null,null,null,null,null,null,{"$f":"+INDEX('3'!AD$223:AD$240,$E49-$E$49+1)","v":":"},null,{"$f":"+INDEX('3'!AF$223:AF$240,$E49-$E$49+1)","v":":"}]
[null,null,null,null,null,null,null,null,"- P2_EPS.1",{"$f":"+INDEX('1'!J$43:J$60,$E49-$E$49+1)","v":":"},null,null,null,{"$f":"+INDEX('1'!N$43:N$60,$E49-$E$49+1)","v":":"},null,{"$f":"+INDEX('1'!P$43:P$60,$E49-$E$49+1)","v":":"},null,{"$f":"+INDEX('1'!R$43:R$60,$E49-$E$49+1)","v":":"},null,{"$f":"+INDEX('1'!T$43:T$60,$E49-$E$49+1)","v":":"},null,{"$f":"+INDEX('1'!V$43:V$60,$E49-$E$49+1)","v":":"},null,null,null,null,null,null,null,{"$f":"+INDEX('1'!AD$43:AD$60,$E49-$E$49+1)","v":":"},null,{"$f":"+INDEX('1'!AF$43:AF$60,$E49-$E$49+1)","v":":"}]
[null,null,null,null,null,null,null,null,"- P2_EPS.2",{"$f":"+INDEX('2'!J$43:J$60,$E49-$E$49+1)","v":":"},null,null,null,{"$f":"+INDEX('2'!N$43:N$60,$E49-$E$49+1)","v":":"},null,{"$f":"+INDEX('2'!P$43:P$60,$E49-$E$49+1)","v":":"},null,{"$f":"+INDEX('2'!R$43:R$60,$E49-$E$49+1)","v":":"},null,{"$f":"+INDEX('2'!T$43:T$60,$E49-$E$49+1)","v":":"},null,{"$f":"+INDEX('2'!V$43:V$60,$E49-$E$49+1)","v":":"},null,null,null,null,null,null,null,{"$f":"+INDEX('2'!AD$43:AD$60,$E49-$E$49+1)","v":":"},null,{"$f":"+INDEX('2'!AF$43:AF$60,$E49-$E$49+1)","v":":"}]
[null,null,null,null,null,null,"Gross fixed capital formation and acquisition less disposals of non-financial, non-produced assets ",null,"+ P51G_NP.1",{"$f":"+INDEX('1'!J$7:J$24,$E49-$E$49+1)","v":":"},null,null,null,{"$f":"+INDEX('1'!N$7:N$24,$E49-$E$49+1)","v":":"},null,{"$f":"+INDEX('1'!P$7:P$24,$E49-$E$49+1)","v":":"},null,{"$f":"+INDEX('1'!R$7:R$24,$E49-$E$49+1)","v":":"},null,{"$f":"+INDEX('1'!T$7:T$24,$E49-$E$49+1)","v":":"},null,{"$f":"+INDEX('1'!V$7:V$24,$E49-$E$49+1)","v":":"},null,null,null,null,null,null,null,{"$f":"+INDEX('1'!AD$7:AD$24,$E49-$E$49+1)","v":":"},null,{"$f":"+INDEX('1'!AF$7:AF$24,$E49-$E$49+1)","v":":"}]
[null,null,null,null,null,null,null,null,"+ P51G_NP.2",{"$f":"+INDEX('2'!J$7:J$24,$E49-$E$49+1)","v":":"},null,null,null,{"$f":"+INDEX('2'!N$7:N$24,$E49-$E$49+1)","v":":"},null,{"$f":"+INDEX('2'!P$7:P$24,$E49-$E$49+1)","v":":"},null,{"$f":"+INDEX('2'!R$7:R$24,$E49-$E$49+1)","v":":"},null,{"$f":"+INDEX('2'!T$7:T$24,$E49-$E$49+1)","v":":"},null,{"$f":"+INDEX('2'!V$7:V$24,$E49-$E$49+1)","v":":"},null,null,null,null,null,null,null,{"$f":"+INDEX('2'!AD$7:AD$24,$E49-$E$49+1)","v":":"},null,{"$f":"+INDEX('2'!AF$7:AF$24,$E49-$E$49+1)","v":":"}]
[null,null,null,null,null,null,null,null,"+ P51G_NP.3",{"$f":"+INDEX('3'!J$7:J$24,$E49-$E$49+1)","v":":"},null,null,null,{"$f":"+INDEX('3'!N$7:N$24,$E49-$E$49+1)","v":":"},null,{"$f":"+INDEX('3'!P$7:P$24,$E49-$E$49+1)","v":":"},null,{"$f":"+INDEX('3'!R$7:R$24,$E49-$E$49+1)","v":":"},null,{"$f":"+INDEX('3'!T$7:T$24,$E49-$E$49+1)","v":":"},null,{"$f":"+INDEX('3'!V$7:V$24,$E49-$E$49+1)","v":":"},null,null,null,null,null,null,null,{"$f":"+INDEX('3'!AD$7:AD$24,$E49-$E$49+1)","v":":"},null,{"$f":"+INDEX('3'!AF$7:AF$24,$E49-$E$49+1)","v":":"}]
[null,null,null,null,null,null,"EP transfers to / from Rest of the World",null,"- D3_D7_D92_D99_PAY_RW.6",{"$f":"INDEX('6'!J$187:J$204,$E49-$E$49+1)","v":":"},null,null,null,{"$f":"INDEX('6'!N$187:N$204,$E49-$E$49+1)","v":":"},null,{"$f":"INDEX('6'!P$187:P$204,$E49-$E$49+1)","v":":"},null,{"$f":"INDEX('6'!R$187:R$204,$E49-$E$49+1)","v":":"},null,{"$f":"INDEX('6'!T$187:T$204,$E49-$E$49+1)","v":":"},null,{"$f":"INDEX('6'!V$187:V$204,$E49-$E$49+1)","v":":"},null,null,null,null,null,null,null,{"$f":"INDEX('6'!AD$187:AD$204,$E49-$E$49+1)","v":":"},null,{"$f":"INDEX('6'!AF$187:AF$204,$E49-$E$49+1)","v":":"}]
[null,null,null,null,null,null,null,null,"+ D3_D7_D92_D99_REC_RW.6",{"$f":"INDEX('6'!J$205:J$222,$E49-$E$49+1)","v":":"},null,null,null,{"$f":"INDEX('6'!N$205:N$222,$E49-$E$49+1)","v":":"},null,{"$f":"INDEX('6'!P$205:P$222,$E49-$E$49+1)","v":":"},null,{"$f":"INDEX('6'!R$205:R$222,$E49-$E$49+1)","v":":"},null,{"$f":"INDEX('6'!T$205:T$222,$E49-$E$49+1)","v":":"},null,{"$f":"INDEX('6'!V$205:V$222,$E49-$E$49+1)","v":":"},null,null,null,null,null,null,null,{"$f":"INDEX('6'!AD$205:AD$222,$E49-$E$49+1)","v":":"},null,{"$f":"INDEX('6'!AF$205:AF$222,$E49-$E$49+1)","v":":"}]
[null,null,null,null,null,null,"TOTAL",null,"=SUM()",{"$f":"+IF(COUNT(J49:J52,J58:J62)=0,\":\",SUM(J49:J52,J58:J60,J62)-SUM(J61))","v":":"},null,null,null,{"$f":"+IF(COUNT(N49:N52,N58:N62)=0,\":\",SUM(N49:N52,N58:N60,N62)-SUM(N61))","v":":"},null,{"$f":"+IF(COUNT(P49:P52,P58:P62)=0,\":\",SUM(P49:P52,P58:P60,P62)-SUM(P61))","v":":"},null,{"$f":"+IF(COUNT(R49:R52,R58:R62)=0,\":\",SUM(R49:R52,R58:R60,R62)-SUM(R61))","v":":"},null,{"$f":"+IF(COUNT(T49:T52,T58:T62)=0,\":\",SUM(T49:T52,T58:T60,T62)-SUM(T61))","v":":"},null,{"$f":"+IF(COUNT(V49:V52,V58:V62)=0,\":\",SUM(V49:V52,V58:V60,V62)-SUM(V61))","v":":"},null,null,null,null,null,null,null,{"$f":"+IF(COUNT(AD49:AD52,AD58:AD62)=0,\":\",SUM(AD49:AD52,AD58:AD60,AD62)-SUM(AD61))","v":":"},null,{"$f":"+IF(COUNT(AF49:AF52,AF58:AF62)=0,\":\",SUM(AF49:AF52,AF58:AF60,AF62)-SUM(AF61))","v":":"}]
[null,null,null,null,2015,null,"Final consumption expenditure",null,"+ P3_EPS.1",{"$f":"+INDEX('1'!J$241:J$258,$E64-$E$49+1)","v":":"},null,null,null,{"$f":"+INDEX('1'!N$241:N$258,$E64-$E$49+1)","v":":"},null,{"$f":"+INDEX('1'!P$241:P$258,$E64-$E$49+1)","v":":"},null,{"$f":"+INDEX('1'!R$241:R$258,$E64-$E$49+1)","v":":"},null,{"$f":"+INDEX('1'!T$241:T$258,$E64-$E$49+1)","v":":"},null,{"$f":"+INDEX('1'!V$241:V$258,$E64-$E$49+1)","v":":"},null,null,null,null,null,null,null,{"$f":"+INDEX('1'!AD$241:AD$258,$E64-$E$49+1)","v":":"},null,{"$f":"+INDEX('1'!AF$241:AF$258,$E64-$E$49+1)","v":":"}]
[null,null,null,null,null,null,null,null,"+ P3_EPS.5",{"$f":"+INDEX('5'!J$7:J$24,$E64-$E$49+1)","v":":"},null,null,null,{"$f":"+INDEX('5'!N$7:N$24,$E64-$E$49+1)","v":":"},null,{"$f":"+INDEX('5'!P$7:P$24,$E64-$E$49+1)","v":":"},null,{"$f":"+INDEX('5'!R$7:R$24,$E64-$E$49+1)","v":":"},null,{"$f":"+INDEX('5'!T$7:T$24,$E64-$E$49+1)","v":":"},null,{"$f":"+INDEX('5'!V$7:V$24,$E64-$E$49+1)","v":":"},null,null,null,null,null,null,null,{"$f":"+INDEX('5'!AD$7:AD$24,$E64-$E$49+1)","v":":"},null,{"$f":"+INDEX('5'!AF$7:AF$24,$E64-$E$49+1)","v":":"}]
[null,null,null,null,null,null,"Intermediate consumption",null,"+ P1_ANC.3",{"$f":"+INDEX('3'!J$133:J$150,$E64-$E$49+1)","v":":"},null,null,null,{"$f":"+INDEX('3'!N$133:N$150,$E64-$E$49+1)","v":":"},null,{"$f":"+INDEX('3'!P$133:P$150,$E64-$E$49+1)","v":":"},null,{"$f":"+INDEX('3'!R$133:R$150,$E64-$E$49+1)","v":":"},null,{"$f":"+INDEX('3'!T$133:T$150,$E64-$E$49+1)","v":":"},null,{"$f":"+INDEX('3'!V$133:V$150,$E64-$E$49+1)","v":":"},null,null,null,null,null,null,null,{"$f":"+INDEX('3'!AD$133:AD$150,$E64-$E$49+1)","v":":"},null,{"$f":"+INDEX('3'!AF$133:AF$150,$E64-$E$49+1)","v":":"}]
[null,null,null,null,null,null,null,null,"+ P2",{"$f":"+IF(COUNT(J68:J72)=0,\":\",SUM(J68:J70)-SUM(J71:J72))","v":":"},null,null,null,{"$f":"+IF(COUNT(N68:N72)=0,\":\",SUM(N68:N70)-SUM(N71:N72))","v":":"},null,{"$f":"+IF(COUNT(P68:P72)=0,\":\",SUM(P68:P70)-SUM(P71:P72))","v":":"},null,{"$f":"+IF(COUNT(R68:R72)=0,\":\",SUM(R68:R70)-SUM(R71:R72))","v":":"},null,{"$f":"+IF(COUNT(T68:T72)=0,\":\",SUM(T68:T70)-SUM(T71:T72))","v":":"},null,{"$f":"+IF(COUNT(V68:V72)=0,\":\",SUM(V68:V70)-SUM(V71:V72))","v":":"},null,null,null,null,null,null,null,{"$f":"+IF(COUNT(AD68:AD72)=0,\":\",SUM(AD68:AD70)-SUM(AD71:AD72))","v":":"},null,{"$f":"+IF(COUNT(AF68:AF72)=0,\":\",SUM(AF68:AF70)-SUM(AF71:AF72))","v":":"}]
[null,null,null,null,null,null,null,null,"+ P2_EPS_EXT.1",{"$f":"+INDEX('1'!J$259:J$276,$E64-$E$49+1)","v":":"},null,null,null,{"$f":"+INDEX('1'!N$259:N$276,$E64-$E$49+1)","v":":"},null,{"$f":"+INDEX('1'!P$259:P$276,$E64-$E$49+1)","v":":"},null,{"$f":"+INDEX('1'!R$259:R$276,$E64-$E$49+1)","v":":"},null,{"$f":"+INDEX('1'!T$259:T$276,$E64-$E$49+1)","v":":"},null,{"$f":"+INDEX('1'!V$259:V$276,$E64-$E$49+1)","v":":"},null,null,null,null,null,null,null,{"$f":"+INDEX('1'!AD$259:AD$276,$E64-$E$49+1)","v":":"},null,{"$f":"+INDEX('1'!AF$259:AF$276,$E64-$E$49+1)","v":":"}]
[null,null,null,null,null,null,null,null,"+ P2_EPS_EXT.2",{"$f":"+INDEX('2'!J$259:J$276,$E64-$E$49+1)","v":":"},null,null,null,{"$f":"+INDEX('2'!N$259:N$276,$E64-$E$49+1)","v":":"},null,{"$f":"+INDEX('2'!P$259:P$276,$E64-$E$49+1)","v":":"},null,{"$f":"+INDEX('2'!R$259:R$276,$E64-$E$49+1)","v":":"},null,{"$f":"+INDEX('2'!T$259:T$276,$E64-$E$49+1)","v":":"},null,{"$f":"+INDEX('2'!V$259:V$276,$E64-$E$49+1)","v":":"},null,null,null,null,null,null,null,{"$f":"+INDEX('2'!AD$259:AD$276,$E64-$E$49+1)","v":":"},null,{"$f":"+INDEX('2'!AF$259:AF$276,$E64-$E$49+1)","v":":"}]
[null,null,null,null,null,null,null,null,"+ P2_EPS_EXT.3",{"$f":"+INDEX('3'!J$223:J$240,$E64-$E$49+1)","v":":"},null,null,null,{"$f":"+INDEX('3'!N$223:N$240,$E64-$E$49+1)","v":":"},null,{"$f":"+INDEX('3'!P$223:P$240,$E64-$E$49+1)","v":":"},null,{"$f":"+INDEX('3'!R$223:R$240,$E64-$E$49+1)","v":":"},null,{"$f":"+INDEX('3'!T$223:T$240,$E64-$E$49+1)","v":":"},null,{"$f":"+INDEX('3'!V$223:V$240,$E64-$E$49+1)","v":":"},null,null,null,null,null,null,null,{"$f":"+INDEX('3'!AD$223:AD$240,$E64-$E$49+1)","v":":"},null,{"$f":"+INDEX('3'!AF$223:AF$240,$E64-$E$49+1)","v":":"}]
[null,null,null,null,null,null,null,null,"- P2_EPS.1",{"$f":"+INDEX('1'!J$43:J$60,$E64-$E$49+1)","v":":"},null,null,null,{"$f":"+INDEX('1'!N$43:N$60,$E64-$E$49+1)","v":":"},null,{"$f":"+INDEX('1'!P$43:P$60,$E64-$E$49+1)","v":":"},null,{"$f":"+INDEX('1'!R$43:R$60,$E64-$E$49+1)","v":":"},null,{"$f":"+INDEX('1'!T$43:T$60,$E64-$E$49+1)","v":":"},null,{"$f":"+INDEX('1'!V$43:V$60,$E64-$E$49+1)","v":":"},null,null,null,null,null,null,null,{"$f":"+INDEX('1'!AD$43:AD$60,$E64-$E$49+1)","v":":"},null,{"$f":"+INDEX('1'!AF$43:AF$60,$E64-$E$49+1)","v":":"}]
[null,null,null,null,null,null,null,null,"- P2_EPS.2",{"$f":"+INDEX('2'!J$43:J$60,$E64-$E$49+1)","v":":"},null,null,null,{"$f":"+INDEX('2'!N$43:N$60,$E64-$E$49+1)","v":":"},null,{"$f":"+INDEX('2'!P$43:P$60,$E64-$E$49+1)","v":":"},null,{"$f":"+INDEX('2'!R$43:R$60,$E64-$E$49+1)","v":":"},null,{"$f":"+INDEX('2'!T$43:T$60,$E64-$E$49+1)","v":":"},null,{"$f":"+INDEX('2'!V$43:V$60,$E64-$E$49+1)","v":":"},null,null,null,null,null,null,null,{"$f":"+INDEX('2'!AD$43:AD$60,$E64-$E$49+1)","v":":"},null,{"$f":"+INDEX('2'!AF$43:AF$60,$E64-$E$49+1)","v":":"}]
[null,null,null,null,null,null,"Gross fixed capital formation and acquisition less disposals of non-financial, non-produced assets ",null,"+ P51G_NP.1",{"$f":"+INDEX('1'!J$7:J$24,$E64-$E$49+1)","v":":"},null,null,null,{"$f":"+INDEX('1'!N$7:N$24,$E64-$E$49+1)","v":":"},null,{"$f":"+INDEX('1'!P$7:P$24,$E64-$E$49+1)","v":":"},null,{"$f":"+INDEX('1'!R$7:R$24,$E64-$E$49+1)","v":":"},null,{"$f":"+INDEX('1'!T$7:T$24,$E64-$E$49+1)","v":":"},null,{"$f":"+INDEX('1'!V$7:V$24,$E64-$E$49+1)","v":":"},null,null,null,null,null,null,null,{"$f":"+INDEX('1'!AD$7:AD$24,$E64-$E$49+1)","v":":"},null,{"$f":"+INDEX('1'!AF$7:AF$24,$E64-$E$49+1)","v":":"}]
[null,null,null,null,null,null,null,null,"+ P51G_NP.2",{"$f":"+INDEX('2'!J$7:J$24,$E64-$E$49+1)","v":":"},null,null,null,{"$f":"+INDEX('2'!N$7:N$24,$E64-$E$49+1)","v":":"},null,{"$f":"+INDEX('2'!P$7:P$24,$E64-$E$49+1)","v":":"},null,{"$f":"+INDEX('2'!R$7:R$24,$E64-$E$49+1)","v":":"},null,{"$f":"+INDEX('2'!T$7:T$24,$E64-$E$49+1)","v":":"},null,{"$f":"+INDEX('2'!V$7:V$24,$E64-$E$49+1)","v":":"},null,null,null,null,null,null,null,{"$f":"+INDEX('2'!AD$7:AD$24,$E64-$E$49+1)","v":":"},null,{"$f":"+INDEX('2'!AF$7:AF$24,$E64-$E$49+1)","v":":"}]
[null,null,null,null,null,null,null,null,"+ P51G_NP.3",{"$f":"+INDEX('3'!J$7:J$24,$E64-$E$49+1)","v":":"},null,null,null,{"$f":"+INDEX('3'!N$7:N$24,$E64-$E$49+1)","v":":"},null,{"$f":"+INDEX('3'!P$7:P$24,$E64-$E$49+1)","v":":"},null,{"$f":"+INDEX('3'!R$7:R$24,$E64-$E$49+1)","v":":"},null,{"$f":"+INDEX('3'!T$7:T$24,$E64-$E$49+1)","v":":"},null,{"$f":"+INDEX('3'!V$7:V$24,$E64-$E$49+1)","v":":"},null,null,null,null,null,null,null,{"$f":"+INDEX('3'!AD$7:AD$24,$E64-$E$49+1)","v":":"},null,{"$f":"+INDEX('3'!AF$7:AF$24,$E64-$E$49+1)","v":":"}]
[null,null,null,null,null,null,"EP transfers to / from Rest of the World",null,"- D3_D7_D92_D99_PAY_RW.6",{"$f":"INDEX('6'!J$187:J$204,$E64-$E$49+1)","v":":"},null,null,null,{"$f":"INDEX('6'!N$187:N$204,$E64-$E$49+1)","v":":"},null,{"$f":"INDEX('6'!P$187:P$204,$E64-$E$49+1)","v":":"},null,{"$f":"INDEX('6'!R$187:R$204,$E64-$E$49+1)","v":":"},null,{"$f":"INDEX('6'!T$187:T$204,$E64-$E$49+1)","v":":"},null,{"$f":"INDEX('6'!V$187:V$204,$E64-$E$49+1)","v":":"},null,null,null,null,null,null,null,{"$f":"INDEX('6'!AD$187:AD$204,$E64-$E$49+1)","v":":"},null,{"$f":"INDEX('6'!AF$187:AF$204,$E64-$E$49+1)","v":":"}]
[null,null,null,null,null,null,null,null,"+ D3_D7_D92_D99_REC_RW.6",{"$f":"INDEX('6'!J$205:J$222,$E64-$E$49+1)","v":":"},null,null,null,{"$f":"INDEX('6'!N$205:N$222,$E64-$E$49+1)","v":":"},null,{"$f":"INDEX('6'!P$205:P$222,$E64-$E$49+1)","v":":"},null,{"$f":"INDEX('6'!R$205:R$222,$E64-$E$49+1)","v":":"},null,{"$f":"INDEX('6'!T$205:T$222,$E64-$E$49+1)","v":":"},null,{"$f":"INDEX('6'!V$205:V$222,$E64-$E$49+1)","v":":"},null,null,null,null,null,null,null,{"$f":"INDEX('6'!AD$205:AD$222,$E64-$E$49+1)","v":":"},null,{"$f":"INDEX('6'!AF$205:AF$222,$E64-$E$49+1)","v":":"}]
[null,null,null,null,null,null,"TOTAL",null,"=SUM()",{"$f":"+IF(COUNT(J64:J67,J73:J77)=0,\":\",SUM(J64:J67,J73:J75,J77)-SUM(J76))","v":":"},null,null,null,{"$f":"+IF(COUNT(N64:N67,N73:N77)=0,\":\",SUM(N64:N67,N73:N75,N77)-SUM(N76))","v":":"},null,{"$f":"+IF(COUNT(P64:P67,P73:P77)=0,\":\",SUM(P64:P67,P73:P75,P77)-SUM(P76))","v":":"},null,{"$f":"+IF(COUNT(R64:R67,R73:R77)=0,\":\",SUM(R64:R67,R73:R75,R77)-SUM(R76))","v":":"},null,{"$f":"+IF(COUNT(T64:T67,T73:T77)=0,\":\",SUM(T64:T67,T73:T75,T77)-SUM(T76))","v":":"},null,{"$f":"+IF(COUNT(V64:V67,V73:V77)=0,\":\",SUM(V64:V67,V73:V75,V77)-SUM(V76))","v":":"},null,null,null,null,null,null,null,{"$f":"+IF(COUNT(AD64:AD67,AD73:AD77)=0,\":\",SUM(AD64:AD67,AD73:AD75,AD77)-SUM(AD76))","v":":"},null,{"$f":"+IF(COUNT(AF64:AF67,AF73:AF77)=0,\":\",SUM(AF64:AF67,AF73:AF75,AF77)-SUM(AF76))","v":":"}]
[null,null,null,null,2016,null,"Final consumption expenditure",null,"+ P3_EPS.1",{"$f":"+INDEX('1'!J$241:J$258,$E79-$E$49+1)","v":":"},null,null,null,{"$f":"+INDEX('1'!N$241:N$258,$E79-$E$49+1)","v":":"},null,{"$f":"+INDEX('1'!P$241:P$258,$E79-$E$49+1)","v":":"},null,{"$f":"+INDEX('1'!R$241:R$258,$E79-$E$49+1)","v":":"},null,{"$f":"+INDEX('1'!T$241:T$258,$E79-$E$49+1)","v":":"},null,{"$f":"+INDEX('1'!V$241:V$258,$E79-$E$49+1)","v":":"},null,null,null,null,null,null,null,{"$f":"+INDEX('1'!AD$241:AD$258,$E79-$E$49+1)","v":":"},null,{"$f":"+INDEX('1'!AF$241:AF$258,$E79-$E$49+1)","v":":"}]
[null,null,null,null,null,null,null,null,"+ P3_EPS.5",{"$f":"+INDEX('5'!J$7:J$24,$E79-$E$49+1)","v":":"},null,null,null,{"$f":"+INDEX('5'!N$7:N$24,$E79-$E$49+1)","v":":"},null,{"$f":"+INDEX('5'!P$7:P$24,$E79-$E$49+1)","v":":"},null,{"$f":"+INDEX('5'!R$7:R$24,$E79-$E$49+1)","v":":"},null,{"$f":"+INDEX('5'!T$7:T$24,$E79-$E$49+1)","v":":"},null,{"$f":"+INDEX('5'!V$7:V$24,$E79-$E$49+1)","v":":"},null,null,null,null,null,null,null,{"$f":"+INDEX('5'!AD$7:AD$24,$E79-$E$49+1)","v":":"},null,{"$f":"+INDEX('5'!AF$7:AF$24,$E79-$E$49+1)","v":":"}]
[null,null,null,null,null,null,"Intermediate consumption",null,"+ P1_ANC.3",{"$f":"+INDEX('3'!J$133:J$150,$E79-$E$49+1)","v":":"},null,null,null,{"$f":"+INDEX('3'!N$133:N$150,$E79-$E$49+1)","v":":"},null,{"$f":"+INDEX('3'!P$133:P$150,$E79-$E$49+1)","v":":"},null,{"$f":"+INDEX('3'!R$133:R$150,$E79-$E$49+1)","v":":"},null,{"$f":"+INDEX('3'!T$133:T$150,$E79-$E$49+1)","v":":"},null,{"$f":"+INDEX('3'!V$133:V$150,$E79-$E$49+1)","v":":"},null,null,null,null,null,null,null,{"$f":"+INDEX('3'!AD$133:AD$150,$E79-$E$49+1)","v":":"},null,{"$f":"+INDEX('3'!AF$133:AF$150,$E79-$E$49+1)","v":":"}]
[null,null,null,null,null,null,null,null,"+ P2",{"$f":"+IF(COUNT(J83:J87)=0,\":\",SUM(J83:J85)-SUM(J86:J87))","v":":"},null,null,null,{"$f":"+IF(COUNT(N83:N87)=0,\":\",SUM(N83:N85)-SUM(N86:N87))","v":":"},null,{"$f":"+IF(COUNT(P83:P87)=0,\":\",SUM(P83:P85)-SUM(P86:P87))","v":":"},null,{"$f":"+IF(COUNT(R83:R87)=0,\":\",SUM(R83:R85)-SUM(R86:R87))","v":":"},null,{"$f":"+IF(COUNT(T83:T87)=0,\":\",SUM(T83:T85)-SUM(T86:T87))","v":":"},null,{"$f":"+IF(COUNT(V83:V87)=0,\":\",SUM(V83:V85)-SUM(V86:V87))","v":":"},null,null,null,null,null,null,null,{"$f":"+IF(COUNT(AD83:AD87)=0,\":\",SUM(AD83:AD85)-SUM(AD86:AD87))","v":":"},null,{"$f":"+IF(COUNT(AF83:AF87)=0,\":\",SUM(AF83:AF85)-SUM(AF86:AF87))","v":":"}]
[null,null,null,null,null,null,null,null,"+ P2_EPS_EXT.1",{"$f":"+INDEX('1'!J$259:J$276,$E79-$E$49+1)","v":":"},null,null,null,{"$f":"+INDEX('1'!N$259:N$276,$E79-$E$49+1)","v":":"},null,{"$f":"+INDEX('1'!P$259:P$276,$E79-$E$49+1)","v":":"},null,{"$f":"+INDEX('1'!R$259:R$276,$E79-$E$49+1)","v":":"},null,{"$f":"+INDEX('1'!T$259:T$276,$E79-$E$49+1)","v":":"},null,{"$f":"+INDEX('1'!V$259:V$276,$E79-$E$49+1)","v":":"},null,null,null,null,null,null,null,{"$f":"+INDEX('1'!AD$259:AD$276,$E79-$E$49+1)","v":":"},null,{"$f":"+INDEX('1'!AF$259:AF$276,$E79-$E$49+1)","v":":"}]
[null,null,null,null,null,null,null,null,"+ P2_EPS_EXT.2",{"$f":"+INDEX('2'!J$259:J$276,$E79-$E$49+1)","v":":"},null,null,null,{"$f":"+INDEX('2'!N$259:N$276,$E79-$E$49+1)","v":":"},null,{"$f":"+INDEX('2'!P$259:P$276,$E79-$E$49+1)","v":":"},null,{"$f":"+INDEX('2'!R$259:R$276,$E79-$E$49+1)","v":":"},null,{"$f":"+INDEX('2'!T$259:T$276,$E79-$E$49+1)","v":":"},null,{"$f":"+INDEX('2'!V$259:V$276,$E79-$E$49+1)","v":":"},null,null,null,null,null,null,null,{"$f":"+INDEX('2'!AD$259:AD$276,$E79-$E$49+1)","v":":"},null,{"$f":"+INDEX('2'!AF$259:AF$276,$E79-$E$49+1)","v":":"}]
[null,null,null,null,null,null,null,null,"+ P2_EPS_EXT.3",{"$f":"+INDEX('3'!J$223:J$240,$E79-$E$49+1)","v":":"},null,null,null,{"$f":"+INDEX('3'!N$223:N$240,$E79-$E$49+1)","v":":"},null,{"$f":"+INDEX('3'!P$223:P$240,$E79-$E$49+1)","v":":"},null,{"$f":"+INDEX('3'!R$223:R$240,$E79-$E$49+1)","v":":"},null,{"$f":"+INDEX('3'!T$223:T$240,$E79-$E$49+1)","v":":"},null,{"$f":"+INDEX('3'!V$223:V$240,$E79-$E$49+1)","v":":"},null,null,null,null,null,null,null,{"$f":"+INDEX('3'!AD$223:AD$240,$E79-$E$49+1)","v":":"},null,{"$f":"+INDEX('3'!AF$223:AF$240,$E79-$E$49+1)","v":":"}]
[null,null,null,null,null,null,null,null,"- P2_EPS.1",{"$f":"+INDEX('1'!J$43:J$60,$E79-$E$49+1)","v":":"},null,null,null,{"$f":"+INDEX('1'!N$43:N$60,$E79-$E$49+1)","v":":"},null,{"$f":"+INDEX('1'!P$43:P$60,$E79-$E$49+1)","v":":"},null,{"$f":"+INDEX('1'!R$43:R$60,$E79-$E$49+1)","v":":"},null,{"$f":"+INDEX('1'!T$43:T$60,$E79-$E$49+1)","v":":"},null,{"$f":"+INDEX('1'!V$43:V$60,$E79-$E$49+1)","v":":"},null,null,null,null,null,null,null,{"$f":"+INDEX('1'!AD$43:AD$60,$E79-$E$49+1)","v":":"},null,{"$f":"+INDEX('1'!AF$43:AF$60,$E79-$E$49+1)","v":":"}]
[null,null,null,null,null,null,null,null,"- P2_EPS.2",{"$f":"+INDEX('2'!J$43:J$60,$E79-$E$49+1)","v":":"},null,null,null,{"$f":"+INDEX('2'!N$43:N$60,$E79-$E$49+1)","v":":"},null,{"$f":"+INDEX('2'!P$43:P$60,$E79-$E$49+1)","v":":"},null,{"$f":"+INDEX('2'!R$43:R$60,$E79-$E$49+1)","v":":"},null,{"$f":"+INDEX('2'!T$43:T$60,$E79-$E$49+1)","v":":"},null,{"$f":"+INDEX('2'!V$43:V$60,$E79-$E$49+1)","v":":"},null,null,null,null,null,null,null,{"$f":"+INDEX('2'!AD$43:AD$60,$E79-$E$49+1)","v":":"},null,{"$f":"+INDEX('2'!AF$43:AF$60,$E79-$E$49+1)","v":":"}]
[null,null,null,null,null,null,"Gross fixed capital formation and acquisition less disposals of non-financial, non-produced assets ",null,"+ P51G_NP.1",{"$f":"+INDEX('1'!J$7:J$24,$E79-$E$49+1)","v":":"},null,null,null,{"$f":"+INDEX('1'!N$7:N$24,$E79-$E$49+1)","v":":"},null,{"$f":"+INDEX('1'!P$7:P$24,$E79-$E$49+1)","v":":"},null,{"$f":"+INDEX('1'!R$7:R$24,$E79-$E$49+1)","v":":"},null,{"$f":"+INDEX('1'!T$7:T$24,$E79-$E$49+1)","v":":"},null,{"$f":"+INDEX('1'!V$7:V$24,$E79-$E$49+1)","v":":"},null,null,null,null,null,null,null,{"$f":"+INDEX('1'!AD$7:AD$24,$E79-$E$49+1)","v":":"},null,{"$f":"+INDEX('1'!AF$7:AF$24,$E79-$E$49+1)","v":":"}]
[null,null,null,null,null,null,null,null,"+ P51G_NP.2",{"$f":"+INDEX('2'!J$7:J$24,$E79-$E$49+1)","v":":"},null,null,null,{"$f":"+INDEX('2'!N$7:N$24,$E79-$E$49+1)","v":":"},null,{"$f":"+INDEX('2'!P$7:P$24,$E79-$E$49+1)","v":":"},null,{"$f":"+INDEX('2'!R$7:R$24,$E79-$E$49+1)","v":":"},null,{"$f":"+INDEX('2'!T$7:T$24,$E79-$E$49+1)","v":":"},null,{"$f":"+INDEX('2'!V$7:V$24,$E79-$E$49+1)","v":":"},null,null,null,null,null,null,null,{"$f":"+INDEX('2'!AD$7:AD$24,$E79-$E$49+1)","v":":"},null,{"$f":"+INDEX('2'!AF$7:AF$24,$E79-$E$49+1)","v":":"}]
[null,null,null,null,null,null,null,null,"+ P51G_NP.3",{"$f":"+INDEX('3'!J$7:J$24,$E79-$E$49+1)","v":":"},null,null,null,{"$f":"+INDEX('3'!N$7:N$24,$E79-$E$49+1)","v":":"},null,{"$f":"+INDEX('3'!P$7:P$24,$E79-$E$49+1)","v":":"},null,{"$f":"+INDEX('3'!R$7:R$24,$E79-$E$49+1)","v":":"},null,{"$f":"+INDEX('3'!T$7:T$24,$E79-$E$49+1)","v":":"},null,{"$f":"+INDEX('3'!V$7:V$24,$E79-$E$49+1)","v":":"},null,null,null,null,null,null,null,{"$f":"+INDEX('3'!AD$7:AD$24,$E79-$E$49+1)","v":":"},null,{"$f":"+INDEX('3'!AF$7:AF$24,$E79-$E$49+1)","v":":"}]
[null,null,null,null,null,null,"EP transfers to / from Rest of the World",null,"- D3_D7_D92_D99_PAY_RW.6",{"$f":"INDEX('6'!J$187:J$204,$E79-$E$49+1)","v":":"},null,null,null,{"$f":"INDEX('6'!N$187:N$204,$E79-$E$49+1)","v":":"},null,{"$f":"INDEX('6'!P$187:P$204,$E79-$E$49+1)","v":":"},null,{"$f":"INDEX('6'!R$187:R$204,$E79-$E$49+1)","v":":"},null,{"$f":"INDEX('6'!T$187:T$204,$E79-$E$49+1)","v":":"},null,{"$f":"INDEX('6'!V$187:V$204,$E79-$E$49+1)","v":":"},null,null,null,null,null,null,null,{"$f":"INDEX('6'!AD$187:AD$204,$E79-$E$49+1)","v":":"},null,{"$f":"INDEX('6'!AF$187:AF$204,$E79-$E$49+1)","v":":"}]
[null,null,null,null,null,null,null,null,"+ D3_D7_D92_D99_REC_RW.6",{"$f":"INDEX('6'!J$205:J$222,$E79-$E$49+1)","v":":"},null,null,null,{"$f":"INDEX('6'!N$205:N$222,$E79-$E$49+1)","v":":"},null,{"$f":"INDEX('6'!P$205:P$222,$E79-$E$49+1)","v":":"},null,{"$f":"INDEX('6'!R$205:R$222,$E79-$E$49+1)","v":":"},null,{"$f":"INDEX('6'!T$205:T$222,$E79-$E$49+1)","v":":"},null,{"$f":"INDEX('6'!V$205:V$222,$E79-$E$49+1)","v":":"},null,null,null,null,null,null,null,{"$f":"INDEX('6'!AD$205:AD$222,$E79-$E$49+1)","v":":"},null,{"$f":"INDEX('6'!AF$205:AF$222,$E79-$E$49+1)","v":":"}]
[null,null,null,null,null,null,"TOTAL",null,"=SUM()",{"$f":"+IF(COUNT(J79:J82,J88:J92)=0,\":\",SUM(J79:J82,J88:J90,J92)-SUM(J91))","v":":"},null,null,null,{"$f":"+IF(COUNT(N79:N82,N88:N92)=0,\":\",SUM(N79:N82,N88:N90,N92)-SUM(N91))","v":":"},null,{"$f":"+IF(COUNT(P79:P82,P88:P92)=0,\":\",SUM(P79:P82,P88:P90,P92)-SUM(P91))","v":":"},null,{"$f":"+IF(COUNT(R79:R82,R88:R92)=0,\":\",SUM(R79:R82,R88:R90,R92)-SUM(R91))","v":":"},null,{"$f":"+IF(COUNT(T79:T82,T88:T92)=0,\":\",SUM(T79:T82,T88:T90,T92)-SUM(T91))","v":":"},null,{"$f":"+IF(COUNT(V79:V82,V88:V92)=0,\":\",SUM(V79:V82,V88:V90,V92)-SUM(V91))","v":":"},null,null,null,null,null,null,null,{"$f":"+IF(COUNT(AD79:AD82,AD88:AD92)=0,\":\",SUM(AD79:AD82,AD88:AD90,AD92)-SUM(AD91))","v":":"},null,{"$f":"+IF(COUNT(AF79:AF82,AF88:AF92)=0,\":\",SUM(AF79:AF82,AF88:AF90,AF92)-SUM(AF91))","v":":"}]
[null,null,null,null,2017,null,"Final consumption expenditure",null,"+ P3_EPS.1",{"$f":"+INDEX('1'!J$241:J$258,$E94-$E$49+1)","v":":"},null,null,null,{"$f":"+INDEX('1'!N$241:N$258,$E94-$E$49+1)","v":":"},null,{"$f":"+INDEX('1'!P$241:P$258,$E94-$E$49+1)","v":":"},null,{"$f":"+INDEX('1'!R$241:R$258,$E94-$E$49+1)","v":":"},null,{"$f":"+INDEX('1'!T$241:T$258,$E94-$E$49+1)","v":":"},null,{"$f":"+INDEX('1'!V$241:V$258,$E94-$E$49+1)","v":":"},null,null,null,null,null,null,null,{"$f":"+INDEX('1'!AD$241:AD$258,$E94-$E$49+1)","v":":"},null,{"$f":"+INDEX('1'!AF$241:AF$258,$E94-$E$49+1)","v":":"}]
[null,null,null,null,null,null,null,null,"+ P3_EPS.5",{"$f":"+INDEX('5'!J$7:J$24,$E94-$E$49+1)","v":":"},null,null,null,{"$f":"+INDEX('5'!N$7:N$24,$E94-$E$49+1)","v":":"},null,{"$f":"+INDEX('5'!P$7:P$24,$E94-$E$49+1)","v":":"},null,{"$f":"+INDEX('5'!R$7:R$24,$E94-$E$49+1)","v":":"},null,{"$f":"+INDEX('5'!T$7:T$24,$E94-$E$49+1)","v":":"},null,{"$f":"+INDEX('5'!V$7:V$24,$E94-$E$49+1)","v":":"},null,null,null,null,null,null,null,{"$f":"+INDEX('5'!AD$7:AD$24,$E94-$E$49+1)","v":":"},null,{"$f":"+INDEX('5'!AF$7:AF$24,$E94-$E$49+1)","v":":"}]
[null,null,null,null,null,null,"Intermediate consumption",null,"+ P1_ANC.3",{"$f":"+INDEX('3'!J$133:J$150,$E94-$E$49+1)","v":":"},null,null,null,{"$f":"+INDEX('3'!N$133:N$150,$E94-$E$49+1)","v":":"},null,{"$f":"+INDEX('3'!P$133:P$150,$E94-$E$49+1)","v":":"},null,{"$f":"+INDEX('3'!R$133:R$150,$E94-$E$49+1)","v":":"},null,{"$f":"+INDEX('3'!T$133:T$150,$E94-$E$49+1)","v":":"},null,{"$f":"+INDEX('3'!V$133:V$150,$E94-$E$49+1)","v":":"},null,null,null,null,null,null,null,{"$f":"+INDEX('3'!AD$133:AD$150,$E94-$E$49+1)","v":":"},null,{"$f":"+INDEX('3'!AF$133:AF$150,$E94-$E$49+1)","v":":"}]
[null,null,null,null,null,null,null,null,"+ P2",{"$f":"+IF(COUNT(J98:J102)=0,\":\",SUM(J98:J100)-SUM(J101:J102))","v":":"},null,null,null,{"$f":"+IF(COUNT(N98:N102)=0,\":\",SUM(N98:N100)-SUM(N101:N102))","v":":"},null,{"$f":"+IF(COUNT(P98:P102)=0,\":\",SUM(P98:P100)-SUM(P101:P102))","v":":"},null,{"$f":"+IF(COUNT(R98:R102)=0,\":\",SUM(R98:R100)-SUM(R101:R102))","v":":"},null,{"$f":"+IF(COUNT(T98:T102)=0,\":\",SUM(T98:T100)-SUM(T101:T102))","v":":"},null,{"$f":"+IF(COUNT(V98:V102)=0,\":\",SUM(V98:V100)-SUM(V101:V102))","v":":"},null,null,null,null,null,null,null,{"$f":"+IF(COUNT(AD98:AD102)=0,\":\",SUM(AD98:AD100)-SUM(AD101:AD102))","v":":"},null,{"$f":"+IF(COUNT(AF98:AF102)=0,\":\",SUM(AF98:AF100)-SUM(AF101:AF102))","v":":"}]
[null,null,null,null,null,null,null,null,"+ P2_EPS_EXT.1",{"$f":"+INDEX('1'!J$259:J$276,$E94-$E$49+1)","v":":"},null,null,null,{"$f":"+INDEX('1'!N$259:N$276,$E94-$E$49+1)","v":":"},null,{"$f":"+INDEX('1'!P$259:P$276,$E94-$E$49+1)","v":":"},null,{"$f":"+INDEX('1'!R$259:R$276,$E94-$E$49+1)","v":":"},null,{"$f":"+INDEX('1'!T$259:T$276,$E94-$E$49+1)","v":":"},null,{"$f":"+INDEX('1'!V$259:V$276,$E94-$E$49+1)","v":":"},null,null,null,null,null,null,null,{"$f":"+INDEX('1'!AD$259:AD$276,$E94-$E$49+1)","v":":"},null,{"$f":"+INDEX('1'!AF$259:AF$276,$E94-$E$49+1)","v":":"}]
[null,null,null,null,null,null,null,null,"+ P2_EPS_EXT.2",{"$f":"+INDEX('2'!J$259:J$276,$E94-$E$49+1)","v":":"},null,null,null,{"$f":"+INDEX('2'!N$259:N$276,$E94-$E$49+1)","v":":"},null,{"$f":"+INDEX('2'!P$259:P$276,$E94-$E$49+1)","v":":"},null,{"$f":"+INDEX('2'!R$259:R$276,$E94-$E$49+1)","v":":"},null,{"$f":"+INDEX('2'!T$259:T$276,$E94-$E$49+1)","v":":"},null,{"$f":"+INDEX('2'!V$259:V$276,$E94-$E$49+1)","v":":"},null,null,null,null,null,null,null,{"$f":"+INDEX('2'!AD$259:AD$276,$E94-$E$49+1)","v":":"},null,{"$f":"+INDEX('2'!AF$259:AF$276,$E94-$E$49+1)","v":":"}]
[null,null,null,null,null,null,null,null,"+ P2_EPS_EXT.3",{"$f":"+INDEX('3'!J$223:J$240,$E94-$E$49+1)","v":":"},null,null,null,{"$f":"+INDEX('3'!N$223:N$240,$E94-$E$49+1)","v":":"},null,{"$f":"+INDEX('3'!P$223:P$240,$E94-$E$49+1)","v":":"},null,{"$f":"+INDEX('3'!R$223:R$240,$E94-$E$49+1)","v":":"},null,{"$f":"+INDEX('3'!T$223:T$240,$E94-$E$49+1)","v":":"},null,{"$f":"+INDEX('3'!V$223:V$240,$E94-$E$49+1)","v":":"},null,null,null,null,null,null,null,{"$f":"+INDEX('3'!AD$223:AD$240,$E94-$E$49+1)","v":":"},null,{"$f":"+INDEX('3'!AF$223:AF$240,$E94-$E$49+1)","v":":"}]
[null,null,null,null,null,null,null,null,"- P2_EPS.1",{"$f":"+INDEX('1'!J$43:J$60,$E94-$E$49+1)","v":":"},null,null,null,{"$f":"+INDEX('1'!N$43:N$60,$E94-$E$49+1)","v":":"},null,{"$f":"+INDEX('1'!P$43:P$60,$E94-$E$49+1)","v":":"},null,{"$f":"+INDEX('1'!R$43:R$60,$E94-$E$49+1)","v":":"},null,{"$f":"+INDEX('1'!T$43:T$60,$E94-$E$49+1)","v":":"},null,{"$f":"+INDEX('1'!V$43:V$60,$E94-$E$49+1)","v":":"},null,null,null,null,null,null,null,{"$f":"+INDEX('1'!AD$43:AD$60,$E94-$E$49+1)","v":":"},null,{"$f":"+INDEX('1'!AF$43:AF$60,$E94-$E$49+1)","v":":"}]
[null,null,null,null,null,null,null,null,"- P2_EPS.2",{"$f":"+INDEX('2'!J$43:J$60,$E94-$E$49+1)","v":":"},null,null,null,{"$f":"+INDEX('2'!N$43:N$60,$E94-$E$49+1)","v":":"},null,{"$f":"+INDEX('2'!P$43:P$60,$E94-$E$49+1)","v":":"},null,{"$f":"+INDEX('2'!R$43:R$60,$E94-$E$49+1)","v":":"},null,{"$f":"+INDEX('2'!T$43:T$60,$E94-$E$49+1)","v":":"},null,{"$f":"+INDEX('2'!V$43:V$60,$E94-$E$49+1)","v":":"},null,null,null,null,null,null,null,{"$f":"+INDEX('2'!AD$43:AD$60,$E94-$E$49+1)","v":":"},null,{"$f":"+INDEX('2'!AF$43:AF$60,$E94-$E$49+1)","v":":"}]
[null,null,null,null,null,null,"Gross fixed capital formation and acquisition less disposals of non-financial, non-produced assets ",null,"+ P51G_NP.1",{"$f":"+INDEX('1'!J$7:J$24,$E94-$E$49+1)","v":":"},null,null,null,{"$f":"+INDEX('1'!N$7:N$24,$E94-$E$49+1)","v":":"},null,{"$f":"+INDEX('1'!P$7:P$24,$E94-$E$49+1)","v":":"},null,{"$f":"+INDEX('1'!R$7:R$24,$E94-$E$49+1)","v":":"},null,{"$f":"+INDEX('1'!T$7:T$24,$E94-$E$49+1)","v":":"},null,{"$f":"+INDEX('1'!V$7:V$24,$E94-$E$49+1)","v":":"},null,null,null,null,null,null,null,{"$f":"+INDEX('1'!AD$7:AD$24,$E94-$E$49+1)","v":":"},null,{"$f":"+INDEX('1'!AF$7:AF$24,$E94-$E$49+1)","v":":"}]
[null,null,null,null,null,null,null,null,"+ P51G_NP.2",{"$f":"+INDEX('2'!J$7:J$24,$E94-$E$49+1)","v":":"},null,null,null,{"$f":"+INDEX('2'!N$7:N$24,$E94-$E$49+1)","v":":"},null,{"$f":"+INDEX('2'!P$7:P$24,$E94-$E$49+1)","v":":"},null,{"$f":"+INDEX('2'!R$7:R$24,$E94-$E$49+1)","v":":"},null,{"$f":"+INDEX('2'!T$7:T$24,$E94-$E$49+1)","v":":"},null,{"$f":"+INDEX('2'!V$7:V$24,$E94-$E$49+1)","v":":"},null,null,null,null,null,null,null,{"$f":"+INDEX('2'!AD$7:AD$24,$E94-$E$49+1)","v":":"},null,{"$f":"+INDEX('2'!AF$7:AF$24,$E94-$E$49+1)","v":":"}]
[null,null,null,null,null,null,null,null,"+ P51G_NP.3",{"$f":"+INDEX('3'!J$7:J$24,$E94-$E$49+1)","v":":"},null,null,null,{"$f":"+INDEX('3'!N$7:N$24,$E94-$E$49+1)","v":":"},null,{"$f":"+INDEX('3'!P$7:P$24,$E94-$E$49+1)","v":":"},null,{"$f":"+INDEX('3'!R$7:R$24,$E94-$E$49+1)","v":":"},null,{"$f":"+INDEX('3'!T$7:T$24,$E94-$E$49+1)","v":":"},null,{"$f":"+INDEX('3'!V$7:V$24,$E94-$E$49+1)","v":":"},null,null,null,null,null,null,null,{"$f":"+INDEX('3'!AD$7:AD$24,$E94-$E$49+1)","v":":"},null,{"$f":"+INDEX('3'!AF$7:AF$24,$E94-$E$49+1)","v":":"}]
[null,null,null,null,null,null,"EP transfers to / from Rest of the World",null,"- D3_D7_D92_D99_PAY_RW.6",{"$f":"INDEX('6'!J$187:J$204,$E94-$E$49+1)","v":":"},null,null,null,{"$f":"INDEX('6'!N$187:N$204,$E94-$E$49+1)","v":":"},null,{"$f":"INDEX('6'!P$187:P$204,$E94-$E$49+1)","v":":"},null,{"$f":"INDEX('6'!R$187:R$204,$E94-$E$49+1)","v":":"},null,{"$f":"INDEX('6'!T$187:T$204,$E94-$E$49+1)","v":":"},null,{"$f":"INDEX('6'!V$187:V$204,$E94-$E$49+1)","v":":"},null,null,null,null,null,null,null,{"$f":"INDEX('6'!AD$187:AD$204,$E94-$E$49+1)","v":":"},null,{"$f":"INDEX('6'!AF$187:AF$204,$E94-$E$49+1)","v":":"}]
[null,null,null,null,null,null,null,null,"+ D3_D7_D92_D99_REC_RW.6",{"$f":"INDEX('6'!J$205:J$222,$E94-$E$49+1)","v":":"},null,null,null,{"$f":"INDEX('6'!N$205:N$222,$E94-$E$49+1)","v":":"},null,{"$f":"INDEX('6'!P$205:P$222,$E94-$E$49+1)","v":":"},null,{"$f":"INDEX('6'!R$205:R$222,$E94-$E$49+1)","v":":"},null,{"$f":"INDEX('6'!T$205:T$222,$E94-$E$49+1)","v":":"},null,{"$f":"INDEX('6'!V$205:V$222,$E94-$E$49+1)","v":":"},null,null,null,null,null,null,null,{"$f":"INDEX('6'!AD$205:AD$222,$E94-$E$49+1)","v":":"},null,{"$f":"INDEX('6'!AF$205:AF$222,$E94-$E$49+1)","v":":"}]
[null,null,null,null,null,null,"TOTAL",null,"=SUM()",{"$f":"+IF(COUNT(J94:J97,J103:J107)=0,\":\",SUM(J94:J97,J103:J105,J107)-SUM(J106))","v":":"},null,null,null,{"$f":"+IF(COUNT(N94:N97,N103:N107)=0,\":\",SUM(N94:N97,N103:N105,N107)-SUM(N106))","v":":"},null,{"$f":"+IF(COUNT(P94:P97,P103:P107)=0,\":\",SUM(P94:P97,P103:P105,P107)-SUM(P106))","v":":"},null,{"$f":"+IF(COUNT(R94:R97,R103:R107)=0,\":\",SUM(R94:R97,R103:R105,R107)-SUM(R106))","v":":"},null,{"$f":"+IF(COUNT(T94:T97,T103:T107)=0,\":\",SUM(T94:T97,T103:T105,T107)-SUM(T106))","v":":"},null,{"$f":"+IF(COUNT(V94:V97,V103:V107)=0,\":\",SUM(V94:V97,V103:V105,V107)-SUM(V106))","v":":"},null,null,null,null,null,null,null,{"$f":"+IF(COUNT(AD94:AD97,AD103:AD107)=0,\":\",SUM(AD94:AD97,AD103:AD105,AD107)-SUM(AD106))","v":":"},null,{"$f":"+IF(COUNT(AF94:AF97,AF103:AF107)=0,\":\",SUM(AF94:AF97,AF103:AF105,AF107)-SUM(AF106))","v":":"}]
[null,null,null,null,2018,null,"Final consumption expenditure",null,"+ P3_EPS.1",{"$f":"+INDEX('1'!J$241:J$258,$E109-$E$49+1)","v":":"},null,null,null,{"$f":"+INDEX('1'!N$241:N$258,$E109-$E$49+1)","v":":"},null,{"$f":"+INDEX('1'!P$241:P$258,$E109-$E$49+1)","v":":"},null,{"$f":"+INDEX('1'!R$241:R$258,$E109-$E$49+1)","v":":"},null,{"$f":"+INDEX('1'!T$241:T$258,$E109-$E$49+1)","v":":"},null,{"$f":"+INDEX('1'!V$241:V$258,$E109-$E$49+1)","v":":"},null,null,null,null,null,null,null,{"$f":"+INDEX('1'!AD$241:AD$258,$E109-$E$49+1)","v":":"},null,{"$f":"+INDEX('1'!AF$241:AF$258,$E109-$E$49+1)","v":":"}]
[null,null,null,null,null,null,null,null,"+ P3_EPS.5",{"$f":"+INDEX('5'!J$7:J$24,$E109-$E$49+1)","v":":"},null,null,null,{"$f":"+INDEX('5'!N$7:N$24,$E109-$E$49+1)","v":":"},null,{"$f":"+INDEX('5'!P$7:P$24,$E109-$E$49+1)","v":":"},null,{"$f":"+INDEX('5'!R$7:R$24,$E109-$E$49+1)","v":":"},null,{"$f":"+INDEX('5'!T$7:T$24,$E109-$E$49+1)","v":":"},null,{"$f":"+INDEX('5'!V$7:V$24,$E109-$E$49+1)","v":":"},null,null,null,null,null,null,null,{"$f":"+INDEX('5'!AD$7:AD$24,$E109-$E$49+1)","v":":"},null,{"$f":"+INDEX('5'!AF$7:AF$24,$E109-$E$49+1)","v":":"}]
[null,null,null,null,null,null,"Intermediate consumption",null,"+ P1_ANC.3",{"$f":"+INDEX('3'!J$133:J$150,$E109-$E$49+1)","v":":"},null,null,null,{"$f":"+INDEX('3'!N$133:N$150,$E109-$E$49+1)","v":":"},null,{"$f":"+INDEX('3'!P$133:P$150,$E109-$E$49+1)","v":":"},null,{"$f":"+INDEX('3'!R$133:R$150,$E109-$E$49+1)","v":":"},null,{"$f":"+INDEX('3'!T$133:T$150,$E109-$E$49+1)","v":":"},null,{"$f":"+INDEX('3'!V$133:V$150,$E109-$E$49+1)","v":":"},null,null,null,null,null,null,null,{"$f":"+INDEX('3'!AD$133:AD$150,$E109-$E$49+1)","v":":"},null,{"$f":"+INDEX('3'!AF$133:AF$150,$E109-$E$49+1)","v":":"}]
[null,null,null,null,null,null,null,null,"+ P2",{"$f":"+IF(COUNT(J113:J117)=0,\":\",SUM(J113:J115)-SUM(J116:J117))","v":":"},null,null,null,{"$f":"+IF(COUNT(N113:N117)=0,\":\",SUM(N113:N115)-SUM(N116:N117))","v":":"},null,{"$f":"+IF(COUNT(P113:P117)=0,\":\",SUM(P113:P115)-SUM(P116:P117))","v":":"},null,{"$f":"+IF(COUNT(R113:R117)=0,\":\",SUM(R113:R115)-SUM(R116:R117))","v":":"},null,{"$f":"+IF(COUNT(T113:T117)=0,\":\",SUM(T113:T115)-SUM(T116:T117))","v":":"},null,{"$f":"+IF(COUNT(V113:V117)=0,\":\",SUM(V113:V115)-SUM(V116:V117))","v":":"},null,null,null,null,null,null,null,{"$f":"+IF(COUNT(AD113:AD117)=0,\":\",SUM(AD113:AD115)-SUM(AD116:AD117))","v":":"},null,{"$f":"+IF(COUNT(AF113:AF117)=0,\":\",SUM(AF113:AF115)-SUM(AF116:AF117))","v":":"}]
[null,null,null,null,null,null,null,null,"+ P2_EPS_EXT.1",{"$f":"+INDEX('1'!J$259:J$276,$E109-$E$49+1)","v":":"},null,null,null,{"$f":"+INDEX('1'!N$259:N$276,$E109-$E$49+1)","v":":"},null,{"$f":"+INDEX('1'!P$259:P$276,$E109-$E$49+1)","v":":"},null,{"$f":"+INDEX('1'!R$259:R$276,$E109-$E$49+1)","v":":"},null,{"$f":"+INDEX('1'!T$259:T$276,$E109-$E$49+1)","v":":"},null,{"$f":"+INDEX('1'!V$259:V$276,$E109-$E$49+1)","v":":"},null,null,null,null,null,null,null,{"$f":"+INDEX('1'!AD$259:AD$276,$E109-$E$49+1)","v":":"},null,{"$f":"+INDEX('1'!AF$259:AF$276,$E109-$E$49+1)","v":":"}]
[null,null,null,null,null,null,null,null,"+ P2_EPS_EXT.2",{"$f":"+INDEX('2'!J$259:J$276,$E109-$E$49+1)","v":":"},null,null,null,{"$f":"+INDEX('2'!N$259:N$276,$E109-$E$49+1)","v":":"},null,{"$f":"+INDEX('2'!P$259:P$276,$E109-$E$49+1)","v":":"},null,{"$f":"+INDEX('2'!R$259:R$276,$E109-$E$49+1)","v":":"},null,{"$f":"+INDEX('2'!T$259:T$276,$E109-$E$49+1)","v":":"},null,{"$f":"+INDEX('2'!V$259:V$276,$E109-$E$49+1)","v":":"},null,null,null,null,null,null,null,{"$f":"+INDEX('2'!AD$259:AD$276,$E109-$E$49+1)","v":":"},null,{"$f":"+INDEX('2'!AF$259:AF$276,$E109-$E$49+1)","v":":"}]
[null,null,null,null,null,null,null,null,"+ P2_EPS_EXT.3",{"$f":"+INDEX('3'!J$223:J$240,$E109-$E$49+1)","v":":"},null,null,null,{"$f":"+INDEX('3'!N$223:N$240,$E109-$E$49+1)","v":":"},null,{"$f":"+INDEX('3'!P$223:P$240,$E109-$E$49+1)","v":":"},null,{"$f":"+INDEX('3'!R$223:R$240,$E109-$E$49+1)","v":":"},null,{"$f":"+INDEX('3'!T$223:T$240,$E109-$E$49+1)","v":":"},null,{"$f":"+INDEX('3'!V$223:V$240,$E109-$E$49+1)","v":":"},null,null,null,null,null,null,null,{"$f":"+INDEX('3'!AD$223:AD$240,$E109-$E$49+1)","v":":"},null,{"$f":"+INDEX('3'!AF$223:AF$240,$E109-$E$49+1)","v":":"}]
[null,null,null,null,null,null,null,null,"- P2_EPS.1",{"$f":"+INDEX('1'!J$43:J$60,$E109-$E$49+1)","v":":"},null,null,null,{"$f":"+INDEX('1'!N$43:N$60,$E109-$E$49+1)","v":":"},null,{"$f":"+INDEX('1'!P$43:P$60,$E109-$E$49+1)","v":":"},null,{"$f":"+INDEX('1'!R$43:R$60,$E109-$E$49+1)","v":":"},null,{"$f":"+INDEX('1'!T$43:T$60,$E109-$E$49+1)","v":":"},null,{"$f":"+INDEX('1'!V$43:V$60,$E109-$E$49+1)","v":":"},null,null,null,null,null,null,null,{"$f":"+INDEX('1'!AD$43:AD$60,$E109-$E$49+1)","v":":"},null,{"$f":"+INDEX('1'!AF$43:AF$60,$E109-$E$49+1)","v":":"}]
[null,null,null,null,null,null,null,null,"- P2_EPS.2",{"$f":"+INDEX('2'!J$43:J$60,$E109-$E$49+1)","v":":"},null,null,null,{"$f":"+INDEX('2'!N$43:N$60,$E109-$E$49+1)","v":":"},null,{"$f":"+INDEX('2'!P$43:P$60,$E109-$E$49+1)","v":":"},null,{"$f":"+INDEX('2'!R$43:R$60,$E109-$E$49+1)","v":":"},null,{"$f":"+INDEX('2'!T$43:T$60,$E109-$E$49+1)","v":":"},null,{"$f":"+INDEX('2'!V$43:V$60,$E109-$E$49+1)","v":":"},null,null,null,null,null,null,null,{"$f":"+INDEX('2'!AD$43:AD$60,$E109-$E$49+1)","v":":"},null,{"$f":"+INDEX('2'!AF$43:AF$60,$E109-$E$49+1)","v":":"}]
[null,null,null,null,null,null,"Gross fixed capital formation and acquisition less disposals of non-financial, non-produced assets ",null,"+ P51G_NP.1",{"$f":"+INDEX('1'!J$7:J$24,$E109-$E$49+1)","v":":"},null,null,null,{"$f":"+INDEX('1'!N$7:N$24,$E109-$E$49+1)","v":":"},null,{"$f":"+INDEX('1'!P$7:P$24,$E109-$E$49+1)","v":":"},null,{"$f":"+INDEX('1'!R$7:R$24,$E109-$E$49+1)","v":":"},null,{"$f":"+INDEX('1'!T$7:T$24,$E109-$E$49+1)","v":":"},null,{"$f":"+INDEX('1'!V$7:V$24,$E109-$E$49+1)","v":":"},null,null,null,null,null,null,null,{"$f":"+INDEX('1'!AD$7:AD$24,$E109-$E$49+1)","v":":"},null,{"$f":"+INDEX('1'!AF$7:AF$24,$E109-$E$49+1)","v":":"}]
[null,null,null,null,null,null,null,null,"+ P51G_NP.2",{"$f":"+INDEX('2'!J$7:J$24,$E109-$E$49+1)","v":":"},null,null,null,{"$f":"+INDEX('2'!N$7:N$24,$E109-$E$49+1)","v":":"},null,{"$f":"+INDEX('2'!P$7:P$24,$E109-$E$49+1)","v":":"},null,{"$f":"+INDEX('2'!R$7:R$24,$E109-$E$49+1)","v":":"},null,{"$f":"+INDEX('2'!T$7:T$24,$E109-$E$49+1)","v":":"},null,{"$f":"+INDEX('2'!V$7:V$24,$E109-$E$49+1)","v":":"},null,null,null,null,null,null,null,{"$f":"+INDEX('2'!AD$7:AD$24,$E109-$E$49+1)","v":":"},null,{"$f":"+INDEX('2'!AF$7:AF$24,$E109-$E$49+1)","v":":"}]
[null,null,null,null,null,null,null,null,"+ P51G_NP.3",{"$f":"+INDEX('3'!J$7:J$24,$E109-$E$49+1)","v":":"},null,null,null,{"$f":"+INDEX('3'!N$7:N$24,$E109-$E$49+1)","v":":"},null,{"$f":"+INDEX('3'!P$7:P$24,$E109-$E$49+1)","v":":"},null,{"$f":"+INDEX('3'!R$7:R$24,$E109-$E$49+1)","v":":"},null,{"$f":"+INDEX('3'!T$7:T$24,$E109-$E$49+1)","v":":"},null,{"$f":"+INDEX('3'!V$7:V$24,$E109-$E$49+1)","v":":"},null,null,null,null,null,null,null,{"$f":"+INDEX('3'!AD$7:AD$24,$E109-$E$49+1)","v":":"},null,{"$f":"+INDEX('3'!AF$7:AF$24,$E109-$E$49+1)","v":":"}]
[null,null,null,null,null,null,"EP transfers to / from Rest of the World",null,"- D3_D7_D92_D99_PAY_RW.6",{"$f":"INDEX('6'!J$187:J$204,$E109-$E$49+1)","v":":"},null,null,null,{"$f":"INDEX('6'!N$187:N$204,$E109-$E$49+1)","v":":"},null,{"$f":"INDEX('6'!P$187:P$204,$E109-$E$49+1)","v":":"},null,{"$f":"INDEX('6'!R$187:R$204,$E109-$E$49+1)","v":":"},null,{"$f":"INDEX('6'!T$187:T$204,$E109-$E$49+1)","v":":"},null,{"$f":"INDEX('6'!V$187:V$204,$E109-$E$49+1)","v":":"},null,null,null,null,null,null,null,{"$f":"INDEX('6'!AD$187:AD$204,$E109-$E$49+1)","v":":"},null,{"$f":"INDEX('6'!AF$187:AF$204,$E109-$E$49+1)","v":":"}]
[null,null,null,null,null,null,null,null,"+ D3_D7_D92_D99_REC_RW.6",{"$f":"INDEX('6'!J$205:J$222,$E109-$E$49+1)","v":":"},null,null,null,{"$f":"INDEX('6'!N$205:N$222,$E109-$E$49+1)","v":":"},null,{"$f":"INDEX('6'!P$205:P$222,$E109-$E$49+1)","v":":"},null,{"$f":"INDEX('6'!R$205:R$222,$E109-$E$49+1)","v":":"},null,{"$f":"INDEX('6'!T$205:T$222,$E109-$E$49+1)","v":":"},null,{"$f":"INDEX('6'!V$205:V$222,$E109-$E$49+1)","v":":"},null,null,null,null,null,null,null,{"$f":"INDEX('6'!AD$205:AD$222,$E109-$E$49+1)","v":":"},null,{"$f":"INDEX('6'!AF$205:AF$222,$E109-$E$49+1)","v":":"}]
[null,null,null,null,null,null,"TOTAL",null,"=SUM()",{"$f":"+IF(COUNT(J109:J112,J118:J122)=0,\":\",SUM(J109:J112,J118:J120,J122)-SUM(J121))","v":":"},null,null,null,{"$f":"+IF(COUNT(N109:N112,N118:N122)=0,\":\",SUM(N109:N112,N118:N120,N122)-SUM(N121))","v":":"},null,{"$f":"+IF(COUNT(P109:P112,P118:P122)=0,\":\",SUM(P109:P112,P118:P120,P122)-SUM(P121))","v":":"},null,{"$f":"+IF(COUNT(R109:R112,R118:R122)=0,\":\",SUM(R109:R112,R118:R120,R122)-SUM(R121))","v":":"},null,{"$f":"+IF(COUNT(T109:T112,T118:T122)=0,\":\",SUM(T109:T112,T118:T120,T122)-SUM(T121))","v":":"},null,{"$f":"+IF(COUNT(V109:V112,V118:V122)=0,\":\",SUM(V109:V112,V118:V120,V122)-SUM(V121))","v":":"},null,null,null,null,null,null,null,{"$f":"+IF(COUNT(AD109:AD112,AD118:AD122)=0,\":\",SUM(AD109:AD112,AD118:AD120,AD122)-SUM(AD121))","v":":"},null,{"$f":"+IF(COUNT(AF109:AF112,AF118:AF122)=0,\":\",SUM(AF109:AF112,AF118:AF120,AF122)-SUM(AF121))","v":":"}]
[null,null,null,null,2019,null,"Final consumption expenditure",null,"+ P3_EPS.1",{"$f":"+INDEX('1'!J$241:J$258,$E124-$E$49+1)","v":":"},null,null,null,{"$f":"+INDEX('1'!N$241:N$258,$E124-$E$49+1)","v":":"},null,{"$f":"+INDEX('1'!P$241:P$258,$E124-$E$49+1)","v":":"},null,{"$f":"+INDEX('1'!R$241:R$258,$E124-$E$49+1)","v":":"},null,{"$f":"+INDEX('1'!T$241:T$258,$E124-$E$49+1)","v":":"},null,{"$f":"+INDEX('1'!V$241:V$258,$E124-$E$49+1)","v":":"},null,null,null,null,null,null,null,{"$f":"+INDEX('1'!AD$241:AD$258,$E124-$E$49+1)","v":":"},null,{"$f":"+INDEX('1'!AF$241:AF$258,$E124-$E$49+1)","v":":"}]
[null,null,null,null,null,null,null,null,"+ P3_EPS.5",{"$f":"+INDEX('5'!J$7:J$24,$E124-$E$49+1)","v":":"},null,null,null,{"$f":"+INDEX('5'!N$7:N$24,$E124-$E$49+1)","v":":"},null,{"$f":"+INDEX('5'!P$7:P$24,$E124-$E$49+1)","v":":"},null,{"$f":"+INDEX('5'!R$7:R$24,$E124-$E$49+1)","v":":"},null,{"$f":"+INDEX('5'!T$7:T$24,$E124-$E$49+1)","v":":"},null,{"$f":"+INDEX('5'!V$7:V$24,$E124-$E$49+1)","v":":"},null,null,null,null,null,null,null,{"$f":"+INDEX('5'!AD$7:AD$24,$E124-$E$49+1)","v":":"},null,{"$f":"+INDEX('5'!AF$7:AF$24,$E124-$E$49+1)","v":":"}]
[null,null,null,null,null,null,"Intermediate consumption",null,"+ P1_ANC.3",{"$f":"+INDEX('3'!J$133:J$150,$E124-$E$49+1)","v":":"},null,null,null,{"$f":"+INDEX('3'!N$133:N$150,$E124-$E$49+1)","v":":"},null,{"$f":"+INDEX('3'!P$133:P$150,$E124-$E$49+1)","v":":"},null,{"$f":"+INDEX('3'!R$133:R$150,$E124-$E$49+1)","v":":"},null,{"$f":"+INDEX('3'!T$133:T$150,$E124-$E$49+1)","v":":"},null,{"$f":"+INDEX('3'!V$133:V$150,$E124-$E$49+1)","v":":"},null,null,null,null,null,null,null,{"$f":"+INDEX('3'!AD$133:AD$150,$E124-$E$49+1)","v":":"},null,{"$f":"+INDEX('3'!AF$133:AF$150,$E124-$E$49+1)","v":":"}]
[null,null,null,null,null,null,null,null,"+ P2",{"$f":"+IF(COUNT(J128:J132)=0,\":\",SUM(J128:J130)-SUM(J131:J132))","v":":"},null,null,null,{"$f":"+IF(COUNT(N128:N132)=0,\":\",SUM(N128:N130)-SUM(N131:N132))","v":":"},null,{"$f":"+IF(COUNT(P128:P132)=0,\":\",SUM(P128:P130)-SUM(P131:P132))","v":":"},null,{"$f":"+IF(COUNT(R128:R132)=0,\":\",SUM(R128:R130)-SUM(R131:R132))","v":":"},null,{"$f":"+IF(COUNT(T128:T132)=0,\":\",SUM(T128:T130)-SUM(T131:T132))","v":":"},null,{"$f":"+IF(COUNT(V128:V132)=0,\":\",SUM(V128:V130)-SUM(V131:V132))","v":":"},null,null,null,null,null,null,null,{"$f":"+IF(COUNT(AD128:AD132)=0,\":\",SUM(AD128:AD130)-SUM(AD131:AD132))","v":":"},null,{"$f":"+IF(COUNT(AF128:AF132)=0,\":\",SUM(AF128:AF130)-SUM(AF131:AF132))","v":":"}]
[null,null,null,null,null,null,null,null,"+ P2_EPS_EXT.1",{"$f":"+INDEX('1'!J$259:J$276,$E124-$E$49+1)","v":":"},null,null,null,{"$f":"+INDEX('1'!N$259:N$276,$E124-$E$49+1)","v":":"},null,{"$f":"+INDEX('1'!P$259:P$276,$E124-$E$49+1)","v":":"},null,{"$f":"+INDEX('1'!R$259:R$276,$E124-$E$49+1)","v":":"},null,{"$f":"+INDEX('1'!T$259:T$276,$E124-$E$49+1)","v":":"},null,{"$f":"+INDEX('1'!V$259:V$276,$E124-$E$49+1)","v":":"},null,null,null,null,null,null,null,{"$f":"+INDEX('1'!AD$259:AD$276,$E124-$E$49+1)","v":":"},null,{"$f":"+INDEX('1'!AF$259:AF$276,$E124-$E$49+1)","v":":"}]
[null,null,null,null,null,null,null,null,"+ P2_EPS_EXT.2",{"$f":"+INDEX('2'!J$259:J$276,$E124-$E$49+1)","v":":"},null,null,null,{"$f":"+INDEX('2'!N$259:N$276,$E124-$E$49+1)","v":":"},null,{"$f":"+INDEX('2'!P$259:P$276,$E124-$E$49+1)","v":":"},null,{"$f":"+INDEX('2'!R$259:R$276,$E124-$E$49+1)","v":":"},null,{"$f":"+INDEX('2'!T$259:T$276,$E124-$E$49+1)","v":":"},null,{"$f":"+INDEX('2'!V$259:V$276,$E124-$E$49+1)","v":":"},null,null,null,null,null,null,null,{"$f":"+INDEX('2'!AD$259:AD$276,$E124-$E$49+1)","v":":"},null,{"$f":"+INDEX('2'!AF$259:AF$276,$E124-$E$49+1)","v":":"}]
[null,null,null,null,null,null,null,null,"+ P2_EPS_EXT.3",{"$f":"+INDEX('3'!J$223:J$240,$E124-$E$49+1)","v":":"},null,null,null,{"$f":"+INDEX('3'!N$223:N$240,$E124-$E$49+1)","v":":"},null,{"$f":"+INDEX('3'!P$223:P$240,$E124-$E$49+1)","v":":"},null,{"$f":"+INDEX('3'!R$223:R$240,$E124-$E$49+1)","v":":"},null,{"$f":"+INDEX('3'!T$223:T$240,$E124-$E$49+1)","v":":"},null,{"$f":"+INDEX('3'!V$223:V$240,$E124-$E$49+1)","v":":"},null,null,null,null,null,null,null,{"$f":"+INDEX('3'!AD$223:AD$240,$E124-$E$49+1)","v":":"},null,{"$f":"+INDEX('3'!AF$223:AF$240,$E124-$E$49+1)","v":":"}]
[null,null,null,null,null,null,null,null,"- P2_EPS.1",{"$f":"+INDEX('1'!J$43:J$60,$E124-$E$49+1)","v":":"},null,null,null,{"$f":"+INDEX('1'!N$43:N$60,$E124-$E$49+1)","v":":"},null,{"$f":"+INDEX('1'!P$43:P$60,$E124-$E$49+1)","v":":"},null,{"$f":"+INDEX('1'!R$43:R$60,$E124-$E$49+1)","v":":"},null,{"$f":"+INDEX('1'!T$43:T$60,$E124-$E$49+1)","v":":"},null,{"$f":"+INDEX('1'!V$43:V$60,$E124-$E$49+1)","v":":"},null,null,null,null,null,null,null,{"$f":"+INDEX('1'!AD$43:AD$60,$E124-$E$49+1)","v":":"},null,{"$f":"+INDEX('1'!AF$43:AF$60,$E124-$E$49+1)","v":":"}]
[null,null,null,null,null,null,null,null,"- P2_EPS.2",{"$f":"+INDEX('2'!J$43:J$60,$E124-$E$49+1)","v":":"},null,null,null,{"$f":"+INDEX('2'!N$43:N$60,$E124-$E$49+1)","v":":"},null,{"$f":"+INDEX('2'!P$43:P$60,$E124-$E$49+1)","v":":"},null,{"$f":"+INDEX('2'!R$43:R$60,$E124-$E$49+1)","v":":"},null,{"$f":"+INDEX('2'!T$43:T$60,$E124-$E$49+1)","v":":"},null,{"$f":"+INDEX('2'!V$43:V$60,$E124-$E$49+1)","v":":"},null,null,null,null,null,null,null,{"$f":"+INDEX('2'!AD$43:AD$60,$E124-$E$49+1)","v":":"},null,{"$f":"+INDEX('2'!AF$43:AF$60,$E124-$E$49+1)","v":":"}]
[null,null,null,null,null,null,"Gross fixed capital formation and acquisition less disposals of non-financial, non-produced assets ",null,"+ P51G_NP.1",{"$f":"+INDEX('1'!J$7:J$24,$E124-$E$49+1)","v":":"},null,null,null,{"$f":"+INDEX('1'!N$7:N$24,$E124-$E$49+1)","v":":"},null,{"$f":"+INDEX('1'!P$7:P$24,$E124-$E$49+1)","v":":"},null,{"$f":"+INDEX('1'!R$7:R$24,$E124-$E$49+1)","v":":"},null,{"$f":"+INDEX('1'!T$7:T$24,$E124-$E$49+1)","v":":"},null,{"$f":"+INDEX('1'!V$7:V$24,$E124-$E$49+1)","v":":"},null,null,null,null,null,null,null,{"$f":"+INDEX('1'!AD$7:AD$24,$E124-$E$49+1)","v":":"},null,{"$f":"+INDEX('1'!AF$7:AF$24,$E124-$E$49+1)","v":":"}]
[null,null,null,null,null,null,null,null,"+ P51G_NP.2",{"$f":"+INDEX('2'!J$7:J$24,$E124-$E$49+1)","v":":"},null,null,null,{"$f":"+INDEX('2'!N$7:N$24,$E124-$E$49+1)","v":":"},null,{"$f":"+INDEX('2'!P$7:P$24,$E124-$E$49+1)","v":":"},null,{"$f":"+INDEX('2'!R$7:R$24,$E124-$E$49+1)","v":":"},null,{"$f":"+INDEX('2'!T$7:T$24,$E124-$E$49+1)","v":":"},null,{"$f":"+INDEX('2'!V$7:V$24,$E124-$E$49+1)","v":":"},null,null,null,null,null,null,null,{"$f":"+INDEX('2'!AD$7:AD$24,$E124-$E$49+1)","v":":"},null,{"$f":"+INDEX('2'!AF$7:AF$24,$E124-$E$49+1)","v":":"}]
[null,null,null,null,null,null,null,null,"+ P51G_NP.3",{"$f":"+INDEX('3'!J$7:J$24,$E124-$E$49+1)","v":":"},null,null,null,{"$f":"+INDEX('3'!N$7:N$24,$E124-$E$49+1)","v":":"},null,{"$f":"+INDEX('3'!P$7:P$24,$E124-$E$49+1)","v":":"},null,{"$f":"+INDEX('3'!R$7:R$24,$E124-$E$49+1)","v":":"},null,{"$f":"+INDEX('3'!T$7:T$24,$E124-$E$49+1)","v":":"},null,{"$f":"+INDEX('3'!V$7:V$24,$E124-$E$49+1)","v":":"},null,null,null,null,null,null,null,{"$f":"+INDEX('3'!AD$7:AD$24,$E124-$E$49+1)","v":":"},null,{"$f":"+INDEX('3'!AF$7:AF$24,$E124-$E$49+1)","v":":"}]
[null,null,null,null,null,null,"EP transfers to / from Rest of the World",null,"- D3_D7_D92_D99_PAY_RW.6",{"$f":"INDEX('6'!J$187:J$204,$E124-$E$49+1)","v":":"},null,null,null,{"$f":"INDEX('6'!N$187:N$204,$E124-$E$49+1)","v":":"},null,{"$f":"INDEX('6'!P$187:P$204,$E124-$E$49+1)","v":":"},null,{"$f":"INDEX('6'!R$187:R$204,$E124-$E$49+1)","v":":"},null,{"$f":"INDEX('6'!T$187:T$204,$E124-$E$49+1)","v":":"},null,{"$f":"INDEX('6'!V$187:V$204,$E124-$E$49+1)","v":":"},null,null,null,null,null,null,null,{"$f":"INDEX('6'!AD$187:AD$204,$E124-$E$49+1)","v":":"},null,{"$f":"INDEX('6'!AF$187:AF$204,$E124-$E$49+1)","v":":"}]
[null,null,null,null,null,null,null,null,"+ D3_D7_D92_D99_REC_RW.6",{"$f":"INDEX('6'!J$205:J$222,$E124-$E$49+1)","v":":"},null,null,null,{"$f":"INDEX('6'!N$205:N$222,$E124-$E$49+1)","v":":"},null,{"$f":"INDEX('6'!P$205:P$222,$E124-$E$49+1)","v":":"},null,{"$f":"INDEX('6'!R$205:R$222,$E124-$E$49+1)","v":":"},null,{"$f":"INDEX('6'!T$205:T$222,$E124-$E$49+1)","v":":"},null,{"$f":"INDEX('6'!V$205:V$222,$E124-$E$49+1)","v":":"},null,null,null,null,null,null,null,{"$f":"INDEX('6'!AD$205:AD$222,$E124-$E$49+1)","v":":"},null,{"$f":"INDEX('6'!AF$205:AF$222,$E124-$E$49+1)","v":":"}]
[null,null,null,null,null,null,"TOTAL",null,"=SUM()",{"$f":"+IF(COUNT(J124:J127,J133:J137)=0,\":\",SUM(J124:J127,J133:J135,J137)-SUM(J136))","v":":"},null,null,null,{"$f":"+IF(COUNT(N124:N127,N133:N137)=0,\":\",SUM(N124:N127,N133:N135,N137)-SUM(N136))","v":":"},null,{"$f":"+IF(COUNT(P124:P127,P133:P137)=0,\":\",SUM(P124:P127,P133:P135,P137)-SUM(P136))","v":":"},null,{"$f":"+IF(COUNT(R124:R127,R133:R137)=0,\":\",SUM(R124:R127,R133:R135,R137)-SUM(R136))","v":":"},null,{"$f":"+IF(COUNT(T124:T127,T133:T137)=0,\":\",SUM(T124:T127,T133:T135,T137)-SUM(T136))","v":":"},null,{"$f":"+IF(COUNT(V124:V127,V133:V137)=0,\":\",SUM(V124:V127,V133:V135,V137)-SUM(V136))","v":":"},null,null,null,null,null,null,null,{"$f":"+IF(COUNT(AD124:AD127,AD133:AD137)=0,\":\",SUM(AD124:AD127,AD133:AD135,AD137)-SUM(AD136))","v":":"},null,{"$f":"+IF(COUNT(AF124:AF127,AF133:AF137)=0,\":\",SUM(AF124:AF127,AF133:AF135,AF137)-SUM(AF136))","v":":"}]
[null,null,null,null,2020,null,"Final consumption expenditure",null,"+ P3_EPS.1",{"$f":"+INDEX('1'!J$241:J$258,$E139-$E$49+1)","v":":"},null,null,null,{"$f":"+INDEX('1'!N$241:N$258,$E139-$E$49+1)","v":":"},null,{"$f":"+INDEX('1'!P$241:P$258,$E139-$E$49+1)","v":":"},null,{"$f":"+INDEX('1'!R$241:R$258,$E139-$E$49+1)","v":":"},null,{"$f":"+INDEX('1'!T$241:T$258,$E139-$E$49+1)","v":":"},null,{"$f":"+INDEX('1'!V$241:V$258,$E139-$E$49+1)","v":":"},null,null,null,null,null,null,null,{"$f":"+INDEX('1'!AD$241:AD$258,$E139-$E$49+1)","v":":"},null,{"$f":"+INDEX('1'!AF$241:AF$258,$E139-$E$49+1)","v":":"}]
[null,null,null,null,null,null,null,null,"+ P3_EPS.5",{"$f":"+INDEX('5'!J$7:J$24,$E139-$E$49+1)","v":":"},null,null,null,{"$f":"+INDEX('5'!N$7:N$24,$E139-$E$49+1)","v":":"},null,{"$f":"+INDEX('5'!P$7:P$24,$E139-$E$49+1)","v":":"},null,{"$f":"+INDEX('5'!R$7:R$24,$E139-$E$49+1)","v":":"},null,{"$f":"+INDEX('5'!T$7:T$24,$E139-$E$49+1)","v":":"},null,{"$f":"+INDEX('5'!V$7:V$24,$E139-$E$49+1)","v":":"},null,null,null,null,null,null,null,{"$f":"+INDEX('5'!AD$7:AD$24,$E139-$E$49+1)","v":":"},null,{"$f":"+INDEX('5'!AF$7:AF$24,$E139-$E$49+1)","v":":"}]
[null,null,null,null,null,null,"Intermediate consumption",null,"+ P1_ANC.3",{"$f":"+INDEX('3'!J$133:J$150,$E139-$E$49+1)","v":":"},null,null,null,{"$f":"+INDEX('3'!N$133:N$150,$E139-$E$49+1)","v":":"},null,{"$f":"+INDEX('3'!P$133:P$150,$E139-$E$49+1)","v":":"},null,{"$f":"+INDEX('3'!R$133:R$150,$E139-$E$49+1)","v":":"},null,{"$f":"+INDEX('3'!T$133:T$150,$E139-$E$49+1)","v":":"},null,{"$f":"+INDEX('3'!V$133:V$150,$E139-$E$49+1)","v":":"},null,null,null,null,null,null,null,{"$f":"+INDEX('3'!AD$133:AD$150,$E139-$E$49+1)","v":":"},null,{"$f":"+INDEX('3'!AF$133:AF$150,$E139-$E$49+1)","v":":"}]
[null,null,null,null,null,null,null,null,"+ P2",{"$f":"+IF(COUNT(J143:J147)=0,\":\",SUM(J143:J145)-SUM(J146:J147))","v":":"},null,null,null,{"$f":"+IF(COUNT(N143:N147)=0,\":\",SUM(N143:N145)-SUM(N146:N147))","v":":"},null,{"$f":"+IF(COUNT(P143:P147)=0,\":\",SUM(P143:P145)-SUM(P146:P147))","v":":"},null,{"$f":"+IF(COUNT(R143:R147)=0,\":\",SUM(R143:R145)-SUM(R146:R147))","v":":"},null,{"$f":"+IF(COUNT(T143:T147)=0,\":\",SUM(T143:T145)-SUM(T146:T147))","v":":"},null,{"$f":"+IF(COUNT(V143:V147)=0,\":\",SUM(V143:V145)-SUM(V146:V147))","v":":"},null,null,null,null,null,null,null,{"$f":"+IF(COUNT(AD143:AD147)=0,\":\",SUM(AD143:AD145)-SUM(AD146:AD147))","v":":"},null,{"$f":"+IF(COUNT(AF143:AF147)=0,\":\",SUM(AF143:AF145)-SUM(AF146:AF147))","v":":"}]
[null,null,null,null,null,null,null,null,"+ P2_EPS_EXT.1",{"$f":"+INDEX('1'!J$259:J$276,$E139-$E$49+1)","v":":"},null,null,null,{"$f":"+INDEX('1'!N$259:N$276,$E139-$E$49+1)","v":":"},null,{"$f":"+INDEX('1'!P$259:P$276,$E139-$E$49+1)","v":":"},null,{"$f":"+INDEX('1'!R$259:R$276,$E139-$E$49+1)","v":":"},null,{"$f":"+INDEX('1'!T$259:T$276,$E139-$E$49+1)","v":":"},null,{"$f":"+INDEX('1'!V$259:V$276,$E139-$E$49+1)","v":":"},null,null,null,null,null,null,null,{"$f":"+INDEX('1'!AD$259:AD$276,$E139-$E$49+1)","v":":"},null,{"$f":"+INDEX('1'!AF$259:AF$276,$E139-$E$49+1)","v":":"}]
[null,null,null,null,null,null,null,null,"+ P2_EPS_EXT.2",{"$f":"+INDEX('2'!J$259:J$276,$E139-$E$49+1)","v":":"},null,null,null,{"$f":"+INDEX('2'!N$259:N$276,$E139-$E$49+1)","v":":"},null,{"$f":"+INDEX('2'!P$259:P$276,$E139-$E$49+1)","v":":"},null,{"$f":"+INDEX('2'!R$259:R$276,$E139-$E$49+1)","v":":"},null,{"$f":"+INDEX('2'!T$259:T$276,$E139-$E$49+1)","v":":"},null,{"$f":"+INDEX('2'!V$259:V$276,$E139-$E$49+1)","v":":"},null,null,null,null,null,null,null,{"$f":"+INDEX('2'!AD$259:AD$276,$E139-$E$49+1)","v":":"},null,{"$f":"+INDEX('2'!AF$259:AF$276,$E139-$E$49+1)","v":":"}]
[null,null,null,null,null,null,null,null,"+ P2_EPS_EXT.3",{"$f":"+INDEX('3'!J$223:J$240,$E139-$E$49+1)","v":":"},null,null,null,{"$f":"+INDEX('3'!N$223:N$240,$E139-$E$49+1)","v":":"},null,{"$f":"+INDEX('3'!P$223:P$240,$E139-$E$49+1)","v":":"},null,{"$f":"+INDEX('3'!R$223:R$240,$E139-$E$49+1)","v":":"},null,{"$f":"+INDEX('3'!T$223:T$240,$E139-$E$49+1)","v":":"},null,{"$f":"+INDEX('3'!V$223:V$240,$E139-$E$49+1)","v":":"},null,null,null,null,null,null,null,{"$f":"+INDEX('3'!AD$223:AD$240,$E139-$E$49+1)","v":":"},null,{"$f":"+INDEX('3'!AF$223:AF$240,$E139-$E$49+1)","v":":"}]
[null,null,null,null,null,null,null,null,"- P2_EPS.1",{"$f":"+INDEX('1'!J$43:J$60,$E139-$E$49+1)","v":":"},null,null,null,{"$f":"+INDEX('1'!N$43:N$60,$E139-$E$49+1)","v":":"},null,{"$f":"+INDEX('1'!P$43:P$60,$E139-$E$49+1)","v":":"},null,{"$f":"+INDEX('1'!R$43:R$60,$E139-$E$49+1)","v":":"},null,{"$f":"+INDEX('1'!T$43:T$60,$E139-$E$49+1)","v":":"},null,{"$f":"+INDEX('1'!V$43:V$60,$E139-$E$49+1)","v":":"},null,null,null,null,null,null,null,{"$f":"+INDEX('1'!AD$43:AD$60,$E139-$E$49+1)","v":":"},null,{"$f":"+INDEX('1'!AF$43:AF$60,$E139-$E$49+1)","v":":"}]
[null,null,null,null,null,null,null,null,"- P2_EPS.2",{"$f":"+INDEX('2'!J$43:J$60,$E139-$E$49+1)","v":":"},null,null,null,{"$f":"+INDEX('2'!N$43:N$60,$E139-$E$49+1)","v":":"},null,{"$f":"+INDEX('2'!P$43:P$60,$E139-$E$49+1)","v":":"},null,{"$f":"+INDEX('2'!R$43:R$60,$E139-$E$49+1)","v":":"},null,{"$f":"+INDEX('2'!T$43:T$60,$E139-$E$49+1)","v":":"},null,{"$f":"+INDEX('2'!V$43:V$60,$E139-$E$49+1)","v":":"},null,null,null,null,null,null,null,{"$f":"+INDEX('2'!AD$43:AD$60,$E139-$E$49+1)","v":":"},null,{"$f":"+INDEX('2'!AF$43:AF$60,$E139-$E$49+1)","v":":"}]
[null,null,null,null,null,null,"Gross fixed capital formation and acquisition less disposals of non-financial, non-produced assets ",null,"+ P51G_NP.1",{"$f":"+INDEX('1'!J$7:J$24,$E139-$E$49+1)","v":":"},null,null,null,{"$f":"+INDEX('1'!N$7:N$24,$E139-$E$49+1)","v":":"},null,{"$f":"+INDEX('1'!P$7:P$24,$E139-$E$49+1)","v":":"},null,{"$f":"+INDEX('1'!R$7:R$24,$E139-$E$49+1)","v":":"},null,{"$f":"+INDEX('1'!T$7:T$24,$E139-$E$49+1)","v":":"},null,{"$f":"+INDEX('1'!V$7:V$24,$E139-$E$49+1)","v":":"},null,null,null,null,null,null,null,{"$f":"+INDEX('1'!AD$7:AD$24,$E139-$E$49+1)","v":":"},null,{"$f":"+INDEX('1'!AF$7:AF$24,$E139-$E$49+1)","v":":"}]
[null,null,null,null,null,null,null,null,"+ P51G_NP.2",{"$f":"+INDEX('2'!J$7:J$24,$E139-$E$49+1)","v":":"},null,null,null,{"$f":"+INDEX('2'!N$7:N$24,$E139-$E$49+1)","v":":"},null,{"$f":"+INDEX('2'!P$7:P$24,$E139-$E$49+1)","v":":"},null,{"$f":"+INDEX('2'!R$7:R$24,$E139-$E$49+1)","v":":"},null,{"$f":"+INDEX('2'!T$7:T$24,$E139-$E$49+1)","v":":"},null,{"$f":"+INDEX('2'!V$7:V$24,$E139-$E$49+1)","v":":"},null,null,null,null,null,null,null,{"$f":"+INDEX('2'!AD$7:AD$24,$E139-$E$49+1)","v":":"},null,{"$f":"+INDEX('2'!AF$7:AF$24,$E139-$E$49+1)","v":":"}]
[null,null,null,null,null,null,null,null,"+ P51G_NP.3",{"$f":"+INDEX('3'!J$7:J$24,$E139-$E$49+1)","v":":"},null,null,null,{"$f":"+INDEX('3'!N$7:N$24,$E139-$E$49+1)","v":":"},null,{"$f":"+INDEX('3'!P$7:P$24,$E139-$E$49+1)","v":":"},null,{"$f":"+INDEX('3'!R$7:R$24,$E139-$E$49+1)","v":":"},null,{"$f":"+INDEX('3'!T$7:T$24,$E139-$E$49+1)","v":":"},null,{"$f":"+INDEX('3'!V$7:V$24,$E139-$E$49+1)","v":":"},null,null,null,null,null,null,null,{"$f":"+INDEX('3'!AD$7:AD$24,$E139-$E$49+1)","v":":"},null,{"$f":"+INDEX('3'!AF$7:AF$24,$E139-$E$49+1)","v":":"}]
[null,null,null,null,null,null,"EP transfers to / from Rest of the World",null,"- D3_D7_D92_D99_PAY_RW.6",{"$f":"INDEX('6'!J$187:J$204,$E139-$E$49+1)","v":":"},null,null,null,{"$f":"INDEX('6'!N$187:N$204,$E139-$E$49+1)","v":":"},null,{"$f":"INDEX('6'!P$187:P$204,$E139-$E$49+1)","v":":"},null,{"$f":"INDEX('6'!R$187:R$204,$E139-$E$49+1)","v":":"},null,{"$f":"INDEX('6'!T$187:T$204,$E139-$E$49+1)","v":":"},null,{"$f":"INDEX('6'!V$187:V$204,$E139-$E$49+1)","v":":"},null,null,null,null,null,null,null,{"$f":"INDEX('6'!AD$187:AD$204,$E139-$E$49+1)","v":":"},null,{"$f":"INDEX('6'!AF$187:AF$204,$E139-$E$49+1)","v":":"}]
[null,null,null,null,null,null,null,null,"+ D3_D7_D92_D99_REC_RW.6",{"$f":"INDEX('6'!J$205:J$222,$E139-$E$49+1)","v":":"},null,null,null,{"$f":"INDEX('6'!N$205:N$222,$E139-$E$49+1)","v":":"},null,{"$f":"INDEX('6'!P$205:P$222,$E139-$E$49+1)","v":":"},null,{"$f":"INDEX('6'!R$205:R$222,$E139-$E$49+1)","v":":"},null,{"$f":"INDEX('6'!T$205:T$222,$E139-$E$49+1)","v":":"},null,{"$f":"INDEX('6'!V$205:V$222,$E139-$E$49+1)","v":":"},null,null,null,null,null,null,null,{"$f":"INDEX('6'!AD$205:AD$222,$E139-$E$49+1)","v":":"},null,{"$f":"INDEX('6'!AF$205:AF$222,$E139-$E$49+1)","v":":"}]
[null,null,null,null,null,null,"TOTAL",null,"=SUM()",{"$f":"+IF(COUNT(J139:J142,J148:J152)=0,\":\",SUM(J139:J142,J148:J150,J152)-SUM(J151))","v":":"},null,null,null,{"$f":"+IF(COUNT(N139:N142,N148:N152)=0,\":\",SUM(N139:N142,N148:N150,N152)-SUM(N151))","v":":"},null,{"$f":"+IF(COUNT(P139:P142,P148:P152)=0,\":\",SUM(P139:P142,P148:P150,P152)-SUM(P151))","v":":"},null,{"$f":"+IF(COUNT(R139:R142,R148:R152)=0,\":\",SUM(R139:R142,R148:R150,R152)-SUM(R151))","v":":"},null,{"$f":"+IF(COUNT(T139:T142,T148:T152)=0,\":\",SUM(T139:T142,T148:T150,T152)-SUM(T151))","v":":"},null,{"$f":"+IF(COUNT(V139:V142,V148:V152)=0,\":\",SUM(V139:V142,V148:V150,V152)-SUM(V151))","v":":"},null,null,null,null,null,null,null,{"$f":"+IF(COUNT(AD139:AD142,AD148:AD152)=0,\":\",SUM(AD139:AD142,AD148:AD150,AD152)-SUM(AD151))","v":":"},null,{"$f":"+IF(COUNT(AF139:AF142,AF148:AF152)=0,\":\",SUM(AF139:AF142,AF148:AF150,AF152)-SUM(AF151))","v":":"}]
[null,null,null,null,2021,null,"Final consumption expenditure",null,"+ P3_EPS.1",{"$f":"+INDEX('1'!J$241:J$258,$E154-$E$49+1)","v":":"},null,null,null,{"$f":"+INDEX('1'!N$241:N$258,$E154-$E$49+1)","v":":"},null,{"$f":"+INDEX('1'!P$241:P$258,$E154-$E$49+1)","v":":"},null,{"$f":"+INDEX('1'!R$241:R$258,$E154-$E$49+1)","v":":"},null,{"$f":"+INDEX('1'!T$241:T$258,$E154-$E$49+1)","v":":"},null,{"$f":"+INDEX('1'!V$241:V$258,$E154-$E$49+1)","v":":"},null,null,null,null,null,null,null,{"$f":"+INDEX('1'!AD$241:AD$258,$E154-$E$49+1)","v":":"},null,{"$f":"+INDEX('1'!AF$241:AF$258,$E154-$E$49+1)","v":":"}]
[null,null,null,null,null,null,null,null,"+ P3_EPS.5",{"$f":"+INDEX('5'!J$7:J$24,$E154-$E$49+1)","v":":"},null,null,null,{"$f":"+INDEX('5'!N$7:N$24,$E154-$E$49+1)","v":":"},null,{"$f":"+INDEX('5'!P$7:P$24,$E154-$E$49+1)","v":":"},null,{"$f":"+INDEX('5'!R$7:R$24,$E154-$E$49+1)","v":":"},null,{"$f":"+INDEX('5'!T$7:T$24,$E154-$E$49+1)","v":":"},null,{"$f":"+INDEX('5'!V$7:V$24,$E154-$E$49+1)","v":":"},null,null,null,null,null,null,null,{"$f":"+INDEX('5'!AD$7:AD$24,$E154-$E$49+1)","v":":"},null,{"$f":"+INDEX('5'!AF$7:AF$24,$E154-$E$49+1)","v":":"}]
[null,null,null,null,null,null,"Intermediate consumption",null,"+ P1_ANC.3",{"$f":"+INDEX('3'!J$133:J$150,$E154-$E$49+1)","v":":"},null,null,null,{"$f":"+INDEX('3'!N$133:N$150,$E154-$E$49+1)","v":":"},null,{"$f":"+INDEX('3'!P$133:P$150,$E154-$E$49+1)","v":":"},null,{"$f":"+INDEX('3'!R$133:R$150,$E154-$E$49+1)","v":":"},null,{"$f":"+INDEX('3'!T$133:T$150,$E154-$E$49+1)","v":":"},null,{"$f":"+INDEX('3'!V$133:V$150,$E154-$E$49+1)","v":":"},null,null,null,null,null,null,null,{"$f":"+INDEX('3'!AD$133:AD$150,$E154-$E$49+1)","v":":"},null,{"$f":"+INDEX('3'!AF$133:AF$150,$E154-$E$49+1)","v":":"}]
[null,null,null,null,null,null,null,null,"+ P2",{"$f":"+IF(COUNT(J158:J162)=0,\":\",SUM(J158:J160)-SUM(J161:J162))","v":":"},null,null,null,{"$f":"+IF(COUNT(N158:N162)=0,\":\",SUM(N158:N160)-SUM(N161:N162))","v":":"},null,{"$f":"+IF(COUNT(P158:P162)=0,\":\",SUM(P158:P160)-SUM(P161:P162))","v":":"},null,{"$f":"+IF(COUNT(R158:R162)=0,\":\",SUM(R158:R160)-SUM(R161:R162))","v":":"},null,{"$f":"+IF(COUNT(T158:T162)=0,\":\",SUM(T158:T160)-SUM(T161:T162))","v":":"},null,{"$f":"+IF(COUNT(V158:V162)=0,\":\",SUM(V158:V160)-SUM(V161:V162))","v":":"},null,null,null,null,null,null,null,{"$f":"+IF(COUNT(AD158:AD162)=0,\":\",SUM(AD158:AD160)-SUM(AD161:AD162))","v":":"},null,{"$f":"+IF(COUNT(AF158:AF162)=0,\":\",SUM(AF158:AF160)-SUM(AF161:AF162))","v":":"}]
[null,null,null,null,null,null,null,null,"+ P2_EPS_EXT.1",{"$f":"+INDEX('1'!J$259:J$276,$E154-$E$49+1)","v":":"},null,null,null,{"$f":"+INDEX('1'!N$259:N$276,$E154-$E$49+1)","v":":"},null,{"$f":"+INDEX('1'!P$259:P$276,$E154-$E$49+1)","v":":"},null,{"$f":"+INDEX('1'!R$259:R$276,$E154-$E$49+1)","v":":"},null,{"$f":"+INDEX('1'!T$259:T$276,$E154-$E$49+1)","v":":"},null,{"$f":"+INDEX('1'!V$259:V$276,$E154-$E$49+1)","v":":"},null,null,null,null,null,null,null,{"$f":"+INDEX('1'!AD$259:AD$276,$E154-$E$49+1)","v":":"},null,{"$f":"+INDEX('1'!AF$259:AF$276,$E154-$E$49+1)","v":":"}]
[null,null,null,null,null,null,null,null,"+ P2_EPS_EXT.2",{"$f":"+INDEX('2'!J$259:J$276,$E154-$E$49+1)","v":":"},null,null,null,{"$f":"+INDEX('2'!N$259:N$276,$E154-$E$49+1)","v":":"},null,{"$f":"+INDEX('2'!P$259:P$276,$E154-$E$49+1)","v":":"},null,{"$f":"+INDEX('2'!R$259:R$276,$E154-$E$49+1)","v":":"},null,{"$f":"+INDEX('2'!T$259:T$276,$E154-$E$49+1)","v":":"},null,{"$f":"+INDEX('2'!V$259:V$276,$E154-$E$49+1)","v":":"},null,null,null,null,null,null,null,{"$f":"+INDEX('2'!AD$259:AD$276,$E154-$E$49+1)","v":":"},null,{"$f":"+INDEX('2'!AF$259:AF$276,$E154-$E$49+1)","v":":"}]
[null,null,null,null,null,null,null,null,"+ P2_EPS_EXT.3",{"$f":"+INDEX('3'!J$223:J$240,$E154-$E$49+1)","v":":"},null,null,null,{"$f":"+INDEX('3'!N$223:N$240,$E154-$E$49+1)","v":":"},null,{"$f":"+INDEX('3'!P$223:P$240,$E154-$E$49+1)","v":":"},null,{"$f":"+INDEX('3'!R$223:R$240,$E154-$E$49+1)","v":":"},null,{"$f":"+INDEX('3'!T$223:T$240,$E154-$E$49+1)","v":":"},null,{"$f":"+INDEX('3'!V$223:V$240,$E154-$E$49+1)","v":":"},null,null,null,null,null,null,null,{"$f":"+INDEX('3'!AD$223:AD$240,$E154-$E$49+1)","v":":"},null,{"$f":"+INDEX('3'!AF$223:AF$240,$E154-$E$49+1)","v":":"}]
[null,null,null,null,null,null,null,null,"- P2_EPS.1",{"$f":"+INDEX('1'!J$43:J$60,$E154-$E$49+1)","v":":"},null,null,null,{"$f":"+INDEX('1'!N$43:N$60,$E154-$E$49+1)","v":":"},null,{"$f":"+INDEX('1'!P$43:P$60,$E154-$E$49+1)","v":":"},null,{"$f":"+INDEX('1'!R$43:R$60,$E154-$E$49+1)","v":":"},null,{"$f":"+INDEX('1'!T$43:T$60,$E154-$E$49+1)","v":":"},null,{"$f":"+INDEX('1'!V$43:V$60,$E154-$E$49+1)","v":":"},null,null,null,null,null,null,null,{"$f":"+INDEX('1'!AD$43:AD$60,$E154-$E$49+1)","v":":"},null,{"$f":"+INDEX('1'!AF$43:AF$60,$E154-$E$49+1)","v":":"}]
[null,null,null,null,null,null,null,null,"- P2_EPS.2",{"$f":"+INDEX('2'!J$43:J$60,$E154-$E$49+1)","v":":"},null,null,null,{"$f":"+INDEX('2'!N$43:N$60,$E154-$E$49+1)","v":":"},null,{"$f":"+INDEX('2'!P$43:P$60,$E154-$E$49+1)","v":":"},null,{"$f":"+INDEX('2'!R$43:R$60,$E154-$E$49+1)","v":":"},null,{"$f":"+INDEX('2'!T$43:T$60,$E154-$E$49+1)","v":":"},null,{"$f":"+INDEX('2'!V$43:V$60,$E154-$E$49+1)","v":":"},null,null,null,null,null,null,null,{"$f":"+INDEX('2'!AD$43:AD$60,$E154-$E$49+1)","v":":"},null,{"$f":"+INDEX('2'!AF$43:AF$60,$E154-$E$49+1)","v":":"}]
[null,null,null,null,null,null,"Gross fixed capital formation and acquisition less disposals of non-financial, non-produced assets ",null,"+ P51G_NP.1",{"$f":"+INDEX('1'!J$7:J$24,$E154-$E$49+1)","v":":"},null,null,null,{"$f":"+INDEX('1'!N$7:N$24,$E154-$E$49+1)","v":":"},null,{"$f":"+INDEX('1'!P$7:P$24,$E154-$E$49+1)","v":":"},null,{"$f":"+INDEX('1'!R$7:R$24,$E154-$E$49+1)","v":":"},null,{"$f":"+INDEX('1'!T$7:T$24,$E154-$E$49+1)","v":":"},null,{"$f":"+INDEX('1'!V$7:V$24,$E154-$E$49+1)","v":":"},null,null,null,null,null,null,null,{"$f":"+INDEX('1'!AD$7:AD$24,$E154-$E$49+1)","v":":"},null,{"$f":"+INDEX('1'!AF$7:AF$24,$E154-$E$49+1)","v":":"}]
[null,null,null,null,null,null,null,null,"+ P51G_NP.2",{"$f":"+INDEX('2'!J$7:J$24,$E154-$E$49+1)","v":":"},null,null,null,{"$f":"+INDEX('2'!N$7:N$24,$E154-$E$49+1)","v":":"},null,{"$f":"+INDEX('2'!P$7:P$24,$E154-$E$49+1)","v":":"},null,{"$f":"+INDEX('2'!R$7:R$24,$E154-$E$49+1)","v":":"},null,{"$f":"+INDEX('2'!T$7:T$24,$E154-$E$49+1)","v":":"},null,{"$f":"+INDEX('2'!V$7:V$24,$E154-$E$49+1)","v":":"},null,null,null,null,null,null,null,{"$f":"+INDEX('2'!AD$7:AD$24,$E154-$E$49+1)","v":":"},null,{"$f":"+INDEX('2'!AF$7:AF$24,$E154-$E$49+1)","v":":"}]
[null,null,null,null,null,null,null,null,"+ P51G_NP.3",{"$f":"+INDEX('3'!J$7:J$24,$E154-$E$49+1)","v":":"},null,null,null,{"$f":"+INDEX('3'!N$7:N$24,$E154-$E$49+1)","v":":"},null,{"$f":"+INDEX('3'!P$7:P$24,$E154-$E$49+1)","v":":"},null,{"$f":"+INDEX('3'!R$7:R$24,$E154-$E$49+1)","v":":"},null,{"$f":"+INDEX('3'!T$7:T$24,$E154-$E$49+1)","v":":"},null,{"$f":"+INDEX('3'!V$7:V$24,$E154-$E$49+1)","v":":"},null,null,null,null,null,null,null,{"$f":"+INDEX('3'!AD$7:AD$24,$E154-$E$49+1)","v":":"},null,{"$f":"+INDEX('3'!AF$7:AF$24,$E154-$E$49+1)","v":":"}]
[null,null,null,null,null,null,"EP transfers to / from Rest of the World",null,"- D3_D7_D92_D99_PAY_RW.6",{"$f":"INDEX('6'!J$187:J$204,$E154-$E$49+1)","v":":"},null,null,null,{"$f":"INDEX('6'!N$187:N$204,$E154-$E$49+1)","v":":"},null,{"$f":"INDEX('6'!P$187:P$204,$E154-$E$49+1)","v":":"},null,{"$f":"INDEX('6'!R$187:R$204,$E154-$E$49+1)","v":":"},null,{"$f":"INDEX('6'!T$187:T$204,$E154-$E$49+1)","v":":"},null,{"$f":"INDEX('6'!V$187:V$204,$E154-$E$49+1)","v":":"},null,null,null,null,null,null,null,{"$f":"INDEX('6'!AD$187:AD$204,$E154-$E$49+1)","v":":"},null,{"$f":"INDEX('6'!AF$187:AF$204,$E154-$E$49+1)","v":":"}]
[null,null,null,null,null,null,null,null,"+ D3_D7_D92_D99_REC_RW.6",{"$f":"INDEX('6'!J$205:J$222,$E154-$E$49+1)","v":":"},null,null,null,{"$f":"INDEX('6'!N$205:N$222,$E154-$E$49+1)","v":":"},null,{"$f":"INDEX('6'!P$205:P$222,$E154-$E$49+1)","v":":"},null,{"$f":"INDEX('6'!R$205:R$222,$E154-$E$49+1)","v":":"},null,{"$f":"INDEX('6'!T$205:T$222,$E154-$E$49+1)","v":":"},null,{"$f":"INDEX('6'!V$205:V$222,$E154-$E$49+1)","v":":"},null,null,null,null,null,null,null,{"$f":"INDEX('6'!AD$205:AD$222,$E154-$E$49+1)","v":":"},null,{"$f":"INDEX('6'!AF$205:AF$222,$E154-$E$49+1)","v":":"}]
[null,null,null,null,null,null,"TOTAL",null,"=SUM()",{"$f":"+IF(COUNT(J154:J157,J163:J167)=0,\":\",SUM(J154:J157,J163:J165,J167)-SUM(J166))","v":":"},null,null,null,{"$f":"+IF(COUNT(N154:N157,N163:N167)=0,\":\",SUM(N154:N157,N163:N165,N167)-SUM(N166))","v":":"},null,{"$f":"+IF(COUNT(P154:P157,P163:P167)=0,\":\",SUM(P154:P157,P163:P165,P167)-SUM(P166))","v":":"},null,{"$f":"+IF(COUNT(R154:R157,R163:R167)=0,\":\",SUM(R154:R157,R163:R165,R167)-SUM(R166))","v":":"},null,{"$f":"+IF(COUNT(T154:T157,T163:T167)=0,\":\",SUM(T154:T157,T163:T165,T167)-SUM(T166))","v":":"},null,{"$f":"+IF(COUNT(V154:V157,V163:V167)=0,\":\",SUM(V154:V157,V163:V165,V167)-SUM(V166))","v":":"},null,null,null,null,null,null,null,{"$f":"+IF(COUNT(AD154:AD157,AD163:AD167)=0,\":\",SUM(AD154:AD157,AD163:AD165,AD167)-SUM(AD166))","v":":"},null,{"$f":"+IF(COUNT(AF154:AF157,AF163:AF167)=0,\":\",SUM(AF154:AF157,AF163:AF165,AF167)-SUM(AF166))","v":":"}]
[null,null,null,null,2022,null,"Final consumption expenditure",null,"+ P3_EPS.1",{"$f":"+INDEX('1'!J$241:J$258,$E169-$E$49+1)","v":":"},null,null,null,{"$f":"+INDEX('1'!N$241:N$258,$E169-$E$49+1)","v":":"},null,{"$f":"+INDEX('1'!P$241:P$258,$E169-$E$49+1)","v":":"},null,{"$f":"+INDEX('1'!R$241:R$258,$E169-$E$49+1)","v":":"},null,{"$f":"+INDEX('1'!T$241:T$258,$E169-$E$49+1)","v":":"},null,{"$f":"+INDEX('1'!V$241:V$258,$E169-$E$49+1)","v":":"},null,null,null,null,null,null,null,{"$f":"+INDEX('1'!AD$241:AD$258,$E169-$E$49+1)","v":":"},null,{"$f":"+INDEX('1'!AF$241:AF$258,$E169-$E$49+1)","v":":"}]
[null,null,null,null,null,null,null,null,"+ P3_EPS.5",{"$f":"+INDEX('5'!J$7:J$24,$E169-$E$49+1)","v":":"},null,null,null,{"$f":"+INDEX('5'!N$7:N$24,$E169-$E$49+1)","v":":"},null,{"$f":"+INDEX('5'!P$7:P$24,$E169-$E$49+1)","v":":"},null,{"$f":"+INDEX('5'!R$7:R$24,$E169-$E$49+1)","v":":"},null,{"$f":"+INDEX('5'!T$7:T$24,$E169-$E$49+1)","v":":"},null,{"$f":"+INDEX('5'!V$7:V$24,$E169-$E$49+1)","v":":"},null,null,null,null,null,null,null,{"$f":"+INDEX('5'!AD$7:AD$24,$E169-$E$49+1)","v":":"},null,{"$f":"+INDEX('5'!AF$7:AF$24,$E169-$E$49+1)","v":":"}]
[null,null,null,null,null,null,"Intermediate consumption",null,"+ P1_ANC.3",{"$f":"+INDEX('3'!J$133:J$150,$E169-$E$49+1)","v":":"},null,null,null,{"$f":"+INDEX('3'!N$133:N$150,$E169-$E$49+1)","v":":"},null,{"$f":"+INDEX('3'!P$133:P$150,$E169-$E$49+1)","v":":"},null,{"$f":"+INDEX('3'!R$133:R$150,$E169-$E$49+1)","v":":"},null,{"$f":"+INDEX('3'!T$133:T$150,$E169-$E$49+1)","v":":"},null,{"$f":"+INDEX('3'!V$133:V$150,$E169-$E$49+1)","v":":"},null,null,null,null,null,null,null,{"$f":"+INDEX('3'!AD$133:AD$150,$E169-$E$49+1)","v":":"},null,{"$f":"+INDEX('3'!AF$133:AF$150,$E169-$E$49+1)","v":":"}]
[null,null,null,null,null,null,null,null,"+ P2",{"$f":"+IF(COUNT(J173:J177)=0,\":\",SUM(J173:J175)-SUM(J176:J177))","v":":"},null,null,null,{"$f":"+IF(COUNT(N173:N177)=0,\":\",SUM(N173:N175)-SUM(N176:N177))","v":":"},null,{"$f":"+IF(COUNT(P173:P177)=0,\":\",SUM(P173:P175)-SUM(P176:P177))","v":":"},null,{"$f":"+IF(COUNT(R173:R177)=0,\":\",SUM(R173:R175)-SUM(R176:R177))","v":":"},null,{"$f":"+IF(COUNT(T173:T177)=0,\":\",SUM(T173:T175)-SUM(T176:T177))","v":":"},null,{"$f":"+IF(COUNT(V173:V177)=0,\":\",SUM(V173:V175)-SUM(V176:V177))","v":":"},null,null,null,null,null,null,null,{"$f":"+IF(COUNT(AD173:AD177)=0,\":\",SUM(AD173:AD175)-SUM(AD176:AD177))","v":":"},null,{"$f":"+IF(COUNT(AF173:AF177)=0,\":\",SUM(AF173:AF175)-SUM(AF176:AF177))","v":":"}]
[null,null,null,null,null,null,null,null,"+ P2_EPS_EXT.1",{"$f":"+INDEX('1'!J$259:J$276,$E169-$E$49+1)","v":":"},null,null,null,{"$f":"+INDEX('1'!N$259:N$276,$E169-$E$49+1)","v":":"},null,{"$f":"+INDEX('1'!P$259:P$276,$E169-$E$49+1)","v":":"},null,{"$f":"+INDEX('1'!R$259:R$276,$E169-$E$49+1)","v":":"},null,{"$f":"+INDEX('1'!T$259:T$276,$E169-$E$49+1)","v":":"},null,{"$f":"+INDEX('1'!V$259:V$276,$E169-$E$49+1)","v":":"},null,null,null,null,null,null,null,{"$f":"+INDEX('1'!AD$259:AD$276,$E169-$E$49+1)","v":":"},null,{"$f":"+INDEX('1'!AF$259:AF$276,$E169-$E$49+1)","v":":"}]
[null,null,null,null,null,null,null,null,"+ P2_EPS_EXT.2",{"$f":"+INDEX('2'!J$259:J$276,$E169-$E$49+1)","v":":"},null,null,null,{"$f":"+INDEX('2'!N$259:N$276,$E169-$E$49+1)","v":":"},null,{"$f":"+INDEX('2'!P$259:P$276,$E169-$E$49+1)","v":":"},null,{"$f":"+INDEX('2'!R$259:R$276,$E169-$E$49+1)","v":":"},null,{"$f":"+INDEX('2'!T$259:T$276,$E169-$E$49+1)","v":":"},null,{"$f":"+INDEX('2'!V$259:V$276,$E169-$E$49+1)","v":":"},null,null,null,null,null,null,null,{"$f":"+INDEX('2'!AD$259:AD$276,$E169-$E$49+1)","v":":"},null,{"$f":"+INDEX('2'!AF$259:AF$276,$E169-$E$49+1)","v":":"}]
[null,null,null,null,null,null,null,null,"+ P2_EPS_EXT.3",{"$f":"+INDEX('3'!J$223:J$240,$E169-$E$49+1)","v":":"},null,null,null,{"$f":"+INDEX('3'!N$223:N$240,$E169-$E$49+1)","v":":"},null,{"$f":"+INDEX('3'!P$223:P$240,$E169-$E$49+1)","v":":"},null,{"$f":"+INDEX('3'!R$223:R$240,$E169-$E$49+1)","v":":"},null,{"$f":"+INDEX('3'!T$223:T$240,$E169-$E$49+1)","v":":"},null,{"$f":"+INDEX('3'!V$223:V$240,$E169-$E$49+1)","v":":"},null,null,null,null,null,null,null,{"$f":"+INDEX('3'!AD$223:AD$240,$E169-$E$49+1)","v":":"},null,{"$f":"+INDEX('3'!AF$223:AF$240,$E169-$E$49+1)","v":":"}]
[null,null,null,null,null,null,null,null,"- P2_EPS.1",{"$f":"+INDEX('1'!J$241:J$258,$E169-$E$49+1)","v":":"},null,null,null,{"$f":"+INDEX('1'!N$241:N$258,$E169-$E$49+1)","v":":"},null,{"$f":"+INDEX('1'!P$241:P$258,$E169-$E$49+1)","v":":"},null,{"$f":"+INDEX('1'!R$241:R$258,$E169-$E$49+1)","v":":"},null,{"$f":"+INDEX('1'!T$241:T$258,$E169-$E$49+1)","v":":"},null,{"$f":"+INDEX('1'!V$241:V$258,$E169-$E$49+1)","v":":"},null,null,null,null,null,null,null,{"$f":"+INDEX('1'!AD$241:AD$258,$E169-$E$49+1)","v":":"},null,{"$f":"+INDEX('1'!AF$241:AF$258,$E169-$E$49+1)","v":":"}]
[null,null,null,null,null,null,null,null,"- P2_EPS.2",{"$f":"+INDEX('2'!J$43:J$60,$E169-$E$49+1)","v":":"},null,null,null,{"$f":"+INDEX('2'!N$43:N$60,$E169-$E$49+1)","v":":"},null,{"$f":"+INDEX('2'!P$43:P$60,$E169-$E$49+1)","v":":"},null,{"$f":"+INDEX('2'!R$43:R$60,$E169-$E$49+1)","v":":"},null,{"$f":"+INDEX('2'!T$43:T$60,$E169-$E$49+1)","v":":"},null,{"$f":"+INDEX('2'!V$43:V$60,$E169-$E$49+1)","v":":"},null,null,null,null,null,null,null,{"$f":"+INDEX('2'!AD$43:AD$60,$E169-$E$49+1)","v":":"},null,{"$f":"+INDEX('2'!AF$43:AF$60,$E169-$E$49+1)","v":":"}]
[null,null,null,null,null,null,"Gross fixed capital formation and acquisition less disposals of non-financial, non-produced assets ",null,"+ P51G_NP.1",{"$f":"+INDEX('1'!J$7:J$24,$E169-$E$49+1)","v":":"},null,null,null,{"$f":"+INDEX('1'!N$7:N$24,$E169-$E$49+1)","v":":"},null,{"$f":"+INDEX('1'!P$7:P$24,$E169-$E$49+1)","v":":"},null,{"$f":"+INDEX('1'!R$7:R$24,$E169-$E$49+1)","v":":"},null,{"$f":"+INDEX('1'!T$7:T$24,$E169-$E$49+1)","v":":"},null,{"$f":"+INDEX('1'!V$7:V$24,$E169-$E$49+1)","v":":"},null,null,null,null,null,null,null,{"$f":"+INDEX('1'!AD$7:AD$24,$E169-$E$49+1)","v":":"},null,{"$f":"+INDEX('1'!AF$7:AF$24,$E169-$E$49+1)","v":":"}]
[null,null,null,null,null,null,null,null,"+ P51G_NP.2",{"$f":"+INDEX('2'!J$7:J$24,$E169-$E$49+1)","v":":"},null,null,null,{"$f":"+INDEX('2'!N$7:N$24,$E169-$E$49+1)","v":":"},null,{"$f":"+INDEX('2'!P$7:P$24,$E169-$E$49+1)","v":":"},null,{"$f":"+INDEX('2'!R$7:R$24,$E169-$E$49+1)","v":":"},null,{"$f":"+INDEX('2'!T$7:T$24,$E169-$E$49+1)","v":":"},null,{"$f":"+INDEX('2'!V$7:V$24,$E169-$E$49+1)","v":":"},null,null,null,null,null,null,null,{"$f":"+INDEX('2'!AD$7:AD$24,$E169-$E$49+1)","v":":"},null,{"$f":"+INDEX('2'!AF$7:AF$24,$E169-$E$49+1)","v":":"}]
[null,null,null,null,null,null,null,null,"+ P51G_NP.3",{"$f":"+INDEX('3'!J$7:J$24,$E169-$E$49+1)","v":":"},null,null,null,{"$f":"+INDEX('3'!N$7:N$24,$E169-$E$49+1)","v":":"},null,{"$f":"+INDEX('3'!P$7:P$24,$E169-$E$49+1)","v":":"},null,{"$f":"+INDEX('3'!R$7:R$24,$E169-$E$49+1)","v":":"},null,{"$f":"+INDEX('3'!T$7:T$24,$E169-$E$49+1)","v":":"},null,{"$f":"+INDEX('3'!V$7:V$24,$E169-$E$49+1)","v":":"},null,null,null,null,null,null,null,{"$f":"+INDEX('3'!AD$7:AD$24,$E169-$E$49+1)","v":":"},null,{"$f":"+INDEX('3'!AF$7:AF$24,$E169-$E$49+1)","v":":"}]
[null,null,null,null,null,null,"EP transfers to / from Rest of the World",null,"- D3_D7_D92_D99_PAY_RW.6",{"$f":"INDEX('6'!J$187:J$204,$E169-$E$49+1)","v":":"},null,null,null,{"$f":"INDEX('6'!N$187:N$204,$E169-$E$49+1)","v":":"},null,{"$f":"INDEX('6'!P$187:P$204,$E169-$E$49+1)","v":":"},null,{"$f":"INDEX('6'!R$187:R$204,$E169-$E$49+1)","v":":"},null,{"$f":"INDEX('6'!T$187:T$204,$E169-$E$49+1)","v":":"},null,{"$f":"INDEX('6'!V$187:V$204,$E169-$E$49+1)","v":":"},null,null,null,null,null,null,null,{"$f":"INDEX('6'!AD$187:AD$204,$E169-$E$49+1)","v":":"},null,{"$f":"INDEX('6'!AF$187:AF$204,$E169-$E$49+1)","v":":"}]
[null,null,null,null,null,null,null,null,"+ D3_D7_D92_D99_REC_RW.6",{"$f":"INDEX('6'!J$205:J$222,$E169-$E$49+1)","v":":"},null,null,null,{"$f":"INDEX('6'!N$205:N$222,$E169-$E$49+1)","v":":"},null,{"$f":"INDEX('6'!P$205:P$222,$E169-$E$49+1)","v":":"},null,{"$f":"INDEX('6'!R$205:R$222,$E169-$E$49+1)","v":":"},null,{"$f":"INDEX('6'!T$205:T$222,$E169-$E$49+1)","v":":"},null,{"$f":"INDEX('6'!V$205:V$222,$E169-$E$49+1)","v":":"},null,null,null,null,null,null,null,{"$f":"INDEX('6'!AD$205:AD$222,$E169-$E$49+1)","v":":"},null,{"$f":"INDEX('6'!AF$205:AF$222,$E169-$E$49+1)","v":":"}]
[null,null,null,null,null,null,"TOTAL",null,"=SUM()",{"$f":"+IF(COUNT(J169:J172,J178:J182)=0,\":\",SUM(J169:J172,J178:J180,J182)-SUM(J181))","v":":"},null,null,null,{"$f":"+IF(COUNT(N169:N172,N178:N182)=0,\":\",SUM(N169:N172,N178:N180,N182)-SUM(N181))","v":":"},null,{"$f":"+IF(COUNT(P169:P172,P178:P182)=0,\":\",SUM(P169:P172,P178:P180,P182)-SUM(P181))","v":":"},null,{"$f":"+IF(COUNT(R169:R172,R178:R182)=0,\":\",SUM(R169:R172,R178:R180,R182)-SUM(R181))","v":":"},null,{"$f":"+IF(COUNT(T169:T172,T178:T182)=0,\":\",SUM(T169:T172,T178:T180,T182)-SUM(T181))","v":":"},null,{"$f":"+IF(COUNT(V169:V172,V178:V182)=0,\":\",SUM(V169:V172,V178:V180,V182)-SUM(V181))","v":":"},null,null,null,null,null,null,null,{"$f":"+IF(COUNT(AD169:AD172,AD178:AD182)=0,\":\",SUM(AD169:AD172,AD178:AD180,AD182)-SUM(AD181))","v":":"},null,{"$f":"+IF(COUNT(AF169:AF172,AF178:AF182)=0,\":\",SUM(AF169:AF172,AF178:AF180,AF182)-SUM(AF181))","v":":"}]
[null,null,null,null,2023,null,"Final consumption expenditure",null,"+ P3_EPS.1",{"$f":"+INDEX('1'!J$241:J$258,$E184-$E$49+1)","v":":"},null,null,null,{"$f":"+INDEX('1'!N$241:N$258,$E184-$E$49+1)","v":":"},null,{"$f":"+INDEX('1'!P$241:P$258,$E184-$E$49+1)","v":":"},null,{"$f":"+INDEX('1'!R$241:R$258,$E184-$E$49+1)","v":":"},null,{"$f":"+INDEX('1'!T$241:T$258,$E184-$E$49+1)","v":":"},null,{"$f":"+INDEX('1'!V$241:V$258,$E184-$E$49+1)","v":":"},null,null,null,null,null,null,null,{"$f":"+INDEX('1'!AD$241:AD$258,$E184-$E$49+1)","v":":"},null,{"$f":"+INDEX('1'!AF$241:AF$258,$E184-$E$49+1)","v":":"}]
[null,null,null,null,null,null,null,null,"+ P3_EPS.5",{"$f":"+INDEX('5'!J$7:J$24,$E184-$E$49+1)","v":":"},null,null,null,{"$f":"+INDEX('5'!N$7:N$24,$E184-$E$49+1)","v":":"},null,{"$f":"+INDEX('5'!P$7:P$24,$E184-$E$49+1)","v":":"},null,{"$f":"+INDEX('5'!R$7:R$24,$E184-$E$49+1)","v":":"},null,{"$f":"+INDEX('5'!T$7:T$24,$E184-$E$49+1)","v":":"},null,{"$f":"+INDEX('5'!V$7:V$24,$E184-$E$49+1)","v":":"},null,null,null,null,null,null,null,{"$f":"+INDEX('5'!AD$7:AD$24,$E184-$E$49+1)","v":":"},null,{"$f":"+INDEX('5'!AF$7:AF$24,$E184-$E$49+1)","v":":"}]
[null,null,null,null,null,null,"Intermediate consumption",null,"+ P1_ANC.3",{"$f":"+INDEX('3'!J$133:J$150,$E184-$E$49+1)","v":":"},null,null,null,{"$f":"+INDEX('3'!N$133:N$150,$E184-$E$49+1)","v":":"},null,{"$f":"+INDEX('3'!P$133:P$150,$E184-$E$49+1)","v":":"},null,{"$f":"+INDEX('3'!R$133:R$150,$E184-$E$49+1)","v":":"},null,{"$f":"+INDEX('3'!T$133:T$150,$E184-$E$49+1)","v":":"},null,{"$f":"+INDEX('3'!V$133:V$150,$E184-$E$49+1)","v":":"},null,null,null,null,null,null,null,{"$f":"+INDEX('3'!AD$133:AD$150,$E184-$E$49+1)","v":":"},null,{"$f":"+INDEX('3'!AF$133:AF$150,$E184-$E$49+1)","v":":"}]
[null,null,null,null,null,null,null,null,"+ P2",{"$f":"+IF(COUNT(J188:J192)=0,\":\",SUM(J188:J190)-SUM(J191:J192))","v":":"},null,null,null,{"$f":"+IF(COUNT(N188:N192)=0,\":\",SUM(N188:N190)-SUM(N191:N192))","v":":"},null,{"$f":"+IF(COUNT(P188:P192)=0,\":\",SUM(P188:P190)-SUM(P191:P192))","v":":"},null,{"$f":"+IF(COUNT(R188:R192)=0,\":\",SUM(R188:R190)-SUM(R191:R192))","v":":"},null,{"$f":"+IF(COUNT(T188:T192)=0,\":\",SUM(T188:T190)-SUM(T191:T192))","v":":"},null,{"$f":"+IF(COUNT(V188:V192)=0,\":\",SUM(V188:V190)-SUM(V191:V192))","v":":"},null,null,null,null,null,null,null,{"$f":"+IF(COUNT(AD188:AD192)=0,\":\",SUM(AD188:AD190)-SUM(AD191:AD192))","v":":"},null,{"$f":"+IF(COUNT(AF188:AF192)=0,\":\",SUM(AF188:AF190)-SUM(AF191:AF192))","v":":"}]
[null,null,null,null,null,null,null,null,"+ P2_EPS_EXT.1",{"$f":"+INDEX('1'!J$259:J$276,$E184-$E$49+1)","v":":"},null,null,null,{"$f":"+INDEX('1'!N$259:N$276,$E184-$E$49+1)","v":":"},null,{"$f":"+INDEX('1'!P$259:P$276,$E184-$E$49+1)","v":":"},null,{"$f":"+INDEX('1'!R$259:R$276,$E184-$E$49+1)","v":":"},null,{"$f":"+INDEX('1'!T$259:T$276,$E184-$E$49+1)","v":":"},null,{"$f":"+INDEX('1'!V$259:V$276,$E184-$E$49+1)","v":":"},null,null,null,null,null,null,null,{"$f":"+INDEX('1'!AD$259:AD$276,$E184-$E$49+1)","v":":"},null,{"$f":"+INDEX('1'!AF$259:AF$276,$E184-$E$49+1)","v":":"}]
[null,null,null,null,null,null,null,null,"+ P2_EPS_EXT.2",{"$f":"+INDEX('2'!J$259:J$276,$E184-$E$49+1)","v":":"},null,null,null,{"$f":"+INDEX('2'!N$259:N$276,$E184-$E$49+1)","v":":"},null,{"$f":"+INDEX('2'!P$259:P$276,$E184-$E$49+1)","v":":"},null,{"$f":"+INDEX('2'!R$259:R$276,$E184-$E$49+1)","v":":"},null,{"$f":"+INDEX('2'!T$259:T$276,$E184-$E$49+1)","v":":"},null,{"$f":"+INDEX('2'!V$259:V$276,$E184-$E$49+1)","v":":"},null,null,null,null,null,null,null,{"$f":"+INDEX('2'!AD$259:AD$276,$E184-$E$49+1)","v":":"},null,{"$f":"+INDEX('2'!AF$259:AF$276,$E184-$E$49+1)","v":":"}]
[null,null,null,null,null,null,null,null,"+ P2_EPS_EXT.3",{"$f":"+INDEX('3'!J$223:J$240,$E184-$E$49+1)","v":":"},null,null,null,{"$f":"+INDEX('3'!N$223:N$240,$E184-$E$49+1)","v":":"},null,{"$f":"+INDEX('3'!P$223:P$240,$E184-$E$49+1)","v":":"},null,{"$f":"+INDEX('3'!R$223:R$240,$E184-$E$49+1)","v":":"},null,{"$f":"+INDEX('3'!T$223:T$240,$E184-$E$49+1)","v":":"},null,{"$f":"+INDEX('3'!V$223:V$240,$E184-$E$49+1)","v":":"},null,null,null,null,null,null,null,{"$f":"+INDEX('3'!AD$223:AD$240,$E184-$E$49+1)","v":":"},null,{"$f":"+INDEX('3'!AF$223:AF$240,$E184-$E$49+1)","v":":"}]
[null,null,null,null,null,null,null,null,"- P2_EPS.1",{"$f":"+INDEX('1'!J$241:J$258,$E184-$E$49+1)","v":":"},null,null,null,{"$f":"+INDEX('1'!N$241:N$258,$E184-$E$49+1)","v":":"},null,{"$f":"+INDEX('1'!P$241:P$258,$E184-$E$49+1)","v":":"},null,{"$f":"+INDEX('1'!R$241:R$258,$E184-$E$49+1)","v":":"},null,{"$f":"+INDEX('1'!T$241:T$258,$E184-$E$49+1)","v":":"},null,{"$f":"+INDEX('1'!V$241:V$258,$E184-$E$49+1)","v":":"},null,null,null,null,null,null,null,{"$f":"+INDEX('1'!AD$241:AD$258,$E184-$E$49+1)","v":":"},null,{"$f":"+INDEX('1'!AF$241:AF$258,$E184-$E$49+1)","v":":"}]
[null,null,null,null,null,null,null,null,"- P2_EPS.2",{"$f":"+INDEX('2'!J$43:J$60,$E184-$E$49+1)","v":":"},null,null,null,{"$f":"+INDEX('2'!N$43:N$60,$E184-$E$49+1)","v":":"},null,{"$f":"+INDEX('2'!P$43:P$60,$E184-$E$49+1)","v":":"},null,{"$f":"+INDEX('2'!R$43:R$60,$E184-$E$49+1)","v":":"},null,{"$f":"+INDEX('2'!T$43:T$60,$E184-$E$49+1)","v":":"},null,{"$f":"+INDEX('2'!V$43:V$60,$E184-$E$49+1)","v":":"},null,null,null,null,null,null,null,{"$f":"+INDEX('2'!AD$43:AD$60,$E184-$E$49+1)","v":":"},null,{"$f":"+INDEX('2'!AF$43:AF$60,$E184-$E$49+1)","v":":"}]
[null,null,null,null,null,null,"Gross fixed capital formation and acquisition less disposals of non-financial, non-produced assets ",null,"+ P51G_NP.1",{"$f":"+INDEX('1'!J$7:J$24,$E184-$E$49+1)","v":":"},null,null,null,{"$f":"+INDEX('1'!N$7:N$24,$E184-$E$49+1)","v":":"},null,{"$f":"+INDEX('1'!P$7:P$24,$E184-$E$49+1)","v":":"},null,{"$f":"+INDEX('1'!R$7:R$24,$E184-$E$49+1)","v":":"},null,{"$f":"+INDEX('1'!T$7:T$24,$E184-$E$49+1)","v":":"},null,{"$f":"+INDEX('1'!V$7:V$24,$E184-$E$49+1)","v":":"},null,null,null,null,null,null,null,{"$f":"+INDEX('1'!AD$7:AD$24,$E184-$E$49+1)","v":":"},null,{"$f":"+INDEX('1'!AF$7:AF$24,$E184-$E$49+1)","v":":"}]
[null,null,null,null,null,null,null,null,"+ P51G_NP.2",{"$f":"+INDEX('2'!J$7:J$24,$E184-$E$49+1)","v":":"},null,null,null,{"$f":"+INDEX('2'!N$7:N$24,$E184-$E$49+1)","v":":"},null,{"$f":"+INDEX('2'!P$7:P$24,$E184-$E$49+1)","v":":"},null,{"$f":"+INDEX('2'!R$7:R$24,$E184-$E$49+1)","v":":"},null,{"$f":"+INDEX('2'!T$7:T$24,$E184-$E$49+1)","v":":"},null,{"$f":"+INDEX('2'!V$7:V$24,$E184-$E$49+1)","v":":"},null,null,null,null,null,null,null,{"$f":"+INDEX('2'!AD$7:AD$24,$E184-$E$49+1)","v":":"},null,{"$f":"+INDEX('2'!AF$7:AF$24,$E184-$E$49+1)","v":":"}]
[null,null,null,null,null,null,null,null,"+ P51G_NP.3",{"$f":"+INDEX('3'!J$7:J$24,$E184-$E$49+1)","v":":"},null,null,null,{"$f":"+INDEX('3'!N$7:N$24,$E184-$E$49+1)","v":":"},null,{"$f":"+INDEX('3'!P$7:P$24,$E184-$E$49+1)","v":":"},null,{"$f":"+INDEX('3'!R$7:R$24,$E184-$E$49+1)","v":":"},null,{"$f":"+INDEX('3'!T$7:T$24,$E184-$E$49+1)","v":":"},null,{"$f":"+INDEX('3'!V$7:V$24,$E184-$E$49+1)","v":":"},null,null,null,null,null,null,null,{"$f":"+INDEX('3'!AD$7:AD$24,$E184-$E$49+1)","v":":"},null,{"$f":"+INDEX('3'!AF$7:AF$24,$E184-$E$49+1)","v":":"}]
[null,null,null,null,null,null,"EP transfers to / from Rest of the World",null,"- D3_D7_D92_D99_PAY_RW.6",{"$f":"INDEX('6'!J$187:J$204,$E184-$E$49+1)","v":":"},null,null,null,{"$f":"INDEX('6'!N$187:N$204,$E184-$E$49+1)","v":":"},null,{"$f":"INDEX('6'!P$187:P$204,$E184-$E$49+1)","v":":"},null,{"$f":"INDEX('6'!R$187:R$204,$E184-$E$49+1)","v":":"},null,{"$f":"INDEX('6'!T$187:T$204,$E184-$E$49+1)","v":":"},null,{"$f":"INDEX('6'!V$187:V$204,$E184-$E$49+1)","v":":"},null,null,null,null,null,null,null,{"$f":"INDEX('6'!AD$187:AD$204,$E184-$E$49+1)","v":":"},null,{"$f":"INDEX('6'!AF$187:AF$204,$E184-$E$49+1)","v":":"}]
[null,null,null,null,null,null,null,null,"+ D3_D7_D92_D99_REC_RW.6",{"$f":"INDEX('6'!J$205:J$222,$E184-$E$49+1)","v":":"},null,null,null,{"$f":"INDEX('6'!N$205:N$222,$E184-$E$49+1)","v":":"},null,{"$f":"INDEX('6'!P$205:P$222,$E184-$E$49+1)","v":":"},null,{"$f":"INDEX('6'!R$205:R$222,$E184-$E$49+1)","v":":"},null,{"$f":"INDEX('6'!T$205:T$222,$E184-$E$49+1)","v":":"},null,{"$f":"INDEX('6'!V$205:V$222,$E184-$E$49+1)","v":":"},null,null,null,null,null,null,null,{"$f":"INDEX('6'!AD$205:AD$222,$E184-$E$49+1)","v":":"},null,{"$f":"INDEX('6'!AF$205:AF$222,$E184-$E$49+1)","v":":"}]
[null,null,null,null,null,null,"TOTAL",null,"=SUM()",{"$f":"+IF(COUNT(J184:J187,J193:J197)=0,\":\",SUM(J184:J187,J193:J195,J197)-SUM(J196))","v":":"},null,null,null,{"$f":"+IF(COUNT(N184:N187,N193:N197)=0,\":\",SUM(N184:N187,N193:N195,N197)-SUM(N196))","v":":"},null,{"$f":"+IF(COUNT(P184:P187,P193:P197)=0,\":\",SUM(P184:P187,P193:P195,P197)-SUM(P196))","v":":"},null,{"$f":"+IF(COUNT(R184:R187,R193:R197)=0,\":\",SUM(R184:R187,R193:R195,R197)-SUM(R196))","v":":"},null,{"$f":"+IF(COUNT(T184:T187,T193:T197)=0,\":\",SUM(T184:T187,T193:T195,T197)-SUM(T196))","v":":"},null,{"$f":"+IF(COUNT(V184:V187,V193:V197)=0,\":\",SUM(V184:V187,V193:V195,V197)-SUM(V196))","v":":"},null,null,null,null,null,null,null,{"$f":"+IF(COUNT(AD184:AD187,AD193:AD197)=0,\":\",SUM(AD184:AD187,AD193:AD195,AD197)-SUM(AD196))","v":":"},null,{"$f":"+IF(COUNT(AF184:AF187,AF193:AF197)=0,\":\",SUM(AF184:AF187,AF193:AF195,AF197)-SUM(AF196))","v":":"}]
[null,null,null,null,2024,null,"Final consumption expenditure",null,"+ P3_EPS.1",{"$f":"+INDEX('1'!J$241:J$258,$E199-$E$49+1)","v":":"},null,null,null,{"$f":"+INDEX('1'!N$241:N$258,$E199-$E$49+1)","v":":"},null,{"$f":"+INDEX('1'!P$241:P$258,$E199-$E$49+1)","v":":"},null,{"$f":"+INDEX('1'!R$241:R$258,$E199-$E$49+1)","v":":"},null,{"$f":"+INDEX('1'!T$241:T$258,$E199-$E$49+1)","v":":"},null,{"$f":"+INDEX('1'!V$241:V$258,$E199-$E$49+1)","v":":"},null,null,null,null,null,null,null,{"$f":"+INDEX('1'!AD$241:AD$258,$E199-$E$49+1)","v":":"},null,{"$f":"+INDEX('1'!AF$241:AF$258,$E199-$E$49+1)","v":":"}]
[null,null,null,null,null,null,null,null,"+ P3_EPS.5",{"$f":"+INDEX('5'!J$7:J$24,$E199-$E$49+1)","v":":"},null,null,null,{"$f":"+INDEX('5'!N$7:N$24,$E199-$E$49+1)","v":":"},null,{"$f":"+INDEX('5'!P$7:P$24,$E199-$E$49+1)","v":":"},null,{"$f":"+INDEX('5'!R$7:R$24,$E199-$E$49+1)","v":":"},null,{"$f":"+INDEX('5'!T$7:T$24,$E199-$E$49+1)","v":":"},null,{"$f":"+INDEX('5'!V$7:V$24,$E199-$E$49+1)","v":":"},null,null,null,null,null,null,null,{"$f":"+INDEX('5'!AD$7:AD$24,$E199-$E$49+1)","v":":"},null,{"$f":"+INDEX('5'!AF$7:AF$24,$E199-$E$49+1)","v":":"}]
[null,null,null,null,null,null,"Intermediate consumption",null,"+ P1_ANC.3",{"$f":"+INDEX('3'!J$133:J$150,$E199-$E$49+1)","v":":"},null,null,null,{"$f":"+INDEX('3'!N$133:N$150,$E199-$E$49+1)","v":":"},null,{"$f":"+INDEX('3'!P$133:P$150,$E199-$E$49+1)","v":":"},null,{"$f":"+INDEX('3'!R$133:R$150,$E199-$E$49+1)","v":":"},null,{"$f":"+INDEX('3'!T$133:T$150,$E199-$E$49+1)","v":":"},null,{"$f":"+INDEX('3'!V$133:V$150,$E199-$E$49+1)","v":":"},null,null,null,null,null,null,null,{"$f":"+INDEX('3'!AD$133:AD$150,$E199-$E$49+1)","v":":"},null,{"$f":"+INDEX('3'!AF$133:AF$150,$E199-$E$49+1)","v":":"}]
[null,null,null,null,null,null,null,null,"+ P2",{"$f":"+IF(COUNT(J203:J207)=0,\":\",SUM(J203:J205)-SUM(J206:J207))","v":":"},null,null,null,{"$f":"+IF(COUNT(N203:N207)=0,\":\",SUM(N203:N205)-SUM(N206:N207))","v":":"},null,{"$f":"+IF(COUNT(P203:P207)=0,\":\",SUM(P203:P205)-SUM(P206:P207))","v":":"},null,{"$f":"+IF(COUNT(R203:R207)=0,\":\",SUM(R203:R205)-SUM(R206:R207))","v":":"},null,{"$f":"+IF(COUNT(T203:T207)=0,\":\",SUM(T203:T205)-SUM(T206:T207))","v":":"},null,{"$f":"+IF(COUNT(V203:V207)=0,\":\",SUM(V203:V205)-SUM(V206:V207))","v":":"},null,null,null,null,null,null,null,{"$f":"+IF(COUNT(AD203:AD207)=0,\":\",SUM(AD203:AD205)-SUM(AD206:AD207))","v":":"},null,{"$f":"+IF(COUNT(AF203:AF207)=0,\":\",SUM(AF203:AF205)-SUM(AF206:AF207))","v":":"}]
[null,null,null,null,null,null,null,null,"+ P2_EPS_EXT.1",{"$f":"+INDEX('1'!J$259:J$276,$E199-$E$49+1)","v":":"},null,null,null,{"$f":"+INDEX('1'!N$259:N$276,$E199-$E$49+1)","v":":"},null,{"$f":"+INDEX('1'!P$259:P$276,$E199-$E$49+1)","v":":"},null,{"$f":"+INDEX('1'!R$259:R$276,$E199-$E$49+1)","v":":"},null,{"$f":"+INDEX('1'!T$259:T$276,$E199-$E$49+1)","v":":"},null,{"$f":"+INDEX('1'!V$259:V$276,$E199-$E$49+1)","v":":"},null,null,null,null,null,null,null,{"$f":"+INDEX('1'!AD$259:AD$276,$E199-$E$49+1)","v":":"},null,{"$f":"+INDEX('1'!AF$259:AF$276,$E199-$E$49+1)","v":":"}]
[null,null,null,null,null,null,null,null,"+ P2_EPS_EXT.2",{"$f":"+INDEX('2'!J$259:J$276,$E199-$E$49+1)","v":":"},null,null,null,{"$f":"+INDEX('2'!N$259:N$276,$E199-$E$49+1)","v":":"},null,{"$f":"+INDEX('2'!P$259:P$276,$E199-$E$49+1)","v":":"},null,{"$f":"+INDEX('2'!R$259:R$276,$E199-$E$49+1)","v":":"},null,{"$f":"+INDEX('2'!T$259:T$276,$E199-$E$49+1)","v":":"},null,{"$f":"+INDEX('2'!V$259:V$276,$E199-$E$49+1)","v":":"},null,null,null,null,null,null,null,{"$f":"+INDEX('2'!AD$259:AD$276,$E199-$E$49+1)","v":":"},null,{"$f":"+INDEX('2'!AF$259:AF$276,$E199-$E$49+1)","v":":"}]
[null,null,null,null,null,null,null,null,"+ P2_EPS_EXT.3",{"$f":"+INDEX('3'!J$223:J$240,$E199-$E$49+1)","v":":"},null,null,null,{"$f":"+INDEX('3'!N$223:N$240,$E199-$E$49+1)","v":":"},null,{"$f":"+INDEX('3'!P$223:P$240,$E199-$E$49+1)","v":":"},null,{"$f":"+INDEX('3'!R$223:R$240,$E199-$E$49+1)","v":":"},null,{"$f":"+INDEX('3'!T$223:T$240,$E199-$E$49+1)","v":":"},null,{"$f":"+INDEX('3'!V$223:V$240,$E199-$E$49+1)","v":":"},null,null,null,null,null,null,null,{"$f":"+INDEX('3'!AD$223:AD$240,$E199-$E$49+1)","v":":"},null,{"$f":"+INDEX('3'!AF$223:AF$240,$E199-$E$49+1)","v":":"}]
[null,null,null,null,null,null,null,null,"- P2_EPS.1",{"$f":"+INDEX('1'!J$241:J$258,$E199-$E$49+1)","v":":"},null,null,null,{"$f":"+INDEX('1'!N$241:N$258,$E199-$E$49+1)","v":":"},null,{"$f":"+INDEX('1'!P$241:P$258,$E199-$E$49+1)","v":":"},null,{"$f":"+INDEX('1'!R$241:R$258,$E199-$E$49+1)","v":":"},null,{"$f":"+INDEX('1'!T$241:T$258,$E199-$E$49+1)","v":":"},null,{"$f":"+INDEX('1'!V$241:V$258,$E199-$E$49+1)","v":":"},null,null,null,null,null,null,null,{"$f":"+INDEX('1'!AD$241:AD$258,$E199-$E$49+1)","v":":"},null,{"$f":"+INDEX('1'!AF$241:AF$258,$E199-$E$49+1)","v":":"}]
[null,null,null,null,null,null,null,null,"- P2_EPS.2",{"$f":"+INDEX('2'!J$43:J$60,$E199-$E$49+1)","v":":"},null,null,null,{"$f":"+INDEX('2'!N$43:N$60,$E199-$E$49+1)","v":":"},null,{"$f":"+INDEX('2'!P$43:P$60,$E199-$E$49+1)","v":":"},null,{"$f":"+INDEX('2'!R$43:R$60,$E199-$E$49+1)","v":":"},null,{"$f":"+INDEX('2'!T$43:T$60,$E199-$E$49+1)","v":":"},null,{"$f":"+INDEX('2'!V$43:V$60,$E199-$E$49+1)","v":":"},null,null,null,null,null,null,null,{"$f":"+INDEX('2'!AD$43:AD$60,$E199-$E$49+1)","v":":"},null,{"$f":"+INDEX('2'!AF$43:AF$60,$E199-$E$49+1)","v":":"}]
[null,null,null,null,null,null,"Gross fixed capital formation and acquisition less disposals of non-financial, non-produced assets ",null,"+ P51G_NP.1",{"$f":"+INDEX('1'!J$7:J$24,$E199-$E$49+1)","v":":"},null,null,null,{"$f":"+INDEX('1'!N$7:N$24,$E199-$E$49+1)","v":":"},null,{"$f":"+INDEX('1'!P$7:P$24,$E199-$E$49+1)","v":":"},null,{"$f":"+INDEX('1'!R$7:R$24,$E199-$E$49+1)","v":":"},null,{"$f":"+INDEX('1'!T$7:T$24,$E199-$E$49+1)","v":":"},null,{"$f":"+INDEX('1'!V$7:V$24,$E199-$E$49+1)","v":":"},null,null,null,null,null,null,null,{"$f":"+INDEX('1'!AD$7:AD$24,$E199-$E$49+1)","v":":"},null,{"$f":"+INDEX('1'!AF$7:AF$24,$E199-$E$49+1)","v":":"}]
[null,null,null,null,null,null,null,null,"+ P51G_NP.2",{"$f":"+INDEX('2'!J$7:J$24,$E199-$E$49+1)","v":":"},null,null,null,{"$f":"+INDEX('2'!N$7:N$24,$E199-$E$49+1)","v":":"},null,{"$f":"+INDEX('2'!P$7:P$24,$E199-$E$49+1)","v":":"},null,{"$f":"+INDEX('2'!R$7:R$24,$E199-$E$49+1)","v":":"},null,{"$f":"+INDEX('2'!T$7:T$24,$E199-$E$49+1)","v":":"},null,{"$f":"+INDEX('2'!V$7:V$24,$E199-$E$49+1)","v":":"},null,null,null,null,null,null,null,{"$f":"+INDEX('2'!AD$7:AD$24,$E199-$E$49+1)","v":":"},null,{"$f":"+INDEX('2'!AF$7:AF$24,$E199-$E$49+1)","v":":"}]
[null,null,null,null,null,null,null,null,"+ P51G_NP.3",{"$f":"+INDEX('3'!J$7:J$24,$E199-$E$49+1)","v":":"},null,null,null,{"$f":"+INDEX('3'!N$7:N$24,$E199-$E$49+1)","v":":"},null,{"$f":"+INDEX('3'!P$7:P$24,$E199-$E$49+1)","v":":"},null,{"$f":"+INDEX('3'!R$7:R$24,$E199-$E$49+1)","v":":"},null,{"$f":"+INDEX('3'!T$7:T$24,$E199-$E$49+1)","v":":"},null,{"$f":"+INDEX('3'!V$7:V$24,$E199-$E$49+1)","v":":"},null,null,null,null,null,null,null,{"$f":"+INDEX('3'!AD$7:AD$24,$E199-$E$49+1)","v":":"},null,{"$f":"+INDEX('3'!AF$7:AF$24,$E199-$E$49+1)","v":":"}]
[null,null,null,null,null,null,"EP transfers to / from Rest of the World",null,"- D3_D7_D92_D99_PAY_RW.6",{"$f":"INDEX('6'!J$187:J$204,$E199-$E$49+1)","v":":"},null,null,null,{"$f":"INDEX('6'!N$187:N$204,$E199-$E$49+1)","v":":"},null,{"$f":"INDEX('6'!P$187:P$204,$E199-$E$49+1)","v":":"},null,{"$f":"INDEX('6'!R$187:R$204,$E199-$E$49+1)","v":":"},null,{"$f":"INDEX('6'!T$187:T$204,$E199-$E$49+1)","v":":"},null,{"$f":"INDEX('6'!V$187:V$204,$E199-$E$49+1)","v":":"},null,null,null,null,null,null,null,{"$f":"INDEX('6'!AD$187:AD$204,$E199-$E$49+1)","v":":"},null,{"$f":"INDEX('6'!AF$187:AF$204,$E199-$E$49+1)","v":":"}]
[null,null,null,null,null,null,null,null,"+ D3_D7_D92_D99_REC_RW.6",{"$f":"INDEX('6'!J$205:J$222,$E199-$E$49+1)","v":":"},null,null,null,{"$f":"INDEX('6'!N$205:N$222,$E199-$E$49+1)","v":":"},null,{"$f":"INDEX('6'!P$205:P$222,$E199-$E$49+1)","v":":"},null,{"$f":"INDEX('6'!R$205:R$222,$E199-$E$49+1)","v":":"},null,{"$f":"INDEX('6'!T$205:T$222,$E199-$E$49+1)","v":":"},null,{"$f":"INDEX('6'!V$205:V$222,$E199-$E$49+1)","v":":"},null,null,null,null,null,null,null,{"$f":"INDEX('6'!AD$205:AD$222,$E199-$E$49+1)","v":":"},null,{"$f":"INDEX('6'!AF$205:AF$222,$E199-$E$49+1)","v":":"}]
[null,null,null,null,null,null,"TOTAL",null,"=SUM()",{"$f":"+IF(COUNT(J199:J202,J208:J212)=0,\":\",SUM(J199:J202,J208:J210,J212)-SUM(J211))","v":":"},null,null,null,{"$f":"+IF(COUNT(N199:N202,N208:N212)=0,\":\",SUM(N199:N202,N208:N210,N212)-SUM(N211))","v":":"},null,{"$f":"+IF(COUNT(P199:P202,P208:P212)=0,\":\",SUM(P199:P202,P208:P210,P212)-SUM(P211))","v":":"},null,{"$f":"+IF(COUNT(R199:R202,R208:R212)=0,\":\",SUM(R199:R202,R208:R210,R212)-SUM(R211))","v":":"},null,{"$f":"+IF(COUNT(T199:T202,T208:T212)=0,\":\",SUM(T199:T202,T208:T210,T212)-SUM(T211))","v":":"},null,{"$f":"+IF(COUNT(V199:V202,V208:V212)=0,\":\",SUM(V199:V202,V208:V210,V212)-SUM(V211))","v":":"},null,null,null,null,null,null,null,{"$f":"+IF(COUNT(AD199:AD202,AD208:AD212)=0,\":\",SUM(AD199:AD202,AD208:AD210,AD212)-SUM(AD211))","v":":"},null,{"$f":"+IF(COUNT(AF199:AF202,AF208:AF212)=0,\":\",SUM(AF199:AF202,AF208:AF210,AF212)-SUM(AF211))","v":":"}]
[null,null,null,null,2025,null,"Final consumption expenditure",null,"+ P3_EPS.1",{"$f":"+INDEX('1'!J$241:J$258,$E214-$E$49+1)","v":":"},null,null,null,{"$f":"+INDEX('1'!N$241:N$258,$E214-$E$49+1)","v":":"},null,{"$f":"+INDEX('1'!P$241:P$258,$E214-$E$49+1)","v":":"},null,{"$f":"+INDEX('1'!R$241:R$258,$E214-$E$49+1)","v":":"},null,{"$f":"+INDEX('1'!T$241:T$258,$E214-$E$49+1)","v":":"},null,{"$f":"+INDEX('1'!V$241:V$258,$E214-$E$49+1)","v":":"},null,null,null,null,null,null,null,{"$f":"+INDEX('1'!AD$241:AD$258,$E214-$E$49+1)","v":":"},null,{"$f":"+INDEX('1'!AF$241:AF$258,$E214-$E$49+1)","v":":"}]
[null,null,null,null,null,null,null,null,"+ P3_EPS.5",{"$f":"+INDEX('5'!J$7:J$24,$E214-$E$49+1)","v":":"},null,null,null,{"$f":"+INDEX('5'!N$7:N$24,$E214-$E$49+1)","v":":"},null,{"$f":"+INDEX('5'!P$7:P$24,$E214-$E$49+1)","v":":"},null,{"$f":"+INDEX('5'!R$7:R$24,$E214-$E$49+1)","v":":"},null,{"$f":"+INDEX('5'!T$7:T$24,$E214-$E$49+1)","v":":"},null,{"$f":"+INDEX('5'!V$7:V$24,$E214-$E$49+1)","v":":"},null,null,null,null,null,null,null,{"$f":"+INDEX('5'!AD$7:AD$24,$E214-$E$49+1)","v":":"},null,{"$f":"+INDEX('5'!AF$7:AF$24,$E214-$E$49+1)","v":":"}]
[null,null,null,null,null,null,"Intermediate consumption",null,"+ P1_ANC.3",{"$f":"+INDEX('3'!J$133:J$150,$E214-$E$49+1)","v":":"},null,null,null,{"$f":"+INDEX('3'!N$133:N$150,$E214-$E$49+1)","v":":"},null,{"$f":"+INDEX('3'!P$133:P$150,$E214-$E$49+1)","v":":"},null,{"$f":"+INDEX('3'!R$133:R$150,$E214-$E$49+1)","v":":"},null,{"$f":"+INDEX('3'!T$133:T$150,$E214-$E$49+1)","v":":"},null,{"$f":"+INDEX('3'!V$133:V$150,$E214-$E$49+1)","v":":"},null,null,null,null,null,null,null,{"$f":"+INDEX('3'!AD$133:AD$150,$E214-$E$49+1)","v":":"},null,{"$f":"+INDEX('3'!AF$133:AF$150,$E214-$E$49+1)","v":":"}]
[null,null,null,null,null,null,null,null,"+ P2",{"$f":"+IF(COUNT(J218:J222)=0,\":\",SUM(J218:J220)-SUM(J221:J222))","v":":"},null,null,null,{"$f":"+IF(COUNT(N218:N222)=0,\":\",SUM(N218:N220)-SUM(N221:N222))","v":":"},null,{"$f":"+IF(COUNT(P218:P222)=0,\":\",SUM(P218:P220)-SUM(P221:P222))","v":":"},null,{"$f":"+IF(COUNT(R218:R222)=0,\":\",SUM(R218:R220)-SUM(R221:R222))","v":":"},null,{"$f":"+IF(COUNT(T218:T222)=0,\":\",SUM(T218:T220)-SUM(T221:T222))","v":":"},null,{"$f":"+IF(COUNT(V218:V222)=0,\":\",SUM(V218:V220)-SUM(V221:V222))","v":":"},null,null,null,null,null,null,null,{"$f":"+IF(COUNT(AD218:AD222)=0,\":\",SUM(AD218:AD220)-SUM(AD221:AD222))","v":":"},null,{"$f":"+IF(COUNT(AF218:AF222)=0,\":\",SUM(AF218:AF220)-SUM(AF221:AF222))","v":":"}]
[null,null,null,null,null,null,null,null,"+ P2_EPS_EXT.1",{"$f":"+INDEX('1'!J$259:J$276,$E214-$E$49+1)","v":":"},null,null,null,{"$f":"+INDEX('1'!N$259:N$276,$E214-$E$49+1)","v":":"},null,{"$f":"+INDEX('1'!P$259:P$276,$E214-$E$49+1)","v":":"},null,{"$f":"+INDEX('1'!R$259:R$276,$E214-$E$49+1)","v":":"},null,{"$f":"+INDEX('1'!T$259:T$276,$E214-$E$49+1)","v":":"},null,{"$f":"+INDEX('1'!V$259:V$276,$E214-$E$49+1)","v":":"},null,null,null,null,null,null,null,{"$f":"+INDEX('1'!AD$259:AD$276,$E214-$E$49+1)","v":":"},null,{"$f":"+INDEX('1'!AF$259:AF$276,$E214-$E$49+1)","v":":"}]
[null,null,null,null,null,null,null,null,"+ P2_EPS_EXT.2",{"$f":"+INDEX('2'!J$259:J$276,$E214-$E$49+1)","v":":"},null,null,null,{"$f":"+INDEX('2'!N$259:N$276,$E214-$E$49+1)","v":":"},null,{"$f":"+INDEX('2'!P$259:P$276,$E214-$E$49+1)","v":":"},null,{"$f":"+INDEX('2'!R$259:R$276,$E214-$E$49+1)","v":":"},null,{"$f":"+INDEX('2'!T$259:T$276,$E214-$E$49+1)","v":":"},null,{"$f":"+INDEX('2'!V$259:V$276,$E214-$E$49+1)","v":":"},null,null,null,null,null,null,null,{"$f":"+INDEX('2'!AD$259:AD$276,$E214-$E$49+1)","v":":"},null,{"$f":"+INDEX('2'!AF$259:AF$276,$E214-$E$49+1)","v":":"}]
[null,null,null,null,null,null,null,null,"+ P2_EPS_EXT.3",{"$f":"+INDEX('3'!J$223:J$240,$E214-$E$49+1)","v":":"},null,null,null,{"$f":"+INDEX('3'!N$223:N$240,$E214-$E$49+1)","v":":"},null,{"$f":"+INDEX('3'!P$223:P$240,$E214-$E$49+1)","v":":"},null,{"$f":"+INDEX('3'!R$223:R$240,$E214-$E$49+1)","v":":"},null,{"$f":"+INDEX('3'!T$223:T$240,$E214-$E$49+1)","v":":"},null,{"$f":"+INDEX('3'!V$223:V$240,$E214-$E$49+1)","v":":"},null,null,null,null,null,null,null,{"$f":"+INDEX('3'!AD$223:AD$240,$E214-$E$49+1)","v":":"},null,{"$f":"+INDEX('3'!AF$223:AF$240,$E214-$E$49+1)","v":":"}]
[null,null,null,null,null,null,null,null,"- P2_EPS.1",{"$f":"+INDEX('1'!J$241:J$258,$E214-$E$49+1)","v":":"},null,null,null,{"$f":"+INDEX('1'!N$241:N$258,$E214-$E$49+1)","v":":"},null,{"$f":"+INDEX('1'!P$241:P$258,$E214-$E$49+1)","v":":"},null,{"$f":"+INDEX('1'!R$241:R$258,$E214-$E$49+1)","v":":"},null,{"$f":"+INDEX('1'!T$241:T$258,$E214-$E$49+1)","v":":"},null,{"$f":"+INDEX('1'!V$241:V$258,$E214-$E$49+1)","v":":"},null,null,null,null,null,null,null,{"$f":"+INDEX('1'!AD$241:AD$258,$E214-$E$49+1)","v":":"},null,{"$f":"+INDEX('1'!AF$241:AF$258,$E214-$E$49+1)","v":":"}]
[null,null,null,null,null,null,null,null,"- P2_EPS.2",{"$f":"+INDEX('2'!J$43:J$60,$E214-$E$49+1)","v":":"},null,null,null,{"$f":"+INDEX('2'!N$43:N$60,$E214-$E$49+1)","v":":"},null,{"$f":"+INDEX('2'!P$43:P$60,$E214-$E$49+1)","v":":"},null,{"$f":"+INDEX('2'!R$43:R$60,$E214-$E$49+1)","v":":"},null,{"$f":"+INDEX('2'!T$43:T$60,$E214-$E$49+1)","v":":"},null,{"$f":"+INDEX('2'!V$43:V$60,$E214-$E$49+1)","v":":"},null,null,null,null,null,null,null,{"$f":"+INDEX('2'!AD$43:AD$60,$E214-$E$49+1)","v":":"},null,{"$f":"+INDEX('2'!AF$43:AF$60,$E214-$E$49+1)","v":":"}]
[null,null,null,null,null,null,"Gross fixed capital formation and acquisition less disposals of non-financial, non-produced assets ",null,"+ P51G_NP.1",{"$f":"+INDEX('1'!J$7:J$24,$E214-$E$49+1)","v":":"},null,null,null,{"$f":"+INDEX('1'!N$7:N$24,$E214-$E$49+1)","v":":"},null,{"$f":"+INDEX('1'!P$7:P$24,$E214-$E$49+1)","v":":"},null,{"$f":"+INDEX('1'!R$7:R$24,$E214-$E$49+1)","v":":"},null,{"$f":"+INDEX('1'!T$7:T$24,$E214-$E$49+1)","v":":"},null,{"$f":"+INDEX('1'!V$7:V$24,$E214-$E$49+1)","v":":"},null,null,null,null,null,null,null,{"$f":"+INDEX('1'!AD$7:AD$24,$E214-$E$49+1)","v":":"},null,{"$f":"+INDEX('1'!AF$7:AF$24,$E214-$E$49+1)","v":":"}]
[null,null,null,null,null,null,null,null,"+ P51G_NP.2",{"$f":"+INDEX('2'!J$7:J$24,$E214-$E$49+1)","v":":"},null,null,null,{"$f":"+INDEX('2'!N$7:N$24,$E214-$E$49+1)","v":":"},null,{"$f":"+INDEX('2'!P$7:P$24,$E214-$E$49+1)","v":":"},null,{"$f":"+INDEX('2'!R$7:R$24,$E214-$E$49+1)","v":":"},null,{"$f":"+INDEX('2'!T$7:T$24,$E214-$E$49+1)","v":":"},null,{"$f":"+INDEX('2'!V$7:V$24,$E214-$E$49+1)","v":":"},null,null,null,null,null,null,null,{"$f":"+INDEX('2'!AD$7:AD$24,$E214-$E$49+1)","v":":"},null,{"$f":"+INDEX('2'!AF$7:AF$24,$E214-$E$49+1)","v":":"}]
[null,null,null,null,null,null,null,null,"+ P51G_NP.3",{"$f":"+INDEX('3'!J$7:J$24,$E214-$E$49+1)","v":":"},null,null,null,{"$f":"+INDEX('3'!N$7:N$24,$E214-$E$49+1)","v":":"},null,{"$f":"+INDEX('3'!P$7:P$24,$E214-$E$49+1)","v":":"},null,{"$f":"+INDEX('3'!R$7:R$24,$E214-$E$49+1)","v":":"},null,{"$f":"+INDEX('3'!T$7:T$24,$E214-$E$49+1)","v":":"},null,{"$f":"+INDEX('3'!V$7:V$24,$E214-$E$49+1)","v":":"},null,null,null,null,null,null,null,{"$f":"+INDEX('3'!AD$7:AD$24,$E214-$E$49+1)","v":":"},null,{"$f":"+INDEX('3'!AF$7:AF$24,$E214-$E$49+1)","v":":"}]
[null,null,null,null,null,null,"EP transfers to / from Rest of the World",null,"- D3_D7_D92_D99_PAY_RW.6",{"$f":"INDEX('6'!J$187:J$204,$E214-$E$49+1)","v":":"},null,null,null,{"$f":"INDEX('6'!N$187:N$204,$E214-$E$49+1)","v":":"},null,{"$f":"INDEX('6'!P$187:P$204,$E214-$E$49+1)","v":":"},null,{"$f":"INDEX('6'!R$187:R$204,$E214-$E$49+1)","v":":"},null,{"$f":"INDEX('6'!T$187:T$204,$E214-$E$49+1)","v":":"},null,{"$f":"INDEX('6'!V$187:V$204,$E214-$E$49+1)","v":":"},null,null,null,null,null,null,null,{"$f":"INDEX('6'!AD$187:AD$204,$E214-$E$49+1)","v":":"},null,{"$f":"INDEX('6'!AF$187:AF$204,$E214-$E$49+1)","v":":"}]
[null,null,null,null,null,null,null,null,"+ D3_D7_D92_D99_REC_RW.6",{"$f":"INDEX('6'!J$205:J$222,$E214-$E$49+1)","v":":"},null,null,null,{"$f":"INDEX('6'!N$205:N$222,$E214-$E$49+1)","v":":"},null,{"$f":"INDEX('6'!P$205:P$222,$E214-$E$49+1)","v":":"},null,{"$f":"INDEX('6'!R$205:R$222,$E214-$E$49+1)","v":":"},null,{"$f":"INDEX('6'!T$205:T$222,$E214-$E$49+1)","v":":"},null,{"$f":"INDEX('6'!V$205:V$222,$E214-$E$49+1)","v":":"},null,null,null,null,null,null,null,{"$f":"INDEX('6'!AD$205:AD$222,$E214-$E$49+1)","v":":"},null,{"$f":"INDEX('6'!AF$205:AF$222,$E214-$E$49+1)","v":":"}]
[null,null,null,null,null,null,"TOTAL",null,"=SUM()",{"$f":"+IF(COUNT(J214:J217,J223:J227)=0,\":\",SUM(J214:J217,J223:J225,J227)-SUM(J226))","v":":"},null,null,null,{"$f":"+IF(COUNT(N214:N217,N223:N227)=0,\":\",SUM(N214:N217,N223:N225,N227)-SUM(N226))","v":":"},null,{"$f":"+IF(COUNT(P214:P217,P223:P227)=0,\":\",SUM(P214:P217,P223:P225,P227)-SUM(P226))","v":":"},null,{"$f":"+IF(COUNT(R214:R217,R223:R227)=0,\":\",SUM(R214:R217,R223:R225,R227)-SUM(R226))","v":":"},null,{"$f":"+IF(COUNT(T214:T217,T223:T227)=0,\":\",SUM(T214:T217,T223:T225,T227)-SUM(T226))","v":":"},null,{"$f":"+IF(COUNT(V214:V217,V223:V227)=0,\":\",SUM(V214:V217,V223:V225,V227)-SUM(V226))","v":":"},null,null,null,null,null,null,null,{"$f":"+IF(COUNT(AD214:AD217,AD223:AD227)=0,\":\",SUM(AD214:AD217,AD223:AD225,AD227)-SUM(AD226))","v":":"},null,{"$f":"+IF(COUNT(AF214:AF217,AF223:AF227)=0,\":\",SUM(AF214:AF217,AF223:AF225,AF227)-SUM(AF226))","v":":"}]
[null,null,null,null,2026,null,"Final consumption expenditure",null,"+ P3_EPS.1",{"$f":"+INDEX('1'!J$241:J$258,$E229-$E$49+1)","v":":"},null,null,null,{"$f":"+INDEX('1'!N$241:N$258,$E229-$E$49+1)","v":":"},null,{"$f":"+INDEX('1'!P$241:P$258,$E229-$E$49+1)","v":":"},null,{"$f":"+INDEX('1'!R$241:R$258,$E229-$E$49+1)","v":":"},null,{"$f":"+INDEX('1'!T$241:T$258,$E229-$E$49+1)","v":":"},null,{"$f":"+INDEX('1'!V$241:V$258,$E229-$E$49+1)","v":":"},null,null,null,null,null,null,null,{"$f":"+INDEX('1'!AD$241:AD$258,$E229-$E$49+1)","v":":"},null,{"$f":"+INDEX('1'!AF$241:AF$258,$E229-$E$49+1)","v":":"}]
[null,null,null,null,null,null,null,null,"+ P3_EPS.5",{"$f":"+INDEX('5'!J$7:J$24,$E229-$E$49+1)","v":":"},null,null,null,{"$f":"+INDEX('5'!N$7:N$24,$E229-$E$49+1)","v":":"},null,{"$f":"+INDEX('5'!P$7:P$24,$E229-$E$49+1)","v":":"},null,{"$f":"+INDEX('5'!R$7:R$24,$E229-$E$49+1)","v":":"},null,{"$f":"+INDEX('5'!T$7:T$24,$E229-$E$49+1)","v":":"},null,{"$f":"+INDEX('5'!V$7:V$24,$E229-$E$49+1)","v":":"},null,null,null,null,null,null,null,{"$f":"+INDEX('5'!AD$7:AD$24,$E229-$E$49+1)","v":":"},null,{"$f":"+INDEX('5'!AF$7:AF$24,$E229-$E$49+1)","v":":"}]
[null,null,null,null,null,null,"Intermediate consumption",null,"+ P1_ANC.3",{"$f":"+INDEX('3'!J$133:J$150,$E229-$E$49+1)","v":":"},null,null,null,{"$f":"+INDEX('3'!N$133:N$150,$E229-$E$49+1)","v":":"},null,{"$f":"+INDEX('3'!P$133:P$150,$E229-$E$49+1)","v":":"},null,{"$f":"+INDEX('3'!R$133:R$150,$E229-$E$49+1)","v":":"},null,{"$f":"+INDEX('3'!T$133:T$150,$E229-$E$49+1)","v":":"},null,{"$f":"+INDEX('3'!V$133:V$150,$E229-$E$49+1)","v":":"},null,null,null,null,null,null,null,{"$f":"+INDEX('3'!AD$133:AD$150,$E229-$E$49+1)","v":":"},null,{"$f":"+INDEX('3'!AF$133:AF$150,$E229-$E$49+1)","v":":"}]
[null,null,null,null,null,null,null,null,"+ P2",{"$f":"+IF(COUNT(J233:J237)=0,\":\",SUM(J233:J235)-SUM(J236:J237))","v":":"},null,null,null,{"$f":"+IF(COUNT(N233:N237)=0,\":\",SUM(N233:N235)-SUM(N236:N237))","v":":"},null,{"$f":"+IF(COUNT(P233:P237)=0,\":\",SUM(P233:P235)-SUM(P236:P237))","v":":"},null,{"$f":"+IF(COUNT(R233:R237)=0,\":\",SUM(R233:R235)-SUM(R236:R237))","v":":"},null,{"$f":"+IF(COUNT(T233:T237)=0,\":\",SUM(T233:T235)-SUM(T236:T237))","v":":"},null,{"$f":"+IF(COUNT(V233:V237)=0,\":\",SUM(V233:V235)-SUM(V236:V237))","v":":"},null,null,null,null,null,null,null,{"$f":"+IF(COUNT(AD233:AD237)=0,\":\",SUM(AD233:AD235)-SUM(AD236:AD237))","v":":"},null,{"$f":"+IF(COUNT(AF233:AF237)=0,\":\",SUM(AF233:AF235)-SUM(AF236:AF237))","v":":"}]
[null,null,null,null,null,null,null,null,"+ P2_EPS_EXT.1",{"$f":"+INDEX('1'!J$259:J$276,$E229-$E$49+1)","v":":"},null,null,null,{"$f":"+INDEX('1'!N$259:N$276,$E229-$E$49+1)","v":":"},null,{"$f":"+INDEX('1'!P$259:P$276,$E229-$E$49+1)","v":":"},null,{"$f":"+INDEX('1'!R$259:R$276,$E229-$E$49+1)","v":":"},null,{"$f":"+INDEX('1'!T$259:T$276,$E229-$E$49+1)","v":":"},null,{"$f":"+INDEX('1'!V$259:V$276,$E229-$E$49+1)","v":":"},null,null,null,null,null,null,null,{"$f":"+INDEX('1'!AD$259:AD$276,$E229-$E$49+1)","v":":"},null,{"$f":"+INDEX('1'!AF$259:AF$276,$E229-$E$49+1)","v":":"}]
[null,null,null,null,null,null,null,null,"+ P2_EPS_EXT.2",{"$f":"+INDEX('2'!J$259:J$276,$E229-$E$49+1)","v":":"},null,null,null,{"$f":"+INDEX('2'!N$259:N$276,$E229-$E$49+1)","v":":"},null,{"$f":"+INDEX('2'!P$259:P$276,$E229-$E$49+1)","v":":"},null,{"$f":"+INDEX('2'!R$259:R$276,$E229-$E$49+1)","v":":"},null,{"$f":"+INDEX('2'!T$259:T$276,$E229-$E$49+1)","v":":"},null,{"$f":"+INDEX('2'!V$259:V$276,$E229-$E$49+1)","v":":"},null,null,null,null,null,null,null,{"$f":"+INDEX('2'!AD$259:AD$276,$E229-$E$49+1)","v":":"},null,{"$f":"+INDEX('2'!AF$259:AF$276,$E229-$E$49+1)","v":":"}]
[null,null,null,null,null,null,null,null,"+ P2_EPS_EXT.3",{"$f":"+INDEX('3'!J$223:J$240,$E229-$E$49+1)","v":":"},null,null,null,{"$f":"+INDEX('3'!N$223:N$240,$E229-$E$49+1)","v":":"},null,{"$f":"+INDEX('3'!P$223:P$240,$E229-$E$49+1)","v":":"},null,{"$f":"+INDEX('3'!R$223:R$240,$E229-$E$49+1)","v":":"},null,{"$f":"+INDEX('3'!T$223:T$240,$E229-$E$49+1)","v":":"},null,{"$f":"+INDEX('3'!V$223:V$240,$E229-$E$49+1)","v":":"},null,null,null,null,null,null,null,{"$f":"+INDEX('3'!AD$223:AD$240,$E229-$E$49+1)","v":":"},null,{"$f":"+INDEX('3'!AF$223:AF$240,$E229-$E$49+1)","v":":"}]
[null,null,null,null,null,null,null,null,"- P2_EPS.1",{"$f":"+INDEX('1'!J$241:J$258,$E229-$E$49+1)","v":":"},null,null,null,{"$f":"+INDEX('1'!N$241:N$258,$E229-$E$49+1)","v":":"},null,{"$f":"+INDEX('1'!P$241:P$258,$E229-$E$49+1)","v":":"},null,{"$f":"+INDEX('1'!R$241:R$258,$E229-$E$49+1)","v":":"},null,{"$f":"+INDEX('1'!T$241:T$258,$E229-$E$49+1)","v":":"},null,{"$f":"+INDEX('1'!V$241:V$258,$E229-$E$49+1)","v":":"},null,null,null,null,null,null,null,{"$f":"+INDEX('1'!AD$241:AD$258,$E229-$E$49+1)","v":":"},null,{"$f":"+INDEX('1'!AF$241:AF$258,$E229-$E$49+1)","v":":"}]
[null,null,null,null,null,null,null,null,"- P2_EPS.2",{"$f":"+INDEX('2'!J$43:J$60,$E229-$E$49+1)","v":":"},null,null,null,{"$f":"+INDEX('2'!N$43:N$60,$E229-$E$49+1)","v":":"},null,{"$f":"+INDEX('2'!P$43:P$60,$E229-$E$49+1)","v":":"},null,{"$f":"+INDEX('2'!R$43:R$60,$E229-$E$49+1)","v":":"},null,{"$f":"+INDEX('2'!T$43:T$60,$E229-$E$49+1)","v":":"},null,{"$f":"+INDEX('2'!V$43:V$60,$E229-$E$49+1)","v":":"},null,null,null,null,null,null,null,{"$f":"+INDEX('2'!AD$43:AD$60,$E229-$E$49+1)","v":":"},null,{"$f":"+INDEX('2'!AF$43:AF$60,$E229-$E$49+1)","v":":"}]
[null,null,null,null,null,null,"Gross fixed capital formation and acquisition less disposals of non-financial, non-produced assets ",null,"+ P51G_NP.1",{"$f":"+INDEX('1'!J$7:J$24,$E229-$E$49+1)","v":":"},null,null,null,{"$f":"+INDEX('1'!N$7:N$24,$E229-$E$49+1)","v":":"},null,{"$f":"+INDEX('1'!P$7:P$24,$E229-$E$49+1)","v":":"},null,{"$f":"+INDEX('1'!R$7:R$24,$E229-$E$49+1)","v":":"},null,{"$f":"+INDEX('1'!T$7:T$24,$E229-$E$49+1)","v":":"},null,{"$f":"+INDEX('1'!V$7:V$24,$E229-$E$49+1)","v":":"},null,null,null,null,null,null,null,{"$f":"+INDEX('1'!AD$7:AD$24,$E229-$E$49+1)","v":":"},null,{"$f":"+INDEX('1'!AF$7:AF$24,$E229-$E$49+1)","v":":"}]
[null,null,null,null,null,null,null,null,"+ P51G_NP.2",{"$f":"+INDEX('2'!J$7:J$24,$E229-$E$49+1)","v":":"},null,null,null,{"$f":"+INDEX('2'!N$7:N$24,$E229-$E$49+1)","v":":"},null,{"$f":"+INDEX('2'!P$7:P$24,$E229-$E$49+1)","v":":"},null,{"$f":"+INDEX('2'!R$7:R$24,$E229-$E$49+1)","v":":"},null,{"$f":"+INDEX('2'!T$7:T$24,$E229-$E$49+1)","v":":"},null,{"$f":"+INDEX('2'!V$7:V$24,$E229-$E$49+1)","v":":"},null,null,null,null,null,null,null,{"$f":"+INDEX('2'!AD$7:AD$24,$E229-$E$49+1)","v":":"},null,{"$f":"+INDEX('2'!AF$7:AF$24,$E229-$E$49+1)","v":":"}]
[null,null,null,null,null,null,null,null,"+ P51G_NP.3",{"$f":"+INDEX('3'!J$7:J$24,$E229-$E$49+1)","v":":"},null,null,null,{"$f":"+INDEX('3'!N$7:N$24,$E229-$E$49+1)","v":":"},null,{"$f":"+INDEX('3'!P$7:P$24,$E229-$E$49+1)","v":":"},null,{"$f":"+INDEX('3'!R$7:R$24,$E229-$E$49+1)","v":":"},null,{"$f":"+INDEX('3'!T$7:T$24,$E229-$E$49+1)","v":":"},null,{"$f":"+INDEX('3'!V$7:V$24,$E229-$E$49+1)","v":":"},null,null,null,null,null,null,null,{"$f":"+INDEX('3'!AD$7:AD$24,$E229-$E$49+1)","v":":"},null,{"$f":"+INDEX('3'!AF$7:AF$24,$E229-$E$49+1)","v":":"}]
[null,null,null,null,null,null,"EP transfers to / from Rest of the World",null,"- D3_D7_D92_D99_PAY_RW.6",{"$f":"INDEX('6'!J$187:J$204,$E229-$E$49+1)","v":":"},null,null,null,{"$f":"INDEX('6'!N$187:N$204,$E229-$E$49+1)","v":":"},null,{"$f":"INDEX('6'!P$187:P$204,$E229-$E$49+1)","v":":"},null,{"$f":"INDEX('6'!R$187:R$204,$E229-$E$49+1)","v":":"},null,{"$f":"INDEX('6'!T$187:T$204,$E229-$E$49+1)","v":":"},null,{"$f":"INDEX('6'!V$187:V$204,$E229-$E$49+1)","v":":"},null,null,null,null,null,null,null,{"$f":"INDEX('6'!AD$187:AD$204,$E229-$E$49+1)","v":":"},null,{"$f":"INDEX('6'!AF$187:AF$204,$E229-$E$49+1)","v":":"}]
[null,null,null,null,null,null,null,null,"+ D3_D7_D92_D99_REC_RW.6",{"$f":"INDEX('6'!J$205:J$222,$E229-$E$49+1)","v":":"},null,null,null,{"$f":"INDEX('6'!N$205:N$222,$E229-$E$49+1)","v":":"},null,{"$f":"INDEX('6'!P$205:P$222,$E229-$E$49+1)","v":":"},null,{"$f":"INDEX('6'!R$205:R$222,$E229-$E$49+1)","v":":"},null,{"$f":"INDEX('6'!T$205:T$222,$E229-$E$49+1)","v":":"},null,{"$f":"INDEX('6'!V$205:V$222,$E229-$E$49+1)","v":":"},null,null,null,null,null,null,null,{"$f":"INDEX('6'!AD$205:AD$222,$E229-$E$49+1)","v":":"},null,{"$f":"INDEX('6'!AF$205:AF$222,$E229-$E$49+1)","v":":"}]
[null,null,null,null,null,null,"TOTAL",null,"=SUM()",{"$f":"+IF(COUNT(J229:J232,J238:J242)=0,\":\",SUM(J229:J232,J238:J240,J242)-SUM(J241))","v":":"},null,null,null,{"$f":"+IF(COUNT(N229:N232,N238:N242)=0,\":\",SUM(N229:N232,N238:N240,N242)-SUM(N241))","v":":"},null,{"$f":"+IF(COUNT(P229:P232,P238:P242)=0,\":\",SUM(P229:P232,P238:P240,P242)-SUM(P241))","v":":"},null,{"$f":"+IF(COUNT(R229:R232,R238:R242)=0,\":\",SUM(R229:R232,R238:R240,R242)-SUM(R241))","v":":"},null,{"$f":"+IF(COUNT(T229:T232,T238:T242)=0,\":\",SUM(T229:T232,T238:T240,T242)-SUM(T241))","v":":"},null,{"$f":"+IF(COUNT(V229:V232,V238:V242)=0,\":\",SUM(V229:V232,V238:V240,V242)-SUM(V241))","v":":"},null,null,null,null,null,null,null,{"$f":"+IF(COUNT(AD229:AD232,AD238:AD242)=0,\":\",SUM(AD229:AD232,AD238:AD240,AD242)-SUM(AD241))","v":":"},null,{"$f":"+IF(COUNT(AF229:AF232,AF238:AF242)=0,\":\",SUM(AF229:AF232,AF238:AF240,AF242)-SUM(AF241))","v":":"}]
[null,null,null,null,2027,null,"Final consumption expenditure",null,"+ P3_EPS.1",{"$f":"+INDEX('1'!J$241:J$258,$E244-$E$49+1)","v":":"},null,null,null,{"$f":"+INDEX('1'!N$241:N$258,$E244-$E$49+1)","v":":"},null,{"$f":"+INDEX('1'!P$241:P$258,$E244-$E$49+1)","v":":"},null,{"$f":"+INDEX('1'!R$241:R$258,$E244-$E$49+1)","v":":"},null,{"$f":"+INDEX('1'!T$241:T$258,$E244-$E$49+1)","v":":"},null,{"$f":"+INDEX('1'!V$241:V$258,$E244-$E$49+1)","v":":"},null,null,null,null,null,null,null,{"$f":"+INDEX('1'!AD$241:AD$258,$E244-$E$49+1)","v":":"},null,{"$f":"+INDEX('1'!AF$241:AF$258,$E244-$E$49+1)","v":":"}]
[null,null,null,null,null,null,null,null,"+ P3_EPS.5",{"$f":"+INDEX('5'!J$7:J$24,$E244-$E$49+1)","v":":"},null,null,null,{"$f":"+INDEX('5'!N$7:N$24,$E244-$E$49+1)","v":":"},null,{"$f":"+INDEX('5'!P$7:P$24,$E244-$E$49+1)","v":":"},null,{"$f":"+INDEX('5'!R$7:R$24,$E244-$E$49+1)","v":":"},null,{"$f":"+INDEX('5'!T$7:T$24,$E244-$E$49+1)","v":":"},null,{"$f":"+INDEX('5'!V$7:V$24,$E244-$E$49+1)","v":":"},null,null,null,null,null,null,null,{"$f":"+INDEX('5'!AD$7:AD$24,$E244-$E$49+1)","v":":"},null,{"$f":"+INDEX('5'!AF$7:AF$24,$E244-$E$49+1)","v":":"}]
[null,null,null,null,null,null,"Intermediate consumption",null,"+ P1_ANC.3",{"$f":"+INDEX('3'!J$133:J$150,$E244-$E$49+1)","v":":"},null,null,null,{"$f":"+INDEX('3'!N$133:N$150,$E244-$E$49+1)","v":":"},null,{"$f":"+INDEX('3'!P$133:P$150,$E244-$E$49+1)","v":":"},null,{"$f":"+INDEX('3'!R$133:R$150,$E244-$E$49+1)","v":":"},null,{"$f":"+INDEX('3'!T$133:T$150,$E244-$E$49+1)","v":":"},null,{"$f":"+INDEX('3'!V$133:V$150,$E244-$E$49+1)","v":":"},null,null,null,null,null,null,null,{"$f":"+INDEX('3'!AD$133:AD$150,$E244-$E$49+1)","v":":"},null,{"$f":"+INDEX('3'!AF$133:AF$150,$E244-$E$49+1)","v":":"}]
[null,null,null,null,null,null,null,null,"+ P2",{"$f":"+IF(COUNT(J248:J252)=0,\":\",SUM(J248:J250)-SUM(J251:J252))","v":":"},null,null,null,{"$f":"+IF(COUNT(N248:N252)=0,\":\",SUM(N248:N250)-SUM(N251:N252))","v":":"},null,{"$f":"+IF(COUNT(P248:P252)=0,\":\",SUM(P248:P250)-SUM(P251:P252))","v":":"},null,{"$f":"+IF(COUNT(R248:R252)=0,\":\",SUM(R248:R250)-SUM(R251:R252))","v":":"},null,{"$f":"+IF(COUNT(T248:T252)=0,\":\",SUM(T248:T250)-SUM(T251:T252))","v":":"},null,{"$f":"+IF(COUNT(V248:V252)=0,\":\",SUM(V248:V250)-SUM(V251:V252))","v":":"},null,null,null,null,null,null,null,{"$f":"+IF(COUNT(AD248:AD252)=0,\":\",SUM(AD248:AD250)-SUM(AD251:AD252))","v":":"},null,{"$f":"+IF(COUNT(AF248:AF252)=0,\":\",SUM(AF248:AF250)-SUM(AF251:AF252))","v":":"}]
[null,null,null,null,null,null,null,null,"+ P2_EPS_EXT.1",{"$f":"+INDEX('1'!J$259:J$276,$E244-$E$49+1)","v":":"},null,null,null,{"$f":"+INDEX('1'!N$259:N$276,$E244-$E$49+1)","v":":"},null,{"$f":"+INDEX('1'!P$259:P$276,$E244-$E$49+1)","v":":"},null,{"$f":"+INDEX('1'!R$259:R$276,$E244-$E$49+1)","v":":"},null,{"$f":"+INDEX('1'!T$259:T$276,$E244-$E$49+1)","v":":"},null,{"$f":"+INDEX('1'!V$259:V$276,$E244-$E$49+1)","v":":"},null,null,null,null,null,null,null,{"$f":"+INDEX('1'!AD$259:AD$276,$E244-$E$49+1)","v":":"},null,{"$f":"+INDEX('1'!AF$259:AF$276,$E244-$E$49+1)","v":":"}]
[null,null,null,null,null,null,null,null,"+ P2_EPS_EXT.2",{"$f":"+INDEX('2'!J$259:J$276,$E244-$E$49+1)","v":":"},null,null,null,{"$f":"+INDEX('2'!N$259:N$276,$E244-$E$49+1)","v":":"},null,{"$f":"+INDEX('2'!P$259:P$276,$E244-$E$49+1)","v":":"},null,{"$f":"+INDEX('2'!R$259:R$276,$E244-$E$49+1)","v":":"},null,{"$f":"+INDEX('2'!T$259:T$276,$E244-$E$49+1)","v":":"},null,{"$f":"+INDEX('2'!V$259:V$276,$E244-$E$49+1)","v":":"},null,null,null,null,null,null,null,{"$f":"+INDEX('2'!AD$259:AD$276,$E244-$E$49+1)","v":":"},null,{"$f":"+INDEX('2'!AF$259:AF$276,$E244-$E$49+1)","v":":"}]
[null,null,null,null,null,null,null,null,"+ P2_EPS_EXT.3",{"$f":"+INDEX('3'!J$223:J$240,$E244-$E$49+1)","v":":"},null,null,null,{"$f":"+INDEX('3'!N$223:N$240,$E244-$E$49+1)","v":":"},null,{"$f":"+INDEX('3'!P$223:P$240,$E244-$E$49+1)","v":":"},null,{"$f":"+INDEX('3'!R$223:R$240,$E244-$E$49+1)","v":":"},null,{"$f":"+INDEX('3'!T$223:T$240,$E244-$E$49+1)","v":":"},null,{"$f":"+INDEX('3'!V$223:V$240,$E244-$E$49+1)","v":":"},null,null,null,null,null,null,null,{"$f":"+INDEX('3'!AD$223:AD$240,$E244-$E$49+1)","v":":"},null,{"$f":"+INDEX('3'!AF$223:AF$240,$E244-$E$49+1)","v":":"}]
[null,null,null,null,null,null,null,null,"- P2_EPS.1",{"$f":"+INDEX('1'!J$241:J$258,$E244-$E$49+1)","v":":"},null,null,null,{"$f":"+INDEX('1'!N$241:N$258,$E244-$E$49+1)","v":":"},null,{"$f":"+INDEX('1'!P$241:P$258,$E244-$E$49+1)","v":":"},null,{"$f":"+INDEX('1'!R$241:R$258,$E244-$E$49+1)","v":":"},null,{"$f":"+INDEX('1'!T$241:T$258,$E244-$E$49+1)","v":":"},null,{"$f":"+INDEX('1'!V$241:V$258,$E244-$E$49+1)","v":":"},null,null,null,null,null,null,null,{"$f":"+INDEX('1'!AD$241:AD$258,$E244-$E$49+1)","v":":"},null,{"$f":"+INDEX('1'!AF$241:AF$258,$E244-$E$49+1)","v":":"}]
[null,null,null,null,null,null,null,null,"- P2_EPS.2",{"$f":"+INDEX('2'!J$43:J$60,$E244-$E$49+1)","v":":"},null,null,null,{"$f":"+INDEX('2'!N$43:N$60,$E244-$E$49+1)","v":":"},null,{"$f":"+INDEX('2'!P$43:P$60,$E244-$E$49+1)","v":":"},null,{"$f":"+INDEX('2'!R$43:R$60,$E244-$E$49+1)","v":":"},null,{"$f":"+INDEX('2'!T$43:T$60,$E244-$E$49+1)","v":":"},null,{"$f":"+INDEX('2'!V$43:V$60,$E244-$E$49+1)","v":":"},null,null,null,null,null,null,null,{"$f":"+INDEX('2'!AD$43:AD$60,$E244-$E$49+1)","v":":"},null,{"$f":"+INDEX('2'!AF$43:AF$60,$E244-$E$49+1)","v":":"}]
[null,null,null,null,null,null,"Gross fixed capital formation and acquisition less disposals of non-financial, non-produced assets ",null,"+ P51G_NP.1",{"$f":"+INDEX('1'!J$7:J$24,$E244-$E$49+1)","v":":"},null,null,null,{"$f":"+INDEX('1'!N$7:N$24,$E244-$E$49+1)","v":":"},null,{"$f":"+INDEX('1'!P$7:P$24,$E244-$E$49+1)","v":":"},null,{"$f":"+INDEX('1'!R$7:R$24,$E244-$E$49+1)","v":":"},null,{"$f":"+INDEX('1'!T$7:T$24,$E244-$E$49+1)","v":":"},null,{"$f":"+INDEX('1'!V$7:V$24,$E244-$E$49+1)","v":":"},null,null,null,null,null,null,null,{"$f":"+INDEX('1'!AD$7:AD$24,$E244-$E$49+1)","v":":"},null,{"$f":"+INDEX('1'!AF$7:AF$24,$E244-$E$49+1)","v":":"}]
[null,null,null,null,null,null,null,null,"+ P51G_NP.2",{"$f":"+INDEX('2'!J$7:J$24,$E244-$E$49+1)","v":":"},null,null,null,{"$f":"+INDEX('2'!N$7:N$24,$E244-$E$49+1)","v":":"},null,{"$f":"+INDEX('2'!P$7:P$24,$E244-$E$49+1)","v":":"},null,{"$f":"+INDEX('2'!R$7:R$24,$E244-$E$49+1)","v":":"},null,{"$f":"+INDEX('2'!T$7:T$24,$E244-$E$49+1)","v":":"},null,{"$f":"+INDEX('2'!V$7:V$24,$E244-$E$49+1)","v":":"},null,null,null,null,null,null,null,{"$f":"+INDEX('2'!AD$7:AD$24,$E244-$E$49+1)","v":":"},null,{"$f":"+INDEX('2'!AF$7:AF$24,$E244-$E$49+1)","v":":"}]
[null,null,null,null,null,null,null,null,"+ P51G_NP.3",{"$f":"+INDEX('3'!J$7:J$24,$E244-$E$49+1)","v":":"},null,null,null,{"$f":"+INDEX('3'!N$7:N$24,$E244-$E$49+1)","v":":"},null,{"$f":"+INDEX('3'!P$7:P$24,$E244-$E$49+1)","v":":"},null,{"$f":"+INDEX('3'!R$7:R$24,$E244-$E$49+1)","v":":"},null,{"$f":"+INDEX('3'!T$7:T$24,$E244-$E$49+1)","v":":"},null,{"$f":"+INDEX('3'!V$7:V$24,$E244-$E$49+1)","v":":"},null,null,null,null,null,null,null,{"$f":"+INDEX('3'!AD$7:AD$24,$E244-$E$49+1)","v":":"},null,{"$f":"+INDEX('3'!AF$7:AF$24,$E244-$E$49+1)","v":":"}]
[null,null,null,null,null,null,"EP transfers to / from Rest of the World",null,"- D3_D7_D92_D99_PAY_RW.6",{"$f":"INDEX('6'!J$187:J$204,$E244-$E$49+1)","v":":"},null,null,null,{"$f":"INDEX('6'!N$187:N$204,$E244-$E$49+1)","v":":"},null,{"$f":"INDEX('6'!P$187:P$204,$E244-$E$49+1)","v":":"},null,{"$f":"INDEX('6'!R$187:R$204,$E244-$E$49+1)","v":":"},null,{"$f":"INDEX('6'!T$187:T$204,$E244-$E$49+1)","v":":"},null,{"$f":"INDEX('6'!V$187:V$204,$E244-$E$49+1)","v":":"},null,null,null,null,null,null,null,{"$f":"INDEX('6'!AD$187:AD$204,$E244-$E$49+1)","v":":"},null,{"$f":"INDEX('6'!AF$187:AF$204,$E244-$E$49+1)","v":":"}]
[null,null,null,null,null,null,null,null,"+ D3_D7_D92_D99_REC_RW.6",{"$f":"INDEX('6'!J$205:J$222,$E244-$E$49+1)","v":":"},null,null,null,{"$f":"INDEX('6'!N$205:N$222,$E244-$E$49+1)","v":":"},null,{"$f":"INDEX('6'!P$205:P$222,$E244-$E$49+1)","v":":"},null,{"$f":"INDEX('6'!R$205:R$222,$E244-$E$49+1)","v":":"},null,{"$f":"INDEX('6'!T$205:T$222,$E244-$E$49+1)","v":":"},null,{"$f":"INDEX('6'!V$205:V$222,$E244-$E$49+1)","v":":"},null,null,null,null,null,null,null,{"$f":"INDEX('6'!AD$205:AD$222,$E244-$E$49+1)","v":":"},null,{"$f":"INDEX('6'!AF$205:AF$222,$E244-$E$49+1)","v":":"}]
[null,null,null,null,null,null,"TOTAL",null,"=SUM()",{"$f":"+IF(COUNT(J244:J247,J253:J257)=0,\":\",SUM(J244:J247,J253:J255,J257)-SUM(J256))","v":":"},null,null,null,{"$f":"+IF(COUNT(N244:N247,N253:N257)=0,\":\",SUM(N244:N247,N253:N255,N257)-SUM(N256))","v":":"},null,{"$f":"+IF(COUNT(P244:P247,P253:P257)=0,\":\",SUM(P244:P247,P253:P255,P257)-SUM(P256))","v":":"},null,{"$f":"+IF(COUNT(R244:R247,R253:R257)=0,\":\",SUM(R244:R247,R253:R255,R257)-SUM(R256))","v":":"},null,{"$f":"+IF(COUNT(T244:T247,T253:T257)=0,\":\",SUM(T244:T247,T253:T255,T257)-SUM(T256))","v":":"},null,{"$f":"+IF(COUNT(V244:V247,V253:V257)=0,\":\",SUM(V244:V247,V253:V255,V257)-SUM(V256))","v":":"},null,null,null,null,null,null,null,{"$f":"+IF(COUNT(AD244:AD247,AD253:AD257)=0,\":\",SUM(AD244:AD247,AD253:AD255,AD257)-SUM(AD256))","v":":"},null,{"$f":"+IF(COUNT(AF244:AF247,AF253:AF257)=0,\":\",SUM(AF244:AF247,AF253:AF255,AF257)-SUM(AF256))","v":":"}]
[null,null,null,null,2028,null,"Final consumption expenditure",null,"+ P3_EPS.1",{"$f":"+INDEX('1'!J$241:J$258,$E259-$E$49+1)","v":":"},null,null,null,{"$f":"+INDEX('1'!N$241:N$258,$E259-$E$49+1)","v":":"},null,{"$f":"+INDEX('1'!P$241:P$258,$E259-$E$49+1)","v":":"},null,{"$f":"+INDEX('1'!R$241:R$258,$E259-$E$49+1)","v":":"},null,{"$f":"+INDEX('1'!T$241:T$258,$E259-$E$49+1)","v":":"},null,{"$f":"+INDEX('1'!V$241:V$258,$E259-$E$49+1)","v":":"},null,null,null,null,null,null,null,{"$f":"+INDEX('1'!AD$241:AD$258,$E259-$E$49+1)","v":":"},null,{"$f":"+INDEX('1'!AF$241:AF$258,$E259-$E$49+1)","v":":"}]
[null,null,null,null,null,null,null,null,"+ P3_EPS.5",{"$f":"+INDEX('5'!J$7:J$24,$E259-$E$49+1)","v":":"},null,null,null,{"$f":"+INDEX('5'!N$7:N$24,$E259-$E$49+1)","v":":"},null,{"$f":"+INDEX('5'!P$7:P$24,$E259-$E$49+1)","v":":"},null,{"$f":"+INDEX('5'!R$7:R$24,$E259-$E$49+1)","v":":"},null,{"$f":"+INDEX('5'!T$7:T$24,$E259-$E$49+1)","v":":"},null,{"$f":"+INDEX('5'!V$7:V$24,$E259-$E$49+1)","v":":"},null,null,null,null,null,null,null,{"$f":"+INDEX('5'!AD$7:AD$24,$E259-$E$49+1)","v":":"},null,{"$f":"+INDEX('5'!AF$7:AF$24,$E259-$E$49+1)","v":":"}]
[null,null,null,null,null,null,"Intermediate consumption",null,"+ P1_ANC.3",{"$f":"+INDEX('3'!J$133:J$150,$E259-$E$49+1)","v":":"},null,null,null,{"$f":"+INDEX('3'!N$133:N$150,$E259-$E$49+1)","v":":"},null,{"$f":"+INDEX('3'!P$133:P$150,$E259-$E$49+1)","v":":"},null,{"$f":"+INDEX('3'!R$133:R$150,$E259-$E$49+1)","v":":"},null,{"$f":"+INDEX('3'!T$133:T$150,$E259-$E$49+1)","v":":"},null,{"$f":"+INDEX('3'!V$133:V$150,$E259-$E$49+1)","v":":"},null,null,null,null,null,null,null,{"$f":"+INDEX('3'!AD$133:AD$150,$E259-$E$49+1)","v":":"},null,{"$f":"+INDEX('3'!AF$133:AF$150,$E259-$E$49+1)","v":":"}]
[null,null,null,null,null,null,null,null,"+ P2",{"$f":"+IF(COUNT(J263:J267)=0,\":\",SUM(J263:J265)-SUM(J266:J267))","v":":"},null,null,null,{"$f":"+IF(COUNT(N263:N267)=0,\":\",SUM(N263:N265)-SUM(N266:N267))","v":":"},null,{"$f":"+IF(COUNT(P263:P267)=0,\":\",SUM(P263:P265)-SUM(P266:P267))","v":":"},null,{"$f":"+IF(COUNT(R263:R267)=0,\":\",SUM(R263:R265)-SUM(R266:R267))","v":":"},null,{"$f":"+IF(COUNT(T263:T267)=0,\":\",SUM(T263:T265)-SUM(T266:T267))","v":":"},null,{"$f":"+IF(COUNT(V263:V267)=0,\":\",SUM(V263:V265)-SUM(V266:V267))","v":":"},null,null,null,null,null,null,null,{"$f":"+IF(COUNT(AD263:AD267)=0,\":\",SUM(AD263:AD265)-SUM(AD266:AD267))","v":":"},null,{"$f":"+IF(COUNT(AF263:AF267)=0,\":\",SUM(AF263:AF265)-SUM(AF266:AF267))","v":":"}]
[null,null,null,null,null,null,null,null,"+ P2_EPS_EXT.1",{"$f":"+INDEX('1'!J$259:J$276,$E259-$E$49+1)","v":":"},null,null,null,{"$f":"+INDEX('1'!N$259:N$276,$E259-$E$49+1)","v":":"},null,{"$f":"+INDEX('1'!P$259:P$276,$E259-$E$49+1)","v":":"},null,{"$f":"+INDEX('1'!R$259:R$276,$E259-$E$49+1)","v":":"},null,{"$f":"+INDEX('1'!T$259:T$276,$E259-$E$49+1)","v":":"},null,{"$f":"+INDEX('1'!V$259:V$276,$E259-$E$49+1)","v":":"},null,null,null,null,null,null,null,{"$f":"+INDEX('1'!AD$259:AD$276,$E259-$E$49+1)","v":":"},null,{"$f":"+INDEX('1'!AF$259:AF$276,$E259-$E$49+1)","v":":"}]
[null,null,null,null,null,null,null,null,"+ P2_EPS_EXT.2",{"$f":"+INDEX('2'!J$259:J$276,$E259-$E$49+1)","v":":"},null,null,null,{"$f":"+INDEX('2'!N$259:N$276,$E259-$E$49+1)","v":":"},null,{"$f":"+INDEX('2'!P$259:P$276,$E259-$E$49+1)","v":":"},null,{"$f":"+INDEX('2'!R$259:R$276,$E259-$E$49+1)","v":":"},null,{"$f":"+INDEX('2'!T$259:T$276,$E259-$E$49+1)","v":":"},null,{"$f":"+INDEX('2'!V$259:V$276,$E259-$E$49+1)","v":":"},null,null,null,null,null,null,null,{"$f":"+INDEX('2'!AD$259:AD$276,$E259-$E$49+1)","v":":"},null,{"$f":"+INDEX('2'!AF$259:AF$276,$E259-$E$49+1)","v":":"}]
[null,null,null,null,null,null,null,null,"+ P2_EPS_EXT.3",{"$f":"+INDEX('3'!J$223:J$240,$E259-$E$49+1)","v":":"},null,null,null,{"$f":"+INDEX('3'!N$223:N$240,$E259-$E$49+1)","v":":"},null,{"$f":"+INDEX('3'!P$223:P$240,$E259-$E$49+1)","v":":"},null,{"$f":"+INDEX('3'!R$223:R$240,$E259-$E$49+1)","v":":"},null,{"$f":"+INDEX('3'!T$223:T$240,$E259-$E$49+1)","v":":"},null,{"$f":"+INDEX('3'!V$223:V$240,$E259-$E$49+1)","v":":"},null,null,null,null,null,null,null,{"$f":"+INDEX('3'!AD$223:AD$240,$E259-$E$49+1)","v":":"},null,{"$f":"+INDEX('3'!AF$223:AF$240,$E259-$E$49+1)","v":":"}]
[null,null,null,null,null,null,null,null,"- P2_EPS.1",{"$f":"+INDEX('1'!J$241:J$258,$E259-$E$49+1)","v":":"},null,null,null,{"$f":"+INDEX('1'!N$241:N$258,$E259-$E$49+1)","v":":"},null,{"$f":"+INDEX('1'!P$241:P$258,$E259-$E$49+1)","v":":"},null,{"$f":"+INDEX('1'!R$241:R$258,$E259-$E$49+1)","v":":"},null,{"$f":"+INDEX('1'!T$241:T$258,$E259-$E$49+1)","v":":"},null,{"$f":"+INDEX('1'!V$241:V$258,$E259-$E$49+1)","v":":"},null,null,null,null,null,null,null,{"$f":"+INDEX('1'!AD$241:AD$258,$E259-$E$49+1)","v":":"},null,{"$f":"+INDEX('1'!AF$241:AF$258,$E259-$E$49+1)","v":":"}]
[null,null,null,null,null,null,null,null,"- P2_EPS.2",{"$f":"+INDEX('2'!J$43:J$60,$E259-$E$49+1)","v":":"},null,null,null,{"$f":"+INDEX('2'!N$43:N$60,$E259-$E$49+1)","v":":"},null,{"$f":"+INDEX('2'!P$43:P$60,$E259-$E$49+1)","v":":"},null,{"$f":"+INDEX('2'!R$43:R$60,$E259-$E$49+1)","v":":"},null,{"$f":"+INDEX('2'!T$43:T$60,$E259-$E$49+1)","v":":"},null,{"$f":"+INDEX('2'!V$43:V$60,$E259-$E$49+1)","v":":"},null,null,null,null,null,null,null,{"$f":"+INDEX('2'!AD$43:AD$60,$E259-$E$49+1)","v":":"},null,{"$f":"+INDEX('2'!AF$43:AF$60,$E259-$E$49+1)","v":":"}]
[null,null,null,null,null,null,"Gross fixed capital formation and acquisition less disposals of non-financial, non-produced assets ",null,"+ P51G_NP.1",{"$f":"+INDEX('1'!J$7:J$24,$E259-$E$49+1)","v":":"},null,null,null,{"$f":"+INDEX('1'!N$7:N$24,$E259-$E$49+1)","v":":"},null,{"$f":"+INDEX('1'!P$7:P$24,$E259-$E$49+1)","v":":"},null,{"$f":"+INDEX('1'!R$7:R$24,$E259-$E$49+1)","v":":"},null,{"$f":"+INDEX('1'!T$7:T$24,$E259-$E$49+1)","v":":"},null,{"$f":"+INDEX('1'!V$7:V$24,$E259-$E$49+1)","v":":"},null,null,null,null,null,null,null,{"$f":"+INDEX('1'!AD$7:AD$24,$E259-$E$49+1)","v":":"},null,{"$f":"+INDEX('1'!AF$7:AF$24,$E259-$E$49+1)","v":":"}]
[null,null,null,null,null,null,null,null,"+ P51G_NP.2",{"$f":"+INDEX('2'!J$7:J$24,$E259-$E$49+1)","v":":"},null,null,null,{"$f":"+INDEX('2'!N$7:N$24,$E259-$E$49+1)","v":":"},null,{"$f":"+INDEX('2'!P$7:P$24,$E259-$E$49+1)","v":":"},null,{"$f":"+INDEX('2'!R$7:R$24,$E259-$E$49+1)","v":":"},null,{"$f":"+INDEX('2'!T$7:T$24,$E259-$E$49+1)","v":":"},null,{"$f":"+INDEX('2'!V$7:V$24,$E259-$E$49+1)","v":":"},null,null,null,null,null,null,null,{"$f":"+INDEX('2'!AD$7:AD$24,$E259-$E$49+1)","v":":"},null,{"$f":"+INDEX('2'!AF$7:AF$24,$E259-$E$49+1)","v":":"}]
[null,null,null,null,null,null,null,null,"+ P51G_NP.3",{"$f":"+INDEX('3'!J$7:J$24,$E259-$E$49+1)","v":":"},null,null,null,{"$f":"+INDEX('3'!N$7:N$24,$E259-$E$49+1)","v":":"},null,{"$f":"+INDEX('3'!P$7:P$24,$E259-$E$49+1)","v":":"},null,{"$f":"+INDEX('3'!R$7:R$24,$E259-$E$49+1)","v":":"},null,{"$f":"+INDEX('3'!T$7:T$24,$E259-$E$49+1)","v":":"},null,{"$f":"+INDEX('3'!V$7:V$24,$E259-$E$49+1)","v":":"},null,null,null,null,null,null,null,{"$f":"+INDEX('3'!AD$7:AD$24,$E259-$E$49+1)","v":":"},null,{"$f":"+INDEX('3'!AF$7:AF$24,$E259-$E$49+1)","v":":"}]
[null,null,null,null,null,null,"EP transfers to / from Rest of the World",null,"- D3_D7_D92_D99_PAY_RW.6",{"$f":"INDEX('6'!J$187:J$204,$E259-$E$49+1)","v":":"},null,null,null,{"$f":"INDEX('6'!N$187:N$204,$E259-$E$49+1)","v":":"},null,{"$f":"INDEX('6'!P$187:P$204,$E259-$E$49+1)","v":":"},null,{"$f":"INDEX('6'!R$187:R$204,$E259-$E$49+1)","v":":"},null,{"$f":"INDEX('6'!T$187:T$204,$E259-$E$49+1)","v":":"},null,{"$f":"INDEX('6'!V$187:V$204,$E259-$E$49+1)","v":":"},null,null,null,null,null,null,null,{"$f":"INDEX('6'!AD$187:AD$204,$E259-$E$49+1)","v":":"},null,{"$f":"INDEX('6'!AF$187:AF$204,$E259-$E$49+1)","v":":"}]
[null,null,null,null,null,null,null,null,"+ D3_D7_D92_D99_REC_RW.6",{"$f":"INDEX('6'!J$205:J$222,$E259-$E$49+1)","v":":"},null,null,null,{"$f":"INDEX('6'!N$205:N$222,$E259-$E$49+1)","v":":"},null,{"$f":"INDEX('6'!P$205:P$222,$E259-$E$49+1)","v":":"},null,{"$f":"INDEX('6'!R$205:R$222,$E259-$E$49+1)","v":":"},null,{"$f":"INDEX('6'!T$205:T$222,$E259-$E$49+1)","v":":"},null,{"$f":"INDEX('6'!V$205:V$222,$E259-$E$49+1)","v":":"},null,null,null,null,null,null,null,{"$f":"INDEX('6'!AD$205:AD$222,$E259-$E$49+1)","v":":"},null,{"$f":"INDEX('6'!AF$205:AF$222,$E259-$E$49+1)","v":":"}]
[null,null,null,null,null,null,"TOTAL",null,"=SUM()",{"$f":"+IF(COUNT(J259:J262,J268:J272)=0,\":\",SUM(J259:J262,J268:J270,J272)-SUM(J271))","v":":"},null,null,null,{"$f":"+IF(COUNT(N259:N262,N268:N272)=0,\":\",SUM(N259:N262,N268:N270,N272)-SUM(N271))","v":":"},null,{"$f":"+IF(COUNT(P259:P262,P268:P272)=0,\":\",SUM(P259:P262,P268:P270,P272)-SUM(P271))","v":":"},null,{"$f":"+IF(COUNT(R259:R262,R268:R272)=0,\":\",SUM(R259:R262,R268:R270,R272)-SUM(R271))","v":":"},null,{"$f":"+IF(COUNT(T259:T262,T268:T272)=0,\":\",SUM(T259:T262,T268:T270,T272)-SUM(T271))","v":":"},null,{"$f":"+IF(COUNT(V259:V262,V268:V272)=0,\":\",SUM(V259:V262,V268:V270,V272)-SUM(V271))","v":":"},null,null,null,null,null,null,null,{"$f":"+IF(COUNT(AD259:AD262,AD268:AD272)=0,\":\",SUM(AD259:AD262,AD268:AD270,AD272)-SUM(AD271))","v":":"},null,{"$f":"+IF(COUNT(AF259:AF262,AF268:AF272)=0,\":\",SUM(AF259:AF262,AF268:AF270,AF272)-SUM(AF271))","v":":"}]
[null,null,null,null,2029,null,"Final consumption expenditure",null,"+ P3_EPS.1",{"$f":"+INDEX('1'!J$241:J$258,$E274-$E$49+1)","v":":"},null,null,null,{"$f":"+INDEX('1'!N$241:N$258,$E274-$E$49+1)","v":":"},null,{"$f":"+INDEX('1'!P$241:P$258,$E274-$E$49+1)","v":":"},null,{"$f":"+INDEX('1'!R$241:R$258,$E274-$E$49+1)","v":":"},null,{"$f":"+INDEX('1'!T$241:T$258,$E274-$E$49+1)","v":":"},null,{"$f":"+INDEX('1'!V$241:V$258,$E274-$E$49+1)","v":":"},null,null,null,null,null,null,null,{"$f":"+INDEX('1'!AD$241:AD$258,$E274-$E$49+1)","v":":"},null,{"$f":"+INDEX('1'!AF$241:AF$258,$E274-$E$49+1)","v":":"}]
[null,null,null,null,null,null,null,null,"+ P3_EPS.5",{"$f":"+INDEX('5'!J$7:J$24,$E274-$E$49+1)","v":":"},null,null,null,{"$f":"+INDEX('5'!N$7:N$24,$E274-$E$49+1)","v":":"},null,{"$f":"+INDEX('5'!P$7:P$24,$E274-$E$49+1)","v":":"},null,{"$f":"+INDEX('5'!R$7:R$24,$E274-$E$49+1)","v":":"},null,{"$f":"+INDEX('5'!T$7:T$24,$E274-$E$49+1)","v":":"},null,{"$f":"+INDEX('5'!V$7:V$24,$E274-$E$49+1)","v":":"},null,null,null,null,null,null,null,{"$f":"+INDEX('5'!AD$7:AD$24,$E274-$E$49+1)","v":":"},null,{"$f":"+INDEX('5'!AF$7:AF$24,$E274-$E$49+1)","v":":"}]
[null,null,null,null,null,null,"Intermediate consumption",null,"+ P1_ANC.3",{"$f":"+INDEX('3'!J$133:J$150,$E274-$E$49+1)","v":":"},null,null,null,{"$f":"+INDEX('3'!N$133:N$150,$E274-$E$49+1)","v":":"},null,{"$f":"+INDEX('3'!P$133:P$150,$E274-$E$49+1)","v":":"},null,{"$f":"+INDEX('3'!R$133:R$150,$E274-$E$49+1)","v":":"},null,{"$f":"+INDEX('3'!T$133:T$150,$E274-$E$49+1)","v":":"},null,{"$f":"+INDEX('3'!V$133:V$150,$E274-$E$49+1)","v":":"},null,null,null,null,null,null,null,{"$f":"+INDEX('3'!AD$133:AD$150,$E274-$E$49+1)","v":":"},null,{"$f":"+INDEX('3'!AF$133:AF$150,$E274-$E$49+1)","v":":"}]
[null,null,null,null,null,null,null,null,"+ P2",{"$f":"+IF(COUNT(J278:J282)=0,\":\",SUM(J278:J280)-SUM(J281:J282))","v":":"},null,null,null,{"$f":"+IF(COUNT(N278:N282)=0,\":\",SUM(N278:N280)-SUM(N281:N282))","v":":"},null,{"$f":"+IF(COUNT(P278:P282)=0,\":\",SUM(P278:P280)-SUM(P281:P282))","v":":"},null,{"$f":"+IF(COUNT(R278:R282)=0,\":\",SUM(R278:R280)-SUM(R281:R282))","v":":"},null,{"$f":"+IF(COUNT(T278:T282)=0,\":\",SUM(T278:T280)-SUM(T281:T282))","v":":"},null,{"$f":"+IF(COUNT(V278:V282)=0,\":\",SUM(V278:V280)-SUM(V281:V282))","v":":"},null,null,null,null,null,null,null,{"$f":"+IF(COUNT(AD278:AD282)=0,\":\",SUM(AD278:AD280)-SUM(AD281:AD282))","v":":"},null,{"$f":"+IF(COUNT(AF278:AF282)=0,\":\",SUM(AF278:AF280)-SUM(AF281:AF282))","v":":"}]
[null,null,null,null,null,null,null,null,"+ P2_EPS_EXT.1",{"$f":"+INDEX('1'!J$259:J$276,$E274-$E$49+1)","v":":"},null,null,null,{"$f":"+INDEX('1'!N$259:N$276,$E274-$E$49+1)","v":":"},null,{"$f":"+INDEX('1'!P$259:P$276,$E274-$E$49+1)","v":":"},null,{"$f":"+INDEX('1'!R$259:R$276,$E274-$E$49+1)","v":":"},null,{"$f":"+INDEX('1'!T$259:T$276,$E274-$E$49+1)","v":":"},null,{"$f":"+INDEX('1'!V$259:V$276,$E274-$E$49+1)","v":":"},null,null,null,null,null,null,null,{"$f":"+INDEX('1'!AD$259:AD$276,$E274-$E$49+1)","v":":"},null,{"$f":"+INDEX('1'!AF$259:AF$276,$E274-$E$49+1)","v":":"}]
[null,null,null,null,null,null,null,null,"+ P2_EPS_EXT.2",{"$f":"+INDEX('2'!J$259:J$276,$E274-$E$49+1)","v":":"},null,null,null,{"$f":"+INDEX('2'!N$259:N$276,$E274-$E$49+1)","v":":"},null,{"$f":"+INDEX('2'!P$259:P$276,$E274-$E$49+1)","v":":"},null,{"$f":"+INDEX('2'!R$259:R$276,$E274-$E$49+1)","v":":"},null,{"$f":"+INDEX('2'!T$259:T$276,$E274-$E$49+1)","v":":"},null,{"$f":"+INDEX('2'!V$259:V$276,$E274-$E$49+1)","v":":"},null,null,null,null,null,null,null,{"$f":"+INDEX('2'!AD$259:AD$276,$E274-$E$49+1)","v":":"},null,{"$f":"+INDEX('2'!AF$259:AF$276,$E274-$E$49+1)","v":":"}]
[null,null,null,null,null,null,null,null,"+ P2_EPS_EXT.3",{"$f":"+INDEX('3'!J$223:J$240,$E274-$E$49+1)","v":":"},null,null,null,{"$f":"+INDEX('3'!N$223:N$240,$E274-$E$49+1)","v":":"},null,{"$f":"+INDEX('3'!P$223:P$240,$E274-$E$49+1)","v":":"},null,{"$f":"+INDEX('3'!R$223:R$240,$E274-$E$49+1)","v":":"},null,{"$f":"+INDEX('3'!T$223:T$240,$E274-$E$49+1)","v":":"},null,{"$f":"+INDEX('3'!V$223:V$240,$E274-$E$49+1)","v":":"},null,null,null,null,null,null,null,{"$f":"+INDEX('3'!AD$223:AD$240,$E274-$E$49+1)","v":":"},null,{"$f":"+INDEX('3'!AF$223:AF$240,$E274-$E$49+1)","v":":"}]
[null,null,null,null,null,null,null,null,"- P2_EPS.1",{"$f":"+INDEX('1'!J$241:J$258,$E274-$E$49+1)","v":":"},null,null,null,{"$f":"+INDEX('1'!N$241:N$258,$E274-$E$49+1)","v":":"},null,{"$f":"+INDEX('1'!P$241:P$258,$E274-$E$49+1)","v":":"},null,{"$f":"+INDEX('1'!R$241:R$258,$E274-$E$49+1)","v":":"},null,{"$f":"+INDEX('1'!T$241:T$258,$E274-$E$49+1)","v":":"},null,{"$f":"+INDEX('1'!V$241:V$258,$E274-$E$49+1)","v":":"},null,null,null,null,null,null,null,{"$f":"+INDEX('1'!AD$241:AD$258,$E274-$E$49+1)","v":":"},null,{"$f":"+INDEX('1'!AF$241:AF$258,$E274-$E$49+1)","v":":"}]
[null,null,null,null,null,null,null,null,"- P2_EPS.2",{"$f":"+INDEX('2'!J$43:J$60,$E274-$E$49+1)","v":":"},null,null,null,{"$f":"+INDEX('2'!N$43:N$60,$E274-$E$49+1)","v":":"},null,{"$f":"+INDEX('2'!P$43:P$60,$E274-$E$49+1)","v":":"},null,{"$f":"+INDEX('2'!R$43:R$60,$E274-$E$49+1)","v":":"},null,{"$f":"+INDEX('2'!T$43:T$60,$E274-$E$49+1)","v":":"},null,{"$f":"+INDEX('2'!V$43:V$60,$E274-$E$49+1)","v":":"},null,null,null,null,null,null,null,{"$f":"+INDEX('2'!AD$43:AD$60,$E274-$E$49+1)","v":":"},null,{"$f":"+INDEX('2'!AF$43:AF$60,$E274-$E$49+1)","v":":"}]
[null,null,null,null,null,null,"Gross fixed capital formation and acquisition less disposals of non-financial, non-produced assets ",null,"+ P51G_NP.1",{"$f":"+INDEX('1'!J$7:J$24,$E274-$E$49+1)","v":":"},null,null,null,{"$f":"+INDEX('1'!N$7:N$24,$E274-$E$49+1)","v":":"},null,{"$f":"+INDEX('1'!P$7:P$24,$E274-$E$49+1)","v":":"},null,{"$f":"+INDEX('1'!R$7:R$24,$E274-$E$49+1)","v":":"},null,{"$f":"+INDEX('1'!T$7:T$24,$E274-$E$49+1)","v":":"},null,{"$f":"+INDEX('1'!V$7:V$24,$E274-$E$49+1)","v":":"},null,null,null,null,null,null,null,{"$f":"+INDEX('1'!AD$7:AD$24,$E274-$E$49+1)","v":":"},null,{"$f":"+INDEX('1'!AF$7:AF$24,$E274-$E$49+1)","v":":"}]
[null,null,null,null,null,null,null,null,"+ P51G_NP.2",{"$f":"+INDEX('2'!J$7:J$24,$E274-$E$49+1)","v":":"},null,null,null,{"$f":"+INDEX('2'!N$7:N$24,$E274-$E$49+1)","v":":"},null,{"$f":"+INDEX('2'!P$7:P$24,$E274-$E$49+1)","v":":"},null,{"$f":"+INDEX('2'!R$7:R$24,$E274-$E$49+1)","v":":"},null,{"$f":"+INDEX('2'!T$7:T$24,$E274-$E$49+1)","v":":"},null,{"$f":"+INDEX('2'!V$7:V$24,$E274-$E$49+1)","v":":"},null,null,null,null,null,null,null,{"$f":"+INDEX('2'!AD$7:AD$24,$E274-$E$49+1)","v":":"},null,{"$f":"+INDEX('2'!AF$7:AF$24,$E274-$E$49+1)","v":":"}]
[null,null,null,null,null,null,null,null,"+ P51G_NP.3",{"$f":"+INDEX('3'!J$7:J$24,$E274-$E$49+1)","v":":"},null,null,null,{"$f":"+INDEX('3'!N$7:N$24,$E274-$E$49+1)","v":":"},null,{"$f":"+INDEX('3'!P$7:P$24,$E274-$E$49+1)","v":":"},null,{"$f":"+INDEX('3'!R$7:R$24,$E274-$E$49+1)","v":":"},null,{"$f":"+INDEX('3'!T$7:T$24,$E274-$E$49+1)","v":":"},null,{"$f":"+INDEX('3'!V$7:V$24,$E274-$E$49+1)","v":":"},null,null,null,null,null,null,null,{"$f":"+INDEX('3'!AD$7:AD$24,$E274-$E$49+1)","v":":"},null,{"$f":"+INDEX('3'!AF$7:AF$24,$E274-$E$49+1)","v":":"}]
[null,null,null,null,null,null,"EP transfers to / from Rest of the World",null,"- D3_D7_D92_D99_PAY_RW.6",{"$f":"INDEX('6'!J$187:J$204,$E274-$E$49+1)","v":":"},null,null,null,{"$f":"INDEX('6'!N$187:N$204,$E274-$E$49+1)","v":":"},null,{"$f":"INDEX('6'!P$187:P$204,$E274-$E$49+1)","v":":"},null,{"$f":"INDEX('6'!R$187:R$204,$E274-$E$49+1)","v":":"},null,{"$f":"INDEX('6'!T$187:T$204,$E274-$E$49+1)","v":":"},null,{"$f":"INDEX('6'!V$187:V$204,$E274-$E$49+1)","v":":"},null,null,null,null,null,null,null,{"$f":"INDEX('6'!AD$187:AD$204,$E274-$E$49+1)","v":":"},null,{"$f":"INDEX('6'!AF$187:AF$204,$E274-$E$49+1)","v":":"}]
[null,null,null,null,null,null,null,null,"+ D3_D7_D92_D99_REC_RW.6",{"$f":"INDEX('6'!J$205:J$222,$E274-$E$49+1)","v":":"},null,null,null,{"$f":"INDEX('6'!N$205:N$222,$E274-$E$49+1)","v":":"},null,{"$f":"INDEX('6'!P$205:P$222,$E274-$E$49+1)","v":":"},null,{"$f":"INDEX('6'!R$205:R$222,$E274-$E$49+1)","v":":"},null,{"$f":"INDEX('6'!T$205:T$222,$E274-$E$49+1)","v":":"},null,{"$f":"INDEX('6'!V$205:V$222,$E274-$E$49+1)","v":":"},null,null,null,null,null,null,null,{"$f":"INDEX('6'!AD$205:AD$222,$E274-$E$49+1)","v":":"},null,{"$f":"INDEX('6'!AF$205:AF$222,$E274-$E$49+1)","v":":"}]
[null,null,null,null,null,null,"TOTAL",null,"=SUM()",{"$f":"+IF(COUNT(J274:J277,J283:J287)=0,\":\",SUM(J274:J277,J283:J285,J287)-SUM(J286))","v":":"},null,null,null,{"$f":"+IF(COUNT(N274:N277,N283:N287)=0,\":\",SUM(N274:N277,N283:N285,N287)-SUM(N286))","v":":"},null,{"$f":"+IF(COUNT(P274:P277,P283:P287)=0,\":\",SUM(P274:P277,P283:P285,P287)-SUM(P286))","v":":"},null,{"$f":"+IF(COUNT(R274:R277,R283:R287)=0,\":\",SUM(R274:R277,R283:R285,R287)-SUM(R286))","v":":"},null,{"$f":"+IF(COUNT(T274:T277,T283:T287)=0,\":\",SUM(T274:T277,T283:T285,T287)-SUM(T286))","v":":"},null,{"$f":"+IF(COUNT(V274:V277,V283:V287)=0,\":\",SUM(V274:V277,V283:V285,V287)-SUM(V286))","v":":"},null,null,null,null,null,null,null,{"$f":"+IF(COUNT(AD274:AD277,AD283:AD287)=0,\":\",SUM(AD274:AD277,AD283:AD285,AD287)-SUM(AD286))","v":":"},null,{"$f":"+IF(COUNT(AF274:AF277,AF283:AF287)=0,\":\",SUM(AF274:AF277,AF283:AF285,AF287)-SUM(AF286))","v":":"}]
[null,null,null,null,2030,null,"Final consumption expenditure",null,"+ P3_EPS.1",{"$f":"+INDEX('1'!J$241:J$258,$E289-$E$49+1)","v":":"},null,null,null,{"$f":"+INDEX('1'!N$241:N$258,$E289-$E$49+1)","v":":"},null,{"$f":"+INDEX('1'!P$241:P$258,$E289-$E$49+1)","v":":"},null,{"$f":"+INDEX('1'!R$241:R$258,$E289-$E$49+1)","v":":"},null,{"$f":"+INDEX('1'!T$241:T$258,$E289-$E$49+1)","v":":"},null,{"$f":"+INDEX('1'!V$241:V$258,$E289-$E$49+1)","v":":"},null,null,null,null,null,null,null,{"$f":"+INDEX('1'!AD$241:AD$258,$E289-$E$49+1)","v":":"},null,{"$f":"+INDEX('1'!AF$241:AF$258,$E289-$E$49+1)","v":":"}]
[null,null,null,null,null,null,null,null,"+ P3_EPS.5",{"$f":"+INDEX('5'!J$7:J$24,$E289-$E$49+1)","v":":"},null,null,null,{"$f":"+INDEX('5'!N$7:N$24,$E289-$E$49+1)","v":":"},null,{"$f":"+INDEX('5'!P$7:P$24,$E289-$E$49+1)","v":":"},null,{"$f":"+INDEX('5'!R$7:R$24,$E289-$E$49+1)","v":":"},null,{"$f":"+INDEX('5'!T$7:T$24,$E289-$E$49+1)","v":":"},null,{"$f":"+INDEX('5'!V$7:V$24,$E289-$E$49+1)","v":":"},null,null,null,null,null,null,null,{"$f":"+INDEX('5'!AD$7:AD$24,$E289-$E$49+1)","v":":"},null,{"$f":"+INDEX('5'!AF$7:AF$24,$E289-$E$49+1)","v":":"}]
[null,null,null,null,null,null,"Intermediate consumption",null,"+ P1_ANC.3",{"$f":"+INDEX('3'!J$133:J$150,$E289-$E$49+1)","v":":"},null,null,null,{"$f":"+INDEX('3'!N$133:N$150,$E289-$E$49+1)","v":":"},null,{"$f":"+INDEX('3'!P$133:P$150,$E289-$E$49+1)","v":":"},null,{"$f":"+INDEX('3'!R$133:R$150,$E289-$E$49+1)","v":":"},null,{"$f":"+INDEX('3'!T$133:T$150,$E289-$E$49+1)","v":":"},null,{"$f":"+INDEX('3'!V$133:V$150,$E289-$E$49+1)","v":":"},null,null,null,null,null,null,null,{"$f":"+INDEX('3'!AD$133:AD$150,$E289-$E$49+1)","v":":"},null,{"$f":"+INDEX('3'!AF$133:AF$150,$E289-$E$49+1)","v":":"}]
[null,null,null,null,null,null,null,null,"+ P2",{"$f":"+IF(COUNT(J293:J297)=0,\":\",SUM(J293:J295)-SUM(J296:J297))","v":":"},null,null,null,{"$f":"+IF(COUNT(N293:N297)=0,\":\",SUM(N293:N295)-SUM(N296:N297))","v":":"},null,{"$f":"+IF(COUNT(P293:P297)=0,\":\",SUM(P293:P295)-SUM(P296:P297))","v":":"},null,{"$f":"+IF(COUNT(R293:R297)=0,\":\",SUM(R293:R295)-SUM(R296:R297))","v":":"},null,{"$f":"+IF(COUNT(T293:T297)=0,\":\",SUM(T293:T295)-SUM(T296:T297))","v":":"},null,{"$f":"+IF(COUNT(V293:V297)=0,\":\",SUM(V293:V295)-SUM(V296:V297))","v":":"},null,null,null,null,null,null,null,{"$f":"+IF(COUNT(AD293:AD297)=0,\":\",SUM(AD293:AD295)-SUM(AD296:AD297))","v":":"},null,{"$f":"+IF(COUNT(AF293:AF297)=0,\":\",SUM(AF293:AF295)-SUM(AF296:AF297))","v":":"}]
[null,null,null,null,null,null,null,null,"+ P2_EPS_EXT.1",{"$f":"+INDEX('1'!J$259:J$276,$E289-$E$49+1)","v":":"},null,null,null,{"$f":"+INDEX('1'!N$259:N$276,$E289-$E$49+1)","v":":"},null,{"$f":"+INDEX('1'!P$259:P$276,$E289-$E$49+1)","v":":"},null,{"$f":"+INDEX('1'!R$259:R$276,$E289-$E$49+1)","v":":"},null,{"$f":"+INDEX('1'!T$259:T$276,$E289-$E$49+1)","v":":"},null,{"$f":"+INDEX('1'!V$259:V$276,$E289-$E$49+1)","v":":"},null,null,null,null,null,null,null,{"$f":"+INDEX('1'!AD$259:AD$276,$E289-$E$49+1)","v":":"},null,{"$f":"+INDEX('1'!AF$259:AF$276,$E289-$E$49+1)","v":":"}]
[null,null,null,null,null,null,null,null,"+ P2_EPS_EXT.2",{"$f":"+INDEX('2'!J$259:J$276,$E289-$E$49+1)","v":":"},null,null,null,{"$f":"+INDEX('2'!N$259:N$276,$E289-$E$49+1)","v":":"},null,{"$f":"+INDEX('2'!P$259:P$276,$E289-$E$49+1)","v":":"},null,{"$f":"+INDEX('2'!R$259:R$276,$E289-$E$49+1)","v":":"},null,{"$f":"+INDEX('2'!T$259:T$276,$E289-$E$49+1)","v":":"},null,{"$f":"+INDEX('2'!V$259:V$276,$E289-$E$49+1)","v":":"},null,null,null,null,null,null,null,{"$f":"+INDEX('2'!AD$259:AD$276,$E289-$E$49+1)","v":":"},null,{"$f":"+INDEX('2'!AF$259:AF$276,$E289-$E$49+1)","v":":"}]
[null,null,null,null,null,null,null,null,"+ P2_EPS_EXT.3",{"$f":"+INDEX('3'!J$223:J$240,$E289-$E$49+1)","v":":"},null,null,null,{"$f":"+INDEX('3'!N$223:N$240,$E289-$E$49+1)","v":":"},null,{"$f":"+INDEX('3'!P$223:P$240,$E289-$E$49+1)","v":":"},null,{"$f":"+INDEX('3'!R$223:R$240,$E289-$E$49+1)","v":":"},null,{"$f":"+INDEX('3'!T$223:T$240,$E289-$E$49+1)","v":":"},null,{"$f":"+INDEX('3'!V$223:V$240,$E289-$E$49+1)","v":":"},null,null,null,null,null,null,null,{"$f":"+INDEX('3'!AD$223:AD$240,$E289-$E$49+1)","v":":"},null,{"$f":"+INDEX('3'!AF$223:AF$240,$E289-$E$49+1)","v":":"}]
[null,null,null,null,null,null,null,null,"- P2_EPS.1",{"$f":"+INDEX('1'!J$241:J$258,$E289-$E$49+1)","v":":"},null,null,null,{"$f":"+INDEX('1'!N$241:N$258,$E289-$E$49+1)","v":":"},null,{"$f":"+INDEX('1'!P$241:P$258,$E289-$E$49+1)","v":":"},null,{"$f":"+INDEX('1'!R$241:R$258,$E289-$E$49+1)","v":":"},null,{"$f":"+INDEX('1'!T$241:T$258,$E289-$E$49+1)","v":":"},null,{"$f":"+INDEX('1'!V$241:V$258,$E289-$E$49+1)","v":":"},null,null,null,null,null,null,null,{"$f":"+INDEX('1'!AD$241:AD$258,$E289-$E$49+1)","v":":"},null,{"$f":"+INDEX('1'!AF$241:AF$258,$E289-$E$49+1)","v":":"}]
[null,null,null,null,null,null,null,null,"- P2_EPS.2",{"$f":"+INDEX('2'!J$43:J$60,$E289-$E$49+1)","v":":"},null,null,null,{"$f":"+INDEX('2'!N$43:N$60,$E289-$E$49+1)","v":":"},null,{"$f":"+INDEX('2'!P$43:P$60,$E289-$E$49+1)","v":":"},null,{"$f":"+INDEX('2'!R$43:R$60,$E289-$E$49+1)","v":":"},null,{"$f":"+INDEX('2'!T$43:T$60,$E289-$E$49+1)","v":":"},null,{"$f":"+INDEX('2'!V$43:V$60,$E289-$E$49+1)","v":":"},null,null,null,null,null,null,null,{"$f":"+INDEX('2'!AD$43:AD$60,$E289-$E$49+1)","v":":"},null,{"$f":"+INDEX('2'!AF$43:AF$60,$E289-$E$49+1)","v":":"}]
[null,null,null,null,null,null,"Gross fixed capital formation and acquisition less disposals of non-financial, non-produced assets ",null,"+ P51G_NP.1",{"$f":"+INDEX('1'!J$7:J$24,$E289-$E$49+1)","v":":"},null,null,null,{"$f":"+INDEX('1'!N$7:N$24,$E289-$E$49+1)","v":":"},null,{"$f":"+INDEX('1'!P$7:P$24,$E289-$E$49+1)","v":":"},null,{"$f":"+INDEX('1'!R$7:R$24,$E289-$E$49+1)","v":":"},null,{"$f":"+INDEX('1'!T$7:T$24,$E289-$E$49+1)","v":":"},null,{"$f":"+INDEX('1'!V$7:V$24,$E289-$E$49+1)","v":":"},null,null,null,null,null,null,null,{"$f":"+INDEX('1'!AD$7:AD$24,$E289-$E$49+1)","v":":"},null,{"$f":"+INDEX('1'!AF$7:AF$24,$E289-$E$49+1)","v":":"}]
[null,null,null,null,null,null,null,null,"+ P51G_NP.2",{"$f":"+INDEX('2'!J$7:J$24,$E289-$E$49+1)","v":":"},null,null,null,{"$f":"+INDEX('2'!N$7:N$24,$E289-$E$49+1)","v":":"},null,{"$f":"+INDEX('2'!P$7:P$24,$E289-$E$49+1)","v":":"},null,{"$f":"+INDEX('2'!R$7:R$24,$E289-$E$49+1)","v":":"},null,{"$f":"+INDEX('2'!T$7:T$24,$E289-$E$49+1)","v":":"},null,{"$f":"+INDEX('2'!V$7:V$24,$E289-$E$49+1)","v":":"},null,null,null,null,null,null,null,{"$f":"+INDEX('2'!AD$7:AD$24,$E289-$E$49+1)","v":":"},null,{"$f":"+INDEX('2'!AF$7:AF$24,$E289-$E$49+1)","v":":"}]
[null,null,null,null,null,null,null,null,"+ P51G_NP.3",{"$f":"+INDEX('3'!J$7:J$24,$E289-$E$49+1)","v":":"},null,null,null,{"$f":"+INDEX('3'!N$7:N$24,$E289-$E$49+1)","v":":"},null,{"$f":"+INDEX('3'!P$7:P$24,$E289-$E$49+1)","v":":"},null,{"$f":"+INDEX('3'!R$7:R$24,$E289-$E$49+1)","v":":"},null,{"$f":"+INDEX('3'!T$7:T$24,$E289-$E$49+1)","v":":"},null,{"$f":"+INDEX('3'!V$7:V$24,$E289-$E$49+1)","v":":"},null,null,null,null,null,null,null,{"$f":"+INDEX('3'!AD$7:AD$24,$E289-$E$49+1)","v":":"},null,{"$f":"+INDEX('3'!AF$7:AF$24,$E289-$E$49+1)","v":":"}]
[null,null,null,null,null,null,"EP transfers to / from Rest of the World",null,"- D3_D7_D92_D99_PAY_RW.6",{"$f":"INDEX('6'!J$187:J$204,$E289-$E$49+1)","v":":"},null,null,null,{"$f":"INDEX('6'!N$187:N$204,$E289-$E$49+1)","v":":"},null,{"$f":"INDEX('6'!P$187:P$204,$E289-$E$49+1)","v":":"},null,{"$f":"INDEX('6'!R$187:R$204,$E289-$E$49+1)","v":":"},null,{"$f":"INDEX('6'!T$187:T$204,$E289-$E$49+1)","v":":"},null,{"$f":"INDEX('6'!V$187:V$204,$E289-$E$49+1)","v":":"},null,null,null,null,null,null,null,{"$f":"INDEX('6'!AD$187:AD$204,$E289-$E$49+1)","v":":"},null,{"$f":"INDEX('6'!AF$187:AF$204,$E289-$E$49+1)","v":":"}]
[null,null,null,null,null,null,null,null,"+ D3_D7_D92_D99_REC_RW.6",{"$f":"INDEX('6'!J$205:J$222,$E289-$E$49+1)","v":":"},null,null,null,{"$f":"INDEX('6'!N$205:N$222,$E289-$E$49+1)","v":":"},null,{"$f":"INDEX('6'!P$205:P$222,$E289-$E$49+1)","v":":"},null,{"$f":"INDEX('6'!R$205:R$222,$E289-$E$49+1)","v":":"},null,{"$f":"INDEX('6'!T$205:T$222,$E289-$E$49+1)","v":":"},null,{"$f":"INDEX('6'!V$205:V$222,$E289-$E$49+1)","v":":"},null,null,null,null,null,null,null,{"$f":"INDEX('6'!AD$205:AD$222,$E289-$E$49+1)","v":":"},null,{"$f":"INDEX('6'!AF$205:AF$222,$E289-$E$49+1)","v":":"}]
[null,null,null,null,null,null,"TOTAL",null,"=SUM()",{"$f":"+IF(COUNT(J289:J292,J298:J302)=0,\":\",SUM(J289:J292,J298:J300,J302)-SUM(J301))","v":":"},null,null,null,{"$f":"+IF(COUNT(N289:N292,N298:N302)=0,\":\",SUM(N289:N292,N298:N300,N302)-SUM(N301))","v":":"},null,{"$f":"+IF(COUNT(P289:P292,P298:P302)=0,\":\",SUM(P289:P292,P298:P300,P302)-SUM(P301))","v":":"},null,{"$f":"+IF(COUNT(R289:R292,R298:R302)=0,\":\",SUM(R289:R292,R298:R300,R302)-SUM(R301))","v":":"},null,{"$f":"+IF(COUNT(T289:T292,T298:T302)=0,\":\",SUM(T289:T292,T298:T300,T302)-SUM(T301))","v":":"},null,{"$f":"+IF(COUNT(V289:V292,V298:V302)=0,\":\",SUM(V289:V292,V298:V300,V302)-SUM(V301))","v":":"},null,null,null,null,null,null,null,{"$f":"+IF(COUNT(AD289:AD292,AD298:AD302)=0,\":\",SUM(AD289:AD292,AD298:AD300,AD302)-SUM(AD301))","v":":"},null,{"$f":"+IF(COUNT(AF289:AF292,AF298:AF302)=0,\":\",SUM(AF289:AF292,AF298:AF300,AF302)-SUM(AF301))","v":":"}]
[null,null,null,null,2031,null,"Final consumption expenditure",null,"+ P3_EPS.1",{"$f":"+INDEX('1'!J$241:J$258,$E304-$E$49+1)","v":":"},null,null,null,{"$f":"+INDEX('1'!N$241:N$258,$E304-$E$49+1)","v":":"},null,{"$f":"+INDEX('1'!P$241:P$258,$E304-$E$49+1)","v":":"},null,{"$f":"+INDEX('1'!R$241:R$258,$E304-$E$49+1)","v":":"},null,{"$f":"+INDEX('1'!T$241:T$258,$E304-$E$49+1)","v":":"},null,{"$f":"+INDEX('1'!V$241:V$258,$E304-$E$49+1)","v":":"},null,null,null,null,null,null,null,{"$f":"+INDEX('1'!AD$241:AD$258,$E304-$E$49+1)","v":":"},null,{"$f":"+INDEX('1'!AF$241:AF$258,$E304-$E$49+1)","v":":"}]
[null,null,null,null,null,null,null,null,"+ P3_EPS.5",{"$f":"+INDEX('5'!J$7:J$24,$E304-$E$49+1)","v":":"},null,null,null,{"$f":"+INDEX('5'!N$7:N$24,$E304-$E$49+1)","v":":"},null,{"$f":"+INDEX('5'!P$7:P$24,$E304-$E$49+1)","v":":"},null,{"$f":"+INDEX('5'!R$7:R$24,$E304-$E$49+1)","v":":"},null,{"$f":"+INDEX('5'!T$7:T$24,$E304-$E$49+1)","v":":"},null,{"$f":"+INDEX('5'!V$7:V$24,$E304-$E$49+1)","v":":"},null,null,null,null,null,null,null,{"$f":"+INDEX('5'!AD$7:AD$24,$E304-$E$49+1)","v":":"},null,{"$f":"+INDEX('5'!AF$7:AF$24,$E304-$E$49+1)","v":":"}]
[null,null,null,null,null,null,"Intermediate consumption",null,"+ P1_ANC.3",{"$f":"+INDEX('3'!J$133:J$150,$E304-$E$49+1)","v":":"},null,null,null,{"$f":"+INDEX('3'!N$133:N$150,$E304-$E$49+1)","v":":"},null,{"$f":"+INDEX('3'!P$133:P$150,$E304-$E$49+1)","v":":"},null,{"$f":"+INDEX('3'!R$133:R$150,$E304-$E$49+1)","v":":"},null,{"$f":"+INDEX('3'!T$133:T$150,$E304-$E$49+1)","v":":"},null,{"$f":"+INDEX('3'!V$133:V$150,$E304-$E$49+1)","v":":"},null,null,null,null,null,null,null,{"$f":"+INDEX('3'!AD$133:AD$150,$E304-$E$49+1)","v":":"},null,{"$f":"+INDEX('3'!AF$133:AF$150,$E304-$E$49+1)","v":":"}]
[null,null,null,null,null,null,null,null,"+ P2",{"$f":"+IF(COUNT(J308:J312)=0,\":\",SUM(J308:J310)-SUM(J311:J312))","v":":"},null,null,null,{"$f":"+IF(COUNT(N308:N312)=0,\":\",SUM(N308:N310)-SUM(N311:N312))","v":":"},null,{"$f":"+IF(COUNT(P308:P312)=0,\":\",SUM(P308:P310)-SUM(P311:P312))","v":":"},null,{"$f":"+IF(COUNT(R308:R312)=0,\":\",SUM(R308:R310)-SUM(R311:R312))","v":":"},null,{"$f":"+IF(COUNT(T308:T312)=0,\":\",SUM(T308:T310)-SUM(T311:T312))","v":":"},null,{"$f":"+IF(COUNT(V308:V312)=0,\":\",SUM(V308:V310)-SUM(V311:V312))","v":":"},null,null,null,null,null,null,null,{"$f":"+IF(COUNT(AD308:AD312)=0,\":\",SUM(AD308:AD310)-SUM(AD311:AD312))","v":":"},null,{"$f":"+IF(COUNT(AF308:AF312)=0,\":\",SUM(AF308:AF310)-SUM(AF311:AF312))","v":":"}]
[null,null,null,null,null,null,null,null,"+ P2_EPS_EXT.1",{"$f":"+INDEX('1'!J$259:J$276,$E304-$E$49+1)","v":":"},null,null,null,{"$f":"+INDEX('1'!N$259:N$276,$E304-$E$49+1)","v":":"},null,{"$f":"+INDEX('1'!P$259:P$276,$E304-$E$49+1)","v":":"},null,{"$f":"+INDEX('1'!R$259:R$276,$E304-$E$49+1)","v":":"},null,{"$f":"+INDEX('1'!T$259:T$276,$E304-$E$49+1)","v":":"},null,{"$f":"+INDEX('1'!V$259:V$276,$E304-$E$49+1)","v":":"},null,null,null,null,null,null,null,{"$f":"+INDEX('1'!AD$259:AD$276,$E304-$E$49+1)","v":":"},null,{"$f":"+INDEX('1'!AF$259:AF$276,$E304-$E$49+1)","v":":"}]
[null,null,null,null,null,null,null,null,"+ P2_EPS_EXT.2",{"$f":"+INDEX('2'!J$259:J$276,$E304-$E$49+1)","v":":"},null,null,null,{"$f":"+INDEX('2'!N$259:N$276,$E304-$E$49+1)","v":":"},null,{"$f":"+INDEX('2'!P$259:P$276,$E304-$E$49+1)","v":":"},null,{"$f":"+INDEX('2'!R$259:R$276,$E304-$E$49+1)","v":":"},null,{"$f":"+INDEX('2'!T$259:T$276,$E304-$E$49+1)","v":":"},null,{"$f":"+INDEX('2'!V$259:V$276,$E304-$E$49+1)","v":":"},null,null,null,null,null,null,null,{"$f":"+INDEX('2'!AD$259:AD$276,$E304-$E$49+1)","v":":"},null,{"$f":"+INDEX('2'!AF$259:AF$276,$E304-$E$49+1)","v":":"}]
[null,null,null,null,null,null,null,null,"+ P2_EPS_EXT.3",{"$f":"+INDEX('3'!J$223:J$240,$E304-$E$49+1)","v":":"},null,null,null,{"$f":"+INDEX('3'!N$223:N$240,$E304-$E$49+1)","v":":"},null,{"$f":"+INDEX('3'!P$223:P$240,$E304-$E$49+1)","v":":"},null,{"$f":"+INDEX('3'!R$223:R$240,$E304-$E$49+1)","v":":"},null,{"$f":"+INDEX('3'!T$223:T$240,$E304-$E$49+1)","v":":"},null,{"$f":"+INDEX('3'!V$223:V$240,$E304-$E$49+1)","v":":"},null,null,null,null,null,null,null,{"$f":"+INDEX('3'!AD$223:AD$240,$E304-$E$49+1)","v":":"},null,{"$f":"+INDEX('3'!AF$223:AF$240,$E304-$E$49+1)","v":":"}]
[null,null,null,null,null,null,null,null,"- P2_EPS.1",{"$f":"+INDEX('1'!J$241:J$258,$E304-$E$49+1)","v":":"},null,null,null,{"$f":"+INDEX('1'!N$241:N$258,$E304-$E$49+1)","v":":"},null,{"$f":"+INDEX('1'!P$241:P$258,$E304-$E$49+1)","v":":"},null,{"$f":"+INDEX('1'!R$241:R$258,$E304-$E$49+1)","v":":"},null,{"$f":"+INDEX('1'!T$241:T$258,$E304-$E$49+1)","v":":"},null,{"$f":"+INDEX('1'!V$241:V$258,$E304-$E$49+1)","v":":"},null,null,null,null,null,null,null,{"$f":"+INDEX('1'!AD$241:AD$258,$E304-$E$49+1)","v":":"},null,{"$f":"+INDEX('1'!AF$241:AF$258,$E304-$E$49+1)","v":":"}]
[null,null,null,null,null,null,null,null,"- P2_EPS.2",{"$f":"+INDEX('2'!J$43:J$60,$E304-$E$49+1)","v":":"},null,null,null,{"$f":"+INDEX('2'!N$43:N$60,$E304-$E$49+1)","v":":"},null,{"$f":"+INDEX('2'!P$43:P$60,$E304-$E$49+1)","v":":"},null,{"$f":"+INDEX('2'!R$43:R$60,$E304-$E$49+1)","v":":"},null,{"$f":"+INDEX('2'!T$43:T$60,$E304-$E$49+1)","v":":"},null,{"$f":"+INDEX('2'!V$43:V$60,$E304-$E$49+1)","v":":"},null,null,null,null,null,null,null,{"$f":"+INDEX('2'!AD$43:AD$60,$E304-$E$49+1)","v":":"},null,{"$f":"+INDEX('2'!AF$43:AF$60,$E304-$E$49+1)","v":":"}]
[null,null,null,null,null,null,"Gross fixed capital formation and acquisition less disposals of non-financial, non-produced assets ",null,"+ P51G_NP.1",{"$f":"+INDEX('1'!J$7:J$24,$E304-$E$49+1)","v":":"},null,null,null,{"$f":"+INDEX('1'!N$7:N$24,$E304-$E$49+1)","v":":"},null,{"$f":"+INDEX('1'!P$7:P$24,$E304-$E$49+1)","v":":"},null,{"$f":"+INDEX('1'!R$7:R$24,$E304-$E$49+1)","v":":"},null,{"$f":"+INDEX('1'!T$7:T$24,$E304-$E$49+1)","v":":"},null,{"$f":"+INDEX('1'!V$7:V$24,$E304-$E$49+1)","v":":"},null,null,null,null,null,null,null,{"$f":"+INDEX('1'!AD$7:AD$24,$E304-$E$49+1)","v":":"},null,{"$f":"+INDEX('1'!AF$7:AF$24,$E304-$E$49+1)","v":":"}]
[null,null,null,null,null,null,null,null,"+ P51G_NP.2",{"$f":"+INDEX('2'!J$7:J$24,$E304-$E$49+1)","v":":"},null,null,null,{"$f":"+INDEX('2'!N$7:N$24,$E304-$E$49+1)","v":":"},null,{"$f":"+INDEX('2'!P$7:P$24,$E304-$E$49+1)","v":":"},null,{"$f":"+INDEX('2'!R$7:R$24,$E304-$E$49+1)","v":":"},null,{"$f":"+INDEX('2'!T$7:T$24,$E304-$E$49+1)","v":":"},null,{"$f":"+INDEX('2'!V$7:V$24,$E304-$E$49+1)","v":":"},null,null,null,null,null,null,null,{"$f":"+INDEX('2'!AD$7:AD$24,$E304-$E$49+1)","v":":"},null,{"$f":"+INDEX('2'!AF$7:AF$24,$E304-$E$49+1)","v":":"}]
[null,null,null,null,null,null,null,null,"+ P51G_NP.3",{"$f":"+INDEX('3'!J$7:J$24,$E304-$E$49+1)","v":":"},null,null,null,{"$f":"+INDEX('3'!N$7:N$24,$E304-$E$49+1)","v":":"},null,{"$f":"+INDEX('3'!P$7:P$24,$E304-$E$49+1)","v":":"},null,{"$f":"+INDEX('3'!R$7:R$24,$E304-$E$49+1)","v":":"},null,{"$f":"+INDEX('3'!T$7:T$24,$E304-$E$49+1)","v":":"},null,{"$f":"+INDEX('3'!V$7:V$24,$E304-$E$49+1)","v":":"},null,null,null,null,null,null,null,{"$f":"+INDEX('3'!AD$7:AD$24,$E304-$E$49+1)","v":":"},null,{"$f":"+INDEX('3'!AF$7:AF$24,$E304-$E$49+1)","v":":"}]
[null,null,null,null,null,null,"EP transfers to / from Rest of the World",null,"- D3_D7_D92_D99_PAY_RW.6",{"$f":"INDEX('6'!J$187:J$204,$E304-$E$49+1)","v":":"},null,null,null,{"$f":"INDEX('6'!N$187:N$204,$E304-$E$49+1)","v":":"},null,{"$f":"INDEX('6'!P$187:P$204,$E304-$E$49+1)","v":":"},null,{"$f":"INDEX('6'!R$187:R$204,$E304-$E$49+1)","v":":"},null,{"$f":"INDEX('6'!T$187:T$204,$E304-$E$49+1)","v":":"},null,{"$f":"INDEX('6'!V$187:V$204,$E304-$E$49+1)","v":":"},null,null,null,null,null,null,null,{"$f":"INDEX('6'!AD$187:AD$204,$E304-$E$49+1)","v":":"},null,{"$f":"INDEX('6'!AF$187:AF$204,$E304-$E$49+1)","v":":"}]
[null,null,null,null,null,null,null,null,"+ D3_D7_D92_D99_REC_RW.6",{"$f":"INDEX('6'!J$205:J$222,$E304-$E$49+1)","v":":"},null,null,null,{"$f":"INDEX('6'!N$205:N$222,$E304-$E$49+1)","v":":"},null,{"$f":"INDEX('6'!P$205:P$222,$E304-$E$49+1)","v":":"},null,{"$f":"INDEX('6'!R$205:R$222,$E304-$E$49+1)","v":":"},null,{"$f":"INDEX('6'!T$205:T$222,$E304-$E$49+1)","v":":"},null,{"$f":"INDEX('6'!V$205:V$222,$E304-$E$49+1)","v":":"},null,null,null,null,null,null,null,{"$f":"INDEX('6'!AD$205:AD$222,$E304-$E$49+1)","v":":"},null,{"$f":"INDEX('6'!AF$205:AF$222,$E304-$E$49+1)","v":":"}]
[null,null,null,null,null,null,"TOTAL",null,"=SUM()",{"$f":"+IF(COUNT(J304:J307,J313:J317)=0,\":\",SUM(J304:J307,J313:J315,J317)-SUM(J316))","v":":"},null,null,null,{"$f":"+IF(COUNT(N304:N307,N313:N317)=0,\":\",SUM(N304:N307,N313:N315,N317)-SUM(N316))","v":":"},null,{"$f":"+IF(COUNT(P304:P307,P313:P317)=0,\":\",SUM(P304:P307,P313:P315,P317)-SUM(P316))","v":":"},null,{"$f":"+IF(COUNT(R304:R307,R313:R317)=0,\":\",SUM(R304:R307,R313:R315,R317)-SUM(R316))","v":":"},null,{"$f":"+IF(COUNT(T304:T307,T313:T317)=0,\":\",SUM(T304:T307,T313:T315,T317)-SUM(T316))","v":":"},null,{"$f":"+IF(COUNT(V304:V307,V313:V317)=0,\":\",SUM(V304:V307,V313:V315,V317)-SUM(V316))","v":":"},null,null,null,null,null,null,null,{"$f":"+IF(COUNT(AD304:AD307,AD313:AD317)=0,\":\",SUM(AD304:AD307,AD313:AD315,AD317)-SUM(AD316))","v":":"},null,{"$f":"+IF(COUNT(AF304:AF307,AF313:AF317)=0,\":\",SUM(AF304:AF307,AF313:AF315,AF317)-SUM(AF316))","v":":"}]

{"sheet":"7_Add_GG","index":41,"n_rows":318,"n_cols":58,"rows_kept":318,"cut":false,"hidden":false,"merged":[[312,6,314,7],[315,6,316,7],[297,6,299,7],[300,6,301,7],[303,4,303,5],[303,6,304,7],[304,4,304,5],[305,6,310,7],[282,6,284,7],[285,6,286,7],[288,4,288,5],[288,6,289,7],[289,4,289,5],[290,6,295,7],[267,6,269,7],[270,6,271,7],[273,4,273,5],[273,6,274,7],[274,4,274,5],[275,6,280,7],[252,6,254,7],[255,6,256,7],[258,4,258,5],[258,6,259,7],[259,4,259,5],[260,6,265,7],[237,6,239,7],[240,6,241,7],[243,4,243,5],[243,6,244,7],[244,4,244,5],[245,6,250,7],[222,6,224,7],[225,6,226,7],[228,4,228,5],[228,6,229,7],[229,4,229,5],[230,6,235,7],[207,6,209,7],[210,6,211,7],[213,4,213,5],[213,6,214,7],[214,4,214,5],[215,6,220,7],[192,6,194,7],[195,6,196,7],[198,4,198,5],[198,6,199,7],[199,4,199,5],[200,6,205,7],[177,6,179,7],[180,6,181,7],[183,4,183,5],[183,6,184,7],[184,4,184,5],[185,6,190,7],[162,6,164,7],[165,6,166,7],[168,4,168,5],[168,6,169,7],[169,4,169,5],[170,6,175,7],[147,6,149,7],[150,6,151,7],[153,4,153,5],[153,6,154,7],[154,4,154,5],[155,6,160,7],[132,6,134,7],[135,6,136,7],[138,4,138,5],[138,6,139,7],[139,4,139,5],[140,6,145,7],[117,6,119,7],[120,6,121,7],[123,4,123,5],[123,6,124,7],[124,4,124,5],[125,6,130,7],[102,6,104,7],[105,6,106,7],[108,4,108,5],[108,6,109,7],[109,4,109,5],[110,6,115,7],[87,6,89,7],[90,6,91,7],[93,4,93,5],[93,6,94,7],[94,4,94,5],[95,6,100,7],[72,6,74,7],[75,6,76,7],[78,4,78,5],[78,6,79,7],[79,4,79,5],[80,6,85,7],[57,6,59,7],[60,6,61,7],[63,4,63,5],[63,6,64,7],[64,4,64,5],[65,6,70,7],[46,31,47,32],[47,4,47,8],[48,4,48,5],[48,6,49,7],[49,4,49,5],[50,6,55,7],[46,19,47,20],[46,21,47,22],[46,23,47,24],[46,25,47,26],[46,27,47,28],[46,29,47,30],[27,4,27,7],[46,4,46,8],[46,9,47,10],[46,12,47,12],[46,13,47,14],[46,15,47,16],[46,17,47,18],[25,17,26,18],[25,19,26,20],[8,4,8,7],[24,4,24,7],[25,9,26,10],[25,11,26,12],[25,13,26,14],[25,15,26,16],[3,29,4,30],[3,31,4,32],[4,4,4,7],[6,4,6,7],[7,4,7,7],[3,17,4,18],[3,19,4,20],[3,21,4,22],[3,23,4,24],[3,25,4,26],[3,27,4,28],[25,29,26,30],[25,31,26,32],[26,4,26,7],[25,21,26,22],[25,23,26,24],[25,25,26,26],[25,27,26,28],[2,47,2,54],[3,47,3,54],[0,4,0,8],[0,9,0,32],[1,4,1,8],[1,9,1,32],[3,7,3,8],[3,9,4,10],[3,11,4,12],[3,13,4,14],[3,15,4,16]]}
[null,null,null,null,{"$f":"Cover!B21","v":"QUESTIONNAIRE ON ENVIRONMENTAL PROTECTION EXPENDITURE ACCOUNTS"},null,null,null,null,"Table 7.4. Total economy by CEPA"]
[null,null,null,null,{"$f":"E1","v":"QUESTIONNAIRE ON ENVIRONMENTAL PROTECTION EXPENDITURE ACCOUNTS"},null,null,null,null,"Table 7_Add_GG: NEEP by CEPA - General Government"]
[null,null,null,null,null,null,null,null,null,null,null,null,null,null,null,null,null,null,null,null,null,null,null,null,null,null,null,null,null,null,null," ",null,null,null,null,null,null,null,null,null,null,null,null,null,null,null,"\nCONTROL TABLES"]
[null,null,null,null,"Country/Unit",{"$f":"IFERROR(Cover!C16,\"\")","v":""},{"$f":"\"\"&Cover!B16","v":""},{"$f":"Cover!B17","v":"Million units of national currency"},null,"CEPA 1",null,"of which CEPA 1.1.2 and 1.2.2 Climate change",null,"CEPA2",null,"CEPA 3",null,"CEPA 4",null,"CEPA 5",null,"CEPA 6",null,"CEPA 7",null,"CEPA 8",null,"CEPA 9",null,"CEPA 7+8+9",null,"TOTAL",null,null,null,null,null,null,null,null,null,null,null,null,null,null,null,"Comparison with data automatically calculated"]
[null,null,null,null,null,null,null,null,"Year",null,null,null,null,null,null,null,null,null,null,null,null,null,null,null,null,null,null,null,null,null,null,null,null,null,null,null,null,null,null,null,null,null,null,null,null,null,null,"CEPA 1","CEPA 2","CEPA 3","CEPA 4","CEPA 5","CEPA 6","CEPA 7+8+9","Total",null,"Comparison Threshold"]
[null,null,null,null,null,null,null,null,null,"CEPA1",null,"CEPA112_122","CEPA112_122","CEPA2",null,"CEPA3",null,"CEPA4",null,"CEPA5",null,"CEPA6",null,"CEPA7",null,"CEPA8",null,"CEPA9",null,"CEPA7-9",null,"TOT_CEPA",null,null,null,null,null,null,null,null,null,null,null,null,null,null,null,"S1","S2","S3","S4","S5","S6","S7","S8"]
["S13_S15","TOTAL","EPS_NEEP",null,"National expenditure on environmental protection",null,null,null,2014,":",null,"-",null,":",null,":",null,":",null,":",null,":",null,"-",null,"-",null,"-",null,":",null,{"$f":"IF(COUNT(J7,N7,P7,R7,T7,V7,AD7)=7,SUM(J7,N7,P7,R7,T7,V7,AD7),\":\")","v":":"},null,null,null,null,null,null,null,null,null,null,null,null,null,null,2014,{"$f":"IF($J28=\":\",IF($J7=\":\",\"\",$BF$10),IF($J7=\":\",$BF$11,IF($J28=0,1,ABS($J7-$J28)/ABS($J28))))","v":""},{"$f":"IF($J28=\":\",IF($J7=\":\",\"\",$BF$10),IF($J7=\":\",$BF$11,IF($J28=0,1,ABS($J7-$J28)/ABS($J28))))","v":""},"","","","","","",null,0.1]
["S13_S15","TOTAL","EPS_NEEP",null,"   Please complete the cells with national estimates or confirm the calculation below",null,null,null,2015,":",null,"-",null,":",null,":",null,":",null,":",null,":",null,"-",null,"-",null,"-",null,":",null,{"$f":"IF(COUNT(J8,N8,P8,R8,T8,V8,AD8)=7,SUM(J8,N8,P8,R8,T8,V8,AD8),\":\")","v":":"},null,null,null,null,null,null,null,null,null,null,null,null,null,null,2015,{"$f":"IF($J29=\":\",IF($J8=\":\",\"\",$BF$10),IF($J8=\":\",$BF$11,IF($J29=0,1,ABS($J8-$J29)/ABS($J29))))","v":""},"","","","","","",""]
["S13_S15","TOTAL","EPS_NEEP",null,"   by copying VALUES of calculated data to these cells",null,null,null,2016,":",null,"-",null,":",null,":",null,":",null,":",null,":",null,"-",null,"-",null,"-",null,":",null,{"$f":"IF(COUNT(J9,N9,P9,R9,T9,V9,AD9)=7,SUM(J9,N9,P9,R9,T9,V9,AD9),\":\")","v":":"},null,null,null,null,null,null,null,null,null,null,null,null,null,null,2016,"","","","","","","",""]
["S13_S15","TOTAL","EPS_NEEP",null,null,null,null,null,2017,":",null,"-",null,":",null,":",null,":",null,":",null,":",null,"-",null,"-",null,"-",null,":",null,":",null,null,null,null,null,null,null,null,null,null,null,null,null,null,2017,"","","","","","","","",null,null,"No Calculation"]
["S13_S15","TOTAL","EPS_NEEP",null,null,null,null,null,2018,":",null,"-",null,":",null,":",null,":",null,":",null,":",null,"-",null,"-",null,"-",null,":",null,":",null,null,null,null,null,null,null,null,null,null,null,null,null,null,2018,"","","","","","","","",null,null,"No Data"]
["S13_S15","TOTAL","EPS_NEEP",null,null,null,null,null,2019,":",null,"-",null,":",null,":",null,":",null,":",null,":",null,"-",null,"-",null,"-",null,":",null,":",null,null,null,null,null,null,null,null,null,null,null,null,null,null,2019,"","","","","","","",""]
["S13_S15","TOTAL","EPS_NEEP",null,null,null,null,null,2020,":",null,"-",null,":",null,":",null,":",null,":",null,":",null,"-",null,"-",null,"-",null,":",null,":",null,null,null,null,null,null,null,null,null,null,null,null,null,null,2020,"","","","","","","",""]
["S13_S15","TOTAL","EPS_NEEP",null,null,null,null,null,2021,":",null,"-",null,":",null,":",null,":",null,":",null,":",null,"-",null,"-",null,"-",null,":",null,":",null,null,null,null,null,null,null,null,null,null,null,null,null,null,2021,"","","","","","","",""]
["S13_S15","TOTAL","EPS_NEEP",null,null,null,null,null,2022,":",null,"-",null,":",null,":",null,":",null,":",null,":",null,"-",null,"-",null,"-",null,":",null,":",null,null,null,null,null,null,null,null,null,null,null,null,null,null,2022,"","","","","","","",""]
["S13_S15","TOTAL","EPS_NEEP",null,null,null,null,null,2023,":",null,"-",null,":",null,":",null,":",null,":",null,":",null,"-",null,"-",null,"-",null,":",null,":",null,null,null,null,null,null,null,null,null,null,null,null,null,null,2023,"","","","","","","",""]
["S13_S15","TOTAL","EPS_NEEP",null,null,null,null,null,2024,":",null,"-",null,":",null,":",null,":",null,":",null,":",null,"-",null,"-",null,"-",null,":",null,":",null,null,null,null,null,null,null,null,null,null,null,null,null,null,2024,"","","","","","","",""]
["S13_S15","TOTAL","EPS_NEEP",null,null,null,null,null,2025,":",null,"-",null,":",null,":",null,":",null,":",null,":",null,"-",null,"-",null,"-",null,":",null,":",null,null,null,null,null,null,null,null,null,null,null,null,null,null,2025,"","","","","","","",""]
["S13_S15","TOTAL","EPS_NEEP",null,null,null,null,null,2026,":",null,"-",null,":",null,":",null,":",null,":",null,":",null,"-",null,"-",null,"-",null,":",null,":",null,null,null,null,null,null,null,null,null,null,null,null,null,null,2026,"","","","","","","",""]
["S13_S15","TOTAL","EPS_NEEP",null,null,null,null,null,2027,":",null,"-",null,":",null,":",null,":",null,":",null,":",null,"-",null,"-",null,"-",null,":",null,":",null,null,null,null,null,null,null,null,null,null,null,null,null,null,2027,"","","","","","","",""]
["S13_S15","TOTAL","EPS_NEEP",null,null,null,null,null,2028,":",null,"-",null,":",null,":",null,":",null,":",null,":",null,"-",null,"-",null,"-",null,":",null,":",null,null,null,null,null,null,null,null,null,null,null,null,null,null,2028,"","","","","","","",""]
["S13_S15","TOTAL","EPS_NEEP",null,null,null,null,null,2029,":",null,"-",null,":",null,":",null,":",null,":",null,":",null,"-",null,"-",null,"-",null,":",null,":",null,null,null,null,null,null,null,null,null,null,null,null,null,null,2029,"","","","","","","",""]
["S13_S15","TOTAL","EPS_NEEP",null,null,null,null,null,2030,":",null,"-",null,":",null,":",null,":",null,":",null,":",null,"-",null,"-",null,"-",null,":",null,":",null,null,null,null,null,null,null,null,null,null,null,null,null,null,2030,"","","","","","","",""]
["S13_S15","TOTAL","EPS_NEEP",null,null,null,null,null,2031,":",null,"-",null,":",null,":",null,":",null,":",null,":",null,"-",null,"-",null,"-",null,":",null,":",null,null,null,null,null,null,null,null,null,null,null,null,null,null,2031,{"$f":"IF($J45=\":\",IF($J24=\":\",\"\",$BF$10),IF($J24=\":\",$BF$11,IF($J45=0,1,ABS($J24-$J45)/ABS($J45))))","v":""},"","","","","","",""]
[null,null,null,null,"National expenditure on environmental protection – Summary"]
[null,null,null,null,null,null,null,{"$f":"'1'!H4","v":"Million units of national currency"},null,{"$f":"J4","v":"CEPA 1"},null,"of which CEPA 1.1.2 and 1.2.2 Climate change",null,{"$f":"N4","v":"CEPA2"},null,{"$f":"P4","v":"CEPA 3"},null,{"$f":"R4","v":"CEPA 4"},null,{"$f":"T4","v":"CEPA 5"},null,{"$f":"V4","v":"CEPA 6"},null,"CEPA 7",null,"CEPA 8",null,"CEPA 9",null,{"$f":"AD4","v":"CEPA 7+8+9"},null,"TOTAL"]
[null,null,null,null,null,null,null,null,"Year"]
[null,null,null,null,"Figures calculated from information available in the questionnaire",null,null,null,2014,{"$f":"OFFSET(J$63,($I28-$I$28)*COUNTA($I$49:$I$63),0)","v":":"},null,"-",null,{"$f":"OFFSET(N$63,($I28-$I$28)*COUNTA($I$49:$I$63),0)","v":":"},null,{"$f":"OFFSET(P$63,($I28-$I$28)*COUNTA($I$49:$I$63),0)","v":":"},null,{"$f":"OFFSET(R$63,($I28-$I$28)*COUNTA($I$49:$I$63),0)","v":":"},null,{"$f":"OFFSET(T$63,($I28-$I$28)*COUNTA($I$49:$I$63),0)","v":":"},null,{"$f":"OFFSET(V$63,($I28-$I$28)*COUNTA($I$49:$I$63),0)","v":":"},null,"-",null,"-",null,"-",null,{"$f":"OFFSET(AD$63,($I28-$I$28)*COUNTA($I$49:$I$63),0)","v":":"},null,{"$f":"IF(COUNT(J28,N28,P28,R28,T28,V28,AD28)=7,SUM(J28,N28,P28,R28,T28,V28,AD28),\":\")","v":":"}]
[null,null,null,null,null,null,null,null,2015,{"$f":"OFFSET(J$63,($I29-$I$28)*COUNTA($I$49:$I$63),0)","v":":"},null,"-",null,{"$f":"OFFSET(N$63,($I29-$I$28)*COUNTA($I$49:$I$63),0)","v":":"},null,{"$f":"OFFSET(P$63,($I29-$I$28)*COUNTA($I$49:$I$63),0)","v":":"},null,{"$f":"OFFSET(R$63,($I29-$I$28)*COUNTA($I$49:$I$63),0)","v":":"},null,{"$f":"OFFSET(T$63,($I29-$I$28)*COUNTA($I$49:$I$63),0)","v":":"},null,{"$f":"OFFSET(V$63,($I29-$I$28)*COUNTA($I$49:$I$63),0)","v":":"},null,"-",null,"-",null,"-",null,{"$f":"OFFSET(AD$63,($I29-$I$28)*COUNTA($I$49:$I$63),0)","v":":"},null,{"$f":"IF(COUNT(J29,N29,P29,R29,T29,V29,AD29)=7,SUM(J29,N29,P29,R29,T29,V29,AD29),\":\")","v":":"}]
[null,null,null,null,null,null,null,null,2016,":",null,"-",null,":",null,":",null,":",null,":",null,":",null,"-",null,"-",null,"-",null,":",null,":"]
[null,null,null,null,null,null,null,null,2017,":",null,"-",null,":",null,":",null,":",null,":",null,":",null,"-",null,"-",null,"-",null,":",null,":"]
[null,null,null,null,null,null,null,null,2018,":",null,"-",null,":",null,":",null,":",null,":",null,":",null,"-",null,"-",null,"-",null,":",null,":"]
[null,null,null,null,null,null,null,null,2019,":",null,"-",null,":",null,":",null,":",null,":",null,":",null,"-",null,"-",null,"-",null,":",null,":"]
[null,null,null,null,null,null,null,null,2020,":",null,"-",null,":",null,":",null,":",null,":",null,":",null,"-",null,"-",null,"-",null,":",null,":"]
[null,null,null,null,null,null,null,null,2021,":",null,"-",null,":",null,":",null,":",null,":",null,":",null,"-",null,"-",null,"-",null,":",null,":"]
[null,null,null,null,null,null,null,null,2022,":",null,"-",null,":",null,":",null,":",null,":",null,":",null,"-",null,"-",null,"-",null,":",null,":"]
[null,null,null,null,null,null,null,null,2023,":",null,"-",null,":",null,":",null,":",null,":",null,":",null,"-",null,"-",null,"-",null,":",null,":"]
[null,null,null,null,null,null,null,null,2024,":",null,"-",null,":",null,":",null,":",null,":",null,":",null,"-",null,"-",null,"-",null,":",null,":"]
[null,null,null,null,null,null,null,null,2025,":",null,"-",null,":",null,":",null,":",null,":",null,":",null,"-",null,"-",null,"-",null,":",null,":"]
[null,null,null,null,null,null,null,null,2026,":",null,"-",null,":",null,":",null,":",null,":",null,":",null,"-",null,"-",null,"-",null,":",null,":"]
[null,null,null,null,null,null,null,null,2027,":",null,"-",null,":",null,":",null,":",null,":",null,":",null,"-",null,"-",null,"-",null,":",null,":"]
[null,null,null,null,null,null,null,null,2028,":",null,"-",null,":",null,":",null,":",null,":",null,":",null,"-",null,"-",null,"-",null,":",null,":"]
[null,null,null,null,null,null,null,null,2029,":",null,"-",null,":",null,":",null,":",null,":",null,":",null,"-",null,"-",null,"-",null,":",null,":",null,null,null,null,null,null,null,null,null,null,null,null,null,null,null,null,null,null,null,null,null,null,{"$f":"IF(#REF!=\":\",IF(AF43=\":\",\"\",$BF$29),IF(AF43=\":\",$BF$28,IF(#REF!=0,1,ABS(AF43-#REF!)/ABS(#REF!))))","v":{"$error":"#REF!"}}]
[null,null,null,null,null,null,null,null,2030,":",null,"-",null,":",null,":",null,":",null,":",null,":",null,"-",null,"-",null,"-",null,":",null,":",null,null,null,null,null,null,null,null,null,null,null,null,null,null,null,null,null,null,null,null,null,null,{"$f":"IF(#REF!=\":\",IF(AF44=\":\",\"\",$BF$29),IF(AF44=\":\",$BF$28,IF(#REF!=0,1,ABS(AF44-#REF!)/ABS(#REF!))))","v":{"$error":"#REF!"}}]
[null,null,null,null,null,null,null,null,2031,":",null,"-",null,":",null,":",null,":",null,":",null,":",null,"-",null,"-",null,"-",null,":",null,":",null,null,null,null,null,null,null,null,null,null,null,null,null,null,null,null,null,null,null,null,null,null,{"$f":"IF(#REF!=\":\",IF(AF45=\":\",\"\",$BF$29),IF(AF45=\":\",$BF$28,IF(#REF!=0,1,ABS(AF45-#REF!)/ABS(#REF!))))","v":{"$error":"#REF!"}}]
[]
[null,null,null,null,"Components of national expenditure on environmental protection by CEPA - General Government",null,null,null,null,{"$f":"J26","v":"CEPA 1"},null,null,"of which CEPA 1.1.2 and 1.2.2 Climate change",{"$f":"N26","v":"CEPA2"},null,{"$f":"P26","v":"CEPA 3"},null,{"$f":"R26","v":"CEPA 4"},null,{"$f":"T26","v":"CEPA 5"},null,{"$f":"V26","v":"CEPA 6"},null,"CEPA 7",null,"CEPA 8",null,"CEPA 9",null,{"$f":"AD26","v":"CEPA 7+8+9"},null,"TOTAL"]
[null,null,null,null,"Figures calculated from information available in the questionnaire"]
[null,null,null,null,2014,null,"Final consumption expenditure",null,"+ P3_EPS.1",{"$f":"+INDEX('1'!J$241:J$258,$E49-$E$49+1)","v":":"},null,null,null,{"$f":"+INDEX('1'!N$241:N$258,$E49-$E$49+1)","v":":"},null,{"$f":"+INDEX('1'!P$241:P$258,$E49-$E$49+1)","v":":"},null,{"$f":"+INDEX('1'!R$241:R$258,$E49-$E$49+1)","v":":"},null,{"$f":"+INDEX('1'!T$241:T$258,$E49-$E$49+1)","v":":"},null,{"$f":"+INDEX('1'!V$241:V$258,$E49-$E$49+1)","v":":"},null,null,null,null,null,null,null,{"$f":"+INDEX('1'!AD$241:AD$258,$E49-$E$49+1)","v":":"},null,{"$f":"+INDEX('1'!AF$241:AF$258,$E49-$E$49+1)","v":":"}]
[null,null,null,null,null,null,null,null,"+ P3_EPS.5",null,null,null,null,null,null,null,null,null,null,null,null,null,null,null,null,null,null,null,null,null,null,{"$f":"+INDEX('5'!AF$7:AF$24,$E49-$E$49+1)","v":":"}]
[null,null,null,null,null,null,"Intermediate consumption",null,"+ P1_ANC.3",null,null,null,null,null,null,null,null,null,null,null,null,null,null,null,null,null,null,null,null,null,null,{"$f":"+INDEX('3'!AF$133:AF$150,$E49-$E$49+1)","v":":"}]
[null,null,null,null,null,null,null,null,"+ P2",{"$f":"+IF(COUNT(J53:J57)=0,\":\",SUM(J53:J55)-SUM(J56:J57))","v":":"},null,null,null,{"$f":"+IF(COUNT(N53:N57)=0,\":\",SUM(N53:N55)-SUM(N56:N57))","v":":"},null,{"$f":"+IF(COUNT(P53:P57)=0,\":\",SUM(P53:P55)-SUM(P56:P57))","v":":"},null,{"$f":"+IF(COUNT(R53:R57)=0,\":\",SUM(R53:R55)-SUM(R56:R57))","v":":"},null,{"$f":"+IF(COUNT(T53:T57)=0,\":\",SUM(T53:T55)-SUM(T56:T57))","v":":"},null,{"$f":"+IF(COUNT(V53:V57)=0,\":\",SUM(V53:V55)-SUM(V56:V57))","v":":"},null,null,null,null,null,null,null,{"$f":"+IF(COUNT(AD53:AD57)=0,\":\",SUM(AD53:AD55)-SUM(AD56:AD57))","v":":"},null,{"$f":"+IF(COUNT(AF53:AF57)=0,\":\",SUM(AF53:AF55)-SUM(AF56:AF57))","v":":"}]
[null,null,null,null,null,null,null,null,"+ P2_EPS_EXT.1",{"$f":"+INDEX('1'!J$259:J$276,$E49-$E$49+1)","v":":"},null,null,null,{"$f":"+INDEX('1'!N$259:N$276,$E49-$E$49+1)","v":":"},null,{"$f":"+INDEX('1'!P$259:P$276,$E49-$E$49+1)","v":":"},null,{"$f":"+INDEX('1'!R$259:R$276,$E49-$E$49+1)","v":":"},null,{"$f":"+INDEX('1'!T$259:T$276,$E49-$E$49+1)","v":":"},null,{"$f":"+INDEX('1'!V$259:V$276,$E49-$E$49+1)","v":":"},null,null,null,null,null,null,null,{"$f":"+INDEX('1'!AD$259:AD$276,$E49-$E$49+1)","v":":"},null,{"$f":"+INDEX('1'!AF$259:AF$276,$E49-$E$49+1)","v":":"}]
[null,null,null,null,null,null,null,null,"+ P2_EPS_EXT.2",null,null,null,null,null,null,null,null,null,null,null,null,null,null,null,null,null,null,null,null,null,null,{"$f":"+INDEX('2'!AF$259:AF$276,$E49-$E$49+1)","v":":"}]
[null,null,null,null,null,null,null,null,"+ P2_EPS_EXT.3",null,null,null,null,null,null,null,null,null,null,null,null,null,null,null,null,null,null,null,null,null,null,{"$f":"+INDEX('3'!AF$223:AF$240,$E49-$E$49+1)","v":":"}]
[null,null,null,null,null,null,null,null,"- P2_EPS.1",{"$f":"+INDEX('1'!J$43:J$60,$E49-$E$49+1)","v":":"},null,null,null,{"$f":"+INDEX('1'!N$43:N$60,$E49-$E$49+1)","v":":"},null,{"$f":"+INDEX('1'!P$43:P$60,$E49-$E$49+1)","v":":"},null,{"$f":"+INDEX('1'!R$43:R$60,$E49-$E$49+1)","v":":"},null,{"$f":"+INDEX('1'!T$43:T$60,$E49-$E$49+1)","v":":"},null,{"$f":"+INDEX('1'!V$43:V$60,$E49-$E$49+1)","v":":"},null,null,null,null,null,null,null,{"$f":"+INDEX('1'!AD$43:AD$60,$E49-$E$49+1)","v":":"},null,{"$f":"+INDEX('1'!AF$43:AF$60,$E49-$E$49+1)","v":":"}]
[null,null,null,null,null,null,null,null,"- P2_EPS.2",null,null,null,null,null,null,null,null,null,null,null,null,null,null,null,null,null,null,null,null,null,null,{"$f":"+INDEX('2'!AF$43:AF$60,$E49-$E$49+1)","v":":"}]
[null,null,null,null,null,null,"Gross fixed capital formation and acquisition less disposals of non-financial, non-produced assets ",null,"+ P51G_NP.1",{"$f":"+INDEX('1'!J$7:J$24,$E49-$E$49+1)","v":":"},null,null,null,{"$f":"+INDEX('1'!N$7:N$24,$E49-$E$49+1)","v":":"},null,{"$f":"+INDEX('1'!P$7:P$24,$E49-$E$49+1)","v":":"},null,{"$f":"+INDEX('1'!R$7:R$24,$E49-$E$49+1)","v":":"},null,{"$f":"+INDEX('1'!T$7:T$24,$E49-$E$49+1)","v":":"},null,{"$f":"+INDEX('1'!V$7:V$24,$E49-$E$49+1)","v":":"},null,null,null,null,null,null,null,{"$f":"+INDEX('1'!AD$7:AD$24,$E49-$E$49+1)","v":":"},null,{"$f":"+INDEX('1'!AF$7:AF$24,$E49-$E$49+1)","v":":"}]
[null,null,null,null,null,null,null,null,"+ P51G_NP.2",null,null,null,null,null,null,null,null,null,null,null,null,null,null,null,null,null,null,null,null,null,null,{"$f":"+INDEX('2'!AF$7:AF$24,$E49-$E$49+1)","v":":"}]
[null,null,null,null,null,null,null,null,"+ P51G_NP.3",null,null,null,null,null,null,null,null,null,null,null,null,null,null,null,null,null,null,null,null,null,null,{"$f":"+INDEX('3'!AF$7:AF$24,$E49-$E$49+1)","v":":"}]
[null,null,null,null,null,null,"EP transfers to / from Rest of the World",null,"- D3_D7_D92_D99_PAY_RW.6",{"$f":"INDEX('6'!J$187:J$204,$E49-$E$49+1)","v":":"},null,null,null,{"$f":"INDEX('6'!N$187:N$204,$E49-$E$49+1)","v":":"},null,{"$f":"INDEX('6'!P$187:P$204,$E49-$E$49+1)","v":":"},null,{"$f":"INDEX('6'!R$187:R$204,$E49-$E$49+1)","v":":"},null,{"$f":"INDEX('6'!T$187:T$204,$E49-$E$49+1)","v":":"},null,{"$f":"INDEX('6'!V$187:V$204,$E49-$E$49+1)","v":":"},null,null,null,null,null,null,null,{"$f":"INDEX('6'!AD$187:AD$204,$E49-$E$49+1)","v":":"},null,{"$f":"INDEX('6'!AF$187:AF$204,$E49-$E$49+1)","v":":"}]
[null,null,null,null,null,null,null,null,"+ D3_D7_D92_D99_REC_RW.6",{"$f":"INDEX('6'!J$205:J$222,$E49-$E$49+1)","v":":"},null,null,null,{"$f":"INDEX('6'!N$205:N$222,$E49-$E$49+1)","v":":"},null,{"$f":"INDEX('6'!P$205:P$222,$E49-$E$49+1)","v":":"},null,{"$f":"INDEX('6'!R$205:R$222,$E49-$E$49+1)","v":":"},null,{"$f":"INDEX('6'!T$205:T$222,$E49-$E$49+1)","v":":"},null,{"$f":"INDEX('6'!V$205:V$222,$E49-$E$49+1)","v":":"},null,null,null,null,null,null,null,{"$f":"INDEX('6'!AD$205:AD$222,$E49-$E$49+1)","v":":"},null,{"$f":"INDEX('6'!AF$205:AF$222,$E49-$E$49+1)","v":":"}]
[null,null,null,null,null,null,"TOTAL",null,"=SUM()",{"$f":"+IF(COUNT(J49:J52,J58:J62)=0,\":\",SUM(J49:J52,J58:J60,J62)-SUM(J61))","v":":"},null,null,null,{"$f":"+IF(COUNT(N49:N52,N58:N62)=0,\":\",SUM(N49:N52,N58:N60,N62)-SUM(N61))","v":":"},null,{"$f":"+IF(COUNT(P49:P52,P58:P62)=0,\":\",SUM(P49:P52,P58:P60,P62)-SUM(P61))","v":":"},null,{"$f":"+IF(COUNT(R49:R52,R58:R62)=0,\":\",SUM(R49:R52,R58:R60,R62)-SUM(R61))","v":":"},null,{"$f":"+IF(COUNT(T49:T52,T58:T62)=0,\":\",SUM(T49:T52,T58:T60,T62)-SUM(T61))","v":":"},null,{"$f":"+IF(COUNT(V49:V52,V58:V62)=0,\":\",SUM(V49:V52,V58:V60,V62)-SUM(V61))","v":":"},null,null,null,null,null,null,null,{"$f":"+IF(COUNT(AD49:AD52,AD58:AD62)=0,\":\",SUM(AD49:AD52,AD58:AD60,AD62)-SUM(AD61))","v":":"},null,{"$f":"+IF(COUNT(AF49:AF52,AF58:AF62)=0,\":\",SUM(AF49:AF52,AF58:AF60,AF62)-SUM(AF61))","v":":"}]
[null,null,null,null,2015,null,"Final consumption expenditure",null,"+ P3_EPS.1",{"$f":"+INDEX('1'!J$241:J$258,$E64-$E$49+1)","v":":"},null,null,null,{"$f":"+INDEX('1'!N$241:N$258,$E64-$E$49+1)","v":":"},null,{"$f":"+INDEX('1'!P$241:P$258,$E64-$E$49+1)","v":":"},null,{"$f":"+INDEX('1'!R$241:R$258,$E64-$E$49+1)","v":":"},null,{"$f":"+INDEX('1'!T$241:T$258,$E64-$E$49+1)","v":":"},null,{"$f":"+INDEX('1'!V$241:V$258,$E64-$E$49+1)","v":":"},null,null,null,null,null,null,null,{"$f":"+INDEX('1'!AD$241:AD$258,$E64-$E$49+1)","v":":"},null,{"$f":"+INDEX('1'!AF$241:AF$258,$E64-$E$49+1)","v":":"}]
[null,null,null,null,null,null,null,null,"+ P3_EPS.5",null,null,null,null,null,null,null,null,null,null,null,null,null,null,null,null,null,null,null,null,null,null,{"$f":"+INDEX('5'!AF$7:AF$24,$E64-$E$49+1)","v":":"}]
[null,null,null,null,null,null,"Intermediate consumption",null,"+ P1_ANC.3",null,null,null,null,null,null,null,null,null,null,null,null,null,null,null,null,null,null,null,null,null,null,{"$f":"+INDEX('3'!AF$133:AF$150,$E64-$E$49+1)","v":":"}]
[null,null,null,null,null,null,null,null,"+ P2",{"$f":"+IF(COUNT(J68:J72)=0,\":\",SUM(J68:J70)-SUM(J71:J72))","v":":"},null,null,null,{"$f":"+IF(COUNT(N68:N72)=0,\":\",SUM(N68:N70)-SUM(N71:N72))","v":":"},null,{"$f":"+IF(COUNT(P68:P72)=0,\":\",SUM(P68:P70)-SUM(P71:P72))","v":":"},null,{"$f":"+IF(COUNT(R68:R72)=0,\":\",SUM(R68:R70)-SUM(R71:R72))","v":":"},null,{"$f":"+IF(COUNT(T68:T72)=0,\":\",SUM(T68:T70)-SUM(T71:T72))","v":":"},null,{"$f":"+IF(COUNT(V68:V72)=0,\":\",SUM(V68:V70)-SUM(V71:V72))","v":":"},null,null,null,null,null,null,null,{"$f":"+IF(COUNT(AD68:AD72)=0,\":\",SUM(AD68:AD70)-SUM(AD71:AD72))","v":":"},null,{"$f":"+IF(COUNT(AF68:AF72)=0,\":\",SUM(AF68:AF70)-SUM(AF71:AF72))","v":":"}]
[null,null,null,null,null,null,null,null,"+ P2_EPS_EXT.1",{"$f":"+INDEX('1'!J$259:J$276,$E64-$E$49+1)","v":":"},null,null,null,{"$f":"+INDEX('1'!N$259:N$276,$E64-$E$49+1)","v":":"},null,{"$f":"+INDEX('1'!P$259:P$276,$E64-$E$49+1)","v":":"},null,{"$f":"+INDEX('1'!R$259:R$276,$E64-$E$49+1)","v":":"},null,{"$f":"+INDEX('1'!T$259:T$276,$E64-$E$49+1)","v":":"},null,{"$f":"+INDEX('1'!V$259:V$276,$E64-$E$49+1)","v":":"},null,null,null,null,null,null,null,{"$f":"+INDEX('1'!AD$259:AD$276,$E64-$E$49+1)","v":":"},null,{"$f":"+INDEX('1'!AF$259:AF$276,$E64-$E$49+1)","v":":"}]
[null,null,null,null,null,null,null,null,"+ P2_EPS_EXT.2",null,null,null,null,null,null,null,null,null,null,null,null,null,null,null,null,null,null,null,null,null,null,{"$f":"+INDEX('2'!AF$259:AF$276,$E64-$E$49+1)","v":":"}]
[null,null,null,null,null,null,null,null,"+ P2_EPS_EXT.3",null,null,null,null,null,null,null,null,null,null,null,null,null,null,null,null,null,null,null,null,null,null,{"$f":"+INDEX('3'!AF$223:AF$240,$E64-$E$49+1)","v":":"}]
[null,null,null,null,null,null,null,null,"- P2_EPS.1",{"$f":"+INDEX('1'!J$43:J$60,$E64-$E$49+1)","v":":"},null,null,null,{"$f":"+INDEX('1'!N$43:N$60,$E64-$E$49+1)","v":":"},null,{"$f":"+INDEX('1'!P$43:P$60,$E64-$E$49+1)","v":":"},null,{"$f":"+INDEX('1'!R$43:R$60,$E64-$E$49+1)","v":":"},null,{"$f":"+INDEX('1'!T$43:T$60,$E64-$E$49+1)","v":":"},null,{"$f":"+INDEX('1'!V$43:V$60,$E64-$E$49+1)","v":":"},null,null,null,null,null,null,null,{"$f":"+INDEX('1'!AD$43:AD$60,$E64-$E$49+1)","v":":"},null,{"$f":"+INDEX('1'!AF$43:AF$60,$E64-$E$49+1)","v":":"}]
[null,null,null,null,null,null,null,null,"- P2_EPS.2",null,null,null,null,null,null,null,null,null,null,null,null,null,null,null,null,null,null,null,null,null,null,{"$f":"+INDEX('2'!AF$43:AF$60,$E64-$E$49+1)","v":":"}]
[null,null,null,null,null,null,"Gross fixed capital formation and acquisition less disposals of non-financial, non-produced assets ",null,"+ P51G_NP.1",{"$f":"+INDEX('1'!J$7:J$24,$E64-$E$49+1)","v":":"},null,null,null,{"$f":"+INDEX('1'!N$7:N$24,$E64-$E$49+1)","v":":"},null,{"$f":"+INDEX('1'!P$7:P$24,$E64-$E$49+1)","v":":"},null,{"$f":"+INDEX('1'!R$7:R$24,$E64-$E$49+1)","v":":"},null,{"$f":"+INDEX('1'!T$7:T$24,$E64-$E$49+1)","v":":"},null,{"$f":"+INDEX('1'!V$7:V$24,$E64-$E$49+1)","v":":"},null,null,null,null,null,null,null,{"$f":"+INDEX('1'!AD$7:AD$24,$E64-$E$49+1)","v":":"},null,{"$f":"+INDEX('1'!AF$7:AF$24,$E64-$E$49+1)","v":":"}]
[null,null,null,null,null,null,null,null,"+ P51G_NP.2",null,null,null,null,null,null,null,null,null,null,null,null,null,null,null,null,null,null,null,null,null,null,{"$f":"+INDEX('2'!AF$7:AF$24,$E64-$E$49+1)","v":":"}]
[null,null,null,null,null,null,null,null,"+ P51G_NP.3",null,null,null,null,null,null,null,null,null,null,null,null,null,null,null,null,null,null,null,null,null,null,{"$f":"+INDEX('3'!AF$7:AF$24,$E64-$E$49+1)","v":":"}]
[null,null,null,null,null,null,"EP transfers to / from Rest of the World",null,"- D3_D7_D92_D99_PAY_RW.6",{"$f":"INDEX('6'!J$187:J$204,$E64-$E$49+1)","v":":"},null,null,null,{"$f":"INDEX('6'!N$187:N$204,$E64-$E$49+1)","v":":"},null,{"$f":"INDEX('6'!P$187:P$204,$E64-$E$49+1)","v":":"},null,{"$f":"INDEX('6'!R$187:R$204,$E64-$E$49+1)","v":":"},null,{"$f":"INDEX('6'!T$187:T$204,$E64-$E$49+1)","v":":"},null,{"$f":"INDEX('6'!V$187:V$204,$E64-$E$49+1)","v":":"},null,null,null,null,null,null,null,{"$f":"INDEX('6'!AD$187:AD$204,$E64-$E$49+1)","v":":"},null,{"$f":"INDEX('6'!AF$187:AF$204,$E64-$E$49+1)","v":":"}]
[null,null,null,null,null,null,null,null,"+ D3_D7_D92_D99_REC_RW.6",{"$f":"INDEX('6'!J$205:J$222,$E64-$E$49+1)","v":":"},null,null,null,{"$f":"INDEX('6'!N$205:N$222,$E64-$E$49+1)","v":":"},null,{"$f":"INDEX('6'!P$205:P$222,$E64-$E$49+1)","v":":"},null,{"$f":"INDEX('6'!R$205:R$222,$E64-$E$49+1)","v":":"},null,{"$f":"INDEX('6'!T$205:T$222,$E64-$E$49+1)","v":":"},null,{"$f":"INDEX('6'!V$205:V$222,$E64-$E$49+1)","v":":"},null,null,null,null,null,null,null,{"$f":"INDEX('6'!AD$205:AD$222,$E64-$E$49+1)","v":":"},null,{"$f":"INDEX('6'!AF$205:AF$222,$E64-$E$49+1)","v":":"}]
[null,null,null,null,null,null,"TOTAL",null,"=SUM()",{"$f":"+IF(COUNT(J64:J67,J73:J77)=0,\":\",SUM(J64:J67,J73:J75,J77)-SUM(J76))","v":":"},null,null,null,{"$f":"+IF(COUNT(N64:N67,N73:N77)=0,\":\",SUM(N64:N67,N73:N75,N77)-SUM(N76))","v":":"},null,{"$f":"+IF(COUNT(P64:P67,P73:P77)=0,\":\",SUM(P64:P67,P73:P75,P77)-SUM(P76))","v":":"},null,{"$f":"+IF(COUNT(R64:R67,R73:R77)=0,\":\",SUM(R64:R67,R73:R75,R77)-SUM(R76))","v":":"},null,{"$f":"+IF(COUNT(T64:T67,T73:T77)=0,\":\",SUM(T64:T67,T73:T75,T77)-SUM(T76))","v":":"},null,{"$f":"+IF(COUNT(V64:V67,V73:V77)=0,\":\",SUM(V64:V67,V73:V75,V77)-SUM(V76))","v":":"},null,null,null,null,null,null,null,{"$f":"+IF(COUNT(AD64:AD67,AD73:AD77)=0,\":\",SUM(AD64:AD67,AD73:AD75,AD77)-SUM(AD76))","v":":"},null,{"$f":"+IF(COUNT(AF64:AF67,AF73:AF77)=0,\":\",SUM(AF64:AF67,AF73:AF75,AF77)-SUM(AF76))","v":":"}]
[null,null,null,null,2016,null,"Final consumption expenditure",null,"+ P3_EPS.1",{"$f":"+INDEX('1'!J$241:J$258,$E79-$E$49+1)","v":":"},null,null,null,{"$f":"+INDEX('1'!N$241:N$258,$E79-$E$49+1)","v":":"},null,{"$f":"+INDEX('1'!P$241:P$258,$E79-$E$49+1)","v":":"},null,{"$f":"+INDEX('1'!R$241:R$258,$E79-$E$49+1)","v":":"},null,{"$f":"+INDEX('1'!T$241:T$258,$E79-$E$49+1)","v":":"},null,{"$f":"+INDEX('1'!V$241:V$258,$E79-$E$49+1)","v":":"},null,null,null,null,null,null,null,{"$f":"+INDEX('1'!AD$241:AD$258,$E79-$E$49+1)","v":":"},null,{"$f":"+INDEX('1'!AF$241:AF$258,$E79-$E$49+1)","v":":"}]
[null,null,null,null,null,null,null,null,"+ P3_EPS.5",null,null,null,null,null,null,null,null,null,null,null,null,null,null,null,null,null,null,null,null,null,null,{"$f":"+INDEX('5'!AF$7:AF$24,$E79-$E$49+1)","v":":"}]
[null,null,null,null,null,null,"Intermediate consumption",null,"+ P1_ANC.3",null,null,null,null,null,null,null,null,null,null,null,null,null,null,null,null,null,null,null,null,null,null,{"$f":"+INDEX('3'!AF$133:AF$150,$E79-$E$49+1)","v":":"}]
[null,null,null,null,null,null,null,null,"+ P2",{"$f":"+IF(COUNT(J83:J87)=0,\":\",SUM(J83:J85)-SUM(J86:J87))","v":":"},null,null,null,{"$f":"+IF(COUNT(N83:N87)=0,\":\",SUM(N83:N85)-SUM(N86:N87))","v":":"},null,{"$f":"+IF(COUNT(P83:P87)=0,\":\",SUM(P83:P85)-SUM(P86:P87))","v":":"},null,{"$f":"+IF(COUNT(R83:R87)=0,\":\",SUM(R83:R85)-SUM(R86:R87))","v":":"},null,{"$f":"+IF(COUNT(T83:T87)=0,\":\",SUM(T83:T85)-SUM(T86:T87))","v":":"},null,{"$f":"+IF(COUNT(V83:V87)=0,\":\",SUM(V83:V85)-SUM(V86:V87))","v":":"},null,null,null,null,null,null,null,{"$f":"+IF(COUNT(AD83:AD87)=0,\":\",SUM(AD83:AD85)-SUM(AD86:AD87))","v":":"},null,{"$f":"+IF(COUNT(AF83:AF87)=0,\":\",SUM(AF83:AF85)-SUM(AF86:AF87))","v":":"}]
[null,null,null,null,null,null,null,null,"+ P2_EPS_EXT.1",{"$f":"+INDEX('1'!J$259:J$276,$E79-$E$49+1)","v":":"},null,null,null,{"$f":"+INDEX('1'!N$259:N$276,$E79-$E$49+1)","v":":"},null,{"$f":"+INDEX('1'!P$259:P$276,$E79-$E$49+1)","v":":"},null,{"$f":"+INDEX('1'!R$259:R$276,$E79-$E$49+1)","v":":"},null,{"$f":"+INDEX('1'!T$259:T$276,$E79-$E$49+1)","v":":"},null,{"$f":"+INDEX('1'!V$259:V$276,$E79-$E$49+1)","v":":"},null,null,null,null,null,null,null,{"$f":"+INDEX('1'!AD$259:AD$276,$E79-$E$49+1)","v":":"},null,{"$f":"+INDEX('1'!AF$259:AF$276,$E79-$E$49+1)","v":":"}]
[null,null,null,null,null,null,null,null,"+ P2_EPS_EXT.2",null,null,null,null,null,null,null,null,null,null,null,null,null,null,null,null,null,null,null,null,null,null,{"$f":"+INDEX('2'!AF$259:AF$276,$E79-$E$49+1)","v":":"}]
[null,null,null,null,null,null,null,null,"+ P2_EPS_EXT.3",null,null,null,null,null,null,null,null,null,null,null,null,null,null,null,null,null,null,null,null,null,null,{"$f":"+INDEX('3'!AF$223:AF$240,$E79-$E$49+1)","v":":"}]
[null,null,null,null,null,null,null,null,"- P2_EPS.1",{"$f":"+INDEX('1'!J$43:J$60,$E79-$E$49+1)","v":":"},null,null,null,{"$f":"+INDEX('1'!N$43:N$60,$E79-$E$49+1)","v":":"},null,{"$f":"+INDEX('1'!P$43:P$60,$E79-$E$49+1)","v":":"},null,{"$f":"+INDEX('1'!R$43:R$60,$E79-$E$49+1)","v":":"},null,{"$f":"+INDEX('1'!T$43:T$60,$E79-$E$49+1)","v":":"},null,{"$f":"+INDEX('1'!V$43:V$60,$E79-$E$49+1)","v":":"},null,null,null,null,null,null,null,{"$f":"+INDEX('1'!AD$43:AD$60,$E79-$E$49+1)","v":":"},null,{"$f":"+INDEX('1'!AF$43:AF$60,$E79-$E$49+1)","v":":"}]
[null,null,null,null,null,null,null,null,"- P2_EPS.2",null,null,null,null,null,null,null,null,null,null,null,null,null,null,null,null,null,null,null,null,null,null,{"$f":"+INDEX('2'!AF$43:AF$60,$E79-$E$49+1)","v":":"}]
[null,null,null,null,null,null,"Gross fixed capital formation and acquisition less disposals of non-financial, non-produced assets ",null,"+ P51G_NP.1",{"$f":"+INDEX('1'!J$7:J$24,$E79-$E$49+1)","v":":"},null,null,null,{"$f":"+INDEX('1'!N$7:N$24,$E79-$E$49+1)","v":":"},null,{"$f":"+INDEX('1'!P$7:P$24,$E79-$E$49+1)","v":":"},null,{"$f":"+INDEX('1'!R$7:R$24,$E79-$E$49+1)","v":":"},null,{"$f":"+INDEX('1'!T$7:T$24,$E79-$E$49+1)","v":":"},null,{"$f":"+INDEX('1'!V$7:V$24,$E79-$E$49+1)","v":":"},null,null,null,null,null,null,null,{"$f":"+INDEX('1'!AD$7:AD$24,$E79-$E$49+1)","v":":"},null,{"$f":"+INDEX('1'!AF$7:AF$24,$E79-$E$49+1)","v":":"}]
[null,null,null,null,null,null,null,null,"+ P51G_NP.2",null,null,null,null,null,null,null,null,null,null,null,null,null,null,null,null,null,null,null,null,null,null,{"$f":"+INDEX('2'!AF$7:AF$24,$E79-$E$49+1)","v":":"}]
[null,null,null,null,null,null,null,null,"+ P51G_NP.3",null,null,null,null,null,null,null,null,null,null,null,null,null,null,null,null,null,null,null,null,null,null,{"$f":"+INDEX('3'!AF$7:AF$24,$E79-$E$49+1)","v":":"}]
[null,null,null,null,null,null,"EP transfers to / from Rest of the World",null,"- D3_D7_D92_D99_PAY_RW.6",{"$f":"INDEX('6'!J$187:J$204,$E79-$E$49+1)","v":":"},null,null,null,{"$f":"INDEX('6'!N$187:N$204,$E79-$E$49+1)","v":":"},null,{"$f":"INDEX('6'!P$187:P$204,$E79-$E$49+1)","v":":"},null,{"$f":"INDEX('6'!R$187:R$204,$E79-$E$49+1)","v":":"},null,{"$f":"INDEX('6'!T$187:T$204,$E79-$E$49+1)","v":":"},null,{"$f":"INDEX('6'!V$187:V$204,$E79-$E$49+1)","v":":"},null,null,null,null,null,null,null,{"$f":"INDEX('6'!AD$187:AD$204,$E79-$E$49+1)","v":":"},null,{"$f":"INDEX('6'!AF$187:AF$204,$E79-$E$49+1)","v":":"}]
[null,null,null,null,null,null,null,null,"+ D3_D7_D92_D99_REC_RW.6",{"$f":"INDEX('6'!J$205:J$222,$E79-$E$49+1)","v":":"},null,null,null,{"$f":"INDEX('6'!N$205:N$222,$E79-$E$49+1)","v":":"},null,{"$f":"INDEX('6'!P$205:P$222,$E79-$E$49+1)","v":":"},null,{"$f":"INDEX('6'!R$205:R$222,$E79-$E$49+1)","v":":"},null,{"$f":"INDEX('6'!T$205:T$222,$E79-$E$49+1)","v":":"},null,{"$f":"INDEX('6'!V$205:V$222,$E79-$E$49+1)","v":":"},null,null,null,null,null,null,null,{"$f":"INDEX('6'!AD$205:AD$222,$E79-$E$49+1)","v":":"},null,{"$f":"INDEX('6'!AF$205:AF$222,$E79-$E$49+1)","v":":"}]
[null,null,null,null,null,null,"TOTAL",null,"=SUM()",{"$f":"+IF(COUNT(J79:J82,J88:J92)=0,\":\",SUM(J79:J82,J88:J90,J92)-SUM(J91))","v":":"},null,null,null,{"$f":"+IF(COUNT(N79:N82,N88:N92)=0,\":\",SUM(N79:N82,N88:N90,N92)-SUM(N91))","v":":"},null,{"$f":"+IF(COUNT(P79:P82,P88:P92)=0,\":\",SUM(P79:P82,P88:P90,P92)-SUM(P91))","v":":"},null,{"$f":"+IF(COUNT(R79:R82,R88:R92)=0,\":\",SUM(R79:R82,R88:R90,R92)-SUM(R91))","v":":"},null,{"$f":"+IF(COUNT(T79:T82,T88:T92)=0,\":\",SUM(T79:T82,T88:T90,T92)-SUM(T91))","v":":"},null,{"$f":"+IF(COUNT(V79:V82,V88:V92)=0,\":\",SUM(V79:V82,V88:V90,V92)-SUM(V91))","v":":"},null,null,null,null,null,null,null,{"$f":"+IF(COUNT(AD79:AD82,AD88:AD92)=0,\":\",SUM(AD79:AD82,AD88:AD90,AD92)-SUM(AD91))","v":":"},null,{"$f":"+IF(COUNT(AF79:AF82,AF88:AF92)=0,\":\",SUM(AF79:AF82,AF88:AF90,AF92)-SUM(AF91))","v":":"}]
[null,null,null,null,2017,null,"Final consumption expenditure",null,"+ P3_EPS.1",{"$f":"+INDEX('1'!J$241:J$258,$E94-$E$49+1)","v":":"},null,null,null,{"$f":"+INDEX('1'!N$241:N$258,$E94-$E$49+1)","v":":"},null,{"$f":"+INDEX('1'!P$241:P$258,$E94-$E$49+1)","v":":"},null,{"$f":"+INDEX('1'!R$241:R$258,$E94-$E$49+1)","v":":"},null,{"$f":"+INDEX('1'!T$241:T$258,$E94-$E$49+1)","v":":"},null,{"$f":"+INDEX('1'!V$241:V$258,$E94-$E$49+1)","v":":"},null,null,null,null,null,null,null,{"$f":"+INDEX('1'!AD$241:AD$258,$E94-$E$49+1)","v":":"},null,{"$f":"+INDEX('1'!AF$241:AF$258,$E94-$E$49+1)","v":":"}]
[null,null,null,null,null,null,null,null,"+ P3_EPS.5",null,null,null,null,null,null,null,null,null,null,null,null,null,null,null,null,null,null,null,null,null,null,{"$f":"+INDEX('5'!AF$7:AF$24,$E94-$E$49+1)","v":":"}]
[null,null,null,null,null,null,"Intermediate consumption",null,"+ P1_ANC.3",null,null,null,null,null,null,null,null,null,null,null,null,null,null,null,null,null,null,null,null,null,null,{"$f":"+INDEX('3'!AF$133:AF$150,$E94-$E$49+1)","v":":"}]
[null,null,null,null,null,null,null,null,"+ P2",{"$f":"+IF(COUNT(J98:J102)=0,\":\",SUM(J98:J100)-SUM(J101:J102))","v":":"},null,null,null,{"$f":"+IF(COUNT(N98:N102)=0,\":\",SUM(N98:N100)-SUM(N101:N102))","v":":"},null,{"$f":"+IF(COUNT(P98:P102)=0,\":\",SUM(P98:P100)-SUM(P101:P102))","v":":"},null,{"$f":"+IF(COUNT(R98:R102)=0,\":\",SUM(R98:R100)-SUM(R101:R102))","v":":"},null,{"$f":"+IF(COUNT(T98:T102)=0,\":\",SUM(T98:T100)-SUM(T101:T102))","v":":"},null,{"$f":"+IF(COUNT(V98:V102)=0,\":\",SUM(V98:V100)-SUM(V101:V102))","v":":"},null,null,null,null,null,null,null,{"$f":"+IF(COUNT(AD98:AD102)=0,\":\",SUM(AD98:AD100)-SUM(AD101:AD102))","v":":"},null,{"$f":"+IF(COUNT(AF98:AF102)=0,\":\",SUM(AF98:AF100)-SUM(AF101:AF102))","v":":"}]
[null,null,null,null,null,null,null,null,"+ P2_EPS_EXT.1",{"$f":"+INDEX('1'!J$259:J$276,$E94-$E$49+1)","v":":"},null,null,null,{"$f":"+INDEX('1'!N$259:N$276,$E94-$E$49+1)","v":":"},null,{"$f":"+INDEX('1'!P$259:P$276,$E94-$E$49+1)","v":":"},null,{"$f":"+INDEX('1'!R$259:R$276,$E94-$E$49+1)","v":":"},null,{"$f":"+INDEX('1'!T$259:T$276,$E94-$E$49+1)","v":":"},null,{"$f":"+INDEX('1'!V$259:V$276,$E94-$E$49+1)","v":":"},null,null,null,null,null,null,null,{"$f":"+INDEX('1'!AD$259:AD$276,$E94-$E$49+1)","v":":"},null,{"$f":"+INDEX('1'!AF$259:AF$276,$E94-$E$49+1)","v":":"}]
[null,null,null,null,null,null,null,null,"+ P2_EPS_EXT.2",null,null,null,null,null,null,null,null,null,null,null,null,null,null,null,null,null,null,null,null,null,null,{"$f":"+INDEX('2'!AF$259:AF$276,$E94-$E$49+1)","v":":"}]
[null,null,null,null,null,null,null,null,"+ P2_EPS_EXT.3",null,null,null,null,null,null,null,null,null,null,null,null,null,null,null,null,null,null,null,null,null,null,{"$f":"+INDEX('3'!AF$223:AF$240,$E94-$E$49+1)","v":":"}]
[null,null,null,null,null,null,null,null,"- P2_EPS.1",{"$f":"+INDEX('1'!J$43:J$60,$E94-$E$49+1)","v":":"},null,null,null,{"$f":"+INDEX('1'!N$43:N$60,$E94-$E$49+1)","v":":"},null,{"$f":"+INDEX('1'!P$43:P$60,$E94-$E$49+1)","v":":"},null,{"$f":"+INDEX('1'!R$43:R$60,$E94-$E$49+1)","v":":"},null,{"$f":"+INDEX('1'!T$43:T$60,$E94-$E$49+1)","v":":"},null,{"$f":"+INDEX('1'!V$43:V$60,$E94-$E$49+1)","v":":"},null,null,null,null,null,null,null,{"$f":"+INDEX('1'!AD$43:AD$60,$E94-$E$49+1)","v":":"},null,{"$f":"+INDEX('1'!AF$43:AF$60,$E94-$E$49+1)","v":":"}]
[null,null,null,null,null,null,null,null,"- P2_EPS.2",null,null,null,null,null,null,null,null,null,null,null,null,null,null,null,null,null,null,null,null,null,null,{"$f":"+INDEX('2'!AF$43:AF$60,$E94-$E$49+1)","v":":"}]
[null,null,null,null,null,null,"Gross fixed capital formation and acquisition less disposals of non-financial, non-produced assets ",null,"+ P51G_NP.1",{"$f":"+INDEX('1'!J$7:J$24,$E94-$E$49+1)","v":":"},null,null,null,{"$f":"+INDEX('1'!N$7:N$24,$E94-$E$49+1)","v":":"},null,{"$f":"+INDEX('1'!P$7:P$24,$E94-$E$49+1)","v":":"},null,{"$f":"+INDEX('1'!R$7:R$24,$E94-$E$49+1)","v":":"},null,{"$f":"+INDEX('1'!T$7:T$24,$E94-$E$49+1)","v":":"},null,{"$f":"+INDEX('1'!V$7:V$24,$E94-$E$49+1)","v":":"},null,null,null,null,null,null,null,{"$f":"+INDEX('1'!AD$7:AD$24,$E94-$E$49+1)","v":":"},null,{"$f":"+INDEX('1'!AF$7:AF$24,$E94-$E$49+1)","v":":"}]
[null,null,null,null,null,null,null,null,"+ P51G_NP.2",null,null,null,null,null,null,null,null,null,null,null,null,null,null,null,null,null,null,null,null,null,null,{"$f":"+INDEX('2'!AF$7:AF$24,$E94-$E$49+1)","v":":"}]
[null,null,null,null,null,null,null,null,"+ P51G_NP.3",null,null,null,null,null,null,null,null,null,null,null,null,null,null,null,null,null,null,null,null,null,null,{"$f":"+INDEX('3'!AF$7:AF$24,$E94-$E$49+1)","v":":"}]
[null,null,null,null,null,null,"EP transfers to / from Rest of the World",null,"- D3_D7_D92_D99_PAY_RW.6",{"$f":"INDEX('6'!J$187:J$204,$E94-$E$49+1)","v":":"},null,null,null,{"$f":"INDEX('6'!N$187:N$204,$E94-$E$49+1)","v":":"},null,{"$f":"INDEX('6'!P$187:P$204,$E94-$E$49+1)","v":":"},null,{"$f":"INDEX('6'!R$187:R$204,$E94-$E$49+1)","v":":"},null,{"$f":"INDEX('6'!T$187:T$204,$E94-$E$49+1)","v":":"},null,{"$f":"INDEX('6'!V$187:V$204,$E94-$E$49+1)","v":":"},null,null,null,null,null,null,null,{"$f":"INDEX('6'!AD$187:AD$204,$E94-$E$49+1)","v":":"},null,{"$f":"INDEX('6'!AF$187:AF$204,$E94-$E$49+1)","v":":"}]
[null,null,null,null,null,null,null,null,"+ D3_D7_D92_D99_REC_RW.6",{"$f":"INDEX('6'!J$205:J$222,$E94-$E$49+1)","v":":"},null,null,null,{"$f":"INDEX('6'!N$205:N$222,$E94-$E$49+1)","v":":"},null,{"$f":"INDEX('6'!P$205:P$222,$E94-$E$49+1)","v":":"},null,{"$f":"INDEX('6'!R$205:R$222,$E94-$E$49+1)","v":":"},null,{"$f":"INDEX('6'!T$205:T$222,$E94-$E$49+1)","v":":"},null,{"$f":"INDEX('6'!V$205:V$222,$E94-$E$49+1)","v":":"},null,null,null,null,null,null,null,{"$f":"INDEX('6'!AD$205:AD$222,$E94-$E$49+1)","v":":"},null,{"$f":"INDEX('6'!AF$205:AF$222,$E94-$E$49+1)","v":":"}]
[null,null,null,null,null,null,"TOTAL",null,"=SUM()",{"$f":"+IF(COUNT(J94:J97,J103:J107)=0,\":\",SUM(J94:J97,J103:J105,J107)-SUM(J106))","v":":"},null,null,null,{"$f":"+IF(COUNT(N94:N97,N103:N107)=0,\":\",SUM(N94:N97,N103:N105,N107)-SUM(N106))","v":":"},null,{"$f":"+IF(COUNT(P94:P97,P103:P107)=0,\":\",SUM(P94:P97,P103:P105,P107)-SUM(P106))","v":":"},null,{"$f":"+IF(COUNT(R94:R97,R103:R107)=0,\":\",SUM(R94:R97,R103:R105,R107)-SUM(R106))","v":":"},null,{"$f":"+IF(COUNT(T94:T97,T103:T107)=0,\":\",SUM(T94:T97,T103:T105,T107)-SUM(T106))","v":":"},null,{"$f":"+IF(COUNT(V94:V97,V103:V107)=0,\":\",SUM(V94:V97,V103:V105,V107)-SUM(V106))","v":":"},null,null,null,null,null,null,null,{"$f":"+IF(COUNT(AD94:AD97,AD103:AD107)=0,\":\",SUM(AD94:AD97,AD103:AD105,AD107)-SUM(AD106))","v":":"},null,{"$f":"+IF(COUNT(AF94:AF97,AF103:AF107)=0,\":\",SUM(AF94:AF97,AF103:AF105,AF107)-SUM(AF106))","v":":"}]
[null,null,null,null,2018,null,"Final consumption expenditure",null,"+ P3_EPS.1",{"$f":"+INDEX('1'!J$241:J$258,$E109-$E$49+1)","v":":"},null,null,null,{"$f":"+INDEX('1'!N$241:N$258,$E109-$E$49+1)","v":":"},null,{"$f":"+INDEX('1'!P$241:P$258,$E109-$E$49+1)","v":":"},null,{"$f":"+INDEX('1'!R$241:R$258,$E109-$E$49+1)","v":":"},null,{"$f":"+INDEX('1'!T$241:T$258,$E109-$E$49+1)","v":":"},null,{"$f":"+INDEX('1'!V$241:V$258,$E109-$E$49+1)","v":":"},null,null,null,null,null,null,null,{"$f":"+INDEX('1'!AD$241:AD$258,$E109-$E$49+1)","v":":"},null,{"$f":"+INDEX('1'!AF$241:AF$258,$E109-$E$49+1)","v":":"}]
[null,null,null,null,null,null,null,null,"+ P3_EPS.5",null,null,null,null,null,null,null,null,null,null,null,null,null,null,null,null,null,null,null,null,null,null,{"$f":"+INDEX('5'!AF$7:AF$24,$E109-$E$49+1)","v":":"}]
[null,null,null,null,null,null,"Intermediate consumption",null,"+ P1_ANC.3",null,null,null,null,null,null,null,null,null,null,null,null,null,null,null,null,null,null,null,null,null,null,{"$f":"+INDEX('3'!AF$133:AF$150,$E109-$E$49+1)","v":":"}]
[null,null,null,null,null,null,null,null,"+ P2",{"$f":"+IF(COUNT(J113:J117)=0,\":\",SUM(J113:J115)-SUM(J116:J117))","v":":"},null,null,null,{"$f":"+IF(COUNT(N113:N117)=0,\":\",SUM(N113:N115)-SUM(N116:N117))","v":":"},null,{"$f":"+IF(COUNT(P113:P117)=0,\":\",SUM(P113:P115)-SUM(P116:P117))","v":":"},null,{"$f":"+IF(COUNT(R113:R117)=0,\":\",SUM(R113:R115)-SUM(R116:R117))","v":":"},null,{"$f":"+IF(COUNT(T113:T117)=0,\":\",SUM(T113:T115)-SUM(T116:T117))","v":":"},null,{"$f":"+IF(COUNT(V113:V117)=0,\":\",SUM(V113:V115)-SUM(V116:V117))","v":":"},null,null,null,null,null,null,null,{"$f":"+IF(COUNT(AD113:AD117)=0,\":\",SUM(AD113:AD115)-SUM(AD116:AD117))","v":":"},null,{"$f":"+IF(COUNT(AF113:AF117)=0,\":\",SUM(AF113:AF115)-SUM(AF116:AF117))","v":":"}]
[null,null,null,null,null,null,null,null,"+ P2_EPS_EXT.1",{"$f":"+INDEX('1'!J$259:J$276,$E109-$E$49+1)","v":":"},null,null,null,{"$f":"+INDEX('1'!N$259:N$276,$E109-$E$49+1)","v":":"},null,{"$f":"+INDEX('1'!P$259:P$276,$E109-$E$49+1)","v":":"},null,{"$f":"+INDEX('1'!R$259:R$276,$E109-$E$49+1)","v":":"},null,{"$f":"+INDEX('1'!T$259:T$276,$E109-$E$49+1)","v":":"},null,{"$f":"+INDEX('1'!V$259:V$276,$E109-$E$49+1)","v":":"},null,null,null,null,null,null,null,{"$f":"+INDEX('1'!AD$259:AD$276,$E109-$E$49+1)","v":":"},null,{"$f":"+INDEX('1'!AF$259:AF$276,$E109-$E$49+1)","v":":"}]
[null,null,null,null,null,null,null,null,"+ P2_EPS_EXT.2",null,null,null,null,null,null,null,null,null,null,null,null,null,null,null,null,null,null,null,null,null,null,{"$f":"+INDEX('2'!AF$259:AF$276,$E109-$E$49+1)","v":":"}]
[null,null,null,null,null,null,null,null,"+ P2_EPS_EXT.3",null,null,null,null,null,null,null,null,null,null,null,null,null,null,null,null,null,null,null,null,null,null,{"$f":"+INDEX('3'!AF$223:AF$240,$E109-$E$49+1)","v":":"}]
[null,null,null,null,null,null,null,null,"- P2_EPS.1",{"$f":"+INDEX('1'!J$43:J$60,$E109-$E$49+1)","v":":"},null,null,null,{"$f":"+INDEX('1'!N$43:N$60,$E109-$E$49+1)","v":":"},null,{"$f":"+INDEX('1'!P$43:P$60,$E109-$E$49+1)","v":":"},null,{"$f":"+INDEX('1'!R$43:R$60,$E109-$E$49+1)","v":":"},null,{"$f":"+INDEX('1'!T$43:T$60,$E109-$E$49+1)","v":":"},null,{"$f":"+INDEX('1'!V$43:V$60,$E109-$E$49+1)","v":":"},null,null,null,null,null,null,null,{"$f":"+INDEX('1'!AD$43:AD$60,$E109-$E$49+1)","v":":"},null,{"$f":"+INDEX('1'!AF$43:AF$60,$E109-$E$49+1)","v":":"}]
[null,null,null,null,null,null,null,null,"- P2_EPS.2",null,null,null,null,null,null,null,null,null,null,null,null,null,null,null,null,null,null,null,null,null,null,{"$f":"+INDEX('2'!AF$43:AF$60,$E109-$E$49+1)","v":":"}]
[null,null,null,null,null,null,"Gross fixed capital formation and acquisition less disposals of non-financial, non-produced assets ",null,"+ P51G_NP.1",{"$f":"+INDEX('1'!J$7:J$24,$E109-$E$49+1)","v":":"},null,null,null,{"$f":"+INDEX('1'!N$7:N$24,$E109-$E$49+1)","v":":"},null,{"$f":"+INDEX('1'!P$7:P$24,$E109-$E$49+1)","v":":"},null,{"$f":"+INDEX('1'!R$7:R$24,$E109-$E$49+1)","v":":"},null,{"$f":"+INDEX('1'!T$7:T$24,$E109-$E$49+1)","v":":"},null,{"$f":"+INDEX('1'!V$7:V$24,$E109-$E$49+1)","v":":"},null,null,null,null,null,null,null,{"$f":"+INDEX('1'!AD$7:AD$24,$E109-$E$49+1)","v":":"},null,{"$f":"+INDEX('1'!AF$7:AF$24,$E109-$E$49+1)","v":":"}]
[null,null,null,null,null,null,null,null,"+ P51G_NP.2",null,null,null,null,null,null,null,null,null,null,null,null,null,null,null,null,null,null,null,null,null,null,{"$f":"+INDEX('2'!AF$7:AF$24,$E109-$E$49+1)","v":":"}]
[null,null,null,null,null,null,null,null,"+ P51G_NP.3",null,null,null,null,null,null,null,null,null,null,null,null,null,null,null,null,null,null,null,null,null,null,{"$f":"+INDEX('3'!AF$7:AF$24,$E109-$E$49+1)","v":":"}]
[null,null,null,null,null,null,"EP transfers to / from Rest of the World",null,"- D3_D7_D92_D99_PAY_RW.6",{"$f":"INDEX('6'!J$187:J$204,$E109-$E$49+1)","v":":"},null,null,null,{"$f":"INDEX('6'!N$187:N$204,$E109-$E$49+1)","v":":"},null,{"$f":"INDEX('6'!P$187:P$204,$E109-$E$49+1)","v":":"},null,{"$f":"INDEX('6'!R$187:R$204,$E109-$E$49+1)","v":":"},null,{"$f":"INDEX('6'!T$187:T$204,$E109-$E$49+1)","v":":"},null,{"$f":"INDEX('6'!V$187:V$204,$E109-$E$49+1)","v":":"},null,null,null,null,null,null,null,{"$f":"INDEX('6'!AD$187:AD$204,$E109-$E$49+1)","v":":"},null,{"$f":"INDEX('6'!AF$187:AF$204,$E109-$E$49+1)","v":":"}]
[null,null,null,null,null,null,null,null,"+ D3_D7_D92_D99_REC_RW.6",{"$f":"INDEX('6'!J$205:J$222,$E109-$E$49+1)","v":":"},null,null,null,{"$f":"INDEX('6'!N$205:N$222,$E109-$E$49+1)","v":":"},null,{"$f":"INDEX('6'!P$205:P$222,$E109-$E$49+1)","v":":"},null,{"$f":"INDEX('6'!R$205:R$222,$E109-$E$49+1)","v":":"},null,{"$f":"INDEX('6'!T$205:T$222,$E109-$E$49+1)","v":":"},null,{"$f":"INDEX('6'!V$205:V$222,$E109-$E$49+1)","v":":"},null,null,null,null,null,null,null,{"$f":"INDEX('6'!AD$205:AD$222,$E109-$E$49+1)","v":":"},null,{"$f":"INDEX('6'!AF$205:AF$222,$E109-$E$49+1)","v":":"}]
[null,null,null,null,null,null,"TOTAL",null,"=SUM()",{"$f":"+IF(COUNT(J109:J112,J118:J122)=0,\":\",SUM(J109:J112,J118:J120,J122)-SUM(J121))","v":":"},null,null,null,{"$f":"+IF(COUNT(N109:N112,N118:N122)=0,\":\",SUM(N109:N112,N118:N120,N122)-SUM(N121))","v":":"},null,{"$f":"+IF(COUNT(P109:P112,P118:P122)=0,\":\",SUM(P109:P112,P118:P120,P122)-SUM(P121))","v":":"},null,{"$f":"+IF(COUNT(R109:R112,R118:R122)=0,\":\",SUM(R109:R112,R118:R120,R122)-SUM(R121))","v":":"},null,{"$f":"+IF(COUNT(T109:T112,T118:T122)=0,\":\",SUM(T109:T112,T118:T120,T122)-SUM(T121))","v":":"},null,{"$f":"+IF(COUNT(V109:V112,V118:V122)=0,\":\",SUM(V109:V112,V118:V120,V122)-SUM(V121))","v":":"},null,null,null,null,null,null,null,{"$f":"+IF(COUNT(AD109:AD112,AD118:AD122)=0,\":\",SUM(AD109:AD112,AD118:AD120,AD122)-SUM(AD121))","v":":"},null,{"$f":"+IF(COUNT(AF109:AF112,AF118:AF122)=0,\":\",SUM(AF109:AF112,AF118:AF120,AF122)-SUM(AF121))","v":":"}]
[null,null,null,null,2019,null,"Final consumption expenditure",null,"+ P3_EPS.1",{"$f":"+INDEX('1'!J$241:J$258,$E124-$E$49+1)","v":":"},null,null,null,{"$f":"+INDEX('1'!N$241:N$258,$E124-$E$49+1)","v":":"},null,{"$f":"+INDEX('1'!P$241:P$258,$E124-$E$49+1)","v":":"},null,{"$f":"+INDEX('1'!R$241:R$258,$E124-$E$49+1)","v":":"},null,{"$f":"+INDEX('1'!T$241:T$258,$E124-$E$49+1)","v":":"},null,{"$f":"+INDEX('1'!V$241:V$258,$E124-$E$49+1)","v":":"},null,null,null,null,null,null,null,{"$f":"+INDEX('1'!AD$241:AD$258,$E124-$E$49+1)","v":":"},null,{"$f":"+INDEX('1'!AF$241:AF$258,$E124-$E$49+1)","v":":"}]
[null,null,null,null,null,null,null,null,"+ P3_EPS.5",null,null,null,null,null,null,null,null,null,null,null,null,null,null,null,null,null,null,null,null,null,null,{"$f":"+INDEX('5'!AF$7:AF$24,$E124-$E$49+1)","v":":"}]
[null,null,null,null,null,null,"Intermediate consumption",null,"+ P1_ANC.3",null,null,null,null,null,null,null,null,null,null,null,null,null,null,null,null,null,null,null,null,null,null,{"$f":"+INDEX('3'!AF$133:AF$150,$E124-$E$49+1)","v":":"}]
[null,null,null,null,null,null,null,null,"+ P2",{"$f":"+IF(COUNT(J128:J132)=0,\":\",SUM(J128:J130)-SUM(J131:J132))","v":":"},null,null,null,{"$f":"+IF(COUNT(N128:N132)=0,\":\",SUM(N128:N130)-SUM(N131:N132))","v":":"},null,{"$f":"+IF(COUNT(P128:P132)=0,\":\",SUM(P128:P130)-SUM(P131:P132))","v":":"},null,{"$f":"+IF(COUNT(R128:R132)=0,\":\",SUM(R128:R130)-SUM(R131:R132))","v":":"},null,{"$f":"+IF(COUNT(T128:T132)=0,\":\",SUM(T128:T130)-SUM(T131:T132))","v":":"},null,{"$f":"+IF(COUNT(V128:V132)=0,\":\",SUM(V128:V130)-SUM(V131:V132))","v":":"},null,null,null,null,null,null,null,{"$f":"+IF(COUNT(AD128:AD132)=0,\":\",SUM(AD128:AD130)-SUM(AD131:AD132))","v":":"},null,{"$f":"+IF(COUNT(AF128:AF132)=0,\":\",SUM(AF128:AF130)-SUM(AF131:AF132))","v":":"}]
[null,null,null,null,null,null,null,null,"+ P2_EPS_EXT.1",{"$f":"+INDEX('1'!J$259:J$276,$E124-$E$49+1)","v":":"},null,null,null,{"$f":"+INDEX('1'!N$259:N$276,$E124-$E$49+1)","v":":"},null,{"$f":"+INDEX('1'!P$259:P$276,$E124-$E$49+1)","v":":"},null,{"$f":"+INDEX('1'!R$259:R$276,$E124-$E$49+1)","v":":"},null,{"$f":"+INDEX('1'!T$259:T$276,$E124-$E$49+1)","v":":"},null,{"$f":"+INDEX('1'!V$259:V$276,$E124-$E$49+1)","v":":"},null,null,null,null,null,null,null,{"$f":"+INDEX('1'!AD$259:AD$276,$E124-$E$49+1)","v":":"},null,{"$f":"+INDEX('1'!AF$259:AF$276,$E124-$E$49+1)","v":":"}]
[null,null,null,null,null,null,null,null,"+ P2_EPS_EXT.2",null,null,null,null,null,null,null,null,null,null,null,null,null,null,null,null,null,null,null,null,null,null,{"$f":"+INDEX('2'!AF$259:AF$276,$E124-$E$49+1)","v":":"}]
[null,null,null,null,null,null,null,null,"+ P2_EPS_EXT.3",null,null,null,null,null,null,null,null,null,null,null,null,null,null,null,null,null,null,null,null,null,null,{"$f":"+INDEX('3'!AF$223:AF$240,$E124-$E$49+1)","v":":"}]
[null,null,null,null,null,null,null,null,"- P2_EPS.1",{"$f":"+INDEX('1'!J$43:J$60,$E124-$E$49+1)","v":":"},null,null,null,{"$f":"+INDEX('1'!N$43:N$60,$E124-$E$49+1)","v":":"},null,{"$f":"+INDEX('1'!P$43:P$60,$E124-$E$49+1)","v":":"},null,{"$f":"+INDEX('1'!R$43:R$60,$E124-$E$49+1)","v":":"},null,{"$f":"+INDEX('1'!T$43:T$60,$E124-$E$49+1)","v":":"},null,{"$f":"+INDEX('1'!V$43:V$60,$E124-$E$49+1)","v":":"},null,null,null,null,null,null,null,{"$f":"+INDEX('1'!AD$43:AD$60,$E124-$E$49+1)","v":":"},null,{"$f":"+INDEX('1'!AF$43:AF$60,$E124-$E$49+1)","v":":"}]
[null,null,null,null,null,null,null,null,"- P2_EPS.2",null,null,null,null,null,null,null,null,null,null,null,null,null,null,null,null,null,null,null,null,null,null,{"$f":"+INDEX('2'!AF$43:AF$60,$E124-$E$49+1)","v":":"}]
[null,null,null,null,null,null,"Gross fixed capital formation and acquisition less disposals of non-financial, non-produced assets ",null,"+ P51G_NP.1",{"$f":"+INDEX('1'!J$7:J$24,$E124-$E$49+1)","v":":"},null,null,null,{"$f":"+INDEX('1'!N$7:N$24,$E124-$E$49+1)","v":":"},null,{"$f":"+INDEX('1'!P$7:P$24,$E124-$E$49+1)","v":":"},null,{"$f":"+INDEX('1'!R$7:R$24,$E124-$E$49+1)","v":":"},null,{"$f":"+INDEX('1'!T$7:T$24,$E124-$E$49+1)","v":":"},null,{"$f":"+INDEX('1'!V$7:V$24,$E124-$E$49+1)","v":":"},null,null,null,null,null,null,null,{"$f":"+INDEX('1'!AD$7:AD$24,$E124-$E$49+1)","v":":"},null,{"$f":"+INDEX('1'!AF$7:AF$24,$E124-$E$49+1)","v":":"}]
[null,null,null,null,null,null,null,null,"+ P51G_NP.2",null,null,null,null,null,null,null,null,null,null,null,null,null,null,null,null,null,null,null,null,null,null,{"$f":"+INDEX('2'!AF$7:AF$24,$E124-$E$49+1)","v":":"}]
[null,null,null,null,null,null,null,null,"+ P51G_NP.3",null,null,null,null,null,null,null,null,null,null,null,null,null,null,null,null,null,null,null,null,null,null,{"$f":"+INDEX('3'!AF$7:AF$24,$E124-$E$49+1)","v":":"}]
[null,null,null,null,null,null,"EP transfers to / from Rest of the World",null,"- D3_D7_D92_D99_PAY_RW.6",{"$f":"INDEX('6'!J$187:J$204,$E124-$E$49+1)","v":":"},null,null,null,{"$f":"INDEX('6'!N$187:N$204,$E124-$E$49+1)","v":":"},null,{"$f":"INDEX('6'!P$187:P$204,$E124-$E$49+1)","v":":"},null,{"$f":"INDEX('6'!R$187:R$204,$E124-$E$49+1)","v":":"},null,{"$f":"INDEX('6'!T$187:T$204,$E124-$E$49+1)","v":":"},null,{"$f":"INDEX('6'!V$187:V$204,$E124-$E$49+1)","v":":"},null,null,null,null,null,null,null,{"$f":"INDEX('6'!AD$187:AD$204,$E124-$E$49+1)","v":":"},null,{"$f":"INDEX('6'!AF$187:AF$204,$E124-$E$49+1)","v":":"}]
[null,null,null,null,null,null,null,null,"+ D3_D7_D92_D99_REC_RW.6",{"$f":"INDEX('6'!J$205:J$222,$E124-$E$49+1)","v":":"},null,null,null,{"$f":"INDEX('6'!N$205:N$222,$E124-$E$49+1)","v":":"},null,{"$f":"INDEX('6'!P$205:P$222,$E124-$E$49+1)","v":":"},null,{"$f":"INDEX('6'!R$205:R$222,$E124-$E$49+1)","v":":"},null,{"$f":"INDEX('6'!T$205:T$222,$E124-$E$49+1)","v":":"},null,{"$f":"INDEX('6'!V$205:V$222,$E124-$E$49+1)","v":":"},null,null,null,null,null,null,null,{"$f":"INDEX('6'!AD$205:AD$222,$E124-$E$49+1)","v":":"},null,{"$f":"INDEX('6'!AF$205:AF$222,$E124-$E$49+1)","v":":"}]
[null,null,null,null,null,null,"TOTAL",null,"=SUM()",{"$f":"+IF(COUNT(J124:J127,J133:J137)=0,\":\",SUM(J124:J127,J133:J135,J137)-SUM(J136))","v":":"},null,null,null,{"$f":"+IF(COUNT(N124:N127,N133:N137)=0,\":\",SUM(N124:N127,N133:N135,N137)-SUM(N136))","v":":"},null,{"$f":"+IF(COUNT(P124:P127,P133:P137)=0,\":\",SUM(P124:P127,P133:P135,P137)-SUM(P136))","v":":"},null,{"$f":"+IF(COUNT(R124:R127,R133:R137)=0,\":\",SUM(R124:R127,R133:R135,R137)-SUM(R136))","v":":"},null,{"$f":"+IF(COUNT(T124:T127,T133:T137)=0,\":\",SUM(T124:T127,T133:T135,T137)-SUM(T136))","v":":"},null,{"$f":"+IF(COUNT(V124:V127,V133:V137)=0,\":\",SUM(V124:V127,V133:V135,V137)-SUM(V136))","v":":"},null,null,null,null,null,null,null,{"$f":"+IF(COUNT(AD124:AD127,AD133:AD137)=0,\":\",SUM(AD124:AD127,AD133:AD135,AD137)-SUM(AD136))","v":":"},null,{"$f":"+IF(COUNT(AF124:AF127,AF133:AF137)=0,\":\",SUM(AF124:AF127,AF133:AF135,AF137)-SUM(AF136))","v":":"}]
[null,null,null,null,2020,null,"Final consumption expenditure",null,"+ P3_EPS.1",{"$f":"+INDEX('1'!J$241:J$258,$E139-$E$49+1)","v":":"},null,null,null,{"$f":"+INDEX('1'!N$241:N$258,$E139-$E$49+1)","v":":"},null,{"$f":"+INDEX('1'!P$241:P$258,$E139-$E$49+1)","v":":"},null,{"$f":"+INDEX('1'!R$241:R$258,$E139-$E$49+1)","v":":"},null,{"$f":"+INDEX('1'!T$241:T$258,$E139-$E$49+1)","v":":"},null,{"$f":"+INDEX('1'!V$241:V$258,$E139-$E$49+1)","v":":"},null,null,null,null,null,null,null,{"$f":"+INDEX('1'!AD$241:AD$258,$E139-$E$49+1)","v":":"},null,{"$f":"+INDEX('1'!AF$241:AF$258,$E139-$E$49+1)","v":":"}]
[null,null,null,null,null,null,null,null,"+ P3_EPS.5",null,null,null,null,null,null,null,null,null,null,null,null,null,null,null,null,null,null,null,null,null,null,{"$f":"+INDEX('5'!AF$7:AF$24,$E139-$E$49+1)","v":":"}]
[null,null,null,null,null,null,"Intermediate consumption",null,"+ P1_ANC.3",null,null,null,null,null,null,null,null,null,null,null,null,null,null,null,null,null,null,null,null,null,null,{"$f":"+INDEX('3'!AF$133:AF$150,$E139-$E$49+1)","v":":"}]
[null,null,null,null,null,null,null,null,"+ P2",{"$f":"+IF(COUNT(J143:J147)=0,\":\",SUM(J143:J145)-SUM(J146:J147))","v":":"},null,null,null,{"$f":"+IF(COUNT(N143:N147)=0,\":\",SUM(N143:N145)-SUM(N146:N147))","v":":"},null,{"$f":"+IF(COUNT(P143:P147)=0,\":\",SUM(P143:P145)-SUM(P146:P147))","v":":"},null,{"$f":"+IF(COUNT(R143:R147)=0,\":\",SUM(R143:R145)-SUM(R146:R147))","v":":"},null,{"$f":"+IF(COUNT(T143:T147)=0,\":\",SUM(T143:T145)-SUM(T146:T147))","v":":"},null,{"$f":"+IF(COUNT(V143:V147)=0,\":\",SUM(V143:V145)-SUM(V146:V147))","v":":"},null,null,null,null,null,null,null,{"$f":"+IF(COUNT(AD143:AD147)=0,\":\",SUM(AD143:AD145)-SUM(AD146:AD147))","v":":"},null,{"$f":"+IF(COUNT(AF143:AF147)=0,\":\",SUM(AF143:AF145)-SUM(AF146:AF147))","v":":"}]
[null,null,null,null,null,null,null,null,"+ P2_EPS_EXT.1",{"$f":"+INDEX('1'!J$259:J$276,$E139-$E$49+1)","v":":"},null,null,null,{"$f":"+INDEX('1'!N$259:N$276,$E139-$E$49+1)","v":":"},null,{"$f":"+INDEX('1'!P$259:P$276,$E139-$E$49+1)","v":":"},null,{"$f":"+INDEX('1'!R$259:R$276,$E139-$E$49+1)","v":":"},null,{"$f":"+INDEX('1'!T$259:T$276,$E139-$E$49+1)","v":":"},null,{"$f":"+INDEX('1'!V$259:V$276,$E139-$E$49+1)","v":":"},null,null,null,null,null,null,null,{"$f":"+INDEX('1'!AD$259:AD$276,$E139-$E$49+1)","v":":"},null,{"$f":"+INDEX('1'!AF$259:AF$276,$E139-$E$49+1)","v":":"}]
[null,null,null,null,null,null,null,null,"+ P2_EPS_EXT.2",null,null,null,null,null,null,null,null,null,null,null,null,null,null,null,null,null,null,null,null,null,null,{"$f":"+INDEX('2'!AF$259:AF$276,$E139-$E$49+1)","v":":"}]
[null,null,null,null,null,null,null,null,"+ P2_EPS_EXT.3",null,null,null,null,null,null,null,null,null,null,null,null,null,null,null,null,null,null,null,null,null,null,{"$f":"+INDEX('3'!AF$223:AF$240,$E139-$E$49+1)","v":":"}]
[null,null,null,null,null,null,null,null,"- P2_EPS.1",{"$f":"+INDEX('1'!J$43:J$60,$E139-$E$49+1)","v":":"},null,null,null,{"$f":"+INDEX('1'!N$43:N$60,$E139-$E$49+1)","v":":"},null,{"$f":"+INDEX('1'!P$43:P$60,$E139-$E$49+1)","v":":"},null,{"$f":"+INDEX('1'!R$43:R$60,$E139-$E$49+1)","v":":"},null,{"$f":"+INDEX('1'!T$43:T$60,$E139-$E$49+1)","v":":"},null,{"$f":"+INDEX('1'!V$43:V$60,$E139-$E$49+1)","v":":"},null,null,null,null,null,null,null,{"$f":"+INDEX('1'!AD$43:AD$60,$E139-$E$49+1)","v":":"},null,{"$f":"+INDEX('1'!AF$43:AF$60,$E139-$E$49+1)","v":":"}]
[null,null,null,null,null,null,null,null,"- P2_EPS.2",null,null,null,null,null,null,null,null,null,null,null,null,null,null,null,null,null,null,null,null,null,null,{"$f":"+INDEX('2'!AF$43:AF$60,$E139-$E$49+1)","v":":"}]
[null,null,null,null,null,null,"Gross fixed capital formation and acquisition less disposals of non-financial, non-produced assets ",null,"+ P51G_NP.1",{"$f":"+INDEX('1'!J$7:J$24,$E139-$E$49+1)","v":":"},null,null,null,{"$f":"+INDEX('1'!N$7:N$24,$E139-$E$49+1)","v":":"},null,{"$f":"+INDEX('1'!P$7:P$24,$E139-$E$49+1)","v":":"},null,{"$f":"+INDEX('1'!R$7:R$24,$E139-$E$49+1)","v":":"},null,{"$f":"+INDEX('1'!T$7:T$24,$E139-$E$49+1)","v":":"},null,{"$f":"+INDEX('1'!V$7:V$24,$E139-$E$49+1)","v":":"},null,null,null,null,null,null,null,{"$f":"+INDEX('1'!AD$7:AD$24,$E139-$E$49+1)","v":":"},null,{"$f":"+INDEX('1'!AF$7:AF$24,$E139-$E$49+1)","v":":"}]
[null,null,null,null,null,null,null,null,"+ P51G_NP.2",null,null,null,null,null,null,null,null,null,null,null,null,null,null,null,null,null,null,null,null,null,null,{"$f":"+INDEX('2'!AF$7:AF$24,$E139-$E$49+1)","v":":"}]
[null,null,null,null,null,null,null,null,"+ P51G_NP.3",null,null,null,null,null,null,null,null,null,null,null,null,null,null,null,null,null,null,null,null,null,null,{"$f":"+INDEX('3'!AF$7:AF$24,$E139-$E$49+1)","v":":"}]
[null,null,null,null,null,null,"EP transfers to / from Rest of the World",null,"- D3_D7_D92_D99_PAY_RW.6",{"$f":"INDEX('6'!J$187:J$204,$E139-$E$49+1)","v":":"},null,null,null,{"$f":"INDEX('6'!N$187:N$204,$E139-$E$49+1)","v":":"},null,{"$f":"INDEX('6'!P$187:P$204,$E139-$E$49+1)","v":":"},null,{"$f":"INDEX('6'!R$187:R$204,$E139-$E$49+1)","v":":"},null,{"$f":"INDEX('6'!T$187:T$204,$E139-$E$49+1)","v":":"},null,{"$f":"INDEX('6'!V$187:V$204,$E139-$E$49+1)","v":":"},null,null,null,null,null,null,null,{"$f":"INDEX('6'!AD$187:AD$204,$E139-$E$49+1)","v":":"},null,{"$f":"INDEX('6'!AF$187:AF$204,$E139-$E$49+1)","v":":"}]
[null,null,null,null,null,null,null,null,"+ D3_D7_D92_D99_REC_RW.6",{"$f":"INDEX('6'!J$205:J$222,$E139-$E$49+1)","v":":"},null,null,null,{"$f":"INDEX('6'!N$205:N$222,$E139-$E$49+1)","v":":"},null,{"$f":"INDEX('6'!P$205:P$222,$E139-$E$49+1)","v":":"},null,{"$f":"INDEX('6'!R$205:R$222,$E139-$E$49+1)","v":":"},null,{"$f":"INDEX('6'!T$205:T$222,$E139-$E$49+1)","v":":"},null,{"$f":"INDEX('6'!V$205:V$222,$E139-$E$49+1)","v":":"},null,null,null,null,null,null,null,{"$f":"INDEX('6'!AD$205:AD$222,$E139-$E$49+1)","v":":"},null,{"$f":"INDEX('6'!AF$205:AF$222,$E139-$E$49+1)","v":":"}]
[null,null,null,null,null,null,"TOTAL",null,"=SUM()",{"$f":"+IF(COUNT(J139:J142,J148:J152)=0,\":\",SUM(J139:J142,J148:J150,J152)-SUM(J151))","v":":"},null,null,null,{"$f":"+IF(COUNT(N139:N142,N148:N152)=0,\":\",SUM(N139:N142,N148:N150,N152)-SUM(N151))","v":":"},null,{"$f":"+IF(COUNT(P139:P142,P148:P152)=0,\":\",SUM(P139:P142,P148:P150,P152)-SUM(P151))","v":":"},null,{"$f":"+IF(COUNT(R139:R142,R148:R152)=0,\":\",SUM(R139:R142,R148:R150,R152)-SUM(R151))","v":":"},null,{"$f":"+IF(COUNT(T139:T142,T148:T152)=0,\":\",SUM(T139:T142,T148:T150,T152)-SUM(T151))","v":":"},null,{"$f":"+IF(COUNT(V139:V142,V148:V152)=0,\":\",SUM(V139:V142,V148:V150,V152)-SUM(V151))","v":":"},null,null,null,null,null,null,null,{"$f":"+IF(COUNT(AD139:AD142,AD148:AD152)=0,\":\",SUM(AD139:AD142,AD148:AD150,AD152)-SUM(AD151))","v":":"},null,{"$f":"+IF(COUNT(AF139:AF142,AF148:AF152)=0,\":\",SUM(AF139:AF142,AF148:AF150,AF152)-SUM(AF151))","v":":"}]
[null,null,null,null,2021,null,"Final consumption expenditure",null,"+ P3_EPS.1",{"$f":"+INDEX('1'!J$241:J$258,$E154-$E$49+1)","v":":"},null,null,null,{"$f":"+INDEX('1'!N$241:N$258,$E154-$E$49+1)","v":":"},null,{"$f":"+INDEX('1'!P$241:P$258,$E154-$E$49+1)","v":":"},null,{"$f":"+INDEX('1'!R$241:R$258,$E154-$E$49+1)","v":":"},null,{"$f":"+INDEX('1'!T$241:T$258,$E154-$E$49+1)","v":":"},null,{"$f":"+INDEX('1'!V$241:V$258,$E154-$E$49+1)","v":":"},null,null,null,null,null,null,null,{"$f":"+INDEX('1'!AD$241:AD$258,$E154-$E$49+1)","v":":"},null,{"$f":"+INDEX('1'!AF$241:AF$258,$E154-$E$49+1)","v":":"}]
[null,null,null,null,null,null,null,null,"+ P3_EPS.5",null,null,null,null,null,null,null,null,null,null,null,null,null,null,null,null,null,null,null,null,null,null,{"$f":"+INDEX('5'!AF$7:AF$24,$E154-$E$49+1)","v":":"}]
[null,null,null,null,null,null,"Intermediate consumption",null,"+ P1_ANC.3",null,null,null,null,null,null,null,null,null,null,null,null,null,null,null,null,null,null,null,null,null,null,{"$f":"+INDEX('3'!AF$133:AF$150,$E154-$E$49+1)","v":":"}]
[null,null,null,null,null,null,null,null,"+ P2",{"$f":"+IF(COUNT(J158:J162)=0,\":\",SUM(J158:J160)-SUM(J161:J162))","v":":"},null,null,null,{"$f":"+IF(COUNT(N158:N162)=0,\":\",SUM(N158:N160)-SUM(N161:N162))","v":":"},null,{"$f":"+IF(COUNT(P158:P162)=0,\":\",SUM(P158:P160)-SUM(P161:P162))","v":":"},null,{"$f":"+IF(COUNT(R158:R162)=0,\":\",SUM(R158:R160)-SUM(R161:R162))","v":":"},null,{"$f":"+IF(COUNT(T158:T162)=0,\":\",SUM(T158:T160)-SUM(T161:T162))","v":":"},null,{"$f":"+IF(COUNT(V158:V162)=0,\":\",SUM(V158:V160)-SUM(V161:V162))","v":":"},null,null,null,null,null,null,null,{"$f":"+IF(COUNT(AD158:AD162)=0,\":\",SUM(AD158:AD160)-SUM(AD161:AD162))","v":":"},null,{"$f":"+IF(COUNT(AF158:AF162)=0,\":\",SUM(AF158:AF160)-SUM(AF161:AF162))","v":":"}]
[null,null,null,null,null,null,null,null,"+ P2_EPS_EXT.1",{"$f":"+INDEX('1'!J$259:J$276,$E154-$E$49+1)","v":":"},null,null,null,{"$f":"+INDEX('1'!N$259:N$276,$E154-$E$49+1)","v":":"},null,{"$f":"+INDEX('1'!P$259:P$276,$E154-$E$49+1)","v":":"},null,{"$f":"+INDEX('1'!R$259:R$276,$E154-$E$49+1)","v":":"},null,{"$f":"+INDEX('1'!T$259:T$276,$E154-$E$49+1)","v":":"},null,{"$f":"+INDEX('1'!V$259:V$276,$E154-$E$49+1)","v":":"},null,null,null,null,null,null,null,{"$f":"+INDEX('1'!AD$259:AD$276,$E154-$E$49+1)","v":":"},null,{"$f":"+INDEX('1'!AF$259:AF$276,$E154-$E$49+1)","v":":"}]
[null,null,null,null,null,null,null,null,"+ P2_EPS_EXT.2",null,null,null,null,null,null,null,null,null,null,null,null,null,null,null,null,null,null,null,null,null,null,{"$f":"+INDEX('2'!AF$259:AF$276,$E154-$E$49+1)","v":":"}]
[null,null,null,null,null,null,null,null,"+ P2_EPS_EXT.3",null,null,null,null,null,null,null,null,null,null,null,null,null,null,null,null,null,null,null,null,null,null,{"$f":"+INDEX('3'!AF$223:AF$240,$E154-$E$49+1)","v":":"}]
[null,null,null,null,null,null,null,null,"- P2_EPS.1",{"$f":"+INDEX('1'!J$43:J$60,$E154-$E$49+1)","v":":"},null,null,null,{"$f":"+INDEX('1'!N$43:N$60,$E154-$E$49+1)","v":":"},null,{"$f":"+INDEX('1'!P$43:P$60,$E154-$E$49+1)","v":":"},null,{"$f":"+INDEX('1'!R$43:R$60,$E154-$E$49+1)","v":":"},null,{"$f":"+INDEX('1'!T$43:T$60,$E154-$E$49+1)","v":":"},null,{"$f":"+INDEX('1'!V$43:V$60,$E154-$E$49+1)","v":":"},null,null,null,null,null,null,null,{"$f":"+INDEX('1'!AD$43:AD$60,$E154-$E$49+1)","v":":"},null,{"$f":"+INDEX('1'!AF$43:AF$60,$E154-$E$49+1)","v":":"}]
[null,null,null,null,null,null,null,null,"- P2_EPS.2",null,null,null,null,null,null,null,null,null,null,null,null,null,null,null,null,null,null,null,null,null,null,{"$f":"+INDEX('2'!AF$43:AF$60,$E154-$E$49+1)","v":":"}]
[null,null,null,null,null,null,"Gross fixed capital formation and acquisition less disposals of non-financial, non-produced assets ",null,"+ P51G_NP.1",{"$f":"+INDEX('1'!J$7:J$24,$E154-$E$49+1)","v":":"},null,null,null,{"$f":"+INDEX('1'!N$7:N$24,$E154-$E$49+1)","v":":"},null,{"$f":"+INDEX('1'!P$7:P$24,$E154-$E$49+1)","v":":"},null,{"$f":"+INDEX('1'!R$7:R$24,$E154-$E$49+1)","v":":"},null,{"$f":"+INDEX('1'!T$7:T$24,$E154-$E$49+1)","v":":"},null,{"$f":"+INDEX('1'!V$7:V$24,$E154-$E$49+1)","v":":"},null,null,null,null,null,null,null,{"$f":"+INDEX('1'!AD$7:AD$24,$E154-$E$49+1)","v":":"},null,{"$f":"+INDEX('1'!AF$7:AF$24,$E154-$E$49+1)","v":":"}]
[null,null,null,null,null,null,null,null,"+ P51G_NP.2",null,null,null,null,null,null,null,null,null,null,null,null,null,null,null,null,null,null,null,null,null,null,{"$f":"+INDEX('2'!AF$7:AF$24,$E154-$E$49+1)","v":":"}]
[null,null,null,null,null,null,null,null,"+ P51G_NP.3",null,null,null,null,null,null,null,null,null,null,null,null,null,null,null,null,null,null,null,null,null,null,{"$f":"+INDEX('3'!AF$7:AF$24,$E154-$E$49+1)","v":":"}]
[null,null,null,null,null,null,"EP transfers to / from Rest of the World",null,"- D3_D7_D92_D99_PAY_RW.6",{"$f":"INDEX('6'!J$187:J$204,$E154-$E$49+1)","v":":"},null,null,null,{"$f":"INDEX('6'!N$187:N$204,$E154-$E$49+1)","v":":"},null,{"$f":"INDEX('6'!P$187:P$204,$E154-$E$49+1)","v":":"},null,{"$f":"INDEX('6'!R$187:R$204,$E154-$E$49+1)","v":":"},null,{"$f":"INDEX('6'!T$187:T$204,$E154-$E$49+1)","v":":"},null,{"$f":"INDEX('6'!V$187:V$204,$E154-$E$49+1)","v":":"},null,null,null,null,null,null,null,{"$f":"INDEX('6'!AD$187:AD$204,$E154-$E$49+1)","v":":"},null,{"$f":"INDEX('6'!AF$187:AF$204,$E154-$E$49+1)","v":":"}]
[null,null,null,null,null,null,null,null,"+ D3_D7_D92_D99_REC_RW.6",{"$f":"INDEX('6'!J$205:J$222,$E154-$E$49+1)","v":":"},null,null,null,{"$f":"INDEX('6'!N$205:N$222,$E154-$E$49+1)","v":":"},null,{"$f":"INDEX('6'!P$205:P$222,$E154-$E$49+1)","v":":"},null,{"$f":"INDEX('6'!R$205:R$222,$E154-$E$49+1)","v":":"},null,{"$f":"INDEX('6'!T$205:T$222,$E154-$E$49+1)","v":":"},null,{"$f":"INDEX('6'!V$205:V$222,$E154-$E$49+1)","v":":"},null,null,null,null,null,null,null,{"$f":"INDEX('6'!AD$205:AD$222,$E154-$E$49+1)","v":":"},null,{"$f":"INDEX('6'!AF$205:AF$222,$E154-$E$49+1)","v":":"}]
[null,null,null,null,null,null,"TOTAL",null,"=SUM()",{"$f":"+IF(COUNT(J154:J157,J163:J167)=0,\":\",SUM(J154:J157,J163:J165,J167)-SUM(J166))","v":":"},null,null,null,{"$f":"+IF(COUNT(N154:N157,N163:N167)=0,\":\",SUM(N154:N157,N163:N165,N167)-SUM(N166))","v":":"},null,{"$f":"+IF(COUNT(P154:P157,P163:P167)=0,\":\",SUM(P154:P157,P163:P165,P167)-SUM(P166))","v":":"},null,{"$f":"+IF(COUNT(R154:R157,R163:R167)=0,\":\",SUM(R154:R157,R163:R165,R167)-SUM(R166))","v":":"},null,{"$f":"+IF(COUNT(T154:T157,T163:T167)=0,\":\",SUM(T154:T157,T163:T165,T167)-SUM(T166))","v":":"},null,{"$f":"+IF(COUNT(V154:V157,V163:V167)=0,\":\",SUM(V154:V157,V163:V165,V167)-SUM(V166))","v":":"},null,null,null,null,null,null,null,{"$f":"+IF(COUNT(AD154:AD157,AD163:AD167)=0,\":\",SUM(AD154:AD157,AD163:AD165,AD167)-SUM(AD166))","v":":"},null,{"$f":"+IF(COUNT(AF154:AF157,AF163:AF167)=0,\":\",SUM(AF154:AF157,AF163:AF165,AF167)-SUM(AF166))","v":":"}]
[null,null,null,null,2022,null,"Final consumption expenditure",null,"+ P3_EPS.1",{"$f":"+INDEX('1'!J$241:J$258,$E169-$E$49+1)","v":":"},null,null,null,{"$f":"+INDEX('1'!N$241:N$258,$E169-$E$49+1)","v":":"},null,{"$f":"+INDEX('1'!P$241:P$258,$E169-$E$49+1)","v":":"},null,{"$f":"+INDEX('1'!R$241:R$258,$E169-$E$49+1)","v":":"},null,{"$f":"+INDEX('1'!T$241:T$258,$E169-$E$49+1)","v":":"},null,{"$f":"+INDEX('1'!V$241:V$258,$E169-$E$49+1)","v":":"},null,null,null,null,null,null,null,{"$f":"+INDEX('1'!AD$241:AD$258,$E169-$E$49+1)","v":":"},null,{"$f":"+INDEX('1'!AF$241:AF$258,$E169-$E$49+1)","v":":"}]
[null,null,null,null,null,null,null,null,"+ P3_EPS.5",null,null,null,null,null,null,null,null,null,null,null,null,null,null,null,null,null,null,null,null,null,null,{"$f":"+INDEX('5'!AF$7:AF$24,$E169-$E$49+1)","v":":"}]
[null,null,null,null,null,null,"Intermediate consumption",null,"+ P1_ANC.3",null,null,null,null,null,null,null,null,null,null,null,null,null,null,null,null,null,null,null,null,null,null,{"$f":"+INDEX('3'!AF$133:AF$150,$E169-$E$49+1)","v":":"}]
[null,null,null,null,null,null,null,null,"+ P2",{"$f":"+IF(COUNT(J173:J177)=0,\":\",SUM(J173:J175)-SUM(J176:J177))","v":":"},null,null,null,{"$f":"+IF(COUNT(N173:N177)=0,\":\",SUM(N173:N175)-SUM(N176:N177))","v":":"},null,{"$f":"+IF(COUNT(P173:P177)=0,\":\",SUM(P173:P175)-SUM(P176:P177))","v":":"},null,{"$f":"+IF(COUNT(R173:R177)=0,\":\",SUM(R173:R175)-SUM(R176:R177))","v":":"},null,{"$f":"+IF(COUNT(T173:T177)=0,\":\",SUM(T173:T175)-SUM(T176:T177))","v":":"},null,{"$f":"+IF(COUNT(V173:V177)=0,\":\",SUM(V173:V175)-SUM(V176:V177))","v":":"},null,null,null,null,null,null,null,{"$f":"+IF(COUNT(AD173:AD177)=0,\":\",SUM(AD173:AD175)-SUM(AD176:AD177))","v":":"},null,{"$f":"+IF(COUNT(AF173:AF177)=0,\":\",SUM(AF173:AF175)-SUM(AF176:AF177))","v":":"}]
[null,null,null,null,null,null,null,null,"+ P2_EPS_EXT.1",{"$f":"+INDEX('1'!J$259:J$276,$E169-$E$49+1)","v":":"},null,null,null,{"$f":"+INDEX('1'!N$259:N$276,$E169-$E$49+1)","v":":"},null,{"$f":"+INDEX('1'!P$259:P$276,$E169-$E$49+1)","v":":"},null,{"$f":"+INDEX('1'!R$259:R$276,$E169-$E$49+1)","v":":"},null,{"$f":"+INDEX('1'!T$259:T$276,$E169-$E$49+1)","v":":"},null,{"$f":"+INDEX('1'!V$259:V$276,$E169-$E$49+1)","v":":"},null,null,null,null,null,null,null,{"$f":"+INDEX('1'!AD$259:AD$276,$E169-$E$49+1)","v":":"},null,{"$f":"+INDEX('1'!AF$259:AF$276,$E169-$E$49+1)","v":":"}]
[null,null,null,null,null,null,null,null,"+ P2_EPS_EXT.2",null,null,null,null,null,null,null,null,null,null,null,null,null,null,null,null,null,null,null,null,null,null,{"$f":"+INDEX('2'!AF$259:AF$276,$E169-$E$49+1)","v":":"}]
[null,null,null,null,null,null,null,null,"+ P2_EPS_EXT.3",null,null,null,null,null,null,null,null,null,null,null,null,null,null,null,null,null,null,null,null,null,null,{"$f":"+INDEX('3'!AF$223:AF$240,$E169-$E$49+1)","v":":"}]
[null,null,null,null,null,null,null,null,"- P2_EPS.1",{"$f":"+INDEX('1'!J$241:J$258,$E169-$E$49+1)","v":":"},null,null,null,{"$f":"+INDEX('1'!N$241:N$258,$E169-$E$49+1)","v":":"},null,{"$f":"+INDEX('1'!P$241:P$258,$E169-$E$49+1)","v":":"},null,{"$f":"+INDEX('1'!R$241:R$258,$E169-$E$49+1)","v":":"},null,{"$f":"+INDEX('1'!T$241:T$258,$E169-$E$49+1)","v":":"},null,{"$f":"+INDEX('1'!V$241:V$258,$E169-$E$49+1)","v":":"},null,null,null,null,null,null,null,{"$f":"+INDEX('1'!AD$241:AD$258,$E169-$E$49+1)","v":":"},null,{"$f":"+INDEX('1'!AF$241:AF$258,$E169-$E$49+1)","v":":"}]
[null,null,null,null,null,null,null,null,"- P2_EPS.2",null,null,null,null,null,null,null,null,null,null,null,null,null,null,null,null,null,null,null,null,null,null,{"$f":"+INDEX('2'!AF$43:AF$60,$E169-$E$49+1)","v":":"}]
[null,null,null,null,null,null,"Gross fixed capital formation and acquisition less disposals of non-financial, non-produced assets ",null,"+ P51G_NP.1",{"$f":"+INDEX('1'!J$7:J$24,$E169-$E$49+1)","v":":"},null,null,null,{"$f":"+INDEX('1'!N$7:N$24,$E169-$E$49+1)","v":":"},null,{"$f":"+INDEX('1'!P$7:P$24,$E169-$E$49+1)","v":":"},null,{"$f":"+INDEX('1'!R$7:R$24,$E169-$E$49+1)","v":":"},null,{"$f":"+INDEX('1'!T$7:T$24,$E169-$E$49+1)","v":":"},null,{"$f":"+INDEX('1'!V$7:V$24,$E169-$E$49+1)","v":":"},null,null,null,null,null,null,null,{"$f":"+INDEX('1'!AD$7:AD$24,$E169-$E$49+1)","v":":"},null,{"$f":"+INDEX('1'!AF$7:AF$24,$E169-$E$49+1)","v":":"}]
[null,null,null,null,null,null,null,null,"+ P51G_NP.2",null,null,null,null,null,null,null,null,null,null,null,null,null,null,null,null,null,null,null,null,null,null,{"$f":"+INDEX('2'!AF$7:AF$24,$E169-$E$49+1)","v":":"}]
[null,null,null,null,null,null,null,null,"+ P51G_NP.3",null,null,null,null,null,null,null,null,null,null,null,null,null,null,null,null,null,null,null,null,null,null,{"$f":"+INDEX('3'!AF$7:AF$24,$E169-$E$49+1)","v":":"}]
[null,null,null,null,null,null,"EP transfers to / from Rest of the World",null,"- D3_D7_D92_D99_PAY_RW.6",{"$f":"INDEX('6'!J$187:J$204,$E169-$E$49+1)","v":":"},null,null,null,{"$f":"INDEX('6'!N$187:N$204,$E169-$E$49+1)","v":":"},null,{"$f":"INDEX('6'!P$187:P$204,$E169-$E$49+1)","v":":"},null,{"$f":"INDEX('6'!R$187:R$204,$E169-$E$49+1)","v":":"},null,{"$f":"INDEX('6'!T$187:T$204,$E169-$E$49+1)","v":":"},null,{"$f":"INDEX('6'!V$187:V$204,$E169-$E$49+1)","v":":"},null,null,null,null,null,null,null,{"$f":"INDEX('6'!AD$187:AD$204,$E169-$E$49+1)","v":":"},null,{"$f":"INDEX('6'!AF$187:AF$204,$E169-$E$49+1)","v":":"}]
[null,null,null,null,null,null,null,null,"+ D3_D7_D92_D99_REC_RW.6",{"$f":"INDEX('6'!J$205:J$222,$E169-$E$49+1)","v":":"},null,null,null,{"$f":"INDEX('6'!N$205:N$222,$E169-$E$49+1)","v":":"},null,{"$f":"INDEX('6'!P$205:P$222,$E169-$E$49+1)","v":":"},null,{"$f":"INDEX('6'!R$205:R$222,$E169-$E$49+1)","v":":"},null,{"$f":"INDEX('6'!T$205:T$222,$E169-$E$49+1)","v":":"},null,{"$f":"INDEX('6'!V$205:V$222,$E169-$E$49+1)","v":":"},null,null,null,null,null,null,null,{"$f":"INDEX('6'!AD$205:AD$222,$E169-$E$49+1)","v":":"},null,{"$f":"INDEX('6'!AF$205:AF$222,$E169-$E$49+1)","v":":"}]
[null,null,null,null,null,null,"TOTAL",null,"=SUM()",{"$f":"+IF(COUNT(J169:J172,J178:J182)=0,\":\",SUM(J169:J172,J178:J180,J182)-SUM(J181))","v":":"},null,null,null,{"$f":"+IF(COUNT(N169:N172,N178:N182)=0,\":\",SUM(N169:N172,N178:N180,N182)-SUM(N181))","v":":"},null,{"$f":"+IF(COUNT(P169:P172,P178:P182)=0,\":\",SUM(P169:P172,P178:P180,P182)-SUM(P181))","v":":"},null,{"$f":"+IF(COUNT(R169:R172,R178:R182)=0,\":\",SUM(R169:R172,R178:R180,R182)-SUM(R181))","v":":"},null,{"$f":"+IF(COUNT(T169:T172,T178:T182)=0,\":\",SUM(T169:T172,T178:T180,T182)-SUM(T181))","v":":"},null,{"$f":"+IF(COUNT(V169:V172,V178:V182)=0,\":\",SUM(V169:V172,V178:V180,V182)-SUM(V181))","v":":"},null,null,null,null,null,null,null,{"$f":"+IF(COUNT(AD169:AD172,AD178:AD182)=0,\":\",SUM(AD169:AD172,AD178:AD180,AD182)-SUM(AD181))","v":":"},null,{"$f":"+IF(COUNT(AF169:AF172,AF178:AF182)=0,\":\",SUM(AF169:AF172,AF178:AF180,AF182)-SUM(AF181))","v":":"}]
[null,null,null,null,2023,null,"Final consumption expenditure",null,"+ P3_EPS.1",{"$f":"+INDEX('1'!J$241:J$258,$E184-$E$49+1)","v":":"},null,null,null,{"$f":"+INDEX('1'!N$241:N$258,$E184-$E$49+1)","v":":"},null,{"$f":"+INDEX('1'!P$241:P$258,$E184-$E$49+1)","v":":"},null,{"$f":"+INDEX('1'!R$241:R$258,$E184-$E$49+1)","v":":"},null,{"$f":"+INDEX('1'!T$241:T$258,$E184-$E$49+1)","v":":"},null,{"$f":"+INDEX('1'!V$241:V$258,$E184-$E$49+1)","v":":"},null,null,null,null,null,null,null,{"$f":"+INDEX('1'!AD$241:AD$258,$E184-$E$49+1)","v":":"},null,{"$f":"+INDEX('1'!AF$241:AF$258,$E184-$E$49+1)","v":":"}]
[null,null,null,null,null,null,null,null,"+ P3_EPS.5",null,null,null,null,null,null,null,null,null,null,null,null,null,null,null,null,null,null,null,null,null,null,{"$f":"+INDEX('5'!AF$7:AF$24,$E184-$E$49+1)","v":":"}]
[null,null,null,null,null,null,"Intermediate consumption",null,"+ P1_ANC.3",null,null,null,null,null,null,null,null,null,null,null,null,null,null,null,null,null,null,null,null,null,null,{"$f":"+INDEX('3'!AF$133:AF$150,$E184-$E$49+1)","v":":"}]
[null,null,null,null,null,null,null,null,"+ P2",{"$f":"+IF(COUNT(J188:J192)=0,\":\",SUM(J188:J190)-SUM(J191:J192))","v":":"},null,null,null,{"$f":"+IF(COUNT(N188:N192)=0,\":\",SUM(N188:N190)-SUM(N191:N192))","v":":"},null,{"$f":"+IF(COUNT(P188:P192)=0,\":\",SUM(P188:P190)-SUM(P191:P192))","v":":"},null,{"$f":"+IF(COUNT(R188:R192)=0,\":\",SUM(R188:R190)-SUM(R191:R192))","v":":"},null,{"$f":"+IF(COUNT(T188:T192)=0,\":\",SUM(T188:T190)-SUM(T191:T192))","v":":"},null,{"$f":"+IF(COUNT(V188:V192)=0,\":\",SUM(V188:V190)-SUM(V191:V192))","v":":"},null,null,null,null,null,null,null,{"$f":"+IF(COUNT(AD188:AD192)=0,\":\",SUM(AD188:AD190)-SUM(AD191:AD192))","v":":"},null,{"$f":"+IF(COUNT(AF188:AF192)=0,\":\",SUM(AF188:AF190)-SUM(AF191:AF192))","v":":"}]
[null,null,null,null,null,null,null,null,"+ P2_EPS_EXT.1",{"$f":"+INDEX('1'!J$259:J$276,$E184-$E$49+1)","v":":"},null,null,null,{"$f":"+INDEX('1'!N$259:N$276,$E184-$E$49+1)","v":":"},null,{"$f":"+INDEX('1'!P$259:P$276,$E184-$E$49+1)","v":":"},null,{"$f":"+INDEX('1'!R$259:R$276,$E184-$E$49+1)","v":":"},null,{"$f":"+INDEX('1'!T$259:T$276,$E184-$E$49+1)","v":":"},null,{"$f":"+INDEX('1'!V$259:V$276,$E184-$E$49+1)","v":":"},null,null,null,null,null,null,null,{"$f":"+INDEX('1'!AD$259:AD$276,$E184-$E$49+1)","v":":"},null,{"$f":"+INDEX('1'!AF$259:AF$276,$E184-$E$49+1)","v":":"}]
[null,null,null,null,null,null,null,null,"+ P2_EPS_EXT.2",null,null,null,null,null,null,null,null,null,null,null,null,null,null,null,null,null,null,null,null,null,null,{"$f":"+INDEX('2'!AF$259:AF$276,$E184-$E$49+1)","v":":"}]
[null,null,null,null,null,null,null,null,"+ P2_EPS_EXT.3",null,null,null,null,null,null,null,null,null,null,null,null,null,null,null,null,null,null,null,null,null,null,{"$f":"+INDEX('3'!AF$223:AF$240,$E184-$E$49+1)","v":":"}]
[null,null,null,null,null,null,null,null,"- P2_EPS.1",{"$f":"+INDEX('1'!J$241:J$258,$E184-$E$49+1)","v":":"},null,null,null,{"$f":"+INDEX('1'!N$241:N$258,$E184-$E$49+1)","v":":"},null,{"$f":"+INDEX('1'!P$241:P$258,$E184-$E$49+1)","v":":"},null,{"$f":"+INDEX('1'!R$241:R$258,$E184-$E$49+1)","v":":"},null,{"$f":"+INDEX('1'!T$241:T$258,$E184-$E$49+1)","v":":"},null,{"$f":"+INDEX('1'!V$241:V$258,$E184-$E$49+1)","v":":"},null,null,null,null,null,null,null,{"$f":"+INDEX('1'!AD$241:AD$258,$E184-$E$49+1)","v":":"},null,{"$f":"+INDEX('1'!AF$241:AF$258,$E184-$E$49+1)","v":":"}]
[null,null,null,null,null,null,null,null,"- P2_EPS.2",null,null,null,null,null,null,null,null,null,null,null,null,null,null,null,null,null,null,null,null,null,null,{"$f":"+INDEX('2'!AF$43:AF$60,$E184-$E$49+1)","v":":"}]
[null,null,null,null,null,null,"Gross fixed capital formation and acquisition less disposals of non-financial, non-produced assets ",null,"+ P51G_NP.1",{"$f":"+INDEX('1'!J$7:J$24,$E184-$E$49+1)","v":":"},null,null,null,{"$f":"+INDEX('1'!N$7:N$24,$E184-$E$49+1)","v":":"},null,{"$f":"+INDEX('1'!P$7:P$24,$E184-$E$49+1)","v":":"},null,{"$f":"+INDEX('1'!R$7:R$24,$E184-$E$49+1)","v":":"},null,{"$f":"+INDEX('1'!T$7:T$24,$E184-$E$49+1)","v":":"},null,{"$f":"+INDEX('1'!V$7:V$24,$E184-$E$49+1)","v":":"},null,null,null,null,null,null,null,{"$f":"+INDEX('1'!AD$7:AD$24,$E184-$E$49+1)","v":":"},null,{"$f":"+INDEX('1'!AF$7:AF$24,$E184-$E$49+1)","v":":"}]
[null,null,null,null,null,null,null,null,"+ P51G_NP.2",null,null,null,null,null,null,null,null,null,null,null,null,null,null,null,null,null,null,null,null,null,null,{"$f":"+INDEX('2'!AF$7:AF$24,$E184-$E$49+1)","v":":"}]
[null,null,null,null,null,null,null,null,"+ P51G_NP.3",null,null,null,null,null,null,null,null,null,null,null,null,null,null,null,null,null,null,null,null,null,null,{"$f":"+INDEX('3'!AF$7:AF$24,$E184-$E$49+1)","v":":"}]
[null,null,null,null,null,null,"EP transfers to / from Rest of the World",null,"- D3_D7_D92_D99_PAY_RW.6",{"$f":"INDEX('6'!J$187:J$204,$E184-$E$49+1)","v":":"},null,null,null,{"$f":"INDEX('6'!N$187:N$204,$E184-$E$49+1)","v":":"},null,{"$f":"INDEX('6'!P$187:P$204,$E184-$E$49+1)","v":":"},null,{"$f":"INDEX('6'!R$187:R$204,$E184-$E$49+1)","v":":"},null,{"$f":"INDEX('6'!T$187:T$204,$E184-$E$49+1)","v":":"},null,{"$f":"INDEX('6'!V$187:V$204,$E184-$E$49+1)","v":":"},null,null,null,null,null,null,null,{"$f":"INDEX('6'!AD$187:AD$204,$E184-$E$49+1)","v":":"},null,{"$f":"INDEX('6'!AF$187:AF$204,$E184-$E$49+1)","v":":"}]
[null,null,null,null,null,null,null,null,"+ D3_D7_D92_D99_REC_RW.6",{"$f":"INDEX('6'!J$205:J$222,$E184-$E$49+1)","v":":"},null,null,null,{"$f":"INDEX('6'!N$205:N$222,$E184-$E$49+1)","v":":"},null,{"$f":"INDEX('6'!P$205:P$222,$E184-$E$49+1)","v":":"},null,{"$f":"INDEX('6'!R$205:R$222,$E184-$E$49+1)","v":":"},null,{"$f":"INDEX('6'!T$205:T$222,$E184-$E$49+1)","v":":"},null,{"$f":"INDEX('6'!V$205:V$222,$E184-$E$49+1)","v":":"},null,null,null,null,null,null,null,{"$f":"INDEX('6'!AD$205:AD$222,$E184-$E$49+1)","v":":"},null,{"$f":"INDEX('6'!AF$205:AF$222,$E184-$E$49+1)","v":":"}]
[null,null,null,null,null,null,"TOTAL",null,"=SUM()",{"$f":"+IF(COUNT(J184:J187,J193:J197)=0,\":\",SUM(J184:J187,J193:J195,J197)-SUM(J196))","v":":"},null,null,null,{"$f":"+IF(COUNT(N184:N187,N193:N197)=0,\":\",SUM(N184:N187,N193:N195,N197)-SUM(N196))","v":":"},null,{"$f":"+IF(COUNT(P184:P187,P193:P197)=0,\":\",SUM(P184:P187,P193:P195,P197)-SUM(P196))","v":":"},null,{"$f":"+IF(COUNT(R184:R187,R193:R197)=0,\":\",SUM(R184:R187,R193:R195,R197)-SUM(R196))","v":":"},null,{"$f":"+IF(COUNT(T184:T187,T193:T197)=0,\":\",SUM(T184:T187,T193:T195,T197)-SUM(T196))","v":":"},null,{"$f":"+IF(COUNT(V184:V187,V193:V197)=0,\":\",SUM(V184:V187,V193:V195,V197)-SUM(V196))","v":":"},null,null,null,null,null,null,null,{"$f":"+IF(COUNT(AD184:AD187,AD193:AD197)=0,\":\",SUM(AD184:AD187,AD193:AD195,AD197)-SUM(AD196))","v":":"},null,{"$f":"+IF(COUNT(AF184:AF187,AF193:AF197)=0,\":\",SUM(AF184:AF187,AF193:AF195,AF197)-SUM(AF196))","v":":"}]
[null,null,null,null,2024,null,"Final consumption expenditure",null,"+ P3_EPS.1",{"$f":"+INDEX('1'!J$241:J$258,$E199-$E$49+1)","v":":"},null,null,null,{"$f":"+INDEX('1'!N$241:N$258,$E199-$E$49+1)","v":":"},null,{"$f":"+INDEX('1'!P$241:P$258,$E199-$E$49+1)","v":":"},null,{"$f":"+INDEX('1'!R$241:R$258,$E199-$E$49+1)","v":":"},null,{"$f":"+INDEX('1'!T$241:T$258,$E199-$E$49+1)","v":":"},null,{"$f":"+INDEX('1'!V$241:V$258,$E199-$E$49+1)","v":":"},null,null,null,null,null,null,null,{"$f":"+INDEX('1'!AD$241:AD$258,$E199-$E$49+1)","v":":"},null,{"$f":"+INDEX('1'!AF$241:AF$258,$E199-$E$49+1)","v":":"}]
[null,null,null,null,null,null,null,null,"+ P3_EPS.5",null,null,null,null,null,null,null,null,null,null,null,null,null,null,null,null,null,null,null,null,null,null,{"$f":"+INDEX('5'!AF$7:AF$24,$E199-$E$49+1)","v":":"}]
[null,null,null,null,null,null,"Intermediate consumption",null,"+ P1_ANC.3",null,null,null,null,null,null,null,null,null,null,null,null,null,null,null,null,null,null,null,null,null,null,{"$f":"+INDEX('3'!AF$133:AF$150,$E199-$E$49+1)","v":":"}]
[null,null,null,null,null,null,null,null,"+ P2",{"$f":"+IF(COUNT(J203:J207)=0,\":\",SUM(J203:J205)-SUM(J206:J207))","v":":"},null,null,null,{"$f":"+IF(COUNT(N203:N207)=0,\":\",SUM(N203:N205)-SUM(N206:N207))","v":":"},null,{"$f":"+IF(COUNT(P203:P207)=0,\":\",SUM(P203:P205)-SUM(P206:P207))","v":":"},null,{"$f":"+IF(COUNT(R203:R207)=0,\":\",SUM(R203:R205)-SUM(R206:R207))","v":":"},null,{"$f":"+IF(COUNT(T203:T207)=0,\":\",SUM(T203:T205)-SUM(T206:T207))","v":":"},null,{"$f":"+IF(COUNT(V203:V207)=0,\":\",SUM(V203:V205)-SUM(V206:V207))","v":":"},null,null,null,null,null,null,null,{"$f":"+IF(COUNT(AD203:AD207)=0,\":\",SUM(AD203:AD205)-SUM(AD206:AD207))","v":":"},null,{"$f":"+IF(COUNT(AF203:AF207)=0,\":\",SUM(AF203:AF205)-SUM(AF206:AF207))","v":":"}]
[null,null,null,null,null,null,null,null,"+ P2_EPS_EXT.1",{"$f":"+INDEX('1'!J$259:J$276,$E199-$E$49+1)","v":":"},null,null,null,{"$f":"+INDEX('1'!N$259:N$276,$E199-$E$49+1)","v":":"},null,{"$f":"+INDEX('1'!P$259:P$276,$E199-$E$49+1)","v":":"},null,{"$f":"+INDEX('1'!R$259:R$276,$E199-$E$49+1)","v":":"},null,{"$f":"+INDEX('1'!T$259:T$276,$E199-$E$49+1)","v":":"},null,{"$f":"+INDEX('1'!V$259:V$276,$E199-$E$49+1)","v":":"},null,null,null,null,null,null,null,{"$f":"+INDEX('1'!AD$259:AD$276,$E199-$E$49+1)","v":":"},null,{"$f":"+INDEX('1'!AF$259:AF$276,$E199-$E$49+1)","v":":"}]
[null,null,null,null,null,null,null,null,"+ P2_EPS_EXT.2",null,null,null,null,null,null,null,null,null,null,null,null,null,null,null,null,null,null,null,null,null,null,{"$f":"+INDEX('2'!AF$259:AF$276,$E199-$E$49+1)","v":":"}]
[null,null,null,null,null,null,null,null,"+ P2_EPS_EXT.3",null,null,null,null,null,null,null,null,null,null,null,null,null,null,null,null,null,null,null,null,null,null,{"$f":"+INDEX('3'!AF$223:AF$240,$E199-$E$49+1)","v":":"}]
[null,null,null,null,null,null,null,null,"- P2_EPS.1",{"$f":"+INDEX('1'!J$241:J$258,$E199-$E$49+1)","v":":"},null,null,null,{"$f":"+INDEX('1'!N$241:N$258,$E199-$E$49+1)","v":":"},null,{"$f":"+INDEX('1'!P$241:P$258,$E199-$E$49+1)","v":":"},null,{"$f":"+INDEX('1'!R$241:R$258,$E199-$E$49+1)","v":":"},null,{"$f":"+INDEX('1'!T$241:T$258,$E199-$E$49+1)","v":":"},null,{"$f":"+INDEX('1'!V$241:V$258,$E199-$E$49+1)","v":":"},null,null,null,null,null,null,null,{"$f":"+INDEX('1'!AD$241:AD$258,$E199-$E$49+1)","v":":"},null,{"$f":"+INDEX('1'!AF$241:AF$258,$E199-$E$49+1)","v":":"}]
[null,null,null,null,null,null,null,null,"- P2_EPS.2",null,null,null,null,null,null,null,null,null,null,null,null,null,null,null,null,null,null,null,null,null,null,{"$f":"+INDEX('2'!AF$43:AF$60,$E199-$E$49+1)","v":":"}]
[null,null,null,null,null,null,"Gross fixed capital formation and acquisition less disposals of non-financial, non-produced assets ",null,"+ P51G_NP.1",{"$f":"+INDEX('1'!J$7:J$24,$E199-$E$49+1)","v":":"},null,null,null,{"$f":"+INDEX('1'!N$7:N$24,$E199-$E$49+1)","v":":"},null,{"$f":"+INDEX('1'!P$7:P$24,$E199-$E$49+1)","v":":"},null,{"$f":"+INDEX('1'!R$7:R$24,$E199-$E$49+1)","v":":"},null,{"$f":"+INDEX('1'!T$7:T$24,$E199-$E$49+1)","v":":"},null,{"$f":"+INDEX('1'!V$7:V$24,$E199-$E$49+1)","v":":"},null,null,null,null,null,null,null,{"$f":"+INDEX('1'!AD$7:AD$24,$E199-$E$49+1)","v":":"},null,{"$f":"+INDEX('1'!AF$7:AF$24,$E199-$E$49+1)","v":":"}]
[null,null,null,null,null,null,null,null,"+ P51G_NP.2",null,null,null,null,null,null,null,null,null,null,null,null,null,null,null,null,null,null,null,null,null,null,{"$f":"+INDEX('2'!AF$7:AF$24,$E199-$E$49+1)","v":":"}]
[null,null,null,null,null,null,null,null,"+ P51G_NP.3",null,null,null,null,null,null,null,null,null,null,null,null,null,null,null,null,null,null,null,null,null,null,{"$f":"+INDEX('3'!AF$7:AF$24,$E199-$E$49+1)","v":":"}]
[null,null,null,null,null,null,"EP transfers to / from Rest of the World",null,"- D3_D7_D92_D99_PAY_RW.6",{"$f":"INDEX('6'!J$187:J$204,$E199-$E$49+1)","v":":"},null,null,null,{"$f":"INDEX('6'!N$187:N$204,$E199-$E$49+1)","v":":"},null,{"$f":"INDEX('6'!P$187:P$204,$E199-$E$49+1)","v":":"},null,{"$f":"INDEX('6'!R$187:R$204,$E199-$E$49+1)","v":":"},null,{"$f":"INDEX('6'!T$187:T$204,$E199-$E$49+1)","v":":"},null,{"$f":"INDEX('6'!V$187:V$204,$E199-$E$49+1)","v":":"},null,null,null,null,null,null,null,{"$f":"INDEX('6'!AD$187:AD$204,$E199-$E$49+1)","v":":"},null,{"$f":"INDEX('6'!AF$187:AF$204,$E199-$E$49+1)","v":":"}]
[null,null,null,null,null,null,null,null,"+ D3_D7_D92_D99_REC_RW.6",{"$f":"INDEX('6'!J$205:J$222,$E199-$E$49+1)","v":":"},null,null,null,{"$f":"INDEX('6'!N$205:N$222,$E199-$E$49+1)","v":":"},null,{"$f":"INDEX('6'!P$205:P$222,$E199-$E$49+1)","v":":"},null,{"$f":"INDEX('6'!R$205:R$222,$E199-$E$49+1)","v":":"},null,{"$f":"INDEX('6'!T$205:T$222,$E199-$E$49+1)","v":":"},null,{"$f":"INDEX('6'!V$205:V$222,$E199-$E$49+1)","v":":"},null,null,null,null,null,null,null,{"$f":"INDEX('6'!AD$205:AD$222,$E199-$E$49+1)","v":":"},null,{"$f":"INDEX('6'!AF$205:AF$222,$E199-$E$49+1)","v":":"}]
[null,null,null,null,null,null,"TOTAL",null,"=SUM()",{"$f":"+IF(COUNT(J199:J202,J208:J212)=0,\":\",SUM(J199:J202,J208:J210,J212)-SUM(J211))","v":":"},null,null,null,{"$f":"+IF(COUNT(N199:N202,N208:N212)=0,\":\",SUM(N199:N202,N208:N210,N212)-SUM(N211))","v":":"},null,{"$f":"+IF(COUNT(P199:P202,P208:P212)=0,\":\",SUM(P199:P202,P208:P210,P212)-SUM(P211))","v":":"},null,{"$f":"+IF(COUNT(R199:R202,R208:R212)=0,\":\",SUM(R199:R202,R208:R210,R212)-SUM(R211))","v":":"},null,{"$f":"+IF(COUNT(T199:T202,T208:T212)=0,\":\",SUM(T199:T202,T208:T210,T212)-SUM(T211))","v":":"},null,{"$f":"+IF(COUNT(V199:V202,V208:V212)=0,\":\",SUM(V199:V202,V208:V210,V212)-SUM(V211))","v":":"},null,null,null,null,null,null,null,{"$f":"+IF(COUNT(AD199:AD202,AD208:AD212)=0,\":\",SUM(AD199:AD202,AD208:AD210,AD212)-SUM(AD211))","v":":"},null,{"$f":"+IF(COUNT(AF199:AF202,AF208:AF212)=0,\":\",SUM(AF199:AF202,AF208:AF210,AF212)-SUM(AF211))","v":":"}]
[null,null,null,null,2025,null,"Final consumption expenditure",null,"+ P3_EPS.1",{"$f":"+INDEX('1'!J$241:J$258,$E214-$E$49+1)","v":":"},null,null,null,{"$f":"+INDEX('1'!N$241:N$258,$E214-$E$49+1)","v":":"},null,{"$f":"+INDEX('1'!P$241:P$258,$E214-$E$49+1)","v":":"},null,{"$f":"+INDEX('1'!R$241:R$258,$E214-$E$49+1)","v":":"},null,{"$f":"+INDEX('1'!T$241:T$258,$E214-$E$49+1)","v":":"},null,{"$f":"+INDEX('1'!V$241:V$258,$E214-$E$49+1)","v":":"},null,null,null,null,null,null,null,{"$f":"+INDEX('1'!AD$241:AD$258,$E214-$E$49+1)","v":":"},null,{"$f":"+INDEX('1'!AF$241:AF$258,$E214-$E$49+1)","v":":"}]
[null,null,null,null,null,null,null,null,"+ P3_EPS.5",null,null,null,null,null,null,null,null,null,null,null,null,null,null,null,null,null,null,null,null,null,null,{"$f":"+INDEX('5'!AF$7:AF$24,$E214-$E$49+1)","v":":"}]
[null,null,null,null,null,null,"Intermediate consumption",null,"+ P1_ANC.3",null,null,null,null,null,null,null,null,null,null,null,null,null,null,null,null,null,null,null,null,null,null,{"$f":"+INDEX('3'!AF$133:AF$150,$E214-$E$49+1)","v":":"}]
[null,null,null,null,null,null,null,null,"+ P2",{"$f":"+IF(COUNT(J218:J222)=0,\":\",SUM(J218:J220)-SUM(J221:J222))","v":":"},null,null,null,{"$f":"+IF(COUNT(N218:N222)=0,\":\",SUM(N218:N220)-SUM(N221:N222))","v":":"},null,{"$f":"+IF(COUNT(P218:P222)=0,\":\",SUM(P218:P220)-SUM(P221:P222))","v":":"},null,{"$f":"+IF(COUNT(R218:R222)=0,\":\",SUM(R218:R220)-SUM(R221:R222))","v":":"},null,{"$f":"+IF(COUNT(T218:T222)=0,\":\",SUM(T218:T220)-SUM(T221:T222))","v":":"},null,{"$f":"+IF(COUNT(V218:V222)=0,\":\",SUM(V218:V220)-SUM(V221:V222))","v":":"},null,null,null,null,null,null,null,{"$f":"+IF(COUNT(AD218:AD222)=0,\":\",SUM(AD218:AD220)-SUM(AD221:AD222))","v":":"},null,{"$f":"+IF(COUNT(AF218:AF222)=0,\":\",SUM(AF218:AF220)-SUM(AF221:AF222))","v":":"}]
[null,null,null,null,null,null,null,null,"+ P2_EPS_EXT.1",{"$f":"+INDEX('1'!J$259:J$276,$E214-$E$49+1)","v":":"},null,null,null,{"$f":"+INDEX('1'!N$259:N$276,$E214-$E$49+1)","v":":"},null,{"$f":"+INDEX('1'!P$259:P$276,$E214-$E$49+1)","v":":"},null,{"$f":"+INDEX('1'!R$259:R$276,$E214-$E$49+1)","v":":"},null,{"$f":"+INDEX('1'!T$259:T$276,$E214-$E$49+1)","v":":"},null,{"$f":"+INDEX('1'!V$259:V$276,$E214-$E$49+1)","v":":"},null,null,null,null,null,null,null,{"$f":"+INDEX('1'!AD$259:AD$276,$E214-$E$49+1)","v":":"},null,{"$f":"+INDEX('1'!AF$259:AF$276,$E214-$E$49+1)","v":":"}]
[null,null,null,null,null,null,null,null,"+ P2_EPS_EXT.2",null,null,null,null,null,null,null,null,null,null,null,null,null,null,null,null,null,null,null,null,null,null,{"$f":"+INDEX('2'!AF$259:AF$276,$E214-$E$49+1)","v":":"}]
[null,null,null,null,null,null,null,null,"+ P2_EPS_EXT.3",null,null,null,null,null,null,null,null,null,null,null,null,null,null,null,null,null,null,null,null,null,null,{"$f":"+INDEX('3'!AF$223:AF$240,$E214-$E$49+1)","v":":"}]
[null,null,null,null,null,null,null,null,"- P2_EPS.1",{"$f":"+INDEX('1'!J$241:J$258,$E214-$E$49+1)","v":":"},null,null,null,{"$f":"+INDEX('1'!N$241:N$258,$E214-$E$49+1)","v":":"},null,{"$f":"+INDEX('1'!P$241:P$258,$E214-$E$49+1)","v":":"},null,{"$f":"+INDEX('1'!R$241:R$258,$E214-$E$49+1)","v":":"},null,{"$f":"+INDEX('1'!T$241:T$258,$E214-$E$49+1)","v":":"},null,{"$f":"+INDEX('1'!V$241:V$258,$E214-$E$49+1)","v":":"},null,null,null,null,null,null,null,{"$f":"+INDEX('1'!AD$241:AD$258,$E214-$E$49+1)","v":":"},null,{"$f":"+INDEX('1'!AF$241:AF$258,$E214-$E$49+1)","v":":"}]
[null,null,null,null,null,null,null,null,"- P2_EPS.2",null,null,null,null,null,null,null,null,null,null,null,null,null,null,null,null,null,null,null,null,null,null,{"$f":"+INDEX('2'!AF$43:AF$60,$E214-$E$49+1)","v":":"}]
[null,null,null,null,null,null,"Gross fixed capital formation and acquisition less disposals of non-financial, non-produced assets ",null,"+ P51G_NP.1",{"$f":"+INDEX('1'!J$7:J$24,$E214-$E$49+1)","v":":"},null,null,null,{"$f":"+INDEX('1'!N$7:N$24,$E214-$E$49+1)","v":":"},null,{"$f":"+INDEX('1'!P$7:P$24,$E214-$E$49+1)","v":":"},null,{"$f":"+INDEX('1'!R$7:R$24,$E214-$E$49+1)","v":":"},null,{"$f":"+INDEX('1'!T$7:T$24,$E214-$E$49+1)","v":":"},null,{"$f":"+INDEX('1'!V$7:V$24,$E214-$E$49+1)","v":":"},null,null,null,null,null,null,null,{"$f":"+INDEX('1'!AD$7:AD$24,$E214-$E$49+1)","v":":"},null,{"$f":"+INDEX('1'!AF$7:AF$24,$E214-$E$49+1)","v":":"}]
[null,null,null,null,null,null,null,null,"+ P51G_NP.2",null,null,null,null,null,null,null,null,null,null,null,null,null,null,null,null,null,null,null,null,null,null,{"$f":"+INDEX('2'!AF$7:AF$24,$E214-$E$49+1)","v":":"}]
[null,null,null,null,null,null,null,null,"+ P51G_NP.3",null,null,null,null,null,null,null,null,null,null,null,null,null,null,null,null,null,null,null,null,null,null,{"$f":"+INDEX('3'!AF$7:AF$24,$E214-$E$49+1)","v":":"}]
[null,null,null,null,null,null,"EP transfers to / from Rest of the World",null,"- D3_D7_D92_D99_PAY_RW.6",{"$f":"INDEX('6'!J$187:J$204,$E214-$E$49+1)","v":":"},null,null,null,{"$f":"INDEX('6'!N$187:N$204,$E214-$E$49+1)","v":":"},null,{"$f":"INDEX('6'!P$187:P$204,$E214-$E$49+1)","v":":"},null,{"$f":"INDEX('6'!R$187:R$204,$E214-$E$49+1)","v":":"},null,{"$f":"INDEX('6'!T$187:T$204,$E214-$E$49+1)","v":":"},null,{"$f":"INDEX('6'!V$187:V$204,$E214-$E$49+1)","v":":"},null,null,null,null,null,null,null,{"$f":"INDEX('6'!AD$187:AD$204,$E214-$E$49+1)","v":":"},null,{"$f":"INDEX('6'!AF$187:AF$204,$E214-$E$49+1)","v":":"}]
[null,null,null,null,null,null,null,null,"+ D3_D7_D92_D99_REC_RW.6",{"$f":"INDEX('6'!J$205:J$222,$E214-$E$49+1)","v":":"},null,null,null,{"$f":"INDEX('6'!N$205:N$222,$E214-$E$49+1)","v":":"},null,{"$f":"INDEX('6'!P$205:P$222,$E214-$E$49+1)","v":":"},null,{"$f":"INDEX('6'!R$205:R$222,$E214-$E$49+1)","v":":"},null,{"$f":"INDEX('6'!T$205:T$222,$E214-$E$49+1)","v":":"},null,{"$f":"INDEX('6'!V$205:V$222,$E214-$E$49+1)","v":":"},null,null,null,null,null,null,null,{"$f":"INDEX('6'!AD$205:AD$222,$E214-$E$49+1)","v":":"},null,{"$f":"INDEX('6'!AF$205:AF$222,$E214-$E$49+1)","v":":"}]
[null,null,null,null,null,null,"TOTAL",null,"=SUM()",{"$f":"+IF(COUNT(J214:J217,J223:J227)=0,\":\",SUM(J214:J217,J223:J225,J227)-SUM(J226))","v":":"},null,null,null,{"$f":"+IF(COUNT(N214:N217,N223:N227)=0,\":\",SUM(N214:N217,N223:N225,N227)-SUM(N226))","v":":"},null,{"$f":"+IF(COUNT(P214:P217,P223:P227)=0,\":\",SUM(P214:P217,P223:P225,P227)-SUM(P226))","v":":"},null,{"$f":"+IF(COUNT(R214:R217,R223:R227)=0,\":\",SUM(R214:R217,R223:R225,R227)-SUM(R226))","v":":"},null,{"$f":"+IF(COUNT(T214:T217,T223:T227)=0,\":\",SUM(T214:T217,T223:T225,T227)-SUM(T226))","v":":"},null,{"$f":"+IF(COUNT(V214:V217,V223:V227)=0,\":\",SUM(V214:V217,V223:V225,V227)-SUM(V226))","v":":"},null,null,null,null,null,null,null,{"$f":"+IF(COUNT(AD214:AD217,AD223:AD227)=0,\":\",SUM(AD214:AD217,AD223:AD225,AD227)-SUM(AD226))","v":":"},null,{"$f":"+IF(COUNT(AF214:AF217,AF223:AF227)=0,\":\",SUM(AF214:AF217,AF223:AF225,AF227)-SUM(AF226))","v":":"}]
[null,null,null,null,2026,null,"Final consumption expenditure",null,"+ P3_EPS.1",{"$f":"+INDEX('1'!J$241:J$258,$E229-$E$49+1)","v":":"},null,null,null,{"$f":"+INDEX('1'!N$241:N$258,$E229-$E$49+1)","v":":"},null,{"$f":"+INDEX('1'!P$241:P$258,$E229-$E$49+1)","v":":"},null,{"$f":"+INDEX('1'!R$241:R$258,$E229-$E$49+1)","v":":"},null,{"$f":"+INDEX('1'!T$241:T$258,$E229-$E$49+1)","v":":"},null,{"$f":"+INDEX('1'!V$241:V$258,$E229-$E$49+1)","v":":"},null,null,null,null,null,null,null,{"$f":"+INDEX('1'!AD$241:AD$258,$E229-$E$49+1)","v":":"},null,{"$f":"+INDEX('1'!AF$241:AF$258,$E229-$E$49+1)","v":":"}]
[null,null,null,null,null,null,null,null,"+ P3_EPS.5",null,null,null,null,null,null,null,null,null,null,null,null,null,null,null,null,null,null,null,null,null,null,{"$f":"+INDEX('5'!AF$7:AF$24,$E229-$E$49+1)","v":":"}]
[null,null,null,null,null,null,"Intermediate consumption",null,"+ P1_ANC.3",null,null,null,null,null,null,null,null,null,null,null,null,null,null,null,null,null,null,null,null,null,null,{"$f":"+INDEX('3'!AF$133:AF$150,$E229-$E$49+1)","v":":"}]
[null,null,null,null,null,null,null,null,"+ P2",{"$f":"+IF(COUNT(J233:J237)=0,\":\",SUM(J233:J235)-SUM(J236:J237))","v":":"},null,null,null,{"$f":"+IF(COUNT(N233:N237)=0,\":\",SUM(N233:N235)-SUM(N236:N237))","v":":"},null,{"$f":"+IF(COUNT(P233:P237)=0,\":\",SUM(P233:P235)-SUM(P236:P237))","v":":"},null,{"$f":"+IF(COUNT(R233:R237)=0,\":\",SUM(R233:R235)-SUM(R236:R237))","v":":"},null,{"$f":"+IF(COUNT(T233:T237)=0,\":\",SUM(T233:T235)-SUM(T236:T237))","v":":"},null,{"$f":"+IF(COUNT(V233:V237)=0,\":\",SUM(V233:V235)-SUM(V236:V237))","v":":"},null,null,null,null,null,null,null,{"$f":"+IF(COUNT(AD233:AD237)=0,\":\",SUM(AD233:AD235)-SUM(AD236:AD237))","v":":"},null,{"$f":"+IF(COUNT(AF233:AF237)=0,\":\",SUM(AF233:AF235)-SUM(AF236:AF237))","v":":"}]
[null,null,null,null,null,null,null,null,"+ P2_EPS_EXT.1",{"$f":"+INDEX('1'!J$259:J$276,$E229-$E$49+1)","v":":"},null,null,null,{"$f":"+INDEX('1'!N$259:N$276,$E229-$E$49+1)","v":":"},null,{"$f":"+INDEX('1'!P$259:P$276,$E229-$E$49+1)","v":":"},null,{"$f":"+INDEX('1'!R$259:R$276,$E229-$E$49+1)","v":":"},null,{"$f":"+INDEX('1'!T$259:T$276,$E229-$E$49+1)","v":":"},null,{"$f":"+INDEX('1'!V$259:V$276,$E229-$E$49+1)","v":":"},null,null,null,null,null,null,null,{"$f":"+INDEX('1'!AD$259:AD$276,$E229-$E$49+1)","v":":"},null,{"$f":"+INDEX('1'!AF$259:AF$276,$E229-$E$49+1)","v":":"}]
[null,null,null,null,null,null,null,null,"+ P2_EPS_EXT.2",null,null,null,null,null,null,null,null,null,null,null,null,null,null,null,null,null,null,null,null,null,null,{"$f":"+INDEX('2'!AF$259:AF$276,$E229-$E$49+1)","v":":"}]
[null,null,null,null,null,null,null,null,"+ P2_EPS_EXT.3",null,null,null,null,null,null,null,null,null,null,null,null,null,null,null,null,null,null,null,null,null,null,{"$f":"+INDEX('3'!AF$223:AF$240,$E229-$E$49+1)","v":":"}]
[null,null,null,null,null,null,null,null,"- P2_EPS.1",{"$f":"+INDEX('1'!J$241:J$258,$E229-$E$49+1)","v":":"},null,null,null,{"$f":"+INDEX('1'!N$241:N$258,$E229-$E$49+1)","v":":"},null,{"$f":"+INDEX('1'!P$241:P$258,$E229-$E$49+1)","v":":"},null,{"$f":"+INDEX('1'!R$241:R$258,$E229-$E$49+1)","v":":"},null,{"$f":"+INDEX('1'!T$241:T$258,$E229-$E$49+1)","v":":"},null,{"$f":"+INDEX('1'!V$241:V$258,$E229-$E$49+1)","v":":"},null,null,null,null,null,null,null,{"$f":"+INDEX('1'!AD$241:AD$258,$E229-$E$49+1)","v":":"},null,{"$f":"+INDEX('1'!AF$241:AF$258,$E229-$E$49+1)","v":":"}]
[null,null,null,null,null,null,null,null,"- P2_EPS.2",null,null,null,null,null,null,null,null,null,null,null,null,null,null,null,null,null,null,null,null,null,null,{"$f":"+INDEX('2'!AF$43:AF$60,$E229-$E$49+1)","v":":"}]
[null,null,null,null,null,null,"Gross fixed capital formation and acquisition less disposals of non-financial, non-produced assets ",null,"+ P51G_NP.1",{"$f":"+INDEX('1'!J$7:J$24,$E229-$E$49+1)","v":":"},null,null,null,{"$f":"+INDEX('1'!N$7:N$24,$E229-$E$49+1)","v":":"},null,{"$f":"+INDEX('1'!P$7:P$24,$E229-$E$49+1)","v":":"},null,{"$f":"+INDEX('1'!R$7:R$24,$E229-$E$49+1)","v":":"},null,{"$f":"+INDEX('1'!T$7:T$24,$E229-$E$49+1)","v":":"},null,{"$f":"+INDEX('1'!V$7:V$24,$E229-$E$49+1)","v":":"},null,null,null,null,null,null,null,{"$f":"+INDEX('1'!AD$7:AD$24,$E229-$E$49+1)","v":":"},null,{"$f":"+INDEX('1'!AF$7:AF$24,$E229-$E$49+1)","v":":"}]
[null,null,null,null,null,null,null,null,"+ P51G_NP.2",null,null,null,null,null,null,null,null,null,null,null,null,null,null,null,null,null,null,null,null,null,null,{"$f":"+INDEX('2'!AF$7:AF$24,$E229-$E$49+1)","v":":"}]
[null,null,null,null,null,null,null,null,"+ P51G_NP.3",null,null,null,null,null,null,null,null,null,null,null,null,null,null,null,null,null,null,null,null,null,null,{"$f":"+INDEX('3'!AF$7:AF$24,$E229-$E$49+1)","v":":"}]
[null,null,null,null,null,null,"EP transfers to / from Rest of the World",null,"- D3_D7_D92_D99_PAY_RW.6",{"$f":"INDEX('6'!J$187:J$204,$E229-$E$49+1)","v":":"},null,null,null,{"$f":"INDEX('6'!N$187:N$204,$E229-$E$49+1)","v":":"},null,{"$f":"INDEX('6'!P$187:P$204,$E229-$E$49+1)","v":":"},null,{"$f":"INDEX('6'!R$187:R$204,$E229-$E$49+1)","v":":"},null,{"$f":"INDEX('6'!T$187:T$204,$E229-$E$49+1)","v":":"},null,{"$f":"INDEX('6'!V$187:V$204,$E229-$E$49+1)","v":":"},null,null,null,null,null,null,null,{"$f":"INDEX('6'!AD$187:AD$204,$E229-$E$49+1)","v":":"},null,{"$f":"INDEX('6'!AF$187:AF$204,$E229-$E$49+1)","v":":"}]
[null,null,null,null,null,null,null,null,"+ D3_D7_D92_D99_REC_RW.6",{"$f":"INDEX('6'!J$205:J$222,$E229-$E$49+1)","v":":"},null,null,null,{"$f":"INDEX('6'!N$205:N$222,$E229-$E$49+1)","v":":"},null,{"$f":"INDEX('6'!P$205:P$222,$E229-$E$49+1)","v":":"},null,{"$f":"INDEX('6'!R$205:R$222,$E229-$E$49+1)","v":":"},null,{"$f":"INDEX('6'!T$205:T$222,$E229-$E$49+1)","v":":"},null,{"$f":"INDEX('6'!V$205:V$222,$E229-$E$49+1)","v":":"},null,null,null,null,null,null,null,{"$f":"INDEX('6'!AD$205:AD$222,$E229-$E$49+1)","v":":"},null,{"$f":"INDEX('6'!AF$205:AF$222,$E229-$E$49+1)","v":":"}]
[null,null,null,null,null,null,"TOTAL",null,"=SUM()",{"$f":"+IF(COUNT(J229:J232,J238:J242)=0,\":\",SUM(J229:J232,J238:J240,J242)-SUM(J241))","v":":"},null,null,null,{"$f":"+IF(COUNT(N229:N232,N238:N242)=0,\":\",SUM(N229:N232,N238:N240,N242)-SUM(N241))","v":":"},null,{"$f":"+IF(COUNT(P229:P232,P238:P242)=0,\":\",SUM(P229:P232,P238:P240,P242)-SUM(P241))","v":":"},null,{"$f":"+IF(COUNT(R229:R232,R238:R242)=0,\":\",SUM(R229:R232,R238:R240,R242)-SUM(R241))","v":":"},null,{"$f":"+IF(COUNT(T229:T232,T238:T242)=0,\":\",SUM(T229:T232,T238:T240,T242)-SUM(T241))","v":":"},null,{"$f":"+IF(COUNT(V229:V232,V238:V242)=0,\":\",SUM(V229:V232,V238:V240,V242)-SUM(V241))","v":":"},null,null,null,null,null,null,null,{"$f":"+IF(COUNT(AD229:AD232,AD238:AD242)=0,\":\",SUM(AD229:AD232,AD238:AD240,AD242)-SUM(AD241))","v":":"},null,{"$f":"+IF(COUNT(AF229:AF232,AF238:AF242)=0,\":\",SUM(AF229:AF232,AF238:AF240,AF242)-SUM(AF241))","v":":"}]
[null,null,null,null,2027,null,"Final consumption expenditure",null,"+ P3_EPS.1",{"$f":"+INDEX('1'!J$241:J$258,$E244-$E$49+1)","v":":"},null,null,null,{"$f":"+INDEX('1'!N$241:N$258,$E244-$E$49+1)","v":":"},null,{"$f":"+INDEX('1'!P$241:P$258,$E244-$E$49+1)","v":":"},null,{"$f":"+INDEX('1'!R$241:R$258,$E244-$E$49+1)","v":":"},null,{"$f":"+INDEX('1'!T$241:T$258,$E244-$E$49+1)","v":":"},null,{"$f":"+INDEX('1'!V$241:V$258,$E244-$E$49+1)","v":":"},null,null,null,null,null,null,null,{"$f":"+INDEX('1'!AD$241:AD$258,$E244-$E$49+1)","v":":"},null,{"$f":"+INDEX('1'!AF$241:AF$258,$E244-$E$49+1)","v":":"}]
[null,null,null,null,null,null,null,null,"+ P3_EPS.5",null,null,null,null,null,null,null,null,null,null,null,null,null,null,null,null,null,null,null,null,null,null,{"$f":"+INDEX('5'!AF$7:AF$24,$E244-$E$49+1)","v":":"}]
[null,null,null,null,null,null,"Intermediate consumption",null,"+ P1_ANC.3",null,null,null,null,null,null,null,null,null,null,null,null,null,null,null,null,null,null,null,null,null,null,{"$f":"+INDEX('3'!AF$133:AF$150,$E244-$E$49+1)","v":":"}]
[null,null,null,null,null,null,null,null,"+ P2",{"$f":"+IF(COUNT(J248:J252)=0,\":\",SUM(J248:J250)-SUM(J251:J252))","v":":"},null,null,null,{"$f":"+IF(COUNT(N248:N252)=0,\":\",SUM(N248:N250)-SUM(N251:N252))","v":":"},null,{"$f":"+IF(COUNT(P248:P252)=0,\":\",SUM(P248:P250)-SUM(P251:P252))","v":":"},null,{"$f":"+IF(COUNT(R248:R252)=0,\":\",SUM(R248:R250)-SUM(R251:R252))","v":":"},null,{"$f":"+IF(COUNT(T248:T252)=0,\":\",SUM(T248:T250)-SUM(T251:T252))","v":":"},null,{"$f":"+IF(COUNT(V248:V252)=0,\":\",SUM(V248:V250)-SUM(V251:V252))","v":":"},null,null,null,null,null,null,null,{"$f":"+IF(COUNT(AD248:AD252)=0,\":\",SUM(AD248:AD250)-SUM(AD251:AD252))","v":":"},null,{"$f":"+IF(COUNT(AF248:AF252)=0,\":\",SUM(AF248:AF250)-SUM(AF251:AF252))","v":":"}]
[null,null,null,null,null,null,null,null,"+ P2_EPS_EXT.1",{"$f":"+INDEX('1'!J$259:J$276,$E244-$E$49+1)","v":":"},null,null,null,{"$f":"+INDEX('1'!N$259:N$276,$E244-$E$49+1)","v":":"},null,{"$f":"+INDEX('1'!P$259:P$276,$E244-$E$49+1)","v":":"},null,{"$f":"+INDEX('1'!R$259:R$276,$E244-$E$49+1)","v":":"},null,{"$f":"+INDEX('1'!T$259:T$276,$E244-$E$49+1)","v":":"},null,{"$f":"+INDEX('1'!V$259:V$276,$E244-$E$49+1)","v":":"},null,null,null,null,null,null,null,{"$f":"+INDEX('1'!AD$259:AD$276,$E244-$E$49+1)","v":":"},null,{"$f":"+INDEX('1'!AF$259:AF$276,$E244-$E$49+1)","v":":"}]
[null,null,null,null,null,null,null,null,"+ P2_EPS_EXT.2",null,null,null,null,null,null,null,null,null,null,null,null,null,null,null,null,null,null,null,null,null,null,{"$f":"+INDEX('2'!AF$259:AF$276,$E244-$E$49+1)","v":":"}]
[null,null,null,null,null,null,null,null,"+ P2_EPS_EXT.3",null,null,null,null,null,null,null,null,null,null,null,null,null,null,null,null,null,null,null,null,null,null,{"$f":"+INDEX('3'!AF$223:AF$240,$E244-$E$49+1)","v":":"}]
[null,null,null,null,null,null,null,null,"- P2_EPS.1",{"$f":"+INDEX('1'!J$241:J$258,$E244-$E$49+1)","v":":"},null,null,null,{"$f":"+INDEX('1'!N$241:N$258,$E244-$E$49+1)","v":":"},null,{"$f":"+INDEX('1'!P$241:P$258,$E244-$E$49+1)","v":":"},null,{"$f":"+INDEX('1'!R$241:R$258,$E244-$E$49+1)","v":":"},null,{"$f":"+INDEX('1'!T$241:T$258,$E244-$E$49+1)","v":":"},null,{"$f":"+INDEX('1'!V$241:V$258,$E244-$E$49+1)","v":":"},null,null,null,null,null,null,null,{"$f":"+INDEX('1'!AD$241:AD$258,$E244-$E$49+1)","v":":"},null,{"$f":"+INDEX('1'!AF$241:AF$258,$E244-$E$49+1)","v":":"}]
[null,null,null,null,null,null,null,null,"- P2_EPS.2",null,null,null,null,null,null,null,null,null,null,null,null,null,null,null,null,null,null,null,null,null,null,{"$f":"+INDEX('2'!AF$43:AF$60,$E244-$E$49+1)","v":":"}]
[null,null,null,null,null,null,"Gross fixed capital formation and acquisition less disposals of non-financial, non-produced assets ",null,"+ P51G_NP.1",{"$f":"+INDEX('1'!J$7:J$24,$E244-$E$49+1)","v":":"},null,null,null,{"$f":"+INDEX('1'!N$7:N$24,$E244-$E$49+1)","v":":"},null,{"$f":"+INDEX('1'!P$7:P$24,$E244-$E$49+1)","v":":"},null,{"$f":"+INDEX('1'!R$7:R$24,$E244-$E$49+1)","v":":"},null,{"$f":"+INDEX('1'!T$7:T$24,$E244-$E$49+1)","v":":"},null,{"$f":"+INDEX('1'!V$7:V$24,$E244-$E$49+1)","v":":"},null,null,null,null,null,null,null,{"$f":"+INDEX('1'!AD$7:AD$24,$E244-$E$49+1)","v":":"},null,{"$f":"+INDEX('1'!AF$7:AF$24,$E244-$E$49+1)","v":":"}]
[null,null,null,null,null,null,null,null,"+ P51G_NP.2",null,null,null,null,null,null,null,null,null,null,null,null,null,null,null,null,null,null,null,null,null,null,{"$f":"+INDEX('2'!AF$7:AF$24,$E244-$E$49+1)","v":":"}]
[null,null,null,null,null,null,null,null,"+ P51G_NP.3",null,null,null,null,null,null,null,null,null,null,null,null,null,null,null,null,null,null,null,null,null,null,{"$f":"+INDEX('3'!AF$7:AF$24,$E244-$E$49+1)","v":":"}]
[null,null,null,null,null,null,"EP transfers to / from Rest of the World",null,"- D3_D7_D92_D99_PAY_RW.6",{"$f":"INDEX('6'!J$187:J$204,$E244-$E$49+1)","v":":"},null,null,null,{"$f":"INDEX('6'!N$187:N$204,$E244-$E$49+1)","v":":"},null,{"$f":"INDEX('6'!P$187:P$204,$E244-$E$49+1)","v":":"},null,{"$f":"INDEX('6'!R$187:R$204,$E244-$E$49+1)","v":":"},null,{"$f":"INDEX('6'!T$187:T$204,$E244-$E$49+1)","v":":"},null,{"$f":"INDEX('6'!V$187:V$204,$E244-$E$49+1)","v":":"},null,null,null,null,null,null,null,{"$f":"INDEX('6'!AD$187:AD$204,$E244-$E$49+1)","v":":"},null,{"$f":"INDEX('6'!AF$187:AF$204,$E244-$E$49+1)","v":":"}]
[null,null,null,null,null,null,null,null,"+ D3_D7_D92_D99_REC_RW.6",{"$f":"INDEX('6'!J$205:J$222,$E244-$E$49+1)","v":":"},null,null,null,{"$f":"INDEX('6'!N$205:N$222,$E244-$E$49+1)","v":":"},null,{"$f":"INDEX('6'!P$205:P$222,$E244-$E$49+1)","v":":"},null,{"$f":"INDEX('6'!R$205:R$222,$E244-$E$49+1)","v":":"},null,{"$f":"INDEX('6'!T$205:T$222,$E244-$E$49+1)","v":":"},null,{"$f":"INDEX('6'!V$205:V$222,$E244-$E$49+1)","v":":"},null,null,null,null,null,null,null,{"$f":"INDEX('6'!AD$205:AD$222,$E244-$E$49+1)","v":":"},null,{"$f":"INDEX('6'!AF$205:AF$222,$E244-$E$49+1)","v":":"}]
[null,null,null,null,null,null,"TOTAL",null,"=SUM()",{"$f":"+IF(COUNT(J244:J247,J253:J257)=0,\":\",SUM(J244:J247,J253:J255,J257)-SUM(J256))","v":":"},null,null,null,{"$f":"+IF(COUNT(N244:N247,N253:N257)=0,\":\",SUM(N244:N247,N253:N255,N257)-SUM(N256))","v":":"},null,{"$f":"+IF(COUNT(P244:P247,P253:P257)=0,\":\",SUM(P244:P247,P253:P255,P257)-SUM(P256))","v":":"},null,{"$f":"+IF(COUNT(R244:R247,R253:R257)=0,\":\",SUM(R244:R247,R253:R255,R257)-SUM(R256))","v":":"},null,{"$f":"+IF(COUNT(T244:T247,T253:T257)=0,\":\",SUM(T244:T247,T253:T255,T257)-SUM(T256))","v":":"},null,{"$f":"+IF(COUNT(V244:V247,V253:V257)=0,\":\",SUM(V244:V247,V253:V255,V257)-SUM(V256))","v":":"},null,null,null,null,null,null,null,{"$f":"+IF(COUNT(AD244:AD247,AD253:AD257)=0,\":\",SUM(AD244:AD247,AD253:AD255,AD257)-SUM(AD256))","v":":"},null,{"$f":"+IF(COUNT(AF244:AF247,AF253:AF257)=0,\":\",SUM(AF244:AF247,AF253:AF255,AF257)-SUM(AF256))","v":":"}]
[null,null,null,null,2028,null,"Final consumption expenditure",null,"+ P3_EPS.1",{"$f":"+INDEX('1'!J$241:J$258,$E259-$E$49+1)","v":":"},null,null,null,{"$f":"+INDEX('1'!N$241:N$258,$E259-$E$49+1)","v":":"},null,{"$f":"+INDEX('1'!P$241:P$258,$E259-$E$49+1)","v":":"},null,{"$f":"+INDEX('1'!R$241:R$258,$E259-$E$49+1)","v":":"},null,{"$f":"+INDEX('1'!T$241:T$258,$E259-$E$49+1)","v":":"},null,{"$f":"+INDEX('1'!V$241:V$258,$E259-$E$49+1)","v":":"},null,null,null,null,null,null,null,{"$f":"+INDEX('1'!AD$241:AD$258,$E259-$E$49+1)","v":":"},null,{"$f":"+INDEX('1'!AF$241:AF$258,$E259-$E$49+1)","v":":"}]
[null,null,null,null,null,null,null,null,"+ P3_EPS.5",null,null,null,null,null,null,null,null,null,null,null,null,null,null,null,null,null,null,null,null,null,null,{"$f":"+INDEX('5'!AF$7:AF$24,$E259-$E$49+1)","v":":"}]
[null,null,null,null,null,null,"Intermediate consumption",null,"+ P1_ANC.3",null,null,null,null,null,null,null,null,null,null,null,null,null,null,null,null,null,null,null,null,null,null,{"$f":"+INDEX('3'!AF$133:AF$150,$E259-$E$49+1)","v":":"}]
[null,null,null,null,null,null,null,null,"+ P2",{"$f":"+IF(COUNT(J263:J267)=0,\":\",SUM(J263:J265)-SUM(J266:J267))","v":":"},null,null,null,{"$f":"+IF(COUNT(N263:N267)=0,\":\",SUM(N263:N265)-SUM(N266:N267))","v":":"},null,{"$f":"+IF(COUNT(P263:P267)=0,\":\",SUM(P263:P265)-SUM(P266:P267))","v":":"},null,{"$f":"+IF(COUNT(R263:R267)=0,\":\",SUM(R263:R265)-SUM(R266:R267))","v":":"},null,{"$f":"+IF(COUNT(T263:T267)=0,\":\",SUM(T263:T265)-SUM(T266:T267))","v":":"},null,{"$f":"+IF(COUNT(V263:V267)=0,\":\",SUM(V263:V265)-SUM(V266:V267))","v":":"},null,null,null,null,null,null,null,{"$f":"+IF(COUNT(AD263:AD267)=0,\":\",SUM(AD263:AD265)-SUM(AD266:AD267))","v":":"},null,{"$f":"+IF(COUNT(AF263:AF267)=0,\":\",SUM(AF263:AF265)-SUM(AF266:AF267))","v":":"}]
[null,null,null,null,null,null,null,null,"+ P2_EPS_EXT.1",{"$f":"+INDEX('1'!J$259:J$276,$E259-$E$49+1)","v":":"},null,null,null,{"$f":"+INDEX('1'!N$259:N$276,$E259-$E$49+1)","v":":"},null,{"$f":"+INDEX('1'!P$259:P$276,$E259-$E$49+1)","v":":"},null,{"$f":"+INDEX('1'!R$259:R$276,$E259-$E$49+1)","v":":"},null,{"$f":"+INDEX('1'!T$259:T$276,$E259-$E$49+1)","v":":"},null,{"$f":"+INDEX('1'!V$259:V$276,$E259-$E$49+1)","v":":"},null,null,null,null,null,null,null,{"$f":"+INDEX('1'!AD$259:AD$276,$E259-$E$49+1)","v":":"},null,{"$f":"+INDEX('1'!AF$259:AF$276,$E259-$E$49+1)","v":":"}]
[null,null,null,null,null,null,null,null,"+ P2_EPS_EXT.2",null,null,null,null,null,null,null,null,null,null,null,null,null,null,null,null,null,null,null,null,null,null,{"$f":"+INDEX('2'!AF$259:AF$276,$E259-$E$49+1)","v":":"}]
[null,null,null,null,null,null,null,null,"+ P2_EPS_EXT.3",null,null,null,null,null,null,null,null,null,null,null,null,null,null,null,null,null,null,null,null,null,null,{"$f":"+INDEX('3'!AF$223:AF$240,$E259-$E$49+1)","v":":"}]
[null,null,null,null,null,null,null,null,"- P2_EPS.1",{"$f":"+INDEX('1'!J$241:J$258,$E259-$E$49+1)","v":":"},null,null,null,{"$f":"+INDEX('1'!N$241:N$258,$E259-$E$49+1)","v":":"},null,{"$f":"+INDEX('1'!P$241:P$258,$E259-$E$49+1)","v":":"},null,{"$f":"+INDEX('1'!R$241:R$258,$E259-$E$49+1)","v":":"},null,{"$f":"+INDEX('1'!T$241:T$258,$E259-$E$49+1)","v":":"},null,{"$f":"+INDEX('1'!V$241:V$258,$E259-$E$49+1)","v":":"},null,null,null,null,null,null,null,{"$f":"+INDEX('1'!AD$241:AD$258,$E259-$E$49+1)","v":":"},null,{"$f":"+INDEX('1'!AF$241:AF$258,$E259-$E$49+1)","v":":"}]
[null,null,null,null,null,null,null,null,"- P2_EPS.2",null,null,null,null,null,null,null,null,null,null,null,null,null,null,null,null,null,null,null,null,null,null,{"$f":"+INDEX('2'!AF$43:AF$60,$E259-$E$49+1)","v":":"}]
[null,null,null,null,null,null,"Gross fixed capital formation and acquisition less disposals of non-financial, non-produced assets ",null,"+ P51G_NP.1",{"$f":"+INDEX('1'!J$7:J$24,$E259-$E$49+1)","v":":"},null,null,null,{"$f":"+INDEX('1'!N$7:N$24,$E259-$E$49+1)","v":":"},null,{"$f":"+INDEX('1'!P$7:P$24,$E259-$E$49+1)","v":":"},null,{"$f":"+INDEX('1'!R$7:R$24,$E259-$E$49+1)","v":":"},null,{"$f":"+INDEX('1'!T$7:T$24,$E259-$E$49+1)","v":":"},null,{"$f":"+INDEX('1'!V$7:V$24,$E259-$E$49+1)","v":":"},null,null,null,null,null,null,null,{"$f":"+INDEX('1'!AD$7:AD$24,$E259-$E$49+1)","v":":"},null,{"$f":"+INDEX('1'!AF$7:AF$24,$E259-$E$49+1)","v":":"}]
[null,null,null,null,null,null,null,null,"+ P51G_NP.2",null,null,null,null,null,null,null,null,null,null,null,null,null,null,null,null,null,null,null,null,null,null,{"$f":"+INDEX('2'!AF$7:AF$24,$E259-$E$49+1)","v":":"}]
[null,null,null,null,null,null,null,null,"+ P51G_NP.3",null,null,null,null,null,null,null,null,null,null,null,null,null,null,null,null,null,null,null,null,null,null,{"$f":"+INDEX('3'!AF$7:AF$24,$E259-$E$49+1)","v":":"}]
[null,null,null,null,null,null,"EP transfers to / from Rest of the World",null,"- D3_D7_D92_D99_PAY_RW.6",{"$f":"INDEX('6'!J$187:J$204,$E259-$E$49+1)","v":":"},null,null,null,{"$f":"INDEX('6'!N$187:N$204,$E259-$E$49+1)","v":":"},null,{"$f":"INDEX('6'!P$187:P$204,$E259-$E$49+1)","v":":"},null,{"$f":"INDEX('6'!R$187:R$204,$E259-$E$49+1)","v":":"},null,{"$f":"INDEX('6'!T$187:T$204,$E259-$E$49+1)","v":":"},null,{"$f":"INDEX('6'!V$187:V$204,$E259-$E$49+1)","v":":"},null,null,null,null,null,null,null,{"$f":"INDEX('6'!AD$187:AD$204,$E259-$E$49+1)","v":":"},null,{"$f":"INDEX('6'!AF$187:AF$204,$E259-$E$49+1)","v":":"}]
[null,null,null,null,null,null,null,null,"+ D3_D7_D92_D99_REC_RW.6",{"$f":"INDEX('6'!J$205:J$222,$E259-$E$49+1)","v":":"},null,null,null,{"$f":"INDEX('6'!N$205:N$222,$E259-$E$49+1)","v":":"},null,{"$f":"INDEX('6'!P$205:P$222,$E259-$E$49+1)","v":":"},null,{"$f":"INDEX('6'!R$205:R$222,$E259-$E$49+1)","v":":"},null,{"$f":"INDEX('6'!T$205:T$222,$E259-$E$49+1)","v":":"},null,{"$f":"INDEX('6'!V$205:V$222,$E259-$E$49+1)","v":":"},null,null,null,null,null,null,null,{"$f":"INDEX('6'!AD$205:AD$222,$E259-$E$49+1)","v":":"},null,{"$f":"INDEX('6'!AF$205:AF$222,$E259-$E$49+1)","v":":"}]
[null,null,null,null,null,null,"TOTAL",null,"=SUM()",{"$f":"+IF(COUNT(J259:J262,J268:J272)=0,\":\",SUM(J259:J262,J268:J270,J272)-SUM(J271))","v":":"},null,null,null,{"$f":"+IF(COUNT(N259:N262,N268:N272)=0,\":\",SUM(N259:N262,N268:N270,N272)-SUM(N271))","v":":"},null,{"$f":"+IF(COUNT(P259:P262,P268:P272)=0,\":\",SUM(P259:P262,P268:P270,P272)-SUM(P271))","v":":"},null,{"$f":"+IF(COUNT(R259:R262,R268:R272)=0,\":\",SUM(R259:R262,R268:R270,R272)-SUM(R271))","v":":"},null,{"$f":"+IF(COUNT(T259:T262,T268:T272)=0,\":\",SUM(T259:T262,T268:T270,T272)-SUM(T271))","v":":"},null,{"$f":"+IF(COUNT(V259:V262,V268:V272)=0,\":\",SUM(V259:V262,V268:V270,V272)-SUM(V271))","v":":"},null,null,null,null,null,null,null,{"$f":"+IF(COUNT(AD259:AD262,AD268:AD272)=0,\":\",SUM(AD259:AD262,AD268:AD270,AD272)-SUM(AD271))","v":":"},null,{"$f":"+IF(COUNT(AF259:AF262,AF268:AF272)=0,\":\",SUM(AF259:AF262,AF268:AF270,AF272)-SUM(AF271))","v":":"}]
[null,null,null,null,2029,null,"Final consumption expenditure",null,"+ P3_EPS.1",{"$f":"+INDEX('1'!J$241:J$258,$E274-$E$49+1)","v":":"},null,null,null,{"$f":"+INDEX('1'!N$241:N$258,$E274-$E$49+1)","v":":"},null,{"$f":"+INDEX('1'!P$241:P$258,$E274-$E$49+1)","v":":"},null,{"$f":"+INDEX('1'!R$241:R$258,$E274-$E$49+1)","v":":"},null,{"$f":"+INDEX('1'!T$241:T$258,$E274-$E$49+1)","v":":"},null,{"$f":"+INDEX('1'!V$241:V$258,$E274-$E$49+1)","v":":"},null,null,null,null,null,null,null,{"$f":"+INDEX('1'!AD$241:AD$258,$E274-$E$49+1)","v":":"},null,{"$f":"+INDEX('1'!AF$241:AF$258,$E274-$E$49+1)","v":":"}]
[null,null,null,null,null,null,null,null,"+ P3_EPS.5",null,null,null,null,null,null,null,null,null,null,null,null,null,null,null,null,null,null,null,null,null,null,{"$f":"+INDEX('5'!AF$7:AF$24,$E274-$E$49+1)","v":":"}]
[null,null,null,null,null,null,"Intermediate consumption",null,"+ P1_ANC.3",null,null,null,null,null,null,null,null,null,null,null,null,null,null,null,null,null,null,null,null,null,null,{"$f":"+INDEX('3'!AF$133:AF$150,$E274-$E$49+1)","v":":"}]
[null,null,null,null,null,null,null,null,"+ P2",{"$f":"+IF(COUNT(J278:J282)=0,\":\",SUM(J278:J280)-SUM(J281:J282))","v":":"},null,null,null,{"$f":"+IF(COUNT(N278:N282)=0,\":\",SUM(N278:N280)-SUM(N281:N282))","v":":"},null,{"$f":"+IF(COUNT(P278:P282)=0,\":\",SUM(P278:P280)-SUM(P281:P282))","v":":"},null,{"$f":"+IF(COUNT(R278:R282)=0,\":\",SUM(R278:R280)-SUM(R281:R282))","v":":"},null,{"$f":"+IF(COUNT(T278:T282)=0,\":\",SUM(T278:T280)-SUM(T281:T282))","v":":"},null,{"$f":"+IF(COUNT(V278:V282)=0,\":\",SUM(V278:V280)-SUM(V281:V282))","v":":"},null,null,null,null,null,null,null,{"$f":"+IF(COUNT(AD278:AD282)=0,\":\",SUM(AD278:AD280)-SUM(AD281:AD282))","v":":"},null,{"$f":"+IF(COUNT(AF278:AF282)=0,\":\",SUM(AF278:AF280)-SUM(AF281:AF282))","v":":"}]
[null,null,null,null,null,null,null,null,"+ P2_EPS_EXT.1",{"$f":"+INDEX('1'!J$259:J$276,$E274-$E$49+1)","v":":"},null,null,null,{"$f":"+INDEX('1'!N$259:N$276,$E274-$E$49+1)","v":":"},null,{"$f":"+INDEX('1'!P$259:P$276,$E274-$E$49+1)","v":":"},null,{"$f":"+INDEX('1'!R$259:R$276,$E274-$E$49+1)","v":":"},null,{"$f":"+INDEX('1'!T$259:T$276,$E274-$E$49+1)","v":":"},null,{"$f":"+INDEX('1'!V$259:V$276,$E274-$E$49+1)","v":":"},null,null,null,null,null,null,null,{"$f":"+INDEX('1'!AD$259:AD$276,$E274-$E$49+1)","v":":"},null,{"$f":"+INDEX('1'!AF$259:AF$276,$E274-$E$49+1)","v":":"}]
[null,null,null,null,null,null,null,null,"+ P2_EPS_EXT.2",null,null,null,null,null,null,null,null,null,null,null,null,null,null,null,null,null,null,null,null,null,null,{"$f":"+INDEX('2'!AF$259:AF$276,$E274-$E$49+1)","v":":"}]
[null,null,null,null,null,null,null,null,"+ P2_EPS_EXT.3",null,null,null,null,null,null,null,null,null,null,null,null,null,null,null,null,null,null,null,null,null,null,{"$f":"+INDEX('3'!AF$223:AF$240,$E274-$E$49+1)","v":":"}]
[null,null,null,null,null,null,null,null,"- P2_EPS.1",{"$f":"+INDEX('1'!J$241:J$258,$E274-$E$49+1)","v":":"},null,null,null,{"$f":"+INDEX('1'!N$241:N$258,$E274-$E$49+1)","v":":"},null,{"$f":"+INDEX('1'!P$241:P$258,$E274-$E$49+1)","v":":"},null,{"$f":"+INDEX('1'!R$241:R$258,$E274-$E$49+1)","v":":"},null,{"$f":"+INDEX('1'!T$241:T$258,$E274-$E$49+1)","v":":"},null,{"$f":"+INDEX('1'!V$241:V$258,$E274-$E$49+1)","v":":"},null,null,null,null,null,null,null,{"$f":"+INDEX('1'!AD$241:AD$258,$E274-$E$49+1)","v":":"},null,{"$f":"+INDEX('1'!AF$241:AF$258,$E274-$E$49+1)","v":":"}]
[null,null,null,null,null,null,null,null,"- P2_EPS.2",null,null,null,null,null,null,null,null,null,null,null,null,null,null,null,null,null,null,null,null,null,null,{"$f":"+INDEX('2'!AF$43:AF$60,$E274-$E$49+1)","v":":"}]
[null,null,null,null,null,null,"Gross fixed capital formation and acquisition less disposals of non-financial, non-produced assets ",null,"+ P51G_NP.1",{"$f":"+INDEX('1'!J$7:J$24,$E274-$E$49+1)","v":":"},null,null,null,{"$f":"+INDEX('1'!N$7:N$24,$E274-$E$49+1)","v":":"},null,{"$f":"+INDEX('1'!P$7:P$24,$E274-$E$49+1)","v":":"},null,{"$f":"+INDEX('1'!R$7:R$24,$E274-$E$49+1)","v":":"},null,{"$f":"+INDEX('1'!T$7:T$24,$E274-$E$49+1)","v":":"},null,{"$f":"+INDEX('1'!V$7:V$24,$E274-$E$49+1)","v":":"},null,null,null,null,null,null,null,{"$f":"+INDEX('1'!AD$7:AD$24,$E274-$E$49+1)","v":":"},null,{"$f":"+INDEX('1'!AF$7:AF$24,$E274-$E$49+1)","v":":"}]
[null,null,null,null,null,null,null,null,"+ P51G_NP.2",null,null,null,null,null,null,null,null,null,null,null,null,null,null,null,null,null,null,null,null,null,null,{"$f":"+INDEX('2'!AF$7:AF$24,$E274-$E$49+1)","v":":"}]
[null,null,null,null,null,null,null,null,"+ P51G_NP.3",null,null,null,null,null,null,null,null,null,null,null,null,null,null,null,null,null,null,null,null,null,null,{"$f":"+INDEX('3'!AF$7:AF$24,$E274-$E$49+1)","v":":"}]
[null,null,null,null,null,null,"EP transfers to / from Rest of the World",null,"- D3_D7_D92_D99_PAY_RW.6",{"$f":"INDEX('6'!J$187:J$204,$E274-$E$49+1)","v":":"},null,null,null,{"$f":"INDEX('6'!N$187:N$204,$E274-$E$49+1)","v":":"},null,{"$f":"INDEX('6'!P$187:P$204,$E274-$E$49+1)","v":":"},null,{"$f":"INDEX('6'!R$187:R$204,$E274-$E$49+1)","v":":"},null,{"$f":"INDEX('6'!T$187:T$204,$E274-$E$49+1)","v":":"},null,{"$f":"INDEX('6'!V$187:V$204,$E274-$E$49+1)","v":":"},null,null,null,null,null,null,null,{"$f":"INDEX('6'!AD$187:AD$204,$E274-$E$49+1)","v":":"},null,{"$f":"INDEX('6'!AF$187:AF$204,$E274-$E$49+1)","v":":"}]
[null,null,null,null,null,null,null,null,"+ D3_D7_D92_D99_REC_RW.6",{"$f":"INDEX('6'!J$205:J$222,$E274-$E$49+1)","v":":"},null,null,null,{"$f":"INDEX('6'!N$205:N$222,$E274-$E$49+1)","v":":"},null,{"$f":"INDEX('6'!P$205:P$222,$E274-$E$49+1)","v":":"},null,{"$f":"INDEX('6'!R$205:R$222,$E274-$E$49+1)","v":":"},null,{"$f":"INDEX('6'!T$205:T$222,$E274-$E$49+1)","v":":"},null,{"$f":"INDEX('6'!V$205:V$222,$E274-$E$49+1)","v":":"},null,null,null,null,null,null,null,{"$f":"INDEX('6'!AD$205:AD$222,$E274-$E$49+1)","v":":"},null,{"$f":"INDEX('6'!AF$205:AF$222,$E274-$E$49+1)","v":":"}]
[null,null,null,null,null,null,"TOTAL",null,"=SUM()",{"$f":"+IF(COUNT(J274:J277,J283:J287)=0,\":\",SUM(J274:J277,J283:J285,J287)-SUM(J286))","v":":"},null,null,null,{"$f":"+IF(COUNT(N274:N277,N283:N287)=0,\":\",SUM(N274:N277,N283:N285,N287)-SUM(N286))","v":":"},null,{"$f":"+IF(COUNT(P274:P277,P283:P287)=0,\":\",SUM(P274:P277,P283:P285,P287)-SUM(P286))","v":":"},null,{"$f":"+IF(COUNT(R274:R277,R283:R287)=0,\":\",SUM(R274:R277,R283:R285,R287)-SUM(R286))","v":":"},null,{"$f":"+IF(COUNT(T274:T277,T283:T287)=0,\":\",SUM(T274:T277,T283:T285,T287)-SUM(T286))","v":":"},null,{"$f":"+IF(COUNT(V274:V277,V283:V287)=0,\":\",SUM(V274:V277,V283:V285,V287)-SUM(V286))","v":":"},null,null,null,null,null,null,null,{"$f":"+IF(COUNT(AD274:AD277,AD283:AD287)=0,\":\",SUM(AD274:AD277,AD283:AD285,AD287)-SUM(AD286))","v":":"},null,{"$f":"+IF(COUNT(AF274:AF277,AF283:AF287)=0,\":\",SUM(AF274:AF277,AF283:AF285,AF287)-SUM(AF286))","v":":"}]
[null,null,null,null,2030,null,"Final consumption expenditure",null,"+ P3_EPS.1",{"$f":"+INDEX('1'!J$241:J$258,$E289-$E$49+1)","v":":"},null,null,null,{"$f":"+INDEX('1'!N$241:N$258,$E289-$E$49+1)","v":":"},null,{"$f":"+INDEX('1'!P$241:P$258,$E289-$E$49+1)","v":":"},null,{"$f":"+INDEX('1'!R$241:R$258,$E289-$E$49+1)","v":":"},null,{"$f":"+INDEX('1'!T$241:T$258,$E289-$E$49+1)","v":":"},null,{"$f":"+INDEX('1'!V$241:V$258,$E289-$E$49+1)","v":":"},null,null,null,null,null,null,null,{"$f":"+INDEX('1'!AD$241:AD$258,$E289-$E$49+1)","v":":"},null,{"$f":"+INDEX('1'!AF$241:AF$258,$E289-$E$49+1)","v":":"}]
[null,null,null,null,null,null,null,null,"+ P3_EPS.5",null,null,null,null,null,null,null,null,null,null,null,null,null,null,null,null,null,null,null,null,null,null,{"$f":"+INDEX('5'!AF$7:AF$24,$E289-$E$49+1)","v":":"}]
[null,null,null,null,null,null,"Intermediate consumption",null,"+ P1_ANC.3",null,null,null,null,null,null,null,null,null,null,null,null,null,null,null,null,null,null,null,null,null,null,{"$f":"+INDEX('3'!AF$133:AF$150,$E289-$E$49+1)","v":":"}]
[null,null,null,null,null,null,null,null,"+ P2",{"$f":"+IF(COUNT(J293:J297)=0,\":\",SUM(J293:J295)-SUM(J296:J297))","v":":"},null,null,null,{"$f":"+IF(COUNT(N293:N297)=0,\":\",SUM(N293:N295)-SUM(N296:N297))","v":":"},null,{"$f":"+IF(COUNT(P293:P297)=0,\":\",SUM(P293:P295)-SUM(P296:P297))","v":":"},null,{"$f":"+IF(COUNT(R293:R297)=0,\":\",SUM(R293:R295)-SUM(R296:R297))","v":":"},null,{"$f":"+IF(COUNT(T293:T297)=0,\":\",SUM(T293:T295)-SUM(T296:T297))","v":":"},null,{"$f":"+IF(COUNT(V293:V297)=0,\":\",SUM(V293:V295)-SUM(V296:V297))","v":":"},null,null,null,null,null,null,null,{"$f":"+IF(COUNT(AD293:AD297)=0,\":\",SUM(AD293:AD295)-SUM(AD296:AD297))","v":":"},null,{"$f":"+IF(COUNT(AF293:AF297)=0,\":\",SUM(AF293:AF295)-SUM(AF296:AF297))","v":":"}]
[null,null,null,null,null,null,null,null,"+ P2_EPS_EXT.1",{"$f":"+INDEX('1'!J$259:J$276,$E289-$E$49+1)","v":":"},null,null,null,{"$f":"+INDEX('1'!N$259:N$276,$E289-$E$49+1)","v":":"},null,{"$f":"+INDEX('1'!P$259:P$276,$E289-$E$49+1)","v":":"},null,{"$f":"+INDEX('1'!R$259:R$276,$E289-$E$49+1)","v":":"},null,{"$f":"+INDEX('1'!T$259:T$276,$E289-$E$49+1)","v":":"},null,{"$f":"+INDEX('1'!V$259:V$276,$E289-$E$49+1)","v":":"},null,null,null,null,null,null,null,{"$f":"+INDEX('1'!AD$259:AD$276,$E289-$E$49+1)","v":":"},null,{"$f":"+INDEX('1'!AF$259:AF$276,$E289-$E$49+1)","v":":"}]
[null,null,null,null,null,null,null,null,"+ P2_EPS_EXT.2",null,null,null,null,null,null,null,null,null,null,null,null,null,null,null,null,null,null,null,null,null,null,{"$f":"+INDEX('2'!AF$259:AF$276,$E289-$E$49+1)","v":":"}]
[null,null,null,null,null,null,null,null,"+ P2_EPS_EXT.3",null,null,null,null,null,null,null,null,null,null,null,null,null,null,null,null,null,null,null,null,null,null,{"$f":"+INDEX('3'!AF$223:AF$240,$E289-$E$49+1)","v":":"}]
[null,null,null,null,null,null,null,null,"- P2_EPS.1",{"$f":"+INDEX('1'!J$241:J$258,$E289-$E$49+1)","v":":"},null,null,null,{"$f":"+INDEX('1'!N$241:N$258,$E289-$E$49+1)","v":":"},null,{"$f":"+INDEX('1'!P$241:P$258,$E289-$E$49+1)","v":":"},null,{"$f":"+INDEX('1'!R$241:R$258,$E289-$E$49+1)","v":":"},null,{"$f":"+INDEX('1'!T$241:T$258,$E289-$E$49+1)","v":":"},null,{"$f":"+INDEX('1'!V$241:V$258,$E289-$E$49+1)","v":":"},null,null,null,null,null,null,null,{"$f":"+INDEX('1'!AD$241:AD$258,$E289-$E$49+1)","v":":"},null,{"$f":"+INDEX('1'!AF$241:AF$258,$E289-$E$49+1)","v":":"}]
[null,null,null,null,null,null,null,null,"- P2_EPS.2",null,null,null,null,null,null,null,null,null,null,null,null,null,null,null,null,null,null,null,null,null,null,{"$f":"+INDEX('2'!AF$43:AF$60,$E289-$E$49+1)","v":":"}]
[null,null,null,null,null,null,"Gross fixed capital formation and acquisition less disposals of non-financial, non-produced assets ",null,"+ P51G_NP.1",{"$f":"+INDEX('1'!J$7:J$24,$E289-$E$49+1)","v":":"},null,null,null,{"$f":"+INDEX('1'!N$7:N$24,$E289-$E$49+1)","v":":"},null,{"$f":"+INDEX('1'!P$7:P$24,$E289-$E$49+1)","v":":"},null,{"$f":"+INDEX('1'!R$7:R$24,$E289-$E$49+1)","v":":"},null,{"$f":"+INDEX('1'!T$7:T$24,$E289-$E$49+1)","v":":"},null,{"$f":"+INDEX('1'!V$7:V$24,$E289-$E$49+1)","v":":"},null,null,null,null,null,null,null,{"$f":"+INDEX('1'!AD$7:AD$24,$E289-$E$49+1)","v":":"},null,{"$f":"+INDEX('1'!AF$7:AF$24,$E289-$E$49+1)","v":":"}]
[null,null,null,null,null,null,null,null,"+ P51G_NP.2",null,null,null,null,null,null,null,null,null,null,null,null,null,null,null,null,null,null,null,null,null,null,{"$f":"+INDEX('2'!AF$7:AF$24,$E289-$E$49+1)","v":":"}]
[null,null,null,null,null,null,null,null,"+ P51G_NP.3",null,null,null,null,null,null,null,null,null,null,null,null,null,null,null,null,null,null,null,null,null,null,{"$f":"+INDEX('3'!AF$7:AF$24,$E289-$E$49+1)","v":":"}]
[null,null,null,null,null,null,"EP transfers to / from Rest of the World",null,"- D3_D7_D92_D99_PAY_RW.6",{"$f":"INDEX('6'!J$187:J$204,$E289-$E$49+1)","v":":"},null,null,null,{"$f":"INDEX('6'!N$187:N$204,$E289-$E$49+1)","v":":"},null,{"$f":"INDEX('6'!P$187:P$204,$E289-$E$49+1)","v":":"},null,{"$f":"INDEX('6'!R$187:R$204,$E289-$E$49+1)","v":":"},null,{"$f":"INDEX('6'!T$187:T$204,$E289-$E$49+1)","v":":"},null,{"$f":"INDEX('6'!V$187:V$204,$E289-$E$49+1)","v":":"},null,null,null,null,null,null,null,{"$f":"INDEX('6'!AD$187:AD$204,$E289-$E$49+1)","v":":"},null,{"$f":"INDEX('6'!AF$187:AF$204,$E289-$E$49+1)","v":":"}]
[null,null,null,null,null,null,null,null,"+ D3_D7_D92_D99_REC_RW.6",{"$f":"INDEX('6'!J$205:J$222,$E289-$E$49+1)","v":":"},null,null,null,{"$f":"INDEX('6'!N$205:N$222,$E289-$E$49+1)","v":":"},null,{"$f":"INDEX('6'!P$205:P$222,$E289-$E$49+1)","v":":"},null,{"$f":"INDEX('6'!R$205:R$222,$E289-$E$49+1)","v":":"},null,{"$f":"INDEX('6'!T$205:T$222,$E289-$E$49+1)","v":":"},null,{"$f":"INDEX('6'!V$205:V$222,$E289-$E$49+1)","v":":"},null,null,null,null,null,null,null,{"$f":"INDEX('6'!AD$205:AD$222,$E289-$E$49+1)","v":":"},null,{"$f":"INDEX('6'!AF$205:AF$222,$E289-$E$49+1)","v":":"}]
[null,null,null,null,null,null,"TOTAL",null,"=SUM()",{"$f":"+IF(COUNT(J289:J292,J298:J302)=0,\":\",SUM(J289:J292,J298:J300,J302)-SUM(J301))","v":":"},null,null,null,{"$f":"+IF(COUNT(N289:N292,N298:N302)=0,\":\",SUM(N289:N292,N298:N300,N302)-SUM(N301))","v":":"},null,{"$f":"+IF(COUNT(P289:P292,P298:P302)=0,\":\",SUM(P289:P292,P298:P300,P302)-SUM(P301))","v":":"},null,{"$f":"+IF(COUNT(R289:R292,R298:R302)=0,\":\",SUM(R289:R292,R298:R300,R302)-SUM(R301))","v":":"},null,{"$f":"+IF(COUNT(T289:T292,T298:T302)=0,\":\",SUM(T289:T292,T298:T300,T302)-SUM(T301))","v":":"},null,{"$f":"+IF(COUNT(V289:V292,V298:V302)=0,\":\",SUM(V289:V292,V298:V300,V302)-SUM(V301))","v":":"},null,null,null,null,null,null,null,{"$f":"+IF(COUNT(AD289:AD292,AD298:AD302)=0,\":\",SUM(AD289:AD292,AD298:AD300,AD302)-SUM(AD301))","v":":"},null,{"$f":"+IF(COUNT(AF289:AF292,AF298:AF302)=0,\":\",SUM(AF289:AF292,AF298:AF300,AF302)-SUM(AF301))","v":":"}]
[null,null,null,null,2031,null,"Final consumption expenditure",null,"+ P3_EPS.1",{"$f":"+INDEX('1'!J$241:J$258,$E304-$E$49+1)","v":":"},null,null,null,{"$f":"+INDEX('1'!N$241:N$258,$E304-$E$49+1)","v":":"},null,{"$f":"+INDEX('1'!P$241:P$258,$E304-$E$49+1)","v":":"},null,{"$f":"+INDEX('1'!R$241:R$258,$E304-$E$49+1)","v":":"},null,{"$f":"+INDEX('1'!T$241:T$258,$E304-$E$49+1)","v":":"},null,{"$f":"+INDEX('1'!V$241:V$258,$E304-$E$49+1)","v":":"},null,null,null,null,null,null,null,{"$f":"+INDEX('1'!AD$241:AD$258,$E304-$E$49+1)","v":":"},null,{"$f":"+INDEX('1'!AF$241:AF$258,$E304-$E$49+1)","v":":"}]
[null,null,null,null,null,null,null,null,"+ P3_EPS.5",null,null,null,null,null,null,null,null,null,null,null,null,null,null,null,null,null,null,null,null,null,null,{"$f":"+INDEX('5'!AF$7:AF$24,$E304-$E$49+1)","v":":"}]
[null,null,null,null,null,null,"Intermediate consumption",null,"+ P1_ANC.3",null,null,null,null,null,null,null,null,null,null,null,null,null,null,null,null,null,null,null,null,null,null,{"$f":"+INDEX('3'!AF$133:AF$150,$E304-$E$49+1)","v":":"}]
[null,null,null,null,null,null,null,null,"+ P2",{"$f":"+IF(COUNT(J308:J312)=0,\":\",SUM(J308:J310)-SUM(J311:J312))","v":":"},null,null,null,{"$f":"+IF(COUNT(N308:N312)=0,\":\",SUM(N308:N310)-SUM(N311:N312))","v":":"},null,{"$f":"+IF(COUNT(P308:P312)=0,\":\",SUM(P308:P310)-SUM(P311:P312))","v":":"},null,{"$f":"+IF(COUNT(R308:R312)=0,\":\",SUM(R308:R310)-SUM(R311:R312))","v":":"},null,{"$f":"+IF(COUNT(T308:T312)=0,\":\",SUM(T308:T310)-SUM(T311:T312))","v":":"},null,{"$f":"+IF(COUNT(V308:V312)=0,\":\",SUM(V308:V310)-SUM(V311:V312))","v":":"},null,null,null,null,null,null,null,{"$f":"+IF(COUNT(AD308:AD312)=0,\":\",SUM(AD308:AD310)-SUM(AD311:AD312))","v":":"},null,{"$f":"+IF(COUNT(AF308:AF312)=0,\":\",SUM(AF308:AF310)-SUM(AF311:AF312))","v":":"}]
[null,null,null,null,null,null,null,null,"+ P2_EPS_EXT.1",{"$f":"+INDEX('1'!J$259:J$276,$E304-$E$49+1)","v":":"},null,null,null,{"$f":"+INDEX('1'!N$259:N$276,$E304-$E$49+1)","v":":"},null,{"$f":"+INDEX('1'!P$259:P$276,$E304-$E$49+1)","v":":"},null,{"$f":"+INDEX('1'!R$259:R$276,$E304-$E$49+1)","v":":"},null,{"$f":"+INDEX('1'!T$259:T$276,$E304-$E$49+1)","v":":"},null,{"$f":"+INDEX('1'!V$259:V$276,$E304-$E$49+1)","v":":"},null,null,null,null,null,null,null,{"$f":"+INDEX('1'!AD$259:AD$276,$E304-$E$49+1)","v":":"},null,{"$f":"+INDEX('1'!AF$259:AF$276,$E304-$E$49+1)","v":":"}]
[null,null,null,null,null,null,null,null,"+ P2_EPS_EXT.2",null,null,null,null,null,null,null,null,null,null,null,null,null,null,null,null,null,null,null,null,null,null,{"$f":"+INDEX('2'!AF$259:AF$276,$E304-$E$49+1)","v":":"}]
[null,null,null,null,null,null,null,null,"+ P2_EPS_EXT.3",null,null,null,null,null,null,null,null,null,null,null,null,null,null,null,null,null,null,null,null,null,null,{"$f":"+INDEX('3'!AF$223:AF$240,$E304-$E$49+1)","v":":"}]
[null,null,null,null,null,null,null,null,"- P2_EPS.1",{"$f":"+INDEX('1'!J$241:J$258,$E304-$E$49+1)","v":":"},null,null,null,{"$f":"+INDEX('1'!N$241:N$258,$E304-$E$49+1)","v":":"},null,{"$f":"+INDEX('1'!P$241:P$258,$E304-$E$49+1)","v":":"},null,{"$f":"+INDEX('1'!R$241:R$258,$E304-$E$49+1)","v":":"},null,{"$f":"+INDEX('1'!T$241:T$258,$E304-$E$49+1)","v":":"},null,{"$f":"+INDEX('1'!V$241:V$258,$E304-$E$49+1)","v":":"},null,null,null,null,null,null,null,{"$f":"+INDEX('1'!AD$241:AD$258,$E304-$E$49+1)","v":":"},null,{"$f":"+INDEX('1'!AF$241:AF$258,$E304-$E$49+1)","v":":"}]
[null,null,null,null,null,null,null,null,"- P2_EPS.2",null,null,null,null,null,null,null,null,null,null,null,null,null,null,null,null,null,null,null,null,null,null,{"$f":"+INDEX('2'!AF$43:AF$60,$E304-$E$49+1)","v":":"}]
[null,null,null,null,null,null,"Gross fixed capital formation and acquisition less disposals of non-financial, non-produced assets ",null,"+ P51G_NP.1",{"$f":"+INDEX('1'!J$7:J$24,$E304-$E$49+1)","v":":"},null,null,null,{"$f":"+INDEX('1'!N$7:N$24,$E304-$E$49+1)","v":":"},null,{"$f":"+INDEX('1'!P$7:P$24,$E304-$E$49+1)","v":":"},null,{"$f":"+INDEX('1'!R$7:R$24,$E304-$E$49+1)","v":":"},null,{"$f":"+INDEX('1'!T$7:T$24,$E304-$E$49+1)","v":":"},null,{"$f":"+INDEX('1'!V$7:V$24,$E304-$E$49+1)","v":":"},null,null,null,null,null,null,null,{"$f":"+INDEX('1'!AD$7:AD$24,$E304-$E$49+1)","v":":"},null,{"$f":"+INDEX('1'!AF$7:AF$24,$E304-$E$49+1)","v":":"}]
[null,null,null,null,null,null,null,null,"+ P51G_NP.2",null,null,null,null,null,null,null,null,null,null,null,null,null,null,null,null,null,null,null,null,null,null,{"$f":"+INDEX('2'!AF$7:AF$24,$E304-$E$49+1)","v":":"}]
[null,null,null,null,null,null,null,null,"+ P51G_NP.3",null,null,null,null,null,null,null,null,null,null,null,null,null,null,null,null,null,null,null,null,null,null,{"$f":"+INDEX('3'!AF$7:AF$24,$E304-$E$49+1)","v":":"}]
[null,null,null,null,null,null,"EP transfers to / from Rest of the World",null,"- D3_D7_D92_D99_PAY_RW.6",{"$f":"INDEX('6'!J$187:J$204,$E304-$E$49+1)","v":":"},null,null,null,{"$f":"INDEX('6'!N$187:N$204,$E304-$E$49+1)","v":":"},null,{"$f":"INDEX('6'!P$187:P$204,$E304-$E$49+1)","v":":"},null,{"$f":"INDEX('6'!R$187:R$204,$E304-$E$49+1)","v":":"},null,{"$f":"INDEX('6'!T$187:T$204,$E304-$E$49+1)","v":":"},null,{"$f":"INDEX('6'!V$187:V$204,$E304-$E$49+1)","v":":"},null,null,null,null,null,null,null,{"$f":"INDEX('6'!AD$187:AD$204,$E304-$E$49+1)","v":":"},null,{"$f":"INDEX('6'!AF$187:AF$204,$E304-$E$49+1)","v":":"}]
[null,null,null,null,null,null,null,null,"+ D3_D7_D92_D99_REC_RW.6",{"$f":"INDEX('6'!J$205:J$222,$E304-$E$49+1)","v":":"},null,null,null,{"$f":"INDEX('6'!N$205:N$222,$E304-$E$49+1)","v":":"},null,{"$f":"INDEX('6'!P$205:P$222,$E304-$E$49+1)","v":":"},null,{"$f":"INDEX('6'!R$205:R$222,$E304-$E$49+1)","v":":"},null,{"$f":"INDEX('6'!T$205:T$222,$E304-$E$49+1)","v":":"},null,{"$f":"INDEX('6'!V$205:V$222,$E304-$E$49+1)","v":":"},null,null,null,null,null,null,null,{"$f":"INDEX('6'!AD$205:AD$222,$E304-$E$49+1)","v":":"},null,{"$f":"INDEX('6'!AF$205:AF$222,$E304-$E$49+1)","v":":"}]
[null,null,null,null,null,null,"TOTAL",null,"=SUM()",{"$f":"+IF(COUNT(J304:J307,J313:J317)=0,\":\",SUM(J304:J307,J313:J315,J317)-SUM(J316))","v":":"},null,null,null,{"$f":"+IF(COUNT(N304:N307,N313:N317)=0,\":\",SUM(N304:N307,N313:N315,N317)-SUM(N316))","v":":"},null,{"$f":"+IF(COUNT(P304:P307,P313:P317)=0,\":\",SUM(P304:P307,P313:P315,P317)-SUM(P316))","v":":"},null,{"$f":"+IF(COUNT(R304:R307,R313:R317)=0,\":\",SUM(R304:R307,R313:R315,R317)-SUM(R316))","v":":"},null,{"$f":"+IF(COUNT(T304:T307,T313:T317)=0,\":\",SUM(T304:T307,T313:T315,T317)-SUM(T316))","v":":"},null,{"$f":"+IF(COUNT(V304:V307,V313:V317)=0,\":\",SUM(V304:V307,V313:V315,V317)-SUM(V316))","v":":"},null,null,null,null,null,null,null,{"$f":"+IF(COUNT(AD304:AD307,AD313:AD317)=0,\":\",SUM(AD304:AD307,AD313:AD315,AD317)-SUM(AD316))","v":":"},null,{"$f":"+IF(COUNT(AF304:AF307,AF313:AF317)=0,\":\",SUM(AF304:AF307,AF313:AF315,AF317)-SUM(AF316))","v":":"}]

{"sheet":"7_Add_CORP","index":42,"n_rows":318,"n_cols":58,"rows_kept":318,"cut":false,"hidden":false,"merged":[[312,6,314,7],[315,6,316,7],[297,6,299,7],[300,6,301,7],[303,4,303,5],[303,6,304,7],[304,4,304,5],[305,6,310,7],[282,6,284,7],[285,6,286,7],[288,4,288,5],[288,6,289,7],[289,4,289,5],[290,6,295,7],[267,6,269,7],[270,6,271,7],[273,4,273,5],[273,6,274,7],[274,4,274,5],[275,6,280,7],[252,6,254,7],[255,6,256,7],[258,4,258,5],[258,6,259,7],[259,4,259,5],[260,6,265,7],[237,6,239,7],[240,6,241,7],[243,4,243,5],[243,6,244,7],[244,4,244,5],[245,6,250,7],[222,6,224,7],[225,6,226,7],[228,4,228,5],[228,6,229,7],[229,4,229,5],[230,6,235,7],[207,6,209,7],[210,6,211,7],[213,4,213,5],[213,6,214,7],[214,4,214,5],[215,6,220,7],[192,6,194,7],[195,6,196,7],[198,4,198,5],[198,6,199,7],[199,4,199,5],[200,6,205,7],[177,6,179,7],[180,6,181,7],[183,4,183,5],[183,6,184,7],[184,4,184,5],[185,6,190,7],[162,6,164,7],[165,6,166,7],[168,4,168,5],[168,6,169,7],[169,4,169,5],[170,6,175,7],[147,6,149,7],[150,6,151,7],[153,4,153,5],[153,6,154,7],[154,4,154,5],[155,6,160,7],[132,6,134,7],[135,6,136,7],[138,4,138,5],[138,6,139,7],[139,4,139,5],[140,6,145,7],[158,4,158,5],[117,6,119,7],[120,6,121,7],[123,4,123,5],[123,6,124,7],[124,4,124,5],[125,6,130,7],[102,6,104,7],[105,6,106,7],[108,4,108,5],[108,6,109,7],[109,4,109,5],[110,6,115,7],[87,6,89,7],[90,6,91,7],[93,4,93,5],[93,6,94,7],[94,4,94,5],[95,6,100,7],[72,6,74,7],[75,6,76,7],[78,4,78,5],[78,6,79,7],[79,4,79,5],[80,6,85,7],[57,6,59,7],[60,6,61,7],[63,4,63,5],[63,6,64,7],[64,4,64,5],[65,6,70,7],[46,31,47,32],[47,4,47,8],[48,4,48,5],[48,6,49,7],[49,4,49,5],[50,6,55,7],[46,19,47,20],[46,21,47,22],[46,23,47,24],[46,25,47,26],[46,27,47,28],[46,29,47,30],[27,4,27,7],[46,4,46,8],[46,9,47,10],[46,12,47,12],[46,13,47,14],[46,15,47,16],[46,17,47,18],[25,17,26,18],[25,19,26,20],[0,4,0,8],[0,9,0,32],[1,4,1,8],[1,9,1,32],[3,7,3,8],[3,9,4,10],[3,11,4,12],[3,13,4,14],[3,15,4,16],[3,29,4,30],[3,31,4,32],[4,4,4,7],[3,17,4,18],[3,19,4,20],[3,21,4,22],[3,23,4,24],[3,25,4,26],[3,27,4,28],[2,47,2,54],[3,47,3,54],[53,4,53,5],[68,4,68,5],[83,4,83,5],[98,4,98,5],[113,4,113,5],[128,4,128,5],[143,4,143,5],[8,4,8,7],[24,4,24,7],[25,9,26,10],[25,11,26,12],[25,13,26,14],[25,15,26,16],[6,4,6,7],[7,4,7,7],[25,29,26,30],[25,31,26,32],[26,4,26,7],[25,21,26,22],[25,23,26,24],[25,25,26,26],[25,27,26,28]]}
[null,null,null,null,{"$f":"Cover!B21","v":"QUESTIONNAIRE ON ENVIRONMENTAL PROTECTION EXPENDITURE ACCOUNTS"},null,null,null,null,"Table 7.4. Total economy by CEPA"]
[null,null,null,null,{"$f":"E1","v":"QUESTIONNAIRE ON ENVIRONMENTAL PROTECTION EXPENDITURE ACCOUNTS"},null,null,null,null,"Table 7_Add_CORP.: NEEP by CEPA - Corporations"]
[null,null,null,null,null,null,null,null,null,null,null,null,null,null,null,null,null,null,null,null,null,null,null,null,null,null,null,null,null,null,null," ",null,null,null,null,null,null,null,null,null,null,null,null,null,null,null,"\nCONTROL TABLES"]
[null,null,null,null,"Country/Unit",{"$f":"IFERROR(Cover!C16,\"\")","v":""},{"$f":"\"\"&Cover!B16","v":""},{"$f":"Cover!B17","v":"Million units of national currency"},null,"CEPA 1",null,"of which CEPA 1.1.2 and 1.2.2 Climate change",null,"CEPA2",null,"CEPA 3",null,"CEPA 4",null,"CEPA 5",null,"CEPA 6",null,"CEPA 7",null,"CEPA 8",null,"CEPA 9",null,"CEPA 7+8+9",null,"TOTAL",null,null,null,null,null,null,null,null,null,null,null,null,null,null,null,"Comparison with data automatically calculated"]
[null,null,null,null,null,null,null,null,"Year",null,null,null,null,null,null,null,null,null,null,null,null,null,null,null,null,null,null,null,null,null,null,null,null,null,null,null,null,null,null,null,null,null,null,null,null,null,null,"CEPA 1","CEPA 2","CEPA 3","CEPA 4","CEPA 5","CEPA 6","CEPA 7+8+9","Total",null,"Comparison Threshold"]
[null,null,null,null,null,null,null,null,null,"CEPA1",null,"CEPA112_122","CEPA112_122","CEPA2",null,"CEPA3",null,"CEPA4",null,"CEPA5",null,"CEPA6",null,"CEPA7",null,"CEPA8",null,"CEPA9",null,"CEPA7-9",null,"TOT_CEPA",null,null,null,null,null,null,null,null,null,null,null,null,null,null,null,"S1","S2","S3","S4","S5","S6","S7","S8"]
["S11_S12","TOTAL","EPS_NEEP",null,"National expenditure on environmental protection",null,null,null,2014,":",null,"-",null,":",null,":",null,":",null,":",null,":",null,"-",null,"-",null,"-",null,":",null,{"$f":"IF(COUNT(J7,N7,P7,R7,T7,V7,AD7)=7,SUM(J7,N7,P7,R7,T7,V7,AD7),\":\")","v":":"},null,null,null,null,null,null,null,null,null,null,null,null,null,null,2014,{"$f":"IF($J28=\":\",IF($J7=\":\",\"\",$BF$10),IF($J7=\":\",$BF$11,IF($J28=0,1,ABS($J7-$J28)/ABS($J28))))","v":""},{"$f":"IF($J28=\":\",IF($J7=\":\",\"\",$BF$10),IF($J7=\":\",$BF$11,IF($J28=0,1,ABS($J7-$J28)/ABS($J28))))","v":""},"","","","","","",null,0.1]
["S11_S12","TOTAL","EPS_NEEP",null,"   Please complete the cells with national estimates or confirm the calculation below",null,null,null,2015,":",null,"-",null,":",null,":",null,":",null,":",null,":",null,"-",null,"-",null,"-",null,":",null,{"$f":"IF(COUNT(J8,N8,P8,R8,T8,V8,AD8)=7,SUM(J8,N8,P8,R8,T8,V8,AD8),\":\")","v":":"},null,null,null,null,null,null,null,null,null,null,null,null,null,null,2015,{"$f":"IF($J29=\":\",IF($J8=\":\",\"\",$BF$10),IF($J8=\":\",$BF$11,IF($J29=0,1,ABS($J8-$J29)/ABS($J29))))","v":""},"","","","","","",""]
["S11_S12","TOTAL","EPS_NEEP",null,"   by copying VALUES of calculated data to these cells",null,null,null,2016,":",null,"-",null,":",null,":",null,":",null,":",null,":",null,"-",null,"-",null,"-",null,":",null,{"$f":"IF(COUNT(J9,N9,P9,R9,T9,V9,AD9)=7,SUM(J9,N9,P9,R9,T9,V9,AD9),\":\")","v":":"},null,null,null,null,null,null,null,null,null,null,null,null,null,null,2016,"","","","","","","",""]
["S11_S12","TOTAL","EPS_NEEP",null,null,null,null,null,2017,":",null,"-",null,":",null,":",null,":",null,":",null,":",null,"-",null,"-",null,"-",null,":",null,":",null,null,null,null,null,null,null,null,null,null,null,null,null,null,2017,"","","","","","","","",null,null,"No Calculation"]
["S11_S12","TOTAL","EPS_NEEP",null,null,null,null,null,2018,":",null,"-",null,":",null,":",null,":",null,":",null,":",null,"-",null,"-",null,"-",null,":",null,":",null,null,null,null,null,null,null,null,null,null,null,null,null,null,2018,"","","","","","","","",null,null,"No Data"]
["S11_S12","TOTAL","EPS_NEEP",null,null,null,null,null,2019,":",null,"-",null,":",null,":",null,":",null,":",null,":",null,"-",null,"-",null,"-",null,":",null,":",null,null,null,null,null,null,null,null,null,null,null,null,null,null,2019,"","","","","","","",""]
["S11_S12","TOTAL","EPS_NEEP",null,null,null,null,null,2020,":",null,"-",null,":",null,":",null,":",null,":",null,":",null,"-",null,"-",null,"-",null,":",null,":",null,null,null,null,null,null,null,null,null,null,null,null,null,null,2020,"","","","","","","",""]
["S11_S12","TOTAL","EPS_NEEP",null,null,null,null,null,2021,":",null,"-",null,":",null,":",null,":",null,":",null,":",null,"-",null,"-",null,"-",null,":",null,":",null,null,null,null,null,null,null,null,null,null,null,null,null,null,2021,"","","","","","","",""]
["S11_S12","TOTAL","EPS_NEEP",null,null,null,null,null,2022,":",null,"-",null,":",null,":",null,":",null,":",null,":",null,"-",null,"-",null,"-",null,":",null,":",null,null,null,null,null,null,null,null,null,null,null,null,null,null,2022,"","","","","","","",""]
["S11_S12","TOTAL","EPS_NEEP",null,null,null,null,null,2023,":",null,"-",null,":",null,":",null,":",null,":",null,":",null,"-",null,"-",null,"-",null,":",null,":",null,null,null,null,null,null,null,null,null,null,null,null,null,null,2023,"","","","","","","",""]
["S11_S12","TOTAL","EPS_NEEP",null,null,null,null,null,2024,":",null,"-",null,":",null,":",null,":",null,":",null,":",null,"-",null,"-",null,"-",null,":",null,":",null,null,null,null,null,null,null,null,null,null,null,null,null,null,2024,"","","","","","","",""]
["S11_S12","TOTAL","EPS_NEEP",null,null,null,null,null,2025,":",null,"-",null,":",null,":",null,":",null,":",null,":",null,"-",null,"-",null,"-",null,":",null,":",null,null,null,null,null,null,null,null,null,null,null,null,null,null,2025,"","","","","","","",""]
["S11_S12","TOTAL","EPS_NEEP",null,null,null,null,null,2026,":",null,"-",null,":",null,":",null,":",null,":",null,":",null,"-",null,"-",null,"-",null,":",null,":",null,null,null,null,null,null,null,null,null,null,null,null,null,null,2026,"","","","","","","",""]
["S11_S12","TOTAL","EPS_NEEP",null,null,null,null,null,2027,":",null,"-",null,":",null,":",null,":",null,":",null,":",null,"-",null,"-",null,"-",null,":",null,":",null,null,null,null,null,null,null,null,null,null,null,null,null,null,2027,"","","","","","","",""]
["S11_S12","TOTAL","EPS_NEEP",null,null,null,null,null,2028,":",null,"-",null,":",null,":",null,":",null,":",null,":",null,"-",null,"-",null,"-",null,":",null,":",null,null,null,null,null,null,null,null,null,null,null,null,null,null,2028,"","","","","","","",""]
["S11_S12","TOTAL","EPS_NEEP",null,null,null,null,null,2029,":",null,"-",null,":",null,":",null,":",null,":",null,":",null,"-",null,"-",null,"-",null,":",null,":",null,null,null,null,null,null,null,null,null,null,null,null,null,null,2029,"","","","","","","",""]
["S11_S12","TOTAL","EPS_NEEP",null,null,null,null,null,2030,":",null,"-",null,":",null,":",null,":",null,":",null,":",null,"-",null,"-",null,"-",null,":",null,":",null,null,null,null,null,null,null,null,null,null,null,null,null,null,2030,"","","","","","","",""]
["S11_S12","TOTAL","EPS_NEEP",null,null,null,null,null,2031,":",null,"-",null,":",null,":",null,":",null,":",null,":",null,"-",null,"-",null,"-",null,":",null,":",null,null,null,null,null,null,null,null,null,null,null,null,null,null,2031,{"$f":"IF($J45=\":\",IF($J24=\":\",\"\",$BF$10),IF($J24=\":\",$BF$11,IF($J45=0,1,ABS($J24-$J45)/ABS($J45))))","v":""},"","","","","","",""]
[null,null,null,null,"National expenditure on environmental protection – Summary"]
[null,null,null,null,null,null,null,{"$f":"'1'!H4","v":"Million units of national currency"},null,{"$f":"J4","v":"CEPA 1"},null,"of which CEPA 1.1.2 and 1.2.2 Climate change",null,{"$f":"N4","v":"CEPA2"},null,{"$f":"P4","v":"CEPA 3"},null,{"$f":"R4","v":"CEPA 4"},null,{"$f":"T4","v":"CEPA 5"},null,{"$f":"V4","v":"CEPA 6"},null,"CEPA 7",null,"CEPA 8",null,"CEPA 9",null,{"$f":"AD4","v":"CEPA 7+8+9"},null,"TOTAL"]
[null,null,null,null,null,null,null,null,"Year"]
[null,null,null,null,"Figures calculated from information available in the questionnaire",null,null,null,2014,{"$f":"OFFSET(J$63,($I28-$I$28)*COUNTA($I$49:$I$63),0)","v":":"},null,"-",null,{"$f":"OFFSET(N$63,($I28-$I$28)*COUNTA($I$49:$I$63),0)","v":":"},null,{"$f":"OFFSET(P$63,($I28-$I$28)*COUNTA($I$49:$I$63),0)","v":":"},null,{"$f":"OFFSET(R$63,($I28-$I$28)*COUNTA($I$49:$I$63),0)","v":":"},null,{"$f":"OFFSET(T$63,($I28-$I$28)*COUNTA($I$49:$I$63),0)","v":":"},null,{"$f":"OFFSET(V$63,($I28-$I$28)*COUNTA($I$49:$I$63),0)","v":":"},null,"-",null,"-",null,"-",null,{"$f":"OFFSET(AD$63,($I28-$I$28)*COUNTA($I$49:$I$63),0)","v":":"},null,{"$f":"IF(COUNT(J28,N28,P28,R28,T28,V28,AD28)=7,SUM(J28,N28,P28,R28,T28,V28,AD28),\":\")","v":":"}]
[null,null,null,null,null,null,null,null,2015,{"$f":"OFFSET(J$63,($I29-$I$28)*COUNTA($I$49:$I$63),0)","v":":"},null,"-",null,{"$f":"OFFSET(N$63,($I29-$I$28)*COUNTA($I$49:$I$63),0)","v":":"},null,{"$f":"OFFSET(P$63,($I29-$I$28)*COUNTA($I$49:$I$63),0)","v":":"},null,{"$f":"OFFSET(R$63,($I29-$I$28)*COUNTA($I$49:$I$63),0)","v":":"},null,{"$f":"OFFSET(T$63,($I29-$I$28)*COUNTA($I$49:$I$63),0)","v":":"},null,{"$f":"OFFSET(V$63,($I29-$I$28)*COUNTA($I$49:$I$63),0)","v":":"},null,"-",null,"-",null,"-",null,{"$f":"OFFSET(AD$63,($I29-$I$28)*COUNTA($I$49:$I$63),0)","v":":"},null,{"$f":"IF(COUNT(J29,N29,P29,R29,T29,V29,AD29)=7,SUM(J29,N29,P29,R29,T29,V29,AD29),\":\")","v":":"}]
[null,null,null,null,null,null,null,null,2016,":",null,"-",null,":",null,":",null,":",null,":",null,":",null,"-",null,"-",null,"-",null,":",null,":"]
[null,null,null,null,null,null,null,null,2017,":",null,"-",null,":",null,":",null,":",null,":",null,":",null,"-",null,"-",null,"-",null,":",null,":"]
[null,null,null,null,null,null,null,null,2018,":",null,"-",null,":",null,":",null,":",null,":",null,":",null,"-",null,"-",null,"-",null,":",null,":"]
[null,null,null,null,null,null,null,null,2019,":",null,"-",null,":",null,":",null,":",null,":",null,":",null,"-",null,"-",null,"-",null,":",null,":"]
[null,null,null,null,null,null,null,null,2020,":",null,"-",null,":",null,":",null,":",null,":",null,":",null,"-",null,"-",null,"-",null,":",null,":"]
[null,null,null,null,null,null,null,null,2021,":",null,"-",null,":",null,":",null,":",null,":",null,":",null,"-",null,"-",null,"-",null,":",null,":"]
[null,null,null,null,null,null,null,null,2022,":",null,"-",null,":",null,":",null,":",null,":",null,":",null,"-",null,"-",null,"-",null,":",null,":"]
[null,null,null,null,null,null,null,null,2023,":",null,"-",null,":",null,":",null,":",null,":",null,":",null,"-",null,"-",null,"-",null,":",null,":"]
[null,null,null,null,null,null,null,null,2024,":",null,"-",null,":",null,":",null,":",null,":",null,":",null,"-",null,"-",null,"-",null,":",null,":"]
[null,null,null,null,null,null,null,null,2025,":",null,"-",null,":",null,":",null,":",null,":",null,":",null,"-",null,"-",null,"-",null,":",null,":"]
[null,null,null,null,null,null,null,null,2026,":",null,"-",null,":",null,":",null,":",null,":",null,":",null,"-",null,"-",null,"-",null,":",null,":"]
[null,null,null,null,null,null,null,null,2027,":",null,"-",null,":",null,":",null,":",null,":",null,":",null,"-",null,"-",null,"-",null,":",null,":"]
[null,null,null,null,null,null,null,null,2028,":",null,"-",null,":",null,":",null,":",null,":",null,":",null,"-",null,"-",null,"-",null,":",null,":"]
[null,null,null,null,null,null,null,null,2029,":",null,"-",null,":",null,":",null,":",null,":",null,":",null,"-",null,"-",null,"-",null,":",null,":",null,null,null,null,null,null,null,null,null,null,null,null,null,null,null,null,null,null,null,null,null,null,{"$f":"IF(#REF!=\":\",IF(AF43=\":\",\"\",$BF$29),IF(AF43=\":\",$BF$28,IF(#REF!=0,1,ABS(AF43-#REF!)/ABS(#REF!))))","v":{"$error":"#REF!"}}]
[null,null,null,null,null,null,null,null,2030,":",null,"-",null,":",null,":",null,":",null,":",null,":",null,"-",null,"-",null,"-",null,":",null,":",null,null,null,null,null,null,null,null,null,null,null,null,null,null,null,null,null,null,null,null,null,null,{"$f":"IF(#REF!=\":\",IF(AF44=\":\",\"\",$BF$29),IF(AF44=\":\",$BF$28,IF(#REF!=0,1,ABS(AF44-#REF!)/ABS(#REF!))))","v":{"$error":"#REF!"}}]
[null,null,null,null,null,null,null,null,2031,":",null,"-",null,":",null,":",null,":",null,":",null,":",null,"-",null,"-",null,"-",null,":",null,":",null,null,null,null,null,null,null,null,null,null,null,null,null,null,null,null,null,null,null,null,null,null,{"$f":"IF(#REF!=\":\",IF(AF45=\":\",\"\",$BF$29),IF(AF45=\":\",$BF$28,IF(#REF!=0,1,ABS(AF45-#REF!)/ABS(#REF!))))","v":{"$error":"#REF!"}}]
[]
[null,null,null,null,"Components of national expenditure on environmental protection by CEPA",null,null,null,null,{"$f":"J26","v":"CEPA 1"},null,null,"of which CEPA 1.1.2 and 1.2.2 Climate change",{"$f":"N26","v":"CEPA2"},null,{"$f":"P26","v":"CEPA 3"},null,{"$f":"R26","v":"CEPA 4"},null,{"$f":"T26","v":"CEPA 5"},null,{"$f":"V26","v":"CEPA 6"},null,"CEPA 7",null,"CEPA 8",null,"CEPA 9",null,{"$f":"AD26","v":"CEPA 7+8+9"},null,"TOTAL"]
[null,null,null,null,"Figures calculated from information available in the questionnaire"]
[null,null,null,null,2014,null,"Final consumption expenditure",null,"+ P3_EPS.1"]
[null,null,null,null,null,null,null,null,"+ P3_EPS.5"]
[null,null,null,null,null,null,"Intermediate consumption",null,"+ P1_ANC.3",{"$f":"+INDEX('3'!J$133:J$150,$E49-$E$49+1)","v":":"},null,null,null,{"$f":"+INDEX('3'!N$133:N$150,$E49-$E$49+1)","v":":"},null,{"$f":"+INDEX('3'!P$133:P$150,$E49-$E$49+1)","v":":"},null,{"$f":"+INDEX('3'!R$133:R$150,$E49-$E$49+1)","v":":"},null,{"$f":"+INDEX('3'!T$133:T$150,$E49-$E$49+1)","v":":"},null,{"$f":"+INDEX('3'!V$133:V$150,$E49-$E$49+1)","v":":"},null,null,null,null,null,null,null,{"$f":"+INDEX('3'!AD$133:AD$150,$E49-$E$49+1)","v":":"},null,{"$f":"+INDEX('3'!AF$133:AF$150,$E49-$E$49+1)","v":":"}]
[null,null,null,null,null,null,null,null,"+ P2",{"$f":"+IF(COUNT(J53:J57)=0,\":\",SUM(J53:J55)-SUM(J56:J57))","v":":"},null,null,null,{"$f":"+IF(COUNT(N53:N57)=0,\":\",SUM(N53:N55)-SUM(N56:N57))","v":":"},null,{"$f":"+IF(COUNT(P53:P57)=0,\":\",SUM(P53:P55)-SUM(P56:P57))","v":":"},null,{"$f":"+IF(COUNT(R53:R57)=0,\":\",SUM(R53:R55)-SUM(R56:R57))","v":":"},null,{"$f":"+IF(COUNT(T53:T57)=0,\":\",SUM(T53:T55)-SUM(T56:T57))","v":":"},null,{"$f":"+IF(COUNT(V53:V57)=0,\":\",SUM(V53:V55)-SUM(V56:V57))","v":":"},null,null,null,null,null,null,null,{"$f":"+IF(COUNT(AD53:AD57)=0,\":\",SUM(AD53:AD55)-SUM(AD56:AD57))","v":":"},null,{"$f":"+IF(COUNT(AF53:AF57)=0,\":\",SUM(AF53:AF55)-SUM(AF56:AF57))","v":":"}]
[null,null,null,null,null,null,null,null,"+ P2_EPS_EXT.1"]
[null,null,null,null,2014,null,null,null,"+ P2_EPS_EXT.2",{"$f":"+INDEX('2'!J$259:J$276,$E49-$E$49+1)","v":":"},null,null,null,{"$f":"+INDEX('2'!N$259:N$276,$E49-$E$49+1)","v":":"},null,{"$f":"+INDEX('2'!P$259:P$276,$E49-$E$49+1)","v":":"},null,{"$f":"+INDEX('2'!R$259:R$276,$E49-$E$49+1)","v":":"},null,{"$f":"+INDEX('2'!T$259:T$276,$E49-$E$49+1)","v":":"},null,{"$f":"+INDEX('2'!V$259:V$276,$E49-$E$49+1)","v":":"},null,null,null,null,null,null,null,{"$f":"+INDEX('2'!AD$259:AD$276,$E49-$E$49+1)","v":":"},null,{"$f":"+INDEX('2'!AF$259:AF$276,$E49-$E$49+1)","v":":"}]
[null,null,null,null,null,null,null,null,"+ P2_EPS_EXT.3",{"$f":"+INDEX('3'!J$223:J$240,$E49-$E$49+1)","v":":"},null,null,null,{"$f":"+INDEX('3'!N$223:N$240,$E49-$E$49+1)","v":":"},null,{"$f":"+INDEX('3'!P$223:P$240,$E49-$E$49+1)","v":":"},null,{"$f":"+INDEX('3'!R$223:R$240,$E49-$E$49+1)","v":":"},null,{"$f":"+INDEX('3'!T$223:T$240,$E49-$E$49+1)","v":":"},null,{"$f":"+INDEX('3'!V$223:V$240,$E49-$E$49+1)","v":":"},null,null,null,null,null,null,null,{"$f":"+INDEX('3'!AD$223:AD$240,$E49-$E$49+1)","v":":"},null,{"$f":"+INDEX('3'!AF$223:AF$240,$E49-$E$49+1)","v":":"}]
[null,null,null,null,null,null,null,null,"- P2_EPS.1"]
[null,null,null,null,null,null,null,null,"- P2_EPS.2",{"$f":"+INDEX('2'!J$43:J$60,$E49-$E$49+1)","v":":"},null,null,null,{"$f":"+INDEX('2'!N$43:N$60,$E49-$E$49+1)","v":":"},null,{"$f":"+INDEX('2'!P$43:P$60,$E49-$E$49+1)","v":":"},null,{"$f":"+INDEX('2'!R$43:R$60,$E49-$E$49+1)","v":":"},null,{"$f":"+INDEX('2'!T$43:T$60,$E49-$E$49+1)","v":":"},null,{"$f":"+INDEX('2'!V$43:V$60,$E49-$E$49+1)","v":":"},null,null,null,null,null,null,null,{"$f":"+INDEX('2'!AD$43:AD$60,$E49-$E$49+1)","v":":"},null,{"$f":"+INDEX('2'!AF$43:AF$60,$E49-$E$49+1)","v":":"}]
[null,null,null,null,null,null,"Gross fixed capital formation and acquisition less disposals of non-financial, non-produced assets ",null,"+ P51G_NP.1"]
[null,null,null,null,null,null,null,null,"+ P51G_NP.2",{"$f":"+INDEX('2'!J$7:J$24,$E49-$E$49+1)","v":":"},null,null,null,{"$f":"+INDEX('2'!N$7:N$24,$E49-$E$49+1)","v":":"},null,{"$f":"+INDEX('2'!P$7:P$24,$E49-$E$49+1)","v":":"},null,{"$f":"+INDEX('2'!R$7:R$24,$E49-$E$49+1)","v":":"},null,{"$f":"+INDEX('2'!T$7:T$24,$E49-$E$49+1)","v":":"},null,{"$f":"+INDEX('2'!V$7:V$24,$E49-$E$49+1)","v":":"},null,null,null,null,null,null,null,{"$f":"+INDEX('2'!AD$7:AD$24,$E49-$E$49+1)","v":":"},null,{"$f":"+INDEX('2'!AF$7:AF$24,$E49-$E$49+1)","v":":"}]
[null,null,null,null,null,null,null,null,"+ P51G_NP.3",{"$f":"+INDEX('3'!J$7:J$24,$E49-$E$49+1)","v":":"},null,null,null,{"$f":"+INDEX('3'!N$7:N$24,$E49-$E$49+1)","v":":"},null,{"$f":"+INDEX('3'!P$7:P$24,$E49-$E$49+1)","v":":"},null,{"$f":"+INDEX('3'!R$7:R$24,$E49-$E$49+1)","v":":"},null,{"$f":"+INDEX('3'!T$7:T$24,$E49-$E$49+1)","v":":"},null,{"$f":"+INDEX('3'!V$7:V$24,$E49-$E$49+1)","v":":"},null,null,null,null,null,null,null,{"$f":"+INDEX('3'!AD$7:AD$24,$E49-$E$49+1)","v":":"},null,{"$f":"+INDEX('3'!AF$7:AF$24,$E49-$E$49+1)","v":":"}]
[null,null,null,null,null,null,"EP transfers to / from Rest of the World",null,"- D3_D7_D92_D99_PAY_RW.6"]
[null,null,null,null,null,null,null,null,"+ D3_D7_D92_D99_REC_RW.6"]
[null,null,null,null,null,null,"TOTAL",null,"=SUM()",{"$f":"+IF(COUNT(J49:J52,J58:J62)=0,\":\",SUM(J49:J52,J58:J60,J62)-SUM(J61))","v":":"},null,null,null,{"$f":"+IF(COUNT(N49:N52,N58:N62)=0,\":\",SUM(N49:N52,N58:N60,N62)-SUM(N61))","v":":"},null,{"$f":"+IF(COUNT(P49:P52,P58:P62)=0,\":\",SUM(P49:P52,P58:P60,P62)-SUM(P61))","v":":"},null,{"$f":"+IF(COUNT(R49:R52,R58:R62)=0,\":\",SUM(R49:R52,R58:R60,R62)-SUM(R61))","v":":"},null,{"$f":"+IF(COUNT(T49:T52,T58:T62)=0,\":\",SUM(T49:T52,T58:T60,T62)-SUM(T61))","v":":"},null,{"$f":"+IF(COUNT(V49:V52,V58:V62)=0,\":\",SUM(V49:V52,V58:V60,V62)-SUM(V61))","v":":"},null,null,null,null,null,null,null,{"$f":"+IF(COUNT(AD49:AD52,AD58:AD62)=0,\":\",SUM(AD49:AD52,AD58:AD60,AD62)-SUM(AD61))","v":":"},null,{"$f":"+IF(COUNT(AF49:AF52,AF58:AF62)=0,\":\",SUM(AF49:AF52,AF58:AF60,AF62)-SUM(AF61))","v":":"}]
[null,null,null,null,2015,null,"Final consumption expenditure",null,"+ P3_EPS.1"]
[null,null,null,null,null,null,null,null,"+ P3_EPS.5"]
[null,null,null,null,null,null,"Intermediate consumption",null,"+ P1_ANC.3",{"$f":"+INDEX('3'!J$133:J$150,$E64-$E$49+1)","v":":"},null,null,null,{"$f":"+INDEX('3'!N$133:N$150,$E64-$E$49+1)","v":":"},null,{"$f":"+INDEX('3'!P$133:P$150,$E64-$E$49+1)","v":":"},null,{"$f":"+INDEX('3'!R$133:R$150,$E64-$E$49+1)","v":":"},null,{"$f":"+INDEX('3'!T$133:T$150,$E64-$E$49+1)","v":":"},null,{"$f":"+INDEX('3'!V$133:V$150,$E64-$E$49+1)","v":":"},null,null,null,null,null,null,null,{"$f":"+INDEX('3'!AD$133:AD$150,$E64-$E$49+1)","v":":"},null,{"$f":"+INDEX('3'!AF$133:AF$150,$E64-$E$49+1)","v":":"}]
[null,null,null,null,null,null,null,null,"+ P2",{"$f":"+IF(COUNT(J68:J72)=0,\":\",SUM(J68:J70)-SUM(J71:J72))","v":":"},null,null,null,{"$f":"+IF(COUNT(N68:N72)=0,\":\",SUM(N68:N70)-SUM(N71:N72))","v":":"},null,{"$f":"+IF(COUNT(P68:P72)=0,\":\",SUM(P68:P70)-SUM(P71:P72))","v":":"},null,{"$f":"+IF(COUNT(R68:R72)=0,\":\",SUM(R68:R70)-SUM(R71:R72))","v":":"},null,{"$f":"+IF(COUNT(T68:T72)=0,\":\",SUM(T68:T70)-SUM(T71:T72))","v":":"},null,{"$f":"+IF(COUNT(V68:V72)=0,\":\",SUM(V68:V70)-SUM(V71:V72))","v":":"},null,null,null,null,null,null,null,{"$f":"+IF(COUNT(AD68:AD72)=0,\":\",SUM(AD68:AD70)-SUM(AD71:AD72))","v":":"},null,{"$f":"+IF(COUNT(AF68:AF72)=0,\":\",SUM(AF68:AF70)-SUM(AF71:AF72))","v":":"}]
[null,null,null,null,null,null,null,null,"+ P2_EPS_EXT.1"]
[null,null,null,null,2015,null,null,null,"+ P2_EPS_EXT.2",{"$f":"+INDEX('2'!J$259:J$276,$E64-$E$49+1)","v":":"},null,null,null,{"$f":"+INDEX('2'!N$259:N$276,$E64-$E$49+1)","v":":"},null,{"$f":"+INDEX('2'!P$259:P$276,$E64-$E$49+1)","v":":"},null,{"$f":"+INDEX('2'!R$259:R$276,$E64-$E$49+1)","v":":"},null,{"$f":"+INDEX('2'!T$259:T$276,$E64-$E$49+1)","v":":"},null,{"$f":"+INDEX('2'!V$259:V$276,$E64-$E$49+1)","v":":"},null,null,null,null,null,null,null,{"$f":"+INDEX('2'!AD$259:AD$276,$E64-$E$49+1)","v":":"},null,{"$f":"+INDEX('2'!AF$259:AF$276,$E64-$E$49+1)","v":":"}]
[null,null,null,null,null,null,null,null,"+ P2_EPS_EXT.3",{"$f":"+INDEX('3'!J$223:J$240,$E64-$E$49+1)","v":":"},null,null,null,{"$f":"+INDEX('3'!N$223:N$240,$E64-$E$49+1)","v":":"},null,{"$f":"+INDEX('3'!P$223:P$240,$E64-$E$49+1)","v":":"},null,{"$f":"+INDEX('3'!R$223:R$240,$E64-$E$49+1)","v":":"},null,{"$f":"+INDEX('3'!T$223:T$240,$E64-$E$49+1)","v":":"},null,{"$f":"+INDEX('3'!V$223:V$240,$E64-$E$49+1)","v":":"},null,null,null,null,null,null,null,{"$f":"+INDEX('3'!AD$223:AD$240,$E64-$E$49+1)","v":":"},null,{"$f":"+INDEX('3'!AF$223:AF$240,$E64-$E$49+1)","v":":"}]
[null,null,null,null,null,null,null,null,"- P2_EPS.1"]
[null,null,null,null,null,null,null,null,"- P2_EPS.2",{"$f":"+INDEX('2'!J$43:J$60,$E64-$E$49+1)","v":":"},null,null,null,{"$f":"+INDEX('2'!N$43:N$60,$E64-$E$49+1)","v":":"},null,{"$f":"+INDEX('2'!P$43:P$60,$E64-$E$49+1)","v":":"},null,{"$f":"+INDEX('2'!R$43:R$60,$E64-$E$49+1)","v":":"},null,{"$f":"+INDEX('2'!T$43:T$60,$E64-$E$49+1)","v":":"},null,{"$f":"+INDEX('2'!V$43:V$60,$E64-$E$49+1)","v":":"},null,null,null,null,null,null,null,{"$f":"+INDEX('2'!AD$43:AD$60,$E64-$E$49+1)","v":":"},null,{"$f":"+INDEX('2'!AF$43:AF$60,$E64-$E$49+1)","v":":"}]
[null,null,null,null,null,null,"Gross fixed capital formation and acquisition less disposals of non-financial, non-produced assets ",null,"+ P51G_NP.1"]
[null,null,null,null,null,null,null,null,"+ P51G_NP.2",{"$f":"+INDEX('2'!J$7:J$24,$E64-$E$49+1)","v":":"},null,null,null,{"$f":"+INDEX('2'!N$7:N$24,$E64-$E$49+1)","v":":"},null,{"$f":"+INDEX('2'!P$7:P$24,$E64-$E$49+1)","v":":"},null,{"$f":"+INDEX('2'!R$7:R$24,$E64-$E$49+1)","v":":"},null,{"$f":"+INDEX('2'!T$7:T$24,$E64-$E$49+1)","v":":"},null,{"$f":"+INDEX('2'!V$7:V$24,$E64-$E$49+1)","v":":"},null,null,null,null,null,null,null,{"$f":"+INDEX('2'!AD$7:AD$24,$E64-$E$49+1)","v":":"},null,{"$f":"+INDEX('2'!AF$7:AF$24,$E64-$E$49+1)","v":":"}]
[null,null,null,null,null,null,null,null,"+ P51G_NP.3",{"$f":"+INDEX('3'!J$7:J$24,$E64-$E$49+1)","v":":"},null,null,null,{"$f":"+INDEX('3'!N$7:N$24,$E64-$E$49+1)","v":":"},null,{"$f":"+INDEX('3'!P$7:P$24,$E64-$E$49+1)","v":":"},null,{"$f":"+INDEX('3'!R$7:R$24,$E64-$E$49+1)","v":":"},null,{"$f":"+INDEX('3'!T$7:T$24,$E64-$E$49+1)","v":":"},null,{"$f":"+INDEX('3'!V$7:V$24,$E64-$E$49+1)","v":":"},null,null,null,null,null,null,null,{"$f":"+INDEX('3'!AD$7:AD$24,$E64-$E$49+1)","v":":"},null,{"$f":"+INDEX('3'!AF$7:AF$24,$E64-$E$49+1)","v":":"}]
[null,null,null,null,null,null,"EP transfers to / from Rest of the World",null,"- D3_D7_D92_D99_PAY_RW.6"]
[null,null,null,null,null,null,null,null,"+ D3_D7_D92_D99_REC_RW.6"]
[null,null,null,null,null,null,"TOTAL",null,"=SUM()",{"$f":"+IF(COUNT(J64:J67,J73:J77)=0,\":\",SUM(J64:J67,J73:J75,J77)-SUM(J76))","v":":"},null,null,null,{"$f":"+IF(COUNT(N64:N67,N73:N77)=0,\":\",SUM(N64:N67,N73:N75,N77)-SUM(N76))","v":":"},null,{"$f":"+IF(COUNT(P64:P67,P73:P77)=0,\":\",SUM(P64:P67,P73:P75,P77)-SUM(P76))","v":":"},null,{"$f":"+IF(COUNT(R64:R67,R73:R77)=0,\":\",SUM(R64:R67,R73:R75,R77)-SUM(R76))","v":":"},null,{"$f":"+IF(COUNT(T64:T67,T73:T77)=0,\":\",SUM(T64:T67,T73:T75,T77)-SUM(T76))","v":":"},null,{"$f":"+IF(COUNT(V64:V67,V73:V77)=0,\":\",SUM(V64:V67,V73:V75,V77)-SUM(V76))","v":":"},null,null,null,null,null,null,null,{"$f":"+IF(COUNT(AD64:AD67,AD73:AD77)=0,\":\",SUM(AD64:AD67,AD73:AD75,AD77)-SUM(AD76))","v":":"},null,{"$f":"+IF(COUNT(AF64:AF67,AF73:AF77)=0,\":\",SUM(AF64:AF67,AF73:AF75,AF77)-SUM(AF76))","v":":"}]
[null,null,null,null,2016,null,"Final consumption expenditure",null,"+ P3_EPS.1"]
[null,null,null,null,null,null,null,null,"+ P3_EPS.5"]
[null,null,null,null,null,null,"Intermediate consumption",null,"+ P1_ANC.3",{"$f":"+INDEX('3'!J$133:J$150,$E79-$E$49+1)","v":":"},null,null,null,{"$f":"+INDEX('3'!N$133:N$150,$E79-$E$49+1)","v":":"},null,{"$f":"+INDEX('3'!P$133:P$150,$E79-$E$49+1)","v":":"},null,{"$f":"+INDEX('3'!R$133:R$150,$E79-$E$49+1)","v":":"},null,{"$f":"+INDEX('3'!T$133:T$150,$E79-$E$49+1)","v":":"},null,{"$f":"+INDEX('3'!V$133:V$150,$E79-$E$49+1)","v":":"},null,null,null,null,null,null,null,{"$f":"+INDEX('3'!AD$133:AD$150,$E79-$E$49+1)","v":":"},null,{"$f":"+INDEX('3'!AF$133:AF$150,$E79-$E$49+1)","v":":"}]
[null,null,null,null,null,null,null,null,"+ P2",{"$f":"+IF(COUNT(J83:J87)=0,\":\",SUM(J83:J85)-SUM(J86:J87))","v":":"},null,null,null,{"$f":"+IF(COUNT(N83:N87)=0,\":\",SUM(N83:N85)-SUM(N86:N87))","v":":"},null,{"$f":"+IF(COUNT(P83:P87)=0,\":\",SUM(P83:P85)-SUM(P86:P87))","v":":"},null,{"$f":"+IF(COUNT(R83:R87)=0,\":\",SUM(R83:R85)-SUM(R86:R87))","v":":"},null,{"$f":"+IF(COUNT(T83:T87)=0,\":\",SUM(T83:T85)-SUM(T86:T87))","v":":"},null,{"$f":"+IF(COUNT(V83:V87)=0,\":\",SUM(V83:V85)-SUM(V86:V87))","v":":"},null,null,null,null,null,null,null,{"$f":"+IF(COUNT(AD83:AD87)=0,\":\",SUM(AD83:AD85)-SUM(AD86:AD87))","v":":"},null,{"$f":"+IF(COUNT(AF83:AF87)=0,\":\",SUM(AF83:AF85)-SUM(AF86:AF87))","v":":"}]
[null,null,null,null,null,null,null,null,"+ P2_EPS_EXT.1"]
[null,null,null,null,2016,null,null,null,"+ P2_EPS_EXT.2",{"$f":"+INDEX('2'!J$259:J$276,$E79-$E$49+1)","v":":"},null,null,null,{"$f":"+INDEX('2'!N$259:N$276,$E79-$E$49+1)","v":":"},null,{"$f":"+INDEX('2'!P$259:P$276,$E79-$E$49+1)","v":":"},null,{"$f":"+INDEX('2'!R$259:R$276,$E79-$E$49+1)","v":":"},null,{"$f":"+INDEX('2'!T$259:T$276,$E79-$E$49+1)","v":":"},null,{"$f":"+INDEX('2'!V$259:V$276,$E79-$E$49+1)","v":":"},null,null,null,null,null,null,null,{"$f":"+INDEX('2'!AD$259:AD$276,$E79-$E$49+1)","v":":"},null,{"$f":"+INDEX('2'!AF$259:AF$276,$E79-$E$49+1)","v":":"}]
[null,null,null,null,null,null,null,null,"+ P2_EPS_EXT.3",{"$f":"+INDEX('3'!J$223:J$240,$E79-$E$49+1)","v":":"},null,null,null,{"$f":"+INDEX('3'!N$223:N$240,$E79-$E$49+1)","v":":"},null,{"$f":"+INDEX('3'!P$223:P$240,$E79-$E$49+1)","v":":"},null,{"$f":"+INDEX('3'!R$223:R$240,$E79-$E$49+1)","v":":"},null,{"$f":"+INDEX('3'!T$223:T$240,$E79-$E$49+1)","v":":"},null,{"$f":"+INDEX('3'!V$223:V$240,$E79-$E$49+1)","v":":"},null,null,null,null,null,null,null,{"$f":"+INDEX('3'!AD$223:AD$240,$E79-$E$49+1)","v":":"},null,{"$f":"+INDEX('3'!AF$223:AF$240,$E79-$E$49+1)","v":":"}]
[null,null,null,null,null,null,null,null,"- P2_EPS.1"]
[null,null,null,null,null,null,null,null,"- P2_EPS.2",{"$f":"+INDEX('2'!J$43:J$60,$E79-$E$49+1)","v":":"},null,null,null,{"$f":"+INDEX('2'!N$43:N$60,$E79-$E$49+1)","v":":"},null,{"$f":"+INDEX('2'!P$43:P$60,$E79-$E$49+1)","v":":"},null,{"$f":"+INDEX('2'!R$43:R$60,$E79-$E$49+1)","v":":"},null,{"$f":"+INDEX('2'!T$43:T$60,$E79-$E$49+1)","v":":"},null,{"$f":"+INDEX('2'!V$43:V$60,$E79-$E$49+1)","v":":"},null,null,null,null,null,null,null,{"$f":"+INDEX('2'!AD$43:AD$60,$E79-$E$49+1)","v":":"},null,{"$f":"+INDEX('2'!AF$43:AF$60,$E79-$E$49+1)","v":":"}]
[null,null,null,null,null,null,"Gross fixed capital formation and acquisition less disposals of non-financial, non-produced assets ",null,"+ P51G_NP.1"]
[null,null,null,null,null,null,null,null,"+ P51G_NP.2",{"$f":"+INDEX('2'!J$7:J$24,$E79-$E$49+1)","v":":"},null,null,null,{"$f":"+INDEX('2'!N$7:N$24,$E79-$E$49+1)","v":":"},null,{"$f":"+INDEX('2'!P$7:P$24,$E79-$E$49+1)","v":":"},null,{"$f":"+INDEX('2'!R$7:R$24,$E79-$E$49+1)","v":":"},null,{"$f":"+INDEX('2'!T$7:T$24,$E79-$E$49+1)","v":":"},null,{"$f":"+INDEX('2'!V$7:V$24,$E79-$E$49+1)","v":":"},null,null,null,null,null,null,null,{"$f":"+INDEX('2'!AD$7:AD$24,$E79-$E$49+1)","v":":"},null,{"$f":"+INDEX('2'!AF$7:AF$24,$E79-$E$49+1)","v":":"}]
[null,null,null,null,null,null,null,null,"+ P51G_NP.3",{"$f":"+INDEX('3'!J$7:J$24,$E79-$E$49+1)","v":":"},null,null,null,{"$f":"+INDEX('3'!N$7:N$24,$E79-$E$49+1)","v":":"},null,{"$f":"+INDEX('3'!P$7:P$24,$E79-$E$49+1)","v":":"},null,{"$f":"+INDEX('3'!R$7:R$24,$E79-$E$49+1)","v":":"},null,{"$f":"+INDEX('3'!T$7:T$24,$E79-$E$49+1)","v":":"},null,{"$f":"+INDEX('3'!V$7:V$24,$E79-$E$49+1)","v":":"},null,null,null,null,null,null,null,{"$f":"+INDEX('3'!AD$7:AD$24,$E79-$E$49+1)","v":":"},null,{"$f":"+INDEX('3'!AF$7:AF$24,$E79-$E$49+1)","v":":"}]
[null,null,null,null,null,null,"EP transfers to / from Rest of the World",null,"- D3_D7_D92_D99_PAY_RW.6"]
[null,null,null,null,null,null,null,null,"+ D3_D7_D92_D99_REC_RW.6"]
[null,null,null,null,null,null,"TOTAL",null,"=SUM()",{"$f":"+IF(COUNT(J79:J82,J88:J92)=0,\":\",SUM(J79:J82,J88:J90,J92)-SUM(J91))","v":":"},null,null,null,{"$f":"+IF(COUNT(N79:N82,N88:N92)=0,\":\",SUM(N79:N82,N88:N90,N92)-SUM(N91))","v":":"},null,{"$f":"+IF(COUNT(P79:P82,P88:P92)=0,\":\",SUM(P79:P82,P88:P90,P92)-SUM(P91))","v":":"},null,{"$f":"+IF(COUNT(R79:R82,R88:R92)=0,\":\",SUM(R79:R82,R88:R90,R92)-SUM(R91))","v":":"},null,{"$f":"+IF(COUNT(T79:T82,T88:T92)=0,\":\",SUM(T79:T82,T88:T90,T92)-SUM(T91))","v":":"},null,{"$f":"+IF(COUNT(V79:V82,V88:V92)=0,\":\",SUM(V79:V82,V88:V90,V92)-SUM(V91))","v":":"},null,null,null,null,null,null,null,{"$f":"+IF(COUNT(AD79:AD82,AD88:AD92)=0,\":\",SUM(AD79:AD82,AD88:AD90,AD92)-SUM(AD91))","v":":"},null,{"$f":"+IF(COUNT(AF79:AF82,AF88:AF92)=0,\":\",SUM(AF79:AF82,AF88:AF90,AF92)-SUM(AF91))","v":":"}]
[null,null,null,null,2017,null,"Final consumption expenditure",null,"+ P3_EPS.1"]
[null,null,null,null,null,null,null,null,"+ P3_EPS.5"]
[null,null,null,null,null,null,"Intermediate consumption",null,"+ P1_ANC.3",{"$f":"+INDEX('3'!J$133:J$150,$E94-$E$49+1)","v":":"},null,null,null,{"$f":"+INDEX('3'!N$133:N$150,$E94-$E$49+1)","v":":"},null,{"$f":"+INDEX('3'!P$133:P$150,$E94-$E$49+1)","v":":"},null,{"$f":"+INDEX('3'!R$133:R$150,$E94-$E$49+1)","v":":"},null,{"$f":"+INDEX('3'!T$133:T$150,$E94-$E$49+1)","v":":"},null,{"$f":"+INDEX('3'!V$133:V$150,$E94-$E$49+1)","v":":"},null,null,null,null,null,null,null,{"$f":"+INDEX('3'!AD$133:AD$150,$E94-$E$49+1)","v":":"},null,{"$f":"+INDEX('3'!AF$133:AF$150,$E94-$E$49+1)","v":":"}]
[null,null,null,null,null,null,null,null,"+ P2",{"$f":"+IF(COUNT(J98:J102)=0,\":\",SUM(J98:J100)-SUM(J101:J102))","v":":"},null,null,null,{"$f":"+IF(COUNT(N98:N102)=0,\":\",SUM(N98:N100)-SUM(N101:N102))","v":":"},null,{"$f":"+IF(COUNT(P98:P102)=0,\":\",SUM(P98:P100)-SUM(P101:P102))","v":":"},null,{"$f":"+IF(COUNT(R98:R102)=0,\":\",SUM(R98:R100)-SUM(R101:R102))","v":":"},null,{"$f":"+IF(COUNT(T98:T102)=0,\":\",SUM(T98:T100)-SUM(T101:T102))","v":":"},null,{"$f":"+IF(COUNT(V98:V102)=0,\":\",SUM(V98:V100)-SUM(V101:V102))","v":":"},null,null,null,null,null,null,null,{"$f":"+IF(COUNT(AD98:AD102)=0,\":\",SUM(AD98:AD100)-SUM(AD101:AD102))","v":":"},null,{"$f":"+IF(COUNT(AF98:AF102)=0,\":\",SUM(AF98:AF100)-SUM(AF101:AF102))","v":":"}]
[null,null,null,null,null,null,null,null,"+ P2_EPS_EXT.1"]
[null,null,null,null,2017,null,null,null,"+ P2_EPS_EXT.2",{"$f":"+INDEX('2'!J$259:J$276,$E94-$E$49+1)","v":":"},null,null,null,{"$f":"+INDEX('2'!N$259:N$276,$E94-$E$49+1)","v":":"},null,{"$f":"+INDEX('2'!P$259:P$276,$E94-$E$49+1)","v":":"},null,{"$f":"+INDEX('2'!R$259:R$276,$E94-$E$49+1)","v":":"},null,{"$f":"+INDEX('2'!T$259:T$276,$E94-$E$49+1)","v":":"},null,{"$f":"+INDEX('2'!V$259:V$276,$E94-$E$49+1)","v":":"},null,null,null,null,null,null,null,{"$f":"+INDEX('2'!AD$259:AD$276,$E94-$E$49+1)","v":":"},null,{"$f":"+INDEX('2'!AF$259:AF$276,$E94-$E$49+1)","v":":"}]
[null,null,null,null,null,null,null,null,"+ P2_EPS_EXT.3",{"$f":"+INDEX('3'!J$223:J$240,$E94-$E$49+1)","v":":"},null,null,null,{"$f":"+INDEX('3'!N$223:N$240,$E94-$E$49+1)","v":":"},null,{"$f":"+INDEX('3'!P$223:P$240,$E94-$E$49+1)","v":":"},null,{"$f":"+INDEX('3'!R$223:R$240,$E94-$E$49+1)","v":":"},null,{"$f":"+INDEX('3'!T$223:T$240,$E94-$E$49+1)","v":":"},null,{"$f":"+INDEX('3'!V$223:V$240,$E94-$E$49+1)","v":":"},null,null,null,null,null,null,null,{"$f":"+INDEX('3'!AD$223:AD$240,$E94-$E$49+1)","v":":"},null,{"$f":"+INDEX('3'!AF$223:AF$240,$E94-$E$49+1)","v":":"}]
[null,null,null,null,null,null,null,null,"- P2_EPS.1"]
[null,null,null,null,null,null,null,null,"- P2_EPS.2",{"$f":"+INDEX('2'!J$43:J$60,$E94-$E$49+1)","v":":"},null,null,null,{"$f":"+INDEX('2'!N$43:N$60,$E94-$E$49+1)","v":":"},null,{"$f":"+INDEX('2'!P$43:P$60,$E94-$E$49+1)","v":":"},null,{"$f":"+INDEX('2'!R$43:R$60,$E94-$E$49+1)","v":":"},null,{"$f":"+INDEX('2'!T$43:T$60,$E94-$E$49+1)","v":":"},null,{"$f":"+INDEX('2'!V$43:V$60,$E94-$E$49+1)","v":":"},null,null,null,null,null,null,null,{"$f":"+INDEX('2'!AD$43:AD$60,$E94-$E$49+1)","v":":"},null,{"$f":"+INDEX('2'!AF$43:AF$60,$E94-$E$49+1)","v":":"}]
[null,null,null,null,null,null,"Gross fixed capital formation and acquisition less disposals of non-financial, non-produced assets ",null,"+ P51G_NP.1"]
[null,null,null,null,null,null,null,null,"+ P51G_NP.2",{"$f":"+INDEX('2'!J$7:J$24,$E94-$E$49+1)","v":":"},null,null,null,{"$f":"+INDEX('2'!N$7:N$24,$E94-$E$49+1)","v":":"},null,{"$f":"+INDEX('2'!P$7:P$24,$E94-$E$49+1)","v":":"},null,{"$f":"+INDEX('2'!R$7:R$24,$E94-$E$49+1)","v":":"},null,{"$f":"+INDEX('2'!T$7:T$24,$E94-$E$49+1)","v":":"},null,{"$f":"+INDEX('2'!V$7:V$24,$E94-$E$49+1)","v":":"},null,null,null,null,null,null,null,{"$f":"+INDEX('2'!AD$7:AD$24,$E94-$E$49+1)","v":":"},null,{"$f":"+INDEX('2'!AF$7:AF$24,$E94-$E$49+1)","v":":"}]
[null,null,null,null,null,null,null,null,"+ P51G_NP.3",{"$f":"+INDEX('3'!J$7:J$24,$E94-$E$49+1)","v":":"},null,null,null,{"$f":"+INDEX('3'!N$7:N$24,$E94-$E$49+1)","v":":"},null,{"$f":"+INDEX('3'!P$7:P$24,$E94-$E$49+1)","v":":"},null,{"$f":"+INDEX('3'!R$7:R$24,$E94-$E$49+1)","v":":"},null,{"$f":"+INDEX('3'!T$7:T$24,$E94-$E$49+1)","v":":"},null,{"$f":"+INDEX('3'!V$7:V$24,$E94-$E$49+1)","v":":"},null,null,null,null,null,null,null,{"$f":"+INDEX('3'!AD$7:AD$24,$E94-$E$49+1)","v":":"},null,{"$f":"+INDEX('3'!AF$7:AF$24,$E94-$E$49+1)","v":":"}]
[null,null,null,null,null,null,"EP transfers to / from Rest of the World",null,"- D3_D7_D92_D99_PAY_RW.6"]
[null,null,null,null,null,null,null,null,"+ D3_D7_D92_D99_REC_RW.6"]
[null,null,null,null,null,null,"TOTAL",null,"=SUM()",{"$f":"+IF(COUNT(J94:J97,J103:J107)=0,\":\",SUM(J94:J97,J103:J105,J107)-SUM(J106))","v":":"},null,null,null,{"$f":"+IF(COUNT(N94:N97,N103:N107)=0,\":\",SUM(N94:N97,N103:N105,N107)-SUM(N106))","v":":"},null,{"$f":"+IF(COUNT(P94:P97,P103:P107)=0,\":\",SUM(P94:P97,P103:P105,P107)-SUM(P106))","v":":"},null,{"$f":"+IF(COUNT(R94:R97,R103:R107)=0,\":\",SUM(R94:R97,R103:R105,R107)-SUM(R106))","v":":"},null,{"$f":"+IF(COUNT(T94:T97,T103:T107)=0,\":\",SUM(T94:T97,T103:T105,T107)-SUM(T106))","v":":"},null,{"$f":"+IF(COUNT(V94:V97,V103:V107)=0,\":\",SUM(V94:V97,V103:V105,V107)-SUM(V106))","v":":"},null,null,null,null,null,null,null,{"$f":"+IF(COUNT(AD94:AD97,AD103:AD107)=0,\":\",SUM(AD94:AD97,AD103:AD105,AD107)-SUM(AD106))","v":":"},null,{"$f":"+IF(COUNT(AF94:AF97,AF103:AF107)=0,\":\",SUM(AF94:AF97,AF103:AF105,AF107)-SUM(AF106))","v":":"}]
[null,null,null,null,2018,null,"Final consumption expenditure",null,"+ P3_EPS.1"]
[null,null,null,null,null,null,null,null,"+ P3_EPS.5"]
[null,null,null,null,null,null,"Intermediate consumption",null,"+ P1_ANC.3",{"$f":"+INDEX('3'!J$133:J$150,$E109-$E$49+1)","v":":"},null,null,null,{"$f":"+INDEX('3'!N$133:N$150,$E109-$E$49+1)","v":":"},null,{"$f":"+INDEX('3'!P$133:P$150,$E109-$E$49+1)","v":":"},null,{"$f":"+INDEX('3'!R$133:R$150,$E109-$E$49+1)","v":":"},null,{"$f":"+INDEX('3'!T$133:T$150,$E109-$E$49+1)","v":":"},null,{"$f":"+INDEX('3'!V$133:V$150,$E109-$E$49+1)","v":":"},null,null,null,null,null,null,null,{"$f":"+INDEX('3'!AD$133:AD$150,$E109-$E$49+1)","v":":"},null,{"$f":"+INDEX('3'!AF$133:AF$150,$E109-$E$49+1)","v":":"}]
[null,null,null,null,null,null,null,null,"+ P2",{"$f":"+IF(COUNT(J113:J117)=0,\":\",SUM(J113:J115)-SUM(J116:J117))","v":":"},null,null,null,{"$f":"+IF(COUNT(N113:N117)=0,\":\",SUM(N113:N115)-SUM(N116:N117))","v":":"},null,{"$f":"+IF(COUNT(P113:P117)=0,\":\",SUM(P113:P115)-SUM(P116:P117))","v":":"},null,{"$f":"+IF(COUNT(R113:R117)=0,\":\",SUM(R113:R115)-SUM(R116:R117))","v":":"},null,{"$f":"+IF(COUNT(T113:T117)=0,\":\",SUM(T113:T115)-SUM(T116:T117))","v":":"},null,{"$f":"+IF(COUNT(V113:V117)=0,\":\",SUM(V113:V115)-SUM(V116:V117))","v":":"},null,null,null,null,null,null,null,{"$f":"+IF(COUNT(AD113:AD117)=0,\":\",SUM(AD113:AD115)-SUM(AD116:AD117))","v":":"},null,{"$f":"+IF(COUNT(AF113:AF117)=0,\":\",SUM(AF113:AF115)-SUM(AF116:AF117))","v":":"}]
[null,null,null,null,null,null,null,null,"+ P2_EPS_EXT.1"]
[null,null,null,null,2018,null,null,null,"+ P2_EPS_EXT.2",{"$f":"+INDEX('2'!J$259:J$276,$E109-$E$49+1)","v":":"},null,null,null,{"$f":"+INDEX('2'!N$259:N$276,$E109-$E$49+1)","v":":"},null,{"$f":"+INDEX('2'!P$259:P$276,$E109-$E$49+1)","v":":"},null,{"$f":"+INDEX('2'!R$259:R$276,$E109-$E$49+1)","v":":"},null,{"$f":"+INDEX('2'!T$259:T$276,$E109-$E$49+1)","v":":"},null,{"$f":"+INDEX('2'!V$259:V$276,$E109-$E$49+1)","v":":"},null,null,null,null,null,null,null,{"$f":"+INDEX('2'!AD$259:AD$276,$E109-$E$49+1)","v":":"},null,{"$f":"+INDEX('2'!AF$259:AF$276,$E109-$E$49+1)","v":":"}]
[null,null,null,null,null,null,null,null,"+ P2_EPS_EXT.3",{"$f":"+INDEX('3'!J$223:J$240,$E109-$E$49+1)","v":":"},null,null,null,{"$f":"+INDEX('3'!N$223:N$240,$E109-$E$49+1)","v":":"},null,{"$f":"+INDEX('3'!P$223:P$240,$E109-$E$49+1)","v":":"},null,{"$f":"+INDEX('3'!R$223:R$240,$E109-$E$49+1)","v":":"},null,{"$f":"+INDEX('3'!T$223:T$240,$E109-$E$49+1)","v":":"},null,{"$f":"+INDEX('3'!V$223:V$240,$E109-$E$49+1)","v":":"},null,null,null,null,null,null,null,{"$f":"+INDEX('3'!AD$223:AD$240,$E109-$E$49+1)","v":":"},null,{"$f":"+INDEX('3'!AF$223:AF$240,$E109-$E$49+1)","v":":"}]
[null,null,null,null,null,null,null,null,"- P2_EPS.1"]
[null,null,null,null,null,null,null,null,"- P2_EPS.2",{"$f":"+INDEX('2'!J$43:J$60,$E109-$E$49+1)","v":":"},null,null,null,{"$f":"+INDEX('2'!N$43:N$60,$E109-$E$49+1)","v":":"},null,{"$f":"+INDEX('2'!P$43:P$60,$E109-$E$49+1)","v":":"},null,{"$f":"+INDEX('2'!R$43:R$60,$E109-$E$49+1)","v":":"},null,{"$f":"+INDEX('2'!T$43:T$60,$E109-$E$49+1)","v":":"},null,{"$f":"+INDEX('2'!V$43:V$60,$E109-$E$49+1)","v":":"},null,null,null,null,null,null,null,{"$f":"+INDEX('2'!AD$43:AD$60,$E109-$E$49+1)","v":":"},null,{"$f":"+INDEX('2'!AF$43:AF$60,$E109-$E$49+1)","v":":"}]
[null,null,null,null,null,null,"Gross fixed capital formation and acquisition less disposals of non-financial, non-produced assets ",null,"+ P51G_NP.1"]
[null,null,null,null,null,null,null,null,"+ P51G_NP.2",{"$f":"+INDEX('2'!J$7:J$24,$E109-$E$49+1)","v":":"},null,null,null,{"$f":"+INDEX('2'!N$7:N$24,$E109-$E$49+1)","v":":"},null,{"$f":"+INDEX('2'!P$7:P$24,$E109-$E$49+1)","v":":"},null,{"$f":"+INDEX('2'!R$7:R$24,$E109-$E$49+1)","v":":"},null,{"$f":"+INDEX('2'!T$7:T$24,$E109-$E$49+1)","v":":"},null,{"$f":"+INDEX('2'!V$7:V$24,$E109-$E$49+1)","v":":"},null,null,null,null,null,null,null,{"$f":"+INDEX('2'!AD$7:AD$24,$E109-$E$49+1)","v":":"},null,{"$f":"+INDEX('2'!AF$7:AF$24,$E109-$E$49+1)","v":":"}]
[null,null,null,null,null,null,null,null,"+ P51G_NP.3",{"$f":"+INDEX('3'!J$7:J$24,$E109-$E$49+1)","v":":"},null,null,null,{"$f":"+INDEX('3'!N$7:N$24,$E109-$E$49+1)","v":":"},null,{"$f":"+INDEX('3'!P$7:P$24,$E109-$E$49+1)","v":":"},null,{"$f":"+INDEX('3'!R$7:R$24,$E109-$E$49+1)","v":":"},null,{"$f":"+INDEX('3'!T$7:T$24,$E109-$E$49+1)","v":":"},null,{"$f":"+INDEX('3'!V$7:V$24,$E109-$E$49+1)","v":":"},null,null,null,null,null,null,null,{"$f":"+INDEX('3'!AD$7:AD$24,$E109-$E$49+1)","v":":"},null,{"$f":"+INDEX('3'!AF$7:AF$24,$E109-$E$49+1)","v":":"}]
[null,null,null,null,null,null,"EP transfers to / from Rest of the World",null,"- D3_D7_D92_D99_PAY_RW.6"]
[null,null,null,null,null,null,null,null,"+ D3_D7_D92_D99_REC_RW.6"]
[null,null,null,null,null,null,"TOTAL",null,"=SUM()",{"$f":"+IF(COUNT(J109:J112,J118:J122)=0,\":\",SUM(J109:J112,J118:J120,J122)-SUM(J121))","v":":"},null,null,null,{"$f":"+IF(COUNT(N109:N112,N118:N122)=0,\":\",SUM(N109:N112,N118:N120,N122)-SUM(N121))","v":":"},null,{"$f":"+IF(COUNT(P109:P112,P118:P122)=0,\":\",SUM(P109:P112,P118:P120,P122)-SUM(P121))","v":":"},null,{"$f":"+IF(COUNT(R109:R112,R118:R122)=0,\":\",SUM(R109:R112,R118:R120,R122)-SUM(R121))","v":":"},null,{"$f":"+IF(COUNT(T109:T112,T118:T122)=0,\":\",SUM(T109:T112,T118:T120,T122)-SUM(T121))","v":":"},null,{"$f":"+IF(COUNT(V109:V112,V118:V122)=0,\":\",SUM(V109:V112,V118:V120,V122)-SUM(V121))","v":":"},null,null,null,null,null,null,null,{"$f":"+IF(COUNT(AD109:AD112,AD118:AD122)=0,\":\",SUM(AD109:AD112,AD118:AD120,AD122)-SUM(AD121))","v":":"},null,{"$f":"+IF(COUNT(AF109:AF112,AF118:AF122)=0,\":\",SUM(AF109:AF112,AF118:AF120,AF122)-SUM(AF121))","v":":"}]
[null,null,null,null,2019,null,"Final consumption expenditure",null,"+ P3_EPS.1"]
[null,null,null,null,null,null,null,null,"+ P3_EPS.5"]
[null,null,null,null,null,null,"Intermediate consumption",null,"+ P1_ANC.3",{"$f":"+INDEX('3'!J$133:J$150,$E124-$E$49+1)","v":":"},null,null,null,{"$f":"+INDEX('3'!N$133:N$150,$E124-$E$49+1)","v":":"},null,{"$f":"+INDEX('3'!P$133:P$150,$E124-$E$49+1)","v":":"},null,{"$f":"+INDEX('3'!R$133:R$150,$E124-$E$49+1)","v":":"},null,{"$f":"+INDEX('3'!T$133:T$150,$E124-$E$49+1)","v":":"},null,{"$f":"+INDEX('3'!V$133:V$150,$E124-$E$49+1)","v":":"},null,null,null,null,null,null,null,{"$f":"+INDEX('3'!AD$133:AD$150,$E124-$E$49+1)","v":":"},null,{"$f":"+INDEX('3'!AF$133:AF$150,$E124-$E$49+1)","v":":"}]
[null,null,null,null,null,null,null,null,"+ P2",{"$f":"+IF(COUNT(J128:J132)=0,\":\",SUM(J128:J130)-SUM(J131:J132))","v":":"},null,null,null,{"$f":"+IF(COUNT(N128:N132)=0,\":\",SUM(N128:N130)-SUM(N131:N132))","v":":"},null,{"$f":"+IF(COUNT(P128:P132)=0,\":\",SUM(P128:P130)-SUM(P131:P132))","v":":"},null,{"$f":"+IF(COUNT(R128:R132)=0,\":\",SUM(R128:R130)-SUM(R131:R132))","v":":"},null,{"$f":"+IF(COUNT(T128:T132)=0,\":\",SUM(T128:T130)-SUM(T131:T132))","v":":"},null,{"$f":"+IF(COUNT(V128:V132)=0,\":\",SUM(V128:V130)-SUM(V131:V132))","v":":"},null,null,null,null,null,null,null,{"$f":"+IF(COUNT(AD128:AD132)=0,\":\",SUM(AD128:AD130)-SUM(AD131:AD132))","v":":"},null,{"$f":"+IF(COUNT(AF128:AF132)=0,\":\",SUM(AF128:AF130)-SUM(AF131:AF132))","v":":"}]
[null,null,null,null,null,null,null,null,"+ P2_EPS_EXT.1"]
[null,null,null,null,2019,null,null,null,"+ P2_EPS_EXT.2",{"$f":"+INDEX('2'!J$259:J$276,$E124-$E$49+1)","v":":"},null,null,null,{"$f":"+INDEX('2'!N$259:N$276,$E124-$E$49+1)","v":":"},null,{"$f":"+INDEX('2'!P$259:P$276,$E124-$E$49+1)","v":":"},null,{"$f":"+INDEX('2'!R$259:R$276,$E124-$E$49+1)","v":":"},null,{"$f":"+INDEX('2'!T$259:T$276,$E124-$E$49+1)","v":":"},null,{"$f":"+INDEX('2'!V$259:V$276,$E124-$E$49+1)","v":":"},null,null,null,null,null,null,null,{"$f":"+INDEX('2'!AD$259:AD$276,$E124-$E$49+1)","v":":"},null,{"$f":"+INDEX('2'!AF$259:AF$276,$E124-$E$49+1)","v":":"}]
[null,null,null,null,null,null,null,null,"+ P2_EPS_EXT.3",{"$f":"+INDEX('3'!J$223:J$240,$E124-$E$49+1)","v":":"},null,null,null,{"$f":"+INDEX('3'!N$223:N$240,$E124-$E$49+1)","v":":"},null,{"$f":"+INDEX('3'!P$223:P$240,$E124-$E$49+1)","v":":"},null,{"$f":"+INDEX('3'!R$223:R$240,$E124-$E$49+1)","v":":"},null,{"$f":"+INDEX('3'!T$223:T$240,$E124-$E$49+1)","v":":"},null,{"$f":"+INDEX('3'!V$223:V$240,$E124-$E$49+1)","v":":"},null,null,null,null,null,null,null,{"$f":"+INDEX('3'!AD$223:AD$240,$E124-$E$49+1)","v":":"},null,{"$f":"+INDEX('3'!AF$223:AF$240,$E124-$E$49+1)","v":":"}]
[null,null,null,null,null,null,null,null,"- P2_EPS.1"]
[null,null,null,null,null,null,null,null,"- P2_EPS.2",{"$f":"+INDEX('2'!J$43:J$60,$E124-$E$49+1)","v":":"},null,null,null,{"$f":"+INDEX('2'!N$43:N$60,$E124-$E$49+1)","v":":"},null,{"$f":"+INDEX('2'!P$43:P$60,$E124-$E$49+1)","v":":"},null,{"$f":"+INDEX('2'!R$43:R$60,$E124-$E$49+1)","v":":"},null,{"$f":"+INDEX('2'!T$43:T$60,$E124-$E$49+1)","v":":"},null,{"$f":"+INDEX('2'!V$43:V$60,$E124-$E$49+1)","v":":"},null,null,null,null,null,null,null,{"$f":"+INDEX('2'!AD$43:AD$60,$E124-$E$49+1)","v":":"},null,{"$f":"+INDEX('2'!AF$43:AF$60,$E124-$E$49+1)","v":":"}]
[null,null,null,null,null,null,"Gross fixed capital formation and acquisition less disposals of non-financial, non-produced assets ",null,"+ P51G_NP.1"]
[null,null,null,null,null,null,null,null,"+ P51G_NP.2",{"$f":"+INDEX('2'!J$7:J$24,$E124-$E$49+1)","v":":"},null,null,null,{"$f":"+INDEX('2'!N$7:N$24,$E124-$E$49+1)","v":":"},null,{"$f":"+INDEX('2'!P$7:P$24,$E124-$E$49+1)","v":":"},null,{"$f":"+INDEX('2'!R$7:R$24,$E124-$E$49+1)","v":":"},null,{"$f":"+INDEX('2'!T$7:T$24,$E124-$E$49+1)","v":":"},null,{"$f":"+INDEX('2'!V$7:V$24,$E124-$E$49+1)","v":":"},null,null,null,null,null,null,null,{"$f":"+INDEX('2'!AD$7:AD$24,$E124-$E$49+1)","v":":"},null,{"$f":"+INDEX('2'!AF$7:AF$24,$E124-$E$49+1)","v":":"}]
[null,null,null,null,null,null,null,null,"+ P51G_NP.3",{"$f":"+INDEX('3'!J$7:J$24,$E124-$E$49+1)","v":":"},null,null,null,{"$f":"+INDEX('3'!N$7:N$24,$E124-$E$49+1)","v":":"},null,{"$f":"+INDEX('3'!P$7:P$24,$E124-$E$49+1)","v":":"},null,{"$f":"+INDEX('3'!R$7:R$24,$E124-$E$49+1)","v":":"},null,{"$f":"+INDEX('3'!T$7:T$24,$E124-$E$49+1)","v":":"},null,{"$f":"+INDEX('3'!V$7:V$24,$E124-$E$49+1)","v":":"},null,null,null,null,null,null,null,{"$f":"+INDEX('3'!AD$7:AD$24,$E124-$E$49+1)","v":":"},null,{"$f":"+INDEX('3'!AF$7:AF$24,$E124-$E$49+1)","v":":"}]
[null,null,null,null,null,null,"EP transfers to / from Rest of the World",null,"- D3_D7_D92_D99_PAY_RW.6"]
[null,null,null,null,null,null,null,null,"+ D3_D7_D92_D99_REC_RW.6"]
[null,null,null,null,null,null,"TOTAL",null,"=SUM()",{"$f":"+IF(COUNT(J124:J127,J133:J137)=0,\":\",SUM(J124:J127,J133:J135,J137)-SUM(J136))","v":":"},null,null,null,{"$f":"+IF(COUNT(N124:N127,N133:N137)=0,\":\",SUM(N124:N127,N133:N135,N137)-SUM(N136))","v":":"},null,{"$f":"+IF(COUNT(P124:P127,P133:P137)=0,\":\",SUM(P124:P127,P133:P135,P137)-SUM(P136))","v":":"},null,{"$f":"+IF(COUNT(R124:R127,R133:R137)=0,\":\",SUM(R124:R127,R133:R135,R137)-SUM(R136))","v":":"},null,{"$f":"+IF(COUNT(T124:T127,T133:T137)=0,\":\",SUM(T124:T127,T133:T135,T137)-SUM(T136))","v":":"},null,{"$f":"+IF(COUNT(V124:V127,V133:V137)=0,\":\",SUM(V124:V127,V133:V135,V137)-SUM(V136))","v":":"},null,null,null,null,null,null,null,{"$f":"+IF(COUNT(AD124:AD127,AD133:AD137)=0,\":\",SUM(AD124:AD127,AD133:AD135,AD137)-SUM(AD136))","v":":"},null,{"$f":"+IF(COUNT(AF124:AF127,AF133:AF137)=0,\":\",SUM(AF124:AF127,AF133:AF135,AF137)-SUM(AF136))","v":":"}]
[null,null,null,null,2020,null,"Final consumption expenditure",null,"+ P3_EPS.1"]
[null,null,null,null,null,null,null,null,"+ P3_EPS.5"]
[null,null,null,null,null,null,"Intermediate consumption",null,"+ P1_ANC.3",{"$f":"+INDEX('3'!J$133:J$150,$E139-$E$49+1)","v":":"},null,null,null,{"$f":"+INDEX('3'!N$133:N$150,$E139-$E$49+1)","v":":"},null,{"$f":"+INDEX('3'!P$133:P$150,$E139-$E$49+1)","v":":"},null,{"$f":"+INDEX('3'!R$133:R$150,$E139-$E$49+1)","v":":"},null,{"$f":"+INDEX('3'!T$133:T$150,$E139-$E$49+1)","v":":"},null,{"$f":"+INDEX('3'!V$133:V$150,$E139-$E$49+1)","v":":"},null,null,null,null,null,null,null,{"$f":"+INDEX('3'!AD$133:AD$150,$E139-$E$49+1)","v":":"},null,{"$f":"+INDEX('3'!AF$133:AF$150,$E139-$E$49+1)","v":":"}]
[null,null,null,null,null,null,null,null,"+ P2",{"$f":"+IF(COUNT(J143:J147)=0,\":\",SUM(J143:J145)-SUM(J146:J147))","v":":"},null,null,null,{"$f":"+IF(COUNT(N143:N147)=0,\":\",SUM(N143:N145)-SUM(N146:N147))","v":":"},null,{"$f":"+IF(COUNT(P143:P147)=0,\":\",SUM(P143:P145)-SUM(P146:P147))","v":":"},null,{"$f":"+IF(COUNT(R143:R147)=0,\":\",SUM(R143:R145)-SUM(R146:R147))","v":":"},null,{"$f":"+IF(COUNT(T143:T147)=0,\":\",SUM(T143:T145)-SUM(T146:T147))","v":":"},null,{"$f":"+IF(COUNT(V143:V147)=0,\":\",SUM(V143:V145)-SUM(V146:V147))","v":":"},null,null,null,null,null,null,null,{"$f":"+IF(COUNT(AD143:AD147)=0,\":\",SUM(AD143:AD145)-SUM(AD146:AD147))","v":":"},null,{"$f":"+IF(COUNT(AF143:AF147)=0,\":\",SUM(AF143:AF145)-SUM(AF146:AF147))","v":":"}]
[null,null,null,null,null,null,null,null,"+ P2_EPS_EXT.1"]
[null,null,null,null,2020,null,null,null,"+ P2_EPS_EXT.2",{"$f":"+INDEX('2'!J$259:J$276,$E139-$E$49+1)","v":":"},null,null,null,{"$f":"+INDEX('2'!N$259:N$276,$E139-$E$49+1)","v":":"},null,{"$f":"+INDEX('2'!P$259:P$276,$E139-$E$49+1)","v":":"},null,{"$f":"+INDEX('2'!R$259:R$276,$E139-$E$49+1)","v":":"},null,{"$f":"+INDEX('2'!T$259:T$276,$E139-$E$49+1)","v":":"},null,{"$f":"+INDEX('2'!V$259:V$276,$E139-$E$49+1)","v":":"},null,null,null,null,null,null,null,{"$f":"+INDEX('2'!AD$259:AD$276,$E139-$E$49+1)","v":":"},null,{"$f":"+INDEX('2'!AF$259:AF$276,$E139-$E$49+1)","v":":"}]
[null,null,null,null,null,null,null,null,"+ P2_EPS_EXT.3",{"$f":"+INDEX('3'!J$223:J$240,$E139-$E$49+1)","v":":"},null,null,null,{"$f":"+INDEX('3'!N$223:N$240,$E139-$E$49+1)","v":":"},null,{"$f":"+INDEX('3'!P$223:P$240,$E139-$E$49+1)","v":":"},null,{"$f":"+INDEX('3'!R$223:R$240,$E139-$E$49+1)","v":":"},null,{"$f":"+INDEX('3'!T$223:T$240,$E139-$E$49+1)","v":":"},null,{"$f":"+INDEX('3'!V$223:V$240,$E139-$E$49+1)","v":":"},null,null,null,null,null,null,null,{"$f":"+INDEX('3'!AD$223:AD$240,$E139-$E$49+1)","v":":"},null,{"$f":"+INDEX('3'!AF$223:AF$240,$E139-$E$49+1)","v":":"}]
[null,null,null,null,null,null,null,null,"- P2_EPS.1"]
[null,null,null,null,null,null,null,null,"- P2_EPS.2",{"$f":"+INDEX('2'!J$43:J$60,$E139-$E$49+1)","v":":"},null,null,null,{"$f":"+INDEX('2'!N$43:N$60,$E139-$E$49+1)","v":":"},null,{"$f":"+INDEX('2'!P$43:P$60,$E139-$E$49+1)","v":":"},null,{"$f":"+INDEX('2'!R$43:R$60,$E139-$E$49+1)","v":":"},null,{"$f":"+INDEX('2'!T$43:T$60,$E139-$E$49+1)","v":":"},null,{"$f":"+INDEX('2'!V$43:V$60,$E139-$E$49+1)","v":":"},null,null,null,null,null,null,null,{"$f":"+INDEX('2'!AD$43:AD$60,$E139-$E$49+1)","v":":"},null,{"$f":"+INDEX('2'!AF$43:AF$60,$E139-$E$49+1)","v":":"}]
[null,null,null,null,null,null,"Gross fixed capital formation and acquisition less disposals of non-financial, non-produced assets ",null,"+ P51G_NP.1"]
[null,null,null,null,null,null,null,null,"+ P51G_NP.2",{"$f":"+INDEX('2'!J$7:J$24,$E139-$E$49+1)","v":":"},null,null,null,{"$f":"+INDEX('2'!N$7:N$24,$E139-$E$49+1)","v":":"},null,{"$f":"+INDEX('2'!P$7:P$24,$E139-$E$49+1)","v":":"},null,{"$f":"+INDEX('2'!R$7:R$24,$E139-$E$49+1)","v":":"},null,{"$f":"+INDEX('2'!T$7:T$24,$E139-$E$49+1)","v":":"},null,{"$f":"+INDEX('2'!V$7:V$24,$E139-$E$49+1)","v":":"},null,null,null,null,null,null,null,{"$f":"+INDEX('2'!AD$7:AD$24,$E139-$E$49+1)","v":":"},null,{"$f":"+INDEX('2'!AF$7:AF$24,$E139-$E$49+1)","v":":"}]
[null,null,null,null,null,null,null,null,"+ P51G_NP.3",{"$f":"+INDEX('3'!J$7:J$24,$E139-$E$49+1)","v":":"},null,null,null,{"$f":"+INDEX('3'!N$7:N$24,$E139-$E$49+1)","v":":"},null,{"$f":"+INDEX('3'!P$7:P$24,$E139-$E$49+1)","v":":"},null,{"$f":"+INDEX('3'!R$7:R$24,$E139-$E$49+1)","v":":"},null,{"$f":"+INDEX('3'!T$7:T$24,$E139-$E$49+1)","v":":"},null,{"$f":"+INDEX('3'!V$7:V$24,$E139-$E$49+1)","v":":"},null,null,null,null,null,null,null,{"$f":"+INDEX('3'!AD$7:AD$24,$E139-$E$49+1)","v":":"},null,{"$f":"+INDEX('3'!AF$7:AF$24,$E139-$E$49+1)","v":":"}]
[null,null,null,null,null,null,"EP transfers to / from Rest of the World",null,"- D3_D7_D92_D99_PAY_RW.6"]
[null,null,null,null,null,null,null,null,"+ D3_D7_D92_D99_REC_RW.6"]
[null,null,null,null,null,null,"TOTAL",null,"=SUM()",{"$f":"+IF(COUNT(J139:J142,J148:J152)=0,\":\",SUM(J139:J142,J148:J150,J152)-SUM(J151))","v":":"},null,null,null,{"$f":"+IF(COUNT(N139:N142,N148:N152)=0,\":\",SUM(N139:N142,N148:N150,N152)-SUM(N151))","v":":"},null,{"$f":"+IF(COUNT(P139:P142,P148:P152)=0,\":\",SUM(P139:P142,P148:P150,P152)-SUM(P151))","v":":"},null,{"$f":"+IF(COUNT(R139:R142,R148:R152)=0,\":\",SUM(R139:R142,R148:R150,R152)-SUM(R151))","v":":"},null,{"$f":"+IF(COUNT(T139:T142,T148:T152)=0,\":\",SUM(T139:T142,T148:T150,T152)-SUM(T151))","v":":"},null,{"$f":"+IF(COUNT(V139:V142,V148:V152)=0,\":\",SUM(V139:V142,V148:V150,V152)-SUM(V151))","v":":"},null,null,null,null,null,null,null,{"$f":"+IF(COUNT(AD139:AD142,AD148:AD152)=0,\":\",SUM(AD139:AD142,AD148:AD150,AD152)-SUM(AD151))","v":":"},null,{"$f":"+IF(COUNT(AF139:AF142,AF148:AF152)=0,\":\",SUM(AF139:AF142,AF148:AF150,AF152)-SUM(AF151))","v":":"}]
[null,null,null,null,2021,null,"Final consumption expenditure",null,"+ P3_EPS.1"]
[null,null,null,null,null,null,null,null,"+ P3_EPS.5"]
[null,null,null,null,null,null,"Intermediate consumption",null,"+ P1_ANC.3",{"$f":"+INDEX('3'!J$133:J$150,$E154-$E$49+1)","v":":"},null,null,null,{"$f":"+INDEX('3'!N$133:N$150,$E154-$E$49+1)","v":":"},null,{"$f":"+INDEX('3'!P$133:P$150,$E154-$E$49+1)","v":":"},null,{"$f":"+INDEX('3'!R$133:R$150,$E154-$E$49+1)","v":":"},null,{"$f":"+INDEX('3'!T$133:T$150,$E154-$E$49+1)","v":":"},null,{"$f":"+INDEX('3'!V$133:V$150,$E154-$E$49+1)","v":":"},null,null,null,null,null,null,null,{"$f":"+INDEX('3'!AD$133:AD$150,$E154-$E$49+1)","v":":"},null,{"$f":"+INDEX('3'!AF$133:AF$150,$E154-$E$49+1)","v":":"}]
[null,null,null,null,null,null,null,null,"+ P2",{"$f":"+IF(COUNT(J158:J162)=0,\":\",SUM(J158:J160)-SUM(J161:J162))","v":":"},null,null,null,{"$f":"+IF(COUNT(N158:N162)=0,\":\",SUM(N158:N160)-SUM(N161:N162))","v":":"},null,{"$f":"+IF(COUNT(P158:P162)=0,\":\",SUM(P158:P160)-SUM(P161:P162))","v":":"},null,{"$f":"+IF(COUNT(R158:R162)=0,\":\",SUM(R158:R160)-SUM(R161:R162))","v":":"},null,{"$f":"+IF(COUNT(T158:T162)=0,\":\",SUM(T158:T160)-SUM(T161:T162))","v":":"},null,{"$f":"+IF(COUNT(V158:V162)=0,\":\",SUM(V158:V160)-SUM(V161:V162))","v":":"},null,null,null,null,null,null,null,{"$f":"+IF(COUNT(AD158:AD162)=0,\":\",SUM(AD158:AD160)-SUM(AD161:AD162))","v":":"},null,{"$f":"+IF(COUNT(AF158:AF162)=0,\":\",SUM(AF158:AF160)-SUM(AF161:AF162))","v":":"}]
[null,null,null,null,null,null,null,null,"+ P2_EPS_EXT.1"]
[null,null,null,null,2021,null,null,null,"+ P2_EPS_EXT.2",{"$f":"+INDEX('2'!J$259:J$276,$E154-$E$49+1)","v":":"},null,null,null,{"$f":"+INDEX('2'!N$259:N$276,$E154-$E$49+1)","v":":"},null,{"$f":"+INDEX('2'!P$259:P$276,$E154-$E$49+1)","v":":"},null,{"$f":"+INDEX('2'!R$259:R$276,$E154-$E$49+1)","v":":"},null,{"$f":"+INDEX('2'!T$259:T$276,$E154-$E$49+1)","v":":"},null,{"$f":"+INDEX('2'!V$259:V$276,$E154-$E$49+1)","v":":"},null,null,null,null,null,null,null,{"$f":"+INDEX('2'!AD$259:AD$276,$E154-$E$49+1)","v":":"},null,{"$f":"+INDEX('2'!AF$259:AF$276,$E154-$E$49+1)","v":":"}]
[null,null,null,null,null,null,null,null,"+ P2_EPS_EXT.3",{"$f":"+INDEX('3'!J$223:J$240,$E154-$E$49+1)","v":":"},null,null,null,{"$f":"+INDEX('3'!N$223:N$240,$E154-$E$49+1)","v":":"},null,{"$f":"+INDEX('3'!P$223:P$240,$E154-$E$49+1)","v":":"},null,{"$f":"+INDEX('3'!R$223:R$240,$E154-$E$49+1)","v":":"},null,{"$f":"+INDEX('3'!T$223:T$240,$E154-$E$49+1)","v":":"},null,{"$f":"+INDEX('3'!V$223:V$240,$E154-$E$49+1)","v":":"},null,null,null,null,null,null,null,{"$f":"+INDEX('3'!AD$223:AD$240,$E154-$E$49+1)","v":":"},null,{"$f":"+INDEX('3'!AF$223:AF$240,$E154-$E$49+1)","v":":"}]
[null,null,null,null,null,null,null,null,"- P2_EPS.1"]
[null,null,null,null,null,null,null,null,"- P2_EPS.2",{"$f":"+INDEX('2'!J$43:J$60,$E154-$E$49+1)","v":":"},null,null,null,{"$f":"+INDEX('2'!N$43:N$60,$E154-$E$49+1)","v":":"},null,{"$f":"+INDEX('2'!P$43:P$60,$E154-$E$49+1)","v":":"},null,{"$f":"+INDEX('2'!R$43:R$60,$E154-$E$49+1)","v":":"},null,{"$f":"+INDEX('2'!T$43:T$60,$E154-$E$49+1)","v":":"},null,{"$f":"+INDEX('2'!V$43:V$60,$E154-$E$49+1)","v":":"},null,null,null,null,null,null,null,{"$f":"+INDEX('2'!AD$43:AD$60,$E154-$E$49+1)","v":":"},null,{"$f":"+INDEX('2'!AF$43:AF$60,$E154-$E$49+1)","v":":"}]
[null,null,null,null,null,null,"Gross fixed capital formation and acquisition less disposals of non-financial, non-produced assets ",null,"+ P51G_NP.1"]
[null,null,null,null,null,null,null,null,"+ P51G_NP.2",{"$f":"+INDEX('2'!J$7:J$24,$E154-$E$49+1)","v":":"},null,null,null,{"$f":"+INDEX('2'!N$7:N$24,$E154-$E$49+1)","v":":"},null,{"$f":"+INDEX('2'!P$7:P$24,$E154-$E$49+1)","v":":"},null,{"$f":"+INDEX('2'!R$7:R$24,$E154-$E$49+1)","v":":"},null,{"$f":"+INDEX('2'!T$7:T$24,$E154-$E$49+1)","v":":"},null,{"$f":"+INDEX('2'!V$7:V$24,$E154-$E$49+1)","v":":"},null,null,null,null,null,null,null,{"$f":"+INDEX('2'!AD$7:AD$24,$E154-$E$49+1)","v":":"},null,{"$f":"+INDEX('2'!AF$7:AF$24,$E154-$E$49+1)","v":":"}]
[null,null,null,null,null,null,null,null,"+ P51G_NP.3",{"$f":"+INDEX('3'!J$7:J$24,$E154-$E$49+1)","v":":"},null,null,null,{"$f":"+INDEX('3'!N$7:N$24,$E154-$E$49+1)","v":":"},null,{"$f":"+INDEX('3'!P$7:P$24,$E154-$E$49+1)","v":":"},null,{"$f":"+INDEX('3'!R$7:R$24,$E154-$E$49+1)","v":":"},null,{"$f":"+INDEX('3'!T$7:T$24,$E154-$E$49+1)","v":":"},null,{"$f":"+INDEX('3'!V$7:V$24,$E154-$E$49+1)","v":":"},null,null,null,null,null,null,null,{"$f":"+INDEX('3'!AD$7:AD$24,$E154-$E$49+1)","v":":"},null,{"$f":"+INDEX('3'!AF$7:AF$24,$E154-$E$49+1)","v":":"}]
[null,null,null,null,null,null,"EP transfers to / from Rest of the World",null,"- D3_D7_D92_D99_PAY_RW.6"]
[null,null,null,null,null,null,null,null,"+ D3_D7_D92_D99_REC_RW.6"]
[null,null,null,null,null,null,"TOTAL",null,"=SUM()",{"$f":"+IF(COUNT(J154:J157,J163:J167)=0,\":\",SUM(J154:J157,J163:J165,J167)-SUM(J166))","v":":"},null,null,null,{"$f":"+IF(COUNT(N154:N157,N163:N167)=0,\":\",SUM(N154:N157,N163:N165,N167)-SUM(N166))","v":":"},null,{"$f":"+IF(COUNT(P154:P157,P163:P167)=0,\":\",SUM(P154:P157,P163:P165,P167)-SUM(P166))","v":":"},null,{"$f":"+IF(COUNT(R154:R157,R163:R167)=0,\":\",SUM(R154:R157,R163:R165,R167)-SUM(R166))","v":":"},null,{"$f":"+IF(COUNT(T154:T157,T163:T167)=0,\":\",SUM(T154:T157,T163:T165,T167)-SUM(T166))","v":":"},null,{"$f":"+IF(COUNT(V154:V157,V163:V167)=0,\":\",SUM(V154:V157,V163:V165,V167)-SUM(V166))","v":":"},null,null,null,null,null,null,null,{"$f":"+IF(COUNT(AD154:AD157,AD163:AD167)=0,\":\",SUM(AD154:AD157,AD163:AD165,AD167)-SUM(AD166))","v":":"},null,{"$f":"+IF(COUNT(AF154:AF157,AF163:AF167)=0,\":\",SUM(AF154:AF157,AF163:AF165,AF167)-SUM(AF166))","v":":"}]
[null,null,null,null,2022,null,"Final consumption expenditure",null,"+ P3_EPS.1"]
[null,null,null,null,null,null,null,null,"+ P3_EPS.5"]
[null,null,null,null,null,null,"Intermediate consumption",null,"+ P1_ANC.3",{"$f":"+INDEX('3'!J$133:J$150,$E169-$E$49+1)","v":":"},null,null,null,{"$f":"+INDEX('3'!N$133:N$150,$E169-$E$49+1)","v":":"},null,{"$f":"+INDEX('3'!P$133:P$150,$E169-$E$49+1)","v":":"},null,{"$f":"+INDEX('3'!R$133:R$150,$E169-$E$49+1)","v":":"},null,{"$f":"+INDEX('3'!T$133:T$150,$E169-$E$49+1)","v":":"},null,{"$f":"+INDEX('3'!V$133:V$150,$E169-$E$49+1)","v":":"},null,null,null,null,null,null,null,{"$f":"+INDEX('3'!AD$133:AD$150,$E169-$E$49+1)","v":":"},null,{"$f":"+INDEX('3'!AF$133:AF$150,$E169-$E$49+1)","v":":"}]
[null,null,null,null,null,null,null,null,"+ P2",{"$f":"+IF(COUNT(J173:J177)=0,\":\",SUM(J173:J175)-SUM(J176:J177))","v":":"},null,null,null,{"$f":"+IF(COUNT(N173:N177)=0,\":\",SUM(N173:N175)-SUM(N176:N177))","v":":"},null,{"$f":"+IF(COUNT(P173:P177)=0,\":\",SUM(P173:P175)-SUM(P176:P177))","v":":"},null,{"$f":"+IF(COUNT(R173:R177)=0,\":\",SUM(R173:R175)-SUM(R176:R177))","v":":"},null,{"$f":"+IF(COUNT(T173:T177)=0,\":\",SUM(T173:T175)-SUM(T176:T177))","v":":"},null,{"$f":"+IF(COUNT(V173:V177)=0,\":\",SUM(V173:V175)-SUM(V176:V177))","v":":"},null,null,null,null,null,null,null,{"$f":"+IF(COUNT(AD173:AD177)=0,\":\",SUM(AD173:AD175)-SUM(AD176:AD177))","v":":"},null,{"$f":"+IF(COUNT(AF173:AF177)=0,\":\",SUM(AF173:AF175)-SUM(AF176:AF177))","v":":"}]
[null,null,null,null,null,null,null,null,"+ P2_EPS_EXT.1"]
[null,null,null,null,null,null,null,null,"+ P2_EPS_EXT.2",{"$f":"+INDEX('2'!J$259:J$276,$E169-$E$49+1)","v":":"},null,null,null,{"$f":"+INDEX('2'!N$259:N$276,$E169-$E$49+1)","v":":"},null,{"$f":"+INDEX('2'!P$259:P$276,$E169-$E$49+1)","v":":"},null,{"$f":"+INDEX('2'!R$259:R$276,$E169-$E$49+1)","v":":"},null,{"$f":"+INDEX('2'!T$259:T$276,$E169-$E$49+1)","v":":"},null,{"$f":"+INDEX('2'!V$259:V$276,$E169-$E$49+1)","v":":"},null,null,null,null,null,null,null,{"$f":"+INDEX('2'!AD$259:AD$276,$E169-$E$49+1)","v":":"},null,{"$f":"+INDEX('2'!AF$259:AF$276,$E169-$E$49+1)","v":":"}]
[null,null,null,null,null,null,null,null,"+ P2_EPS_EXT.3",{"$f":"+INDEX('3'!J$223:J$240,$E169-$E$49+1)","v":":"},null,null,null,{"$f":"+INDEX('3'!N$223:N$240,$E169-$E$49+1)","v":":"},null,{"$f":"+INDEX('3'!P$223:P$240,$E169-$E$49+1)","v":":"},null,{"$f":"+INDEX('3'!R$223:R$240,$E169-$E$49+1)","v":":"},null,{"$f":"+INDEX('3'!T$223:T$240,$E169-$E$49+1)","v":":"},null,{"$f":"+INDEX('3'!V$223:V$240,$E169-$E$49+1)","v":":"},null,null,null,null,null,null,null,{"$f":"+INDEX('3'!AD$223:AD$240,$E169-$E$49+1)","v":":"},null,{"$f":"+INDEX('3'!AF$223:AF$240,$E169-$E$49+1)","v":":"}]
[null,null,null,null,null,null,null,null,"- P2_EPS.1"]
[null,null,null,null,null,null,null,null,"- P2_EPS.2",{"$f":"+INDEX('2'!J$43:J$60,$E169-$E$49+1)","v":":"},null,null,null,{"$f":"+INDEX('2'!N$43:N$60,$E169-$E$49+1)","v":":"},null,{"$f":"+INDEX('2'!P$43:P$60,$E169-$E$49+1)","v":":"},null,{"$f":"+INDEX('2'!R$43:R$60,$E169-$E$49+1)","v":":"},null,{"$f":"+INDEX('2'!T$43:T$60,$E169-$E$49+1)","v":":"},null,{"$f":"+INDEX('2'!V$43:V$60,$E169-$E$49+1)","v":":"},null,null,null,null,null,null,null,{"$f":"+INDEX('2'!AD$43:AD$60,$E169-$E$49+1)","v":":"},null,{"$f":"+INDEX('2'!AF$43:AF$60,$E169-$E$49+1)","v":":"}]
[null,null,null,null,null,null,"Gross fixed capital formation and acquisition less disposals of non-financial, non-produced assets ",null,"+ P51G_NP.1"]
[null,null,null,null,null,null,null,null,"+ P51G_NP.2",{"$f":"+INDEX('2'!J$7:J$24,$E169-$E$49+1)","v":":"},null,null,null,{"$f":"+INDEX('2'!N$7:N$24,$E169-$E$49+1)","v":":"},null,{"$f":"+INDEX('2'!P$7:P$24,$E169-$E$49+1)","v":":"},null,{"$f":"+INDEX('2'!R$7:R$24,$E169-$E$49+1)","v":":"},null,{"$f":"+INDEX('2'!T$7:T$24,$E169-$E$49+1)","v":":"},null,{"$f":"+INDEX('2'!V$7:V$24,$E169-$E$49+1)","v":":"},null,null,null,null,null,null,null,{"$f":"+INDEX('2'!AD$7:AD$24,$E169-$E$49+1)","v":":"},null,{"$f":"+INDEX('2'!AF$7:AF$24,$E169-$E$49+1)","v":":"}]
[null,null,null,null,null,null,null,null,"+ P51G_NP.3",{"$f":"+INDEX('3'!J$7:J$24,$E169-$E$49+1)","v":":"},null,null,null,{"$f":"+INDEX('3'!N$7:N$24,$E169-$E$49+1)","v":":"},null,{"$f":"+INDEX('3'!P$7:P$24,$E169-$E$49+1)","v":":"},null,{"$f":"+INDEX('3'!R$7:R$24,$E169-$E$49+1)","v":":"},null,{"$f":"+INDEX('3'!T$7:T$24,$E169-$E$49+1)","v":":"},null,{"$f":"+INDEX('3'!V$7:V$24,$E169-$E$49+1)","v":":"},null,null,null,null,null,null,null,{"$f":"+INDEX('3'!AD$7:AD$24,$E169-$E$49+1)","v":":"},null,{"$f":"+INDEX('3'!AF$7:AF$24,$E169-$E$49+1)","v":":"}]
[null,null,null,null,null,null,"EP transfers to / from Rest of the World",null,"- D3_D7_D92_D99_PAY_RW.6"]
[null,null,null,null,null,null,null,null,"+ D3_D7_D92_D99_REC_RW.6"]
[null,null,null,null,null,null,"TOTAL",null,"=SUM()",{"$f":"+IF(COUNT(J169:J172,J178:J182)=0,\":\",SUM(J169:J172,J178:J180,J182)-SUM(J181))","v":":"},null,null,null,{"$f":"+IF(COUNT(N169:N172,N178:N182)=0,\":\",SUM(N169:N172,N178:N180,N182)-SUM(N181))","v":":"},null,{"$f":"+IF(COUNT(P169:P172,P178:P182)=0,\":\",SUM(P169:P172,P178:P180,P182)-SUM(P181))","v":":"},null,{"$f":"+IF(COUNT(R169:R172,R178:R182)=0,\":\",SUM(R169:R172,R178:R180,R182)-SUM(R181))","v":":"},null,{"$f":"+IF(COUNT(T169:T172,T178:T182)=0,\":\",SUM(T169:T172,T178:T180,T182)-SUM(T181))","v":":"},null,{"$f":"+IF(COUNT(V169:V172,V178:V182)=0,\":\",SUM(V169:V172,V178:V180,V182)-SUM(V181))","v":":"},null,null,null,null,null,null,null,{"$f":"+IF(COUNT(AD169:AD172,AD178:AD182)=0,\":\",SUM(AD169:AD172,AD178:AD180,AD182)-SUM(AD181))","v":":"},null,{"$f":"+IF(COUNT(AF169:AF172,AF178:AF182)=0,\":\",SUM(AF169:AF172,AF178:AF180,AF182)-SUM(AF181))","v":":"}]
[null,null,null,null,2023,null,"Final consumption expenditure",null,"+ P3_EPS.1"]
[null,null,null,null,null,null,null,null,"+ P3_EPS.5"]
[null,null,null,null,null,null,"Intermediate consumption",null,"+ P1_ANC.3",{"$f":"+INDEX('3'!J$133:J$150,$E184-$E$49+1)","v":":"},null,null,null,{"$f":"+INDEX('3'!N$133:N$150,$E184-$E$49+1)","v":":"},null,{"$f":"+INDEX('3'!P$133:P$150,$E184-$E$49+1)","v":":"},null,{"$f":"+INDEX('3'!R$133:R$150,$E184-$E$49+1)","v":":"},null,{"$f":"+INDEX('3'!T$133:T$150,$E184-$E$49+1)","v":":"},null,{"$f":"+INDEX('3'!V$133:V$150,$E184-$E$49+1)","v":":"},null,null,null,null,null,null,null,{"$f":"+INDEX('3'!AD$133:AD$150,$E184-$E$49+1)","v":":"},null,{"$f":"+INDEX('3'!AF$133:AF$150,$E184-$E$49+1)","v":":"}]
[null,null,null,null,null,null,null,null,"+ P2",{"$f":"+IF(COUNT(J188:J192)=0,\":\",SUM(J188:J190)-SUM(J191:J192))","v":":"},null,null,null,{"$f":"+IF(COUNT(N188:N192)=0,\":\",SUM(N188:N190)-SUM(N191:N192))","v":":"},null,{"$f":"+IF(COUNT(P188:P192)=0,\":\",SUM(P188:P190)-SUM(P191:P192))","v":":"},null,{"$f":"+IF(COUNT(R188:R192)=0,\":\",SUM(R188:R190)-SUM(R191:R192))","v":":"},null,{"$f":"+IF(COUNT(T188:T192)=0,\":\",SUM(T188:T190)-SUM(T191:T192))","v":":"},null,{"$f":"+IF(COUNT(V188:V192)=0,\":\",SUM(V188:V190)-SUM(V191:V192))","v":":"},null,null,null,null,null,null,null,{"$f":"+IF(COUNT(AD188:AD192)=0,\":\",SUM(AD188:AD190)-SUM(AD191:AD192))","v":":"},null,{"$f":"+IF(COUNT(AF188:AF192)=0,\":\",SUM(AF188:AF190)-SUM(AF191:AF192))","v":":"}]
[null,null,null,null,null,null,null,null,"+ P2_EPS_EXT.1"]
[null,null,null,null,null,null,null,null,"+ P2_EPS_EXT.2",{"$f":"+INDEX('2'!J$259:J$276,$E184-$E$49+1)","v":":"},null,null,null,{"$f":"+INDEX('2'!N$259:N$276,$E184-$E$49+1)","v":":"},null,{"$f":"+INDEX('2'!P$259:P$276,$E184-$E$49+1)","v":":"},null,{"$f":"+INDEX('2'!R$259:R$276,$E184-$E$49+1)","v":":"},null,{"$f":"+INDEX('2'!T$259:T$276,$E184-$E$49+1)","v":":"},null,{"$f":"+INDEX('2'!V$259:V$276,$E184-$E$49+1)","v":":"},null,null,null,null,null,null,null,{"$f":"+INDEX('2'!AD$259:AD$276,$E184-$E$49+1)","v":":"},null,{"$f":"+INDEX('2'!AF$259:AF$276,$E184-$E$49+1)","v":":"}]
[null,null,null,null,null,null,null,null,"+ P2_EPS_EXT.3",{"$f":"+INDEX('3'!J$223:J$240,$E184-$E$49+1)","v":":"},null,null,null,{"$f":"+INDEX('3'!N$223:N$240,$E184-$E$49+1)","v":":"},null,{"$f":"+INDEX('3'!P$223:P$240,$E184-$E$49+1)","v":":"},null,{"$f":"+INDEX('3'!R$223:R$240,$E184-$E$49+1)","v":":"},null,{"$f":"+INDEX('3'!T$223:T$240,$E184-$E$49+1)","v":":"},null,{"$f":"+INDEX('3'!V$223:V$240,$E184-$E$49+1)","v":":"},null,null,null,null,null,null,null,{"$f":"+INDEX('3'!AD$223:AD$240,$E184-$E$49+1)","v":":"},null,{"$f":"+INDEX('3'!AF$223:AF$240,$E184-$E$49+1)","v":":"}]
[null,null,null,null,null,null,null,null,"- P2_EPS.1"]
[null,null,null,null,null,null,null,null,"- P2_EPS.2",{"$f":"+INDEX('2'!J$43:J$60,$E184-$E$49+1)","v":":"},null,null,null,{"$f":"+INDEX('2'!N$43:N$60,$E184-$E$49+1)","v":":"},null,{"$f":"+INDEX('2'!P$43:P$60,$E184-$E$49+1)","v":":"},null,{"$f":"+INDEX('2'!R$43:R$60,$E184-$E$49+1)","v":":"},null,{"$f":"+INDEX('2'!T$43:T$60,$E184-$E$49+1)","v":":"},null,{"$f":"+INDEX('2'!V$43:V$60,$E184-$E$49+1)","v":":"},null,null,null,null,null,null,null,{"$f":"+INDEX('2'!AD$43:AD$60,$E184-$E$49+1)","v":":"},null,{"$f":"+INDEX('2'!AF$43:AF$60,$E184-$E$49+1)","v":":"}]
[null,null,null,null,null,null,"Gross fixed capital formation and acquisition less disposals of non-financial, non-produced assets ",null,"+ P51G_NP.1"]
[null,null,null,null,null,null,null,null,"+ P51G_NP.2",{"$f":"+INDEX('2'!J$7:J$24,$E184-$E$49+1)","v":":"},null,null,null,{"$f":"+INDEX('2'!N$7:N$24,$E184-$E$49+1)","v":":"},null,{"$f":"+INDEX('2'!P$7:P$24,$E184-$E$49+1)","v":":"},null,{"$f":"+INDEX('2'!R$7:R$24,$E184-$E$49+1)","v":":"},null,{"$f":"+INDEX('2'!T$7:T$24,$E184-$E$49+1)","v":":"},null,{"$f":"+INDEX('2'!V$7:V$24,$E184-$E$49+1)","v":":"},null,null,null,null,null,null,null,{"$f":"+INDEX('2'!AD$7:AD$24,$E184-$E$49+1)","v":":"},null,{"$f":"+INDEX('2'!AF$7:AF$24,$E184-$E$49+1)","v":":"}]
[null,null,null,null,null,null,null,null,"+ P51G_NP.3",{"$f":"+INDEX('3'!J$7:J$24,$E184-$E$49+1)","v":":"},null,null,null,{"$f":"+INDEX('3'!N$7:N$24,$E184-$E$49+1)","v":":"},null,{"$f":"+INDEX('3'!P$7:P$24,$E184-$E$49+1)","v":":"},null,{"$f":"+INDEX('3'!R$7:R$24,$E184-$E$49+1)","v":":"},null,{"$f":"+INDEX('3'!T$7:T$24,$E184-$E$49+1)","v":":"},null,{"$f":"+INDEX('3'!V$7:V$24,$E184-$E$49+1)","v":":"},null,null,null,null,null,null,null,{"$f":"+INDEX('3'!AD$7:AD$24,$E184-$E$49+1)","v":":"},null,{"$f":"+INDEX('3'!AF$7:AF$24,$E184-$E$49+1)","v":":"}]
[null,null,null,null,null,null,"EP transfers to / from Rest of the World",null,"- D3_D7_D92_D99_PAY_RW.6"]
[null,null,null,null,null,null,null,null,"+ D3_D7_D92_D99_REC_RW.6"]
[null,null,null,null,null,null,"TOTAL",null,"=SUM()",{"$f":"+IF(COUNT(J184:J187,J193:J197)=0,\":\",SUM(J184:J187,J193:J195,J197)-SUM(J196))","v":":"},null,null,null,{"$f":"+IF(COUNT(N184:N187,N193:N197)=0,\":\",SUM(N184:N187,N193:N195,N197)-SUM(N196))","v":":"},null,{"$f":"+IF(COUNT(P184:P187,P193:P197)=0,\":\",SUM(P184:P187,P193:P195,P197)-SUM(P196))","v":":"},null,{"$f":"+IF(COUNT(R184:R187,R193:R197)=0,\":\",SUM(R184:R187,R193:R195,R197)-SUM(R196))","v":":"},null,{"$f":"+IF(COUNT(T184:T187,T193:T197)=0,\":\",SUM(T184:T187,T193:T195,T197)-SUM(T196))","v":":"},null,{"$f":"+IF(COUNT(V184:V187,V193:V197)=0,\":\",SUM(V184:V187,V193:V195,V197)-SUM(V196))","v":":"},null,null,null,null,null,null,null,{"$f":"+IF(COUNT(AD184:AD187,AD193:AD197)=0,\":\",SUM(AD184:AD187,AD193:AD195,AD197)-SUM(AD196))","v":":"},null,{"$f":"+IF(COUNT(AF184:AF187,AF193:AF197)=0,\":\",SUM(AF184:AF187,AF193:AF195,AF197)-SUM(AF196))","v":":"}]
[null,null,null,null,2024,null,"Final consumption expenditure",null,"+ P3_EPS.1"]
[null,null,null,null,null,null,null,null,"+ P3_EPS.5"]
[null,null,null,null,null,null,"Intermediate consumption",null,"+ P1_ANC.3",{"$f":"+INDEX('3'!J$133:J$150,$E199-$E$49+1)","v":":"},null,null,null,{"$f":"+INDEX('3'!N$133:N$150,$E199-$E$49+1)","v":":"},null,{"$f":"+INDEX('3'!P$133:P$150,$E199-$E$49+1)","v":":"},null,{"$f":"+INDEX('3'!R$133:R$150,$E199-$E$49+1)","v":":"},null,{"$f":"+INDEX('3'!T$133:T$150,$E199-$E$49+1)","v":":"},null,{"$f":"+INDEX('3'!V$133:V$150,$E199-$E$49+1)","v":":"},null,null,null,null,null,null,null,{"$f":"+INDEX('3'!AD$133:AD$150,$E199-$E$49+1)","v":":"},null,{"$f":"+INDEX('3'!AF$133:AF$150,$E199-$E$49+1)","v":":"}]
[null,null,null,null,null,null,null,null,"+ P2",{"$f":"+IF(COUNT(J203:J207)=0,\":\",SUM(J203:J205)-SUM(J206:J207))","v":":"},null,null,null,{"$f":"+IF(COUNT(N203:N207)=0,\":\",SUM(N203:N205)-SUM(N206:N207))","v":":"},null,{"$f":"+IF(COUNT(P203:P207)=0,\":\",SUM(P203:P205)-SUM(P206:P207))","v":":"},null,{"$f":"+IF(COUNT(R203:R207)=0,\":\",SUM(R203:R205)-SUM(R206:R207))","v":":"},null,{"$f":"+IF(COUNT(T203:T207)=0,\":\",SUM(T203:T205)-SUM(T206:T207))","v":":"},null,{"$f":"+IF(COUNT(V203:V207)=0,\":\",SUM(V203:V205)-SUM(V206:V207))","v":":"},null,null,null,null,null,null,null,{"$f":"+IF(COUNT(AD203:AD207)=0,\":\",SUM(AD203:AD205)-SUM(AD206:AD207))","v":":"},null,{"$f":"+IF(COUNT(AF203:AF207)=0,\":\",SUM(AF203:AF205)-SUM(AF206:AF207))","v":":"}]
[null,null,null,null,null,null,null,null,"+ P2_EPS_EXT.1"]
[null,null,null,null,null,null,null,null,"+ P2_EPS_EXT.2",{"$f":"+INDEX('2'!J$259:J$276,$E199-$E$49+1)","v":":"},null,null,null,{"$f":"+INDEX('2'!N$259:N$276,$E199-$E$49+1)","v":":"},null,{"$f":"+INDEX('2'!P$259:P$276,$E199-$E$49+1)","v":":"},null,{"$f":"+INDEX('2'!R$259:R$276,$E199-$E$49+1)","v":":"},null,{"$f":"+INDEX('2'!T$259:T$276,$E199-$E$49+1)","v":":"},null,{"$f":"+INDEX('2'!V$259:V$276,$E199-$E$49+1)","v":":"},null,null,null,null,null,null,null,{"$f":"+INDEX('2'!AD$259:AD$276,$E199-$E$49+1)","v":":"},null,{"$f":"+INDEX('2'!AF$259:AF$276,$E199-$E$49+1)","v":":"}]
[null,null,null,null,null,null,null,null,"+ P2_EPS_EXT.3",{"$f":"+INDEX('3'!J$223:J$240,$E199-$E$49+1)","v":":"},null,null,null,{"$f":"+INDEX('3'!N$223:N$240,$E199-$E$49+1)","v":":"},null,{"$f":"+INDEX('3'!P$223:P$240,$E199-$E$49+1)","v":":"},null,{"$f":"+INDEX('3'!R$223:R$240,$E199-$E$49+1)","v":":"},null,{"$f":"+INDEX('3'!T$223:T$240,$E199-$E$49+1)","v":":"},null,{"$f":"+INDEX('3'!V$223:V$240,$E199-$E$49+1)","v":":"},null,null,null,null,null,null,null,{"$f":"+INDEX('3'!AD$223:AD$240,$E199-$E$49+1)","v":":"},null,{"$f":"+INDEX('3'!AF$223:AF$240,$E199-$E$49+1)","v":":"}]
[null,null,null,null,null,null,null,null,"- P2_EPS.1"]
[null,null,null,null,null,null,null,null,"- P2_EPS.2",{"$f":"+INDEX('2'!J$43:J$60,$E199-$E$49+1)","v":":"},null,null,null,{"$f":"+INDEX('2'!N$43:N$60,$E199-$E$49+1)","v":":"},null,{"$f":"+INDEX('2'!P$43:P$60,$E199-$E$49+1)","v":":"},null,{"$f":"+INDEX('2'!R$43:R$60,$E199-$E$49+1)","v":":"},null,{"$f":"+INDEX('2'!T$43:T$60,$E199-$E$49+1)","v":":"},null,{"$f":"+INDEX('2'!V$43:V$60,$E199-$E$49+1)","v":":"},null,null,null,null,null,null,null,{"$f":"+INDEX('2'!AD$43:AD$60,$E199-$E$49+1)","v":":"},null,{"$f":"+INDEX('2'!AF$43:AF$60,$E199-$E$49+1)","v":":"}]
[null,null,null,null,null,null,"Gross fixed capital formation and acquisition less disposals of non-financial, non-produced assets ",null,"+ P51G_NP.1"]
[null,null,null,null,null,null,null,null,"+ P51G_NP.2",{"$f":"+INDEX('2'!J$7:J$24,$E199-$E$49+1)","v":":"},null,null,null,{"$f":"+INDEX('2'!N$7:N$24,$E199-$E$49+1)","v":":"},null,{"$f":"+INDEX('2'!P$7:P$24,$E199-$E$49+1)","v":":"},null,{"$f":"+INDEX('2'!R$7:R$24,$E199-$E$49+1)","v":":"},null,{"$f":"+INDEX('2'!T$7:T$24,$E199-$E$49+1)","v":":"},null,{"$f":"+INDEX('2'!V$7:V$24,$E199-$E$49+1)","v":":"},null,null,null,null,null,null,null,{"$f":"+INDEX('2'!AD$7:AD$24,$E199-$E$49+1)","v":":"},null,{"$f":"+INDEX('2'!AF$7:AF$24,$E199-$E$49+1)","v":":"}]
[null,null,null,null,null,null,null,null,"+ P51G_NP.3",{"$f":"+INDEX('3'!J$7:J$24,$E199-$E$49+1)","v":":"},null,null,null,{"$f":"+INDEX('3'!N$7:N$24,$E199-$E$49+1)","v":":"},null,{"$f":"+INDEX('3'!P$7:P$24,$E199-$E$49+1)","v":":"},null,{"$f":"+INDEX('3'!R$7:R$24,$E199-$E$49+1)","v":":"},null,{"$f":"+INDEX('3'!T$7:T$24,$E199-$E$49+1)","v":":"},null,{"$f":"+INDEX('3'!V$7:V$24,$E199-$E$49+1)","v":":"},null,null,null,null,null,null,null,{"$f":"+INDEX('3'!AD$7:AD$24,$E199-$E$49+1)","v":":"},null,{"$f":"+INDEX('3'!AF$7:AF$24,$E199-$E$49+1)","v":":"}]
[null,null,null,null,null,null,"EP transfers to / from Rest of the World",null,"- D3_D7_D92_D99_PAY_RW.6"]
[null,null,null,null,null,null,null,null,"+ D3_D7_D92_D99_REC_RW.6"]
[null,null,null,null,null,null,"TOTAL",null,"=SUM()",{"$f":"+IF(COUNT(J199:J202,J208:J212)=0,\":\",SUM(J199:J202,J208:J210,J212)-SUM(J211))","v":":"},null,null,null,{"$f":"+IF(COUNT(N199:N202,N208:N212)=0,\":\",SUM(N199:N202,N208:N210,N212)-SUM(N211))","v":":"},null,{"$f":"+IF(COUNT(P199:P202,P208:P212)=0,\":\",SUM(P199:P202,P208:P210,P212)-SUM(P211))","v":":"},null,{"$f":"+IF(COUNT(R199:R202,R208:R212)=0,\":\",SUM(R199:R202,R208:R210,R212)-SUM(R211))","v":":"},null,{"$f":"+IF(COUNT(T199:T202,T208:T212)=0,\":\",SUM(T199:T202,T208:T210,T212)-SUM(T211))","v":":"},null,{"$f":"+IF(COUNT(V199:V202,V208:V212)=0,\":\",SUM(V199:V202,V208:V210,V212)-SUM(V211))","v":":"},null,null,null,null,null,null,null,{"$f":"+IF(COUNT(AD199:AD202,AD208:AD212)=0,\":\",SUM(AD199:AD202,AD208:AD210,AD212)-SUM(AD211))","v":":"},null,{"$f":"+IF(COUNT(AF199:AF202,AF208:AF212)=0,\":\",SUM(AF199:AF202,AF208:AF210,AF212)-SUM(AF211))","v":":"}]
[null,null,null,null,2025,null,"Final consumption expenditure",null,"+ P3_EPS.1"]
[null,null,null,null,null,null,null,null,"+ P3_EPS.5"]
[null,null,null,null,null,null,"Intermediate consumption",null,"+ P1_ANC.3",{"$f":"+INDEX('3'!J$133:J$150,$E214-$E$49+1)","v":":"},null,null,null,{"$f":"+INDEX('3'!N$133:N$150,$E214-$E$49+1)","v":":"},null,{"$f":"+INDEX('3'!P$133:P$150,$E214-$E$49+1)","v":":"},null,{"$f":"+INDEX('3'!R$133:R$150,$E214-$E$49+1)","v":":"},null,{"$f":"+INDEX('3'!T$133:T$150,$E214-$E$49+1)","v":":"},null,{"$f":"+INDEX('3'!V$133:V$150,$E214-$E$49+1)","v":":"},null,null,null,null,null,null,null,{"$f":"+INDEX('3'!AD$133:AD$150,$E214-$E$49+1)","v":":"},null,{"$f":"+INDEX('3'!AF$133:AF$150,$E214-$E$49+1)","v":":"}]
[null,null,null,null,null,null,null,null,"+ P2",{"$f":"+IF(COUNT(J218:J222)=0,\":\",SUM(J218:J220)-SUM(J221:J222))","v":":"},null,null,null,{"$f":"+IF(COUNT(N218:N222)=0,\":\",SUM(N218:N220)-SUM(N221:N222))","v":":"},null,{"$f":"+IF(COUNT(P218:P222)=0,\":\",SUM(P218:P220)-SUM(P221:P222))","v":":"},null,{"$f":"+IF(COUNT(R218:R222)=0,\":\",SUM(R218:R220)-SUM(R221:R222))","v":":"},null,{"$f":"+IF(COUNT(T218:T222)=0,\":\",SUM(T218:T220)-SUM(T221:T222))","v":":"},null,{"$f":"+IF(COUNT(V218:V222)=0,\":\",SUM(V218:V220)-SUM(V221:V222))","v":":"},null,null,null,null,null,null,null,{"$f":"+IF(COUNT(AD218:AD222)=0,\":\",SUM(AD218:AD220)-SUM(AD221:AD222))","v":":"},null,{"$f":"+IF(COUNT(AF218:AF222)=0,\":\",SUM(AF218:AF220)-SUM(AF221:AF222))","v":":"}]
[null,null,null,null,null,null,null,null,"+ P2_EPS_EXT.1"]
[null,null,null,null,null,null,null,null,"+ P2_EPS_EXT.2",{"$f":"+INDEX('2'!J$259:J$276,$E214-$E$49+1)","v":":"},null,null,null,{"$f":"+INDEX('2'!N$259:N$276,$E214-$E$49+1)","v":":"},null,{"$f":"+INDEX('2'!P$259:P$276,$E214-$E$49+1)","v":":"},null,{"$f":"+INDEX('2'!R$259:R$276,$E214-$E$49+1)","v":":"},null,{"$f":"+INDEX('2'!T$259:T$276,$E214-$E$49+1)","v":":"},null,{"$f":"+INDEX('2'!V$259:V$276,$E214-$E$49+1)","v":":"},null,null,null,null,null,null,null,{"$f":"+INDEX('2'!AD$259:AD$276,$E214-$E$49+1)","v":":"},null,{"$f":"+INDEX('2'!AF$259:AF$276,$E214-$E$49+1)","v":":"}]
[null,null,null,null,null,null,null,null,"+ P2_EPS_EXT.3",{"$f":"+INDEX('3'!J$223:J$240,$E214-$E$49+1)","v":":"},null,null,null,{"$f":"+INDEX('3'!N$223:N$240,$E214-$E$49+1)","v":":"},null,{"$f":"+INDEX('3'!P$223:P$240,$E214-$E$49+1)","v":":"},null,{"$f":"+INDEX('3'!R$223:R$240,$E214-$E$49+1)","v":":"},null,{"$f":"+INDEX('3'!T$223:T$240,$E214-$E$49+1)","v":":"},null,{"$f":"+INDEX('3'!V$223:V$240,$E214-$E$49+1)","v":":"},null,null,null,null,null,null,null,{"$f":"+INDEX('3'!AD$223:AD$240,$E214-$E$49+1)","v":":"},null,{"$f":"+INDEX('3'!AF$223:AF$240,$E214-$E$49+1)","v":":"}]
[null,null,null,null,null,null,null,null,"- P2_EPS.1"]
[null,null,null,null,null,null,null,null,"- P2_EPS.2",{"$f":"+INDEX('2'!J$43:J$60,$E214-$E$49+1)","v":":"},null,null,null,{"$f":"+INDEX('2'!N$43:N$60,$E214-$E$49+1)","v":":"},null,{"$f":"+INDEX('2'!P$43:P$60,$E214-$E$49+1)","v":":"},null,{"$f":"+INDEX('2'!R$43:R$60,$E214-$E$49+1)","v":":"},null,{"$f":"+INDEX('2'!T$43:T$60,$E214-$E$49+1)","v":":"},null,{"$f":"+INDEX('2'!V$43:V$60,$E214-$E$49+1)","v":":"},null,null,null,null,null,null,null,{"$f":"+INDEX('2'!AD$43:AD$60,$E214-$E$49+1)","v":":"},null,{"$f":"+INDEX('2'!AF$43:AF$60,$E214-$E$49+1)","v":":"}]
[null,null,null,null,null,null,"Gross fixed capital formation and acquisition less disposals of non-financial, non-produced assets ",null,"+ P51G_NP.1"]
[null,null,null,null,null,null,null,null,"+ P51G_NP.2",{"$f":"+INDEX('2'!J$7:J$24,$E214-$E$49+1)","v":":"},null,null,null,{"$f":"+INDEX('2'!N$7:N$24,$E214-$E$49+1)","v":":"},null,{"$f":"+INDEX('2'!P$7:P$24,$E214-$E$49+1)","v":":"},null,{"$f":"+INDEX('2'!R$7:R$24,$E214-$E$49+1)","v":":"},null,{"$f":"+INDEX('2'!T$7:T$24,$E214-$E$49+1)","v":":"},null,{"$f":"+INDEX('2'!V$7:V$24,$E214-$E$49+1)","v":":"},null,null,null,null,null,null,null,{"$f":"+INDEX('2'!AD$7:AD$24,$E214-$E$49+1)","v":":"},null,{"$f":"+INDEX('2'!AF$7:AF$24,$E214-$E$49+1)","v":":"}]
[null,null,null,null,null,null,null,null,"+ P51G_NP.3",{"$f":"+INDEX('3'!J$7:J$24,$E214-$E$49+1)","v":":"},null,null,null,{"$f":"+INDEX('3'!N$7:N$24,$E214-$E$49+1)","v":":"},null,{"$f":"+INDEX('3'!P$7:P$24,$E214-$E$49+1)","v":":"},null,{"$f":"+INDEX('3'!R$7:R$24,$E214-$E$49+1)","v":":"},null,{"$f":"+INDEX('3'!T$7:T$24,$E214-$E$49+1)","v":":"},null,{"$f":"+INDEX('3'!V$7:V$24,$E214-$E$49+1)","v":":"},null,null,null,null,null,null,null,{"$f":"+INDEX('3'!AD$7:AD$24,$E214-$E$49+1)","v":":"},null,{"$f":"+INDEX('3'!AF$7:AF$24,$E214-$E$49+1)","v":":"}]
[null,null,null,null,null,null,"EP transfers to / from Rest of the World",null,"- D3_D7_D92_D99_PAY_RW.6"]
[null,null,null,null,null,null,null,null,"+ D3_D7_D92_D99_REC_RW.6"]
[null,null,null,null,null,null,"TOTAL",null,"=SUM()",{"$f":"+IF(COUNT(J214:J217,J223:J227)=0,\":\",SUM(J214:J217,J223:J225,J227)-SUM(J226))","v":":"},null,null,null,{"$f":"+IF(COUNT(N214:N217,N223:N227)=0,\":\",SUM(N214:N217,N223:N225,N227)-SUM(N226))","v":":"},null,{"$f":"+IF(COUNT(P214:P217,P223:P227)=0,\":\",SUM(P214:P217,P223:P225,P227)-SUM(P226))","v":":"},null,{"$f":"+IF(COUNT(R214:R217,R223:R227)=0,\":\",SUM(R214:R217,R223:R225,R227)-SUM(R226))","v":":"},null,{"$f":"+IF(COUNT(T214:T217,T223:T227)=0,\":\",SUM(T214:T217,T223:T225,T227)-SUM(T226))","v":":"},null,{"$f":"+IF(COUNT(V214:V217,V223:V227)=0,\":\",SUM(V214:V217,V223:V225,V227)-SUM(V226))","v":":"},null,null,null,null,null,null,null,{"$f":"+IF(COUNT(AD214:AD217,AD223:AD227)=0,\":\",SUM(AD214:AD217,AD223:AD225,AD227)-SUM(AD226))","v":":"},null,{"$f":"+IF(COUNT(AF214:AF217,AF223:AF227)=0,\":\",SUM(AF214:AF217,AF223:AF225,AF227)-SUM(AF226))","v":":"}]
[null,null,null,null,2026,null,"Final consumption expenditure",null,"+ P3_EPS.1"]
[null,null,null,null,null,null,null,null,"+ P3_EPS.5"]
[null,null,null,null,null,null,"Intermediate consumption",null,"+ P1_ANC.3",{"$f":"+INDEX('3'!J$133:J$150,$E229-$E$49+1)","v":":"},null,null,null,{"$f":"+INDEX('3'!N$133:N$150,$E229-$E$49+1)","v":":"},null,{"$f":"+INDEX('3'!P$133:P$150,$E229-$E$49+1)","v":":"},null,{"$f":"+INDEX('3'!R$133:R$150,$E229-$E$49+1)","v":":"},null,{"$f":"+INDEX('3'!T$133:T$150,$E229-$E$49+1)","v":":"},null,{"$f":"+INDEX('3'!V$133:V$150,$E229-$E$49+1)","v":":"},null,null,null,null,null,null,null,{"$f":"+INDEX('3'!AD$133:AD$150,$E229-$E$49+1)","v":":"},null,{"$f":"+INDEX('3'!AF$133:AF$150,$E229-$E$49+1)","v":":"}]
[null,null,null,null,null,null,null,null,"+ P2",{"$f":"+IF(COUNT(J233:J237)=0,\":\",SUM(J233:J235)-SUM(J236:J237))","v":":"},null,null,null,{"$f":"+IF(COUNT(N233:N237)=0,\":\",SUM(N233:N235)-SUM(N236:N237))","v":":"},null,{"$f":"+IF(COUNT(P233:P237)=0,\":\",SUM(P233:P235)-SUM(P236:P237))","v":":"},null,{"$f":"+IF(COUNT(R233:R237)=0,\":\",SUM(R233:R235)-SUM(R236:R237))","v":":"},null,{"$f":"+IF(COUNT(T233:T237)=0,\":\",SUM(T233:T235)-SUM(T236:T237))","v":":"},null,{"$f":"+IF(COUNT(V233:V237)=0,\":\",SUM(V233:V235)-SUM(V236:V237))","v":":"},null,null,null,null,null,null,null,{"$f":"+IF(COUNT(AD233:AD237)=0,\":\",SUM(AD233:AD235)-SUM(AD236:AD237))","v":":"},null,{"$f":"+IF(COUNT(AF233:AF237)=0,\":\",SUM(AF233:AF235)-SUM(AF236:AF237))","v":":"}]
[null,null,null,null,null,null,null,null,"+ P2_EPS_EXT.1"]
[null,null,null,null,null,null,null,null,"+ P2_EPS_EXT.2",{"$f":"+INDEX('2'!J$259:J$276,$E229-$E$49+1)","v":":"},null,null,null,{"$f":"+INDEX('2'!N$259:N$276,$E229-$E$49+1)","v":":"},null,{"$f":"+INDEX('2'!P$259:P$276,$E229-$E$49+1)","v":":"},null,{"$f":"+INDEX('2'!R$259:R$276,$E229-$E$49+1)","v":":"},null,{"$f":"+INDEX('2'!T$259:T$276,$E229-$E$49+1)","v":":"},null,{"$f":"+INDEX('2'!V$259:V$276,$E229-$E$49+1)","v":":"},null,null,null,null,null,null,null,{"$f":"+INDEX('2'!AD$259:AD$276,$E229-$E$49+1)","v":":"},null,{"$f":"+INDEX('2'!AF$259:AF$276,$E229-$E$49+1)","v":":"}]
[null,null,null,null,null,null,null,null,"+ P2_EPS_EXT.3",{"$f":"+INDEX('3'!J$223:J$240,$E229-$E$49+1)","v":":"},null,null,null,{"$f":"+INDEX('3'!N$223:N$240,$E229-$E$49+1)","v":":"},null,{"$f":"+INDEX('3'!P$223:P$240,$E229-$E$49+1)","v":":"},null,{"$f":"+INDEX('3'!R$223:R$240,$E229-$E$49+1)","v":":"},null,{"$f":"+INDEX('3'!T$223:T$240,$E229-$E$49+1)","v":":"},null,{"$f":"+INDEX('3'!V$223:V$240,$E229-$E$49+1)","v":":"},null,null,null,null,null,null,null,{"$f":"+INDEX('3'!AD$223:AD$240,$E229-$E$49+1)","v":":"},null,{"$f":"+INDEX('3'!AF$223:AF$240,$E229-$E$49+1)","v":":"}]
[null,null,null,null,null,null,null,null,"- P2_EPS.1"]
[null,null,null,null,null,null,null,null,"- P2_EPS.2",{"$f":"+INDEX('2'!J$43:J$60,$E229-$E$49+1)","v":":"},null,null,null,{"$f":"+INDEX('2'!N$43:N$60,$E229-$E$49+1)","v":":"},null,{"$f":"+INDEX('2'!P$43:P$60,$E229-$E$49+1)","v":":"},null,{"$f":"+INDEX('2'!R$43:R$60,$E229-$E$49+1)","v":":"},null,{"$f":"+INDEX('2'!T$43:T$60,$E229-$E$49+1)","v":":"},null,{"$f":"+INDEX('2'!V$43:V$60,$E229-$E$49+1)","v":":"},null,null,null,null,null,null,null,{"$f":"+INDEX('2'!AD$43:AD$60,$E229-$E$49+1)","v":":"},null,{"$f":"+INDEX('2'!AF$43:AF$60,$E229-$E$49+1)","v":":"}]
[null,null,null,null,null,null,"Gross fixed capital formation and acquisition less disposals of non-financial, non-produced assets ",null,"+ P51G_NP.1"]
[null,null,null,null,null,null,null,null,"+ P51G_NP.2",{"$f":"+INDEX('2'!J$7:J$24,$E229-$E$49+1)","v":":"},null,null,null,{"$f":"+INDEX('2'!N$7:N$24,$E229-$E$49+1)","v":":"},null,{"$f":"+INDEX('2'!P$7:P$24,$E229-$E$49+1)","v":":"},null,{"$f":"+INDEX('2'!R$7:R$24,$E229-$E$49+1)","v":":"},null,{"$f":"+INDEX('2'!T$7:T$24,$E229-$E$49+1)","v":":"},null,{"$f":"+INDEX('2'!V$7:V$24,$E229-$E$49+1)","v":":"},null,null,null,null,null,null,null,{"$f":"+INDEX('2'!AD$7:AD$24,$E229-$E$49+1)","v":":"},null,{"$f":"+INDEX('2'!AF$7:AF$24,$E229-$E$49+1)","v":":"}]
[null,null,null,null,null,null,null,null,"+ P51G_NP.3",{"$f":"+INDEX('3'!J$7:J$24,$E229-$E$49+1)","v":":"},null,null,null,{"$f":"+INDEX('3'!N$7:N$24,$E229-$E$49+1)","v":":"},null,{"$f":"+INDEX('3'!P$7:P$24,$E229-$E$49+1)","v":":"},null,{"$f":"+INDEX('3'!R$7:R$24,$E229-$E$49+1)","v":":"},null,{"$f":"+INDEX('3'!T$7:T$24,$E229-$E$49+1)","v":":"},null,{"$f":"+INDEX('3'!V$7:V$24,$E229-$E$49+1)","v":":"},null,null,null,null,null,null,null,{"$f":"+INDEX('3'!AD$7:AD$24,$E229-$E$49+1)","v":":"},null,{"$f":"+INDEX('3'!AF$7:AF$24,$E229-$E$49+1)","v":":"}]
[null,null,null,null,null,null,"EP transfers to / from Rest of the World",null,"- D3_D7_D92_D99_PAY_RW.6"]
[null,null,null,null,null,null,null,null,"+ D3_D7_D92_D99_REC_RW.6"]
[null,null,null,null,null,null,"TOTAL",null,"=SUM()",{"$f":"+IF(COUNT(J229:J232,J238:J242)=0,\":\",SUM(J229:J232,J238:J240,J242)-SUM(J241))","v":":"},null,null,null,{"$f":"+IF(COUNT(N229:N232,N238:N242)=0,\":\",SUM(N229:N232,N238:N240,N242)-SUM(N241))","v":":"},null,{"$f":"+IF(COUNT(P229:P232,P238:P242)=0,\":\",SUM(P229:P232,P238:P240,P242)-SUM(P241))","v":":"},null,{"$f":"+IF(COUNT(R229:R232,R238:R242)=0,\":\",SUM(R229:R232,R238:R240,R242)-SUM(R241))","v":":"},null,{"$f":"+IF(COUNT(T229:T232,T238:T242)=0,\":\",SUM(T229:T232,T238:T240,T242)-SUM(T241))","v":":"},null,{"$f":"+IF(COUNT(V229:V232,V238:V242)=0,\":\",SUM(V229:V232,V238:V240,V242)-SUM(V241))","v":":"},null,null,null,null,null,null,null,{"$f":"+IF(COUNT(AD229:AD232,AD238:AD242)=0,\":\",SUM(AD229:AD232,AD238:AD240,AD242)-SUM(AD241))","v":":"},null,{"$f":"+IF(COUNT(AF229:AF232,AF238:AF242)=0,\":\",SUM(AF229:AF232,AF238:AF240,AF242)-SUM(AF241))","v":":"}]
[null,null,null,null,2027,null,"Final consumption expenditure",null,"+ P3_EPS.1"]
[null,null,null,null,null,null,null,null,"+ P3_EPS.5"]
[null,null,null,null,null,null,"Intermediate consumption",null,"+ P1_ANC.3",{"$f":"+INDEX('3'!J$133:J$150,$E244-$E$49+1)","v":":"},null,null,null,{"$f":"+INDEX('3'!N$133:N$150,$E244-$E$49+1)","v":":"},null,{"$f":"+INDEX('3'!P$133:P$150,$E244-$E$49+1)","v":":"},null,{"$f":"+INDEX('3'!R$133:R$150,$E244-$E$49+1)","v":":"},null,{"$f":"+INDEX('3'!T$133:T$150,$E244-$E$49+1)","v":":"},null,{"$f":"+INDEX('3'!V$133:V$150,$E244-$E$49+1)","v":":"},null,null,null,null,null,null,null,{"$f":"+INDEX('3'!AD$133:AD$150,$E244-$E$49+1)","v":":"},null,{"$f":"+INDEX('3'!AF$133:AF$150,$E244-$E$49+1)","v":":"}]
[null,null,null,null,null,null,null,null,"+ P2",{"$f":"+IF(COUNT(J248:J252)=0,\":\",SUM(J248:J250)-SUM(J251:J252))","v":":"},null,null,null,{"$f":"+IF(COUNT(N248:N252)=0,\":\",SUM(N248:N250)-SUM(N251:N252))","v":":"},null,{"$f":"+IF(COUNT(P248:P252)=0,\":\",SUM(P248:P250)-SUM(P251:P252))","v":":"},null,{"$f":"+IF(COUNT(R248:R252)=0,\":\",SUM(R248:R250)-SUM(R251:R252))","v":":"},null,{"$f":"+IF(COUNT(T248:T252)=0,\":\",SUM(T248:T250)-SUM(T251:T252))","v":":"},null,{"$f":"+IF(COUNT(V248:V252)=0,\":\",SUM(V248:V250)-SUM(V251:V252))","v":":"},null,null,null,null,null,null,null,{"$f":"+IF(COUNT(AD248:AD252)=0,\":\",SUM(AD248:AD250)-SUM(AD251:AD252))","v":":"},null,{"$f":"+IF(COUNT(AF248:AF252)=0,\":\",SUM(AF248:AF250)-SUM(AF251:AF252))","v":":"}]
[null,null,null,null,null,null,null,null,"+ P2_EPS_EXT.1"]
[null,null,null,null,null,null,null,null,"+ P2_EPS_EXT.2",{"$f":"+INDEX('2'!J$259:J$276,$E244-$E$49+1)","v":":"},null,null,null,{"$f":"+INDEX('2'!N$259:N$276,$E244-$E$49+1)","v":":"},null,{"$f":"+INDEX('2'!P$259:P$276,$E244-$E$49+1)","v":":"},null,{"$f":"+INDEX('2'!R$259:R$276,$E244-$E$49+1)","v":":"},null,{"$f":"+INDEX('2'!T$259:T$276,$E244-$E$49+1)","v":":"},null,{"$f":"+INDEX('2'!V$259:V$276,$E244-$E$49+1)","v":":"},null,null,null,null,null,null,null,{"$f":"+INDEX('2'!AD$259:AD$276,$E244-$E$49+1)","v":":"},null,{"$f":"+INDEX('2'!AF$259:AF$276,$E244-$E$49+1)","v":":"}]
[null,null,null,null,null,null,null,null,"+ P2_EPS_EXT.3",{"$f":"+INDEX('3'!J$223:J$240,$E244-$E$49+1)","v":":"},null,null,null,{"$f":"+INDEX('3'!N$223:N$240,$E244-$E$49+1)","v":":"},null,{"$f":"+INDEX('3'!P$223:P$240,$E244-$E$49+1)","v":":"},null,{"$f":"+INDEX('3'!R$223:R$240,$E244-$E$49+1)","v":":"},null,{"$f":"+INDEX('3'!T$223:T$240,$E244-$E$49+1)","v":":"},null,{"$f":"+INDEX('3'!V$223:V$240,$E244-$E$49+1)","v":":"},null,null,null,null,null,null,null,{"$f":"+INDEX('3'!AD$223:AD$240,$E244-$E$49+1)","v":":"},null,{"$f":"+INDEX('3'!AF$223:AF$240,$E244-$E$49+1)","v":":"}]
[null,null,null,null,null,null,null,null,"- P2_EPS.1"]
[null,null,null,null,null,null,null,null,"- P2_EPS.2",{"$f":"+INDEX('2'!J$43:J$60,$E244-$E$49+1)","v":":"},null,null,null,{"$f":"+INDEX('2'!N$43:N$60,$E244-$E$49+1)","v":":"},null,{"$f":"+INDEX('2'!P$43:P$60,$E244-$E$49+1)","v":":"},null,{"$f":"+INDEX('2'!R$43:R$60,$E244-$E$49+1)","v":":"},null,{"$f":"+INDEX('2'!T$43:T$60,$E244-$E$49+1)","v":":"},null,{"$f":"+INDEX('2'!V$43:V$60,$E244-$E$49+1)","v":":"},null,null,null,null,null,null,null,{"$f":"+INDEX('2'!AD$43:AD$60,$E244-$E$49+1)","v":":"},null,{"$f":"+INDEX('2'!AF$43:AF$60,$E244-$E$49+1)","v":":"}]
[null,null,null,null,null,null,"Gross fixed capital formation and acquisition less disposals of non-financial, non-produced assets ",null,"+ P51G_NP.1"]
[null,null,null,null,null,null,null,null,"+ P51G_NP.2",{"$f":"+INDEX('2'!J$7:J$24,$E244-$E$49+1)","v":":"},null,null,null,{"$f":"+INDEX('2'!N$7:N$24,$E244-$E$49+1)","v":":"},null,{"$f":"+INDEX('2'!P$7:P$24,$E244-$E$49+1)","v":":"},null,{"$f":"+INDEX('2'!R$7:R$24,$E244-$E$49+1)","v":":"},null,{"$f":"+INDEX('2'!T$7:T$24,$E244-$E$49+1)","v":":"},null,{"$f":"+INDEX('2'!V$7:V$24,$E244-$E$49+1)","v":":"},null,null,null,null,null,null,null,{"$f":"+INDEX('2'!AD$7:AD$24,$E244-$E$49+1)","v":":"},null,{"$f":"+INDEX('2'!AF$7:AF$24,$E244-$E$49+1)","v":":"}]
[null,null,null,null,null,null,null,null,"+ P51G_NP.3",{"$f":"+INDEX('3'!J$7:J$24,$E244-$E$49+1)","v":":"},null,null,null,{"$f":"+INDEX('3'!N$7:N$24,$E244-$E$49+1)","v":":"},null,{"$f":"+INDEX('3'!P$7:P$24,$E244-$E$49+1)","v":":"},null,{"$f":"+INDEX('3'!R$7:R$24,$E244-$E$49+1)","v":":"},null,{"$f":"+INDEX('3'!T$7:T$24,$E244-$E$49+1)","v":":"},null,{"$f":"+INDEX('3'!V$7:V$24,$E244-$E$49+1)","v":":"},null,null,null,null,null,null,null,{"$f":"+INDEX('3'!AD$7:AD$24,$E244-$E$49+1)","v":":"},null,{"$f":"+INDEX('3'!AF$7:AF$24,$E244-$E$49+1)","v":":"}]
[null,null,null,null,null,null,"EP transfers to / from Rest of the World",null,"- D3_D7_D92_D99_PAY_RW.6"]
[null,null,null,null,null,null,null,null,"+ D3_D7_D92_D99_REC_RW.6"]
[null,null,null,null,null,null,"TOTAL",null,"=SUM()",{"$f":"+IF(COUNT(J244:J247,J253:J257)=0,\":\",SUM(J244:J247,J253:J255,J257)-SUM(J256))","v":":"},null,null,null,{"$f":"+IF(COUNT(N244:N247,N253:N257)=0,\":\",SUM(N244:N247,N253:N255,N257)-SUM(N256))","v":":"},null,{"$f":"+IF(COUNT(P244:P247,P253:P257)=0,\":\",SUM(P244:P247,P253:P255,P257)-SUM(P256))","v":":"},null,{"$f":"+IF(COUNT(R244:R247,R253:R257)=0,\":\",SUM(R244:R247,R253:R255,R257)-SUM(R256))","v":":"},null,{"$f":"+IF(COUNT(T244:T247,T253:T257)=0,\":\",SUM(T244:T247,T253:T255,T257)-SUM(T256))","v":":"},null,{"$f":"+IF(COUNT(V244:V247,V253:V257)=0,\":\",SUM(V244:V247,V253:V255,V257)-SUM(V256))","v":":"},null,null,null,null,null,null,null,{"$f":"+IF(COUNT(AD244:AD247,AD253:AD257)=0,\":\",SUM(AD244:AD247,AD253:AD255,AD257)-SUM(AD256))","v":":"},null,{"$f":"+IF(COUNT(AF244:AF247,AF253:AF257)=0,\":\",SUM(AF244:AF247,AF253:AF255,AF257)-SUM(AF256))","v":":"}]
[null,null,null,null,2028,null,"Final consumption expenditure",null,"+ P3_EPS.1"]
[null,null,null,null,null,null,null,null,"+ P3_EPS.5"]
[null,null,null,null,null,null,"Intermediate consumption",null,"+ P1_ANC.3",{"$f":"+INDEX('3'!J$133:J$150,$E259-$E$49+1)","v":":"},null,null,null,{"$f":"+INDEX('3'!N$133:N$150,$E259-$E$49+1)","v":":"},null,{"$f":"+INDEX('3'!P$133:P$150,$E259-$E$49+1)","v":":"},null,{"$f":"+INDEX('3'!R$133:R$150,$E259-$E$49+1)","v":":"},null,{"$f":"+INDEX('3'!T$133:T$150,$E259-$E$49+1)","v":":"},null,{"$f":"+INDEX('3'!V$133:V$150,$E259-$E$49+1)","v":":"},null,null,null,null,null,null,null,{"$f":"+INDEX('3'!AD$133:AD$150,$E259-$E$49+1)","v":":"},null,{"$f":"+INDEX('3'!AF$133:AF$150,$E259-$E$49+1)","v":":"}]
[null,null,null,null,null,null,null,null,"+ P2",{"$f":"+IF(COUNT(J263:J267)=0,\":\",SUM(J263:J265)-SUM(J266:J267))","v":":"},null,null,null,{"$f":"+IF(COUNT(N263:N267)=0,\":\",SUM(N263:N265)-SUM(N266:N267))","v":":"},null,{"$f":"+IF(COUNT(P263:P267)=0,\":\",SUM(P263:P265)-SUM(P266:P267))","v":":"},null,{"$f":"+IF(COUNT(R263:R267)=0,\":\",SUM(R263:R265)-SUM(R266:R267))","v":":"},null,{"$f":"+IF(COUNT(T263:T267)=0,\":\",SUM(T263:T265)-SUM(T266:T267))","v":":"},null,{"$f":"+IF(COUNT(V263:V267)=0,\":\",SUM(V263:V265)-SUM(V266:V267))","v":":"},null,null,null,null,null,null,null,{"$f":"+IF(COUNT(AD263:AD267)=0,\":\",SUM(AD263:AD265)-SUM(AD266:AD267))","v":":"},null,{"$f":"+IF(COUNT(AF263:AF267)=0,\":\",SUM(AF263:AF265)-SUM(AF266:AF267))","v":":"}]
[null,null,null,null,null,null,null,null,"+ P2_EPS_EXT.1"]
[null,null,null,null,null,null,null,null,"+ P2_EPS_EXT.2",{"$f":"+INDEX('2'!J$259:J$276,$E259-$E$49+1)","v":":"},null,null,null,{"$f":"+INDEX('2'!N$259:N$276,$E259-$E$49+1)","v":":"},null,{"$f":"+INDEX('2'!P$259:P$276,$E259-$E$49+1)","v":":"},null,{"$f":"+INDEX('2'!R$259:R$276,$E259-$E$49+1)","v":":"},null,{"$f":"+INDEX('2'!T$259:T$276,$E259-$E$49+1)","v":":"},null,{"$f":"+INDEX('2'!V$259:V$276,$E259-$E$49+1)","v":":"},null,null,null,null,null,null,null,{"$f":"+INDEX('2'!AD$259:AD$276,$E259-$E$49+1)","v":":"},null,{"$f":"+INDEX('2'!AF$259:AF$276,$E259-$E$49+1)","v":":"}]
[null,null,null,null,null,null,null,null,"+ P2_EPS_EXT.3",{"$f":"+INDEX('3'!J$223:J$240,$E259-$E$49+1)","v":":"},null,null,null,{"$f":"+INDEX('3'!N$223:N$240,$E259-$E$49+1)","v":":"},null,{"$f":"+INDEX('3'!P$223:P$240,$E259-$E$49+1)","v":":"},null,{"$f":"+INDEX('3'!R$223:R$240,$E259-$E$49+1)","v":":"},null,{"$f":"+INDEX('3'!T$223:T$240,$E259-$E$49+1)","v":":"},null,{"$f":"+INDEX('3'!V$223:V$240,$E259-$E$49+1)","v":":"},null,null,null,null,null,null,null,{"$f":"+INDEX('3'!AD$223:AD$240,$E259-$E$49+1)","v":":"},null,{"$f":"+INDEX('3'!AF$223:AF$240,$E259-$E$49+1)","v":":"}]
[null,null,null,null,null,null,null,null,"- P2_EPS.1"]
[null,null,null,null,null,null,null,null,"- P2_EPS.2",{"$f":"+INDEX('2'!J$43:J$60,$E259-$E$49+1)","v":":"},null,null,null,{"$f":"+INDEX('2'!N$43:N$60,$E259-$E$49+1)","v":":"},null,{"$f":"+INDEX('2'!P$43:P$60,$E259-$E$49+1)","v":":"},null,{"$f":"+INDEX('2'!R$43:R$60,$E259-$E$49+1)","v":":"},null,{"$f":"+INDEX('2'!T$43:T$60,$E259-$E$49+1)","v":":"},null,{"$f":"+INDEX('2'!V$43:V$60,$E259-$E$49+1)","v":":"},null,null,null,null,null,null,null,{"$f":"+INDEX('2'!AD$43:AD$60,$E259-$E$49+1)","v":":"},null,{"$f":"+INDEX('2'!AF$43:AF$60,$E259-$E$49+1)","v":":"}]
[null,null,null,null,null,null,"Gross fixed capital formation and acquisition less disposals of non-financial, non-produced assets ",null,"+ P51G_NP.1"]
[null,null,null,null,null,null,null,null,"+ P51G_NP.2",{"$f":"+INDEX('2'!J$7:J$24,$E259-$E$49+1)","v":":"},null,null,null,{"$f":"+INDEX('2'!N$7:N$24,$E259-$E$49+1)","v":":"},null,{"$f":"+INDEX('2'!P$7:P$24,$E259-$E$49+1)","v":":"},null,{"$f":"+INDEX('2'!R$7:R$24,$E259-$E$49+1)","v":":"},null,{"$f":"+INDEX('2'!T$7:T$24,$E259-$E$49+1)","v":":"},null,{"$f":"+INDEX('2'!V$7:V$24,$E259-$E$49+1)","v":":"},null,null,null,null,null,null,null,{"$f":"+INDEX('2'!AD$7:AD$24,$E259-$E$49+1)","v":":"},null,{"$f":"+INDEX('2'!AF$7:AF$24,$E259-$E$49+1)","v":":"}]
[null,null,null,null,null,null,null,null,"+ P51G_NP.3",{"$f":"+INDEX('3'!J$7:J$24,$E259-$E$49+1)","v":":"},null,null,null,{"$f":"+INDEX('3'!N$7:N$24,$E259-$E$49+1)","v":":"},null,{"$f":"+INDEX('3'!P$7:P$24,$E259-$E$49+1)","v":":"},null,{"$f":"+INDEX('3'!R$7:R$24,$E259-$E$49+1)","v":":"},null,{"$f":"+INDEX('3'!T$7:T$24,$E259-$E$49+1)","v":":"},null,{"$f":"+INDEX('3'!V$7:V$24,$E259-$E$49+1)","v":":"},null,null,null,null,null,null,null,{"$f":"+INDEX('3'!AD$7:AD$24,$E259-$E$49+1)","v":":"},null,{"$f":"+INDEX('3'!AF$7:AF$24,$E259-$E$49+1)","v":":"}]
[null,null,null,null,null,null,"EP transfers to / from Rest of the World",null,"- D3_D7_D92_D99_PAY_RW.6"]
[null,null,null,null,null,null,null,null,"+ D3_D7_D92_D99_REC_RW.6"]
[null,null,null,null,null,null,"TOTAL",null,"=SUM()",{"$f":"+IF(COUNT(J259:J262,J268:J272)=0,\":\",SUM(J259:J262,J268:J270,J272)-SUM(J271))","v":":"},null,null,null,{"$f":"+IF(COUNT(N259:N262,N268:N272)=0,\":\",SUM(N259:N262,N268:N270,N272)-SUM(N271))","v":":"},null,{"$f":"+IF(COUNT(P259:P262,P268:P272)=0,\":\",SUM(P259:P262,P268:P270,P272)-SUM(P271))","v":":"},null,{"$f":"+IF(COUNT(R259:R262,R268:R272)=0,\":\",SUM(R259:R262,R268:R270,R272)-SUM(R271))","v":":"},null,{"$f":"+IF(COUNT(T259:T262,T268:T272)=0,\":\",SUM(T259:T262,T268:T270,T272)-SUM(T271))","v":":"},null,{"$f":"+IF(COUNT(V259:V262,V268:V272)=0,\":\",SUM(V259:V262,V268:V270,V272)-SUM(V271))","v":":"},null,null,null,null,null,null,null,{"$f":"+IF(COUNT(AD259:AD262,AD268:AD272)=0,\":\",SUM(AD259:AD262,AD268:AD270,AD272)-SUM(AD271))","v":":"},null,{"$f":"+IF(COUNT(AF259:AF262,AF268:AF272)=0,\":\",SUM(AF259:AF262,AF268:AF270,AF272)-SUM(AF271))","v":":"}]
[null,null,null,null,2029,null,"Final consumption expenditure",null,"+ P3_EPS.1"]
[null,null,null,null,null,null,null,null,"+ P3_EPS.5"]
[null,null,null,null,null,null,"Intermediate consumption",null,"+ P1_ANC.3",{"$f":"+INDEX('3'!J$133:J$150,$E274-$E$49+1)","v":":"},null,null,null,{"$f":"+INDEX('3'!N$133:N$150,$E274-$E$49+1)","v":":"},null,{"$f":"+INDEX('3'!P$133:P$150,$E274-$E$49+1)","v":":"},null,{"$f":"+INDEX('3'!R$133:R$150,$E274-$E$49+1)","v":":"},null,{"$f":"+INDEX('3'!T$133:T$150,$E274-$E$49+1)","v":":"},null,{"$f":"+INDEX('3'!V$133:V$150,$E274-$E$49+1)","v":":"},null,null,null,null,null,null,null,{"$f":"+INDEX('3'!AD$133:AD$150,$E274-$E$49+1)","v":":"},null,{"$f":"+INDEX('3'!AF$133:AF$150,$E274-$E$49+1)","v":":"}]
[null,null,null,null,null,null,null,null,"+ P2",{"$f":"+IF(COUNT(J278:J282)=0,\":\",SUM(J278:J280)-SUM(J281:J282))","v":":"},null,null,null,{"$f":"+IF(COUNT(N278:N282)=0,\":\",SUM(N278:N280)-SUM(N281:N282))","v":":"},null,{"$f":"+IF(COUNT(P278:P282)=0,\":\",SUM(P278:P280)-SUM(P281:P282))","v":":"},null,{"$f":"+IF(COUNT(R278:R282)=0,\":\",SUM(R278:R280)-SUM(R281:R282))","v":":"},null,{"$f":"+IF(COUNT(T278:T282)=0,\":\",SUM(T278:T280)-SUM(T281:T282))","v":":"},null,{"$f":"+IF(COUNT(V278:V282)=0,\":\",SUM(V278:V280)-SUM(V281:V282))","v":":"},null,null,null,null,null,null,null,{"$f":"+IF(COUNT(AD278:AD282)=0,\":\",SUM(AD278:AD280)-SUM(AD281:AD282))","v":":"},null,{"$f":"+IF(COUNT(AF278:AF282)=0,\":\",SUM(AF278:AF280)-SUM(AF281:AF282))","v":":"}]
[null,null,null,null,null,null,null,null,"+ P2_EPS_EXT.1"]
[null,null,null,null,null,null,null,null,"+ P2_EPS_EXT.2",{"$f":"+INDEX('2'!J$259:J$276,$E274-$E$49+1)","v":":"},null,null,null,{"$f":"+INDEX('2'!N$259:N$276,$E274-$E$49+1)","v":":"},null,{"$f":"+INDEX('2'!P$259:P$276,$E274-$E$49+1)","v":":"},null,{"$f":"+INDEX('2'!R$259:R$276,$E274-$E$49+1)","v":":"},null,{"$f":"+INDEX('2'!T$259:T$276,$E274-$E$49+1)","v":":"},null,{"$f":"+INDEX('2'!V$259:V$276,$E274-$E$49+1)","v":":"},null,null,null,null,null,null,null,{"$f":"+INDEX('2'!AD$259:AD$276,$E274-$E$49+1)","v":":"},null,{"$f":"+INDEX('2'!AF$259:AF$276,$E274-$E$49+1)","v":":"}]
[null,null,null,null,null,null,null,null,"+ P2_EPS_EXT.3",{"$f":"+INDEX('3'!J$223:J$240,$E274-$E$49+1)","v":":"},null,null,null,{"$f":"+INDEX('3'!N$223:N$240,$E274-$E$49+1)","v":":"},null,{"$f":"+INDEX('3'!P$223:P$240,$E274-$E$49+1)","v":":"},null,{"$f":"+INDEX('3'!R$223:R$240,$E274-$E$49+1)","v":":"},null,{"$f":"+INDEX('3'!T$223:T$240,$E274-$E$49+1)","v":":"},null,{"$f":"+INDEX('3'!V$223:V$240,$E274-$E$49+1)","v":":"},null,null,null,null,null,null,null,{"$f":"+INDEX('3'!AD$223:AD$240,$E274-$E$49+1)","v":":"},null,{"$f":"+INDEX('3'!AF$223:AF$240,$E274-$E$49+1)","v":":"}]
[null,null,null,null,null,null,null,null,"- P2_EPS.1"]
[null,null,null,null,null,null,null,null,"- P2_EPS.2",{"$f":"+INDEX('2'!J$43:J$60,$E274-$E$49+1)","v":":"},null,null,null,{"$f":"+INDEX('2'!N$43:N$60,$E274-$E$49+1)","v":":"},null,{"$f":"+INDEX('2'!P$43:P$60,$E274-$E$49+1)","v":":"},null,{"$f":"+INDEX('2'!R$43:R$60,$E274-$E$49+1)","v":":"},null,{"$f":"+INDEX('2'!T$43:T$60,$E274-$E$49+1)","v":":"},null,{"$f":"+INDEX('2'!V$43:V$60,$E274-$E$49+1)","v":":"},null,null,null,null,null,null,null,{"$f":"+INDEX('2'!AD$43:AD$60,$E274-$E$49+1)","v":":"},null,{"$f":"+INDEX('2'!AF$43:AF$60,$E274-$E$49+1)","v":":"}]
[null,null,null,null,null,null,"Gross fixed capital formation and acquisition less disposals of non-financial, non-produced assets ",null,"+ P51G_NP.1"]
[null,null,null,null,null,null,null,null,"+ P51G_NP.2",{"$f":"+INDEX('2'!J$7:J$24,$E274-$E$49+1)","v":":"},null,null,null,{"$f":"+INDEX('2'!N$7:N$24,$E274-$E$49+1)","v":":"},null,{"$f":"+INDEX('2'!P$7:P$24,$E274-$E$49+1)","v":":"},null,{"$f":"+INDEX('2'!R$7:R$24,$E274-$E$49+1)","v":":"},null,{"$f":"+INDEX('2'!T$7:T$24,$E274-$E$49+1)","v":":"},null,{"$f":"+INDEX('2'!V$7:V$24,$E274-$E$49+1)","v":":"},null,null,null,null,null,null,null,{"$f":"+INDEX('2'!AD$7:AD$24,$E274-$E$49+1)","v":":"},null,{"$f":"+INDEX('2'!AF$7:AF$24,$E274-$E$49+1)","v":":"}]
[null,null,null,null,null,null,null,null,"+ P51G_NP.3",{"$f":"+INDEX('3'!J$7:J$24,$E274-$E$49+1)","v":":"},null,null,null,{"$f":"+INDEX('3'!N$7:N$24,$E274-$E$49+1)","v":":"},null,{"$f":"+INDEX('3'!P$7:P$24,$E274-$E$49+1)","v":":"},null,{"$f":"+INDEX('3'!R$7:R$24,$E274-$E$49+1)","v":":"},null,{"$f":"+INDEX('3'!T$7:T$24,$E274-$E$49+1)","v":":"},null,{"$f":"+INDEX('3'!V$7:V$24,$E274-$E$49+1)","v":":"},null,null,null,null,null,null,null,{"$f":"+INDEX('3'!AD$7:AD$24,$E274-$E$49+1)","v":":"},null,{"$f":"+INDEX('3'!AF$7:AF$24,$E274-$E$49+1)","v":":"}]
[null,null,null,null,null,null,"EP transfers to / from Rest of the World",null,"- D3_D7_D92_D99_PAY_RW.6"]
[null,null,null,null,null,null,null,null,"+ D3_D7_D92_D99_REC_RW.6"]
[null,null,null,null,null,null,"TOTAL",null,"=SUM()",{"$f":"+IF(COUNT(J274:J277,J283:J287)=0,\":\",SUM(J274:J277,J283:J285,J287)-SUM(J286))","v":":"},null,null,null,{"$f":"+IF(COUNT(N274:N277,N283:N287)=0,\":\",SUM(N274:N277,N283:N285,N287)-SUM(N286))","v":":"},null,{"$f":"+IF(COUNT(P274:P277,P283:P287)=0,\":\",SUM(P274:P277,P283:P285,P287)-SUM(P286))","v":":"},null,{"$f":"+IF(COUNT(R274:R277,R283:R287)=0,\":\",SUM(R274:R277,R283:R285,R287)-SUM(R286))","v":":"},null,{"$f":"+IF(COUNT(T274:T277,T283:T287)=0,\":\",SUM(T274:T277,T283:T285,T287)-SUM(T286))","v":":"},null,{"$f":"+IF(COUNT(V274:V277,V283:V287)=0,\":\",SUM(V274:V277,V283:V285,V287)-SUM(V286))","v":":"},null,null,null,null,null,null,null,{"$f":"+IF(COUNT(AD274:AD277,AD283:AD287)=0,\":\",SUM(AD274:AD277,AD283:AD285,AD287)-SUM(AD286))","v":":"},null,{"$f":"+IF(COUNT(AF274:AF277,AF283:AF287)=0,\":\",SUM(AF274:AF277,AF283:AF285,AF287)-SUM(AF286))","v":":"}]
[null,null,null,null,2030,null,"Final consumption expenditure",null,"+ P3_EPS.1"]
[null,null,null,null,null,null,null,null,"+ P3_EPS.5"]
[null,null,null,null,null,null,"Intermediate consumption",null,"+ P1_ANC.3",{"$f":"+INDEX('3'!J$133:J$150,$E289-$E$49+1)","v":":"},null,null,null,{"$f":"+INDEX('3'!N$133:N$150,$E289-$E$49+1)","v":":"},null,{"$f":"+INDEX('3'!P$133:P$150,$E289-$E$49+1)","v":":"},null,{"$f":"+INDEX('3'!R$133:R$150,$E289-$E$49+1)","v":":"},null,{"$f":"+INDEX('3'!T$133:T$150,$E289-$E$49+1)","v":":"},null,{"$f":"+INDEX('3'!V$133:V$150,$E289-$E$49+1)","v":":"},null,null,null,null,null,null,null,{"$f":"+INDEX('3'!AD$133:AD$150,$E289-$E$49+1)","v":":"},null,{"$f":"+INDEX('3'!AF$133:AF$150,$E289-$E$49+1)","v":":"}]
[null,null,null,null,null,null,null,null,"+ P2",{"$f":"+IF(COUNT(J293:J297)=0,\":\",SUM(J293:J295)-SUM(J296:J297))","v":":"},null,null,null,{"$f":"+IF(COUNT(N293:N297)=0,\":\",SUM(N293:N295)-SUM(N296:N297))","v":":"},null,{"$f":"+IF(COUNT(P293:P297)=0,\":\",SUM(P293:P295)-SUM(P296:P297))","v":":"},null,{"$f":"+IF(COUNT(R293:R297)=0,\":\",SUM(R293:R295)-SUM(R296:R297))","v":":"},null,{"$f":"+IF(COUNT(T293:T297)=0,\":\",SUM(T293:T295)-SUM(T296:T297))","v":":"},null,{"$f":"+IF(COUNT(V293:V297)=0,\":\",SUM(V293:V295)-SUM(V296:V297))","v":":"},null,null,null,null,null,null,null,{"$f":"+IF(COUNT(AD293:AD297)=0,\":\",SUM(AD293:AD295)-SUM(AD296:AD297))","v":":"},null,{"$f":"+IF(COUNT(AF293:AF297)=0,\":\",SUM(AF293:AF295)-SUM(AF296:AF297))","v":":"}]
[null,null,null,null,null,null,null,null,"+ P2_EPS_EXT.1"]
[null,null,null,null,null,null,null,null,"+ P2_EPS_EXT.2",{"$f":"+INDEX('2'!J$259:J$276,$E289-$E$49+1)","v":":"},null,null,null,{"$f":"+INDEX('2'!N$259:N$276,$E289-$E$49+1)","v":":"},null,{"$f":"+INDEX('2'!P$259:P$276,$E289-$E$49+1)","v":":"},null,{"$f":"+INDEX('2'!R$259:R$276,$E289-$E$49+1)","v":":"},null,{"$f":"+INDEX('2'!T$259:T$276,$E289-$E$49+1)","v":":"},null,{"$f":"+INDEX('2'!V$259:V$276,$E289-$E$49+1)","v":":"},null,null,null,null,null,null,null,{"$f":"+INDEX('2'!AD$259:AD$276,$E289-$E$49+1)","v":":"},null,{"$f":"+INDEX('2'!AF$259:AF$276,$E289-$E$49+1)","v":":"}]
[null,null,null,null,null,null,null,null,"+ P2_EPS_EXT.3",{"$f":"+INDEX('3'!J$223:J$240,$E289-$E$49+1)","v":":"},null,null,null,{"$f":"+INDEX('3'!N$223:N$240,$E289-$E$49+1)","v":":"},null,{"$f":"+INDEX('3'!P$223:P$240,$E289-$E$49+1)","v":":"},null,{"$f":"+INDEX('3'!R$223:R$240,$E289-$E$49+1)","v":":"},null,{"$f":"+INDEX('3'!T$223:T$240,$E289-$E$49+1)","v":":"},null,{"$f":"+INDEX('3'!V$223:V$240,$E289-$E$49+1)","v":":"},null,null,null,null,null,null,null,{"$f":"+INDEX('3'!AD$223:AD$240,$E289-$E$49+1)","v":":"},null,{"$f":"+INDEX('3'!AF$223:AF$240,$E289-$E$49+1)","v":":"}]
[null,null,null,null,null,null,null,null,"- P2_EPS.1"]
[null,null,null,null,null,null,null,null,"- P2_EPS.2",{"$f":"+INDEX('2'!J$43:J$60,$E289-$E$49+1)","v":":"},null,null,null,{"$f":"+INDEX('2'!N$43:N$60,$E289-$E$49+1)","v":":"},null,{"$f":"+INDEX('2'!P$43:P$60,$E289-$E$49+1)","v":":"},null,{"$f":"+INDEX('2'!R$43:R$60,$E289-$E$49+1)","v":":"},null,{"$f":"+INDEX('2'!T$43:T$60,$E289-$E$49+1)","v":":"},null,{"$f":"+INDEX('2'!V$43:V$60,$E289-$E$49+1)","v":":"},null,null,null,null,null,null,null,{"$f":"+INDEX('2'!AD$43:AD$60,$E289-$E$49+1)","v":":"},null,{"$f":"+INDEX('2'!AF$43:AF$60,$E289-$E$49+1)","v":":"}]
[null,null,null,null,null,null,"Gross fixed capital formation and acquisition less disposals of non-financial, non-produced assets ",null,"+ P51G_NP.1"]
[null,null,null,null,null,null,null,null,"+ P51G_NP.2",{"$f":"+INDEX('2'!J$7:J$24,$E289-$E$49+1)","v":":"},null,null,null,{"$f":"+INDEX('2'!N$7:N$24,$E289-$E$49+1)","v":":"},null,{"$f":"+INDEX('2'!P$7:P$24,$E289-$E$49+1)","v":":"},null,{"$f":"+INDEX('2'!R$7:R$24,$E289-$E$49+1)","v":":"},null,{"$f":"+INDEX('2'!T$7:T$24,$E289-$E$49+1)","v":":"},null,{"$f":"+INDEX('2'!V$7:V$24,$E289-$E$49+1)","v":":"},null,null,null,null,null,null,null,{"$f":"+INDEX('2'!AD$7:AD$24,$E289-$E$49+1)","v":":"},null,{"$f":"+INDEX('2'!AF$7:AF$24,$E289-$E$49+1)","v":":"}]
[null,null,null,null,null,null,null,null,"+ P51G_NP.3",{"$f":"+INDEX('3'!J$7:J$24,$E289-$E$49+1)","v":":"},null,null,null,{"$f":"+INDEX('3'!N$7:N$24,$E289-$E$49+1)","v":":"},null,{"$f":"+INDEX('3'!P$7:P$24,$E289-$E$49+1)","v":":"},null,{"$f":"+INDEX('3'!R$7:R$24,$E289-$E$49+1)","v":":"},null,{"$f":"+INDEX('3'!T$7:T$24,$E289-$E$49+1)","v":":"},null,{"$f":"+INDEX('3'!V$7:V$24,$E289-$E$49+1)","v":":"},null,null,null,null,null,null,null,{"$f":"+INDEX('3'!AD$7:AD$24,$E289-$E$49+1)","v":":"},null,{"$f":"+INDEX('3'!AF$7:AF$24,$E289-$E$49+1)","v":":"}]
[null,null,null,null,null,null,"EP transfers to / from Rest of the World",null,"- D3_D7_D92_D99_PAY_RW.6"]
[null,null,null,null,null,null,null,null,"+ D3_D7_D92_D99_REC_RW.6"]
[null,null,null,null,null,null,"TOTAL",null,"=SUM()",{"$f":"+IF(COUNT(J289:J292,J298:J302)=0,\":\",SUM(J289:J292,J298:J300,J302)-SUM(J301))","v":":"},null,null,null,{"$f":"+IF(COUNT(N289:N292,N298:N302)=0,\":\",SUM(N289:N292,N298:N300,N302)-SUM(N301))","v":":"},null,{"$f":"+IF(COUNT(P289:P292,P298:P302)=0,\":\",SUM(P289:P292,P298:P300,P302)-SUM(P301))","v":":"},null,{"$f":"+IF(COUNT(R289:R292,R298:R302)=0,\":\",SUM(R289:R292,R298:R300,R302)-SUM(R301))","v":":"},null,{"$f":"+IF(COUNT(T289:T292,T298:T302)=0,\":\",SUM(T289:T292,T298:T300,T302)-SUM(T301))","v":":"},null,{"$f":"+IF(COUNT(V289:V292,V298:V302)=0,\":\",SUM(V289:V292,V298:V300,V302)-SUM(V301))","v":":"},null,null,null,null,null,null,null,{"$f":"+IF(COUNT(AD289:AD292,AD298:AD302)=0,\":\",SUM(AD289:AD292,AD298:AD300,AD302)-SUM(AD301))","v":":"},null,{"$f":"+IF(COUNT(AF289:AF292,AF298:AF302)=0,\":\",SUM(AF289:AF292,AF298:AF300,AF302)-SUM(AF301))","v":":"}]
[null,null,null,null,2031,null,"Final consumption expenditure",null,"+ P3_EPS.1"]
[null,null,null,null,null,null,null,null,"+ P3_EPS.5"]
[null,null,null,null,null,null,"Intermediate consumption",null,"+ P1_ANC.3",{"$f":"+INDEX('3'!J$133:J$150,$E304-$E$49+1)","v":":"},null,null,null,{"$f":"+INDEX('3'!N$133:N$150,$E304-$E$49+1)","v":":"},null,{"$f":"+INDEX('3'!P$133:P$150,$E304-$E$49+1)","v":":"},null,{"$f":"+INDEX('3'!R$133:R$150,$E304-$E$49+1)","v":":"},null,{"$f":"+INDEX('3'!T$133:T$150,$E304-$E$49+1)","v":":"},null,{"$f":"+INDEX('3'!V$133:V$150,$E304-$E$49+1)","v":":"},null,null,null,null,null,null,null,{"$f":"+INDEX('3'!AD$133:AD$150,$E304-$E$49+1)","v":":"},null,{"$f":"+INDEX('3'!AF$133:AF$150,$E304-$E$49+1)","v":":"}]
[null,null,null,null,null,null,null,null,"+ P2",{"$f":"+IF(COUNT(J308:J312)=0,\":\",SUM(J308:J310)-SUM(J311:J312))","v":":"},null,null,null,{"$f":"+IF(COUNT(N308:N312)=0,\":\",SUM(N308:N310)-SUM(N311:N312))","v":":"},null,{"$f":"+IF(COUNT(P308:P312)=0,\":\",SUM(P308:P310)-SUM(P311:P312))","v":":"},null,{"$f":"+IF(COUNT(R308:R312)=0,\":\",SUM(R308:R310)-SUM(R311:R312))","v":":"},null,{"$f":"+IF(COUNT(T308:T312)=0,\":\",SUM(T308:T310)-SUM(T311:T312))","v":":"},null,{"$f":"+IF(COUNT(V308:V312)=0,\":\",SUM(V308:V310)-SUM(V311:V312))","v":":"},null,null,null,null,null,null,null,{"$f":"+IF(COUNT(AD308:AD312)=0,\":\",SUM(AD308:AD310)-SUM(AD311:AD312))","v":":"},null,{"$f":"+IF(COUNT(AF308:AF312)=0,\":\",SUM(AF308:AF310)-SUM(AF311:AF312))","v":":"}]
[null,null,null,null,null,null,null,null,"+ P2_EPS_EXT.1"]
[null,null,null,null,null,null,null,null,"+ P2_EPS_EXT.2",{"$f":"+INDEX('2'!J$259:J$276,$E304-$E$49+1)","v":":"},null,null,null,{"$f":"+INDEX('2'!N$259:N$276,$E304-$E$49+1)","v":":"},null,{"$f":"+INDEX('2'!P$259:P$276,$E304-$E$49+1)","v":":"},null,{"$f":"+INDEX('2'!R$259:R$276,$E304-$E$49+1)","v":":"},null,{"$f":"+INDEX('2'!T$259:T$276,$E304-$E$49+1)","v":":"},null,{"$f":"+INDEX('2'!V$259:V$276,$E304-$E$49+1)","v":":"},null,null,null,null,null,null,null,{"$f":"+INDEX('2'!AD$259:AD$276,$E304-$E$49+1)","v":":"},null,{"$f":"+INDEX('2'!AF$259:AF$276,$E304-$E$49+1)","v":":"}]
[null,null,null,null,null,null,null,null,"+ P2_EPS_EXT.3",{"$f":"+INDEX('3'!J$223:J$240,$E304-$E$49+1)","v":":"},null,null,null,{"$f":"+INDEX('3'!N$223:N$240,$E304-$E$49+1)","v":":"},null,{"$f":"+INDEX('3'!P$223:P$240,$E304-$E$49+1)","v":":"},null,{"$f":"+INDEX('3'!R$223:R$240,$E304-$E$49+1)","v":":"},null,{"$f":"+INDEX('3'!T$223:T$240,$E304-$E$49+1)","v":":"},null,{"$f":"+INDEX('3'!V$223:V$240,$E304-$E$49+1)","v":":"},null,null,null,null,null,null,null,{"$f":"+INDEX('3'!AD$223:AD$240,$E304-$E$49+1)","v":":"},null,{"$f":"+INDEX('3'!AF$223:AF$240,$E304-$E$49+1)","v":":"}]
[null,null,null,null,null,null,null,null,"- P2_EPS.1"]
[null,null,null,null,null,null,null,null,"- P2_EPS.2",{"$f":"+INDEX('2'!J$43:J$60,$E304-$E$49+1)","v":":"},null,null,null,{"$f":"+INDEX('2'!N$43:N$60,$E304-$E$49+1)","v":":"},null,{"$f":"+INDEX('2'!P$43:P$60,$E304-$E$49+1)","v":":"},null,{"$f":"+INDEX('2'!R$43:R$60,$E304-$E$49+1)","v":":"},null,{"$f":"+INDEX('2'!T$43:T$60,$E304-$E$49+1)","v":":"},null,{"$f":"+INDEX('2'!V$43:V$60,$E304-$E$49+1)","v":":"},null,null,null,null,null,null,null,{"$f":"+INDEX('2'!AD$43:AD$60,$E304-$E$49+1)","v":":"},null,{"$f":"+INDEX('2'!AF$43:AF$60,$E304-$E$49+1)","v":":"}]
[null,null,null,null,null,null,"Gross fixed capital formation and acquisition less disposals of non-financial, non-produced assets ",null,"+ P51G_NP.1"]
[null,null,null,null,null,null,null,null,"+ P51G_NP.2",{"$f":"+INDEX('2'!J$7:J$24,$E304-$E$49+1)","v":":"},null,null,null,{"$f":"+INDEX('2'!N$7:N$24,$E304-$E$49+1)","v":":"},null,{"$f":"+INDEX('2'!P$7:P$24,$E304-$E$49+1)","v":":"},null,{"$f":"+INDEX('2'!R$7:R$24,$E304-$E$49+1)","v":":"},null,{"$f":"+INDEX('2'!T$7:T$24,$E304-$E$49+1)","v":":"},null,{"$f":"+INDEX('2'!V$7:V$24,$E304-$E$49+1)","v":":"},null,null,null,null,null,null,null,{"$f":"+INDEX('2'!AD$7:AD$24,$E304-$E$49+1)","v":":"},null,{"$f":"+INDEX('2'!AF$7:AF$24,$E304-$E$49+1)","v":":"}]
[null,null,null,null,null,null,null,null,"+ P51G_NP.3",{"$f":"+INDEX('3'!J$7:J$24,$E304-$E$49+1)","v":":"},null,null,null,{"$f":"+INDEX('3'!N$7:N$24,$E304-$E$49+1)","v":":"},null,{"$f":"+INDEX('3'!P$7:P$24,$E304-$E$49+1)","v":":"},null,{"$f":"+INDEX('3'!R$7:R$24,$E304-$E$49+1)","v":":"},null,{"$f":"+INDEX('3'!T$7:T$24,$E304-$E$49+1)","v":":"},null,{"$f":"+INDEX('3'!V$7:V$24,$E304-$E$49+1)","v":":"},null,null,null,null,null,null,null,{"$f":"+INDEX('3'!AD$7:AD$24,$E304-$E$49+1)","v":":"},null,{"$f":"+INDEX('3'!AF$7:AF$24,$E304-$E$49+1)","v":":"}]
[null,null,null,null,null,null,"EP transfers to / from Rest of the World",null,"- D3_D7_D92_D99_PAY_RW.6"]
[null,null,null,null,null,null,null,null,"+ D3_D7_D92_D99_REC_RW.6"]
[null,null,null,null,null,null,"TOTAL",null,"=SUM()",{"$f":"+IF(COUNT(J304:J307,J313:J317)=0,\":\",SUM(J304:J307,J313:J315,J317)-SUM(J316))","v":":"},null,null,null,{"$f":"+IF(COUNT(N304:N307,N313:N317)=0,\":\",SUM(N304:N307,N313:N315,N317)-SUM(N316))","v":":"},null,{"$f":"+IF(COUNT(P304:P307,P313:P317)=0,\":\",SUM(P304:P307,P313:P315,P317)-SUM(P316))","v":":"},null,{"$f":"+IF(COUNT(R304:R307,R313:R317)=0,\":\",SUM(R304:R307,R313:R315,R317)-SUM(R316))","v":":"},null,{"$f":"+IF(COUNT(T304:T307,T313:T317)=0,\":\",SUM(T304:T307,T313:T315,T317)-SUM(T316))","v":":"},null,{"$f":"+IF(COUNT(V304:V307,V313:V317)=0,\":\",SUM(V304:V307,V313:V315,V317)-SUM(V316))","v":":"},null,null,null,null,null,null,null,{"$f":"+IF(COUNT(AD304:AD307,AD313:AD317)=0,\":\",SUM(AD304:AD307,AD313:AD315,AD317)-SUM(AD316))","v":":"},null,{"$f":"+IF(COUNT(AF304:AF307,AF313:AF317)=0,\":\",SUM(AF304:AF307,AF313:AF315,AF317)-SUM(AF316))","v":":"}]

{"sheet":"7_Add_HH","index":43,"n_rows":318,"n_cols":58,"rows_kept":318,"cut":false,"hidden":false,"merged":[[312,6,314,7],[315,6,316,7],[297,6,299,7],[300,6,301,7],[303,4,303,5],[303,6,304,7],[304,4,304,5],[305,6,310,7],[282,6,284,7],[285,6,286,7],[288,4,288,5],[288,6,289,7],[289,4,289,5],[290,6,295,7],[267,6,269,7],[270,6,271,7],[273,4,273,5],[273,6,274,7],[274,4,274,5],[275,6,280,7],[252,6,254,7],[255,6,256,7],[258,4,258,5],[258,6,259,7],[259,4,259,5],[260,6,265,7],[237,6,239,7],[240,6,241,7],[243,4,243,5],[243,6,244,7],[244,4,244,5],[245,6,250,7],[222,6,224,7],[225,6,226,7],[228,4,228,5],[228,6,229,7],[229,4,229,5],[230,6,235,7],[207,6,209,7],[210,6,211,7],[213,4,213,5],[213,6,214,7],[214,4,214,5],[215,6,220,7],[192,6,194,7],[195,6,196,7],[198,4,198,5],[198,6,199,7],[199,4,199,5],[200,6,205,7],[177,6,179,7],[180,6,181,7],[183,4,183,5],[183,6,184,7],[184,4,184,5],[185,6,190,7],[162,6,164,7],[165,6,166,7],[168,4,168,5],[168,6,169,7],[169,4,169,5],[170,6,175,7],[147,6,149,7],[150,6,151,7],[153,4,153,5],[153,6,154,7],[154,4,154,5],[155,6,160,7],[132,6,134,7],[135,6,136,7],[138,4,138,5],[138,6,139,7],[139,4,139,5],[140,6,145,7],[117,6,119,7],[120,6,121,7],[123,4,123,5],[123,6,124,7],[124,4,124,5],[125,6,130,7],[102,6,104,7],[105,6,106,7],[108,4,108,5],[108,6,109,7],[109,4,109,5],[110,6,115,7],[87,6,89,7],[90,6,91,7],[93,4,93,5],[93,6,94,7],[94,4,94,5],[95,6,100,7],[72,6,74,7],[75,6,76,7],[78,4,78,5],[78,6,79,7],[79,4,79,5],[80,6,85,7],[57,6,59,7],[60,6,61,7],[63,4,63,5],[63,6,64,7],[64,4,64,5],[65,6,70,7],[46,31,47,32],[47,4,47,8],[48,4,48,5],[48,6,49,7],[49,4,49,5],[50,6,55,7],[46,19,47,20],[46,21,47,22],[46,23,47,24],[46,25,47,26],[46,27,47,28],[46,29,47,30],[27,4,27,7],[46,4,46,8],[46,9,47,10],[46,12,47,12],[46,13,47,14],[46,15,47,16],[46,17,47,18],[25,17,26,18],[25,19,26,20],[8,4,8,7],[24,4,24,7],[25,9,26,10],[25,11,26,12],[25,13,26,14],[25,15,26,16],[3,29,4,30],[3,31,4,32],[4,4,4,7],[6,4,6,7],[7,4,7,7],[3,17,4,18],[3,19,4,20],[3,21,4,22],[3,23,4,24],[3,25,4,26],[3,27,4,28],[25,29,26,30],[25,31,26,32],[26,4,26,7],[25,21,26,22],[25,23,26,24],[25,25,26,26],[25,27,26,28],[2,47,2,54],[3,47,3,54],[0,4,0,8],[0,9,0,32],[1,4,1,8],[1,9,1,32],[3,7,3,8],[3,9,4,10],[3,11,4,12],[3,13,4,14],[3,15,4,16]]}
[null,null,null,null,{"$f":"Cover!B21","v":"QUESTIONNAIRE ON ENVIRONMENTAL PROTECTION EXPENDITURE ACCOUNTS"},null,null,null,null,"Table 7.4. Total economy by CEPA"]
[null,null,null,null,{"$f":"E1","v":"QUESTIONNAIRE ON ENVIRONMENTAL PROTECTION EXPENDITURE ACCOUNTS"},null,null,null,null,"Table 7_Add_HH - NEEP by CEPA - Households"]
[null,null,null,null,null,null,null,null,null,null,null,null,null,null,null,null,null,null,null,null,null,null,null,null,null,null,null,null,null,null,null," ",null,null,null,null,null,null,null,null,null,null,null,null,null,null,null,"\nCONTROL TABLES"]
[null,null,null,null,"Country/Unit",{"$f":"IFERROR(Cover!C16,\"\")","v":""},{"$f":"\"\"&Cover!B16","v":""},{"$f":"Cover!B17","v":"Million units of national currency"},null,"CEPA 1",null,"of which CEPA 1.1.2 and 1.2.2 Climate change",null,"CEPA2",null,"CEPA 3",null,"CEPA 4",null,"CEPA 5",null,"CEPA 6",null,"CEPA 7",null,"CEPA 8",null,"CEPA 9",null,"CEPA 7+8+9",null,"TOTAL",null,null,null,null,null,null,null,null,null,null,null,null,null,null,null,"Comparison with data automatically calculated"]
[null,null,null,null,null,null,null,null,"Year",null,null,null,null,null,null,null,null,null,null,null,null,null,null,null,null,null,null,null,null,null,null,null,null,null,null,null,null,null,null,null,null,null,null,null,null,null,null,"CEPA 1","CEPA 2","CEPA 3","CEPA 4","CEPA 5","CEPA 6","CEPA 7+8+9","Total",null,"Comparison Threshold"]
[null,null,null,null,null,null,null,null,null,"CEPA1",null,"CEPA112_122","CEPA112_122","CEPA2",null,"CEPA3",null,"CEPA4",null,"CEPA5",null,"CEPA6",null,"CEPA7",null,"CEPA8",null,"CEPA9",null,"CEPA7-9",null,"TOT_CEPA",null,null,null,null,null,null,null,null,null,null,null,null,null,null,null,"S1","S2","S3","S4","S5","S6","S7","S8"]
["S14","TOTAL","EPS_NEEP",null,"National expenditure on environmental protection",null,null,null,2014,":",null,"-",null,":",null,":",null,":",null,":",null,":",null,"-",null,"-",null,"-",null,":",null,{"$f":"IF(COUNT(J7,N7,P7,R7,T7,V7,AD7)=7,SUM(J7,N7,P7,R7,T7,V7,AD7),\":\")","v":":"},null,null,null,null,null,null,null,null,null,null,null,null,null,null,2014,{"$f":"IF($J28=\":\",IF($J7=\":\",\"\",$BF$10),IF($J7=\":\",$BF$11,IF($J28=0,1,ABS($J7-$J28)/ABS($J28))))","v":""},{"$f":"IF($J28=\":\",IF($J7=\":\",\"\",$BF$10),IF($J7=\":\",$BF$11,IF($J28=0,1,ABS($J7-$J28)/ABS($J28))))","v":""},"","","","","","",null,0.1]
["S14","TOTAL","EPS_NEEP",null,"   Please complete the cells with national estimates or confirm the calculation below",null,null,null,2015,":",null,"-",null,":",null,":",null,":",null,":",null,":",null,"-",null,"-",null,"-",null,":",null,{"$f":"IF(COUNT(J8,N8,P8,R8,T8,V8,AD8)=7,SUM(J8,N8,P8,R8,T8,V8,AD8),\":\")","v":":"},null,null,null,null,null,null,null,null,null,null,null,null,null,null,2015,{"$f":"IF($J29=\":\",IF($J8=\":\",\"\",$BF$10),IF($J8=\":\",$BF$11,IF($J29=0,1,ABS($J8-$J29)/ABS($J29))))","v":""},"","","","","","",""]
["S14","TOTAL","EPS_NEEP",null,"   by copying VALUES of calculated data to these cells",null,null,null,2016,":",null,"-",null,":",null,":",null,":",null,":",null,":",null,"-",null,"-",null,"-",null,":",null,{"$f":"IF(COUNT(J9,N9,P9,R9,T9,V9,AD9)=7,SUM(J9,N9,P9,R9,T9,V9,AD9),\":\")","v":":"},null,null,null,null,null,null,null,null,null,null,null,null,null,null,2016,{"$f":"IF($J30=\":\",IF($J9=\":\",\"\",$BF$10),IF($J9=\":\",$BF$11,IF($J30=0,1,ABS($J9-$J30)/ABS($J30))))","v":""},"","","","","","",""]
["S14","TOTAL","EPS_NEEP",null,null,null,null,null,2017,":",null,"-",null,":",null,":",null,":",null,":",null,":",null,"-",null,"-",null,"-",null,":",null,":",null,null,null,null,null,null,null,null,null,null,null,null,null,null,2017,"","","","","","","","",null,null,"No Calculation"]
["S14","TOTAL","EPS_NEEP",null,null,null,null,null,2018,":",null,"-",null,":",null,":",null,":",null,":",null,":",null,"-",null,"-",null,"-",null,":",null,":",null,null,null,null,null,null,null,null,null,null,null,null,null,null,2018,"","","","","","","","",null,null,"No Data"]
["S14","TOTAL","EPS_NEEP",null,null,null,null,null,2019,":",null,"-",null,":",null,":",null,":",null,":",null,":",null,"-",null,"-",null,"-",null,":",null,":",null,null,null,null,null,null,null,null,null,null,null,null,null,null,2019,"","","","","","","",""]
["S14","TOTAL","EPS_NEEP",null,null,null,null,null,2020,":",null,"-",null,":",null,":",null,":",null,":",null,":",null,"-",null,"-",null,"-",null,":",null,":",null,null,null,null,null,null,null,null,null,null,null,null,null,null,2020,"","","","","","","",""]
["S14","TOTAL","EPS_NEEP",null,null,null,null,null,2021,":",null,"-",null,":",null,":",null,":",null,":",null,":",null,"-",null,"-",null,"-",null,":",null,":",null,null,null,null,null,null,null,null,null,null,null,null,null,null,2021,"","","","","","","",""]
["S14","TOTAL","EPS_NEEP",null,null,null,null,null,2022,":",null,"-",null,":",null,":",null,":",null,":",null,":",null,"-",null,"-",null,"-",null,":",null,":",null,null,null,null,null,null,null,null,null,null,null,null,null,null,2022,"","","","","","","",""]
["S14","TOTAL","EPS_NEEP",null,null,null,null,null,2023,":",null,"-",null,":",null,":",null,":",null,":",null,":",null,"-",null,"-",null,"-",null,":",null,":",null,null,null,null,null,null,null,null,null,null,null,null,null,null,2023,"","","","","","","",""]
["S14","TOTAL","EPS_NEEP",null,null,null,null,null,2024,":",null,"-",null,":",null,":",null,":",null,":",null,":",null,"-",null,"-",null,"-",null,":",null,":",null,null,null,null,null,null,null,null,null,null,null,null,null,null,2024,"","","","","","","",""]
["S14","TOTAL","EPS_NEEP",null,null,null,null,null,2025,":",null,"-",null,":",null,":",null,":",null,":",null,":",null,"-",null,"-",null,"-",null,":",null,":",null,null,null,null,null,null,null,null,null,null,null,null,null,null,2025,"","","","","","","",""]
["S14","TOTAL","EPS_NEEP",null,null,null,null,null,2026,":",null,"-",null,":",null,":",null,":",null,":",null,":",null,"-",null,"-",null,"-",null,":",null,":",null,null,null,null,null,null,null,null,null,null,null,null,null,null,2026,"","","","","","","",""]
["S14","TOTAL","EPS_NEEP",null,null,null,null,null,2027,":",null,"-",null,":",null,":",null,":",null,":",null,":",null,"-",null,"-",null,"-",null,":",null,":",null,null,null,null,null,null,null,null,null,null,null,null,null,null,2027,"","","","","","","",""]
["S14","TOTAL","EPS_NEEP",null,null,null,null,null,2028,":",null,"-",null,":",null,":",null,":",null,":",null,":",null,"-",null,"-",null,"-",null,":",null,":",null,null,null,null,null,null,null,null,null,null,null,null,null,null,2028,"","","","","","","",""]
["S14","TOTAL","EPS_NEEP",null,null,null,null,null,2029,":",null,"-",null,":",null,":",null,":",null,":",null,":",null,"-",null,"-",null,"-",null,":",null,":",null,null,null,null,null,null,null,null,null,null,null,null,null,null,2029,"","","","","","","",""]
["S14","TOTAL","EPS_NEEP",null,null,null,null,null,2030,":",null,"-",null,":",null,":",null,":",null,":",null,":",null,"-",null,"-",null,"-",null,":",null,":",null,null,null,null,null,null,null,null,null,null,null,null,null,null,2030,"","","","","","","",""]
["S14","TOTAL","EPS_NEEP",null,null,null,null,null,2031,":",null,"-",null,":",null,":",null,":",null,":",null,":",null,"-",null,"-",null,"-",null,":",null,":",null,null,null,null,null,null,null,null,null,null,null,null,null,null,2031,{"$f":"IF($J45=\":\",IF($J24=\":\",\"\",$BF$10),IF($J24=\":\",$BF$11,IF($J45=0,1,ABS($J24-$J45)/ABS($J45))))","v":""},"","","","","","",""]
[null,null,null,null,"National expenditure on environmental protection – Summary"]
[null,null,null,null,null,null,null,{"$f":"'1'!H4","v":"Million units of national currency"},null,{"$f":"J4","v":"CEPA 1"},null,"of which CEPA 1.1.2 and 1.2.2 Climate change",null,{"$f":"N4","v":"CEPA2"},null,{"$f":"P4","v":"CEPA 3"},null,{"$f":"R4","v":"CEPA 4"},null,{"$f":"T4","v":"CEPA 5"},null,{"$f":"V4","v":"CEPA 6"},null,"CEPA 7",null,"CEPA 8",null,"CEPA 9",null,{"$f":"AD4","v":"CEPA 7+8+9"},null,"TOTAL"]
[null,null,null,null,null,null,null,null,"Year"]
[null,null,null,null,"Figures calculated from information available in the questionnaire",null,null,null,2014,{"$f":"OFFSET(J$63,($I28-$I$28)*COUNTA($I$49:$I$63),0)","v":":"},null,"-",null,{"$f":"OFFSET(N$63,($I28-$I$28)*COUNTA($I$49:$I$63),0)","v":":"},null,{"$f":"OFFSET(P$63,($I28-$I$28)*COUNTA($I$49:$I$63),0)","v":":"},null,{"$f":"OFFSET(R$63,($I28-$I$28)*COUNTA($I$49:$I$63),0)","v":":"},null,{"$f":"OFFSET(T$63,($I28-$I$28)*COUNTA($I$49:$I$63),0)","v":":"},null,{"$f":"OFFSET(V$63,($I28-$I$28)*COUNTA($I$49:$I$63),0)","v":":"},null,"-",null,"-",null,"-",null,{"$f":"OFFSET(AD$63,($I28-$I$28)*COUNTA($I$49:$I$63),0)","v":":"},null,{"$f":"IF(COUNT(J28,N28,P28,R28,T28,V28,AD28)=7,SUM(J28,N28,P28,R28,T28,V28,AD28),\":\")","v":":"}]
[null,null,null,null,null,null,null,null,2015,{"$f":"OFFSET(J$63,($I29-$I$28)*COUNTA($I$49:$I$63),0)","v":":"},null,"-",null,{"$f":"OFFSET(N$63,($I29-$I$28)*COUNTA($I$49:$I$63),0)","v":":"},null,{"$f":"OFFSET(P$63,($I29-$I$28)*COUNTA($I$49:$I$63),0)","v":":"},null,{"$f":"OFFSET(R$63,($I29-$I$28)*COUNTA($I$49:$I$63),0)","v":":"},null,{"$f":"OFFSET(T$63,($I29-$I$28)*COUNTA($I$49:$I$63),0)","v":":"},null,{"$f":"OFFSET(V$63,($I29-$I$28)*COUNTA($I$49:$I$63),0)","v":":"},null,"-",null,"-",null,"-",null,{"$f":"OFFSET(AD$63,($I29-$I$28)*COUNTA($I$49:$I$63),0)","v":":"},null,{"$f":"IF(COUNT(J29,N29,P29,R29,T29,V29,AD29)=7,SUM(J29,N29,P29,R29,T29,V29,AD29),\":\")","v":":"}]
[null,null,null,null,null,null,null,null,2016,":",null,"-",null,":",null,":",null,":",null,":",null,":",null,"-",null,"-",null,"-",null,":",null,":"]
[null,null,null,null,null,null,null,null,2017,":",null,"-",null,":",null,":",null,":",null,":",null,":",null,"-",null,"-",null,"-",null,":",null,":"]
[null,null,null,null,null,null,null,null,2018,":",null,"-",null,":",null,":",null,":",null,":",null,":",null,"-",null,"-",null,"-",null,":",null,":"]
[null,null,null,null,null,null,null,null,2019,":",null,"-",null,":",null,":",null,":",null,":",null,":",null,"-",null,"-",null,"-",null,":",null,":"]
[null,null,null,null,null,null,null,null,2020,":",null,"-",null,":",null,":",null,":",null,":",null,":",null,"-",null,"-",null,"-",null,":",null,":"]
[null,null,null,null,null,null,null,null,2021,":",null,"-",null,":",null,":",null,":",null,":",null,":",null,"-",null,"-",null,"-",null,":",null,":"]
[null,null,null,null,null,null,null,null,2022,":",null,"-",null,":",null,":",null,":",null,":",null,":",null,"-",null,"-",null,"-",null,":",null,":"]
[null,null,null,null,null,null,null,null,2023,":",null,"-",null,":",null,":",null,":",null,":",null,":",null,"-",null,"-",null,"-",null,":",null,":"]
[null,null,null,null,null,null,null,null,2024,":",null,"-",null,":",null,":",null,":",null,":",null,":",null,"-",null,"-",null,"-",null,":",null,":"]
[null,null,null,null,null,null,null,null,2025,":",null,"-",null,":",null,":",null,":",null,":",null,":",null,"-",null,"-",null,"-",null,":",null,":"]
[null,null,null,null,null,null,null,null,2026,":",null,"-",null,":",null,":",null,":",null,":",null,":",null,"-",null,"-",null,"-",null,":",null,":"]
[null,null,null,null,null,null,null,null,2027,":",null,"-",null,":",null,":",null,":",null,":",null,":",null,"-",null,"-",null,"-",null,":",null,":"]
[null,null,null,null,null,null,null,null,2028,":",null,"-",null,":",null,":",null,":",null,":",null,":",null,"-",null,"-",null,"-",null,":",null,":"]
[null,null,null,null,null,null,null,null,2029,":",null,"-",null,":",null,":",null,":",null,":",null,":",null,"-",null,"-",null,"-",null,":",null,":",null,null,null,null,null,null,null,null,null,null,null,null,null,null,null,null,null,null,null,null,null,null,{"$f":"IF(#REF!=\":\",IF(AF43=\":\",\"\",$BF$29),IF(AF43=\":\",$BF$28,IF(#REF!=0,1,ABS(AF43-#REF!)/ABS(#REF!))))","v":{"$error":"#REF!"}}]
[null,null,null,null,null,null,null,null,2030,":",null,"-",null,":",null,":",null,":",null,":",null,":",null,"-",null,"-",null,"-",null,":",null,":",null,null,null,null,null,null,null,null,null,null,null,null,null,null,null,null,null,null,null,null,null,null,{"$f":"IF(#REF!=\":\",IF(AF44=\":\",\"\",$BF$29),IF(AF44=\":\",$BF$28,IF(#REF!=0,1,ABS(AF44-#REF!)/ABS(#REF!))))","v":{"$error":"#REF!"}}]
[null,null,null,null,null,null,null,null,2031,":",null,"-",null,":",null,":",null,":",null,":",null,":",null,"-",null,"-",null,"-",null,":",null,":",null,null,null,null,null,null,null,null,null,null,null,null,null,null,null,null,null,null,null,null,null,null,{"$f":"IF(#REF!=\":\",IF(AF45=\":\",\"\",$BF$29),IF(AF45=\":\",$BF$28,IF(#REF!=0,1,ABS(AF45-#REF!)/ABS(#REF!))))","v":{"$error":"#REF!"}}]
[]
[null,null,null,null,"Components of national expenditure on environmental protection by CEPA",null,null,null,null,{"$f":"J26","v":"CEPA 1"},null,null,"of which CEPA 1.1.2 and 1.2.2 Climate change",{"$f":"N26","v":"CEPA2"},null,{"$f":"P26","v":"CEPA 3"},null,{"$f":"R26","v":"CEPA 4"},null,{"$f":"T26","v":"CEPA 5"},null,{"$f":"V26","v":"CEPA 6"},null,"CEPA 7",null,"CEPA 8",null,"CEPA 9",null,{"$f":"AD26","v":"CEPA 7+8+9"},null,"TOTAL"]
[null,null,null,null,"Figures calculated from information available in the questionnaire"]
[null,null,null,null,2014,null,"Final consumption expenditure",null,"+ P3_EPS.1"]
[null,null,null,null,2014,null,null,null,"+ P3_EPS.5",{"$f":"+INDEX('5'!J$7:J$24,$E49-$E$49+1)","v":":"},null,null,null,{"$f":"+INDEX('5'!N$7:N$24,$E49-$E$49+1)","v":":"},null,{"$f":"+INDEX('5'!P$7:P$24,$E49-$E$49+1)","v":":"},null,{"$f":"+INDEX('5'!R$7:R$24,$E49-$E$49+1)","v":":"},null,{"$f":"+INDEX('5'!T$7:T$24,$E49-$E$49+1)","v":":"},null,{"$f":"+INDEX('5'!V$7:V$24,$E49-$E$49+1)","v":":"},null,null,null,null,null,null,null,{"$f":"+INDEX('5'!AD$7:AD$24,$E49-$E$49+1)","v":":"},null,{"$f":"+INDEX('5'!AF$7:AF$24,$E49-$E$49+1)","v":":"}]
[null,null,null,null,null,null,"Intermediate consumption",null,"+ P1_ANC.3"]
[null,null,null,null,null,null,null,null,"+ P2"]
[null,null,null,null,null,null,null,null,"+ P2_EPS_EXT.1"]
[null,null,null,null,null,null,null,null,"+ P2_EPS_EXT.2"]
[null,null,null,null,null,null,null,null,"+ P2_EPS_EXT.3"]
[null,null,null,null,null,null,null,null,"- P2_EPS.1"]
[null,null,null,null,null,null,null,null,"- P2_EPS.2"]
[null,null,null,null,null,null,"Gross fixed capital formation and acquisition less disposals of non-financial, non-produced assets ",null,"+ P51G_NP.1"]
[null,null,null,null,null,null,null,null,"+ P51G_NP.2"]
[null,null,null,null,null,null,null,null,"+ P51G_NP.3"]
[null,null,null,null,null,null,"EP transfers to / from Rest of the World",null,"- D3_D7_D92_D99_PAY_RW.6"]
[null,null,null,null,null,null,null,null,"+ D3_D7_D92_D99_REC_RW.6"]
[null,null,null,null,null,null,"TOTAL",null,"=SUM()",{"$f":"+IF(COUNT(J49:J52,J58:J62)=0,\":\",SUM(J49:J52,J58:J60,J62)-SUM(J61))","v":":"},null,null,null,{"$f":"+IF(COUNT(N49:N52,N58:N62)=0,\":\",SUM(N49:N52,N58:N60,N62)-SUM(N61))","v":":"},null,{"$f":"+IF(COUNT(P49:P52,P58:P62)=0,\":\",SUM(P49:P52,P58:P60,P62)-SUM(P61))","v":":"},null,{"$f":"+IF(COUNT(R49:R52,R58:R62)=0,\":\",SUM(R49:R52,R58:R60,R62)-SUM(R61))","v":":"},null,{"$f":"+IF(COUNT(T49:T52,T58:T62)=0,\":\",SUM(T49:T52,T58:T60,T62)-SUM(T61))","v":":"},null,{"$f":"+IF(COUNT(V49:V52,V58:V62)=0,\":\",SUM(V49:V52,V58:V60,V62)-SUM(V61))","v":":"},null,null,null,null,null,null,null,{"$f":"+IF(COUNT(AD49:AD52,AD58:AD62)=0,\":\",SUM(AD49:AD52,AD58:AD60,AD62)-SUM(AD61))","v":":"},null,{"$f":"+IF(COUNT(AF49:AF52,AF58:AF62)=0,\":\",SUM(AF49:AF52,AF58:AF60,AF62)-SUM(AF61))","v":":"}]
[null,null,null,null,2015,null,"Final consumption expenditure",null,"+ P3_EPS.1"]
[null,null,null,null,2015,null,null,null,"+ P3_EPS.5",{"$f":"+INDEX('5'!J$7:J$24,$E64-$E$49+1)","v":":"},null,null,null,{"$f":"+INDEX('5'!N$7:N$24,$E64-$E$49+1)","v":":"},null,{"$f":"+INDEX('5'!P$7:P$24,$E64-$E$49+1)","v":":"},null,{"$f":"+INDEX('5'!R$7:R$24,$E64-$E$49+1)","v":":"},null,{"$f":"+INDEX('5'!T$7:T$24,$E64-$E$49+1)","v":":"},null,{"$f":"+INDEX('5'!V$7:V$24,$E64-$E$49+1)","v":":"},null,null,null,null,null,null,null,{"$f":"+INDEX('5'!AD$7:AD$24,$E64-$E$49+1)","v":":"},null,{"$f":"+INDEX('5'!AF$7:AF$24,$E64-$E$49+1)","v":":"}]
[null,null,null,null,null,null,"Intermediate consumption",null,"+ P1_ANC.3"]
[null,null,null,null,null,null,null,null,"+ P2"]
[null,null,null,null,null,null,null,null,"+ P2_EPS_EXT.1"]
[null,null,null,null,null,null,null,null,"+ P2_EPS_EXT.2"]
[null,null,null,null,null,null,null,null,"+ P2_EPS_EXT.3"]
[null,null,null,null,null,null,null,null,"- P2_EPS.1"]
[null,null,null,null,null,null,null,null,"- P2_EPS.2"]
[null,null,null,null,null,null,"Gross fixed capital formation and acquisition less disposals of non-financial, non-produced assets ",null,"+ P51G_NP.1"]
[null,null,null,null,null,null,null,null,"+ P51G_NP.2"]
[null,null,null,null,null,null,null,null,"+ P51G_NP.3"]
[null,null,null,null,null,null,"EP transfers to / from Rest of the World",null,"- D3_D7_D92_D99_PAY_RW.6"]
[null,null,null,null,null,null,null,null,"+ D3_D7_D92_D99_REC_RW.6"]
[null,null,null,null,null,null,"TOTAL",null,"=SUM()",{"$f":"+IF(COUNT(J64:J67,J73:J77)=0,\":\",SUM(J64:J67,J73:J75,J77)-SUM(J76))","v":":"},null,null,null,{"$f":"+IF(COUNT(N64:N67,N73:N77)=0,\":\",SUM(N64:N67,N73:N75,N77)-SUM(N76))","v":":"},null,{"$f":"+IF(COUNT(P64:P67,P73:P77)=0,\":\",SUM(P64:P67,P73:P75,P77)-SUM(P76))","v":":"},null,{"$f":"+IF(COUNT(R64:R67,R73:R77)=0,\":\",SUM(R64:R67,R73:R75,R77)-SUM(R76))","v":":"},null,{"$f":"+IF(COUNT(T64:T67,T73:T77)=0,\":\",SUM(T64:T67,T73:T75,T77)-SUM(T76))","v":":"},null,{"$f":"+IF(COUNT(V64:V67,V73:V77)=0,\":\",SUM(V64:V67,V73:V75,V77)-SUM(V76))","v":":"},null,null,null,null,null,null,null,{"$f":"+IF(COUNT(AD64:AD67,AD73:AD77)=0,\":\",SUM(AD64:AD67,AD73:AD75,AD77)-SUM(AD76))","v":":"},null,{"$f":"+IF(COUNT(AF64:AF67,AF73:AF77)=0,\":\",SUM(AF64:AF67,AF73:AF75,AF77)-SUM(AF76))","v":":"}]
[null,null,null,null,2016,null,"Final consumption expenditure",null,"+ P3_EPS.1"]
[null,null,null,null,2016,null,null,null,"+ P3_EPS.5",{"$f":"+INDEX('5'!J$7:J$24,$E79-$E$49+1)","v":":"},null,null,null,{"$f":"+INDEX('5'!N$7:N$24,$E79-$E$49+1)","v":":"},null,{"$f":"+INDEX('5'!P$7:P$24,$E79-$E$49+1)","v":":"},null,{"$f":"+INDEX('5'!R$7:R$24,$E79-$E$49+1)","v":":"},null,{"$f":"+INDEX('5'!T$7:T$24,$E79-$E$49+1)","v":":"},null,{"$f":"+INDEX('5'!V$7:V$24,$E79-$E$49+1)","v":":"},null,null,null,null,null,null,null,{"$f":"+INDEX('5'!AD$7:AD$24,$E79-$E$49+1)","v":":"},null,{"$f":"+INDEX('5'!AF$7:AF$24,$E79-$E$49+1)","v":":"}]
[null,null,null,null,null,null,"Intermediate consumption",null,"+ P1_ANC.3"]
[null,null,null,null,null,null,null,null,"+ P2"]
[null,null,null,null,null,null,null,null,"+ P2_EPS_EXT.1"]
[null,null,null,null,null,null,null,null,"+ P2_EPS_EXT.2"]
[null,null,null,null,null,null,null,null,"+ P2_EPS_EXT.3"]
[null,null,null,null,null,null,null,null,"- P2_EPS.1"]
[null,null,null,null,null,null,null,null,"- P2_EPS.2"]
[null,null,null,null,null,null,"Gross fixed capital formation and acquisition less disposals of non-financial, non-produced assets ",null,"+ P51G_NP.1"]
[null,null,null,null,null,null,null,null,"+ P51G_NP.2"]
[null,null,null,null,null,null,null,null,"+ P51G_NP.3"]
[null,null,null,null,null,null,"EP transfers to / from Rest of the World",null,"- D3_D7_D92_D99_PAY_RW.6"]
[null,null,null,null,null,null,null,null,"+ D3_D7_D92_D99_REC_RW.6"]
[null,null,null,null,null,null,"TOTAL",null,"=SUM()",{"$f":"+IF(COUNT(J79:J82,J88:J92)=0,\":\",SUM(J79:J82,J88:J90,J92)-SUM(J91))","v":":"},null,null,null,{"$f":"+IF(COUNT(N79:N82,N88:N92)=0,\":\",SUM(N79:N82,N88:N90,N92)-SUM(N91))","v":":"},null,{"$f":"+IF(COUNT(P79:P82,P88:P92)=0,\":\",SUM(P79:P82,P88:P90,P92)-SUM(P91))","v":":"},null,{"$f":"+IF(COUNT(R79:R82,R88:R92)=0,\":\",SUM(R79:R82,R88:R90,R92)-SUM(R91))","v":":"},null,{"$f":"+IF(COUNT(T79:T82,T88:T92)=0,\":\",SUM(T79:T82,T88:T90,T92)-SUM(T91))","v":":"},null,{"$f":"+IF(COUNT(V79:V82,V88:V92)=0,\":\",SUM(V79:V82,V88:V90,V92)-SUM(V91))","v":":"},null,null,null,null,null,null,null,{"$f":"+IF(COUNT(AD79:AD82,AD88:AD92)=0,\":\",SUM(AD79:AD82,AD88:AD90,AD92)-SUM(AD91))","v":":"},null,{"$f":"+IF(COUNT(AF79:AF82,AF88:AF92)=0,\":\",SUM(AF79:AF82,AF88:AF90,AF92)-SUM(AF91))","v":":"}]
[null,null,null,null,2017,null,"Final consumption expenditure",null,"+ P3_EPS.1"]
[null,null,null,null,2017,null,null,null,"+ P3_EPS.5",{"$f":"+INDEX('5'!J$7:J$24,$E94-$E$49+1)","v":":"},null,null,null,{"$f":"+INDEX('5'!N$7:N$24,$E94-$E$49+1)","v":":"},null,{"$f":"+INDEX('5'!P$7:P$24,$E94-$E$49+1)","v":":"},null,{"$f":"+INDEX('5'!R$7:R$24,$E94-$E$49+1)","v":":"},null,{"$f":"+INDEX('5'!T$7:T$24,$E94-$E$49+1)","v":":"},null,{"$f":"+INDEX('5'!V$7:V$24,$E94-$E$49+1)","v":":"},null,null,null,null,null,null,null,{"$f":"+INDEX('5'!AD$7:AD$24,$E94-$E$49+1)","v":":"},null,{"$f":"+INDEX('5'!AF$7:AF$24,$E94-$E$49+1)","v":":"}]
[null,null,null,null,null,null,"Intermediate consumption",null,"+ P1_ANC.3"]
[null,null,null,null,null,null,null,null,"+ P2"]
[null,null,null,null,null,null,null,null,"+ P2_EPS_EXT.1"]
[null,null,null,null,null,null,null,null,"+ P2_EPS_EXT.2"]
[null,null,null,null,null,null,null,null,"+ P2_EPS_EXT.3"]
[null,null,null,null,null,null,null,null,"- P2_EPS.1"]
[null,null,null,null,null,null,null,null,"- P2_EPS.2"]
[null,null,null,null,null,null,"Gross fixed capital formation and acquisition less disposals of non-financial, non-produced assets ",null,"+ P51G_NP.1"]
[null,null,null,null,null,null,null,null,"+ P51G_NP.2"]
[null,null,null,null,null,null,null,null,"+ P51G_NP.3"]
[null,null,null,null,null,null,"EP transfers to / from Rest of the World",null,"- D3_D7_D92_D99_PAY_RW.6"]
[null,null,null,null,null,null,null,null,"+ D3_D7_D92_D99_REC_RW.6"]
[null,null,null,null,null,null,"TOTAL",null,"=SUM()",{"$f":"+IF(COUNT(J94:J97,J103:J107)=0,\":\",SUM(J94:J97,J103:J105,J107)-SUM(J106))","v":":"},null,null,null,{"$f":"+IF(COUNT(N94:N97,N103:N107)=0,\":\",SUM(N94:N97,N103:N105,N107)-SUM(N106))","v":":"},null,{"$f":"+IF(COUNT(P94:P97,P103:P107)=0,\":\",SUM(P94:P97,P103:P105,P107)-SUM(P106))","v":":"},null,{"$f":"+IF(COUNT(R94:R97,R103:R107)=0,\":\",SUM(R94:R97,R103:R105,R107)-SUM(R106))","v":":"},null,{"$f":"+IF(COUNT(T94:T97,T103:T107)=0,\":\",SUM(T94:T97,T103:T105,T107)-SUM(T106))","v":":"},null,{"$f":"+IF(COUNT(V94:V97,V103:V107)=0,\":\",SUM(V94:V97,V103:V105,V107)-SUM(V106))","v":":"},null,null,null,null,null,null,null,{"$f":"+IF(COUNT(AD94:AD97,AD103:AD107)=0,\":\",SUM(AD94:AD97,AD103:AD105,AD107)-SUM(AD106))","v":":"},null,{"$f":"+IF(COUNT(AF94:AF97,AF103:AF107)=0,\":\",SUM(AF94:AF97,AF103:AF105,AF107)-SUM(AF106))","v":":"}]
[null,null,null,null,2018,null,"Final consumption expenditure",null,"+ P3_EPS.1"]
[null,null,null,null,2018,null,null,null,"+ P3_EPS.5",{"$f":"+INDEX('5'!J$7:J$24,$E109-$E$49+1)","v":":"},null,null,null,{"$f":"+INDEX('5'!N$7:N$24,$E109-$E$49+1)","v":":"},null,{"$f":"+INDEX('5'!P$7:P$24,$E109-$E$49+1)","v":":"},null,{"$f":"+INDEX('5'!R$7:R$24,$E109-$E$49+1)","v":":"},null,{"$f":"+INDEX('5'!T$7:T$24,$E109-$E$49+1)","v":":"},null,{"$f":"+INDEX('5'!V$7:V$24,$E109-$E$49+1)","v":":"},null,null,null,null,null,null,null,{"$f":"+INDEX('5'!AD$7:AD$24,$E109-$E$49+1)","v":":"},null,{"$f":"+INDEX('5'!AF$7:AF$24,$E109-$E$49+1)","v":":"}]
[null,null,null,null,null,null,"Intermediate consumption",null,"+ P1_ANC.3"]
[null,null,null,null,null,null,null,null,"+ P2"]
[null,null,null,null,null,null,null,null,"+ P2_EPS_EXT.1"]
[null,null,null,null,null,null,null,null,"+ P2_EPS_EXT.2"]
[null,null,null,null,null,null,null,null,"+ P2_EPS_EXT.3"]
[null,null,null,null,null,null,null,null,"- P2_EPS.1"]
[null,null,null,null,null,null,null,null,"- P2_EPS.2"]
[null,null,null,null,null,null,"Gross fixed capital formation and acquisition less disposals of non-financial, non-produced assets ",null,"+ P51G_NP.1"]
[null,null,null,null,null,null,null,null,"+ P51G_NP.2"]
[null,null,null,null,null,null,null,null,"+ P51G_NP.3"]
[null,null,null,null,null,null,"EP transfers to / from Rest of the World",null,"- D3_D7_D92_D99_PAY_RW.6"]
[null,null,null,null,null,null,null,null,"+ D3_D7_D92_D99_REC_RW.6"]
[null,null,null,null,null,null,"TOTAL",null,"=SUM()",{"$f":"+IF(COUNT(J109:J112,J118:J122)=0,\":\",SUM(J109:J112,J118:J120,J122)-SUM(J121))","v":":"},null,null,null,{"$f":"+IF(COUNT(N109:N112,N118:N122)=0,\":\",SUM(N109:N112,N118:N120,N122)-SUM(N121))","v":":"},null,{"$f":"+IF(COUNT(P109:P112,P118:P122)=0,\":\",SUM(P109:P112,P118:P120,P122)-SUM(P121))","v":":"},null,{"$f":"+IF(COUNT(R109:R112,R118:R122)=0,\":\",SUM(R109:R112,R118:R120,R122)-SUM(R121))","v":":"},null,{"$f":"+IF(COUNT(T109:T112,T118:T122)=0,\":\",SUM(T109:T112,T118:T120,T122)-SUM(T121))","v":":"},null,{"$f":"+IF(COUNT(V109:V112,V118:V122)=0,\":\",SUM(V109:V112,V118:V120,V122)-SUM(V121))","v":":"},null,null,null,null,null,null,null,{"$f":"+IF(COUNT(AD109:AD112,AD118:AD122)=0,\":\",SUM(AD109:AD112,AD118:AD120,AD122)-SUM(AD121))","v":":"},null,{"$f":"+IF(COUNT(AF109:AF112,AF118:AF122)=0,\":\",SUM(AF109:AF112,AF118:AF120,AF122)-SUM(AF121))","v":":"}]
[null,null,null,null,2019,null,"Final consumption expenditure",null,"+ P3_EPS.1"]
[null,null,null,null,2019,null,null,null,"+ P3_EPS.5",{"$f":"+INDEX('5'!J$7:J$24,$E124-$E$49+1)","v":":"},null,null,null,{"$f":"+INDEX('5'!N$7:N$24,$E124-$E$49+1)","v":":"},null,{"$f":"+INDEX('5'!P$7:P$24,$E124-$E$49+1)","v":":"},null,{"$f":"+INDEX('5'!R$7:R$24,$E124-$E$49+1)","v":":"},null,{"$f":"+INDEX('5'!T$7:T$24,$E124-$E$49+1)","v":":"},null,{"$f":"+INDEX('5'!V$7:V$24,$E124-$E$49+1)","v":":"},null,null,null,null,null,null,null,{"$f":"+INDEX('5'!AD$7:AD$24,$E124-$E$49+1)","v":":"},null,{"$f":"+INDEX('5'!AF$7:AF$24,$E124-$E$49+1)","v":":"}]
[null,null,null,null,null,null,"Intermediate consumption",null,"+ P1_ANC.3"]
[null,null,null,null,null,null,null,null,"+ P2"]
[null,null,null,null,null,null,null,null,"+ P2_EPS_EXT.1"]
[null,null,null,null,null,null,null,null,"+ P2_EPS_EXT.2"]
[null,null,null,null,null,null,null,null,"+ P2_EPS_EXT.3"]
[null,null,null,null,null,null,null,null,"- P2_EPS.1"]
[null,null,null,null,null,null,null,null,"- P2_EPS.2"]
[null,null,null,null,null,null,"Gross fixed capital formation and acquisition less disposals of non-financial, non-produced assets ",null,"+ P51G_NP.1"]
[null,null,null,null,null,null,null,null,"+ P51G_NP.2"]
[null,null,null,null,null,null,null,null,"+ P51G_NP.3"]
[null,null,null,null,null,null,"EP transfers to / from Rest of the World",null,"- D3_D7_D92_D99_PAY_RW.6"]
[null,null,null,null,null,null,null,null,"+ D3_D7_D92_D99_REC_RW.6"]
[null,null,null,null,null,null,"TOTAL",null,"=SUM()",{"$f":"+IF(COUNT(J124:J127,J133:J137)=0,\":\",SUM(J124:J127,J133:J135,J137)-SUM(J136))","v":":"},null,null,null,{"$f":"+IF(COUNT(N124:N127,N133:N137)=0,\":\",SUM(N124:N127,N133:N135,N137)-SUM(N136))","v":":"},null,{"$f":"+IF(COUNT(P124:P127,P133:P137)=0,\":\",SUM(P124:P127,P133:P135,P137)-SUM(P136))","v":":"},null,{"$f":"+IF(COUNT(R124:R127,R133:R137)=0,\":\",SUM(R124:R127,R133:R135,R137)-SUM(R136))","v":":"},null,{"$f":"+IF(COUNT(T124:T127,T133:T137)=0,\":\",SUM(T124:T127,T133:T135,T137)-SUM(T136))","v":":"},null,{"$f":"+IF(COUNT(V124:V127,V133:V137)=0,\":\",SUM(V124:V127,V133:V135,V137)-SUM(V136))","v":":"},null,null,null,null,null,null,null,{"$f":"+IF(COUNT(AD124:AD127,AD133:AD137)=0,\":\",SUM(AD124:AD127,AD133:AD135,AD137)-SUM(AD136))","v":":"},null,{"$f":"+IF(COUNT(AF124:AF127,AF133:AF137)=0,\":\",SUM(AF124:AF127,AF133:AF135,AF137)-SUM(AF136))","v":":"}]
[null,null,null,null,2020,null,"Final consumption expenditure",null,"+ P3_EPS.1"]
[null,null,null,null,2020,null,null,null,"+ P3_EPS.5",{"$f":"+INDEX('5'!J$7:J$24,$E139-$E$49+1)","v":":"},null,null,null,{"$f":"+INDEX('5'!N$7:N$24,$E139-$E$49+1)","v":":"},null,{"$f":"+INDEX('5'!P$7:P$24,$E139-$E$49+1)","v":":"},null,{"$f":"+INDEX('5'!R$7:R$24,$E139-$E$49+1)","v":":"},null,{"$f":"+INDEX('5'!T$7:T$24,$E139-$E$49+1)","v":":"},null,{"$f":"+INDEX('5'!V$7:V$24,$E139-$E$49+1)","v":":"},null,null,null,null,null,null,null,{"$f":"+INDEX('5'!AD$7:AD$24,$E139-$E$49+1)","v":":"},null,{"$f":"+INDEX('5'!AF$7:AF$24,$E139-$E$49+1)","v":":"}]
[null,null,null,null,null,null,"Intermediate consumption",null,"+ P1_ANC.3"]
[null,null,null,null,null,null,null,null,"+ P2"]
[null,null,null,null,null,null,null,null,"+ P2_EPS_EXT.1"]
[null,null,null,null,null,null,null,null,"+ P2_EPS_EXT.2"]
[null,null,null,null,null,null,null,null,"+ P2_EPS_EXT.3"]
[null,null,null,null,null,null,null,null,"- P2_EPS.1"]
[null,null,null,null,null,null,null,null,"- P2_EPS.2"]
[null,null,null,null,null,null,"Gross fixed capital formation and acquisition less disposals of non-financial, non-produced assets ",null,"+ P51G_NP.1"]
[null,null,null,null,null,null,null,null,"+ P51G_NP.2"]
[null,null,null,null,null,null,null,null,"+ P51G_NP.3"]
[null,null,null,null,null,null,"EP transfers to / from Rest of the World",null,"- D3_D7_D92_D99_PAY_RW.6"]
[null,null,null,null,null,null,null,null,"+ D3_D7_D92_D99_REC_RW.6"]
[null,null,null,null,null,null,"TOTAL",null,"=SUM()",{"$f":"+IF(COUNT(J139:J142,J148:J152)=0,\":\",SUM(J139:J142,J148:J150,J152)-SUM(J151))","v":":"},null,null,null,{"$f":"+IF(COUNT(N139:N142,N148:N152)=0,\":\",SUM(N139:N142,N148:N150,N152)-SUM(N151))","v":":"},null,{"$f":"+IF(COUNT(P139:P142,P148:P152)=0,\":\",SUM(P139:P142,P148:P150,P152)-SUM(P151))","v":":"},null,{"$f":"+IF(COUNT(R139:R142,R148:R152)=0,\":\",SUM(R139:R142,R148:R150,R152)-SUM(R151))","v":":"},null,{"$f":"+IF(COUNT(T139:T142,T148:T152)=0,\":\",SUM(T139:T142,T148:T150,T152)-SUM(T151))","v":":"},null,{"$f":"+IF(COUNT(V139:V142,V148:V152)=0,\":\",SUM(V139:V142,V148:V150,V152)-SUM(V151))","v":":"},null,null,null,null,null,null,null,{"$f":"+IF(COUNT(AD139:AD142,AD148:AD152)=0,\":\",SUM(AD139:AD142,AD148:AD150,AD152)-SUM(AD151))","v":":"},null,{"$f":"+IF(COUNT(AF139:AF142,AF148:AF152)=0,\":\",SUM(AF139:AF142,AF148:AF150,AF152)-SUM(AF151))","v":":"}]
[null,null,null,null,2021,null,"Final consumption expenditure",null,"+ P3_EPS.1"]
[null,null,null,null,2021,null,null,null,"+ P3_EPS.5",{"$f":"+INDEX('5'!J$7:J$24,$E154-$E$49+1)","v":":"},null,null,null,{"$f":"+INDEX('5'!N$7:N$24,$E154-$E$49+1)","v":":"},null,{"$f":"+INDEX('5'!P$7:P$24,$E154-$E$49+1)","v":":"},null,{"$f":"+INDEX('5'!R$7:R$24,$E154-$E$49+1)","v":":"},null,{"$f":"+INDEX('5'!T$7:T$24,$E154-$E$49+1)","v":":"},null,{"$f":"+INDEX('5'!V$7:V$24,$E154-$E$49+1)","v":":"},null,null,null,null,null,null,null,{"$f":"+INDEX('5'!AD$7:AD$24,$E154-$E$49+1)","v":":"},null,{"$f":"+INDEX('5'!AF$7:AF$24,$E154-$E$49+1)","v":":"}]
[null,null,null,null,null,null,"Intermediate consumption",null,"+ P1_ANC.3"]
[null,null,null,null,null,null,null,null,"+ P2"]
[null,null,null,null,null,null,null,null,"+ P2_EPS_EXT.1"]
[null,null,null,null,null,null,null,null,"+ P2_EPS_EXT.2"]
[null,null,null,null,null,null,null,null,"+ P2_EPS_EXT.3"]
[null,null,null,null,null,null,null,null,"- P2_EPS.1"]
[null,null,null,null,null,null,null,null,"- P2_EPS.2"]
[null,null,null,null,null,null,"Gross fixed capital formation and acquisition less disposals of non-financial, non-produced assets ",null,"+ P51G_NP.1"]
[null,null,null,null,null,null,null,null,"+ P51G_NP.2"]
[null,null,null,null,null,null,null,null,"+ P51G_NP.3"]
[null,null,null,null,null,null,"EP transfers to / from Rest of the World",null,"- D3_D7_D92_D99_PAY_RW.6"]
[null,null,null,null,null,null,null,null,"+ D3_D7_D92_D99_REC_RW.6"]
[null,null,null,null,null,null,"TOTAL",null,"=SUM()",{"$f":"+IF(COUNT(J154:J157,J163:J167)=0,\":\",SUM(J154:J157,J163:J165,J167)-SUM(J166))","v":":"},null,null,null,{"$f":"+IF(COUNT(N154:N157,N163:N167)=0,\":\",SUM(N154:N157,N163:N165,N167)-SUM(N166))","v":":"},null,{"$f":"+IF(COUNT(P154:P157,P163:P167)=0,\":\",SUM(P154:P157,P163:P165,P167)-SUM(P166))","v":":"},null,{"$f":"+IF(COUNT(R154:R157,R163:R167)=0,\":\",SUM(R154:R157,R163:R165,R167)-SUM(R166))","v":":"},null,{"$f":"+IF(COUNT(T154:T157,T163:T167)=0,\":\",SUM(T154:T157,T163:T165,T167)-SUM(T166))","v":":"},null,{"$f":"+IF(COUNT(V154:V157,V163:V167)=0,\":\",SUM(V154:V157,V163:V165,V167)-SUM(V166))","v":":"},null,null,null,null,null,null,null,{"$f":"+IF(COUNT(AD154:AD157,AD163:AD167)=0,\":\",SUM(AD154:AD157,AD163:AD165,AD167)-SUM(AD166))","v":":"},null,{"$f":"+IF(COUNT(AF154:AF157,AF163:AF167)=0,\":\",SUM(AF154:AF157,AF163:AF165,AF167)-SUM(AF166))","v":":"}]
[null,null,null,null,2022,null,"Final consumption expenditure",null,"+ P3_EPS.1"]
[null,null,null,null,null,null,null,null,"+ P3_EPS.5",{"$f":"+INDEX('5'!J$7:J$24,$E169-$E$49+1)","v":":"},null,null,null,{"$f":"+INDEX('5'!N$7:N$24,$E169-$E$49+1)","v":":"},null,{"$f":"+INDEX('5'!P$7:P$24,$E169-$E$49+1)","v":":"},null,{"$f":"+INDEX('5'!R$7:R$24,$E169-$E$49+1)","v":":"},null,{"$f":"+INDEX('5'!T$7:T$24,$E169-$E$49+1)","v":":"},null,{"$f":"+INDEX('5'!V$7:V$24,$E169-$E$49+1)","v":":"},null,null,null,null,null,null,null,{"$f":"+INDEX('5'!AD$7:AD$24,$E169-$E$49+1)","v":":"},null,{"$f":"+INDEX('5'!AF$7:AF$24,$E169-$E$49+1)","v":":"}]
[null,null,null,null,null,null,"Intermediate consumption",null,"+ P1_ANC.3"]
[null,null,null,null,null,null,null,null,"+ P2"]
[null,null,null,null,null,null,null,null,"+ P2_EPS_EXT.1"]
[null,null,null,null,null,null,null,null,"+ P2_EPS_EXT.2"]
[null,null,null,null,null,null,null,null,"+ P2_EPS_EXT.3"]
[null,null,null,null,null,null,null,null,"- P2_EPS.1"]
[null,null,null,null,null,null,null,null,"- P2_EPS.2"]
[null,null,null,null,null,null,"Gross fixed capital formation and acquisition less disposals of non-financial, non-produced assets ",null,"+ P51G_NP.1"]
[null,null,null,null,null,null,null,null,"+ P51G_NP.2"]
[null,null,null,null,null,null,null,null,"+ P51G_NP.3"]
[null,null,null,null,null,null,"EP transfers to / from Rest of the World",null,"- D3_D7_D92_D99_PAY_RW.6"]
[null,null,null,null,null,null,null,null,"+ D3_D7_D92_D99_REC_RW.6"]
[null,null,null,null,null,null,"TOTAL",null,"=SUM()",{"$f":"+IF(COUNT(J169:J172,J178:J182)=0,\":\",SUM(J169:J172,J178:J180,J182)-SUM(J181))","v":":"},null,null,null,{"$f":"+IF(COUNT(N169:N172,N178:N182)=0,\":\",SUM(N169:N172,N178:N180,N182)-SUM(N181))","v":":"},null,{"$f":"+IF(COUNT(P169:P172,P178:P182)=0,\":\",SUM(P169:P172,P178:P180,P182)-SUM(P181))","v":":"},null,{"$f":"+IF(COUNT(R169:R172,R178:R182)=0,\":\",SUM(R169:R172,R178:R180,R182)-SUM(R181))","v":":"},null,{"$f":"+IF(COUNT(T169:T172,T178:T182)=0,\":\",SUM(T169:T172,T178:T180,T182)-SUM(T181))","v":":"},null,{"$f":"+IF(COUNT(V169:V172,V178:V182)=0,\":\",SUM(V169:V172,V178:V180,V182)-SUM(V181))","v":":"},null,null,null,null,null,null,null,{"$f":"+IF(COUNT(AD169:AD172,AD178:AD182)=0,\":\",SUM(AD169:AD172,AD178:AD180,AD182)-SUM(AD181))","v":":"},null,{"$f":"+IF(COUNT(AF169:AF172,AF178:AF182)=0,\":\",SUM(AF169:AF172,AF178:AF180,AF182)-SUM(AF181))","v":":"}]
[null,null,null,null,2023,null,"Final consumption expenditure",null,"+ P3_EPS.1"]
[null,null,null,null,null,null,null,null,"+ P3_EPS.5",{"$f":"+INDEX('5'!J$7:J$24,$E184-$E$49+1)","v":":"},null,null,null,{"$f":"+INDEX('5'!N$7:N$24,$E184-$E$49+1)","v":":"},null,{"$f":"+INDEX('5'!P$7:P$24,$E184-$E$49+1)","v":":"},null,{"$f":"+INDEX('5'!R$7:R$24,$E184-$E$49+1)","v":":"},null,{"$f":"+INDEX('5'!T$7:T$24,$E184-$E$49+1)","v":":"},null,{"$f":"+INDEX('5'!V$7:V$24,$E184-$E$49+1)","v":":"},null,null,null,null,null,null,null,{"$f":"+INDEX('5'!AD$7:AD$24,$E184-$E$49+1)","v":":"},null,{"$f":"+INDEX('5'!AF$7:AF$24,$E184-$E$49+1)","v":":"}]
[null,null,null,null,null,null,"Intermediate consumption",null,"+ P1_ANC.3"]
[null,null,null,null,null,null,null,null,"+ P2"]
[null,null,null,null,null,null,null,null,"+ P2_EPS_EXT.1"]
[null,null,null,null,null,null,null,null,"+ P2_EPS_EXT.2"]
[null,null,null,null,null,null,null,null,"+ P2_EPS_EXT.3"]
[null,null,null,null,null,null,null,null,"- P2_EPS.1"]
[null,null,null,null,null,null,null,null,"- P2_EPS.2"]
[null,null,null,null,null,null,"Gross fixed capital formation and acquisition less disposals of non-financial, non-produced assets ",null,"+ P51G_NP.1"]
[null,null,null,null,null,null,null,null,"+ P51G_NP.2"]
[null,null,null,null,null,null,null,null,"+ P51G_NP.3"]
[null,null,null,null,null,null,"EP transfers to / from Rest of the World",null,"- D3_D7_D92_D99_PAY_RW.6"]
[null,null,null,null,null,null,null,null,"+ D3_D7_D92_D99_REC_RW.6"]
[null,null,null,null,null,null,"TOTAL",null,"=SUM()",{"$f":"+IF(COUNT(J184:J187,J193:J197)=0,\":\",SUM(J184:J187,J193:J195,J197)-SUM(J196))","v":":"},null,null,null,{"$f":"+IF(COUNT(N184:N187,N193:N197)=0,\":\",SUM(N184:N187,N193:N195,N197)-SUM(N196))","v":":"},null,{"$f":"+IF(COUNT(P184:P187,P193:P197)=0,\":\",SUM(P184:P187,P193:P195,P197)-SUM(P196))","v":":"},null,{"$f":"+IF(COUNT(R184:R187,R193:R197)=0,\":\",SUM(R184:R187,R193:R195,R197)-SUM(R196))","v":":"},null,{"$f":"+IF(COUNT(T184:T187,T193:T197)=0,\":\",SUM(T184:T187,T193:T195,T197)-SUM(T196))","v":":"},null,{"$f":"+IF(COUNT(V184:V187,V193:V197)=0,\":\",SUM(V184:V187,V193:V195,V197)-SUM(V196))","v":":"},null,null,null,null,null,null,null,{"$f":"+IF(COUNT(AD184:AD187,AD193:AD197)=0,\":\",SUM(AD184:AD187,AD193:AD195,AD197)-SUM(AD196))","v":":"},null,{"$f":"+IF(COUNT(AF184:AF187,AF193:AF197)=0,\":\",SUM(AF184:AF187,AF193:AF195,AF197)-SUM(AF196))","v":":"}]
[null,null,null,null,2024,null,"Final consumption expenditure",null,"+ P3_EPS.1"]
[null,null,null,null,null,null,null,null,"+ P3_EPS.5",{"$f":"+INDEX('5'!J$7:J$24,$E199-$E$49+1)","v":":"},null,null,null,{"$f":"+INDEX('5'!N$7:N$24,$E199-$E$49+1)","v":":"},null,{"$f":"+INDEX('5'!P$7:P$24,$E199-$E$49+1)","v":":"},null,{"$f":"+INDEX('5'!R$7:R$24,$E199-$E$49+1)","v":":"},null,{"$f":"+INDEX('5'!T$7:T$24,$E199-$E$49+1)","v":":"},null,{"$f":"+INDEX('5'!V$7:V$24,$E199-$E$49+1)","v":":"},null,null,null,null,null,null,null,{"$f":"+INDEX('5'!AD$7:AD$24,$E199-$E$49+1)","v":":"},null,{"$f":"+INDEX('5'!AF$7:AF$24,$E199-$E$49+1)","v":":"}]
[null,null,null,null,null,null,"Intermediate consumption",null,"+ P1_ANC.3"]
[null,null,null,null,null,null,null,null,"+ P2"]
[null,null,null,null,null,null,null,null,"+ P2_EPS_EXT.1"]
[null,null,null,null,null,null,null,null,"+ P2_EPS_EXT.2"]
[null,null,null,null,null,null,null,null,"+ P2_EPS_EXT.3"]
[null,null,null,null,null,null,null,null,"- P2_EPS.1"]
[null,null,null,null,null,null,null,null,"- P2_EPS.2"]
[null,null,null,null,null,null,"Gross fixed capital formation and acquisition less disposals of non-financial, non-produced assets ",null,"+ P51G_NP.1"]
[null,null,null,null,null,null,null,null,"+ P51G_NP.2"]
[null,null,null,null,null,null,null,null,"+ P51G_NP.3"]
[null,null,null,null,null,null,"EP transfers to / from Rest of the World",null,"- D3_D7_D92_D99_PAY_RW.6"]
[null,null,null,null,null,null,null,null,"+ D3_D7_D92_D99_REC_RW.6"]
[null,null,null,null,null,null,"TOTAL",null,"=SUM()",{"$f":"+IF(COUNT(J199:J202,J208:J212)=0,\":\",SUM(J199:J202,J208:J210,J212)-SUM(J211))","v":":"},null,null,null,{"$f":"+IF(COUNT(N199:N202,N208:N212)=0,\":\",SUM(N199:N202,N208:N210,N212)-SUM(N211))","v":":"},null,{"$f":"+IF(COUNT(P199:P202,P208:P212)=0,\":\",SUM(P199:P202,P208:P210,P212)-SUM(P211))","v":":"},null,{"$f":"+IF(COUNT(R199:R202,R208:R212)=0,\":\",SUM(R199:R202,R208:R210,R212)-SUM(R211))","v":":"},null,{"$f":"+IF(COUNT(T199:T202,T208:T212)=0,\":\",SUM(T199:T202,T208:T210,T212)-SUM(T211))","v":":"},null,{"$f":"+IF(COUNT(V199:V202,V208:V212)=0,\":\",SUM(V199:V202,V208:V210,V212)-SUM(V211))","v":":"},null,null,null,null,null,null,null,{"$f":"+IF(COUNT(AD199:AD202,AD208:AD212)=0,\":\",SUM(AD199:AD202,AD208:AD210,AD212)-SUM(AD211))","v":":"},null,{"$f":"+IF(COUNT(AF199:AF202,AF208:AF212)=0,\":\",SUM(AF199:AF202,AF208:AF210,AF212)-SUM(AF211))","v":":"}]
[null,null,null,null,2025,null,"Final consumption expenditure",null,"+ P3_EPS.1"]
[null,null,null,null,null,null,null,null,"+ P3_EPS.5",{"$f":"+INDEX('5'!J$7:J$24,$E214-$E$49+1)","v":":"},null,null,null,{"$f":"+INDEX('5'!N$7:N$24,$E214-$E$49+1)","v":":"},null,{"$f":"+INDEX('5'!P$7:P$24,$E214-$E$49+1)","v":":"},null,{"$f":"+INDEX('5'!R$7:R$24,$E214-$E$49+1)","v":":"},null,{"$f":"+INDEX('5'!T$7:T$24,$E214-$E$49+1)","v":":"},null,{"$f":"+INDEX('5'!V$7:V$24,$E214-$E$49+1)","v":":"},null,null,null,null,null,null,null,{"$f":"+INDEX('5'!AD$7:AD$24,$E214-$E$49+1)","v":":"},null,{"$f":"+INDEX('5'!AF$7:AF$24,$E214-$E$49+1)","v":":"}]
[null,null,null,null,null,null,"Intermediate consumption",null,"+ P1_ANC.3"]
[null,null,null,null,null,null,null,null,"+ P2"]
[null,null,null,null,null,null,null,null,"+ P2_EPS_EXT.1"]
[null,null,null,null,null,null,null,null,"+ P2_EPS_EXT.2"]
[null,null,null,null,null,null,null,null,"+ P2_EPS_EXT.3"]
[null,null,null,null,null,null,null,null,"- P2_EPS.1"]
[null,null,null,null,null,null,null,null,"- P2_EPS.2"]
[null,null,null,null,null,null,"Gross fixed capital formation and acquisition less disposals of non-financial, non-produced assets ",null,"+ P51G_NP.1"]
[null,null,null,null,null,null,null,null,"+ P51G_NP.2"]
[null,null,null,null,null,null,null,null,"+ P51G_NP.3"]
[null,null,null,null,null,null,"EP transfers to / from Rest of the World",null,"- D3_D7_D92_D99_PAY_RW.6"]
[null,null,null,null,null,null,null,null,"+ D3_D7_D92_D99_REC_RW.6"]
[null,null,null,null,null,null,"TOTAL",null,"=SUM()",{"$f":"+IF(COUNT(J214:J217,J223:J227)=0,\":\",SUM(J214:J217,J223:J225,J227)-SUM(J226))","v":":"},null,null,null,{"$f":"+IF(COUNT(N214:N217,N223:N227)=0,\":\",SUM(N214:N217,N223:N225,N227)-SUM(N226))","v":":"},null,{"$f":"+IF(COUNT(P214:P217,P223:P227)=0,\":\",SUM(P214:P217,P223:P225,P227)-SUM(P226))","v":":"},null,{"$f":"+IF(COUNT(R214:R217,R223:R227)=0,\":\",SUM(R214:R217,R223:R225,R227)-SUM(R226))","v":":"},null,{"$f":"+IF(COUNT(T214:T217,T223:T227)=0,\":\",SUM(T214:T217,T223:T225,T227)-SUM(T226))","v":":"},null,{"$f":"+IF(COUNT(V214:V217,V223:V227)=0,\":\",SUM(V214:V217,V223:V225,V227)-SUM(V226))","v":":"},null,null,null,null,null,null,null,{"$f":"+IF(COUNT(AD214:AD217,AD223:AD227)=0,\":\",SUM(AD214:AD217,AD223:AD225,AD227)-SUM(AD226))","v":":"},null,{"$f":"+IF(COUNT(AF214:AF217,AF223:AF227)=0,\":\",SUM(AF214:AF217,AF223:AF225,AF227)-SUM(AF226))","v":":"}]
[null,null,null,null,2026,null,"Final consumption expenditure",null,"+ P3_EPS.1"]
[null,null,null,null,null,null,null,null,"+ P3_EPS.5",{"$f":"+INDEX('5'!J$7:J$24,$E229-$E$49+1)","v":":"},null,null,null,{"$f":"+INDEX('5'!N$7:N$24,$E229-$E$49+1)","v":":"},null,{"$f":"+INDEX('5'!P$7:P$24,$E229-$E$49+1)","v":":"},null,{"$f":"+INDEX('5'!R$7:R$24,$E229-$E$49+1)","v":":"},null,{"$f":"+INDEX('5'!T$7:T$24,$E229-$E$49+1)","v":":"},null,{"$f":"+INDEX('5'!V$7:V$24,$E229-$E$49+1)","v":":"},null,null,null,null,null,null,null,{"$f":"+INDEX('5'!AD$7:AD$24,$E229-$E$49+1)","v":":"},null,{"$f":"+INDEX('5'!AF$7:AF$24,$E229-$E$49+1)","v":":"}]
[null,null,null,null,null,null,"Intermediate consumption",null,"+ P1_ANC.3"]
[null,null,null,null,null,null,null,null,"+ P2"]
[null,null,null,null,null,null,null,null,"+ P2_EPS_EXT.1"]
[null,null,null,null,null,null,null,null,"+ P2_EPS_EXT.2"]
[null,null,null,null,null,null,null,null,"+ P2_EPS_EXT.3"]
[null,null,null,null,null,null,null,null,"- P2_EPS.1"]
[null,null,null,null,null,null,null,null,"- P2_EPS.2"]
[null,null,null,null,null,null,"Gross fixed capital formation and acquisition less disposals of non-financial, non-produced assets ",null,"+ P51G_NP.1"]
[null,null,null,null,null,null,null,null,"+ P51G_NP.2"]
[null,null,null,null,null,null,null,null,"+ P51G_NP.3"]
[null,null,null,null,null,null,"EP transfers to / from Rest of the World",null,"- D3_D7_D92_D99_PAY_RW.6"]
[null,null,null,null,null,null,null,null,"+ D3_D7_D92_D99_REC_RW.6"]
[null,null,null,null,null,null,"TOTAL",null,"=SUM()",{"$f":"+IF(COUNT(J229:J232,J238:J242)=0,\":\",SUM(J229:J232,J238:J240,J242)-SUM(J241))","v":":"},null,null,null,{"$f":"+IF(COUNT(N229:N232,N238:N242)=0,\":\",SUM(N229:N232,N238:N240,N242)-SUM(N241))","v":":"},null,{"$f":"+IF(COUNT(P229:P232,P238:P242)=0,\":\",SUM(P229:P232,P238:P240,P242)-SUM(P241))","v":":"},null,{"$f":"+IF(COUNT(R229:R232,R238:R242)=0,\":\",SUM(R229:R232,R238:R240,R242)-SUM(R241))","v":":"},null,{"$f":"+IF(COUNT(T229:T232,T238:T242)=0,\":\",SUM(T229:T232,T238:T240,T242)-SUM(T241))","v":":"},null,{"$f":"+IF(COUNT(V229:V232,V238:V242)=0,\":\",SUM(V229:V232,V238:V240,V242)-SUM(V241))","v":":"},null,null,null,null,null,null,null,{"$f":"+IF(COUNT(AD229:AD232,AD238:AD242)=0,\":\",SUM(AD229:AD232,AD238:AD240,AD242)-SUM(AD241))","v":":"},null,{"$f":"+IF(COUNT(AF229:AF232,AF238:AF242)=0,\":\",SUM(AF229:AF232,AF238:AF240,AF242)-SUM(AF241))","v":":"}]
[null,null,null,null,2027,null,"Final consumption expenditure",null,"+ P3_EPS.1"]
[null,null,null,null,null,null,null,null,"+ P3_EPS.5",{"$f":"+INDEX('5'!J$7:J$24,$E244-$E$49+1)","v":":"},null,null,null,{"$f":"+INDEX('5'!N$7:N$24,$E244-$E$49+1)","v":":"},null,{"$f":"+INDEX('5'!P$7:P$24,$E244-$E$49+1)","v":":"},null,{"$f":"+INDEX('5'!R$7:R$24,$E244-$E$49+1)","v":":"},null,{"$f":"+INDEX('5'!T$7:T$24,$E244-$E$49+1)","v":":"},null,{"$f":"+INDEX('5'!V$7:V$24,$E244-$E$49+1)","v":":"},null,null,null,null,null,null,null,{"$f":"+INDEX('5'!AD$7:AD$24,$E244-$E$49+1)","v":":"},null,{"$f":"+INDEX('5'!AF$7:AF$24,$E244-$E$49+1)","v":":"}]
[null,null,null,null,null,null,"Intermediate consumption",null,"+ P1_ANC.3"]
[null,null,null,null,null,null,null,null,"+ P2"]
[null,null,null,null,null,null,null,null,"+ P2_EPS_EXT.1"]
[null,null,null,null,null,null,null,null,"+ P2_EPS_EXT.2"]
[null,null,null,null,null,null,null,null,"+ P2_EPS_EXT.3"]
[null,null,null,null,null,null,null,null,"- P2_EPS.1"]
[null,null,null,null,null,null,null,null,"- P2_EPS.2"]
[null,null,null,null,null,null,"Gross fixed capital formation and acquisition less disposals of non-financial, non-produced assets ",null,"+ P51G_NP.1"]
[null,null,null,null,null,null,null,null,"+ P51G_NP.2"]
[null,null,null,null,null,null,null,null,"+ P51G_NP.3"]
[null,null,null,null,null,null,"EP transfers to / from Rest of the World",null,"- D3_D7_D92_D99_PAY_RW.6"]
[null,null,null,null,null,null,null,null,"+ D3_D7_D92_D99_REC_RW.6"]
[null,null,null,null,null,null,"TOTAL",null,"=SUM()",{"$f":"+IF(COUNT(J244:J247,J253:J257)=0,\":\",SUM(J244:J247,J253:J255,J257)-SUM(J256))","v":":"},null,null,null,{"$f":"+IF(COUNT(N244:N247,N253:N257)=0,\":\",SUM(N244:N247,N253:N255,N257)-SUM(N256))","v":":"},null,{"$f":"+IF(COUNT(P244:P247,P253:P257)=0,\":\",SUM(P244:P247,P253:P255,P257)-SUM(P256))","v":":"},null,{"$f":"+IF(COUNT(R244:R247,R253:R257)=0,\":\",SUM(R244:R247,R253:R255,R257)-SUM(R256))","v":":"},null,{"$f":"+IF(COUNT(T244:T247,T253:T257)=0,\":\",SUM(T244:T247,T253:T255,T257)-SUM(T256))","v":":"},null,{"$f":"+IF(COUNT(V244:V247,V253:V257)=0,\":\",SUM(V244:V247,V253:V255,V257)-SUM(V256))","v":":"},null,null,null,null,null,null,null,{"$f":"+IF(COUNT(AD244:AD247,AD253:AD257)=0,\":\",SUM(AD244:AD247,AD253:AD255,AD257)-SUM(AD256))","v":":"},null,{"$f":"+IF(COUNT(AF244:AF247,AF253:AF257)=0,\":\",SUM(AF244:AF247,AF253:AF255,AF257)-SUM(AF256))","v":":"}]
[null,null,null,null,2028,null,"Final consumption expenditure",null,"+ P3_EPS.1"]
[null,null,null,null,null,null,null,null,"+ P3_EPS.5",{"$f":"+INDEX('5'!J$7:J$24,$E259-$E$49+1)","v":":"},null,null,null,{"$f":"+INDEX('5'!N$7:N$24,$E259-$E$49+1)","v":":"},null,{"$f":"+INDEX('5'!P$7:P$24,$E259-$E$49+1)","v":":"},null,{"$f":"+INDEX('5'!R$7:R$24,$E259-$E$49+1)","v":":"},null,{"$f":"+INDEX('5'!T$7:T$24,$E259-$E$49+1)","v":":"},null,{"$f":"+INDEX('5'!V$7:V$24,$E259-$E$49+1)","v":":"},null,null,null,null,null,null,null,{"$f":"+INDEX('5'!AD$7:AD$24,$E259-$E$49+1)","v":":"},null,{"$f":"+INDEX('5'!AF$7:AF$24,$E259-$E$49+1)","v":":"}]
[null,null,null,null,null,null,"Intermediate consumption",null,"+ P1_ANC.3"]
[null,null,null,null,null,null,null,null,"+ P2"]
[null,null,null,null,null,null,null,null,"+ P2_EPS_EXT.1"]
[null,null,null,null,null,null,null,null,"+ P2_EPS_EXT.2"]
[null,null,null,null,null,null,null,null,"+ P2_EPS_EXT.3"]
[null,null,null,null,null,null,null,null,"- P2_EPS.1"]
[null,null,null,null,null,null,null,null,"- P2_EPS.2"]
[null,null,null,null,null,null,"Gross fixed capital formation and acquisition less disposals of non-financial, non-produced assets ",null,"+ P51G_NP.1"]
[null,null,null,null,null,null,null,null,"+ P51G_NP.2"]
[null,null,null,null,null,null,null,null,"+ P51G_NP.3"]
[null,null,null,null,null,null,"EP transfers to / from Rest of the World",null,"- D3_D7_D92_D99_PAY_RW.6"]
[null,null,null,null,null,null,null,null,"+ D3_D7_D92_D99_REC_RW.6"]
[null,null,null,null,null,null,"TOTAL",null,"=SUM()",{"$f":"+IF(COUNT(J259:J262,J268:J272)=0,\":\",SUM(J259:J262,J268:J270,J272)-SUM(J271))","v":":"},null,null,null,{"$f":"+IF(COUNT(N259:N262,N268:N272)=0,\":\",SUM(N259:N262,N268:N270,N272)-SUM(N271))","v":":"},null,{"$f":"+IF(COUNT(P259:P262,P268:P272)=0,\":\",SUM(P259:P262,P268:P270,P272)-SUM(P271))","v":":"},null,{"$f":"+IF(COUNT(R259:R262,R268:R272)=0,\":\",SUM(R259:R262,R268:R270,R272)-SUM(R271))","v":":"},null,{"$f":"+IF(COUNT(T259:T262,T268:T272)=0,\":\",SUM(T259:T262,T268:T270,T272)-SUM(T271))","v":":"},null,{"$f":"+IF(COUNT(V259:V262,V268:V272)=0,\":\",SUM(V259:V262,V268:V270,V272)-SUM(V271))","v":":"},null,null,null,null,null,null,null,{"$f":"+IF(COUNT(AD259:AD262,AD268:AD272)=0,\":\",SUM(AD259:AD262,AD268:AD270,AD272)-SUM(AD271))","v":":"},null,{"$f":"+IF(COUNT(AF259:AF262,AF268:AF272)=0,\":\",SUM(AF259:AF262,AF268:AF270,AF272)-SUM(AF271))","v":":"}]
[null,null,null,null,2029,null,"Final consumption expenditure",null,"+ P3_EPS.1"]
[null,null,null,null,null,null,null,null,"+ P3_EPS.5",{"$f":"+INDEX('5'!J$7:J$24,$E274-$E$49+1)","v":":"},null,null,null,{"$f":"+INDEX('5'!N$7:N$24,$E274-$E$49+1)","v":":"},null,{"$f":"+INDEX('5'!P$7:P$24,$E274-$E$49+1)","v":":"},null,{"$f":"+INDEX('5'!R$7:R$24,$E274-$E$49+1)","v":":"},null,{"$f":"+INDEX('5'!T$7:T$24,$E274-$E$49+1)","v":":"},null,{"$f":"+INDEX('5'!V$7:V$24,$E274-$E$49+1)","v":":"},null,null,null,null,null,null,null,{"$f":"+INDEX('5'!AD$7:AD$24,$E274-$E$49+1)","v":":"},null,{"$f":"+INDEX('5'!AF$7:AF$24,$E274-$E$49+1)","v":":"}]
[null,null,null,null,null,null,"Intermediate consumption",null,"+ P1_ANC.3"]
[null,null,null,null,null,null,null,null,"+ P2"]
[null,null,null,null,null,null,null,null,"+ P2_EPS_EXT.1"]
[null,null,null,null,null,null,null,null,"+ P2_EPS_EXT.2"]
[null,null,null,null,null,null,null,null,"+ P2_EPS_EXT.3"]
[null,null,null,null,null,null,null,null,"- P2_EPS.1"]
[null,null,null,null,null,null,null,null,"- P2_EPS.2"]
[null,null,null,null,null,null,"Gross fixed capital formation and acquisition less disposals of non-financial, non-produced assets ",null,"+ P51G_NP.1"]
[null,null,null,null,null,null,null,null,"+ P51G_NP.2"]
[null,null,null,null,null,null,null,null,"+ P51G_NP.3"]
[null,null,null,null,null,null,"EP transfers to / from Rest of the World",null,"- D3_D7_D92_D99_PAY_RW.6"]
[null,null,null,null,null,null,null,null,"+ D3_D7_D92_D99_REC_RW.6"]
[null,null,null,null,null,null,"TOTAL",null,"=SUM()",{"$f":"+IF(COUNT(J274:J277,J283:J287)=0,\":\",SUM(J274:J277,J283:J285,J287)-SUM(J286))","v":":"},null,null,null,{"$f":"+IF(COUNT(N274:N277,N283:N287)=0,\":\",SUM(N274:N277,N283:N285,N287)-SUM(N286))","v":":"},null,{"$f":"+IF(COUNT(P274:P277,P283:P287)=0,\":\",SUM(P274:P277,P283:P285,P287)-SUM(P286))","v":":"},null,{"$f":"+IF(COUNT(R274:R277,R283:R287)=0,\":\",SUM(R274:R277,R283:R285,R287)-SUM(R286))","v":":"},null,{"$f":"+IF(COUNT(T274:T277,T283:T287)=0,\":\",SUM(T274:T277,T283:T285,T287)-SUM(T286))","v":":"},null,{"$f":"+IF(COUNT(V274:V277,V283:V287)=0,\":\",SUM(V274:V277,V283:V285,V287)-SUM(V286))","v":":"},null,null,null,null,null,null,null,{"$f":"+IF(COUNT(AD274:AD277,AD283:AD287)=0,\":\",SUM(AD274:AD277,AD283:AD285,AD287)-SUM(AD286))","v":":"},null,{"$f":"+IF(COUNT(AF274:AF277,AF283:AF287)=0,\":\",SUM(AF274:AF277,AF283:AF285,AF287)-SUM(AF286))","v":":"}]
[null,null,null,null,2030,null,"Final consumption expenditure",null,"+ P3_EPS.1"]
[null,null,null,null,null,null,null,null,"+ P3_EPS.5",{"$f":"+INDEX('5'!J$7:J$24,$E289-$E$49+1)","v":":"},null,null,null,{"$f":"+INDEX('5'!N$7:N$24,$E289-$E$49+1)","v":":"},null,{"$f":"+INDEX('5'!P$7:P$24,$E289-$E$49+1)","v":":"},null,{"$f":"+INDEX('5'!R$7:R$24,$E289-$E$49+1)","v":":"},null,{"$f":"+INDEX('5'!T$7:T$24,$E289-$E$49+1)","v":":"},null,{"$f":"+INDEX('5'!V$7:V$24,$E289-$E$49+1)","v":":"},null,null,null,null,null,null,null,{"$f":"+INDEX('5'!AD$7:AD$24,$E289-$E$49+1)","v":":"},null,{"$f":"+INDEX('5'!AF$7:AF$24,$E289-$E$49+1)","v":":"}]
[null,null,null,null,null,null,"Intermediate consumption",null,"+ P1_ANC.3"]
[null,null,null,null,null,null,null,null,"+ P2"]
[null,null,null,null,null,null,null,null,"+ P2_EPS_EXT.1"]
[null,null,null,null,null,null,null,null,"+ P2_EPS_EXT.2"]
[null,null,null,null,null,null,null,null,"+ P2_EPS_EXT.3"]
[null,null,null,null,null,null,null,null,"- P2_EPS.1"]
[null,null,null,null,null,null,null,null,"- P2_EPS.2"]
[null,null,null,null,null,null,"Gross fixed capital formation and acquisition less disposals of non-financial, non-produced assets ",null,"+ P51G_NP.1"]
[null,null,null,null,null,null,null,null,"+ P51G_NP.2"]
[null,null,null,null,null,null,null,null,"+ P51G_NP.3"]
[null,null,null,null,null,null,"EP transfers to / from Rest of the World",null,"- D3_D7_D92_D99_PAY_RW.6"]
[null,null,null,null,null,null,null,null,"+ D3_D7_D92_D99_REC_RW.6"]
[null,null,null,null,null,null,"TOTAL",null,"=SUM()",{"$f":"+IF(COUNT(J289:J292,J298:J302)=0,\":\",SUM(J289:J292,J298:J300,J302)-SUM(J301))","v":":"},null,null,null,{"$f":"+IF(COUNT(N289:N292,N298:N302)=0,\":\",SUM(N289:N292,N298:N300,N302)-SUM(N301))","v":":"},null,{"$f":"+IF(COUNT(P289:P292,P298:P302)=0,\":\",SUM(P289:P292,P298:P300,P302)-SUM(P301))","v":":"},null,{"$f":"+IF(COUNT(R289:R292,R298:R302)=0,\":\",SUM(R289:R292,R298:R300,R302)-SUM(R301))","v":":"},null,{"$f":"+IF(COUNT(T289:T292,T298:T302)=0,\":\",SUM(T289:T292,T298:T300,T302)-SUM(T301))","v":":"},null,{"$f":"+IF(COUNT(V289:V292,V298:V302)=0,\":\",SUM(V289:V292,V298:V300,V302)-SUM(V301))","v":":"},null,null,null,null,null,null,null,{"$f":"+IF(COUNT(AD289:AD292,AD298:AD302)=0,\":\",SUM(AD289:AD292,AD298:AD300,AD302)-SUM(AD301))","v":":"},null,{"$f":"+IF(COUNT(AF289:AF292,AF298:AF302)=0,\":\",SUM(AF289:AF292,AF298:AF300,AF302)-SUM(AF301))","v":":"}]
[null,null,null,null,2031,null,"Final consumption expenditure",null,"+ P3_EPS.1"]
[null,null,null,null,null,null,null,null,"+ P3_EPS.5",{"$f":"+INDEX('5'!J$7:J$24,$E304-$E$49+1)","v":":"},null,null,null,{"$f":"+INDEX('5'!N$7:N$24,$E304-$E$49+1)","v":":"},null,{"$f":"+INDEX('5'!P$7:P$24,$E304-$E$49+1)","v":":"},null,{"$f":"+INDEX('5'!R$7:R$24,$E304-$E$49+1)","v":":"},null,{"$f":"+INDEX('5'!T$7:T$24,$E304-$E$49+1)","v":":"},null,{"$f":"+INDEX('5'!V$7:V$24,$E304-$E$49+1)","v":":"},null,null,null,null,null,null,null,{"$f":"+INDEX('5'!AD$7:AD$24,$E304-$E$49+1)","v":":"},null,{"$f":"+INDEX('5'!AF$7:AF$24,$E304-$E$49+1)","v":":"}]
[null,null,null,null,null,null,"Intermediate consumption",null,"+ P1_ANC.3"]
[null,null,null,null,null,null,null,null,"+ P2"]
[null,null,null,null,null,null,null,null,"+ P2_EPS_EXT.1"]
[null,null,null,null,null,null,null,null,"+ P2_EPS_EXT.2"]
[null,null,null,null,null,null,null,null,"+ P2_EPS_EXT.3"]
[null,null,null,null,null,null,null,null,"- P2_EPS.1"]
[null,null,null,null,null,null,null,null,"- P2_EPS.2"]
[null,null,null,null,null,null,"Gross fixed capital formation and acquisition less disposals of non-financial, non-produced assets ",null,"+ P51G_NP.1"]
[null,null,null,null,null,null,null,null,"+ P51G_NP.2"]
[null,null,null,null,null,null,null,null,"+ P51G_NP.3"]
[null,null,null,null,null,null,"EP transfers to / from Rest of the World",null,"- D3_D7_D92_D99_PAY_RW.6"]
[null,null,null,null,null,null,null,null,"+ D3_D7_D92_D99_REC_RW.6"]
[null,null,null,null,null,null,"TOTAL",null,"=SUM()",{"$f":"+IF(COUNT(J304:J307,J313:J317)=0,\":\",SUM(J304:J307,J313:J315,J317)-SUM(J316))","v":":"},null,null,null,{"$f":"+IF(COUNT(N304:N307,N313:N317)=0,\":\",SUM(N304:N307,N313:N315,N317)-SUM(N316))","v":":"},null,{"$f":"+IF(COUNT(P304:P307,P313:P317)=0,\":\",SUM(P304:P307,P313:P315,P317)-SUM(P316))","v":":"},null,{"$f":"+IF(COUNT(R304:R307,R313:R317)=0,\":\",SUM(R304:R307,R313:R315,R317)-SUM(R316))","v":":"},null,{"$f":"+IF(COUNT(T304:T307,T313:T317)=0,\":\",SUM(T304:T307,T313:T315,T317)-SUM(T316))","v":":"},null,{"$f":"+IF(COUNT(V304:V307,V313:V317)=0,\":\",SUM(V304:V307,V313:V315,V317)-SUM(V316))","v":":"},null,null,null,null,null,null,null,{"$f":"+IF(COUNT(AD304:AD307,AD313:AD317)=0,\":\",SUM(AD304:AD307,AD313:AD315,AD317)-SUM(AD316))","v":":"},null,{"$f":"+IF(COUNT(AF304:AF307,AF313:AF317)=0,\":\",SUM(AF304:AF307,AF313:AF315,AF317)-SUM(AF316))","v":":"}]

{"sheet":"8.1","index":44,"n_rows":60,"n_cols":38,"rows_kept":60,"cut":false,"hidden":false,"merged":[[0,4,0,8],[1,4,1,8],[1,9,1,32],[1,33,1,38],[2,9,2,32],[2,33,2,38],[3,35,4,36],[3,37,4,38],[3,21,4,22],[3,23,4,24],[3,25,4,26],[3,27,4,28],[3,29,4,30],[24,4,24,7],[3,31,4,32],[3,33,4,34],[3,9,4,10],[3,11,4,12],[3,13,4,14],[3,15,4,16],[3,17,4,18],[3,19,4,20],[4,4,4,7],[6,4,6,7],[7,4,7,7],[8,4,8,7],[9,4,9,7],[45,4,45,7],[25,4,25,7],[26,4,26,7],[27,4,27,7],[42,4,42,7],[43,4,43,7],[44,4,44,7]]}
[null,null,null,null,{"$f":"Cover!B21","v":"QUESTIONNAIRE ON ENVIRONMENTAL PROTECTION EXPENDITURE ACCOUNTS"},null,null,null,null,"GFCF - General government and NPISH",null,null,null,null,null,null,null,null,null,null,null,null,null,null,null,null,null,null,null,null,null,null,null,"GFCF - General government and NPISH"]
[null,null,null,null,{"$f":"E1","v":"QUESTIONNAIRE ON ENVIRONMENTAL PROTECTION EXPENDITURE ACCOUNTS"},null,null,null,null,{"$f":"J1","v":"GFCF - General government and NPISH"},null,null,null,null,null,null,null,null,null,null,null,null,null,null,null,null,null,null,null,null,null,null,null,{"$f":"AH1","v":"GFCF - General government and NPISH"}]
[null,null,null,null,null,null,null,null,null,"Figures calculated from information available in the questionnaire",null,null,null,null,null,null,null,null,null,null,null,null,null,null,null,null,null,null,null,null,null,null,null,"Figures calculated from information available in the questionnaire"]
[null,null,null,null,"Country/Unit",{"$f":"IFERROR(Cover!C16,\"\")","v":""},{"$f":"\"\"&Cover!B16","v":""},null,{"$f":"Cover!B17","v":"Million units of national currency"},"CEPA 1",null,"of which CEPA 1.1.2 and 1.2.2 Climate change",null,"CEPA 2",null,"CEPA 3",null,"CEPA 4",null,"CEPA 5",null,"CEPA 6",null,"CEPA 7",null,"CEPA 8",null,"CEPA 9",null,"Sum of CEPA 7+8+9",null,"TOTAL CEPA",null," CReMA\n11B + 13C + 14 \n(Materials recovery)",null,"CReMA13A (Production of energy  from renewable sources)",null,"CReMA13B \n(Energy efficiency and savings)"]
[null,null,null,null,"Expenditure",null,null,null,"Year",null,null,null,null,null,null,null,null,null,null,null,null,null,null,null,null,null,null,null,null,"Landscape",null,"Landscape",null,"Landscape",null,"Landscape",null,"Landscape"]
[null,null,null,null,null,null,null,null,null,"CEPA1",null,"CEPA112_122",null,"CEPA2",null,"CEPA3",null,"CEPA4",null,"CEPA5",null,"CEPA6",null,"CEPA7",null,"CEPA8",null,"CEPA9",null,"CEPA7-9",null,"TOT_CEPA",null,"CREMA 11B_13C_14",null,"CREMA 13A",null,"CREMA 13B"]
["S13_S15","TOTAL","EPS_P51G_NP",null,"( P51G_NP.1 ) Gross fixed capital formation and acquisition less disposals of non-financial non-produced assets (for characteristic activities)",null,null,null,2014,{"$f":"'1'!J7","v":":"},{"$f":"'1'!K7","v":0},{"$f":"'1'!L7","v":":"},{"$f":"'1'!M7","v":0},{"$f":"'1'!N7","v":":"},{"$f":"'1'!O7","v":0},{"$f":"'1'!P7","v":":"},{"$f":"'1'!Q7","v":0},{"$f":"'1'!R7","v":":"},{"$f":"'1'!S7","v":0},{"$f":"'1'!T7","v":":"},{"$f":"'1'!U7","v":0},{"$f":"'1'!V7","v":":"},{"$f":"'1'!W7","v":0},{"$f":"'1'!X7","v":":"},{"$f":"'1'!Y7","v":0},{"$f":"'1'!Z7","v":":"},{"$f":"'1'!AA7","v":0},{"$f":"'1'!AB7","v":":"},{"$f":"'1'!AC7","v":0},{"$f":"'1'!AD7","v":":"},{"$f":"'1'!AE7","v":0},{"$f":"'1'!AF7","v":":"},{"$f":"'1'!AG7","v":0},{"$f":"'1'!AH7","v":":"},{"$f":"'1'!AI7","v":0},{"$f":"'1'!AJ7","v":":"},{"$f":"'1'!AK7","v":0},":"]
["S13_S15","TOTAL","EPS_P51G_NP",null,null,null,null,null,2015,{"$f":"'1'!J8","v":":"},{"$f":"'1'!K8","v":0},{"$f":"'1'!L8","v":":"},{"$f":"'1'!M8","v":0},{"$f":"'1'!N8","v":":"},{"$f":"'1'!O8","v":0},{"$f":"'1'!P8","v":":"},{"$f":"'1'!Q8","v":0},{"$f":"'1'!R8","v":":"},{"$f":"'1'!S8","v":0},{"$f":"'1'!T8","v":":"},{"$f":"'1'!U8","v":0},{"$f":"'1'!V8","v":":"},{"$f":"'1'!W8","v":0},{"$f":"'1'!X8","v":":"},{"$f":"'1'!Y8","v":0},{"$f":"'1'!Z8","v":":"},{"$f":"'1'!AA8","v":0},{"$f":"'1'!AB8","v":":"},{"$f":"'1'!AC8","v":0},{"$f":"'1'!AD8","v":":"},{"$f":"'1'!AE8","v":0},{"$f":"'1'!AF8","v":":"},{"$f":"'1'!AG8","v":0},{"$f":"'1'!AH8","v":":"},{"$f":"'1'!AI8","v":0},{"$f":"'1'!AJ8","v":":"},{"$f":"'1'!AK8","v":0},":"]
["S13_S15","TOTAL","EPS_P51G_NP",null,null,null,null,null,2016,{"$f":"'1'!J9","v":":"},{"$f":"'1'!K9","v":0},{"$f":"'1'!L9","v":":"},{"$f":"'1'!M9","v":0},{"$f":"'1'!N9","v":":"},{"$f":"'1'!O9","v":0},{"$f":"'1'!P9","v":":"},{"$f":"'1'!Q9","v":0},{"$f":"'1'!R9","v":":"},{"$f":"'1'!S9","v":0},{"$f":"'1'!T9","v":":"},{"$f":"'1'!U9","v":0},{"$f":"'1'!V9","v":":"},{"$f":"'1'!W9","v":0},{"$f":"'1'!X9","v":":"},{"$f":"'1'!Y9","v":0},{"$f":"'1'!Z9","v":":"},{"$f":"'1'!AA9","v":0},{"$f":"'1'!AB9","v":":"},{"$f":"'1'!AC9","v":0},{"$f":"'1'!AD9","v":":"},{"$f":"'1'!AE9","v":0},{"$f":"'1'!AF9","v":":"},{"$f":"'1'!AG9","v":0},{"$f":"'1'!AH9","v":":"},{"$f":"'1'!AI9","v":0},{"$f":"'1'!AJ9","v":":"},{"$f":"'1'!AK9","v":0},":"]
["S13_S15","TOTAL","EPS_P51G_NP",null,null,null,null,null,2017,{"$f":"'1'!J10","v":":"},{"$f":"'1'!K10","v":0},{"$f":"'1'!L10","v":":"},{"$f":"'1'!M10","v":0},{"$f":"'1'!N10","v":":"},{"$f":"'1'!O10","v":0},{"$f":"'1'!P10","v":":"},{"$f":"'1'!Q10","v":0},{"$f":"'1'!R10","v":":"},{"$f":"'1'!S10","v":0},{"$f":"'1'!T10","v":":"},{"$f":"'1'!U10","v":0},{"$f":"'1'!V10","v":":"},{"$f":"'1'!W10","v":0},{"$f":"'1'!X10","v":":"},{"$f":"'1'!Y10","v":0},{"$f":"'1'!Z10","v":":"},{"$f":"'1'!AA10","v":0},{"$f":"'1'!AB10","v":":"},{"$f":"'1'!AC10","v":0},{"$f":"'1'!AD10","v":":"},{"$f":"'1'!AE10","v":0},{"$f":"'1'!AF10","v":":"},{"$f":"'1'!AG10","v":0},{"$f":"'1'!AH10","v":":"},{"$f":"'1'!AI10","v":0},{"$f":"'1'!AJ10","v":":"},{"$f":"'1'!AK10","v":0},":"]
["S13_S15","TOTAL","EPS_P51G_NP",null,null,null,null,null,2018,{"$f":"'1'!J11","v":":"},{"$f":"'1'!K11","v":0},{"$f":"'1'!L11","v":":"},{"$f":"'1'!M11","v":0},{"$f":"'1'!N11","v":":"},{"$f":"'1'!O11","v":0},{"$f":"'1'!P11","v":":"},{"$f":"'1'!Q11","v":0},{"$f":"'1'!R11","v":":"},{"$f":"'1'!S11","v":0},{"$f":"'1'!T11","v":":"},{"$f":"'1'!U11","v":0},{"$f":"'1'!V11","v":":"},{"$f":"'1'!W11","v":0},{"$f":"'1'!X11","v":":"},{"$f":"'1'!Y11","v":0},{"$f":"'1'!Z11","v":":"},{"$f":"'1'!AA11","v":0},{"$f":"'1'!AB11","v":":"},{"$f":"'1'!AC11","v":0},{"$f":"'1'!AD11","v":":"},{"$f":"'1'!AE11","v":0},{"$f":"'1'!AF11","v":":"},{"$f":"'1'!AG11","v":0},{"$f":"'1'!AH11","v":":"},{"$f":"'1'!AI11","v":0},{"$f":"'1'!AJ11","v":":"},{"$f":"'1'!AK11","v":0},":"]
["S13_S15","TOTAL","EPS_P51G_NP",null,null,null,null,null,2019,{"$f":"'1'!J12","v":":"},{"$f":"'1'!K12","v":0},{"$f":"'1'!L12","v":":"},{"$f":"'1'!M12","v":0},{"$f":"'1'!N12","v":":"},{"$f":"'1'!O12","v":0},{"$f":"'1'!P12","v":":"},{"$f":"'1'!Q12","v":0},{"$f":"'1'!R12","v":":"},{"$f":"'1'!S12","v":0},{"$f":"'1'!T12","v":":"},{"$f":"'1'!U12","v":0},{"$f":"'1'!V12","v":":"},{"$f":"'1'!W12","v":0},{"$f":"'1'!X12","v":":"},{"$f":"'1'!Y12","v":0},{"$f":"'1'!Z12","v":":"},{"$f":"'1'!AA12","v":0},{"$f":"'1'!AB12","v":":"},{"$f":"'1'!AC12","v":0},{"$f":"'1'!AD12","v":":"},{"$f":"'1'!AE12","v":0},{"$f":"'1'!AF12","v":":"},{"$f":"'1'!AG12","v":0},{"$f":"'1'!AH12","v":":"},{"$f":"'1'!AI12","v":0},{"$f":"'1'!AJ12","v":":"},{"$f":"'1'!AK12","v":0},":"]
["S13_S15","TOTAL","EPS_P51G_NP",null,null,null,null,null,2020,{"$f":"'1'!J13","v":":"},{"$f":"'1'!K13","v":0},{"$f":"'1'!L13","v":":"},{"$f":"'1'!M13","v":0},{"$f":"'1'!N13","v":":"},{"$f":"'1'!O13","v":0},{"$f":"'1'!P13","v":":"},{"$f":"'1'!Q13","v":0},{"$f":"'1'!R13","v":":"},{"$f":"'1'!S13","v":0},{"$f":"'1'!T13","v":":"},{"$f":"'1'!U13","v":0},{"$f":"'1'!V13","v":":"},{"$f":"'1'!W13","v":0},{"$f":"'1'!X13","v":":"},{"$f":"'1'!Y13","v":0},{"$f":"'1'!Z13","v":":"},{"$f":"'1'!AA13","v":0},{"$f":"'1'!AB13","v":":"},{"$f":"'1'!AC13","v":0},{"$f":"'1'!AD13","v":":"},{"$f":"'1'!AE13","v":0},{"$f":"'1'!AF13","v":":"},{"$f":"'1'!AG13","v":0},{"$f":"'1'!AH13","v":":"},{"$f":"'1'!AI13","v":0},{"$f":"'1'!AJ13","v":":"},{"$f":"'1'!AK13","v":0},":"]
["S13_S15","TOTAL","EPS_P51G_NP",null,null,null,null,null,2021,{"$f":"'1'!J14","v":":"},{"$f":"'1'!K14","v":0},{"$f":"'1'!L14","v":":"},{"$f":"'1'!M14","v":0},{"$f":"'1'!N14","v":":"},{"$f":"'1'!O14","v":0},{"$f":"'1'!P14","v":":"},{"$f":"'1'!Q14","v":0},{"$f":"'1'!R14","v":":"},{"$f":"'1'!S14","v":0},{"$f":"'1'!T14","v":":"},{"$f":"'1'!U14","v":0},{"$f":"'1'!V14","v":":"},{"$f":"'1'!W14","v":0},{"$f":"'1'!X14","v":":"},{"$f":"'1'!Y14","v":0},{"$f":"'1'!Z14","v":":"},{"$f":"'1'!AA14","v":0},{"$f":"'1'!AB14","v":":"},{"$f":"'1'!AC14","v":0},{"$f":"'1'!AD14","v":":"},{"$f":"'1'!AE14","v":0},{"$f":"'1'!AF14","v":":"},{"$f":"'1'!AG14","v":0},{"$f":"'1'!AH14","v":":"},{"$f":"'1'!AI14","v":0},{"$f":"'1'!AJ14","v":":"},{"$f":"'1'!AK14","v":0},":"]
["S13_S15","TOTAL","EPS_P51G_NP",null,null,null,null,null,2022,{"$f":"'1'!J15","v":":"},{"$f":"'1'!K15","v":0},{"$f":"'1'!L15","v":":"},{"$f":"'1'!M15","v":0},{"$f":"'1'!N15","v":":"},{"$f":"'1'!O15","v":0},{"$f":"'1'!P15","v":":"},{"$f":"'1'!Q15","v":0},{"$f":"'1'!R15","v":":"},{"$f":"'1'!S15","v":0},{"$f":"'1'!T15","v":":"},{"$f":"'1'!U15","v":0},{"$f":"'1'!V15","v":":"},{"$f":"'1'!W15","v":0},{"$f":"'1'!X15","v":":"},{"$f":"'1'!Y15","v":0},{"$f":"'1'!Z15","v":":"},{"$f":"'1'!AA15","v":0},{"$f":"'1'!AB15","v":":"},{"$f":"'1'!AC15","v":0},{"$f":"'1'!AD15","v":":"},{"$f":"'1'!AE15","v":0},{"$f":"'1'!AF15","v":":"},{"$f":"'1'!AG15","v":0},{"$f":"'1'!AH15","v":":"},{"$f":"'1'!AI15","v":0},{"$f":"'1'!AJ15","v":":"},{"$f":"'1'!AK15","v":0},":"]
["S13_S15","TOTAL","EPS_P51G_NP",null,null,null,null,null,2023,{"$f":"'1'!J16","v":":"},{"$f":"'1'!K16","v":0},{"$f":"'1'!L16","v":":"},{"$f":"'1'!M16","v":0},{"$f":"'1'!N16","v":":"},{"$f":"'1'!O16","v":0},{"$f":"'1'!P16","v":":"},{"$f":"'1'!Q16","v":0},{"$f":"'1'!R16","v":":"},{"$f":"'1'!S16","v":0},{"$f":"'1'!T16","v":":"},{"$f":"'1'!U16","v":0},{"$f":"'1'!V16","v":":"},{"$f":"'1'!W16","v":0},{"$f":"'1'!X16","v":":"},{"$f":"'1'!Y16","v":0},{"$f":"'1'!Z16","v":":"},{"$f":"'1'!AA16","v":0},{"$f":"'1'!AB16","v":":"},{"$f":"'1'!AC16","v":0},{"$f":"'1'!AD16","v":":"},{"$f":"'1'!AE16","v":0},{"$f":"'1'!AF16","v":":"},{"$f":"'1'!AG16","v":0},{"$f":"'1'!AH16","v":":"},{"$f":"'1'!AI16","v":0},{"$f":"'1'!AJ16","v":":"},{"$f":"'1'!AK16","v":0},":"]
["S13_S15","TOTAL","EPS_P51G_NP",null,null,null,null,null,2024,{"$f":"'1'!J17","v":":"},{"$f":"'1'!K17","v":0},{"$f":"'1'!L17","v":":"},{"$f":"'1'!M17","v":0},{"$f":"'1'!N17","v":":"},{"$f":"'1'!O17","v":0},{"$f":"'1'!P17","v":":"},{"$f":"'1'!Q17","v":0},{"$f":"'1'!R17","v":":"},{"$f":"'1'!S17","v":0},{"$f":"'1'!T17","v":":"},{"$f":"'1'!U17","v":0},{"$f":"'1'!V17","v":":"},{"$f":"'1'!W17","v":0},{"$f":"'1'!X17","v":":"},{"$f":"'1'!Y17","v":0},{"$f":"'1'!Z17","v":":"},{"$f":"'1'!AA17","v":0},{"$f":"'1'!AB17","v":":"},{"$f":"'1'!AC17","v":0},{"$f":"'1'!AD17","v":":"},{"$f":"'1'!AE17","v":0},{"$f":"'1'!AF17","v":":"},{"$f":"'1'!AG17","v":0},{"$f":"'1'!AH17","v":":"},{"$f":"'1'!AI17","v":0},{"$f":"'1'!AJ17","v":":"},{"$f":"'1'!AK17","v":0},":"]
["S13_S15","TOTAL","EPS_P51G_NP",null,null,null,null,null,2025,{"$f":"'1'!J18","v":":"},{"$f":"'1'!K18","v":0},{"$f":"'1'!L18","v":":"},{"$f":"'1'!M18","v":0},{"$f":"'1'!N18","v":":"},{"$f":"'1'!O18","v":0},{"$f":"'1'!P18","v":":"},{"$f":"'1'!Q18","v":0},{"$f":"'1'!R18","v":":"},{"$f":"'1'!S18","v":0},{"$f":"'1'!T18","v":":"},{"$f":"'1'!U18","v":0},{"$f":"'1'!V18","v":":"},{"$f":"'1'!W18","v":0},{"$f":"'1'!X18","v":":"},{"$f":"'1'!Y18","v":0},{"$f":"'1'!Z18","v":":"},{"$f":"'1'!AA18","v":0},{"$f":"'1'!AB18","v":":"},{"$f":"'1'!AC18","v":0},{"$f":"'1'!AD18","v":":"},{"$f":"'1'!AE18","v":0},{"$f":"'1'!AF18","v":":"},{"$f":"'1'!AG18","v":0},{"$f":"'1'!AH18","v":":"},{"$f":"'1'!AI18","v":0},{"$f":"'1'!AJ18","v":":"},{"$f":"'1'!AK18","v":0},":"]
["S13_S15","TOTAL","EPS_P51G_NP",null,null,null,null,null,2026,{"$f":"'1'!J19","v":":"},{"$f":"'1'!K19","v":0},{"$f":"'1'!L19","v":":"},{"$f":"'1'!M19","v":0},{"$f":"'1'!N19","v":":"},{"$f":"'1'!O19","v":0},{"$f":"'1'!P19","v":":"},{"$f":"'1'!Q19","v":0},{"$f":"'1'!R19","v":":"},{"$f":"'1'!S19","v":0},{"$f":"'1'!T19","v":":"},{"$f":"'1'!U19","v":0},{"$f":"'1'!V19","v":":"},{"$f":"'1'!W19","v":0},{"$f":"'1'!X19","v":":"},{"$f":"'1'!Y19","v":0},{"$f":"'1'!Z19","v":":"},{"$f":"'1'!AA19","v":0},{"$f":"'1'!AB19","v":":"},{"$f":"'1'!AC19","v":0},{"$f":"'1'!AD19","v":":"},{"$f":"'1'!AE19","v":0},{"$f":"'1'!AF19","v":":"},{"$f":"'1'!AG19","v":0},{"$f":"'1'!AH19","v":":"},{"$f":"'1'!AI19","v":0},{"$f":"'1'!AJ19","v":":"},{"$f":"'1'!AK19","v":0},":"]
["S13_S15","TOTAL","EPS_P51G_NP",null,null,null,null,null,2027,{"$f":"'1'!J20","v":":"},{"$f":"'1'!K20","v":0},{"$f":"'1'!L20","v":":"},{"$f":"'1'!M20","v":0},{"$f":"'1'!N20","v":":"},{"$f":"'1'!O20","v":0},{"$f":"'1'!P20","v":":"},{"$f":"'1'!Q20","v":0},{"$f":"'1'!R20","v":":"},{"$f":"'1'!S20","v":0},{"$f":"'1'!T20","v":":"},{"$f":"'1'!U20","v":0},{"$f":"'1'!V20","v":":"},{"$f":"'1'!W20","v":0},{"$f":"'1'!X20","v":":"},{"$f":"'1'!Y20","v":0},{"$f":"'1'!Z20","v":":"},{"$f":"'1'!AA20","v":0},{"$f":"'1'!AB20","v":":"},{"$f":"'1'!AC20","v":0},{"$f":"'1'!AD20","v":":"},{"$f":"'1'!AE20","v":0},{"$f":"'1'!AF20","v":":"},{"$f":"'1'!AG20","v":0},{"$f":"'1'!AH20","v":":"},{"$f":"'1'!AI20","v":0},{"$f":"'1'!AJ20","v":":"},{"$f":"'1'!AK20","v":0},":"]
["S13_S15","TOTAL","EPS_P51G_NP",null,null,null,null,null,2028,{"$f":"'1'!J21","v":":"},{"$f":"'1'!K21","v":0},{"$f":"'1'!L21","v":":"},{"$f":"'1'!M21","v":0},{"$f":"'1'!N21","v":":"},{"$f":"'1'!O21","v":0},{"$f":"'1'!P21","v":":"},{"$f":"'1'!Q21","v":0},{"$f":"'1'!R21","v":":"},{"$f":"'1'!S21","v":0},{"$f":"'1'!T21","v":":"},{"$f":"'1'!U21","v":0},{"$f":"'1'!V21","v":":"},{"$f":"'1'!W21","v":0},{"$f":"'1'!X21","v":":"},{"$f":"'1'!Y21","v":0},{"$f":"'1'!Z21","v":":"},{"$f":"'1'!AA21","v":0},{"$f":"'1'!AB21","v":":"},{"$f":"'1'!AC21","v":0},{"$f":"'1'!AD21","v":":"},{"$f":"'1'!AE21","v":0},{"$f":"'1'!AF21","v":":"},{"$f":"'1'!AG21","v":0},{"$f":"'1'!AH21","v":":"},{"$f":"'1'!AI21","v":0},{"$f":"'1'!AJ21","v":":"},{"$f":"'1'!AK21","v":0},":"]
["S13_S15","TOTAL","EPS_P51G_NP",null,null,null,null,null,2029,{"$f":"'1'!J22","v":":"},{"$f":"'1'!K22","v":0},{"$f":"'1'!L22","v":":"},{"$f":"'1'!M22","v":0},{"$f":"'1'!N22","v":":"},{"$f":"'1'!O22","v":0},{"$f":"'1'!P22","v":":"},{"$f":"'1'!Q22","v":0},{"$f":"'1'!R22","v":":"},{"$f":"'1'!S22","v":0},{"$f":"'1'!T22","v":":"},{"$f":"'1'!U22","v":0},{"$f":"'1'!V22","v":":"},{"$f":"'1'!W22","v":0},{"$f":"'1'!X22","v":":"},{"$f":"'1'!Y22","v":0},{"$f":"'1'!Z22","v":":"},{"$f":"'1'!AA22","v":0},{"$f":"'1'!AB22","v":":"},{"$f":"'1'!AC22","v":0},{"$f":"'1'!AD22","v":":"},{"$f":"'1'!AE22","v":0},{"$f":"'1'!AF22","v":":"},{"$f":"'1'!AG22","v":0},{"$f":"'1'!AH22","v":":"},{"$f":"'1'!AI22","v":0},{"$f":"'1'!AJ22","v":":"},{"$f":"'1'!AK22","v":0},":"]
["S13_S15","TOTAL","EPS_P51G_NP",null,null,null,null,null,2030,{"$f":"'1'!J23","v":":"},{"$f":"'1'!K23","v":0},{"$f":"'1'!L23","v":":"},{"$f":"'1'!M23","v":0},{"$f":"'1'!N23","v":":"},{"$f":"'1'!O23","v":0},{"$f":"'1'!P23","v":":"},{"$f":"'1'!Q23","v":0},{"$f":"'1'!R23","v":":"},{"$f":"'1'!S23","v":0},{"$f":"'1'!T23","v":":"},{"$f":"'1'!U23","v":0},{"$f":"'1'!V23","v":":"},{"$f":"'1'!W23","v":0},{"$f":"'1'!X23","v":":"},{"$f":"'1'!Y23","v":0},{"$f":"'1'!Z23","v":":"},{"$f":"'1'!AA23","v":0},{"$f":"'1'!AB23","v":":"},{"$f":"'1'!AC23","v":0},{"$f":"'1'!AD23","v":":"},{"$f":"'1'!AE23","v":0},{"$f":"'1'!AF23","v":":"},{"$f":"'1'!AG23","v":0},{"$f":"'1'!AH23","v":":"},{"$f":"'1'!AI23","v":0},{"$f":"'1'!AJ23","v":":"},{"$f":"'1'!AK23","v":0},":"]
["S13_S15","TOTAL","EPS_P51G_NP",null,null,null,null,null,2031,{"$f":"'1'!J24","v":":"},{"$f":"'1'!K24","v":0},{"$f":"'1'!L24","v":":"},{"$f":"'1'!M24","v":0},{"$f":"'1'!N24","v":":"},{"$f":"'1'!O24","v":0},{"$f":"'1'!P24","v":":"},{"$f":"'1'!Q24","v":0},{"$f":"'1'!R24","v":":"},{"$f":"'1'!S24","v":0},{"$f":"'1'!T24","v":":"},{"$f":"'1'!U24","v":0},{"$f":"'1'!V24","v":":"},{"$f":"'1'!W24","v":0},{"$f":"'1'!X24","v":":"},{"$f":"'1'!Y24","v":0},{"$f":"'1'!Z24","v":":"},{"$f":"'1'!AA24","v":0},{"$f":"'1'!AB24","v":":"},{"$f":"'1'!AC24","v":0},{"$f":"'1'!AD24","v":":"},{"$f":"'1'!AE24","v":0},{"$f":"'1'!AF24","v":":"},{"$f":"'1'!AG24","v":0},{"$f":"'1'!AH24","v":":"},{"$f":"'1'!AI24","v":0},{"$f":"'1'!AJ24","v":":"},{"$f":"'1'!AK24","v":0},":"]
["S13_S15","TOTAL","EP_P51G_CREP_ec",null,"( P51G_CREP_ec.1 ) Gross fixed capital formation  in cleaner and resource efficient products for non characteristic activities - EXTRA COST",null,null,null,2014,":",null,":",null,":",null,":",null,":",null,":",null,":",null,":",null,":",null,":",null,":",null,{"$f":"IF(COUNT(J25,N25,P25,R25,T25,V25,AD25)=7,SUM(J25,N25,P25,R25,T25,V25,AD25),\":\")","v":":"},null,":",null,":",null,":"]
["S13_S15","TOTAL","EP_P51G_CREP_ec",null,null,null,null,null,2015,":",null,":",null,":",null,":",null,":",null,":",null,":",null,":",null,":",null,":",null,":",null,{"$f":"IF(COUNT(J26,N26,P26,R26,T26,V26,AD26)=7,SUM(J26,N26,P26,R26,T26,V26,AD26),\":\")","v":":"},null,":",null,":",null,":"]
["S13_S15","TOTAL","EP_P51G_CREP_ec",null,null,null,null,null,2016,":",null,":",null,":",null,":",null,":",null,":",null,":",null,":",null,":",null,":",null,":",null,":",null,":",null,":",null,":"]
["S13_S15","TOTAL","EP_P51G_CREP_ec",null,null,null,null,null,2017,":",null,":",null,":",null,":",null,":",null,":",null,":",null,":",null,":",null,":",null,":",null,":",null,":",null,":",null,":"]
["S13_S15","TOTAL","EP_P51G_CREP_ec",null,null,null,null,null,2018,":",null,":",null,":",null,":",null,":",null,":",null,":",null,":",null,":",null,":",null,":",null,":",null,":",null,":",null,":"]
["S13_S15","TOTAL","EP_P51G_CREP_ec",null,null,null,null,null,2019,":",null,":",null,":",null,":",null,":",null,":",null,":",null,":",null,":",null,":",null,":",null,":",null,":",null,":",null,":"]
["S13_S15","TOTAL","EP_P51G_CREP_ec",null,null,null,null,null,2020,":",null,":",null,":",null,":",null,":",null,":",null,":",null,":",null,":",null,":",null,":",null,":",null,":",null,":",null,":"]
["S13_S15","TOTAL","EP_P51G_CREP_ec",null,null,null,null,null,2021,":",null,":",null,":",null,":",null,":",null,":",null,":",null,":",null,":",null,":",null,":",null,":",null,":",null,":",null,":"]
["S13_S15","TOTAL","EP_P51G_CREP_ec",null,null,null,null,null,2022,":",null,":",null,":",null,":",null,":",null,":",null,":",null,":",null,":",null,":",null,":",null,":",null,":",null,":",null,":"]
["S13_S15","TOTAL","EP_P51G_CREP_ec",null,null,null,null,null,2023,":",null,":",null,":",null,":",null,":",null,":",null,":",null,":",null,":",null,":",null,":",null,":",null,":",null,":",null,":"]
["S13_S15","TOTAL","EP_P51G_CREP_ec",null,null,null,null,null,2024,":",null,":",null,":",null,":",null,":",null,":",null,":",null,":",null,":",null,":",null,":",null,":",null,":",null,":",null,":"]
["S13_S15","TOTAL","EP_P51G_CREP_ec",null,null,null,null,null,2025,":",null,":",null,":",null,":",null,":",null,":",null,":",null,":",null,":",null,":",null,":",null,":",null,":",null,":",null,":"]
["S13_S15","TOTAL","EP_P51G_CREP_ec",null,null,null,null,null,2026,":",null,":",null,":",null,":",null,":",null,":",null,":",null,":",null,":",null,":",null,":",null,":",null,":",null,":",null,":"]
["S13_S15","TOTAL","EP_P51G_CREP_ec",null,null,null,null,null,2027,":",null,":",null,":",null,":",null,":",null,":",null,":",null,":",null,":",null,":",null,":",null,":",null,":",null,":",null,":"]
["S13_S15","TOTAL","EP_P51G_CREP_ec",null,null,null,null,null,2028,":",null,":",null,":",null,":",null,":",null,":",null,":",null,":",null,":",null,":",null,":",null,":",null,":",null,":",null,":"]
["S13_S15","TOTAL","EP_P51G_CREP_ec",null,null,null,null,null,2029,":",null,":",null,":",null,":",null,":",null,":",null,":",null,":",null,":",null,":",null,":",null,":",null,":",null,":",null,":"]
["S13_S15","TOTAL","EP_P51G_CREP_ec",null,null,null,null,null,2030,":",null,":",null,":",null,":",null,":",null,":",null,":",null,":",null,":",null,":",null,":",null,":",null,":",null,":",null,":"]
["S13_S15","TOTAL","EP_P51G_CREP_ec",null,null,null,null,null,2031,":",null,":",null,":",null,":",null,":",null,":",null,":",null,":",null,":",null,":",null,":",null,":",null,":",null,":",null,":"]
["S13_S15","TOTAL","EP_P51G_CREP_fc",null,"( P51G_CREP_fc.1 ) Gross fixed capital formation  in cleaner and resource efficient products for non characteristic activities -\nFULL COST",null,null,null,2014,":",null,":",null,":",null,":",null,":",null,":",null,":",null,":",null,":",null,":",null,":",null,":",null,":",null,":",null,":"]
["S13_S15","TOTAL","EP_P51G_CREP_fc",null,null,null,null,null,2015,":",null,":",null,":",null,":",null,":",null,":",null,":",null,":",null,":",null,":",null,":",null,":",null,":",null,":",null,":"]
["S13_S15","TOTAL","EP_P51G_CREP_fc",null,null,null,null,null,2016,":",null,":",null,":",null,":",null,":",null,":",null,":",null,":",null,":",null,":",null,":",null,":",null,":",null,":",null,":"]
["S13_S15","TOTAL","EP_P51G_CREP_fc",null,null,null,null,null,2017,":",null,":",null,":",null,":",null,":",null,":",null,":",null,":",null,":",null,":",null,":",null,":",null,":",null,":",null,":"]
["S13_S15","TOTAL","EP_P51G_CREP_fc",null,null,null,null,null,2018,":",null,":",null,":",null,":",null,":",null,":",null,":",null,":",null,":",null,":",null,":",null,":",null,":",null,":",null,":"]
["S13_S15","TOTAL","EP_P51G_CREP_fc",null,null,null,null,null,2019,":",null,":",null,":",null,":",null,":",null,":",null,":",null,":",null,":",null,":",null,":",null,":",null,":",null,":",null,":"]
["S13_S15","TOTAL","EP_P51G_CREP_fc",null,null,null,null,null,2020,":",null,":",null,":",null,":",null,":",null,":",null,":",null,":",null,":",null,":",null,":",null,":",null,":",null,":",null,":"]
["S13_S15","TOTAL","EP_P51G_CREP_fc",null,null,null,null,null,2021,":",null,":",null,":",null,":",null,":",null,":",null,":",null,":",null,":",null,":",null,":",null,":",null,":",null,":",null,":"]
["S13_S15","TOTAL","EP_P51G_CREP_fc",null,null,null,null,null,2022,":",null,":",null,":",null,":",null,":",null,":",null,":",null,":",null,":",null,":",null,":",null,":",null,":",null,":",null,":"]
["S13_S15","TOTAL","EP_P51G_CREP_fc",null,null,null,null,null,2023,":",null,":",null,":",null,":",null,":",null,":",null,":",null,":",null,":",null,":",null,":",null,":",null,":",null,":",null,":"]
["S13_S15","TOTAL","EP_P51G_CREP_fc",null,null,null,null,null,2024,":",null,":",null,":",null,":",null,":",null,":",null,":",null,":",null,":",null,":",null,":",null,":",null,":",null,":",null,":"]
["S13_S15","TOTAL","EP_P51G_CREP_fc",null,null,null,null,null,2025,":",null,":",null,":",null,":",null,":",null,":",null,":",null,":",null,":",null,":",null,":",null,":",null,":",null,":",null,":"]
["S13_S15","TOTAL","EP_P51G_CREP_fc",null,null,null,null,null,2026,":",null,":",null,":",null,":",null,":",null,":",null,":",null,":",null,":",null,":",null,":",null,":",null,":",null,":",null,":"]
["S13_S15","TOTAL","EP_P51G_CREP_fc",null,null,null,null,null,2027,":",null,":",null,":",null,":",null,":",null,":",null,":",null,":",null,":",null,":",null,":",null,":",null,":",null,":",null,":"]
["S13_S15","TOTAL","EP_P51G_CREP_fc",null,null,null,null,null,2028,":",null,":",null,":",null,":",null,":",null,":",null,":",null,":",null,":",null,":",null,":",null,":",null,":",null,":",null,":"]
["S13_S15","TOTAL","EP_P51G_CREP_fc",null,null,null,null,null,2029,":",null,":",null,":",null,":",null,":",null,":",null,":",null,":",null,":",null,":",null,":",null,":",null,":",null,":",null,":"]
["S13_S15","TOTAL","EP_P51G_CREP_fc",null,null,null,null,null,2030,":",null,":",null,":",null,":",null,":",null,":",null,":",null,":",null,":",null,":",null,":",null,":",null,":",null,":",null,":"]
["S13_S15","TOTAL","EP_P51G_CREP_fc",null,null,null,null,null,2031,":",null,":",null,":",null,":",null,":",null,":",null,":",null,":",null,":",null,":",null,":",null,":",null,":",null,":",null,":"]

{"sheet":"8.2","index":45,"n_rows":60,"n_cols":38,"rows_kept":60,"cut":false,"hidden":false,"merged":[[0,4,0,8],[1,4,1,8],[1,9,1,32],[1,33,1,38],[2,9,2,32],[2,33,2,38],[3,35,4,36],[3,37,4,38],[3,21,4,22],[3,23,4,24],[3,25,4,26],[3,27,4,28],[3,29,4,30],[24,4,24,7],[3,31,4,32],[3,33,4,34],[3,9,4,10],[3,11,4,12],[3,13,4,14],[3,15,4,16],[3,17,4,18],[3,19,4,20],[4,4,4,7],[6,4,6,7],[7,4,7,7],[8,4,8,7],[9,4,9,7],[45,4,45,7],[25,4,25,7],[26,4,26,7],[27,4,27,7],[42,4,42,7],[43,4,43,7],[44,4,44,7]]}
[null,null,null,null,{"$f":"Cover!B21","v":"QUESTIONNAIRE ON ENVIRONMENTAL PROTECTION EXPENDITURE ACCOUNTS"},null,null,null,null,"GFCF  - Corporations as specialist and secondary producers",null,null,null,null,null,null,null,null,null,null,null,null,null,null,null,null,null,null,null,null,null,null,null,"GFCF  - Corporations as specialist and secondary producers"]
[null,null,null,null,{"$f":"E1","v":"QUESTIONNAIRE ON ENVIRONMENTAL PROTECTION EXPENDITURE ACCOUNTS"},null,null,null,null,{"$f":"J1","v":"GFCF  - Corporations as specialist and secondary producers"},null,null,null,null,null,null,null,null,null,null,null,null,null,null,null,null,null,null,null,null,null,null,null,{"$f":"AH1","v":"GFCF  - Corporations as specialist and secondary producers"}]
[null,null,null,null,null,null,null,null,null,"Figures calculated from information available in the questionnaire",null,null,null,null,null,null,null,null,null,null,null,null,null,null,null,null,null,null,null,null,null,null,null,"Figures calculated from information available in the questionnaire"]
[null,null,null,null,"Country/Unit",{"$f":"IFERROR(Cover!C16,\"\")","v":""},{"$f":"\"\"&Cover!B16","v":""},null,{"$f":"Cover!B17","v":"Million units of national currency"},"CEPA 1",null,"of which CEPA 1.1.2 and 1.2.2 Climate change",null,"CEPA 2",null,"CEPA 3",null,"CEPA 4",null,"CEPA 5",null,"CEPA 6",null,"CEPA 7",null,"CEPA 8",null,"CEPA 9",null,"Sum of CEPA 7+8+9",null,"TOTAL CEPA",null," CReMA\n11B + 13C + 14 \n(Materials recovery)",null,"CReMA13A (Production of energy  from renewable sources)",null,"CReMA13B \n(Energy efficiency and savings)"]
[null,null,null,null,"Expenditure",null,null,null,"Year",null,null,null,null,null,null,null,null,null,null,null,null,null,null,null,null,null,null,null,null,null,null,"Landscape",null,"Landscape",null,"Landscape",null,"Landscape"]
[null,null,null,null,null,null,null,null,null,"CEPA1",null,"CEPA112_122",null,"CEPA2",null,"CEPA3",null,"CEPA4",null,"CEPA5",null,"CEPA6",null,"CEPA7",null,"CEPA8",null,"CEPA9",null,"CEPA7-9",null,"TOT_CEPA",null,"CREMA 11B_13C_14",null,"CREMA 13A",null,"CREMA 13B"]
["S11_S12","EP_SPE","EPS_P51G_NP",null,"( P51G_NP.2 ) Gross fixed capital formation and acquisition less disposals of non-financial non-produced assets (for characteristic activities)",null,null,null,2014,{"$f":"'2'!J7","v":":"},{"$f":"'2'!K7","v":0},{"$f":"'2'!L7","v":":"},{"$f":"'2'!M7","v":0},{"$f":"'2'!N7","v":":"},{"$f":"'2'!O7","v":0},{"$f":"'2'!P7","v":":"},{"$f":"'2'!Q7","v":0},{"$f":"'2'!R7","v":":"},{"$f":"'2'!S7","v":0},{"$f":"'2'!T7","v":":"},{"$f":"'2'!U7","v":0},{"$f":"'2'!V7","v":":"},{"$f":"'2'!W7","v":0},{"$f":"'2'!X7","v":":"},{"$f":"'2'!Y7","v":0},{"$f":"'2'!Z7","v":":"},{"$f":"'2'!AA7","v":0},{"$f":"'2'!AB7","v":":"},{"$f":"'2'!AC7","v":0},{"$f":"'2'!AD7","v":":"},{"$f":"'2'!AE7","v":0},{"$f":"'2'!AF7","v":":"},{"$f":"'2'!AG7","v":0},{"$f":"'2'!AH7","v":":"},{"$f":"'2'!AI7","v":0},{"$f":"'2'!AJ7","v":":"},{"$f":"'2'!AK7","v":0},":"]
["S11_S12","EP_SPE","EPS_P51G_NP",null,null,null,null,null,2015,{"$f":"'2'!J8","v":":"},{"$f":"'2'!K8","v":0},{"$f":"'2'!L8","v":":"},{"$f":"'2'!M8","v":0},{"$f":"'2'!N8","v":":"},{"$f":"'2'!O8","v":0},{"$f":"'2'!P8","v":":"},{"$f":"'2'!Q8","v":0},{"$f":"'2'!R8","v":":"},{"$f":"'2'!S8","v":0},{"$f":"'2'!T8","v":":"},{"$f":"'2'!U8","v":0},{"$f":"'2'!V8","v":":"},{"$f":"'2'!W8","v":0},{"$f":"'2'!X8","v":":"},{"$f":"'2'!Y8","v":0},{"$f":"'2'!Z8","v":":"},{"$f":"'2'!AA8","v":0},{"$f":"'2'!AB8","v":":"},{"$f":"'2'!AC8","v":0},{"$f":"'2'!AD8","v":":"},{"$f":"'2'!AE8","v":0},{"$f":"'2'!AF8","v":":"},{"$f":"'2'!AG8","v":0},{"$f":"'2'!AH8","v":":"},{"$f":"'2'!AI8","v":0},{"$f":"'2'!AJ8","v":":"},{"$f":"'2'!AK8","v":0},":"]
["S11_S12","EP_SPE","EPS_P51G_NP",null,null,null,null,null,2016,{"$f":"'2'!J9","v":":"},{"$f":"'2'!K9","v":0},{"$f":"'2'!L9","v":":"},{"$f":"'2'!M9","v":0},{"$f":"'2'!N9","v":":"},{"$f":"'2'!O9","v":0},{"$f":"'2'!P9","v":":"},{"$f":"'2'!Q9","v":0},{"$f":"'2'!R9","v":":"},{"$f":"'2'!S9","v":0},{"$f":"'2'!T9","v":":"},{"$f":"'2'!U9","v":0},{"$f":"'2'!V9","v":":"},{"$f":"'2'!W9","v":0},{"$f":"'2'!X9","v":":"},{"$f":"'2'!Y9","v":0},{"$f":"'2'!Z9","v":":"},{"$f":"'2'!AA9","v":0},{"$f":"'2'!AB9","v":":"},{"$f":"'2'!AC9","v":0},{"$f":"'2'!AD9","v":":"},{"$f":"'2'!AE9","v":0},{"$f":"'2'!AF9","v":":"},{"$f":"'2'!AG9","v":0},{"$f":"'2'!AH9","v":":"},{"$f":"'2'!AI9","v":0},{"$f":"'2'!AJ9","v":":"},{"$f":"'2'!AK9","v":0},":"]
["S11_S12","EP_SPE","EPS_P51G_NP",null,null,null,null,null,2017,{"$f":"'2'!J10","v":":"},{"$f":"'2'!K10","v":0},{"$f":"'2'!L10","v":":"},{"$f":"'2'!M10","v":0},{"$f":"'2'!N10","v":":"},{"$f":"'2'!O10","v":0},{"$f":"'2'!P10","v":":"},{"$f":"'2'!Q10","v":0},{"$f":"'2'!R10","v":":"},{"$f":"'2'!S10","v":0},{"$f":"'2'!T10","v":":"},{"$f":"'2'!U10","v":0},{"$f":"'2'!V10","v":":"},{"$f":"'2'!W10","v":0},{"$f":"'2'!X10","v":":"},{"$f":"'2'!Y10","v":0},{"$f":"'2'!Z10","v":":"},{"$f":"'2'!AA10","v":0},{"$f":"'2'!AB10","v":":"},{"$f":"'2'!AC10","v":0},{"$f":"'2'!AD10","v":":"},{"$f":"'2'!AE10","v":0},{"$f":"'2'!AF10","v":":"},{"$f":"'2'!AG10","v":0},{"$f":"'2'!AH10","v":":"},{"$f":"'2'!AI10","v":0},{"$f":"'2'!AJ10","v":":"},{"$f":"'2'!AK10","v":0},":"]
["S11_S12","EP_SPE","EPS_P51G_NP",null,null,null,null,null,2018,{"$f":"'2'!J11","v":":"},{"$f":"'2'!K11","v":0},{"$f":"'2'!L11","v":":"},{"$f":"'2'!M11","v":0},{"$f":"'2'!N11","v":":"},{"$f":"'2'!O11","v":0},{"$f":"'2'!P11","v":":"},{"$f":"'2'!Q11","v":0},{"$f":"'2'!R11","v":":"},{"$f":"'2'!S11","v":0},{"$f":"'2'!T11","v":":"},{"$f":"'2'!U11","v":0},{"$f":"'2'!V11","v":":"},{"$f":"'2'!W11","v":0},{"$f":"'2'!X11","v":":"},{"$f":"'2'!Y11","v":0},{"$f":"'2'!Z11","v":":"},{"$f":"'2'!AA11","v":0},{"$f":"'2'!AB11","v":":"},{"$f":"'2'!AC11","v":0},{"$f":"'2'!AD11","v":":"},{"$f":"'2'!AE11","v":0},{"$f":"'2'!AF11","v":":"},{"$f":"'2'!AG11","v":0},{"$f":"'2'!AH11","v":":"},{"$f":"'2'!AI11","v":0},{"$f":"'2'!AJ11","v":":"},{"$f":"'2'!AK11","v":0},":"]
["S11_S12","EP_SPE","EPS_P51G_NP",null,null,null,null,null,2019,{"$f":"'2'!J12","v":":"},{"$f":"'2'!K12","v":0},{"$f":"'2'!L12","v":":"},{"$f":"'2'!M12","v":0},{"$f":"'2'!N12","v":":"},{"$f":"'2'!O12","v":0},{"$f":"'2'!P12","v":":"},{"$f":"'2'!Q12","v":0},{"$f":"'2'!R12","v":":"},{"$f":"'2'!S12","v":0},{"$f":"'2'!T12","v":":"},{"$f":"'2'!U12","v":0},{"$f":"'2'!V12","v":":"},{"$f":"'2'!W12","v":0},{"$f":"'2'!X12","v":":"},{"$f":"'2'!Y12","v":0},{"$f":"'2'!Z12","v":":"},{"$f":"'2'!AA12","v":0},{"$f":"'2'!AB12","v":":"},{"$f":"'2'!AC12","v":0},{"$f":"'2'!AD12","v":":"},{"$f":"'2'!AE12","v":0},{"$f":"'2'!AF12","v":":"},{"$f":"'2'!AG12","v":0},{"$f":"'2'!AH12","v":":"},{"$f":"'2'!AI12","v":0},{"$f":"'2'!AJ12","v":":"},{"$f":"'2'!AK12","v":0},":"]
["S11_S12","EP_SPE","EPS_P51G_NP",null,null,null,null,null,2020,{"$f":"'2'!J13","v":":"},{"$f":"'2'!K13","v":0},{"$f":"'2'!L13","v":":"},{"$f":"'2'!M13","v":0},{"$f":"'2'!N13","v":":"},{"$f":"'2'!O13","v":0},{"$f":"'2'!P13","v":":"},{"$f":"'2'!Q13","v":0},{"$f":"'2'!R13","v":":"},{"$f":"'2'!S13","v":0},{"$f":"'2'!T13","v":":"},{"$f":"'2'!U13","v":0},{"$f":"'2'!V13","v":":"},{"$f":"'2'!W13","v":0},{"$f":"'2'!X13","v":":"},{"$f":"'2'!Y13","v":0},{"$f":"'2'!Z13","v":":"},{"$f":"'2'!AA13","v":0},{"$f":"'2'!AB13","v":":"},{"$f":"'2'!AC13","v":0},{"$f":"'2'!AD13","v":":"},{"$f":"'2'!AE13","v":0},{"$f":"'2'!AF13","v":":"},{"$f":"'2'!AG13","v":0},{"$f":"'2'!AH13","v":":"},{"$f":"'2'!AI13","v":0},{"$f":"'2'!AJ13","v":":"},{"$f":"'2'!AK13","v":0},":"]
["S11_S12","EP_SPE","EPS_P51G_NP",null,null,null,null,null,2021,{"$f":"'2'!J14","v":":"},{"$f":"'2'!K14","v":0},{"$f":"'2'!L14","v":":"},{"$f":"'2'!M14","v":0},{"$f":"'2'!N14","v":":"},{"$f":"'2'!O14","v":0},{"$f":"'2'!P14","v":":"},{"$f":"'2'!Q14","v":0},{"$f":"'2'!R14","v":":"},{"$f":"'2'!S14","v":0},{"$f":"'2'!T14","v":":"},{"$f":"'2'!U14","v":0},{"$f":"'2'!V14","v":":"},{"$f":"'2'!W14","v":0},{"$f":"'2'!X14","v":":"},{"$f":"'2'!Y14","v":0},{"$f":"'2'!Z14","v":":"},{"$f":"'2'!AA14","v":0},{"$f":"'2'!AB14","v":":"},{"$f":"'2'!AC14","v":0},{"$f":"'2'!AD14","v":":"},{"$f":"'2'!AE14","v":0},{"$f":"'2'!AF14","v":":"},{"$f":"'2'!AG14","v":0},{"$f":"'2'!AH14","v":":"},{"$f":"'2'!AI14","v":0},{"$f":"'2'!AJ14","v":":"},{"$f":"'2'!AK14","v":0},":"]
["S11_S12","EP_SPE","EPS_P51G_NP",null,null,null,null,null,2022,{"$f":"'2'!J15","v":":"},{"$f":"'2'!K15","v":0},{"$f":"'2'!L15","v":":"},{"$f":"'2'!M15","v":0},{"$f":"'2'!N15","v":":"},{"$f":"'2'!O15","v":0},{"$f":"'2'!P15","v":":"},{"$f":"'2'!Q15","v":0},{"$f":"'2'!R15","v":":"},{"$f":"'2'!S15","v":0},{"$f":"'2'!T15","v":":"},{"$f":"'2'!U15","v":0},{"$f":"'2'!V15","v":":"},{"$f":"'2'!W15","v":0},{"$f":"'2'!X15","v":":"},{"$f":"'2'!Y15","v":0},{"$f":"'2'!Z15","v":":"},{"$f":"'2'!AA15","v":0},{"$f":"'2'!AB15","v":":"},{"$f":"'2'!AC15","v":0},{"$f":"'2'!AD15","v":":"},{"$f":"'2'!AE15","v":0},{"$f":"'2'!AF15","v":":"},{"$f":"'2'!AG15","v":0},{"$f":"'2'!AH15","v":":"},{"$f":"'2'!AI15","v":0},{"$f":"'2'!AJ15","v":":"},{"$f":"'2'!AK15","v":0},":"]
["S11_S12","EP_SPE","EPS_P51G_NP",null,null,null,null,null,2023,{"$f":"'2'!J16","v":":"},{"$f":"'2'!K16","v":0},{"$f":"'2'!L16","v":":"},{"$f":"'2'!M16","v":0},{"$f":"'2'!N16","v":":"},{"$f":"'2'!O16","v":0},{"$f":"'2'!P16","v":":"},{"$f":"'2'!Q16","v":0},{"$f":"'2'!R16","v":":"},{"$f":"'2'!S16","v":0},{"$f":"'2'!T16","v":":"},{"$f":"'2'!U16","v":0},{"$f":"'2'!V16","v":":"},{"$f":"'2'!W16","v":0},{"$f":"'2'!X16","v":":"},{"$f":"'2'!Y16","v":0},{"$f":"'2'!Z16","v":":"},{"$f":"'2'!AA16","v":0},{"$f":"'2'!AB16","v":":"},{"$f":"'2'!AC16","v":0},{"$f":"'2'!AD16","v":":"},{"$f":"'2'!AE16","v":0},{"$f":"'2'!AF16","v":":"},{"$f":"'2'!AG16","v":0},{"$f":"'2'!AH16","v":":"},{"$f":"'2'!AI16","v":0},{"$f":"'2'!AJ16","v":":"},{"$f":"'2'!AK16","v":0},":"]
["S11_S12","EP_SPE","EPS_P51G_NP",null,null,null,null,null,2024,{"$f":"'2'!J17","v":":"},{"$f":"'2'!K17","v":0},{"$f":"'2'!L17","v":":"},{"$f":"'2'!M17","v":0},{"$f":"'2'!N17","v":":"},{"$f":"'2'!O17","v":0},{"$f":"'2'!P17","v":":"},{"$f":"'2'!Q17","v":0},{"$f":"'2'!R17","v":":"},{"$f":"'2'!S17","v":0},{"$f":"'2'!T17","v":":"},{"$f":"'2'!U17","v":0},{"$f":"'2'!V17","v":":"},{"$f":"'2'!W17","v":0},{"$f":"'2'!X17","v":":"},{"$f":"'2'!Y17","v":0},{"$f":"'2'!Z17","v":":"},{"$f":"'2'!AA17","v":0},{"$f":"'2'!AB17","v":":"},{"$f":"'2'!AC17","v":0},{"$f":"'2'!AD17","v":":"},{"$f":"'2'!AE17","v":0},{"$f":"'2'!AF17","v":":"},{"$f":"'2'!AG17","v":0},{"$f":"'2'!AH17","v":":"},{"$f":"'2'!AI17","v":0},{"$f":"'2'!AJ17","v":":"},{"$f":"'2'!AK17","v":0},":"]
["S11_S12","EP_SPE","EPS_P51G_NP",null,null,null,null,null,2025,{"$f":"'2'!J18","v":":"},{"$f":"'2'!K18","v":0},{"$f":"'2'!L18","v":":"},{"$f":"'2'!M18","v":0},{"$f":"'2'!N18","v":":"},{"$f":"'2'!O18","v":0},{"$f":"'2'!P18","v":":"},{"$f":"'2'!Q18","v":0},{"$f":"'2'!R18","v":":"},{"$f":"'2'!S18","v":0},{"$f":"'2'!T18","v":":"},{"$f":"'2'!U18","v":0},{"$f":"'2'!V18","v":":"},{"$f":"'2'!W18","v":0},{"$f":"'2'!X18","v":":"},{"$f":"'2'!Y18","v":0},{"$f":"'2'!Z18","v":":"},{"$f":"'2'!AA18","v":0},{"$f":"'2'!AB18","v":":"},{"$f":"'2'!AC18","v":0},{"$f":"'2'!AD18","v":":"},{"$f":"'2'!AE18","v":0},{"$f":"'2'!AF18","v":":"},{"$f":"'2'!AG18","v":0},{"$f":"'2'!AH18","v":":"},{"$f":"'2'!AI18","v":0},{"$f":"'2'!AJ18","v":":"},{"$f":"'2'!AK18","v":0},":"]
["S11_S12","EP_SPE","EPS_P51G_NP",null,null,null,null,null,2026,{"$f":"'2'!J19","v":":"},{"$f":"'2'!K19","v":0},{"$f":"'2'!L19","v":":"},{"$f":"'2'!M19","v":0},{"$f":"'2'!N19","v":":"},{"$f":"'2'!O19","v":0},{"$f":"'2'!P19","v":":"},{"$f":"'2'!Q19","v":0},{"$f":"'2'!R19","v":":"},{"$f":"'2'!S19","v":0},{"$f":"'2'!T19","v":":"},{"$f":"'2'!U19","v":0},{"$f":"'2'!V19","v":":"},{"$f":"'2'!W19","v":0},{"$f":"'2'!X19","v":":"},{"$f":"'2'!Y19","v":0},{"$f":"'2'!Z19","v":":"},{"$f":"'2'!AA19","v":0},{"$f":"'2'!AB19","v":":"},{"$f":"'2'!AC19","v":0},{"$f":"'2'!AD19","v":":"},{"$f":"'2'!AE19","v":0},{"$f":"'2'!AF19","v":":"},{"$f":"'2'!AG19","v":0},{"$f":"'2'!AH19","v":":"},{"$f":"'2'!AI19","v":0},{"$f":"'2'!AJ19","v":":"},{"$f":"'2'!AK19","v":0},":"]
["S11_S12","EP_SPE","EPS_P51G_NP",null,null,null,null,null,2027,{"$f":"'2'!J20","v":":"},{"$f":"'2'!K20","v":0},{"$f":"'2'!L20","v":":"},{"$f":"'2'!M20","v":0},{"$f":"'2'!N20","v":":"},{"$f":"'2'!O20","v":0},{"$f":"'2'!P20","v":":"},{"$f":"'2'!Q20","v":0},{"$f":"'2'!R20","v":":"},{"$f":"'2'!S20","v":0},{"$f":"'2'!T20","v":":"},{"$f":"'2'!U20","v":0},{"$f":"'2'!V20","v":":"},{"$f":"'2'!W20","v":0},{"$f":"'2'!X20","v":":"},{"$f":"'2'!Y20","v":0},{"$f":"'2'!Z20","v":":"},{"$f":"'2'!AA20","v":0},{"$f":"'2'!AB20","v":":"},{"$f":"'2'!AC20","v":0},{"$f":"'2'!AD20","v":":"},{"$f":"'2'!AE20","v":0},{"$f":"'2'!AF20","v":":"},{"$f":"'2'!AG20","v":0},{"$f":"'2'!AH20","v":":"},{"$f":"'2'!AI20","v":0},{"$f":"'2'!AJ20","v":":"},{"$f":"'2'!AK20","v":0},":"]
["S11_S12","EP_SPE","EPS_P51G_NP",null,null,null,null,null,2028,{"$f":"'2'!J21","v":":"},{"$f":"'2'!K21","v":0},{"$f":"'2'!L21","v":":"},{"$f":"'2'!M21","v":0},{"$f":"'2'!N21","v":":"},{"$f":"'2'!O21","v":0},{"$f":"'2'!P21","v":":"},{"$f":"'2'!Q21","v":0},{"$f":"'2'!R21","v":":"},{"$f":"'2'!S21","v":0},{"$f":"'2'!T21","v":":"},{"$f":"'2'!U21","v":0},{"$f":"'2'!V21","v":":"},{"$f":"'2'!W21","v":0},{"$f":"'2'!X21","v":":"},{"$f":"'2'!Y21","v":0},{"$f":"'2'!Z21","v":":"},{"$f":"'2'!AA21","v":0},{"$f":"'2'!AB21","v":":"},{"$f":"'2'!AC21","v":0},{"$f":"'2'!AD21","v":":"},{"$f":"'2'!AE21","v":0},{"$f":"'2'!AF21","v":":"},{"$f":"'2'!AG21","v":0},{"$f":"'2'!AH21","v":":"},{"$f":"'2'!AI21","v":0},{"$f":"'2'!AJ21","v":":"},{"$f":"'2'!AK21","v":0},":"]
["S11_S12","EP_SPE","EPS_P51G_NP",null,null,null,null,null,2029,{"$f":"'2'!J22","v":":"},{"$f":"'2'!K22","v":0},{"$f":"'2'!L22","v":":"},{"$f":"'2'!M22","v":0},{"$f":"'2'!N22","v":":"},{"$f":"'2'!O22","v":0},{"$f":"'2'!P22","v":":"},{"$f":"'2'!Q22","v":0},{"$f":"'2'!R22","v":":"},{"$f":"'2'!S22","v":0},{"$f":"'2'!T22","v":":"},{"$f":"'2'!U22","v":0},{"$f":"'2'!V22","v":":"},{"$f":"'2'!W22","v":0},{"$f":"'2'!X22","v":":"},{"$f":"'2'!Y22","v":0},{"$f":"'2'!Z22","v":":"},{"$f":"'2'!AA22","v":0},{"$f":"'2'!AB22","v":":"},{"$f":"'2'!AC22","v":0},{"$f":"'2'!AD22","v":":"},{"$f":"'2'!AE22","v":0},{"$f":"'2'!AF22","v":":"},{"$f":"'2'!AG22","v":0},{"$f":"'2'!AH22","v":":"},{"$f":"'2'!AI22","v":0},{"$f":"'2'!AJ22","v":":"},{"$f":"'2'!AK22","v":0},":"]
["S11_S12","EP_SPE","EPS_P51G_NP",null,null,null,null,null,2030,{"$f":"'2'!J23","v":":"},{"$f":"'2'!K23","v":0},{"$f":"'2'!L23","v":":"},{"$f":"'2'!M23","v":0},{"$f":"'2'!N23","v":":"},{"$f":"'2'!O23","v":0},{"$f":"'2'!P23","v":":"},{"$f":"'2'!Q23","v":0},{"$f":"'2'!R23","v":":"},{"$f":"'2'!S23","v":0},{"$f":"'2'!T23","v":":"},{"$f":"'2'!U23","v":0},{"$f":"'2'!V23","v":":"},{"$f":"'2'!W23","v":0},{"$f":"'2'!X23","v":":"},{"$f":"'2'!Y23","v":0},{"$f":"'2'!Z23","v":":"},{"$f":"'2'!AA23","v":0},{"$f":"'2'!AB23","v":":"},{"$f":"'2'!AC23","v":0},{"$f":"'2'!AD23","v":":"},{"$f":"'2'!AE23","v":0},{"$f":"'2'!AF23","v":":"},{"$f":"'2'!AG23","v":0},{"$f":"'2'!AH23","v":":"},{"$f":"'2'!AI23","v":0},{"$f":"'2'!AJ23","v":":"},{"$f":"'2'!AK23","v":0},":"]
["S11_S12","EP_SPE","EPS_P51G_NP",null,null,null,null,null,2031,{"$f":"'2'!J24","v":":"},{"$f":"'2'!K24","v":0},{"$f":"'2'!L24","v":":"},{"$f":"'2'!M24","v":0},{"$f":"'2'!N24","v":":"},{"$f":"'2'!O24","v":0},{"$f":"'2'!P24","v":":"},{"$f":"'2'!Q24","v":0},{"$f":"'2'!R24","v":":"},{"$f":"'2'!S24","v":0},{"$f":"'2'!T24","v":":"},{"$f":"'2'!U24","v":0},{"$f":"'2'!V24","v":":"},{"$f":"'2'!W24","v":0},{"$f":"'2'!X24","v":":"},{"$f":"'2'!Y24","v":0},{"$f":"'2'!Z24","v":":"},{"$f":"'2'!AA24","v":0},{"$f":"'2'!AB24","v":":"},{"$f":"'2'!AC24","v":0},{"$f":"'2'!AD24","v":":"},{"$f":"'2'!AE24","v":0},{"$f":"'2'!AF24","v":":"},{"$f":"'2'!AG24","v":0},{"$f":"'2'!AH24","v":":"},{"$f":"'2'!AI24","v":0},{"$f":"'2'!AJ24","v":":"},{"$f":"'2'!AK24","v":0},":"]
["S11_S12","EP_SPE","EP_P51G_CREP_ec",null,"( P51G_CREP_ec.2 ) Gross fixed capital formation  in cleaner and resource efficient products for non characteristic activities - EXTRA COST",null,null,null,2014,":",null,":",null,":",null,":",null,":",null,":",null,":",null,":",null,":",null,":",null,":",null,{"$f":"IF(COUNT(J25,N25,P25,R25,T25,V25,AD25)=7,SUM(J25,N25,P25,R25,T25,V25,AD25),\":\")","v":":"},null,":",null,":",null,":"]
["S11_S12","EP_SPE","EP_P51G_CREP_ec",null,null,null,null,null,2015,":",null,":",null,":",null,":",null,":",null,":",null,":",null,":",null,":",null,":",null,":",null,{"$f":"IF(COUNT(J26,N26,P26,R26,T26,V26,AD26)=7,SUM(J26,N26,P26,R26,T26,V26,AD26),\":\")","v":":"},null,":",null,":",null,":"]
["S11_S12","EP_SPE","EP_P51G_CREP_ec",null,null,null,null,null,2016,":",null,":",null,":",null,":",null,":",null,":",null,":",null,":",null,":",null,":",null,":",null,":",null,":",null,":",null,":"]
["S11_S12","EP_SPE","EP_P51G_CREP_ec",null,null,null,null,null,2017,":",null,":",null,":",null,":",null,":",null,":",null,":",null,":",null,":",null,":",null,":",null,":",null,":",null,":",null,":"]
["S11_S12","EP_SPE","EP_P51G_CREP_ec",null,null,null,null,null,2018,":",null,":",null,":",null,":",null,":",null,":",null,":",null,":",null,":",null,":",null,":",null,":",null,":",null,":",null,":"]
["S11_S12","EP_SPE","EP_P51G_CREP_ec",null,null,null,null,null,2019,":",null,":",null,":",null,":",null,":",null,":",null,":",null,":",null,":",null,":",null,":",null,":",null,":",null,":",null,":"]
["S11_S12","EP_SPE","EP_P51G_CREP_ec",null,null,null,null,null,2020,":",null,":",null,":",null,":",null,":",null,":",null,":",null,":",null,":",null,":",null,":",null,":",null,":",null,":",null,":"]
["S11_S12","EP_SPE","EP_P51G_CREP_ec",null,null,null,null,null,2021,":",null,":",null,":",null,":",null,":",null,":",null,":",null,":",null,":",null,":",null,":",null,":",null,":",null,":",null,":"]
["S11_S12","EP_SPE","EP_P51G_CREP_ec",null,null,null,null,null,2022,":",null,":",null,":",null,":",null,":",null,":",null,":",null,":",null,":",null,":",null,":",null,":",null,":",null,":",null,":"]
["S11_S12","EP_SPE","EP_P51G_CREP_ec",null,null,null,null,null,2023,":",null,":",null,":",null,":",null,":",null,":",null,":",null,":",null,":",null,":",null,":",null,":",null,":",null,":",null,":"]
["S11_S12","EP_SPE","EP_P51G_CREP_ec",null,null,null,null,null,2024,":",null,":",null,":",null,":",null,":",null,":",null,":",null,":",null,":",null,":",null,":",null,":",null,":",null,":",null,":"]
["S11_S12","EP_SPE","EP_P51G_CREP_ec",null,null,null,null,null,2025,":",null,":",null,":",null,":",null,":",null,":",null,":",null,":",null,":",null,":",null,":",null,":",null,":",null,":",null,":"]
["S11_S12","EP_SPE","EP_P51G_CREP_ec",null,null,null,null,null,2026,":",null,":",null,":",null,":",null,":",null,":",null,":",null,":",null,":",null,":",null,":",null,":",null,":",null,":",null,":"]
["S11_S12","EP_SPE","EP_P51G_CREP_ec",null,null,null,null,null,2027,":",null,":",null,":",null,":",null,":",null,":",null,":",null,":",null,":",null,":",null,":",null,":",null,":",null,":",null,":"]
["S11_S12","EP_SPE","EP_P51G_CREP_ec",null,null,null,null,null,2028,":",null,":",null,":",null,":",null,":",null,":",null,":",null,":",null,":",null,":",null,":",null,":",null,":",null,":",null,":"]
["S11_S12","EP_SPE","EP_P51G_CREP_ec",null,null,null,null,null,2029,":",null,":",null,":",null,":",null,":",null,":",null,":",null,":",null,":",null,":",null,":",null,":",null,":",null,":",null,":"]
["S11_S12","EP_SPE","EP_P51G_CREP_ec",null,null,null,null,null,2030,":",null,":",null,":",null,":",null,":",null,":",null,":",null,":",null,":",null,":",null,":",null,":",null,":",null,":",null,":"]
["S11_S12","EP_SPE","EP_P51G_CREP_ec",null,null,null,null,null,2031,":",null,":",null,":",null,":",null,":",null,":",null,":",null,":",null,":",null,":",null,":",null,":",null,":",null,":",null,":"]
["S11_S12","EP_SPE","EP_P51G_CREP_fc",null,"( P51G_CREP_fc.2 ) Gross fixed capital formation  in cleaner and resource efficient products for non characteristic activities -\nFULL COST",null,null,null,2014,":",null,":",null,":",null,":",null,":",null,":",null,":",null,":",null,":",null,":",null,":",null,":",null,":",null,":",null,":"]
["S11_S12","EP_SPE","EP_P51G_CREP_fc",null,null,null,null,null,2015,":",null,":",null,":",null,":",null,":",null,":",null,":",null,":",null,":",null,":",null,":",null,":",null,":",null,":",null,":"]
["S11_S12","EP_SPE","EP_P51G_CREP_fc",null,null,null,null,null,2016,":",null,":",null,":",null,":",null,":",null,":",null,":",null,":",null,":",null,":",null,":",null,":",null,":",null,":",null,":"]
["S11_S12","EP_SPE","EP_P51G_CREP_fc",null,null,null,null,null,2017,":",null,":",null,":",null,":",null,":",null,":",null,":",null,":",null,":",null,":",null,":",null,":",null,":",null,":",null,":"]
["S11_S12","EP_SPE","EP_P51G_CREP_fc",null,null,null,null,null,2018,":",null,":",null,":",null,":",null,":",null,":",null,":",null,":",null,":",null,":",null,":",null,":",null,":",null,":",null,":"]
["S11_S12","EP_SPE","EP_P51G_CREP_fc",null,null,null,null,null,2019,":",null,":",null,":",null,":",null,":",null,":",null,":",null,":",null,":",null,":",null,":",null,":",null,":",null,":",null,":"]
["S11_S12","EP_SPE","EP_P51G_CREP_fc",null,null,null,null,null,2020,":",null,":",null,":",null,":",null,":",null,":",null,":",null,":",null,":",null,":",null,":",null,":",null,":",null,":",null,":"]
["S11_S12","EP_SPE","EP_P51G_CREP_fc",null,null,null,null,null,2021,":",null,":",null,":",null,":",null,":",null,":",null,":",null,":",null,":",null,":",null,":",null,":",null,":",null,":",null,":"]
["S11_S12","EP_SPE","EP_P51G_CREP_fc",null,null,null,null,null,2022,":",null,":",null,":",null,":",null,":",null,":",null,":",null,":",null,":",null,":",null,":",null,":",null,":",null,":",null,":"]
["S11_S12","EP_SPE","EP_P51G_CREP_fc",null,null,null,null,null,2023,":",null,":",null,":",null,":",null,":",null,":",null,":",null,":",null,":",null,":",null,":",null,":",null,":",null,":",null,":"]
["S11_S12","EP_SPE","EP_P51G_CREP_fc",null,null,null,null,null,2024,":",null,":",null,":",null,":",null,":",null,":",null,":",null,":",null,":",null,":",null,":",null,":",null,":",null,":",null,":"]
["S11_S12","EP_SPE","EP_P51G_CREP_fc",null,null,null,null,null,2025,":",null,":",null,":",null,":",null,":",null,":",null,":",null,":",null,":",null,":",null,":",null,":",null,":",null,":",null,":"]
["S11_S12","EP_SPE","EP_P51G_CREP_fc",null,null,null,null,null,2026,":",null,":",null,":",null,":",null,":",null,":",null,":",null,":",null,":",null,":",null,":",null,":",null,":",null,":",null,":"]
["S11_S12","EP_SPE","EP_P51G_CREP_fc",null,null,null,null,null,2027,":",null,":",null,":",null,":",null,":",null,":",null,":",null,":",null,":",null,":",null,":",null,":",null,":",null,":",null,":"]
["S11_S12","EP_SPE","EP_P51G_CREP_fc",null,null,null,null,null,2028,":",null,":",null,":",null,":",null,":",null,":",null,":",null,":",null,":",null,":",null,":",null,":",null,":",null,":",null,":"]
["S11_S12","EP_SPE","EP_P51G_CREP_fc",null,null,null,null,null,2029,":",null,":",null,":",null,":",null,":",null,":",null,":",null,":",null,":",null,":",null,":",null,{"$f":"IF(COUNT(N58,P58,V58,#REF!,#REF!)=0,\":\",SUM(N58,P58,V58,#REF!,#REF!))","v":":"},null,":",null,":",null,":"]
["S11_S12","EP_SPE","EP_P51G_CREP_fc",null,null,null,null,null,2030,":",null,":",null,":",null,":",null,":",null,":",null,":",null,":",null,":",null,":",null,":",null,{"$f":"IF(COUNT(N59,P59,V59,#REF!,#REF!)=0,\":\",SUM(N59,P59,V59,#REF!,#REF!))","v":":"},null,":",null,":",null,":"]
["S11_S12","EP_SPE","EP_P51G_CREP_fc",null,null,null,null,null,2031,":",null,":",null,":",null,":",null,":",null,":",null,":",null,":",null,":",null,":",null,":",null,{"$f":"IF(COUNT(N60,P60,V60,#REF!,#REF!)=0,\":\",SUM(N60,P60,V60,#REF!,#REF!))","v":":"},null,":",null,":",null,":"]

{"sheet":"8.3","index":46,"n_rows":60,"n_cols":38,"rows_kept":60,"cut":false,"hidden":false,"merged":[[0,4,0,8],[1,4,1,8],[1,9,1,32],[1,33,1,38],[2,9,2,32],[2,33,2,38],[3,35,4,36],[3,37,4,38],[3,21,4,22],[3,23,4,24],[3,25,4,26],[3,27,4,28],[3,29,4,30],[24,4,24,7],[3,31,4,32],[3,33,4,34],[3,9,4,10],[3,11,4,12],[3,13,4,14],[3,15,4,16],[3,17,4,18],[3,19,4,20],[4,4,4,7],[6,4,6,7],[7,4,7,7],[8,4,8,7],[9,4,9,7],[45,4,45,7],[25,4,25,7],[26,4,26,7],[27,4,27,7],[42,4,42,7],[43,4,43,7],[44,4,44,7]]}
[null,null,null,null,{"$f":"Cover!B21","v":"QUESTIONNAIRE ON ENVIRONMENTAL PROTECTION EXPENDITURE ACCOUNTS"},null,null,null,null,"GFCF - Corporations: other (also covering producers of ancillary EP services)",null,null,null,null,null,null,null,null,null,null,null,null,null,null,null,null,null,null,null,null,null,null,null,"GFCF - Corporations: other (also covering producers of ancillary RM products)"]
[null,null,null,null,{"$f":"E1","v":"QUESTIONNAIRE ON ENVIRONMENTAL PROTECTION EXPENDITURE ACCOUNTS"},null,null,null,null,{"$f":"J1","v":"GFCF - Corporations: other (also covering producers of ancillary EP services)"},null,null,null,null,null,null,null,null,null,null,null,null,null,null,null,null,null,null,null,null,null,null,null,{"$f":"AH1","v":"GFCF - Corporations: other (also covering producers of ancillary RM products)"}]
[null,null,null,null,null,null,null,null,null,"Figures calculated from information available in the questionnaire",null,null,null,null,null,null,null,null,null,null,null,null,null,null,null,null,null,null,null,null,null,null,null,"Figures calculated from information available in the questionnaire"]
[null,null,null,null,"Country/Unit",{"$f":"IFERROR(Cover!C16,\"\")","v":""},{"$f":"\"\"&Cover!B16","v":""},null,{"$f":"Cover!B17","v":"Million units of national currency"},"CEPA 1",null,"of which CEPA 1.1.2 and 1.2.2 Climate change",null,"CEPA 2",null,"CEPA 3",null,"CEPA 4",null,"CEPA 5",null,"CEPA 6",null,"CEPA 7",null,"CEPA 8",null,"CEPA 9",null,"Sum of CEPA 7+8+9",null,"TOTAL CEPA",null," CReMA\n11B + 13C + 14 \n(Materials recovery)",null,"CReMA13A (Production of energy  from renewable sources)",null,"CReMA13B \n(Energy efficiency and savings)"]
[null,null,null,null,"Expenditure",null,null,null,"Year",null,null,null,null,null,null,null,null,null,null,null,null,null,null,null,null,null,null,null,null,"Landscape",null,"Landscape",null,"Landscape",null,"Landscape",null,"Landscape"]
[null,null,null,null,null,null,null,null,null,"CEPA1",null,"CEPA112_122",null,"CEPA2",null,"CEPA3",null,"CEPA4",null,"CEPA5",null,"CEPA6",null,"CEPA7",null,"CEPA8",null,"CEPA9",null,"CEPA7-9",null,"TOT_CEPA",null,"CREMA 11B_13C_14",null,"CREMA 13A",null,"CREMA 13B"]
["S11_S12","EP_BUS","EPS_P51G_NP",null,"( P51G_NP.3 ) Gross fixed capital formation and acquisition less disposals of non-financial non-produced assets (for characteristic activities)",null,null,null,2014,{"$f":"'3'!J7","v":":"},{"$f":"'3'!K7","v":0},{"$f":"'3'!L7","v":":"},{"$f":"'3'!M7","v":0},{"$f":"'3'!N7","v":":"},{"$f":"'3'!O7","v":0},{"$f":"'3'!P7","v":":"},{"$f":"'3'!Q7","v":0},{"$f":"'3'!R7","v":":"},{"$f":"'3'!S7","v":0},{"$f":"'3'!T7","v":":"},{"$f":"'3'!U7","v":0},{"$f":"'3'!V7","v":":"},{"$f":"'3'!W7","v":0},{"$f":"'3'!X7","v":":"},{"$f":"'3'!Y7","v":0},{"$f":"'3'!Z7","v":":"},{"$f":"'3'!AA7","v":0},{"$f":"'3'!AB7","v":":"},{"$f":"'3'!AC7","v":0},{"$f":"'3'!AD7","v":":"},{"$f":"'3'!AE7","v":0},{"$f":"'3'!AF7","v":":"},{"$f":"'3'!AG7","v":0},":",null,":",null,":"]
["S11_S12","EP_BUS","EPS_P51G_NP",null,null,null,null,null,2015,{"$f":"'3'!J8","v":":"},{"$f":"'3'!K8","v":0},{"$f":"'3'!L8","v":":"},{"$f":"'3'!M8","v":0},{"$f":"'3'!N8","v":":"},{"$f":"'3'!O8","v":0},{"$f":"'3'!P8","v":":"},{"$f":"'3'!Q8","v":0},{"$f":"'3'!R8","v":":"},{"$f":"'3'!S8","v":0},{"$f":"'3'!T8","v":":"},{"$f":"'3'!U8","v":0},{"$f":"'3'!V8","v":":"},{"$f":"'3'!W8","v":0},{"$f":"'3'!X8","v":":"},{"$f":"'3'!Y8","v":0},{"$f":"'3'!Z8","v":":"},{"$f":"'3'!AA8","v":0},{"$f":"'3'!AB8","v":":"},{"$f":"'3'!AC8","v":0},{"$f":"'3'!AD8","v":":"},{"$f":"'3'!AE8","v":0},{"$f":"'3'!AF8","v":":"},{"$f":"'3'!AG8","v":0},":",null,":",null,":"]
["S11_S12","EP_BUS","EPS_P51G_NP",null,null,null,null,null,2016,{"$f":"'3'!J9","v":":"},{"$f":"'3'!K9","v":0},{"$f":"'3'!L9","v":":"},{"$f":"'3'!M9","v":0},{"$f":"'3'!N9","v":":"},{"$f":"'3'!O9","v":0},{"$f":"'3'!P9","v":":"},{"$f":"'3'!Q9","v":0},{"$f":"'3'!R9","v":":"},{"$f":"'3'!S9","v":0},{"$f":"'3'!T9","v":":"},{"$f":"'3'!U9","v":0},{"$f":"'3'!V9","v":":"},{"$f":"'3'!W9","v":0},{"$f":"'3'!X9","v":":"},{"$f":"'3'!Y9","v":0},{"$f":"'3'!Z9","v":":"},{"$f":"'3'!AA9","v":0},{"$f":"'3'!AB9","v":":"},{"$f":"'3'!AC9","v":0},{"$f":"'3'!AD9","v":":"},{"$f":"'3'!AE9","v":0},{"$f":"'3'!AF9","v":":"},{"$f":"'3'!AG9","v":0},":",null,":",null,":"]
["S11_S12","EP_BUS","EPS_P51G_NP",null,null,null,null,null,2017,{"$f":"'3'!J10","v":":"},{"$f":"'3'!K10","v":0},{"$f":"'3'!L10","v":":"},{"$f":"'3'!M10","v":0},{"$f":"'3'!N10","v":":"},{"$f":"'3'!O10","v":0},{"$f":"'3'!P10","v":":"},{"$f":"'3'!Q10","v":0},{"$f":"'3'!R10","v":":"},{"$f":"'3'!S10","v":0},{"$f":"'3'!T10","v":":"},{"$f":"'3'!U10","v":0},{"$f":"'3'!V10","v":":"},{"$f":"'3'!W10","v":0},{"$f":"'3'!X10","v":":"},{"$f":"'3'!Y10","v":0},{"$f":"'3'!Z10","v":":"},{"$f":"'3'!AA10","v":0},{"$f":"'3'!AB10","v":":"},{"$f":"'3'!AC10","v":0},{"$f":"'3'!AD10","v":":"},{"$f":"'3'!AE10","v":0},{"$f":"'3'!AF10","v":":"},{"$f":"'3'!AG10","v":0},":",null,":",null,":"]
["S11_S12","EP_BUS","EPS_P51G_NP",null,null,null,null,null,2018,{"$f":"'3'!J11","v":":"},{"$f":"'3'!K11","v":0},{"$f":"'3'!L11","v":":"},{"$f":"'3'!M11","v":0},{"$f":"'3'!N11","v":":"},{"$f":"'3'!O11","v":0},{"$f":"'3'!P11","v":":"},{"$f":"'3'!Q11","v":0},{"$f":"'3'!R11","v":":"},{"$f":"'3'!S11","v":0},{"$f":"'3'!T11","v":":"},{"$f":"'3'!U11","v":0},{"$f":"'3'!V11","v":":"},{"$f":"'3'!W11","v":0},{"$f":"'3'!X11","v":":"},{"$f":"'3'!Y11","v":0},{"$f":"'3'!Z11","v":":"},{"$f":"'3'!AA11","v":0},{"$f":"'3'!AB11","v":":"},{"$f":"'3'!AC11","v":0},{"$f":"'3'!AD11","v":":"},{"$f":"'3'!AE11","v":0},{"$f":"'3'!AF11","v":":"},{"$f":"'3'!AG11","v":0},":",null,":",null,":"]
["S11_S12","EP_BUS","EPS_P51G_NP",null,null,null,null,null,2019,{"$f":"'3'!J12","v":":"},{"$f":"'3'!K12","v":0},{"$f":"'3'!L12","v":":"},{"$f":"'3'!M12","v":0},{"$f":"'3'!N12","v":":"},{"$f":"'3'!O12","v":0},{"$f":"'3'!P12","v":":"},{"$f":"'3'!Q12","v":0},{"$f":"'3'!R12","v":":"},{"$f":"'3'!S12","v":0},{"$f":"'3'!T12","v":":"},{"$f":"'3'!U12","v":0},{"$f":"'3'!V12","v":":"},{"$f":"'3'!W12","v":0},{"$f":"'3'!X12","v":":"},{"$f":"'3'!Y12","v":0},{"$f":"'3'!Z12","v":":"},{"$f":"'3'!AA12","v":0},{"$f":"'3'!AB12","v":":"},{"$f":"'3'!AC12","v":0},{"$f":"'3'!AD12","v":":"},{"$f":"'3'!AE12","v":0},{"$f":"'3'!AF12","v":":"},{"$f":"'3'!AG12","v":0},":",null,":",null,":"]
["S11_S12","EP_BUS","EPS_P51G_NP",null,null,null,null,null,2020,{"$f":"'3'!J13","v":":"},{"$f":"'3'!K13","v":0},{"$f":"'3'!L13","v":":"},{"$f":"'3'!M13","v":0},{"$f":"'3'!N13","v":":"},{"$f":"'3'!O13","v":0},{"$f":"'3'!P13","v":":"},{"$f":"'3'!Q13","v":0},{"$f":"'3'!R13","v":":"},{"$f":"'3'!S13","v":0},{"$f":"'3'!T13","v":":"},{"$f":"'3'!U13","v":0},{"$f":"'3'!V13","v":":"},{"$f":"'3'!W13","v":0},{"$f":"'3'!X13","v":":"},{"$f":"'3'!Y13","v":0},{"$f":"'3'!Z13","v":":"},{"$f":"'3'!AA13","v":0},{"$f":"'3'!AB13","v":":"},{"$f":"'3'!AC13","v":0},{"$f":"'3'!AD13","v":":"},{"$f":"'3'!AE13","v":0},{"$f":"'3'!AF13","v":":"},{"$f":"'3'!AG13","v":0},":",null,":",null,":"]
["S11_S12","EP_BUS","EPS_P51G_NP",null,null,null,null,null,2021,{"$f":"'3'!J14","v":":"},{"$f":"'3'!K14","v":0},{"$f":"'3'!L14","v":":"},{"$f":"'3'!M14","v":0},{"$f":"'3'!N14","v":":"},{"$f":"'3'!O14","v":0},{"$f":"'3'!P14","v":":"},{"$f":"'3'!Q14","v":0},{"$f":"'3'!R14","v":":"},{"$f":"'3'!S14","v":0},{"$f":"'3'!T14","v":":"},{"$f":"'3'!U14","v":0},{"$f":"'3'!V14","v":":"},{"$f":"'3'!W14","v":0},{"$f":"'3'!X14","v":":"},{"$f":"'3'!Y14","v":0},{"$f":"'3'!Z14","v":":"},{"$f":"'3'!AA14","v":0},{"$f":"'3'!AB14","v":":"},{"$f":"'3'!AC14","v":0},{"$f":"'3'!AD14","v":":"},{"$f":"'3'!AE14","v":0},{"$f":"'3'!AF14","v":":"},{"$f":"'3'!AG14","v":0},":",null,":",null,":"]
["S11_S12","EP_BUS","EPS_P51G_NP",null,null,null,null,null,2022,{"$f":"'3'!J15","v":":"},{"$f":"'3'!K15","v":0},{"$f":"'3'!L15","v":":"},{"$f":"'3'!M15","v":0},{"$f":"'3'!N15","v":":"},{"$f":"'3'!O15","v":0},{"$f":"'3'!P15","v":":"},{"$f":"'3'!Q15","v":0},{"$f":"'3'!R15","v":":"},{"$f":"'3'!S15","v":0},{"$f":"'3'!T15","v":":"},{"$f":"'3'!U15","v":0},{"$f":"'3'!V15","v":":"},{"$f":"'3'!W15","v":0},{"$f":"'3'!X15","v":":"},{"$f":"'3'!Y15","v":0},{"$f":"'3'!Z15","v":":"},{"$f":"'3'!AA15","v":0},{"$f":"'3'!AB15","v":":"},{"$f":"'3'!AC15","v":0},{"$f":"'3'!AD15","v":":"},{"$f":"'3'!AE15","v":0},{"$f":"'3'!AF15","v":":"},{"$f":"'3'!AG15","v":0},":",null,":",null,":"]
["S11_S12","EP_BUS","EPS_P51G_NP",null,null,null,null,null,2023,{"$f":"'3'!J16","v":":"},{"$f":"'3'!K16","v":0},{"$f":"'3'!L16","v":":"},{"$f":"'3'!M16","v":0},{"$f":"'3'!N16","v":":"},{"$f":"'3'!O16","v":0},{"$f":"'3'!P16","v":":"},{"$f":"'3'!Q16","v":0},{"$f":"'3'!R16","v":":"},{"$f":"'3'!S16","v":0},{"$f":"'3'!T16","v":":"},{"$f":"'3'!U16","v":0},{"$f":"'3'!V16","v":":"},{"$f":"'3'!W16","v":0},{"$f":"'3'!X16","v":":"},{"$f":"'3'!Y16","v":0},{"$f":"'3'!Z16","v":":"},{"$f":"'3'!AA16","v":0},{"$f":"'3'!AB16","v":":"},{"$f":"'3'!AC16","v":0},{"$f":"'3'!AD16","v":":"},{"$f":"'3'!AE16","v":0},{"$f":"'3'!AF16","v":":"},{"$f":"'3'!AG16","v":0},":",null,":",null,":"]
["S11_S12","EP_BUS","EPS_P51G_NP",null,null,null,null,null,2024,{"$f":"'3'!J17","v":":"},{"$f":"'3'!K17","v":0},{"$f":"'3'!L17","v":":"},{"$f":"'3'!M17","v":0},{"$f":"'3'!N17","v":":"},{"$f":"'3'!O17","v":0},{"$f":"'3'!P17","v":":"},{"$f":"'3'!Q17","v":0},{"$f":"'3'!R17","v":":"},{"$f":"'3'!S17","v":0},{"$f":"'3'!T17","v":":"},{"$f":"'3'!U17","v":0},{"$f":"'3'!V17","v":":"},{"$f":"'3'!W17","v":0},{"$f":"'3'!X17","v":":"},{"$f":"'3'!Y17","v":0},{"$f":"'3'!Z17","v":":"},{"$f":"'3'!AA17","v":0},{"$f":"'3'!AB17","v":":"},{"$f":"'3'!AC17","v":0},{"$f":"'3'!AD17","v":":"},{"$f":"'3'!AE17","v":0},{"$f":"'3'!AF17","v":":"},{"$f":"'3'!AG17","v":0},":",null,":",null,":"]
["S11_S12","EP_BUS","EPS_P51G_NP",null,null,null,null,null,2025,{"$f":"'3'!J18","v":":"},{"$f":"'3'!K18","v":0},{"$f":"'3'!L18","v":":"},{"$f":"'3'!M18","v":0},{"$f":"'3'!N18","v":":"},{"$f":"'3'!O18","v":0},{"$f":"'3'!P18","v":":"},{"$f":"'3'!Q18","v":0},{"$f":"'3'!R18","v":":"},{"$f":"'3'!S18","v":0},{"$f":"'3'!T18","v":":"},{"$f":"'3'!U18","v":0},{"$f":"'3'!V18","v":":"},{"$f":"'3'!W18","v":0},{"$f":"'3'!X18","v":":"},{"$f":"'3'!Y18","v":0},{"$f":"'3'!Z18","v":":"},{"$f":"'3'!AA18","v":0},{"$f":"'3'!AB18","v":":"},{"$f":"'3'!AC18","v":0},{"$f":"'3'!AD18","v":":"},{"$f":"'3'!AE18","v":0},{"$f":"'3'!AF18","v":":"},{"$f":"'3'!AG18","v":0},":",null,":",null,":"]
["S11_S12","EP_BUS","EPS_P51G_NP",null,null,null,null,null,2026,{"$f":"'3'!J19","v":":"},{"$f":"'3'!K19","v":0},{"$f":"'3'!L19","v":":"},{"$f":"'3'!M19","v":0},{"$f":"'3'!N19","v":":"},{"$f":"'3'!O19","v":0},{"$f":"'3'!P19","v":":"},{"$f":"'3'!Q19","v":0},{"$f":"'3'!R19","v":":"},{"$f":"'3'!S19","v":0},{"$f":"'3'!T19","v":":"},{"$f":"'3'!U19","v":0},{"$f":"'3'!V19","v":":"},{"$f":"'3'!W19","v":0},{"$f":"'3'!X19","v":":"},{"$f":"'3'!Y19","v":0},{"$f":"'3'!Z19","v":":"},{"$f":"'3'!AA19","v":0},{"$f":"'3'!AB19","v":":"},{"$f":"'3'!AC19","v":0},{"$f":"'3'!AD19","v":":"},{"$f":"'3'!AE19","v":0},{"$f":"'3'!AF19","v":":"},{"$f":"'3'!AG19","v":0},":",null,":",null,":"]
["S11_S12","EP_BUS","EPS_P51G_NP",null,null,null,null,null,2027,{"$f":"'3'!J20","v":":"},{"$f":"'3'!K20","v":0},{"$f":"'3'!L20","v":":"},{"$f":"'3'!M20","v":0},{"$f":"'3'!N20","v":":"},{"$f":"'3'!O20","v":0},{"$f":"'3'!P20","v":":"},{"$f":"'3'!Q20","v":0},{"$f":"'3'!R20","v":":"},{"$f":"'3'!S20","v":0},{"$f":"'3'!T20","v":":"},{"$f":"'3'!U20","v":0},{"$f":"'3'!V20","v":":"},{"$f":"'3'!W20","v":0},{"$f":"'3'!X20","v":":"},{"$f":"'3'!Y20","v":0},{"$f":"'3'!Z20","v":":"},{"$f":"'3'!AA20","v":0},{"$f":"'3'!AB20","v":":"},{"$f":"'3'!AC20","v":0},{"$f":"'3'!AD20","v":":"},{"$f":"'3'!AE20","v":0},{"$f":"'3'!AF20","v":":"},{"$f":"'3'!AG20","v":0},":",null,":",null,":"]
["S11_S12","EP_BUS","EPS_P51G_NP",null,null,null,null,null,2028,{"$f":"'3'!J21","v":":"},{"$f":"'3'!K21","v":0},{"$f":"'3'!L21","v":":"},{"$f":"'3'!M21","v":0},{"$f":"'3'!N21","v":":"},{"$f":"'3'!O21","v":0},{"$f":"'3'!P21","v":":"},{"$f":"'3'!Q21","v":0},{"$f":"'3'!R21","v":":"},{"$f":"'3'!S21","v":0},{"$f":"'3'!T21","v":":"},{"$f":"'3'!U21","v":0},{"$f":"'3'!V21","v":":"},{"$f":"'3'!W21","v":0},{"$f":"'3'!X21","v":":"},{"$f":"'3'!Y21","v":0},{"$f":"'3'!Z21","v":":"},{"$f":"'3'!AA21","v":0},{"$f":"'3'!AB21","v":":"},{"$f":"'3'!AC21","v":0},{"$f":"'3'!AD21","v":":"},{"$f":"'3'!AE21","v":0},{"$f":"'3'!AF21","v":":"},{"$f":"'3'!AG21","v":0},":",null,":",null,":"]
["S11_S12","EP_BUS","EPS_P51G_NP",null,null,null,null,null,2029,{"$f":"'3'!J22","v":":"},{"$f":"'3'!K22","v":0},{"$f":"'3'!L22","v":":"},{"$f":"'3'!M22","v":0},{"$f":"'3'!N22","v":":"},{"$f":"'3'!O22","v":0},{"$f":"'3'!P22","v":":"},{"$f":"'3'!Q22","v":0},{"$f":"'3'!R22","v":":"},{"$f":"'3'!S22","v":0},{"$f":"'3'!T22","v":":"},{"$f":"'3'!U22","v":0},{"$f":"'3'!V22","v":":"},{"$f":"'3'!W22","v":0},{"$f":"'3'!X22","v":":"},{"$f":"'3'!Y22","v":0},{"$f":"'3'!Z22","v":":"},{"$f":"'3'!AA22","v":0},{"$f":"'3'!AB22","v":":"},{"$f":"'3'!AC22","v":0},{"$f":"'3'!AD22","v":":"},{"$f":"'3'!AE22","v":0},{"$f":"'3'!AF22","v":":"},{"$f":"'3'!AG22","v":0},":",null,":",null,":"]
["S11_S12","EP_BUS","EPS_P51G_NP",null,null,null,null,null,2030,{"$f":"'3'!J23","v":":"},{"$f":"'3'!K23","v":0},{"$f":"'3'!L23","v":":"},{"$f":"'3'!M23","v":0},{"$f":"'3'!N23","v":":"},{"$f":"'3'!O23","v":0},{"$f":"'3'!P23","v":":"},{"$f":"'3'!Q23","v":0},{"$f":"'3'!R23","v":":"},{"$f":"'3'!S23","v":0},{"$f":"'3'!T23","v":":"},{"$f":"'3'!U23","v":0},{"$f":"'3'!V23","v":":"},{"$f":"'3'!W23","v":0},{"$f":"'3'!X23","v":":"},{"$f":"'3'!Y23","v":0},{"$f":"'3'!Z23","v":":"},{"$f":"'3'!AA23","v":0},{"$f":"'3'!AB23","v":":"},{"$f":"'3'!AC23","v":0},{"$f":"'3'!AD23","v":":"},{"$f":"'3'!AE23","v":0},{"$f":"'3'!AF23","v":":"},{"$f":"'3'!AG23","v":0},":",null,":",null,":"]
["S11_S12","EP_BUS","EPS_P51G_NP",null,null,null,null,null,2031,{"$f":"'3'!J24","v":":"},{"$f":"'3'!K24","v":0},{"$f":"'3'!L24","v":":"},{"$f":"'3'!M24","v":0},{"$f":"'3'!N24","v":":"},{"$f":"'3'!O24","v":0},{"$f":"'3'!P24","v":":"},{"$f":"'3'!Q24","v":0},{"$f":"'3'!R24","v":":"},{"$f":"'3'!S24","v":0},{"$f":"'3'!T24","v":":"},{"$f":"'3'!U24","v":0},{"$f":"'3'!V24","v":":"},{"$f":"'3'!W24","v":0},{"$f":"'3'!X24","v":":"},{"$f":"'3'!Y24","v":0},{"$f":"'3'!Z24","v":":"},{"$f":"'3'!AA24","v":0},{"$f":"'3'!AB24","v":":"},{"$f":"'3'!AC24","v":0},{"$f":"'3'!AD24","v":":"},{"$f":"'3'!AE24","v":0},{"$f":"'3'!AF24","v":":"},{"$f":"'3'!AG24","v":0},":",null,":",null,":"]
["S11_S12","EP_BUS","EP_P51G_CREP_ec",null,"( P51G_CREP_ec.3 ) Gross fixed capital formation  in cleaner and resource efficient products for non characteristic activities - EXTRA COST",null,null,null,2014,":",null,":",null,":",null,":",null,":",null,":",null,":",null,":",null,":",null,":",null,":",null,{"$f":"IF(COUNT(J25,N25,P25,R25,T25,V25,AD25)=7,SUM(J25,N25,P25,R25,T25,V25,AD25),\":\")","v":":"},null,":",null,":",null,":"]
["S11_S12","EP_BUS","EP_P51G_CREP_ec",null,null,null,null,null,2015,":",null,":",null,":",null,":",null,":",null,":",null,":",null,":",null,":",null,":",null,":",null,{"$f":"IF(COUNT(J26,N26,P26,R26,T26,V26,AD26)=7,SUM(J26,N26,P26,R26,T26,V26,AD26),\":\")","v":":"},null,":",null,":",null,":"]
["S11_S12","EP_BUS","EP_P51G_CREP_ec",null,null,null,null,null,2016,":",null,":",null,":",null,":",null,":",null,":",null,":",null,":",null,":",null,":",null,":",null,":",null,":",null,":",null,":"]
["S11_S12","EP_BUS","EP_P51G_CREP_ec",null,null,null,null,null,2017,":",null,":",null,":",null,":",null,":",null,":",null,":",null,":",null,":",null,":",null,":",null,":",null,":",null,":",null,":"]
["S11_S12","EP_BUS","EP_P51G_CREP_ec",null,null,null,null,null,2018,":",null,":",null,":",null,":",null,":",null,":",null,":",null,":",null,":",null,":",null,":",null,":",null,":",null,":",null,":"]
["S11_S12","EP_BUS","EP_P51G_CREP_ec",null,null,null,null,null,2019,":",null,":",null,":",null,":",null,":",null,":",null,":",null,":",null,":",null,":",null,":",null,":",null,":",null,":",null,":"]
["S11_S12","EP_BUS","EP_P51G_CREP_ec",null,null,null,null,null,2020,":",null,":",null,":",null,":",null,":",null,":",null,":",null,":",null,":",null,":",null,":",null,":",null,":",null,":",null,":"]
["S11_S12","EP_BUS","EP_P51G_CREP_ec",null,null,null,null,null,2021,":",null,":",null,":",null,":",null,":",null,":",null,":",null,":",null,":",null,":",null,":",null,":",null,":",null,":",null,":"]
["S11_S12","EP_BUS","EP_P51G_CREP_ec",null,null,null,null,null,2022,":",null,":",null,":",null,":",null,":",null,":",null,":",null,":",null,":",null,":",null,":",null,":",null,":",null,":",null,":"]
["S11_S12","EP_BUS","EP_P51G_CREP_ec",null,null,null,null,null,2023,":",null,":",null,":",null,":",null,":",null,":",null,":",null,":",null,":",null,":",null,":",null,":",null,":",null,":",null,":"]
["S11_S12","EP_BUS","EP_P51G_CREP_ec",null,null,null,null,null,2024,":",null,":",null,":",null,":",null,":",null,":",null,":",null,":",null,":",null,":",null,":",null,":",null,":",null,":",null,":"]
["S11_S12","EP_BUS","EP_P51G_CREP_ec",null,null,null,null,null,2025,":",null,":",null,":",null,":",null,":",null,":",null,":",null,":",null,":",null,":",null,":",null,":",null,":",null,":",null,":"]
["S11_S12","EP_BUS","EP_P51G_CREP_ec",null,null,null,null,null,2026,":",null,":",null,":",null,":",null,":",null,":",null,":",null,":",null,":",null,":",null,":",null,":",null,":",null,":",null,":"]
["S11_S12","EP_BUS","EP_P51G_CREP_ec",null,null,null,null,null,2027,":",null,":",null,":",null,":",null,":",null,":",null,":",null,":",null,":",null,":",null,":",null,":",null,":",null,":",null,":"]
["S11_S12","EP_BUS","EP_P51G_CREP_ec",null,null,null,null,null,2028,":",null,":",null,":",null,":",null,":",null,":",null,":",null,":",null,":",null,":",null,":",null,":",null,":",null,":",null,":"]
["S11_S12","EP_BUS","EP_P51G_CREP_ec",null,null,null,null,null,2029,":",null,":",null,":",null,":",null,":",null,":",null,":",null,":",null,":",null,":",null,":",null,":",null,":",null,":",null,":"]
["S11_S12","EP_BUS","EP_P51G_CREP_ec",null,null,null,null,null,2030,":",null,":",null,":",null,":",null,":",null,":",null,":",null,":",null,":",null,":",null,":",null,":",null,":",null,":",null,":"]
["S11_S12","EP_BUS","EP_P51G_CREP_ec",null,null,null,null,null,2031,":",null,":",null,":",null,":",null,":",null,":",null,":",null,":",null,":",null,":",null,":",null,":",null,":",null,":",null,":"]
["S11_S12","EP_BUS","EP_P51G_CREP_fc",null,"( P51G_CREP_fc.3 ) Gross fixed capital formation  in cleaner and resource efficient products for non characteristic activities -\nFULL COST",null,null,null,2014,":",null,":",null,":",null,":",null,":",null,":",null,":",null,":",null,":",null,":",null,":",null,":",null,":",null,":",null,":"]
["S11_S12","EP_BUS","EP_P51G_CREP_fc",null,null,null,null,null,2015,":",null,":",null,":",null,":",null,":",null,":",null,":",null,":",null,":",null,":",null,":",null,":",null,":",null,":",null,":"]
["S11_S12","EP_BUS","EP_P51G_CREP_fc",null,null,null,null,null,2016,":",null,":",null,":",null,":",null,":",null,":",null,":",null,":",null,":",null,":",null,":",null,":",null,":",null,":",null,":"]
["S11_S12","EP_BUS","EP_P51G_CREP_fc",null,null,null,null,null,2017,":",null,":",null,":",null,":",null,":",null,":",null,":",null,":",null,":",null,":",null,":",null,":",null,":",null,":",null,":"]
["S11_S12","EP_BUS","EP_P51G_CREP_fc",null,null,null,null,null,2018,":",null,":",null,":",null,":",null,":",null,":",null,":",null,":",null,":",null,":",null,":",null,":",null,":",null,":",null,":"]
["S11_S12","EP_BUS","EP_P51G_CREP_fc",null,null,null,null,null,2019,":",null,":",null,":",null,":",null,":",null,":",null,":",null,":",null,":",null,":",null,":",null,":",null,":",null,":",null,":"]
["S11_S12","EP_BUS","EP_P51G_CREP_fc",null,null,null,null,null,2020,":",null,":",null,":",null,":",null,":",null,":",null,":",null,":",null,":",null,":",null,":",null,":",null,":",null,":",null,":"]
["S11_S12","EP_BUS","EP_P51G_CREP_fc",null,null,null,null,null,2021,":",null,":",null,":",null,":",null,":",null,":",null,":",null,":",null,":",null,":",null,":",null,":",null,":",null,":",null,":"]
["S11_S12","EP_BUS","EP_P51G_CREP_fc",null,null,null,null,null,2022,":",null,":",null,":",null,":",null,":",null,":",null,":",null,":",null,":",null,":",null,":",null,":",null,":",null,":",null,":"]
["S11_S12","EP_BUS","EP_P51G_CREP_fc",null,null,null,null,null,2023,":",null,":",null,":",null,":",null,":",null,":",null,":",null,":",null,":",null,":",null,":",null,":",null,":",null,":",null,":"]
["S11_S12","EP_BUS","EP_P51G_CREP_fc",null,null,null,null,null,2024,":",null,":",null,":",null,":",null,":",null,":",null,":",null,":",null,":",null,":",null,":",null,":",null,":",null,":",null,":"]
["S11_S12","EP_BUS","EP_P51G_CREP_fc",null,null,null,null,null,2025,":",null,":",null,":",null,":",null,":",null,":",null,":",null,":",null,":",null,":",null,":",null,":",null,":",null,":",null,":"]
["S11_S12","EP_BUS","EP_P51G_CREP_fc",null,null,null,null,null,2026,":",null,":",null,":",null,":",null,":",null,":",null,":",null,":",null,":",null,":",null,":",null,":",null,":",null,":",null,":"]
["S11_S12","EP_BUS","EP_P51G_CREP_fc",null,null,null,null,null,2027,":",null,":",null,":",null,":",null,":",null,":",null,":",null,":",null,":",null,":",null,":",null,":",null,":",null,":",null,":"]
["S11_S12","EP_BUS","EP_P51G_CREP_fc",null,null,null,null,null,2028,":",null,":",null,":",null,":",null,":",null,":",null,":",null,":",null,":",null,":",null,":",null,":",null,":",null,":",null,":"]
["S11_S12","EP_BUS","EP_P51G_CREP_fc",null,null,null,null,null,2029,":",null,":",null,":",null,":",null,":",null,":",null,":",null,":",null,":",null,":",null,":",null,{"$f":"IF(COUNT(J58,N58,P58,#REF!)=0,\":\",SUM(J58,N58,P58,#REF!))","v":":"},null,":",null,":",null,":"]
["S11_S12","EP_BUS","EP_P51G_CREP_fc",null,null,null,null,null,2030,":",null,":",null,":",null,":",null,":",null,":",null,":",null,":",null,":",null,":",null,":",null,{"$f":"IF(COUNT(J59,N59,P59,#REF!)=0,\":\",SUM(J59,N59,P59,#REF!))","v":":"},null,":",null,":",null,":"]
["S11_S12","EP_BUS","EP_P51G_CREP_fc",null,null,null,null,null,2031,":",null,":",null,":",null,":",null,":",null,":",null,":",null,":",null,":",null,":",null,":",null,{"$f":"IF(COUNT(J60,N60,P60,#REF!)=0,\":\",SUM(J60,N60,P60,#REF!))","v":":"},null,":",null,":",null,":"]

{"sheet":"8.3_Add_2014","index":47,"n_rows":39,"n_cols":38,"rows_kept":39,"cut":false,"hidden":false,"merged":[[3,37,4,38],[3,21,4,22],[3,23,4,24],[3,25,4,26],[3,31,4,32],[3,33,4,34],[3,35,4,36],[3,29,4,30],[0,4,0,8],[1,4,1,8],[1,9,1,32],[1,33,1,38],[2,9,2,32],[2,33,2,38],[4,4,4,7],[6,4,6,5],[6,7,6,8],[3,27,4,28],[3,19,4,20],[3,9,4,10],[3,11,4,12],[3,13,4,14],[3,15,4,16],[3,17,4,18],[7,7,7,8],[8,7,8,8],[17,4,17,5],[17,7,17,8],[18,7,18,8],[13,7,13,8],[9,7,9,8],[12,7,12,8],[14,7,14,8],[15,7,15,8],[37,7,37,8],[38,7,38,8],[28,4,28,5],[28,7,28,8],[29,7,29,8],[31,7,31,8],[34,7,34,8],[35,7,35,8],[30,7,30,8],[19,7,19,8],[16,7,16,8],[26,7,26,8],[27,7,27,8],[36,7,36,8],[20,7,20,8],[23,7,23,8],[24,7,24,8],[25,7,25,8]]}
[null,null,null,null,{"$f":"Cover!B21","v":"QUESTIONNAIRE ON ENVIRONMENTAL PROTECTION EXPENDITURE ACCOUNTS"},null,null,null,null,"GFCF - Corporations: other (also covering producers of ancillary EP services)",null,null,null,null,null,null,null,null,null,null,null,null,null,null,null,null,null,null,null,null,null,null,null,"GFCF - Corporations: other (also covering producers of ancillary RM products)"]
[null,null,null,null,{"$f":"E1","v":"QUESTIONNAIRE ON ENVIRONMENTAL PROTECTION EXPENDITURE ACCOUNTS"},null,null,null,null,{"$f":"J1","v":"GFCF - Corporations: other (also covering producers of ancillary EP services)"},null,null,null,null,null,null,null,null,null,null,null,null,null,null,null,null,null,null,null,null,null,null,null,{"$f":"AH1","v":"GFCF - Corporations: other (also covering producers of ancillary RM products)"}]
[null,null,null,null,null,null,null,null,null,"Figures calculated from information available in the questionnaire",null,null,null,null,null,null,null,null,null,null,null,null,null,null,null,null,null,null,null,null,null,null,null,"Figures calculated from information available in the questionnaire"]
[null,null,null,null,"Country/Unit",{"$f":"IFERROR(Cover!C16,\"\")","v":""},{"$f":"\"\"&Cover!B16","v":""},null,{"$f":"Cover!B17","v":"Million units of national currency"},"CEPA 1",null,"of which CEPA 1.1.2 and 1.2.2 Climate change",null,"CEPA 2",null,"CEPA 3",null,"CEPA 4",null,"CEPA 5",null,"CEPA 6",null,"CEPA 7",null,"CEPA 8",null,"CEPA 9",null,"Sum of CEPA 7+8+9",null,"TOTAL CEPA",null," CReMA\n11B + 13C + 14 \n(Materials recovery)",null,"CReMA13A (Production of energy  from renewable sources)",null,"CReMA13B \n(Energy efficiency and savings)"]
[null,null,null,null,"Expenditure",null,null,null,2014,null,null,null,null,null,null,null,null,null,null,null,null,null,null,null,null,null,null,null,null,"Landscape",null,"Landscape",null,"Landscape",null,"Landscape",null,"Landscape"]
[null,null,null,null,null,null,null,null,2014,"CEPA1",null,"CEPA112_122",null,"CEPA2",null,"CEPA3",null,"CEPA4",null,"CEPA5",null,"CEPA6",null,"CEPA7",null,"CEPA8",null,"CEPA9",null,"CEPA7-9",null,"TOT_CEPA",null,"CREMA 11B_13C_14",null,"CREMA 13A",null,"CREMA 13B"]
["S11_S12","B","EPS_P51G_NP",null,"( P51G_NP.3 ) Gross fixed capital formation and acquisition less disposals of non-financial non-produced assets (integrated and end of pipe technologies)",null,"B","Mining and Quarring",null,{"$f":"'3a'!J7","v":":"},{"$f":"'3a'!K7","v":0},{"$f":"'3a'!L7","v":":"},{"$f":"'3a'!M7","v":0},{"$f":"'3a'!N7","v":":"},{"$f":"'3a'!O7","v":0},{"$f":"'3a'!P7","v":":"},{"$f":"'3a'!Q7","v":0},{"$f":"'3a'!R7","v":":"},{"$f":"'3a'!S7","v":0},{"$f":"'3a'!T7","v":":"},{"$f":"'3a'!U7","v":0},{"$f":"'3a'!V7","v":":"},{"$f":"'3a'!W7","v":0},{"$f":"'3a'!X7","v":":"},{"$f":"'3a'!Y7","v":0},{"$f":"'3a'!Z7","v":":"},{"$f":"'3a'!AA7","v":0},{"$f":"'3a'!AB7","v":":"},{"$f":"'3a'!AC7","v":0},{"$f":"'3a'!AD7","v":":"},{"$f":"'3a'!AE7","v":0},{"$f":"'3a'!AF7","v":":"},{"$f":"'3a'!AG7","v":0},":",null,":",null,":"]
["S11_S12","C","EPS_P51G_NP",null,null,null,"C","Manufacturing",null,{"$f":"'3b'!J7","v":":"},{"$f":"'3b'!K7","v":0},{"$f":"'3b'!L7","v":":"},{"$f":"'3b'!M7","v":0},{"$f":"'3b'!N7","v":":"},{"$f":"'3b'!O7","v":0},{"$f":"'3b'!P7","v":":"},{"$f":"'3b'!Q7","v":0},{"$f":"'3b'!R7","v":":"},{"$f":"'3b'!S7","v":0},{"$f":"'3b'!T7","v":":"},{"$f":"'3b'!U7","v":0},{"$f":"'3b'!V7","v":":"},{"$f":"'3b'!W7","v":0},{"$f":"'3b'!X7","v":":"},{"$f":"'3b'!Y7","v":0},{"$f":"'3b'!Z7","v":":"},{"$f":"'3b'!AA7","v":0},{"$f":"'3b'!AB7","v":":"},{"$f":"'3b'!AC7","v":0},{"$f":"'3b'!AD7","v":":"},{"$f":"'3b'!AE7","v":0},{"$f":"'3b'!AF7","v":":"},{"$f":"'3b'!AG7","v":0},":",null,":",null,":"]
["S11_S12","D","EPS_P51G_NP",null,null,null,"D","Electricity, gas, steam and air conditionning supply",null,{"$f":"'3c'!J7","v":":"},{"$f":"'3c'!K7","v":0},{"$f":"'3c'!L7","v":":"},{"$f":"'3c'!M7","v":0},{"$f":"'3c'!N7","v":":"},{"$f":"'3c'!O7","v":0},{"$f":"'3c'!P7","v":":"},{"$f":"'3c'!Q7","v":0},{"$f":"'3c'!R7","v":":"},{"$f":"'3c'!S7","v":0},{"$f":"'3c'!T7","v":":"},{"$f":"'3c'!U7","v":0},{"$f":"'3c'!V7","v":":"},{"$f":"'3c'!W7","v":0},{"$f":"'3c'!X7","v":":"},{"$f":"'3c'!Y7","v":0},{"$f":"'3c'!Z7","v":":"},{"$f":"'3c'!AA7","v":0},{"$f":"'3c'!AB7","v":":"},{"$f":"'3c'!AC7","v":0},{"$f":"'3c'!AD7","v":":"},{"$f":"'3c'!AE7","v":0},{"$f":"'3c'!AF7","v":":"},{"$f":"'3c'!AG7","v":0},":",null,":",null,":"]
["S11_S12","E36","EPS_P51G_NP",null,null,null,"E36","Water supply",null,{"$f":"'3d'!J7","v":":"},{"$f":"'3d'!K7","v":0},{"$f":"'3d'!L7","v":":"},{"$f":"'3d'!M7","v":0},{"$f":"'3d'!N7","v":":"},{"$f":"'3d'!O7","v":0},{"$f":"'3d'!P7","v":":"},{"$f":"'3d'!Q7","v":0},{"$f":"'3d'!R7","v":":"},{"$f":"'3d'!S7","v":0},{"$f":"'3d'!T7","v":":"},{"$f":"'3d'!U7","v":0},{"$f":"'3d'!V7","v":":"},{"$f":"'3d'!W7","v":0},{"$f":"'3d'!X7","v":":"},{"$f":"'3d'!Y7","v":0},{"$f":"'3d'!Z7","v":":"},{"$f":"'3d'!AA7","v":0},{"$f":"'3d'!AB7","v":":"},{"$f":"'3d'!AC7","v":0},{"$f":"'3d'!AD7","v":":"},{"$f":"'3d'!AE7","v":0},{"$f":"'3d'!AF7","v":":"},{"$f":"'3d'!AG7","v":0},":",null,":",null,":"]
["S11_S12","A_EP_OTH","EPS_P51G_NP",null,null,null,"OTH","OTHER NACE",null,{"$f":"'3e (voluntary)'!J7","v":":"},{"$f":"'3e (voluntary)'!K7","v":0},{"$f":"'3e (voluntary)'!L7","v":":"},{"$f":"'3e (voluntary)'!M7","v":0},{"$f":"'3e (voluntary)'!N7","v":":"},{"$f":"'3e (voluntary)'!O7","v":0},{"$f":"'3e (voluntary)'!P7","v":":"},{"$f":"'3e (voluntary)'!Q7","v":0},{"$f":"'3e (voluntary)'!R7","v":":"},{"$f":"'3e (voluntary)'!S7","v":0},{"$f":"'3e (voluntary)'!T7","v":":"},{"$f":"'3e (voluntary)'!U7","v":0},{"$f":"'3e (voluntary)'!V7","v":":"},{"$f":"'3e (voluntary)'!W7","v":0},{"$f":"'3e (voluntary)'!X7","v":":"},{"$f":"'3e (voluntary)'!Y7","v":0},{"$f":"'3e (voluntary)'!Z7","v":":"},{"$f":"'3e (voluntary)'!AA7","v":0},{"$f":"'3e (voluntary)'!AB7","v":":"},{"$f":"'3e (voluntary)'!AC7","v":0},{"$f":"'3e (voluntary)'!AD7","v":":"},{"$f":"'3e (voluntary)'!AE7","v":0},{"$f":"'3e (voluntary)'!AF7","v":":"},{"$f":"'3e (voluntary)'!AG7","v":0},":",null,":",null,":"]
[null,null,null,null,null,null,null,"of which:"]
["S11_S12","A","EPS_P51G_NP",null,null,null,"A","Agriculture, forestry and fishing",null,":",null,":",null,":",null,":",null,":",null,":",null,":",null,":",null,":",null,":",null,":",null,{"$f":"IF(COUNT(J13,N13,P13, R13,T13,V13,AD13)=7,SUM(J13,N13,P13, R13,T13,V13,AD13),\":\")","v":":"},null,":",null,":"]
["S11_S12","E3739","EPS_P51G_NP",null,null,null,"E37-39","Sewerage: waste management and remendiation activities",null,":",null,":",null,":",null,":",null,":",null,":",null,":",null,":",null,":",null,":",null,":",null,":",null,":",null,":"]
["S11_S12","F","EPS_P51G_NP",null,null,null,"F","Construction",null,":",null,":",null,":",null,":",null,":",null,":",null,":",null,":",null,":",null,":",null,":",null,":",null,":",null,":"]
["S11_S12","H","EPS_P51G_NP",null,null,null,"H","Transportation and storage",null,":",null,":",null,":",null,":",null,":",null,":",null,":",null,":",null,":",null,":",null,":",null,":",null,":",null,":"]
["S11_S12","L","EPS_P51G_NP",null,null,null,"L","Real estate activities",null,":",null,":",null,":",null,":",null,":",null,":",null,":",null,":",null,":",null,":",null,":",null,":",null,":",null,":"]
["S11_S12","B","EP_P51G_CREP_ec",null,"( P51G_CREP_ec.3Add) Gross fixed capital formation  in cleaner and resource efficient products for non characteristic activities - EXTRA COST",null,"B","Mining and Quarring",null,":",null,":",null,":",null,":",null,":",null,":",null,":",null,":",null,":",null,":",null,":",null,":",null,":",null,":",null,":"]
["S11_S12","C","EP_P51G_CREP_ec",null,null,null,"C","Manufacturing",null,":",null,":",null,":",null,":",null,":",null,":",null,":",null,":",null,":",null,":",null,":",null,":",null,":",null,":",null,":"]
["S11_S12","D","EP_P51G_CREP_ec",null,null,null,"D","Electricity, gas, steam and air conditionning supply",null,":",null,":",null,":",null,":",null,":",null,":",null,":",null,":",null,":",null,":",null,":",null,":",null,":",null,":",null,":"]
["S11_S12","E36","EP_P51G_CREP_ec",null,null,null,"E36","Water supply",null,":",null,":",null,":",null,":",null,":",null,":",null,":",null,":",null,":",null,":",null,":",null,":",null,":",null,":",null,":"]
["S11_S12","A_EP_OTH","EP_P51G_CREP_ec",null,null,null,"OTH","OTHER NACE",null,":",null,":",null,":",null,":",null,":",null,":",null,":",null,":",null,":",null,":",null,":",null,":",null,":",null,":",null,":"]
[null,null,null,null,null,null,null,"of which:",null,null,null,null,null,null,null,null,null,null,null,null,null,null,null,null,null,null,null,null,null,null,null,":"]
["S11_S12","A","EP_P51G_CREP_ec",null,null,null,"A","Agriculture, forestry and fishing",null,":",null,":",null,":",null,":",null,":",null,":",null,":",null,":",null,":",null,":",null,":",null,":",null,":",null,":",null,":"]
["S11_S12","E3739","EP_P51G_CREP_ec",null,null,null,"E37-39","Sewerage: waste management and remendiation activities",null,":",null,":",null,":",null,":",null,":",null,":",null,":",null,":",null,":",null,":",null,":",null,":",null,":",null,":",null,":"]
["S11_S12","F","EP_P51G_CREP_ec",null,null,null,"F","Construction",null,":",null,":",null,":",null,":",null,":",null,":",null,":",null,":",null,":",null,":",null,":",null,":",null,":",null,":",null,":"]
["S11_S12","H","EP_P51G_CREP_ec",null,null,null,"H","Transportation and storage",null,":",null,":",null,":",null,":",null,":",null,":",null,":",null,":",null,":",null,":",null,":",null,":",null,":",null,":",null,":"]
["S11_S12","L","EP_P51G_CREP_ec",null,null,null,"L","Real estate activities",null,":",null,":",null,":",null,":",null,":",null,":",null,":",null,":",null,":",null,":",null,":",null,":",null,":",null,":",null,":"]
["S11_S12","B","EP_P51G_CREP_fc",null,"( P51G_NP_CREP_fc.3Add ) Gross fixed capital formation and acquisition less disposals of non-financial non-produced assets in cleaner and resource efficient products - FULL COST",null,"B","Mining and Quarring",null,":",null,":",null,":",null,":",null,":",null,":",null,":",null,":",null,":",null,":",null,":",null,":",null,":",null,":",null,":"]
["S11_S12","C","EP_P51G_CREP_fc",null,null,null,"C","Manufacturing",null,":",null,":",null,":",null,":",null,":",null,":",null,":",null,":",null,":",null,":",null,":",null,":",null,":",null,":",null,":"]
["S11_S12","D","EP_P51G_CREP_fc",null,null,null,"D","Electricity, gas, steam and air conditionning supply",null,":",null,":",null,":",null,":",null,":",null,":",null,":",null,":",null,":",null,":",null,":",null,":",null,":",null,":",null,":"]
["S11_S12","E36","EP_P51G_CREP_fc",null,null,null,"E36","Water supply",null,":",null,":",null,":",null,":",null,":",null,":",null,":",null,":",null,":",null,":",null,":",null,":",null,":",null,":",null,":"]
["S11_S12","A_EP_OTH","EP_P51G_CREP_fc",null,null,null,"OTH","OTHER NACE",null,":",null,":",null,":",null,":",null,":",null,":",null,":",null,":",null,":",null,":",null,":",null,":",null,":",null,":",null,":"]
[null,null,null,null,null,null,null,"of which:",null,null,null,null,null,null,null,null,null,null,null,null,null,null,null,null,null,null,null,null,null,null,null,":"]
["S11_S12","A","EP_P51G_CREP_fc",null,null,null,"A","Agriculture, forestry and fishing",null,":",null,":",null,":",null,":",null,":",null,":",null,":",null,":",null,":",null,":",null,":",null,":",null,":",null,":",null,":"]
["S11_S12","E3739","EP_P51G_CREP_fc",null,null,null,"E37-39","Sewerage: waste management and remendiation activities",null,":",null,":",null,":",null,":",null,":",null,":",null,":",null,":",null,":",null,":",null,":",null,":",null,":",null,":",null,":"]
["S11_S12","F","EP_P51G_CREP_fc",null,null,null,"F","Construction",null,":",null,":",null,":",null,":",null,":",null,":",null,":",null,":",null,":",null,":",null,":",null,":",null,":",null,":",null,":"]
["S11_S12","H","EP_P51G_CREP_fc",null,null,null,"H","Transportation and storage",null,":",null,":",null,":",null,":",null,":",null,":",null,":",null,":",null,":",null,":",null,":",null,":",null,":",null,":",null,":"]
["S11_S12","L","EP_P51G_CREP_fc",null,null,null,"L","Real estate activities",null,":",null,":",null,":",null,":",null,":",null,":",null,":",null,":",null,":",null,":",null,":",null,":",null,":",null,":",null,":"]

{"sheet":"8.3_Add_2015","index":48,"n_rows":39,"n_cols":38,"rows_kept":39,"cut":false,"hidden":false,"merged":[[38,7,38,8],[26,7,26,8],[27,7,27,8],[28,4,28,5],[28,7,28,8],[29,7,29,8],[30,7,30,8],[31,7,31,8],[34,7,34,8],[35,7,35,8],[36,7,36,8],[37,7,37,8],[3,9,4,10],[3,11,4,12],[25,7,25,8],[12,7,12,8],[13,7,13,8],[14,7,14,8],[15,7,15,8],[16,7,16,8],[18,7,18,8],[19,7,19,8],[20,7,20,8],[23,7,23,8],[24,7,24,8],[17,4,17,5],[17,7,17,8],[4,4,4,7],[6,4,6,5],[6,7,6,8],[7,7,7,8],[8,7,8,8],[9,7,9,8],[0,4,0,8],[1,4,1,8],[1,9,1,32],[1,33,1,38],[2,9,2,32],[2,33,2,38],[3,13,4,14],[3,15,4,16],[3,17,4,18],[3,37,4,38],[3,21,4,22],[3,23,4,24],[3,25,4,26],[3,31,4,32],[3,33,4,34],[3,35,4,36],[3,27,4,28],[3,29,4,30],[3,19,4,20]]}
[null,null,null,null,{"$f":"Cover!B21","v":"QUESTIONNAIRE ON ENVIRONMENTAL PROTECTION EXPENDITURE ACCOUNTS"},null,null,null,null,"GFCF - Corporations: other (also covering producers of ancillary EP services)",null,null,null,null,null,null,null,null,null,null,null,null,null,null,null,null,null,null,null,null,null,null,null,"GFCF - Corporations: other (also covering producers of ancillary RM products)"]
[null,null,null,null,{"$f":"E1","v":"QUESTIONNAIRE ON ENVIRONMENTAL PROTECTION EXPENDITURE ACCOUNTS"},null,null,null,null,{"$f":"J1","v":"GFCF - Corporations: other (also covering producers of ancillary EP services)"},null,null,null,null,null,null,null,null,null,null,null,null,null,null,null,null,null,null,null,null,null,null,null,{"$f":"AH1","v":"GFCF - Corporations: other (also covering producers of ancillary RM products)"}]
[null,null,null,null,null,null,null,null,null,"Figures calculated from information available in the questionnaire",null,null,null,null,null,null,null,null,null,null,null,null,null,null,null,null,null,null,null,null,null,null,null,"Figures calculated from information available in the questionnaire"]
[null,null,null,null,"Country/Unit",{"$f":"IFERROR(Cover!C16,\"\")","v":""},{"$f":"\"\"&Cover!B16","v":""},null,{"$f":"Cover!B17","v":"Million units of national currency"},"CEPA 1",null,"of which CEPA 1.1.2 and 1.2.2 Climate change",null,"CEPA 2",null,"CEPA 3",null,"CEPA 4",null,"CEPA 5",null,"CEPA 6",null,"CEPA 7",null,"CEPA 8",null,"CEPA 9",null,"Sum of CEPA 7+8+9",null,"TOTAL CEPA",null," CReMA\n11B + 13C + 14 \n(Materials recovery)",null,"CReMA13A (Production of energy  from renewable sources)",null,"CReMA13B \n(Energy efficiency and savings)"]
[null,null,null,null,"Expenditure",null,null,null,2015,null,null,null,null,null,null,null,null,null,null,null,null,null,null,null,null,null,null,null,null,"Landscape",null,"Landscape",null,"Landscape",null,"Landscape",null,"Landscape"]
[null,null,null,null,null,null,null,null,2015,"CEPA1",null,"CEPA112_122",null,"CEPA2",null,"CEPA3",null,"CEPA4",null,"CEPA5",null,"CEPA6",null,"CEPA7",null,"CEPA8",null,"CEPA9",null,"CEPA7-9",null,"TOT_CEPA",null,"CREMA 11B_13C_14",null,"CREMA 13A",null,"CREMA 13B"]
["S11_S12","B","EPS_P51G_NP",null,"( P51G_NP.3 ) Gross fixed capital formation and acquisition less disposals of non-financial non-produced assets (integrated and end of pipe technologies)",null,"B","Mining and Quarring",null,{"$f":"'3a'!J8","v":":"},{"$f":"'3a'!K8","v":0},{"$f":"'3a'!L8","v":":"},{"$f":"'3a'!M8","v":0},{"$f":"'3a'!N8","v":":"},{"$f":"'3a'!O8","v":0},{"$f":"'3a'!P8","v":":"},{"$f":"'3a'!Q8","v":0},{"$f":"'3a'!R8","v":":"},{"$f":"'3a'!S8","v":0},{"$f":"'3a'!T8","v":":"},{"$f":"'3a'!U8","v":0},{"$f":"'3a'!V8","v":":"},{"$f":"'3a'!W8","v":0},{"$f":"'3a'!X8","v":":"},{"$f":"'3a'!Y8","v":0},{"$f":"'3a'!Z8","v":":"},{"$f":"'3a'!AA8","v":0},{"$f":"'3a'!AB8","v":":"},{"$f":"'3a'!AC8","v":0},{"$f":"'3a'!AD8","v":":"},{"$f":"'3a'!AE8","v":0},{"$f":"'3a'!AF8","v":":"},{"$f":"'3a'!AG8","v":0},":",null,":",null,":"]
["S11_S12","C","EPS_P51G_NP",null,null,null,"C","Manufacturing",null,{"$f":"'3b'!J8","v":":"},{"$f":"'3b'!K8","v":0},{"$f":"'3b'!L8","v":":"},{"$f":"'3b'!M8","v":0},{"$f":"'3b'!N8","v":":"},{"$f":"'3b'!O8","v":0},{"$f":"'3b'!P8","v":":"},{"$f":"'3b'!Q8","v":0},{"$f":"'3b'!R8","v":":"},{"$f":"'3b'!S8","v":0},{"$f":"'3b'!T8","v":":"},{"$f":"'3b'!U8","v":0},{"$f":"'3b'!V8","v":":"},{"$f":"'3b'!W8","v":0},{"$f":"'3b'!X8","v":":"},{"$f":"'3b'!Y8","v":0},{"$f":"'3b'!Z8","v":":"},{"$f":"'3b'!AA8","v":0},{"$f":"'3b'!AB8","v":":"},{"$f":"'3b'!AC8","v":0},{"$f":"'3b'!AD8","v":":"},{"$f":"'3b'!AE8","v":0},{"$f":"'3b'!AF8","v":":"},{"$f":"'3b'!AG8","v":0},":",null,":",null,":"]
["S11_S12","D","EPS_P51G_NP",null,null,null,"D","Electricity, gas, steam and air conditionning supply",null,{"$f":"'3c'!J8","v":":"},{"$f":"'3c'!K8","v":0},{"$f":"'3c'!L8","v":":"},{"$f":"'3c'!M8","v":0},{"$f":"'3c'!N8","v":":"},{"$f":"'3c'!O8","v":0},{"$f":"'3c'!P8","v":":"},{"$f":"'3c'!Q8","v":0},{"$f":"'3c'!R8","v":":"},{"$f":"'3c'!S8","v":0},{"$f":"'3c'!T8","v":":"},{"$f":"'3c'!U8","v":0},{"$f":"'3c'!V8","v":":"},{"$f":"'3c'!W8","v":0},{"$f":"'3c'!X8","v":":"},{"$f":"'3c'!Y8","v":0},{"$f":"'3c'!Z8","v":":"},{"$f":"'3c'!AA8","v":0},{"$f":"'3c'!AB8","v":":"},{"$f":"'3c'!AC8","v":0},{"$f":"'3c'!AD8","v":":"},{"$f":"'3c'!AE8","v":0},{"$f":"'3c'!AF8","v":":"},{"$f":"'3c'!AG8","v":0},":",null,":",null,":"]
["S11_S12","E36","EPS_P51G_NP",null,null,null,"E36","Water supply",null,{"$f":"'3d'!J8","v":":"},{"$f":"'3d'!K8","v":0},{"$f":"'3d'!L8","v":":"},{"$f":"'3d'!M8","v":0},{"$f":"'3d'!N8","v":":"},{"$f":"'3d'!O8","v":0},{"$f":"'3d'!P8","v":":"},{"$f":"'3d'!Q8","v":0},{"$f":"'3d'!R8","v":":"},{"$f":"'3d'!S8","v":0},{"$f":"'3d'!T8","v":":"},{"$f":"'3d'!U8","v":0},{"$f":"'3d'!V8","v":":"},{"$f":"'3d'!W8","v":0},{"$f":"'3d'!X8","v":":"},{"$f":"'3d'!Y8","v":0},{"$f":"'3d'!Z8","v":":"},{"$f":"'3d'!AA8","v":0},{"$f":"'3d'!AB8","v":":"},{"$f":"'3d'!AC8","v":0},{"$f":"'3d'!AD8","v":":"},{"$f":"'3d'!AE8","v":0},{"$f":"'3d'!AF8","v":":"},{"$f":"'3d'!AG8","v":0},":",null,":",null,":"]
["S11_S12","A_EP_OTH","EPS_P51G_NP",null,null,null,"OTH","OTHER NACE",null,{"$f":"'3e (voluntary)'!J8","v":":"},{"$f":"'3e (voluntary)'!K8","v":0},{"$f":"'3e (voluntary)'!L8","v":":"},{"$f":"'3e (voluntary)'!M8","v":0},{"$f":"'3e (voluntary)'!N8","v":":"},{"$f":"'3e (voluntary)'!O8","v":0},{"$f":"'3e (voluntary)'!P8","v":":"},{"$f":"'3e (voluntary)'!Q8","v":0},{"$f":"'3e (voluntary)'!R8","v":":"},{"$f":"'3e (voluntary)'!S8","v":0},{"$f":"'3e (voluntary)'!T8","v":":"},{"$f":"'3e (voluntary)'!U8","v":0},{"$f":"'3e (voluntary)'!V8","v":":"},{"$f":"'3e (voluntary)'!W8","v":0},{"$f":"'3e (voluntary)'!X8","v":":"},{"$f":"'3e (voluntary)'!Y8","v":0},{"$f":"'3e (voluntary)'!Z8","v":":"},{"$f":"'3e (voluntary)'!AA8","v":0},{"$f":"'3e (voluntary)'!AB8","v":":"},{"$f":"'3e (voluntary)'!AC8","v":0},{"$f":"'3e (voluntary)'!AD8","v":":"},{"$f":"'3e (voluntary)'!AE8","v":0},{"$f":"'3e (voluntary)'!AF8","v":":"},{"$f":"'3e (voluntary)'!AG8","v":0},":",null,":",null,":"]
[null,null,null,null,null,null,null,"of which:"]
["S11_S12","A","EPS_P51G_NP",null,null,null,"A","Agriculture, forestry and fishing",null,":",null,":",null,":",null,":",null,":",null,":",null,":",null,":",null,":",null,":",null,":",null,{"$f":"IF(COUNT(J13,N13,P13, R13,T13,V13,AD13)=7,SUM(J13,N13,P13, R13,T13,V13,AD13),\":\")","v":":"},null,":",null,":"]
["S11_S12","E3739","EPS_P51G_NP",null,null,null,"E37-39","Sewerage: waste management and remendiation activities",null,":",null,":",null,":",null,":",null,":",null,":",null,":",null,":",null,":",null,":",null,":",null,":",null,":",null,":"]
["S11_S12","F","EPS_P51G_NP",null,null,null,"F","Construction",null,":",null,":",null,":",null,":",null,":",null,":",null,":",null,":",null,":",null,":",null,":",null,":",null,":",null,":"]
["S11_S12","H","EPS_P51G_NP",null,null,null,"H","Transportation and storage",null,":",null,":",null,":",null,":",null,":",null,":",null,":",null,":",null,":",null,":",null,":",null,":",null,":",null,":"]
["S11_S12","L","EPS_P51G_NP",null,null,null,"L","Real estate activities",null,":",null,":",null,":",null,":",null,":",null,":",null,":",null,":",null,":",null,":",null,":",null,":",null,":",null,":"]
["S11_S12","B","EP_P51G_CREP_ec",null,"( P51G_CREP_ec.3Add) Gross fixed capital formation  in cleaner and resource efficient products for non characteristic activities - EXTRA COST",null,"B","Mining and Quarring",null,":",null,":",null,":",null,":",null,":",null,":",null,":",null,":",null,":",null,":",null,":",null,":",null,":",null,":",null,":"]
["S11_S12","C","EP_P51G_CREP_ec",null,null,null,"C","Manufacturing",null,":",null,":",null,":",null,":",null,":",null,":",null,":",null,":",null,":",null,":",null,":",null,":",null,":",null,":",null,":"]
["S11_S12","D","EP_P51G_CREP_ec",null,null,null,"D","Electricity, gas, steam and air conditionning supply",null,":",null,":",null,":",null,":",null,":",null,":",null,":",null,":",null,":",null,":",null,":",null,":",null,":",null,":",null,":"]
["S11_S12","E36","EP_P51G_CREP_ec",null,null,null,"E36","Water supply",null,":",null,":",null,":",null,":",null,":",null,":",null,":",null,":",null,":",null,":",null,":",null,":",null,":",null,":",null,":"]
["S11_S12","A_EP_OTH","EP_P51G_CREP_ec",null,null,null,"OTH","OTHER NACE",null,":",null,":",null,":",null,":",null,":",null,":",null,":",null,":",null,":",null,":",null,":",null,":",null,":",null,":",null,":"]
[null,null,null,null,null,null,null,"of which:",null,null,null,null,null,null,null,null,null,null,null,null,null,null,null,null,null,null,null,null,null,null,null,":"]
["S11_S12","A","EP_P51G_CREP_ec",null,null,null,"A","Agriculture, forestry and fishing",null,":",null,":",null,":",null,":",null,":",null,":",null,":",null,":",null,":",null,":",null,":",null,":",null,":",null,":",null,":"]
["S11_S12","E3739","EP_P51G_CREP_ec",null,null,null,"E37-39","Sewerage: waste management and remendiation activities",null,":",null,":",null,":",null,":",null,":",null,":",null,":",null,":",null,":",null,":",null,":",null,":",null,":",null,":",null,":"]
["S11_S12","F","EP_P51G_CREP_ec",null,null,null,"F","Construction",null,":",null,":",null,":",null,":",null,":",null,":",null,":",null,":",null,":",null,":",null,":",null,":",null,":",null,":",null,":"]
["S11_S12","H","EP_P51G_CREP_ec",null,null,null,"H","Transportation and storage",null,":",null,":",null,":",null,":",null,":",null,":",null,":",null,":",null,":",null,":",null,":",null,":",null,":",null,":",null,":"]
["S11_S12","L","EP_P51G_CREP_ec",null,null,null,"L","Real estate activities",null,":",null,":",null,":",null,":",null,":",null,":",null,":",null,":",null,":",null,":",null,":",null,":",null,":",null,":",null,":"]
["S11_S12","B","EP_P51G_CREP_fc",null,"( P51G_NP_CREP_fc.3Add ) Gross fixed capital formation and acquisition less disposals of non-financial non-produced assets in cleaner and resource efficient products - FULL COST",null,"B","Mining and Quarring",null,":",null,":",null,":",null,":",null,":",null,":",null,":",null,":",null,":",null,":",null,":",null,":",null,":",null,":",null,":"]
["S11_S12","C","EP_P51G_CREP_fc",null,null,null,"C","Manufacturing",null,":",null,":",null,":",null,":",null,":",null,":",null,":",null,":",null,":",null,":",null,":",null,":",null,":",null,":",null,":"]
["S11_S12","D","EP_P51G_CREP_fc",null,null,null,"D","Electricity, gas, steam and air conditionning supply",null,":",null,":",null,":",null,":",null,":",null,":",null,":",null,":",null,":",null,":",null,":",null,":",null,":",null,":",null,":"]
["S11_S12","E36","EP_P51G_CREP_fc",null,null,null,"E36","Water supply",null,":",null,":",null,":",null,":",null,":",null,":",null,":",null,":",null,":",null,":",null,":",null,":",null,":",null,":",null,":"]
["S11_S12","A_EP_OTH","EP_P51G_CREP_fc",null,null,null,"OTH","OTHER NACE",null,":",null,":",null,":",null,":",null,":",null,":",null,":",null,":",null,":",null,":",null,":",null,":",null,":",null,":",null,":"]
[null,null,null,null,null,null,null,"of which:",null,null,null,null,null,null,null,null,null,null,null,null,null,null,null,null,null,null,null,null,null,null,null,":"]
["S11_S12","A","EP_P51G_CREP_fc",null,null,null,"A","Agriculture, forestry and fishing",null,":",null,":",null,":",null,":",null,":",null,":",null,":",null,":",null,":",null,":",null,":",null,":",null,":",null,":",null,":"]
["S11_S12","E3739","EP_P51G_CREP_fc",null,null,null,"E37-39","Sewerage: waste management and remendiation activities",null,":",null,":",null,":",null,":",null,":",null,":",null,":",null,":",null,":",null,":",null,":",null,":",null,":",null,":",null,":"]
["S11_S12","F","EP_P51G_CREP_fc",null,null,null,"F","Construction",null,":",null,":",null,":",null,":",null,":",null,":",null,":",null,":",null,":",null,":",null,":",null,":",null,":",null,":",null,":"]
["S11_S12","H","EP_P51G_CREP_fc",null,null,null,"H","Transportation and storage",null,":",null,":",null,":",null,":",null,":",null,":",null,":",null,":",null,":",null,":",null,":",null,":",null,":",null,":",null,":"]
["S11_S12","L","EP_P51G_CREP_fc",null,null,null,"L","Real estate activities",null,":",null,":",null,":",null,":",null,":",null,":",null,":",null,":",null,":",null,":",null,":",null,":",null,":",null,":",null,":"]

{"sheet":"8.3_Add_2016","index":49,"n_rows":39,"n_cols":38,"rows_kept":39,"cut":false,"hidden":false,"merged":[[38,7,38,8],[26,7,26,8],[27,7,27,8],[28,4,28,5],[28,7,28,8],[29,7,29,8],[30,7,30,8],[31,7,31,8],[34,7,34,8],[35,7,35,8],[36,7,36,8],[37,7,37,8],[3,9,4,10],[3,11,4,12],[25,7,25,8],[12,7,12,8],[13,7,13,8],[14,7,14,8],[15,7,15,8],[16,7,16,8],[18,7,18,8],[19,7,19,8],[20,7,20,8],[23,7,23,8],[24,7,24,8],[17,4,17,5],[17,7,17,8],[4,4,4,7],[6,4,6,5],[6,7,6,8],[7,7,7,8],[8,7,8,8],[9,7,9,8],[0,4,0,8],[1,4,1,8],[1,9,1,32],[1,33,1,38],[2,9,2,32],[2,33,2,38],[3,13,4,14],[3,15,4,16],[3,17,4,18],[3,37,4,38],[3,21,4,22],[3,23,4,24],[3,25,4,26],[3,31,4,32],[3,33,4,34],[3,35,4,36],[3,27,4,28],[3,29,4,30],[3,19,4,20]]}
[null,null,null,null,{"$f":"Cover!B21","v":"QUESTIONNAIRE ON ENVIRONMENTAL PROTECTION EXPENDITURE ACCOUNTS"},null,null,null,null,"GFCF - Corporations: other (also covering producers of ancillary EP services)",null,null,null,null,null,null,null,null,null,null,null,null,null,null,null,null,null,null,null,null,null,null,null,"GFCF - Corporations: other (also covering producers of ancillary RM products)"]
[null,null,null,null,{"$f":"E1","v":"QUESTIONNAIRE ON ENVIRONMENTAL PROTECTION EXPENDITURE ACCOUNTS"},null,null,null,null,{"$f":"J1","v":"GFCF - Corporations: other (also covering producers of ancillary EP services)"},null,null,null,null,null,null,null,null,null,null,null,null,null,null,null,null,null,null,null,null,null,null,null,{"$f":"AH1","v":"GFCF - Corporations: other (also covering producers of ancillary RM products)"}]
[null,null,null,null,null,null,null,null,null,"Figures calculated from information available in the questionnaire",null,null,null,null,null,null,null,null,null,null,null,null,null,null,null,null,null,null,null,null,null,null,null,"Figures calculated from information available in the questionnaire"]
[null,null,null,null,"Country/Unit",{"$f":"IFERROR(Cover!C16,\"\")","v":""},{"$f":"\"\"&Cover!B16","v":""},null,{"$f":"Cover!B17","v":"Million units of national currency"},"CEPA 1",null,"of which CEPA 1.1.2 and 1.2.2 Climate change",null,"CEPA 2",null,"CEPA 3",null,"CEPA 4",null,"CEPA 5",null,"CEPA 6",null,"CEPA 7",null,"CEPA 8",null,"CEPA 9",null,"Sum of CEPA 7+8+9",null,"TOTAL CEPA",null," CReMA\n11B + 13C + 14 \n(Materials recovery)",null,"CReMA13A (Production of energy  from renewable sources)",null,"CReMA13B \n(Energy efficiency and savings)"]
[null,null,null,null,"Expenditure",null,null,null,2016,null,null,null,null,null,null,null,null,null,null,null,null,null,null,null,null,null,null,null,null,"Landscape",null,"Landscape",null,"Landscape",null,"Landscape",null,"Landscape"]
[null,null,null,null,null,null,null,null,2016,"CEPA1",null,"CEPA112_122",null,"CEPA2",null,"CEPA3",null,"CEPA4",null,"CEPA5",null,"CEPA6",null,"CEPA7",null,"CEPA8",null,"CEPA9",null,"CEPA7-9",null,"TOT_CEPA",null,"CREMA 11B_13C_14",null,"CREMA 13A",null,"CREMA 13B"]
["S11_S12","B","EPS_P51G_NP",null,"( P51G_NP.3 ) Gross fixed capital formation and acquisition less disposals of non-financial non-produced assets (integrated and end of pipe technologies)",null,"B","Mining and Quarring",null,{"$f":"'3a'!J9","v":":"},{"$f":"'3a'!K9","v":0},{"$f":"'3a'!L9","v":":"},{"$f":"'3a'!M9","v":0},{"$f":"'3a'!N9","v":":"},{"$f":"'3a'!O9","v":0},{"$f":"'3a'!P9","v":":"},{"$f":"'3a'!Q9","v":0},{"$f":"'3a'!R9","v":":"},{"$f":"'3a'!S9","v":0},{"$f":"'3a'!T9","v":":"},{"$f":"'3a'!U9","v":0},{"$f":"'3a'!V9","v":":"},{"$f":"'3a'!W9","v":0},{"$f":"'3a'!X9","v":":"},{"$f":"'3a'!Y9","v":0},{"$f":"'3a'!Z9","v":":"},{"$f":"'3a'!AA9","v":0},{"$f":"'3a'!AB9","v":":"},{"$f":"'3a'!AC9","v":0},{"$f":"'3a'!AD9","v":":"},{"$f":"'3a'!AE9","v":0},{"$f":"'3a'!AF9","v":":"},{"$f":"'3a'!AG9","v":0},":",null,":",null,":"]
["S11_S12","C","EPS_P51G_NP",null,null,null,"C","Manufacturing",null,{"$f":"'3b'!J9","v":":"},{"$f":"'3b'!K9","v":0},{"$f":"'3b'!L9","v":":"},{"$f":"'3b'!M9","v":0},{"$f":"'3b'!N9","v":":"},{"$f":"'3b'!O9","v":0},{"$f":"'3b'!P9","v":":"},{"$f":"'3b'!Q9","v":0},{"$f":"'3b'!R9","v":":"},{"$f":"'3b'!S9","v":0},{"$f":"'3b'!T9","v":":"},{"$f":"'3b'!U9","v":0},{"$f":"'3b'!V9","v":":"},{"$f":"'3b'!W9","v":0},{"$f":"'3b'!X9","v":":"},{"$f":"'3b'!Y9","v":0},{"$f":"'3b'!Z9","v":":"},{"$f":"'3b'!AA9","v":0},{"$f":"'3b'!AB9","v":":"},{"$f":"'3b'!AC9","v":0},{"$f":"'3b'!AD9","v":":"},{"$f":"'3b'!AE9","v":0},{"$f":"'3b'!AF9","v":":"},{"$f":"'3b'!AG9","v":0},":",null,":",null,":"]
["S11_S12","D","EPS_P51G_NP",null,null,null,"D","Electricity, gas, steam and air conditionning supply",null,{"$f":"'3c'!J9","v":":"},{"$f":"'3c'!K9","v":0},{"$f":"'3c'!L9","v":":"},{"$f":"'3c'!M9","v":0},{"$f":"'3c'!N9","v":":"},{"$f":"'3c'!O9","v":0},{"$f":"'3c'!P9","v":":"},{"$f":"'3c'!Q9","v":0},{"$f":"'3c'!R9","v":":"},{"$f":"'3c'!S9","v":0},{"$f":"'3c'!T9","v":":"},{"$f":"'3c'!U9","v":0},{"$f":"'3c'!V9","v":":"},{"$f":"'3c'!W9","v":0},{"$f":"'3c'!X9","v":":"},{"$f":"'3c'!Y9","v":0},{"$f":"'3c'!Z9","v":":"},{"$f":"'3c'!AA9","v":0},{"$f":"'3c'!AB9","v":":"},{"$f":"'3c'!AC9","v":0},{"$f":"'3c'!AD9","v":":"},{"$f":"'3c'!AE9","v":0},{"$f":"'3c'!AF9","v":":"},{"$f":"'3c'!AG9","v":0},":",null,":",null,":"]
["S11_S12","E36","EPS_P51G_NP",null,null,null,"E36","Water supply",null,{"$f":"'3d'!J9","v":":"},{"$f":"'3d'!K9","v":0},{"$f":"'3d'!L9","v":":"},{"$f":"'3d'!M9","v":0},{"$f":"'3d'!N9","v":":"},{"$f":"'3d'!O9","v":0},{"$f":"'3d'!P9","v":":"},{"$f":"'3d'!Q9","v":0},{"$f":"'3d'!R9","v":":"},{"$f":"'3d'!S9","v":0},{"$f":"'3d'!T9","v":":"},{"$f":"'3d'!U9","v":0},{"$f":"'3d'!V9","v":":"},{"$f":"'3d'!W9","v":0},{"$f":"'3d'!X9","v":":"},{"$f":"'3d'!Y9","v":0},{"$f":"'3d'!Z9","v":":"},{"$f":"'3d'!AA9","v":0},{"$f":"'3d'!AB9","v":":"},{"$f":"'3d'!AC9","v":0},{"$f":"'3d'!AD9","v":":"},{"$f":"'3d'!AE9","v":0},{"$f":"'3d'!AF9","v":":"},{"$f":"'3d'!AG9","v":0},":",null,":",null,":"]
["S11_S12","A_EP_OTH","EPS_P51G_NP",null,null,null,"OTH","OTHER NACE",null,{"$f":"'3e (voluntary)'!J9","v":":"},{"$f":"'3e (voluntary)'!K9","v":0},{"$f":"'3e (voluntary)'!L9","v":":"},{"$f":"'3e (voluntary)'!M9","v":0},{"$f":"'3e (voluntary)'!N9","v":":"},{"$f":"'3e (voluntary)'!O9","v":0},{"$f":"'3e (voluntary)'!P9","v":":"},{"$f":"'3e (voluntary)'!Q9","v":0},{"$f":"'3e (voluntary)'!R9","v":":"},{"$f":"'3e (voluntary)'!S9","v":0},{"$f":"'3e (voluntary)'!T9","v":":"},{"$f":"'3e (voluntary)'!U9","v":0},{"$f":"'3e (voluntary)'!V9","v":":"},{"$f":"'3e (voluntary)'!W9","v":0},{"$f":"'3e (voluntary)'!X9","v":":"},{"$f":"'3e (voluntary)'!Y9","v":0},{"$f":"'3e (voluntary)'!Z9","v":":"},{"$f":"'3e (voluntary)'!AA9","v":0},{"$f":"'3e (voluntary)'!AB9","v":":"},{"$f":"'3e (voluntary)'!AC9","v":0},{"$f":"'3e (voluntary)'!AD9","v":":"},{"$f":"'3e (voluntary)'!AE9","v":0},{"$f":"'3e (voluntary)'!AF9","v":":"},{"$f":"'3e (voluntary)'!AG9","v":0},":",null,":",null,":"]
[null,null,null,null,null,null,null,"of which:"]
["S11_S12","A","EPS_P51G_NP",null,null,null,"A","Agriculture, forestry and fishing",null,":",null,":",null,":",null,":",null,":",null,":",null,":",null,":",null,":",null,":",null,":",null,{"$f":"IF(COUNT(J13,N13,P13, R13,T13,V13,AD13)=7,SUM(J13,N13,P13, R13,T13,V13,AD13),\":\")","v":":"},null,":",null,":"]
["S11_S12","E3739","EPS_P51G_NP",null,null,null,"E37-39","Sewerage: waste management and remendiation activities",null,":",null,":",null,":",null,":",null,":",null,":",null,":",null,":",null,":",null,":",null,":",null,":",null,":",null,":"]
["S11_S12","F","EPS_P51G_NP",null,null,null,"F","Construction",null,":",null,":",null,":",null,":",null,":",null,":",null,":",null,":",null,":",null,":",null,":",null,":",null,":",null,":"]
["S11_S12","H","EPS_P51G_NP",null,null,null,"H","Transportation and storage",null,":",null,":",null,":",null,":",null,":",null,":",null,":",null,":",null,":",null,":",null,":",null,":",null,":",null,":"]
["S11_S12","L","EPS_P51G_NP",null,null,null,"L","Real estate activities",null,":",null,":",null,":",null,":",null,":",null,":",null,":",null,":",null,":",null,":",null,":",null,":",null,":",null,":"]
["S11_S12","B","EP_P51G_CREP_ec",null,"( P51G_CREP_ec.3Add) Gross fixed capital formation  in cleaner and resource efficient products for non characteristic activities - EXTRA COST",null,"B","Mining and Quarring",null,":",null,":",null,":",null,":",null,":",null,":",null,":",null,":",null,":",null,":",null,":",null,":",null,":",null,":",null,":"]
["S11_S12","C","EP_P51G_CREP_ec",null,null,null,"C","Manufacturing",null,":",null,":",null,":",null,":",null,":",null,":",null,":",null,":",null,":",null,":",null,":",null,":",null,":",null,":",null,":"]
["S11_S12","D","EP_P51G_CREP_ec",null,null,null,"D","Electricity, gas, steam and air conditionning supply",null,":",null,":",null,":",null,":",null,":",null,":",null,":",null,":",null,":",null,":",null,":",null,":",null,":",null,":",null,":"]
["S11_S12","E36","EP_P51G_CREP_ec",null,null,null,"E36","Water supply",null,":",null,":",null,":",null,":",null,":",null,":",null,":",null,":",null,":",null,":",null,":",null,":",null,":",null,":",null,":"]
["S11_S12","A_EP_OTH","EP_P51G_CREP_ec",null,null,null,"OTH","OTHER NACE",null,":",null,":",null,":",null,":",null,":",null,":",null,":",null,":",null,":",null,":",null,":",null,":",null,":",null,":",null,":"]
[null,null,null,null,null,null,null,"of which:",null,null,null,null,null,null,null,null,null,null,null,null,null,null,null,null,null,null,null,null,null,null,null,":"]
["S11_S12","A","EP_P51G_CREP_ec",null,null,null,"A","Agriculture, forestry and fishing",null,":",null,":",null,":",null,":",null,":",null,":",null,":",null,":",null,":",null,":",null,":",null,":",null,":",null,":",null,":"]
["S11_S12","E3739","EP_P51G_CREP_ec",null,null,null,"E37-39","Sewerage: waste management and remendiation activities",null,":",null,":",null,":",null,":",null,":",null,":",null,":",null,":",null,":",null,":",null,":",null,":",null,":",null,":",null,":"]
["S11_S12","F","EP_P51G_CREP_ec",null,null,null,"F","Construction",null,":",null,":",null,":",null,":",null,":",null,":",null,":",null,":",null,":",null,":",null,":",null,":",null,":",null,":",null,":"]
["S11_S12","H","EP_P51G_CREP_ec",null,null,null,"H","Transportation and storage",null,":",null,":",null,":",null,":",null,":",null,":",null,":",null,":",null,":",null,":",null,":",null,":",null,":",null,":",null,":"]
["S11_S12","L","EP_P51G_CREP_ec",null,null,null,"L","Real estate activities",null,":",null,":",null,":",null,":",null,":",null,":",null,":",null,":",null,":",null,":",null,":",null,":",null,":",null,":",null,":"]
["S11_S12","B","EP_P51G_CREP_fc",null,"( P51G_NP_CREP_fc.3Add ) Gross fixed capital formation and acquisition less disposals of non-financial non-produced assets in cleaner and resource efficient products - FULL COST",null,"B","Mining and Quarring",null,":",null,":",null,":",null,":",null,":",null,":",null,":",null,":",null,":",null,":",null,":",null,":",null,":",null,":",null,":"]
["S11_S12","C","EP_P51G_CREP_fc",null,null,null,"C","Manufacturing",null,":",null,":",null,":",null,":",null,":",null,":",null,":",null,":",null,":",null,":",null,":",null,":",null,":",null,":",null,":"]
["S11_S12","D","EP_P51G_CREP_fc",null,null,null,"D","Electricity, gas, steam and air conditionning supply",null,":",null,":",null,":",null,":",null,":",null,":",null,":",null,":",null,":",null,":",null,":",null,":",null,":",null,":",null,":"]
["S11_S12","E36","EP_P51G_CREP_fc",null,null,null,"E36","Water supply",null,":",null,":",null,":",null,":",null,":",null,":",null,":",null,":",null,":",null,":",null,":",null,":",null,":",null,":",null,":"]
["S11_S12","A_EP_OTH","EP_P51G_CREP_fc",null,null,null,"OTH","OTHER NACE",null,":",null,":",null,":",null,":",null,":",null,":",null,":",null,":",null,":",null,":",null,":",null,":",null,":",null,":",null,":"]
[null,null,null,null,null,null,null,"of which:",null,null,null,null,null,null,null,null,null,null,null,null,null,null,null,null,null,null,null,null,null,null,null,":"]
["S11_S12","A","EP_P51G_CREP_fc",null,null,null,"A","Agriculture, forestry and fishing",null,":",null,":",null,":",null,":",null,":",null,":",null,":",null,":",null,":",null,":",null,":",null,":",null,":",null,":",null,":"]
["S11_S12","E3739","EP_P51G_CREP_fc",null,null,null,"E37-39","Sewerage: waste management and remendiation activities",null,":",null,":",null,":",null,":",null,":",null,":",null,":",null,":",null,":",null,":",null,":",null,":",null,":",null,":",null,":"]
["S11_S12","F","EP_P51G_CREP_fc",null,null,null,"F","Construction",null,":",null,":",null,":",null,":",null,":",null,":",null,":",null,":",null,":",null,":",null,":",null,":",null,":",null,":",null,":"]
["S11_S12","H","EP_P51G_CREP_fc",null,null,null,"H","Transportation and storage",null,":",null,":",null,":",null,":",null,":",null,":",null,":",null,":",null,":",null,":",null,":",null,":",null,":",null,":",null,":"]
["S11_S12","L","EP_P51G_CREP_fc",null,null,null,"L","Real estate activities",null,":",null,":",null,":",null,":",null,":",null,":",null,":",null,":",null,":",null,":",null,":",null,":",null,":",null,":",null,":"]

{"sheet":"8.3_Add_2017","index":50,"n_rows":39,"n_cols":38,"rows_kept":39,"cut":false,"hidden":false,"merged":[[38,7,38,8],[26,7,26,8],[27,7,27,8],[28,4,28,5],[28,7,28,8],[29,7,29,8],[30,7,30,8],[31,7,31,8],[34,7,34,8],[35,7,35,8],[36,7,36,8],[37,7,37,8],[3,9,4,10],[3,11,4,12],[25,7,25,8],[12,7,12,8],[13,7,13,8],[14,7,14,8],[15,7,15,8],[16,7,16,8],[18,7,18,8],[19,7,19,8],[20,7,20,8],[23,7,23,8],[24,7,24,8],[17,4,17,5],[17,7,17,8],[4,4,4,7],[6,4,6,5],[6,7,6,8],[7,7,7,8],[8,7,8,8],[9,7,9,8],[0,4,0,8],[1,4,1,8],[1,9,1,32],[1,33,1,38],[2,9,2,32],[2,33,2,38],[3,13,4,14],[3,15,4,16],[3,17,4,18],[3,37,4,38],[3,21,4,22],[3,23,4,24],[3,25,4,26],[3,31,4,32],[3,33,4,34],[3,35,4,36],[3,27,4,28],[3,29,4,30],[3,19,4,20]]}
[null,null,null,null,{"$f":"Cover!B21","v":"QUESTIONNAIRE ON ENVIRONMENTAL PROTECTION EXPENDITURE ACCOUNTS"},null,null,null,null,"GFCF - Corporations: other (also covering producers of ancillary EP services)",null,null,null,null,null,null,null,null,null,null,null,null,null,null,null,null,null,null,null,null,null,null,null,"GFCF - Corporations: other (also covering producers of ancillary RM products)"]
[null,null,null,null,{"$f":"E1","v":"QUESTIONNAIRE ON ENVIRONMENTAL PROTECTION EXPENDITURE ACCOUNTS"},null,null,null,null,{"$f":"J1","v":"GFCF - Corporations: other (also covering producers of ancillary EP services)"},null,null,null,null,null,null,null,null,null,null,null,null,null,null,null,null,null,null,null,null,null,null,null,{"$f":"AH1","v":"GFCF - Corporations: other (also covering producers of ancillary RM products)"}]
[null,null,null,null,null,null,null,null,null,"Figures calculated from information available in the questionnaire",null,null,null,null,null,null,null,null,null,null,null,null,null,null,null,null,null,null,null,null,null,null,null,"Figures calculated from information available in the questionnaire"]
[null,null,null,null,"Country/Unit",{"$f":"IFERROR(Cover!C16,\"\")","v":""},{"$f":"\"\"&Cover!B16","v":""},null,{"$f":"Cover!B17","v":"Million units of national currency"},"CEPA 1",null,"of which CEPA 1.1.2 and 1.2.2 Climate change",null,"CEPA 2",null,"CEPA 3",null,"CEPA 4",null,"CEPA 5",null,"CEPA 6",null,"CEPA 7",null,"CEPA 8",null,"CEPA 9",null,"Sum of CEPA 7+8+9",null,"TOTAL CEPA",null," CReMA\n11B + 13C + 14 \n(Materials recovery)",null,"CReMA13A (Production of energy  from renewable sources)",null,"CReMA13B \n(Energy efficiency and savings)"]
[null,null,null,null,"Expenditure",null,null,null,2017,null,null,null,null,null,null,null,null,null,null,null,null,null,null,null,null,null,null,null,null,"Landscape",null,"Landscape",null,"Landscape",null,"Landscape",null,"Landscape"]
[null,null,null,null,null,null,null,null,2017,"CEPA1",null,"CEPA112_122",null,"CEPA2",null,"CEPA3",null,"CEPA4",null,"CEPA5",null,"CEPA6",null,"CEPA7",null,"CEPA8",null,"CEPA9",null,"CEPA7-9",null,"TOT_CEPA",null,"CREMA 11B_13C_14",null,"CREMA 13A",null,"CREMA 13B"]
["S11_S12","B","EPS_P51G_NP",null,"( P51G_NP.3 ) Gross fixed capital formation and acquisition less disposals of non-financial non-produced assets (integrated and end of pipe technologies)",null,"B","Mining and Quarring",null,{"$f":"'3a'!J10","v":":"},{"$f":"'3a'!K10","v":0},{"$f":"'3a'!L10","v":":"},{"$f":"'3a'!M10","v":0},{"$f":"'3a'!N10","v":":"},{"$f":"'3a'!O10","v":0},{"$f":"'3a'!P10","v":":"},{"$f":"'3a'!Q10","v":0},{"$f":"'3a'!R10","v":":"},{"$f":"'3a'!S10","v":0},{"$f":"'3a'!T10","v":":"},{"$f":"'3a'!U10","v":0},{"$f":"'3a'!V10","v":":"},{"$f":"'3a'!W10","v":0},{"$f":"'3a'!X10","v":":"},{"$f":"'3a'!Y10","v":0},{"$f":"'3a'!Z10","v":":"},{"$f":"'3a'!AA10","v":0},{"$f":"'3a'!AB10","v":":"},{"$f":"'3a'!AC10","v":0},{"$f":"'3a'!AD10","v":":"},{"$f":"'3a'!AE10","v":0},{"$f":"'3a'!AF10","v":":"},{"$f":"'3a'!AG10","v":0},":",null,":",null,":"]
["S11_S12","C","EPS_P51G_NP",null,null,null,"C","Manufacturing",null,{"$f":"'3b'!J10","v":":"},{"$f":"'3b'!K10","v":0},{"$f":"'3b'!L10","v":":"},{"$f":"'3b'!M10","v":0},{"$f":"'3b'!N10","v":":"},{"$f":"'3b'!O10","v":0},{"$f":"'3b'!P10","v":":"},{"$f":"'3b'!Q10","v":0},{"$f":"'3b'!R10","v":":"},{"$f":"'3b'!S10","v":0},{"$f":"'3b'!T10","v":":"},{"$f":"'3b'!U10","v":0},{"$f":"'3b'!V10","v":":"},{"$f":"'3b'!W10","v":0},{"$f":"'3b'!X10","v":":"},{"$f":"'3b'!Y10","v":0},{"$f":"'3b'!Z10","v":":"},{"$f":"'3b'!AA10","v":0},{"$f":"'3b'!AB10","v":":"},{"$f":"'3b'!AC10","v":0},{"$f":"'3b'!AD10","v":":"},{"$f":"'3b'!AE10","v":0},{"$f":"'3b'!AF10","v":":"},{"$f":"'3b'!AG10","v":0},":",null,":",null,":"]
["S11_S12","D","EPS_P51G_NP",null,null,null,"D","Electricity, gas, steam and air conditionning supply",null,{"$f":"'3c'!J10","v":":"},{"$f":"'3c'!K10","v":0},{"$f":"'3c'!L10","v":":"},{"$f":"'3c'!M10","v":0},{"$f":"'3c'!N10","v":":"},{"$f":"'3c'!O10","v":0},{"$f":"'3c'!P10","v":":"},{"$f":"'3c'!Q10","v":0},{"$f":"'3c'!R10","v":":"},{"$f":"'3c'!S10","v":0},{"$f":"'3c'!T10","v":":"},{"$f":"'3c'!U10","v":0},{"$f":"'3c'!V10","v":":"},{"$f":"'3c'!W10","v":0},{"$f":"'3c'!X10","v":":"},{"$f":"'3c'!Y10","v":0},{"$f":"'3c'!Z10","v":":"},{"$f":"'3c'!AA10","v":0},{"$f":"'3c'!AB10","v":":"},{"$f":"'3c'!AC10","v":0},{"$f":"'3c'!AD10","v":":"},{"$f":"'3c'!AE10","v":0},{"$f":"'3c'!AF10","v":":"},{"$f":"'3c'!AG10","v":0},":",null,":",null,":"]
["S11_S12","E36","EPS_P51G_NP",null,null,null,"E36","Water supply",null,{"$f":"'3d'!J10","v":":"},{"$f":"'3d'!K10","v":0},{"$f":"'3d'!L10","v":":"},{"$f":"'3d'!M10","v":0},{"$f":"'3d'!N10","v":":"},{"$f":"'3d'!O10","v":0},{"$f":"'3d'!P10","v":":"},{"$f":"'3d'!Q10","v":0},{"$f":"'3d'!R10","v":":"},{"$f":"'3d'!S10","v":0},{"$f":"'3d'!T10","v":":"},{"$f":"'3d'!U10","v":0},{"$f":"'3d'!V10","v":":"},{"$f":"'3d'!W10","v":0},{"$f":"'3d'!X10","v":":"},{"$f":"'3d'!Y10","v":0},{"$f":"'3d'!Z10","v":":"},{"$f":"'3d'!AA10","v":0},{"$f":"'3d'!AB10","v":":"},{"$f":"'3d'!AC10","v":0},{"$f":"'3d'!AD10","v":":"},{"$f":"'3d'!AE10","v":0},{"$f":"'3d'!AF10","v":":"},{"$f":"'3d'!AG10","v":0},":",null,":",null,":"]
["S11_S12","A_EP_OTH","EPS_P51G_NP",null,null,null,"OTH","OTHER NACE",null,{"$f":"'3e (voluntary)'!J10","v":":"},{"$f":"'3e (voluntary)'!K10","v":0},{"$f":"'3e (voluntary)'!L10","v":":"},{"$f":"'3e (voluntary)'!M10","v":0},{"$f":"'3e (voluntary)'!N10","v":":"},{"$f":"'3e (voluntary)'!O10","v":0},{"$f":"'3e (voluntary)'!P10","v":":"},{"$f":"'3e (voluntary)'!Q10","v":0},{"$f":"'3e (voluntary)'!R10","v":":"},{"$f":"'3e (voluntary)'!S10","v":0},{"$f":"'3e (voluntary)'!T10","v":":"},{"$f":"'3e (voluntary)'!U10","v":0},{"$f":"'3e (voluntary)'!V10","v":":"},{"$f":"'3e (voluntary)'!W10","v":0},{"$f":"'3e (voluntary)'!X10","v":":"},{"$f":"'3e (voluntary)'!Y10","v":0},{"$f":"'3e (voluntary)'!Z10","v":":"},{"$f":"'3e (voluntary)'!AA10","v":0},{"$f":"'3e (voluntary)'!AB10","v":":"},{"$f":"'3e (voluntary)'!AC10","v":0},{"$f":"'3e (voluntary)'!AD10","v":":"},{"$f":"'3e (voluntary)'!AE10","v":0},{"$f":"'3e (voluntary)'!AF10","v":":"},{"$f":"'3e (voluntary)'!AG10","v":0},":",null,":",null,":"]
[null,null,null,null,null,null,null,"of which:"]
["S11_S12","A","EPS_P51G_NP",null,null,null,"A","Agriculture, forestry and fishing",null,":",null,":",null,":",null,":",null,":",null,":",null,":",null,":",null,":",null,":",null,":",null,{"$f":"IF(COUNT(J13,N13,P13, R13,T13,V13,AD13)=7,SUM(J13,N13,P13, R13,T13,V13,AD13),\":\")","v":":"},null,":",null,":"]
["S11_S12","E3739","EPS_P51G_NP",null,null,null,"E37-39","Sewerage: waste management and remendiation activities",null,":",null,":",null,":",null,":",null,":",null,":",null,":",null,":",null,":",null,":",null,":",null,":",null,":",null,":"]
["S11_S12","F","EPS_P51G_NP",null,null,null,"F","Construction",null,":",null,":",null,":",null,":",null,":",null,":",null,":",null,":",null,":",null,":",null,":",null,":",null,":",null,":"]
["S11_S12","H","EPS_P51G_NP",null,null,null,"H","Transportation and storage",null,":",null,":",null,":",null,":",null,":",null,":",null,":",null,":",null,":",null,":",null,":",null,":",null,":",null,":"]
["S11_S12","L","EPS_P51G_NP",null,null,null,"L","Real estate activities",null,":",null,":",null,":",null,":",null,":",null,":",null,":",null,":",null,":",null,":",null,":",null,":",null,":",null,":"]
["S11_S12","B","EP_P51G_CREP_ec",null,"( P51G_CREP_ec.3Add) Gross fixed capital formation  in cleaner and resource efficient products for non characteristic activities - EXTRA COST",null,"B","Mining and Quarring",null,":",null,":",null,":",null,":",null,":",null,":",null,":",null,":",null,":",null,":",null,":",null,":",null,":",null,":",null,":"]
["S11_S12","C","EP_P51G_CREP_ec",null,null,null,"C","Manufacturing",null,":",null,":",null,":",null,":",null,":",null,":",null,":",null,":",null,":",null,":",null,":",null,":",null,":",null,":",null,":"]
["S11_S12","D","EP_P51G_CREP_ec",null,null,null,"D","Electricity, gas, steam and air conditionning supply",null,":",null,":",null,":",null,":",null,":",null,":",null,":",null,":",null,":",null,":",null,":",null,":",null,":",null,":",null,":"]
["S11_S12","E36","EP_P51G_CREP_ec",null,null,null,"E36","Water supply",null,":",null,":",null,":",null,":",null,":",null,":",null,":",null,":",null,":",null,":",null,":",null,":",null,":",null,":",null,":"]
["S11_S12","A_EP_OTH","EP_P51G_CREP_ec",null,null,null,"OTH","OTHER NACE",null,":",null,":",null,":",null,":",null,":",null,":",null,":",null,":",null,":",null,":",null,":",null,":",null,":",null,":",null,":"]
[null,null,null,null,null,null,null,"of which:",null,null,null,null,null,null,null,null,null,null,null,null,null,null,null,null,null,null,null,null,null,null,null,":"]
["S11_S12","A","EP_P51G_CREP_ec",null,null,null,"A","Agriculture, forestry and fishing",null,":",null,":",null,":",null,":",null,":",null,":",null,":",null,":",null,":",null,":",null,":",null,":",null,":",null,":",null,":"]
["S11_S12","E3739","EP_P51G_CREP_ec",null,null,null,"E37-39","Sewerage: waste management and remendiation activities",null,":",null,":",null,":",null,":",null,":",null,":",null,":",null,":",null,":",null,":",null,":",null,":",null,":",null,":",null,":"]
["S11_S12","F","EP_P51G_CREP_ec",null,null,null,"F","Construction",null,":",null,":",null,":",null,":",null,":",null,":",null,":",null,":",null,":",null,":",null,":",null,":",null,":",null,":",null,":"]
["S11_S12","H","EP_P51G_CREP_ec",null,null,null,"H","Transportation and storage",null,":",null,":",null,":",null,":",null,":",null,":",null,":",null,":",null,":",null,":",null,":",null,":",null,":",null,":",null,":"]
["S11_S12","L","EP_P51G_CREP_ec",null,null,null,"L","Real estate activities",null,":",null,":",null,":",null,":",null,":",null,":",null,":",null,":",null,":",null,":",null,":",null,":",null,":",null,":",null,":"]
["S11_S12","B","EP_P51G_CREP_fc",null,"( P51G_NP_CREP_fc.3Add ) Gross fixed capital formation and acquisition less disposals of non-financial non-produced assets in cleaner and resource efficient products - FULL COST",null,"B","Mining and Quarring",null,":",null,":",null,":",null,":",null,":",null,":",null,":",null,":",null,":",null,":",null,":",null,":",null,":",null,":",null,":"]
["S11_S12","C","EP_P51G_CREP_fc",null,null,null,"C","Manufacturing",null,":",null,":",null,":",null,":",null,":",null,":",null,":",null,":",null,":",null,":",null,":",null,":",null,":",null,":",null,":"]
["S11_S12","D","EP_P51G_CREP_fc",null,null,null,"D","Electricity, gas, steam and air conditionning supply",null,":",null,":",null,":",null,":",null,":",null,":",null,":",null,":",null,":",null,":",null,":",null,":",null,":",null,":",null,":"]
["S11_S12","E36","EP_P51G_CREP_fc",null,null,null,"E36","Water supply",null,":",null,":",null,":",null,":",null,":",null,":",null,":",null,":",null,":",null,":",null,":",null,":",null,":",null,":",null,":"]
["S11_S12","A_EP_OTH","EP_P51G_CREP_fc",null,null,null,"OTH","OTHER NACE",null,":",null,":",null,":",null,":",null,":",null,":",null,":",null,":",null,":",null,":",null,":",null,":",null,":",null,":",null,":"]
[null,null,null,null,null,null,null,"of which:",null,null,null,null,null,null,null,null,null,null,null,null,null,null,null,null,null,null,null,null,null,null,null,":"]
["S11_S12","A","EP_P51G_CREP_fc",null,null,null,"A","Agriculture, forestry and fishing",null,":",null,":",null,":",null,":",null,":",null,":",null,":",null,":",null,":",null,":",null,":",null,":",null,":",null,":",null,":"]
["S11_S12","E3739","EP_P51G_CREP_fc",null,null,null,"E37-39","Sewerage: waste management and remendiation activities",null,":",null,":",null,":",null,":",null,":",null,":",null,":",null,":",null,":",null,":",null,":",null,":",null,":",null,":",null,":"]
["S11_S12","F","EP_P51G_CREP_fc",null,null,null,"F","Construction",null,":",null,":",null,":",null,":",null,":",null,":",null,":",null,":",null,":",null,":",null,":",null,":",null,":",null,":",null,":"]
["S11_S12","H","EP_P51G_CREP_fc",null,null,null,"H","Transportation and storage",null,":",null,":",null,":",null,":",null,":",null,":",null,":",null,":",null,":",null,":",null,":",null,":",null,":",null,":",null,":"]
["S11_S12","L","EP_P51G_CREP_fc",null,null,null,"L","Real estate activities",null,":",null,":",null,":",null,":",null,":",null,":",null,":",null,":",null,":",null,":",null,":",null,":",null,":",null,":",null,":"]

{"sheet":"8.3_Add_2018","index":51,"n_rows":39,"n_cols":38,"rows_kept":39,"cut":false,"hidden":false,"merged":[[38,7,38,8],[26,7,26,8],[27,7,27,8],[28,4,28,5],[28,7,28,8],[29,7,29,8],[30,7,30,8],[31,7,31,8],[34,7,34,8],[35,7,35,8],[36,7,36,8],[37,7,37,8],[3,9,4,10],[3,11,4,12],[25,7,25,8],[12,7,12,8],[13,7,13,8],[14,7,14,8],[15,7,15,8],[16,7,16,8],[18,7,18,8],[19,7,19,8],[20,7,20,8],[23,7,23,8],[24,7,24,8],[17,4,17,5],[17,7,17,8],[4,4,4,7],[6,4,6,5],[6,7,6,8],[7,7,7,8],[8,7,8,8],[9,7,9,8],[0,4,0,8],[1,4,1,8],[1,9,1,32],[1,33,1,38],[2,9,2,32],[2,33,2,38],[3,13,4,14],[3,15,4,16],[3,17,4,18],[3,37,4,38],[3,21,4,22],[3,23,4,24],[3,25,4,26],[3,31,4,32],[3,33,4,34],[3,35,4,36],[3,27,4,28],[3,29,4,30],[3,19,4,20]]}
[null,null,null,null,{"$f":"Cover!B21","v":"QUESTIONNAIRE ON ENVIRONMENTAL PROTECTION EXPENDITURE ACCOUNTS"},null,null,null,null,"GFCF - Corporations: other (also covering producers of ancillary EP services)",null,null,null,null,null,null,null,null,null,null,null,null,null,null,null,null,null,null,null,null,null,null,null,"GFCF - Corporations: other (also covering producers of ancillary RM products)"]
[null,null,null,null,{"$f":"E1","v":"QUESTIONNAIRE ON ENVIRONMENTAL PROTECTION EXPENDITURE ACCOUNTS"},null,null,null,null,{"$f":"J1","v":"GFCF - Corporations: other (also covering producers of ancillary EP services)"},null,null,null,null,null,null,null,null,null,null,null,null,null,null,null,null,null,null,null,null,null,null,null,{"$f":"AH1","v":"GFCF - Corporations: other (also covering producers of ancillary RM products)"}]
[null,null,null,null,null,null,null,null,null,"Figures calculated from information available in the questionnaire",null,null,null,null,null,null,null,null,null,null,null,null,null,null,null,null,null,null,null,null,null,null,null,"Figures calculated from information available in the questionnaire"]
[null,null,null,null,"Country/Unit",{"$f":"IFERROR(Cover!C16,\"\")","v":""},{"$f":"\"\"&Cover!B16","v":""},null,{"$f":"Cover!B17","v":"Million units of national currency"},"CEPA 1",null,"of which CEPA 1.1.2 and 1.2.2 Climate change",null,"CEPA 2",null,"CEPA 3",null,"CEPA 4",null,"CEPA 5",null,"CEPA 6",null,"CEPA 7",null,"CEPA 8",null,"CEPA 9",null,"Sum of CEPA 7+8+9",null,"TOTAL CEPA",null," CReMA\n11B + 13C + 14 \n(Materials recovery)",null,"CReMA13A (Production of energy  from renewable sources)",null,"CReMA13B \n(Energy efficiency and savings)"]
[null,null,null,null,"Expenditure",null,null,null,2018,null,null,null,null,null,null,null,null,null,null,null,null,null,null,null,null,null,null,null,null,"Landscape",null,"Landscape",null,"Landscape",null,"Landscape",null,"Landscape"]
[null,null,null,null,null,null,null,null,2018,"CEPA1",null,"CEPA112_122",null,"CEPA2",null,"CEPA3",null,"CEPA4",null,"CEPA5",null,"CEPA6",null,"CEPA7",null,"CEPA8",null,"CEPA9",null,"CEPA7-9",null,"TOT_CEPA",null,"CREMA 11B_13C_14",null,"CREMA 13A",null,"CREMA 13B"]
["S11_S12","B","EPS_P51G_NP",null,"( P51G_NP.3 ) Gross fixed capital formation and acquisition less disposals of non-financial non-produced assets (integrated and end of pipe technologies)",null,"B","Mining and Quarring",null,{"$f":"'3a'!J11","v":":"},{"$f":"'3a'!K11","v":0},{"$f":"'3a'!L11","v":":"},{"$f":"'3a'!M11","v":0},{"$f":"'3a'!N11","v":":"},{"$f":"'3a'!O11","v":0},{"$f":"'3a'!P11","v":":"},{"$f":"'3a'!Q11","v":0},{"$f":"'3a'!R11","v":":"},{"$f":"'3a'!S11","v":0},{"$f":"'3a'!T11","v":":"},{"$f":"'3a'!U11","v":0},{"$f":"'3a'!V11","v":":"},{"$f":"'3a'!W11","v":0},{"$f":"'3a'!X11","v":":"},{"$f":"'3a'!Y11","v":0},{"$f":"'3a'!Z11","v":":"},{"$f":"'3a'!AA11","v":0},{"$f":"'3a'!AB11","v":":"},{"$f":"'3a'!AC11","v":0},{"$f":"'3a'!AD11","v":":"},{"$f":"'3a'!AE11","v":0},{"$f":"'3a'!AF11","v":":"},{"$f":"'3a'!AG11","v":0},":",null,":",null,":"]
["S11_S12","C","EPS_P51G_NP",null,null,null,"C","Manufacturing",null,{"$f":"'3b'!J11","v":":"},{"$f":"'3b'!K11","v":0},{"$f":"'3b'!L11","v":":"},{"$f":"'3b'!M11","v":0},{"$f":"'3b'!N11","v":":"},{"$f":"'3b'!O11","v":0},{"$f":"'3b'!P11","v":":"},{"$f":"'3b'!Q11","v":0},{"$f":"'3b'!R11","v":":"},{"$f":"'3b'!S11","v":0},{"$f":"'3b'!T11","v":":"},{"$f":"'3b'!U11","v":0},{"$f":"'3b'!V11","v":":"},{"$f":"'3b'!W11","v":0},{"$f":"'3b'!X11","v":":"},{"$f":"'3b'!Y11","v":0},{"$f":"'3b'!Z11","v":":"},{"$f":"'3b'!AA11","v":0},{"$f":"'3b'!AB11","v":":"},{"$f":"'3b'!AC11","v":0},{"$f":"'3b'!AD11","v":":"},{"$f":"'3b'!AE11","v":0},{"$f":"'3b'!AF11","v":":"},{"$f":"'3b'!AG11","v":0},":",null,":",null,":"]
["S11_S12","D","EPS_P51G_NP",null,null,null,"D","Electricity, gas, steam and air conditionning supply",null,{"$f":"'3c'!J11","v":":"},{"$f":"'3c'!K11","v":0},{"$f":"'3c'!L11","v":":"},{"$f":"'3c'!M11","v":0},{"$f":"'3c'!N11","v":":"},{"$f":"'3c'!O11","v":0},{"$f":"'3c'!P11","v":":"},{"$f":"'3c'!Q11","v":0},{"$f":"'3c'!R11","v":":"},{"$f":"'3c'!S11","v":0},{"$f":"'3c'!T11","v":":"},{"$f":"'3c'!U11","v":0},{"$f":"'3c'!V11","v":":"},{"$f":"'3c'!W11","v":0},{"$f":"'3c'!X11","v":":"},{"$f":"'3c'!Y11","v":0},{"$f":"'3c'!Z11","v":":"},{"$f":"'3c'!AA11","v":0},{"$f":"'3c'!AB11","v":":"},{"$f":"'3c'!AC11","v":0},{"$f":"'3c'!AD11","v":":"},{"$f":"'3c'!AE11","v":0},{"$f":"'3c'!AF11","v":":"},{"$f":"'3c'!AG11","v":0},":",null,":",null,":"]
["S11_S12","E36","EPS_P51G_NP",null,null,null,"E36","Water supply",null,{"$f":"'3d'!J11","v":":"},{"$f":"'3d'!K11","v":0},{"$f":"'3d'!L11","v":":"},{"$f":"'3d'!M11","v":0},{"$f":"'3d'!N11","v":":"},{"$f":"'3d'!O11","v":0},{"$f":"'3d'!P11","v":":"},{"$f":"'3d'!Q11","v":0},{"$f":"'3d'!R11","v":":"},{"$f":"'3d'!S11","v":0},{"$f":"'3d'!T11","v":":"},{"$f":"'3d'!U11","v":0},{"$f":"'3d'!V11","v":":"},{"$f":"'3d'!W11","v":0},{"$f":"'3d'!X11","v":":"},{"$f":"'3d'!Y11","v":0},{"$f":"'3d'!Z11","v":":"},{"$f":"'3d'!AA11","v":0},{"$f":"'3d'!AB11","v":":"},{"$f":"'3d'!AC11","v":0},{"$f":"'3d'!AD11","v":":"},{"$f":"'3d'!AE11","v":0},{"$f":"'3d'!AF11","v":":"},{"$f":"'3d'!AG11","v":0},":",null,":",null,":"]
["S11_S12","A_EP_OTH","EPS_P51G_NP",null,null,null,"OTH","OTHER NACE",null,{"$f":"'3e (voluntary)'!J11","v":":"},{"$f":"'3e (voluntary)'!K11","v":0},{"$f":"'3e (voluntary)'!L11","v":":"},{"$f":"'3e (voluntary)'!M11","v":0},{"$f":"'3e (voluntary)'!N11","v":":"},{"$f":"'3e (voluntary)'!O11","v":0},{"$f":"'3e (voluntary)'!P11","v":":"},{"$f":"'3e (voluntary)'!Q11","v":0},{"$f":"'3e (voluntary)'!R11","v":":"},{"$f":"'3e (voluntary)'!S11","v":0},{"$f":"'3e (voluntary)'!T11","v":":"},{"$f":"'3e (voluntary)'!U11","v":0},{"$f":"'3e (voluntary)'!V11","v":":"},{"$f":"'3e (voluntary)'!W11","v":0},{"$f":"'3e (voluntary)'!X11","v":":"},{"$f":"'3e (voluntary)'!Y11","v":0},{"$f":"'3e (voluntary)'!Z11","v":":"},{"$f":"'3e (voluntary)'!AA11","v":0},{"$f":"'3e (voluntary)'!AB11","v":":"},{"$f":"'3e (voluntary)'!AC11","v":0},{"$f":"'3e (voluntary)'!AD11","v":":"},{"$f":"'3e (voluntary)'!AE11","v":0},{"$f":"'3e (voluntary)'!AF11","v":":"},{"$f":"'3e (voluntary)'!AG11","v":0},":",null,":",null,":"]
[null,null,null,null,null,null,null,"of which:"]
["S11_S12","A","EPS_P51G_NP",null,null,null,"A","Agriculture, forestry and fishing",null,":",null,":",null,":",null,":",null,":",null,":",null,":",null,":",null,":",null,":",null,":",null,{"$f":"IF(COUNT(J13,N13,P13, R13,T13,V13,AD13)=7,SUM(J13,N13,P13, R13,T13,V13,AD13),\":\")","v":":"},null,":",null,":"]
["S11_S12","E3739","EPS_P51G_NP",null,null,null,"E37-39","Sewerage: waste management and remendiation activities",null,":",null,":",null,":",null,":",null,":",null,":",null,":",null,":",null,":",null,":",null,":",null,":",null,":",null,":"]
["S11_S12","F","EPS_P51G_NP",null,null,null,"F","Construction",null,":",null,":",null,":",null,":",null,":",null,":",null,":",null,":",null,":",null,":",null,":",null,":",null,":",null,":"]
["S11_S12","H","EPS_P51G_NP",null,null,null,"H","Transportation and storage",null,":",null,":",null,":",null,":",null,":",null,":",null,":",null,":",null,":",null,":",null,":",null,":",null,":",null,":"]
["S11_S12","L","EPS_P51G_NP",null,null,null,"L","Real estate activities",null,":",null,":",null,":",null,":",null,":",null,":",null,":",null,":",null,":",null,":",null,":",null,":",null,":",null,":"]
["S11_S12","B","EP_P51G_CREP_ec",null,"( P51G_CREP_ec.3Add) Gross fixed capital formation  in cleaner and resource efficient products for non characteristic activities - EXTRA COST",null,"B","Mining and Quarring",null,":",null,":",null,":",null,":",null,":",null,":",null,":",null,":",null,":",null,":",null,":",null,":",null,":",null,":",null,":"]
["S11_S12","C","EP_P51G_CREP_ec",null,null,null,"C","Manufacturing",null,":",null,":",null,":",null,":",null,":",null,":",null,":",null,":",null,":",null,":",null,":",null,":",null,":",null,":",null,":"]
["S11_S12","D","EP_P51G_CREP_ec",null,null,null,"D","Electricity, gas, steam and air conditionning supply",null,":",null,":",null,":",null,":",null,":",null,":",null,":",null,":",null,":",null,":",null,":",null,":",null,":",null,":",null,":"]
["S11_S12","E36","EP_P51G_CREP_ec",null,null,null,"E36","Water supply",null,":",null,":",null,":",null,":",null,":",null,":",null,":",null,":",null,":",null,":",null,":",null,":",null,":",null,":",null,":"]
["S11_S12","A_EP_OTH","EP_P51G_CREP_ec",null,null,null,"OTH","OTHER NACE",null,":",null,":",null,":",null,":",null,":",null,":",null,":",null,":",null,":",null,":",null,":",null,":",null,":",null,":",null,":"]
[null,null,null,null,null,null,null,"of which:",null,null,null,null,null,null,null,null,null,null,null,null,null,null,null,null,null,null,null,null,null,null,null,":"]
["S11_S12","A","EP_P51G_CREP_ec",null,null,null,"A","Agriculture, forestry and fishing",null,":",null,":",null,":",null,":",null,":",null,":",null,":",null,":",null,":",null,":",null,":",null,":",null,":",null,":",null,":"]
["S11_S12","E3739","EP_P51G_CREP_ec",null,null,null,"E37-39","Sewerage: waste management and remendiation activities",null,":",null,":",null,":",null,":",null,":",null,":",null,":",null,":",null,":",null,":",null,":",null,":",null,":",null,":",null,":"]
["S11_S12","F","EP_P51G_CREP_ec",null,null,null,"F","Construction",null,":",null,":",null,":",null,":",null,":",null,":",null,":",null,":",null,":",null,":",null,":",null,":",null,":",null,":",null,":"]
["S11_S12","H","EP_P51G_CREP_ec",null,null,null,"H","Transportation and storage",null,":",null,":",null,":",null,":",null,":",null,":",null,":",null,":",null,":",null,":",null,":",null,":",null,":",null,":",null,":"]
["S11_S12","L","EP_P51G_CREP_ec",null,null,null,"L","Real estate activities",null,":",null,":",null,":",null,":",null,":",null,":",null,":",null,":",null,":",null,":",null,":",null,":",null,":",null,":",null,":"]
["S11_S12","B","EP_P51G_CREP_fc",null,"( P51G_NP_CREP_fc.3Add ) Gross fixed capital formation and acquisition less disposals of non-financial non-produced assets in cleaner and resource efficient products - FULL COST",null,"B","Mining and Quarring",null,":",null,":",null,":",null,":",null,":",null,":",null,":",null,":",null,":",null,":",null,":",null,":",null,":",null,":",null,":"]
["S11_S12","C","EP_P51G_CREP_fc",null,null,null,"C","Manufacturing",null,":",null,":",null,":",null,":",null,":",null,":",null,":",null,":",null,":",null,":",null,":",null,":",null,":",null,":",null,":"]
["S11_S12","D","EP_P51G_CREP_fc",null,null,null,"D","Electricity, gas, steam and air conditionning supply",null,":",null,":",null,":",null,":",null,":",null,":",null,":",null,":",null,":",null,":",null,":",null,":",null,":",null,":",null,":"]
["S11_S12","E36","EP_P51G_CREP_fc",null,null,null,"E36","Water supply",null,":",null,":",null,":",null,":",null,":",null,":",null,":",null,":",null,":",null,":",null,":",null,":",null,":",null,":",null,":"]
["S11_S12","A_EP_OTH","EP_P51G_CREP_fc",null,null,null,"OTH","OTHER NACE",null,":",null,":",null,":",null,":",null,":",null,":",null,":",null,":",null,":",null,":",null,":",null,":",null,":",null,":",null,":"]
[null,null,null,null,null,null,null,"of which:",null,null,null,null,null,null,null,null,null,null,null,null,null,null,null,null,null,null,null,null,null,null,null,":"]
["S11_S12","A","EP_P51G_CREP_fc",null,null,null,"A","Agriculture, forestry and fishing",null,":",null,":",null,":",null,":",null,":",null,":",null,":",null,":",null,":",null,":",null,":",null,":",null,":",null,":",null,":"]
["S11_S12","E3739","EP_P51G_CREP_fc",null,null,null,"E37-39","Sewerage: waste management and remendiation activities",null,":",null,":",null,":",null,":",null,":",null,":",null,":",null,":",null,":",null,":",null,":",null,":",null,":",null,":",null,":"]
["S11_S12","F","EP_P51G_CREP_fc",null,null,null,"F","Construction",null,":",null,":",null,":",null,":",null,":",null,":",null,":",null,":",null,":",null,":",null,":",null,":",null,":",null,":",null,":"]
["S11_S12","H","EP_P51G_CREP_fc",null,null,null,"H","Transportation and storage",null,":",null,":",null,":",null,":",null,":",null,":",null,":",null,":",null,":",null,":",null,":",null,":",null,":",null,":",null,":"]
["S11_S12","L","EP_P51G_CREP_fc",null,null,null,"L","Real estate activities",null,":",null,":",null,":",null,":",null,":",null,":",null,":",null,":",null,":",null,":",null,":",null,":",null,":",null,":",null,":"]

{"sheet":"8.3_Add_2019","index":52,"n_rows":39,"n_cols":38,"rows_kept":39,"cut":false,"hidden":false,"merged":[[38,7,38,8],[26,7,26,8],[27,7,27,8],[28,4,28,5],[28,7,28,8],[29,7,29,8],[30,7,30,8],[31,7,31,8],[34,7,34,8],[35,7,35,8],[36,7,36,8],[37,7,37,8],[3,9,4,10],[3,11,4,12],[25,7,25,8],[12,7,12,8],[13,7,13,8],[14,7,14,8],[15,7,15,8],[16,7,16,8],[18,7,18,8],[19,7,19,8],[20,7,20,8],[23,7,23,8],[24,7,24,8],[17,4,17,5],[17,7,17,8],[4,4,4,7],[6,4,6,5],[6,7,6,8],[7,7,7,8],[8,7,8,8],[9,7,9,8],[0,4,0,8],[1,4,1,8],[1,9,1,32],[1,33,1,38],[2,9,2,32],[2,33,2,38],[3,13,4,14],[3,15,4,16],[3,17,4,18],[3,37,4,38],[3,21,4,22],[3,23,4,24],[3,25,4,26],[3,31,4,32],[3,33,4,34],[3,35,4,36],[3,27,4,28],[3,29,4,30],[3,19,4,20]]}
[null,null,null,null,{"$f":"Cover!B21","v":"QUESTIONNAIRE ON ENVIRONMENTAL PROTECTION EXPENDITURE ACCOUNTS"},null,null,null,null,"GFCF - Corporations: other (also covering producers of ancillary EP services)",null,null,null,null,null,null,null,null,null,null,null,null,null,null,null,null,null,null,null,null,null,null,null,"GFCF - Corporations: other (also covering producers of ancillary RM products)"]
[null,null,null,null,{"$f":"E1","v":"QUESTIONNAIRE ON ENVIRONMENTAL PROTECTION EXPENDITURE ACCOUNTS"},null,null,null,null,{"$f":"J1","v":"GFCF - Corporations: other (also covering producers of ancillary EP services)"},null,null,null,null,null,null,null,null,null,null,null,null,null,null,null,null,null,null,null,null,null,null,null,{"$f":"AH1","v":"GFCF - Corporations: other (also covering producers of ancillary RM products)"}]
[null,null,null,null,null,null,null,null,null,"Figures calculated from information available in the questionnaire",null,null,null,null,null,null,null,null,null,null,null,null,null,null,null,null,null,null,null,null,null,null,null,"Figures calculated from information available in the questionnaire"]
[null,null,null,null,"Country/Unit",{"$f":"IFERROR(Cover!C16,\"\")","v":""},{"$f":"\"\"&Cover!B16","v":""},null,{"$f":"Cover!B17","v":"Million units of national currency"},"CEPA 1",null,"of which CEPA 1.1.2 and 1.2.2 Climate change",null,"CEPA 2",null,"CEPA 3",null,"CEPA 4",null,"CEPA 5",null,"CEPA 6",null,"CEPA 7",null,"CEPA 8",null,"CEPA 9",null,"Sum of CEPA 7+8+9",null,"TOTAL CEPA",null," CReMA\n11B + 13C + 14 \n(Materials recovery)",null,"CReMA13A (Production of energy  from renewable sources)",null,"CReMA13B \n(Energy efficiency and savings)"]
[null,null,null,null,"Expenditure",null,null,null,2019,null,null,null,null,null,null,null,null,null,null,null,null,null,null,null,null,null,null,null,null,"Landscape",null,"Landscape",null,"Landscape",null,"Landscape",null,"Landscape"]
[null,null,null,null,null,null,null,null,2019,"CEPA1",null,"CEPA112_122",null,"CEPA2",null,"CEPA3",null,"CEPA4",null,"CEPA5",null,"CEPA6",null,"CEPA7",null,"CEPA8",null,"CEPA9",null,"CEPA7-9",null,"TOT_CEPA",null,"CREMA 11B_13C_14",null,"CREMA 13A",null,"CREMA 13B"]
["S11_S12","B","EPS_P51G_NP",null,"( P51G_NP.3 ) Gross fixed capital formation and acquisition less disposals of non-financial non-produced assets (integrated and end of pipe technologies)",null,"B","Mining and Quarring",null,{"$f":"'3a'!J12","v":":"},{"$f":"'3a'!K12","v":0},{"$f":"'3a'!L12","v":":"},{"$f":"'3a'!M12","v":0},{"$f":"'3a'!N12","v":":"},{"$f":"'3a'!O12","v":0},{"$f":"'3a'!P12","v":":"},{"$f":"'3a'!Q12","v":0},{"$f":"'3a'!R12","v":":"},{"$f":"'3a'!S12","v":0},{"$f":"'3a'!T12","v":":"},{"$f":"'3a'!U12","v":0},{"$f":"'3a'!V12","v":":"},{"$f":"'3a'!W12","v":0},{"$f":"'3a'!X12","v":":"},{"$f":"'3a'!Y12","v":0},{"$f":"'3a'!Z12","v":":"},{"$f":"'3a'!AA12","v":0},{"$f":"'3a'!AB12","v":":"},{"$f":"'3a'!AC12","v":0},{"$f":"'3a'!AD12","v":":"},{"$f":"'3a'!AE12","v":0},{"$f":"'3a'!AF12","v":":"},{"$f":"'3a'!AG12","v":0},":",null,":",null,":"]
["S11_S12","C","EPS_P51G_NP",null,null,null,"C","Manufacturing",null,{"$f":"'3b'!J12","v":":"},{"$f":"'3b'!K12","v":0},{"$f":"'3b'!L12","v":":"},{"$f":"'3b'!M12","v":0},{"$f":"'3b'!N12","v":":"},{"$f":"'3b'!O12","v":0},{"$f":"'3b'!P12","v":":"},{"$f":"'3b'!Q12","v":0},{"$f":"'3b'!R12","v":":"},{"$f":"'3b'!S12","v":0},{"$f":"'3b'!T12","v":":"},{"$f":"'3b'!U12","v":0},{"$f":"'3b'!V12","v":":"},{"$f":"'3b'!W12","v":0},{"$f":"'3b'!X12","v":":"},{"$f":"'3b'!Y12","v":0},{"$f":"'3b'!Z12","v":":"},{"$f":"'3b'!AA12","v":0},{"$f":"'3b'!AB12","v":":"},{"$f":"'3b'!AC12","v":0},{"$f":"'3b'!AD12","v":":"},{"$f":"'3b'!AE12","v":0},{"$f":"'3b'!AF12","v":":"},{"$f":"'3b'!AG12","v":0},":",null,":",null,":"]
["S11_S12","D","EPS_P51G_NP",null,null,null,"D","Electricity, gas, steam and air conditionning supply",null,{"$f":"'3c'!J12","v":":"},{"$f":"'3c'!K12","v":0},{"$f":"'3c'!L12","v":":"},{"$f":"'3c'!M12","v":0},{"$f":"'3c'!N12","v":":"},{"$f":"'3c'!O12","v":0},{"$f":"'3c'!P12","v":":"},{"$f":"'3c'!Q12","v":0},{"$f":"'3c'!R12","v":":"},{"$f":"'3c'!S12","v":0},{"$f":"'3c'!T12","v":":"},{"$f":"'3c'!U12","v":0},{"$f":"'3c'!V12","v":":"},{"$f":"'3c'!W12","v":0},{"$f":"'3c'!X12","v":":"},{"$f":"'3c'!Y12","v":0},{"$f":"'3c'!Z12","v":":"},{"$f":"'3c'!AA12","v":0},{"$f":"'3c'!AB12","v":":"},{"$f":"'3c'!AC12","v":0},{"$f":"'3c'!AD12","v":":"},{"$f":"'3c'!AE12","v":0},{"$f":"'3c'!AF12","v":":"},{"$f":"'3c'!AG12","v":0},":",null,":",null,":"]
["S11_S12","E36","EPS_P51G_NP",null,null,null,"E36","Water supply",null,{"$f":"'3d'!J12","v":":"},{"$f":"'3d'!K12","v":0},{"$f":"'3d'!L12","v":":"},{"$f":"'3d'!M12","v":0},{"$f":"'3d'!N12","v":":"},{"$f":"'3d'!O12","v":0},{"$f":"'3d'!P12","v":":"},{"$f":"'3d'!Q12","v":0},{"$f":"'3d'!R12","v":":"},{"$f":"'3d'!S12","v":0},{"$f":"'3d'!T12","v":":"},{"$f":"'3d'!U12","v":0},{"$f":"'3d'!V12","v":":"},{"$f":"'3d'!W12","v":0},{"$f":"'3d'!X12","v":":"},{"$f":"'3d'!Y12","v":0},{"$f":"'3d'!Z12","v":":"},{"$f":"'3d'!AA12","v":0},{"$f":"'3d'!AB12","v":":"},{"$f":"'3d'!AC12","v":0},{"$f":"'3d'!AD12","v":":"},{"$f":"'3d'!AE12","v":0},{"$f":"'3d'!AF12","v":":"},{"$f":"'3d'!AG12","v":0},":",null,":",null,":"]
["S11_S12","A_EP_OTH","EPS_P51G_NP",null,null,null,"OTH","OTHER NACE",null,{"$f":"'3e (voluntary)'!J12","v":":"},{"$f":"'3e (voluntary)'!K12","v":0},{"$f":"'3e (voluntary)'!L12","v":":"},{"$f":"'3e (voluntary)'!M12","v":0},{"$f":"'3e (voluntary)'!N12","v":":"},{"$f":"'3e (voluntary)'!O12","v":0},{"$f":"'3e (voluntary)'!P12","v":":"},{"$f":"'3e (voluntary)'!Q12","v":0},{"$f":"'3e (voluntary)'!R12","v":":"},{"$f":"'3e (voluntary)'!S12","v":0},{"$f":"'3e (voluntary)'!T12","v":":"},{"$f":"'3e (voluntary)'!U12","v":0},{"$f":"'3e (voluntary)'!V12","v":":"},{"$f":"'3e (voluntary)'!W12","v":0},{"$f":"'3e (voluntary)'!X12","v":":"},{"$f":"'3e (voluntary)'!Y12","v":0},{"$f":"'3e (voluntary)'!Z12","v":":"},{"$f":"'3e (voluntary)'!AA12","v":0},{"$f":"'3e (voluntary)'!AB12","v":":"},{"$f":"'3e (voluntary)'!AC12","v":0},{"$f":"'3e (voluntary)'!AD12","v":":"},{"$f":"'3e (voluntary)'!AE12","v":0},{"$f":"'3e (voluntary)'!AF12","v":":"},{"$f":"'3e (voluntary)'!AG12","v":0},":",null,":",null,":"]
[null,null,null,null,null,null,null,"of which:"]
["S11_S12","A","EPS_P51G_NP",null,null,null,"A","Agriculture, forestry and fishing",null,":",null,":",null,":",null,":",null,":",null,":",null,":",null,":",null,":",null,":",null,":",null,{"$f":"IF(COUNT(J13,N13,P13, R13,T13,V13,AD13)=7,SUM(J13,N13,P13, R13,T13,V13,AD13),\":\")","v":":"},null,":",null,":"]
["S11_S12","E3739","EPS_P51G_NP",null,null,null,"E37-39","Sewerage: waste management and remendiation activities",null,":",null,":",null,":",null,":",null,":",null,":",null,":",null,":",null,":",null,":",null,":",null,":",null,":",null,":"]
["S11_S12","F","EPS_P51G_NP",null,null,null,"F","Construction",null,":",null,":",null,":",null,":",null,":",null,":",null,":",null,":",null,":",null,":",null,":",null,":",null,":",null,":"]
["S11_S12","H","EPS_P51G_NP",null,null,null,"H","Transportation and storage",null,":",null,":",null,":",null,":",null,":",null,":",null,":",null,":",null,":",null,":",null,":",null,":",null,":",null,":"]
["S11_S12","L","EPS_P51G_NP",null,null,null,"L","Real estate activities",null,":",null,":",null,":",null,":",null,":",null,":",null,":",null,":",null,":",null,":",null,":",null,":",null,":",null,":"]
["S11_S12","B","EP_P51G_CREP_ec",null,"( P51G_CREP_ec.3Add) Gross fixed capital formation  in cleaner and resource efficient products for non characteristic activities - EXTRA COST",null,"B","Mining and Quarring",null,":",null,":",null,":",null,":",null,":",null,":",null,":",null,":",null,":",null,":",null,":",null,":",null,":",null,":",null,":"]
["S11_S12","C","EP_P51G_CREP_ec",null,null,null,"C","Manufacturing",null,":",null,":",null,":",null,":",null,":",null,":",null,":",null,":",null,":",null,":",null,":",null,":",null,":",null,":",null,":"]
["S11_S12","D","EP_P51G_CREP_ec",null,null,null,"D","Electricity, gas, steam and air conditionning supply",null,":",null,":",null,":",null,":",null,":",null,":",null,":",null,":",null,":",null,":",null,":",null,":",null,":",null,":",null,":"]
["S11_S12","E36","EP_P51G_CREP_ec",null,null,null,"E36","Water supply",null,":",null,":",null,":",null,":",null,":",null,":",null,":",null,":",null,":",null,":",null,":",null,":",null,":",null,":",null,":"]
["S11_S12","A_EP_OTH","EP_P51G_CREP_ec",null,null,null,"OTH","OTHER NACE",null,":",null,":",null,":",null,":",null,":",null,":",null,":",null,":",null,":",null,":",null,":",null,":",null,":",null,":",null,":"]
[null,null,null,null,null,null,null,"of which:",null,null,null,null,null,null,null,null,null,null,null,null,null,null,null,null,null,null,null,null,null,null,null,":"]
["S11_S12","A","EP_P51G_CREP_ec",null,null,null,"A","Agriculture, forestry and fishing",null,":",null,":",null,":",null,":",null,":",null,":",null,":",null,":",null,":",null,":",null,":",null,":",null,":",null,":",null,":"]
["S11_S12","E3739","EP_P51G_CREP_ec",null,null,null,"E37-39","Sewerage: waste management and remendiation activities",null,":",null,":",null,":",null,":",null,":",null,":",null,":",null,":",null,":",null,":",null,":",null,":",null,":",null,":",null,":"]
["S11_S12","F","EP_P51G_CREP_ec",null,null,null,"F","Construction",null,":",null,":",null,":",null,":",null,":",null,":",null,":",null,":",null,":",null,":",null,":",null,":",null,":",null,":",null,":"]
["S11_S12","H","EP_P51G_CREP_ec",null,null,null,"H","Transportation and storage",null,":",null,":",null,":",null,":",null,":",null,":",null,":",null,":",null,":",null,":",null,":",null,":",null,":",null,":",null,":"]
["S11_S12","L","EP_P51G_CREP_ec",null,null,null,"L","Real estate activities",null,":",null,":",null,":",null,":",null,":",null,":",null,":",null,":",null,":",null,":",null,":",null,":",null,":",null,":",null,":"]
["S11_S12","B","EP_P51G_CREP_fc",null,"( P51G_NP_CREP_fc.3Add ) Gross fixed capital formation and acquisition less disposals of non-financial non-produced assets in cleaner and resource efficient products - FULL COST",null,"B","Mining and Quarring",null,":",null,":",null,":",null,":",null,":",null,":",null,":",null,":",null,":",null,":",null,":",null,":",null,":",null,":",null,":"]
["S11_S12","C","EP_P51G_CREP_fc",null,null,null,"C","Manufacturing",null,":",null,":",null,":",null,":",null,":",null,":",null,":",null,":",null,":",null,":",null,":",null,":",null,":",null,":",null,":"]
["S11_S12","D","EP_P51G_CREP_fc",null,null,null,"D","Electricity, gas, steam and air conditionning supply",null,":",null,":",null,":",null,":",null,":",null,":",null,":",null,":",null,":",null,":",null,":",null,":",null,":",null,":",null,":"]
["S11_S12","E36","EP_P51G_CREP_fc",null,null,null,"E36","Water supply",null,":",null,":",null,":",null,":",null,":",null,":",null,":",null,":",null,":",null,":",null,":",null,":",null,":",null,":",null,":"]
["S11_S12","A_EP_OTH","EP_P51G_CREP_fc",null,null,null,"OTH","OTHER NACE",null,":",null,":",null,":",null,":",null,":",null,":",null,":",null,":",null,":",null,":",null,":",null,":",null,":",null,":",null,":"]
[null,null,null,null,null,null,null,"of which:",null,null,null,null,null,null,null,null,null,null,null,null,null,null,null,null,null,null,null,null,null,null,null,":"]
["S11_S12","A","EP_P51G_CREP_fc",null,null,null,"A","Agriculture, forestry and fishing",null,":",null,":",null,":",null,":",null,":",null,":",null,":",null,":",null,":",null,":",null,":",null,":",null,":",null,":",null,":"]
["S11_S12","E3739","EP_P51G_CREP_fc",null,null,null,"E37-39","Sewerage: waste management and remendiation activities",null,":",null,":",null,":",null,":",null,":",null,":",null,":",null,":",null,":",null,":",null,":",null,":",null,":",null,":",null,":"]
["S11_S12","F","EP_P51G_CREP_fc",null,null,null,"F","Construction",null,":",null,":",null,":",null,":",null,":",null,":",null,":",null,":",null,":",null,":",null,":",null,":",null,":",null,":",null,":"]
["S11_S12","H","EP_P51G_CREP_fc",null,null,null,"H","Transportation and storage",null,":",null,":",null,":",null,":",null,":",null,":",null,":",null,":",null,":",null,":",null,":",null,":",null,":",null,":",null,":"]
["S11_S12","L","EP_P51G_CREP_fc",null,null,null,"L","Real estate activities",null,":",null,":",null,":",null,":",null,":",null,":",null,":",null,":",null,":",null,":",null,":",null,":",null,":",null,":",null,":"]

{"sheet":"8.3_Add_2020","index":53,"n_rows":39,"n_cols":38,"rows_kept":39,"cut":false,"hidden":false,"merged":[[38,7,38,8],[26,7,26,8],[27,7,27,8],[28,4,28,5],[28,7,28,8],[29,7,29,8],[30,7,30,8],[31,7,31,8],[34,7,34,8],[35,7,35,8],[36,7,36,8],[37,7,37,8],[3,9,4,10],[3,11,4,12],[25,7,25,8],[12,7,12,8],[13,7,13,8],[14,7,14,8],[15,7,15,8],[16,7,16,8],[18,7,18,8],[19,7,19,8],[20,7,20,8],[23,7,23,8],[24,7,24,8],[17,4,17,5],[17,7,17,8],[4,4,4,7],[6,4,6,5],[6,7,6,8],[7,7,7,8],[8,7,8,8],[9,7,9,8],[0,4,0,8],[1,4,1,8],[1,9,1,32],[1,33,1,38],[2,9,2,32],[2,33,2,38],[3,13,4,14],[3,15,4,16],[3,17,4,18],[3,37,4,38],[3,21,4,22],[3,23,4,24],[3,25,4,26],[3,31,4,32],[3,33,4,34],[3,35,4,36],[3,27,4,28],[3,29,4,30],[3,19,4,20]]}
[null,null,null,null,{"$f":"Cover!B21","v":"QUESTIONNAIRE ON ENVIRONMENTAL PROTECTION EXPENDITURE ACCOUNTS"},null,null,null,null,"GFCF - Corporations: other (also covering producers of ancillary EP services)",null,null,null,null,null,null,null,null,null,null,null,null,null,null,null,null,null,null,null,null,null,null,null,"GFCF - Corporations: other (also covering producers of ancillary RM products)"]
[null,null,null,null,{"$f":"E1","v":"QUESTIONNAIRE ON ENVIRONMENTAL PROTECTION EXPENDITURE ACCOUNTS"},null,null,null,null,{"$f":"J1","v":"GFCF - Corporations: other (also covering producers of ancillary EP services)"},null,null,null,null,null,null,null,null,null,null,null,null,null,null,null,null,null,null,null,null,null,null,null,{"$f":"AH1","v":"GFCF - Corporations: other (also covering producers of ancillary RM products)"}]
[null,null,null,null,null,null,null,null,null,"Figures calculated from information available in the questionnaire",null,null,null,null,null,null,null,null,null,null,null,null,null,null,null,null,null,null,null,null,null,null,null,"Figures calculated from information available in the questionnaire"]
[null,null,null,null,"Country/Unit",{"$f":"IFERROR(Cover!C16,\"\")","v":""},{"$f":"\"\"&Cover!B16","v":""},null,{"$f":"Cover!B17","v":"Million units of national currency"},"CEPA 1",null,"of which CEPA 1.1.2 and 1.2.2 Climate change",null,"CEPA 2",null,"CEPA 3",null,"CEPA 4",null,"CEPA 5",null,"CEPA 6",null,"CEPA 7",null,"CEPA 8",null,"CEPA 9",null,"Sum of CEPA 7+8+9",null,"TOTAL CEPA",null," CReMA\n11B + 13C + 14 \n(Materials recovery)",null,"CReMA13A (Production of energy  from renewable sources)",null,"CReMA13B \n(Energy efficiency and savings)"]
[null,null,null,null,"Expenditure",null,null,null,2020,null,null,null,null,null,null,null,null,null,null,null,null,null,null,null,null,null,null,null,null,"Landscape",null,"Landscape",null,"Landscape",null,"Landscape",null,"Landscape"]
[null,null,null,null,null,null,null,null,2020,"CEPA1",null,"CEPA112_122",null,"CEPA2",null,"CEPA3",null,"CEPA4",null,"CEPA5",null,"CEPA6",null,"CEPA7",null,"CEPA8",null,"CEPA9",null,"CEPA7-9",null,"TOT_CEPA",null,"CREMA 11B_13C_14",null,"CREMA 13A",null,"CREMA 13B"]
["S11_S12","B","EPS_P51G_NP",null,"( P51G_NP.3 ) Gross fixed capital formation and acquisition less disposals of non-financial non-produced assets (integrated and end of pipe technologies)",null,"B","Mining and Quarring",null,{"$f":"'3a'!J13","v":":"},{"$f":"'3a'!K13","v":0},{"$f":"'3a'!L13","v":":"},{"$f":"'3a'!M13","v":0},{"$f":"'3a'!N13","v":":"},{"$f":"'3a'!O13","v":0},{"$f":"'3a'!P13","v":":"},{"$f":"'3a'!Q13","v":0},{"$f":"'3a'!R13","v":":"},{"$f":"'3a'!S13","v":0},{"$f":"'3a'!T13","v":":"},{"$f":"'3a'!U13","v":0},{"$f":"'3a'!V13","v":":"},{"$f":"'3a'!W13","v":0},{"$f":"'3a'!X13","v":":"},{"$f":"'3a'!Y13","v":0},{"$f":"'3a'!Z13","v":":"},{"$f":"'3a'!AA13","v":0},{"$f":"'3a'!AB13","v":":"},{"$f":"'3a'!AC13","v":0},{"$f":"'3a'!AD13","v":":"},{"$f":"'3a'!AE13","v":0},{"$f":"'3a'!AF13","v":":"},{"$f":"'3a'!AG13","v":0},":",null,":",null,":"]
["S11_S12","C","EPS_P51G_NP",null,null,null,"C","Manufacturing",null,{"$f":"'3b'!J13","v":":"},{"$f":"'3b'!K13","v":0},{"$f":"'3b'!L13","v":":"},{"$f":"'3b'!M13","v":0},{"$f":"'3b'!N13","v":":"},{"$f":"'3b'!O13","v":0},{"$f":"'3b'!P13","v":":"},{"$f":"'3b'!Q13","v":0},{"$f":"'3b'!R13","v":":"},{"$f":"'3b'!S13","v":0},{"$f":"'3b'!T13","v":":"},{"$f":"'3b'!U13","v":0},{"$f":"'3b'!V13","v":":"},{"$f":"'3b'!W13","v":0},{"$f":"'3b'!X13","v":":"},{"$f":"'3b'!Y13","v":0},{"$f":"'3b'!Z13","v":":"},{"$f":"'3b'!AA13","v":0},{"$f":"'3b'!AB13","v":":"},{"$f":"'3b'!AC13","v":0},{"$f":"'3b'!AD13","v":":"},{"$f":"'3b'!AE13","v":0},{"$f":"'3b'!AF13","v":":"},{"$f":"'3b'!AG13","v":0},":",null,":",null,":"]
["S11_S12","D","EPS_P51G_NP",null,null,null,"D","Electricity, gas, steam and air conditionning supply",null,{"$f":"'3c'!J13","v":":"},{"$f":"'3c'!K13","v":0},{"$f":"'3c'!L13","v":":"},{"$f":"'3c'!M13","v":0},{"$f":"'3c'!N13","v":":"},{"$f":"'3c'!O13","v":0},{"$f":"'3c'!P13","v":":"},{"$f":"'3c'!Q13","v":0},{"$f":"'3c'!R13","v":":"},{"$f":"'3c'!S13","v":0},{"$f":"'3c'!T13","v":":"},{"$f":"'3c'!U13","v":0},{"$f":"'3c'!V13","v":":"},{"$f":"'3c'!W13","v":0},{"$f":"'3c'!X13","v":":"},{"$f":"'3c'!Y13","v":0},{"$f":"'3c'!Z13","v":":"},{"$f":"'3c'!AA13","v":0},{"$f":"'3c'!AB13","v":":"},{"$f":"'3c'!AC13","v":0},{"$f":"'3c'!AD13","v":":"},{"$f":"'3c'!AE13","v":0},{"$f":"'3c'!AF13","v":":"},{"$f":"'3c'!AG13","v":0},":",null,":",null,":"]
["S11_S12","E36","EPS_P51G_NP",null,null,null,"E36","Water supply",null,{"$f":"'3d'!J13","v":":"},{"$f":"'3d'!K13","v":0},{"$f":"'3d'!L13","v":":"},{"$f":"'3d'!M13","v":0},{"$f":"'3d'!N13","v":":"},{"$f":"'3d'!O13","v":0},{"$f":"'3d'!P13","v":":"},{"$f":"'3d'!Q13","v":0},{"$f":"'3d'!R13","v":":"},{"$f":"'3d'!S13","v":0},{"$f":"'3d'!T13","v":":"},{"$f":"'3d'!U13","v":0},{"$f":"'3d'!V13","v":":"},{"$f":"'3d'!W13","v":0},{"$f":"'3d'!X13","v":":"},{"$f":"'3d'!Y13","v":0},{"$f":"'3d'!Z13","v":":"},{"$f":"'3d'!AA13","v":0},{"$f":"'3d'!AB13","v":":"},{"$f":"'3d'!AC13","v":0},{"$f":"'3d'!AD13","v":":"},{"$f":"'3d'!AE13","v":0},{"$f":"'3d'!AF13","v":":"},{"$f":"'3d'!AG13","v":0},":",null,":",null,":"]
["S11_S12","A_EP_OTH","EPS_P51G_NP",null,null,null,"OTH","OTHER NACE",null,{"$f":"'3e (voluntary)'!J13","v":":"},{"$f":"'3e (voluntary)'!K13","v":0},{"$f":"'3e (voluntary)'!L13","v":":"},{"$f":"'3e (voluntary)'!M13","v":0},{"$f":"'3e (voluntary)'!N13","v":":"},{"$f":"'3e (voluntary)'!O13","v":0},{"$f":"'3e (voluntary)'!P13","v":":"},{"$f":"'3e (voluntary)'!Q13","v":0},{"$f":"'3e (voluntary)'!R13","v":":"},{"$f":"'3e (voluntary)'!S13","v":0},{"$f":"'3e (voluntary)'!T13","v":":"},{"$f":"'3e (voluntary)'!U13","v":0},{"$f":"'3e (voluntary)'!V13","v":":"},{"$f":"'3e (voluntary)'!W13","v":0},{"$f":"'3e (voluntary)'!X13","v":":"},{"$f":"'3e (voluntary)'!Y13","v":0},{"$f":"'3e (voluntary)'!Z13","v":":"},{"$f":"'3e (voluntary)'!AA13","v":0},{"$f":"'3e (voluntary)'!AB13","v":":"},{"$f":"'3e (voluntary)'!AC13","v":0},{"$f":"'3e (voluntary)'!AD13","v":":"},{"$f":"'3e (voluntary)'!AE13","v":0},{"$f":"'3e (voluntary)'!AF13","v":":"},{"$f":"'3e (voluntary)'!AG13","v":0},":",null,":",null,":"]
[null,null,null,null,null,null,null,"of which:"]
["S11_S12","A","EPS_P51G_NP",null,null,null,"A","Agriculture, forestry and fishing",null,":",null,":",null,":",null,":",null,":",null,":",null,":",null,":",null,":",null,":",null,":",null,{"$f":"IF(COUNT(J13,N13,P13, R13,T13,V13,AD13)=7,SUM(J13,N13,P13, R13,T13,V13,AD13),\":\")","v":":"},null,":",null,":"]
["S11_S12","E3739","EPS_P51G_NP",null,null,null,"E37-39","Sewerage: waste management and remendiation activities",null,":",null,":",null,":",null,":",null,":",null,":",null,":",null,":",null,":",null,":",null,":",null,":",null,":",null,":"]
["S11_S12","F","EPS_P51G_NP",null,null,null,"F","Construction",null,":",null,":",null,":",null,":",null,":",null,":",null,":",null,":",null,":",null,":",null,":",null,":",null,":",null,":"]
["S11_S12","H","EPS_P51G_NP",null,null,null,"H","Transportation and storage",null,":",null,":",null,":",null,":",null,":",null,":",null,":",null,":",null,":",null,":",null,":",null,":",null,":",null,":"]
["S11_S12","L","EPS_P51G_NP",null,null,null,"L","Real estate activities",null,":",null,":",null,":",null,":",null,":",null,":",null,":",null,":",null,":",null,":",null,":",null,":",null,":",null,":"]
["S11_S12","B","EP_P51G_CREP_ec",null,"( P51G_CREP_ec.3Add) Gross fixed capital formation  in cleaner and resource efficient products for non characteristic activities - EXTRA COST",null,"B","Mining and Quarring",null,":",null,":",null,":",null,":",null,":",null,":",null,":",null,":",null,":",null,":",null,":",null,":",null,":",null,":",null,":"]
["S11_S12","C","EP_P51G_CREP_ec",null,null,null,"C","Manufacturing",null,":",null,":",null,":",null,":",null,":",null,":",null,":",null,":",null,":",null,":",null,":",null,":",null,":",null,":",null,":"]
["S11_S12","D","EP_P51G_CREP_ec",null,null,null,"D","Electricity, gas, steam and air conditionning supply",null,":",null,":",null,":",null,":",null,":",null,":",null,":",null,":",null,":",null,":",null,":",null,":",null,":",null,":",null,":"]
["S11_S12","E36","EP_P51G_CREP_ec",null,null,null,"E36","Water supply",null,":",null,":",null,":",null,":",null,":",null,":",null,":",null,":",null,":",null,":",null,":",null,":",null,":",null,":",null,":"]
["S11_S12","A_EP_OTH","EP_P51G_CREP_ec",null,null,null,"OTH","OTHER NACE",null,":",null,":",null,":",null,":",null,":",null,":",null,":",null,":",null,":",null,":",null,":",null,":",null,":",null,":",null,":"]
[null,null,null,null,null,null,null,"of which:",null,null,null,null,null,null,null,null,null,null,null,null,null,null,null,null,null,null,null,null,null,null,null,":"]
["S11_S12","A","EP_P51G_CREP_ec",null,null,null,"A","Agriculture, forestry and fishing",null,":",null,":",null,":",null,":",null,":",null,":",null,":",null,":",null,":",null,":",null,":",null,":",null,":",null,":",null,":"]
["S11_S12","E3739","EP_P51G_CREP_ec",null,null,null,"E37-39","Sewerage: waste management and remendiation activities",null,":",null,":",null,":",null,":",null,":",null,":",null,":",null,":",null,":",null,":",null,":",null,":",null,":",null,":",null,":"]
["S11_S12","F","EP_P51G_CREP_ec",null,null,null,"F","Construction",null,":",null,":",null,":",null,":",null,":",null,":",null,":",null,":",null,":",null,":",null,":",null,":",null,":",null,":",null,":"]
["S11_S12","H","EP_P51G_CREP_ec",null,null,null,"H","Transportation and storage",null,":",null,":",null,":",null,":",null,":",null,":",null,":",null,":",null,":",null,":",null,":",null,":",null,":",null,":",null,":"]
["S11_S12","L","EP_P51G_CREP_ec",null,null,null,"L","Real estate activities",null,":",null,":",null,":",null,":",null,":",null,":",null,":",null,":",null,":",null,":",null,":",null,":",null,":",null,":",null,":"]
["S11_S12","B","EP_P51G_CREP_fc",null,"( P51G_NP_CREP_fc.3Add ) Gross fixed capital formation and acquisition less disposals of non-financial non-produced assets in cleaner and resource efficient products - FULL COST",null,"B","Mining and Quarring",null,":",null,":",null,":",null,":",null,":",null,":",null,":",null,":",null,":",null,":",null,":",null,":",null,":",null,":",null,":"]
["S11_S12","C","EP_P51G_CREP_fc",null,null,null,"C","Manufacturing",null,":",null,":",null,":",null,":",null,":",null,":",null,":",null,":",null,":",null,":",null,":",null,":",null,":",null,":",null,":"]
["S11_S12","D","EP_P51G_CREP_fc",null,null,null,"D","Electricity, gas, steam and air conditionning supply",null,":",null,":",null,":",null,":",null,":",null,":",null,":",null,":",null,":",null,":",null,":",null,":",null,":",null,":",null,":"]
["S11_S12","E36","EP_P51G_CREP_fc",null,null,null,"E36","Water supply",null,":",null,":",null,":",null,":",null,":",null,":",null,":",null,":",null,":",null,":",null,":",null,":",null,":",null,":",null,":"]
["S11_S12","A_EP_OTH","EP_P51G_CREP_fc",null,null,null,"OTH","OTHER NACE",null,":",null,":",null,":",null,":",null,":",null,":",null,":",null,":",null,":",null,":",null,":",null,":",null,":",null,":",null,":"]
[null,null,null,null,null,null,null,"of which:",null,null,null,null,null,null,null,null,null,null,null,null,null,null,null,null,null,null,null,null,null,null,null,":"]
["S11_S12","A","EP_P51G_CREP_fc",null,null,null,"A","Agriculture, forestry and fishing",null,":",null,":",null,":",null,":",null,":",null,":",null,":",null,":",null,":",null,":",null,":",null,":",null,":",null,":",null,":"]
["S11_S12","E3739","EP_P51G_CREP_fc",null,null,null,"E37-39","Sewerage: waste management and remendiation activities",null,":",null,":",null,":",null,":",null,":",null,":",null,":",null,":",null,":",null,":",null,":",null,":",null,":",null,":",null,":"]
["S11_S12","F","EP_P51G_CREP_fc",null,null,null,"F","Construction",null,":",null,":",null,":",null,":",null,":",null,":",null,":",null,":",null,":",null,":",null,":",null,":",null,":",null,":",null,":"]
["S11_S12","H","EP_P51G_CREP_fc",null,null,null,"H","Transportation and storage",null,":",null,":",null,":",null,":",null,":",null,":",null,":",null,":",null,":",null,":",null,":",null,":",null,":",null,":",null,":"]
["S11_S12","L","EP_P51G_CREP_fc",null,null,null,"L","Real estate activities",null,":",null,":",null,":",null,":",null,":",null,":",null,":",null,":",null,":",null,":",null,":",null,":",null,":",null,":",null,":"]

{"sheet":"8.3_Add_2021","index":54,"n_rows":39,"n_cols":38,"rows_kept":39,"cut":false,"hidden":false,"merged":[[3,13,4,14],[3,15,4,16],[3,17,4,18],[3,37,4,38],[3,21,4,22],[3,23,4,24],[3,25,4,26],[3,31,4,32],[3,33,4,34],[3,35,4,36],[3,27,4,28],[3,29,4,30],[3,19,4,20],[0,4,0,8],[1,4,1,8],[1,9,1,32],[1,33,1,38],[2,9,2,32],[2,33,2,38],[17,4,17,5],[17,7,17,8],[4,4,4,7],[6,4,6,5],[6,7,6,8],[7,7,7,8],[8,7,8,8],[9,7,9,8],[3,9,4,10],[3,11,4,12],[25,7,25,8],[12,7,12,8],[13,7,13,8],[14,7,14,8],[15,7,15,8],[16,7,16,8],[18,7,18,8],[19,7,19,8],[20,7,20,8],[23,7,23,8],[24,7,24,8],[38,7,38,8],[26,7,26,8],[27,7,27,8],[28,4,28,5],[28,7,28,8],[29,7,29,8],[30,7,30,8],[31,7,31,8],[34,7,34,8],[35,7,35,8],[36,7,36,8],[37,7,37,8]]}
[null,null,null,null,{"$f":"Cover!B21","v":"QUESTIONNAIRE ON ENVIRONMENTAL PROTECTION EXPENDITURE ACCOUNTS"},null,null,null,null,"GFCF - Corporations: other (also covering producers of ancillary EP services)",null,null,null,null,null,null,null,null,null,null,null,null,null,null,null,null,null,null,null,null,null,null,null,"GFCF - Corporations: other (also covering producers of ancillary RM products)"]
[null,null,null,null,{"$f":"E1","v":"QUESTIONNAIRE ON ENVIRONMENTAL PROTECTION EXPENDITURE ACCOUNTS"},null,null,null,null,{"$f":"J1","v":"GFCF - Corporations: other (also covering producers of ancillary EP services)"},null,null,null,null,null,null,null,null,null,null,null,null,null,null,null,null,null,null,null,null,null,null,null,{"$f":"AH1","v":"GFCF - Corporations: other (also covering producers of ancillary RM products)"}]
[null,null,null,null,null,null,null,null,null,"Figures calculated from information available in the questionnaire",null,null,null,null,null,null,null,null,null,null,null,null,null,null,null,null,null,null,null,null,null,null,null,"Figures calculated from information available in the questionnaire"]
[null,null,null,null,"Country/Unit",{"$f":"IFERROR(Cover!C16,\"\")","v":""},{"$f":"\"\"&Cover!B16","v":""},null,{"$f":"Cover!B17","v":"Million units of national currency"},"CEPA 1",null,"of which CEPA 1.1.2 and 1.2.2 Climate change",null,"CEPA 2",null,"CEPA 3",null,"CEPA 4",null,"CEPA 5",null,"CEPA 6",null,"CEPA 7",null,"CEPA 8",null,"CEPA 9",null,"Sum of CEPA 7+8+9",null,"TOTAL CEPA",null," CReMA\n11B + 13C + 14 \n(Materials recovery)",null,"CReMA13A (Production of energy  from renewable sources)",null,"CReMA13B \n(Energy efficiency and savings)"]
[null,null,null,null,"Expenditure",null,null,null,2021,null,null,null,null,null,null,null,null,null,null,null,null,null,null,null,null,null,null,null,null,"Landscape",null,"Landscape",null,"Landscape",null,"Landscape",null,"Landscape"]
[null,null,null,null,null,null,null,null,2020,"CEPA1",null,"CEPA112_122",null,"CEPA2",null,"CEPA3",null,"CEPA4",null,"CEPA5",null,"CEPA6",null,"CEPA7",null,"CEPA8",null,"CEPA9",null,"CEPA7-9",null,"TOT_CEPA",null,"CREMA 11B_13C_14",null,"CREMA 13A",null,"CREMA 13B"]
["S11_S12","B","EPS_P51G_NP",null,"( P51G_NP.3 ) Gross fixed capital formation and acquisition less disposals of non-financial non-produced assets (integrated and end of pipe technologies)",null,"B","Mining and Quarring",null,{"$f":"'3a'!J14","v":":"},{"$f":"'3a'!K14","v":0},{"$f":"'3a'!L14","v":":"},{"$f":"'3a'!M14","v":0},{"$f":"'3a'!N14","v":":"},{"$f":"'3a'!O14","v":0},{"$f":"'3a'!P14","v":":"},{"$f":"'3a'!Q14","v":0},{"$f":"'3a'!R14","v":":"},{"$f":"'3a'!S14","v":0},{"$f":"'3a'!T14","v":":"},{"$f":"'3a'!U14","v":0},{"$f":"'3a'!V14","v":":"},{"$f":"'3a'!W14","v":0},{"$f":"'3a'!X14","v":":"},{"$f":"'3a'!Y14","v":0},{"$f":"'3a'!Z14","v":":"},{"$f":"'3a'!AA14","v":0},{"$f":"'3a'!AB14","v":":"},{"$f":"'3a'!AC14","v":0},{"$f":"'3a'!AD14","v":":"},{"$f":"'3a'!AE14","v":0},{"$f":"'3a'!AF14","v":":"},{"$f":"'3a'!AG14","v":0},":",null,":",null,":"]
["S11_S12","C","EPS_P51G_NP",null,null,null,"C","Manufacturing",null,{"$f":"'3b'!J14","v":":"},{"$f":"'3b'!K14","v":0},{"$f":"'3b'!L14","v":":"},{"$f":"'3b'!M14","v":0},{"$f":"'3b'!N14","v":":"},{"$f":"'3b'!O14","v":0},{"$f":"'3b'!P14","v":":"},{"$f":"'3b'!Q14","v":0},{"$f":"'3b'!R14","v":":"},{"$f":"'3b'!S14","v":0},{"$f":"'3b'!T14","v":":"},{"$f":"'3b'!U14","v":0},{"$f":"'3b'!V14","v":":"},{"$f":"'3b'!W14","v":0},{"$f":"'3b'!X14","v":":"},{"$f":"'3b'!Y14","v":0},{"$f":"'3b'!Z14","v":":"},{"$f":"'3b'!AA14","v":0},{"$f":"'3b'!AB14","v":":"},{"$f":"'3b'!AC14","v":0},{"$f":"'3b'!AD14","v":":"},{"$f":"'3b'!AE14","v":0},{"$f":"'3b'!AF14","v":":"},{"$f":"'3b'!AG14","v":0},":",null,":",null,":"]
["S11_S12","D","EPS_P51G_NP",null,null,null,"D","Electricity, gas, steam and air conditionning supply",null,{"$f":"'3c'!J14","v":":"},{"$f":"'3c'!K14","v":0},{"$f":"'3c'!L14","v":":"},{"$f":"'3c'!M14","v":0},{"$f":"'3c'!N14","v":":"},{"$f":"'3c'!O14","v":0},{"$f":"'3c'!P14","v":":"},{"$f":"'3c'!Q14","v":0},{"$f":"'3c'!R14","v":":"},{"$f":"'3c'!S14","v":0},{"$f":"'3c'!T14","v":":"},{"$f":"'3c'!U14","v":0},{"$f":"'3c'!V14","v":":"},{"$f":"'3c'!W14","v":0},{"$f":"'3c'!X14","v":":"},{"$f":"'3c'!Y14","v":0},{"$f":"'3c'!Z14","v":":"},{"$f":"'3c'!AA14","v":0},{"$f":"'3c'!AB14","v":":"},{"$f":"'3c'!AC14","v":0},{"$f":"'3c'!AD14","v":":"},{"$f":"'3c'!AE14","v":0},{"$f":"'3c'!AF14","v":":"},{"$f":"'3c'!AG14","v":0},":",null,":",null,":"]
["S11_S12","E36","EPS_P51G_NP",null,null,null,"E36","Water supply",null,{"$f":"'3d'!J14","v":":"},{"$f":"'3d'!K14","v":0},{"$f":"'3d'!L14","v":":"},{"$f":"'3d'!M14","v":0},{"$f":"'3d'!N14","v":":"},{"$f":"'3d'!O14","v":0},{"$f":"'3d'!P14","v":":"},{"$f":"'3d'!Q14","v":0},{"$f":"'3d'!R14","v":":"},{"$f":"'3d'!S14","v":0},{"$f":"'3d'!T14","v":":"},{"$f":"'3d'!U14","v":0},{"$f":"'3d'!V14","v":":"},{"$f":"'3d'!W14","v":0},{"$f":"'3d'!X14","v":":"},{"$f":"'3d'!Y14","v":0},{"$f":"'3d'!Z14","v":":"},{"$f":"'3d'!AA14","v":0},{"$f":"'3d'!AB14","v":":"},{"$f":"'3d'!AC14","v":0},{"$f":"'3d'!AD14","v":":"},{"$f":"'3d'!AE14","v":0},{"$f":"'3d'!AF14","v":":"},{"$f":"'3d'!AG14","v":0},":",null,":",null,":"]
["S11_S12","A_EP_OTH","EPS_P51G_NP",null,null,null,"OTH","OTHER NACE",null,{"$f":"'3e (voluntary)'!J14","v":":"},{"$f":"'3e (voluntary)'!K14","v":0},{"$f":"'3e (voluntary)'!L14","v":":"},{"$f":"'3e (voluntary)'!M14","v":0},{"$f":"'3e (voluntary)'!N14","v":":"},{"$f":"'3e (voluntary)'!O14","v":0},{"$f":"'3e (voluntary)'!P14","v":":"},{"$f":"'3e (voluntary)'!Q14","v":0},{"$f":"'3e (voluntary)'!R14","v":":"},{"$f":"'3e (voluntary)'!S14","v":0},{"$f":"'3e (voluntary)'!T14","v":":"},{"$f":"'3e (voluntary)'!U14","v":0},{"$f":"'3e (voluntary)'!V14","v":":"},{"$f":"'3e (voluntary)'!W14","v":0},{"$f":"'3e (voluntary)'!X14","v":":"},{"$f":"'3e (voluntary)'!Y14","v":0},{"$f":"'3e (voluntary)'!Z14","v":":"},{"$f":"'3e (voluntary)'!AA14","v":0},{"$f":"'3e (voluntary)'!AB14","v":":"},{"$f":"'3e (voluntary)'!AC14","v":0},{"$f":"'3e (voluntary)'!AD14","v":":"},{"$f":"'3e (voluntary)'!AE14","v":0},{"$f":"'3e (voluntary)'!AF14","v":":"},{"$f":"'3e (voluntary)'!AG14","v":0},":",null,":",null,":"]
[null,null,null,null,null,null,null,"of which:"]
["S11_S12","A","EPS_P51G_NP",null,null,null,"A","Agriculture, forestry and fishing",null,":",null,":",null,":",null,":",null,":",null,":",null,":",null,":",null,":",null,":",null,":",null,{"$f":"IF(COUNT(J13,N13,P13, R13,T13,V13,AD13)=7,SUM(J13,N13,P13, R13,T13,V13,AD13),\":\")","v":":"},null,":",null,":"]
["S11_S12","E3739","EPS_P51G_NP",null,null,null,"E37-39","Sewerage: waste management and remendiation activities",null,":",null,":",null,":",null,":",null,":",null,":",null,":",null,":",null,":",null,":",null,":",null,":",null,":",null,":"]
["S11_S12","F","EPS_P51G_NP",null,null,null,"F","Construction",null,":",null,":",null,":",null,":",null,":",null,":",null,":",null,":",null,":",null,":",null,":",null,":",null,":",null,":"]
["S11_S12","H","EPS_P51G_NP",null,null,null,"H","Transportation and storage",null,":",null,":",null,":",null,":",null,":",null,":",null,":",null,":",null,":",null,":",null,":",null,":",null,":",null,":"]
["S11_S12","L","EPS_P51G_NP",null,null,null,"L","Real estate activities",null,":",null,":",null,":",null,":",null,":",null,":",null,":",null,":",null,":",null,":",null,":",null,":",null,":",null,":"]
["S11_S12","B","EP_P51G_CREP_ec",null,"( P51G_CREP_ec.3Add) Gross fixed capital formation  in cleaner and resource efficient products for non characteristic activities - EXTRA COST",null,"B","Mining and Quarring",null,":",null,":",null,":",null,":",null,":",null,":",null,":",null,":",null,":",null,":",null,":",null,":",null,":",null,":",null,":"]
["S11_S12","C","EP_P51G_CREP_ec",null,null,null,"C","Manufacturing",null,":",null,":",null,":",null,":",null,":",null,":",null,":",null,":",null,":",null,":",null,":",null,":",null,":",null,":",null,":"]
["S11_S12","D","EP_P51G_CREP_ec",null,null,null,"D","Electricity, gas, steam and air conditionning supply",null,":",null,":",null,":",null,":",null,":",null,":",null,":",null,":",null,":",null,":",null,":",null,":",null,":",null,":",null,":"]
["S11_S12","E36","EP_P51G_CREP_ec",null,null,null,"E36","Water supply",null,":",null,":",null,":",null,":",null,":",null,":",null,":",null,":",null,":",null,":",null,":",null,":",null,":",null,":",null,":"]
["S11_S12","A_EP_OTH","EP_P51G_CREP_ec",null,null,null,"OTH","OTHER NACE",null,":",null,":",null,":",null,":",null,":",null,":",null,":",null,":",null,":",null,":",null,":",null,":",null,":",null,":",null,":"]
[null,null,null,null,null,null,null,"of which:",null,null,null,null,null,null,null,null,null,null,null,null,null,null,null,null,null,null,null,null,null,null,null,":"]
["S11_S12","A","EP_P51G_CREP_ec",null,null,null,"A","Agriculture, forestry and fishing",null,":",null,":",null,":",null,":",null,":",null,":",null,":",null,":",null,":",null,":",null,":",null,":",null,":",null,":",null,":"]
["S11_S12","E3739","EP_P51G_CREP_ec",null,null,null,"E37-39","Sewerage: waste management and remendiation activities",null,":",null,":",null,":",null,":",null,":",null,":",null,":",null,":",null,":",null,":",null,":",null,":",null,":",null,":",null,":"]
["S11_S12","F","EP_P51G_CREP_ec",null,null,null,"F","Construction",null,":",null,":",null,":",null,":",null,":",null,":",null,":",null,":",null,":",null,":",null,":",null,":",null,":",null,":",null,":"]
["S11_S12","H","EP_P51G_CREP_ec",null,null,null,"H","Transportation and storage",null,":",null,":",null,":",null,":",null,":",null,":",null,":",null,":",null,":",null,":",null,":",null,":",null,":",null,":",null,":"]
["S11_S12","L","EP_P51G_CREP_ec",null,null,null,"L","Real estate activities",null,":",null,":",null,":",null,":",null,":",null,":",null,":",null,":",null,":",null,":",null,":",null,":",null,":",null,":",null,":"]
["S11_S12","B","EP_P51G_CREP_fc",null,"( P51G_NP_CREP_fc.3Add ) Gross fixed capital formation and acquisition less disposals of non-financial non-produced assets in cleaner and resource efficient products - FULL COST",null,"B","Mining and Quarring",null,":",null,":",null,":",null,":",null,":",null,":",null,":",null,":",null,":",null,":",null,":",null,":",null,":",null,":",null,":"]
["S11_S12","C","EP_P51G_CREP_fc",null,null,null,"C","Manufacturing",null,":",null,":",null,":",null,":",null,":",null,":",null,":",null,":",null,":",null,":",null,":",null,":",null,":",null,":",null,":"]
["S11_S12","D","EP_P51G_CREP_fc",null,null,null,"D","Electricity, gas, steam and air conditionning supply",null,":",null,":",null,":",null,":",null,":",null,":",null,":",null,":",null,":",null,":",null,":",null,":",null,":",null,":",null,":"]
["S11_S12","E36","EP_P51G_CREP_fc",null,null,null,"E36","Water supply",null,":",null,":",null,":",null,":",null,":",null,":",null,":",null,":",null,":",null,":",null,":",null,":",null,":",null,":",null,":"]
["S11_S12","A_EP_OTH","EP_P51G_CREP_fc",null,null,null,"OTH","OTHER NACE",null,":",null,":",null,":",null,":",null,":",null,":",null,":",null,":",null,":",null,":",null,":",null,":",null,":",null,":",null,":"]
[null,null,null,null,null,null,null,"of which:",null,null,null,null,null,null,null,null,null,null,null,null,null,null,null,null,null,null,null,null,null,null,null,":"]
["S11_S12","A","EP_P51G_CREP_fc",null,null,null,"A","Agriculture, forestry and fishing",null,":",null,":",null,":",null,":",null,":",null,":",null,":",null,":",null,":",null,":",null,":",null,":",null,":",null,":",null,":"]
["S11_S12","E3739","EP_P51G_CREP_fc",null,null,null,"E37-39","Sewerage: waste management and remendiation activities",null,":",null,":",null,":",null,":",null,":",null,":",null,":",null,":",null,":",null,":",null,":",null,":",null,":",null,":",null,":"]
["S11_S12","F","EP_P51G_CREP_fc",null,null,null,"F","Construction",null,":",null,":",null,":",null,":",null,":",null,":",null,":",null,":",null,":",null,":",null,":",null,":",null,":",null,":",null,":"]
["S11_S12","H","EP_P51G_CREP_fc",null,null,null,"H","Transportation and storage",null,":",null,":",null,":",null,":",null,":",null,":",null,":",null,":",null,":",null,":",null,":",null,":",null,":",null,":",null,":"]
["S11_S12","L","EP_P51G_CREP_fc",null,null,null,"L","Real estate activities",null,":",null,":",null,":",null,":",null,":",null,":",null,":",null,":",null,":",null,":",null,":",null,":",null,":",null,":",null,":"]

{"sheet":"8.3_Add_2022","index":55,"n_rows":39,"n_cols":38,"rows_kept":39,"cut":false,"hidden":false,"merged":[[3,13,4,14],[3,15,4,16],[3,17,4,18],[3,37,4,38],[3,21,4,22],[3,23,4,24],[3,25,4,26],[3,31,4,32],[3,33,4,34],[3,35,4,36],[3,27,4,28],[3,29,4,30],[3,19,4,20],[0,4,0,8],[1,4,1,8],[1,9,1,32],[1,33,1,38],[2,9,2,32],[2,33,2,38],[17,4,17,5],[17,7,17,8],[4,4,4,7],[6,4,6,5],[6,7,6,8],[7,7,7,8],[8,7,8,8],[9,7,9,8],[3,9,4,10],[3,11,4,12],[25,7,25,8],[12,7,12,8],[13,7,13,8],[14,7,14,8],[15,7,15,8],[16,7,16,8],[18,7,18,8],[19,7,19,8],[20,7,20,8],[23,7,23,8],[24,7,24,8],[38,7,38,8],[26,7,26,8],[27,7,27,8],[28,4,28,5],[28,7,28,8],[29,7,29,8],[30,7,30,8],[31,7,31,8],[34,7,34,8],[35,7,35,8],[36,7,36,8],[37,7,37,8]]}
[null,null,null,null,{"$f":"Cover!B21","v":"QUESTIONNAIRE ON ENVIRONMENTAL PROTECTION EXPENDITURE ACCOUNTS"},null,null,null,null,"GFCF - Corporations: other (also covering producers of ancillary EP services)",null,null,null,null,null,null,null,null,null,null,null,null,null,null,null,null,null,null,null,null,null,null,null,"GFCF - Corporations: other (also covering producers of ancillary RM products)"]
[null,null,null,null,{"$f":"E1","v":"QUESTIONNAIRE ON ENVIRONMENTAL PROTECTION EXPENDITURE ACCOUNTS"},null,null,null,null,{"$f":"J1","v":"GFCF - Corporations: other (also covering producers of ancillary EP services)"},null,null,null,null,null,null,null,null,null,null,null,null,null,null,null,null,null,null,null,null,null,null,null,{"$f":"AH1","v":"GFCF - Corporations: other (also covering producers of ancillary RM products)"}]
[null,null,null,null,null,null,null,null,null,"Figures calculated from information available in the questionnaire",null,null,null,null,null,null,null,null,null,null,null,null,null,null,null,null,null,null,null,null,null,null,null,"Figures calculated from information available in the questionnaire"]
[null,null,null,null,"Country/Unit",{"$f":"IFERROR(Cover!C16,\"\")","v":""},{"$f":"\"\"&Cover!B16","v":""},null,{"$f":"Cover!B17","v":"Million units of national currency"},"CEPA 1",null,"of which CEPA 1.1.2 and 1.2.2 Climate change",null,"CEPA 2",null,"CEPA 3",null,"CEPA 4",null,"CEPA 5",null,"CEPA 6",null,"CEPA 7",null,"CEPA 8",null,"CEPA 9",null,"Sum of CEPA 7+8+9",null,"TOTAL CEPA",null," CReMA\n11B + 13C + 14 \n(Materials recovery)",null,"CReMA13A (Production of energy  from renewable sources)",null,"CReMA13B \n(Energy efficiency and savings)"]
[null,null,null,null,"Expenditure",null,null,null,2022,null,null,null,null,null,null,null,null,null,null,null,null,null,null,null,null,null,null,null,null,"Landscape",null,"Landscape",null,"Landscape",null,"Landscape",null,"Landscape"]
[null,null,null,null,null,null,null,null,2020,"CEPA1",null,"CEPA112_122",null,"CEPA2",null,"CEPA3",null,"CEPA4",null,"CEPA5",null,"CEPA6",null,"CEPA7",null,"CEPA8",null,"CEPA9",null,"CEPA7-9",null,"TOT_CEPA",null,"CREMA 11B_13C_14",null,"CREMA 13A",null,"CREMA 13B"]
["S11_S12","B","EPS_P51G_NP",null,"( P51G_NP.3 ) Gross fixed capital formation and acquisition less disposals of non-financial non-produced assets (integrated and end of pipe technologies)",null,"B","Mining and Quarring",null,{"$f":"'3a'!J15","v":":"},{"$f":"'3a'!K15","v":0},{"$f":"'3a'!L15","v":":"},{"$f":"'3a'!M15","v":0},{"$f":"'3a'!N15","v":":"},{"$f":"'3a'!O15","v":0},{"$f":"'3a'!P15","v":":"},{"$f":"'3a'!Q15","v":0},{"$f":"'3a'!R15","v":":"},{"$f":"'3a'!S15","v":0},{"$f":"'3a'!T15","v":":"},{"$f":"'3a'!U15","v":0},{"$f":"'3a'!V15","v":":"},{"$f":"'3a'!W15","v":0},{"$f":"'3a'!X15","v":":"},{"$f":"'3a'!Y15","v":0},{"$f":"'3a'!Z15","v":":"},{"$f":"'3a'!AA15","v":0},{"$f":"'3a'!AB15","v":":"},{"$f":"'3a'!AC15","v":0},{"$f":"'3a'!AD15","v":":"},{"$f":"'3a'!AE15","v":0},{"$f":"'3a'!AF15","v":":"},{"$f":"'3a'!AG15","v":0},":",null,":",null,":"]
["S11_S12","C","EPS_P51G_NP",null,null,null,"C","Manufacturing",null,{"$f":"'3b'!J15","v":":"},{"$f":"'3b'!K15","v":0},{"$f":"'3b'!L15","v":":"},{"$f":"'3b'!M15","v":0},{"$f":"'3b'!N15","v":":"},{"$f":"'3b'!O15","v":0},{"$f":"'3b'!P15","v":":"},{"$f":"'3b'!Q15","v":0},{"$f":"'3b'!R15","v":":"},{"$f":"'3b'!S15","v":0},{"$f":"'3b'!T15","v":":"},{"$f":"'3b'!U15","v":0},{"$f":"'3b'!V15","v":":"},{"$f":"'3b'!W15","v":0},{"$f":"'3b'!X15","v":":"},{"$f":"'3b'!Y15","v":0},{"$f":"'3b'!Z15","v":":"},{"$f":"'3b'!AA15","v":0},{"$f":"'3b'!AB15","v":":"},{"$f":"'3b'!AC15","v":0},{"$f":"'3b'!AD15","v":":"},{"$f":"'3b'!AE15","v":0},{"$f":"'3b'!AF15","v":":"},{"$f":"'3b'!AG15","v":0},":",null,":",null,":"]
["S11_S12","D","EPS_P51G_NP",null,null,null,"D","Electricity, gas, steam and air conditionning supply",null,{"$f":"'3c'!J15","v":":"},{"$f":"'3c'!K15","v":0},{"$f":"'3c'!L15","v":":"},{"$f":"'3c'!M15","v":0},{"$f":"'3c'!N15","v":":"},{"$f":"'3c'!O15","v":0},{"$f":"'3c'!P15","v":":"},{"$f":"'3c'!Q15","v":0},{"$f":"'3c'!R15","v":":"},{"$f":"'3c'!S15","v":0},{"$f":"'3c'!T15","v":":"},{"$f":"'3c'!U15","v":0},{"$f":"'3c'!V15","v":":"},{"$f":"'3c'!W15","v":0},{"$f":"'3c'!X15","v":":"},{"$f":"'3c'!Y15","v":0},{"$f":"'3c'!Z15","v":":"},{"$f":"'3c'!AA15","v":0},{"$f":"'3c'!AB15","v":":"},{"$f":"'3c'!AC15","v":0},{"$f":"'3c'!AD15","v":":"},{"$f":"'3c'!AE15","v":0},{"$f":"'3c'!AF15","v":":"},{"$f":"'3c'!AG15","v":0},":",null,":",null,":"]
["S11_S12","E36","EPS_P51G_NP",null,null,null,"E36","Water supply",null,{"$f":"'3d'!J15","v":":"},{"$f":"'3d'!K15","v":0},{"$f":"'3d'!L15","v":":"},{"$f":"'3d'!M15","v":0},{"$f":"'3d'!N15","v":":"},{"$f":"'3d'!O15","v":0},{"$f":"'3d'!P15","v":":"},{"$f":"'3d'!Q15","v":0},{"$f":"'3d'!R15","v":":"},{"$f":"'3d'!S15","v":0},{"$f":"'3d'!T15","v":":"},{"$f":"'3d'!U15","v":0},{"$f":"'3d'!V15","v":":"},{"$f":"'3d'!W15","v":0},{"$f":"'3d'!X15","v":":"},{"$f":"'3d'!Y15","v":0},{"$f":"'3d'!Z15","v":":"},{"$f":"'3d'!AA15","v":0},{"$f":"'3d'!AB15","v":":"},{"$f":"'3d'!AC15","v":0},{"$f":"'3d'!AD15","v":":"},{"$f":"'3d'!AE15","v":0},{"$f":"'3d'!AF15","v":":"},{"$f":"'3d'!AG15","v":0},":",null,":",null,":"]
["S11_S12","A_EP_OTH","EPS_P51G_NP",null,null,null,"OTH","OTHER NACE",null,{"$f":"'3e (voluntary)'!J15","v":":"},{"$f":"'3e (voluntary)'!K15","v":0},{"$f":"'3e (voluntary)'!L15","v":":"},{"$f":"'3e (voluntary)'!M15","v":0},{"$f":"'3e (voluntary)'!N15","v":":"},{"$f":"'3e (voluntary)'!O15","v":0},{"$f":"'3e (voluntary)'!P15","v":":"},{"$f":"'3e (voluntary)'!Q15","v":0},{"$f":"'3e (voluntary)'!R15","v":":"},{"$f":"'3e (voluntary)'!S15","v":0},{"$f":"'3e (voluntary)'!T15","v":":"},{"$f":"'3e (voluntary)'!U15","v":0},{"$f":"'3e (voluntary)'!V15","v":":"},{"$f":"'3e (voluntary)'!W15","v":0},{"$f":"'3e (voluntary)'!X15","v":":"},{"$f":"'3e (voluntary)'!Y15","v":0},{"$f":"'3e (voluntary)'!Z15","v":":"},{"$f":"'3e (voluntary)'!AA15","v":0},{"$f":"'3e (voluntary)'!AB15","v":":"},{"$f":"'3e (voluntary)'!AC15","v":0},{"$f":"'3e (voluntary)'!AD15","v":":"},{"$f":"'3e (voluntary)'!AE15","v":0},{"$f":"'3e (voluntary)'!AF15","v":":"},{"$f":"'3e (voluntary)'!AG15","v":0},":",null,":",null,":"]
[null,null,null,null,null,null,null,"of which:"]
["S11_S12","A","EPS_P51G_NP",null,null,null,"A","Agriculture, forestry and fishing",null,":",null,":",null,":",null,":",null,":",null,":",null,":",null,":",null,":",null,":",null,":",null,{"$f":"IF(COUNT(J13,N13,P13, R13,T13,V13,AD13)=7,SUM(J13,N13,P13, R13,T13,V13,AD13),\":\")","v":":"},null,":",null,":"]
["S11_S12","E3739","EPS_P51G_NP",null,null,null,"E37-39","Sewerage: waste management and remendiation activities",null,":",null,":",null,":",null,":",null,":",null,":",null,":",null,":",null,":",null,":",null,":",null,":",null,":",null,":"]
["S11_S12","F","EPS_P51G_NP",null,null,null,"F","Construction",null,":",null,":",null,":",null,":",null,":",null,":",null,":",null,":",null,":",null,":",null,":",null,":",null,":",null,":"]
["S11_S12","H","EPS_P51G_NP",null,null,null,"H","Transportation and storage",null,":",null,":",null,":",null,":",null,":",null,":",null,":",null,":",null,":",null,":",null,":",null,":",null,":",null,":"]
["S11_S12","L","EPS_P51G_NP",null,null,null,"L","Real estate activities",null,":",null,":",null,":",null,":",null,":",null,":",null,":",null,":",null,":",null,":",null,":",null,":",null,":",null,":"]
["S11_S12","B","EP_P51G_CREP_ec",null,"( P51G_CREP_ec.3Add) Gross fixed capital formation  in cleaner and resource efficient products for non characteristic activities - EXTRA COST",null,"B","Mining and Quarring",null,":",null,":",null,":",null,":",null,":",null,":",null,":",null,":",null,":",null,":",null,":",null,":",null,":",null,":",null,":"]
["S11_S12","C","EP_P51G_CREP_ec",null,null,null,"C","Manufacturing",null,":",null,":",null,":",null,":",null,":",null,":",null,":",null,":",null,":",null,":",null,":",null,":",null,":",null,":",null,":"]
["S11_S12","D","EP_P51G_CREP_ec",null,null,null,"D","Electricity, gas, steam and air conditionning supply",null,":",null,":",null,":",null,":",null,":",null,":",null,":",null,":",null,":",null,":",null,":",null,":",null,":",null,":",null,":"]
["S11_S12","E36","EP_P51G_CREP_ec",null,null,null,"E36","Water supply",null,":",null,":",null,":",null,":",null,":",null,":",null,":",null,":",null,":",null,":",null,":",null,":",null,":",null,":",null,":"]
["S11_S12","A_EP_OTH","EP_P51G_CREP_ec",null,null,null,"OTH","OTHER NACE",null,":",null,":",null,":",null,":",null,":",null,":",null,":",null,":",null,":",null,":",null,":",null,":",null,":",null,":",null,":"]
[null,null,null,null,null,null,null,"of which:",null,null,null,null,null,null,null,null,null,null,null,null,null,null,null,null,null,null,null,null,null,null,null,":"]
["S11_S12","A","EP_P51G_CREP_ec",null,null,null,"A","Agriculture, forestry and fishing",null,":",null,":",null,":",null,":",null,":",null,":",null,":",null,":",null,":",null,":",null,":",null,":",null,":",null,":",null,":"]
["S11_S12","E3739","EP_P51G_CREP_ec",null,null,null,"E37-39","Sewerage: waste management and remendiation activities",null,":",null,":",null,":",null,":",null,":",null,":",null,":",null,":",null,":",null,":",null,":",null,":",null,":",null,":",null,":"]
["S11_S12","F","EP_P51G_CREP_ec",null,null,null,"F","Construction",null,":",null,":",null,":",null,":",null,":",null,":",null,":",null,":",null,":",null,":",null,":",null,":",null,":",null,":",null,":"]
["S11_S12","H","EP_P51G_CREP_ec",null,null,null,"H","Transportation and storage",null,":",null,":",null,":",null,":",null,":",null,":",null,":",null,":",null,":",null,":",null,":",null,":",null,":",null,":",null,":"]
["S11_S12","L","EP_P51G_CREP_ec",null,null,null,"L","Real estate activities",null,":",null,":",null,":",null,":",null,":",null,":",null,":",null,":",null,":",null,":",null,":",null,":",null,":",null,":",null,":"]
["S11_S12","B","EP_P51G_CREP_fc",null,"( P51G_NP_CREP_fc.3Add ) Gross fixed capital formation and acquisition less disposals of non-financial non-produced assets in cleaner and resource efficient products - FULL COST",null,"B","Mining and Quarring",null,":",null,":",null,":",null,":",null,":",null,":",null,":",null,":",null,":",null,":",null,":",null,":",null,":",null,":",null,":"]
["S11_S12","C","EP_P51G_CREP_fc",null,null,null,"C","Manufacturing",null,":",null,":",null,":",null,":",null,":",null,":",null,":",null,":",null,":",null,":",null,":",null,":",null,":",null,":",null,":"]
["S11_S12","D","EP_P51G_CREP_fc",null,null,null,"D","Electricity, gas, steam and air conditionning supply",null,":",null,":",null,":",null,":",null,":",null,":",null,":",null,":",null,":",null,":",null,":",null,":",null,":",null,":",null,":"]
["S11_S12","E36","EP_P51G_CREP_fc",null,null,null,"E36","Water supply",null,":",null,":",null,":",null,":",null,":",null,":",null,":",null,":",null,":",null,":",null,":",null,":",null,":",null,":",null,":"]
["S11_S12","A_EP_OTH","EP_P51G_CREP_fc",null,null,null,"OTH","OTHER NACE",null,":",null,":",null,":",null,":",null,":",null,":",null,":",null,":",null,":",null,":",null,":",null,":",null,":",null,":",null,":"]
[null,null,null,null,null,null,null,"of which:",null,null,null,null,null,null,null,null,null,null,null,null,null,null,null,null,null,null,null,null,null,null,null,":"]
["S11_S12","A","EP_P51G_CREP_fc",null,null,null,"A","Agriculture, forestry and fishing",null,":",null,":",null,":",null,":",null,":",null,":",null,":",null,":",null,":",null,":",null,":",null,":",null,":",null,":",null,":"]
["S11_S12","E3739","EP_P51G_CREP_fc",null,null,null,"E37-39","Sewerage: waste management and remendiation activities",null,":",null,":",null,":",null,":",null,":",null,":",null,":",null,":",null,":",null,":",null,":",null,":",null,":",null,":",null,":"]
["S11_S12","F","EP_P51G_CREP_fc",null,null,null,"F","Construction",null,":",null,":",null,":",null,":",null,":",null,":",null,":",null,":",null,":",null,":",null,":",null,":",null,":",null,":",null,":"]
["S11_S12","H","EP_P51G_CREP_fc",null,null,null,"H","Transportation and storage",null,":",null,":",null,":",null,":",null,":",null,":",null,":",null,":",null,":",null,":",null,":",null,":",null,":",null,":",null,":"]
["S11_S12","L","EP_P51G_CREP_fc",null,null,null,"L","Real estate activities",null,":",null,":",null,":",null,":",null,":",null,":",null,":",null,":",null,":",null,":",null,":",null,":",null,":",null,":",null,":"]

{"sheet":"8.3_Add_2023","index":56,"n_rows":39,"n_cols":38,"rows_kept":39,"cut":false,"hidden":false,"merged":[[3,13,4,14],[3,15,4,16],[3,17,4,18],[3,37,4,38],[3,21,4,22],[3,23,4,24],[3,25,4,26],[3,31,4,32],[3,33,4,34],[3,35,4,36],[3,27,4,28],[3,29,4,30],[3,19,4,20],[0,4,0,8],[1,4,1,8],[1,9,1,32],[1,33,1,38],[2,9,2,32],[2,33,2,38],[17,4,17,5],[17,7,17,8],[4,4,4,7],[6,4,6,5],[6,7,6,8],[7,7,7,8],[8,7,8,8],[9,7,9,8],[3,9,4,10],[3,11,4,12],[25,7,25,8],[12,7,12,8],[13,7,13,8],[14,7,14,8],[15,7,15,8],[16,7,16,8],[18,7,18,8],[19,7,19,8],[20,7,20,8],[23,7,23,8],[24,7,24,8],[38,7,38,8],[26,7,26,8],[27,7,27,8],[28,4,28,5],[28,7,28,8],[29,7,29,8],[30,7,30,8],[31,7,31,8],[34,7,34,8],[35,7,35,8],[36,7,36,8],[37,7,37,8]]}
[null,null,null,null,{"$f":"Cover!B21","v":"QUESTIONNAIRE ON ENVIRONMENTAL PROTECTION EXPENDITURE ACCOUNTS"},null,null,null,null,"GFCF - Corporations: other (also covering producers of ancillary EP services)",null,null,null,null,null,null,null,null,null,null,null,null,null,null,null,null,null,null,null,null,null,null,null,"GFCF - Corporations: other (also covering producers of ancillary RM products)"]
[null,null,null,null,{"$f":"E1","v":"QUESTIONNAIRE ON ENVIRONMENTAL PROTECTION EXPENDITURE ACCOUNTS"},null,null,null,null,{"$f":"J1","v":"GFCF - Corporations: other (also covering producers of ancillary EP services)"},null,null,null,null,null,null,null,null,null,null,null,null,null,null,null,null,null,null,null,null,null,null,null,{"$f":"AH1","v":"GFCF - Corporations: other (also covering producers of ancillary RM products)"}]
[null,null,null,null,null,null,null,null,null,"Figures calculated from information available in the questionnaire",null,null,null,null,null,null,null,null,null,null,null,null,null,null,null,null,null,null,null,null,null,null,null,"Figures calculated from information available in the questionnaire"]
[null,null,null,null,"Country/Unit",{"$f":"IFERROR(Cover!C16,\"\")","v":""},{"$f":"\"\"&Cover!B16","v":""},null,{"$f":"Cover!B17","v":"Million units of national currency"},"CEPA 1",null,"of which CEPA 1.1.2 and 1.2.2 Climate change",null,"CEPA 2",null,"CEPA 3",null,"CEPA 4",null,"CEPA 5",null,"CEPA 6",null,"CEPA 7",null,"CEPA 8",null,"CEPA 9",null,"Sum of CEPA 7+8+9",null,"TOTAL CEPA",null," CReMA\n11B + 13C + 14 \n(Materials recovery)",null,"CReMA13A (Production of energy  from renewable sources)",null,"CReMA13B \n(Energy efficiency and savings)"]
[null,null,null,null,"Expenditure",null,null,null,2023,null,null,null,null,null,null,null,null,null,null,null,null,null,null,null,null,null,null,null,null,"Landscape",null,"Landscape",null,"Landscape",null,"Landscape",null,"Landscape"]
[null,null,null,null,null,null,null,null,2020,"CEPA1",null,"CEPA112_122",null,"CEPA2",null,"CEPA3",null,"CEPA4",null,"CEPA5",null,"CEPA6",null,"CEPA7",null,"CEPA8",null,"CEPA9",null,"CEPA7-9",null,"TOT_CEPA",null,"CREMA 11B_13C_14",null,"CREMA 13A",null,"CREMA 13B"]
["S11_S12","B","EPS_P51G_NP",null,"( P51G_NP.3 ) Gross fixed capital formation and acquisition less disposals of non-financial non-produced assets (integrated and end of pipe technologies)",null,"B","Mining and Quarring",null,{"$f":"'3a'!J16","v":":"},{"$f":"'3a'!K16","v":0},{"$f":"'3a'!L16","v":":"},{"$f":"'3a'!M16","v":0},{"$f":"'3a'!N16","v":":"},{"$f":"'3a'!O16","v":0},{"$f":"'3a'!P16","v":":"},{"$f":"'3a'!Q16","v":0},{"$f":"'3a'!R16","v":":"},{"$f":"'3a'!S16","v":0},{"$f":"'3a'!T16","v":":"},{"$f":"'3a'!U16","v":0},{"$f":"'3a'!V16","v":":"},{"$f":"'3a'!W16","v":0},{"$f":"'3a'!X16","v":":"},{"$f":"'3a'!Y16","v":0},{"$f":"'3a'!Z16","v":":"},{"$f":"'3a'!AA16","v":0},{"$f":"'3a'!AB16","v":":"},{"$f":"'3a'!AC16","v":0},{"$f":"'3a'!AD16","v":":"},{"$f":"'3a'!AE16","v":0},{"$f":"'3a'!AF16","v":":"},{"$f":"'3a'!AG16","v":0},":",null,":",null,":"]
["S11_S12","C","EPS_P51G_NP",null,null,null,"C","Manufacturing",null,{"$f":"'3b'!J16","v":":"},{"$f":"'3b'!K16","v":0},{"$f":"'3b'!L16","v":":"},{"$f":"'3b'!M16","v":0},{"$f":"'3b'!N16","v":":"},{"$f":"'3b'!O16","v":0},{"$f":"'3b'!P16","v":":"},{"$f":"'3b'!Q16","v":0},{"$f":"'3b'!R16","v":":"},{"$f":"'3b'!S16","v":0},{"$f":"'3b'!T16","v":":"},{"$f":"'3b'!U16","v":0},{"$f":"'3b'!V16","v":":"},{"$f":"'3b'!W16","v":0},{"$f":"'3b'!X16","v":":"},{"$f":"'3b'!Y16","v":0},{"$f":"'3b'!Z16","v":":"},{"$f":"'3b'!AA16","v":0},{"$f":"'3b'!AB16","v":":"},{"$f":"'3b'!AC16","v":0},{"$f":"'3b'!AD16","v":":"},{"$f":"'3b'!AE16","v":0},{"$f":"'3b'!AF16","v":":"},{"$f":"'3b'!AG16","v":0},":",null,":",null,":"]
["S11_S12","D","EPS_P51G_NP",null,null,null,"D","Electricity, gas, steam and air conditionning supply",null,{"$f":"'3c'!J16","v":":"},{"$f":"'3c'!K16","v":0},{"$f":"'3c'!L16","v":":"},{"$f":"'3c'!M16","v":0},{"$f":"'3c'!N16","v":":"},{"$f":"'3c'!O16","v":0},{"$f":"'3c'!P16","v":":"},{"$f":"'3c'!Q16","v":0},{"$f":"'3c'!R16","v":":"},{"$f":"'3c'!S16","v":0},{"$f":"'3c'!T16","v":":"},{"$f":"'3c'!U16","v":0},{"$f":"'3c'!V16","v":":"},{"$f":"'3c'!W16","v":0},{"$f":"'3c'!X16","v":":"},{"$f":"'3c'!Y16","v":0},{"$f":"'3c'!Z16","v":":"},{"$f":"'3c'!AA16","v":0},{"$f":"'3c'!AB16","v":":"},{"$f":"'3c'!AC16","v":0},{"$f":"'3c'!AD16","v":":"},{"$f":"'3c'!AE16","v":0},{"$f":"'3c'!AF16","v":":"},{"$f":"'3c'!AG16","v":0},":",null,":",null,":"]
["S11_S12","E36","EPS_P51G_NP",null,null,null,"E36","Water supply",null,{"$f":"'3d'!J16","v":":"},{"$f":"'3d'!K16","v":0},{"$f":"'3d'!L16","v":":"},{"$f":"'3d'!M16","v":0},{"$f":"'3d'!N16","v":":"},{"$f":"'3d'!O16","v":0},{"$f":"'3d'!P16","v":":"},{"$f":"'3d'!Q16","v":0},{"$f":"'3d'!R16","v":":"},{"$f":"'3d'!S16","v":0},{"$f":"'3d'!T16","v":":"},{"$f":"'3d'!U16","v":0},{"$f":"'3d'!V16","v":":"},{"$f":"'3d'!W16","v":0},{"$f":"'3d'!X16","v":":"},{"$f":"'3d'!Y16","v":0},{"$f":"'3d'!Z16","v":":"},{"$f":"'3d'!AA16","v":0},{"$f":"'3d'!AB16","v":":"},{"$f":"'3d'!AC16","v":0},{"$f":"'3d'!AD16","v":":"},{"$f":"'3d'!AE16","v":0},{"$f":"'3d'!AF16","v":":"},{"$f":"'3d'!AG16","v":0},":",null,":",null,":"]
["S11_S12","A_EP_OTH","EPS_P51G_NP",null,null,null,"OTH","OTHER NACE",null,{"$f":"'3e (voluntary)'!J16","v":":"},{"$f":"'3e (voluntary)'!K16","v":0},{"$f":"'3e (voluntary)'!L16","v":":"},{"$f":"'3e (voluntary)'!M16","v":0},{"$f":"'3e (voluntary)'!N16","v":":"},{"$f":"'3e (voluntary)'!O16","v":0},{"$f":"'3e (voluntary)'!P16","v":":"},{"$f":"'3e (voluntary)'!Q16","v":0},{"$f":"'3e (voluntary)'!R16","v":":"},{"$f":"'3e (voluntary)'!S16","v":0},{"$f":"'3e (voluntary)'!T16","v":":"},{"$f":"'3e (voluntary)'!U16","v":0},{"$f":"'3e (voluntary)'!V16","v":":"},{"$f":"'3e (voluntary)'!W16","v":0},{"$f":"'3e (voluntary)'!X16","v":":"},{"$f":"'3e (voluntary)'!Y16","v":0},{"$f":"'3e (voluntary)'!Z16","v":":"},{"$f":"'3e (voluntary)'!AA16","v":0},{"$f":"'3e (voluntary)'!AB16","v":":"},{"$f":"'3e (voluntary)'!AC16","v":0},{"$f":"'3e (voluntary)'!AD16","v":":"},{"$f":"'3e (voluntary)'!AE16","v":0},{"$f":"'3e (voluntary)'!AF16","v":":"},{"$f":"'3e (voluntary)'!AG16","v":0},":",null,":",null,":"]
[null,null,null,null,null,null,null,"of which:"]
["S11_S12","A","EPS_P51G_NP",null,null,null,"A","Agriculture, forestry and fishing",null,":",null,":",null,":",null,":",null,":",null,":",null,":",null,":",null,":",null,":",null,":",null,{"$f":"IF(COUNT(J13,N13,P13, R13,T13,V13,AD13)=7,SUM(J13,N13,P13, R13,T13,V13,AD13),\":\")","v":":"},null,":",null,":"]
["S11_S12","E3739","EPS_P51G_NP",null,null,null,"E37-39","Sewerage: waste management and remendiation activities",null,":",null,":",null,":",null,":",null,":",null,":",null,":",null,":",null,":",null,":",null,":",null,":",null,":",null,":"]
["S11_S12","F","EPS_P51G_NP",null,null,null,"F","Construction",null,":",null,":",null,":",null,":",null,":",null,":",null,":",null,":",null,":",null,":",null,":",null,":",null,":",null,":"]
["S11_S12","H","EPS_P51G_NP",null,null,null,"H","Transportation and storage",null,":",null,":",null,":",null,":",null,":",null,":",null,":",null,":",null,":",null,":",null,":",null,":",null,":",null,":"]
["S11_S12","L","EPS_P51G_NP",null,null,null,"L","Real estate activities",null,":",null,":",null,":",null,":",null,":",null,":",null,":",null,":",null,":",null,":",null,":",null,":",null,":",null,":"]
["S11_S12","B","EP_P51G_CREP_ec",null,"( P51G_CREP_ec.3Add) Gross fixed capital formation  in cleaner and resource efficient products for non characteristic activities - EXTRA COST",null,"B","Mining and Quarring",null,":",null,":",null,":",null,":",null,":",null,":",null,":",null,":",null,":",null,":",null,":",null,":",null,":",null,":",null,":"]
["S11_S12","C","EP_P51G_CREP_ec",null,null,null,"C","Manufacturing",null,":",null,":",null,":",null,":",null,":",null,":",null,":",null,":",null,":",null,":",null,":",null,":",null,":",null,":",null,":"]
["S11_S12","D","EP_P51G_CREP_ec",null,null,null,"D","Electricity, gas, steam and air conditionning supply",null,":",null,":",null,":",null,":",null,":",null,":",null,":",null,":",null,":",null,":",null,":",null,":",null,":",null,":",null,":"]
["S11_S12","E36","EP_P51G_CREP_ec",null,null,null,"E36","Water supply",null,":",null,":",null,":",null,":",null,":",null,":",null,":",null,":",null,":",null,":",null,":",null,":",null,":",null,":",null,":"]
["S11_S12","A_EP_OTH","EP_P51G_CREP_ec",null,null,null,"OTH","OTHER NACE",null,":",null,":",null,":",null,":",null,":",null,":",null,":",null,":",null,":",null,":",null,":",null,":",null,":",null,":",null,":"]
[null,null,null,null,null,null,null,"of which:",null,null,null,null,null,null,null,null,null,null,null,null,null,null,null,null,null,null,null,null,null,null,null,":"]
["S11_S12","A","EP_P51G_CREP_ec",null,null,null,"A","Agriculture, forestry and fishing",null,":",null,":",null,":",null,":",null,":",null,":",null,":",null,":",null,":",null,":",null,":",null,":",null,":",null,":",null,":"]
["S11_S12","E3739","EP_P51G_CREP_ec",null,null,null,"E37-39","Sewerage: waste management and remendiation activities",null,":",null,":",null,":",null,":",null,":",null,":",null,":",null,":",null,":",null,":",null,":",null,":",null,":",null,":",null,":"]
["S11_S12","F","EP_P51G_CREP_ec",null,null,null,"F","Construction",null,":",null,":",null,":",null,":",null,":",null,":",null,":",null,":",null,":",null,":",null,":",null,":",null,":",null,":",null,":"]
["S11_S12","H","EP_P51G_CREP_ec",null,null,null,"H","Transportation and storage",null,":",null,":",null,":",null,":",null,":",null,":",null,":",null,":",null,":",null,":",null,":",null,":",null,":",null,":",null,":"]
["S11_S12","L","EP_P51G_CREP_ec",null,null,null,"L","Real estate activities",null,":",null,":",null,":",null,":",null,":",null,":",null,":",null,":",null,":",null,":",null,":",null,":",null,":",null,":",null,":"]
["S11_S12","B","EP_P51G_CREP_fc",null,"( P51G_NP_CREP_fc.3Add ) Gross fixed capital formation and acquisition less disposals of non-financial non-produced assets in cleaner and resource efficient products - FULL COST",null,"B","Mining and Quarring",null,":",null,":",null,":",null,":",null,":",null,":",null,":",null,":",null,":",null,":",null,":",null,":",null,":",null,":",null,":"]
["S11_S12","C","EP_P51G_CREP_fc",null,null,null,"C","Manufacturing",null,":",null,":",null,":",null,":",null,":",null,":",null,":",null,":",null,":",null,":",null,":",null,":",null,":",null,":",null,":"]
["S11_S12","D","EP_P51G_CREP_fc",null,null,null,"D","Electricity, gas, steam and air conditionning supply",null,":",null,":",null,":",null,":",null,":",null,":",null,":",null,":",null,":",null,":",null,":",null,":",null,":",null,":",null,":"]
["S11_S12","E36","EP_P51G_CREP_fc",null,null,null,"E36","Water supply",null,":",null,":",null,":",null,":",null,":",null,":",null,":",null,":",null,":",null,":",null,":",null,":",null,":",null,":",null,":"]
["S11_S12","A_EP_OTH","EP_P51G_CREP_fc",null,null,null,"OTH","OTHER NACE",null,":",null,":",null,":",null,":",null,":",null,":",null,":",null,":",null,":",null,":",null,":",null,":",null,":",null,":",null,":"]
[null,null,null,null,null,null,null,"of which:",null,null,null,null,null,null,null,null,null,null,null,null,null,null,null,null,null,null,null,null,null,null,null,":"]
["S11_S12","A","EP_P51G_CREP_fc",null,null,null,"A","Agriculture, forestry and fishing",null,":",null,":",null,":",null,":",null,":",null,":",null,":",null,":",null,":",null,":",null,":",null,":",null,":",null,":",null,":"]
["S11_S12","E3739","EP_P51G_CREP_fc",null,null,null,"E37-39","Sewerage: waste management and remendiation activities",null,":",null,":",null,":",null,":",null,":",null,":",null,":",null,":",null,":",null,":",null,":",null,":",null,":",null,":",null,":"]
["S11_S12","F","EP_P51G_CREP_fc",null,null,null,"F","Construction",null,":",null,":",null,":",null,":",null,":",null,":",null,":",null,":",null,":",null,":",null,":",null,":",null,":",null,":",null,":"]
["S11_S12","H","EP_P51G_CREP_fc",null,null,null,"H","Transportation and storage",null,":",null,":",null,":",null,":",null,":",null,":",null,":",null,":",null,":",null,":",null,":",null,":",null,":",null,":",null,":"]
["S11_S12","L","EP_P51G_CREP_fc",null,null,null,"L","Real estate activities",null,":",null,":",null,":",null,":",null,":",null,":",null,":",null,":",null,":",null,":",null,":",null,":",null,":",null,":",null,":"]

{"sheet":"8.3_Add_2024","index":57,"n_rows":39,"n_cols":38,"rows_kept":39,"cut":false,"hidden":false,"merged":[[3,13,4,14],[3,15,4,16],[3,17,4,18],[3,37,4,38],[3,21,4,22],[3,23,4,24],[3,25,4,26],[3,31,4,32],[3,33,4,34],[3,35,4,36],[3,27,4,28],[3,29,4,30],[3,19,4,20],[0,4,0,8],[1,4,1,8],[1,9,1,32],[1,33,1,38],[2,9,2,32],[2,33,2,38],[17,4,17,5],[17,7,17,8],[4,4,4,7],[6,4,6,5],[6,7,6,8],[7,7,7,8],[8,7,8,8],[9,7,9,8],[3,9,4,10],[3,11,4,12],[25,7,25,8],[12,7,12,8],[13,7,13,8],[14,7,14,8],[15,7,15,8],[16,7,16,8],[18,7,18,8],[19,7,19,8],[20,7,20,8],[23,7,23,8],[24,7,24,8],[38,7,38,8],[26,7,26,8],[27,7,27,8],[28,4,28,5],[28,7,28,8],[29,7,29,8],[30,7,30,8],[31,7,31,8],[34,7,34,8],[35,7,35,8],[36,7,36,8],[37,7,37,8]]}
[null,null,null,null,{"$f":"Cover!B21","v":"QUESTIONNAIRE ON ENVIRONMENTAL PROTECTION EXPENDITURE ACCOUNTS"},null,null,null,null,"GFCF - Corporations: other (also covering producers of ancillary EP services)",null,null,null,null,null,null,null,null,null,null,null,null,null,null,null,null,null,null,null,null,null,null,null,"GFCF - Corporations: other (also covering producers of ancillary RM products)"]
[null,null,null,null,{"$f":"E1","v":"QUESTIONNAIRE ON ENVIRONMENTAL PROTECTION EXPENDITURE ACCOUNTS"},null,null,null,null,{"$f":"J1","v":"GFCF - Corporations: other (also covering producers of ancillary EP services)"},null,null,null,null,null,null,null,null,null,null,null,null,null,null,null,null,null,null,null,null,null,null,null,{"$f":"AH1","v":"GFCF - Corporations: other (also covering producers of ancillary RM products)"}]
[null,null,null,null,null,null,null,null,null,"Figures calculated from information available in the questionnaire",null,null,null,null,null,null,null,null,null,null,null,null,null,null,null,null,null,null,null,null,null,null,null,"Figures calculated from information available in the questionnaire"]
[null,null,null,null,"Country/Unit",{"$f":"IFERROR(Cover!C16,\"\")","v":""},{"$f":"\"\"&Cover!B16","v":""},null,{"$f":"Cover!B17","v":"Million units of national currency"},"CEPA 1",null,"of which CEPA 1.1.2 and 1.2.2 Climate change",null,"CEPA 2",null,"CEPA 3",null,"CEPA 4",null,"CEPA 5",null,"CEPA 6",null,"CEPA 7",null,"CEPA 8",null,"CEPA 9",null,"Sum of CEPA 7+8+9",null,"TOTAL CEPA",null," CReMA\n11B + 13C + 14 \n(Materials recovery)",null,"CReMA13A (Production of energy  from renewable sources)",null,"CReMA13B \n(Energy efficiency and savings)"]
[null,null,null,null,"Expenditure",null,null,null,2024,null,null,null,null,null,null,null,null,null,null,null,null,null,null,null,null,null,null,null,null,"Landscape",null,"Landscape",null,"Landscape",null,"Landscape",null,"Landscape"]
[null,null,null,null,null,null,null,null,2020,"CEPA1",null,"CEPA112_122",null,"CEPA2",null,"CEPA3",null,"CEPA4",null,"CEPA5",null,"CEPA6",null,"CEPA7",null,"CEPA8",null,"CEPA9",null,"CEPA7-9",null,"TOT_CEPA",null,"CREMA 11B_13C_14",null,"CREMA 13A",null,"CREMA 13B"]
["S11_S12","B","EPS_P51G_NP",null,"( P51G_NP.3 ) Gross fixed capital formation and acquisition less disposals of non-financial non-produced assets (integrated and end of pipe technologies)",null,"B","Mining and Quarring",null,{"$f":"'3a'!J17","v":":"},{"$f":"'3a'!K17","v":0},{"$f":"'3a'!L17","v":":"},{"$f":"'3a'!M17","v":0},{"$f":"'3a'!N17","v":":"},{"$f":"'3a'!O17","v":0},{"$f":"'3a'!P17","v":":"},{"$f":"'3a'!Q17","v":0},{"$f":"'3a'!R17","v":":"},{"$f":"'3a'!S17","v":0},{"$f":"'3a'!T17","v":":"},{"$f":"'3a'!U17","v":0},{"$f":"'3a'!V17","v":":"},{"$f":"'3a'!W17","v":0},{"$f":"'3a'!X17","v":":"},{"$f":"'3a'!Y17","v":0},{"$f":"'3a'!Z17","v":":"},{"$f":"'3a'!AA17","v":0},{"$f":"'3a'!AB17","v":":"},{"$f":"'3a'!AC17","v":0},{"$f":"'3a'!AD17","v":":"},{"$f":"'3a'!AE17","v":0},{"$f":"'3a'!AF17","v":":"},{"$f":"'3a'!AG17","v":0},":",null,":",null,":"]
["S11_S12","C","EPS_P51G_NP",null,null,null,"C","Manufacturing",null,{"$f":"'3b'!J17","v":":"},{"$f":"'3b'!K17","v":0},{"$f":"'3b'!L17","v":":"},{"$f":"'3b'!M17","v":0},{"$f":"'3b'!N17","v":":"},{"$f":"'3b'!O17","v":0},{"$f":"'3b'!P17","v":":"},{"$f":"'3b'!Q17","v":0},{"$f":"'3b'!R17","v":":"},{"$f":"'3b'!S17","v":0},{"$f":"'3b'!T17","v":":"},{"$f":"'3b'!U17","v":0},{"$f":"'3b'!V17","v":":"},{"$f":"'3b'!W17","v":0},{"$f":"'3b'!X17","v":":"},{"$f":"'3b'!Y17","v":0},{"$f":"'3b'!Z17","v":":"},{"$f":"'3b'!AA17","v":0},{"$f":"'3b'!AB17","v":":"},{"$f":"'3b'!AC17","v":0},{"$f":"'3b'!AD17","v":":"},{"$f":"'3b'!AE17","v":0},{"$f":"'3b'!AF17","v":":"},{"$f":"'3b'!AG17","v":0},":",null,":",null,":"]
["S11_S12","D","EPS_P51G_NP",null,null,null,"D","Electricity, gas, steam and air conditionning supply",null,{"$f":"'3c'!J17","v":":"},{"$f":"'3c'!K17","v":0},{"$f":"'3c'!L17","v":":"},{"$f":"'3c'!M17","v":0},{"$f":"'3c'!N17","v":":"},{"$f":"'3c'!O17","v":0},{"$f":"'3c'!P17","v":":"},{"$f":"'3c'!Q17","v":0},{"$f":"'3c'!R17","v":":"},{"$f":"'3c'!S17","v":0},{"$f":"'3c'!T17","v":":"},{"$f":"'3c'!U17","v":0},{"$f":"'3c'!V17","v":":"},{"$f":"'3c'!W17","v":0},{"$f":"'3c'!X17","v":":"},{"$f":"'3c'!Y17","v":0},{"$f":"'3c'!Z17","v":":"},{"$f":"'3c'!AA17","v":0},{"$f":"'3c'!AB17","v":":"},{"$f":"'3c'!AC17","v":0},{"$f":"'3c'!AD17","v":":"},{"$f":"'3c'!AE17","v":0},{"$f":"'3c'!AF17","v":":"},{"$f":"'3c'!AG17","v":0},":",null,":",null,":"]
["S11_S12","E36","EPS_P51G_NP",null,null,null,"E36","Water supply",null,{"$f":"'3d'!J17","v":":"},{"$f":"'3d'!K17","v":0},{"$f":"'3d'!L17","v":":"},{"$f":"'3d'!M17","v":0},{"$f":"'3d'!N17","v":":"},{"$f":"'3d'!O17","v":0},{"$f":"'3d'!P17","v":":"},{"$f":"'3d'!Q17","v":0},{"$f":"'3d'!R17","v":":"},{"$f":"'3d'!S17","v":0},{"$f":"'3d'!T17","v":":"},{"$f":"'3d'!U17","v":0},{"$f":"'3d'!V17","v":":"},{"$f":"'3d'!W17","v":0},{"$f":"'3d'!X17","v":":"},{"$f":"'3d'!Y17","v":0},{"$f":"'3d'!Z17","v":":"},{"$f":"'3d'!AA17","v":0},{"$f":"'3d'!AB17","v":":"},{"$f":"'3d'!AC17","v":0},{"$f":"'3d'!AD17","v":":"},{"$f":"'3d'!AE17","v":0},{"$f":"'3d'!AF17","v":":"},{"$f":"'3d'!AG17","v":0},":",null,":",null,":"]
["S11_S12","A_EP_OTH","EPS_P51G_NP",null,null,null,"OTH","OTHER NACE",null,{"$f":"'3e (voluntary)'!J17","v":":"},{"$f":"'3e (voluntary)'!K17","v":0},{"$f":"'3e (voluntary)'!L17","v":":"},{"$f":"'3e (voluntary)'!M17","v":0},{"$f":"'3e (voluntary)'!N17","v":":"},{"$f":"'3e (voluntary)'!O17","v":0},{"$f":"'3e (voluntary)'!P17","v":":"},{"$f":"'3e (voluntary)'!Q17","v":0},{"$f":"'3e (voluntary)'!R17","v":":"},{"$f":"'3e (voluntary)'!S17","v":0},{"$f":"'3e (voluntary)'!T17","v":":"},{"$f":"'3e (voluntary)'!U17","v":0},{"$f":"'3e (voluntary)'!V17","v":":"},{"$f":"'3e (voluntary)'!W17","v":0},{"$f":"'3e (voluntary)'!X17","v":":"},{"$f":"'3e (voluntary)'!Y17","v":0},{"$f":"'3e (voluntary)'!Z17","v":":"},{"$f":"'3e (voluntary)'!AA17","v":0},{"$f":"'3e (voluntary)'!AB17","v":":"},{"$f":"'3e (voluntary)'!AC17","v":0},{"$f":"'3e (voluntary)'!AD17","v":":"},{"$f":"'3e (voluntary)'!AE17","v":0},{"$f":"'3e (voluntary)'!AF17","v":":"},{"$f":"'3e (voluntary)'!AG17","v":0},":",null,":",null,":"]
[null,null,null,null,null,null,null,"of which:"]
["S11_S12","A","EPS_P51G_NP",null,null,null,"A","Agriculture, forestry and fishing",null,":",null,":",null,":",null,":",null,":",null,":",null,":",null,":",null,":",null,":",null,":",null,{"$f":"IF(COUNT(J13,N13,P13, R13,T13,V13,AD13)=7,SUM(J13,N13,P13, R13,T13,V13,AD13),\":\")","v":":"},null,":",null,":"]
["S11_S12","E3739","EPS_P51G_NP",null,null,null,"E37-39","Sewerage: waste management and remendiation activities",null,":",null,":",null,":",null,":",null,":",null,":",null,":",null,":",null,":",null,":",null,":",null,":",null,":",null,":"]
["S11_S12","F","EPS_P51G_NP",null,null,null,"F","Construction",null,":",null,":",null,":",null,":",null,":",null,":",null,":",null,":",null,":",null,":",null,":",null,":",null,":",null,":"]
["S11_S12","H","EPS_P51G_NP",null,null,null,"H","Transportation and storage",null,":",null,":",null,":",null,":",null,":",null,":",null,":",null,":",null,":",null,":",null,":",null,":",null,":",null,":"]
["S11_S12","L","EPS_P51G_NP",null,null,null,"L","Real estate activities",null,":",null,":",null,":",null,":",null,":",null,":",null,":",null,":",null,":",null,":",null,":",null,":",null,":",null,":"]
["S11_S12","B","EP_P51G_CREP_ec",null,"( P51G_CREP_ec.3Add) Gross fixed capital formation  in cleaner and resource efficient products for non characteristic activities - EXTRA COST",null,"B","Mining and Quarring",null,":",null,":",null,":",null,":",null,":",null,":",null,":",null,":",null,":",null,":",null,":",null,":",null,":",null,":",null,":"]
["S11_S12","C","EP_P51G_CREP_ec",null,null,null,"C","Manufacturing",null,":",null,":",null,":",null,":",null,":",null,":",null,":",null,":",null,":",null,":",null,":",null,":",null,":",null,":",null,":"]
["S11_S12","D","EP_P51G_CREP_ec",null,null,null,"D","Electricity, gas, steam and air conditionning supply",null,":",null,":",null,":",null,":",null,":",null,":",null,":",null,":",null,":",null,":",null,":",null,":",null,":",null,":",null,":"]
["S11_S12","E36","EP_P51G_CREP_ec",null,null,null,"E36","Water supply",null,":",null,":",null,":",null,":",null,":",null,":",null,":",null,":",null,":",null,":",null,":",null,":",null,":",null,":",null,":"]
["S11_S12","A_EP_OTH","EP_P51G_CREP_ec",null,null,null,"OTH","OTHER NACE",null,":",null,":",null,":",null,":",null,":",null,":",null,":",null,":",null,":",null,":",null,":",null,":",null,":",null,":",null,":"]
[null,null,null,null,null,null,null,"of which:",null,null,null,null,null,null,null,null,null,null,null,null,null,null,null,null,null,null,null,null,null,null,null,":"]
["S11_S12","A","EP_P51G_CREP_ec",null,null,null,"A","Agriculture, forestry and fishing",null,":",null,":",null,":",null,":",null,":",null,":",null,":",null,":",null,":",null,":",null,":",null,":",null,":",null,":",null,":"]
["S11_S12","E3739","EP_P51G_CREP_ec",null,null,null,"E37-39","Sewerage: waste management and remendiation activities",null,":",null,":",null,":",null,":",null,":",null,":",null,":",null,":",null,":",null,":",null,":",null,":",null,":",null,":",null,":"]
["S11_S12","F","EP_P51G_CREP_ec",null,null,null,"F","Construction",null,":",null,":",null,":",null,":",null,":",null,":",null,":",null,":",null,":",null,":",null,":",null,":",null,":",null,":",null,":"]
["S11_S12","H","EP_P51G_CREP_ec",null,null,null,"H","Transportation and storage",null,":",null,":",null,":",null,":",null,":",null,":",null,":",null,":",null,":",null,":",null,":",null,":",null,":",null,":",null,":"]
["S11_S12","L","EP_P51G_CREP_ec",null,null,null,"L","Real estate activities",null,":",null,":",null,":",null,":",null,":",null,":",null,":",null,":",null,":",null,":",null,":",null,":",null,":",null,":",null,":"]
["S11_S12","B","EP_P51G_CREP_fc",null,"( P51G_NP_CREP_fc.3Add ) Gross fixed capital formation and acquisition less disposals of non-financial non-produced assets in cleaner and resource efficient products - FULL COST",null,"B","Mining and Quarring",null,":",null,":",null,":",null,":",null,":",null,":",null,":",null,":",null,":",null,":",null,":",null,":",null,":",null,":",null,":"]
["S11_S12","C","EP_P51G_CREP_fc",null,null,null,"C","Manufacturing",null,":",null,":",null,":",null,":",null,":",null,":",null,":",null,":",null,":",null,":",null,":",null,":",null,":",null,":",null,":"]
["S11_S12","D","EP_P51G_CREP_fc",null,null,null,"D","Electricity, gas, steam and air conditionning supply",null,":",null,":",null,":",null,":",null,":",null,":",null,":",null,":",null,":",null,":",null,":",null,":",null,":",null,":",null,":"]
["S11_S12","E36","EP_P51G_CREP_fc",null,null,null,"E36","Water supply",null,":",null,":",null,":",null,":",null,":",null,":",null,":",null,":",null,":",null,":",null,":",null,":",null,":",null,":",null,":"]
["S11_S12","A_EP_OTH","EP_P51G_CREP_fc",null,null,null,"OTH","OTHER NACE",null,":",null,":",null,":",null,":",null,":",null,":",null,":",null,":",null,":",null,":",null,":",null,":",null,":",null,":",null,":"]
[null,null,null,null,null,null,null,"of which:",null,null,null,null,null,null,null,null,null,null,null,null,null,null,null,null,null,null,null,null,null,null,null,":"]
["S11_S12","A","EP_P51G_CREP_fc",null,null,null,"A","Agriculture, forestry and fishing",null,":",null,":",null,":",null,":",null,":",null,":",null,":",null,":",null,":",null,":",null,":",null,":",null,":",null,":",null,":"]
["S11_S12","E3739","EP_P51G_CREP_fc",null,null,null,"E37-39","Sewerage: waste management and remendiation activities",null,":",null,":",null,":",null,":",null,":",null,":",null,":",null,":",null,":",null,":",null,":",null,":",null,":",null,":",null,":"]
["S11_S12","F","EP_P51G_CREP_fc",null,null,null,"F","Construction",null,":",null,":",null,":",null,":",null,":",null,":",null,":",null,":",null,":",null,":",null,":",null,":",null,":",null,":",null,":"]
["S11_S12","H","EP_P51G_CREP_fc",null,null,null,"H","Transportation and storage",null,":",null,":",null,":",null,":",null,":",null,":",null,":",null,":",null,":",null,":",null,":",null,":",null,":",null,":",null,":"]
["S11_S12","L","EP_P51G_CREP_fc",null,null,null,"L","Real estate activities",null,":",null,":",null,":",null,":",null,":",null,":",null,":",null,":",null,":",null,":",null,":",null,":",null,":",null,":",null,":"]

{"sheet":"8.3_Add_2025","index":58,"n_rows":39,"n_cols":38,"rows_kept":39,"cut":false,"hidden":false,"merged":[[3,13,4,14],[3,15,4,16],[3,17,4,18],[3,37,4,38],[3,21,4,22],[3,23,4,24],[3,25,4,26],[3,31,4,32],[3,33,4,34],[3,35,4,36],[3,27,4,28],[3,29,4,30],[3,19,4,20],[0,4,0,8],[1,4,1,8],[1,9,1,32],[1,33,1,38],[2,9,2,32],[2,33,2,38],[17,4,17,5],[17,7,17,8],[4,4,4,7],[6,4,6,5],[6,7,6,8],[7,7,7,8],[8,7,8,8],[9,7,9,8],[3,9,4,10],[3,11,4,12],[25,7,25,8],[12,7,12,8],[13,7,13,8],[14,7,14,8],[15,7,15,8],[16,7,16,8],[18,7,18,8],[19,7,19,8],[20,7,20,8],[23,7,23,8],[24,7,24,8],[38,7,38,8],[26,7,26,8],[27,7,27,8],[28,4,28,5],[28,7,28,8],[29,7,29,8],[30,7,30,8],[31,7,31,8],[34,7,34,8],[35,7,35,8],[36,7,36,8],[37,7,37,8]]}
[null,null,null,null,{"$f":"Cover!B21","v":"QUESTIONNAIRE ON ENVIRONMENTAL PROTECTION EXPENDITURE ACCOUNTS"},null,null,null,null,"GFCF - Corporations: other (also covering producers of ancillary EP services)",null,null,null,null,null,null,null,null,null,null,null,null,null,null,null,null,null,null,null,null,null,null,null,"GFCF - Corporations: other (also covering producers of ancillary RM products)"]
[null,null,null,null,{"$f":"E1","v":"QUESTIONNAIRE ON ENVIRONMENTAL PROTECTION EXPENDITURE ACCOUNTS"},null,null,null,null,{"$f":"J1","v":"GFCF - Corporations: other (also covering producers of ancillary EP services)"},null,null,null,null,null,null,null,null,null,null,null,null,null,null,null,null,null,null,null,null,null,null,null,{"$f":"AH1","v":"GFCF - Corporations: other (also covering producers of ancillary RM products)"}]
[null,null,null,null,null,null,null,null,null,"Figures calculated from information available in the questionnaire",null,null,null,null,null,null,null,null,null,null,null,null,null,null,null,null,null,null,null,null,null,null,null,"Figures calculated from information available in the questionnaire"]
[null,null,null,null,"Country/Unit",{"$f":"IFERROR(Cover!C16,\"\")","v":""},{"$f":"\"\"&Cover!B16","v":""},null,{"$f":"Cover!B17","v":"Million units of national currency"},"CEPA 1",null,"of which CEPA 1.1.2 and 1.2.2 Climate change",null,"CEPA 2",null,"CEPA 3",null,"CEPA 4",null,"CEPA 5",null,"CEPA 6",null,"CEPA 7",null,"CEPA 8",null,"CEPA 9",null,"Sum of CEPA 7+8+9",null,"TOTAL CEPA",null," CReMA\n11B + 13C + 14 \n(Materials recovery)",null,"CReMA13A (Production of energy  from renewable sources)",null,"CReMA13B \n(Energy efficiency and savings)"]
[null,null,null,null,"Expenditure",null,null,null,2025,null,null,null,null,null,null,null,null,null,null,null,null,null,null,null,null,null,null,null,null,"Landscape",null,"Landscape",null,"Landscape",null,"Landscape",null,"Landscape"]
[null,null,null,null,null,null,null,null,2020,"CEPA1",null,"CEPA112_122",null,"CEPA2",null,"CEPA3",null,"CEPA4",null,"CEPA5",null,"CEPA6",null,"CEPA7",null,"CEPA8",null,"CEPA9",null,"CEPA7-9",null,"TOT_CEPA",null,"CREMA 11B_13C_14",null,"CREMA 13A",null,"CREMA 13B"]
["S11_S12","B","EPS_P51G_NP",null,"( P51G_NP.3 ) Gross fixed capital formation and acquisition less disposals of non-financial non-produced assets (integrated and end of pipe technologies)",null,"B","Mining and Quarring",null,{"$f":"'3a'!J18","v":":"},{"$f":"'3a'!K18","v":0},{"$f":"'3a'!L18","v":":"},{"$f":"'3a'!M18","v":0},{"$f":"'3a'!N18","v":":"},{"$f":"'3a'!O18","v":0},{"$f":"'3a'!P18","v":":"},{"$f":"'3a'!Q18","v":0},{"$f":"'3a'!R18","v":":"},{"$f":"'3a'!S18","v":0},{"$f":"'3a'!T18","v":":"},{"$f":"'3a'!U18","v":0},{"$f":"'3a'!V18","v":":"},{"$f":"'3a'!W18","v":0},{"$f":"'3a'!X18","v":":"},{"$f":"'3a'!Y18","v":0},{"$f":"'3a'!Z18","v":":"},{"$f":"'3a'!AA18","v":0},{"$f":"'3a'!AB18","v":":"},{"$f":"'3a'!AC18","v":0},{"$f":"'3a'!AD18","v":":"},{"$f":"'3a'!AE18","v":0},{"$f":"'3a'!AF18","v":":"},{"$f":"'3a'!AG18","v":0},":",null,":",null,":"]
["S11_S12","C","EPS_P51G_NP",null,null,null,"C","Manufacturing",null,{"$f":"'3b'!J18","v":":"},{"$f":"'3b'!K18","v":0},{"$f":"'3b'!L18","v":":"},{"$f":"'3b'!M18","v":0},{"$f":"'3b'!N18","v":":"},{"$f":"'3b'!O18","v":0},{"$f":"'3b'!P18","v":":"},{"$f":"'3b'!Q18","v":0},{"$f":"'3b'!R18","v":":"},{"$f":"'3b'!S18","v":0},{"$f":"'3b'!T18","v":":"},{"$f":"'3b'!U18","v":0},{"$f":"'3b'!V18","v":":"},{"$f":"'3b'!W18","v":0},{"$f":"'3b'!X18","v":":"},{"$f":"'3b'!Y18","v":0},{"$f":"'3b'!Z18","v":":"},{"$f":"'3b'!AA18","v":0},{"$f":"'3b'!AB18","v":":"},{"$f":"'3b'!AC18","v":0},{"$f":"'3b'!AD18","v":":"},{"$f":"'3b'!AE18","v":0},{"$f":"'3b'!AF18","v":":"},{"$f":"'3b'!AG18","v":0},":",null,":",null,":"]
["S11_S12","D","EPS_P51G_NP",null,null,null,"D","Electricity, gas, steam and air conditionning supply",null,{"$f":"'3c'!J18","v":":"},{"$f":"'3c'!K18","v":0},{"$f":"'3c'!L18","v":":"},{"$f":"'3c'!M18","v":0},{"$f":"'3c'!N18","v":":"},{"$f":"'3c'!O18","v":0},{"$f":"'3c'!P18","v":":"},{"$f":"'3c'!Q18","v":0},{"$f":"'3c'!R18","v":":"},{"$f":"'3c'!S18","v":0},{"$f":"'3c'!T18","v":":"},{"$f":"'3c'!U18","v":0},{"$f":"'3c'!V18","v":":"},{"$f":"'3c'!W18","v":0},{"$f":"'3c'!X18","v":":"},{"$f":"'3c'!Y18","v":0},{"$f":"'3c'!Z18","v":":"},{"$f":"'3c'!AA18","v":0},{"$f":"'3c'!AB18","v":":"},{"$f":"'3c'!AC18","v":0},{"$f":"'3c'!AD18","v":":"},{"$f":"'3c'!AE18","v":0},{"$f":"'3c'!AF18","v":":"},{"$f":"'3c'!AG18","v":0},":",null,":",null,":"]
["S11_S12","E36","EPS_P51G_NP",null,null,null,"E36","Water supply",null,{"$f":"'3d'!J18","v":":"},{"$f":"'3d'!K18","v":0},{"$f":"'3d'!L18","v":":"},{"$f":"'3d'!M18","v":0},{"$f":"'3d'!N18","v":":"},{"$f":"'3d'!O18","v":0},{"$f":"'3d'!P18","v":":"},{"$f":"'3d'!Q18","v":0},{"$f":"'3d'!R18","v":":"},{"$f":"'3d'!S18","v":0},{"$f":"'3d'!T18","v":":"},{"$f":"'3d'!U18","v":0},{"$f":"'3d'!V18","v":":"},{"$f":"'3d'!W18","v":0},{"$f":"'3d'!X18","v":":"},{"$f":"'3d'!Y18","v":0},{"$f":"'3d'!Z18","v":":"},{"$f":"'3d'!AA18","v":0},{"$f":"'3d'!AB18","v":":"},{"$f":"'3d'!AC18","v":0},{"$f":"'3d'!AD18","v":":"},{"$f":"'3d'!AE18","v":0},{"$f":"'3d'!AF18","v":":"},{"$f":"'3d'!AG18","v":0},":",null,":",null,":"]
["S11_S12","A_EP_OTH","EPS_P51G_NP",null,null,null,"OTH","OTHER NACE",null,{"$f":"'3e (voluntary)'!J18","v":":"},{"$f":"'3e (voluntary)'!K18","v":0},{"$f":"'3e (voluntary)'!L18","v":":"},{"$f":"'3e (voluntary)'!M18","v":0},{"$f":"'3e (voluntary)'!N18","v":":"},{"$f":"'3e (voluntary)'!O18","v":0},{"$f":"'3e (voluntary)'!P18","v":":"},{"$f":"'3e (voluntary)'!Q18","v":0},{"$f":"'3e (voluntary)'!R18","v":":"},{"$f":"'3e (voluntary)'!S18","v":0},{"$f":"'3e (voluntary)'!T18","v":":"},{"$f":"'3e (voluntary)'!U18","v":0},{"$f":"'3e (voluntary)'!V18","v":":"},{"$f":"'3e (voluntary)'!W18","v":0},{"$f":"'3e (voluntary)'!X18","v":":"},{"$f":"'3e (voluntary)'!Y18","v":0},{"$f":"'3e (voluntary)'!Z18","v":":"},{"$f":"'3e (voluntary)'!AA18","v":0},{"$f":"'3e (voluntary)'!AB18","v":":"},{"$f":"'3e (voluntary)'!AC18","v":0},{"$f":"'3e (voluntary)'!AD18","v":":"},{"$f":"'3e (voluntary)'!AE18","v":0},{"$f":"'3e (voluntary)'!AF18","v":":"},{"$f":"'3e (voluntary)'!AG18","v":0},":",null,":",null,":"]
[null,null,null,null,null,null,null,"of which:"]
["S11_S12","A","EPS_P51G_NP",null,null,null,"A","Agriculture, forestry and fishing",null,":",null,":",null,":",null,":",null,":",null,":",null,":",null,":",null,":",null,":",null,":",null,{"$f":"IF(COUNT(J13,N13,P13, R13,T13,V13,AD13)=7,SUM(J13,N13,P13, R13,T13,V13,AD13),\":\")","v":":"},null,":",null,":"]
["S11_S12","E3739","EPS_P51G_NP",null,null,null,"E37-39","Sewerage: waste management and remendiation activities",null,":",null,":",null,":",null,":",null,":",null,":",null,":",null,":",null,":",null,":",null,":",null,":",null,":",null,":"]
["S11_S12","F","EPS_P51G_NP",null,null,null,"F","Construction",null,":",null,":",null,":",null,":",null,":",null,":",null,":",null,":",null,":",null,":",null,":",null,":",null,":",null,":"]
["S11_S12","H","EPS_P51G_NP",null,null,null,"H","Transportation and storage",null,":",null,":",null,":",null,":",null,":",null,":",null,":",null,":",null,":",null,":",null,":",null,":",null,":",null,":"]
["S11_S12","L","EPS_P51G_NP",null,null,null,"L","Real estate activities",null,":",null,":",null,":",null,":",null,":",null,":",null,":",null,":",null,":",null,":",null,":",null,":",null,":",null,":"]
["S11_S12","B","EP_P51G_CREP_ec",null,"( P51G_CREP_ec.3Add) Gross fixed capital formation  in cleaner and resource efficient products for non characteristic activities - EXTRA COST",null,"B","Mining and Quarring",null,":",null,":",null,":",null,":",null,":",null,":",null,":",null,":",null,":",null,":",null,":",null,":",null,":",null,":",null,":"]
["S11_S12","C","EP_P51G_CREP_ec",null,null,null,"C","Manufacturing",null,":",null,":",null,":",null,":",null,":",null,":",null,":",null,":",null,":",null,":",null,":",null,":",null,":",null,":",null,":"]
["S11_S12","D","EP_P51G_CREP_ec",null,null,null,"D","Electricity, gas, steam and air conditionning supply",null,":",null,":",null,":",null,":",null,":",null,":",null,":",null,":",null,":",null,":",null,":",null,":",null,":",null,":",null,":"]
["S11_S12","E36","EP_P51G_CREP_ec",null,null,null,"E36","Water supply",null,":",null,":",null,":",null,":",null,":",null,":",null,":",null,":",null,":",null,":",null,":",null,":",null,":",null,":",null,":"]
["S11_S12","A_EP_OTH","EP_P51G_CREP_ec",null,null,null,"OTH","OTHER NACE",null,":",null,":",null,":",null,":",null,":",null,":",null,":",null,":",null,":",null,":",null,":",null,":",null,":",null,":",null,":"]
[null,null,null,null,null,null,null,"of which:",null,null,null,null,null,null,null,null,null,null,null,null,null,null,null,null,null,null,null,null,null,null,null,":"]
["S11_S12","A","EP_P51G_CREP_ec",null,null,null,"A","Agriculture, forestry and fishing",null,":",null,":",null,":",null,":",null,":",null,":",null,":",null,":",null,":",null,":",null,":",null,":",null,":",null,":",null,":"]
["S11_S12","E3739","EP_P51G_CREP_ec",null,null,null,"E37-39","Sewerage: waste management and remendiation activities",null,":",null,":",null,":",null,":",null,":",null,":",null,":",null,":",null,":",null,":",null,":",null,":",null,":",null,":",null,":"]
["S11_S12","F","EP_P51G_CREP_ec",null,null,null,"F","Construction",null,":",null,":",null,":",null,":",null,":",null,":",null,":",null,":",null,":",null,":",null,":",null,":",null,":",null,":",null,":"]
["S11_S12","H","EP_P51G_CREP_ec",null,null,null,"H","Transportation and storage",null,":",null,":",null,":",null,":",null,":",null,":",null,":",null,":",null,":",null,":",null,":",null,":",null,":",null,":",null,":"]
["S11_S12","L","EP_P51G_CREP_ec",null,null,null,"L","Real estate activities",null,":",null,":",null,":",null,":",null,":",null,":",null,":",null,":",null,":",null,":",null,":",null,":",null,":",null,":",null,":"]
["S11_S12","B","EP_P51G_CREP_fc",null,"( P51G_NP_CREP_fc.3Add ) Gross fixed capital formation and acquisition less disposals of non-financial non-produced assets in cleaner and resource efficient products - FULL COST",null,"B","Mining and Quarring",null,":",null,":",null,":",null,":",null,":",null,":",null,":",null,":",null,":",null,":",null,":",null,":",null,":",null,":",null,":"]
["S11_S12","C","EP_P51G_CREP_fc",null,null,null,"C","Manufacturing",null,":",null,":",null,":",null,":",null,":",null,":",null,":",null,":",null,":",null,":",null,":",null,":",null,":",null,":",null,":"]
["S11_S12","D","EP_P51G_CREP_fc",null,null,null,"D","Electricity, gas, steam and air conditionning supply",null,":",null,":",null,":",null,":",null,":",null,":",null,":",null,":",null,":",null,":",null,":",null,":",null,":",null,":",null,":"]
["S11_S12","E36","EP_P51G_CREP_fc",null,null,null,"E36","Water supply",null,":",null,":",null,":",null,":",null,":",null,":",null,":",null,":",null,":",null,":",null,":",null,":",null,":",null,":",null,":"]
["S11_S12","A_EP_OTH","EP_P51G_CREP_fc",null,null,null,"OTH","OTHER NACE",null,":",null,":",null,":",null,":",null,":",null,":",null,":",null,":",null,":",null,":",null,":",null,":",null,":",null,":",null,":"]
[null,null,null,null,null,null,null,"of which:",null,null,null,null,null,null,null,null,null,null,null,null,null,null,null,null,null,null,null,null,null,null,null,":"]
["S11_S12","A","EP_P51G_CREP_fc",null,null,null,"A","Agriculture, forestry and fishing",null,":",null,":",null,":",null,":",null,":",null,":",null,":",null,":",null,":",null,":",null,":",null,":",null,":",null,":",null,":"]
["S11_S12","E3739","EP_P51G_CREP_fc",null,null,null,"E37-39","Sewerage: waste management and remendiation activities",null,":",null,":",null,":",null,":",null,":",null,":",null,":",null,":",null,":",null,":",null,":",null,":",null,":",null,":",null,":"]
["S11_S12","F","EP_P51G_CREP_fc",null,null,null,"F","Construction",null,":",null,":",null,":",null,":",null,":",null,":",null,":",null,":",null,":",null,":",null,":",null,":",null,":",null,":",null,":"]
["S11_S12","H","EP_P51G_CREP_fc",null,null,null,"H","Transportation and storage",null,":",null,":",null,":",null,":",null,":",null,":",null,":",null,":",null,":",null,":",null,":",null,":",null,":",null,":",null,":"]
["S11_S12","L","EP_P51G_CREP_fc",null,null,null,"L","Real estate activities",null,":",null,":",null,":",null,":",null,":",null,":",null,":",null,":",null,":",null,":",null,":",null,":",null,":",null,":",null,":"]

{"sheet":"8.3_Add_2026","index":59,"n_rows":39,"n_cols":38,"rows_kept":39,"cut":false,"hidden":false,"merged":[[3,13,4,14],[3,15,4,16],[3,17,4,18],[3,37,4,38],[3,21,4,22],[3,23,4,24],[3,25,4,26],[3,31,4,32],[3,33,4,34],[3,35,4,36],[3,27,4,28],[3,29,4,30],[3,19,4,20],[0,4,0,8],[1,4,1,8],[1,9,1,32],[1,33,1,38],[2,9,2,32],[2,33,2,38],[17,4,17,5],[17,7,17,8],[4,4,4,7],[6,4,6,5],[6,7,6,8],[7,7,7,8],[8,7,8,8],[9,7,9,8],[3,9,4,10],[3,11,4,12],[25,7,25,8],[12,7,12,8],[13,7,13,8],[14,7,14,8],[15,7,15,8],[16,7,16,8],[18,7,18,8],[19,7,19,8],[20,7,20,8],[23,7,23,8],[24,7,24,8],[38,7,38,8],[26,7,26,8],[27,7,27,8],[28,4,28,5],[28,7,28,8],[29,7,29,8],[30,7,30,8],[31,7,31,8],[34,7,34,8],[35,7,35,8],[36,7,36,8],[37,7,37,8]]}
[null,null,null,null,{"$f":"Cover!B21","v":"QUESTIONNAIRE ON ENVIRONMENTAL PROTECTION EXPENDITURE ACCOUNTS"},null,null,null,null,"GFCF - Corporations: other (also covering producers of ancillary EP services)",null,null,null,null,null,null,null,null,null,null,null,null,null,null,null,null,null,null,null,null,null,null,null,"GFCF - Corporations: other (also covering producers of ancillary RM products)"]
[null,null,null,null,{"$f":"E1","v":"QUESTIONNAIRE ON ENVIRONMENTAL PROTECTION EXPENDITURE ACCOUNTS"},null,null,null,null,{"$f":"J1","v":"GFCF - Corporations: other (also covering producers of ancillary EP services)"},null,null,null,null,null,null,null,null,null,null,null,null,null,null,null,null,null,null,null,null,null,null,null,{"$f":"AH1","v":"GFCF - Corporations: other (also covering producers of ancillary RM products)"}]
[null,null,null,null,null,null,null,null,null,"Figures calculated from information available in the questionnaire",null,null,null,null,null,null,null,null,null,null,null,null,null,null,null,null,null,null,null,null,null,null,null,"Figures calculated from information available in the questionnaire"]
[null,null,null,null,"Country/Unit",{"$f":"IFERROR(Cover!C16,\"\")","v":""},{"$f":"\"\"&Cover!B16","v":""},null,{"$f":"Cover!B17","v":"Million units of national currency"},"CEPA 1",null,"of which CEPA 1.1.2 and 1.2.2 Climate change",null,"CEPA 2",null,"CEPA 3",null,"CEPA 4",null,"CEPA 5",null,"CEPA 6",null,"CEPA 7",null,"CEPA 8",null,"CEPA 9",null,"Sum of CEPA 7+8+9",null,"TOTAL CEPA",null," CReMA\n11B + 13C + 14 \n(Materials recovery)",null,"CReMA13A (Production of energy  from renewable sources)",null,"CReMA13B \n(Energy efficiency and savings)"]
[null,null,null,null,"Expenditure",null,null,null,2026,null,null,null,null,null,null,null,null,null,null,null,null,null,null,null,null,null,null,null,null,"Landscape",null,"Landscape",null,"Landscape",null,"Landscape",null,"Landscape"]
[null,null,null,null,null,null,null,null,2020,"CEPA1",null,"CEPA112_122",null,"CEPA2",null,"CEPA3",null,"CEPA4",null,"CEPA5",null,"CEPA6",null,"CEPA7",null,"CEPA8",null,"CEPA9",null,"CEPA7-9",null,"TOT_CEPA",null,"CREMA 11B_13C_14",null,"CREMA 13A",null,"CREMA 13B"]
["S11_S12","B","EPS_P51G_NP",null,"( P51G_NP.3 ) Gross fixed capital formation and acquisition less disposals of non-financial non-produced assets (integrated and end of pipe technologies)",null,"B","Mining and Quarring",null,{"$f":"'3a'!J19","v":":"},{"$f":"'3a'!K19","v":0},{"$f":"'3a'!L19","v":":"},{"$f":"'3a'!M19","v":0},{"$f":"'3a'!N19","v":":"},{"$f":"'3a'!O19","v":0},{"$f":"'3a'!P19","v":":"},{"$f":"'3a'!Q19","v":0},{"$f":"'3a'!R19","v":":"},{"$f":"'3a'!S19","v":0},{"$f":"'3a'!T19","v":":"},{"$f":"'3a'!U19","v":0},{"$f":"'3a'!V19","v":":"},{"$f":"'3a'!W19","v":0},{"$f":"'3a'!X19","v":":"},{"$f":"'3a'!Y19","v":0},{"$f":"'3a'!Z19","v":":"},{"$f":"'3a'!AA19","v":0},{"$f":"'3a'!AB19","v":":"},{"$f":"'3a'!AC19","v":0},{"$f":"'3a'!AD19","v":":"},{"$f":"'3a'!AE19","v":0},{"$f":"'3a'!AF19","v":":"},{"$f":"'3a'!AG19","v":0},":",null,":",null,":"]
["S11_S12","C","EPS_P51G_NP",null,null,null,"C","Manufacturing",null,{"$f":"'3b'!J19","v":":"},{"$f":"'3b'!K19","v":0},{"$f":"'3b'!L19","v":":"},{"$f":"'3b'!M19","v":0},{"$f":"'3b'!N19","v":":"},{"$f":"'3b'!O19","v":0},{"$f":"'3b'!P19","v":":"},{"$f":"'3b'!Q19","v":0},{"$f":"'3b'!R19","v":":"},{"$f":"'3b'!S19","v":0},{"$f":"'3b'!T19","v":":"},{"$f":"'3b'!U19","v":0},{"$f":"'3b'!V19","v":":"},{"$f":"'3b'!W19","v":0},{"$f":"'3b'!X19","v":":"},{"$f":"'3b'!Y19","v":0},{"$f":"'3b'!Z19","v":":"},{"$f":"'3b'!AA19","v":0},{"$f":"'3b'!AB19","v":":"},{"$f":"'3b'!AC19","v":0},{"$f":"'3b'!AD19","v":":"},{"$f":"'3b'!AE19","v":0},{"$f":"'3b'!AF19","v":":"},{"$f":"'3b'!AG19","v":0},":",null,":",null,":"]
["S11_S12","D","EPS_P51G_NP",null,null,null,"D","Electricity, gas, steam and air conditionning supply",null,{"$f":"'3c'!J19","v":":"},{"$f":"'3c'!K19","v":0},{"$f":"'3c'!L19","v":":"},{"$f":"'3c'!M19","v":0},{"$f":"'3c'!N19","v":":"},{"$f":"'3c'!O19","v":0},{"$f":"'3c'!P19","v":":"},{"$f":"'3c'!Q19","v":0},{"$f":"'3c'!R19","v":":"},{"$f":"'3c'!S19","v":0},{"$f":"'3c'!T19","v":":"},{"$f":"'3c'!U19","v":0},{"$f":"'3c'!V19","v":":"},{"$f":"'3c'!W19","v":0},{"$f":"'3c'!X19","v":":"},{"$f":"'3c'!Y19","v":0},{"$f":"'3c'!Z19","v":":"},{"$f":"'3c'!AA19","v":0},{"$f":"'3c'!AB19","v":":"},{"$f":"'3c'!AC19","v":0},{"$f":"'3c'!AD19","v":":"},{"$f":"'3c'!AE19","v":0},{"$f":"'3c'!AF19","v":":"},{"$f":"'3c'!AG19","v":0},":",null,":",null,":"]
["S11_S12","E36","EPS_P51G_NP",null,null,null,"E36","Water supply",null,{"$f":"'3d'!J19","v":":"},{"$f":"'3d'!K19","v":0},{"$f":"'3d'!L19","v":":"},{"$f":"'3d'!M19","v":0},{"$f":"'3d'!N19","v":":"},{"$f":"'3d'!O19","v":0},{"$f":"'3d'!P19","v":":"},{"$f":"'3d'!Q19","v":0},{"$f":"'3d'!R19","v":":"},{"$f":"'3d'!S19","v":0},{"$f":"'3d'!T19","v":":"},{"$f":"'3d'!U19","v":0},{"$f":"'3d'!V19","v":":"},{"$f":"'3d'!W19","v":0},{"$f":"'3d'!X19","v":":"},{"$f":"'3d'!Y19","v":0},{"$f":"'3d'!Z19","v":":"},{"$f":"'3d'!AA19","v":0},{"$f":"'3d'!AB19","v":":"},{"$f":"'3d'!AC19","v":0},{"$f":"'3d'!AD19","v":":"},{"$f":"'3d'!AE19","v":0},{"$f":"'3d'!AF19","v":":"},{"$f":"'3d'!AG19","v":0},":",null,":",null,":"]
["S11_S12","A_EP_OTH","EPS_P51G_NP",null,null,null,"OTH","OTHER NACE",null,{"$f":"'3e (voluntary)'!J19","v":":"},{"$f":"'3e (voluntary)'!K19","v":0},{"$f":"'3e (voluntary)'!L19","v":":"},{"$f":"'3e (voluntary)'!M19","v":0},{"$f":"'3e (voluntary)'!N19","v":":"},{"$f":"'3e (voluntary)'!O19","v":0},{"$f":"'3e (voluntary)'!P19","v":":"},{"$f":"'3e (voluntary)'!Q19","v":0},{"$f":"'3e (voluntary)'!R19","v":":"},{"$f":"'3e (voluntary)'!S19","v":0},{"$f":"'3e (voluntary)'!T19","v":":"},{"$f":"'3e (voluntary)'!U19","v":0},{"$f":"'3e (voluntary)'!V19","v":":"},{"$f":"'3e (voluntary)'!W19","v":0},{"$f":"'3e (voluntary)'!X19","v":":"},{"$f":"'3e (voluntary)'!Y19","v":0},{"$f":"'3e (voluntary)'!Z19","v":":"},{"$f":"'3e (voluntary)'!AA19","v":0},{"$f":"'3e (voluntary)'!AB19","v":":"},{"$f":"'3e (voluntary)'!AC19","v":0},{"$f":"'3e (voluntary)'!AD19","v":":"},{"$f":"'3e (voluntary)'!AE19","v":0},{"$f":"'3e (voluntary)'!AF19","v":":"},{"$f":"'3e (voluntary)'!AG19","v":0},":",null,":",null,":"]
[null,null,null,null,null,null,null,"of which:"]
["S11_S12","A","EPS_P51G_NP",null,null,null,"A","Agriculture, forestry and fishing",null,":",null,":",null,":",null,":",null,":",null,":",null,":",null,":",null,":",null,":",null,":",null,{"$f":"IF(COUNT(J13,N13,P13, R13,T13,V13,AD13)=7,SUM(J13,N13,P13, R13,T13,V13,AD13),\":\")","v":":"},null,":",null,":"]
["S11_S12","E3739","EPS_P51G_NP",null,null,null,"E37-39","Sewerage: waste management and remendiation activities",null,":",null,":",null,":",null,":",null,":",null,":",null,":",null,":",null,":",null,":",null,":",null,":",null,":",null,":"]
["S11_S12","F","EPS_P51G_NP",null,null,null,"F","Construction",null,":",null,":",null,":",null,":",null,":",null,":",null,":",null,":",null,":",null,":",null,":",null,":",null,":",null,":"]
["S11_S12","H","EPS_P51G_NP",null,null,null,"H","Transportation and storage",null,":",null,":",null,":",null,":",null,":",null,":",null,":",null,":",null,":",null,":",null,":",null,":",null,":",null,":"]
["S11_S12","L","EPS_P51G_NP",null,null,null,"L","Real estate activities",null,":",null,":",null,":",null,":",null,":",null,":",null,":",null,":",null,":",null,":",null,":",null,":",null,":",null,":"]
["S11_S12","B","EP_P51G_CREP_ec",null,"( P51G_CREP_ec.3Add) Gross fixed capital formation  in cleaner and resource efficient products for non characteristic activities - EXTRA COST",null,"B","Mining and Quarring",null,":",null,":",null,":",null,":",null,":",null,":",null,":",null,":",null,":",null,":",null,":",null,":",null,":",null,":",null,":"]
["S11_S12","C","EP_P51G_CREP_ec",null,null,null,"C","Manufacturing",null,":",null,":",null,":",null,":",null,":",null,":",null,":",null,":",null,":",null,":",null,":",null,":",null,":",null,":",null,":"]
["S11_S12","D","EP_P51G_CREP_ec",null,null,null,"D","Electricity, gas, steam and air conditionning supply",null,":",null,":",null,":",null,":",null,":",null,":",null,":",null,":",null,":",null,":",null,":",null,":",null,":",null,":",null,":"]
["S11_S12","E36","EP_P51G_CREP_ec",null,null,null,"E36","Water supply",null,":",null,":",null,":",null,":",null,":",null,":",null,":",null,":",null,":",null,":",null,":",null,":",null,":",null,":",null,":"]
["S11_S12","A_EP_OTH","EP_P51G_CREP_ec",null,null,null,"OTH","OTHER NACE",null,":",null,":",null,":",null,":",null,":",null,":",null,":",null,":",null,":",null,":",null,":",null,":",null,":",null,":",null,":"]
[null,null,null,null,null,null,null,"of which:",null,null,null,null,null,null,null,null,null,null,null,null,null,null,null,null,null,null,null,null,null,null,null,":"]
["S11_S12","A","EP_P51G_CREP_ec",null,null,null,"A","Agriculture, forestry and fishing",null,":",null,":",null,":",null,":",null,":",null,":",null,":",null,":",null,":",null,":",null,":",null,":",null,":",null,":",null,":"]
["S11_S12","E3739","EP_P51G_CREP_ec",null,null,null,"E37-39","Sewerage: waste management and remendiation activities",null,":",null,":",null,":",null,":",null,":",null,":",null,":",null,":",null,":",null,":",null,":",null,":",null,":",null,":",null,":"]
["S11_S12","F","EP_P51G_CREP_ec",null,null,null,"F","Construction",null,":",null,":",null,":",null,":",null,":",null,":",null,":",null,":",null,":",null,":",null,":",null,":",null,":",null,":",null,":"]
["S11_S12","H","EP_P51G_CREP_ec",null,null,null,"H","Transportation and storage",null,":",null,":",null,":",null,":",null,":",null,":",null,":",null,":",null,":",null,":",null,":",null,":",null,":",null,":",null,":"]
["S11_S12","L","EP_P51G_CREP_ec",null,null,null,"L","Real estate activities",null,":",null,":",null,":",null,":",null,":",null,":",null,":",null,":",null,":",null,":",null,":",null,":",null,":",null,":",null,":"]
["S11_S12","B","EP_P51G_CREP_fc",null,"( P51G_NP_CREP_fc.3Add ) Gross fixed capital formation and acquisition less disposals of non-financial non-produced assets in cleaner and resource efficient products - FULL COST",null,"B","Mining and Quarring",null,":",null,":",null,":",null,":",null,":",null,":",null,":",null,":",null,":",null,":",null,":",null,":",null,":",null,":",null,":"]
["S11_S12","C","EP_P51G_CREP_fc",null,null,null,"C","Manufacturing",null,":",null,":",null,":",null,":",null,":",null,":",null,":",null,":",null,":",null,":",null,":",null,":",null,":",null,":",null,":"]
["S11_S12","D","EP_P51G_CREP_fc",null,null,null,"D","Electricity, gas, steam and air conditionning supply",null,":",null,":",null,":",null,":",null,":",null,":",null,":",null,":",null,":",null,":",null,":",null,":",null,":",null,":",null,":"]
["S11_S12","E36","EP_P51G_CREP_fc",null,null,null,"E36","Water supply",null,":",null,":",null,":",null,":",null,":",null,":",null,":",null,":",null,":",null,":",null,":",null,":",null,":",null,":",null,":"]
["S11_S12","A_EP_OTH","EP_P51G_CREP_fc",null,null,null,"OTH","OTHER NACE",null,":",null,":",null,":",null,":",null,":",null,":",null,":",null,":",null,":",null,":",null,":",null,":",null,":",null,":",null,":"]
[null,null,null,null,null,null,null,"of which:",null,null,null,null,null,null,null,null,null,null,null,null,null,null,null,null,null,null,null,null,null,null,null,":"]
["S11_S12","A","EP_P51G_CREP_fc",null,null,null,"A","Agriculture, forestry and fishing",null,":",null,":",null,":",null,":",null,":",null,":",null,":",null,":",null,":",null,":",null,":",null,":",null,":",null,":",null,":"]
["S11_S12","E3739","EP_P51G_CREP_fc",null,null,null,"E37-39","Sewerage: waste management and remendiation activities",null,":",null,":",null,":",null,":",null,":",null,":",null,":",null,":",null,":",null,":",null,":",null,":",null,":",null,":",null,":"]
["S11_S12","F","EP_P51G_CREP_fc",null,null,null,"F","Construction",null,":",null,":",null,":",null,":",null,":",null,":",null,":",null,":",null,":",null,":",null,":",null,":",null,":",null,":",null,":"]
["S11_S12","H","EP_P51G_CREP_fc",null,null,null,"H","Transportation and storage",null,":",null,":",null,":",null,":",null,":",null,":",null,":",null,":",null,":",null,":",null,":",null,":",null,":",null,":",null,":"]
["S11_S12","L","EP_P51G_CREP_fc",null,null,null,"L","Real estate activities",null,":",null,":",null,":",null,":",null,":",null,":",null,":",null,":",null,":",null,":",null,":",null,":",null,":",null,":",null,":"]

{"sheet":"8.3_Add_2027","index":60,"n_rows":39,"n_cols":38,"rows_kept":39,"cut":false,"hidden":false,"merged":[[3,13,4,14],[3,15,4,16],[3,17,4,18],[3,37,4,38],[3,21,4,22],[3,23,4,24],[3,25,4,26],[3,31,4,32],[3,33,4,34],[3,35,4,36],[3,27,4,28],[3,29,4,30],[3,19,4,20],[0,4,0,8],[1,4,1,8],[1,9,1,32],[1,33,1,38],[2,9,2,32],[2,33,2,38],[17,4,17,5],[17,7,17,8],[4,4,4,7],[6,4,6,5],[6,7,6,8],[7,7,7,8],[8,7,8,8],[9,7,9,8],[3,9,4,10],[3,11,4,12],[25,7,25,8],[12,7,12,8],[13,7,13,8],[14,7,14,8],[15,7,15,8],[16,7,16,8],[18,7,18,8],[19,7,19,8],[20,7,20,8],[23,7,23,8],[24,7,24,8],[38,7,38,8],[26,7,26,8],[27,7,27,8],[28,4,28,5],[28,7,28,8],[29,7,29,8],[30,7,30,8],[31,7,31,8],[34,7,34,8],[35,7,35,8],[36,7,36,8],[37,7,37,8]]}
[null,null,null,null,{"$f":"Cover!B21","v":"QUESTIONNAIRE ON ENVIRONMENTAL PROTECTION EXPENDITURE ACCOUNTS"},null,null,null,null,"GFCF - Corporations: other (also covering producers of ancillary EP services)",null,null,null,null,null,null,null,null,null,null,null,null,null,null,null,null,null,null,null,null,null,null,null,"GFCF - Corporations: other (also covering producers of ancillary RM products)"]
[null,null,null,null,{"$f":"E1","v":"QUESTIONNAIRE ON ENVIRONMENTAL PROTECTION EXPENDITURE ACCOUNTS"},null,null,null,null,{"$f":"J1","v":"GFCF - Corporations: other (also covering producers of ancillary EP services)"},null,null,null,null,null,null,null,null,null,null,null,null,null,null,null,null,null,null,null,null,null,null,null,{"$f":"AH1","v":"GFCF - Corporations: other (also covering producers of ancillary RM products)"}]
[null,null,null,null,null,null,null,null,null,"Figures calculated from information available in the questionnaire",null,null,null,null,null,null,null,null,null,null,null,null,null,null,null,null,null,null,null,null,null,null,null,"Figures calculated from information available in the questionnaire"]
[null,null,null,null,"Country/Unit",{"$f":"IFERROR(Cover!C16,\"\")","v":""},{"$f":"\"\"&Cover!B16","v":""},null,{"$f":"Cover!B17","v":"Million units of national currency"},"CEPA 1",null,"of which CEPA 1.1.2 and 1.2.2 Climate change",null,"CEPA 2",null,"CEPA 3",null,"CEPA 4",null,"CEPA 5",null,"CEPA 6",null,"CEPA 7",null,"CEPA 8",null,"CEPA 9",null,"Sum of CEPA 7+8+9",null,"TOTAL CEPA",null," CReMA\n11B + 13C + 14 \n(Materials recovery)",null,"CReMA13A (Production of energy  from renewable sources)",null,"CReMA13B \n(Energy efficiency and savings)"]
[null,null,null,null,"Expenditure",null,null,null,2027,null,null,null,null,null,null,null,null,null,null,null,null,null,null,null,null,null,null,null,null,"Landscape",null,"Landscape",null,"Landscape",null,"Landscape",null,"Landscape"]
[null,null,null,null,null,null,null,null,2020,"CEPA1",null,"CEPA112_122",null,"CEPA2",null,"CEPA3",null,"CEPA4",null,"CEPA5",null,"CEPA6",null,"CEPA7",null,"CEPA8",null,"CEPA9",null,"CEPA7-9",null,"TOT_CEPA",null,"CREMA 11B_13C_14",null,"CREMA 13A",null,"CREMA 13B"]
["S11_S12","B","EPS_P51G_NP",null,"( P51G_NP.3 ) Gross fixed capital formation and acquisition less disposals of non-financial non-produced assets (integrated and end of pipe technologies)",null,"B","Mining and Quarring",null,{"$f":"'3a'!J20","v":":"},{"$f":"'3a'!K20","v":0},{"$f":"'3a'!L20","v":":"},{"$f":"'3a'!M20","v":0},{"$f":"'3a'!N20","v":":"},{"$f":"'3a'!O20","v":0},{"$f":"'3a'!P20","v":":"},{"$f":"'3a'!Q20","v":0},{"$f":"'3a'!R20","v":":"},{"$f":"'3a'!S20","v":0},{"$f":"'3a'!T20","v":":"},{"$f":"'3a'!U20","v":0},{"$f":"'3a'!V20","v":":"},{"$f":"'3a'!W20","v":0},{"$f":"'3a'!X20","v":":"},{"$f":"'3a'!Y20","v":0},{"$f":"'3a'!Z20","v":":"},{"$f":"'3a'!AA20","v":0},{"$f":"'3a'!AB20","v":":"},{"$f":"'3a'!AC20","v":0},{"$f":"'3a'!AD20","v":":"},{"$f":"'3a'!AE20","v":0},{"$f":"'3a'!AF20","v":":"},{"$f":"'3a'!AG20","v":0},":",null,":",null,":"]
["S11_S12","C","EPS_P51G_NP",null,null,null,"C","Manufacturing",null,{"$f":"'3b'!J20","v":":"},{"$f":"'3b'!K20","v":0},{"$f":"'3b'!L20","v":":"},{"$f":"'3b'!M20","v":0},{"$f":"'3b'!N20","v":":"},{"$f":"'3b'!O20","v":0},{"$f":"'3b'!P20","v":":"},{"$f":"'3b'!Q20","v":0},{"$f":"'3b'!R20","v":":"},{"$f":"'3b'!S20","v":0},{"$f":"'3b'!T20","v":":"},{"$f":"'3b'!U20","v":0},{"$f":"'3b'!V20","v":":"},{"$f":"'3b'!W20","v":0},{"$f":"'3b'!X20","v":":"},{"$f":"'3b'!Y20","v":0},{"$f":"'3b'!Z20","v":":"},{"$f":"'3b'!AA20","v":0},{"$f":"'3b'!AB20","v":":"},{"$f":"'3b'!AC20","v":0},{"$f":"'3b'!AD20","v":":"},{"$f":"'3b'!AE20","v":0},{"$f":"'3b'!AF20","v":":"},{"$f":"'3b'!AG20","v":0},":",null,":",null,":"]
["S11_S12","D","EPS_P51G_NP",null,null,null,"D","Electricity, gas, steam and air conditionning supply",null,{"$f":"'3c'!J20","v":":"},{"$f":"'3c'!K20","v":0},{"$f":"'3c'!L20","v":":"},{"$f":"'3c'!M20","v":0},{"$f":"'3c'!N20","v":":"},{"$f":"'3c'!O20","v":0},{"$f":"'3c'!P20","v":":"},{"$f":"'3c'!Q20","v":0},{"$f":"'3c'!R20","v":":"},{"$f":"'3c'!S20","v":0},{"$f":"'3c'!T20","v":":"},{"$f":"'3c'!U20","v":0},{"$f":"'3c'!V20","v":":"},{"$f":"'3c'!W20","v":0},{"$f":"'3c'!X20","v":":"},{"$f":"'3c'!Y20","v":0},{"$f":"'3c'!Z20","v":":"},{"$f":"'3c'!AA20","v":0},{"$f":"'3c'!AB20","v":":"},{"$f":"'3c'!AC20","v":0},{"$f":"'3c'!AD20","v":":"},{"$f":"'3c'!AE20","v":0},{"$f":"'3c'!AF20","v":":"},{"$f":"'3c'!AG20","v":0},":",null,":",null,":"]
["S11_S12","E36","EPS_P51G_NP",null,null,null,"E36","Water supply",null,{"$f":"'3d'!J20","v":":"},{"$f":"'3d'!K20","v":0},{"$f":"'3d'!L20","v":":"},{"$f":"'3d'!M20","v":0},{"$f":"'3d'!N20","v":":"},{"$f":"'3d'!O20","v":0},{"$f":"'3d'!P20","v":":"},{"$f":"'3d'!Q20","v":0},{"$f":"'3d'!R20","v":":"},{"$f":"'3d'!S20","v":0},{"$f":"'3d'!T20","v":":"},{"$f":"'3d'!U20","v":0},{"$f":"'3d'!V20","v":":"},{"$f":"'3d'!W20","v":0},{"$f":"'3d'!X20","v":":"},{"$f":"'3d'!Y20","v":0},{"$f":"'3d'!Z20","v":":"},{"$f":"'3d'!AA20","v":0},{"$f":"'3d'!AB20","v":":"},{"$f":"'3d'!AC20","v":0},{"$f":"'3d'!AD20","v":":"},{"$f":"'3d'!AE20","v":0},{"$f":"'3d'!AF20","v":":"},{"$f":"'3d'!AG20","v":0},":",null,":",null,":"]
["S11_S12","A_EP_OTH","EPS_P51G_NP",null,null,null,"OTH","OTHER NACE",null,{"$f":"'3e (voluntary)'!J20","v":":"},{"$f":"'3e (voluntary)'!K20","v":0},{"$f":"'3e (voluntary)'!L20","v":":"},{"$f":"'3e (voluntary)'!M20","v":0},{"$f":"'3e (voluntary)'!N20","v":":"},{"$f":"'3e (voluntary)'!O20","v":0},{"$f":"'3e (voluntary)'!P20","v":":"},{"$f":"'3e (voluntary)'!Q20","v":0},{"$f":"'3e (voluntary)'!R20","v":":"},{"$f":"'3e (voluntary)'!S20","v":0},{"$f":"'3e (voluntary)'!T20","v":":"},{"$f":"'3e (voluntary)'!U20","v":0},{"$f":"'3e (voluntary)'!V20","v":":"},{"$f":"'3e (voluntary)'!W20","v":0},{"$f":"'3e (voluntary)'!X20","v":":"},{"$f":"'3e (voluntary)'!Y20","v":0},{"$f":"'3e (voluntary)'!Z20","v":":"},{"$f":"'3e (voluntary)'!AA20","v":0},{"$f":"'3e (voluntary)'!AB20","v":":"},{"$f":"'3e (voluntary)'!AC20","v":0},{"$f":"'3e (voluntary)'!AD20","v":":"},{"$f":"'3e (voluntary)'!AE20","v":0},{"$f":"'3e (voluntary)'!AF20","v":":"},{"$f":"'3e (voluntary)'!AG20","v":0},":",null,":",null,":"]
[null,null,null,null,null,null,null,"of which:"]
["S11_S12","A","EPS_P51G_NP",null,null,null,"A","Agriculture, forestry and fishing",null,":",null,":",null,":",null,":",null,":",null,":",null,":",null,":",null,":",null,":",null,":",null,{"$f":"IF(COUNT(J13,N13,P13, R13,T13,V13,AD13)=7,SUM(J13,N13,P13, R13,T13,V13,AD13),\":\")","v":":"},null,":",null,":"]
["S11_S12","E3739","EPS_P51G_NP",null,null,null,"E37-39","Sewerage: waste management and remendiation activities",null,":",null,":",null,":",null,":",null,":",null,":",null,":",null,":",null,":",null,":",null,":",null,":",null,":",null,":"]
["S11_S12","F","EPS_P51G_NP",null,null,null,"F","Construction",null,":",null,":",null,":",null,":",null,":",null,":",null,":",null,":",null,":",null,":",null,":",null,":",null,":",null,":"]
["S11_S12","H","EPS_P51G_NP",null,null,null,"H","Transportation and storage",null,":",null,":",null,":",null,":",null,":",null,":",null,":",null,":",null,":",null,":",null,":",null,":",null,":",null,":"]
["S11_S12","L","EPS_P51G_NP",null,null,null,"L","Real estate activities",null,":",null,":",null,":",null,":",null,":",null,":",null,":",null,":",null,":",null,":",null,":",null,":",null,":",null,":"]
["S11_S12","B","EP_P51G_CREP_ec",null,"( P51G_CREP_ec.3Add) Gross fixed capital formation  in cleaner and resource efficient products for non characteristic activities - EXTRA COST",null,"B","Mining and Quarring",null,":",null,":",null,":",null,":",null,":",null,":",null,":",null,":",null,":",null,":",null,":",null,":",null,":",null,":",null,":"]
["S11_S12","C","EP_P51G_CREP_ec",null,null,null,"C","Manufacturing",null,":",null,":",null,":",null,":",null,":",null,":",null,":",null,":",null,":",null,":",null,":",null,":",null,":",null,":",null,":"]
["S11_S12","D","EP_P51G_CREP_ec",null,null,null,"D","Electricity, gas, steam and air conditionning supply",null,":",null,":",null,":",null,":",null,":",null,":",null,":",null,":",null,":",null,":",null,":",null,":",null,":",null,":",null,":"]
["S11_S12","E36","EP_P51G_CREP_ec",null,null,null,"E36","Water supply",null,":",null,":",null,":",null,":",null,":",null,":",null,":",null,":",null,":",null,":",null,":",null,":",null,":",null,":",null,":"]
["S11_S12","A_EP_OTH","EP_P51G_CREP_ec",null,null,null,"OTH","OTHER NACE",null,":",null,":",null,":",null,":",null,":",null,":",null,":",null,":",null,":",null,":",null,":",null,":",null,":",null,":",null,":"]
[null,null,null,null,null,null,null,"of which:",null,null,null,null,null,null,null,null,null,null,null,null,null,null,null,null,null,null,null,null,null,null,null,":"]
["S11_S12","A","EP_P51G_CREP_ec",null,null,null,"A","Agriculture, forestry and fishing",null,":",null,":",null,":",null,":",null,":",null,":",null,":",null,":",null,":",null,":",null,":",null,":",null,":",null,":",null,":"]
["S11_S12","E3739","EP_P51G_CREP_ec",null,null,null,"E37-39","Sewerage: waste management and remendiation activities",null,":",null,":",null,":",null,":",null,":",null,":",null,":",null,":",null,":",null,":",null,":",null,":",null,":",null,":",null,":"]
["S11_S12","F","EP_P51G_CREP_ec",null,null,null,"F","Construction",null,":",null,":",null,":",null,":",null,":",null,":",null,":",null,":",null,":",null,":",null,":",null,":",null,":",null,":",null,":"]
["S11_S12","H","EP_P51G_CREP_ec",null,null,null,"H","Transportation and storage",null,":",null,":",null,":",null,":",null,":",null,":",null,":",null,":",null,":",null,":",null,":",null,":",null,":",null,":",null,":"]
["S11_S12","L","EP_P51G_CREP_ec",null,null,null,"L","Real estate activities",null,":",null,":",null,":",null,":",null,":",null,":",null,":",null,":",null,":",null,":",null,":",null,":",null,":",null,":",null,":"]
["S11_S12","B","EP_P51G_CREP_fc",null,"( P51G_NP_CREP_fc.3Add ) Gross fixed capital formation and acquisition less disposals of non-financial non-produced assets in cleaner and resource efficient products - FULL COST",null,"B","Mining and Quarring",null,":",null,":",null,":",null,":",null,":",null,":",null,":",null,":",null,":",null,":",null,":",null,":",null,":",null,":",null,":"]
["S11_S12","C","EP_P51G_CREP_fc",null,null,null,"C","Manufacturing",null,":",null,":",null,":",null,":",null,":",null,":",null,":",null,":",null,":",null,":",null,":",null,":",null,":",null,":",null,":"]
["S11_S12","D","EP_P51G_CREP_fc",null,null,null,"D","Electricity, gas, steam and air conditionning supply",null,":",null,":",null,":",null,":",null,":",null,":",null,":",null,":",null,":",null,":",null,":",null,":",null,":",null,":",null,":"]
["S11_S12","E36","EP_P51G_CREP_fc",null,null,null,"E36","Water supply",null,":",null,":",null,":",null,":",null,":",null,":",null,":",null,":",null,":",null,":",null,":",null,":",null,":",null,":",null,":"]
["S11_S12","A_EP_OTH","EP_P51G_CREP_fc",null,null,null,"OTH","OTHER NACE",null,":",null,":",null,":",null,":",null,":",null,":",null,":",null,":",null,":",null,":",null,":",null,":",null,":",null,":",null,":"]
[null,null,null,null,null,null,null,"of which:",null,null,null,null,null,null,null,null,null,null,null,null,null,null,null,null,null,null,null,null,null,null,null,":"]
["S11_S12","A","EP_P51G_CREP_fc",null,null,null,"A","Agriculture, forestry and fishing",null,":",null,":",null,":",null,":",null,":",null,":",null,":",null,":",null,":",null,":",null,":",null,":",null,":",null,":",null,":"]
["S11_S12","E3739","EP_P51G_CREP_fc",null,null,null,"E37-39","Sewerage: waste management and remendiation activities",null,":",null,":",null,":",null,":",null,":",null,":",null,":",null,":",null,":",null,":",null,":",null,":",null,":",null,":",null,":"]
["S11_S12","F","EP_P51G_CREP_fc",null,null,null,"F","Construction",null,":",null,":",null,":",null,":",null,":",null,":",null,":",null,":",null,":",null,":",null,":",null,":",null,":",null,":",null,":"]
["S11_S12","H","EP_P51G_CREP_fc",null,null,null,"H","Transportation and storage",null,":",null,":",null,":",null,":",null,":",null,":",null,":",null,":",null,":",null,":",null,":",null,":",null,":",null,":",null,":"]
["S11_S12","L","EP_P51G_CREP_fc",null,null,null,"L","Real estate activities",null,":",null,":",null,":",null,":",null,":",null,":",null,":",null,":",null,":",null,":",null,":",null,":",null,":",null,":",null,":"]

{"sheet":"8.3_Add_2028","index":61,"n_rows":39,"n_cols":38,"rows_kept":39,"cut":false,"hidden":false,"merged":[[3,13,4,14],[3,15,4,16],[3,17,4,18],[3,37,4,38],[3,21,4,22],[3,23,4,24],[3,25,4,26],[3,31,4,32],[3,33,4,34],[3,35,4,36],[3,27,4,28],[3,29,4,30],[3,19,4,20],[0,4,0,8],[1,4,1,8],[1,9,1,32],[1,33,1,38],[2,9,2,32],[2,33,2,38],[17,4,17,5],[17,7,17,8],[4,4,4,7],[6,4,6,5],[6,7,6,8],[7,7,7,8],[8,7,8,8],[9,7,9,8],[3,9,4,10],[3,11,4,12],[25,7,25,8],[12,7,12,8],[13,7,13,8],[14,7,14,8],[15,7,15,8],[16,7,16,8],[18,7,18,8],[19,7,19,8],[20,7,20,8],[23,7,23,8],[24,7,24,8],[38,7,38,8],[26,7,26,8],[27,7,27,8],[28,4,28,5],[28,7,28,8],[29,7,29,8],[30,7,30,8],[31,7,31,8],[34,7,34,8],[35,7,35,8],[36,7,36,8],[37,7,37,8]]}
[null,null,null,null,{"$f":"Cover!B21","v":"QUESTIONNAIRE ON ENVIRONMENTAL PROTECTION EXPENDITURE ACCOUNTS"},null,null,null,null,"GFCF - Corporations: other (also covering producers of ancillary EP services)",null,null,null,null,null,null,null,null,null,null,null,null,null,null,null,null,null,null,null,10.43,null,null,null,"GFCF - Corporations: other (also covering producers of ancillary RM products)"]
[null,null,null,null,{"$f":"E1","v":"QUESTIONNAIRE ON ENVIRONMENTAL PROTECTION EXPENDITURE ACCOUNTS"},null,null,null,null,{"$f":"J1","v":"GFCF - Corporations: other (also covering producers of ancillary EP services)"},null,null,null,null,null,null,null,null,null,null,null,null,null,null,null,null,null,null,null,null,null,null,null,{"$f":"AH1","v":"GFCF - Corporations: other (also covering producers of ancillary RM products)"}]
[null,null,null,null,null,null,null,null,null,"Figures calculated from information available in the questionnaire",null,null,null,null,null,null,null,null,null,null,null,null,null,null,null,null,null,null,null,null,null,null,null,"Figures calculated from information available in the questionnaire"]
[null,null,null,null,"Country/Unit",{"$f":"IFERROR(Cover!C16,\"\")","v":""},{"$f":"\"\"&Cover!B16","v":""},null,{"$f":"Cover!B17","v":"Million units of national currency"},"CEPA 1",null,"of which CEPA 1.1.2 and 1.2.2 Climate change",null,"CEPA 2",null,"CEPA 3",null,"CEPA 4",null,"CEPA 5",null,"CEPA 6",null,"CEPA 7",null,"CEPA 8",null,"CEPA 9",null,"Sum of CEPA 7+8+9",null,"TOTAL CEPA",null," CReMA\n11B + 13C + 14 \n(Materials recovery)",null,"CReMA13A (Production of energy  from renewable sources)",null,"CReMA13B \n(Energy efficiency and savings)"]
[null,null,null,null,"Expenditure",null,null,null,2028,null,null,null,null,null,null,null,null,null,null,null,null,null,null,null,null,null,null,null,null,"Landscape",null,"Landscape",null,"Landscape",null,"Landscape",null,"Landscape"]
[null,null,null,null,null,null,null,null,2020,"CEPA1",null,"CEPA112_122",null,"CEPA2",null,"CEPA3",null,"CEPA4",null,"CEPA5",null,"CEPA6",null,"CEPA7",null,"CEPA8",null,"CEPA9",null,"CEPA7-9",null,"TOT_CEPA",null,"CREMA 11B_13C_14",null,"CREMA 13A",null,"CREMA 13B"]
["S11_S12","B","EPS_P51G_NP",null,"( P51G_NP.3 ) Gross fixed capital formation and acquisition less disposals of non-financial non-produced assets (integrated and end of pipe technologies)",null,"B","Mining and Quarring",null,{"$f":"'3a'!J21","v":":"},{"$f":"'3a'!K21","v":0},{"$f":"'3a'!L21","v":":"},{"$f":"'3a'!M21","v":0},{"$f":"'3a'!N21","v":":"},{"$f":"'3a'!O21","v":0},{"$f":"'3a'!P21","v":":"},{"$f":"'3a'!Q21","v":0},{"$f":"'3a'!R21","v":":"},{"$f":"'3a'!S21","v":0},{"$f":"'3a'!T21","v":":"},{"$f":"'3a'!U21","v":0},{"$f":"'3a'!V21","v":":"},{"$f":"'3a'!W21","v":0},{"$f":"'3a'!X21","v":":"},{"$f":"'3a'!Y21","v":0},{"$f":"'3a'!Z21","v":":"},{"$f":"'3a'!AA21","v":0},{"$f":"'3a'!AB21","v":":"},{"$f":"'3a'!AC21","v":0},{"$f":"'3a'!AD21","v":":"},{"$f":"'3a'!AE21","v":0},{"$f":"'3a'!AF21","v":":"},{"$f":"'3a'!AG21","v":0},":",null,":",null,":"]
["S11_S12","C","EPS_P51G_NP",null,null,null,"C","Manufacturing",null,{"$f":"'3b'!J21","v":":"},{"$f":"'3b'!K21","v":0},{"$f":"'3b'!L21","v":":"},{"$f":"'3b'!M21","v":0},{"$f":"'3b'!N21","v":":"},{"$f":"'3b'!O21","v":0},{"$f":"'3b'!P21","v":":"},{"$f":"'3b'!Q21","v":0},{"$f":"'3b'!R21","v":":"},{"$f":"'3b'!S21","v":0},{"$f":"'3b'!T21","v":":"},{"$f":"'3b'!U21","v":0},{"$f":"'3b'!V21","v":":"},{"$f":"'3b'!W21","v":0},{"$f":"'3b'!X21","v":":"},{"$f":"'3b'!Y21","v":0},{"$f":"'3b'!Z21","v":":"},{"$f":"'3b'!AA21","v":0},{"$f":"'3b'!AB21","v":":"},{"$f":"'3b'!AC21","v":0},{"$f":"'3b'!AD21","v":":"},{"$f":"'3b'!AE21","v":0},{"$f":"'3b'!AF21","v":":"},{"$f":"'3b'!AG21","v":0},":",null,":",null,":"]
["S11_S12","D","EPS_P51G_NP",null,null,null,"D","Electricity, gas, steam and air conditionning supply",null,{"$f":"'3c'!J21","v":":"},{"$f":"'3c'!K21","v":0},{"$f":"'3c'!L21","v":":"},{"$f":"'3c'!M21","v":0},{"$f":"'3c'!N21","v":":"},{"$f":"'3c'!O21","v":0},{"$f":"'3c'!P21","v":":"},{"$f":"'3c'!Q21","v":0},{"$f":"'3c'!R21","v":":"},{"$f":"'3c'!S21","v":0},{"$f":"'3c'!T21","v":":"},{"$f":"'3c'!U21","v":0},{"$f":"'3c'!V21","v":":"},{"$f":"'3c'!W21","v":0},{"$f":"'3c'!X21","v":":"},{"$f":"'3c'!Y21","v":0},{"$f":"'3c'!Z21","v":":"},{"$f":"'3c'!AA21","v":0},{"$f":"'3c'!AB21","v":":"},{"$f":"'3c'!AC21","v":0},{"$f":"'3c'!AD21","v":":"},{"$f":"'3c'!AE21","v":0},{"$f":"'3c'!AF21","v":":"},{"$f":"'3c'!AG21","v":0},":",null,":",null,":"]
["S11_S12","E36","EPS_P51G_NP",null,null,null,"E36","Water supply",null,{"$f":"'3d'!J21","v":":"},{"$f":"'3d'!K21","v":0},{"$f":"'3d'!L21","v":":"},{"$f":"'3d'!M21","v":0},{"$f":"'3d'!N21","v":":"},{"$f":"'3d'!O21","v":0},{"$f":"'3d'!P21","v":":"},{"$f":"'3d'!Q21","v":0},{"$f":"'3d'!R21","v":":"},{"$f":"'3d'!S21","v":0},{"$f":"'3d'!T21","v":":"},{"$f":"'3d'!U21","v":0},{"$f":"'3d'!V21","v":":"},{"$f":"'3d'!W21","v":0},{"$f":"'3d'!X21","v":":"},{"$f":"'3d'!Y21","v":0},{"$f":"'3d'!Z21","v":":"},{"$f":"'3d'!AA21","v":0},{"$f":"'3d'!AB21","v":":"},{"$f":"'3d'!AC21","v":0},{"$f":"'3d'!AD21","v":":"},{"$f":"'3d'!AE21","v":0},{"$f":"'3d'!AF21","v":":"},{"$f":"'3d'!AG21","v":0},":",null,":",null,":"]
["S11_S12","A_EP_OTH","EPS_P51G_NP",null,null,null,"OTH","OTHER NACE",null,{"$f":"'3e (voluntary)'!J21","v":":"},{"$f":"'3e (voluntary)'!K21","v":0},{"$f":"'3e (voluntary)'!L21","v":":"},{"$f":"'3e (voluntary)'!M21","v":0},{"$f":"'3e (voluntary)'!N21","v":":"},{"$f":"'3e (voluntary)'!O21","v":0},{"$f":"'3e (voluntary)'!P21","v":":"},{"$f":"'3e (voluntary)'!Q21","v":0},{"$f":"'3e (voluntary)'!R21","v":":"},{"$f":"'3e (voluntary)'!S21","v":0},{"$f":"'3e (voluntary)'!T21","v":":"},{"$f":"'3e (voluntary)'!U21","v":0},{"$f":"'3e (voluntary)'!V21","v":":"},{"$f":"'3e (voluntary)'!W21","v":0},{"$f":"'3e (voluntary)'!X21","v":":"},{"$f":"'3e (voluntary)'!Y21","v":0},{"$f":"'3e (voluntary)'!Z21","v":":"},{"$f":"'3e (voluntary)'!AA21","v":0},{"$f":"'3e (voluntary)'!AB21","v":":"},{"$f":"'3e (voluntary)'!AC21","v":0},{"$f":"'3e (voluntary)'!AD21","v":":"},{"$f":"'3e (voluntary)'!AE21","v":0},{"$f":"'3e (voluntary)'!AF21","v":":"},{"$f":"'3e (voluntary)'!AG21","v":0},":",null,":",null,":"]
[null,null,null,null,null,null,null,"of which:"]
["S11_S12","A","EPS_P51G_NP",null,null,null,"A","Agriculture, forestry and fishing",null,":",null,":",null,":",null,":",null,":",null,":",null,":",null,":",null,":",null,":",null,":",null,{"$f":"IF(COUNT(J13,N13,P13, R13,T13,V13,AD13)=7,SUM(J13,N13,P13, R13,T13,V13,AD13),\":\")","v":":"},null,":",null,":"]
["S11_S12","E3739","EPS_P51G_NP",null,null,null,"E37-39","Sewerage: waste management and remendiation activities",null,":",null,":",null,":",null,":",null,":",null,":",null,":",null,":",null,":",null,":",null,":",null,":",null,":",null,":"]
["S11_S12","F","EPS_P51G_NP",null,null,null,"F","Construction",null,":",null,":",null,":",null,":",null,":",null,":",null,":",null,":",null,":",null,":",null,":",null,":",null,":",null,":"]
["S11_S12","H","EPS_P51G_NP",null,null,null,"H","Transportation and storage",null,":",null,":",null,":",null,":",null,":",null,":",null,":",null,":",null,":",null,":",null,":",null,":",null,":",null,":"]
["S11_S12","L","EPS_P51G_NP",null,null,null,"L","Real estate activities",null,":",null,":",null,":",null,":",null,":",null,":",null,":",null,":",null,":",null,":",null,":",null,":",null,":",null,":"]
["S11_S12","B","EP_P51G_CREP_ec",null,"( P51G_CREP_ec.3Add) Gross fixed capital formation  in cleaner and resource efficient products for non characteristic activities - EXTRA COST",null,"B","Mining and Quarring",null,":",null,":",null,":",null,":",null,":",null,":",null,":",null,":",null,":",null,":",null,":",null,":",null,":",null,":",null,":"]
["S11_S12","C","EP_P51G_CREP_ec",null,null,null,"C","Manufacturing",null,":",null,":",null,":",null,":",null,":",null,":",null,":",null,":",null,":",null,":",null,":",null,":",null,":",null,":",null,":"]
["S11_S12","D","EP_P51G_CREP_ec",null,null,null,"D","Electricity, gas, steam and air conditionning supply",null,":",null,":",null,":",null,":",null,":",null,":",null,":",null,":",null,":",null,":",null,":",null,":",null,":",null,":",null,":"]
["S11_S12","E36","EP_P51G_CREP_ec",null,null,null,"E36","Water supply",null,":",null,":",null,":",null,":",null,":",null,":",null,":",null,":",null,":",null,":",null,":",null,":",null,":",null,":",null,":"]
["S11_S12","A_EP_OTH","EP_P51G_CREP_ec",null,null,null,"OTH","OTHER NACE",null,":",null,":",null,":",null,":",null,":",null,":",null,":",null,":",null,":",null,":",null,":",null,":",null,":",null,":",null,":"]
[null,null,null,null,null,null,null,"of which:",null,null,null,null,null,null,null,null,null,null,null,null,null,null,null,null,null,null,null,null,null,null,null,":"]
["S11_S12","A","EP_P51G_CREP_ec",null,null,null,"A","Agriculture, forestry and fishing",null,":",null,":",null,":",null,":",null,":",null,":",null,":",null,":",null,":",null,":",null,":",null,":",null,":",null,":",null,":"]
["S11_S12","E3739","EP_P51G_CREP_ec",null,null,null,"E37-39","Sewerage: waste management and remendiation activities",null,":",null,":",null,":",null,":",null,":",null,":",null,":",null,":",null,":",null,":",null,":",null,":",null,":",null,":",null,":"]
["S11_S12","F","EP_P51G_CREP_ec",null,null,null,"F","Construction",null,":",null,":",null,":",null,":",null,":",null,":",null,":",null,":",null,":",null,":",null,":",null,":",null,":",null,":",null,":"]
["S11_S12","H","EP_P51G_CREP_ec",null,null,null,"H","Transportation and storage",null,":",null,":",null,":",null,":",null,":",null,":",null,":",null,":",null,":",null,":",null,":",null,":",null,":",null,":",null,":"]
["S11_S12","L","EP_P51G_CREP_ec",null,null,null,"L","Real estate activities",null,":",null,":",null,":",null,":",null,":",null,":",null,":",null,":",null,":",null,":",null,":",null,":",null,":",null,":",null,":"]
["S11_S12","B","EP_P51G_CREP_fc",null,"( P51G_NP_CREP_fc.3Add ) Gross fixed capital formation and acquisition less disposals of non-financial non-produced assets in cleaner and resource efficient products - FULL COST",null,"B","Mining and Quarring",null,":",null,":",null,":",null,":",null,":",null,":",null,":",null,":",null,":",null,":",null,":",null,":",null,":",null,":",null,":"]
["S11_S12","C","EP_P51G_CREP_fc",null,null,null,"C","Manufacturing",null,":",null,":",null,":",null,":",null,":",null,":",null,":",null,":",null,":",null,":",null,":",null,":",null,":",null,":",null,":"]
["S11_S12","D","EP_P51G_CREP_fc",null,null,null,"D","Electricity, gas, steam and air conditionning supply",null,":",null,":",null,":",null,":",null,":",null,":",null,":",null,":",null,":",null,":",null,":",null,":",null,":",null,":",null,":"]
["S11_S12","E36","EP_P51G_CREP_fc",null,null,null,"E36","Water supply",null,":",null,":",null,":",null,":",null,":",null,":",null,":",null,":",null,":",null,":",null,":",null,":",null,":",null,":",null,":"]
["S11_S12","A_EP_OTH","EP_P51G_CREP_fc",null,null,null,"OTH","OTHER NACE",null,":",null,":",null,":",null,":",null,":",null,":",null,":",null,":",null,":",null,":",null,":",null,":",null,":",null,":",null,":"]
[null,null,null,null,null,null,null,"of which:",null,null,null,null,null,null,null,null,null,null,null,null,null,null,null,null,null,null,null,null,null,null,null,":"]
["S11_S12","A","EP_P51G_CREP_fc",null,null,null,"A","Agriculture, forestry and fishing",null,":",null,":",null,":",null,":",null,":",null,":",null,":",null,":",null,":",null,":",null,":",null,":",null,":",null,":",null,":"]
["S11_S12","E3739","EP_P51G_CREP_fc",null,null,null,"E37-39","Sewerage: waste management and remendiation activities",null,":",null,":",null,":",null,":",null,":",null,":",null,":",null,":",null,":",null,":",null,":",null,":",null,":",null,":",null,":"]
["S11_S12","F","EP_P51G_CREP_fc",null,null,null,"F","Construction",null,":",null,":",null,":",null,":",null,":",null,":",null,":",null,":",null,":",null,":",null,":",null,":",null,":",null,":",null,":"]
["S11_S12","H","EP_P51G_CREP_fc",null,null,null,"H","Transportation and storage",null,":",null,":",null,":",null,":",null,":",null,":",null,":",null,":",null,":",null,":",null,":",null,":",null,":",null,":",null,":"]
["S11_S12","L","EP_P51G_CREP_fc",null,null,null,"L","Real estate activities",null,":",null,":",null,":",null,":",null,":",null,":",null,":",null,":",null,":",null,":",null,":",null,":",null,":",null,":",null,":"]

{"sheet":"8.3_Add_2029","index":62,"n_rows":39,"n_cols":38,"rows_kept":39,"cut":false,"hidden":false,"merged":[[3,13,4,14],[3,15,4,16],[3,17,4,18],[3,37,4,38],[3,21,4,22],[3,23,4,24],[3,25,4,26],[3,31,4,32],[3,33,4,34],[3,35,4,36],[3,27,4,28],[3,29,4,30],[3,19,4,20],[0,4,0,8],[1,4,1,8],[1,9,1,32],[1,33,1,38],[2,9,2,32],[2,33,2,38],[17,4,17,5],[17,7,17,8],[4,4,4,7],[6,4,6,5],[6,7,6,8],[7,7,7,8],[8,7,8,8],[9,7,9,8],[3,9,4,10],[3,11,4,12],[25,7,25,8],[12,7,12,8],[13,7,13,8],[14,7,14,8],[15,7,15,8],[16,7,16,8],[18,7,18,8],[19,7,19,8],[20,7,20,8],[23,7,23,8],[24,7,24,8],[38,7,38,8],[26,7,26,8],[27,7,27,8],[28,4,28,5],[28,7,28,8],[29,7,29,8],[30,7,30,8],[31,7,31,8],[34,7,34,8],[35,7,35,8],[36,7,36,8],[37,7,37,8]]}
[null,null,null,null,{"$f":"Cover!B21","v":"QUESTIONNAIRE ON ENVIRONMENTAL PROTECTION EXPENDITURE ACCOUNTS"},null,null,null,null,"GFCF - Corporations: other (also covering producers of ancillary EP services)",null,null,null,null,null,null,null,null,null,null,null,null,null,null,null,null,null,null,null,null,null,null,null,"GFCF - Corporations: other (also covering producers of ancillary RM products)"]
[null,null,null,null,{"$f":"E1","v":"QUESTIONNAIRE ON ENVIRONMENTAL PROTECTION EXPENDITURE ACCOUNTS"},null,null,null,null,{"$f":"J1","v":"GFCF - Corporations: other (also covering producers of ancillary EP services)"},null,null,null,null,null,null,null,null,null,null,null,null,null,null,null,null,null,null,null,null,null,null,null,{"$f":"AH1","v":"GFCF - Corporations: other (also covering producers of ancillary RM products)"}]
[null,null,null,null,null,null,null,null,null,"Figures calculated from information available in the questionnaire",null,null,null,null,null,null,null,null,null,null,null,null,null,null,null,null,null,null,null,null,null,null,null,"Figures calculated from information available in the questionnaire"]
[null,null,null,null,"Country/Unit",{"$f":"IFERROR(Cover!C16,\"\")","v":""},{"$f":"\"\"&Cover!B16","v":""},null,{"$f":"Cover!B17","v":"Million units of national currency"},"CEPA 1",null,"of which CEPA 1.1.2 and 1.2.2 Climate change",null,"CEPA 2",null,"CEPA 3",null,"CEPA 4",null,"CEPA 5",null,"CEPA 6",null,"CEPA 7",null,"CEPA 8",null,"CEPA 9",null,"Sum of CEPA 7+8+9",null,"TOTAL CEPA",null," CReMA\n11B + 13C + 14 \n(Materials recovery)",null,"CReMA13A (Production of energy  from renewable sources)",null,"CReMA13B \n(Energy efficiency and savings)"]
[null,null,null,null,"Expenditure",null,null,null,2029,null,null,null,null,null,null,null,null,null,null,null,null,null,null,null,null,null,null,null,null,"Landscape",null,"Landscape",null,"Landscape",null,"Landscape",null,"Landscape"]
[null,null,null,null,null,null,null,null,2020,"CEPA1",null,"CEPA112_122",null,"CEPA2",null,"CEPA3",null,"CEPA4",null,"CEPA5",null,"CEPA6",null,"CEPA7",null,"CEPA8",null,"CEPA9",null,"CEPA7-9",null,"TOT_CEPA",null,"CREMA 11B_13C_14",null,"CREMA 13A",null,"CREMA 13B"]
["S11_S12","B","EPS_P51G_NP",null,"( P51G_NP.3 ) Gross fixed capital formation and acquisition less disposals of non-financial non-produced assets (integrated and end of pipe technologies)",null,"B","Mining and Quarring",null,{"$f":"'3a'!J22","v":":"},{"$f":"'3a'!K22","v":0},{"$f":"'3a'!L22","v":":"},{"$f":"'3a'!M22","v":0},{"$f":"'3a'!N22","v":":"},{"$f":"'3a'!O22","v":0},{"$f":"'3a'!P22","v":":"},{"$f":"'3a'!Q22","v":0},{"$f":"'3a'!R22","v":":"},{"$f":"'3a'!S22","v":0},{"$f":"'3a'!T22","v":":"},{"$f":"'3a'!U22","v":0},{"$f":"'3a'!V22","v":":"},{"$f":"'3a'!W22","v":0},{"$f":"'3a'!X22","v":":"},{"$f":"'3a'!Y22","v":0},{"$f":"'3a'!Z22","v":":"},{"$f":"'3a'!AA22","v":0},{"$f":"'3a'!AB22","v":":"},{"$f":"'3a'!AC22","v":0},{"$f":"'3a'!AD22","v":":"},{"$f":"'3a'!AE22","v":0},{"$f":"'3a'!AF22","v":":"},{"$f":"'3a'!AG22","v":0},":",null,":",null,":"]
["S11_S12","C","EPS_P51G_NP",null,null,null,"C","Manufacturing",null,{"$f":"'3b'!J22","v":":"},{"$f":"'3b'!K22","v":0},{"$f":"'3b'!L22","v":":"},{"$f":"'3b'!M22","v":0},{"$f":"'3b'!N22","v":":"},{"$f":"'3b'!O22","v":0},{"$f":"'3b'!P22","v":":"},{"$f":"'3b'!Q22","v":0},{"$f":"'3b'!R22","v":":"},{"$f":"'3b'!S22","v":0},{"$f":"'3b'!T22","v":":"},{"$f":"'3b'!U22","v":0},{"$f":"'3b'!V22","v":":"},{"$f":"'3b'!W22","v":0},{"$f":"'3b'!X22","v":":"},{"$f":"'3b'!Y22","v":0},{"$f":"'3b'!Z22","v":":"},{"$f":"'3b'!AA22","v":0},{"$f":"'3b'!AB22","v":":"},{"$f":"'3b'!AC22","v":0},{"$f":"'3b'!AD22","v":":"},{"$f":"'3b'!AE22","v":0},{"$f":"'3b'!AF22","v":":"},{"$f":"'3b'!AG22","v":0},":",null,":",null,":"]
["S11_S12","D","EPS_P51G_NP",null,null,null,"D","Electricity, gas, steam and air conditionning supply",null,{"$f":"'3c'!J22","v":":"},{"$f":"'3c'!K22","v":0},{"$f":"'3c'!L22","v":":"},{"$f":"'3c'!M22","v":0},{"$f":"'3c'!N22","v":":"},{"$f":"'3c'!O22","v":0},{"$f":"'3c'!P22","v":":"},{"$f":"'3c'!Q22","v":0},{"$f":"'3c'!R22","v":":"},{"$f":"'3c'!S22","v":0},{"$f":"'3c'!T22","v":":"},{"$f":"'3c'!U22","v":0},{"$f":"'3c'!V22","v":":"},{"$f":"'3c'!W22","v":0},{"$f":"'3c'!X22","v":":"},{"$f":"'3c'!Y22","v":0},{"$f":"'3c'!Z22","v":":"},{"$f":"'3c'!AA22","v":0},{"$f":"'3c'!AB22","v":":"},{"$f":"'3c'!AC22","v":0},{"$f":"'3c'!AD22","v":":"},{"$f":"'3c'!AE22","v":0},{"$f":"'3c'!AF22","v":":"},{"$f":"'3c'!AG22","v":0},":",null,":",null,":"]
["S11_S12","E36","EPS_P51G_NP",null,null,null,"E36","Water supply",null,{"$f":"'3d'!J22","v":":"},{"$f":"'3d'!K22","v":0},{"$f":"'3d'!L22","v":":"},{"$f":"'3d'!M22","v":0},{"$f":"'3d'!N22","v":":"},{"$f":"'3d'!O22","v":0},{"$f":"'3d'!P22","v":":"},{"$f":"'3d'!Q22","v":0},{"$f":"'3d'!R22","v":":"},{"$f":"'3d'!S22","v":0},{"$f":"'3d'!T22","v":":"},{"$f":"'3d'!U22","v":0},{"$f":"'3d'!V22","v":":"},{"$f":"'3d'!W22","v":0},{"$f":"'3d'!X22","v":":"},{"$f":"'3d'!Y22","v":0},{"$f":"'3d'!Z22","v":":"},{"$f":"'3d'!AA22","v":0},{"$f":"'3d'!AB22","v":":"},{"$f":"'3d'!AC22","v":0},{"$f":"'3d'!AD22","v":":"},{"$f":"'3d'!AE22","v":0},{"$f":"'3d'!AF22","v":":"},{"$f":"'3d'!AG22","v":0},":",null,":",null,":"]
["S11_S12","A_EP_OTH","EPS_P51G_NP",null,null,null,"OTH","OTHER NACE",null,{"$f":"'3e (voluntary)'!J22","v":":"},{"$f":"'3e (voluntary)'!K22","v":0},{"$f":"'3e (voluntary)'!L22","v":":"},{"$f":"'3e (voluntary)'!M22","v":0},{"$f":"'3e (voluntary)'!N22","v":":"},{"$f":"'3e (voluntary)'!O22","v":0},{"$f":"'3e (voluntary)'!P22","v":":"},{"$f":"'3e (voluntary)'!Q22","v":0},{"$f":"'3e (voluntary)'!R22","v":":"},{"$f":"'3e (voluntary)'!S22","v":0},{"$f":"'3e (voluntary)'!T22","v":":"},{"$f":"'3e (voluntary)'!U22","v":0},{"$f":"'3e (voluntary)'!V22","v":":"},{"$f":"'3e (voluntary)'!W22","v":0},{"$f":"'3e (voluntary)'!X22","v":":"},{"$f":"'3e (voluntary)'!Y22","v":0},{"$f":"'3e (voluntary)'!Z22","v":":"},{"$f":"'3e (voluntary)'!AA22","v":0},{"$f":"'3e (voluntary)'!AB22","v":":"},{"$f":"'3e (voluntary)'!AC22","v":0},{"$f":"'3e (voluntary)'!AD22","v":":"},{"$f":"'3e (voluntary)'!AE22","v":0},{"$f":"'3e (voluntary)'!AF22","v":":"},{"$f":"'3e (voluntary)'!AG22","v":0},":",null,":",null,":"]
[null,null,null,null,null,null,null,"of which:"]
["S11_S12","A","EPS_P51G_NP",null,null,null,"A","Agriculture, forestry and fishing",null,":",null,":",null,":",null,":",null,":",null,":",null,":",null,":",null,":",null,":",null,":",null,{"$f":"IF(COUNT(J13,N13,P13, R13,T13,V13,AD13)=7,SUM(J13,N13,P13, R13,T13,V13,AD13),\":\")","v":":"},null,":",null,":"]
["S11_S12","E3739","EPS_P51G_NP",null,null,null,"E37-39","Sewerage: waste management and remendiation activities",null,":",null,":",null,":",null,":",null,":",null,":",null,":",null,":",null,":",null,":",null,":",null,":",null,":",null,":"]
["S11_S12","F","EPS_P51G_NP",null,null,null,"F","Construction",null,":",null,":",null,":",null,":",null,":",null,":",null,":",null,":",null,":",null,":",null,":",null,":",null,":",null,":"]
["S11_S12","H","EPS_P51G_NP",null,null,null,"H","Transportation and storage",null,":",null,":",null,":",null,":",null,":",null,":",null,":",null,":",null,":",null,":",null,":",null,":",null,":",null,":"]
["S11_S12","L","EPS_P51G_NP",null,null,null,"L","Real estate activities",null,":",null,":",null,":",null,":",null,":",null,":",null,":",null,":",null,":",null,":",null,":",null,":",null,":",null,":"]
["S11_S12","B","EP_P51G_CREP_ec",null,"( P51G_CREP_ec.3Add) Gross fixed capital formation  in cleaner and resource efficient products for non characteristic activities - EXTRA COST",null,"B","Mining and Quarring",null,":",null,":",null,":",null,":",null,":",null,":",null,":",null,":",null,":",null,":",null,":",null,":",null,":",null,":",null,":"]
["S11_S12","C","EP_P51G_CREP_ec",null,null,null,"C","Manufacturing",null,":",null,":",null,":",null,":",null,":",null,":",null,":",null,":",null,":",null,":",null,":",null,":",null,":",null,":",null,":"]
["S11_S12","D","EP_P51G_CREP_ec",null,null,null,"D","Electricity, gas, steam and air conditionning supply",null,":",null,":",null,":",null,":",null,":",null,":",null,":",null,":",null,":",null,":",null,":",null,":",null,":",null,":",null,":"]
["S11_S12","E36","EP_P51G_CREP_ec",null,null,null,"E36","Water supply",null,":",null,":",null,":",null,":",null,":",null,":",null,":",null,":",null,":",null,":",null,":",null,":",null,":",null,":",null,":"]
["S11_S12","A_EP_OTH","EP_P51G_CREP_ec",null,null,null,"OTH","OTHER NACE",null,":",null,":",null,":",null,":",null,":",null,":",null,":",null,":",null,":",null,":",null,":",null,":",null,":",null,":",null,":"]
[null,null,null,null,null,null,null,"of which:",null,null,null,null,null,null,null,null,null,null,null,null,null,null,null,null,null,null,null,null,null,null,null,":"]
["S11_S12","A","EP_P51G_CREP_ec",null,null,null,"A","Agriculture, forestry and fishing",null,":",null,":",null,":",null,":",null,":",null,":",null,":",null,":",null,":",null,":",null,":",null,":",null,":",null,":",null,":"]
["S11_S12","E3739","EP_P51G_CREP_ec",null,null,null,"E37-39","Sewerage: waste management and remendiation activities",null,":",null,":",null,":",null,":",null,":",null,":",null,":",null,":",null,":",null,":",null,":",null,":",null,":",null,":",null,":"]
["S11_S12","F","EP_P51G_CREP_ec",null,null,null,"F","Construction",null,":",null,":",null,":",null,":",null,":",null,":",null,":",null,":",null,":",null,":",null,":",null,":",null,":",null,":",null,":"]
["S11_S12","H","EP_P51G_CREP_ec",null,null,null,"H","Transportation and storage",null,":",null,":",null,":",null,":",null,":",null,":",null,":",null,":",null,":",null,":",null,":",null,":",null,":",null,":",null,":"]
["S11_S12","L","EP_P51G_CREP_ec",null,null,null,"L","Real estate activities",null,":",null,":",null,":",null,":",null,":",null,":",null,":",null,":",null,":",null,":",null,":",null,":",null,":",null,":",null,":"]
["S11_S12","B","EP_P51G_CREP_fc",null,"( P51G_NP_CREP_fc.3Add ) Gross fixed capital formation and acquisition less disposals of non-financial non-produced assets in cleaner and resource efficient products - FULL COST",null,"B","Mining and Quarring",null,":",null,":",null,":",null,":",null,":",null,":",null,":",null,":",null,":",null,":",null,":",null,":",null,":",null,":",null,":"]
["S11_S12","C","EP_P51G_CREP_fc",null,null,null,"C","Manufacturing",null,":",null,":",null,":",null,":",null,":",null,":",null,":",null,":",null,":",null,":",null,":",null,":",null,":",null,":",null,":"]
["S11_S12","D","EP_P51G_CREP_fc",null,null,null,"D","Electricity, gas, steam and air conditionning supply",null,":",null,":",null,":",null,":",null,":",null,":",null,":",null,":",null,":",null,":",null,":",null,":",null,":",null,":",null,":"]
["S11_S12","E36","EP_P51G_CREP_fc",null,null,null,"E36","Water supply",null,":",null,":",null,":",null,":",null,":",null,":",null,":",null,":",null,":",null,":",null,":",null,":",null,":",null,":",null,":"]
["S11_S12","A_EP_OTH","EP_P51G_CREP_fc",null,null,null,"OTH","OTHER NACE",null,":",null,":",null,":",null,":",null,":",null,":",null,":",null,":",null,":",null,":",null,":",null,":",null,":",null,":",null,":"]
[null,null,null,null,null,null,null,"of which:",null,null,null,null,null,null,null,null,null,null,null,null,null,null,null,null,null,null,null,null,null,null,null,":"]
["S11_S12","A","EP_P51G_CREP_fc",null,null,null,"A","Agriculture, forestry and fishing",null,":",null,":",null,":",null,":",null,":",null,":",null,":",null,":",null,":",null,":",null,":",null,":",null,":",null,":",null,":"]
["S11_S12","E3739","EP_P51G_CREP_fc",null,null,null,"E37-39","Sewerage: waste management and remendiation activities",null,":",null,":",null,":",null,":",null,":",null,":",null,":",null,":",null,":",null,":",null,":",null,":",null,":",null,":",null,":"]
["S11_S12","F","EP_P51G_CREP_fc",null,null,null,"F","Construction",null,":",null,":",null,":",null,":",null,":",null,":",null,":",null,":",null,":",null,":",null,":",null,":",null,":",null,":",null,":"]
["S11_S12","H","EP_P51G_CREP_fc",null,null,null,"H","Transportation and storage",null,":",null,":",null,":",null,":",null,":",null,":",null,":",null,":",null,":",null,":",null,":",null,":",null,":",null,":",null,":"]
["S11_S12","L","EP_P51G_CREP_fc",null,null,null,"L","Real estate activities",null,":",null,":",null,":",null,":",null,":",null,":",null,":",null,":",null,":",null,":",null,":",null,":",null,":",null,":",null,":"]

{"sheet":"8.3_Add_2030","index":63,"n_rows":39,"n_cols":38,"rows_kept":39,"cut":false,"hidden":false,"merged":[[3,13,4,14],[3,15,4,16],[3,17,4,18],[3,37,4,38],[3,21,4,22],[3,23,4,24],[3,25,4,26],[3,31,4,32],[3,33,4,34],[3,35,4,36],[3,27,4,28],[3,29,4,30],[3,19,4,20],[0,4,0,8],[1,4,1,8],[1,9,1,32],[1,33,1,38],[2,9,2,32],[2,33,2,38],[17,4,17,5],[17,7,17,8],[4,4,4,7],[6,4,6,5],[6,7,6,8],[7,7,7,8],[8,7,8,8],[9,7,9,8],[3,9,4,10],[3,11,4,12],[25,7,25,8],[12,7,12,8],[13,7,13,8],[14,7,14,8],[15,7,15,8],[16,7,16,8],[18,7,18,8],[19,7,19,8],[20,7,20,8],[23,7,23,8],[24,7,24,8],[38,7,38,8],[26,7,26,8],[27,7,27,8],[28,4,28,5],[28,7,28,8],[29,7,29,8],[30,7,30,8],[31,7,31,8],[34,7,34,8],[35,7,35,8],[36,7,36,8],[37,7,37,8]]}
[null,null,null,null,{"$f":"Cover!B21","v":"QUESTIONNAIRE ON ENVIRONMENTAL PROTECTION EXPENDITURE ACCOUNTS"},null,null,null,null,"GFCF - Corporations: other (also covering producers of ancillary EP services)",null,null,null,null,null,null,null,null,null,null,null,null,null,null,null,null,null,null,null,null,null,null,null,"GFCF - Corporations: other (also covering producers of ancillary RM products)"]
[null,null,null,null,{"$f":"E1","v":"QUESTIONNAIRE ON ENVIRONMENTAL PROTECTION EXPENDITURE ACCOUNTS"},null,null,null,null,{"$f":"J1","v":"GFCF - Corporations: other (also covering producers of ancillary EP services)"},null,null,null,null,null,null,null,null,null,null,null,null,null,null,null,null,null,null,null,null,null,null,null,{"$f":"AH1","v":"GFCF - Corporations: other (also covering producers of ancillary RM products)"}]
[null,null,null,null,null,null,null,null,null,"Figures calculated from information available in the questionnaire",null,null,null,null,null,null,null,null,null,null,null,null,null,null,null,null,null,null,null,null,null,null,null,"Figures calculated from information available in the questionnaire"]
[null,null,null,null,"Country/Unit",{"$f":"IFERROR(Cover!C16,\"\")","v":""},{"$f":"\"\"&Cover!B16","v":""},null,{"$f":"Cover!B17","v":"Million units of national currency"},"CEPA 1",null,"of which CEPA 1.1.2 and 1.2.2 Climate change",null,"CEPA 2",null,"CEPA 3",null,"CEPA 4",null,"CEPA 5",null,"CEPA 6",null,"CEPA 7",null,"CEPA 8",null,"CEPA 9",null,"Sum of CEPA 7+8+9",null,"TOTAL CEPA",null," CReMA\n11B + 13C + 14 \n(Materials recovery)",null,"CReMA13A (Production of energy  from renewable sources)",null,"CReMA13B \n(Energy efficiency and savings)"]
[null,null,null,null,"Expenditure",null,null,null,2030,null,null,null,null,null,null,null,null,null,null,null,null,null,null,null,null,null,null,null,null,"Landscape",null,"Landscape",null,"Landscape",null,"Landscape",null,"Landscape"]
[null,null,null,null,null,null,null,null,2020,"CEPA1",null,"CEPA112_122",null,"CEPA2",null,"CEPA3",null,"CEPA4",null,"CEPA5",null,"CEPA6",null,"CEPA7",null,"CEPA8",null,"CEPA9",null,"CEPA7-9",null,"TOT_CEPA",null,"CREMA 11B_13C_14",null,"CREMA 13A",null,"CREMA 13B"]
["S11_S12","B","EPS_P51G_NP",null,"( P51G_NP.3 ) Gross fixed capital formation and acquisition less disposals of non-financial non-produced assets (integrated and end of pipe technologies)",null,"B","Mining and Quarring",null,{"$f":"'3a'!J23","v":":"},{"$f":"'3a'!K23","v":0},{"$f":"'3a'!L23","v":":"},{"$f":"'3a'!M23","v":0},{"$f":"'3a'!N23","v":":"},{"$f":"'3a'!O23","v":0},{"$f":"'3a'!P23","v":":"},{"$f":"'3a'!Q23","v":0},{"$f":"'3a'!R23","v":":"},{"$f":"'3a'!S23","v":0},{"$f":"'3a'!T23","v":":"},{"$f":"'3a'!U23","v":0},{"$f":"'3a'!V23","v":":"},{"$f":"'3a'!W23","v":0},{"$f":"'3a'!X23","v":":"},{"$f":"'3a'!Y23","v":0},{"$f":"'3a'!Z23","v":":"},{"$f":"'3a'!AA23","v":0},{"$f":"'3a'!AB23","v":":"},{"$f":"'3a'!AC23","v":0},{"$f":"'3a'!AD23","v":":"},{"$f":"'3a'!AE23","v":0},{"$f":"'3a'!AF23","v":":"},{"$f":"'3a'!AG23","v":0},":",null,":",null,":"]
["S11_S12","C","EPS_P51G_NP",null,null,null,"C","Manufacturing",null,{"$f":"'3b'!J23","v":":"},{"$f":"'3b'!K23","v":0},{"$f":"'3b'!L23","v":":"},{"$f":"'3b'!M23","v":0},{"$f":"'3b'!N23","v":":"},{"$f":"'3b'!O23","v":0},{"$f":"'3b'!P23","v":":"},{"$f":"'3b'!Q23","v":0},{"$f":"'3b'!R23","v":":"},{"$f":"'3b'!S23","v":0},{"$f":"'3b'!T23","v":":"},{"$f":"'3b'!U23","v":0},{"$f":"'3b'!V23","v":":"},{"$f":"'3b'!W23","v":0},{"$f":"'3b'!X23","v":":"},{"$f":"'3b'!Y23","v":0},{"$f":"'3b'!Z23","v":":"},{"$f":"'3b'!AA23","v":0},{"$f":"'3b'!AB23","v":":"},{"$f":"'3b'!AC23","v":0},{"$f":"'3b'!AD23","v":":"},{"$f":"'3b'!AE23","v":0},{"$f":"'3b'!AF23","v":":"},{"$f":"'3b'!AG23","v":0},":",null,":",null,":"]
["S11_S12","D","EPS_P51G_NP",null,null,null,"D","Electricity, gas, steam and air conditionning supply",null,{"$f":"'3c'!J23","v":":"},{"$f":"'3c'!K23","v":0},{"$f":"'3c'!L23","v":":"},{"$f":"'3c'!M23","v":0},{"$f":"'3c'!N23","v":":"},{"$f":"'3c'!O23","v":0},{"$f":"'3c'!P23","v":":"},{"$f":"'3c'!Q23","v":0},{"$f":"'3c'!R23","v":":"},{"$f":"'3c'!S23","v":0},{"$f":"'3c'!T23","v":":"},{"$f":"'3c'!U23","v":0},{"$f":"'3c'!V23","v":":"},{"$f":"'3c'!W23","v":0},{"$f":"'3c'!X23","v":":"},{"$f":"'3c'!Y23","v":0},{"$f":"'3c'!Z23","v":":"},{"$f":"'3c'!AA23","v":0},{"$f":"'3c'!AB23","v":":"},{"$f":"'3c'!AC23","v":0},{"$f":"'3c'!AD23","v":":"},{"$f":"'3c'!AE23","v":0},{"$f":"'3c'!AF23","v":":"},{"$f":"'3c'!AG23","v":0},":",null,":",null,":"]
["S11_S12","E36","EPS_P51G_NP",null,null,null,"E36","Water supply",null,{"$f":"'3d'!J23","v":":"},{"$f":"'3d'!K23","v":0},{"$f":"'3d'!L23","v":":"},{"$f":"'3d'!M23","v":0},{"$f":"'3d'!N23","v":":"},{"$f":"'3d'!O23","v":0},{"$f":"'3d'!P23","v":":"},{"$f":"'3d'!Q23","v":0},{"$f":"'3d'!R23","v":":"},{"$f":"'3d'!S23","v":0},{"$f":"'3d'!T23","v":":"},{"$f":"'3d'!U23","v":0},{"$f":"'3d'!V23","v":":"},{"$f":"'3d'!W23","v":0},{"$f":"'3d'!X23","v":":"},{"$f":"'3d'!Y23","v":0},{"$f":"'3d'!Z23","v":":"},{"$f":"'3d'!AA23","v":0},{"$f":"'3d'!AB23","v":":"},{"$f":"'3d'!AC23","v":0},{"$f":"'3d'!AD23","v":":"},{"$f":"'3d'!AE23","v":0},{"$f":"'3d'!AF23","v":":"},{"$f":"'3d'!AG23","v":0},":",null,":",null,":"]
["S11_S12","A_EP_OTH","EPS_P51G_NP",null,null,null,"OTH","OTHER NACE",null,{"$f":"'3e (voluntary)'!J23","v":":"},{"$f":"'3e (voluntary)'!K23","v":0},{"$f":"'3e (voluntary)'!L23","v":":"},{"$f":"'3e (voluntary)'!M23","v":0},{"$f":"'3e (voluntary)'!N23","v":":"},{"$f":"'3e (voluntary)'!O23","v":0},{"$f":"'3e (voluntary)'!P23","v":":"},{"$f":"'3e (voluntary)'!Q23","v":0},{"$f":"'3e (voluntary)'!R23","v":":"},{"$f":"'3e (voluntary)'!S23","v":0},{"$f":"'3e (voluntary)'!T23","v":":"},{"$f":"'3e (voluntary)'!U23","v":0},{"$f":"'3e (voluntary)'!V23","v":":"},{"$f":"'3e (voluntary)'!W23","v":0},{"$f":"'3e (voluntary)'!X23","v":":"},{"$f":"'3e (voluntary)'!Y23","v":0},{"$f":"'3e (voluntary)'!Z23","v":":"},{"$f":"'3e (voluntary)'!AA23","v":0},{"$f":"'3e (voluntary)'!AB23","v":":"},{"$f":"'3e (voluntary)'!AC23","v":0},{"$f":"'3e (voluntary)'!AD23","v":":"},{"$f":"'3e (voluntary)'!AE23","v":0},{"$f":"'3e (voluntary)'!AF23","v":":"},{"$f":"'3e (voluntary)'!AG23","v":0},":",null,":",null,":"]
[null,null,null,null,null,null,null,"of which:"]
["S11_S12","A","EPS_P51G_NP",null,null,null,"A","Agriculture, forestry and fishing",null,":",null,":",null,":",null,":",null,":",null,":",null,":",null,":",null,":",null,":",null,":",null,{"$f":"IF(COUNT(J13,N13,P13, R13,T13,V13,AD13)=7,SUM(J13,N13,P13, R13,T13,V13,AD13),\":\")","v":":"},null,":",null,":"]
["S11_S12","E3739","EPS_P51G_NP",null,null,null,"E37-39","Sewerage: waste management and remendiation activities",null,":",null,":",null,":",null,":",null,":",null,":",null,":",null,":",null,":",null,":",null,":",null,":",null,":",null,":"]
["S11_S12","F","EPS_P51G_NP",null,null,null,"F","Construction",null,":",null,":",null,":",null,":",null,":",null,":",null,":",null,":",null,":",null,":",null,":",null,":",null,":",null,":"]
["S11_S12","H","EPS_P51G_NP",null,null,null,"H","Transportation and storage",null,":",null,":",null,":",null,":",null,":",null,":",null,":",null,":",null,":",null,":",null,":",null,":",null,":",null,":"]
["S11_S12","L","EPS_P51G_NP",null,null,null,"L","Real estate activities",null,":",null,":",null,":",null,":",null,":",null,":",null,":",null,":",null,":",null,":",null,":",null,":",null,":",null,":"]
["S11_S12","B","EP_P51G_CREP_ec",null,"( P51G_CREP_ec.3Add) Gross fixed capital formation  in cleaner and resource efficient products for non characteristic activities - EXTRA COST",null,"B","Mining and Quarring",null,":",null,":",null,":",null,":",null,":",null,":",null,":",null,":",null,":",null,":",null,":",null,":",null,":",null,":",null,":"]
["S11_S12","C","EP_P51G_CREP_ec",null,null,null,"C","Manufacturing",null,":",null,":",null,":",null,":",null,":",null,":",null,":",null,":",null,":",null,":",null,":",null,":",null,":",null,":",null,":"]
["S11_S12","D","EP_P51G_CREP_ec",null,null,null,"D","Electricity, gas, steam and air conditionning supply",null,":",null,":",null,":",null,":",null,":",null,":",null,":",null,":",null,":",null,":",null,":",null,":",null,":",null,":",null,":"]
["S11_S12","E36","EP_P51G_CREP_ec",null,null,null,"E36","Water supply",null,":",null,":",null,":",null,":",null,":",null,":",null,":",null,":",null,":",null,":",null,":",null,":",null,":",null,":",null,":"]
["S11_S12","A_EP_OTH","EP_P51G_CREP_ec",null,null,null,"OTH","OTHER NACE",null,":",null,":",null,":",null,":",null,":",null,":",null,":",null,":",null,":",null,":",null,":",null,":",null,":",null,":",null,":"]
[null,null,null,null,null,null,null,"of which:",null,null,null,null,null,null,null,null,null,null,null,null,null,null,null,null,null,null,null,null,null,null,null,":"]
["S11_S12","A","EP_P51G_CREP_ec",null,null,null,"A","Agriculture, forestry and fishing",null,":",null,":",null,":",null,":",null,":",null,":",null,":",null,":",null,":",null,":",null,":",null,":",null,":",null,":",null,":"]
["S11_S12","E3739","EP_P51G_CREP_ec",null,null,null,"E37-39","Sewerage: waste management and remendiation activities",null,":",null,":",null,":",null,":",null,":",null,":",null,":",null,":",null,":",null,":",null,":",null,":",null,":",null,":",null,":"]
["S11_S12","F","EP_P51G_CREP_ec",null,null,null,"F","Construction",null,":",null,":",null,":",null,":",null,":",null,":",null,":",null,":",null,":",null,":",null,":",null,":",null,":",null,":",null,":"]
["S11_S12","H","EP_P51G_CREP_ec",null,null,null,"H","Transportation and storage",null,":",null,":",null,":",null,":",null,":",null,":",null,":",null,":",null,":",null,":",null,":",null,":",null,":",null,":",null,":"]
["S11_S12","L","EP_P51G_CREP_ec",null,null,null,"L","Real estate activities",null,":",null,":",null,":",null,":",null,":",null,":",null,":",null,":",null,":",null,":",null,":",null,":",null,":",null,":",null,":"]
["S11_S12","B","EP_P51G_CREP_fc",null,"( P51G_NP_CREP_fc.3Add ) Gross fixed capital formation and acquisition less disposals of non-financial non-produced assets in cleaner and resource efficient products - FULL COST",null,"B","Mining and Quarring",null,":",null,":",null,":",null,":",null,":",null,":",null,":",null,":",null,":",null,":",null,":",null,":",null,":",null,":",null,":"]
["S11_S12","C","EP_P51G_CREP_fc",null,null,null,"C","Manufacturing",null,":",null,":",null,":",null,":",null,":",null,":",null,":",null,":",null,":",null,":",null,":",null,":",null,":",null,":",null,":"]
["S11_S12","D","EP_P51G_CREP_fc",null,null,null,"D","Electricity, gas, steam and air conditionning supply",null,":",null,":",null,":",null,":",null,":",null,":",null,":",null,":",null,":",null,":",null,":",null,":",null,":",null,":",null,":"]
["S11_S12","E36","EP_P51G_CREP_fc",null,null,null,"E36","Water supply",null,":",null,":",null,":",null,":",null,":",null,":",null,":",null,":",null,":",null,":",null,":",null,":",null,":",null,":",null,":"]
["S11_S12","A_EP_OTH","EP_P51G_CREP_fc",null,null,null,"OTH","OTHER NACE",null,":",null,":",null,":",null,":",null,":",null,":",null,":",null,":",null,":",null,":",null,":",null,":",null,":",null,":",null,":"]
[null,null,null,null,null,null,null,"of which:",null,null,null,null,null,null,null,null,null,null,null,null,null,null,null,null,null,null,null,null,null,null,null,":"]
["S11_S12","A","EP_P51G_CREP_fc",null,null,null,"A","Agriculture, forestry and fishing",null,":",null,":",null,":",null,":",null,":",null,":",null,":",null,":",null,":",null,":",null,":",null,":",null,":",null,":",null,":"]
["S11_S12","E3739","EP_P51G_CREP_fc",null,null,null,"E37-39","Sewerage: waste management and remendiation activities",null,":",null,":",null,":",null,":",null,":",null,":",null,":",null,":",null,":",null,":",null,":",null,":",null,":",null,":",null,":"]
["S11_S12","F","EP_P51G_CREP_fc",null,null,null,"F","Construction",null,":",null,":",null,":",null,":",null,":",null,":",null,":",null,":",null,":",null,":",null,":",null,":",null,":",null,":",null,":"]
["S11_S12","H","EP_P51G_CREP_fc",null,null,null,"H","Transportation and storage",null,":",null,":",null,":",null,":",null,":",null,":",null,":",null,":",null,":",null,":",null,":",null,":",null,":",null,":",null,":"]
["S11_S12","L","EP_P51G_CREP_fc",null,null,null,"L","Real estate activities",null,":",null,":",null,":",null,":",null,":",null,":",null,":",null,":",null,":",null,":",null,":",null,":",null,":",null,":",null,":"]

{"sheet":"8.3_Add_2031","index":64,"n_rows":39,"n_cols":38,"rows_kept":39,"cut":false,"hidden":false,"merged":[[3,13,4,14],[3,15,4,16],[3,17,4,18],[3,37,4,38],[3,21,4,22],[3,23,4,24],[3,25,4,26],[3,31,4,32],[3,33,4,34],[3,35,4,36],[3,27,4,28],[3,29,4,30],[3,19,4,20],[0,4,0,8],[1,4,1,8],[1,9,1,32],[1,33,1,38],[2,9,2,32],[2,33,2,38],[17,4,17,5],[17,7,17,8],[4,4,4,7],[6,4,6,5],[6,7,6,8],[7,7,7,8],[8,7,8,8],[9,7,9,8],[3,9,4,10],[3,11,4,12],[25,7,25,8],[12,7,12,8],[13,7,13,8],[14,7,14,8],[15,7,15,8],[16,7,16,8],[18,7,18,8],[19,7,19,8],[20,7,20,8],[23,7,23,8],[24,7,24,8],[38,7,38,8],[26,7,26,8],[27,7,27,8],[28,4,28,5],[28,7,28,8],[29,7,29,8],[30,7,30,8],[31,7,31,8],[34,7,34,8],[35,7,35,8],[36,7,36,8],[37,7,37,8]]}
[null,null,null,null,{"$f":"Cover!B21","v":"QUESTIONNAIRE ON ENVIRONMENTAL PROTECTION EXPENDITURE ACCOUNTS"},null,null,null,null,"GFCF - Corporations: other (also covering producers of ancillary EP services)",null,null,null,null,null,null,null,null,null,null,null,null,null,null,null,null,null,null,null,null,null,null,null,"GFCF - Corporations: other (also covering producers of ancillary RM products)"]
[null,null,null,null,{"$f":"E1","v":"QUESTIONNAIRE ON ENVIRONMENTAL PROTECTION EXPENDITURE ACCOUNTS"},null,null,null,null,{"$f":"J1","v":"GFCF - Corporations: other (also covering producers of ancillary EP services)"},null,null,null,null,null,null,null,null,null,null,null,null,null,null,null,null,null,null,null,null,null,null,null,{"$f":"AH1","v":"GFCF - Corporations: other (also covering producers of ancillary RM products)"}]
[null,null,null,null,null,null,null,null,null,"Figures calculated from information available in the questionnaire",null,null,null,null,null,null,null,null,null,null,null,null,null,null,null,null,null,null,null,null,null,null,null,"Figures calculated from information available in the questionnaire"]
[null,null,null,null,"Country/Unit",{"$f":"IFERROR(Cover!C16,\"\")","v":""},{"$f":"\"\"&Cover!B16","v":""},null,{"$f":"Cover!B17","v":"Million units of national currency"},"CEPA 1",null,"of which CEPA 1.1.2 and 1.2.2 Climate change",null,"CEPA 2",null,"CEPA 3",null,"CEPA 4",null,"CEPA 5",null,"CEPA 6",null,"CEPA 7",null,"CEPA 8",null,"CEPA 9",null,"Sum of CEPA 7+8+9",null,"TOTAL CEPA",null," CReMA\n11B + 13C + 14 \n(Materials recovery)",null,"CReMA13A (Production of energy  from renewable sources)",null,"CReMA13B \n(Energy efficiency and savings)"]
[null,null,null,null,"Expenditure",null,null,null,2031,null,null,null,null,null,null,null,null,null,null,null,null,null,null,null,null,null,null,null,null,"Landscape",null,"Landscape",null,"Landscape",null,"Landscape",null,"Landscape"]
[null,null,null,null,null,null,null,null,2020,"CEPA1",null,"CEPA112_122",null,"CEPA2",null,"CEPA3",null,"CEPA4",null,"CEPA5",null,"CEPA6",null,"CEPA7",null,"CEPA8",null,"CEPA9",null,"CEPA7-9",null,"TOT_CEPA",null,"CREMA 11B_13C_14",null,"CREMA 13A",null,"CREMA 13B"]
["S11_S12","B","EPS_P51G_NP",null,"( P51G_NP.3 ) Gross fixed capital formation and acquisition less disposals of non-financial non-produced assets (integrated and end of pipe technologies)",null,"B","Mining and Quarring",null,{"$f":"'3a'!J24","v":":"},{"$f":"'3a'!K24","v":0},{"$f":"'3a'!L24","v":":"},{"$f":"'3a'!M24","v":0},{"$f":"'3a'!N24","v":":"},{"$f":"'3a'!O24","v":0},{"$f":"'3a'!P24","v":":"},{"$f":"'3a'!Q24","v":0},{"$f":"'3a'!R24","v":":"},{"$f":"'3a'!S24","v":0},{"$f":"'3a'!T24","v":":"},{"$f":"'3a'!U24","v":0},{"$f":"'3a'!V24","v":":"},{"$f":"'3a'!W24","v":0},{"$f":"'3a'!X24","v":":"},{"$f":"'3a'!Y24","v":0},{"$f":"'3a'!Z24","v":":"},{"$f":"'3a'!AA24","v":0},{"$f":"'3a'!AB24","v":":"},{"$f":"'3a'!AC24","v":0},{"$f":"'3a'!AD24","v":":"},{"$f":"'3a'!AE24","v":0},{"$f":"'3a'!AF24","v":":"},{"$f":"'3a'!AG24","v":0},":",null,":",null,":"]
["S11_S12","C","EPS_P51G_NP",null,null,null,"C","Manufacturing",null,{"$f":"'3b'!J24","v":":"},{"$f":"'3b'!K24","v":0},{"$f":"'3b'!L24","v":":"},{"$f":"'3b'!M24","v":0},{"$f":"'3b'!N24","v":":"},{"$f":"'3b'!O24","v":0},{"$f":"'3b'!P24","v":":"},{"$f":"'3b'!Q24","v":0},{"$f":"'3b'!R24","v":":"},{"$f":"'3b'!S24","v":0},{"$f":"'3b'!T24","v":":"},{"$f":"'3b'!U24","v":0},{"$f":"'3b'!V24","v":":"},{"$f":"'3b'!W24","v":0},{"$f":"'3b'!X24","v":":"},{"$f":"'3b'!Y24","v":0},{"$f":"'3b'!Z24","v":":"},{"$f":"'3b'!AA24","v":0},{"$f":"'3b'!AB24","v":":"},{"$f":"'3b'!AC24","v":0},{"$f":"'3b'!AD24","v":":"},{"$f":"'3b'!AE24","v":0},{"$f":"'3b'!AF24","v":":"},{"$f":"'3b'!AG24","v":0},":",null,":",null,":"]
["S11_S12","D","EPS_P51G_NP",null,null,null,"D","Electricity, gas, steam and air conditionning supply",null,{"$f":"'3c'!J24","v":":"},{"$f":"'3c'!K24","v":0},{"$f":"'3c'!L24","v":":"},{"$f":"'3c'!M24","v":0},{"$f":"'3c'!N24","v":":"},{"$f":"'3c'!O24","v":0},{"$f":"'3c'!P24","v":":"},{"$f":"'3c'!Q24","v":0},{"$f":"'3c'!R24","v":":"},{"$f":"'3c'!S24","v":0},{"$f":"'3c'!T24","v":":"},{"$f":"'3c'!U24","v":0},{"$f":"'3c'!V24","v":":"},{"$f":"'3c'!W24","v":0},{"$f":"'3c'!X24","v":":"},{"$f":"'3c'!Y24","v":0},{"$f":"'3c'!Z24","v":":"},{"$f":"'3c'!AA24","v":0},{"$f":"'3c'!AB24","v":":"},{"$f":"'3c'!AC24","v":0},{"$f":"'3c'!AD24","v":":"},{"$f":"'3c'!AE24","v":0},{"$f":"'3c'!AF24","v":":"},{"$f":"'3c'!AG24","v":0},":",null,":",null,":"]
["S11_S12","E36","EPS_P51G_NP",null,null,null,"E36","Water supply",null,{"$f":"'3d'!J24","v":":"},{"$f":"'3d'!K24","v":0},{"$f":"'3d'!L24","v":":"},{"$f":"'3d'!M24","v":0},{"$f":"'3d'!N24","v":":"},{"$f":"'3d'!O24","v":0},{"$f":"'3d'!P24","v":":"},{"$f":"'3d'!Q24","v":0},{"$f":"'3d'!R24","v":":"},{"$f":"'3d'!S24","v":0},{"$f":"'3d'!T24","v":":"},{"$f":"'3d'!U24","v":0},{"$f":"'3d'!V24","v":":"},{"$f":"'3d'!W24","v":0},{"$f":"'3d'!X24","v":":"},{"$f":"'3d'!Y24","v":0},{"$f":"'3d'!Z24","v":":"},{"$f":"'3d'!AA24","v":0},{"$f":"'3d'!AB24","v":":"},{"$f":"'3d'!AC24","v":0},{"$f":"'3d'!AD24","v":":"},{"$f":"'3d'!AE24","v":0},{"$f":"'3d'!AF24","v":":"},{"$f":"'3d'!AG24","v":0},":",null,":",null,":"]
["S11_S12","A_EP_OTH","EPS_P51G_NP",null,null,null,"OTH","OTHER NACE",null,{"$f":"'3e (voluntary)'!J24","v":":"},{"$f":"'3e (voluntary)'!K24","v":0},{"$f":"'3e (voluntary)'!L24","v":":"},{"$f":"'3e (voluntary)'!M24","v":0},{"$f":"'3e (voluntary)'!N24","v":":"},{"$f":"'3e (voluntary)'!O24","v":0},{"$f":"'3e (voluntary)'!P24","v":":"},{"$f":"'3e (voluntary)'!Q24","v":0},{"$f":"'3e (voluntary)'!R24","v":":"},{"$f":"'3e (voluntary)'!S24","v":0},{"$f":"'3e (voluntary)'!T24","v":":"},{"$f":"'3e (voluntary)'!U24","v":0},{"$f":"'3e (voluntary)'!V24","v":":"},{"$f":"'3e (voluntary)'!W24","v":0},{"$f":"'3e (voluntary)'!X24","v":":"},{"$f":"'3e (voluntary)'!Y24","v":0},{"$f":"'3e (voluntary)'!Z24","v":":"},{"$f":"'3e (voluntary)'!AA24","v":0},{"$f":"'3e (voluntary)'!AB24","v":":"},{"$f":"'3e (voluntary)'!AC24","v":0},{"$f":"'3e (voluntary)'!AD24","v":":"},{"$f":"'3e (voluntary)'!AE24","v":0},{"$f":"'3e (voluntary)'!AF24","v":":"},{"$f":"'3e (voluntary)'!AG24","v":0},":",null,":",null,":"]
[null,null,null,null,null,null,null,"of which:"]
["S11_S12","A","EPS_P51G_NP",null,null,null,"A","Agriculture, forestry and fishing",null,":",null,":",null,":",null,":",null,":",null,":",null,":",null,":",null,":",null,":",null,":",null,{"$f":"IF(COUNT(J13,N13,P13, R13,T13,V13,AD13)=7,SUM(J13,N13,P13, R13,T13,V13,AD13),\":\")","v":":"},null,":",null,":"]
["S11_S12","E3739","EPS_P51G_NP",null,null,null,"E37-39","Sewerage: waste management and remendiation activities",null,":",null,":",null,":",null,":",null,":",null,":",null,":",null,":",null,":",null,":",null,":",null,":",null,":",null,":"]
["S11_S12","F","EPS_P51G_NP",null,null,null,"F","Construction",null,":",null,":",null,":",null,":",null,":",null,":",null,":",null,":",null,":",null,":",null,":",null,":",null,":",null,":"]
["S11_S12","H","EPS_P51G_NP",null,null,null,"H","Transportation and storage",null,":",null,":",null,":",null,":",null,":",null,":",null,":",null,":",null,":",null,":",null,":",null,":",null,":",null,":"]
["S11_S12","L","EPS_P51G_NP",null,null,null,"L","Real estate activities",null,":",null,":",null,":",null,":",null,":",null,":",null,":",null,":",null,":",null,":",null,":",null,":",null,":",null,":"]
["S11_S12","B","EP_P51G_CREP_ec",null,"( P51G_CREP_ec.3Add) Gross fixed capital formation  in cleaner and resource efficient products for non characteristic activities - EXTRA COST",null,"B","Mining and Quarring",null,":",null,":",null,":",null,":",null,":",null,":",null,":",null,":",null,":",null,":",null,":",null,":",null,":",null,":",null,":"]
["S11_S12","C","EP_P51G_CREP_ec",null,null,null,"C","Manufacturing",null,":",null,":",null,":",null,":",null,":",null,":",null,":",null,":",null,":",null,":",null,":",null,":",null,":",null,":",null,":"]
["S11_S12","D","EP_P51G_CREP_ec",null,null,null,"D","Electricity, gas, steam and air conditionning supply",null,":",null,":",null,":",null,":",null,":",null,":",null,":",null,":",null,":",null,":",null,":",null,":",null,":",null,":",null,":"]
["S11_S12","E36","EP_P51G_CREP_ec",null,null,null,"E36","Water supply",null,":",null,":",null,":",null,":",null,":",null,":",null,":",null,":",null,":",null,":",null,":",null,":",null,":",null,":",null,":"]
["S11_S12","A_EP_OTH","EP_P51G_CREP_ec",null,null,null,"OTH","OTHER NACE",null,":",null,":",null,":",null,":",null,":",null,":",null,":",null,":",null,":",null,":",null,":",null,":",null,":",null,":",null,":"]
[null,null,null,null,null,null,null,"of which:",null,null,null,null,null,null,null,null,null,null,null,null,null,null,null,null,null,null,null,null,null,null,null,":"]
["S11_S12","A","EP_P51G_CREP_ec",null,null,null,"A","Agriculture, forestry and fishing",null,":",null,":",null,":",null,":",null,":",null,":",null,":",null,":",null,":",null,":",null,":",null,":",null,":",null,":",null,":"]
["S11_S12","E3739","EP_P51G_CREP_ec",null,null,null,"E37-39","Sewerage: waste management and remendiation activities",null,":",null,":",null,":",null,":",null,":",null,":",null,":",null,":",null,":",null,":",null,":",null,":",null,":",null,":",null,":"]
["S11_S12","F","EP_P51G_CREP_ec",null,null,null,"F","Construction",null,":",null,":",null,":",null,":",null,":",null,":",null,":",null,":",null,":",null,":",null,":",null,":",null,":",null,":",null,":"]
["S11_S12","H","EP_P51G_CREP_ec",null,null,null,"H","Transportation and storage",null,":",null,":",null,":",null,":",null,":",null,":",null,":",null,":",null,":",null,":",null,":",null,":",null,":",null,":",null,":"]
["S11_S12","L","EP_P51G_CREP_ec",null,null,null,"L","Real estate activities",null,":",null,":",null,":",null,":",null,":",null,":",null,":",null,":",null,":",null,":",null,":",null,":",null,":",null,":",null,":"]
["S11_S12","B","EP_P51G_CREP_fc",null,"( P51G_NP_CREP_fc.3Add ) Gross fixed capital formation and acquisition less disposals of non-financial non-produced assets in cleaner and resource efficient products - FULL COST",null,"B","Mining and Quarring",null,":",null,":",null,":",null,":",null,":",null,":",null,":",null,":",null,":",null,":",null,":",null,":",null,":",null,":",null,":"]
["S11_S12","C","EP_P51G_CREP_fc",null,null,null,"C","Manufacturing",null,":",null,":",null,":",null,":",null,":",null,":",null,":",null,":",null,":",null,":",null,":",null,":",null,":",null,":",null,":"]
["S11_S12","D","EP_P51G_CREP_fc",null,null,null,"D","Electricity, gas, steam and air conditionning supply",null,":",null,":",null,":",null,":",null,":",null,":",null,":",null,":",null,":",null,":",null,":",null,":",null,":",null,":",null,":"]
["S11_S12","E36","EP_P51G_CREP_fc",null,null,null,"E36","Water supply",null,":",null,":",null,":",null,":",null,":",null,":",null,":",null,":",null,":",null,":",null,":",null,":",null,":",null,":",null,":"]
["S11_S12","A_EP_OTH","EP_P51G_CREP_fc",null,null,null,"OTH","OTHER NACE",null,":",null,":",null,":",null,":",null,":",null,":",null,":",null,":",null,":",null,":",null,":",null,":",null,":",null,":",null,":"]
[null,null,null,null,null,null,null,"of which:",null,null,null,null,null,null,null,null,null,null,null,null,null,null,null,null,null,null,null,null,null,null,null,":"]
["S11_S12","A","EP_P51G_CREP_fc",null,null,null,"A","Agriculture, forestry and fishing",null,":",null,":",null,":",null,":",null,":",null,":",null,":",null,":",null,":",null,":",null,":",null,":",null,":",null,":",null,":"]
["S11_S12","E3739","EP_P51G_CREP_fc",null,null,null,"E37-39","Sewerage: waste management and remendiation activities",null,":",null,":",null,":",null,":",null,":",null,":",null,":",null,":",null,":",null,":",null,":",null,":",null,":",null,":",null,":"]
["S11_S12","F","EP_P51G_CREP_fc",null,null,null,"F","Construction",null,":",null,":",null,":",null,":",null,":",null,":",null,":",null,":",null,":",null,":",null,":",null,":",null,":",null,":",null,":"]
["S11_S12","H","EP_P51G_CREP_fc",null,null,null,"H","Transportation and storage",null,":",null,":",null,":",null,":",null,":",null,":",null,":",null,":",null,":",null,":",null,":",null,":",null,":",null,":",null,":"]
["S11_S12","L","EP_P51G_CREP_fc",null,null,null,"L","Real estate activities",null,":",null,":",null,":",null,":",null,":",null,":",null,":",null,":",null,":",null,":",null,":",null,":",null,":",null,":",null,":"]

{"sheet":"Code of variables","index":65,"n_rows":49,"n_cols":4,"rows_kept":49,"cut":false,"hidden":false,"merged":[]}
["Variable","Code used in the tables (with a number indicating the table)","Corresponding ESA code","Corresponding JQ code (JQ tables)"]
["Total output of EP services / RM products","P1","P.1"]
["Market output of EP services / RM products","P11","P.11","E (Table 4)"]
["Market output of EP services / RM products of corporations specialist","P11_MA"]
["Market output of EP services / RM products of corporations non specialist","P11_SA"]
["Non-market output of EP services / RM products","P13","P.13"]
["Ancillary EP / RM output (legally acceptable valuation)","P1_ANC","-","B1 (Table 2)"]
["Ancillary EP / RM output (ESA-compatible valuation)","P1_ANC_ESA","-"]
["EP/RM supply at purchasers' prices available for national uses","SUP_NU","-"]
["Gross fixed capital formation and acquisition less disposals of non-financial, non-produced assets for the production of EP services / RM products (characteristic activities)","P51G_NP","P.51g + NP","A (Tables 1, 2 & 4)"]
["GFCF on specific EP fixed assets (end-of-pipe technologies)","INV_EOP","-","A1"]
["GFCF on cleaner EP fixed assets (integrated technologies)","INV_IT","-","A2"]
["Final consumption of EP services / RM products","P3_ESP","P.3","B2 (Table 3)"]
["Final consumption of specific EP goods,  EP cleaner goods and RM resource efficient products","P3_ACP",null,"EXP I (Table 3) "]
["Intermediate consumption for EP/RM production","P2","P.2"]
["Intermediate consumption of EP services / RM products for EP/RM production by specialist, secondary and ancillary producers","P2_EPS","P.2"]
["Intermediate consumption of EP services / RM products by specialist producers for the production of EPS / RMP","P2_EPS_SP","P.2"]
["Intermediate consumption (excluding EP services/ RM products) for EP/RM production","P2_NEPS","P.2"]
["Total intermediate consumption of EP services / RM products (for production of EP services / RM products and for other production)","P2_EPS_EXT","P.2","B2 (Tables 1, 2 & 4)"]
["Compensation of employees","D1","D.1"]
["Internal current expenditure","ICE","-","B1 (Tables 1 & 4)"]
["Other taxes less subsidies on production","D29-D39","D.29-D.39"]
["Consumption of fixed capital ","P51C","P.51c"]
["Net operating surplus ","B2N","B.2n"]
["Related non-EP output","RBP","-","C"]
["Employment","EMP","-"]
["Imports","P7","P.7"]
["Exports","P6","P.6"]
["VAT and other taxes less subsidies on EP/RM products","D21-D31","D.21-D.31"]
["Current and capital transfers paid","D3_D7_D92_D99_PAY","D.3_D.7_D.92_D.99_p"]
["Current and capital transfers received","D3_D7_D92_D99_REC","D.3_D.7_D.92_D.99_r"]
["General government: current and capital transfers paid","D3_D7_D92_D99_PAY_GG","-"]
["General government: current and capital transfers received","D3_D7_D92_D99_REC_GG","-"]
["General government: current transfers received","D3_D7_REC_GG","-"]
["General government: investments grants and other capital transfers received","D92_D99_REC_GG","-"]
["Corporations: current and capital transfers received","D3_D7_D92_D99_REC_CORP","-"]
["Corporations: current transfers received","D3_D7_REC_CORP","-"]
["Corporations: investments grants and other capital transfers received","D92_D99_REC_CORP","-"]
["Corporations: earmarked taxes paid","TAX_EM_PAY_CORP","-"]
["Households: transfers received"," D3_D7_D92_D99_REC_HH","-"]
["Households: earmarked taxes paid","TAX_EM_PAY_HH","-"]
["Rest of the world: current and capital transfers paid","D3_D7_D92_D99_PAY_RW","-"]
["Rest of the world: current and capital transfers received","D3_D7_D92_D99_REC_RW","-"]
["Rest of the world: current transfers received","D3_D7_REC_RW","-"]
["Rest of the world: investments grants and other capital transfers received ","D92_D99_REC_RW","-"]
["Final consumption of EP/RM products other than EP services and other than RM characteristic products (cleaner/resource efficient goods) at extra cost","P3_ACP_ec","-"]
["Final consumption of EP/RM products other than EP services and other than RM characteristic products (cleaner/resource efficient goods) at full cost","P3_ACP_fc","-"]
["Gross fixed capital formation  in cleaner and resource efficient products for non characteristic activities - extra cost","P51G_CREP_ec","-"]
["Gross fixed capital formation  in cleaner and resource efficient products for non characteristic activities - full cost","P51G_CREP_fc","-"]

{"sheet":"LOG","index":66,"n_rows":1,"n_cols":8,"rows_kept":1,"cut":false,"hidden":false,"merged":[]}
["File","Table","Link to Cell","Description","Error Type","Error Category","Additional Value","Click on a cell address to be directed to the detected error"]

{"sheet":"UpdatesLog","index":67,"n_rows":9,"n_cols":3,"rows_kept":9,"cut":false,"hidden":true,"merged":[]}
["Version","Procedure/Sheet","Update"]
["2022/10","ResetSheet","Remove update cell background when notAPP"]
["2022/10","Consistency Column","if total NotAv and some notAV in subitems, no inconsistency error"]
["2022/10","Validation","updates regarding Definition file"]
["2022/10","Questionnaire","updates regarding Definition file"]
["2022/12","Sheets 7*","updates"]
["2022/12","Validation","Updates to rules"]
["2022/12","VBA Revisions","Log when k>=0"]
["2022/13","Questionnaire","Change formula for Table 5"]